{"text_format":"1","workbook":"xlsx","n_sheets":19,"sheets":["Introduction","User Guide","Options","Results","Evidence","SHEETS TO BE HIDDEN ->","Calculations","Inequalities","Population 2016","Lists","Demographic data","Health outcome totals 2016","Prevalence Rates","Population at Risk","Pop2016fraction","Pop2016fractionQ1","Pop2016fractionQ1&2","PARfraction","Targeting"],"not_rendered":{"charts":0,"images":5,"macros":1,"external_links":0,"defined_names":2,"comments":0,"pivot_tables":0},"unopened":[],"bounds":{"document_bytes":16777216,"sheet_cells":100000,"rows_first":2000,"rows_last":500,"rows_between":2000,"halvings":0,"cell_chars":16384,"cell_head_chars":4096},"cells_cut":0,"cells_raw":0,"read":"whole","date_system":"1900"}

{"sheet":"Introduction","index":0,"n_rows":51,"n_cols":10,"rows_kept":51,"cut":false,"hidden":false,"merged":[]}
[]
[null,"Informing Interventions to reduce health Inequalities ('Triple I'):"]
[null,"Mental Health interventions"]
[]
[]
[]
[null,"Informing Interventions to reduce health Inequalities ('Triple I') is a collaboration between NHS Health Scotland and the Scottish Public Health Observatory (ScotPHO)."]
[null,"Triple I provides national and local decision makers with practical tools and interpreted results about investing in interventions to reduce health inequalities in Scotland. "]
[null,"It does this by modelling the potential impact of different interventions and policies on overall population health and health inequalities."]
[null,"This tool is part of a set of 9 spreadsheets and associated documentation, produced as an update and extension of our 2014 Triple I work.  "]
[null,"Data and evidence have been updated where applicable, new interventions have been included, and presentation of the results has been improved.  "]
[null,"The tool can be used to produce detailed results for different geographies (Scotland, Health Boards, Local Authorities, City Regions, or Integrated Joint Boards)."]
[null,"Results are provided for three health outcomes: premature mortality, years of life lost, and hospital stays.  "]
[]
[null,"The interventions:"]
[null,"The interventions were chosen based on the highest quality and most generalisable evidence linking them to changes in all-cause mortality and hospital admissions."]
[null,"The topics addressed by the interventions span the determinants of health (including ‘upstream’, ‘downstream’, individual-level and population-wide)."]
[null,"There are 9 Triple I spreadsheet tools (corresponding to the topic areas below)."]
[]
[null,null,"Individual-level interventions: ",null,null,null,null,"Population-wide interventions:"]
[null,null,"(N.B. modelled as being implemented in year 1 only)",null,null,null,null,"(N.B. permanent: modelled as remaining "]
[null,null,"Topic","Intervention(s) ",null,null,null,"in place after implementation in year 1)"]
[null,null,"Mental Health","Interventions for depression",null,null,null,"Topic",null,"Intervention(s) "]
[null,null,"Obesity","Weight management service",null,null,null,"Physical Environment",null,"20 mph speed limits "]
[null,null,"Physical inactivity","Physical activity interventions",null,null,null,"Smoking",null,"Tobacco taxation"]
[null,null,"Smoking","Smoking cessation",null,null,null,"Income",null,"Income-based policies"]
[null,null,"Alcohol consumption","Alcohol Brief Interventions (ABIs)"]
[null,null,"Unemployment","Job provision"]
[]
[null,"Pages in this spreadsheet tool:"]
[null,null,"Introduction",null,">>","Information about the Triple I project"]
[null,null,"User guide",null,">>","How to use this spreadsheet tool"]
[null,null,"Options",null,">>","Where users can change the model options, and see high-level results"]
[null,null,"Results",null,">>","Full results for the chosen model options"]
[null,null,"Evidence",null,">>","Summary of the evidence underpinning the model, and definitions of the policies/interventions"]
[]
[null,"Further information is available on the Triple I website:",null,null,null,null,"Triple I website"]
[null,null,"Interactive results browser",null,">>","An online interactive results browser for comparing different interventions (April 2019)"]
[null,null,"National Overview Report",null,">>","A summary report of the national-level findings (April 2019)"]
[null,null,"Technical Report",null,">>","Details of Triple I's methods and data sources (April 2019)"]
[null,null,"Frequently Asked Questions",null,">>","Answers to frequently-asked questions about Triple I (April 2019)"]
[null,null,"Income-based policies",null,">>","Report and Supplementary Information about the income-based policies work (October 2018)"]
[null,null,"nhs.triple.i@nhs.net",null,">>","Email us for more information."]
[]
[null,"Abbreviations used"]
[null,"IJB","Integrated Joint Board"]
[null,"LA","Local Authority"]
[null,"RII","Relative Index of Inequality"]
[null,"SII","Slope Index of Inequality"]
[null,"SIMD","Scottish Index of Multiple Deprivation"]
[null,"Q1 - Q5","Quintiles of the SIMD: Q1 contains the 20% most deprived areas, and Q5 contains the 20% least deprived areas."]

{"sheet":"User Guide","index":1,"n_rows":72,"n_cols":10,"rows_kept":72,"cut":false,"hidden":false,"merged":[]}
[]
[null,"User Guide"]
[]
[null,"Please note: Macros need to be enabled for the tools to work properly."]
[null,"How to do this in a recent version of Excel: File > Options > Trust Center > Trust Center Settings > Macro Settings > \"Enable all macros\""]
[null,"How to do this in an older version of Excel: Tools > Options > Security > Macro Security > \"Medium\""]
[]
[null,"Changing the intervention details:"]
[null,"You can interact with the Triple I model from the Options tab."]
[null,"Any changes made to the shaded cells (blue) on this tab will cause Excel to recalculate the model and present new results.   "]
[null,"Below are the options available (N.B. not every spreadsheet will have all of these options):"]
[]
[null,"Intervention:"]
[null,"Choose the intervention of interest (only relevant for tools covering more than one intervention: Mental health, Physical activity, and Income-based interventions)"]
[]
[null,"Area:"]
[null,"Choose the area to run the model for.  The available geographies are listed below. "]
[null,null,"1. Health Boards:",null,null,"The 14 territorial NHS health boards responsible for delivery of frontline healthcare services in Scotland (2014 boundaries). "]
[null,null,"2. Local Authorities:",null,null,"The 32 elected councils that provide a range of services to local people, including education and care.  "]
[null,null,null,null,null,"The Gaelic name of Eilean Siar is used for the local authority covering the Western Isles.  "]
[null,null,"3. Integrated Joint Boards:",null,null,"31 integration authorities were created by The Public Bodies (Joint Working) Act 2014, in order to integrate the health and "]
[null,null,null,null,null,"social care functions of health boards and local authorities.  These Integrated Joint Boards (IJBs) or Partnerships "]
[null,null,null,null,null,"correspond to local authority areas, with the exception of Clackmannanshire and Stirling IJB which combines two "]
[null,null,null,null,null,"local authorities.  The Gaelic name of Eilean Siar is used for the IJB covering the Western Isles.  "]
[null,null,"4. City Region Deals: ",null,null,"City Region Deals are agreements between the Scottish Government, the UK Government and local government."]
[null,null,null,null,null,"They have been designed to bring about long-term strategic approaches to improving regional economies.  "]
[null,null,null,null,null,"The following 6 city regions are included:"]
[]
[null,null,null,null,null,"City Region:",null,null,null,"Local Authorities (LAs) included: "]
[null,null,null,null,null,"Aberdeen City Region Deal",null,null,null,"Aberdeen and Aberdeenshire"]
[null,null,null,null,null,"Edinburgh & Southeast Scotland City Region Deal",null,null,null,"Edinburgh, Fife, East Lothian, Midlothian, West Lothian, Borders "]
[null,null,null,null,null,"Glasgow City Region Deal",null,null,null,"East Dunbartonshire, East Renfrewshire, Glasgow City, Inverclyde, "]
[null,null,null,null,null,null,null,null,null,"North Lanarkshire, Renfrewshire, South Lanarkshire, West Dunbartonshire "]
[null,null,null,null,null,"Inverness & Highland City Region Deal",null,null,null,"Highland "]
[null,null,null,null,null,"Stirling and Clackmannanshire City Region Deal",null,null,null,"Stirling and Clackmannanshire "]
[null,null,null,null,null,"Tay Cities Region Deal ",null,null,null,"Dundee, Perth & Kinross, Angus, Fife "]
[]
[null,"Targeting strategy:"]
[null,"The strategy for delivering the individual-level* interventions can be altered by the user.  "]
[null,"*Interventions delivered to individuals: mental health, weight management, physical activity, smoking cessation, alcohol brief interventions, and job provision. "]
[null,"Four options are available:"]
[null,"·       Even distribution: treat the same proportion of the eligible population in each subgroup (i.e., age group, sex and SIMD 2016 quintile)."]
[null,"·       Proportionate to need: the proportion of each subgroup treated is proportionate to the subgroup's prevalence of the exposure (e.g., smoking or depression)."]
[null,"·       Most deprived 20% only**: treat only those in SIMD quintile 1 (even distribution within this quintile).    "]
[null,"·       Most deprived 40% only: treat only those in SIMD quintiles 1 and 2 (even distribution within these quintiles).  "]
[null,"**The Orkney Islands, Shetland Islands and the Western Isles do not have population in SIMD 2016 quintile 1, so targeting to quintile 1 will produce an error message."]
[]
[null,"Number to treat:"]
[null,"For individual-level interventions you can choose the number of people to be treated."]
[null,"·       For information the maximum number of people who are eligible to be treated will be calculated in the preceding cell."]
[null,"·       If a higher number is entered an error message will prevent the calculation from occurring."]
[null,"·       Be aware that the model will run and produce results if changes to another cell mean that the number of people then exceeds the new maximum number.  "]
[]
[null,"Number of years:"]
[null,"The interventions are delivered in year 1.  "]
[null,"Their effects can be modelled from year 2 (the first year of follow-up) to year 20."]
[null,"N.B. Individual-level interventions are delivered for a single year, while the population-level interventions are modelled as remaining in place after year 1. "]
[]
[null,"Viewing the results:"]
[null,"Options tab",null,"A summary of the results is shown on the Options tab."]
[null,"Results tab",null,"More detailed results are shown on the Results tab."]
[null,"Technical Report",null,"Further information about how the results are calculated, and how to interpret them, can be found in the Triple I Technical Report.  "]
[]
[null,"For advanced users: How to make more advanced changes to the model"]
[null,"The inner workings of the Triple I tools are described in the Technical Report.  We recommend you consult the report before making any advanced changes."]
[null,"The model data and calculations can be found in a number of 'hidden' tabs."]
[null,"These are hidden to simplify the spreadsheet for users.  "]
[null,"To see the hidden tabs, right-click on any tab, select 'Unhide', then select the tab you want to unhide. "]
[null,"The hidden tabs include population data, prevalence data, targeting calculations, and result calculations."]
[null,"VBA (Visual Basic for Applications) code has been written to create bespoke functions for the calculations.   "]
[null,"The code can be found from the Developer tab > Visual Basic."]
[null,"If the Developer tab is not shown in your version of Excel go to File > Options > Customize Ribbon and switch on the Developer tab (recent Excel versions only)."]

{"sheet":"Options","index":2,"n_rows":30,"n_cols":8,"rows_kept":30,"cut":false,"hidden":false,"merged":[]}
[]
[null,"Options for changing the model:",null,null,"Results summary:"]
[]
[null,"Change the shaded cells (blue) to recalculate.",null,null,"Check the Results tab for a detailed breakdown of the results"]
[null,"N.B. Results may take a few seconds to change.",null,null,"Results shown as cumulative difference from baseline over the follow-up period (% difference in brackets).  "]
[]
[null,"Intervention: (defined on Evidence tab)",null,null,"POLICY IMPACT ON HEALTH*","Whole population","SIMD Q1 & Q2","SIMD Q1"]
[null,"Computerised CBT",null,null,"Hospital stays prevented",{"$f":"CONCATENATE(FIXED(Results!E16,0),\" (\",FIXED(Results!F16,2),\"%)\")","v":"3,751 (0.33%)"},{"$f":"CONCATENATE(FIXED(Results!E17,0),\" (\",FIXED(Results!F17,2),\"%)\")","v":"1,761 (0.32%)"},{"$f":"IF(OR(Calculations!$E$2=\"Orkney Health Board\",Calculations!$E$2=\"Orkney Islands Local Authority\",Calculations!$E$2=\"Shetland Health Board\",Calculations!$E$2=\"Western Isles Health Board\",Calculations!$E$2=\"Shetland Islands Local Authority\",Calculations!$E$2=\"Eilean Siar Local Authority\"),\"N/A\", CONCATENATE(FIXED(Results!E18,0),\" (\",FIXED(Results!F18,2),\"%)\"))","v":"935 (0.32%)"}]
[null,null,null,null,"Premature deaths prevented",{"$f":"CONCATENATE(FIXED(Results!E20,0),\" (\",FIXED(Results!F20,2),\"%)\")","v":"34 (0.16%)"},{"$f":"CONCATENATE(FIXED(Results!E21,0),\" (\",FIXED(Results!F21,2),\"%)\")","v":"18 (0.15%)"},{"$f":"IF(OR(Calculations!$E$2=\"Orkney Health Board\",Calculations!$E$2=\"Orkney Islands Local Authority\",Calculations!$E$2=\"Shetland Health Board\",Calculations!$E$2=\"Western Isles Health Board\",Calculations!$E$2=\"Shetland Islands Local Authority\",Calculations!$E$2=\"Eilean Siar Local Authority\"),\"N/A\", CONCATENATE(FIXED(Results!E22,0),\" (\",FIXED(Results!F22,2),\"%)\"))","v":"10 (0.15%)"}]
[null,"Choose the area to run the model for:",null,null,"Years of life saved",{"$f":"CONCATENATE(FIXED(Results!E24,0),\" (\",FIXED(Results!F24,2),\"%)\")","v":"923 (0.15%)"},{"$f":"CONCATENATE(FIXED(Results!E25,0),\" (\",FIXED(Results!F25,2),\"%)\")","v":"487 (0.15%)"},{"$f":"IF(OR(Calculations!$E$2=\"Orkney Health Board\",Calculations!$E$2=\"Orkney Islands Local Authority\",Calculations!$E$2=\"Shetland Health Board\",Calculations!$E$2=\"Western Isles Health Board\",Calculations!$E$2=\"Shetland Islands Local Authority\",Calculations!$E$2=\"Eilean Siar Local Authority\"),\"N/A\", CONCATENATE(FIXED(Results!E26,0),\" (\",FIXED(Results!F26,2),\"%)\"))","v":"274 (0.15%)"}]
[null,"Scotland",null,null,"*N.B. a positive figure indicates an improvement in health outcomes."]
[]
[null,"Choose the targeting strategy:",null,null,"POLICY IMPACT ON HEALTH INEQUALITIES**"]
[null,"Even distribution",null,null,"Gap between most and least deprived","Absolute","Relative"]
[null,null,null,null,"Hospital stays",{"$f":"CONCATENATE(FIXED(Results!E29,0),\" (\",FIXED(Results!F29,3),\"%)\")","v":"-42 (-0.314%)"},{"$f":"CONCATENATE(FIXED(Results!E33,4),\" (\",FIXED(Results!F33,3),\"%)\")","v":"0.0001 (0.008%)"}]
[null,"Max no. people available to be treated:",null,null,"Premature deaths",{"$f":"CONCATENATE(FIXED(Results!E30,0),\" (\",FIXED(Results!F30,3),\"%)\")","v":"-1 (-0.151%)"},{"$f":"CONCATENATE(FIXED(Results!E34,4),\" (\",FIXED(Results!F34,3),\"%)\")","v":"0.0002 (0.005%)"}]
[null,{"$f":"ROUNDDOWN(IF(OR($B$14=\"Even distribution\",$B$14=\"Proportionate to need\"),HLOOKUP(Calculations!$E$2,'Population at Risk'!$C$3:'Population at Risk'!$BC$257,'Population at Risk'!BD255,FALSE),IF($B$14=\"Targeting to SIMD Q1\",HLOOKUP(Calculations!$E$2,'Population at Risk'!$C$3:$BC$257,'Population at Risk'!BD256,FALSE),IF($B$14=\"Targeting to SIMD Q1 & Q2\",HLOOKUP(Calculations!$E$2,'Population at Risk'!$C$3:$BC$257,'Population at Risk'!BD257,FALSE),\"error\"))),0)","v":132940},null,null,"Years of life lost",{"$f":"CONCATENATE(FIXED(Results!E31,0),\" (\",FIXED(Results!F31,3),\"%)\")","v":"-19 (-0.149%)"},{"$f":"CONCATENATE(FIXED(Results!E35,4),\" (\",FIXED(Results!F35,3),\"%)\")","v":"0.0002 (0.006%)"}]
[null,null,null,null,"Population-wide inequalities slope","Absolute (SII)","Relative (RII)"]
[null,"Choose the number of people to treat:",null,null,"Hospital stays",{"$f":"CONCATENATE(FIXED(Results!E37,0),\" (\",FIXED(Results!F37,3),\"%)\")","v":"-50 (-0.313%)"},{"$f":"CONCATENATE(FIXED(Results!E41,4),\" (\",FIXED(Results!F41,3),\"%)\")","v":"0.0001 (0.015%)"}]
[null,"(in addition to current number treated)",null,null,"Premature deaths",{"$f":"CONCATENATE(FIXED(Results!E38,0),\" (\",FIXED(Results!F38,3),\"%)\")","v":"-1 (-0.151%)"},{"$f":"CONCATENATE(FIXED(Results!E42,4),\" (\",FIXED(Results!F42,3),\"%)\")","v":"0.0001 (0.005%)"}]
[null,132940,null,null,"Years of life lost",{"$f":"CONCATENATE(FIXED(Results!E39,0),\" (\",FIXED(Results!F39,3),\"%)\")","v":"-22 (-0.149%)"},{"$f":"CONCATENATE(FIXED(Results!E43,4),\" (\",FIXED(Results!F43,3),\"%)\")","v":"0.0001 (0.006%)"}]
[null,{"$f":"IF(AND(OR(Calculations!$E$2=\"Orkney Health Board\",Calculations!$E$2=\"Orkney Islands Local Authority\",Calculations!$E$2=\"Shetland Health Board\",Calculations!$E$2=\"Western Isles Health Board\",Calculations!$E$2=\"Shetland Islands Local Authority\",Calculations!$E$2=\"Eilean Siar Local Authority\"),B14=\"Targeting to SIMD Q1\"),\"Error: No Q1 population for this area\", IF(B21>B17,\"Too high: please check and re-enter\",\"\"))","v":""},null,null,"**N.B. Based on rates per 100,000.  A negative figure indicates reduced inequalities / narrowing of the gap."]
[null,"Calculate health impact after this many years:"]
[null,2,null,null,"SELECTED COSTS AND SAVINGS***",null,"£"]
[null,null,null,null,"Direct financial cost of the intervention (£):",null,{"$f":"Results!D50","v":4519960}]
[null,null,null,null,"Direct financial savings from reduced hospitalisations (£):"]
[null,null,null,null,null,"Whole population",{"$f":"CONCATENATE(FIXED(Results!E54,0),\" (\",FIXED(Results!F54,3),\"%)\")","v":"9,422,839 (0.328%)"}]
[null,null,null,null,null,"SIMD Q1 & Q2",{"$f":"CONCATENATE(FIXED(Results!E55,0),\" (\",FIXED(Results!F55,3),\"%)\")","v":"4,422,738 (0.325%)"}]
[null,null,null,null,null,"SIMD Q1",{"$f":"IF(OR(Calculations!$E$2=\"Orkney Health Board\",Calculations!$E$2=\"Orkney Islands Local Authority\",Calculations!$E$2=\"Shetland Health Board\",Calculations!$E$2=\"Western Isles Health Board\",Calculations!$E$2=\"Shetland Islands Local Authority\",Calculations!$E$2=\"Eilean Siar Local Authority\"),\"N/A\", CONCATENATE(FIXED(Results!E56,0),\" (\",FIXED(Results!F56,3),\"%)\"))","v":"2,349,517 (0.324%)"}]
[null,null,null,null,"***Costs/savings from changes to other health outcomes and to health inequalities have not been estimated."]

{"sheet":"Results","index":3,"n_rows":59,"n_cols":8,"rows_kept":59,"cut":false,"hidden":false,"merged":[]}
[]
[null,"Detailed results for intervention:",null,{"$f":"Options!B8","v":"Computerised CBT"}]
[]
[null,"Area of interest:",{"$f":"Options!B11","v":"Scotland"},"Targeting strategy:",{"$f":"Options!B14","v":"Even distribution"}]
[null,"Age group:","16+ years","Additional people to be treated:",{"$f":"Options!B21","v":132940}]
[null,"Baseline year (prevalence and population data):",2016,"Health impact calculated after:",{"$f":"CONCATENATE(Options!B24,\" years\")","v":"2 years"}]
[]
[null,"Baseline situation (2016):","No. with mild / moderate / subthreshold depression","Max. no. available for intervention","No. all-cause hospital stays","No. all-cause deaths","No. all-cause premature deaths","Years of life lost (all causes)"]
[null,"Whole population",{"$f":"HLOOKUP(Calculations!$E$2,'Population at Risk'!$C$3:$BC$257,'Population at Risk'!BD251,FALSE)","v":511311.09606680617},{"$f":"ROUNDDOWN(HLOOKUP(Calculations!$E$2,'Population at Risk'!$C$3:$BC$257,'Population at Risk'!BD255,FALSE),0)","v":132940},{"$f":"HLOOKUP(Calculations!$E$2,'Health outcome totals 2016'!$C$3:$BC$17,'Health outcome totals 2016'!$BD6,FALSE)","v":1125093},{"$f":"HLOOKUP(Calculations!$E$2,'Health outcome totals 2016'!$C$3:$BC$17,'Health outcome totals 2016'!$BD9,FALSE)","v":56725},{"$f":"HLOOKUP(Calculations!$E$2,'Health outcome totals 2016'!$C$3:$BC$17,'Health outcome totals 2016'!$BD12,FALSE)","v":21313},{"$f":"HLOOKUP(Calculations!$E$2,'Health outcome totals 2016'!$C$3:$BC$17,'Health outcome totals 2016'!$BD15,FALSE)","v":708624.04837918223}]
[null,"Most deprived 40% (Q1 & Q2)",{"$f":"HLOOKUP(Calculations!$E$2,'Population at Risk'!$C$3:$BC$257,'Population at Risk'!BD253,FALSE)","v":255586.85550085048},{"$f":"ROUNDDOWN(HLOOKUP(Calculations!$E$2,'Population at Risk'!$C$3:$BC$257,'Population at Risk'!BD257,FALSE),0)","v":66452},{"$f":"HLOOKUP(Calculations!$E$2,'Health outcome totals 2016'!$C$3:$BC$17,'Health outcome totals 2016'!$BD8,FALSE)","v":534382},{"$f":"HLOOKUP(Calculations!$E$2,'Health outcome totals 2016'!$C$3:$BC$17,'Health outcome totals 2016'!$BD11,FALSE)","v":26567},{"$f":"HLOOKUP(Calculations!$E$2,'Health outcome totals 2016'!$C$3:$BC$17,'Health outcome totals 2016'!$BD14,FALSE)","v":11618},{"$f":"HLOOKUP(Calculations!$E$2,'Health outcome totals 2016'!$C$3:$BC$17,'Health outcome totals 2016'!$BD17,FALSE)","v":372328.97050476068}]
[null,"Most deprived 20% (Q1)",{"$f":"IF(OR(Calculations!$E$2=\"Orkney Health Board\",Calculations!$E$2=\"Orkney Islands Local Authority\",Calculations!$E$2=\"Shetland Health Board\",Calculations!$E$2=\"Western Isles Health Board\",Calculations!$E$2=\"Shetland Islands Local Authority\",Calculations!$E$2=\"Eilean Siar Local Authority\"),\"N/A\", HLOOKUP(Calculations!$E$2,'Population at Risk'!$C$3:$BC$257,'Population at Risk'!BD252,FALSE))","v":142449.36592287396},{"$f":"IF(OR(Calculations!$E$2=\"Orkney Health Board\",Calculations!$E$2=\"Orkney Islands Local Authority\",Calculations!$E$2=\"Shetland Health Board\",Calculations!$E$2=\"Western Isles Health Board\",Calculations!$E$2=\"Shetland Islands Local Authority\",Calculations!$E$2=\"Eilean Siar Local Authority\"),\"N/A\", ROUNDDOWN(HLOOKUP(Calculations!$E$2,'Population at Risk'!$C$3:$BC$257,'Population at Risk'!BD256,FALSE),0))","v":37036},{"$f":"IF(OR(Calculations!$E$2=\"Orkney Health Board\",Calculations!$E$2=\"Orkney Islands Local Authority\",Calculations!$E$2=\"Shetland Health Board\",Calculations!$E$2=\"Western Isles Health Board\",Calculations!$E$2=\"Shetland Islands Local Authority\",Calculations!$E$2=\"Eilean Siar Local Authority\"),\"N/A\", HLOOKUP(Calculations!$E$2,'Health outcome totals 2016'!$C$3:$BC$17,'Health outcome totals 2016'!$BD7,FALSE))","v":283718},{"$f":"IF(OR(Calculations!$E$2=\"Orkney Health Board\",Calculations!$E$2=\"Orkney Islands Local Authority\",Calculations!$E$2=\"Shetland Health Board\",Calculations!$E$2=\"Western Isles Health Board\",Calculations!$E$2=\"Shetland Islands Local Authority\",Calculations!$E$2=\"Eilean Siar Local Authority\"),\"N/A\", HLOOKUP(Calculations!$E$2,'Health outcome totals 2016'!$C$3:$BC$17,'Health outcome totals 2016'!$BD10,FALSE))","v":13665},{"$f":"IF(OR(Calculations!$E$2=\"Orkney Health Board\",Calculations!$E$2=\"Orkney Islands Local Authority\",Calculations!$E$2=\"Shetland Health Board\",Calculations!$E$2=\"Western Isles Health Board\",Calculations!$E$2=\"Shetland Islands Local Authority\",Calculations!$E$2=\"Eilean Siar Local Authority\"),\"N/A\", HLOOKUP(Calculations!$E$2,'Health outcome totals 2016'!$C$3:$BC$17,'Health outcome totals 2016'!$BD13,FALSE))","v":6443},{"$f":"IF(OR(Calculations!$E$2=\"Orkney Health Board\",Calculations!$E$2=\"Orkney Islands Local Authority\",Calculations!$E$2=\"Shetland Health Board\",Calculations!$E$2=\"Western Isles Health Board\",Calculations!$E$2=\"Shetland Islands Local Authority\",Calculations!$E$2=\"Eilean Siar Local Authority\"),\"N/A\", HLOOKUP(Calculations!$E$2,'Health outcome totals 2016'!$C$3:$BC$17,'Health outcome totals 2016'!$BD16,FALSE))","v":203545.71069335938}]
[]
[null,"Health impact","Without intervention","With intervention","Difference","Difference","Interpretation"]
[null,"HEALTH OUTCOMES","n","n","n","%"]
[null,"Hospital stays",null,null,null,"% prevented"]
[null,"Whole population",{"$f":"Calculations!O5","v":1143855.727350824},{"$f":"Calculations!P5","v":1140104.5972983593},{"$f":"C16-D16","v":3751.1300524647813},{"$f":"E16*100/C16","v":0.32793734059035734},"Hospital stays prevented"]
[null,"Q1 & Q2",{"$f":"Calculations!O6","v":542278.73076819046},{"$f":"Calculations!P6","v":540518.08653435227},{"$f":"C17-D17","v":1760.6442338381894},{"$f":"E17*100/C17","v":0.32467514101909656},"(N.B. positive difference = "]
[null,"Q1",{"$f":"IF(OR(Calculations!$E$2=\"Orkney Health Board\",Calculations!$E$2=\"Orkney Islands Local Authority\",Calculations!$E$2=\"Shetland Health Board\",Calculations!$E$2=\"Western Isles Health Board\",Calculations!$E$2=\"Shetland Islands Local Authority\",Calculations!$E$2=\"Eilean Siar Local Authority\"),\"N/A\", Calculations!O7)","v":288715.84006160521},{"$f":"IF(OR(Calculations!$E$2=\"Orkney Health Board\",Calculations!$E$2=\"Orkney Islands Local Authority\",Calculations!$E$2=\"Shetland Health Board\",Calculations!$E$2=\"Western Isles Health Board\",Calculations!$E$2=\"Shetland Islands Local Authority\",Calculations!$E$2=\"Eilean Siar Local Authority\"),\"N/A\", Calculations!P7)","v":287780.52276992076},{"$f":"IF(OR(Calculations!$E$2=\"Orkney Health Board\",Calculations!$E$2=\"Orkney Islands Local Authority\",Calculations!$E$2=\"Shetland Health Board\",Calculations!$E$2=\"Western Isles Health Board\",Calculations!$E$2=\"Shetland Islands Local Authority\",Calculations!$E$2=\"Eilean Siar Local Authority\"),\"N/A\", C18-D18)","v":935.31729168444872},{"$f":"IF(OR(Calculations!$E$2=\"Orkney Health Board\",Calculations!$E$2=\"Orkney Islands Local Authority\",Calculations!$E$2=\"Shetland Health Board\",Calculations!$E$2=\"Western Isles Health Board\",Calculations!$E$2=\"Shetland Islands Local Authority\",Calculations!$E$2=\"Eilean Siar Local Authority\"),\"N/A\", E18*100/C18)","v":0.32395773348801155},"fewer stays)"]
[null,"Premature deaths (<75 years)",null,null,null,"% prevented"]
[null,"Whole population",{"$f":"Calculations!Q5","v":21623.7466766574},{"$f":"Calculations!R5","v":21590.018598825402},{"$f":"C20-D20","v":33.728077831998235},{"$f":"E20*100/C20","v":0.15597702995849155},"Premature deaths prevented"]
[null,"Q1 & Q2",{"$f":"Calculations!Q6","v":11405.273384117902},{"$f":"Calculations!R6","v":11387.679739159001},{"$f":"C21-D21","v":17.593644958900768},{"$f":"E21*100/C21","v":0.15425886225051222},"(N.B. positive difference = "]
[null,"Q1",{"$f":"IF(OR(Calculations!$E$2=\"Orkney Health Board\",Calculations!$E$2=\"Orkney Islands Local Authority\",Calculations!$E$2=\"Shetland Health Board\",Calculations!$E$2=\"Western Isles Health Board\",Calculations!$E$2=\"Shetland Islands Local Authority\",Calculations!$E$2=\"Eilean Siar Local Authority\"),\"N/A\", Calculations!Q7)","v":6424.0584152650008},{"$f":"IF(OR(Calculations!$E$2=\"Orkney Health Board\",Calculations!$E$2=\"Orkney Islands Local Authority\",Calculations!$E$2=\"Shetland Health Board\",Calculations!$E$2=\"Western Isles Health Board\",Calculations!$E$2=\"Shetland Islands Local Authority\",Calculations!$E$2=\"Eilean Siar Local Authority\"),\"N/A\", Calculations!R7)","v":6414.1677085018},{"$f":"IF(OR(Calculations!$E$2=\"Orkney Health Board\",Calculations!$E$2=\"Orkney Islands Local Authority\",Calculations!$E$2=\"Shetland Health Board\",Calculations!$E$2=\"Western Isles Health Board\",Calculations!$E$2=\"Shetland Islands Local Authority\",Calculations!$E$2=\"Eilean Siar Local Authority\"),\"N/A\", C22-D22)","v":9.8907067632007966},{"$f":"IF(OR(Calculations!$E$2=\"Orkney Health Board\",Calculations!$E$2=\"Orkney Islands Local Authority\",Calculations!$E$2=\"Shetland Health Board\",Calculations!$E$2=\"Western Isles Health Board\",Calculations!$E$2=\"Shetland Islands Local Authority\",Calculations!$E$2=\"Eilean Siar Local Authority\"),\"N/A\", E22*100/C22)","v":0.1539635246730986},"fewer premature deaths)"]
[null,"Years of life lost",null,null,null,"% saved"]
[null,"Whole population",{"$f":"Calculations!M5","v":595628.52711818821},{"$f":"Calculations!N5","v":594705.44398298149},{"$f":"C24-D24","v":923.083135206718},{"$f":"E24*100/C24","v":0.15497631378954324},"Years of life saved"]
[null,"Q1 & Q2",{"$f":"Calculations!M6","v":318030.56413150555},{"$f":"Calculations!N6","v":317543.57341986196},{"$f":"C25-D25","v":486.99071164359339},{"$f":"E25*100/C25","v":0.15312701562929745},"(N.B. positive difference ="]
[null,"Q1",{"$f":"IF(OR(Calculations!$E$2=\"Orkney Health Board\",Calculations!$E$2=\"Orkney Islands Local Authority\",Calculations!$E$2=\"Shetland Health Board\",Calculations!$E$2=\"Western Isles Health Board\",Calculations!$E$2=\"Shetland Islands Local Authority\",Calculations!$E$2=\"Eilean Siar Local Authority\"),\"N/A\", Calculations!M7)","v":179585.23108423798},{"$f":"IF(OR(Calculations!$E$2=\"Orkney Health Board\",Calculations!$E$2=\"Orkney Islands Local Authority\",Calculations!$E$2=\"Shetland Health Board\",Calculations!$E$2=\"Western Isles Health Board\",Calculations!$E$2=\"Shetland Islands Local Authority\",Calculations!$E$2=\"Eilean Siar Local Authority\"),\"N/A\", Calculations!N7)","v":179311.15629535588},{"$f":"IF(OR(Calculations!$E$2=\"Orkney Health Board\",Calculations!$E$2=\"Orkney Islands Local Authority\",Calculations!$E$2=\"Shetland Health Board\",Calculations!$E$2=\"Western Isles Health Board\",Calculations!$E$2=\"Shetland Islands Local Authority\",Calculations!$E$2=\"Eilean Siar Local Authority\"),\"N/A\", C26-D26)","v":274.07478888210608},{"$f":"IF(OR(Calculations!$E$2=\"Orkney Health Board\",Calculations!$E$2=\"Orkney Islands Local Authority\",Calculations!$E$2=\"Shetland Health Board\",Calculations!$E$2=\"Western Isles Health Board\",Calculations!$E$2=\"Shetland Islands Local Authority\",Calculations!$E$2=\"Eilean Siar Local Authority\"),\"N/A\", E26*100/C26)","v":0.15261543904662511},"years of life saved)"]
[null,"HEALTH INEQUALITIES ","rate*","rate*","rate*","%"]
[null,"Absolute gap (Q1 minus Q5**)",null,null,null,"% increase"]
[null,"Hospital stays",{"$f":"Inequalities!H17","v":13347.326196375001},{"$f":"Inequalities!J17","v":13305.3593994115},{"$f":"D29-C29","v":-41.96679696350111},{"$f":"E29*100/C29","v":-0.31442100347333135},"Change in the absolute gap"]
[null,"Premature deaths",{"$f":"Inequalities!N17","v":453.49455413728458},{"$f":"Inequalities!P17","v":452.80803144555318},{"$f":"D30-C30","v":-0.68652269173139757},{"$f":"E30*100/C30","v":-0.15138499138923933},"(N.B. negative = narrower gap)"]
[null,"YLL",{"$f":"Inequalities!T17","v":12489.836003237571},{"$f":"Inequalities!V17","v":12471.18625942608},{"$f":"D31-C31","v":-18.649743811491135},{"$f":"E31*100/C31","v":-0.14931936501533577}]
[null,"Relative gap Q1 to Q5**",null,null,null,"% increase"]
[null,"Hospital stays",{"$f":"Inequalities!H18","v":1.8136171707492037},{"$f":"Inequalities!J18","v":1.8137661476847671},{"$f":"D33-C33","v":1.4897693556337188E-4},{"$f":"E33*100/C33","v":8.2143540525605879E-3},"Change in the relative gap"]
[null,"Premature deaths",{"$f":"Inequalities!N18","v":3.0046211466097588},{"$f":"Inequalities!P18","v":3.0047721020965454},{"$f":"D34-C34","v":1.509554867866747E-4},{"$f":"E34*100/C34","v":5.0241105091403671E-3},"(N.B. negative = narrower gap)"]
[null,"YLL",{"$f":"Inequalities!T18","v":2.9922121916407378},{"$f":"Inequalities!V18","v":2.992391895211171},{"$f":"D35-C35","v":1.797035704331762E-4},{"$f":"E35*100/C35","v":6.0057094525317826E-3}]
[null,"Slope Index of Inequality (SII)",null,null,null,"% increase"]
[null,"Hospital stays",{"$f":"Inequalities!H15","v":16090.340555944245},{"$f":"Inequalities!J15","v":16040.036076371191},{"$f":"D37-C37","v":-50.304479573054778},{"$f":"E37*100/C37","v":-0.31263775554129475},"Change in absolute inequalities"]
[null,"Premature deaths",{"$f":"Inequalities!N15","v":534.19958161278305},{"$f":"Inequalities!P15","v":533.39427766789527},{"$f":"D38-C38","v":-0.80530394488778256},{"$f":"E38*100/C38","v":-0.15074963976132627},"(N.B. negative = decreased inequalities)"]
[null,"YLL",{"$f":"Inequalities!T15","v":14715.269067724279},{"$f":"Inequalities!V15","v":14693.36351769489},{"$f":"D39-C39","v":-21.905550029388905},{"$f":"E39*100/C39","v":-0.14886272162997971}]
[null,"Relative Index of Inequality (RII)",null,null,null,"% increase"]
[null,"Hospital stays",{"$f":"Inequalities!H16","v":0.73338952625810161},{"$f":"Inequalities!J16","v":0.73350268137001429},{"$f":"D41-C41","v":1.1315511191267724E-4},{"$f":"E41*100/C41","v":1.5429060255334841E-2},"Change in relative inequalities"]
[null,"Premature deaths",{"$f":"Inequalities!N16","v":1.2858996971904544},{"$f":"Inequalities!P16","v":1.2859649860641553},{"$f":"D42-C42","v":6.5288873700941608E-5},{"$f":"E42*100/C42","v":5.0772913193455468E-3},"(N.B. negative = decreased inequalities)"]
[null,"YLL",{"$f":"Inequalities!T16","v":1.281084799602219},{"$f":"Inequalities!V16","v":1.2811599845248611},{"$f":"D43-C43","v":7.5184922642135277E-5},{"$f":"E43*100/C43","v":5.8688482343620379E-3}]
[]
[null,"* European age-standardised rate per 100,000"]
[null,"** or the most and least deprived quintiles in the area"]
[]
[null,"Economic impact","Without intervention","With intervention","Difference","Difference","Interpretation"]
[null,null,"£","£","£"]
[null,"Direct financial cost:",0,{"$f":"VLOOKUP($D$2,Evidence!$B$191:$D$193,3)*Results!E5","v":4519960},{"$f":"D50-C50","v":4519960},null,"Positive difference = net cost incurred"]
[]
[null,"Direct financial savings:","£","£","£","% saved"]
[null,"Hospital stays"]
[null,"Whole population",{"$f":"Evidence!$D$203*Results!C16","v":2873365587.1052699},{"$f":"Evidence!$D$203*Results!D16","v":2863942748.4134784},{"$f":"C54-D54","v":9422838.6917915344},{"$f":"E54*100/C54","v":0.32793734059035751},"Reduction in hospital stay costs"]
[null,"Q1 & Q2",{"$f":"Evidence!$D$203*Results!C17","v":1362204171.6896944},{"$f":"Evidence!$D$203*Results!D17","v":1357781433.3742929},{"$f":"C55-D55","v":4422738.3154015541},{"$f":"E55*100/C55","v":0.32467514101909822},"(N.B. positive difference = "]
[null,"Q1",{"$f":"IF(OR(Calculations!$E$2=\"Orkney Health Board\",Calculations!$E$2=\"Orkney Islands Local Authority\",Calculations!$E$2=\"Shetland Health Board\",Calculations!$E$2=\"Western Isles Health Board\",Calculations!$E$2=\"Shetland Islands Local Authority\",Calculations!$E$2=\"Eilean Siar Local Authority\"),\"N/A\", Evidence!$D$203*Results!C18)","v":725254190.2347523},{"$f":"IF(OR(Calculations!$E$2=\"Orkney Health Board\",Calculations!$E$2=\"Orkney Islands Local Authority\",Calculations!$E$2=\"Shetland Health Board\",Calculations!$E$2=\"Western Isles Health Board\",Calculations!$E$2=\"Shetland Islands Local Authority\",Calculations!$E$2=\"Eilean Siar Local Authority\"),\"N/A\", Evidence!$D$203*Results!D18)","v":722904673.19804096},{"$f":"IF(OR(Calculations!$E$2=\"Orkney Health Board\",Calculations!$E$2=\"Orkney Islands Local Authority\",Calculations!$E$2=\"Shetland Health Board\",Calculations!$E$2=\"Western Isles Health Board\",Calculations!$E$2=\"Shetland Islands Local Authority\",Calculations!$E$2=\"Eilean Siar Local Authority\"),\"N/A\", C56-D56)","v":2349517.0367113352},{"$f":"IF(OR(Calculations!$E$2=\"Orkney Health Board\",Calculations!$E$2=\"Orkney Islands Local Authority\",Calculations!$E$2=\"Shetland Health Board\",Calculations!$E$2=\"Western Isles Health Board\",Calculations!$E$2=\"Shetland Islands Local Authority\",Calculations!$E$2=\"Eilean Siar Local Authority\"),\"N/A\", E56*100/C56)","v":0.32395773348801155},"money saved)"]
[null,"Premature deaths (<75 years)",null,null,"Savings not estimated"]
[null,"Years of life lost",null,null,"Savings not estimated"]
[null,"Inequalities",null,null,"Savings not estimated"]

{"sheet":"Evidence","index":4,"n_rows":225,"n_cols":15,"rows_kept":225,"cut":false,"hidden":false,"merged":[]}
[]
[null,"The interventions"]
[]
[null,"The interventions modelled in this spreadsheet tool are low-intensity psychosocial interventions recommended by NICE for the treatment of persistent subthreshold "]
[null,"depressive symptoms, mild depression or moderate depression:"]
[null,"• Computerised cognitive behavioural therapy (CCBT) "]
[null,"• Individual guided self-help "]
[null,"• Structured group physical activity programmes"]
[]
[null,"The details of these interventions are as follows:"]
[]
[null,"Computerised cognitive behavioural therapy (CCBT) should:"]
[null,"• be provided via a stand-alone computer-based or web-based programme "]
[null,"• include an explanation of the CBT model, encourage tasks between sessions, and use thought-challenging and active monitoring of behaviour, "]
[null,"    thought patterns and outcomes "]
[null,"• be supported by a trained practitioner, who typically provides limited facilitation of the programme and reviews progress and outcome"]
[null,"• typically take place over 9 to 12 weeks, including follow-up."]
[]
[null,"Individual guided self-help* based on the principles of cognitive behavioural therapy (CBT) with frequent, minimum duration support (minimal support) (and including "]
[null,"behavioural activation and problem-solving techniques) should:"]
[null,"• include the provision of written materials of an appropriate reading age (or alternative media to support access)"]
[null,"• be supported by a trained practitioner, who typically facilitates the self help programme and reviews progress and outcome"]
[null,"• consist of up to six to eight sessions (face-to-face and via telephone) normally taking place over 9 to 12 weeks, including follow-up."]
[null,"     * Guided self-help: a self-administered intervention, which makes use of a range of books or other self-help manuals derived from an evidence-based intervention "]
[null,"        and designed specifically for the purpose."]
[null,"Structured group physical activity programme should: "]
[null,"• be delivered in groups with support from a competent practitioner"]
[null,"• consist typically of three sessions per week of moderate duration (45 minutes to 1 hour) over 10 to 14 weeks (average 12 weeks). "]
[]
[]
[null,"Exposure Rate Ratios (ERR) for depression"]
[]
[null,"Outcome","ERR relative to non-depressed","Source","Quoted/calculated?"]
[null,"All-cause hospitalisation",1.36,"Prina et al. 2015","Quoted"]
[null,"All-cause mortality",1.33,"Cuijpers et al. 2013","Quoted"]
[]
[null,"Hospitalisation"]
[null,"ERR chosen comes from a meta-analysis (n = 7) (Prina et al., 2015). The majority of the participants were >50 years and included both sexes. "]
[null,"The papers included in the meta-analysis refer to individuals with a range of depressive symptoms, meaning some will have more severe symptoms than those required "]
[null,"for the Triple I mental health interventions.  However this is the case with a lot of the evidence identified for the effectiveness of these interventions, further the level of "]
[null,"depression is not always clear from the evidence available. The only other ERR identified was from a single study of males only aged 69+ years in Australia (Prina et al., "]
[null,"2013), thus the meta-analysis was considered to be the most appropriate evidence to use."]
[]
[null,"Mortality"]
[null,"ERR chosen comes from a meta-analysis (n=22) (Cuijpers et al 2013). "]
[null,"This meta-analysis takes into consideration the severity of depression and the ERR identified is for a comparison of mortality for those with subthreshold depression "]
[null,"vs no depression.  Other evidence identified includes individuals with a range of levels of depression most likely more severe than those for the Triple I mental "]
[null,"health interventions, thus the evidence from the meta-analysis was  considered to be the most appropriate evidence to use."]
[]
[]
[null,"Intervention Rate Ratios (IRR) for successful depression interventions"]
[]
[null,"The intervention effects were published as the improvement in depression scores, converted to Standardised Mean Difference (SMD, units = standard deviations) to   "]
[null,"aid comparisons between depression scales. SMDs were identified for the three interventions from NICE 2009. Those chosen were considered to be the most robust"]
[null,"and appropriate for the specifics of the Triple I mental health interventions. "]
[]
[null,"Computerised CBT","SMD = -0.40 (n = 7) for non-active control (includes waitlist control, treatment as usual, information, discussion)."]
[null,"Individual guided self-help","SMD = -0.98 (n = 5) for waitlist control."]
[null,"Group physical activity","SMD = -0.71 (n =6) for no physical activity control. Other evidence identified bar one paper did not distinguish between individual and "]
[null,null,"group physical activity interventions."]
[]
[null,"For Triple I we needed to convert these effect sizes to effects on all-cause mortality and hospitalisation."]
[null,"This required evidence about the change in all-cause mortality or hospitalisation risk for a unit change in depression score (i.e., an analysis that measured depression "]
[null,"on a continuous rather than categorical scale).  The available evidence was limited, as detailed below:"]
[]
[null,"Hospitalisation"]
[null,"Only Laudisio et al 2010 (from Prina et al 2015) was identified to provide data on the hospitalisation RR for a unit increase in depression scale score (Geriatric "]
[null,"Depression Scale, GDS). This study has limitations as it involved a very specific population group; 344 individuals aged 75+ years from a small Italian town. "]
[null,"The GDS score for hospitalised patients averaged 13 (SD 6) and for non-hospitalised participants 10 (SD 7). "]
[null,"No whole population mean or SD was available so assumed that the SD = 6. "]
[null,"A 1 unit increase in GDS score was associated with a hospitalisation RR of 1.05 (1.01-1.09)."]
[]
[null,"Mortality"]
[null,"Only Wulsin et al 2005 (from Cuijpers et al 2014) was identified to provide data on the mortality RR for a unit increase in depression scale score (Center for "]
[null,"Epidemiologic Studies Depression Scale, CES-D). This paper analysed the Framingham Heart Study US data, from 3634 individuals, aged 30-91 years, over a 6 year "]
[null,"follow-up period 1983-1994. The CES-D score for the total sample was 8.1 (SD 7.7), and HR for a 1 unit increase in CES-D continuous score was 1.02 (1.00-1.05)."]
[]
[null,"We converted the SMDs into IRRs using the Laudisio et al 2010 and the Wulsin et al 2005 RRs."]
[null,"Equation used to convert SMD to IRR ="]
[null,"IRR for intervention = "," e((SMD x SD)) x ln(RR)) "]
[]
[null,null,null,"IRR relative to "]
[null,"Intervention","Outcome","untreated","Sources","Quoted/calculated?"]
[null,"Computerised CBT (CCBT)","mortality",0.94099999999999995,"NICE 2009, Wulsin et al 2005","Calculated"]
[null,"Individual guided self-help","mortality",0.86099999999999999,"NICE 2009, Wulsin et al 2005","Calculated"]
[null,"Group physical activity","mortality",0.89800000000000002,"NICE 2009, Wulsin et al 2005","Calculated"]
[null,"Computerised CBT (CCBT)","hospitalisation",0.88900000000000001,"NICE 2009,  Laudisio et al 2010","Calculated"]
[null,"Individual guided self-help","hospitalisation",0.751,"NICE 2009,  Laudisio et al 2010","Calculated"]
[null,"Group physical activity","hospitalisation",0.81200000000000006,"NICE 2009,  Laudisio et al 2010","Calculated"]
[]
[]
[null,"Proportion who seek help"]
[]
[null,"Studies report a range of values for the proportion of people with mild/moderate depression seeking help/treatment. "]
[null,"A mid-range representative value of 26% was selected from these studies."]
[]
[null,"Outcome","%","Sources"]
[null,"Use of medication and/or services",26,"Andrews et al 2001, van Zoonen et al 2015, Hengartner et al 2016, \nBeekman et al 1997, Rokke & Klenow 1998, Olfson & Klerman 1992\n"]
[]
[]
[null,"Change in intervention effect over time"]
[]
[null,"Intervention","Drop-out rate (%)","Source","Quoted/calculated?"]
[null,"Computerised CBT (CCBT)",32.03,"NICE 2009","Quoted"]
[null,"Individual guided self-help",11.11,"NICE 2009","Quoted"]
[null,"Group physical activity",17.850000000000001,"NICE 2009","Quoted"]
[]
[]
[null,"Relapse rate (to previous level of depression)"]
[]
[null,"No evidence of relapse was identified for any of the specific NICE interventions being modelled. "]
[null,"Evidence was however identified for more intensive CBT and there is evidence which has suggested equivalence of high and low intensity intervention "]
[null,"outcomes in the short-term. All the NICE interventions have a CBT element so it is assumed that what has been found for more intensive CBT is suitable for "]
[null,"these interventions. The trajectory of relapse over time was estimated using the following evidence."]
[]
[null,"Intervention","Year of follow up","Proportion relapsed","Sources","Quoted/calculated?"]
[null,"Various CBT treatments",1,0.09,"Thase et al 1992","Quoted"]
[null,null,2,0.25,"Fava et al 1998a","Quoted"]
[null,null,4,0.35,"Fava et al 1998b","Quoted"]
[null,null,6,0.45,"Fava et al 1998b, 2004","Quoted"]
[null,null,10,0.84,"Bockting et al 2015","Quoted"]
[]
[null,"Linear regression of these 5 relapse rates gives a proportional relapse rate of:",null,null,null,8.3400000000000002E-2,"per year "]
[null,"Extrapolating gives 100% relapse after 12 years of follow up.  "]
[null,"We assume 100% relapse maintained for the remainder of the follow-up period."]
[null,"The IRRs for each year of follow up were calculated as per the table below."]
[]
[null,null,null,"Computerised CBT (CCBT)",null,null,null,"Individual guided self-help",null,null,null,"Group physical activity"]
[null,null,null,null,null,"IRR",null,null,null,"IRR",null,null,null,"IRR"]
[null,"year","proportion of completers who have relapsed","successful proportion","unsuccessful proportion","mortality","hospitalisation","successful proportion","unsuccessful proportion","mortality","hospitalisation","successful proportion","unsuccessful proportion","mortality","hospitalisation"]
[null,"1 (intervention)",0,{"$f":"1-C104/100","v":0.67969999999999997},{"$f":"1-D131","v":0.32030000000000003},{"$f":"(E131*1)+(D131*D$84)","v":0.95989769999999996},{"$f":"(E131*1)+(D131*D$87)","v":0.92455330000000002},{"$f":"1-C105/100","v":0.88890000000000002},{"$f":"1-H131","v":0.11109999999999998},{"$f":"(I131*1)+(H131*D$85)","v":0.87644290000000002},{"$f":"(I131*1)+(H131*D$88)","v":0.77866389999999996},{"$f":"1-C106/100","v":0.82150000000000001},{"$f":"1-L131","v":0.17849999999999999},{"$f":"(M131*1)+(L131*D$86)","v":0.91620699999999999},{"$f":"(M131*1)+(L131*D$89)","v":0.84555800000000003}]
[null,2,{"$f":"C131+F$123","v":8.3400000000000002E-2},{"$f":"(1-$C132)*D$131","v":0.62301301999999992},{"$f":"1-D132","v":0.37698698000000008},0.96324223182000002,0.93084555477999997,{"$f":"(1-$C132)*H$131","v":0.81476574000000002},{"$f":"1-H132","v":0.18523425999999998},0.88674756213999995,0.79712333073999997,{"$f":"(1-$C132)*L$131","v":0.75298690000000001},0.24701309999999999,0.92319533620000005,0.85843846280000002]
[null,3,0.1668,{"$f":"(1-$C133)*D$131","v":0.56632603999999998},0.43367396000000002,0.96658676363999996,0.93713780956000003,{"$f":"(1-$C133)*H$131","v":0.74063148000000001},{"$f":"1-H133","v":0.25936851999999999},0.89705222427999998,0.81558276147999997,{"$f":"(1-$C133)*L$131","v":0.68447379999999991},{"$f":"1-L133","v":0.31552620000000009},0.93018367239999999,0.87131892560000002]
[null,4,0.25019999999999998,{"$f":"(1-$C134)*D$131","v":0.50963906000000003},0.49036093999999997,0.9699312954599999,0.94343006433999999,0.66649722,0.33350278,0.90735688642000001,0.83404219221999998,0.61596070000000003,0.38403929999999997,0.93717200860000005,0.88419938840000001]
[null,5,0.33360000000000001,0.45295207999999998,0.54704792000000002,0.97327582727999995,0.94972231911999994,0.59236295999999999,0.40763704000000001,0.91766154856000004,0.85250162295999998,0.54744760000000003,0.45255239999999997,0.9441603448,0.8970798512]
[null,6,0.41700000000000004,0.39626509999999998,0.60373490000000007,0.9766203591,0.95601457390000011,0.51822869999999999,0.48177130000000001,0.92796621069999996,0.87096105369999999,0.47893449999999999,0.52106549999999996,0.95114868099999994,0.90996031399999999]
[null,7,0.50040000000000007,0.33957811999999993,0.66042188000000013,0.97996489092000005,0.96230682868000006,0.44409443999999998,0.55590556000000002,0.93827087283999999,0.88942048443999999,0.41042139999999994,0.58957860000000006,0.9581370172,0.92284077679999998]
[null,8,0.5838000000000001,0.28289113999999993,0.71710886000000007,0.98330942273999999,0.96859908346000001,0.36996017999999992,0.63003982000000014,0.94857553498000002,0.90787991518000011,0.34190829999999994,0.65809170000000006,0.96512535339999994,0.93572123960000009]
[null,9,0.66720000000000013,0.2262041599999999,0.77379584000000012,0.98665395456000005,0.97489133824000007,0.29582591999999991,0.70417408000000004,0.95888019711999994,0.92633934592,0.27339519999999989,0.72660480000000005,0.9721136896,0.94860170239999997]
[null,10,0.75060000000000016,0.16951717999999988,0.83048282000000007,0.98999848637999999,0.98118359301999991,0.22169165999999987,0.77830834000000015,0.96918485926000009,0.94479877666000012,0.20488209999999987,0.79511790000000016,0.97910202580000005,0.96148216520000007]
[null,11,0.83400000000000019,0.11283019999999987,0.88716980000000012,0.99334301820000004,0.98747584779999997,0.14755739999999984,0.85244260000000016,0.97948952140000001,0.96325820740000001,0.13636899999999985,0.86363100000000015,0.986090362,0.97436262800000006]
[null,12,0.91740000000000022,5.6143219999999848E-2,0.94385678000000017,0.99668755001999998,0.99376810258000003,7.3423139999999817E-2,0.92657686000000017,0.98979418354000004,0.98171763814000002,6.785589999999983E-2,0.93214410000000014,0.99307869819999994,0.98724309080000006]
[null,13,1,0,1,1,1,0,1,1,1,0,1,1,1]
[null,14,1,0,1,1,1,0,1,1,1,0,1,1,1]
[null,15,1,0,1,1,1,0,1,1,1,0,1,1,1]
[null,16,1,0,1,1,1,0,1,1,1,0,1,1,1]
[null,17,1,0,1,1,1,0,1,1,1,0,1,1,1]
[null,18,1,0,1,1,1,0,1,1,1,0,1,1,1]
[null,19,1,0,1,1,1,0,1,1,1,0,1,1,1]
[null,20,1,0,1,1,1,0,1,1,1,0,1,1,1]
[null,21,1,0,1,1,1,0,1,1,1,0,1,1,1]
[]
[]
[null,"Prevalence of depression"]
[]
[null,"The low-intensity psychosocial interventions modelled here are recommended for the treatment of persistent subthreshold depression, mild depression and "]
[null,"moderate depression. The severity of depression is defined with reference to the DSM-IV symptoms (see https://www.nice.org.uk/guidance/cg90/chapter/1-Guidance)."]
[null,"In Scotland the prevalence of depression in the population is not routinely determined. "]
[null,"Data on symptoms of depression are collected in the Scottish Health Survey from the depression section of the Revised Clinical Interview Schedule (CIS-R), in a biological "]
[null,"module with the CIS-R completed by CASI (computer assisted self-interview). We estimated the prevalence of persistent subthreshold, mild and moderate depression "]
[null,"using these data. The prevalence figures are the proportion of the population with scores that indicate they have had depressive symptoms for more than 2 weeks, "]
[null,"with 1 or 2 symptoms on the CIS-R depression scale. Those with 3 or more depression symptoms were excluded as they were presumed to have more severe depression"]
[null,"(we cross-checked our figures with the Adult Psychiatric Morbidity Survey 2000, which indicated our definition using the CIS-R matched the NICE definition well)."]
[null,"The figures are weighted proportions from the Scottish Health Survey's biological sample (2013-2016 combined)."]
[null,"This relatively small sample is not designed to be representative for Local Authorities or Health Boards, so national figures have been used."]
[null,"National prevalence by sex was used to produce scaling factors for the prevalence figures by SIMD quintile and age group, so that prevalence figures by sex, age "]
[null,"group and SIMD could be estimated."]
[]
[null,"Geography","Age group","Both sexes","Females","Males"]
[null,"SCOTLAND","All",0.11348900000000001,0.12430426716141002,0.1018472291562656]
[null,"Scaling factor",null,null,{"$f":"E170/D170","v":1.0952979333804158},{"$f":"F170/D170","v":0.89741939004014126}]
[]
[]
[null,null,null,"SHeS figures","Our estimates (proportions)"]
[null,"SIMD 2016 quintile ","Age group","Both sexes","Females","Males"]
[null,"Q1 (most deprived)","16-54",0.18382647154471543,{"$f":"D176*E$171","v":0.20134475438354063},{"$f":"D176*F$171","v":0.1649694399668899}]
[null,null,"55+",0.12304769555472543,{"$f":"D177*E$171","v":0.13477388664831333},{"$f":"D177*F$171","v":0.1104253878905667}]
[null,"Q2","16-54",0.11292791709140333,0.12368971421116901,0.10134370247467082]
[null,null,"55+",0.14760281490302826,0.1616690581244189,0.1324616281184835]
[null,"Q3","16-54",0.13579496243169401,0.14873594171490565,0.12186503235597473]
[null,null,"55+",9.1585119464797707E-2,0.10031299207819142,8.219026204685223E-2]
[null,"Q4","16-54",0.1091757122413034,0.11957993199323458,9.7976401086788484E-2]
[null,null,"55+",5.6953771518987339E-2,6.2381348242967219E-2,5.1111418897055186E-2]
[null,"Q5 (least deprived)","16-54",8.0123747511679874E-2,8.7759375064237199E-2,7.1904604619662041E-2]
[null,null,"55+",6.7118190811724918E-2,7.351441568831471E-2,6.0233165858855992E-2]
[]
[]
[null,"Intervention costs"]
[]
[null,"Cost of one intervention:"]
[null,"Computerised CBT",null,34]
[null,"Group physical activity",null,256]
[null,"Individual guided self-help",null,140]
[]
[null,"The staffing times were taken from NICE (2009) and costed for 2015/16 using PSSRU (2016).  Software costs for Computerised CBT were adjusted using the Hospital and Community Health Service (HCHS) inflation index for financial year 2015/16.  "]
[null,"Source: NICE (2009) and Personal Social Services Research Unit (2016) "]
[]
[]
[null,"Hospitalisation costs"]
[]
[null,"The cost of a continuous inpatient stay was estimated to be £2,113 in 2006/07 (Geue et al 2012; based on healthcare resource groups and the English tariff)."]
[null,"This was inflated to £2,512 for 2015/16 using the Hospital and Community Health Service (HCHS) inflation index."]
[null,"Cost of continuous Inpatient stay ",null,2512]
[]
[null,"References"]
[]
[null,"Andrews et al 2001","Shortfall in mental health service utilisation. Br. J. Psychiatry 179: 417-425.  https://doi.org/10.1192/bjp.179.5.417 "]
[null,"Beekman et al 1997","Consequences of major and minor depression in later life: a study of disability, well-being and service utilization. Psychol Med 27:1397–409. https://www.ncbi.nlm.nih.gov/pubmed/9403911"]
[null,"Bockting et al 2015","Enduring effects of preventive cognitive therapy in adults remitted from recurrent depression : a 10 year follow-up of a RCT Journal of Affective Disorders 185:188-194. http://www.jad-journal.com/article/S0165-0327(15)00409-7/pdf"]
[null,"Cuijpers et al 2013","Differential mortality rates in major and subthreshold depression: meta-analysis of studies that measured both. The British Journal of Psychiatry (2013) 202, 22–27. https://doi.org/10.1192/bjp.bp.112.112169"]
[null,"Cuijpers et al 2014   ","Is excess mortality higher in depressed men than in depressed women? A meta-analytic comparison. Journal of affective disorders 161, 47-54. http://ac.els-cdn.com/S0165032714001050/1-s2.0-S0165032714001050-main.pdf?_tid=7df8cc96-5696-11e7-9610-00000aacb35e&acdnat=1498059181_00b8c525f9488647e19f356a65e93ce3"]
[null,"Fava et al 1998a","Prevention of recurrent depression with cognitive behavioral therapy: preliminary findings. Arch Gen Psychiatry 55(9):816-20\n. https://archpsyc.jamanetwork.com/journals/PSYCH/articlepdf/204267/yoa7418.pdf "]
[null,"Fava et al 1998b","Six-year outcomes for CBT of residual symptoms in major depression Am J Psychiatry 155 1443 . https://doi-org.knowledge.idm.oclc.org/10.1176/ajp.155.10.1443"]
[null,"Fava et al 2004","Six-Year Outcome of Cognitive Behavior Therapy for Prevention of Recurrent Depression Am J Psychiatry 161:1872–1876 . https://ajp.psychiatryonline.org/doi/pdfplus/10.1176/ajp.161.10.1872"]
[null,"Geue et al 2012","Spoilt for choice: implications of using alternative methods of costing hospital episode statistics. Health Economics 21: 1201-1216. https://onlinelibrary.wiley.com/doi/abs/10.1002/hec.1785"]
[null,"Hengartner et al 2016","Treated versus non-treated subjects with depression from a 30-year cohort study: prevalence and clinical covariates. European archives of psychiatry and clinical neuroscience 266(2):173-80 . https://dx.doi.org/10.1007/s00406-015-0646-5"]
[null,"Laudisio et al 2010","Depressive symptoms are associated with hospitalisation, but not with mortality in the elderly: A population-based study Aging and Mental Health 14;955-961. https://doi.org/10.1080/13607863.2010.501058"]
[null,"NICE 2009","Depression in adults: recognition and management CG90. https://www.nice.org.uk/guidance/cg90/chapter/1-Guidance#stepped-care"]
[null,"Olfsen & Klerman 1992","Depressive symptoms and mental health service utilization in a community sample Social Psychiatry and Psychiatric Epidemiology 27:161-167. https://link.springer.com/article/10.1007%2FBF00789000"]
[null,"Personal Social Services Research Unit 2016 ","Unit costs of health and social care 2016. https://www.pssru.ac.uk/project-pages/unit-costs/unit-costs-2016/"]
[null,"Prina et al 2015","The association between depressive symptoms in the community, non-psychiatric hospital admission and hospital outcomes: A systematic review. Journal of Psychosomatic Research 78 (2015) 25–33. https://doi.org/10.1016/j.jpsychores.2014.11.002 "]
[null,"Rokke & Klenow 1998","Prevalence of depressive symptoms among rural elderly: examining the need for mental health services. Psychotherapy 35:545–58. http://psycnet.apa.org/record/1999-13757-013"]
[null,"Thase et al 1992","Relapse after cognitive behavior therapy of depression: potential implications for longer courses of treatment. Am J Psychiatry 149:1046–52. https://www.ncbi.nlm.nih.gov/pubmed/1636804"]
[null,"van Zoonen et al 2015","Reasons and determinants of help-seeking in people with a subclinical depression. Journal of affective disorders 173(h3v, 7906073):105-12 . https://dx.doi.org/10.1016/j.jad.2014.10.062"]
[null,"Wulsin et al 2005","Depressive symptoms, coronary heart disease, and overall mortality in the Framingham Heart Study. Psychosom Med 2005; 67: 697-702. https://www.ncbi.nlm.nih.gov/pubmed/16204426"]

{"sheet":"SHEETS TO BE HIDDEN ->","index":5,"n_rows":0,"n_cols":0,"rows_kept":0,"cut":false,"hidden":true,"merged":[]}

{"sheet":"Calculations","index":6,"n_rows":249,"n_cols":43,"rows_kept":249,"cut":false,"hidden":true,"merged":[]}
["Calculating the deaths, years of life lost, hospital stays, and premature deaths for each group ",null,null,null,null,null,null,null,null,null,"COUNTS",null,null,null,null,null,null,null,null,null,null,null,null,null,null,null,null,null,null,null,null,null,null,null,null,"EUROPEAN AGE-STANDARDISED RATE (EASR) PER 100000"]
["AREA:",{"$f":"Options!B11","v":"Scotland"},"EQUIVALENT AREA:",null,{"$f":"VLOOKUP(B2,Lists!D2:E85,2)","v":"Scotland"},null,null,null,null,null,"CUMULATIVE INCIDENCE (DEATHS)",null,"YEARS OF LIFE LOST",null,"HOSPITALISATIONS",null,"PREMATURE MORTALITY",null,"AGE STANDARDISED RATE (ASR)",null,null,null,null,null,null,null,"ASR*EUROPEAN STANDARD POPULATION (ESP2013)",null,null,null,null,null,null,null,null,"CUMULATIVE INCIDENCE (DEATHS)",null,"YEARS OF LIFE LOST",null,"HOSPITALISATIONS",null,"PREMATURE MORTALITY"]
["SIMD","group","mean age (2016)","life exp (2014-16)","sex","SIMD","prevalence exposure","population (2016)","no. treated at base","additional no. treated under policy","Baseline","Policy","Baseline","Policy","Baseline","Policy","Baseline","Policy","CI_BASE","CI_POLICY","YLL_BASE","YLL_POLICY","HOSP_BASE","HOSP_POLICY","PREM_BASE","PREM_POLICY","CI_BASE","CI_POLICY","YLL_BASE","YLL_POLICY","HOSP_BASE","HOSP_POLICY","PREM_BASE","PREM_POLICY","ESP2013","Baseline","Policy","Baseline","Policy","Baseline","Policy","Baseline","Policy"]
[]
["All quintiles","16+ Males and Females","N/A",null,"BOTH","ALL",null,{"$f":"SUM(H7:H11)","v":4488783},{"$f":"SUM(I7:I11)","v":0},{"$f":"SUM(J7:J11)","v":132937},{"$f":"SUMIF(K7:K11,\">0\")","v":44518.561004858093},44450.606188077698,595628.52711818821,594705.44398298149,1143855.727350824,1140104.5972983593,21623.7466766574,21590.018598825402,null,null,null,null,null,null,null,null,{"$f":"SUMIF(AA7:AA11,\">0\")","v":906419310.73494112},{"$f":"SUMIF(AB7:AB11,\">0\")","v":905041024.28401613},11486569095.420864,11468796789.765614,21939692318.814999,21867726572.467453,415428654.95648593,414781338.09880018,{"$f":"SUM(AI7:AI11)","v":1000000},{"$f":"AA5/$AI5","v":906.41931073494118},{"$f":"AB5/$AI5","v":905.04102428401609},{"$f":"AC5/$AI5","v":11486.569095420864},11468.796789765614,21939.692318814999,21867.726572467454,415.4286549564859,414.78133809880018]
["Q1 and Q2","16+ Males and Females","N/A",null,"BOTH","Q1&2",null,{"$f":"SUM(H7:H8)","v":1769266},0,52401,23413.444543293299,23378.309102901199,318030.56413150555,317543.57341986196,542278.73076819046,540518.08653435227,11405.273384117902,11387.679739159001,null,null,null,null,null,null,null,null,{"$f":"SUMIF(AA7:AA8,\">0\")","v":502692688.63729012},{"$f":"SUMIF(AB7:AB8,\">0\")","v":501941237.0402118},6391992009.23736,6382219052.3389997,10787710810.292,10752652376.824772,231433968.79734197,231077141.95112997,{"$f":"SUM(AI7:AI8)","v":400000},{"$f":"AA6/$AI6","v":1256.7317215932253},1254.8530926005294,15979.9800230934,15955.547630847499,26969.27702573,26881.630942061929,578.5849219933549,577.69285487782497]
["SIMD Q1 (most deprived)","16+ Males and Females","N/A",null,"BOTH",1,null,{"$f":"H12+H17","v":872234},0,25835,12908.105508324999,12888.807970354301,{"$f":"M12+M17","v":179585.23108423798},179311.15629535588,288715.84006160521,287780.52276992076,6424.0584152650008,6414.1677085018,null,null,null,null,null,null,null,null,{"$f":"AA12+AA17","v":294386748.67596108},{"$f":"AB12+AB17","v":293948710.47146833},3751833235.1637716,3746118098.1586123,5950449632.4840012,5931141404.7123423,135943824.55135337,135734624.3066715,{"$f":"AI12+AI17","v":200000},{"$f":"AA7/$AI7","v":1471.9337433798055},1469.7435523573417,{"$f":"AC7/$AI7","v":18759.166175818857},{"$f":"AD7/$AI7","v":18730.59049079306},{"$f":"AE7/$AI7","v":29752.248162420005},{"$f":"AF7/$AI7","v":29655.70702356171},{"$f":"AG7/$AI7","v":679.71912275676686},{"$f":"AH7/$AI7","v":678.67312153335752}]
["SIMD Q2",null,"N/A",null,"BOTH",2,null,{"$f":"H13+H18","v":897032},0,26566,{"$f":"K13+K18","v":10505.3390349683},10489.5011325469,138445.3330472676,138232.41712450609,253562.89070658525,252737.56376443148,4981.2149688529007,4973.5120306572007,null,null,null,null,null,null,null,null,{"$f":"AA13+AA18","v":208305939.96132904},{"$f":"AB13+AB18","v":207992526.56874347},2640158774.0735884,2636100954.1803875,4837261177.8079996,4821510972.1124296,95490144.245988607,95342517.644458458,{"$f":"AI13+AI18","v":200000},1041.5296998066451,1039.9626328437173,13200.793870367941,13180.504770901938,24186.305889039999,24107.554860562148,477.45072122994304,476.71258822229231]
["SIMD Q3",null,"N/A",null,"BOTH",3,null,907978,0,26889,8991.4381150119989,8977.601249568801,117522.0118605537,117338.94238847069,227312.98226707341,226566.2931894467,4322.2238217759004,4315.4495761839007,null,null,null,null,null,null,null,null,{"$f":"AA14+AA19","v":169264001.01344553},{"$f":"AB14+AB19","v":169003999.33624586},2139859136.7585518,2136527623.4773502,4182172524.5570002,4168432109.8917465,77329958.938747182,77208775.292561144,{"$f":"AI14+AI19","v":200000},846.32000506722761,845.01999668122937,10699.29568379276,10682.63811738675,20910.862622785,20842.160549458731,386.64979469373588,386.04387646280571]
["SIMD Q4",null,"N/A",null,"BOTH",4,null,910792,0,26971,7032.6347383996981,7021.6321662491,93242.001803584906,93094.834883175907,200119.05611311671,199454.48351943173,3452.1238383879995,3446.6478562132997,null,null,null,null,null,null,null,null,{"$f":"AA15+AA20","v":134837886.25842565},{"$f":"AB15+AB20","v":134627350.53035355},1700851914.9086943,1698169267.6758671,3688824590.757,3676572560.9208941,61419813.496500328,61322402.837548256,{"$f":"AI15+AI20","v":200000},674.18943129212823,673.13675265176778,8504.2595745434719,8490.8463383793351,18444.122953785001,18382.862804604472,307.09906748250165,306.61201418774129]
["SIMD Q5 (least deprived)",null,"N/A",null,"BOTH",5,null,900747,0,26676,5081.0436081531006,5073.0636693586002,66833.949322543995,66728.093291473007,174144.95820244367,173565.73405512859,2444.1256323755997,2440.2414272691999,null,null,null,null,null,null,null,null,{"$f":"AA16+AA21","v":99624734.825779796},{"$f":"AB16+AB21","v":99468437.377204925},1253866034.5162573,1251880846.273396,3280984393.2090006,3270069524.8300419,45244913.723896451,45173018.017560869,{"$f":"AI16+AI21","v":200000},{"$f":"AA11/$AI11","v":498.12367412889898},497.34218688602465,6269.3301725812862,6259.4042313669797,16404.921966045004,16350.34762415021,226.22456861948226,225.86509008780436]
["SIMD Q1 (most deprived)","16+ Females","N/A",null,"female",1,null,{"$f":"SUM(H60:H78)","v":457633},{"$f":"SUM(I60:I78)","v":0},{"$f":"SUM(J60:J78)","v":13554},{"$f":"SUMIF(K60:K78,\">0\")","v":6430.4053067359991},6420.8537545141999,82577.727935079587,82452.300230251596,155037.8908593776,154538.18096707019,2638.8524404353002,2634.7973015395,null,null,null,null,null,null,null,null,{"$f":"SUMIF(AA60:AA78,\">0\")","v":124100910.57610904},{"$f":"SUMIF(AB60:AB78,\">0\")","v":123916480.92817897},{"$f":"SUMIF(AC60:AC78,\">0\")","v":1590245886.0345359},1587829553.3871305,2906076588.3480005,2896703814.9242182,53081539.346239142,52999985.171654858,{"$f":"SUM(AI60:AI78)","v":100000},1241.0091057610903,1239.1648092817898,15902.458860345359,15878.295533871305,29060.765883480006,28967.03814924218,530.8153934623914,529.99985171654862]
["SIMD Q2",null,"N/A",null,"female",2,null,{"$f":"SUM(H98:H116)","v":469079},{"$f":"SUM(I98:I116)","v":0},{"$f":"SUM(J98:J116)","v":13891},{"$f":"SUMIF(K98:K116,\">0\")","v":5241.7116966696994},5233.8659577615999,64042.637988230294,63944.733072719901,134904.85907071829,134467.62703707468,2052.7139598926001,2049.5502578177002,null,null,null,null,null,null,null,null,{"$f":"SUMIF(AA98:AA116,\">0\")","v":87759868.673599407},{"$f":"SUMIF(AB98:AB116,\">0\")","v":87628314.490724087},1118653146.8309224,1116941077.0680604,2362418359.7929997,2354760379.441021,37261292.296373129,37203871.862122253,{"$f":"SUM(AI98:AI116)","v":100000},877.59868673599408,876.28314490724085,11186.531468309224,11169.410770680604,23624.183597929998,23547.60379441021,372.61292296373131,372.03871862122253]
["SIMD Q3",null,"N/A",null,"female",3,null,{"$f":"SUM(H136:H154)","v":469093},{"$f":"SUM(I136:I154)","v":0},{"$f":"SUM(J136:J154)","v":13891},{"$f":"SUMIF(K136:K154,\">0\")","v":4356.7543368239003},4350.0785684445009,53299.938300882,53217.183798046302,118438.08137411861,118050.53147524482,1753.2950835500001,1750.5522470658002,null,null,null,null,null,null,null,null,{"$f":"SUMIF(AA136:AA154,\">0\")","v":71291932.987431526},{"$f":"SUMIF(AB136:AB154,\">0\")","v":71182580.474172115},906527272.48783755,905119114.49750984,2042486603.9890001,2035805899.7135899,30166023.914052922,30118839.325825036,{"$f":"SUM(AI136:AI154)","v":100000},712.91932987431528,711.82580474172119,9065.2727248783758,9051.1911449750987,20424.866039889999,20358.0589971359,301.6602391405292,301.18839325825036]
["SIMD Q4",null,"N/A",null,"female",4,null,{"$f":"SUM(H174:H192)","v":468792},{"$f":"SUM(I174:I192)","v":0},{"$f":"SUM(J174:J192)","v":13881},{"$f":"SUMIF(K174:K192,\">0\")","v":3354.7508580789995},3349.5162701632999,41830.993895623003,41765.107574616603,103630.27058914659,103287.15116094722,1387.5173612625999,1385.3187217966999,null,null,null,null,null,null,null,null,{"$f":"SUMIF(AA174:AA192,\">0\")","v":56778466.850147232},{"$f":"SUMIF(AB174:AB192,\">0\")","v":56689825.876774356},720445161.97905445,719310289.78000486,1801545672.0019999,1795582422.849746,23953354.510361534,23915404.081262168,{"$f":"SUM(AI174:AI192)","v":100000},567.78466850147231,566.89825876774353,7204.4516197905441,7193.1028978000486,18015.45672002,17955.824228497459,239.53354510361532,239.15404081262167]
["SIMD Q5 (least deprived)",null,"N/A",null,"female",5,null,{"$f":"SUM(H212:H230)","v":465079},{"$f":"SUM(I212:I230)","v":0},{"$f":"SUM(J212:J230)","v":13774},{"$f":"SUMIF(K212:K230,\">0\")","v":2446.0990533376003},2442.2693477122998,30220.089791643597,30172.343734819002,90811.936485394297,90510.634100390904,993.5652770268,991.98863878659995,null,null,null,null,null,null,null,null,{"$f":"SUMIF(AA212:AA230,\">0\")","v":41940318.72992117},{"$f":"SUMIF(AB212:AB230,\">0\")","v":41874611.712182984},531034509.0518688,530195294.78721797,1602364950.7030003,1597048691.009093,17640636.16066011,17612645.355100863,{"$f":"SUM(AI212:AI230)","v":100000},419.40318729921171,418.74611712182985,5310.3450905186883,5301.9529478721797,16023.649507030002,15970.486910090931,176.40636160660111,176.12645355100864]
["SIMD Q1 (most deprived)","16+ Males","N/A",null,"male",1,null,{"$f":"SUM(H79:H97)","v":414601},{"$f":"SUM(I79:I97)","v":0},{"$f":"SUM(J79:J97)","v":12281},{"$f":"SUMIF(K79:K97,\">0\")","v":6477.7002015890002},6467.9542158401,97007.503149158394,96858.856065104294,133677.94920222761,133242.3418028506,3785.2059748297006,3779.3704069623,null,null,null,null,null,null,null,null,{"$f":"SUMIF(AA79:AA97,\">0\")","v":170285838.09985206},{"$f":"SUMIF(AB79:AB97,\">0\")","v":170032229.54328933},2161587349.1292357,2158288544.771482,3044373044.1360002,3034437589.7881241,82862285.205114231,82734639.13501665,{"$f":"SUM(AI79:AI97)","v":100000},1702.8583809985205,1700.3222954328933,21615.873491292357,21582.88544771482,30443.730441360003,30344.37589788124,828.62285205114233,827.34639135016653]
["SIMD Q2",null,"N/A",null,"male",2,null,{"$f":"SUM(H117:H135)","v":427953},{"$f":"SUM(I117:I135)","v":0},{"$f":"SUM(J117:J135)","v":12675},{"$f":"SUMIF(K117:K135,\">0\")","v":5263.6273382986001},5255.6351747853005,74402.695059037302,74287.6840517862,118658.03163586698,118269.93672735681,2928.5010089603002,2923.9617728395001,null,null,null,null,null,null,null,null,{"$f":"SUMIF(AA117:AA135,\">0\")","v":120546071.28772965},{"$f":"SUMIF(AB117:AB135,\">0\")","v":120364212.07801937},1521505627.2426662,1519159877.1123269,2474842818.0149999,2466750592.6714087,58228851.949615486,58138645.782336205,{"$f":"SUM(AI117:AI135)","v":100000},1205.4607128772966,1203.6421207801936,15215.056272426662,15191.598771123268,24748.42818015,24667.505926714086,582.28851949615489,581.38645782336209]
["SIMD Q3",null,"N/A",null,"male",3,null,{"$f":"SUM(H155:H173)","v":438885},{"$f":"SUM(I155:I173)","v":0},{"$f":"SUM(J155:J173)","v":12998},{"$f":"SUMIF(K155:K173,\">0\")","v":4634.6837781880995},4627.5226811243001,64222.073559671699,64121.758590424397,108874.90089295481,108515.76171420189,2568.9287382258999,2564.8973291181001,null,null,null,null,null,null,null,null,{"$f":"SUMIF(AA155:AA173,\">0\")","v":97972068.026014},{"$f":"SUMIF(AB155:AB173,\">0\")","v":97821418.862073749},1233331864.2707143,1231408508.9798405,2139685920.5679998,2132626210.1781566,47163935.024694264,47089935.966736101,{"$f":"SUM(AI155:AI173)","v":100000},{"$f":"AA19/$AI19","v":979.72068026014006},{"$f":"AB19/$AI19","v":978.21418862073745},{"$f":"AC19/$AI19","v":12333.318642707143},{"$f":"AD19/$AI19","v":12314.085089798406},21396.859205679997,21326.262101781565,471.63935024694263,470.89935966736101]
["SIMD Q4",null,"N/A",null,"male",4,null,{"$f":"SUM(H193:H211)","v":442000},{"$f":"SUM(I193:I211)","v":0},{"$f":"SUM(J193:J211)","v":13090},{"$f":"SUMIF(K193:K211,\">0\")","v":3677.8838803206991},3672.1158960858002,51411.007907961903,51329.727308559311,96488.785523970117,96167.332358484506,2064.6064771253996,2061.3291344166,null,null,null,null,null,null,null,null,{"$f":"SUMIF(AA193:AA211,\">0\")","v":78059419.408278406},{"$f":"SUMIF(AB193:AB211,\">0\")","v":77937524.653579175},980406752.92963994,978858977.8958621,1887278918.7550004,1880990138.0711482,37466458.986138798,37406998.756286085,{"$f":"SUM(AI193:AI211)","v":100000},780.59419408278404,779.3752465357918,9804.0675292963988,9788.5897789586215,18872.789187550003,18809.901380711482,374.66458986138798,374.06998756286083]
["SIMD Q5 (least deprived)",null,"N/A",null,"male",5,null,{"$f":"SUM(H231:H249)","v":435668},{"$f":"SUM(I231:I249)","v":0},{"$f":"SUM(J231:J249)","v":12902},{"$f":"SUMIF(K231:K249,\">0\")","v":2634.9445548155004},2630.7943216463,36613.859530900401,36555.749556654002,83333.021717049385,83055.0999547377,1450.5603553487999,1448.2527884826,null,null,null,null,null,null,null,null,{"$f":"SUMIF(AA231:AA249,\">0\")","v":57684416.095858634},{"$f":"SUMIF(AB231:AB249,\">0\")","v":57593825.665021949},722831525.46438849,721685551.48617816,1678619442.506,1673020833.8209491,27604277.563236341,27560372.662460003,{"$f":"SUM(AI231:AI249)","v":100000},{"$f":"AA21/$AI21","v":576.84416095858637},575.9382566502195,7228.3152546438851,7216.8555148617816,16786.194425059999,16730.20833820949,276.04277563236343,275.60372662460003]
[null,"Female 0-4",2.0384007,81.468401,"female","ALL",null,{"$f":"SUM(H60,H98,H136,H174,H212)","v":0},0,0,{"$f":"SUM(K60,K98,K136,K174,K212)","v":{"$error":"#VALUE!"}},{"$error":"#VALUE!"},{"$error":"#VALUE!"},{"$error":"#VALUE!"},{"$error":"#VALUE!"},{"$error":"#VALUE!"},{"$error":"#VALUE!"},{"$error":"#VALUE!"},null,null,null,null,null,null,null,null,{"$f":"SUM(AA60,AA98,AA136,AA174,AA212)","v":{"$error":"#VALUE!"}},{"$error":"#VALUE!"},{"$error":"#VALUE!"},{"$error":"#VALUE!"},{"$error":"#VALUE!"},{"$error":"#VALUE!"},{"$error":"#VALUE!"},{"$error":"#VALUE!"},25000,{"$error":"#VALUE!"},{"$error":"#VALUE!"},{"$error":"#VALUE!"},{"$error":"#VALUE!"},{"$error":"#VALUE!"},{"$error":"#VALUE!"},{"$error":"#VALUE!"},{"$error":"#VALUE!"}]
[null,"Female 5-9",6.9792794999999996,81.439279999999997,"female","ALL",null,{"$f":"SUM(H61,H99,H137,H175,H213)","v":0},0,0,{"$f":"SUM(K61,K99,K137,K175,K213)","v":{"$error":"#VALUE!"}},{"$error":"#VALUE!"},{"$f":"SUM(M61,M99,M137,M175,M213)","v":{"$error":"#VALUE!"}},{"$error":"#VALUE!"},{"$error":"#VALUE!"},{"$error":"#VALUE!"},{"$error":"#VALUE!"},{"$error":"#VALUE!"},null,null,null,null,null,null,null,null,{"$f":"SUM(AA61,AA99,AA137,AA175,AA213)","v":{"$error":"#VALUE!"}},{"$error":"#VALUE!"},{"$error":"#VALUE!"},{"$error":"#VALUE!"},{"$error":"#VALUE!"},{"$error":"#VALUE!"},{"$error":"#VALUE!"},{"$error":"#VALUE!"},27500,{"$error":"#VALUE!"},{"$error":"#VALUE!"},{"$error":"#VALUE!"},{"$error":"#VALUE!"},{"$error":"#VALUE!"},{"$error":"#VALUE!"},{"$error":"#VALUE!"},{"$error":"#VALUE!"}]
[null,"Female 10-15",12.478312000000001,81.948309999999992,"female","ALL",null,{"$f":"SUM(H62,H100,H138,H176,H214)","v":0},0,0,{"$f":"SUM(K62,K100,K138,K176,K214)","v":{"$error":"#VALUE!"}},{"$f":"SUM(L62,L100,L138,L176,L214)","v":{"$error":"#VALUE!"}},{"$error":"#VALUE!"},{"$error":"#VALUE!"},{"$f":"SUM(O62,O100,O138,O176,O214)","v":{"$error":"#VALUE!"}},{"$f":"SUM(P62,P100,P138,P176,P214)","v":{"$error":"#VALUE!"}},{"$error":"#VALUE!"},{"$error":"#VALUE!"},null,null,null,null,null,null,null,null,{"$f":"SUM(AA62,AA100,AA138,AA176,AA214)","v":{"$error":"#VALUE!"}},{"$error":"#VALUE!"},{"$error":"#VALUE!"},{"$error":"#VALUE!"},{"$error":"#VALUE!"},{"$error":"#VALUE!"},{"$error":"#VALUE!"},{"$error":"#VALUE!"},33000,{"$error":"#VALUE!"},{"$error":"#VALUE!"},{"$error":"#VALUE!"},{"$error":"#VALUE!"},{"$error":"#VALUE!"},{"$error":"#VALUE!"},{"$error":"#VALUE!"},{"$error":"#VALUE!"}]
["All quintiles","Female 16-19",17.570053000000001,81.100049999999996,"female","ALL",null,{"$f":"SUM(H63,H101,H139,H177,H215)","v":118803},0,3518,22.9375463784,22.901823393899999,1434.2847062287003,1432.0509481151003,12465.290273103001,12424.8335439967,22.9375463784,22.901823393899999,null,null,null,null,null,null,null,null,{"$f":"SUM(AA63,AA101,AA139,AA177,AA215)","v":426138.38398275786},425474.69905718567,26646431.87202647,26604931.65562173,231245008.5,230494527.15376058,426138.38398275786,425474.69905718567,22000,19.369926544670811,19.339759048053896,1211.201448728476,1209.3150752555332,10511.13675,10477.023961534573,19.369926544670811,19.339759048053896]
[null,"Female 20-24",22.077057,81.667060000000006,"female","ALL",null,{"$f":"SUM(H64,H102,H140,H178,H216)","v":182279},0,5399,51.980932559199999,51.899982475199991,3045.5629945863002,3040.8201289218996,21506.627044283003,21436.8230329461,51.980932559199999,51.899982475199991,null,null,null,null,null,null,null,null,{"$f":"SUM(AA64,AA102,AA140,AA178,AA216)","v":852528.62536265468},851200.81418571051,49949654.717583403,49871858.256743029,353188002.77999997,352041571.86328125,852528.62536265468,851200.81418571051,30000,28.417620845421823,28.373360472857016,1664.9884905861134,1662.3952752247676,11772.933426,11734.719062109374,28.417620845421823,28.373360472857016]
[null,"Female 25-29",26.975186999999998,81.645189999999999,"female","ALL",null,{"$f":"SUM(H65,H103,H141,H179,H217)","v":187975},0,5568,84.833147056200005,84.701192015200007,4552.9952570058003,4545.9132295594009,25701.254892726301,25617.942318500303,84.833147056200005,84.701192015200007,null,null,null,null,null,null,null,null,{"$f":"SUM(AA65,AA103,AA141,AA179,AA217)","v":1293011.0198005044},1290997.1549044072,69395905.311727837,69287821.17671147,399497115.36000001,398200255.17271966,1293011.0198005044,1290997.1549044072,30000,43.100367326683482,43.033238496813574,2313.1968437242613,2309.5940392237158,13316.570512,13273.341839090655,43.100367326683482,43.033238496813574]
[null,"Female 30-34",31.999904999999998,81.799899999999994,"female","ALL",null,{"$f":"SUM(H66,H104,H142,H180,H218)","v":179608},0,5318,122.85486088149999,122.6638303606,5995.3165967428995,5985.994308278101,27681.461214470404,27591.737659574101,122.85486088149999,122.6638303606,null,null,null,null,null,null,null,null,{"$f":"SUM(AA66,AA104,AA142,AA180,AA218)","v":2147398.5981573551},2144056.1986006713,104793040.85308629,104629931.7714311,491095913.10000002,489502380.59475279,2147398.5981573551,2144056.1986006713,32500,66.073803020226308,65.97095995694373,3224.4012570180398,3219.3825160440338,15110.643480000001,15061.611710607778,66.073803020226308,65.97095995694373]
[null,"Female 35-39",36.918118,81.898120000000006,"female","ALL",null,{"$f":"SUM(H67,H105,H143,H181,H219)","v":166485},0,4930,168.23574453640001,167.9739726617,7399.0083811822997,7387.4956536094996,28578.8459945453,28486.118775514904,168.23574453640001,167.9739726617,null,null,null,null,null,null,null,null,{"$f":"SUM(AA67,AA105,AA143,AA181,AA219)","v":3513039.5991184488},3507571.8005861663,154503488.59530723,154263014.804923,598519214.23000002,596576759.64801717,3513039.5991184488,3507571.8005861663,35000,100.37255997481282,100.21633715960475,4414.3853884373493,4407.5147087120858,17100.548977999999,17045.050275657632,100.37255997481282,100.21633715960475]
[null,"Female 40-44",42.077438000000001,82.30744,"female","ALL",null,{"$f":"SUM(H68,H106,H144,H182,H220)","v":172709},0,5114,265.85134539749998,265.43770194999996,10429.3488116466,10413.121578373901,33419.637561234005,33311.152558022804,265.85134539749998,265.43770194999996,null,null,null,null,null,null,null,null,{"$f":"SUM(AA68,AA106,AA144,AA182,AA220)","v":5446557.6953983391},5438085.4730827957,213668469.28359187,213336103.98520881,681457961.73000002,679246546.88133633,5446557.6953983391,5438085.4730827957,35000,155.61593415423826,155.37387065950844,6104.8134081026246,6095.3172567202519,19470.227478000001,19407.044196609608,155.61593415423826,155.37387065950844]
[null,"Female 45-49",47.025772000000003,82.585769999999997,"female","ALL",null,{"$f":"SUM(H69,H107,H145,H183,H221)","v":202829},0,6007,475.68753841080002,474.94779489740006,16439.760376102098,16414.194841758501,44462.663781813499,44318.312966915903,475.68753841080002,474.94779489740006,null,null,null,null,null,null,null,null,{"$f":"SUM(AA69,AA107,AA145,AA183,AA221)","v":8292812.2011047751},8279919.2765436703,286599573.08455539,286153993.63750976,771783001.00999999,769278037.73829627,8292812.2011047751,8279919.2765436703,35000,236.93749146013644,236.56912218696201,8188.5592309872964,8175.8283896431358,22050.942886000001,21979.372506808464,236.93749146013644,236.56912218696201]
[null,"Female 50-54",51.990825999999998,82.980829999999997,"female","ALL",null,{"$f":"SUM(H70,H108,H146,H184,H222)","v":209262},0,6198,746.89157297890006,745.73107964890005,22399.281261203603,22364.4780615948,51924.448520960301,51755.849650625998,746.89157297890006,745.73107964890005,null,null,null,null,null,null,null,null,{"$f":"SUM(AA70,AA108,AA146,AA184,AA222)","v":12641270.691155441},12621636.062916491,379111758.59283614,378522916.01340926,874448019.83000016,871609626.3839252,12641270.691155441,12621636.062916491,35000,361.17916260444116,360.61817322618549,10831.764531223889,10814.94045752598,24984.229138000006,24903.132182397861,361.17916260444116,360.61817322618549]
[null,"Female 55-59",56.953040999999999,83.473039999999997,"female","ALL",null,{"$f":"SUM(H71,H109,H147,H185,H223)","v":190084},0,5630,1032.7571420677,1031.1388325858998,26355.961232810594,26314.661976453401,53414.8733387307,53239.591866975301,1032.7571420677,1031.1388325858998,null,null,null,null,null,null,null,null,{"$f":"SUM(AA71,AA109,AA147,AA185,AA223)","v":17882530.802645229},17854521.016517185,456362168.20097607,455647358.48699862,919934892.56499994,916917312.70008779,17882530.802645229,17854521.016517185,32500,550.23171700446858,549.36987743129794,14041.912867722342,14019.918722676881,28305.689001999999,28212.840390771933,550.23171700446858,549.36987743129794]
[null,"Female 60-64",61.947387999999997,84.167389999999997,"female","ALL",null,{"$f":"SUM(H72,H110,H148,H186,H224)","v":165146},0,4890,1358.5975196403001,1356.4737918231999,28829.4420839622,28784.376575435897,52377.011972582302,52205.149301800499,1358.5975196403001,1356.4737918231999,null,null,null,null,null,null,null,null,{"$f":"SUM(AA72,AA110,AA148,AA186,AA224)","v":25201088.909590662},25161720.889047273,534767157.06369162,533931767.5890252,962839226.39999986,959681616.35820091,25201088.909590662,25161720.889047273,30000,840.03629698635541,838.72402963490913,17825.571902123054,17797.725586300839,32094.640879999995,31989.387211940029,840.03629698635541,838.72402963490913]
[null,"Female 65-69",67.063927000000007,85.193929999999995,"female","ALL",null,{"$f":"SUM(H73,H111,H149,H187,H225)","v":164057},0,4858,2067.2025217542,2063.9828370793002,35411.185399256996,35356.032191116909,58973.220499182193,58779.688265307399,2067.2025217542,2063.9828370793002,null,null,null,null,null,null,null,null,{"$f":"SUM(AA73,AA111,AA149,AA187,AA225)","v":35602205.851458259},35546806.571509637,609865893.04209745,608916903.21037948,1003826931.03,1000534845.1762576,35602205.851458259,35546806.571509637,27500,1294.6256673257549,1292.6111480548959,22176.941565167181,22142.432844013798,36502.797491999998,36383.085279136641,1294.6256673257549,1292.6111480548959]
[null,"Female 70-74",71.938164,86.248159999999999,"female","ALL",null,{"$f":"SUM(H74,H112,H150,H188,H226)","v":127150},0,3765,2428.1142505061998,2424.3543281150005,32318.190961780598,32268.1464097934,51815.942235666997,51645.941156576097,2428.1142505061998,2424.3543281150005,null,null,null,null,null,null,null,null,{"$f":"SUM(AA74,AA112,AA150,AA188,AA226)","v":48804263.849912405},48728755.839013979,649584556.62528026,648579545.3022542,1031603609.2000002,1028220593.1760032,48804263.849912405,48728755.839013979,25000,1952.1705539964962,1949.1502335605592,25983.382265011209,25943.181812090166,41264.144368000008,41128.82372704013,1952.1705539964962,1949.1502335605592]
[null,"Female 75-79",76.942824999999999,87.812830000000005,"female","ALL",null,{"$f":"SUM(H75,H113,H151,H189,H227)","v":104331},0,3089,3078.8244748380002,3074.1021039040006,30388.0129607735,30341.4031360431,48655.3933290477,48495.858478854898,0,0,null,null,null,null,null,null,null,null,{"$f":"SUM(AA75,AA113,AA151,AA189,AA227)","v":59402168.476133958},59311075.894192487,586299699.87028563,585400615.63106108,935996664.24000001,932927288.2007091,0,0,20000,2970.1084238066978,2965.5537947096245,29314.984993514281,29270.030781553054,46799.833211999998,46646.364410035458,0,0]
[null,"Female 80-84",81.856712000000002,89.736710000000002,"female","ALL",null,{"$f":"SUM(H76,H114,H152,H190,H228)","v":80217},0,2375,3571.4713735482001,3566.0655289533997,24571.715907068901,24534.523707068402,42391.156082702597,42252.179101460701,0,0,null,null,null,null,null,null,null,null,{"$f":"SUM(AA76,AA114,AA152,AA190,AA228)","v":55885893.415322982},55801314.886572719,384494834.92563576,383912934.81699151,661963668.95000005,659792809.6007607,0,0,12500,4470.8714732258386,4464.1051909258176,30759.586794050861,30713.034785359319,52957.093516000001,52783.424768060853,0,0]
[null,"Female 85-89",86.730819999999994,92.220819999999989,"female","ALL",null,{"$f":"SUM(H77,H115,H153,H191,H229)","v":49691},0,1472,3275.1894538951001,3270.3226829948999,14705.6006479889,14683.748846647,29525.065473962801,29428.183560792,0,0,null,null,null,null,null,null,null,null,{"$f":"SUM(AA77,AA115,AA153,AA191,AA229)","v":50081423.767776735},50007087.378476664,224865592.71731606,224531822.32935873,448983820.05000007,447510658.23746049,0,0,7500,6677.5231690368983,6667.6116504635556,29982.079028975473,29937.576310581164,59864.509340000011,59668.087764994736,0,0]
[null,"Female 90+",92.779342999999997,96.279340000000005,"female","ALL",null,{"$f":"SUM(H78,H116,H154,H192,H230)","v":29050},0,860,3078.2918271976,3073.8864157373005,7695.7203331185001,7684.7068176840994,19930.146163744299,19864.762502864098,0,0,null,null,null,null,null,null,null,null,{"$f":"SUM(AA78,AA116,AA154,AA192,AA230)","v":54399165.93028786},54321589.526825458,135997751.62822145,135803810.85229674,348509125.86000001,347366379.05209917,0,0,5000,10879.833186057573,10864.317905365091,27199.55032564429,27160.762170459348,69701.825171999997,69473.275810419829,0,0]
[null,"Male 0-4",2.0320822999999999,77.402082000000007,"male","ALL",null,{"$f":"SUM(H79,H117,H155,H193,H231)","v":0},0,0,{"$error":"#VALUE!"},{"$error":"#VALUE!"},{"$error":"#VALUE!"},{"$error":"#VALUE!"},{"$error":"#VALUE!"},{"$error":"#VALUE!"},{"$error":"#VALUE!"},{"$error":"#VALUE!"},null,null,null,null,null,null,null,null,{"$f":"SUM(AA79,AA117,AA155,AA193,AA231)","v":{"$error":"#VALUE!"}},{"$error":"#VALUE!"},{"$error":"#VALUE!"},{"$error":"#VALUE!"},{"$error":"#VALUE!"},{"$error":"#VALUE!"},{"$error":"#VALUE!"},{"$error":"#VALUE!"},25000,{"$error":"#VALUE!"},{"$error":"#VALUE!"},{"$error":"#VALUE!"},{"$error":"#VALUE!"},{"$error":"#VALUE!"},{"$error":"#VALUE!"},{"$error":"#VALUE!"},{"$error":"#VALUE!"}]
[null,"Male 5-9",6.9784756000000003,77.398476000000002,"male","ALL",null,{"$f":"SUM(H80,H118,H156,H194,H232)","v":0},0,0,{"$error":"#VALUE!"},{"$error":"#VALUE!"},{"$error":"#VALUE!"},{"$error":"#VALUE!"},{"$error":"#VALUE!"},{"$error":"#VALUE!"},{"$error":"#VALUE!"},{"$error":"#VALUE!"},null,null,null,null,null,null,null,null,{"$f":"SUM(AA80,AA118,AA156,AA194,AA232)","v":{"$error":"#VALUE!"}},{"$error":"#VALUE!"},{"$error":"#VALUE!"},{"$error":"#VALUE!"},{"$error":"#VALUE!"},{"$error":"#VALUE!"},{"$error":"#VALUE!"},{"$error":"#VALUE!"},27500,{"$error":"#VALUE!"},{"$error":"#VALUE!"},{"$error":"#VALUE!"},{"$error":"#VALUE!"},{"$error":"#VALUE!"},{"$error":"#VALUE!"},{"$error":"#VALUE!"},{"$error":"#VALUE!"}]
[null,"Male 10-15",12.471144000000001,77.921140000000008,"male","ALL",null,{"$f":"SUM(H81,H119,H157,H195,H233)","v":0},0,0,{"$error":"#VALUE!"},{"$error":"#VALUE!"},{"$error":"#VALUE!"},{"$error":"#VALUE!"},{"$error":"#VALUE!"},{"$error":"#VALUE!"},{"$error":"#VALUE!"},{"$error":"#VALUE!"},null,null,null,null,null,null,null,null,{"$f":"SUM(AA81,AA119,AA157,AA195,AA233)","v":{"$error":"#VALUE!"}},{"$error":"#VALUE!"},{"$error":"#VALUE!"},{"$error":"#VALUE!"},{"$error":"#VALUE!"},{"$error":"#VALUE!"},{"$error":"#VALUE!"},{"$error":"#VALUE!"},33000,{"$error":"#VALUE!"},{"$error":"#VALUE!"},{"$error":"#VALUE!"},{"$error":"#VALUE!"},{"$error":"#VALUE!"},{"$error":"#VALUE!"},{"$error":"#VALUE!"},{"$error":"#VALUE!"}]
[null,"Male 16-19",17.556318000000001,77.07632000000001,"male","ALL",null,{"$f":"SUM(H82,H120,H158,H196,H234)","v":124418},0,3685,56.984434156800006,56.894927597899994,3334.7292008248,3329.4912768188997,8826.1892314548004,8797.2836015400007,56.984434156800006,56.894927597899994,null,null,null,null,null,null,null,null,{"$f":"SUM(AA82,AA120,AA158,AA196,AA234)","v":1013132.444318412},1011541.0527736505,59288512.667778268,59195384.431394935,156551621.59999999,156038944.58757171,1013132.444318412,1011541.0527736505,22000,46.051474741745999,45.979138762438659,2694.9323939899214,2690.6992923361336,7115.9827999999998,7092.6792994350781,46.051474741745999,45.979138762438659]
[null,"Male 20-24",22.054632000000002,77.704629999999995,"male","ALL",null,{"$f":"SUM(H83,H121,H159,H197,H235)","v":181688},0,5380,117.533185203,117.3486506234,6423.1883362776007,6413.1035218714997,15171.5733622719,15121.901946021298,117.533185203,117.3486506234,null,null,null,null,null,null,null,null,{"$f":"SUM(AA83,AA121,AA159,AA197,AA235)","v":1940036.1320561485},1936989.9299515234,106022970.73679668,105856495.7978707,250437460.62000003,249617509.91528723,1940036.1320561485,1936989.9299515234,30000,64.66787106853829,64.566330998384117,3534.0990245598891,3528.5498599290231,8347.9153540000007,8320.5836638429082,64.66787106853829,64.566330998384117]
[null,"Male 25-29",26.959762999999999,77.789760000000001,"male","ALL",null,{"$f":"SUM(H84,H122,H160,H198,H236)","v":186149},0,5513,180.07590596080001,179.79339761650002,8973.1818537990002,8959.1044638500989,18844.707746336899,18783.0495610871,180.07590596080001,179.79339761650002,null,null,null,null,null,null,null,null,{"$f":"SUM(AA84,AA122,AA160,AA198,AA236)","v":2809102.8312574616},2804692.4135031286,139977585.65425152,139757814.55078527,298066844.88,297090798.81504011,2809102.8312574616,2804692.4135031286,30000,93.636761041915392,93.489747116770957,4665.9195218083842,4658.593818359509,9935.5614960000003,9903.026627168003,93.636761041915392,93.489747116770957]
[null,"Male 30-34",31.981521999999998,78.061520000000002,"male","ALL",null,{"$f":"SUM(H85,H123,H161,H199,H237)","v":172305},0,5103,242.75163003210002,242.37086322090002,10943.242996343801,10926.0780292564,20810.1130147968,20742.015309925697,242.75163003210002,242.37086322090002,null,null,null,null,null,null,null,null,{"$f":"SUM(AA85,AA123,AA161,AA199,AA237)","v":4445042.7304794556},4438066.1582641099,200382517.39992833,200068013.53841281,385911765.13499999,384648048.5797599,4445042.7304794556,4438066.1582641099,32500,136.77054555321402,136.55588179274184,6165.6159199977947,6155.9388781050093,11874.208157999999,11835.32457168492,136.77054555321402,136.55588179274184]
[null,"Male 35-39",36.926009999999998,78.336009999999987,"male","ALL",null,{"$f":"SUM(H86,H124,H162,H200,H238)","v":161268},0,4776,321.68188930300005,321.17734598019996,12999.165146734198,12978.7765510598,22880.108764238601,22805.195721669497,321.68188930300005,321.17734598019996,null,null,null,null,null,null,null,null,{"$f":"SUM(AA86,AA124,AA162,AA200,AA238)","v":6950662.4108960517},6939759.2250048099,280876268.02430874,280435670.28244257,495329032.51999998,493707044.99723423,6950662.4108960517,6939759.2250048099,35000,198.59035459703006,198.27883500013743,8025.0362292659638,8012.4477223555023,14152.258071999999,14105.915571349549,198.59035459703006,198.27883500013743]
[null,"Male 40-44",42.067703000000002,78.907700000000006,"male","ALL",null,{"$f":"SUM(H87,H125,H163,H201,H239)","v":164929},0,4885,475.98603818489994,475.23964465679995,17059.3381805887,17032.587438780698,27796.411228545301,27705.346834998505,475.98603818489994,475.23964465679995,null,null,null,null,null,null,null,null,{"$f":"SUM(AA87,AA125,AA163,AA201,AA239)","v":10241807.097651843},10225752.071338527,367066335.65442067,366490923.55951494,594504097.52999997,592557117.63957441,10241807.097651843,10225752.071338527,35000,292.62305993290983,292.16434489538648,10487.609590126305,10471.16924455757,16985.831357999999,16930.203361130698,292.62305993290983,292.16434489538648]
[null,"Male 45-49",47.038155000000003,79.418149999999997,"male","ALL",null,{"$f":"SUM(H88,H126,H164,H202,H240)","v":189422},0,5611,794.86377418500001,793.61860766430004,24942.821259606601,24903.747940412701,38076.879094208001,37952.1242690289,794.86377418500001,793.61860766430004,null,null,null,null,null,null,null,null,{"$f":"SUM(AA88,AA126,AA164,AA202,AA240)","v":14894094.260845017},14870770.696682552,467376603.43484849,466644710.10804498,709212168.1400001,706889310.37294924,14894094.260845017,14870770.696682552,35000,425.54555030985762,424.87916276235865,13353.617240995671,13332.706003087,20263.204804000005,20196.837439227122,425.54555030985762,424.87916276235865]
[null,"Male 50-54",51.998646000000001,79.988649999999993,"male","ALL",null,{"$f":"SUM(H89,H127,H165,H203,H241)","v":197429},0,5847,1202.3152086095001,1200.4353576451001,32450.492289631198,32399.755104582702,47294.710130008105,47139.796964348796,1202.3152086095001,1200.4353576451001,null,null,null,null,null,null,null,null,{"$f":"SUM(AA89,AA127,AA165,AA203,AA241)","v":21635847.729864094},21602033.691787437,583951616.77242208,583038975.7494781,845753788.74000001,842984517.62670076,21635847.729864094,21602033.691787437,35000,618.16707799611697,617.2009626224982,16684.331907783489,16658.256449985089,24164.393963999999,24085.271932191452,618.16707799611697,617.2009626224982]
[null,"Male 55-59",56.950867000000002,80.660870000000003,"male","ALL",null,{"$f":"SUM(H90,H128,H166,H204,H242)","v":180737},0,5354,1595.619546336,1593.1090304405002,36236.524684149197,36179.510860630799,51591.136928716893,51420.609024453697,1595.619546336,1593.1090304405002,null,null,null,null,null,null,null,null,{"$f":"SUM(AA90,AA128,AA166,AA204,AA242)","v":29151678.324147385},29105835.297446478,662034702.1964221,660993606.92251468,936266656.77999997,933173275.93043125,29151678.324147385,29105835.297446478,32500,896.97471766607339,895.56416299835314,20370.298529120679,20338.264828385069,28808.204824,28713.023874782499,896.97471766607339,895.56416299835314]
[null,"Male 60-64",61.942988999999997,81.612989999999996,"male","ALL",null,{"$f":"SUM(H91,H129,H167,H205,H243)","v":156406},0,4633,1990.4558348117998,1987.3345061076002,37161.812426392098,37103.5372163633,53033.3207283355,52858.007740515801,1990.4558348117998,1987.3345061076002,null,null,null,null,null,null,null,null,{"$f":"SUM(AA91,AA129,AA167,AA205,AA243)","v":39133908.881570771},39072595.348632552,730630117.95283449,729485394.23156345,1031793595.7400001,1028385000.3619229,39133908.881570771,39072595.348632552,30000,1304.4636293856925,1302.4198449544183,24354.337265094484,24316.179807718781,34393.119858000005,34279.500012064098,1304.4636293856925,1302.4198449544183]
[null,"Male 65-69",67.054419999999993,82.954419999999999,"male","ALL",null,{"$f":"SUM(H92,H130,H168,H206,H244)","v":153467},0,4544,2845.1653900425999,2840.7275556568998,42392.964311634598,42326.840579287797,62174.331774444901,61968.867370423905,2845.1653900425999,2840.7275556568998,null,null,null,null,null,null,null,null,{"$f":"SUM(AA92,AA130,AA168,AA206,AA244)","v":52579373.600586042},52497459.459617428,783432666.64872956,782212145.9483,1133962873.1749997,1130218169.2160091,52579373.600586042,52497459.459617428,27500,1911.9772218394924,1908.9985258042702,28488.460605408349,28444.078034483635,41235.013569999988,41098.842516945784,1911.9772218394924,1908.9985258042702]
[null,"Male 70-74",71.891098,84.341099999999997,"male","ALL",null,{"$f":"SUM(H93,H131,H169,H207,H245)","v":111869},0,3313,2974.3697176646001,2969.7615446089999,34056.539215999197,34003.775625296199,53814.804399198903,53636.9236285199,2974.3697176646001,2969.7615446089999,null,null,null,null,null,null,null,null,{"$f":"SUM(AA93,AA131,AA169,AA207,AA245)","v":68531122.285126448},68425096.957832843,784681487.22694421,783467497.01738107,1223954579.8000002,1219911453.8452063,68531122.285126448,68425096.957832843,25000,2741.2448914050578,2737.0038783133136,31387.259489077769,31338.699880695243,48958.183192000004,48796.458153808249,2741.2448914050578,2737.0038783133136]
[null,"Male 75-79",76.907700000000006,86.357700000000008,"male","ALL",null,{"$f":"SUM(H94,H132,H170,H208,H246)","v":82515},0,2443,3204.2961498683007,3199.3885352378002,27076.302466387104,27034.833122759399,47629.863037836702,47472.523772146502,0,0,null,null,null,null,null,null,null,null,{"$f":"SUM(AA94,AA132,AA170,AA208,AA246)","v":79484211.475890622},79362642.90436016,671641586.97127473,670614332.54184318,1170005851.5599999,1166142453.4285119,0,0,20000,3974.2105737945312,3968.1321452180082,33582.079348563733,33530.716627092159,58500.292578000001,58307.12267142559,0,0]
[null,"Male 80-84",81.797089,88.627089999999995,"male","ALL",null,{"$f":"SUM(H95,H133,H171,H209,H247)","v":56201},0,1665,3103.0641732874997,3098.3768220677994,18090.8672333303,18063.5399710321,38436.063031124599,38308.975490104101,0,0,null,null,null,null,null,null,null,null,{"$f":"SUM(AA95,AA133,AA171,AA209,AA247)","v":71119514.645117462},71012310.173237696,414626841.5005492,414001839.32228583,869840774.2249999,866965962.1502037,0,0,12500,5689.5611716093972,5680.984813859016,33170.147320043936,33120.147145782867,69587.261937999996,69357.276972016291,0,0]
[null,"Male 85-89",86.630752999999999,91.420750000000012,"male","ALL",null,{"$f":"SUM(H96,H134,H172,H210,H248)","v":28287},0,838,2196.9900819728,2193.7393602713,8326.5858197067009,8314.2655942100992,22836.6916996447,22761.169016080301,0,0,null,null,null,null,null,null,null,null,{"$f":"SUM(AA96,AA134,AA172,AA210,AA248)","v":60571320.947652951},60482031.768784374,229565124.67764273,229226718.95759657,619589003.44500005,617541441.43192101,0,0,7500,8076.1761263537264,8064.2709025045833,30608.683290352365,30563.562527679544,82611.867126000012,82338.858857589468,0,0]
[null,"Male 90+",92.215477000000007,95.515479999999997,"male","ALL",null,{"$f":"SUM(H97,H135,H173,H211,H249)","v":12017},0,356,1386.6867935932,1384.7061400858001,3189.3837853246,3184.8282763156999,11815.7848009063,11776.682306767501,0,0,null,null,null,null,null,null,null,null,{"$f":"SUM(AA97,AA135,AA173,AA211,AA249)","v":60046957.120272622},59961633.652766317,138108181.51749268,137911937.28626072,503620030.09000003,501954315.63146299,0,0,5000,{"$f":"AA59/$AI59","v":12009.391424054524},11992.326730553263,{"$f":"AC59/$AI59","v":27621.636303498537},27582.387457252145,100724.006018,100390.86312629259,0,0]
[null,"Female 0-4",2.0384007,81.468401,"female",1,{"$f":"HLOOKUP(Calculations!$E$2,'Prevalence Rates'!$C$3:$BC$249,'Prevalence Rates'!$BD60,FALSE)","v":0},{"$f":"HLOOKUP(Calculations!$E$2,'Population 2016'!$C$3:$BC$249,'Population 2016'!BD60,FALSE)","v":0},0,{"$f":"HLOOKUP(Results!E$4,Targeting!$C$3:$F$249,Targeting!$G60,FALSE)","v":0},{"$f":"IF(AND(OR(Calculations!$E$2=\"Orkney Health Board\",Calculations!$E$2=\"Orkney Islands Local Authority\"),$F60=1),0,IF(AND(OR(Calculations!$E$2=\"Shetland Health Board\",Calculations!$E$2=\"Western Isles Health Board\",Calculations!$E$2=\"Shetland Islands Local Authority\",Calculations!$E$2=\"Eilean Siar Local Authority\"),OR($F60=1,$F60=5)),0,new_ci(VALUE(LEFT(Options!$B$24,2)),$C60,$E60,$F60,2016,$I60,1,$H60,$G60*$H60,Options!$B$8)))","v":{"$error":"#VALUE!"}},{"$f":"IF(AND(OR(Calculations!$E$2=\"Orkney Health Board\",Calculations!$E$2=\"Orkney Islands Local Authority\"),$F60=1),0,IF(AND(OR(Calculations!$E$2=\"Shetland Health Board\",Calculations!$E$2=\"Western Isles Health Board\",Calculations!$E$2=\"Shetland Islands Local Authority\",Calculations!$E$2=\"Eilean Siar Local Authority\"),OR($F60=1,$F60=5)),0,new_ci(VALUE(LEFT(Options!$B$24,2)),$C60,$E60,$F60,2016,$I60+$J60,1,$H60,$G60*$H60,Options!$B$8)))","v":{"$error":"#VALUE!"}},{"$f":"IF(AND(OR(Calculations!$E$2=\"Orkney Health Board\",Calculations!$E$2=\"Orkney Islands Local Authority\"),$F60=1),0,IF(AND(OR(Calculations!$E$2=\"Shetland Health Board\",Calculations!$E$2=\"Western Isles Health Board\",Calculations!$E$2=\"Shetland Islands Local Authority\",Calculations!$E$2=\"Eilean Siar Local Authority\"),OR($F60=1,$F60=5)),0,new_yllv2(VALUE(LEFT(Options!$B$24,2)),$C60,$D60,$E60,$F60,2016,$I60,1,$H60,$G60*$H60,Options!$B$8)))","v":{"$error":"#VALUE!"}},{"$f":"IF(AND(OR(Calculations!$E$2=\"Orkney Health Board\",Calculations!$E$2=\"Orkney Islands Local Authority\"),$F60=1),0,IF(AND(OR(Calculations!$E$2=\"Shetland Health Board\",Calculations!$E$2=\"Western Isles Health Board\",Calculations!$E$2=\"Shetland Islands Local Authority\",Calculations!$E$2=\"Eilean Siar Local Authority\"),OR($F60=1,$F60=5)),0,new_yllv2(VALUE(LEFT(Options!$B$24,2)),$C60,$D60,$E60,$F60,2016,$I60+$J60,1,$H60,$G60*$H60,Options!$B$8)))","v":{"$error":"#VALUE!"}},{"$f":"IF(AND(OR(Calculations!$E$2=\"Orkney Health Board\",Calculations!$E$2=\"Orkney Islands Local Authority\"),$F60=1),0,IF(AND(OR(Calculations!$E$2=\"Shetland Health Board\",Calculations!$E$2=\"Western Isles Health Board\",Calculations!$E$2=\"Shetland Islands Local Authority\",Calculations!$E$2=\"Eilean Siar Local Authority\"),OR($F60=1,$F60=5)),0,hosp_count(VALUE(LEFT(Options!$B$24,2)),$C60,$E60,$F60,2016,$I60,1,$H60,$G60*$H60, Options!$B$8)))","v":{"$error":"#VALUE!"}},{"$f":"IF(AND(OR(Calculations!$E$2=\"Orkney Health Board\",Calculations!$E$2=\"Orkney Islands Local Authority\"),$F60=1),0,IF(AND(OR(Calculations!$E$2=\"Shetland Health Board\",Calculations!$E$2=\"Western Isles Health Board\",Calculations!$E$2=\"Shetland Islands Local Authority\",Calculations!$E$2=\"Eilean Siar Local Authority\"),OR($F60=1,$F60=5)),0,hosp_count(VALUE(LEFT(Options!$B$24,2)),$C60,$E60,$F60,2016,$I60+$J60,1,$H60,$G60*$H60, Options!$B$8)))","v":{"$error":"#VALUE!"}},{"$f":"IF(AND(OR(Calculations!$E$2=\"Orkney Health Board\",Calculations!$E$2=\"Orkney Islands Local Authority\"),$F60=1),0,IF(AND(OR(Calculations!$E$2=\"Shetland Health Board\",Calculations!$E$2=\"Western Isles Health Board\",Calculations!$E$2=\"Shetland Islands Local Authority\",Calculations!$E$2=\"Eilean Siar Local Authority\"),OR($F60=1,$F60=5)),0,prem_mort(VALUE(LEFT(Options!$B$24,2)),$C60,$E60,$F60,2016,$I60,1,$H60,$G60*$H60,Options!$B$8)))","v":{"$error":"#VALUE!"}},{"$f":"IF(AND(OR(Calculations!$E$2=\"Orkney Health Board\",Calculations!$E$2=\"Orkney Islands Local Authority\"),$F60=1),0,IF(AND(OR(Calculations!$E$2=\"Shetland Health Board\",Calculations!$E$2=\"Western Isles Health Board\",Calculations!$E$2=\"Shetland Islands Local Authority\",Calculations!$E$2=\"Eilean Siar Local Authority\"),OR($F60=1,$F60=5)),0,prem_mort(VALUE(LEFT(Options!$B$24,2)),$C60,$E60,$F60,2016,$I60+$J60,1,$H60,$G60*$H60,Options!$B$8)))","v":{"$error":"#VALUE!"}},{"$f":"K60*100000/$H60","v":{"$error":"#VALUE!"}},{"$error":"#VALUE!"},{"$error":"#VALUE!"},{"$error":"#VALUE!"},{"$error":"#VALUE!"},{"$error":"#VALUE!"},{"$error":"#VALUE!"},{"$error":"#VALUE!"},{"$f":"S60*$AI60","v":{"$error":"#VALUE!"}},{"$f":"T60*$AI60","v":{"$error":"#VALUE!"}},{"$f":"U60*$AI60","v":{"$error":"#VALUE!"}},{"$f":"V60*$AI60","v":{"$error":"#VALUE!"}},{"$f":"W60*$AI60","v":{"$error":"#VALUE!"}},{"$f":"X60*$AI60","v":{"$error":"#VALUE!"}},{"$f":"Y60*$AI60","v":{"$error":"#VALUE!"}},{"$f":"Z60*$AI60","v":{"$error":"#VALUE!"}},5000]
[null,"Female 5-9",6.9792794999999996,81.439279999999997,"female",1,{"$f":"HLOOKUP(Calculations!$E$2,'Prevalence Rates'!$C$3:$BC$249,'Prevalence Rates'!$BD61,FALSE)","v":0},{"$f":"HLOOKUP(Calculations!$E$2,'Population 2016'!$C$3:$BC$249,'Population 2016'!BD61,FALSE)","v":0},0,{"$f":"HLOOKUP(Results!E$4,Targeting!$C$3:$F$249,Targeting!$G61,FALSE)","v":0},{"$f":"IF(AND(OR(Calculations!$E$2=\"Orkney Health Board\",Calculations!$E$2=\"Orkney Islands Local Authority\"),$F61=1),0,IF(AND(OR(Calculations!$E$2=\"Shetland Health Board\",Calculations!$E$2=\"Western Isles Health Board\",Calculations!$E$2=\"Shetland Islands Local Authority\",Calculations!$E$2=\"Eilean Siar Local Authority\"),OR($F61=1,$F61=5)),0,new_ci(VALUE(LEFT(Options!$B$24,2)),$C61,$E61,$F61,2016,$I61,1,$H61,$G61*$H61,Options!$B$8)))","v":{"$error":"#VALUE!"}},{"$f":"IF(AND(OR(Calculations!$E$2=\"Orkney Health Board\",Calculations!$E$2=\"Orkney Islands Local Authority\"),$F61=1),0,IF(AND(OR(Calculations!$E$2=\"Shetland Health Board\",Calculations!$E$2=\"Western Isles Health Board\",Calculations!$E$2=\"Shetland Islands Local Authority\",Calculations!$E$2=\"Eilean Siar Local Authority\"),OR($F61=1,$F61=5)),0,new_ci(VALUE(LEFT(Options!$B$24,2)),$C61,$E61,$F61,2016,$I61+$J61,1,$H61,$G61*$H61,Options!$B$8)))","v":{"$error":"#VALUE!"}},{"$f":"IF(AND(OR(Calculations!$E$2=\"Orkney Health Board\",Calculations!$E$2=\"Orkney Islands Local Authority\"),$F61=1),0,IF(AND(OR(Calculations!$E$2=\"Shetland Health Board\",Calculations!$E$2=\"Western Isles Health Board\",Calculations!$E$2=\"Shetland Islands Local Authority\",Calculations!$E$2=\"Eilean Siar Local Authority\"),OR($F61=1,$F61=5)),0,new_yllv2(VALUE(LEFT(Options!$B$24,2)),$C61,$D61,$E61,$F61,2016,$I61,1,$H61,$G61*$H61,Options!$B$8)))","v":{"$error":"#VALUE!"}},{"$f":"IF(AND(OR(Calculations!$E$2=\"Orkney Health Board\",Calculations!$E$2=\"Orkney Islands Local Authority\"),$F61=1),0,IF(AND(OR(Calculations!$E$2=\"Shetland Health Board\",Calculations!$E$2=\"Western Isles Health Board\",Calculations!$E$2=\"Shetland Islands Local Authority\",Calculations!$E$2=\"Eilean Siar Local Authority\"),OR($F61=1,$F61=5)),0,new_yllv2(VALUE(LEFT(Options!$B$24,2)),$C61,$D61,$E61,$F61,2016,$I61+$J61,1,$H61,$G61*$H61,Options!$B$8)))","v":{"$error":"#VALUE!"}},{"$f":"IF(AND(OR(Calculations!$E$2=\"Orkney Health Board\",Calculations!$E$2=\"Orkney Islands Local Authority\"),$F61=1),0,IF(AND(OR(Calculations!$E$2=\"Shetland Health Board\",Calculations!$E$2=\"Western Isles Health Board\",Calculations!$E$2=\"Shetland Islands Local Authority\",Calculations!$E$2=\"Eilean Siar Local Authority\"),OR($F61=1,$F61=5)),0,hosp_count(VALUE(LEFT(Options!$B$24,2)),$C61,$E61,$F61,2016,$I61,1,$H61,$G61*$H61, Options!$B$8)))","v":{"$error":"#VALUE!"}},{"$f":"IF(AND(OR(Calculations!$E$2=\"Orkney Health Board\",Calculations!$E$2=\"Orkney Islands Local Authority\"),$F61=1),0,IF(AND(OR(Calculations!$E$2=\"Shetland Health Board\",Calculations!$E$2=\"Western Isles Health Board\",Calculations!$E$2=\"Shetland Islands Local Authority\",Calculations!$E$2=\"Eilean Siar Local Authority\"),OR($F61=1,$F61=5)),0,hosp_count(VALUE(LEFT(Options!$B$24,2)),$C61,$E61,$F61,2016,$I61+$J61,1,$H61,$G61*$H61, Options!$B$8)))","v":{"$error":"#VALUE!"}},{"$f":"IF(AND(OR(Calculations!$E$2=\"Orkney Health Board\",Calculations!$E$2=\"Orkney Islands Local Authority\"),$F61=1),0,IF(AND(OR(Calculations!$E$2=\"Shetland Health Board\",Calculations!$E$2=\"Western Isles Health Board\",Calculations!$E$2=\"Shetland Islands Local Authority\",Calculations!$E$2=\"Eilean Siar Local Authority\"),OR($F61=1,$F61=5)),0,prem_mort(VALUE(LEFT(Options!$B$24,2)),$C61,$E61,$F61,2016,$I61,1,$H61,$G61*$H61,Options!$B$8)))","v":{"$error":"#VALUE!"}},{"$f":"IF(AND(OR(Calculations!$E$2=\"Orkney Health Board\",Calculations!$E$2=\"Orkney Islands Local Authority\"),$F61=1),0,IF(AND(OR(Calculations!$E$2=\"Shetland Health Board\",Calculations!$E$2=\"Western Isles Health Board\",Calculations!$E$2=\"Shetland Islands Local Authority\",Calculations!$E$2=\"Eilean Siar Local Authority\"),OR($F61=1,$F61=5)),0,prem_mort(VALUE(LEFT(Options!$B$24,2)),$C61,$E61,$F61,2016,$I61+$J61,1,$H61,$G61*$H61,Options!$B$8)))","v":{"$error":"#VALUE!"}},{"$f":"K61*100000/$H61","v":{"$error":"#VALUE!"}},{"$f":"L61*100000/$H61","v":{"$error":"#VALUE!"}},{"$f":"M61*100000/$H61","v":{"$error":"#VALUE!"}},{"$f":"N61*100000/$H61","v":{"$error":"#VALUE!"}},{"$f":"O61*100000/$H61","v":{"$error":"#VALUE!"}},{"$f":"P61*100000/$H61","v":{"$error":"#VALUE!"}},{"$f":"Q61*100000/$H61","v":{"$error":"#VALUE!"}},{"$f":"R61*100000/$H61","v":{"$error":"#VALUE!"}},{"$f":"S61*$AI61","v":{"$error":"#VALUE!"}},{"$f":"T61*$AI61","v":{"$error":"#VALUE!"}},{"$f":"U61*$AI61","v":{"$error":"#VALUE!"}},{"$error":"#VALUE!"},{"$error":"#VALUE!"},{"$error":"#VALUE!"},{"$error":"#VALUE!"},{"$error":"#VALUE!"},5500]
[null,"Female 10-15",12.478312000000001,81.948309999999992,"female",1,{"$f":"HLOOKUP(Calculations!$E$2,'Prevalence Rates'!$C$3:$BC$249,'Prevalence Rates'!$BD62,FALSE)","v":0},{"$f":"HLOOKUP(Calculations!$E$2,'Population 2016'!$C$3:$BC$249,'Population 2016'!BD62,FALSE)","v":0},0,{"$f":"HLOOKUP(Results!E$4,Targeting!$C$3:$F$249,Targeting!$G62,FALSE)","v":0},{"$f":"IF(AND(OR(Calculations!$E$2=\"Orkney Health Board\",Calculations!$E$2=\"Orkney Islands Local Authority\"),$F62=1),0,IF(AND(OR(Calculations!$E$2=\"Shetland Health Board\",Calculations!$E$2=\"Western Isles Health Board\",Calculations!$E$2=\"Shetland Islands Local Authority\",Calculations!$E$2=\"Eilean Siar Local Authority\"),OR($F62=1,$F62=5)),0,new_ci(VALUE(LEFT(Options!$B$24,2)),$C62,$E62,$F62,2016,$I62,1,$H62,$G62*$H62,Options!$B$8)))","v":{"$error":"#VALUE!"}},{"$f":"IF(AND(OR(Calculations!$E$2=\"Orkney Health Board\",Calculations!$E$2=\"Orkney Islands Local Authority\"),$F62=1),0,IF(AND(OR(Calculations!$E$2=\"Shetland Health Board\",Calculations!$E$2=\"Western Isles Health Board\",Calculations!$E$2=\"Shetland Islands Local Authority\",Calculations!$E$2=\"Eilean Siar Local Authority\"),OR($F62=1,$F62=5)),0,new_ci(VALUE(LEFT(Options!$B$24,2)),$C62,$E62,$F62,2016,$I62+$J62,1,$H62,$G62*$H62,Options!$B$8)))","v":{"$error":"#VALUE!"}},{"$f":"IF(AND(OR(Calculations!$E$2=\"Orkney Health Board\",Calculations!$E$2=\"Orkney Islands Local Authority\"),$F62=1),0,IF(AND(OR(Calculations!$E$2=\"Shetland Health Board\",Calculations!$E$2=\"Western Isles Health Board\",Calculations!$E$2=\"Shetland Islands Local Authority\",Calculations!$E$2=\"Eilean Siar Local Authority\"),OR($F62=1,$F62=5)),0,new_yllv2(VALUE(LEFT(Options!$B$24,2)),$C62,$D62,$E62,$F62,2016,$I62,1,$H62,$G62*$H62,Options!$B$8)))","v":{"$error":"#VALUE!"}},{"$f":"IF(AND(OR(Calculations!$E$2=\"Orkney Health Board\",Calculations!$E$2=\"Orkney Islands Local Authority\"),$F62=1),0,IF(AND(OR(Calculations!$E$2=\"Shetland Health Board\",Calculations!$E$2=\"Western Isles Health Board\",Calculations!$E$2=\"Shetland Islands Local Authority\",Calculations!$E$2=\"Eilean Siar Local Authority\"),OR($F62=1,$F62=5)),0,new_yllv2(VALUE(LEFT(Options!$B$24,2)),$C62,$D62,$E62,$F62,2016,$I62+$J62,1,$H62,$G62*$H62,Options!$B$8)))","v":{"$error":"#VALUE!"}},{"$f":"IF(AND(OR(Calculations!$E$2=\"Orkney Health Board\",Calculations!$E$2=\"Orkney Islands Local Authority\"),$F62=1),0,IF(AND(OR(Calculations!$E$2=\"Shetland Health Board\",Calculations!$E$2=\"Western Isles Health Board\",Calculations!$E$2=\"Shetland Islands Local Authority\",Calculations!$E$2=\"Eilean Siar Local Authority\"),OR($F62=1,$F62=5)),0,hosp_count(VALUE(LEFT(Options!$B$24,2)),$C62,$E62,$F62,2016,$I62,1,$H62,$G62*$H62, Options!$B$8)))","v":{"$error":"#VALUE!"}},{"$f":"IF(AND(OR(Calculations!$E$2=\"Orkney Health Board\",Calculations!$E$2=\"Orkney Islands Local Authority\"),$F62=1),0,IF(AND(OR(Calculations!$E$2=\"Shetland Health Board\",Calculations!$E$2=\"Western Isles Health Board\",Calculations!$E$2=\"Shetland Islands Local Authority\",Calculations!$E$2=\"Eilean Siar Local Authority\"),OR($F62=1,$F62=5)),0,hosp_count(VALUE(LEFT(Options!$B$24,2)),$C62,$E62,$F62,2016,$I62+$J62,1,$H62,$G62*$H62, Options!$B$8)))","v":{"$error":"#VALUE!"}},{"$f":"IF(AND(OR(Calculations!$E$2=\"Orkney Health Board\",Calculations!$E$2=\"Orkney Islands Local Authority\"),$F62=1),0,IF(AND(OR(Calculations!$E$2=\"Shetland Health Board\",Calculations!$E$2=\"Western Isles Health Board\",Calculations!$E$2=\"Shetland Islands Local Authority\",Calculations!$E$2=\"Eilean Siar Local Authority\"),OR($F62=1,$F62=5)),0,prem_mort(VALUE(LEFT(Options!$B$24,2)),$C62,$E62,$F62,2016,$I62,1,$H62,$G62*$H62,Options!$B$8)))","v":{"$error":"#VALUE!"}},{"$f":"IF(AND(OR(Calculations!$E$2=\"Orkney Health Board\",Calculations!$E$2=\"Orkney Islands Local Authority\"),$F62=1),0,IF(AND(OR(Calculations!$E$2=\"Shetland Health Board\",Calculations!$E$2=\"Western Isles Health Board\",Calculations!$E$2=\"Shetland Islands Local Authority\",Calculations!$E$2=\"Eilean Siar Local Authority\"),OR($F62=1,$F62=5)),0,prem_mort(VALUE(LEFT(Options!$B$24,2)),$C62,$E62,$F62,2016,$I62+$J62,1,$H62,$G62*$H62,Options!$B$8)))","v":{"$error":"#VALUE!"}},{"$error":"#VALUE!"},{"$error":"#VALUE!"},{"$error":"#VALUE!"},{"$error":"#VALUE!"},{"$error":"#VALUE!"},{"$error":"#VALUE!"},{"$error":"#VALUE!"},{"$error":"#VALUE!"},{"$error":"#VALUE!"},{"$error":"#VALUE!"},{"$error":"#VALUE!"},{"$error":"#VALUE!"},{"$error":"#VALUE!"},{"$error":"#VALUE!"},{"$error":"#VALUE!"},{"$error":"#VALUE!"},6600]
["SIMD Q1 (most deprived)","Female 16-19",17.570053000000001,81.100049999999996,"female",1,{"$f":"HLOOKUP(Calculations!$E$2,'Prevalence Rates'!$C$3:$BC$249,'Prevalence Rates'!$BD63,FALSE)","v":0.20134475438354063},{"$f":"HLOOKUP(Calculations!$E$2,'Population 2016'!$C$3:$BC$249,'Population 2016'!BD63,FALSE)","v":24142},0,{"$f":"HLOOKUP(Results!E$4,Targeting!$C$3:$F$249,Targeting!$G63,FALSE)","v":715},{"$f":"IF(AND(OR(Calculations!$E$2=\"Orkney Health Board\",Calculations!$E$2=\"Orkney Islands Local Authority\"),$F63=1),0,IF(AND(OR(Calculations!$E$2=\"Shetland Health Board\",Calculations!$E$2=\"Western Isles Health Board\",Calculations!$E$2=\"Shetland Islands Local Authority\",Calculations!$E$2=\"Eilean Siar Local Authority\"),OR($F63=1,$F63=5)),0,new_ci(VALUE(LEFT(Options!$B$24,2)),$C63,$E63,$F63,2016,$I63,1,$H63,$G63*$H63,Options!$B$8)))","v":7.6776864186999996},{"$f":"IF(AND(OR(Calculations!$E$2=\"Orkney Health Board\",Calculations!$E$2=\"Orkney Islands Local Authority\"),$F63=1),0,IF(AND(OR(Calculations!$E$2=\"Shetland Health Board\",Calculations!$E$2=\"Western Isles Health Board\",Calculations!$E$2=\"Shetland Islands Local Authority\",Calculations!$E$2=\"Eilean Siar Local Authority\"),OR($F63=1,$F63=5)),0,new_ci(VALUE(LEFT(Options!$B$24,2)),$C63,$E63,$F63,2016,$I63+$J63,1,$H63,$G63*$H63,Options!$B$8)))","v":7.6659230957000002},{"$f":"IF(AND(OR(Calculations!$E$2=\"Orkney Health Board\",Calculations!$E$2=\"Orkney Islands Local Authority\"),$F63=1),0,IF(AND(OR(Calculations!$E$2=\"Shetland Health Board\",Calculations!$E$2=\"Western Isles Health Board\",Calculations!$E$2=\"Shetland Islands Local Authority\",Calculations!$E$2=\"Eilean Siar Local Authority\"),OR($F63=1,$F63=5)),0,new_yllv2(VALUE(LEFT(Options!$B$24,2)),$C63,$D63,$E63,$F63,2016,$I63,1,$H63,$G63*$H63,Options!$B$8)))","v":480.08570872830001},{"$f":"IF(AND(OR(Calculations!$E$2=\"Orkney Health Board\",Calculations!$E$2=\"Orkney Islands Local Authority\"),$F63=1),0,IF(AND(OR(Calculations!$E$2=\"Shetland Health Board\",Calculations!$E$2=\"Western Isles Health Board\",Calculations!$E$2=\"Shetland Islands Local Authority\",Calculations!$E$2=\"Eilean Siar Local Authority\"),OR($F63=1,$F63=5)),0,new_yllv2(VALUE(LEFT(Options!$B$24,2)),$C63,$D63,$E63,$F63,2016,$I63+$J63,1,$H63,$G63*$H63,Options!$B$8)))","v":479.35014817640001},{"$f":"IF(AND(OR(Calculations!$E$2=\"Orkney Health Board\",Calculations!$E$2=\"Orkney Islands Local Authority\"),$F63=1),0,IF(AND(OR(Calculations!$E$2=\"Shetland Health Board\",Calculations!$E$2=\"Western Isles Health Board\",Calculations!$E$2=\"Shetland Islands Local Authority\",Calculations!$E$2=\"Eilean Siar Local Authority\"),OR($F63=1,$F63=5)),0,hosp_count(VALUE(LEFT(Options!$B$24,2)),$C63,$E63,$F63,2016,$I63,1,$H63,$G63*$H63, Options!$B$8)))","v":3441.2180067134},{"$f":"IF(AND(OR(Calculations!$E$2=\"Orkney Health Board\",Calculations!$E$2=\"Orkney Islands Local Authority\"),$F63=1),0,IF(AND(OR(Calculations!$E$2=\"Shetland Health Board\",Calculations!$E$2=\"Western Isles Health Board\",Calculations!$E$2=\"Shetland Islands Local Authority\",Calculations!$E$2=\"Eilean Siar Local Authority\"),OR($F63=1,$F63=5)),0,hosp_count(VALUE(LEFT(Options!$B$24,2)),$C63,$E63,$F63,2016,$I63+$J63,1,$H63,$G63*$H63, Options!$B$8)))","v":3430.2677884446998},{"$f":"IF(AND(OR(Calculations!$E$2=\"Orkney Health Board\",Calculations!$E$2=\"Orkney Islands Local Authority\"),$F63=1),0,IF(AND(OR(Calculations!$E$2=\"Shetland Health Board\",Calculations!$E$2=\"Western Isles Health Board\",Calculations!$E$2=\"Shetland Islands Local Authority\",Calculations!$E$2=\"Eilean Siar Local Authority\"),OR($F63=1,$F63=5)),0,prem_mort(VALUE(LEFT(Options!$B$24,2)),$C63,$E63,$F63,2016,$I63,1,$H63,$G63*$H63,Options!$B$8)))","v":7.6776864186999996},{"$f":"IF(AND(OR(Calculations!$E$2=\"Orkney Health Board\",Calculations!$E$2=\"Orkney Islands Local Authority\"),$F63=1),0,IF(AND(OR(Calculations!$E$2=\"Shetland Health Board\",Calculations!$E$2=\"Western Isles Health Board\",Calculations!$E$2=\"Shetland Islands Local Authority\",Calculations!$E$2=\"Eilean Siar Local Authority\"),OR($F63=1,$F63=5)),0,prem_mort(VALUE(LEFT(Options!$B$24,2)),$C63,$E63,$F63,2016,$I63+$J63,1,$H63,$G63*$H63,Options!$B$8)))","v":7.6659230957000002},31.802197078535329,31.753471525557121,1988.5912879144232,1985.5444792328722,14254.071769999999,14208.714226015656,31.802197078535329,31.753471525557121,{"$f":"S63*$AI63","v":139929.66714555546},139715.27471245133,8749801.6668234617,8736395.7086246368,62717915.787999995,62518342.594468884,139929.66714555546,{"$f":"Z63*$AI63","v":139715.27471245133},4400]
[null,"Female 20-24",22.077057,81.667060000000006,"female",1,{"$f":"HLOOKUP(Calculations!$E$2,'Prevalence Rates'!$C$3:$BC$249,'Prevalence Rates'!$BD64,FALSE)","v":0.20134475438354063},{"$f":"HLOOKUP(Calculations!$E$2,'Population 2016'!$C$3:$BC$249,'Population 2016'!BD64,FALSE)","v":37624},0,{"$f":"HLOOKUP(Results!E$4,Targeting!$C$3:$F$249,Targeting!$G64,FALSE)","v":1114},{"$f":"IF(AND(OR(Calculations!$E$2=\"Orkney Health Board\",Calculations!$E$2=\"Orkney Islands Local Authority\"),$F64=1),0,IF(AND(OR(Calculations!$E$2=\"Shetland Health Board\",Calculations!$E$2=\"Western Isles Health Board\",Calculations!$E$2=\"Shetland Islands Local Authority\",Calculations!$E$2=\"Eilean Siar Local Authority\"),OR($F64=1,$F64=5)),0,new_ci(VALUE(LEFT(Options!$B$24,2)),$C64,$E64,$F64,2016,$I64,1,$H64,$G64*$H64,Options!$B$8)))","v":17.5538313132},{"$f":"IF(AND(OR(Calculations!$E$2=\"Orkney Health Board\",Calculations!$E$2=\"Orkney Islands Local Authority\"),$F64=1),0,IF(AND(OR(Calculations!$E$2=\"Shetland Health Board\",Calculations!$E$2=\"Western Isles Health Board\",Calculations!$E$2=\"Shetland Islands Local Authority\",Calculations!$E$2=\"Eilean Siar Local Authority\"),OR($F64=1,$F64=5)),0,new_ci(VALUE(LEFT(Options!$B$24,2)),$C64,$E64,$F64,2016,$I64+$J64,1,$H64,$G64*$H64,Options!$B$8)))","v":17.526946037199998},{"$f":"IF(AND(OR(Calculations!$E$2=\"Orkney Health Board\",Calculations!$E$2=\"Orkney Islands Local Authority\"),$F64=1),0,IF(AND(OR(Calculations!$E$2=\"Shetland Health Board\",Calculations!$E$2=\"Western Isles Health Board\",Calculations!$E$2=\"Shetland Islands Local Authority\",Calculations!$E$2=\"Eilean Siar Local Authority\"),OR($F64=1,$F64=5)),0,new_yllv2(VALUE(LEFT(Options!$B$24,2)),$C64,$D64,$E64,$F64,2016,$I64,1,$H64,$G64*$H64,Options!$B$8)))","v":1028.4790293019},{"$f":"IF(AND(OR(Calculations!$E$2=\"Orkney Health Board\",Calculations!$E$2=\"Orkney Islands Local Authority\"),$F64=1),0,IF(AND(OR(Calculations!$E$2=\"Shetland Health Board\",Calculations!$E$2=\"Western Isles Health Board\",Calculations!$E$2=\"Shetland Islands Local Authority\",Calculations!$E$2=\"Eilean Siar Local Authority\"),OR($F64=1,$F64=5)),0,new_yllv2(VALUE(LEFT(Options!$B$24,2)),$C64,$D64,$E64,$F64,2016,$I64+$J64,1,$H64,$G64*$H64,Options!$B$8)))","v":1026.9038209004},{"$f":"IF(AND(OR(Calculations!$E$2=\"Orkney Health Board\",Calculations!$E$2=\"Orkney Islands Local Authority\"),$F64=1),0,IF(AND(OR(Calculations!$E$2=\"Shetland Health Board\",Calculations!$E$2=\"Western Isles Health Board\",Calculations!$E$2=\"Shetland Islands Local Authority\",Calculations!$E$2=\"Eilean Siar Local Authority\"),OR($F64=1,$F64=5)),0,hosp_count(VALUE(LEFT(Options!$B$24,2)),$C64,$E64,$F64,2016,$I64,1,$H64,$G64*$H64, Options!$B$8)))","v":6006.7410350919999},{"$f":"IF(AND(OR(Calculations!$E$2=\"Orkney Health Board\",Calculations!$E$2=\"Orkney Islands Local Authority\"),$F64=1),0,IF(AND(OR(Calculations!$E$2=\"Shetland Health Board\",Calculations!$E$2=\"Western Isles Health Board\",Calculations!$E$2=\"Shetland Islands Local Authority\",Calculations!$E$2=\"Eilean Siar Local Authority\"),OR($F64=1,$F64=5)),0,hosp_count(VALUE(LEFT(Options!$B$24,2)),$C64,$E64,$F64,2016,$I64+$J64,1,$H64,$G64*$H64, Options!$B$8)))","v":5987.6320805238001},{"$f":"IF(AND(OR(Calculations!$E$2=\"Orkney Health Board\",Calculations!$E$2=\"Orkney Islands Local Authority\"),$F64=1),0,IF(AND(OR(Calculations!$E$2=\"Shetland Health Board\",Calculations!$E$2=\"Western Isles Health Board\",Calculations!$E$2=\"Shetland Islands Local Authority\",Calculations!$E$2=\"Eilean Siar Local Authority\"),OR($F64=1,$F64=5)),0,prem_mort(VALUE(LEFT(Options!$B$24,2)),$C64,$E64,$F64,2016,$I64,1,$H64,$G64*$H64,Options!$B$8)))","v":17.5538313132},{"$f":"IF(AND(OR(Calculations!$E$2=\"Orkney Health Board\",Calculations!$E$2=\"Orkney Islands Local Authority\"),$F64=1),0,IF(AND(OR(Calculations!$E$2=\"Shetland Health Board\",Calculations!$E$2=\"Western Isles Health Board\",Calculations!$E$2=\"Shetland Islands Local Authority\",Calculations!$E$2=\"Eilean Siar Local Authority\"),OR($F64=1,$F64=5)),0,prem_mort(VALUE(LEFT(Options!$B$24,2)),$C64,$E64,$F64,2016,$I64+$J64,1,$H64,$G64*$H64,Options!$B$8)))","v":17.526946037199998},46.655941189666166,46.584483407399524,2733.5717342704124,2729.3850225930255,15965.18455,15914.395281000956,46.655941189666166,46.584483407399524,279935.64713799697,279506.90044439712,16401430.405622475,16376310.135558153,95791107.299999997,95486371.686005741,279935.64713799697,279506.90044439712,6000]
[null,"Female 25-29",26.975186999999998,81.645189999999999,"female",1,{"$f":"HLOOKUP(Calculations!$E$2,'Prevalence Rates'!$C$3:$BC$249,'Prevalence Rates'!$BD65,FALSE)","v":0.20134475438354063},{"$f":"HLOOKUP(Calculations!$E$2,'Population 2016'!$C$3:$BC$249,'Population 2016'!BD65,FALSE)","v":45129},0,{"$f":"HLOOKUP(Results!E$4,Targeting!$C$3:$F$249,Targeting!$G65,FALSE)","v":1337},{"$f":"IF(AND(OR(Calculations!$E$2=\"Orkney Health Board\",Calculations!$E$2=\"Orkney Islands Local Authority\"),$F65=1),0,IF(AND(OR(Calculations!$E$2=\"Shetland Health Board\",Calculations!$E$2=\"Western Isles Health Board\",Calculations!$E$2=\"Shetland Islands Local Authority\",Calculations!$E$2=\"Eilean Siar Local Authority\"),OR($F65=1,$F65=5)),0,new_ci(VALUE(LEFT(Options!$B$24,2)),$C65,$E65,$F65,2016,$I65,1,$H65,$G65*$H65,Options!$B$8)))","v":31.932996187600001},{"$f":"IF(AND(OR(Calculations!$E$2=\"Orkney Health Board\",Calculations!$E$2=\"Orkney Islands Local Authority\"),$F65=1),0,IF(AND(OR(Calculations!$E$2=\"Shetland Health Board\",Calculations!$E$2=\"Western Isles Health Board\",Calculations!$E$2=\"Shetland Islands Local Authority\",Calculations!$E$2=\"Eilean Siar Local Authority\"),OR($F65=1,$F65=5)),0,new_ci(VALUE(LEFT(Options!$B$24,2)),$C65,$E65,$F65,2016,$I65+$J65,1,$H65,$G65*$H65,Options!$B$8)))","v":31.884067870399999},{"$f":"IF(AND(OR(Calculations!$E$2=\"Orkney Health Board\",Calculations!$E$2=\"Orkney Islands Local Authority\"),$F65=1),0,IF(AND(OR(Calculations!$E$2=\"Shetland Health Board\",Calculations!$E$2=\"Western Isles Health Board\",Calculations!$E$2=\"Shetland Islands Local Authority\",Calculations!$E$2=\"Eilean Siar Local Authority\"),OR($F65=1,$F65=5)),0,new_yllv2(VALUE(LEFT(Options!$B$24,2)),$C65,$D65,$E65,$F65,2016,$I65,1,$H65,$G65*$H65,Options!$B$8)))","v":1713.8440011875},{"$f":"IF(AND(OR(Calculations!$E$2=\"Orkney Health Board\",Calculations!$E$2=\"Orkney Islands Local Authority\"),$F65=1),0,IF(AND(OR(Calculations!$E$2=\"Shetland Health Board\",Calculations!$E$2=\"Western Isles Health Board\",Calculations!$E$2=\"Shetland Islands Local Authority\",Calculations!$E$2=\"Eilean Siar Local Authority\"),OR($F65=1,$F65=5)),0,new_yllv2(VALUE(LEFT(Options!$B$24,2)),$C65,$D65,$E65,$F65,2016,$I65+$J65,1,$H65,$G65*$H65,Options!$B$8)))","v":1711.2180182566001},{"$f":"IF(AND(OR(Calculations!$E$2=\"Orkney Health Board\",Calculations!$E$2=\"Orkney Islands Local Authority\"),$F65=1),0,IF(AND(OR(Calculations!$E$2=\"Shetland Health Board\",Calculations!$E$2=\"Western Isles Health Board\",Calculations!$E$2=\"Shetland Islands Local Authority\",Calculations!$E$2=\"Eilean Siar Local Authority\"),OR($F65=1,$F65=5)),0,hosp_count(VALUE(LEFT(Options!$B$24,2)),$C65,$E65,$F65,2016,$I65,1,$H65,$G65*$H65, Options!$B$8)))","v":8149.6199866325996},{"$f":"IF(AND(OR(Calculations!$E$2=\"Orkney Health Board\",Calculations!$E$2=\"Orkney Islands Local Authority\"),$F65=1),0,IF(AND(OR(Calculations!$E$2=\"Shetland Health Board\",Calculations!$E$2=\"Western Isles Health Board\",Calculations!$E$2=\"Shetland Islands Local Authority\",Calculations!$E$2=\"Eilean Siar Local Authority\"),OR($F65=1,$F65=5)),0,hosp_count(VALUE(LEFT(Options!$B$24,2)),$C65,$E65,$F65,2016,$I65+$J65,1,$H65,$G65*$H65, Options!$B$8)))","v":8123.6787396829004},{"$f":"IF(AND(OR(Calculations!$E$2=\"Orkney Health Board\",Calculations!$E$2=\"Orkney Islands Local Authority\"),$F65=1),0,IF(AND(OR(Calculations!$E$2=\"Shetland Health Board\",Calculations!$E$2=\"Western Isles Health Board\",Calculations!$E$2=\"Shetland Islands Local Authority\",Calculations!$E$2=\"Eilean Siar Local Authority\"),OR($F65=1,$F65=5)),0,prem_mort(VALUE(LEFT(Options!$B$24,2)),$C65,$E65,$F65,2016,$I65,1,$H65,$G65*$H65,Options!$B$8)))","v":31.932996187600001},{"$f":"IF(AND(OR(Calculations!$E$2=\"Orkney Health Board\",Calculations!$E$2=\"Orkney Islands Local Authority\"),$F65=1),0,IF(AND(OR(Calculations!$E$2=\"Shetland Health Board\",Calculations!$E$2=\"Western Isles Health Board\",Calculations!$E$2=\"Shetland Islands Local Authority\",Calculations!$E$2=\"Eilean Siar Local Authority\"),OR($F65=1,$F65=5)),0,prem_mort(VALUE(LEFT(Options!$B$24,2)),$C65,$E65,$F65,2016,$I65+$J65,1,$H65,$G65*$H65,Options!$B$8)))","v":31.884067870399999},70.759370222251761,70.650951429014597,3797.6556121064064,3791.8367751481314,18058.498940000001,18001.016507529308,70.759370222251761,70.650951429014597,424556.22133351059,423905.70857408759,22785933.672638439,22751020.650888789,108350993.64,108006099.04517585,424556.22133351059,423905.70857408759,6000]
[null,"Female 30-34",31.999904999999998,81.799899999999994,"female",1,{"$f":"HLOOKUP(Calculations!$E$2,'Prevalence Rates'!$C$3:$BC$249,'Prevalence Rates'!$BD66,FALSE)","v":0.20134475438354063},{"$f":"HLOOKUP(Calculations!$E$2,'Population 2016'!$C$3:$BC$249,'Population 2016'!BD66,FALSE)","v":41240},0,{"$f":"HLOOKUP(Results!E$4,Targeting!$C$3:$F$249,Targeting!$G66,FALSE)","v":1221},{"$f":"IF(AND(OR(Calculations!$E$2=\"Orkney Health Board\",Calculations!$E$2=\"Orkney Islands Local Authority\"),$F66=1),0,IF(AND(OR(Calculations!$E$2=\"Shetland Health Board\",Calculations!$E$2=\"Western Isles Health Board\",Calculations!$E$2=\"Shetland Islands Local Authority\",Calculations!$E$2=\"Eilean Siar Local Authority\"),OR($F66=1,$F66=5)),0,new_ci(VALUE(LEFT(Options!$B$24,2)),$C66,$E66,$F66,2016,$I66,1,$H66,$G66*$H66,Options!$B$8)))","v":44.732743298700001},{"$f":"IF(AND(OR(Calculations!$E$2=\"Orkney Health Board\",Calculations!$E$2=\"Orkney Islands Local Authority\"),$F66=1),0,IF(AND(OR(Calculations!$E$2=\"Shetland Health Board\",Calculations!$E$2=\"Western Isles Health Board\",Calculations!$E$2=\"Shetland Islands Local Authority\",Calculations!$E$2=\"Eilean Siar Local Authority\"),OR($F66=1,$F66=5)),0,new_ci(VALUE(LEFT(Options!$B$24,2)),$C66,$E66,$F66,2016,$I66+$J66,1,$H66,$G66*$H66,Options!$B$8)))","v":44.664265467299998},{"$f":"IF(AND(OR(Calculations!$E$2=\"Orkney Health Board\",Calculations!$E$2=\"Orkney Islands Local Authority\"),$F66=1),0,IF(AND(OR(Calculations!$E$2=\"Shetland Health Board\",Calculations!$E$2=\"Western Isles Health Board\",Calculations!$E$2=\"Shetland Islands Local Authority\",Calculations!$E$2=\"Eilean Siar Local Authority\"),OR($F66=1,$F66=5)),0,new_yllv2(VALUE(LEFT(Options!$B$24,2)),$C66,$D66,$E66,$F66,2016,$I66,1,$H66,$G66*$H66,Options!$B$8)))","v":2182.9576493128002},{"$f":"IF(AND(OR(Calculations!$E$2=\"Orkney Health Board\",Calculations!$E$2=\"Orkney Islands Local Authority\"),$F66=1),0,IF(AND(OR(Calculations!$E$2=\"Shetland Health Board\",Calculations!$E$2=\"Western Isles Health Board\",Calculations!$E$2=\"Shetland Islands Local Authority\",Calculations!$E$2=\"Eilean Siar Local Authority\"),OR($F66=1,$F66=5)),0,new_yllv2(VALUE(LEFT(Options!$B$24,2)),$C66,$D66,$E66,$F66,2016,$I66+$J66,1,$H66,$G66*$H66,Options!$B$8)))","v":2179.6159314829001},{"$f":"IF(AND(OR(Calculations!$E$2=\"Orkney Health Board\",Calculations!$E$2=\"Orkney Islands Local Authority\"),$F66=1),0,IF(AND(OR(Calculations!$E$2=\"Shetland Health Board\",Calculations!$E$2=\"Western Isles Health Board\",Calculations!$E$2=\"Shetland Islands Local Authority\",Calculations!$E$2=\"Eilean Siar Local Authority\"),OR($F66=1,$F66=5)),0,hosp_count(VALUE(LEFT(Options!$B$24,2)),$C66,$E66,$F66,2016,$I66,1,$H66,$G66*$H66, Options!$B$8)))","v":8450.6647051239997},{"$f":"IF(AND(OR(Calculations!$E$2=\"Orkney Health Board\",Calculations!$E$2=\"Orkney Islands Local Authority\"),$F66=1),0,IF(AND(OR(Calculations!$E$2=\"Shetland Health Board\",Calculations!$E$2=\"Western Isles Health Board\",Calculations!$E$2=\"Shetland Islands Local Authority\",Calculations!$E$2=\"Eilean Siar Local Authority\"),OR($F66=1,$F66=5)),0,hosp_count(VALUE(LEFT(Options!$B$24,2)),$C66,$E66,$F66,2016,$I66+$J66,1,$H66,$G66*$H66, Options!$B$8)))","v":8423.7824517009994},{"$f":"IF(AND(OR(Calculations!$E$2=\"Orkney Health Board\",Calculations!$E$2=\"Orkney Islands Local Authority\"),$F66=1),0,IF(AND(OR(Calculations!$E$2=\"Shetland Health Board\",Calculations!$E$2=\"Western Isles Health Board\",Calculations!$E$2=\"Shetland Islands Local Authority\",Calculations!$E$2=\"Eilean Siar Local Authority\"),OR($F66=1,$F66=5)),0,prem_mort(VALUE(LEFT(Options!$B$24,2)),$C66,$E66,$F66,2016,$I66,1,$H66,$G66*$H66,Options!$B$8)))","v":44.732743298700001},{"$f":"IF(AND(OR(Calculations!$E$2=\"Orkney Health Board\",Calculations!$E$2=\"Orkney Islands Local Authority\"),$F66=1),0,IF(AND(OR(Calculations!$E$2=\"Shetland Health Board\",Calculations!$E$2=\"Western Isles Health Board\",Calculations!$E$2=\"Shetland Islands Local Authority\",Calculations!$E$2=\"Eilean Siar Local Authority\"),OR($F66=1,$F66=5)),0,prem_mort(VALUE(LEFT(Options!$B$24,2)),$C66,$E66,$F66,2016,$I66+$J66,1,$H66,$G66*$H66,Options!$B$8)))","v":44.664265467299998},108.46930964767218,108.3032625298254,5293.301768459748,5285.1986699391373,20491.427510000001,20426.242608392338,108.46930964767218,108.3032625298254,705050.51270986919,703971.20644386509,34406461.49498836,34353791.354604393,133194278.81500001,132770576.95455019,705050.51270986919,703971.20644386509,6500]
[null,"Female 35-39",36.918118,81.898120000000006,"female",1,{"$f":"HLOOKUP(Calculations!$E$2,'Prevalence Rates'!$C$3:$BC$249,'Prevalence Rates'!$BD67,FALSE)","v":0.20134475438354063},{"$f":"HLOOKUP(Calculations!$E$2,'Population 2016'!$C$3:$BC$249,'Population 2016'!BD67,FALSE)","v":35038},0,{"$f":"HLOOKUP(Results!E$4,Targeting!$C$3:$F$249,Targeting!$G67,FALSE)","v":1038},{"$f":"IF(AND(OR(Calculations!$E$2=\"Orkney Health Board\",Calculations!$E$2=\"Orkney Islands Local Authority\"),$F67=1),0,IF(AND(OR(Calculations!$E$2=\"Shetland Health Board\",Calculations!$E$2=\"Western Isles Health Board\",Calculations!$E$2=\"Shetland Islands Local Authority\",Calculations!$E$2=\"Eilean Siar Local Authority\"),OR($F67=1,$F67=5)),0,new_ci(VALUE(LEFT(Options!$B$24,2)),$C67,$E67,$F67,2016,$I67,1,$H67,$G67*$H67,Options!$B$8)))","v":57.728993640500001},{"$f":"IF(AND(OR(Calculations!$E$2=\"Orkney Health Board\",Calculations!$E$2=\"Orkney Islands Local Authority\"),$F67=1),0,IF(AND(OR(Calculations!$E$2=\"Shetland Health Board\",Calculations!$E$2=\"Western Isles Health Board\",Calculations!$E$2=\"Shetland Islands Local Authority\",Calculations!$E$2=\"Eilean Siar Local Authority\"),OR($F67=1,$F67=5)),0,new_ci(VALUE(LEFT(Options!$B$24,2)),$C67,$E67,$F67,2016,$I67+$J67,1,$H67,$G67*$H67,Options!$B$8)))","v":57.640603269499998},{"$f":"IF(AND(OR(Calculations!$E$2=\"Orkney Health Board\",Calculations!$E$2=\"Orkney Islands Local Authority\"),$F67=1),0,IF(AND(OR(Calculations!$E$2=\"Shetland Health Board\",Calculations!$E$2=\"Western Isles Health Board\",Calculations!$E$2=\"Shetland Islands Local Authority\",Calculations!$E$2=\"Eilean Siar Local Authority\"),OR($F67=1,$F67=5)),0,new_yllv2(VALUE(LEFT(Options!$B$24,2)),$C67,$D67,$E67,$F67,2016,$I67,1,$H67,$G67*$H67,Options!$B$8)))","v":2538.9212557671999},{"$f":"IF(AND(OR(Calculations!$E$2=\"Orkney Health Board\",Calculations!$E$2=\"Orkney Islands Local Authority\"),$F67=1),0,IF(AND(OR(Calculations!$E$2=\"Shetland Health Board\",Calculations!$E$2=\"Western Isles Health Board\",Calculations!$E$2=\"Shetland Islands Local Authority\",Calculations!$E$2=\"Eilean Siar Local Authority\"),OR($F67=1,$F67=5)),0,new_yllv2(VALUE(LEFT(Options!$B$24,2)),$C67,$D67,$E67,$F67,2016,$I67+$J67,1,$H67,$G67*$H67,Options!$B$8)))","v":2535.0338470738002},{"$f":"IF(AND(OR(Calculations!$E$2=\"Orkney Health Board\",Calculations!$E$2=\"Orkney Islands Local Authority\"),$F67=1),0,IF(AND(OR(Calculations!$E$2=\"Shetland Health Board\",Calculations!$E$2=\"Western Isles Health Board\",Calculations!$E$2=\"Shetland Islands Local Authority\",Calculations!$E$2=\"Eilean Siar Local Authority\"),OR($F67=1,$F67=5)),0,hosp_count(VALUE(LEFT(Options!$B$24,2)),$C67,$E67,$F67,2016,$I67,1,$H67,$G67*$H67, Options!$B$8)))","v":8125.2852417628001},{"$f":"IF(AND(OR(Calculations!$E$2=\"Orkney Health Board\",Calculations!$E$2=\"Orkney Islands Local Authority\"),$F67=1),0,IF(AND(OR(Calculations!$E$2=\"Shetland Health Board\",Calculations!$E$2=\"Western Isles Health Board\",Calculations!$E$2=\"Shetland Islands Local Authority\",Calculations!$E$2=\"Eilean Siar Local Authority\"),OR($F67=1,$F67=5)),0,hosp_count(VALUE(LEFT(Options!$B$24,2)),$C67,$E67,$F67,2016,$I67+$J67,1,$H67,$G67*$H67, Options!$B$8)))","v":8099.4225065487999},{"$f":"IF(AND(OR(Calculations!$E$2=\"Orkney Health Board\",Calculations!$E$2=\"Orkney Islands Local Authority\"),$F67=1),0,IF(AND(OR(Calculations!$E$2=\"Shetland Health Board\",Calculations!$E$2=\"Western Isles Health Board\",Calculations!$E$2=\"Shetland Islands Local Authority\",Calculations!$E$2=\"Eilean Siar Local Authority\"),OR($F67=1,$F67=5)),0,prem_mort(VALUE(LEFT(Options!$B$24,2)),$C67,$E67,$F67,2016,$I67,1,$H67,$G67*$H67,Options!$B$8)))","v":57.728993640500001},{"$f":"IF(AND(OR(Calculations!$E$2=\"Orkney Health Board\",Calculations!$E$2=\"Orkney Islands Local Authority\"),$F67=1),0,IF(AND(OR(Calculations!$E$2=\"Shetland Health Board\",Calculations!$E$2=\"Western Isles Health Board\",Calculations!$E$2=\"Shetland Islands Local Authority\",Calculations!$E$2=\"Eilean Siar Local Authority\"),OR($F67=1,$F67=5)),0,prem_mort(VALUE(LEFT(Options!$B$24,2)),$C67,$E67,$F67,2016,$I67+$J67,1,$H67,$G67*$H67,Options!$B$8)))","v":57.640603269499998},164.76109835178949,164.50882832781551,7246.1934350339634,7235.0985988749362,23189.923060000001,23116.109671067985,164.76109835178949,164.50882832781551,1153327.6884625263,1151561.7982947086,50723354.045237742,50645690.192124553,162329461.42000002,161812767.69747588,1153327.6884625263,1151561.7982947086,7000]
[null,"Female 40-44",42.077438000000001,82.30744,"female",1,{"$f":"HLOOKUP(Calculations!$E$2,'Prevalence Rates'!$C$3:$BC$249,'Prevalence Rates'!$BD68,FALSE)","v":0.20134475438354063},{"$f":"HLOOKUP(Calculations!$E$2,'Population 2016'!$C$3:$BC$249,'Population 2016'!BD68,FALSE)","v":33663},0,{"$f":"HLOOKUP(Results!E$4,Targeting!$C$3:$F$249,Targeting!$G68,FALSE)","v":997},{"$f":"IF(AND(OR(Calculations!$E$2=\"Orkney Health Board\",Calculations!$E$2=\"Orkney Islands Local Authority\"),$F68=1),0,IF(AND(OR(Calculations!$E$2=\"Shetland Health Board\",Calculations!$E$2=\"Western Isles Health Board\",Calculations!$E$2=\"Shetland Islands Local Authority\",Calculations!$E$2=\"Eilean Siar Local Authority\"),OR($F68=1,$F68=5)),0,new_ci(VALUE(LEFT(Options!$B$24,2)),$C68,$E68,$F68,2016,$I68,1,$H68,$G68*$H68,Options!$B$8)))","v":85.977629180799994},{"$f":"IF(AND(OR(Calculations!$E$2=\"Orkney Health Board\",Calculations!$E$2=\"Orkney Islands Local Authority\"),$F68=1),0,IF(AND(OR(Calculations!$E$2=\"Shetland Health Board\",Calculations!$E$2=\"Western Isles Health Board\",Calculations!$E$2=\"Shetland Islands Local Authority\",Calculations!$E$2=\"Eilean Siar Local Authority\"),OR($F68=1,$F68=5)),0,new_ci(VALUE(LEFT(Options!$B$24,2)),$C68,$E68,$F68,2016,$I68+$J68,1,$H68,$G68*$H68,Options!$B$8)))","v":85.846106934800005},{"$f":"IF(AND(OR(Calculations!$E$2=\"Orkney Health Board\",Calculations!$E$2=\"Orkney Islands Local Authority\"),$F68=1),0,IF(AND(OR(Calculations!$E$2=\"Shetland Health Board\",Calculations!$E$2=\"Western Isles Health Board\",Calculations!$E$2=\"Shetland Islands Local Authority\",Calculations!$E$2=\"Eilean Siar Local Authority\"),OR($F68=1,$F68=5)),0,new_yllv2(VALUE(LEFT(Options!$B$24,2)),$C68,$D68,$E68,$F68,2016,$I68,1,$H68,$G68*$H68,Options!$B$8)))","v":3372.9025647180001},{"$f":"IF(AND(OR(Calculations!$E$2=\"Orkney Health Board\",Calculations!$E$2=\"Orkney Islands Local Authority\"),$F68=1),0,IF(AND(OR(Calculations!$E$2=\"Shetland Health Board\",Calculations!$E$2=\"Western Isles Health Board\",Calculations!$E$2=\"Shetland Islands Local Authority\",Calculations!$E$2=\"Eilean Siar Local Authority\"),OR($F68=1,$F68=5)),0,new_yllv2(VALUE(LEFT(Options!$B$24,2)),$C68,$D68,$E68,$F68,2016,$I68+$J68,1,$H68,$G68*$H68,Options!$B$8)))","v":3367.7429467443999},{"$f":"IF(AND(OR(Calculations!$E$2=\"Orkney Health Board\",Calculations!$E$2=\"Orkney Islands Local Authority\"),$F68=1),0,IF(AND(OR(Calculations!$E$2=\"Shetland Health Board\",Calculations!$E$2=\"Western Isles Health Board\",Calculations!$E$2=\"Shetland Islands Local Authority\",Calculations!$E$2=\"Eilean Siar Local Authority\"),OR($F68=1,$F68=5)),0,hosp_count(VALUE(LEFT(Options!$B$24,2)),$C68,$E68,$F68,2016,$I68,1,$H68,$G68*$H68, Options!$B$8)))","v":8888.1852506181003},{"$f":"IF(AND(OR(Calculations!$E$2=\"Orkney Health Board\",Calculations!$E$2=\"Orkney Islands Local Authority\"),$F68=1),0,IF(AND(OR(Calculations!$E$2=\"Shetland Health Board\",Calculations!$E$2=\"Western Isles Health Board\",Calculations!$E$2=\"Shetland Islands Local Authority\",Calculations!$E$2=\"Eilean Siar Local Authority\"),OR($F68=1,$F68=5)),0,hosp_count(VALUE(LEFT(Options!$B$24,2)),$C68,$E68,$F68,2016,$I68+$J68,1,$H68,$G68*$H68, Options!$B$8)))","v":8859.9017453888991},{"$f":"IF(AND(OR(Calculations!$E$2=\"Orkney Health Board\",Calculations!$E$2=\"Orkney Islands Local Authority\"),$F68=1),0,IF(AND(OR(Calculations!$E$2=\"Shetland Health Board\",Calculations!$E$2=\"Western Isles Health Board\",Calculations!$E$2=\"Shetland Islands Local Authority\",Calculations!$E$2=\"Eilean Siar Local Authority\"),OR($F68=1,$F68=5)),0,prem_mort(VALUE(LEFT(Options!$B$24,2)),$C68,$E68,$F68,2016,$I68,1,$H68,$G68*$H68,Options!$B$8)))","v":85.977629180799994},{"$f":"IF(AND(OR(Calculations!$E$2=\"Orkney Health Board\",Calculations!$E$2=\"Orkney Islands Local Authority\"),$F68=1),0,IF(AND(OR(Calculations!$E$2=\"Shetland Health Board\",Calculations!$E$2=\"Western Isles Health Board\",Calculations!$E$2=\"Shetland Islands Local Authority\",Calculations!$E$2=\"Eilean Siar Local Authority\"),OR($F68=1,$F68=5)),0,prem_mort(VALUE(LEFT(Options!$B$24,2)),$C68,$E68,$F68,2016,$I68+$J68,1,$H68,$G68*$H68,Options!$B$8)))","v":85.846106934800005},255.40691317113746,255.01621048272582,10019.613714517423,10004.286447269702,26403.425869999999,26319.406307782727,255.40691317113746,255.01621048272582,1787848.3921979622,1785113.4733790809,70137296.001621962,70030005.130887911,184823981.09,184235844.15447909,1787848.3921979622,1785113.4733790809,7000]
[null,"Female 45-49",47.025772000000003,82.585769999999997,"female",1,{"$f":"HLOOKUP(Calculations!$E$2,'Prevalence Rates'!$C$3:$BC$249,'Prevalence Rates'!$BD69,FALSE)","v":0.20134475438354063},{"$f":"HLOOKUP(Calculations!$E$2,'Population 2016'!$C$3:$BC$249,'Population 2016'!BD69,FALSE)","v":39197},0,{"$f":"HLOOKUP(Results!E$4,Targeting!$C$3:$F$249,Targeting!$G69,FALSE)","v":1161},{"$f":"IF(AND(OR(Calculations!$E$2=\"Orkney Health Board\",Calculations!$E$2=\"Orkney Islands Local Authority\"),$F69=1),0,IF(AND(OR(Calculations!$E$2=\"Shetland Health Board\",Calculations!$E$2=\"Western Isles Health Board\",Calculations!$E$2=\"Shetland Islands Local Authority\",Calculations!$E$2=\"Eilean Siar Local Authority\"),OR($F69=1,$F69=5)),0,new_ci(VALUE(LEFT(Options!$B$24,2)),$C69,$E69,$F69,2016,$I69,1,$H69,$G69*$H69,Options!$B$8)))","v":152.39658446999999},{"$f":"IF(AND(OR(Calculations!$E$2=\"Orkney Health Board\",Calculations!$E$2=\"Orkney Islands Local Authority\"),$F69=1),0,IF(AND(OR(Calculations!$E$2=\"Shetland Health Board\",Calculations!$E$2=\"Western Isles Health Board\",Calculations!$E$2=\"Shetland Islands Local Authority\",Calculations!$E$2=\"Eilean Siar Local Authority\"),OR($F69=1,$F69=5)),0,new_ci(VALUE(LEFT(Options!$B$24,2)),$C69,$E69,$F69,2016,$I69+$J69,1,$H69,$G69*$H69,Options!$B$8)))","v":152.16366209579999},{"$f":"IF(AND(OR(Calculations!$E$2=\"Orkney Health Board\",Calculations!$E$2=\"Orkney Islands Local Authority\"),$F69=1),0,IF(AND(OR(Calculations!$E$2=\"Shetland Health Board\",Calculations!$E$2=\"Western Isles Health Board\",Calculations!$E$2=\"Shetland Islands Local Authority\",Calculations!$E$2=\"Eilean Siar Local Authority\"),OR($F69=1,$F69=5)),0,new_yllv2(VALUE(LEFT(Options!$B$24,2)),$C69,$D69,$E69,$F69,2016,$I69,1,$H69,$G69*$H69,Options!$B$8)))","v":5266.8256544899996},{"$f":"IF(AND(OR(Calculations!$E$2=\"Orkney Health Board\",Calculations!$E$2=\"Orkney Islands Local Authority\"),$F69=1),0,IF(AND(OR(Calculations!$E$2=\"Shetland Health Board\",Calculations!$E$2=\"Western Isles Health Board\",Calculations!$E$2=\"Shetland Islands Local Authority\",Calculations!$E$2=\"Eilean Siar Local Authority\"),OR($F69=1,$F69=5)),0,new_yllv2(VALUE(LEFT(Options!$B$24,2)),$C69,$D69,$E69,$F69,2016,$I69+$J69,1,$H69,$G69*$H69,Options!$B$8)))","v":5258.7758577035002},{"$f":"IF(AND(OR(Calculations!$E$2=\"Orkney Health Board\",Calculations!$E$2=\"Orkney Islands Local Authority\"),$F69=1),0,IF(AND(OR(Calculations!$E$2=\"Shetland Health Board\",Calculations!$E$2=\"Western Isles Health Board\",Calculations!$E$2=\"Shetland Islands Local Authority\",Calculations!$E$2=\"Eilean Siar Local Authority\"),OR($F69=1,$F69=5)),0,hosp_count(VALUE(LEFT(Options!$B$24,2)),$C69,$E69,$F69,2016,$I69,1,$H69,$G69*$H69, Options!$B$8)))","v":11721.123672973999},{"$f":"IF(AND(OR(Calculations!$E$2=\"Orkney Health Board\",Calculations!$E$2=\"Orkney Islands Local Authority\"),$F69=1),0,IF(AND(OR(Calculations!$E$2=\"Shetland Health Board\",Calculations!$E$2=\"Western Isles Health Board\",Calculations!$E$2=\"Shetland Islands Local Authority\",Calculations!$E$2=\"Eilean Siar Local Authority\"),OR($F69=1,$F69=5)),0,hosp_count(VALUE(LEFT(Options!$B$24,2)),$C69,$E69,$F69,2016,$I69+$J69,1,$H69,$G69*$H69, Options!$B$8)))","v":11683.8221613884},{"$f":"IF(AND(OR(Calculations!$E$2=\"Orkney Health Board\",Calculations!$E$2=\"Orkney Islands Local Authority\"),$F69=1),0,IF(AND(OR(Calculations!$E$2=\"Shetland Health Board\",Calculations!$E$2=\"Western Isles Health Board\",Calculations!$E$2=\"Shetland Islands Local Authority\",Calculations!$E$2=\"Eilean Siar Local Authority\"),OR($F69=1,$F69=5)),0,prem_mort(VALUE(LEFT(Options!$B$24,2)),$C69,$E69,$F69,2016,$I69,1,$H69,$G69*$H69,Options!$B$8)))","v":152.39658446999999},{"$f":"IF(AND(OR(Calculations!$E$2=\"Orkney Health Board\",Calculations!$E$2=\"Orkney Islands Local Authority\"),$F69=1),0,IF(AND(OR(Calculations!$E$2=\"Shetland Health Board\",Calculations!$E$2=\"Western Isles Health Board\",Calculations!$E$2=\"Shetland Islands Local Authority\",Calculations!$E$2=\"Eilean Siar Local Authority\"),OR($F69=1,$F69=5)),0,prem_mort(VALUE(LEFT(Options!$B$24,2)),$C69,$E69,$F69,2016,$I69+$J69,1,$H69,$G69*$H69,Options!$B$8)))","v":152.16366209579999},388.79655195550674,388.20231674822048,13436.80805798913,13416.271290413808,29903.1142,29807.949999715282,388.79655195550674,388.20231674822048,2721575.8636885472,2717416.2172375433,94057656.405923918,93913899.032896653,209321799.40000001,208655649.99800697,2721575.8636885472,2717416.2172375433,7000]
[null,"Female 50-54",51.990825999999998,82.980829999999997,"female",1,{"$f":"HLOOKUP(Calculations!$E$2,'Prevalence Rates'!$C$3:$BC$249,'Prevalence Rates'!$BD70,FALSE)","v":0.20134475438354063},{"$f":"HLOOKUP(Calculations!$E$2,'Population 2016'!$C$3:$BC$249,'Population 2016'!BD70,FALSE)","v":39704},0,{"$f":"HLOOKUP(Results!E$4,Targeting!$C$3:$F$249,Targeting!$G70,FALSE)","v":1176},{"$f":"IF(AND(OR(Calculations!$E$2=\"Orkney Health Board\",Calculations!$E$2=\"Orkney Islands Local Authority\"),$F70=1),0,IF(AND(OR(Calculations!$E$2=\"Shetland Health Board\",Calculations!$E$2=\"Western Isles Health Board\",Calculations!$E$2=\"Shetland Islands Local Authority\",Calculations!$E$2=\"Eilean Siar Local Authority\"),OR($F70=1,$F70=5)),0,new_ci(VALUE(LEFT(Options!$B$24,2)),$C70,$E70,$F70,2016,$I70,1,$H70,$G70*$H70,Options!$B$8)))","v":235.23828200310001},{"$f":"IF(AND(OR(Calculations!$E$2=\"Orkney Health Board\",Calculations!$E$2=\"Orkney Islands Local Authority\"),$F70=1),0,IF(AND(OR(Calculations!$E$2=\"Shetland Health Board\",Calculations!$E$2=\"Western Isles Health Board\",Calculations!$E$2=\"Shetland Islands Local Authority\",Calculations!$E$2=\"Eilean Siar Local Authority\"),OR($F70=1,$F70=5)),0,new_ci(VALUE(LEFT(Options!$B$24,2)),$C70,$E70,$F70,2016,$I70+$J70,1,$H70,$G70*$H70,Options!$B$8)))","v":234.8792750751},{"$f":"IF(AND(OR(Calculations!$E$2=\"Orkney Health Board\",Calculations!$E$2=\"Orkney Islands Local Authority\"),$F70=1),0,IF(AND(OR(Calculations!$E$2=\"Shetland Health Board\",Calculations!$E$2=\"Western Isles Health Board\",Calculations!$E$2=\"Shetland Islands Local Authority\",Calculations!$E$2=\"Eilean Siar Local Authority\"),OR($F70=1,$F70=5)),0,new_yllv2(VALUE(LEFT(Options!$B$24,2)),$C70,$D70,$E70,$F70,2016,$I70,1,$H70,$G70*$H70,Options!$B$8)))","v":7054.7970182260997},{"$f":"IF(AND(OR(Calculations!$E$2=\"Orkney Health Board\",Calculations!$E$2=\"Orkney Islands Local Authority\"),$F70=1),0,IF(AND(OR(Calculations!$E$2=\"Shetland Health Board\",Calculations!$E$2=\"Western Isles Health Board\",Calculations!$E$2=\"Shetland Islands Local Authority\",Calculations!$E$2=\"Eilean Siar Local Authority\"),OR($F70=1,$F70=5)),0,new_yllv2(VALUE(LEFT(Options!$B$24,2)),$C70,$D70,$E70,$F70,2016,$I70+$J70,1,$H70,$G70*$H70,Options!$B$8)))","v":7044.0303990192997},{"$f":"IF(AND(OR(Calculations!$E$2=\"Orkney Health Board\",Calculations!$E$2=\"Orkney Islands Local Authority\"),$F70=1),0,IF(AND(OR(Calculations!$E$2=\"Shetland Health Board\",Calculations!$E$2=\"Western Isles Health Board\",Calculations!$E$2=\"Shetland Islands Local Authority\",Calculations!$E$2=\"Eilean Siar Local Authority\"),OR($F70=1,$F70=5)),0,hosp_count(VALUE(LEFT(Options!$B$24,2)),$C70,$E70,$F70,2016,$I70,1,$H70,$G70*$H70, Options!$B$8)))","v":13452.080933396001},{"$f":"IF(AND(OR(Calculations!$E$2=\"Orkney Health Board\",Calculations!$E$2=\"Orkney Islands Local Authority\"),$F70=1),0,IF(AND(OR(Calculations!$E$2=\"Shetland Health Board\",Calculations!$E$2=\"Western Isles Health Board\",Calculations!$E$2=\"Shetland Islands Local Authority\",Calculations!$E$2=\"Eilean Siar Local Authority\"),OR($F70=1,$F70=5)),0,hosp_count(VALUE(LEFT(Options!$B$24,2)),$C70,$E70,$F70,2016,$I70+$J70,1,$H70,$G70*$H70, Options!$B$8)))","v":13409.2714168122},{"$f":"IF(AND(OR(Calculations!$E$2=\"Orkney Health Board\",Calculations!$E$2=\"Orkney Islands Local Authority\"),$F70=1),0,IF(AND(OR(Calculations!$E$2=\"Shetland Health Board\",Calculations!$E$2=\"Western Isles Health Board\",Calculations!$E$2=\"Shetland Islands Local Authority\",Calculations!$E$2=\"Eilean Siar Local Authority\"),OR($F70=1,$F70=5)),0,prem_mort(VALUE(LEFT(Options!$B$24,2)),$C70,$E70,$F70,2016,$I70,1,$H70,$G70*$H70,Options!$B$8)))","v":235.23828200310001},{"$f":"IF(AND(OR(Calculations!$E$2=\"Orkney Health Board\",Calculations!$E$2=\"Orkney Islands Local Authority\"),$F70=1),0,IF(AND(OR(Calculations!$E$2=\"Shetland Health Board\",Calculations!$E$2=\"Western Isles Health Board\",Calculations!$E$2=\"Shetland Islands Local Authority\",Calculations!$E$2=\"Eilean Siar Local Authority\"),OR($F70=1,$F70=5)),0,prem_mort(VALUE(LEFT(Options!$B$24,2)),$C70,$E70,$F70,2016,$I70+$J70,1,$H70,$G70*$H70,Options!$B$8)))","v":234.8792750751},592.48005743275235,591.57584897012896,17768.47929232848,17741.362076917438,33880.921150000002,33773.099478168951,592.48005743275235,591.57584897012896,4147360.4020292666,4141030.9427909027,124379355.04629937,124189534.53842206,237166448.05000001,236411696.34718266,4147360.4020292666,4141030.9427909027,7000]
[null,"Female 55-59",56.953040999999999,83.473039999999997,"female",1,{"$f":"HLOOKUP(Calculations!$E$2,'Prevalence Rates'!$C$3:$BC$249,'Prevalence Rates'!$BD71,FALSE)","v":0.13477388664831333},{"$f":"HLOOKUP(Calculations!$E$2,'Population 2016'!$C$3:$BC$249,'Population 2016'!BD71,FALSE)","v":35528},0,{"$f":"HLOOKUP(Results!E$4,Targeting!$C$3:$F$249,Targeting!$G71,FALSE)","v":1052},{"$f":"IF(AND(OR(Calculations!$E$2=\"Orkney Health Board\",Calculations!$E$2=\"Orkney Islands Local Authority\"),$F71=1),0,IF(AND(OR(Calculations!$E$2=\"Shetland Health Board\",Calculations!$E$2=\"Western Isles Health Board\",Calculations!$E$2=\"Shetland Islands Local Authority\",Calculations!$E$2=\"Eilean Siar Local Authority\"),OR($F71=1,$F71=5)),0,new_ci(VALUE(LEFT(Options!$B$24,2)),$C71,$E71,$F71,2016,$I71,1,$H71,$G71*$H71,Options!$B$8)))","v":320.52518387729998},{"$f":"IF(AND(OR(Calculations!$E$2=\"Orkney Health Board\",Calculations!$E$2=\"Orkney Islands Local Authority\"),$F71=1),0,IF(AND(OR(Calculations!$E$2=\"Shetland Health Board\",Calculations!$E$2=\"Western Isles Health Board\",Calculations!$E$2=\"Shetland Islands Local Authority\",Calculations!$E$2=\"Eilean Siar Local Authority\"),OR($F71=1,$F71=5)),0,new_ci(VALUE(LEFT(Options!$B$24,2)),$C71,$E71,$F71,2016,$I71+$J71,1,$H71,$G71*$H71,Options!$B$8)))","v":320.02711184729998},{"$f":"IF(AND(OR(Calculations!$E$2=\"Orkney Health Board\",Calculations!$E$2=\"Orkney Islands Local Authority\"),$F71=1),0,IF(AND(OR(Calculations!$E$2=\"Shetland Health Board\",Calculations!$E$2=\"Western Isles Health Board\",Calculations!$E$2=\"Shetland Islands Local Authority\",Calculations!$E$2=\"Eilean Siar Local Authority\"),OR($F71=1,$F71=5)),0,new_yllv2(VALUE(LEFT(Options!$B$24,2)),$C71,$D71,$E71,$F71,2016,$I71,1,$H71,$G71*$H71,Options!$B$8)))","v":8179.8023720234996},{"$f":"IF(AND(OR(Calculations!$E$2=\"Orkney Health Board\",Calculations!$E$2=\"Orkney Islands Local Authority\"),$F71=1),0,IF(AND(OR(Calculations!$E$2=\"Shetland Health Board\",Calculations!$E$2=\"Western Isles Health Board\",Calculations!$E$2=\"Shetland Islands Local Authority\",Calculations!$E$2=\"Eilean Siar Local Authority\"),OR($F71=1,$F71=5)),0,new_yllv2(VALUE(LEFT(Options!$B$24,2)),$C71,$D71,$E71,$F71,2016,$I71+$J71,1,$H71,$G71*$H71,Options!$B$8)))","v":8167.0915743160003},{"$f":"IF(AND(OR(Calculations!$E$2=\"Orkney Health Board\",Calculations!$E$2=\"Orkney Islands Local Authority\"),$F71=1),0,IF(AND(OR(Calculations!$E$2=\"Shetland Health Board\",Calculations!$E$2=\"Western Isles Health Board\",Calculations!$E$2=\"Shetland Islands Local Authority\",Calculations!$E$2=\"Eilean Siar Local Authority\"),OR($F71=1,$F71=5)),0,hosp_count(VALUE(LEFT(Options!$B$24,2)),$C71,$E71,$F71,2016,$I71,1,$H71,$G71*$H71, Options!$B$8)))","v":13637.468044908001},{"$f":"IF(AND(OR(Calculations!$E$2=\"Orkney Health Board\",Calculations!$E$2=\"Orkney Islands Local Authority\"),$F71=1),0,IF(AND(OR(Calculations!$E$2=\"Shetland Health Board\",Calculations!$E$2=\"Western Isles Health Board\",Calculations!$E$2=\"Shetland Islands Local Authority\",Calculations!$E$2=\"Eilean Siar Local Authority\"),OR($F71=1,$F71=5)),0,hosp_count(VALUE(LEFT(Options!$B$24,2)),$C71,$E71,$F71,2016,$I71+$J71,1,$H71,$G71*$H71, Options!$B$8)))","v":13593.089685140199},{"$f":"IF(AND(OR(Calculations!$E$2=\"Orkney Health Board\",Calculations!$E$2=\"Orkney Islands Local Authority\"),$F71=1),0,IF(AND(OR(Calculations!$E$2=\"Shetland Health Board\",Calculations!$E$2=\"Western Isles Health Board\",Calculations!$E$2=\"Shetland Islands Local Authority\",Calculations!$E$2=\"Eilean Siar Local Authority\"),OR($F71=1,$F71=5)),0,prem_mort(VALUE(LEFT(Options!$B$24,2)),$C71,$E71,$F71,2016,$I71,1,$H71,$G71*$H71,Options!$B$8)))","v":320.52518387729998},{"$f":"IF(AND(OR(Calculations!$E$2=\"Orkney Health Board\",Calculations!$E$2=\"Orkney Islands Local Authority\"),$F71=1),0,IF(AND(OR(Calculations!$E$2=\"Shetland Health Board\",Calculations!$E$2=\"Western Isles Health Board\",Calculations!$E$2=\"Shetland Islands Local Authority\",Calculations!$E$2=\"Eilean Siar Local Authority\"),OR($F71=1,$F71=5)),0,prem_mort(VALUE(LEFT(Options!$B$24,2)),$C71,$E71,$F71,2016,$I71+$J71,1,$H71,$G71*$H71,Options!$B$8)))","v":320.02711184729998},902.17626626125866,900.77435219348115,23023.537412811023,22987.760567203331,38385.127350000002,38260.216407172367,902.17626626125866,900.77435219348115,5864145.7306981813,5855033.2892576279,149652993.18327165,149420443.68682164,249503327.77500001,248691406.64662039,5864145.7306981813,5855033.2892576279,6500]
[null,"Female 60-64",61.947387999999997,84.167389999999997,"female",1,{"$f":"HLOOKUP(Calculations!$E$2,'Prevalence Rates'!$C$3:$BC$249,'Prevalence Rates'!$BD72,FALSE)","v":0.13477388664831333},{"$f":"HLOOKUP(Calculations!$E$2,'Population 2016'!$C$3:$BC$249,'Population 2016'!BD72,FALSE)","v":29212},0,{"$f":"HLOOKUP(Results!E$4,Targeting!$C$3:$F$249,Targeting!$G72,FALSE)","v":865},{"$f":"IF(AND(OR(Calculations!$E$2=\"Orkney Health Board\",Calculations!$E$2=\"Orkney Islands Local Authority\"),$F72=1),0,IF(AND(OR(Calculations!$E$2=\"Shetland Health Board\",Calculations!$E$2=\"Western Isles Health Board\",Calculations!$E$2=\"Shetland Islands Local Authority\",Calculations!$E$2=\"Eilean Siar Local Authority\"),OR($F72=1,$F72=5)),0,new_ci(VALUE(LEFT(Options!$B$24,2)),$C72,$E72,$F72,2016,$I72,1,$H72,$G72*$H72,Options!$B$8)))","v":402.0549467271},{"$f":"IF(AND(OR(Calculations!$E$2=\"Orkney Health Board\",Calculations!$E$2=\"Orkney Islands Local Authority\"),$F72=1),0,IF(AND(OR(Calculations!$E$2=\"Shetland Health Board\",Calculations!$E$2=\"Western Isles Health Board\",Calculations!$E$2=\"Shetland Islands Local Authority\",Calculations!$E$2=\"Eilean Siar Local Authority\"),OR($F72=1,$F72=5)),0,new_ci(VALUE(LEFT(Options!$B$24,2)),$C72,$E72,$F72,2016,$I72+$J72,1,$H72,$G72*$H72,Options!$B$8)))","v":401.43238961909998},{"$f":"IF(AND(OR(Calculations!$E$2=\"Orkney Health Board\",Calculations!$E$2=\"Orkney Islands Local Authority\"),$F72=1),0,IF(AND(OR(Calculations!$E$2=\"Shetland Health Board\",Calculations!$E$2=\"Western Isles Health Board\",Calculations!$E$2=\"Shetland Islands Local Authority\",Calculations!$E$2=\"Eilean Siar Local Authority\"),OR($F72=1,$F72=5)),0,new_yllv2(VALUE(LEFT(Options!$B$24,2)),$C72,$D72,$E72,$F72,2016,$I72,1,$H72,$G72*$H72,Options!$B$8)))","v":8531.6067736589994},{"$f":"IF(AND(OR(Calculations!$E$2=\"Orkney Health Board\",Calculations!$E$2=\"Orkney Islands Local Authority\"),$F72=1),0,IF(AND(OR(Calculations!$E$2=\"Shetland Health Board\",Calculations!$E$2=\"Western Isles Health Board\",Calculations!$E$2=\"Shetland Islands Local Authority\",Calculations!$E$2=\"Eilean Siar Local Authority\"),OR($F72=1,$F72=5)),0,new_yllv2(VALUE(LEFT(Options!$B$24,2)),$C72,$D72,$E72,$F72,2016,$I72+$J72,1,$H72,$G72*$H72,Options!$B$8)))","v":8518.3961105820999},{"$f":"IF(AND(OR(Calculations!$E$2=\"Orkney Health Board\",Calculations!$E$2=\"Orkney Islands Local Authority\"),$F72=1),0,IF(AND(OR(Calculations!$E$2=\"Shetland Health Board\",Calculations!$E$2=\"Western Isles Health Board\",Calculations!$E$2=\"Shetland Islands Local Authority\",Calculations!$E$2=\"Eilean Siar Local Authority\"),OR($F72=1,$F72=5)),0,hosp_count(VALUE(LEFT(Options!$B$24,2)),$C72,$E72,$F72,2016,$I72,1,$H72,$G72*$H72, Options!$B$8)))","v":12714.0251895444},{"$f":"IF(AND(OR(Calculations!$E$2=\"Orkney Health Board\",Calculations!$E$2=\"Orkney Islands Local Authority\"),$F72=1),0,IF(AND(OR(Calculations!$E$2=\"Shetland Health Board\",Calculations!$E$2=\"Western Isles Health Board\",Calculations!$E$2=\"Shetland Islands Local Authority\",Calculations!$E$2=\"Eilean Siar Local Authority\"),OR($F72=1,$F72=5)),0,hosp_count(VALUE(LEFT(Options!$B$24,2)),$C72,$E72,$F72,2016,$I72+$J72,1,$H72,$G72*$H72, Options!$B$8)))","v":12672.6509139106},{"$f":"IF(AND(OR(Calculations!$E$2=\"Orkney Health Board\",Calculations!$E$2=\"Orkney Islands Local Authority\"),$F72=1),0,IF(AND(OR(Calculations!$E$2=\"Shetland Health Board\",Calculations!$E$2=\"Western Isles Health Board\",Calculations!$E$2=\"Shetland Islands Local Authority\",Calculations!$E$2=\"Eilean Siar Local Authority\"),OR($F72=1,$F72=5)),0,prem_mort(VALUE(LEFT(Options!$B$24,2)),$C72,$E72,$F72,2016,$I72,1,$H72,$G72*$H72,Options!$B$8)))","v":402.0549467271},{"$f":"IF(AND(OR(Calculations!$E$2=\"Orkney Health Board\",Calculations!$E$2=\"Orkney Islands Local Authority\"),$F72=1),0,IF(AND(OR(Calculations!$E$2=\"Shetland Health Board\",Calculations!$E$2=\"Western Isles Health Board\",Calculations!$E$2=\"Shetland Islands Local Authority\",Calculations!$E$2=\"Eilean Siar Local Authority\"),OR($F72=1,$F72=5)),0,prem_mort(VALUE(LEFT(Options!$B$24,2)),$C72,$E72,$F72,2016,$I72+$J72,1,$H72,$G72*$H72,Options!$B$8)))","v":401.43238961909998},1376.334885413871,1374.2037163463642,29205.829021152262,29160.605609277351,43523.295869999994,43381.661351193346,1376.334885413871,{"$f":"R72*100000/$H72","v":1374.2037163463642},8258009.3124832259,8245222.2980781849,175234974.12691358,174963633.65566412,261139775.21999997,260289968.10716009,8258009.3124832259,8245222.2980781849,6000]
[null,"Female 65-69",67.063927000000007,85.193929999999995,"female",1,{"$f":"HLOOKUP(Calculations!$E$2,'Prevalence Rates'!$C$3:$BC$249,'Prevalence Rates'!$BD73,FALSE)","v":0.13477388664831333},{"$f":"HLOOKUP(Calculations!$E$2,'Population 2016'!$C$3:$BC$249,'Population 2016'!BD73,FALSE)","v":27762},0,{"$f":"HLOOKUP(Results!E$4,Targeting!$C$3:$F$249,Targeting!$G73,FALSE)","v":822},{"$f":"IF(AND(OR(Calculations!$E$2=\"Orkney Health Board\",Calculations!$E$2=\"Orkney Islands Local Authority\"),$F73=1),0,IF(AND(OR(Calculations!$E$2=\"Shetland Health Board\",Calculations!$E$2=\"Western Isles Health Board\",Calculations!$E$2=\"Shetland Islands Local Authority\",Calculations!$E$2=\"Eilean Siar Local Authority\"),OR($F73=1,$F73=5)),0,new_ci(VALUE(LEFT(Options!$B$24,2)),$C73,$E73,$F73,2016,$I73,1,$H73,$G73*$H73,Options!$B$8)))","v":588.19033509149995},{"$f":"IF(AND(OR(Calculations!$E$2=\"Orkney Health Board\",Calculations!$E$2=\"Orkney Islands Local Authority\"),$F73=1),0,IF(AND(OR(Calculations!$E$2=\"Shetland Health Board\",Calculations!$E$2=\"Western Isles Health Board\",Calculations!$E$2=\"Shetland Islands Local Authority\",Calculations!$E$2=\"Eilean Siar Local Authority\"),OR($F73=1,$F73=5)),0,new_ci(VALUE(LEFT(Options!$B$24,2)),$C73,$E73,$F73,2016,$I73+$J73,1,$H73,$G73*$H73,Options!$B$8)))","v":587.28472700550003},{"$f":"IF(AND(OR(Calculations!$E$2=\"Orkney Health Board\",Calculations!$E$2=\"Orkney Islands Local Authority\"),$F73=1),0,IF(AND(OR(Calculations!$E$2=\"Shetland Health Board\",Calculations!$E$2=\"Western Isles Health Board\",Calculations!$E$2=\"Shetland Islands Local Authority\",Calculations!$E$2=\"Eilean Siar Local Authority\"),OR($F73=1,$F73=5)),0,new_yllv2(VALUE(LEFT(Options!$B$24,2)),$C73,$D73,$E73,$F73,2016,$I73,1,$H73,$G73*$H73,Options!$B$8)))","v":10075.702204688399},{"$f":"IF(AND(OR(Calculations!$E$2=\"Orkney Health Board\",Calculations!$E$2=\"Orkney Islands Local Authority\"),$F73=1),0,IF(AND(OR(Calculations!$E$2=\"Shetland Health Board\",Calculations!$E$2=\"Western Isles Health Board\",Calculations!$E$2=\"Shetland Islands Local Authority\",Calculations!$E$2=\"Eilean Siar Local Authority\"),OR($F73=1,$F73=5)),0,new_yllv2(VALUE(LEFT(Options!$B$24,2)),$C73,$D73,$E73,$F73,2016,$I73+$J73,1,$H73,$G73*$H73,Options!$B$8)))","v":10060.1891354584},{"$f":"IF(AND(OR(Calculations!$E$2=\"Orkney Health Board\",Calculations!$E$2=\"Orkney Islands Local Authority\"),$F73=1),0,IF(AND(OR(Calculations!$E$2=\"Shetland Health Board\",Calculations!$E$2=\"Western Isles Health Board\",Calculations!$E$2=\"Shetland Islands Local Authority\",Calculations!$E$2=\"Eilean Siar Local Authority\"),OR($F73=1,$F73=5)),0,hosp_count(VALUE(LEFT(Options!$B$24,2)),$C73,$E73,$F73,2016,$I73,1,$H73,$G73*$H73, Options!$B$8)))","v":13742.512922031599},{"$f":"IF(AND(OR(Calculations!$E$2=\"Orkney Health Board\",Calculations!$E$2=\"Orkney Islands Local Authority\"),$F73=1),0,IF(AND(OR(Calculations!$E$2=\"Shetland Health Board\",Calculations!$E$2=\"Western Isles Health Board\",Calculations!$E$2=\"Shetland Islands Local Authority\",Calculations!$E$2=\"Eilean Siar Local Authority\"),OR($F73=1,$F73=5)),0,hosp_count(VALUE(LEFT(Options!$B$24,2)),$C73,$E73,$F73,2016,$I73+$J73,1,$H73,$G73*$H73, Options!$B$8)))","v":13697.795192706},{"$f":"IF(AND(OR(Calculations!$E$2=\"Orkney Health Board\",Calculations!$E$2=\"Orkney Islands Local Authority\"),$F73=1),0,IF(AND(OR(Calculations!$E$2=\"Shetland Health Board\",Calculations!$E$2=\"Western Isles Health Board\",Calculations!$E$2=\"Shetland Islands Local Authority\",Calculations!$E$2=\"Eilean Siar Local Authority\"),OR($F73=1,$F73=5)),0,prem_mort(VALUE(LEFT(Options!$B$24,2)),$C73,$E73,$F73,2016,$I73,1,$H73,$G73*$H73,Options!$B$8)))","v":588.19033509149995},{"$f":"IF(AND(OR(Calculations!$E$2=\"Orkney Health Board\",Calculations!$E$2=\"Orkney Islands Local Authority\"),$F73=1),0,IF(AND(OR(Calculations!$E$2=\"Shetland Health Board\",Calculations!$E$2=\"Western Isles Health Board\",Calculations!$E$2=\"Shetland Islands Local Authority\",Calculations!$E$2=\"Eilean Siar Local Authority\"),OR($F73=1,$F73=5)),0,prem_mort(VALUE(LEFT(Options!$B$24,2)),$C73,$E73,$F73,2016,$I73+$J73,1,$H73,$G73*$H73,Options!$B$8)))","v":587.28472700550003},2118.6886214663928,2115.4265795169658,36293.142441785167,36237.263653405374,49501.163180000003,49340.087863648158,2118.6886214663928,2115.4265795169658,11652787.418065161,11634846.187343312,199612283.42981842,199304950.09372956,272256397.49000001,271370483.25006485,11652787.418065161,11634846.187343312,5500]
[null,"Female 70-74",71.938164,86.248159999999999,"female",1,{"$f":"HLOOKUP(Calculations!$E$2,'Prevalence Rates'!$C$3:$BC$249,'Prevalence Rates'!$BD74,FALSE)","v":0.13477388664831333},{"$f":"HLOOKUP(Calculations!$E$2,'Population 2016'!$C$3:$BC$249,'Population 2016'!BD74,FALSE)","v":21786},0,{"$f":"HLOOKUP(Results!E$4,Targeting!$C$3:$F$249,Targeting!$G74,FALSE)","v":645},{"$f":"IF(AND(OR(Calculations!$E$2=\"Orkney Health Board\",Calculations!$E$2=\"Orkney Islands Local Authority\"),$F74=1),0,IF(AND(OR(Calculations!$E$2=\"Shetland Health Board\",Calculations!$E$2=\"Western Isles Health Board\",Calculations!$E$2=\"Shetland Islands Local Authority\",Calculations!$E$2=\"Eilean Siar Local Authority\"),OR($F74=1,$F74=5)),0,new_ci(VALUE(LEFT(Options!$B$24,2)),$C74,$E74,$F74,2016,$I74,1,$H74,$G74*$H74,Options!$B$8)))","v":694.84322822679997},{"$f":"IF(AND(OR(Calculations!$E$2=\"Orkney Health Board\",Calculations!$E$2=\"Orkney Islands Local Authority\"),$F74=1),0,IF(AND(OR(Calculations!$E$2=\"Shetland Health Board\",Calculations!$E$2=\"Western Isles Health Board\",Calculations!$E$2=\"Shetland Islands Local Authority\",Calculations!$E$2=\"Eilean Siar Local Authority\"),OR($F74=1,$F74=5)),0,new_ci(VALUE(LEFT(Options!$B$24,2)),$C74,$E74,$F74,2016,$I74+$J74,1,$H74,$G74*$H74,Options!$B$8)))","v":693.7822232218},{"$f":"IF(AND(OR(Calculations!$E$2=\"Orkney Health Board\",Calculations!$E$2=\"Orkney Islands Local Authority\"),$F74=1),0,IF(AND(OR(Calculations!$E$2=\"Shetland Health Board\",Calculations!$E$2=\"Western Isles Health Board\",Calculations!$E$2=\"Shetland Islands Local Authority\",Calculations!$E$2=\"Eilean Siar Local Authority\"),OR($F74=1,$F74=5)),0,new_yllv2(VALUE(LEFT(Options!$B$24,2)),$C74,$D74,$E74,$F74,2016,$I74,1,$H74,$G74*$H74,Options!$B$8)))","v":9248.3605883258006},{"$f":"IF(AND(OR(Calculations!$E$2=\"Orkney Health Board\",Calculations!$E$2=\"Orkney Islands Local Authority\"),$F74=1),0,IF(AND(OR(Calculations!$E$2=\"Shetland Health Board\",Calculations!$E$2=\"Western Isles Health Board\",Calculations!$E$2=\"Shetland Islands Local Authority\",Calculations!$E$2=\"Eilean Siar Local Authority\"),OR($F74=1,$F74=5)),0,new_yllv2(VALUE(LEFT(Options!$B$24,2)),$C74,$D74,$E74,$F74,2016,$I74+$J74,1,$H74,$G74*$H74,Options!$B$8)))","v":9234.2386159532998},{"$f":"IF(AND(OR(Calculations!$E$2=\"Orkney Health Board\",Calculations!$E$2=\"Orkney Islands Local Authority\"),$F74=1),0,IF(AND(OR(Calculations!$E$2=\"Shetland Health Board\",Calculations!$E$2=\"Western Isles Health Board\",Calculations!$E$2=\"Shetland Islands Local Authority\",Calculations!$E$2=\"Eilean Siar Local Authority\"),OR($F74=1,$F74=5)),0,hosp_count(VALUE(LEFT(Options!$B$24,2)),$C74,$E74,$F74,2016,$I74,1,$H74,$G74*$H74, Options!$B$8)))","v":12191.007503147401},{"$f":"IF(AND(OR(Calculations!$E$2=\"Orkney Health Board\",Calculations!$E$2=\"Orkney Islands Local Authority\"),$F74=1),0,IF(AND(OR(Calculations!$E$2=\"Shetland Health Board\",Calculations!$E$2=\"Western Isles Health Board\",Calculations!$E$2=\"Shetland Islands Local Authority\",Calculations!$E$2=\"Eilean Siar Local Authority\"),OR($F74=1,$F74=5)),0,hosp_count(VALUE(LEFT(Options!$B$24,2)),$C74,$E74,$F74,2016,$I74+$J74,1,$H74,$G74*$H74, Options!$B$8)))","v":12151.341875169601},{"$f":"IF(AND(OR(Calculations!$E$2=\"Orkney Health Board\",Calculations!$E$2=\"Orkney Islands Local Authority\"),$F74=1),0,IF(AND(OR(Calculations!$E$2=\"Shetland Health Board\",Calculations!$E$2=\"Western Isles Health Board\",Calculations!$E$2=\"Shetland Islands Local Authority\",Calculations!$E$2=\"Eilean Siar Local Authority\"),OR($F74=1,$F74=5)),0,prem_mort(VALUE(LEFT(Options!$B$24,2)),$C74,$E74,$F74,2016,$I74,1,$H74,$G74*$H74,Options!$B$8)))","v":694.84322822679997},{"$f":"IF(AND(OR(Calculations!$E$2=\"Orkney Health Board\",Calculations!$E$2=\"Orkney Islands Local Authority\"),$F74=1),0,IF(AND(OR(Calculations!$E$2=\"Shetland Health Board\",Calculations!$E$2=\"Western Isles Health Board\",Calculations!$E$2=\"Shetland Islands Local Authority\",Calculations!$E$2=\"Eilean Siar Local Authority\"),OR($F74=1,$F74=5)),0,prem_mort(VALUE(LEFT(Options!$B$24,2)),$C74,$E74,$F74,2016,$I74+$J74,1,$H74,$G74*$H74,Options!$B$8)))","v":693.7822232218},3189.4024980574682,3184.5323750197376,42450.934491534936,42386.113173383368,55957.98909000001,55775.919742814658,3189.4024980574682,3184.5323750197376,15947012.490287341,15922661.875098689,212254672.45767468,211930565.86691684,279789945.45000005,278879598.7140733,15947012.490287341,15922661.875098689,5000]
[null,"Female 75-79",76.942824999999999,87.812830000000005,"female",1,{"$f":"HLOOKUP(Calculations!$E$2,'Prevalence Rates'!$C$3:$BC$249,'Prevalence Rates'!$BD75,FALSE)","v":0.13477388664831333},{"$f":"HLOOKUP(Calculations!$E$2,'Population 2016'!$C$3:$BC$249,'Population 2016'!BD75,FALSE)","v":19138},0,{"$f":"HLOOKUP(Results!E$4,Targeting!$C$3:$F$249,Targeting!$G75,FALSE)","v":567},{"$f":"IF(AND(OR(Calculations!$E$2=\"Orkney Health Board\",Calculations!$E$2=\"Orkney Islands Local Authority\"),$F75=1),0,IF(AND(OR(Calculations!$E$2=\"Shetland Health Board\",Calculations!$E$2=\"Western Isles Health Board\",Calculations!$E$2=\"Shetland Islands Local Authority\",Calculations!$E$2=\"Eilean Siar Local Authority\"),OR($F75=1,$F75=5)),0,new_ci(VALUE(LEFT(Options!$B$24,2)),$C75,$E75,$F75,2016,$I75,1,$H75,$G75*$H75,Options!$B$8)))","v":926.23207448200003},{"$f":"IF(AND(OR(Calculations!$E$2=\"Orkney Health Board\",Calculations!$E$2=\"Orkney Islands Local Authority\"),$F75=1),0,IF(AND(OR(Calculations!$E$2=\"Shetland Health Board\",Calculations!$E$2=\"Western Isles Health Board\",Calculations!$E$2=\"Shetland Islands Local Authority\",Calculations!$E$2=\"Eilean Siar Local Authority\"),OR($F75=1,$F75=5)),0,new_ci(VALUE(LEFT(Options!$B$24,2)),$C75,$E75,$F75,2016,$I75+$J75,1,$H75,$G75*$H75,Options!$B$8)))","v":924.83477226939999},{"$f":"IF(AND(OR(Calculations!$E$2=\"Orkney Health Board\",Calculations!$E$2=\"Orkney Islands Local Authority\"),$F75=1),0,IF(AND(OR(Calculations!$E$2=\"Shetland Health Board\",Calculations!$E$2=\"Western Isles Health Board\",Calculations!$E$2=\"Shetland Islands Local Authority\",Calculations!$E$2=\"Eilean Siar Local Authority\"),OR($F75=1,$F75=5)),0,new_yllv2(VALUE(LEFT(Options!$B$24,2)),$C75,$D75,$E75,$F75,2016,$I75,1,$H75,$G75*$H75,Options!$B$8)))","v":9141.9152062976991},{"$f":"IF(AND(OR(Calculations!$E$2=\"Orkney Health Board\",Calculations!$E$2=\"Orkney Islands Local Authority\"),$F75=1),0,IF(AND(OR(Calculations!$E$2=\"Shetland Health Board\",Calculations!$E$2=\"Western Isles Health Board\",Calculations!$E$2=\"Shetland Islands Local Authority\",Calculations!$E$2=\"Eilean Siar Local Authority\"),OR($F75=1,$F75=5)),0,new_yllv2(VALUE(LEFT(Options!$B$24,2)),$C75,$D75,$E75,$F75,2016,$I75+$J75,1,$H75,$G75*$H75,Options!$B$8)))","v":9128.1238264727999},{"$f":"IF(AND(OR(Calculations!$E$2=\"Orkney Health Board\",Calculations!$E$2=\"Orkney Islands Local Authority\"),$F75=1),0,IF(AND(OR(Calculations!$E$2=\"Shetland Health Board\",Calculations!$E$2=\"Western Isles Health Board\",Calculations!$E$2=\"Shetland Islands Local Authority\",Calculations!$E$2=\"Eilean Siar Local Authority\"),OR($F75=1,$F75=5)),0,hosp_count(VALUE(LEFT(Options!$B$24,2)),$C75,$E75,$F75,2016,$I75,1,$H75,$G75*$H75, Options!$B$8)))","v":12145.911451996},{"$f":"IF(AND(OR(Calculations!$E$2=\"Orkney Health Board\",Calculations!$E$2=\"Orkney Islands Local Authority\"),$F75=1),0,IF(AND(OR(Calculations!$E$2=\"Shetland Health Board\",Calculations!$E$2=\"Western Isles Health Board\",Calculations!$E$2=\"Shetland Islands Local Authority\",Calculations!$E$2=\"Eilean Siar Local Authority\"),OR($F75=1,$F75=5)),0,hosp_count(VALUE(LEFT(Options!$B$24,2)),$C75,$E75,$F75,2016,$I75+$J75,1,$H75,$G75*$H75, Options!$B$8)))","v":12106.36485297},{"$f":"IF(AND(OR(Calculations!$E$2=\"Orkney Health Board\",Calculations!$E$2=\"Orkney Islands Local Authority\"),$F75=1),0,IF(AND(OR(Calculations!$E$2=\"Shetland Health Board\",Calculations!$E$2=\"Western Isles Health Board\",Calculations!$E$2=\"Shetland Islands Local Authority\",Calculations!$E$2=\"Eilean Siar Local Authority\"),OR($F75=1,$F75=5)),0,prem_mort(VALUE(LEFT(Options!$B$24,2)),$C75,$E75,$F75,2016,$I75,1,$H75,$G75*$H75,Options!$B$8)))","v":0},{"$f":"IF(AND(OR(Calculations!$E$2=\"Orkney Health Board\",Calculations!$E$2=\"Orkney Islands Local Authority\"),$F75=1),0,IF(AND(OR(Calculations!$E$2=\"Shetland Health Board\",Calculations!$E$2=\"Western Isles Health Board\",Calculations!$E$2=\"Shetland Islands Local Authority\",Calculations!$E$2=\"Eilean Siar Local Authority\"),OR($F75=1,$F75=5)),0,prem_mort(VALUE(LEFT(Options!$B$24,2)),$C75,$E75,$F75,2016,$I75+$J75,1,$H75,$G75*$H75,Options!$B$8)))","v":0},4839.7537594419482,4832.4525669840114,47768.393804460757,47696.330998394813,63464.894200000002,63258.255057843031,0,0,19359015.037767794,19329810.267936047,191073575.21784303,190785323.99357924,253859576.80000001,253033020.23137212,0,0,4000]
[null,"Female 80-84",81.856712000000002,89.736710000000002,"female",1,{"$f":"HLOOKUP(Calculations!$E$2,'Prevalence Rates'!$C$3:$BC$249,'Prevalence Rates'!$BD76,FALSE)","v":0.13477388664831333},{"$f":"HLOOKUP(Calculations!$E$2,'Population 2016'!$C$3:$BC$249,'Population 2016'!BD76,FALSE)","v":14776},0,{"$f":"HLOOKUP(Results!E$4,Targeting!$C$3:$F$249,Targeting!$G76,FALSE)","v":438},{"$f":"IF(AND(OR(Calculations!$E$2=\"Orkney Health Board\",Calculations!$E$2=\"Orkney Islands Local Authority\"),$F76=1),0,IF(AND(OR(Calculations!$E$2=\"Shetland Health Board\",Calculations!$E$2=\"Western Isles Health Board\",Calculations!$E$2=\"Shetland Islands Local Authority\",Calculations!$E$2=\"Eilean Siar Local Authority\"),OR($F76=1,$F76=5)),0,new_ci(VALUE(LEFT(Options!$B$24,2)),$C76,$E76,$F76,2016,$I76,1,$H76,$G76*$H76,Options!$B$8)))","v":1072.2583469931001},{"$f":"IF(AND(OR(Calculations!$E$2=\"Orkney Health Board\",Calculations!$E$2=\"Orkney Islands Local Authority\"),$F76=1),0,IF(AND(OR(Calculations!$E$2=\"Shetland Health Board\",Calculations!$E$2=\"Western Isles Health Board\",Calculations!$E$2=\"Shetland Islands Local Authority\",Calculations!$E$2=\"Eilean Siar Local Authority\"),OR($F76=1,$F76=5)),0,new_ci(VALUE(LEFT(Options!$B$24,2)),$C76,$E76,$F76,2016,$I76+$J76,1,$H76,$G76*$H76,Options!$B$8)))","v":1070.6707099970999},{"$f":"IF(AND(OR(Calculations!$E$2=\"Orkney Health Board\",Calculations!$E$2=\"Orkney Islands Local Authority\"),$F76=1),0,IF(AND(OR(Calculations!$E$2=\"Shetland Health Board\",Calculations!$E$2=\"Western Isles Health Board\",Calculations!$E$2=\"Shetland Islands Local Authority\",Calculations!$E$2=\"Eilean Siar Local Authority\"),OR($F76=1,$F76=5)),0,new_yllv2(VALUE(LEFT(Options!$B$24,2)),$C76,$D76,$E76,$F76,2016,$I76,1,$H76,$G76*$H76,Options!$B$8)))","v":7377.1352827957999},{"$f":"IF(AND(OR(Calculations!$E$2=\"Orkney Health Board\",Calculations!$E$2=\"Orkney Islands Local Authority\"),$F76=1),0,IF(AND(OR(Calculations!$E$2=\"Shetland Health Board\",Calculations!$E$2=\"Western Isles Health Board\",Calculations!$E$2=\"Shetland Islands Local Authority\",Calculations!$E$2=\"Eilean Siar Local Authority\"),OR($F76=1,$F76=5)),0,new_yllv2(VALUE(LEFT(Options!$B$24,2)),$C76,$D76,$E76,$F76,2016,$I76+$J76,1,$H76,$G76*$H76,Options!$B$8)))","v":7366.2123434386003},{"$f":"IF(AND(OR(Calculations!$E$2=\"Orkney Health Board\",Calculations!$E$2=\"Orkney Islands Local Authority\"),$F76=1),0,IF(AND(OR(Calculations!$E$2=\"Shetland Health Board\",Calculations!$E$2=\"Western Isles Health Board\",Calculations!$E$2=\"Shetland Islands Local Authority\",Calculations!$E$2=\"Eilean Siar Local Authority\"),OR($F76=1,$F76=5)),0,hosp_count(VALUE(LEFT(Options!$B$24,2)),$C76,$E76,$F76,2016,$I76,1,$H76,$G76*$H76, Options!$B$8)))","v":10611.3411920208},{"$f":"IF(AND(OR(Calculations!$E$2=\"Orkney Health Board\",Calculations!$E$2=\"Orkney Islands Local Authority\"),$F76=1),0,IF(AND(OR(Calculations!$E$2=\"Shetland Health Board\",Calculations!$E$2=\"Western Isles Health Board\",Calculations!$E$2=\"Shetland Islands Local Authority\",Calculations!$E$2=\"Eilean Siar Local Authority\"),OR($F76=1,$F76=5)),0,hosp_count(VALUE(LEFT(Options!$B$24,2)),$C76,$E76,$F76,2016,$I76+$J76,1,$H76,$G76*$H76, Options!$B$8)))","v":10576.7727323857},{"$f":"IF(AND(OR(Calculations!$E$2=\"Orkney Health Board\",Calculations!$E$2=\"Orkney Islands Local Authority\"),$F76=1),0,IF(AND(OR(Calculations!$E$2=\"Shetland Health Board\",Calculations!$E$2=\"Western Isles Health Board\",Calculations!$E$2=\"Shetland Islands Local Authority\",Calculations!$E$2=\"Eilean Siar Local Authority\"),OR($F76=1,$F76=5)),0,prem_mort(VALUE(LEFT(Options!$B$24,2)),$C76,$E76,$F76,2016,$I76,1,$H76,$G76*$H76,Options!$B$8)))","v":0},{"$f":"IF(AND(OR(Calculations!$E$2=\"Orkney Health Board\",Calculations!$E$2=\"Orkney Islands Local Authority\"),$F76=1),0,IF(AND(OR(Calculations!$E$2=\"Shetland Health Board\",Calculations!$E$2=\"Western Isles Health Board\",Calculations!$E$2=\"Shetland Islands Local Authority\",Calculations!$E$2=\"Eilean Siar Local Authority\"),OR($F76=1,$F76=5)),0,prem_mort(VALUE(LEFT(Options!$B$24,2)),$C76,$E76,$F76,2016,$I76+$J76,1,$H76,$G76*$H76,Options!$B$8)))","v":0},7256.7565443496214,7246.0118435104223,49926.470511612075,49852.546991327828,71814.707580000002,71580.757528327696,0,0,18141891.360874053,18115029.608776055,124816176.27903019,124631367.47831957,179536768.95000002,178951893.82081923,0,0,2500]
[null,"Female 85-89",86.730819999999994,92.220819999999989,"female",1,{"$f":"HLOOKUP(Calculations!$E$2,'Prevalence Rates'!$C$3:$BC$249,'Prevalence Rates'!$BD77,FALSE)","v":0.13477388664831333},{"$f":"HLOOKUP(Calculations!$E$2,'Population 2016'!$C$3:$BC$249,'Population 2016'!BD77,FALSE)","v":8869},0,{"$f":"HLOOKUP(Results!E$4,Targeting!$C$3:$F$249,Targeting!$G77,FALSE)","v":263},{"$f":"IF(AND(OR(Calculations!$E$2=\"Orkney Health Board\",Calculations!$E$2=\"Orkney Islands Local Authority\"),$F77=1),0,IF(AND(OR(Calculations!$E$2=\"Shetland Health Board\",Calculations!$E$2=\"Western Isles Health Board\",Calculations!$E$2=\"Shetland Islands Local Authority\",Calculations!$E$2=\"Eilean Siar Local Authority\"),OR($F77=1,$F77=5)),0,new_ci(VALUE(LEFT(Options!$B$24,2)),$C77,$E77,$F77,2016,$I77,1,$H77,$G77*$H77,Options!$B$8)))","v":955.64775162700005},{"$f":"IF(AND(OR(Calculations!$E$2=\"Orkney Health Board\",Calculations!$E$2=\"Orkney Islands Local Authority\"),$F77=1),0,IF(AND(OR(Calculations!$E$2=\"Shetland Health Board\",Calculations!$E$2=\"Western Isles Health Board\",Calculations!$E$2=\"Shetland Islands Local Authority\",Calculations!$E$2=\"Eilean Siar Local Authority\"),OR($F77=1,$F77=5)),0,new_ci(VALUE(LEFT(Options!$B$24,2)),$C77,$E77,$F77,2016,$I77+$J77,1,$H77,$G77*$H77,Options!$B$8)))","v":954.27273202879996},{"$f":"IF(AND(OR(Calculations!$E$2=\"Orkney Health Board\",Calculations!$E$2=\"Orkney Islands Local Authority\"),$F77=1),0,IF(AND(OR(Calculations!$E$2=\"Shetland Health Board\",Calculations!$E$2=\"Western Isles Health Board\",Calculations!$E$2=\"Shetland Islands Local Authority\",Calculations!$E$2=\"Eilean Siar Local Authority\"),OR($F77=1,$F77=5)),0,new_yllv2(VALUE(LEFT(Options!$B$24,2)),$C77,$D77,$E77,$F77,2016,$I77,1,$H77,$G77*$H77,Options!$B$8)))","v":4290.8584048051998},{"$f":"IF(AND(OR(Calculations!$E$2=\"Orkney Health Board\",Calculations!$E$2=\"Orkney Islands Local Authority\"),$F77=1),0,IF(AND(OR(Calculations!$E$2=\"Shetland Health Board\",Calculations!$E$2=\"Western Isles Health Board\",Calculations!$E$2=\"Shetland Islands Local Authority\",Calculations!$E$2=\"Eilean Siar Local Authority\"),OR($F77=1,$F77=5)),0,new_yllv2(VALUE(LEFT(Options!$B$24,2)),$C77,$D77,$E77,$F77,2016,$I77+$J77,1,$H77,$G77*$H77,Options!$B$8)))","v":4284.6845668093001},{"$f":"IF(AND(OR(Calculations!$E$2=\"Orkney Health Board\",Calculations!$E$2=\"Orkney Islands Local Authority\"),$F77=1),0,IF(AND(OR(Calculations!$E$2=\"Shetland Health Board\",Calculations!$E$2=\"Western Isles Health Board\",Calculations!$E$2=\"Shetland Islands Local Authority\",Calculations!$E$2=\"Eilean Siar Local Authority\"),OR($F77=1,$F77=5)),0,hosp_count(VALUE(LEFT(Options!$B$24,2)),$C77,$E77,$F77,2016,$I77,1,$H77,$G77*$H77, Options!$B$8)))","v":7200.0139395590004},{"$f":"IF(AND(OR(Calculations!$E$2=\"Orkney Health Board\",Calculations!$E$2=\"Orkney Islands Local Authority\"),$F77=1),0,IF(AND(OR(Calculations!$E$2=\"Shetland Health Board\",Calculations!$E$2=\"Western Isles Health Board\",Calculations!$E$2=\"Shetland Islands Local Authority\",Calculations!$E$2=\"Eilean Siar Local Authority\"),OR($F77=1,$F77=5)),0,hosp_count(VALUE(LEFT(Options!$B$24,2)),$C77,$E77,$F77,2016,$I77+$J77,1,$H77,$G77*$H77, Options!$B$8)))","v":7176.5496747216002},{"$f":"IF(AND(OR(Calculations!$E$2=\"Orkney Health Board\",Calculations!$E$2=\"Orkney Islands Local Authority\"),$F77=1),0,IF(AND(OR(Calculations!$E$2=\"Shetland Health Board\",Calculations!$E$2=\"Western Isles Health Board\",Calculations!$E$2=\"Shetland Islands Local Authority\",Calculations!$E$2=\"Eilean Siar Local Authority\"),OR($F77=1,$F77=5)),0,prem_mort(VALUE(LEFT(Options!$B$24,2)),$C77,$E77,$F77,2016,$I77,1,$H77,$G77*$H77,Options!$B$8)))","v":0},{"$f":"IF(AND(OR(Calculations!$E$2=\"Orkney Health Board\",Calculations!$E$2=\"Orkney Islands Local Authority\"),$F77=1),0,IF(AND(OR(Calculations!$E$2=\"Shetland Health Board\",Calculations!$E$2=\"Western Isles Health Board\",Calculations!$E$2=\"Shetland Islands Local Authority\",Calculations!$E$2=\"Eilean Siar Local Authority\"),OR($F77=1,$F77=5)),0,prem_mort(VALUE(LEFT(Options!$B$24,2)),$C77,$E77,$F77,2016,$I77+$J77,1,$H77,$G77*$H77,Options!$B$8)))","v":0},10775.146596312999,10759.642936394181,48380.408217445038,48310.796784409744,81181.801100000012,80917.236156518207,0,0,16162719.8944695,16139464.404591272,72570612.326167554,72466195.176614612,121772701.65000002,121375854.23477732,0,0,1500]
[null,"Female 90+",92.779342999999997,96.279340000000005,"female",1,{"$f":"HLOOKUP(Calculations!$E$2,'Prevalence Rates'!$C$3:$BC$249,'Prevalence Rates'!$BD78,FALSE)","v":0.13477388664831333},{"$f":"HLOOKUP(Calculations!$E$2,'Population 2016'!$C$3:$BC$249,'Population 2016'!BD78,FALSE)","v":4825},0,{"$f":"HLOOKUP(Results!E$4,Targeting!$C$3:$F$249,Targeting!$G78,FALSE)","v":143},{"$f":"IF(AND(OR(Calculations!$E$2=\"Orkney Health Board\",Calculations!$E$2=\"Orkney Islands Local Authority\"),$F78=1),0,IF(AND(OR(Calculations!$E$2=\"Shetland Health Board\",Calculations!$E$2=\"Western Isles Health Board\",Calculations!$E$2=\"Shetland Islands Local Authority\",Calculations!$E$2=\"Eilean Siar Local Authority\"),OR($F78=1,$F78=5)),0,new_ci(VALUE(LEFT(Options!$B$24,2)),$C78,$E78,$F78,2016,$I78,1,$H78,$G78*$H78,Options!$B$8)))","v":837.41469319860005},{"$f":"IF(AND(OR(Calculations!$E$2=\"Orkney Health Board\",Calculations!$E$2=\"Orkney Islands Local Authority\"),$F78=1),0,IF(AND(OR(Calculations!$E$2=\"Shetland Health Board\",Calculations!$E$2=\"Western Isles Health Board\",Calculations!$E$2=\"Shetland Islands Local Authority\",Calculations!$E$2=\"Eilean Siar Local Authority\"),OR($F78=1,$F78=5)),0,new_ci(VALUE(LEFT(Options!$B$24,2)),$C78,$E78,$F78,2016,$I78+$J78,1,$H78,$G78*$H78,Options!$B$8)))","v":836.27823867940003},{"$f":"IF(AND(OR(Calculations!$E$2=\"Orkney Health Board\",Calculations!$E$2=\"Orkney Islands Local Authority\"),$F78=1),0,IF(AND(OR(Calculations!$E$2=\"Shetland Health Board\",Calculations!$E$2=\"Western Isles Health Board\",Calculations!$E$2=\"Shetland Islands Local Authority\",Calculations!$E$2=\"Eilean Siar Local Authority\"),OR($F78=1,$F78=5)),0,new_yllv2(VALUE(LEFT(Options!$B$24,2)),$C78,$D78,$E78,$F78,2016,$I78,1,$H78,$G78*$H78,Options!$B$8)))","v":2093.5342207524},{"$f":"IF(AND(OR(Calculations!$E$2=\"Orkney Health Board\",Calculations!$E$2=\"Orkney Islands Local Authority\"),$F78=1),0,IF(AND(OR(Calculations!$E$2=\"Shetland Health Board\",Calculations!$E$2=\"Western Isles Health Board\",Calculations!$E$2=\"Shetland Islands Local Authority\",Calculations!$E$2=\"Eilean Siar Local Authority\"),OR($F78=1,$F78=5)),0,new_yllv2(VALUE(LEFT(Options!$B$24,2)),$C78,$D78,$E78,$F78,2016,$I78+$J78,1,$H78,$G78*$H78,Options!$B$8)))","v":2090.6930878638},{"$f":"IF(AND(OR(Calculations!$E$2=\"Orkney Health Board\",Calculations!$E$2=\"Orkney Islands Local Authority\"),$F78=1),0,IF(AND(OR(Calculations!$E$2=\"Shetland Health Board\",Calculations!$E$2=\"Western Isles Health Board\",Calculations!$E$2=\"Shetland Islands Local Authority\",Calculations!$E$2=\"Eilean Siar Local Authority\"),OR($F78=1,$F78=5)),0,hosp_count(VALUE(LEFT(Options!$B$24,2)),$C78,$E78,$F78,2016,$I78,1,$H78,$G78*$H78, Options!$B$8)))","v":4560.6917838575},{"$f":"IF(AND(OR(Calculations!$E$2=\"Orkney Health Board\",Calculations!$E$2=\"Orkney Islands Local Authority\"),$F78=1),0,IF(AND(OR(Calculations!$E$2=\"Shetland Health Board\",Calculations!$E$2=\"Western Isles Health Board\",Calculations!$E$2=\"Shetland Islands Local Authority\",Calculations!$E$2=\"Eilean Siar Local Authority\"),OR($F78=1,$F78=5)),0,hosp_count(VALUE(LEFT(Options!$B$24,2)),$C78,$E78,$F78,2016,$I78+$J78,1,$H78,$G78*$H78, Options!$B$8)))","v":4545.8371495758001},{"$f":"IF(AND(OR(Calculations!$E$2=\"Orkney Health Board\",Calculations!$E$2=\"Orkney Islands Local Authority\"),$F78=1),0,IF(AND(OR(Calculations!$E$2=\"Shetland Health Board\",Calculations!$E$2=\"Western Isles Health Board\",Calculations!$E$2=\"Shetland Islands Local Authority\",Calculations!$E$2=\"Eilean Siar Local Authority\"),OR($F78=1,$F78=5)),0,prem_mort(VALUE(LEFT(Options!$B$24,2)),$C78,$E78,$F78,2016,$I78,1,$H78,$G78*$H78,Options!$B$8)))","v":0},{"$f":"IF(AND(OR(Calculations!$E$2=\"Orkney Health Board\",Calculations!$E$2=\"Orkney Islands Local Authority\"),$F78=1),0,IF(AND(OR(Calculations!$E$2=\"Shetland Health Board\",Calculations!$E$2=\"Western Isles Health Board\",Calculations!$E$2=\"Shetland Islands Local Authority\",Calculations!$E$2=\"Eilean Siar Local Authority\"),OR($F78=1,$F78=5)),0,prem_mort(VALUE(LEFT(Options!$B$24,2)),$C78,$E78,$F78,2016,$I78+$J78,1,$H78,$G78*$H78,Options!$B$8)))","v":0},17355.74493675855,17332.191475220727,43389.31027466114,43330.426691477718,94522.109509999995,94214.241441985505,0,0,17355744.936758552,17332191.475220725,43389310.274661139,43330426.691477716,94522109.50999999,94214241.441985503,0,0,1000]
[null,"Male 0-4",2.0320822999999999,77.402082000000007,"male",1,{"$f":"HLOOKUP(Calculations!$E$2,'Prevalence Rates'!$C$3:$BC$249,'Prevalence Rates'!$BD79,FALSE)","v":0},{"$f":"HLOOKUP(Calculations!$E$2,'Population 2016'!$C$3:$BC$249,'Population 2016'!BD79,FALSE)","v":0},0,{"$f":"HLOOKUP(Results!E$4,Targeting!$C$3:$F$249,Targeting!$G79,FALSE)","v":0},{"$f":"IF(AND(OR(Calculations!$E$2=\"Orkney Health Board\",Calculations!$E$2=\"Orkney Islands Local Authority\"),$F79=1),0,IF(AND(OR(Calculations!$E$2=\"Shetland Health Board\",Calculations!$E$2=\"Western Isles Health Board\",Calculations!$E$2=\"Shetland Islands Local Authority\",Calculations!$E$2=\"Eilean Siar Local Authority\"),OR($F79=1,$F79=5)),0,new_ci(VALUE(LEFT(Options!$B$24,2)),$C79,$E79,$F79,2016,$I79,1,$H79,$G79*$H79,Options!$B$8)))","v":{"$error":"#VALUE!"}},{"$f":"IF(AND(OR(Calculations!$E$2=\"Orkney Health Board\",Calculations!$E$2=\"Orkney Islands Local Authority\"),$F79=1),0,IF(AND(OR(Calculations!$E$2=\"Shetland Health Board\",Calculations!$E$2=\"Western Isles Health Board\",Calculations!$E$2=\"Shetland Islands Local Authority\",Calculations!$E$2=\"Eilean Siar Local Authority\"),OR($F79=1,$F79=5)),0,new_ci(VALUE(LEFT(Options!$B$24,2)),$C79,$E79,$F79,2016,$I79+$J79,1,$H79,$G79*$H79,Options!$B$8)))","v":{"$error":"#VALUE!"}},{"$f":"IF(AND(OR(Calculations!$E$2=\"Orkney Health Board\",Calculations!$E$2=\"Orkney Islands Local Authority\"),$F79=1),0,IF(AND(OR(Calculations!$E$2=\"Shetland Health Board\",Calculations!$E$2=\"Western Isles Health Board\",Calculations!$E$2=\"Shetland Islands Local Authority\",Calculations!$E$2=\"Eilean Siar Local Authority\"),OR($F79=1,$F79=5)),0,new_yllv2(VALUE(LEFT(Options!$B$24,2)),$C79,$D79,$E79,$F79,2016,$I79,1,$H79,$G79*$H79,Options!$B$8)))","v":{"$error":"#VALUE!"}},{"$f":"IF(AND(OR(Calculations!$E$2=\"Orkney Health Board\",Calculations!$E$2=\"Orkney Islands Local Authority\"),$F79=1),0,IF(AND(OR(Calculations!$E$2=\"Shetland Health Board\",Calculations!$E$2=\"Western Isles Health Board\",Calculations!$E$2=\"Shetland Islands Local Authority\",Calculations!$E$2=\"Eilean Siar Local Authority\"),OR($F79=1,$F79=5)),0,new_yllv2(VALUE(LEFT(Options!$B$24,2)),$C79,$D79,$E79,$F79,2016,$I79+$J79,1,$H79,$G79*$H79,Options!$B$8)))","v":{"$error":"#VALUE!"}},{"$f":"IF(AND(OR(Calculations!$E$2=\"Orkney Health Board\",Calculations!$E$2=\"Orkney Islands Local Authority\"),$F79=1),0,IF(AND(OR(Calculations!$E$2=\"Shetland Health Board\",Calculations!$E$2=\"Western Isles Health Board\",Calculations!$E$2=\"Shetland Islands Local Authority\",Calculations!$E$2=\"Eilean Siar Local Authority\"),OR($F79=1,$F79=5)),0,hosp_count(VALUE(LEFT(Options!$B$24,2)),$C79,$E79,$F79,2016,$I79,1,$H79,$G79*$H79, Options!$B$8)))","v":{"$error":"#VALUE!"}},{"$f":"IF(AND(OR(Calculations!$E$2=\"Orkney Health Board\",Calculations!$E$2=\"Orkney Islands Local Authority\"),$F79=1),0,IF(AND(OR(Calculations!$E$2=\"Shetland Health Board\",Calculations!$E$2=\"Western Isles Health Board\",Calculations!$E$2=\"Shetland Islands Local Authority\",Calculations!$E$2=\"Eilean Siar Local Authority\"),OR($F79=1,$F79=5)),0,hosp_count(VALUE(LEFT(Options!$B$24,2)),$C79,$E79,$F79,2016,$I79+$J79,1,$H79,$G79*$H79, Options!$B$8)))","v":{"$error":"#VALUE!"}},{"$f":"IF(AND(OR(Calculations!$E$2=\"Orkney Health Board\",Calculations!$E$2=\"Orkney Islands Local Authority\"),$F79=1),0,IF(AND(OR(Calculations!$E$2=\"Shetland Health Board\",Calculations!$E$2=\"Western Isles Health Board\",Calculations!$E$2=\"Shetland Islands Local Authority\",Calculations!$E$2=\"Eilean Siar Local Authority\"),OR($F79=1,$F79=5)),0,prem_mort(VALUE(LEFT(Options!$B$24,2)),$C79,$E79,$F79,2016,$I79,1,$H79,$G79*$H79,Options!$B$8)))","v":{"$error":"#VALUE!"}},{"$f":"IF(AND(OR(Calculations!$E$2=\"Orkney Health Board\",Calculations!$E$2=\"Orkney Islands Local Authority\"),$F79=1),0,IF(AND(OR(Calculations!$E$2=\"Shetland Health Board\",Calculations!$E$2=\"Western Isles Health Board\",Calculations!$E$2=\"Shetland Islands Local Authority\",Calculations!$E$2=\"Eilean Siar Local Authority\"),OR($F79=1,$F79=5)),0,prem_mort(VALUE(LEFT(Options!$B$24,2)),$C79,$E79,$F79,2016,$I79+$J79,1,$H79,$G79*$H79,Options!$B$8)))","v":{"$error":"#VALUE!"}},{"$error":"#VALUE!"},{"$error":"#VALUE!"},{"$error":"#VALUE!"},{"$error":"#VALUE!"},{"$error":"#VALUE!"},{"$error":"#VALUE!"},{"$error":"#VALUE!"},{"$error":"#VALUE!"},{"$error":"#VALUE!"},{"$error":"#VALUE!"},{"$error":"#VALUE!"},{"$error":"#VALUE!"},{"$error":"#VALUE!"},{"$error":"#VALUE!"},{"$error":"#VALUE!"},{"$error":"#VALUE!"},5000]
[null,"Male 5-9",6.9784756000000003,77.398476000000002,"male",1,{"$f":"HLOOKUP(Calculations!$E$2,'Prevalence Rates'!$C$3:$BC$249,'Prevalence Rates'!$BD80,FALSE)","v":0},{"$f":"HLOOKUP(Calculations!$E$2,'Population 2016'!$C$3:$BC$249,'Population 2016'!BD80,FALSE)","v":0},0,{"$f":"HLOOKUP(Results!E$4,Targeting!$C$3:$F$249,Targeting!$G80,FALSE)","v":0},{"$f":"IF(AND(OR(Calculations!$E$2=\"Orkney Health Board\",Calculations!$E$2=\"Orkney Islands Local Authority\"),$F80=1),0,IF(AND(OR(Calculations!$E$2=\"Shetland Health Board\",Calculations!$E$2=\"Western Isles Health Board\",Calculations!$E$2=\"Shetland Islands Local Authority\",Calculations!$E$2=\"Eilean Siar Local Authority\"),OR($F80=1,$F80=5)),0,new_ci(VALUE(LEFT(Options!$B$24,2)),$C80,$E80,$F80,2016,$I80,1,$H80,$G80*$H80,Options!$B$8)))","v":{"$error":"#VALUE!"}},{"$f":"IF(AND(OR(Calculations!$E$2=\"Orkney Health Board\",Calculations!$E$2=\"Orkney Islands Local Authority\"),$F80=1),0,IF(AND(OR(Calculations!$E$2=\"Shetland Health Board\",Calculations!$E$2=\"Western Isles Health Board\",Calculations!$E$2=\"Shetland Islands Local Authority\",Calculations!$E$2=\"Eilean Siar Local Authority\"),OR($F80=1,$F80=5)),0,new_ci(VALUE(LEFT(Options!$B$24,2)),$C80,$E80,$F80,2016,$I80+$J80,1,$H80,$G80*$H80,Options!$B$8)))","v":{"$error":"#VALUE!"}},{"$f":"IF(AND(OR(Calculations!$E$2=\"Orkney Health Board\",Calculations!$E$2=\"Orkney Islands Local Authority\"),$F80=1),0,IF(AND(OR(Calculations!$E$2=\"Shetland Health Board\",Calculations!$E$2=\"Western Isles Health Board\",Calculations!$E$2=\"Shetland Islands Local Authority\",Calculations!$E$2=\"Eilean Siar Local Authority\"),OR($F80=1,$F80=5)),0,new_yllv2(VALUE(LEFT(Options!$B$24,2)),$C80,$D80,$E80,$F80,2016,$I80,1,$H80,$G80*$H80,Options!$B$8)))","v":{"$error":"#VALUE!"}},{"$f":"IF(AND(OR(Calculations!$E$2=\"Orkney Health Board\",Calculations!$E$2=\"Orkney Islands Local Authority\"),$F80=1),0,IF(AND(OR(Calculations!$E$2=\"Shetland Health Board\",Calculations!$E$2=\"Western Isles Health Board\",Calculations!$E$2=\"Shetland Islands Local Authority\",Calculations!$E$2=\"Eilean Siar Local Authority\"),OR($F80=1,$F80=5)),0,new_yllv2(VALUE(LEFT(Options!$B$24,2)),$C80,$D80,$E80,$F80,2016,$I80+$J80,1,$H80,$G80*$H80,Options!$B$8)))","v":{"$error":"#VALUE!"}},{"$f":"IF(AND(OR(Calculations!$E$2=\"Orkney Health Board\",Calculations!$E$2=\"Orkney Islands Local Authority\"),$F80=1),0,IF(AND(OR(Calculations!$E$2=\"Shetland Health Board\",Calculations!$E$2=\"Western Isles Health Board\",Calculations!$E$2=\"Shetland Islands Local Authority\",Calculations!$E$2=\"Eilean Siar Local Authority\"),OR($F80=1,$F80=5)),0,hosp_count(VALUE(LEFT(Options!$B$24,2)),$C80,$E80,$F80,2016,$I80,1,$H80,$G80*$H80, Options!$B$8)))","v":{"$error":"#VALUE!"}},{"$f":"IF(AND(OR(Calculations!$E$2=\"Orkney Health Board\",Calculations!$E$2=\"Orkney Islands Local Authority\"),$F80=1),0,IF(AND(OR(Calculations!$E$2=\"Shetland Health Board\",Calculations!$E$2=\"Western Isles Health Board\",Calculations!$E$2=\"Shetland Islands Local Authority\",Calculations!$E$2=\"Eilean Siar Local Authority\"),OR($F80=1,$F80=5)),0,hosp_count(VALUE(LEFT(Options!$B$24,2)),$C80,$E80,$F80,2016,$I80+$J80,1,$H80,$G80*$H80, Options!$B$8)))","v":{"$error":"#VALUE!"}},{"$f":"IF(AND(OR(Calculations!$E$2=\"Orkney Health Board\",Calculations!$E$2=\"Orkney Islands Local Authority\"),$F80=1),0,IF(AND(OR(Calculations!$E$2=\"Shetland Health Board\",Calculations!$E$2=\"Western Isles Health Board\",Calculations!$E$2=\"Shetland Islands Local Authority\",Calculations!$E$2=\"Eilean Siar Local Authority\"),OR($F80=1,$F80=5)),0,prem_mort(VALUE(LEFT(Options!$B$24,2)),$C80,$E80,$F80,2016,$I80,1,$H80,$G80*$H80,Options!$B$8)))","v":{"$error":"#VALUE!"}},{"$f":"IF(AND(OR(Calculations!$E$2=\"Orkney Health Board\",Calculations!$E$2=\"Orkney Islands Local Authority\"),$F80=1),0,IF(AND(OR(Calculations!$E$2=\"Shetland Health Board\",Calculations!$E$2=\"Western Isles Health Board\",Calculations!$E$2=\"Shetland Islands Local Authority\",Calculations!$E$2=\"Eilean Siar Local Authority\"),OR($F80=1,$F80=5)),0,prem_mort(VALUE(LEFT(Options!$B$24,2)),$C80,$E80,$F80,2016,$I80+$J80,1,$H80,$G80*$H80,Options!$B$8)))","v":{"$error":"#VALUE!"}},{"$error":"#VALUE!"},{"$error":"#VALUE!"},{"$error":"#VALUE!"},{"$error":"#VALUE!"},{"$error":"#VALUE!"},{"$error":"#VALUE!"},{"$error":"#VALUE!"},{"$error":"#VALUE!"},{"$error":"#VALUE!"},{"$error":"#VALUE!"},{"$error":"#VALUE!"},{"$error":"#VALUE!"},{"$error":"#VALUE!"},{"$error":"#VALUE!"},{"$error":"#VALUE!"},{"$error":"#VALUE!"},5500]
[null,"Male 10-15",12.471144000000001,77.921140000000008,"male",1,{"$f":"HLOOKUP(Calculations!$E$2,'Prevalence Rates'!$C$3:$BC$249,'Prevalence Rates'!$BD81,FALSE)","v":0},{"$f":"HLOOKUP(Calculations!$E$2,'Population 2016'!$C$3:$BC$249,'Population 2016'!BD81,FALSE)","v":0},0,{"$f":"HLOOKUP(Results!E$4,Targeting!$C$3:$F$249,Targeting!$G81,FALSE)","v":0},{"$f":"IF(AND(OR(Calculations!$E$2=\"Orkney Health Board\",Calculations!$E$2=\"Orkney Islands Local Authority\"),$F81=1),0,IF(AND(OR(Calculations!$E$2=\"Shetland Health Board\",Calculations!$E$2=\"Western Isles Health Board\",Calculations!$E$2=\"Shetland Islands Local Authority\",Calculations!$E$2=\"Eilean Siar Local Authority\"),OR($F81=1,$F81=5)),0,new_ci(VALUE(LEFT(Options!$B$24,2)),$C81,$E81,$F81,2016,$I81,1,$H81,$G81*$H81,Options!$B$8)))","v":{"$error":"#VALUE!"}},{"$f":"IF(AND(OR(Calculations!$E$2=\"Orkney Health Board\",Calculations!$E$2=\"Orkney Islands Local Authority\"),$F81=1),0,IF(AND(OR(Calculations!$E$2=\"Shetland Health Board\",Calculations!$E$2=\"Western Isles Health Board\",Calculations!$E$2=\"Shetland Islands Local Authority\",Calculations!$E$2=\"Eilean Siar Local Authority\"),OR($F81=1,$F81=5)),0,new_ci(VALUE(LEFT(Options!$B$24,2)),$C81,$E81,$F81,2016,$I81+$J81,1,$H81,$G81*$H81,Options!$B$8)))","v":{"$error":"#VALUE!"}},{"$f":"IF(AND(OR(Calculations!$E$2=\"Orkney Health Board\",Calculations!$E$2=\"Orkney Islands Local Authority\"),$F81=1),0,IF(AND(OR(Calculations!$E$2=\"Shetland Health Board\",Calculations!$E$2=\"Western Isles Health Board\",Calculations!$E$2=\"Shetland Islands Local Authority\",Calculations!$E$2=\"Eilean Siar Local Authority\"),OR($F81=1,$F81=5)),0,new_yllv2(VALUE(LEFT(Options!$B$24,2)),$C81,$D81,$E81,$F81,2016,$I81,1,$H81,$G81*$H81,Options!$B$8)))","v":{"$error":"#VALUE!"}},{"$f":"IF(AND(OR(Calculations!$E$2=\"Orkney Health Board\",Calculations!$E$2=\"Orkney Islands Local Authority\"),$F81=1),0,IF(AND(OR(Calculations!$E$2=\"Shetland Health Board\",Calculations!$E$2=\"Western Isles Health Board\",Calculations!$E$2=\"Shetland Islands Local Authority\",Calculations!$E$2=\"Eilean Siar Local Authority\"),OR($F81=1,$F81=5)),0,new_yllv2(VALUE(LEFT(Options!$B$24,2)),$C81,$D81,$E81,$F81,2016,$I81+$J81,1,$H81,$G81*$H81,Options!$B$8)))","v":{"$error":"#VALUE!"}},{"$f":"IF(AND(OR(Calculations!$E$2=\"Orkney Health Board\",Calculations!$E$2=\"Orkney Islands Local Authority\"),$F81=1),0,IF(AND(OR(Calculations!$E$2=\"Shetland Health Board\",Calculations!$E$2=\"Western Isles Health Board\",Calculations!$E$2=\"Shetland Islands Local Authority\",Calculations!$E$2=\"Eilean Siar Local Authority\"),OR($F81=1,$F81=5)),0,hosp_count(VALUE(LEFT(Options!$B$24,2)),$C81,$E81,$F81,2016,$I81,1,$H81,$G81*$H81, Options!$B$8)))","v":{"$error":"#VALUE!"}},{"$f":"IF(AND(OR(Calculations!$E$2=\"Orkney Health Board\",Calculations!$E$2=\"Orkney Islands Local Authority\"),$F81=1),0,IF(AND(OR(Calculations!$E$2=\"Shetland Health Board\",Calculations!$E$2=\"Western Isles Health Board\",Calculations!$E$2=\"Shetland Islands Local Authority\",Calculations!$E$2=\"Eilean Siar Local Authority\"),OR($F81=1,$F81=5)),0,hosp_count(VALUE(LEFT(Options!$B$24,2)),$C81,$E81,$F81,2016,$I81+$J81,1,$H81,$G81*$H81, Options!$B$8)))","v":{"$error":"#VALUE!"}},{"$f":"IF(AND(OR(Calculations!$E$2=\"Orkney Health Board\",Calculations!$E$2=\"Orkney Islands Local Authority\"),$F81=1),0,IF(AND(OR(Calculations!$E$2=\"Shetland Health Board\",Calculations!$E$2=\"Western Isles Health Board\",Calculations!$E$2=\"Shetland Islands Local Authority\",Calculations!$E$2=\"Eilean Siar Local Authority\"),OR($F81=1,$F81=5)),0,prem_mort(VALUE(LEFT(Options!$B$24,2)),$C81,$E81,$F81,2016,$I81,1,$H81,$G81*$H81,Options!$B$8)))","v":{"$error":"#VALUE!"}},{"$f":"IF(AND(OR(Calculations!$E$2=\"Orkney Health Board\",Calculations!$E$2=\"Orkney Islands Local Authority\"),$F81=1),0,IF(AND(OR(Calculations!$E$2=\"Shetland Health Board\",Calculations!$E$2=\"Western Isles Health Board\",Calculations!$E$2=\"Shetland Islands Local Authority\",Calculations!$E$2=\"Eilean Siar Local Authority\"),OR($F81=1,$F81=5)),0,prem_mort(VALUE(LEFT(Options!$B$24,2)),$C81,$E81,$F81,2016,$I81+$J81,1,$H81,$G81*$H81,Options!$B$8)))","v":{"$error":"#VALUE!"}},{"$error":"#VALUE!"},{"$error":"#VALUE!"},{"$error":"#VALUE!"},{"$error":"#VALUE!"},{"$error":"#VALUE!"},{"$error":"#VALUE!"},{"$error":"#VALUE!"},{"$error":"#VALUE!"},{"$error":"#VALUE!"},{"$error":"#VALUE!"},{"$error":"#VALUE!"},{"$error":"#VALUE!"},{"$error":"#VALUE!"},{"$error":"#VALUE!"},{"$error":"#VALUE!"},{"$error":"#VALUE!"},6600]
[null,"Male 16-19",17.556318000000001,77.07632000000001,"male",1,{"$f":"HLOOKUP(Calculations!$E$2,'Prevalence Rates'!$C$3:$BC$249,'Prevalence Rates'!$BD82,FALSE)","v":0.1649694399668899},{"$f":"HLOOKUP(Calculations!$E$2,'Population 2016'!$C$3:$BC$249,'Population 2016'!BD82,FALSE)","v":25359},0,{"$f":"HLOOKUP(Results!E$4,Targeting!$C$3:$F$249,Targeting!$G82,FALSE)","v":751},{"$f":"IF(AND(OR(Calculations!$E$2=\"Orkney Health Board\",Calculations!$E$2=\"Orkney Islands Local Authority\"),$F82=1),0,IF(AND(OR(Calculations!$E$2=\"Shetland Health Board\",Calculations!$E$2=\"Western Isles Health Board\",Calculations!$E$2=\"Shetland Islands Local Authority\",Calculations!$E$2=\"Eilean Siar Local Authority\"),OR($F82=1,$F82=5)),0,new_ci(VALUE(LEFT(Options!$B$24,2)),$C82,$E82,$F82,2016,$I82,1,$H82,$G82*$H82,Options!$B$8)))","v":19.1723570399},{"$f":"IF(AND(OR(Calculations!$E$2=\"Orkney Health Board\",Calculations!$E$2=\"Orkney Islands Local Authority\"),$F82=1),0,IF(AND(OR(Calculations!$E$2=\"Shetland Health Board\",Calculations!$E$2=\"Western Isles Health Board\",Calculations!$E$2=\"Shetland Islands Local Authority\",Calculations!$E$2=\"Eilean Siar Local Authority\"),OR($F82=1,$F82=5)),0,new_ci(VALUE(LEFT(Options!$B$24,2)),$C82,$E82,$F82,2016,$I82+$J82,1,$H82,$G82*$H82,Options!$B$8)))","v":19.142655290299999},{"$f":"IF(AND(OR(Calculations!$E$2=\"Orkney Health Board\",Calculations!$E$2=\"Orkney Islands Local Authority\"),$F82=1),0,IF(AND(OR(Calculations!$E$2=\"Shetland Health Board\",Calculations!$E$2=\"Western Isles Health Board\",Calculations!$E$2=\"Shetland Islands Local Authority\",Calculations!$E$2=\"Eilean Siar Local Authority\"),OR($F82=1,$F82=5)),0,new_yllv2(VALUE(LEFT(Options!$B$24,2)),$C82,$D82,$E82,$F82,2016,$I82,1,$H82,$G82*$H82,Options!$B$8)))","v":1121.9663723197},{"$f":"IF(AND(OR(Calculations!$E$2=\"Orkney Health Board\",Calculations!$E$2=\"Orkney Islands Local Authority\"),$F82=1),0,IF(AND(OR(Calculations!$E$2=\"Shetland Health Board\",Calculations!$E$2=\"Western Isles Health Board\",Calculations!$E$2=\"Shetland Islands Local Authority\",Calculations!$E$2=\"Eilean Siar Local Authority\"),OR($F82=1,$F82=5)),0,new_yllv2(VALUE(LEFT(Options!$B$24,2)),$C82,$D82,$E82,$F82,2016,$I82+$J82,1,$H82,$G82*$H82,Options!$B$8)))","v":1120.2282258737},{"$f":"IF(AND(OR(Calculations!$E$2=\"Orkney Health Board\",Calculations!$E$2=\"Orkney Islands Local Authority\"),$F82=1),0,IF(AND(OR(Calculations!$E$2=\"Shetland Health Board\",Calculations!$E$2=\"Western Isles Health Board\",Calculations!$E$2=\"Shetland Islands Local Authority\",Calculations!$E$2=\"Eilean Siar Local Authority\"),OR($F82=1,$F82=5)),0,hosp_count(VALUE(LEFT(Options!$B$24,2)),$C82,$E82,$F82,2016,$I82,1,$H82,$G82*$H82, Options!$B$8)))","v":2447.1256447280998},{"$f":"IF(AND(OR(Calculations!$E$2=\"Orkney Health Board\",Calculations!$E$2=\"Orkney Islands Local Authority\"),$F82=1),0,IF(AND(OR(Calculations!$E$2=\"Shetland Health Board\",Calculations!$E$2=\"Western Isles Health Board\",Calculations!$E$2=\"Shetland Islands Local Authority\",Calculations!$E$2=\"Eilean Siar Local Authority\"),OR($F82=1,$F82=5)),0,hosp_count(VALUE(LEFT(Options!$B$24,2)),$C82,$E82,$F82,2016,$I82+$J82,1,$H82,$G82*$H82, Options!$B$8)))","v":2439.2429032555001},{"$f":"IF(AND(OR(Calculations!$E$2=\"Orkney Health Board\",Calculations!$E$2=\"Orkney Islands Local Authority\"),$F82=1),0,IF(AND(OR(Calculations!$E$2=\"Shetland Health Board\",Calculations!$E$2=\"Western Isles Health Board\",Calculations!$E$2=\"Shetland Islands Local Authority\",Calculations!$E$2=\"Eilean Siar Local Authority\"),OR($F82=1,$F82=5)),0,prem_mort(VALUE(LEFT(Options!$B$24,2)),$C82,$E82,$F82,2016,$I82,1,$H82,$G82*$H82,Options!$B$8)))","v":19.1723570399},{"$f":"IF(AND(OR(Calculations!$E$2=\"Orkney Health Board\",Calculations!$E$2=\"Orkney Islands Local Authority\"),$F82=1),0,IF(AND(OR(Calculations!$E$2=\"Shetland Health Board\",Calculations!$E$2=\"Western Isles Health Board\",Calculations!$E$2=\"Shetland Islands Local Authority\",Calculations!$E$2=\"Eilean Siar Local Authority\"),OR($F82=1,$F82=5)),0,prem_mort(VALUE(LEFT(Options!$B$24,2)),$C82,$E82,$F82,2016,$I82+$J82,1,$H82,$G82*$H82,Options!$B$8)))","v":19.142655290299999},75.603758191963408,75.486633109744076,4424.3320806013644,4417.4779205556215,9649.9295899999997,9618.8449988386765,75.603758191963408,75.486633109744076,332656.53604463901,332141.18568287394,19467061.154646002,19436902.850444734,42459690.196000002,42322917.994890176,332656.53604463901,332141.18568287394,4400]
[null,"Male 20-24",22.054632000000002,77.704629999999995,"male",1,{"$f":"HLOOKUP(Calculations!$E$2,'Prevalence Rates'!$C$3:$BC$249,'Prevalence Rates'!$BD83,FALSE)","v":0.1649694399668899},{"$f":"HLOOKUP(Calculations!$E$2,'Population 2016'!$C$3:$BC$249,'Population 2016'!BD83,FALSE)","v":37180},0,{"$f":"HLOOKUP(Results!E$4,Targeting!$C$3:$F$249,Targeting!$G83,FALSE)","v":1101},{"$f":"IF(AND(OR(Calculations!$E$2=\"Orkney Health Board\",Calculations!$E$2=\"Orkney Islands Local Authority\"),$F83=1),0,IF(AND(OR(Calculations!$E$2=\"Shetland Health Board\",Calculations!$E$2=\"Western Isles Health Board\",Calculations!$E$2=\"Shetland Islands Local Authority\",Calculations!$E$2=\"Eilean Siar Local Authority\"),OR($F83=1,$F83=5)),0,new_ci(VALUE(LEFT(Options!$B$24,2)),$C83,$E83,$F83,2016,$I83,1,$H83,$G83*$H83,Options!$B$8)))","v":39.470921714399999},{"$f":"IF(AND(OR(Calculations!$E$2=\"Orkney Health Board\",Calculations!$E$2=\"Orkney Islands Local Authority\"),$F83=1),0,IF(AND(OR(Calculations!$E$2=\"Shetland Health Board\",Calculations!$E$2=\"Western Isles Health Board\",Calculations!$E$2=\"Shetland Islands Local Authority\",Calculations!$E$2=\"Eilean Siar Local Authority\"),OR($F83=1,$F83=5)),0,new_ci(VALUE(LEFT(Options!$B$24,2)),$C83,$E83,$F83,2016,$I83+$J83,1,$H83,$G83*$H83,Options!$B$8)))","v":39.409791331800001},{"$f":"IF(AND(OR(Calculations!$E$2=\"Orkney Health Board\",Calculations!$E$2=\"Orkney Islands Local Authority\"),$F83=1),0,IF(AND(OR(Calculations!$E$2=\"Shetland Health Board\",Calculations!$E$2=\"Western Isles Health Board\",Calculations!$E$2=\"Shetland Islands Local Authority\",Calculations!$E$2=\"Eilean Siar Local Authority\"),OR($F83=1,$F83=5)),0,new_yllv2(VALUE(LEFT(Options!$B$24,2)),$C83,$D83,$E83,$F83,2016,$I83,1,$H83,$G83*$H83,Options!$B$8)))","v":2157.0857927501002},{"$f":"IF(AND(OR(Calculations!$E$2=\"Orkney Health Board\",Calculations!$E$2=\"Orkney Islands Local Authority\"),$F83=1),0,IF(AND(OR(Calculations!$E$2=\"Shetland Health Board\",Calculations!$E$2=\"Western Isles Health Board\",Calculations!$E$2=\"Shetland Islands Local Authority\",Calculations!$E$2=\"Eilean Siar Local Authority\"),OR($F83=1,$F83=5)),0,new_yllv2(VALUE(LEFT(Options!$B$24,2)),$C83,$D83,$E83,$F83,2016,$I83+$J83,1,$H83,$G83*$H83,Options!$B$8)))","v":2153.7450174633},{"$f":"IF(AND(OR(Calculations!$E$2=\"Orkney Health Board\",Calculations!$E$2=\"Orkney Islands Local Authority\"),$F83=1),0,IF(AND(OR(Calculations!$E$2=\"Shetland Health Board\",Calculations!$E$2=\"Western Isles Health Board\",Calculations!$E$2=\"Shetland Islands Local Authority\",Calculations!$E$2=\"Eilean Siar Local Authority\"),OR($F83=1,$F83=5)),0,hosp_count(VALUE(LEFT(Options!$B$24,2)),$C83,$E83,$F83,2016,$I83,1,$H83,$G83*$H83, Options!$B$8)))","v":4208.9782071480004},{"$f":"IF(AND(OR(Calculations!$E$2=\"Orkney Health Board\",Calculations!$E$2=\"Orkney Islands Local Authority\"),$F83=1),0,IF(AND(OR(Calculations!$E$2=\"Shetland Health Board\",Calculations!$E$2=\"Western Isles Health Board\",Calculations!$E$2=\"Shetland Islands Local Authority\",Calculations!$E$2=\"Eilean Siar Local Authority\"),OR($F83=1,$F83=5)),0,hosp_count(VALUE(LEFT(Options!$B$24,2)),$C83,$E83,$F83,2016,$I83+$J83,1,$H83,$G83*$H83, Options!$B$8)))","v":4195.4210754911001},{"$f":"IF(AND(OR(Calculations!$E$2=\"Orkney Health Board\",Calculations!$E$2=\"Orkney Islands Local Authority\"),$F83=1),0,IF(AND(OR(Calculations!$E$2=\"Shetland Health Board\",Calculations!$E$2=\"Western Isles Health Board\",Calculations!$E$2=\"Shetland Islands Local Authority\",Calculations!$E$2=\"Eilean Siar Local Authority\"),OR($F83=1,$F83=5)),0,prem_mort(VALUE(LEFT(Options!$B$24,2)),$C83,$E83,$F83,2016,$I83,1,$H83,$G83*$H83,Options!$B$8)))","v":39.470921714399999},{"$f":"IF(AND(OR(Calculations!$E$2=\"Orkney Health Board\",Calculations!$E$2=\"Orkney Islands Local Authority\"),$F83=1),0,IF(AND(OR(Calculations!$E$2=\"Shetland Health Board\",Calculations!$E$2=\"Western Isles Health Board\",Calculations!$E$2=\"Shetland Islands Local Authority\",Calculations!$E$2=\"Eilean Siar Local Authority\"),OR($F83=1,$F83=5)),0,prem_mort(VALUE(LEFT(Options!$B$24,2)),$C83,$E83,$F83,2016,$I83+$J83,1,$H83,$G83*$H83,Options!$B$8)))","v":39.409791331800001},106.16170444970413,105.99728706777837,5801.7369358528786,5792.751526259548,11320.543860000002,11284.080353660838,106.16170444970413,105.99728706777837,636970.22669822478,635983.72240667022,34810421.615117274,34756509.157557286,67923263.160000011,67704482.121965036,636970.22669822478,635983.72240667022,6000]
[null,"Male 25-29",26.959762999999999,77.789760000000001,"male",1,{"$f":"HLOOKUP(Calculations!$E$2,'Prevalence Rates'!$C$3:$BC$249,'Prevalence Rates'!$BD84,FALSE)","v":0.1649694399668899},{"$f":"HLOOKUP(Calculations!$E$2,'Population 2016'!$C$3:$BC$249,'Population 2016'!BD84,FALSE)","v":42600},0,{"$f":"HLOOKUP(Results!E$4,Targeting!$C$3:$F$249,Targeting!$G84,FALSE)","v":1262},{"$f":"IF(AND(OR(Calculations!$E$2=\"Orkney Health Board\",Calculations!$E$2=\"Orkney Islands Local Authority\"),$F84=1),0,IF(AND(OR(Calculations!$E$2=\"Shetland Health Board\",Calculations!$E$2=\"Western Isles Health Board\",Calculations!$E$2=\"Shetland Islands Local Authority\",Calculations!$E$2=\"Eilean Siar Local Authority\"),OR($F84=1,$F84=5)),0,new_ci(VALUE(LEFT(Options!$B$24,2)),$C84,$E84,$F84,2016,$I84,1,$H84,$G84*$H84,Options!$B$8)))","v":65.479193002100004},{"$f":"IF(AND(OR(Calculations!$E$2=\"Orkney Health Board\",Calculations!$E$2=\"Orkney Islands Local Authority\"),$F84=1),0,IF(AND(OR(Calculations!$E$2=\"Shetland Health Board\",Calculations!$E$2=\"Western Isles Health Board\",Calculations!$E$2=\"Shetland Islands Local Authority\",Calculations!$E$2=\"Eilean Siar Local Authority\"),OR($F84=1,$F84=5)),0,new_ci(VALUE(LEFT(Options!$B$24,2)),$C84,$E84,$F84,2016,$I84+$J84,1,$H84,$G84*$H84,Options!$B$8)))","v":65.377777420100003},{"$f":"IF(AND(OR(Calculations!$E$2=\"Orkney Health Board\",Calculations!$E$2=\"Orkney Islands Local Authority\"),$F84=1),0,IF(AND(OR(Calculations!$E$2=\"Shetland Health Board\",Calculations!$E$2=\"Western Isles Health Board\",Calculations!$E$2=\"Shetland Islands Local Authority\",Calculations!$E$2=\"Eilean Siar Local Authority\"),OR($F84=1,$F84=5)),0,new_yllv2(VALUE(LEFT(Options!$B$24,2)),$C84,$D84,$E84,$F84,2016,$I84,1,$H84,$G84*$H84,Options!$B$8)))","v":3262.8279908570998},{"$f":"IF(AND(OR(Calculations!$E$2=\"Orkney Health Board\",Calculations!$E$2=\"Orkney Islands Local Authority\"),$F84=1),0,IF(AND(OR(Calculations!$E$2=\"Shetland Health Board\",Calculations!$E$2=\"Western Isles Health Board\",Calculations!$E$2=\"Shetland Islands Local Authority\",Calculations!$E$2=\"Eilean Siar Local Authority\"),OR($F84=1,$F84=5)),0,new_yllv2(VALUE(LEFT(Options!$B$24,2)),$C84,$D84,$E84,$F84,2016,$I84+$J84,1,$H84,$G84*$H84,Options!$B$8)))","v":3257.7744527103},{"$f":"IF(AND(OR(Calculations!$E$2=\"Orkney Health Board\",Calculations!$E$2=\"Orkney Islands Local Authority\"),$F84=1),0,IF(AND(OR(Calculations!$E$2=\"Shetland Health Board\",Calculations!$E$2=\"Western Isles Health Board\",Calculations!$E$2=\"Shetland Islands Local Authority\",Calculations!$E$2=\"Eilean Siar Local Authority\"),OR($F84=1,$F84=5)),0,hosp_count(VALUE(LEFT(Options!$B$24,2)),$C84,$E84,$F84,2016,$I84,1,$H84,$G84*$H84, Options!$B$8)))","v":5739.7274435999998},{"$f":"IF(AND(OR(Calculations!$E$2=\"Orkney Health Board\",Calculations!$E$2=\"Orkney Islands Local Authority\"),$F84=1),0,IF(AND(OR(Calculations!$E$2=\"Shetland Health Board\",Calculations!$E$2=\"Western Isles Health Board\",Calculations!$E$2=\"Shetland Islands Local Authority\",Calculations!$E$2=\"Eilean Siar Local Authority\"),OR($F84=1,$F84=5)),0,hosp_count(VALUE(LEFT(Options!$B$24,2)),$C84,$E84,$F84,2016,$I84+$J84,1,$H84,$G84*$H84, Options!$B$8)))","v":5721.2324482100003},{"$f":"IF(AND(OR(Calculations!$E$2=\"Orkney Health Board\",Calculations!$E$2=\"Orkney Islands Local Authority\"),$F84=1),0,IF(AND(OR(Calculations!$E$2=\"Shetland Health Board\",Calculations!$E$2=\"Western Isles Health Board\",Calculations!$E$2=\"Shetland Islands Local Authority\",Calculations!$E$2=\"Eilean Siar Local Authority\"),OR($F84=1,$F84=5)),0,prem_mort(VALUE(LEFT(Options!$B$24,2)),$C84,$E84,$F84,2016,$I84,1,$H84,$G84*$H84,Options!$B$8)))","v":65.479193002100004},{"$f":"IF(AND(OR(Calculations!$E$2=\"Orkney Health Board\",Calculations!$E$2=\"Orkney Islands Local Authority\"),$F84=1),0,IF(AND(OR(Calculations!$E$2=\"Shetland Health Board\",Calculations!$E$2=\"Western Isles Health Board\",Calculations!$E$2=\"Shetland Islands Local Authority\",Calculations!$E$2=\"Eilean Siar Local Authority\"),OR($F84=1,$F84=5)),0,prem_mort(VALUE(LEFT(Options!$B$24,2)),$C84,$E84,$F84,2016,$I84+$J84,1,$H84,$G84*$H84,Options!$B$8)))","v":65.377777420100003},153.70702582652584,153.46896108004694,7659.2206358147887,7647.3578702119721,13473.5386,13430.12311786385,153.70702582652584,153.46896108004694,922242.15495915501,920813.7664802816,45955323.814888731,45884147.221271835,80841231.599999994,80580738.707183093,922242.15495915501,920813.7664802816,6000]
[null,"Male 30-34",31.981521999999998,78.061520000000002,"male",1,{"$f":"HLOOKUP(Calculations!$E$2,'Prevalence Rates'!$C$3:$BC$249,'Prevalence Rates'!$BD85,FALSE)","v":0.1649694399668899},{"$f":"HLOOKUP(Calculations!$E$2,'Population 2016'!$C$3:$BC$249,'Population 2016'!BD85,FALSE)","v":38006},0,{"$f":"HLOOKUP(Results!E$4,Targeting!$C$3:$F$249,Targeting!$G85,FALSE)","v":1126},{"$f":"IF(AND(OR(Calculations!$E$2=\"Orkney Health Board\",Calculations!$E$2=\"Orkney Islands Local Authority\"),$F85=1),0,IF(AND(OR(Calculations!$E$2=\"Shetland Health Board\",Calculations!$E$2=\"Western Isles Health Board\",Calculations!$E$2=\"Shetland Islands Local Authority\",Calculations!$E$2=\"Eilean Siar Local Authority\"),OR($F85=1,$F85=5)),0,new_ci(VALUE(LEFT(Options!$B$24,2)),$C85,$E85,$F85,2016,$I85,1,$H85,$G85*$H85,Options!$B$8)))","v":85.3187532858},{"$f":"IF(AND(OR(Calculations!$E$2=\"Orkney Health Board\",Calculations!$E$2=\"Orkney Islands Local Authority\"),$F85=1),0,IF(AND(OR(Calculations!$E$2=\"Shetland Health Board\",Calculations!$E$2=\"Western Isles Health Board\",Calculations!$E$2=\"Shetland Islands Local Authority\",Calculations!$E$2=\"Eilean Siar Local Authority\"),OR($F85=1,$F85=5)),0,new_ci(VALUE(LEFT(Options!$B$24,2)),$C85,$E85,$F85,2016,$I85+$J85,1,$H85,$G85*$H85,Options!$B$8)))","v":85.186666842400001},{"$f":"IF(AND(OR(Calculations!$E$2=\"Orkney Health Board\",Calculations!$E$2=\"Orkney Islands Local Authority\"),$F85=1),0,IF(AND(OR(Calculations!$E$2=\"Shetland Health Board\",Calculations!$E$2=\"Western Isles Health Board\",Calculations!$E$2=\"Shetland Islands Local Authority\",Calculations!$E$2=\"Eilean Siar Local Authority\"),OR($F85=1,$F85=5)),0,new_yllv2(VALUE(LEFT(Options!$B$24,2)),$C85,$D85,$E85,$F85,2016,$I85,1,$H85,$G85*$H85,Options!$B$8)))","v":3846.1692274863999},{"$f":"IF(AND(OR(Calculations!$E$2=\"Orkney Health Board\",Calculations!$E$2=\"Orkney Islands Local Authority\"),$F85=1),0,IF(AND(OR(Calculations!$E$2=\"Shetland Health Board\",Calculations!$E$2=\"Western Isles Health Board\",Calculations!$E$2=\"Shetland Islands Local Authority\",Calculations!$E$2=\"Eilean Siar Local Authority\"),OR($F85=1,$F85=5)),0,new_yllv2(VALUE(LEFT(Options!$B$24,2)),$C85,$D85,$E85,$F85,2016,$I85+$J85,1,$H85,$G85*$H85,Options!$B$8)))","v":3840.2147708820999},{"$f":"IF(AND(OR(Calculations!$E$2=\"Orkney Health Board\",Calculations!$E$2=\"Orkney Islands Local Authority\"),$F85=1),0,IF(AND(OR(Calculations!$E$2=\"Shetland Health Board\",Calculations!$E$2=\"Western Isles Health Board\",Calculations!$E$2=\"Shetland Islands Local Authority\",Calculations!$E$2=\"Eilean Siar Local Authority\"),OR($F85=1,$F85=5)),0,hosp_count(VALUE(LEFT(Options!$B$24,2)),$C85,$E85,$F85,2016,$I85,1,$H85,$G85*$H85, Options!$B$8)))","v":6119.9246785464002},{"$f":"IF(AND(OR(Calculations!$E$2=\"Orkney Health Board\",Calculations!$E$2=\"Orkney Islands Local Authority\"),$F85=1),0,IF(AND(OR(Calculations!$E$2=\"Shetland Health Board\",Calculations!$E$2=\"Western Isles Health Board\",Calculations!$E$2=\"Shetland Islands Local Authority\",Calculations!$E$2=\"Eilean Siar Local Authority\"),OR($F85=1,$F85=5)),0,hosp_count(VALUE(LEFT(Options!$B$24,2)),$C85,$E85,$F85,2016,$I85+$J85,1,$H85,$G85*$H85, Options!$B$8)))","v":6100.2029259665997},{"$f":"IF(AND(OR(Calculations!$E$2=\"Orkney Health Board\",Calculations!$E$2=\"Orkney Islands Local Authority\"),$F85=1),0,IF(AND(OR(Calculations!$E$2=\"Shetland Health Board\",Calculations!$E$2=\"Western Isles Health Board\",Calculations!$E$2=\"Shetland Islands Local Authority\",Calculations!$E$2=\"Eilean Siar Local Authority\"),OR($F85=1,$F85=5)),0,prem_mort(VALUE(LEFT(Options!$B$24,2)),$C85,$E85,$F85,2016,$I85,1,$H85,$G85*$H85,Options!$B$8)))","v":85.3187532858},{"$f":"IF(AND(OR(Calculations!$E$2=\"Orkney Health Board\",Calculations!$E$2=\"Orkney Islands Local Authority\"),$F85=1),0,IF(AND(OR(Calculations!$E$2=\"Shetland Health Board\",Calculations!$E$2=\"Western Isles Health Board\",Calculations!$E$2=\"Shetland Islands Local Authority\",Calculations!$E$2=\"Eilean Siar Local Authority\"),OR($F85=1,$F85=5)),0,prem_mort(VALUE(LEFT(Options!$B$24,2)),$C85,$E85,$F85,2016,$I85+$J85,1,$H85,$G85*$H85,Options!$B$8)))","v":85.186666842400001},224.48758955375465,224.14004852496976,10119.900088108194,10104.232939225649,16102.522440000001,16050.631284446141,224.48758955375465,224.14004852496976,1459169.3320994051,1456910.3154123034,65779350.572703257,65677514.104966715,104666395.86,104329103.34889992,1459169.3320994051,1456910.3154123034,6500]
[null,"Male 35-39",36.926009999999998,78.336009999999987,"male",1,{"$f":"HLOOKUP(Calculations!$E$2,'Prevalence Rates'!$C$3:$BC$249,'Prevalence Rates'!$BD86,FALSE)","v":0.1649694399668899},{"$f":"HLOOKUP(Calculations!$E$2,'Population 2016'!$C$3:$BC$249,'Population 2016'!BD86,FALSE)","v":32984},0,{"$f":"HLOOKUP(Results!E$4,Targeting!$C$3:$F$249,Targeting!$G86,FALSE)","v":977},{"$f":"IF(AND(OR(Calculations!$E$2=\"Orkney Health Board\",Calculations!$E$2=\"Orkney Islands Local Authority\"),$F86=1),0,IF(AND(OR(Calculations!$E$2=\"Shetland Health Board\",Calculations!$E$2=\"Western Isles Health Board\",Calculations!$E$2=\"Shetland Islands Local Authority\",Calculations!$E$2=\"Eilean Siar Local Authority\"),OR($F86=1,$F86=5)),0,new_ci(VALUE(LEFT(Options!$B$24,2)),$C86,$E86,$F86,2016,$I86,1,$H86,$G86*$H86,Options!$B$8)))","v":107.49617632970001},{"$f":"IF(AND(OR(Calculations!$E$2=\"Orkney Health Board\",Calculations!$E$2=\"Orkney Islands Local Authority\"),$F86=1),0,IF(AND(OR(Calculations!$E$2=\"Shetland Health Board\",Calculations!$E$2=\"Western Isles Health Board\",Calculations!$E$2=\"Shetland Islands Local Authority\",Calculations!$E$2=\"Eilean Siar Local Authority\"),OR($F86=1,$F86=5)),0,new_ci(VALUE(LEFT(Options!$B$24,2)),$C86,$E86,$F86,2016,$I86+$J86,1,$H86,$G86*$H86,Options!$B$8)))","v":107.3299155501},{"$f":"IF(AND(OR(Calculations!$E$2=\"Orkney Health Board\",Calculations!$E$2=\"Orkney Islands Local Authority\"),$F86=1),0,IF(AND(OR(Calculations!$E$2=\"Shetland Health Board\",Calculations!$E$2=\"Western Isles Health Board\",Calculations!$E$2=\"Shetland Islands Local Authority\",Calculations!$E$2=\"Eilean Siar Local Authority\"),OR($F86=1,$F86=5)),0,new_yllv2(VALUE(LEFT(Options!$B$24,2)),$C86,$D86,$E86,$F86,2016,$I86,1,$H86,$G86*$H86,Options!$B$8)))","v":4343.9204854831996},{"$f":"IF(AND(OR(Calculations!$E$2=\"Orkney Health Board\",Calculations!$E$2=\"Orkney Islands Local Authority\"),$F86=1),0,IF(AND(OR(Calculations!$E$2=\"Shetland Health Board\",Calculations!$E$2=\"Western Isles Health Board\",Calculations!$E$2=\"Shetland Islands Local Authority\",Calculations!$E$2=\"Eilean Siar Local Authority\"),OR($F86=1,$F86=5)),0,new_yllv2(VALUE(LEFT(Options!$B$24,2)),$C86,$D86,$E86,$F86,2016,$I86+$J86,1,$H86,$G86*$H86,Options!$B$8)))","v":4337.2018873794996},{"$f":"IF(AND(OR(Calculations!$E$2=\"Orkney Health Board\",Calculations!$E$2=\"Orkney Islands Local Authority\"),$F86=1),0,IF(AND(OR(Calculations!$E$2=\"Shetland Health Board\",Calculations!$E$2=\"Western Isles Health Board\",Calculations!$E$2=\"Shetland Islands Local Authority\",Calculations!$E$2=\"Eilean Siar Local Authority\"),OR($F86=1,$F86=5)),0,hosp_count(VALUE(LEFT(Options!$B$24,2)),$C86,$E86,$F86,2016,$I86,1,$H86,$G86*$H86, Options!$B$8)))","v":6330.2128956528004},{"$f":"IF(AND(OR(Calculations!$E$2=\"Orkney Health Board\",Calculations!$E$2=\"Orkney Islands Local Authority\"),$F86=1),0,IF(AND(OR(Calculations!$E$2=\"Shetland Health Board\",Calculations!$E$2=\"Western Isles Health Board\",Calculations!$E$2=\"Shetland Islands Local Authority\",Calculations!$E$2=\"Eilean Siar Local Authority\"),OR($F86=1,$F86=5)),0,hosp_count(VALUE(LEFT(Options!$B$24,2)),$C86,$E86,$F86,2016,$I86+$J86,1,$H86,$G86*$H86, Options!$B$8)))","v":6309.8179403351996},{"$f":"IF(AND(OR(Calculations!$E$2=\"Orkney Health Board\",Calculations!$E$2=\"Orkney Islands Local Authority\"),$F86=1),0,IF(AND(OR(Calculations!$E$2=\"Shetland Health Board\",Calculations!$E$2=\"Western Isles Health Board\",Calculations!$E$2=\"Shetland Islands Local Authority\",Calculations!$E$2=\"Eilean Siar Local Authority\"),OR($F86=1,$F86=5)),0,prem_mort(VALUE(LEFT(Options!$B$24,2)),$C86,$E86,$F86,2016,$I86,1,$H86,$G86*$H86,Options!$B$8)))","v":107.49617632970001},{"$f":"IF(AND(OR(Calculations!$E$2=\"Orkney Health Board\",Calculations!$E$2=\"Orkney Islands Local Authority\"),$F86=1),0,IF(AND(OR(Calculations!$E$2=\"Shetland Health Board\",Calculations!$E$2=\"Western Isles Health Board\",Calculations!$E$2=\"Shetland Islands Local Authority\",Calculations!$E$2=\"Eilean Siar Local Authority\"),OR($F86=1,$F86=5)),0,prem_mort(VALUE(LEFT(Options!$B$24,2)),$C86,$E86,$F86,2016,$I86+$J86,1,$H86,$G86*$H86,Options!$B$8)))","v":107.3299155501},325.90400293991024,325.39993800054572,13169.780758801842,13149.411494601927,19191.768420000004,19129.935545522676,325.90400293991024,325.39993800054572,2281328.0205793716,2277799.5660038199,92188465.311612889,92045880.462213486,134342378.94000003,133909548.81865872,2281328.0205793716,2277799.5660038199,7000]
[null,"Male 40-44",42.067703000000002,78.907700000000006,"male",1,{"$f":"HLOOKUP(Calculations!$E$2,'Prevalence Rates'!$C$3:$BC$249,'Prevalence Rates'!$BD87,FALSE)","v":0.1649694399668899},{"$f":"HLOOKUP(Calculations!$E$2,'Population 2016'!$C$3:$BC$249,'Population 2016'!BD87,FALSE)","v":31623},0,{"$f":"HLOOKUP(Results!E$4,Targeting!$C$3:$F$249,Targeting!$G87,FALSE)","v":937},{"$f":"IF(AND(OR(Calculations!$E$2=\"Orkney Health Board\",Calculations!$E$2=\"Orkney Islands Local Authority\"),$F87=1),0,IF(AND(OR(Calculations!$E$2=\"Shetland Health Board\",Calculations!$E$2=\"Western Isles Health Board\",Calculations!$E$2=\"Shetland Islands Local Authority\",Calculations!$E$2=\"Eilean Siar Local Authority\"),OR($F87=1,$F87=5)),0,new_ci(VALUE(LEFT(Options!$B$24,2)),$C87,$E87,$F87,2016,$I87,1,$H87,$G87*$H87,Options!$B$8)))","v":151.82360894460001},{"$f":"IF(AND(OR(Calculations!$E$2=\"Orkney Health Board\",Calculations!$E$2=\"Orkney Islands Local Authority\"),$F87=1),0,IF(AND(OR(Calculations!$E$2=\"Shetland Health Board\",Calculations!$E$2=\"Western Isles Health Board\",Calculations!$E$2=\"Shetland Islands Local Authority\",Calculations!$E$2=\"Eilean Siar Local Authority\"),OR($F87=1,$F87=5)),0,new_ci(VALUE(LEFT(Options!$B$24,2)),$C87,$E87,$F87,2016,$I87+$J87,1,$H87,$G87*$H87,Options!$B$8)))","v":151.58897477459999},{"$f":"IF(AND(OR(Calculations!$E$2=\"Orkney Health Board\",Calculations!$E$2=\"Orkney Islands Local Authority\"),$F87=1),0,IF(AND(OR(Calculations!$E$2=\"Shetland Health Board\",Calculations!$E$2=\"Western Isles Health Board\",Calculations!$E$2=\"Shetland Islands Local Authority\",Calculations!$E$2=\"Eilean Siar Local Authority\"),OR($F87=1,$F87=5)),0,new_yllv2(VALUE(LEFT(Options!$B$24,2)),$C87,$D87,$E87,$F87,2016,$I87,1,$H87,$G87*$H87,Options!$B$8)))","v":5441.3576891036},{"$f":"IF(AND(OR(Calculations!$E$2=\"Orkney Health Board\",Calculations!$E$2=\"Orkney Islands Local Authority\"),$F87=1),0,IF(AND(OR(Calculations!$E$2=\"Shetland Health Board\",Calculations!$E$2=\"Western Isles Health Board\",Calculations!$E$2=\"Shetland Islands Local Authority\",Calculations!$E$2=\"Eilean Siar Local Authority\"),OR($F87=1,$F87=5)),0,new_yllv2(VALUE(LEFT(Options!$B$24,2)),$C87,$D87,$E87,$F87,2016,$I87+$J87,1,$H87,$G87*$H87,Options!$B$8)))","v":5432.9484011547002},{"$f":"IF(AND(OR(Calculations!$E$2=\"Orkney Health Board\",Calculations!$E$2=\"Orkney Islands Local Authority\"),$F87=1),0,IF(AND(OR(Calculations!$E$2=\"Shetland Health Board\",Calculations!$E$2=\"Western Isles Health Board\",Calculations!$E$2=\"Shetland Islands Local Authority\",Calculations!$E$2=\"Eilean Siar Local Authority\"),OR($F87=1,$F87=5)),0,hosp_count(VALUE(LEFT(Options!$B$24,2)),$C87,$E87,$F87,2016,$I87,1,$H87,$G87*$H87, Options!$B$8)))","v":7284.1542018173996},{"$f":"IF(AND(OR(Calculations!$E$2=\"Orkney Health Board\",Calculations!$E$2=\"Orkney Islands Local Authority\"),$F87=1),0,IF(AND(OR(Calculations!$E$2=\"Shetland Health Board\",Calculations!$E$2=\"Western Isles Health Board\",Calculations!$E$2=\"Shetland Islands Local Authority\",Calculations!$E$2=\"Eilean Siar Local Authority\"),OR($F87=1,$F87=5)),0,hosp_count(VALUE(LEFT(Options!$B$24,2)),$C87,$E87,$F87,2016,$I87+$J87,1,$H87,$G87*$H87, Options!$B$8)))","v":7260.6779448128},{"$f":"IF(AND(OR(Calculations!$E$2=\"Orkney Health Board\",Calculations!$E$2=\"Orkney Islands Local Authority\"),$F87=1),0,IF(AND(OR(Calculations!$E$2=\"Shetland Health Board\",Calculations!$E$2=\"Western Isles Health Board\",Calculations!$E$2=\"Shetland Islands Local Authority\",Calculations!$E$2=\"Eilean Siar Local Authority\"),OR($F87=1,$F87=5)),0,prem_mort(VALUE(LEFT(Options!$B$24,2)),$C87,$E87,$F87,2016,$I87,1,$H87,$G87*$H87,Options!$B$8)))","v":151.82360894460001},{"$f":"IF(AND(OR(Calculations!$E$2=\"Orkney Health Board\",Calculations!$E$2=\"Orkney Islands Local Authority\"),$F87=1),0,IF(AND(OR(Calculations!$E$2=\"Shetland Health Board\",Calculations!$E$2=\"Western Isles Health Board\",Calculations!$E$2=\"Shetland Islands Local Authority\",Calculations!$E$2=\"Eilean Siar Local Authority\"),OR($F87=1,$F87=5)),0,prem_mort(VALUE(LEFT(Options!$B$24,2)),$C87,$E87,$F87,2016,$I87+$J87,1,$H87,$G87*$H87,Options!$B$8)))","v":151.58897477459999},480.10501516174941,479.36304200929698,17206.962303081935,17180.369987523954,23034.355379999997,22960.117461381906,480.10501516174941,479.36304200929698,3360735.1061322456,3355541.2940650787,120448736.12157354,120262589.91266768,161240487.65999997,160720822.22967333,3360735.1061322456,3355541.2940650787,7000]
[null,"Male 45-49",47.038155000000003,79.418149999999997,"male",1,{"$f":"HLOOKUP(Calculations!$E$2,'Prevalence Rates'!$C$3:$BC$249,'Prevalence Rates'!$BD88,FALSE)","v":0.1649694399668899},{"$f":"HLOOKUP(Calculations!$E$2,'Population 2016'!$C$3:$BC$249,'Population 2016'!BD88,FALSE)","v":35878},0,{"$f":"HLOOKUP(Results!E$4,Targeting!$C$3:$F$249,Targeting!$G88,FALSE)","v":1063},{"$f":"IF(AND(OR(Calculations!$E$2=\"Orkney Health Board\",Calculations!$E$2=\"Orkney Islands Local Authority\"),$F88=1),0,IF(AND(OR(Calculations!$E$2=\"Shetland Health Board\",Calculations!$E$2=\"Western Isles Health Board\",Calculations!$E$2=\"Shetland Islands Local Authority\",Calculations!$E$2=\"Eilean Siar Local Authority\"),OR($F88=1,$F88=5)),0,new_ci(VALUE(LEFT(Options!$B$24,2)),$C88,$E88,$F88,2016,$I88,1,$H88,$G88*$H88,Options!$B$8)))","v":250.4119414086},{"$f":"IF(AND(OR(Calculations!$E$2=\"Orkney Health Board\",Calculations!$E$2=\"Orkney Islands Local Authority\"),$F88=1),0,IF(AND(OR(Calculations!$E$2=\"Shetland Health Board\",Calculations!$E$2=\"Western Isles Health Board\",Calculations!$E$2=\"Shetland Islands Local Authority\",Calculations!$E$2=\"Eilean Siar Local Authority\"),OR($F88=1,$F88=5)),0,new_ci(VALUE(LEFT(Options!$B$24,2)),$C88,$E88,$F88,2016,$I88+$J88,1,$H88,$G88*$H88,Options!$B$8)))","v":250.02559065700001},{"$f":"IF(AND(OR(Calculations!$E$2=\"Orkney Health Board\",Calculations!$E$2=\"Orkney Islands Local Authority\"),$F88=1),0,IF(AND(OR(Calculations!$E$2=\"Shetland Health Board\",Calculations!$E$2=\"Western Isles Health Board\",Calculations!$E$2=\"Shetland Islands Local Authority\",Calculations!$E$2=\"Eilean Siar Local Authority\"),OR($F88=1,$F88=5)),0,new_yllv2(VALUE(LEFT(Options!$B$24,2)),$C88,$D88,$E88,$F88,2016,$I88,1,$H88,$G88*$H88,Options!$B$8)))","v":7857.9254693421999},{"$f":"IF(AND(OR(Calculations!$E$2=\"Orkney Health Board\",Calculations!$E$2=\"Orkney Islands Local Authority\"),$F88=1),0,IF(AND(OR(Calculations!$E$2=\"Shetland Health Board\",Calculations!$E$2=\"Western Isles Health Board\",Calculations!$E$2=\"Shetland Islands Local Authority\",Calculations!$E$2=\"Eilean Siar Local Authority\"),OR($F88=1,$F88=5)),0,new_yllv2(VALUE(LEFT(Options!$B$24,2)),$C88,$D88,$E88,$F88,2016,$I88+$J88,1,$H88,$G88*$H88,Options!$B$8)))","v":7845.8017846886996},{"$f":"IF(AND(OR(Calculations!$E$2=\"Orkney Health Board\",Calculations!$E$2=\"Orkney Islands Local Authority\"),$F88=1),0,IF(AND(OR(Calculations!$E$2=\"Shetland Health Board\",Calculations!$E$2=\"Western Isles Health Board\",Calculations!$E$2=\"Shetland Islands Local Authority\",Calculations!$E$2=\"Eilean Siar Local Authority\"),OR($F88=1,$F88=5)),0,hosp_count(VALUE(LEFT(Options!$B$24,2)),$C88,$E88,$F88,2016,$I88,1,$H88,$G88*$H88, Options!$B$8)))","v":9858.8353716774},{"$f":"IF(AND(OR(Calculations!$E$2=\"Orkney Health Board\",Calculations!$E$2=\"Orkney Islands Local Authority\"),$F88=1),0,IF(AND(OR(Calculations!$E$2=\"Shetland Health Board\",Calculations!$E$2=\"Western Isles Health Board\",Calculations!$E$2=\"Shetland Islands Local Authority\",Calculations!$E$2=\"Eilean Siar Local Authority\"),OR($F88=1,$F88=5)),0,hosp_count(VALUE(LEFT(Options!$B$24,2)),$C88,$E88,$F88,2016,$I88+$J88,1,$H88,$G88*$H88, Options!$B$8)))","v":9827.0634228477993},{"$f":"IF(AND(OR(Calculations!$E$2=\"Orkney Health Board\",Calculations!$E$2=\"Orkney Islands Local Authority\"),$F88=1),0,IF(AND(OR(Calculations!$E$2=\"Shetland Health Board\",Calculations!$E$2=\"Western Isles Health Board\",Calculations!$E$2=\"Shetland Islands Local Authority\",Calculations!$E$2=\"Eilean Siar Local Authority\"),OR($F88=1,$F88=5)),0,prem_mort(VALUE(LEFT(Options!$B$24,2)),$C88,$E88,$F88,2016,$I88,1,$H88,$G88*$H88,Options!$B$8)))","v":250.4119414086},{"$f":"IF(AND(OR(Calculations!$E$2=\"Orkney Health Board\",Calculations!$E$2=\"Orkney Islands Local Authority\"),$F88=1),0,IF(AND(OR(Calculations!$E$2=\"Shetland Health Board\",Calculations!$E$2=\"Western Isles Health Board\",Calculations!$E$2=\"Shetland Islands Local Authority\",Calculations!$E$2=\"Eilean Siar Local Authority\"),OR($F88=1,$F88=5)),0,prem_mort(VALUE(LEFT(Options!$B$24,2)),$C88,$E88,$F88,2016,$I88+$J88,1,$H88,$G88*$H88,Options!$B$8)))","v":250.02559065700001},697.95401474050948,696.87716889737453,21901.793492787223,21868.002075613746,27478.776330000001,27390.220811772673,697.95401474050948,696.87716889737453,4885678.1031835666,4878140.1822816217,153312554.44951057,153076014.52929622,192351434.31,191731545.68240872,4885678.1031835666,4878140.1822816217,7000]
[null,"Male 50-54",51.998646000000001,79.988649999999993,"male",1,{"$f":"HLOOKUP(Calculations!$E$2,'Prevalence Rates'!$C$3:$BC$249,'Prevalence Rates'!$BD89,FALSE)","v":0.1649694399668899},{"$f":"HLOOKUP(Calculations!$E$2,'Population 2016'!$C$3:$BC$249,'Population 2016'!BD89,FALSE)","v":36922},0,{"$f":"HLOOKUP(Results!E$4,Targeting!$C$3:$F$249,Targeting!$G89,FALSE)","v":1093},{"$f":"IF(AND(OR(Calculations!$E$2=\"Orkney Health Board\",Calculations!$E$2=\"Orkney Islands Local Authority\"),$F89=1),0,IF(AND(OR(Calculations!$E$2=\"Shetland Health Board\",Calculations!$E$2=\"Western Isles Health Board\",Calculations!$E$2=\"Shetland Islands Local Authority\",Calculations!$E$2=\"Eilean Siar Local Authority\"),OR($F89=1,$F89=5)),0,new_ci(VALUE(LEFT(Options!$B$24,2)),$C89,$E89,$F89,2016,$I89,1,$H89,$G89*$H89,Options!$B$8)))","v":374.16107877780001},{"$f":"IF(AND(OR(Calculations!$E$2=\"Orkney Health Board\",Calculations!$E$2=\"Orkney Islands Local Authority\"),$F89=1),0,IF(AND(OR(Calculations!$E$2=\"Shetland Health Board\",Calculations!$E$2=\"Western Isles Health Board\",Calculations!$E$2=\"Shetland Islands Local Authority\",Calculations!$E$2=\"Eilean Siar Local Authority\"),OR($F89=1,$F89=5)),0,new_ci(VALUE(LEFT(Options!$B$24,2)),$C89,$E89,$F89,2016,$I89+$J89,1,$H89,$G89*$H89,Options!$B$8)))","v":373.58562892399999},{"$f":"IF(AND(OR(Calculations!$E$2=\"Orkney Health Board\",Calculations!$E$2=\"Orkney Islands Local Authority\"),$F89=1),0,IF(AND(OR(Calculations!$E$2=\"Shetland Health Board\",Calculations!$E$2=\"Western Isles Health Board\",Calculations!$E$2=\"Shetland Islands Local Authority\",Calculations!$E$2=\"Eilean Siar Local Authority\"),OR($F89=1,$F89=5)),0,new_yllv2(VALUE(LEFT(Options!$B$24,2)),$C89,$D89,$E89,$F89,2016,$I89,1,$H89,$G89*$H89,Options!$B$8)))","v":10098.6090128571},{"$f":"IF(AND(OR(Calculations!$E$2=\"Orkney Health Board\",Calculations!$E$2=\"Orkney Islands Local Authority\"),$F89=1),0,IF(AND(OR(Calculations!$E$2=\"Shetland Health Board\",Calculations!$E$2=\"Western Isles Health Board\",Calculations!$E$2=\"Shetland Islands Local Authority\",Calculations!$E$2=\"Eilean Siar Local Authority\"),OR($F89=1,$F89=5)),0,new_yllv2(VALUE(LEFT(Options!$B$24,2)),$C89,$D89,$E89,$F89,2016,$I89+$J89,1,$H89,$G89*$H89,Options!$B$8)))","v":10083.0776190013},{"$f":"IF(AND(OR(Calculations!$E$2=\"Orkney Health Board\",Calculations!$E$2=\"Orkney Islands Local Authority\"),$F89=1),0,IF(AND(OR(Calculations!$E$2=\"Shetland Health Board\",Calculations!$E$2=\"Western Isles Health Board\",Calculations!$E$2=\"Shetland Islands Local Authority\",Calculations!$E$2=\"Eilean Siar Local Authority\"),OR($F89=1,$F89=5)),0,hosp_count(VALUE(LEFT(Options!$B$24,2)),$C89,$E89,$F89,2016,$I89,1,$H89,$G89*$H89, Options!$B$8)))","v":12099.025182703401},{"$f":"IF(AND(OR(Calculations!$E$2=\"Orkney Health Board\",Calculations!$E$2=\"Orkney Islands Local Authority\"),$F89=1),0,IF(AND(OR(Calculations!$E$2=\"Shetland Health Board\",Calculations!$E$2=\"Western Isles Health Board\",Calculations!$E$2=\"Shetland Islands Local Authority\",Calculations!$E$2=\"Eilean Siar Local Authority\"),OR($F89=1,$F89=5)),0,hosp_count(VALUE(LEFT(Options!$B$24,2)),$C89,$E89,$F89,2016,$I89+$J89,1,$H89,$G89*$H89, Options!$B$8)))","v":12060.067014738899},{"$f":"IF(AND(OR(Calculations!$E$2=\"Orkney Health Board\",Calculations!$E$2=\"Orkney Islands Local Authority\"),$F89=1),0,IF(AND(OR(Calculations!$E$2=\"Shetland Health Board\",Calculations!$E$2=\"Western Isles Health Board\",Calculations!$E$2=\"Shetland Islands Local Authority\",Calculations!$E$2=\"Eilean Siar Local Authority\"),OR($F89=1,$F89=5)),0,prem_mort(VALUE(LEFT(Options!$B$24,2)),$C89,$E89,$F89,2016,$I89,1,$H89,$G89*$H89,Options!$B$8)))","v":374.16107877780001},{"$f":"IF(AND(OR(Calculations!$E$2=\"Orkney Health Board\",Calculations!$E$2=\"Orkney Islands Local Authority\"),$F89=1),0,IF(AND(OR(Calculations!$E$2=\"Shetland Health Board\",Calculations!$E$2=\"Western Isles Health Board\",Calculations!$E$2=\"Shetland Islands Local Authority\",Calculations!$E$2=\"Eilean Siar Local Authority\"),OR($F89=1,$F89=5)),0,prem_mort(VALUE(LEFT(Options!$B$24,2)),$C89,$E89,$F89,2016,$I89+$J89,1,$H89,$G89*$H89,Options!$B$8)))","v":373.58562892399999},1013.3824786788364,1011.82392320026,27351.197153071611,27309.131734470779,32769.148970000002,32663.634187581654,1013.3824786788364,1011.82392320026,7093677.3507518545,7082767.4624018194,191458380.07150128,191163922.14129546,229384042.79000002,228645439.31307158,7093677.3507518545,7082767.4624018194,7000]
[null,"Male 55-59",56.950867000000002,80.660870000000003,"male",1,{"$f":"HLOOKUP(Calculations!$E$2,'Prevalence Rates'!$C$3:$BC$249,'Prevalence Rates'!$BD90,FALSE)","v":0.1104253878905667},{"$f":"HLOOKUP(Calculations!$E$2,'Population 2016'!$C$3:$BC$249,'Population 2016'!BD90,FALSE)","v":33251},0,{"$f":"HLOOKUP(Results!E$4,Targeting!$C$3:$F$249,Targeting!$G90,FALSE)","v":985},{"$f":"IF(AND(OR(Calculations!$E$2=\"Orkney Health Board\",Calculations!$E$2=\"Orkney Islands Local Authority\"),$F90=1),0,IF(AND(OR(Calculations!$E$2=\"Shetland Health Board\",Calculations!$E$2=\"Western Isles Health Board\",Calculations!$E$2=\"Shetland Islands Local Authority\",Calculations!$E$2=\"Eilean Siar Local Authority\"),OR($F90=1,$F90=5)),0,new_ci(VALUE(LEFT(Options!$B$24,2)),$C90,$E90,$F90,2016,$I90,1,$H90,$G90*$H90,Options!$B$8)))","v":488.59601963760002},{"$f":"IF(AND(OR(Calculations!$E$2=\"Orkney Health Board\",Calculations!$E$2=\"Orkney Islands Local Authority\"),$F90=1),0,IF(AND(OR(Calculations!$E$2=\"Shetland Health Board\",Calculations!$E$2=\"Western Isles Health Board\",Calculations!$E$2=\"Shetland Islands Local Authority\",Calculations!$E$2=\"Eilean Siar Local Authority\"),OR($F90=1,$F90=5)),0,new_ci(VALUE(LEFT(Options!$B$24,2)),$C90,$E90,$F90,2016,$I90+$J90,1,$H90,$G90*$H90,Options!$B$8)))","v":487.83383441910001},{"$f":"IF(AND(OR(Calculations!$E$2=\"Orkney Health Board\",Calculations!$E$2=\"Orkney Islands Local Authority\"),$F90=1),0,IF(AND(OR(Calculations!$E$2=\"Shetland Health Board\",Calculations!$E$2=\"Western Isles Health Board\",Calculations!$E$2=\"Shetland Islands Local Authority\",Calculations!$E$2=\"Eilean Siar Local Authority\"),OR($F90=1,$F90=5)),0,new_yllv2(VALUE(LEFT(Options!$B$24,2)),$C90,$D90,$E90,$F90,2016,$I90,1,$H90,$G90*$H90,Options!$B$8)))","v":11096.017071758},{"$f":"IF(AND(OR(Calculations!$E$2=\"Orkney Health Board\",Calculations!$E$2=\"Orkney Islands Local Authority\"),$F90=1),0,IF(AND(OR(Calculations!$E$2=\"Shetland Health Board\",Calculations!$E$2=\"Western Isles Health Board\",Calculations!$E$2=\"Shetland Islands Local Authority\",Calculations!$E$2=\"Eilean Siar Local Authority\"),OR($F90=1,$F90=5)),0,new_yllv2(VALUE(LEFT(Options!$B$24,2)),$C90,$D90,$E90,$F90,2016,$I90+$J90,1,$H90,$G90*$H90,Options!$B$8)))","v":11078.7078431593},{"$f":"IF(AND(OR(Calculations!$E$2=\"Orkney Health Board\",Calculations!$E$2=\"Orkney Islands Local Authority\"),$F90=1),0,IF(AND(OR(Calculations!$E$2=\"Shetland Health Board\",Calculations!$E$2=\"Western Isles Health Board\",Calculations!$E$2=\"Shetland Islands Local Authority\",Calculations!$E$2=\"Eilean Siar Local Authority\"),OR($F90=1,$F90=5)),0,hosp_count(VALUE(LEFT(Options!$B$24,2)),$C90,$E90,$F90,2016,$I90,1,$H90,$G90*$H90, Options!$B$8)))","v":12990.0302415269},{"$f":"IF(AND(OR(Calculations!$E$2=\"Orkney Health Board\",Calculations!$E$2=\"Orkney Islands Local Authority\"),$F90=1),0,IF(AND(OR(Calculations!$E$2=\"Shetland Health Board\",Calculations!$E$2=\"Western Isles Health Board\",Calculations!$E$2=\"Shetland Islands Local Authority\",Calculations!$E$2=\"Eilean Siar Local Authority\"),OR($F90=1,$F90=5)),0,hosp_count(VALUE(LEFT(Options!$B$24,2)),$C90,$E90,$F90,2016,$I90+$J90,1,$H90,$G90*$H90, Options!$B$8)))","v":12947.3840649628},{"$f":"IF(AND(OR(Calculations!$E$2=\"Orkney Health Board\",Calculations!$E$2=\"Orkney Islands Local Authority\"),$F90=1),0,IF(AND(OR(Calculations!$E$2=\"Shetland Health Board\",Calculations!$E$2=\"Western Isles Health Board\",Calculations!$E$2=\"Shetland Islands Local Authority\",Calculations!$E$2=\"Eilean Siar Local Authority\"),OR($F90=1,$F90=5)),0,prem_mort(VALUE(LEFT(Options!$B$24,2)),$C90,$E90,$F90,2016,$I90,1,$H90,$G90*$H90,Options!$B$8)))","v":488.59601963760002},{"$f":"IF(AND(OR(Calculations!$E$2=\"Orkney Health Board\",Calculations!$E$2=\"Orkney Islands Local Authority\"),$F90=1),0,IF(AND(OR(Calculations!$E$2=\"Shetland Health Board\",Calculations!$E$2=\"Western Isles Health Board\",Calculations!$E$2=\"Shetland Islands Local Authority\",Calculations!$E$2=\"Eilean Siar Local Authority\"),OR($F90=1,$F90=5)),0,prem_mort(VALUE(LEFT(Options!$B$24,2)),$C90,$E90,$F90,2016,$I90+$J90,1,$H90,$G90*$H90,Options!$B$8)))","v":487.83383441910001},1469.4175201876637,1467.1253027551052,33370.476291714534,33318.420026944448,39066.585189999998,38938.329869666471,1469.4175201876637,1467.1253027551052,9551213.8812198136,9536314.4679081831,216908095.89614448,216569730.17513892,253932803.73499998,253099144.15283206,9551213.8812198136,9536314.4679081831,6500]
[null,"Male 60-64",61.942988999999997,81.612989999999996,"male",1,{"$f":"HLOOKUP(Calculations!$E$2,'Prevalence Rates'!$C$3:$BC$249,'Prevalence Rates'!$BD91,FALSE)","v":0.1104253878905667},{"$f":"HLOOKUP(Calculations!$E$2,'Population 2016'!$C$3:$BC$249,'Population 2016'!BD91,FALSE)","v":27358},0,{"$f":"HLOOKUP(Results!E$4,Targeting!$C$3:$F$249,Targeting!$G91,FALSE)","v":810},{"$f":"IF(AND(OR(Calculations!$E$2=\"Orkney Health Board\",Calculations!$E$2=\"Orkney Islands Local Authority\"),$F91=1),0,IF(AND(OR(Calculations!$E$2=\"Shetland Health Board\",Calculations!$E$2=\"Western Isles Health Board\",Calculations!$E$2=\"Shetland Islands Local Authority\",Calculations!$E$2=\"Eilean Siar Local Authority\"),OR($F91=1,$F91=5)),0,new_ci(VALUE(LEFT(Options!$B$24,2)),$C91,$E91,$F91,2016,$I91,1,$H91,$G91*$H91,Options!$B$8)))","v":584.02445241989994},{"$f":"IF(AND(OR(Calculations!$E$2=\"Orkney Health Board\",Calculations!$E$2=\"Orkney Islands Local Authority\"),$F91=1),0,IF(AND(OR(Calculations!$E$2=\"Shetland Health Board\",Calculations!$E$2=\"Western Isles Health Board\",Calculations!$E$2=\"Shetland Islands Local Authority\",Calculations!$E$2=\"Eilean Siar Local Authority\"),OR($F91=1,$F91=5)),0,new_ci(VALUE(LEFT(Options!$B$24,2)),$C91,$E91,$F91,2016,$I91+$J91,1,$H91,$G91*$H91,Options!$B$8)))","v":583.11852379590005},{"$f":"IF(AND(OR(Calculations!$E$2=\"Orkney Health Board\",Calculations!$E$2=\"Orkney Islands Local Authority\"),$F91=1),0,IF(AND(OR(Calculations!$E$2=\"Shetland Health Board\",Calculations!$E$2=\"Western Isles Health Board\",Calculations!$E$2=\"Shetland Islands Local Authority\",Calculations!$E$2=\"Eilean Siar Local Authority\"),OR($F91=1,$F91=5)),0,new_yllv2(VALUE(LEFT(Options!$B$24,2)),$C91,$D91,$E91,$F91,2016,$I91,1,$H91,$G91*$H91,Options!$B$8)))","v":10903.737110704},{"$f":"IF(AND(OR(Calculations!$E$2=\"Orkney Health Board\",Calculations!$E$2=\"Orkney Islands Local Authority\"),$F91=1),0,IF(AND(OR(Calculations!$E$2=\"Shetland Health Board\",Calculations!$E$2=\"Western Isles Health Board\",Calculations!$E$2=\"Shetland Islands Local Authority\",Calculations!$E$2=\"Eilean Siar Local Authority\"),OR($F91=1,$F91=5)),0,new_yllv2(VALUE(LEFT(Options!$B$24,2)),$C91,$D91,$E91,$F91,2016,$I91+$J91,1,$H91,$G91*$H91,Options!$B$8)))","v":10886.823422388001},{"$f":"IF(AND(OR(Calculations!$E$2=\"Orkney Health Board\",Calculations!$E$2=\"Orkney Islands Local Authority\"),$F91=1),0,IF(AND(OR(Calculations!$E$2=\"Shetland Health Board\",Calculations!$E$2=\"Western Isles Health Board\",Calculations!$E$2=\"Shetland Islands Local Authority\",Calculations!$E$2=\"Eilean Siar Local Authority\"),OR($F91=1,$F91=5)),0,hosp_count(VALUE(LEFT(Options!$B$24,2)),$C91,$E91,$F91,2016,$I91,1,$H91,$G91*$H91, Options!$B$8)))","v":12759.838377569},{"$f":"IF(AND(OR(Calculations!$E$2=\"Orkney Health Board\",Calculations!$E$2=\"Orkney Islands Local Authority\"),$F91=1),0,IF(AND(OR(Calculations!$E$2=\"Shetland Health Board\",Calculations!$E$2=\"Western Isles Health Board\",Calculations!$E$2=\"Shetland Islands Local Authority\",Calculations!$E$2=\"Eilean Siar Local Authority\"),OR($F91=1,$F91=5)),0,hosp_count(VALUE(LEFT(Options!$B$24,2)),$C91,$E91,$F91,2016,$I91+$J91,1,$H91,$G91*$H91, Options!$B$8)))","v":12717.9701798468},{"$f":"IF(AND(OR(Calculations!$E$2=\"Orkney Health Board\",Calculations!$E$2=\"Orkney Islands Local Authority\"),$F91=1),0,IF(AND(OR(Calculations!$E$2=\"Shetland Health Board\",Calculations!$E$2=\"Western Isles Health Board\",Calculations!$E$2=\"Shetland Islands Local Authority\",Calculations!$E$2=\"Eilean Siar Local Authority\"),OR($F91=1,$F91=5)),0,prem_mort(VALUE(LEFT(Options!$B$24,2)),$C91,$E91,$F91,2016,$I91,1,$H91,$G91*$H91,Options!$B$8)))","v":584.02445241989994},{"$f":"IF(AND(OR(Calculations!$E$2=\"Orkney Health Board\",Calculations!$E$2=\"Orkney Islands Local Authority\"),$F91=1),0,IF(AND(OR(Calculations!$E$2=\"Shetland Health Board\",Calculations!$E$2=\"Western Isles Health Board\",Calculations!$E$2=\"Shetland Islands Local Authority\",Calculations!$E$2=\"Eilean Siar Local Authority\"),OR($F91=1,$F91=5)),0,prem_mort(VALUE(LEFT(Options!$B$24,2)),$C91,$E91,$F91,2016,$I91+$J91,1,$H91,$G91*$H91,Options!$B$8)))","v":583.11852379590005},2134.7483457120402,2131.436961020177,39855.75374919219,39793.930193683751,46640.24555,46487.207324536881,2134.7483457120402,2131.436961020177,12808490.074272241,12788621.766121062,239134522.49515313,238763581.16210252,279841473.30000001,278923243.94722128,12808490.074272241,12788621.766121062,6000]
[null,"Male 65-69",67.054419999999993,82.954419999999999,"male",1,{"$f":"HLOOKUP(Calculations!$E$2,'Prevalence Rates'!$C$3:$BC$249,'Prevalence Rates'!$BD92,FALSE)","v":0.1104253878905667},{"$f":"HLOOKUP(Calculations!$E$2,'Population 2016'!$C$3:$BC$249,'Population 2016'!BD92,FALSE)","v":25567},0,{"$f":"HLOOKUP(Results!E$4,Targeting!$C$3:$F$249,Targeting!$G92,FALSE)","v":757},{"$f":"IF(AND(OR(Calculations!$E$2=\"Orkney Health Board\",Calculations!$E$2=\"Orkney Islands Local Authority\"),$F92=1),0,IF(AND(OR(Calculations!$E$2=\"Shetland Health Board\",Calculations!$E$2=\"Western Isles Health Board\",Calculations!$E$2=\"Shetland Islands Local Authority\",Calculations!$E$2=\"Eilean Siar Local Authority\"),OR($F92=1,$F92=5)),0,new_ci(VALUE(LEFT(Options!$B$24,2)),$C92,$E92,$F92,2016,$I92,1,$H92,$G92*$H92,Options!$B$8)))","v":798.73523483860004},{"$f":"IF(AND(OR(Calculations!$E$2=\"Orkney Health Board\",Calculations!$E$2=\"Orkney Islands Local Authority\"),$F92=1),0,IF(AND(OR(Calculations!$E$2=\"Shetland Health Board\",Calculations!$E$2=\"Western Isles Health Board\",Calculations!$E$2=\"Shetland Islands Local Authority\",Calculations!$E$2=\"Eilean Siar Local Authority\"),OR($F92=1,$F92=5)),0,new_ci(VALUE(LEFT(Options!$B$24,2)),$C92,$E92,$F92,2016,$I92+$J92,1,$H92,$G92*$H92,Options!$B$8)))","v":797.5056652495},{"$f":"IF(AND(OR(Calculations!$E$2=\"Orkney Health Board\",Calculations!$E$2=\"Orkney Islands Local Authority\"),$F92=1),0,IF(AND(OR(Calculations!$E$2=\"Shetland Health Board\",Calculations!$E$2=\"Western Isles Health Board\",Calculations!$E$2=\"Shetland Islands Local Authority\",Calculations!$E$2=\"Eilean Siar Local Authority\"),OR($F92=1,$F92=5)),0,new_yllv2(VALUE(LEFT(Options!$B$24,2)),$C92,$D92,$E92,$F92,2016,$I92,1,$H92,$G92*$H92,Options!$B$8)))","v":11901.154999095101},{"$f":"IF(AND(OR(Calculations!$E$2=\"Orkney Health Board\",Calculations!$E$2=\"Orkney Islands Local Authority\"),$F92=1),0,IF(AND(OR(Calculations!$E$2=\"Shetland Health Board\",Calculations!$E$2=\"Western Isles Health Board\",Calculations!$E$2=\"Shetland Islands Local Authority\",Calculations!$E$2=\"Eilean Siar Local Authority\"),OR($F92=1,$F92=5)),0,new_yllv2(VALUE(LEFT(Options!$B$24,2)),$C92,$D92,$E92,$F92,2016,$I92+$J92,1,$H92,$G92*$H92,Options!$B$8)))","v":11882.8344122176},{"$f":"IF(AND(OR(Calculations!$E$2=\"Orkney Health Board\",Calculations!$E$2=\"Orkney Islands Local Authority\"),$F92=1),0,IF(AND(OR(Calculations!$E$2=\"Shetland Health Board\",Calculations!$E$2=\"Western Isles Health Board\",Calculations!$E$2=\"Shetland Islands Local Authority\",Calculations!$E$2=\"Eilean Siar Local Authority\"),OR($F92=1,$F92=5)),0,hosp_count(VALUE(LEFT(Options!$B$24,2)),$C92,$E92,$F92,2016,$I92,1,$H92,$G92*$H92, Options!$B$8)))","v":14296.6790701768},{"$f":"IF(AND(OR(Calculations!$E$2=\"Orkney Health Board\",Calculations!$E$2=\"Orkney Islands Local Authority\"),$F92=1),0,IF(AND(OR(Calculations!$E$2=\"Shetland Health Board\",Calculations!$E$2=\"Western Isles Health Board\",Calculations!$E$2=\"Shetland Islands Local Authority\",Calculations!$E$2=\"Eilean Siar Local Authority\"),OR($F92=1,$F92=5)),0,hosp_count(VALUE(LEFT(Options!$B$24,2)),$C92,$E92,$F92,2016,$I92+$J92,1,$H92,$G92*$H92, Options!$B$8)))","v":14249.766449450601},{"$f":"IF(AND(OR(Calculations!$E$2=\"Orkney Health Board\",Calculations!$E$2=\"Orkney Islands Local Authority\"),$F92=1),0,IF(AND(OR(Calculations!$E$2=\"Shetland Health Board\",Calculations!$E$2=\"Western Isles Health Board\",Calculations!$E$2=\"Shetland Islands Local Authority\",Calculations!$E$2=\"Eilean Siar Local Authority\"),OR($F92=1,$F92=5)),0,prem_mort(VALUE(LEFT(Options!$B$24,2)),$C92,$E92,$F92,2016,$I92,1,$H92,$G92*$H92,Options!$B$8)))","v":798.73523483860004},{"$f":"IF(AND(OR(Calculations!$E$2=\"Orkney Health Board\",Calculations!$E$2=\"Orkney Islands Local Authority\"),$F92=1),0,IF(AND(OR(Calculations!$E$2=\"Shetland Health Board\",Calculations!$E$2=\"Western Isles Health Board\",Calculations!$E$2=\"Shetland Islands Local Authority\",Calculations!$E$2=\"Eilean Siar Local Authority\"),OR($F92=1,$F92=5)),0,prem_mort(VALUE(LEFT(Options!$B$24,2)),$C92,$E92,$F92,2016,$I92+$J92,1,$H92,$G92*$H92,Options!$B$8)))","v":797.5056652495},3124.0866540407555,3119.2774484667734,46548.891145207112,46477.233982155121,55918.48504,55734.996086559237,3124.0866540407555,3119.2774484667734,17182476.597224157,17156025.966567256,256018901.29863912,255624786.90185317,{"$f":"W92*$AI92","v":307551667.71999997},{"$f":"X92*$AI92","v":306542478.47607583},{"$f":"Y92*$AI92","v":17182476.597224157},{"$f":"Z92*$AI92","v":17156025.966567256},5500]
[null,"Male 70-74",71.891098,84.341099999999997,"male",1,{"$f":"HLOOKUP(Calculations!$E$2,'Prevalence Rates'!$C$3:$BC$249,'Prevalence Rates'!$BD93,FALSE)","v":0.1104253878905667},{"$f":"HLOOKUP(Calculations!$E$2,'Population 2016'!$C$3:$BC$249,'Population 2016'!BD93,FALSE)","v":18358},0,{"$f":"HLOOKUP(Results!E$4,Targeting!$C$3:$F$249,Targeting!$G93,FALSE)","v":544},{"$f":"IF(AND(OR(Calculations!$E$2=\"Orkney Health Board\",Calculations!$E$2=\"Orkney Islands Local Authority\"),$F93=1),0,IF(AND(OR(Calculations!$E$2=\"Shetland Health Board\",Calculations!$E$2=\"Western Isles Health Board\",Calculations!$E$2=\"Shetland Islands Local Authority\",Calculations!$E$2=\"Eilean Siar Local Authority\"),OR($F93=1,$F93=5)),0,new_ci(VALUE(LEFT(Options!$B$24,2)),$C93,$E93,$F93,2016,$I93,1,$H93,$G93*$H93,Options!$B$8)))","v":820.51623743070002},{"$f":"IF(AND(OR(Calculations!$E$2=\"Orkney Health Board\",Calculations!$E$2=\"Orkney Islands Local Authority\"),$F93=1),0,IF(AND(OR(Calculations!$E$2=\"Shetland Health Board\",Calculations!$E$2=\"Western Isles Health Board\",Calculations!$E$2=\"Shetland Islands Local Authority\",Calculations!$E$2=\"Eilean Siar Local Authority\"),OR($F93=1,$F93=5)),0,new_ci(VALUE(LEFT(Options!$B$24,2)),$C93,$E93,$F93,2016,$I93+$J93,1,$H93,$G93*$H93,Options!$B$8)))","v":819.26538270749995},{"$f":"IF(AND(OR(Calculations!$E$2=\"Orkney Health Board\",Calculations!$E$2=\"Orkney Islands Local Authority\"),$F93=1),0,IF(AND(OR(Calculations!$E$2=\"Shetland Health Board\",Calculations!$E$2=\"Western Isles Health Board\",Calculations!$E$2=\"Shetland Islands Local Authority\",Calculations!$E$2=\"Eilean Siar Local Authority\"),OR($F93=1,$F93=5)),0,new_yllv2(VALUE(LEFT(Options!$B$24,2)),$C93,$D93,$E93,$F93,2016,$I93,1,$H93,$G93*$H93,Options!$B$8)))","v":9394.9125596140002},{"$f":"IF(AND(OR(Calculations!$E$2=\"Orkney Health Board\",Calculations!$E$2=\"Orkney Islands Local Authority\"),$F93=1),0,IF(AND(OR(Calculations!$E$2=\"Shetland Health Board\",Calculations!$E$2=\"Western Isles Health Board\",Calculations!$E$2=\"Shetland Islands Local Authority\",Calculations!$E$2=\"Eilean Siar Local Authority\"),OR($F93=1,$F93=5)),0,new_yllv2(VALUE(LEFT(Options!$B$24,2)),$C93,$D93,$E93,$F93,2016,$I93+$J93,1,$H93,$G93*$H93,Options!$B$8)))","v":9380.5902705316003},{"$f":"IF(AND(OR(Calculations!$E$2=\"Orkney Health Board\",Calculations!$E$2=\"Orkney Islands Local Authority\"),$F93=1),0,IF(AND(OR(Calculations!$E$2=\"Shetland Health Board\",Calculations!$E$2=\"Western Isles Health Board\",Calculations!$E$2=\"Shetland Islands Local Authority\",Calculations!$E$2=\"Eilean Siar Local Authority\"),OR($F93=1,$F93=5)),0,hosp_count(VALUE(LEFT(Options!$B$24,2)),$C93,$E93,$F93,2016,$I93,1,$H93,$G93*$H93, Options!$B$8)))","v":12188.209584951601},{"$f":"IF(AND(OR(Calculations!$E$2=\"Orkney Health Board\",Calculations!$E$2=\"Orkney Islands Local Authority\"),$F93=1),0,IF(AND(OR(Calculations!$E$2=\"Shetland Health Board\",Calculations!$E$2=\"Western Isles Health Board\",Calculations!$E$2=\"Shetland Islands Local Authority\",Calculations!$E$2=\"Eilean Siar Local Authority\"),OR($F93=1,$F93=5)),0,hosp_count(VALUE(LEFT(Options!$B$24,2)),$C93,$E93,$F93,2016,$I93+$J93,1,$H93,$G93*$H93, Options!$B$8)))","v":12148.1826932192},{"$f":"IF(AND(OR(Calculations!$E$2=\"Orkney Health Board\",Calculations!$E$2=\"Orkney Islands Local Authority\"),$F93=1),0,IF(AND(OR(Calculations!$E$2=\"Shetland Health Board\",Calculations!$E$2=\"Western Isles Health Board\",Calculations!$E$2=\"Shetland Islands Local Authority\",Calculations!$E$2=\"Eilean Siar Local Authority\"),OR($F93=1,$F93=5)),0,prem_mort(VALUE(LEFT(Options!$B$24,2)),$C93,$E93,$F93,2016,$I93,1,$H93,$G93*$H93,Options!$B$8)))","v":820.51623743070002},{"$f":"IF(AND(OR(Calculations!$E$2=\"Orkney Health Board\",Calculations!$E$2=\"Orkney Islands Local Authority\"),$F93=1),0,IF(AND(OR(Calculations!$E$2=\"Shetland Health Board\",Calculations!$E$2=\"Western Isles Health Board\",Calculations!$E$2=\"Shetland Islands Local Authority\",Calculations!$E$2=\"Eilean Siar Local Authority\"),OR($F93=1,$F93=5)),0,prem_mort(VALUE(LEFT(Options!$B$24,2)),$C93,$E93,$F93,2016,$I93+$J93,1,$H93,$G93*$H93,Options!$B$8)))","v":819.26538270749995},4469.5295643899117,4462.7158879371391,51176.122451323674,51098.105842311801,66391.816019999998,66173.780876016986,4469.5295643899117,4462.7158879371391,22347647.82194956,22313579.439685695,255880612.25661838,255490529.211559,331959080.09999996,330868904.38008493,22347647.82194956,22313579.439685695,5000]
[null,"Male 75-79",76.907700000000006,86.357700000000008,"male",1,{"$f":"HLOOKUP(Calculations!$E$2,'Prevalence Rates'!$C$3:$BC$249,'Prevalence Rates'!$BD94,FALSE)","v":0.1104253878905667},{"$f":"HLOOKUP(Calculations!$E$2,'Population 2016'!$C$3:$BC$249,'Population 2016'!BD94,FALSE)","v":13914},0,{"$f":"HLOOKUP(Results!E$4,Targeting!$C$3:$F$249,Targeting!$G94,FALSE)","v":412},{"$f":"IF(AND(OR(Calculations!$E$2=\"Orkney Health Board\",Calculations!$E$2=\"Orkney Islands Local Authority\"),$F94=1),0,IF(AND(OR(Calculations!$E$2=\"Shetland Health Board\",Calculations!$E$2=\"Western Isles Health Board\",Calculations!$E$2=\"Shetland Islands Local Authority\",Calculations!$E$2=\"Eilean Siar Local Authority\"),OR($F94=1,$F94=5)),0,new_ci(VALUE(LEFT(Options!$B$24,2)),$C94,$E94,$F94,2016,$I94,1,$H94,$G94*$H94,Options!$B$8)))","v":898.72493353050004},{"$f":"IF(AND(OR(Calculations!$E$2=\"Orkney Health Board\",Calculations!$E$2=\"Orkney Islands Local Authority\"),$F94=1),0,IF(AND(OR(Calculations!$E$2=\"Shetland Health Board\",Calculations!$E$2=\"Western Isles Health Board\",Calculations!$E$2=\"Shetland Islands Local Authority\",Calculations!$E$2=\"Eilean Siar Local Authority\"),OR($F94=1,$F94=5)),0,new_ci(VALUE(LEFT(Options!$B$24,2)),$C94,$E94,$F94,2016,$I94+$J94,1,$H94,$G94*$H94,Options!$B$8)))","v":897.37752811250004},{"$f":"IF(AND(OR(Calculations!$E$2=\"Orkney Health Board\",Calculations!$E$2=\"Orkney Islands Local Authority\"),$F94=1),0,IF(AND(OR(Calculations!$E$2=\"Shetland Health Board\",Calculations!$E$2=\"Western Isles Health Board\",Calculations!$E$2=\"Shetland Islands Local Authority\",Calculations!$E$2=\"Eilean Siar Local Authority\"),OR($F94=1,$F94=5)),0,new_yllv2(VALUE(LEFT(Options!$B$24,2)),$C94,$D94,$E94,$F94,2016,$I94,1,$H94,$G94*$H94,Options!$B$8)))","v":7594.2256883327},{"$f":"IF(AND(OR(Calculations!$E$2=\"Orkney Health Board\",Calculations!$E$2=\"Orkney Islands Local Authority\"),$F94=1),0,IF(AND(OR(Calculations!$E$2=\"Shetland Health Board\",Calculations!$E$2=\"Western Isles Health Board\",Calculations!$E$2=\"Shetland Islands Local Authority\",Calculations!$E$2=\"Eilean Siar Local Authority\"),OR($F94=1,$F94=5)),0,new_yllv2(VALUE(LEFT(Options!$B$24,2)),$C94,$D94,$E94,$F94,2016,$I94+$J94,1,$H94,$G94*$H94,Options!$B$8)))","v":7582.8401125505998},{"$f":"IF(AND(OR(Calculations!$E$2=\"Orkney Health Board\",Calculations!$E$2=\"Orkney Islands Local Authority\"),$F94=1),0,IF(AND(OR(Calculations!$E$2=\"Shetland Health Board\",Calculations!$E$2=\"Western Isles Health Board\",Calculations!$E$2=\"Shetland Islands Local Authority\",Calculations!$E$2=\"Eilean Siar Local Authority\"),OR($F94=1,$F94=5)),0,hosp_count(VALUE(LEFT(Options!$B$24,2)),$C94,$E94,$F94,2016,$I94,1,$H94,$G94*$H94, Options!$B$8)))","v":11038.2262665822},{"$f":"IF(AND(OR(Calculations!$E$2=\"Orkney Health Board\",Calculations!$E$2=\"Orkney Islands Local Authority\"),$F94=1),0,IF(AND(OR(Calculations!$E$2=\"Shetland Health Board\",Calculations!$E$2=\"Western Isles Health Board\",Calculations!$E$2=\"Shetland Islands Local Authority\",Calculations!$E$2=\"Eilean Siar Local Authority\"),OR($F94=1,$F94=5)),0,hosp_count(VALUE(LEFT(Options!$B$24,2)),$C94,$E94,$F94,2016,$I94+$J94,1,$H94,$G94*$H94, Options!$B$8)))","v":11002.003390665801},{"$f":"IF(AND(OR(Calculations!$E$2=\"Orkney Health Board\",Calculations!$E$2=\"Orkney Islands Local Authority\"),$F94=1),0,IF(AND(OR(Calculations!$E$2=\"Shetland Health Board\",Calculations!$E$2=\"Western Isles Health Board\",Calculations!$E$2=\"Shetland Islands Local Authority\",Calculations!$E$2=\"Eilean Siar Local Authority\"),OR($F94=1,$F94=5)),0,prem_mort(VALUE(LEFT(Options!$B$24,2)),$C94,$E94,$F94,2016,$I94,1,$H94,$G94*$H94,Options!$B$8)))","v":0},{"$f":"IF(AND(OR(Calculations!$E$2=\"Orkney Health Board\",Calculations!$E$2=\"Orkney Islands Local Authority\"),$F94=1),0,IF(AND(OR(Calculations!$E$2=\"Shetland Health Board\",Calculations!$E$2=\"Western Isles Health Board\",Calculations!$E$2=\"Shetland Islands Local Authority\",Calculations!$E$2=\"Eilean Siar Local Authority\"),OR($F94=1,$F94=5)),0,prem_mort(VALUE(LEFT(Options!$B$24,2)),$C94,$E94,$F94,2016,$I94+$J94,1,$H94,$G94*$H94,Options!$B$8)))","v":0},6459.1413937796469,6449.4575830997555,54579.744777437831,54497.916577192751,79331.797230000011,79071.463207314941,0,0,25836565.575118586,25797830.332399022,218318979.10975131,217991666.30877101,317327188.92000002,316285852.82925975,0,0,4000]
[null,"Male 80-84",81.797089,88.627089999999995,"male",1,{"$f":"HLOOKUP(Calculations!$E$2,'Prevalence Rates'!$C$3:$BC$249,'Prevalence Rates'!$BD95,FALSE)","v":0.1104253878905667},{"$f":"HLOOKUP(Calculations!$E$2,'Population 2016'!$C$3:$BC$249,'Population 2016'!BD95,FALSE)","v":9236},0,{"$f":"HLOOKUP(Results!E$4,Targeting!$C$3:$F$249,Targeting!$G95,FALSE)","v":274},{"$f":"IF(AND(OR(Calculations!$E$2=\"Orkney Health Board\",Calculations!$E$2=\"Orkney Islands Local Authority\"),$F95=1),0,IF(AND(OR(Calculations!$E$2=\"Shetland Health Board\",Calculations!$E$2=\"Western Isles Health Board\",Calculations!$E$2=\"Shetland Islands Local Authority\",Calculations!$E$2=\"Eilean Siar Local Authority\"),OR($F95=1,$F95=5)),0,new_ci(VALUE(LEFT(Options!$B$24,2)),$C95,$E95,$F95,2016,$I95,1,$H95,$G95*$H95,Options!$B$8)))","v":850.21136669539999},{"$f":"IF(AND(OR(Calculations!$E$2=\"Orkney Health Board\",Calculations!$E$2=\"Orkney Islands Local Authority\"),$F95=1),0,IF(AND(OR(Calculations!$E$2=\"Shetland Health Board\",Calculations!$E$2=\"Western Isles Health Board\",Calculations!$E$2=\"Shetland Islands Local Authority\",Calculations!$E$2=\"Eilean Siar Local Authority\"),OR($F95=1,$F95=5)),0,new_ci(VALUE(LEFT(Options!$B$24,2)),$C95,$E95,$F95,2016,$I95+$J95,1,$H95,$G95*$H95,Options!$B$8)))","v":848.96285980239998},{"$f":"IF(AND(OR(Calculations!$E$2=\"Orkney Health Board\",Calculations!$E$2=\"Orkney Islands Local Authority\"),$F95=1),0,IF(AND(OR(Calculations!$E$2=\"Shetland Health Board\",Calculations!$E$2=\"Western Isles Health Board\",Calculations!$E$2=\"Shetland Islands Local Authority\",Calculations!$E$2=\"Eilean Siar Local Authority\"),OR($F95=1,$F95=5)),0,new_yllv2(VALUE(LEFT(Options!$B$24,2)),$C95,$D95,$E95,$F95,2016,$I95,1,$H95,$G95*$H95,Options!$B$8)))","v":4956.7331180455003},{"$f":"IF(AND(OR(Calculations!$E$2=\"Orkney Health Board\",Calculations!$E$2=\"Orkney Islands Local Authority\"),$F95=1),0,IF(AND(OR(Calculations!$E$2=\"Shetland Health Board\",Calculations!$E$2=\"Western Isles Health Board\",Calculations!$E$2=\"Shetland Islands Local Authority\",Calculations!$E$2=\"Eilean Siar Local Authority\"),OR($F95=1,$F95=5)),0,new_yllv2(VALUE(LEFT(Options!$B$24,2)),$C95,$D95,$E95,$F95,2016,$I95+$J95,1,$H95,$G95*$H95,Options!$B$8)))","v":4949.4543216108004},{"$f":"IF(AND(OR(Calculations!$E$2=\"Orkney Health Board\",Calculations!$E$2=\"Orkney Islands Local Authority\"),$F95=1),0,IF(AND(OR(Calculations!$E$2=\"Shetland Health Board\",Calculations!$E$2=\"Western Isles Health Board\",Calculations!$E$2=\"Shetland Islands Local Authority\",Calculations!$E$2=\"Eilean Siar Local Authority\"),OR($F95=1,$F95=5)),0,hosp_count(VALUE(LEFT(Options!$B$24,2)),$C95,$E95,$F95,2016,$I95,1,$H95,$G95*$H95, Options!$B$8)))","v":8715.7131399083992},{"$f":"IF(AND(OR(Calculations!$E$2=\"Orkney Health Board\",Calculations!$E$2=\"Orkney Islands Local Authority\"),$F95=1),0,IF(AND(OR(Calculations!$E$2=\"Shetland Health Board\",Calculations!$E$2=\"Western Isles Health Board\",Calculations!$E$2=\"Shetland Islands Local Authority\",Calculations!$E$2=\"Eilean Siar Local Authority\"),OR($F95=1,$F95=5)),0,hosp_count(VALUE(LEFT(Options!$B$24,2)),$C95,$E95,$F95,2016,$I95+$J95,1,$H95,$G95*$H95, Options!$B$8)))","v":8687.0576402585993},{"$f":"IF(AND(OR(Calculations!$E$2=\"Orkney Health Board\",Calculations!$E$2=\"Orkney Islands Local Authority\"),$F95=1),0,IF(AND(OR(Calculations!$E$2=\"Shetland Health Board\",Calculations!$E$2=\"Western Isles Health Board\",Calculations!$E$2=\"Shetland Islands Local Authority\",Calculations!$E$2=\"Eilean Siar Local Authority\"),OR($F95=1,$F95=5)),0,prem_mort(VALUE(LEFT(Options!$B$24,2)),$C95,$E95,$F95,2016,$I95,1,$H95,$G95*$H95,Options!$B$8)))","v":0},{"$f":"IF(AND(OR(Calculations!$E$2=\"Orkney Health Board\",Calculations!$E$2=\"Orkney Islands Local Authority\"),$F95=1),0,IF(AND(OR(Calculations!$E$2=\"Shetland Health Board\",Calculations!$E$2=\"Western Isles Health Board\",Calculations!$E$2=\"Shetland Islands Local Authority\",Calculations!$E$2=\"Eilean Siar Local Authority\"),OR($F95=1,$F95=5)),0,prem_mort(VALUE(LEFT(Options!$B$24,2)),$C95,$E95,$F95,2016,$I95+$J95,1,$H95,$G95*$H95,Options!$B$8)))","v":0},9205.4067420463416,9191.8889108098738,53667.530511536388,53588.721541909923,94366.751189999995,94056.49242376136,0,0,23013516.855115853,22979722.277024683,134168826.27884097,133971803.8547748,235916877.97499999,235141231.05940339,0,0,2500]
[null,"Male 85-89",86.630752999999999,91.420750000000012,"male",1,{"$f":"HLOOKUP(Calculations!$E$2,'Prevalence Rates'!$C$3:$BC$249,'Prevalence Rates'!$BD96,FALSE)","v":0.1104253878905667},{"$f":"HLOOKUP(Calculations!$E$2,'Population 2016'!$C$3:$BC$249,'Population 2016'!BD96,FALSE)","v":4449},0,{"$f":"HLOOKUP(Results!E$4,Targeting!$C$3:$F$249,Targeting!$G96,FALSE)","v":132},{"$f":"IF(AND(OR(Calculations!$E$2=\"Orkney Health Board\",Calculations!$E$2=\"Orkney Islands Local Authority\"),$F96=1),0,IF(AND(OR(Calculations!$E$2=\"Shetland Health Board\",Calculations!$E$2=\"Western Isles Health Board\",Calculations!$E$2=\"Shetland Islands Local Authority\",Calculations!$E$2=\"Eilean Siar Local Authority\"),OR($F96=1,$F96=5)),0,new_ci(VALUE(LEFT(Options!$B$24,2)),$C96,$E96,$F96,2016,$I96,1,$H96,$G96*$H96,Options!$B$8)))","v":577.63621847410002},{"$f":"IF(AND(OR(Calculations!$E$2=\"Orkney Health Board\",Calculations!$E$2=\"Orkney Islands Local Authority\"),$F96=1),0,IF(AND(OR(Calculations!$E$2=\"Shetland Health Board\",Calculations!$E$2=\"Western Isles Health Board\",Calculations!$E$2=\"Shetland Islands Local Authority\",Calculations!$E$2=\"Eilean Siar Local Authority\"),OR($F96=1,$F96=5)),0,new_ci(VALUE(LEFT(Options!$B$24,2)),$C96,$E96,$F96,2016,$I96+$J96,1,$H96,$G96*$H96,Options!$B$8)))","v":576.81495935409998},{"$f":"IF(AND(OR(Calculations!$E$2=\"Orkney Health Board\",Calculations!$E$2=\"Orkney Islands Local Authority\"),$F96=1),0,IF(AND(OR(Calculations!$E$2=\"Shetland Health Board\",Calculations!$E$2=\"Western Isles Health Board\",Calculations!$E$2=\"Shetland Islands Local Authority\",Calculations!$E$2=\"Eilean Siar Local Authority\"),OR($F96=1,$F96=5)),0,new_yllv2(VALUE(LEFT(Options!$B$24,2)),$C96,$D96,$E96,$F96,2016,$I96,1,$H96,$G96*$H96,Options!$B$8)))","v":2189.2395351082},{"$f":"IF(AND(OR(Calculations!$E$2=\"Orkney Health Board\",Calculations!$E$2=\"Orkney Islands Local Authority\"),$F96=1),0,IF(AND(OR(Calculations!$E$2=\"Shetland Health Board\",Calculations!$E$2=\"Western Isles Health Board\",Calculations!$E$2=\"Shetland Islands Local Authority\",Calculations!$E$2=\"Eilean Siar Local Authority\"),OR($F96=1,$F96=5)),0,new_yllv2(VALUE(LEFT(Options!$B$24,2)),$C96,$D96,$E96,$F96,2016,$I96+$J96,1,$H96,$G96*$H96,Options!$B$8)))","v":2186.1269655072001},{"$f":"IF(AND(OR(Calculations!$E$2=\"Orkney Health Board\",Calculations!$E$2=\"Orkney Islands Local Authority\"),$F96=1),0,IF(AND(OR(Calculations!$E$2=\"Shetland Health Board\",Calculations!$E$2=\"Western Isles Health Board\",Calculations!$E$2=\"Shetland Islands Local Authority\",Calculations!$E$2=\"Eilean Siar Local Authority\"),OR($F96=1,$F96=5)),0,hosp_count(VALUE(LEFT(Options!$B$24,2)),$C96,$E96,$F96,2016,$I96,1,$H96,$G96*$H96, Options!$B$8)))","v":4984.1843667180001},{"$f":"IF(AND(OR(Calculations!$E$2=\"Orkney Health Board\",Calculations!$E$2=\"Orkney Islands Local Authority\"),$F96=1),0,IF(AND(OR(Calculations!$E$2=\"Shetland Health Board\",Calculations!$E$2=\"Western Isles Health Board\",Calculations!$E$2=\"Shetland Islands Local Authority\",Calculations!$E$2=\"Eilean Siar Local Authority\"),OR($F96=1,$F96=5)),0,hosp_count(VALUE(LEFT(Options!$B$24,2)),$C96,$E96,$F96,2016,$I96+$J96,1,$H96,$G96*$H96, Options!$B$8)))","v":4967.7956841695004},{"$f":"IF(AND(OR(Calculations!$E$2=\"Orkney Health Board\",Calculations!$E$2=\"Orkney Islands Local Authority\"),$F96=1),0,IF(AND(OR(Calculations!$E$2=\"Shetland Health Board\",Calculations!$E$2=\"Western Isles Health Board\",Calculations!$E$2=\"Shetland Islands Local Authority\",Calculations!$E$2=\"Eilean Siar Local Authority\"),OR($F96=1,$F96=5)),0,prem_mort(VALUE(LEFT(Options!$B$24,2)),$C96,$E96,$F96,2016,$I96,1,$H96,$G96*$H96,Options!$B$8)))","v":0},{"$f":"IF(AND(OR(Calculations!$E$2=\"Orkney Health Board\",Calculations!$E$2=\"Orkney Islands Local Authority\"),$F96=1),0,IF(AND(OR(Calculations!$E$2=\"Shetland Health Board\",Calculations!$E$2=\"Western Isles Health Board\",Calculations!$E$2=\"Shetland Islands Local Authority\",Calculations!$E$2=\"Eilean Siar Local Authority\"),OR($F96=1,$F96=5)),0,prem_mort(VALUE(LEFT(Options!$B$24,2)),$C96,$E96,$F96,2016,$I96+$J96,1,$H96,$G96*$H96,Options!$B$8)))","v":0},12983.506821175546,12965.047411870084,49207.451901735221,49137.490795846257,112029.31820000001,111660.95041963363,0,0,19475260.231763318,19447571.117805127,73811177.852602825,73706236.19376938,168043977.30000001,167491425.62945044,0,0,1500]
[null,"Male 90+",92.215477000000007,95.515479999999997,"male",1,{"$f":"HLOOKUP(Calculations!$E$2,'Prevalence Rates'!$C$3:$BC$249,'Prevalence Rates'!$BD97,FALSE)","v":0.1104253878905667},{"$f":"HLOOKUP(Calculations!$E$2,'Population 2016'!$C$3:$BC$249,'Population 2016'!BD97,FALSE)","v":1916},0,{"$f":"HLOOKUP(Results!E$4,Targeting!$C$3:$F$249,Targeting!$G97,FALSE)","v":57},{"$f":"IF(AND(OR(Calculations!$E$2=\"Orkney Health Board\",Calculations!$E$2=\"Orkney Islands Local Authority\"),$F97=1),0,IF(AND(OR(Calculations!$E$2=\"Shetland Health Board\",Calculations!$E$2=\"Western Isles Health Board\",Calculations!$E$2=\"Shetland Islands Local Authority\",Calculations!$E$2=\"Eilean Siar Local Authority\"),OR($F97=1,$F97=5)),0,new_ci(VALUE(LEFT(Options!$B$24,2)),$C97,$E97,$F97,2016,$I97,1,$H97,$G97*$H97,Options!$B$8)))","v":365.92170805929999},{"$f":"IF(AND(OR(Calculations!$E$2=\"Orkney Health Board\",Calculations!$E$2=\"Orkney Islands Local Authority\"),$F97=1),0,IF(AND(OR(Calculations!$E$2=\"Shetland Health Board\",Calculations!$E$2=\"Western Isles Health Board\",Calculations!$E$2=\"Shetland Islands Local Authority\",Calculations!$E$2=\"Eilean Siar Local Authority\"),OR($F97=1,$F97=5)),0,new_ci(VALUE(LEFT(Options!$B$24,2)),$C97,$E97,$F97,2016,$I97+$J97,1,$H97,$G97*$H97,Options!$B$8)))","v":365.42846160879998},{"$f":"IF(AND(OR(Calculations!$E$2=\"Orkney Health Board\",Calculations!$E$2=\"Orkney Islands Local Authority\"),$F97=1),0,IF(AND(OR(Calculations!$E$2=\"Shetland Health Board\",Calculations!$E$2=\"Western Isles Health Board\",Calculations!$E$2=\"Shetland Islands Local Authority\",Calculations!$E$2=\"Eilean Siar Local Authority\"),OR($F97=1,$F97=5)),0,new_yllv2(VALUE(LEFT(Options!$B$24,2)),$C97,$D97,$E97,$F97,2016,$I97,1,$H97,$G97*$H97,Options!$B$8)))","v":841.62102630150002},{"$f":"IF(AND(OR(Calculations!$E$2=\"Orkney Health Board\",Calculations!$E$2=\"Orkney Islands Local Authority\"),$F97=1),0,IF(AND(OR(Calculations!$E$2=\"Shetland Health Board\",Calculations!$E$2=\"Western Isles Health Board\",Calculations!$E$2=\"Shetland Islands Local Authority\",Calculations!$E$2=\"Eilean Siar Local Authority\"),OR($F97=1,$F97=5)),0,new_yllv2(VALUE(LEFT(Options!$B$24,2)),$C97,$D97,$E97,$F97,2016,$I97+$J97,1,$H97,$G97*$H97,Options!$B$8)))","v":840.48655798560003},{"$f":"IF(AND(OR(Calculations!$E$2=\"Orkney Health Board\",Calculations!$E$2=\"Orkney Islands Local Authority\"),$F97=1),0,IF(AND(OR(Calculations!$E$2=\"Shetland Health Board\",Calculations!$E$2=\"Western Isles Health Board\",Calculations!$E$2=\"Shetland Islands Local Authority\",Calculations!$E$2=\"Eilean Siar Local Authority\"),OR($F97=1,$F97=5)),0,hosp_count(VALUE(LEFT(Options!$B$24,2)),$C97,$E97,$F97,2016,$I97,1,$H97,$G97*$H97, Options!$B$8)))","v":2617.0845289212002},{"$f":"IF(AND(OR(Calculations!$E$2=\"Orkney Health Board\",Calculations!$E$2=\"Orkney Islands Local Authority\"),$F97=1),0,IF(AND(OR(Calculations!$E$2=\"Shetland Health Board\",Calculations!$E$2=\"Western Isles Health Board\",Calculations!$E$2=\"Shetland Islands Local Authority\",Calculations!$E$2=\"Eilean Siar Local Authority\"),OR($F97=1,$F97=5)),0,hosp_count(VALUE(LEFT(Options!$B$24,2)),$C97,$E97,$F97,2016,$I97+$J97,1,$H97,$G97*$H97, Options!$B$8)))","v":2608.4560246194001},{"$f":"IF(AND(OR(Calculations!$E$2=\"Orkney Health Board\",Calculations!$E$2=\"Orkney Islands Local Authority\"),$F97=1),0,IF(AND(OR(Calculations!$E$2=\"Shetland Health Board\",Calculations!$E$2=\"Western Isles Health Board\",Calculations!$E$2=\"Shetland Islands Local Authority\",Calculations!$E$2=\"Eilean Siar Local Authority\"),OR($F97=1,$F97=5)),0,prem_mort(VALUE(LEFT(Options!$B$24,2)),$C97,$E97,$F97,2016,$I97,1,$H97,$G97*$H97,Options!$B$8)))","v":0},{"$f":"IF(AND(OR(Calculations!$E$2=\"Orkney Health Board\",Calculations!$E$2=\"Orkney Islands Local Authority\"),$F97=1),0,IF(AND(OR(Calculations!$E$2=\"Shetland Health Board\",Calculations!$E$2=\"Western Isles Health Board\",Calculations!$E$2=\"Shetland Islands Local Authority\",Calculations!$E$2=\"Eilean Siar Local Authority\"),OR($F97=1,$F97=5)),0,prem_mort(VALUE(LEFT(Options!$B$24,2)),$C97,$E97,$F97,2016,$I97+$J97,1,$H97,$G97*$H97,Options!$B$8)))","v":0},19098.210232740083,19072.466681043839,43925.940829932151,43866.730583799588,136591.05057000002,136140.71109704595,0,0,19098210.232740082,19072466.681043841,43925940.829932153,43866730.583799586,136591050.57000002,136140711.09704596,0,0,1000]
[null,"Female 0-4",2.0384007,81.468401,"female",2,{"$f":"HLOOKUP(Calculations!$E$2,'Prevalence Rates'!$C$3:$BC$249,'Prevalence Rates'!$BD98,FALSE)","v":0},{"$f":"HLOOKUP(Calculations!$E$2,'Population 2016'!$C$3:$BC$249,'Population 2016'!BD98,FALSE)","v":0},0,{"$f":"HLOOKUP(Results!E$4,Targeting!$C$3:$F$249,Targeting!$G98,FALSE)","v":0},{"$f":"IF(AND(OR(Calculations!$E$2=\"Orkney Health Board\",Calculations!$E$2=\"Orkney Islands Local Authority\"),$F98=1),0,IF(AND(OR(Calculations!$E$2=\"Shetland Health Board\",Calculations!$E$2=\"Western Isles Health Board\",Calculations!$E$2=\"Shetland Islands Local Authority\",Calculations!$E$2=\"Eilean Siar Local Authority\"),OR($F98=1,$F98=5)),0,new_ci(VALUE(LEFT(Options!$B$24,2)),$C98,$E98,$F98,2016,$I98,1,$H98,$G98*$H98,Options!$B$8)))","v":{"$error":"#VALUE!"}},{"$f":"IF(AND(OR(Calculations!$E$2=\"Orkney Health Board\",Calculations!$E$2=\"Orkney Islands Local Authority\"),$F98=1),0,IF(AND(OR(Calculations!$E$2=\"Shetland Health Board\",Calculations!$E$2=\"Western Isles Health Board\",Calculations!$E$2=\"Shetland Islands Local Authority\",Calculations!$E$2=\"Eilean Siar Local Authority\"),OR($F98=1,$F98=5)),0,new_ci(VALUE(LEFT(Options!$B$24,2)),$C98,$E98,$F98,2016,$I98+$J98,1,$H98,$G98*$H98,Options!$B$8)))","v":{"$error":"#VALUE!"}},{"$f":"IF(AND(OR(Calculations!$E$2=\"Orkney Health Board\",Calculations!$E$2=\"Orkney Islands Local Authority\"),$F98=1),0,IF(AND(OR(Calculations!$E$2=\"Shetland Health Board\",Calculations!$E$2=\"Western Isles Health Board\",Calculations!$E$2=\"Shetland Islands Local Authority\",Calculations!$E$2=\"Eilean Siar Local Authority\"),OR($F98=1,$F98=5)),0,new_yllv2(VALUE(LEFT(Options!$B$24,2)),$C98,$D98,$E98,$F98,2016,$I98,1,$H98,$G98*$H98,Options!$B$8)))","v":{"$error":"#VALUE!"}},{"$f":"IF(AND(OR(Calculations!$E$2=\"Orkney Health Board\",Calculations!$E$2=\"Orkney Islands Local Authority\"),$F98=1),0,IF(AND(OR(Calculations!$E$2=\"Shetland Health Board\",Calculations!$E$2=\"Western Isles Health Board\",Calculations!$E$2=\"Shetland Islands Local Authority\",Calculations!$E$2=\"Eilean Siar Local Authority\"),OR($F98=1,$F98=5)),0,new_yllv2(VALUE(LEFT(Options!$B$24,2)),$C98,$D98,$E98,$F98,2016,$I98+$J98,1,$H98,$G98*$H98,Options!$B$8)))","v":{"$error":"#VALUE!"}},{"$f":"IF(AND(OR(Calculations!$E$2=\"Orkney Health Board\",Calculations!$E$2=\"Orkney Islands Local Authority\"),$F98=1),0,IF(AND(OR(Calculations!$E$2=\"Shetland Health Board\",Calculations!$E$2=\"Western Isles Health Board\",Calculations!$E$2=\"Shetland Islands Local Authority\",Calculations!$E$2=\"Eilean Siar Local Authority\"),OR($F98=1,$F98=5)),0,hosp_count(VALUE(LEFT(Options!$B$24,2)),$C98,$E98,$F98,2016,$I98,1,$H98,$G98*$H98, Options!$B$8)))","v":{"$error":"#VALUE!"}},{"$f":"IF(AND(OR(Calculations!$E$2=\"Orkney Health Board\",Calculations!$E$2=\"Orkney Islands Local Authority\"),$F98=1),0,IF(AND(OR(Calculations!$E$2=\"Shetland Health Board\",Calculations!$E$2=\"Western Isles Health Board\",Calculations!$E$2=\"Shetland Islands Local Authority\",Calculations!$E$2=\"Eilean Siar Local Authority\"),OR($F98=1,$F98=5)),0,hosp_count(VALUE(LEFT(Options!$B$24,2)),$C98,$E98,$F98,2016,$I98+$J98,1,$H98,$G98*$H98, Options!$B$8)))","v":{"$error":"#VALUE!"}},{"$f":"IF(AND(OR(Calculations!$E$2=\"Orkney Health Board\",Calculations!$E$2=\"Orkney Islands Local Authority\"),$F98=1),0,IF(AND(OR(Calculations!$E$2=\"Shetland Health Board\",Calculations!$E$2=\"Western Isles Health Board\",Calculations!$E$2=\"Shetland Islands Local Authority\",Calculations!$E$2=\"Eilean Siar Local Authority\"),OR($F98=1,$F98=5)),0,prem_mort(VALUE(LEFT(Options!$B$24,2)),$C98,$E98,$F98,2016,$I98,1,$H98,$G98*$H98,Options!$B$8)))","v":{"$error":"#VALUE!"}},{"$f":"IF(AND(OR(Calculations!$E$2=\"Orkney Health Board\",Calculations!$E$2=\"Orkney Islands Local Authority\"),$F98=1),0,IF(AND(OR(Calculations!$E$2=\"Shetland Health Board\",Calculations!$E$2=\"Western Isles Health Board\",Calculations!$E$2=\"Shetland Islands Local Authority\",Calculations!$E$2=\"Eilean Siar Local Authority\"),OR($F98=1,$F98=5)),0,prem_mort(VALUE(LEFT(Options!$B$24,2)),$C98,$E98,$F98,2016,$I98+$J98,1,$H98,$G98*$H98,Options!$B$8)))","v":{"$error":"#VALUE!"}},{"$error":"#VALUE!"},{"$error":"#VALUE!"},{"$error":"#VALUE!"},{"$error":"#VALUE!"},{"$error":"#VALUE!"},{"$error":"#VALUE!"},{"$error":"#VALUE!"},{"$error":"#VALUE!"},{"$error":"#VALUE!"},{"$error":"#VALUE!"},{"$error":"#VALUE!"},{"$error":"#VALUE!"},{"$error":"#VALUE!"},{"$error":"#VALUE!"},{"$error":"#VALUE!"},{"$error":"#VALUE!"},5000]
[null,"Female 5-9",6.9792794999999996,81.439279999999997,"female",2,{"$f":"HLOOKUP(Calculations!$E$2,'Prevalence Rates'!$C$3:$BC$249,'Prevalence Rates'!$BD99,FALSE)","v":0},{"$f":"HLOOKUP(Calculations!$E$2,'Population 2016'!$C$3:$BC$249,'Population 2016'!BD99,FALSE)","v":0},0,{"$f":"HLOOKUP(Results!E$4,Targeting!$C$3:$F$249,Targeting!$G99,FALSE)","v":0},{"$f":"IF(AND(OR(Calculations!$E$2=\"Orkney Health Board\",Calculations!$E$2=\"Orkney Islands Local Authority\"),$F99=1),0,IF(AND(OR(Calculations!$E$2=\"Shetland Health Board\",Calculations!$E$2=\"Western Isles Health Board\",Calculations!$E$2=\"Shetland Islands Local Authority\",Calculations!$E$2=\"Eilean Siar Local Authority\"),OR($F99=1,$F99=5)),0,new_ci(VALUE(LEFT(Options!$B$24,2)),$C99,$E99,$F99,2016,$I99,1,$H99,$G99*$H99,Options!$B$8)))","v":{"$error":"#VALUE!"}},{"$f":"IF(AND(OR(Calculations!$E$2=\"Orkney Health Board\",Calculations!$E$2=\"Orkney Islands Local Authority\"),$F99=1),0,IF(AND(OR(Calculations!$E$2=\"Shetland Health Board\",Calculations!$E$2=\"Western Isles Health Board\",Calculations!$E$2=\"Shetland Islands Local Authority\",Calculations!$E$2=\"Eilean Siar Local Authority\"),OR($F99=1,$F99=5)),0,new_ci(VALUE(LEFT(Options!$B$24,2)),$C99,$E99,$F99,2016,$I99+$J99,1,$H99,$G99*$H99,Options!$B$8)))","v":{"$error":"#VALUE!"}},{"$f":"IF(AND(OR(Calculations!$E$2=\"Orkney Health Board\",Calculations!$E$2=\"Orkney Islands Local Authority\"),$F99=1),0,IF(AND(OR(Calculations!$E$2=\"Shetland Health Board\",Calculations!$E$2=\"Western Isles Health Board\",Calculations!$E$2=\"Shetland Islands Local Authority\",Calculations!$E$2=\"Eilean Siar Local Authority\"),OR($F99=1,$F99=5)),0,new_yllv2(VALUE(LEFT(Options!$B$24,2)),$C99,$D99,$E99,$F99,2016,$I99,1,$H99,$G99*$H99,Options!$B$8)))","v":{"$error":"#VALUE!"}},{"$f":"IF(AND(OR(Calculations!$E$2=\"Orkney Health Board\",Calculations!$E$2=\"Orkney Islands Local Authority\"),$F99=1),0,IF(AND(OR(Calculations!$E$2=\"Shetland Health Board\",Calculations!$E$2=\"Western Isles Health Board\",Calculations!$E$2=\"Shetland Islands Local Authority\",Calculations!$E$2=\"Eilean Siar Local Authority\"),OR($F99=1,$F99=5)),0,new_yllv2(VALUE(LEFT(Options!$B$24,2)),$C99,$D99,$E99,$F99,2016,$I99+$J99,1,$H99,$G99*$H99,Options!$B$8)))","v":{"$error":"#VALUE!"}},{"$f":"IF(AND(OR(Calculations!$E$2=\"Orkney Health Board\",Calculations!$E$2=\"Orkney Islands Local Authority\"),$F99=1),0,IF(AND(OR(Calculations!$E$2=\"Shetland Health Board\",Calculations!$E$2=\"Western Isles Health Board\",Calculations!$E$2=\"Shetland Islands Local Authority\",Calculations!$E$2=\"Eilean Siar Local Authority\"),OR($F99=1,$F99=5)),0,hosp_count(VALUE(LEFT(Options!$B$24,2)),$C99,$E99,$F99,2016,$I99,1,$H99,$G99*$H99, Options!$B$8)))","v":{"$error":"#VALUE!"}},{"$f":"IF(AND(OR(Calculations!$E$2=\"Orkney Health Board\",Calculations!$E$2=\"Orkney Islands Local Authority\"),$F99=1),0,IF(AND(OR(Calculations!$E$2=\"Shetland Health Board\",Calculations!$E$2=\"Western Isles Health Board\",Calculations!$E$2=\"Shetland Islands Local Authority\",Calculations!$E$2=\"Eilean Siar Local Authority\"),OR($F99=1,$F99=5)),0,hosp_count(VALUE(LEFT(Options!$B$24,2)),$C99,$E99,$F99,2016,$I99+$J99,1,$H99,$G99*$H99, Options!$B$8)))","v":{"$error":"#VALUE!"}},{"$f":"IF(AND(OR(Calculations!$E$2=\"Orkney Health Board\",Calculations!$E$2=\"Orkney Islands Local Authority\"),$F99=1),0,IF(AND(OR(Calculations!$E$2=\"Shetland Health Board\",Calculations!$E$2=\"Western Isles Health Board\",Calculations!$E$2=\"Shetland Islands Local Authority\",Calculations!$E$2=\"Eilean Siar Local Authority\"),OR($F99=1,$F99=5)),0,prem_mort(VALUE(LEFT(Options!$B$24,2)),$C99,$E99,$F99,2016,$I99,1,$H99,$G99*$H99,Options!$B$8)))","v":{"$error":"#VALUE!"}},{"$f":"IF(AND(OR(Calculations!$E$2=\"Orkney Health Board\",Calculations!$E$2=\"Orkney Islands Local Authority\"),$F99=1),0,IF(AND(OR(Calculations!$E$2=\"Shetland Health Board\",Calculations!$E$2=\"Western Isles Health Board\",Calculations!$E$2=\"Shetland Islands Local Authority\",Calculations!$E$2=\"Eilean Siar Local Authority\"),OR($F99=1,$F99=5)),0,prem_mort(VALUE(LEFT(Options!$B$24,2)),$C99,$E99,$F99,2016,$I99+$J99,1,$H99,$G99*$H99,Options!$B$8)))","v":{"$error":"#VALUE!"}},{"$error":"#VALUE!"},{"$error":"#VALUE!"},{"$error":"#VALUE!"},{"$error":"#VALUE!"},{"$error":"#VALUE!"},{"$error":"#VALUE!"},{"$error":"#VALUE!"},{"$error":"#VALUE!"},{"$error":"#VALUE!"},{"$error":"#VALUE!"},{"$error":"#VALUE!"},{"$error":"#VALUE!"},{"$error":"#VALUE!"},{"$error":"#VALUE!"},{"$error":"#VALUE!"},{"$error":"#VALUE!"},5500]
[null,"Female 10-15",12.478312000000001,81.948309999999992,"female",2,{"$f":"HLOOKUP(Calculations!$E$2,'Prevalence Rates'!$C$3:$BC$249,'Prevalence Rates'!$BD100,FALSE)","v":0},{"$f":"HLOOKUP(Calculations!$E$2,'Population 2016'!$C$3:$BC$249,'Population 2016'!BD100,FALSE)","v":0},0,{"$f":"HLOOKUP(Results!E$4,Targeting!$C$3:$F$249,Targeting!$G100,FALSE)","v":0},{"$f":"IF(AND(OR(Calculations!$E$2=\"Orkney Health Board\",Calculations!$E$2=\"Orkney Islands Local Authority\"),$F100=1),0,IF(AND(OR(Calculations!$E$2=\"Shetland Health Board\",Calculations!$E$2=\"Western Isles Health Board\",Calculations!$E$2=\"Shetland Islands Local Authority\",Calculations!$E$2=\"Eilean Siar Local Authority\"),OR($F100=1,$F100=5)),0,new_ci(VALUE(LEFT(Options!$B$24,2)),$C100,$E100,$F100,2016,$I100,1,$H100,$G100*$H100,Options!$B$8)))","v":{"$error":"#VALUE!"}},{"$f":"IF(AND(OR(Calculations!$E$2=\"Orkney Health Board\",Calculations!$E$2=\"Orkney Islands Local Authority\"),$F100=1),0,IF(AND(OR(Calculations!$E$2=\"Shetland Health Board\",Calculations!$E$2=\"Western Isles Health Board\",Calculations!$E$2=\"Shetland Islands Local Authority\",Calculations!$E$2=\"Eilean Siar Local Authority\"),OR($F100=1,$F100=5)),0,new_ci(VALUE(LEFT(Options!$B$24,2)),$C100,$E100,$F100,2016,$I100+$J100,1,$H100,$G100*$H100,Options!$B$8)))","v":{"$error":"#VALUE!"}},{"$f":"IF(AND(OR(Calculations!$E$2=\"Orkney Health Board\",Calculations!$E$2=\"Orkney Islands Local Authority\"),$F100=1),0,IF(AND(OR(Calculations!$E$2=\"Shetland Health Board\",Calculations!$E$2=\"Western Isles Health Board\",Calculations!$E$2=\"Shetland Islands Local Authority\",Calculations!$E$2=\"Eilean Siar Local Authority\"),OR($F100=1,$F100=5)),0,new_yllv2(VALUE(LEFT(Options!$B$24,2)),$C100,$D100,$E100,$F100,2016,$I100,1,$H100,$G100*$H100,Options!$B$8)))","v":{"$error":"#VALUE!"}},{"$f":"IF(AND(OR(Calculations!$E$2=\"Orkney Health Board\",Calculations!$E$2=\"Orkney Islands Local Authority\"),$F100=1),0,IF(AND(OR(Calculations!$E$2=\"Shetland Health Board\",Calculations!$E$2=\"Western Isles Health Board\",Calculations!$E$2=\"Shetland Islands Local Authority\",Calculations!$E$2=\"Eilean Siar Local Authority\"),OR($F100=1,$F100=5)),0,new_yllv2(VALUE(LEFT(Options!$B$24,2)),$C100,$D100,$E100,$F100,2016,$I100+$J100,1,$H100,$G100*$H100,Options!$B$8)))","v":{"$error":"#VALUE!"}},{"$f":"IF(AND(OR(Calculations!$E$2=\"Orkney Health Board\",Calculations!$E$2=\"Orkney Islands Local Authority\"),$F100=1),0,IF(AND(OR(Calculations!$E$2=\"Shetland Health Board\",Calculations!$E$2=\"Western Isles Health Board\",Calculations!$E$2=\"Shetland Islands Local Authority\",Calculations!$E$2=\"Eilean Siar Local Authority\"),OR($F100=1,$F100=5)),0,hosp_count(VALUE(LEFT(Options!$B$24,2)),$C100,$E100,$F100,2016,$I100,1,$H100,$G100*$H100, Options!$B$8)))","v":{"$error":"#VALUE!"}},{"$f":"IF(AND(OR(Calculations!$E$2=\"Orkney Health Board\",Calculations!$E$2=\"Orkney Islands Local Authority\"),$F100=1),0,IF(AND(OR(Calculations!$E$2=\"Shetland Health Board\",Calculations!$E$2=\"Western Isles Health Board\",Calculations!$E$2=\"Shetland Islands Local Authority\",Calculations!$E$2=\"Eilean Siar Local Authority\"),OR($F100=1,$F100=5)),0,hosp_count(VALUE(LEFT(Options!$B$24,2)),$C100,$E100,$F100,2016,$I100+$J100,1,$H100,$G100*$H100, Options!$B$8)))","v":{"$error":"#VALUE!"}},{"$f":"IF(AND(OR(Calculations!$E$2=\"Orkney Health Board\",Calculations!$E$2=\"Orkney Islands Local Authority\"),$F100=1),0,IF(AND(OR(Calculations!$E$2=\"Shetland Health Board\",Calculations!$E$2=\"Western Isles Health Board\",Calculations!$E$2=\"Shetland Islands Local Authority\",Calculations!$E$2=\"Eilean Siar Local Authority\"),OR($F100=1,$F100=5)),0,prem_mort(VALUE(LEFT(Options!$B$24,2)),$C100,$E100,$F100,2016,$I100,1,$H100,$G100*$H100,Options!$B$8)))","v":{"$error":"#VALUE!"}},{"$f":"IF(AND(OR(Calculations!$E$2=\"Orkney Health Board\",Calculations!$E$2=\"Orkney Islands Local Authority\"),$F100=1),0,IF(AND(OR(Calculations!$E$2=\"Shetland Health Board\",Calculations!$E$2=\"Western Isles Health Board\",Calculations!$E$2=\"Shetland Islands Local Authority\",Calculations!$E$2=\"Eilean Siar Local Authority\"),OR($F100=1,$F100=5)),0,prem_mort(VALUE(LEFT(Options!$B$24,2)),$C100,$E100,$F100,2016,$I100+$J100,1,$H100,$G100*$H100,Options!$B$8)))","v":{"$error":"#VALUE!"}},{"$error":"#VALUE!"},{"$error":"#VALUE!"},{"$error":"#VALUE!"},{"$error":"#VALUE!"},{"$error":"#VALUE!"},{"$error":"#VALUE!"},{"$error":"#VALUE!"},{"$error":"#VALUE!"},{"$error":"#VALUE!"},{"$error":"#VALUE!"},{"$error":"#VALUE!"},{"$error":"#VALUE!"},{"$error":"#VALUE!"},{"$error":"#VALUE!"},{"$error":"#VALUE!"},{"$error":"#VALUE!"},6600]
["SIMD Q2","Female 16-19",17.570053000000001,81.100049999999996,"female",2,{"$f":"HLOOKUP(Calculations!$E$2,'Prevalence Rates'!$C$3:$BC$249,'Prevalence Rates'!$BD101,FALSE)","v":0.12368971421116901},{"$f":"HLOOKUP(Calculations!$E$2,'Population 2016'!$C$3:$BC$249,'Population 2016'!BD101,FALSE)","v":23121},0,{"$f":"HLOOKUP(Results!E$4,Targeting!$C$3:$F$249,Targeting!$G101,FALSE)","v":685},{"$f":"IF(AND(OR(Calculations!$E$2=\"Orkney Health Board\",Calculations!$E$2=\"Orkney Islands Local Authority\"),$F101=1),0,IF(AND(OR(Calculations!$E$2=\"Shetland Health Board\",Calculations!$E$2=\"Western Isles Health Board\",Calculations!$E$2=\"Shetland Islands Local Authority\",Calculations!$E$2=\"Eilean Siar Local Authority\"),OR($F101=1,$F101=5)),0,new_ci(VALUE(LEFT(Options!$B$24,2)),$C101,$E101,$F101,2016,$I101,1,$H101,$G101*$H101,Options!$B$8)))","v":5.1474706695999997},{"$f":"IF(AND(OR(Calculations!$E$2=\"Orkney Health Board\",Calculations!$E$2=\"Orkney Islands Local Authority\"),$F101=1),0,IF(AND(OR(Calculations!$E$2=\"Shetland Health Board\",Calculations!$E$2=\"Western Isles Health Board\",Calculations!$E$2=\"Shetland Islands Local Authority\",Calculations!$E$2=\"Eilean Siar Local Authority\"),OR($F101=1,$F101=5)),0,new_ci(VALUE(LEFT(Options!$B$24,2)),$C101,$E101,$F101,2016,$I101+$J101,1,$H101,$G101*$H101,Options!$B$8)))","v":5.1393865051000001},{"$f":"IF(AND(OR(Calculations!$E$2=\"Orkney Health Board\",Calculations!$E$2=\"Orkney Islands Local Authority\"),$F101=1),0,IF(AND(OR(Calculations!$E$2=\"Shetland Health Board\",Calculations!$E$2=\"Western Isles Health Board\",Calculations!$E$2=\"Shetland Islands Local Authority\",Calculations!$E$2=\"Eilean Siar Local Authority\"),OR($F101=1,$F101=5)),0,new_yllv2(VALUE(LEFT(Options!$B$24,2)),$C101,$D101,$E101,$F101,2016,$I101,1,$H101,$G101*$H101,Options!$B$8)))","v":321.87132552769998},{"$f":"IF(AND(OR(Calculations!$E$2=\"Orkney Health Board\",Calculations!$E$2=\"Orkney Islands Local Authority\"),$F101=1),0,IF(AND(OR(Calculations!$E$2=\"Shetland Health Board\",Calculations!$E$2=\"Western Isles Health Board\",Calculations!$E$2=\"Shetland Islands Local Authority\",Calculations!$E$2=\"Eilean Siar Local Authority\"),OR($F101=1,$F101=5)),0,new_yllv2(VALUE(LEFT(Options!$B$24,2)),$C101,$D101,$E101,$F101,2016,$I101+$J101,1,$H101,$G101*$H101,Options!$B$8)))","v":321.36582274569997},{"$f":"IF(AND(OR(Calculations!$E$2=\"Orkney Health Board\",Calculations!$E$2=\"Orkney Islands Local Authority\"),$F101=1),0,IF(AND(OR(Calculations!$E$2=\"Shetland Health Board\",Calculations!$E$2=\"Western Isles Health Board\",Calculations!$E$2=\"Shetland Islands Local Authority\",Calculations!$E$2=\"Eilean Siar Local Authority\"),OR($F101=1,$F101=5)),0,hosp_count(VALUE(LEFT(Options!$B$24,2)),$C101,$E101,$F101,2016,$I101,1,$H101,$G101*$H101, Options!$B$8)))","v":2679.1393826232002},{"$f":"IF(AND(OR(Calculations!$E$2=\"Orkney Health Board\",Calculations!$E$2=\"Orkney Islands Local Authority\"),$F101=1),0,IF(AND(OR(Calculations!$E$2=\"Shetland Health Board\",Calculations!$E$2=\"Western Isles Health Board\",Calculations!$E$2=\"Shetland Islands Local Authority\",Calculations!$E$2=\"Eilean Siar Local Authority\"),OR($F101=1,$F101=5)),0,hosp_count(VALUE(LEFT(Options!$B$24,2)),$C101,$E101,$F101,2016,$I101+$J101,1,$H101,$G101*$H101, Options!$B$8)))","v":2670.3829398235998},{"$f":"IF(AND(OR(Calculations!$E$2=\"Orkney Health Board\",Calculations!$E$2=\"Orkney Islands Local Authority\"),$F101=1),0,IF(AND(OR(Calculations!$E$2=\"Shetland Health Board\",Calculations!$E$2=\"Western Isles Health Board\",Calculations!$E$2=\"Shetland Islands Local Authority\",Calculations!$E$2=\"Eilean Siar Local Authority\"),OR($F101=1,$F101=5)),0,prem_mort(VALUE(LEFT(Options!$B$24,2)),$C101,$E101,$F101,2016,$I101,1,$H101,$G101*$H101,Options!$B$8)))","v":5.1474706695999997},{"$f":"IF(AND(OR(Calculations!$E$2=\"Orkney Health Board\",Calculations!$E$2=\"Orkney Islands Local Authority\"),$F101=1),0,IF(AND(OR(Calculations!$E$2=\"Shetland Health Board\",Calculations!$E$2=\"Western Isles Health Board\",Calculations!$E$2=\"Shetland Islands Local Authority\",Calculations!$E$2=\"Eilean Siar Local Authority\"),OR($F101=1,$F101=5)),0,prem_mort(VALUE(LEFT(Options!$B$24,2)),$C101,$E101,$F101,2016,$I101+$J101,1,$H101,$G101*$H101,Options!$B$8)))","v":5.1393865051000001},22.263183554344533,22.228218957225035,1392.1168008637169,1389.9304647104361,11587.47192,11549.59967053155,22.263183554344533,22.228218957225035,97958.007639115938,97804.163411790156,6125313.9238003539,6115694.0447259191,50984876.447999999,50818238.55033882,97958.007639115938,97804.163411790156,4400]
[null,"Female 20-24",22.077057,81.667060000000006,"female",2,{"$f":"HLOOKUP(Calculations!$E$2,'Prevalence Rates'!$C$3:$BC$249,'Prevalence Rates'!$BD102,FALSE)","v":0.12368971421116901},{"$f":"HLOOKUP(Calculations!$E$2,'Population 2016'!$C$3:$BC$249,'Population 2016'!BD102,FALSE)","v":36899},0,{"$f":"HLOOKUP(Results!E$4,Targeting!$C$3:$F$249,Targeting!$G102,FALSE)","v":1093},{"$f":"IF(AND(OR(Calculations!$E$2=\"Orkney Health Board\",Calculations!$E$2=\"Orkney Islands Local Authority\"),$F102=1),0,IF(AND(OR(Calculations!$E$2=\"Shetland Health Board\",Calculations!$E$2=\"Western Isles Health Board\",Calculations!$E$2=\"Shetland Islands Local Authority\",Calculations!$E$2=\"Eilean Siar Local Authority\"),OR($F102=1,$F102=5)),0,new_ci(VALUE(LEFT(Options!$B$24,2)),$C102,$E102,$F102,2016,$I102,1,$H102,$G102*$H102,Options!$B$8)))","v":12.0520684702},{"$f":"IF(AND(OR(Calculations!$E$2=\"Orkney Health Board\",Calculations!$E$2=\"Orkney Islands Local Authority\"),$F102=1),0,IF(AND(OR(Calculations!$E$2=\"Shetland Health Board\",Calculations!$E$2=\"Western Isles Health Board\",Calculations!$E$2=\"Shetland Islands Local Authority\",Calculations!$E$2=\"Eilean Siar Local Authority\"),OR($F102=1,$F102=5)),0,new_ci(VALUE(LEFT(Options!$B$24,2)),$C102,$E102,$F102,2016,$I102+$J102,1,$H102,$G102*$H102,Options!$B$8)))","v":12.033145579799999},{"$f":"IF(AND(OR(Calculations!$E$2=\"Orkney Health Board\",Calculations!$E$2=\"Orkney Islands Local Authority\"),$F102=1),0,IF(AND(OR(Calculations!$E$2=\"Shetland Health Board\",Calculations!$E$2=\"Western Isles Health Board\",Calculations!$E$2=\"Shetland Islands Local Authority\",Calculations!$E$2=\"Eilean Siar Local Authority\"),OR($F102=1,$F102=5)),0,new_yllv2(VALUE(LEFT(Options!$B$24,2)),$C102,$D102,$E102,$F102,2016,$I102,1,$H102,$G102*$H102,Options!$B$8)))","v":706.13072782519998},{"$f":"IF(AND(OR(Calculations!$E$2=\"Orkney Health Board\",Calculations!$E$2=\"Orkney Islands Local Authority\"),$F102=1),0,IF(AND(OR(Calculations!$E$2=\"Shetland Health Board\",Calculations!$E$2=\"Western Isles Health Board\",Calculations!$E$2=\"Shetland Islands Local Authority\",Calculations!$E$2=\"Eilean Siar Local Authority\"),OR($F102=1,$F102=5)),0,new_yllv2(VALUE(LEFT(Options!$B$24,2)),$C102,$D102,$E102,$F102,2016,$I102+$J102,1,$H102,$G102*$H102,Options!$B$8)))","v":705.02203561989995},{"$f":"IF(AND(OR(Calculations!$E$2=\"Orkney Health Board\",Calculations!$E$2=\"Orkney Islands Local Authority\"),$F102=1),0,IF(AND(OR(Calculations!$E$2=\"Shetland Health Board\",Calculations!$E$2=\"Western Isles Health Board\",Calculations!$E$2=\"Shetland Islands Local Authority\",Calculations!$E$2=\"Eilean Siar Local Authority\"),OR($F102=1,$F102=5)),0,hosp_count(VALUE(LEFT(Options!$B$24,2)),$C102,$E102,$F102,2016,$I102,1,$H102,$G102*$H102, Options!$B$8)))","v":4788.9278407905003},{"$f":"IF(AND(OR(Calculations!$E$2=\"Orkney Health Board\",Calculations!$E$2=\"Orkney Islands Local Authority\"),$F102=1),0,IF(AND(OR(Calculations!$E$2=\"Shetland Health Board\",Calculations!$E$2=\"Western Isles Health Board\",Calculations!$E$2=\"Shetland Islands Local Authority\",Calculations!$E$2=\"Eilean Siar Local Authority\"),OR($F102=1,$F102=5)),0,hosp_count(VALUE(LEFT(Options!$B$24,2)),$C102,$E102,$F102,2016,$I102+$J102,1,$H102,$G102*$H102, Options!$B$8)))","v":4773.2786347632},{"$f":"IF(AND(OR(Calculations!$E$2=\"Orkney Health Board\",Calculations!$E$2=\"Orkney Islands Local Authority\"),$F102=1),0,IF(AND(OR(Calculations!$E$2=\"Shetland Health Board\",Calculations!$E$2=\"Western Isles Health Board\",Calculations!$E$2=\"Shetland Islands Local Authority\",Calculations!$E$2=\"Eilean Siar Local Authority\"),OR($F102=1,$F102=5)),0,prem_mort(VALUE(LEFT(Options!$B$24,2)),$C102,$E102,$F102,2016,$I102,1,$H102,$G102*$H102,Options!$B$8)))","v":12.0520684702},{"$f":"IF(AND(OR(Calculations!$E$2=\"Orkney Health Board\",Calculations!$E$2=\"Orkney Islands Local Authority\"),$F102=1),0,IF(AND(OR(Calculations!$E$2=\"Shetland Health Board\",Calculations!$E$2=\"Western Isles Health Board\",Calculations!$E$2=\"Shetland Islands Local Authority\",Calculations!$E$2=\"Eilean Siar Local Authority\"),OR($F102=1,$F102=5)),0,prem_mort(VALUE(LEFT(Options!$B$24,2)),$C102,$E102,$F102,2016,$I102+$J102,1,$H102,$G102*$H102,Options!$B$8)))","v":12.033145579799999},32.662317326214804,32.611034390633897,1913.6852701298137,1910.680602780292,12978.47595,12936.065028220819,32.662317326214804,32.611034390633897,195973.90395728883,195666.20634380338,11482111.620778883,11464083.616681753,77870855.700000003,77616390.16932492,195973.90395728883,195666.20634380338,6000]
[null,"Female 25-29",26.975186999999998,81.645189999999999,"female",2,{"$f":"HLOOKUP(Calculations!$E$2,'Prevalence Rates'!$C$3:$BC$249,'Prevalence Rates'!$BD103,FALSE)","v":0.12368971421116901},{"$f":"HLOOKUP(Calculations!$E$2,'Population 2016'!$C$3:$BC$249,'Population 2016'!BD103,FALSE)","v":40610},0,{"$f":"HLOOKUP(Results!E$4,Targeting!$C$3:$F$249,Targeting!$G103,FALSE)","v":1203},{"$f":"IF(AND(OR(Calculations!$E$2=\"Orkney Health Board\",Calculations!$E$2=\"Orkney Islands Local Authority\"),$F103=1),0,IF(AND(OR(Calculations!$E$2=\"Shetland Health Board\",Calculations!$E$2=\"Western Isles Health Board\",Calculations!$E$2=\"Shetland Islands Local Authority\",Calculations!$E$2=\"Eilean Siar Local Authority\"),OR($F103=1,$F103=5)),0,new_ci(VALUE(LEFT(Options!$B$24,2)),$C103,$E103,$F103,2016,$I103,1,$H103,$G103*$H103,Options!$B$8)))","v":20.117459972799999},{"$f":"IF(AND(OR(Calculations!$E$2=\"Orkney Health Board\",Calculations!$E$2=\"Orkney Islands Local Authority\"),$F103=1),0,IF(AND(OR(Calculations!$E$2=\"Shetland Health Board\",Calculations!$E$2=\"Western Isles Health Board\",Calculations!$E$2=\"Shetland Islands Local Authority\",Calculations!$E$2=\"Eilean Siar Local Authority\"),OR($F103=1,$F103=5)),0,new_ci(VALUE(LEFT(Options!$B$24,2)),$C103,$E103,$F103,2016,$I103+$J103,1,$H103,$G103*$H103,Options!$B$8)))","v":20.085875568700001},{"$f":"IF(AND(OR(Calculations!$E$2=\"Orkney Health Board\",Calculations!$E$2=\"Orkney Islands Local Authority\"),$F103=1),0,IF(AND(OR(Calculations!$E$2=\"Shetland Health Board\",Calculations!$E$2=\"Western Isles Health Board\",Calculations!$E$2=\"Shetland Islands Local Authority\",Calculations!$E$2=\"Eilean Siar Local Authority\"),OR($F103=1,$F103=5)),0,new_yllv2(VALUE(LEFT(Options!$B$24,2)),$C103,$D103,$E103,$F103,2016,$I103,1,$H103,$G103*$H103,Options!$B$8)))","v":1079.7041370925999},{"$f":"IF(AND(OR(Calculations!$E$2=\"Orkney Health Board\",Calculations!$E$2=\"Orkney Islands Local Authority\"),$F103=1),0,IF(AND(OR(Calculations!$E$2=\"Shetland Health Board\",Calculations!$E$2=\"Western Isles Health Board\",Calculations!$E$2=\"Shetland Islands Local Authority\",Calculations!$E$2=\"Eilean Siar Local Authority\"),OR($F103=1,$F103=5)),0,new_yllv2(VALUE(LEFT(Options!$B$24,2)),$C103,$D103,$E103,$F103,2016,$I103+$J103,1,$H103,$G103*$H103,Options!$B$8)))","v":1078.0090020298001},{"$f":"IF(AND(OR(Calculations!$E$2=\"Orkney Health Board\",Calculations!$E$2=\"Orkney Islands Local Authority\"),$F103=1),0,IF(AND(OR(Calculations!$E$2=\"Shetland Health Board\",Calculations!$E$2=\"Western Isles Health Board\",Calculations!$E$2=\"Shetland Islands Local Authority\",Calculations!$E$2=\"Eilean Siar Local Authority\"),OR($F103=1,$F103=5)),0,hosp_count(VALUE(LEFT(Options!$B$24,2)),$C103,$E103,$F103,2016,$I103,1,$H103,$G103*$H103, Options!$B$8)))","v":5961.6213822700001},{"$f":"IF(AND(OR(Calculations!$E$2=\"Orkney Health Board\",Calculations!$E$2=\"Orkney Islands Local Authority\"),$F103=1),0,IF(AND(OR(Calculations!$E$2=\"Shetland Health Board\",Calculations!$E$2=\"Western Isles Health Board\",Calculations!$E$2=\"Shetland Islands Local Authority\",Calculations!$E$2=\"Eilean Siar Local Authority\"),OR($F103=1,$F103=5)),0,hosp_count(VALUE(LEFT(Options!$B$24,2)),$C103,$E103,$F103,2016,$I103+$J103,1,$H103,$G103*$H103, Options!$B$8)))","v":5942.1388466506996},{"$f":"IF(AND(OR(Calculations!$E$2=\"Orkney Health Board\",Calculations!$E$2=\"Orkney Islands Local Authority\"),$F103=1),0,IF(AND(OR(Calculations!$E$2=\"Shetland Health Board\",Calculations!$E$2=\"Western Isles Health Board\",Calculations!$E$2=\"Shetland Islands Local Authority\",Calculations!$E$2=\"Eilean Siar Local Authority\"),OR($F103=1,$F103=5)),0,prem_mort(VALUE(LEFT(Options!$B$24,2)),$C103,$E103,$F103,2016,$I103,1,$H103,$G103*$H103,Options!$B$8)))","v":20.117459972799999},{"$f":"IF(AND(OR(Calculations!$E$2=\"Orkney Health Board\",Calculations!$E$2=\"Orkney Islands Local Authority\"),$F103=1),0,IF(AND(OR(Calculations!$E$2=\"Shetland Health Board\",Calculations!$E$2=\"Western Isles Health Board\",Calculations!$E$2=\"Shetland Islands Local Authority\",Calculations!$E$2=\"Eilean Siar Local Authority\"),OR($F103=1,$F103=5)),0,prem_mort(VALUE(LEFT(Options!$B$24,2)),$C103,$E103,$F103,2016,$I103+$J103,1,$H103,$G103*$H103,Options!$B$8)))","v":20.085875568700001},49.538192496429453,49.460417554050728,2658.7149398980541,2654.5407585072644,14680.180700000001,14632.205975500368,49.538192496429453,49.460417554050728,297229.1549785767,296762.50532430439,15952289.639388325,15927244.551043587,88081084.200000003,87793235.853002205,297229.1549785767,296762.50532430439,6000]
[null,"Female 30-34",31.999904999999998,81.799899999999994,"female",2,{"$f":"HLOOKUP(Calculations!$E$2,'Prevalence Rates'!$C$3:$BC$249,'Prevalence Rates'!$BD104,FALSE)","v":0.12368971421116901},{"$f":"HLOOKUP(Calculations!$E$2,'Population 2016'!$C$3:$BC$249,'Population 2016'!BD104,FALSE)","v":38102},0,{"$f":"HLOOKUP(Results!E$4,Targeting!$C$3:$F$249,Targeting!$G104,FALSE)","v":1128},{"$f":"IF(AND(OR(Calculations!$E$2=\"Orkney Health Board\",Calculations!$E$2=\"Orkney Islands Local Authority\"),$F104=1),0,IF(AND(OR(Calculations!$E$2=\"Shetland Health Board\",Calculations!$E$2=\"Western Isles Health Board\",Calculations!$E$2=\"Shetland Islands Local Authority\",Calculations!$E$2=\"Eilean Siar Local Authority\"),OR($F104=1,$F104=5)),0,new_ci(VALUE(LEFT(Options!$B$24,2)),$C104,$E104,$F104,2016,$I104,1,$H104,$G104*$H104,Options!$B$8)))","v":28.935844297700001},{"$f":"IF(AND(OR(Calculations!$E$2=\"Orkney Health Board\",Calculations!$E$2=\"Orkney Islands Local Authority\"),$F104=1),0,IF(AND(OR(Calculations!$E$2=\"Shetland Health Board\",Calculations!$E$2=\"Western Isles Health Board\",Calculations!$E$2=\"Shetland Islands Local Authority\",Calculations!$E$2=\"Eilean Siar Local Authority\"),OR($F104=1,$F104=5)),0,new_ci(VALUE(LEFT(Options!$B$24,2)),$C104,$E104,$F104,2016,$I104+$J104,1,$H104,$G104*$H104,Options!$B$8)))","v":28.890452336900001},{"$f":"IF(AND(OR(Calculations!$E$2=\"Orkney Health Board\",Calculations!$E$2=\"Orkney Islands Local Authority\"),$F104=1),0,IF(AND(OR(Calculations!$E$2=\"Shetland Health Board\",Calculations!$E$2=\"Western Isles Health Board\",Calculations!$E$2=\"Shetland Islands Local Authority\",Calculations!$E$2=\"Eilean Siar Local Authority\"),OR($F104=1,$F104=5)),0,new_yllv2(VALUE(LEFT(Options!$B$24,2)),$C104,$D104,$E104,$F104,2016,$I104,1,$H104,$G104*$H104,Options!$B$8)))","v":1412.0690570485001},{"$f":"IF(AND(OR(Calculations!$E$2=\"Orkney Health Board\",Calculations!$E$2=\"Orkney Islands Local Authority\"),$F104=1),0,IF(AND(OR(Calculations!$E$2=\"Shetland Health Board\",Calculations!$E$2=\"Western Isles Health Board\",Calculations!$E$2=\"Shetland Islands Local Authority\",Calculations!$E$2=\"Eilean Siar Local Authority\"),OR($F104=1,$F104=5)),0,new_yllv2(VALUE(LEFT(Options!$B$24,2)),$C104,$D104,$E104,$F104,2016,$I104+$J104,1,$H104,$G104*$H104,Options!$B$8)))","v":1409.8539295885},{"$f":"IF(AND(OR(Calculations!$E$2=\"Orkney Health Board\",Calculations!$E$2=\"Orkney Islands Local Authority\"),$F104=1),0,IF(AND(OR(Calculations!$E$2=\"Shetland Health Board\",Calculations!$E$2=\"Western Isles Health Board\",Calculations!$E$2=\"Shetland Islands Local Authority\",Calculations!$E$2=\"Eilean Siar Local Authority\"),OR($F104=1,$F104=5)),0,hosp_count(VALUE(LEFT(Options!$B$24,2)),$C104,$E104,$F104,2016,$I104,1,$H104,$G104*$H104, Options!$B$8)))","v":6347.0181481669997},{"$f":"IF(AND(OR(Calculations!$E$2=\"Orkney Health Board\",Calculations!$E$2=\"Orkney Islands Local Authority\"),$F104=1),0,IF(AND(OR(Calculations!$E$2=\"Shetland Health Board\",Calculations!$E$2=\"Western Isles Health Board\",Calculations!$E$2=\"Shetland Islands Local Authority\",Calculations!$E$2=\"Eilean Siar Local Authority\"),OR($F104=1,$F104=5)),0,hosp_count(VALUE(LEFT(Options!$B$24,2)),$C104,$E104,$F104,2016,$I104+$J104,1,$H104,$G104*$H104, Options!$B$8)))","v":6326.2890925169004},{"$f":"IF(AND(OR(Calculations!$E$2=\"Orkney Health Board\",Calculations!$E$2=\"Orkney Islands Local Authority\"),$F104=1),0,IF(AND(OR(Calculations!$E$2=\"Shetland Health Board\",Calculations!$E$2=\"Western Isles Health Board\",Calculations!$E$2=\"Shetland Islands Local Authority\",Calculations!$E$2=\"Eilean Siar Local Authority\"),OR($F104=1,$F104=5)),0,prem_mort(VALUE(LEFT(Options!$B$24,2)),$C104,$E104,$F104,2016,$I104,1,$H104,$G104*$H104,Options!$B$8)))","v":28.935844297700001},{"$f":"IF(AND(OR(Calculations!$E$2=\"Orkney Health Board\",Calculations!$E$2=\"Orkney Islands Local Authority\"),$F104=1),0,IF(AND(OR(Calculations!$E$2=\"Shetland Health Board\",Calculations!$E$2=\"Western Isles Health Board\",Calculations!$E$2=\"Shetland Islands Local Authority\",Calculations!$E$2=\"Eilean Siar Local Authority\"),OR($F104=1,$F104=5)),0,prem_mort(VALUE(LEFT(Options!$B$24,2)),$C104,$E104,$F104,2016,$I104+$J104,1,$H104,$G104*$H104,Options!$B$8)))","v":28.890452336900001},75.9431113791927,75.823978628156013,3706.023455588946,3700.2097779342289,16657.965850000001,16603.561735648786,75.9431113791927,75.823978628156013,493630.22396475257,492855.86108301411,24089152.461328149,24051363.556572489,108276778.02500001,107923151.28171711,493630.22396475257,492855.86108301411,6500]
[null,"Female 35-39",36.918118,81.898120000000006,"female",2,{"$f":"HLOOKUP(Calculations!$E$2,'Prevalence Rates'!$C$3:$BC$249,'Prevalence Rates'!$BD105,FALSE)","v":0.12368971421116901},{"$f":"HLOOKUP(Calculations!$E$2,'Population 2016'!$C$3:$BC$249,'Population 2016'!BD105,FALSE)","v":33014},0,{"$f":"HLOOKUP(Results!E$4,Targeting!$C$3:$F$249,Targeting!$G105,FALSE)","v":978},{"$f":"IF(AND(OR(Calculations!$E$2=\"Orkney Health Board\",Calculations!$E$2=\"Orkney Islands Local Authority\"),$F105=1),0,IF(AND(OR(Calculations!$E$2=\"Shetland Health Board\",Calculations!$E$2=\"Western Isles Health Board\",Calculations!$E$2=\"Shetland Islands Local Authority\",Calculations!$E$2=\"Eilean Siar Local Authority\"),OR($F105=1,$F105=5)),0,new_ci(VALUE(LEFT(Options!$B$24,2)),$C105,$E105,$F105,2016,$I105,1,$H105,$G105*$H105,Options!$B$8)))","v":38.086577020500002},{"$f":"IF(AND(OR(Calculations!$E$2=\"Orkney Health Board\",Calculations!$E$2=\"Orkney Islands Local Authority\"),$F105=1),0,IF(AND(OR(Calculations!$E$2=\"Shetland Health Board\",Calculations!$E$2=\"Western Isles Health Board\",Calculations!$E$2=\"Shetland Islands Local Authority\",Calculations!$E$2=\"Eilean Siar Local Authority\"),OR($F105=1,$F105=5)),0,new_ci(VALUE(LEFT(Options!$B$24,2)),$C105,$E105,$F105,2016,$I105+$J105,1,$H105,$G105*$H105,Options!$B$8)))","v":38.026809288899997},{"$f":"IF(AND(OR(Calculations!$E$2=\"Orkney Health Board\",Calculations!$E$2=\"Orkney Islands Local Authority\"),$F105=1),0,IF(AND(OR(Calculations!$E$2=\"Shetland Health Board\",Calculations!$E$2=\"Western Isles Health Board\",Calculations!$E$2=\"Shetland Islands Local Authority\",Calculations!$E$2=\"Eilean Siar Local Authority\"),OR($F105=1,$F105=5)),0,new_yllv2(VALUE(LEFT(Options!$B$24,2)),$C105,$D105,$E105,$F105,2016,$I105,1,$H105,$G105*$H105,Options!$B$8)))","v":1675.0477335347},{"$f":"IF(AND(OR(Calculations!$E$2=\"Orkney Health Board\",Calculations!$E$2=\"Orkney Islands Local Authority\"),$F105=1),0,IF(AND(OR(Calculations!$E$2=\"Shetland Health Board\",Calculations!$E$2=\"Western Isles Health Board\",Calculations!$E$2=\"Shetland Islands Local Authority\",Calculations!$E$2=\"Eilean Siar Local Authority\"),OR($F105=1,$F105=5)),0,new_yllv2(VALUE(LEFT(Options!$B$24,2)),$C105,$D105,$E105,$F105,2016,$I105+$J105,1,$H105,$G105*$H105,Options!$B$8)))","v":1672.4191485793999},{"$f":"IF(AND(OR(Calculations!$E$2=\"Orkney Health Board\",Calculations!$E$2=\"Orkney Islands Local Authority\"),$F105=1),0,IF(AND(OR(Calculations!$E$2=\"Shetland Health Board\",Calculations!$E$2=\"Western Isles Health Board\",Calculations!$E$2=\"Shetland Islands Local Authority\",Calculations!$E$2=\"Eilean Siar Local Authority\"),OR($F105=1,$F105=5)),0,hosp_count(VALUE(LEFT(Options!$B$24,2)),$C105,$E105,$F105,2016,$I105,1,$H105,$G105*$H105, Options!$B$8)))","v":6223.6793335352004},{"$f":"IF(AND(OR(Calculations!$E$2=\"Orkney Health Board\",Calculations!$E$2=\"Orkney Islands Local Authority\"),$F105=1),0,IF(AND(OR(Calculations!$E$2=\"Shetland Health Board\",Calculations!$E$2=\"Western Isles Health Board\",Calculations!$E$2=\"Shetland Islands Local Authority\",Calculations!$E$2=\"Eilean Siar Local Authority\"),OR($F105=1,$F105=5)),0,hosp_count(VALUE(LEFT(Options!$B$24,2)),$C105,$E105,$F105,2016,$I105+$J105,1,$H105,$G105*$H105, Options!$B$8)))","v":6203.3400164635004},{"$f":"IF(AND(OR(Calculations!$E$2=\"Orkney Health Board\",Calculations!$E$2=\"Orkney Islands Local Authority\"),$F105=1),0,IF(AND(OR(Calculations!$E$2=\"Shetland Health Board\",Calculations!$E$2=\"Western Isles Health Board\",Calculations!$E$2=\"Shetland Islands Local Authority\",Calculations!$E$2=\"Eilean Siar Local Authority\"),OR($F105=1,$F105=5)),0,prem_mort(VALUE(LEFT(Options!$B$24,2)),$C105,$E105,$F105,2016,$I105,1,$H105,$G105*$H105,Options!$B$8)))","v":38.086577020500002},{"$f":"IF(AND(OR(Calculations!$E$2=\"Orkney Health Board\",Calculations!$E$2=\"Orkney Islands Local Authority\"),$F105=1),0,IF(AND(OR(Calculations!$E$2=\"Shetland Health Board\",Calculations!$E$2=\"Western Isles Health Board\",Calculations!$E$2=\"Shetland Islands Local Authority\",Calculations!$E$2=\"Eilean Siar Local Authority\"),OR($F105=1,$F105=5)),0,prem_mort(VALUE(LEFT(Options!$B$24,2)),$C105,$E105,$F105,2016,$I105+$J105,1,$H105,$G105*$H105,Options!$B$8)))","v":38.026809288899997},115.36492706276125,115.18388952838188,5073.7497229499604,5065.7876918258917,18851.63668,18790.028522637367,115.36492706276125,115.18388952838188,807554.48943932878,806287.22669867321,35516248.060649723,35460513.842781238,131961456.75999999,131530199.65846157,807554.48943932878,806287.22669867321,7000]
[null,"Female 40-44",42.077438000000001,82.30744,"female",2,{"$f":"HLOOKUP(Calculations!$E$2,'Prevalence Rates'!$C$3:$BC$249,'Prevalence Rates'!$BD106,FALSE)","v":0.12368971421116901},{"$f":"HLOOKUP(Calculations!$E$2,'Population 2016'!$C$3:$BC$249,'Population 2016'!BD106,FALSE)","v":33442},0,{"$f":"HLOOKUP(Results!E$4,Targeting!$C$3:$F$249,Targeting!$G106,FALSE)","v":990},{"$f":"IF(AND(OR(Calculations!$E$2=\"Orkney Health Board\",Calculations!$E$2=\"Orkney Islands Local Authority\"),$F106=1),0,IF(AND(OR(Calculations!$E$2=\"Shetland Health Board\",Calculations!$E$2=\"Western Isles Health Board\",Calculations!$E$2=\"Shetland Islands Local Authority\",Calculations!$E$2=\"Eilean Siar Local Authority\"),OR($F106=1,$F106=5)),0,new_ci(VALUE(LEFT(Options!$B$24,2)),$C106,$E106,$F106,2016,$I106,1,$H106,$G106*$H106,Options!$B$8)))","v":59.814254740800003},{"$f":"IF(AND(OR(Calculations!$E$2=\"Orkney Health Board\",Calculations!$E$2=\"Orkney Islands Local Authority\"),$F106=1),0,IF(AND(OR(Calculations!$E$2=\"Shetland Health Board\",Calculations!$E$2=\"Western Isles Health Board\",Calculations!$E$2=\"Shetland Islands Local Authority\",Calculations!$E$2=\"Eilean Siar Local Authority\"),OR($F106=1,$F106=5)),0,new_ci(VALUE(LEFT(Options!$B$24,2)),$C106,$E106,$F106,2016,$I106+$J106,1,$H106,$G106*$H106,Options!$B$8)))","v":59.720499562800001},{"$f":"IF(AND(OR(Calculations!$E$2=\"Orkney Health Board\",Calculations!$E$2=\"Orkney Islands Local Authority\"),$F106=1),0,IF(AND(OR(Calculations!$E$2=\"Shetland Health Board\",Calculations!$E$2=\"Western Isles Health Board\",Calculations!$E$2=\"Shetland Islands Local Authority\",Calculations!$E$2=\"Eilean Siar Local Authority\"),OR($F106=1,$F106=5)),0,new_yllv2(VALUE(LEFT(Options!$B$24,2)),$C106,$D106,$E106,$F106,2016,$I106,1,$H106,$G106*$H106,Options!$B$8)))","v":2346.5133331101001},{"$f":"IF(AND(OR(Calculations!$E$2=\"Orkney Health Board\",Calculations!$E$2=\"Orkney Islands Local Authority\"),$F106=1),0,IF(AND(OR(Calculations!$E$2=\"Shetland Health Board\",Calculations!$E$2=\"Western Isles Health Board\",Calculations!$E$2=\"Shetland Islands Local Authority\",Calculations!$E$2=\"Eilean Siar Local Authority\"),OR($F106=1,$F106=5)),0,new_yllv2(VALUE(LEFT(Options!$B$24,2)),$C106,$D106,$E106,$F106,2016,$I106+$J106,1,$H106,$G106*$H106,Options!$B$8)))","v":2342.8353172896},{"$f":"IF(AND(OR(Calculations!$E$2=\"Orkney Health Board\",Calculations!$E$2=\"Orkney Islands Local Authority\"),$F106=1),0,IF(AND(OR(Calculations!$E$2=\"Shetland Health Board\",Calculations!$E$2=\"Western Isles Health Board\",Calculations!$E$2=\"Shetland Islands Local Authority\",Calculations!$E$2=\"Eilean Siar Local Authority\"),OR($F106=1,$F106=5)),0,hosp_count(VALUE(LEFT(Options!$B$24,2)),$C106,$E106,$F106,2016,$I106,1,$H106,$G106*$H106, Options!$B$8)))","v":7177.9805397336004},{"$f":"IF(AND(OR(Calculations!$E$2=\"Orkney Health Board\",Calculations!$E$2=\"Orkney Islands Local Authority\"),$F106=1),0,IF(AND(OR(Calculations!$E$2=\"Shetland Health Board\",Calculations!$E$2=\"Western Isles Health Board\",Calculations!$E$2=\"Shetland Islands Local Authority\",Calculations!$E$2=\"Eilean Siar Local Authority\"),OR($F106=1,$F106=5)),0,hosp_count(VALUE(LEFT(Options!$B$24,2)),$C106,$E106,$F106,2016,$I106+$J106,1,$H106,$G106*$H106, Options!$B$8)))","v":7154.5385928223004},{"$f":"IF(AND(OR(Calculations!$E$2=\"Orkney Health Board\",Calculations!$E$2=\"Orkney Islands Local Authority\"),$F106=1),0,IF(AND(OR(Calculations!$E$2=\"Shetland Health Board\",Calculations!$E$2=\"Western Isles Health Board\",Calculations!$E$2=\"Shetland Islands Local Authority\",Calculations!$E$2=\"Eilean Siar Local Authority\"),OR($F106=1,$F106=5)),0,prem_mort(VALUE(LEFT(Options!$B$24,2)),$C106,$E106,$F106,2016,$I106,1,$H106,$G106*$H106,Options!$B$8)))","v":59.814254740800003},{"$f":"IF(AND(OR(Calculations!$E$2=\"Orkney Health Board\",Calculations!$E$2=\"Orkney Islands Local Authority\"),$F106=1),0,IF(AND(OR(Calculations!$E$2=\"Shetland Health Board\",Calculations!$E$2=\"Western Isles Health Board\",Calculations!$E$2=\"Shetland Islands Local Authority\",Calculations!$E$2=\"Eilean Siar Local Authority\"),OR($F106=1,$F106=5)),0,prem_mort(VALUE(LEFT(Options!$B$24,2)),$C106,$E106,$F106,2016,$I106+$J106,1,$H106,$G106*$H106,Options!$B$8)))","v":59.720499562800001},178.85968166018779,178.57933007236412,7016.6656692485494,7005.667475897375,21463.969080000003,21393.871756540579,178.85968166018779,178.57933007236412,1252017.7716213146,1250055.3105065487,49116659.684739843,49039672.331281625,150247783.56000003,149757102.29578406,1252017.7716213146,1250055.3105065487,7000]
[null,"Female 45-49",47.025772000000003,82.585769999999997,"female",2,{"$f":"HLOOKUP(Calculations!$E$2,'Prevalence Rates'!$C$3:$BC$249,'Prevalence Rates'!$BD107,FALSE)","v":0.12368971421116901},{"$f":"HLOOKUP(Calculations!$E$2,'Population 2016'!$C$3:$BC$249,'Population 2016'!BD107,FALSE)","v":39170},0,{"$f":"HLOOKUP(Results!E$4,Targeting!$C$3:$F$249,Targeting!$G107,FALSE)","v":1160},{"$f":"IF(AND(OR(Calculations!$E$2=\"Orkney Health Board\",Calculations!$E$2=\"Orkney Islands Local Authority\"),$F107=1),0,IF(AND(OR(Calculations!$E$2=\"Shetland Health Board\",Calculations!$E$2=\"Western Isles Health Board\",Calculations!$E$2=\"Shetland Islands Local Authority\",Calculations!$E$2=\"Eilean Siar Local Authority\"),OR($F107=1,$F107=5)),0,new_ci(VALUE(LEFT(Options!$B$24,2)),$C107,$E107,$F107,2016,$I107,1,$H107,$G107*$H107,Options!$B$8)))","v":106.6706956731},{"$f":"IF(AND(OR(Calculations!$E$2=\"Orkney Health Board\",Calculations!$E$2=\"Orkney Islands Local Authority\"),$F107=1),0,IF(AND(OR(Calculations!$E$2=\"Shetland Health Board\",Calculations!$E$2=\"Western Isles Health Board\",Calculations!$E$2=\"Shetland Islands Local Authority\",Calculations!$E$2=\"Eilean Siar Local Authority\"),OR($F107=1,$F107=5)),0,new_ci(VALUE(LEFT(Options!$B$24,2)),$C107,$E107,$F107,2016,$I107+$J107,1,$H107,$G107*$H107,Options!$B$8)))","v":106.50355080910001},{"$f":"IF(AND(OR(Calculations!$E$2=\"Orkney Health Board\",Calculations!$E$2=\"Orkney Islands Local Authority\"),$F107=1),0,IF(AND(OR(Calculations!$E$2=\"Shetland Health Board\",Calculations!$E$2=\"Western Isles Health Board\",Calculations!$E$2=\"Shetland Islands Local Authority\",Calculations!$E$2=\"Eilean Siar Local Authority\"),OR($F107=1,$F107=5)),0,new_yllv2(VALUE(LEFT(Options!$B$24,2)),$C107,$D107,$E107,$F107,2016,$I107,1,$H107,$G107*$H107,Options!$B$8)))","v":3686.5390291209001},{"$f":"IF(AND(OR(Calculations!$E$2=\"Orkney Health Board\",Calculations!$E$2=\"Orkney Islands Local Authority\"),$F107=1),0,IF(AND(OR(Calculations!$E$2=\"Shetland Health Board\",Calculations!$E$2=\"Western Isles Health Board\",Calculations!$E$2=\"Shetland Islands Local Authority\",Calculations!$E$2=\"Eilean Siar Local Authority\"),OR($F107=1,$F107=5)),0,new_yllv2(VALUE(LEFT(Options!$B$24,2)),$C107,$D107,$E107,$F107,2016,$I107+$J107,1,$H107,$G107*$H107,Options!$B$8)))","v":3680.7625029554001},{"$f":"IF(AND(OR(Calculations!$E$2=\"Orkney Health Board\",Calculations!$E$2=\"Orkney Islands Local Authority\"),$F107=1),0,IF(AND(OR(Calculations!$E$2=\"Shetland Health Board\",Calculations!$E$2=\"Western Isles Health Board\",Calculations!$E$2=\"Shetland Islands Local Authority\",Calculations!$E$2=\"Eilean Siar Local Authority\"),OR($F107=1,$F107=5)),0,hosp_count(VALUE(LEFT(Options!$B$24,2)),$C107,$E107,$F107,2016,$I107,1,$H107,$G107*$H107, Options!$B$8)))","v":9521.8151117819998},{"$f":"IF(AND(OR(Calculations!$E$2=\"Orkney Health Board\",Calculations!$E$2=\"Orkney Islands Local Authority\"),$F107=1),0,IF(AND(OR(Calculations!$E$2=\"Shetland Health Board\",Calculations!$E$2=\"Western Isles Health Board\",Calculations!$E$2=\"Shetland Islands Local Authority\",Calculations!$E$2=\"Eilean Siar Local Authority\"),OR($F107=1,$F107=5)),0,hosp_count(VALUE(LEFT(Options!$B$24,2)),$C107,$E107,$F107,2016,$I107+$J107,1,$H107,$G107*$H107, Options!$B$8)))","v":9490.7070743690001},{"$f":"IF(AND(OR(Calculations!$E$2=\"Orkney Health Board\",Calculations!$E$2=\"Orkney Islands Local Authority\"),$F107=1),0,IF(AND(OR(Calculations!$E$2=\"Shetland Health Board\",Calculations!$E$2=\"Western Isles Health Board\",Calculations!$E$2=\"Shetland Islands Local Authority\",Calculations!$E$2=\"Eilean Siar Local Authority\"),OR($F107=1,$F107=5)),0,prem_mort(VALUE(LEFT(Options!$B$24,2)),$C107,$E107,$F107,2016,$I107,1,$H107,$G107*$H107,Options!$B$8)))","v":106.6706956731},{"$f":"IF(AND(OR(Calculations!$E$2=\"Orkney Health Board\",Calculations!$E$2=\"Orkney Islands Local Authority\"),$F107=1),0,IF(AND(OR(Calculations!$E$2=\"Shetland Health Board\",Calculations!$E$2=\"Western Isles Health Board\",Calculations!$E$2=\"Shetland Islands Local Authority\",Calculations!$E$2=\"Eilean Siar Local Authority\"),OR($F107=1,$F107=5)),0,prem_mort(VALUE(LEFT(Options!$B$24,2)),$C107,$E107,$F107,2016,$I107+$J107,1,$H107,$G107*$H107,Options!$B$8)))","v":106.50355080910001},272.3275355453153,271.90081901736028,9411.6390837909112,9396.8917614383463,24308.94846,24229.530442606589,272.3275355453153,271.90081901736028,1906292.7488172071,1903305.733121522,65881473.586536378,65778242.330068424,170162639.22,169606713.09824613,1906292.7488172071,1903305.733121522,7000]
[null,"Female 50-54",51.990825999999998,82.980829999999997,"female",2,{"$f":"HLOOKUP(Calculations!$E$2,'Prevalence Rates'!$C$3:$BC$249,'Prevalence Rates'!$BD108,FALSE)","v":0.12368971421116901},{"$f":"HLOOKUP(Calculations!$E$2,'Population 2016'!$C$3:$BC$249,'Population 2016'!BD108,FALSE)","v":40518},0,{"$f":"HLOOKUP(Results!E$4,Targeting!$C$3:$F$249,Targeting!$G108,FALSE)","v":1200},{"$f":"IF(AND(OR(Calculations!$E$2=\"Orkney Health Board\",Calculations!$E$2=\"Orkney Islands Local Authority\"),$F108=1),0,IF(AND(OR(Calculations!$E$2=\"Shetland Health Board\",Calculations!$E$2=\"Western Isles Health Board\",Calculations!$E$2=\"Shetland Islands Local Authority\",Calculations!$E$2=\"Eilean Siar Local Authority\"),OR($F108=1,$F108=5)),0,new_ci(VALUE(LEFT(Options!$B$24,2)),$C108,$E108,$F108,2016,$I108,1,$H108,$G108*$H108,Options!$B$8)))","v":168.20057141090001},{"$f":"IF(AND(OR(Calculations!$E$2=\"Orkney Health Board\",Calculations!$E$2=\"Orkney Islands Local Authority\"),$F108=1),0,IF(AND(OR(Calculations!$E$2=\"Shetland Health Board\",Calculations!$E$2=\"Western Isles Health Board\",Calculations!$E$2=\"Shetland Islands Local Authority\",Calculations!$E$2=\"Eilean Siar Local Authority\"),OR($F108=1,$F108=5)),0,new_ci(VALUE(LEFT(Options!$B$24,2)),$C108,$E108,$F108,2016,$I108+$J108,1,$H108,$G108*$H108,Options!$B$8)))","v":167.93727785089999},{"$f":"IF(AND(OR(Calculations!$E$2=\"Orkney Health Board\",Calculations!$E$2=\"Orkney Islands Local Authority\"),$F108=1),0,IF(AND(OR(Calculations!$E$2=\"Shetland Health Board\",Calculations!$E$2=\"Western Isles Health Board\",Calculations!$E$2=\"Shetland Islands Local Authority\",Calculations!$E$2=\"Eilean Siar Local Authority\"),OR($F108=1,$F108=5)),0,new_yllv2(VALUE(LEFT(Options!$B$24,2)),$C108,$D108,$E108,$F108,2016,$I108,1,$H108,$G108*$H108,Options!$B$8)))","v":5044.3358094151999},{"$f":"IF(AND(OR(Calculations!$E$2=\"Orkney Health Board\",Calculations!$E$2=\"Orkney Islands Local Authority\"),$F108=1),0,IF(AND(OR(Calculations!$E$2=\"Shetland Health Board\",Calculations!$E$2=\"Western Isles Health Board\",Calculations!$E$2=\"Shetland Islands Local Authority\",Calculations!$E$2=\"Eilean Siar Local Authority\"),OR($F108=1,$F108=5)),0,new_yllv2(VALUE(LEFT(Options!$B$24,2)),$C108,$D108,$E108,$F108,2016,$I108+$J108,1,$H108,$G108*$H108,Options!$B$8)))","v":5036.4396344976003},{"$f":"IF(AND(OR(Calculations!$E$2=\"Orkney Health Board\",Calculations!$E$2=\"Orkney Islands Local Authority\"),$F108=1),0,IF(AND(OR(Calculations!$E$2=\"Shetland Health Board\",Calculations!$E$2=\"Western Isles Health Board\",Calculations!$E$2=\"Shetland Islands Local Authority\",Calculations!$E$2=\"Eilean Siar Local Authority\"),OR($F108=1,$F108=5)),0,hosp_count(VALUE(LEFT(Options!$B$24,2)),$C108,$E108,$F108,2016,$I108,1,$H108,$G108*$H108, Options!$B$8)))","v":11159.7113811168},{"$f":"IF(AND(OR(Calculations!$E$2=\"Orkney Health Board\",Calculations!$E$2=\"Orkney Islands Local Authority\"),$F108=1),0,IF(AND(OR(Calculations!$E$2=\"Shetland Health Board\",Calculations!$E$2=\"Western Isles Health Board\",Calculations!$E$2=\"Shetland Islands Local Authority\",Calculations!$E$2=\"Eilean Siar Local Authority\"),OR($F108=1,$F108=5)),0,hosp_count(VALUE(LEFT(Options!$B$24,2)),$C108,$E108,$F108,2016,$I108+$J108,1,$H108,$G108*$H108, Options!$B$8)))","v":11123.2498703909},{"$f":"IF(AND(OR(Calculations!$E$2=\"Orkney Health Board\",Calculations!$E$2=\"Orkney Islands Local Authority\"),$F108=1),0,IF(AND(OR(Calculations!$E$2=\"Shetland Health Board\",Calculations!$E$2=\"Western Isles Health Board\",Calculations!$E$2=\"Shetland Islands Local Authority\",Calculations!$E$2=\"Eilean Siar Local Authority\"),OR($F108=1,$F108=5)),0,prem_mort(VALUE(LEFT(Options!$B$24,2)),$C108,$E108,$F108,2016,$I108,1,$H108,$G108*$H108,Options!$B$8)))","v":168.20057141090001},{"$f":"IF(AND(OR(Calculations!$E$2=\"Orkney Health Board\",Calculations!$E$2=\"Orkney Islands Local Authority\"),$F108=1),0,IF(AND(OR(Calculations!$E$2=\"Shetland Health Board\",Calculations!$E$2=\"Western Isles Health Board\",Calculations!$E$2=\"Shetland Islands Local Authority\",Calculations!$E$2=\"Eilean Siar Local Authority\"),OR($F108=1,$F108=5)),0,prem_mort(VALUE(LEFT(Options!$B$24,2)),$C108,$E108,$F108,2016,$I108+$J108,1,$H108,$G108*$H108,Options!$B$8)))","v":167.93727785089999},415.12555262081054,414.47573387358705,12449.616983600374,12430.128916771806,27542.601760000001,27452.613333310877,415.12555262081054,414.47573387358705,2905878.8683456737,2901330.1371151092,87147318.885202616,87010902.41740264,192798212.32000002,192168293.33317614,2905878.8683456737,2901330.1371151092,7000]
[null,"Female 55-59",56.953040999999999,83.473039999999997,"female",2,{"$f":"HLOOKUP(Calculations!$E$2,'Prevalence Rates'!$C$3:$BC$249,'Prevalence Rates'!$BD109,FALSE)","v":0.1616690581244189},{"$f":"HLOOKUP(Calculations!$E$2,'Population 2016'!$C$3:$BC$249,'Population 2016'!BD109,FALSE)","v":37275},0,{"$f":"HLOOKUP(Results!E$4,Targeting!$C$3:$F$249,Targeting!$G109,FALSE)","v":1104},{"$f":"IF(AND(OR(Calculations!$E$2=\"Orkney Health Board\",Calculations!$E$2=\"Orkney Islands Local Authority\"),$F109=1),0,IF(AND(OR(Calculations!$E$2=\"Shetland Health Board\",Calculations!$E$2=\"Western Isles Health Board\",Calculations!$E$2=\"Shetland Islands Local Authority\",Calculations!$E$2=\"Eilean Siar Local Authority\"),OR($F109=1,$F109=5)),0,new_ci(VALUE(LEFT(Options!$B$24,2)),$C109,$E109,$F109,2016,$I109,1,$H109,$G109*$H109,Options!$B$8)))","v":235.7285433083},{"$f":"IF(AND(OR(Calculations!$E$2=\"Orkney Health Board\",Calculations!$E$2=\"Orkney Islands Local Authority\"),$F109=1),0,IF(AND(OR(Calculations!$E$2=\"Shetland Health Board\",Calculations!$E$2=\"Western Isles Health Board\",Calculations!$E$2=\"Shetland Islands Local Authority\",Calculations!$E$2=\"Eilean Siar Local Authority\"),OR($F109=1,$F109=5)),0,new_ci(VALUE(LEFT(Options!$B$24,2)),$C109,$E109,$F109,2016,$I109+$J109,1,$H109,$G109*$H109,Options!$B$8)))","v":235.36447656589999},{"$f":"IF(AND(OR(Calculations!$E$2=\"Orkney Health Board\",Calculations!$E$2=\"Orkney Islands Local Authority\"),$F109=1),0,IF(AND(OR(Calculations!$E$2=\"Shetland Health Board\",Calculations!$E$2=\"Western Isles Health Board\",Calculations!$E$2=\"Shetland Islands Local Authority\",Calculations!$E$2=\"Eilean Siar Local Authority\"),OR($F109=1,$F109=5)),0,new_yllv2(VALUE(LEFT(Options!$B$24,2)),$C109,$D109,$E109,$F109,2016,$I109,1,$H109,$G109*$H109,Options!$B$8)))","v":6015.7921894992996},{"$f":"IF(AND(OR(Calculations!$E$2=\"Orkney Health Board\",Calculations!$E$2=\"Orkney Islands Local Authority\"),$F109=1),0,IF(AND(OR(Calculations!$E$2=\"Shetland Health Board\",Calculations!$E$2=\"Western Isles Health Board\",Calculations!$E$2=\"Shetland Islands Local Authority\",Calculations!$E$2=\"Eilean Siar Local Authority\"),OR($F109=1,$F109=5)),0,new_yllv2(VALUE(LEFT(Options!$B$24,2)),$C109,$D109,$E109,$F109,2016,$I109+$J109,1,$H109,$G109*$H109,Options!$B$8)))","v":6006.5012065972996},{"$f":"IF(AND(OR(Calculations!$E$2=\"Orkney Health Board\",Calculations!$E$2=\"Orkney Islands Local Authority\"),$F109=1),0,IF(AND(OR(Calculations!$E$2=\"Shetland Health Board\",Calculations!$E$2=\"Western Isles Health Board\",Calculations!$E$2=\"Shetland Islands Local Authority\",Calculations!$E$2=\"Eilean Siar Local Authority\"),OR($F109=1,$F109=5)),0,hosp_count(VALUE(LEFT(Options!$B$24,2)),$C109,$E109,$F109,2016,$I109,1,$H109,$G109*$H109, Options!$B$8)))","v":11631.357148215},{"$f":"IF(AND(OR(Calculations!$E$2=\"Orkney Health Board\",Calculations!$E$2=\"Orkney Islands Local Authority\"),$F109=1),0,IF(AND(OR(Calculations!$E$2=\"Shetland Health Board\",Calculations!$E$2=\"Western Isles Health Board\",Calculations!$E$2=\"Shetland Islands Local Authority\",Calculations!$E$2=\"Eilean Siar Local Authority\"),OR($F109=1,$F109=5)),0,hosp_count(VALUE(LEFT(Options!$B$24,2)),$C109,$E109,$F109,2016,$I109+$J109,1,$H109,$G109*$H109, Options!$B$8)))","v":11593.844099460601},{"$f":"IF(AND(OR(Calculations!$E$2=\"Orkney Health Board\",Calculations!$E$2=\"Orkney Islands Local Authority\"),$F109=1),0,IF(AND(OR(Calculations!$E$2=\"Shetland Health Board\",Calculations!$E$2=\"Western Isles Health Board\",Calculations!$E$2=\"Shetland Islands Local Authority\",Calculations!$E$2=\"Eilean Siar Local Authority\"),OR($F109=1,$F109=5)),0,prem_mort(VALUE(LEFT(Options!$B$24,2)),$C109,$E109,$F109,2016,$I109,1,$H109,$G109*$H109,Options!$B$8)))","v":235.7285433083},{"$f":"IF(AND(OR(Calculations!$E$2=\"Orkney Health Board\",Calculations!$E$2=\"Orkney Islands Local Authority\"),$F109=1),0,IF(AND(OR(Calculations!$E$2=\"Shetland Health Board\",Calculations!$E$2=\"Western Isles Health Board\",Calculations!$E$2=\"Shetland Islands Local Authority\",Calculations!$E$2=\"Eilean Siar Local Authority\"),OR($F109=1,$F109=5)),0,prem_mort(VALUE(LEFT(Options!$B$24,2)),$C109,$E109,$F109,2016,$I109+$J109,1,$H109,$G109*$H109,Options!$B$8)))","v":235.36447656589999},632.40387205446007,631.42716717880614,16138.946182426022,16114.020674975987,31204.177460000003,31103.538831550912,632.40387205446007,631.42716717880614,4110625.1683539907,4104276.5866622399,104903150.18576914,104741134.38734391,202827153.49000001,202173002.40508091,4110625.1683539907,4104276.5866622399,6500]
[null,"Female 60-64",61.947387999999997,84.167389999999997,"female",2,{"$f":"HLOOKUP(Calculations!$E$2,'Prevalence Rates'!$C$3:$BC$249,'Prevalence Rates'!$BD110,FALSE)","v":0.1616690581244189},{"$f":"HLOOKUP(Calculations!$E$2,'Population 2016'!$C$3:$BC$249,'Population 2016'!BD110,FALSE)","v":32644},0,{"$f":"HLOOKUP(Results!E$4,Targeting!$C$3:$F$249,Targeting!$G110,FALSE)","v":967},{"$f":"IF(AND(OR(Calculations!$E$2=\"Orkney Health Board\",Calculations!$E$2=\"Orkney Islands Local Authority\"),$F110=1),0,IF(AND(OR(Calculations!$E$2=\"Shetland Health Board\",Calculations!$E$2=\"Western Isles Health Board\",Calculations!$E$2=\"Shetland Islands Local Authority\",Calculations!$E$2=\"Eilean Siar Local Authority\"),OR($F110=1,$F110=5)),0,new_ci(VALUE(LEFT(Options!$B$24,2)),$C110,$E110,$F110,2016,$I110,1,$H110,$G110*$H110,Options!$B$8)))","v":315.16966988029998},{"$f":"IF(AND(OR(Calculations!$E$2=\"Orkney Health Board\",Calculations!$E$2=\"Orkney Islands Local Authority\"),$F110=1),0,IF(AND(OR(Calculations!$E$2=\"Shetland Health Board\",Calculations!$E$2=\"Western Isles Health Board\",Calculations!$E$2=\"Shetland Islands Local Authority\",Calculations!$E$2=\"Eilean Siar Local Authority\"),OR($F110=1,$F110=5)),0,new_ci(VALUE(LEFT(Options!$B$24,2)),$C110,$E110,$F110,2016,$I110+$J110,1,$H110,$G110*$H110,Options!$B$8)))","v":314.68402420400002},{"$f":"IF(AND(OR(Calculations!$E$2=\"Orkney Health Board\",Calculations!$E$2=\"Orkney Islands Local Authority\"),$F110=1),0,IF(AND(OR(Calculations!$E$2=\"Shetland Health Board\",Calculations!$E$2=\"Western Isles Health Board\",Calculations!$E$2=\"Shetland Islands Local Authority\",Calculations!$E$2=\"Eilean Siar Local Authority\"),OR($F110=1,$F110=5)),0,new_yllv2(VALUE(LEFT(Options!$B$24,2)),$C110,$D110,$E110,$F110,2016,$I110,1,$H110,$G110*$H110,Options!$B$8)))","v":6687.9010251993004},{"$f":"IF(AND(OR(Calculations!$E$2=\"Orkney Health Board\",Calculations!$E$2=\"Orkney Islands Local Authority\"),$F110=1),0,IF(AND(OR(Calculations!$E$2=\"Shetland Health Board\",Calculations!$E$2=\"Western Isles Health Board\",Calculations!$E$2=\"Shetland Islands Local Authority\",Calculations!$E$2=\"Eilean Siar Local Authority\"),OR($F110=1,$F110=5)),0,new_yllv2(VALUE(LEFT(Options!$B$24,2)),$C110,$D110,$E110,$F110,2016,$I110+$J110,1,$H110,$G110*$H110,Options!$B$8)))","v":6677.5956229768999},{"$f":"IF(AND(OR(Calculations!$E$2=\"Orkney Health Board\",Calculations!$E$2=\"Orkney Islands Local Authority\"),$F110=1),0,IF(AND(OR(Calculations!$E$2=\"Shetland Health Board\",Calculations!$E$2=\"Western Isles Health Board\",Calculations!$E$2=\"Shetland Islands Local Authority\",Calculations!$E$2=\"Eilean Siar Local Authority\"),OR($F110=1,$F110=5)),0,hosp_count(VALUE(LEFT(Options!$B$24,2)),$C110,$E110,$F110,2016,$I110,1,$H110,$G110*$H110, Options!$B$8)))","v":11549.811549477199},{"$f":"IF(AND(OR(Calculations!$E$2=\"Orkney Health Board\",Calculations!$E$2=\"Orkney Islands Local Authority\"),$F110=1),0,IF(AND(OR(Calculations!$E$2=\"Shetland Health Board\",Calculations!$E$2=\"Western Isles Health Board\",Calculations!$E$2=\"Shetland Islands Local Authority\",Calculations!$E$2=\"Eilean Siar Local Authority\"),OR($F110=1,$F110=5)),0,hosp_count(VALUE(LEFT(Options!$B$24,2)),$C110,$E110,$F110,2016,$I110+$J110,1,$H110,$G110*$H110, Options!$B$8)))","v":11512.555349817099},{"$f":"IF(AND(OR(Calculations!$E$2=\"Orkney Health Board\",Calculations!$E$2=\"Orkney Islands Local Authority\"),$F110=1),0,IF(AND(OR(Calculations!$E$2=\"Shetland Health Board\",Calculations!$E$2=\"Western Isles Health Board\",Calculations!$E$2=\"Shetland Islands Local Authority\",Calculations!$E$2=\"Eilean Siar Local Authority\"),OR($F110=1,$F110=5)),0,prem_mort(VALUE(LEFT(Options!$B$24,2)),$C110,$E110,$F110,2016,$I110,1,$H110,$G110*$H110,Options!$B$8)))","v":315.16966988029998},{"$f":"IF(AND(OR(Calculations!$E$2=\"Orkney Health Board\",Calculations!$E$2=\"Orkney Islands Local Authority\"),$F110=1),0,IF(AND(OR(Calculations!$E$2=\"Shetland Health Board\",Calculations!$E$2=\"Western Isles Health Board\",Calculations!$E$2=\"Shetland Islands Local Authority\",Calculations!$E$2=\"Eilean Siar Local Authority\"),OR($F110=1,$F110=5)),0,prem_mort(VALUE(LEFT(Options!$B$24,2)),$C110,$E110,$F110,2016,$I110+$J110,1,$H110,$G110*$H110,Options!$B$8)))","v":314.68402420400002},965.47503333016778,963.98733060899406,20487.382138216213,20455.813083497429,35381.116129999995,35266.987347803886,965.47503333016778,963.98733060899406,5792850.1999810068,5783923.9836539645,122924292.82929727,122734878.50098458,212286696.77999997,211601924.08682331,5792850.1999810068,5783923.9836539645,6000]
[null,"Female 65-69",67.063927000000007,85.193929999999995,"female",2,{"$f":"HLOOKUP(Calculations!$E$2,'Prevalence Rates'!$C$3:$BC$249,'Prevalence Rates'!$BD111,FALSE)","v":0.1616690581244189},{"$f":"HLOOKUP(Calculations!$E$2,'Population 2016'!$C$3:$BC$249,'Population 2016'!BD111,FALSE)","v":32580},0,{"$f":"HLOOKUP(Results!E$4,Targeting!$C$3:$F$249,Targeting!$G111,FALSE)","v":965},{"$f":"IF(AND(OR(Calculations!$E$2=\"Orkney Health Board\",Calculations!$E$2=\"Orkney Islands Local Authority\"),$F111=1),0,IF(AND(OR(Calculations!$E$2=\"Shetland Health Board\",Calculations!$E$2=\"Western Isles Health Board\",Calculations!$E$2=\"Shetland Islands Local Authority\",Calculations!$E$2=\"Eilean Siar Local Authority\"),OR($F111=1,$F111=5)),0,new_ci(VALUE(LEFT(Options!$B$24,2)),$C111,$E111,$F111,2016,$I111,1,$H111,$G111*$H111,Options!$B$8)))","v":484.76204316970001},{"$f":"IF(AND(OR(Calculations!$E$2=\"Orkney Health Board\",Calculations!$E$2=\"Orkney Islands Local Authority\"),$F111=1),0,IF(AND(OR(Calculations!$E$2=\"Shetland Health Board\",Calculations!$E$2=\"Western Isles Health Board\",Calculations!$E$2=\"Shetland Islands Local Authority\",Calculations!$E$2=\"Eilean Siar Local Authority\"),OR($F111=1,$F111=5)),0,new_ci(VALUE(LEFT(Options!$B$24,2)),$C111,$E111,$F111,2016,$I111+$J111,1,$H111,$G111*$H111,Options!$B$8)))","v":484.01803511769998},{"$f":"IF(AND(OR(Calculations!$E$2=\"Orkney Health Board\",Calculations!$E$2=\"Orkney Islands Local Authority\"),$F111=1),0,IF(AND(OR(Calculations!$E$2=\"Shetland Health Board\",Calculations!$E$2=\"Western Isles Health Board\",Calculations!$E$2=\"Shetland Islands Local Authority\",Calculations!$E$2=\"Eilean Siar Local Authority\"),OR($F111=1,$F111=5)),0,new_yllv2(VALUE(LEFT(Options!$B$24,2)),$C111,$D111,$E111,$F111,2016,$I111,1,$H111,$G111*$H111,Options!$B$8)))","v":8303.9752537830991},{"$f":"IF(AND(OR(Calculations!$E$2=\"Orkney Health Board\",Calculations!$E$2=\"Orkney Islands Local Authority\"),$F111=1),0,IF(AND(OR(Calculations!$E$2=\"Shetland Health Board\",Calculations!$E$2=\"Western Isles Health Board\",Calculations!$E$2=\"Shetland Islands Local Authority\",Calculations!$E$2=\"Eilean Siar Local Authority\"),OR($F111=1,$F111=5)),0,new_yllv2(VALUE(LEFT(Options!$B$24,2)),$C111,$D111,$E111,$F111,2016,$I111+$J111,1,$H111,$G111*$H111,Options!$B$8)))","v":8291.2303936203007},{"$f":"IF(AND(OR(Calculations!$E$2=\"Orkney Health Board\",Calculations!$E$2=\"Orkney Islands Local Authority\"),$F111=1),0,IF(AND(OR(Calculations!$E$2=\"Shetland Health Board\",Calculations!$E$2=\"Western Isles Health Board\",Calculations!$E$2=\"Shetland Islands Local Authority\",Calculations!$E$2=\"Eilean Siar Local Authority\"),OR($F111=1,$F111=5)),0,hosp_count(VALUE(LEFT(Options!$B$24,2)),$C111,$E111,$F111,2016,$I111,1,$H111,$G111*$H111, Options!$B$8)))","v":13110.408911123999},{"$f":"IF(AND(OR(Calculations!$E$2=\"Orkney Health Board\",Calculations!$E$2=\"Orkney Islands Local Authority\"),$F111=1),0,IF(AND(OR(Calculations!$E$2=\"Shetland Health Board\",Calculations!$E$2=\"Western Isles Health Board\",Calculations!$E$2=\"Shetland Islands Local Authority\",Calculations!$E$2=\"Eilean Siar Local Authority\"),OR($F111=1,$F111=5)),0,hosp_count(VALUE(LEFT(Options!$B$24,2)),$C111,$E111,$F111,2016,$I111+$J111,1,$H111,$G111*$H111, Options!$B$8)))","v":13068.123260266701},{"$f":"IF(AND(OR(Calculations!$E$2=\"Orkney Health Board\",Calculations!$E$2=\"Orkney Islands Local Authority\"),$F111=1),0,IF(AND(OR(Calculations!$E$2=\"Shetland Health Board\",Calculations!$E$2=\"Western Isles Health Board\",Calculations!$E$2=\"Shetland Islands Local Authority\",Calculations!$E$2=\"Eilean Siar Local Authority\"),OR($F111=1,$F111=5)),0,prem_mort(VALUE(LEFT(Options!$B$24,2)),$C111,$E111,$F111,2016,$I111,1,$H111,$G111*$H111,Options!$B$8)))","v":484.76204316970001},{"$f":"IF(AND(OR(Calculations!$E$2=\"Orkney Health Board\",Calculations!$E$2=\"Orkney Islands Local Authority\"),$F111=1),0,IF(AND(OR(Calculations!$E$2=\"Shetland Health Board\",Calculations!$E$2=\"Western Isles Health Board\",Calculations!$E$2=\"Shetland Islands Local Authority\",Calculations!$E$2=\"Eilean Siar Local Authority\"),OR($F111=1,$F111=5)),0,prem_mort(VALUE(LEFT(Options!$B$24,2)),$C111,$E111,$F111,2016,$I111+$J111,1,$H111,$G111*$H111,Options!$B$8)))","v":484.01803511769998},1487.9129624607119,1485.6293281697358,25487.953510690913,25448.834848435545,40240.665779999996,40110.875568651623,1487.9129624607119,1485.6293281697358,8183521.2935339157,8170961.304933547,140183744.30880001,139968591.66639549,221323661.78999996,220609815.62758392,8183521.2935339157,8170961.304933547,5500]
[null,"Female 70-74",71.938164,86.248159999999999,"female",2,{"$f":"HLOOKUP(Calculations!$E$2,'Prevalence Rates'!$C$3:$BC$249,'Prevalence Rates'!$BD112,FALSE)","v":0.1616690581244189},{"$f":"HLOOKUP(Calculations!$E$2,'Population 2016'!$C$3:$BC$249,'Population 2016'!BD112,FALSE)","v":25764},0,{"$f":"HLOOKUP(Results!E$4,Targeting!$C$3:$F$249,Targeting!$G112,FALSE)","v":763},{"$f":"IF(AND(OR(Calculations!$E$2=\"Orkney Health Board\",Calculations!$E$2=\"Orkney Islands Local Authority\"),$F112=1),0,IF(AND(OR(Calculations!$E$2=\"Shetland Health Board\",Calculations!$E$2=\"Western Isles Health Board\",Calculations!$E$2=\"Shetland Islands Local Authority\",Calculations!$E$2=\"Eilean Siar Local Authority\"),OR($F112=1,$F112=5)),0,new_ci(VALUE(LEFT(Options!$B$24,2)),$C112,$E112,$F112,2016,$I112,1,$H112,$G112*$H112,Options!$B$8)))","v":578.02876127870002},{"$f":"IF(AND(OR(Calculations!$E$2=\"Orkney Health Board\",Calculations!$E$2=\"Orkney Islands Local Authority\"),$F112=1),0,IF(AND(OR(Calculations!$E$2=\"Shetland Health Board\",Calculations!$E$2=\"Western Isles Health Board\",Calculations!$E$2=\"Shetland Islands Local Authority\",Calculations!$E$2=\"Eilean Siar Local Authority\"),OR($F112=1,$F112=5)),0,new_ci(VALUE(LEFT(Options!$B$24,2)),$C112,$E112,$F112,2016,$I112+$J112,1,$H112,$G112*$H112,Options!$B$8)))","v":577.14672442790004},{"$f":"IF(AND(OR(Calculations!$E$2=\"Orkney Health Board\",Calculations!$E$2=\"Orkney Islands Local Authority\"),$F112=1),0,IF(AND(OR(Calculations!$E$2=\"Shetland Health Board\",Calculations!$E$2=\"Western Isles Health Board\",Calculations!$E$2=\"Shetland Islands Local Authority\",Calculations!$E$2=\"Eilean Siar Local Authority\"),OR($F112=1,$F112=5)),0,new_yllv2(VALUE(LEFT(Options!$B$24,2)),$C112,$D112,$E112,$F112,2016,$I112,1,$H112,$G112*$H112,Options!$B$8)))","v":7693.5605005044999},{"$f":"IF(AND(OR(Calculations!$E$2=\"Orkney Health Board\",Calculations!$E$2=\"Orkney Islands Local Authority\"),$F112=1),0,IF(AND(OR(Calculations!$E$2=\"Shetland Health Board\",Calculations!$E$2=\"Western Isles Health Board\",Calculations!$E$2=\"Shetland Islands Local Authority\",Calculations!$E$2=\"Eilean Siar Local Authority\"),OR($F112=1,$F112=5)),0,new_yllv2(VALUE(LEFT(Options!$B$24,2)),$C112,$D112,$E112,$F112,2016,$I112+$J112,1,$H112,$G112*$H112,Options!$B$8)))","v":7681.8205935485003},{"$f":"IF(AND(OR(Calculations!$E$2=\"Orkney Health Board\",Calculations!$E$2=\"Orkney Islands Local Authority\"),$F112=1),0,IF(AND(OR(Calculations!$E$2=\"Shetland Health Board\",Calculations!$E$2=\"Western Isles Health Board\",Calculations!$E$2=\"Shetland Islands Local Authority\",Calculations!$E$2=\"Eilean Siar Local Authority\"),OR($F112=1,$F112=5)),0,hosp_count(VALUE(LEFT(Options!$B$24,2)),$C112,$E112,$F112,2016,$I112,1,$H112,$G112*$H112, Options!$B$8)))","v":11719.9333841844},{"$f":"IF(AND(OR(Calculations!$E$2=\"Orkney Health Board\",Calculations!$E$2=\"Orkney Islands Local Authority\"),$F112=1),0,IF(AND(OR(Calculations!$E$2=\"Shetland Health Board\",Calculations!$E$2=\"Western Isles Health Board\",Calculations!$E$2=\"Shetland Islands Local Authority\",Calculations!$E$2=\"Eilean Siar Local Authority\"),OR($F112=1,$F112=5)),0,hosp_count(VALUE(LEFT(Options!$B$24,2)),$C112,$E112,$F112,2016,$I112+$J112,1,$H112,$G112*$H112, Options!$B$8)))","v":11682.138158780501},{"$f":"IF(AND(OR(Calculations!$E$2=\"Orkney Health Board\",Calculations!$E$2=\"Orkney Islands Local Authority\"),$F112=1),0,IF(AND(OR(Calculations!$E$2=\"Shetland Health Board\",Calculations!$E$2=\"Western Isles Health Board\",Calculations!$E$2=\"Shetland Islands Local Authority\",Calculations!$E$2=\"Eilean Siar Local Authority\"),OR($F112=1,$F112=5)),0,prem_mort(VALUE(LEFT(Options!$B$24,2)),$C112,$E112,$F112,2016,$I112,1,$H112,$G112*$H112,Options!$B$8)))","v":578.02876127870002},{"$f":"IF(AND(OR(Calculations!$E$2=\"Orkney Health Board\",Calculations!$E$2=\"Orkney Islands Local Authority\"),$F112=1),0,IF(AND(OR(Calculations!$E$2=\"Shetland Health Board\",Calculations!$E$2=\"Western Isles Health Board\",Calculations!$E$2=\"Shetland Islands Local Authority\",Calculations!$E$2=\"Eilean Siar Local Authority\"),OR($F112=1,$F112=5)),0,prem_mort(VALUE(LEFT(Options!$B$24,2)),$C112,$E112,$F112,2016,$I112+$J112,1,$H112,$G112*$H112,Options!$B$8)))","v":577.14672442790004},2243.5520931481915,2240.1285686535475,29861.669385594239,29816.102288264636,45489.572210000006,45342.874393651997,2243.5520931481915,2240.1285686535475,11217760.465740958,11200642.843267737,149308346.92797118,149080511.44132319,227447861.05000004,226714371.96825999,11217760.465740958,11200642.843267737,5000]
[null,"Female 75-79",76.942824999999999,87.812830000000005,"female",2,{"$f":"HLOOKUP(Calculations!$E$2,'Prevalence Rates'!$C$3:$BC$249,'Prevalence Rates'!$BD113,FALSE)","v":0.1616690581244189},{"$f":"HLOOKUP(Calculations!$E$2,'Population 2016'!$C$3:$BC$249,'Population 2016'!BD113,FALSE)","v":22167},0,{"$f":"HLOOKUP(Results!E$4,Targeting!$C$3:$F$249,Targeting!$G113,FALSE)","v":656},{"$f":"IF(AND(OR(Calculations!$E$2=\"Orkney Health Board\",Calculations!$E$2=\"Orkney Islands Local Authority\"),$F113=1),0,IF(AND(OR(Calculations!$E$2=\"Shetland Health Board\",Calculations!$E$2=\"Western Isles Health Board\",Calculations!$E$2=\"Shetland Islands Local Authority\",Calculations!$E$2=\"Eilean Siar Local Authority\"),OR($F113=1,$F113=5)),0,new_ci(VALUE(LEFT(Options!$B$24,2)),$C113,$E113,$F113,2016,$I113,1,$H113,$G113*$H113,Options!$B$8)))","v":756.61049466249995},{"$f":"IF(AND(OR(Calculations!$E$2=\"Orkney Health Board\",Calculations!$E$2=\"Orkney Islands Local Authority\"),$F113=1),0,IF(AND(OR(Calculations!$E$2=\"Shetland Health Board\",Calculations!$E$2=\"Western Isles Health Board\",Calculations!$E$2=\"Shetland Islands Local Authority\",Calculations!$E$2=\"Eilean Siar Local Authority\"),OR($F113=1,$F113=5)),0,new_ci(VALUE(LEFT(Options!$B$24,2)),$C113,$E113,$F113,2016,$I113+$J113,1,$H113,$G113*$H113,Options!$B$8)))","v":755.46691872650001},{"$f":"IF(AND(OR(Calculations!$E$2=\"Orkney Health Board\",Calculations!$E$2=\"Orkney Islands Local Authority\"),$F113=1),0,IF(AND(OR(Calculations!$E$2=\"Shetland Health Board\",Calculations!$E$2=\"Western Isles Health Board\",Calculations!$E$2=\"Shetland Islands Local Authority\",Calculations!$E$2=\"Eilean Siar Local Authority\"),OR($F113=1,$F113=5)),0,new_yllv2(VALUE(LEFT(Options!$B$24,2)),$C113,$D113,$E113,$F113,2016,$I113,1,$H113,$G113*$H113,Options!$B$8)))","v":7467.7493653714},{"$f":"IF(AND(OR(Calculations!$E$2=\"Orkney Health Board\",Calculations!$E$2=\"Orkney Islands Local Authority\"),$F113=1),0,IF(AND(OR(Calculations!$E$2=\"Shetland Health Board\",Calculations!$E$2=\"Western Isles Health Board\",Calculations!$E$2=\"Shetland Islands Local Authority\",Calculations!$E$2=\"Eilean Siar Local Authority\"),OR($F113=1,$F113=5)),0,new_yllv2(VALUE(LEFT(Options!$B$24,2)),$C113,$D113,$E113,$F113,2016,$I113+$J113,1,$H113,$G113*$H113,Options!$B$8)))","v":7456.4622651651998},{"$f":"IF(AND(OR(Calculations!$E$2=\"Orkney Health Board\",Calculations!$E$2=\"Orkney Islands Local Authority\"),$F113=1),0,IF(AND(OR(Calculations!$E$2=\"Shetland Health Board\",Calculations!$E$2=\"Western Isles Health Board\",Calculations!$E$2=\"Shetland Islands Local Authority\",Calculations!$E$2=\"Eilean Siar Local Authority\"),OR($F113=1,$F113=5)),0,hosp_count(VALUE(LEFT(Options!$B$24,2)),$C113,$E113,$F113,2016,$I113,1,$H113,$G113*$H113, Options!$B$8)))","v":11436.4236510261},{"$f":"IF(AND(OR(Calculations!$E$2=\"Orkney Health Board\",Calculations!$E$2=\"Orkney Islands Local Authority\"),$F113=1),0,IF(AND(OR(Calculations!$E$2=\"Shetland Health Board\",Calculations!$E$2=\"Western Isles Health Board\",Calculations!$E$2=\"Shetland Islands Local Authority\",Calculations!$E$2=\"Eilean Siar Local Authority\"),OR($F113=1,$F113=5)),0,hosp_count(VALUE(LEFT(Options!$B$24,2)),$C113,$E113,$F113,2016,$I113+$J113,1,$H113,$G113*$H113, Options!$B$8)))","v":11399.569390455001},{"$f":"IF(AND(OR(Calculations!$E$2=\"Orkney Health Board\",Calculations!$E$2=\"Orkney Islands Local Authority\"),$F113=1),0,IF(AND(OR(Calculations!$E$2=\"Shetland Health Board\",Calculations!$E$2=\"Western Isles Health Board\",Calculations!$E$2=\"Shetland Islands Local Authority\",Calculations!$E$2=\"Eilean Siar Local Authority\"),OR($F113=1,$F113=5)),0,prem_mort(VALUE(LEFT(Options!$B$24,2)),$C113,$E113,$F113,2016,$I113,1,$H113,$G113*$H113,Options!$B$8)))","v":0},{"$f":"IF(AND(OR(Calculations!$E$2=\"Orkney Health Board\",Calculations!$E$2=\"Orkney Islands Local Authority\"),$F113=1),0,IF(AND(OR(Calculations!$E$2=\"Shetland Health Board\",Calculations!$E$2=\"Western Isles Health Board\",Calculations!$E$2=\"Shetland Islands Local Authority\",Calculations!$E$2=\"Eilean Siar Local Authority\"),OR($F113=1,$F113=5)),0,prem_mort(VALUE(LEFT(Options!$B$24,2)),$C113,$E113,$F113,2016,$I113+$J113,1,$H113,$G113*$H113,Options!$B$8)))","v":0},3413.2291002954839,3408.0701886881398,33688.588286062164,33637.669802703116,51592.112829999991,51425.855507984845,0,0,13652916.401181936,13632280.75475256,134754353.14424866,134550679.21081248,206368451.31999996,205703422.03193939,0,0,4000]
[null,"Female 80-84",81.856712000000002,89.736710000000002,"female",2,{"$f":"HLOOKUP(Calculations!$E$2,'Prevalence Rates'!$C$3:$BC$249,'Prevalence Rates'!$BD114,FALSE)","v":0.1616690581244189},{"$f":"HLOOKUP(Calculations!$E$2,'Population 2016'!$C$3:$BC$249,'Population 2016'!BD114,FALSE)","v":17470},0,{"$f":"HLOOKUP(Results!E$4,Targeting!$C$3:$F$249,Targeting!$G114,FALSE)","v":517},{"$f":"IF(AND(OR(Calculations!$E$2=\"Orkney Health Board\",Calculations!$E$2=\"Orkney Islands Local Authority\"),$F114=1),0,IF(AND(OR(Calculations!$E$2=\"Shetland Health Board\",Calculations!$E$2=\"Western Isles Health Board\",Calculations!$E$2=\"Shetland Islands Local Authority\",Calculations!$E$2=\"Eilean Siar Local Authority\"),OR($F114=1,$F114=5)),0,new_ci(VALUE(LEFT(Options!$B$24,2)),$C114,$E114,$F114,2016,$I114,1,$H114,$G114*$H114,Options!$B$8)))","v":897.50325972719997},{"$f":"IF(AND(OR(Calculations!$E$2=\"Orkney Health Board\",Calculations!$E$2=\"Orkney Islands Local Authority\"),$F114=1),0,IF(AND(OR(Calculations!$E$2=\"Shetland Health Board\",Calculations!$E$2=\"Western Isles Health Board\",Calculations!$E$2=\"Shetland Islands Local Authority\",Calculations!$E$2=\"Eilean Siar Local Authority\"),OR($F114=1,$F114=5)),0,new_ci(VALUE(LEFT(Options!$B$24,2)),$C114,$E114,$F114,2016,$I114+$J114,1,$H114,$G114*$H114,Options!$B$8)))","v":896.16455068079995},{"$f":"IF(AND(OR(Calculations!$E$2=\"Orkney Health Board\",Calculations!$E$2=\"Orkney Islands Local Authority\"),$F114=1),0,IF(AND(OR(Calculations!$E$2=\"Shetland Health Board\",Calculations!$E$2=\"Western Isles Health Board\",Calculations!$E$2=\"Shetland Islands Local Authority\",Calculations!$E$2=\"Eilean Siar Local Authority\"),OR($F114=1,$F114=5)),0,new_yllv2(VALUE(LEFT(Options!$B$24,2)),$C114,$D114,$E114,$F114,2016,$I114,1,$H114,$G114*$H114,Options!$B$8)))","v":6174.8206319166002},{"$f":"IF(AND(OR(Calculations!$E$2=\"Orkney Health Board\",Calculations!$E$2=\"Orkney Islands Local Authority\"),$F114=1),0,IF(AND(OR(Calculations!$E$2=\"Shetland Health Board\",Calculations!$E$2=\"Western Isles Health Board\",Calculations!$E$2=\"Shetland Islands Local Authority\",Calculations!$E$2=\"Eilean Siar Local Authority\"),OR($F114=1,$F114=5)),0,new_yllv2(VALUE(LEFT(Options!$B$24,2)),$C114,$D114,$E114,$F114,2016,$I114+$J114,1,$H114,$G114*$H114,Options!$B$8)))","v":6165.6103163547996},{"$f":"IF(AND(OR(Calculations!$E$2=\"Orkney Health Board\",Calculations!$E$2=\"Orkney Islands Local Authority\"),$F114=1),0,IF(AND(OR(Calculations!$E$2=\"Shetland Health Board\",Calculations!$E$2=\"Western Isles Health Board\",Calculations!$E$2=\"Shetland Islands Local Authority\",Calculations!$E$2=\"Eilean Siar Local Authority\"),OR($F114=1,$F114=5)),0,hosp_count(VALUE(LEFT(Options!$B$24,2)),$C114,$E114,$F114,2016,$I114,1,$H114,$G114*$H114, Options!$B$8)))","v":10198.963905691},{"$f":"IF(AND(OR(Calculations!$E$2=\"Orkney Health Board\",Calculations!$E$2=\"Orkney Islands Local Authority\"),$F114=1),0,IF(AND(OR(Calculations!$E$2=\"Shetland Health Board\",Calculations!$E$2=\"Western Isles Health Board\",Calculations!$E$2=\"Shetland Islands Local Authority\",Calculations!$E$2=\"Eilean Siar Local Authority\"),OR($F114=1,$F114=5)),0,hosp_count(VALUE(LEFT(Options!$B$24,2)),$C114,$E114,$F114,2016,$I114+$J114,1,$H114,$G114*$H114, Options!$B$8)))","v":10166.097346366099},{"$f":"IF(AND(OR(Calculations!$E$2=\"Orkney Health Board\",Calculations!$E$2=\"Orkney Islands Local Authority\"),$F114=1),0,IF(AND(OR(Calculations!$E$2=\"Shetland Health Board\",Calculations!$E$2=\"Western Isles Health Board\",Calculations!$E$2=\"Shetland Islands Local Authority\",Calculations!$E$2=\"Eilean Siar Local Authority\"),OR($F114=1,$F114=5)),0,prem_mort(VALUE(LEFT(Options!$B$24,2)),$C114,$E114,$F114,2016,$I114,1,$H114,$G114*$H114,Options!$B$8)))","v":0},{"$f":"IF(AND(OR(Calculations!$E$2=\"Orkney Health Board\",Calculations!$E$2=\"Orkney Islands Local Authority\"),$F114=1),0,IF(AND(OR(Calculations!$E$2=\"Shetland Health Board\",Calculations!$E$2=\"Western Isles Health Board\",Calculations!$E$2=\"Shetland Islands Local Authority\",Calculations!$E$2=\"Eilean Siar Local Authority\"),OR($F114=1,$F114=5)),0,prem_mort(VALUE(LEFT(Options!$B$24,2)),$C114,$E114,$F114,2016,$I114+$J114,1,$H114,$G114*$H114,Options!$B$8)))","v":0},5137.3970219072698,5129.734119523755,35345.281235927876,35292.560482855173,58379.873530000004,58191.74210856382,0,0,12843492.554768175,12824335.298809387,88363203.089819685,88231401.207137927,145949683.82500002,145479355.27140954,0,0,2500]
[null,"Female 85-89",86.730819999999994,92.220819999999989,"female",2,{"$f":"HLOOKUP(Calculations!$E$2,'Prevalence Rates'!$C$3:$BC$249,'Prevalence Rates'!$BD115,FALSE)","v":0.1616690581244189},{"$f":"HLOOKUP(Calculations!$E$2,'Population 2016'!$C$3:$BC$249,'Population 2016'!BD115,FALSE)","v":10411},0,{"$f":"HLOOKUP(Results!E$4,Targeting!$C$3:$F$249,Targeting!$G115,FALSE)","v":308},{"$f":"IF(AND(OR(Calculations!$E$2=\"Orkney Health Board\",Calculations!$E$2=\"Orkney Islands Local Authority\"),$F115=1),0,IF(AND(OR(Calculations!$E$2=\"Shetland Health Board\",Calculations!$E$2=\"Western Isles Health Board\",Calculations!$E$2=\"Shetland Islands Local Authority\",Calculations!$E$2=\"Eilean Siar Local Authority\"),OR($F115=1,$F115=5)),0,new_ci(VALUE(LEFT(Options!$B$24,2)),$C115,$E115,$F115,2016,$I115,1,$H115,$G115*$H115,Options!$B$8)))","v":798.7035788211},{"$f":"IF(AND(OR(Calculations!$E$2=\"Orkney Health Board\",Calculations!$E$2=\"Orkney Islands Local Authority\"),$F115=1),0,IF(AND(OR(Calculations!$E$2=\"Shetland Health Board\",Calculations!$E$2=\"Western Isles Health Board\",Calculations!$E$2=\"Shetland Islands Local Authority\",Calculations!$E$2=\"Eilean Siar Local Authority\"),OR($F115=1,$F115=5)),0,new_ci(VALUE(LEFT(Options!$B$24,2)),$C115,$E115,$F115,2016,$I115+$J115,1,$H115,$G115*$H115,Options!$B$8)))","v":797.53613580590002},{"$f":"IF(AND(OR(Calculations!$E$2=\"Orkney Health Board\",Calculations!$E$2=\"Orkney Islands Local Authority\"),$F115=1),0,IF(AND(OR(Calculations!$E$2=\"Shetland Health Board\",Calculations!$E$2=\"Western Isles Health Board\",Calculations!$E$2=\"Shetland Islands Local Authority\",Calculations!$E$2=\"Eilean Siar Local Authority\"),OR($F115=1,$F115=5)),0,new_yllv2(VALUE(LEFT(Options!$B$24,2)),$C115,$D115,$E115,$F115,2016,$I115,1,$H115,$G115*$H115,Options!$B$8)))","v":3586.1790689067002},{"$f":"IF(AND(OR(Calculations!$E$2=\"Orkney Health Board\",Calculations!$E$2=\"Orkney Islands Local Authority\"),$F115=1),0,IF(AND(OR(Calculations!$E$2=\"Shetland Health Board\",Calculations!$E$2=\"Western Isles Health Board\",Calculations!$E$2=\"Shetland Islands Local Authority\",Calculations!$E$2=\"Eilean Siar Local Authority\"),OR($F115=1,$F115=5)),0,new_yllv2(VALUE(LEFT(Options!$B$24,2)),$C115,$D115,$E115,$F115,2016,$I115+$J115,1,$H115,$G115*$H115,Options!$B$8)))","v":3580.9372497684999},{"$f":"IF(AND(OR(Calculations!$E$2=\"Orkney Health Board\",Calculations!$E$2=\"Orkney Islands Local Authority\"),$F115=1),0,IF(AND(OR(Calculations!$E$2=\"Shetland Health Board\",Calculations!$E$2=\"Western Isles Health Board\",Calculations!$E$2=\"Shetland Islands Local Authority\",Calculations!$E$2=\"Eilean Siar Local Authority\"),OR($F115=1,$F115=5)),0,hosp_count(VALUE(LEFT(Options!$B$24,2)),$C115,$E115,$F115,2016,$I115,1,$H115,$G115*$H115, Options!$B$8)))","v":6870.6983567419002},{"$f":"IF(AND(OR(Calculations!$E$2=\"Orkney Health Board\",Calculations!$E$2=\"Orkney Islands Local Authority\"),$F115=1),0,IF(AND(OR(Calculations!$E$2=\"Shetland Health Board\",Calculations!$E$2=\"Western Isles Health Board\",Calculations!$E$2=\"Shetland Islands Local Authority\",Calculations!$E$2=\"Eilean Siar Local Authority\"),OR($F115=1,$F115=5)),0,hosp_count(VALUE(LEFT(Options!$B$24,2)),$C115,$E115,$F115,2016,$I115+$J115,1,$H115,$G115*$H115, Options!$B$8)))","v":6848.5643671493999},{"$f":"IF(AND(OR(Calculations!$E$2=\"Orkney Health Board\",Calculations!$E$2=\"Orkney Islands Local Authority\"),$F115=1),0,IF(AND(OR(Calculations!$E$2=\"Shetland Health Board\",Calculations!$E$2=\"Western Isles Health Board\",Calculations!$E$2=\"Shetland Islands Local Authority\",Calculations!$E$2=\"Eilean Siar Local Authority\"),OR($F115=1,$F115=5)),0,prem_mort(VALUE(LEFT(Options!$B$24,2)),$C115,$E115,$F115,2016,$I115,1,$H115,$G115*$H115,Options!$B$8)))","v":0},{"$f":"IF(AND(OR(Calculations!$E$2=\"Orkney Health Board\",Calculations!$E$2=\"Orkney Islands Local Authority\"),$F115=1),0,IF(AND(OR(Calculations!$E$2=\"Shetland Health Board\",Calculations!$E$2=\"Western Isles Health Board\",Calculations!$E$2=\"Shetland Islands Local Authority\",Calculations!$E$2=\"Eilean Siar Local Authority\"),OR($F115=1,$F115=5)),0,prem_mort(VALUE(LEFT(Options!$B$24,2)),$C115,$E115,$F115,2016,$I115+$J115,1,$H115,$G115*$H115,Options!$B$8)))","v":0},7671.7277765930266,7660.5142234742098,34446.057716902316,34395.70886339929,65994.605290000007,65782.003334448178,0,0,11507591.664889541,11490771.335211314,51669086.575353473,51593563.295098938,98991907.935000017,98673005.001672268,0,0,1500]
[null,"Female 90+",92.779342999999997,96.279340000000005,"female",2,{"$f":"HLOOKUP(Calculations!$E$2,'Prevalence Rates'!$C$3:$BC$249,'Prevalence Rates'!$BD116,FALSE)","v":0.1616690581244189},{"$f":"HLOOKUP(Calculations!$E$2,'Population 2016'!$C$3:$BC$249,'Population 2016'!BD116,FALSE)","v":5892},0,{"$f":"HLOOKUP(Results!E$4,Targeting!$C$3:$F$249,Targeting!$G116,FALSE)","v":174},{"$f":"IF(AND(OR(Calculations!$E$2=\"Orkney Health Board\",Calculations!$E$2=\"Orkney Islands Local Authority\"),$F116=1),0,IF(AND(OR(Calculations!$E$2=\"Shetland Health Board\",Calculations!$E$2=\"Western Isles Health Board\",Calculations!$E$2=\"Shetland Islands Local Authority\",Calculations!$E$2=\"Eilean Siar Local Authority\"),OR($F116=1,$F116=5)),0,new_ci(VALUE(LEFT(Options!$B$24,2)),$C116,$E116,$F116,2016,$I116,1,$H116,$G116*$H116,Options!$B$8)))","v":736.18040356630001},{"$f":"IF(AND(OR(Calculations!$E$2=\"Orkney Health Board\",Calculations!$E$2=\"Orkney Islands Local Authority\"),$F116=1),0,IF(AND(OR(Calculations!$E$2=\"Shetland Health Board\",Calculations!$E$2=\"Western Isles Health Board\",Calculations!$E$2=\"Shetland Islands Local Authority\",Calculations!$E$2=\"Eilean Siar Local Authority\"),OR($F116=1,$F116=5)),0,new_ci(VALUE(LEFT(Options!$B$24,2)),$C116,$E116,$F116,2016,$I116+$J116,1,$H116,$G116*$H116,Options!$B$8)))","v":735.1480947307},{"$f":"IF(AND(OR(Calculations!$E$2=\"Orkney Health Board\",Calculations!$E$2=\"Orkney Islands Local Authority\"),$F116=1),0,IF(AND(OR(Calculations!$E$2=\"Shetland Health Board\",Calculations!$E$2=\"Western Isles Health Board\",Calculations!$E$2=\"Shetland Islands Local Authority\",Calculations!$E$2=\"Eilean Siar Local Authority\"),OR($F116=1,$F116=5)),0,new_yllv2(VALUE(LEFT(Options!$B$24,2)),$C116,$D116,$E116,$F116,2016,$I116,1,$H116,$G116*$H116,Options!$B$8)))","v":1840.4488003745},{"$f":"IF(AND(OR(Calculations!$E$2=\"Orkney Health Board\",Calculations!$E$2=\"Orkney Islands Local Authority\"),$F116=1),0,IF(AND(OR(Calculations!$E$2=\"Shetland Health Board\",Calculations!$E$2=\"Western Isles Health Board\",Calculations!$E$2=\"Shetland Islands Local Authority\",Calculations!$E$2=\"Eilean Siar Local Authority\"),OR($F116=1,$F116=5)),0,new_yllv2(VALUE(LEFT(Options!$B$24,2)),$C116,$D116,$E116,$F116,2016,$I116+$J116,1,$H116,$G116*$H116,Options!$B$8)))","v":1837.8680313825},{"$f":"IF(AND(OR(Calculations!$E$2=\"Orkney Health Board\",Calculations!$E$2=\"Orkney Islands Local Authority\"),$F116=1),0,IF(AND(OR(Calculations!$E$2=\"Shetland Health Board\",Calculations!$E$2=\"Western Isles Health Board\",Calculations!$E$2=\"Shetland Islands Local Authority\",Calculations!$E$2=\"Eilean Siar Local Authority\"),OR($F116=1,$F116=5)),0,hosp_count(VALUE(LEFT(Options!$B$24,2)),$C116,$E116,$F116,2016,$I116,1,$H116,$G116*$H116, Options!$B$8)))","v":4527.3690442404004},{"$f":"IF(AND(OR(Calculations!$E$2=\"Orkney Health Board\",Calculations!$E$2=\"Orkney Islands Local Authority\"),$F116=1),0,IF(AND(OR(Calculations!$E$2=\"Shetland Health Board\",Calculations!$E$2=\"Western Isles Health Board\",Calculations!$E$2=\"Shetland Islands Local Authority\",Calculations!$E$2=\"Eilean Siar Local Authority\"),OR($F116=1,$F116=5)),0,hosp_count(VALUE(LEFT(Options!$B$24,2)),$C116,$E116,$F116,2016,$I116+$J116,1,$H116,$G116*$H116, Options!$B$8)))","v":4512.8099969792002},{"$f":"IF(AND(OR(Calculations!$E$2=\"Orkney Health Board\",Calculations!$E$2=\"Orkney Islands Local Authority\"),$F116=1),0,IF(AND(OR(Calculations!$E$2=\"Shetland Health Board\",Calculations!$E$2=\"Western Isles Health Board\",Calculations!$E$2=\"Shetland Islands Local Authority\",Calculations!$E$2=\"Eilean Siar Local Authority\"),OR($F116=1,$F116=5)),0,prem_mort(VALUE(LEFT(Options!$B$24,2)),$C116,$E116,$F116,2016,$I116,1,$H116,$G116*$H116,Options!$B$8)))","v":0},{"$f":"IF(AND(OR(Calculations!$E$2=\"Orkney Health Board\",Calculations!$E$2=\"Orkney Islands Local Authority\"),$F116=1),0,IF(AND(OR(Calculations!$E$2=\"Shetland Health Board\",Calculations!$E$2=\"Western Isles Health Board\",Calculations!$E$2=\"Shetland Islands Local Authority\",Calculations!$E$2=\"Eilean Siar Local Authority\"),OR($F116=1,$F116=5)),0,prem_mort(VALUE(LEFT(Options!$B$24,2)),$C116,$E116,$F116,2016,$I116+$J116,1,$H116,$G116*$H116,Options!$B$8)))","v":0},12494.575756386626,12477.05523982858,31236.401907238633,31192.600668406314,76839.257370000007,76592.158808200955,0,0,12494575.756386627,12477055.239828579,31236401.907238632,31192600.668406315,76839257.370000005,76592158.808200955,0,0,1000]
[null,"Male 0-4",2.0320822999999999,77.402082000000007,"male",2,{"$f":"HLOOKUP(Calculations!$E$2,'Prevalence Rates'!$C$3:$BC$249,'Prevalence Rates'!$BD117,FALSE)","v":0},{"$f":"HLOOKUP(Calculations!$E$2,'Population 2016'!$C$3:$BC$249,'Population 2016'!BD117,FALSE)","v":0},0,{"$f":"HLOOKUP(Results!E$4,Targeting!$C$3:$F$249,Targeting!$G117,FALSE)","v":0},{"$f":"IF(AND(OR(Calculations!$E$2=\"Orkney Health Board\",Calculations!$E$2=\"Orkney Islands Local Authority\"),$F117=1),0,IF(AND(OR(Calculations!$E$2=\"Shetland Health Board\",Calculations!$E$2=\"Western Isles Health Board\",Calculations!$E$2=\"Shetland Islands Local Authority\",Calculations!$E$2=\"Eilean Siar Local Authority\"),OR($F117=1,$F117=5)),0,new_ci(VALUE(LEFT(Options!$B$24,2)),$C117,$E117,$F117,2016,$I117,1,$H117,$G117*$H117,Options!$B$8)))","v":{"$error":"#VALUE!"}},{"$f":"IF(AND(OR(Calculations!$E$2=\"Orkney Health Board\",Calculations!$E$2=\"Orkney Islands Local Authority\"),$F117=1),0,IF(AND(OR(Calculations!$E$2=\"Shetland Health Board\",Calculations!$E$2=\"Western Isles Health Board\",Calculations!$E$2=\"Shetland Islands Local Authority\",Calculations!$E$2=\"Eilean Siar Local Authority\"),OR($F117=1,$F117=5)),0,new_ci(VALUE(LEFT(Options!$B$24,2)),$C117,$E117,$F117,2016,$I117+$J117,1,$H117,$G117*$H117,Options!$B$8)))","v":{"$error":"#VALUE!"}},{"$f":"IF(AND(OR(Calculations!$E$2=\"Orkney Health Board\",Calculations!$E$2=\"Orkney Islands Local Authority\"),$F117=1),0,IF(AND(OR(Calculations!$E$2=\"Shetland Health Board\",Calculations!$E$2=\"Western Isles Health Board\",Calculations!$E$2=\"Shetland Islands Local Authority\",Calculations!$E$2=\"Eilean Siar Local Authority\"),OR($F117=1,$F117=5)),0,new_yllv2(VALUE(LEFT(Options!$B$24,2)),$C117,$D117,$E117,$F117,2016,$I117,1,$H117,$G117*$H117,Options!$B$8)))","v":{"$error":"#VALUE!"}},{"$f":"IF(AND(OR(Calculations!$E$2=\"Orkney Health Board\",Calculations!$E$2=\"Orkney Islands Local Authority\"),$F117=1),0,IF(AND(OR(Calculations!$E$2=\"Shetland Health Board\",Calculations!$E$2=\"Western Isles Health Board\",Calculations!$E$2=\"Shetland Islands Local Authority\",Calculations!$E$2=\"Eilean Siar Local Authority\"),OR($F117=1,$F117=5)),0,new_yllv2(VALUE(LEFT(Options!$B$24,2)),$C117,$D117,$E117,$F117,2016,$I117+$J117,1,$H117,$G117*$H117,Options!$B$8)))","v":{"$error":"#VALUE!"}},{"$f":"IF(AND(OR(Calculations!$E$2=\"Orkney Health Board\",Calculations!$E$2=\"Orkney Islands Local Authority\"),$F117=1),0,IF(AND(OR(Calculations!$E$2=\"Shetland Health Board\",Calculations!$E$2=\"Western Isles Health Board\",Calculations!$E$2=\"Shetland Islands Local Authority\",Calculations!$E$2=\"Eilean Siar Local Authority\"),OR($F117=1,$F117=5)),0,hosp_count(VALUE(LEFT(Options!$B$24,2)),$C117,$E117,$F117,2016,$I117,1,$H117,$G117*$H117, Options!$B$8)))","v":{"$error":"#VALUE!"}},{"$f":"IF(AND(OR(Calculations!$E$2=\"Orkney Health Board\",Calculations!$E$2=\"Orkney Islands Local Authority\"),$F117=1),0,IF(AND(OR(Calculations!$E$2=\"Shetland Health Board\",Calculations!$E$2=\"Western Isles Health Board\",Calculations!$E$2=\"Shetland Islands Local Authority\",Calculations!$E$2=\"Eilean Siar Local Authority\"),OR($F117=1,$F117=5)),0,hosp_count(VALUE(LEFT(Options!$B$24,2)),$C117,$E117,$F117,2016,$I117+$J117,1,$H117,$G117*$H117, Options!$B$8)))","v":{"$error":"#VALUE!"}},{"$f":"IF(AND(OR(Calculations!$E$2=\"Orkney Health Board\",Calculations!$E$2=\"Orkney Islands Local Authority\"),$F117=1),0,IF(AND(OR(Calculations!$E$2=\"Shetland Health Board\",Calculations!$E$2=\"Western Isles Health Board\",Calculations!$E$2=\"Shetland Islands Local Authority\",Calculations!$E$2=\"Eilean Siar Local Authority\"),OR($F117=1,$F117=5)),0,prem_mort(VALUE(LEFT(Options!$B$24,2)),$C117,$E117,$F117,2016,$I117,1,$H117,$G117*$H117,Options!$B$8)))","v":{"$error":"#VALUE!"}},{"$f":"IF(AND(OR(Calculations!$E$2=\"Orkney Health Board\",Calculations!$E$2=\"Orkney Islands Local Authority\"),$F117=1),0,IF(AND(OR(Calculations!$E$2=\"Shetland Health Board\",Calculations!$E$2=\"Western Isles Health Board\",Calculations!$E$2=\"Shetland Islands Local Authority\",Calculations!$E$2=\"Eilean Siar Local Authority\"),OR($F117=1,$F117=5)),0,prem_mort(VALUE(LEFT(Options!$B$24,2)),$C117,$E117,$F117,2016,$I117+$J117,1,$H117,$G117*$H117,Options!$B$8)))","v":{"$error":"#VALUE!"}},{"$error":"#VALUE!"},{"$error":"#VALUE!"},{"$error":"#VALUE!"},{"$error":"#VALUE!"},{"$error":"#VALUE!"},{"$error":"#VALUE!"},{"$error":"#VALUE!"},{"$error":"#VALUE!"},{"$error":"#VALUE!"},{"$error":"#VALUE!"},{"$error":"#VALUE!"},{"$error":"#VALUE!"},{"$error":"#VALUE!"},{"$error":"#VALUE!"},{"$error":"#VALUE!"},{"$error":"#VALUE!"},5000]
[null,"Male 5-9",6.9784756000000003,77.398476000000002,"male",2,{"$f":"HLOOKUP(Calculations!$E$2,'Prevalence Rates'!$C$3:$BC$249,'Prevalence Rates'!$BD118,FALSE)","v":0},{"$f":"HLOOKUP(Calculations!$E$2,'Population 2016'!$C$3:$BC$249,'Population 2016'!BD118,FALSE)","v":0},0,{"$f":"HLOOKUP(Results!E$4,Targeting!$C$3:$F$249,Targeting!$G118,FALSE)","v":0},{"$f":"IF(AND(OR(Calculations!$E$2=\"Orkney Health Board\",Calculations!$E$2=\"Orkney Islands Local Authority\"),$F118=1),0,IF(AND(OR(Calculations!$E$2=\"Shetland Health Board\",Calculations!$E$2=\"Western Isles Health Board\",Calculations!$E$2=\"Shetland Islands Local Authority\",Calculations!$E$2=\"Eilean Siar Local Authority\"),OR($F118=1,$F118=5)),0,new_ci(VALUE(LEFT(Options!$B$24,2)),$C118,$E118,$F118,2016,$I118,1,$H118,$G118*$H118,Options!$B$8)))","v":{"$error":"#VALUE!"}},{"$f":"IF(AND(OR(Calculations!$E$2=\"Orkney Health Board\",Calculations!$E$2=\"Orkney Islands Local Authority\"),$F118=1),0,IF(AND(OR(Calculations!$E$2=\"Shetland Health Board\",Calculations!$E$2=\"Western Isles Health Board\",Calculations!$E$2=\"Shetland Islands Local Authority\",Calculations!$E$2=\"Eilean Siar Local Authority\"),OR($F118=1,$F118=5)),0,new_ci(VALUE(LEFT(Options!$B$24,2)),$C118,$E118,$F118,2016,$I118+$J118,1,$H118,$G118*$H118,Options!$B$8)))","v":{"$error":"#VALUE!"}},{"$f":"IF(AND(OR(Calculations!$E$2=\"Orkney Health Board\",Calculations!$E$2=\"Orkney Islands Local Authority\"),$F118=1),0,IF(AND(OR(Calculations!$E$2=\"Shetland Health Board\",Calculations!$E$2=\"Western Isles Health Board\",Calculations!$E$2=\"Shetland Islands Local Authority\",Calculations!$E$2=\"Eilean Siar Local Authority\"),OR($F118=1,$F118=5)),0,new_yllv2(VALUE(LEFT(Options!$B$24,2)),$C118,$D118,$E118,$F118,2016,$I118,1,$H118,$G118*$H118,Options!$B$8)))","v":{"$error":"#VALUE!"}},{"$f":"IF(AND(OR(Calculations!$E$2=\"Orkney Health Board\",Calculations!$E$2=\"Orkney Islands Local Authority\"),$F118=1),0,IF(AND(OR(Calculations!$E$2=\"Shetland Health Board\",Calculations!$E$2=\"Western Isles Health Board\",Calculations!$E$2=\"Shetland Islands Local Authority\",Calculations!$E$2=\"Eilean Siar Local Authority\"),OR($F118=1,$F118=5)),0,new_yllv2(VALUE(LEFT(Options!$B$24,2)),$C118,$D118,$E118,$F118,2016,$I118+$J118,1,$H118,$G118*$H118,Options!$B$8)))","v":{"$error":"#VALUE!"}},{"$f":"IF(AND(OR(Calculations!$E$2=\"Orkney Health Board\",Calculations!$E$2=\"Orkney Islands Local Authority\"),$F118=1),0,IF(AND(OR(Calculations!$E$2=\"Shetland Health Board\",Calculations!$E$2=\"Western Isles Health Board\",Calculations!$E$2=\"Shetland Islands Local Authority\",Calculations!$E$2=\"Eilean Siar Local Authority\"),OR($F118=1,$F118=5)),0,hosp_count(VALUE(LEFT(Options!$B$24,2)),$C118,$E118,$F118,2016,$I118,1,$H118,$G118*$H118, Options!$B$8)))","v":{"$error":"#VALUE!"}},{"$f":"IF(AND(OR(Calculations!$E$2=\"Orkney Health Board\",Calculations!$E$2=\"Orkney Islands Local Authority\"),$F118=1),0,IF(AND(OR(Calculations!$E$2=\"Shetland Health Board\",Calculations!$E$2=\"Western Isles Health Board\",Calculations!$E$2=\"Shetland Islands Local Authority\",Calculations!$E$2=\"Eilean Siar Local Authority\"),OR($F118=1,$F118=5)),0,hosp_count(VALUE(LEFT(Options!$B$24,2)),$C118,$E118,$F118,2016,$I118+$J118,1,$H118,$G118*$H118, Options!$B$8)))","v":{"$error":"#VALUE!"}},{"$f":"IF(AND(OR(Calculations!$E$2=\"Orkney Health Board\",Calculations!$E$2=\"Orkney Islands Local Authority\"),$F118=1),0,IF(AND(OR(Calculations!$E$2=\"Shetland Health Board\",Calculations!$E$2=\"Western Isles Health Board\",Calculations!$E$2=\"Shetland Islands Local Authority\",Calculations!$E$2=\"Eilean Siar Local Authority\"),OR($F118=1,$F118=5)),0,prem_mort(VALUE(LEFT(Options!$B$24,2)),$C118,$E118,$F118,2016,$I118,1,$H118,$G118*$H118,Options!$B$8)))","v":{"$error":"#VALUE!"}},{"$f":"IF(AND(OR(Calculations!$E$2=\"Orkney Health Board\",Calculations!$E$2=\"Orkney Islands Local Authority\"),$F118=1),0,IF(AND(OR(Calculations!$E$2=\"Shetland Health Board\",Calculations!$E$2=\"Western Isles Health Board\",Calculations!$E$2=\"Shetland Islands Local Authority\",Calculations!$E$2=\"Eilean Siar Local Authority\"),OR($F118=1,$F118=5)),0,prem_mort(VALUE(LEFT(Options!$B$24,2)),$C118,$E118,$F118,2016,$I118+$J118,1,$H118,$G118*$H118,Options!$B$8)))","v":{"$error":"#VALUE!"}},{"$error":"#VALUE!"},{"$error":"#VALUE!"},{"$error":"#VALUE!"},{"$error":"#VALUE!"},{"$error":"#VALUE!"},{"$error":"#VALUE!"},{"$error":"#VALUE!"},{"$error":"#VALUE!"},{"$error":"#VALUE!"},{"$error":"#VALUE!"},{"$error":"#VALUE!"},{"$error":"#VALUE!"},{"$error":"#VALUE!"},{"$error":"#VALUE!"},{"$error":"#VALUE!"},{"$error":"#VALUE!"},5500]
[null,"Male 10-15",12.471144000000001,77.921140000000008,"male",2,{"$f":"HLOOKUP(Calculations!$E$2,'Prevalence Rates'!$C$3:$BC$249,'Prevalence Rates'!$BD119,FALSE)","v":0},{"$f":"HLOOKUP(Calculations!$E$2,'Population 2016'!$C$3:$BC$249,'Population 2016'!BD119,FALSE)","v":0},0,{"$f":"HLOOKUP(Results!E$4,Targeting!$C$3:$F$249,Targeting!$G119,FALSE)","v":0},{"$f":"IF(AND(OR(Calculations!$E$2=\"Orkney Health Board\",Calculations!$E$2=\"Orkney Islands Local Authority\"),$F119=1),0,IF(AND(OR(Calculations!$E$2=\"Shetland Health Board\",Calculations!$E$2=\"Western Isles Health Board\",Calculations!$E$2=\"Shetland Islands Local Authority\",Calculations!$E$2=\"Eilean Siar Local Authority\"),OR($F119=1,$F119=5)),0,new_ci(VALUE(LEFT(Options!$B$24,2)),$C119,$E119,$F119,2016,$I119,1,$H119,$G119*$H119,Options!$B$8)))","v":{"$error":"#VALUE!"}},{"$f":"IF(AND(OR(Calculations!$E$2=\"Orkney Health Board\",Calculations!$E$2=\"Orkney Islands Local Authority\"),$F119=1),0,IF(AND(OR(Calculations!$E$2=\"Shetland Health Board\",Calculations!$E$2=\"Western Isles Health Board\",Calculations!$E$2=\"Shetland Islands Local Authority\",Calculations!$E$2=\"Eilean Siar Local Authority\"),OR($F119=1,$F119=5)),0,new_ci(VALUE(LEFT(Options!$B$24,2)),$C119,$E119,$F119,2016,$I119+$J119,1,$H119,$G119*$H119,Options!$B$8)))","v":{"$error":"#VALUE!"}},{"$f":"IF(AND(OR(Calculations!$E$2=\"Orkney Health Board\",Calculations!$E$2=\"Orkney Islands Local Authority\"),$F119=1),0,IF(AND(OR(Calculations!$E$2=\"Shetland Health Board\",Calculations!$E$2=\"Western Isles Health Board\",Calculations!$E$2=\"Shetland Islands Local Authority\",Calculations!$E$2=\"Eilean Siar Local Authority\"),OR($F119=1,$F119=5)),0,new_yllv2(VALUE(LEFT(Options!$B$24,2)),$C119,$D119,$E119,$F119,2016,$I119,1,$H119,$G119*$H119,Options!$B$8)))","v":{"$error":"#VALUE!"}},{"$f":"IF(AND(OR(Calculations!$E$2=\"Orkney Health Board\",Calculations!$E$2=\"Orkney Islands Local Authority\"),$F119=1),0,IF(AND(OR(Calculations!$E$2=\"Shetland Health Board\",Calculations!$E$2=\"Western Isles Health Board\",Calculations!$E$2=\"Shetland Islands Local Authority\",Calculations!$E$2=\"Eilean Siar Local Authority\"),OR($F119=1,$F119=5)),0,new_yllv2(VALUE(LEFT(Options!$B$24,2)),$C119,$D119,$E119,$F119,2016,$I119+$J119,1,$H119,$G119*$H119,Options!$B$8)))","v":{"$error":"#VALUE!"}},{"$f":"IF(AND(OR(Calculations!$E$2=\"Orkney Health Board\",Calculations!$E$2=\"Orkney Islands Local Authority\"),$F119=1),0,IF(AND(OR(Calculations!$E$2=\"Shetland Health Board\",Calculations!$E$2=\"Western Isles Health Board\",Calculations!$E$2=\"Shetland Islands Local Authority\",Calculations!$E$2=\"Eilean Siar Local Authority\"),OR($F119=1,$F119=5)),0,hosp_count(VALUE(LEFT(Options!$B$24,2)),$C119,$E119,$F119,2016,$I119,1,$H119,$G119*$H119, Options!$B$8)))","v":{"$error":"#VALUE!"}},{"$f":"IF(AND(OR(Calculations!$E$2=\"Orkney Health Board\",Calculations!$E$2=\"Orkney Islands Local Authority\"),$F119=1),0,IF(AND(OR(Calculations!$E$2=\"Shetland Health Board\",Calculations!$E$2=\"Western Isles Health Board\",Calculations!$E$2=\"Shetland Islands Local Authority\",Calculations!$E$2=\"Eilean Siar Local Authority\"),OR($F119=1,$F119=5)),0,hosp_count(VALUE(LEFT(Options!$B$24,2)),$C119,$E119,$F119,2016,$I119+$J119,1,$H119,$G119*$H119, Options!$B$8)))","v":{"$error":"#VALUE!"}},{"$f":"IF(AND(OR(Calculations!$E$2=\"Orkney Health Board\",Calculations!$E$2=\"Orkney Islands Local Authority\"),$F119=1),0,IF(AND(OR(Calculations!$E$2=\"Shetland Health Board\",Calculations!$E$2=\"Western Isles Health Board\",Calculations!$E$2=\"Shetland Islands Local Authority\",Calculations!$E$2=\"Eilean Siar Local Authority\"),OR($F119=1,$F119=5)),0,prem_mort(VALUE(LEFT(Options!$B$24,2)),$C119,$E119,$F119,2016,$I119,1,$H119,$G119*$H119,Options!$B$8)))","v":{"$error":"#VALUE!"}},{"$f":"IF(AND(OR(Calculations!$E$2=\"Orkney Health Board\",Calculations!$E$2=\"Orkney Islands Local Authority\"),$F119=1),0,IF(AND(OR(Calculations!$E$2=\"Shetland Health Board\",Calculations!$E$2=\"Western Isles Health Board\",Calculations!$E$2=\"Shetland Islands Local Authority\",Calculations!$E$2=\"Eilean Siar Local Authority\"),OR($F119=1,$F119=5)),0,prem_mort(VALUE(LEFT(Options!$B$24,2)),$C119,$E119,$F119,2016,$I119+$J119,1,$H119,$G119*$H119,Options!$B$8)))","v":{"$error":"#VALUE!"}},{"$error":"#VALUE!"},{"$error":"#VALUE!"},{"$error":"#VALUE!"},{"$error":"#VALUE!"},{"$error":"#VALUE!"},{"$error":"#VALUE!"},{"$error":"#VALUE!"},{"$error":"#VALUE!"},{"$error":"#VALUE!"},{"$error":"#VALUE!"},{"$error":"#VALUE!"},{"$error":"#VALUE!"},{"$error":"#VALUE!"},{"$error":"#VALUE!"},{"$error":"#VALUE!"},{"$error":"#VALUE!"},6600]
[null,"Male 16-19",17.556318000000001,77.07632000000001,"male",2,{"$f":"HLOOKUP(Calculations!$E$2,'Prevalence Rates'!$C$3:$BC$249,'Prevalence Rates'!$BD120,FALSE)","v":0.10134370247467082},{"$f":"HLOOKUP(Calculations!$E$2,'Population 2016'!$C$3:$BC$249,'Population 2016'!BD120,FALSE)","v":23693},0,{"$f":"HLOOKUP(Results!E$4,Targeting!$C$3:$F$249,Targeting!$G120,FALSE)","v":702},{"$f":"IF(AND(OR(Calculations!$E$2=\"Orkney Health Board\",Calculations!$E$2=\"Orkney Islands Local Authority\"),$F120=1),0,IF(AND(OR(Calculations!$E$2=\"Shetland Health Board\",Calculations!$E$2=\"Western Isles Health Board\",Calculations!$E$2=\"Shetland Islands Local Authority\",Calculations!$E$2=\"Eilean Siar Local Authority\"),OR($F120=1,$F120=5)),0,new_ci(VALUE(LEFT(Options!$B$24,2)),$C120,$E120,$F120,2016,$I120,1,$H120,$G120*$H120,Options!$B$8)))","v":12.540729622400001},{"$f":"IF(AND(OR(Calculations!$E$2=\"Orkney Health Board\",Calculations!$E$2=\"Orkney Islands Local Authority\"),$F120=1),0,IF(AND(OR(Calculations!$E$2=\"Shetland Health Board\",Calculations!$E$2=\"Western Isles Health Board\",Calculations!$E$2=\"Shetland Islands Local Authority\",Calculations!$E$2=\"Eilean Siar Local Authority\"),OR($F120=1,$F120=5)),0,new_ci(VALUE(LEFT(Options!$B$24,2)),$C120,$E120,$F120,2016,$I120+$J120,1,$H120,$G120*$H120,Options!$B$8)))","v":12.520894331599999},{"$f":"IF(AND(OR(Calculations!$E$2=\"Orkney Health Board\",Calculations!$E$2=\"Orkney Islands Local Authority\"),$F120=1),0,IF(AND(OR(Calculations!$E$2=\"Shetland Health Board\",Calculations!$E$2=\"Western Isles Health Board\",Calculations!$E$2=\"Shetland Islands Local Authority\",Calculations!$E$2=\"Eilean Siar Local Authority\"),OR($F120=1,$F120=5)),0,new_yllv2(VALUE(LEFT(Options!$B$24,2)),$C120,$D120,$E120,$F120,2016,$I120,1,$H120,$G120*$H120,Options!$B$8)))","v":733.88352258429995},{"$f":"IF(AND(OR(Calculations!$E$2=\"Orkney Health Board\",Calculations!$E$2=\"Orkney Islands Local Authority\"),$F120=1),0,IF(AND(OR(Calculations!$E$2=\"Shetland Health Board\",Calculations!$E$2=\"Western Isles Health Board\",Calculations!$E$2=\"Shetland Islands Local Authority\",Calculations!$E$2=\"Eilean Siar Local Authority\"),OR($F120=1,$F120=5)),0,new_yllv2(VALUE(LEFT(Options!$B$24,2)),$C120,$D120,$E120,$F120,2016,$I120+$J120,1,$H120,$G120*$H120,Options!$B$8)))","v":732.72276132699994},{"$f":"IF(AND(OR(Calculations!$E$2=\"Orkney Health Board\",Calculations!$E$2=\"Orkney Islands Local Authority\"),$F120=1),0,IF(AND(OR(Calculations!$E$2=\"Shetland Health Board\",Calculations!$E$2=\"Western Isles Health Board\",Calculations!$E$2=\"Shetland Islands Local Authority\",Calculations!$E$2=\"Eilean Siar Local Authority\"),OR($F120=1,$F120=5)),0,hosp_count(VALUE(LEFT(Options!$B$24,2)),$C120,$E120,$F120,2016,$I120,1,$H120,$G120*$H120, Options!$B$8)))","v":1858.6343223870001},{"$f":"IF(AND(OR(Calculations!$E$2=\"Orkney Health Board\",Calculations!$E$2=\"Orkney Islands Local Authority\"),$F120=1),0,IF(AND(OR(Calculations!$E$2=\"Shetland Health Board\",Calculations!$E$2=\"Western Isles Health Board\",Calculations!$E$2=\"Shetland Islands Local Authority\",Calculations!$E$2=\"Eilean Siar Local Authority\"),OR($F120=1,$F120=5)),0,hosp_count(VALUE(LEFT(Options!$B$24,2)),$C120,$E120,$F120,2016,$I120+$J120,1,$H120,$G120*$H120, Options!$B$8)))","v":1852.5119861582},{"$f":"IF(AND(OR(Calculations!$E$2=\"Orkney Health Board\",Calculations!$E$2=\"Orkney Islands Local Authority\"),$F120=1),0,IF(AND(OR(Calculations!$E$2=\"Shetland Health Board\",Calculations!$E$2=\"Western Isles Health Board\",Calculations!$E$2=\"Shetland Islands Local Authority\",Calculations!$E$2=\"Eilean Siar Local Authority\"),OR($F120=1,$F120=5)),0,prem_mort(VALUE(LEFT(Options!$B$24,2)),$C120,$E120,$F120,2016,$I120,1,$H120,$G120*$H120,Options!$B$8)))","v":12.540729622400001},{"$f":"IF(AND(OR(Calculations!$E$2=\"Orkney Health Board\",Calculations!$E$2=\"Orkney Islands Local Authority\"),$F120=1),0,IF(AND(OR(Calculations!$E$2=\"Shetland Health Board\",Calculations!$E$2=\"Western Isles Health Board\",Calculations!$E$2=\"Shetland Islands Local Authority\",Calculations!$E$2=\"Eilean Siar Local Authority\"),OR($F120=1,$F120=5)),0,prem_mort(VALUE(LEFT(Options!$B$24,2)),$C120,$E120,$F120,2016,$I120+$J120,1,$H120,$G120*$H120,Options!$B$8)))","v":12.520894331599999},52.930104344743171,52.84638640779977,3097.4698121145479,3092.5706382771282,7844.6558999999997,7818.8156255358117,52.930104344743171,52.84638640779977,232892.45911686996,232524.10019431898,13628867.17330401,13607310.808419364,34516485.960000001,34402788.752357572,232892.45911686996,232524.10019431898,4400]
[null,"Male 20-24",22.054632000000002,77.704629999999995,"male",2,{"$f":"HLOOKUP(Calculations!$E$2,'Prevalence Rates'!$C$3:$BC$249,'Prevalence Rates'!$BD121,FALSE)","v":0.10134370247467082},{"$f":"HLOOKUP(Calculations!$E$2,'Population 2016'!$C$3:$BC$249,'Population 2016'!BD121,FALSE)","v":35964},0,{"$f":"HLOOKUP(Results!E$4,Targeting!$C$3:$F$249,Targeting!$G121,FALSE)","v":1065},{"$f":"IF(AND(OR(Calculations!$E$2=\"Orkney Health Board\",Calculations!$E$2=\"Orkney Islands Local Authority\"),$F121=1),0,IF(AND(OR(Calculations!$E$2=\"Shetland Health Board\",Calculations!$E$2=\"Western Isles Health Board\",Calculations!$E$2=\"Shetland Islands Local Authority\",Calculations!$E$2=\"Eilean Siar Local Authority\"),OR($F121=1,$F121=5)),0,new_ci(VALUE(LEFT(Options!$B$24,2)),$C121,$E121,$F121,2016,$I121,1,$H121,$G121*$H121,Options!$B$8)))","v":26.731023405399998},{"$f":"IF(AND(OR(Calculations!$E$2=\"Orkney Health Board\",Calculations!$E$2=\"Orkney Islands Local Authority\"),$F121=1),0,IF(AND(OR(Calculations!$E$2=\"Shetland Health Board\",Calculations!$E$2=\"Western Isles Health Board\",Calculations!$E$2=\"Shetland Islands Local Authority\",Calculations!$E$2=\"Eilean Siar Local Authority\"),OR($F121=1,$F121=5)),0,new_ci(VALUE(LEFT(Options!$B$24,2)),$C121,$E121,$F121,2016,$I121+$J121,1,$H121,$G121*$H121,Options!$B$8)))","v":26.688773470899999},{"$f":"IF(AND(OR(Calculations!$E$2=\"Orkney Health Board\",Calculations!$E$2=\"Orkney Islands Local Authority\"),$F121=1),0,IF(AND(OR(Calculations!$E$2=\"Shetland Health Board\",Calculations!$E$2=\"Western Isles Health Board\",Calculations!$E$2=\"Shetland Islands Local Authority\",Calculations!$E$2=\"Eilean Siar Local Authority\"),OR($F121=1,$F121=5)),0,new_yllv2(VALUE(LEFT(Options!$B$24,2)),$C121,$D121,$E121,$F121,2016,$I121,1,$H121,$G121*$H121,Options!$B$8)))","v":1460.8503756431001},{"$f":"IF(AND(OR(Calculations!$E$2=\"Orkney Health Board\",Calculations!$E$2=\"Orkney Islands Local Authority\"),$F121=1),0,IF(AND(OR(Calculations!$E$2=\"Shetland Health Board\",Calculations!$E$2=\"Western Isles Health Board\",Calculations!$E$2=\"Shetland Islands Local Authority\",Calculations!$E$2=\"Eilean Siar Local Authority\"),OR($F121=1,$F121=5)),0,new_yllv2(VALUE(LEFT(Options!$B$24,2)),$C121,$D121,$E121,$F121,2016,$I121+$J121,1,$H121,$G121*$H121,Options!$B$8)))","v":1458.5414168070999},{"$f":"IF(AND(OR(Calculations!$E$2=\"Orkney Health Board\",Calculations!$E$2=\"Orkney Islands Local Authority\"),$F121=1),0,IF(AND(OR(Calculations!$E$2=\"Shetland Health Board\",Calculations!$E$2=\"Western Isles Health Board\",Calculations!$E$2=\"Shetland Islands Local Authority\",Calculations!$E$2=\"Eilean Siar Local Authority\"),OR($F121=1,$F121=5)),0,hosp_count(VALUE(LEFT(Options!$B$24,2)),$C121,$E121,$F121,2016,$I121,1,$H121,$G121*$H121, Options!$B$8)))","v":3309.6725972171998},{"$f":"IF(AND(OR(Calculations!$E$2=\"Orkney Health Board\",Calculations!$E$2=\"Orkney Islands Local Authority\"),$F121=1),0,IF(AND(OR(Calculations!$E$2=\"Shetland Health Board\",Calculations!$E$2=\"Western Isles Health Board\",Calculations!$E$2=\"Shetland Islands Local Authority\",Calculations!$E$2=\"Eilean Siar Local Authority\"),OR($F121=1,$F121=5)),0,hosp_count(VALUE(LEFT(Options!$B$24,2)),$C121,$E121,$F121,2016,$I121+$J121,1,$H121,$G121*$H121, Options!$B$8)))","v":3298.7764535554002},{"$f":"IF(AND(OR(Calculations!$E$2=\"Orkney Health Board\",Calculations!$E$2=\"Orkney Islands Local Authority\"),$F121=1),0,IF(AND(OR(Calculations!$E$2=\"Shetland Health Board\",Calculations!$E$2=\"Western Isles Health Board\",Calculations!$E$2=\"Shetland Islands Local Authority\",Calculations!$E$2=\"Eilean Siar Local Authority\"),OR($F121=1,$F121=5)),0,prem_mort(VALUE(LEFT(Options!$B$24,2)),$C121,$E121,$F121,2016,$I121,1,$H121,$G121*$H121,Options!$B$8)))","v":26.731023405399998},{"$f":"IF(AND(OR(Calculations!$E$2=\"Orkney Health Board\",Calculations!$E$2=\"Orkney Islands Local Authority\"),$F121=1),0,IF(AND(OR(Calculations!$E$2=\"Shetland Health Board\",Calculations!$E$2=\"Western Isles Health Board\",Calculations!$E$2=\"Shetland Islands Local Authority\",Calculations!$E$2=\"Eilean Siar Local Authority\"),OR($F121=1,$F121=5)),0,prem_mort(VALUE(LEFT(Options!$B$24,2)),$C121,$E121,$F121,2016,$I121+$J121,1,$H121,$G121*$H121,Options!$B$8)))","v":26.688773470899999},74.327169962740513,74.209691555166273,4061.9796898095324,4055.5594950703476,9202.7377299999989,9172.4403669096882,74.327169962740513,74.209691555166273,445963.01977644308,445258.14933099766,24371878.138857193,24333356.970422085,55216426.379999995,55034642.201458126,445963.01977644308,445258.14933099766,6000]
[null,"Male 25-29",26.959762999999999,77.789760000000001,"male",2,{"$f":"HLOOKUP(Calculations!$E$2,'Prevalence Rates'!$C$3:$BC$249,'Prevalence Rates'!$BD122,FALSE)","v":0.10134370247467082},{"$f":"HLOOKUP(Calculations!$E$2,'Population 2016'!$C$3:$BC$249,'Population 2016'!BD122,FALSE)","v":39611},0,{"$f":"HLOOKUP(Results!E$4,Targeting!$C$3:$F$249,Targeting!$G122,FALSE)","v":1173},{"$f":"IF(AND(OR(Calculations!$E$2=\"Orkney Health Board\",Calculations!$E$2=\"Orkney Islands Local Authority\"),$F122=1),0,IF(AND(OR(Calculations!$E$2=\"Shetland Health Board\",Calculations!$E$2=\"Western Isles Health Board\",Calculations!$E$2=\"Shetland Islands Local Authority\",Calculations!$E$2=\"Eilean Siar Local Authority\"),OR($F122=1,$F122=5)),0,new_ci(VALUE(LEFT(Options!$B$24,2)),$C122,$E122,$F122,2016,$I122,1,$H122,$G122*$H122,Options!$B$8)))","v":42.630555287999996},{"$f":"IF(AND(OR(Calculations!$E$2=\"Orkney Health Board\",Calculations!$E$2=\"Orkney Islands Local Authority\"),$F122=1),0,IF(AND(OR(Calculations!$E$2=\"Shetland Health Board\",Calculations!$E$2=\"Western Isles Health Board\",Calculations!$E$2=\"Shetland Islands Local Authority\",Calculations!$E$2=\"Eilean Siar Local Authority\"),OR($F122=1,$F122=5)),0,new_ci(VALUE(LEFT(Options!$B$24,2)),$C122,$E122,$F122,2016,$I122+$J122,1,$H122,$G122*$H122,Options!$B$8)))","v":42.563192009399998},{"$f":"IF(AND(OR(Calculations!$E$2=\"Orkney Health Board\",Calculations!$E$2=\"Orkney Islands Local Authority\"),$F122=1),0,IF(AND(OR(Calculations!$E$2=\"Shetland Health Board\",Calculations!$E$2=\"Western Isles Health Board\",Calculations!$E$2=\"Shetland Islands Local Authority\",Calculations!$E$2=\"Eilean Siar Local Authority\"),OR($F122=1,$F122=5)),0,new_yllv2(VALUE(LEFT(Options!$B$24,2)),$C122,$D122,$E122,$F122,2016,$I122,1,$H122,$G122*$H122,Options!$B$8)))","v":2124.2804421094002},{"$f":"IF(AND(OR(Calculations!$E$2=\"Orkney Health Board\",Calculations!$E$2=\"Orkney Islands Local Authority\"),$F122=1),0,IF(AND(OR(Calculations!$E$2=\"Shetland Health Board\",Calculations!$E$2=\"Western Isles Health Board\",Calculations!$E$2=\"Shetland Islands Local Authority\",Calculations!$E$2=\"Eilean Siar Local Authority\"),OR($F122=1,$F122=5)),0,new_yllv2(VALUE(LEFT(Options!$B$24,2)),$C122,$D122,$E122,$F122,2016,$I122+$J122,1,$H122,$G122*$H122,Options!$B$8)))","v":2120.9237301387998},{"$f":"IF(AND(OR(Calculations!$E$2=\"Orkney Health Board\",Calculations!$E$2=\"Orkney Islands Local Authority\"),$F122=1),0,IF(AND(OR(Calculations!$E$2=\"Shetland Health Board\",Calculations!$E$2=\"Western Isles Health Board\",Calculations!$E$2=\"Shetland Islands Local Authority\",Calculations!$E$2=\"Eilean Siar Local Authority\"),OR($F122=1,$F122=5)),0,hosp_count(VALUE(LEFT(Options!$B$24,2)),$C122,$E122,$F122,2016,$I122,1,$H122,$G122*$H122, Options!$B$8)))","v":4338.5762131854999},{"$f":"IF(AND(OR(Calculations!$E$2=\"Orkney Health Board\",Calculations!$E$2=\"Orkney Islands Local Authority\"),$F122=1),0,IF(AND(OR(Calculations!$E$2=\"Shetland Health Board\",Calculations!$E$2=\"Western Isles Health Board\",Calculations!$E$2=\"Shetland Islands Local Authority\",Calculations!$E$2=\"Eilean Siar Local Authority\"),OR($F122=1,$F122=5)),0,hosp_count(VALUE(LEFT(Options!$B$24,2)),$C122,$E122,$F122,2016,$I122+$J122,1,$H122,$G122*$H122, Options!$B$8)))","v":4324.2926814722996},{"$f":"IF(AND(OR(Calculations!$E$2=\"Orkney Health Board\",Calculations!$E$2=\"Orkney Islands Local Authority\"),$F122=1),0,IF(AND(OR(Calculations!$E$2=\"Shetland Health Board\",Calculations!$E$2=\"Western Isles Health Board\",Calculations!$E$2=\"Shetland Islands Local Authority\",Calculations!$E$2=\"Eilean Siar Local Authority\"),OR($F122=1,$F122=5)),0,prem_mort(VALUE(LEFT(Options!$B$24,2)),$C122,$E122,$F122,2016,$I122,1,$H122,$G122*$H122,Options!$B$8)))","v":42.630555287999996},{"$f":"IF(AND(OR(Calculations!$E$2=\"Orkney Health Board\",Calculations!$E$2=\"Orkney Islands Local Authority\"),$F122=1),0,IF(AND(OR(Calculations!$E$2=\"Shetland Health Board\",Calculations!$E$2=\"Western Isles Health Board\",Calculations!$E$2=\"Shetland Islands Local Authority\",Calculations!$E$2=\"Eilean Siar Local Authority\"),OR($F122=1,$F122=5)),0,prem_mort(VALUE(LEFT(Options!$B$24,2)),$C122,$E122,$F122,2016,$I122+$J122,1,$H122,$G122*$H122,Options!$B$8)))","v":42.563192009399998},107.62302211001993,107.45296006008432,5362.8548688732926,5354.3806774350551,10952.958049999999,10916.898542001716,107.62302211001993,107.45296006008432,645738.13266011956,644717.7603605059,32177129.213239755,32126284.064610332,65717748.299999997,65501391.252010293,645738.13266011956,644717.7603605059,6000]
[null,"Male 30-34",31.981521999999998,78.061520000000002,"male",2,{"$f":"HLOOKUP(Calculations!$E$2,'Prevalence Rates'!$C$3:$BC$249,'Prevalence Rates'!$BD123,FALSE)","v":0.10134370247467082},{"$f":"HLOOKUP(Calculations!$E$2,'Population 2016'!$C$3:$BC$249,'Population 2016'!BD123,FALSE)","v":37146},0,{"$f":"HLOOKUP(Results!E$4,Targeting!$C$3:$F$249,Targeting!$G123,FALSE)","v":1100},{"$f":"IF(AND(OR(Calculations!$E$2=\"Orkney Health Board\",Calculations!$E$2=\"Orkney Islands Local Authority\"),$F123=1),0,IF(AND(OR(Calculations!$E$2=\"Shetland Health Board\",Calculations!$E$2=\"Western Isles Health Board\",Calculations!$E$2=\"Shetland Islands Local Authority\",Calculations!$E$2=\"Eilean Siar Local Authority\"),OR($F123=1,$F123=5)),0,new_ci(VALUE(LEFT(Options!$B$24,2)),$C123,$E123,$F123,2016,$I123,1,$H123,$G123*$H123,Options!$B$8)))","v":58.393313220899998},{"$f":"IF(AND(OR(Calculations!$E$2=\"Orkney Health Board\",Calculations!$E$2=\"Orkney Islands Local Authority\"),$F123=1),0,IF(AND(OR(Calculations!$E$2=\"Shetland Health Board\",Calculations!$E$2=\"Western Isles Health Board\",Calculations!$E$2=\"Shetland Islands Local Authority\",Calculations!$E$2=\"Eilean Siar Local Authority\"),OR($F123=1,$F123=5)),0,new_ci(VALUE(LEFT(Options!$B$24,2)),$C123,$E123,$F123,2016,$I123+$J123,1,$H123,$G123*$H123,Options!$B$8)))","v":58.301077120899997},{"$f":"IF(AND(OR(Calculations!$E$2=\"Orkney Health Board\",Calculations!$E$2=\"Orkney Islands Local Authority\"),$F123=1),0,IF(AND(OR(Calculations!$E$2=\"Shetland Health Board\",Calculations!$E$2=\"Western Isles Health Board\",Calculations!$E$2=\"Shetland Islands Local Authority\",Calculations!$E$2=\"Eilean Siar Local Authority\"),OR($F123=1,$F123=5)),0,new_yllv2(VALUE(LEFT(Options!$B$24,2)),$C123,$D123,$E123,$F123,2016,$I123,1,$H123,$G123*$H123,Options!$B$8)))","v":2632.3704432115001},{"$f":"IF(AND(OR(Calculations!$E$2=\"Orkney Health Board\",Calculations!$E$2=\"Orkney Islands Local Authority\"),$F123=1),0,IF(AND(OR(Calculations!$E$2=\"Shetland Health Board\",Calculations!$E$2=\"Western Isles Health Board\",Calculations!$E$2=\"Shetland Islands Local Authority\",Calculations!$E$2=\"Eilean Siar Local Authority\"),OR($F123=1,$F123=5)),0,new_yllv2(VALUE(LEFT(Options!$B$24,2)),$C123,$D123,$E123,$F123,2016,$I123+$J123,1,$H123,$G123*$H123,Options!$B$8)))","v":2628.2124400080002},{"$f":"IF(AND(OR(Calculations!$E$2=\"Orkney Health Board\",Calculations!$E$2=\"Orkney Islands Local Authority\"),$F123=1),0,IF(AND(OR(Calculations!$E$2=\"Shetland Health Board\",Calculations!$E$2=\"Western Isles Health Board\",Calculations!$E$2=\"Shetland Islands Local Authority\",Calculations!$E$2=\"Eilean Siar Local Authority\"),OR($F123=1,$F123=5)),0,hosp_count(VALUE(LEFT(Options!$B$24,2)),$C123,$E123,$F123,2016,$I123,1,$H123,$G123*$H123, Options!$B$8)))","v":4862.4564060936},{"$f":"IF(AND(OR(Calculations!$E$2=\"Orkney Health Board\",Calculations!$E$2=\"Orkney Islands Local Authority\"),$F123=1),0,IF(AND(OR(Calculations!$E$2=\"Shetland Health Board\",Calculations!$E$2=\"Western Isles Health Board\",Calculations!$E$2=\"Shetland Islands Local Authority\",Calculations!$E$2=\"Eilean Siar Local Authority\"),OR($F123=1,$F123=5)),0,hosp_count(VALUE(LEFT(Options!$B$24,2)),$C123,$E123,$F123,2016,$I123+$J123,1,$H123,$G123*$H123, Options!$B$8)))","v":4846.4482053411002},{"$f":"IF(AND(OR(Calculations!$E$2=\"Orkney Health Board\",Calculations!$E$2=\"Orkney Islands Local Authority\"),$F123=1),0,IF(AND(OR(Calculations!$E$2=\"Shetland Health Board\",Calculations!$E$2=\"Western Isles Health Board\",Calculations!$E$2=\"Shetland Islands Local Authority\",Calculations!$E$2=\"Eilean Siar Local Authority\"),OR($F123=1,$F123=5)),0,prem_mort(VALUE(LEFT(Options!$B$24,2)),$C123,$E123,$F123,2016,$I123,1,$H123,$G123*$H123,Options!$B$8)))","v":58.393313220899998},{"$f":"IF(AND(OR(Calculations!$E$2=\"Orkney Health Board\",Calculations!$E$2=\"Orkney Islands Local Authority\"),$F123=1),0,IF(AND(OR(Calculations!$E$2=\"Shetland Health Board\",Calculations!$E$2=\"Western Isles Health Board\",Calculations!$E$2=\"Shetland Islands Local Authority\",Calculations!$E$2=\"Eilean Siar Local Authority\"),OR($F123=1,$F123=5)),0,prem_mort(VALUE(LEFT(Options!$B$24,2)),$C123,$E123,$F123,2016,$I123+$J123,1,$H123,$G123*$H123,Options!$B$8)))","v":58.301077120899997},157.19946487078016,156.95115791982985,7086.551561975718,7075.357885123567,13090.121159999999,13047.025804504119,157.19946487078016,156.95115791982985,1021796.5216600711,1020182.5264788941,46062585.152842164,45989826.253303185,85085787.539999992,84805667.729276776,1021796.5216600711,1020182.5264788941,6500]
[null,"Male 35-39",36.926009999999998,78.336009999999987,"male",2,{"$f":"HLOOKUP(Calculations!$E$2,'Prevalence Rates'!$C$3:$BC$249,'Prevalence Rates'!$BD124,FALSE)","v":0.10134370247467082},{"$f":"HLOOKUP(Calculations!$E$2,'Population 2016'!$C$3:$BC$249,'Population 2016'!BD124,FALSE)","v":32341},0,{"$f":"HLOOKUP(Results!E$4,Targeting!$C$3:$F$249,Targeting!$G124,FALSE)","v":958},{"$f":"IF(AND(OR(Calculations!$E$2=\"Orkney Health Board\",Calculations!$E$2=\"Orkney Islands Local Authority\"),$F124=1),0,IF(AND(OR(Calculations!$E$2=\"Shetland Health Board\",Calculations!$E$2=\"Western Isles Health Board\",Calculations!$E$2=\"Shetland Islands Local Authority\",Calculations!$E$2=\"Eilean Siar Local Authority\"),OR($F124=1,$F124=5)),0,new_ci(VALUE(LEFT(Options!$B$24,2)),$C124,$E124,$F124,2016,$I124,1,$H124,$G124*$H124,Options!$B$8)))","v":73.819244730500003},{"$f":"IF(AND(OR(Calculations!$E$2=\"Orkney Health Board\",Calculations!$E$2=\"Orkney Islands Local Authority\"),$F124=1),0,IF(AND(OR(Calculations!$E$2=\"Shetland Health Board\",Calculations!$E$2=\"Western Isles Health Board\",Calculations!$E$2=\"Shetland Islands Local Authority\",Calculations!$E$2=\"Eilean Siar Local Authority\"),OR($F124=1,$F124=5)),0,new_ci(VALUE(LEFT(Options!$B$24,2)),$C124,$E124,$F124,2016,$I124+$J124,1,$H124,$G124*$H124,Options!$B$8)))","v":73.702669734099999},{"$f":"IF(AND(OR(Calculations!$E$2=\"Orkney Health Board\",Calculations!$E$2=\"Orkney Islands Local Authority\"),$F124=1),0,IF(AND(OR(Calculations!$E$2=\"Shetland Health Board\",Calculations!$E$2=\"Western Isles Health Board\",Calculations!$E$2=\"Shetland Islands Local Authority\",Calculations!$E$2=\"Eilean Siar Local Authority\"),OR($F124=1,$F124=5)),0,new_yllv2(VALUE(LEFT(Options!$B$24,2)),$C124,$D124,$E124,$F124,2016,$I124,1,$H124,$G124*$H124,Options!$B$8)))","v":2983.0356795594998},{"$f":"IF(AND(OR(Calculations!$E$2=\"Orkney Health Board\",Calculations!$E$2=\"Orkney Islands Local Authority\"),$F124=1),0,IF(AND(OR(Calculations!$E$2=\"Shetland Health Board\",Calculations!$E$2=\"Western Isles Health Board\",Calculations!$E$2=\"Shetland Islands Local Authority\",Calculations!$E$2=\"Eilean Siar Local Authority\"),OR($F124=1,$F124=5)),0,new_yllv2(VALUE(LEFT(Options!$B$24,2)),$C124,$D124,$E124,$F124,2016,$I124+$J124,1,$H124,$G124*$H124,Options!$B$8)))","v":2978.3248839550001},{"$f":"IF(AND(OR(Calculations!$E$2=\"Orkney Health Board\",Calculations!$E$2=\"Orkney Islands Local Authority\"),$F124=1),0,IF(AND(OR(Calculations!$E$2=\"Shetland Health Board\",Calculations!$E$2=\"Western Isles Health Board\",Calculations!$E$2=\"Shetland Islands Local Authority\",Calculations!$E$2=\"Eilean Siar Local Authority\"),OR($F124=1,$F124=5)),0,hosp_count(VALUE(LEFT(Options!$B$24,2)),$C124,$E124,$F124,2016,$I124,1,$H124,$G124*$H124, Options!$B$8)))","v":5045.6624380724998},{"$f":"IF(AND(OR(Calculations!$E$2=\"Orkney Health Board\",Calculations!$E$2=\"Orkney Islands Local Authority\"),$F124=1),0,IF(AND(OR(Calculations!$E$2=\"Shetland Health Board\",Calculations!$E$2=\"Western Isles Health Board\",Calculations!$E$2=\"Shetland Islands Local Authority\",Calculations!$E$2=\"Eilean Siar Local Authority\"),OR($F124=1,$F124=5)),0,hosp_count(VALUE(LEFT(Options!$B$24,2)),$C124,$E124,$F124,2016,$I124+$J124,1,$H124,$G124*$H124, Options!$B$8)))","v":5029.0460576666001},{"$f":"IF(AND(OR(Calculations!$E$2=\"Orkney Health Board\",Calculations!$E$2=\"Orkney Islands Local Authority\"),$F124=1),0,IF(AND(OR(Calculations!$E$2=\"Shetland Health Board\",Calculations!$E$2=\"Western Isles Health Board\",Calculations!$E$2=\"Shetland Islands Local Authority\",Calculations!$E$2=\"Eilean Siar Local Authority\"),OR($F124=1,$F124=5)),0,prem_mort(VALUE(LEFT(Options!$B$24,2)),$C124,$E124,$F124,2016,$I124,1,$H124,$G124*$H124,Options!$B$8)))","v":73.819244730500003},{"$f":"IF(AND(OR(Calculations!$E$2=\"Orkney Health Board\",Calculations!$E$2=\"Orkney Islands Local Authority\"),$F124=1),0,IF(AND(OR(Calculations!$E$2=\"Shetland Health Board\",Calculations!$E$2=\"Western Isles Health Board\",Calculations!$E$2=\"Shetland Islands Local Authority\",Calculations!$E$2=\"Eilean Siar Local Authority\"),OR($F124=1,$F124=5)),0,prem_mort(VALUE(LEFT(Options!$B$24,2)),$C124,$E124,$F124,2016,$I124+$J124,1,$H124,$G124*$H124,Options!$B$8)))","v":73.702669734099999},228.25282066262639,227.89236490553787,9223.6964829767148,9209.1304658328445,15601.442249999998,15550.063565339971,228.25282066262639,227.89236490553787,1597769.7446383848,1595246.5543387651,{"$f":"U124*$AI124","v":64565875.380837001},{"$f":"V124*$AI124","v":64463913.260829911},{"$f":"W124*$AI124","v":109210095.74999999},{"$f":"X124*$AI124","v":108850444.9573798},{"$f":"Y124*$AI124","v":1597769.7446383848},{"$f":"Z124*$AI124","v":1595246.5543387651},7000]
[null,"Male 40-44",42.067703000000002,78.907700000000006,"male",2,{"$f":"HLOOKUP(Calculations!$E$2,'Prevalence Rates'!$C$3:$BC$249,'Prevalence Rates'!$BD125,FALSE)","v":0.10134370247467082},{"$f":"HLOOKUP(Calculations!$E$2,'Population 2016'!$C$3:$BC$249,'Population 2016'!BD125,FALSE)","v":32014},0,{"$f":"HLOOKUP(Results!E$4,Targeting!$C$3:$F$249,Targeting!$G125,FALSE)","v":948},{"$f":"IF(AND(OR(Calculations!$E$2=\"Orkney Health Board\",Calculations!$E$2=\"Orkney Islands Local Authority\"),$F125=1),0,IF(AND(OR(Calculations!$E$2=\"Shetland Health Board\",Calculations!$E$2=\"Western Isles Health Board\",Calculations!$E$2=\"Shetland Islands Local Authority\",Calculations!$E$2=\"Eilean Siar Local Authority\"),OR($F125=1,$F125=5)),0,new_ci(VALUE(LEFT(Options!$B$24,2)),$C125,$E125,$F125,2016,$I125,1,$H125,$G125*$H125,Options!$B$8)))","v":107.6727305168},{"$f":"IF(AND(OR(Calculations!$E$2=\"Orkney Health Board\",Calculations!$E$2=\"Orkney Islands Local Authority\"),$F125=1),0,IF(AND(OR(Calculations!$E$2=\"Shetland Health Board\",Calculations!$E$2=\"Western Isles Health Board\",Calculations!$E$2=\"Shetland Islands Local Authority\",Calculations!$E$2=\"Eilean Siar Local Authority\"),OR($F125=1,$F125=5)),0,new_ci(VALUE(LEFT(Options!$B$24,2)),$C125,$E125,$F125,2016,$I125+$J125,1,$H125,$G125*$H125,Options!$B$8)))","v":107.5028897756},{"$f":"IF(AND(OR(Calculations!$E$2=\"Orkney Health Board\",Calculations!$E$2=\"Orkney Islands Local Authority\"),$F125=1),0,IF(AND(OR(Calculations!$E$2=\"Shetland Health Board\",Calculations!$E$2=\"Western Isles Health Board\",Calculations!$E$2=\"Shetland Islands Local Authority\",Calculations!$E$2=\"Eilean Siar Local Authority\"),OR($F125=1,$F125=5)),0,new_yllv2(VALUE(LEFT(Options!$B$24,2)),$C125,$D125,$E125,$F125,2016,$I125,1,$H125,$G125*$H125,Options!$B$8)))","v":3858.9903387038999},{"$f":"IF(AND(OR(Calculations!$E$2=\"Orkney Health Board\",Calculations!$E$2=\"Orkney Islands Local Authority\"),$F125=1),0,IF(AND(OR(Calculations!$E$2=\"Shetland Health Board\",Calculations!$E$2=\"Western Isles Health Board\",Calculations!$E$2=\"Shetland Islands Local Authority\",Calculations!$E$2=\"Eilean Siar Local Authority\"),OR($F125=1,$F125=5)),0,new_yllv2(VALUE(LEFT(Options!$B$24,2)),$C125,$D125,$E125,$F125,2016,$I125+$J125,1,$H125,$G125*$H125,Options!$B$8)))","v":3852.9032470488},{"$f":"IF(AND(OR(Calculations!$E$2=\"Orkney Health Board\",Calculations!$E$2=\"Orkney Islands Local Authority\"),$F125=1),0,IF(AND(OR(Calculations!$E$2=\"Shetland Health Board\",Calculations!$E$2=\"Western Isles Health Board\",Calculations!$E$2=\"Shetland Islands Local Authority\",Calculations!$E$2=\"Eilean Siar Local Authority\"),OR($F125=1,$F125=5)),0,hosp_count(VALUE(LEFT(Options!$B$24,2)),$C125,$E125,$F125,2016,$I125,1,$H125,$G125*$H125, Options!$B$8)))","v":5994.6765736841999},{"$f":"IF(AND(OR(Calculations!$E$2=\"Orkney Health Board\",Calculations!$E$2=\"Orkney Islands Local Authority\"),$F125=1),0,IF(AND(OR(Calculations!$E$2=\"Shetland Health Board\",Calculations!$E$2=\"Western Isles Health Board\",Calculations!$E$2=\"Shetland Islands Local Authority\",Calculations!$E$2=\"Eilean Siar Local Authority\"),OR($F125=1,$F125=5)),0,hosp_count(VALUE(LEFT(Options!$B$24,2)),$C125,$E125,$F125,2016,$I125+$J125,1,$H125,$G125*$H125, Options!$B$8)))","v":5974.9414286410001},{"$f":"IF(AND(OR(Calculations!$E$2=\"Orkney Health Board\",Calculations!$E$2=\"Orkney Islands Local Authority\"),$F125=1),0,IF(AND(OR(Calculations!$E$2=\"Shetland Health Board\",Calculations!$E$2=\"Western Isles Health Board\",Calculations!$E$2=\"Shetland Islands Local Authority\",Calculations!$E$2=\"Eilean Siar Local Authority\"),OR($F125=1,$F125=5)),0,prem_mort(VALUE(LEFT(Options!$B$24,2)),$C125,$E125,$F125,2016,$I125,1,$H125,$G125*$H125,Options!$B$8)))","v":107.6727305168},{"$f":"IF(AND(OR(Calculations!$E$2=\"Orkney Health Board\",Calculations!$E$2=\"Orkney Islands Local Authority\"),$F125=1),0,IF(AND(OR(Calculations!$E$2=\"Shetland Health Board\",Calculations!$E$2=\"Western Isles Health Board\",Calculations!$E$2=\"Shetland Islands Local Authority\",Calculations!$E$2=\"Eilean Siar Local Authority\"),OR($F125=1,$F125=5)),0,prem_mort(VALUE(LEFT(Options!$B$24,2)),$C125,$E125,$F125,2016,$I125+$J125,1,$H125,$G125*$H125,Options!$B$8)))","v":107.5028897756},{"$f":"K125*100000/$H125","v":336.33013842943711},{"$f":"L125*100000/$H125","v":335.79961821578058},{"$f":"M125*100000/$H125","v":12054.071152320546},{"$f":"N125*100000/$H125","v":12035.057309454614},{"$f":"O125*100000/$H125","v":18725.172030000002},{"$f":"P125*100000/$H125","v":18663.526671584306},{"$f":"Q125*100000/$H125","v":336.33013842943711},{"$f":"R125*100000/$H125","v":335.79961821578058},{"$f":"S125*$AI125","v":2354310.9690060597},{"$f":"T125*$AI125","v":2350597.327510464},84378498.066243827,84245401.166182294,131076204.21000001,130644686.70109014,2354310.9690060597,2350597.327510464,7000]
[null,"Male 45-49",47.038155000000003,79.418149999999997,"male",2,{"$f":"HLOOKUP(Calculations!$E$2,'Prevalence Rates'!$C$3:$BC$249,'Prevalence Rates'!$BD126,FALSE)","v":0.10134370247467082},{"$f":"HLOOKUP(Calculations!$E$2,'Population 2016'!$C$3:$BC$249,'Population 2016'!BD126,FALSE)","v":36688},0,{"$f":"HLOOKUP(Results!E$4,Targeting!$C$3:$F$249,Targeting!$G126,FALSE)","v":1087},{"$f":"IF(AND(OR(Calculations!$E$2=\"Orkney Health Board\",Calculations!$E$2=\"Orkney Islands Local Authority\"),$F126=1),0,IF(AND(OR(Calculations!$E$2=\"Shetland Health Board\",Calculations!$E$2=\"Western Isles Health Board\",Calculations!$E$2=\"Shetland Islands Local Authority\",Calculations!$E$2=\"Eilean Siar Local Authority\"),OR($F126=1,$F126=5)),0,new_ci(VALUE(LEFT(Options!$B$24,2)),$C126,$E126,$F126,2016,$I126,1,$H126,$G126*$H126,Options!$B$8)))","v":179.44286861820001},{"$f":"IF(AND(OR(Calculations!$E$2=\"Orkney Health Board\",Calculations!$E$2=\"Orkney Islands Local Authority\"),$F126=1),0,IF(AND(OR(Calculations!$E$2=\"Shetland Health Board\",Calculations!$E$2=\"Western Isles Health Board\",Calculations!$E$2=\"Shetland Islands Local Authority\",Calculations!$E$2=\"Eilean Siar Local Authority\"),OR($F126=1,$F126=5)),0,new_ci(VALUE(LEFT(Options!$B$24,2)),$C126,$E126,$F126,2016,$I126+$J126,1,$H126,$G126*$H126,Options!$B$8)))","v":179.15999273840001},{"$f":"IF(AND(OR(Calculations!$E$2=\"Orkney Health Board\",Calculations!$E$2=\"Orkney Islands Local Authority\"),$F126=1),0,IF(AND(OR(Calculations!$E$2=\"Shetland Health Board\",Calculations!$E$2=\"Western Isles Health Board\",Calculations!$E$2=\"Shetland Islands Local Authority\",Calculations!$E$2=\"Eilean Siar Local Authority\"),OR($F126=1,$F126=5)),0,new_yllv2(VALUE(LEFT(Options!$B$24,2)),$C126,$D126,$E126,$F126,2016,$I126,1,$H126,$G126*$H126,Options!$B$8)))","v":5630.9163200248004},{"$f":"IF(AND(OR(Calculations!$E$2=\"Orkney Health Board\",Calculations!$E$2=\"Orkney Islands Local Authority\"),$F126=1),0,IF(AND(OR(Calculations!$E$2=\"Shetland Health Board\",Calculations!$E$2=\"Western Isles Health Board\",Calculations!$E$2=\"Shetland Islands Local Authority\",Calculations!$E$2=\"Eilean Siar Local Authority\"),OR($F126=1,$F126=5)),0,new_yllv2(VALUE(LEFT(Options!$B$24,2)),$C126,$D126,$E126,$F126,2016,$I126+$J126,1,$H126,$G126*$H126,Options!$B$8)))","v":5622.039676331},{"$f":"IF(AND(OR(Calculations!$E$2=\"Orkney Health Board\",Calculations!$E$2=\"Orkney Islands Local Authority\"),$F126=1),0,IF(AND(OR(Calculations!$E$2=\"Shetland Health Board\",Calculations!$E$2=\"Western Isles Health Board\",Calculations!$E$2=\"Shetland Islands Local Authority\",Calculations!$E$2=\"Eilean Siar Local Authority\"),OR($F126=1,$F126=5)),0,hosp_count(VALUE(LEFT(Options!$B$24,2)),$C126,$E126,$F126,2016,$I126,1,$H126,$G126*$H126, Options!$B$8)))","v":8195.4193310032006},{"$f":"IF(AND(OR(Calculations!$E$2=\"Orkney Health Board\",Calculations!$E$2=\"Orkney Islands Local Authority\"),$F126=1),0,IF(AND(OR(Calculations!$E$2=\"Shetland Health Board\",Calculations!$E$2=\"Western Isles Health Board\",Calculations!$E$2=\"Shetland Islands Local Authority\",Calculations!$E$2=\"Eilean Siar Local Authority\"),OR($F126=1,$F126=5)),0,hosp_count(VALUE(LEFT(Options!$B$24,2)),$C126,$E126,$F126,2016,$I126+$J126,1,$H126,$G126*$H126, Options!$B$8)))","v":8168.4243605372003},{"$f":"IF(AND(OR(Calculations!$E$2=\"Orkney Health Board\",Calculations!$E$2=\"Orkney Islands Local Authority\"),$F126=1),0,IF(AND(OR(Calculations!$E$2=\"Shetland Health Board\",Calculations!$E$2=\"Western Isles Health Board\",Calculations!$E$2=\"Shetland Islands Local Authority\",Calculations!$E$2=\"Eilean Siar Local Authority\"),OR($F126=1,$F126=5)),0,prem_mort(VALUE(LEFT(Options!$B$24,2)),$C126,$E126,$F126,2016,$I126,1,$H126,$G126*$H126,Options!$B$8)))","v":179.44286861820001},{"$f":"IF(AND(OR(Calculations!$E$2=\"Orkney Health Board\",Calculations!$E$2=\"Orkney Islands Local Authority\"),$F126=1),0,IF(AND(OR(Calculations!$E$2=\"Shetland Health Board\",Calculations!$E$2=\"Western Isles Health Board\",Calculations!$E$2=\"Shetland Islands Local Authority\",Calculations!$E$2=\"Eilean Siar Local Authority\"),OR($F126=1,$F126=5)),0,prem_mort(VALUE(LEFT(Options!$B$24,2)),$C126,$E126,$F126,2016,$I126+$J126,1,$H126,$G126*$H126,Options!$B$8)))","v":179.15999273840001},489.10507146260363,488.33404039031831,15348.114696971217,15323.919745777912,22338.146890000004,22264.567053361316,489.10507146260363,488.33404039031831,3423735.5002382253,3418338.2827322283,107436802.87879851,107267438.22044538,156367028.23000002,155851969.3735292,3423735.5002382253,3418338.2827322283,7000]
[null,"Male 50-54",51.998646000000001,79.988649999999993,"male",2,{"$f":"HLOOKUP(Calculations!$E$2,'Prevalence Rates'!$C$3:$BC$249,'Prevalence Rates'!$BD127,FALSE)","v":0.10134370247467082},{"$f":"HLOOKUP(Calculations!$E$2,'Population 2016'!$C$3:$BC$249,'Population 2016'!BD127,FALSE)","v":37819},0,{"$f":"HLOOKUP(Results!E$4,Targeting!$C$3:$F$249,Targeting!$G127,FALSE)","v":1120},{"$f":"IF(AND(OR(Calculations!$E$2=\"Orkney Health Board\",Calculations!$E$2=\"Orkney Islands Local Authority\"),$F127=1),0,IF(AND(OR(Calculations!$E$2=\"Shetland Health Board\",Calculations!$E$2=\"Western Isles Health Board\",Calculations!$E$2=\"Shetland Islands Local Authority\",Calculations!$E$2=\"Eilean Siar Local Authority\"),OR($F127=1,$F127=5)),0,new_ci(VALUE(LEFT(Options!$B$24,2)),$C127,$E127,$F127,2016,$I127,1,$H127,$G127*$H127,Options!$B$8)))","v":268.70164832500001},{"$f":"IF(AND(OR(Calculations!$E$2=\"Orkney Health Board\",Calculations!$E$2=\"Orkney Islands Local Authority\"),$F127=1),0,IF(AND(OR(Calculations!$E$2=\"Shetland Health Board\",Calculations!$E$2=\"Western Isles Health Board\",Calculations!$E$2=\"Shetland Islands Local Authority\",Calculations!$E$2=\"Eilean Siar Local Authority\"),OR($F127=1,$F127=5)),0,new_ci(VALUE(LEFT(Options!$B$24,2)),$C127,$E127,$F127,2016,$I127+$J127,1,$H127,$G127*$H127,Options!$B$8)))","v":268.278969061},{"$f":"IF(AND(OR(Calculations!$E$2=\"Orkney Health Board\",Calculations!$E$2=\"Orkney Islands Local Authority\"),$F127=1),0,IF(AND(OR(Calculations!$E$2=\"Shetland Health Board\",Calculations!$E$2=\"Western Isles Health Board\",Calculations!$E$2=\"Shetland Islands Local Authority\",Calculations!$E$2=\"Eilean Siar Local Authority\"),OR($F127=1,$F127=5)),0,new_yllv2(VALUE(LEFT(Options!$B$24,2)),$C127,$D127,$E127,$F127,2016,$I127,1,$H127,$G127*$H127,Options!$B$8)))","v":7252.2585630983003},{"$f":"IF(AND(OR(Calculations!$E$2=\"Orkney Health Board\",Calculations!$E$2=\"Orkney Islands Local Authority\"),$F127=1),0,IF(AND(OR(Calculations!$E$2=\"Shetland Health Board\",Calculations!$E$2=\"Western Isles Health Board\",Calculations!$E$2=\"Shetland Islands Local Authority\",Calculations!$E$2=\"Eilean Siar Local Authority\"),OR($F127=1,$F127=5)),0,new_yllv2(VALUE(LEFT(Options!$B$24,2)),$C127,$D127,$E127,$F127,2016,$I127+$J127,1,$H127,$G127*$H127,Options!$B$8)))","v":7240.8504480723004},{"$f":"IF(AND(OR(Calculations!$E$2=\"Orkney Health Board\",Calculations!$E$2=\"Orkney Islands Local Authority\"),$F127=1),0,IF(AND(OR(Calculations!$E$2=\"Shetland Health Board\",Calculations!$E$2=\"Western Isles Health Board\",Calculations!$E$2=\"Shetland Islands Local Authority\",Calculations!$E$2=\"Eilean Siar Local Authority\"),OR($F127=1,$F127=5)),0,hosp_count(VALUE(LEFT(Options!$B$24,2)),$C127,$E127,$F127,2016,$I127,1,$H127,$G127*$H127, Options!$B$8)))","v":10074.533773875301},{"$f":"IF(AND(OR(Calculations!$E$2=\"Orkney Health Board\",Calculations!$E$2=\"Orkney Islands Local Authority\"),$F127=1),0,IF(AND(OR(Calculations!$E$2=\"Shetland Health Board\",Calculations!$E$2=\"Western Isles Health Board\",Calculations!$E$2=\"Shetland Islands Local Authority\",Calculations!$E$2=\"Eilean Siar Local Authority\"),OR($F127=1,$F127=5)),0,hosp_count(VALUE(LEFT(Options!$B$24,2)),$C127,$E127,$F127,2016,$I127+$J127,1,$H127,$G127*$H127, Options!$B$8)))","v":10041.3642599574},{"$f":"IF(AND(OR(Calculations!$E$2=\"Orkney Health Board\",Calculations!$E$2=\"Orkney Islands Local Authority\"),$F127=1),0,IF(AND(OR(Calculations!$E$2=\"Shetland Health Board\",Calculations!$E$2=\"Western Isles Health Board\",Calculations!$E$2=\"Shetland Islands Local Authority\",Calculations!$E$2=\"Eilean Siar Local Authority\"),OR($F127=1,$F127=5)),0,prem_mort(VALUE(LEFT(Options!$B$24,2)),$C127,$E127,$F127,2016,$I127,1,$H127,$G127*$H127,Options!$B$8)))","v":268.70164832500001},{"$f":"IF(AND(OR(Calculations!$E$2=\"Orkney Health Board\",Calculations!$E$2=\"Orkney Islands Local Authority\"),$F127=1),0,IF(AND(OR(Calculations!$E$2=\"Shetland Health Board\",Calculations!$E$2=\"Western Isles Health Board\",Calculations!$E$2=\"Shetland Islands Local Authority\",Calculations!$E$2=\"Eilean Siar Local Authority\"),OR($F127=1,$F127=5)),0,prem_mort(VALUE(LEFT(Options!$B$24,2)),$C127,$E127,$F127,2016,$I127+$J127,1,$H127,$G127*$H127,Options!$B$8)))","v":268.278969061},710.49379498400276,709.37615764827206,19176.2303685933,19146.065332431583,26638.815870000002,26551.109918182392,710.49379498400276,709.37615764827206,4973456.5648880191,4965633.1035379041,134233612.58015311,134022457.32702108,186471711.09,185857769.42727673,4973456.5648880191,4965633.1035379041,7000]
[null,"Male 55-59",56.950867000000002,80.660870000000003,"male",2,{"$f":"HLOOKUP(Calculations!$E$2,'Prevalence Rates'!$C$3:$BC$249,'Prevalence Rates'!$BD128,FALSE)","v":0.1324616281184835},{"$f":"HLOOKUP(Calculations!$E$2,'Population 2016'!$C$3:$BC$249,'Population 2016'!BD128,FALSE)","v":35036},0,{"$f":"HLOOKUP(Results!E$4,Targeting!$C$3:$F$249,Targeting!$G128,FALSE)","v":1038},{"$f":"IF(AND(OR(Calculations!$E$2=\"Orkney Health Board\",Calculations!$E$2=\"Orkney Islands Local Authority\"),$F128=1),0,IF(AND(OR(Calculations!$E$2=\"Shetland Health Board\",Calculations!$E$2=\"Western Isles Health Board\",Calculations!$E$2=\"Shetland Islands Local Authority\",Calculations!$E$2=\"Eilean Siar Local Authority\"),OR($F128=1,$F128=5)),0,new_ci(VALUE(LEFT(Options!$B$24,2)),$C128,$E128,$F128,2016,$I128,1,$H128,$G128*$H128,Options!$B$8)))","v":361.19112984970002},{"$f":"IF(AND(OR(Calculations!$E$2=\"Orkney Health Board\",Calculations!$E$2=\"Orkney Islands Local Authority\"),$F128=1),0,IF(AND(OR(Calculations!$E$2=\"Shetland Health Board\",Calculations!$E$2=\"Western Isles Health Board\",Calculations!$E$2=\"Shetland Islands Local Authority\",Calculations!$E$2=\"Eilean Siar Local Authority\"),OR($F128=1,$F128=5)),0,new_ci(VALUE(LEFT(Options!$B$24,2)),$C128,$E128,$F128,2016,$I128+$J128,1,$H128,$G128*$H128,Options!$B$8)))","v":360.62962032429999},{"$f":"IF(AND(OR(Calculations!$E$2=\"Orkney Health Board\",Calculations!$E$2=\"Orkney Islands Local Authority\"),$F128=1),0,IF(AND(OR(Calculations!$E$2=\"Shetland Health Board\",Calculations!$E$2=\"Western Isles Health Board\",Calculations!$E$2=\"Shetland Islands Local Authority\",Calculations!$E$2=\"Eilean Siar Local Authority\"),OR($F128=1,$F128=5)),0,new_yllv2(VALUE(LEFT(Options!$B$24,2)),$C128,$D128,$E128,$F128,2016,$I128,1,$H128,$G128*$H128,Options!$B$8)))","v":8202.6516424600995},{"$f":"IF(AND(OR(Calculations!$E$2=\"Orkney Health Board\",Calculations!$E$2=\"Orkney Islands Local Authority\"),$F128=1),0,IF(AND(OR(Calculations!$E$2=\"Shetland Health Board\",Calculations!$E$2=\"Western Isles Health Board\",Calculations!$E$2=\"Shetland Islands Local Authority\",Calculations!$E$2=\"Eilean Siar Local Authority\"),OR($F128=1,$F128=5)),0,new_yllv2(VALUE(LEFT(Options!$B$24,2)),$C128,$D128,$E128,$F128,2016,$I128+$J128,1,$H128,$G128*$H128,Options!$B$8)))","v":8189.8997594537004},{"$f":"IF(AND(OR(Calculations!$E$2=\"Orkney Health Board\",Calculations!$E$2=\"Orkney Islands Local Authority\"),$F128=1),0,IF(AND(OR(Calculations!$E$2=\"Shetland Health Board\",Calculations!$E$2=\"Western Isles Health Board\",Calculations!$E$2=\"Shetland Islands Local Authority\",Calculations!$E$2=\"Eilean Siar Local Authority\"),OR($F128=1,$F128=5)),0,hosp_count(VALUE(LEFT(Options!$B$24,2)),$C128,$E128,$F128,2016,$I128,1,$H128,$G128*$H128, Options!$B$8)))","v":11126.785665237599},{"$f":"IF(AND(OR(Calculations!$E$2=\"Orkney Health Board\",Calculations!$E$2=\"Orkney Islands Local Authority\"),$F128=1),0,IF(AND(OR(Calculations!$E$2=\"Shetland Health Board\",Calculations!$E$2=\"Western Isles Health Board\",Calculations!$E$2=\"Shetland Islands Local Authority\",Calculations!$E$2=\"Eilean Siar Local Authority\"),OR($F128=1,$F128=5)),0,hosp_count(VALUE(LEFT(Options!$B$24,2)),$C128,$E128,$F128,2016,$I128+$J128,1,$H128,$G128*$H128, Options!$B$8)))","v":11090.5288211155},{"$f":"IF(AND(OR(Calculations!$E$2=\"Orkney Health Board\",Calculations!$E$2=\"Orkney Islands Local Authority\"),$F128=1),0,IF(AND(OR(Calculations!$E$2=\"Shetland Health Board\",Calculations!$E$2=\"Western Isles Health Board\",Calculations!$E$2=\"Shetland Islands Local Authority\",Calculations!$E$2=\"Eilean Siar Local Authority\"),OR($F128=1,$F128=5)),0,prem_mort(VALUE(LEFT(Options!$B$24,2)),$C128,$E128,$F128,2016,$I128,1,$H128,$G128*$H128,Options!$B$8)))","v":361.19112984970002},{"$f":"IF(AND(OR(Calculations!$E$2=\"Orkney Health Board\",Calculations!$E$2=\"Orkney Islands Local Authority\"),$F128=1),0,IF(AND(OR(Calculations!$E$2=\"Shetland Health Board\",Calculations!$E$2=\"Western Isles Health Board\",Calculations!$E$2=\"Shetland Islands Local Authority\",Calculations!$E$2=\"Eilean Siar Local Authority\"),OR($F128=1,$F128=5)),0,prem_mort(VALUE(LEFT(Options!$B$24,2)),$C128,$E128,$F128,2016,$I128+$J128,1,$H128,$G128*$H128,Options!$B$8)))","v":360.62962032429999},1030.9142877317618,1029.3116232569357,23412.066567131234,23375.670052099842,31758.150659999996,31654.666118037163,1030.9142877317618,1029.3116232569357,6700942.8702564519,6690525.5511700818,152178432.68635303,151941855.33864897,206427979.28999996,205755329.76724157,6700942.8702564519,6690525.5511700818,6500]
[null,"Male 60-64",61.942988999999997,81.612989999999996,"male",2,{"$f":"HLOOKUP(Calculations!$E$2,'Prevalence Rates'!$C$3:$BC$249,'Prevalence Rates'!$BD129,FALSE)","v":0.1324616281184835},{"$f":"HLOOKUP(Calculations!$E$2,'Population 2016'!$C$3:$BC$249,'Population 2016'!BD129,FALSE)","v":29980},0,{"$f":"HLOOKUP(Results!E$4,Targeting!$C$3:$F$249,Targeting!$G129,FALSE)","v":888},{"$f":"IF(AND(OR(Calculations!$E$2=\"Orkney Health Board\",Calculations!$E$2=\"Orkney Islands Local Authority\"),$F129=1),0,IF(AND(OR(Calculations!$E$2=\"Shetland Health Board\",Calculations!$E$2=\"Western Isles Health Board\",Calculations!$E$2=\"Shetland Islands Local Authority\",Calculations!$E$2=\"Eilean Siar Local Authority\"),OR($F129=1,$F129=5)),0,new_ci(VALUE(LEFT(Options!$B$24,2)),$C129,$E129,$F129,2016,$I129,1,$H129,$G129*$H129,Options!$B$8)))","v":449.46667898020002},{"$f":"IF(AND(OR(Calculations!$E$2=\"Orkney Health Board\",Calculations!$E$2=\"Orkney Islands Local Authority\"),$F129=1),0,IF(AND(OR(Calculations!$E$2=\"Shetland Health Board\",Calculations!$E$2=\"Western Isles Health Board\",Calculations!$E$2=\"Shetland Islands Local Authority\",Calculations!$E$2=\"Eilean Siar Local Authority\"),OR($F129=1,$F129=5)),0,new_ci(VALUE(LEFT(Options!$B$24,2)),$C129,$E129,$F129,2016,$I129+$J129,1,$H129,$G129*$H129,Options!$B$8)))","v":448.77055775380001},{"$f":"IF(AND(OR(Calculations!$E$2=\"Orkney Health Board\",Calculations!$E$2=\"Orkney Islands Local Authority\"),$F129=1),0,IF(AND(OR(Calculations!$E$2=\"Shetland Health Board\",Calculations!$E$2=\"Western Isles Health Board\",Calculations!$E$2=\"Shetland Islands Local Authority\",Calculations!$E$2=\"Eilean Siar Local Authority\"),OR($F129=1,$F129=5)),0,new_yllv2(VALUE(LEFT(Options!$B$24,2)),$C129,$D129,$E129,$F129,2016,$I129,1,$H129,$G129*$H129,Options!$B$8)))","v":8391.5433460269996},{"$f":"IF(AND(OR(Calculations!$E$2=\"Orkney Health Board\",Calculations!$E$2=\"Orkney Islands Local Authority\"),$F129=1),0,IF(AND(OR(Calculations!$E$2=\"Shetland Health Board\",Calculations!$E$2=\"Western Isles Health Board\",Calculations!$E$2=\"Shetland Islands Local Authority\",Calculations!$E$2=\"Eilean Siar Local Authority\"),OR($F129=1,$F129=5)),0,new_yllv2(VALUE(LEFT(Options!$B$24,2)),$C129,$D129,$E129,$F129,2016,$I129+$J129,1,$H129,$G129*$H129,Options!$B$8)))","v":8378.5467620340005},{"$f":"IF(AND(OR(Calculations!$E$2=\"Orkney Health Board\",Calculations!$E$2=\"Orkney Islands Local Authority\"),$F129=1),0,IF(AND(OR(Calculations!$E$2=\"Shetland Health Board\",Calculations!$E$2=\"Western Isles Health Board\",Calculations!$E$2=\"Shetland Islands Local Authority\",Calculations!$E$2=\"Eilean Siar Local Authority\"),OR($F129=1,$F129=5)),0,hosp_count(VALUE(LEFT(Options!$B$24,2)),$C129,$E129,$F129,2016,$I129,1,$H129,$G129*$H129, Options!$B$8)))","v":11366.904471358001},{"$f":"IF(AND(OR(Calculations!$E$2=\"Orkney Health Board\",Calculations!$E$2=\"Orkney Islands Local Authority\"),$F129=1),0,IF(AND(OR(Calculations!$E$2=\"Shetland Health Board\",Calculations!$E$2=\"Western Isles Health Board\",Calculations!$E$2=\"Shetland Islands Local Authority\",Calculations!$E$2=\"Eilean Siar Local Authority\"),OR($F129=1,$F129=5)),0,hosp_count(VALUE(LEFT(Options!$B$24,2)),$C129,$E129,$F129,2016,$I129+$J129,1,$H129,$G129*$H129, Options!$B$8)))","v":11329.873850890701},{"$f":"IF(AND(OR(Calculations!$E$2=\"Orkney Health Board\",Calculations!$E$2=\"Orkney Islands Local Authority\"),$F129=1),0,IF(AND(OR(Calculations!$E$2=\"Shetland Health Board\",Calculations!$E$2=\"Western Isles Health Board\",Calculations!$E$2=\"Shetland Islands Local Authority\",Calculations!$E$2=\"Eilean Siar Local Authority\"),OR($F129=1,$F129=5)),0,prem_mort(VALUE(LEFT(Options!$B$24,2)),$C129,$E129,$F129,2016,$I129,1,$H129,$G129*$H129,Options!$B$8)))","v":449.46667898020002},{"$f":"IF(AND(OR(Calculations!$E$2=\"Orkney Health Board\",Calculations!$E$2=\"Orkney Islands Local Authority\"),$F129=1),0,IF(AND(OR(Calculations!$E$2=\"Shetland Health Board\",Calculations!$E$2=\"Western Isles Health Board\",Calculations!$E$2=\"Shetland Islands Local Authority\",Calculations!$E$2=\"Eilean Siar Local Authority\"),OR($F129=1,$F129=5)),0,prem_mort(VALUE(LEFT(Options!$B$24,2)),$C129,$E129,$F129,2016,$I129+$J129,1,$H129,$G129*$H129,Options!$B$8)))","v":448.77055775380001},1499.2217444302869,1496.8997923742495,27990.471467735155,27947.120620527017,37914.958210000004,37791.440463277853,1499.2217444302869,1496.8997923742495,8995330.4665817209,8981398.7542454973,167942828.80641094,167682723.72316211,227489749.26000002,226748642.77966711,8995330.4665817209,8981398.7542454973,6000]
[null,"Male 65-69",67.054419999999993,82.954419999999999,"male",2,{"$f":"HLOOKUP(Calculations!$E$2,'Prevalence Rates'!$C$3:$BC$249,'Prevalence Rates'!$BD130,FALSE)","v":0.1324616281184835},{"$f":"HLOOKUP(Calculations!$E$2,'Population 2016'!$C$3:$BC$249,'Population 2016'!BD130,FALSE)","v":29727},0,{"$f":"HLOOKUP(Results!E$4,Targeting!$C$3:$F$249,Targeting!$G130,FALSE)","v":880},{"$f":"IF(AND(OR(Calculations!$E$2=\"Orkney Health Board\",Calculations!$E$2=\"Orkney Islands Local Authority\"),$F130=1),0,IF(AND(OR(Calculations!$E$2=\"Shetland Health Board\",Calculations!$E$2=\"Western Isles Health Board\",Calculations!$E$2=\"Shetland Islands Local Authority\",Calculations!$E$2=\"Eilean Siar Local Authority\"),OR($F130=1,$F130=5)),0,new_ci(VALUE(LEFT(Options!$B$24,2)),$C130,$E130,$F130,2016,$I130,1,$H130,$G130*$H130,Options!$B$8)))","v":653.21224552690001},{"$f":"IF(AND(OR(Calculations!$E$2=\"Orkney Health Board\",Calculations!$E$2=\"Orkney Islands Local Authority\"),$F130=1),0,IF(AND(OR(Calculations!$E$2=\"Shetland Health Board\",Calculations!$E$2=\"Western Isles Health Board\",Calculations!$E$2=\"Shetland Islands Local Authority\",Calculations!$E$2=\"Eilean Siar Local Authority\"),OR($F130=1,$F130=5)),0,new_ci(VALUE(LEFT(Options!$B$24,2)),$C130,$E130,$F130,2016,$I130+$J130,1,$H130,$G130*$H130,Options!$B$8)))","v":652.20648692689997},{"$f":"IF(AND(OR(Calculations!$E$2=\"Orkney Health Board\",Calculations!$E$2=\"Orkney Islands Local Authority\"),$F130=1),0,IF(AND(OR(Calculations!$E$2=\"Shetland Health Board\",Calculations!$E$2=\"Western Isles Health Board\",Calculations!$E$2=\"Shetland Islands Local Authority\",Calculations!$E$2=\"Eilean Siar Local Authority\"),OR($F130=1,$F130=5)),0,new_yllv2(VALUE(LEFT(Options!$B$24,2)),$C130,$D130,$E130,$F130,2016,$I130,1,$H130,$G130*$H130,Options!$B$8)))","v":9732.8624583508008},{"$f":"IF(AND(OR(Calculations!$E$2=\"Orkney Health Board\",Calculations!$E$2=\"Orkney Islands Local Authority\"),$F130=1),0,IF(AND(OR(Calculations!$E$2=\"Shetland Health Board\",Calculations!$E$2=\"Western Isles Health Board\",Calculations!$E$2=\"Shetland Islands Local Authority\",Calculations!$E$2=\"Eilean Siar Local Authority\"),OR($F130=1,$F130=5)),0,new_yllv2(VALUE(LEFT(Options!$B$24,2)),$C130,$D130,$E130,$F130,2016,$I130+$J130,1,$H130,$G130*$H130,Options!$B$8)))","v":9717.8766552108009},{"$f":"IF(AND(OR(Calculations!$E$2=\"Orkney Health Board\",Calculations!$E$2=\"Orkney Islands Local Authority\"),$F130=1),0,IF(AND(OR(Calculations!$E$2=\"Shetland Health Board\",Calculations!$E$2=\"Western Isles Health Board\",Calculations!$E$2=\"Shetland Islands Local Authority\",Calculations!$E$2=\"Eilean Siar Local Authority\"),OR($F130=1,$F130=5)),0,hosp_count(VALUE(LEFT(Options!$B$24,2)),$C130,$E130,$F130,2016,$I130,1,$H130,$G130*$H130, Options!$B$8)))","v":13513.138667486101},{"$f":"IF(AND(OR(Calculations!$E$2=\"Orkney Health Board\",Calculations!$E$2=\"Orkney Islands Local Authority\"),$F130=1),0,IF(AND(OR(Calculations!$E$2=\"Shetland Health Board\",Calculations!$E$2=\"Western Isles Health Board\",Calculations!$E$2=\"Shetland Islands Local Authority\",Calculations!$E$2=\"Eilean Siar Local Authority\"),OR($F130=1,$F130=5)),0,hosp_count(VALUE(LEFT(Options!$B$24,2)),$C130,$E130,$F130,2016,$I130+$J130,1,$H130,$G130*$H130, Options!$B$8)))","v":13469.1414446994},{"$f":"IF(AND(OR(Calculations!$E$2=\"Orkney Health Board\",Calculations!$E$2=\"Orkney Islands Local Authority\"),$F130=1),0,IF(AND(OR(Calculations!$E$2=\"Shetland Health Board\",Calculations!$E$2=\"Western Isles Health Board\",Calculations!$E$2=\"Shetland Islands Local Authority\",Calculations!$E$2=\"Eilean Siar Local Authority\"),OR($F130=1,$F130=5)),0,prem_mort(VALUE(LEFT(Options!$B$24,2)),$C130,$E130,$F130,2016,$I130,1,$H130,$G130*$H130,Options!$B$8)))","v":653.21224552690001},{"$f":"IF(AND(OR(Calculations!$E$2=\"Orkney Health Board\",Calculations!$E$2=\"Orkney Islands Local Authority\"),$F130=1),0,IF(AND(OR(Calculations!$E$2=\"Shetland Health Board\",Calculations!$E$2=\"Western Isles Health Board\",Calculations!$E$2=\"Shetland Islands Local Authority\",Calculations!$E$2=\"Eilean Siar Local Authority\"),OR($F130=1,$F130=5)),0,prem_mort(VALUE(LEFT(Options!$B$24,2)),$C130,$E130,$F130,2016,$I130+$J130,1,$H130,$G130*$H130,Options!$B$8)))","v":652.20648692689997},2197.3702207652977,2193.9869039152959,32740.816289402901,32690.404868337879,45457.458429999999,45309.454182054695,2197.3702207652977,2193.9869039152959,12085536.214209137,12066927.971534127,180074489.59171596,179797226.77585834,250016021.36499998,249201998.00130081,12085536.214209137,12066927.971534127,5500]
[null,"Male 70-74",71.891098,84.341099999999997,"male",2,{"$f":"HLOOKUP(Calculations!$E$2,'Prevalence Rates'!$C$3:$BC$249,'Prevalence Rates'!$BD131,FALSE)","v":0.1324616281184835},{"$f":"HLOOKUP(Calculations!$E$2,'Population 2016'!$C$3:$BC$249,'Population 2016'!BD131,FALSE)","v":22052},0,{"$f":"HLOOKUP(Results!E$4,Targeting!$C$3:$F$249,Targeting!$G131,FALSE)","v":653},{"$f":"IF(AND(OR(Calculations!$E$2=\"Orkney Health Board\",Calculations!$E$2=\"Orkney Islands Local Authority\"),$F131=1),0,IF(AND(OR(Calculations!$E$2=\"Shetland Health Board\",Calculations!$E$2=\"Western Isles Health Board\",Calculations!$E$2=\"Shetland Islands Local Authority\",Calculations!$E$2=\"Eilean Siar Local Authority\"),OR($F131=1,$F131=5)),0,new_ci(VALUE(LEFT(Options!$B$24,2)),$C131,$E131,$F131,2016,$I131,1,$H131,$G131*$H131,Options!$B$8)))","v":694.69884087629998},{"$f":"IF(AND(OR(Calculations!$E$2=\"Orkney Health Board\",Calculations!$E$2=\"Orkney Islands Local Authority\"),$F131=1),0,IF(AND(OR(Calculations!$E$2=\"Shetland Health Board\",Calculations!$E$2=\"Western Isles Health Board\",Calculations!$E$2=\"Shetland Islands Local Authority\",Calculations!$E$2=\"Eilean Siar Local Authority\"),OR($F131=1,$F131=5)),0,new_ci(VALUE(LEFT(Options!$B$24,2)),$C131,$E131,$F131,2016,$I131+$J131,1,$H131,$G131*$H131,Options!$B$8)))","v":693.63664959259995},{"$f":"IF(AND(OR(Calculations!$E$2=\"Orkney Health Board\",Calculations!$E$2=\"Orkney Islands Local Authority\"),$F131=1),0,IF(AND(OR(Calculations!$E$2=\"Shetland Health Board\",Calculations!$E$2=\"Western Isles Health Board\",Calculations!$E$2=\"Shetland Islands Local Authority\",Calculations!$E$2=\"Eilean Siar Local Authority\"),OR($F131=1,$F131=5)),0,new_yllv2(VALUE(LEFT(Options!$B$24,2)),$C131,$D131,$E131,$F131,2016,$I131,1,$H131,$G131*$H131,Options!$B$8)))","v":7954.3031174313001},{"$f":"IF(AND(OR(Calculations!$E$2=\"Orkney Health Board\",Calculations!$E$2=\"Orkney Islands Local Authority\"),$F131=1),0,IF(AND(OR(Calculations!$E$2=\"Shetland Health Board\",Calculations!$E$2=\"Western Isles Health Board\",Calculations!$E$2=\"Shetland Islands Local Authority\",Calculations!$E$2=\"Eilean Siar Local Authority\"),OR($F131=1,$F131=5)),0,new_yllv2(VALUE(LEFT(Options!$B$24,2)),$C131,$D131,$E131,$F131,2016,$I131+$J131,1,$H131,$G131*$H131,Options!$B$8)))","v":7942.1410251085999},{"$f":"IF(AND(OR(Calculations!$E$2=\"Orkney Health Board\",Calculations!$E$2=\"Orkney Islands Local Authority\"),$F131=1),0,IF(AND(OR(Calculations!$E$2=\"Shetland Health Board\",Calculations!$E$2=\"Western Isles Health Board\",Calculations!$E$2=\"Shetland Islands Local Authority\",Calculations!$E$2=\"Eilean Siar Local Authority\"),OR($F131=1,$F131=5)),0,hosp_count(VALUE(LEFT(Options!$B$24,2)),$C131,$E131,$F131,2016,$I131,1,$H131,$G131*$H131, Options!$B$8)))","v":11901.790057320401},{"$f":"IF(AND(OR(Calculations!$E$2=\"Orkney Health Board\",Calculations!$E$2=\"Orkney Islands Local Authority\"),$F131=1),0,IF(AND(OR(Calculations!$E$2=\"Shetland Health Board\",Calculations!$E$2=\"Western Isles Health Board\",Calculations!$E$2=\"Shetland Islands Local Authority\",Calculations!$E$2=\"Eilean Siar Local Authority\"),OR($F131=1,$F131=5)),0,hosp_count(VALUE(LEFT(Options!$B$24,2)),$C131,$E131,$F131,2016,$I131+$J131,1,$H131,$G131*$H131, Options!$B$8)))","v":11863.0272765564},{"$f":"IF(AND(OR(Calculations!$E$2=\"Orkney Health Board\",Calculations!$E$2=\"Orkney Islands Local Authority\"),$F131=1),0,IF(AND(OR(Calculations!$E$2=\"Shetland Health Board\",Calculations!$E$2=\"Western Isles Health Board\",Calculations!$E$2=\"Shetland Islands Local Authority\",Calculations!$E$2=\"Eilean Siar Local Authority\"),OR($F131=1,$F131=5)),0,prem_mort(VALUE(LEFT(Options!$B$24,2)),$C131,$E131,$F131,2016,$I131,1,$H131,$G131*$H131,Options!$B$8)))","v":694.69884087629998},{"$f":"IF(AND(OR(Calculations!$E$2=\"Orkney Health Board\",Calculations!$E$2=\"Orkney Islands Local Authority\"),$F131=1),0,IF(AND(OR(Calculations!$E$2=\"Shetland Health Board\",Calculations!$E$2=\"Western Isles Health Board\",Calculations!$E$2=\"Shetland Islands Local Authority\",Calculations!$E$2=\"Eilean Siar Local Authority\"),OR($F131=1,$F131=5)),0,prem_mort(VALUE(LEFT(Options!$B$24,2)),$C131,$E131,$F131,2016,$I131+$J131,1,$H131,$G131*$H131,Options!$B$8)))","v":693.63664959259995},3150.275897316797,3145.4591401804828,36070.665324829039,36015.513445984943,53971.476770000008,53795.697789571925,3150.275897316797,3145.4591401804828,15751379.486583985,15727295.700902414,180353326.62414518,180077567.22992471,269857383.85000002,268978488.94785964,15751379.486583985,15727295.700902414,5000]
[null,"Male 75-79",76.907700000000006,86.357700000000008,"male",2,{"$f":"HLOOKUP(Calculations!$E$2,'Prevalence Rates'!$C$3:$BC$249,'Prevalence Rates'!$BD132,FALSE)","v":0.1324616281184835},{"$f":"HLOOKUP(Calculations!$E$2,'Population 2016'!$C$3:$BC$249,'Population 2016'!BD132,FALSE)","v":16695},0,{"$f":"HLOOKUP(Results!E$4,Targeting!$C$3:$F$249,Targeting!$G132,FALSE)","v":494},{"$f":"IF(AND(OR(Calculations!$E$2=\"Orkney Health Board\",Calculations!$E$2=\"Orkney Islands Local Authority\"),$F132=1),0,IF(AND(OR(Calculations!$E$2=\"Shetland Health Board\",Calculations!$E$2=\"Western Isles Health Board\",Calculations!$E$2=\"Shetland Islands Local Authority\",Calculations!$E$2=\"Eilean Siar Local Authority\"),OR($F132=1,$F132=5)),0,new_ci(VALUE(LEFT(Options!$B$24,2)),$C132,$E132,$F132,2016,$I132,1,$H132,$G132*$H132,Options!$B$8)))","v":762.43948844559998},{"$f":"IF(AND(OR(Calculations!$E$2=\"Orkney Health Board\",Calculations!$E$2=\"Orkney Islands Local Authority\"),$F132=1),0,IF(AND(OR(Calculations!$E$2=\"Shetland Health Board\",Calculations!$E$2=\"Western Isles Health Board\",Calculations!$E$2=\"Shetland Islands Local Authority\",Calculations!$E$2=\"Eilean Siar Local Authority\"),OR($F132=1,$F132=5)),0,new_ci(VALUE(LEFT(Options!$B$24,2)),$C132,$E132,$F132,2016,$I132+$J132,1,$H132,$G132*$H132,Options!$B$8)))","v":761.2873274044},{"$f":"IF(AND(OR(Calculations!$E$2=\"Orkney Health Board\",Calculations!$E$2=\"Orkney Islands Local Authority\"),$F132=1),0,IF(AND(OR(Calculations!$E$2=\"Shetland Health Board\",Calculations!$E$2=\"Western Isles Health Board\",Calculations!$E$2=\"Shetland Islands Local Authority\",Calculations!$E$2=\"Eilean Siar Local Authority\"),OR($F132=1,$F132=5)),0,new_yllv2(VALUE(LEFT(Options!$B$24,2)),$C132,$D132,$E132,$F132,2016,$I132,1,$H132,$G132*$H132,Options!$B$8)))","v":6442.6136773652997},{"$f":"IF(AND(OR(Calculations!$E$2=\"Orkney Health Board\",Calculations!$E$2=\"Orkney Islands Local Authority\"),$F132=1),0,IF(AND(OR(Calculations!$E$2=\"Shetland Health Board\",Calculations!$E$2=\"Western Isles Health Board\",Calculations!$E$2=\"Shetland Islands Local Authority\",Calculations!$E$2=\"Eilean Siar Local Authority\"),OR($F132=1,$F132=5)),0,new_yllv2(VALUE(LEFT(Options!$B$24,2)),$C132,$D132,$E132,$F132,2016,$I132+$J132,1,$H132,$G132*$H132,Options!$B$8)))","v":6432.8779165672004},{"$f":"IF(AND(OR(Calculations!$E$2=\"Orkney Health Board\",Calculations!$E$2=\"Orkney Islands Local Authority\"),$F132=1),0,IF(AND(OR(Calculations!$E$2=\"Shetland Health Board\",Calculations!$E$2=\"Western Isles Health Board\",Calculations!$E$2=\"Shetland Islands Local Authority\",Calculations!$E$2=\"Eilean Siar Local Authority\"),OR($F132=1,$F132=5)),0,hosp_count(VALUE(LEFT(Options!$B$24,2)),$C132,$E132,$F132,2016,$I132,1,$H132,$G132*$H132, Options!$B$8)))","v":10766.7212647995},{"$f":"IF(AND(OR(Calculations!$E$2=\"Orkney Health Board\",Calculations!$E$2=\"Orkney Islands Local Authority\"),$F132=1),0,IF(AND(OR(Calculations!$E$2=\"Shetland Health Board\",Calculations!$E$2=\"Western Isles Health Board\",Calculations!$E$2=\"Shetland Islands Local Authority\",Calculations!$E$2=\"Eilean Siar Local Authority\"),OR($F132=1,$F132=5)),0,hosp_count(VALUE(LEFT(Options!$B$24,2)),$C132,$E132,$F132,2016,$I132+$J132,1,$H132,$G132*$H132, Options!$B$8)))","v":10731.681479442001},{"$f":"IF(AND(OR(Calculations!$E$2=\"Orkney Health Board\",Calculations!$E$2=\"Orkney Islands Local Authority\"),$F132=1),0,IF(AND(OR(Calculations!$E$2=\"Shetland Health Board\",Calculations!$E$2=\"Western Isles Health Board\",Calculations!$E$2=\"Shetland Islands Local Authority\",Calculations!$E$2=\"Eilean Siar Local Authority\"),OR($F132=1,$F132=5)),0,prem_mort(VALUE(LEFT(Options!$B$24,2)),$C132,$E132,$F132,2016,$I132,1,$H132,$G132*$H132,Options!$B$8)))","v":0},{"$f":"IF(AND(OR(Calculations!$E$2=\"Orkney Health Board\",Calculations!$E$2=\"Orkney Islands Local Authority\"),$F132=1),0,IF(AND(OR(Calculations!$E$2=\"Shetland Health Board\",Calculations!$E$2=\"Western Isles Health Board\",Calculations!$E$2=\"Shetland Islands Local Authority\",Calculations!$E$2=\"Eilean Siar Local Authority\"),OR($F132=1,$F132=5)),0,prem_mort(VALUE(LEFT(Options!$B$24,2)),$C132,$E132,$F132,2016,$I132+$J132,1,$H132,$G132*$H132,Options!$B$8)))","v":0},4566.8732461551363,4559.9720120059892,38590.078930010779,38531.76350145074,64490.69341,64280.811497106923,0,0,18267492.984620545,18239888.048023958,154360315.72004312,154127054.00580296,257962773.63999999,257123245.9884277,0,0,4000]
[null,"Male 80-84",81.797089,88.627089999999995,"male",2,{"$f":"HLOOKUP(Calculations!$E$2,'Prevalence Rates'!$C$3:$BC$249,'Prevalence Rates'!$BD133,FALSE)","v":0.1324616281184835},{"$f":"HLOOKUP(Calculations!$E$2,'Population 2016'!$C$3:$BC$249,'Population 2016'!BD133,FALSE)","v":11333},0,{"$f":"HLOOKUP(Results!E$4,Targeting!$C$3:$F$249,Targeting!$G133,FALSE)","v":336},{"$f":"IF(AND(OR(Calculations!$E$2=\"Orkney Health Board\",Calculations!$E$2=\"Orkney Islands Local Authority\"),$F133=1),0,IF(AND(OR(Calculations!$E$2=\"Shetland Health Board\",Calculations!$E$2=\"Western Isles Health Board\",Calculations!$E$2=\"Shetland Islands Local Authority\",Calculations!$E$2=\"Eilean Siar Local Authority\"),OR($F133=1,$F133=5)),0,new_ci(VALUE(LEFT(Options!$B$24,2)),$C133,$E133,$F133,2016,$I133,1,$H133,$G133*$H133,Options!$B$8)))","v":740.8658052536},{"$f":"IF(AND(OR(Calculations!$E$2=\"Orkney Health Board\",Calculations!$E$2=\"Orkney Islands Local Authority\"),$F133=1),0,IF(AND(OR(Calculations!$E$2=\"Shetland Health Board\",Calculations!$E$2=\"Western Isles Health Board\",Calculations!$E$2=\"Shetland Islands Local Authority\",Calculations!$E$2=\"Eilean Siar Local Authority\"),OR($F133=1,$F133=5)),0,new_ci(VALUE(LEFT(Options!$B$24,2)),$C133,$E133,$F133,2016,$I133+$J133,1,$H133,$G133*$H133,Options!$B$8)))","v":739.76140527439998},{"$f":"IF(AND(OR(Calculations!$E$2=\"Orkney Health Board\",Calculations!$E$2=\"Orkney Islands Local Authority\"),$F133=1),0,IF(AND(OR(Calculations!$E$2=\"Shetland Health Board\",Calculations!$E$2=\"Western Isles Health Board\",Calculations!$E$2=\"Shetland Islands Local Authority\",Calculations!$E$2=\"Eilean Siar Local Authority\"),OR($F133=1,$F133=5)),0,new_yllv2(VALUE(LEFT(Options!$B$24,2)),$C133,$D133,$E133,$F133,2016,$I133,1,$H133,$G133*$H133,Options!$B$8)))","v":4319.2483854943002},{"$f":"IF(AND(OR(Calculations!$E$2=\"Orkney Health Board\",Calculations!$E$2=\"Orkney Islands Local Authority\"),$F133=1),0,IF(AND(OR(Calculations!$E$2=\"Shetland Health Board\",Calculations!$E$2=\"Western Isles Health Board\",Calculations!$E$2=\"Shetland Islands Local Authority\",Calculations!$E$2=\"Eilean Siar Local Authority\"),OR($F133=1,$F133=5)),0,new_yllv2(VALUE(LEFT(Options!$B$24,2)),$C133,$D133,$E133,$F133,2016,$I133+$J133,1,$H133,$G133*$H133,Options!$B$8)))","v":4312.8097325112003},{"$f":"IF(AND(OR(Calculations!$E$2=\"Orkney Health Board\",Calculations!$E$2=\"Orkney Islands Local Authority\"),$F133=1),0,IF(AND(OR(Calculations!$E$2=\"Shetland Health Board\",Calculations!$E$2=\"Western Isles Health Board\",Calculations!$E$2=\"Shetland Islands Local Authority\",Calculations!$E$2=\"Eilean Siar Local Authority\"),OR($F133=1,$F133=5)),0,hosp_count(VALUE(LEFT(Options!$B$24,2)),$C133,$E133,$F133,2016,$I133,1,$H133,$G133*$H133, Options!$B$8)))","v":8693.8800865902995},{"$f":"IF(AND(OR(Calculations!$E$2=\"Orkney Health Board\",Calculations!$E$2=\"Orkney Islands Local Authority\"),$F133=1),0,IF(AND(OR(Calculations!$E$2=\"Shetland Health Board\",Calculations!$E$2=\"Western Isles Health Board\",Calculations!$E$2=\"Shetland Islands Local Authority\",Calculations!$E$2=\"Eilean Siar Local Authority\"),OR($F133=1,$F133=5)),0,hosp_count(VALUE(LEFT(Options!$B$24,2)),$C133,$E133,$F133,2016,$I133+$J133,1,$H133,$G133*$H133, Options!$B$8)))","v":8665.5305818518991},{"$f":"IF(AND(OR(Calculations!$E$2=\"Orkney Health Board\",Calculations!$E$2=\"Orkney Islands Local Authority\"),$F133=1),0,IF(AND(OR(Calculations!$E$2=\"Shetland Health Board\",Calculations!$E$2=\"Western Isles Health Board\",Calculations!$E$2=\"Shetland Islands Local Authority\",Calculations!$E$2=\"Eilean Siar Local Authority\"),OR($F133=1,$F133=5)),0,prem_mort(VALUE(LEFT(Options!$B$24,2)),$C133,$E133,$F133,2016,$I133,1,$H133,$G133*$H133,Options!$B$8)))","v":0},{"$f":"IF(AND(OR(Calculations!$E$2=\"Orkney Health Board\",Calculations!$E$2=\"Orkney Islands Local Authority\"),$F133=1),0,IF(AND(OR(Calculations!$E$2=\"Shetland Health Board\",Calculations!$E$2=\"Western Isles Health Board\",Calculations!$E$2=\"Shetland Islands Local Authority\",Calculations!$E$2=\"Eilean Siar Local Authority\"),OR($F133=1,$F133=5)),0,prem_mort(VALUE(LEFT(Options!$B$24,2)),$C133,$E133,$F133,2016,$I133+$J133,1,$H133,$G133*$H133,Options!$B$8)))","v":0},6537.2434946933736,6527.4985023771287,38112.136111305925,38055.322796357541,76712.962910000002,76462.812863777464,0,0,16343108.736733435,16318746.255942822,95280340.278264806,95138306.990893856,191782407.27500001,191157032.15944365,0,0,2500]
[null,"Male 85-89",86.630752999999999,91.420750000000012,"male",2,{"$f":"HLOOKUP(Calculations!$E$2,'Prevalence Rates'!$C$3:$BC$249,'Prevalence Rates'!$BD134,FALSE)","v":0.1324616281184835},{"$f":"HLOOKUP(Calculations!$E$2,'Population 2016'!$C$3:$BC$249,'Population 2016'!BD134,FALSE)","v":5568},0,{"$f":"HLOOKUP(Results!E$4,Targeting!$C$3:$F$249,Targeting!$G134,FALSE)","v":165},{"$f":"IF(AND(OR(Calculations!$E$2=\"Orkney Health Board\",Calculations!$E$2=\"Orkney Islands Local Authority\"),$F134=1),0,IF(AND(OR(Calculations!$E$2=\"Shetland Health Board\",Calculations!$E$2=\"Western Isles Health Board\",Calculations!$E$2=\"Shetland Islands Local Authority\",Calculations!$E$2=\"Eilean Siar Local Authority\"),OR($F134=1,$F134=5)),0,new_ci(VALUE(LEFT(Options!$B$24,2)),$C134,$E134,$F134,2016,$I134,1,$H134,$G134*$H134,Options!$B$8)))","v":516.5764892615},{"$f":"IF(AND(OR(Calculations!$E$2=\"Orkney Health Board\",Calculations!$E$2=\"Orkney Islands Local Authority\"),$F134=1),0,IF(AND(OR(Calculations!$E$2=\"Shetland Health Board\",Calculations!$E$2=\"Western Isles Health Board\",Calculations!$E$2=\"Shetland Islands Local Authority\",Calculations!$E$2=\"Eilean Siar Local Authority\"),OR($F134=1,$F134=5)),0,new_ci(VALUE(LEFT(Options!$B$24,2)),$C134,$E134,$F134,2016,$I134+$J134,1,$H134,$G134*$H134,Options!$B$8)))","v":515.82379930699994},{"$f":"IF(AND(OR(Calculations!$E$2=\"Orkney Health Board\",Calculations!$E$2=\"Orkney Islands Local Authority\"),$F134=1),0,IF(AND(OR(Calculations!$E$2=\"Shetland Health Board\",Calculations!$E$2=\"Western Isles Health Board\",Calculations!$E$2=\"Shetland Islands Local Authority\",Calculations!$E$2=\"Eilean Siar Local Authority\"),OR($F134=1,$F134=5)),0,new_yllv2(VALUE(LEFT(Options!$B$24,2)),$C134,$D134,$E134,$F134,2016,$I134,1,$H134,$G134*$H134,Options!$B$8)))","v":1957.8233445716},{"$f":"IF(AND(OR(Calculations!$E$2=\"Orkney Health Board\",Calculations!$E$2=\"Orkney Islands Local Authority\"),$F134=1),0,IF(AND(OR(Calculations!$E$2=\"Shetland Health Board\",Calculations!$E$2=\"Western Isles Health Board\",Calculations!$E$2=\"Shetland Islands Local Authority\",Calculations!$E$2=\"Eilean Siar Local Authority\"),OR($F134=1,$F134=5)),0,new_yllv2(VALUE(LEFT(Options!$B$24,2)),$C134,$D134,$E134,$F134,2016,$I134+$J134,1,$H134,$G134*$H134,Options!$B$8)))","v":1954.9706519020999},{"$f":"IF(AND(OR(Calculations!$E$2=\"Orkney Health Board\",Calculations!$E$2=\"Orkney Islands Local Authority\"),$F134=1),0,IF(AND(OR(Calculations!$E$2=\"Shetland Health Board\",Calculations!$E$2=\"Western Isles Health Board\",Calculations!$E$2=\"Shetland Islands Local Authority\",Calculations!$E$2=\"Eilean Siar Local Authority\"),OR($F134=1,$F134=5)),0,hosp_count(VALUE(LEFT(Options!$B$24,2)),$C134,$E134,$F134,2016,$I134,1,$H134,$G134*$H134, Options!$B$8)))","v":5070.8489366592003},{"$f":"IF(AND(OR(Calculations!$E$2=\"Orkney Health Board\",Calculations!$E$2=\"Orkney Islands Local Authority\"),$F134=1),0,IF(AND(OR(Calculations!$E$2=\"Shetland Health Board\",Calculations!$E$2=\"Western Isles Health Board\",Calculations!$E$2=\"Shetland Islands Local Authority\",Calculations!$E$2=\"Eilean Siar Local Authority\"),OR($F134=1,$F134=5)),0,hosp_count(VALUE(LEFT(Options!$B$24,2)),$C134,$E134,$F134,2016,$I134+$J134,1,$H134,$G134*$H134, Options!$B$8)))","v":5054.3216015814996},{"$f":"IF(AND(OR(Calculations!$E$2=\"Orkney Health Board\",Calculations!$E$2=\"Orkney Islands Local Authority\"),$F134=1),0,IF(AND(OR(Calculations!$E$2=\"Shetland Health Board\",Calculations!$E$2=\"Western Isles Health Board\",Calculations!$E$2=\"Shetland Islands Local Authority\",Calculations!$E$2=\"Eilean Siar Local Authority\"),OR($F134=1,$F134=5)),0,prem_mort(VALUE(LEFT(Options!$B$24,2)),$C134,$E134,$F134,2016,$I134,1,$H134,$G134*$H134,Options!$B$8)))","v":0},{"$f":"IF(AND(OR(Calculations!$E$2=\"Orkney Health Board\",Calculations!$E$2=\"Orkney Islands Local Authority\"),$F134=1),0,IF(AND(OR(Calculations!$E$2=\"Shetland Health Board\",Calculations!$E$2=\"Western Isles Health Board\",Calculations!$E$2=\"Shetland Islands Local Authority\",Calculations!$E$2=\"Eilean Siar Local Authority\"),OR($F134=1,$F134=5)),0,prem_mort(VALUE(LEFT(Options!$B$24,2)),$C134,$E134,$F134,2016,$I134+$J134,1,$H134,$G134*$H134,Options!$B$8)))","v":0},9277.5949939206184,9264.0768553699709,35162.057194173853,35110.823489621049,91071.281190000009,90774.454051391876,0,0,13916392.490880927,13896115.283054957,52743085.791260779,52666235.234431572,136606921.78500003,136161681.07708782,0,0,1500]
[null,"Male 90+",92.215477000000007,95.515479999999997,"male",2,{"$f":"HLOOKUP(Calculations!$E$2,'Prevalence Rates'!$C$3:$BC$249,'Prevalence Rates'!$BD135,FALSE)","v":0.1324616281184835},{"$f":"HLOOKUP(Calculations!$E$2,'Population 2016'!$C$3:$BC$249,'Population 2016'!BD135,FALSE)","v":2286},0,{"$f":"HLOOKUP(Results!E$4,Targeting!$C$3:$F$249,Targeting!$G135,FALSE)","v":68},{"$f":"IF(AND(OR(Calculations!$E$2=\"Orkney Health Board\",Calculations!$E$2=\"Orkney Islands Local Authority\"),$F135=1),0,IF(AND(OR(Calculations!$E$2=\"Shetland Health Board\",Calculations!$E$2=\"Western Isles Health Board\",Calculations!$E$2=\"Shetland Islands Local Authority\",Calculations!$E$2=\"Eilean Siar Local Authority\"),OR($F135=1,$F135=5)),0,new_ci(VALUE(LEFT(Options!$B$24,2)),$C135,$E135,$F135,2016,$I135,1,$H135,$G135*$H135,Options!$B$8)))","v":315.24454637759999},{"$f":"IF(AND(OR(Calculations!$E$2=\"Orkney Health Board\",Calculations!$E$2=\"Orkney Islands Local Authority\"),$F135=1),0,IF(AND(OR(Calculations!$E$2=\"Shetland Health Board\",Calculations!$E$2=\"Western Isles Health Board\",Calculations!$E$2=\"Shetland Islands Local Authority\",Calculations!$E$2=\"Eilean Siar Local Authority\"),OR($F135=1,$F135=5)),0,new_ci(VALUE(LEFT(Options!$B$24,2)),$C135,$E135,$F135,2016,$I135+$J135,1,$H135,$G135*$H135,Options!$B$8)))","v":314.80086996},{"$f":"IF(AND(OR(Calculations!$E$2=\"Orkney Health Board\",Calculations!$E$2=\"Orkney Islands Local Authority\"),$F135=1),0,IF(AND(OR(Calculations!$E$2=\"Shetland Health Board\",Calculations!$E$2=\"Western Isles Health Board\",Calculations!$E$2=\"Shetland Islands Local Authority\",Calculations!$E$2=\"Eilean Siar Local Authority\"),OR($F135=1,$F135=5)),0,new_yllv2(VALUE(LEFT(Options!$B$24,2)),$C135,$D135,$E135,$F135,2016,$I135,1,$H135,$G135*$H135,Options!$B$8)))","v":725.0634024021},{"$f":"IF(AND(OR(Calculations!$E$2=\"Orkney Health Board\",Calculations!$E$2=\"Orkney Islands Local Authority\"),$F135=1),0,IF(AND(OR(Calculations!$E$2=\"Shetland Health Board\",Calculations!$E$2=\"Western Isles Health Board\",Calculations!$E$2=\"Shetland Islands Local Authority\",Calculations!$E$2=\"Eilean Siar Local Authority\"),OR($F135=1,$F135=5)),0,new_yllv2(VALUE(LEFT(Options!$B$24,2)),$C135,$D135,$E135,$F135,2016,$I135+$J135,1,$H135,$G135*$H135,Options!$B$8)))","v":724.04294531059998},{"$f":"IF(AND(OR(Calculations!$E$2=\"Orkney Health Board\",Calculations!$E$2=\"Orkney Islands Local Authority\"),$F135=1),0,IF(AND(OR(Calculations!$E$2=\"Shetland Health Board\",Calculations!$E$2=\"Western Isles Health Board\",Calculations!$E$2=\"Shetland Islands Local Authority\",Calculations!$E$2=\"Eilean Siar Local Authority\"),OR($F135=1,$F135=5)),0,hosp_count(VALUE(LEFT(Options!$B$24,2)),$C135,$E135,$F135,2016,$I135,1,$H135,$G135*$H135, Options!$B$8)))","v":2538.3308308974001},{"$f":"IF(AND(OR(Calculations!$E$2=\"Orkney Health Board\",Calculations!$E$2=\"Orkney Islands Local Authority\"),$F135=1),0,IF(AND(OR(Calculations!$E$2=\"Shetland Health Board\",Calculations!$E$2=\"Western Isles Health Board\",Calculations!$E$2=\"Shetland Islands Local Authority\",Calculations!$E$2=\"Eilean Siar Local Authority\"),OR($F135=1,$F135=5)),0,hosp_count(VALUE(LEFT(Options!$B$24,2)),$C135,$E135,$F135,2016,$I135+$J135,1,$H135,$G135*$H135, Options!$B$8)))","v":2530.0262378901998},{"$f":"IF(AND(OR(Calculations!$E$2=\"Orkney Health Board\",Calculations!$E$2=\"Orkney Islands Local Authority\"),$F135=1),0,IF(AND(OR(Calculations!$E$2=\"Shetland Health Board\",Calculations!$E$2=\"Western Isles Health Board\",Calculations!$E$2=\"Shetland Islands Local Authority\",Calculations!$E$2=\"Eilean Siar Local Authority\"),OR($F135=1,$F135=5)),0,prem_mort(VALUE(LEFT(Options!$B$24,2)),$C135,$E135,$F135,2016,$I135,1,$H135,$G135*$H135,Options!$B$8)))","v":0},{"$f":"IF(AND(OR(Calculations!$E$2=\"Orkney Health Board\",Calculations!$E$2=\"Orkney Islands Local Authority\"),$F135=1),0,IF(AND(OR(Calculations!$E$2=\"Shetland Health Board\",Calculations!$E$2=\"Western Isles Health Board\",Calculations!$E$2=\"Shetland Islands Local Authority\",Calculations!$E$2=\"Eilean Siar Local Authority\"),OR($F135=1,$F135=5)),0,prem_mort(VALUE(LEFT(Options!$B$24,2)),$C135,$E135,$F135,2016,$I135+$J135,1,$H135,$G135*$H135,Options!$B$8)))","v":0},13790.225125879264,13770.816708661418,31717.559160196848,31672.919742370952,111038.09409,110674.81355600174,0,0,13790225.125879264,13770816.708661418,31717559.160196848,31672919.742370952,111038094.09,110674813.55600174,0,0,1000]
[null,"Female 0-4",2.0384007,81.468401,"female",3,{"$f":"HLOOKUP(Calculations!$E$2,'Prevalence Rates'!$C$3:$BC$249,'Prevalence Rates'!$BD136,FALSE)","v":0},{"$f":"HLOOKUP(Calculations!$E$2,'Population 2016'!$C$3:$BC$249,'Population 2016'!BD136,FALSE)","v":0},0,{"$f":"HLOOKUP(Results!E$4,Targeting!$C$3:$F$249,Targeting!$G136,FALSE)","v":0},{"$f":"IF(AND(OR(Calculations!$E$2=\"Orkney Health Board\",Calculations!$E$2=\"Orkney Islands Local Authority\"),$F136=1),0,IF(AND(OR(Calculations!$E$2=\"Shetland Health Board\",Calculations!$E$2=\"Western Isles Health Board\",Calculations!$E$2=\"Shetland Islands Local Authority\",Calculations!$E$2=\"Eilean Siar Local Authority\"),OR($F136=1,$F136=5)),0,new_ci(VALUE(LEFT(Options!$B$24,2)),$C136,$E136,$F136,2016,$I136,1,$H136,$G136*$H136,Options!$B$8)))","v":{"$error":"#VALUE!"}},{"$f":"IF(AND(OR(Calculations!$E$2=\"Orkney Health Board\",Calculations!$E$2=\"Orkney Islands Local Authority\"),$F136=1),0,IF(AND(OR(Calculations!$E$2=\"Shetland Health Board\",Calculations!$E$2=\"Western Isles Health Board\",Calculations!$E$2=\"Shetland Islands Local Authority\",Calculations!$E$2=\"Eilean Siar Local Authority\"),OR($F136=1,$F136=5)),0,new_ci(VALUE(LEFT(Options!$B$24,2)),$C136,$E136,$F136,2016,$I136+$J136,1,$H136,$G136*$H136,Options!$B$8)))","v":{"$error":"#VALUE!"}},{"$f":"IF(AND(OR(Calculations!$E$2=\"Orkney Health Board\",Calculations!$E$2=\"Orkney Islands Local Authority\"),$F136=1),0,IF(AND(OR(Calculations!$E$2=\"Shetland Health Board\",Calculations!$E$2=\"Western Isles Health Board\",Calculations!$E$2=\"Shetland Islands Local Authority\",Calculations!$E$2=\"Eilean Siar Local Authority\"),OR($F136=1,$F136=5)),0,new_yllv2(VALUE(LEFT(Options!$B$24,2)),$C136,$D136,$E136,$F136,2016,$I136,1,$H136,$G136*$H136,Options!$B$8)))","v":{"$error":"#VALUE!"}},{"$f":"IF(AND(OR(Calculations!$E$2=\"Orkney Health Board\",Calculations!$E$2=\"Orkney Islands Local Authority\"),$F136=1),0,IF(AND(OR(Calculations!$E$2=\"Shetland Health Board\",Calculations!$E$2=\"Western Isles Health Board\",Calculations!$E$2=\"Shetland Islands Local Authority\",Calculations!$E$2=\"Eilean Siar Local Authority\"),OR($F136=1,$F136=5)),0,new_yllv2(VALUE(LEFT(Options!$B$24,2)),$C136,$D136,$E136,$F136,2016,$I136+$J136,1,$H136,$G136*$H136,Options!$B$8)))","v":{"$error":"#VALUE!"}},{"$f":"IF(AND(OR(Calculations!$E$2=\"Orkney Health Board\",Calculations!$E$2=\"Orkney Islands Local Authority\"),$F136=1),0,IF(AND(OR(Calculations!$E$2=\"Shetland Health Board\",Calculations!$E$2=\"Western Isles Health Board\",Calculations!$E$2=\"Shetland Islands Local Authority\",Calculations!$E$2=\"Eilean Siar Local Authority\"),OR($F136=1,$F136=5)),0,hosp_count(VALUE(LEFT(Options!$B$24,2)),$C136,$E136,$F136,2016,$I136,1,$H136,$G136*$H136, Options!$B$8)))","v":{"$error":"#VALUE!"}},{"$f":"IF(AND(OR(Calculations!$E$2=\"Orkney Health Board\",Calculations!$E$2=\"Orkney Islands Local Authority\"),$F136=1),0,IF(AND(OR(Calculations!$E$2=\"Shetland Health Board\",Calculations!$E$2=\"Western Isles Health Board\",Calculations!$E$2=\"Shetland Islands Local Authority\",Calculations!$E$2=\"Eilean Siar Local Authority\"),OR($F136=1,$F136=5)),0,hosp_count(VALUE(LEFT(Options!$B$24,2)),$C136,$E136,$F136,2016,$I136+$J136,1,$H136,$G136*$H136, Options!$B$8)))","v":{"$error":"#VALUE!"}},{"$f":"IF(AND(OR(Calculations!$E$2=\"Orkney Health Board\",Calculations!$E$2=\"Orkney Islands Local Authority\"),$F136=1),0,IF(AND(OR(Calculations!$E$2=\"Shetland Health Board\",Calculations!$E$2=\"Western Isles Health Board\",Calculations!$E$2=\"Shetland Islands Local Authority\",Calculations!$E$2=\"Eilean Siar Local Authority\"),OR($F136=1,$F136=5)),0,prem_mort(VALUE(LEFT(Options!$B$24,2)),$C136,$E136,$F136,2016,$I136,1,$H136,$G136*$H136,Options!$B$8)))","v":{"$error":"#VALUE!"}},{"$f":"IF(AND(OR(Calculations!$E$2=\"Orkney Health Board\",Calculations!$E$2=\"Orkney Islands Local Authority\"),$F136=1),0,IF(AND(OR(Calculations!$E$2=\"Shetland Health Board\",Calculations!$E$2=\"Western Isles Health Board\",Calculations!$E$2=\"Shetland Islands Local Authority\",Calculations!$E$2=\"Eilean Siar Local Authority\"),OR($F136=1,$F136=5)),0,prem_mort(VALUE(LEFT(Options!$B$24,2)),$C136,$E136,$F136,2016,$I136+$J136,1,$H136,$G136*$H136,Options!$B$8)))","v":{"$error":"#VALUE!"}},{"$error":"#VALUE!"},{"$error":"#VALUE!"},{"$error":"#VALUE!"},{"$error":"#VALUE!"},{"$error":"#VALUE!"},{"$error":"#VALUE!"},{"$error":"#VALUE!"},{"$error":"#VALUE!"},{"$error":"#VALUE!"},{"$error":"#VALUE!"},{"$error":"#VALUE!"},{"$error":"#VALUE!"},{"$error":"#VALUE!"},{"$error":"#VALUE!"},{"$error":"#VALUE!"},{"$error":"#VALUE!"},5000]
[null,"Female 5-9",6.9792794999999996,81.439279999999997,"female",3,{"$f":"HLOOKUP(Calculations!$E$2,'Prevalence Rates'!$C$3:$BC$249,'Prevalence Rates'!$BD137,FALSE)","v":0},{"$f":"HLOOKUP(Calculations!$E$2,'Population 2016'!$C$3:$BC$249,'Population 2016'!BD137,FALSE)","v":0},0,{"$f":"HLOOKUP(Results!E$4,Targeting!$C$3:$F$249,Targeting!$G137,FALSE)","v":0},{"$f":"IF(AND(OR(Calculations!$E$2=\"Orkney Health Board\",Calculations!$E$2=\"Orkney Islands Local Authority\"),$F137=1),0,IF(AND(OR(Calculations!$E$2=\"Shetland Health Board\",Calculations!$E$2=\"Western Isles Health Board\",Calculations!$E$2=\"Shetland Islands Local Authority\",Calculations!$E$2=\"Eilean Siar Local Authority\"),OR($F137=1,$F137=5)),0,new_ci(VALUE(LEFT(Options!$B$24,2)),$C137,$E137,$F137,2016,$I137,1,$H137,$G137*$H137,Options!$B$8)))","v":{"$error":"#VALUE!"}},{"$f":"IF(AND(OR(Calculations!$E$2=\"Orkney Health Board\",Calculations!$E$2=\"Orkney Islands Local Authority\"),$F137=1),0,IF(AND(OR(Calculations!$E$2=\"Shetland Health Board\",Calculations!$E$2=\"Western Isles Health Board\",Calculations!$E$2=\"Shetland Islands Local Authority\",Calculations!$E$2=\"Eilean Siar Local Authority\"),OR($F137=1,$F137=5)),0,new_ci(VALUE(LEFT(Options!$B$24,2)),$C137,$E137,$F137,2016,$I137+$J137,1,$H137,$G137*$H137,Options!$B$8)))","v":{"$error":"#VALUE!"}},{"$f":"IF(AND(OR(Calculations!$E$2=\"Orkney Health Board\",Calculations!$E$2=\"Orkney Islands Local Authority\"),$F137=1),0,IF(AND(OR(Calculations!$E$2=\"Shetland Health Board\",Calculations!$E$2=\"Western Isles Health Board\",Calculations!$E$2=\"Shetland Islands Local Authority\",Calculations!$E$2=\"Eilean Siar Local Authority\"),OR($F137=1,$F137=5)),0,new_yllv2(VALUE(LEFT(Options!$B$24,2)),$C137,$D137,$E137,$F137,2016,$I137,1,$H137,$G137*$H137,Options!$B$8)))","v":{"$error":"#VALUE!"}},{"$f":"IF(AND(OR(Calculations!$E$2=\"Orkney Health Board\",Calculations!$E$2=\"Orkney Islands Local Authority\"),$F137=1),0,IF(AND(OR(Calculations!$E$2=\"Shetland Health Board\",Calculations!$E$2=\"Western Isles Health Board\",Calculations!$E$2=\"Shetland Islands Local Authority\",Calculations!$E$2=\"Eilean Siar Local Authority\"),OR($F137=1,$F137=5)),0,new_yllv2(VALUE(LEFT(Options!$B$24,2)),$C137,$D137,$E137,$F137,2016,$I137+$J137,1,$H137,$G137*$H137,Options!$B$8)))","v":{"$error":"#VALUE!"}},{"$f":"IF(AND(OR(Calculations!$E$2=\"Orkney Health Board\",Calculations!$E$2=\"Orkney Islands Local Authority\"),$F137=1),0,IF(AND(OR(Calculations!$E$2=\"Shetland Health Board\",Calculations!$E$2=\"Western Isles Health Board\",Calculations!$E$2=\"Shetland Islands Local Authority\",Calculations!$E$2=\"Eilean Siar Local Authority\"),OR($F137=1,$F137=5)),0,hosp_count(VALUE(LEFT(Options!$B$24,2)),$C137,$E137,$F137,2016,$I137,1,$H137,$G137*$H137, Options!$B$8)))","v":{"$error":"#VALUE!"}},{"$f":"IF(AND(OR(Calculations!$E$2=\"Orkney Health Board\",Calculations!$E$2=\"Orkney Islands Local Authority\"),$F137=1),0,IF(AND(OR(Calculations!$E$2=\"Shetland Health Board\",Calculations!$E$2=\"Western Isles Health Board\",Calculations!$E$2=\"Shetland Islands Local Authority\",Calculations!$E$2=\"Eilean Siar Local Authority\"),OR($F137=1,$F137=5)),0,hosp_count(VALUE(LEFT(Options!$B$24,2)),$C137,$E137,$F137,2016,$I137+$J137,1,$H137,$G137*$H137, Options!$B$8)))","v":{"$error":"#VALUE!"}},{"$f":"IF(AND(OR(Calculations!$E$2=\"Orkney Health Board\",Calculations!$E$2=\"Orkney Islands Local Authority\"),$F137=1),0,IF(AND(OR(Calculations!$E$2=\"Shetland Health Board\",Calculations!$E$2=\"Western Isles Health Board\",Calculations!$E$2=\"Shetland Islands Local Authority\",Calculations!$E$2=\"Eilean Siar Local Authority\"),OR($F137=1,$F137=5)),0,prem_mort(VALUE(LEFT(Options!$B$24,2)),$C137,$E137,$F137,2016,$I137,1,$H137,$G137*$H137,Options!$B$8)))","v":{"$error":"#VALUE!"}},{"$f":"IF(AND(OR(Calculations!$E$2=\"Orkney Health Board\",Calculations!$E$2=\"Orkney Islands Local Authority\"),$F137=1),0,IF(AND(OR(Calculations!$E$2=\"Shetland Health Board\",Calculations!$E$2=\"Western Isles Health Board\",Calculations!$E$2=\"Shetland Islands Local Authority\",Calculations!$E$2=\"Eilean Siar Local Authority\"),OR($F137=1,$F137=5)),0,prem_mort(VALUE(LEFT(Options!$B$24,2)),$C137,$E137,$F137,2016,$I137+$J137,1,$H137,$G137*$H137,Options!$B$8)))","v":{"$error":"#VALUE!"}},{"$error":"#VALUE!"},{"$error":"#VALUE!"},{"$error":"#VALUE!"},{"$error":"#VALUE!"},{"$error":"#VALUE!"},{"$error":"#VALUE!"},{"$error":"#VALUE!"},{"$error":"#VALUE!"},{"$error":"#VALUE!"},{"$error":"#VALUE!"},{"$error":"#VALUE!"},{"$error":"#VALUE!"},{"$error":"#VALUE!"},{"$error":"#VALUE!"},{"$error":"#VALUE!"},{"$error":"#VALUE!"},5500]
[null,"Female 10-15",12.478312000000001,81.948309999999992,"female",3,{"$f":"HLOOKUP(Calculations!$E$2,'Prevalence Rates'!$C$3:$BC$249,'Prevalence Rates'!$BD138,FALSE)","v":0},{"$f":"HLOOKUP(Calculations!$E$2,'Population 2016'!$C$3:$BC$249,'Population 2016'!BD138,FALSE)","v":0},0,{"$f":"HLOOKUP(Results!E$4,Targeting!$C$3:$F$249,Targeting!$G138,FALSE)","v":0},{"$f":"IF(AND(OR(Calculations!$E$2=\"Orkney Health Board\",Calculations!$E$2=\"Orkney Islands Local Authority\"),$F138=1),0,IF(AND(OR(Calculations!$E$2=\"Shetland Health Board\",Calculations!$E$2=\"Western Isles Health Board\",Calculations!$E$2=\"Shetland Islands Local Authority\",Calculations!$E$2=\"Eilean Siar Local Authority\"),OR($F138=1,$F138=5)),0,new_ci(VALUE(LEFT(Options!$B$24,2)),$C138,$E138,$F138,2016,$I138,1,$H138,$G138*$H138,Options!$B$8)))","v":{"$error":"#VALUE!"}},{"$f":"IF(AND(OR(Calculations!$E$2=\"Orkney Health Board\",Calculations!$E$2=\"Orkney Islands Local Authority\"),$F138=1),0,IF(AND(OR(Calculations!$E$2=\"Shetland Health Board\",Calculations!$E$2=\"Western Isles Health Board\",Calculations!$E$2=\"Shetland Islands Local Authority\",Calculations!$E$2=\"Eilean Siar Local Authority\"),OR($F138=1,$F138=5)),0,new_ci(VALUE(LEFT(Options!$B$24,2)),$C138,$E138,$F138,2016,$I138+$J138,1,$H138,$G138*$H138,Options!$B$8)))","v":{"$error":"#VALUE!"}},{"$f":"IF(AND(OR(Calculations!$E$2=\"Orkney Health Board\",Calculations!$E$2=\"Orkney Islands Local Authority\"),$F138=1),0,IF(AND(OR(Calculations!$E$2=\"Shetland Health Board\",Calculations!$E$2=\"Western Isles Health Board\",Calculations!$E$2=\"Shetland Islands Local Authority\",Calculations!$E$2=\"Eilean Siar Local Authority\"),OR($F138=1,$F138=5)),0,new_yllv2(VALUE(LEFT(Options!$B$24,2)),$C138,$D138,$E138,$F138,2016,$I138,1,$H138,$G138*$H138,Options!$B$8)))","v":{"$error":"#VALUE!"}},{"$f":"IF(AND(OR(Calculations!$E$2=\"Orkney Health Board\",Calculations!$E$2=\"Orkney Islands Local Authority\"),$F138=1),0,IF(AND(OR(Calculations!$E$2=\"Shetland Health Board\",Calculations!$E$2=\"Western Isles Health Board\",Calculations!$E$2=\"Shetland Islands Local Authority\",Calculations!$E$2=\"Eilean Siar Local Authority\"),OR($F138=1,$F138=5)),0,new_yllv2(VALUE(LEFT(Options!$B$24,2)),$C138,$D138,$E138,$F138,2016,$I138+$J138,1,$H138,$G138*$H138,Options!$B$8)))","v":{"$error":"#VALUE!"}},{"$f":"IF(AND(OR(Calculations!$E$2=\"Orkney Health Board\",Calculations!$E$2=\"Orkney Islands Local Authority\"),$F138=1),0,IF(AND(OR(Calculations!$E$2=\"Shetland Health Board\",Calculations!$E$2=\"Western Isles Health Board\",Calculations!$E$2=\"Shetland Islands Local Authority\",Calculations!$E$2=\"Eilean Siar Local Authority\"),OR($F138=1,$F138=5)),0,hosp_count(VALUE(LEFT(Options!$B$24,2)),$C138,$E138,$F138,2016,$I138,1,$H138,$G138*$H138, Options!$B$8)))","v":{"$error":"#VALUE!"}},{"$f":"IF(AND(OR(Calculations!$E$2=\"Orkney Health Board\",Calculations!$E$2=\"Orkney Islands Local Authority\"),$F138=1),0,IF(AND(OR(Calculations!$E$2=\"Shetland Health Board\",Calculations!$E$2=\"Western Isles Health Board\",Calculations!$E$2=\"Shetland Islands Local Authority\",Calculations!$E$2=\"Eilean Siar Local Authority\"),OR($F138=1,$F138=5)),0,hosp_count(VALUE(LEFT(Options!$B$24,2)),$C138,$E138,$F138,2016,$I138+$J138,1,$H138,$G138*$H138, Options!$B$8)))","v":{"$error":"#VALUE!"}},{"$f":"IF(AND(OR(Calculations!$E$2=\"Orkney Health Board\",Calculations!$E$2=\"Orkney Islands Local Authority\"),$F138=1),0,IF(AND(OR(Calculations!$E$2=\"Shetland Health Board\",Calculations!$E$2=\"Western Isles Health Board\",Calculations!$E$2=\"Shetland Islands Local Authority\",Calculations!$E$2=\"Eilean Siar Local Authority\"),OR($F138=1,$F138=5)),0,prem_mort(VALUE(LEFT(Options!$B$24,2)),$C138,$E138,$F138,2016,$I138,1,$H138,$G138*$H138,Options!$B$8)))","v":{"$error":"#VALUE!"}},{"$f":"IF(AND(OR(Calculations!$E$2=\"Orkney Health Board\",Calculations!$E$2=\"Orkney Islands Local Authority\"),$F138=1),0,IF(AND(OR(Calculations!$E$2=\"Shetland Health Board\",Calculations!$E$2=\"Western Isles Health Board\",Calculations!$E$2=\"Shetland Islands Local Authority\",Calculations!$E$2=\"Eilean Siar Local Authority\"),OR($F138=1,$F138=5)),0,prem_mort(VALUE(LEFT(Options!$B$24,2)),$C138,$E138,$F138,2016,$I138+$J138,1,$H138,$G138*$H138,Options!$B$8)))","v":{"$error":"#VALUE!"}},{"$error":"#VALUE!"},{"$error":"#VALUE!"},{"$error":"#VALUE!"},{"$error":"#VALUE!"},{"$error":"#VALUE!"},{"$error":"#VALUE!"},{"$error":"#VALUE!"},{"$error":"#VALUE!"},{"$error":"#VALUE!"},{"$error":"#VALUE!"},{"$error":"#VALUE!"},{"$error":"#VALUE!"},{"$error":"#VALUE!"},{"$error":"#VALUE!"},{"$error":"#VALUE!"},{"$error":"#VALUE!"},6600]
["SIMD Q3","Female 16-19",17.570053000000001,81.100049999999996,"female",3,{"$f":"HLOOKUP(Calculations!$E$2,'Prevalence Rates'!$C$3:$BC$249,'Prevalence Rates'!$BD139,FALSE)","v":0.14873594171490565},{"$f":"HLOOKUP(Calculations!$E$2,'Population 2016'!$C$3:$BC$249,'Population 2016'!BD139,FALSE)","v":22864},0,{"$f":"HLOOKUP(Results!E$4,Targeting!$C$3:$F$249,Targeting!$G139,FALSE)","v":677},{"$f":"IF(AND(OR(Calculations!$E$2=\"Orkney Health Board\",Calculations!$E$2=\"Orkney Islands Local Authority\"),$F139=1),0,IF(AND(OR(Calculations!$E$2=\"Shetland Health Board\",Calculations!$E$2=\"Western Isles Health Board\",Calculations!$E$2=\"Shetland Islands Local Authority\",Calculations!$E$2=\"Eilean Siar Local Authority\"),OR($F139=1,$F139=5)),0,new_ci(VALUE(LEFT(Options!$B$24,2)),$C139,$E139,$F139,2016,$I139,1,$H139,$G139*$H139,Options!$B$8)))","v":4.1158403253999998},{"$f":"IF(AND(OR(Calculations!$E$2=\"Orkney Health Board\",Calculations!$E$2=\"Orkney Islands Local Authority\"),$F139=1),0,IF(AND(OR(Calculations!$E$2=\"Shetland Health Board\",Calculations!$E$2=\"Western Isles Health Board\",Calculations!$E$2=\"Shetland Islands Local Authority\",Calculations!$E$2=\"Eilean Siar Local Authority\"),OR($F139=1,$F139=5)),0,new_ci(VALUE(LEFT(Options!$B$24,2)),$C139,$E139,$F139,2016,$I139+$J139,1,$H139,$G139*$H139,Options!$B$8)))","v":4.1094306925000001},{"$f":"IF(AND(OR(Calculations!$E$2=\"Orkney Health Board\",Calculations!$E$2=\"Orkney Islands Local Authority\"),$F139=1),0,IF(AND(OR(Calculations!$E$2=\"Shetland Health Board\",Calculations!$E$2=\"Western Isles Health Board\",Calculations!$E$2=\"Shetland Islands Local Authority\",Calculations!$E$2=\"Eilean Siar Local Authority\"),OR($F139=1,$F139=5)),0,new_yllv2(VALUE(LEFT(Options!$B$24,2)),$C139,$D139,$E139,$F139,2016,$I139,1,$H139,$G139*$H139,Options!$B$8)))","v":257.3634831997},{"$f":"IF(AND(OR(Calculations!$E$2=\"Orkney Health Board\",Calculations!$E$2=\"Orkney Islands Local Authority\"),$F139=1),0,IF(AND(OR(Calculations!$E$2=\"Shetland Health Board\",Calculations!$E$2=\"Western Isles Health Board\",Calculations!$E$2=\"Shetland Islands Local Authority\",Calculations!$E$2=\"Eilean Siar Local Authority\"),OR($F139=1,$F139=5)),0,new_yllv2(VALUE(LEFT(Options!$B$24,2)),$C139,$D139,$E139,$F139,2016,$I139+$J139,1,$H139,$G139*$H139,Options!$B$8)))","v":256.96268887370002},{"$f":"IF(AND(OR(Calculations!$E$2=\"Orkney Health Board\",Calculations!$E$2=\"Orkney Islands Local Authority\"),$F139=1),0,IF(AND(OR(Calculations!$E$2=\"Shetland Health Board\",Calculations!$E$2=\"Western Isles Health Board\",Calculations!$E$2=\"Shetland Islands Local Authority\",Calculations!$E$2=\"Eilean Siar Local Authority\"),OR($F139=1,$F139=5)),0,hosp_count(VALUE(LEFT(Options!$B$24,2)),$C139,$E139,$F139,2016,$I139,1,$H139,$G139*$H139, Options!$B$8)))","v":2290.5686582223998},{"$f":"IF(AND(OR(Calculations!$E$2=\"Orkney Health Board\",Calculations!$E$2=\"Orkney Islands Local Authority\"),$F139=1),0,IF(AND(OR(Calculations!$E$2=\"Shetland Health Board\",Calculations!$E$2=\"Western Isles Health Board\",Calculations!$E$2=\"Shetland Islands Local Authority\",Calculations!$E$2=\"Eilean Siar Local Authority\"),OR($F139=1,$F139=5)),0,hosp_count(VALUE(LEFT(Options!$B$24,2)),$C139,$E139,$F139,2016,$I139+$J139,1,$H139,$G139*$H139, Options!$B$8)))","v":2283.1505124173},{"$f":"IF(AND(OR(Calculations!$E$2=\"Orkney Health Board\",Calculations!$E$2=\"Orkney Islands Local Authority\"),$F139=1),0,IF(AND(OR(Calculations!$E$2=\"Shetland Health Board\",Calculations!$E$2=\"Western Isles Health Board\",Calculations!$E$2=\"Shetland Islands Local Authority\",Calculations!$E$2=\"Eilean Siar Local Authority\"),OR($F139=1,$F139=5)),0,prem_mort(VALUE(LEFT(Options!$B$24,2)),$C139,$E139,$F139,2016,$I139,1,$H139,$G139*$H139,Options!$B$8)))","v":4.1158403253999998},{"$f":"IF(AND(OR(Calculations!$E$2=\"Orkney Health Board\",Calculations!$E$2=\"Orkney Islands Local Authority\"),$F139=1),0,IF(AND(OR(Calculations!$E$2=\"Shetland Health Board\",Calculations!$E$2=\"Western Isles Health Board\",Calculations!$E$2=\"Shetland Islands Local Authority\",Calculations!$E$2=\"Eilean Siar Local Authority\"),OR($F139=1,$F139=5)),0,prem_mort(VALUE(LEFT(Options!$B$24,2)),$C139,$E139,$F139,2016,$I139+$J139,1,$H139,$G139*$H139,Options!$B$8)))","v":4.1094306925000001},18.001401003324002,17.97336726950665,1125.6275507334674,1123.8746014420049,10018.232409999999,9985.7877554990373,18.001401003324002,17.97336726950665,79206.164414625615,79082.815985829264,4952761.2232272569,4945048.2463448215,44080222.603999995,43937466.124195762,79206.164414625615,79082.815985829264,4400]
[null,"Female 20-24",22.077057,81.667060000000006,"female",3,{"$f":"HLOOKUP(Calculations!$E$2,'Prevalence Rates'!$C$3:$BC$249,'Prevalence Rates'!$BD140,FALSE)","v":0.14873594171490565},{"$f":"HLOOKUP(Calculations!$E$2,'Population 2016'!$C$3:$BC$249,'Population 2016'!BD140,FALSE)","v":34910},0,{"$f":"HLOOKUP(Results!E$4,Targeting!$C$3:$F$249,Targeting!$G140,FALSE)","v":1034},{"$f":"IF(AND(OR(Calculations!$E$2=\"Orkney Health Board\",Calculations!$E$2=\"Orkney Islands Local Authority\"),$F140=1),0,IF(AND(OR(Calculations!$E$2=\"Shetland Health Board\",Calculations!$E$2=\"Western Isles Health Board\",Calculations!$E$2=\"Shetland Islands Local Authority\",Calculations!$E$2=\"Eilean Siar Local Authority\"),OR($F140=1,$F140=5)),0,new_ci(VALUE(LEFT(Options!$B$24,2)),$C140,$E140,$F140,2016,$I140,1,$H140,$G140*$H140,Options!$B$8)))","v":9.2197721644000001},{"$f":"IF(AND(OR(Calculations!$E$2=\"Orkney Health Board\",Calculations!$E$2=\"Orkney Islands Local Authority\"),$F140=1),0,IF(AND(OR(Calculations!$E$2=\"Shetland Health Board\",Calculations!$E$2=\"Western Isles Health Board\",Calculations!$E$2=\"Shetland Islands Local Authority\",Calculations!$E$2=\"Eilean Siar Local Authority\"),OR($F140=1,$F140=5)),0,new_ci(VALUE(LEFT(Options!$B$24,2)),$C140,$E140,$F140,2016,$I140+$J140,1,$H140,$G140*$H140,Options!$B$8)))","v":9.2054107316000007},{"$f":"IF(AND(OR(Calculations!$E$2=\"Orkney Health Board\",Calculations!$E$2=\"Orkney Islands Local Authority\"),$F140=1),0,IF(AND(OR(Calculations!$E$2=\"Shetland Health Board\",Calculations!$E$2=\"Western Isles Health Board\",Calculations!$E$2=\"Shetland Islands Local Authority\",Calculations!$E$2=\"Eilean Siar Local Authority\"),OR($F140=1,$F140=5)),0,new_yllv2(VALUE(LEFT(Options!$B$24,2)),$C140,$D140,$E140,$F140,2016,$I140,1,$H140,$G140*$H140,Options!$B$8)))","v":540.18647877149999},{"$f":"IF(AND(OR(Calculations!$E$2=\"Orkney Health Board\",Calculations!$E$2=\"Orkney Islands Local Authority\"),$F140=1),0,IF(AND(OR(Calculations!$E$2=\"Shetland Health Board\",Calculations!$E$2=\"Western Isles Health Board\",Calculations!$E$2=\"Shetland Islands Local Authority\",Calculations!$E$2=\"Eilean Siar Local Authority\"),OR($F140=1,$F140=5)),0,new_yllv2(VALUE(LEFT(Options!$B$24,2)),$C140,$D140,$E140,$F140,2016,$I140+$J140,1,$H140,$G140*$H140,Options!$B$8)))","v":539.34504238069997},{"$f":"IF(AND(OR(Calculations!$E$2=\"Orkney Health Board\",Calculations!$E$2=\"Orkney Islands Local Authority\"),$F140=1),0,IF(AND(OR(Calculations!$E$2=\"Shetland Health Board\",Calculations!$E$2=\"Western Isles Health Board\",Calculations!$E$2=\"Shetland Islands Local Authority\",Calculations!$E$2=\"Eilean Siar Local Authority\"),OR($F140=1,$F140=5)),0,hosp_count(VALUE(LEFT(Options!$B$24,2)),$C140,$E140,$F140,2016,$I140,1,$H140,$G140*$H140, Options!$B$8)))","v":3917.2018699179998},{"$f":"IF(AND(OR(Calculations!$E$2=\"Orkney Health Board\",Calculations!$E$2=\"Orkney Islands Local Authority\"),$F140=1),0,IF(AND(OR(Calculations!$E$2=\"Shetland Health Board\",Calculations!$E$2=\"Western Isles Health Board\",Calculations!$E$2=\"Shetland Islands Local Authority\",Calculations!$E$2=\"Eilean Siar Local Authority\"),OR($F140=1,$F140=5)),0,hosp_count(VALUE(LEFT(Options!$B$24,2)),$C140,$E140,$F140,2016,$I140+$J140,1,$H140,$G140*$H140, Options!$B$8)))","v":3904.5118519478001},{"$f":"IF(AND(OR(Calculations!$E$2=\"Orkney Health Board\",Calculations!$E$2=\"Orkney Islands Local Authority\"),$F140=1),0,IF(AND(OR(Calculations!$E$2=\"Shetland Health Board\",Calculations!$E$2=\"Western Isles Health Board\",Calculations!$E$2=\"Shetland Islands Local Authority\",Calculations!$E$2=\"Eilean Siar Local Authority\"),OR($F140=1,$F140=5)),0,prem_mort(VALUE(LEFT(Options!$B$24,2)),$C140,$E140,$F140,2016,$I140,1,$H140,$G140*$H140,Options!$B$8)))","v":9.2197721644000001},{"$f":"IF(AND(OR(Calculations!$E$2=\"Orkney Health Board\",Calculations!$E$2=\"Orkney Islands Local Authority\"),$F140=1),0,IF(AND(OR(Calculations!$E$2=\"Shetland Health Board\",Calculations!$E$2=\"Western Isles Health Board\",Calculations!$E$2=\"Shetland Islands Local Authority\",Calculations!$E$2=\"Eilean Siar Local Authority\"),OR($F140=1,$F140=5)),0,prem_mort(VALUE(LEFT(Options!$B$24,2)),$C140,$E140,$F140,2016,$I140+$J140,1,$H140,$G140*$H140,Options!$B$8)))","v":9.2054107316000007},26.410117915783442,26.368979466055571,1547.36888791607,1544.9585860232023,11220.858980000001,11184.508312654827,26.410117915783442,26.368979466055571,158460.70749470065,158213.87679633341,9284213.3274964206,9269751.516139213,67325153.88000001,67107049.875928961,158460.70749470065,158213.87679633341,6000]
[null,"Female 25-29",26.975186999999998,81.645189999999999,"female",3,{"$f":"HLOOKUP(Calculations!$E$2,'Prevalence Rates'!$C$3:$BC$249,'Prevalence Rates'!$BD141,FALSE)","v":0.14873594171490565},{"$f":"HLOOKUP(Calculations!$E$2,'Population 2016'!$C$3:$BC$249,'Population 2016'!BD141,FALSE)","v":36432},0,{"$f":"HLOOKUP(Results!E$4,Targeting!$C$3:$F$249,Targeting!$G141,FALSE)","v":1079},{"$f":"IF(AND(OR(Calculations!$E$2=\"Orkney Health Board\",Calculations!$E$2=\"Orkney Islands Local Authority\"),$F141=1),0,IF(AND(OR(Calculations!$E$2=\"Shetland Health Board\",Calculations!$E$2=\"Western Isles Health Board\",Calculations!$E$2=\"Shetland Islands Local Authority\",Calculations!$E$2=\"Eilean Siar Local Authority\"),OR($F141=1,$F141=5)),0,new_ci(VALUE(LEFT(Options!$B$24,2)),$C141,$E141,$F141,2016,$I141,1,$H141,$G141*$H141,Options!$B$8)))","v":14.5932992187},{"$f":"IF(AND(OR(Calculations!$E$2=\"Orkney Health Board\",Calculations!$E$2=\"Orkney Islands Local Authority\"),$F141=1),0,IF(AND(OR(Calculations!$E$2=\"Shetland Health Board\",Calculations!$E$2=\"Western Isles Health Board\",Calculations!$E$2=\"Shetland Islands Local Authority\",Calculations!$E$2=\"Eilean Siar Local Authority\"),OR($F141=1,$F141=5)),0,new_ci(VALUE(LEFT(Options!$B$24,2)),$C141,$E141,$F141,2016,$I141+$J141,1,$H141,$G141*$H141,Options!$B$8)))","v":14.5705714864},{"$f":"IF(AND(OR(Calculations!$E$2=\"Orkney Health Board\",Calculations!$E$2=\"Orkney Islands Local Authority\"),$F141=1),0,IF(AND(OR(Calculations!$E$2=\"Shetland Health Board\",Calculations!$E$2=\"Western Isles Health Board\",Calculations!$E$2=\"Shetland Islands Local Authority\",Calculations!$E$2=\"Eilean Siar Local Authority\"),OR($F141=1,$F141=5)),0,new_yllv2(VALUE(LEFT(Options!$B$24,2)),$C141,$D141,$E141,$F141,2016,$I141,1,$H141,$G141*$H141,Options!$B$8)))","v":783.22241284749998},{"$f":"IF(AND(OR(Calculations!$E$2=\"Orkney Health Board\",Calculations!$E$2=\"Orkney Islands Local Authority\"),$F141=1),0,IF(AND(OR(Calculations!$E$2=\"Shetland Health Board\",Calculations!$E$2=\"Western Isles Health Board\",Calculations!$E$2=\"Shetland Islands Local Authority\",Calculations!$E$2=\"Eilean Siar Local Authority\"),OR($F141=1,$F141=5)),0,new_yllv2(VALUE(LEFT(Options!$B$24,2)),$C141,$D141,$E141,$F141,2016,$I141+$J141,1,$H141,$G141*$H141,Options!$B$8)))","v":782.00261538680002},{"$f":"IF(AND(OR(Calculations!$E$2=\"Orkney Health Board\",Calculations!$E$2=\"Orkney Islands Local Authority\"),$F141=1),0,IF(AND(OR(Calculations!$E$2=\"Shetland Health Board\",Calculations!$E$2=\"Western Isles Health Board\",Calculations!$E$2=\"Shetland Islands Local Authority\",Calculations!$E$2=\"Eilean Siar Local Authority\"),OR($F141=1,$F141=5)),0,hosp_count(VALUE(LEFT(Options!$B$24,2)),$C141,$E141,$F141,2016,$I141,1,$H141,$G141*$H141, Options!$B$8)))","v":4623.9893221104003},{"$f":"IF(AND(OR(Calculations!$E$2=\"Orkney Health Board\",Calculations!$E$2=\"Orkney Islands Local Authority\"),$F141=1),0,IF(AND(OR(Calculations!$E$2=\"Shetland Health Board\",Calculations!$E$2=\"Western Isles Health Board\",Calculations!$E$2=\"Shetland Islands Local Authority\",Calculations!$E$2=\"Eilean Siar Local Authority\"),OR($F141=1,$F141=5)),0,hosp_count(VALUE(LEFT(Options!$B$24,2)),$C141,$E141,$F141,2016,$I141+$J141,1,$H141,$G141*$H141, Options!$B$8)))","v":4609.0107351085999},{"$f":"IF(AND(OR(Calculations!$E$2=\"Orkney Health Board\",Calculations!$E$2=\"Orkney Islands Local Authority\"),$F141=1),0,IF(AND(OR(Calculations!$E$2=\"Shetland Health Board\",Calculations!$E$2=\"Western Isles Health Board\",Calculations!$E$2=\"Shetland Islands Local Authority\",Calculations!$E$2=\"Eilean Siar Local Authority\"),OR($F141=1,$F141=5)),0,prem_mort(VALUE(LEFT(Options!$B$24,2)),$C141,$E141,$F141,2016,$I141,1,$H141,$G141*$H141,Options!$B$8)))","v":14.5932992187},{"$f":"IF(AND(OR(Calculations!$E$2=\"Orkney Health Board\",Calculations!$E$2=\"Orkney Islands Local Authority\"),$F141=1),0,IF(AND(OR(Calculations!$E$2=\"Shetland Health Board\",Calculations!$E$2=\"Western Isles Health Board\",Calculations!$E$2=\"Shetland Islands Local Authority\",Calculations!$E$2=\"Eilean Siar Local Authority\"),OR($F141=1,$F141=5)),0,prem_mort(VALUE(LEFT(Options!$B$24,2)),$C141,$E141,$F141,2016,$I141+$J141,1,$H141,$G141*$H141,Options!$B$8)))","v":14.5705714864},40.056267069334652,39.993883087395695,2149.8199737799187,2146.4718252821694,12692.109470000001,12650.995649727161,40.056267069334652,39.993883087395695,240337.60241600793,239963.29852437417,12898919.842679512,12878830.951693017,76152656.820000008,75905973.898362964,240337.60241600793,239963.29852437417,6000]
[null,"Female 30-34",31.999904999999998,81.799899999999994,"female",3,{"$f":"HLOOKUP(Calculations!$E$2,'Prevalence Rates'!$C$3:$BC$249,'Prevalence Rates'!$BD142,FALSE)","v":0.14873594171490565},{"$f":"HLOOKUP(Calculations!$E$2,'Population 2016'!$C$3:$BC$249,'Population 2016'!BD142,FALSE)","v":34795},0,{"$f":"HLOOKUP(Results!E$4,Targeting!$C$3:$F$249,Targeting!$G142,FALSE)","v":1030},{"$f":"IF(AND(OR(Calculations!$E$2=\"Orkney Health Board\",Calculations!$E$2=\"Orkney Islands Local Authority\"),$F142=1),0,IF(AND(OR(Calculations!$E$2=\"Shetland Health Board\",Calculations!$E$2=\"Western Isles Health Board\",Calculations!$E$2=\"Shetland Islands Local Authority\",Calculations!$E$2=\"Eilean Siar Local Authority\"),OR($F142=1,$F142=5)),0,new_ci(VALUE(LEFT(Options!$B$24,2)),$C142,$E142,$F142,2016,$I142,1,$H142,$G142*$H142,Options!$B$8)))","v":21.367148671799999},{"$f":"IF(AND(OR(Calculations!$E$2=\"Orkney Health Board\",Calculations!$E$2=\"Orkney Islands Local Authority\"),$F142=1),0,IF(AND(OR(Calculations!$E$2=\"Shetland Health Board\",Calculations!$E$2=\"Western Isles Health Board\",Calculations!$E$2=\"Shetland Islands Local Authority\",Calculations!$E$2=\"Eilean Siar Local Authority\"),OR($F142=1,$F142=5)),0,new_ci(VALUE(LEFT(Options!$B$24,2)),$C142,$E142,$F142,2016,$I142+$J142,1,$H142,$G142*$H142,Options!$B$8)))","v":21.333893267800001},{"$f":"IF(AND(OR(Calculations!$E$2=\"Orkney Health Board\",Calculations!$E$2=\"Orkney Islands Local Authority\"),$F142=1),0,IF(AND(OR(Calculations!$E$2=\"Shetland Health Board\",Calculations!$E$2=\"Western Isles Health Board\",Calculations!$E$2=\"Shetland Islands Local Authority\",Calculations!$E$2=\"Eilean Siar Local Authority\"),OR($F142=1,$F142=5)),0,new_yllv2(VALUE(LEFT(Options!$B$24,2)),$C142,$D142,$E142,$F142,2016,$I142,1,$H142,$G142*$H142,Options!$B$8)))","v":1042.7167483481001},{"$f":"IF(AND(OR(Calculations!$E$2=\"Orkney Health Board\",Calculations!$E$2=\"Orkney Islands Local Authority\"),$F142=1),0,IF(AND(OR(Calculations!$E$2=\"Shetland Health Board\",Calculations!$E$2=\"Western Isles Health Board\",Calculations!$E$2=\"Shetland Islands Local Authority\",Calculations!$E$2=\"Eilean Siar Local Authority\"),OR($F142=1,$F142=5)),0,new_yllv2(VALUE(LEFT(Options!$B$24,2)),$C142,$D142,$E142,$F142,2016,$I142+$J142,1,$H142,$G142*$H142,Options!$B$8)))","v":1041.0938847991999},{"$f":"IF(AND(OR(Calculations!$E$2=\"Orkney Health Board\",Calculations!$E$2=\"Orkney Islands Local Authority\"),$F142=1),0,IF(AND(OR(Calculations!$E$2=\"Shetland Health Board\",Calculations!$E$2=\"Western Isles Health Board\",Calculations!$E$2=\"Shetland Islands Local Authority\",Calculations!$E$2=\"Eilean Siar Local Authority\"),OR($F142=1,$F142=5)),0,hosp_count(VALUE(LEFT(Options!$B$24,2)),$C142,$E142,$F142,2016,$I142,1,$H142,$G142*$H142, Options!$B$8)))","v":5011.1939968795004},{"$f":"IF(AND(OR(Calculations!$E$2=\"Orkney Health Board\",Calculations!$E$2=\"Orkney Islands Local Authority\"),$F142=1),0,IF(AND(OR(Calculations!$E$2=\"Shetland Health Board\",Calculations!$E$2=\"Western Isles Health Board\",Calculations!$E$2=\"Shetland Islands Local Authority\",Calculations!$E$2=\"Eilean Siar Local Authority\"),OR($F142=1,$F142=5)),0,hosp_count(VALUE(LEFT(Options!$B$24,2)),$C142,$E142,$F142,2016,$I142+$J142,1,$H142,$G142*$H142, Options!$B$8)))","v":4994.9692774903997},{"$f":"IF(AND(OR(Calculations!$E$2=\"Orkney Health Board\",Calculations!$E$2=\"Orkney Islands Local Authority\"),$F142=1),0,IF(AND(OR(Calculations!$E$2=\"Shetland Health Board\",Calculations!$E$2=\"Western Isles Health Board\",Calculations!$E$2=\"Shetland Islands Local Authority\",Calculations!$E$2=\"Eilean Siar Local Authority\"),OR($F142=1,$F142=5)),0,prem_mort(VALUE(LEFT(Options!$B$24,2)),$C142,$E142,$F142,2016,$I142,1,$H142,$G142*$H142,Options!$B$8)))","v":21.367148671799999},{"$f":"IF(AND(OR(Calculations!$E$2=\"Orkney Health Board\",Calculations!$E$2=\"Orkney Islands Local Authority\"),$F142=1),0,IF(AND(OR(Calculations!$E$2=\"Shetland Health Board\",Calculations!$E$2=\"Western Isles Health Board\",Calculations!$E$2=\"Shetland Islands Local Authority\",Calculations!$E$2=\"Eilean Siar Local Authority\"),OR($F142=1,$F142=5)),0,prem_mort(VALUE(LEFT(Options!$B$24,2)),$C142,$E142,$F142,2016,$I142+$J142,1,$H142,$G142*$H142,Options!$B$8)))","v":21.333893267800001},61.408675590745801,61.31310035292428,2996.7430617850268,2992.0789906572782,14402.052010000001,14355.422553500213,61.408675590745801,61.31310035292428,399156.3913398477,398535.15229400783,19478829.901602674,19448513.439272307,93613338.065000013,93310246.597751394,399156.3913398477,398535.15229400783,6500]
[null,"Female 35-39",36.918118,81.898120000000006,"female",3,{"$f":"HLOOKUP(Calculations!$E$2,'Prevalence Rates'!$C$3:$BC$249,'Prevalence Rates'!$BD143,FALSE)","v":0.14873594171490565},{"$f":"HLOOKUP(Calculations!$E$2,'Population 2016'!$C$3:$BC$249,'Population 2016'!BD143,FALSE)","v":31957},0,{"$f":"HLOOKUP(Results!E$4,Targeting!$C$3:$F$249,Targeting!$G143,FALSE)","v":946},{"$f":"IF(AND(OR(Calculations!$E$2=\"Orkney Health Board\",Calculations!$E$2=\"Orkney Islands Local Authority\"),$F143=1),0,IF(AND(OR(Calculations!$E$2=\"Shetland Health Board\",Calculations!$E$2=\"Western Isles Health Board\",Calculations!$E$2=\"Shetland Islands Local Authority\",Calculations!$E$2=\"Eilean Siar Local Authority\"),OR($F143=1,$F143=5)),0,new_ci(VALUE(LEFT(Options!$B$24,2)),$C143,$E143,$F143,2016,$I143,1,$H143,$G143*$H143,Options!$B$8)))","v":29.812445939100002},{"$f":"IF(AND(OR(Calculations!$E$2=\"Orkney Health Board\",Calculations!$E$2=\"Orkney Islands Local Authority\"),$F143=1),0,IF(AND(OR(Calculations!$E$2=\"Shetland Health Board\",Calculations!$E$2=\"Western Isles Health Board\",Calculations!$E$2=\"Shetland Islands Local Authority\",Calculations!$E$2=\"Eilean Siar Local Authority\"),OR($F143=1,$F143=5)),0,new_ci(VALUE(LEFT(Options!$B$24,2)),$C143,$E143,$F143,2016,$I143+$J143,1,$H143,$G143*$H143,Options!$B$8)))","v":29.766056842499999},{"$f":"IF(AND(OR(Calculations!$E$2=\"Orkney Health Board\",Calculations!$E$2=\"Orkney Islands Local Authority\"),$F143=1),0,IF(AND(OR(Calculations!$E$2=\"Shetland Health Board\",Calculations!$E$2=\"Western Isles Health Board\",Calculations!$E$2=\"Shetland Islands Local Authority\",Calculations!$E$2=\"Eilean Siar Local Authority\"),OR($F143=1,$F143=5)),0,new_yllv2(VALUE(LEFT(Options!$B$24,2)),$C143,$D143,$E143,$F143,2016,$I143,1,$H143,$G143*$H143,Options!$B$8)))","v":1311.1514320265001},{"$f":"IF(AND(OR(Calculations!$E$2=\"Orkney Health Board\",Calculations!$E$2=\"Orkney Islands Local Authority\"),$F143=1),0,IF(AND(OR(Calculations!$E$2=\"Shetland Health Board\",Calculations!$E$2=\"Western Isles Health Board\",Calculations!$E$2=\"Shetland Islands Local Authority\",Calculations!$E$2=\"Eilean Siar Local Authority\"),OR($F143=1,$F143=5)),0,new_yllv2(VALUE(LEFT(Options!$B$24,2)),$C143,$D143,$E143,$F143,2016,$I143+$J143,1,$H143,$G143*$H143,Options!$B$8)))","v":1309.1112394653001},{"$f":"IF(AND(OR(Calculations!$E$2=\"Orkney Health Board\",Calculations!$E$2=\"Orkney Islands Local Authority\"),$F143=1),0,IF(AND(OR(Calculations!$E$2=\"Shetland Health Board\",Calculations!$E$2=\"Western Isles Health Board\",Calculations!$E$2=\"Shetland Islands Local Authority\",Calculations!$E$2=\"Eilean Siar Local Authority\"),OR($F143=1,$F143=5)),0,hosp_count(VALUE(LEFT(Options!$B$24,2)),$C143,$E143,$F143,2016,$I143,1,$H143,$G143*$H143, Options!$B$8)))","v":5208.5576023617004},{"$f":"IF(AND(OR(Calculations!$E$2=\"Orkney Health Board\",Calculations!$E$2=\"Orkney Islands Local Authority\"),$F143=1),0,IF(AND(OR(Calculations!$E$2=\"Shetland Health Board\",Calculations!$E$2=\"Western Isles Health Board\",Calculations!$E$2=\"Shetland Islands Local Authority\",Calculations!$E$2=\"Eilean Siar Local Authority\"),OR($F143=1,$F143=5)),0,hosp_count(VALUE(LEFT(Options!$B$24,2)),$C143,$E143,$F143,2016,$I143+$J143,1,$H143,$G143*$H143, Options!$B$8)))","v":5191.6936953682998},{"$f":"IF(AND(OR(Calculations!$E$2=\"Orkney Health Board\",Calculations!$E$2=\"Orkney Islands Local Authority\"),$F143=1),0,IF(AND(OR(Calculations!$E$2=\"Shetland Health Board\",Calculations!$E$2=\"Western Isles Health Board\",Calculations!$E$2=\"Shetland Islands Local Authority\",Calculations!$E$2=\"Eilean Siar Local Authority\"),OR($F143=1,$F143=5)),0,prem_mort(VALUE(LEFT(Options!$B$24,2)),$C143,$E143,$F143,2016,$I143,1,$H143,$G143*$H143,Options!$B$8)))","v":29.812445939100002},{"$f":"IF(AND(OR(Calculations!$E$2=\"Orkney Health Board\",Calculations!$E$2=\"Orkney Islands Local Authority\"),$F143=1),0,IF(AND(OR(Calculations!$E$2=\"Shetland Health Board\",Calculations!$E$2=\"Western Isles Health Board\",Calculations!$E$2=\"Shetland Islands Local Authority\",Calculations!$E$2=\"Eilean Siar Local Authority\"),OR($F143=1,$F143=5)),0,prem_mort(VALUE(LEFT(Options!$B$24,2)),$C143,$E143,$F143,2016,$I143+$J143,1,$H143,$G143*$H143,Options!$B$8)))","v":29.766056842499999},93.289250990706265,93.144090003755039,4102.8614451497324,4096.4772646534402,16298.643810000001,16245.873190125169,93.289250990706265,93.144090003755039,653024.75693494384,652008.6300262853,28720030.116048127,28675340.85257408,114090506.67000002,113721112.33087619,653024.75693494384,652008.6300262853,7000]
[null,"Female 40-44",42.077438000000001,82.30744,"female",3,{"$f":"HLOOKUP(Calculations!$E$2,'Prevalence Rates'!$C$3:$BC$249,'Prevalence Rates'!$BD144,FALSE)","v":0.14873594171490565},{"$f":"HLOOKUP(Calculations!$E$2,'Population 2016'!$C$3:$BC$249,'Population 2016'!BD144,FALSE)","v":33291},0,{"$f":"HLOOKUP(Results!E$4,Targeting!$C$3:$F$249,Targeting!$G144,FALSE)","v":986},{"$f":"IF(AND(OR(Calculations!$E$2=\"Orkney Health Board\",Calculations!$E$2=\"Orkney Islands Local Authority\"),$F144=1),0,IF(AND(OR(Calculations!$E$2=\"Shetland Health Board\",Calculations!$E$2=\"Western Isles Health Board\",Calculations!$E$2=\"Shetland Islands Local Authority\",Calculations!$E$2=\"Eilean Siar Local Authority\"),OR($F144=1,$F144=5)),0,new_ci(VALUE(LEFT(Options!$B$24,2)),$C144,$E144,$F144,2016,$I144,1,$H144,$G144*$H144,Options!$B$8)))","v":48.153032891000002},{"$f":"IF(AND(OR(Calculations!$E$2=\"Orkney Health Board\",Calculations!$E$2=\"Orkney Islands Local Authority\"),$F144=1),0,IF(AND(OR(Calculations!$E$2=\"Shetland Health Board\",Calculations!$E$2=\"Western Isles Health Board\",Calculations!$E$2=\"Shetland Islands Local Authority\",Calculations!$E$2=\"Eilean Siar Local Authority\"),OR($F144=1,$F144=5)),0,new_ci(VALUE(LEFT(Options!$B$24,2)),$C144,$E144,$F144,2016,$I144+$J144,1,$H144,$G144*$H144,Options!$B$8)))","v":48.078094623200002},{"$f":"IF(AND(OR(Calculations!$E$2=\"Orkney Health Board\",Calculations!$E$2=\"Orkney Islands Local Authority\"),$F144=1),0,IF(AND(OR(Calculations!$E$2=\"Shetland Health Board\",Calculations!$E$2=\"Western Isles Health Board\",Calculations!$E$2=\"Shetland Islands Local Authority\",Calculations!$E$2=\"Eilean Siar Local Authority\"),OR($F144=1,$F144=5)),0,new_yllv2(VALUE(LEFT(Options!$B$24,2)),$C144,$D144,$E144,$F144,2016,$I144,1,$H144,$G144*$H144,Options!$B$8)))","v":1889.0435766200001},{"$f":"IF(AND(OR(Calculations!$E$2=\"Orkney Health Board\",Calculations!$E$2=\"Orkney Islands Local Authority\"),$F144=1),0,IF(AND(OR(Calculations!$E$2=\"Shetland Health Board\",Calculations!$E$2=\"Western Isles Health Board\",Calculations!$E$2=\"Shetland Islands Local Authority\",Calculations!$E$2=\"Eilean Siar Local Authority\"),OR($F144=1,$F144=5)),0,new_yllv2(VALUE(LEFT(Options!$B$24,2)),$C144,$D144,$E144,$F144,2016,$I144+$J144,1,$H144,$G144*$H144,Options!$B$8)))","v":1886.1037482243},{"$f":"IF(AND(OR(Calculations!$E$2=\"Orkney Health Board\",Calculations!$E$2=\"Orkney Islands Local Authority\"),$F144=1),0,IF(AND(OR(Calculations!$E$2=\"Shetland Health Board\",Calculations!$E$2=\"Western Isles Health Board\",Calculations!$E$2=\"Shetland Islands Local Authority\",Calculations!$E$2=\"Eilean Siar Local Authority\"),OR($F144=1,$F144=5)),0,hosp_count(VALUE(LEFT(Options!$B$24,2)),$C144,$E144,$F144,2016,$I144,1,$H144,$G144*$H144, Options!$B$8)))","v":6177.8773554561003},{"$f":"IF(AND(OR(Calculations!$E$2=\"Orkney Health Board\",Calculations!$E$2=\"Orkney Islands Local Authority\"),$F144=1),0,IF(AND(OR(Calculations!$E$2=\"Shetland Health Board\",Calculations!$E$2=\"Western Isles Health Board\",Calculations!$E$2=\"Shetland Islands Local Authority\",Calculations!$E$2=\"Eilean Siar Local Authority\"),OR($F144=1,$F144=5)),0,hosp_count(VALUE(LEFT(Options!$B$24,2)),$C144,$E144,$F144,2016,$I144+$J144,1,$H144,$G144*$H144, Options!$B$8)))","v":6157.8646892938004},{"$f":"IF(AND(OR(Calculations!$E$2=\"Orkney Health Board\",Calculations!$E$2=\"Orkney Islands Local Authority\"),$F144=1),0,IF(AND(OR(Calculations!$E$2=\"Shetland Health Board\",Calculations!$E$2=\"Western Isles Health Board\",Calculations!$E$2=\"Shetland Islands Local Authority\",Calculations!$E$2=\"Eilean Siar Local Authority\"),OR($F144=1,$F144=5)),0,prem_mort(VALUE(LEFT(Options!$B$24,2)),$C144,$E144,$F144,2016,$I144,1,$H144,$G144*$H144,Options!$B$8)))","v":48.153032891000002},{"$f":"IF(AND(OR(Calculations!$E$2=\"Orkney Health Board\",Calculations!$E$2=\"Orkney Islands Local Authority\"),$F144=1),0,IF(AND(OR(Calculations!$E$2=\"Shetland Health Board\",Calculations!$E$2=\"Western Isles Health Board\",Calculations!$E$2=\"Shetland Islands Local Authority\",Calculations!$E$2=\"Eilean Siar Local Authority\"),OR($F144=1,$F144=5)),0,prem_mort(VALUE(LEFT(Options!$B$24,2)),$C144,$E144,$F144,2016,$I144+$J144,1,$H144,$G144*$H144,Options!$B$8)))","v":48.078094623200002},144.64279502267883,144.41769434141358,5674.337138025292,5665.5064378489687,18557.199710000001,18497.0853662966,144.64279502267883,144.41769434141358,1012499.5651587518,1010923.860389895,39720359.966177046,39658545.064942785,129900397.97,129479597.5640762,1012499.5651587518,1010923.860389895,7000]
[null,"Female 45-49",47.025772000000003,82.585769999999997,"female",3,{"$f":"HLOOKUP(Calculations!$E$2,'Prevalence Rates'!$C$3:$BC$249,'Prevalence Rates'!$BD145,FALSE)","v":0.14873594171490565},{"$f":"HLOOKUP(Calculations!$E$2,'Population 2016'!$C$3:$BC$249,'Population 2016'!BD145,FALSE)","v":40488},0,{"$f":"HLOOKUP(Results!E$4,Targeting!$C$3:$F$249,Targeting!$G145,FALSE)","v":1199},{"$f":"IF(AND(OR(Calculations!$E$2=\"Orkney Health Board\",Calculations!$E$2=\"Orkney Islands Local Authority\"),$F145=1),0,IF(AND(OR(Calculations!$E$2=\"Shetland Health Board\",Calculations!$E$2=\"Western Isles Health Board\",Calculations!$E$2=\"Shetland Islands Local Authority\",Calculations!$E$2=\"Eilean Siar Local Authority\"),OR($F145=1,$F145=5)),0,new_ci(VALUE(LEFT(Options!$B$24,2)),$C145,$E145,$F145,2016,$I145,1,$H145,$G145*$H145,Options!$B$8)))","v":89.174626219900006},{"$f":"IF(AND(OR(Calculations!$E$2=\"Orkney Health Board\",Calculations!$E$2=\"Orkney Islands Local Authority\"),$F145=1),0,IF(AND(OR(Calculations!$E$2=\"Shetland Health Board\",Calculations!$E$2=\"Western Isles Health Board\",Calculations!$E$2=\"Shetland Islands Local Authority\",Calculations!$E$2=\"Eilean Siar Local Authority\"),OR($F145=1,$F145=5)),0,new_ci(VALUE(LEFT(Options!$B$24,2)),$C145,$E145,$F145,2016,$I145+$J145,1,$H145,$G145*$H145,Options!$B$8)))","v":89.035943405300003},{"$f":"IF(AND(OR(Calculations!$E$2=\"Orkney Health Board\",Calculations!$E$2=\"Orkney Islands Local Authority\"),$F145=1),0,IF(AND(OR(Calculations!$E$2=\"Shetland Health Board\",Calculations!$E$2=\"Western Isles Health Board\",Calculations!$E$2=\"Shetland Islands Local Authority\",Calculations!$E$2=\"Eilean Siar Local Authority\"),OR($F145=1,$F145=5)),0,new_yllv2(VALUE(LEFT(Options!$B$24,2)),$C145,$D145,$E145,$F145,2016,$I145,1,$H145,$G145*$H145,Options!$B$8)))","v":3081.8749038105002},{"$f":"IF(AND(OR(Calculations!$E$2=\"Orkney Health Board\",Calculations!$E$2=\"Orkney Islands Local Authority\"),$F145=1),0,IF(AND(OR(Calculations!$E$2=\"Shetland Health Board\",Calculations!$E$2=\"Western Isles Health Board\",Calculations!$E$2=\"Shetland Islands Local Authority\",Calculations!$E$2=\"Eilean Siar Local Authority\"),OR($F145=1,$F145=5)),0,new_yllv2(VALUE(LEFT(Options!$B$24,2)),$C145,$D145,$E145,$F145,2016,$I145+$J145,1,$H145,$G145*$H145,Options!$B$8)))","v":3077.0820260153},{"$f":"IF(AND(OR(Calculations!$E$2=\"Orkney Health Board\",Calculations!$E$2=\"Orkney Islands Local Authority\"),$F145=1),0,IF(AND(OR(Calculations!$E$2=\"Shetland Health Board\",Calculations!$E$2=\"Western Isles Health Board\",Calculations!$E$2=\"Shetland Islands Local Authority\",Calculations!$E$2=\"Eilean Siar Local Authority\"),OR($F145=1,$F145=5)),0,hosp_count(VALUE(LEFT(Options!$B$24,2)),$C145,$E145,$F145,2016,$I145,1,$H145,$G145*$H145, Options!$B$8)))","v":8509.3209577487996},{"$f":"IF(AND(OR(Calculations!$E$2=\"Orkney Health Board\",Calculations!$E$2=\"Orkney Islands Local Authority\"),$F145=1),0,IF(AND(OR(Calculations!$E$2=\"Shetland Health Board\",Calculations!$E$2=\"Western Isles Health Board\",Calculations!$E$2=\"Shetland Islands Local Authority\",Calculations!$E$2=\"Eilean Siar Local Authority\"),OR($F145=1,$F145=5)),0,hosp_count(VALUE(LEFT(Options!$B$24,2)),$C145,$E145,$F145,2016,$I145+$J145,1,$H145,$G145*$H145, Options!$B$8)))","v":8481.7594255176009},{"$f":"IF(AND(OR(Calculations!$E$2=\"Orkney Health Board\",Calculations!$E$2=\"Orkney Islands Local Authority\"),$F145=1),0,IF(AND(OR(Calculations!$E$2=\"Shetland Health Board\",Calculations!$E$2=\"Western Isles Health Board\",Calculations!$E$2=\"Shetland Islands Local Authority\",Calculations!$E$2=\"Eilean Siar Local Authority\"),OR($F145=1,$F145=5)),0,prem_mort(VALUE(LEFT(Options!$B$24,2)),$C145,$E145,$F145,2016,$I145,1,$H145,$G145*$H145,Options!$B$8)))","v":89.174626219900006},{"$f":"IF(AND(OR(Calculations!$E$2=\"Orkney Health Board\",Calculations!$E$2=\"Orkney Islands Local Authority\"),$F145=1),0,IF(AND(OR(Calculations!$E$2=\"Shetland Health Board\",Calculations!$E$2=\"Western Isles Health Board\",Calculations!$E$2=\"Shetland Islands Local Authority\",Calculations!$E$2=\"Eilean Siar Local Authority\"),OR($F145=1,$F145=5)),0,prem_mort(VALUE(LEFT(Options!$B$24,2)),$C145,$E145,$F145,2016,$I145+$J145,1,$H145,$G145*$H145,Options!$B$8)))","v":89.035943405300003},220.24952138880658,219.90699319625568,7611.8230186981327,7599.9852450486569,21016.896259999998,20948.82292411974,220.24952138880658,219.90699319625568,1541746.649721646,1539348.9523737899,53282761.130886927,53199896.715340599,147118273.81999999,146641760.46883819,1541746.649721646,1539348.9523737899,7000]
[null,"Female 50-54",51.990825999999998,82.980829999999997,"female",3,{"$f":"HLOOKUP(Calculations!$E$2,'Prevalence Rates'!$C$3:$BC$249,'Prevalence Rates'!$BD146,FALSE)","v":0.14873594171490565},{"$f":"HLOOKUP(Calculations!$E$2,'Population 2016'!$C$3:$BC$249,'Population 2016'!BD146,FALSE)","v":42537},0,{"$f":"HLOOKUP(Results!E$4,Targeting!$C$3:$F$249,Targeting!$G146,FALSE)","v":1260},{"$f":"IF(AND(OR(Calculations!$E$2=\"Orkney Health Board\",Calculations!$E$2=\"Orkney Islands Local Authority\"),$F146=1),0,IF(AND(OR(Calculations!$E$2=\"Shetland Health Board\",Calculations!$E$2=\"Western Isles Health Board\",Calculations!$E$2=\"Shetland Islands Local Authority\",Calculations!$E$2=\"Eilean Siar Local Authority\"),OR($F146=1,$F146=5)),0,new_ci(VALUE(LEFT(Options!$B$24,2)),$C146,$E146,$F146,2016,$I146,1,$H146,$G146*$H146,Options!$B$8)))","v":142.83330357439999},{"$f":"IF(AND(OR(Calculations!$E$2=\"Orkney Health Board\",Calculations!$E$2=\"Orkney Islands Local Authority\"),$F146=1),0,IF(AND(OR(Calculations!$E$2=\"Shetland Health Board\",Calculations!$E$2=\"Western Isles Health Board\",Calculations!$E$2=\"Shetland Islands Local Authority\",Calculations!$E$2=\"Eilean Siar Local Authority\"),OR($F146=1,$F146=5)),0,new_ci(VALUE(LEFT(Options!$B$24,2)),$C146,$E146,$F146,2016,$I146+$J146,1,$H146,$G146*$H146,Options!$B$8)))","v":142.61130455239999},{"$f":"IF(AND(OR(Calculations!$E$2=\"Orkney Health Board\",Calculations!$E$2=\"Orkney Islands Local Authority\"),$F146=1),0,IF(AND(OR(Calculations!$E$2=\"Shetland Health Board\",Calculations!$E$2=\"Western Isles Health Board\",Calculations!$E$2=\"Shetland Islands Local Authority\",Calculations!$E$2=\"Eilean Siar Local Authority\"),OR($F146=1,$F146=5)),0,new_yllv2(VALUE(LEFT(Options!$B$24,2)),$C146,$D146,$E146,$F146,2016,$I146,1,$H146,$G146*$H146,Options!$B$8)))","v":4283.5713455294999},{"$f":"IF(AND(OR(Calculations!$E$2=\"Orkney Health Board\",Calculations!$E$2=\"Orkney Islands Local Authority\"),$F146=1),0,IF(AND(OR(Calculations!$E$2=\"Shetland Health Board\",Calculations!$E$2=\"Western Isles Health Board\",Calculations!$E$2=\"Shetland Islands Local Authority\",Calculations!$E$2=\"Eilean Siar Local Authority\"),OR($F146=1,$F146=5)),0,new_yllv2(VALUE(LEFT(Options!$B$24,2)),$C146,$D146,$E146,$F146,2016,$I146+$J146,1,$H146,$G146*$H146,Options!$B$8)))","v":4276.9135939716998},{"$f":"IF(AND(OR(Calculations!$E$2=\"Orkney Health Board\",Calculations!$E$2=\"Orkney Islands Local Authority\"),$F146=1),0,IF(AND(OR(Calculations!$E$2=\"Shetland Health Board\",Calculations!$E$2=\"Western Isles Health Board\",Calculations!$E$2=\"Shetland Islands Local Authority\",Calculations!$E$2=\"Eilean Siar Local Authority\"),OR($F146=1,$F146=5)),0,hosp_count(VALUE(LEFT(Options!$B$24,2)),$C146,$E146,$F146,2016,$I146,1,$H146,$G146*$H146, Options!$B$8)))","v":10129.178571979501},{"$f":"IF(AND(OR(Calculations!$E$2=\"Orkney Health Board\",Calculations!$E$2=\"Orkney Islands Local Authority\"),$F146=1),0,IF(AND(OR(Calculations!$E$2=\"Shetland Health Board\",Calculations!$E$2=\"Western Isles Health Board\",Calculations!$E$2=\"Shetland Islands Local Authority\",Calculations!$E$2=\"Eilean Siar Local Authority\"),OR($F146=1,$F146=5)),0,hosp_count(VALUE(LEFT(Options!$B$24,2)),$C146,$E146,$F146,2016,$I146+$J146,1,$H146,$G146*$H146, Options!$B$8)))","v":10096.3619776173},{"$f":"IF(AND(OR(Calculations!$E$2=\"Orkney Health Board\",Calculations!$E$2=\"Orkney Islands Local Authority\"),$F146=1),0,IF(AND(OR(Calculations!$E$2=\"Shetland Health Board\",Calculations!$E$2=\"Western Isles Health Board\",Calculations!$E$2=\"Shetland Islands Local Authority\",Calculations!$E$2=\"Eilean Siar Local Authority\"),OR($F146=1,$F146=5)),0,prem_mort(VALUE(LEFT(Options!$B$24,2)),$C146,$E146,$F146,2016,$I146,1,$H146,$G146*$H146,Options!$B$8)))","v":142.83330357439999},{"$f":"IF(AND(OR(Calculations!$E$2=\"Orkney Health Board\",Calculations!$E$2=\"Orkney Islands Local Authority\"),$F146=1),0,IF(AND(OR(Calculations!$E$2=\"Shetland Health Board\",Calculations!$E$2=\"Western Isles Health Board\",Calculations!$E$2=\"Shetland Islands Local Authority\",Calculations!$E$2=\"Eilean Siar Local Authority\"),OR($F146=1,$F146=5)),0,prem_mort(VALUE(LEFT(Options!$B$24,2)),$C146,$E146,$F146,2016,$I146+$J146,1,$H146,$G146*$H146,Options!$B$8)))","v":142.61130455239999},335.78602998424896,335.26413370101318,10070.224382371816,10054.572710749935,23812.630350000003,23735.481998301009,335.78602998424896,335.26413370101318,2350502.2098897425,2346848.9359070924,70491570.676602721,70382008.975249544,166688412.45000002,166148373.98810706,2350502.2098897425,2346848.9359070924,7000]
[null,"Female 55-59",56.953040999999999,83.473039999999997,"female",3,{"$f":"HLOOKUP(Calculations!$E$2,'Prevalence Rates'!$C$3:$BC$249,'Prevalence Rates'!$BD147,FALSE)","v":0.10031299207819142},{"$f":"HLOOKUP(Calculations!$E$2,'Population 2016'!$C$3:$BC$249,'Population 2016'!BD147,FALSE)","v":39153},0,{"$f":"HLOOKUP(Results!E$4,Targeting!$C$3:$F$249,Targeting!$G147,FALSE)","v":1160},{"$f":"IF(AND(OR(Calculations!$E$2=\"Orkney Health Board\",Calculations!$E$2=\"Orkney Islands Local Authority\"),$F147=1),0,IF(AND(OR(Calculations!$E$2=\"Shetland Health Board\",Calculations!$E$2=\"Western Isles Health Board\",Calculations!$E$2=\"Shetland Islands Local Authority\",Calculations!$E$2=\"Eilean Siar Local Authority\"),OR($F147=1,$F147=5)),0,new_ci(VALUE(LEFT(Options!$B$24,2)),$C147,$E147,$F147,2016,$I147,1,$H147,$G147*$H147,Options!$B$8)))","v":200.3275737415},{"$f":"IF(AND(OR(Calculations!$E$2=\"Orkney Health Board\",Calculations!$E$2=\"Orkney Islands Local Authority\"),$F147=1),0,IF(AND(OR(Calculations!$E$2=\"Shetland Health Board\",Calculations!$E$2=\"Western Isles Health Board\",Calculations!$E$2=\"Shetland Islands Local Authority\",Calculations!$E$2=\"Eilean Siar Local Authority\"),OR($F147=1,$F147=5)),0,new_ci(VALUE(LEFT(Options!$B$24,2)),$C147,$E147,$F147,2016,$I147+$J147,1,$H147,$G147*$H147,Options!$B$8)))","v":200.0117774295},{"$f":"IF(AND(OR(Calculations!$E$2=\"Orkney Health Board\",Calculations!$E$2=\"Orkney Islands Local Authority\"),$F147=1),0,IF(AND(OR(Calculations!$E$2=\"Shetland Health Board\",Calculations!$E$2=\"Western Isles Health Board\",Calculations!$E$2=\"Shetland Islands Local Authority\",Calculations!$E$2=\"Eilean Siar Local Authority\"),OR($F147=1,$F147=5)),0,new_yllv2(VALUE(LEFT(Options!$B$24,2)),$C147,$D147,$E147,$F147,2016,$I147,1,$H147,$G147*$H147,Options!$B$8)))","v":5112.3594815554998},{"$f":"IF(AND(OR(Calculations!$E$2=\"Orkney Health Board\",Calculations!$E$2=\"Orkney Islands Local Authority\"),$F147=1),0,IF(AND(OR(Calculations!$E$2=\"Shetland Health Board\",Calculations!$E$2=\"Western Isles Health Board\",Calculations!$E$2=\"Shetland Islands Local Authority\",Calculations!$E$2=\"Eilean Siar Local Authority\"),OR($F147=1,$F147=5)),0,new_yllv2(VALUE(LEFT(Options!$B$24,2)),$C147,$D147,$E147,$F147,2016,$I147+$J147,1,$H147,$G147*$H147,Options!$B$8)))","v":5104.3003599890999},{"$f":"IF(AND(OR(Calculations!$E$2=\"Orkney Health Board\",Calculations!$E$2=\"Orkney Islands Local Authority\"),$F147=1),0,IF(AND(OR(Calculations!$E$2=\"Shetland Health Board\",Calculations!$E$2=\"Western Isles Health Board\",Calculations!$E$2=\"Shetland Islands Local Authority\",Calculations!$E$2=\"Eilean Siar Local Authority\"),OR($F147=1,$F147=5)),0,hosp_count(VALUE(LEFT(Options!$B$24,2)),$C147,$E147,$F147,2016,$I147,1,$H147,$G147*$H147, Options!$B$8)))","v":10562.8275926019},{"$f":"IF(AND(OR(Calculations!$E$2=\"Orkney Health Board\",Calculations!$E$2=\"Orkney Islands Local Authority\"),$F147=1),0,IF(AND(OR(Calculations!$E$2=\"Shetland Health Board\",Calculations!$E$2=\"Western Isles Health Board\",Calculations!$E$2=\"Shetland Islands Local Authority\",Calculations!$E$2=\"Eilean Siar Local Authority\"),OR($F147=1,$F147=5)),0,hosp_count(VALUE(LEFT(Options!$B$24,2)),$C147,$E147,$F147,2016,$I147+$J147,1,$H147,$G147*$H147, Options!$B$8)))","v":10528.023140023601},{"$f":"IF(AND(OR(Calculations!$E$2=\"Orkney Health Board\",Calculations!$E$2=\"Orkney Islands Local Authority\"),$F147=1),0,IF(AND(OR(Calculations!$E$2=\"Shetland Health Board\",Calculations!$E$2=\"Western Isles Health Board\",Calculations!$E$2=\"Shetland Islands Local Authority\",Calculations!$E$2=\"Eilean Siar Local Authority\"),OR($F147=1,$F147=5)),0,prem_mort(VALUE(LEFT(Options!$B$24,2)),$C147,$E147,$F147,2016,$I147,1,$H147,$G147*$H147,Options!$B$8)))","v":200.3275737415},{"$f":"IF(AND(OR(Calculations!$E$2=\"Orkney Health Board\",Calculations!$E$2=\"Orkney Islands Local Authority\"),$F147=1),0,IF(AND(OR(Calculations!$E$2=\"Shetland Health Board\",Calculations!$E$2=\"Western Isles Health Board\",Calculations!$E$2=\"Shetland Islands Local Authority\",Calculations!$E$2=\"Eilean Siar Local Authority\"),OR($F147=1,$F147=5)),0,prem_mort(VALUE(LEFT(Options!$B$24,2)),$C147,$E147,$F147,2016,$I147+$J147,1,$H147,$G147*$H147,Options!$B$8)))","v":200.0117774295},511.65319066610476,510.84662076852351,13057.388914145788,13036.805251166194,26978.335230000001,26889.441779745106,511.65319066610476,510.84662076852351,3325745.7393296808,3320503.0349954027,84873027.941947624,84739234.132580265,175359178.995,174781371.56834319,3325745.7393296808,3320503.0349954027,6500]
[null,"Female 60-64",61.947387999999997,84.167389999999997,"female",3,{"$f":"HLOOKUP(Calculations!$E$2,'Prevalence Rates'!$C$3:$BC$249,'Prevalence Rates'!$BD148,FALSE)","v":0.10031299207819142},{"$f":"HLOOKUP(Calculations!$E$2,'Population 2016'!$C$3:$BC$249,'Population 2016'!BD148,FALSE)","v":34585},0,{"$f":"HLOOKUP(Results!E$4,Targeting!$C$3:$F$249,Targeting!$G148,FALSE)","v":1024},{"$f":"IF(AND(OR(Calculations!$E$2=\"Orkney Health Board\",Calculations!$E$2=\"Orkney Islands Local Authority\"),$F148=1),0,IF(AND(OR(Calculations!$E$2=\"Shetland Health Board\",Calculations!$E$2=\"Western Isles Health Board\",Calculations!$E$2=\"Shetland Islands Local Authority\",Calculations!$E$2=\"Eilean Siar Local Authority\"),OR($F148=1,$F148=5)),0,new_ci(VALUE(LEFT(Options!$B$24,2)),$C148,$E148,$F148,2016,$I148,1,$H148,$G148*$H148,Options!$B$8)))","v":270.242388963},{"$f":"IF(AND(OR(Calculations!$E$2=\"Orkney Health Board\",Calculations!$E$2=\"Orkney Islands Local Authority\"),$F148=1),0,IF(AND(OR(Calculations!$E$2=\"Shetland Health Board\",Calculations!$E$2=\"Western Isles Health Board\",Calculations!$E$2=\"Shetland Islands Local Authority\",Calculations!$E$2=\"Eilean Siar Local Authority\"),OR($F148=1,$F148=5)),0,new_ci(VALUE(LEFT(Options!$B$24,2)),$C148,$E148,$F148,2016,$I148+$J148,1,$H148,$G148*$H148,Options!$B$8)))","v":269.81752808620001},{"$f":"IF(AND(OR(Calculations!$E$2=\"Orkney Health Board\",Calculations!$E$2=\"Orkney Islands Local Authority\"),$F148=1),0,IF(AND(OR(Calculations!$E$2=\"Shetland Health Board\",Calculations!$E$2=\"Western Isles Health Board\",Calculations!$E$2=\"Shetland Islands Local Authority\",Calculations!$E$2=\"Eilean Siar Local Authority\"),OR($F148=1,$F148=5)),0,new_yllv2(VALUE(LEFT(Options!$B$24,2)),$C148,$D148,$E148,$F148,2016,$I148,1,$H148,$G148*$H148,Options!$B$8)))","v":5734.5440342796001},{"$f":"IF(AND(OR(Calculations!$E$2=\"Orkney Health Board\",Calculations!$E$2=\"Orkney Islands Local Authority\"),$F148=1),0,IF(AND(OR(Calculations!$E$2=\"Shetland Health Board\",Calculations!$E$2=\"Western Isles Health Board\",Calculations!$E$2=\"Shetland Islands Local Authority\",Calculations!$E$2=\"Eilean Siar Local Authority\"),OR($F148=1,$F148=5)),0,new_yllv2(VALUE(LEFT(Options!$B$24,2)),$C148,$D148,$E148,$F148,2016,$I148+$J148,1,$H148,$G148*$H148,Options!$B$8)))","v":5725.5284856241997},{"$f":"IF(AND(OR(Calculations!$E$2=\"Orkney Health Board\",Calculations!$E$2=\"Orkney Islands Local Authority\"),$F148=1),0,IF(AND(OR(Calculations!$E$2=\"Shetland Health Board\",Calculations!$E$2=\"Western Isles Health Board\",Calculations!$E$2=\"Shetland Islands Local Authority\",Calculations!$E$2=\"Eilean Siar Local Authority\"),OR($F148=1,$F148=5)),0,hosp_count(VALUE(LEFT(Options!$B$24,2)),$C148,$E148,$F148,2016,$I148,1,$H148,$G148*$H148, Options!$B$8)))","v":10579.416535496001},{"$f":"IF(AND(OR(Calculations!$E$2=\"Orkney Health Board\",Calculations!$E$2=\"Orkney Islands Local Authority\"),$F148=1),0,IF(AND(OR(Calculations!$E$2=\"Shetland Health Board\",Calculations!$E$2=\"Western Isles Health Board\",Calculations!$E$2=\"Shetland Islands Local Authority\",Calculations!$E$2=\"Eilean Siar Local Authority\"),OR($F148=1,$F148=5)),0,hosp_count(VALUE(LEFT(Options!$B$24,2)),$C148,$E148,$F148,2016,$I148+$J148,1,$H148,$G148*$H148, Options!$B$8)))","v":10544.579951301101},{"$f":"IF(AND(OR(Calculations!$E$2=\"Orkney Health Board\",Calculations!$E$2=\"Orkney Islands Local Authority\"),$F148=1),0,IF(AND(OR(Calculations!$E$2=\"Shetland Health Board\",Calculations!$E$2=\"Western Isles Health Board\",Calculations!$E$2=\"Shetland Islands Local Authority\",Calculations!$E$2=\"Eilean Siar Local Authority\"),OR($F148=1,$F148=5)),0,prem_mort(VALUE(LEFT(Options!$B$24,2)),$C148,$E148,$F148,2016,$I148,1,$H148,$G148*$H148,Options!$B$8)))","v":270.242388963},{"$f":"IF(AND(OR(Calculations!$E$2=\"Orkney Health Board\",Calculations!$E$2=\"Orkney Islands Local Authority\"),$F148=1),0,IF(AND(OR(Calculations!$E$2=\"Shetland Health Board\",Calculations!$E$2=\"Western Isles Health Board\",Calculations!$E$2=\"Shetland Islands Local Authority\",Calculations!$E$2=\"Eilean Siar Local Authority\"),OR($F148=1,$F148=5)),0,prem_mort(VALUE(LEFT(Options!$B$24,2)),$C148,$E148,$F148,2016,$I148+$J148,1,$H148,$G148*$H148,Options!$B$8)))","v":269.81752808620001},781.38611815237823,780.15766397629034,16581.014989965592,16554.947189892151,30589.609759999999,30488.882322686426,781.38611815237823,780.15766397629034,4688316.7089142697,4680945.9838577416,99486089.939793557,99329683.139352903,183537658.56,182933293.93611854,4688316.7089142697,4680945.9838577416,6000]
[null,"Female 65-69",67.063927000000007,85.193929999999995,"female",3,{"$f":"HLOOKUP(Calculations!$E$2,'Prevalence Rates'!$C$3:$BC$249,'Prevalence Rates'!$BD149,FALSE)","v":0.10031299207819142},{"$f":"HLOOKUP(Calculations!$E$2,'Population 2016'!$C$3:$BC$249,'Population 2016'!BD149,FALSE)","v":35061},0,{"$f":"HLOOKUP(Results!E$4,Targeting!$C$3:$F$249,Targeting!$G149,FALSE)","v":1038},{"$f":"IF(AND(OR(Calculations!$E$2=\"Orkney Health Board\",Calculations!$E$2=\"Orkney Islands Local Authority\"),$F149=1),0,IF(AND(OR(Calculations!$E$2=\"Shetland Health Board\",Calculations!$E$2=\"Western Isles Health Board\",Calculations!$E$2=\"Shetland Islands Local Authority\",Calculations!$E$2=\"Eilean Siar Local Authority\"),OR($F149=1,$F149=5)),0,new_ci(VALUE(LEFT(Options!$B$24,2)),$C149,$E149,$F149,2016,$I149,1,$H149,$G149*$H149,Options!$B$8)))","v":422.42750604610001},{"$f":"IF(AND(OR(Calculations!$E$2=\"Orkney Health Board\",Calculations!$E$2=\"Orkney Islands Local Authority\"),$F149=1),0,IF(AND(OR(Calculations!$E$2=\"Shetland Health Board\",Calculations!$E$2=\"Western Isles Health Board\",Calculations!$E$2=\"Shetland Islands Local Authority\",Calculations!$E$2=\"Eilean Siar Local Authority\"),OR($F149=1,$F149=5)),0,new_ci(VALUE(LEFT(Options!$B$24,2)),$C149,$E149,$F149,2016,$I149+$J149,1,$H149,$G149*$H149,Options!$B$8)))","v":421.76559399849998},{"$f":"IF(AND(OR(Calculations!$E$2=\"Orkney Health Board\",Calculations!$E$2=\"Orkney Islands Local Authority\"),$F149=1),0,IF(AND(OR(Calculations!$E$2=\"Shetland Health Board\",Calculations!$E$2=\"Western Isles Health Board\",Calculations!$E$2=\"Shetland Islands Local Authority\",Calculations!$E$2=\"Eilean Siar Local Authority\"),OR($F149=1,$F149=5)),0,new_yllv2(VALUE(LEFT(Options!$B$24,2)),$C149,$D149,$E149,$F149,2016,$I149,1,$H149,$G149*$H149,Options!$B$8)))","v":7236.1844458522},{"$f":"IF(AND(OR(Calculations!$E$2=\"Orkney Health Board\",Calculations!$E$2=\"Orkney Islands Local Authority\"),$F149=1),0,IF(AND(OR(Calculations!$E$2=\"Shetland Health Board\",Calculations!$E$2=\"Western Isles Health Board\",Calculations!$E$2=\"Shetland Islands Local Authority\",Calculations!$E$2=\"Eilean Siar Local Authority\"),OR($F149=1,$F149=5)),0,new_yllv2(VALUE(LEFT(Options!$B$24,2)),$C149,$D149,$E149,$F149,2016,$I149+$J149,1,$H149,$G149*$H149,Options!$B$8)))","v":7224.8458904911004},{"$f":"IF(AND(OR(Calculations!$E$2=\"Orkney Health Board\",Calculations!$E$2=\"Orkney Islands Local Authority\"),$F149=1),0,IF(AND(OR(Calculations!$E$2=\"Shetland Health Board\",Calculations!$E$2=\"Western Isles Health Board\",Calculations!$E$2=\"Shetland Islands Local Authority\",Calculations!$E$2=\"Eilean Siar Local Authority\"),OR($F149=1,$F149=5)),0,hosp_count(VALUE(LEFT(Options!$B$24,2)),$C149,$E149,$F149,2016,$I149,1,$H149,$G149*$H149, Options!$B$8)))","v":12198.090860927399},{"$f":"IF(AND(OR(Calculations!$E$2=\"Orkney Health Board\",Calculations!$E$2=\"Orkney Islands Local Authority\"),$F149=1),0,IF(AND(OR(Calculations!$E$2=\"Shetland Health Board\",Calculations!$E$2=\"Western Isles Health Board\",Calculations!$E$2=\"Shetland Islands Local Authority\",Calculations!$E$2=\"Eilean Siar Local Authority\"),OR($F149=1,$F149=5)),0,hosp_count(VALUE(LEFT(Options!$B$24,2)),$C149,$E149,$F149,2016,$I149+$J149,1,$H149,$G149*$H149, Options!$B$8)))","v":12157.9278197407},{"$f":"IF(AND(OR(Calculations!$E$2=\"Orkney Health Board\",Calculations!$E$2=\"Orkney Islands Local Authority\"),$F149=1),0,IF(AND(OR(Calculations!$E$2=\"Shetland Health Board\",Calculations!$E$2=\"Western Isles Health Board\",Calculations!$E$2=\"Shetland Islands Local Authority\",Calculations!$E$2=\"Eilean Siar Local Authority\"),OR($F149=1,$F149=5)),0,prem_mort(VALUE(LEFT(Options!$B$24,2)),$C149,$E149,$F149,2016,$I149,1,$H149,$G149*$H149,Options!$B$8)))","v":422.42750604610001},{"$f":"IF(AND(OR(Calculations!$E$2=\"Orkney Health Board\",Calculations!$E$2=\"Orkney Islands Local Authority\"),$F149=1),0,IF(AND(OR(Calculations!$E$2=\"Shetland Health Board\",Calculations!$E$2=\"Western Isles Health Board\",Calculations!$E$2=\"Shetland Islands Local Authority\",Calculations!$E$2=\"Eilean Siar Local Authority\"),OR($F149=1,$F149=5)),0,prem_mort(VALUE(LEFT(Options!$B$24,2)),$C149,$E149,$F149,2016,$I149+$J149,1,$H149,$G149*$H149,Options!$B$8)))","v":421.76559399849998},1204.8358747500072,1202.9479877884257,20638.842148975215,20606.502639659739,34791.052339999995,34676.500441347082,1204.8358747500072,1202.9479877884257,6626597.3111250391,6616213.9328363417,113513631.81936368,113335764.51812856,191350787.86999997,190720752.42740893,6626597.3111250391,6616213.9328363417,5500]
[null,"Female 70-74",71.938164,86.248159999999999,"female",3,{"$f":"HLOOKUP(Calculations!$E$2,'Prevalence Rates'!$C$3:$BC$249,'Prevalence Rates'!$BD150,FALSE)","v":0.10031299207819142},{"$f":"HLOOKUP(Calculations!$E$2,'Population 2016'!$C$3:$BC$249,'Population 2016'!BD150,FALSE)","v":27558},0,{"$f":"HLOOKUP(Results!E$4,Targeting!$C$3:$F$249,Targeting!$G150,FALSE)","v":816},{"$f":"IF(AND(OR(Calculations!$E$2=\"Orkney Health Board\",Calculations!$E$2=\"Orkney Islands Local Authority\"),$F150=1),0,IF(AND(OR(Calculations!$E$2=\"Shetland Health Board\",Calculations!$E$2=\"Western Isles Health Board\",Calculations!$E$2=\"Shetland Islands Local Authority\",Calculations!$E$2=\"Eilean Siar Local Authority\"),OR($F150=1,$F150=5)),0,new_ci(VALUE(LEFT(Options!$B$24,2)),$C150,$E150,$F150,2016,$I150,1,$H150,$G150*$H150,Options!$B$8)))","v":501.02814579469998},{"$f":"IF(AND(OR(Calculations!$E$2=\"Orkney Health Board\",Calculations!$E$2=\"Orkney Islands Local Authority\"),$F150=1),0,IF(AND(OR(Calculations!$E$2=\"Shetland Health Board\",Calculations!$E$2=\"Western Isles Health Board\",Calculations!$E$2=\"Shetland Islands Local Authority\",Calculations!$E$2=\"Eilean Siar Local Authority\"),OR($F150=1,$F150=5)),0,new_ci(VALUE(LEFT(Options!$B$24,2)),$C150,$E150,$F150,2016,$I150+$J150,1,$H150,$G150*$H150,Options!$B$8)))","v":500.24664194989998},{"$f":"IF(AND(OR(Calculations!$E$2=\"Orkney Health Board\",Calculations!$E$2=\"Orkney Islands Local Authority\"),$F150=1),0,IF(AND(OR(Calculations!$E$2=\"Shetland Health Board\",Calculations!$E$2=\"Western Isles Health Board\",Calculations!$E$2=\"Shetland Islands Local Authority\",Calculations!$E$2=\"Eilean Siar Local Authority\"),OR($F150=1,$F150=5)),0,new_yllv2(VALUE(LEFT(Options!$B$24,2)),$C150,$D150,$E150,$F150,2016,$I150,1,$H150,$G150*$H150,Options!$B$8)))","v":6668.6826164148997},{"$f":"IF(AND(OR(Calculations!$E$2=\"Orkney Health Board\",Calculations!$E$2=\"Orkney Islands Local Authority\"),$F150=1),0,IF(AND(OR(Calculations!$E$2=\"Shetland Health Board\",Calculations!$E$2=\"Western Isles Health Board\",Calculations!$E$2=\"Shetland Islands Local Authority\",Calculations!$E$2=\"Eilean Siar Local Authority\"),OR($F150=1,$F150=5)),0,new_yllv2(VALUE(LEFT(Options!$B$24,2)),$C150,$D150,$E150,$F150,2016,$I150+$J150,1,$H150,$G150*$H150,Options!$B$8)))","v":6658.2808033665997},{"$f":"IF(AND(OR(Calculations!$E$2=\"Orkney Health Board\",Calculations!$E$2=\"Orkney Islands Local Authority\"),$F150=1),0,IF(AND(OR(Calculations!$E$2=\"Shetland Health Board\",Calculations!$E$2=\"Western Isles Health Board\",Calculations!$E$2=\"Shetland Islands Local Authority\",Calculations!$E$2=\"Eilean Siar Local Authority\"),OR($F150=1,$F150=5)),0,hosp_count(VALUE(LEFT(Options!$B$24,2)),$C150,$E150,$F150,2016,$I150,1,$H150,$G150*$H150, Options!$B$8)))","v":10838.3196694914},{"$f":"IF(AND(OR(Calculations!$E$2=\"Orkney Health Board\",Calculations!$E$2=\"Orkney Islands Local Authority\"),$F150=1),0,IF(AND(OR(Calculations!$E$2=\"Shetland Health Board\",Calculations!$E$2=\"Western Isles Health Board\",Calculations!$E$2=\"Shetland Islands Local Authority\",Calculations!$E$2=\"Eilean Siar Local Authority\"),OR($F150=1,$F150=5)),0,hosp_count(VALUE(LEFT(Options!$B$24,2)),$C150,$E150,$F150,2016,$I150+$J150,1,$H150,$G150*$H150, Options!$B$8)))","v":10802.628063448799},{"$f":"IF(AND(OR(Calculations!$E$2=\"Orkney Health Board\",Calculations!$E$2=\"Orkney Islands Local Authority\"),$F150=1),0,IF(AND(OR(Calculations!$E$2=\"Shetland Health Board\",Calculations!$E$2=\"Western Isles Health Board\",Calculations!$E$2=\"Shetland Islands Local Authority\",Calculations!$E$2=\"Eilean Siar Local Authority\"),OR($F150=1,$F150=5)),0,prem_mort(VALUE(LEFT(Options!$B$24,2)),$C150,$E150,$F150,2016,$I150,1,$H150,$G150*$H150,Options!$B$8)))","v":501.02814579469998},{"$f":"IF(AND(OR(Calculations!$E$2=\"Orkney Health Board\",Calculations!$E$2=\"Orkney Islands Local Authority\"),$F150=1),0,IF(AND(OR(Calculations!$E$2=\"Shetland Health Board\",Calculations!$E$2=\"Western Isles Health Board\",Calculations!$E$2=\"Shetland Islands Local Authority\",Calculations!$E$2=\"Eilean Siar Local Authority\"),OR($F150=1,$F150=5)),0,prem_mort(VALUE(LEFT(Options!$B$24,2)),$C150,$E150,$F150,2016,$I150+$J150,1,$H150,$G150*$H150,Options!$B$8)))","v":500.24664194989998},1818.0860214627332,1815.2501703675885,24198.717673324987,24160.972506591916,39329.12283,39199.608329518829,1818.0860214627332,1815.2501703675885,9090430.1073136665,9076250.8518379424,120993588.36662494,120804862.53295958,196645614.15000001,195998041.64759415,9090430.1073136665,9076250.8518379424,5000]
[null,"Female 75-79",76.942824999999999,87.812830000000005,"female",3,{"$f":"HLOOKUP(Calculations!$E$2,'Prevalence Rates'!$C$3:$BC$249,'Prevalence Rates'!$BD151,FALSE)","v":0.10031299207819142},{"$f":"HLOOKUP(Calculations!$E$2,'Population 2016'!$C$3:$BC$249,'Population 2016'!BD151,FALSE)","v":22028},0,{"$f":"HLOOKUP(Results!E$4,Targeting!$C$3:$F$249,Targeting!$G151,FALSE)","v":652},{"$f":"IF(AND(OR(Calculations!$E$2=\"Orkney Health Board\",Calculations!$E$2=\"Orkney Islands Local Authority\"),$F151=1),0,IF(AND(OR(Calculations!$E$2=\"Shetland Health Board\",Calculations!$E$2=\"Western Isles Health Board\",Calculations!$E$2=\"Shetland Islands Local Authority\",Calculations!$E$2=\"Eilean Siar Local Authority\"),OR($F151=1,$F151=5)),0,new_ci(VALUE(LEFT(Options!$B$24,2)),$C151,$E151,$F151,2016,$I151,1,$H151,$G151*$H151,Options!$B$8)))","v":609.99989748250005},{"$f":"IF(AND(OR(Calculations!$E$2=\"Orkney Health Board\",Calculations!$E$2=\"Orkney Islands Local Authority\"),$F151=1),0,IF(AND(OR(Calculations!$E$2=\"Shetland Health Board\",Calculations!$E$2=\"Western Isles Health Board\",Calculations!$E$2=\"Shetland Islands Local Authority\",Calculations!$E$2=\"Eilean Siar Local Authority\"),OR($F151=1,$F151=5)),0,new_ci(VALUE(LEFT(Options!$B$24,2)),$C151,$E151,$F151,2016,$I151+$J151,1,$H151,$G151*$H151,Options!$B$8)))","v":609.05578642130001},{"$f":"IF(AND(OR(Calculations!$E$2=\"Orkney Health Board\",Calculations!$E$2=\"Orkney Islands Local Authority\"),$F151=1),0,IF(AND(OR(Calculations!$E$2=\"Shetland Health Board\",Calculations!$E$2=\"Western Isles Health Board\",Calculations!$E$2=\"Shetland Islands Local Authority\",Calculations!$E$2=\"Eilean Siar Local Authority\"),OR($F151=1,$F151=5)),0,new_yllv2(VALUE(LEFT(Options!$B$24,2)),$C151,$D151,$E151,$F151,2016,$I151,1,$H151,$G151*$H151,Options!$B$8)))","v":6020.7020381517996},{"$f":"IF(AND(OR(Calculations!$E$2=\"Orkney Health Board\",Calculations!$E$2=\"Orkney Islands Local Authority\"),$F151=1),0,IF(AND(OR(Calculations!$E$2=\"Shetland Health Board\",Calculations!$E$2=\"Western Isles Health Board\",Calculations!$E$2=\"Shetland Islands Local Authority\",Calculations!$E$2=\"Eilean Siar Local Authority\"),OR($F151=1,$F151=5)),0,new_yllv2(VALUE(LEFT(Options!$B$24,2)),$C151,$D151,$E151,$F151,2016,$I151+$J151,1,$H151,$G151*$H151,Options!$B$8)))","v":6011.3836572572},{"$f":"IF(AND(OR(Calculations!$E$2=\"Orkney Health Board\",Calculations!$E$2=\"Orkney Islands Local Authority\"),$F151=1),0,IF(AND(OR(Calculations!$E$2=\"Shetland Health Board\",Calculations!$E$2=\"Western Isles Health Board\",Calculations!$E$2=\"Shetland Islands Local Authority\",Calculations!$E$2=\"Eilean Siar Local Authority\"),OR($F151=1,$F151=5)),0,hosp_count(VALUE(LEFT(Options!$B$24,2)),$C151,$E151,$F151,2016,$I151,1,$H151,$G151*$H151, Options!$B$8)))","v":9825.6386700275998},{"$f":"IF(AND(OR(Calculations!$E$2=\"Orkney Health Board\",Calculations!$E$2=\"Orkney Islands Local Authority\"),$F151=1),0,IF(AND(OR(Calculations!$E$2=\"Shetland Health Board\",Calculations!$E$2=\"Western Isles Health Board\",Calculations!$E$2=\"Shetland Islands Local Authority\",Calculations!$E$2=\"Eilean Siar Local Authority\"),OR($F151=1,$F151=5)),0,hosp_count(VALUE(LEFT(Options!$B$24,2)),$C151,$E151,$F151,2016,$I151+$J151,1,$H151,$G151*$H151, Options!$B$8)))","v":9793.294576151},{"$f":"IF(AND(OR(Calculations!$E$2=\"Orkney Health Board\",Calculations!$E$2=\"Orkney Islands Local Authority\"),$F151=1),0,IF(AND(OR(Calculations!$E$2=\"Shetland Health Board\",Calculations!$E$2=\"Western Isles Health Board\",Calculations!$E$2=\"Shetland Islands Local Authority\",Calculations!$E$2=\"Eilean Siar Local Authority\"),OR($F151=1,$F151=5)),0,prem_mort(VALUE(LEFT(Options!$B$24,2)),$C151,$E151,$F151,2016,$I151,1,$H151,$G151*$H151,Options!$B$8)))","v":0},{"$f":"IF(AND(OR(Calculations!$E$2=\"Orkney Health Board\",Calculations!$E$2=\"Orkney Islands Local Authority\"),$F151=1),0,IF(AND(OR(Calculations!$E$2=\"Shetland Health Board\",Calculations!$E$2=\"Western Isles Health Board\",Calculations!$E$2=\"Shetland Islands Local Authority\",Calculations!$E$2=\"Eilean Siar Local Authority\"),OR($F151=1,$F151=5)),0,prem_mort(VALUE(LEFT(Options!$B$24,2)),$C151,$E151,$F151,2016,$I151+$J151,1,$H151,$G151*$H151,Options!$B$8)))","v":0},2769.2023673619942,2764.9164083044307,27332.041211874883,27289.738774546942,44605.223669999999,44458.391938219538,0,0,11076809.469447976,11059665.633217722,109328164.84749953,109158955.09818777,178420894.68000001,177833567.75287816,0,0,4000]
[null,"Female 80-84",81.856712000000002,89.736710000000002,"female",3,{"$f":"HLOOKUP(Calculations!$E$2,'Prevalence Rates'!$C$3:$BC$249,'Prevalence Rates'!$BD152,FALSE)","v":0.10031299207819142},{"$f":"HLOOKUP(Calculations!$E$2,'Population 2016'!$C$3:$BC$249,'Population 2016'!BD152,FALSE)","v":16697},0,{"$f":"HLOOKUP(Results!E$4,Targeting!$C$3:$F$249,Targeting!$G152,FALSE)","v":494},{"$f":"IF(AND(OR(Calculations!$E$2=\"Orkney Health Board\",Calculations!$E$2=\"Orkney Islands Local Authority\"),$F152=1),0,IF(AND(OR(Calculations!$E$2=\"Shetland Health Board\",Calculations!$E$2=\"Western Isles Health Board\",Calculations!$E$2=\"Shetland Islands Local Authority\",Calculations!$E$2=\"Eilean Siar Local Authority\"),OR($F152=1,$F152=5)),0,new_ci(VALUE(LEFT(Options!$B$24,2)),$C152,$E152,$F152,2016,$I152,1,$H152,$G152*$H152,Options!$B$8)))","v":697.1588518561},{"$f":"IF(AND(OR(Calculations!$E$2=\"Orkney Health Board\",Calculations!$E$2=\"Orkney Islands Local Authority\"),$F152=1),0,IF(AND(OR(Calculations!$E$2=\"Shetland Health Board\",Calculations!$E$2=\"Western Isles Health Board\",Calculations!$E$2=\"Shetland Islands Local Authority\",Calculations!$E$2=\"Eilean Siar Local Authority\"),OR($F152=1,$F152=5)),0,new_ci(VALUE(LEFT(Options!$B$24,2)),$C152,$E152,$F152,2016,$I152+$J152,1,$H152,$G152*$H152,Options!$B$8)))","v":696.09216659749995},{"$f":"IF(AND(OR(Calculations!$E$2=\"Orkney Health Board\",Calculations!$E$2=\"Orkney Islands Local Authority\"),$F152=1),0,IF(AND(OR(Calculations!$E$2=\"Shetland Health Board\",Calculations!$E$2=\"Western Isles Health Board\",Calculations!$E$2=\"Shetland Islands Local Authority\",Calculations!$E$2=\"Eilean Siar Local Authority\"),OR($F152=1,$F152=5)),0,new_yllv2(VALUE(LEFT(Options!$B$24,2)),$C152,$D152,$E152,$F152,2016,$I152,1,$H152,$G152*$H152,Options!$B$8)))","v":4796.4515064523002},{"$f":"IF(AND(OR(Calculations!$E$2=\"Orkney Health Board\",Calculations!$E$2=\"Orkney Islands Local Authority\"),$F152=1),0,IF(AND(OR(Calculations!$E$2=\"Shetland Health Board\",Calculations!$E$2=\"Western Isles Health Board\",Calculations!$E$2=\"Shetland Islands Local Authority\",Calculations!$E$2=\"Eilean Siar Local Authority\"),OR($F152=1,$F152=5)),0,new_yllv2(VALUE(LEFT(Options!$B$24,2)),$C152,$D152,$E152,$F152,2016,$I152+$J152,1,$H152,$G152*$H152,Options!$B$8)))","v":4789.1127140065},{"$f":"IF(AND(OR(Calculations!$E$2=\"Orkney Health Board\",Calculations!$E$2=\"Orkney Islands Local Authority\"),$F152=1),0,IF(AND(OR(Calculations!$E$2=\"Shetland Health Board\",Calculations!$E$2=\"Western Isles Health Board\",Calculations!$E$2=\"Shetland Islands Local Authority\",Calculations!$E$2=\"Eilean Siar Local Authority\"),OR($F152=1,$F152=5)),0,hosp_count(VALUE(LEFT(Options!$B$24,2)),$C152,$E152,$F152,2016,$I152,1,$H152,$G152*$H152, Options!$B$8)))","v":8427.6017503116},{"$f":"IF(AND(OR(Calculations!$E$2=\"Orkney Health Board\",Calculations!$E$2=\"Orkney Islands Local Authority\"),$F152=1),0,IF(AND(OR(Calculations!$E$2=\"Shetland Health Board\",Calculations!$E$2=\"Western Isles Health Board\",Calculations!$E$2=\"Shetland Islands Local Authority\",Calculations!$E$2=\"Eilean Siar Local Authority\"),OR($F152=1,$F152=5)),0,hosp_count(VALUE(LEFT(Options!$B$24,2)),$C152,$E152,$F152,2016,$I152+$J152,1,$H152,$G152*$H152, Options!$B$8)))","v":8399.8714751709995},{"$f":"IF(AND(OR(Calculations!$E$2=\"Orkney Health Board\",Calculations!$E$2=\"Orkney Islands Local Authority\"),$F152=1),0,IF(AND(OR(Calculations!$E$2=\"Shetland Health Board\",Calculations!$E$2=\"Western Isles Health Board\",Calculations!$E$2=\"Shetland Islands Local Authority\",Calculations!$E$2=\"Eilean Siar Local Authority\"),OR($F152=1,$F152=5)),0,prem_mort(VALUE(LEFT(Options!$B$24,2)),$C152,$E152,$F152,2016,$I152,1,$H152,$G152*$H152,Options!$B$8)))","v":0},{"$f":"IF(AND(OR(Calculations!$E$2=\"Orkney Health Board\",Calculations!$E$2=\"Orkney Islands Local Authority\"),$F152=1),0,IF(AND(OR(Calculations!$E$2=\"Shetland Health Board\",Calculations!$E$2=\"Western Isles Health Board\",Calculations!$E$2=\"Shetland Islands Local Authority\",Calculations!$E$2=\"Eilean Siar Local Authority\"),OR($F152=1,$F152=5)),0,prem_mort(VALUE(LEFT(Options!$B$24,2)),$C152,$E152,$F152,2016,$I152+$J152,1,$H152,$G152*$H152,Options!$B$8)))","v":0},4175.3539669168113,4168.9654824070194,28726.426941679943,28682.474181029527,50473.74828,50307.668893639573,0,0,10438384.917292029,10422413.706017548,71816067.354199857,71706185.452573821,126184370.7,125769172.23409893,0,0,2500]
[null,"Female 85-89",86.730819999999994,92.220819999999989,"female",3,{"$f":"HLOOKUP(Calculations!$E$2,'Prevalence Rates'!$C$3:$BC$249,'Prevalence Rates'!$BD153,FALSE)","v":0.10031299207819142},{"$f":"HLOOKUP(Calculations!$E$2,'Population 2016'!$C$3:$BC$249,'Population 2016'!BD153,FALSE)","v":10459},0,{"$f":"HLOOKUP(Results!E$4,Targeting!$C$3:$F$249,Targeting!$G153,FALSE)","v":310},{"$f":"IF(AND(OR(Calculations!$E$2=\"Orkney Health Board\",Calculations!$E$2=\"Orkney Islands Local Authority\"),$F153=1),0,IF(AND(OR(Calculations!$E$2=\"Shetland Health Board\",Calculations!$E$2=\"Western Isles Health Board\",Calculations!$E$2=\"Shetland Islands Local Authority\",Calculations!$E$2=\"Eilean Siar Local Authority\"),OR($F153=1,$F153=5)),0,new_ci(VALUE(LEFT(Options!$B$24,2)),$C153,$E153,$F153,2016,$I153,1,$H153,$G153*$H153,Options!$B$8)))","v":653.83641436000005},{"$f":"IF(AND(OR(Calculations!$E$2=\"Orkney Health Board\",Calculations!$E$2=\"Orkney Islands Local Authority\"),$F153=1),0,IF(AND(OR(Calculations!$E$2=\"Shetland Health Board\",Calculations!$E$2=\"Western Isles Health Board\",Calculations!$E$2=\"Shetland Islands Local Authority\",Calculations!$E$2=\"Eilean Siar Local Authority\"),OR($F153=1,$F153=5)),0,new_ci(VALUE(LEFT(Options!$B$24,2)),$C153,$E153,$F153,2016,$I153+$J153,1,$H153,$G153*$H153,Options!$B$8)))","v":652.85077983799999},{"$f":"IF(AND(OR(Calculations!$E$2=\"Orkney Health Board\",Calculations!$E$2=\"Orkney Islands Local Authority\"),$F153=1),0,IF(AND(OR(Calculations!$E$2=\"Shetland Health Board\",Calculations!$E$2=\"Western Isles Health Board\",Calculations!$E$2=\"Shetland Islands Local Authority\",Calculations!$E$2=\"Eilean Siar Local Authority\"),OR($F153=1,$F153=5)),0,new_yllv2(VALUE(LEFT(Options!$B$24,2)),$C153,$D153,$E153,$F153,2016,$I153,1,$H153,$G153*$H153,Options!$B$8)))","v":2935.7255004764002},{"$f":"IF(AND(OR(Calculations!$E$2=\"Orkney Health Board\",Calculations!$E$2=\"Orkney Islands Local Authority\"),$F153=1),0,IF(AND(OR(Calculations!$E$2=\"Shetland Health Board\",Calculations!$E$2=\"Western Isles Health Board\",Calculations!$E$2=\"Shetland Islands Local Authority\",Calculations!$E$2=\"Eilean Siar Local Authority\"),OR($F153=1,$F153=5)),0,new_yllv2(VALUE(LEFT(Options!$B$24,2)),$C153,$D153,$E153,$F153,2016,$I153+$J153,1,$H153,$G153*$H153,Options!$B$8)))","v":2931.3000014725999},{"$f":"IF(AND(OR(Calculations!$E$2=\"Orkney Health Board\",Calculations!$E$2=\"Orkney Islands Local Authority\"),$F153=1),0,IF(AND(OR(Calculations!$E$2=\"Shetland Health Board\",Calculations!$E$2=\"Western Isles Health Board\",Calculations!$E$2=\"Shetland Islands Local Authority\",Calculations!$E$2=\"Eilean Siar Local Authority\"),OR($F153=1,$F153=5)),0,hosp_count(VALUE(LEFT(Options!$B$24,2)),$C153,$E153,$F153,2016,$I153,1,$H153,$G153*$H153, Options!$B$8)))","v":5967.6178789523001},{"$f":"IF(AND(OR(Calculations!$E$2=\"Orkney Health Board\",Calculations!$E$2=\"Orkney Islands Local Authority\"),$F153=1),0,IF(AND(OR(Calculations!$E$2=\"Shetland Health Board\",Calculations!$E$2=\"Western Isles Health Board\",Calculations!$E$2=\"Shetland Islands Local Authority\",Calculations!$E$2=\"Eilean Siar Local Authority\"),OR($F153=1,$F153=5)),0,hosp_count(VALUE(LEFT(Options!$B$24,2)),$C153,$E153,$F153,2016,$I153+$J153,1,$H153,$G153*$H153, Options!$B$8)))","v":5947.9465269926004},{"$f":"IF(AND(OR(Calculations!$E$2=\"Orkney Health Board\",Calculations!$E$2=\"Orkney Islands Local Authority\"),$F153=1),0,IF(AND(OR(Calculations!$E$2=\"Shetland Health Board\",Calculations!$E$2=\"Western Isles Health Board\",Calculations!$E$2=\"Shetland Islands Local Authority\",Calculations!$E$2=\"Eilean Siar Local Authority\"),OR($F153=1,$F153=5)),0,prem_mort(VALUE(LEFT(Options!$B$24,2)),$C153,$E153,$F153,2016,$I153,1,$H153,$G153*$H153,Options!$B$8)))","v":0},{"$f":"IF(AND(OR(Calculations!$E$2=\"Orkney Health Board\",Calculations!$E$2=\"Orkney Islands Local Authority\"),$F153=1),0,IF(AND(OR(Calculations!$E$2=\"Shetland Health Board\",Calculations!$E$2=\"Western Isles Health Board\",Calculations!$E$2=\"Shetland Islands Local Authority\",Calculations!$E$2=\"Eilean Siar Local Authority\"),OR($F153=1,$F153=5)),0,prem_mort(VALUE(LEFT(Options!$B$24,2)),$C153,$E153,$F153,2016,$I153+$J153,1,$H153,$G153*$H153,Options!$B$8)))","v":0},6251.4237915670719,6241.9999984510951,28068.892824136154,28026.579993045227,57057.250970000008,56869.170350823217,0,0,9377135.6873506084,9362999.9976766426,42103339.236204229,42039869.989567839,85585876.455000013,85303755.52623482,0,0,1500]
[null,"Female 90+",92.779342999999997,96.279340000000005,"female",3,{"$f":"HLOOKUP(Calculations!$E$2,'Prevalence Rates'!$C$3:$BC$249,'Prevalence Rates'!$BD154,FALSE)","v":0.10031299207819142},{"$f":"HLOOKUP(Calculations!$E$2,'Population 2016'!$C$3:$BC$249,'Population 2016'!BD154,FALSE)","v":6278},0,{"$f":"HLOOKUP(Results!E$4,Targeting!$C$3:$F$249,Targeting!$G154,FALSE)","v":186},{"$f":"IF(AND(OR(Calculations!$E$2=\"Orkney Health Board\",Calculations!$E$2=\"Orkney Islands Local Authority\"),$F154=1),0,IF(AND(OR(Calculations!$E$2=\"Shetland Health Board\",Calculations!$E$2=\"Western Isles Health Board\",Calculations!$E$2=\"Shetland Islands Local Authority\",Calculations!$E$2=\"Eilean Siar Local Authority\"),OR($F154=1,$F154=5)),0,new_ci(VALUE(LEFT(Options!$B$24,2)),$C154,$E154,$F154,2016,$I154,1,$H154,$G154*$H154,Options!$B$8)))","v":642.46408957530002},{"$f":"IF(AND(OR(Calculations!$E$2=\"Orkney Health Board\",Calculations!$E$2=\"Orkney Islands Local Authority\"),$F154=1),0,IF(AND(OR(Calculations!$E$2=\"Shetland Health Board\",Calculations!$E$2=\"Western Isles Health Board\",Calculations!$E$2=\"Shetland Islands Local Authority\",Calculations!$E$2=\"Eilean Siar Local Authority\"),OR($F154=1,$F154=5)),0,new_ci(VALUE(LEFT(Options!$B$24,2)),$C154,$E154,$F154,2016,$I154+$J154,1,$H154,$G154*$H154,Options!$B$8)))","v":641.52758852190004},{"$f":"IF(AND(OR(Calculations!$E$2=\"Orkney Health Board\",Calculations!$E$2=\"Orkney Islands Local Authority\"),$F154=1),0,IF(AND(OR(Calculations!$E$2=\"Shetland Health Board\",Calculations!$E$2=\"Western Isles Health Board\",Calculations!$E$2=\"Shetland Islands Local Authority\",Calculations!$E$2=\"Eilean Siar Local Authority\"),OR($F154=1,$F154=5)),0,new_yllv2(VALUE(LEFT(Options!$B$24,2)),$C154,$D154,$E154,$F154,2016,$I154,1,$H154,$G154*$H154,Options!$B$8)))","v":1606.158296546},{"$f":"IF(AND(OR(Calculations!$E$2=\"Orkney Health Board\",Calculations!$E$2=\"Orkney Islands Local Authority\"),$F154=1),0,IF(AND(OR(Calculations!$E$2=\"Shetland Health Board\",Calculations!$E$2=\"Western Isles Health Board\",Calculations!$E$2=\"Shetland Islands Local Authority\",Calculations!$E$2=\"Eilean Siar Local Authority\"),OR($F154=1,$F154=5)),0,new_yllv2(VALUE(LEFT(Options!$B$24,2)),$C154,$D154,$E154,$F154,2016,$I154+$J154,1,$H154,$G154*$H154,Options!$B$8)))","v":1603.817046722},{"$f":"IF(AND(OR(Calculations!$E$2=\"Orkney Health Board\",Calculations!$E$2=\"Orkney Islands Local Authority\"),$F154=1),0,IF(AND(OR(Calculations!$E$2=\"Shetland Health Board\",Calculations!$E$2=\"Western Isles Health Board\",Calculations!$E$2=\"Shetland Islands Local Authority\",Calculations!$E$2=\"Eilean Siar Local Authority\"),OR($F154=1,$F154=5)),0,hosp_count(VALUE(LEFT(Options!$B$24,2)),$C154,$E154,$F154,2016,$I154,1,$H154,$G154*$H154, Options!$B$8)))","v":4170.6800816340001},{"$f":"IF(AND(OR(Calculations!$E$2=\"Orkney Health Board\",Calculations!$E$2=\"Orkney Islands Local Authority\"),$F154=1),0,IF(AND(OR(Calculations!$E$2=\"Shetland Health Board\",Calculations!$E$2=\"Western Isles Health Board\",Calculations!$E$2=\"Shetland Islands Local Authority\",Calculations!$E$2=\"Eilean Siar Local Authority\"),OR($F154=1,$F154=5)),0,hosp_count(VALUE(LEFT(Options!$B$24,2)),$C154,$E154,$F154,2016,$I154+$J154,1,$H154,$G154*$H154, Options!$B$8)))","v":4156.9377576549005},{"$f":"IF(AND(OR(Calculations!$E$2=\"Orkney Health Board\",Calculations!$E$2=\"Orkney Islands Local Authority\"),$F154=1),0,IF(AND(OR(Calculations!$E$2=\"Shetland Health Board\",Calculations!$E$2=\"Western Isles Health Board\",Calculations!$E$2=\"Shetland Islands Local Authority\",Calculations!$E$2=\"Eilean Siar Local Authority\"),OR($F154=1,$F154=5)),0,prem_mort(VALUE(LEFT(Options!$B$24,2)),$C154,$E154,$F154,2016,$I154,1,$H154,$G154*$H154,Options!$B$8)))","v":0},{"$f":"IF(AND(OR(Calculations!$E$2=\"Orkney Health Board\",Calculations!$E$2=\"Orkney Islands Local Authority\"),$F154=1),0,IF(AND(OR(Calculations!$E$2=\"Shetland Health Board\",Calculations!$E$2=\"Western Isles Health Board\",Calculations!$E$2=\"Shetland Islands Local Authority\",Calculations!$E$2=\"Eilean Siar Local Authority\"),OR($F154=1,$F154=5)),0,prem_mort(VALUE(LEFT(Options!$B$24,2)),$C154,$E154,$F154,2016,$I154+$J154,1,$H154,$G154*$H154,Options!$B$8)))","v":0},10233.578999287989,10218.661811435171,25583.916797483274,25546.62387260274,66433.260299999994,66214.363772776371,0,0,10233578.999287989,10218661.81143517,25583916.797483273,25546623.872602742,66433260.299999997,66214363.772776373,0,0,1000]
[null,"Male 0-4",2.0320822999999999,77.402082000000007,"male",3,{"$f":"HLOOKUP(Calculations!$E$2,'Prevalence Rates'!$C$3:$BC$249,'Prevalence Rates'!$BD155,FALSE)","v":0},{"$f":"HLOOKUP(Calculations!$E$2,'Population 2016'!$C$3:$BC$249,'Population 2016'!BD155,FALSE)","v":0},0,{"$f":"HLOOKUP(Results!E$4,Targeting!$C$3:$F$249,Targeting!$G155,FALSE)","v":0},{"$f":"IF(AND(OR(Calculations!$E$2=\"Orkney Health Board\",Calculations!$E$2=\"Orkney Islands Local Authority\"),$F155=1),0,IF(AND(OR(Calculations!$E$2=\"Shetland Health Board\",Calculations!$E$2=\"Western Isles Health Board\",Calculations!$E$2=\"Shetland Islands Local Authority\",Calculations!$E$2=\"Eilean Siar Local Authority\"),OR($F155=1,$F155=5)),0,new_ci(VALUE(LEFT(Options!$B$24,2)),$C155,$E155,$F155,2016,$I155,1,$H155,$G155*$H155,Options!$B$8)))","v":{"$error":"#VALUE!"}},{"$f":"IF(AND(OR(Calculations!$E$2=\"Orkney Health Board\",Calculations!$E$2=\"Orkney Islands Local Authority\"),$F155=1),0,IF(AND(OR(Calculations!$E$2=\"Shetland Health Board\",Calculations!$E$2=\"Western Isles Health Board\",Calculations!$E$2=\"Shetland Islands Local Authority\",Calculations!$E$2=\"Eilean Siar Local Authority\"),OR($F155=1,$F155=5)),0,new_ci(VALUE(LEFT(Options!$B$24,2)),$C155,$E155,$F155,2016,$I155+$J155,1,$H155,$G155*$H155,Options!$B$8)))","v":{"$error":"#VALUE!"}},{"$f":"IF(AND(OR(Calculations!$E$2=\"Orkney Health Board\",Calculations!$E$2=\"Orkney Islands Local Authority\"),$F155=1),0,IF(AND(OR(Calculations!$E$2=\"Shetland Health Board\",Calculations!$E$2=\"Western Isles Health Board\",Calculations!$E$2=\"Shetland Islands Local Authority\",Calculations!$E$2=\"Eilean Siar Local Authority\"),OR($F155=1,$F155=5)),0,new_yllv2(VALUE(LEFT(Options!$B$24,2)),$C155,$D155,$E155,$F155,2016,$I155,1,$H155,$G155*$H155,Options!$B$8)))","v":{"$error":"#VALUE!"}},{"$f":"IF(AND(OR(Calculations!$E$2=\"Orkney Health Board\",Calculations!$E$2=\"Orkney Islands Local Authority\"),$F155=1),0,IF(AND(OR(Calculations!$E$2=\"Shetland Health Board\",Calculations!$E$2=\"Western Isles Health Board\",Calculations!$E$2=\"Shetland Islands Local Authority\",Calculations!$E$2=\"Eilean Siar Local Authority\"),OR($F155=1,$F155=5)),0,new_yllv2(VALUE(LEFT(Options!$B$24,2)),$C155,$D155,$E155,$F155,2016,$I155+$J155,1,$H155,$G155*$H155,Options!$B$8)))","v":{"$error":"#VALUE!"}},{"$f":"IF(AND(OR(Calculations!$E$2=\"Orkney Health Board\",Calculations!$E$2=\"Orkney Islands Local Authority\"),$F155=1),0,IF(AND(OR(Calculations!$E$2=\"Shetland Health Board\",Calculations!$E$2=\"Western Isles Health Board\",Calculations!$E$2=\"Shetland Islands Local Authority\",Calculations!$E$2=\"Eilean Siar Local Authority\"),OR($F155=1,$F155=5)),0,hosp_count(VALUE(LEFT(Options!$B$24,2)),$C155,$E155,$F155,2016,$I155,1,$H155,$G155*$H155, Options!$B$8)))","v":{"$error":"#VALUE!"}},{"$f":"IF(AND(OR(Calculations!$E$2=\"Orkney Health Board\",Calculations!$E$2=\"Orkney Islands Local Authority\"),$F155=1),0,IF(AND(OR(Calculations!$E$2=\"Shetland Health Board\",Calculations!$E$2=\"Western Isles Health Board\",Calculations!$E$2=\"Shetland Islands Local Authority\",Calculations!$E$2=\"Eilean Siar Local Authority\"),OR($F155=1,$F155=5)),0,hosp_count(VALUE(LEFT(Options!$B$24,2)),$C155,$E155,$F155,2016,$I155+$J155,1,$H155,$G155*$H155, Options!$B$8)))","v":{"$error":"#VALUE!"}},{"$f":"IF(AND(OR(Calculations!$E$2=\"Orkney Health Board\",Calculations!$E$2=\"Orkney Islands Local Authority\"),$F155=1),0,IF(AND(OR(Calculations!$E$2=\"Shetland Health Board\",Calculations!$E$2=\"Western Isles Health Board\",Calculations!$E$2=\"Shetland Islands Local Authority\",Calculations!$E$2=\"Eilean Siar Local Authority\"),OR($F155=1,$F155=5)),0,prem_mort(VALUE(LEFT(Options!$B$24,2)),$C155,$E155,$F155,2016,$I155,1,$H155,$G155*$H155,Options!$B$8)))","v":{"$error":"#VALUE!"}},{"$f":"IF(AND(OR(Calculations!$E$2=\"Orkney Health Board\",Calculations!$E$2=\"Orkney Islands Local Authority\"),$F155=1),0,IF(AND(OR(Calculations!$E$2=\"Shetland Health Board\",Calculations!$E$2=\"Western Isles Health Board\",Calculations!$E$2=\"Shetland Islands Local Authority\",Calculations!$E$2=\"Eilean Siar Local Authority\"),OR($F155=1,$F155=5)),0,prem_mort(VALUE(LEFT(Options!$B$24,2)),$C155,$E155,$F155,2016,$I155+$J155,1,$H155,$G155*$H155,Options!$B$8)))","v":{"$error":"#VALUE!"}},{"$error":"#VALUE!"},{"$error":"#VALUE!"},{"$error":"#VALUE!"},{"$error":"#VALUE!"},{"$error":"#VALUE!"},{"$error":"#VALUE!"},{"$error":"#VALUE!"},{"$error":"#VALUE!"},{"$error":"#VALUE!"},{"$error":"#VALUE!"},{"$error":"#VALUE!"},{"$error":"#VALUE!"},{"$error":"#VALUE!"},{"$error":"#VALUE!"},{"$error":"#VALUE!"},{"$error":"#VALUE!"},5000]
[null,"Male 5-9",6.9784756000000003,77.398476000000002,"male",3,{"$f":"HLOOKUP(Calculations!$E$2,'Prevalence Rates'!$C$3:$BC$249,'Prevalence Rates'!$BD156,FALSE)","v":0},{"$f":"HLOOKUP(Calculations!$E$2,'Population 2016'!$C$3:$BC$249,'Population 2016'!BD156,FALSE)","v":0},0,{"$f":"HLOOKUP(Results!E$4,Targeting!$C$3:$F$249,Targeting!$G156,FALSE)","v":0},{"$f":"IF(AND(OR(Calculations!$E$2=\"Orkney Health Board\",Calculations!$E$2=\"Orkney Islands Local Authority\"),$F156=1),0,IF(AND(OR(Calculations!$E$2=\"Shetland Health Board\",Calculations!$E$2=\"Western Isles Health Board\",Calculations!$E$2=\"Shetland Islands Local Authority\",Calculations!$E$2=\"Eilean Siar Local Authority\"),OR($F156=1,$F156=5)),0,new_ci(VALUE(LEFT(Options!$B$24,2)),$C156,$E156,$F156,2016,$I156,1,$H156,$G156*$H156,Options!$B$8)))","v":{"$error":"#VALUE!"}},{"$f":"IF(AND(OR(Calculations!$E$2=\"Orkney Health Board\",Calculations!$E$2=\"Orkney Islands Local Authority\"),$F156=1),0,IF(AND(OR(Calculations!$E$2=\"Shetland Health Board\",Calculations!$E$2=\"Western Isles Health Board\",Calculations!$E$2=\"Shetland Islands Local Authority\",Calculations!$E$2=\"Eilean Siar Local Authority\"),OR($F156=1,$F156=5)),0,new_ci(VALUE(LEFT(Options!$B$24,2)),$C156,$E156,$F156,2016,$I156+$J156,1,$H156,$G156*$H156,Options!$B$8)))","v":{"$error":"#VALUE!"}},{"$f":"IF(AND(OR(Calculations!$E$2=\"Orkney Health Board\",Calculations!$E$2=\"Orkney Islands Local Authority\"),$F156=1),0,IF(AND(OR(Calculations!$E$2=\"Shetland Health Board\",Calculations!$E$2=\"Western Isles Health Board\",Calculations!$E$2=\"Shetland Islands Local Authority\",Calculations!$E$2=\"Eilean Siar Local Authority\"),OR($F156=1,$F156=5)),0,new_yllv2(VALUE(LEFT(Options!$B$24,2)),$C156,$D156,$E156,$F156,2016,$I156,1,$H156,$G156*$H156,Options!$B$8)))","v":{"$error":"#VALUE!"}},{"$f":"IF(AND(OR(Calculations!$E$2=\"Orkney Health Board\",Calculations!$E$2=\"Orkney Islands Local Authority\"),$F156=1),0,IF(AND(OR(Calculations!$E$2=\"Shetland Health Board\",Calculations!$E$2=\"Western Isles Health Board\",Calculations!$E$2=\"Shetland Islands Local Authority\",Calculations!$E$2=\"Eilean Siar Local Authority\"),OR($F156=1,$F156=5)),0,new_yllv2(VALUE(LEFT(Options!$B$24,2)),$C156,$D156,$E156,$F156,2016,$I156+$J156,1,$H156,$G156*$H156,Options!$B$8)))","v":{"$error":"#VALUE!"}},{"$f":"IF(AND(OR(Calculations!$E$2=\"Orkney Health Board\",Calculations!$E$2=\"Orkney Islands Local Authority\"),$F156=1),0,IF(AND(OR(Calculations!$E$2=\"Shetland Health Board\",Calculations!$E$2=\"Western Isles Health Board\",Calculations!$E$2=\"Shetland Islands Local Authority\",Calculations!$E$2=\"Eilean Siar Local Authority\"),OR($F156=1,$F156=5)),0,hosp_count(VALUE(LEFT(Options!$B$24,2)),$C156,$E156,$F156,2016,$I156,1,$H156,$G156*$H156, Options!$B$8)))","v":{"$error":"#VALUE!"}},{"$f":"IF(AND(OR(Calculations!$E$2=\"Orkney Health Board\",Calculations!$E$2=\"Orkney Islands Local Authority\"),$F156=1),0,IF(AND(OR(Calculations!$E$2=\"Shetland Health Board\",Calculations!$E$2=\"Western Isles Health Board\",Calculations!$E$2=\"Shetland Islands Local Authority\",Calculations!$E$2=\"Eilean Siar Local Authority\"),OR($F156=1,$F156=5)),0,hosp_count(VALUE(LEFT(Options!$B$24,2)),$C156,$E156,$F156,2016,$I156+$J156,1,$H156,$G156*$H156, Options!$B$8)))","v":{"$error":"#VALUE!"}},{"$f":"IF(AND(OR(Calculations!$E$2=\"Orkney Health Board\",Calculations!$E$2=\"Orkney Islands Local Authority\"),$F156=1),0,IF(AND(OR(Calculations!$E$2=\"Shetland Health Board\",Calculations!$E$2=\"Western Isles Health Board\",Calculations!$E$2=\"Shetland Islands Local Authority\",Calculations!$E$2=\"Eilean Siar Local Authority\"),OR($F156=1,$F156=5)),0,prem_mort(VALUE(LEFT(Options!$B$24,2)),$C156,$E156,$F156,2016,$I156,1,$H156,$G156*$H156,Options!$B$8)))","v":{"$error":"#VALUE!"}},{"$f":"IF(AND(OR(Calculations!$E$2=\"Orkney Health Board\",Calculations!$E$2=\"Orkney Islands Local Authority\"),$F156=1),0,IF(AND(OR(Calculations!$E$2=\"Shetland Health Board\",Calculations!$E$2=\"Western Isles Health Board\",Calculations!$E$2=\"Shetland Islands Local Authority\",Calculations!$E$2=\"Eilean Siar Local Authority\"),OR($F156=1,$F156=5)),0,prem_mort(VALUE(LEFT(Options!$B$24,2)),$C156,$E156,$F156,2016,$I156+$J156,1,$H156,$G156*$H156,Options!$B$8)))","v":{"$error":"#VALUE!"}},{"$error":"#VALUE!"},{"$error":"#VALUE!"},{"$error":"#VALUE!"},{"$error":"#VALUE!"},{"$error":"#VALUE!"},{"$error":"#VALUE!"},{"$error":"#VALUE!"},{"$error":"#VALUE!"},{"$error":"#VALUE!"},{"$error":"#VALUE!"},{"$error":"#VALUE!"},{"$error":"#VALUE!"},{"$f":"W156*$AI156","v":{"$error":"#VALUE!"}},{"$f":"X156*$AI156","v":{"$error":"#VALUE!"}},{"$f":"Y156*$AI156","v":{"$error":"#VALUE!"}},{"$f":"Z156*$AI156","v":{"$error":"#VALUE!"}},5500]
[null,"Male 10-15",12.471144000000001,77.921140000000008,"male",3,{"$f":"HLOOKUP(Calculations!$E$2,'Prevalence Rates'!$C$3:$BC$249,'Prevalence Rates'!$BD157,FALSE)","v":0},{"$f":"HLOOKUP(Calculations!$E$2,'Population 2016'!$C$3:$BC$249,'Population 2016'!BD157,FALSE)","v":0},0,{"$f":"HLOOKUP(Results!E$4,Targeting!$C$3:$F$249,Targeting!$G157,FALSE)","v":0},{"$f":"IF(AND(OR(Calculations!$E$2=\"Orkney Health Board\",Calculations!$E$2=\"Orkney Islands Local Authority\"),$F157=1),0,IF(AND(OR(Calculations!$E$2=\"Shetland Health Board\",Calculations!$E$2=\"Western Isles Health Board\",Calculations!$E$2=\"Shetland Islands Local Authority\",Calculations!$E$2=\"Eilean Siar Local Authority\"),OR($F157=1,$F157=5)),0,new_ci(VALUE(LEFT(Options!$B$24,2)),$C157,$E157,$F157,2016,$I157,1,$H157,$G157*$H157,Options!$B$8)))","v":{"$error":"#VALUE!"}},{"$f":"IF(AND(OR(Calculations!$E$2=\"Orkney Health Board\",Calculations!$E$2=\"Orkney Islands Local Authority\"),$F157=1),0,IF(AND(OR(Calculations!$E$2=\"Shetland Health Board\",Calculations!$E$2=\"Western Isles Health Board\",Calculations!$E$2=\"Shetland Islands Local Authority\",Calculations!$E$2=\"Eilean Siar Local Authority\"),OR($F157=1,$F157=5)),0,new_ci(VALUE(LEFT(Options!$B$24,2)),$C157,$E157,$F157,2016,$I157+$J157,1,$H157,$G157*$H157,Options!$B$8)))","v":{"$error":"#VALUE!"}},{"$f":"IF(AND(OR(Calculations!$E$2=\"Orkney Health Board\",Calculations!$E$2=\"Orkney Islands Local Authority\"),$F157=1),0,IF(AND(OR(Calculations!$E$2=\"Shetland Health Board\",Calculations!$E$2=\"Western Isles Health Board\",Calculations!$E$2=\"Shetland Islands Local Authority\",Calculations!$E$2=\"Eilean Siar Local Authority\"),OR($F157=1,$F157=5)),0,new_yllv2(VALUE(LEFT(Options!$B$24,2)),$C157,$D157,$E157,$F157,2016,$I157,1,$H157,$G157*$H157,Options!$B$8)))","v":{"$error":"#VALUE!"}},{"$f":"IF(AND(OR(Calculations!$E$2=\"Orkney Health Board\",Calculations!$E$2=\"Orkney Islands Local Authority\"),$F157=1),0,IF(AND(OR(Calculations!$E$2=\"Shetland Health Board\",Calculations!$E$2=\"Western Isles Health Board\",Calculations!$E$2=\"Shetland Islands Local Authority\",Calculations!$E$2=\"Eilean Siar Local Authority\"),OR($F157=1,$F157=5)),0,new_yllv2(VALUE(LEFT(Options!$B$24,2)),$C157,$D157,$E157,$F157,2016,$I157+$J157,1,$H157,$G157*$H157,Options!$B$8)))","v":{"$error":"#VALUE!"}},{"$f":"IF(AND(OR(Calculations!$E$2=\"Orkney Health Board\",Calculations!$E$2=\"Orkney Islands Local Authority\"),$F157=1),0,IF(AND(OR(Calculations!$E$2=\"Shetland Health Board\",Calculations!$E$2=\"Western Isles Health Board\",Calculations!$E$2=\"Shetland Islands Local Authority\",Calculations!$E$2=\"Eilean Siar Local Authority\"),OR($F157=1,$F157=5)),0,hosp_count(VALUE(LEFT(Options!$B$24,2)),$C157,$E157,$F157,2016,$I157,1,$H157,$G157*$H157, Options!$B$8)))","v":{"$error":"#VALUE!"}},{"$f":"IF(AND(OR(Calculations!$E$2=\"Orkney Health Board\",Calculations!$E$2=\"Orkney Islands Local Authority\"),$F157=1),0,IF(AND(OR(Calculations!$E$2=\"Shetland Health Board\",Calculations!$E$2=\"Western Isles Health Board\",Calculations!$E$2=\"Shetland Islands Local Authority\",Calculations!$E$2=\"Eilean Siar Local Authority\"),OR($F157=1,$F157=5)),0,hosp_count(VALUE(LEFT(Options!$B$24,2)),$C157,$E157,$F157,2016,$I157+$J157,1,$H157,$G157*$H157, Options!$B$8)))","v":{"$error":"#VALUE!"}},{"$f":"IF(AND(OR(Calculations!$E$2=\"Orkney Health Board\",Calculations!$E$2=\"Orkney Islands Local Authority\"),$F157=1),0,IF(AND(OR(Calculations!$E$2=\"Shetland Health Board\",Calculations!$E$2=\"Western Isles Health Board\",Calculations!$E$2=\"Shetland Islands Local Authority\",Calculations!$E$2=\"Eilean Siar Local Authority\"),OR($F157=1,$F157=5)),0,prem_mort(VALUE(LEFT(Options!$B$24,2)),$C157,$E157,$F157,2016,$I157,1,$H157,$G157*$H157,Options!$B$8)))","v":{"$error":"#VALUE!"}},{"$f":"IF(AND(OR(Calculations!$E$2=\"Orkney Health Board\",Calculations!$E$2=\"Orkney Islands Local Authority\"),$F157=1),0,IF(AND(OR(Calculations!$E$2=\"Shetland Health Board\",Calculations!$E$2=\"Western Isles Health Board\",Calculations!$E$2=\"Shetland Islands Local Authority\",Calculations!$E$2=\"Eilean Siar Local Authority\"),OR($F157=1,$F157=5)),0,prem_mort(VALUE(LEFT(Options!$B$24,2)),$C157,$E157,$F157,2016,$I157+$J157,1,$H157,$G157*$H157,Options!$B$8)))","v":{"$error":"#VALUE!"}},{"$error":"#VALUE!"},{"$error":"#VALUE!"},{"$error":"#VALUE!"},{"$error":"#VALUE!"},{"$error":"#VALUE!"},{"$error":"#VALUE!"},{"$error":"#VALUE!"},{"$error":"#VALUE!"},{"$error":"#VALUE!"},{"$error":"#VALUE!"},{"$error":"#VALUE!"},{"$error":"#VALUE!"},{"$error":"#VALUE!"},{"$error":"#VALUE!"},{"$error":"#VALUE!"},{"$error":"#VALUE!"},6600]
[null,"Male 16-19",17.556318000000001,77.07632000000001,"male",3,{"$f":"HLOOKUP(Calculations!$E$2,'Prevalence Rates'!$C$3:$BC$249,'Prevalence Rates'!$BD158,FALSE)","v":0.12186503235597473},{"$f":"HLOOKUP(Calculations!$E$2,'Population 2016'!$C$3:$BC$249,'Population 2016'!BD158,FALSE)","v":23727},0,{"$f":"HLOOKUP(Results!E$4,Targeting!$C$3:$F$249,Targeting!$G158,FALSE)","v":703},{"$f":"IF(AND(OR(Calculations!$E$2=\"Orkney Health Board\",Calculations!$E$2=\"Orkney Islands Local Authority\"),$F158=1),0,IF(AND(OR(Calculations!$E$2=\"Shetland Health Board\",Calculations!$E$2=\"Western Isles Health Board\",Calculations!$E$2=\"Shetland Islands Local Authority\",Calculations!$E$2=\"Eilean Siar Local Authority\"),OR($F158=1,$F158=5)),0,new_ci(VALUE(LEFT(Options!$B$24,2)),$C158,$E158,$F158,2016,$I158,1,$H158,$G158*$H158,Options!$B$8)))","v":10.1549369801},{"$f":"IF(AND(OR(Calculations!$E$2=\"Orkney Health Board\",Calculations!$E$2=\"Orkney Islands Local Authority\"),$F158=1),0,IF(AND(OR(Calculations!$E$2=\"Shetland Health Board\",Calculations!$E$2=\"Western Isles Health Board\",Calculations!$E$2=\"Shetland Islands Local Authority\",Calculations!$E$2=\"Eilean Siar Local Authority\"),OR($F158=1,$F158=5)),0,new_ci(VALUE(LEFT(Options!$B$24,2)),$C158,$E158,$F158,2016,$I158+$J158,1,$H158,$G158*$H158,Options!$B$8)))","v":10.1389786692},{"$f":"IF(AND(OR(Calculations!$E$2=\"Orkney Health Board\",Calculations!$E$2=\"Orkney Islands Local Authority\"),$F158=1),0,IF(AND(OR(Calculations!$E$2=\"Shetland Health Board\",Calculations!$E$2=\"Western Isles Health Board\",Calculations!$E$2=\"Shetland Islands Local Authority\",Calculations!$E$2=\"Eilean Siar Local Authority\"),OR($F158=1,$F158=5)),0,new_yllv2(VALUE(LEFT(Options!$B$24,2)),$C158,$D158,$E158,$F158,2016,$I158,1,$H158,$G158*$H158,Options!$B$8)))","v":594.26693238530004},{"$f":"IF(AND(OR(Calculations!$E$2=\"Orkney Health Board\",Calculations!$E$2=\"Orkney Islands Local Authority\"),$F158=1),0,IF(AND(OR(Calculations!$E$2=\"Shetland Health Board\",Calculations!$E$2=\"Western Isles Health Board\",Calculations!$E$2=\"Shetland Islands Local Authority\",Calculations!$E$2=\"Eilean Siar Local Authority\"),OR($F158=1,$F158=5)),0,new_yllv2(VALUE(LEFT(Options!$B$24,2)),$C158,$D158,$E158,$F158,2016,$I158+$J158,1,$H158,$G158*$H158,Options!$B$8)))","v":593.33305199949996},{"$f":"IF(AND(OR(Calculations!$E$2=\"Orkney Health Board\",Calculations!$E$2=\"Orkney Islands Local Authority\"),$F158=1),0,IF(AND(OR(Calculations!$E$2=\"Shetland Health Board\",Calculations!$E$2=\"Western Isles Health Board\",Calculations!$E$2=\"Shetland Islands Local Authority\",Calculations!$E$2=\"Eilean Siar Local Authority\"),OR($F158=1,$F158=5)),0,hosp_count(VALUE(LEFT(Options!$B$24,2)),$C158,$E158,$F158,2016,$I158,1,$H158,$G158*$H158, Options!$B$8)))","v":1609.2337632294},{"$f":"IF(AND(OR(Calculations!$E$2=\"Orkney Health Board\",Calculations!$E$2=\"Orkney Islands Local Authority\"),$F158=1),0,IF(AND(OR(Calculations!$E$2=\"Shetland Health Board\",Calculations!$E$2=\"Western Isles Health Board\",Calculations!$E$2=\"Shetland Islands Local Authority\",Calculations!$E$2=\"Eilean Siar Local Authority\"),OR($F158=1,$F158=5)),0,hosp_count(VALUE(LEFT(Options!$B$24,2)),$C158,$E158,$F158,2016,$I158+$J158,1,$H158,$G158*$H158, Options!$B$8)))","v":1603.9705218746999},{"$f":"IF(AND(OR(Calculations!$E$2=\"Orkney Health Board\",Calculations!$E$2=\"Orkney Islands Local Authority\"),$F158=1),0,IF(AND(OR(Calculations!$E$2=\"Shetland Health Board\",Calculations!$E$2=\"Western Isles Health Board\",Calculations!$E$2=\"Shetland Islands Local Authority\",Calculations!$E$2=\"Eilean Siar Local Authority\"),OR($F158=1,$F158=5)),0,prem_mort(VALUE(LEFT(Options!$B$24,2)),$C158,$E158,$F158,2016,$I158,1,$H158,$G158*$H158,Options!$B$8)))","v":10.1549369801},{"$f":"IF(AND(OR(Calculations!$E$2=\"Orkney Health Board\",Calculations!$E$2=\"Orkney Islands Local Authority\"),$F158=1),0,IF(AND(OR(Calculations!$E$2=\"Shetland Health Board\",Calculations!$E$2=\"Western Isles Health Board\",Calculations!$E$2=\"Shetland Islands Local Authority\",Calculations!$E$2=\"Eilean Siar Local Authority\"),OR($F158=1,$F158=5)),0,prem_mort(VALUE(LEFT(Options!$B$24,2)),$C158,$E158,$F158,2016,$I158+$J158,1,$H158,$G158*$H158,Options!$B$8)))","v":10.1389786692},42.799076917014375,42.73181889492983,2504.6020667817256,2500.6661271947569,6782.2892199999997,6760.106721771399,42.799076917014375,42.73181889492983,188315.93843486326,188020.00313769127,11020249.093839593,11002930.95965693,29842072.568,29744469.575794157,188315.93843486326,188020.00313769127,4400]
[null,"Male 20-24",22.054632000000002,77.704629999999995,"male",3,{"$f":"HLOOKUP(Calculations!$E$2,'Prevalence Rates'!$C$3:$BC$249,'Prevalence Rates'!$BD159,FALSE)","v":0.12186503235597473},{"$f":"HLOOKUP(Calculations!$E$2,'Population 2016'!$C$3:$BC$249,'Population 2016'!BD159,FALSE)","v":35247},0,{"$f":"HLOOKUP(Results!E$4,Targeting!$C$3:$F$249,Targeting!$G159,FALSE)","v":1044},{"$f":"IF(AND(OR(Calculations!$E$2=\"Orkney Health Board\",Calculations!$E$2=\"Orkney Islands Local Authority\"),$F159=1),0,IF(AND(OR(Calculations!$E$2=\"Shetland Health Board\",Calculations!$E$2=\"Western Isles Health Board\",Calculations!$E$2=\"Shetland Islands Local Authority\",Calculations!$E$2=\"Eilean Siar Local Authority\"),OR($F159=1,$F159=5)),0,new_ci(VALUE(LEFT(Options!$B$24,2)),$C159,$E159,$F159,2016,$I159,1,$H159,$G159*$H159,Options!$B$8)))","v":21.184118230599999},{"$f":"IF(AND(OR(Calculations!$E$2=\"Orkney Health Board\",Calculations!$E$2=\"Orkney Islands Local Authority\"),$F159=1),0,IF(AND(OR(Calculations!$E$2=\"Shetland Health Board\",Calculations!$E$2=\"Western Isles Health Board\",Calculations!$E$2=\"Shetland Islands Local Authority\",Calculations!$E$2=\"Eilean Siar Local Authority\"),OR($F159=1,$F159=5)),0,new_ci(VALUE(LEFT(Options!$B$24,2)),$C159,$E159,$F159,2016,$I159+$J159,1,$H159,$G159*$H159,Options!$B$8)))","v":21.150842192199999},{"$f":"IF(AND(OR(Calculations!$E$2=\"Orkney Health Board\",Calculations!$E$2=\"Orkney Islands Local Authority\"),$F159=1),0,IF(AND(OR(Calculations!$E$2=\"Shetland Health Board\",Calculations!$E$2=\"Western Isles Health Board\",Calculations!$E$2=\"Shetland Islands Local Authority\",Calculations!$E$2=\"Eilean Siar Local Authority\"),OR($F159=1,$F159=5)),0,new_yllv2(VALUE(LEFT(Options!$B$24,2)),$C159,$D159,$E159,$F159,2016,$I159,1,$H159,$G159*$H159,Options!$B$8)))","v":1157.7120189340999},{"$f":"IF(AND(OR(Calculations!$E$2=\"Orkney Health Board\",Calculations!$E$2=\"Orkney Islands Local Authority\"),$F159=1),0,IF(AND(OR(Calculations!$E$2=\"Shetland Health Board\",Calculations!$E$2=\"Western Isles Health Board\",Calculations!$E$2=\"Shetland Islands Local Authority\",Calculations!$E$2=\"Eilean Siar Local Authority\"),OR($F159=1,$F159=5)),0,new_yllv2(VALUE(LEFT(Options!$B$24,2)),$C159,$D159,$E159,$F159,2016,$I159+$J159,1,$H159,$G159*$H159,Options!$B$8)))","v":1155.893483502},{"$f":"IF(AND(OR(Calculations!$E$2=\"Orkney Health Board\",Calculations!$E$2=\"Orkney Islands Local Authority\"),$F159=1),0,IF(AND(OR(Calculations!$E$2=\"Shetland Health Board\",Calculations!$E$2=\"Western Isles Health Board\",Calculations!$E$2=\"Shetland Islands Local Authority\",Calculations!$E$2=\"Eilean Siar Local Authority\"),OR($F159=1,$F159=5)),0,hosp_count(VALUE(LEFT(Options!$B$24,2)),$C159,$E159,$F159,2016,$I159,1,$H159,$G159*$H159, Options!$B$8)))","v":2804.4106752117},{"$f":"IF(AND(OR(Calculations!$E$2=\"Orkney Health Board\",Calculations!$E$2=\"Orkney Islands Local Authority\"),$F159=1),0,IF(AND(OR(Calculations!$E$2=\"Shetland Health Board\",Calculations!$E$2=\"Western Isles Health Board\",Calculations!$E$2=\"Shetland Islands Local Authority\",Calculations!$E$2=\"Eilean Siar Local Authority\"),OR($F159=1,$F159=5)),0,hosp_count(VALUE(LEFT(Options!$B$24,2)),$C159,$E159,$F159,2016,$I159+$J159,1,$H159,$G159*$H159, Options!$B$8)))","v":2795.2412607288002},{"$f":"IF(AND(OR(Calculations!$E$2=\"Orkney Health Board\",Calculations!$E$2=\"Orkney Islands Local Authority\"),$F159=1),0,IF(AND(OR(Calculations!$E$2=\"Shetland Health Board\",Calculations!$E$2=\"Western Isles Health Board\",Calculations!$E$2=\"Shetland Islands Local Authority\",Calculations!$E$2=\"Eilean Siar Local Authority\"),OR($F159=1,$F159=5)),0,prem_mort(VALUE(LEFT(Options!$B$24,2)),$C159,$E159,$F159,2016,$I159,1,$H159,$G159*$H159,Options!$B$8)))","v":21.184118230599999},{"$f":"IF(AND(OR(Calculations!$E$2=\"Orkney Health Board\",Calculations!$E$2=\"Orkney Islands Local Authority\"),$F159=1),0,IF(AND(OR(Calculations!$E$2=\"Shetland Health Board\",Calculations!$E$2=\"Western Isles Health Board\",Calculations!$E$2=\"Shetland Islands Local Authority\",Calculations!$E$2=\"Eilean Siar Local Authority\"),OR($F159=1,$F159=5)),0,prem_mort(VALUE(LEFT(Options!$B$24,2)),$C159,$E159,$F159,2016,$I159+$J159,1,$H159,$G159*$H159,Options!$B$8)))","v":21.150842192199999},60.101904362357075,60.007496218685276,3284.568953199137,3279.4095483360284,7956.4521100000002,7930.4373726240538,60.101904362357075,60.007496218685276,360611.42617414246,360044.97731211165,19707413.719194822,19676457.290016171,47738712.660000004,47582624.23574432,360611.42617414246,360044.97731211165,6000]
[null,"Male 25-29",26.959762999999999,77.789760000000001,"male",3,{"$f":"HLOOKUP(Calculations!$E$2,'Prevalence Rates'!$C$3:$BC$249,'Prevalence Rates'!$BD160,FALSE)","v":0.12186503235597473},{"$f":"HLOOKUP(Calculations!$E$2,'Population 2016'!$C$3:$BC$249,'Population 2016'!BD160,FALSE)","v":35940},0,{"$f":"HLOOKUP(Results!E$4,Targeting!$C$3:$F$249,Targeting!$G160,FALSE)","v":1064},{"$f":"IF(AND(OR(Calculations!$E$2=\"Orkney Health Board\",Calculations!$E$2=\"Orkney Islands Local Authority\"),$F160=1),0,IF(AND(OR(Calculations!$E$2=\"Shetland Health Board\",Calculations!$E$2=\"Western Isles Health Board\",Calculations!$E$2=\"Shetland Islands Local Authority\",Calculations!$E$2=\"Eilean Siar Local Authority\"),OR($F160=1,$F160=5)),0,new_ci(VALUE(LEFT(Options!$B$24,2)),$C160,$E160,$F160,2016,$I160,1,$H160,$G160*$H160,Options!$B$8)))","v":31.277916856400001},{"$f":"IF(AND(OR(Calculations!$E$2=\"Orkney Health Board\",Calculations!$E$2=\"Orkney Islands Local Authority\"),$F160=1),0,IF(AND(OR(Calculations!$E$2=\"Shetland Health Board\",Calculations!$E$2=\"Western Isles Health Board\",Calculations!$E$2=\"Shetland Islands Local Authority\",Calculations!$E$2=\"Eilean Siar Local Authority\"),OR($F160=1,$F160=5)),0,new_ci(VALUE(LEFT(Options!$B$24,2)),$C160,$E160,$F160,2016,$I160+$J160,1,$H160,$G160*$H160,Options!$B$8)))","v":31.228819746799999},{"$f":"IF(AND(OR(Calculations!$E$2=\"Orkney Health Board\",Calculations!$E$2=\"Orkney Islands Local Authority\"),$F160=1),0,IF(AND(OR(Calculations!$E$2=\"Shetland Health Board\",Calculations!$E$2=\"Western Isles Health Board\",Calculations!$E$2=\"Shetland Islands Local Authority\",Calculations!$E$2=\"Eilean Siar Local Authority\"),OR($F160=1,$F160=5)),0,new_yllv2(VALUE(LEFT(Options!$B$24,2)),$C160,$D160,$E160,$F160,2016,$I160,1,$H160,$G160*$H160,Options!$B$8)))","v":1558.5785031206999},{"$f":"IF(AND(OR(Calculations!$E$2=\"Orkney Health Board\",Calculations!$E$2=\"Orkney Islands Local Authority\"),$F160=1),0,IF(AND(OR(Calculations!$E$2=\"Shetland Health Board\",Calculations!$E$2=\"Western Isles Health Board\",Calculations!$E$2=\"Shetland Islands Local Authority\",Calculations!$E$2=\"Eilean Siar Local Authority\"),OR($F160=1,$F160=5)),0,new_yllv2(VALUE(LEFT(Options!$B$24,2)),$C160,$D160,$E160,$F160,2016,$I160+$J160,1,$H160,$G160*$H160,Options!$B$8)))","v":1556.1319942965999},{"$f":"IF(AND(OR(Calculations!$E$2=\"Orkney Health Board\",Calculations!$E$2=\"Orkney Islands Local Authority\"),$F160=1),0,IF(AND(OR(Calculations!$E$2=\"Shetland Health Board\",Calculations!$E$2=\"Western Isles Health Board\",Calculations!$E$2=\"Shetland Islands Local Authority\",Calculations!$E$2=\"Eilean Siar Local Authority\"),OR($F160=1,$F160=5)),0,hosp_count(VALUE(LEFT(Options!$B$24,2)),$C160,$E160,$F160,2016,$I160,1,$H160,$G160*$H160, Options!$B$8)))","v":3403.3914588540001},{"$f":"IF(AND(OR(Calculations!$E$2=\"Orkney Health Board\",Calculations!$E$2=\"Orkney Islands Local Authority\"),$F160=1),0,IF(AND(OR(Calculations!$E$2=\"Shetland Health Board\",Calculations!$E$2=\"Western Isles Health Board\",Calculations!$E$2=\"Shetland Islands Local Authority\",Calculations!$E$2=\"Eilean Siar Local Authority\"),OR($F160=1,$F160=5)),0,hosp_count(VALUE(LEFT(Options!$B$24,2)),$C160,$E160,$F160,2016,$I160+$J160,1,$H160,$G160*$H160, Options!$B$8)))","v":3392.2690946140001},{"$f":"IF(AND(OR(Calculations!$E$2=\"Orkney Health Board\",Calculations!$E$2=\"Orkney Islands Local Authority\"),$F160=1),0,IF(AND(OR(Calculations!$E$2=\"Shetland Health Board\",Calculations!$E$2=\"Western Isles Health Board\",Calculations!$E$2=\"Shetland Islands Local Authority\",Calculations!$E$2=\"Eilean Siar Local Authority\"),OR($F160=1,$F160=5)),0,prem_mort(VALUE(LEFT(Options!$B$24,2)),$C160,$E160,$F160,2016,$I160,1,$H160,$G160*$H160,Options!$B$8)))","v":31.277916856400001},{"$f":"IF(AND(OR(Calculations!$E$2=\"Orkney Health Board\",Calculations!$E$2=\"Orkney Islands Local Authority\"),$F160=1),0,IF(AND(OR(Calculations!$E$2=\"Shetland Health Board\",Calculations!$E$2=\"Western Isles Health Board\",Calculations!$E$2=\"Shetland Islands Local Authority\",Calculations!$E$2=\"Eilean Siar Local Authority\"),OR($F160=1,$F160=5)),0,prem_mort(VALUE(LEFT(Options!$B$24,2)),$C160,$E160,$F160,2016,$I160+$J160,1,$H160,$G160*$H160,Options!$B$8)))","v":31.228819746799999},87.028149294379531,86.891540753478012,4336.6124182545909,4329.8052150712292,9469.6479099999997,9438.7008753867558,87.028149294379531,86.891540753478012,522168.89576627722,521349.24452086806,26019674.509527545,25978831.290427376,56817887.460000001,56632205.252320535,522168.89576627722,521349.24452086806,6000]
[null,"Male 30-34",31.981521999999998,78.061520000000002,"male",3,{"$f":"HLOOKUP(Calculations!$E$2,'Prevalence Rates'!$C$3:$BC$249,'Prevalence Rates'!$BD161,FALSE)","v":0.12186503235597473},{"$f":"HLOOKUP(Calculations!$E$2,'Population 2016'!$C$3:$BC$249,'Population 2016'!BD161,FALSE)","v":34643},0,{"$f":"HLOOKUP(Results!E$4,Targeting!$C$3:$F$249,Targeting!$G161,FALSE)","v":1026},{"$f":"IF(AND(OR(Calculations!$E$2=\"Orkney Health Board\",Calculations!$E$2=\"Orkney Islands Local Authority\"),$F161=1),0,IF(AND(OR(Calculations!$E$2=\"Shetland Health Board\",Calculations!$E$2=\"Western Isles Health Board\",Calculations!$E$2=\"Shetland Islands Local Authority\",Calculations!$E$2=\"Eilean Siar Local Authority\"),OR($F161=1,$F161=5)),0,new_ci(VALUE(LEFT(Options!$B$24,2)),$C161,$E161,$F161,2016,$I161,1,$H161,$G161*$H161,Options!$B$8)))","v":44.039441777500002},{"$f":"IF(AND(OR(Calculations!$E$2=\"Orkney Health Board\",Calculations!$E$2=\"Orkney Islands Local Authority\"),$F161=1),0,IF(AND(OR(Calculations!$E$2=\"Shetland Health Board\",Calculations!$E$2=\"Western Isles Health Board\",Calculations!$E$2=\"Shetland Islands Local Authority\",Calculations!$E$2=\"Eilean Siar Local Authority\"),OR($F161=1,$F161=5)),0,new_ci(VALUE(LEFT(Options!$B$24,2)),$C161,$E161,$F161,2016,$I161+$J161,1,$H161,$G161*$H161,Options!$B$8)))","v":43.970306716899998},{"$f":"IF(AND(OR(Calculations!$E$2=\"Orkney Health Board\",Calculations!$E$2=\"Orkney Islands Local Authority\"),$F161=1),0,IF(AND(OR(Calculations!$E$2=\"Shetland Health Board\",Calculations!$E$2=\"Western Isles Health Board\",Calculations!$E$2=\"Shetland Islands Local Authority\",Calculations!$E$2=\"Eilean Siar Local Authority\"),OR($F161=1,$F161=5)),0,new_yllv2(VALUE(LEFT(Options!$B$24,2)),$C161,$D161,$E161,$F161,2016,$I161,1,$H161,$G161*$H161,Options!$B$8)))","v":1985.2979472508},{"$f":"IF(AND(OR(Calculations!$E$2=\"Orkney Health Board\",Calculations!$E$2=\"Orkney Islands Local Authority\"),$F161=1),0,IF(AND(OR(Calculations!$E$2=\"Shetland Health Board\",Calculations!$E$2=\"Western Isles Health Board\",Calculations!$E$2=\"Shetland Islands Local Authority\",Calculations!$E$2=\"Eilean Siar Local Authority\"),OR($F161=1,$F161=5)),0,new_yllv2(VALUE(LEFT(Options!$B$24,2)),$C161,$D161,$E161,$F161,2016,$I161+$J161,1,$H161,$G161*$H161,Options!$B$8)))","v":1982.1813388572},{"$f":"IF(AND(OR(Calculations!$E$2=\"Orkney Health Board\",Calculations!$E$2=\"Orkney Islands Local Authority\"),$F161=1),0,IF(AND(OR(Calculations!$E$2=\"Shetland Health Board\",Calculations!$E$2=\"Western Isles Health Board\",Calculations!$E$2=\"Shetland Islands Local Authority\",Calculations!$E$2=\"Eilean Siar Local Authority\"),OR($F161=1,$F161=5)),0,hosp_count(VALUE(LEFT(Options!$B$24,2)),$C161,$E161,$F161,2016,$I161,1,$H161,$G161*$H161, Options!$B$8)))","v":3920.6815400494002},{"$f":"IF(AND(OR(Calculations!$E$2=\"Orkney Health Board\",Calculations!$E$2=\"Orkney Islands Local Authority\"),$F161=1),0,IF(AND(OR(Calculations!$E$2=\"Shetland Health Board\",Calculations!$E$2=\"Western Isles Health Board\",Calculations!$E$2=\"Shetland Islands Local Authority\",Calculations!$E$2=\"Eilean Siar Local Authority\"),OR($F161=1,$F161=5)),0,hosp_count(VALUE(LEFT(Options!$B$24,2)),$C161,$E161,$F161,2016,$I161+$J161,1,$H161,$G161*$H161, Options!$B$8)))","v":3907.8636928948999},{"$f":"IF(AND(OR(Calculations!$E$2=\"Orkney Health Board\",Calculations!$E$2=\"Orkney Islands Local Authority\"),$F161=1),0,IF(AND(OR(Calculations!$E$2=\"Shetland Health Board\",Calculations!$E$2=\"Western Isles Health Board\",Calculations!$E$2=\"Shetland Islands Local Authority\",Calculations!$E$2=\"Eilean Siar Local Authority\"),OR($F161=1,$F161=5)),0,prem_mort(VALUE(LEFT(Options!$B$24,2)),$C161,$E161,$F161,2016,$I161,1,$H161,$G161*$H161,Options!$B$8)))","v":44.039441777500002},{"$f":"IF(AND(OR(Calculations!$E$2=\"Orkney Health Board\",Calculations!$E$2=\"Orkney Islands Local Authority\"),$F161=1),0,IF(AND(OR(Calculations!$E$2=\"Shetland Health Board\",Calculations!$E$2=\"Western Isles Health Board\",Calculations!$E$2=\"Shetland Islands Local Authority\",Calculations!$E$2=\"Eilean Siar Local Authority\"),OR($F161=1,$F161=5)),0,prem_mort(VALUE(LEFT(Options!$B$24,2)),$C161,$E161,$F161,2016,$I161+$J161,1,$H161,$G161*$H161,Options!$B$8)))","v":43.970306716899998},127.12363761077273,126.92407331033687,5730.7333292463127,5721.7369709817276,11317.384580000002,11280.384761408943,127.12363761077273,126.92407331033687,826303.64447002276,825006.47651718964,37249766.64010103,37191290.311381228,73562999.770000011,73322500.949158132,826303.64447002276,825006.47651718964,6500]
[null,"Male 35-39",36.926009999999998,78.336009999999987,"male",3,{"$f":"HLOOKUP(Calculations!$E$2,'Prevalence Rates'!$C$3:$BC$249,'Prevalence Rates'!$BD162,FALSE)","v":0.12186503235597473},{"$f":"HLOOKUP(Calculations!$E$2,'Population 2016'!$C$3:$BC$249,'Population 2016'!BD162,FALSE)","v":32007},0,{"$f":"HLOOKUP(Results!E$4,Targeting!$C$3:$F$249,Targeting!$G162,FALSE)","v":948},{"$f":"IF(AND(OR(Calculations!$E$2=\"Orkney Health Board\",Calculations!$E$2=\"Orkney Islands Local Authority\"),$F162=1),0,IF(AND(OR(Calculations!$E$2=\"Shetland Health Board\",Calculations!$E$2=\"Western Isles Health Board\",Calculations!$E$2=\"Shetland Islands Local Authority\",Calculations!$E$2=\"Eilean Siar Local Authority\"),OR($F162=1,$F162=5)),0,new_ci(VALUE(LEFT(Options!$B$24,2)),$C162,$E162,$F162,2016,$I162,1,$H162,$G162*$H162,Options!$B$8)))","v":59.083472144700004},{"$f":"IF(AND(OR(Calculations!$E$2=\"Orkney Health Board\",Calculations!$E$2=\"Orkney Islands Local Authority\"),$F162=1),0,IF(AND(OR(Calculations!$E$2=\"Shetland Health Board\",Calculations!$E$2=\"Western Isles Health Board\",Calculations!$E$2=\"Shetland Islands Local Authority\",Calculations!$E$2=\"Eilean Siar Local Authority\"),OR($F162=1,$F162=5)),0,new_ci(VALUE(LEFT(Options!$B$24,2)),$C162,$E162,$F162,2016,$I162+$J162,1,$H162,$G162*$H162,Options!$B$8)))","v":58.9907533839},{"$f":"IF(AND(OR(Calculations!$E$2=\"Orkney Health Board\",Calculations!$E$2=\"Orkney Islands Local Authority\"),$F162=1),0,IF(AND(OR(Calculations!$E$2=\"Shetland Health Board\",Calculations!$E$2=\"Western Isles Health Board\",Calculations!$E$2=\"Shetland Islands Local Authority\",Calculations!$E$2=\"Eilean Siar Local Authority\"),OR($F162=1,$F162=5)),0,new_yllv2(VALUE(LEFT(Options!$B$24,2)),$C162,$D162,$E162,$F162,2016,$I162,1,$H162,$G162*$H162,Options!$B$8)))","v":2387.5631093673001},{"$f":"IF(AND(OR(Calculations!$E$2=\"Orkney Health Board\",Calculations!$E$2=\"Orkney Islands Local Authority\"),$F162=1),0,IF(AND(OR(Calculations!$E$2=\"Shetland Health Board\",Calculations!$E$2=\"Western Isles Health Board\",Calculations!$E$2=\"Shetland Islands Local Authority\",Calculations!$E$2=\"Eilean Siar Local Authority\"),OR($F162=1,$F162=5)),0,new_yllv2(VALUE(LEFT(Options!$B$24,2)),$C162,$D162,$E162,$F162,2016,$I162+$J162,1,$H162,$G162*$H162,Options!$B$8)))","v":2383.8163442434002},{"$f":"IF(AND(OR(Calculations!$E$2=\"Orkney Health Board\",Calculations!$E$2=\"Orkney Islands Local Authority\"),$F162=1),0,IF(AND(OR(Calculations!$E$2=\"Shetland Health Board\",Calculations!$E$2=\"Western Isles Health Board\",Calculations!$E$2=\"Shetland Islands Local Authority\",Calculations!$E$2=\"Eilean Siar Local Authority\"),OR($F162=1,$F162=5)),0,hosp_count(VALUE(LEFT(Options!$B$24,2)),$C162,$E162,$F162,2016,$I162,1,$H162,$G162*$H162, Options!$B$8)))","v":4317.2989802075999},{"$f":"IF(AND(OR(Calculations!$E$2=\"Orkney Health Board\",Calculations!$E$2=\"Orkney Islands Local Authority\"),$F162=1),0,IF(AND(OR(Calculations!$E$2=\"Shetland Health Board\",Calculations!$E$2=\"Western Isles Health Board\",Calculations!$E$2=\"Shetland Islands Local Authority\",Calculations!$E$2=\"Eilean Siar Local Authority\"),OR($F162=1,$F162=5)),0,hosp_count(VALUE(LEFT(Options!$B$24,2)),$C162,$E162,$F162,2016,$I162+$J162,1,$H162,$G162*$H162, Options!$B$8)))","v":4303.1834515886003},{"$f":"IF(AND(OR(Calculations!$E$2=\"Orkney Health Board\",Calculations!$E$2=\"Orkney Islands Local Authority\"),$F162=1),0,IF(AND(OR(Calculations!$E$2=\"Shetland Health Board\",Calculations!$E$2=\"Western Isles Health Board\",Calculations!$E$2=\"Shetland Islands Local Authority\",Calculations!$E$2=\"Eilean Siar Local Authority\"),OR($F162=1,$F162=5)),0,prem_mort(VALUE(LEFT(Options!$B$24,2)),$C162,$E162,$F162,2016,$I162,1,$H162,$G162*$H162,Options!$B$8)))","v":59.083472144700004},{"$f":"IF(AND(OR(Calculations!$E$2=\"Orkney Health Board\",Calculations!$E$2=\"Orkney Islands Local Authority\"),$F162=1),0,IF(AND(OR(Calculations!$E$2=\"Shetland Health Board\",Calculations!$E$2=\"Western Isles Health Board\",Calculations!$E$2=\"Shetland Islands Local Authority\",Calculations!$E$2=\"Eilean Siar Local Authority\"),OR($F162=1,$F162=5)),0,prem_mort(VALUE(LEFT(Options!$B$24,2)),$C162,$E162,$F162,2016,$I162+$J162,1,$H162,$G162*$H162,Options!$B$8)))","v":58.9907533839},184.59547019308278,184.30578743368639,7459.5029505023904,7447.7968701952705,13488.608679999999,13444.507300242447,184.59547019308278,184.30578743368639,1292168.2913515794,1290140.5120358048,52216520.653516732,52134578.091366895,94420260.75999999,94111551.101697132,1292168.2913515794,1290140.5120358048,7000]
[null,"Male 40-44",42.067703000000002,78.907700000000006,"male",3,{"$f":"HLOOKUP(Calculations!$E$2,'Prevalence Rates'!$C$3:$BC$249,'Prevalence Rates'!$BD163,FALSE)","v":0.12186503235597473},{"$f":"HLOOKUP(Calculations!$E$2,'Population 2016'!$C$3:$BC$249,'Population 2016'!BD163,FALSE)","v":31831},0,{"$f":"HLOOKUP(Results!E$4,Targeting!$C$3:$F$249,Targeting!$G163,FALSE)","v":943},{"$f":"IF(AND(OR(Calculations!$E$2=\"Orkney Health Board\",Calculations!$E$2=\"Orkney Islands Local Authority\"),$F163=1),0,IF(AND(OR(Calculations!$E$2=\"Shetland Health Board\",Calculations!$E$2=\"Western Isles Health Board\",Calculations!$E$2=\"Shetland Islands Local Authority\",Calculations!$E$2=\"Eilean Siar Local Authority\"),OR($F163=1,$F163=5)),0,new_ci(VALUE(LEFT(Options!$B$24,2)),$C163,$E163,$F163,2016,$I163,1,$H163,$G163*$H163,Options!$B$8)))","v":86.589672780200004},{"$f":"IF(AND(OR(Calculations!$E$2=\"Orkney Health Board\",Calculations!$E$2=\"Orkney Islands Local Authority\"),$F163=1),0,IF(AND(OR(Calculations!$E$2=\"Shetland Health Board\",Calculations!$E$2=\"Western Isles Health Board\",Calculations!$E$2=\"Shetland Islands Local Authority\",Calculations!$E$2=\"Eilean Siar Local Authority\"),OR($F163=1,$F163=5)),0,new_ci(VALUE(LEFT(Options!$B$24,2)),$C163,$E163,$F163,2016,$I163+$J163,1,$H163,$G163*$H163,Options!$B$8)))","v":86.453847397999994},{"$f":"IF(AND(OR(Calculations!$E$2=\"Orkney Health Board\",Calculations!$E$2=\"Orkney Islands Local Authority\"),$F163=1),0,IF(AND(OR(Calculations!$E$2=\"Shetland Health Board\",Calculations!$E$2=\"Western Isles Health Board\",Calculations!$E$2=\"Shetland Islands Local Authority\",Calculations!$E$2=\"Eilean Siar Local Authority\"),OR($F163=1,$F163=5)),0,new_yllv2(VALUE(LEFT(Options!$B$24,2)),$C163,$D163,$E163,$F163,2016,$I163,1,$H163,$G163*$H163,Options!$B$8)))","v":3103.3736126734002},{"$f":"IF(AND(OR(Calculations!$E$2=\"Orkney Health Board\",Calculations!$E$2=\"Orkney Islands Local Authority\"),$F163=1),0,IF(AND(OR(Calculations!$E$2=\"Shetland Health Board\",Calculations!$E$2=\"Western Isles Health Board\",Calculations!$E$2=\"Shetland Islands Local Authority\",Calculations!$E$2=\"Eilean Siar Local Authority\"),OR($F163=1,$F163=5)),0,new_yllv2(VALUE(LEFT(Options!$B$24,2)),$C163,$D163,$E163,$F163,2016,$I163+$J163,1,$H163,$G163*$H163,Options!$B$8)))","v":3098.5056313827999},{"$f":"IF(AND(OR(Calculations!$E$2=\"Orkney Health Board\",Calculations!$E$2=\"Orkney Islands Local Authority\"),$F163=1),0,IF(AND(OR(Calculations!$E$2=\"Shetland Health Board\",Calculations!$E$2=\"Western Isles Health Board\",Calculations!$E$2=\"Shetland Islands Local Authority\",Calculations!$E$2=\"Eilean Siar Local Authority\"),OR($F163=1,$F163=5)),0,hosp_count(VALUE(LEFT(Options!$B$24,2)),$C163,$E163,$F163,2016,$I163,1,$H163,$G163*$H163, Options!$B$8)))","v":5153.2179005501002},{"$f":"IF(AND(OR(Calculations!$E$2=\"Orkney Health Board\",Calculations!$E$2=\"Orkney Islands Local Authority\"),$F163=1),0,IF(AND(OR(Calculations!$E$2=\"Shetland Health Board\",Calculations!$E$2=\"Western Isles Health Board\",Calculations!$E$2=\"Shetland Islands Local Authority\",Calculations!$E$2=\"Eilean Siar Local Authority\"),OR($F163=1,$F163=5)),0,hosp_count(VALUE(LEFT(Options!$B$24,2)),$C163,$E163,$F163,2016,$I163+$J163,1,$H163,$G163*$H163, Options!$B$8)))","v":5136.3655077202002},{"$f":"IF(AND(OR(Calculations!$E$2=\"Orkney Health Board\",Calculations!$E$2=\"Orkney Islands Local Authority\"),$F163=1),0,IF(AND(OR(Calculations!$E$2=\"Shetland Health Board\",Calculations!$E$2=\"Western Isles Health Board\",Calculations!$E$2=\"Shetland Islands Local Authority\",Calculations!$E$2=\"Eilean Siar Local Authority\"),OR($F163=1,$F163=5)),0,prem_mort(VALUE(LEFT(Options!$B$24,2)),$C163,$E163,$F163,2016,$I163,1,$H163,$G163*$H163,Options!$B$8)))","v":86.589672780200004},{"$f":"IF(AND(OR(Calculations!$E$2=\"Orkney Health Board\",Calculations!$E$2=\"Orkney Islands Local Authority\"),$F163=1),0,IF(AND(OR(Calculations!$E$2=\"Shetland Health Board\",Calculations!$E$2=\"Western Isles Health Board\",Calculations!$E$2=\"Shetland Islands Local Authority\",Calculations!$E$2=\"Eilean Siar Local Authority\"),OR($F163=1,$F163=5)),0,prem_mort(VALUE(LEFT(Options!$B$24,2)),$C163,$E163,$F163,2016,$I163+$J163,1,$H163,$G163*$H163,Options!$B$8)))","v":86.453847397999994},272.0293826150608,271.60267474474563,9749.5322568357897,9734.2390480437298,16189.305710000001,16136.362375420818,272.0293826150608,271.60267474474563,1904205.6783054257,1901218.7232132193,68246725.797850534,68139673.33630611,113325139.97,112954536.62794572,1904205.6783054257,1901218.7232132193,7000]
[null,"Male 45-49",47.038155000000003,79.418149999999997,"male",3,{"$f":"HLOOKUP(Calculations!$E$2,'Prevalence Rates'!$C$3:$BC$249,'Prevalence Rates'!$BD164,FALSE)","v":0.12186503235597473},{"$f":"HLOOKUP(Calculations!$E$2,'Population 2016'!$C$3:$BC$249,'Population 2016'!BD164,FALSE)","v":37651},0,{"$f":"HLOOKUP(Results!E$4,Targeting!$C$3:$F$249,Targeting!$G164,FALSE)","v":1115},{"$f":"IF(AND(OR(Calculations!$E$2=\"Orkney Health Board\",Calculations!$E$2=\"Orkney Islands Local Authority\"),$F164=1),0,IF(AND(OR(Calculations!$E$2=\"Shetland Health Board\",Calculations!$E$2=\"Western Isles Health Board\",Calculations!$E$2=\"Shetland Islands Local Authority\",Calculations!$E$2=\"Eilean Siar Local Authority\"),OR($F164=1,$F164=5)),0,new_ci(VALUE(LEFT(Options!$B$24,2)),$C164,$E164,$F164,2016,$I164,1,$H164,$G164*$H164,Options!$B$8)))","v":148.96787101320001},{"$f":"IF(AND(OR(Calculations!$E$2=\"Orkney Health Board\",Calculations!$E$2=\"Orkney Islands Local Authority\"),$F164=1),0,IF(AND(OR(Calculations!$E$2=\"Shetland Health Board\",Calculations!$E$2=\"Western Isles Health Board\",Calculations!$E$2=\"Shetland Islands Local Authority\",Calculations!$E$2=\"Eilean Siar Local Authority\"),OR($F164=1,$F164=5)),0,new_ci(VALUE(LEFT(Options!$B$24,2)),$C164,$E164,$F164,2016,$I164+$J164,1,$H164,$G164*$H164,Options!$B$8)))","v":148.73450273969999},{"$f":"IF(AND(OR(Calculations!$E$2=\"Orkney Health Board\",Calculations!$E$2=\"Orkney Islands Local Authority\"),$F164=1),0,IF(AND(OR(Calculations!$E$2=\"Shetland Health Board\",Calculations!$E$2=\"Western Isles Health Board\",Calculations!$E$2=\"Shetland Islands Local Authority\",Calculations!$E$2=\"Eilean Siar Local Authority\"),OR($F164=1,$F164=5)),0,new_yllv2(VALUE(LEFT(Options!$B$24,2)),$C164,$D164,$E164,$F164,2016,$I164,1,$H164,$G164*$H164,Options!$B$8)))","v":4674.6110475549003},{"$f":"IF(AND(OR(Calculations!$E$2=\"Orkney Health Board\",Calculations!$E$2=\"Orkney Islands Local Authority\"),$F164=1),0,IF(AND(OR(Calculations!$E$2=\"Shetland Health Board\",Calculations!$E$2=\"Western Isles Health Board\",Calculations!$E$2=\"Shetland Islands Local Authority\",Calculations!$E$2=\"Eilean Siar Local Authority\"),OR($F164=1,$F164=5)),0,new_yllv2(VALUE(LEFT(Options!$B$24,2)),$C164,$D164,$E164,$F164,2016,$I164+$J164,1,$H164,$G164*$H164,Options!$B$8)))","v":4667.2879522992998},{"$f":"IF(AND(OR(Calculations!$E$2=\"Orkney Health Board\",Calculations!$E$2=\"Orkney Islands Local Authority\"),$F164=1),0,IF(AND(OR(Calculations!$E$2=\"Shetland Health Board\",Calculations!$E$2=\"Western Isles Health Board\",Calculations!$E$2=\"Shetland Islands Local Authority\",Calculations!$E$2=\"Eilean Siar Local Authority\"),OR($F164=1,$F164=5)),0,hosp_count(VALUE(LEFT(Options!$B$24,2)),$C164,$E164,$F164,2016,$I164,1,$H164,$G164*$H164, Options!$B$8)))","v":7271.5344409603003},{"$f":"IF(AND(OR(Calculations!$E$2=\"Orkney Health Board\",Calculations!$E$2=\"Orkney Islands Local Authority\"),$F164=1),0,IF(AND(OR(Calculations!$E$2=\"Shetland Health Board\",Calculations!$E$2=\"Western Isles Health Board\",Calculations!$E$2=\"Shetland Islands Local Authority\",Calculations!$E$2=\"Eilean Siar Local Authority\"),OR($F164=1,$F164=5)),0,hosp_count(VALUE(LEFT(Options!$B$24,2)),$C164,$E164,$F164,2016,$I164+$J164,1,$H164,$G164*$H164, Options!$B$8)))","v":7247.7635164588},{"$f":"IF(AND(OR(Calculations!$E$2=\"Orkney Health Board\",Calculations!$E$2=\"Orkney Islands Local Authority\"),$F164=1),0,IF(AND(OR(Calculations!$E$2=\"Shetland Health Board\",Calculations!$E$2=\"Western Isles Health Board\",Calculations!$E$2=\"Shetland Islands Local Authority\",Calculations!$E$2=\"Eilean Siar Local Authority\"),OR($F164=1,$F164=5)),0,prem_mort(VALUE(LEFT(Options!$B$24,2)),$C164,$E164,$F164,2016,$I164,1,$H164,$G164*$H164,Options!$B$8)))","v":148.96787101320001},{"$f":"IF(AND(OR(Calculations!$E$2=\"Orkney Health Board\",Calculations!$E$2=\"Orkney Islands Local Authority\"),$F164=1),0,IF(AND(OR(Calculations!$E$2=\"Shetland Health Board\",Calculations!$E$2=\"Western Isles Health Board\",Calculations!$E$2=\"Shetland Islands Local Authority\",Calculations!$E$2=\"Eilean Siar Local Authority\"),OR($F164=1,$F164=5)),0,prem_mort(VALUE(LEFT(Options!$B$24,2)),$C164,$E164,$F164,2016,$I164+$J164,1,$H164,$G164*$H164,Options!$B$8)))","v":148.73450273969999},395.65448729967335,395.03466771055213,12415.635833191416,12396.185897583862,19312.991529999999,19249.856621228653,395.65448729967335,395.03466771055213,2769581.4110977133,2765242.6739738649,86909450.832339913,86773301.28308703,135190940.71000001,134748996.34860057,2769581.4110977133,2765242.6739738649,7000]
[null,"Male 50-54",51.998646000000001,79.988649999999993,"male",3,{"$f":"HLOOKUP(Calculations!$E$2,'Prevalence Rates'!$C$3:$BC$249,'Prevalence Rates'!$BD165,FALSE)","v":0.12186503235597473},{"$f":"HLOOKUP(Calculations!$E$2,'Population 2016'!$C$3:$BC$249,'Population 2016'!BD165,FALSE)","v":40386},0,{"$f":"HLOOKUP(Results!E$4,Targeting!$C$3:$F$249,Targeting!$G165,FALSE)","v":1196},{"$f":"IF(AND(OR(Calculations!$E$2=\"Orkney Health Board\",Calculations!$E$2=\"Orkney Islands Local Authority\"),$F165=1),0,IF(AND(OR(Calculations!$E$2=\"Shetland Health Board\",Calculations!$E$2=\"Western Isles Health Board\",Calculations!$E$2=\"Shetland Islands Local Authority\",Calculations!$E$2=\"Eilean Siar Local Authority\"),OR($F165=1,$F165=5)),0,new_ci(VALUE(LEFT(Options!$B$24,2)),$C165,$E165,$F165,2016,$I165,1,$H165,$G165*$H165,Options!$B$8)))","v":232.16553965579999},{"$f":"IF(AND(OR(Calculations!$E$2=\"Orkney Health Board\",Calculations!$E$2=\"Orkney Islands Local Authority\"),$F165=1),0,IF(AND(OR(Calculations!$E$2=\"Shetland Health Board\",Calculations!$E$2=\"Western Isles Health Board\",Calculations!$E$2=\"Shetland Islands Local Authority\",Calculations!$E$2=\"Eilean Siar Local Authority\"),OR($F165=1,$F165=5)),0,new_ci(VALUE(LEFT(Options!$B$24,2)),$C165,$E165,$F165,2016,$I165+$J165,1,$H165,$G165*$H165,Options!$B$8)))","v":231.80232390419999},{"$f":"IF(AND(OR(Calculations!$E$2=\"Orkney Health Board\",Calculations!$E$2=\"Orkney Islands Local Authority\"),$F165=1),0,IF(AND(OR(Calculations!$E$2=\"Shetland Health Board\",Calculations!$E$2=\"Western Isles Health Board\",Calculations!$E$2=\"Shetland Islands Local Authority\",Calculations!$E$2=\"Eilean Siar Local Authority\"),OR($F165=1,$F165=5)),0,new_yllv2(VALUE(LEFT(Options!$B$24,2)),$C165,$D165,$E165,$F165,2016,$I165,1,$H165,$G165*$H165,Options!$B$8)))","v":6266.1488439721998},{"$f":"IF(AND(OR(Calculations!$E$2=\"Orkney Health Board\",Calculations!$E$2=\"Orkney Islands Local Authority\"),$F165=1),0,IF(AND(OR(Calculations!$E$2=\"Shetland Health Board\",Calculations!$E$2=\"Western Isles Health Board\",Calculations!$E$2=\"Shetland Islands Local Authority\",Calculations!$E$2=\"Eilean Siar Local Authority\"),OR($F165=1,$F165=5)),0,new_yllv2(VALUE(LEFT(Options!$B$24,2)),$C165,$D165,$E165,$F165,2016,$I165+$J165,1,$H165,$G165*$H165,Options!$B$8)))","v":6256.3456493837002},{"$f":"IF(AND(OR(Calculations!$E$2=\"Orkney Health Board\",Calculations!$E$2=\"Orkney Islands Local Authority\"),$F165=1),0,IF(AND(OR(Calculations!$E$2=\"Shetland Health Board\",Calculations!$E$2=\"Western Isles Health Board\",Calculations!$E$2=\"Shetland Islands Local Authority\",Calculations!$E$2=\"Eilean Siar Local Authority\"),OR($F165=1,$F165=5)),0,hosp_count(VALUE(LEFT(Options!$B$24,2)),$C165,$E165,$F165,2016,$I165,1,$H165,$G165*$H165, Options!$B$8)))","v":9301.3966469789993},{"$f":"IF(AND(OR(Calculations!$E$2=\"Orkney Health Board\",Calculations!$E$2=\"Orkney Islands Local Authority\"),$F165=1),0,IF(AND(OR(Calculations!$E$2=\"Shetland Health Board\",Calculations!$E$2=\"Western Isles Health Board\",Calculations!$E$2=\"Shetland Islands Local Authority\",Calculations!$E$2=\"Eilean Siar Local Authority\"),OR($F165=1,$F165=5)),0,hosp_count(VALUE(LEFT(Options!$B$24,2)),$C165,$E165,$F165,2016,$I165+$J165,1,$H165,$G165*$H165, Options!$B$8)))","v":9270.9898860599005},{"$f":"IF(AND(OR(Calculations!$E$2=\"Orkney Health Board\",Calculations!$E$2=\"Orkney Islands Local Authority\"),$F165=1),0,IF(AND(OR(Calculations!$E$2=\"Shetland Health Board\",Calculations!$E$2=\"Western Isles Health Board\",Calculations!$E$2=\"Shetland Islands Local Authority\",Calculations!$E$2=\"Eilean Siar Local Authority\"),OR($F165=1,$F165=5)),0,prem_mort(VALUE(LEFT(Options!$B$24,2)),$C165,$E165,$F165,2016,$I165,1,$H165,$G165*$H165,Options!$B$8)))","v":232.16553965579999},{"$f":"IF(AND(OR(Calculations!$E$2=\"Orkney Health Board\",Calculations!$E$2=\"Orkney Islands Local Authority\"),$F165=1),0,IF(AND(OR(Calculations!$E$2=\"Shetland Health Board\",Calculations!$E$2=\"Western Isles Health Board\",Calculations!$E$2=\"Shetland Islands Local Authority\",Calculations!$E$2=\"Eilean Siar Local Authority\"),OR($F165=1,$F165=5)),0,prem_mort(VALUE(LEFT(Options!$B$24,2)),$C165,$E165,$F165,2016,$I165+$J165,1,$H165,$G165*$H165,Options!$B$8)))","v":231.80232390419999},574.86638849056601,573.96702794087059,15515.646124825929,15491.372379992325,23031.240149999998,22955.949799583766,574.86638849056601,573.96702794087059,4024064.7194339619,4017769.1955860942,108609522.8737815,108439606.65994628,161218681.04999998,160691648.59708637,4024064.7194339619,4017769.1955860942,7000]
[null,"Male 55-59",56.950867000000002,80.660870000000003,"male",3,{"$f":"HLOOKUP(Calculations!$E$2,'Prevalence Rates'!$C$3:$BC$249,'Prevalence Rates'!$BD166,FALSE)","v":8.219026204685223E-2},{"$f":"HLOOKUP(Calculations!$E$2,'Population 2016'!$C$3:$BC$249,'Population 2016'!BD166,FALSE)","v":37545},0,{"$f":"HLOOKUP(Results!E$4,Targeting!$C$3:$F$249,Targeting!$G166,FALSE)","v":1112},{"$f":"IF(AND(OR(Calculations!$E$2=\"Orkney Health Board\",Calculations!$E$2=\"Orkney Islands Local Authority\"),$F166=1),0,IF(AND(OR(Calculations!$E$2=\"Shetland Health Board\",Calculations!$E$2=\"Western Isles Health Board\",Calculations!$E$2=\"Shetland Islands Local Authority\",Calculations!$E$2=\"Eilean Siar Local Authority\"),OR($F166=1,$F166=5)),0,new_ci(VALUE(LEFT(Options!$B$24,2)),$C166,$E166,$F166,2016,$I166,1,$H166,$G166*$H166,Options!$B$8)))","v":313.2752246137},{"$f":"IF(AND(OR(Calculations!$E$2=\"Orkney Health Board\",Calculations!$E$2=\"Orkney Islands Local Authority\"),$F166=1),0,IF(AND(OR(Calculations!$E$2=\"Shetland Health Board\",Calculations!$E$2=\"Western Isles Health Board\",Calculations!$E$2=\"Shetland Islands Local Authority\",Calculations!$E$2=\"Eilean Siar Local Authority\"),OR($F166=1,$F166=5)),0,new_ci(VALUE(LEFT(Options!$B$24,2)),$C166,$E166,$F166,2016,$I166+$J166,1,$H166,$G166*$H166,Options!$B$8)))","v":312.77984907450002},{"$f":"IF(AND(OR(Calculations!$E$2=\"Orkney Health Board\",Calculations!$E$2=\"Orkney Islands Local Authority\"),$F166=1),0,IF(AND(OR(Calculations!$E$2=\"Shetland Health Board\",Calculations!$E$2=\"Western Isles Health Board\",Calculations!$E$2=\"Shetland Islands Local Authority\",Calculations!$E$2=\"Eilean Siar Local Authority\"),OR($F166=1,$F166=5)),0,new_yllv2(VALUE(LEFT(Options!$B$24,2)),$C166,$D166,$E166,$F166,2016,$I166,1,$H166,$G166*$H166,Options!$B$8)))","v":7114.4812908027998},{"$f":"IF(AND(OR(Calculations!$E$2=\"Orkney Health Board\",Calculations!$E$2=\"Orkney Islands Local Authority\"),$F166=1),0,IF(AND(OR(Calculations!$E$2=\"Shetland Health Board\",Calculations!$E$2=\"Western Isles Health Board\",Calculations!$E$2=\"Shetland Islands Local Authority\",Calculations!$E$2=\"Eilean Siar Local Authority\"),OR($F166=1,$F166=5)),0,new_yllv2(VALUE(LEFT(Options!$B$24,2)),$C166,$D166,$E166,$F166,2016,$I166+$J166,1,$H166,$G166*$H166,Options!$B$8)))","v":7103.2313108214003},{"$f":"IF(AND(OR(Calculations!$E$2=\"Orkney Health Board\",Calculations!$E$2=\"Orkney Islands Local Authority\"),$F166=1),0,IF(AND(OR(Calculations!$E$2=\"Shetland Health Board\",Calculations!$E$2=\"Western Isles Health Board\",Calculations!$E$2=\"Shetland Islands Local Authority\",Calculations!$E$2=\"Eilean Siar Local Authority\"),OR($F166=1,$F166=5)),0,hosp_count(VALUE(LEFT(Options!$B$24,2)),$C166,$E166,$F166,2016,$I166,1,$H166,$G166*$H166, Options!$B$8)))","v":10308.838145089499},{"$f":"IF(AND(OR(Calculations!$E$2=\"Orkney Health Board\",Calculations!$E$2=\"Orkney Islands Local Authority\"),$F166=1),0,IF(AND(OR(Calculations!$E$2=\"Shetland Health Board\",Calculations!$E$2=\"Western Isles Health Board\",Calculations!$E$2=\"Shetland Islands Local Authority\",Calculations!$E$2=\"Eilean Siar Local Authority\"),OR($F166=1,$F166=5)),0,hosp_count(VALUE(LEFT(Options!$B$24,2)),$C166,$E166,$F166,2016,$I166+$J166,1,$H166,$G166*$H166, Options!$B$8)))","v":10274.666382695001},{"$f":"IF(AND(OR(Calculations!$E$2=\"Orkney Health Board\",Calculations!$E$2=\"Orkney Islands Local Authority\"),$F166=1),0,IF(AND(OR(Calculations!$E$2=\"Shetland Health Board\",Calculations!$E$2=\"Western Isles Health Board\",Calculations!$E$2=\"Shetland Islands Local Authority\",Calculations!$E$2=\"Eilean Siar Local Authority\"),OR($F166=1,$F166=5)),0,prem_mort(VALUE(LEFT(Options!$B$24,2)),$C166,$E166,$F166,2016,$I166,1,$H166,$G166*$H166,Options!$B$8)))","v":313.2752246137},{"$f":"IF(AND(OR(Calculations!$E$2=\"Orkney Health Board\",Calculations!$E$2=\"Orkney Islands Local Authority\"),$F166=1),0,IF(AND(OR(Calculations!$E$2=\"Shetland Health Board\",Calculations!$E$2=\"Western Isles Health Board\",Calculations!$E$2=\"Shetland Islands Local Authority\",Calculations!$E$2=\"Eilean Siar Local Authority\"),OR($F166=1,$F166=5)),0,prem_mort(VALUE(LEFT(Options!$B$24,2)),$C166,$E166,$F166,2016,$I166+$J166,1,$H166,$G166*$H166,Options!$B$8)))","v":312.77984907450002},834.39931978612333,833.07990165002002,18949.211055540818,18919.247065711545,27457.28631,27366.270828858702,834.39931978612333,833.07990165002002,5423595.5786098018,5415019.36072513,123169871.86101532,122975105.92712504,178472361.01499999,177880760.38758156,5423595.5786098018,5415019.36072513,6500]
[null,"Male 60-64",61.942988999999997,81.612989999999996,"male",3,{"$f":"HLOOKUP(Calculations!$E$2,'Prevalence Rates'!$C$3:$BC$249,'Prevalence Rates'!$BD167,FALSE)","v":8.219026204685223E-2},{"$f":"HLOOKUP(Calculations!$E$2,'Population 2016'!$C$3:$BC$249,'Population 2016'!BD167,FALSE)","v":33247},0,{"$f":"HLOOKUP(Results!E$4,Targeting!$C$3:$F$249,Targeting!$G167,FALSE)","v":985},{"$f":"IF(AND(OR(Calculations!$E$2=\"Orkney Health Board\",Calculations!$E$2=\"Orkney Islands Local Authority\"),$F167=1),0,IF(AND(OR(Calculations!$E$2=\"Shetland Health Board\",Calculations!$E$2=\"Western Isles Health Board\",Calculations!$E$2=\"Shetland Islands Local Authority\",Calculations!$E$2=\"Eilean Siar Local Authority\"),OR($F167=1,$F167=5)),0,new_ci(VALUE(LEFT(Options!$B$24,2)),$C167,$E167,$F167,2016,$I167,1,$H167,$G167*$H167,Options!$B$8)))","v":403.61883344159997},{"$f":"IF(AND(OR(Calculations!$E$2=\"Orkney Health Board\",Calculations!$E$2=\"Orkney Islands Local Authority\"),$F167=1),0,IF(AND(OR(Calculations!$E$2=\"Shetland Health Board\",Calculations!$E$2=\"Western Isles Health Board\",Calculations!$E$2=\"Shetland Islands Local Authority\",Calculations!$E$2=\"Eilean Siar Local Authority\"),OR($F167=1,$F167=5)),0,new_ci(VALUE(LEFT(Options!$B$24,2)),$C167,$E167,$F167,2016,$I167+$J167,1,$H167,$G167*$H167,Options!$B$8)))","v":402.98227738859998},{"$f":"IF(AND(OR(Calculations!$E$2=\"Orkney Health Board\",Calculations!$E$2=\"Orkney Islands Local Authority\"),$F167=1),0,IF(AND(OR(Calculations!$E$2=\"Shetland Health Board\",Calculations!$E$2=\"Western Isles Health Board\",Calculations!$E$2=\"Shetland Islands Local Authority\",Calculations!$E$2=\"Eilean Siar Local Authority\"),OR($F167=1,$F167=5)),0,new_yllv2(VALUE(LEFT(Options!$B$24,2)),$C167,$D167,$E167,$F167,2016,$I167,1,$H167,$G167*$H167,Options!$B$8)))","v":7535.5640239735003},{"$f":"IF(AND(OR(Calculations!$E$2=\"Orkney Health Board\",Calculations!$E$2=\"Orkney Islands Local Authority\"),$F167=1),0,IF(AND(OR(Calculations!$E$2=\"Shetland Health Board\",Calculations!$E$2=\"Western Isles Health Board\",Calculations!$E$2=\"Shetland Islands Local Authority\",Calculations!$E$2=\"Eilean Siar Local Authority\"),OR($F167=1,$F167=5)),0,new_yllv2(VALUE(LEFT(Options!$B$24,2)),$C167,$D167,$E167,$F167,2016,$I167+$J167,1,$H167,$G167*$H167,Options!$B$8)))","v":7523.6795218274001},{"$f":"IF(AND(OR(Calculations!$E$2=\"Orkney Health Board\",Calculations!$E$2=\"Orkney Islands Local Authority\"),$F167=1),0,IF(AND(OR(Calculations!$E$2=\"Shetland Health Board\",Calculations!$E$2=\"Western Isles Health Board\",Calculations!$E$2=\"Shetland Islands Local Authority\",Calculations!$E$2=\"Eilean Siar Local Authority\"),OR($F167=1,$F167=5)),0,hosp_count(VALUE(LEFT(Options!$B$24,2)),$C167,$E167,$F167,2016,$I167,1,$H167,$G167*$H167, Options!$B$8)))","v":10898.467983401801},{"$f":"IF(AND(OR(Calculations!$E$2=\"Orkney Health Board\",Calculations!$E$2=\"Orkney Islands Local Authority\"),$F167=1),0,IF(AND(OR(Calculations!$E$2=\"Shetland Health Board\",Calculations!$E$2=\"Western Isles Health Board\",Calculations!$E$2=\"Shetland Islands Local Authority\",Calculations!$E$2=\"Eilean Siar Local Authority\"),OR($F167=1,$F167=5)),0,hosp_count(VALUE(LEFT(Options!$B$24,2)),$C167,$E167,$F167,2016,$I167+$J167,1,$H167,$G167*$H167, Options!$B$8)))","v":10862.330808405801},{"$f":"IF(AND(OR(Calculations!$E$2=\"Orkney Health Board\",Calculations!$E$2=\"Orkney Islands Local Authority\"),$F167=1),0,IF(AND(OR(Calculations!$E$2=\"Shetland Health Board\",Calculations!$E$2=\"Western Isles Health Board\",Calculations!$E$2=\"Shetland Islands Local Authority\",Calculations!$E$2=\"Eilean Siar Local Authority\"),OR($F167=1,$F167=5)),0,prem_mort(VALUE(LEFT(Options!$B$24,2)),$C167,$E167,$F167,2016,$I167,1,$H167,$G167*$H167,Options!$B$8)))","v":403.61883344159997},{"$f":"IF(AND(OR(Calculations!$E$2=\"Orkney Health Board\",Calculations!$E$2=\"Orkney Islands Local Authority\"),$F167=1),0,IF(AND(OR(Calculations!$E$2=\"Shetland Health Board\",Calculations!$E$2=\"Western Isles Health Board\",Calculations!$E$2=\"Shetland Islands Local Authority\",Calculations!$E$2=\"Eilean Siar Local Authority\"),OR($F167=1,$F167=5)),0,prem_mort(VALUE(LEFT(Options!$B$24,2)),$C167,$E167,$F167,2016,$I167+$J167,1,$H167,$G167*$H167,Options!$B$8)))","v":402.98227738859998},1214.0007622991548,1212.0861352561133,22665.395446125967,22629.649357317652,32780.304940000002,32671.611900038501,1214.0007622991548,1212.0861352561133,7284004.5737949284,7272516.81153668,135992372.67675582,135777896.14390591,196681829.64000002,196029671.400231,7284004.5737949284,7272516.81153668,6000]
[null,"Male 65-69",67.054419999999993,82.954419999999999,"male",3,{"$f":"HLOOKUP(Calculations!$E$2,'Prevalence Rates'!$C$3:$BC$249,'Prevalence Rates'!$BD168,FALSE)","v":8.219026204685223E-2},{"$f":"HLOOKUP(Calculations!$E$2,'Population 2016'!$C$3:$BC$249,'Population 2016'!BD168,FALSE)","v":33371},0,{"$f":"HLOOKUP(Results!E$4,Targeting!$C$3:$F$249,Targeting!$G168,FALSE)","v":988},{"$f":"IF(AND(OR(Calculations!$E$2=\"Orkney Health Board\",Calculations!$E$2=\"Orkney Islands Local Authority\"),$F168=1),0,IF(AND(OR(Calculations!$E$2=\"Shetland Health Board\",Calculations!$E$2=\"Western Isles Health Board\",Calculations!$E$2=\"Shetland Islands Local Authority\",Calculations!$E$2=\"Eilean Siar Local Authority\"),OR($F168=1,$F168=5)),0,new_ci(VALUE(LEFT(Options!$B$24,2)),$C168,$E168,$F168,2016,$I168,1,$H168,$G168*$H168,Options!$B$8)))","v":594.1928958538},{"$f":"IF(AND(OR(Calculations!$E$2=\"Orkney Health Board\",Calculations!$E$2=\"Orkney Islands Local Authority\"),$F168=1),0,IF(AND(OR(Calculations!$E$2=\"Shetland Health Board\",Calculations!$E$2=\"Western Isles Health Board\",Calculations!$E$2=\"Shetland Islands Local Authority\",Calculations!$E$2=\"Eilean Siar Local Authority\"),OR($F168=1,$F168=5)),0,new_ci(VALUE(LEFT(Options!$B$24,2)),$C168,$E168,$F168,2016,$I168+$J168,1,$H168,$G168*$H168,Options!$B$8)))","v":593.26053418460003},{"$f":"IF(AND(OR(Calculations!$E$2=\"Orkney Health Board\",Calculations!$E$2=\"Orkney Islands Local Authority\"),$F168=1),0,IF(AND(OR(Calculations!$E$2=\"Shetland Health Board\",Calculations!$E$2=\"Western Isles Health Board\",Calculations!$E$2=\"Shetland Islands Local Authority\",Calculations!$E$2=\"Eilean Siar Local Authority\"),OR($F168=1,$F168=5)),0,new_yllv2(VALUE(LEFT(Options!$B$24,2)),$C168,$D168,$E168,$F168,2016,$I168,1,$H168,$G168*$H168,Options!$B$8)))","v":8853.4741482215995},{"$f":"IF(AND(OR(Calculations!$E$2=\"Orkney Health Board\",Calculations!$E$2=\"Orkney Islands Local Authority\"),$F168=1),0,IF(AND(OR(Calculations!$E$2=\"Shetland Health Board\",Calculations!$E$2=\"Western Isles Health Board\",Calculations!$E$2=\"Shetland Islands Local Authority\",Calculations!$E$2=\"Eilean Siar Local Authority\"),OR($F168=1,$F168=5)),0,new_yllv2(VALUE(LEFT(Options!$B$24,2)),$C168,$D168,$E168,$F168,2016,$I168+$J168,1,$H168,$G168*$H168,Options!$B$8)))","v":8839.5819593505003},{"$f":"IF(AND(OR(Calculations!$E$2=\"Orkney Health Board\",Calculations!$E$2=\"Orkney Islands Local Authority\"),$F168=1),0,IF(AND(OR(Calculations!$E$2=\"Shetland Health Board\",Calculations!$E$2=\"Western Isles Health Board\",Calculations!$E$2=\"Shetland Islands Local Authority\",Calculations!$E$2=\"Eilean Siar Local Authority\"),OR($F168=1,$F168=5)),0,hosp_count(VALUE(LEFT(Options!$B$24,2)),$C168,$E168,$F168,2016,$I168,1,$H168,$G168*$H168, Options!$B$8)))","v":13115.2562048768},{"$f":"IF(AND(OR(Calculations!$E$2=\"Orkney Health Board\",Calculations!$E$2=\"Orkney Islands Local Authority\"),$F168=1),0,IF(AND(OR(Calculations!$E$2=\"Shetland Health Board\",Calculations!$E$2=\"Western Isles Health Board\",Calculations!$E$2=\"Shetland Islands Local Authority\",Calculations!$E$2=\"Eilean Siar Local Authority\"),OR($F168=1,$F168=5)),0,hosp_count(VALUE(LEFT(Options!$B$24,2)),$C168,$E168,$F168,2016,$I168+$J168,1,$H168,$G168*$H168, Options!$B$8)))","v":13071.798230271999},{"$f":"IF(AND(OR(Calculations!$E$2=\"Orkney Health Board\",Calculations!$E$2=\"Orkney Islands Local Authority\"),$F168=1),0,IF(AND(OR(Calculations!$E$2=\"Shetland Health Board\",Calculations!$E$2=\"Western Isles Health Board\",Calculations!$E$2=\"Shetland Islands Local Authority\",Calculations!$E$2=\"Eilean Siar Local Authority\"),OR($F168=1,$F168=5)),0,prem_mort(VALUE(LEFT(Options!$B$24,2)),$C168,$E168,$F168,2016,$I168,1,$H168,$G168*$H168,Options!$B$8)))","v":594.1928958538},{"$f":"IF(AND(OR(Calculations!$E$2=\"Orkney Health Board\",Calculations!$E$2=\"Orkney Islands Local Authority\"),$F168=1),0,IF(AND(OR(Calculations!$E$2=\"Shetland Health Board\",Calculations!$E$2=\"Western Isles Health Board\",Calculations!$E$2=\"Shetland Islands Local Authority\",Calculations!$E$2=\"Eilean Siar Local Authority\"),OR($F168=1,$F168=5)),0,prem_mort(VALUE(LEFT(Options!$B$24,2)),$C168,$E168,$F168,2016,$I168+$J168,1,$H168,$G168*$H168,Options!$B$8)))","v":593.26053418460003},1780.5666472500077,1777.7727193808996,26530.443044025051,26488.813518775285,39301.358079999998,39171.131312432954,1780.5666472500077,1777.7727193808996,9793116.5598750431,9777749.9565949477,145917436.74213779,145688474.35326406,216157469.44,215441222.21838126,9793116.5598750431,9777749.9565949477,5500]
[null,"Male 70-74",71.891098,84.341099999999997,"male",3,{"$f":"HLOOKUP(Calculations!$E$2,'Prevalence Rates'!$C$3:$BC$249,'Prevalence Rates'!$BD169,FALSE)","v":8.219026204685223E-2},{"$f":"HLOOKUP(Calculations!$E$2,'Population 2016'!$C$3:$BC$249,'Population 2016'!BD169,FALSE)","v":24436},0,{"$f":"HLOOKUP(Results!E$4,Targeting!$C$3:$F$249,Targeting!$G169,FALSE)","v":724},{"$f":"IF(AND(OR(Calculations!$E$2=\"Orkney Health Board\",Calculations!$E$2=\"Orkney Islands Local Authority\"),$F169=1),0,IF(AND(OR(Calculations!$E$2=\"Shetland Health Board\",Calculations!$E$2=\"Western Isles Health Board\",Calculations!$E$2=\"Shetland Islands Local Authority\",Calculations!$E$2=\"Eilean Siar Local Authority\"),OR($F169=1,$F169=5)),0,new_ci(VALUE(LEFT(Options!$B$24,2)),$C169,$E169,$F169,2016,$I169,1,$H169,$G169*$H169,Options!$B$8)))","v":624.37881487829998},{"$f":"IF(AND(OR(Calculations!$E$2=\"Orkney Health Board\",Calculations!$E$2=\"Orkney Islands Local Authority\"),$F169=1),0,IF(AND(OR(Calculations!$E$2=\"Shetland Health Board\",Calculations!$E$2=\"Western Isles Health Board\",Calculations!$E$2=\"Shetland Islands Local Authority\",Calculations!$E$2=\"Eilean Siar Local Authority\"),OR($F169=1,$F169=5)),0,new_ci(VALUE(LEFT(Options!$B$24,2)),$C169,$E169,$F169,2016,$I169+$J169,1,$H169,$G169*$H169,Options!$B$8)))","v":623.40429371949995},{"$f":"IF(AND(OR(Calculations!$E$2=\"Orkney Health Board\",Calculations!$E$2=\"Orkney Islands Local Authority\"),$F169=1),0,IF(AND(OR(Calculations!$E$2=\"Shetland Health Board\",Calculations!$E$2=\"Western Isles Health Board\",Calculations!$E$2=\"Shetland Islands Local Authority\",Calculations!$E$2=\"Eilean Siar Local Authority\"),OR($F169=1,$F169=5)),0,new_yllv2(VALUE(LEFT(Options!$B$24,2)),$C169,$D169,$E169,$F169,2016,$I169,1,$H169,$G169*$H169,Options!$B$8)))","v":7149.1386791142004},{"$f":"IF(AND(OR(Calculations!$E$2=\"Orkney Health Board\",Calculations!$E$2=\"Orkney Islands Local Authority\"),$F169=1),0,IF(AND(OR(Calculations!$E$2=\"Shetland Health Board\",Calculations!$E$2=\"Western Isles Health Board\",Calculations!$E$2=\"Shetland Islands Local Authority\",Calculations!$E$2=\"Eilean Siar Local Authority\"),OR($F169=1,$F169=5)),0,new_yllv2(VALUE(LEFT(Options!$B$24,2)),$C169,$D169,$E169,$F169,2016,$I169+$J169,1,$H169,$G169*$H169,Options!$B$8)))","v":7137.9804098968998},{"$f":"IF(AND(OR(Calculations!$E$2=\"Orkney Health Board\",Calculations!$E$2=\"Orkney Islands Local Authority\"),$F169=1),0,IF(AND(OR(Calculations!$E$2=\"Shetland Health Board\",Calculations!$E$2=\"Western Isles Health Board\",Calculations!$E$2=\"Shetland Islands Local Authority\",Calculations!$E$2=\"Eilean Siar Local Authority\"),OR($F169=1,$F169=5)),0,hosp_count(VALUE(LEFT(Options!$B$24,2)),$C169,$E169,$F169,2016,$I169,1,$H169,$G169*$H169, Options!$B$8)))","v":11402.414531516401},{"$f":"IF(AND(OR(Calculations!$E$2=\"Orkney Health Board\",Calculations!$E$2=\"Orkney Islands Local Authority\"),$F169=1),0,IF(AND(OR(Calculations!$E$2=\"Shetland Health Board\",Calculations!$E$2=\"Western Isles Health Board\",Calculations!$E$2=\"Shetland Islands Local Authority\",Calculations!$E$2=\"Eilean Siar Local Authority\"),OR($F169=1,$F169=5)),0,hosp_count(VALUE(LEFT(Options!$B$24,2)),$C169,$E169,$F169,2016,$I169+$J169,1,$H169,$G169*$H169, Options!$B$8)))","v":11364.604220081501},{"$f":"IF(AND(OR(Calculations!$E$2=\"Orkney Health Board\",Calculations!$E$2=\"Orkney Islands Local Authority\"),$F169=1),0,IF(AND(OR(Calculations!$E$2=\"Shetland Health Board\",Calculations!$E$2=\"Western Isles Health Board\",Calculations!$E$2=\"Shetland Islands Local Authority\",Calculations!$E$2=\"Eilean Siar Local Authority\"),OR($F169=1,$F169=5)),0,prem_mort(VALUE(LEFT(Options!$B$24,2)),$C169,$E169,$F169,2016,$I169,1,$H169,$G169*$H169,Options!$B$8)))","v":624.37881487829998},{"$f":"IF(AND(OR(Calculations!$E$2=\"Orkney Health Board\",Calculations!$E$2=\"Orkney Islands Local Authority\"),$F169=1),0,IF(AND(OR(Calculations!$E$2=\"Shetland Health Board\",Calculations!$E$2=\"Western Isles Health Board\",Calculations!$E$2=\"Shetland Islands Local Authority\",Calculations!$E$2=\"Eilean Siar Local Authority\"),OR($F169=1,$F169=5)),0,prem_mort(VALUE(LEFT(Options!$B$24,2)),$C169,$E169,$F169,2016,$I169+$J169,1,$H169,$G169*$H169,Options!$B$8)))","v":623.40429371949995},2555.1596614761006,2551.1716063164999,29256.58323422082,29210.919994667292,46662.360990000001,46507.628990348261,2555.1596614761006,2551.1716063164999,12775798.307380503,12755858.031582499,146282916.1711041,146054599.97333646,233311804.95000002,232538144.95174131,12775798.307380503,12755858.031582499,5000]
[null,"Male 75-79",76.907700000000006,86.357700000000008,"male",3,{"$f":"HLOOKUP(Calculations!$E$2,'Prevalence Rates'!$C$3:$BC$249,'Prevalence Rates'!$BD170,FALSE)","v":8.219026204685223E-2},{"$f":"HLOOKUP(Calculations!$E$2,'Population 2016'!$C$3:$BC$249,'Population 2016'!BD170,FALSE)","v":18146},0,{"$f":"HLOOKUP(Results!E$4,Targeting!$C$3:$F$249,Targeting!$G170,FALSE)","v":537},{"$f":"IF(AND(OR(Calculations!$E$2=\"Orkney Health Board\",Calculations!$E$2=\"Orkney Islands Local Authority\"),$F170=1),0,IF(AND(OR(Calculations!$E$2=\"Shetland Health Board\",Calculations!$E$2=\"Western Isles Health Board\",Calculations!$E$2=\"Shetland Islands Local Authority\",Calculations!$E$2=\"Eilean Siar Local Authority\"),OR($F170=1,$F170=5)),0,new_ci(VALUE(LEFT(Options!$B$24,2)),$C170,$E170,$F170,2016,$I170,1,$H170,$G170*$H170,Options!$B$8)))","v":673.11705018400005},{"$f":"IF(AND(OR(Calculations!$E$2=\"Orkney Health Board\",Calculations!$E$2=\"Orkney Islands Local Authority\"),$F170=1),0,IF(AND(OR(Calculations!$E$2=\"Shetland Health Board\",Calculations!$E$2=\"Western Isles Health Board\",Calculations!$E$2=\"Shetland Islands Local Authority\",Calculations!$E$2=\"Eilean Siar Local Authority\"),OR($F170=1,$F170=5)),0,new_ci(VALUE(LEFT(Options!$B$24,2)),$C170,$E170,$F170,2016,$I170+$J170,1,$H170,$G170*$H170,Options!$B$8)))","v":672.07725273430003},{"$f":"IF(AND(OR(Calculations!$E$2=\"Orkney Health Board\",Calculations!$E$2=\"Orkney Islands Local Authority\"),$F170=1),0,IF(AND(OR(Calculations!$E$2=\"Shetland Health Board\",Calculations!$E$2=\"Western Isles Health Board\",Calculations!$E$2=\"Shetland Islands Local Authority\",Calculations!$E$2=\"Eilean Siar Local Authority\"),OR($F170=1,$F170=5)),0,new_yllv2(VALUE(LEFT(Options!$B$24,2)),$C170,$D170,$E170,$F170,2016,$I170,1,$H170,$G170*$H170,Options!$B$8)))","v":5687.8390740548002},{"$f":"IF(AND(OR(Calculations!$E$2=\"Orkney Health Board\",Calculations!$E$2=\"Orkney Islands Local Authority\"),$F170=1),0,IF(AND(OR(Calculations!$E$2=\"Shetland Health Board\",Calculations!$E$2=\"Western Isles Health Board\",Calculations!$E$2=\"Shetland Islands Local Authority\",Calculations!$E$2=\"Eilean Siar Local Authority\"),OR($F170=1,$F170=5)),0,new_yllv2(VALUE(LEFT(Options!$B$24,2)),$C170,$D170,$E170,$F170,2016,$I170+$J170,1,$H170,$G170*$H170,Options!$B$8)))","v":5679.0527856048002},{"$f":"IF(AND(OR(Calculations!$E$2=\"Orkney Health Board\",Calculations!$E$2=\"Orkney Islands Local Authority\"),$F170=1),0,IF(AND(OR(Calculations!$E$2=\"Shetland Health Board\",Calculations!$E$2=\"Western Isles Health Board\",Calculations!$E$2=\"Shetland Islands Local Authority\",Calculations!$E$2=\"Eilean Siar Local Authority\"),OR($F170=1,$F170=5)),0,hosp_count(VALUE(LEFT(Options!$B$24,2)),$C170,$E170,$F170,2016,$I170,1,$H170,$G170*$H170, Options!$B$8)))","v":10117.666517439},{"$f":"IF(AND(OR(Calculations!$E$2=\"Orkney Health Board\",Calculations!$E$2=\"Orkney Islands Local Authority\"),$F170=1),0,IF(AND(OR(Calculations!$E$2=\"Shetland Health Board\",Calculations!$E$2=\"Western Isles Health Board\",Calculations!$E$2=\"Shetland Islands Local Authority\",Calculations!$E$2=\"Eilean Siar Local Authority\"),OR($F170=1,$F170=5)),0,hosp_count(VALUE(LEFT(Options!$B$24,2)),$C170,$E170,$F170,2016,$I170+$J170,1,$H170,$G170*$H170, Options!$B$8)))","v":10084.156186332801},{"$f":"IF(AND(OR(Calculations!$E$2=\"Orkney Health Board\",Calculations!$E$2=\"Orkney Islands Local Authority\"),$F170=1),0,IF(AND(OR(Calculations!$E$2=\"Shetland Health Board\",Calculations!$E$2=\"Western Isles Health Board\",Calculations!$E$2=\"Shetland Islands Local Authority\",Calculations!$E$2=\"Eilean Siar Local Authority\"),OR($F170=1,$F170=5)),0,prem_mort(VALUE(LEFT(Options!$B$24,2)),$C170,$E170,$F170,2016,$I170,1,$H170,$G170*$H170,Options!$B$8)))","v":0},{"$f":"IF(AND(OR(Calculations!$E$2=\"Orkney Health Board\",Calculations!$E$2=\"Orkney Islands Local Authority\"),$F170=1),0,IF(AND(OR(Calculations!$E$2=\"Shetland Health Board\",Calculations!$E$2=\"Western Isles Health Board\",Calculations!$E$2=\"Shetland Islands Local Authority\",Calculations!$E$2=\"Eilean Siar Local Authority\"),OR($F170=1,$F170=5)),0,prem_mort(VALUE(LEFT(Options!$B$24,2)),$C170,$E170,$F170,2016,$I170+$J170,1,$H170,$G170*$H170,Options!$B$8)))","v":0},3709.4513952606635,3703.7212208437122,31344.864289952609,31296.444316129175,55757.007150000005,55572.336527790147,0,0,14837805.581042655,14814884.883374849,125379457.15981044,125185777.2645167,223028028.60000002,222289346.11116058,0,0,4000]
[null,"Male 80-84",81.797089,88.627089999999995,"male",3,{"$f":"HLOOKUP(Calculations!$E$2,'Prevalence Rates'!$C$3:$BC$249,'Prevalence Rates'!$BD171,FALSE)","v":8.219026204685223E-2},{"$f":"HLOOKUP(Calculations!$E$2,'Population 2016'!$C$3:$BC$249,'Population 2016'!BD171,FALSE)","v":12096},0,{"$f":"HLOOKUP(Results!E$4,Targeting!$C$3:$F$249,Targeting!$G171,FALSE)","v":358},{"$f":"IF(AND(OR(Calculations!$E$2=\"Orkney Health Board\",Calculations!$E$2=\"Orkney Islands Local Authority\"),$F171=1),0,IF(AND(OR(Calculations!$E$2=\"Shetland Health Board\",Calculations!$E$2=\"Western Isles Health Board\",Calculations!$E$2=\"Shetland Islands Local Authority\",Calculations!$E$2=\"Eilean Siar Local Authority\"),OR($F171=1,$F171=5)),0,new_ci(VALUE(LEFT(Options!$B$24,2)),$C171,$E171,$F171,2016,$I171,1,$H171,$G171*$H171,Options!$B$8)))","v":643.57886858100005},{"$f":"IF(AND(OR(Calculations!$E$2=\"Orkney Health Board\",Calculations!$E$2=\"Orkney Islands Local Authority\"),$F171=1),0,IF(AND(OR(Calculations!$E$2=\"Shetland Health Board\",Calculations!$E$2=\"Western Isles Health Board\",Calculations!$E$2=\"Shetland Islands Local Authority\",Calculations!$E$2=\"Eilean Siar Local Authority\"),OR($F171=1,$F171=5)),0,new_ci(VALUE(LEFT(Options!$B$24,2)),$C171,$E171,$F171,2016,$I171+$J171,1,$H171,$G171*$H171,Options!$B$8)))","v":642.59739969539999},{"$f":"IF(AND(OR(Calculations!$E$2=\"Orkney Health Board\",Calculations!$E$2=\"Orkney Islands Local Authority\"),$F171=1),0,IF(AND(OR(Calculations!$E$2=\"Shetland Health Board\",Calculations!$E$2=\"Western Isles Health Board\",Calculations!$E$2=\"Shetland Islands Local Authority\",Calculations!$E$2=\"Eilean Siar Local Authority\"),OR($F171=1,$F171=5)),0,new_yllv2(VALUE(LEFT(Options!$B$24,2)),$C171,$D171,$E171,$F171,2016,$I171,1,$H171,$G171*$H171,Options!$B$8)))","v":3752.0654474060998},{"$f":"IF(AND(OR(Calculations!$E$2=\"Orkney Health Board\",Calculations!$E$2=\"Orkney Islands Local Authority\"),$F171=1),0,IF(AND(OR(Calculations!$E$2=\"Shetland Health Board\",Calculations!$E$2=\"Western Isles Health Board\",Calculations!$E$2=\"Shetland Islands Local Authority\",Calculations!$E$2=\"Eilean Siar Local Authority\"),OR($F171=1,$F171=5)),0,new_yllv2(VALUE(LEFT(Options!$B$24,2)),$C171,$D171,$E171,$F171,2016,$I171+$J171,1,$H171,$G171*$H171,Options!$B$8)))","v":3746.3434828216},{"$f":"IF(AND(OR(Calculations!$E$2=\"Orkney Health Board\",Calculations!$E$2=\"Orkney Islands Local Authority\"),$F171=1),0,IF(AND(OR(Calculations!$E$2=\"Shetland Health Board\",Calculations!$E$2=\"Western Isles Health Board\",Calculations!$E$2=\"Shetland Islands Local Authority\",Calculations!$E$2=\"Eilean Siar Local Authority\"),OR($F171=1,$F171=5)),0,hosp_count(VALUE(LEFT(Options!$B$24,2)),$C171,$E171,$F171,2016,$I171,1,$H171,$G171*$H171, Options!$B$8)))","v":8022.5594273664001},{"$f":"IF(AND(OR(Calculations!$E$2=\"Orkney Health Board\",Calculations!$E$2=\"Orkney Islands Local Authority\"),$F171=1),0,IF(AND(OR(Calculations!$E$2=\"Shetland Health Board\",Calculations!$E$2=\"Western Isles Health Board\",Calculations!$E$2=\"Shetland Islands Local Authority\",Calculations!$E$2=\"Eilean Siar Local Authority\"),OR($F171=1,$F171=5)),0,hosp_count(VALUE(LEFT(Options!$B$24,2)),$C171,$E171,$F171,2016,$I171+$J171,1,$H171,$G171*$H171, Options!$B$8)))","v":7995.9852903211004},{"$f":"IF(AND(OR(Calculations!$E$2=\"Orkney Health Board\",Calculations!$E$2=\"Orkney Islands Local Authority\"),$F171=1),0,IF(AND(OR(Calculations!$E$2=\"Shetland Health Board\",Calculations!$E$2=\"Western Isles Health Board\",Calculations!$E$2=\"Shetland Islands Local Authority\",Calculations!$E$2=\"Eilean Siar Local Authority\"),OR($F171=1,$F171=5)),0,prem_mort(VALUE(LEFT(Options!$B$24,2)),$C171,$E171,$F171,2016,$I171,1,$H171,$G171*$H171,Options!$B$8)))","v":0},{"$f":"IF(AND(OR(Calculations!$E$2=\"Orkney Health Board\",Calculations!$E$2=\"Orkney Islands Local Authority\"),$F171=1),0,IF(AND(OR(Calculations!$E$2=\"Shetland Health Board\",Calculations!$E$2=\"Western Isles Health Board\",Calculations!$E$2=\"Shetland Islands Local Authority\",Calculations!$E$2=\"Eilean Siar Local Authority\"),OR($F171=1,$F171=5)),0,prem_mort(VALUE(LEFT(Options!$B$24,2)),$C171,$E171,$F171,2016,$I171+$J171,1,$H171,$G171*$H171,Options!$B$8)))","v":0},5320.5924981894841,5312.4785027728176,31019.059585037201,30971.754983644179,66324.069340000002,66104.375746702222,0,0,13301481.245473711,13281196.256932044,77547648.962593004,77429387.459110454,165810173.34999999,165260939.36675555,0,0,2500]
[null,"Male 85-89",86.630752999999999,91.420750000000012,"male",3,{"$f":"HLOOKUP(Calculations!$E$2,'Prevalence Rates'!$C$3:$BC$249,'Prevalence Rates'!$BD172,FALSE)","v":8.219026204685223E-2},{"$f":"HLOOKUP(Calculations!$E$2,'Population 2016'!$C$3:$BC$249,'Population 2016'!BD172,FALSE)","v":6019},0,{"$f":"HLOOKUP(Results!E$4,Targeting!$C$3:$F$249,Targeting!$G172,FALSE)","v":178},{"$f":"IF(AND(OR(Calculations!$E$2=\"Orkney Health Board\",Calculations!$E$2=\"Orkney Islands Local Authority\"),$F172=1),0,IF(AND(OR(Calculations!$E$2=\"Shetland Health Board\",Calculations!$E$2=\"Western Isles Health Board\",Calculations!$E$2=\"Shetland Islands Local Authority\",Calculations!$E$2=\"Eilean Siar Local Authority\"),OR($F172=1,$F172=5)),0,new_ci(VALUE(LEFT(Options!$B$24,2)),$C172,$E172,$F172,2016,$I172,1,$H172,$G172*$H172,Options!$B$8)))","v":455.7875098216},{"$f":"IF(AND(OR(Calculations!$E$2=\"Orkney Health Board\",Calculations!$E$2=\"Orkney Islands Local Authority\"),$F172=1),0,IF(AND(OR(Calculations!$E$2=\"Shetland Health Board\",Calculations!$E$2=\"Western Isles Health Board\",Calculations!$E$2=\"Shetland Islands Local Authority\",Calculations!$E$2=\"Eilean Siar Local Authority\"),OR($F172=1,$F172=5)),0,new_ci(VALUE(LEFT(Options!$B$24,2)),$C172,$E172,$F172,2016,$I172+$J172,1,$H172,$G172*$H172,Options!$B$8)))","v":455.10573952599998},{"$f":"IF(AND(OR(Calculations!$E$2=\"Orkney Health Board\",Calculations!$E$2=\"Orkney Islands Local Authority\"),$F172=1),0,IF(AND(OR(Calculations!$E$2=\"Shetland Health Board\",Calculations!$E$2=\"Western Isles Health Board\",Calculations!$E$2=\"Shetland Islands Local Authority\",Calculations!$E$2=\"Eilean Siar Local Authority\"),OR($F172=1,$F172=5)),0,new_yllv2(VALUE(LEFT(Options!$B$24,2)),$C172,$D172,$E172,$F172,2016,$I172,1,$H172,$G172*$H172,Options!$B$8)))","v":1727.4332948613001},{"$f":"IF(AND(OR(Calculations!$E$2=\"Orkney Health Board\",Calculations!$E$2=\"Orkney Islands Local Authority\"),$F172=1),0,IF(AND(OR(Calculations!$E$2=\"Shetland Health Board\",Calculations!$E$2=\"Western Isles Health Board\",Calculations!$E$2=\"Shetland Islands Local Authority\",Calculations!$E$2=\"Eilean Siar Local Authority\"),OR($F172=1,$F172=5)),0,new_yllv2(VALUE(LEFT(Options!$B$24,2)),$C172,$D172,$E172,$F172,2016,$I172+$J172,1,$H172,$G172*$H172,Options!$B$8)))","v":1724.8493874863},{"$f":"IF(AND(OR(Calculations!$E$2=\"Orkney Health Board\",Calculations!$E$2=\"Orkney Islands Local Authority\"),$F172=1),0,IF(AND(OR(Calculations!$E$2=\"Shetland Health Board\",Calculations!$E$2=\"Western Isles Health Board\",Calculations!$E$2=\"Shetland Islands Local Authority\",Calculations!$E$2=\"Eilean Siar Local Authority\"),OR($F172=1,$F172=5)),0,hosp_count(VALUE(LEFT(Options!$B$24,2)),$C172,$E172,$F172,2016,$I172,1,$H172,$G172*$H172, Options!$B$8)))","v":4739.2344881063},{"$f":"IF(AND(OR(Calculations!$E$2=\"Orkney Health Board\",Calculations!$E$2=\"Orkney Islands Local Authority\"),$F172=1),0,IF(AND(OR(Calculations!$E$2=\"Shetland Health Board\",Calculations!$E$2=\"Western Isles Health Board\",Calculations!$E$2=\"Shetland Islands Local Authority\",Calculations!$E$2=\"Eilean Siar Local Authority\"),OR($F172=1,$F172=5)),0,hosp_count(VALUE(LEFT(Options!$B$24,2)),$C172,$E172,$F172,2016,$I172+$J172,1,$H172,$G172*$H172, Options!$B$8)))","v":4723.5486100197004},{"$f":"IF(AND(OR(Calculations!$E$2=\"Orkney Health Board\",Calculations!$E$2=\"Orkney Islands Local Authority\"),$F172=1),0,IF(AND(OR(Calculations!$E$2=\"Shetland Health Board\",Calculations!$E$2=\"Western Isles Health Board\",Calculations!$E$2=\"Shetland Islands Local Authority\",Calculations!$E$2=\"Eilean Siar Local Authority\"),OR($F172=1,$F172=5)),0,prem_mort(VALUE(LEFT(Options!$B$24,2)),$C172,$E172,$F172,2016,$I172,1,$H172,$G172*$H172,Options!$B$8)))","v":0},{"$f":"IF(AND(OR(Calculations!$E$2=\"Orkney Health Board\",Calculations!$E$2=\"Orkney Islands Local Authority\"),$F172=1),0,IF(AND(OR(Calculations!$E$2=\"Shetland Health Board\",Calculations!$E$2=\"Western Isles Health Board\",Calculations!$E$2=\"Shetland Islands Local Authority\",Calculations!$E$2=\"Eilean Siar Local Authority\"),OR($F172=1,$F172=5)),0,prem_mort(VALUE(LEFT(Options!$B$24,2)),$C172,$E172,$F172,2016,$I172+$J172,1,$H172,$G172*$H172,Options!$B$8)))","v":0},7572.4789802558571,7561.1520107326787,28699.67261773218,28656.743437220466,78737.904770000008,78477.298721045037,0,0,11358718.470383786,11341728.016099019,43049508.926598273,42985115.155830696,118106857.15500002,117715948.08156756,0,0,1500]
[null,"Male 90+",92.215477000000007,95.515479999999997,"male",3,{"$f":"HLOOKUP(Calculations!$E$2,'Prevalence Rates'!$C$3:$BC$249,'Prevalence Rates'!$BD173,FALSE)","v":8.219026204685223E-2},{"$f":"HLOOKUP(Calculations!$E$2,'Population 2016'!$C$3:$BC$249,'Population 2016'!BD173,FALSE)","v":2593},0,{"$f":"HLOOKUP(Results!E$4,Targeting!$C$3:$F$249,Targeting!$G173,FALSE)","v":77},{"$f":"IF(AND(OR(Calculations!$E$2=\"Orkney Health Board\",Calculations!$E$2=\"Orkney Islands Local Authority\"),$F173=1),0,IF(AND(OR(Calculations!$E$2=\"Shetland Health Board\",Calculations!$E$2=\"Western Isles Health Board\",Calculations!$E$2=\"Shetland Islands Local Authority\",Calculations!$E$2=\"Eilean Siar Local Authority\"),OR($F173=1,$F173=5)),0,new_ci(VALUE(LEFT(Options!$B$24,2)),$C173,$E173,$F173,2016,$I173,1,$H173,$G173*$H173,Options!$B$8)))","v":293.2716113756},{"$f":"IF(AND(OR(Calculations!$E$2=\"Orkney Health Board\",Calculations!$E$2=\"Orkney Islands Local Authority\"),$F173=1),0,IF(AND(OR(Calculations!$E$2=\"Shetland Health Board\",Calculations!$E$2=\"Western Isles Health Board\",Calculations!$E$2=\"Shetland Islands Local Authority\",Calculations!$E$2=\"Eilean Siar Local Authority\"),OR($F173=1,$F173=5)),0,new_ci(VALUE(LEFT(Options!$B$24,2)),$C173,$E173,$F173,2016,$I173+$J173,1,$H173,$G173*$H173,Options!$B$8)))","v":292.84496005049999},{"$f":"IF(AND(OR(Calculations!$E$2=\"Orkney Health Board\",Calculations!$E$2=\"Orkney Islands Local Authority\"),$F173=1),0,IF(AND(OR(Calculations!$E$2=\"Shetland Health Board\",Calculations!$E$2=\"Western Isles Health Board\",Calculations!$E$2=\"Shetland Islands Local Authority\",Calculations!$E$2=\"Eilean Siar Local Authority\"),OR($F173=1,$F173=5)),0,new_yllv2(VALUE(LEFT(Options!$B$24,2)),$C173,$D173,$E173,$F173,2016,$I173,1,$H173,$G173*$H173,Options!$B$8)))","v":674.52558597869995},{"$f":"IF(AND(OR(Calculations!$E$2=\"Orkney Health Board\",Calculations!$E$2=\"Orkney Islands Local Authority\"),$F173=1),0,IF(AND(OR(Calculations!$E$2=\"Shetland Health Board\",Calculations!$E$2=\"Western Isles Health Board\",Calculations!$E$2=\"Shetland Islands Local Authority\",Calculations!$E$2=\"Eilean Siar Local Authority\"),OR($F173=1,$F173=5)),0,new_yllv2(VALUE(LEFT(Options!$B$24,2)),$C173,$D173,$E173,$F173,2016,$I173+$J173,1,$H173,$G173*$H173,Options!$B$8)))","v":673.54428665099999},{"$f":"IF(AND(OR(Calculations!$E$2=\"Orkney Health Board\",Calculations!$E$2=\"Orkney Islands Local Authority\"),$F173=1),0,IF(AND(OR(Calculations!$E$2=\"Shetland Health Board\",Calculations!$E$2=\"Western Isles Health Board\",Calculations!$E$2=\"Shetland Islands Local Authority\",Calculations!$E$2=\"Eilean Siar Local Authority\"),OR($F173=1,$F173=5)),0,hosp_count(VALUE(LEFT(Options!$B$24,2)),$C173,$E173,$F173,2016,$I173,1,$H173,$G173*$H173, Options!$B$8)))","v":2489.2981891170998},{"$f":"IF(AND(OR(Calculations!$E$2=\"Orkney Health Board\",Calculations!$E$2=\"Orkney Islands Local Authority\"),$F173=1),0,IF(AND(OR(Calculations!$E$2=\"Shetland Health Board\",Calculations!$E$2=\"Western Isles Health Board\",Calculations!$E$2=\"Shetland Islands Local Authority\",Calculations!$E$2=\"Eilean Siar Local Authority\"),OR($F173=1,$F173=5)),0,hosp_count(VALUE(LEFT(Options!$B$24,2)),$C173,$E173,$F173,2016,$I173+$J173,1,$H173,$G173*$H173, Options!$B$8)))","v":2481.0250541341002},{"$f":"IF(AND(OR(Calculations!$E$2=\"Orkney Health Board\",Calculations!$E$2=\"Orkney Islands Local Authority\"),$F173=1),0,IF(AND(OR(Calculations!$E$2=\"Shetland Health Board\",Calculations!$E$2=\"Western Isles Health Board\",Calculations!$E$2=\"Shetland Islands Local Authority\",Calculations!$E$2=\"Eilean Siar Local Authority\"),OR($F173=1,$F173=5)),0,prem_mort(VALUE(LEFT(Options!$B$24,2)),$C173,$E173,$F173,2016,$I173,1,$H173,$G173*$H173,Options!$B$8)))","v":0},{"$f":"IF(AND(OR(Calculations!$E$2=\"Orkney Health Board\",Calculations!$E$2=\"Orkney Islands Local Authority\"),$F173=1),0,IF(AND(OR(Calculations!$E$2=\"Shetland Health Board\",Calculations!$E$2=\"Western Isles Health Board\",Calculations!$E$2=\"Shetland Islands Local Authority\",Calculations!$E$2=\"Eilean Siar Local Authority\"),OR($F173=1,$F173=5)),0,prem_mort(VALUE(LEFT(Options!$B$24,2)),$C173,$E173,$F173,2016,$I173+$J173,1,$H173,$G173*$H173,Options!$B$8)))","v":0},11310.12770441959,11293.673738931739,26013.327650547624,25975.483480563053,96000.70147,95681.644972391063,0,0,11310127.704419591,11293673.738931738,26013327.650547624,25975483.480563052,96000701.469999999,95681644.972391069,0,0,1000]
[null,"Female 0-4",2.0384007,81.468401,"female",4,{"$f":"HLOOKUP(Calculations!$E$2,'Prevalence Rates'!$C$3:$BC$249,'Prevalence Rates'!$BD174,FALSE)","v":0},{"$f":"HLOOKUP(Calculations!$E$2,'Population 2016'!$C$3:$BC$249,'Population 2016'!BD174,FALSE)","v":0},0,{"$f":"HLOOKUP(Results!E$4,Targeting!$C$3:$F$249,Targeting!$G174,FALSE)","v":0},{"$f":"IF(AND(OR(Calculations!$E$2=\"Orkney Health Board\",Calculations!$E$2=\"Orkney Islands Local Authority\"),$F174=1),0,IF(AND(OR(Calculations!$E$2=\"Shetland Health Board\",Calculations!$E$2=\"Western Isles Health Board\",Calculations!$E$2=\"Shetland Islands Local Authority\",Calculations!$E$2=\"Eilean Siar Local Authority\"),OR($F174=1,$F174=5)),0,new_ci(VALUE(LEFT(Options!$B$24,2)),$C174,$E174,$F174,2016,$I174,1,$H174,$G174*$H174,Options!$B$8)))","v":{"$error":"#VALUE!"}},{"$f":"IF(AND(OR(Calculations!$E$2=\"Orkney Health Board\",Calculations!$E$2=\"Orkney Islands Local Authority\"),$F174=1),0,IF(AND(OR(Calculations!$E$2=\"Shetland Health Board\",Calculations!$E$2=\"Western Isles Health Board\",Calculations!$E$2=\"Shetland Islands Local Authority\",Calculations!$E$2=\"Eilean Siar Local Authority\"),OR($F174=1,$F174=5)),0,new_ci(VALUE(LEFT(Options!$B$24,2)),$C174,$E174,$F174,2016,$I174+$J174,1,$H174,$G174*$H174,Options!$B$8)))","v":{"$error":"#VALUE!"}},{"$f":"IF(AND(OR(Calculations!$E$2=\"Orkney Health Board\",Calculations!$E$2=\"Orkney Islands Local Authority\"),$F174=1),0,IF(AND(OR(Calculations!$E$2=\"Shetland Health Board\",Calculations!$E$2=\"Western Isles Health Board\",Calculations!$E$2=\"Shetland Islands Local Authority\",Calculations!$E$2=\"Eilean Siar Local Authority\"),OR($F174=1,$F174=5)),0,new_yllv2(VALUE(LEFT(Options!$B$24,2)),$C174,$D174,$E174,$F174,2016,$I174,1,$H174,$G174*$H174,Options!$B$8)))","v":{"$error":"#VALUE!"}},{"$f":"IF(AND(OR(Calculations!$E$2=\"Orkney Health Board\",Calculations!$E$2=\"Orkney Islands Local Authority\"),$F174=1),0,IF(AND(OR(Calculations!$E$2=\"Shetland Health Board\",Calculations!$E$2=\"Western Isles Health Board\",Calculations!$E$2=\"Shetland Islands Local Authority\",Calculations!$E$2=\"Eilean Siar Local Authority\"),OR($F174=1,$F174=5)),0,new_yllv2(VALUE(LEFT(Options!$B$24,2)),$C174,$D174,$E174,$F174,2016,$I174+$J174,1,$H174,$G174*$H174,Options!$B$8)))","v":{"$error":"#VALUE!"}},{"$f":"IF(AND(OR(Calculations!$E$2=\"Orkney Health Board\",Calculations!$E$2=\"Orkney Islands Local Authority\"),$F174=1),0,IF(AND(OR(Calculations!$E$2=\"Shetland Health Board\",Calculations!$E$2=\"Western Isles Health Board\",Calculations!$E$2=\"Shetland Islands Local Authority\",Calculations!$E$2=\"Eilean Siar Local Authority\"),OR($F174=1,$F174=5)),0,hosp_count(VALUE(LEFT(Options!$B$24,2)),$C174,$E174,$F174,2016,$I174,1,$H174,$G174*$H174, Options!$B$8)))","v":{"$error":"#VALUE!"}},{"$f":"IF(AND(OR(Calculations!$E$2=\"Orkney Health Board\",Calculations!$E$2=\"Orkney Islands Local Authority\"),$F174=1),0,IF(AND(OR(Calculations!$E$2=\"Shetland Health Board\",Calculations!$E$2=\"Western Isles Health Board\",Calculations!$E$2=\"Shetland Islands Local Authority\",Calculations!$E$2=\"Eilean Siar Local Authority\"),OR($F174=1,$F174=5)),0,hosp_count(VALUE(LEFT(Options!$B$24,2)),$C174,$E174,$F174,2016,$I174+$J174,1,$H174,$G174*$H174, Options!$B$8)))","v":{"$error":"#VALUE!"}},{"$f":"IF(AND(OR(Calculations!$E$2=\"Orkney Health Board\",Calculations!$E$2=\"Orkney Islands Local Authority\"),$F174=1),0,IF(AND(OR(Calculations!$E$2=\"Shetland Health Board\",Calculations!$E$2=\"Western Isles Health Board\",Calculations!$E$2=\"Shetland Islands Local Authority\",Calculations!$E$2=\"Eilean Siar Local Authority\"),OR($F174=1,$F174=5)),0,prem_mort(VALUE(LEFT(Options!$B$24,2)),$C174,$E174,$F174,2016,$I174,1,$H174,$G174*$H174,Options!$B$8)))","v":{"$error":"#VALUE!"}},{"$f":"IF(AND(OR(Calculations!$E$2=\"Orkney Health Board\",Calculations!$E$2=\"Orkney Islands Local Authority\"),$F174=1),0,IF(AND(OR(Calculations!$E$2=\"Shetland Health Board\",Calculations!$E$2=\"Western Isles Health Board\",Calculations!$E$2=\"Shetland Islands Local Authority\",Calculations!$E$2=\"Eilean Siar Local Authority\"),OR($F174=1,$F174=5)),0,prem_mort(VALUE(LEFT(Options!$B$24,2)),$C174,$E174,$F174,2016,$I174+$J174,1,$H174,$G174*$H174,Options!$B$8)))","v":{"$error":"#VALUE!"}},{"$error":"#VALUE!"},{"$error":"#VALUE!"},{"$error":"#VALUE!"},{"$error":"#VALUE!"},{"$error":"#VALUE!"},{"$error":"#VALUE!"},{"$error":"#VALUE!"},{"$error":"#VALUE!"},{"$error":"#VALUE!"},{"$error":"#VALUE!"},{"$error":"#VALUE!"},{"$error":"#VALUE!"},{"$error":"#VALUE!"},{"$error":"#VALUE!"},{"$error":"#VALUE!"},{"$error":"#VALUE!"},5000]
[null,"Female 5-9",6.9792794999999996,81.439279999999997,"female",4,{"$f":"HLOOKUP(Calculations!$E$2,'Prevalence Rates'!$C$3:$BC$249,'Prevalence Rates'!$BD175,FALSE)","v":0},{"$f":"HLOOKUP(Calculations!$E$2,'Population 2016'!$C$3:$BC$249,'Population 2016'!BD175,FALSE)","v":0},0,{"$f":"HLOOKUP(Results!E$4,Targeting!$C$3:$F$249,Targeting!$G175,FALSE)","v":0},{"$f":"IF(AND(OR(Calculations!$E$2=\"Orkney Health Board\",Calculations!$E$2=\"Orkney Islands Local Authority\"),$F175=1),0,IF(AND(OR(Calculations!$E$2=\"Shetland Health Board\",Calculations!$E$2=\"Western Isles Health Board\",Calculations!$E$2=\"Shetland Islands Local Authority\",Calculations!$E$2=\"Eilean Siar Local Authority\"),OR($F175=1,$F175=5)),0,new_ci(VALUE(LEFT(Options!$B$24,2)),$C175,$E175,$F175,2016,$I175,1,$H175,$G175*$H175,Options!$B$8)))","v":{"$error":"#VALUE!"}},{"$f":"IF(AND(OR(Calculations!$E$2=\"Orkney Health Board\",Calculations!$E$2=\"Orkney Islands Local Authority\"),$F175=1),0,IF(AND(OR(Calculations!$E$2=\"Shetland Health Board\",Calculations!$E$2=\"Western Isles Health Board\",Calculations!$E$2=\"Shetland Islands Local Authority\",Calculations!$E$2=\"Eilean Siar Local Authority\"),OR($F175=1,$F175=5)),0,new_ci(VALUE(LEFT(Options!$B$24,2)),$C175,$E175,$F175,2016,$I175+$J175,1,$H175,$G175*$H175,Options!$B$8)))","v":{"$error":"#VALUE!"}},{"$f":"IF(AND(OR(Calculations!$E$2=\"Orkney Health Board\",Calculations!$E$2=\"Orkney Islands Local Authority\"),$F175=1),0,IF(AND(OR(Calculations!$E$2=\"Shetland Health Board\",Calculations!$E$2=\"Western Isles Health Board\",Calculations!$E$2=\"Shetland Islands Local Authority\",Calculations!$E$2=\"Eilean Siar Local Authority\"),OR($F175=1,$F175=5)),0,new_yllv2(VALUE(LEFT(Options!$B$24,2)),$C175,$D175,$E175,$F175,2016,$I175,1,$H175,$G175*$H175,Options!$B$8)))","v":{"$error":"#VALUE!"}},{"$f":"IF(AND(OR(Calculations!$E$2=\"Orkney Health Board\",Calculations!$E$2=\"Orkney Islands Local Authority\"),$F175=1),0,IF(AND(OR(Calculations!$E$2=\"Shetland Health Board\",Calculations!$E$2=\"Western Isles Health Board\",Calculations!$E$2=\"Shetland Islands Local Authority\",Calculations!$E$2=\"Eilean Siar Local Authority\"),OR($F175=1,$F175=5)),0,new_yllv2(VALUE(LEFT(Options!$B$24,2)),$C175,$D175,$E175,$F175,2016,$I175+$J175,1,$H175,$G175*$H175,Options!$B$8)))","v":{"$error":"#VALUE!"}},{"$f":"IF(AND(OR(Calculations!$E$2=\"Orkney Health Board\",Calculations!$E$2=\"Orkney Islands Local Authority\"),$F175=1),0,IF(AND(OR(Calculations!$E$2=\"Shetland Health Board\",Calculations!$E$2=\"Western Isles Health Board\",Calculations!$E$2=\"Shetland Islands Local Authority\",Calculations!$E$2=\"Eilean Siar Local Authority\"),OR($F175=1,$F175=5)),0,hosp_count(VALUE(LEFT(Options!$B$24,2)),$C175,$E175,$F175,2016,$I175,1,$H175,$G175*$H175, Options!$B$8)))","v":{"$error":"#VALUE!"}},{"$f":"IF(AND(OR(Calculations!$E$2=\"Orkney Health Board\",Calculations!$E$2=\"Orkney Islands Local Authority\"),$F175=1),0,IF(AND(OR(Calculations!$E$2=\"Shetland Health Board\",Calculations!$E$2=\"Western Isles Health Board\",Calculations!$E$2=\"Shetland Islands Local Authority\",Calculations!$E$2=\"Eilean Siar Local Authority\"),OR($F175=1,$F175=5)),0,hosp_count(VALUE(LEFT(Options!$B$24,2)),$C175,$E175,$F175,2016,$I175+$J175,1,$H175,$G175*$H175, Options!$B$8)))","v":{"$error":"#VALUE!"}},{"$f":"IF(AND(OR(Calculations!$E$2=\"Orkney Health Board\",Calculations!$E$2=\"Orkney Islands Local Authority\"),$F175=1),0,IF(AND(OR(Calculations!$E$2=\"Shetland Health Board\",Calculations!$E$2=\"Western Isles Health Board\",Calculations!$E$2=\"Shetland Islands Local Authority\",Calculations!$E$2=\"Eilean Siar Local Authority\"),OR($F175=1,$F175=5)),0,prem_mort(VALUE(LEFT(Options!$B$24,2)),$C175,$E175,$F175,2016,$I175,1,$H175,$G175*$H175,Options!$B$8)))","v":{"$error":"#VALUE!"}},{"$f":"IF(AND(OR(Calculations!$E$2=\"Orkney Health Board\",Calculations!$E$2=\"Orkney Islands Local Authority\"),$F175=1),0,IF(AND(OR(Calculations!$E$2=\"Shetland Health Board\",Calculations!$E$2=\"Western Isles Health Board\",Calculations!$E$2=\"Shetland Islands Local Authority\",Calculations!$E$2=\"Eilean Siar Local Authority\"),OR($F175=1,$F175=5)),0,prem_mort(VALUE(LEFT(Options!$B$24,2)),$C175,$E175,$F175,2016,$I175+$J175,1,$H175,$G175*$H175,Options!$B$8)))","v":{"$error":"#VALUE!"}},{"$error":"#VALUE!"},{"$error":"#VALUE!"},{"$error":"#VALUE!"},{"$error":"#VALUE!"},{"$error":"#VALUE!"},{"$error":"#VALUE!"},{"$error":"#VALUE!"},{"$error":"#VALUE!"},{"$error":"#VALUE!"},{"$error":"#VALUE!"},{"$error":"#VALUE!"},{"$error":"#VALUE!"},{"$error":"#VALUE!"},{"$error":"#VALUE!"},{"$error":"#VALUE!"},{"$error":"#VALUE!"},5500]
[null,"Female 10-15",12.478312000000001,81.948309999999992,"female",4,{"$f":"HLOOKUP(Calculations!$E$2,'Prevalence Rates'!$C$3:$BC$249,'Prevalence Rates'!$BD176,FALSE)","v":0},{"$f":"HLOOKUP(Calculations!$E$2,'Population 2016'!$C$3:$BC$249,'Population 2016'!BD176,FALSE)","v":0},0,{"$f":"HLOOKUP(Results!E$4,Targeting!$C$3:$F$249,Targeting!$G176,FALSE)","v":0},{"$f":"IF(AND(OR(Calculations!$E$2=\"Orkney Health Board\",Calculations!$E$2=\"Orkney Islands Local Authority\"),$F176=1),0,IF(AND(OR(Calculations!$E$2=\"Shetland Health Board\",Calculations!$E$2=\"Western Isles Health Board\",Calculations!$E$2=\"Shetland Islands Local Authority\",Calculations!$E$2=\"Eilean Siar Local Authority\"),OR($F176=1,$F176=5)),0,new_ci(VALUE(LEFT(Options!$B$24,2)),$C176,$E176,$F176,2016,$I176,1,$H176,$G176*$H176,Options!$B$8)))","v":{"$error":"#VALUE!"}},{"$f":"IF(AND(OR(Calculations!$E$2=\"Orkney Health Board\",Calculations!$E$2=\"Orkney Islands Local Authority\"),$F176=1),0,IF(AND(OR(Calculations!$E$2=\"Shetland Health Board\",Calculations!$E$2=\"Western Isles Health Board\",Calculations!$E$2=\"Shetland Islands Local Authority\",Calculations!$E$2=\"Eilean Siar Local Authority\"),OR($F176=1,$F176=5)),0,new_ci(VALUE(LEFT(Options!$B$24,2)),$C176,$E176,$F176,2016,$I176+$J176,1,$H176,$G176*$H176,Options!$B$8)))","v":{"$error":"#VALUE!"}},{"$f":"IF(AND(OR(Calculations!$E$2=\"Orkney Health Board\",Calculations!$E$2=\"Orkney Islands Local Authority\"),$F176=1),0,IF(AND(OR(Calculations!$E$2=\"Shetland Health Board\",Calculations!$E$2=\"Western Isles Health Board\",Calculations!$E$2=\"Shetland Islands Local Authority\",Calculations!$E$2=\"Eilean Siar Local Authority\"),OR($F176=1,$F176=5)),0,new_yllv2(VALUE(LEFT(Options!$B$24,2)),$C176,$D176,$E176,$F176,2016,$I176,1,$H176,$G176*$H176,Options!$B$8)))","v":{"$error":"#VALUE!"}},{"$f":"IF(AND(OR(Calculations!$E$2=\"Orkney Health Board\",Calculations!$E$2=\"Orkney Islands Local Authority\"),$F176=1),0,IF(AND(OR(Calculations!$E$2=\"Shetland Health Board\",Calculations!$E$2=\"Western Isles Health Board\",Calculations!$E$2=\"Shetland Islands Local Authority\",Calculations!$E$2=\"Eilean Siar Local Authority\"),OR($F176=1,$F176=5)),0,new_yllv2(VALUE(LEFT(Options!$B$24,2)),$C176,$D176,$E176,$F176,2016,$I176+$J176,1,$H176,$G176*$H176,Options!$B$8)))","v":{"$error":"#VALUE!"}},{"$f":"IF(AND(OR(Calculations!$E$2=\"Orkney Health Board\",Calculations!$E$2=\"Orkney Islands Local Authority\"),$F176=1),0,IF(AND(OR(Calculations!$E$2=\"Shetland Health Board\",Calculations!$E$2=\"Western Isles Health Board\",Calculations!$E$2=\"Shetland Islands Local Authority\",Calculations!$E$2=\"Eilean Siar Local Authority\"),OR($F176=1,$F176=5)),0,hosp_count(VALUE(LEFT(Options!$B$24,2)),$C176,$E176,$F176,2016,$I176,1,$H176,$G176*$H176, Options!$B$8)))","v":{"$error":"#VALUE!"}},{"$f":"IF(AND(OR(Calculations!$E$2=\"Orkney Health Board\",Calculations!$E$2=\"Orkney Islands Local Authority\"),$F176=1),0,IF(AND(OR(Calculations!$E$2=\"Shetland Health Board\",Calculations!$E$2=\"Western Isles Health Board\",Calculations!$E$2=\"Shetland Islands Local Authority\",Calculations!$E$2=\"Eilean Siar Local Authority\"),OR($F176=1,$F176=5)),0,hosp_count(VALUE(LEFT(Options!$B$24,2)),$C176,$E176,$F176,2016,$I176+$J176,1,$H176,$G176*$H176, Options!$B$8)))","v":{"$error":"#VALUE!"}},{"$f":"IF(AND(OR(Calculations!$E$2=\"Orkney Health Board\",Calculations!$E$2=\"Orkney Islands Local Authority\"),$F176=1),0,IF(AND(OR(Calculations!$E$2=\"Shetland Health Board\",Calculations!$E$2=\"Western Isles Health Board\",Calculations!$E$2=\"Shetland Islands Local Authority\",Calculations!$E$2=\"Eilean Siar Local Authority\"),OR($F176=1,$F176=5)),0,prem_mort(VALUE(LEFT(Options!$B$24,2)),$C176,$E176,$F176,2016,$I176,1,$H176,$G176*$H176,Options!$B$8)))","v":{"$error":"#VALUE!"}},{"$f":"IF(AND(OR(Calculations!$E$2=\"Orkney Health Board\",Calculations!$E$2=\"Orkney Islands Local Authority\"),$F176=1),0,IF(AND(OR(Calculations!$E$2=\"Shetland Health Board\",Calculations!$E$2=\"Western Isles Health Board\",Calculations!$E$2=\"Shetland Islands Local Authority\",Calculations!$E$2=\"Eilean Siar Local Authority\"),OR($F176=1,$F176=5)),0,prem_mort(VALUE(LEFT(Options!$B$24,2)),$C176,$E176,$F176,2016,$I176+$J176,1,$H176,$G176*$H176,Options!$B$8)))","v":{"$error":"#VALUE!"}},{"$error":"#VALUE!"},{"$error":"#VALUE!"},{"$error":"#VALUE!"},{"$error":"#VALUE!"},{"$error":"#VALUE!"},{"$error":"#VALUE!"},{"$error":"#VALUE!"},{"$error":"#VALUE!"},{"$error":"#VALUE!"},{"$error":"#VALUE!"},{"$error":"#VALUE!"},{"$error":"#VALUE!"},{"$error":"#VALUE!"},{"$error":"#VALUE!"},{"$error":"#VALUE!"},{"$error":"#VALUE!"},6600]
["SIMD Q4","Female 16-19",17.570053000000001,81.100049999999996,"female",4,{"$f":"HLOOKUP(Calculations!$E$2,'Prevalence Rates'!$C$3:$BC$249,'Prevalence Rates'!$BD177,FALSE)","v":0.11957993199323458},{"$f":"HLOOKUP(Calculations!$E$2,'Population 2016'!$C$3:$BC$249,'Population 2016'!BD177,FALSE)","v":23408},0,{"$f":"HLOOKUP(Results!E$4,Targeting!$C$3:$F$249,Targeting!$G177,FALSE)","v":693},{"$f":"IF(AND(OR(Calculations!$E$2=\"Orkney Health Board\",Calculations!$E$2=\"Orkney Islands Local Authority\"),$F177=1),0,IF(AND(OR(Calculations!$E$2=\"Shetland Health Board\",Calculations!$E$2=\"Western Isles Health Board\",Calculations!$E$2=\"Shetland Islands Local Authority\",Calculations!$E$2=\"Eilean Siar Local Authority\"),OR($F177=1,$F177=5)),0,new_ci(VALUE(LEFT(Options!$B$24,2)),$C177,$E177,$F177,2016,$I177,1,$H177,$G177*$H177,Options!$B$8)))","v":3.3423332784999999},{"$f":"IF(AND(OR(Calculations!$E$2=\"Orkney Health Board\",Calculations!$E$2=\"Orkney Islands Local Authority\"),$F177=1),0,IF(AND(OR(Calculations!$E$2=\"Shetland Health Board\",Calculations!$E$2=\"Western Isles Health Board\",Calculations!$E$2=\"Shetland Islands Local Authority\",Calculations!$E$2=\"Eilean Siar Local Authority\"),OR($F177=1,$F177=5)),0,new_ci(VALUE(LEFT(Options!$B$24,2)),$C177,$E177,$F177,2016,$I177+$J177,1,$H177,$G177*$H177,Options!$B$8)))","v":3.3370808236},{"$f":"IF(AND(OR(Calculations!$E$2=\"Orkney Health Board\",Calculations!$E$2=\"Orkney Islands Local Authority\"),$F177=1),0,IF(AND(OR(Calculations!$E$2=\"Shetland Health Board\",Calculations!$E$2=\"Western Isles Health Board\",Calculations!$E$2=\"Shetland Islands Local Authority\",Calculations!$E$2=\"Eilean Siar Local Authority\"),OR($F177=1,$F177=5)),0,new_yllv2(VALUE(LEFT(Options!$B$24,2)),$C177,$D177,$E177,$F177,2016,$I177,1,$H177,$G177*$H177,Options!$B$8)))","v":208.99608987760001},{"$f":"IF(AND(OR(Calculations!$E$2=\"Orkney Health Board\",Calculations!$E$2=\"Orkney Islands Local Authority\"),$F177=1),0,IF(AND(OR(Calculations!$E$2=\"Shetland Health Board\",Calculations!$E$2=\"Western Isles Health Board\",Calculations!$E$2=\"Shetland Islands Local Authority\",Calculations!$E$2=\"Eilean Siar Local Authority\"),OR($F177=1,$F177=5)),0,new_yllv2(VALUE(LEFT(Options!$B$24,2)),$C177,$D177,$E177,$F177,2016,$I177+$J177,1,$H177,$G177*$H177,Options!$B$8)))","v":208.66765388850001},{"$f":"IF(AND(OR(Calculations!$E$2=\"Orkney Health Board\",Calculations!$E$2=\"Orkney Islands Local Authority\"),$F177=1),0,IF(AND(OR(Calculations!$E$2=\"Shetland Health Board\",Calculations!$E$2=\"Western Isles Health Board\",Calculations!$E$2=\"Shetland Islands Local Authority\",Calculations!$E$2=\"Eilean Siar Local Authority\"),OR($F177=1,$F177=5)),0,hosp_count(VALUE(LEFT(Options!$B$24,2)),$C177,$E177,$F177,2016,$I177,1,$H177,$G177*$H177, Options!$B$8)))","v":2068.4330629423998},{"$f":"IF(AND(OR(Calculations!$E$2=\"Orkney Health Board\",Calculations!$E$2=\"Orkney Islands Local Authority\"),$F177=1),0,IF(AND(OR(Calculations!$E$2=\"Shetland Health Board\",Calculations!$E$2=\"Western Isles Health Board\",Calculations!$E$2=\"Shetland Islands Local Authority\",Calculations!$E$2=\"Eilean Siar Local Authority\"),OR($F177=1,$F177=5)),0,hosp_count(VALUE(LEFT(Options!$B$24,2)),$C177,$E177,$F177,2016,$I177+$J177,1,$H177,$G177*$H177, Options!$B$8)))","v":2061.6679595836999},{"$f":"IF(AND(OR(Calculations!$E$2=\"Orkney Health Board\",Calculations!$E$2=\"Orkney Islands Local Authority\"),$F177=1),0,IF(AND(OR(Calculations!$E$2=\"Shetland Health Board\",Calculations!$E$2=\"Western Isles Health Board\",Calculations!$E$2=\"Shetland Islands Local Authority\",Calculations!$E$2=\"Eilean Siar Local Authority\"),OR($F177=1,$F177=5)),0,prem_mort(VALUE(LEFT(Options!$B$24,2)),$C177,$E177,$F177,2016,$I177,1,$H177,$G177*$H177,Options!$B$8)))","v":3.3423332784999999},{"$f":"IF(AND(OR(Calculations!$E$2=\"Orkney Health Board\",Calculations!$E$2=\"Orkney Islands Local Authority\"),$F177=1),0,IF(AND(OR(Calculations!$E$2=\"Shetland Health Board\",Calculations!$E$2=\"Western Isles Health Board\",Calculations!$E$2=\"Shetland Islands Local Authority\",Calculations!$E$2=\"Eilean Siar Local Authority\"),OR($F177=1,$F177=5)),0,prem_mort(VALUE(LEFT(Options!$B$24,2)),$C177,$E177,$F177,2016,$I177+$J177,1,$H177,$G177*$H177,Options!$B$8)))","v":3.3370808236},14.278593978554341,14.256155261449077,892.84043864319892,891.43734573009226,8836.436529999999,8807.5357125072624,14.278593978554341,14.256155261449077,62825.813505639097,62727.08315037594,3928497.9300300754,3922324.3212124058,38880320.731999993,38753157.135031953,62825.813505639097,62727.08315037594,4400]
[null,"Female 20-24",22.077057,81.667060000000006,"female",4,{"$f":"HLOOKUP(Calculations!$E$2,'Prevalence Rates'!$C$3:$BC$249,'Prevalence Rates'!$BD178,FALSE)","v":0.11957993199323458},{"$f":"HLOOKUP(Calculations!$E$2,'Population 2016'!$C$3:$BC$249,'Population 2016'!BD178,FALSE)","v":34833},0,{"$f":"HLOOKUP(Results!E$4,Targeting!$C$3:$F$249,Targeting!$G178,FALSE)","v":1032},{"$f":"IF(AND(OR(Calculations!$E$2=\"Orkney Health Board\",Calculations!$E$2=\"Orkney Islands Local Authority\"),$F178=1),0,IF(AND(OR(Calculations!$E$2=\"Shetland Health Board\",Calculations!$E$2=\"Western Isles Health Board\",Calculations!$E$2=\"Shetland Islands Local Authority\",Calculations!$E$2=\"Eilean Siar Local Authority\"),OR($F178=1,$F178=5)),0,new_ci(VALUE(LEFT(Options!$B$24,2)),$C178,$E178,$F178,2016,$I178,1,$H178,$G178*$H178,Options!$B$8)))","v":7.2969955560999997},{"$f":"IF(AND(OR(Calculations!$E$2=\"Orkney Health Board\",Calculations!$E$2=\"Orkney Islands Local Authority\"),$F178=1),0,IF(AND(OR(Calculations!$E$2=\"Shetland Health Board\",Calculations!$E$2=\"Western Isles Health Board\",Calculations!$E$2=\"Shetland Islands Local Authority\",Calculations!$E$2=\"Eilean Siar Local Authority\"),OR($F178=1,$F178=5)),0,new_ci(VALUE(LEFT(Options!$B$24,2)),$C178,$E178,$F178,2016,$I178+$J178,1,$H178,$G178*$H178,Options!$B$8)))","v":7.2855203353000002},{"$f":"IF(AND(OR(Calculations!$E$2=\"Orkney Health Board\",Calculations!$E$2=\"Orkney Islands Local Authority\"),$F178=1),0,IF(AND(OR(Calculations!$E$2=\"Shetland Health Board\",Calculations!$E$2=\"Western Isles Health Board\",Calculations!$E$2=\"Shetland Islands Local Authority\",Calculations!$E$2=\"Eilean Siar Local Authority\"),OR($F178=1,$F178=5)),0,new_yllv2(VALUE(LEFT(Options!$B$24,2)),$C178,$D178,$E178,$F178,2016,$I178,1,$H178,$G178*$H178,Options!$B$8)))","v":427.53099152290002},{"$f":"IF(AND(OR(Calculations!$E$2=\"Orkney Health Board\",Calculations!$E$2=\"Orkney Islands Local Authority\"),$F178=1),0,IF(AND(OR(Calculations!$E$2=\"Shetland Health Board\",Calculations!$E$2=\"Western Isles Health Board\",Calculations!$E$2=\"Shetland Islands Local Authority\",Calculations!$E$2=\"Eilean Siar Local Authority\"),OR($F178=1,$F178=5)),0,new_yllv2(VALUE(LEFT(Options!$B$24,2)),$C178,$D178,$E178,$F178,2016,$I178+$J178,1,$H178,$G178*$H178,Options!$B$8)))","v":426.85865830180001},{"$f":"IF(AND(OR(Calculations!$E$2=\"Orkney Health Board\",Calculations!$E$2=\"Orkney Islands Local Authority\"),$F178=1),0,IF(AND(OR(Calculations!$E$2=\"Shetland Health Board\",Calculations!$E$2=\"Western Isles Health Board\",Calculations!$E$2=\"Shetland Islands Local Authority\",Calculations!$E$2=\"Eilean Siar Local Authority\"),OR($F178=1,$F178=5)),0,hosp_count(VALUE(LEFT(Options!$B$24,2)),$C178,$E178,$F178,2016,$I178,1,$H178,$G178*$H178, Options!$B$8)))","v":3447.4902269472},{"$f":"IF(AND(OR(Calculations!$E$2=\"Orkney Health Board\",Calculations!$E$2=\"Orkney Islands Local Authority\"),$F178=1),0,IF(AND(OR(Calculations!$E$2=\"Shetland Health Board\",Calculations!$E$2=\"Western Isles Health Board\",Calculations!$E$2=\"Shetland Islands Local Authority\",Calculations!$E$2=\"Eilean Siar Local Authority\"),OR($F178=1,$F178=5)),0,hosp_count(VALUE(LEFT(Options!$B$24,2)),$C178,$E178,$F178,2016,$I178+$J178,1,$H178,$G178*$H178, Options!$B$8)))","v":3436.2064133263998},{"$f":"IF(AND(OR(Calculations!$E$2=\"Orkney Health Board\",Calculations!$E$2=\"Orkney Islands Local Authority\"),$F178=1),0,IF(AND(OR(Calculations!$E$2=\"Shetland Health Board\",Calculations!$E$2=\"Western Isles Health Board\",Calculations!$E$2=\"Shetland Islands Local Authority\",Calculations!$E$2=\"Eilean Siar Local Authority\"),OR($F178=1,$F178=5)),0,prem_mort(VALUE(LEFT(Options!$B$24,2)),$C178,$E178,$F178,2016,$I178,1,$H178,$G178*$H178,Options!$B$8)))","v":7.2969955560999997},{"$f":"IF(AND(OR(Calculations!$E$2=\"Orkney Health Board\",Calculations!$E$2=\"Orkney Islands Local Authority\"),$F178=1),0,IF(AND(OR(Calculations!$E$2=\"Shetland Health Board\",Calculations!$E$2=\"Western Isles Health Board\",Calculations!$E$2=\"Shetland Islands Local Authority\",Calculations!$E$2=\"Eilean Siar Local Authority\"),OR($F178=1,$F178=5)),0,prem_mort(VALUE(LEFT(Options!$B$24,2)),$C178,$E178,$F178,2016,$I178+$J178,1,$H178,$G178*$H178,Options!$B$8)))","v":7.2855203353000002},20.948513065483876,20.915569532627106,1227.3734433522809,1225.4432816633653,9897.1958399999985,9864.8018066959485,20.948513065483876,20.915569532627106,125691.07839290326,125493.41719576264,7364240.6601136858,7352659.6899801912,59383175.039999992,59188810.840175688,125691.07839290326,125493.41719576264,6000]
[null,"Female 25-29",26.975186999999998,81.645189999999999,"female",4,{"$f":"HLOOKUP(Calculations!$E$2,'Prevalence Rates'!$C$3:$BC$249,'Prevalence Rates'!$BD179,FALSE)","v":0.11957993199323458},{"$f":"HLOOKUP(Calculations!$E$2,'Population 2016'!$C$3:$BC$249,'Population 2016'!BD179,FALSE)","v":33433},0,{"$f":"HLOOKUP(Results!E$4,Targeting!$C$3:$F$249,Targeting!$G179,FALSE)","v":990},{"$f":"IF(AND(OR(Calculations!$E$2=\"Orkney Health Board\",Calculations!$E$2=\"Orkney Islands Local Authority\"),$F179=1),0,IF(AND(OR(Calculations!$E$2=\"Shetland Health Board\",Calculations!$E$2=\"Western Isles Health Board\",Calculations!$E$2=\"Shetland Islands Local Authority\",Calculations!$E$2=\"Eilean Siar Local Authority\"),OR($F179=1,$F179=5)),0,new_ci(VALUE(LEFT(Options!$B$24,2)),$C179,$E179,$F179,2016,$I179,1,$H179,$G179*$H179,Options!$B$8)))","v":10.6227023859},{"$f":"IF(AND(OR(Calculations!$E$2=\"Orkney Health Board\",Calculations!$E$2=\"Orkney Islands Local Authority\"),$F179=1),0,IF(AND(OR(Calculations!$E$2=\"Shetland Health Board\",Calculations!$E$2=\"Western Isles Health Board\",Calculations!$E$2=\"Shetland Islands Local Authority\",Calculations!$E$2=\"Eilean Siar Local Authority\"),OR($F179=1,$F179=5)),0,new_ci(VALUE(LEFT(Options!$B$24,2)),$C179,$E179,$F179,2016,$I179+$J179,1,$H179,$G179*$H179,Options!$B$8)))","v":10.6060075209},{"$f":"IF(AND(OR(Calculations!$E$2=\"Orkney Health Board\",Calculations!$E$2=\"Orkney Islands Local Authority\"),$F179=1),0,IF(AND(OR(Calculations!$E$2=\"Shetland Health Board\",Calculations!$E$2=\"Western Isles Health Board\",Calculations!$E$2=\"Shetland Islands Local Authority\",Calculations!$E$2=\"Eilean Siar Local Authority\"),OR($F179=1,$F179=5)),0,new_yllv2(VALUE(LEFT(Options!$B$24,2)),$C179,$D179,$E179,$F179,2016,$I179,1,$H179,$G179*$H179,Options!$B$8)))","v":570.12046891939997},{"$f":"IF(AND(OR(Calculations!$E$2=\"Orkney Health Board\",Calculations!$E$2=\"Orkney Islands Local Authority\"),$F179=1),0,IF(AND(OR(Calculations!$E$2=\"Shetland Health Board\",Calculations!$E$2=\"Western Isles Health Board\",Calculations!$E$2=\"Shetland Islands Local Authority\",Calculations!$E$2=\"Eilean Siar Local Authority\"),OR($F179=1,$F179=5)),0,new_yllv2(VALUE(LEFT(Options!$B$24,2)),$C179,$D179,$E179,$F179,2016,$I179+$J179,1,$H179,$G179*$H179,Options!$B$8)))","v":569.22445546469999},{"$f":"IF(AND(OR(Calculations!$E$2=\"Orkney Health Board\",Calculations!$E$2=\"Orkney Islands Local Authority\"),$F179=1),0,IF(AND(OR(Calculations!$E$2=\"Shetland Health Board\",Calculations!$E$2=\"Western Isles Health Board\",Calculations!$E$2=\"Shetland Islands Local Authority\",Calculations!$E$2=\"Eilean Siar Local Authority\"),OR($F179=1,$F179=5)),0,hosp_count(VALUE(LEFT(Options!$B$24,2)),$C179,$E179,$F179,2016,$I179,1,$H179,$G179*$H179, Options!$B$8)))","v":3742.7879046867001},{"$f":"IF(AND(OR(Calculations!$E$2=\"Orkney Health Board\",Calculations!$E$2=\"Orkney Islands Local Authority\"),$F179=1),0,IF(AND(OR(Calculations!$E$2=\"Shetland Health Board\",Calculations!$E$2=\"Western Isles Health Board\",Calculations!$E$2=\"Shetland Islands Local Authority\",Calculations!$E$2=\"Eilean Siar Local Authority\"),OR($F179=1,$F179=5)),0,hosp_count(VALUE(LEFT(Options!$B$24,2)),$C179,$E179,$F179,2016,$I179+$J179,1,$H179,$G179*$H179, Options!$B$8)))","v":3730.5440235386},{"$f":"IF(AND(OR(Calculations!$E$2=\"Orkney Health Board\",Calculations!$E$2=\"Orkney Islands Local Authority\"),$F179=1),0,IF(AND(OR(Calculations!$E$2=\"Shetland Health Board\",Calculations!$E$2=\"Western Isles Health Board\",Calculations!$E$2=\"Shetland Islands Local Authority\",Calculations!$E$2=\"Eilean Siar Local Authority\"),OR($F179=1,$F179=5)),0,prem_mort(VALUE(LEFT(Options!$B$24,2)),$C179,$E179,$F179,2016,$I179,1,$H179,$G179*$H179,Options!$B$8)))","v":10.6227023859},{"$f":"IF(AND(OR(Calculations!$E$2=\"Orkney Health Board\",Calculations!$E$2=\"Orkney Islands Local Authority\"),$F179=1),0,IF(AND(OR(Calculations!$E$2=\"Shetland Health Board\",Calculations!$E$2=\"Western Isles Health Board\",Calculations!$E$2=\"Shetland Islands Local Authority\",Calculations!$E$2=\"Eilean Siar Local Authority\"),OR($F179=1,$F179=5)),0,prem_mort(VALUE(LEFT(Options!$B$24,2)),$C179,$E179,$F179,2016,$I179+$J179,1,$H179,$G179*$H179,Options!$B$8)))","v":10.6060075209},31.773105572039601,31.723170283552182,1705.2626713708012,1702.5826442876798,11194.89099,11158.268846763976,31.773105572039601,31.723170283552182,190638.63343223761,190339.02170131309,10231576.028224807,10215495.86572608,67169345.939999998,66949613.080583856,190638.63343223761,190339.02170131309,6000]
[null,"Female 30-34",31.999904999999998,81.799899999999994,"female",4,{"$f":"HLOOKUP(Calculations!$E$2,'Prevalence Rates'!$C$3:$BC$249,'Prevalence Rates'!$BD180,FALSE)","v":0.11957993199323458},{"$f":"HLOOKUP(Calculations!$E$2,'Population 2016'!$C$3:$BC$249,'Population 2016'!BD180,FALSE)","v":33838},0,{"$f":"HLOOKUP(Results!E$4,Targeting!$C$3:$F$249,Targeting!$G180,FALSE)","v":1002},{"$f":"IF(AND(OR(Calculations!$E$2=\"Orkney Health Board\",Calculations!$E$2=\"Orkney Islands Local Authority\"),$F180=1),0,IF(AND(OR(Calculations!$E$2=\"Shetland Health Board\",Calculations!$E$2=\"Western Isles Health Board\",Calculations!$E$2=\"Shetland Islands Local Authority\",Calculations!$E$2=\"Eilean Siar Local Authority\"),OR($F180=1,$F180=5)),0,new_ci(VALUE(LEFT(Options!$B$24,2)),$C180,$E180,$F180,2016,$I180,1,$H180,$G180*$H180,Options!$B$8)))","v":16.4828897085},{"$f":"IF(AND(OR(Calculations!$E$2=\"Orkney Health Board\",Calculations!$E$2=\"Orkney Islands Local Authority\"),$F180=1),0,IF(AND(OR(Calculations!$E$2=\"Shetland Health Board\",Calculations!$E$2=\"Western Isles Health Board\",Calculations!$E$2=\"Shetland Islands Local Authority\",Calculations!$E$2=\"Eilean Siar Local Authority\"),OR($F180=1,$F180=5)),0,new_ci(VALUE(LEFT(Options!$B$24,2)),$C180,$E180,$F180,2016,$I180+$J180,1,$H180,$G180*$H180,Options!$B$8)))","v":16.456987808099999},{"$f":"IF(AND(OR(Calculations!$E$2=\"Orkney Health Board\",Calculations!$E$2=\"Orkney Islands Local Authority\"),$F180=1),0,IF(AND(OR(Calculations!$E$2=\"Shetland Health Board\",Calculations!$E$2=\"Western Isles Health Board\",Calculations!$E$2=\"Shetland Islands Local Authority\",Calculations!$E$2=\"Eilean Siar Local Authority\"),OR($F180=1,$F180=5)),0,new_yllv2(VALUE(LEFT(Options!$B$24,2)),$C180,$D180,$E180,$F180,2016,$I180,1,$H180,$G180*$H180,Options!$B$8)))","v":804.36493536039995},{"$f":"IF(AND(OR(Calculations!$E$2=\"Orkney Health Board\",Calculations!$E$2=\"Orkney Islands Local Authority\"),$F180=1),0,IF(AND(OR(Calculations!$E$2=\"Shetland Health Board\",Calculations!$E$2=\"Western Isles Health Board\",Calculations!$E$2=\"Shetland Islands Local Authority\",Calculations!$E$2=\"Eilean Siar Local Authority\"),OR($F180=1,$F180=5)),0,new_yllv2(VALUE(LEFT(Options!$B$24,2)),$C180,$D180,$E180,$F180,2016,$I180+$J180,1,$H180,$G180*$H180,Options!$B$8)))","v":803.10092275030001},{"$f":"IF(AND(OR(Calculations!$E$2=\"Orkney Health Board\",Calculations!$E$2=\"Orkney Islands Local Authority\"),$F180=1),0,IF(AND(OR(Calculations!$E$2=\"Shetland Health Board\",Calculations!$E$2=\"Western Isles Health Board\",Calculations!$E$2=\"Shetland Islands Local Authority\",Calculations!$E$2=\"Eilean Siar Local Authority\"),OR($F180=1,$F180=5)),0,hosp_count(VALUE(LEFT(Options!$B$24,2)),$C180,$E180,$F180,2016,$I180,1,$H180,$G180*$H180, Options!$B$8)))","v":4298.4820839800004},{"$f":"IF(AND(OR(Calculations!$E$2=\"Orkney Health Board\",Calculations!$E$2=\"Orkney Islands Local Authority\"),$F180=1),0,IF(AND(OR(Calculations!$E$2=\"Shetland Health Board\",Calculations!$E$2=\"Western Isles Health Board\",Calculations!$E$2=\"Shetland Islands Local Authority\",Calculations!$E$2=\"Eilean Siar Local Authority\"),OR($F180=1,$F180=5)),0,hosp_count(VALUE(LEFT(Options!$B$24,2)),$C180,$E180,$F180,2016,$I180+$J180,1,$H180,$G180*$H180, Options!$B$8)))","v":4284.4202424267996},{"$f":"IF(AND(OR(Calculations!$E$2=\"Orkney Health Board\",Calculations!$E$2=\"Orkney Islands Local Authority\"),$F180=1),0,IF(AND(OR(Calculations!$E$2=\"Shetland Health Board\",Calculations!$E$2=\"Western Isles Health Board\",Calculations!$E$2=\"Shetland Islands Local Authority\",Calculations!$E$2=\"Eilean Siar Local Authority\"),OR($F180=1,$F180=5)),0,prem_mort(VALUE(LEFT(Options!$B$24,2)),$C180,$E180,$F180,2016,$I180,1,$H180,$G180*$H180,Options!$B$8)))","v":16.4828897085},{"$f":"IF(AND(OR(Calculations!$E$2=\"Orkney Health Board\",Calculations!$E$2=\"Orkney Islands Local Authority\"),$F180=1),0,IF(AND(OR(Calculations!$E$2=\"Shetland Health Board\",Calculations!$E$2=\"Western Isles Health Board\",Calculations!$E$2=\"Shetland Islands Local Authority\",Calculations!$E$2=\"Eilean Siar Local Authority\"),OR($F180=1,$F180=5)),0,prem_mort(VALUE(LEFT(Options!$B$24,2)),$C180,$E180,$F180,2016,$I180+$J180,1,$H180,$G180*$H180,Options!$B$8)))","v":16.456987808099999},48.711181832555113,48.634635049648324,2377.1054298729237,2373.3699472495418,12703.121000000001,12661.56463865122,48.711181832555113,48.634635049648324,316622.6819116082,316125.1278227141,15451185.294174004,15426904.657122022,82570286.5,82300170.151232928,316622.6819116082,316125.1278227141,6500]
[null,"Female 35-39",36.918118,81.898120000000006,"female",4,{"$f":"HLOOKUP(Calculations!$E$2,'Prevalence Rates'!$C$3:$BC$249,'Prevalence Rates'!$BD181,FALSE)","v":0.11957993199323458},{"$f":"HLOOKUP(Calculations!$E$2,'Population 2016'!$C$3:$BC$249,'Population 2016'!BD181,FALSE)","v":32800},0,{"$f":"HLOOKUP(Results!E$4,Targeting!$C$3:$F$249,Targeting!$G181,FALSE)","v":971},{"$f":"IF(AND(OR(Calculations!$E$2=\"Orkney Health Board\",Calculations!$E$2=\"Orkney Islands Local Authority\"),$F181=1),0,IF(AND(OR(Calculations!$E$2=\"Shetland Health Board\",Calculations!$E$2=\"Western Isles Health Board\",Calculations!$E$2=\"Shetland Islands Local Authority\",Calculations!$E$2=\"Eilean Siar Local Authority\"),OR($F181=1,$F181=5)),0,new_ci(VALUE(LEFT(Options!$B$24,2)),$C181,$E181,$F181,2016,$I181,1,$H181,$G181*$H181,Options!$B$8)))","v":24.272751369200002},{"$f":"IF(AND(OR(Calculations!$E$2=\"Orkney Health Board\",Calculations!$E$2=\"Orkney Islands Local Authority\"),$F181=1),0,IF(AND(OR(Calculations!$E$2=\"Shetland Health Board\",Calculations!$E$2=\"Western Isles Health Board\",Calculations!$E$2=\"Shetland Islands Local Authority\",Calculations!$E$2=\"Eilean Siar Local Authority\"),OR($F181=1,$F181=5)),0,new_ci(VALUE(LEFT(Options!$B$24,2)),$C181,$E181,$F181,2016,$I181+$J181,1,$H181,$G181*$H181,Options!$B$8)))","v":24.2346257339},{"$f":"IF(AND(OR(Calculations!$E$2=\"Orkney Health Board\",Calculations!$E$2=\"Orkney Islands Local Authority\"),$F181=1),0,IF(AND(OR(Calculations!$E$2=\"Shetland Health Board\",Calculations!$E$2=\"Western Isles Health Board\",Calculations!$E$2=\"Shetland Islands Local Authority\",Calculations!$E$2=\"Eilean Siar Local Authority\"),OR($F181=1,$F181=5)),0,new_yllv2(VALUE(LEFT(Options!$B$24,2)),$C181,$D181,$E181,$F181,2016,$I181,1,$H181,$G181*$H181,Options!$B$8)))","v":1067.5156537629},{"$f":"IF(AND(OR(Calculations!$E$2=\"Orkney Health Board\",Calculations!$E$2=\"Orkney Islands Local Authority\"),$F181=1),0,IF(AND(OR(Calculations!$E$2=\"Shetland Health Board\",Calculations!$E$2=\"Western Isles Health Board\",Calculations!$E$2=\"Shetland Islands Local Authority\",Calculations!$E$2=\"Eilean Siar Local Authority\"),OR($F181=1,$F181=5)),0,new_yllv2(VALUE(LEFT(Options!$B$24,2)),$C181,$D181,$E181,$F181,2016,$I181+$J181,1,$H181,$G181*$H181,Options!$B$8)))","v":1065.8388882462},{"$f":"IF(AND(OR(Calculations!$E$2=\"Orkney Health Board\",Calculations!$E$2=\"Orkney Islands Local Authority\"),$F181=1),0,IF(AND(OR(Calculations!$E$2=\"Shetland Health Board\",Calculations!$E$2=\"Western Isles Health Board\",Calculations!$E$2=\"Shetland Islands Local Authority\",Calculations!$E$2=\"Eilean Siar Local Authority\"),OR($F181=1,$F181=5)),0,hosp_count(VALUE(LEFT(Options!$B$24,2)),$C181,$E181,$F181,2016,$I181,1,$H181,$G181*$H181, Options!$B$8)))","v":4715.32218784},{"$f":"IF(AND(OR(Calculations!$E$2=\"Orkney Health Board\",Calculations!$E$2=\"Orkney Islands Local Authority\"),$F181=1),0,IF(AND(OR(Calculations!$E$2=\"Shetland Health Board\",Calculations!$E$2=\"Western Isles Health Board\",Calculations!$E$2=\"Shetland Islands Local Authority\",Calculations!$E$2=\"Eilean Siar Local Authority\"),OR($F181=1,$F181=5)),0,hosp_count(VALUE(LEFT(Options!$B$24,2)),$C181,$E181,$F181,2016,$I181+$J181,1,$H181,$G181*$H181, Options!$B$8)))","v":4699.9008944014004},{"$f":"IF(AND(OR(Calculations!$E$2=\"Orkney Health Board\",Calculations!$E$2=\"Orkney Islands Local Authority\"),$F181=1),0,IF(AND(OR(Calculations!$E$2=\"Shetland Health Board\",Calculations!$E$2=\"Western Isles Health Board\",Calculations!$E$2=\"Shetland Islands Local Authority\",Calculations!$E$2=\"Eilean Siar Local Authority\"),OR($F181=1,$F181=5)),0,prem_mort(VALUE(LEFT(Options!$B$24,2)),$C181,$E181,$F181,2016,$I181,1,$H181,$G181*$H181,Options!$B$8)))","v":24.272751369200002},{"$f":"IF(AND(OR(Calculations!$E$2=\"Orkney Health Board\",Calculations!$E$2=\"Orkney Islands Local Authority\"),$F181=1),0,IF(AND(OR(Calculations!$E$2=\"Shetland Health Board\",Calculations!$E$2=\"Western Isles Health Board\",Calculations!$E$2=\"Shetland Islands Local Authority\",Calculations!$E$2=\"Eilean Siar Local Authority\"),OR($F181=1,$F181=5)),0,prem_mort(VALUE(LEFT(Options!$B$24,2)),$C181,$E181,$F181,2016,$I181+$J181,1,$H181,$G181*$H181,Options!$B$8)))","v":24.2346257339},74.002290759756093,73.886054066768295,3254.6208956185974,3249.5088056286581,14375.98228,14328.966141467683,74.002290759756093,73.886054066768295,518016.03531829268,517202.37846737809,22782346.269330181,22746561.639400605,100631875.96000001,100302762.99027377,518016.03531829268,517202.37846737809,7000]
[null,"Female 40-44",42.077438000000001,82.30744,"female",4,{"$f":"HLOOKUP(Calculations!$E$2,'Prevalence Rates'!$C$3:$BC$249,'Prevalence Rates'!$BD182,FALSE)","v":0.11957993199323458},{"$f":"HLOOKUP(Calculations!$E$2,'Population 2016'!$C$3:$BC$249,'Population 2016'!BD182,FALSE)","v":35805},0,{"$f":"HLOOKUP(Results!E$4,Targeting!$C$3:$F$249,Targeting!$G182,FALSE)","v":1060},{"$f":"IF(AND(OR(Calculations!$E$2=\"Orkney Health Board\",Calculations!$E$2=\"Orkney Islands Local Authority\"),$F182=1),0,IF(AND(OR(Calculations!$E$2=\"Shetland Health Board\",Calculations!$E$2=\"Western Isles Health Board\",Calculations!$E$2=\"Shetland Islands Local Authority\",Calculations!$E$2=\"Eilean Siar Local Authority\"),OR($F182=1,$F182=5)),0,new_ci(VALUE(LEFT(Options!$B$24,2)),$C182,$E182,$F182,2016,$I182,1,$H182,$G182*$H182,Options!$B$8)))","v":41.084458574499997},{"$f":"IF(AND(OR(Calculations!$E$2=\"Orkney Health Board\",Calculations!$E$2=\"Orkney Islands Local Authority\"),$F182=1),0,IF(AND(OR(Calculations!$E$2=\"Shetland Health Board\",Calculations!$E$2=\"Western Isles Health Board\",Calculations!$E$2=\"Shetland Islands Local Authority\",Calculations!$E$2=\"Eilean Siar Local Authority\"),OR($F182=1,$F182=5)),0,new_ci(VALUE(LEFT(Options!$B$24,2)),$C182,$E182,$F182,2016,$I182+$J182,1,$H182,$G182*$H182,Options!$B$8)))","v":41.019943582499998},{"$f":"IF(AND(OR(Calculations!$E$2=\"Orkney Health Board\",Calculations!$E$2=\"Orkney Islands Local Authority\"),$F182=1),0,IF(AND(OR(Calculations!$E$2=\"Shetland Health Board\",Calculations!$E$2=\"Western Isles Health Board\",Calculations!$E$2=\"Shetland Islands Local Authority\",Calculations!$E$2=\"Eilean Siar Local Authority\"),OR($F182=1,$F182=5)),0,new_yllv2(VALUE(LEFT(Options!$B$24,2)),$C182,$D182,$E182,$F182,2016,$I182,1,$H182,$G182*$H182,Options!$B$8)))","v":1611.7433920466001},{"$f":"IF(AND(OR(Calculations!$E$2=\"Orkney Health Board\",Calculations!$E$2=\"Orkney Islands Local Authority\"),$F182=1),0,IF(AND(OR(Calculations!$E$2=\"Shetland Health Board\",Calculations!$E$2=\"Western Isles Health Board\",Calculations!$E$2=\"Shetland Islands Local Authority\",Calculations!$E$2=\"Eilean Siar Local Authority\"),OR($F182=1,$F182=5)),0,new_yllv2(VALUE(LEFT(Options!$B$24,2)),$C182,$D182,$E182,$F182,2016,$I182+$J182,1,$H182,$G182*$H182,Options!$B$8)))","v":1609.2124687814},{"$f":"IF(AND(OR(Calculations!$E$2=\"Orkney Health Board\",Calculations!$E$2=\"Orkney Islands Local Authority\"),$F182=1),0,IF(AND(OR(Calculations!$E$2=\"Shetland Health Board\",Calculations!$E$2=\"Western Isles Health Board\",Calculations!$E$2=\"Shetland Islands Local Authority\",Calculations!$E$2=\"Eilean Siar Local Authority\"),OR($F182=1,$F182=5)),0,hosp_count(VALUE(LEFT(Options!$B$24,2)),$C182,$E182,$F182,2016,$I182,1,$H182,$G182*$H182, Options!$B$8)))","v":5860.6013343570003},{"$f":"IF(AND(OR(Calculations!$E$2=\"Orkney Health Board\",Calculations!$E$2=\"Orkney Islands Local Authority\"),$F182=1),0,IF(AND(OR(Calculations!$E$2=\"Shetland Health Board\",Calculations!$E$2=\"Western Isles Health Board\",Calculations!$E$2=\"Shetland Islands Local Authority\",Calculations!$E$2=\"Eilean Siar Local Authority\"),OR($F182=1,$F182=5)),0,hosp_count(VALUE(LEFT(Options!$B$24,2)),$C182,$E182,$F182,2016,$I182+$J182,1,$H182,$G182*$H182, Options!$B$8)))","v":5841.4337046870996},{"$f":"IF(AND(OR(Calculations!$E$2=\"Orkney Health Board\",Calculations!$E$2=\"Orkney Islands Local Authority\"),$F182=1),0,IF(AND(OR(Calculations!$E$2=\"Shetland Health Board\",Calculations!$E$2=\"Western Isles Health Board\",Calculations!$E$2=\"Shetland Islands Local Authority\",Calculations!$E$2=\"Eilean Siar Local Authority\"),OR($F182=1,$F182=5)),0,prem_mort(VALUE(LEFT(Options!$B$24,2)),$C182,$E182,$F182,2016,$I182,1,$H182,$G182*$H182,Options!$B$8)))","v":41.084458574499997},{"$f":"IF(AND(OR(Calculations!$E$2=\"Orkney Health Board\",Calculations!$E$2=\"Orkney Islands Local Authority\"),$F182=1),0,IF(AND(OR(Calculations!$E$2=\"Shetland Health Board\",Calculations!$E$2=\"Western Isles Health Board\",Calculations!$E$2=\"Shetland Islands Local Authority\",Calculations!$E$2=\"Eilean Siar Local Authority\"),OR($F182=1,$F182=5)),0,prem_mort(VALUE(LEFT(Options!$B$24,2)),$C182,$E182,$F182,2016,$I182+$J182,1,$H182,$G182*$H182,Options!$B$8)))","v":41.019943582499998},114.7450316282642,114.56484731881021,4501.4478202670016,4494.3791894467258,16368.108740000001,16314.575351730484,114.7450316282642,114.56484731881021,803215.22139784938,801953.93123167148,31510134.74186901,31460654.326127082,114576761.18000001,114202027.46211338,803215.22139784938,801953.93123167148,7000]
[null,"Female 45-49",47.025772000000003,82.585769999999997,"female",4,{"$f":"HLOOKUP(Calculations!$E$2,'Prevalence Rates'!$C$3:$BC$249,'Prevalence Rates'!$BD183,FALSE)","v":0.11957993199323458},{"$f":"HLOOKUP(Calculations!$E$2,'Population 2016'!$C$3:$BC$249,'Population 2016'!BD183,FALSE)","v":42189},0,{"$f":"HLOOKUP(Results!E$4,Targeting!$C$3:$F$249,Targeting!$G183,FALSE)","v":1249},{"$f":"IF(AND(OR(Calculations!$E$2=\"Orkney Health Board\",Calculations!$E$2=\"Orkney Islands Local Authority\"),$F183=1),0,IF(AND(OR(Calculations!$E$2=\"Shetland Health Board\",Calculations!$E$2=\"Western Isles Health Board\",Calculations!$E$2=\"Shetland Islands Local Authority\",Calculations!$E$2=\"Eilean Siar Local Authority\"),OR($F183=1,$F183=5)),0,new_ci(VALUE(LEFT(Options!$B$24,2)),$C183,$E183,$F183,2016,$I183,1,$H183,$G183*$H183,Options!$B$8)))","v":73.720107179699994},{"$f":"IF(AND(OR(Calculations!$E$2=\"Orkney Health Board\",Calculations!$E$2=\"Orkney Islands Local Authority\"),$F183=1),0,IF(AND(OR(Calculations!$E$2=\"Shetland Health Board\",Calculations!$E$2=\"Western Isles Health Board\",Calculations!$E$2=\"Shetland Islands Local Authority\",Calculations!$E$2=\"Eilean Siar Local Authority\"),OR($F183=1,$F183=5)),0,new_ci(VALUE(LEFT(Options!$B$24,2)),$C183,$E183,$F183,2016,$I183+$J183,1,$H183,$G183*$H183,Options!$B$8)))","v":73.604396072699998},{"$f":"IF(AND(OR(Calculations!$E$2=\"Orkney Health Board\",Calculations!$E$2=\"Orkney Islands Local Authority\"),$F183=1),0,IF(AND(OR(Calculations!$E$2=\"Shetland Health Board\",Calculations!$E$2=\"Western Isles Health Board\",Calculations!$E$2=\"Shetland Islands Local Authority\",Calculations!$E$2=\"Eilean Siar Local Authority\"),OR($F183=1,$F183=5)),0,new_yllv2(VALUE(LEFT(Options!$B$24,2)),$C183,$D183,$E183,$F183,2016,$I183,1,$H183,$G183*$H183,Options!$B$8)))","v":2547.7667566902001},{"$f":"IF(AND(OR(Calculations!$E$2=\"Orkney Health Board\",Calculations!$E$2=\"Orkney Islands Local Authority\"),$F183=1),0,IF(AND(OR(Calculations!$E$2=\"Shetland Health Board\",Calculations!$E$2=\"Western Isles Health Board\",Calculations!$E$2=\"Shetland Islands Local Authority\",Calculations!$E$2=\"Eilean Siar Local Authority\"),OR($F183=1,$F183=5)),0,new_yllv2(VALUE(LEFT(Options!$B$24,2)),$C183,$D183,$E183,$F183,2016,$I183+$J183,1,$H183,$G183*$H183,Options!$B$8)))","v":2543.7677810637001},{"$f":"IF(AND(OR(Calculations!$E$2=\"Orkney Health Board\",Calculations!$E$2=\"Orkney Islands Local Authority\"),$F183=1),0,IF(AND(OR(Calculations!$E$2=\"Shetland Health Board\",Calculations!$E$2=\"Western Isles Health Board\",Calculations!$E$2=\"Shetland Islands Local Authority\",Calculations!$E$2=\"Eilean Siar Local Authority\"),OR($F183=1,$F183=5)),0,hosp_count(VALUE(LEFT(Options!$B$24,2)),$C183,$E183,$F183,2016,$I183,1,$H183,$G183*$H183, Options!$B$8)))","v":7820.8484750382004},{"$f":"IF(AND(OR(Calculations!$E$2=\"Orkney Health Board\",Calculations!$E$2=\"Orkney Islands Local Authority\"),$F183=1),0,IF(AND(OR(Calculations!$E$2=\"Shetland Health Board\",Calculations!$E$2=\"Western Isles Health Board\",Calculations!$E$2=\"Shetland Islands Local Authority\",Calculations!$E$2=\"Eilean Siar Local Authority\"),OR($F183=1,$F183=5)),0,hosp_count(VALUE(LEFT(Options!$B$24,2)),$C183,$E183,$F183,2016,$I183+$J183,1,$H183,$G183*$H183, Options!$B$8)))","v":7795.2696188987002},{"$f":"IF(AND(OR(Calculations!$E$2=\"Orkney Health Board\",Calculations!$E$2=\"Orkney Islands Local Authority\"),$F183=1),0,IF(AND(OR(Calculations!$E$2=\"Shetland Health Board\",Calculations!$E$2=\"Western Isles Health Board\",Calculations!$E$2=\"Shetland Islands Local Authority\",Calculations!$E$2=\"Eilean Siar Local Authority\"),OR($F183=1,$F183=5)),0,prem_mort(VALUE(LEFT(Options!$B$24,2)),$C183,$E183,$F183,2016,$I183,1,$H183,$G183*$H183,Options!$B$8)))","v":73.720107179699994},{"$f":"IF(AND(OR(Calculations!$E$2=\"Orkney Health Board\",Calculations!$E$2=\"Orkney Islands Local Authority\"),$F183=1),0,IF(AND(OR(Calculations!$E$2=\"Shetland Health Board\",Calculations!$E$2=\"Western Isles Health Board\",Calculations!$E$2=\"Shetland Islands Local Authority\",Calculations!$E$2=\"Eilean Siar Local Authority\"),OR($F183=1,$F183=5)),0,prem_mort(VALUE(LEFT(Options!$B$24,2)),$C183,$E183,$F183,2016,$I183+$J183,1,$H183,$G183*$H183,Options!$B$8)))","v":73.604396072699998},174.73774486169378,174.46347643390456,6038.9361129446061,6029.4573966287426,18537.648380000002,18477.019173004101,174.73774486169378,174.46347643390456,1223164.2140318565,1221244.335037332,42272552.790612243,42206201.776401199,129763538.66000001,129339134.21102871,1223164.2140318565,1221244.335037332,7000]
[null,"Female 50-54",51.990825999999998,82.980829999999997,"female",4,{"$f":"HLOOKUP(Calculations!$E$2,'Prevalence Rates'!$C$3:$BC$249,'Prevalence Rates'!$BD184,FALSE)","v":0.11957993199323458},{"$f":"HLOOKUP(Calculations!$E$2,'Population 2016'!$C$3:$BC$249,'Population 2016'!BD184,FALSE)","v":44075},0,{"$f":"HLOOKUP(Results!E$4,Targeting!$C$3:$F$249,Targeting!$G184,FALSE)","v":1305},{"$f":"IF(AND(OR(Calculations!$E$2=\"Orkney Health Board\",Calculations!$E$2=\"Orkney Islands Local Authority\"),$F184=1),0,IF(AND(OR(Calculations!$E$2=\"Shetland Health Board\",Calculations!$E$2=\"Western Isles Health Board\",Calculations!$E$2=\"Shetland Islands Local Authority\",Calculations!$E$2=\"Eilean Siar Local Authority\"),OR($F184=1,$F184=5)),0,new_ci(VALUE(LEFT(Options!$B$24,2)),$C184,$E184,$F184,2016,$I184,1,$H184,$G184*$H184,Options!$B$8)))","v":117.4301832937},{"$f":"IF(AND(OR(Calculations!$E$2=\"Orkney Health Board\",Calculations!$E$2=\"Orkney Islands Local Authority\"),$F184=1),0,IF(AND(OR(Calculations!$E$2=\"Shetland Health Board\",Calculations!$E$2=\"Western Isles Health Board\",Calculations!$E$2=\"Shetland Islands Local Authority\",Calculations!$E$2=\"Eilean Siar Local Authority\"),OR($F184=1,$F184=5)),0,new_ci(VALUE(LEFT(Options!$B$24,2)),$C184,$E184,$F184,2016,$I184+$J184,1,$H184,$G184*$H184,Options!$B$8)))","v":117.2459681887},{"$f":"IF(AND(OR(Calculations!$E$2=\"Orkney Health Board\",Calculations!$E$2=\"Orkney Islands Local Authority\"),$F184=1),0,IF(AND(OR(Calculations!$E$2=\"Shetland Health Board\",Calculations!$E$2=\"Western Isles Health Board\",Calculations!$E$2=\"Shetland Islands Local Authority\",Calculations!$E$2=\"Eilean Siar Local Authority\"),OR($F184=1,$F184=5)),0,new_yllv2(VALUE(LEFT(Options!$B$24,2)),$C184,$D184,$E184,$F184,2016,$I184,1,$H184,$G184*$H184,Options!$B$8)))","v":3521.7316666987999},{"$f":"IF(AND(OR(Calculations!$E$2=\"Orkney Health Board\",Calculations!$E$2=\"Orkney Islands Local Authority\"),$F184=1),0,IF(AND(OR(Calculations!$E$2=\"Shetland Health Board\",Calculations!$E$2=\"Western Isles Health Board\",Calculations!$E$2=\"Shetland Islands Local Authority\",Calculations!$E$2=\"Eilean Siar Local Authority\"),OR($F184=1,$F184=5)),0,new_yllv2(VALUE(LEFT(Options!$B$24,2)),$C184,$D184,$E184,$F184,2016,$I184+$J184,1,$H184,$G184*$H184,Options!$B$8)))","v":3516.2070549629998},{"$f":"IF(AND(OR(Calculations!$E$2=\"Orkney Health Board\",Calculations!$E$2=\"Orkney Islands Local Authority\"),$F184=1),0,IF(AND(OR(Calculations!$E$2=\"Shetland Health Board\",Calculations!$E$2=\"Western Isles Health Board\",Calculations!$E$2=\"Shetland Islands Local Authority\",Calculations!$E$2=\"Eilean Siar Local Authority\"),OR($F184=1,$F184=5)),0,hosp_count(VALUE(LEFT(Options!$B$24,2)),$C184,$E184,$F184,2016,$I184,1,$H184,$G184*$H184, Options!$B$8)))","v":9257.3301240100009},{"$f":"IF(AND(OR(Calculations!$E$2=\"Orkney Health Board\",Calculations!$E$2=\"Orkney Islands Local Authority\"),$F184=1),0,IF(AND(OR(Calculations!$E$2=\"Shetland Health Board\",Calculations!$E$2=\"Western Isles Health Board\",Calculations!$E$2=\"Shetland Islands Local Authority\",Calculations!$E$2=\"Eilean Siar Local Authority\"),OR($F184=1,$F184=5)),0,hosp_count(VALUE(LEFT(Options!$B$24,2)),$C184,$E184,$F184,2016,$I184+$J184,1,$H184,$G184*$H184, Options!$B$8)))","v":9227.0492795160008},{"$f":"IF(AND(OR(Calculations!$E$2=\"Orkney Health Board\",Calculations!$E$2=\"Orkney Islands Local Authority\"),$F184=1),0,IF(AND(OR(Calculations!$E$2=\"Shetland Health Board\",Calculations!$E$2=\"Western Isles Health Board\",Calculations!$E$2=\"Shetland Islands Local Authority\",Calculations!$E$2=\"Eilean Siar Local Authority\"),OR($F184=1,$F184=5)),0,prem_mort(VALUE(LEFT(Options!$B$24,2)),$C184,$E184,$F184,2016,$I184,1,$H184,$G184*$H184,Options!$B$8)))","v":117.4301832937},{"$f":"IF(AND(OR(Calculations!$E$2=\"Orkney Health Board\",Calculations!$E$2=\"Orkney Islands Local Authority\"),$F184=1),0,IF(AND(OR(Calculations!$E$2=\"Shetland Health Board\",Calculations!$E$2=\"Western Isles Health Board\",Calculations!$E$2=\"Shetland Islands Local Authority\",Calculations!$E$2=\"Eilean Siar Local Authority\"),OR($F184=1,$F184=5)),0,prem_mort(VALUE(LEFT(Options!$B$24,2)),$C184,$E184,$F184,2016,$I184+$J184,1,$H184,$G184*$H184,Options!$B$8)))","v":117.2459681887},266.43263367827564,266.01467541395351,7990.3157497420298,7977.7811797231989,21003.585080000004,20934.882086252979,266.43263367827564,266.01467541395351,1865028.4357479294,1862102.7278976745,55932210.24819421,55844468.258062392,147025095.56000003,146544174.60377085,1865028.4357479294,1862102.7278976745,7000]
[null,"Female 55-59",56.953040999999999,83.473039999999997,"female",4,{"$f":"HLOOKUP(Calculations!$E$2,'Prevalence Rates'!$C$3:$BC$249,'Prevalence Rates'!$BD185,FALSE)","v":6.2381348242967219E-2},{"$f":"HLOOKUP(Calculations!$E$2,'Population 2016'!$C$3:$BC$249,'Population 2016'!BD185,FALSE)","v":39814},0,{"$f":"HLOOKUP(Results!E$4,Targeting!$C$3:$F$249,Targeting!$G185,FALSE)","v":1179},{"$f":"IF(AND(OR(Calculations!$E$2=\"Orkney Health Board\",Calculations!$E$2=\"Orkney Islands Local Authority\"),$F185=1),0,IF(AND(OR(Calculations!$E$2=\"Shetland Health Board\",Calculations!$E$2=\"Western Isles Health Board\",Calculations!$E$2=\"Shetland Islands Local Authority\",Calculations!$E$2=\"Eilean Siar Local Authority\"),OR($F185=1,$F185=5)),0,new_ci(VALUE(LEFT(Options!$B$24,2)),$C185,$E185,$F185,2016,$I185,1,$H185,$G185*$H185,Options!$B$8)))","v":161.66550456050001},{"$f":"IF(AND(OR(Calculations!$E$2=\"Orkney Health Board\",Calculations!$E$2=\"Orkney Islands Local Authority\"),$F185=1),0,IF(AND(OR(Calculations!$E$2=\"Shetland Health Board\",Calculations!$E$2=\"Western Isles Health Board\",Calculations!$E$2=\"Shetland Islands Local Authority\",Calculations!$E$2=\"Eilean Siar Local Authority\"),OR($F185=1,$F185=5)),0,new_ci(VALUE(LEFT(Options!$B$24,2)),$C185,$E185,$F185,2016,$I185+$J185,1,$H185,$G185*$H185,Options!$B$8)))","v":161.40746791309999},{"$f":"IF(AND(OR(Calculations!$E$2=\"Orkney Health Board\",Calculations!$E$2=\"Orkney Islands Local Authority\"),$F185=1),0,IF(AND(OR(Calculations!$E$2=\"Shetland Health Board\",Calculations!$E$2=\"Western Isles Health Board\",Calculations!$E$2=\"Shetland Islands Local Authority\",Calculations!$E$2=\"Eilean Siar Local Authority\"),OR($F185=1,$F185=5)),0,new_yllv2(VALUE(LEFT(Options!$B$24,2)),$C185,$D185,$E185,$F185,2016,$I185,1,$H185,$G185*$H185,Options!$B$8)))","v":4125.7035147184997},{"$f":"IF(AND(OR(Calculations!$E$2=\"Orkney Health Board\",Calculations!$E$2=\"Orkney Islands Local Authority\"),$F185=1),0,IF(AND(OR(Calculations!$E$2=\"Shetland Health Board\",Calculations!$E$2=\"Western Isles Health Board\",Calculations!$E$2=\"Shetland Islands Local Authority\",Calculations!$E$2=\"Eilean Siar Local Authority\"),OR($F185=1,$F185=5)),0,new_yllv2(VALUE(LEFT(Options!$B$24,2)),$C185,$D185,$E185,$F185,2016,$I185+$J185,1,$H185,$G185*$H185,Options!$B$8)))","v":4119.1184197348002},{"$f":"IF(AND(OR(Calculations!$E$2=\"Orkney Health Board\",Calculations!$E$2=\"Orkney Islands Local Authority\"),$F185=1),0,IF(AND(OR(Calculations!$E$2=\"Shetland Health Board\",Calculations!$E$2=\"Western Isles Health Board\",Calculations!$E$2=\"Shetland Islands Local Authority\",Calculations!$E$2=\"Eilean Siar Local Authority\"),OR($F185=1,$F185=5)),0,hosp_count(VALUE(LEFT(Options!$B$24,2)),$C185,$E185,$F185,2016,$I185,1,$H185,$G185*$H185, Options!$B$8)))","v":9474.0793686367997},{"$f":"IF(AND(OR(Calculations!$E$2=\"Orkney Health Board\",Calculations!$E$2=\"Orkney Islands Local Authority\"),$F185=1),0,IF(AND(OR(Calculations!$E$2=\"Shetland Health Board\",Calculations!$E$2=\"Western Isles Health Board\",Calculations!$E$2=\"Shetland Islands Local Authority\",Calculations!$E$2=\"Eilean Siar Local Authority\"),OR($F185=1,$F185=5)),0,hosp_count(VALUE(LEFT(Options!$B$24,2)),$C185,$E185,$F185,2016,$I185+$J185,1,$H185,$G185*$H185, Options!$B$8)))","v":9442.4610700547},{"$f":"IF(AND(OR(Calculations!$E$2=\"Orkney Health Board\",Calculations!$E$2=\"Orkney Islands Local Authority\"),$F185=1),0,IF(AND(OR(Calculations!$E$2=\"Shetland Health Board\",Calculations!$E$2=\"Western Isles Health Board\",Calculations!$E$2=\"Shetland Islands Local Authority\",Calculations!$E$2=\"Eilean Siar Local Authority\"),OR($F185=1,$F185=5)),0,prem_mort(VALUE(LEFT(Options!$B$24,2)),$C185,$E185,$F185,2016,$I185,1,$H185,$G185*$H185,Options!$B$8)))","v":161.66550456050001},{"$f":"IF(AND(OR(Calculations!$E$2=\"Orkney Health Board\",Calculations!$E$2=\"Orkney Islands Local Authority\"),$F185=1),0,IF(AND(OR(Calculations!$E$2=\"Shetland Health Board\",Calculations!$E$2=\"Western Isles Health Board\",Calculations!$E$2=\"Shetland Islands Local Authority\",Calculations!$E$2=\"Eilean Siar Local Authority\"),OR($F185=1,$F185=5)),0,prem_mort(VALUE(LEFT(Options!$B$24,2)),$C185,$E185,$F185,2016,$I185+$J185,1,$H185,$G185*$H185,Options!$B$8)))","v":161.40746791309999},406.05190274903305,405.40379744084993,10362.444152103531,10345.904505286584,23795.849119999999,23716.434093672327,406.05190274903305,405.40379744084993,2639337.367868715,2635124.6833655247,67355886.988672957,67248379.284362793,154673019.28,154156821.60887012,2639337.367868715,2635124.6833655247,6500]
[null,"Female 60-64",61.947387999999997,84.167389999999997,"female",4,{"$f":"HLOOKUP(Calculations!$E$2,'Prevalence Rates'!$C$3:$BC$249,'Prevalence Rates'!$BD186,FALSE)","v":6.2381348242967219E-2},{"$f":"HLOOKUP(Calculations!$E$2,'Population 2016'!$C$3:$BC$249,'Population 2016'!BD186,FALSE)","v":35061},0,{"$f":"HLOOKUP(Results!E$4,Targeting!$C$3:$F$249,Targeting!$G186,FALSE)","v":1038},{"$f":"IF(AND(OR(Calculations!$E$2=\"Orkney Health Board\",Calculations!$E$2=\"Orkney Islands Local Authority\"),$F186=1),0,IF(AND(OR(Calculations!$E$2=\"Shetland Health Board\",Calculations!$E$2=\"Western Isles Health Board\",Calculations!$E$2=\"Shetland Islands Local Authority\",Calculations!$E$2=\"Eilean Siar Local Authority\"),OR($F186=1,$F186=5)),0,new_ci(VALUE(LEFT(Options!$B$24,2)),$C186,$E186,$F186,2016,$I186,1,$H186,$G186*$H186,Options!$B$8)))","v":217.48038742189999},{"$f":"IF(AND(OR(Calculations!$E$2=\"Orkney Health Board\",Calculations!$E$2=\"Orkney Islands Local Authority\"),$F186=1),0,IF(AND(OR(Calculations!$E$2=\"Shetland Health Board\",Calculations!$E$2=\"Western Isles Health Board\",Calculations!$E$2=\"Shetland Islands Local Authority\",Calculations!$E$2=\"Eilean Siar Local Authority\"),OR($F186=1,$F186=5)),0,new_ci(VALUE(LEFT(Options!$B$24,2)),$C186,$E186,$F186,2016,$I186+$J186,1,$H186,$G186*$H186,Options!$B$8)))","v":217.13392523510001},{"$f":"IF(AND(OR(Calculations!$E$2=\"Orkney Health Board\",Calculations!$E$2=\"Orkney Islands Local Authority\"),$F186=1),0,IF(AND(OR(Calculations!$E$2=\"Shetland Health Board\",Calculations!$E$2=\"Western Isles Health Board\",Calculations!$E$2=\"Shetland Islands Local Authority\",Calculations!$E$2=\"Eilean Siar Local Authority\"),OR($F186=1,$F186=5)),0,new_yllv2(VALUE(LEFT(Options!$B$24,2)),$C186,$D186,$E186,$F186,2016,$I186,1,$H186,$G186*$H186,Options!$B$8)))","v":4614.9342560534997},{"$f":"IF(AND(OR(Calculations!$E$2=\"Orkney Health Board\",Calculations!$E$2=\"Orkney Islands Local Authority\"),$F186=1),0,IF(AND(OR(Calculations!$E$2=\"Shetland Health Board\",Calculations!$E$2=\"Western Isles Health Board\",Calculations!$E$2=\"Shetland Islands Local Authority\",Calculations!$E$2=\"Eilean Siar Local Authority\"),OR($F186=1,$F186=5)),0,new_yllv2(VALUE(LEFT(Options!$B$24,2)),$C186,$D186,$E186,$F186,2016,$I186+$J186,1,$H186,$G186*$H186,Options!$B$8)))","v":4607.5823277566997},{"$f":"IF(AND(OR(Calculations!$E$2=\"Orkney Health Board\",Calculations!$E$2=\"Orkney Islands Local Authority\"),$F186=1),0,IF(AND(OR(Calculations!$E$2=\"Shetland Health Board\",Calculations!$E$2=\"Western Isles Health Board\",Calculations!$E$2=\"Shetland Islands Local Authority\",Calculations!$E$2=\"Eilean Siar Local Authority\"),OR($F186=1,$F186=5)),0,hosp_count(VALUE(LEFT(Options!$B$24,2)),$C186,$E186,$F186,2016,$I186,1,$H186,$G186*$H186, Options!$B$8)))","v":9459.8509845723001},{"$f":"IF(AND(OR(Calculations!$E$2=\"Orkney Health Board\",Calculations!$E$2=\"Orkney Islands Local Authority\"),$F186=1),0,IF(AND(OR(Calculations!$E$2=\"Shetland Health Board\",Calculations!$E$2=\"Western Isles Health Board\",Calculations!$E$2=\"Shetland Islands Local Authority\",Calculations!$E$2=\"Eilean Siar Local Authority\"),OR($F186=1,$F186=5)),0,hosp_count(VALUE(LEFT(Options!$B$24,2)),$C186,$E186,$F186,2016,$I186+$J186,1,$H186,$G186*$H186, Options!$B$8)))","v":9428.2877985551004},{"$f":"IF(AND(OR(Calculations!$E$2=\"Orkney Health Board\",Calculations!$E$2=\"Orkney Islands Local Authority\"),$F186=1),0,IF(AND(OR(Calculations!$E$2=\"Shetland Health Board\",Calculations!$E$2=\"Western Isles Health Board\",Calculations!$E$2=\"Shetland Islands Local Authority\",Calculations!$E$2=\"Eilean Siar Local Authority\"),OR($F186=1,$F186=5)),0,prem_mort(VALUE(LEFT(Options!$B$24,2)),$C186,$E186,$F186,2016,$I186,1,$H186,$G186*$H186,Options!$B$8)))","v":217.48038742189999},{"$f":"IF(AND(OR(Calculations!$E$2=\"Orkney Health Board\",Calculations!$E$2=\"Orkney Islands Local Authority\"),$F186=1),0,IF(AND(OR(Calculations!$E$2=\"Shetland Health Board\",Calculations!$E$2=\"Western Isles Health Board\",Calculations!$E$2=\"Shetland Islands Local Authority\",Calculations!$E$2=\"Eilean Siar Local Authority\"),OR($F186=1,$F186=5)),0,prem_mort(VALUE(LEFT(Options!$B$24,2)),$C186,$E186,$F186,2016,$I186+$J186,1,$H186,$G186*$H186,Options!$B$8)))","v":217.13392523510001},620.29145609623231,619.30328637260777,13162.58593894498,13141.616975433388,26981.121429999999,26891.097796854341,620.29145609623231,619.30328637260777,3721748.736577394,3715819.7182356468,78975515.633669883,78849701.852600321,161886728.57999998,161346586.78112605,3721748.736577394,3715819.7182356468,6000]
[null,"Female 65-69",67.063927000000007,85.193929999999995,"female",4,{"$f":"HLOOKUP(Calculations!$E$2,'Prevalence Rates'!$C$3:$BC$249,'Prevalence Rates'!$BD187,FALSE)","v":6.2381348242967219E-2},{"$f":"HLOOKUP(Calculations!$E$2,'Population 2016'!$C$3:$BC$249,'Population 2016'!BD187,FALSE)","v":34888},0,{"$f":"HLOOKUP(Results!E$4,Targeting!$C$3:$F$249,Targeting!$G187,FALSE)","v":1033},{"$f":"IF(AND(OR(Calculations!$E$2=\"Orkney Health Board\",Calculations!$E$2=\"Orkney Islands Local Authority\"),$F187=1),0,IF(AND(OR(Calculations!$E$2=\"Shetland Health Board\",Calculations!$E$2=\"Western Isles Health Board\",Calculations!$E$2=\"Shetland Islands Local Authority\",Calculations!$E$2=\"Eilean Siar Local Authority\"),OR($F187=1,$F187=5)),0,new_ci(VALUE(LEFT(Options!$B$24,2)),$C187,$E187,$F187,2016,$I187,1,$H187,$G187*$H187,Options!$B$8)))","v":333.83324707129998},{"$f":"IF(AND(OR(Calculations!$E$2=\"Orkney Health Board\",Calculations!$E$2=\"Orkney Islands Local Authority\"),$F187=1),0,IF(AND(OR(Calculations!$E$2=\"Shetland Health Board\",Calculations!$E$2=\"Western Isles Health Board\",Calculations!$E$2=\"Shetland Islands Local Authority\",Calculations!$E$2=\"Eilean Siar Local Authority\"),OR($F187=1,$F187=5)),0,new_ci(VALUE(LEFT(Options!$B$24,2)),$C187,$E187,$F187,2016,$I187+$J187,1,$H187,$G187*$H187,Options!$B$8)))","v":333.30275808200003},{"$f":"IF(AND(OR(Calculations!$E$2=\"Orkney Health Board\",Calculations!$E$2=\"Orkney Islands Local Authority\"),$F187=1),0,IF(AND(OR(Calculations!$E$2=\"Shetland Health Board\",Calculations!$E$2=\"Western Isles Health Board\",Calculations!$E$2=\"Shetland Islands Local Authority\",Calculations!$E$2=\"Eilean Siar Local Authority\"),OR($F187=1,$F187=5)),0,new_yllv2(VALUE(LEFT(Options!$B$24,2)),$C187,$D187,$E187,$F187,2016,$I187,1,$H187,$G187*$H187,Options!$B$8)))","v":5718.5645238310999},{"$f":"IF(AND(OR(Calculations!$E$2=\"Orkney Health Board\",Calculations!$E$2=\"Orkney Islands Local Authority\"),$F187=1),0,IF(AND(OR(Calculations!$E$2=\"Shetland Health Board\",Calculations!$E$2=\"Western Isles Health Board\",Calculations!$E$2=\"Shetland Islands Local Authority\",Calculations!$E$2=\"Eilean Siar Local Authority\"),OR($F187=1,$F187=5)),0,new_yllv2(VALUE(LEFT(Options!$B$24,2)),$C187,$D187,$E187,$F187,2016,$I187+$J187,1,$H187,$G187*$H187,Options!$B$8)))","v":5709.4772458528996},{"$f":"IF(AND(OR(Calculations!$E$2=\"Orkney Health Board\",Calculations!$E$2=\"Orkney Islands Local Authority\"),$F187=1),0,IF(AND(OR(Calculations!$E$2=\"Shetland Health Board\",Calculations!$E$2=\"Western Isles Health Board\",Calculations!$E$2=\"Shetland Islands Local Authority\",Calculations!$E$2=\"Eilean Siar Local Authority\"),OR($F187=1,$F187=5)),0,hosp_count(VALUE(LEFT(Options!$B$24,2)),$C187,$E187,$F187,2016,$I187,1,$H187,$G187*$H187, Options!$B$8)))","v":10706.0606319744},{"$f":"IF(AND(OR(Calculations!$E$2=\"Orkney Health Board\",Calculations!$E$2=\"Orkney Islands Local Authority\"),$F187=1),0,IF(AND(OR(Calculations!$E$2=\"Shetland Health Board\",Calculations!$E$2=\"Western Isles Health Board\",Calculations!$E$2=\"Shetland Islands Local Authority\",Calculations!$E$2=\"Eilean Siar Local Authority\"),OR($F187=1,$F187=5)),0,hosp_count(VALUE(LEFT(Options!$B$24,2)),$C187,$E187,$F187,2016,$I187+$J187,1,$H187,$G187*$H187, Options!$B$8)))","v":10670.335204601801},{"$f":"IF(AND(OR(Calculations!$E$2=\"Orkney Health Board\",Calculations!$E$2=\"Orkney Islands Local Authority\"),$F187=1),0,IF(AND(OR(Calculations!$E$2=\"Shetland Health Board\",Calculations!$E$2=\"Western Isles Health Board\",Calculations!$E$2=\"Shetland Islands Local Authority\",Calculations!$E$2=\"Eilean Siar Local Authority\"),OR($F187=1,$F187=5)),0,prem_mort(VALUE(LEFT(Options!$B$24,2)),$C187,$E187,$F187,2016,$I187,1,$H187,$G187*$H187,Options!$B$8)))","v":333.83324707129998},{"$f":"IF(AND(OR(Calculations!$E$2=\"Orkney Health Board\",Calculations!$E$2=\"Orkney Islands Local Authority\"),$F187=1),0,IF(AND(OR(Calculations!$E$2=\"Shetland Health Board\",Calculations!$E$2=\"Western Isles Health Board\",Calculations!$E$2=\"Shetland Islands Local Authority\",Calculations!$E$2=\"Eilean Siar Local Authority\"),OR($F187=1,$F187=5)),0,prem_mort(VALUE(LEFT(Options!$B$24,2)),$C187,$E187,$F187,2016,$I187+$J187,1,$H187,$G187*$H187,Options!$B$8)))","v":333.30275808200003},956.87126539583801,955.35071681380418,16391.207646844476,16365.160645072516,30686.942880000002,30584.542549305781,956.87126539583801,955.35071681380418,5262791.9596771095,5254428.9424759233,90151642.057644621,90008383.547898844,168778185.84,168214984.02118179,5262791.9596771095,5254428.9424759233,5500]
[null,"Female 70-74",71.938164,86.248159999999999,"female",4,{"$f":"HLOOKUP(Calculations!$E$2,'Prevalence Rates'!$C$3:$BC$249,'Prevalence Rates'!$BD188,FALSE)","v":6.2381348242967219E-2},{"$f":"HLOOKUP(Calculations!$E$2,'Population 2016'!$C$3:$BC$249,'Population 2016'!BD188,FALSE)","v":26320},0,{"$f":"HLOOKUP(Results!E$4,Targeting!$C$3:$F$249,Targeting!$G188,FALSE)","v":779},{"$f":"IF(AND(OR(Calculations!$E$2=\"Orkney Health Board\",Calculations!$E$2=\"Orkney Islands Local Authority\"),$F188=1),0,IF(AND(OR(Calculations!$E$2=\"Shetland Health Board\",Calculations!$E$2=\"Western Isles Health Board\",Calculations!$E$2=\"Shetland Islands Local Authority\",Calculations!$E$2=\"Eilean Siar Local Authority\"),OR($F188=1,$F188=5)),0,new_ci(VALUE(LEFT(Options!$B$24,2)),$C188,$E188,$F188,2016,$I188,1,$H188,$G188*$H188,Options!$B$8)))","v":380.28580086279999},{"$f":"IF(AND(OR(Calculations!$E$2=\"Orkney Health Board\",Calculations!$E$2=\"Orkney Islands Local Authority\"),$F188=1),0,IF(AND(OR(Calculations!$E$2=\"Shetland Health Board\",Calculations!$E$2=\"Western Isles Health Board\",Calculations!$E$2=\"Shetland Islands Local Authority\",Calculations!$E$2=\"Eilean Siar Local Authority\"),OR($F188=1,$F188=5)),0,new_ci(VALUE(LEFT(Options!$B$24,2)),$C188,$E188,$F188,2016,$I188+$J188,1,$H188,$G188*$H188,Options!$B$8)))","v":379.68404050079999},{"$f":"IF(AND(OR(Calculations!$E$2=\"Orkney Health Board\",Calculations!$E$2=\"Orkney Islands Local Authority\"),$F188=1),0,IF(AND(OR(Calculations!$E$2=\"Shetland Health Board\",Calculations!$E$2=\"Western Isles Health Board\",Calculations!$E$2=\"Shetland Islands Local Authority\",Calculations!$E$2=\"Eilean Siar Local Authority\"),OR($F188=1,$F188=5)),0,new_yllv2(VALUE(LEFT(Options!$B$24,2)),$C188,$D188,$E188,$F188,2016,$I188,1,$H188,$G188*$H188,Options!$B$8)))","v":5061.6024883406999},{"$f":"IF(AND(OR(Calculations!$E$2=\"Orkney Health Board\",Calculations!$E$2=\"Orkney Islands Local Authority\"),$F188=1),0,IF(AND(OR(Calculations!$E$2=\"Shetland Health Board\",Calculations!$E$2=\"Western Isles Health Board\",Calculations!$E$2=\"Shetland Islands Local Authority\",Calculations!$E$2=\"Eilean Siar Local Authority\"),OR($F188=1,$F188=5)),0,new_yllv2(VALUE(LEFT(Options!$B$24,2)),$C188,$D188,$E188,$F188,2016,$I188+$J188,1,$H188,$G188*$H188,Options!$B$8)))","v":5053.5930603295001},{"$f":"IF(AND(OR(Calculations!$E$2=\"Orkney Health Board\",Calculations!$E$2=\"Orkney Islands Local Authority\"),$F188=1),0,IF(AND(OR(Calculations!$E$2=\"Shetland Health Board\",Calculations!$E$2=\"Western Isles Health Board\",Calculations!$E$2=\"Shetland Islands Local Authority\",Calculations!$E$2=\"Eilean Siar Local Authority\"),OR($F188=1,$F188=5)),0,hosp_count(VALUE(LEFT(Options!$B$24,2)),$C188,$E188,$F188,2016,$I188,1,$H188,$G188*$H188, Options!$B$8)))","v":9130.3243339839992},{"$f":"IF(AND(OR(Calculations!$E$2=\"Orkney Health Board\",Calculations!$E$2=\"Orkney Islands Local Authority\"),$F188=1),0,IF(AND(OR(Calculations!$E$2=\"Shetland Health Board\",Calculations!$E$2=\"Western Isles Health Board\",Calculations!$E$2=\"Shetland Islands Local Authority\",Calculations!$E$2=\"Eilean Siar Local Authority\"),OR($F188=1,$F188=5)),0,hosp_count(VALUE(LEFT(Options!$B$24,2)),$C188,$E188,$F188,2016,$I188+$J188,1,$H188,$G188*$H188, Options!$B$8)))","v":9099.8691474677998},{"$f":"IF(AND(OR(Calculations!$E$2=\"Orkney Health Board\",Calculations!$E$2=\"Orkney Islands Local Authority\"),$F188=1),0,IF(AND(OR(Calculations!$E$2=\"Shetland Health Board\",Calculations!$E$2=\"Western Isles Health Board\",Calculations!$E$2=\"Shetland Islands Local Authority\",Calculations!$E$2=\"Eilean Siar Local Authority\"),OR($F188=1,$F188=5)),0,prem_mort(VALUE(LEFT(Options!$B$24,2)),$C188,$E188,$F188,2016,$I188,1,$H188,$G188*$H188,Options!$B$8)))","v":380.28580086279999},{"$f":"IF(AND(OR(Calculations!$E$2=\"Orkney Health Board\",Calculations!$E$2=\"Orkney Islands Local Authority\"),$F188=1),0,IF(AND(OR(Calculations!$E$2=\"Shetland Health Board\",Calculations!$E$2=\"Western Isles Health Board\",Calculations!$E$2=\"Shetland Islands Local Authority\",Calculations!$E$2=\"Eilean Siar Local Authority\"),OR($F188=1,$F188=5)),0,prem_mort(VALUE(LEFT(Options!$B$24,2)),$C188,$E188,$F188,2016,$I188+$J188,1,$H188,$G188*$H188,Options!$B$8)))","v":379.68404050079999},1444.8548664999998,1442.5685429361702,19231.012493695667,19200.581536206308,34689.682119999998,34573.970925029636,1444.8548664999998,1442.5685429361702,7224274.3324999996,7212842.7146808505,{"$f":"U188*$AI188","v":96155062.468478337},{"$f":"V188*$AI188","v":96002907.68103154},{"$f":"W188*$AI188","v":173448410.59999999},{"$f":"X188*$AI188","v":172869854.62514818},{"$f":"Y188*$AI188","v":7224274.3324999996},{"$f":"Z188*$AI188","v":7212842.7146808505},5000]
[null,"Female 75-79",76.942824999999999,87.812830000000005,"female",4,{"$f":"HLOOKUP(Calculations!$E$2,'Prevalence Rates'!$C$3:$BC$249,'Prevalence Rates'!$BD189,FALSE)","v":6.2381348242967219E-2},{"$f":"HLOOKUP(Calculations!$E$2,'Population 2016'!$C$3:$BC$249,'Population 2016'!BD189,FALSE)","v":20708},0,{"$f":"HLOOKUP(Results!E$4,Targeting!$C$3:$F$249,Targeting!$G189,FALSE)","v":613},{"$f":"IF(AND(OR(Calculations!$E$2=\"Orkney Health Board\",Calculations!$E$2=\"Orkney Islands Local Authority\"),$F189=1),0,IF(AND(OR(Calculations!$E$2=\"Shetland Health Board\",Calculations!$E$2=\"Western Isles Health Board\",Calculations!$E$2=\"Shetland Islands Local Authority\",Calculations!$E$2=\"Eilean Siar Local Authority\"),OR($F189=1,$F189=5)),0,new_ci(VALUE(LEFT(Options!$B$24,2)),$C189,$E189,$F189,2016,$I189,1,$H189,$G189*$H189,Options!$B$8)))","v":456.19004855639997},{"$f":"IF(AND(OR(Calculations!$E$2=\"Orkney Health Board\",Calculations!$E$2=\"Orkney Islands Local Authority\"),$F189=1),0,IF(AND(OR(Calculations!$E$2=\"Shetland Health Board\",Calculations!$E$2=\"Western Isles Health Board\",Calculations!$E$2=\"Shetland Islands Local Authority\",Calculations!$E$2=\"Eilean Siar Local Authority\"),OR($F189=1,$F189=5)),0,new_ci(VALUE(LEFT(Options!$B$24,2)),$C189,$E189,$F189,2016,$I189+$J189,1,$H189,$G189*$H189,Options!$B$8)))","v":455.47236709809999},{"$f":"IF(AND(OR(Calculations!$E$2=\"Orkney Health Board\",Calculations!$E$2=\"Orkney Islands Local Authority\"),$F189=1),0,IF(AND(OR(Calculations!$E$2=\"Shetland Health Board\",Calculations!$E$2=\"Western Isles Health Board\",Calculations!$E$2=\"Shetland Islands Local Authority\",Calculations!$E$2=\"Eilean Siar Local Authority\"),OR($F189=1,$F189=5)),0,new_yllv2(VALUE(LEFT(Options!$B$24,2)),$C189,$D189,$E189,$F189,2016,$I189,1,$H189,$G189*$H189,Options!$B$8)))","v":4502.5980602018999},{"$f":"IF(AND(OR(Calculations!$E$2=\"Orkney Health Board\",Calculations!$E$2=\"Orkney Islands Local Authority\"),$F189=1),0,IF(AND(OR(Calculations!$E$2=\"Shetland Health Board\",Calculations!$E$2=\"Western Isles Health Board\",Calculations!$E$2=\"Shetland Islands Local Authority\",Calculations!$E$2=\"Eilean Siar Local Authority\"),OR($F189=1,$F189=5)),0,new_yllv2(VALUE(LEFT(Options!$B$24,2)),$C189,$D189,$E189,$F189,2016,$I189+$J189,1,$H189,$G189*$H189,Options!$B$8)))","v":4495.5145406201},{"$f":"IF(AND(OR(Calculations!$E$2=\"Orkney Health Board\",Calculations!$E$2=\"Orkney Islands Local Authority\"),$F189=1),0,IF(AND(OR(Calculations!$E$2=\"Shetland Health Board\",Calculations!$E$2=\"Western Isles Health Board\",Calculations!$E$2=\"Shetland Islands Local Authority\",Calculations!$E$2=\"Eilean Siar Local Authority\"),OR($F189=1,$F189=5)),0,hosp_count(VALUE(LEFT(Options!$B$24,2)),$C189,$E189,$F189,2016,$I189,1,$H189,$G189*$H189, Options!$B$8)))","v":8147.2292633240004},{"$f":"IF(AND(OR(Calculations!$E$2=\"Orkney Health Board\",Calculations!$E$2=\"Orkney Islands Local Authority\"),$F189=1),0,IF(AND(OR(Calculations!$E$2=\"Shetland Health Board\",Calculations!$E$2=\"Western Isles Health Board\",Calculations!$E$2=\"Shetland Islands Local Authority\",Calculations!$E$2=\"Eilean Siar Local Authority\"),OR($F189=1,$F189=5)),0,hosp_count(VALUE(LEFT(Options!$B$24,2)),$C189,$E189,$F189,2016,$I189+$J189,1,$H189,$G189*$H189, Options!$B$8)))","v":8120.0488696850998},{"$f":"IF(AND(OR(Calculations!$E$2=\"Orkney Health Board\",Calculations!$E$2=\"Orkney Islands Local Authority\"),$F189=1),0,IF(AND(OR(Calculations!$E$2=\"Shetland Health Board\",Calculations!$E$2=\"Western Isles Health Board\",Calculations!$E$2=\"Shetland Islands Local Authority\",Calculations!$E$2=\"Eilean Siar Local Authority\"),OR($F189=1,$F189=5)),0,prem_mort(VALUE(LEFT(Options!$B$24,2)),$C189,$E189,$F189,2016,$I189,1,$H189,$G189*$H189,Options!$B$8)))","v":0},{"$f":"IF(AND(OR(Calculations!$E$2=\"Orkney Health Board\",Calculations!$E$2=\"Orkney Islands Local Authority\"),$F189=1),0,IF(AND(OR(Calculations!$E$2=\"Shetland Health Board\",Calculations!$E$2=\"Western Isles Health Board\",Calculations!$E$2=\"Shetland Islands Local Authority\",Calculations!$E$2=\"Eilean Siar Local Authority\"),OR($F189=1,$F189=5)),0,prem_mort(VALUE(LEFT(Options!$B$24,2)),$C189,$E189,$F189,2016,$I189+$J189,1,$H189,$G189*$H189,Options!$B$8)))","v":0},{"$f":"K189*100000/$H189","v":2202.965272147962},{"$f":"L189*100000/$H189","v":2199.4995513719332},{"$f":"M189*100000/$H189","v":21743.278250926694},{"$f":"N189*100000/$H189","v":21709.071569538824},{"$f":"O189*100000/$H189","v":39343.390300000006},{"$f":"P189*100000/$H189","v":39212.134777308769},{"$f":"Q189*100000/$H189","v":0},{"$f":"R189*100000/$H189","v":0},{"$f":"S189*$AI189","v":8811861.0885918476},{"$f":"T189*$AI189","v":8797998.2054877318},86973113.003706783,86836286.278155297,157373561.20000002,156848539.10923508,0,0,4000]
[null,"Female 80-84",81.856712000000002,89.736710000000002,"female",4,{"$f":"HLOOKUP(Calculations!$E$2,'Prevalence Rates'!$C$3:$BC$249,'Prevalence Rates'!$BD190,FALSE)","v":6.2381348242967219E-2},{"$f":"HLOOKUP(Calculations!$E$2,'Population 2016'!$C$3:$BC$249,'Population 2016'!BD190,FALSE)","v":15634},0,{"$f":"HLOOKUP(Results!E$4,Targeting!$C$3:$F$249,Targeting!$G190,FALSE)","v":463},{"$f":"IF(AND(OR(Calculations!$E$2=\"Orkney Health Board\",Calculations!$E$2=\"Orkney Islands Local Authority\"),$F190=1),0,IF(AND(OR(Calculations!$E$2=\"Shetland Health Board\",Calculations!$E$2=\"Western Isles Health Board\",Calculations!$E$2=\"Shetland Islands Local Authority\",Calculations!$E$2=\"Eilean Siar Local Authority\"),OR($F190=1,$F190=5)),0,new_ci(VALUE(LEFT(Options!$B$24,2)),$C190,$E190,$F190,2016,$I190,1,$H190,$G190*$H190,Options!$B$8)))","v":520.08820678749998},{"$f":"IF(AND(OR(Calculations!$E$2=\"Orkney Health Board\",Calculations!$E$2=\"Orkney Islands Local Authority\"),$F190=1),0,IF(AND(OR(Calculations!$E$2=\"Shetland Health Board\",Calculations!$E$2=\"Western Isles Health Board\",Calculations!$E$2=\"Shetland Islands Local Authority\",Calculations!$E$2=\"Eilean Siar Local Authority\"),OR($F190=1,$F190=5)),0,new_ci(VALUE(LEFT(Options!$B$24,2)),$C190,$E190,$F190,2016,$I190+$J190,1,$H190,$G190*$H190,Options!$B$8)))","v":519.27694953100001},{"$f":"IF(AND(OR(Calculations!$E$2=\"Orkney Health Board\",Calculations!$E$2=\"Orkney Islands Local Authority\"),$F190=1),0,IF(AND(OR(Calculations!$E$2=\"Shetland Health Board\",Calculations!$E$2=\"Western Isles Health Board\",Calculations!$E$2=\"Shetland Islands Local Authority\",Calculations!$E$2=\"Eilean Siar Local Authority\"),OR($F190=1,$F190=5)),0,new_yllv2(VALUE(LEFT(Options!$B$24,2)),$C190,$D190,$E190,$F190,2016,$I190,1,$H190,$G190*$H190,Options!$B$8)))","v":3578.2058225216001},{"$f":"IF(AND(OR(Calculations!$E$2=\"Orkney Health Board\",Calculations!$E$2=\"Orkney Islands Local Authority\"),$F190=1),0,IF(AND(OR(Calculations!$E$2=\"Shetland Health Board\",Calculations!$E$2=\"Western Isles Health Board\",Calculations!$E$2=\"Shetland Islands Local Authority\",Calculations!$E$2=\"Eilean Siar Local Authority\"),OR($F190=1,$F190=5)),0,new_yllv2(VALUE(LEFT(Options!$B$24,2)),$C190,$D190,$E190,$F190,2016,$I190+$J190,1,$H190,$G190*$H190,Options!$B$8)))","v":3572.6243742194001},{"$f":"IF(AND(OR(Calculations!$E$2=\"Orkney Health Board\",Calculations!$E$2=\"Orkney Islands Local Authority\"),$F190=1),0,IF(AND(OR(Calculations!$E$2=\"Shetland Health Board\",Calculations!$E$2=\"Western Isles Health Board\",Calculations!$E$2=\"Shetland Islands Local Authority\",Calculations!$E$2=\"Eilean Siar Local Authority\"),OR($F190=1,$F190=5)),0,hosp_count(VALUE(LEFT(Options!$B$24,2)),$C190,$E190,$F190,2016,$I190,1,$H190,$G190*$H190, Options!$B$8)))","v":6960.2000923551996},{"$f":"IF(AND(OR(Calculations!$E$2=\"Orkney Health Board\",Calculations!$E$2=\"Orkney Islands Local Authority\"),$F190=1),0,IF(AND(OR(Calculations!$E$2=\"Shetland Health Board\",Calculations!$E$2=\"Western Isles Health Board\",Calculations!$E$2=\"Shetland Islands Local Authority\",Calculations!$E$2=\"Eilean Siar Local Authority\"),OR($F190=1,$F190=5)),0,hosp_count(VALUE(LEFT(Options!$B$24,2)),$C190,$E190,$F190,2016,$I190+$J190,1,$H190,$G190*$H190, Options!$B$8)))","v":6936.9697241395997},{"$f":"IF(AND(OR(Calculations!$E$2=\"Orkney Health Board\",Calculations!$E$2=\"Orkney Islands Local Authority\"),$F190=1),0,IF(AND(OR(Calculations!$E$2=\"Shetland Health Board\",Calculations!$E$2=\"Western Isles Health Board\",Calculations!$E$2=\"Shetland Islands Local Authority\",Calculations!$E$2=\"Eilean Siar Local Authority\"),OR($F190=1,$F190=5)),0,prem_mort(VALUE(LEFT(Options!$B$24,2)),$C190,$E190,$F190,2016,$I190,1,$H190,$G190*$H190,Options!$B$8)))","v":0},{"$f":"IF(AND(OR(Calculations!$E$2=\"Orkney Health Board\",Calculations!$E$2=\"Orkney Islands Local Authority\"),$F190=1),0,IF(AND(OR(Calculations!$E$2=\"Shetland Health Board\",Calculations!$E$2=\"Western Isles Health Board\",Calculations!$E$2=\"Shetland Islands Local Authority\",Calculations!$E$2=\"Eilean Siar Local Authority\"),OR($F190=1,$F190=5)),0,prem_mort(VALUE(LEFT(Options!$B$24,2)),$C190,$E190,$F190,2016,$I190+$J190,1,$H190,$G190*$H190,Options!$B$8)))","v":0},3326.6483739765895,3321.4593164321354,22887.334159662274,22851.633454134579,44519.637280000003,44371.048510551358,0,0,8316620.9349414734,8303648.2910803389,57218335.399155684,57129083.635336444,111299093.2,110927621.27637839,0,0,2500]
[null,"Female 85-89",86.730819999999994,92.220819999999989,"female",4,{"$f":"HLOOKUP(Calculations!$E$2,'Prevalence Rates'!$C$3:$BC$249,'Prevalence Rates'!$BD191,FALSE)","v":6.2381348242967219E-2},{"$f":"HLOOKUP(Calculations!$E$2,'Population 2016'!$C$3:$BC$249,'Population 2016'!BD191,FALSE)","v":9988},0,{"$f":"HLOOKUP(Results!E$4,Targeting!$C$3:$F$249,Targeting!$G191,FALSE)","v":296},{"$f":"IF(AND(OR(Calculations!$E$2=\"Orkney Health Board\",Calculations!$E$2=\"Orkney Islands Local Authority\"),$F191=1),0,IF(AND(OR(Calculations!$E$2=\"Shetland Health Board\",Calculations!$E$2=\"Western Isles Health Board\",Calculations!$E$2=\"Shetland Islands Local Authority\",Calculations!$E$2=\"Eilean Siar Local Authority\"),OR($F191=1,$F191=5)),0,new_ci(VALUE(LEFT(Options!$B$24,2)),$C191,$E191,$F191,2016,$I191,1,$H191,$G191*$H191,Options!$B$8)))","v":498.60736102480001},{"$f":"IF(AND(OR(Calculations!$E$2=\"Orkney Health Board\",Calculations!$E$2=\"Orkney Islands Local Authority\"),$F191=1),0,IF(AND(OR(Calculations!$E$2=\"Shetland Health Board\",Calculations!$E$2=\"Western Isles Health Board\",Calculations!$E$2=\"Shetland Islands Local Authority\",Calculations!$E$2=\"Eilean Siar Local Authority\"),OR($F191=1,$F191=5)),0,new_ci(VALUE(LEFT(Options!$B$24,2)),$C191,$E191,$F191,2016,$I191+$J191,1,$H191,$G191*$H191,Options!$B$8)))","v":497.83950659599998},{"$f":"IF(AND(OR(Calculations!$E$2=\"Orkney Health Board\",Calculations!$E$2=\"Orkney Islands Local Authority\"),$F191=1),0,IF(AND(OR(Calculations!$E$2=\"Shetland Health Board\",Calculations!$E$2=\"Western Isles Health Board\",Calculations!$E$2=\"Shetland Islands Local Authority\",Calculations!$E$2=\"Eilean Siar Local Authority\"),OR($F191=1,$F191=5)),0,new_yllv2(VALUE(LEFT(Options!$B$24,2)),$C191,$D191,$E191,$F191,2016,$I191,1,$H191,$G191*$H191,Options!$B$8)))","v":2238.7470510013},{"$f":"IF(AND(OR(Calculations!$E$2=\"Orkney Health Board\",Calculations!$E$2=\"Orkney Islands Local Authority\"),$F191=1),0,IF(AND(OR(Calculations!$E$2=\"Shetland Health Board\",Calculations!$E$2=\"Western Isles Health Board\",Calculations!$E$2=\"Shetland Islands Local Authority\",Calculations!$E$2=\"Eilean Siar Local Authority\"),OR($F191=1,$F191=5)),0,new_yllv2(VALUE(LEFT(Options!$B$24,2)),$C191,$D191,$E191,$F191,2016,$I191+$J191,1,$H191,$G191*$H191,Options!$B$8)))","v":2235.2993846160002},{"$f":"IF(AND(OR(Calculations!$E$2=\"Orkney Health Board\",Calculations!$E$2=\"Orkney Islands Local Authority\"),$F191=1),0,IF(AND(OR(Calculations!$E$2=\"Shetland Health Board\",Calculations!$E$2=\"Western Isles Health Board\",Calculations!$E$2=\"Shetland Islands Local Authority\",Calculations!$E$2=\"Eilean Siar Local Authority\"),OR($F191=1,$F191=5)),0,hosp_count(VALUE(LEFT(Options!$B$24,2)),$C191,$E191,$F191,2016,$I191,1,$H191,$G191*$H191, Options!$B$8)))","v":5026.6128475639998},{"$f":"IF(AND(OR(Calculations!$E$2=\"Orkney Health Board\",Calculations!$E$2=\"Orkney Islands Local Authority\"),$F191=1),0,IF(AND(OR(Calculations!$E$2=\"Shetland Health Board\",Calculations!$E$2=\"Western Isles Health Board\",Calculations!$E$2=\"Shetland Islands Local Authority\",Calculations!$E$2=\"Eilean Siar Local Authority\"),OR($F191=1,$F191=5)),0,hosp_count(VALUE(LEFT(Options!$B$24,2)),$C191,$E191,$F191,2016,$I191+$J191,1,$H191,$G191*$H191, Options!$B$8)))","v":5009.8243396202997},{"$f":"IF(AND(OR(Calculations!$E$2=\"Orkney Health Board\",Calculations!$E$2=\"Orkney Islands Local Authority\"),$F191=1),0,IF(AND(OR(Calculations!$E$2=\"Shetland Health Board\",Calculations!$E$2=\"Western Isles Health Board\",Calculations!$E$2=\"Shetland Islands Local Authority\",Calculations!$E$2=\"Eilean Siar Local Authority\"),OR($F191=1,$F191=5)),0,prem_mort(VALUE(LEFT(Options!$B$24,2)),$C191,$E191,$F191,2016,$I191,1,$H191,$G191*$H191,Options!$B$8)))","v":0},{"$f":"IF(AND(OR(Calculations!$E$2=\"Orkney Health Board\",Calculations!$E$2=\"Orkney Islands Local Authority\"),$F191=1),0,IF(AND(OR(Calculations!$E$2=\"Shetland Health Board\",Calculations!$E$2=\"Western Isles Health Board\",Calculations!$E$2=\"Shetland Islands Local Authority\",Calculations!$E$2=\"Eilean Siar Local Authority\"),OR($F191=1,$F191=5)),0,prem_mort(VALUE(LEFT(Options!$B$24,2)),$C191,$E191,$F191,2016,$I191+$J191,1,$H191,$G191*$H191,Options!$B$8)))","v":0},4992.0640871525829,4984.3763175410486,22414.367751314578,22379.849665758913,50326.520299999996,50158.433516422709,0,0,7488096.1307288744,7476564.4763115728,33621551.626971863,33569774.498638369,75489780.449999988,75237650.274634063,0,0,1500]
[null,"Female 90+",92.779342999999997,96.279340000000005,"female",4,{"$f":"HLOOKUP(Calculations!$E$2,'Prevalence Rates'!$C$3:$BC$249,'Prevalence Rates'!$BD192,FALSE)","v":6.2381348242967219E-2},{"$f":"HLOOKUP(Calculations!$E$2,'Population 2016'!$C$3:$BC$249,'Population 2016'!BD192,FALSE)","v":5998},0,{"$f":"HLOOKUP(Results!E$4,Targeting!$C$3:$F$249,Targeting!$G192,FALSE)","v":178},{"$f":"IF(AND(OR(Calculations!$E$2=\"Orkney Health Board\",Calculations!$E$2=\"Orkney Islands Local Authority\"),$F192=1),0,IF(AND(OR(Calculations!$E$2=\"Shetland Health Board\",Calculations!$E$2=\"Western Isles Health Board\",Calculations!$E$2=\"Shetland Islands Local Authority\",Calculations!$E$2=\"Eilean Siar Local Authority\"),OR($F192=1,$F192=5)),0,new_ci(VALUE(LEFT(Options!$B$24,2)),$C192,$E192,$F192,2016,$I192,1,$H192,$G192*$H192,Options!$B$8)))","v":492.34788044769999},{"$f":"IF(AND(OR(Calculations!$E$2=\"Orkney Health Board\",Calculations!$E$2=\"Orkney Islands Local Authority\"),$F192=1),0,IF(AND(OR(Calculations!$E$2=\"Shetland Health Board\",Calculations!$E$2=\"Western Isles Health Board\",Calculations!$E$2=\"Shetland Islands Local Authority\",Calculations!$E$2=\"Eilean Siar Local Authority\"),OR($F192=1,$F192=5)),0,new_ci(VALUE(LEFT(Options!$B$24,2)),$C192,$E192,$F192,2016,$I192+$J192,1,$H192,$G192*$H192,Options!$B$8)))","v":491.60872514149997},{"$f":"IF(AND(OR(Calculations!$E$2=\"Orkney Health Board\",Calculations!$E$2=\"Orkney Islands Local Authority\"),$F192=1),0,IF(AND(OR(Calculations!$E$2=\"Shetland Health Board\",Calculations!$E$2=\"Western Isles Health Board\",Calculations!$E$2=\"Shetland Islands Local Authority\",Calculations!$E$2=\"Eilean Siar Local Authority\"),OR($F192=1,$F192=5)),0,new_yllv2(VALUE(LEFT(Options!$B$24,2)),$C192,$D192,$E192,$F192,2016,$I192,1,$H192,$G192*$H192,Options!$B$8)))","v":1230.8682240756},{"$f":"IF(AND(OR(Calculations!$E$2=\"Orkney Health Board\",Calculations!$E$2=\"Orkney Islands Local Authority\"),$F192=1),0,IF(AND(OR(Calculations!$E$2=\"Shetland Health Board\",Calculations!$E$2=\"Western Isles Health Board\",Calculations!$E$2=\"Shetland Islands Local Authority\",Calculations!$E$2=\"Eilean Siar Local Authority\"),OR($F192=1,$F192=5)),0,new_yllv2(VALUE(LEFT(Options!$B$24,2)),$C192,$D192,$E192,$F192,2016,$I192+$J192,1,$H192,$G192*$H192,Options!$B$8)))","v":1229.0203380276},{"$f":"IF(AND(OR(Calculations!$E$2=\"Orkney Health Board\",Calculations!$E$2=\"Orkney Islands Local Authority\"),$F192=1),0,IF(AND(OR(Calculations!$E$2=\"Shetland Health Board\",Calculations!$E$2=\"Western Isles Health Board\",Calculations!$E$2=\"Shetland Islands Local Authority\",Calculations!$E$2=\"Eilean Siar Local Authority\"),OR($F192=1,$F192=5)),0,hosp_count(VALUE(LEFT(Options!$B$24,2)),$C192,$E192,$F192,2016,$I192,1,$H192,$G192*$H192, Options!$B$8)))","v":3514.6176669343999},{"$f":"IF(AND(OR(Calculations!$E$2=\"Orkney Health Board\",Calculations!$E$2=\"Orkney Islands Local Authority\"),$F192=1),0,IF(AND(OR(Calculations!$E$2=\"Shetland Health Board\",Calculations!$E$2=\"Western Isles Health Board\",Calculations!$E$2=\"Shetland Islands Local Authority\",Calculations!$E$2=\"Eilean Siar Local Authority\"),OR($F192=1,$F192=5)),0,hosp_count(VALUE(LEFT(Options!$B$24,2)),$C192,$E192,$F192,2016,$I192+$J192,1,$H192,$G192*$H192, Options!$B$8)))","v":3502.8628704440998},{"$f":"IF(AND(OR(Calculations!$E$2=\"Orkney Health Board\",Calculations!$E$2=\"Orkney Islands Local Authority\"),$F192=1),0,IF(AND(OR(Calculations!$E$2=\"Shetland Health Board\",Calculations!$E$2=\"Western Isles Health Board\",Calculations!$E$2=\"Shetland Islands Local Authority\",Calculations!$E$2=\"Eilean Siar Local Authority\"),OR($F192=1,$F192=5)),0,prem_mort(VALUE(LEFT(Options!$B$24,2)),$C192,$E192,$F192,2016,$I192,1,$H192,$G192*$H192,Options!$B$8)))","v":0},{"$f":"IF(AND(OR(Calculations!$E$2=\"Orkney Health Board\",Calculations!$E$2=\"Orkney Islands Local Authority\"),$F192=1),0,IF(AND(OR(Calculations!$E$2=\"Shetland Health Board\",Calculations!$E$2=\"Western Isles Health Board\",Calculations!$E$2=\"Shetland Islands Local Authority\",Calculations!$E$2=\"Eilean Siar Local Authority\"),OR($F192=1,$F192=5)),0,prem_mort(VALUE(LEFT(Options!$B$24,2)),$C192,$E192,$F192,2016,$I192+$J192,1,$H192,$G192*$H192,Options!$B$8)))","v":0},8208.5341855235074,8196.2108226325436,20521.310838206067,20490.502467949318,58596.493280000002,58400.514678961321,0,0,8208534.1855235072,8196210.8226325437,20521310.838206068,20490502.46794932,58596493.280000001,58400514.678961322,0,0,1000]
[null,"Male 0-4",2.0320822999999999,77.402082000000007,"male",4,{"$f":"HLOOKUP(Calculations!$E$2,'Prevalence Rates'!$C$3:$BC$249,'Prevalence Rates'!$BD193,FALSE)","v":0},{"$f":"HLOOKUP(Calculations!$E$2,'Population 2016'!$C$3:$BC$249,'Population 2016'!BD193,FALSE)","v":0},0,{"$f":"HLOOKUP(Results!E$4,Targeting!$C$3:$F$249,Targeting!$G193,FALSE)","v":0},{"$f":"IF(AND(OR(Calculations!$E$2=\"Orkney Health Board\",Calculations!$E$2=\"Orkney Islands Local Authority\"),$F193=1),0,IF(AND(OR(Calculations!$E$2=\"Shetland Health Board\",Calculations!$E$2=\"Western Isles Health Board\",Calculations!$E$2=\"Shetland Islands Local Authority\",Calculations!$E$2=\"Eilean Siar Local Authority\"),OR($F193=1,$F193=5)),0,new_ci(VALUE(LEFT(Options!$B$24,2)),$C193,$E193,$F193,2016,$I193,1,$H193,$G193*$H193,Options!$B$8)))","v":{"$error":"#VALUE!"}},{"$f":"IF(AND(OR(Calculations!$E$2=\"Orkney Health Board\",Calculations!$E$2=\"Orkney Islands Local Authority\"),$F193=1),0,IF(AND(OR(Calculations!$E$2=\"Shetland Health Board\",Calculations!$E$2=\"Western Isles Health Board\",Calculations!$E$2=\"Shetland Islands Local Authority\",Calculations!$E$2=\"Eilean Siar Local Authority\"),OR($F193=1,$F193=5)),0,new_ci(VALUE(LEFT(Options!$B$24,2)),$C193,$E193,$F193,2016,$I193+$J193,1,$H193,$G193*$H193,Options!$B$8)))","v":{"$error":"#VALUE!"}},{"$f":"IF(AND(OR(Calculations!$E$2=\"Orkney Health Board\",Calculations!$E$2=\"Orkney Islands Local Authority\"),$F193=1),0,IF(AND(OR(Calculations!$E$2=\"Shetland Health Board\",Calculations!$E$2=\"Western Isles Health Board\",Calculations!$E$2=\"Shetland Islands Local Authority\",Calculations!$E$2=\"Eilean Siar Local Authority\"),OR($F193=1,$F193=5)),0,new_yllv2(VALUE(LEFT(Options!$B$24,2)),$C193,$D193,$E193,$F193,2016,$I193,1,$H193,$G193*$H193,Options!$B$8)))","v":{"$error":"#VALUE!"}},{"$f":"IF(AND(OR(Calculations!$E$2=\"Orkney Health Board\",Calculations!$E$2=\"Orkney Islands Local Authority\"),$F193=1),0,IF(AND(OR(Calculations!$E$2=\"Shetland Health Board\",Calculations!$E$2=\"Western Isles Health Board\",Calculations!$E$2=\"Shetland Islands Local Authority\",Calculations!$E$2=\"Eilean Siar Local Authority\"),OR($F193=1,$F193=5)),0,new_yllv2(VALUE(LEFT(Options!$B$24,2)),$C193,$D193,$E193,$F193,2016,$I193+$J193,1,$H193,$G193*$H193,Options!$B$8)))","v":{"$error":"#VALUE!"}},{"$f":"IF(AND(OR(Calculations!$E$2=\"Orkney Health Board\",Calculations!$E$2=\"Orkney Islands Local Authority\"),$F193=1),0,IF(AND(OR(Calculations!$E$2=\"Shetland Health Board\",Calculations!$E$2=\"Western Isles Health Board\",Calculations!$E$2=\"Shetland Islands Local Authority\",Calculations!$E$2=\"Eilean Siar Local Authority\"),OR($F193=1,$F193=5)),0,hosp_count(VALUE(LEFT(Options!$B$24,2)),$C193,$E193,$F193,2016,$I193,1,$H193,$G193*$H193, Options!$B$8)))","v":{"$error":"#VALUE!"}},{"$f":"IF(AND(OR(Calculations!$E$2=\"Orkney Health Board\",Calculations!$E$2=\"Orkney Islands Local Authority\"),$F193=1),0,IF(AND(OR(Calculations!$E$2=\"Shetland Health Board\",Calculations!$E$2=\"Western Isles Health Board\",Calculations!$E$2=\"Shetland Islands Local Authority\",Calculations!$E$2=\"Eilean Siar Local Authority\"),OR($F193=1,$F193=5)),0,hosp_count(VALUE(LEFT(Options!$B$24,2)),$C193,$E193,$F193,2016,$I193+$J193,1,$H193,$G193*$H193, Options!$B$8)))","v":{"$error":"#VALUE!"}},{"$f":"IF(AND(OR(Calculations!$E$2=\"Orkney Health Board\",Calculations!$E$2=\"Orkney Islands Local Authority\"),$F193=1),0,IF(AND(OR(Calculations!$E$2=\"Shetland Health Board\",Calculations!$E$2=\"Western Isles Health Board\",Calculations!$E$2=\"Shetland Islands Local Authority\",Calculations!$E$2=\"Eilean Siar Local Authority\"),OR($F193=1,$F193=5)),0,prem_mort(VALUE(LEFT(Options!$B$24,2)),$C193,$E193,$F193,2016,$I193,1,$H193,$G193*$H193,Options!$B$8)))","v":{"$error":"#VALUE!"}},{"$f":"IF(AND(OR(Calculations!$E$2=\"Orkney Health Board\",Calculations!$E$2=\"Orkney Islands Local Authority\"),$F193=1),0,IF(AND(OR(Calculations!$E$2=\"Shetland Health Board\",Calculations!$E$2=\"Western Isles Health Board\",Calculations!$E$2=\"Shetland Islands Local Authority\",Calculations!$E$2=\"Eilean Siar Local Authority\"),OR($F193=1,$F193=5)),0,prem_mort(VALUE(LEFT(Options!$B$24,2)),$C193,$E193,$F193,2016,$I193+$J193,1,$H193,$G193*$H193,Options!$B$8)))","v":{"$error":"#VALUE!"}},{"$error":"#VALUE!"},{"$error":"#VALUE!"},{"$error":"#VALUE!"},{"$error":"#VALUE!"},{"$error":"#VALUE!"},{"$error":"#VALUE!"},{"$error":"#VALUE!"},{"$error":"#VALUE!"},{"$error":"#VALUE!"},{"$error":"#VALUE!"},{"$error":"#VALUE!"},{"$error":"#VALUE!"},{"$error":"#VALUE!"},{"$error":"#VALUE!"},{"$error":"#VALUE!"},{"$error":"#VALUE!"},5000]
[null,"Male 5-9",6.9784756000000003,77.398476000000002,"male",4,{"$f":"HLOOKUP(Calculations!$E$2,'Prevalence Rates'!$C$3:$BC$249,'Prevalence Rates'!$BD194,FALSE)","v":0},{"$f":"HLOOKUP(Calculations!$E$2,'Population 2016'!$C$3:$BC$249,'Population 2016'!BD194,FALSE)","v":0},0,{"$f":"HLOOKUP(Results!E$4,Targeting!$C$3:$F$249,Targeting!$G194,FALSE)","v":0},{"$f":"IF(AND(OR(Calculations!$E$2=\"Orkney Health Board\",Calculations!$E$2=\"Orkney Islands Local Authority\"),$F194=1),0,IF(AND(OR(Calculations!$E$2=\"Shetland Health Board\",Calculations!$E$2=\"Western Isles Health Board\",Calculations!$E$2=\"Shetland Islands Local Authority\",Calculations!$E$2=\"Eilean Siar Local Authority\"),OR($F194=1,$F194=5)),0,new_ci(VALUE(LEFT(Options!$B$24,2)),$C194,$E194,$F194,2016,$I194,1,$H194,$G194*$H194,Options!$B$8)))","v":{"$error":"#VALUE!"}},{"$f":"IF(AND(OR(Calculations!$E$2=\"Orkney Health Board\",Calculations!$E$2=\"Orkney Islands Local Authority\"),$F194=1),0,IF(AND(OR(Calculations!$E$2=\"Shetland Health Board\",Calculations!$E$2=\"Western Isles Health Board\",Calculations!$E$2=\"Shetland Islands Local Authority\",Calculations!$E$2=\"Eilean Siar Local Authority\"),OR($F194=1,$F194=5)),0,new_ci(VALUE(LEFT(Options!$B$24,2)),$C194,$E194,$F194,2016,$I194+$J194,1,$H194,$G194*$H194,Options!$B$8)))","v":{"$error":"#VALUE!"}},{"$f":"IF(AND(OR(Calculations!$E$2=\"Orkney Health Board\",Calculations!$E$2=\"Orkney Islands Local Authority\"),$F194=1),0,IF(AND(OR(Calculations!$E$2=\"Shetland Health Board\",Calculations!$E$2=\"Western Isles Health Board\",Calculations!$E$2=\"Shetland Islands Local Authority\",Calculations!$E$2=\"Eilean Siar Local Authority\"),OR($F194=1,$F194=5)),0,new_yllv2(VALUE(LEFT(Options!$B$24,2)),$C194,$D194,$E194,$F194,2016,$I194,1,$H194,$G194*$H194,Options!$B$8)))","v":{"$error":"#VALUE!"}},{"$f":"IF(AND(OR(Calculations!$E$2=\"Orkney Health Board\",Calculations!$E$2=\"Orkney Islands Local Authority\"),$F194=1),0,IF(AND(OR(Calculations!$E$2=\"Shetland Health Board\",Calculations!$E$2=\"Western Isles Health Board\",Calculations!$E$2=\"Shetland Islands Local Authority\",Calculations!$E$2=\"Eilean Siar Local Authority\"),OR($F194=1,$F194=5)),0,new_yllv2(VALUE(LEFT(Options!$B$24,2)),$C194,$D194,$E194,$F194,2016,$I194+$J194,1,$H194,$G194*$H194,Options!$B$8)))","v":{"$error":"#VALUE!"}},{"$f":"IF(AND(OR(Calculations!$E$2=\"Orkney Health Board\",Calculations!$E$2=\"Orkney Islands Local Authority\"),$F194=1),0,IF(AND(OR(Calculations!$E$2=\"Shetland Health Board\",Calculations!$E$2=\"Western Isles Health Board\",Calculations!$E$2=\"Shetland Islands Local Authority\",Calculations!$E$2=\"Eilean Siar Local Authority\"),OR($F194=1,$F194=5)),0,hosp_count(VALUE(LEFT(Options!$B$24,2)),$C194,$E194,$F194,2016,$I194,1,$H194,$G194*$H194, Options!$B$8)))","v":{"$error":"#VALUE!"}},{"$f":"IF(AND(OR(Calculations!$E$2=\"Orkney Health Board\",Calculations!$E$2=\"Orkney Islands Local Authority\"),$F194=1),0,IF(AND(OR(Calculations!$E$2=\"Shetland Health Board\",Calculations!$E$2=\"Western Isles Health Board\",Calculations!$E$2=\"Shetland Islands Local Authority\",Calculations!$E$2=\"Eilean Siar Local Authority\"),OR($F194=1,$F194=5)),0,hosp_count(VALUE(LEFT(Options!$B$24,2)),$C194,$E194,$F194,2016,$I194+$J194,1,$H194,$G194*$H194, Options!$B$8)))","v":{"$error":"#VALUE!"}},{"$f":"IF(AND(OR(Calculations!$E$2=\"Orkney Health Board\",Calculations!$E$2=\"Orkney Islands Local Authority\"),$F194=1),0,IF(AND(OR(Calculations!$E$2=\"Shetland Health Board\",Calculations!$E$2=\"Western Isles Health Board\",Calculations!$E$2=\"Shetland Islands Local Authority\",Calculations!$E$2=\"Eilean Siar Local Authority\"),OR($F194=1,$F194=5)),0,prem_mort(VALUE(LEFT(Options!$B$24,2)),$C194,$E194,$F194,2016,$I194,1,$H194,$G194*$H194,Options!$B$8)))","v":{"$error":"#VALUE!"}},{"$f":"IF(AND(OR(Calculations!$E$2=\"Orkney Health Board\",Calculations!$E$2=\"Orkney Islands Local Authority\"),$F194=1),0,IF(AND(OR(Calculations!$E$2=\"Shetland Health Board\",Calculations!$E$2=\"Western Isles Health Board\",Calculations!$E$2=\"Shetland Islands Local Authority\",Calculations!$E$2=\"Eilean Siar Local Authority\"),OR($F194=1,$F194=5)),0,prem_mort(VALUE(LEFT(Options!$B$24,2)),$C194,$E194,$F194,2016,$I194+$J194,1,$H194,$G194*$H194,Options!$B$8)))","v":{"$error":"#VALUE!"}},{"$error":"#VALUE!"},{"$error":"#VALUE!"},{"$error":"#VALUE!"},{"$error":"#VALUE!"},{"$error":"#VALUE!"},{"$error":"#VALUE!"},{"$error":"#VALUE!"},{"$error":"#VALUE!"},{"$error":"#VALUE!"},{"$error":"#VALUE!"},{"$error":"#VALUE!"},{"$error":"#VALUE!"},{"$error":"#VALUE!"},{"$error":"#VALUE!"},{"$error":"#VALUE!"},{"$error":"#VALUE!"},5500]
[null,"Male 10-15",12.471144000000001,77.921140000000008,"male",4,{"$f":"HLOOKUP(Calculations!$E$2,'Prevalence Rates'!$C$3:$BC$249,'Prevalence Rates'!$BD195,FALSE)","v":0},{"$f":"HLOOKUP(Calculations!$E$2,'Population 2016'!$C$3:$BC$249,'Population 2016'!BD195,FALSE)","v":0},0,{"$f":"HLOOKUP(Results!E$4,Targeting!$C$3:$F$249,Targeting!$G195,FALSE)","v":0},{"$f":"IF(AND(OR(Calculations!$E$2=\"Orkney Health Board\",Calculations!$E$2=\"Orkney Islands Local Authority\"),$F195=1),0,IF(AND(OR(Calculations!$E$2=\"Shetland Health Board\",Calculations!$E$2=\"Western Isles Health Board\",Calculations!$E$2=\"Shetland Islands Local Authority\",Calculations!$E$2=\"Eilean Siar Local Authority\"),OR($F195=1,$F195=5)),0,new_ci(VALUE(LEFT(Options!$B$24,2)),$C195,$E195,$F195,2016,$I195,1,$H195,$G195*$H195,Options!$B$8)))","v":{"$error":"#VALUE!"}},{"$f":"IF(AND(OR(Calculations!$E$2=\"Orkney Health Board\",Calculations!$E$2=\"Orkney Islands Local Authority\"),$F195=1),0,IF(AND(OR(Calculations!$E$2=\"Shetland Health Board\",Calculations!$E$2=\"Western Isles Health Board\",Calculations!$E$2=\"Shetland Islands Local Authority\",Calculations!$E$2=\"Eilean Siar Local Authority\"),OR($F195=1,$F195=5)),0,new_ci(VALUE(LEFT(Options!$B$24,2)),$C195,$E195,$F195,2016,$I195+$J195,1,$H195,$G195*$H195,Options!$B$8)))","v":{"$error":"#VALUE!"}},{"$f":"IF(AND(OR(Calculations!$E$2=\"Orkney Health Board\",Calculations!$E$2=\"Orkney Islands Local Authority\"),$F195=1),0,IF(AND(OR(Calculations!$E$2=\"Shetland Health Board\",Calculations!$E$2=\"Western Isles Health Board\",Calculations!$E$2=\"Shetland Islands Local Authority\",Calculations!$E$2=\"Eilean Siar Local Authority\"),OR($F195=1,$F195=5)),0,new_yllv2(VALUE(LEFT(Options!$B$24,2)),$C195,$D195,$E195,$F195,2016,$I195,1,$H195,$G195*$H195,Options!$B$8)))","v":{"$error":"#VALUE!"}},{"$f":"IF(AND(OR(Calculations!$E$2=\"Orkney Health Board\",Calculations!$E$2=\"Orkney Islands Local Authority\"),$F195=1),0,IF(AND(OR(Calculations!$E$2=\"Shetland Health Board\",Calculations!$E$2=\"Western Isles Health Board\",Calculations!$E$2=\"Shetland Islands Local Authority\",Calculations!$E$2=\"Eilean Siar Local Authority\"),OR($F195=1,$F195=5)),0,new_yllv2(VALUE(LEFT(Options!$B$24,2)),$C195,$D195,$E195,$F195,2016,$I195+$J195,1,$H195,$G195*$H195,Options!$B$8)))","v":{"$error":"#VALUE!"}},{"$f":"IF(AND(OR(Calculations!$E$2=\"Orkney Health Board\",Calculations!$E$2=\"Orkney Islands Local Authority\"),$F195=1),0,IF(AND(OR(Calculations!$E$2=\"Shetland Health Board\",Calculations!$E$2=\"Western Isles Health Board\",Calculations!$E$2=\"Shetland Islands Local Authority\",Calculations!$E$2=\"Eilean Siar Local Authority\"),OR($F195=1,$F195=5)),0,hosp_count(VALUE(LEFT(Options!$B$24,2)),$C195,$E195,$F195,2016,$I195,1,$H195,$G195*$H195, Options!$B$8)))","v":{"$error":"#VALUE!"}},{"$f":"IF(AND(OR(Calculations!$E$2=\"Orkney Health Board\",Calculations!$E$2=\"Orkney Islands Local Authority\"),$F195=1),0,IF(AND(OR(Calculations!$E$2=\"Shetland Health Board\",Calculations!$E$2=\"Western Isles Health Board\",Calculations!$E$2=\"Shetland Islands Local Authority\",Calculations!$E$2=\"Eilean Siar Local Authority\"),OR($F195=1,$F195=5)),0,hosp_count(VALUE(LEFT(Options!$B$24,2)),$C195,$E195,$F195,2016,$I195+$J195,1,$H195,$G195*$H195, Options!$B$8)))","v":{"$error":"#VALUE!"}},{"$f":"IF(AND(OR(Calculations!$E$2=\"Orkney Health Board\",Calculations!$E$2=\"Orkney Islands Local Authority\"),$F195=1),0,IF(AND(OR(Calculations!$E$2=\"Shetland Health Board\",Calculations!$E$2=\"Western Isles Health Board\",Calculations!$E$2=\"Shetland Islands Local Authority\",Calculations!$E$2=\"Eilean Siar Local Authority\"),OR($F195=1,$F195=5)),0,prem_mort(VALUE(LEFT(Options!$B$24,2)),$C195,$E195,$F195,2016,$I195,1,$H195,$G195*$H195,Options!$B$8)))","v":{"$error":"#VALUE!"}},{"$f":"IF(AND(OR(Calculations!$E$2=\"Orkney Health Board\",Calculations!$E$2=\"Orkney Islands Local Authority\"),$F195=1),0,IF(AND(OR(Calculations!$E$2=\"Shetland Health Board\",Calculations!$E$2=\"Western Isles Health Board\",Calculations!$E$2=\"Shetland Islands Local Authority\",Calculations!$E$2=\"Eilean Siar Local Authority\"),OR($F195=1,$F195=5)),0,prem_mort(VALUE(LEFT(Options!$B$24,2)),$C195,$E195,$F195,2016,$I195+$J195,1,$H195,$G195*$H195,Options!$B$8)))","v":{"$error":"#VALUE!"}},{"$error":"#VALUE!"},{"$error":"#VALUE!"},{"$error":"#VALUE!"},{"$error":"#VALUE!"},{"$error":"#VALUE!"},{"$error":"#VALUE!"},{"$error":"#VALUE!"},{"$error":"#VALUE!"},{"$error":"#VALUE!"},{"$error":"#VALUE!"},{"$error":"#VALUE!"},{"$error":"#VALUE!"},{"$error":"#VALUE!"},{"$error":"#VALUE!"},{"$error":"#VALUE!"},{"$error":"#VALUE!"},6600]
[null,"Male 16-19",17.556318000000001,77.07632000000001,"male",4,{"$f":"HLOOKUP(Calculations!$E$2,'Prevalence Rates'!$C$3:$BC$249,'Prevalence Rates'!$BD196,FALSE)","v":9.7976401086788484E-2},{"$f":"HLOOKUP(Calculations!$E$2,'Population 2016'!$C$3:$BC$249,'Population 2016'!BD196,FALSE)","v":24732},0,{"$f":"HLOOKUP(Results!E$4,Targeting!$C$3:$F$249,Targeting!$G196,FALSE)","v":732},{"$f":"IF(AND(OR(Calculations!$E$2=\"Orkney Health Board\",Calculations!$E$2=\"Orkney Islands Local Authority\"),$F196=1),0,IF(AND(OR(Calculations!$E$2=\"Shetland Health Board\",Calculations!$E$2=\"Western Isles Health Board\",Calculations!$E$2=\"Shetland Islands Local Authority\",Calculations!$E$2=\"Eilean Siar Local Authority\"),OR($F196=1,$F196=5)),0,new_ci(VALUE(LEFT(Options!$B$24,2)),$C196,$E196,$F196,2016,$I196,1,$H196,$G196*$H196,Options!$B$8)))","v":8.3962241591000009},{"$f":"IF(AND(OR(Calculations!$E$2=\"Orkney Health Board\",Calculations!$E$2=\"Orkney Islands Local Authority\"),$F196=1),0,IF(AND(OR(Calculations!$E$2=\"Shetland Health Board\",Calculations!$E$2=\"Western Isles Health Board\",Calculations!$E$2=\"Shetland Islands Local Authority\",Calculations!$E$2=\"Eilean Siar Local Authority\"),OR($F196=1,$F196=5)),0,new_ci(VALUE(LEFT(Options!$B$24,2)),$C196,$E196,$F196,2016,$I196+$J196,1,$H196,$G196*$H196,Options!$B$8)))","v":8.3829421654999994},{"$f":"IF(AND(OR(Calculations!$E$2=\"Orkney Health Board\",Calculations!$E$2=\"Orkney Islands Local Authority\"),$F196=1),0,IF(AND(OR(Calculations!$E$2=\"Shetland Health Board\",Calculations!$E$2=\"Western Isles Health Board\",Calculations!$E$2=\"Shetland Islands Local Authority\",Calculations!$E$2=\"Eilean Siar Local Authority\"),OR($F196=1,$F196=5)),0,new_yllv2(VALUE(LEFT(Options!$B$24,2)),$C196,$D196,$E196,$F196,2016,$I196,1,$H196,$G196*$H196,Options!$B$8)))","v":491.34705458299999},{"$f":"IF(AND(OR(Calculations!$E$2=\"Orkney Health Board\",Calculations!$E$2=\"Orkney Islands Local Authority\"),$F196=1),0,IF(AND(OR(Calculations!$E$2=\"Shetland Health Board\",Calculations!$E$2=\"Western Isles Health Board\",Calculations!$E$2=\"Shetland Islands Local Authority\",Calculations!$E$2=\"Eilean Siar Local Authority\"),OR($F196=1,$F196=5)),0,new_yllv2(VALUE(LEFT(Options!$B$24,2)),$C196,$D196,$E196,$F196,2016,$I196+$J196,1,$H196,$G196*$H196,Options!$B$8)))","v":490.56979229090001},{"$f":"IF(AND(OR(Calculations!$E$2=\"Orkney Health Board\",Calculations!$E$2=\"Orkney Islands Local Authority\"),$F196=1),0,IF(AND(OR(Calculations!$E$2=\"Shetland Health Board\",Calculations!$E$2=\"Western Isles Health Board\",Calculations!$E$2=\"Shetland Islands Local Authority\",Calculations!$E$2=\"Eilean Siar Local Authority\"),OR($F196=1,$F196=5)),0,hosp_count(VALUE(LEFT(Options!$B$24,2)),$C196,$E196,$F196,2016,$I196,1,$H196,$G196*$H196, Options!$B$8)))","v":1479.5226009359999},{"$f":"IF(AND(OR(Calculations!$E$2=\"Orkney Health Board\",Calculations!$E$2=\"Orkney Islands Local Authority\"),$F196=1),0,IF(AND(OR(Calculations!$E$2=\"Shetland Health Board\",Calculations!$E$2=\"Western Isles Health Board\",Calculations!$E$2=\"Shetland Islands Local Authority\",Calculations!$E$2=\"Eilean Siar Local Authority\"),OR($F196=1,$F196=5)),0,hosp_count(VALUE(LEFT(Options!$B$24,2)),$C196,$E196,$F196,2016,$I196+$J196,1,$H196,$G196*$H196, Options!$B$8)))","v":1474.6485749086},{"$f":"IF(AND(OR(Calculations!$E$2=\"Orkney Health Board\",Calculations!$E$2=\"Orkney Islands Local Authority\"),$F196=1),0,IF(AND(OR(Calculations!$E$2=\"Shetland Health Board\",Calculations!$E$2=\"Western Isles Health Board\",Calculations!$E$2=\"Shetland Islands Local Authority\",Calculations!$E$2=\"Eilean Siar Local Authority\"),OR($F196=1,$F196=5)),0,prem_mort(VALUE(LEFT(Options!$B$24,2)),$C196,$E196,$F196,2016,$I196,1,$H196,$G196*$H196,Options!$B$8)))","v":8.3962241591000009},{"$f":"IF(AND(OR(Calculations!$E$2=\"Orkney Health Board\",Calculations!$E$2=\"Orkney Islands Local Authority\"),$F196=1),0,IF(AND(OR(Calculations!$E$2=\"Shetland Health Board\",Calculations!$E$2=\"Western Isles Health Board\",Calculations!$E$2=\"Shetland Islands Local Authority\",Calculations!$E$2=\"Eilean Siar Local Authority\"),OR($F196=1,$F196=5)),0,prem_mort(VALUE(LEFT(Options!$B$24,2)),$C196,$E196,$F196,2016,$I196+$J196,1,$H196,$G196*$H196,Options!$B$8)))","v":8.3829421654999994},33.948828073346277,33.895124395519971,1986.6854867499596,1983.5427474158982,5982.2197999999989,5962.5124329152522,33.948828073346277,33.895124395519971,149374.84352272362,149138.54734028789,8741416.1416998226,8727588.0886299517,26321767.119999994,26235054.704827111,149374.84352272362,149138.54734028789,4400]
[null,"Male 20-24",22.054632000000002,77.704629999999995,"male",4,{"$f":"HLOOKUP(Calculations!$E$2,'Prevalence Rates'!$C$3:$BC$249,'Prevalence Rates'!$BD197,FALSE)","v":9.7976401086788484E-2},{"$f":"HLOOKUP(Calculations!$E$2,'Population 2016'!$C$3:$BC$249,'Population 2016'!BD197,FALSE)","v":35228},0,{"$f":"HLOOKUP(Results!E$4,Targeting!$C$3:$F$249,Targeting!$G197,FALSE)","v":1043},{"$f":"IF(AND(OR(Calculations!$E$2=\"Orkney Health Board\",Calculations!$E$2=\"Orkney Islands Local Authority\"),$F197=1),0,IF(AND(OR(Calculations!$E$2=\"Shetland Health Board\",Calculations!$E$2=\"Western Isles Health Board\",Calculations!$E$2=\"Shetland Islands Local Authority\",Calculations!$E$2=\"Eilean Siar Local Authority\"),OR($F197=1,$F197=5)),0,new_ci(VALUE(LEFT(Options!$B$24,2)),$C197,$E197,$F197,2016,$I197,1,$H197,$G197*$H197,Options!$B$8)))","v":16.794787938599999},{"$f":"IF(AND(OR(Calculations!$E$2=\"Orkney Health Board\",Calculations!$E$2=\"Orkney Islands Local Authority\"),$F197=1),0,IF(AND(OR(Calculations!$E$2=\"Shetland Health Board\",Calculations!$E$2=\"Western Isles Health Board\",Calculations!$E$2=\"Shetland Islands Local Authority\",Calculations!$E$2=\"Eilean Siar Local Authority\"),OR($F197=1,$F197=5)),0,new_ci(VALUE(LEFT(Options!$B$24,2)),$C197,$E197,$F197,2016,$I197+$J197,1,$H197,$G197*$H197,Options!$B$8)))","v":16.768214071700001},{"$f":"IF(AND(OR(Calculations!$E$2=\"Orkney Health Board\",Calculations!$E$2=\"Orkney Islands Local Authority\"),$F197=1),0,IF(AND(OR(Calculations!$E$2=\"Shetland Health Board\",Calculations!$E$2=\"Western Isles Health Board\",Calculations!$E$2=\"Shetland Islands Local Authority\",Calculations!$E$2=\"Eilean Siar Local Authority\"),OR($F197=1,$F197=5)),0,new_yllv2(VALUE(LEFT(Options!$B$24,2)),$C197,$D197,$E197,$F197,2016,$I197,1,$H197,$G197*$H197,Options!$B$8)))","v":917.83512725490004},{"$f":"IF(AND(OR(Calculations!$E$2=\"Orkney Health Board\",Calculations!$E$2=\"Orkney Islands Local Authority\"),$F197=1),0,IF(AND(OR(Calculations!$E$2=\"Shetland Health Board\",Calculations!$E$2=\"Western Isles Health Board\",Calculations!$E$2=\"Shetland Islands Local Authority\",Calculations!$E$2=\"Eilean Siar Local Authority\"),OR($F197=1,$F197=5)),0,new_yllv2(VALUE(LEFT(Options!$B$24,2)),$C197,$D197,$E197,$F197,2016,$I197+$J197,1,$H197,$G197*$H197,Options!$B$8)))","v":916.38286548200006},{"$f":"IF(AND(OR(Calculations!$E$2=\"Orkney Health Board\",Calculations!$E$2=\"Orkney Islands Local Authority\"),$F197=1),0,IF(AND(OR(Calculations!$E$2=\"Shetland Health Board\",Calculations!$E$2=\"Western Isles Health Board\",Calculations!$E$2=\"Shetland Islands Local Authority\",Calculations!$E$2=\"Eilean Siar Local Authority\"),OR($F197=1,$F197=5)),0,hosp_count(VALUE(LEFT(Options!$B$24,2)),$C197,$E197,$F197,2016,$I197,1,$H197,$G197*$H197, Options!$B$8)))","v":2472.2563462364001},{"$f":"IF(AND(OR(Calculations!$E$2=\"Orkney Health Board\",Calculations!$E$2=\"Orkney Islands Local Authority\"),$F197=1),0,IF(AND(OR(Calculations!$E$2=\"Shetland Health Board\",Calculations!$E$2=\"Western Isles Health Board\",Calculations!$E$2=\"Shetland Islands Local Authority\",Calculations!$E$2=\"Eilean Siar Local Authority\"),OR($F197=1,$F197=5)),0,hosp_count(VALUE(LEFT(Options!$B$24,2)),$C197,$E197,$F197,2016,$I197+$J197,1,$H197,$G197*$H197, Options!$B$8)))","v":2464.1092242642999},{"$f":"IF(AND(OR(Calculations!$E$2=\"Orkney Health Board\",Calculations!$E$2=\"Orkney Islands Local Authority\"),$F197=1),0,IF(AND(OR(Calculations!$E$2=\"Shetland Health Board\",Calculations!$E$2=\"Western Isles Health Board\",Calculations!$E$2=\"Shetland Islands Local Authority\",Calculations!$E$2=\"Eilean Siar Local Authority\"),OR($F197=1,$F197=5)),0,prem_mort(VALUE(LEFT(Options!$B$24,2)),$C197,$E197,$F197,2016,$I197,1,$H197,$G197*$H197,Options!$B$8)))","v":16.794787938599999},{"$f":"IF(AND(OR(Calculations!$E$2=\"Orkney Health Board\",Calculations!$E$2=\"Orkney Islands Local Authority\"),$F197=1),0,IF(AND(OR(Calculations!$E$2=\"Shetland Health Board\",Calculations!$E$2=\"Western Isles Health Board\",Calculations!$E$2=\"Shetland Islands Local Authority\",Calculations!$E$2=\"Eilean Siar Local Authority\"),OR($F197=1,$F197=5)),0,prem_mort(VALUE(LEFT(Options!$B$24,2)),$C197,$E197,$F197,2016,$I197+$J197,1,$H197,$G197*$H197,Options!$B$8)))","v":16.768214071700001},47.674542802884062,47.599108867094358,2605.4136688284889,2601.2912043885549,7017.8731299999999,6994.7462934719533,47.674542802884062,47.599108867094358,286047.25681730435,285594.65320256614,15632482.012970934,15607747.226331329,42107238.780000001,41968477.760831721,286047.25681730435,285594.65320256614,6000]
[null,"Male 25-29",26.959762999999999,77.789760000000001,"male",4,{"$f":"HLOOKUP(Calculations!$E$2,'Prevalence Rates'!$C$3:$BC$249,'Prevalence Rates'!$BD198,FALSE)","v":9.7976401086788484E-2},{"$f":"HLOOKUP(Calculations!$E$2,'Population 2016'!$C$3:$BC$249,'Population 2016'!BD198,FALSE)","v":33718},0,{"$f":"HLOOKUP(Results!E$4,Targeting!$C$3:$F$249,Targeting!$G198,FALSE)","v":999},{"$f":"IF(AND(OR(Calculations!$E$2=\"Orkney Health Board\",Calculations!$E$2=\"Orkney Islands Local Authority\"),$F198=1),0,IF(AND(OR(Calculations!$E$2=\"Shetland Health Board\",Calculations!$E$2=\"Western Isles Health Board\",Calculations!$E$2=\"Shetland Islands Local Authority\",Calculations!$E$2=\"Eilean Siar Local Authority\"),OR($F198=1,$F198=5)),0,new_ci(VALUE(LEFT(Options!$B$24,2)),$C198,$E198,$F198,2016,$I198,1,$H198,$G198*$H198,Options!$B$8)))","v":23.277275343700001},{"$f":"IF(AND(OR(Calculations!$E$2=\"Orkney Health Board\",Calculations!$E$2=\"Orkney Islands Local Authority\"),$F198=1),0,IF(AND(OR(Calculations!$E$2=\"Shetland Health Board\",Calculations!$E$2=\"Western Isles Health Board\",Calculations!$E$2=\"Shetland Islands Local Authority\",Calculations!$E$2=\"Eilean Siar Local Authority\"),OR($F198=1,$F198=5)),0,new_ci(VALUE(LEFT(Options!$B$24,2)),$C198,$E198,$F198,2016,$I198+$J198,1,$H198,$G198*$H198,Options!$B$8)))","v":23.2404243316},{"$f":"IF(AND(OR(Calculations!$E$2=\"Orkney Health Board\",Calculations!$E$2=\"Orkney Islands Local Authority\"),$F198=1),0,IF(AND(OR(Calculations!$E$2=\"Shetland Health Board\",Calculations!$E$2=\"Western Isles Health Board\",Calculations!$E$2=\"Shetland Islands Local Authority\",Calculations!$E$2=\"Eilean Siar Local Authority\"),OR($F198=1,$F198=5)),0,new_yllv2(VALUE(LEFT(Options!$B$24,2)),$C198,$D198,$E198,$F198,2016,$I198,1,$H198,$G198*$H198,Options!$B$8)))","v":1159.9065605446999},{"$f":"IF(AND(OR(Calculations!$E$2=\"Orkney Health Board\",Calculations!$E$2=\"Orkney Islands Local Authority\"),$F198=1),0,IF(AND(OR(Calculations!$E$2=\"Shetland Health Board\",Calculations!$E$2=\"Western Isles Health Board\",Calculations!$E$2=\"Shetland Islands Local Authority\",Calculations!$E$2=\"Eilean Siar Local Authority\"),OR($F198=1,$F198=5)),0,new_yllv2(VALUE(LEFT(Options!$B$24,2)),$C198,$D198,$E198,$F198,2016,$I198+$J198,1,$H198,$G198*$H198,Options!$B$8)))","v":1158.0702747224},{"$f":"IF(AND(OR(Calculations!$E$2=\"Orkney Health Board\",Calculations!$E$2=\"Orkney Islands Local Authority\"),$F198=1),0,IF(AND(OR(Calculations!$E$2=\"Shetland Health Board\",Calculations!$E$2=\"Western Isles Health Board\",Calculations!$E$2=\"Shetland Islands Local Authority\",Calculations!$E$2=\"Eilean Siar Local Authority\"),OR($F198=1,$F198=5)),0,hosp_count(VALUE(LEFT(Options!$B$24,2)),$C198,$E198,$F198,2016,$I198,1,$H198,$G198*$H198, Options!$B$8)))","v":2816.3180454054},{"$f":"IF(AND(OR(Calculations!$E$2=\"Orkney Health Board\",Calculations!$E$2=\"Orkney Islands Local Authority\"),$F198=1),0,IF(AND(OR(Calculations!$E$2=\"Shetland Health Board\",Calculations!$E$2=\"Western Isles Health Board\",Calculations!$E$2=\"Shetland Islands Local Authority\",Calculations!$E$2=\"Eilean Siar Local Authority\"),OR($F198=1,$F198=5)),0,hosp_count(VALUE(LEFT(Options!$B$24,2)),$C198,$E198,$F198,2016,$I198+$J198,1,$H198,$G198*$H198, Options!$B$8)))","v":2807.0305250233},{"$f":"IF(AND(OR(Calculations!$E$2=\"Orkney Health Board\",Calculations!$E$2=\"Orkney Islands Local Authority\"),$F198=1),0,IF(AND(OR(Calculations!$E$2=\"Shetland Health Board\",Calculations!$E$2=\"Western Isles Health Board\",Calculations!$E$2=\"Shetland Islands Local Authority\",Calculations!$E$2=\"Eilean Siar Local Authority\"),OR($F198=1,$F198=5)),0,prem_mort(VALUE(LEFT(Options!$B$24,2)),$C198,$E198,$F198,2016,$I198,1,$H198,$G198*$H198,Options!$B$8)))","v":23.277275343700001},{"$f":"IF(AND(OR(Calculations!$E$2=\"Orkney Health Board\",Calculations!$E$2=\"Orkney Islands Local Authority\"),$F198=1),0,IF(AND(OR(Calculations!$E$2=\"Shetland Health Board\",Calculations!$E$2=\"Western Isles Health Board\",Calculations!$E$2=\"Shetland Islands Local Authority\",Calculations!$E$2=\"Eilean Siar Local Authority\"),OR($F198=1,$F198=5)),0,prem_mort(VALUE(LEFT(Options!$B$24,2)),$C198,$E198,$F198,2016,$I198+$J198,1,$H198,$G198*$H198,Options!$B$8)))","v":23.2404243316},69.03516028145205,68.925868472625893,3440.0218297191409,3434.5758192134767,8352.5655299999999,8325.0208346381751,69.03516028145205,68.925868472625893,414210.9616887123,413555.21083575534,20640130.978314847,20607454.91528086,50115393.18,49950125.007829048,414210.9616887123,413555.21083575534,6000]
[null,"Male 30-34",31.981521999999998,78.061520000000002,"male",4,{"$f":"HLOOKUP(Calculations!$E$2,'Prevalence Rates'!$C$3:$BC$249,'Prevalence Rates'!$BD199,FALSE)","v":9.7976401086788484E-2},{"$f":"HLOOKUP(Calculations!$E$2,'Population 2016'!$C$3:$BC$249,'Population 2016'!BD199,FALSE)","v":32346},0,{"$f":"HLOOKUP(Results!E$4,Targeting!$C$3:$F$249,Targeting!$G199,FALSE)","v":958},{"$f":"IF(AND(OR(Calculations!$E$2=\"Orkney Health Board\",Calculations!$E$2=\"Orkney Islands Local Authority\"),$F199=1),0,IF(AND(OR(Calculations!$E$2=\"Shetland Health Board\",Calculations!$E$2=\"Western Isles Health Board\",Calculations!$E$2=\"Shetland Islands Local Authority\",Calculations!$E$2=\"Eilean Siar Local Authority\"),OR($F199=1,$F199=5)),0,new_ci(VALUE(LEFT(Options!$B$24,2)),$C199,$E199,$F199,2016,$I199,1,$H199,$G199*$H199,Options!$B$8)))","v":32.619385813699999},{"$f":"IF(AND(OR(Calculations!$E$2=\"Orkney Health Board\",Calculations!$E$2=\"Orkney Islands Local Authority\"),$F199=1),0,IF(AND(OR(Calculations!$E$2=\"Shetland Health Board\",Calculations!$E$2=\"Western Isles Health Board\",Calculations!$E$2=\"Shetland Islands Local Authority\",Calculations!$E$2=\"Eilean Siar Local Authority\"),OR($F199=1,$F199=5)),0,new_ci(VALUE(LEFT(Options!$B$24,2)),$C199,$E199,$F199,2016,$I199+$J199,1,$H199,$G199*$H199,Options!$B$8)))","v":32.567776246100003},{"$f":"IF(AND(OR(Calculations!$E$2=\"Orkney Health Board\",Calculations!$E$2=\"Orkney Islands Local Authority\"),$F199=1),0,IF(AND(OR(Calculations!$E$2=\"Shetland Health Board\",Calculations!$E$2=\"Western Isles Health Board\",Calculations!$E$2=\"Shetland Islands Local Authority\",Calculations!$E$2=\"Eilean Siar Local Authority\"),OR($F199=1,$F199=5)),0,new_yllv2(VALUE(LEFT(Options!$B$24,2)),$C199,$D199,$E199,$F199,2016,$I199,1,$H199,$G199*$H199,Options!$B$8)))","v":1470.4818472428001},{"$f":"IF(AND(OR(Calculations!$E$2=\"Orkney Health Board\",Calculations!$E$2=\"Orkney Islands Local Authority\"),$F199=1),0,IF(AND(OR(Calculations!$E$2=\"Shetland Health Board\",Calculations!$E$2=\"Western Isles Health Board\",Calculations!$E$2=\"Shetland Islands Local Authority\",Calculations!$E$2=\"Eilean Siar Local Authority\"),OR($F199=1,$F199=5)),0,new_yllv2(VALUE(LEFT(Options!$B$24,2)),$C199,$D199,$E199,$F199,2016,$I199+$J199,1,$H199,$G199*$H199,Options!$B$8)))","v":1468.1552880386},{"$f":"IF(AND(OR(Calculations!$E$2=\"Orkney Health Board\",Calculations!$E$2=\"Orkney Islands Local Authority\"),$F199=1),0,IF(AND(OR(Calculations!$E$2=\"Shetland Health Board\",Calculations!$E$2=\"Western Isles Health Board\",Calculations!$E$2=\"Shetland Islands Local Authority\",Calculations!$E$2=\"Eilean Siar Local Authority\"),OR($F199=1,$F199=5)),0,hosp_count(VALUE(LEFT(Options!$B$24,2)),$C199,$E199,$F199,2016,$I199,1,$H199,$G199*$H199, Options!$B$8)))","v":3228.8860305809999},{"$f":"IF(AND(OR(Calculations!$E$2=\"Orkney Health Board\",Calculations!$E$2=\"Orkney Islands Local Authority\"),$F199=1),0,IF(AND(OR(Calculations!$E$2=\"Shetland Health Board\",Calculations!$E$2=\"Western Isles Health Board\",Calculations!$E$2=\"Shetland Islands Local Authority\",Calculations!$E$2=\"Eilean Siar Local Authority\"),OR($F199=1,$F199=5)),0,hosp_count(VALUE(LEFT(Options!$B$24,2)),$C199,$E199,$F199,2016,$I199+$J199,1,$H199,$G199*$H199, Options!$B$8)))","v":3218.2418547314001},{"$f":"IF(AND(OR(Calculations!$E$2=\"Orkney Health Board\",Calculations!$E$2=\"Orkney Islands Local Authority\"),$F199=1),0,IF(AND(OR(Calculations!$E$2=\"Shetland Health Board\",Calculations!$E$2=\"Western Isles Health Board\",Calculations!$E$2=\"Shetland Islands Local Authority\",Calculations!$E$2=\"Eilean Siar Local Authority\"),OR($F199=1,$F199=5)),0,prem_mort(VALUE(LEFT(Options!$B$24,2)),$C199,$E199,$F199,2016,$I199,1,$H199,$G199*$H199,Options!$B$8)))","v":32.619385813699999},{"$f":"IF(AND(OR(Calculations!$E$2=\"Orkney Health Board\",Calculations!$E$2=\"Orkney Islands Local Authority\"),$F199=1),0,IF(AND(OR(Calculations!$E$2=\"Shetland Health Board\",Calculations!$E$2=\"Western Isles Health Board\",Calculations!$E$2=\"Shetland Islands Local Authority\",Calculations!$E$2=\"Eilean Siar Local Authority\"),OR($F199=1,$F199=5)),0,prem_mort(VALUE(LEFT(Options!$B$24,2)),$C199,$E199,$F199,2016,$I199+$J199,1,$H199,$G199*$H199,Options!$B$8)))","v":32.567776246100003},100.84519202899894,100.68563731558771,4546.1010549768134,4538.9083288153097,9982.3348499999993,9949.4276100024726,100.84519202899894,100.68563731558771,655493.74818849307,654456.64255132014,29549656.857349288,29502904.137299512,64885176.524999999,64671279.465016074,655493.74818849307,654456.64255132014,6500]
[null,"Male 35-39",36.926009999999998,78.336009999999987,"male",4,{"$f":"HLOOKUP(Calculations!$E$2,'Prevalence Rates'!$C$3:$BC$249,'Prevalence Rates'!$BD200,FALSE)","v":9.7976401086788484E-2},{"$f":"HLOOKUP(Calculations!$E$2,'Population 2016'!$C$3:$BC$249,'Population 2016'!BD200,FALSE)","v":32021},0,{"$f":"HLOOKUP(Results!E$4,Targeting!$C$3:$F$249,Targeting!$G200,FALSE)","v":948},{"$f":"IF(AND(OR(Calculations!$E$2=\"Orkney Health Board\",Calculations!$E$2=\"Orkney Islands Local Authority\"),$F200=1),0,IF(AND(OR(Calculations!$E$2=\"Shetland Health Board\",Calculations!$E$2=\"Western Isles Health Board\",Calculations!$E$2=\"Shetland Islands Local Authority\",Calculations!$E$2=\"Eilean Siar Local Authority\"),OR($F200=1,$F200=5)),0,new_ci(VALUE(LEFT(Options!$B$24,2)),$C200,$E200,$F200,2016,$I200,1,$H200,$G200*$H200,Options!$B$8)))","v":46.893339160099998},{"$f":"IF(AND(OR(Calculations!$E$2=\"Orkney Health Board\",Calculations!$E$2=\"Orkney Islands Local Authority\"),$F200=1),0,IF(AND(OR(Calculations!$E$2=\"Shetland Health Board\",Calculations!$E$2=\"Western Isles Health Board\",Calculations!$E$2=\"Shetland Islands Local Authority\",Calculations!$E$2=\"Eilean Siar Local Authority\"),OR($F200=1,$F200=5)),0,new_ci(VALUE(LEFT(Options!$B$24,2)),$C200,$E200,$F200,2016,$I200+$J200,1,$H200,$G200*$H200,Options!$B$8)))","v":46.819200820100001},{"$f":"IF(AND(OR(Calculations!$E$2=\"Orkney Health Board\",Calculations!$E$2=\"Orkney Islands Local Authority\"),$F200=1),0,IF(AND(OR(Calculations!$E$2=\"Shetland Health Board\",Calculations!$E$2=\"Western Isles Health Board\",Calculations!$E$2=\"Shetland Islands Local Authority\",Calculations!$E$2=\"Eilean Siar Local Authority\"),OR($F200=1,$F200=5)),0,new_yllv2(VALUE(LEFT(Options!$B$24,2)),$C200,$D200,$E200,$F200,2016,$I200,1,$H200,$G200*$H200,Options!$B$8)))","v":1894.9598354596001},{"$f":"IF(AND(OR(Calculations!$E$2=\"Orkney Health Board\",Calculations!$E$2=\"Orkney Islands Local Authority\"),$F200=1),0,IF(AND(OR(Calculations!$E$2=\"Shetland Health Board\",Calculations!$E$2=\"Western Isles Health Board\",Calculations!$E$2=\"Shetland Islands Local Authority\",Calculations!$E$2=\"Eilean Siar Local Authority\"),OR($F200=1,$F200=5)),0,new_yllv2(VALUE(LEFT(Options!$B$24,2)),$C200,$D200,$E200,$F200,2016,$I200+$J200,1,$H200,$G200*$H200,Options!$B$8)))","v":1891.9639051402},{"$f":"IF(AND(OR(Calculations!$E$2=\"Orkney Health Board\",Calculations!$E$2=\"Orkney Islands Local Authority\"),$F200=1),0,IF(AND(OR(Calculations!$E$2=\"Shetland Health Board\",Calculations!$E$2=\"Western Isles Health Board\",Calculations!$E$2=\"Shetland Islands Local Authority\",Calculations!$E$2=\"Eilean Siar Local Authority\"),OR($F200=1,$F200=5)),0,hosp_count(VALUE(LEFT(Options!$B$24,2)),$C200,$E200,$F200,2016,$I200,1,$H200,$G200*$H200, Options!$B$8)))","v":3809.6765630297},{"$f":"IF(AND(OR(Calculations!$E$2=\"Orkney Health Board\",Calculations!$E$2=\"Orkney Islands Local Authority\"),$F200=1),0,IF(AND(OR(Calculations!$E$2=\"Shetland Health Board\",Calculations!$E$2=\"Western Isles Health Board\",Calculations!$E$2=\"Shetland Islands Local Authority\",Calculations!$E$2=\"Eilean Siar Local Authority\"),OR($F200=1,$F200=5)),0,hosp_count(VALUE(LEFT(Options!$B$24,2)),$C200,$E200,$F200,2016,$I200+$J200,1,$H200,$G200*$H200, Options!$B$8)))","v":3797.1227414737},{"$f":"IF(AND(OR(Calculations!$E$2=\"Orkney Health Board\",Calculations!$E$2=\"Orkney Islands Local Authority\"),$F200=1),0,IF(AND(OR(Calculations!$E$2=\"Shetland Health Board\",Calculations!$E$2=\"Western Isles Health Board\",Calculations!$E$2=\"Shetland Islands Local Authority\",Calculations!$E$2=\"Eilean Siar Local Authority\"),OR($F200=1,$F200=5)),0,prem_mort(VALUE(LEFT(Options!$B$24,2)),$C200,$E200,$F200,2016,$I200,1,$H200,$G200*$H200,Options!$B$8)))","v":46.893339160099998},{"$f":"IF(AND(OR(Calculations!$E$2=\"Orkney Health Board\",Calculations!$E$2=\"Orkney Islands Local Authority\"),$F200=1),0,IF(AND(OR(Calculations!$E$2=\"Shetland Health Board\",Calculations!$E$2=\"Western Isles Health Board\",Calculations!$E$2=\"Shetland Islands Local Authority\",Calculations!$E$2=\"Eilean Siar Local Authority\"),OR($F200=1,$F200=5)),0,prem_mort(VALUE(LEFT(Options!$B$24,2)),$C200,$E200,$F200,2016,$I200+$J200,1,$H200,$G200*$H200,Options!$B$8)))","v":46.819200820100001},146.44557996346148,146.21404959276725,5917.8658863233504,5908.5097440435966,11897.431570000001,11858.226605895194,146.44557996346148,146.21404959276725,1025119.0597442304,1023498.3471493708,41425061.204263456,41359568.208305173,83282020.99000001,83007586.241266355,1025119.0597442304,1023498.3471493708,7000]
[null,"Male 40-44",42.067703000000002,78.907700000000006,"male",4,{"$f":"HLOOKUP(Calculations!$E$2,'Prevalence Rates'!$C$3:$BC$249,'Prevalence Rates'!$BD201,FALSE)","v":9.7976401086788484E-2},{"$f":"HLOOKUP(Calculations!$E$2,'Population 2016'!$C$3:$BC$249,'Population 2016'!BD201,FALSE)","v":34348},0,{"$f":"HLOOKUP(Results!E$4,Targeting!$C$3:$F$249,Targeting!$G201,FALSE)","v":1017},{"$f":"IF(AND(OR(Calculations!$E$2=\"Orkney Health Board\",Calculations!$E$2=\"Orkney Islands Local Authority\"),$F201=1),0,IF(AND(OR(Calculations!$E$2=\"Shetland Health Board\",Calculations!$E$2=\"Western Isles Health Board\",Calculations!$E$2=\"Shetland Islands Local Authority\",Calculations!$E$2=\"Eilean Siar Local Authority\"),OR($F201=1,$F201=5)),0,new_ci(VALUE(LEFT(Options!$B$24,2)),$C201,$E201,$F201,2016,$I201,1,$H201,$G201*$H201,Options!$B$8)))","v":74.133159530499995},{"$f":"IF(AND(OR(Calculations!$E$2=\"Orkney Health Board\",Calculations!$E$2=\"Orkney Islands Local Authority\"),$F201=1),0,IF(AND(OR(Calculations!$E$2=\"Shetland Health Board\",Calculations!$E$2=\"Western Isles Health Board\",Calculations!$E$2=\"Shetland Islands Local Authority\",Calculations!$E$2=\"Eilean Siar Local Authority\"),OR($F201=1,$F201=5)),0,new_ci(VALUE(LEFT(Options!$B$24,2)),$C201,$E201,$F201,2016,$I201+$J201,1,$H201,$G201*$H201,Options!$B$8)))","v":74.016004079799998},{"$f":"IF(AND(OR(Calculations!$E$2=\"Orkney Health Board\",Calculations!$E$2=\"Orkney Islands Local Authority\"),$F201=1),0,IF(AND(OR(Calculations!$E$2=\"Shetland Health Board\",Calculations!$E$2=\"Western Isles Health Board\",Calculations!$E$2=\"Shetland Islands Local Authority\",Calculations!$E$2=\"Eilean Siar Local Authority\"),OR($F201=1,$F201=5)),0,new_yllv2(VALUE(LEFT(Options!$B$24,2)),$C201,$D201,$E201,$F201,2016,$I201,1,$H201,$G201*$H201,Options!$B$8)))","v":2656.9322151736001},{"$f":"IF(AND(OR(Calculations!$E$2=\"Orkney Health Board\",Calculations!$E$2=\"Orkney Islands Local Authority\"),$F201=1),0,IF(AND(OR(Calculations!$E$2=\"Shetland Health Board\",Calculations!$E$2=\"Western Isles Health Board\",Calculations!$E$2=\"Shetland Islands Local Authority\",Calculations!$E$2=\"Eilean Siar Local Authority\"),OR($F201=1,$F201=5)),0,new_yllv2(VALUE(LEFT(Options!$B$24,2)),$C201,$D201,$E201,$F201,2016,$I201+$J201,1,$H201,$G201*$H201,Options!$B$8)))","v":2652.7333641720002},{"$f":"IF(AND(OR(Calculations!$E$2=\"Orkney Health Board\",Calculations!$E$2=\"Orkney Islands Local Authority\"),$F201=1),0,IF(AND(OR(Calculations!$E$2=\"Shetland Health Board\",Calculations!$E$2=\"Western Isles Health Board\",Calculations!$E$2=\"Shetland Islands Local Authority\",Calculations!$E$2=\"Eilean Siar Local Authority\"),OR($F201=1,$F201=5)),0,hosp_count(VALUE(LEFT(Options!$B$24,2)),$C201,$E201,$F201,2016,$I201,1,$H201,$G201*$H201, Options!$B$8)))","v":4904.7371514212},{"$f":"IF(AND(OR(Calculations!$E$2=\"Orkney Health Board\",Calculations!$E$2=\"Orkney Islands Local Authority\"),$F201=1),0,IF(AND(OR(Calculations!$E$2=\"Shetland Health Board\",Calculations!$E$2=\"Western Isles Health Board\",Calculations!$E$2=\"Shetland Islands Local Authority\",Calculations!$E$2=\"Eilean Siar Local Authority\"),OR($F201=1,$F201=5)),0,hosp_count(VALUE(LEFT(Options!$B$24,2)),$C201,$E201,$F201,2016,$I201+$J201,1,$H201,$G201*$H201, Options!$B$8)))","v":4888.5731218618002},{"$f":"IF(AND(OR(Calculations!$E$2=\"Orkney Health Board\",Calculations!$E$2=\"Orkney Islands Local Authority\"),$F201=1),0,IF(AND(OR(Calculations!$E$2=\"Shetland Health Board\",Calculations!$E$2=\"Western Isles Health Board\",Calculations!$E$2=\"Shetland Islands Local Authority\",Calculations!$E$2=\"Eilean Siar Local Authority\"),OR($F201=1,$F201=5)),0,prem_mort(VALUE(LEFT(Options!$B$24,2)),$C201,$E201,$F201,2016,$I201,1,$H201,$G201*$H201,Options!$B$8)))","v":74.133159530499995},{"$f":"IF(AND(OR(Calculations!$E$2=\"Orkney Health Board\",Calculations!$E$2=\"Orkney Islands Local Authority\"),$F201=1),0,IF(AND(OR(Calculations!$E$2=\"Shetland Health Board\",Calculations!$E$2=\"Western Isles Health Board\",Calculations!$E$2=\"Shetland Islands Local Authority\",Calculations!$E$2=\"Eilean Siar Local Authority\"),OR($F201=1,$F201=5)),0,prem_mort(VALUE(LEFT(Options!$B$24,2)),$C201,$E201,$F201,2016,$I201+$J201,1,$H201,$G201*$H201,Options!$B$8)))","v":74.016004079799998},215.82962481221614,215.48854104984278,7735.3331057808318,7723.1086647606853,14279.54219,14232.482595381973,215.82962481221614,215.48854104984278,1510807.3736855129,1508419.7873488995,54147331.74046582,54061760.653324798,99956795.329999998,99627378.167673811,1510807.3736855129,1508419.7873488995,7000]
[null,"Male 45-49",47.038155000000003,79.418149999999997,"male",4,{"$f":"HLOOKUP(Calculations!$E$2,'Prevalence Rates'!$C$3:$BC$249,'Prevalence Rates'!$BD202,FALSE)","v":9.7976401086788484E-2},{"$f":"HLOOKUP(Calculations!$E$2,'Population 2016'!$C$3:$BC$249,'Population 2016'!BD202,FALSE)","v":39846},0,{"$f":"HLOOKUP(Results!E$4,Targeting!$C$3:$F$249,Targeting!$G202,FALSE)","v":1180},{"$f":"IF(AND(OR(Calculations!$E$2=\"Orkney Health Board\",Calculations!$E$2=\"Orkney Islands Local Authority\"),$F202=1),0,IF(AND(OR(Calculations!$E$2=\"Shetland Health Board\",Calculations!$E$2=\"Western Isles Health Board\",Calculations!$E$2=\"Shetland Islands Local Authority\",Calculations!$E$2=\"Eilean Siar Local Authority\"),OR($F202=1,$F202=5)),0,new_ci(VALUE(LEFT(Options!$B$24,2)),$C202,$E202,$F202,2016,$I202,1,$H202,$G202*$H202,Options!$B$8)))","v":125.09866947579999},{"$f":"IF(AND(OR(Calculations!$E$2=\"Orkney Health Board\",Calculations!$E$2=\"Orkney Islands Local Authority\"),$F202=1),0,IF(AND(OR(Calculations!$E$2=\"Shetland Health Board\",Calculations!$E$2=\"Western Isles Health Board\",Calculations!$E$2=\"Shetland Islands Local Authority\",Calculations!$E$2=\"Eilean Siar Local Authority\"),OR($F202=1,$F202=5)),0,new_ci(VALUE(LEFT(Options!$B$24,2)),$C202,$E202,$F202,2016,$I202+$J202,1,$H202,$G202*$H202,Options!$B$8)))","v":124.9010833138},{"$f":"IF(AND(OR(Calculations!$E$2=\"Orkney Health Board\",Calculations!$E$2=\"Orkney Islands Local Authority\"),$F202=1),0,IF(AND(OR(Calculations!$E$2=\"Shetland Health Board\",Calculations!$E$2=\"Western Isles Health Board\",Calculations!$E$2=\"Shetland Islands Local Authority\",Calculations!$E$2=\"Eilean Siar Local Authority\"),OR($F202=1,$F202=5)),0,new_yllv2(VALUE(LEFT(Options!$B$24,2)),$C202,$D202,$E202,$F202,2016,$I202,1,$H202,$G202*$H202,Options!$B$8)))","v":3925.5956226572998},{"$f":"IF(AND(OR(Calculations!$E$2=\"Orkney Health Board\",Calculations!$E$2=\"Orkney Islands Local Authority\"),$F202=1),0,IF(AND(OR(Calculations!$E$2=\"Shetland Health Board\",Calculations!$E$2=\"Western Isles Health Board\",Calculations!$E$2=\"Shetland Islands Local Authority\",Calculations!$E$2=\"Eilean Siar Local Authority\"),OR($F202=1,$F202=5)),0,new_yllv2(VALUE(LEFT(Options!$B$24,2)),$C202,$D202,$E202,$F202,2016,$I202+$J202,1,$H202,$G202*$H202,Options!$B$8)))","v":3919.3953698815999},{"$f":"IF(AND(OR(Calculations!$E$2=\"Orkney Health Board\",Calculations!$E$2=\"Orkney Islands Local Authority\"),$F202=1),0,IF(AND(OR(Calculations!$E$2=\"Shetland Health Board\",Calculations!$E$2=\"Western Isles Health Board\",Calculations!$E$2=\"Shetland Islands Local Authority\",Calculations!$E$2=\"Eilean Siar Local Authority\"),OR($F202=1,$F202=5)),0,hosp_count(VALUE(LEFT(Options!$B$24,2)),$C202,$E202,$F202,2016,$I202,1,$H202,$G202*$H202, Options!$B$8)))","v":6787.6640703324001},{"$f":"IF(AND(OR(Calculations!$E$2=\"Orkney Health Board\",Calculations!$E$2=\"Orkney Islands Local Authority\"),$F202=1),0,IF(AND(OR(Calculations!$E$2=\"Shetland Health Board\",Calculations!$E$2=\"Western Isles Health Board\",Calculations!$E$2=\"Shetland Islands Local Authority\",Calculations!$E$2=\"Eilean Siar Local Authority\"),OR($F202=1,$F202=5)),0,hosp_count(VALUE(LEFT(Options!$B$24,2)),$C202,$E202,$F202,2016,$I202+$J202,1,$H202,$G202*$H202, Options!$B$8)))","v":6765.2906687874001},{"$f":"IF(AND(OR(Calculations!$E$2=\"Orkney Health Board\",Calculations!$E$2=\"Orkney Islands Local Authority\"),$F202=1),0,IF(AND(OR(Calculations!$E$2=\"Shetland Health Board\",Calculations!$E$2=\"Western Isles Health Board\",Calculations!$E$2=\"Shetland Islands Local Authority\",Calculations!$E$2=\"Eilean Siar Local Authority\"),OR($F202=1,$F202=5)),0,prem_mort(VALUE(LEFT(Options!$B$24,2)),$C202,$E202,$F202,2016,$I202,1,$H202,$G202*$H202,Options!$B$8)))","v":125.09866947579999},{"$f":"IF(AND(OR(Calculations!$E$2=\"Orkney Health Board\",Calculations!$E$2=\"Orkney Islands Local Authority\"),$F202=1),0,IF(AND(OR(Calculations!$E$2=\"Shetland Health Board\",Calculations!$E$2=\"Western Isles Health Board\",Calculations!$E$2=\"Shetland Islands Local Authority\",Calculations!$E$2=\"Eilean Siar Local Authority\"),OR($F202=1,$F202=5)),0,prem_mort(VALUE(LEFT(Options!$B$24,2)),$C202,$E202,$F202,2016,$I202+$J202,1,$H202,$G202*$H202,Options!$B$8)))","v":124.9010833138},313.95540198715048,313.45952746524119,9851.918944579882,9836.3584045615626,17034.74394,16978.594259868998,313.95540198715048,313.45952746524119,2197687.8139100536,2194216.6922566881,68963432.612059176,68854508.831930935,119243207.58,118850159.81908299,2197687.8139100536,2194216.6922566881,7000]
[null,"Male 50-54",51.998646000000001,79.988649999999993,"male",4,{"$f":"HLOOKUP(Calculations!$E$2,'Prevalence Rates'!$C$3:$BC$249,'Prevalence Rates'!$BD203,FALSE)","v":9.7976401086788484E-2},{"$f":"HLOOKUP(Calculations!$E$2,'Population 2016'!$C$3:$BC$249,'Population 2016'!BD203,FALSE)","v":42258},0,{"$f":"HLOOKUP(Results!E$4,Targeting!$C$3:$F$249,Targeting!$G203,FALSE)","v":1252},{"$f":"IF(AND(OR(Calculations!$E$2=\"Orkney Health Board\",Calculations!$E$2=\"Orkney Islands Local Authority\"),$F203=1),0,IF(AND(OR(Calculations!$E$2=\"Shetland Health Board\",Calculations!$E$2=\"Western Isles Health Board\",Calculations!$E$2=\"Shetland Islands Local Authority\",Calculations!$E$2=\"Eilean Siar Local Authority\"),OR($F203=1,$F203=5)),0,new_ci(VALUE(LEFT(Options!$B$24,2)),$C203,$E203,$F203,2016,$I203,1,$H203,$G203*$H203,Options!$B$8)))","v":192.80126456650001},{"$f":"IF(AND(OR(Calculations!$E$2=\"Orkney Health Board\",Calculations!$E$2=\"Orkney Islands Local Authority\"),$F203=1),0,IF(AND(OR(Calculations!$E$2=\"Shetland Health Board\",Calculations!$E$2=\"Western Isles Health Board\",Calculations!$E$2=\"Shetland Islands Local Authority\",Calculations!$E$2=\"Eilean Siar Local Authority\"),OR($F203=1,$F203=5)),0,new_ci(VALUE(LEFT(Options!$B$24,2)),$C203,$E203,$F203,2016,$I203+$J203,1,$H203,$G203*$H203,Options!$B$8)))","v":192.49693666970001},{"$f":"IF(AND(OR(Calculations!$E$2=\"Orkney Health Board\",Calculations!$E$2=\"Orkney Islands Local Authority\"),$F203=1),0,IF(AND(OR(Calculations!$E$2=\"Shetland Health Board\",Calculations!$E$2=\"Western Isles Health Board\",Calculations!$E$2=\"Shetland Islands Local Authority\",Calculations!$E$2=\"Eilean Siar Local Authority\"),OR($F203=1,$F203=5)),0,new_yllv2(VALUE(LEFT(Options!$B$24,2)),$C203,$D203,$E203,$F203,2016,$I203,1,$H203,$G203*$H203,Options!$B$8)))","v":5203.7069018549},{"$f":"IF(AND(OR(Calculations!$E$2=\"Orkney Health Board\",Calculations!$E$2=\"Orkney Islands Local Authority\"),$F203=1),0,IF(AND(OR(Calculations!$E$2=\"Shetland Health Board\",Calculations!$E$2=\"Western Isles Health Board\",Calculations!$E$2=\"Shetland Islands Local Authority\",Calculations!$E$2=\"Eilean Siar Local Authority\"),OR($F203=1,$F203=5)),0,new_yllv2(VALUE(LEFT(Options!$B$24,2)),$C203,$D203,$E203,$F203,2016,$I203+$J203,1,$H203,$G203*$H203,Options!$B$8)))","v":5195.4930907029002},{"$f":"IF(AND(OR(Calculations!$E$2=\"Orkney Health Board\",Calculations!$E$2=\"Orkney Islands Local Authority\"),$F203=1),0,IF(AND(OR(Calculations!$E$2=\"Shetland Health Board\",Calculations!$E$2=\"Western Isles Health Board\",Calculations!$E$2=\"Shetland Islands Local Authority\",Calculations!$E$2=\"Eilean Siar Local Authority\"),OR($F203=1,$F203=5)),0,hosp_count(VALUE(LEFT(Options!$B$24,2)),$C203,$E203,$F203,2016,$I203,1,$H203,$G203*$H203, Options!$B$8)))","v":8584.4469732443995},{"$f":"IF(AND(OR(Calculations!$E$2=\"Orkney Health Board\",Calculations!$E$2=\"Orkney Islands Local Authority\"),$F203=1),0,IF(AND(OR(Calculations!$E$2=\"Shetland Health Board\",Calculations!$E$2=\"Western Isles Health Board\",Calculations!$E$2=\"Shetland Islands Local Authority\",Calculations!$E$2=\"Eilean Siar Local Authority\"),OR($F203=1,$F203=5)),0,hosp_count(VALUE(LEFT(Options!$B$24,2)),$C203,$E203,$F203,2016,$I203+$J203,1,$H203,$G203*$H203, Options!$B$8)))","v":8556.1381308303007},{"$f":"IF(AND(OR(Calculations!$E$2=\"Orkney Health Board\",Calculations!$E$2=\"Orkney Islands Local Authority\"),$F203=1),0,IF(AND(OR(Calculations!$E$2=\"Shetland Health Board\",Calculations!$E$2=\"Western Isles Health Board\",Calculations!$E$2=\"Shetland Islands Local Authority\",Calculations!$E$2=\"Eilean Siar Local Authority\"),OR($F203=1,$F203=5)),0,prem_mort(VALUE(LEFT(Options!$B$24,2)),$C203,$E203,$F203,2016,$I203,1,$H203,$G203*$H203,Options!$B$8)))","v":192.80126456650001},{"$f":"IF(AND(OR(Calculations!$E$2=\"Orkney Health Board\",Calculations!$E$2=\"Orkney Islands Local Authority\"),$F203=1),0,IF(AND(OR(Calculations!$E$2=\"Shetland Health Board\",Calculations!$E$2=\"Western Isles Health Board\",Calculations!$E$2=\"Shetland Islands Local Authority\",Calculations!$E$2=\"Eilean Siar Local Authority\"),OR($F203=1,$F203=5)),0,prem_mort(VALUE(LEFT(Options!$B$24,2)),$C203,$E203,$F203,2016,$I203+$J203,1,$H203,$G203*$H203,Options!$B$8)))","v":192.49693666970001},456.24796385654787,455.52779750508779,12314.134369480098,12294.697076773393,20314.371179999998,20247.380687278859,456.24796385654787,455.52779750508779,3193735.7469958351,3188694.5825356147,86198940.586360693,86062879.537413746,142200598.25999999,141731664.81095201,3193735.7469958351,3188694.5825356147,7000]
[null,"Male 55-59",56.950867000000002,80.660870000000003,"male",4,{"$f":"HLOOKUP(Calculations!$E$2,'Prevalence Rates'!$C$3:$BC$249,'Prevalence Rates'!$BD204,FALSE)","v":5.1111418897055186E-2},{"$f":"HLOOKUP(Calculations!$E$2,'Population 2016'!$C$3:$BC$249,'Population 2016'!BD204,FALSE)","v":38483},0,{"$f":"HLOOKUP(Results!E$4,Targeting!$C$3:$F$249,Targeting!$G204,FALSE)","v":1140},{"$f":"IF(AND(OR(Calculations!$E$2=\"Orkney Health Board\",Calculations!$E$2=\"Orkney Islands Local Authority\"),$F204=1),0,IF(AND(OR(Calculations!$E$2=\"Shetland Health Board\",Calculations!$E$2=\"Western Isles Health Board\",Calculations!$E$2=\"Shetland Islands Local Authority\",Calculations!$E$2=\"Eilean Siar Local Authority\"),OR($F204=1,$F204=5)),0,new_ci(VALUE(LEFT(Options!$B$24,2)),$C204,$E204,$F204,2016,$I204,1,$H204,$G204*$H204,Options!$B$8)))","v":254.915522737},{"$f":"IF(AND(OR(Calculations!$E$2=\"Orkney Health Board\",Calculations!$E$2=\"Orkney Islands Local Authority\"),$F204=1),0,IF(AND(OR(Calculations!$E$2=\"Shetland Health Board\",Calculations!$E$2=\"Western Isles Health Board\",Calculations!$E$2=\"Shetland Islands Local Authority\",Calculations!$E$2=\"Eilean Siar Local Authority\"),OR($F204=1,$F204=5)),0,new_ci(VALUE(LEFT(Options!$B$24,2)),$C204,$E204,$F204,2016,$I204+$J204,1,$H204,$G204*$H204,Options!$B$8)))","v":254.50778463699999},{"$f":"IF(AND(OR(Calculations!$E$2=\"Orkney Health Board\",Calculations!$E$2=\"Orkney Islands Local Authority\"),$F204=1),0,IF(AND(OR(Calculations!$E$2=\"Shetland Health Board\",Calculations!$E$2=\"Western Isles Health Board\",Calculations!$E$2=\"Shetland Islands Local Authority\",Calculations!$E$2=\"Eilean Siar Local Authority\"),OR($F204=1,$F204=5)),0,new_yllv2(VALUE(LEFT(Options!$B$24,2)),$C204,$D204,$E204,$F204,2016,$I204,1,$H204,$G204*$H204,Options!$B$8)))","v":5789.1322861037997},{"$f":"IF(AND(OR(Calculations!$E$2=\"Orkney Health Board\",Calculations!$E$2=\"Orkney Islands Local Authority\"),$F204=1),0,IF(AND(OR(Calculations!$E$2=\"Shetland Health Board\",Calculations!$E$2=\"Western Isles Health Board\",Calculations!$E$2=\"Shetland Islands Local Authority\",Calculations!$E$2=\"Eilean Siar Local Authority\"),OR($F204=1,$F204=5)),0,new_yllv2(VALUE(LEFT(Options!$B$24,2)),$C204,$D204,$E204,$F204,2016,$I204+$J204,1,$H204,$G204*$H204,Options!$B$8)))","v":5779.8725526296002},{"$f":"IF(AND(OR(Calculations!$E$2=\"Orkney Health Board\",Calculations!$E$2=\"Orkney Islands Local Authority\"),$F204=1),0,IF(AND(OR(Calculations!$E$2=\"Shetland Health Board\",Calculations!$E$2=\"Western Isles Health Board\",Calculations!$E$2=\"Shetland Islands Local Authority\",Calculations!$E$2=\"Eilean Siar Local Authority\"),OR($F204=1,$F204=5)),0,hosp_count(VALUE(LEFT(Options!$B$24,2)),$C204,$E204,$F204,2016,$I204,1,$H204,$G204*$H204, Options!$B$8)))","v":9319.9287622851007},{"$f":"IF(AND(OR(Calculations!$E$2=\"Orkney Health Board\",Calculations!$E$2=\"Orkney Islands Local Authority\"),$F204=1),0,IF(AND(OR(Calculations!$E$2=\"Shetland Health Board\",Calculations!$E$2=\"Western Isles Health Board\",Calculations!$E$2=\"Shetland Islands Local Authority\",Calculations!$E$2=\"Eilean Siar Local Authority\"),OR($F204=1,$F204=5)),0,hosp_count(VALUE(LEFT(Options!$B$24,2)),$C204,$E204,$F204,2016,$I204+$J204,1,$H204,$G204*$H204, Options!$B$8)))","v":9288.6896455585993},{"$f":"IF(AND(OR(Calculations!$E$2=\"Orkney Health Board\",Calculations!$E$2=\"Orkney Islands Local Authority\"),$F204=1),0,IF(AND(OR(Calculations!$E$2=\"Shetland Health Board\",Calculations!$E$2=\"Western Isles Health Board\",Calculations!$E$2=\"Shetland Islands Local Authority\",Calculations!$E$2=\"Eilean Siar Local Authority\"),OR($F204=1,$F204=5)),0,prem_mort(VALUE(LEFT(Options!$B$24,2)),$C204,$E204,$F204,2016,$I204,1,$H204,$G204*$H204,Options!$B$8)))","v":254.915522737},{"$f":"IF(AND(OR(Calculations!$E$2=\"Orkney Health Board\",Calculations!$E$2=\"Orkney Islands Local Authority\"),$F204=1),0,IF(AND(OR(Calculations!$E$2=\"Shetland Health Board\",Calculations!$E$2=\"Western Isles Health Board\",Calculations!$E$2=\"Shetland Islands Local Authority\",Calculations!$E$2=\"Eilean Siar Local Authority\"),OR($F204=1,$F204=5)),0,prem_mort(VALUE(LEFT(Options!$B$24,2)),$C204,$E204,$F204,2016,$I204+$J204,1,$H204,$G204*$H204,Options!$B$8)))","v":254.50778463699999},662.41073392666885,661.35120608320562,15043.349754706753,15019.287874203157,24218.30097,24137.124562946236,662.41073392666885,661.35120608320562,4305669.7705233479,4298782.8395408364,97781773.405593887,97625371.18232052,157418956.30500001,156891309.65915054,4305669.7705233479,4298782.8395408364,6500]
[null,"Male 60-64",61.942988999999997,81.612989999999996,"male",4,{"$f":"HLOOKUP(Calculations!$E$2,'Prevalence Rates'!$C$3:$BC$249,'Prevalence Rates'!$BD205,FALSE)","v":5.1111418897055186E-2},{"$f":"HLOOKUP(Calculations!$E$2,'Population 2016'!$C$3:$BC$249,'Population 2016'!BD205,FALSE)","v":33820},0,{"$f":"HLOOKUP(Results!E$4,Targeting!$C$3:$F$249,Targeting!$G205,FALSE)","v":1002},{"$f":"IF(AND(OR(Calculations!$E$2=\"Orkney Health Board\",Calculations!$E$2=\"Orkney Islands Local Authority\"),$F205=1),0,IF(AND(OR(Calculations!$E$2=\"Shetland Health Board\",Calculations!$E$2=\"Western Isles Health Board\",Calculations!$E$2=\"Shetland Islands Local Authority\",Calculations!$E$2=\"Eilean Siar Local Authority\"),OR($F205=1,$F205=5)),0,new_ci(VALUE(LEFT(Options!$B$24,2)),$C205,$E205,$F205,2016,$I205,1,$H205,$G205*$H205,Options!$B$8)))","v":326.07745919619998},{"$f":"IF(AND(OR(Calculations!$E$2=\"Orkney Health Board\",Calculations!$E$2=\"Orkney Islands Local Authority\"),$F205=1),0,IF(AND(OR(Calculations!$E$2=\"Shetland Health Board\",Calculations!$E$2=\"Western Isles Health Board\",Calculations!$E$2=\"Shetland Islands Local Authority\",Calculations!$E$2=\"Eilean Siar Local Authority\"),OR($F205=1,$F205=5)),0,new_ci(VALUE(LEFT(Options!$B$24,2)),$C205,$E205,$F205,2016,$I205+$J205,1,$H205,$G205*$H205,Options!$B$8)))","v":325.55706227979999},{"$f":"IF(AND(OR(Calculations!$E$2=\"Orkney Health Board\",Calculations!$E$2=\"Orkney Islands Local Authority\"),$F205=1),0,IF(AND(OR(Calculations!$E$2=\"Shetland Health Board\",Calculations!$E$2=\"Western Isles Health Board\",Calculations!$E$2=\"Shetland Islands Local Authority\",Calculations!$E$2=\"Eilean Siar Local Authority\"),OR($F205=1,$F205=5)),0,new_yllv2(VALUE(LEFT(Options!$B$24,2)),$C205,$D205,$E205,$F205,2016,$I205,1,$H205,$G205*$H205,Options!$B$8)))","v":6087.8664892705001},{"$f":"IF(AND(OR(Calculations!$E$2=\"Orkney Health Board\",Calculations!$E$2=\"Orkney Islands Local Authority\"),$F205=1),0,IF(AND(OR(Calculations!$E$2=\"Shetland Health Board\",Calculations!$E$2=\"Western Isles Health Board\",Calculations!$E$2=\"Shetland Islands Local Authority\",Calculations!$E$2=\"Eilean Siar Local Authority\"),OR($F205=1,$F205=5)),0,new_yllv2(VALUE(LEFT(Options!$B$24,2)),$C205,$D205,$E205,$F205,2016,$I205+$J205,1,$H205,$G205*$H205,Options!$B$8)))","v":6078.1506783208997},{"$f":"IF(AND(OR(Calculations!$E$2=\"Orkney Health Board\",Calculations!$E$2=\"Orkney Islands Local Authority\"),$F205=1),0,IF(AND(OR(Calculations!$E$2=\"Shetland Health Board\",Calculations!$E$2=\"Western Isles Health Board\",Calculations!$E$2=\"Shetland Islands Local Authority\",Calculations!$E$2=\"Eilean Siar Local Authority\"),OR($F205=1,$F205=5)),0,hosp_count(VALUE(LEFT(Options!$B$24,2)),$C205,$E205,$F205,2016,$I205,1,$H205,$G205*$H205, Options!$B$8)))","v":9778.5092826239998},{"$f":"IF(AND(OR(Calculations!$E$2=\"Orkney Health Board\",Calculations!$E$2=\"Orkney Islands Local Authority\"),$F205=1),0,IF(AND(OR(Calculations!$E$2=\"Shetland Health Board\",Calculations!$E$2=\"Western Isles Health Board\",Calculations!$E$2=\"Shetland Islands Local Authority\",Calculations!$E$2=\"Eilean Siar Local Authority\"),OR($F205=1,$F205=5)),0,hosp_count(VALUE(LEFT(Options!$B$24,2)),$C205,$E205,$F205,2016,$I205+$J205,1,$H205,$G205*$H205, Options!$B$8)))","v":9745.7286755000005},{"$f":"IF(AND(OR(Calculations!$E$2=\"Orkney Health Board\",Calculations!$E$2=\"Orkney Islands Local Authority\"),$F205=1),0,IF(AND(OR(Calculations!$E$2=\"Shetland Health Board\",Calculations!$E$2=\"Western Isles Health Board\",Calculations!$E$2=\"Shetland Islands Local Authority\",Calculations!$E$2=\"Eilean Siar Local Authority\"),OR($F205=1,$F205=5)),0,prem_mort(VALUE(LEFT(Options!$B$24,2)),$C205,$E205,$F205,2016,$I205,1,$H205,$G205*$H205,Options!$B$8)))","v":326.07745919619998},{"$f":"IF(AND(OR(Calculations!$E$2=\"Orkney Health Board\",Calculations!$E$2=\"Orkney Islands Local Authority\"),$F205=1),0,IF(AND(OR(Calculations!$E$2=\"Shetland Health Board\",Calculations!$E$2=\"Western Isles Health Board\",Calculations!$E$2=\"Shetland Islands Local Authority\",Calculations!$E$2=\"Eilean Siar Local Authority\"),OR($F205=1,$F205=5)),0,prem_mort(VALUE(LEFT(Options!$B$24,2)),$C205,$E205,$F205,2016,$I205+$J205,1,$H205,$G205*$H205,Options!$B$8)))","v":325.55706227979999},964.15570430573621,962.61697894677707,18000.78796354376,17972.059959553222,28913.392320000003,28816.465628326438,964.15570430573621,962.61697894677707,5784934.2258344172,5775701.8736806624,108004727.78126256,107832359.75731933,173480353.92000002,172898793.76995862,5784934.2258344172,5775701.8736806624,6000]
[null,"Male 65-69",67.054419999999993,82.954419999999999,"male",4,{"$f":"HLOOKUP(Calculations!$E$2,'Prevalence Rates'!$C$3:$BC$249,'Prevalence Rates'!$BD206,FALSE)","v":5.1111418897055186E-2},{"$f":"HLOOKUP(Calculations!$E$2,'Population 2016'!$C$3:$BC$249,'Population 2016'!BD206,FALSE)","v":33114},0,{"$f":"HLOOKUP(Results!E$4,Targeting!$C$3:$F$249,Targeting!$G206,FALSE)","v":981},{"$f":"IF(AND(OR(Calculations!$E$2=\"Orkney Health Board\",Calculations!$E$2=\"Orkney Islands Local Authority\"),$F206=1),0,IF(AND(OR(Calculations!$E$2=\"Shetland Health Board\",Calculations!$E$2=\"Western Isles Health Board\",Calculations!$E$2=\"Shetland Islands Local Authority\",Calculations!$E$2=\"Eilean Siar Local Authority\"),OR($F206=1,$F206=5)),0,new_ci(VALUE(LEFT(Options!$B$24,2)),$C206,$E206,$F206,2016,$I206,1,$H206,$G206*$H206,Options!$B$8)))","v":468.55421100260003},{"$f":"IF(AND(OR(Calculations!$E$2=\"Orkney Health Board\",Calculations!$E$2=\"Orkney Islands Local Authority\"),$F206=1),0,IF(AND(OR(Calculations!$E$2=\"Shetland Health Board\",Calculations!$E$2=\"Western Isles Health Board\",Calculations!$E$2=\"Shetland Islands Local Authority\",Calculations!$E$2=\"Eilean Siar Local Authority\"),OR($F206=1,$F206=5)),0,new_ci(VALUE(LEFT(Options!$B$24,2)),$C206,$E206,$F206,2016,$I206+$J206,1,$H206,$G206*$H206,Options!$B$8)))","v":467.8091483696},{"$f":"IF(AND(OR(Calculations!$E$2=\"Orkney Health Board\",Calculations!$E$2=\"Orkney Islands Local Authority\"),$F206=1),0,IF(AND(OR(Calculations!$E$2=\"Shetland Health Board\",Calculations!$E$2=\"Western Isles Health Board\",Calculations!$E$2=\"Shetland Islands Local Authority\",Calculations!$E$2=\"Eilean Siar Local Authority\"),OR($F206=1,$F206=5)),0,new_yllv2(VALUE(LEFT(Options!$B$24,2)),$C206,$D206,$E206,$F206,2016,$I206,1,$H206,$G206*$H206,Options!$B$8)))","v":6981.4577439387003},{"$f":"IF(AND(OR(Calculations!$E$2=\"Orkney Health Board\",Calculations!$E$2=\"Orkney Islands Local Authority\"),$F206=1),0,IF(AND(OR(Calculations!$E$2=\"Shetland Health Board\",Calculations!$E$2=\"Western Isles Health Board\",Calculations!$E$2=\"Shetland Islands Local Authority\",Calculations!$E$2=\"Eilean Siar Local Authority\"),OR($F206=1,$F206=5)),0,new_yllv2(VALUE(LEFT(Options!$B$24,2)),$C206,$D206,$E206,$F206,2016,$I206+$J206,1,$H206,$G206*$H206,Options!$B$8)))","v":6970.3563107070004},{"$f":"IF(AND(OR(Calculations!$E$2=\"Orkney Health Board\",Calculations!$E$2=\"Orkney Islands Local Authority\"),$F206=1),0,IF(AND(OR(Calculations!$E$2=\"Shetland Health Board\",Calculations!$E$2=\"Western Isles Health Board\",Calculations!$E$2=\"Shetland Islands Local Authority\",Calculations!$E$2=\"Eilean Siar Local Authority\"),OR($F206=1,$F206=5)),0,hosp_count(VALUE(LEFT(Options!$B$24,2)),$C206,$E206,$F206,2016,$I206,1,$H206,$G206*$H206, Options!$B$8)))","v":11479.031884186799},{"$f":"IF(AND(OR(Calculations!$E$2=\"Orkney Health Board\",Calculations!$E$2=\"Orkney Islands Local Authority\"),$F206=1),0,IF(AND(OR(Calculations!$E$2=\"Shetland Health Board\",Calculations!$E$2=\"Western Isles Health Board\",Calculations!$E$2=\"Shetland Islands Local Authority\",Calculations!$E$2=\"Eilean Siar Local Authority\"),OR($F206=1,$F206=5)),0,hosp_count(VALUE(LEFT(Options!$B$24,2)),$C206,$E206,$F206,2016,$I206+$J206,1,$H206,$G206*$H206, Options!$B$8)))","v":11440.5538526121},{"$f":"IF(AND(OR(Calculations!$E$2=\"Orkney Health Board\",Calculations!$E$2=\"Orkney Islands Local Authority\"),$F206=1),0,IF(AND(OR(Calculations!$E$2=\"Shetland Health Board\",Calculations!$E$2=\"Western Isles Health Board\",Calculations!$E$2=\"Shetland Islands Local Authority\",Calculations!$E$2=\"Eilean Siar Local Authority\"),OR($F206=1,$F206=5)),0,prem_mort(VALUE(LEFT(Options!$B$24,2)),$C206,$E206,$F206,2016,$I206,1,$H206,$G206*$H206,Options!$B$8)))","v":468.55421100260003},{"$f":"IF(AND(OR(Calculations!$E$2=\"Orkney Health Board\",Calculations!$E$2=\"Orkney Islands Local Authority\"),$F206=1),0,IF(AND(OR(Calculations!$E$2=\"Shetland Health Board\",Calculations!$E$2=\"Western Isles Health Board\",Calculations!$E$2=\"Shetland Islands Local Authority\",Calculations!$E$2=\"Eilean Siar Local Authority\"),OR($F206=1,$F206=5)),0,prem_mort(VALUE(LEFT(Options!$B$24,2)),$C206,$E206,$F206,2016,$I206+$J206,1,$H206,$G206*$H206,Options!$B$8)))","v":467.8091483696},1414.9731563767591,1412.7231635247933,21083.100030013589,21049.575136519299,34665.192620000002,34548.993937947998,1414.9731563767591,1412.7231635247933,7782352.360072175,7769977.3993863631,115957050.16507474,115772663.25085615,190658559.41,190019466.658714,7782352.360072175,7769977.3993863631,5500]
[null,"Male 70-74",71.891098,84.341099999999997,"male",4,{"$f":"HLOOKUP(Calculations!$E$2,'Prevalence Rates'!$C$3:$BC$249,'Prevalence Rates'!$BD207,FALSE)","v":5.1111418897055186E-2},{"$f":"HLOOKUP(Calculations!$E$2,'Population 2016'!$C$3:$BC$249,'Population 2016'!BD207,FALSE)","v":24360},0,{"$f":"HLOOKUP(Results!E$4,Targeting!$C$3:$F$249,Targeting!$G207,FALSE)","v":721},{"$f":"IF(AND(OR(Calculations!$E$2=\"Orkney Health Board\",Calculations!$E$2=\"Orkney Islands Local Authority\"),$F207=1),0,IF(AND(OR(Calculations!$E$2=\"Shetland Health Board\",Calculations!$E$2=\"Western Isles Health Board\",Calculations!$E$2=\"Shetland Islands Local Authority\",Calculations!$E$2=\"Eilean Siar Local Authority\"),OR($F207=1,$F207=5)),0,new_ci(VALUE(LEFT(Options!$B$24,2)),$C207,$E207,$F207,2016,$I207,1,$H207,$G207*$H207,Options!$B$8)))","v":495.04517820159998},{"$f":"IF(AND(OR(Calculations!$E$2=\"Orkney Health Board\",Calculations!$E$2=\"Orkney Islands Local Authority\"),$F207=1),0,IF(AND(OR(Calculations!$E$2=\"Shetland Health Board\",Calculations!$E$2=\"Western Isles Health Board\",Calculations!$E$2=\"Shetland Islands Local Authority\",Calculations!$E$2=\"Eilean Siar Local Authority\"),OR($F207=1,$F207=5)),0,new_ci(VALUE(LEFT(Options!$B$24,2)),$C207,$E207,$F207,2016,$I207+$J207,1,$H207,$G207*$H207,Options!$B$8)))","v":494.26255743190001},{"$f":"IF(AND(OR(Calculations!$E$2=\"Orkney Health Board\",Calculations!$E$2=\"Orkney Islands Local Authority\"),$F207=1),0,IF(AND(OR(Calculations!$E$2=\"Shetland Health Board\",Calculations!$E$2=\"Western Isles Health Board\",Calculations!$E$2=\"Shetland Islands Local Authority\",Calculations!$E$2=\"Eilean Siar Local Authority\"),OR($F207=1,$F207=5)),0,new_yllv2(VALUE(LEFT(Options!$B$24,2)),$C207,$D207,$E207,$F207,2016,$I207,1,$H207,$G207*$H207,Options!$B$8)))","v":5668.2682804986998},{"$f":"IF(AND(OR(Calculations!$E$2=\"Orkney Health Board\",Calculations!$E$2=\"Orkney Islands Local Authority\"),$F207=1),0,IF(AND(OR(Calculations!$E$2=\"Shetland Health Board\",Calculations!$E$2=\"Western Isles Health Board\",Calculations!$E$2=\"Shetland Islands Local Authority\",Calculations!$E$2=\"Eilean Siar Local Authority\"),OR($F207=1,$F207=5)),0,new_yllv2(VALUE(LEFT(Options!$B$24,2)),$C207,$D207,$E207,$F207,2016,$I207+$J207,1,$H207,$G207*$H207,Options!$B$8)))","v":5659.3072711204004},{"$f":"IF(AND(OR(Calculations!$E$2=\"Orkney Health Board\",Calculations!$E$2=\"Orkney Islands Local Authority\"),$F207=1),0,IF(AND(OR(Calculations!$E$2=\"Shetland Health Board\",Calculations!$E$2=\"Western Isles Health Board\",Calculations!$E$2=\"Shetland Islands Local Authority\",Calculations!$E$2=\"Eilean Siar Local Authority\"),OR($F207=1,$F207=5)),0,hosp_count(VALUE(LEFT(Options!$B$24,2)),$C207,$E207,$F207,2016,$I207,1,$H207,$G207*$H207, Options!$B$8)))","v":10026.054313548},{"$f":"IF(AND(OR(Calculations!$E$2=\"Orkney Health Board\",Calculations!$E$2=\"Orkney Islands Local Authority\"),$F207=1),0,IF(AND(OR(Calculations!$E$2=\"Shetland Health Board\",Calculations!$E$2=\"Western Isles Health Board\",Calculations!$E$2=\"Shetland Islands Local Authority\",Calculations!$E$2=\"Eilean Siar Local Authority\"),OR($F207=1,$F207=5)),0,hosp_count(VALUE(LEFT(Options!$B$24,2)),$C207,$E207,$F207,2016,$I207+$J207,1,$H207,$G207*$H207, Options!$B$8)))","v":9992.4775946179998},{"$f":"IF(AND(OR(Calculations!$E$2=\"Orkney Health Board\",Calculations!$E$2=\"Orkney Islands Local Authority\"),$F207=1),0,IF(AND(OR(Calculations!$E$2=\"Shetland Health Board\",Calculations!$E$2=\"Western Isles Health Board\",Calculations!$E$2=\"Shetland Islands Local Authority\",Calculations!$E$2=\"Eilean Siar Local Authority\"),OR($F207=1,$F207=5)),0,prem_mort(VALUE(LEFT(Options!$B$24,2)),$C207,$E207,$F207,2016,$I207,1,$H207,$G207*$H207,Options!$B$8)))","v":495.04517820159998},{"$f":"IF(AND(OR(Calculations!$E$2=\"Orkney Health Board\",Calculations!$E$2=\"Orkney Islands Local Authority\"),$F207=1),0,IF(AND(OR(Calculations!$E$2=\"Shetland Health Board\",Calculations!$E$2=\"Western Isles Health Board\",Calculations!$E$2=\"Shetland Islands Local Authority\",Calculations!$E$2=\"Eilean Siar Local Authority\"),OR($F207=1,$F207=5)),0,prem_mort(VALUE(LEFT(Options!$B$24,2)),$C207,$E207,$F207,2016,$I207+$J207,1,$H207,$G207*$H207,Options!$B$8)))","v":494.26255743190001},2032.2051650311987,2028.9924360915434,23268.753204017652,23231.967451233169,41157.85843,41020.022966412151,2032.2051650311987,2028.9924360915434,10161025.825155994,10144962.180457717,116343766.02008826,116159837.25616585,205789292.15000001,205100114.83206075,10161025.825155994,10144962.180457717,5000]
[null,"Male 75-79",76.907700000000006,86.357700000000008,"male",4,{"$f":"HLOOKUP(Calculations!$E$2,'Prevalence Rates'!$C$3:$BC$249,'Prevalence Rates'!$BD208,FALSE)","v":5.1111418897055186E-2},{"$f":"HLOOKUP(Calculations!$E$2,'Population 2016'!$C$3:$BC$249,'Population 2016'!BD208,FALSE)","v":17285},0,{"$f":"HLOOKUP(Results!E$4,Targeting!$C$3:$F$249,Targeting!$G208,FALSE)","v":512},{"$f":"IF(AND(OR(Calculations!$E$2=\"Orkney Health Board\",Calculations!$E$2=\"Orkney Islands Local Authority\"),$F208=1),0,IF(AND(OR(Calculations!$E$2=\"Shetland Health Board\",Calculations!$E$2=\"Western Isles Health Board\",Calculations!$E$2=\"Shetland Islands Local Authority\",Calculations!$E$2=\"Eilean Siar Local Authority\"),OR($F208=1,$F208=5)),0,new_ci(VALUE(LEFT(Options!$B$24,2)),$C208,$E208,$F208,2016,$I208,1,$H208,$G208*$H208,Options!$B$8)))","v":510.5849619608},{"$f":"IF(AND(OR(Calculations!$E$2=\"Orkney Health Board\",Calculations!$E$2=\"Orkney Islands Local Authority\"),$F208=1),0,IF(AND(OR(Calculations!$E$2=\"Shetland Health Board\",Calculations!$E$2=\"Western Isles Health Board\",Calculations!$E$2=\"Shetland Islands Local Authority\",Calculations!$E$2=\"Eilean Siar Local Authority\"),OR($F208=1,$F208=5)),0,new_ci(VALUE(LEFT(Options!$B$24,2)),$C208,$E208,$F208,2016,$I208+$J208,1,$H208,$G208*$H208,Options!$B$8)))","v":509.783075548},{"$f":"IF(AND(OR(Calculations!$E$2=\"Orkney Health Board\",Calculations!$E$2=\"Orkney Islands Local Authority\"),$F208=1),0,IF(AND(OR(Calculations!$E$2=\"Shetland Health Board\",Calculations!$E$2=\"Western Isles Health Board\",Calculations!$E$2=\"Shetland Islands Local Authority\",Calculations!$E$2=\"Eilean Siar Local Authority\"),OR($F208=1,$F208=5)),0,new_yllv2(VALUE(LEFT(Options!$B$24,2)),$C208,$D208,$E208,$F208,2016,$I208,1,$H208,$G208*$H208,Options!$B$8)))","v":4314.4429285688002},{"$f":"IF(AND(OR(Calculations!$E$2=\"Orkney Health Board\",Calculations!$E$2=\"Orkney Islands Local Authority\"),$F208=1),0,IF(AND(OR(Calculations!$E$2=\"Shetland Health Board\",Calculations!$E$2=\"Western Isles Health Board\",Calculations!$E$2=\"Shetland Islands Local Authority\",Calculations!$E$2=\"Eilean Siar Local Authority\"),OR($F208=1,$F208=5)),0,new_yllv2(VALUE(LEFT(Options!$B$24,2)),$C208,$D208,$E208,$F208,2016,$I208+$J208,1,$H208,$G208*$H208,Options!$B$8)))","v":4307.6669883805998},{"$f":"IF(AND(OR(Calculations!$E$2=\"Orkney Health Board\",Calculations!$E$2=\"Orkney Islands Local Authority\"),$F208=1),0,IF(AND(OR(Calculations!$E$2=\"Shetland Health Board\",Calculations!$E$2=\"Western Isles Health Board\",Calculations!$E$2=\"Shetland Islands Local Authority\",Calculations!$E$2=\"Eilean Siar Local Authority\"),OR($F208=1,$F208=5)),0,hosp_count(VALUE(LEFT(Options!$B$24,2)),$C208,$E208,$F208,2016,$I208,1,$H208,$G208*$H208, Options!$B$8)))","v":8500.7040771635002},{"$f":"IF(AND(OR(Calculations!$E$2=\"Orkney Health Board\",Calculations!$E$2=\"Orkney Islands Local Authority\"),$F208=1),0,IF(AND(OR(Calculations!$E$2=\"Shetland Health Board\",Calculations!$E$2=\"Western Isles Health Board\",Calculations!$E$2=\"Shetland Islands Local Authority\",Calculations!$E$2=\"Eilean Siar Local Authority\"),OR($F208=1,$F208=5)),0,hosp_count(VALUE(LEFT(Options!$B$24,2)),$C208,$E208,$F208,2016,$I208+$J208,1,$H208,$G208*$H208, Options!$B$8)))","v":8472.2132081424006},{"$f":"IF(AND(OR(Calculations!$E$2=\"Orkney Health Board\",Calculations!$E$2=\"Orkney Islands Local Authority\"),$F208=1),0,IF(AND(OR(Calculations!$E$2=\"Shetland Health Board\",Calculations!$E$2=\"Western Isles Health Board\",Calculations!$E$2=\"Shetland Islands Local Authority\",Calculations!$E$2=\"Eilean Siar Local Authority\"),OR($F208=1,$F208=5)),0,prem_mort(VALUE(LEFT(Options!$B$24,2)),$C208,$E208,$F208,2016,$I208,1,$H208,$G208*$H208,Options!$B$8)))","v":0},{"$f":"IF(AND(OR(Calculations!$E$2=\"Orkney Health Board\",Calculations!$E$2=\"Orkney Islands Local Authority\"),$F208=1),0,IF(AND(OR(Calculations!$E$2=\"Shetland Health Board\",Calculations!$E$2=\"Western Isles Health Board\",Calculations!$E$2=\"Shetland Islands Local Authority\",Calculations!$E$2=\"Eilean Siar Local Authority\"),OR($F208=1,$F208=5)),0,prem_mort(VALUE(LEFT(Options!$B$24,2)),$C208,$E208,$F208,2016,$I208+$J208,1,$H208,$G208*$H208,Options!$B$8)))","v":0},2953.9193633832801,2949.2801593751806,24960.61862058895,24921.417346720275,49179.659110000001,49014.829089629166,0,0,11815677.45353312,11797120.637500722,99842474.482355803,99685669.386881098,196718636.44,196059316.35851666,0,0,4000]
[null,"Male 80-84",81.797089,88.627089999999995,"male",4,{"$f":"HLOOKUP(Calculations!$E$2,'Prevalence Rates'!$C$3:$BC$249,'Prevalence Rates'!$BD209,FALSE)","v":5.1111418897055186E-2},{"$f":"HLOOKUP(Calculations!$E$2,'Population 2016'!$C$3:$BC$249,'Population 2016'!BD209,FALSE)","v":11713},0,{"$f":"HLOOKUP(Results!E$4,Targeting!$C$3:$F$249,Targeting!$G209,FALSE)","v":347},{"$f":"IF(AND(OR(Calculations!$E$2=\"Orkney Health Board\",Calculations!$E$2=\"Orkney Islands Local Authority\"),$F209=1),0,IF(AND(OR(Calculations!$E$2=\"Shetland Health Board\",Calculations!$E$2=\"Western Isles Health Board\",Calculations!$E$2=\"Shetland Islands Local Authority\",Calculations!$E$2=\"Eilean Siar Local Authority\"),OR($F209=1,$F209=5)),0,new_ci(VALUE(LEFT(Options!$B$24,2)),$C209,$E209,$F209,2016,$I209,1,$H209,$G209*$H209,Options!$B$8)))","v":497.13861660660001},{"$f":"IF(AND(OR(Calculations!$E$2=\"Orkney Health Board\",Calculations!$E$2=\"Orkney Islands Local Authority\"),$F209=1),0,IF(AND(OR(Calculations!$E$2=\"Shetland Health Board\",Calculations!$E$2=\"Western Isles Health Board\",Calculations!$E$2=\"Shetland Islands Local Authority\",Calculations!$E$2=\"Eilean Siar Local Authority\"),OR($F209=1,$F209=5)),0,new_ci(VALUE(LEFT(Options!$B$24,2)),$C209,$E209,$F209,2016,$I209+$J209,1,$H209,$G209*$H209,Options!$B$8)))","v":496.3658657547},{"$f":"IF(AND(OR(Calculations!$E$2=\"Orkney Health Board\",Calculations!$E$2=\"Orkney Islands Local Authority\"),$F209=1),0,IF(AND(OR(Calculations!$E$2=\"Shetland Health Board\",Calculations!$E$2=\"Western Isles Health Board\",Calculations!$E$2=\"Shetland Islands Local Authority\",Calculations!$E$2=\"Eilean Siar Local Authority\"),OR($F209=1,$F209=5)),0,new_yllv2(VALUE(LEFT(Options!$B$24,2)),$C209,$D209,$E209,$F209,2016,$I209,1,$H209,$G209*$H209,Options!$B$8)))","v":2898.3186319551},{"$f":"IF(AND(OR(Calculations!$E$2=\"Orkney Health Board\",Calculations!$E$2=\"Orkney Islands Local Authority\"),$F209=1),0,IF(AND(OR(Calculations!$E$2=\"Shetland Health Board\",Calculations!$E$2=\"Western Isles Health Board\",Calculations!$E$2=\"Shetland Islands Local Authority\",Calculations!$E$2=\"Eilean Siar Local Authority\"),OR($F209=1,$F209=5)),0,new_yllv2(VALUE(LEFT(Options!$B$24,2)),$C209,$D209,$E209,$F209,2016,$I209+$J209,1,$H209,$G209*$H209,Options!$B$8)))","v":2893.8134937158002},{"$f":"IF(AND(OR(Calculations!$E$2=\"Orkney Health Board\",Calculations!$E$2=\"Orkney Islands Local Authority\"),$F209=1),0,IF(AND(OR(Calculations!$E$2=\"Shetland Health Board\",Calculations!$E$2=\"Western Isles Health Board\",Calculations!$E$2=\"Shetland Islands Local Authority\",Calculations!$E$2=\"Eilean Siar Local Authority\"),OR($F209=1,$F209=5)),0,hosp_count(VALUE(LEFT(Options!$B$24,2)),$C209,$E209,$F209,2016,$I209,1,$H209,$G209*$H209, Options!$B$8)))","v":6852.1264324473996},{"$f":"IF(AND(OR(Calculations!$E$2=\"Orkney Health Board\",Calculations!$E$2=\"Orkney Islands Local Authority\"),$F209=1),0,IF(AND(OR(Calculations!$E$2=\"Shetland Health Board\",Calculations!$E$2=\"Western Isles Health Board\",Calculations!$E$2=\"Shetland Islands Local Authority\",Calculations!$E$2=\"Eilean Siar Local Authority\"),OR($F209=1,$F209=5)),0,hosp_count(VALUE(LEFT(Options!$B$24,2)),$C209,$E209,$F209,2016,$I209+$J209,1,$H209,$G209*$H209, Options!$B$8)))","v":6829.1577056906999},{"$f":"IF(AND(OR(Calculations!$E$2=\"Orkney Health Board\",Calculations!$E$2=\"Orkney Islands Local Authority\"),$F209=1),0,IF(AND(OR(Calculations!$E$2=\"Shetland Health Board\",Calculations!$E$2=\"Western Isles Health Board\",Calculations!$E$2=\"Shetland Islands Local Authority\",Calculations!$E$2=\"Eilean Siar Local Authority\"),OR($F209=1,$F209=5)),0,prem_mort(VALUE(LEFT(Options!$B$24,2)),$C209,$E209,$F209,2016,$I209,1,$H209,$G209*$H209,Options!$B$8)))","v":0},{"$f":"IF(AND(OR(Calculations!$E$2=\"Orkney Health Board\",Calculations!$E$2=\"Orkney Islands Local Authority\"),$F209=1),0,IF(AND(OR(Calculations!$E$2=\"Shetland Health Board\",Calculations!$E$2=\"Western Isles Health Board\",Calculations!$E$2=\"Shetland Islands Local Authority\",Calculations!$E$2=\"Eilean Siar Local Authority\"),OR($F209=1,$F209=5)),0,prem_mort(VALUE(LEFT(Options!$B$24,2)),$C209,$E209,$F209,2016,$I209+$J209,1,$H209,$G209*$H209,Options!$B$8)))","v":0},4244.332080650559,4237.7347029343464,24744.460274524889,24705.997555842227,58500.182979999998,58304.086960562621,0,0,10610830.201626398,10594336.757335866,61861150.686312221,61764993.889605567,146250457.44999999,145760217.40140656,0,0,2500]
[null,"Male 85-89",86.630752999999999,91.420750000000012,"male",4,{"$f":"HLOOKUP(Calculations!$E$2,'Prevalence Rates'!$C$3:$BC$249,'Prevalence Rates'!$BD210,FALSE)","v":5.1111418897055186E-2},{"$f":"HLOOKUP(Calculations!$E$2,'Population 2016'!$C$3:$BC$249,'Population 2016'!BD210,FALSE)","v":6184},0,{"$f":"HLOOKUP(Results!E$4,Targeting!$C$3:$F$249,Targeting!$G210,FALSE)","v":183},{"$f":"IF(AND(OR(Calculations!$E$2=\"Orkney Health Board\",Calculations!$E$2=\"Orkney Islands Local Authority\"),$F210=1),0,IF(AND(OR(Calculations!$E$2=\"Shetland Health Board\",Calculations!$E$2=\"Western Isles Health Board\",Calculations!$E$2=\"Shetland Islands Local Authority\",Calculations!$E$2=\"Eilean Siar Local Authority\"),OR($F210=1,$F210=5)),0,new_ci(VALUE(LEFT(Options!$B$24,2)),$C210,$E210,$F210,2016,$I210,1,$H210,$G210*$H210,Options!$B$8)))","v":374.48524594719999},{"$f":"IF(AND(OR(Calculations!$E$2=\"Orkney Health Board\",Calculations!$E$2=\"Orkney Islands Local Authority\"),$F210=1),0,IF(AND(OR(Calculations!$E$2=\"Shetland Health Board\",Calculations!$E$2=\"Western Isles Health Board\",Calculations!$E$2=\"Shetland Islands Local Authority\",Calculations!$E$2=\"Eilean Siar Local Authority\"),OR($F210=1,$F210=5)),0,new_ci(VALUE(LEFT(Options!$B$24,2)),$C210,$E210,$F210,2016,$I210+$J210,1,$H210,$G210*$H210,Options!$B$8)))","v":373.91242011579999},{"$f":"IF(AND(OR(Calculations!$E$2=\"Orkney Health Board\",Calculations!$E$2=\"Orkney Islands Local Authority\"),$F210=1),0,IF(AND(OR(Calculations!$E$2=\"Shetland Health Board\",Calculations!$E$2=\"Western Isles Health Board\",Calculations!$E$2=\"Shetland Islands Local Authority\",Calculations!$E$2=\"Eilean Siar Local Authority\"),OR($F210=1,$F210=5)),0,new_yllv2(VALUE(LEFT(Options!$B$24,2)),$C210,$D210,$E210,$F210,2016,$I210,1,$H210,$G210*$H210,Options!$B$8)))","v":1419.2979586842},{"$f":"IF(AND(OR(Calculations!$E$2=\"Orkney Health Board\",Calculations!$E$2=\"Orkney Islands Local Authority\"),$F210=1),0,IF(AND(OR(Calculations!$E$2=\"Shetland Health Board\",Calculations!$E$2=\"Western Isles Health Board\",Calculations!$E$2=\"Shetland Islands Local Authority\",Calculations!$E$2=\"Eilean Siar Local Authority\"),OR($F210=1,$F210=5)),0,new_yllv2(VALUE(LEFT(Options!$B$24,2)),$C210,$D210,$E210,$F210,2016,$I210+$J210,1,$H210,$G210*$H210,Options!$B$8)))","v":1417.1269505016},{"$f":"IF(AND(OR(Calculations!$E$2=\"Orkney Health Board\",Calculations!$E$2=\"Orkney Islands Local Authority\"),$F210=1),0,IF(AND(OR(Calculations!$E$2=\"Shetland Health Board\",Calculations!$E$2=\"Western Isles Health Board\",Calculations!$E$2=\"Shetland Islands Local Authority\",Calculations!$E$2=\"Eilean Siar Local Authority\"),OR($F210=1,$F210=5)),0,hosp_count(VALUE(LEFT(Options!$B$24,2)),$C210,$E210,$F210,2016,$I210,1,$H210,$G210*$H210, Options!$B$8)))","v":4294.7648959575999},{"$f":"IF(AND(OR(Calculations!$E$2=\"Orkney Health Board\",Calculations!$E$2=\"Orkney Islands Local Authority\"),$F210=1),0,IF(AND(OR(Calculations!$E$2=\"Shetland Health Board\",Calculations!$E$2=\"Western Isles Health Board\",Calculations!$E$2=\"Shetland Islands Local Authority\",Calculations!$E$2=\"Eilean Siar Local Authority\"),OR($F210=1,$F210=5)),0,hosp_count(VALUE(LEFT(Options!$B$24,2)),$C210,$E210,$F210,2016,$I210+$J210,1,$H210,$G210*$H210, Options!$B$8)))","v":4280.3844873909002},{"$f":"IF(AND(OR(Calculations!$E$2=\"Orkney Health Board\",Calculations!$E$2=\"Orkney Islands Local Authority\"),$F210=1),0,IF(AND(OR(Calculations!$E$2=\"Shetland Health Board\",Calculations!$E$2=\"Western Isles Health Board\",Calculations!$E$2=\"Shetland Islands Local Authority\",Calculations!$E$2=\"Eilean Siar Local Authority\"),OR($F210=1,$F210=5)),0,prem_mort(VALUE(LEFT(Options!$B$24,2)),$C210,$E210,$F210,2016,$I210,1,$H210,$G210*$H210,Options!$B$8)))","v":0},{"$f":"IF(AND(OR(Calculations!$E$2=\"Orkney Health Board\",Calculations!$E$2=\"Orkney Islands Local Authority\"),$F210=1),0,IF(AND(OR(Calculations!$E$2=\"Shetland Health Board\",Calculations!$E$2=\"Western Isles Health Board\",Calculations!$E$2=\"Shetland Islands Local Authority\",Calculations!$E$2=\"Eilean Siar Local Authority\"),OR($F210=1,$F210=5)),0,prem_mort(VALUE(LEFT(Options!$B$24,2)),$C210,$E210,$F210,2016,$I210+$J210,1,$H210,$G210*$H210,Options!$B$8)))","v":0},6055.7122565847349,6046.4492256759377,22951.131285320182,22916.024425963777,69449.626390000005,69217.084207485444,0,0,9083568.3848771024,9069673.838513907,34426696.927980274,34374036.638945661,104174439.58500001,103825626.31122817,0,0,1500]
[null,"Male 90+",92.215477000000007,95.515479999999997,"male",4,{"$f":"HLOOKUP(Calculations!$E$2,'Prevalence Rates'!$C$3:$BC$249,'Prevalence Rates'!$BD211,FALSE)","v":5.1111418897055186E-2},{"$f":"HLOOKUP(Calculations!$E$2,'Population 2016'!$C$3:$BC$249,'Population 2016'!BD211,FALSE)","v":2544},0,{"$f":"HLOOKUP(Results!E$4,Targeting!$C$3:$F$249,Targeting!$G211,FALSE)","v":75},{"$f":"IF(AND(OR(Calculations!$E$2=\"Orkney Health Board\",Calculations!$E$2=\"Orkney Islands Local Authority\"),$F211=1),0,IF(AND(OR(Calculations!$E$2=\"Shetland Health Board\",Calculations!$E$2=\"Western Isles Health Board\",Calculations!$E$2=\"Shetland Islands Local Authority\",Calculations!$E$2=\"Eilean Siar Local Authority\"),OR($F211=1,$F211=5)),0,new_ci(VALUE(LEFT(Options!$B$24,2)),$C211,$E211,$F211,2016,$I211,1,$H211,$G211*$H211,Options!$B$8)))","v":231.0685786807},{"$f":"IF(AND(OR(Calculations!$E$2=\"Orkney Health Board\",Calculations!$E$2=\"Orkney Islands Local Authority\"),$F211=1),0,IF(AND(OR(Calculations!$E$2=\"Shetland Health Board\",Calculations!$E$2=\"Western Isles Health Board\",Calculations!$E$2=\"Shetland Islands Local Authority\",Calculations!$E$2=\"Eilean Siar Local Authority\"),OR($F211=1,$F211=5)),0,new_ci(VALUE(LEFT(Options!$B$24,2)),$C211,$E211,$F211,2016,$I211+$J211,1,$H211,$G211*$H211,Options!$B$8)))","v":230.72540025070001},{"$f":"IF(AND(OR(Calculations!$E$2=\"Orkney Health Board\",Calculations!$E$2=\"Orkney Islands Local Authority\"),$F211=1),0,IF(AND(OR(Calculations!$E$2=\"Shetland Health Board\",Calculations!$E$2=\"Western Isles Health Board\",Calculations!$E$2=\"Shetland Islands Local Authority\",Calculations!$E$2=\"Eilean Siar Local Authority\"),OR($F211=1,$F211=5)),0,new_yllv2(VALUE(LEFT(Options!$B$24,2)),$C211,$D211,$E211,$F211,2016,$I211,1,$H211,$G211*$H211,Options!$B$8)))","v":531.45842417129995},{"$f":"IF(AND(OR(Calculations!$E$2=\"Orkney Health Board\",Calculations!$E$2=\"Orkney Islands Local Authority\"),$F211=1),0,IF(AND(OR(Calculations!$E$2=\"Shetland Health Board\",Calculations!$E$2=\"Western Isles Health Board\",Calculations!$E$2=\"Shetland Islands Local Authority\",Calculations!$E$2=\"Eilean Siar Local Authority\"),OR($F211=1,$F211=5)),0,new_yllv2(VALUE(LEFT(Options!$B$24,2)),$C211,$D211,$E211,$F211,2016,$I211+$J211,1,$H211,$G211*$H211,Options!$B$8)))","v":530.66911275279995},{"$f":"IF(AND(OR(Calculations!$E$2=\"Orkney Health Board\",Calculations!$E$2=\"Orkney Islands Local Authority\"),$F211=1),0,IF(AND(OR(Calculations!$E$2=\"Shetland Health Board\",Calculations!$E$2=\"Western Isles Health Board\",Calculations!$E$2=\"Shetland Islands Local Authority\",Calculations!$E$2=\"Eilean Siar Local Authority\"),OR($F211=1,$F211=5)),0,hosp_count(VALUE(LEFT(Options!$B$24,2)),$C211,$E211,$F211,2016,$I211,1,$H211,$G211*$H211, Options!$B$8)))","v":2154.1580945711999},{"$f":"IF(AND(OR(Calculations!$E$2=\"Orkney Health Board\",Calculations!$E$2=\"Orkney Islands Local Authority\"),$F211=1),0,IF(AND(OR(Calculations!$E$2=\"Shetland Health Board\",Calculations!$E$2=\"Western Isles Health Board\",Calculations!$E$2=\"Shetland Islands Local Authority\",Calculations!$E$2=\"Eilean Siar Local Authority\"),OR($F211=1,$F211=5)),0,hosp_count(VALUE(LEFT(Options!$B$24,2)),$C211,$E211,$F211,2016,$I211+$J211,1,$H211,$G211*$H211, Options!$B$8)))","v":2146.9723470909998},{"$f":"IF(AND(OR(Calculations!$E$2=\"Orkney Health Board\",Calculations!$E$2=\"Orkney Islands Local Authority\"),$F211=1),0,IF(AND(OR(Calculations!$E$2=\"Shetland Health Board\",Calculations!$E$2=\"Western Isles Health Board\",Calculations!$E$2=\"Shetland Islands Local Authority\",Calculations!$E$2=\"Eilean Siar Local Authority\"),OR($F211=1,$F211=5)),0,prem_mort(VALUE(LEFT(Options!$B$24,2)),$C211,$E211,$F211,2016,$I211,1,$H211,$G211*$H211,Options!$B$8)))","v":0},{"$f":"IF(AND(OR(Calculations!$E$2=\"Orkney Health Board\",Calculations!$E$2=\"Orkney Islands Local Authority\"),$F211=1),0,IF(AND(OR(Calculations!$E$2=\"Shetland Health Board\",Calculations!$E$2=\"Western Isles Health Board\",Calculations!$E$2=\"Shetland Islands Local Authority\",Calculations!$E$2=\"Eilean Siar Local Authority\"),OR($F211=1,$F211=5)),0,prem_mort(VALUE(LEFT(Options!$B$24,2)),$C211,$E211,$F211,2016,$I211+$J211,1,$H211,$G211*$H211,Options!$B$8)))","v":0},9082.8843821029877,9069.3946639426104,20890.661327488204,20859.634935251568,84676.025729999994,84393.567102633635,0,0,9082884.3821029887,9069394.6639426108,20890661.327488203,20859634.935251568,84676025.729999989,84393567.10263364,0,0,1000]
[null,"Female 0-4",2.0384007,81.468401,"female",5,{"$f":"HLOOKUP(Calculations!$E$2,'Prevalence Rates'!$C$3:$BC$249,'Prevalence Rates'!$BD212,FALSE)","v":0},{"$f":"HLOOKUP(Calculations!$E$2,'Population 2016'!$C$3:$BC$249,'Population 2016'!BD212,FALSE)","v":0},0,{"$f":"HLOOKUP(Results!E$4,Targeting!$C$3:$F$249,Targeting!$G212,FALSE)","v":0},{"$f":"IF(AND(OR(Calculations!$E$2=\"Orkney Health Board\",Calculations!$E$2=\"Orkney Islands Local Authority\"),$F212=1),0,IF(AND(OR(Calculations!$E$2=\"Shetland Health Board\",Calculations!$E$2=\"Western Isles Health Board\",Calculations!$E$2=\"Shetland Islands Local Authority\",Calculations!$E$2=\"Eilean Siar Local Authority\"),OR($F212=1,$F212=5)),0,new_ci(VALUE(LEFT(Options!$B$24,2)),$C212,$E212,$F212,2016,$I212,1,$H212,$G212*$H212,Options!$B$8)))","v":{"$error":"#VALUE!"}},{"$f":"IF(AND(OR(Calculations!$E$2=\"Orkney Health Board\",Calculations!$E$2=\"Orkney Islands Local Authority\"),$F212=1),0,IF(AND(OR(Calculations!$E$2=\"Shetland Health Board\",Calculations!$E$2=\"Western Isles Health Board\",Calculations!$E$2=\"Shetland Islands Local Authority\",Calculations!$E$2=\"Eilean Siar Local Authority\"),OR($F212=1,$F212=5)),0,new_ci(VALUE(LEFT(Options!$B$24,2)),$C212,$E212,$F212,2016,$I212+$J212,1,$H212,$G212*$H212,Options!$B$8)))","v":{"$error":"#VALUE!"}},{"$f":"IF(AND(OR(Calculations!$E$2=\"Orkney Health Board\",Calculations!$E$2=\"Orkney Islands Local Authority\"),$F212=1),0,IF(AND(OR(Calculations!$E$2=\"Shetland Health Board\",Calculations!$E$2=\"Western Isles Health Board\",Calculations!$E$2=\"Shetland Islands Local Authority\",Calculations!$E$2=\"Eilean Siar Local Authority\"),OR($F212=1,$F212=5)),0,new_yllv2(VALUE(LEFT(Options!$B$24,2)),$C212,$D212,$E212,$F212,2016,$I212,1,$H212,$G212*$H212,Options!$B$8)))","v":{"$error":"#VALUE!"}},{"$f":"IF(AND(OR(Calculations!$E$2=\"Orkney Health Board\",Calculations!$E$2=\"Orkney Islands Local Authority\"),$F212=1),0,IF(AND(OR(Calculations!$E$2=\"Shetland Health Board\",Calculations!$E$2=\"Western Isles Health Board\",Calculations!$E$2=\"Shetland Islands Local Authority\",Calculations!$E$2=\"Eilean Siar Local Authority\"),OR($F212=1,$F212=5)),0,new_yllv2(VALUE(LEFT(Options!$B$24,2)),$C212,$D212,$E212,$F212,2016,$I212+$J212,1,$H212,$G212*$H212,Options!$B$8)))","v":{"$error":"#VALUE!"}},{"$f":"IF(AND(OR(Calculations!$E$2=\"Orkney Health Board\",Calculations!$E$2=\"Orkney Islands Local Authority\"),$F212=1),0,IF(AND(OR(Calculations!$E$2=\"Shetland Health Board\",Calculations!$E$2=\"Western Isles Health Board\",Calculations!$E$2=\"Shetland Islands Local Authority\",Calculations!$E$2=\"Eilean Siar Local Authority\"),OR($F212=1,$F212=5)),0,hosp_count(VALUE(LEFT(Options!$B$24,2)),$C212,$E212,$F212,2016,$I212,1,$H212,$G212*$H212, Options!$B$8)))","v":{"$error":"#VALUE!"}},{"$f":"IF(AND(OR(Calculations!$E$2=\"Orkney Health Board\",Calculations!$E$2=\"Orkney Islands Local Authority\"),$F212=1),0,IF(AND(OR(Calculations!$E$2=\"Shetland Health Board\",Calculations!$E$2=\"Western Isles Health Board\",Calculations!$E$2=\"Shetland Islands Local Authority\",Calculations!$E$2=\"Eilean Siar Local Authority\"),OR($F212=1,$F212=5)),0,hosp_count(VALUE(LEFT(Options!$B$24,2)),$C212,$E212,$F212,2016,$I212+$J212,1,$H212,$G212*$H212, Options!$B$8)))","v":{"$error":"#VALUE!"}},{"$f":"IF(AND(OR(Calculations!$E$2=\"Orkney Health Board\",Calculations!$E$2=\"Orkney Islands Local Authority\"),$F212=1),0,IF(AND(OR(Calculations!$E$2=\"Shetland Health Board\",Calculations!$E$2=\"Western Isles Health Board\",Calculations!$E$2=\"Shetland Islands Local Authority\",Calculations!$E$2=\"Eilean Siar Local Authority\"),OR($F212=1,$F212=5)),0,prem_mort(VALUE(LEFT(Options!$B$24,2)),$C212,$E212,$F212,2016,$I212,1,$H212,$G212*$H212,Options!$B$8)))","v":{"$error":"#VALUE!"}},{"$f":"IF(AND(OR(Calculations!$E$2=\"Orkney Health Board\",Calculations!$E$2=\"Orkney Islands Local Authority\"),$F212=1),0,IF(AND(OR(Calculations!$E$2=\"Shetland Health Board\",Calculations!$E$2=\"Western Isles Health Board\",Calculations!$E$2=\"Shetland Islands Local Authority\",Calculations!$E$2=\"Eilean Siar Local Authority\"),OR($F212=1,$F212=5)),0,prem_mort(VALUE(LEFT(Options!$B$24,2)),$C212,$E212,$F212,2016,$I212+$J212,1,$H212,$G212*$H212,Options!$B$8)))","v":{"$error":"#VALUE!"}},{"$error":"#VALUE!"},{"$error":"#VALUE!"},{"$error":"#VALUE!"},{"$error":"#VALUE!"},{"$error":"#VALUE!"},{"$error":"#VALUE!"},{"$error":"#VALUE!"},{"$error":"#VALUE!"},{"$error":"#VALUE!"},{"$error":"#VALUE!"},{"$error":"#VALUE!"},{"$error":"#VALUE!"},{"$error":"#VALUE!"},{"$error":"#VALUE!"},{"$error":"#VALUE!"},{"$error":"#VALUE!"},5000]
[null,"Female 5-9",6.9792794999999996,81.439279999999997,"female",5,{"$f":"HLOOKUP(Calculations!$E$2,'Prevalence Rates'!$C$3:$BC$249,'Prevalence Rates'!$BD213,FALSE)","v":0},{"$f":"HLOOKUP(Calculations!$E$2,'Population 2016'!$C$3:$BC$249,'Population 2016'!BD213,FALSE)","v":0},0,{"$f":"HLOOKUP(Results!E$4,Targeting!$C$3:$F$249,Targeting!$G213,FALSE)","v":0},{"$f":"IF(AND(OR(Calculations!$E$2=\"Orkney Health Board\",Calculations!$E$2=\"Orkney Islands Local Authority\"),$F213=1),0,IF(AND(OR(Calculations!$E$2=\"Shetland Health Board\",Calculations!$E$2=\"Western Isles Health Board\",Calculations!$E$2=\"Shetland Islands Local Authority\",Calculations!$E$2=\"Eilean Siar Local Authority\"),OR($F213=1,$F213=5)),0,new_ci(VALUE(LEFT(Options!$B$24,2)),$C213,$E213,$F213,2016,$I213,1,$H213,$G213*$H213,Options!$B$8)))","v":{"$error":"#VALUE!"}},{"$f":"IF(AND(OR(Calculations!$E$2=\"Orkney Health Board\",Calculations!$E$2=\"Orkney Islands Local Authority\"),$F213=1),0,IF(AND(OR(Calculations!$E$2=\"Shetland Health Board\",Calculations!$E$2=\"Western Isles Health Board\",Calculations!$E$2=\"Shetland Islands Local Authority\",Calculations!$E$2=\"Eilean Siar Local Authority\"),OR($F213=1,$F213=5)),0,new_ci(VALUE(LEFT(Options!$B$24,2)),$C213,$E213,$F213,2016,$I213+$J213,1,$H213,$G213*$H213,Options!$B$8)))","v":{"$error":"#VALUE!"}},{"$f":"IF(AND(OR(Calculations!$E$2=\"Orkney Health Board\",Calculations!$E$2=\"Orkney Islands Local Authority\"),$F213=1),0,IF(AND(OR(Calculations!$E$2=\"Shetland Health Board\",Calculations!$E$2=\"Western Isles Health Board\",Calculations!$E$2=\"Shetland Islands Local Authority\",Calculations!$E$2=\"Eilean Siar Local Authority\"),OR($F213=1,$F213=5)),0,new_yllv2(VALUE(LEFT(Options!$B$24,2)),$C213,$D213,$E213,$F213,2016,$I213,1,$H213,$G213*$H213,Options!$B$8)))","v":{"$error":"#VALUE!"}},{"$f":"IF(AND(OR(Calculations!$E$2=\"Orkney Health Board\",Calculations!$E$2=\"Orkney Islands Local Authority\"),$F213=1),0,IF(AND(OR(Calculations!$E$2=\"Shetland Health Board\",Calculations!$E$2=\"Western Isles Health Board\",Calculations!$E$2=\"Shetland Islands Local Authority\",Calculations!$E$2=\"Eilean Siar Local Authority\"),OR($F213=1,$F213=5)),0,new_yllv2(VALUE(LEFT(Options!$B$24,2)),$C213,$D213,$E213,$F213,2016,$I213+$J213,1,$H213,$G213*$H213,Options!$B$8)))","v":{"$error":"#VALUE!"}},{"$f":"IF(AND(OR(Calculations!$E$2=\"Orkney Health Board\",Calculations!$E$2=\"Orkney Islands Local Authority\"),$F213=1),0,IF(AND(OR(Calculations!$E$2=\"Shetland Health Board\",Calculations!$E$2=\"Western Isles Health Board\",Calculations!$E$2=\"Shetland Islands Local Authority\",Calculations!$E$2=\"Eilean Siar Local Authority\"),OR($F213=1,$F213=5)),0,hosp_count(VALUE(LEFT(Options!$B$24,2)),$C213,$E213,$F213,2016,$I213,1,$H213,$G213*$H213, Options!$B$8)))","v":{"$error":"#VALUE!"}},{"$f":"IF(AND(OR(Calculations!$E$2=\"Orkney Health Board\",Calculations!$E$2=\"Orkney Islands Local Authority\"),$F213=1),0,IF(AND(OR(Calculations!$E$2=\"Shetland Health Board\",Calculations!$E$2=\"Western Isles Health Board\",Calculations!$E$2=\"Shetland Islands Local Authority\",Calculations!$E$2=\"Eilean Siar Local Authority\"),OR($F213=1,$F213=5)),0,hosp_count(VALUE(LEFT(Options!$B$24,2)),$C213,$E213,$F213,2016,$I213+$J213,1,$H213,$G213*$H213, Options!$B$8)))","v":{"$error":"#VALUE!"}},{"$f":"IF(AND(OR(Calculations!$E$2=\"Orkney Health Board\",Calculations!$E$2=\"Orkney Islands Local Authority\"),$F213=1),0,IF(AND(OR(Calculations!$E$2=\"Shetland Health Board\",Calculations!$E$2=\"Western Isles Health Board\",Calculations!$E$2=\"Shetland Islands Local Authority\",Calculations!$E$2=\"Eilean Siar Local Authority\"),OR($F213=1,$F213=5)),0,prem_mort(VALUE(LEFT(Options!$B$24,2)),$C213,$E213,$F213,2016,$I213,1,$H213,$G213*$H213,Options!$B$8)))","v":{"$error":"#VALUE!"}},{"$f":"IF(AND(OR(Calculations!$E$2=\"Orkney Health Board\",Calculations!$E$2=\"Orkney Islands Local Authority\"),$F213=1),0,IF(AND(OR(Calculations!$E$2=\"Shetland Health Board\",Calculations!$E$2=\"Western Isles Health Board\",Calculations!$E$2=\"Shetland Islands Local Authority\",Calculations!$E$2=\"Eilean Siar Local Authority\"),OR($F213=1,$F213=5)),0,prem_mort(VALUE(LEFT(Options!$B$24,2)),$C213,$E213,$F213,2016,$I213+$J213,1,$H213,$G213*$H213,Options!$B$8)))","v":{"$error":"#VALUE!"}},{"$error":"#VALUE!"},{"$error":"#VALUE!"},{"$error":"#VALUE!"},{"$error":"#VALUE!"},{"$error":"#VALUE!"},{"$error":"#VALUE!"},{"$error":"#VALUE!"},{"$error":"#VALUE!"},{"$error":"#VALUE!"},{"$error":"#VALUE!"},{"$error":"#VALUE!"},{"$error":"#VALUE!"},{"$error":"#VALUE!"},{"$error":"#VALUE!"},{"$error":"#VALUE!"},{"$error":"#VALUE!"},5500]
[null,"Female 10-15",12.478312000000001,81.948309999999992,"female",5,{"$f":"HLOOKUP(Calculations!$E$2,'Prevalence Rates'!$C$3:$BC$249,'Prevalence Rates'!$BD214,FALSE)","v":0},{"$f":"HLOOKUP(Calculations!$E$2,'Population 2016'!$C$3:$BC$249,'Population 2016'!BD214,FALSE)","v":0},0,{"$f":"HLOOKUP(Results!E$4,Targeting!$C$3:$F$249,Targeting!$G214,FALSE)","v":0},{"$f":"IF(AND(OR(Calculations!$E$2=\"Orkney Health Board\",Calculations!$E$2=\"Orkney Islands Local Authority\"),$F214=1),0,IF(AND(OR(Calculations!$E$2=\"Shetland Health Board\",Calculations!$E$2=\"Western Isles Health Board\",Calculations!$E$2=\"Shetland Islands Local Authority\",Calculations!$E$2=\"Eilean Siar Local Authority\"),OR($F214=1,$F214=5)),0,new_ci(VALUE(LEFT(Options!$B$24,2)),$C214,$E214,$F214,2016,$I214,1,$H214,$G214*$H214,Options!$B$8)))","v":{"$error":"#VALUE!"}},{"$f":"IF(AND(OR(Calculations!$E$2=\"Orkney Health Board\",Calculations!$E$2=\"Orkney Islands Local Authority\"),$F214=1),0,IF(AND(OR(Calculations!$E$2=\"Shetland Health Board\",Calculations!$E$2=\"Western Isles Health Board\",Calculations!$E$2=\"Shetland Islands Local Authority\",Calculations!$E$2=\"Eilean Siar Local Authority\"),OR($F214=1,$F214=5)),0,new_ci(VALUE(LEFT(Options!$B$24,2)),$C214,$E214,$F214,2016,$I214+$J214,1,$H214,$G214*$H214,Options!$B$8)))","v":{"$error":"#VALUE!"}},{"$f":"IF(AND(OR(Calculations!$E$2=\"Orkney Health Board\",Calculations!$E$2=\"Orkney Islands Local Authority\"),$F214=1),0,IF(AND(OR(Calculations!$E$2=\"Shetland Health Board\",Calculations!$E$2=\"Western Isles Health Board\",Calculations!$E$2=\"Shetland Islands Local Authority\",Calculations!$E$2=\"Eilean Siar Local Authority\"),OR($F214=1,$F214=5)),0,new_yllv2(VALUE(LEFT(Options!$B$24,2)),$C214,$D214,$E214,$F214,2016,$I214,1,$H214,$G214*$H214,Options!$B$8)))","v":{"$error":"#VALUE!"}},{"$f":"IF(AND(OR(Calculations!$E$2=\"Orkney Health Board\",Calculations!$E$2=\"Orkney Islands Local Authority\"),$F214=1),0,IF(AND(OR(Calculations!$E$2=\"Shetland Health Board\",Calculations!$E$2=\"Western Isles Health Board\",Calculations!$E$2=\"Shetland Islands Local Authority\",Calculations!$E$2=\"Eilean Siar Local Authority\"),OR($F214=1,$F214=5)),0,new_yllv2(VALUE(LEFT(Options!$B$24,2)),$C214,$D214,$E214,$F214,2016,$I214+$J214,1,$H214,$G214*$H214,Options!$B$8)))","v":{"$error":"#VALUE!"}},{"$f":"IF(AND(OR(Calculations!$E$2=\"Orkney Health Board\",Calculations!$E$2=\"Orkney Islands Local Authority\"),$F214=1),0,IF(AND(OR(Calculations!$E$2=\"Shetland Health Board\",Calculations!$E$2=\"Western Isles Health Board\",Calculations!$E$2=\"Shetland Islands Local Authority\",Calculations!$E$2=\"Eilean Siar Local Authority\"),OR($F214=1,$F214=5)),0,hosp_count(VALUE(LEFT(Options!$B$24,2)),$C214,$E214,$F214,2016,$I214,1,$H214,$G214*$H214, Options!$B$8)))","v":{"$error":"#VALUE!"}},{"$f":"IF(AND(OR(Calculations!$E$2=\"Orkney Health Board\",Calculations!$E$2=\"Orkney Islands Local Authority\"),$F214=1),0,IF(AND(OR(Calculations!$E$2=\"Shetland Health Board\",Calculations!$E$2=\"Western Isles Health Board\",Calculations!$E$2=\"Shetland Islands Local Authority\",Calculations!$E$2=\"Eilean Siar Local Authority\"),OR($F214=1,$F214=5)),0,hosp_count(VALUE(LEFT(Options!$B$24,2)),$C214,$E214,$F214,2016,$I214+$J214,1,$H214,$G214*$H214, Options!$B$8)))","v":{"$error":"#VALUE!"}},{"$f":"IF(AND(OR(Calculations!$E$2=\"Orkney Health Board\",Calculations!$E$2=\"Orkney Islands Local Authority\"),$F214=1),0,IF(AND(OR(Calculations!$E$2=\"Shetland Health Board\",Calculations!$E$2=\"Western Isles Health Board\",Calculations!$E$2=\"Shetland Islands Local Authority\",Calculations!$E$2=\"Eilean Siar Local Authority\"),OR($F214=1,$F214=5)),0,prem_mort(VALUE(LEFT(Options!$B$24,2)),$C214,$E214,$F214,2016,$I214,1,$H214,$G214*$H214,Options!$B$8)))","v":{"$error":"#VALUE!"}},{"$f":"IF(AND(OR(Calculations!$E$2=\"Orkney Health Board\",Calculations!$E$2=\"Orkney Islands Local Authority\"),$F214=1),0,IF(AND(OR(Calculations!$E$2=\"Shetland Health Board\",Calculations!$E$2=\"Western Isles Health Board\",Calculations!$E$2=\"Shetland Islands Local Authority\",Calculations!$E$2=\"Eilean Siar Local Authority\"),OR($F214=1,$F214=5)),0,prem_mort(VALUE(LEFT(Options!$B$24,2)),$C214,$E214,$F214,2016,$I214+$J214,1,$H214,$G214*$H214,Options!$B$8)))","v":{"$error":"#VALUE!"}},{"$error":"#VALUE!"},{"$error":"#VALUE!"},{"$error":"#VALUE!"},{"$error":"#VALUE!"},{"$error":"#VALUE!"},{"$error":"#VALUE!"},{"$error":"#VALUE!"},{"$error":"#VALUE!"},{"$error":"#VALUE!"},{"$error":"#VALUE!"},{"$error":"#VALUE!"},{"$error":"#VALUE!"},{"$error":"#VALUE!"},{"$error":"#VALUE!"},{"$error":"#VALUE!"},{"$error":"#VALUE!"},6600]
["SIMD Q5 (least deprived)","Female 16-19",17.570053000000001,81.100049999999996,"female",5,{"$f":"HLOOKUP(Calculations!$E$2,'Prevalence Rates'!$C$3:$BC$249,'Prevalence Rates'!$BD215,FALSE)","v":8.7759375064237199E-2},{"$f":"HLOOKUP(Calculations!$E$2,'Population 2016'!$C$3:$BC$249,'Population 2016'!BD215,FALSE)","v":25268},0,{"$f":"HLOOKUP(Results!E$4,Targeting!$C$3:$F$249,Targeting!$G215,FALSE)","v":748},{"$f":"IF(AND(OR(Calculations!$E$2=\"Orkney Health Board\",Calculations!$E$2=\"Orkney Islands Local Authority\"),$F215=1),0,IF(AND(OR(Calculations!$E$2=\"Shetland Health Board\",Calculations!$E$2=\"Western Isles Health Board\",Calculations!$E$2=\"Shetland Islands Local Authority\",Calculations!$E$2=\"Eilean Siar Local Authority\"),OR($F215=1,$F215=5)),0,new_ci(VALUE(LEFT(Options!$B$24,2)),$C215,$E215,$F215,2016,$I215,1,$H215,$G215*$H215,Options!$B$8)))","v":2.6542156862000001},{"$f":"IF(AND(OR(Calculations!$E$2=\"Orkney Health Board\",Calculations!$E$2=\"Orkney Islands Local Authority\"),$F215=1),0,IF(AND(OR(Calculations!$E$2=\"Shetland Health Board\",Calculations!$E$2=\"Western Isles Health Board\",Calculations!$E$2=\"Shetland Islands Local Authority\",Calculations!$E$2=\"Eilean Siar Local Authority\"),OR($F215=1,$F215=5)),0,new_ci(VALUE(LEFT(Options!$B$24,2)),$C215,$E215,$F215,2016,$I215+$J215,1,$H215,$G215*$H215,Options!$B$8)))","v":2.650002277},{"$f":"IF(AND(OR(Calculations!$E$2=\"Orkney Health Board\",Calculations!$E$2=\"Orkney Islands Local Authority\"),$F215=1),0,IF(AND(OR(Calculations!$E$2=\"Shetland Health Board\",Calculations!$E$2=\"Western Isles Health Board\",Calculations!$E$2=\"Shetland Islands Local Authority\",Calculations!$E$2=\"Eilean Siar Local Authority\"),OR($F215=1,$F215=5)),0,new_yllv2(VALUE(LEFT(Options!$B$24,2)),$C215,$D215,$E215,$F215,2016,$I215,1,$H215,$G215*$H215,Options!$B$8)))","v":165.9680988954},{"$f":"IF(AND(OR(Calculations!$E$2=\"Orkney Health Board\",Calculations!$E$2=\"Orkney Islands Local Authority\"),$F215=1),0,IF(AND(OR(Calculations!$E$2=\"Shetland Health Board\",Calculations!$E$2=\"Western Isles Health Board\",Calculations!$E$2=\"Shetland Islands Local Authority\",Calculations!$E$2=\"Eilean Siar Local Authority\"),OR($F215=1,$F215=5)),0,new_yllv2(VALUE(LEFT(Options!$B$24,2)),$C215,$D215,$E215,$F215,2016,$I215+$J215,1,$H215,$G215*$H215,Options!$B$8)))","v":165.70463443080001},{"$f":"IF(AND(OR(Calculations!$E$2=\"Orkney Health Board\",Calculations!$E$2=\"Orkney Islands Local Authority\"),$F215=1),0,IF(AND(OR(Calculations!$E$2=\"Shetland Health Board\",Calculations!$E$2=\"Western Isles Health Board\",Calculations!$E$2=\"Shetland Islands Local Authority\",Calculations!$E$2=\"Eilean Siar Local Authority\"),OR($F215=1,$F215=5)),0,hosp_count(VALUE(LEFT(Options!$B$24,2)),$C215,$E215,$F215,2016,$I215,1,$H215,$G215*$H215, Options!$B$8)))","v":1985.9311626015999},{"$f":"IF(AND(OR(Calculations!$E$2=\"Orkney Health Board\",Calculations!$E$2=\"Orkney Islands Local Authority\"),$F215=1),0,IF(AND(OR(Calculations!$E$2=\"Shetland Health Board\",Calculations!$E$2=\"Western Isles Health Board\",Calculations!$E$2=\"Shetland Islands Local Authority\",Calculations!$E$2=\"Eilean Siar Local Authority\"),OR($F215=1,$F215=5)),0,hosp_count(VALUE(LEFT(Options!$B$24,2)),$C215,$E215,$F215,2016,$I215+$J215,1,$H215,$G215*$H215, Options!$B$8)))","v":1979.3643437274},{"$f":"IF(AND(OR(Calculations!$E$2=\"Orkney Health Board\",Calculations!$E$2=\"Orkney Islands Local Authority\"),$F215=1),0,IF(AND(OR(Calculations!$E$2=\"Shetland Health Board\",Calculations!$E$2=\"Western Isles Health Board\",Calculations!$E$2=\"Shetland Islands Local Authority\",Calculations!$E$2=\"Eilean Siar Local Authority\"),OR($F215=1,$F215=5)),0,prem_mort(VALUE(LEFT(Options!$B$24,2)),$C215,$E215,$F215,2016,$I215,1,$H215,$G215*$H215,Options!$B$8)))","v":2.6542156862000001},{"$f":"IF(AND(OR(Calculations!$E$2=\"Orkney Health Board\",Calculations!$E$2=\"Orkney Islands Local Authority\"),$F215=1),0,IF(AND(OR(Calculations!$E$2=\"Shetland Health Board\",Calculations!$E$2=\"Western Isles Health Board\",Calculations!$E$2=\"Shetland Islands Local Authority\",Calculations!$E$2=\"Eilean Siar Local Authority\"),OR($F215=1,$F215=5)),0,prem_mort(VALUE(LEFT(Options!$B$24,2)),$C215,$E215,$F215,2016,$I215+$J215,1,$H215,$G215*$H215,Options!$B$8)))","v":2.650002277},10.504257108595853,10.487582226531581,656.83116548757323,655.7884851622606,7859.4711200000002,7833.4824431193601,10.504257108595853,10.487582226531581,46218.731277821753,46145.361796738958,2890057.1281453222,2885469.3347139466,34581672.928000003,34467322.749725185,46218.731277821753,46145.361796738958,4400]
[null,"Female 20-24",22.077057,81.667060000000006,"female",5,{"$f":"HLOOKUP(Calculations!$E$2,'Prevalence Rates'!$C$3:$BC$249,'Prevalence Rates'!$BD216,FALSE)","v":8.7759375064237199E-2},{"$f":"HLOOKUP(Calculations!$E$2,'Population 2016'!$C$3:$BC$249,'Population 2016'!BD216,FALSE)","v":38013},0,{"$f":"HLOOKUP(Results!E$4,Targeting!$C$3:$F$249,Targeting!$G216,FALSE)","v":1126},{"$f":"IF(AND(OR(Calculations!$E$2=\"Orkney Health Board\",Calculations!$E$2=\"Orkney Islands Local Authority\"),$F216=1),0,IF(AND(OR(Calculations!$E$2=\"Shetland Health Board\",Calculations!$E$2=\"Western Isles Health Board\",Calculations!$E$2=\"Shetland Islands Local Authority\",Calculations!$E$2=\"Eilean Siar Local Authority\"),OR($F216=1,$F216=5)),0,new_ci(VALUE(LEFT(Options!$B$24,2)),$C216,$E216,$F216,2016,$I216,1,$H216,$G216*$H216,Options!$B$8)))","v":5.8582650553000004},{"$f":"IF(AND(OR(Calculations!$E$2=\"Orkney Health Board\",Calculations!$E$2=\"Orkney Islands Local Authority\"),$F216=1),0,IF(AND(OR(Calculations!$E$2=\"Shetland Health Board\",Calculations!$E$2=\"Western Isles Health Board\",Calculations!$E$2=\"Shetland Islands Local Authority\",Calculations!$E$2=\"Eilean Siar Local Authority\"),OR($F216=1,$F216=5)),0,new_ci(VALUE(LEFT(Options!$B$24,2)),$C216,$E216,$F216,2016,$I216+$J216,1,$H216,$G216*$H216,Options!$B$8)))","v":5.8489597913000004},{"$f":"IF(AND(OR(Calculations!$E$2=\"Orkney Health Board\",Calculations!$E$2=\"Orkney Islands Local Authority\"),$F216=1),0,IF(AND(OR(Calculations!$E$2=\"Shetland Health Board\",Calculations!$E$2=\"Western Isles Health Board\",Calculations!$E$2=\"Shetland Islands Local Authority\",Calculations!$E$2=\"Eilean Siar Local Authority\"),OR($F216=1,$F216=5)),0,new_yllv2(VALUE(LEFT(Options!$B$24,2)),$C216,$D216,$E216,$F216,2016,$I216,1,$H216,$G216*$H216,Options!$B$8)))","v":343.2357671648},{"$f":"IF(AND(OR(Calculations!$E$2=\"Orkney Health Board\",Calculations!$E$2=\"Orkney Islands Local Authority\"),$F216=1),0,IF(AND(OR(Calculations!$E$2=\"Shetland Health Board\",Calculations!$E$2=\"Western Isles Health Board\",Calculations!$E$2=\"Shetland Islands Local Authority\",Calculations!$E$2=\"Eilean Siar Local Authority\"),OR($F216=1,$F216=5)),0,new_yllv2(VALUE(LEFT(Options!$B$24,2)),$C216,$D216,$E216,$F216,2016,$I216+$J216,1,$H216,$G216*$H216,Options!$B$8)))","v":342.69057171909998},{"$f":"IF(AND(OR(Calculations!$E$2=\"Orkney Health Board\",Calculations!$E$2=\"Orkney Islands Local Authority\"),$F216=1),0,IF(AND(OR(Calculations!$E$2=\"Shetland Health Board\",Calculations!$E$2=\"Western Isles Health Board\",Calculations!$E$2=\"Shetland Islands Local Authority\",Calculations!$E$2=\"Eilean Siar Local Authority\"),OR($F216=1,$F216=5)),0,hosp_count(VALUE(LEFT(Options!$B$24,2)),$C216,$E216,$F216,2016,$I216,1,$H216,$G216*$H216, Options!$B$8)))","v":3346.2660715352999},{"$f":"IF(AND(OR(Calculations!$E$2=\"Orkney Health Board\",Calculations!$E$2=\"Orkney Islands Local Authority\"),$F216=1),0,IF(AND(OR(Calculations!$E$2=\"Shetland Health Board\",Calculations!$E$2=\"Western Isles Health Board\",Calculations!$E$2=\"Shetland Islands Local Authority\",Calculations!$E$2=\"Eilean Siar Local Authority\"),OR($F216=1,$F216=5)),0,hosp_count(VALUE(LEFT(Options!$B$24,2)),$C216,$E216,$F216,2016,$I216+$J216,1,$H216,$G216*$H216, Options!$B$8)))","v":3335.1940523848998},{"$f":"IF(AND(OR(Calculations!$E$2=\"Orkney Health Board\",Calculations!$E$2=\"Orkney Islands Local Authority\"),$F216=1),0,IF(AND(OR(Calculations!$E$2=\"Shetland Health Board\",Calculations!$E$2=\"Western Isles Health Board\",Calculations!$E$2=\"Shetland Islands Local Authority\",Calculations!$E$2=\"Eilean Siar Local Authority\"),OR($F216=1,$F216=5)),0,prem_mort(VALUE(LEFT(Options!$B$24,2)),$C216,$E216,$F216,2016,$I216,1,$H216,$G216*$H216,Options!$B$8)))","v":5.8582650553000004},{"$f":"IF(AND(OR(Calculations!$E$2=\"Orkney Health Board\",Calculations!$E$2=\"Orkney Islands Local Authority\"),$F216=1),0,IF(AND(OR(Calculations!$E$2=\"Shetland Health Board\",Calculations!$E$2=\"Western Isles Health Board\",Calculations!$E$2=\"Shetland Islands Local Authority\",Calculations!$E$2=\"Eilean Siar Local Authority\"),OR($F216=1,$F216=5)),0,prem_mort(VALUE(LEFT(Options!$B$24,2)),$C216,$E216,$F216,2016,$I216+$J216,1,$H216,$G216*$H216,Options!$B$8)))","v":5.8489597913000004},15.411214729960806,15.386735567568989,902.94311726198941,901.50888306395166,8802.9518100000005,8773.8248819743239,15.411214729960806,15.386735567568989,92467.288379764839,92320.413405413929,5417658.7035719361,5409053.29838371,52817710.859999999,52642949.29184594,92467.288379764839,92320.413405413929,6000]
[null,"Female 25-29",26.975186999999998,81.645189999999999,"female",5,{"$f":"HLOOKUP(Calculations!$E$2,'Prevalence Rates'!$C$3:$BC$249,'Prevalence Rates'!$BD217,FALSE)","v":8.7759375064237199E-2},{"$f":"HLOOKUP(Calculations!$E$2,'Population 2016'!$C$3:$BC$249,'Population 2016'!BD217,FALSE)","v":32371},0,{"$f":"HLOOKUP(Results!E$4,Targeting!$C$3:$F$249,Targeting!$G217,FALSE)","v":959},{"$f":"IF(AND(OR(Calculations!$E$2=\"Orkney Health Board\",Calculations!$E$2=\"Orkney Islands Local Authority\"),$F217=1),0,IF(AND(OR(Calculations!$E$2=\"Shetland Health Board\",Calculations!$E$2=\"Western Isles Health Board\",Calculations!$E$2=\"Shetland Islands Local Authority\",Calculations!$E$2=\"Eilean Siar Local Authority\"),OR($F217=1,$F217=5)),0,new_ci(VALUE(LEFT(Options!$B$24,2)),$C217,$E217,$F217,2016,$I217,1,$H217,$G217*$H217,Options!$B$8)))","v":7.5666892912000003},{"$f":"IF(AND(OR(Calculations!$E$2=\"Orkney Health Board\",Calculations!$E$2=\"Orkney Islands Local Authority\"),$F217=1),0,IF(AND(OR(Calculations!$E$2=\"Shetland Health Board\",Calculations!$E$2=\"Western Isles Health Board\",Calculations!$E$2=\"Shetland Islands Local Authority\",Calculations!$E$2=\"Eilean Siar Local Authority\"),OR($F217=1,$F217=5)),0,new_ci(VALUE(LEFT(Options!$B$24,2)),$C217,$E217,$F217,2016,$I217+$J217,1,$H217,$G217*$H217,Options!$B$8)))","v":7.5546695687999996},{"$f":"IF(AND(OR(Calculations!$E$2=\"Orkney Health Board\",Calculations!$E$2=\"Orkney Islands Local Authority\"),$F217=1),0,IF(AND(OR(Calculations!$E$2=\"Shetland Health Board\",Calculations!$E$2=\"Western Isles Health Board\",Calculations!$E$2=\"Shetland Islands Local Authority\",Calculations!$E$2=\"Eilean Siar Local Authority\"),OR($F217=1,$F217=5)),0,new_yllv2(VALUE(LEFT(Options!$B$24,2)),$C217,$D217,$E217,$F217,2016,$I217,1,$H217,$G217*$H217,Options!$B$8)))","v":406.10423695880002},{"$f":"IF(AND(OR(Calculations!$E$2=\"Orkney Health Board\",Calculations!$E$2=\"Orkney Islands Local Authority\"),$F217=1),0,IF(AND(OR(Calculations!$E$2=\"Shetland Health Board\",Calculations!$E$2=\"Western Isles Health Board\",Calculations!$E$2=\"Shetland Islands Local Authority\",Calculations!$E$2=\"Eilean Siar Local Authority\"),OR($F217=1,$F217=5)),0,new_yllv2(VALUE(LEFT(Options!$B$24,2)),$C217,$D217,$E217,$F217,2016,$I217+$J217,1,$H217,$G217*$H217,Options!$B$8)))","v":405.45913842149997},{"$f":"IF(AND(OR(Calculations!$E$2=\"Orkney Health Board\",Calculations!$E$2=\"Orkney Islands Local Authority\"),$F217=1),0,IF(AND(OR(Calculations!$E$2=\"Shetland Health Board\",Calculations!$E$2=\"Western Isles Health Board\",Calculations!$E$2=\"Shetland Islands Local Authority\",Calculations!$E$2=\"Eilean Siar Local Authority\"),OR($F217=1,$F217=5)),0,hosp_count(VALUE(LEFT(Options!$B$24,2)),$C217,$E217,$F217,2016,$I217,1,$H217,$G217*$H217, Options!$B$8)))","v":3223.2362970265999},{"$f":"IF(AND(OR(Calculations!$E$2=\"Orkney Health Board\",Calculations!$E$2=\"Orkney Islands Local Authority\"),$F217=1),0,IF(AND(OR(Calculations!$E$2=\"Shetland Health Board\",Calculations!$E$2=\"Western Isles Health Board\",Calculations!$E$2=\"Shetland Islands Local Authority\",Calculations!$E$2=\"Eilean Siar Local Authority\"),OR($F217=1,$F217=5)),0,hosp_count(VALUE(LEFT(Options!$B$24,2)),$C217,$E217,$F217,2016,$I217+$J217,1,$H217,$G217*$H217, Options!$B$8)))","v":3212.5699735194999},{"$f":"IF(AND(OR(Calculations!$E$2=\"Orkney Health Board\",Calculations!$E$2=\"Orkney Islands Local Authority\"),$F217=1),0,IF(AND(OR(Calculations!$E$2=\"Shetland Health Board\",Calculations!$E$2=\"Western Isles Health Board\",Calculations!$E$2=\"Shetland Islands Local Authority\",Calculations!$E$2=\"Eilean Siar Local Authority\"),OR($F217=1,$F217=5)),0,prem_mort(VALUE(LEFT(Options!$B$24,2)),$C217,$E217,$F217,2016,$I217,1,$H217,$G217*$H217,Options!$B$8)))","v":7.5666892912000003},{"$f":"IF(AND(OR(Calculations!$E$2=\"Orkney Health Board\",Calculations!$E$2=\"Orkney Islands Local Authority\"),$F217=1),0,IF(AND(OR(Calculations!$E$2=\"Shetland Health Board\",Calculations!$E$2=\"Western Isles Health Board\",Calculations!$E$2=\"Shetland Islands Local Authority\",Calculations!$E$2=\"Eilean Siar Local Authority\"),OR($F217=1,$F217=5)),0,prem_mort(VALUE(LEFT(Options!$B$24,2)),$C217,$E217,$F217,2016,$I217+$J217,1,$H217,$G217*$H217,Options!$B$8)))","v":7.5546695687999996},23.37490127336196,23.337770130054679,1254.5310214661272,1252.5381928933302,9957.1724599999998,9924.2222159324701,23.37490127336196,23.337770130054679,140249.40764017176,140026.62078032808,7527186.1287967628,7515229.157359981,59743034.759999998,59545333.295594819,140249.40764017176,140026.62078032808,6000]
[null,"Female 30-34",31.999904999999998,81.799899999999994,"female",5,{"$f":"HLOOKUP(Calculations!$E$2,'Prevalence Rates'!$C$3:$BC$249,'Prevalence Rates'!$BD218,FALSE)","v":8.7759375064237199E-2},{"$f":"HLOOKUP(Calculations!$E$2,'Population 2016'!$C$3:$BC$249,'Population 2016'!BD218,FALSE)","v":31633},0,{"$f":"HLOOKUP(Results!E$4,Targeting!$C$3:$F$249,Targeting!$G218,FALSE)","v":937},{"$f":"IF(AND(OR(Calculations!$E$2=\"Orkney Health Board\",Calculations!$E$2=\"Orkney Islands Local Authority\"),$F218=1),0,IF(AND(OR(Calculations!$E$2=\"Shetland Health Board\",Calculations!$E$2=\"Western Isles Health Board\",Calculations!$E$2=\"Shetland Islands Local Authority\",Calculations!$E$2=\"Eilean Siar Local Authority\"),OR($F218=1,$F218=5)),0,new_ci(VALUE(LEFT(Options!$B$24,2)),$C218,$E218,$F218,2016,$I218,1,$H218,$G218*$H218,Options!$B$8)))","v":11.3362349048},{"$f":"IF(AND(OR(Calculations!$E$2=\"Orkney Health Board\",Calculations!$E$2=\"Orkney Islands Local Authority\"),$F218=1),0,IF(AND(OR(Calculations!$E$2=\"Shetland Health Board\",Calculations!$E$2=\"Western Isles Health Board\",Calculations!$E$2=\"Shetland Islands Local Authority\",Calculations!$E$2=\"Eilean Siar Local Authority\"),OR($F218=1,$F218=5)),0,new_ci(VALUE(LEFT(Options!$B$24,2)),$C218,$E218,$F218,2016,$I218+$J218,1,$H218,$G218*$H218,Options!$B$8)))","v":11.3182314805},{"$f":"IF(AND(OR(Calculations!$E$2=\"Orkney Health Board\",Calculations!$E$2=\"Orkney Islands Local Authority\"),$F218=1),0,IF(AND(OR(Calculations!$E$2=\"Shetland Health Board\",Calculations!$E$2=\"Western Isles Health Board\",Calculations!$E$2=\"Shetland Islands Local Authority\",Calculations!$E$2=\"Eilean Siar Local Authority\"),OR($F218=1,$F218=5)),0,new_yllv2(VALUE(LEFT(Options!$B$24,2)),$C218,$D218,$E218,$F218,2016,$I218,1,$H218,$G218*$H218,Options!$B$8)))","v":553.20820667309999},{"$f":"IF(AND(OR(Calculations!$E$2=\"Orkney Health Board\",Calculations!$E$2=\"Orkney Islands Local Authority\"),$F218=1),0,IF(AND(OR(Calculations!$E$2=\"Shetland Health Board\",Calculations!$E$2=\"Western Isles Health Board\",Calculations!$E$2=\"Shetland Islands Local Authority\",Calculations!$E$2=\"Eilean Siar Local Authority\"),OR($F218=1,$F218=5)),0,new_yllv2(VALUE(LEFT(Options!$B$24,2)),$C218,$D218,$E218,$F218,2016,$I218+$J218,1,$H218,$G218*$H218,Options!$B$8)))","v":552.3296396572},{"$f":"IF(AND(OR(Calculations!$E$2=\"Orkney Health Board\",Calculations!$E$2=\"Orkney Islands Local Authority\"),$F218=1),0,IF(AND(OR(Calculations!$E$2=\"Shetland Health Board\",Calculations!$E$2=\"Western Isles Health Board\",Calculations!$E$2=\"Shetland Islands Local Authority\",Calculations!$E$2=\"Eilean Siar Local Authority\"),OR($F218=1,$F218=5)),0,hosp_count(VALUE(LEFT(Options!$B$24,2)),$C218,$E218,$F218,2016,$I218,1,$H218,$G218*$H218, Options!$B$8)))","v":3574.1022803198998},{"$f":"IF(AND(OR(Calculations!$E$2=\"Orkney Health Board\",Calculations!$E$2=\"Orkney Islands Local Authority\"),$F218=1),0,IF(AND(OR(Calculations!$E$2=\"Shetland Health Board\",Calculations!$E$2=\"Western Isles Health Board\",Calculations!$E$2=\"Shetland Islands Local Authority\",Calculations!$E$2=\"Eilean Siar Local Authority\"),OR($F218=1,$F218=5)),0,hosp_count(VALUE(LEFT(Options!$B$24,2)),$C218,$E218,$F218,2016,$I218+$J218,1,$H218,$G218*$H218, Options!$B$8)))","v":3562.2765954390002},{"$f":"IF(AND(OR(Calculations!$E$2=\"Orkney Health Board\",Calculations!$E$2=\"Orkney Islands Local Authority\"),$F218=1),0,IF(AND(OR(Calculations!$E$2=\"Shetland Health Board\",Calculations!$E$2=\"Western Isles Health Board\",Calculations!$E$2=\"Shetland Islands Local Authority\",Calculations!$E$2=\"Eilean Siar Local Authority\"),OR($F218=1,$F218=5)),0,prem_mort(VALUE(LEFT(Options!$B$24,2)),$C218,$E218,$F218,2016,$I218,1,$H218,$G218*$H218,Options!$B$8)))","v":11.3362349048},{"$f":"IF(AND(OR(Calculations!$E$2=\"Orkney Health Board\",Calculations!$E$2=\"Orkney Islands Local Authority\"),$F218=1),0,IF(AND(OR(Calculations!$E$2=\"Shetland Health Board\",Calculations!$E$2=\"Western Isles Health Board\",Calculations!$E$2=\"Shetland Islands Local Authority\",Calculations!$E$2=\"Eilean Siar Local Authority\"),OR($F218=1,$F218=5)),0,prem_mort(VALUE(LEFT(Options!$B$24,2)),$C218,$E218,$F218,2016,$I218+$J218,1,$H218,$G218*$H218,Options!$B$8)))","v":11.3182314805},35.836736650965761,35.779823224164637,1748.8325693835552,1746.0551944399836,11298.651029999999,11261.267016846332,35.836736650965761,35.779823224164637,232938.78823127746,232568.85095707016,11367411.700993109,11349358.763859892,73441231.694999993,73198235.609501153,232938.78823127746,232568.85095707016,6500]
[null,"Female 35-39",36.918118,81.898120000000006,"female",5,{"$f":"HLOOKUP(Calculations!$E$2,'Prevalence Rates'!$C$3:$BC$249,'Prevalence Rates'!$BD219,FALSE)","v":8.7759375064237199E-2},{"$f":"HLOOKUP(Calculations!$E$2,'Population 2016'!$C$3:$BC$249,'Population 2016'!BD219,FALSE)","v":33676},0,{"$f":"HLOOKUP(Results!E$4,Targeting!$C$3:$F$249,Targeting!$G219,FALSE)","v":997},{"$f":"IF(AND(OR(Calculations!$E$2=\"Orkney Health Board\",Calculations!$E$2=\"Orkney Islands Local Authority\"),$F219=1),0,IF(AND(OR(Calculations!$E$2=\"Shetland Health Board\",Calculations!$E$2=\"Western Isles Health Board\",Calculations!$E$2=\"Shetland Islands Local Authority\",Calculations!$E$2=\"Eilean Siar Local Authority\"),OR($F219=1,$F219=5)),0,new_ci(VALUE(LEFT(Options!$B$24,2)),$C219,$E219,$F219,2016,$I219,1,$H219,$G219*$H219,Options!$B$8)))","v":18.3349765671},{"$f":"IF(AND(OR(Calculations!$E$2=\"Orkney Health Board\",Calculations!$E$2=\"Orkney Islands Local Authority\"),$F219=1),0,IF(AND(OR(Calculations!$E$2=\"Shetland Health Board\",Calculations!$E$2=\"Western Isles Health Board\",Calculations!$E$2=\"Shetland Islands Local Authority\",Calculations!$E$2=\"Eilean Siar Local Authority\"),OR($F219=1,$F219=5)),0,new_ci(VALUE(LEFT(Options!$B$24,2)),$C219,$E219,$F219,2016,$I219+$J219,1,$H219,$G219*$H219,Options!$B$8)))","v":18.305877526900002},{"$f":"IF(AND(OR(Calculations!$E$2=\"Orkney Health Board\",Calculations!$E$2=\"Orkney Islands Local Authority\"),$F219=1),0,IF(AND(OR(Calculations!$E$2=\"Shetland Health Board\",Calculations!$E$2=\"Western Isles Health Board\",Calculations!$E$2=\"Shetland Islands Local Authority\",Calculations!$E$2=\"Eilean Siar Local Authority\"),OR($F219=1,$F219=5)),0,new_yllv2(VALUE(LEFT(Options!$B$24,2)),$C219,$D219,$E219,$F219,2016,$I219,1,$H219,$G219*$H219,Options!$B$8)))","v":806.37230609100004},{"$f":"IF(AND(OR(Calculations!$E$2=\"Orkney Health Board\",Calculations!$E$2=\"Orkney Islands Local Authority\"),$F219=1),0,IF(AND(OR(Calculations!$E$2=\"Shetland Health Board\",Calculations!$E$2=\"Western Isles Health Board\",Calculations!$E$2=\"Shetland Islands Local Authority\",Calculations!$E$2=\"Eilean Siar Local Authority\"),OR($F219=1,$F219=5)),0,new_yllv2(VALUE(LEFT(Options!$B$24,2)),$C219,$D219,$E219,$F219,2016,$I219+$J219,1,$H219,$G219*$H219,Options!$B$8)))","v":805.09253024479995},{"$f":"IF(AND(OR(Calculations!$E$2=\"Orkney Health Board\",Calculations!$E$2=\"Orkney Islands Local Authority\"),$F219=1),0,IF(AND(OR(Calculations!$E$2=\"Shetland Health Board\",Calculations!$E$2=\"Western Isles Health Board\",Calculations!$E$2=\"Shetland Islands Local Authority\",Calculations!$E$2=\"Eilean Siar Local Authority\"),OR($F219=1,$F219=5)),0,hosp_count(VALUE(LEFT(Options!$B$24,2)),$C219,$E219,$F219,2016,$I219,1,$H219,$G219*$H219, Options!$B$8)))","v":4306.0016290455997},{"$f":"IF(AND(OR(Calculations!$E$2=\"Orkney Health Board\",Calculations!$E$2=\"Orkney Islands Local Authority\"),$F219=1),0,IF(AND(OR(Calculations!$E$2=\"Shetland Health Board\",Calculations!$E$2=\"Western Isles Health Board\",Calculations!$E$2=\"Shetland Islands Local Authority\",Calculations!$E$2=\"Eilean Siar Local Authority\"),OR($F219=1,$F219=5)),0,hosp_count(VALUE(LEFT(Options!$B$24,2)),$C219,$E219,$F219,2016,$I219+$J219,1,$H219,$G219*$H219, Options!$B$8)))","v":4291.7616627328998},{"$f":"IF(AND(OR(Calculations!$E$2=\"Orkney Health Board\",Calculations!$E$2=\"Orkney Islands Local Authority\"),$F219=1),0,IF(AND(OR(Calculations!$E$2=\"Shetland Health Board\",Calculations!$E$2=\"Western Isles Health Board\",Calculations!$E$2=\"Shetland Islands Local Authority\",Calculations!$E$2=\"Eilean Siar Local Authority\"),OR($F219=1,$F219=5)),0,prem_mort(VALUE(LEFT(Options!$B$24,2)),$C219,$E219,$F219,2016,$I219,1,$H219,$G219*$H219,Options!$B$8)))","v":18.3349765671},{"$f":"IF(AND(OR(Calculations!$E$2=\"Orkney Health Board\",Calculations!$E$2=\"Orkney Islands Local Authority\"),$F219=1),0,IF(AND(OR(Calculations!$E$2=\"Shetland Health Board\",Calculations!$E$2=\"Western Isles Health Board\",Calculations!$E$2=\"Shetland Islands Local Authority\",Calculations!$E$2=\"Eilean Siar Local Authority\"),OR($F219=1,$F219=5)),0,prem_mort(VALUE(LEFT(Options!$B$24,2)),$C219,$E219,$F219,2016,$I219+$J219,1,$H219,$G219*$H219,Options!$B$8)))","v":18.305877526900002},54.445232709050956,54.358823871303009,2394.5014434344935,2390.7011825775035,12786.55906,12744.273852989963,54.445232709050956,54.358823871303009,381116.62896335666,380511.76709912106,16761510.104041453,16734908.278042525,89505913.420000002,89209916.970929742,381116.62896335666,380511.76709912106,7000]
[null,"Female 40-44",42.077438000000001,82.30744,"female",5,{"$f":"HLOOKUP(Calculations!$E$2,'Prevalence Rates'!$C$3:$BC$249,'Prevalence Rates'!$BD220,FALSE)","v":8.7759375064237199E-2},{"$f":"HLOOKUP(Calculations!$E$2,'Population 2016'!$C$3:$BC$249,'Population 2016'!BD220,FALSE)","v":36508},0,{"$f":"HLOOKUP(Results!E$4,Targeting!$C$3:$F$249,Targeting!$G220,FALSE)","v":1081},{"$f":"IF(AND(OR(Calculations!$E$2=\"Orkney Health Board\",Calculations!$E$2=\"Orkney Islands Local Authority\"),$F220=1),0,IF(AND(OR(Calculations!$E$2=\"Shetland Health Board\",Calculations!$E$2=\"Western Isles Health Board\",Calculations!$E$2=\"Shetland Islands Local Authority\",Calculations!$E$2=\"Eilean Siar Local Authority\"),OR($F220=1,$F220=5)),0,new_ci(VALUE(LEFT(Options!$B$24,2)),$C220,$E220,$F220,2016,$I220,1,$H220,$G220*$H220,Options!$B$8)))","v":30.821970010400001},{"$f":"IF(AND(OR(Calculations!$E$2=\"Orkney Health Board\",Calculations!$E$2=\"Orkney Islands Local Authority\"),$F220=1),0,IF(AND(OR(Calculations!$E$2=\"Shetland Health Board\",Calculations!$E$2=\"Western Isles Health Board\",Calculations!$E$2=\"Shetland Islands Local Authority\",Calculations!$E$2=\"Eilean Siar Local Authority\"),OR($F220=1,$F220=5)),0,new_ci(VALUE(LEFT(Options!$B$24,2)),$C220,$E220,$F220,2016,$I220+$J220,1,$H220,$G220*$H220,Options!$B$8)))","v":30.773057246699999},{"$f":"IF(AND(OR(Calculations!$E$2=\"Orkney Health Board\",Calculations!$E$2=\"Orkney Islands Local Authority\"),$F220=1),0,IF(AND(OR(Calculations!$E$2=\"Shetland Health Board\",Calculations!$E$2=\"Western Isles Health Board\",Calculations!$E$2=\"Shetland Islands Local Authority\",Calculations!$E$2=\"Eilean Siar Local Authority\"),OR($F220=1,$F220=5)),0,new_yllv2(VALUE(LEFT(Options!$B$24,2)),$C220,$D220,$E220,$F220,2016,$I220,1,$H220,$G220*$H220,Options!$B$8)))","v":1209.1459451518999},{"$f":"IF(AND(OR(Calculations!$E$2=\"Orkney Health Board\",Calculations!$E$2=\"Orkney Islands Local Authority\"),$F220=1),0,IF(AND(OR(Calculations!$E$2=\"Shetland Health Board\",Calculations!$E$2=\"Western Isles Health Board\",Calculations!$E$2=\"Shetland Islands Local Authority\",Calculations!$E$2=\"Eilean Siar Local Authority\"),OR($F220=1,$F220=5)),0,new_yllv2(VALUE(LEFT(Options!$B$24,2)),$C220,$D220,$E220,$F220,2016,$I220+$J220,1,$H220,$G220*$H220,Options!$B$8)))","v":1207.2270973341999},{"$f":"IF(AND(OR(Calculations!$E$2=\"Orkney Health Board\",Calculations!$E$2=\"Orkney Islands Local Authority\"),$F220=1),0,IF(AND(OR(Calculations!$E$2=\"Shetland Health Board\",Calculations!$E$2=\"Western Isles Health Board\",Calculations!$E$2=\"Shetland Islands Local Authority\",Calculations!$E$2=\"Eilean Siar Local Authority\"),OR($F220=1,$F220=5)),0,hosp_count(VALUE(LEFT(Options!$B$24,2)),$C220,$E220,$F220,2016,$I220,1,$H220,$G220*$H220, Options!$B$8)))","v":5314.9930810692003},{"$f":"IF(AND(OR(Calculations!$E$2=\"Orkney Health Board\",Calculations!$E$2=\"Orkney Islands Local Authority\"),$F220=1),0,IF(AND(OR(Calculations!$E$2=\"Shetland Health Board\",Calculations!$E$2=\"Western Isles Health Board\",Calculations!$E$2=\"Shetland Islands Local Authority\",Calculations!$E$2=\"Eilean Siar Local Authority\"),OR($F220=1,$F220=5)),0,hosp_count(VALUE(LEFT(Options!$B$24,2)),$C220,$E220,$F220,2016,$I220+$J220,1,$H220,$G220*$H220, Options!$B$8)))","v":5297.4138258307003},{"$f":"IF(AND(OR(Calculations!$E$2=\"Orkney Health Board\",Calculations!$E$2=\"Orkney Islands Local Authority\"),$F220=1),0,IF(AND(OR(Calculations!$E$2=\"Shetland Health Board\",Calculations!$E$2=\"Western Isles Health Board\",Calculations!$E$2=\"Shetland Islands Local Authority\",Calculations!$E$2=\"Eilean Siar Local Authority\"),OR($F220=1,$F220=5)),0,prem_mort(VALUE(LEFT(Options!$B$24,2)),$C220,$E220,$F220,2016,$I220,1,$H220,$G220*$H220,Options!$B$8)))","v":30.821970010400001},{"$f":"IF(AND(OR(Calculations!$E$2=\"Orkney Health Board\",Calculations!$E$2=\"Orkney Islands Local Authority\"),$F220=1),0,IF(AND(OR(Calculations!$E$2=\"Shetland Health Board\",Calculations!$E$2=\"Western Isles Health Board\",Calculations!$E$2=\"Shetland Islands Local Authority\",Calculations!$E$2=\"Eilean Siar Local Authority\"),OR($F220=1,$F220=5)),0,prem_mort(VALUE(LEFT(Options!$B$24,2)),$C220,$E220,$F220,2016,$I220+$J220,1,$H220,$G220*$H220,Options!$B$8)))","v":30.773057246699999},84.42524928892297,84.291271082228548,3312.002698454859,3306.7467331384901,14558.433990000001,14510.282200697657,84.42524928892297,84.291271082228548,590976.74502246082,590038.89757559984,23184018.889184013,23147227.13196943,{"$f":"W220*$AI220","v":101909037.93000001},{"$f":"X220*$AI220","v":101571975.40488359},{"$f":"Y220*$AI220","v":590976.74502246082},{"$f":"Z220*$AI220","v":590038.89757559984},7000]
[null,"Female 45-49",47.025772000000003,82.585769999999997,"female",5,{"$f":"HLOOKUP(Calculations!$E$2,'Prevalence Rates'!$C$3:$BC$249,'Prevalence Rates'!$BD221,FALSE)","v":8.7759375064237199E-2},{"$f":"HLOOKUP(Calculations!$E$2,'Population 2016'!$C$3:$BC$249,'Population 2016'!BD221,FALSE)","v":41785},0,{"$f":"HLOOKUP(Results!E$4,Targeting!$C$3:$F$249,Targeting!$G221,FALSE)","v":1238},{"$f":"IF(AND(OR(Calculations!$E$2=\"Orkney Health Board\",Calculations!$E$2=\"Orkney Islands Local Authority\"),$F221=1),0,IF(AND(OR(Calculations!$E$2=\"Shetland Health Board\",Calculations!$E$2=\"Western Isles Health Board\",Calculations!$E$2=\"Shetland Islands Local Authority\",Calculations!$E$2=\"Eilean Siar Local Authority\"),OR($F221=1,$F221=5)),0,new_ci(VALUE(LEFT(Options!$B$24,2)),$C221,$E221,$F221,2016,$I221,1,$H221,$G221*$H221,Options!$B$8)))","v":53.725524868100003},{"$f":"IF(AND(OR(Calculations!$E$2=\"Orkney Health Board\",Calculations!$E$2=\"Orkney Islands Local Authority\"),$F221=1),0,IF(AND(OR(Calculations!$E$2=\"Shetland Health Board\",Calculations!$E$2=\"Western Isles Health Board\",Calculations!$E$2=\"Shetland Islands Local Authority\",Calculations!$E$2=\"Eilean Siar Local Authority\"),OR($F221=1,$F221=5)),0,new_ci(VALUE(LEFT(Options!$B$24,2)),$C221,$E221,$F221,2016,$I221+$J221,1,$H221,$G221*$H221,Options!$B$8)))","v":53.640242514500002},{"$f":"IF(AND(OR(Calculations!$E$2=\"Orkney Health Board\",Calculations!$E$2=\"Orkney Islands Local Authority\"),$F221=1),0,IF(AND(OR(Calculations!$E$2=\"Shetland Health Board\",Calculations!$E$2=\"Western Isles Health Board\",Calculations!$E$2=\"Shetland Islands Local Authority\",Calculations!$E$2=\"Eilean Siar Local Authority\"),OR($F221=1,$F221=5)),0,new_yllv2(VALUE(LEFT(Options!$B$24,2)),$C221,$D221,$E221,$F221,2016,$I221,1,$H221,$G221*$H221,Options!$B$8)))","v":1856.7540319904999},{"$f":"IF(AND(OR(Calculations!$E$2=\"Orkney Health Board\",Calculations!$E$2=\"Orkney Islands Local Authority\"),$F221=1),0,IF(AND(OR(Calculations!$E$2=\"Shetland Health Board\",Calculations!$E$2=\"Western Isles Health Board\",Calculations!$E$2=\"Shetland Islands Local Authority\",Calculations!$E$2=\"Eilean Siar Local Authority\"),OR($F221=1,$F221=5)),0,new_yllv2(VALUE(LEFT(Options!$B$24,2)),$C221,$D221,$E221,$F221,2016,$I221+$J221,1,$H221,$G221*$H221,Options!$B$8)))","v":1853.8066740206},{"$f":"IF(AND(OR(Calculations!$E$2=\"Orkney Health Board\",Calculations!$E$2=\"Orkney Islands Local Authority\"),$F221=1),0,IF(AND(OR(Calculations!$E$2=\"Shetland Health Board\",Calculations!$E$2=\"Western Isles Health Board\",Calculations!$E$2=\"Shetland Islands Local Authority\",Calculations!$E$2=\"Eilean Siar Local Authority\"),OR($F221=1,$F221=5)),0,hosp_count(VALUE(LEFT(Options!$B$24,2)),$C221,$E221,$F221,2016,$I221,1,$H221,$G221*$H221, Options!$B$8)))","v":6889.5555642705003},{"$f":"IF(AND(OR(Calculations!$E$2=\"Orkney Health Board\",Calculations!$E$2=\"Orkney Islands Local Authority\"),$F221=1),0,IF(AND(OR(Calculations!$E$2=\"Shetland Health Board\",Calculations!$E$2=\"Western Isles Health Board\",Calculations!$E$2=\"Shetland Islands Local Authority\",Calculations!$E$2=\"Eilean Siar Local Authority\"),OR($F221=1,$F221=5)),0,hosp_count(VALUE(LEFT(Options!$B$24,2)),$C221,$E221,$F221,2016,$I221+$J221,1,$H221,$G221*$H221, Options!$B$8)))","v":6866.7546867421997},{"$f":"IF(AND(OR(Calculations!$E$2=\"Orkney Health Board\",Calculations!$E$2=\"Orkney Islands Local Authority\"),$F221=1),0,IF(AND(OR(Calculations!$E$2=\"Shetland Health Board\",Calculations!$E$2=\"Western Isles Health Board\",Calculations!$E$2=\"Shetland Islands Local Authority\",Calculations!$E$2=\"Eilean Siar Local Authority\"),OR($F221=1,$F221=5)),0,prem_mort(VALUE(LEFT(Options!$B$24,2)),$C221,$E221,$F221,2016,$I221,1,$H221,$G221*$H221,Options!$B$8)))","v":53.725524868100003},{"$f":"IF(AND(OR(Calculations!$E$2=\"Orkney Health Board\",Calculations!$E$2=\"Orkney Islands Local Authority\"),$F221=1),0,IF(AND(OR(Calculations!$E$2=\"Shetland Health Board\",Calculations!$E$2=\"Western Isles Health Board\",Calculations!$E$2=\"Shetland Islands Local Authority\",Calculations!$E$2=\"Eilean Siar Local Authority\"),OR($F221=1,$F221=5)),0,prem_mort(VALUE(LEFT(Options!$B$24,2)),$C221,$E221,$F221,2016,$I221+$J221,1,$H221,$G221*$H221,Options!$B$8)))","v":53.640242514500002},128.57610354935983,128.37200553906905,4443.5898815137007,4436.5362546861315,16488.10713,16433.539994596624,128.57610354935983,128.37200553906905,900032.72484551882,898604.03877348336,31105129.170595903,31055753.782802921,115416749.91,115034779.96217637,900032.72484551882,898604.03877348336,7000]
[null,"Female 50-54",51.990825999999998,82.980829999999997,"female",5,{"$f":"HLOOKUP(Calculations!$E$2,'Prevalence Rates'!$C$3:$BC$249,'Prevalence Rates'!$BD222,FALSE)","v":8.7759375064237199E-2},{"$f":"HLOOKUP(Calculations!$E$2,'Population 2016'!$C$3:$BC$249,'Population 2016'!BD222,FALSE)","v":42428},0,{"$f":"HLOOKUP(Results!E$4,Targeting!$C$3:$F$249,Targeting!$G222,FALSE)","v":1257},{"$f":"IF(AND(OR(Calculations!$E$2=\"Orkney Health Board\",Calculations!$E$2=\"Orkney Islands Local Authority\"),$F222=1),0,IF(AND(OR(Calculations!$E$2=\"Shetland Health Board\",Calculations!$E$2=\"Western Isles Health Board\",Calculations!$E$2=\"Shetland Islands Local Authority\",Calculations!$E$2=\"Eilean Siar Local Authority\"),OR($F222=1,$F222=5)),0,new_ci(VALUE(LEFT(Options!$B$24,2)),$C222,$E222,$F222,2016,$I222,1,$H222,$G222*$H222,Options!$B$8)))","v":83.189232696800005},{"$f":"IF(AND(OR(Calculations!$E$2=\"Orkney Health Board\",Calculations!$E$2=\"Orkney Islands Local Authority\"),$F222=1),0,IF(AND(OR(Calculations!$E$2=\"Shetland Health Board\",Calculations!$E$2=\"Western Isles Health Board\",Calculations!$E$2=\"Shetland Islands Local Authority\",Calculations!$E$2=\"Eilean Siar Local Authority\"),OR($F222=1,$F222=5)),0,new_ci(VALUE(LEFT(Options!$B$24,2)),$C222,$E222,$F222,2016,$I222+$J222,1,$H222,$G222*$H222,Options!$B$8)))","v":83.057253981800002},{"$f":"IF(AND(OR(Calculations!$E$2=\"Orkney Health Board\",Calculations!$E$2=\"Orkney Islands Local Authority\"),$F222=1),0,IF(AND(OR(Calculations!$E$2=\"Shetland Health Board\",Calculations!$E$2=\"Western Isles Health Board\",Calculations!$E$2=\"Shetland Islands Local Authority\",Calculations!$E$2=\"Eilean Siar Local Authority\"),OR($F222=1,$F222=5)),0,new_yllv2(VALUE(LEFT(Options!$B$24,2)),$C222,$D222,$E222,$F222,2016,$I222,1,$H222,$G222*$H222,Options!$B$8)))","v":2494.8454213340001},{"$f":"IF(AND(OR(Calculations!$E$2=\"Orkney Health Board\",Calculations!$E$2=\"Orkney Islands Local Authority\"),$F222=1),0,IF(AND(OR(Calculations!$E$2=\"Shetland Health Board\",Calculations!$E$2=\"Western Isles Health Board\",Calculations!$E$2=\"Shetland Islands Local Authority\",Calculations!$E$2=\"Eilean Siar Local Authority\"),OR($F222=1,$F222=5)),0,new_yllv2(VALUE(LEFT(Options!$B$24,2)),$C222,$D222,$E222,$F222,2016,$I222+$J222,1,$H222,$G222*$H222,Options!$B$8)))","v":2490.8873791432002},{"$f":"IF(AND(OR(Calculations!$E$2=\"Orkney Health Board\",Calculations!$E$2=\"Orkney Islands Local Authority\"),$F222=1),0,IF(AND(OR(Calculations!$E$2=\"Shetland Health Board\",Calculations!$E$2=\"Western Isles Health Board\",Calculations!$E$2=\"Shetland Islands Local Authority\",Calculations!$E$2=\"Eilean Siar Local Authority\"),OR($F222=1,$F222=5)),0,hosp_count(VALUE(LEFT(Options!$B$24,2)),$C222,$E222,$F222,2016,$I222,1,$H222,$G222*$H222, Options!$B$8)))","v":7926.1475104580004},{"$f":"IF(AND(OR(Calculations!$E$2=\"Orkney Health Board\",Calculations!$E$2=\"Orkney Islands Local Authority\"),$F222=1),0,IF(AND(OR(Calculations!$E$2=\"Shetland Health Board\",Calculations!$E$2=\"Western Isles Health Board\",Calculations!$E$2=\"Shetland Islands Local Authority\",Calculations!$E$2=\"Eilean Siar Local Authority\"),OR($F222=1,$F222=5)),0,hosp_count(VALUE(LEFT(Options!$B$24,2)),$C222,$E222,$F222,2016,$I222+$J222,1,$H222,$G222*$H222, Options!$B$8)))","v":7899.9171062896003},{"$f":"IF(AND(OR(Calculations!$E$2=\"Orkney Health Board\",Calculations!$E$2=\"Orkney Islands Local Authority\"),$F222=1),0,IF(AND(OR(Calculations!$E$2=\"Shetland Health Board\",Calculations!$E$2=\"Western Isles Health Board\",Calculations!$E$2=\"Shetland Islands Local Authority\",Calculations!$E$2=\"Eilean Siar Local Authority\"),OR($F222=1,$F222=5)),0,prem_mort(VALUE(LEFT(Options!$B$24,2)),$C222,$E222,$F222,2016,$I222,1,$H222,$G222*$H222,Options!$B$8)))","v":83.189232696800005},{"$f":"IF(AND(OR(Calculations!$E$2=\"Orkney Health Board\",Calculations!$E$2=\"Orkney Islands Local Authority\"),$F222=1),0,IF(AND(OR(Calculations!$E$2=\"Shetland Health Board\",Calculations!$E$2=\"Western Isles Health Board\",Calculations!$E$2=\"Shetland Islands Local Authority\",Calculations!$E$2=\"Eilean Siar Local Authority\"),OR($F222=1,$F222=5)),0,prem_mort(VALUE(LEFT(Options!$B$24,2)),$C222,$E222,$F222,2016,$I222+$J222,1,$H222,$G222*$H222,Options!$B$8)))","v":83.057253981800002},196.07153930611861,195.76047417224476,5880.1862480767422,5870.8574034675221,18681.407350000001,18619.584015955501,196.07153930611861,195.76047417224476,1372500.7751428303,1370323.3192057132,41161303.736537196,41096001.824272655,130769851.45,130337088.11168851,1372500.7751428303,1370323.3192057132,7000]
[null,"Female 55-59",56.953040999999999,83.473039999999997,"female",5,{"$f":"HLOOKUP(Calculations!$E$2,'Prevalence Rates'!$C$3:$BC$249,'Prevalence Rates'!$BD223,FALSE)","v":7.351441568831471E-2},{"$f":"HLOOKUP(Calculations!$E$2,'Population 2016'!$C$3:$BC$249,'Population 2016'!BD223,FALSE)","v":38314},0,{"$f":"HLOOKUP(Results!E$4,Targeting!$C$3:$F$249,Targeting!$G223,FALSE)","v":1135},{"$f":"IF(AND(OR(Calculations!$E$2=\"Orkney Health Board\",Calculations!$E$2=\"Orkney Islands Local Authority\"),$F223=1),0,IF(AND(OR(Calculations!$E$2=\"Shetland Health Board\",Calculations!$E$2=\"Western Isles Health Board\",Calculations!$E$2=\"Shetland Islands Local Authority\",Calculations!$E$2=\"Eilean Siar Local Authority\"),OR($F223=1,$F223=5)),0,new_ci(VALUE(LEFT(Options!$B$24,2)),$C223,$E223,$F223,2016,$I223,1,$H223,$G223*$H223,Options!$B$8)))","v":114.5103365801},{"$f":"IF(AND(OR(Calculations!$E$2=\"Orkney Health Board\",Calculations!$E$2=\"Orkney Islands Local Authority\"),$F223=1),0,IF(AND(OR(Calculations!$E$2=\"Shetland Health Board\",Calculations!$E$2=\"Western Isles Health Board\",Calculations!$E$2=\"Shetland Islands Local Authority\",Calculations!$E$2=\"Eilean Siar Local Authority\"),OR($F223=1,$F223=5)),0,new_ci(VALUE(LEFT(Options!$B$24,2)),$C223,$E223,$F223,2016,$I223+$J223,1,$H223,$G223*$H223,Options!$B$8)))","v":114.3279988301},{"$f":"IF(AND(OR(Calculations!$E$2=\"Orkney Health Board\",Calculations!$E$2=\"Orkney Islands Local Authority\"),$F223=1),0,IF(AND(OR(Calculations!$E$2=\"Shetland Health Board\",Calculations!$E$2=\"Western Isles Health Board\",Calculations!$E$2=\"Shetland Islands Local Authority\",Calculations!$E$2=\"Eilean Siar Local Authority\"),OR($F223=1,$F223=5)),0,new_yllv2(VALUE(LEFT(Options!$B$24,2)),$C223,$D223,$E223,$F223,2016,$I223,1,$H223,$G223*$H223,Options!$B$8)))","v":2922.3036750137999},{"$f":"IF(AND(OR(Calculations!$E$2=\"Orkney Health Board\",Calculations!$E$2=\"Orkney Islands Local Authority\"),$F223=1),0,IF(AND(OR(Calculations!$E$2=\"Shetland Health Board\",Calculations!$E$2=\"Western Isles Health Board\",Calculations!$E$2=\"Shetland Islands Local Authority\",Calculations!$E$2=\"Eilean Siar Local Authority\"),OR($F223=1,$F223=5)),0,new_yllv2(VALUE(LEFT(Options!$B$24,2)),$C223,$D223,$E223,$F223,2016,$I223+$J223,1,$H223,$G223*$H223,Options!$B$8)))","v":2917.6504158162002},{"$f":"IF(AND(OR(Calculations!$E$2=\"Orkney Health Board\",Calculations!$E$2=\"Orkney Islands Local Authority\"),$F223=1),0,IF(AND(OR(Calculations!$E$2=\"Shetland Health Board\",Calculations!$E$2=\"Western Isles Health Board\",Calculations!$E$2=\"Shetland Islands Local Authority\",Calculations!$E$2=\"Eilean Siar Local Authority\"),OR($F223=1,$F223=5)),0,hosp_count(VALUE(LEFT(Options!$B$24,2)),$C223,$E223,$F223,2016,$I223,1,$H223,$G223*$H223, Options!$B$8)))","v":8109.1411843690003},{"$f":"IF(AND(OR(Calculations!$E$2=\"Orkney Health Board\",Calculations!$E$2=\"Orkney Islands Local Authority\"),$F223=1),0,IF(AND(OR(Calculations!$E$2=\"Shetland Health Board\",Calculations!$E$2=\"Western Isles Health Board\",Calculations!$E$2=\"Shetland Islands Local Authority\",Calculations!$E$2=\"Eilean Siar Local Authority\"),OR($F223=1,$F223=5)),0,hosp_count(VALUE(LEFT(Options!$B$24,2)),$C223,$E223,$F223,2016,$I223+$J223,1,$H223,$G223*$H223, Options!$B$8)))","v":8082.1738722962},{"$f":"IF(AND(OR(Calculations!$E$2=\"Orkney Health Board\",Calculations!$E$2=\"Orkney Islands Local Authority\"),$F223=1),0,IF(AND(OR(Calculations!$E$2=\"Shetland Health Board\",Calculations!$E$2=\"Western Isles Health Board\",Calculations!$E$2=\"Shetland Islands Local Authority\",Calculations!$E$2=\"Eilean Siar Local Authority\"),OR($F223=1,$F223=5)),0,prem_mort(VALUE(LEFT(Options!$B$24,2)),$C223,$E223,$F223,2016,$I223,1,$H223,$G223*$H223,Options!$B$8)))","v":114.5103365801},{"$f":"IF(AND(OR(Calculations!$E$2=\"Orkney Health Board\",Calculations!$E$2=\"Orkney Islands Local Authority\"),$F223=1),0,IF(AND(OR(Calculations!$E$2=\"Shetland Health Board\",Calculations!$E$2=\"Western Isles Health Board\",Calculations!$E$2=\"Shetland Islands Local Authority\",Calculations!$E$2=\"Eilean Siar Local Authority\"),OR($F223=1,$F223=5)),0,prem_mort(VALUE(LEFT(Options!$B$24,2)),$C223,$E223,$F223,2016,$I223+$J223,1,$H223,$G223*$H223,Options!$B$8)))","v":114.3279988301},298.87335329148613,298.39744957482907,7627.2476771253323,7615.1026147523107,21164.955850000002,21094.570841718953,298.87335329148613,298.39744957482907,1942676.7963946599,1939583.422236389,49577109.901314661,49498166.995890021,137572213.02500001,137114710.4711732,1942676.7963946599,1939583.422236389,6500]
[null,"Female 60-64",61.947387999999997,84.167389999999997,"female",5,{"$f":"HLOOKUP(Calculations!$E$2,'Prevalence Rates'!$C$3:$BC$249,'Prevalence Rates'!$BD224,FALSE)","v":7.351441568831471E-2},{"$f":"HLOOKUP(Calculations!$E$2,'Population 2016'!$C$3:$BC$249,'Population 2016'!BD224,FALSE)","v":33644},0,{"$f":"HLOOKUP(Results!E$4,Targeting!$C$3:$F$249,Targeting!$G224,FALSE)","v":996},{"$f":"IF(AND(OR(Calculations!$E$2=\"Orkney Health Board\",Calculations!$E$2=\"Orkney Islands Local Authority\"),$F224=1),0,IF(AND(OR(Calculations!$E$2=\"Shetland Health Board\",Calculations!$E$2=\"Western Isles Health Board\",Calculations!$E$2=\"Shetland Islands Local Authority\",Calculations!$E$2=\"Eilean Siar Local Authority\"),OR($F224=1,$F224=5)),0,new_ci(VALUE(LEFT(Options!$B$24,2)),$C224,$E224,$F224,2016,$I224,1,$H224,$G224*$H224,Options!$B$8)))","v":153.650126648},{"$f":"IF(AND(OR(Calculations!$E$2=\"Orkney Health Board\",Calculations!$E$2=\"Orkney Islands Local Authority\"),$F224=1),0,IF(AND(OR(Calculations!$E$2=\"Shetland Health Board\",Calculations!$E$2=\"Western Isles Health Board\",Calculations!$E$2=\"Shetland Islands Local Authority\",Calculations!$E$2=\"Eilean Siar Local Authority\"),OR($F224=1,$F224=5)),0,new_ci(VALUE(LEFT(Options!$B$24,2)),$C224,$E224,$F224,2016,$I224+$J224,1,$H224,$G224*$H224,Options!$B$8)))","v":153.40592467880001},{"$f":"IF(AND(OR(Calculations!$E$2=\"Orkney Health Board\",Calculations!$E$2=\"Orkney Islands Local Authority\"),$F224=1),0,IF(AND(OR(Calculations!$E$2=\"Shetland Health Board\",Calculations!$E$2=\"Western Isles Health Board\",Calculations!$E$2=\"Shetland Islands Local Authority\",Calculations!$E$2=\"Eilean Siar Local Authority\"),OR($F224=1,$F224=5)),0,new_yllv2(VALUE(LEFT(Options!$B$24,2)),$C224,$D224,$E224,$F224,2016,$I224,1,$H224,$G224*$H224,Options!$B$8)))","v":3260.4559947707999},{"$f":"IF(AND(OR(Calculations!$E$2=\"Orkney Health Board\",Calculations!$E$2=\"Orkney Islands Local Authority\"),$F224=1),0,IF(AND(OR(Calculations!$E$2=\"Shetland Health Board\",Calculations!$E$2=\"Western Isles Health Board\",Calculations!$E$2=\"Shetland Islands Local Authority\",Calculations!$E$2=\"Eilean Siar Local Authority\"),OR($F224=1,$F224=5)),0,new_yllv2(VALUE(LEFT(Options!$B$24,2)),$C224,$D224,$E224,$F224,2016,$I224+$J224,1,$H224,$G224*$H224,Options!$B$8)))","v":3255.274028496},{"$f":"IF(AND(OR(Calculations!$E$2=\"Orkney Health Board\",Calculations!$E$2=\"Orkney Islands Local Authority\"),$F224=1),0,IF(AND(OR(Calculations!$E$2=\"Shetland Health Board\",Calculations!$E$2=\"Western Isles Health Board\",Calculations!$E$2=\"Shetland Islands Local Authority\",Calculations!$E$2=\"Eilean Siar Local Authority\"),OR($F224=1,$F224=5)),0,hosp_count(VALUE(LEFT(Options!$B$24,2)),$C224,$E224,$F224,2016,$I224,1,$H224,$G224*$H224, Options!$B$8)))","v":8073.9077134924},{"$f":"IF(AND(OR(Calculations!$E$2=\"Orkney Health Board\",Calculations!$E$2=\"Orkney Islands Local Authority\"),$F224=1),0,IF(AND(OR(Calculations!$E$2=\"Shetland Health Board\",Calculations!$E$2=\"Western Isles Health Board\",Calculations!$E$2=\"Shetland Islands Local Authority\",Calculations!$E$2=\"Eilean Siar Local Authority\"),OR($F224=1,$F224=5)),0,hosp_count(VALUE(LEFT(Options!$B$24,2)),$C224,$E224,$F224,2016,$I224+$J224,1,$H224,$G224*$H224, Options!$B$8)))","v":8047.0752882165998},{"$f":"IF(AND(OR(Calculations!$E$2=\"Orkney Health Board\",Calculations!$E$2=\"Orkney Islands Local Authority\"),$F224=1),0,IF(AND(OR(Calculations!$E$2=\"Shetland Health Board\",Calculations!$E$2=\"Western Isles Health Board\",Calculations!$E$2=\"Shetland Islands Local Authority\",Calculations!$E$2=\"Eilean Siar Local Authority\"),OR($F224=1,$F224=5)),0,prem_mort(VALUE(LEFT(Options!$B$24,2)),$C224,$E224,$F224,2016,$I224,1,$H224,$G224*$H224,Options!$B$8)))","v":153.650126648},{"$f":"IF(AND(OR(Calculations!$E$2=\"Orkney Health Board\",Calculations!$E$2=\"Orkney Islands Local Authority\"),$F224=1),0,IF(AND(OR(Calculations!$E$2=\"Shetland Health Board\",Calculations!$E$2=\"Western Isles Health Board\",Calculations!$E$2=\"Shetland Islands Local Authority\",Calculations!$E$2=\"Eilean Siar Local Authority\"),OR($F224=1,$F224=5)),0,prem_mort(VALUE(LEFT(Options!$B$24,2)),$C224,$E224,$F224,2016,$I224+$J224,1,$H224,$G224*$H224,Options!$B$8)))","v":153.40592467880001},456.69399193912733,455.96815087028892,9691.0474223362253,9675.6450734038772,23998.06121,23918.307241162165,456.69399193912733,455.96815087028892,2740163.9516347642,2735808.9052217337,58146284.534017354,58053870.440423265,143988367.25999999,143509843.446973,2740163.9516347642,2735808.9052217337,6000]
[null,"Female 65-69",67.063927000000007,85.193929999999995,"female",5,{"$f":"HLOOKUP(Calculations!$E$2,'Prevalence Rates'!$C$3:$BC$249,'Prevalence Rates'!$BD225,FALSE)","v":7.351441568831471E-2},{"$f":"HLOOKUP(Calculations!$E$2,'Population 2016'!$C$3:$BC$249,'Population 2016'!BD225,FALSE)","v":33766},0,{"$f":"HLOOKUP(Results!E$4,Targeting!$C$3:$F$249,Targeting!$G225,FALSE)","v":1000},{"$f":"IF(AND(OR(Calculations!$E$2=\"Orkney Health Board\",Calculations!$E$2=\"Orkney Islands Local Authority\"),$F225=1),0,IF(AND(OR(Calculations!$E$2=\"Shetland Health Board\",Calculations!$E$2=\"Western Isles Health Board\",Calculations!$E$2=\"Shetland Islands Local Authority\",Calculations!$E$2=\"Eilean Siar Local Authority\"),OR($F225=1,$F225=5)),0,new_ci(VALUE(LEFT(Options!$B$24,2)),$C225,$E225,$F225,2016,$I225,1,$H225,$G225*$H225,Options!$B$8)))","v":237.98939037560001},{"$f":"IF(AND(OR(Calculations!$E$2=\"Orkney Health Board\",Calculations!$E$2=\"Orkney Islands Local Authority\"),$F225=1),0,IF(AND(OR(Calculations!$E$2=\"Shetland Health Board\",Calculations!$E$2=\"Western Isles Health Board\",Calculations!$E$2=\"Shetland Islands Local Authority\",Calculations!$E$2=\"Eilean Siar Local Authority\"),OR($F225=1,$F225=5)),0,new_ci(VALUE(LEFT(Options!$B$24,2)),$C225,$E225,$F225,2016,$I225+$J225,1,$H225,$G225*$H225,Options!$B$8)))","v":237.61172287560001},{"$f":"IF(AND(OR(Calculations!$E$2=\"Orkney Health Board\",Calculations!$E$2=\"Orkney Islands Local Authority\"),$F225=1),0,IF(AND(OR(Calculations!$E$2=\"Shetland Health Board\",Calculations!$E$2=\"Western Isles Health Board\",Calculations!$E$2=\"Shetland Islands Local Authority\",Calculations!$E$2=\"Eilean Siar Local Authority\"),OR($F225=1,$F225=5)),0,new_yllv2(VALUE(LEFT(Options!$B$24,2)),$C225,$D225,$E225,$F225,2016,$I225,1,$H225,$G225*$H225,Options!$B$8)))","v":4076.7589711022001},{"$f":"IF(AND(OR(Calculations!$E$2=\"Orkney Health Board\",Calculations!$E$2=\"Orkney Islands Local Authority\"),$F225=1),0,IF(AND(OR(Calculations!$E$2=\"Shetland Health Board\",Calculations!$E$2=\"Western Isles Health Board\",Calculations!$E$2=\"Shetland Islands Local Authority\",Calculations!$E$2=\"Eilean Siar Local Authority\"),OR($F225=1,$F225=5)),0,new_yllv2(VALUE(LEFT(Options!$B$24,2)),$C225,$D225,$E225,$F225,2016,$I225+$J225,1,$H225,$G225*$H225,Options!$B$8)))","v":4070.2895256942002},{"$f":"IF(AND(OR(Calculations!$E$2=\"Orkney Health Board\",Calculations!$E$2=\"Orkney Islands Local Authority\"),$F225=1),0,IF(AND(OR(Calculations!$E$2=\"Shetland Health Board\",Calculations!$E$2=\"Western Isles Health Board\",Calculations!$E$2=\"Shetland Islands Local Authority\",Calculations!$E$2=\"Eilean Siar Local Authority\"),OR($F225=1,$F225=5)),0,hosp_count(VALUE(LEFT(Options!$B$24,2)),$C225,$E225,$F225,2016,$I225,1,$H225,$G225*$H225, Options!$B$8)))","v":9216.1471731248002},{"$f":"IF(AND(OR(Calculations!$E$2=\"Orkney Health Board\",Calculations!$E$2=\"Orkney Islands Local Authority\"),$F225=1),0,IF(AND(OR(Calculations!$E$2=\"Shetland Health Board\",Calculations!$E$2=\"Western Isles Health Board\",Calculations!$E$2=\"Shetland Islands Local Authority\",Calculations!$E$2=\"Eilean Siar Local Authority\"),OR($F225=1,$F225=5)),0,hosp_count(VALUE(LEFT(Options!$B$24,2)),$C225,$E225,$F225,2016,$I225+$J225,1,$H225,$G225*$H225, Options!$B$8)))","v":9185.5067879922008},{"$f":"IF(AND(OR(Calculations!$E$2=\"Orkney Health Board\",Calculations!$E$2=\"Orkney Islands Local Authority\"),$F225=1),0,IF(AND(OR(Calculations!$E$2=\"Shetland Health Board\",Calculations!$E$2=\"Western Isles Health Board\",Calculations!$E$2=\"Shetland Islands Local Authority\",Calculations!$E$2=\"Eilean Siar Local Authority\"),OR($F225=1,$F225=5)),0,prem_mort(VALUE(LEFT(Options!$B$24,2)),$C225,$E225,$F225,2016,$I225,1,$H225,$G225*$H225,Options!$B$8)))","v":237.98939037560001},{"$f":"IF(AND(OR(Calculations!$E$2=\"Orkney Health Board\",Calculations!$E$2=\"Orkney Islands Local Authority\"),$F225=1),0,IF(AND(OR(Calculations!$E$2=\"Shetland Health Board\",Calculations!$E$2=\"Western Isles Health Board\",Calculations!$E$2=\"Shetland Islands Local Authority\",Calculations!$E$2=\"Eilean Siar Local Authority\"),OR($F225=1,$F225=5)),0,prem_mort(VALUE(LEFT(Options!$B$24,2)),$C225,$E225,$F225,2016,$I225+$J225,1,$H225,$G225*$H225,Options!$B$8)))","v":237.61172287560001},704.81961255582542,703.7011279855476,12073.562077540129,12054.402433495825,27294.163280000001,27203.41997273056,704.81961255582542,703.7011279855476,3876507.8690570397,3870356.203920512,66404591.426470712,66299213.384227037,150117898.03999999,149618809.85001808,3876507.8690570397,3870356.203920512,5500]
[null,"Female 70-74",71.938164,86.248159999999999,"female",5,{"$f":"HLOOKUP(Calculations!$E$2,'Prevalence Rates'!$C$3:$BC$249,'Prevalence Rates'!$BD226,FALSE)","v":7.351441568831471E-2},{"$f":"HLOOKUP(Calculations!$E$2,'Population 2016'!$C$3:$BC$249,'Population 2016'!BD226,FALSE)","v":25722},0,{"$f":"HLOOKUP(Results!E$4,Targeting!$C$3:$F$249,Targeting!$G226,FALSE)","v":762},{"$f":"IF(AND(OR(Calculations!$E$2=\"Orkney Health Board\",Calculations!$E$2=\"Orkney Islands Local Authority\"),$F226=1),0,IF(AND(OR(Calculations!$E$2=\"Shetland Health Board\",Calculations!$E$2=\"Western Isles Health Board\",Calculations!$E$2=\"Shetland Islands Local Authority\",Calculations!$E$2=\"Eilean Siar Local Authority\"),OR($F226=1,$F226=5)),0,new_ci(VALUE(LEFT(Options!$B$24,2)),$C226,$E226,$F226,2016,$I226,1,$H226,$G226*$H226,Options!$B$8)))","v":273.92831434319999},{"$f":"IF(AND(OR(Calculations!$E$2=\"Orkney Health Board\",Calculations!$E$2=\"Orkney Islands Local Authority\"),$F226=1),0,IF(AND(OR(Calculations!$E$2=\"Shetland Health Board\",Calculations!$E$2=\"Western Isles Health Board\",Calculations!$E$2=\"Shetland Islands Local Authority\",Calculations!$E$2=\"Eilean Siar Local Authority\"),OR($F226=1,$F226=5)),0,new_ci(VALUE(LEFT(Options!$B$24,2)),$C226,$E226,$F226,2016,$I226+$J226,1,$H226,$G226*$H226,Options!$B$8)))","v":273.49469801459998},{"$f":"IF(AND(OR(Calculations!$E$2=\"Orkney Health Board\",Calculations!$E$2=\"Orkney Islands Local Authority\"),$F226=1),0,IF(AND(OR(Calculations!$E$2=\"Shetland Health Board\",Calculations!$E$2=\"Western Isles Health Board\",Calculations!$E$2=\"Shetland Islands Local Authority\",Calculations!$E$2=\"Eilean Siar Local Authority\"),OR($F226=1,$F226=5)),0,new_yllv2(VALUE(LEFT(Options!$B$24,2)),$C226,$D226,$E226,$F226,2016,$I226,1,$H226,$G226*$H226,Options!$B$8)))","v":3645.9847681946999},{"$f":"IF(AND(OR(Calculations!$E$2=\"Orkney Health Board\",Calculations!$E$2=\"Orkney Islands Local Authority\"),$F226=1),0,IF(AND(OR(Calculations!$E$2=\"Shetland Health Board\",Calculations!$E$2=\"Western Isles Health Board\",Calculations!$E$2=\"Shetland Islands Local Authority\",Calculations!$E$2=\"Eilean Siar Local Authority\"),OR($F226=1,$F226=5)),0,new_yllv2(VALUE(LEFT(Options!$B$24,2)),$C226,$D226,$E226,$F226,2016,$I226+$J226,1,$H226,$G226*$H226,Options!$B$8)))","v":3640.2133365955001},{"$f":"IF(AND(OR(Calculations!$E$2=\"Orkney Health Board\",Calculations!$E$2=\"Orkney Islands Local Authority\"),$F226=1),0,IF(AND(OR(Calculations!$E$2=\"Shetland Health Board\",Calculations!$E$2=\"Western Isles Health Board\",Calculations!$E$2=\"Shetland Islands Local Authority\",Calculations!$E$2=\"Eilean Siar Local Authority\"),OR($F226=1,$F226=5)),0,hosp_count(VALUE(LEFT(Options!$B$24,2)),$C226,$E226,$F226,2016,$I226,1,$H226,$G226*$H226, Options!$B$8)))","v":7936.3573448597999},{"$f":"IF(AND(OR(Calculations!$E$2=\"Orkney Health Board\",Calculations!$E$2=\"Orkney Islands Local Authority\"),$F226=1),0,IF(AND(OR(Calculations!$E$2=\"Shetland Health Board\",Calculations!$E$2=\"Western Isles Health Board\",Calculations!$E$2=\"Shetland Islands Local Authority\",Calculations!$E$2=\"Eilean Siar Local Authority\"),OR($F226=1,$F226=5)),0,hosp_count(VALUE(LEFT(Options!$B$24,2)),$C226,$E226,$F226,2016,$I226+$J226,1,$H226,$G226*$H226, Options!$B$8)))","v":7909.9639117094002},{"$f":"IF(AND(OR(Calculations!$E$2=\"Orkney Health Board\",Calculations!$E$2=\"Orkney Islands Local Authority\"),$F226=1),0,IF(AND(OR(Calculations!$E$2=\"Shetland Health Board\",Calculations!$E$2=\"Western Isles Health Board\",Calculations!$E$2=\"Shetland Islands Local Authority\",Calculations!$E$2=\"Eilean Siar Local Authority\"),OR($F226=1,$F226=5)),0,prem_mort(VALUE(LEFT(Options!$B$24,2)),$C226,$E226,$F226,2016,$I226,1,$H226,$G226*$H226,Options!$B$8)))","v":273.92831434319999},{"$f":"IF(AND(OR(Calculations!$E$2=\"Orkney Health Board\",Calculations!$E$2=\"Orkney Islands Local Authority\"),$F226=1),0,IF(AND(OR(Calculations!$E$2=\"Shetland Health Board\",Calculations!$E$2=\"Western Isles Health Board\",Calculations!$E$2=\"Shetland Islands Local Authority\",Calculations!$E$2=\"Eilean Siar Local Authority\"),OR($F226=1,$F226=5)),0,prem_mort(VALUE(LEFT(Options!$B$24,2)),$C226,$E226,$F226,2016,$I226+$J226,1,$H226,$G226*$H226,Options!$B$8)))","v":273.49469801459998},1064.957290814089,1063.2715108257521,14174.577280906227,14152.139556004588,30854.355590000003,30751.745244185524,1064.957290814089,1063.2715108257521,5324786.4540704452,5316357.5541287605,70872886.404531136,70760697.780022934,154271777.95000002,153758726.22092763,5324786.4540704452,5316357.5541287605,5000]
[null,"Female 75-79",76.942824999999999,87.812830000000005,"female",5,{"$f":"HLOOKUP(Calculations!$E$2,'Prevalence Rates'!$C$3:$BC$249,'Prevalence Rates'!$BD227,FALSE)","v":7.351441568831471E-2},{"$f":"HLOOKUP(Calculations!$E$2,'Population 2016'!$C$3:$BC$249,'Population 2016'!BD227,FALSE)","v":20290},0,{"$f":"HLOOKUP(Results!E$4,Targeting!$C$3:$F$249,Targeting!$G227,FALSE)","v":601},{"$f":"IF(AND(OR(Calculations!$E$2=\"Orkney Health Board\",Calculations!$E$2=\"Orkney Islands Local Authority\"),$F227=1),0,IF(AND(OR(Calculations!$E$2=\"Shetland Health Board\",Calculations!$E$2=\"Western Isles Health Board\",Calculations!$E$2=\"Shetland Islands Local Authority\",Calculations!$E$2=\"Eilean Siar Local Authority\"),OR($F227=1,$F227=5)),0,new_ci(VALUE(LEFT(Options!$B$24,2)),$C227,$E227,$F227,2016,$I227,1,$H227,$G227*$H227,Options!$B$8)))","v":329.79195965460002},{"$f":"IF(AND(OR(Calculations!$E$2=\"Orkney Health Board\",Calculations!$E$2=\"Orkney Islands Local Authority\"),$F227=1),0,IF(AND(OR(Calculations!$E$2=\"Shetland Health Board\",Calculations!$E$2=\"Western Isles Health Board\",Calculations!$E$2=\"Shetland Islands Local Authority\",Calculations!$E$2=\"Eilean Siar Local Authority\"),OR($F227=1,$F227=5)),0,new_ci(VALUE(LEFT(Options!$B$24,2)),$C227,$E227,$F227,2016,$I227+$J227,1,$H227,$G227*$H227,Options!$B$8)))","v":329.27225938869998},{"$f":"IF(AND(OR(Calculations!$E$2=\"Orkney Health Board\",Calculations!$E$2=\"Orkney Islands Local Authority\"),$F227=1),0,IF(AND(OR(Calculations!$E$2=\"Shetland Health Board\",Calculations!$E$2=\"Western Isles Health Board\",Calculations!$E$2=\"Shetland Islands Local Authority\",Calculations!$E$2=\"Eilean Siar Local Authority\"),OR($F227=1,$F227=5)),0,new_yllv2(VALUE(LEFT(Options!$B$24,2)),$C227,$D227,$E227,$F227,2016,$I227,1,$H227,$G227*$H227,Options!$B$8)))","v":3255.0482907506998},{"$f":"IF(AND(OR(Calculations!$E$2=\"Orkney Health Board\",Calculations!$E$2=\"Orkney Islands Local Authority\"),$F227=1),0,IF(AND(OR(Calculations!$E$2=\"Shetland Health Board\",Calculations!$E$2=\"Western Isles Health Board\",Calculations!$E$2=\"Shetland Islands Local Authority\",Calculations!$E$2=\"Eilean Siar Local Authority\"),OR($F227=1,$F227=5)),0,new_yllv2(VALUE(LEFT(Options!$B$24,2)),$C227,$D227,$E227,$F227,2016,$I227+$J227,1,$H227,$G227*$H227,Options!$B$8)))","v":3249.9188465277998},{"$f":"IF(AND(OR(Calculations!$E$2=\"Orkney Health Board\",Calculations!$E$2=\"Orkney Islands Local Authority\"),$F227=1),0,IF(AND(OR(Calculations!$E$2=\"Shetland Health Board\",Calculations!$E$2=\"Western Isles Health Board\",Calculations!$E$2=\"Shetland Islands Local Authority\",Calculations!$E$2=\"Eilean Siar Local Authority\"),OR($F227=1,$F227=5)),0,hosp_count(VALUE(LEFT(Options!$B$24,2)),$C227,$E227,$F227,2016,$I227,1,$H227,$G227*$H227, Options!$B$8)))","v":7100.1902926740004},{"$f":"IF(AND(OR(Calculations!$E$2=\"Orkney Health Board\",Calculations!$E$2=\"Orkney Islands Local Authority\"),$F227=1),0,IF(AND(OR(Calculations!$E$2=\"Shetland Health Board\",Calculations!$E$2=\"Western Isles Health Board\",Calculations!$E$2=\"Shetland Islands Local Authority\",Calculations!$E$2=\"Eilean Siar Local Authority\"),OR($F227=1,$F227=5)),0,hosp_count(VALUE(LEFT(Options!$B$24,2)),$C227,$E227,$F227,2016,$I227+$J227,1,$H227,$G227*$H227, Options!$B$8)))","v":7076.5807895937996},{"$f":"IF(AND(OR(Calculations!$E$2=\"Orkney Health Board\",Calculations!$E$2=\"Orkney Islands Local Authority\"),$F227=1),0,IF(AND(OR(Calculations!$E$2=\"Shetland Health Board\",Calculations!$E$2=\"Western Isles Health Board\",Calculations!$E$2=\"Shetland Islands Local Authority\",Calculations!$E$2=\"Eilean Siar Local Authority\"),OR($F227=1,$F227=5)),0,prem_mort(VALUE(LEFT(Options!$B$24,2)),$C227,$E227,$F227,2016,$I227,1,$H227,$G227*$H227,Options!$B$8)))","v":0},{"$f":"IF(AND(OR(Calculations!$E$2=\"Orkney Health Board\",Calculations!$E$2=\"Orkney Islands Local Authority\"),$F227=1),0,IF(AND(OR(Calculations!$E$2=\"Shetland Health Board\",Calculations!$E$2=\"Western Isles Health Board\",Calculations!$E$2=\"Shetland Islands Local Authority\",Calculations!$E$2=\"Eilean Siar Local Authority\"),OR($F227=1,$F227=5)),0,prem_mort(VALUE(LEFT(Options!$B$24,2)),$C227,$E227,$F227,2016,$I227+$J227,1,$H227,$G227*$H227,Options!$B$8)))","v":0},1625.3916197861017,1622.8302581996056,16042.623414246918,16017.342762581568,34993.545060000004,34877.184768821091,0,0,6501566.4791444065,6491321.0327984225,64170493.656987675,64069371.050326273,139974180.24000001,139508739.07528436,0,0,4000]
[null,"Female 80-84",81.856712000000002,89.736710000000002,"female",5,{"$f":"HLOOKUP(Calculations!$E$2,'Prevalence Rates'!$C$3:$BC$249,'Prevalence Rates'!$BD228,FALSE)","v":7.351441568831471E-2},{"$f":"HLOOKUP(Calculations!$E$2,'Population 2016'!$C$3:$BC$249,'Population 2016'!BD228,FALSE)","v":15640},0,{"$f":"HLOOKUP(Results!E$4,Targeting!$C$3:$F$249,Targeting!$G228,FALSE)","v":463},{"$f":"IF(AND(OR(Calculations!$E$2=\"Orkney Health Board\",Calculations!$E$2=\"Orkney Islands Local Authority\"),$F228=1),0,IF(AND(OR(Calculations!$E$2=\"Shetland Health Board\",Calculations!$E$2=\"Western Isles Health Board\",Calculations!$E$2=\"Shetland Islands Local Authority\",Calculations!$E$2=\"Eilean Siar Local Authority\"),OR($F228=1,$F228=5)),0,new_ci(VALUE(LEFT(Options!$B$24,2)),$C228,$E228,$F228,2016,$I228,1,$H228,$G228*$H228,Options!$B$8)))","v":384.46270818430003},{"$f":"IF(AND(OR(Calculations!$E$2=\"Orkney Health Board\",Calculations!$E$2=\"Orkney Islands Local Authority\"),$F228=1),0,IF(AND(OR(Calculations!$E$2=\"Shetland Health Board\",Calculations!$E$2=\"Western Isles Health Board\",Calculations!$E$2=\"Shetland Islands Local Authority\",Calculations!$E$2=\"Eilean Siar Local Authority\"),OR($F228=1,$F228=5)),0,new_ci(VALUE(LEFT(Options!$B$24,2)),$C228,$E228,$F228,2016,$I228+$J228,1,$H228,$G228*$H228,Options!$B$8)))","v":383.86115214699998},{"$f":"IF(AND(OR(Calculations!$E$2=\"Orkney Health Board\",Calculations!$E$2=\"Orkney Islands Local Authority\"),$F228=1),0,IF(AND(OR(Calculations!$E$2=\"Shetland Health Board\",Calculations!$E$2=\"Western Isles Health Board\",Calculations!$E$2=\"Shetland Islands Local Authority\",Calculations!$E$2=\"Eilean Siar Local Authority\"),OR($F228=1,$F228=5)),0,new_yllv2(VALUE(LEFT(Options!$B$24,2)),$C228,$D228,$E228,$F228,2016,$I228,1,$H228,$G228*$H228,Options!$B$8)))","v":2645.1026633826},{"$f":"IF(AND(OR(Calculations!$E$2=\"Orkney Health Board\",Calculations!$E$2=\"Orkney Islands Local Authority\"),$F228=1),0,IF(AND(OR(Calculations!$E$2=\"Shetland Health Board\",Calculations!$E$2=\"Western Isles Health Board\",Calculations!$E$2=\"Shetland Islands Local Authority\",Calculations!$E$2=\"Eilean Siar Local Authority\"),OR($F228=1,$F228=5)),0,new_yllv2(VALUE(LEFT(Options!$B$24,2)),$C228,$D228,$E228,$F228,2016,$I228+$J228,1,$H228,$G228*$H228,Options!$B$8)))","v":2640.9639590491001},{"$f":"IF(AND(OR(Calculations!$E$2=\"Orkney Health Board\",Calculations!$E$2=\"Orkney Islands Local Authority\"),$F228=1),0,IF(AND(OR(Calculations!$E$2=\"Shetland Health Board\",Calculations!$E$2=\"Western Isles Health Board\",Calculations!$E$2=\"Shetland Islands Local Authority\",Calculations!$E$2=\"Eilean Siar Local Authority\"),OR($F228=1,$F228=5)),0,hosp_count(VALUE(LEFT(Options!$B$24,2)),$C228,$E228,$F228,2016,$I228,1,$H228,$G228*$H228, Options!$B$8)))","v":6193.0491423240001},{"$f":"IF(AND(OR(Calculations!$E$2=\"Orkney Health Board\",Calculations!$E$2=\"Orkney Islands Local Authority\"),$F228=1),0,IF(AND(OR(Calculations!$E$2=\"Shetland Health Board\",Calculations!$E$2=\"Western Isles Health Board\",Calculations!$E$2=\"Shetland Islands Local Authority\",Calculations!$E$2=\"Eilean Siar Local Authority\"),OR($F228=1,$F228=5)),0,hosp_count(VALUE(LEFT(Options!$B$24,2)),$C228,$E228,$F228,2016,$I228+$J228,1,$H228,$G228*$H228, Options!$B$8)))","v":6172.4678233983004},{"$f":"IF(AND(OR(Calculations!$E$2=\"Orkney Health Board\",Calculations!$E$2=\"Orkney Islands Local Authority\"),$F228=1),0,IF(AND(OR(Calculations!$E$2=\"Shetland Health Board\",Calculations!$E$2=\"Western Isles Health Board\",Calculations!$E$2=\"Shetland Islands Local Authority\",Calculations!$E$2=\"Eilean Siar Local Authority\"),OR($F228=1,$F228=5)),0,prem_mort(VALUE(LEFT(Options!$B$24,2)),$C228,$E228,$F228,2016,$I228,1,$H228,$G228*$H228,Options!$B$8)))","v":0},{"$f":"IF(AND(OR(Calculations!$E$2=\"Orkney Health Board\",Calculations!$E$2=\"Orkney Islands Local Authority\"),$F228=1),0,IF(AND(OR(Calculations!$E$2=\"Shetland Health Board\",Calculations!$E$2=\"Western Isles Health Board\",Calculations!$E$2=\"Shetland Islands Local Authority\",Calculations!$E$2=\"Eilean Siar Local Authority\"),OR($F228=1,$F228=5)),0,prem_mort(VALUE(LEFT(Options!$B$24,2)),$C228,$E228,$F228,2016,$I228+$J228,1,$H228,$G228*$H228,Options!$B$8)))","v":0},2458.2014589789001,2454.3551927557542,16912.421121372121,16885.958817449489,39597.500910000002,39465.90679922187,0,0,6145503.6474472499,6135887.9818893857,42281052.803430304,42214897.043623723,98993752.275000006,98664766.998054668,0,0,2500]
[null,"Female 85-89",86.730819999999994,92.220819999999989,"female",5,{"$f":"HLOOKUP(Calculations!$E$2,'Prevalence Rates'!$C$3:$BC$249,'Prevalence Rates'!$BD229,FALSE)","v":7.351441568831471E-2},{"$f":"HLOOKUP(Calculations!$E$2,'Population 2016'!$C$3:$BC$249,'Population 2016'!BD229,FALSE)","v":9964},0,{"$f":"HLOOKUP(Results!E$4,Targeting!$C$3:$F$249,Targeting!$G229,FALSE)","v":295},{"$f":"IF(AND(OR(Calculations!$E$2=\"Orkney Health Board\",Calculations!$E$2=\"Orkney Islands Local Authority\"),$F229=1),0,IF(AND(OR(Calculations!$E$2=\"Shetland Health Board\",Calculations!$E$2=\"Western Isles Health Board\",Calculations!$E$2=\"Shetland Islands Local Authority\",Calculations!$E$2=\"Eilean Siar Local Authority\"),OR($F229=1,$F229=5)),0,new_ci(VALUE(LEFT(Options!$B$24,2)),$C229,$E229,$F229,2016,$I229,1,$H229,$G229*$H229,Options!$B$8)))","v":368.39434806219998},{"$f":"IF(AND(OR(Calculations!$E$2=\"Orkney Health Board\",Calculations!$E$2=\"Orkney Islands Local Authority\"),$F229=1),0,IF(AND(OR(Calculations!$E$2=\"Shetland Health Board\",Calculations!$E$2=\"Western Isles Health Board\",Calculations!$E$2=\"Shetland Islands Local Authority\",Calculations!$E$2=\"Eilean Siar Local Authority\"),OR($F229=1,$F229=5)),0,new_ci(VALUE(LEFT(Options!$B$24,2)),$C229,$E229,$F229,2016,$I229+$J229,1,$H229,$G229*$H229,Options!$B$8)))","v":367.82352872619998},{"$f":"IF(AND(OR(Calculations!$E$2=\"Orkney Health Board\",Calculations!$E$2=\"Orkney Islands Local Authority\"),$F229=1),0,IF(AND(OR(Calculations!$E$2=\"Shetland Health Board\",Calculations!$E$2=\"Western Isles Health Board\",Calculations!$E$2=\"Shetland Islands Local Authority\",Calculations!$E$2=\"Eilean Siar Local Authority\"),OR($F229=1,$F229=5)),0,new_yllv2(VALUE(LEFT(Options!$B$24,2)),$C229,$D229,$E229,$F229,2016,$I229,1,$H229,$G229*$H229,Options!$B$8)))","v":1654.0906227993},{"$f":"IF(AND(OR(Calculations!$E$2=\"Orkney Health Board\",Calculations!$E$2=\"Orkney Islands Local Authority\"),$F229=1),0,IF(AND(OR(Calculations!$E$2=\"Shetland Health Board\",Calculations!$E$2=\"Western Isles Health Board\",Calculations!$E$2=\"Shetland Islands Local Authority\",Calculations!$E$2=\"Eilean Siar Local Authority\"),OR($F229=1,$F229=5)),0,new_yllv2(VALUE(LEFT(Options!$B$24,2)),$C229,$D229,$E229,$F229,2016,$I229+$J229,1,$H229,$G229*$H229,Options!$B$8)))","v":1651.5276439806},{"$f":"IF(AND(OR(Calculations!$E$2=\"Orkney Health Board\",Calculations!$E$2=\"Orkney Islands Local Authority\"),$F229=1),0,IF(AND(OR(Calculations!$E$2=\"Shetland Health Board\",Calculations!$E$2=\"Western Isles Health Board\",Calculations!$E$2=\"Shetland Islands Local Authority\",Calculations!$E$2=\"Eilean Siar Local Authority\"),OR($F229=1,$F229=5)),0,hosp_count(VALUE(LEFT(Options!$B$24,2)),$C229,$E229,$F229,2016,$I229,1,$H229,$G229*$H229, Options!$B$8)))","v":4460.1224511456003},{"$f":"IF(AND(OR(Calculations!$E$2=\"Orkney Health Board\",Calculations!$E$2=\"Orkney Islands Local Authority\"),$F229=1),0,IF(AND(OR(Calculations!$E$2=\"Shetland Health Board\",Calculations!$E$2=\"Western Isles Health Board\",Calculations!$E$2=\"Shetland Islands Local Authority\",Calculations!$E$2=\"Eilean Siar Local Authority\"),OR($F229=1,$F229=5)),0,hosp_count(VALUE(LEFT(Options!$B$24,2)),$C229,$E229,$F229,2016,$I229+$J229,1,$H229,$G229*$H229, Options!$B$8)))","v":4445.2986523080999},{"$f":"IF(AND(OR(Calculations!$E$2=\"Orkney Health Board\",Calculations!$E$2=\"Orkney Islands Local Authority\"),$F229=1),0,IF(AND(OR(Calculations!$E$2=\"Shetland Health Board\",Calculations!$E$2=\"Western Isles Health Board\",Calculations!$E$2=\"Shetland Islands Local Authority\",Calculations!$E$2=\"Eilean Siar Local Authority\"),OR($F229=1,$F229=5)),0,prem_mort(VALUE(LEFT(Options!$B$24,2)),$C229,$E229,$F229,2016,$I229,1,$H229,$G229*$H229,Options!$B$8)))","v":0},{"$f":"IF(AND(OR(Calculations!$E$2=\"Orkney Health Board\",Calculations!$E$2=\"Orkney Islands Local Authority\"),$F229=1),0,IF(AND(OR(Calculations!$E$2=\"Shetland Health Board\",Calculations!$E$2=\"Western Isles Health Board\",Calculations!$E$2=\"Shetland Islands Local Authority\",Calculations!$E$2=\"Eilean Siar Local Authority\"),OR($F229=1,$F229=5)),0,prem_mort(VALUE(LEFT(Options!$B$24,2)),$C229,$E229,$F229,2016,$I229+$J229,1,$H229,$G229*$H229,Options!$B$8)))","v":0},3697.2535935588112,3691.5247764572464,16600.668635079284,16574.946246292653,44762.369039999998,44613.595466761341,0,0,5545880.3903382169,5537287.1646858696,24901002.952618927,24862419.36943898,67143553.560000002,66920393.200142011,0,0,1500]
[null,"Female 90+",92.779342999999997,96.279340000000005,"female",5,{"$f":"HLOOKUP(Calculations!$E$2,'Prevalence Rates'!$C$3:$BC$249,'Prevalence Rates'!$BD230,FALSE)","v":7.351441568831471E-2},{"$f":"HLOOKUP(Calculations!$E$2,'Population 2016'!$C$3:$BC$249,'Population 2016'!BD230,FALSE)","v":6057},0,{"$f":"HLOOKUP(Results!E$4,Targeting!$C$3:$F$249,Targeting!$G230,FALSE)","v":179},{"$f":"IF(AND(OR(Calculations!$E$2=\"Orkney Health Board\",Calculations!$E$2=\"Orkney Islands Local Authority\"),$F230=1),0,IF(AND(OR(Calculations!$E$2=\"Shetland Health Board\",Calculations!$E$2=\"Western Isles Health Board\",Calculations!$E$2=\"Shetland Islands Local Authority\",Calculations!$E$2=\"Eilean Siar Local Authority\"),OR($F230=1,$F230=5)),0,new_ci(VALUE(LEFT(Options!$B$24,2)),$C230,$E230,$F230,2016,$I230,1,$H230,$G230*$H230,Options!$B$8)))","v":369.88476040969999},{"$f":"IF(AND(OR(Calculations!$E$2=\"Orkney Health Board\",Calculations!$E$2=\"Orkney Islands Local Authority\"),$F230=1),0,IF(AND(OR(Calculations!$E$2=\"Shetland Health Board\",Calculations!$E$2=\"Western Isles Health Board\",Calculations!$E$2=\"Shetland Islands Local Authority\",Calculations!$E$2=\"Eilean Siar Local Authority\"),OR($F230=1,$F230=5)),0,new_ci(VALUE(LEFT(Options!$B$24,2)),$C230,$E230,$F230,2016,$I230+$J230,1,$H230,$G230*$H230,Options!$B$8)))","v":369.32376866380002},{"$f":"IF(AND(OR(Calculations!$E$2=\"Orkney Health Board\",Calculations!$E$2=\"Orkney Islands Local Authority\"),$F230=1),0,IF(AND(OR(Calculations!$E$2=\"Shetland Health Board\",Calculations!$E$2=\"Western Isles Health Board\",Calculations!$E$2=\"Shetland Islands Local Authority\",Calculations!$E$2=\"Eilean Siar Local Authority\"),OR($F230=1,$F230=5)),0,new_yllv2(VALUE(LEFT(Options!$B$24,2)),$C230,$D230,$E230,$F230,2016,$I230,1,$H230,$G230*$H230,Options!$B$8)))","v":924.71079137000004},{"$f":"IF(AND(OR(Calculations!$E$2=\"Orkney Health Board\",Calculations!$E$2=\"Orkney Islands Local Authority\"),$F230=1),0,IF(AND(OR(Calculations!$E$2=\"Shetland Health Board\",Calculations!$E$2=\"Western Isles Health Board\",Calculations!$E$2=\"Shetland Islands Local Authority\",Calculations!$E$2=\"Eilean Siar Local Authority\"),OR($F230=1,$F230=5)),0,new_yllv2(VALUE(LEFT(Options!$B$24,2)),$C230,$D230,$E230,$F230,2016,$I230+$J230,1,$H230,$G230*$H230,Options!$B$8)))","v":923.30831368819997},{"$f":"IF(AND(OR(Calculations!$E$2=\"Orkney Health Board\",Calculations!$E$2=\"Orkney Islands Local Authority\"),$F230=1),0,IF(AND(OR(Calculations!$E$2=\"Shetland Health Board\",Calculations!$E$2=\"Western Isles Health Board\",Calculations!$E$2=\"Shetland Islands Local Authority\",Calculations!$E$2=\"Eilean Siar Local Authority\"),OR($F230=1,$F230=5)),0,hosp_count(VALUE(LEFT(Options!$B$24,2)),$C230,$E230,$F230,2016,$I230,1,$H230,$G230*$H230, Options!$B$8)))","v":3156.7875870779999},{"$f":"IF(AND(OR(Calculations!$E$2=\"Orkney Health Board\",Calculations!$E$2=\"Orkney Islands Local Authority\"),$F230=1),0,IF(AND(OR(Calculations!$E$2=\"Shetland Health Board\",Calculations!$E$2=\"Western Isles Health Board\",Calculations!$E$2=\"Shetland Islands Local Authority\",Calculations!$E$2=\"Eilean Siar Local Authority\"),OR($F230=1,$F230=5)),0,hosp_count(VALUE(LEFT(Options!$B$24,2)),$C230,$E230,$F230,2016,$I230+$J230,1,$H230,$G230*$H230, Options!$B$8)))","v":3146.3147282100999},{"$f":"IF(AND(OR(Calculations!$E$2=\"Orkney Health Board\",Calculations!$E$2=\"Orkney Islands Local Authority\"),$F230=1),0,IF(AND(OR(Calculations!$E$2=\"Shetland Health Board\",Calculations!$E$2=\"Western Isles Health Board\",Calculations!$E$2=\"Shetland Islands Local Authority\",Calculations!$E$2=\"Eilean Siar Local Authority\"),OR($F230=1,$F230=5)),0,prem_mort(VALUE(LEFT(Options!$B$24,2)),$C230,$E230,$F230,2016,$I230,1,$H230,$G230*$H230,Options!$B$8)))","v":0},{"$f":"IF(AND(OR(Calculations!$E$2=\"Orkney Health Board\",Calculations!$E$2=\"Orkney Islands Local Authority\"),$F230=1),0,IF(AND(OR(Calculations!$E$2=\"Shetland Health Board\",Calculations!$E$2=\"Western Isles Health Board\",Calculations!$E$2=\"Shetland Islands Local Authority\",Calculations!$E$2=\"Eilean Siar Local Authority\"),OR($F230=1,$F230=5)),0,prem_mort(VALUE(LEFT(Options!$B$24,2)),$C230,$E230,$F230,2016,$I230+$J230,1,$H230,$G230*$H230,Options!$B$8)))","v":0},6106.7320523311864,6097.4701777084374,15266.811810632327,15243.657151860656,52118.005399999995,51945.100350175002,0,0,6106732.0523311868,6097470.1777084377,15266811.810632328,15243657.151860656,52118005.399999991,51945100.350175001,0,0,1000]
[null,"Male 0-4",2.0320822999999999,77.402082000000007,"male",5,{"$f":"HLOOKUP(Calculations!$E$2,'Prevalence Rates'!$C$3:$BC$249,'Prevalence Rates'!$BD231,FALSE)","v":0},{"$f":"HLOOKUP(Calculations!$E$2,'Population 2016'!$C$3:$BC$249,'Population 2016'!BD231,FALSE)","v":0},0,{"$f":"HLOOKUP(Results!E$4,Targeting!$C$3:$F$249,Targeting!$G231,FALSE)","v":0},{"$f":"IF(AND(OR(Calculations!$E$2=\"Orkney Health Board\",Calculations!$E$2=\"Orkney Islands Local Authority\"),$F231=1),0,IF(AND(OR(Calculations!$E$2=\"Shetland Health Board\",Calculations!$E$2=\"Western Isles Health Board\",Calculations!$E$2=\"Shetland Islands Local Authority\",Calculations!$E$2=\"Eilean Siar Local Authority\"),OR($F231=1,$F231=5)),0,new_ci(VALUE(LEFT(Options!$B$24,2)),$C231,$E231,$F231,2016,$I231,1,$H231,$G231*$H231,Options!$B$8)))","v":{"$error":"#VALUE!"}},{"$f":"IF(AND(OR(Calculations!$E$2=\"Orkney Health Board\",Calculations!$E$2=\"Orkney Islands Local Authority\"),$F231=1),0,IF(AND(OR(Calculations!$E$2=\"Shetland Health Board\",Calculations!$E$2=\"Western Isles Health Board\",Calculations!$E$2=\"Shetland Islands Local Authority\",Calculations!$E$2=\"Eilean Siar Local Authority\"),OR($F231=1,$F231=5)),0,new_ci(VALUE(LEFT(Options!$B$24,2)),$C231,$E231,$F231,2016,$I231+$J231,1,$H231,$G231*$H231,Options!$B$8)))","v":{"$error":"#VALUE!"}},{"$f":"IF(AND(OR(Calculations!$E$2=\"Orkney Health Board\",Calculations!$E$2=\"Orkney Islands Local Authority\"),$F231=1),0,IF(AND(OR(Calculations!$E$2=\"Shetland Health Board\",Calculations!$E$2=\"Western Isles Health Board\",Calculations!$E$2=\"Shetland Islands Local Authority\",Calculations!$E$2=\"Eilean Siar Local Authority\"),OR($F231=1,$F231=5)),0,new_yllv2(VALUE(LEFT(Options!$B$24,2)),$C231,$D231,$E231,$F231,2016,$I231,1,$H231,$G231*$H231,Options!$B$8)))","v":{"$error":"#VALUE!"}},{"$f":"IF(AND(OR(Calculations!$E$2=\"Orkney Health Board\",Calculations!$E$2=\"Orkney Islands Local Authority\"),$F231=1),0,IF(AND(OR(Calculations!$E$2=\"Shetland Health Board\",Calculations!$E$2=\"Western Isles Health Board\",Calculations!$E$2=\"Shetland Islands Local Authority\",Calculations!$E$2=\"Eilean Siar Local Authority\"),OR($F231=1,$F231=5)),0,new_yllv2(VALUE(LEFT(Options!$B$24,2)),$C231,$D231,$E231,$F231,2016,$I231+$J231,1,$H231,$G231*$H231,Options!$B$8)))","v":{"$error":"#VALUE!"}},{"$f":"IF(AND(OR(Calculations!$E$2=\"Orkney Health Board\",Calculations!$E$2=\"Orkney Islands Local Authority\"),$F231=1),0,IF(AND(OR(Calculations!$E$2=\"Shetland Health Board\",Calculations!$E$2=\"Western Isles Health Board\",Calculations!$E$2=\"Shetland Islands Local Authority\",Calculations!$E$2=\"Eilean Siar Local Authority\"),OR($F231=1,$F231=5)),0,hosp_count(VALUE(LEFT(Options!$B$24,2)),$C231,$E231,$F231,2016,$I231,1,$H231,$G231*$H231, Options!$B$8)))","v":{"$error":"#VALUE!"}},{"$f":"IF(AND(OR(Calculations!$E$2=\"Orkney Health Board\",Calculations!$E$2=\"Orkney Islands Local Authority\"),$F231=1),0,IF(AND(OR(Calculations!$E$2=\"Shetland Health Board\",Calculations!$E$2=\"Western Isles Health Board\",Calculations!$E$2=\"Shetland Islands Local Authority\",Calculations!$E$2=\"Eilean Siar Local Authority\"),OR($F231=1,$F231=5)),0,hosp_count(VALUE(LEFT(Options!$B$24,2)),$C231,$E231,$F231,2016,$I231+$J231,1,$H231,$G231*$H231, Options!$B$8)))","v":{"$error":"#VALUE!"}},{"$f":"IF(AND(OR(Calculations!$E$2=\"Orkney Health Board\",Calculations!$E$2=\"Orkney Islands Local Authority\"),$F231=1),0,IF(AND(OR(Calculations!$E$2=\"Shetland Health Board\",Calculations!$E$2=\"Western Isles Health Board\",Calculations!$E$2=\"Shetland Islands Local Authority\",Calculations!$E$2=\"Eilean Siar Local Authority\"),OR($F231=1,$F231=5)),0,prem_mort(VALUE(LEFT(Options!$B$24,2)),$C231,$E231,$F231,2016,$I231,1,$H231,$G231*$H231,Options!$B$8)))","v":{"$error":"#VALUE!"}},{"$f":"IF(AND(OR(Calculations!$E$2=\"Orkney Health Board\",Calculations!$E$2=\"Orkney Islands Local Authority\"),$F231=1),0,IF(AND(OR(Calculations!$E$2=\"Shetland Health Board\",Calculations!$E$2=\"Western Isles Health Board\",Calculations!$E$2=\"Shetland Islands Local Authority\",Calculations!$E$2=\"Eilean Siar Local Authority\"),OR($F231=1,$F231=5)),0,prem_mort(VALUE(LEFT(Options!$B$24,2)),$C231,$E231,$F231,2016,$I231+$J231,1,$H231,$G231*$H231,Options!$B$8)))","v":{"$error":"#VALUE!"}},{"$error":"#VALUE!"},{"$error":"#VALUE!"},{"$error":"#VALUE!"},{"$error":"#VALUE!"},{"$error":"#VALUE!"},{"$error":"#VALUE!"},{"$error":"#VALUE!"},{"$error":"#VALUE!"},{"$error":"#VALUE!"},{"$error":"#VALUE!"},{"$error":"#VALUE!"},{"$error":"#VALUE!"},{"$error":"#VALUE!"},{"$error":"#VALUE!"},{"$error":"#VALUE!"},{"$error":"#VALUE!"},5000]
[null,"Male 5-9",6.9784756000000003,77.398476000000002,"male",5,{"$f":"HLOOKUP(Calculations!$E$2,'Prevalence Rates'!$C$3:$BC$249,'Prevalence Rates'!$BD232,FALSE)","v":0},{"$f":"HLOOKUP(Calculations!$E$2,'Population 2016'!$C$3:$BC$249,'Population 2016'!BD232,FALSE)","v":0},0,{"$f":"HLOOKUP(Results!E$4,Targeting!$C$3:$F$249,Targeting!$G232,FALSE)","v":0},{"$f":"IF(AND(OR(Calculations!$E$2=\"Orkney Health Board\",Calculations!$E$2=\"Orkney Islands Local Authority\"),$F232=1),0,IF(AND(OR(Calculations!$E$2=\"Shetland Health Board\",Calculations!$E$2=\"Western Isles Health Board\",Calculations!$E$2=\"Shetland Islands Local Authority\",Calculations!$E$2=\"Eilean Siar Local Authority\"),OR($F232=1,$F232=5)),0,new_ci(VALUE(LEFT(Options!$B$24,2)),$C232,$E232,$F232,2016,$I232,1,$H232,$G232*$H232,Options!$B$8)))","v":{"$error":"#VALUE!"}},{"$f":"IF(AND(OR(Calculations!$E$2=\"Orkney Health Board\",Calculations!$E$2=\"Orkney Islands Local Authority\"),$F232=1),0,IF(AND(OR(Calculations!$E$2=\"Shetland Health Board\",Calculations!$E$2=\"Western Isles Health Board\",Calculations!$E$2=\"Shetland Islands Local Authority\",Calculations!$E$2=\"Eilean Siar Local Authority\"),OR($F232=1,$F232=5)),0,new_ci(VALUE(LEFT(Options!$B$24,2)),$C232,$E232,$F232,2016,$I232+$J232,1,$H232,$G232*$H232,Options!$B$8)))","v":{"$error":"#VALUE!"}},{"$f":"IF(AND(OR(Calculations!$E$2=\"Orkney Health Board\",Calculations!$E$2=\"Orkney Islands Local Authority\"),$F232=1),0,IF(AND(OR(Calculations!$E$2=\"Shetland Health Board\",Calculations!$E$2=\"Western Isles Health Board\",Calculations!$E$2=\"Shetland Islands Local Authority\",Calculations!$E$2=\"Eilean Siar Local Authority\"),OR($F232=1,$F232=5)),0,new_yllv2(VALUE(LEFT(Options!$B$24,2)),$C232,$D232,$E232,$F232,2016,$I232,1,$H232,$G232*$H232,Options!$B$8)))","v":{"$error":"#VALUE!"}},{"$f":"IF(AND(OR(Calculations!$E$2=\"Orkney Health Board\",Calculations!$E$2=\"Orkney Islands Local Authority\"),$F232=1),0,IF(AND(OR(Calculations!$E$2=\"Shetland Health Board\",Calculations!$E$2=\"Western Isles Health Board\",Calculations!$E$2=\"Shetland Islands Local Authority\",Calculations!$E$2=\"Eilean Siar Local Authority\"),OR($F232=1,$F232=5)),0,new_yllv2(VALUE(LEFT(Options!$B$24,2)),$C232,$D232,$E232,$F232,2016,$I232+$J232,1,$H232,$G232*$H232,Options!$B$8)))","v":{"$error":"#VALUE!"}},{"$f":"IF(AND(OR(Calculations!$E$2=\"Orkney Health Board\",Calculations!$E$2=\"Orkney Islands Local Authority\"),$F232=1),0,IF(AND(OR(Calculations!$E$2=\"Shetland Health Board\",Calculations!$E$2=\"Western Isles Health Board\",Calculations!$E$2=\"Shetland Islands Local Authority\",Calculations!$E$2=\"Eilean Siar Local Authority\"),OR($F232=1,$F232=5)),0,hosp_count(VALUE(LEFT(Options!$B$24,2)),$C232,$E232,$F232,2016,$I232,1,$H232,$G232*$H232, Options!$B$8)))","v":{"$error":"#VALUE!"}},{"$f":"IF(AND(OR(Calculations!$E$2=\"Orkney Health Board\",Calculations!$E$2=\"Orkney Islands Local Authority\"),$F232=1),0,IF(AND(OR(Calculations!$E$2=\"Shetland Health Board\",Calculations!$E$2=\"Western Isles Health Board\",Calculations!$E$2=\"Shetland Islands Local Authority\",Calculations!$E$2=\"Eilean Siar Local Authority\"),OR($F232=1,$F232=5)),0,hosp_count(VALUE(LEFT(Options!$B$24,2)),$C232,$E232,$F232,2016,$I232+$J232,1,$H232,$G232*$H232, Options!$B$8)))","v":{"$error":"#VALUE!"}},{"$f":"IF(AND(OR(Calculations!$E$2=\"Orkney Health Board\",Calculations!$E$2=\"Orkney Islands Local Authority\"),$F232=1),0,IF(AND(OR(Calculations!$E$2=\"Shetland Health Board\",Calculations!$E$2=\"Western Isles Health Board\",Calculations!$E$2=\"Shetland Islands Local Authority\",Calculations!$E$2=\"Eilean Siar Local Authority\"),OR($F232=1,$F232=5)),0,prem_mort(VALUE(LEFT(Options!$B$24,2)),$C232,$E232,$F232,2016,$I232,1,$H232,$G232*$H232,Options!$B$8)))","v":{"$error":"#VALUE!"}},{"$f":"IF(AND(OR(Calculations!$E$2=\"Orkney Health Board\",Calculations!$E$2=\"Orkney Islands Local Authority\"),$F232=1),0,IF(AND(OR(Calculations!$E$2=\"Shetland Health Board\",Calculations!$E$2=\"Western Isles Health Board\",Calculations!$E$2=\"Shetland Islands Local Authority\",Calculations!$E$2=\"Eilean Siar Local Authority\"),OR($F232=1,$F232=5)),0,prem_mort(VALUE(LEFT(Options!$B$24,2)),$C232,$E232,$F232,2016,$I232+$J232,1,$H232,$G232*$H232,Options!$B$8)))","v":{"$error":"#VALUE!"}},{"$error":"#VALUE!"},{"$error":"#VALUE!"},{"$error":"#VALUE!"},{"$error":"#VALUE!"},{"$error":"#VALUE!"},{"$error":"#VALUE!"},{"$error":"#VALUE!"},{"$error":"#VALUE!"},{"$error":"#VALUE!"},{"$error":"#VALUE!"},{"$error":"#VALUE!"},{"$error":"#VALUE!"},{"$error":"#VALUE!"},{"$error":"#VALUE!"},{"$error":"#VALUE!"},{"$error":"#VALUE!"},5500]
[null,"Male 10-15",12.471144000000001,77.921140000000008,"male",5,{"$f":"HLOOKUP(Calculations!$E$2,'Prevalence Rates'!$C$3:$BC$249,'Prevalence Rates'!$BD233,FALSE)","v":0},{"$f":"HLOOKUP(Calculations!$E$2,'Population 2016'!$C$3:$BC$249,'Population 2016'!BD233,FALSE)","v":0},0,{"$f":"HLOOKUP(Results!E$4,Targeting!$C$3:$F$249,Targeting!$G233,FALSE)","v":0},{"$f":"IF(AND(OR(Calculations!$E$2=\"Orkney Health Board\",Calculations!$E$2=\"Orkney Islands Local Authority\"),$F233=1),0,IF(AND(OR(Calculations!$E$2=\"Shetland Health Board\",Calculations!$E$2=\"Western Isles Health Board\",Calculations!$E$2=\"Shetland Islands Local Authority\",Calculations!$E$2=\"Eilean Siar Local Authority\"),OR($F233=1,$F233=5)),0,new_ci(VALUE(LEFT(Options!$B$24,2)),$C233,$E233,$F233,2016,$I233,1,$H233,$G233*$H233,Options!$B$8)))","v":{"$error":"#VALUE!"}},{"$f":"IF(AND(OR(Calculations!$E$2=\"Orkney Health Board\",Calculations!$E$2=\"Orkney Islands Local Authority\"),$F233=1),0,IF(AND(OR(Calculations!$E$2=\"Shetland Health Board\",Calculations!$E$2=\"Western Isles Health Board\",Calculations!$E$2=\"Shetland Islands Local Authority\",Calculations!$E$2=\"Eilean Siar Local Authority\"),OR($F233=1,$F233=5)),0,new_ci(VALUE(LEFT(Options!$B$24,2)),$C233,$E233,$F233,2016,$I233+$J233,1,$H233,$G233*$H233,Options!$B$8)))","v":{"$error":"#VALUE!"}},{"$f":"IF(AND(OR(Calculations!$E$2=\"Orkney Health Board\",Calculations!$E$2=\"Orkney Islands Local Authority\"),$F233=1),0,IF(AND(OR(Calculations!$E$2=\"Shetland Health Board\",Calculations!$E$2=\"Western Isles Health Board\",Calculations!$E$2=\"Shetland Islands Local Authority\",Calculations!$E$2=\"Eilean Siar Local Authority\"),OR($F233=1,$F233=5)),0,new_yllv2(VALUE(LEFT(Options!$B$24,2)),$C233,$D233,$E233,$F233,2016,$I233,1,$H233,$G233*$H233,Options!$B$8)))","v":{"$error":"#VALUE!"}},{"$f":"IF(AND(OR(Calculations!$E$2=\"Orkney Health Board\",Calculations!$E$2=\"Orkney Islands Local Authority\"),$F233=1),0,IF(AND(OR(Calculations!$E$2=\"Shetland Health Board\",Calculations!$E$2=\"Western Isles Health Board\",Calculations!$E$2=\"Shetland Islands Local Authority\",Calculations!$E$2=\"Eilean Siar Local Authority\"),OR($F233=1,$F233=5)),0,new_yllv2(VALUE(LEFT(Options!$B$24,2)),$C233,$D233,$E233,$F233,2016,$I233+$J233,1,$H233,$G233*$H233,Options!$B$8)))","v":{"$error":"#VALUE!"}},{"$f":"IF(AND(OR(Calculations!$E$2=\"Orkney Health Board\",Calculations!$E$2=\"Orkney Islands Local Authority\"),$F233=1),0,IF(AND(OR(Calculations!$E$2=\"Shetland Health Board\",Calculations!$E$2=\"Western Isles Health Board\",Calculations!$E$2=\"Shetland Islands Local Authority\",Calculations!$E$2=\"Eilean Siar Local Authority\"),OR($F233=1,$F233=5)),0,hosp_count(VALUE(LEFT(Options!$B$24,2)),$C233,$E233,$F233,2016,$I233,1,$H233,$G233*$H233, Options!$B$8)))","v":{"$error":"#VALUE!"}},{"$f":"IF(AND(OR(Calculations!$E$2=\"Orkney Health Board\",Calculations!$E$2=\"Orkney Islands Local Authority\"),$F233=1),0,IF(AND(OR(Calculations!$E$2=\"Shetland Health Board\",Calculations!$E$2=\"Western Isles Health Board\",Calculations!$E$2=\"Shetland Islands Local Authority\",Calculations!$E$2=\"Eilean Siar Local Authority\"),OR($F233=1,$F233=5)),0,hosp_count(VALUE(LEFT(Options!$B$24,2)),$C233,$E233,$F233,2016,$I233+$J233,1,$H233,$G233*$H233, Options!$B$8)))","v":{"$error":"#VALUE!"}},{"$f":"IF(AND(OR(Calculations!$E$2=\"Orkney Health Board\",Calculations!$E$2=\"Orkney Islands Local Authority\"),$F233=1),0,IF(AND(OR(Calculations!$E$2=\"Shetland Health Board\",Calculations!$E$2=\"Western Isles Health Board\",Calculations!$E$2=\"Shetland Islands Local Authority\",Calculations!$E$2=\"Eilean Siar Local Authority\"),OR($F233=1,$F233=5)),0,prem_mort(VALUE(LEFT(Options!$B$24,2)),$C233,$E233,$F233,2016,$I233,1,$H233,$G233*$H233,Options!$B$8)))","v":{"$error":"#VALUE!"}},{"$f":"IF(AND(OR(Calculations!$E$2=\"Orkney Health Board\",Calculations!$E$2=\"Orkney Islands Local Authority\"),$F233=1),0,IF(AND(OR(Calculations!$E$2=\"Shetland Health Board\",Calculations!$E$2=\"Western Isles Health Board\",Calculations!$E$2=\"Shetland Islands Local Authority\",Calculations!$E$2=\"Eilean Siar Local Authority\"),OR($F233=1,$F233=5)),0,prem_mort(VALUE(LEFT(Options!$B$24,2)),$C233,$E233,$F233,2016,$I233+$J233,1,$H233,$G233*$H233,Options!$B$8)))","v":{"$error":"#VALUE!"}},{"$error":"#VALUE!"},{"$error":"#VALUE!"},{"$error":"#VALUE!"},{"$error":"#VALUE!"},{"$error":"#VALUE!"},{"$error":"#VALUE!"},{"$error":"#VALUE!"},{"$error":"#VALUE!"},{"$error":"#VALUE!"},{"$error":"#VALUE!"},{"$error":"#VALUE!"},{"$error":"#VALUE!"},{"$error":"#VALUE!"},{"$error":"#VALUE!"},{"$error":"#VALUE!"},{"$error":"#VALUE!"},6600]
[null,"Male 16-19",17.556318000000001,77.07632000000001,"male",5,{"$f":"HLOOKUP(Calculations!$E$2,'Prevalence Rates'!$C$3:$BC$249,'Prevalence Rates'!$BD234,FALSE)","v":7.1904604619662041E-2},{"$f":"HLOOKUP(Calculations!$E$2,'Population 2016'!$C$3:$BC$249,'Population 2016'!BD234,FALSE)","v":26907},0,{"$f":"HLOOKUP(Results!E$4,Targeting!$C$3:$F$249,Targeting!$G234,FALSE)","v":797},{"$f":"IF(AND(OR(Calculations!$E$2=\"Orkney Health Board\",Calculations!$E$2=\"Orkney Islands Local Authority\"),$F234=1),0,IF(AND(OR(Calculations!$E$2=\"Shetland Health Board\",Calculations!$E$2=\"Western Isles Health Board\",Calculations!$E$2=\"Shetland Islands Local Authority\",Calculations!$E$2=\"Eilean Siar Local Authority\"),OR($F234=1,$F234=5)),0,new_ci(VALUE(LEFT(Options!$B$24,2)),$C234,$E234,$F234,2016,$I234,1,$H234,$G234*$H234,Options!$B$8)))","v":6.7201863553000001},{"$f":"IF(AND(OR(Calculations!$E$2=\"Orkney Health Board\",Calculations!$E$2=\"Orkney Islands Local Authority\"),$F234=1),0,IF(AND(OR(Calculations!$E$2=\"Shetland Health Board\",Calculations!$E$2=\"Western Isles Health Board\",Calculations!$E$2=\"Shetland Islands Local Authority\",Calculations!$E$2=\"Eilean Siar Local Authority\"),OR($F234=1,$F234=5)),0,new_ci(VALUE(LEFT(Options!$B$24,2)),$C234,$E234,$F234,2016,$I234+$J234,1,$H234,$G234*$H234,Options!$B$8)))","v":6.7094571412999997},{"$f":"IF(AND(OR(Calculations!$E$2=\"Orkney Health Board\",Calculations!$E$2=\"Orkney Islands Local Authority\"),$F234=1),0,IF(AND(OR(Calculations!$E$2=\"Shetland Health Board\",Calculations!$E$2=\"Western Isles Health Board\",Calculations!$E$2=\"Shetland Islands Local Authority\",Calculations!$E$2=\"Eilean Siar Local Authority\"),OR($F234=1,$F234=5)),0,new_yllv2(VALUE(LEFT(Options!$B$24,2)),$C234,$D234,$E234,$F234,2016,$I234,1,$H234,$G234*$H234,Options!$B$8)))","v":393.26531895250002},{"$f":"IF(AND(OR(Calculations!$E$2=\"Orkney Health Board\",Calculations!$E$2=\"Orkney Islands Local Authority\"),$F234=1),0,IF(AND(OR(Calculations!$E$2=\"Shetland Health Board\",Calculations!$E$2=\"Western Isles Health Board\",Calculations!$E$2=\"Shetland Islands Local Authority\",Calculations!$E$2=\"Eilean Siar Local Authority\"),OR($F234=1,$F234=5)),0,new_yllv2(VALUE(LEFT(Options!$B$24,2)),$C234,$D234,$E234,$F234,2016,$I234+$J234,1,$H234,$G234*$H234,Options!$B$8)))","v":392.63744532779998},{"$f":"IF(AND(OR(Calculations!$E$2=\"Orkney Health Board\",Calculations!$E$2=\"Orkney Islands Local Authority\"),$F234=1),0,IF(AND(OR(Calculations!$E$2=\"Shetland Health Board\",Calculations!$E$2=\"Western Isles Health Board\",Calculations!$E$2=\"Shetland Islands Local Authority\",Calculations!$E$2=\"Eilean Siar Local Authority\"),OR($F234=1,$F234=5)),0,hosp_count(VALUE(LEFT(Options!$B$24,2)),$C234,$E234,$F234,2016,$I234,1,$H234,$G234*$H234, Options!$B$8)))","v":1431.6729001742999},{"$f":"IF(AND(OR(Calculations!$E$2=\"Orkney Health Board\",Calculations!$E$2=\"Orkney Islands Local Authority\"),$F234=1),0,IF(AND(OR(Calculations!$E$2=\"Shetland Health Board\",Calculations!$E$2=\"Western Isles Health Board\",Calculations!$E$2=\"Shetland Islands Local Authority\",Calculations!$E$2=\"Eilean Siar Local Authority\"),OR($F234=1,$F234=5)),0,hosp_count(VALUE(LEFT(Options!$B$24,2)),$C234,$E234,$F234,2016,$I234+$J234,1,$H234,$G234*$H234, Options!$B$8)))","v":1426.909615343},{"$f":"IF(AND(OR(Calculations!$E$2=\"Orkney Health Board\",Calculations!$E$2=\"Orkney Islands Local Authority\"),$F234=1),0,IF(AND(OR(Calculations!$E$2=\"Shetland Health Board\",Calculations!$E$2=\"Western Isles Health Board\",Calculations!$E$2=\"Shetland Islands Local Authority\",Calculations!$E$2=\"Eilean Siar Local Authority\"),OR($F234=1,$F234=5)),0,prem_mort(VALUE(LEFT(Options!$B$24,2)),$C234,$E234,$F234,2016,$I234,1,$H234,$G234*$H234,Options!$B$8)))","v":6.7201863553000001},{"$f":"IF(AND(OR(Calculations!$E$2=\"Orkney Health Board\",Calculations!$E$2=\"Orkney Islands Local Authority\"),$F234=1),0,IF(AND(OR(Calculations!$E$2=\"Shetland Health Board\",Calculations!$E$2=\"Western Isles Health Board\",Calculations!$E$2=\"Shetland Islands Local Authority\",Calculations!$E$2=\"Eilean Siar Local Authority\"),OR($F234=1,$F234=5)),0,prem_mort(VALUE(LEFT(Options!$B$24,2)),$C234,$E234,$F234,2016,$I234+$J234,1,$H234,$G234*$H234,Options!$B$8)))","v":6.7094571412999997},24.975606181662762,24.935731004199649,1461.5725237020106,1459.2390282372617,5320.819489999999,5303.1167181142455,24.975606181662762,24.935731004199649,109892.66719931616,109717.21641847846,6430919.1042888463,6420651.724243951,23411605.755999994,23333713.55970268,109892.66719931616,109717.21641847846,4400]
[null,"Male 20-24",22.054632000000002,77.704629999999995,"male",5,{"$f":"HLOOKUP(Calculations!$E$2,'Prevalence Rates'!$C$3:$BC$249,'Prevalence Rates'!$BD235,FALSE)","v":7.1904604619662041E-2},{"$f":"HLOOKUP(Calculations!$E$2,'Population 2016'!$C$3:$BC$249,'Population 2016'!BD235,FALSE)","v":38069},0,{"$f":"HLOOKUP(Results!E$4,Targeting!$C$3:$F$249,Targeting!$G235,FALSE)","v":1127},{"$f":"IF(AND(OR(Calculations!$E$2=\"Orkney Health Board\",Calculations!$E$2=\"Orkney Islands Local Authority\"),$F235=1),0,IF(AND(OR(Calculations!$E$2=\"Shetland Health Board\",Calculations!$E$2=\"Western Isles Health Board\",Calculations!$E$2=\"Shetland Islands Local Authority\",Calculations!$E$2=\"Eilean Siar Local Authority\"),OR($F235=1,$F235=5)),0,new_ci(VALUE(LEFT(Options!$B$24,2)),$C235,$E235,$F235,2016,$I235,1,$H235,$G235*$H235,Options!$B$8)))","v":13.352333914000001},{"$f":"IF(AND(OR(Calculations!$E$2=\"Orkney Health Board\",Calculations!$E$2=\"Orkney Islands Local Authority\"),$F235=1),0,IF(AND(OR(Calculations!$E$2=\"Shetland Health Board\",Calculations!$E$2=\"Western Isles Health Board\",Calculations!$E$2=\"Shetland Islands Local Authority\",Calculations!$E$2=\"Eilean Siar Local Authority\"),OR($F235=1,$F235=5)),0,new_ci(VALUE(LEFT(Options!$B$24,2)),$C235,$E235,$F235,2016,$I235+$J235,1,$H235,$G235*$H235,Options!$B$8)))","v":13.331029556800001},{"$f":"IF(AND(OR(Calculations!$E$2=\"Orkney Health Board\",Calculations!$E$2=\"Orkney Islands Local Authority\"),$F235=1),0,IF(AND(OR(Calculations!$E$2=\"Shetland Health Board\",Calculations!$E$2=\"Western Isles Health Board\",Calculations!$E$2=\"Shetland Islands Local Authority\",Calculations!$E$2=\"Eilean Siar Local Authority\"),OR($F235=1,$F235=5)),0,new_yllv2(VALUE(LEFT(Options!$B$24,2)),$C235,$D235,$E235,$F235,2016,$I235,1,$H235,$G235*$H235,Options!$B$8)))","v":729.70502169539998},{"$f":"IF(AND(OR(Calculations!$E$2=\"Orkney Health Board\",Calculations!$E$2=\"Orkney Islands Local Authority\"),$F235=1),0,IF(AND(OR(Calculations!$E$2=\"Shetland Health Board\",Calculations!$E$2=\"Western Isles Health Board\",Calculations!$E$2=\"Shetland Islands Local Authority\",Calculations!$E$2=\"Eilean Siar Local Authority\"),OR($F235=1,$F235=5)),0,new_yllv2(VALUE(LEFT(Options!$B$24,2)),$C235,$D235,$E235,$F235,2016,$I235+$J235,1,$H235,$G235*$H235,Options!$B$8)))","v":728.54073861710003},{"$f":"IF(AND(OR(Calculations!$E$2=\"Orkney Health Board\",Calculations!$E$2=\"Orkney Islands Local Authority\"),$F235=1),0,IF(AND(OR(Calculations!$E$2=\"Shetland Health Board\",Calculations!$E$2=\"Western Isles Health Board\",Calculations!$E$2=\"Shetland Islands Local Authority\",Calculations!$E$2=\"Eilean Siar Local Authority\"),OR($F235=1,$F235=5)),0,hosp_count(VALUE(LEFT(Options!$B$24,2)),$C235,$E235,$F235,2016,$I235,1,$H235,$G235*$H235, Options!$B$8)))","v":2376.2555364586001},{"$f":"IF(AND(OR(Calculations!$E$2=\"Orkney Health Board\",Calculations!$E$2=\"Orkney Islands Local Authority\"),$F235=1),0,IF(AND(OR(Calculations!$E$2=\"Shetland Health Board\",Calculations!$E$2=\"Western Isles Health Board\",Calculations!$E$2=\"Shetland Islands Local Authority\",Calculations!$E$2=\"Eilean Siar Local Authority\"),OR($F235=1,$F235=5)),0,hosp_count(VALUE(LEFT(Options!$B$24,2)),$C235,$E235,$F235,2016,$I235+$J235,1,$H235,$G235*$H235, Options!$B$8)))","v":2368.3539319817},{"$f":"IF(AND(OR(Calculations!$E$2=\"Orkney Health Board\",Calculations!$E$2=\"Orkney Islands Local Authority\"),$F235=1),0,IF(AND(OR(Calculations!$E$2=\"Shetland Health Board\",Calculations!$E$2=\"Western Isles Health Board\",Calculations!$E$2=\"Shetland Islands Local Authority\",Calculations!$E$2=\"Eilean Siar Local Authority\"),OR($F235=1,$F235=5)),0,prem_mort(VALUE(LEFT(Options!$B$24,2)),$C235,$E235,$F235,2016,$I235,1,$H235,$G235*$H235,Options!$B$8)))","v":13.352333914000001},{"$f":"IF(AND(OR(Calculations!$E$2=\"Orkney Health Board\",Calculations!$E$2=\"Orkney Islands Local Authority\"),$F235=1),0,IF(AND(OR(Calculations!$E$2=\"Shetland Health Board\",Calculations!$E$2=\"Western Isles Health Board\",Calculations!$E$2=\"Shetland Islands Local Authority\",Calculations!$E$2=\"Eilean Siar Local Authority\"),OR($F235=1,$F235=5)),0,prem_mort(VALUE(LEFT(Options!$B$24,2)),$C235,$E235,$F235,2016,$I235+$J235,1,$H235,$G235*$H235,Options!$B$8)))","v":13.331029556800001},35.074033765005652,35.018071283196306,1916.7958751094068,1913.7375255906379,6241.9699400000009,6221.2139325480048,35.074033765005652,35.018071283196306,210444.20259003391,210108.42769917785,11500775.250656441,11482425.153543828,37451819.640000008,37327283.595288031,210444.20259003391,210108.42769917785,6000]
[null,"Male 25-29",26.959762999999999,77.789760000000001,"male",5,{"$f":"HLOOKUP(Calculations!$E$2,'Prevalence Rates'!$C$3:$BC$249,'Prevalence Rates'!$BD236,FALSE)","v":7.1904604619662041E-2},{"$f":"HLOOKUP(Calculations!$E$2,'Population 2016'!$C$3:$BC$249,'Population 2016'!BD236,FALSE)","v":34280},0,{"$f":"HLOOKUP(Results!E$4,Targeting!$C$3:$F$249,Targeting!$G236,FALSE)","v":1015},{"$f":"IF(AND(OR(Calculations!$E$2=\"Orkney Health Board\",Calculations!$E$2=\"Orkney Islands Local Authority\"),$F236=1),0,IF(AND(OR(Calculations!$E$2=\"Shetland Health Board\",Calculations!$E$2=\"Western Isles Health Board\",Calculations!$E$2=\"Shetland Islands Local Authority\",Calculations!$E$2=\"Eilean Siar Local Authority\"),OR($F236=1,$F236=5)),0,new_ci(VALUE(LEFT(Options!$B$24,2)),$C236,$E236,$F236,2016,$I236,1,$H236,$G236*$H236,Options!$B$8)))","v":17.410965470600001},{"$f":"IF(AND(OR(Calculations!$E$2=\"Orkney Health Board\",Calculations!$E$2=\"Orkney Islands Local Authority\"),$F236=1),0,IF(AND(OR(Calculations!$E$2=\"Shetland Health Board\",Calculations!$E$2=\"Western Isles Health Board\",Calculations!$E$2=\"Shetland Islands Local Authority\",Calculations!$E$2=\"Eilean Siar Local Authority\"),OR($F236=1,$F236=5)),0,new_ci(VALUE(LEFT(Options!$B$24,2)),$C236,$E236,$F236,2016,$I236+$J236,1,$H236,$G236*$H236,Options!$B$8)))","v":17.383184108599998},{"$f":"IF(AND(OR(Calculations!$E$2=\"Orkney Health Board\",Calculations!$E$2=\"Orkney Islands Local Authority\"),$F236=1),0,IF(AND(OR(Calculations!$E$2=\"Shetland Health Board\",Calculations!$E$2=\"Western Isles Health Board\",Calculations!$E$2=\"Shetland Islands Local Authority\",Calculations!$E$2=\"Eilean Siar Local Authority\"),OR($F236=1,$F236=5)),0,new_yllv2(VALUE(LEFT(Options!$B$24,2)),$C236,$D236,$E236,$F236,2016,$I236,1,$H236,$G236*$H236,Options!$B$8)))","v":867.58835716709996},{"$f":"IF(AND(OR(Calculations!$E$2=\"Orkney Health Board\",Calculations!$E$2=\"Orkney Islands Local Authority\"),$F236=1),0,IF(AND(OR(Calculations!$E$2=\"Shetland Health Board\",Calculations!$E$2=\"Western Isles Health Board\",Calculations!$E$2=\"Shetland Islands Local Authority\",Calculations!$E$2=\"Eilean Siar Local Authority\"),OR($F236=1,$F236=5)),0,new_yllv2(VALUE(LEFT(Options!$B$24,2)),$C236,$D236,$E236,$F236,2016,$I236+$J236,1,$H236,$G236*$H236,Options!$B$8)))","v":866.204011982},{"$f":"IF(AND(OR(Calculations!$E$2=\"Orkney Health Board\",Calculations!$E$2=\"Orkney Islands Local Authority\"),$F236=1),0,IF(AND(OR(Calculations!$E$2=\"Shetland Health Board\",Calculations!$E$2=\"Western Isles Health Board\",Calculations!$E$2=\"Shetland Islands Local Authority\",Calculations!$E$2=\"Eilean Siar Local Authority\"),OR($F236=1,$F236=5)),0,hosp_count(VALUE(LEFT(Options!$B$24,2)),$C236,$E236,$F236,2016,$I236,1,$H236,$G236*$H236, Options!$B$8)))","v":2546.6945852919998},{"$f":"IF(AND(OR(Calculations!$E$2=\"Orkney Health Board\",Calculations!$E$2=\"Orkney Islands Local Authority\"),$F236=1),0,IF(AND(OR(Calculations!$E$2=\"Shetland Health Board\",Calculations!$E$2=\"Western Isles Health Board\",Calculations!$E$2=\"Shetland Islands Local Authority\",Calculations!$E$2=\"Eilean Siar Local Authority\"),OR($F236=1,$F236=5)),0,hosp_count(VALUE(LEFT(Options!$B$24,2)),$C236,$E236,$F236,2016,$I236+$J236,1,$H236,$G236*$H236, Options!$B$8)))","v":2538.2248117674999},{"$f":"IF(AND(OR(Calculations!$E$2=\"Orkney Health Board\",Calculations!$E$2=\"Orkney Islands Local Authority\"),$F236=1),0,IF(AND(OR(Calculations!$E$2=\"Shetland Health Board\",Calculations!$E$2=\"Western Isles Health Board\",Calculations!$E$2=\"Shetland Islands Local Authority\",Calculations!$E$2=\"Eilean Siar Local Authority\"),OR($F236=1,$F236=5)),0,prem_mort(VALUE(LEFT(Options!$B$24,2)),$C236,$E236,$F236,2016,$I236,1,$H236,$G236*$H236,Options!$B$8)))","v":17.410965470600001},{"$f":"IF(AND(OR(Calculations!$E$2=\"Orkney Health Board\",Calculations!$E$2=\"Orkney Islands Local Authority\"),$F236=1),0,IF(AND(OR(Calculations!$E$2=\"Shetland Health Board\",Calculations!$E$2=\"Western Isles Health Board\",Calculations!$E$2=\"Shetland Islands Local Authority\",Calculations!$E$2=\"Eilean Siar Local Authority\"),OR($F236=1,$F236=5)),0,prem_mort(VALUE(LEFT(Options!$B$24,2)),$C236,$E236,$F236,2016,$I236+$J236,1,$H236,$G236*$H236,Options!$B$8)))","v":17.383184108599998},50.790447697199532,50.709405217619604,2530.8878563801049,2526.8495098658109,7429.0973899999999,7404.3897659495324,50.790447697199532,50.709405217619604,304742.68618319719,304256.43130571762,15185327.13828063,15161097.059194865,44574584.339999996,44426338.595697194,304742.68618319719,304256.43130571762,6000]
[null,"Male 30-34",31.981521999999998,78.061520000000002,"male",5,{"$f":"HLOOKUP(Calculations!$E$2,'Prevalence Rates'!$C$3:$BC$249,'Prevalence Rates'!$BD237,FALSE)","v":7.1904604619662041E-2},{"$f":"HLOOKUP(Calculations!$E$2,'Population 2016'!$C$3:$BC$249,'Population 2016'!BD237,FALSE)","v":30164},0,{"$f":"HLOOKUP(Results!E$4,Targeting!$C$3:$F$249,Targeting!$G237,FALSE)","v":893},{"$f":"IF(AND(OR(Calculations!$E$2=\"Orkney Health Board\",Calculations!$E$2=\"Orkney Islands Local Authority\"),$F237=1),0,IF(AND(OR(Calculations!$E$2=\"Shetland Health Board\",Calculations!$E$2=\"Western Isles Health Board\",Calculations!$E$2=\"Shetland Islands Local Authority\",Calculations!$E$2=\"Eilean Siar Local Authority\"),OR($F237=1,$F237=5)),0,new_ci(VALUE(LEFT(Options!$B$24,2)),$C237,$E237,$F237,2016,$I237,1,$H237,$G237*$H237,Options!$B$8)))","v":22.380735934200001},{"$f":"IF(AND(OR(Calculations!$E$2=\"Orkney Health Board\",Calculations!$E$2=\"Orkney Islands Local Authority\"),$F237=1),0,IF(AND(OR(Calculations!$E$2=\"Shetland Health Board\",Calculations!$E$2=\"Western Isles Health Board\",Calculations!$E$2=\"Shetland Islands Local Authority\",Calculations!$E$2=\"Eilean Siar Local Authority\"),OR($F237=1,$F237=5)),0,new_ci(VALUE(LEFT(Options!$B$24,2)),$C237,$E237,$F237,2016,$I237+$J237,1,$H237,$G237*$H237,Options!$B$8)))","v":22.3450362946},{"$f":"IF(AND(OR(Calculations!$E$2=\"Orkney Health Board\",Calculations!$E$2=\"Orkney Islands Local Authority\"),$F237=1),0,IF(AND(OR(Calculations!$E$2=\"Shetland Health Board\",Calculations!$E$2=\"Western Isles Health Board\",Calculations!$E$2=\"Shetland Islands Local Authority\",Calculations!$E$2=\"Eilean Siar Local Authority\"),OR($F237=1,$F237=5)),0,new_yllv2(VALUE(LEFT(Options!$B$24,2)),$C237,$D237,$E237,$F237,2016,$I237,1,$H237,$G237*$H237,Options!$B$8)))","v":1008.9235311523},{"$f":"IF(AND(OR(Calculations!$E$2=\"Orkney Health Board\",Calculations!$E$2=\"Orkney Islands Local Authority\"),$F237=1),0,IF(AND(OR(Calculations!$E$2=\"Shetland Health Board\",Calculations!$E$2=\"Western Isles Health Board\",Calculations!$E$2=\"Shetland Islands Local Authority\",Calculations!$E$2=\"Eilean Siar Local Authority\"),OR($F237=1,$F237=5)),0,new_yllv2(VALUE(LEFT(Options!$B$24,2)),$C237,$D237,$E237,$F237,2016,$I237+$J237,1,$H237,$G237*$H237,Options!$B$8)))","v":1007.3141914705},{"$f":"IF(AND(OR(Calculations!$E$2=\"Orkney Health Board\",Calculations!$E$2=\"Orkney Islands Local Authority\"),$F237=1),0,IF(AND(OR(Calculations!$E$2=\"Shetland Health Board\",Calculations!$E$2=\"Western Isles Health Board\",Calculations!$E$2=\"Shetland Islands Local Authority\",Calculations!$E$2=\"Eilean Siar Local Authority\"),OR($F237=1,$F237=5)),0,hosp_count(VALUE(LEFT(Options!$B$24,2)),$C237,$E237,$F237,2016,$I237,1,$H237,$G237*$H237, Options!$B$8)))","v":2678.1643595263999},{"$f":"IF(AND(OR(Calculations!$E$2=\"Orkney Health Board\",Calculations!$E$2=\"Orkney Islands Local Authority\"),$F237=1),0,IF(AND(OR(Calculations!$E$2=\"Shetland Health Board\",Calculations!$E$2=\"Western Isles Health Board\",Calculations!$E$2=\"Shetland Islands Local Authority\",Calculations!$E$2=\"Eilean Siar Local Authority\"),OR($F237=1,$F237=5)),0,hosp_count(VALUE(LEFT(Options!$B$24,2)),$C237,$E237,$F237,2016,$I237+$J237,1,$H237,$G237*$H237, Options!$B$8)))","v":2669.2586309917001},{"$f":"IF(AND(OR(Calculations!$E$2=\"Orkney Health Board\",Calculations!$E$2=\"Orkney Islands Local Authority\"),$F237=1),0,IF(AND(OR(Calculations!$E$2=\"Shetland Health Board\",Calculations!$E$2=\"Western Isles Health Board\",Calculations!$E$2=\"Shetland Islands Local Authority\",Calculations!$E$2=\"Eilean Siar Local Authority\"),OR($F237=1,$F237=5)),0,prem_mort(VALUE(LEFT(Options!$B$24,2)),$C237,$E237,$F237,2016,$I237,1,$H237,$G237*$H237,Options!$B$8)))","v":22.380735934200001},{"$f":"IF(AND(OR(Calculations!$E$2=\"Orkney Health Board\",Calculations!$E$2=\"Orkney Islands Local Authority\"),$F237=1),0,IF(AND(OR(Calculations!$E$2=\"Shetland Health Board\",Calculations!$E$2=\"Western Isles Health Board\",Calculations!$E$2=\"Shetland Islands Local Authority\",Calculations!$E$2=\"Eilean Siar Local Authority\"),OR($F237=1,$F237=5)),0,prem_mort(VALUE(LEFT(Options!$B$24,2)),$C237,$E237,$F237,2016,$I237+$J237,1,$H237,$G237*$H237,Options!$B$8)))","v":22.3450362946},74.196843701763697,74.078491892985014,3344.7935656819391,3339.4582663787955,8878.6777600000005,8849.1533980629229,74.196843701763697,74.078491892985014,482279.48406146403,481510.19730440259,21741158.176932603,21706478.731462169,57711405.440000005,57519497.087408997,482279.48406146403,481510.19730440259,6500]
[null,"Male 35-39",36.926009999999998,78.336009999999987,"male",5,{"$f":"HLOOKUP(Calculations!$E$2,'Prevalence Rates'!$C$3:$BC$249,'Prevalence Rates'!$BD238,FALSE)","v":7.1904604619662041E-2},{"$f":"HLOOKUP(Calculations!$E$2,'Population 2016'!$C$3:$BC$249,'Population 2016'!BD238,FALSE)","v":31915},0,{"$f":"HLOOKUP(Results!E$4,Targeting!$C$3:$F$249,Targeting!$G238,FALSE)","v":945},{"$f":"IF(AND(OR(Calculations!$E$2=\"Orkney Health Board\",Calculations!$E$2=\"Orkney Islands Local Authority\"),$F238=1),0,IF(AND(OR(Calculations!$E$2=\"Shetland Health Board\",Calculations!$E$2=\"Western Isles Health Board\",Calculations!$E$2=\"Shetland Islands Local Authority\",Calculations!$E$2=\"Eilean Siar Local Authority\"),OR($F238=1,$F238=5)),0,new_ci(VALUE(LEFT(Options!$B$24,2)),$C238,$E238,$F238,2016,$I238,1,$H238,$G238*$H238,Options!$B$8)))","v":34.389656938000002},{"$f":"IF(AND(OR(Calculations!$E$2=\"Orkney Health Board\",Calculations!$E$2=\"Orkney Islands Local Authority\"),$F238=1),0,IF(AND(OR(Calculations!$E$2=\"Shetland Health Board\",Calculations!$E$2=\"Western Isles Health Board\",Calculations!$E$2=\"Shetland Islands Local Authority\",Calculations!$E$2=\"Eilean Siar Local Authority\"),OR($F238=1,$F238=5)),0,new_ci(VALUE(LEFT(Options!$B$24,2)),$C238,$E238,$F238,2016,$I238+$J238,1,$H238,$G238*$H238,Options!$B$8)))","v":34.334806491999998},{"$f":"IF(AND(OR(Calculations!$E$2=\"Orkney Health Board\",Calculations!$E$2=\"Orkney Islands Local Authority\"),$F238=1),0,IF(AND(OR(Calculations!$E$2=\"Shetland Health Board\",Calculations!$E$2=\"Western Isles Health Board\",Calculations!$E$2=\"Shetland Islands Local Authority\",Calculations!$E$2=\"Eilean Siar Local Authority\"),OR($F238=1,$F238=5)),0,new_yllv2(VALUE(LEFT(Options!$B$24,2)),$C238,$D238,$E238,$F238,2016,$I238,1,$H238,$G238*$H238,Options!$B$8)))","v":1389.6860368646001},{"$f":"IF(AND(OR(Calculations!$E$2=\"Orkney Health Board\",Calculations!$E$2=\"Orkney Islands Local Authority\"),$F238=1),0,IF(AND(OR(Calculations!$E$2=\"Shetland Health Board\",Calculations!$E$2=\"Western Isles Health Board\",Calculations!$E$2=\"Shetland Islands Local Authority\",Calculations!$E$2=\"Eilean Siar Local Authority\"),OR($F238=1,$F238=5)),0,new_yllv2(VALUE(LEFT(Options!$B$24,2)),$C238,$D238,$E238,$F238,2016,$I238+$J238,1,$H238,$G238*$H238,Options!$B$8)))","v":1387.4695303417},{"$f":"IF(AND(OR(Calculations!$E$2=\"Orkney Health Board\",Calculations!$E$2=\"Orkney Islands Local Authority\"),$F238=1),0,IF(AND(OR(Calculations!$E$2=\"Shetland Health Board\",Calculations!$E$2=\"Western Isles Health Board\",Calculations!$E$2=\"Shetland Islands Local Authority\",Calculations!$E$2=\"Eilean Siar Local Authority\"),OR($F238=1,$F238=5)),0,hosp_count(VALUE(LEFT(Options!$B$24,2)),$C238,$E238,$F238,2016,$I238,1,$H238,$G238*$H238, Options!$B$8)))","v":3377.257887276},{"$f":"IF(AND(OR(Calculations!$E$2=\"Orkney Health Board\",Calculations!$E$2=\"Orkney Islands Local Authority\"),$F238=1),0,IF(AND(OR(Calculations!$E$2=\"Shetland Health Board\",Calculations!$E$2=\"Western Isles Health Board\",Calculations!$E$2=\"Shetland Islands Local Authority\",Calculations!$E$2=\"Eilean Siar Local Authority\"),OR($F238=1,$F238=5)),0,hosp_count(VALUE(LEFT(Options!$B$24,2)),$C238,$E238,$F238,2016,$I238+$J238,1,$H238,$G238*$H238, Options!$B$8)))","v":3366.0255306054},{"$f":"IF(AND(OR(Calculations!$E$2=\"Orkney Health Board\",Calculations!$E$2=\"Orkney Islands Local Authority\"),$F238=1),0,IF(AND(OR(Calculations!$E$2=\"Shetland Health Board\",Calculations!$E$2=\"Western Isles Health Board\",Calculations!$E$2=\"Shetland Islands Local Authority\",Calculations!$E$2=\"Eilean Siar Local Authority\"),OR($F238=1,$F238=5)),0,prem_mort(VALUE(LEFT(Options!$B$24,2)),$C238,$E238,$F238,2016,$I238,1,$H238,$G238*$H238,Options!$B$8)))","v":34.389656938000002},{"$f":"IF(AND(OR(Calculations!$E$2=\"Orkney Health Board\",Calculations!$E$2=\"Orkney Islands Local Authority\"),$F238=1),0,IF(AND(OR(Calculations!$E$2=\"Shetland Health Board\",Calculations!$E$2=\"Western Isles Health Board\",Calculations!$E$2=\"Shetland Islands Local Authority\",Calculations!$E$2=\"Eilean Siar Local Authority\"),OR($F238=1,$F238=5)),0,prem_mort(VALUE(LEFT(Options!$B$24,2)),$C238,$E238,$F238,2016,$I238+$J238,1,$H238,$G238*$H238,Options!$B$8)))","v":34.334806491999998},107.75389922606925,107.58203506814976,4354.3350677255212,4347.3900371038699,10582.039439999999,10546.844839747455,107.75389922606925,107.58203506814976,754277.29458248476,753074.24547704833,30480345.474078648,30431730.259727091,74074276.079999983,73827913.878232181,754277.29458248476,753074.24547704833,7000]
[null,"Male 40-44",42.067703000000002,78.907700000000006,"male",5,{"$f":"HLOOKUP(Calculations!$E$2,'Prevalence Rates'!$C$3:$BC$249,'Prevalence Rates'!$BD239,FALSE)","v":7.1904604619662041E-2},{"$f":"HLOOKUP(Calculations!$E$2,'Population 2016'!$C$3:$BC$249,'Population 2016'!BD239,FALSE)","v":35113},0,{"$f":"HLOOKUP(Results!E$4,Targeting!$C$3:$F$249,Targeting!$G239,FALSE)","v":1040},{"$f":"IF(AND(OR(Calculations!$E$2=\"Orkney Health Board\",Calculations!$E$2=\"Orkney Islands Local Authority\"),$F239=1),0,IF(AND(OR(Calculations!$E$2=\"Shetland Health Board\",Calculations!$E$2=\"Western Isles Health Board\",Calculations!$E$2=\"Shetland Islands Local Authority\",Calculations!$E$2=\"Eilean Siar Local Authority\"),OR($F239=1,$F239=5)),0,new_ci(VALUE(LEFT(Options!$B$24,2)),$C239,$E239,$F239,2016,$I239,1,$H239,$G239*$H239,Options!$B$8)))","v":55.766866412799999},{"$f":"IF(AND(OR(Calculations!$E$2=\"Orkney Health Board\",Calculations!$E$2=\"Orkney Islands Local Authority\"),$F239=1),0,IF(AND(OR(Calculations!$E$2=\"Shetland Health Board\",Calculations!$E$2=\"Western Isles Health Board\",Calculations!$E$2=\"Shetland Islands Local Authority\",Calculations!$E$2=\"Eilean Siar Local Authority\"),OR($F239=1,$F239=5)),0,new_ci(VALUE(LEFT(Options!$B$24,2)),$C239,$E239,$F239,2016,$I239+$J239,1,$H239,$G239*$H239,Options!$B$8)))","v":55.677928628799997},{"$f":"IF(AND(OR(Calculations!$E$2=\"Orkney Health Board\",Calculations!$E$2=\"Orkney Islands Local Authority\"),$F239=1),0,IF(AND(OR(Calculations!$E$2=\"Shetland Health Board\",Calculations!$E$2=\"Western Isles Health Board\",Calculations!$E$2=\"Shetland Islands Local Authority\",Calculations!$E$2=\"Eilean Siar Local Authority\"),OR($F239=1,$F239=5)),0,new_yllv2(VALUE(LEFT(Options!$B$24,2)),$C239,$D239,$E239,$F239,2016,$I239,1,$H239,$G239*$H239,Options!$B$8)))","v":1998.6843249342},{"$f":"IF(AND(OR(Calculations!$E$2=\"Orkney Health Board\",Calculations!$E$2=\"Orkney Islands Local Authority\"),$F239=1),0,IF(AND(OR(Calculations!$E$2=\"Shetland Health Board\",Calculations!$E$2=\"Western Isles Health Board\",Calculations!$E$2=\"Shetland Islands Local Authority\",Calculations!$E$2=\"Eilean Siar Local Authority\"),OR($F239=1,$F239=5)),0,new_yllv2(VALUE(LEFT(Options!$B$24,2)),$C239,$D239,$E239,$F239,2016,$I239+$J239,1,$H239,$G239*$H239,Options!$B$8)))","v":1995.4967950224},{"$f":"IF(AND(OR(Calculations!$E$2=\"Orkney Health Board\",Calculations!$E$2=\"Orkney Islands Local Authority\"),$F239=1),0,IF(AND(OR(Calculations!$E$2=\"Shetland Health Board\",Calculations!$E$2=\"Western Isles Health Board\",Calculations!$E$2=\"Shetland Islands Local Authority\",Calculations!$E$2=\"Eilean Siar Local Authority\"),OR($F239=1,$F239=5)),0,hosp_count(VALUE(LEFT(Options!$B$24,2)),$C239,$E239,$F239,2016,$I239,1,$H239,$G239*$H239, Options!$B$8)))","v":4459.6254010723997},{"$f":"IF(AND(OR(Calculations!$E$2=\"Orkney Health Board\",Calculations!$E$2=\"Orkney Islands Local Authority\"),$F239=1),0,IF(AND(OR(Calculations!$E$2=\"Shetland Health Board\",Calculations!$E$2=\"Western Isles Health Board\",Calculations!$E$2=\"Shetland Islands Local Authority\",Calculations!$E$2=\"Eilean Siar Local Authority\"),OR($F239=1,$F239=5)),0,hosp_count(VALUE(LEFT(Options!$B$24,2)),$C239,$E239,$F239,2016,$I239+$J239,1,$H239,$G239*$H239, Options!$B$8)))","v":4444.7888319627},{"$f":"IF(AND(OR(Calculations!$E$2=\"Orkney Health Board\",Calculations!$E$2=\"Orkney Islands Local Authority\"),$F239=1),0,IF(AND(OR(Calculations!$E$2=\"Shetland Health Board\",Calculations!$E$2=\"Western Isles Health Board\",Calculations!$E$2=\"Shetland Islands Local Authority\",Calculations!$E$2=\"Eilean Siar Local Authority\"),OR($F239=1,$F239=5)),0,prem_mort(VALUE(LEFT(Options!$B$24,2)),$C239,$E239,$F239,2016,$I239,1,$H239,$G239*$H239,Options!$B$8)))","v":55.766866412799999},{"$f":"IF(AND(OR(Calculations!$E$2=\"Orkney Health Board\",Calculations!$E$2=\"Orkney Islands Local Authority\"),$F239=1),0,IF(AND(OR(Calculations!$E$2=\"Shetland Health Board\",Calculations!$E$2=\"Western Isles Health Board\",Calculations!$E$2=\"Shetland Islands Local Authority\",Calculations!$E$2=\"Eilean Siar Local Authority\"),OR($F239=1,$F239=5)),0,prem_mort(VALUE(LEFT(Options!$B$24,2)),$C239,$E239,$F239,2016,$I239+$J239,1,$H239,$G239*$H239,Options!$B$8)))","v":55.677928628799997},158.8211386460855,158.56784845726654,5692.1491326124233,5683.0712130048696,12700.78148,12658.527701884486,158.8211386460855,158.56784845726654,1111747.9705225986,1109974.9392008658,39845043.928286962,39781498.491034091,88905470.359999999,88609693.913191408,1111747.9705225986,1109974.9392008658,7000]
[null,"Male 45-49",47.038155000000003,79.418149999999997,"male",5,{"$f":"HLOOKUP(Calculations!$E$2,'Prevalence Rates'!$C$3:$BC$249,'Prevalence Rates'!$BD240,FALSE)","v":7.1904604619662041E-2},{"$f":"HLOOKUP(Calculations!$E$2,'Population 2016'!$C$3:$BC$249,'Population 2016'!BD240,FALSE)","v":39359},0,{"$f":"HLOOKUP(Results!E$4,Targeting!$C$3:$F$249,Targeting!$G240,FALSE)","v":1166},{"$f":"IF(AND(OR(Calculations!$E$2=\"Orkney Health Board\",Calculations!$E$2=\"Orkney Islands Local Authority\"),$F240=1),0,IF(AND(OR(Calculations!$E$2=\"Shetland Health Board\",Calculations!$E$2=\"Western Isles Health Board\",Calculations!$E$2=\"Shetland Islands Local Authority\",Calculations!$E$2=\"Eilean Siar Local Authority\"),OR($F240=1,$F240=5)),0,new_ci(VALUE(LEFT(Options!$B$24,2)),$C240,$E240,$F240,2016,$I240,1,$H240,$G240*$H240,Options!$B$8)))","v":90.942423669199997},{"$f":"IF(AND(OR(Calculations!$E$2=\"Orkney Health Board\",Calculations!$E$2=\"Orkney Islands Local Authority\"),$F240=1),0,IF(AND(OR(Calculations!$E$2=\"Shetland Health Board\",Calculations!$E$2=\"Western Isles Health Board\",Calculations!$E$2=\"Shetland Islands Local Authority\",Calculations!$E$2=\"Eilean Siar Local Authority\"),OR($F240=1,$F240=5)),0,new_ci(VALUE(LEFT(Options!$B$24,2)),$C240,$E240,$F240,2016,$I240+$J240,1,$H240,$G240*$H240,Options!$B$8)))","v":90.797438215400007},{"$f":"IF(AND(OR(Calculations!$E$2=\"Orkney Health Board\",Calculations!$E$2=\"Orkney Islands Local Authority\"),$F240=1),0,IF(AND(OR(Calculations!$E$2=\"Shetland Health Board\",Calculations!$E$2=\"Western Isles Health Board\",Calculations!$E$2=\"Shetland Islands Local Authority\",Calculations!$E$2=\"Eilean Siar Local Authority\"),OR($F240=1,$F240=5)),0,new_yllv2(VALUE(LEFT(Options!$B$24,2)),$C240,$D240,$E240,$F240,2016,$I240,1,$H240,$G240*$H240,Options!$B$8)))","v":2853.7728000274001},{"$f":"IF(AND(OR(Calculations!$E$2=\"Orkney Health Board\",Calculations!$E$2=\"Orkney Islands Local Authority\"),$F240=1),0,IF(AND(OR(Calculations!$E$2=\"Shetland Health Board\",Calculations!$E$2=\"Western Isles Health Board\",Calculations!$E$2=\"Shetland Islands Local Authority\",Calculations!$E$2=\"Eilean Siar Local Authority\"),OR($F240=1,$F240=5)),0,new_yllv2(VALUE(LEFT(Options!$B$24,2)),$C240,$D240,$E240,$F240,2016,$I240+$J240,1,$H240,$G240*$H240,Options!$B$8)))","v":2849.2231572121},{"$f":"IF(AND(OR(Calculations!$E$2=\"Orkney Health Board\",Calculations!$E$2=\"Orkney Islands Local Authority\"),$F240=1),0,IF(AND(OR(Calculations!$E$2=\"Shetland Health Board\",Calculations!$E$2=\"Western Isles Health Board\",Calculations!$E$2=\"Shetland Islands Local Authority\",Calculations!$E$2=\"Eilean Siar Local Authority\"),OR($F240=1,$F240=5)),0,hosp_count(VALUE(LEFT(Options!$B$24,2)),$C240,$E240,$F240,2016,$I240,1,$H240,$G240*$H240, Options!$B$8)))","v":5963.4258802347003},{"$f":"IF(AND(OR(Calculations!$E$2=\"Orkney Health Board\",Calculations!$E$2=\"Orkney Islands Local Authority\"),$F240=1),0,IF(AND(OR(Calculations!$E$2=\"Shetland Health Board\",Calculations!$E$2=\"Western Isles Health Board\",Calculations!$E$2=\"Shetland Islands Local Authority\",Calculations!$E$2=\"Eilean Siar Local Authority\"),OR($F240=1,$F240=5)),0,hosp_count(VALUE(LEFT(Options!$B$24,2)),$C240,$E240,$F240,2016,$I240+$J240,1,$H240,$G240*$H240, Options!$B$8)))","v":5943.5823003977002},{"$f":"IF(AND(OR(Calculations!$E$2=\"Orkney Health Board\",Calculations!$E$2=\"Orkney Islands Local Authority\"),$F240=1),0,IF(AND(OR(Calculations!$E$2=\"Shetland Health Board\",Calculations!$E$2=\"Western Isles Health Board\",Calculations!$E$2=\"Shetland Islands Local Authority\",Calculations!$E$2=\"Eilean Siar Local Authority\"),OR($F240=1,$F240=5)),0,prem_mort(VALUE(LEFT(Options!$B$24,2)),$C240,$E240,$F240,2016,$I240,1,$H240,$G240*$H240,Options!$B$8)))","v":90.942423669199997},{"$f":"IF(AND(OR(Calculations!$E$2=\"Orkney Health Board\",Calculations!$E$2=\"Orkney Islands Local Authority\"),$F240=1),0,IF(AND(OR(Calculations!$E$2=\"Shetland Health Board\",Calculations!$E$2=\"Western Isles Health Board\",Calculations!$E$2=\"Shetland Islands Local Authority\",Calculations!$E$2=\"Eilean Siar Local Authority\"),OR($F240=1,$F240=5)),0,prem_mort(VALUE(LEFT(Options!$B$24,2)),$C240,$E240,$F240,2016,$I240+$J240,1,$H240,$G240*$H240,Options!$B$8)))","v":90.797438215400007},231.05877605935109,230.69040934830662,7250.6232374486144,7239.0638918979139,15151.365330000001,15100.948449903961,231.05877605935109,230.69040934830662,1617411.4324154577,1614832.8654381463,50754362.662140302,50673447.243285395,106059557.31,105706639.14932773,1617411.4324154577,1614832.8654381463,7000]
[null,"Male 50-54",51.998646000000001,79.988649999999993,"male",5,{"$f":"HLOOKUP(Calculations!$E$2,'Prevalence Rates'!$C$3:$BC$249,'Prevalence Rates'!$BD241,FALSE)","v":7.1904604619662041E-2},{"$f":"HLOOKUP(Calculations!$E$2,'Population 2016'!$C$3:$BC$249,'Population 2016'!BD241,FALSE)","v":40044},0,{"$f":"HLOOKUP(Results!E$4,Targeting!$C$3:$F$249,Targeting!$G241,FALSE)","v":1186},{"$f":"IF(AND(OR(Calculations!$E$2=\"Orkney Health Board\",Calculations!$E$2=\"Orkney Islands Local Authority\"),$F241=1),0,IF(AND(OR(Calculations!$E$2=\"Shetland Health Board\",Calculations!$E$2=\"Western Isles Health Board\",Calculations!$E$2=\"Shetland Islands Local Authority\",Calculations!$E$2=\"Eilean Siar Local Authority\"),OR($F241=1,$F241=5)),0,new_ci(VALUE(LEFT(Options!$B$24,2)),$C241,$E241,$F241,2016,$I241,1,$H241,$G241*$H241,Options!$B$8)))","v":134.4856772844},{"$f":"IF(AND(OR(Calculations!$E$2=\"Orkney Health Board\",Calculations!$E$2=\"Orkney Islands Local Authority\"),$F241=1),0,IF(AND(OR(Calculations!$E$2=\"Shetland Health Board\",Calculations!$E$2=\"Western Isles Health Board\",Calculations!$E$2=\"Shetland Islands Local Authority\",Calculations!$E$2=\"Eilean Siar Local Authority\"),OR($F241=1,$F241=5)),0,new_ci(VALUE(LEFT(Options!$B$24,2)),$C241,$E241,$F241,2016,$I241+$J241,1,$H241,$G241*$H241,Options!$B$8)))","v":134.27149908620001},{"$f":"IF(AND(OR(Calculations!$E$2=\"Orkney Health Board\",Calculations!$E$2=\"Orkney Islands Local Authority\"),$F241=1),0,IF(AND(OR(Calculations!$E$2=\"Shetland Health Board\",Calculations!$E$2=\"Western Isles Health Board\",Calculations!$E$2=\"Shetland Islands Local Authority\",Calculations!$E$2=\"Eilean Siar Local Authority\"),OR($F241=1,$F241=5)),0,new_yllv2(VALUE(LEFT(Options!$B$24,2)),$C241,$D241,$E241,$F241,2016,$I241,1,$H241,$G241*$H241,Options!$B$8)))","v":3629.7689678487},{"$f":"IF(AND(OR(Calculations!$E$2=\"Orkney Health Board\",Calculations!$E$2=\"Orkney Islands Local Authority\"),$F241=1),0,IF(AND(OR(Calculations!$E$2=\"Shetland Health Board\",Calculations!$E$2=\"Western Isles Health Board\",Calculations!$E$2=\"Shetland Islands Local Authority\",Calculations!$E$2=\"Eilean Siar Local Authority\"),OR($F241=1,$F241=5)),0,new_yllv2(VALUE(LEFT(Options!$B$24,2)),$C241,$D241,$E241,$F241,2016,$I241+$J241,1,$H241,$G241*$H241,Options!$B$8)))","v":3623.9882974225002},{"$f":"IF(AND(OR(Calculations!$E$2=\"Orkney Health Board\",Calculations!$E$2=\"Orkney Islands Local Authority\"),$F241=1),0,IF(AND(OR(Calculations!$E$2=\"Shetland Health Board\",Calculations!$E$2=\"Western Isles Health Board\",Calculations!$E$2=\"Shetland Islands Local Authority\",Calculations!$E$2=\"Eilean Siar Local Authority\"),OR($F241=1,$F241=5)),0,hosp_count(VALUE(LEFT(Options!$B$24,2)),$C241,$E241,$F241,2016,$I241,1,$H241,$G241*$H241, Options!$B$8)))","v":7235.3075532060002},{"$f":"IF(AND(OR(Calculations!$E$2=\"Orkney Health Board\",Calculations!$E$2=\"Orkney Islands Local Authority\"),$F241=1),0,IF(AND(OR(Calculations!$E$2=\"Shetland Health Board\",Calculations!$E$2=\"Western Isles Health Board\",Calculations!$E$2=\"Shetland Islands Local Authority\",Calculations!$E$2=\"Eilean Siar Local Authority\"),OR($F241=1,$F241=5)),0,hosp_count(VALUE(LEFT(Options!$B$24,2)),$C241,$E241,$F241,2016,$I241+$J241,1,$H241,$G241*$H241, Options!$B$8)))","v":7211.2376727622996},{"$f":"IF(AND(OR(Calculations!$E$2=\"Orkney Health Board\",Calculations!$E$2=\"Orkney Islands Local Authority\"),$F241=1),0,IF(AND(OR(Calculations!$E$2=\"Shetland Health Board\",Calculations!$E$2=\"Western Isles Health Board\",Calculations!$E$2=\"Shetland Islands Local Authority\",Calculations!$E$2=\"Eilean Siar Local Authority\"),OR($F241=1,$F241=5)),0,prem_mort(VALUE(LEFT(Options!$B$24,2)),$C241,$E241,$F241,2016,$I241,1,$H241,$G241*$H241,Options!$B$8)))","v":134.4856772844},{"$f":"IF(AND(OR(Calculations!$E$2=\"Orkney Health Board\",Calculations!$E$2=\"Orkney Islands Local Authority\"),$F241=1),0,IF(AND(OR(Calculations!$E$2=\"Shetland Health Board\",Calculations!$E$2=\"Western Isles Health Board\",Calculations!$E$2=\"Shetland Islands Local Authority\",Calculations!$E$2=\"Eilean Siar Local Authority\"),OR($F241=1,$F241=5)),0,prem_mort(VALUE(LEFT(Options!$B$24,2)),$C241,$E241,$F241,2016,$I241+$J241,1,$H241,$G241*$H241,Options!$B$8)))","v":134.27149908620001},335.8447639706323,335.30990681800023,9064.4515229465087,9050.0157262573666,18068.393650000002,18008.285068330584,335.8447639706323,335.30990681800023,2350913.3477944261,2347169.3477260014,63451160.660625562,63350110.083801568,126478755.55000001,126057995.47831409,2350913.3477944261,2347169.3477260014,7000]
[null,"Male 55-59",56.950867000000002,80.660870000000003,"male",5,{"$f":"HLOOKUP(Calculations!$E$2,'Prevalence Rates'!$C$3:$BC$249,'Prevalence Rates'!$BD242,FALSE)","v":6.0233165858855992E-2},{"$f":"HLOOKUP(Calculations!$E$2,'Population 2016'!$C$3:$BC$249,'Population 2016'!BD242,FALSE)","v":36422},0,{"$f":"HLOOKUP(Results!E$4,Targeting!$C$3:$F$249,Targeting!$G242,FALSE)","v":1079},{"$f":"IF(AND(OR(Calculations!$E$2=\"Orkney Health Board\",Calculations!$E$2=\"Orkney Islands Local Authority\"),$F242=1),0,IF(AND(OR(Calculations!$E$2=\"Shetland Health Board\",Calculations!$E$2=\"Western Isles Health Board\",Calculations!$E$2=\"Shetland Islands Local Authority\",Calculations!$E$2=\"Eilean Siar Local Authority\"),OR($F242=1,$F242=5)),0,new_ci(VALUE(LEFT(Options!$B$24,2)),$C242,$E242,$F242,2016,$I242,1,$H242,$G242*$H242,Options!$B$8)))","v":177.64164949799999},{"$f":"IF(AND(OR(Calculations!$E$2=\"Orkney Health Board\",Calculations!$E$2=\"Orkney Islands Local Authority\"),$F242=1),0,IF(AND(OR(Calculations!$E$2=\"Shetland Health Board\",Calculations!$E$2=\"Western Isles Health Board\",Calculations!$E$2=\"Shetland Islands Local Authority\",Calculations!$E$2=\"Eilean Siar Local Authority\"),OR($F242=1,$F242=5)),0,new_ci(VALUE(LEFT(Options!$B$24,2)),$C242,$E242,$F242,2016,$I242+$J242,1,$H242,$G242*$H242,Options!$B$8)))","v":177.35794198560001},{"$f":"IF(AND(OR(Calculations!$E$2=\"Orkney Health Board\",Calculations!$E$2=\"Orkney Islands Local Authority\"),$F242=1),0,IF(AND(OR(Calculations!$E$2=\"Shetland Health Board\",Calculations!$E$2=\"Western Isles Health Board\",Calculations!$E$2=\"Shetland Islands Local Authority\",Calculations!$E$2=\"Eilean Siar Local Authority\"),OR($F242=1,$F242=5)),0,new_yllv2(VALUE(LEFT(Options!$B$24,2)),$C242,$D242,$E242,$F242,2016,$I242,1,$H242,$G242*$H242,Options!$B$8)))","v":4034.2423930245},{"$f":"IF(AND(OR(Calculations!$E$2=\"Orkney Health Board\",Calculations!$E$2=\"Orkney Islands Local Authority\"),$F242=1),0,IF(AND(OR(Calculations!$E$2=\"Shetland Health Board\",Calculations!$E$2=\"Western Isles Health Board\",Calculations!$E$2=\"Shetland Islands Local Authority\",Calculations!$E$2=\"Eilean Siar Local Authority\"),OR($F242=1,$F242=5)),0,new_yllv2(VALUE(LEFT(Options!$B$24,2)),$C242,$D242,$E242,$F242,2016,$I242+$J242,1,$H242,$G242*$H242,Options!$B$8)))","v":4027.7993945667999},{"$f":"IF(AND(OR(Calculations!$E$2=\"Orkney Health Board\",Calculations!$E$2=\"Orkney Islands Local Authority\"),$F242=1),0,IF(AND(OR(Calculations!$E$2=\"Shetland Health Board\",Calculations!$E$2=\"Western Isles Health Board\",Calculations!$E$2=\"Shetland Islands Local Authority\",Calculations!$E$2=\"Eilean Siar Local Authority\"),OR($F242=1,$F242=5)),0,hosp_count(VALUE(LEFT(Options!$B$24,2)),$C242,$E242,$F242,2016,$I242,1,$H242,$G242*$H242, Options!$B$8)))","v":7845.5541145777997},{"$f":"IF(AND(OR(Calculations!$E$2=\"Orkney Health Board\",Calculations!$E$2=\"Orkney Islands Local Authority\"),$F242=1),0,IF(AND(OR(Calculations!$E$2=\"Shetland Health Board\",Calculations!$E$2=\"Western Isles Health Board\",Calculations!$E$2=\"Shetland Islands Local Authority\",Calculations!$E$2=\"Eilean Siar Local Authority\"),OR($F242=1,$F242=5)),0,hosp_count(VALUE(LEFT(Options!$B$24,2)),$C242,$E242,$F242,2016,$I242+$J242,1,$H242,$G242*$H242, Options!$B$8)))","v":7819.3401101217996},{"$f":"IF(AND(OR(Calculations!$E$2=\"Orkney Health Board\",Calculations!$E$2=\"Orkney Islands Local Authority\"),$F242=1),0,IF(AND(OR(Calculations!$E$2=\"Shetland Health Board\",Calculations!$E$2=\"Western Isles Health Board\",Calculations!$E$2=\"Shetland Islands Local Authority\",Calculations!$E$2=\"Eilean Siar Local Authority\"),OR($F242=1,$F242=5)),0,prem_mort(VALUE(LEFT(Options!$B$24,2)),$C242,$E242,$F242,2016,$I242,1,$H242,$G242*$H242,Options!$B$8)))","v":177.64164949799999},{"$f":"IF(AND(OR(Calculations!$E$2=\"Orkney Health Board\",Calculations!$E$2=\"Orkney Islands Local Authority\"),$F242=1),0,IF(AND(OR(Calculations!$E$2=\"Shetland Health Board\",Calculations!$E$2=\"Western Isles Health Board\",Calculations!$E$2=\"Shetland Islands Local Authority\",Calculations!$E$2=\"Eilean Siar Local Authority\"),OR($F242=1,$F242=5)),0,prem_mort(VALUE(LEFT(Options!$B$24,2)),$C242,$E242,$F242,2016,$I242+$J242,1,$H242,$G242*$H242,Options!$B$8)))","v":177.35794198560001},487.73172669814949,486.95278124649934,11076.388976510076,11058.69912296634,21540.700990000001,21468.727994403929,487.73172669814949,486.95278124649934,3170256.2235379717,3165193.0781022459,71996528.34731549,71881544.29928121,140014556.435,139546731.96362555,3170256.2235379717,3165193.0781022459,6500]
[null,"Male 60-64",61.942988999999997,81.612989999999996,"male",5,{"$f":"HLOOKUP(Calculations!$E$2,'Prevalence Rates'!$C$3:$BC$249,'Prevalence Rates'!$BD243,FALSE)","v":6.0233165858855992E-2},{"$f":"HLOOKUP(Calculations!$E$2,'Population 2016'!$C$3:$BC$249,'Population 2016'!BD243,FALSE)","v":32001},0,{"$f":"HLOOKUP(Results!E$4,Targeting!$C$3:$F$249,Targeting!$G243,FALSE)","v":948},{"$f":"IF(AND(OR(Calculations!$E$2=\"Orkney Health Board\",Calculations!$E$2=\"Orkney Islands Local Authority\"),$F243=1),0,IF(AND(OR(Calculations!$E$2=\"Shetland Health Board\",Calculations!$E$2=\"Western Isles Health Board\",Calculations!$E$2=\"Shetland Islands Local Authority\",Calculations!$E$2=\"Eilean Siar Local Authority\"),OR($F243=1,$F243=5)),0,new_ci(VALUE(LEFT(Options!$B$24,2)),$C243,$E243,$F243,2016,$I243,1,$H243,$G243*$H243,Options!$B$8)))","v":227.2684107739},{"$f":"IF(AND(OR(Calculations!$E$2=\"Orkney Health Board\",Calculations!$E$2=\"Orkney Islands Local Authority\"),$F243=1),0,IF(AND(OR(Calculations!$E$2=\"Shetland Health Board\",Calculations!$E$2=\"Western Isles Health Board\",Calculations!$E$2=\"Shetland Islands Local Authority\",Calculations!$E$2=\"Eilean Siar Local Authority\"),OR($F243=1,$F243=5)),0,new_ci(VALUE(LEFT(Options!$B$24,2)),$C243,$E243,$F243,2016,$I243+$J243,1,$H243,$G243*$H243,Options!$B$8)))","v":226.90608488949999},{"$f":"IF(AND(OR(Calculations!$E$2=\"Orkney Health Board\",Calculations!$E$2=\"Orkney Islands Local Authority\"),$F243=1),0,IF(AND(OR(Calculations!$E$2=\"Shetland Health Board\",Calculations!$E$2=\"Western Isles Health Board\",Calculations!$E$2=\"Shetland Islands Local Authority\",Calculations!$E$2=\"Eilean Siar Local Authority\"),OR($F243=1,$F243=5)),0,new_yllv2(VALUE(LEFT(Options!$B$24,2)),$C243,$D243,$E243,$F243,2016,$I243,1,$H243,$G243*$H243,Options!$B$8)))","v":4243.1014564171001},{"$f":"IF(AND(OR(Calculations!$E$2=\"Orkney Health Board\",Calculations!$E$2=\"Orkney Islands Local Authority\"),$F243=1),0,IF(AND(OR(Calculations!$E$2=\"Shetland Health Board\",Calculations!$E$2=\"Western Isles Health Board\",Calculations!$E$2=\"Shetland Islands Local Authority\",Calculations!$E$2=\"Eilean Siar Local Authority\"),OR($F243=1,$F243=5)),0,new_yllv2(VALUE(LEFT(Options!$B$24,2)),$C243,$D243,$E243,$F243,2016,$I243+$J243,1,$H243,$G243*$H243,Options!$B$8)))","v":4236.3368317929999},{"$f":"IF(AND(OR(Calculations!$E$2=\"Orkney Health Board\",Calculations!$E$2=\"Orkney Islands Local Authority\"),$F243=1),0,IF(AND(OR(Calculations!$E$2=\"Shetland Health Board\",Calculations!$E$2=\"Western Isles Health Board\",Calculations!$E$2=\"Shetland Islands Local Authority\",Calculations!$E$2=\"Eilean Siar Local Authority\"),OR($F243=1,$F243=5)),0,hosp_count(VALUE(LEFT(Options!$B$24,2)),$C243,$E243,$F243,2016,$I243,1,$H243,$G243*$H243, Options!$B$8)))","v":8229.6006133826995},{"$f":"IF(AND(OR(Calculations!$E$2=\"Orkney Health Board\",Calculations!$E$2=\"Orkney Islands Local Authority\"),$F243=1),0,IF(AND(OR(Calculations!$E$2=\"Shetland Health Board\",Calculations!$E$2=\"Western Isles Health Board\",Calculations!$E$2=\"Shetland Islands Local Authority\",Calculations!$E$2=\"Eilean Siar Local Authority\"),OR($F243=1,$F243=5)),0,hosp_count(VALUE(LEFT(Options!$B$24,2)),$C243,$E243,$F243,2016,$I243+$J243,1,$H243,$G243*$H243, Options!$B$8)))","v":8202.1042258724992},{"$f":"IF(AND(OR(Calculations!$E$2=\"Orkney Health Board\",Calculations!$E$2=\"Orkney Islands Local Authority\"),$F243=1),0,IF(AND(OR(Calculations!$E$2=\"Shetland Health Board\",Calculations!$E$2=\"Western Isles Health Board\",Calculations!$E$2=\"Shetland Islands Local Authority\",Calculations!$E$2=\"Eilean Siar Local Authority\"),OR($F243=1,$F243=5)),0,prem_mort(VALUE(LEFT(Options!$B$24,2)),$C243,$E243,$F243,2016,$I243,1,$H243,$G243*$H243,Options!$B$8)))","v":227.2684107739},{"$f":"IF(AND(OR(Calculations!$E$2=\"Orkney Health Board\",Calculations!$E$2=\"Orkney Islands Local Authority\"),$F243=1),0,IF(AND(OR(Calculations!$E$2=\"Shetland Health Board\",Calculations!$E$2=\"Western Isles Health Board\",Calculations!$E$2=\"Shetland Islands Local Authority\",Calculations!$E$2=\"Eilean Siar Local Authority\"),OR($F243=1,$F243=5)),0,prem_mort(VALUE(LEFT(Options!$B$24,2)),$C243,$E243,$F243,2016,$I243+$J243,1,$H243,$G243*$H243,Options!$B$8)))","v":226.90608488949999},710.19159018124435,709.05935717477576,13259.277698875347,13238.138907512266,25716.698269999997,25630.774744140803,710.19159018124435,709.05935717477576,4261149.5410874663,4254356.1430486543,79555666.193252087,79428833.44507359,154300189.61999997,153784648.46484482,4261149.5410874663,4254356.1430486543,6000]
[null,"Male 65-69",67.054419999999993,82.954419999999999,"male",5,{"$f":"HLOOKUP(Calculations!$E$2,'Prevalence Rates'!$C$3:$BC$249,'Prevalence Rates'!$BD244,FALSE)","v":6.0233165858855992E-2},{"$f":"HLOOKUP(Calculations!$E$2,'Population 2016'!$C$3:$BC$249,'Population 2016'!BD244,FALSE)","v":31688},0,{"$f":"HLOOKUP(Results!E$4,Targeting!$C$3:$F$249,Targeting!$G244,FALSE)","v":938},{"$f":"IF(AND(OR(Calculations!$E$2=\"Orkney Health Board\",Calculations!$E$2=\"Orkney Islands Local Authority\"),$F244=1),0,IF(AND(OR(Calculations!$E$2=\"Shetland Health Board\",Calculations!$E$2=\"Western Isles Health Board\",Calculations!$E$2=\"Shetland Islands Local Authority\",Calculations!$E$2=\"Eilean Siar Local Authority\"),OR($F244=1,$F244=5)),0,new_ci(VALUE(LEFT(Options!$B$24,2)),$C244,$E244,$F244,2016,$I244,1,$H244,$G244*$H244,Options!$B$8)))","v":330.47080282069999},{"$f":"IF(AND(OR(Calculations!$E$2=\"Orkney Health Board\",Calculations!$E$2=\"Orkney Islands Local Authority\"),$F244=1),0,IF(AND(OR(Calculations!$E$2=\"Shetland Health Board\",Calculations!$E$2=\"Western Isles Health Board\",Calculations!$E$2=\"Shetland Islands Local Authority\",Calculations!$E$2=\"Eilean Siar Local Authority\"),OR($F244=1,$F244=5)),0,new_ci(VALUE(LEFT(Options!$B$24,2)),$C244,$E244,$F244,2016,$I244+$J244,1,$H244,$G244*$H244,Options!$B$8)))","v":329.9457209263},{"$f":"IF(AND(OR(Calculations!$E$2=\"Orkney Health Board\",Calculations!$E$2=\"Orkney Islands Local Authority\"),$F244=1),0,IF(AND(OR(Calculations!$E$2=\"Shetland Health Board\",Calculations!$E$2=\"Western Isles Health Board\",Calculations!$E$2=\"Shetland Islands Local Authority\",Calculations!$E$2=\"Eilean Siar Local Authority\"),OR($F244=1,$F244=5)),0,new_yllv2(VALUE(LEFT(Options!$B$24,2)),$C244,$D244,$E244,$F244,2016,$I244,1,$H244,$G244*$H244,Options!$B$8)))","v":4924.0149620284001},{"$f":"IF(AND(OR(Calculations!$E$2=\"Orkney Health Board\",Calculations!$E$2=\"Orkney Islands Local Authority\"),$F244=1),0,IF(AND(OR(Calculations!$E$2=\"Shetland Health Board\",Calculations!$E$2=\"Western Isles Health Board\",Calculations!$E$2=\"Shetland Islands Local Authority\",Calculations!$E$2=\"Eilean Siar Local Authority\"),OR($F244=1,$F244=5)),0,new_yllv2(VALUE(LEFT(Options!$B$24,2)),$C244,$D244,$E244,$F244,2016,$I244+$J244,1,$H244,$G244*$H244,Options!$B$8)))","v":4916.1912418019001},{"$f":"IF(AND(OR(Calculations!$E$2=\"Orkney Health Board\",Calculations!$E$2=\"Orkney Islands Local Authority\"),$F244=1),0,IF(AND(OR(Calculations!$E$2=\"Shetland Health Board\",Calculations!$E$2=\"Western Isles Health Board\",Calculations!$E$2=\"Shetland Islands Local Authority\",Calculations!$E$2=\"Eilean Siar Local Authority\"),OR($F244=1,$F244=5)),0,hosp_count(VALUE(LEFT(Options!$B$24,2)),$C244,$E244,$F244,2016,$I244,1,$H244,$G244*$H244, Options!$B$8)))","v":9770.2259477183998},{"$f":"IF(AND(OR(Calculations!$E$2=\"Orkney Health Board\",Calculations!$E$2=\"Orkney Islands Local Authority\"),$F244=1),0,IF(AND(OR(Calculations!$E$2=\"Shetland Health Board\",Calculations!$E$2=\"Western Isles Health Board\",Calculations!$E$2=\"Shetland Islands Local Authority\",Calculations!$E$2=\"Eilean Siar Local Authority\"),OR($F244=1,$F244=5)),0,hosp_count(VALUE(LEFT(Options!$B$24,2)),$C244,$E244,$F244,2016,$I244+$J244,1,$H244,$G244*$H244, Options!$B$8)))","v":9737.6073933898006},{"$f":"IF(AND(OR(Calculations!$E$2=\"Orkney Health Board\",Calculations!$E$2=\"Orkney Islands Local Authority\"),$F244=1),0,IF(AND(OR(Calculations!$E$2=\"Shetland Health Board\",Calculations!$E$2=\"Western Isles Health Board\",Calculations!$E$2=\"Shetland Islands Local Authority\",Calculations!$E$2=\"Eilean Siar Local Authority\"),OR($F244=1,$F244=5)),0,prem_mort(VALUE(LEFT(Options!$B$24,2)),$C244,$E244,$F244,2016,$I244,1,$H244,$G244*$H244,Options!$B$8)))","v":330.47080282069999},{"$f":"IF(AND(OR(Calculations!$E$2=\"Orkney Health Board\",Calculations!$E$2=\"Orkney Islands Local Authority\"),$F244=1),0,IF(AND(OR(Calculations!$E$2=\"Shetland Health Board\",Calculations!$E$2=\"Western Isles Health Board\",Calculations!$E$2=\"Shetland Islands Local Authority\",Calculations!$E$2=\"Eilean Siar Local Authority\"),OR($F244=1,$F244=5)),0,prem_mort(VALUE(LEFT(Options!$B$24,2)),$C244,$E244,$F244,2016,$I244+$J244,1,$H244,$G244*$H244,Options!$B$8)))","v":329.9457209263},1042.8894307646428,1041.23239373359,15539.052518393084,15514.362666630586,30832.573679999998,30729.637065734034,1042.8894307646428,1041.23239373359,5735891.8692055354,5726778.165534745,85464788.851161957,85328994.666468218,169579155.23999998,169013003.86153719,5735891.8692055354,5726778.165534745,5500]
[null,"Male 70-74",71.891098,84.341099999999997,"male",5,{"$f":"HLOOKUP(Calculations!$E$2,'Prevalence Rates'!$C$3:$BC$249,'Prevalence Rates'!$BD245,FALSE)","v":6.0233165858855992E-2},{"$f":"HLOOKUP(Calculations!$E$2,'Population 2016'!$C$3:$BC$249,'Population 2016'!BD245,FALSE)","v":22663},0,{"$f":"HLOOKUP(Results!E$4,Targeting!$C$3:$F$249,Targeting!$G245,FALSE)","v":671},{"$f":"IF(AND(OR(Calculations!$E$2=\"Orkney Health Board\",Calculations!$E$2=\"Orkney Islands Local Authority\"),$F245=1),0,IF(AND(OR(Calculations!$E$2=\"Shetland Health Board\",Calculations!$E$2=\"Western Isles Health Board\",Calculations!$E$2=\"Shetland Islands Local Authority\",Calculations!$E$2=\"Eilean Siar Local Authority\"),OR($F245=1,$F245=5)),0,new_ci(VALUE(LEFT(Options!$B$24,2)),$C245,$E245,$F245,2016,$I245,1,$H245,$G245*$H245,Options!$B$8)))","v":339.73064627769998},{"$f":"IF(AND(OR(Calculations!$E$2=\"Orkney Health Board\",Calculations!$E$2=\"Orkney Islands Local Authority\"),$F245=1),0,IF(AND(OR(Calculations!$E$2=\"Shetland Health Board\",Calculations!$E$2=\"Western Isles Health Board\",Calculations!$E$2=\"Shetland Islands Local Authority\",Calculations!$E$2=\"Eilean Siar Local Authority\"),OR($F245=1,$F245=5)),0,new_ci(VALUE(LEFT(Options!$B$24,2)),$C245,$E245,$F245,2016,$I245+$J245,1,$H245,$G245*$H245,Options!$B$8)))","v":339.19266115750003},{"$f":"IF(AND(OR(Calculations!$E$2=\"Orkney Health Board\",Calculations!$E$2=\"Orkney Islands Local Authority\"),$F245=1),0,IF(AND(OR(Calculations!$E$2=\"Shetland Health Board\",Calculations!$E$2=\"Western Isles Health Board\",Calculations!$E$2=\"Shetland Islands Local Authority\",Calculations!$E$2=\"Eilean Siar Local Authority\"),OR($F245=1,$F245=5)),0,new_yllv2(VALUE(LEFT(Options!$B$24,2)),$C245,$D245,$E245,$F245,2016,$I245,1,$H245,$G245*$H245,Options!$B$8)))","v":3889.9165793410002},{"$f":"IF(AND(OR(Calculations!$E$2=\"Orkney Health Board\",Calculations!$E$2=\"Orkney Islands Local Authority\"),$F245=1),0,IF(AND(OR(Calculations!$E$2=\"Shetland Health Board\",Calculations!$E$2=\"Western Isles Health Board\",Calculations!$E$2=\"Shetland Islands Local Authority\",Calculations!$E$2=\"Eilean Siar Local Authority\"),OR($F245=1,$F245=5)),0,new_yllv2(VALUE(LEFT(Options!$B$24,2)),$C245,$D245,$E245,$F245,2016,$I245+$J245,1,$H245,$G245*$H245,Options!$B$8)))","v":3883.7566486387},{"$f":"IF(AND(OR(Calculations!$E$2=\"Orkney Health Board\",Calculations!$E$2=\"Orkney Islands Local Authority\"),$F245=1),0,IF(AND(OR(Calculations!$E$2=\"Shetland Health Board\",Calculations!$E$2=\"Western Isles Health Board\",Calculations!$E$2=\"Shetland Islands Local Authority\",Calculations!$E$2=\"Eilean Siar Local Authority\"),OR($F245=1,$F245=5)),0,hosp_count(VALUE(LEFT(Options!$B$24,2)),$C245,$E245,$F245,2016,$I245,1,$H245,$G245*$H245, Options!$B$8)))","v":8296.3359118624994},{"$f":"IF(AND(OR(Calculations!$E$2=\"Orkney Health Board\",Calculations!$E$2=\"Orkney Islands Local Authority\"),$F245=1),0,IF(AND(OR(Calculations!$E$2=\"Shetland Health Board\",Calculations!$E$2=\"Western Isles Health Board\",Calculations!$E$2=\"Shetland Islands Local Authority\",Calculations!$E$2=\"Eilean Siar Local Authority\"),OR($F245=1,$F245=5)),0,hosp_count(VALUE(LEFT(Options!$B$24,2)),$C245,$E245,$F245,2016,$I245+$J245,1,$H245,$G245*$H245, Options!$B$8)))","v":8268.6318440447994},{"$f":"IF(AND(OR(Calculations!$E$2=\"Orkney Health Board\",Calculations!$E$2=\"Orkney Islands Local Authority\"),$F245=1),0,IF(AND(OR(Calculations!$E$2=\"Shetland Health Board\",Calculations!$E$2=\"Western Isles Health Board\",Calculations!$E$2=\"Shetland Islands Local Authority\",Calculations!$E$2=\"Eilean Siar Local Authority\"),OR($F245=1,$F245=5)),0,prem_mort(VALUE(LEFT(Options!$B$24,2)),$C245,$E245,$F245,2016,$I245,1,$H245,$G245*$H245,Options!$B$8)))","v":339.73064627769998},{"$f":"IF(AND(OR(Calculations!$E$2=\"Orkney Health Board\",Calculations!$E$2=\"Orkney Islands Local Authority\"),$F245=1),0,IF(AND(OR(Calculations!$E$2=\"Shetland Health Board\",Calculations!$E$2=\"Western Isles Health Board\",Calculations!$E$2=\"Shetland Islands Local Authority\",Calculations!$E$2=\"Eilean Siar Local Authority\"),OR($F245=1,$F245=5)),0,prem_mort(VALUE(LEFT(Options!$B$24,2)),$C245,$E245,$F245,2016,$I245+$J245,1,$H245,$G245*$H245,Options!$B$8)))","v":339.19266115750003},1499.0541688112783,1496.6803210409037,17164.173230997661,17136.992669279003,36607.403749999998,36485.160146691967,1499.0541688112783,1496.6803210409037,7495270.8440563912,7483401.605204518,85820866.154988304,85684963.346395016,183037018.75,182425800.73345983,7495270.8440563912,7483401.605204518,5000]
[null,"Male 75-79",76.907700000000006,86.357700000000008,"male",5,{"$f":"HLOOKUP(Calculations!$E$2,'Prevalence Rates'!$C$3:$BC$249,'Prevalence Rates'!$BD246,FALSE)","v":6.0233165858855992E-2},{"$f":"HLOOKUP(Calculations!$E$2,'Population 2016'!$C$3:$BC$249,'Population 2016'!BD246,FALSE)","v":16475},0,{"$f":"HLOOKUP(Results!E$4,Targeting!$C$3:$F$249,Targeting!$G246,FALSE)","v":488},{"$f":"IF(AND(OR(Calculations!$E$2=\"Orkney Health Board\",Calculations!$E$2=\"Orkney Islands Local Authority\"),$F246=1),0,IF(AND(OR(Calculations!$E$2=\"Shetland Health Board\",Calculations!$E$2=\"Western Isles Health Board\",Calculations!$E$2=\"Shetland Islands Local Authority\",Calculations!$E$2=\"Eilean Siar Local Authority\"),OR($F246=1,$F246=5)),0,new_ci(VALUE(LEFT(Options!$B$24,2)),$C246,$E246,$F246,2016,$I246,1,$H246,$G246*$H246,Options!$B$8)))","v":359.4297157474},{"$f":"IF(AND(OR(Calculations!$E$2=\"Orkney Health Board\",Calculations!$E$2=\"Orkney Islands Local Authority\"),$F246=1),0,IF(AND(OR(Calculations!$E$2=\"Shetland Health Board\",Calculations!$E$2=\"Western Isles Health Board\",Calculations!$E$2=\"Shetland Islands Local Authority\",Calculations!$E$2=\"Eilean Siar Local Authority\"),OR($F246=1,$F246=5)),0,new_ci(VALUE(LEFT(Options!$B$24,2)),$C246,$E246,$F246,2016,$I246+$J246,1,$H246,$G246*$H246,Options!$B$8)))","v":358.86335143859998},{"$f":"IF(AND(OR(Calculations!$E$2=\"Orkney Health Board\",Calculations!$E$2=\"Orkney Islands Local Authority\"),$F246=1),0,IF(AND(OR(Calculations!$E$2=\"Shetland Health Board\",Calculations!$E$2=\"Western Isles Health Board\",Calculations!$E$2=\"Shetland Islands Local Authority\",Calculations!$E$2=\"Eilean Siar Local Authority\"),OR($F246=1,$F246=5)),0,new_yllv2(VALUE(LEFT(Options!$B$24,2)),$C246,$D246,$E246,$F246,2016,$I246,1,$H246,$G246*$H246,Options!$B$8)))","v":3037.1810980655},{"$f":"IF(AND(OR(Calculations!$E$2=\"Orkney Health Board\",Calculations!$E$2=\"Orkney Islands Local Authority\"),$F246=1),0,IF(AND(OR(Calculations!$E$2=\"Shetland Health Board\",Calculations!$E$2=\"Western Isles Health Board\",Calculations!$E$2=\"Shetland Islands Local Authority\",Calculations!$E$2=\"Eilean Siar Local Authority\"),OR($F246=1,$F246=5)),0,new_yllv2(VALUE(LEFT(Options!$B$24,2)),$C246,$D246,$E246,$F246,2016,$I246+$J246,1,$H246,$G246*$H246,Options!$B$8)))","v":3032.3953196562002},{"$f":"IF(AND(OR(Calculations!$E$2=\"Orkney Health Board\",Calculations!$E$2=\"Orkney Islands Local Authority\"),$F246=1),0,IF(AND(OR(Calculations!$E$2=\"Shetland Health Board\",Calculations!$E$2=\"Western Isles Health Board\",Calculations!$E$2=\"Shetland Islands Local Authority\",Calculations!$E$2=\"Eilean Siar Local Authority\"),OR($F246=1,$F246=5)),0,hosp_count(VALUE(LEFT(Options!$B$24,2)),$C246,$E246,$F246,2016,$I246,1,$H246,$G246*$H246, Options!$B$8)))","v":7206.5449118525003},{"$f":"IF(AND(OR(Calculations!$E$2=\"Orkney Health Board\",Calculations!$E$2=\"Orkney Islands Local Authority\"),$F246=1),0,IF(AND(OR(Calculations!$E$2=\"Shetland Health Board\",Calculations!$E$2=\"Western Isles Health Board\",Calculations!$E$2=\"Shetland Islands Local Authority\",Calculations!$E$2=\"Eilean Siar Local Authority\"),OR($F246=1,$F246=5)),0,hosp_count(VALUE(LEFT(Options!$B$24,2)),$C246,$E246,$F246,2016,$I246+$J246,1,$H246,$G246*$H246, Options!$B$8)))","v":7182.4695075635},{"$f":"IF(AND(OR(Calculations!$E$2=\"Orkney Health Board\",Calculations!$E$2=\"Orkney Islands Local Authority\"),$F246=1),0,IF(AND(OR(Calculations!$E$2=\"Shetland Health Board\",Calculations!$E$2=\"Western Isles Health Board\",Calculations!$E$2=\"Shetland Islands Local Authority\",Calculations!$E$2=\"Eilean Siar Local Authority\"),OR($F246=1,$F246=5)),0,prem_mort(VALUE(LEFT(Options!$B$24,2)),$C246,$E246,$F246,2016,$I246,1,$H246,$G246*$H246,Options!$B$8)))","v":0},{"$f":"IF(AND(OR(Calculations!$E$2=\"Orkney Health Board\",Calculations!$E$2=\"Orkney Islands Local Authority\"),$F246=1),0,IF(AND(OR(Calculations!$E$2=\"Shetland Health Board\",Calculations!$E$2=\"Western Isles Health Board\",Calculations!$E$2=\"Shetland Islands Local Authority\",Calculations!$E$2=\"Eilean Siar Local Authority\"),OR($F246=1,$F246=5)),0,prem_mort(VALUE(LEFT(Options!$B$24,2)),$C246,$E246,$F246,2016,$I246+$J246,1,$H246,$G246*$H246,Options!$B$8)))","v":0},2181.6674703939302,2178.2297507654021,18435.09012482853,18406.041393967833,43742.305990000001,43596.173035286803,0,0,8726669.8815757204,8712919.0030616075,73740360.499314114,73624165.575871333,174969223.96000001,174384692.14114723,0,0,4000]
[null,"Male 80-84",81.797089,88.627089999999995,"male",5,{"$f":"HLOOKUP(Calculations!$E$2,'Prevalence Rates'!$C$3:$BC$249,'Prevalence Rates'!$BD247,FALSE)","v":6.0233165858855992E-2},{"$f":"HLOOKUP(Calculations!$E$2,'Population 2016'!$C$3:$BC$249,'Population 2016'!BD247,FALSE)","v":11823},0,{"$f":"HLOOKUP(Results!E$4,Targeting!$C$3:$F$249,Targeting!$G247,FALSE)","v":350},{"$f":"IF(AND(OR(Calculations!$E$2=\"Orkney Health Board\",Calculations!$E$2=\"Orkney Islands Local Authority\"),$F247=1),0,IF(AND(OR(Calculations!$E$2=\"Shetland Health Board\",Calculations!$E$2=\"Western Isles Health Board\",Calculations!$E$2=\"Shetland Islands Local Authority\",Calculations!$E$2=\"Eilean Siar Local Authority\"),OR($F247=1,$F247=5)),0,new_ci(VALUE(LEFT(Options!$B$24,2)),$C247,$E247,$F247,2016,$I247,1,$H247,$G247*$H247,Options!$B$8)))","v":371.26951615090002},{"$f":"IF(AND(OR(Calculations!$E$2=\"Orkney Health Board\",Calculations!$E$2=\"Orkney Islands Local Authority\"),$F247=1),0,IF(AND(OR(Calculations!$E$2=\"Shetland Health Board\",Calculations!$E$2=\"Western Isles Health Board\",Calculations!$E$2=\"Shetland Islands Local Authority\",Calculations!$E$2=\"Eilean Siar Local Authority\"),OR($F247=1,$F247=5)),0,new_ci(VALUE(LEFT(Options!$B$24,2)),$C247,$E247,$F247,2016,$I247+$J247,1,$H247,$G247*$H247,Options!$B$8)))","v":370.6892915409},{"$f":"IF(AND(OR(Calculations!$E$2=\"Orkney Health Board\",Calculations!$E$2=\"Orkney Islands Local Authority\"),$F247=1),0,IF(AND(OR(Calculations!$E$2=\"Shetland Health Board\",Calculations!$E$2=\"Western Isles Health Board\",Calculations!$E$2=\"Shetland Islands Local Authority\",Calculations!$E$2=\"Eilean Siar Local Authority\"),OR($F247=1,$F247=5)),0,new_yllv2(VALUE(LEFT(Options!$B$24,2)),$C247,$D247,$E247,$F247,2016,$I247,1,$H247,$G247*$H247,Options!$B$8)))","v":2164.5016504292998},{"$f":"IF(AND(OR(Calculations!$E$2=\"Orkney Health Board\",Calculations!$E$2=\"Orkney Islands Local Authority\"),$F247=1),0,IF(AND(OR(Calculations!$E$2=\"Shetland Health Board\",Calculations!$E$2=\"Western Isles Health Board\",Calculations!$E$2=\"Shetland Islands Local Authority\",Calculations!$E$2=\"Eilean Siar Local Authority\"),OR($F247=1,$F247=5)),0,new_yllv2(VALUE(LEFT(Options!$B$24,2)),$C247,$D247,$E247,$F247,2016,$I247+$J247,1,$H247,$G247*$H247,Options!$B$8)))","v":2161.1189403726999},{"$f":"IF(AND(OR(Calculations!$E$2=\"Orkney Health Board\",Calculations!$E$2=\"Orkney Islands Local Authority\"),$F247=1),0,IF(AND(OR(Calculations!$E$2=\"Shetland Health Board\",Calculations!$E$2=\"Western Isles Health Board\",Calculations!$E$2=\"Shetland Islands Local Authority\",Calculations!$E$2=\"Eilean Siar Local Authority\"),OR($F247=1,$F247=5)),0,hosp_count(VALUE(LEFT(Options!$B$24,2)),$C247,$E247,$F247,2016,$I247,1,$H247,$G247*$H247, Options!$B$8)))","v":6151.7839448121003},{"$f":"IF(AND(OR(Calculations!$E$2=\"Orkney Health Board\",Calculations!$E$2=\"Orkney Islands Local Authority\"),$F247=1),0,IF(AND(OR(Calculations!$E$2=\"Shetland Health Board\",Calculations!$E$2=\"Western Isles Health Board\",Calculations!$E$2=\"Shetland Islands Local Authority\",Calculations!$E$2=\"Eilean Siar Local Authority\"),OR($F247=1,$F247=5)),0,hosp_count(VALUE(LEFT(Options!$B$24,2)),$C247,$E247,$F247,2016,$I247+$J247,1,$H247,$G247*$H247, Options!$B$8)))","v":6131.2442719818},{"$f":"IF(AND(OR(Calculations!$E$2=\"Orkney Health Board\",Calculations!$E$2=\"Orkney Islands Local Authority\"),$F247=1),0,IF(AND(OR(Calculations!$E$2=\"Shetland Health Board\",Calculations!$E$2=\"Western Isles Health Board\",Calculations!$E$2=\"Shetland Islands Local Authority\",Calculations!$E$2=\"Eilean Siar Local Authority\"),OR($F247=1,$F247=5)),0,prem_mort(VALUE(LEFT(Options!$B$24,2)),$C247,$E247,$F247,2016,$I247,1,$H247,$G247*$H247,Options!$B$8)))","v":0},{"$f":"IF(AND(OR(Calculations!$E$2=\"Orkney Health Board\",Calculations!$E$2=\"Orkney Islands Local Authority\"),$F247=1),0,IF(AND(OR(Calculations!$E$2=\"Shetland Health Board\",Calculations!$E$2=\"Western Isles Health Board\",Calculations!$E$2=\"Shetland Islands Local Authority\",Calculations!$E$2=\"Eilean Siar Local Authority\"),OR($F247=1,$F247=5)),0,prem_mort(VALUE(LEFT(Options!$B$24,2)),$C247,$E247,$F247,2016,$I247+$J247,1,$H247,$G247*$H247,Options!$B$8)))","v":0},3140.2310424672255,3135.3234504009138,18307.550117815274,18278.938851160448,52032.343269999998,51858.616865277843,0,0,7850577.6061680634,7838308.6260022847,45768875.294538185,45697347.127901122,130080858.175,129646542.16319461,0,0,2500]
[null,"Male 85-89",86.630752999999999,91.420750000000012,"male",5,{"$f":"HLOOKUP(Calculations!$E$2,'Prevalence Rates'!$C$3:$BC$249,'Prevalence Rates'!$BD248,FALSE)","v":6.0233165858855992E-2},{"$f":"HLOOKUP(Calculations!$E$2,'Population 2016'!$C$3:$BC$249,'Population 2016'!BD248,FALSE)","v":6067},0,{"$f":"HLOOKUP(Results!E$4,Targeting!$C$3:$F$249,Targeting!$G248,FALSE)","v":180},{"$f":"IF(AND(OR(Calculations!$E$2=\"Orkney Health Board\",Calculations!$E$2=\"Orkney Islands Local Authority\"),$F248=1),0,IF(AND(OR(Calculations!$E$2=\"Shetland Health Board\",Calculations!$E$2=\"Western Isles Health Board\",Calculations!$E$2=\"Shetland Islands Local Authority\",Calculations!$E$2=\"Eilean Siar Local Authority\"),OR($F248=1,$F248=5)),0,new_ci(VALUE(LEFT(Options!$B$24,2)),$C248,$E248,$F248,2016,$I248,1,$H248,$G248*$H248,Options!$B$8)))","v":272.5046184684},{"$f":"IF(AND(OR(Calculations!$E$2=\"Orkney Health Board\",Calculations!$E$2=\"Orkney Islands Local Authority\"),$F248=1),0,IF(AND(OR(Calculations!$E$2=\"Shetland Health Board\",Calculations!$E$2=\"Western Isles Health Board\",Calculations!$E$2=\"Shetland Islands Local Authority\",Calculations!$E$2=\"Eilean Siar Local Authority\"),OR($F248=1,$F248=5)),0,new_ci(VALUE(LEFT(Options!$B$24,2)),$C248,$E248,$F248,2016,$I248+$J248,1,$H248,$G248*$H248,Options!$B$8)))","v":272.08244196840002},{"$f":"IF(AND(OR(Calculations!$E$2=\"Orkney Health Board\",Calculations!$E$2=\"Orkney Islands Local Authority\"),$F248=1),0,IF(AND(OR(Calculations!$E$2=\"Shetland Health Board\",Calculations!$E$2=\"Western Isles Health Board\",Calculations!$E$2=\"Shetland Islands Local Authority\",Calculations!$E$2=\"Eilean Siar Local Authority\"),OR($F248=1,$F248=5)),0,new_yllv2(VALUE(LEFT(Options!$B$24,2)),$C248,$D248,$E248,$F248,2016,$I248,1,$H248,$G248*$H248,Options!$B$8)))","v":1032.7916864813999},{"$f":"IF(AND(OR(Calculations!$E$2=\"Orkney Health Board\",Calculations!$E$2=\"Orkney Islands Local Authority\"),$F248=1),0,IF(AND(OR(Calculations!$E$2=\"Shetland Health Board\",Calculations!$E$2=\"Western Isles Health Board\",Calculations!$E$2=\"Shetland Islands Local Authority\",Calculations!$E$2=\"Eilean Siar Local Authority\"),OR($F248=1,$F248=5)),0,new_yllv2(VALUE(LEFT(Options!$B$24,2)),$C248,$D248,$E248,$F248,2016,$I248+$J248,1,$H248,$G248*$H248,Options!$B$8)))","v":1031.1916388129},{"$f":"IF(AND(OR(Calculations!$E$2=\"Orkney Health Board\",Calculations!$E$2=\"Orkney Islands Local Authority\"),$F248=1),0,IF(AND(OR(Calculations!$E$2=\"Shetland Health Board\",Calculations!$E$2=\"Western Isles Health Board\",Calculations!$E$2=\"Shetland Islands Local Authority\",Calculations!$E$2=\"Eilean Siar Local Authority\"),OR($F248=1,$F248=5)),0,hosp_count(VALUE(LEFT(Options!$B$24,2)),$C248,$E248,$F248,2016,$I248,1,$H248,$G248*$H248, Options!$B$8)))","v":3747.6590122036},{"$f":"IF(AND(OR(Calculations!$E$2=\"Orkney Health Board\",Calculations!$E$2=\"Orkney Islands Local Authority\"),$F248=1),0,IF(AND(OR(Calculations!$E$2=\"Shetland Health Board\",Calculations!$E$2=\"Western Isles Health Board\",Calculations!$E$2=\"Shetland Islands Local Authority\",Calculations!$E$2=\"Eilean Siar Local Authority\"),OR($F248=1,$F248=5)),0,hosp_count(VALUE(LEFT(Options!$B$24,2)),$C248,$E248,$F248,2016,$I248+$J248,1,$H248,$G248*$H248, Options!$B$8)))","v":3735.1186329186999},{"$f":"IF(AND(OR(Calculations!$E$2=\"Orkney Health Board\",Calculations!$E$2=\"Orkney Islands Local Authority\"),$F248=1),0,IF(AND(OR(Calculations!$E$2=\"Shetland Health Board\",Calculations!$E$2=\"Western Isles Health Board\",Calculations!$E$2=\"Shetland Islands Local Authority\",Calculations!$E$2=\"Eilean Siar Local Authority\"),OR($F248=1,$F248=5)),0,prem_mort(VALUE(LEFT(Options!$B$24,2)),$C248,$E248,$F248,2016,$I248,1,$H248,$G248*$H248,Options!$B$8)))","v":0},{"$f":"IF(AND(OR(Calculations!$E$2=\"Orkney Health Board\",Calculations!$E$2=\"Orkney Islands Local Authority\"),$F248=1),0,IF(AND(OR(Calculations!$E$2=\"Shetland Health Board\",Calculations!$E$2=\"Western Isles Health Board\",Calculations!$E$2=\"Shetland Islands Local Authority\",Calculations!$E$2=\"Eilean Siar Local Authority\"),OR($F248=1,$F248=5)),0,prem_mort(VALUE(LEFT(Options!$B$24,2)),$C248,$E248,$F248,2016,$I248+$J248,1,$H248,$G248*$H248,Options!$B$8)))","v":0},4491.5875798318766,4484.629008874238,17023.103452800391,16996.730489746169,61771.20508,61564.506888391297,0,0,6737381.3697478147,6726943.5133113572,25534655.179200586,25495095.734619252,92656807.620000005,92346760.332586944,0,0,1500]
[null,"Male 90+",92.215477000000007,95.515479999999997,"male",5,{"$f":"HLOOKUP(Calculations!$E$2,'Prevalence Rates'!$C$3:$BC$249,'Prevalence Rates'!$BD249,FALSE)","v":6.0233165858855992E-2},{"$f":"HLOOKUP(Calculations!$E$2,'Population 2016'!$C$3:$BC$249,'Population 2016'!BD249,FALSE)","v":2678},0,{"$f":"HLOOKUP(Results!E$4,Targeting!$C$3:$F$249,Targeting!$G249,FALSE)","v":79},{"$f":"IF(AND(OR(Calculations!$E$2=\"Orkney Health Board\",Calculations!$E$2=\"Orkney Islands Local Authority\"),$F249=1),0,IF(AND(OR(Calculations!$E$2=\"Shetland Health Board\",Calculations!$E$2=\"Western Isles Health Board\",Calculations!$E$2=\"Shetland Islands Local Authority\",Calculations!$E$2=\"Eilean Siar Local Authority\"),OR($F249=1,$F249=5)),0,new_ci(VALUE(LEFT(Options!$B$24,2)),$C249,$E249,$F249,2016,$I249,1,$H249,$G249*$H249,Options!$B$8)))","v":181.1803491},{"$f":"IF(AND(OR(Calculations!$E$2=\"Orkney Health Board\",Calculations!$E$2=\"Orkney Islands Local Authority\"),$F249=1),0,IF(AND(OR(Calculations!$E$2=\"Shetland Health Board\",Calculations!$E$2=\"Western Isles Health Board\",Calculations!$E$2=\"Shetland Islands Local Authority\",Calculations!$E$2=\"Eilean Siar Local Authority\"),OR($F249=1,$F249=5)),0,new_ci(VALUE(LEFT(Options!$B$24,2)),$C249,$E249,$F249,2016,$I249+$J249,1,$H249,$G249*$H249,Options!$B$8)))","v":180.9064482158},{"$f":"IF(AND(OR(Calculations!$E$2=\"Orkney Health Board\",Calculations!$E$2=\"Orkney Islands Local Authority\"),$F249=1),0,IF(AND(OR(Calculations!$E$2=\"Shetland Health Board\",Calculations!$E$2=\"Western Isles Health Board\",Calculations!$E$2=\"Shetland Islands Local Authority\",Calculations!$E$2=\"Eilean Siar Local Authority\"),OR($F249=1,$F249=5)),0,new_yllv2(VALUE(LEFT(Options!$B$24,2)),$C249,$D249,$E249,$F249,2016,$I249,1,$H249,$G249*$H249,Options!$B$8)))","v":416.71534647099998},{"$f":"IF(AND(OR(Calculations!$E$2=\"Orkney Health Board\",Calculations!$E$2=\"Orkney Islands Local Authority\"),$F249=1),0,IF(AND(OR(Calculations!$E$2=\"Shetland Health Board\",Calculations!$E$2=\"Western Isles Health Board\",Calculations!$E$2=\"Shetland Islands Local Authority\",Calculations!$E$2=\"Eilean Siar Local Authority\"),OR($F249=1,$F249=5)),0,new_yllv2(VALUE(LEFT(Options!$B$24,2)),$C249,$D249,$E249,$F249,2016,$I249+$J249,1,$H249,$G249*$H249,Options!$B$8)))","v":416.08537361570001},{"$f":"IF(AND(OR(Calculations!$E$2=\"Orkney Health Board\",Calculations!$E$2=\"Orkney Islands Local Authority\"),$F249=1),0,IF(AND(OR(Calculations!$E$2=\"Shetland Health Board\",Calculations!$E$2=\"Western Isles Health Board\",Calculations!$E$2=\"Shetland Islands Local Authority\",Calculations!$E$2=\"Eilean Siar Local Authority\"),OR($F249=1,$F249=5)),0,hosp_count(VALUE(LEFT(Options!$B$24,2)),$C249,$E249,$F249,2016,$I249,1,$H249,$G249*$H249, Options!$B$8)))","v":2016.9131573994},{"$f":"IF(AND(OR(Calculations!$E$2=\"Orkney Health Board\",Calculations!$E$2=\"Orkney Islands Local Authority\"),$F249=1),0,IF(AND(OR(Calculations!$E$2=\"Shetland Health Board\",Calculations!$E$2=\"Western Isles Health Board\",Calculations!$E$2=\"Shetland Islands Local Authority\",Calculations!$E$2=\"Eilean Siar Local Authority\"),OR($F249=1,$F249=5)),0,hosp_count(VALUE(LEFT(Options!$B$24,2)),$C249,$E249,$F249,2016,$I249+$J249,1,$H249,$G249*$H249, Options!$B$8)))","v":2010.2026430328001},{"$f":"IF(AND(OR(Calculations!$E$2=\"Orkney Health Board\",Calculations!$E$2=\"Orkney Islands Local Authority\"),$F249=1),0,IF(AND(OR(Calculations!$E$2=\"Shetland Health Board\",Calculations!$E$2=\"Western Isles Health Board\",Calculations!$E$2=\"Shetland Islands Local Authority\",Calculations!$E$2=\"Eilean Siar Local Authority\"),OR($F249=1,$F249=5)),0,prem_mort(VALUE(LEFT(Options!$B$24,2)),$C249,$E249,$F249,2016,$I249,1,$H249,$G249*$H249,Options!$B$8)))","v":0},{"$f":"IF(AND(OR(Calculations!$E$2=\"Orkney Health Board\",Calculations!$E$2=\"Orkney Islands Local Authority\"),$F249=1),0,IF(AND(OR(Calculations!$E$2=\"Shetland Health Board\",Calculations!$E$2=\"Western Isles Health Board\",Calculations!$E$2=\"Shetland Islands Local Authority\",Calculations!$E$2=\"Eilean Siar Local Authority\"),OR($F249=1,$F249=5)),0,prem_mort(VALUE(LEFT(Options!$B$24,2)),$C249,$E249,$F249,2016,$I249+$J249,1,$H249,$G249*$H249,Options!$B$8)))","v":0},6765.5096751306946,6755.2818601867066,15560.692549327854,15537.168544275579,75314.158230000001,75063.578903390589,0,0,6765509.6751306942,6755281.8601867063,15560692.549327854,15537168.544275578,75314158.230000004,75063578.903390586,0,0,1000]

{"sheet":"Inequalities","index":7,"n_rows":18,"n_cols":25,"rows_kept":18,"cut":false,"hidden":true,"merged":[]}
["Relative Index of Inequality calculation"]
["Area:",{"$f":"Options!$B$11","v":"Scotland"}]
["Years:",{"$f":"Options!B24","v":2},null,null,null,null,null,"STANDARDISED RATES"]
[null,null,null,null,null,null,null,"Hospital Stays",null,null,null,null,null,"Premature Death",null,null,null,null,null,"Years of Life Lost (YLL)"]
[null,null,null,null,null,null,null,"Without intervention",null,"With intervention",null,"Difference","% Difference","Without intervention",null,"With intervention",null,"Difference","% Difference","Without intervention",null,"With intervention",null,"Difference","% Difference"]
[null,null,"a",null,"b","√a","b*√a","Y","Y*√a","Y","Y*√a",null,null,"Y","Y*√a","Y","Y*√a",null,null,"Y","Y*√a","Y","Y*√a"]
["SIMD quintile","Population","Proportion of total population","Cumulative proportion","Relative rank"]
[null,null,null,0," "]
["Q1 (most dep)",{"$f":"Calculations!$H$7","v":872234},{"$f":"B9/$B$14","v":0.19431413815281337},{"$f":"D8+C9","v":0.19431413815281337},{"$f":"D8+(0.5*C9)","v":9.7157069076406685E-2},{"$f":"SQRT(C9)","v":0.44081077363514309},{"$f":"E9*SQRT(C9)","v":4.2827882783693871E-2},{"$f":"Calculations!$AN7/($B$3-1)","v":29752.248162420005},{"$f":"SQRT($C9)*H9","v":13115.111529861128},{"$f":"Calculations!$AO7/($B$3-1)","v":29655.70702356171},{"$f":"SQRT($C9)*J9","v":13072.555155753384},null,null,{"$f":"Calculations!$AP7/($B$3-1)","v":679.71912275676686},{"$f":"SQRT($C9)*N9","v":299.6275123570112},{"$f":"Calculations!$AQ7/($B$3-1)","v":678.67312153335752},{"$f":"SQRT($C9)*P9","v":299.16642374849681},null,null,{"$f":"Calculations!$AL7/($B$3-1)","v":18759.166175818857},{"$f":"SQRT($C9)*T9","v":8269.2425547129187},{"$f":"Calculations!$AM7/($B$3-1)","v":18730.59049079306},{"$f":"SQRT($C9)*V9","v":8256.646084889544}]
["Q2",{"$f":"Calculations!$H$8","v":897032},{"$f":"B10/$B$14","v":0.19983857540005831},{"$f":"D9+C10","v":0.39415271355287168},{"$f":"D9+(0.5*C10)","v":0.29423342585284251},{"$f":"SQRT(C10)","v":0.44703308087887444},{"$f":"E10*SQRT(C10)","v":0.13153207485654206},{"$f":"Calculations!$AN8/($B$3-1)","v":24186.305889039999},10812.078836656416,{"$f":"Calculations!$AO8/($B$3-1)","v":24107.554860562148},10776.874521773581,null,null,{"$f":"Calculations!$AP8/($B$3-1)","v":477.45072122994304},213.43626687926206,{"$f":"Calculations!$AQ8/($B$3-1)","v":476.71258822229231},213.10629700675358,null,null,{"$f":"Calculations!$AL8/($B$3-1)","v":13200.793870367941},5901.1915539175416,{"$f":"Calculations!$AM8/($B$3-1)","v":13180.504770901938},5892.1216552749966]
["Q3",{"$f":"Calculations!$H$9","v":907978},{"$f":"B11/$B$14","v":0.2022770982691745},{"$f":"D10+C11","v":0.59642981182204613},{"$f":"D10+(0.5*C11)","v":0.49529126268745893},{"$f":"SQRT(C11)","v":0.44975226321740119},{"$f":"E11*SQRT(C11)","v":0.22275836634548904},{"$f":"Calculations!$AN9/($B$3-1)","v":20910.862622785},9404.7077904257148,{"$f":"Calculations!$AO9/($B$3-1)","v":20842.160549458731},9373.808877459498,null,null,{"$f":"Calculations!$AP9/($B$3-1)","v":386.64979469373588},173.89662023605123,{"$f":"Calculations!$AQ9/($B$3-1)","v":386.04387646280571},173.62410714036571,null,null,{"$f":"Calculations!$AL9/($B$3-1)","v":10699.29568379276},4812.0324486179661,{"$f":"Calculations!$AM9/($B$3-1)","v":10682.63811738675},4804.5406704271691]
["Q4",{"$f":"Calculations!$H$10","v":910792},{"$f":"B12/$B$14","v":0.20290399424521077},{"$f":"D11+C12","v":0.7993338060672569},{"$f":"D11+(0.5*C12)","v":0.69788180894465146},{"$f":"SQRT(C12)","v":0.45044865883384622},{"$f":"E12*SQRT(C12)","v":0.31435992486365677},{"$f":"Calculations!$AN10/($B$3-1)","v":18444.122953785001},8308.1304478990114,{"$f":"Calculations!$AO10/($B$3-1)","v":18382.862804604472},8280.5358958606812,null,null,{"$f":"Calculations!$AP10/($B$3-1)","v":307.09906748250165},138.3323630766177,{"$f":"Calculations!$AQ10/($B$3-1)","v":306.61201418774129},138.11297057321229,null,null,{"$f":"Calculations!$AL10/($B$3-1)","v":8504.2595745434719},3830.7323197280025,{"$f":"Calculations!$AM10/($B$3-1)","v":8490.8463383793351},3824.6903454872454]
["Q5 (least dep)",{"$f":"Calculations!$H$11","v":900747},{"$f":"B13/$B$14","v":0.20066619393274301},{"$f":"D12+C13","v":0.99999999999999989},{"$f":"D12+(0.5*C13)","v":0.8996669030336284},{"$f":"SQRT(C13)","v":0.44795780374131561},{"$f":"E13*SQRT(C13)","v":0.40301280998169531},{"$f":"Calculations!$AN11/($B$3-1)","v":16404.921966045004},7348.7128144571852,{"$f":"Calculations!$AO11/($B$3-1)","v":16350.34762415021},7324.2658121213663,null,null,{"$f":"Calculations!$AP11/($B$3-1)","v":226.22456861948226},101.33906091110981,{"$f":"Calculations!$AQ11/($B$3-1)","v":225.86509008780436},101.17802969756724,null,null,{"$f":"Calculations!$AL11/($B$3-1)","v":6269.3301725812862},2808.3953750386763,{"$f":"Calculations!$AM11/($B$3-1)","v":6259.4042313669797},2803.9489722122498]
["Total",{"$f":"SUM(B9:B13)","v":4488783},null,null,null,null,{"$f":"E14*SQRT(D14)","v":0},{"$f":"IF(OR(Calculations!$E$2=\"Orkney Health Board\",Calculations!$E$2=\"Orkney Islands Local Authority\"),AVERAGE(H10:H13),IF(OR(Calculations!$E$2=\"Shetland Health Board\",Calculations!$E$2=\"Western Isles Health Board\",Calculations!$E$2=\"Shetland Islands Local Authority\",Calculations!$E$2=\"Eilean Siar Local Authority\"),AVERAGE(H10:H12),AVERAGE(H9:H13)))","v":21939.692318815003},0,{"$f":"IF(OR(Calculations!$E$2=\"Orkney Health Board\",Calculations!$E$2=\"Orkney Islands Local Authority\"),AVERAGE(J10:J13),IF(OR(Calculations!$E$2=\"Shetland Health Board\",Calculations!$E$2=\"Western Isles Health Board\",Calculations!$E$2=\"Shetland Islands Local Authority\",Calculations!$E$2=\"Eilean Siar Local Authority\"),AVERAGE(J10:J12),AVERAGE(J9:J13)))","v":21867.726572467454},0,null,null,{"$f":"IF(OR(Calculations!$E$2=\"Orkney Health Board\",Calculations!$E$2=\"Orkney Islands Local Authority\"),AVERAGE(N10:N13),IF(OR(Calculations!$E$2=\"Shetland Health Board\",Calculations!$E$2=\"Western Isles Health Board\",Calculations!$E$2=\"Shetland Islands Local Authority\",Calculations!$E$2=\"Eilean Siar Local Authority\"),AVERAGE(N10:N12),AVERAGE(N9:N13)))","v":415.42865495648596},0,{"$f":"IF(OR(Calculations!$E$2=\"Orkney Health Board\",Calculations!$E$2=\"Orkney Islands Local Authority\"),AVERAGE(P10:P13),IF(OR(Calculations!$E$2=\"Shetland Health Board\",Calculations!$E$2=\"Western Isles Health Board\",Calculations!$E$2=\"Shetland Islands Local Authority\",Calculations!$E$2=\"Eilean Siar Local Authority\"),AVERAGE(P10:P12),AVERAGE(P9:P13)))","v":414.78133809880018},0,null,null,{"$f":"IF(OR(Calculations!$E$2=\"Orkney Health Board\",Calculations!$E$2=\"Orkney Islands Local Authority\"),AVERAGE(T10:T13),IF(OR(Calculations!$E$2=\"Shetland Health Board\",Calculations!$E$2=\"Western Isles Health Board\",Calculations!$E$2=\"Shetland Islands Local Authority\",Calculations!$E$2=\"Eilean Siar Local Authority\"),AVERAGE(T10:T12),AVERAGE(T9:T13)))","v":11486.569095420864},0,{"$f":"IF(OR(Calculations!$E$2=\"Orkney Health Board\",Calculations!$E$2=\"Orkney Islands Local Authority\"),AVERAGE(V10:V13),IF(OR(Calculations!$E$2=\"Shetland Health Board\",Calculations!$E$2=\"Western Isles Health Board\",Calculations!$E$2=\"Shetland Islands Local Authority\",Calculations!$E$2=\"Eilean Siar Local Authority\"),AVERAGE(V10:V12),AVERAGE(V9:V13)))","v":11468.796789765613},0]
[null,null,null,null,"Slope Index of Inequality =",null,null,{"$f":"IF(OR(Calculations!$E$2=\"Orkney Health Board\",Calculations!$E$2=\"Orkney Islands Local Authority\"),-LINEST(I10:I13,$F10:$G13,0),IF(OR(Calculations!$E$2=\"Shetland Health Board\",Calculations!$E$2=\"Western Isles Health Board\",Calculations!$E$2=\"Shetland Islands Local Authority\",Calculations!$E$2=\"Eilean Siar Local Authority\"),-LINEST(I10:I12,$F10:$G12,0),-LINEST(I9:I13,$F9:$G13,0)))","v":16090.340555944245},null,{"$f":"IF(OR(Calculations!$E$2=\"Orkney Health Board\",Calculations!$E$2=\"Orkney Islands Local Authority\"),-LINEST(K10:K13,$F10:$G13,0),IF(OR(Calculations!$E$2=\"Shetland Health Board\",Calculations!$E$2=\"Western Isles Health Board\",Calculations!$E$2=\"Shetland Islands Local Authority\",Calculations!$E$2=\"Eilean Siar Local Authority\"),-LINEST(K10:K12,$F10:$G12,0),-LINEST(K9:K13,$F9:$G13,0)))","v":16040.036076371191},null,{"$f":"H15-J15","v":50.304479573054778},{"$f":"L15*100/H15","v":0.31263775554129475},{"$f":"IF(OR(Calculations!$E$2=\"Orkney Health Board\",Calculations!$E$2=\"Orkney Islands Local Authority\"),-LINEST(O10:O13,$F10:$G13,0),IF(OR(Calculations!$E$2=\"Shetland Health Board\",Calculations!$E$2=\"Western Isles Health Board\",Calculations!$E$2=\"Shetland Islands Local Authority\",Calculations!$E$2=\"Eilean Siar Local Authority\"),-LINEST(O10:O12,$F10:$G12,0),-LINEST(O9:O13,$F9:$G13,0)))","v":534.19958161278305},null,{"$f":"IF(OR(Calculations!$E$2=\"Orkney Health Board\",Calculations!$E$2=\"Orkney Islands Local Authority\"),-LINEST(Q10:Q13,$F10:$G13,0),IF(OR(Calculations!$E$2=\"Shetland Health Board\",Calculations!$E$2=\"Western Isles Health Board\",Calculations!$E$2=\"Shetland Islands Local Authority\",Calculations!$E$2=\"Eilean Siar Local Authority\"),-LINEST(Q10:Q12,$F10:$G12,0),-LINEST(Q9:Q13,$F9:$G13,0)))","v":533.39427766789527},null,{"$f":"N15-P15","v":0.80530394488778256},{"$f":"R15*100/N15","v":0.15074963976132627},{"$f":"IF(OR(Calculations!$E$2=\"Orkney Health Board\",Calculations!$E$2=\"Orkney Islands Local Authority\"),-LINEST(U10:U13,$F10:$G13,0),IF(OR(Calculations!$E$2=\"Shetland Health Board\",Calculations!$E$2=\"Western Isles Health Board\",Calculations!$E$2=\"Shetland Islands Local Authority\",Calculations!$E$2=\"Eilean Siar Local Authority\"),-LINEST(U10:U12,$F10:$G12,0),-LINEST(U9:U13,$F9:$G13,0)))","v":14715.269067724279},null,{"$f":"IF(OR(Calculations!$E$2=\"Orkney Health Board\",Calculations!$E$2=\"Orkney Islands Local Authority\"),-LINEST(W10:W13,$F10:$G13,0),IF(OR(Calculations!$E$2=\"Shetland Health Board\",Calculations!$E$2=\"Western Isles Health Board\",Calculations!$E$2=\"Shetland Islands Local Authority\",Calculations!$E$2=\"Eilean Siar Local Authority\"),-LINEST(W10:W12,$F10:$G12,0),-LINEST(W9:W13,$F9:$G13,0)))","v":14693.36351769489},null,{"$f":"T15-V15","v":21.905550029388905},{"$f":"X15*100/T15","v":0.14886272162997971}]
[null,null,null,null,"Relative Index of Inequality =",null,null,{"$f":"H15/H14","v":0.73338952625810161},null,{"$f":"J15/J14","v":0.73350268137001429},null,{"$f":"H16-J16","v":-1.1315511191267724E-4},{"$f":"L16*100/H16","v":-1.5429060255334841E-2},{"$f":"N15/N14","v":1.2858996971904544},null,{"$f":"P15/P14","v":1.2859649860641553},null,{"$f":"N16-P16","v":-6.5288873700941608E-5},{"$f":"R16*100/N16","v":-5.0772913193455468E-3},{"$f":"T15/T14","v":1.281084799602219},null,{"$f":"V15/V14","v":1.2811599845248611},null,{"$f":"T16-V16","v":-7.5184922642135277E-5},{"$f":"X16*100/T16","v":-5.8688482343620379E-3}]
[null,null,null,null,"Absolute difference (Q1-Q5) =",null,null,{"$f":"IF(OR(Calculations!$E$2=\"Orkney Health Board\",Calculations!$E$2=\"Orkney Islands Local Authority\"),H10-H13,IF(OR(Calculations!$E$2=\"Shetland Health Board\",Calculations!$E$2=\"Western Isles Health Board\",Calculations!$E$2=\"Shetland Islands Local Authority\",Calculations!$E$2=\"Eilean Siar Local Authority\"),H10-H12,H9-H13))","v":13347.326196375001},null,{"$f":"IF(OR(Calculations!$E$2=\"Orkney Health Board\",Calculations!$E$2=\"Orkney Islands Local Authority\"),J10-J13,IF(OR(Calculations!$E$2=\"Shetland Health Board\",Calculations!$E$2=\"Western Isles Health Board\",Calculations!$E$2=\"Shetland Islands Local Authority\",Calculations!$E$2=\"Eilean Siar Local Authority\"),J10-J12,J9-J13))","v":13305.3593994115},null,{"$f":"H17-J17","v":41.96679696350111},{"$f":"L17*100/H17","v":0.31442100347333135},{"$f":"IF(OR(Calculations!$E$2=\"Orkney Health Board\",Calculations!$E$2=\"Orkney Islands Local Authority\"),N10-N13,IF(OR(Calculations!$E$2=\"Shetland Health Board\",Calculations!$E$2=\"Western Isles Health Board\",Calculations!$E$2=\"Shetland Islands Local Authority\",Calculations!$E$2=\"Eilean Siar Local Authority\"),N10-N12,N9-N13))","v":453.49455413728458},null,{"$f":"IF(OR(Calculations!$E$2=\"Orkney Health Board\",Calculations!$E$2=\"Orkney Islands Local Authority\"),P10-P13,IF(OR(Calculations!$E$2=\"Shetland Health Board\",Calculations!$E$2=\"Western Isles Health Board\",Calculations!$E$2=\"Shetland Islands Local Authority\",Calculations!$E$2=\"Eilean Siar Local Authority\"),P10-P12,P9-P13))","v":452.80803144555318},null,{"$f":"N17-P17","v":0.68652269173139757},{"$f":"R17*100/N17","v":0.15138499138923933},{"$f":"IF(OR(Calculations!$E$2=\"Orkney Health Board\",Calculations!$E$2=\"Orkney Islands Local Authority\"),T10-T13,IF(OR(Calculations!$E$2=\"Shetland Health Board\",Calculations!$E$2=\"Western Isles Health Board\",Calculations!$E$2=\"Shetland Islands Local Authority\",Calculations!$E$2=\"Eilean Siar Local Authority\"),T10-T12,T9-T13))","v":12489.836003237571},null,{"$f":"IF(OR(Calculations!$E$2=\"Orkney Health Board\",Calculations!$E$2=\"Orkney Islands Local Authority\"),V10-V13,IF(OR(Calculations!$E$2=\"Shetland Health Board\",Calculations!$E$2=\"Western Isles Health Board\",Calculations!$E$2=\"Shetland Islands Local Authority\",Calculations!$E$2=\"Eilean Siar Local Authority\"),V10-V12,V9-V13))","v":12471.18625942608},null,{"$f":"T17-V17","v":18.649743811491135},{"$f":"X17*100/T17","v":0.14931936501533577}]
[null,null,null,null,"Relative difference (Q1/Q5) =",null,null,{"$f":"IF(OR(Calculations!$E$2=\"Orkney Health Board\",Calculations!$E$2=\"Orkney Islands Local Authority\"),H10/H13,IF(OR(Calculations!$E$2=\"Shetland Health Board\",Calculations!$E$2=\"Western Isles Health Board\",Calculations!$E$2=\"Shetland Islands Local Authority\",Calculations!$E$2=\"Eilean Siar Local Authority\"),H10/H12,H9/H13))","v":1.8136171707492037},null,{"$f":"IF(OR(Calculations!$E$2=\"Orkney Health Board\",Calculations!$E$2=\"Orkney Islands Local Authority\"),J10/J13,IF(OR(Calculations!$E$2=\"Shetland Health Board\",Calculations!$E$2=\"Western Isles Health Board\",Calculations!$E$2=\"Shetland Islands Local Authority\",Calculations!$E$2=\"Eilean Siar Local Authority\"),J10/J12,J9/J13))","v":1.8137661476847671},null,{"$f":"H18-J18","v":-1.4897693556337188E-4},{"$f":"L18*100/H18","v":-8.2143540525605879E-3},{"$f":"IF(OR(Calculations!$E$2=\"Orkney Health Board\",Calculations!$E$2=\"Orkney Islands Local Authority\"),N10/N13,IF(OR(Calculations!$E$2=\"Shetland Health Board\",Calculations!$E$2=\"Western Isles Health Board\",Calculations!$E$2=\"Shetland Islands Local Authority\",Calculations!$E$2=\"Eilean Siar Local Authority\"),N10/N12,N9/N13))","v":3.0046211466097588},null,{"$f":"IF(OR(Calculations!$E$2=\"Orkney Health Board\",Calculations!$E$2=\"Orkney Islands Local Authority\"),P10/P13,IF(OR(Calculations!$E$2=\"Shetland Health Board\",Calculations!$E$2=\"Western Isles Health Board\",Calculations!$E$2=\"Shetland Islands Local Authority\",Calculations!$E$2=\"Eilean Siar Local Authority\"),P10/P12,P9/P13))","v":3.0047721020965454},null,{"$f":"N18-P18","v":-1.509554867866747E-4},{"$f":"R18*100/N18","v":-5.0241105091403671E-3},{"$f":"IF(OR(Calculations!$E$2=\"Orkney Health Board\",Calculations!$E$2=\"Orkney Islands Local Authority\"),T10/T13,IF(OR(Calculations!$E$2=\"Shetland Health Board\",Calculations!$E$2=\"Western Isles Health Board\",Calculations!$E$2=\"Shetland Islands Local Authority\",Calculations!$E$2=\"Eilean Siar Local Authority\"),T10/T12,T9/T13))","v":2.9922121916407378},null,{"$f":"IF(OR(Calculations!$E$2=\"Orkney Health Board\",Calculations!$E$2=\"Orkney Islands Local Authority\"),V10/V13,IF(OR(Calculations!$E$2=\"Shetland Health Board\",Calculations!$E$2=\"Western Isles Health Board\",Calculations!$E$2=\"Shetland Islands Local Authority\",Calculations!$E$2=\"Eilean Siar Local Authority\"),V10/V12,V9/V13))","v":2.992391895211171},null,{"$f":"T18-V18","v":-1.797035704331762E-4},{"$f":"X18*100/T18","v":-6.0057094525317826E-3}]

{"sheet":"Population 2016","index":8,"n_rows":249,"n_cols":56,"rows_kept":249,"cut":false,"hidden":true,"merged":[]}
["Population 2016 (16+ only)"]
[]
["SIMD","group","Aberdeen City Local Authority","Aberdeen City Region Deal","Aberdeenshire Local Authority","Angus Local Authority","Argyll & Bute Local Authority","Ayrshire & Arran Health Board","Borders Health Board","Clackmannanshire & Stirling IJB","Clackmannanshire Local Authority","Dumfries & Galloway Health Board","Dumfries & Galloway Local Authority","Dundee City Local Authority","East Ayrshire Local Authority","East Dunbartonshire Local Authority","East Lothian Local Authority","East Renfrewshire Local Authority","Edinburgh & SE Scotland City Region Deal","Edinburgh, City of Local Authority","Eilean Siar Local Authority","Falkirk Local Authority","Fife Health Board","Fife Local Authority","Forth Valley Health Board","Glasgow City Local Authority","Glasgow City Region Deal","Grampian Health Board","Greater Glasgow & Clyde Health Board","Highland Health Board","Highland Local Authority","Inverclyde Local Authority","Inverness & Highland City Region Deal","Lanarkshire Health Board","Lothian Health Board","Midlothian Local Authority","Moray Local Authority","North Ayrshire Local Authority","North Lanarkshire Local Authority","Orkney Health Board","Orkney Islands Local Authority","Perth & Kinross Local Authority","Renfrewshire Local Authority","Scotland","Scottish Borders Local Authority","Shetland Health Board","Shetland Islands Local Authority","South Ayrshire Local Authority","South Lanarkshire Local Authority","Stirling Local Authority","Tay Cities Region Deal ","Tayside Health Board","West Dunbartonshire Local Authority","West Lothian Local Authority","Western Isles Health Board",1]
[null,null,"popS12000033","Aber_deal","popS12000034","popS12000041","popS12000035","popS08000015","popS08000016","ClacksStirIJB","popS12000005","popS08000017","popS12000006","popS12000042","popS12000008","popS12000045","popS12000010","popS12000011","EdinSE_deal","popS12000036","popS12000013","popS12000014","popS08000018","popS12000015","popS08000019","popS12000046","GClyde_deal","popS08000020","popS08000021","popS08000022","popS12000017","popS12000018","Inver_deal","popS08000023","popS08000024","popS12000019","popS12000020","popS12000021","popS12000044","popS08000025","popS12000023","popS12000024","popS12000038","popS00000001","popS12000026","popS08000026","popS12000027","popS12000028","popS12000029","popS12000030","Tay_deal","popS08000027","popS12000039","popS12000040","popS08000028",2]
["All quintiles","16+ Males and Females",195653,408972,213319,97075,73892,308413,95528,120583,42326,125906,125906,124421,100941,88730,85101,75148,1132942,429806,22593,131021,305958,305958,251604,516583,1505157,488515,966842,268690,194798,66309,194798,538315,731456,71726,79543,112762,276091,18334,18334,126166,145976,4488783,95528,18967,18967,94710,262224,78257,653620,347662,74096,144823,22593,3]
["Q1 and Q2","16+ Males and Females",55772,76466,20694,23106,17866,167717,20594,42609,21032,44748,44748,68009,58204,18917,25984,11714,380156,118643,5432,56576,120625,120625,99185,329151,800085,89168,514066,67593,49727,36156,49727,286019,238937,32594,12702,67548,163920,2601,2601,20837,67935,1769266,20594,629,629,41965,122099,21577,232577,111952,50193,61716,5432,4]
["SIMD Q1 (most deprived)","16+ Males and Females",15706,20077,4371,6722,5398,92567,5141,19886,9977,9984,9984,43099,31424,4139,2919,4928,153150,55966,0,19042,59089,59089,38928,237443,481887,20712,343232,18565,13167,27666,13167,138655,88920,7071,635,44986,86094,0,0,6620,40910,872234,5141,0,0,16157,52561,9909,115530,56441,28146,22964,0,5]
["SIMD Q2",null,40066,56389,16323,16384,12468,75150,15453,22723,11055,34764,34764,24910,26780,14778,23065,6786,227006,62677,5432,37534,61536,61536,60257,91708,318198,68456,170834,49028,36560,8490,36560,147364,150017,25523,12067,22562,77826,2601,2601,14217,27025,897032,15453,629,629,25808,69538,11668,117047,55511,22047,38752,5432,6]
["SIMD Q3",null,30458,73451,42993,31913,30426,53711,31989,20856,8000,46905,46905,15883,17462,5452,18382,8332,231265,65662,15862,24167,66386,66386,45023,73726,236775,95627,135271,92816,62390,10471,62390,101504,132890,16953,22176,16287,50065,5744,5744,30213,25960,907978,31989,6241,6241,19962,51439,12856,144395,78009,11330,31893,15862,7]
["SIMD Q4",null,33670,111128,77458,24649,18051,45109,34098,29073,7505,22879,22879,21569,13653,16324,26540,11252,219384,69016,1299,25092,52998,52998,54165,60616,224957,141579,135338,82327,64276,11701,64276,89619,132288,11108,30451,18431,37360,8622,8622,52156,25824,910792,34098,12097,12097,13025,52259,21568,151372,98374,9621,25624,1299,8]
["SIMD Q5 (least deprived)",null,75753,147927,72174,17407,7549,41876,8847,28045,5789,11374,11374,18960,11622,48037,14195,43850,302137,176485,0,25186,65949,65949,53231,53090,243340,162141,182167,25954,18405,7981,18405,61173,227341,11071,14214,10496,24746,1367,1367,22960,26257,900747,8847,0,0,19758,36427,22256,125276,59327,2952,25590,0,9]
["SIMD Q1 (most deprived)","16+ Females",7940,10084,2144,3486,2800,49250,2661,10561,5216,5227,5227,22625,16592,2201,1560,2687,79990,29099,0,9861,30881,30881,20422,124184,253184,10434,180380,9647,6847,14769,6847,72804,46448,3734,350,24175,45017,0,0,3368,21320,457633,2661,0,0,8483,27787,5345,60360,29479,15219,12055,0,10]
["SIMD Q2",null,20589,29017,8428,8582,6570,39721,7980,11880,5783,18133,18133,12948,14006,7886,12341,3614,118897,32276,2752,19564,32365,32365,31444,46945,166820,35348,89074,25793,19223,4529,19223,77746,78552,13662,6331,12037,41225,1291,1291,7061,14478,469079,7980,289,289,13678,36521,6097,60956,28591,11622,20273,2752,11]
["SIMD Q3",null,14775,36682,21907,16368,15775,28008,16557,10891,4166,24265,24265,8282,8844,2911,9630,4472,119474,33598,8104,12476,34614,34614,23367,37875,123784,48192,70410,47689,31914,5526,31914,53374,68303,8881,11510,8619,26311,2915,2915,15578,13674,469093,16557,3067,3067,10545,27063,6725,74842,40228,5952,16194,8104,12]
["SIMD Q4",null,17048,56213,39165,12745,9303,23680,17825,14853,3589,11799,11799,11465,7065,8598,14037,6065,113758,35609,688,12801,27274,27274,27654,31260,116221,71636,70387,42063,32760,6043,32760,45834,68659,5845,15423,9678,18881,4382,4382,26672,13379,468792,17825,6029,6029,6937,26953,11264,78156,50882,5042,13168,688,13]
["SIMD Q5 (least deprived)",null,38569,74964,36395,9014,2838,21882,4614,14673,3026,6007,6007,9920,6015,24782,7409,23171,157070,92126,0,12867,34322,34322,27540,27520,126501,81756,94858,12542,9704,4256,9704,31643,118134,5603,6792,5410,12785,683,683,12164,13607,465079,4614,0,0,10457,18858,11647,65420,31098,1522,12996,0,14]
["SIMD Q1 (most deprived)","16+ Males",7766,9993,2227,3236,2598,43317,2480,9325,4761,4757,4757,20474,14832,1938,1359,2241,73160,26867,0,9181,28208,28208,18506,113259,228703,10278,162852,8918,6320,12897,6320,65851,42472,3337,285,20811,41077,0,0,3252,19590,414601,2480,0,0,7674,24774,4564,55170,26962,12927,10909,0,15]
["SIMD Q2",null,19477,27372,7895,7802,5898,35429,7473,10843,5272,16631,16631,11962,12774,6892,10724,3172,108109,30401,2680,17970,29171,29171,28813,44763,151378,33108,81760,23235,17337,3961,17337,69618,71465,11861,5736,10525,36601,1310,1310,7156,12547,427953,7473,340,340,12130,33017,5571,56091,26920,10425,18479,2680,16]
["SIMD Q3",null,15683,36769,21086,15545,14651,25703,15432,9965,3834,22640,22640,7601,8618,2541,8752,3860,111791,32064,7758,11691,31772,31772,21656,35851,112991,47435,64861,45127,30476,4945,30476,48130,64587,8072,10666,7668,23754,2829,2829,14635,12286,438885,15432,3174,3174,9417,24376,6131,69553,37781,5378,15699,7758,17]
["SIMD Q4",null,16622,54915,38293,11904,8748,21429,16273,14220,3916,11080,11080,10104,6588,7726,12503,5187,105626,33407,611,12291,25724,25724,26511,29356,108736,69943,64951,40264,31516,5658,31516,43785,63629,5263,15028,8753,18479,4240,4240,25484,12445,442000,16273,6068,6068,6088,25306,10304,73216,47492,4579,12456,611,18]
["SIMD Q5 (least deprived)",null,37184,72963,35779,8393,4711,19994,4233,13372,2763,5367,5367,9040,5607,23255,6786,20679,145067,84359,0,12319,31627,31627,25691,25570,116839,80385,87309,13412,8701,3725,8701,29530,109207,5468,7422,5086,11961,684,684,10796,12650,435668,4233,0,0,9301,17569,10609,59856,28229,1430,12594,0,19]
["All quintiles","Female 0-4",null,null,null,null,null,null,null,null,null,null,null,null,null,null,null,null,null,null,null,null,null,null,null,null,null,null,null,null,null,null,null,null,null,null,null,null,null,null,null,null,null,null,null,null,null,null,null,null,null,null,null,null,null,20]
[null,"Female 5-9",null,null,null,null,null,null,null,null,null,null,null,null,null,null,null,null,null,null,null,null,null,null,null,null,null,null,null,null,null,null,null,null,null,null,null,null,null,null,null,null,null,null,null,null,null,null,null,null,null,null,null,null,null,21]
[null,"Female 10-15",null,null,null,null,null,null,null,null,null,null,null,null,null,null,null,null,null,null,null,null,null,null,null,null,null,null,null,null,null,null,null,null,null,null,null,null,null,null,null,null,null,null,null,null,null,null,null,null,null,null,null,null,null,22]
[null,"Female 16-19",5132,10449,5317,2420,1755,8055,2394,3878,1120,3007,3007,3946,2632,2319,2320,2269,29879,10481,506,3283,8533,8533,7161,13662,40734,12500,25770,6512,4757,1715,4757,14964,18952,2013,2051,3036,8055,395,395,3162,3858,118803,2394,526,526,2387,6909,2758,18061,9528,1947,4138,506,23]
[null,"Female 20-24",11186,17539,6353,3023,1897,10449,2757,5440,1411,3797,3797,7387,3516,2847,3144,2491,50597,24791,559,4465,12368,12368,9905,28898,64015,20059,44900,7538,5641,2383,5641,19115,35472,2476,2520,3967,10067,534,534,3854,5454,182279,2757,562,562,2966,9048,4029,26632,14264,2827,5061,559,24]
[null,"Female 25-29",11646,18412,6766,2919,1880,10393,2483,4660,1408,3846,3846,6884,3706,2469,2796,2248,52083,27486,611,4641,11146,11146,9301,32603,67710,21019,48136,8030,6150,2297,6150,19574,38454,2653,2607,3823,10607,595,595,3890,5624,187975,2483,694,694,2864,8967,3252,24839,13693,2895,5519,611,25]
[null,"Female 30-34",9712,17943,8231,3238,1920,10174,2828,3996,1462,3753,3753,5361,3622,2437,2969,2196,48660,22996,664,5214,10880,10880,9210,26708,63296,20877,42021,8755,6835,2230,6835,21275,34952,2878,2934,3676,11344,594,594,4385,5477,179608,2828,641,641,2876,9931,2534,23864,12984,2973,6109,664,26]
[null,"Female 35-39",7583,16085,8502,3276,2083,10193,2805,4130,1504,3612,3612,4328,3547,3044,3171,2902,44086,18399,746,5111,10973,10973,9241,21043,58299,18652,37236,8759,6676,2249,6676,21063,30308,2893,2567,3679,11088,587,587,4006,5318,166485,2805,700,700,2967,9975,2626,22583,11610,2680,5845,746,27]
[null,"Female 40-44",6824,15898,9074,3662,2531,11821,3657,4700,1736,4255,4255,3957,4002,3415,3457,3182,44368,16077,826,5798,11795,11795,10498,18545,58315,19026,36123,9983,7452,2474,7452,22192,28916,2880,3128,4405,11655,679,679,4598,5707,172709,3657,721,721,3414,10537,2964,24012,12217,2800,6502,826,28]
[null,"Female 45-49",7059,17560,10501,4288,3168,14637,4591,5736,2106,5713,5713,4585,4999,4300,4361,3828,50032,16115,994,6395,13972,13972,12131,21204,69713,21168,43438,12131,8963,3245,8963,26275,31469,3511,3608,5391,13605,825,825,5763,7211,202829,4591,849,849,4247,12670,3630,28608,14636,3650,7482,994,29]
[null,"Female 50-54",7514,18002,10488,4561,3606,15343,4773,5816,2099,6247,6247,5222,5016,4541,4176,3870,50162,16086,1055,6308,14461,14461,12124,22092,71857,21705,45100,13200,9594,3438,9594,26757,30928,3468,3703,5694,13668,884,884,6032,7332,209262,4773,870,870,4633,13089,3717,30276,15815,3827,7198,1055,30]
[null,"Female 55-59",6840,15898,9058,4348,3443,14228,4541,5068,1864,5813,5813,4949,4484,4332,3915,3436,45797,14875,972,5503,13155,13155,10571,19421,64733,19238,40548,12373,8930,3211,8930,24185,28101,3217,3340,5208,12011,805,805,5481,6630,190084,4541,776,776,4536,12174,3204,27933,14778,3518,6094,972,31]
[null,"Female 60-64",5820,14164,8344,3966,3221,12941,4117,4397,1655,5644,5644,3904,3948,3656,3310,2999,39293,12299,979,4825,11746,11746,9222,15156,53781,17262,32864,11540,8319,2621,8319,20917,23430,2702,3098,4810,10348,750,750,5122,5470,165146,4117,742,742,4183,10569,2742,24738,12992,2962,5119,979,32]
[null,"Female 65-69",5622,13715,8093,4306,3532,13256,4447,4573,1787,5665,5665,4107,4031,3622,3350,2876,40441,12277,1002,4943,12418,12418,9516,13288,50288,16937,30723,11757,8225,2639,8225,19565,23576,2896,3222,4928,9706,779,779,5320,5474,164057,4447,683,683,4297,9859,2786,26151,13733,2824,5053,1002,33]
[null,"Female 70-74",4129,10057,5928,3313,2739,10604,3466,3610,1346,4801,4801,3099,3110,2935,2627,2330,30842,9152,794,3713,9547,9547,7323,10260,39137,12629,23856,9093,6354,2076,6354,15281,17829,2151,2572,3901,7638,666,666,4272,4201,127150,3466,577,577,3593,7643,2264,20231,10684,2054,3899,794,34]
[null,"Female 75-79",3695,8281,4586,2642,2245,8316,2800,2850,983,3660,3660,2766,2449,2597,2148,1948,24775,7867,713,3109,7370,7370,5959,9530,33698,10254,21120,7233,4988,1746,4988,12578,14605,1653,1973,3062,6233,498,498,3398,3509,104331,2800,419,419,2805,6345,1867,16176,8806,1790,2937,713,35]
[null,"Female 80-84",3033,6388,3355,2034,1632,6246,2000,2054,662,2870,2870,2379,1804,1951,1635,1685,18839,6454,553,2196,5495,5495,4250,7853,26368,7981,16925,5426,3794,1382,3794,9443,11344,1238,1593,2273,4548,327,327,2633,2732,80217,2000,311,311,2169,4895,1392,12541,7046,1322,2017,553,36]
[null,"Female 85-89",2017,4180,2163,1315,1000,3632,1227,1203,412,1757,1757,1526,1048,1203,1030,1082,12103,4595,330,1285,3473,3473,2488,4753,15785,5134,10347,3415,2415,892,2415,5438,7403,693,954,1283,2478,219,219,1798,1579,49691,1227,189,189,1301,2960,791,8112,4639,838,1085,330,37]
[null,"Female 90+",1109,2389,1280,884,634,2253,751,747,225,991,991,840,608,710,568,667,7232,2758,240,780,2124,2124,1527,2768,8781,2925,6002,1989,1355,525,1355,2779,4357,403,536,783,1168,134,134,1129,882,29050,751,125,125,862,1611,522,4977,2853,450,628,240,38]
[null,"Male 0-4",null,null,null,null,null,null,null,null,null,null,null,null,null,null,null,null,null,null,null,null,null,null,null,null,null,null,null,null,null,null,null,null,null,null,null,null,null,null,null,null,null,null,null,null,null,null,null,null,null,null,null,null,null,39]
[null,"Male 5-9",null,null,null,null,null,null,null,null,null,null,null,null,null,null,null,null,null,null,null,null,null,null,null,null,null,null,null,null,null,null,null,null,null,null,null,null,null,null,null,null,null,null,null,null,null,null,null,null,null,null,null,null,null,40]
[null,"Male 10-15",null,null,null,null,null,null,null,null,null,null,null,null,null,null,null,null,null,null,null,null,null,null,null,null,null,null,null,null,null,null,null,null,null,null,null,null,null,null,null,null,null,null,null,null,null,null,null,null,null,null,null,null,null,41]
[null,"Male 16-19",4618,10741,6123,2762,2139,8596,2478,3910,1252,3221,3221,3524,2828,2623,2309,2475,30158,10532,556,3747,8648,8648,7657,13791,42639,13104,26871,7596,5457,1848,5457,15768,19032,1961,2363,3245,8401,494,494,3562,4118,124418,2478,549,549,2523,7367,2658,18496,9848,2016,4230,556,42]
[null,"Male 20-24",10055,17241,7186,3297,2955,10847,2809,5494,1591,3996,3996,6850,3689,3335,2990,2815,46618,20799,650,4670,12020,12020,10164,27102,64147,20259,44004,9133,6178,2412,6178,20143,31789,2508,3018,4148,10761,577,577,4430,5464,181688,2809,720,720,3010,9382,3903,26597,14577,2876,5492,650,43]
[null,"Male 25-29",13084,20153,7069,3008,2486,9915,2465,4320,1326,3672,3672,7015,3552,2823,2551,2235,49299,25953,613,4538,10466,10466,8858,31828,66712,23042,47795,8662,6176,2322,6176,18917,36368,2460,2889,3564,10197,605,605,4041,5719,186149,2465,707,707,2799,8720,2994,24530,14064,2868,5404,613,44]
[null,"Male 30-34",10533,18196,7663,3098,1993,9097,2438,3686,1379,3519,3519,5275,3358,2430,2530,1892,45742,22449,618,4657,10197,10197,8343,27904,61765,21010,42551,8457,6464,2227,6464,19214,33107,2518,2814,3224,10357,540,540,4186,5418,172305,2438,655,655,2515,8857,2307,22756,12559,2680,5610,618,45]
[null,"Male 35-39",8518,16872,8354,2990,2111,9060,2607,3767,1433,3252,3252,4008,3246,2566,2713,2396,42754,18925,687,4994,10280,10280,8761,22182,56216,19515,36499,8592,6481,2010,6481,19717,29867,2614,2643,3157,10380,536,536,4185,4942,161268,2607,712,712,2657,9337,2334,21463,11183,2403,5615,687,46]
[null,"Male 40-44",7308,16431,9123,3389,2439,10458,3273,4276,1613,3894,3894,3685,3714,3061,3382,2856,43545,16766,816,5398,11190,11190,9674,18717,55295,19411,34216,9153,6714,2118,6714,21079,29082,2717,2980,3700,11022,622,622,4187,5030,164929,3273,800,800,3044,10057,2663,22451,11261,2434,6217,816,47]
[null,"Male 45-49",7281,17228,9947,4018,3009,12866,4231,5337,2056,5061,5061,4514,4466,3704,3741,3208,47799,16303,1062,6279,13408,13408,11616,19948,63590,20910,38936,11193,8184,2694,8184,24654,30160,3128,3682,4645,12690,795,795,5184,6312,189422,4231,814,814,3755,11964,3281,27124,13716,3070,6988,1062,48]
[null,"Male 50-54",7284,17410,10126,4570,3357,13909,4657,5491,2021,5884,5884,4693,4685,4160,4090,3473,48325,16177,1035,6186,13327,13327,11677,19976,66121,21027,41191,12412,9055,3256,9055,24930,30341,3186,3617,5069,12858,908,908,5940,6814,197429,4657,928,928,4155,12072,3470,28530,15203,3512,6888,1035,49]
[null,"Male 55-59",6797,15936,9139,4032,3246,13173,4341,4964,1828,5552,5552,4632,4283,3876,3744,3233,44067,14276,1018,5421,12779,12779,10385,17580,59729,19197,37212,11962,8716,2965,8716,22517,26947,2942,3261,4790,11103,876,876,5288,6350,180737,4341,826,826,4100,11414,3136,26731,13952,3208,5985,1018,50]
[null,"Male 60-64",6027,14211,8184,3723,3097,11857,4040,4209,1579,5261,5261,3735,3731,3387,3034,2791,37412,12088,987,4431,10956,10956,8640,14433,50045,17177,30858,11077,7980,2425,7980,19187,22416,2609,2966,4304,9377,766,766,4954,5063,156406,4040,772,772,3822,9810,2630,23368,12412,2759,4685,987,51]
[null,"Male 65-69",5436,13667,8231,4139,3351,12280,4344,4311,1637,5663,5663,3703,3787,3321,3001,2478,37322,11191,1050,4682,11517,11517,8993,12473,45785,16610,27887,11360,8009,2361,8009,17898,21461,2602,2943,4478,8878,770,770,5018,4816,153467,4344,774,774,4015,9020,2674,24377,12860,2438,4667,1050,52]
[null,"Male 70-74",3551,9080,5529,2968,2599,9328,3194,3112,1185,4333,4333,2650,2773,2472,2305,1844,27189,7692,741,3266,8633,8633,6378,8760,33436,11338,20327,8593,5994,1795,5994,13109,15362,1939,2258,3391,6342,611,611,3766,3632,111869,3194,538,538,3164,6767,1927,18017,9384,1824,3426,741,53]
[null,"Male 75-79",2734,6713,3979,2218,1841,6859,2310,2318,810,3339,3339,2157,2086,2013,1690,1519,19727,5881,580,2408,6060,6060,4726,6503,24796,8457,15290,5897,4056,1293,4056,9506,11357,1321,1744,2461,4679,467,467,2901,2725,82515,2310,391,391,2312,4827,1508,13336,7276,1237,2465,580,54]
[null,"Male 80-84",2016,4681,2665,1505,1171,4512,1523,1512,486,2250,2250,1534,1329,1495,1188,1102,13669,4490,355,1683,4105,4105,3195,4488,16812,5789,10574,3989,2818,847,2818,6238,8041,862,1108,1620,2981,282,282,2077,1771,56201,1523,232,232,1563,3257,1026,9221,5116,871,1501,355,55]
[null,"Male 85-89",1046,2394,1348,820,580,2206,872,732,249,1098,1098,852,643,749,598,561,7057,2411,210,763,2030,2030,1495,2162,8120,2993,5207,2040,1460,423,1460,2913,4155,460,599,748,1326,147,147,1130,930,28287,872,119,119,815,1587,483,4832,2802,382,686,210,56]
[null,"Male 90+",444,1058,614,343,232,909,309,286,101,480,480,354,249,337,258,261,3070,1165,71,329,886,886,615,952,3439,1310,2315,840,608,190,608,1124,1875,174,252,299,520,67,67,474,414,12017,309,45,45,361,604,185,2057,1171,161,278,71,57]
["SIMD Q1 (most deprived)","Female 0-4",null,null,null,null,null,null,null,null,null,null,null,null,null,null,null,null,null,null,null,null,null,null,null,null,null,null,null,null,null,null,null,null,null,null,null,null,null,null,null,null,null,null,null,null,null,null,null,null,null,null,null,null,null,58]
[null,"Female 5-9",null,null,null,null,null,null,null,null,null,null,null,null,null,null,null,null,null,null,null,null,null,null,null,null,null,null,null,null,null,null,null,null,null,null,null,null,null,null,null,null,null,null,null,null,null,null,null,null,null,null,null,null,null,59]
[null,"Female 10-15",null,null,null,null,null,null,null,null,null,null,null,null,null,null,null,null,null,null,null,null,null,null,null,null,null,null,null,null,null,null,null,null,null,null,null,null,null,null,null,null,null,null,null,null,null,null,null,null,null,null,null,null,null,60]
[null,"Female 16-19",367,479,112,222,146,2710,169,594,274,315,315,1259,870,113,83,167,4509,1504,0,474,1829,1829,1068,6019,12832,495,8838,549,403,688,403,3994,2511,205,16,1351,2539,0,0,183,1046,24142,169,0,0,489,1455,320,3493,1664,805,719,0,61]
[null,"Female 20-24",782,982,200,320,208,4057,217,957,442,502,502,2144,1363,177,120,229,6262,2376,0,776,2248,2248,1733,10248,20452,1017,14969,811,603,1133,603,5483,3797,326,35,1946,3424,0,0,326,1925,37624,217,0,0,748,2059,515,5038,2790,1257,975,0,62]
[null,"Female 25-29",1031,1269,238,299,172,4063,204,1014,428,504,504,2793,1402,192,137,220,8045,3578,0,892,2758,2758,1906,14159,25059,1292,19205,767,595,1143,595,5854,5083,337,23,1950,3719,0,0,401,2185,45129,204,0,0,711,2135,586,6251,3493,1306,1031,0,63]
[null,"Female 30-34",906,1141,235,332,201,3606,207,887,409,430,430,2239,1246,165,124,214,7688,3523,0,874,2433,2433,1761,11989,22794,1174,16689,856,655,1118,655,6105,5048,296,33,1693,3760,0,0,360,1864,41240,207,0,0,667,2345,478,5364,2931,1339,1105,0,64]
[null,"Female 35-39",648,820,172,298,177,3239,192,774,422,361,361,1753,1095,151,145,215,6597,2822,0,690,2211,2211,1464,9938,19487,844,14051,699,522,993,522,5436,4194,280,24,1582,3365,0,0,296,1645,35038,192,0,0,562,2071,352,4558,2347,1109,947,0,65]
[null,"Female 40-44",661,829,168,255,208,3677,233,774,407,365,365,1449,1232,176,106,201,6089,2185,0,792,2275,2275,1566,8898,18428,857,12865,734,526,999,526,5563,3581,284,28,1837,3465,0,0,243,1486,33663,233,0,0,608,2098,367,4222,1947,1105,1006,0,66]
[null,"Female 45-49",594,790,196,304,239,4383,227,982,472,458,458,1647,1527,211,153,246,6820,2329,0,789,2760,2760,1771,10444,21908,818,15496,849,610,1343,610,6412,3833,312,28,2122,3984,0,0,239,1877,39197,227,0,0,734,2428,510,4950,2190,1375,1039,0,67]
[null,"Female 50-54",627,812,185,279,233,4464,220,905,457,473,473,1866,1566,212,125,258,6559,2093,0,840,2766,2766,1745,10956,22425,839,15965,795,562,1323,562,6460,3573,317,27,2202,4042,0,0,259,1798,39704,220,0,0,696,2418,448,5170,2404,1418,1038,0,68]
[null,"Female 55-59",541,700,159,260,223,3913,195,835,419,384,384,1669,1268,212,137,195,6082,2063,0,766,2446,2446,1601,9487,19924,723,14043,739,516,1263,516,5881,3441,310,23,1961,3571,0,0,233,1653,35528,195,0,0,684,2310,416,4608,2162,1233,931,0,69]
[null,"Female 60-64",440,565,125,209,200,3543,186,639,338,345,345,1330,1151,163,97,172,4925,1543,0,649,2086,2086,1288,7302,16077,602,10991,681,481,1042,481,5086,2653,232,37,1762,3061,0,0,212,1259,29212,186,0,0,630,2025,301,3837,1751,1053,781,0,70]
[null,"Female 65-69",408,525,117,187,225,3388,193,684,372,298,298,1327,1122,147,102,173,4911,1493,0,654,2098,2098,1338,6552,14944,557,10089,630,405,1045,405,4855,2620,261,32,1726,2902,0,0,182,1213,27762,193,0,0,540,1953,312,3794,1696,959,764,0,71]
[null,"Female 70-74",287,367,80,161,166,2652,149,528,279,311,311,958,867,102,87,124,3786,1086,0,473,1663,1663,1001,5396,11902,381,8053,483,317,788,317,3849,1974,198,14,1345,2379,0,0,151,960,21786,149,0,0,440,1470,249,2933,1270,683,603,0,72]
[null,"Female 75-79",243,297,54,166,144,2288,104,412,213,189,189,839,739,86,75,109,3115,962,0,508,1365,1365,920,5115,10810,307,7609,409,265,751,265,3201,1646,130,10,1167,1967,0,0,95,958,19138,104,0,0,382,1234,199,2465,1100,590,479,0,73]
[null,"Female 80-84",189,239,50,97,117,1672,82,311,140,151,151,671,560,56,42,94,2364,762,0,363,986,986,674,4049,8473,249,6032,316,199,598,199,2441,1296,136,10,821,1481,0,0,109,787,14776,82,0,0,291,960,171,1863,877,448,356,0,74]
[null,"Female 85-89",145,180,35,60,86,1027,59,165,88,101,101,442,381,33,21,44,1424,509,0,217,605,605,382,2360,4985,188,3577,208,122,361,122,1408,760,72,8,453,894,0,0,52,453,8869,59,0,0,193,514,77,1159,554,326,158,0,75]
[null,"Female 90+",71,89,18,37,55,568,24,100,56,40,40,239,203,5,6,26,814,271,0,104,352,352,204,1272,2684,91,1908,121,66,181,66,776,438,38,2,257,464,0,0,27,211,4825,24,0,0,108,312,44,655,303,213,123,0,76]
[null,"Male 0-4",null,null,null,null,null,null,null,null,null,null,null,null,null,null,null,null,null,null,null,null,null,null,null,null,null,null,null,null,null,null,null,null,null,null,null,null,null,null,null,null,null,null,null,null,null,null,null,null,null,null,null,null,null,77]
[null,"Male 5-9",null,null,null,null,null,null,null,null,null,null,null,null,null,null,null,null,null,null,null,null,null,null,null,null,null,null,null,null,null,null,null,null,null,null,null,null,null,null,null,null,null,null,null,null,null,null,null,null,null,null,null,null,null,78]
[null,"Male 10-15",null,null,null,null,null,null,null,null,null,null,null,null,null,null,null,null,null,null,null,null,null,null,null,null,null,null,null,null,null,null,null,null,null,null,null,null,null,null,null,null,null,null,null,null,null,null,null,null,null,null,null,null,null,79]
[null,"Male 16-19",377,466,89,241,178,2741,177,694,342,294,294,1171,940,136,88,163,4493,1501,0,502,1784,1784,1196,6797,13975,489,9777,588,410,774,410,4198,2532,207,23,1370,2730,0,0,171,1068,25359,177,0,0,431,1468,352,3367,1583,839,736,0,80]
[null,"Male 20-24",616,848,232,340,279,3842,211,887,427,439,439,1933,1299,169,119,194,6147,2198,0,737,2299,2299,1624,10608,20829,872,15004,845,566,1102,566,5825,3637,331,24,1872,3747,0,0,309,1746,37180,211,0,0,671,2078,460,4881,2582,1185,989,0,81]
[null,"Male 25-29",1034,1297,263,314,225,3699,158,865,346,496,496,2715,1282,163,105,196,7309,3335,0,832,2441,2441,1697,13525,23796,1309,18229,822,597,1111,597,5567,4710,255,12,1707,3574,0,0,443,2064,42600,158,0,0,710,1993,519,5913,3472,1170,1015,0,82]
[null,"Male 30-34",867,1140,273,258,176,3261,174,759,363,346,346,2130,1116,134,110,184,6619,2881,0,764,2287,2287,1523,11843,21614,1149,16292,796,620,1046,620,5322,4158,281,9,1550,3370,0,0,310,1941,38006,174,0,0,595,1952,396,4985,2698,1144,886,0,83]
[null,"Male 35-39",826,1033,207,256,150,2914,187,657,362,298,298,1533,948,136,86,165,6118,2620,0,721,2123,2123,1378,9660,18511,1059,13358,612,462,831,462,5153,3808,238,26,1384,3174,0,0,305,1610,32984,187,0,0,582,1979,295,4217,2094,956,864,0,84]
[null,"Male 40-44",675,887,212,251,167,3182,190,633,352,341,341,1296,1123,136,133,169,5949,2370,0,754,2102,2102,1387,8680,17348,917,12125,700,533,854,533,5223,3657,267,30,1491,3200,0,0,252,1408,31623,190,0,0,568,2023,281,3901,1799,878,887,0,85]
[null,"Male 45-49",626,815,189,277,203,3604,252,780,425,406,406,1626,1280,185,94,183,6621,2305,0,851,2635,2635,1631,9474,19864,854,13826,738,535,1118,535,6038,3734,309,39,1724,3787,0,0,257,1813,35878,252,0,0,600,2251,355,4795,2160,1053,1026,0,86]
[null,"Male 50-54",615,772,157,292,263,3880,260,861,454,437,437,1665,1353,189,143,241,6530,2390,0,858,2439,2439,1719,9703,20490,797,14561,815,552,1285,552,5929,3831,305,25,1895,3785,0,0,297,1800,36922,260,0,0,632,2144,407,4693,2254,1343,993,0,87]
[null,"Male 55-59",562,744,182,232,213,3779,197,814,428,389,389,1605,1264,173,112,193,5690,1884,0,727,2413,2413,1541,8490,18264,771,12759,747,534,1125,534,5505,3080,269,27,1860,3387,0,0,233,1675,33251,197,0,0,655,2118,386,4483,2070,1103,815,0,88]
[null,"Male 60-64",506,607,101,196,207,3230,154,635,333,322,322,1294,1045,160,87,146,4762,1610,0,623,2018,2018,1258,6842,14830,627,10291,645,438,964,438,4539,2590,244,20,1575,2722,0,0,194,1196,27358,154,0,0,610,1817,302,3702,1684,983,649,0,89]
[null,"Male 65-69",435,554,119,205,171,3104,200,620,337,371,371,1230,1089,127,101,136,4456,1314,0,644,1949,1949,1264,6096,13626,573,9229,577,406,978,406,4397,2307,203,19,1490,2667,0,0,161,1075,25567,200,0,0,525,1730,283,3545,1596,817,689,0,90]
[null,"Male 70-74",253,320,67,135,156,2302,139,445,245,226,226,875,747,88,64,87,3277,894,0,406,1490,1490,851,4417,9819,335,6634,419,263,674,263,3185,1648,152,15,1143,1879,0,0,119,770,18358,139,0,0,412,1306,200,2619,1129,598,538,0,91]
[null,"Male 75-79",167,225,58,122,90,1795,73,356,182,183,183,664,635,67,61,101,2383,725,0,350,1000,1000,706,3313,7452,232,5066,281,191,506,191,2386,1310,116,7,852,1478,0,0,96,679,13914,73,0,0,308,908,174,1882,882,400,408,0,92]
[null,"Male 80-84",120,162,42,69,69,1204,56,170,81,116,116,422,422,43,39,48,1646,496,0,256,725,725,426,2264,4928,165,3371,196,127,325,127,1557,865,74,3,555,970,0,0,64,425,9236,56,0,0,227,587,89,1280,555,266,256,0,93]
[null,"Male 85-89",62,83,21,37,39,565,38,104,55,67,67,224,208,23,10,24,789,234,0,104,347,347,208,1083,2336,87,1617,104,65,141,65,719,404,56,4,251,419,0,0,32,226,4449,38,0,0,106,300,49,640,293,120,104,0,94]
[null,"Male 90+",25,40,15,11,12,215,14,45,29,26,26,91,81,9,7,11,371,110,0,52,156,156,97,464,1021,42,713,33,21,63,21,308,201,30,2,92,188,0,0,9,94,1916,14,0,0,42,120,16,267,111,72,54,0,95]
["SIMD Q2","Female 0-4",null,null,null,null,null,null,null,null,null,null,null,null,null,null,null,null,null,null,null,null,null,null,null,null,null,null,null,null,null,null,null,null,null,null,null,null,null,null,null,null,null,null,null,null,null,null,null,null,null,null,null,null,null,96]
[null,"Female 5-9",null,null,null,null,null,null,null,null,null,null,null,null,null,null,null,null,null,null,null,null,null,null,null,null,null,null,null,null,null,null,null,null,null,null,null,null,null,null,null,null,null,null,null,null,null,null,null,null,null,null,null,null,null,97]
[null,"Female 10-15",null,null,null,null,null,null,null,null,null,null,null,null,null,null,null,null,null,null,null,null,null,null,null,null,null,null,null,null,null,null,null,null,null,null,null,null,null,null,null,null,null,null,null,null,null,null,null,null,null,null,null,null,null,98]
[null,"Female 16-19",959,1342,383,387,281,1847,362,646,329,884,884,668,690,359,552,215,5913,1606,118,929,1557,1557,1575,2401,8450,1616,4538,1238,957,231,957,3912,3994,760,274,561,2196,49,49,362,755,23121,362,14,14,596,1716,317,2974,1417,577,1076,118,99]
[null,"Female 20-24",2193,2788,595,753,365,2502,553,1032,376,1105,1105,1621,894,514,929,273,10080,4104,144,1303,2106,2106,2335,4568,12732,3344,7386,1593,1228,289,1228,5346,7421,953,556,762,2801,88,88,576,960,36899,553,26,26,846,2545,656,5056,2950,782,1435,144,100]
[null,"Female 25-29",2497,3162,665,776,428,2689,560,1019,434,1072,1072,1497,1016,584,927,254,11158,4643,157,1414,2393,2393,2433,5944,14679,3657,9066,1727,1299,357,1299,5613,8205,1001,495,763,3033,100,100,642,1074,40610,560,23,23,910,2580,585,5308,2915,853,1634,157,101]
[null,"Female 30-34",2127,2745,618,706,356,2556,474,846,403,1091,1091,1106,966,516,953,246,10451,3896,150,1505,2371,2371,2351,4938,13925,3276,7994,1718,1362,379,1362,5931,7606,1060,531,786,3202,62,62,694,1031,38102,474,16,16,804,2729,443,4877,2506,884,1697,150,102]
[null,"Female 35-39",1590,2207,617,566,373,2574,455,848,407,1065,1065,862,960,578,899,269,8704,2632,153,1467,2235,2235,2315,3687,11871,2646,6545,1625,1252,248,1252,5326,6014,1025,439,770,2945,71,71,528,956,33014,455,34,34,844,2381,441,4191,1956,807,1458,153,103]
[null,"Female 40-44",1433,2044,611,626,439,2816,494,905,462,1197,1197,767,1025,550,873,266,8657,2320,200,1535,2390,2390,2440,3234,11853,2501,6289,1806,1367,291,1367,5564,5773,971,457,916,3066,105,105,460,1112,33442,494,14,14,875,2498,443,4243,1853,836,1609,200,104]
[null,"Female 45-49",1498,2184,686,665,520,3587,664,1040,545,1566,1566,799,1328,754,1094,385,9718,2170,233,1758,2735,2735,2798,3645,14257,2712,7483,2134,1614,400,1614,6774,6319,1216,528,1140,3608,95,95,583,1267,39170,664,23,23,1119,3166,495,4782,2047,1032,1839,233,105]
[null,"Female 50-54",1562,2295,733,620,577,3706,713,1090,562,1695,1695,953,1254,740,1112,363,9801,2060,270,1752,2947,2947,2842,3735,14788,2808,7726,2331,1754,480,1754,7062,6141,1207,513,1189,3723,122,122,562,1315,40518,713,20,20,1263,3339,528,5082,2135,1093,1762,270,106]
[null,"Female 55-59",1390,2044,654,671,587,3484,693,936,471,1582,1582,900,1188,700,1053,288,9078,1871,231,1530,2660,2660,2466,3343,13419,2553,6938,2259,1672,438,1672,6481,5725,1183,509,1060,3369,109,109,509,1159,37275,693,14,14,1236,3112,465,4740,2080,1010,1618,231,107]
[null,"Female 60-64",1242,1852,610,563,526,3066,629,796,418,1556,1556,775,1040,528,882,251,7802,1536,248,1426,2425,2425,2222,2630,11399,2340,5533,2041,1515,318,1515,5866,4748,969,488,923,3059,104,104,498,941,32644,629,30,30,1103,2807,378,4261,1836,865,1361,248,108]
[null,"Female 65-69",1175,1846,671,601,577,3156,684,825,459,1539,1539,799,1047,523,858,247,8027,1507,236,1421,2498,2498,2246,2289,10956,2299,5323,2117,1540,360,1540,5633,4845,1041,453,976,2936,119,119,460,1056,32580,684,25,25,1133,2697,366,4358,1860,848,1439,236,109]
[null,"Female 70-74",810,1333,523,485,476,2542,547,672,353,1252,1252,642,854,468,694,146,6254,1136,173,1160,1922,1922,1832,1748,8804,1687,4127,1602,1126,274,1126,4677,3785,756,354,747,2486,103,103,369,855,25764,547,19,19,941,2191,319,3418,1496,636,1199,173,110]
[null,"Female 75-79",804,1228,424,427,440,2066,442,534,240,981,981,617,730,380,613,158,5240,1088,166,962,1578,1578,1496,1715,7811,1536,3868,1472,1032,202,1032,3943,3220,601,308,568,2070,63,63,282,805,22167,442,10,10,768,1873,294,2904,1326,608,918,166,111]
[null,"Female 80-84",713,1051,338,330,334,1620,350,357,161,817,817,502,541,350,483,151,4031,815,153,693,1257,1257,1050,1545,6306,1272,3305,1078,744,156,744,3001,2424,473,221,478,1529,60,60,236,671,17470,350,15,15,601,1472,196,2325,1068,432,653,153,112]
[null,"Female 85-89",401,587,186,245,187,890,213,208,102,455,455,275,289,203,272,67,2527,556,63,433,809,809,641,960,3673,728,1920,676,489,80,489,1753,1505,307,141,244,842,29,29,204,353,10411,213,5,5,357,911,106,1533,724,257,370,63,113]
[null,"Female 90+",195,309,114,161,104,620,147,126,61,276,276,165,184,139,147,35,1456,336,57,276,482,482,402,563,1897,373,1033,376,272,26,272,864,827,139,64,154,360,12,12,96,168,5892,147,1,1,282,504,65,904,422,102,205,57,114]
[null,"Male 0-4",null,null,null,null,null,null,null,null,null,null,null,null,null,null,null,null,null,null,null,null,null,null,null,null,null,null,null,null,null,null,null,null,null,null,null,null,null,null,null,null,null,null,null,null,null,null,null,null,null,null,null,null,null,115]
[null,"Male 5-9",null,null,null,null,null,null,null,null,null,null,null,null,null,null,null,null,null,null,null,null,null,null,null,null,null,null,null,null,null,null,null,null,null,null,null,null,null,null,null,null,null,null,null,null,null,null,null,null,null,null,null,null,null,116]
[null,"Male 10-15",null,null,null,null,null,null,null,null,null,null,null,null,null,null,null,null,null,null,null,null,null,null,null,null,null,null,null,null,null,null,null,null,null,null,null,null,null,null,null,null,null,null,null,null,null,null,null,null,null,null,null,null,null,117]
[null,"Male 16-19",925,1350,425,390,304,2032,365,621,306,904,904,564,727,419,608,218,5932,1517,140,1094,1635,1635,1715,2329,8547,1696,4487,1318,1014,213,1014,4060,3932,717,346,663,2211,67,67,380,725,23693,365,8,8,642,1849,315,2969,1334,583,1090,140,118]
[null,"Male 20-24",2227,2839,612,608,398,2609,540,1032,406,1220,1220,1679,978,616,853,295,8771,2929,156,1315,2030,2030,2347,4391,12741,3325,7435,1706,1308,322,1308,5306,6201,886,486,832,2832,91,91,669,976,35964,540,42,42,799,2474,626,4986,2956,835,1533,156,119]
[null,"Male 25-29",2659,3378,719,711,364,2551,568,1041,387,993,993,1555,940,580,850,258,10315,4305,177,1333,2157,2157,2374,6039,14465,3910,9057,1655,1291,320,1291,5408,7590,932,532,776,2896,104,104,755,1016,39611,568,46,46,835,2512,654,5178,3021,844,1503,177,120]
[null,"Male 30-34",2113,2753,640,719,387,2429,483,825,367,997,997,1196,961,508,831,220,9827,3889,146,1335,2107,2107,2160,5603,13940,3248,8561,1637,1250,319,1250,5379,7237,902,495,704,2963,71,71,752,1092,37146,483,24,24,764,2416,458,4774,2667,819,1615,146,121]
[null,"Male 35-39",1642,2265,623,614,377,2151,472,729,384,940,940,817,848,442,798,199,8615,2981,142,1335,2065,2065,2064,4380,11927,2731,6999,1557,1180,307,1180,4928,6078,886,466,603,2651,72,72,678,866,32341,472,33,33,700,2277,345,4174,2109,805,1413,142,122]
[null,"Male 40-44",1429,2014,585,580,360,2509,514,785,417,1122,1122,767,944,496,822,265,8563,2552,199,1446,2265,2265,2231,3379,11460,2417,6072,1530,1170,261,1170,5388,5784,883,403,743,2932,102,102,505,918,32014,514,29,29,822,2456,368,4117,1852,753,1527,199,123]
[null,"Male 45-49",1517,2140,623,666,498,3221,612,967,533,1351,1351,912,1179,566,936,284,9183,2341,235,1710,2595,2595,2677,3570,13124,2662,6727,1928,1430,319,1430,6397,5976,1025,522,992,3316,105,105,611,1061,36688,612,13,13,1050,3081,434,4784,2189,927,1674,235,124]
[null,"Male 50-54",1408,2065,657,667,512,3406,693,977,498,1582,1582,848,1234,726,1012,342,9438,2254,259,1662,2706,2706,2639,3451,13528,2570,7034,2125,1613,419,1613,6494,6039,1112,505,1006,3378,119,119,602,1120,37819,693,36,36,1166,3116,479,4823,2117,976,1661,259,125]
[null,"Male 55-59",1385,2032,647,563,542,3150,671,911,448,1530,1530,788,1136,622,950,282,8618,1937,257,1517,2522,2522,2428,3099,12461,2499,6391,2091,1549,381,1549,6070,5425,1049,467,914,3042,110,110,515,1055,35036,671,26,26,1100,3028,463,4388,1866,952,1489,257,126]
[null,"Male 60-64",1133,1677,544,560,505,2766,642,766,412,1384,1384,655,953,492,749,257,7336,1534,259,1249,2270,2270,2015,2467,10473,2051,5204,1879,1374,287,1374,5269,4424,921,374,847,2728,109,109,472,923,29980,642,21,21,966,2541,354,3957,1687,778,1220,259,127]
[null,"Male 65-69",1034,1670,636,598,547,2950,661,800,404,1537,1537,728,959,443,765,202,7355,1418,255,1398,2351,2351,2198,2048,9471,2054,4509,2003,1456,271,1456,4962,4343,881,384,883,2561,121,121,434,842,29727,661,23,23,1108,2401,396,4111,1760,703,1279,255,128]
[null,"Male 70-74",672,1103,431,406,433,2179,474,531,287,1161,1161,498,722,319,546,121,5419,1031,163,980,1692,1692,1511,1516,7393,1401,3466,1508,1075,216,1075,3927,3253,680,298,610,2005,98,98,291,704,22052,474,24,24,847,1922,244,2887,1195,590,996,163,129]
[null,"Male 75-79",558,884,326,303,321,1673,350,423,214,919,919,446,575,282,463,98,4030,750,145,725,1276,1276,1148,1131,5554,1091,2681,1066,745,152,745,2873,2404,472,207,468,1489,81,81,231,589,16695,350,8,8,630,1384,209,2256,980,429,719,145,130]
[null,"Male 80-84",451,719,268,227,211,1039,221,271,127,583,583,297,357,202,324,82,2740,546,89,525,878,878,796,800,3807,867,1869,697,486,107,486,1938,1641,294,148,292,1002,35,35,150,413,11333,221,6,6,390,936,144,1552,674,265,477,89,131]
[null,"Male 85-89",231,334,103,122,104,550,151,127,62,284,284,145,191,115,150,32,1369,272,49,253,430,430,380,396,1801,406,894,364,260,49,260,907,788,157,72,136,447,16,16,81,174,5568,151,1,1,223,460,65,778,348,128,209,49,132]
[null,"Male 90+",93,149,56,68,35,214,56,37,20,124,124,67,70,64,67,17,598,145,9,93,192,192,130,164,686,180,374,171,136,18,136,312,350,64,31,56,148,9,9,30,73,2286,56,0,0,88,164,17,357,165,38,74,9,133]
["SIMD Q3","Female 0-4",null,null,null,null,null,null,null,null,null,null,null,null,null,null,null,null,null,null,null,null,null,null,null,null,null,null,null,null,null,null,null,null,null,null,null,null,null,null,null,null,null,null,null,null,null,null,null,null,null,null,null,null,null,134]
[null,"Female 5-9",null,null,null,null,null,null,null,null,null,null,null,null,null,null,null,null,null,null,null,null,null,null,null,null,null,null,null,null,null,null,null,null,null,null,null,null,null,null,null,null,null,null,null,null,null,null,null,null,null,null,null,null,null,135]
[null,"Female 10-15",null,null,null,null,null,null,null,null,null,null,null,null,null,null,null,null,null,null,null,null,null,null,null,null,null,null,null,null,null,null,null,null,null,null,null,null,null,null,null,null,null,null,null,null,null,null,null,null,null,null,null,null,null,136]
[null,"Female 16-19",686,1739,1053,783,761,1343,778,521,175,1068,1068,476,417,164,454,231,5612,1436,359,598,1613,1613,1119,2366,6658,2309,3947,2204,1443,276,1443,2711,3221,478,570,407,1401,123,123,661,662,22864,778,149,149,519,1310,346,3533,1920,248,853,359,137]
[null,"Female 20-24",2047,3366,1319,892,679,1536,944,908,256,1258,1258,856,496,216,627,258,9979,4577,365,780,2249,2249,1688,5281,10715,4056,7340,2329,1650,319,1650,3375,6786,516,690,475,1711,169,169,894,872,34910,944,173,173,565,1664,652,4891,2642,394,1066,365,138]
[null,"Female 25-29",2001,3419,1418,811,728,1569,769,843,265,1309,1309,957,535,200,591,266,11165,5634,413,789,2483,2483,1632,4977,10596,4149,7016,2509,1781,307,1781,3580,7913,581,730,430,1886,184,184,928,883,36432,769,210,210,604,1694,578,5179,2696,383,1107,413,139]
[null,"Female 30-34",1580,3122,1542,1001,825,1684,948,690,274,1254,1254,616,555,161,607,281,10090,4317,453,918,2372,2372,1608,3952,9993,3968,6020,2744,1919,269,1919,3973,6770,615,846,465,2153,203,203,993,973,34795,948,188,188,664,1820,416,4982,2610,384,1231,453,140]
[null,"Female 35-39",986,2487,1501,1074,844,1712,901,700,237,1233,1233,481,545,195,619,295,8723,2948,547,934,2446,2446,1634,2996,9211,3196,5164,2899,2055,373,2055,4047,5376,619,709,499,2218,142,142,915,930,31957,901,190,190,668,1829,463,4916,2470,375,1190,547,141]
[null,"Female 40-44",869,2490,1621,1248,1048,1991,1201,773,293,1568,1568,422,658,213,683,311,8627,2347,574,1000,2434,2434,1773,2508,9074,3339,4878,3250,2202,415,2202,4196,4992,659,849,586,2292,193,193,1034,1027,33291,1201,198,198,747,1904,480,5138,2704,404,1303,574,142]
[null,"Female 45-49",895,2978,2083,1415,1294,2544,1550,940,393,2162,2162,536,868,310,942,357,10109,2094,709,1129,3028,3028,2069,2734,10876,3978,5847,4181,2887,489,2887,5029,5531,869,1000,744,2502,260,260,1369,1377,40488,1550,280,280,932,2527,547,6348,3320,580,1626,709,143]
[null,"Female 50-54",996,3074,2078,1588,1612,2825,1593,997,405,2340,2340,660,926,266,849,404,10273,2070,719,1196,3271,3271,2193,2861,10969,4168,5977,4739,3127,546,3127,4992,5409,875,1094,798,2428,284,284,1497,1329,42537,1593,282,282,1101,2564,592,7016,3745,571,1615,719,144]
[null,"Female 55-59",906,2768,1862,1542,1487,2500,1570,898,386,2173,2173,638,808,279,836,395,9353,1821,683,1070,2987,2987,1968,2555,10187,3724,5518,4507,3020,571,3020,4669,4796,764,956,764,2144,244,244,1372,1172,39153,1570,262,262,928,2525,512,6539,3552,546,1375,683,145]
[null,"Female 60-64",841,2642,1801,1362,1473,2298,1415,833,326,2131,2131,526,666,240,729,343,8015,1486,693,970,2581,2581,1803,1882,8296,3506,4371,4238,2765,397,2765,3925,4019,649,864,762,1815,221,221,1235,1017,34585,1415,261,261,870,2110,507,5704,3123,492,1155,693,146]
[null,"Female 65-69",794,2604,1810,1443,1556,2476,1515,823,359,2297,2297,548,770,211,739,327,8396,1422,707,1016,2823,2823,1839,1598,7763,3496,4058,4342,2786,395,2786,3705,4058,720,892,784,1794,227,227,1293,1042,35061,1515,234,234,922,1911,464,6107,3284,485,1177,707,147]
[null,"Female 70-74",599,1937,1338,1085,1160,1997,1143,657,279,1869,1869,415,608,162,589,261,6421,1066,575,729,2149,2149,1386,1242,6160,2692,3141,3394,2234,329,2234,3019,3129,545,755,653,1406,229,229,1119,795,27558,1143,216,216,736,1613,378,4768,2619,352,929,575,148]
[null,"Female 75-79",553,1598,1045,818,954,1479,921,537,217,1422,1422,400,433,119,501,257,5125,892,509,604,1689,1689,1141,1038,5134,2207,2637,2589,1635,296,1635,2497,2515,430,609,517,1087,185,185,851,639,22028,921,168,168,529,1410,320,3758,2069,288,692,509,149]
[null,"Female 80-84",501,1179,678,624,676,1081,680,386,148,1051,1051,397,318,78,390,250,3774,707,381,419,1223,1223,805,937,4117,1687,2178,1879,1203,216,1203,1939,1871,297,508,359,834,106,106,671,454,16697,680,124,124,404,1105,238,2915,1692,243,477,381,150]
[null,"Female 85-89",331,820,489,408,407,610,397,243,108,717,717,222,144,50,302,154,2406,491,245,220,815,815,463,565,2472,1088,1337,1219,812,175,812,1135,1194,155,268,227,441,78,78,458,259,10459,397,73,73,239,694,135,1903,1088,134,246,245,151]
[null,"Female 90+",190,459,269,274,271,363,232,142,45,413,413,132,97,47,172,82,1406,290,172,104,451,451,246,383,1563,629,981,666,395,153,395,582,723,109,170,149,199,67,67,288,243,6278,232,59,59,117,383,97,1145,694,73,152,172,152]
[null,"Male 0-4",null,null,null,null,null,null,null,null,null,null,null,null,null,null,null,null,null,null,null,null,null,null,null,null,null,null,null,null,null,null,null,null,null,null,null,null,null,null,null,null,null,null,null,null,null,null,null,null,null,null,null,null,null,153]
[null,"Male 5-9",null,null,null,null,null,null,null,null,null,null,null,null,null,null,null,null,null,null,null,null,null,null,null,null,null,null,null,null,null,null,null,null,null,null,null,null,null,null,null,null,null,null,null,null,null,null,null,null,null,null,null,null,null,154]
[null,"Male 10-15",null,null,null,null,null,null,null,null,null,null,null,null,null,null,null,null,null,null,null,null,null,null,null,null,null,null,null,null,null,null,null,null,null,null,null,null,null,null,null,null,null,null,null,null,null,null,null,null,null,null,null,null,null,155]
[null,"Male 16-19",619,1851,1232,925,815,1444,794,512,217,1208,1208,389,465,160,516,246,5571,1311,381,626,1656,1656,1138,2054,6634,2408,3768,2505,1690,260,1690,2866,3121,412,557,383,1487,150,150,807,785,23727,794,167,167,596,1379,295,3777,2121,263,882,381,156]
[null,"Male 20-24",2020,3535,1515,983,822,1804,938,931,293,1382,1382,762,629,221,635,326,9367,3675,447,830,2293,2293,1761,4734,10454,4210,6922,2598,1776,386,1776,3532,6136,599,675,528,1746,180,180,1070,864,35247,938,229,229,647,1786,638,5108,2815,391,1227,447,157]
[null,"Male 25-29",2507,3861,1354,874,741,1601,868,783,228,1315,1315,898,628,208,597,252,10586,5065,411,773,2284,2284,1556,4871,10361,4548,7046,2522,1781,364,1781,3315,7434,568,687,422,1654,203,203,863,916,35940,868,202,202,551,1661,555,4919,2635,435,1204,411,158]
[null,"Male 30-34",1901,3336,1435,977,702,1491,885,655,220,1233,1233,736,532,179,525,254,9969,4483,449,775,2265,2265,1430,4492,10217,4128,6576,2653,1951,323,1951,3641,6819,567,792,394,1927,175,175,963,950,34643,885,222,222,565,1714,435,4941,2676,378,1244,449,159]
[null,"Male 35-39",1378,2828,1450,967,788,1594,835,642,222,1144,1144,528,598,158,540,263,8852,3418,495,936,2232,2232,1578,3444,9199,3551,5375,2770,1982,347,1982,3824,5785,586,723,417,2112,162,162,942,831,32007,835,225,225,579,1712,420,4669,2437,332,1241,495,160]
[null,"Male 40-44",1063,2661,1598,1136,943,1780,1098,717,292,1367,1367,478,609,188,701,265,8689,2555,562,954,2385,2385,1671,2499,8483,3466,4552,2890,1947,349,1947,3931,5206,640,805,515,2101,166,166,923,847,31831,1098,220,220,656,1830,425,4922,2537,404,1310,562,161]
[null,"Male 45-49",1045,3055,2010,1368,1251,2296,1359,882,370,1886,1886,501,798,236,802,305,9492,2240,755,1160,2847,2847,2042,2602,9794,4032,5135,3799,2548,402,2548,4659,5286,743,977,674,2351,216,216,1207,1096,37651,1359,263,263,824,2308,512,5923,3076,494,1501,755,162]
[null,"Male 50-54",1068,3059,1991,1592,1399,2568,1561,946,380,2194,2194,642,905,242,819,388,9822,2201,720,1203,2967,2967,2149,2611,10234,4060,5533,4402,3003,479,3003,4701,5294,749,1001,756,2320,284,284,1419,1267,40386,1561,300,300,907,2381,566,6620,3653,546,1525,720,163]
[null,"Male 55-59",947,2791,1844,1476,1413,2249,1530,888,376,2106,2106,596,713,231,839,380,9193,1854,709,1022,2906,2906,1910,2317,9276,3753,5061,4380,2967,511,2967,4215,4757,692,962,722,1919,303,303,1324,1096,37545,1530,270,270,814,2296,512,6302,3396,526,1372,709,164]
[null,"Male 60-64",850,2574,1724,1256,1370,2167,1350,778,308,2038,2038,500,680,204,739,296,7823,1524,683,847,2431,2431,1625,1935,7810,3410,4163,4178,2808,383,2808,3647,4042,658,836,641,1637,242,242,1249,882,33247,1350,266,266,846,2010,470,5436,3005,463,1121,683,165]
[null,"Male 65-69",802,2600,1798,1465,1569,2320,1462,797,326,2190,2190,503,709,222,691,261,7857,1374,743,911,2594,2594,1708,1535,7064,3469,3692,4333,2764,358,2764,3372,3801,662,869,763,1649,234,234,1208,918,33371,1462,277,277,848,1723,471,5770,3176,398,1074,743,166]
[null,"Male 70-74",496,1770,1274,957,1133,1761,1079,571,249,1755,1755,354,545,123,526,217,5596,815,536,687,1900,1900,1258,1089,5184,2408,2713,3255,2122,301,2122,2471,2617,470,638,574,1160,195,195,970,679,24436,1079,207,207,642,1311,322,4181,2281,304,806,536,167]
[null,"Male 75-79",449,1329,880,715,851,1302,799,400,165,1317,1317,308,407,68,349,172,4159,651,413,488,1438,1438,888,776,3820,1893,1896,2293,1442,214,1442,1924,1922,344,564,429,846,140,140,742,479,18146,799,156,156,466,1078,235,3203,1765,187,578,413,168]
[null,"Male 80-84",317,916,599,470,508,803,522,283,105,892,892,210,259,69,274,129,2829,545,245,290,910,910,573,535,2594,1232,1373,1521,1013,141,1013,1221,1397,223,316,274,511,105,105,529,335,12096,522,93,93,270,710,178,2119,1209,164,355,245,169]
[null,"Male 85-89",158,417,259,267,245,374,259,124,56,413,413,144,106,20,140,71,1413,248,149,125,467,467,249,237,1267,607,694,740,495,89,495,573,687,121,190,117,244,53,53,286,208,6019,259,57,57,151,329,68,1164,697,69,178,149,170]
[null,"Male 90+",63,186,123,117,101,149,93,56,27,200,200,52,35,12,59,35,573,105,60,64,197,197,120,120,600,260,362,288,187,38,187,238,283,38,74,59,90,21,21,133,133,2593,93,20,20,55,148,29,499,302,24,81,60,171]
["SIMD Q4","Female 0-4",null,null,null,null,null,null,null,null,null,null,null,null,null,null,null,null,null,null,null,null,null,null,null,null,null,null,null,null,null,null,null,null,null,null,null,null,null,null,null,null,null,null,null,null,null,null,null,null,null,null,null,null,null,172]
[null,"Female 5-9",null,null,null,null,null,null,null,null,null,null,null,null,null,null,null,null,null,null,null,null,null,null,null,null,null,null,null,null,null,null,null,null,null,null,null,null,null,null,null,null,null,null,null,null,null,null,null,null,null,null,null,null,null,173]
[null,"Female 10-15",null,null,null,null,null,null,null,null,null,null,null,null,null,null,null,null,null,null,null,null,null,null,null,null,null,null,null,null,null,null,null,null,null,null,null,null,null,null,null,null,null,null,null,null,null,null,null,null,null,null,null,null,null,174]
[null,"Female 16-19",1082,2976,1894,569,433,1093,875,880,179,481,481,911,337,362,874,347,5276,1328,29,605,1236,1236,1485,1386,5855,3751,3282,1946,1513,325,1513,2573,3165,287,775,461,1132,197,197,1452,647,23408,875,363,363,295,1441,701,4168,2932,215,676,29,175]
[null,"Female 20-24",2572,4756,2184,634,461,1319,840,1254,191,624,624,1990,445,550,1110,357,8161,3456,50,805,1598,1598,2059,4937,10228,5560,7331,2129,1668,397,1668,2897,5723,332,804,535,1272,233,233,1483,814,34833,840,363,363,339,1625,1063,5705,4107,276,825,50,176]
[null,"Female 25-29",2096,4458,2362,631,406,1203,792,987,175,607,607,998,412,436,777,382,9342,4806,41,776,1580,1580,1763,4096,9115,5351,6268,2277,1871,319,1871,2847,6970,385,893,498,1234,257,257,1387,750,33433,792,461,461,293,1613,812,4596,3016,285,1002,41,177]
[null,"Female 30-34",1659,4533,2874,707,426,1307,920,894,235,624,624,781,461,467,863,341,9182,4054,61,882,1666,1666,1776,3266,8788,5547,5502,2667,2241,285,2241,3286,6596,481,1014,469,1365,290,290,1671,859,33838,920,437,437,377,1921,659,4825,3159,284,1198,61,178]
[null,"Female 35-39",1289,4279,2990,763,521,1435,946,980,244,605,605,660,543,502,958,404,8414,3028,46,941,1788,1788,1921,2401,8648,5267,4827,2670,2149,403,2149,3821,5680,492,988,512,1524,315,315,1580,853,32800,946,476,476,380,2297,736,4791,3003,264,1202,46,179]
[null,"Female 40-44",1032,4278,3246,824,642,1765,1248,1195,324,749,749,647,559,597,1156,463,8792,2583,52,1157,2062,2062,2352,2023,9050,5535,4898,3193,2551,466,2551,4152,5482,472,1257,661,1717,338,338,1999,1017,35805,1248,509,509,545,2435,871,5532,3470,332,1271,52,180]
[null,"Female 45-49",1060,4916,3856,1089,851,2127,1657,1405,401,1025,1025,749,671,762,1391,564,9998,2440,52,1304,2558,2558,2709,2256,10779,6352,5996,3821,2970,619,2970,4783,5783,552,1436,848,2076,395,395,2547,1313,42189,1657,546,546,608,2707,1004,6943,4385,482,1400,52,181]
[null,"Female 50-54",1120,5059,3939,1238,908,2293,1803,1481,361,1135,1135,834,692,853,1356,566,10326,2652,66,1218,2674,2674,2699,2381,11241,6550,6431,4130,3222,690,3222,4810,5849,539,1491,986,2063,411,411,2584,1401,44075,1803,568,568,615,2747,1120,7330,4656,540,1302,66,182]
[null,"Female 55-59",1037,4423,3386,1097,848,2195,1691,1228,322,1139,1139,841,660,914,1271,522,9310,2379,58,1067,2469,2469,2295,2093,10126,5775,5988,3761,2913,591,2913,4138,5150,462,1352,889,1694,399,399,2318,1309,39814,1691,500,500,646,2444,906,6725,4256,559,1038,58,183]
[null,"Female 60-64",959,3995,3036,1106,803,2041,1524,1023,264,1097,1097,601,589,730,1062,466,8119,1996,38,888,2250,2250,1911,1635,8356,5199,4848,3583,2780,464,2780,3508,4345,422,1204,891,1445,369,369,2190,1135,35061,1524,451,451,561,2063,759,6147,3897,418,865,38,184]
[null,"Female 65-69",988,3965,2977,1187,921,2080,1655,1061,293,1044,1044,664,582,714,1063,425,8269,1919,59,987,2316,2316,2048,1431,7576,5290,4498,3646,2725,434,2725,3078,4298,459,1325,914,1206,382,382,2219,1057,34888,1655,424,424,584,1872,768,6386,4070,437,857,59,185]
[null,"Female 70-74",696,2869,2173,943,729,1752,1324,844,227,900,900,466,431,507,761,332,6267,1445,46,739,1793,1793,1583,1025,5385,3866,3323,2793,2064,363,2064,2062,3150,354,997,745,790,289,289,1688,760,26320,1324,342,342,576,1272,617,4890,3097,336,590,46,186]
[null,"Female 75-79",592,2298,1706,734,561,1235,1068,619,149,709,709,407,305,480,570,302,4862,1182,38,582,1309,1309,1201,920,4486,3022,2785,2157,1596,242,1596,1701,2485,263,724,512,677,227,227,1389,570,20708,1068,241,241,418,1024,470,3839,2530,271,470,38,187]
[null,"Female 80-84",457,1728,1271,591,383,941,729,486,110,561,561,405,191,337,443,257,3631,1013,19,423,976,976,909,691,3303,2317,2127,1636,1253,226,1253,1176,1926,178,589,381,429,134,134,1015,439,15634,729,172,172,369,747,376,2987,2011,177,292,19,188]
[null,"Female 85-89",280,1087,807,349,250,552,474,299,69,328,328,324,116,258,253,169,2389,835,22,254,592,592,553,445,2100,1464,1421,1002,752,144,752,679,1323,96,377,226,178,98,98,696,294,9988,474,111,111,210,501,230,1961,1369,111,139,22,189]
[null,"Female 90+",129,593,464,283,160,342,279,217,45,171,171,187,71,129,129,168,1420,493,11,173,407,407,390,274,1185,790,862,652,492,75,492,323,734,71,197,150,79,48,48,454,161,5998,279,65,65,121,244,172,1331,924,55,41,11,190]
[null,"Male 0-4",null,null,null,null,null,null,null,null,null,null,null,null,null,null,null,null,null,null,null,null,null,null,null,null,null,null,null,null,null,null,null,null,null,null,null,null,null,null,null,null,null,null,null,null,null,null,null,null,null,null,null,null,null,191]
[null,"Male 5-9",null,null,null,null,null,null,null,null,null,null,null,null,null,null,null,null,null,null,null,null,null,null,null,null,null,null,null,null,null,null,null,null,null,null,null,null,null,null,null,null,null,null,null,null,null,null,null,null,null,null,null,null,null,192]
[null,"Male 10-15",null,null,null,null,null,null,null,null,null,null,null,null,null,null,null,null,null,null,null,null,null,null,null,null,null,null,null,null,null,null,null,null,null,null,null,null,null,null,null,null,null,null,null,null,null,null,null,null,null,null,null,null,null,193]
[null,"Male 16-19",864,3036,2172,703,506,1224,850,887,230,530,530,764,360,450,741,351,5165,1255,35,817,1393,1393,1704,1295,6138,3869,3424,2351,1845,396,1845,2714,2922,275,833,516,1150,247,247,1628,709,24732,850,374,374,348,1564,657,4488,3095,223,651,35,194]
[null,"Male 20-24",2141,4587,2446,841,566,1330,880,1289,301,642,642,1669,402,597,931,359,7703,2963,47,956,1822,1822,2245,4227,10081,5633,6841,2612,2046,415,2046,3240,5001,299,1046,586,1511,259,259,1717,915,35228,880,449,449,342,1729,988,6049,4227,328,808,47,195]
[null,"Male 25-29",2425,4870,2445,698,460,1183,705,923,250,607,607,1097,396,471,656,379,8535,4394,25,783,1592,1592,1706,4060,9419,5814,6535,2476,2016,329,2016,2884,6238,329,944,447,1294,253,253,1446,969,33718,705,459,459,340,1590,673,4833,3241,327,859,25,196]
[null,"Male 30-34",1793,4435,2642,681,400,1120,711,862,311,641,641,696,421,426,691,297,8655,4162,23,811,1593,1593,1673,3364,8697,5396,5455,2509,2109,350,2109,3242,6351,386,961,379,1407,253,253,1593,763,32346,711,409,409,320,1835,551,4563,2970,255,1112,23,197]
[null,"Male 35-39",1410,4392,2982,650,500,1313,843,1016,315,547,547,567,468,424,839,355,8327,3277,50,937,1744,1744,1953,2491,8318,5349,4664,2650,2150,338,2150,3654,5740,473,957,472,1527,241,241,1602,833,32021,843,454,454,373,2127,701,4563,2819,223,1151,50,198]
[null,"Male 40-44",1182,4472,3290,768,626,1567,1096,1129,340,713,713,578,556,506,1115,431,8523,2736,55,1029,1858,1858,2158,2165,8703,5637,4733,2996,2370,409,2370,3970,5569,453,1165,599,1714,308,308,1791,917,34348,1096,551,551,412,2256,789,4995,3137,305,1265,55,199]
[null,"Male 45-49",1108,4649,3541,985,767,1992,1507,1411,427,944,944,692,628,668,1232,447,9571,2552,72,1240,2496,2496,2651,2237,10048,6126,5484,3583,2816,566,2816,4564,5568,471,1477,782,1991,406,406,2238,1135,39846,1507,538,538,582,2573,984,6411,3915,431,1313,72,200]
[null,"Male 50-54",1144,4977,3833,1168,865,2145,1729,1457,400,1119,1119,765,662,716,1335,559,9927,2528,56,1183,2559,2559,2640,2180,10501,6471,5827,3900,3035,645,3035,4674,5639,485,1494,887,2030,442,442,2532,1256,42258,1729,592,592,596,2644,1057,7024,4465,471,1291,56,201]
[null,"Male 55-59",1038,4504,3466,1025,803,2055,1594,1286,335,1032,1032,828,629,765,1249,420,9120,2326,52,1095,2389,2389,2381,1892,9235,5816,5354,3697,2894,566,2894,3881,5137,464,1312,830,1589,390,390,2322,1225,38483,1594,530,530,596,2292,951,6564,4175,486,1098,52,202]
[null,"Male 60-64",999,4067,3068,1028,788,1873,1526,1018,257,1046,1046,623,584,688,957,435,7736,2022,45,849,2043,2043,1867,1603,7844,5335,4598,3435,2647,474,2647,3246,4167,392,1268,767,1323,361,361,2142,1002,33820,1526,485,485,522,1923,761,5836,3793,396,796,45,203]
[null,"Male 65-69",920,4039,3119,1056,822,1882,1618,974,265,1053,1053,585,538,687,936,388,7692,1704,52,891,2202,2202,1865,1386,7242,5241,4231,3458,2636,403,2636,3011,3872,430,1202,837,1159,352,352,2162,944,33114,1618,474,474,507,1852,709,6005,3803,423,802,52,204]
[null,"Male 70-74",663,2714,2051,866,675,1555,1242,803,207,826,826,410,439,479,744,277,5750,1199,42,643,1652,1652,1446,896,4974,3647,2962,2680,2005,307,2005,2012,2856,353,933,678,793,277,277,1580,720,24360,1242,307,307,438,1219,596,4508,2856,283,560,42,205]
[null,"Male 75-79",448,1947,1499,681,453,1024,911,527,128,609,609,317,253,373,491,207,4096,953,22,475,1142,1142,1002,699,3473,2624,2183,1770,1317,221,1317,1290,2043,207,677,461,506,224,224,1216,494,17285,911,227,227,310,784,399,3356,2214,189,392,22,206]
[null,"Male 80-84",305,1272,967,409,307,702,594,362,92,456,456,278,156,270,327,157,2720,696,21,341,720,720,703,501,2361,1719,1523,1230,923,133,923,838,1406,158,447,309,302,126,126,855,307,11713,594,133,133,237,536,270,2262,1542,155,225,21,207]
[null,"Male 85-89",141,684,543,250,140,324,344,200,42,229,229,152,63,144,197,76,1510,429,12,171,360,360,371,256,1204,898,792,639,499,77,499,412,806,70,214,153,129,68,68,466,180,6184,344,61,61,108,283,158,1228,868,59,110,12,208]
[null,"Male 90+",41,270,229,95,70,140,123,76,16,86,86,83,33,62,62,49,596,211,2,70,159,159,146,104,498,368,345,278,208,29,208,153,314,18,98,50,54,33,33,194,76,2544,123,25,25,57,99,60,531,372,25,23,2,209]
["SIMD Q5 (least deprived)","Female 0-4",null,null,null,null,null,null,null,null,null,null,null,null,null,null,null,null,null,null,null,null,null,null,null,null,null,null,null,null,null,null,null,null,null,null,null,null,null,null,null,null,null,null,null,null,null,null,null,null,null,null,null,null,null,210]
[null,"Female 5-9",null,null,null,null,null,null,null,null,null,null,null,null,null,null,null,null,null,null,null,null,null,null,null,null,null,null,null,null,null,null,null,null,null,null,null,null,null,null,null,null,null,null,null,null,null,null,null,null,null,null,null,null,null,211]
[null,"Female 10-15",null,null,null,null,null,null,null,null,null,null,null,null,null,null,null,null,null,null,null,null,null,null,null,null,null,null,null,null,null,null,null,null,null,null,null,null,null,null,null,null,null,null,null,null,null,null,null,null,null,null,null,null,null,212]
[null,"Female 16-19",2038,3913,1875,459,134,1062,210,1237,163,259,259,632,318,1321,357,1309,8569,4607,0,677,2298,2298,1914,1490,6939,4329,5165,575,441,195,441,1774,6061,283,416,256,787,26,26,504,748,25268,210,0,0,488,987,1074,3893,1595,102,814,0,213]
[null,"Female 20-24",3592,5647,2055,424,184,1035,203,1289,146,308,308,776,318,1390,358,1374,16115,10278,0,801,4167,4167,2090,3864,9888,6082,7874,676,492,245,492,2014,11745,349,435,249,859,44,44,575,883,38013,203,0,0,468,1155,1143,5942,1775,118,760,0,214]
[null,"Female 25-29",4021,6104,2083,402,146,869,158,797,106,354,354,639,341,1057,364,1126,12373,8825,0,770,1932,1932,1567,3427,8261,6570,6581,750,604,171,604,1680,10283,349,466,182,735,54,54,532,732,32371,158,0,0,346,945,691,3505,1573,68,745,0,215]
[null,"Female 30-34",3440,6402,2962,492,112,1021,279,679,141,354,354,619,394,1128,422,1114,11249,7206,0,1035,2038,2038,1714,2563,7796,6912,5816,770,658,179,658,1980,8932,426,510,263,864,39,39,667,750,31633,279,0,0,364,1116,538,3816,1778,82,878,0,216]
[null,"Female 35-39",3070,6292,3222,575,168,1233,311,828,194,348,348,572,404,1618,550,1719,11648,6969,0,1079,2293,2293,1907,2021,9082,6699,6649,866,698,232,698,2433,9044,477,407,316,1036,59,59,687,934,33676,311,0,0,513,1397,634,4127,1834,125,1048,0,217]
[null,"Female 40-44",2829,6257,3428,709,194,1572,481,1053,250,376,376,672,528,1879,639,1941,12203,6642,0,1314,2634,2634,2367,1882,9910,6794,7193,1000,806,303,806,2717,9088,494,537,405,1115,43,43,862,1065,36508,481,0,0,639,1602,803,4877,2243,123,1313,0,218]
[null,"Female 45-49",3012,6692,3680,815,264,1996,493,1369,295,502,502,854,605,2263,781,2276,13387,7082,0,1415,2891,2891,2784,2125,11893,7308,8616,1146,882,394,882,3277,10003,562,616,537,1435,75,75,1025,1377,41785,493,0,0,854,1842,1074,5585,2694,181,1578,0,219]
[null,"Female 50-54",3209,6762,3553,836,276,2055,444,1343,314,604,604,909,578,2470,734,2279,13203,7211,0,1302,2803,2803,2645,2159,12434,7340,9001,1205,929,399,929,3433,9956,530,578,519,1412,67,67,1130,1489,42428,444,0,0,958,2021,1029,5678,2875,205,1481,0,220]
[null,"Female 55-59",2966,5963,2997,778,298,2136,392,1171,266,535,535,901,560,2227,618,2036,11974,6741,0,1070,2593,2593,2241,1943,11077,6463,8061,1107,809,348,809,3016,8989,498,500,534,1233,53,53,1049,1337,38314,392,0,0,1042,1783,905,5321,2728,170,1132,0,221]
[null,"Female 60-64",2338,5110,2772,726,219,1993,363,1106,309,515,515,672,502,1995,540,1767,10432,5738,0,892,2404,2404,1998,1707,9653,5615,7121,997,778,400,778,2532,7665,430,505,472,968,56,56,987,1118,33644,363,0,0,1019,1564,797,4789,2385,134,957,0,222]
[null,"Female 65-69",2257,4775,2518,888,253,2156,400,1180,304,487,487,769,510,2027,588,1704,10838,5936,0,865,2683,2683,2045,1418,9049,5295,6755,1022,769,405,769,2294,7755,415,520,528,868,51,51,1166,1106,33766,400,0,0,1118,1426,876,5506,2823,95,816,0,223]
[null,"Female 70-74",1737,3551,1814,639,208,1661,303,909,208,469,469,618,350,1696,496,1467,8114,4419,0,612,2020,2020,1521,849,6886,4003,5212,821,613,322,613,1674,5791,298,452,411,577,45,45,945,831,25722,303,0,0,900,1097,701,4222,2202,47,578,0,224]
[null,"Female 75-79",1503,2860,1357,497,146,1248,265,748,164,359,359,503,242,1532,389,1122,6433,3743,0,453,1429,1429,1201,742,5457,3182,4221,606,460,255,460,1236,4739,229,322,298,432,23,23,781,537,20290,265,0,0,708,804,584,3210,1781,33,378,0,225]
[null,"Female 80-84",1173,2191,1018,392,122,932,159,514,103,290,290,404,194,1130,277,933,5039,3157,0,298,1053,1053,812,631,4169,2456,3283,517,395,186,395,886,3827,154,265,234,275,27,27,602,381,15640,159,0,0,504,611,411,2451,1398,22,239,0,226]
[null,"Female 85-89",860,1506,646,253,70,553,84,288,45,156,156,263,118,659,182,648,3357,2204,0,161,652,652,449,423,2555,1666,2092,310,240,132,240,463,2621,63,160,133,123,14,14,388,220,9964,84,0,0,302,340,243,1556,904,10,172,0,227]
[null,"Female 90+",524,939,415,129,44,360,69,162,18,91,91,117,53,390,114,356,2136,1368,0,123,432,432,285,276,1452,1042,1218,174,130,90,130,234,1635,46,103,73,66,7,7,264,99,6057,69,0,0,234,168,144,942,510,7,107,0,228]
[null,"Male 0-4",null,null,null,null,null,null,null,null,null,null,null,null,null,null,null,null,null,null,null,null,null,null,null,null,null,null,null,null,null,null,null,null,null,null,null,null,null,null,null,null,null,null,null,null,null,null,null,null,null,null,null,null,null,229]
[null,"Male 5-9",null,null,null,null,null,null,null,null,null,null,null,null,null,null,null,null,null,null,null,null,null,null,null,null,null,null,null,null,null,null,null,null,null,null,null,null,null,null,null,null,null,null,null,null,null,null,null,null,null,null,null,null,null,230]
[null,"Male 10-15",null,null,null,null,null,null,null,null,null,null,null,null,null,null,null,null,null,null,null,null,null,null,null,null,null,null,null,null,null,null,null,null,null,null,null,null,null,null,null,null,null,null,null,null,null,null,null,null,null,null,null,null,null,231]
[null,"Male 16-19",1833,4038,2205,503,336,1155,292,1196,157,285,285,636,336,1458,356,1497,8997,4948,0,708,2180,2180,1904,1316,7345,4642,5415,834,498,205,498,1930,6525,350,604,313,823,30,30,576,831,26907,292,0,0,506,1107,1039,3895,1715,108,871,0,232]
[null,"Male 20-24",3051,5432,2381,525,890,1262,240,1355,164,313,313,807,381,1732,452,1641,14630,9034,0,832,3576,3576,2187,3142,10042,6219,7802,1372,482,187,482,2240,10814,393,787,330,925,47,47,665,963,38069,240,0,0,551,1315,1191,5573,1997,137,935,0,233]
[null,"Male 25-29",4459,6747,2288,411,696,881,166,708,115,261,261,750,306,1401,343,1150,12554,8854,0,817,1992,1992,1525,3333,8671,7461,6928,1187,491,198,491,1743,10396,376,714,212,779,45,45,534,754,34280,166,0,0,363,964,593,3687,1695,92,823,0,234]
[null,"Male 30-34",3859,6532,2673,463,328,796,185,585,118,302,302,517,328,1183,373,937,10672,7034,0,972,1945,1945,1557,2602,7297,7089,5667,862,534,189,534,1630,8542,382,557,197,690,41,41,568,672,30164,185,0,0,271,940,467,3493,1548,84,753,0,235]
[null,"Male 35-39",3262,6354,3092,503,296,1088,270,723,150,323,323,563,384,1406,450,1414,10842,6629,0,1065,2116,2116,1788,2207,8261,6825,6103,1003,707,187,707,2158,8456,431,471,281,916,61,61,658,802,31915,270,0,0,423,1242,573,3840,1724,87,946,0,236]
[null,"Male 40-44",2959,6397,3438,654,343,1420,375,1012,212,351,351,566,482,1735,611,1726,11821,6553,0,1215,2580,2580,2227,1994,9301,6974,6734,1037,694,245,694,2567,8866,474,577,352,1075,46,46,716,940,35113,375,0,0,586,1492,800,4516,1936,94,1228,0,237]
[null,"Male 45-49",2985,6569,3584,722,290,1753,501,1297,301,474,474,783,581,2049,677,1989,12932,6865,0,1318,2835,2835,2615,2065,10760,7236,7764,1145,855,289,855,2996,9596,580,667,473,1245,68,68,871,1207,39359,501,0,0,699,1751,996,5211,2376,165,1474,0,238]
[null,"Male 50-54",3049,6537,3488,851,318,1910,414,1250,289,552,552,773,531,2287,781,1943,12608,6804,0,1280,2656,2656,2530,2031,11368,7129,8236,1170,852,428,852,3132,9538,535,592,525,1345,63,63,1090,1371,40044,414,0,0,854,1787,961,5370,2714,176,1418,0,239]
[null,"Male 55-59",2865,5865,3000,736,275,1940,349,1065,241,495,495,815,541,2085,594,1958,11446,6275,0,1060,2549,2549,2125,1782,10493,6358,7647,1047,772,382,772,2846,8548,468,493,464,1166,73,73,894,1299,36422,349,0,0,935,1680,824,4994,2445,141,1211,0,240]
[null,"Male 60-64",2539,5286,2747,683,227,1821,368,1012,269,471,471,663,469,1843,502,1657,9755,5398,0,863,2194,2194,1875,1586,9088,5754,6602,940,713,317,713,2486,7193,394,468,474,967,54,54,897,1060,32001,368,0,0,878,1519,743,4437,2243,139,899,0,241]
[null,"Male 65-69",2245,4804,2559,815,242,2024,403,1120,305,512,512,657,492,1842,508,1491,9962,5381,0,838,2421,2421,1958,1408,8382,5273,6226,989,747,351,747,2156,7138,426,469,505,842,63,63,1053,1037,31688,403,0,0,1027,1314,815,4946,2525,97,823,0,242]
[null,"Male 70-74",1467,3173,1706,604,202,1531,260,762,197,365,365,513,320,1463,425,1142,7147,3753,0,550,1899,1899,1312,842,6066,3547,4552,731,529,297,529,1514,4988,284,374,386,505,41,41,806,759,22663,260,0,0,825,1009,565,3822,1923,49,526,0,243]
[null,"Male 75-79",1112,2328,1216,397,126,1065,177,612,121,311,311,422,216,1223,326,941,5059,2802,0,370,1204,1204,982,584,4497,2617,3464,487,361,200,361,1033,3678,182,289,251,360,22,22,616,484,16475,177,0,0,598,673,491,2639,1435,32,368,0,244]
[null,"Male 80-84",823,1612,789,330,76,764,130,426,81,203,203,327,135,911,224,686,3734,2207,0,271,872,872,697,388,3122,1806,2438,345,269,141,269,684,2732,113,194,190,196,16,16,479,291,11823,130,0,0,439,488,345,2008,1136,21,188,0,245]
[null,"Male 85-89",454,876,422,144,52,393,80,177,34,105,105,187,75,447,101,358,1976,1228,0,110,426,426,287,190,1512,995,1210,193,141,67,141,302,1470,56,119,91,87,10,10,265,142,6067,80,0,0,227,215,143,1022,596,6,85,0,246]
[null,"Male 90+",222,413,191,52,14,191,23,72,9,44,44,61,30,190,63,149,932,594,0,50,182,182,122,100,634,460,521,70,56,42,56,113,727,24,47,42,40,4,4,108,38,2678,23,0,0,119,73,63,403,221,2,46,0,247]

{"sheet":"Lists","index":9,"n_rows":85,"n_cols":12,"rows_kept":85,"cut":false,"hidden":true,"merged":[]}
["AREA LOOK-UP",null,null,"AREA name","Equivalent to",null,"AREA CODE LOOK-UP",null,"INTERVENTIONS",null,"TARGETING OPTIONS"]
[1,"Scotland",null,"Aberdeen City IJB","Aberdeen City Local Authority",null,"Scotland","S00000001",1,"Computerised CBT",1,"Even distribution"]
[2,"Ayrshire & Arran Health Board",null,"Aberdeen City Local Authority","Aberdeen City Local Authority",null,"Ayrshire & Arran Health Board","S08000015",2,"Individual guided self-help",2,"Targeting to SIMD Q1"]
[3,"Borders Health Board",null,"Aberdeen City Region Deal","Aberdeen City Region Deal",null,"Borders Health Board","S08000016",3,"Group physical activity",3,"Targeting to SIMD Q1 & Q2"]
[4,"Dumfries & Galloway Health Board",null,"Aberdeenshire IJB","Aberdeenshire Local Authority",null,"Dumfries & Galloway Health Board","S08000017",null,null,4,"Proportionate to need"]
[5,"Fife Health Board",null,"Aberdeenshire Local Authority","Aberdeenshire Local Authority",null,"Fife Health Board","S08000018"]
[6,"Forth Valley Health Board",null,"Angus IJB","Angus Local Authority",null,"Forth Valley Health Board","S08000019"]
[7,"Grampian Health Board",null,"Angus Local Authority","Angus Local Authority",null,"Grampian Health Board","S08000020"]
[8,"Greater Glasgow & Clyde Health Board",null,"Argyll & Bute IJB","Argyll & Bute Local Authority",null,"Greater Glasgow & Clyde Health Board","S08000021"]
[9,"Highland Health Board",null,"Argyll & Bute Local Authority","Argyll & Bute Local Authority",null,"Highland Health Board","S08000022"]
[10,"Lanarkshire Health Board",null,"Ayrshire & Arran Health Board","Ayrshire & Arran Health Board",null,"Lanarkshire Health Board","S08000023"]
[11,"Lothian Health Board",null,"Borders Health Board","Borders Health Board",null,"Lothian Health Board","S08000024"]
[12,"Orkney Health Board",null,"Clackmannanshire & Stirling IJB","Clackmannanshire & Stirling IJB",null,"Orkney Health Board","S08000025"]
[13,"Shetland Health Board",null,"Clackmannanshire Local Authority","Clackmannanshire Local Authority",null,"Shetland Health Board","S08000026"]
[14,"Tayside Health Board",null,"Dumfries & Galloway Health Board","Dumfries & Galloway Health Board",null,"Tayside Health Board","S08000027"]
[15,"Western Isles Health Board",null,"Dumfries & Galloway IJB","Dumfries & Galloway Local Authority",null,"Western Isles Health Board","S08000028"]
[16,"Aberdeen City Local Authority",null,"Dumfries & Galloway Local Authority","Dumfries & Galloway Local Authority",null,"Clackmannanshire Local Authority","S12000005"]
[17,"Aberdeenshire Local Authority",null,"Dundee City IJB","Dundee City Local Authority",null,"Dumfries & Galloway Local Authority","S12000006"]
[18,"Angus Local Authority",null,"Dundee City Local Authority","Dundee City Local Authority",null,"East Ayrshire Local Authority","S12000008"]
[19,"Argyll & Bute Local Authority",null,"East Ayrshire IJB","East Ayrshire Local Authority",null,"East Lothian Local Authority","S12000010"]
[20,"Clackmannanshire Local Authority",null,"East Ayrshire Local Authority","East Ayrshire Local Authority",null,"East Renfrewshire Local Authority","S12000011"]
[21,"Dumfries & Galloway Local Authority",null,"East Dunbartonshire IJB","East Dunbartonshire Local Authority",null,"Eilean Siar Local Authority","S12000013"]
[22,"Dundee City Local Authority",null,"East Dunbartonshire Local Authority","East Dunbartonshire Local Authority",null,"Falkirk Local Authority","S12000014"]
[23,"East Ayrshire Local Authority",null,"East Lothian IJB","East Lothian Local Authority",null,"Fife Local Authority","S12000015"]
[24,"East Dunbartonshire Local Authority",null,"East Lothian Local Authority","East Lothian Local Authority",null,"Highland Local Authority","S12000017"]
[25,"East Lothian Local Authority",null,"East Renfrewshire IJB","East Renfrewshire Local Authority",null,"Inverclyde Local Authority","S12000018"]
[26,"East Renfrewshire Local Authority",null,"East Renfrewshire Local Authority","East Renfrewshire Local Authority",null,"Midlothian Local Authority","S12000019"]
[27,"Edinburgh, City of Local Authority",null,"Edinburgh & SE Scotland City Region Deal","Edinburgh & SE Scotland City Region Deal",null,"Moray Local Authority","S12000020"]
[28,"Eilean Siar Local Authority",null,"Edinburgh, City of Local Authority","Edinburgh, City of Local Authority",null,"North Ayrshire Local Authority","S12000021"]
[29,"Falkirk Local Authority",null,"Edinburgh, City of, IJB","Edinburgh, City of Local Authority",null,"Orkney Islands Local Authority","S12000023"]
[30,"Fife Local Authority",null,"Eilean Siar IJB","Eilean Siar Local Authority",null,"Perth & Kinross Local Authority","S12000024"]
[31,"Glasgow City Local Authority",null,"Eilean Siar Local Authority","Eilean Siar Local Authority",null,"Scottish Borders Local Authority","S12000026"]
[32,"Highland Local Authority",null,"Falkirk IJB","Falkirk Local Authority",null,"Shetland Islands Local Authority","S12000027"]
[33,"Inverclyde Local Authority",null,"Falkirk Local Authority","Falkirk Local Authority",null,"South Ayrshire Local Authority","S12000028"]
[34,"Midlothian Local Authority",null,"Fife Health Board","Fife Health Board",null,"South Lanarkshire Local Authority","S12000029"]
[35,"Moray Local Authority",null,"Fife IJB","Fife Local Authority",null,"Stirling Local Authority","S12000030"]
[36,"North Ayrshire Local Authority",null,"Fife Local Authority","Fife Local Authority",null,"Aberdeen City Local Authority","S12000033"]
[37,"North Lanarkshire Local Authority",null,"Forth Valley Health Board","Forth Valley Health Board",null,"Aberdeenshire Local Authority","S12000034"]
[38,"Orkney Islands Local Authority",null,"Glasgow City IJB","Glasgow City Local Authority",null,"Argyll & Bute Local Authority","S12000035"]
[39,"Perth & Kinross Local Authority",null,"Glasgow City Local Authority","Glasgow City Local Authority",null,"Edinburgh, City of Local Authority","S12000036"]
[40,"Renfrewshire Local Authority",null,"Glasgow City Region Deal","Glasgow City Region Deal",null,"Renfrewshire Local Authority","S12000038"]
[41,"Scottish Borders Local Authority",null,"Grampian Health Board","Grampian Health Board",null,"West Dunbartonshire Local Authority","S12000039"]
[42,"Shetland Islands Local Authority",null,"Greater Glasgow & Clyde Health Board","Greater Glasgow & Clyde Health Board",null,"West Lothian Local Authority","S12000040"]
[43,"South Ayrshire Local Authority",null,"Highland Health Board","Highland Health Board",null,"Angus Local Authority","S12000041"]
[44,"South Lanarkshire Local Authority",null,"Highland Local Authority","Highland Local Authority",null,"Dundee City Local Authority","S12000042"]
[45,"Stirling Local Authority",null,"Highland Partnership","Highland Local Authority",null,"North Lanarkshire Local Authority","S12000044"]
[46,"West Dunbartonshire Local Authority",null,"Inverclyde IJB","Inverclyde Local Authority",null,"East Dunbartonshire Local Authority","S12000045"]
[47,"West Lothian Local Authority",null,"Inverclyde Local Authority","Inverclyde Local Authority",null,"Glasgow City Local Authority","S12000046"]
[48,"Aberdeen City Region Deal",null,"Inverness & Highland City Region Deal","Inverness & Highland City Region Deal"]
[49,"Edinburgh & SE Scotland City Region Deal",null,"Lanarkshire Health Board","Lanarkshire Health Board"]
[50,"Glasgow City Region Deal",null,"Lothian Health Board","Lothian Health Board"]
[51,"Inverness & Highland City Region Deal",null,"Midlothian IJB","Midlothian Local Authority"]
[52,"Stirling & Clackmannanshire City Region Deal",null,"Midlothian Local Authority","Midlothian Local Authority"]
[53,"Tay Cities Region Deal ",null,"Moray IJB","Moray Local Authority"]
[54,"Aberdeen City IJB",null,"Moray Local Authority","Moray Local Authority"]
[55,"Aberdeenshire IJB",null,"North Ayrshire IJB","North Ayrshire Local Authority"]
[56,"Angus IJB",null,"North Ayrshire Local Authority","North Ayrshire Local Authority"]
[57,"Argyll & Bute IJB",null,"North Lanarkshire IJB","North Lanarkshire Local Authority"]
[58,"Clackmannanshire & Stirling IJB",null,"North Lanarkshire Local Authority","North Lanarkshire Local Authority"]
[59,"Dumfries & Galloway IJB",null,"Orkney Health Board","Orkney Health Board"]
[60,"Dundee City IJB",null,"Orkney Islands IJB","Orkney Islands Local Authority"]
[61,"East Ayrshire IJB",null,"Orkney Islands Local Authority","Orkney Islands Local Authority"]
[62,"East Dunbartonshire IJB",null,"Perth & Kinross IJB","Perth & Kinross Local Authority"]
[63,"East Lothian IJB",null,"Perth & Kinross Local Authority","Perth & Kinross Local Authority"]
[64,"East Renfrewshire IJB",null,"Renfrewshire IJB","Renfrewshire Local Authority"]
[65,"Edinburgh, City of, IJB",null,"Renfrewshire Local Authority","Renfrewshire Local Authority"]
[66,"Eilean Siar IJB",null,"Scotland","Scotland"]
[67,"Falkirk IJB",null,"Scottish Borders IJB","Scottish Borders Local Authority"]
[68,"Fife IJB",null,"Scottish Borders Local Authority","Scottish Borders Local Authority"]
[69,"Glasgow City IJB",null,"Shetland Health Board","Shetland Health Board"]
[70,"Highland Partnership",null,"Shetland Islands IJB","Shetland Islands Local Authority"]
[71,"Inverclyde IJB",null,"Shetland Islands Local Authority","Shetland Islands Local Authority"]
[72,"Midlothian IJB",null,"South Ayrshire IJB","South Ayrshire Local Authority"]
[73,"Moray IJB",null,"South Ayrshire Local Authority","South Ayrshire Local Authority"]
[74,"North Ayrshire IJB",null,"South Lanarkshire IJB","South Lanarkshire Local Authority"]
[75,"North Lanarkshire IJB",null,"South Lanarkshire Local Authority","South Lanarkshire Local Authority"]
[76,"Orkney Islands IJB",null,"Stirling & Clackmannanshire City Region Deal","Clackmannanshire & Stirling IJB"]
[77,"Perth & Kinross IJB",null,"Stirling Local Authority","Stirling Local Authority"]
[78,"Renfrewshire IJB",null,"Tay Cities Region Deal ","Tay Cities Region Deal "]
[79,"Scottish Borders IJB",null,"Tayside Health Board","Tayside Health Board"]
[80,"Shetland Islands IJB",null,"West Dunbartonshire IJB","West Dunbartonshire Local Authority"]
[81,"South Ayrshire IJB",null,"West Dunbartonshire Local Authority","West Dunbartonshire Local Authority"]
[82,"South Lanarkshire IJB",null,"West Lothian IJB","West Lothian Local Authority"]
[83,"West Dunbartonshire IJB",null,"West Lothian Local Authority","West Lothian Local Authority"]
[84,"West Lothian IJB",null,"Western Isles Health Board","Western Isles Health Board"]

{"sheet":"Demographic data","index":10,"n_rows":41,"n_cols":4,"rows_kept":41,"cut":false,"hidden":true,"merged":[]}
["Demographic data"]
[]
["sub group","European Standard Population (ESP 2013)","mean age (2016)","life expectancy (2014-2016)"]
["Female 0-4",5000,2.0384009999999999,81.468401]
["Female 5-9",5500,6.9792800000000002,81.439279999999997]
["Female 10-15",6600,12.47831,81.948309999999992]
["Female 16-19",4400,17.570049999999998,81.100049999999996]
["Female 20-24",6000,22.077059999999999,81.667060000000006]
["Female 25-29",6000,26.975190000000001,81.645189999999999]
["Female 30-34",6500,31.9999,81.799899999999994]
["Female 35-39",7000,36.918120000000002,81.898120000000006]
["Female 40-44",7000,42.077440000000003,82.30744]
["Female 45-49",7000,47.025770000000001,82.585769999999997]
["Female 50-54",7000,51.990830000000003,82.980829999999997]
["Female 55-59",6500,56.953040000000001,83.473039999999997]
["Female 60-64",6000,61.947389999999999,84.167389999999997]
["Female 65-69",5500,67.063929999999999,85.193929999999995]
["Female 70-74",5000,71.938159999999996,86.248159999999999]
["Female 75-79",4000,76.942830000000001,87.812830000000005]
["Female 80-84",2500,81.856710000000007,89.736710000000002]
["Female 85-89",1500,86.730819999999994,92.220819999999989]
["Female 90+",1000,92.779340000000005,96.279340000000005]
["Male 0-4",5000,2.0320819999999999,77.402082000000007]
["Male 5-9",5500,6.9784759999999997,77.398476000000002]
["Male 10-15",6600,12.47114,77.921140000000008]
["Male 16-19",4400,17.556319999999999,77.07632000000001]
["Male 20-24",6000,22.05463,77.704629999999995]
["Male 25-29",6000,26.959759999999999,77.789760000000001]
["Male 30-34",6500,31.98152,78.061520000000002]
["Male 35-39",7000,36.926009999999998,78.336009999999987]
["Male 40-44",7000,42.067700000000002,78.907700000000006]
["Male 45-49",7000,47.038150000000002,79.418149999999997]
["Male 50-54",7000,51.998649999999998,79.988649999999993]
["Male 55-59",6500,56.950870000000002,80.660870000000003]
["Male 60-64",6000,61.942990000000002,81.612989999999996]
["Male 65-69",5500,67.054419999999993,82.954419999999999]
["Male 70-74",5000,71.891099999999994,84.341099999999997]
["Male 75-79",4000,76.907700000000006,86.357700000000008]
["Male 80-84",2500,81.797089999999997,88.627089999999995]
["Male 85-89",1500,86.630750000000006,91.420750000000012]
["Male 90+",1000,92.215479999999999,95.515479999999997]

{"sheet":"Health outcome totals 2016","index":11,"n_rows":17,"n_cols":56,"rows_kept":17,"cut":false,"hidden":true,"merged":[]}
["Health outcome totals, 2016"]
[]
[null,null,"Aberdeen City Local Authority","Aberdeen City Region Deal","Aberdeenshire Local Authority","Angus Local Authority","Argyll & Bute Local Authority","Ayrshire & Arran Health Board","Borders Health Board","Clackmannanshire & Stirling IJB","Clackmannanshire Local Authority","Dumfries & Galloway Health Board","Dumfries & Galloway Local Authority","Dundee City Local Authority","East Ayrshire Local Authority","East Dunbartonshire Local Authority","East Lothian Local Authority","East Renfrewshire Local Authority","Edinburgh & SE Scotland City Region Deal","Edinburgh, City of Local Authority","Eilean Siar Local Authority","Falkirk Local Authority","Fife Health Board","Fife Local Authority","Forth Valley Health Board","Glasgow City Local Authority","Glasgow City Region Deal","Grampian Health Board","Greater Glasgow & Clyde Health Board","Highland Health Board","Highland Local Authority","Inverclyde Local Authority","Inverness & Highland City Region Deal","Lanarkshire Health Board","Lothian Health Board","Midlothian Local Authority","Moray Local Authority","North Ayrshire Local Authority","North Lanarkshire Local Authority","Orkney Health Board","Orkney Islands Local Authority","Perth & Kinross Local Authority","Renfrewshire Local Authority","Scotland","Scottish Borders Local Authority","Shetland Health Board","Shetland Islands Local Authority","South Ayrshire Local Authority","South Lanarkshire Local Authority","Stirling Local Authority","Tay Cities Region Deal ","Tayside Health Board","West Dunbartonshire Local Authority","West Lothian Local Authority","Western Isles Health Board",1]
[null,null,"S12000033","Aber_deal","S12000034","S12000041","S12000035","S08000015","S08000016","ClacksStirIJB","S12000005","S08000017","S12000006","S12000042","S12000008","S12000045","S12000010","S12000011","EdinSE_deal","S12000036","S12000013","S12000014","S08000018","S12000015","S08000019","S12000046","GClyde_deal","S08000020","S08000021","S08000022","S12000017","S12000018","Inver_deal","S08000023","S08000024","S12000019","S12000020","S12000021","S12000044","S08000025","S12000023","S12000024","S12000038","S00000001","S12000026","S08000026","S12000027","S12000028","S12000029","S12000030","Tay_deal","S08000027","S12000039","S12000040","S08000028",2]
[null,null,null,null,null,null,null,null,null,null,null,null,null,null,null,null,null,null,null,null,null,null,null,null,null,null,null,null,null,null,null,null,null,null,null,null,null,null,null,null,null,null,null,null,null,null,null,null,null,null,null,null,null,null,null,3]
[null,"All hospital admissions (16+)",41626,84145,42519,18091,21023,90768,25209,20471,7651,34490,34490,23727,28249,28833,18105,21705,243108,77192,7253,24369,73148,73148,44840,155175,465272,101100,299797,63264,42241,21552,42241,165475,144751,16294,16955,33649,88230,4636,4636,23268,47578,1125093,25209,5276,5276,28870,77245,12820,138234,65086,24954,33160,7253,4]
[null,"All hospital admissions (SIMD Q1, 16+)",4722,5748,1026,1291,1909,30005,1818,4205,2064,3291,3291,9713,9944,1787,691,1667,41988,13947,0,4489,16974,16974,8694,88379,175909,5919,127063,5479,3570,10387,3570,48846,23196,1769,171,14603,30793,0,0,1429,14646,283718,1818,0,0,5458,18053,2141,29407,12433,10197,6789,0,5]
[null,"All hospital admissions (SIMD Q1 and Q2, 16+)",15717,21194,5477,4707,5862,52925,6550,8550,4153,13054,13054,14796,17671,7386,6437,3905,98104,26095,1759,12454,34033,34033,21004,114868,279835,24321,181891,18570,12708,13017,12708,97944,57521,8106,3127,21482,57322,758,758,4360,25069,534382,6550,189,189,13772,40622,4397,57896,23863,17646,16883,1759,6]
[null,"All deaths (16+)",2126,4486,2360,1434,1110,4492,1277,1445,546,1858,1858,1690,1454,1113,1001,883,13129,4361,359,1734,4091,4091,3179,6321,19540,5465,12443,3507,2397,1006,2397,7097,7761,848,979,1593,3569,223,223,1617,2070,56725,1277,232,232,1445,3528,899,8832,4741,1050,1551,359,7]
[null,"All deaths (SIMD Q1, 16+)",202,270,68,101,108,1512,66,296,141,153,153,703,542,54,27,76,2183,793,0,306,909,909,602,3747,7764,282,5491,286,178,495,178,2273,1208,86,12,699,1432,0,0,79,684,13665,66,0,0,271,841,155,1792,883,435,302,0,8]
[null,"All deaths (SIMD Q1 and Q2, 16+)",759,1068,309,366,335,2716,302,581,291,699,699,1072,985,270,354,152,5276,1482,88,941,1903,1903,1522,4890,12279,1233,7808,1019,684,593,684,4471,3071,440,165,1017,2551,35,35,252,1137,26567,302,10,10,714,1920,290,3593,1690,766,795,88,9]
[null,"Premature deaths (16+)",811,1608,797,476,393,1746,418,519,224,616,616,687,565,356,362,248,4764,1514,133,665,1511,1511,1184,2759,7841,1940,4946,1277,884,382,884,2895,2835,327,332,659,1546,66,66,520,784,21313,418,63,63,522,1349,295,3194,1683,417,632,133,10]
[null,"Premature deaths (SIMD Q1, 16+)",107,137,30,43,47,690,33,124,56,77,77,368,228,26,18,35,1042,380,0,144,431,431,268,1758,3631,142,2540,142,95,222,95,1091,578,43,5,329,672,0,0,40,308,6443,33,0,0,133,419,68,882,451,191,137,0,11]
[null,"Premature deaths (SIMD Q1 and Q2, 16+)",364,493,129,150,141,1182,114,247,124,288,288,516,405,100,145,71,2222,649,42,398,801,801,645,2232,5428,569,3464,449,308,273,308,1964,1307,173,76,469,1151,10,10,112,460,11618,114,5,5,308,813,123,1579,778,328,340,42,12]
[null,"Years of Life Lost (16+)",27478.849984764998,54444.2399408817,26965.3899561166,16090.8199598789,12686.9499692916,56848.409873366298,13994.529939413,17303.359948515801,7163.6299738883899,21118.8499506712,21118.8499506712,23122.199981927799,17993.719950675899,12374.2699501514,12200.3899704217,9172.4499734640103,160653.58962154301,53280.459909200603,4023.4899880886001,22452.289941430001,50451.919886112199,50451.919886112199,39755.649889945897,89197.719813108401,256885.999366998,65559.529895305604,162663.369581103,41357.789903044701,28670.839933752999,12320.2399550676,28670.839933752999,94222.629785895304,96207.1397960186,10264.6499630212,11115.289954423901,21125.3999617099,49180.329858660698,2374.0299997329698,2374.0299997329698,18424.4199427366,25842.089928984598,708624.04837918223,13994.529939413,2409.2700059413901,2409.2700059413901,17729.289960980401,45042.299927234599,10139.7299746275,108089.35977065501,57637.439884543397,13756.599960327099,20461.639953374801,4023.4899880886001,13]
[null,"Years of Life Lost (SIMD Q1, 16+)",3295.92993164062,4366.02978515625,1070.09997558593,1397.83996582031,1470.84997558593,22073.8203125,964.219970703125,4154.080078125,1917.78002929687,2255.6298828125,2255.6298828125,11311.849609375,7246.14013671875,801.34997558593705,506.52999877929602,1143.19995117187,33291.8515625,12423.990234375,0,4594.18994140625,13844.83984375,13844.83984375,8748.26953125,55460.6796875,114187.4921875,4533.0498046875,80170.8125,4432.89990234375,2962.05004882812,6832.72021484375,2962.05004882812,34016.6796875,18482.7890625,1343.33996582031,167.02000427246,10474.1796875,20828.01953125,0,0,1313.01000976562,9733.16015625,203545.71069335938,964.219970703125,0,0,4353.5,13188.66015625,2236.30004882812,27867.5390625,14022.7001953125,6199.7001953125,4208.93017578125,0,14]
[null,"Years of Life Lost (SIMD Q1 and Q2, 16+)",11539.6896972656,15803.310058593701,4263.6199951171802,4814.6199951171802,4330.8499755859302,37723.6103515625,3783.65991210937,8139.5300292968705,4124.93994140625,9004.40966796875,9004.40966796875,16525.039550781199,12834.580078125,3274.6199951171802,4628.5700378417896,2192.68994140625,71927.140625,21426.830078125,1201.05004882812,13288.649902343701,25972.349609375,25972.349609375,21428.1796875,71527.9296875,173737.29296875,18071.849609375,110859.11328125,13808.199707031201,9477.3498535156195,8312.5902099609302,9477.3498535156195,62878.1796875,42171.12890625,5422.7598876953098,2268.54002380371,14767.939453125,36228.279296875,369.36999511718699,369.36999511718699,3594.6298828125,14987.880371093701,372328.97050476068,3783.65991210937,123.58000183105401,123.58000183105401,10121.08984375,26649.900390625,4014.59008789062,50906.638671875,24934.2900390625,10563.400390625,10692.970214843701,1201.05004882812,15]

{"sheet":"Prevalence Rates","index":12,"n_rows":249,"n_cols":56,"rows_kept":249,"cut":false,"hidden":true,"merged":[]}
["Prevalence of mild/moderate (sub-threshold) depression (N.B. National figures used throughout)"]
[]
["SIMD","group","Aberdeen City Local Authority","Aberdeen City Region Deal","Aberdeenshire Local Authority","Angus Local Authority","Argyll & Bute Local Authority","Ayrshire & Arran Health Board","Borders Health Board","Clackmannanshire & Stirling IJB","Clackmannanshire Local Authority","Dumfries & Galloway Health Board","Dumfries & Galloway Local Authority","Dundee City Local Authority","East Ayrshire Local Authority","East Dunbartonshire Local Authority","East Lothian Local Authority","East Renfrewshire Local Authority","Edinburgh & SE Scotland City Region Deal","Edinburgh, City of Local Authority","Eilean Siar Local Authority","Falkirk Local Authority","Fife Health Board","Fife Local Authority","Forth Valley Health Board","Glasgow City Local Authority","Glasgow City Region Deal","Grampian Health Board","Greater Glasgow & Clyde Health Board","Highland Health Board","Highland Local Authority","Inverclyde Local Authority","Inverness & Highland City Region Deal","Lanarkshire Health Board","Lothian Health Board","Midlothian Local Authority","Moray Local Authority","North Ayrshire Local Authority","North Lanarkshire Local Authority","Orkney Health Board","Orkney Islands Local Authority","Perth & Kinross Local Authority","Renfrewshire Local Authority","Scotland","Scottish Borders Local Authority","Shetland Health Board","Shetland Islands Local Authority","South Ayrshire Local Authority","South Lanarkshire Local Authority","Stirling Local Authority","Tay Cities Region Deal ","Tayside Health Board","West Dunbartonshire Local Authority","West Lothian Local Authority","Western Isles Health Board",1]
[null,null,null,null,null,null,null,null,null,null,null,null,null,null,null,null,null,null,null,null,null,null,null,null,null,null,null,null,null,null,null,null,null,null,null,null,null,null,null,null,null,null,null,null,null,null,null,null,null,null,null,null,null,null,null,2]
["All quintiles","16+ Males and Females",null,null,null,null,null,null,null,null,null,null,null,null,null,null,null,null,null,null,null,null,null,null,null,null,null,null,null,null,null,null,null,null,null,null,null,null,null,null,null,null,null,null,null,null,null,null,null,null,null,null,null,null,null,3]
["Q1 and Q2","16+ Males and Females",null,null,null,null,null,null,null,null,null,null,null,null,null,null,null,null,null,null,null,null,null,null,null,null,null,null,null,null,null,null,null,null,null,null,null,null,null,null,null,null,null,null,null,null,null,null,null,null,null,null,null,null,null,4]
["SIMD Q1 (most deprived)","16+ Males and Females",null,null,null,null,null,null,null,null,null,null,null,null,null,null,null,null,null,null,null,null,null,null,null,null,null,null,null,null,null,null,null,null,null,null,null,null,null,null,null,null,null,null,null,null,null,null,null,null,null,null,null,null,null,5]
["SIMD Q2",null,null,null,null,null,null,null,null,null,null,null,null,null,null,null,null,null,null,null,null,null,null,null,null,null,null,null,null,null,null,null,null,null,null,null,null,null,null,null,null,null,null,null,null,null,null,null,null,null,null,null,null,null,null,6]
["SIMD Q3",null,null,null,null,null,null,null,null,null,null,null,null,null,null,null,null,null,null,null,null,null,null,null,null,null,null,null,null,null,null,null,null,null,null,null,null,null,null,null,null,null,null,null,null,null,null,null,null,null,null,null,null,null,null,7]
["SIMD Q4",null,null,null,null,null,null,null,null,null,null,null,null,null,null,null,null,null,null,null,null,null,null,null,null,null,null,null,null,null,null,null,null,null,null,null,null,null,null,null,null,null,null,null,null,null,null,null,null,null,null,null,null,null,null,8]
["SIMD Q5 (least deprived)",null,null,null,null,null,null,null,null,null,null,null,null,null,null,null,null,null,null,null,null,null,null,null,null,null,null,null,null,null,null,null,null,null,null,null,null,null,null,null,null,null,null,null,null,null,null,null,null,null,null,null,null,null,null,9]
["SIMD Q1 (most deprived)","16+ Females",null,null,null,null,null,null,null,null,null,null,null,null,null,null,null,null,null,null,null,null,null,null,null,null,null,null,null,null,null,null,null,null,null,null,null,null,null,null,null,null,null,null,null,null,null,null,null,null,null,null,null,null,null,10]
["SIMD Q2",null,null,null,null,null,null,null,null,null,null,null,null,null,null,null,null,null,null,null,null,null,null,null,null,null,null,null,null,null,null,null,null,null,null,null,null,null,null,null,null,null,null,null,null,null,null,null,null,null,null,null,null,null,null,11]
["SIMD Q3",null,null,null,null,null,null,null,null,null,null,null,null,null,null,null,null,null,null,null,null,null,null,null,null,null,null,null,null,null,null,null,null,null,null,null,null,null,null,null,null,null,null,null,null,null,null,null,null,null,null,null,null,null,null,12]
["SIMD Q4",null,null,null,null,null,null,null,null,null,null,null,null,null,null,null,null,null,null,null,null,null,null,null,null,null,null,null,null,null,null,null,null,null,null,null,null,null,null,null,null,null,null,null,null,null,null,null,null,null,null,null,null,null,null,13]
["SIMD Q5 (least deprived)",null,null,null,null,null,null,null,null,null,null,null,null,null,null,null,null,null,null,null,null,null,null,null,null,null,null,null,null,null,null,null,null,null,null,null,null,null,null,null,null,null,null,null,null,null,null,null,null,null,null,null,null,null,null,14]
["SIMD Q1 (most deprived)","16+ Males",null,null,null,null,null,null,null,null,null,null,null,null,null,null,null,null,null,null,null,null,null,null,null,null,null,null,null,null,null,null,null,null,null,null,null,null,null,null,null,null,null,null,null,null,null,null,null,null,null,null,null,null,null,15]
["SIMD Q2",null,null,null,null,null,null,null,null,null,null,null,null,null,null,null,null,null,null,null,null,null,null,null,null,null,null,null,null,null,null,null,null,null,null,null,null,null,null,null,null,null,null,null,null,null,null,null,null,null,null,null,null,null,null,16]
["SIMD Q3",null,null,null,null,null,null,null,null,null,null,null,null,null,null,null,null,null,null,null,null,null,null,null,null,null,null,null,null,null,null,null,null,null,null,null,null,null,null,null,null,null,null,null,null,null,null,null,null,null,null,null,null,null,null,17]
["SIMD Q4",null,null,null,null,null,null,null,null,null,null,null,null,null,null,null,null,null,null,null,null,null,null,null,null,null,null,null,null,null,null,null,null,null,null,null,null,null,null,null,null,null,null,null,null,null,null,null,null,null,null,null,null,null,null,18]
["SIMD Q5 (least deprived)",null,null,null,null,null,null,null,null,null,null,null,null,null,null,null,null,null,null,null,null,null,null,null,null,null,null,null,null,null,null,null,null,null,null,null,null,null,null,null,null,null,null,null,null,null,null,null,null,null,null,null,null,null,null,19]
["All quintiles","Female 0-4",null,null,null,null,null,null,null,null,null,null,null,null,null,null,null,null,null,null,null,null,null,null,null,null,null,null,null,null,null,null,null,null,null,null,null,null,null,null,null,null,null,null,null,null,null,null,null,null,null,null,null,null,null,20]
[null,"Female 5-9",null,null,null,null,null,null,null,null,null,null,null,null,null,null,null,null,null,null,null,null,null,null,null,null,null,null,null,null,null,null,null,null,null,null,null,null,null,null,null,null,null,null,null,null,null,null,null,null,null,null,null,null,null,21]
[null,"Female 10-15",null,null,null,null,null,null,null,null,null,null,null,null,null,null,null,null,null,null,null,null,null,null,null,null,null,null,null,null,null,null,null,null,null,null,null,null,null,null,null,null,null,null,null,null,null,null,null,null,null,null,null,null,null,22]
[null,"Female 16-19",null,null,null,null,null,null,null,null,null,null,null,null,null,null,null,null,null,null,null,null,null,null,null,null,null,null,null,null,null,null,null,null,null,null,null,null,null,null,null,null,null,null,null,null,null,null,null,null,null,null,null,null,null,23]
[null,"Female 20-24",null,null,null,null,null,null,null,null,null,null,null,null,null,null,null,null,null,null,null,null,null,null,null,null,null,null,null,null,null,null,null,null,null,null,null,null,null,null,null,null,null,null,null,null,null,null,null,null,null,null,null,null,null,24]
[null,"Female 25-29",null,null,null,null,null,null,null,null,null,null,null,null,null,null,null,null,null,null,null,null,null,null,null,null,null,null,null,null,null,null,null,null,null,null,null,null,null,null,null,null,null,null,null,null,null,null,null,null,null,null,null,null,null,25]
[null,"Female 30-34",null,null,null,null,null,null,null,null,null,null,null,null,null,null,null,null,null,null,null,null,null,null,null,null,null,null,null,null,null,null,null,null,null,null,null,null,null,null,null,null,null,null,null,null,null,null,null,null,null,null,null,null,null,26]
[null,"Female 35-39",null,null,null,null,null,null,null,null,null,null,null,null,null,null,null,null,null,null,null,null,null,null,null,null,null,null,null,null,null,null,null,null,null,null,null,null,null,null,null,null,null,null,null,null,null,null,null,null,null,null,null,null,null,27]
[null,"Female 40-44",null,null,null,null,null,null,null,null,null,null,null,null,null,null,null,null,null,null,null,null,null,null,null,null,null,null,null,null,null,null,null,null,null,null,null,null,null,null,null,null,null,null,null,null,null,null,null,null,null,null,null,null,null,28]
[null,"Female 45-49",null,null,null,null,null,null,null,null,null,null,null,null,null,null,null,null,null,null,null,null,null,null,null,null,null,null,null,null,null,null,null,null,null,null,null,null,null,null,null,null,null,null,null,null,null,null,null,null,null,null,null,null,null,29]
[null,"Female 50-54",null,null,null,null,null,null,null,null,null,null,null,null,null,null,null,null,null,null,null,null,null,null,null,null,null,null,null,null,null,null,null,null,null,null,null,null,null,null,null,null,null,null,null,null,null,null,null,null,null,null,null,null,null,30]
[null,"Female 55-59",null,null,null,null,null,null,null,null,null,null,null,null,null,null,null,null,null,null,null,null,null,null,null,null,null,null,null,null,null,null,null,null,null,null,null,null,null,null,null,null,null,null,null,null,null,null,null,null,null,null,null,null,null,31]
[null,"Female 60-64",null,null,null,null,null,null,null,null,null,null,null,null,null,null,null,null,null,null,null,null,null,null,null,null,null,null,null,null,null,null,null,null,null,null,null,null,null,null,null,null,null,null,null,null,null,null,null,null,null,null,null,null,null,32]
[null,"Female 65-69",null,null,null,null,null,null,null,null,null,null,null,null,null,null,null,null,null,null,null,null,null,null,null,null,null,null,null,null,null,null,null,null,null,null,null,null,null,null,null,null,null,null,null,null,null,null,null,null,null,null,null,null,null,33]
[null,"Female 70-74",null,null,null,null,null,null,null,null,null,null,null,null,null,null,null,null,null,null,null,null,null,null,null,null,null,null,null,null,null,null,null,null,null,null,null,null,null,null,null,null,null,null,null,null,null,null,null,null,null,null,null,null,null,34]
[null,"Female 75-79",null,null,null,null,null,null,null,null,null,null,null,null,null,null,null,null,null,null,null,null,null,null,null,null,null,null,null,null,null,null,null,null,null,null,null,null,null,null,null,null,null,null,null,null,null,null,null,null,null,null,null,null,null,35]
[null,"Female 80-84",null,null,null,null,null,null,null,null,null,null,null,null,null,null,null,null,null,null,null,null,null,null,null,null,null,null,null,null,null,null,null,null,null,null,null,null,null,null,null,null,null,null,null,null,null,null,null,null,null,null,null,null,null,36]
[null,"Female 85-89",null,null,null,null,null,null,null,null,null,null,null,null,null,null,null,null,null,null,null,null,null,null,null,null,null,null,null,null,null,null,null,null,null,null,null,null,null,null,null,null,null,null,null,null,null,null,null,null,null,null,null,null,null,37]
[null,"Female 90+",null,null,null,null,null,null,null,null,null,null,null,null,null,null,null,null,null,null,null,null,null,null,null,null,null,null,null,null,null,null,null,null,null,null,null,null,null,null,null,null,null,null,null,null,null,null,null,null,null,null,null,null,null,38]
[null,"Male 0-4",null,null,null,null,null,null,null,null,null,null,null,null,null,null,null,null,null,null,null,null,null,null,null,null,null,null,null,null,null,null,null,null,null,null,null,null,null,null,null,null,null,null,null,null,null,null,null,null,null,null,null,null,null,39]
[null,"Male 5-9",null,null,null,null,null,null,null,null,null,null,null,null,null,null,null,null,null,null,null,null,null,null,null,null,null,null,null,null,null,null,null,null,null,null,null,null,null,null,null,null,null,null,null,null,null,null,null,null,null,null,null,null,null,40]
[null,"Male 10-15",null,null,null,null,null,null,null,null,null,null,null,null,null,null,null,null,null,null,null,null,null,null,null,null,null,null,null,null,null,null,null,null,null,null,null,null,null,null,null,null,null,null,null,null,null,null,null,null,null,null,null,null,null,41]
[null,"Male 16-19",null,null,null,null,null,null,null,null,null,null,null,null,null,null,null,null,null,null,null,null,null,null,null,null,null,null,null,null,null,null,null,null,null,null,null,null,null,null,null,null,null,null,null,null,null,null,null,null,null,null,null,null,null,42]
[null,"Male 20-24",null,null,null,null,null,null,null,null,null,null,null,null,null,null,null,null,null,null,null,null,null,null,null,null,null,null,null,null,null,null,null,null,null,null,null,null,null,null,null,null,null,null,null,null,null,null,null,null,null,null,null,null,null,43]
[null,"Male 25-29",null,null,null,null,null,null,null,null,null,null,null,null,null,null,null,null,null,null,null,null,null,null,null,null,null,null,null,null,null,null,null,null,null,null,null,null,null,null,null,null,null,null,null,null,null,null,null,null,null,null,null,null,null,44]
[null,"Male 30-34",null,null,null,null,null,null,null,null,null,null,null,null,null,null,null,null,null,null,null,null,null,null,null,null,null,null,null,null,null,null,null,null,null,null,null,null,null,null,null,null,null,null,null,null,null,null,null,null,null,null,null,null,null,45]
[null,"Male 35-39",null,null,null,null,null,null,null,null,null,null,null,null,null,null,null,null,null,null,null,null,null,null,null,null,null,null,null,null,null,null,null,null,null,null,null,null,null,null,null,null,null,null,null,null,null,null,null,null,null,null,null,null,null,46]
[null,"Male 40-44",null,null,null,null,null,null,null,null,null,null,null,null,null,null,null,null,null,null,null,null,null,null,null,null,null,null,null,null,null,null,null,null,null,null,null,null,null,null,null,null,null,null,null,null,null,null,null,null,null,null,null,null,null,47]
[null,"Male 45-49",null,null,null,null,null,null,null,null,null,null,null,null,null,null,null,null,null,null,null,null,null,null,null,null,null,null,null,null,null,null,null,null,null,null,null,null,null,null,null,null,null,null,null,null,null,null,null,null,null,null,null,null,null,48]
[null,"Male 50-54",null,null,null,null,null,null,null,null,null,null,null,null,null,null,null,null,null,null,null,null,null,null,null,null,null,null,null,null,null,null,null,null,null,null,null,null,null,null,null,null,null,null,null,null,null,null,null,null,null,null,null,null,null,49]
[null,"Male 55-59",null,null,null,null,null,null,null,null,null,null,null,null,null,null,null,null,null,null,null,null,null,null,null,null,null,null,null,null,null,null,null,null,null,null,null,null,null,null,null,null,null,null,null,null,null,null,null,null,null,null,null,null,null,50]
[null,"Male 60-64",null,null,null,null,null,null,null,null,null,null,null,null,null,null,null,null,null,null,null,null,null,null,null,null,null,null,null,null,null,null,null,null,null,null,null,null,null,null,null,null,null,null,null,null,null,null,null,null,null,null,null,null,null,51]
[null,"Male 65-69",null,null,null,null,null,null,null,null,null,null,null,null,null,null,null,null,null,null,null,null,null,null,null,null,null,null,null,null,null,null,null,null,null,null,null,null,null,null,null,null,null,null,null,null,null,null,null,null,null,null,null,null,null,52]
[null,"Male 70-74",null,null,null,null,null,null,null,null,null,null,null,null,null,null,null,null,null,null,null,null,null,null,null,null,null,null,null,null,null,null,null,null,null,null,null,null,null,null,null,null,null,null,null,null,null,null,null,null,null,null,null,null,null,53]
[null,"Male 75-79",null,null,null,null,null,null,null,null,null,null,null,null,null,null,null,null,null,null,null,null,null,null,null,null,null,null,null,null,null,null,null,null,null,null,null,null,null,null,null,null,null,null,null,null,null,null,null,null,null,null,null,null,null,54]
[null,"Male 80-84",null,null,null,null,null,null,null,null,null,null,null,null,null,null,null,null,null,null,null,null,null,null,null,null,null,null,null,null,null,null,null,null,null,null,null,null,null,null,null,null,null,null,null,null,null,null,null,null,null,null,null,null,null,55]
[null,"Male 85-89",null,null,null,null,null,null,null,null,null,null,null,null,null,null,null,null,null,null,null,null,null,null,null,null,null,null,null,null,null,null,null,null,null,null,null,null,null,null,null,null,null,null,null,null,null,null,null,null,null,null,null,null,null,56]
[null,"Male 90+",null,null,null,null,null,null,null,null,null,null,null,null,null,null,null,null,null,null,null,null,null,null,null,null,null,null,null,null,null,null,null,null,null,null,null,null,null,null,null,null,null,null,null,null,null,null,null,null,null,null,null,null,null,57]
["SIMD Q1 (most deprived)","Female 0-4",null,null,null,null,null,null,null,null,null,null,null,null,null,null,null,null,null,null,null,null,null,null,null,null,null,null,null,null,null,null,null,null,null,null,null,null,null,null,null,null,null,null,null,null,null,null,null,null,null,null,null,null,null,58]
[null,"Female 5-9",null,null,null,null,null,null,null,null,null,null,null,null,null,null,null,null,null,null,null,null,null,null,null,null,null,null,null,null,null,null,null,null,null,null,null,null,null,null,null,null,null,null,null,null,null,null,null,null,null,null,null,null,null,59]
[null,"Female 10-15",null,null,null,null,null,null,null,null,null,null,null,null,null,null,null,null,null,null,null,null,null,null,null,null,null,null,null,null,null,null,null,null,null,null,null,null,null,null,null,null,null,null,null,null,null,null,null,null,null,null,null,null,null,60]
[null,"Female 16-19",{"$f":"$AR63","v":0.20134475438354063},0.20134475438354063,0.20134475438354063,0.20134475438354063,0.20134475438354063,0.20134475438354063,0.20134475438354063,0.20134475438354063,0.20134475438354063,0.20134475438354063,{"$f":"$AR63","v":0.20134475438354063},0.20134475438354063,0.20134475438354063,0.20134475438354063,0.20134475438354063,0.20134475438354063,0.20134475438354063,0.20134475438354063,0.20134475438354063,0.20134475438354063,{"$f":"$AR63","v":0.20134475438354063},0.20134475438354063,0.20134475438354063,0.20134475438354063,0.20134475438354063,0.20134475438354063,0.20134475438354063,0.20134475438354063,0.20134475438354063,0.20134475438354063,{"$f":"$AR63","v":0.20134475438354063},0.20134475438354063,0.20134475438354063,0.20134475438354063,0.20134475438354063,0.20134475438354063,0.20134475438354063,0.20134475438354063,0.20134475438354063,0.20134475438354063,0.20134475438354063,0.20134475438354063,{"$f":"$AR63","v":0.20134475438354063},0.20134475438354063,0.20134475438354063,0.20134475438354063,0.20134475438354063,0.20134475438354063,0.20134475438354063,0.20134475438354063,0.20134475438354063,0.20134475438354063,0.20134475438354063,61]
[null,"Female 20-24",0.20134475438354063,0.20134475438354063,0.20134475438354063,0.20134475438354063,0.20134475438354063,0.20134475438354063,0.20134475438354063,0.20134475438354063,0.20134475438354063,0.20134475438354063,0.20134475438354063,0.20134475438354063,0.20134475438354063,0.20134475438354063,0.20134475438354063,0.20134475438354063,0.20134475438354063,0.20134475438354063,0.20134475438354063,0.20134475438354063,0.20134475438354063,0.20134475438354063,0.20134475438354063,0.20134475438354063,0.20134475438354063,0.20134475438354063,0.20134475438354063,0.20134475438354063,0.20134475438354063,0.20134475438354063,0.20134475438354063,0.20134475438354063,0.20134475438354063,0.20134475438354063,0.20134475438354063,0.20134475438354063,0.20134475438354063,0.20134475438354063,0.20134475438354063,0.20134475438354063,0.20134475438354063,0.20134475438354063,0.20134475438354063,0.20134475438354063,0.20134475438354063,0.20134475438354063,0.20134475438354063,0.20134475438354063,0.20134475438354063,0.20134475438354063,0.20134475438354063,0.20134475438354063,0.20134475438354063,62]
[null,"Female 25-29",0.20134475438354063,0.20134475438354063,0.20134475438354063,0.20134475438354063,0.20134475438354063,0.20134475438354063,0.20134475438354063,0.20134475438354063,0.20134475438354063,0.20134475438354063,0.20134475438354063,0.20134475438354063,0.20134475438354063,0.20134475438354063,0.20134475438354063,0.20134475438354063,0.20134475438354063,0.20134475438354063,0.20134475438354063,0.20134475438354063,0.20134475438354063,0.20134475438354063,0.20134475438354063,0.20134475438354063,0.20134475438354063,0.20134475438354063,0.20134475438354063,0.20134475438354063,0.20134475438354063,0.20134475438354063,0.20134475438354063,0.20134475438354063,0.20134475438354063,0.20134475438354063,0.20134475438354063,0.20134475438354063,0.20134475438354063,0.20134475438354063,0.20134475438354063,0.20134475438354063,0.20134475438354063,0.20134475438354063,0.20134475438354063,0.20134475438354063,0.20134475438354063,0.20134475438354063,0.20134475438354063,0.20134475438354063,0.20134475438354063,0.20134475438354063,0.20134475438354063,0.20134475438354063,0.20134475438354063,63]
[null,"Female 30-34",0.20134475438354063,0.20134475438354063,0.20134475438354063,0.20134475438354063,0.20134475438354063,0.20134475438354063,0.20134475438354063,0.20134475438354063,0.20134475438354063,0.20134475438354063,0.20134475438354063,0.20134475438354063,0.20134475438354063,0.20134475438354063,0.20134475438354063,0.20134475438354063,0.20134475438354063,0.20134475438354063,0.20134475438354063,0.20134475438354063,0.20134475438354063,0.20134475438354063,0.20134475438354063,0.20134475438354063,0.20134475438354063,0.20134475438354063,0.20134475438354063,0.20134475438354063,0.20134475438354063,0.20134475438354063,0.20134475438354063,0.20134475438354063,0.20134475438354063,0.20134475438354063,0.20134475438354063,0.20134475438354063,0.20134475438354063,0.20134475438354063,0.20134475438354063,0.20134475438354063,0.20134475438354063,0.20134475438354063,0.20134475438354063,0.20134475438354063,0.20134475438354063,0.20134475438354063,0.20134475438354063,0.20134475438354063,0.20134475438354063,0.20134475438354063,0.20134475438354063,0.20134475438354063,0.20134475438354063,64]
[null,"Female 35-39",0.20134475438354063,0.20134475438354063,0.20134475438354063,0.20134475438354063,0.20134475438354063,0.20134475438354063,0.20134475438354063,0.20134475438354063,0.20134475438354063,0.20134475438354063,0.20134475438354063,0.20134475438354063,0.20134475438354063,0.20134475438354063,0.20134475438354063,0.20134475438354063,0.20134475438354063,0.20134475438354063,0.20134475438354063,0.20134475438354063,0.20134475438354063,0.20134475438354063,0.20134475438354063,0.20134475438354063,0.20134475438354063,0.20134475438354063,0.20134475438354063,0.20134475438354063,0.20134475438354063,0.20134475438354063,0.20134475438354063,0.20134475438354063,0.20134475438354063,0.20134475438354063,0.20134475438354063,0.20134475438354063,0.20134475438354063,0.20134475438354063,0.20134475438354063,0.20134475438354063,0.20134475438354063,0.20134475438354063,0.20134475438354063,0.20134475438354063,0.20134475438354063,0.20134475438354063,0.20134475438354063,0.20134475438354063,0.20134475438354063,0.20134475438354063,0.20134475438354063,0.20134475438354063,0.20134475438354063,65]
[null,"Female 40-44",0.20134475438354063,0.20134475438354063,0.20134475438354063,0.20134475438354063,0.20134475438354063,0.20134475438354063,0.20134475438354063,0.20134475438354063,0.20134475438354063,0.20134475438354063,0.20134475438354063,0.20134475438354063,0.20134475438354063,0.20134475438354063,0.20134475438354063,0.20134475438354063,0.20134475438354063,0.20134475438354063,0.20134475438354063,0.20134475438354063,0.20134475438354063,0.20134475438354063,0.20134475438354063,0.20134475438354063,0.20134475438354063,0.20134475438354063,0.20134475438354063,0.20134475438354063,0.20134475438354063,0.20134475438354063,0.20134475438354063,0.20134475438354063,0.20134475438354063,0.20134475438354063,0.20134475438354063,0.20134475438354063,0.20134475438354063,0.20134475438354063,0.20134475438354063,0.20134475438354063,0.20134475438354063,0.20134475438354063,0.20134475438354063,0.20134475438354063,0.20134475438354063,0.20134475438354063,0.20134475438354063,0.20134475438354063,0.20134475438354063,0.20134475438354063,0.20134475438354063,0.20134475438354063,0.20134475438354063,66]
[null,"Female 45-49",0.20134475438354063,0.20134475438354063,0.20134475438354063,0.20134475438354063,0.20134475438354063,0.20134475438354063,0.20134475438354063,0.20134475438354063,0.20134475438354063,0.20134475438354063,0.20134475438354063,0.20134475438354063,0.20134475438354063,0.20134475438354063,0.20134475438354063,0.20134475438354063,0.20134475438354063,0.20134475438354063,0.20134475438354063,0.20134475438354063,0.20134475438354063,0.20134475438354063,0.20134475438354063,0.20134475438354063,0.20134475438354063,0.20134475438354063,0.20134475438354063,0.20134475438354063,0.20134475438354063,0.20134475438354063,0.20134475438354063,0.20134475438354063,0.20134475438354063,0.20134475438354063,0.20134475438354063,0.20134475438354063,0.20134475438354063,0.20134475438354063,0.20134475438354063,0.20134475438354063,0.20134475438354063,0.20134475438354063,0.20134475438354063,0.20134475438354063,0.20134475438354063,0.20134475438354063,0.20134475438354063,0.20134475438354063,0.20134475438354063,0.20134475438354063,0.20134475438354063,0.20134475438354063,0.20134475438354063,67]
[null,"Female 50-54",0.20134475438354063,0.20134475438354063,0.20134475438354063,0.20134475438354063,0.20134475438354063,0.20134475438354063,0.20134475438354063,0.20134475438354063,0.20134475438354063,0.20134475438354063,0.20134475438354063,0.20134475438354063,0.20134475438354063,0.20134475438354063,0.20134475438354063,0.20134475438354063,0.20134475438354063,0.20134475438354063,0.20134475438354063,0.20134475438354063,0.20134475438354063,0.20134475438354063,0.20134475438354063,0.20134475438354063,0.20134475438354063,0.20134475438354063,0.20134475438354063,0.20134475438354063,0.20134475438354063,0.20134475438354063,0.20134475438354063,0.20134475438354063,0.20134475438354063,0.20134475438354063,0.20134475438354063,0.20134475438354063,0.20134475438354063,0.20134475438354063,0.20134475438354063,0.20134475438354063,0.20134475438354063,0.20134475438354063,0.20134475438354063,0.20134475438354063,0.20134475438354063,0.20134475438354063,0.20134475438354063,0.20134475438354063,0.20134475438354063,0.20134475438354063,0.20134475438354063,0.20134475438354063,0.20134475438354063,68]
[null,"Female 55-59",0.13477388664831333,0.13477388664831333,0.13477388664831333,0.13477388664831333,0.13477388664831333,0.13477388664831333,0.13477388664831333,0.13477388664831333,0.13477388664831333,0.13477388664831333,0.13477388664831333,0.13477388664831333,0.13477388664831333,0.13477388664831333,0.13477388664831333,0.13477388664831333,0.13477388664831333,0.13477388664831333,0.13477388664831333,0.13477388664831333,0.13477388664831333,0.13477388664831333,0.13477388664831333,0.13477388664831333,0.13477388664831333,0.13477388664831333,0.13477388664831333,0.13477388664831333,0.13477388664831333,0.13477388664831333,0.13477388664831333,0.13477388664831333,0.13477388664831333,0.13477388664831333,0.13477388664831333,0.13477388664831333,0.13477388664831333,0.13477388664831333,0.13477388664831333,0.13477388664831333,0.13477388664831333,0.13477388664831333,0.13477388664831333,0.13477388664831333,0.13477388664831333,0.13477388664831333,0.13477388664831333,0.13477388664831333,0.13477388664831333,0.13477388664831333,0.13477388664831333,0.13477388664831333,0.13477388664831333,69]
[null,"Female 60-64",0.13477388664831333,0.13477388664831333,0.13477388664831333,0.13477388664831333,0.13477388664831333,0.13477388664831333,0.13477388664831333,0.13477388664831333,0.13477388664831333,0.13477388664831333,0.13477388664831333,0.13477388664831333,0.13477388664831333,0.13477388664831333,0.13477388664831333,0.13477388664831333,0.13477388664831333,0.13477388664831333,0.13477388664831333,0.13477388664831333,0.13477388664831333,0.13477388664831333,0.13477388664831333,0.13477388664831333,0.13477388664831333,0.13477388664831333,0.13477388664831333,0.13477388664831333,0.13477388664831333,0.13477388664831333,0.13477388664831333,0.13477388664831333,0.13477388664831333,0.13477388664831333,0.13477388664831333,0.13477388664831333,0.13477388664831333,0.13477388664831333,0.13477388664831333,0.13477388664831333,0.13477388664831333,0.13477388664831333,0.13477388664831333,0.13477388664831333,0.13477388664831333,0.13477388664831333,0.13477388664831333,0.13477388664831333,0.13477388664831333,0.13477388664831333,0.13477388664831333,0.13477388664831333,0.13477388664831333,70]
[null,"Female 65-69",{"$f":"$AR73","v":0.13477388664831333},0.13477388664831333,0.13477388664831333,0.13477388664831333,0.13477388664831333,0.13477388664831333,0.13477388664831333,0.13477388664831333,0.13477388664831333,0.13477388664831333,{"$f":"$AR73","v":0.13477388664831333},0.13477388664831333,0.13477388664831333,0.13477388664831333,0.13477388664831333,0.13477388664831333,0.13477388664831333,0.13477388664831333,0.13477388664831333,0.13477388664831333,{"$f":"$AR73","v":0.13477388664831333},0.13477388664831333,0.13477388664831333,0.13477388664831333,0.13477388664831333,0.13477388664831333,0.13477388664831333,0.13477388664831333,0.13477388664831333,0.13477388664831333,{"$f":"$AR73","v":0.13477388664831333},0.13477388664831333,0.13477388664831333,0.13477388664831333,0.13477388664831333,0.13477388664831333,0.13477388664831333,0.13477388664831333,0.13477388664831333,0.13477388664831333,0.13477388664831333,0.13477388664831333,{"$f":"$AR73","v":0.13477388664831333},0.13477388664831333,0.13477388664831333,0.13477388664831333,0.13477388664831333,0.13477388664831333,0.13477388664831333,0.13477388664831333,0.13477388664831333,0.13477388664831333,0.13477388664831333,71]
[null,"Female 70-74",0.13477388664831333,0.13477388664831333,0.13477388664831333,0.13477388664831333,0.13477388664831333,0.13477388664831333,0.13477388664831333,0.13477388664831333,0.13477388664831333,0.13477388664831333,0.13477388664831333,0.13477388664831333,0.13477388664831333,0.13477388664831333,0.13477388664831333,0.13477388664831333,0.13477388664831333,0.13477388664831333,0.13477388664831333,0.13477388664831333,0.13477388664831333,0.13477388664831333,0.13477388664831333,0.13477388664831333,0.13477388664831333,0.13477388664831333,0.13477388664831333,0.13477388664831333,0.13477388664831333,0.13477388664831333,0.13477388664831333,0.13477388664831333,0.13477388664831333,0.13477388664831333,0.13477388664831333,0.13477388664831333,0.13477388664831333,0.13477388664831333,0.13477388664831333,0.13477388664831333,0.13477388664831333,0.13477388664831333,0.13477388664831333,0.13477388664831333,0.13477388664831333,0.13477388664831333,0.13477388664831333,0.13477388664831333,0.13477388664831333,0.13477388664831333,0.13477388664831333,0.13477388664831333,0.13477388664831333,72]
[null,"Female 75-79",0.13477388664831333,0.13477388664831333,0.13477388664831333,0.13477388664831333,0.13477388664831333,0.13477388664831333,0.13477388664831333,0.13477388664831333,0.13477388664831333,0.13477388664831333,0.13477388664831333,0.13477388664831333,0.13477388664831333,0.13477388664831333,0.13477388664831333,0.13477388664831333,0.13477388664831333,0.13477388664831333,0.13477388664831333,0.13477388664831333,0.13477388664831333,0.13477388664831333,0.13477388664831333,0.13477388664831333,0.13477388664831333,0.13477388664831333,0.13477388664831333,0.13477388664831333,0.13477388664831333,0.13477388664831333,0.13477388664831333,0.13477388664831333,0.13477388664831333,0.13477388664831333,0.13477388664831333,0.13477388664831333,0.13477388664831333,0.13477388664831333,0.13477388664831333,0.13477388664831333,0.13477388664831333,0.13477388664831333,0.13477388664831333,0.13477388664831333,0.13477388664831333,0.13477388664831333,0.13477388664831333,0.13477388664831333,0.13477388664831333,0.13477388664831333,0.13477388664831333,0.13477388664831333,0.13477388664831333,73]
[null,"Female 80-84",0.13477388664831333,0.13477388664831333,0.13477388664831333,0.13477388664831333,0.13477388664831333,0.13477388664831333,0.13477388664831333,0.13477388664831333,0.13477388664831333,0.13477388664831333,0.13477388664831333,0.13477388664831333,0.13477388664831333,0.13477388664831333,0.13477388664831333,0.13477388664831333,0.13477388664831333,0.13477388664831333,0.13477388664831333,0.13477388664831333,0.13477388664831333,0.13477388664831333,0.13477388664831333,0.13477388664831333,0.13477388664831333,0.13477388664831333,0.13477388664831333,0.13477388664831333,0.13477388664831333,0.13477388664831333,0.13477388664831333,0.13477388664831333,0.13477388664831333,0.13477388664831333,0.13477388664831333,0.13477388664831333,0.13477388664831333,0.13477388664831333,0.13477388664831333,0.13477388664831333,0.13477388664831333,0.13477388664831333,0.13477388664831333,0.13477388664831333,0.13477388664831333,0.13477388664831333,0.13477388664831333,0.13477388664831333,0.13477388664831333,0.13477388664831333,0.13477388664831333,0.13477388664831333,0.13477388664831333,74]
[null,"Female 85-89",0.13477388664831333,0.13477388664831333,0.13477388664831333,0.13477388664831333,0.13477388664831333,0.13477388664831333,0.13477388664831333,0.13477388664831333,0.13477388664831333,0.13477388664831333,0.13477388664831333,0.13477388664831333,0.13477388664831333,0.13477388664831333,0.13477388664831333,0.13477388664831333,0.13477388664831333,0.13477388664831333,0.13477388664831333,0.13477388664831333,0.13477388664831333,0.13477388664831333,0.13477388664831333,0.13477388664831333,0.13477388664831333,0.13477388664831333,0.13477388664831333,0.13477388664831333,0.13477388664831333,0.13477388664831333,0.13477388664831333,0.13477388664831333,0.13477388664831333,0.13477388664831333,0.13477388664831333,0.13477388664831333,0.13477388664831333,0.13477388664831333,0.13477388664831333,0.13477388664831333,0.13477388664831333,0.13477388664831333,0.13477388664831333,0.13477388664831333,0.13477388664831333,0.13477388664831333,0.13477388664831333,0.13477388664831333,0.13477388664831333,0.13477388664831333,0.13477388664831333,0.13477388664831333,0.13477388664831333,75]
[null,"Female 90+",0.13477388664831333,0.13477388664831333,0.13477388664831333,0.13477388664831333,0.13477388664831333,0.13477388664831333,0.13477388664831333,0.13477388664831333,0.13477388664831333,0.13477388664831333,0.13477388664831333,0.13477388664831333,0.13477388664831333,0.13477388664831333,0.13477388664831333,0.13477388664831333,0.13477388664831333,0.13477388664831333,0.13477388664831333,0.13477388664831333,0.13477388664831333,0.13477388664831333,0.13477388664831333,0.13477388664831333,0.13477388664831333,0.13477388664831333,0.13477388664831333,0.13477388664831333,0.13477388664831333,0.13477388664831333,0.13477388664831333,0.13477388664831333,0.13477388664831333,0.13477388664831333,0.13477388664831333,0.13477388664831333,0.13477388664831333,0.13477388664831333,0.13477388664831333,0.13477388664831333,0.13477388664831333,0.13477388664831333,0.13477388664831333,0.13477388664831333,0.13477388664831333,0.13477388664831333,0.13477388664831333,0.13477388664831333,0.13477388664831333,0.13477388664831333,0.13477388664831333,0.13477388664831333,0.13477388664831333,76]
[null,"Male 0-4",null,null,null,null,null,null,null,null,null,null,null,null,null,null,null,null,null,null,null,null,null,null,null,null,null,null,null,null,null,null,null,null,null,null,null,null,null,null,null,null,null,null,null,null,null,null,null,null,null,null,null,null,null,77]
[null,"Male 5-9",null,null,null,null,null,null,null,null,null,null,null,null,null,null,null,null,null,null,null,null,null,null,null,null,null,null,null,null,null,null,null,null,null,null,null,null,null,null,null,null,null,null,null,null,null,null,null,null,null,null,null,null,null,78]
[null,"Male 10-15",null,null,null,null,null,null,null,null,null,null,null,null,null,null,null,null,null,null,null,null,null,null,null,null,null,null,null,null,null,null,null,null,null,null,null,null,null,null,null,null,null,null,null,null,null,null,null,null,null,null,null,null,null,79]
[null,"Male 16-19",{"$f":"$AR82","v":0.1649694399668899},0.1649694399668899,0.1649694399668899,0.1649694399668899,0.1649694399668899,0.1649694399668899,0.1649694399668899,0.1649694399668899,0.1649694399668899,0.1649694399668899,{"$f":"$AR82","v":0.1649694399668899},0.1649694399668899,0.1649694399668899,0.1649694399668899,0.1649694399668899,0.1649694399668899,0.1649694399668899,0.1649694399668899,0.1649694399668899,0.1649694399668899,{"$f":"$AR82","v":0.1649694399668899},0.1649694399668899,0.1649694399668899,0.1649694399668899,0.1649694399668899,0.1649694399668899,0.1649694399668899,0.1649694399668899,0.1649694399668899,0.1649694399668899,{"$f":"$AR82","v":0.1649694399668899},0.1649694399668899,0.1649694399668899,0.1649694399668899,0.1649694399668899,0.1649694399668899,0.1649694399668899,0.1649694399668899,0.1649694399668899,0.1649694399668899,0.1649694399668899,0.1649694399668899,{"$f":"$AR82","v":0.1649694399668899},0.1649694399668899,0.1649694399668899,0.1649694399668899,0.1649694399668899,0.1649694399668899,0.1649694399668899,0.1649694399668899,0.1649694399668899,0.1649694399668899,0.1649694399668899,80]
[null,"Male 20-24",0.1649694399668899,0.1649694399668899,0.1649694399668899,0.1649694399668899,0.1649694399668899,0.1649694399668899,0.1649694399668899,0.1649694399668899,0.1649694399668899,0.1649694399668899,0.1649694399668899,0.1649694399668899,0.1649694399668899,0.1649694399668899,0.1649694399668899,0.1649694399668899,0.1649694399668899,0.1649694399668899,0.1649694399668899,0.1649694399668899,0.1649694399668899,0.1649694399668899,0.1649694399668899,0.1649694399668899,0.1649694399668899,0.1649694399668899,0.1649694399668899,0.1649694399668899,0.1649694399668899,0.1649694399668899,0.1649694399668899,0.1649694399668899,0.1649694399668899,0.1649694399668899,0.1649694399668899,0.1649694399668899,0.1649694399668899,0.1649694399668899,0.1649694399668899,0.1649694399668899,0.1649694399668899,0.1649694399668899,0.1649694399668899,0.1649694399668899,0.1649694399668899,0.1649694399668899,0.1649694399668899,0.1649694399668899,0.1649694399668899,0.1649694399668899,0.1649694399668899,0.1649694399668899,0.1649694399668899,81]
[null,"Male 25-29",0.1649694399668899,0.1649694399668899,0.1649694399668899,0.1649694399668899,0.1649694399668899,0.1649694399668899,0.1649694399668899,0.1649694399668899,0.1649694399668899,0.1649694399668899,0.1649694399668899,0.1649694399668899,0.1649694399668899,0.1649694399668899,0.1649694399668899,0.1649694399668899,0.1649694399668899,0.1649694399668899,0.1649694399668899,0.1649694399668899,0.1649694399668899,0.1649694399668899,0.1649694399668899,0.1649694399668899,0.1649694399668899,0.1649694399668899,0.1649694399668899,0.1649694399668899,0.1649694399668899,0.1649694399668899,0.1649694399668899,0.1649694399668899,0.1649694399668899,0.1649694399668899,0.1649694399668899,0.1649694399668899,0.1649694399668899,0.1649694399668899,0.1649694399668899,0.1649694399668899,0.1649694399668899,0.1649694399668899,0.1649694399668899,0.1649694399668899,0.1649694399668899,0.1649694399668899,0.1649694399668899,0.1649694399668899,0.1649694399668899,0.1649694399668899,0.1649694399668899,0.1649694399668899,0.1649694399668899,82]
[null,"Male 30-34",0.1649694399668899,0.1649694399668899,0.1649694399668899,0.1649694399668899,0.1649694399668899,0.1649694399668899,0.1649694399668899,0.1649694399668899,0.1649694399668899,0.1649694399668899,0.1649694399668899,0.1649694399668899,0.1649694399668899,0.1649694399668899,0.1649694399668899,0.1649694399668899,0.1649694399668899,0.1649694399668899,0.1649694399668899,0.1649694399668899,0.1649694399668899,0.1649694399668899,0.1649694399668899,0.1649694399668899,0.1649694399668899,0.1649694399668899,0.1649694399668899,0.1649694399668899,0.1649694399668899,0.1649694399668899,0.1649694399668899,0.1649694399668899,0.1649694399668899,0.1649694399668899,0.1649694399668899,0.1649694399668899,0.1649694399668899,0.1649694399668899,0.1649694399668899,0.1649694399668899,0.1649694399668899,0.1649694399668899,0.1649694399668899,0.1649694399668899,0.1649694399668899,0.1649694399668899,0.1649694399668899,0.1649694399668899,0.1649694399668899,0.1649694399668899,0.1649694399668899,0.1649694399668899,0.1649694399668899,83]
[null,"Male 35-39",0.1649694399668899,0.1649694399668899,0.1649694399668899,0.1649694399668899,0.1649694399668899,0.1649694399668899,0.1649694399668899,0.1649694399668899,0.1649694399668899,0.1649694399668899,0.1649694399668899,0.1649694399668899,0.1649694399668899,0.1649694399668899,0.1649694399668899,0.1649694399668899,0.1649694399668899,0.1649694399668899,0.1649694399668899,0.1649694399668899,0.1649694399668899,0.1649694399668899,0.1649694399668899,0.1649694399668899,0.1649694399668899,0.1649694399668899,0.1649694399668899,0.1649694399668899,0.1649694399668899,0.1649694399668899,0.1649694399668899,0.1649694399668899,0.1649694399668899,0.1649694399668899,0.1649694399668899,0.1649694399668899,0.1649694399668899,0.1649694399668899,0.1649694399668899,0.1649694399668899,0.1649694399668899,0.1649694399668899,0.1649694399668899,0.1649694399668899,0.1649694399668899,0.1649694399668899,0.1649694399668899,0.1649694399668899,0.1649694399668899,0.1649694399668899,0.1649694399668899,0.1649694399668899,0.1649694399668899,84]
[null,"Male 40-44",0.1649694399668899,0.1649694399668899,0.1649694399668899,0.1649694399668899,0.1649694399668899,0.1649694399668899,0.1649694399668899,0.1649694399668899,0.1649694399668899,0.1649694399668899,0.1649694399668899,0.1649694399668899,0.1649694399668899,0.1649694399668899,0.1649694399668899,0.1649694399668899,0.1649694399668899,0.1649694399668899,0.1649694399668899,0.1649694399668899,0.1649694399668899,0.1649694399668899,0.1649694399668899,0.1649694399668899,0.1649694399668899,0.1649694399668899,0.1649694399668899,0.1649694399668899,0.1649694399668899,0.1649694399668899,0.1649694399668899,0.1649694399668899,0.1649694399668899,0.1649694399668899,0.1649694399668899,0.1649694399668899,0.1649694399668899,0.1649694399668899,0.1649694399668899,0.1649694399668899,0.1649694399668899,0.1649694399668899,0.1649694399668899,0.1649694399668899,0.1649694399668899,0.1649694399668899,0.1649694399668899,0.1649694399668899,0.1649694399668899,0.1649694399668899,0.1649694399668899,0.1649694399668899,0.1649694399668899,85]
[null,"Male 45-49",0.1649694399668899,0.1649694399668899,0.1649694399668899,0.1649694399668899,0.1649694399668899,0.1649694399668899,0.1649694399668899,0.1649694399668899,0.1649694399668899,0.1649694399668899,0.1649694399668899,0.1649694399668899,0.1649694399668899,0.1649694399668899,0.1649694399668899,0.1649694399668899,0.1649694399668899,0.1649694399668899,0.1649694399668899,0.1649694399668899,0.1649694399668899,0.1649694399668899,0.1649694399668899,0.1649694399668899,0.1649694399668899,0.1649694399668899,0.1649694399668899,0.1649694399668899,0.1649694399668899,0.1649694399668899,0.1649694399668899,0.1649694399668899,0.1649694399668899,0.1649694399668899,0.1649694399668899,0.1649694399668899,0.1649694399668899,0.1649694399668899,0.1649694399668899,0.1649694399668899,0.1649694399668899,0.1649694399668899,0.1649694399668899,0.1649694399668899,0.1649694399668899,0.1649694399668899,0.1649694399668899,0.1649694399668899,0.1649694399668899,0.1649694399668899,0.1649694399668899,0.1649694399668899,0.1649694399668899,86]
[null,"Male 50-54",0.1649694399668899,0.1649694399668899,0.1649694399668899,0.1649694399668899,0.1649694399668899,0.1649694399668899,0.1649694399668899,0.1649694399668899,0.1649694399668899,0.1649694399668899,0.1649694399668899,0.1649694399668899,0.1649694399668899,0.1649694399668899,0.1649694399668899,0.1649694399668899,0.1649694399668899,0.1649694399668899,0.1649694399668899,0.1649694399668899,0.1649694399668899,0.1649694399668899,0.1649694399668899,0.1649694399668899,0.1649694399668899,0.1649694399668899,0.1649694399668899,0.1649694399668899,0.1649694399668899,0.1649694399668899,0.1649694399668899,0.1649694399668899,0.1649694399668899,0.1649694399668899,0.1649694399668899,0.1649694399668899,0.1649694399668899,0.1649694399668899,0.1649694399668899,0.1649694399668899,0.1649694399668899,0.1649694399668899,0.1649694399668899,0.1649694399668899,0.1649694399668899,0.1649694399668899,0.1649694399668899,0.1649694399668899,0.1649694399668899,0.1649694399668899,0.1649694399668899,0.1649694399668899,0.1649694399668899,87]
[null,"Male 55-59",0.1104253878905667,0.1104253878905667,0.1104253878905667,0.1104253878905667,0.1104253878905667,0.1104253878905667,0.1104253878905667,0.1104253878905667,0.1104253878905667,0.1104253878905667,0.1104253878905667,0.1104253878905667,0.1104253878905667,0.1104253878905667,0.1104253878905667,0.1104253878905667,0.1104253878905667,0.1104253878905667,0.1104253878905667,0.1104253878905667,0.1104253878905667,0.1104253878905667,0.1104253878905667,0.1104253878905667,0.1104253878905667,0.1104253878905667,0.1104253878905667,0.1104253878905667,0.1104253878905667,0.1104253878905667,0.1104253878905667,0.1104253878905667,0.1104253878905667,0.1104253878905667,0.1104253878905667,0.1104253878905667,0.1104253878905667,0.1104253878905667,0.1104253878905667,0.1104253878905667,0.1104253878905667,0.1104253878905667,0.1104253878905667,0.1104253878905667,0.1104253878905667,0.1104253878905667,0.1104253878905667,0.1104253878905667,0.1104253878905667,0.1104253878905667,0.1104253878905667,0.1104253878905667,0.1104253878905667,88]
[null,"Male 60-64",0.1104253878905667,0.1104253878905667,0.1104253878905667,0.1104253878905667,0.1104253878905667,0.1104253878905667,0.1104253878905667,0.1104253878905667,0.1104253878905667,0.1104253878905667,0.1104253878905667,0.1104253878905667,0.1104253878905667,0.1104253878905667,0.1104253878905667,0.1104253878905667,0.1104253878905667,0.1104253878905667,0.1104253878905667,0.1104253878905667,0.1104253878905667,0.1104253878905667,0.1104253878905667,0.1104253878905667,0.1104253878905667,0.1104253878905667,0.1104253878905667,0.1104253878905667,0.1104253878905667,0.1104253878905667,0.1104253878905667,0.1104253878905667,0.1104253878905667,0.1104253878905667,0.1104253878905667,0.1104253878905667,0.1104253878905667,0.1104253878905667,0.1104253878905667,0.1104253878905667,0.1104253878905667,0.1104253878905667,0.1104253878905667,0.1104253878905667,0.1104253878905667,0.1104253878905667,0.1104253878905667,0.1104253878905667,0.1104253878905667,0.1104253878905667,0.1104253878905667,0.1104253878905667,0.1104253878905667,89]
[null,"Male 65-69",{"$f":"$AR92","v":0.1104253878905667},0.1104253878905667,0.1104253878905667,0.1104253878905667,0.1104253878905667,0.1104253878905667,0.1104253878905667,0.1104253878905667,0.1104253878905667,0.1104253878905667,{"$f":"$AR92","v":0.1104253878905667},0.1104253878905667,0.1104253878905667,0.1104253878905667,0.1104253878905667,0.1104253878905667,0.1104253878905667,0.1104253878905667,0.1104253878905667,0.1104253878905667,{"$f":"$AR92","v":0.1104253878905667},0.1104253878905667,0.1104253878905667,0.1104253878905667,0.1104253878905667,0.1104253878905667,0.1104253878905667,0.1104253878905667,0.1104253878905667,0.1104253878905667,{"$f":"$AR92","v":0.1104253878905667},0.1104253878905667,0.1104253878905667,0.1104253878905667,0.1104253878905667,0.1104253878905667,0.1104253878905667,0.1104253878905667,0.1104253878905667,0.1104253878905667,0.1104253878905667,0.1104253878905667,{"$f":"$AR92","v":0.1104253878905667},0.1104253878905667,0.1104253878905667,0.1104253878905667,0.1104253878905667,0.1104253878905667,0.1104253878905667,0.1104253878905667,0.1104253878905667,0.1104253878905667,0.1104253878905667,90]
[null,"Male 70-74",0.1104253878905667,0.1104253878905667,0.1104253878905667,0.1104253878905667,0.1104253878905667,0.1104253878905667,0.1104253878905667,0.1104253878905667,0.1104253878905667,0.1104253878905667,0.1104253878905667,0.1104253878905667,0.1104253878905667,0.1104253878905667,0.1104253878905667,0.1104253878905667,0.1104253878905667,0.1104253878905667,0.1104253878905667,0.1104253878905667,0.1104253878905667,0.1104253878905667,0.1104253878905667,0.1104253878905667,0.1104253878905667,0.1104253878905667,0.1104253878905667,0.1104253878905667,0.1104253878905667,0.1104253878905667,0.1104253878905667,0.1104253878905667,0.1104253878905667,0.1104253878905667,0.1104253878905667,0.1104253878905667,0.1104253878905667,0.1104253878905667,0.1104253878905667,0.1104253878905667,0.1104253878905667,0.1104253878905667,0.1104253878905667,0.1104253878905667,0.1104253878905667,0.1104253878905667,0.1104253878905667,0.1104253878905667,0.1104253878905667,0.1104253878905667,0.1104253878905667,0.1104253878905667,0.1104253878905667,91]
[null,"Male 75-79",0.1104253878905667,0.1104253878905667,0.1104253878905667,0.1104253878905667,0.1104253878905667,0.1104253878905667,0.1104253878905667,0.1104253878905667,0.1104253878905667,0.1104253878905667,0.1104253878905667,0.1104253878905667,0.1104253878905667,0.1104253878905667,0.1104253878905667,0.1104253878905667,0.1104253878905667,0.1104253878905667,0.1104253878905667,0.1104253878905667,0.1104253878905667,0.1104253878905667,0.1104253878905667,0.1104253878905667,0.1104253878905667,0.1104253878905667,0.1104253878905667,0.1104253878905667,0.1104253878905667,0.1104253878905667,0.1104253878905667,0.1104253878905667,0.1104253878905667,0.1104253878905667,0.1104253878905667,0.1104253878905667,0.1104253878905667,0.1104253878905667,0.1104253878905667,0.1104253878905667,0.1104253878905667,0.1104253878905667,0.1104253878905667,0.1104253878905667,0.1104253878905667,0.1104253878905667,0.1104253878905667,0.1104253878905667,0.1104253878905667,0.1104253878905667,0.1104253878905667,0.1104253878905667,0.1104253878905667,92]
[null,"Male 80-84",0.1104253878905667,0.1104253878905667,0.1104253878905667,0.1104253878905667,0.1104253878905667,0.1104253878905667,0.1104253878905667,0.1104253878905667,0.1104253878905667,0.1104253878905667,0.1104253878905667,0.1104253878905667,0.1104253878905667,0.1104253878905667,0.1104253878905667,0.1104253878905667,0.1104253878905667,0.1104253878905667,0.1104253878905667,0.1104253878905667,0.1104253878905667,0.1104253878905667,0.1104253878905667,0.1104253878905667,0.1104253878905667,0.1104253878905667,0.1104253878905667,0.1104253878905667,0.1104253878905667,0.1104253878905667,0.1104253878905667,0.1104253878905667,0.1104253878905667,0.1104253878905667,0.1104253878905667,0.1104253878905667,0.1104253878905667,0.1104253878905667,0.1104253878905667,0.1104253878905667,0.1104253878905667,0.1104253878905667,0.1104253878905667,0.1104253878905667,0.1104253878905667,0.1104253878905667,0.1104253878905667,0.1104253878905667,0.1104253878905667,0.1104253878905667,0.1104253878905667,0.1104253878905667,0.1104253878905667,93]
[null,"Male 85-89",0.1104253878905667,0.1104253878905667,0.1104253878905667,0.1104253878905667,0.1104253878905667,0.1104253878905667,0.1104253878905667,0.1104253878905667,0.1104253878905667,0.1104253878905667,0.1104253878905667,0.1104253878905667,0.1104253878905667,0.1104253878905667,0.1104253878905667,0.1104253878905667,0.1104253878905667,0.1104253878905667,0.1104253878905667,0.1104253878905667,0.1104253878905667,0.1104253878905667,0.1104253878905667,0.1104253878905667,0.1104253878905667,0.1104253878905667,0.1104253878905667,0.1104253878905667,0.1104253878905667,0.1104253878905667,0.1104253878905667,0.1104253878905667,0.1104253878905667,0.1104253878905667,0.1104253878905667,0.1104253878905667,0.1104253878905667,0.1104253878905667,0.1104253878905667,0.1104253878905667,0.1104253878905667,0.1104253878905667,0.1104253878905667,0.1104253878905667,0.1104253878905667,0.1104253878905667,0.1104253878905667,0.1104253878905667,0.1104253878905667,0.1104253878905667,0.1104253878905667,0.1104253878905667,0.1104253878905667,94]
[null,"Male 90+",0.1104253878905667,0.1104253878905667,0.1104253878905667,0.1104253878905667,0.1104253878905667,0.1104253878905667,0.1104253878905667,0.1104253878905667,0.1104253878905667,0.1104253878905667,0.1104253878905667,0.1104253878905667,0.1104253878905667,0.1104253878905667,0.1104253878905667,0.1104253878905667,0.1104253878905667,0.1104253878905667,0.1104253878905667,0.1104253878905667,0.1104253878905667,0.1104253878905667,0.1104253878905667,0.1104253878905667,0.1104253878905667,0.1104253878905667,0.1104253878905667,0.1104253878905667,0.1104253878905667,0.1104253878905667,0.1104253878905667,0.1104253878905667,0.1104253878905667,0.1104253878905667,0.1104253878905667,0.1104253878905667,0.1104253878905667,0.1104253878905667,0.1104253878905667,0.1104253878905667,0.1104253878905667,0.1104253878905667,0.1104253878905667,0.1104253878905667,0.1104253878905667,0.1104253878905667,0.1104253878905667,0.1104253878905667,0.1104253878905667,0.1104253878905667,0.1104253878905667,0.1104253878905667,0.1104253878905667,95]
["SIMD Q2","Female 0-4",null,null,null,null,null,null,null,null,null,null,null,null,null,null,null,null,null,null,null,null,null,null,null,null,null,null,null,null,null,null,null,null,null,null,null,null,null,null,null,null,null,null,null,null,null,null,null,null,null,null,null,null,null,96]
[null,"Female 5-9",null,null,null,null,null,null,null,null,null,null,null,null,null,null,null,null,null,null,null,null,null,null,null,null,null,null,null,null,null,null,null,null,null,null,null,null,null,null,null,null,null,null,null,null,null,null,null,null,null,null,null,null,null,97]
[null,"Female 10-15",null,null,null,null,null,null,null,null,null,null,null,null,null,null,null,null,null,null,null,null,null,null,null,null,null,null,null,null,null,null,null,null,null,null,null,null,null,null,null,null,null,null,null,null,null,null,null,null,null,null,null,null,null,98]
[null,"Female 16-19",{"$f":"$AR101","v":0.12368971421116901},0.12368971421116901,0.12368971421116901,0.12368971421116901,0.12368971421116901,0.12368971421116901,0.12368971421116901,0.12368971421116901,0.12368971421116901,0.12368971421116901,{"$f":"$AR101","v":0.12368971421116901},0.12368971421116901,0.12368971421116901,0.12368971421116901,0.12368971421116901,0.12368971421116901,0.12368971421116901,0.12368971421116901,0.12368971421116901,0.12368971421116901,{"$f":"$AR101","v":0.12368971421116901},0.12368971421116901,0.12368971421116901,0.12368971421116901,0.12368971421116901,0.12368971421116901,0.12368971421116901,0.12368971421116901,0.12368971421116901,0.12368971421116901,{"$f":"$AR101","v":0.12368971421116901},0.12368971421116901,0.12368971421116901,0.12368971421116901,0.12368971421116901,0.12368971421116901,0.12368971421116901,0.12368971421116901,0.12368971421116901,0.12368971421116901,0.12368971421116901,0.12368971421116901,{"$f":"$AR101","v":0.12368971421116901},0.12368971421116901,0.12368971421116901,0.12368971421116901,0.12368971421116901,0.12368971421116901,0.12368971421116901,0.12368971421116901,0.12368971421116901,0.12368971421116901,0.12368971421116901,99]
[null,"Female 20-24",0.12368971421116901,0.12368971421116901,0.12368971421116901,0.12368971421116901,0.12368971421116901,0.12368971421116901,0.12368971421116901,0.12368971421116901,0.12368971421116901,0.12368971421116901,0.12368971421116901,0.12368971421116901,0.12368971421116901,0.12368971421116901,0.12368971421116901,0.12368971421116901,0.12368971421116901,0.12368971421116901,0.12368971421116901,0.12368971421116901,0.12368971421116901,0.12368971421116901,0.12368971421116901,0.12368971421116901,0.12368971421116901,0.12368971421116901,0.12368971421116901,0.12368971421116901,0.12368971421116901,0.12368971421116901,0.12368971421116901,0.12368971421116901,0.12368971421116901,0.12368971421116901,0.12368971421116901,0.12368971421116901,0.12368971421116901,0.12368971421116901,0.12368971421116901,0.12368971421116901,0.12368971421116901,0.12368971421116901,0.12368971421116901,0.12368971421116901,0.12368971421116901,0.12368971421116901,0.12368971421116901,0.12368971421116901,0.12368971421116901,0.12368971421116901,0.12368971421116901,0.12368971421116901,0.12368971421116901,100]
[null,"Female 25-29",0.12368971421116901,0.12368971421116901,0.12368971421116901,0.12368971421116901,0.12368971421116901,0.12368971421116901,0.12368971421116901,0.12368971421116901,0.12368971421116901,0.12368971421116901,0.12368971421116901,0.12368971421116901,0.12368971421116901,0.12368971421116901,0.12368971421116901,0.12368971421116901,0.12368971421116901,0.12368971421116901,0.12368971421116901,0.12368971421116901,0.12368971421116901,0.12368971421116901,0.12368971421116901,0.12368971421116901,0.12368971421116901,0.12368971421116901,0.12368971421116901,0.12368971421116901,0.12368971421116901,0.12368971421116901,0.12368971421116901,0.12368971421116901,0.12368971421116901,0.12368971421116901,0.12368971421116901,0.12368971421116901,0.12368971421116901,0.12368971421116901,0.12368971421116901,0.12368971421116901,0.12368971421116901,0.12368971421116901,0.12368971421116901,0.12368971421116901,0.12368971421116901,0.12368971421116901,0.12368971421116901,0.12368971421116901,0.12368971421116901,0.12368971421116901,0.12368971421116901,0.12368971421116901,0.12368971421116901,101]
[null,"Female 30-34",0.12368971421116901,0.12368971421116901,0.12368971421116901,0.12368971421116901,0.12368971421116901,0.12368971421116901,0.12368971421116901,0.12368971421116901,0.12368971421116901,0.12368971421116901,0.12368971421116901,0.12368971421116901,0.12368971421116901,0.12368971421116901,0.12368971421116901,0.12368971421116901,0.12368971421116901,0.12368971421116901,0.12368971421116901,0.12368971421116901,0.12368971421116901,0.12368971421116901,0.12368971421116901,0.12368971421116901,0.12368971421116901,0.12368971421116901,0.12368971421116901,0.12368971421116901,0.12368971421116901,0.12368971421116901,0.12368971421116901,0.12368971421116901,0.12368971421116901,0.12368971421116901,0.12368971421116901,0.12368971421116901,0.12368971421116901,0.12368971421116901,0.12368971421116901,0.12368971421116901,0.12368971421116901,0.12368971421116901,0.12368971421116901,0.12368971421116901,0.12368971421116901,0.12368971421116901,0.12368971421116901,0.12368971421116901,0.12368971421116901,0.12368971421116901,0.12368971421116901,0.12368971421116901,0.12368971421116901,102]
[null,"Female 35-39",0.12368971421116901,0.12368971421116901,0.12368971421116901,0.12368971421116901,0.12368971421116901,0.12368971421116901,0.12368971421116901,0.12368971421116901,0.12368971421116901,0.12368971421116901,0.12368971421116901,0.12368971421116901,0.12368971421116901,0.12368971421116901,0.12368971421116901,0.12368971421116901,0.12368971421116901,0.12368971421116901,0.12368971421116901,0.12368971421116901,0.12368971421116901,0.12368971421116901,0.12368971421116901,0.12368971421116901,0.12368971421116901,0.12368971421116901,0.12368971421116901,0.12368971421116901,0.12368971421116901,0.12368971421116901,0.12368971421116901,0.12368971421116901,0.12368971421116901,0.12368971421116901,0.12368971421116901,0.12368971421116901,0.12368971421116901,0.12368971421116901,0.12368971421116901,0.12368971421116901,0.12368971421116901,0.12368971421116901,0.12368971421116901,0.12368971421116901,0.12368971421116901,0.12368971421116901,0.12368971421116901,0.12368971421116901,0.12368971421116901,0.12368971421116901,0.12368971421116901,0.12368971421116901,0.12368971421116901,103]
[null,"Female 40-44",0.12368971421116901,0.12368971421116901,0.12368971421116901,0.12368971421116901,0.12368971421116901,0.12368971421116901,0.12368971421116901,0.12368971421116901,0.12368971421116901,0.12368971421116901,0.12368971421116901,0.12368971421116901,0.12368971421116901,0.12368971421116901,0.12368971421116901,0.12368971421116901,0.12368971421116901,0.12368971421116901,0.12368971421116901,0.12368971421116901,0.12368971421116901,0.12368971421116901,0.12368971421116901,0.12368971421116901,0.12368971421116901,0.12368971421116901,0.12368971421116901,0.12368971421116901,0.12368971421116901,0.12368971421116901,0.12368971421116901,0.12368971421116901,0.12368971421116901,0.12368971421116901,0.12368971421116901,0.12368971421116901,0.12368971421116901,0.12368971421116901,0.12368971421116901,0.12368971421116901,0.12368971421116901,0.12368971421116901,0.12368971421116901,0.12368971421116901,0.12368971421116901,0.12368971421116901,0.12368971421116901,0.12368971421116901,0.12368971421116901,0.12368971421116901,0.12368971421116901,0.12368971421116901,0.12368971421116901,104]
[null,"Female 45-49",0.12368971421116901,0.12368971421116901,0.12368971421116901,0.12368971421116901,0.12368971421116901,0.12368971421116901,0.12368971421116901,0.12368971421116901,0.12368971421116901,0.12368971421116901,0.12368971421116901,0.12368971421116901,0.12368971421116901,0.12368971421116901,0.12368971421116901,0.12368971421116901,0.12368971421116901,0.12368971421116901,0.12368971421116901,0.12368971421116901,0.12368971421116901,0.12368971421116901,0.12368971421116901,0.12368971421116901,0.12368971421116901,0.12368971421116901,0.12368971421116901,0.12368971421116901,0.12368971421116901,0.12368971421116901,0.12368971421116901,0.12368971421116901,0.12368971421116901,0.12368971421116901,0.12368971421116901,0.12368971421116901,0.12368971421116901,0.12368971421116901,0.12368971421116901,0.12368971421116901,0.12368971421116901,0.12368971421116901,0.12368971421116901,0.12368971421116901,0.12368971421116901,0.12368971421116901,0.12368971421116901,0.12368971421116901,0.12368971421116901,0.12368971421116901,0.12368971421116901,0.12368971421116901,0.12368971421116901,105]
[null,"Female 50-54",0.12368971421116901,0.12368971421116901,0.12368971421116901,0.12368971421116901,0.12368971421116901,0.12368971421116901,0.12368971421116901,0.12368971421116901,0.12368971421116901,0.12368971421116901,0.12368971421116901,0.12368971421116901,0.12368971421116901,0.12368971421116901,0.12368971421116901,0.12368971421116901,0.12368971421116901,0.12368971421116901,0.12368971421116901,0.12368971421116901,0.12368971421116901,0.12368971421116901,0.12368971421116901,0.12368971421116901,0.12368971421116901,0.12368971421116901,0.12368971421116901,0.12368971421116901,0.12368971421116901,0.12368971421116901,0.12368971421116901,0.12368971421116901,0.12368971421116901,0.12368971421116901,0.12368971421116901,0.12368971421116901,0.12368971421116901,0.12368971421116901,0.12368971421116901,0.12368971421116901,0.12368971421116901,0.12368971421116901,0.12368971421116901,0.12368971421116901,0.12368971421116901,0.12368971421116901,0.12368971421116901,0.12368971421116901,0.12368971421116901,0.12368971421116901,0.12368971421116901,0.12368971421116901,0.12368971421116901,106]
[null,"Female 55-59",0.1616690581244189,0.1616690581244189,0.1616690581244189,0.1616690581244189,0.1616690581244189,0.1616690581244189,0.1616690581244189,0.1616690581244189,0.1616690581244189,0.1616690581244189,0.1616690581244189,0.1616690581244189,0.1616690581244189,0.1616690581244189,0.1616690581244189,0.1616690581244189,0.1616690581244189,0.1616690581244189,0.1616690581244189,0.1616690581244189,0.1616690581244189,0.1616690581244189,0.1616690581244189,0.1616690581244189,0.1616690581244189,0.1616690581244189,0.1616690581244189,0.1616690581244189,0.1616690581244189,0.1616690581244189,0.1616690581244189,0.1616690581244189,0.1616690581244189,0.1616690581244189,0.1616690581244189,0.1616690581244189,0.1616690581244189,0.1616690581244189,0.1616690581244189,0.1616690581244189,0.1616690581244189,0.1616690581244189,0.1616690581244189,0.1616690581244189,0.1616690581244189,0.1616690581244189,0.1616690581244189,0.1616690581244189,0.1616690581244189,0.1616690581244189,0.1616690581244189,0.1616690581244189,0.1616690581244189,107]
[null,"Female 60-64",0.1616690581244189,0.1616690581244189,0.1616690581244189,0.1616690581244189,0.1616690581244189,0.1616690581244189,0.1616690581244189,0.1616690581244189,0.1616690581244189,0.1616690581244189,0.1616690581244189,0.1616690581244189,0.1616690581244189,0.1616690581244189,0.1616690581244189,0.1616690581244189,0.1616690581244189,0.1616690581244189,0.1616690581244189,0.1616690581244189,0.1616690581244189,0.1616690581244189,0.1616690581244189,0.1616690581244189,0.1616690581244189,0.1616690581244189,0.1616690581244189,0.1616690581244189,0.1616690581244189,0.1616690581244189,0.1616690581244189,0.1616690581244189,0.1616690581244189,0.1616690581244189,0.1616690581244189,0.1616690581244189,0.1616690581244189,0.1616690581244189,0.1616690581244189,0.1616690581244189,0.1616690581244189,0.1616690581244189,0.1616690581244189,0.1616690581244189,0.1616690581244189,0.1616690581244189,0.1616690581244189,0.1616690581244189,0.1616690581244189,0.1616690581244189,0.1616690581244189,0.1616690581244189,0.1616690581244189,108]
[null,"Female 65-69",{"$f":"$AR111","v":0.1616690581244189},0.1616690581244189,0.1616690581244189,0.1616690581244189,0.1616690581244189,0.1616690581244189,0.1616690581244189,0.1616690581244189,0.1616690581244189,0.1616690581244189,{"$f":"$AR111","v":0.1616690581244189},0.1616690581244189,0.1616690581244189,0.1616690581244189,0.1616690581244189,0.1616690581244189,0.1616690581244189,0.1616690581244189,0.1616690581244189,0.1616690581244189,{"$f":"$AR111","v":0.1616690581244189},0.1616690581244189,0.1616690581244189,0.1616690581244189,0.1616690581244189,0.1616690581244189,0.1616690581244189,0.1616690581244189,0.1616690581244189,0.1616690581244189,{"$f":"$AR111","v":0.1616690581244189},0.1616690581244189,0.1616690581244189,0.1616690581244189,0.1616690581244189,0.1616690581244189,0.1616690581244189,0.1616690581244189,0.1616690581244189,0.1616690581244189,0.1616690581244189,0.1616690581244189,{"$f":"$AR111","v":0.1616690581244189},0.1616690581244189,0.1616690581244189,0.1616690581244189,0.1616690581244189,0.1616690581244189,0.1616690581244189,0.1616690581244189,0.1616690581244189,0.1616690581244189,0.1616690581244189,109]
[null,"Female 70-74",0.1616690581244189,0.1616690581244189,0.1616690581244189,0.1616690581244189,0.1616690581244189,0.1616690581244189,0.1616690581244189,0.1616690581244189,0.1616690581244189,0.1616690581244189,0.1616690581244189,0.1616690581244189,0.1616690581244189,0.1616690581244189,0.1616690581244189,0.1616690581244189,0.1616690581244189,0.1616690581244189,0.1616690581244189,0.1616690581244189,0.1616690581244189,0.1616690581244189,0.1616690581244189,0.1616690581244189,0.1616690581244189,0.1616690581244189,0.1616690581244189,0.1616690581244189,0.1616690581244189,0.1616690581244189,0.1616690581244189,0.1616690581244189,0.1616690581244189,0.1616690581244189,0.1616690581244189,0.1616690581244189,0.1616690581244189,0.1616690581244189,0.1616690581244189,0.1616690581244189,0.1616690581244189,0.1616690581244189,0.1616690581244189,0.1616690581244189,0.1616690581244189,0.1616690581244189,0.1616690581244189,0.1616690581244189,0.1616690581244189,0.1616690581244189,0.1616690581244189,0.1616690581244189,0.1616690581244189,110]
[null,"Female 75-79",0.1616690581244189,0.1616690581244189,0.1616690581244189,0.1616690581244189,0.1616690581244189,0.1616690581244189,0.1616690581244189,0.1616690581244189,0.1616690581244189,0.1616690581244189,0.1616690581244189,0.1616690581244189,0.1616690581244189,0.1616690581244189,0.1616690581244189,0.1616690581244189,0.1616690581244189,0.1616690581244189,0.1616690581244189,0.1616690581244189,0.1616690581244189,0.1616690581244189,0.1616690581244189,0.1616690581244189,0.1616690581244189,0.1616690581244189,0.1616690581244189,0.1616690581244189,0.1616690581244189,0.1616690581244189,0.1616690581244189,0.1616690581244189,0.1616690581244189,0.1616690581244189,0.1616690581244189,0.1616690581244189,0.1616690581244189,0.1616690581244189,0.1616690581244189,0.1616690581244189,0.1616690581244189,0.1616690581244189,0.1616690581244189,0.1616690581244189,0.1616690581244189,0.1616690581244189,0.1616690581244189,0.1616690581244189,0.1616690581244189,0.1616690581244189,0.1616690581244189,0.1616690581244189,0.1616690581244189,111]
[null,"Female 80-84",0.1616690581244189,0.1616690581244189,0.1616690581244189,0.1616690581244189,0.1616690581244189,0.1616690581244189,0.1616690581244189,0.1616690581244189,0.1616690581244189,0.1616690581244189,0.1616690581244189,0.1616690581244189,0.1616690581244189,0.1616690581244189,0.1616690581244189,0.1616690581244189,0.1616690581244189,0.1616690581244189,0.1616690581244189,0.1616690581244189,0.1616690581244189,0.1616690581244189,0.1616690581244189,0.1616690581244189,0.1616690581244189,0.1616690581244189,0.1616690581244189,0.1616690581244189,0.1616690581244189,0.1616690581244189,0.1616690581244189,0.1616690581244189,0.1616690581244189,0.1616690581244189,0.1616690581244189,0.1616690581244189,0.1616690581244189,0.1616690581244189,0.1616690581244189,0.1616690581244189,0.1616690581244189,0.1616690581244189,0.1616690581244189,0.1616690581244189,0.1616690581244189,0.1616690581244189,0.1616690581244189,0.1616690581244189,0.1616690581244189,0.1616690581244189,0.1616690581244189,0.1616690581244189,0.1616690581244189,112]
[null,"Female 85-89",0.1616690581244189,0.1616690581244189,0.1616690581244189,0.1616690581244189,0.1616690581244189,0.1616690581244189,0.1616690581244189,0.1616690581244189,0.1616690581244189,0.1616690581244189,0.1616690581244189,0.1616690581244189,0.1616690581244189,0.1616690581244189,0.1616690581244189,0.1616690581244189,0.1616690581244189,0.1616690581244189,0.1616690581244189,0.1616690581244189,0.1616690581244189,0.1616690581244189,0.1616690581244189,0.1616690581244189,0.1616690581244189,0.1616690581244189,0.1616690581244189,0.1616690581244189,0.1616690581244189,0.1616690581244189,0.1616690581244189,0.1616690581244189,0.1616690581244189,0.1616690581244189,0.1616690581244189,0.1616690581244189,0.1616690581244189,0.1616690581244189,0.1616690581244189,0.1616690581244189,0.1616690581244189,0.1616690581244189,0.1616690581244189,0.1616690581244189,0.1616690581244189,0.1616690581244189,0.1616690581244189,0.1616690581244189,0.1616690581244189,0.1616690581244189,0.1616690581244189,0.1616690581244189,0.1616690581244189,113]
[null,"Female 90+",0.1616690581244189,0.1616690581244189,0.1616690581244189,0.1616690581244189,0.1616690581244189,0.1616690581244189,0.1616690581244189,0.1616690581244189,0.1616690581244189,0.1616690581244189,0.1616690581244189,0.1616690581244189,0.1616690581244189,0.1616690581244189,0.1616690581244189,0.1616690581244189,0.1616690581244189,0.1616690581244189,0.1616690581244189,0.1616690581244189,0.1616690581244189,0.1616690581244189,0.1616690581244189,0.1616690581244189,0.1616690581244189,0.1616690581244189,0.1616690581244189,0.1616690581244189,0.1616690581244189,0.1616690581244189,0.1616690581244189,0.1616690581244189,0.1616690581244189,0.1616690581244189,0.1616690581244189,0.1616690581244189,0.1616690581244189,0.1616690581244189,0.1616690581244189,0.1616690581244189,0.1616690581244189,0.1616690581244189,0.1616690581244189,0.1616690581244189,0.1616690581244189,0.1616690581244189,0.1616690581244189,0.1616690581244189,0.1616690581244189,0.1616690581244189,0.1616690581244189,0.1616690581244189,0.1616690581244189,114]
[null,"Male 0-4",null,null,null,null,null,null,null,null,null,null,null,null,null,null,null,null,null,null,null,null,null,null,null,null,null,null,null,null,null,null,null,null,null,null,null,null,null,null,null,null,null,null,null,null,null,null,null,null,null,null,null,null,null,115]
[null,"Male 5-9",null,null,null,null,null,null,null,null,null,null,null,null,null,null,null,null,null,null,null,null,null,null,null,null,null,null,null,null,null,null,null,null,null,null,null,null,null,null,null,null,null,null,null,null,null,null,null,null,null,null,null,null,null,116]
[null,"Male 10-15",null,null,null,null,null,null,null,null,null,null,null,null,null,null,null,null,null,null,null,null,null,null,null,null,null,null,null,null,null,null,null,null,null,null,null,null,null,null,null,null,null,null,null,null,null,null,null,null,null,null,null,null,null,117]
[null,"Male 16-19",{"$f":"$AR120","v":0.10134370247467082},0.10134370247467082,0.10134370247467082,0.10134370247467082,0.10134370247467082,0.10134370247467082,0.10134370247467082,0.10134370247467082,0.10134370247467082,0.10134370247467082,{"$f":"$AR120","v":0.10134370247467082},0.10134370247467082,0.10134370247467082,0.10134370247467082,0.10134370247467082,0.10134370247467082,0.10134370247467082,0.10134370247467082,0.10134370247467082,0.10134370247467082,{"$f":"$AR120","v":0.10134370247467082},0.10134370247467082,0.10134370247467082,0.10134370247467082,0.10134370247467082,0.10134370247467082,0.10134370247467082,0.10134370247467082,0.10134370247467082,0.10134370247467082,{"$f":"$AR120","v":0.10134370247467082},0.10134370247467082,0.10134370247467082,0.10134370247467082,0.10134370247467082,0.10134370247467082,0.10134370247467082,0.10134370247467082,0.10134370247467082,0.10134370247467082,0.10134370247467082,0.10134370247467082,{"$f":"$AR120","v":0.10134370247467082},0.10134370247467082,0.10134370247467082,0.10134370247467082,0.10134370247467082,0.10134370247467082,0.10134370247467082,0.10134370247467082,0.10134370247467082,0.10134370247467082,0.10134370247467082,118]
[null,"Male 20-24",0.10134370247467082,0.10134370247467082,0.10134370247467082,0.10134370247467082,0.10134370247467082,0.10134370247467082,0.10134370247467082,0.10134370247467082,0.10134370247467082,0.10134370247467082,0.10134370247467082,0.10134370247467082,0.10134370247467082,0.10134370247467082,0.10134370247467082,0.10134370247467082,0.10134370247467082,0.10134370247467082,0.10134370247467082,0.10134370247467082,0.10134370247467082,0.10134370247467082,0.10134370247467082,0.10134370247467082,0.10134370247467082,0.10134370247467082,0.10134370247467082,0.10134370247467082,0.10134370247467082,0.10134370247467082,0.10134370247467082,0.10134370247467082,0.10134370247467082,0.10134370247467082,0.10134370247467082,0.10134370247467082,0.10134370247467082,0.10134370247467082,0.10134370247467082,0.10134370247467082,0.10134370247467082,0.10134370247467082,0.10134370247467082,0.10134370247467082,0.10134370247467082,0.10134370247467082,0.10134370247467082,0.10134370247467082,0.10134370247467082,0.10134370247467082,0.10134370247467082,0.10134370247467082,0.10134370247467082,119]
[null,"Male 25-29",0.10134370247467082,0.10134370247467082,0.10134370247467082,0.10134370247467082,0.10134370247467082,0.10134370247467082,0.10134370247467082,0.10134370247467082,0.10134370247467082,0.10134370247467082,0.10134370247467082,0.10134370247467082,0.10134370247467082,0.10134370247467082,0.10134370247467082,0.10134370247467082,0.10134370247467082,0.10134370247467082,0.10134370247467082,0.10134370247467082,0.10134370247467082,0.10134370247467082,0.10134370247467082,0.10134370247467082,0.10134370247467082,0.10134370247467082,0.10134370247467082,0.10134370247467082,0.10134370247467082,0.10134370247467082,0.10134370247467082,0.10134370247467082,0.10134370247467082,0.10134370247467082,0.10134370247467082,0.10134370247467082,0.10134370247467082,0.10134370247467082,0.10134370247467082,0.10134370247467082,0.10134370247467082,0.10134370247467082,0.10134370247467082,0.10134370247467082,0.10134370247467082,0.10134370247467082,0.10134370247467082,0.10134370247467082,0.10134370247467082,0.10134370247467082,0.10134370247467082,0.10134370247467082,0.10134370247467082,120]
[null,"Male 30-34",0.10134370247467082,0.10134370247467082,0.10134370247467082,0.10134370247467082,0.10134370247467082,0.10134370247467082,0.10134370247467082,0.10134370247467082,0.10134370247467082,0.10134370247467082,0.10134370247467082,0.10134370247467082,0.10134370247467082,0.10134370247467082,0.10134370247467082,0.10134370247467082,0.10134370247467082,0.10134370247467082,0.10134370247467082,0.10134370247467082,0.10134370247467082,0.10134370247467082,0.10134370247467082,0.10134370247467082,0.10134370247467082,0.10134370247467082,0.10134370247467082,0.10134370247467082,0.10134370247467082,0.10134370247467082,0.10134370247467082,0.10134370247467082,0.10134370247467082,0.10134370247467082,0.10134370247467082,0.10134370247467082,0.10134370247467082,0.10134370247467082,0.10134370247467082,0.10134370247467082,0.10134370247467082,0.10134370247467082,0.10134370247467082,0.10134370247467082,0.10134370247467082,0.10134370247467082,0.10134370247467082,0.10134370247467082,0.10134370247467082,0.10134370247467082,0.10134370247467082,0.10134370247467082,0.10134370247467082,121]
[null,"Male 35-39",0.10134370247467082,0.10134370247467082,0.10134370247467082,0.10134370247467082,0.10134370247467082,0.10134370247467082,0.10134370247467082,0.10134370247467082,0.10134370247467082,0.10134370247467082,0.10134370247467082,0.10134370247467082,0.10134370247467082,0.10134370247467082,0.10134370247467082,0.10134370247467082,0.10134370247467082,0.10134370247467082,0.10134370247467082,0.10134370247467082,0.10134370247467082,0.10134370247467082,0.10134370247467082,0.10134370247467082,0.10134370247467082,0.10134370247467082,0.10134370247467082,0.10134370247467082,0.10134370247467082,0.10134370247467082,0.10134370247467082,0.10134370247467082,0.10134370247467082,0.10134370247467082,0.10134370247467082,0.10134370247467082,0.10134370247467082,0.10134370247467082,0.10134370247467082,0.10134370247467082,0.10134370247467082,0.10134370247467082,0.10134370247467082,0.10134370247467082,0.10134370247467082,0.10134370247467082,0.10134370247467082,0.10134370247467082,0.10134370247467082,0.10134370247467082,0.10134370247467082,0.10134370247467082,0.10134370247467082,122]
[null,"Male 40-44",0.10134370247467082,0.10134370247467082,0.10134370247467082,0.10134370247467082,0.10134370247467082,0.10134370247467082,0.10134370247467082,0.10134370247467082,0.10134370247467082,0.10134370247467082,0.10134370247467082,0.10134370247467082,0.10134370247467082,0.10134370247467082,0.10134370247467082,0.10134370247467082,0.10134370247467082,0.10134370247467082,0.10134370247467082,0.10134370247467082,0.10134370247467082,0.10134370247467082,0.10134370247467082,0.10134370247467082,0.10134370247467082,0.10134370247467082,0.10134370247467082,0.10134370247467082,0.10134370247467082,0.10134370247467082,0.10134370247467082,0.10134370247467082,0.10134370247467082,0.10134370247467082,0.10134370247467082,0.10134370247467082,0.10134370247467082,0.10134370247467082,0.10134370247467082,0.10134370247467082,0.10134370247467082,0.10134370247467082,0.10134370247467082,0.10134370247467082,0.10134370247467082,0.10134370247467082,0.10134370247467082,0.10134370247467082,0.10134370247467082,0.10134370247467082,0.10134370247467082,0.10134370247467082,0.10134370247467082,123]
[null,"Male 45-49",0.10134370247467082,0.10134370247467082,0.10134370247467082,0.10134370247467082,0.10134370247467082,0.10134370247467082,0.10134370247467082,0.10134370247467082,0.10134370247467082,0.10134370247467082,0.10134370247467082,0.10134370247467082,0.10134370247467082,0.10134370247467082,0.10134370247467082,0.10134370247467082,0.10134370247467082,0.10134370247467082,0.10134370247467082,0.10134370247467082,0.10134370247467082,0.10134370247467082,0.10134370247467082,0.10134370247467082,0.10134370247467082,0.10134370247467082,0.10134370247467082,0.10134370247467082,0.10134370247467082,0.10134370247467082,0.10134370247467082,0.10134370247467082,0.10134370247467082,0.10134370247467082,0.10134370247467082,0.10134370247467082,0.10134370247467082,0.10134370247467082,0.10134370247467082,0.10134370247467082,0.10134370247467082,0.10134370247467082,0.10134370247467082,0.10134370247467082,0.10134370247467082,0.10134370247467082,0.10134370247467082,0.10134370247467082,0.10134370247467082,0.10134370247467082,0.10134370247467082,0.10134370247467082,0.10134370247467082,124]
[null,"Male 50-54",0.10134370247467082,0.10134370247467082,0.10134370247467082,0.10134370247467082,0.10134370247467082,0.10134370247467082,0.10134370247467082,0.10134370247467082,0.10134370247467082,0.10134370247467082,0.10134370247467082,0.10134370247467082,0.10134370247467082,0.10134370247467082,0.10134370247467082,0.10134370247467082,0.10134370247467082,0.10134370247467082,0.10134370247467082,0.10134370247467082,0.10134370247467082,0.10134370247467082,0.10134370247467082,0.10134370247467082,0.10134370247467082,0.10134370247467082,0.10134370247467082,0.10134370247467082,0.10134370247467082,0.10134370247467082,0.10134370247467082,0.10134370247467082,0.10134370247467082,0.10134370247467082,0.10134370247467082,0.10134370247467082,0.10134370247467082,0.10134370247467082,0.10134370247467082,0.10134370247467082,0.10134370247467082,0.10134370247467082,0.10134370247467082,0.10134370247467082,0.10134370247467082,0.10134370247467082,0.10134370247467082,0.10134370247467082,0.10134370247467082,0.10134370247467082,0.10134370247467082,0.10134370247467082,0.10134370247467082,125]
[null,"Male 55-59",0.1324616281184835,0.1324616281184835,0.1324616281184835,0.1324616281184835,0.1324616281184835,0.1324616281184835,0.1324616281184835,0.1324616281184835,0.1324616281184835,0.1324616281184835,0.1324616281184835,0.1324616281184835,0.1324616281184835,0.1324616281184835,0.1324616281184835,0.1324616281184835,0.1324616281184835,0.1324616281184835,0.1324616281184835,0.1324616281184835,0.1324616281184835,0.1324616281184835,0.1324616281184835,0.1324616281184835,0.1324616281184835,0.1324616281184835,0.1324616281184835,0.1324616281184835,0.1324616281184835,0.1324616281184835,0.1324616281184835,0.1324616281184835,0.1324616281184835,0.1324616281184835,0.1324616281184835,0.1324616281184835,0.1324616281184835,0.1324616281184835,0.1324616281184835,0.1324616281184835,0.1324616281184835,0.1324616281184835,0.1324616281184835,0.1324616281184835,0.1324616281184835,0.1324616281184835,0.1324616281184835,0.1324616281184835,0.1324616281184835,0.1324616281184835,0.1324616281184835,0.1324616281184835,0.1324616281184835,126]
[null,"Male 60-64",0.1324616281184835,0.1324616281184835,0.1324616281184835,0.1324616281184835,0.1324616281184835,0.1324616281184835,0.1324616281184835,0.1324616281184835,0.1324616281184835,0.1324616281184835,0.1324616281184835,0.1324616281184835,0.1324616281184835,0.1324616281184835,0.1324616281184835,0.1324616281184835,0.1324616281184835,0.1324616281184835,0.1324616281184835,0.1324616281184835,0.1324616281184835,0.1324616281184835,0.1324616281184835,0.1324616281184835,0.1324616281184835,0.1324616281184835,0.1324616281184835,0.1324616281184835,0.1324616281184835,0.1324616281184835,0.1324616281184835,0.1324616281184835,0.1324616281184835,0.1324616281184835,0.1324616281184835,0.1324616281184835,0.1324616281184835,0.1324616281184835,0.1324616281184835,0.1324616281184835,0.1324616281184835,0.1324616281184835,0.1324616281184835,0.1324616281184835,0.1324616281184835,0.1324616281184835,0.1324616281184835,0.1324616281184835,0.1324616281184835,0.1324616281184835,0.1324616281184835,0.1324616281184835,0.1324616281184835,127]
[null,"Male 65-69",{"$f":"$AR130","v":0.1324616281184835},0.1324616281184835,0.1324616281184835,0.1324616281184835,0.1324616281184835,0.1324616281184835,0.1324616281184835,0.1324616281184835,0.1324616281184835,0.1324616281184835,{"$f":"$AR130","v":0.1324616281184835},0.1324616281184835,0.1324616281184835,0.1324616281184835,0.1324616281184835,0.1324616281184835,0.1324616281184835,0.1324616281184835,0.1324616281184835,0.1324616281184835,{"$f":"$AR130","v":0.1324616281184835},0.1324616281184835,0.1324616281184835,0.1324616281184835,0.1324616281184835,0.1324616281184835,0.1324616281184835,0.1324616281184835,0.1324616281184835,0.1324616281184835,{"$f":"$AR130","v":0.1324616281184835},0.1324616281184835,0.1324616281184835,0.1324616281184835,0.1324616281184835,0.1324616281184835,0.1324616281184835,0.1324616281184835,0.1324616281184835,0.1324616281184835,0.1324616281184835,0.1324616281184835,{"$f":"$AR130","v":0.1324616281184835},0.1324616281184835,0.1324616281184835,0.1324616281184835,0.1324616281184835,0.1324616281184835,0.1324616281184835,0.1324616281184835,0.1324616281184835,0.1324616281184835,0.1324616281184835,128]
[null,"Male 70-74",0.1324616281184835,0.1324616281184835,0.1324616281184835,0.1324616281184835,0.1324616281184835,0.1324616281184835,0.1324616281184835,0.1324616281184835,0.1324616281184835,0.1324616281184835,0.1324616281184835,0.1324616281184835,0.1324616281184835,0.1324616281184835,0.1324616281184835,0.1324616281184835,0.1324616281184835,0.1324616281184835,0.1324616281184835,0.1324616281184835,0.1324616281184835,0.1324616281184835,0.1324616281184835,0.1324616281184835,0.1324616281184835,0.1324616281184835,0.1324616281184835,0.1324616281184835,0.1324616281184835,0.1324616281184835,0.1324616281184835,0.1324616281184835,0.1324616281184835,0.1324616281184835,0.1324616281184835,0.1324616281184835,0.1324616281184835,0.1324616281184835,0.1324616281184835,0.1324616281184835,0.1324616281184835,0.1324616281184835,0.1324616281184835,0.1324616281184835,0.1324616281184835,0.1324616281184835,0.1324616281184835,0.1324616281184835,0.1324616281184835,0.1324616281184835,0.1324616281184835,0.1324616281184835,0.1324616281184835,129]
[null,"Male 75-79",0.1324616281184835,0.1324616281184835,0.1324616281184835,0.1324616281184835,0.1324616281184835,0.1324616281184835,0.1324616281184835,0.1324616281184835,0.1324616281184835,0.1324616281184835,0.1324616281184835,0.1324616281184835,0.1324616281184835,0.1324616281184835,0.1324616281184835,0.1324616281184835,0.1324616281184835,0.1324616281184835,0.1324616281184835,0.1324616281184835,0.1324616281184835,0.1324616281184835,0.1324616281184835,0.1324616281184835,0.1324616281184835,0.1324616281184835,0.1324616281184835,0.1324616281184835,0.1324616281184835,0.1324616281184835,0.1324616281184835,0.1324616281184835,0.1324616281184835,0.1324616281184835,0.1324616281184835,0.1324616281184835,0.1324616281184835,0.1324616281184835,0.1324616281184835,0.1324616281184835,0.1324616281184835,0.1324616281184835,0.1324616281184835,0.1324616281184835,0.1324616281184835,0.1324616281184835,0.1324616281184835,0.1324616281184835,0.1324616281184835,0.1324616281184835,0.1324616281184835,0.1324616281184835,0.1324616281184835,130]
[null,"Male 80-84",0.1324616281184835,0.1324616281184835,0.1324616281184835,0.1324616281184835,0.1324616281184835,0.1324616281184835,0.1324616281184835,0.1324616281184835,0.1324616281184835,0.1324616281184835,0.1324616281184835,0.1324616281184835,0.1324616281184835,0.1324616281184835,0.1324616281184835,0.1324616281184835,0.1324616281184835,0.1324616281184835,0.1324616281184835,0.1324616281184835,0.1324616281184835,0.1324616281184835,0.1324616281184835,0.1324616281184835,0.1324616281184835,0.1324616281184835,0.1324616281184835,0.1324616281184835,0.1324616281184835,0.1324616281184835,0.1324616281184835,0.1324616281184835,0.1324616281184835,0.1324616281184835,0.1324616281184835,0.1324616281184835,0.1324616281184835,0.1324616281184835,0.1324616281184835,0.1324616281184835,0.1324616281184835,0.1324616281184835,0.1324616281184835,0.1324616281184835,0.1324616281184835,0.1324616281184835,0.1324616281184835,0.1324616281184835,0.1324616281184835,0.1324616281184835,0.1324616281184835,0.1324616281184835,0.1324616281184835,131]
[null,"Male 85-89",0.1324616281184835,0.1324616281184835,0.1324616281184835,0.1324616281184835,0.1324616281184835,0.1324616281184835,0.1324616281184835,0.1324616281184835,0.1324616281184835,0.1324616281184835,0.1324616281184835,0.1324616281184835,0.1324616281184835,0.1324616281184835,0.1324616281184835,0.1324616281184835,0.1324616281184835,0.1324616281184835,0.1324616281184835,0.1324616281184835,0.1324616281184835,0.1324616281184835,0.1324616281184835,0.1324616281184835,0.1324616281184835,0.1324616281184835,0.1324616281184835,0.1324616281184835,0.1324616281184835,0.1324616281184835,0.1324616281184835,0.1324616281184835,0.1324616281184835,0.1324616281184835,0.1324616281184835,0.1324616281184835,0.1324616281184835,0.1324616281184835,0.1324616281184835,0.1324616281184835,0.1324616281184835,0.1324616281184835,0.1324616281184835,0.1324616281184835,0.1324616281184835,0.1324616281184835,0.1324616281184835,0.1324616281184835,0.1324616281184835,0.1324616281184835,0.1324616281184835,0.1324616281184835,0.1324616281184835,132]
[null,"Male 90+",0.1324616281184835,0.1324616281184835,0.1324616281184835,0.1324616281184835,0.1324616281184835,0.1324616281184835,0.1324616281184835,0.1324616281184835,0.1324616281184835,0.1324616281184835,0.1324616281184835,0.1324616281184835,0.1324616281184835,0.1324616281184835,0.1324616281184835,0.1324616281184835,0.1324616281184835,0.1324616281184835,0.1324616281184835,0.1324616281184835,0.1324616281184835,0.1324616281184835,0.1324616281184835,0.1324616281184835,0.1324616281184835,0.1324616281184835,0.1324616281184835,0.1324616281184835,0.1324616281184835,0.1324616281184835,0.1324616281184835,0.1324616281184835,0.1324616281184835,0.1324616281184835,0.1324616281184835,0.1324616281184835,0.1324616281184835,0.1324616281184835,0.1324616281184835,0.1324616281184835,0.1324616281184835,0.1324616281184835,0.1324616281184835,0.1324616281184835,0.1324616281184835,0.1324616281184835,0.1324616281184835,0.1324616281184835,0.1324616281184835,0.1324616281184835,0.1324616281184835,0.1324616281184835,0.1324616281184835,133]
["SIMD Q3","Female 0-4",null,null,null,null,null,null,null,null,null,null,null,null,null,null,null,null,null,null,null,null,null,null,null,null,null,null,null,null,null,null,null,null,null,null,null,null,null,null,null,null,null,null,null,null,null,null,null,null,null,null,null,null,null,134]
[null,"Female 5-9",null,null,null,null,null,null,null,null,null,null,null,null,null,null,null,null,null,null,null,null,null,null,null,null,null,null,null,null,null,null,null,null,null,null,null,null,null,null,null,null,null,null,null,null,null,null,null,null,null,null,null,null,null,135]
[null,"Female 10-15",null,null,null,null,null,null,null,null,null,null,null,null,null,null,null,null,null,null,null,null,null,null,null,null,null,null,null,null,null,null,null,null,null,null,null,null,null,null,null,null,null,null,null,null,null,null,null,null,null,null,null,null,null,136]
[null,"Female 16-19",{"$f":"$AR139","v":0.14873594171490565},0.14873594171490565,0.14873594171490565,0.14873594171490565,0.14873594171490565,0.14873594171490565,0.14873594171490565,0.14873594171490565,0.14873594171490565,0.14873594171490565,{"$f":"$AR139","v":0.14873594171490565},0.14873594171490565,0.14873594171490565,0.14873594171490565,0.14873594171490565,0.14873594171490565,0.14873594171490565,0.14873594171490565,0.14873594171490565,0.14873594171490565,{"$f":"$AR139","v":0.14873594171490565},0.14873594171490565,0.14873594171490565,0.14873594171490565,0.14873594171490565,0.14873594171490565,0.14873594171490565,0.14873594171490565,0.14873594171490565,0.14873594171490565,{"$f":"$AR139","v":0.14873594171490565},0.14873594171490565,0.14873594171490565,0.14873594171490565,0.14873594171490565,0.14873594171490565,0.14873594171490565,0.14873594171490565,0.14873594171490565,0.14873594171490565,0.14873594171490565,0.14873594171490565,{"$f":"$AR139","v":0.14873594171490565},0.14873594171490565,0.14873594171490565,0.14873594171490565,0.14873594171490565,0.14873594171490565,0.14873594171490565,0.14873594171490565,0.14873594171490565,0.14873594171490565,0.14873594171490565,137]
[null,"Female 20-24",0.14873594171490565,0.14873594171490565,0.14873594171490565,0.14873594171490565,0.14873594171490565,0.14873594171490565,0.14873594171490565,0.14873594171490565,0.14873594171490565,0.14873594171490565,0.14873594171490565,0.14873594171490565,0.14873594171490565,0.14873594171490565,0.14873594171490565,0.14873594171490565,0.14873594171490565,0.14873594171490565,0.14873594171490565,0.14873594171490565,0.14873594171490565,0.14873594171490565,0.14873594171490565,0.14873594171490565,0.14873594171490565,0.14873594171490565,0.14873594171490565,0.14873594171490565,0.14873594171490565,0.14873594171490565,0.14873594171490565,0.14873594171490565,0.14873594171490565,0.14873594171490565,0.14873594171490565,0.14873594171490565,0.14873594171490565,0.14873594171490565,0.14873594171490565,0.14873594171490565,0.14873594171490565,0.14873594171490565,0.14873594171490565,0.14873594171490565,0.14873594171490565,0.14873594171490565,0.14873594171490565,0.14873594171490565,0.14873594171490565,0.14873594171490565,0.14873594171490565,0.14873594171490565,0.14873594171490565,138]
[null,"Female 25-29",0.14873594171490565,0.14873594171490565,0.14873594171490565,0.14873594171490565,0.14873594171490565,0.14873594171490565,0.14873594171490565,0.14873594171490565,0.14873594171490565,0.14873594171490565,0.14873594171490565,0.14873594171490565,0.14873594171490565,0.14873594171490565,0.14873594171490565,0.14873594171490565,0.14873594171490565,0.14873594171490565,0.14873594171490565,0.14873594171490565,0.14873594171490565,0.14873594171490565,0.14873594171490565,0.14873594171490565,0.14873594171490565,0.14873594171490565,0.14873594171490565,0.14873594171490565,0.14873594171490565,0.14873594171490565,0.14873594171490565,0.14873594171490565,0.14873594171490565,0.14873594171490565,0.14873594171490565,0.14873594171490565,0.14873594171490565,0.14873594171490565,0.14873594171490565,0.14873594171490565,0.14873594171490565,0.14873594171490565,0.14873594171490565,0.14873594171490565,0.14873594171490565,0.14873594171490565,0.14873594171490565,0.14873594171490565,0.14873594171490565,0.14873594171490565,0.14873594171490565,0.14873594171490565,0.14873594171490565,139]
[null,"Female 30-34",0.14873594171490565,0.14873594171490565,0.14873594171490565,0.14873594171490565,0.14873594171490565,0.14873594171490565,0.14873594171490565,0.14873594171490565,0.14873594171490565,0.14873594171490565,0.14873594171490565,0.14873594171490565,0.14873594171490565,0.14873594171490565,0.14873594171490565,0.14873594171490565,0.14873594171490565,0.14873594171490565,0.14873594171490565,0.14873594171490565,0.14873594171490565,0.14873594171490565,0.14873594171490565,0.14873594171490565,0.14873594171490565,0.14873594171490565,0.14873594171490565,0.14873594171490565,0.14873594171490565,0.14873594171490565,0.14873594171490565,0.14873594171490565,0.14873594171490565,0.14873594171490565,0.14873594171490565,0.14873594171490565,0.14873594171490565,0.14873594171490565,0.14873594171490565,0.14873594171490565,0.14873594171490565,0.14873594171490565,0.14873594171490565,0.14873594171490565,0.14873594171490565,0.14873594171490565,0.14873594171490565,0.14873594171490565,0.14873594171490565,0.14873594171490565,0.14873594171490565,0.14873594171490565,0.14873594171490565,140]
[null,"Female 35-39",0.14873594171490565,0.14873594171490565,0.14873594171490565,0.14873594171490565,0.14873594171490565,0.14873594171490565,0.14873594171490565,0.14873594171490565,0.14873594171490565,0.14873594171490565,0.14873594171490565,0.14873594171490565,0.14873594171490565,0.14873594171490565,0.14873594171490565,0.14873594171490565,0.14873594171490565,0.14873594171490565,0.14873594171490565,0.14873594171490565,0.14873594171490565,0.14873594171490565,0.14873594171490565,0.14873594171490565,0.14873594171490565,0.14873594171490565,0.14873594171490565,0.14873594171490565,0.14873594171490565,0.14873594171490565,0.14873594171490565,0.14873594171490565,0.14873594171490565,0.14873594171490565,0.14873594171490565,0.14873594171490565,0.14873594171490565,0.14873594171490565,0.14873594171490565,0.14873594171490565,0.14873594171490565,0.14873594171490565,0.14873594171490565,0.14873594171490565,0.14873594171490565,0.14873594171490565,0.14873594171490565,0.14873594171490565,0.14873594171490565,0.14873594171490565,0.14873594171490565,0.14873594171490565,0.14873594171490565,141]
[null,"Female 40-44",0.14873594171490565,0.14873594171490565,0.14873594171490565,0.14873594171490565,0.14873594171490565,0.14873594171490565,0.14873594171490565,0.14873594171490565,0.14873594171490565,0.14873594171490565,0.14873594171490565,0.14873594171490565,0.14873594171490565,0.14873594171490565,0.14873594171490565,0.14873594171490565,0.14873594171490565,0.14873594171490565,0.14873594171490565,0.14873594171490565,0.14873594171490565,0.14873594171490565,0.14873594171490565,0.14873594171490565,0.14873594171490565,0.14873594171490565,0.14873594171490565,0.14873594171490565,0.14873594171490565,0.14873594171490565,0.14873594171490565,0.14873594171490565,0.14873594171490565,0.14873594171490565,0.14873594171490565,0.14873594171490565,0.14873594171490565,0.14873594171490565,0.14873594171490565,0.14873594171490565,0.14873594171490565,0.14873594171490565,0.14873594171490565,0.14873594171490565,0.14873594171490565,0.14873594171490565,0.14873594171490565,0.14873594171490565,0.14873594171490565,0.14873594171490565,0.14873594171490565,0.14873594171490565,0.14873594171490565,142]
[null,"Female 45-49",0.14873594171490565,0.14873594171490565,0.14873594171490565,0.14873594171490565,0.14873594171490565,0.14873594171490565,0.14873594171490565,0.14873594171490565,0.14873594171490565,0.14873594171490565,0.14873594171490565,0.14873594171490565,0.14873594171490565,0.14873594171490565,0.14873594171490565,0.14873594171490565,0.14873594171490565,0.14873594171490565,0.14873594171490565,0.14873594171490565,0.14873594171490565,0.14873594171490565,0.14873594171490565,0.14873594171490565,0.14873594171490565,0.14873594171490565,0.14873594171490565,0.14873594171490565,0.14873594171490565,0.14873594171490565,0.14873594171490565,0.14873594171490565,0.14873594171490565,0.14873594171490565,0.14873594171490565,0.14873594171490565,0.14873594171490565,0.14873594171490565,0.14873594171490565,0.14873594171490565,0.14873594171490565,0.14873594171490565,0.14873594171490565,0.14873594171490565,0.14873594171490565,0.14873594171490565,0.14873594171490565,0.14873594171490565,0.14873594171490565,0.14873594171490565,0.14873594171490565,0.14873594171490565,0.14873594171490565,143]
[null,"Female 50-54",0.14873594171490565,0.14873594171490565,0.14873594171490565,0.14873594171490565,0.14873594171490565,0.14873594171490565,0.14873594171490565,0.14873594171490565,0.14873594171490565,0.14873594171490565,0.14873594171490565,0.14873594171490565,0.14873594171490565,0.14873594171490565,0.14873594171490565,0.14873594171490565,0.14873594171490565,0.14873594171490565,0.14873594171490565,0.14873594171490565,0.14873594171490565,0.14873594171490565,0.14873594171490565,0.14873594171490565,0.14873594171490565,0.14873594171490565,0.14873594171490565,0.14873594171490565,0.14873594171490565,0.14873594171490565,0.14873594171490565,0.14873594171490565,0.14873594171490565,0.14873594171490565,0.14873594171490565,0.14873594171490565,0.14873594171490565,0.14873594171490565,0.14873594171490565,0.14873594171490565,0.14873594171490565,0.14873594171490565,0.14873594171490565,0.14873594171490565,0.14873594171490565,0.14873594171490565,0.14873594171490565,0.14873594171490565,0.14873594171490565,0.14873594171490565,0.14873594171490565,0.14873594171490565,0.14873594171490565,144]
[null,"Female 55-59",0.10031299207819142,0.10031299207819142,0.10031299207819142,0.10031299207819142,0.10031299207819142,0.10031299207819142,0.10031299207819142,0.10031299207819142,0.10031299207819142,0.10031299207819142,0.10031299207819142,0.10031299207819142,0.10031299207819142,0.10031299207819142,0.10031299207819142,0.10031299207819142,0.10031299207819142,0.10031299207819142,0.10031299207819142,0.10031299207819142,0.10031299207819142,0.10031299207819142,0.10031299207819142,0.10031299207819142,0.10031299207819142,0.10031299207819142,0.10031299207819142,0.10031299207819142,0.10031299207819142,0.10031299207819142,0.10031299207819142,0.10031299207819142,0.10031299207819142,0.10031299207819142,0.10031299207819142,0.10031299207819142,0.10031299207819142,0.10031299207819142,0.10031299207819142,0.10031299207819142,0.10031299207819142,0.10031299207819142,0.10031299207819142,0.10031299207819142,0.10031299207819142,0.10031299207819142,0.10031299207819142,0.10031299207819142,0.10031299207819142,0.10031299207819142,0.10031299207819142,0.10031299207819142,0.10031299207819142,145]
[null,"Female 60-64",0.10031299207819142,0.10031299207819142,0.10031299207819142,0.10031299207819142,0.10031299207819142,0.10031299207819142,0.10031299207819142,0.10031299207819142,0.10031299207819142,0.10031299207819142,0.10031299207819142,0.10031299207819142,0.10031299207819142,0.10031299207819142,0.10031299207819142,0.10031299207819142,0.10031299207819142,0.10031299207819142,0.10031299207819142,0.10031299207819142,0.10031299207819142,0.10031299207819142,0.10031299207819142,0.10031299207819142,0.10031299207819142,0.10031299207819142,0.10031299207819142,0.10031299207819142,0.10031299207819142,0.10031299207819142,0.10031299207819142,0.10031299207819142,0.10031299207819142,0.10031299207819142,0.10031299207819142,0.10031299207819142,0.10031299207819142,0.10031299207819142,0.10031299207819142,0.10031299207819142,0.10031299207819142,0.10031299207819142,0.10031299207819142,0.10031299207819142,0.10031299207819142,0.10031299207819142,0.10031299207819142,0.10031299207819142,0.10031299207819142,0.10031299207819142,0.10031299207819142,0.10031299207819142,0.10031299207819142,146]
[null,"Female 65-69",{"$f":"$AR149","v":0.10031299207819142},0.10031299207819142,0.10031299207819142,0.10031299207819142,0.10031299207819142,0.10031299207819142,0.10031299207819142,0.10031299207819142,0.10031299207819142,0.10031299207819142,{"$f":"$AR149","v":0.10031299207819142},0.10031299207819142,0.10031299207819142,0.10031299207819142,0.10031299207819142,0.10031299207819142,0.10031299207819142,0.10031299207819142,0.10031299207819142,0.10031299207819142,{"$f":"$AR149","v":0.10031299207819142},0.10031299207819142,0.10031299207819142,0.10031299207819142,0.10031299207819142,0.10031299207819142,0.10031299207819142,0.10031299207819142,0.10031299207819142,0.10031299207819142,{"$f":"$AR149","v":0.10031299207819142},0.10031299207819142,0.10031299207819142,0.10031299207819142,0.10031299207819142,0.10031299207819142,0.10031299207819142,0.10031299207819142,0.10031299207819142,0.10031299207819142,0.10031299207819142,0.10031299207819142,{"$f":"$AR149","v":0.10031299207819142},0.10031299207819142,0.10031299207819142,0.10031299207819142,0.10031299207819142,0.10031299207819142,0.10031299207819142,0.10031299207819142,0.10031299207819142,0.10031299207819142,0.10031299207819142,147]
[null,"Female 70-74",0.10031299207819142,0.10031299207819142,0.10031299207819142,0.10031299207819142,0.10031299207819142,0.10031299207819142,0.10031299207819142,0.10031299207819142,0.10031299207819142,0.10031299207819142,0.10031299207819142,0.10031299207819142,0.10031299207819142,0.10031299207819142,0.10031299207819142,0.10031299207819142,0.10031299207819142,0.10031299207819142,0.10031299207819142,0.10031299207819142,0.10031299207819142,0.10031299207819142,0.10031299207819142,0.10031299207819142,0.10031299207819142,0.10031299207819142,0.10031299207819142,0.10031299207819142,0.10031299207819142,0.10031299207819142,0.10031299207819142,0.10031299207819142,0.10031299207819142,0.10031299207819142,0.10031299207819142,0.10031299207819142,0.10031299207819142,0.10031299207819142,0.10031299207819142,0.10031299207819142,0.10031299207819142,0.10031299207819142,0.10031299207819142,0.10031299207819142,0.10031299207819142,0.10031299207819142,0.10031299207819142,0.10031299207819142,0.10031299207819142,0.10031299207819142,0.10031299207819142,0.10031299207819142,0.10031299207819142,148]
[null,"Female 75-79",0.10031299207819142,0.10031299207819142,0.10031299207819142,0.10031299207819142,0.10031299207819142,0.10031299207819142,0.10031299207819142,0.10031299207819142,0.10031299207819142,0.10031299207819142,0.10031299207819142,0.10031299207819142,0.10031299207819142,0.10031299207819142,0.10031299207819142,0.10031299207819142,0.10031299207819142,0.10031299207819142,0.10031299207819142,0.10031299207819142,0.10031299207819142,0.10031299207819142,0.10031299207819142,0.10031299207819142,0.10031299207819142,0.10031299207819142,0.10031299207819142,0.10031299207819142,0.10031299207819142,0.10031299207819142,0.10031299207819142,0.10031299207819142,0.10031299207819142,0.10031299207819142,0.10031299207819142,0.10031299207819142,0.10031299207819142,0.10031299207819142,0.10031299207819142,0.10031299207819142,0.10031299207819142,0.10031299207819142,0.10031299207819142,0.10031299207819142,0.10031299207819142,0.10031299207819142,0.10031299207819142,0.10031299207819142,0.10031299207819142,0.10031299207819142,0.10031299207819142,0.10031299207819142,0.10031299207819142,149]
[null,"Female 80-84",0.10031299207819142,0.10031299207819142,0.10031299207819142,0.10031299207819142,0.10031299207819142,0.10031299207819142,0.10031299207819142,0.10031299207819142,0.10031299207819142,0.10031299207819142,0.10031299207819142,0.10031299207819142,0.10031299207819142,0.10031299207819142,0.10031299207819142,0.10031299207819142,0.10031299207819142,0.10031299207819142,0.10031299207819142,0.10031299207819142,0.10031299207819142,0.10031299207819142,0.10031299207819142,0.10031299207819142,0.10031299207819142,0.10031299207819142,0.10031299207819142,0.10031299207819142,0.10031299207819142,0.10031299207819142,0.10031299207819142,0.10031299207819142,0.10031299207819142,0.10031299207819142,0.10031299207819142,0.10031299207819142,0.10031299207819142,0.10031299207819142,0.10031299207819142,0.10031299207819142,0.10031299207819142,0.10031299207819142,0.10031299207819142,0.10031299207819142,0.10031299207819142,0.10031299207819142,0.10031299207819142,0.10031299207819142,0.10031299207819142,0.10031299207819142,0.10031299207819142,0.10031299207819142,0.10031299207819142,150]
[null,"Female 85-89",0.10031299207819142,0.10031299207819142,0.10031299207819142,0.10031299207819142,0.10031299207819142,0.10031299207819142,0.10031299207819142,0.10031299207819142,0.10031299207819142,0.10031299207819142,0.10031299207819142,0.10031299207819142,0.10031299207819142,0.10031299207819142,0.10031299207819142,0.10031299207819142,0.10031299207819142,0.10031299207819142,0.10031299207819142,0.10031299207819142,0.10031299207819142,0.10031299207819142,0.10031299207819142,0.10031299207819142,0.10031299207819142,0.10031299207819142,0.10031299207819142,0.10031299207819142,0.10031299207819142,0.10031299207819142,0.10031299207819142,0.10031299207819142,0.10031299207819142,0.10031299207819142,0.10031299207819142,0.10031299207819142,0.10031299207819142,0.10031299207819142,0.10031299207819142,0.10031299207819142,0.10031299207819142,0.10031299207819142,0.10031299207819142,0.10031299207819142,0.10031299207819142,0.10031299207819142,0.10031299207819142,0.10031299207819142,0.10031299207819142,0.10031299207819142,0.10031299207819142,0.10031299207819142,0.10031299207819142,151]
[null,"Female 90+",0.10031299207819142,0.10031299207819142,0.10031299207819142,0.10031299207819142,0.10031299207819142,0.10031299207819142,0.10031299207819142,0.10031299207819142,0.10031299207819142,0.10031299207819142,0.10031299207819142,0.10031299207819142,0.10031299207819142,0.10031299207819142,0.10031299207819142,0.10031299207819142,0.10031299207819142,0.10031299207819142,0.10031299207819142,0.10031299207819142,0.10031299207819142,0.10031299207819142,0.10031299207819142,0.10031299207819142,0.10031299207819142,0.10031299207819142,0.10031299207819142,0.10031299207819142,0.10031299207819142,0.10031299207819142,0.10031299207819142,0.10031299207819142,0.10031299207819142,0.10031299207819142,0.10031299207819142,0.10031299207819142,0.10031299207819142,0.10031299207819142,0.10031299207819142,0.10031299207819142,0.10031299207819142,0.10031299207819142,0.10031299207819142,0.10031299207819142,0.10031299207819142,0.10031299207819142,0.10031299207819142,0.10031299207819142,0.10031299207819142,0.10031299207819142,0.10031299207819142,0.10031299207819142,0.10031299207819142,152]
[null,"Male 0-4",null,null,null,null,null,null,null,null,null,null,null,null,null,null,null,null,null,null,null,null,null,null,null,null,null,null,null,null,null,null,null,null,null,null,null,null,null,null,null,null,null,null,null,null,null,null,null,null,null,null,null,null,null,153]
[null,"Male 5-9",null,null,null,null,null,null,null,null,null,null,null,null,null,null,null,null,null,null,null,null,null,null,null,null,null,null,null,null,null,null,null,null,null,null,null,null,null,null,null,null,null,null,null,null,null,null,null,null,null,null,null,null,null,154]
[null,"Male 10-15",null,null,null,null,null,null,null,null,null,null,null,null,null,null,null,null,null,null,null,null,null,null,null,null,null,null,null,null,null,null,null,null,null,null,null,null,null,null,null,null,null,null,null,null,null,null,null,null,null,null,null,null,null,155]
[null,"Male 16-19",{"$f":"$AR158","v":0.12186503235597473},0.12186503235597473,0.12186503235597473,0.12186503235597473,0.12186503235597473,0.12186503235597473,0.12186503235597473,0.12186503235597473,0.12186503235597473,0.12186503235597473,{"$f":"$AR158","v":0.12186503235597473},0.12186503235597473,0.12186503235597473,0.12186503235597473,0.12186503235597473,0.12186503235597473,0.12186503235597473,0.12186503235597473,0.12186503235597473,0.12186503235597473,{"$f":"$AR158","v":0.12186503235597473},0.12186503235597473,0.12186503235597473,0.12186503235597473,0.12186503235597473,0.12186503235597473,0.12186503235597473,0.12186503235597473,0.12186503235597473,0.12186503235597473,{"$f":"$AR158","v":0.12186503235597473},0.12186503235597473,0.12186503235597473,0.12186503235597473,0.12186503235597473,0.12186503235597473,0.12186503235597473,0.12186503235597473,0.12186503235597473,0.12186503235597473,0.12186503235597473,0.12186503235597473,{"$f":"$AR158","v":0.12186503235597473},0.12186503235597473,0.12186503235597473,0.12186503235597473,0.12186503235597473,0.12186503235597473,0.12186503235597473,0.12186503235597473,0.12186503235597473,0.12186503235597473,0.12186503235597473,156]
[null,"Male 20-24",0.12186503235597473,0.12186503235597473,0.12186503235597473,0.12186503235597473,0.12186503235597473,0.12186503235597473,0.12186503235597473,0.12186503235597473,0.12186503235597473,0.12186503235597473,0.12186503235597473,0.12186503235597473,0.12186503235597473,0.12186503235597473,0.12186503235597473,0.12186503235597473,0.12186503235597473,0.12186503235597473,0.12186503235597473,0.12186503235597473,0.12186503235597473,0.12186503235597473,0.12186503235597473,0.12186503235597473,0.12186503235597473,0.12186503235597473,0.12186503235597473,0.12186503235597473,0.12186503235597473,0.12186503235597473,0.12186503235597473,0.12186503235597473,0.12186503235597473,0.12186503235597473,0.12186503235597473,0.12186503235597473,0.12186503235597473,0.12186503235597473,0.12186503235597473,0.12186503235597473,0.12186503235597473,0.12186503235597473,0.12186503235597473,0.12186503235597473,0.12186503235597473,0.12186503235597473,0.12186503235597473,0.12186503235597473,0.12186503235597473,0.12186503235597473,0.12186503235597473,0.12186503235597473,0.12186503235597473,157]
[null,"Male 25-29",0.12186503235597473,0.12186503235597473,0.12186503235597473,0.12186503235597473,0.12186503235597473,0.12186503235597473,0.12186503235597473,0.12186503235597473,0.12186503235597473,0.12186503235597473,0.12186503235597473,0.12186503235597473,0.12186503235597473,0.12186503235597473,0.12186503235597473,0.12186503235597473,0.12186503235597473,0.12186503235597473,0.12186503235597473,0.12186503235597473,0.12186503235597473,0.12186503235597473,0.12186503235597473,0.12186503235597473,0.12186503235597473,0.12186503235597473,0.12186503235597473,0.12186503235597473,0.12186503235597473,0.12186503235597473,0.12186503235597473,0.12186503235597473,0.12186503235597473,0.12186503235597473,0.12186503235597473,0.12186503235597473,0.12186503235597473,0.12186503235597473,0.12186503235597473,0.12186503235597473,0.12186503235597473,0.12186503235597473,0.12186503235597473,0.12186503235597473,0.12186503235597473,0.12186503235597473,0.12186503235597473,0.12186503235597473,0.12186503235597473,0.12186503235597473,0.12186503235597473,0.12186503235597473,0.12186503235597473,158]
[null,"Male 30-34",0.12186503235597473,0.12186503235597473,0.12186503235597473,0.12186503235597473,0.12186503235597473,0.12186503235597473,0.12186503235597473,0.12186503235597473,0.12186503235597473,0.12186503235597473,0.12186503235597473,0.12186503235597473,0.12186503235597473,0.12186503235597473,0.12186503235597473,0.12186503235597473,0.12186503235597473,0.12186503235597473,0.12186503235597473,0.12186503235597473,0.12186503235597473,0.12186503235597473,0.12186503235597473,0.12186503235597473,0.12186503235597473,0.12186503235597473,0.12186503235597473,0.12186503235597473,0.12186503235597473,0.12186503235597473,0.12186503235597473,0.12186503235597473,0.12186503235597473,0.12186503235597473,0.12186503235597473,0.12186503235597473,0.12186503235597473,0.12186503235597473,0.12186503235597473,0.12186503235597473,0.12186503235597473,0.12186503235597473,0.12186503235597473,0.12186503235597473,0.12186503235597473,0.12186503235597473,0.12186503235597473,0.12186503235597473,0.12186503235597473,0.12186503235597473,0.12186503235597473,0.12186503235597473,0.12186503235597473,159]
[null,"Male 35-39",0.12186503235597473,0.12186503235597473,0.12186503235597473,0.12186503235597473,0.12186503235597473,0.12186503235597473,0.12186503235597473,0.12186503235597473,0.12186503235597473,0.12186503235597473,0.12186503235597473,0.12186503235597473,0.12186503235597473,0.12186503235597473,0.12186503235597473,0.12186503235597473,0.12186503235597473,0.12186503235597473,0.12186503235597473,0.12186503235597473,0.12186503235597473,0.12186503235597473,0.12186503235597473,0.12186503235597473,0.12186503235597473,0.12186503235597473,0.12186503235597473,0.12186503235597473,0.12186503235597473,0.12186503235597473,0.12186503235597473,0.12186503235597473,0.12186503235597473,0.12186503235597473,0.12186503235597473,0.12186503235597473,0.12186503235597473,0.12186503235597473,0.12186503235597473,0.12186503235597473,0.12186503235597473,0.12186503235597473,0.12186503235597473,0.12186503235597473,0.12186503235597473,0.12186503235597473,0.12186503235597473,0.12186503235597473,0.12186503235597473,0.12186503235597473,0.12186503235597473,0.12186503235597473,0.12186503235597473,160]
[null,"Male 40-44",0.12186503235597473,0.12186503235597473,0.12186503235597473,0.12186503235597473,0.12186503235597473,0.12186503235597473,0.12186503235597473,0.12186503235597473,0.12186503235597473,0.12186503235597473,0.12186503235597473,0.12186503235597473,0.12186503235597473,0.12186503235597473,0.12186503235597473,0.12186503235597473,0.12186503235597473,0.12186503235597473,0.12186503235597473,0.12186503235597473,0.12186503235597473,0.12186503235597473,0.12186503235597473,0.12186503235597473,0.12186503235597473,0.12186503235597473,0.12186503235597473,0.12186503235597473,0.12186503235597473,0.12186503235597473,0.12186503235597473,0.12186503235597473,0.12186503235597473,0.12186503235597473,0.12186503235597473,0.12186503235597473,0.12186503235597473,0.12186503235597473,0.12186503235597473,0.12186503235597473,0.12186503235597473,0.12186503235597473,0.12186503235597473,0.12186503235597473,0.12186503235597473,0.12186503235597473,0.12186503235597473,0.12186503235597473,0.12186503235597473,0.12186503235597473,0.12186503235597473,0.12186503235597473,0.12186503235597473,161]
[null,"Male 45-49",0.12186503235597473,0.12186503235597473,0.12186503235597473,0.12186503235597473,0.12186503235597473,0.12186503235597473,0.12186503235597473,0.12186503235597473,0.12186503235597473,0.12186503235597473,0.12186503235597473,0.12186503235597473,0.12186503235597473,0.12186503235597473,0.12186503235597473,0.12186503235597473,0.12186503235597473,0.12186503235597473,0.12186503235597473,0.12186503235597473,0.12186503235597473,0.12186503235597473,0.12186503235597473,0.12186503235597473,0.12186503235597473,0.12186503235597473,0.12186503235597473,0.12186503235597473,0.12186503235597473,0.12186503235597473,0.12186503235597473,0.12186503235597473,0.12186503235597473,0.12186503235597473,0.12186503235597473,0.12186503235597473,0.12186503235597473,0.12186503235597473,0.12186503235597473,0.12186503235597473,0.12186503235597473,0.12186503235597473,0.12186503235597473,0.12186503235597473,0.12186503235597473,0.12186503235597473,0.12186503235597473,0.12186503235597473,0.12186503235597473,0.12186503235597473,0.12186503235597473,0.12186503235597473,0.12186503235597473,162]
[null,"Male 50-54",0.12186503235597473,0.12186503235597473,0.12186503235597473,0.12186503235597473,0.12186503235597473,0.12186503235597473,0.12186503235597473,0.12186503235597473,0.12186503235597473,0.12186503235597473,0.12186503235597473,0.12186503235597473,0.12186503235597473,0.12186503235597473,0.12186503235597473,0.12186503235597473,0.12186503235597473,0.12186503235597473,0.12186503235597473,0.12186503235597473,0.12186503235597473,0.12186503235597473,0.12186503235597473,0.12186503235597473,0.12186503235597473,0.12186503235597473,0.12186503235597473,0.12186503235597473,0.12186503235597473,0.12186503235597473,0.12186503235597473,0.12186503235597473,0.12186503235597473,0.12186503235597473,0.12186503235597473,0.12186503235597473,0.12186503235597473,0.12186503235597473,0.12186503235597473,0.12186503235597473,0.12186503235597473,0.12186503235597473,0.12186503235597473,0.12186503235597473,0.12186503235597473,0.12186503235597473,0.12186503235597473,0.12186503235597473,0.12186503235597473,0.12186503235597473,0.12186503235597473,0.12186503235597473,0.12186503235597473,163]
[null,"Male 55-59",8.219026204685223E-2,8.219026204685223E-2,8.219026204685223E-2,8.219026204685223E-2,8.219026204685223E-2,8.219026204685223E-2,8.219026204685223E-2,8.219026204685223E-2,8.219026204685223E-2,8.219026204685223E-2,8.219026204685223E-2,8.219026204685223E-2,8.219026204685223E-2,8.219026204685223E-2,8.219026204685223E-2,8.219026204685223E-2,8.219026204685223E-2,8.219026204685223E-2,8.219026204685223E-2,8.219026204685223E-2,8.219026204685223E-2,8.219026204685223E-2,8.219026204685223E-2,8.219026204685223E-2,8.219026204685223E-2,8.219026204685223E-2,8.219026204685223E-2,8.219026204685223E-2,8.219026204685223E-2,8.219026204685223E-2,8.219026204685223E-2,8.219026204685223E-2,8.219026204685223E-2,8.219026204685223E-2,8.219026204685223E-2,8.219026204685223E-2,8.219026204685223E-2,8.219026204685223E-2,8.219026204685223E-2,8.219026204685223E-2,8.219026204685223E-2,8.219026204685223E-2,8.219026204685223E-2,8.219026204685223E-2,8.219026204685223E-2,8.219026204685223E-2,8.219026204685223E-2,8.219026204685223E-2,8.219026204685223E-2,8.219026204685223E-2,8.219026204685223E-2,8.219026204685223E-2,8.219026204685223E-2,164]
[null,"Male 60-64",8.219026204685223E-2,8.219026204685223E-2,8.219026204685223E-2,8.219026204685223E-2,8.219026204685223E-2,8.219026204685223E-2,8.219026204685223E-2,8.219026204685223E-2,8.219026204685223E-2,8.219026204685223E-2,8.219026204685223E-2,8.219026204685223E-2,8.219026204685223E-2,8.219026204685223E-2,8.219026204685223E-2,8.219026204685223E-2,8.219026204685223E-2,8.219026204685223E-2,8.219026204685223E-2,8.219026204685223E-2,8.219026204685223E-2,8.219026204685223E-2,8.219026204685223E-2,8.219026204685223E-2,8.219026204685223E-2,8.219026204685223E-2,8.219026204685223E-2,8.219026204685223E-2,8.219026204685223E-2,8.219026204685223E-2,8.219026204685223E-2,8.219026204685223E-2,8.219026204685223E-2,8.219026204685223E-2,8.219026204685223E-2,8.219026204685223E-2,8.219026204685223E-2,8.219026204685223E-2,8.219026204685223E-2,8.219026204685223E-2,8.219026204685223E-2,8.219026204685223E-2,8.219026204685223E-2,8.219026204685223E-2,8.219026204685223E-2,8.219026204685223E-2,8.219026204685223E-2,8.219026204685223E-2,8.219026204685223E-2,8.219026204685223E-2,8.219026204685223E-2,8.219026204685223E-2,8.219026204685223E-2,165]
[null,"Male 65-69",{"$f":"$AR168","v":8.219026204685223E-2},8.219026204685223E-2,8.219026204685223E-2,8.219026204685223E-2,8.219026204685223E-2,8.219026204685223E-2,8.219026204685223E-2,8.219026204685223E-2,8.219026204685223E-2,8.219026204685223E-2,{"$f":"$AR168","v":8.219026204685223E-2},8.219026204685223E-2,8.219026204685223E-2,8.219026204685223E-2,8.219026204685223E-2,8.219026204685223E-2,8.219026204685223E-2,8.219026204685223E-2,8.219026204685223E-2,8.219026204685223E-2,{"$f":"$AR168","v":8.219026204685223E-2},8.219026204685223E-2,8.219026204685223E-2,8.219026204685223E-2,8.219026204685223E-2,8.219026204685223E-2,8.219026204685223E-2,8.219026204685223E-2,8.219026204685223E-2,8.219026204685223E-2,{"$f":"$AR168","v":8.219026204685223E-2},8.219026204685223E-2,8.219026204685223E-2,8.219026204685223E-2,8.219026204685223E-2,8.219026204685223E-2,8.219026204685223E-2,8.219026204685223E-2,8.219026204685223E-2,8.219026204685223E-2,8.219026204685223E-2,8.219026204685223E-2,{"$f":"$AR168","v":8.219026204685223E-2},8.219026204685223E-2,8.219026204685223E-2,8.219026204685223E-2,8.219026204685223E-2,8.219026204685223E-2,8.219026204685223E-2,8.219026204685223E-2,8.219026204685223E-2,8.219026204685223E-2,8.219026204685223E-2,166]
[null,"Male 70-74",8.219026204685223E-2,8.219026204685223E-2,8.219026204685223E-2,8.219026204685223E-2,8.219026204685223E-2,8.219026204685223E-2,8.219026204685223E-2,8.219026204685223E-2,8.219026204685223E-2,8.219026204685223E-2,8.219026204685223E-2,8.219026204685223E-2,8.219026204685223E-2,8.219026204685223E-2,8.219026204685223E-2,8.219026204685223E-2,8.219026204685223E-2,8.219026204685223E-2,8.219026204685223E-2,8.219026204685223E-2,8.219026204685223E-2,8.219026204685223E-2,8.219026204685223E-2,8.219026204685223E-2,8.219026204685223E-2,8.219026204685223E-2,8.219026204685223E-2,8.219026204685223E-2,8.219026204685223E-2,8.219026204685223E-2,8.219026204685223E-2,8.219026204685223E-2,8.219026204685223E-2,8.219026204685223E-2,8.219026204685223E-2,8.219026204685223E-2,8.219026204685223E-2,8.219026204685223E-2,8.219026204685223E-2,8.219026204685223E-2,8.219026204685223E-2,8.219026204685223E-2,8.219026204685223E-2,8.219026204685223E-2,8.219026204685223E-2,8.219026204685223E-2,8.219026204685223E-2,8.219026204685223E-2,8.219026204685223E-2,8.219026204685223E-2,8.219026204685223E-2,8.219026204685223E-2,8.219026204685223E-2,167]
[null,"Male 75-79",8.219026204685223E-2,8.219026204685223E-2,8.219026204685223E-2,8.219026204685223E-2,8.219026204685223E-2,8.219026204685223E-2,8.219026204685223E-2,8.219026204685223E-2,8.219026204685223E-2,8.219026204685223E-2,8.219026204685223E-2,8.219026204685223E-2,8.219026204685223E-2,8.219026204685223E-2,8.219026204685223E-2,8.219026204685223E-2,8.219026204685223E-2,8.219026204685223E-2,8.219026204685223E-2,8.219026204685223E-2,8.219026204685223E-2,8.219026204685223E-2,8.219026204685223E-2,8.219026204685223E-2,8.219026204685223E-2,8.219026204685223E-2,8.219026204685223E-2,8.219026204685223E-2,8.219026204685223E-2,8.219026204685223E-2,8.219026204685223E-2,8.219026204685223E-2,8.219026204685223E-2,8.219026204685223E-2,8.219026204685223E-2,8.219026204685223E-2,8.219026204685223E-2,8.219026204685223E-2,8.219026204685223E-2,8.219026204685223E-2,8.219026204685223E-2,8.219026204685223E-2,8.219026204685223E-2,8.219026204685223E-2,8.219026204685223E-2,8.219026204685223E-2,8.219026204685223E-2,8.219026204685223E-2,8.219026204685223E-2,8.219026204685223E-2,8.219026204685223E-2,8.219026204685223E-2,8.219026204685223E-2,168]
[null,"Male 80-84",8.219026204685223E-2,8.219026204685223E-2,8.219026204685223E-2,8.219026204685223E-2,8.219026204685223E-2,8.219026204685223E-2,8.219026204685223E-2,8.219026204685223E-2,8.219026204685223E-2,8.219026204685223E-2,8.219026204685223E-2,8.219026204685223E-2,8.219026204685223E-2,8.219026204685223E-2,8.219026204685223E-2,8.219026204685223E-2,8.219026204685223E-2,8.219026204685223E-2,8.219026204685223E-2,8.219026204685223E-2,8.219026204685223E-2,8.219026204685223E-2,8.219026204685223E-2,8.219026204685223E-2,8.219026204685223E-2,8.219026204685223E-2,8.219026204685223E-2,8.219026204685223E-2,8.219026204685223E-2,8.219026204685223E-2,8.219026204685223E-2,8.219026204685223E-2,8.219026204685223E-2,8.219026204685223E-2,8.219026204685223E-2,8.219026204685223E-2,8.219026204685223E-2,8.219026204685223E-2,8.219026204685223E-2,8.219026204685223E-2,8.219026204685223E-2,8.219026204685223E-2,8.219026204685223E-2,8.219026204685223E-2,8.219026204685223E-2,8.219026204685223E-2,8.219026204685223E-2,8.219026204685223E-2,8.219026204685223E-2,8.219026204685223E-2,8.219026204685223E-2,8.219026204685223E-2,8.219026204685223E-2,169]
[null,"Male 85-89",8.219026204685223E-2,8.219026204685223E-2,8.219026204685223E-2,8.219026204685223E-2,8.219026204685223E-2,8.219026204685223E-2,8.219026204685223E-2,8.219026204685223E-2,8.219026204685223E-2,8.219026204685223E-2,8.219026204685223E-2,8.219026204685223E-2,8.219026204685223E-2,8.219026204685223E-2,8.219026204685223E-2,8.219026204685223E-2,8.219026204685223E-2,8.219026204685223E-2,8.219026204685223E-2,8.219026204685223E-2,8.219026204685223E-2,8.219026204685223E-2,8.219026204685223E-2,8.219026204685223E-2,8.219026204685223E-2,8.219026204685223E-2,8.219026204685223E-2,8.219026204685223E-2,8.219026204685223E-2,8.219026204685223E-2,8.219026204685223E-2,8.219026204685223E-2,8.219026204685223E-2,8.219026204685223E-2,8.219026204685223E-2,8.219026204685223E-2,8.219026204685223E-2,8.219026204685223E-2,8.219026204685223E-2,8.219026204685223E-2,8.219026204685223E-2,8.219026204685223E-2,8.219026204685223E-2,8.219026204685223E-2,8.219026204685223E-2,8.219026204685223E-2,8.219026204685223E-2,8.219026204685223E-2,8.219026204685223E-2,8.219026204685223E-2,8.219026204685223E-2,8.219026204685223E-2,8.219026204685223E-2,170]
[null,"Male 90+",8.219026204685223E-2,8.219026204685223E-2,8.219026204685223E-2,8.219026204685223E-2,8.219026204685223E-2,8.219026204685223E-2,8.219026204685223E-2,8.219026204685223E-2,8.219026204685223E-2,8.219026204685223E-2,8.219026204685223E-2,8.219026204685223E-2,8.219026204685223E-2,8.219026204685223E-2,8.219026204685223E-2,8.219026204685223E-2,8.219026204685223E-2,8.219026204685223E-2,8.219026204685223E-2,8.219026204685223E-2,8.219026204685223E-2,8.219026204685223E-2,8.219026204685223E-2,8.219026204685223E-2,8.219026204685223E-2,8.219026204685223E-2,8.219026204685223E-2,8.219026204685223E-2,8.219026204685223E-2,8.219026204685223E-2,8.219026204685223E-2,8.219026204685223E-2,8.219026204685223E-2,8.219026204685223E-2,8.219026204685223E-2,8.219026204685223E-2,8.219026204685223E-2,8.219026204685223E-2,8.219026204685223E-2,8.219026204685223E-2,8.219026204685223E-2,8.219026204685223E-2,8.219026204685223E-2,8.219026204685223E-2,8.219026204685223E-2,8.219026204685223E-2,8.219026204685223E-2,8.219026204685223E-2,8.219026204685223E-2,8.219026204685223E-2,8.219026204685223E-2,8.219026204685223E-2,8.219026204685223E-2,171]
["SIMD Q4","Female 0-4",null,null,null,null,null,null,null,null,null,null,null,null,null,null,null,null,null,null,null,null,null,null,null,null,null,null,null,null,null,null,null,null,null,null,null,null,null,null,null,null,null,null,null,null,null,null,null,null,null,null,null,null,null,172]
[null,"Female 5-9",null,null,null,null,null,null,null,null,null,null,null,null,null,null,null,null,null,null,null,null,null,null,null,null,null,null,null,null,null,null,null,null,null,null,null,null,null,null,null,null,null,null,null,null,null,null,null,null,null,null,null,null,null,173]
[null,"Female 10-15",null,null,null,null,null,null,null,null,null,null,null,null,null,null,null,null,null,null,null,null,null,null,null,null,null,null,null,null,null,null,null,null,null,null,null,null,null,null,null,null,null,null,null,null,null,null,null,null,null,null,null,null,null,174]
[null,"Female 16-19",{"$f":"$AR177","v":0.11957993199323458},0.11957993199323458,0.11957993199323458,0.11957993199323458,0.11957993199323458,0.11957993199323458,0.11957993199323458,0.11957993199323458,0.11957993199323458,0.11957993199323458,{"$f":"$AR177","v":0.11957993199323458},0.11957993199323458,0.11957993199323458,0.11957993199323458,0.11957993199323458,0.11957993199323458,0.11957993199323458,0.11957993199323458,0.11957993199323458,0.11957993199323458,{"$f":"$AR177","v":0.11957993199323458},0.11957993199323458,0.11957993199323458,0.11957993199323458,0.11957993199323458,0.11957993199323458,0.11957993199323458,0.11957993199323458,0.11957993199323458,0.11957993199323458,{"$f":"$AR177","v":0.11957993199323458},0.11957993199323458,0.11957993199323458,0.11957993199323458,0.11957993199323458,0.11957993199323458,0.11957993199323458,0.11957993199323458,0.11957993199323458,0.11957993199323458,0.11957993199323458,0.11957993199323458,{"$f":"$AR177","v":0.11957993199323458},0.11957993199323458,0.11957993199323458,0.11957993199323458,0.11957993199323458,0.11957993199323458,0.11957993199323458,0.11957993199323458,0.11957993199323458,0.11957993199323458,0.11957993199323458,175]
[null,"Female 20-24",0.11957993199323458,0.11957993199323458,0.11957993199323458,0.11957993199323458,0.11957993199323458,0.11957993199323458,0.11957993199323458,0.11957993199323458,0.11957993199323458,0.11957993199323458,0.11957993199323458,0.11957993199323458,0.11957993199323458,0.11957993199323458,0.11957993199323458,0.11957993199323458,0.11957993199323458,0.11957993199323458,0.11957993199323458,0.11957993199323458,0.11957993199323458,0.11957993199323458,0.11957993199323458,0.11957993199323458,0.11957993199323458,0.11957993199323458,0.11957993199323458,0.11957993199323458,0.11957993199323458,0.11957993199323458,0.11957993199323458,0.11957993199323458,0.11957993199323458,0.11957993199323458,0.11957993199323458,0.11957993199323458,0.11957993199323458,0.11957993199323458,0.11957993199323458,0.11957993199323458,0.11957993199323458,0.11957993199323458,0.11957993199323458,0.11957993199323458,0.11957993199323458,0.11957993199323458,0.11957993199323458,0.11957993199323458,0.11957993199323458,0.11957993199323458,0.11957993199323458,0.11957993199323458,0.11957993199323458,176]
[null,"Female 25-29",0.11957993199323458,0.11957993199323458,0.11957993199323458,0.11957993199323458,0.11957993199323458,0.11957993199323458,0.11957993199323458,0.11957993199323458,0.11957993199323458,0.11957993199323458,0.11957993199323458,0.11957993199323458,0.11957993199323458,0.11957993199323458,0.11957993199323458,0.11957993199323458,0.11957993199323458,0.11957993199323458,0.11957993199323458,0.11957993199323458,0.11957993199323458,0.11957993199323458,0.11957993199323458,0.11957993199323458,0.11957993199323458,0.11957993199323458,0.11957993199323458,0.11957993199323458,0.11957993199323458,0.11957993199323458,0.11957993199323458,0.11957993199323458,0.11957993199323458,0.11957993199323458,0.11957993199323458,0.11957993199323458,0.11957993199323458,0.11957993199323458,0.11957993199323458,0.11957993199323458,0.11957993199323458,0.11957993199323458,0.11957993199323458,0.11957993199323458,0.11957993199323458,0.11957993199323458,0.11957993199323458,0.11957993199323458,0.11957993199323458,0.11957993199323458,0.11957993199323458,0.11957993199323458,0.11957993199323458,177]
[null,"Female 30-34",0.11957993199323458,0.11957993199323458,0.11957993199323458,0.11957993199323458,0.11957993199323458,0.11957993199323458,0.11957993199323458,0.11957993199323458,0.11957993199323458,0.11957993199323458,0.11957993199323458,0.11957993199323458,0.11957993199323458,0.11957993199323458,0.11957993199323458,0.11957993199323458,0.11957993199323458,0.11957993199323458,0.11957993199323458,0.11957993199323458,0.11957993199323458,0.11957993199323458,0.11957993199323458,0.11957993199323458,0.11957993199323458,0.11957993199323458,0.11957993199323458,0.11957993199323458,0.11957993199323458,0.11957993199323458,0.11957993199323458,0.11957993199323458,0.11957993199323458,0.11957993199323458,0.11957993199323458,0.11957993199323458,0.11957993199323458,0.11957993199323458,0.11957993199323458,0.11957993199323458,0.11957993199323458,0.11957993199323458,0.11957993199323458,0.11957993199323458,0.11957993199323458,0.11957993199323458,0.11957993199323458,0.11957993199323458,0.11957993199323458,0.11957993199323458,0.11957993199323458,0.11957993199323458,0.11957993199323458,178]
[null,"Female 35-39",0.11957993199323458,0.11957993199323458,0.11957993199323458,0.11957993199323458,0.11957993199323458,0.11957993199323458,0.11957993199323458,0.11957993199323458,0.11957993199323458,0.11957993199323458,0.11957993199323458,0.11957993199323458,0.11957993199323458,0.11957993199323458,0.11957993199323458,0.11957993199323458,0.11957993199323458,0.11957993199323458,0.11957993199323458,0.11957993199323458,0.11957993199323458,0.11957993199323458,0.11957993199323458,0.11957993199323458,0.11957993199323458,0.11957993199323458,0.11957993199323458,0.11957993199323458,0.11957993199323458,0.11957993199323458,0.11957993199323458,0.11957993199323458,0.11957993199323458,0.11957993199323458,0.11957993199323458,0.11957993199323458,0.11957993199323458,0.11957993199323458,0.11957993199323458,0.11957993199323458,0.11957993199323458,0.11957993199323458,0.11957993199323458,0.11957993199323458,0.11957993199323458,0.11957993199323458,0.11957993199323458,0.11957993199323458,0.11957993199323458,0.11957993199323458,0.11957993199323458,0.11957993199323458,0.11957993199323458,179]
[null,"Female 40-44",0.11957993199323458,0.11957993199323458,0.11957993199323458,0.11957993199323458,0.11957993199323458,0.11957993199323458,0.11957993199323458,0.11957993199323458,0.11957993199323458,0.11957993199323458,0.11957993199323458,0.11957993199323458,0.11957993199323458,0.11957993199323458,0.11957993199323458,0.11957993199323458,0.11957993199323458,0.11957993199323458,0.11957993199323458,0.11957993199323458,0.11957993199323458,0.11957993199323458,0.11957993199323458,0.11957993199323458,0.11957993199323458,0.11957993199323458,0.11957993199323458,0.11957993199323458,0.11957993199323458,0.11957993199323458,0.11957993199323458,0.11957993199323458,0.11957993199323458,0.11957993199323458,0.11957993199323458,0.11957993199323458,0.11957993199323458,0.11957993199323458,0.11957993199323458,0.11957993199323458,0.11957993199323458,0.11957993199323458,0.11957993199323458,0.11957993199323458,0.11957993199323458,0.11957993199323458,0.11957993199323458,0.11957993199323458,0.11957993199323458,0.11957993199323458,0.11957993199323458,0.11957993199323458,0.11957993199323458,180]
[null,"Female 45-49",0.11957993199323458,0.11957993199323458,0.11957993199323458,0.11957993199323458,0.11957993199323458,0.11957993199323458,0.11957993199323458,0.11957993199323458,0.11957993199323458,0.11957993199323458,0.11957993199323458,0.11957993199323458,0.11957993199323458,0.11957993199323458,0.11957993199323458,0.11957993199323458,0.11957993199323458,0.11957993199323458,0.11957993199323458,0.11957993199323458,0.11957993199323458,0.11957993199323458,0.11957993199323458,0.11957993199323458,0.11957993199323458,0.11957993199323458,0.11957993199323458,0.11957993199323458,0.11957993199323458,0.11957993199323458,0.11957993199323458,0.11957993199323458,0.11957993199323458,0.11957993199323458,0.11957993199323458,0.11957993199323458,0.11957993199323458,0.11957993199323458,0.11957993199323458,0.11957993199323458,0.11957993199323458,0.11957993199323458,0.11957993199323458,0.11957993199323458,0.11957993199323458,0.11957993199323458,0.11957993199323458,0.11957993199323458,0.11957993199323458,0.11957993199323458,0.11957993199323458,0.11957993199323458,0.11957993199323458,181]
[null,"Female 50-54",0.11957993199323458,0.11957993199323458,0.11957993199323458,0.11957993199323458,0.11957993199323458,0.11957993199323458,0.11957993199323458,0.11957993199323458,0.11957993199323458,0.11957993199323458,0.11957993199323458,0.11957993199323458,0.11957993199323458,0.11957993199323458,0.11957993199323458,0.11957993199323458,0.11957993199323458,0.11957993199323458,0.11957993199323458,0.11957993199323458,0.11957993199323458,0.11957993199323458,0.11957993199323458,0.11957993199323458,0.11957993199323458,0.11957993199323458,0.11957993199323458,0.11957993199323458,0.11957993199323458,0.11957993199323458,0.11957993199323458,0.11957993199323458,0.11957993199323458,0.11957993199323458,0.11957993199323458,0.11957993199323458,0.11957993199323458,0.11957993199323458,0.11957993199323458,0.11957993199323458,0.11957993199323458,0.11957993199323458,0.11957993199323458,0.11957993199323458,0.11957993199323458,0.11957993199323458,0.11957993199323458,0.11957993199323458,0.11957993199323458,0.11957993199323458,0.11957993199323458,0.11957993199323458,0.11957993199323458,182]
[null,"Female 55-59",6.2381348242967219E-2,6.2381348242967219E-2,6.2381348242967219E-2,6.2381348242967219E-2,6.2381348242967219E-2,6.2381348242967219E-2,6.2381348242967219E-2,6.2381348242967219E-2,6.2381348242967219E-2,6.2381348242967219E-2,6.2381348242967219E-2,6.2381348242967219E-2,6.2381348242967219E-2,6.2381348242967219E-2,6.2381348242967219E-2,6.2381348242967219E-2,6.2381348242967219E-2,6.2381348242967219E-2,6.2381348242967219E-2,6.2381348242967219E-2,6.2381348242967219E-2,6.2381348242967219E-2,6.2381348242967219E-2,6.2381348242967219E-2,6.2381348242967219E-2,6.2381348242967219E-2,6.2381348242967219E-2,6.2381348242967219E-2,6.2381348242967219E-2,6.2381348242967219E-2,6.2381348242967219E-2,6.2381348242967219E-2,6.2381348242967219E-2,6.2381348242967219E-2,6.2381348242967219E-2,6.2381348242967219E-2,6.2381348242967219E-2,6.2381348242967219E-2,6.2381348242967219E-2,6.2381348242967219E-2,6.2381348242967219E-2,6.2381348242967219E-2,6.2381348242967219E-2,6.2381348242967219E-2,6.2381348242967219E-2,6.2381348242967219E-2,6.2381348242967219E-2,6.2381348242967219E-2,6.2381348242967219E-2,6.2381348242967219E-2,6.2381348242967219E-2,6.2381348242967219E-2,6.2381348242967219E-2,183]
[null,"Female 60-64",6.2381348242967219E-2,6.2381348242967219E-2,6.2381348242967219E-2,6.2381348242967219E-2,6.2381348242967219E-2,6.2381348242967219E-2,6.2381348242967219E-2,6.2381348242967219E-2,6.2381348242967219E-2,6.2381348242967219E-2,6.2381348242967219E-2,6.2381348242967219E-2,6.2381348242967219E-2,6.2381348242967219E-2,6.2381348242967219E-2,6.2381348242967219E-2,6.2381348242967219E-2,6.2381348242967219E-2,6.2381348242967219E-2,6.2381348242967219E-2,6.2381348242967219E-2,6.2381348242967219E-2,6.2381348242967219E-2,6.2381348242967219E-2,6.2381348242967219E-2,6.2381348242967219E-2,6.2381348242967219E-2,6.2381348242967219E-2,6.2381348242967219E-2,6.2381348242967219E-2,6.2381348242967219E-2,6.2381348242967219E-2,6.2381348242967219E-2,6.2381348242967219E-2,6.2381348242967219E-2,6.2381348242967219E-2,6.2381348242967219E-2,6.2381348242967219E-2,6.2381348242967219E-2,6.2381348242967219E-2,6.2381348242967219E-2,6.2381348242967219E-2,6.2381348242967219E-2,6.2381348242967219E-2,6.2381348242967219E-2,6.2381348242967219E-2,6.2381348242967219E-2,6.2381348242967219E-2,6.2381348242967219E-2,6.2381348242967219E-2,6.2381348242967219E-2,6.2381348242967219E-2,6.2381348242967219E-2,184]
[null,"Female 65-69",{"$f":"$AR187","v":6.2381348242967219E-2},6.2381348242967219E-2,6.2381348242967219E-2,6.2381348242967219E-2,6.2381348242967219E-2,6.2381348242967219E-2,6.2381348242967219E-2,6.2381348242967219E-2,6.2381348242967219E-2,6.2381348242967219E-2,{"$f":"$AR187","v":6.2381348242967219E-2},6.2381348242967219E-2,6.2381348242967219E-2,6.2381348242967219E-2,6.2381348242967219E-2,6.2381348242967219E-2,6.2381348242967219E-2,6.2381348242967219E-2,6.2381348242967219E-2,6.2381348242967219E-2,{"$f":"$AR187","v":6.2381348242967219E-2},6.2381348242967219E-2,6.2381348242967219E-2,6.2381348242967219E-2,6.2381348242967219E-2,6.2381348242967219E-2,6.2381348242967219E-2,6.2381348242967219E-2,6.2381348242967219E-2,6.2381348242967219E-2,{"$f":"$AR187","v":6.2381348242967219E-2},6.2381348242967219E-2,6.2381348242967219E-2,6.2381348242967219E-2,6.2381348242967219E-2,6.2381348242967219E-2,6.2381348242967219E-2,6.2381348242967219E-2,6.2381348242967219E-2,6.2381348242967219E-2,6.2381348242967219E-2,6.2381348242967219E-2,{"$f":"$AR187","v":6.2381348242967219E-2},6.2381348242967219E-2,6.2381348242967219E-2,6.2381348242967219E-2,6.2381348242967219E-2,6.2381348242967219E-2,6.2381348242967219E-2,6.2381348242967219E-2,6.2381348242967219E-2,6.2381348242967219E-2,6.2381348242967219E-2,185]
[null,"Female 70-74",6.2381348242967219E-2,6.2381348242967219E-2,6.2381348242967219E-2,6.2381348242967219E-2,6.2381348242967219E-2,6.2381348242967219E-2,6.2381348242967219E-2,6.2381348242967219E-2,6.2381348242967219E-2,6.2381348242967219E-2,6.2381348242967219E-2,6.2381348242967219E-2,6.2381348242967219E-2,6.2381348242967219E-2,6.2381348242967219E-2,6.2381348242967219E-2,6.2381348242967219E-2,6.2381348242967219E-2,6.2381348242967219E-2,6.2381348242967219E-2,6.2381348242967219E-2,6.2381348242967219E-2,6.2381348242967219E-2,6.2381348242967219E-2,6.2381348242967219E-2,6.2381348242967219E-2,6.2381348242967219E-2,6.2381348242967219E-2,6.2381348242967219E-2,6.2381348242967219E-2,6.2381348242967219E-2,6.2381348242967219E-2,6.2381348242967219E-2,6.2381348242967219E-2,6.2381348242967219E-2,6.2381348242967219E-2,6.2381348242967219E-2,6.2381348242967219E-2,6.2381348242967219E-2,6.2381348242967219E-2,6.2381348242967219E-2,6.2381348242967219E-2,6.2381348242967219E-2,6.2381348242967219E-2,6.2381348242967219E-2,6.2381348242967219E-2,6.2381348242967219E-2,6.2381348242967219E-2,6.2381348242967219E-2,6.2381348242967219E-2,6.2381348242967219E-2,6.2381348242967219E-2,6.2381348242967219E-2,186]
[null,"Female 75-79",6.2381348242967219E-2,6.2381348242967219E-2,6.2381348242967219E-2,6.2381348242967219E-2,6.2381348242967219E-2,6.2381348242967219E-2,6.2381348242967219E-2,6.2381348242967219E-2,6.2381348242967219E-2,6.2381348242967219E-2,6.2381348242967219E-2,6.2381348242967219E-2,6.2381348242967219E-2,6.2381348242967219E-2,6.2381348242967219E-2,6.2381348242967219E-2,6.2381348242967219E-2,6.2381348242967219E-2,6.2381348242967219E-2,6.2381348242967219E-2,6.2381348242967219E-2,6.2381348242967219E-2,6.2381348242967219E-2,6.2381348242967219E-2,6.2381348242967219E-2,6.2381348242967219E-2,6.2381348242967219E-2,6.2381348242967219E-2,6.2381348242967219E-2,6.2381348242967219E-2,6.2381348242967219E-2,6.2381348242967219E-2,6.2381348242967219E-2,6.2381348242967219E-2,6.2381348242967219E-2,6.2381348242967219E-2,6.2381348242967219E-2,6.2381348242967219E-2,6.2381348242967219E-2,6.2381348242967219E-2,6.2381348242967219E-2,6.2381348242967219E-2,6.2381348242967219E-2,6.2381348242967219E-2,6.2381348242967219E-2,6.2381348242967219E-2,6.2381348242967219E-2,6.2381348242967219E-2,6.2381348242967219E-2,6.2381348242967219E-2,6.2381348242967219E-2,6.2381348242967219E-2,6.2381348242967219E-2,187]
[null,"Female 80-84",6.2381348242967219E-2,6.2381348242967219E-2,6.2381348242967219E-2,6.2381348242967219E-2,6.2381348242967219E-2,6.2381348242967219E-2,6.2381348242967219E-2,6.2381348242967219E-2,6.2381348242967219E-2,6.2381348242967219E-2,6.2381348242967219E-2,6.2381348242967219E-2,6.2381348242967219E-2,6.2381348242967219E-2,6.2381348242967219E-2,6.2381348242967219E-2,6.2381348242967219E-2,6.2381348242967219E-2,6.2381348242967219E-2,6.2381348242967219E-2,6.2381348242967219E-2,6.2381348242967219E-2,6.2381348242967219E-2,6.2381348242967219E-2,6.2381348242967219E-2,6.2381348242967219E-2,6.2381348242967219E-2,6.2381348242967219E-2,6.2381348242967219E-2,6.2381348242967219E-2,6.2381348242967219E-2,6.2381348242967219E-2,6.2381348242967219E-2,6.2381348242967219E-2,6.2381348242967219E-2,6.2381348242967219E-2,6.2381348242967219E-2,6.2381348242967219E-2,6.2381348242967219E-2,6.2381348242967219E-2,6.2381348242967219E-2,6.2381348242967219E-2,6.2381348242967219E-2,6.2381348242967219E-2,6.2381348242967219E-2,6.2381348242967219E-2,6.2381348242967219E-2,6.2381348242967219E-2,6.2381348242967219E-2,6.2381348242967219E-2,6.2381348242967219E-2,6.2381348242967219E-2,6.2381348242967219E-2,188]
[null,"Female 85-89",6.2381348242967219E-2,6.2381348242967219E-2,6.2381348242967219E-2,6.2381348242967219E-2,6.2381348242967219E-2,6.2381348242967219E-2,6.2381348242967219E-2,6.2381348242967219E-2,6.2381348242967219E-2,6.2381348242967219E-2,6.2381348242967219E-2,6.2381348242967219E-2,6.2381348242967219E-2,6.2381348242967219E-2,6.2381348242967219E-2,6.2381348242967219E-2,6.2381348242967219E-2,6.2381348242967219E-2,6.2381348242967219E-2,6.2381348242967219E-2,6.2381348242967219E-2,6.2381348242967219E-2,6.2381348242967219E-2,6.2381348242967219E-2,6.2381348242967219E-2,6.2381348242967219E-2,6.2381348242967219E-2,6.2381348242967219E-2,6.2381348242967219E-2,6.2381348242967219E-2,6.2381348242967219E-2,6.2381348242967219E-2,6.2381348242967219E-2,6.2381348242967219E-2,6.2381348242967219E-2,6.2381348242967219E-2,6.2381348242967219E-2,6.2381348242967219E-2,6.2381348242967219E-2,6.2381348242967219E-2,6.2381348242967219E-2,6.2381348242967219E-2,6.2381348242967219E-2,6.2381348242967219E-2,6.2381348242967219E-2,6.2381348242967219E-2,6.2381348242967219E-2,6.2381348242967219E-2,6.2381348242967219E-2,6.2381348242967219E-2,6.2381348242967219E-2,6.2381348242967219E-2,6.2381348242967219E-2,189]
[null,"Female 90+",6.2381348242967219E-2,6.2381348242967219E-2,6.2381348242967219E-2,6.2381348242967219E-2,6.2381348242967219E-2,6.2381348242967219E-2,6.2381348242967219E-2,6.2381348242967219E-2,6.2381348242967219E-2,6.2381348242967219E-2,6.2381348242967219E-2,6.2381348242967219E-2,6.2381348242967219E-2,6.2381348242967219E-2,6.2381348242967219E-2,6.2381348242967219E-2,6.2381348242967219E-2,6.2381348242967219E-2,6.2381348242967219E-2,6.2381348242967219E-2,6.2381348242967219E-2,6.2381348242967219E-2,6.2381348242967219E-2,6.2381348242967219E-2,6.2381348242967219E-2,6.2381348242967219E-2,6.2381348242967219E-2,6.2381348242967219E-2,6.2381348242967219E-2,6.2381348242967219E-2,6.2381348242967219E-2,6.2381348242967219E-2,6.2381348242967219E-2,6.2381348242967219E-2,6.2381348242967219E-2,6.2381348242967219E-2,6.2381348242967219E-2,6.2381348242967219E-2,6.2381348242967219E-2,6.2381348242967219E-2,6.2381348242967219E-2,6.2381348242967219E-2,6.2381348242967219E-2,6.2381348242967219E-2,6.2381348242967219E-2,6.2381348242967219E-2,6.2381348242967219E-2,6.2381348242967219E-2,6.2381348242967219E-2,6.2381348242967219E-2,6.2381348242967219E-2,6.2381348242967219E-2,6.2381348242967219E-2,190]
[null,"Male 0-4",null,null,null,null,null,null,null,null,null,null,null,null,null,null,null,null,null,null,null,null,null,null,null,null,null,null,null,null,null,null,null,null,null,null,null,null,null,null,null,null,null,null,null,null,null,null,null,null,null,null,null,null,null,191]
[null,"Male 5-9",null,null,null,null,null,null,null,null,null,null,null,null,null,null,null,null,null,null,null,null,null,null,null,null,null,null,null,null,null,null,null,null,null,null,null,null,null,null,null,null,null,null,null,null,null,null,null,null,null,null,null,null,null,192]
[null,"Male 10-15",null,null,null,null,null,null,null,null,null,null,null,null,null,null,null,null,null,null,null,null,null,null,null,null,null,null,null,null,null,null,null,null,null,null,null,null,null,null,null,null,null,null,null,null,null,null,null,null,null,null,null,null,null,193]
[null,"Male 16-19",{"$f":"$AR196","v":9.7976401086788484E-2},9.7976401086788484E-2,9.7976401086788484E-2,9.7976401086788484E-2,9.7976401086788484E-2,9.7976401086788484E-2,9.7976401086788484E-2,9.7976401086788484E-2,9.7976401086788484E-2,9.7976401086788484E-2,{"$f":"$AR196","v":9.7976401086788484E-2},9.7976401086788484E-2,9.7976401086788484E-2,9.7976401086788484E-2,9.7976401086788484E-2,9.7976401086788484E-2,9.7976401086788484E-2,9.7976401086788484E-2,9.7976401086788484E-2,9.7976401086788484E-2,{"$f":"$AR196","v":9.7976401086788484E-2},9.7976401086788484E-2,9.7976401086788484E-2,9.7976401086788484E-2,9.7976401086788484E-2,9.7976401086788484E-2,9.7976401086788484E-2,9.7976401086788484E-2,9.7976401086788484E-2,9.7976401086788484E-2,{"$f":"$AR196","v":9.7976401086788484E-2},9.7976401086788484E-2,9.7976401086788484E-2,9.7976401086788484E-2,9.7976401086788484E-2,9.7976401086788484E-2,9.7976401086788484E-2,9.7976401086788484E-2,9.7976401086788484E-2,9.7976401086788484E-2,9.7976401086788484E-2,9.7976401086788484E-2,{"$f":"$AR196","v":9.7976401086788484E-2},9.7976401086788484E-2,9.7976401086788484E-2,9.7976401086788484E-2,9.7976401086788484E-2,9.7976401086788484E-2,9.7976401086788484E-2,9.7976401086788484E-2,9.7976401086788484E-2,9.7976401086788484E-2,9.7976401086788484E-2,194]
[null,"Male 20-24",9.7976401086788484E-2,9.7976401086788484E-2,9.7976401086788484E-2,9.7976401086788484E-2,9.7976401086788484E-2,9.7976401086788484E-2,9.7976401086788484E-2,9.7976401086788484E-2,9.7976401086788484E-2,9.7976401086788484E-2,9.7976401086788484E-2,9.7976401086788484E-2,9.7976401086788484E-2,9.7976401086788484E-2,9.7976401086788484E-2,9.7976401086788484E-2,9.7976401086788484E-2,9.7976401086788484E-2,9.7976401086788484E-2,9.7976401086788484E-2,9.7976401086788484E-2,9.7976401086788484E-2,9.7976401086788484E-2,9.7976401086788484E-2,9.7976401086788484E-2,9.7976401086788484E-2,9.7976401086788484E-2,9.7976401086788484E-2,9.7976401086788484E-2,9.7976401086788484E-2,9.7976401086788484E-2,9.7976401086788484E-2,9.7976401086788484E-2,9.7976401086788484E-2,9.7976401086788484E-2,9.7976401086788484E-2,9.7976401086788484E-2,9.7976401086788484E-2,9.7976401086788484E-2,9.7976401086788484E-2,9.7976401086788484E-2,9.7976401086788484E-2,9.7976401086788484E-2,9.7976401086788484E-2,9.7976401086788484E-2,9.7976401086788484E-2,9.7976401086788484E-2,9.7976401086788484E-2,9.7976401086788484E-2,9.7976401086788484E-2,9.7976401086788484E-2,9.7976401086788484E-2,9.7976401086788484E-2,195]
[null,"Male 25-29",9.7976401086788484E-2,9.7976401086788484E-2,9.7976401086788484E-2,9.7976401086788484E-2,9.7976401086788484E-2,9.7976401086788484E-2,9.7976401086788484E-2,9.7976401086788484E-2,9.7976401086788484E-2,9.7976401086788484E-2,9.7976401086788484E-2,9.7976401086788484E-2,9.7976401086788484E-2,9.7976401086788484E-2,9.7976401086788484E-2,9.7976401086788484E-2,9.7976401086788484E-2,9.7976401086788484E-2,9.7976401086788484E-2,9.7976401086788484E-2,9.7976401086788484E-2,9.7976401086788484E-2,9.7976401086788484E-2,9.7976401086788484E-2,9.7976401086788484E-2,9.7976401086788484E-2,9.7976401086788484E-2,9.7976401086788484E-2,9.7976401086788484E-2,9.7976401086788484E-2,9.7976401086788484E-2,9.7976401086788484E-2,9.7976401086788484E-2,9.7976401086788484E-2,9.7976401086788484E-2,9.7976401086788484E-2,9.7976401086788484E-2,9.7976401086788484E-2,9.7976401086788484E-2,9.7976401086788484E-2,9.7976401086788484E-2,9.7976401086788484E-2,9.7976401086788484E-2,9.7976401086788484E-2,9.7976401086788484E-2,9.7976401086788484E-2,9.7976401086788484E-2,9.7976401086788484E-2,9.7976401086788484E-2,9.7976401086788484E-2,9.7976401086788484E-2,9.7976401086788484E-2,9.7976401086788484E-2,196]
[null,"Male 30-34",9.7976401086788484E-2,9.7976401086788484E-2,9.7976401086788484E-2,9.7976401086788484E-2,9.7976401086788484E-2,9.7976401086788484E-2,9.7976401086788484E-2,9.7976401086788484E-2,9.7976401086788484E-2,9.7976401086788484E-2,9.7976401086788484E-2,9.7976401086788484E-2,9.7976401086788484E-2,9.7976401086788484E-2,9.7976401086788484E-2,9.7976401086788484E-2,9.7976401086788484E-2,9.7976401086788484E-2,9.7976401086788484E-2,9.7976401086788484E-2,9.7976401086788484E-2,9.7976401086788484E-2,9.7976401086788484E-2,9.7976401086788484E-2,9.7976401086788484E-2,9.7976401086788484E-2,9.7976401086788484E-2,9.7976401086788484E-2,9.7976401086788484E-2,9.7976401086788484E-2,9.7976401086788484E-2,9.7976401086788484E-2,9.7976401086788484E-2,9.7976401086788484E-2,9.7976401086788484E-2,9.7976401086788484E-2,9.7976401086788484E-2,9.7976401086788484E-2,9.7976401086788484E-2,9.7976401086788484E-2,9.7976401086788484E-2,9.7976401086788484E-2,9.7976401086788484E-2,9.7976401086788484E-2,9.7976401086788484E-2,9.7976401086788484E-2,9.7976401086788484E-2,9.7976401086788484E-2,9.7976401086788484E-2,9.7976401086788484E-2,9.7976401086788484E-2,9.7976401086788484E-2,9.7976401086788484E-2,197]
[null,"Male 35-39",9.7976401086788484E-2,9.7976401086788484E-2,9.7976401086788484E-2,9.7976401086788484E-2,9.7976401086788484E-2,9.7976401086788484E-2,9.7976401086788484E-2,9.7976401086788484E-2,9.7976401086788484E-2,9.7976401086788484E-2,9.7976401086788484E-2,9.7976401086788484E-2,9.7976401086788484E-2,9.7976401086788484E-2,9.7976401086788484E-2,9.7976401086788484E-2,9.7976401086788484E-2,9.7976401086788484E-2,9.7976401086788484E-2,9.7976401086788484E-2,9.7976401086788484E-2,9.7976401086788484E-2,9.7976401086788484E-2,9.7976401086788484E-2,9.7976401086788484E-2,9.7976401086788484E-2,9.7976401086788484E-2,9.7976401086788484E-2,9.7976401086788484E-2,9.7976401086788484E-2,9.7976401086788484E-2,9.7976401086788484E-2,9.7976401086788484E-2,9.7976401086788484E-2,9.7976401086788484E-2,9.7976401086788484E-2,9.7976401086788484E-2,9.7976401086788484E-2,9.7976401086788484E-2,9.7976401086788484E-2,9.7976401086788484E-2,9.7976401086788484E-2,9.7976401086788484E-2,9.7976401086788484E-2,9.7976401086788484E-2,9.7976401086788484E-2,9.7976401086788484E-2,9.7976401086788484E-2,9.7976401086788484E-2,9.7976401086788484E-2,9.7976401086788484E-2,9.7976401086788484E-2,9.7976401086788484E-2,198]
[null,"Male 40-44",9.7976401086788484E-2,9.7976401086788484E-2,9.7976401086788484E-2,9.7976401086788484E-2,9.7976401086788484E-2,9.7976401086788484E-2,9.7976401086788484E-2,9.7976401086788484E-2,9.7976401086788484E-2,9.7976401086788484E-2,9.7976401086788484E-2,9.7976401086788484E-2,9.7976401086788484E-2,9.7976401086788484E-2,9.7976401086788484E-2,9.7976401086788484E-2,9.7976401086788484E-2,9.7976401086788484E-2,9.7976401086788484E-2,9.7976401086788484E-2,9.7976401086788484E-2,9.7976401086788484E-2,9.7976401086788484E-2,9.7976401086788484E-2,9.7976401086788484E-2,9.7976401086788484E-2,9.7976401086788484E-2,9.7976401086788484E-2,9.7976401086788484E-2,9.7976401086788484E-2,9.7976401086788484E-2,9.7976401086788484E-2,9.7976401086788484E-2,9.7976401086788484E-2,9.7976401086788484E-2,9.7976401086788484E-2,9.7976401086788484E-2,9.7976401086788484E-2,9.7976401086788484E-2,9.7976401086788484E-2,9.7976401086788484E-2,9.7976401086788484E-2,9.7976401086788484E-2,9.7976401086788484E-2,9.7976401086788484E-2,9.7976401086788484E-2,9.7976401086788484E-2,9.7976401086788484E-2,9.7976401086788484E-2,9.7976401086788484E-2,9.7976401086788484E-2,9.7976401086788484E-2,9.7976401086788484E-2,199]
[null,"Male 45-49",9.7976401086788484E-2,9.7976401086788484E-2,9.7976401086788484E-2,9.7976401086788484E-2,9.7976401086788484E-2,9.7976401086788484E-2,9.7976401086788484E-2,9.7976401086788484E-2,9.7976401086788484E-2,9.7976401086788484E-2,9.7976401086788484E-2,9.7976401086788484E-2,9.7976401086788484E-2,9.7976401086788484E-2,9.7976401086788484E-2,9.7976401086788484E-2,9.7976401086788484E-2,9.7976401086788484E-2,9.7976401086788484E-2,9.7976401086788484E-2,9.7976401086788484E-2,9.7976401086788484E-2,9.7976401086788484E-2,9.7976401086788484E-2,9.7976401086788484E-2,9.7976401086788484E-2,9.7976401086788484E-2,9.7976401086788484E-2,9.7976401086788484E-2,9.7976401086788484E-2,9.7976401086788484E-2,9.7976401086788484E-2,9.7976401086788484E-2,9.7976401086788484E-2,9.7976401086788484E-2,9.7976401086788484E-2,9.7976401086788484E-2,9.7976401086788484E-2,9.7976401086788484E-2,9.7976401086788484E-2,9.7976401086788484E-2,9.7976401086788484E-2,9.7976401086788484E-2,9.7976401086788484E-2,9.7976401086788484E-2,9.7976401086788484E-2,9.7976401086788484E-2,9.7976401086788484E-2,9.7976401086788484E-2,9.7976401086788484E-2,9.7976401086788484E-2,9.7976401086788484E-2,9.7976401086788484E-2,200]
[null,"Male 50-54",9.7976401086788484E-2,9.7976401086788484E-2,9.7976401086788484E-2,9.7976401086788484E-2,9.7976401086788484E-2,9.7976401086788484E-2,9.7976401086788484E-2,9.7976401086788484E-2,9.7976401086788484E-2,9.7976401086788484E-2,9.7976401086788484E-2,9.7976401086788484E-2,9.7976401086788484E-2,9.7976401086788484E-2,9.7976401086788484E-2,9.7976401086788484E-2,9.7976401086788484E-2,9.7976401086788484E-2,9.7976401086788484E-2,9.7976401086788484E-2,9.7976401086788484E-2,9.7976401086788484E-2,9.7976401086788484E-2,9.7976401086788484E-2,9.7976401086788484E-2,9.7976401086788484E-2,9.7976401086788484E-2,9.7976401086788484E-2,9.7976401086788484E-2,9.7976401086788484E-2,9.7976401086788484E-2,9.7976401086788484E-2,9.7976401086788484E-2,9.7976401086788484E-2,9.7976401086788484E-2,9.7976401086788484E-2,9.7976401086788484E-2,9.7976401086788484E-2,9.7976401086788484E-2,9.7976401086788484E-2,9.7976401086788484E-2,9.7976401086788484E-2,9.7976401086788484E-2,9.7976401086788484E-2,9.7976401086788484E-2,9.7976401086788484E-2,9.7976401086788484E-2,9.7976401086788484E-2,9.7976401086788484E-2,9.7976401086788484E-2,9.7976401086788484E-2,9.7976401086788484E-2,9.7976401086788484E-2,201]
[null,"Male 55-59",5.1111418897055186E-2,5.1111418897055186E-2,5.1111418897055186E-2,5.1111418897055186E-2,5.1111418897055186E-2,5.1111418897055186E-2,5.1111418897055186E-2,5.1111418897055186E-2,5.1111418897055186E-2,5.1111418897055186E-2,5.1111418897055186E-2,5.1111418897055186E-2,5.1111418897055186E-2,5.1111418897055186E-2,5.1111418897055186E-2,5.1111418897055186E-2,5.1111418897055186E-2,5.1111418897055186E-2,5.1111418897055186E-2,5.1111418897055186E-2,5.1111418897055186E-2,5.1111418897055186E-2,5.1111418897055186E-2,5.1111418897055186E-2,5.1111418897055186E-2,5.1111418897055186E-2,5.1111418897055186E-2,5.1111418897055186E-2,5.1111418897055186E-2,5.1111418897055186E-2,5.1111418897055186E-2,5.1111418897055186E-2,5.1111418897055186E-2,5.1111418897055186E-2,5.1111418897055186E-2,5.1111418897055186E-2,5.1111418897055186E-2,5.1111418897055186E-2,5.1111418897055186E-2,5.1111418897055186E-2,5.1111418897055186E-2,5.1111418897055186E-2,5.1111418897055186E-2,5.1111418897055186E-2,5.1111418897055186E-2,5.1111418897055186E-2,5.1111418897055186E-2,5.1111418897055186E-2,5.1111418897055186E-2,5.1111418897055186E-2,5.1111418897055186E-2,5.1111418897055186E-2,5.1111418897055186E-2,202]
[null,"Male 60-64",5.1111418897055186E-2,5.1111418897055186E-2,5.1111418897055186E-2,5.1111418897055186E-2,5.1111418897055186E-2,5.1111418897055186E-2,5.1111418897055186E-2,5.1111418897055186E-2,5.1111418897055186E-2,5.1111418897055186E-2,5.1111418897055186E-2,5.1111418897055186E-2,5.1111418897055186E-2,5.1111418897055186E-2,5.1111418897055186E-2,5.1111418897055186E-2,5.1111418897055186E-2,5.1111418897055186E-2,5.1111418897055186E-2,5.1111418897055186E-2,5.1111418897055186E-2,5.1111418897055186E-2,5.1111418897055186E-2,5.1111418897055186E-2,5.1111418897055186E-2,5.1111418897055186E-2,5.1111418897055186E-2,5.1111418897055186E-2,5.1111418897055186E-2,5.1111418897055186E-2,5.1111418897055186E-2,5.1111418897055186E-2,5.1111418897055186E-2,5.1111418897055186E-2,5.1111418897055186E-2,5.1111418897055186E-2,5.1111418897055186E-2,5.1111418897055186E-2,5.1111418897055186E-2,5.1111418897055186E-2,5.1111418897055186E-2,5.1111418897055186E-2,5.1111418897055186E-2,5.1111418897055186E-2,5.1111418897055186E-2,5.1111418897055186E-2,5.1111418897055186E-2,5.1111418897055186E-2,5.1111418897055186E-2,5.1111418897055186E-2,5.1111418897055186E-2,5.1111418897055186E-2,5.1111418897055186E-2,203]
[null,"Male 65-69",{"$f":"$AR206","v":5.1111418897055186E-2},5.1111418897055186E-2,5.1111418897055186E-2,5.1111418897055186E-2,5.1111418897055186E-2,5.1111418897055186E-2,5.1111418897055186E-2,5.1111418897055186E-2,5.1111418897055186E-2,5.1111418897055186E-2,{"$f":"$AR206","v":5.1111418897055186E-2},5.1111418897055186E-2,5.1111418897055186E-2,5.1111418897055186E-2,5.1111418897055186E-2,5.1111418897055186E-2,5.1111418897055186E-2,5.1111418897055186E-2,5.1111418897055186E-2,5.1111418897055186E-2,{"$f":"$AR206","v":5.1111418897055186E-2},5.1111418897055186E-2,5.1111418897055186E-2,5.1111418897055186E-2,5.1111418897055186E-2,5.1111418897055186E-2,5.1111418897055186E-2,5.1111418897055186E-2,5.1111418897055186E-2,5.1111418897055186E-2,{"$f":"$AR206","v":5.1111418897055186E-2},5.1111418897055186E-2,5.1111418897055186E-2,5.1111418897055186E-2,5.1111418897055186E-2,5.1111418897055186E-2,5.1111418897055186E-2,5.1111418897055186E-2,5.1111418897055186E-2,5.1111418897055186E-2,5.1111418897055186E-2,5.1111418897055186E-2,{"$f":"$AR206","v":5.1111418897055186E-2},5.1111418897055186E-2,5.1111418897055186E-2,5.1111418897055186E-2,5.1111418897055186E-2,5.1111418897055186E-2,5.1111418897055186E-2,5.1111418897055186E-2,5.1111418897055186E-2,5.1111418897055186E-2,5.1111418897055186E-2,204]
[null,"Male 70-74",5.1111418897055186E-2,5.1111418897055186E-2,5.1111418897055186E-2,5.1111418897055186E-2,5.1111418897055186E-2,5.1111418897055186E-2,5.1111418897055186E-2,5.1111418897055186E-2,5.1111418897055186E-2,5.1111418897055186E-2,5.1111418897055186E-2,5.1111418897055186E-2,5.1111418897055186E-2,5.1111418897055186E-2,5.1111418897055186E-2,5.1111418897055186E-2,5.1111418897055186E-2,5.1111418897055186E-2,5.1111418897055186E-2,5.1111418897055186E-2,5.1111418897055186E-2,5.1111418897055186E-2,5.1111418897055186E-2,5.1111418897055186E-2,5.1111418897055186E-2,5.1111418897055186E-2,5.1111418897055186E-2,5.1111418897055186E-2,5.1111418897055186E-2,5.1111418897055186E-2,5.1111418897055186E-2,5.1111418897055186E-2,5.1111418897055186E-2,5.1111418897055186E-2,5.1111418897055186E-2,5.1111418897055186E-2,5.1111418897055186E-2,5.1111418897055186E-2,5.1111418897055186E-2,5.1111418897055186E-2,5.1111418897055186E-2,5.1111418897055186E-2,5.1111418897055186E-2,5.1111418897055186E-2,5.1111418897055186E-2,5.1111418897055186E-2,5.1111418897055186E-2,5.1111418897055186E-2,5.1111418897055186E-2,5.1111418897055186E-2,5.1111418897055186E-2,5.1111418897055186E-2,5.1111418897055186E-2,205]
[null,"Male 75-79",5.1111418897055186E-2,5.1111418897055186E-2,5.1111418897055186E-2,5.1111418897055186E-2,5.1111418897055186E-2,5.1111418897055186E-2,5.1111418897055186E-2,5.1111418897055186E-2,5.1111418897055186E-2,5.1111418897055186E-2,5.1111418897055186E-2,5.1111418897055186E-2,5.1111418897055186E-2,5.1111418897055186E-2,5.1111418897055186E-2,5.1111418897055186E-2,5.1111418897055186E-2,5.1111418897055186E-2,5.1111418897055186E-2,5.1111418897055186E-2,5.1111418897055186E-2,5.1111418897055186E-2,5.1111418897055186E-2,5.1111418897055186E-2,5.1111418897055186E-2,5.1111418897055186E-2,5.1111418897055186E-2,5.1111418897055186E-2,5.1111418897055186E-2,5.1111418897055186E-2,5.1111418897055186E-2,5.1111418897055186E-2,5.1111418897055186E-2,5.1111418897055186E-2,5.1111418897055186E-2,5.1111418897055186E-2,5.1111418897055186E-2,5.1111418897055186E-2,5.1111418897055186E-2,5.1111418897055186E-2,5.1111418897055186E-2,5.1111418897055186E-2,5.1111418897055186E-2,5.1111418897055186E-2,5.1111418897055186E-2,5.1111418897055186E-2,5.1111418897055186E-2,5.1111418897055186E-2,5.1111418897055186E-2,5.1111418897055186E-2,5.1111418897055186E-2,5.1111418897055186E-2,5.1111418897055186E-2,206]
[null,"Male 80-84",5.1111418897055186E-2,5.1111418897055186E-2,5.1111418897055186E-2,5.1111418897055186E-2,5.1111418897055186E-2,5.1111418897055186E-2,5.1111418897055186E-2,5.1111418897055186E-2,5.1111418897055186E-2,5.1111418897055186E-2,5.1111418897055186E-2,5.1111418897055186E-2,5.1111418897055186E-2,5.1111418897055186E-2,5.1111418897055186E-2,5.1111418897055186E-2,5.1111418897055186E-2,5.1111418897055186E-2,5.1111418897055186E-2,5.1111418897055186E-2,5.1111418897055186E-2,5.1111418897055186E-2,5.1111418897055186E-2,5.1111418897055186E-2,5.1111418897055186E-2,5.1111418897055186E-2,5.1111418897055186E-2,5.1111418897055186E-2,5.1111418897055186E-2,5.1111418897055186E-2,5.1111418897055186E-2,5.1111418897055186E-2,5.1111418897055186E-2,5.1111418897055186E-2,5.1111418897055186E-2,5.1111418897055186E-2,5.1111418897055186E-2,5.1111418897055186E-2,5.1111418897055186E-2,5.1111418897055186E-2,5.1111418897055186E-2,5.1111418897055186E-2,5.1111418897055186E-2,5.1111418897055186E-2,5.1111418897055186E-2,5.1111418897055186E-2,5.1111418897055186E-2,5.1111418897055186E-2,5.1111418897055186E-2,5.1111418897055186E-2,5.1111418897055186E-2,5.1111418897055186E-2,5.1111418897055186E-2,207]
[null,"Male 85-89",5.1111418897055186E-2,5.1111418897055186E-2,5.1111418897055186E-2,5.1111418897055186E-2,5.1111418897055186E-2,5.1111418897055186E-2,5.1111418897055186E-2,5.1111418897055186E-2,5.1111418897055186E-2,5.1111418897055186E-2,5.1111418897055186E-2,5.1111418897055186E-2,5.1111418897055186E-2,5.1111418897055186E-2,5.1111418897055186E-2,5.1111418897055186E-2,5.1111418897055186E-2,5.1111418897055186E-2,5.1111418897055186E-2,5.1111418897055186E-2,5.1111418897055186E-2,5.1111418897055186E-2,5.1111418897055186E-2,5.1111418897055186E-2,5.1111418897055186E-2,5.1111418897055186E-2,5.1111418897055186E-2,5.1111418897055186E-2,5.1111418897055186E-2,5.1111418897055186E-2,5.1111418897055186E-2,5.1111418897055186E-2,5.1111418897055186E-2,5.1111418897055186E-2,5.1111418897055186E-2,5.1111418897055186E-2,5.1111418897055186E-2,5.1111418897055186E-2,5.1111418897055186E-2,5.1111418897055186E-2,5.1111418897055186E-2,5.1111418897055186E-2,5.1111418897055186E-2,5.1111418897055186E-2,5.1111418897055186E-2,5.1111418897055186E-2,5.1111418897055186E-2,5.1111418897055186E-2,5.1111418897055186E-2,5.1111418897055186E-2,5.1111418897055186E-2,5.1111418897055186E-2,5.1111418897055186E-2,208]
[null,"Male 90+",5.1111418897055186E-2,5.1111418897055186E-2,5.1111418897055186E-2,5.1111418897055186E-2,5.1111418897055186E-2,5.1111418897055186E-2,5.1111418897055186E-2,5.1111418897055186E-2,5.1111418897055186E-2,5.1111418897055186E-2,5.1111418897055186E-2,5.1111418897055186E-2,5.1111418897055186E-2,5.1111418897055186E-2,5.1111418897055186E-2,5.1111418897055186E-2,5.1111418897055186E-2,5.1111418897055186E-2,5.1111418897055186E-2,5.1111418897055186E-2,5.1111418897055186E-2,5.1111418897055186E-2,5.1111418897055186E-2,5.1111418897055186E-2,5.1111418897055186E-2,5.1111418897055186E-2,5.1111418897055186E-2,5.1111418897055186E-2,5.1111418897055186E-2,5.1111418897055186E-2,5.1111418897055186E-2,5.1111418897055186E-2,5.1111418897055186E-2,5.1111418897055186E-2,5.1111418897055186E-2,5.1111418897055186E-2,5.1111418897055186E-2,5.1111418897055186E-2,5.1111418897055186E-2,5.1111418897055186E-2,5.1111418897055186E-2,5.1111418897055186E-2,5.1111418897055186E-2,5.1111418897055186E-2,5.1111418897055186E-2,5.1111418897055186E-2,5.1111418897055186E-2,5.1111418897055186E-2,5.1111418897055186E-2,5.1111418897055186E-2,5.1111418897055186E-2,5.1111418897055186E-2,5.1111418897055186E-2,209]
["SIMD Q5 (least deprived)","Female 0-4",null,null,null,null,null,null,null,null,null,null,null,null,null,null,null,null,null,null,null,null,null,null,null,null,null,null,null,null,null,null,null,null,null,null,null,null,null,null,null,null,null,null,null,null,null,null,null,null,null,null,null,null,null,210]
[null,"Female 5-9",null,null,null,null,null,null,null,null,null,null,null,null,null,null,null,null,null,null,null,null,null,null,null,null,null,null,null,null,null,null,null,null,null,null,null,null,null,null,null,null,null,null,null,null,null,null,null,null,null,null,null,null,null,211]
[null,"Female 10-15",null,null,null,null,null,null,null,null,null,null,null,null,null,null,null,null,null,null,null,null,null,null,null,null,null,null,null,null,null,null,null,null,null,null,null,null,null,null,null,null,null,null,null,null,null,null,null,null,null,null,null,null,null,212]
[null,"Female 16-19",{"$f":"$AR215","v":8.7759375064237199E-2},8.7759375064237199E-2,8.7759375064237199E-2,8.7759375064237199E-2,8.7759375064237199E-2,8.7759375064237199E-2,8.7759375064237199E-2,8.7759375064237199E-2,8.7759375064237199E-2,8.7759375064237199E-2,{"$f":"$AR215","v":8.7759375064237199E-2},8.7759375064237199E-2,8.7759375064237199E-2,8.7759375064237199E-2,8.7759375064237199E-2,8.7759375064237199E-2,8.7759375064237199E-2,8.7759375064237199E-2,8.7759375064237199E-2,8.7759375064237199E-2,{"$f":"$AR215","v":8.7759375064237199E-2},8.7759375064237199E-2,8.7759375064237199E-2,8.7759375064237199E-2,8.7759375064237199E-2,8.7759375064237199E-2,8.7759375064237199E-2,8.7759375064237199E-2,8.7759375064237199E-2,8.7759375064237199E-2,{"$f":"$AR215","v":8.7759375064237199E-2},8.7759375064237199E-2,8.7759375064237199E-2,8.7759375064237199E-2,8.7759375064237199E-2,8.7759375064237199E-2,8.7759375064237199E-2,8.7759375064237199E-2,8.7759375064237199E-2,8.7759375064237199E-2,8.7759375064237199E-2,8.7759375064237199E-2,{"$f":"$AR215","v":8.7759375064237199E-2},8.7759375064237199E-2,8.7759375064237199E-2,8.7759375064237199E-2,8.7759375064237199E-2,8.7759375064237199E-2,8.7759375064237199E-2,8.7759375064237199E-2,8.7759375064237199E-2,8.7759375064237199E-2,8.7759375064237199E-2,213]
[null,"Female 20-24",8.7759375064237199E-2,8.7759375064237199E-2,8.7759375064237199E-2,8.7759375064237199E-2,8.7759375064237199E-2,8.7759375064237199E-2,8.7759375064237199E-2,8.7759375064237199E-2,8.7759375064237199E-2,8.7759375064237199E-2,8.7759375064237199E-2,8.7759375064237199E-2,8.7759375064237199E-2,8.7759375064237199E-2,8.7759375064237199E-2,8.7759375064237199E-2,8.7759375064237199E-2,8.7759375064237199E-2,8.7759375064237199E-2,8.7759375064237199E-2,8.7759375064237199E-2,8.7759375064237199E-2,8.7759375064237199E-2,8.7759375064237199E-2,8.7759375064237199E-2,8.7759375064237199E-2,8.7759375064237199E-2,8.7759375064237199E-2,8.7759375064237199E-2,8.7759375064237199E-2,8.7759375064237199E-2,8.7759375064237199E-2,8.7759375064237199E-2,8.7759375064237199E-2,8.7759375064237199E-2,8.7759375064237199E-2,8.7759375064237199E-2,8.7759375064237199E-2,8.7759375064237199E-2,8.7759375064237199E-2,8.7759375064237199E-2,8.7759375064237199E-2,8.7759375064237199E-2,8.7759375064237199E-2,8.7759375064237199E-2,8.7759375064237199E-2,8.7759375064237199E-2,8.7759375064237199E-2,8.7759375064237199E-2,8.7759375064237199E-2,8.7759375064237199E-2,8.7759375064237199E-2,8.7759375064237199E-2,214]
[null,"Female 25-29",8.7759375064237199E-2,8.7759375064237199E-2,8.7759375064237199E-2,8.7759375064237199E-2,8.7759375064237199E-2,8.7759375064237199E-2,8.7759375064237199E-2,8.7759375064237199E-2,8.7759375064237199E-2,8.7759375064237199E-2,8.7759375064237199E-2,8.7759375064237199E-2,8.7759375064237199E-2,8.7759375064237199E-2,8.7759375064237199E-2,8.7759375064237199E-2,8.7759375064237199E-2,8.7759375064237199E-2,8.7759375064237199E-2,8.7759375064237199E-2,8.7759375064237199E-2,8.7759375064237199E-2,8.7759375064237199E-2,8.7759375064237199E-2,8.7759375064237199E-2,8.7759375064237199E-2,8.7759375064237199E-2,8.7759375064237199E-2,8.7759375064237199E-2,8.7759375064237199E-2,8.7759375064237199E-2,8.7759375064237199E-2,8.7759375064237199E-2,8.7759375064237199E-2,8.7759375064237199E-2,8.7759375064237199E-2,8.7759375064237199E-2,8.7759375064237199E-2,8.7759375064237199E-2,8.7759375064237199E-2,8.7759375064237199E-2,8.7759375064237199E-2,8.7759375064237199E-2,8.7759375064237199E-2,8.7759375064237199E-2,8.7759375064237199E-2,8.7759375064237199E-2,8.7759375064237199E-2,8.7759375064237199E-2,8.7759375064237199E-2,8.7759375064237199E-2,8.7759375064237199E-2,8.7759375064237199E-2,215]
[null,"Female 30-34",8.7759375064237199E-2,8.7759375064237199E-2,8.7759375064237199E-2,8.7759375064237199E-2,8.7759375064237199E-2,8.7759375064237199E-2,8.7759375064237199E-2,8.7759375064237199E-2,8.7759375064237199E-2,8.7759375064237199E-2,8.7759375064237199E-2,8.7759375064237199E-2,8.7759375064237199E-2,8.7759375064237199E-2,8.7759375064237199E-2,8.7759375064237199E-2,8.7759375064237199E-2,8.7759375064237199E-2,8.7759375064237199E-2,8.7759375064237199E-2,8.7759375064237199E-2,8.7759375064237199E-2,8.7759375064237199E-2,8.7759375064237199E-2,8.7759375064237199E-2,8.7759375064237199E-2,8.7759375064237199E-2,8.7759375064237199E-2,8.7759375064237199E-2,8.7759375064237199E-2,8.7759375064237199E-2,8.7759375064237199E-2,8.7759375064237199E-2,8.7759375064237199E-2,8.7759375064237199E-2,8.7759375064237199E-2,8.7759375064237199E-2,8.7759375064237199E-2,8.7759375064237199E-2,8.7759375064237199E-2,8.7759375064237199E-2,8.7759375064237199E-2,8.7759375064237199E-2,8.7759375064237199E-2,8.7759375064237199E-2,8.7759375064237199E-2,8.7759375064237199E-2,8.7759375064237199E-2,8.7759375064237199E-2,8.7759375064237199E-2,8.7759375064237199E-2,8.7759375064237199E-2,8.7759375064237199E-2,216]
[null,"Female 35-39",8.7759375064237199E-2,8.7759375064237199E-2,8.7759375064237199E-2,8.7759375064237199E-2,8.7759375064237199E-2,8.7759375064237199E-2,8.7759375064237199E-2,8.7759375064237199E-2,8.7759375064237199E-2,8.7759375064237199E-2,8.7759375064237199E-2,8.7759375064237199E-2,8.7759375064237199E-2,8.7759375064237199E-2,8.7759375064237199E-2,8.7759375064237199E-2,8.7759375064237199E-2,8.7759375064237199E-2,8.7759375064237199E-2,8.7759375064237199E-2,8.7759375064237199E-2,8.7759375064237199E-2,8.7759375064237199E-2,8.7759375064237199E-2,8.7759375064237199E-2,8.7759375064237199E-2,8.7759375064237199E-2,8.7759375064237199E-2,8.7759375064237199E-2,8.7759375064237199E-2,8.7759375064237199E-2,8.7759375064237199E-2,8.7759375064237199E-2,8.7759375064237199E-2,8.7759375064237199E-2,8.7759375064237199E-2,8.7759375064237199E-2,8.7759375064237199E-2,8.7759375064237199E-2,8.7759375064237199E-2,8.7759375064237199E-2,8.7759375064237199E-2,8.7759375064237199E-2,8.7759375064237199E-2,8.7759375064237199E-2,8.7759375064237199E-2,8.7759375064237199E-2,8.7759375064237199E-2,8.7759375064237199E-2,8.7759375064237199E-2,8.7759375064237199E-2,8.7759375064237199E-2,8.7759375064237199E-2,217]
[null,"Female 40-44",8.7759375064237199E-2,8.7759375064237199E-2,8.7759375064237199E-2,8.7759375064237199E-2,8.7759375064237199E-2,8.7759375064237199E-2,8.7759375064237199E-2,8.7759375064237199E-2,8.7759375064237199E-2,8.7759375064237199E-2,8.7759375064237199E-2,8.7759375064237199E-2,8.7759375064237199E-2,8.7759375064237199E-2,8.7759375064237199E-2,8.7759375064237199E-2,8.7759375064237199E-2,8.7759375064237199E-2,8.7759375064237199E-2,8.7759375064237199E-2,8.7759375064237199E-2,8.7759375064237199E-2,8.7759375064237199E-2,8.7759375064237199E-2,8.7759375064237199E-2,8.7759375064237199E-2,8.7759375064237199E-2,8.7759375064237199E-2,8.7759375064237199E-2,8.7759375064237199E-2,8.7759375064237199E-2,8.7759375064237199E-2,8.7759375064237199E-2,8.7759375064237199E-2,8.7759375064237199E-2,8.7759375064237199E-2,8.7759375064237199E-2,8.7759375064237199E-2,8.7759375064237199E-2,8.7759375064237199E-2,8.7759375064237199E-2,8.7759375064237199E-2,8.7759375064237199E-2,8.7759375064237199E-2,8.7759375064237199E-2,8.7759375064237199E-2,8.7759375064237199E-2,8.7759375064237199E-2,8.7759375064237199E-2,8.7759375064237199E-2,8.7759375064237199E-2,8.7759375064237199E-2,8.7759375064237199E-2,218]
[null,"Female 45-49",8.7759375064237199E-2,8.7759375064237199E-2,8.7759375064237199E-2,8.7759375064237199E-2,8.7759375064237199E-2,8.7759375064237199E-2,8.7759375064237199E-2,8.7759375064237199E-2,8.7759375064237199E-2,8.7759375064237199E-2,8.7759375064237199E-2,8.7759375064237199E-2,8.7759375064237199E-2,8.7759375064237199E-2,8.7759375064237199E-2,8.7759375064237199E-2,8.7759375064237199E-2,8.7759375064237199E-2,8.7759375064237199E-2,8.7759375064237199E-2,8.7759375064237199E-2,8.7759375064237199E-2,8.7759375064237199E-2,8.7759375064237199E-2,8.7759375064237199E-2,8.7759375064237199E-2,8.7759375064237199E-2,8.7759375064237199E-2,8.7759375064237199E-2,8.7759375064237199E-2,8.7759375064237199E-2,8.7759375064237199E-2,8.7759375064237199E-2,8.7759375064237199E-2,8.7759375064237199E-2,8.7759375064237199E-2,8.7759375064237199E-2,8.7759375064237199E-2,8.7759375064237199E-2,8.7759375064237199E-2,8.7759375064237199E-2,8.7759375064237199E-2,8.7759375064237199E-2,8.7759375064237199E-2,8.7759375064237199E-2,8.7759375064237199E-2,8.7759375064237199E-2,8.7759375064237199E-2,8.7759375064237199E-2,8.7759375064237199E-2,8.7759375064237199E-2,8.7759375064237199E-2,8.7759375064237199E-2,219]
[null,"Female 50-54",8.7759375064237199E-2,8.7759375064237199E-2,8.7759375064237199E-2,8.7759375064237199E-2,8.7759375064237199E-2,8.7759375064237199E-2,8.7759375064237199E-2,8.7759375064237199E-2,8.7759375064237199E-2,8.7759375064237199E-2,8.7759375064237199E-2,8.7759375064237199E-2,8.7759375064237199E-2,8.7759375064237199E-2,8.7759375064237199E-2,8.7759375064237199E-2,8.7759375064237199E-2,8.7759375064237199E-2,8.7759375064237199E-2,8.7759375064237199E-2,8.7759375064237199E-2,8.7759375064237199E-2,8.7759375064237199E-2,8.7759375064237199E-2,8.7759375064237199E-2,8.7759375064237199E-2,8.7759375064237199E-2,8.7759375064237199E-2,8.7759375064237199E-2,8.7759375064237199E-2,8.7759375064237199E-2,8.7759375064237199E-2,8.7759375064237199E-2,8.7759375064237199E-2,8.7759375064237199E-2,8.7759375064237199E-2,8.7759375064237199E-2,8.7759375064237199E-2,8.7759375064237199E-2,8.7759375064237199E-2,8.7759375064237199E-2,8.7759375064237199E-2,8.7759375064237199E-2,8.7759375064237199E-2,8.7759375064237199E-2,8.7759375064237199E-2,8.7759375064237199E-2,8.7759375064237199E-2,8.7759375064237199E-2,8.7759375064237199E-2,8.7759375064237199E-2,8.7759375064237199E-2,8.7759375064237199E-2,220]
[null,"Female 55-59",7.351441568831471E-2,7.351441568831471E-2,7.351441568831471E-2,7.351441568831471E-2,7.351441568831471E-2,7.351441568831471E-2,7.351441568831471E-2,7.351441568831471E-2,7.351441568831471E-2,7.351441568831471E-2,7.351441568831471E-2,7.351441568831471E-2,7.351441568831471E-2,7.351441568831471E-2,7.351441568831471E-2,7.351441568831471E-2,7.351441568831471E-2,7.351441568831471E-2,7.351441568831471E-2,7.351441568831471E-2,7.351441568831471E-2,7.351441568831471E-2,7.351441568831471E-2,7.351441568831471E-2,7.351441568831471E-2,7.351441568831471E-2,7.351441568831471E-2,7.351441568831471E-2,7.351441568831471E-2,7.351441568831471E-2,7.351441568831471E-2,7.351441568831471E-2,7.351441568831471E-2,7.351441568831471E-2,7.351441568831471E-2,7.351441568831471E-2,7.351441568831471E-2,7.351441568831471E-2,7.351441568831471E-2,7.351441568831471E-2,7.351441568831471E-2,7.351441568831471E-2,7.351441568831471E-2,7.351441568831471E-2,7.351441568831471E-2,7.351441568831471E-2,7.351441568831471E-2,7.351441568831471E-2,7.351441568831471E-2,7.351441568831471E-2,7.351441568831471E-2,7.351441568831471E-2,7.351441568831471E-2,221]
[null,"Female 60-64",7.351441568831471E-2,7.351441568831471E-2,7.351441568831471E-2,7.351441568831471E-2,7.351441568831471E-2,7.351441568831471E-2,7.351441568831471E-2,7.351441568831471E-2,7.351441568831471E-2,7.351441568831471E-2,7.351441568831471E-2,7.351441568831471E-2,7.351441568831471E-2,7.351441568831471E-2,7.351441568831471E-2,7.351441568831471E-2,7.351441568831471E-2,7.351441568831471E-2,7.351441568831471E-2,7.351441568831471E-2,7.351441568831471E-2,7.351441568831471E-2,7.351441568831471E-2,7.351441568831471E-2,7.351441568831471E-2,7.351441568831471E-2,7.351441568831471E-2,7.351441568831471E-2,7.351441568831471E-2,7.351441568831471E-2,7.351441568831471E-2,7.351441568831471E-2,7.351441568831471E-2,7.351441568831471E-2,7.351441568831471E-2,7.351441568831471E-2,7.351441568831471E-2,7.351441568831471E-2,7.351441568831471E-2,7.351441568831471E-2,7.351441568831471E-2,7.351441568831471E-2,7.351441568831471E-2,7.351441568831471E-2,7.351441568831471E-2,7.351441568831471E-2,7.351441568831471E-2,7.351441568831471E-2,7.351441568831471E-2,7.351441568831471E-2,7.351441568831471E-2,7.351441568831471E-2,7.351441568831471E-2,222]
[null,"Female 65-69",{"$f":"$AR225","v":7.351441568831471E-2},7.351441568831471E-2,7.351441568831471E-2,7.351441568831471E-2,7.351441568831471E-2,7.351441568831471E-2,7.351441568831471E-2,7.351441568831471E-2,7.351441568831471E-2,7.351441568831471E-2,{"$f":"$AR225","v":7.351441568831471E-2},7.351441568831471E-2,7.351441568831471E-2,7.351441568831471E-2,7.351441568831471E-2,7.351441568831471E-2,7.351441568831471E-2,7.351441568831471E-2,7.351441568831471E-2,7.351441568831471E-2,{"$f":"$AR225","v":7.351441568831471E-2},7.351441568831471E-2,7.351441568831471E-2,7.351441568831471E-2,7.351441568831471E-2,7.351441568831471E-2,7.351441568831471E-2,7.351441568831471E-2,7.351441568831471E-2,7.351441568831471E-2,{"$f":"$AR225","v":7.351441568831471E-2},7.351441568831471E-2,7.351441568831471E-2,7.351441568831471E-2,7.351441568831471E-2,7.351441568831471E-2,7.351441568831471E-2,7.351441568831471E-2,7.351441568831471E-2,7.351441568831471E-2,7.351441568831471E-2,7.351441568831471E-2,{"$f":"$AR225","v":7.351441568831471E-2},7.351441568831471E-2,7.351441568831471E-2,7.351441568831471E-2,7.351441568831471E-2,7.351441568831471E-2,7.351441568831471E-2,7.351441568831471E-2,7.351441568831471E-2,7.351441568831471E-2,7.351441568831471E-2,223]
[null,"Female 70-74",7.351441568831471E-2,7.351441568831471E-2,7.351441568831471E-2,7.351441568831471E-2,7.351441568831471E-2,7.351441568831471E-2,7.351441568831471E-2,7.351441568831471E-2,7.351441568831471E-2,7.351441568831471E-2,7.351441568831471E-2,7.351441568831471E-2,7.351441568831471E-2,7.351441568831471E-2,7.351441568831471E-2,7.351441568831471E-2,7.351441568831471E-2,7.351441568831471E-2,7.351441568831471E-2,7.351441568831471E-2,7.351441568831471E-2,7.351441568831471E-2,7.351441568831471E-2,7.351441568831471E-2,7.351441568831471E-2,7.351441568831471E-2,7.351441568831471E-2,7.351441568831471E-2,7.351441568831471E-2,7.351441568831471E-2,7.351441568831471E-2,7.351441568831471E-2,7.351441568831471E-2,7.351441568831471E-2,7.351441568831471E-2,7.351441568831471E-2,7.351441568831471E-2,7.351441568831471E-2,7.351441568831471E-2,7.351441568831471E-2,7.351441568831471E-2,7.351441568831471E-2,7.351441568831471E-2,7.351441568831471E-2,7.351441568831471E-2,7.351441568831471E-2,7.351441568831471E-2,7.351441568831471E-2,7.351441568831471E-2,7.351441568831471E-2,7.351441568831471E-2,7.351441568831471E-2,7.351441568831471E-2,224]
[null,"Female 75-79",7.351441568831471E-2,7.351441568831471E-2,7.351441568831471E-2,7.351441568831471E-2,7.351441568831471E-2,7.351441568831471E-2,7.351441568831471E-2,7.351441568831471E-2,7.351441568831471E-2,7.351441568831471E-2,7.351441568831471E-2,7.351441568831471E-2,7.351441568831471E-2,7.351441568831471E-2,7.351441568831471E-2,7.351441568831471E-2,7.351441568831471E-2,7.351441568831471E-2,7.351441568831471E-2,7.351441568831471E-2,7.351441568831471E-2,7.351441568831471E-2,7.351441568831471E-2,7.351441568831471E-2,7.351441568831471E-2,7.351441568831471E-2,7.351441568831471E-2,7.351441568831471E-2,7.351441568831471E-2,7.351441568831471E-2,7.351441568831471E-2,7.351441568831471E-2,7.351441568831471E-2,7.351441568831471E-2,7.351441568831471E-2,7.351441568831471E-2,7.351441568831471E-2,7.351441568831471E-2,7.351441568831471E-2,7.351441568831471E-2,7.351441568831471E-2,7.351441568831471E-2,7.351441568831471E-2,7.351441568831471E-2,7.351441568831471E-2,7.351441568831471E-2,7.351441568831471E-2,7.351441568831471E-2,7.351441568831471E-2,7.351441568831471E-2,7.351441568831471E-2,7.351441568831471E-2,7.351441568831471E-2,225]
[null,"Female 80-84",7.351441568831471E-2,7.351441568831471E-2,7.351441568831471E-2,7.351441568831471E-2,7.351441568831471E-2,7.351441568831471E-2,7.351441568831471E-2,7.351441568831471E-2,7.351441568831471E-2,7.351441568831471E-2,7.351441568831471E-2,7.351441568831471E-2,7.351441568831471E-2,7.351441568831471E-2,7.351441568831471E-2,7.351441568831471E-2,7.351441568831471E-2,7.351441568831471E-2,7.351441568831471E-2,7.351441568831471E-2,7.351441568831471E-2,7.351441568831471E-2,7.351441568831471E-2,7.351441568831471E-2,7.351441568831471E-2,7.351441568831471E-2,7.351441568831471E-2,7.351441568831471E-2,7.351441568831471E-2,7.351441568831471E-2,7.351441568831471E-2,7.351441568831471E-2,7.351441568831471E-2,7.351441568831471E-2,7.351441568831471E-2,7.351441568831471E-2,7.351441568831471E-2,7.351441568831471E-2,7.351441568831471E-2,7.351441568831471E-2,7.351441568831471E-2,7.351441568831471E-2,7.351441568831471E-2,7.351441568831471E-2,7.351441568831471E-2,7.351441568831471E-2,7.351441568831471E-2,7.351441568831471E-2,7.351441568831471E-2,7.351441568831471E-2,7.351441568831471E-2,7.351441568831471E-2,7.351441568831471E-2,226]
[null,"Female 85-89",7.351441568831471E-2,7.351441568831471E-2,7.351441568831471E-2,7.351441568831471E-2,7.351441568831471E-2,7.351441568831471E-2,7.351441568831471E-2,7.351441568831471E-2,7.351441568831471E-2,7.351441568831471E-2,7.351441568831471E-2,7.351441568831471E-2,7.351441568831471E-2,7.351441568831471E-2,7.351441568831471E-2,7.351441568831471E-2,7.351441568831471E-2,7.351441568831471E-2,7.351441568831471E-2,7.351441568831471E-2,7.351441568831471E-2,7.351441568831471E-2,7.351441568831471E-2,7.351441568831471E-2,7.351441568831471E-2,7.351441568831471E-2,7.351441568831471E-2,7.351441568831471E-2,7.351441568831471E-2,7.351441568831471E-2,7.351441568831471E-2,7.351441568831471E-2,7.351441568831471E-2,7.351441568831471E-2,7.351441568831471E-2,7.351441568831471E-2,7.351441568831471E-2,7.351441568831471E-2,7.351441568831471E-2,7.351441568831471E-2,7.351441568831471E-2,7.351441568831471E-2,7.351441568831471E-2,7.351441568831471E-2,7.351441568831471E-2,7.351441568831471E-2,7.351441568831471E-2,7.351441568831471E-2,7.351441568831471E-2,7.351441568831471E-2,7.351441568831471E-2,7.351441568831471E-2,7.351441568831471E-2,227]
[null,"Female 90+",7.351441568831471E-2,7.351441568831471E-2,7.351441568831471E-2,7.351441568831471E-2,7.351441568831471E-2,7.351441568831471E-2,7.351441568831471E-2,7.351441568831471E-2,7.351441568831471E-2,7.351441568831471E-2,7.351441568831471E-2,7.351441568831471E-2,7.351441568831471E-2,7.351441568831471E-2,7.351441568831471E-2,7.351441568831471E-2,7.351441568831471E-2,7.351441568831471E-2,7.351441568831471E-2,7.351441568831471E-2,7.351441568831471E-2,7.351441568831471E-2,7.351441568831471E-2,7.351441568831471E-2,7.351441568831471E-2,7.351441568831471E-2,7.351441568831471E-2,7.351441568831471E-2,7.351441568831471E-2,7.351441568831471E-2,7.351441568831471E-2,7.351441568831471E-2,7.351441568831471E-2,7.351441568831471E-2,7.351441568831471E-2,7.351441568831471E-2,7.351441568831471E-2,7.351441568831471E-2,7.351441568831471E-2,7.351441568831471E-2,7.351441568831471E-2,7.351441568831471E-2,7.351441568831471E-2,7.351441568831471E-2,7.351441568831471E-2,7.351441568831471E-2,7.351441568831471E-2,7.351441568831471E-2,7.351441568831471E-2,7.351441568831471E-2,7.351441568831471E-2,7.351441568831471E-2,7.351441568831471E-2,228]
[null,"Male 0-4",null,null,null,null,null,null,null,null,null,null,null,null,null,null,null,null,null,null,null,null,null,null,null,null,null,null,null,null,null,null,null,null,null,null,null,null,null,null,null,null,null,null,null,null,null,null,null,null,null,null,null,null,null,229]
[null,"Male 5-9",null,null,null,null,null,null,null,null,null,null,null,null,null,null,null,null,null,null,null,null,null,null,null,null,null,null,null,null,null,null,null,null,null,null,null,null,null,null,null,null,null,null,null,null,null,null,null,null,null,null,null,null,null,230]
[null,"Male 10-15",null,null,null,null,null,null,null,null,null,null,null,null,null,null,null,null,null,null,null,null,null,null,null,null,null,null,null,null,null,null,null,null,null,null,null,null,null,null,null,null,null,null,null,null,null,null,null,null,null,null,null,null,null,231]
[null,"Male 16-19",{"$f":"$AR234","v":7.1904604619662041E-2},7.1904604619662041E-2,7.1904604619662041E-2,7.1904604619662041E-2,7.1904604619662041E-2,7.1904604619662041E-2,7.1904604619662041E-2,7.1904604619662041E-2,7.1904604619662041E-2,7.1904604619662041E-2,{"$f":"$AR234","v":7.1904604619662041E-2},7.1904604619662041E-2,7.1904604619662041E-2,7.1904604619662041E-2,7.1904604619662041E-2,7.1904604619662041E-2,7.1904604619662041E-2,7.1904604619662041E-2,7.1904604619662041E-2,7.1904604619662041E-2,{"$f":"$AR234","v":7.1904604619662041E-2},7.1904604619662041E-2,7.1904604619662041E-2,7.1904604619662041E-2,7.1904604619662041E-2,7.1904604619662041E-2,7.1904604619662041E-2,7.1904604619662041E-2,7.1904604619662041E-2,7.1904604619662041E-2,{"$f":"$AR234","v":7.1904604619662041E-2},7.1904604619662041E-2,7.1904604619662041E-2,7.1904604619662041E-2,7.1904604619662041E-2,7.1904604619662041E-2,7.1904604619662041E-2,7.1904604619662041E-2,7.1904604619662041E-2,7.1904604619662041E-2,7.1904604619662041E-2,7.1904604619662041E-2,{"$f":"$AR234","v":7.1904604619662041E-2},7.1904604619662041E-2,7.1904604619662041E-2,7.1904604619662041E-2,7.1904604619662041E-2,7.1904604619662041E-2,7.1904604619662041E-2,7.1904604619662041E-2,7.1904604619662041E-2,7.1904604619662041E-2,7.1904604619662041E-2,232]
[null,"Male 20-24",7.1904604619662041E-2,7.1904604619662041E-2,7.1904604619662041E-2,7.1904604619662041E-2,7.1904604619662041E-2,7.1904604619662041E-2,7.1904604619662041E-2,7.1904604619662041E-2,7.1904604619662041E-2,7.1904604619662041E-2,7.1904604619662041E-2,7.1904604619662041E-2,7.1904604619662041E-2,7.1904604619662041E-2,7.1904604619662041E-2,7.1904604619662041E-2,7.1904604619662041E-2,7.1904604619662041E-2,7.1904604619662041E-2,7.1904604619662041E-2,7.1904604619662041E-2,7.1904604619662041E-2,7.1904604619662041E-2,7.1904604619662041E-2,7.1904604619662041E-2,7.1904604619662041E-2,7.1904604619662041E-2,7.1904604619662041E-2,7.1904604619662041E-2,7.1904604619662041E-2,7.1904604619662041E-2,7.1904604619662041E-2,7.1904604619662041E-2,7.1904604619662041E-2,7.1904604619662041E-2,7.1904604619662041E-2,7.1904604619662041E-2,7.1904604619662041E-2,7.1904604619662041E-2,7.1904604619662041E-2,7.1904604619662041E-2,7.1904604619662041E-2,7.1904604619662041E-2,7.1904604619662041E-2,7.1904604619662041E-2,7.1904604619662041E-2,7.1904604619662041E-2,7.1904604619662041E-2,7.1904604619662041E-2,7.1904604619662041E-2,7.1904604619662041E-2,7.1904604619662041E-2,7.1904604619662041E-2,233]
[null,"Male 25-29",7.1904604619662041E-2,7.1904604619662041E-2,7.1904604619662041E-2,7.1904604619662041E-2,7.1904604619662041E-2,7.1904604619662041E-2,7.1904604619662041E-2,7.1904604619662041E-2,7.1904604619662041E-2,7.1904604619662041E-2,7.1904604619662041E-2,7.1904604619662041E-2,7.1904604619662041E-2,7.1904604619662041E-2,7.1904604619662041E-2,7.1904604619662041E-2,7.1904604619662041E-2,7.1904604619662041E-2,7.1904604619662041E-2,7.1904604619662041E-2,7.1904604619662041E-2,7.1904604619662041E-2,7.1904604619662041E-2,7.1904604619662041E-2,7.1904604619662041E-2,7.1904604619662041E-2,7.1904604619662041E-2,7.1904604619662041E-2,7.1904604619662041E-2,7.1904604619662041E-2,7.1904604619662041E-2,7.1904604619662041E-2,7.1904604619662041E-2,7.1904604619662041E-2,7.1904604619662041E-2,7.1904604619662041E-2,7.1904604619662041E-2,7.1904604619662041E-2,7.1904604619662041E-2,7.1904604619662041E-2,7.1904604619662041E-2,7.1904604619662041E-2,7.1904604619662041E-2,7.1904604619662041E-2,7.1904604619662041E-2,7.1904604619662041E-2,7.1904604619662041E-2,7.1904604619662041E-2,7.1904604619662041E-2,7.1904604619662041E-2,7.1904604619662041E-2,7.1904604619662041E-2,7.1904604619662041E-2,234]
[null,"Male 30-34",7.1904604619662041E-2,7.1904604619662041E-2,7.1904604619662041E-2,7.1904604619662041E-2,7.1904604619662041E-2,7.1904604619662041E-2,7.1904604619662041E-2,7.1904604619662041E-2,7.1904604619662041E-2,7.1904604619662041E-2,7.1904604619662041E-2,7.1904604619662041E-2,7.1904604619662041E-2,7.1904604619662041E-2,7.1904604619662041E-2,7.1904604619662041E-2,7.1904604619662041E-2,7.1904604619662041E-2,7.1904604619662041E-2,7.1904604619662041E-2,7.1904604619662041E-2,7.1904604619662041E-2,7.1904604619662041E-2,7.1904604619662041E-2,7.1904604619662041E-2,7.1904604619662041E-2,7.1904604619662041E-2,7.1904604619662041E-2,7.1904604619662041E-2,7.1904604619662041E-2,7.1904604619662041E-2,7.1904604619662041E-2,7.1904604619662041E-2,7.1904604619662041E-2,7.1904604619662041E-2,7.1904604619662041E-2,7.1904604619662041E-2,7.1904604619662041E-2,7.1904604619662041E-2,7.1904604619662041E-2,7.1904604619662041E-2,7.1904604619662041E-2,7.1904604619662041E-2,7.1904604619662041E-2,7.1904604619662041E-2,7.1904604619662041E-2,7.1904604619662041E-2,7.1904604619662041E-2,7.1904604619662041E-2,7.1904604619662041E-2,7.1904604619662041E-2,7.1904604619662041E-2,7.1904604619662041E-2,235]
[null,"Male 35-39",7.1904604619662041E-2,7.1904604619662041E-2,7.1904604619662041E-2,7.1904604619662041E-2,7.1904604619662041E-2,7.1904604619662041E-2,7.1904604619662041E-2,7.1904604619662041E-2,7.1904604619662041E-2,7.1904604619662041E-2,7.1904604619662041E-2,7.1904604619662041E-2,7.1904604619662041E-2,7.1904604619662041E-2,7.1904604619662041E-2,7.1904604619662041E-2,7.1904604619662041E-2,7.1904604619662041E-2,7.1904604619662041E-2,7.1904604619662041E-2,7.1904604619662041E-2,7.1904604619662041E-2,7.1904604619662041E-2,7.1904604619662041E-2,7.1904604619662041E-2,7.1904604619662041E-2,7.1904604619662041E-2,7.1904604619662041E-2,7.1904604619662041E-2,7.1904604619662041E-2,7.1904604619662041E-2,7.1904604619662041E-2,7.1904604619662041E-2,7.1904604619662041E-2,7.1904604619662041E-2,7.1904604619662041E-2,7.1904604619662041E-2,7.1904604619662041E-2,7.1904604619662041E-2,7.1904604619662041E-2,7.1904604619662041E-2,7.1904604619662041E-2,7.1904604619662041E-2,7.1904604619662041E-2,7.1904604619662041E-2,7.1904604619662041E-2,7.1904604619662041E-2,7.1904604619662041E-2,7.1904604619662041E-2,7.1904604619662041E-2,7.1904604619662041E-2,7.1904604619662041E-2,7.1904604619662041E-2,236]
[null,"Male 40-44",7.1904604619662041E-2,7.1904604619662041E-2,7.1904604619662041E-2,7.1904604619662041E-2,7.1904604619662041E-2,7.1904604619662041E-2,7.1904604619662041E-2,7.1904604619662041E-2,7.1904604619662041E-2,7.1904604619662041E-2,7.1904604619662041E-2,7.1904604619662041E-2,7.1904604619662041E-2,7.1904604619662041E-2,7.1904604619662041E-2,7.1904604619662041E-2,7.1904604619662041E-2,7.1904604619662041E-2,7.1904604619662041E-2,7.1904604619662041E-2,7.1904604619662041E-2,7.1904604619662041E-2,7.1904604619662041E-2,7.1904604619662041E-2,7.1904604619662041E-2,7.1904604619662041E-2,7.1904604619662041E-2,7.1904604619662041E-2,7.1904604619662041E-2,7.1904604619662041E-2,7.1904604619662041E-2,7.1904604619662041E-2,7.1904604619662041E-2,7.1904604619662041E-2,7.1904604619662041E-2,7.1904604619662041E-2,7.1904604619662041E-2,7.1904604619662041E-2,7.1904604619662041E-2,7.1904604619662041E-2,7.1904604619662041E-2,7.1904604619662041E-2,7.1904604619662041E-2,7.1904604619662041E-2,7.1904604619662041E-2,7.1904604619662041E-2,7.1904604619662041E-2,7.1904604619662041E-2,7.1904604619662041E-2,7.1904604619662041E-2,7.1904604619662041E-2,7.1904604619662041E-2,7.1904604619662041E-2,237]
[null,"Male 45-49",7.1904604619662041E-2,7.1904604619662041E-2,7.1904604619662041E-2,7.1904604619662041E-2,7.1904604619662041E-2,7.1904604619662041E-2,7.1904604619662041E-2,7.1904604619662041E-2,7.1904604619662041E-2,7.1904604619662041E-2,7.1904604619662041E-2,7.1904604619662041E-2,7.1904604619662041E-2,7.1904604619662041E-2,7.1904604619662041E-2,7.1904604619662041E-2,7.1904604619662041E-2,7.1904604619662041E-2,7.1904604619662041E-2,7.1904604619662041E-2,7.1904604619662041E-2,7.1904604619662041E-2,7.1904604619662041E-2,7.1904604619662041E-2,7.1904604619662041E-2,7.1904604619662041E-2,7.1904604619662041E-2,7.1904604619662041E-2,7.1904604619662041E-2,7.1904604619662041E-2,7.1904604619662041E-2,7.1904604619662041E-2,7.1904604619662041E-2,7.1904604619662041E-2,7.1904604619662041E-2,7.1904604619662041E-2,7.1904604619662041E-2,7.1904604619662041E-2,7.1904604619662041E-2,7.1904604619662041E-2,7.1904604619662041E-2,7.1904604619662041E-2,7.1904604619662041E-2,7.1904604619662041E-2,7.1904604619662041E-2,7.1904604619662041E-2,7.1904604619662041E-2,7.1904604619662041E-2,7.1904604619662041E-2,7.1904604619662041E-2,7.1904604619662041E-2,7.1904604619662041E-2,7.1904604619662041E-2,238]
[null,"Male 50-54",7.1904604619662041E-2,7.1904604619662041E-2,7.1904604619662041E-2,7.1904604619662041E-2,7.1904604619662041E-2,7.1904604619662041E-2,7.1904604619662041E-2,7.1904604619662041E-2,7.1904604619662041E-2,7.1904604619662041E-2,7.1904604619662041E-2,7.1904604619662041E-2,7.1904604619662041E-2,7.1904604619662041E-2,7.1904604619662041E-2,7.1904604619662041E-2,7.1904604619662041E-2,7.1904604619662041E-2,7.1904604619662041E-2,7.1904604619662041E-2,7.1904604619662041E-2,7.1904604619662041E-2,7.1904604619662041E-2,7.1904604619662041E-2,7.1904604619662041E-2,7.1904604619662041E-2,7.1904604619662041E-2,7.1904604619662041E-2,7.1904604619662041E-2,7.1904604619662041E-2,7.1904604619662041E-2,7.1904604619662041E-2,7.1904604619662041E-2,7.1904604619662041E-2,7.1904604619662041E-2,7.1904604619662041E-2,7.1904604619662041E-2,7.1904604619662041E-2,7.1904604619662041E-2,7.1904604619662041E-2,7.1904604619662041E-2,7.1904604619662041E-2,7.1904604619662041E-2,7.1904604619662041E-2,7.1904604619662041E-2,7.1904604619662041E-2,7.1904604619662041E-2,7.1904604619662041E-2,7.1904604619662041E-2,7.1904604619662041E-2,7.1904604619662041E-2,7.1904604619662041E-2,7.1904604619662041E-2,239]
[null,"Male 55-59",6.0233165858855992E-2,6.0233165858855992E-2,6.0233165858855992E-2,6.0233165858855992E-2,6.0233165858855992E-2,6.0233165858855992E-2,6.0233165858855992E-2,6.0233165858855992E-2,6.0233165858855992E-2,6.0233165858855992E-2,6.0233165858855992E-2,6.0233165858855992E-2,6.0233165858855992E-2,6.0233165858855992E-2,6.0233165858855992E-2,6.0233165858855992E-2,6.0233165858855992E-2,6.0233165858855992E-2,6.0233165858855992E-2,6.0233165858855992E-2,6.0233165858855992E-2,6.0233165858855992E-2,6.0233165858855992E-2,6.0233165858855992E-2,6.0233165858855992E-2,6.0233165858855992E-2,6.0233165858855992E-2,6.0233165858855992E-2,6.0233165858855992E-2,6.0233165858855992E-2,6.0233165858855992E-2,6.0233165858855992E-2,6.0233165858855992E-2,6.0233165858855992E-2,6.0233165858855992E-2,6.0233165858855992E-2,6.0233165858855992E-2,6.0233165858855992E-2,6.0233165858855992E-2,6.0233165858855992E-2,6.0233165858855992E-2,6.0233165858855992E-2,6.0233165858855992E-2,6.0233165858855992E-2,6.0233165858855992E-2,6.0233165858855992E-2,6.0233165858855992E-2,6.0233165858855992E-2,6.0233165858855992E-2,6.0233165858855992E-2,6.0233165858855992E-2,6.0233165858855992E-2,6.0233165858855992E-2,240]
[null,"Male 60-64",6.0233165858855992E-2,6.0233165858855992E-2,6.0233165858855992E-2,6.0233165858855992E-2,6.0233165858855992E-2,6.0233165858855992E-2,6.0233165858855992E-2,6.0233165858855992E-2,6.0233165858855992E-2,6.0233165858855992E-2,6.0233165858855992E-2,6.0233165858855992E-2,6.0233165858855992E-2,6.0233165858855992E-2,6.0233165858855992E-2,6.0233165858855992E-2,6.0233165858855992E-2,6.0233165858855992E-2,6.0233165858855992E-2,6.0233165858855992E-2,6.0233165858855992E-2,6.0233165858855992E-2,6.0233165858855992E-2,6.0233165858855992E-2,6.0233165858855992E-2,6.0233165858855992E-2,6.0233165858855992E-2,6.0233165858855992E-2,6.0233165858855992E-2,6.0233165858855992E-2,6.0233165858855992E-2,6.0233165858855992E-2,6.0233165858855992E-2,6.0233165858855992E-2,6.0233165858855992E-2,6.0233165858855992E-2,6.0233165858855992E-2,6.0233165858855992E-2,6.0233165858855992E-2,6.0233165858855992E-2,6.0233165858855992E-2,6.0233165858855992E-2,6.0233165858855992E-2,6.0233165858855992E-2,6.0233165858855992E-2,6.0233165858855992E-2,6.0233165858855992E-2,6.0233165858855992E-2,6.0233165858855992E-2,6.0233165858855992E-2,6.0233165858855992E-2,6.0233165858855992E-2,6.0233165858855992E-2,241]
[null,"Male 65-69",{"$f":"$AR244","v":6.0233165858855992E-2},6.0233165858855992E-2,6.0233165858855992E-2,6.0233165858855992E-2,6.0233165858855992E-2,6.0233165858855992E-2,6.0233165858855992E-2,6.0233165858855992E-2,6.0233165858855992E-2,6.0233165858855992E-2,{"$f":"$AR244","v":6.0233165858855992E-2},6.0233165858855992E-2,6.0233165858855992E-2,6.0233165858855992E-2,6.0233165858855992E-2,6.0233165858855992E-2,6.0233165858855992E-2,6.0233165858855992E-2,6.0233165858855992E-2,6.0233165858855992E-2,{"$f":"$AR244","v":6.0233165858855992E-2},6.0233165858855992E-2,6.0233165858855992E-2,6.0233165858855992E-2,6.0233165858855992E-2,6.0233165858855992E-2,6.0233165858855992E-2,6.0233165858855992E-2,6.0233165858855992E-2,6.0233165858855992E-2,{"$f":"$AR244","v":6.0233165858855992E-2},6.0233165858855992E-2,6.0233165858855992E-2,6.0233165858855992E-2,6.0233165858855992E-2,6.0233165858855992E-2,6.0233165858855992E-2,6.0233165858855992E-2,6.0233165858855992E-2,6.0233165858855992E-2,6.0233165858855992E-2,6.0233165858855992E-2,{"$f":"$AR244","v":6.0233165858855992E-2},6.0233165858855992E-2,6.0233165858855992E-2,6.0233165858855992E-2,6.0233165858855992E-2,6.0233165858855992E-2,6.0233165858855992E-2,6.0233165858855992E-2,6.0233165858855992E-2,6.0233165858855992E-2,6.0233165858855992E-2,242]
[null,"Male 70-74",6.0233165858855992E-2,6.0233165858855992E-2,6.0233165858855992E-2,6.0233165858855992E-2,6.0233165858855992E-2,6.0233165858855992E-2,6.0233165858855992E-2,6.0233165858855992E-2,6.0233165858855992E-2,6.0233165858855992E-2,6.0233165858855992E-2,6.0233165858855992E-2,6.0233165858855992E-2,6.0233165858855992E-2,6.0233165858855992E-2,6.0233165858855992E-2,6.0233165858855992E-2,6.0233165858855992E-2,6.0233165858855992E-2,6.0233165858855992E-2,6.0233165858855992E-2,6.0233165858855992E-2,6.0233165858855992E-2,6.0233165858855992E-2,6.0233165858855992E-2,6.0233165858855992E-2,6.0233165858855992E-2,6.0233165858855992E-2,6.0233165858855992E-2,6.0233165858855992E-2,6.0233165858855992E-2,6.0233165858855992E-2,6.0233165858855992E-2,6.0233165858855992E-2,6.0233165858855992E-2,6.0233165858855992E-2,6.0233165858855992E-2,6.0233165858855992E-2,6.0233165858855992E-2,6.0233165858855992E-2,6.0233165858855992E-2,6.0233165858855992E-2,6.0233165858855992E-2,6.0233165858855992E-2,6.0233165858855992E-2,6.0233165858855992E-2,6.0233165858855992E-2,6.0233165858855992E-2,6.0233165858855992E-2,6.0233165858855992E-2,6.0233165858855992E-2,6.0233165858855992E-2,6.0233165858855992E-2,243]
[null,"Male 75-79",6.0233165858855992E-2,6.0233165858855992E-2,6.0233165858855992E-2,6.0233165858855992E-2,6.0233165858855992E-2,6.0233165858855992E-2,6.0233165858855992E-2,6.0233165858855992E-2,6.0233165858855992E-2,6.0233165858855992E-2,6.0233165858855992E-2,6.0233165858855992E-2,6.0233165858855992E-2,6.0233165858855992E-2,6.0233165858855992E-2,6.0233165858855992E-2,6.0233165858855992E-2,6.0233165858855992E-2,6.0233165858855992E-2,6.0233165858855992E-2,6.0233165858855992E-2,6.0233165858855992E-2,6.0233165858855992E-2,6.0233165858855992E-2,6.0233165858855992E-2,6.0233165858855992E-2,6.0233165858855992E-2,6.0233165858855992E-2,6.0233165858855992E-2,6.0233165858855992E-2,6.0233165858855992E-2,6.0233165858855992E-2,6.0233165858855992E-2,6.0233165858855992E-2,6.0233165858855992E-2,6.0233165858855992E-2,6.0233165858855992E-2,6.0233165858855992E-2,6.0233165858855992E-2,6.0233165858855992E-2,6.0233165858855992E-2,6.0233165858855992E-2,6.0233165858855992E-2,6.0233165858855992E-2,6.0233165858855992E-2,6.0233165858855992E-2,6.0233165858855992E-2,6.0233165858855992E-2,6.0233165858855992E-2,6.0233165858855992E-2,6.0233165858855992E-2,6.0233165858855992E-2,6.0233165858855992E-2,244]
[null,"Male 80-84",6.0233165858855992E-2,6.0233165858855992E-2,6.0233165858855992E-2,6.0233165858855992E-2,6.0233165858855992E-2,6.0233165858855992E-2,6.0233165858855992E-2,6.0233165858855992E-2,6.0233165858855992E-2,6.0233165858855992E-2,6.0233165858855992E-2,6.0233165858855992E-2,6.0233165858855992E-2,6.0233165858855992E-2,6.0233165858855992E-2,6.0233165858855992E-2,6.0233165858855992E-2,6.0233165858855992E-2,6.0233165858855992E-2,6.0233165858855992E-2,6.0233165858855992E-2,6.0233165858855992E-2,6.0233165858855992E-2,6.0233165858855992E-2,6.0233165858855992E-2,6.0233165858855992E-2,6.0233165858855992E-2,6.0233165858855992E-2,6.0233165858855992E-2,6.0233165858855992E-2,6.0233165858855992E-2,6.0233165858855992E-2,6.0233165858855992E-2,6.0233165858855992E-2,6.0233165858855992E-2,6.0233165858855992E-2,6.0233165858855992E-2,6.0233165858855992E-2,6.0233165858855992E-2,6.0233165858855992E-2,6.0233165858855992E-2,6.0233165858855992E-2,6.0233165858855992E-2,6.0233165858855992E-2,6.0233165858855992E-2,6.0233165858855992E-2,6.0233165858855992E-2,6.0233165858855992E-2,6.0233165858855992E-2,6.0233165858855992E-2,6.0233165858855992E-2,6.0233165858855992E-2,6.0233165858855992E-2,245]
[null,"Male 85-89",6.0233165858855992E-2,6.0233165858855992E-2,6.0233165858855992E-2,6.0233165858855992E-2,6.0233165858855992E-2,6.0233165858855992E-2,6.0233165858855992E-2,6.0233165858855992E-2,6.0233165858855992E-2,6.0233165858855992E-2,6.0233165858855992E-2,6.0233165858855992E-2,6.0233165858855992E-2,6.0233165858855992E-2,6.0233165858855992E-2,6.0233165858855992E-2,6.0233165858855992E-2,6.0233165858855992E-2,6.0233165858855992E-2,6.0233165858855992E-2,6.0233165858855992E-2,6.0233165858855992E-2,6.0233165858855992E-2,6.0233165858855992E-2,6.0233165858855992E-2,6.0233165858855992E-2,6.0233165858855992E-2,6.0233165858855992E-2,6.0233165858855992E-2,6.0233165858855992E-2,6.0233165858855992E-2,6.0233165858855992E-2,6.0233165858855992E-2,6.0233165858855992E-2,6.0233165858855992E-2,6.0233165858855992E-2,6.0233165858855992E-2,6.0233165858855992E-2,6.0233165858855992E-2,6.0233165858855992E-2,6.0233165858855992E-2,6.0233165858855992E-2,6.0233165858855992E-2,6.0233165858855992E-2,6.0233165858855992E-2,6.0233165858855992E-2,6.0233165858855992E-2,6.0233165858855992E-2,6.0233165858855992E-2,6.0233165858855992E-2,6.0233165858855992E-2,6.0233165858855992E-2,6.0233165858855992E-2,246]
[null,"Male 90+",6.0233165858855992E-2,6.0233165858855992E-2,6.0233165858855992E-2,6.0233165858855992E-2,6.0233165858855992E-2,6.0233165858855992E-2,6.0233165858855992E-2,6.0233165858855992E-2,6.0233165858855992E-2,6.0233165858855992E-2,6.0233165858855992E-2,6.0233165858855992E-2,6.0233165858855992E-2,6.0233165858855992E-2,6.0233165858855992E-2,6.0233165858855992E-2,6.0233165858855992E-2,6.0233165858855992E-2,6.0233165858855992E-2,6.0233165858855992E-2,6.0233165858855992E-2,6.0233165858855992E-2,6.0233165858855992E-2,6.0233165858855992E-2,6.0233165858855992E-2,6.0233165858855992E-2,6.0233165858855992E-2,6.0233165858855992E-2,6.0233165858855992E-2,6.0233165858855992E-2,6.0233165858855992E-2,6.0233165858855992E-2,6.0233165858855992E-2,6.0233165858855992E-2,6.0233165858855992E-2,6.0233165858855992E-2,6.0233165858855992E-2,6.0233165858855992E-2,6.0233165858855992E-2,6.0233165858855992E-2,6.0233165858855992E-2,6.0233165858855992E-2,6.0233165858855992E-2,6.0233165858855992E-2,6.0233165858855992E-2,6.0233165858855992E-2,6.0233165858855992E-2,6.0233165858855992E-2,6.0233165858855992E-2,6.0233165858855992E-2,6.0233165858855992E-2,6.0233165858855992E-2,6.0233165858855992E-2,247]

{"sheet":"Population at Risk","index":13,"n_rows":257,"n_cols":56,"rows_kept":257,"cut":false,"hidden":true,"merged":[]}
["Population at Risk "]
["(=prevalence*population in 2016)"]
["SIMD","group","Aberdeen City Local Authority","Aberdeen City Region Deal","Aberdeenshire Local Authority","Angus Local Authority","Argyll & Bute Local Authority","Ayrshire & Arran Health Board","Borders Health Board","Clackmannanshire & Stirling IJB","Clackmannanshire Local Authority","Dumfries & Galloway Health Board","Dumfries & Galloway Local Authority","Dundee City Local Authority","East Ayrshire Local Authority","East Dunbartonshire Local Authority","East Lothian Local Authority","East Renfrewshire Local Authority","Edinburgh & SE Scotland City Region Deal","Edinburgh, City of Local Authority","Eilean Siar Local Authority","Falkirk Local Authority","Fife Health Board","Fife Local Authority","Forth Valley Health Board","Glasgow City Local Authority","Glasgow City Region Deal","Grampian Health Board","Greater Glasgow & Clyde Health Board","Highland Health Board","Highland Local Authority","Inverclyde Local Authority","Inverness & Highland City Region Deal","Lanarkshire Health Board","Lothian Health Board","Midlothian Local Authority","Moray Local Authority","North Ayrshire Local Authority","North Lanarkshire Local Authority","Orkney Health Board","Orkney Islands Local Authority","Perth & Kinross Local Authority","Renfrewshire Local Authority","Scotland","Scottish Borders Local Authority","Shetland Health Board","Shetland Islands Local Authority","South Ayrshire Local Authority","South Lanarkshire Local Authority","Stirling Local Authority","Tay Cities Region Deal ","Tayside Health Board","West Dunbartonshire Local Authority","West Lothian Local Authority","Western Isles Health Board",1]
[null,null,"popS12000033","Aber_deal","popS12000034","popS12000041","popS12000035","popS08000015","popS08000016","ClacksStirIJB","popS12000005","popS08000017","popS12000006","popS12000042","popS12000008","popS12000045","popS12000010","popS12000011","EdinSE_deal","popS12000036","popS12000013","popS12000014","popS08000018","popS12000015","popS08000019","popS12000046","GClyde_deal","popS08000020","popS08000021","popS08000022","popS12000017","popS12000018","Inver_deal","popS08000023","popS08000024","popS12000019","popS12000020","popS12000021","popS12000044","popS08000025","popS12000023","popS12000024","popS12000038","popS00000001","popS12000026","popS08000026","popS12000027","popS12000028","popS12000029","popS12000030","Tay_deal","popS08000027","popS12000039","popS12000040","popS08000028",2]
["All quintiles","16+ Males and Females",{"$f":"SUM(C7:C11)","v":20167.641958358927},40258.425795576142,20090.783837217219,10238.216090036549,8003.498314961942,37698.872699421743,10009.878289102064,13259.265087959342,5040.857711658593,14206.187098062041,14206.187098062041,15485.923415941703,12580.151279293332,8151.1761494550337,8965.5391480649268,6902.3834207356958,123626.98580630691,44983.155817770865,2632.8303131864436,14819.001250027464,34733.838086202071,34733.838086202071,28078.26633798681,69403.95650738744,185953.45441425816,48178.354434253677,120001.73108945668,28955.152333003942,20951.654018042005,8356.8106414528029,20951.654018042005,65951.723324801438,{"$f":"SUM(AI7:AI11)","v":78883.269431002787},8204.613768359075,7919.9286386775248,14323.027946552891,35146.909223781608,1838.7113562141033,1838.7113562141033,12539.606554021648,17424.621329905269,511311.09606680617,10009.878289102064,1878.535214112524,1878.535214112524,10795.69347357552,30804.814101019834,8218.4073763007491,72997.58414620196,38263.746059999903,9762.783040520435,16729.960696807913,2632.8303131864436,3]
["Q1 and Q2","16+ Males and Females",{"$f":"SUM(C7:C8)","v":7557.9826093807051},10351.530147561447,2793.5475381807423,3175.5126329740765,2476.2410874385218,24528.642650540845,2816.8417377045398,6103.9850976953403,3013.6684074163686,6106.982391303538,6106.982391303538,10190.170075875885,8473.6937238730497,2549.5885232150754,3402.4545749054878,1661.075871239244,53589.566619269419,16962.968593371123,700.54438235345185,7829.8226559184677,17386.632265105989,17386.632265105989,13933.807753613808,50391.431712956561,118809.03690526925,11977.095934540697,77637.467973006933,9301.7492403977376,6825.5081529592162,5517.525863109493,6825.5081529592162,41171.568932262307,{"$f":"SUM(AI7:AI8)","v":33386.092616458889},4388.444204116302,1625.5657869792526,10124.343551614433,23838.037378093773,333.21057724024217,333.21057724024217,2862.4217554022503,10129.683804479764,255586.85550085048,2816.8417377045398,78.114582069268238,78.114582069268238,5930.6053750533629,17333.531554168538,3090.3166902789708,33614.736729358207,16228.104464252212,7388.1621980067894,8632.225244065974,700.54438235345185,4]
["SIMD Q1 (most deprived)","16+ Males and Females",{"$f":"SUM(C12,C17)","v":2608.9404930489427},3332.539224132267,723.59873108332442,1102.4491497486583,859.20708430481602,14910.682403887353,831.35643238066552,3246.2196286052013,1616.6367915023163,1623.3713601451341,1623.3713601451341,7086.0374919400356,5069.2401794472116,671.7122054622198,474.30991469874141,807.64310407752896,25074.378693717434,9316.3590552070473,0,3079.0011385234375,9548.1108482410655,9548.1108482410655,6325.2207671286396,39124.920077024093,78786.052862965968,3435.6817674936756,56326.923324399148,3011.039364263358,2151.8322799585421,4439.4133904512855,2151.8322799585421,22459.129538566809,{"$f":"SUM(AI12,AI17)","v":14694.911413095706},1148.2578535909306,103.14254336140857,7242.3723766975672,13979.589201972129,0,0,1094.4520615837132,6690.6389298520407,142449.36592287396,831.35643238066552,0,0,2599.0698477425731,8479.5403365946877,1629.5828371028845,18831.049551513475,9282.938703272408,4592.5956175319716,3755.984589598982,0,5]
["SIMD Q2",null,{"$f":"SUM(C13,C18)","v":4949.0421163317624},7018.990923429179,2069.948807097418,2073.0634832254182,1617.0340031337059,9617.9602466534907,1985.4853053238744,2857.765469090139,1397.0316159140523,4483.6110311584043,4483.6110311584043,3104.1325839358492,3404.4535444258372,1877.8763177528556,2928.1446602067463,853.43276716171488,28515.187925551985,7646.6095381640753,700.54438235345185,4750.8215173950302,7838.5214168649254,7838.5214168649254,7608.5869864851684,11266.511635932471,40022.984042303287,8541.4141670470217,21310.544648607789,6290.7098761343805,4673.6758730006741,1078.1124726582075,4673.6758730006741,18712.439393695502,{"$f":"SUM(AI13,AI18)","v":18691.181203363183},3240.1863505253714,1522.423243617844,2881.971174916865,9858.4481761216466,333.21057724024217,333.21057724024217,1767.9696938185371,3439.0448746277234,113137.48957797651,1985.4853053238744,78.114582069268238,78.114582069268238,3331.5355273107898,8853.99121757385,1460.7338531760861,14783.687177844731,6945.165760979804,2795.5665804748178,4876.2406544669921,700.54438235345185,6]
["SIMD Q3",null,{"$f":"SUM(C14,C19)","v":3718.516221337537},8759.2992983218592,5040.7830769843231,3696.2845337199597,3459.8836411779052,6236.7039153592195,3680.5554632283292,2460.8322993413635,932.45466757741633,5350.6002684445666,5350.6002684445666,1893.5841388970334,2042.4790423191776,647.5483982561218,2149.201318132807,973.42675699221832,27654.603020360766,8226.5272883995185,1818.4186600120001,2855.9291930225959,7798.0096467005524,7798.0096467005524,5316.7614923639612,9169.4617436304743,28475.873780193433,11351.369316388384,16412.262889888298,10654.087928317613,7194.204287139707,1221.192332857639,7194.204287139707,12063.610890305132,{"$f":"SUM(AI14,AI19)","v":16176.037910431885},1999.6779741787354,2592.0700180665258,1870.3174140912861,6017.8823209655529,661.31202596728588,661.31202596728588,3492.1000190006962,3071.2019910650051,107323.62274348382,3680.5554632283292,721.92364445891076,721.92364445891076,2323.9074589487554,6045.7285693395825,1528.3776317639472,16879.97833831824,9081.9686916176906,1329.4316670868398,3800.6313297208244,1818.4186600120001,7]
["SIMD Q4",null,{"$f":"SUM(C15,C20)","v":3159.8061023021528},9989.8263068253509,6830.0202045231981,2077.0386663552658,1513.1121589568547,3846.3163578552058,2853.0675079796183,2593.0552384570092,665.35845111431513,1906.1093569528439,1906.1093569528439,1984.6193115224876,1195.5497937460964,1389.8451345605258,2353.3850045880195,988.24267107250944,19581.974936525075,6439.957049167866,113.86727082099148,2229.9816022575556,4589.069995338903,4589.069995338903,4823.0368407145652,5783.4267880364259,20393.264880418566,12631.282028969657,12271.372884696035,7069.4152783772897,5556.3031194204359,1028.1731916029264,5556.3031194204359,8121.8919957225307,{"$f":"SUM(AI15,AI20)","v":12139.837433206554},984.71022313493563,2641.4557221443056,1554.1476360018646,3422.2237437169006,742.3009762349152,742.3009762349152,4489.0943923032073,2259.8263978174873,80736.817284634424,2853.0675079796183,1078.4969875843451,1078.4969875843451,1096.618928107245,4699.6682520056293,1927.696787342695,13139.822365519862,8550.7523701809623,821.85870160615889,2361.7851563157315,113.86727082099148,8]
["SIMD Q5 (least deprived)",null,{"$f":"SUM(C16,C21)","v":5731.3370253385319},11157.770042867491,5426.4330175289579,1289.3802569872478,554.26142738865985,3087.2097756664707,659.41358018957476,2101.3924524656277,429.37618555049266,842.49508136109205,842.49508136109205,1417.5498896462971,868.42871935500762,3564.1940934233103,1060.4982504386132,3279.6381214317248,22800.841230151655,13353.702886832358,0,1903.2677988288451,4960.126179056625,4960.126179056625,4004.6602512944728,4059.6362627639755,18275.278848376875,12218.607154354931,13680.627341865415,1929.8998859113062,1375.6384585226463,589.91925388274376,1375.6384585226463,4594.651506511459,{"$f":"SUM(AI16,AI21)","v":17181.301470905451},831.78136692910107,1060.8371114874406,774.21934484530755,1868.7657810053752,101.88777677166013,101.88777677166013,1695.9903873154944,1963.9091365430136,67663.800537837495,659.41358018957476,0,0,1444.5617114661559,2725.8857255060839,1672.0162669151352,9363.0467130056641,4402.9205339490391,223.33047382064532,1935.3189667053844,0,9]
["SIMD Q1 (most deprived)","16+ Females",{"$f":"SUM(C60:C78)","v":1443.9666531886439},1833.1775929718801,389.21093978323614,623.53390245666003,482.81513710787732,8647.9875521655613,469.74009062125612,1881.8205829853475,923.39673582893988,931.33662275238828,931.33662275238828,4057.8078316067822,2921.9148358093912,389.63682673905015,276.35213483244951,478.63645196066568,14280.127138971746,5280.4967380552571,0,1736.8850028527552,5445.4387235217464,5445.4387235217464,3618.7055858381027,22238.909128718409,44999.272942086667,1894.5946189941287,32171.06859406293,1703.5831429717559,1220.7680058638789,2572.3049159148263,1220.7680058638789,12828.204348023744,{"$f":"SUM(AI60:AI78)","v":8364.9483248287452},660.15322799673277,61.417026022248308,4235.6187606793164,7950.9384704185841,0,0,607.4974420966887,3793.7880806492926,81364.446779940496,469.74009062125612,0,0,1490.453955676852,4877.265877605164,958.42384715640753,10734.27789968188,5288.8391761601324,2697.7931900806784,2147.9462239443037,0,10]
["SIMD Q2",null,{"$f":"SUM(C98:C116)","v":2802.2485104299308},3978.3927123763024,1176.144201946372,1193.7871822101017,935.35268255109077,5575.590813404574,1127.7573886037196,1638.593802618303,801.32083124670146,2564.094878609395,2564.094878609395,1779.0878524006594,1955.4508240441498,1100.407107087784,1716.4274413341125,498.02088603465944,16393.188510472355,4328.1365127923855,390.79268288201973,2719.9403650858981,4520.9140373259943,4520.9140373259943,4358.5341677042015,6368.4420681520342,23074.660661292215,4857.8638678990401,12234.661638033585,3631.6867542645596,2696.3340717134683,630.60441927754971,2696.3340717134683,10839.999023258633,{"$f":"SUM(AI98:AI116)","v":10744.51708454264},1897.5579074145548,879.4711555227392,1684.4467111130784,5731.5025238549661,182.43304805065588,182.43304805065588,974.17025079082964,2018.9595805801102,65016.156539313313,1127.7573886037196,40.265869332704575,40.265869332704575,1935.6932782473475,5108.4964994036645,837.27297137160144,8467.9593227275855,3947.0452854015903,1618.2275769014493,2802.395223001588,390.79268288201973,11]
["SIMD Q3",null,{"$f":"SUM(C136:C154)","v":1969.2593313006237},4777.6715584247122,2808.4122271240899,2068.6260865345625,1959.7006506531102,3545.7888084025881,2081.387104483842,1401.0598318087259,529.17986326291475,3024.4673547481348,3024.4673547481348,1073.1006403736992,1129.2828501230963,375.54070806294732,1226.1421991614122,564.96004855069611,15596.081153556714,4601.3725564572605,1013.3590763480236,1607.1230312995449,4435.6569137665838,4435.6569137665838,3008.1828631082717,5139.4597061575669,16198.588394437134,6246.4421944876967,9299.6453929956497,5987.3786924374035,4027.6780417842929,699.3079054364083,4027.6780417842929,6898.943001441482,{"$f":"SUM(AI136:AI154)","v":9079.0371353062892},1143.2600961529722,1468.7706360629852,1077.8523489220213,3442.7202919920196,367.85532744192881,367.85532744192881,1964.1504660320636,1761.6298671016491,60482.547330505346,2081.387104483842,388.52627259712591,388.52627259712591,1338.6536093574707,3456.2227094494638,871.87996854581081,9541.5341067069076,5105.8771929403265,758.74715768638407,2108.2622835346438,1013.3590763480236,12]
["SIMD Q4",null,{"$f":"SUM(C174:C192)","v":1744.7123573117897},5523.1787988975912,3778.4664415858019,1164.2671414645931,846.19269997556682,2194.5749637893168,1631.3678714670684,1445.6845115702183,344.57567055707352,1070.6492428578342,1070.6492428578342,1148.1954365951431,676.38239038766494,795.40721799799314,1360.9769684075493,574.19082785451167,11071.164196813295,3613.9513481515792,65.626205340017577,1238.2863507302789,2568.6338188002414,2568.6338188002414,2683.9708623004967,3251.0799320587366,11465.787090875603,6980.51167095869,6938.1748860958915,3929.9619139137844,3083.7692139382189,577.39432489318779,3083.7692139382189,4527.612204779708,{"$f":"SUM(AI174:AI192)","v":6871.1625065459857},567.10196695608988,1457.3328720610982,888.00364953426561,1886.1122987550248,412.69081801633376,412.69081801633376,2504.8260972166026,1272.3980181672048,45281.273116000797,1631.3678714670684,589.04747585909467,589.04747585909467,630.18892386738662,2641.4999060246828,1101.1088410131451,7385.9224940765789,4817.2886752763388,467.70456512425676,1329.1322230307653,65.626205340017577,13]
["SIMD Q5 (least deprived)",null,{"$f":"SUM(C212:C230)","v":3194.5071695089914},6195.6756099000431,3001.1684403910504,729.78119159381572,229.68796168105061,1763.1005386048298,375.93326421638818,1201.1124472306956,245.37476150869961,485.83169390194575,485.83169390194575,810.07465816769025,491.84713874967866,2008.8135863561733,604.5683600104777,1890.5528021948098,12953.556275657811,7610.4775701934432,0,1065.4679307036629,2823.1036398737619,2823.1036398737619,2266.5803779343582,2301.3350213135627,10385.155738310919,6751.4667851806089,7783.8974070552667,1021.5615776817893,791.87361600073905,343.04817712767118,791.87361600073905,2601.2583312556535,{"$f":"SUM(AI212:AI230)","v":9754.5193715676578},461.33128013607836,555.79117528056611,436.5589930919233,1057.303004710833,56.008044381119404,56.008044381119404,979.44269941942832,1113.9569401720078,38202.559580834313,375.93326421638818,0,0,834.69440676322802,1543.9553265448208,955.73768572199594,5342.4021890546956,2519.2985491809341,126.19087989104115,1078.1421612276622,0,14]
["SIMD Q1 (most deprived)","16+ Males",{"$f":"SUM(C79:C97)","v":1164.9738398602985},1499.3616311603871,334.38779130008828,478.91524729199824,376.3919471969387,6262.6948517217916,361.61634175940941,1364.3990456198537,693.24005567337645,692.0347373927458,692.0347373927458,3028.2296603332534,2147.32534363782,282.07537872316959,197.95777986629187,329.00665211686322,10794.251554745688,4035.8623171517897,0,1342.1161356706823,4102.6721247193191,4102.6721247193191,2706.5151812905365,16886.010948305684,33786.779920879293,1541.0871484995471,24155.854730336221,1307.4562212916019,931.06427409466335,1867.1084745364594,931.06427409466335,9630.9251905430647,{"$f":"SUM(AI79:AI97)","v":6329.9630882669599},488.10462559419784,41.72551733916027,3006.7536160182513,6028.6507315535455,0,0,486.9546194870245,2896.8508492027486,61084.919142933468,361.61634175940941,0,0,1108.6158920657208,3602.2744589895228,671.15898994647694,8096.7716518315947,3994.0995271122756,1894.8024274512929,1608.0383656546783,0,15]
["SIMD Q2",null,{"$f":"SUM(C117:C135)","v":2146.7936059018311},3040.5982110528766,893.80460515104608,879.27630101531645,681.68132058261506,4042.3694332489163,857.72791672015478,1219.1716664718358,595.71078466735082,1919.5161525490093,1919.5161525490093,1325.0447315351898,1449.0027203816876,777.46921066507161,1211.717218872634,355.41188112705544,12121.99941507963,3318.4730253716903,309.75169947143212,2030.8811523091322,3317.6073795389316,3317.6073795389316,3250.0528187809668,4898.0695677804379,16948.323381011069,3683.5502991479816,9075.8830105742036,2659.0231218698209,1977.341801287206,447.50805338065766,1977.341801287206,7872.4403704368669,{"$f":"SUM(AI117:AI135)","v":7946.6641188205431},1342.6284431108163,642.95208809510484,1197.5244638037866,4126.9456522666806,150.77752918958632,150.77752918958632,793.79944302770753,1420.0852940476129,48121.333038663193,857.72791672015478,37.848712736563662,37.848712736563662,1395.8422490634423,3745.4947181701859,623.46088180448464,6315.7278551171448,2998.1204755782132,1177.3390035733682,2073.8454314654036,309.75169947143212,16]
["SIMD Q3",null,{"$f":"SUM(C155:C173)","v":1749.2568900369133},3981.6277398971465,2232.3708498602332,1627.6584471853969,1500.1829905247951,2690.915106956631,1599.168358744487,1059.7724675326376,403.27480431450158,2326.1329136964318,2326.1329136964318,820.48349852333411,913.19619219608114,272.00769019317448,923.05911897139492,408.46670844152226,12058.521866804052,3625.1547319422584,805.0595836639767,1248.806161723051,3362.3527329339686,3362.3527329339686,2308.5786292556891,4030.002037472907,12277.285385756297,5104.9271219006878,7112.6174968926471,4666.7092358802092,3166.5262453554142,521.88442742123073,3166.5262453554142,5164.6678888636507,{"$f":"SUM(AI155:AI173)","v":7097.0007751255953},856.41787802576312,1123.2993820035406,792.46506516926479,2575.1620289735333,293.45669852535707,293.45669852535707,1527.9495529686324,1309.572123963356,46841.075412978476,1599.168358744487,333.3973718617849,333.3973718617849,985.25384959128462,2589.5058598901182,656.49766321813627,7338.4442316113336,3976.0914986773637,570.68450940045557,1692.3690461861804,805.0595836639767,17]
["SIMD Q4",null,{"$f":"SUM(C193:C211)","v":1415.0937449903629},4466.6475079277589,3051.5537629373966,912.77152489067282,666.91945898128802,1651.7413940658889,1221.6996365125499,1147.3707268867911,320.78278055724161,835.46011409500977,835.46011409500977,836.42387492734451,519.16740335843144,594.43791656253256,992.40803618047016,414.05184321799771,8510.8107397117801,2826.0057010162868,48.241065480973901,991.6952515272767,2020.4361765386618,2020.4361765386618,2139.065978414068,2532.3468559776893,8927.4777895429634,5650.7703580109674,5333.1979986001434,3139.4533644635057,2472.5339054822175,450.77886670973862,2472.5339054822175,3594.2797909428227,{"$f":"SUM(AI193:AI211)","v":5268.6749266605675},417.60825617884569,1184.1228500832076,666.14398646759912,1536.111444961876,329.61015821858149,329.61015821858149,1984.2682950866044,987.4283796502823,35455.54416863362,1221.6996365125499,489.44951172525049,489.44951172525049,466.43000423985842,2058.1683459809469,826.58794632954982,5753.8998714432828,3733.463694904623,354.15413648190213,1032.6529332849661,48.241065480973901,18]
["SIMD Q5 (least deprived)",null,{"$f":"SUM(C231:C249)","v":2536.8298558295405},4962.0944329674485,2425.2645771379071,559.59906539343206,324.57346570760922,1324.1092370616409,283.48031597318663,900.28000523493222,184.00142404179303,356.66338745914629,356.66338745914629,607.47523147860682,376.5815806053289,1555.3805070671369,455.92989042813559,1389.085319236915,9847.2849544938435,5743.2253166389137,0,837.79986812518212,2137.0225391828631,2137.0225391828631,1738.0798733601143,1758.3012414504126,7890.1231100659534,5467.1403691743226,5896.7299348101478,908.33830822951677,583.76484252190721,246.87107675507264,583.76484252190721,1993.3931752558053,{"$f":"SUM(AI231:AI249)","v":7426.7820993377927},370.45008679302265,505.04593620687439,337.66035175338425,811.4627762945421,45.879732390540724,45.879732390540724,716.54768789606612,849.95219637100593,29461.240957003189,283.48031597318663,0,0,609.86730470292775,1181.9303989612633,716.2785811931393,4020.6445239509676,1883.6219847681048,97.139593929604175,857.17680547772204,0,19]
["All quintiles","Female 0-4",{"$f":"SUM(C60,C98,C136,C174,C212)","v":0},0,0,0,0,0,0,0,0,0,0,0,0,0,0,0,0,0,0,0,0,0,0,0,0,0,0,0,0,0,0,0,{"$f":"SUM(AI60,AI98,AI136,AI174,AI212)","v":0},0,0,0,0,0,0,0,0,0,0,0,0,0,0,0,0,0,0,0,0,20]
[null,"Female 5-9",{"$f":"SUM(C61,C99,C137,C175,C213)","v":0},0,0,0,0,0,0,0,0,0,0,0,0,0,0,0,0,0,0,0,0,0,0,0,0,0,0,0,0,0,0,0,{"$f":"SUM(AI61,AI99,AI137,AI175,AI213)","v":0},0,0,0,0,0,0,0,0,0,0,0,0,0,0,0,0,0,0,0,0,21]
[null,"Female 10-15",{"$f":"SUM(C62,C100,C138,C176,C214)","v":0},0,0,0,0,0,0,0,0,0,0,0,0,0,0,0,0,0,0,0,0,0,0,0,0,0,0,0,0,0,0,0,{"$f":"SUM(AI62,AI100,AI138,AI176,AI214)","v":0},0,0,0,0,0,0,0,0,0,0,0,0,0,0,0,0,0,0,0,0,22]
[null,"Female 16-19",{"$f":"SUM(C63,C101,C139,C177,C215)","v":602.78390960129093},1220.359848701552,617.57593910026094,317.34923169427492,240.87906229005696,1197.7528782373679,317.58141194702819,490.78245222621194,157.60075443893285,411.86291617539121,411.86291617539121,571.31732620466823,390.74464516665012,250.76732892980255,288.357411856986,250.94712343433474,3856.8606886718317,1278.1625945265432,71.459407380372866,431.04820699988329,1150.2273546216838,1150.2273546216838,921.83065922609535,2157.2815731413511,5928.220678662944,1471.4341805645245,3773.5881332893305,874.64434021041393,633.76527792035699,264.12519094729743,633.76527792035699,2154.6325453736131,{"$f":"SUM(AI63,AI101,AI139,AI177,AI215)","v":2389.05192210312},265.53098121407663,251.07433186297266,479.53496978792168,1195.6471093220157,50.194307181618058,50.194307181618058,397.79701035673588,545.46776927755582,16138.02445119426,317.58141194702819,67.300826628021468,67.300826628021468,327.4732632827961,958.98543605159716,333.18169778727912,2436.6909228773625,1286.4635682556793,304.99914755898897,557.00093450551378,71.459407380372866,23]
[null,"Female 20-24",{"$f":"SUM(C64,C102,C140,C178,C216)","v":1355.9568742007734},2107.51199938532,751.55512518454589,403.26478812438643,259.29223268397487,1603.3426234550263,370.7612486512329,718.46201926542699,209.23075083002678,526.50978066479388,526.50978066479388,1065.5674859589603,539.90508282756105,319.09599197641592,396.47813126893402,281.52053075577226,6381.9832877283288,2982.0412306459016,78.078934172010619,599.98236623741502,1604.4027261176093,1604.4027261176093,1318.4443855028419,4343.3385151343737,9377.2542185259717,2420.275940148942,6586.8814704165279,1020.6453315544796,761.35309887050494,380.29097942268646,761.35309887050494,2790.3727481094434,{"$f":"SUM(AI64,AI102,AI140,AI178,AI216)","v":4406.8193129594856},330.59099281634229,312.76394076362254,642.54537458123662,1517.8375014645053,67.744605657652031,67.744605657652031,497.65227701569654,810.85811183065005,24833.118424308803,370.7612486512329,72.354765799713221,72.354765799713221,420.89216604622862,1272.5352466449385,509.23126843540024,3570.8872772166524,1966.4845510990431,451.77734129663031,697.70895822830778,78.078934172010619,24]
[null,"Female 25-29",{"$f":"SUM(C65,C103,C141,C179,C217)","v":1417.580262117363},2223.9121165896354,806.33185447227243,387.54435438288863,257.21258215343255,1604.1496262435294,333.29179643005062,643.5574133952764,209.50089725387795,532.42031504112254,532.42031504112254,1065.2787101838094,566.72070297986374,285.53868407589266,355.00555765993352,259.77338421392744,6863.5476417813343,3481.8588079899237,85.750006271132193,632.21818084398444,1579.0970671486602,1579.0970671486602,1275.7755942392607,5116.8616002922554,10252.096830938031,2546.0274399767595,7358.7997850774736,1079.325077264336,822.1124951109033,373.10906778207675,822.1124951109033,2893.2970458605578,{"$f":"SUM(AI65,AI103,AI141,AI179,AI217)","v":4951.1587782026236},354.74846400380761,322.11532338712419,626.47699032275762,1616.532807581041,75.207433472389624,75.207433472389624,510.72035015159327,858.03968946704094,26367.049139782055,333.29179643005062,89.205759835868207,89.205759835868207,410.95193294090797,1276.7642382795168,434.05651614139856,3542.6404818669516,1963.5434147182912,465.47735924628012,759.5459485489589,85.750006271132193,25]
[null,"Female 30-34",{"$f":"SUM(C66,C104,C142,C180,C218)","v":1180.7845149059472},2137.507591181793,956.72307627584587,430.7766987958629,267.98108684137748,1538.5647127344405,375.80736451591554,552.35517001470316,213.42596330232095,513.72328983631792,513.72328983631792,826.94804913016128,542.61181796584412,275.82866693564733,373.3577013950204,253.850947387167,6426.5534724844701,2950.4968576566421,93.225214580114923,694.96838292282564,1514.0155266392364,1514.0155266392364,1247.3235529375288,4227.9818469158718,9533.1903977233451,2501.6731453372918,6412.7458616351059,1179.4758602582194,911.49477341684201,361.78101416271141,911.49477341684201,3120.4445360882373,{"$f":"SUM(AI66,AI104,AI142,AI180,AI218)","v":4536.7305813293178},377.08518958214501,364.16555415549857,586.4227011854656,1712.3899311247342,75.962954354761607,75.962954354761607,564.37313289206838,816.08948169160453,25013.988303815408,375.80736451591554,82.197822750824486,82.197822750824486,409.53019358313065,1408.0546049635036,338.92920671238221,3336.1134074573292,1822.0978808180926,477.2139045421041,835.79083269551029,93.225214580114923,26]
[null,"Female 35-39",{"$f":"SUM(C67,C105,C143,C181,C219)","v":897.35149875367756},1871.8567018067547,974.50520305307725,431.45264522439982,284.35213931330014,1504.9734279082518,369.36387760342939,554.69797265092404,216.7624403890438,490.69253948009333,490.69253948009333,660.2409937015226,520.66241052560099,332.92301607491652,395.28482151783015,319.60741638185334,5730.6569852806651,2305.9028997478736,105.78376326405105,666.51714253409546,1500.4690420648296,1500.4690420648296,1221.2151151850194,3367.0941404586438,8593.0904814197347,2190.3055815869916,5567.4411429044603,1168.1993011663217,883.84716185302159,354.63978409506211,883.84716185302159,3025.6493385152744,{"$f":"SUM(AI67,AI105,AI143,AI181,AI219)","v":3860.8240656124062},375.92058466167873,318.44887978023655,576.94460399393427,1644.846154500407,72.747955139168482,72.747955139168482,510.22658628860552,771.75285184189079,22768.970702482617,369.36387760342939,89.385326837791467,89.385326837791467,407.36641338871624,1380.8031840148676,337.93553226188016,3102.3892672793572,1601.9202252145278,421.4239340520931,783.71575968502361,105.78376326405105,27]
[null,"Female 40-44",{"$f":"SUM(C68,C106,C144,C182,C220)","v":811.26553833612365},1850.7624309456892,1039.4968926095657,475.1503896071664,345.85039546981938,1733.8044746103478,478.09592712473898,618.06155487414765,243.35533565399578,577.32827395681966,577.32827395681966,585.72764334819738,585.88907613351353,371.43586031858376,425.22295471251311,345.33509299715024,5702.1894505353648,1967.7544140180203,116.33052985023784,751.73449865139423,1593.4330290105797,1593.4330290105797,1369.7960535255418,2971.6812483778567,8477.9990428712899,2236.6418569038788,5310.6744932435231,1324.1405820749685,978.29018660514907,381.17787122960431,978.29018660514907,3167.3245496277673,{"$f":"SUM(AI68,AI106,AI144,AI182,AI220)","v":3630.6604944000464},375.09646751663331,385.87942595818953,684.91423581347374,1720.9654625499843,85.885126884625024,85.885126884625024,574.30587294539896,804.56960463850146,23351.346854956901,478.09592712473898,92.047557843064084,92.047557843064084,463.00116266336056,1446.359087077783,374.70621922015181,3228.6169349113425,1635.1839059007627,436.47481568182661,862.58665815287941,116.33052985023784,28]
[null,"Female 45-49",{"$f":"SUM(C69,C107,C145,C183,C221)","v":829.09060943330587},2047.2770098357955,1218.1864004024899,555.67025942760097,429.83535340976323,2134.0675270390689,599.78525835884238,754.32202570969923,294.73941178131321,774.10573252529082,774.10573252529082,674.67723225139616,734.1487341059609,471.57330357098283,541.10730919090031,417.43350003226055,6449.1544164491715,1962.0786030169356,140.49164255071867,824.34215402305063,1903.9731413282575,1903.9731413282575,1578.66417973275,3416.5986863182029,10124.831571228606,2492.7353311587931,6388.4035443614794,1614.2476828780461,1184.4123294682829,501.2109379992732,1184.4123294682829,3736.4280268671282,{"$f":"SUM(AI69,AI107,AI145,AI183,AI221)","v":3945.3960167620712},457.80668044506598,445.45832132299699,827.44995037825402,1994.7499585437531,104.23789396308197,104.23789396308197,718.37545011809516,1017.3014737954535,27471.040489297957,599.78525835884238,109.78156997533655,109.78156997533655,572.46884255485418,1741.6780683233751,459.58261392838602,3852.69608312535,1948.7229417970923,564.2856426453061,984.4034241091698,140.49164255071867,29]
[null,"Female 50-54",{"$f":"SUM(C70,C108,C146,C184,C222)","v":883.13685095793198},2102.9578896438334,1219.8210386859016,590.4622780885295,490.84479668322388,2231.9183995968206,623.99074726111041,760.2872450902903,292.49102775421994,841.6621233753458,841.6621233753458,771.25426607051782,741.61650073988062,492.54657534063551,515.55364009669358,424.62149062199705,6454.3368689578001,1934.0576147838858,148.22964044158627,823.633222772566,1973.694710209611,1973.694710209611,1583.9204678628562,3567.6400496907122,10411.162240561142,2563.5827390276672,6618.0311369603996,1752.864597432552,1262.0198007493282,524.48614077308639,1262.0198007493282,3793.1311036007419,{"$f":"SUM(AI70,AI108,AI146,AI184,AI222)","v":3856.6514114870788},454.22977332140499,460.62484938383398,872.57242944179961,2006.0728070029902,112.35838275931913,112.35838275931913,752.48225361233392,1020.5451033015737,28326.572989006454,623.99074726111041,112.338731219984,112.338731219984,617.72946941514033,1787.0582965977512,467.79621733607041,4087.8935079809926,2114.1987977713816,588.19177723239477,952.8103832850943,148.22964044158627,30]
[null,"Female 55-59",{"$f":"SUM(C71,C109,C147,C185,C223)","v":671.24944935201961},1416.7388015606302,745.4893522086104,423.83033674266153,348.92641224703237,1635.3615484593572,430.11347356808085,516.62917705539394,210.97882853175363,635.876322253681,635.876322253681,553.13866048140505,526.34878954686417,390.46088547829993,397.2818045653899,294.70364263137697,4686.5858687497457,1407.1571981055931,109.47744421423761,603.14668098837649,1403.9739573819725,1403.9739573819725,1119.7758580437705,2348.7618902571858,7322.5531737408555,1719.1241626342705,4533.9559238993352,1232.9156687413385,883.98925649430623,360.75957824308966,883.98925649430623,2788.5972498415208,{"$f":"SUM(AI71,AI109,AI147,AI185,AI223)","v":2852.4984377996925},375.10388847093446,302.38536107364047,607.0136358425226,1437.3289395252152,70.884719383064962,70.884719383064962,473.03787858990506,707.66845833682476,20042.297686894006,430.11347356808085,59.736044859711626,59.736044859711626,501.99912306997044,1351.2683103163058,305.65034852364028,2853.9808331959443,1450.0068758139714,431.60146895255809,672.9555466577749,109.47744421423761,31]
[null,"Female 60-64",{"$f":"SUM(C72,C110,C148,C186,C224)","v":576.15712349783053},1265.4574170712449,689.30029357341425,378.17895419048023,325.94561890912649,1477.5350306308337,390.45557188462692,443.49286924027467,185.01790578446,618.11329455590692,618.11329455590692,444.20030075838082,463.71586749632144,323.60416782768812,334.7401238013465,257.1370791780335,4002.4885655815133,1151.6837749181598,111.98132115827529,536.28142766975395,1249.1803149152943,1249.1803149152943,979.77429691002851,1825.5802062215664,6072.7151520433963,1548.2408996046377,3640.2037055261903,1143.6802680626167,817.73464915349041,290.02012008621239,817.73464915349041,2432.5114465172064,{"$f":"SUM(AI72,AI110,AI148,AI186,AI224)","v":2362.8526787815927},310.96411858822432,282.78348253339283,553.41121437611696,1250.4595990523783,66.118278074420402,66.118278074420402,442.14368106843426,576.82116692412887,17344.335793372644,390.45557188462692,59.165750733718738,59.165750733718738,460.40794875839532,1182.0518474648277,258.47496345581465,2513.70325093259,1264.5229360172953,367.04096528856093,565.46466147386172,111.98132115827529,32]
[null,"Female 65-69",{"$f":"SUM(C73,C111,C149,C187,C225)","v":552.15221303136593},1228.7857838547202,676.63357082335415,406.44492980046613,355.74655560824249,1503.466728360132,421.2140764961236,461.05352489844302,200.98046507278858,620.31788948415078,620.31788948415078,460.94384558021562,471.52310525432893,319.08472331056407,336.12813906166605,247.83112549260761,4114.4005742341233,1143.5891368987095,112.75568266297925,544.95221370043953,1311.5028778421545,1311.5028778421545,1006.0057385988825,1606.9102914892101,5701.8699622388067,1516.6966030714298,3404.5494430158483,1165.2940847686555,809.54752916041298,295.51004783437907,809.54752916041298,2297.3205192229589,{"$f":"SUM(AI73,AI111,AI149,AI187,AI225)","v":2381.6836198958449},334.84034957320023,287.9108192167098,564.88627865122601,1184.7781002934503,69.588577347472821,69.588577347472821,452.74333330804643,585.97341647335827,17184.492607709784,421.2140764961236,53.964658254425366,53.964658254425366,467.05734445457699,1112.542418929509,260.07305982565441,2631.6349865308825,1320.1321086887281,349.23983841572914,567.12599436226924,112.75568266297925,33]
[null,"Female 70-74",{"$f":"SUM(C74,C112,C150,C188,C226)","v":400.83148323138977},899.29491475351665,498.46343152212688,314.74900836351048,276.45700899383797,1200.1077049037174,328.03980687727653,365.18231678303306,152.10998119693772,522.4307960900278,522.4307960900278,349.03642761401181,368.52104112951076,261.96655292358912,266.94336300510685,195.05359079438676,3152.8818248283583,851.95539162251043,88.518259519661029,415.50296578678098,1010.7784002773475,1010.7784002773475,780.68528256981415,1260.7807629853173,4487.4850445353823,1129.5716248510284,2658.0757749548197,899.13835440254991,622.68134540871188,229.81819026252106,622.68134540871188,1829.4092695805625,{"$f":"SUM(AI74,AI112,AI150,AI188,AI226)","v":1814.0636176737341},247.5679113341692,230.27671009751174,444.23057707688929,955.27550465968147,60.959946520912673,60.959946520912673,367.02781612688818,455.85910868256582,13398.665829818208,328.03980687727653,46.073739492348096,46.073739492348096,387.35608669731727,874.13376492088082,213.07233558609539,2041.5916523817577,1030.8132521044104,254.5975693064396,447.59695171194755,88.518259519661029,34]
[null,"Female 75-79",{"$f":"SUM(C75,C113,C151,C189,C227)","v":365.62698674618633},752.46117618320409,386.8341894370177,255.7857547301378,231.9694607494946,959.5207978791168,263.96707368732439,289.32903258078971,110.62651614800453,397.33473646814315,397.33473646814315,315.31725641808782,297.86864004446346,227.5291743874613,223.62245936131191,167.33684536408475,2557.2869571624174,743.92681467334114,80.266867849685724,354.18779053247522,795.21805748399174,795.21805748399174,643.51682311326499,1182.6942874909232,3915.7205236366221,933.52933510717253,2399.3921839194995,731.91601375594132,499.94655300644678,197.40744654447889,499.94655300644678,1516.3283397171226,{"$f":"SUM(AI75,AI113,AI151,AI189,AI227)","v":1498.1018259911011},191.05939157120326,181.06815892396833,354.81751381319356,782.78580808161416,44.594451808288596,44.594451808288596,287.82300124327202,398.39158686032204,11156.115697349085,263.96707368732439,33.50317817693545,33.50317817693545,306.83464402145978,733.54253163550857,178.70251643278516,1654.1440698754895,858.92601239149769,226.03284327222914,339.49316038524466,80.266867849685724,35]
[null,"Female 80-84",{"$f":"SUM(C76,C114,C152,C190,C228)","v":305.73979779984495},589.25921119484372,283.51941339499876,194.70419100414904,170.43840788729682,722.90044119220499,193.01325862544363,206.45509235010067,74.17731843899044,314.17854895964058,314.17854895964058,266.37967295099941,221.01250260717077,176.04972546362666,170.86715564111577,146.77997747691677,1945.8204895628714,600.65658549483283,64.139861491443398,251.28532799621513,597.08272321419099,597.08272321419099,457.74042034631583,978.96454335373005,3086.9400027407632,733.51874615505574,1939.7869725276598,545.41874359026531,374.98033570296855,155.25462959292719,374.98033570296855,1147.1530302131036,{"$f":"SUM(AI76,AI114,AI152,AI190,AI228)","v":1155.7245077232369},147.01677172749223,144.25953496021202,264.90920182944433,577.43121410211961,30.677310535895529,30.677310535895529,227.72701575747266,315.4834894531171,8615.7388830744312,193.01325862544363,25.593438787352383,25.593438787352383,236.97873675558981,569.72181611098381,132.27777391111024,1285.893602926812,688.81087971262104,167.25460718734197,237.18399485979603,64.139861491443398,36]
[null,"Female 85-89",{"$f":"SUM(C77,C115,C153,C191,C229)","v":198.26428124976024},379.93692578655453,181.67264453679434,128.99329091322269,103.39140205576903,418.57714459200332,117.95539653277861,120.0650873047332,46.796610832925872,191.0253303892238,191.0253303892238,165.84438128087632,128.42721691762935,106.82239444784588,106.26086379781431,90.38986790599273,1237.6257178258545,421.85578169148363,36.134223382340565,148.9981772072918,378.9447151772282,378.9447151772282,269.06326451202506,588.80180661791724,1832.4621552439971,465.9744107499684,1169.0453080216539,344.89836886110243,241.50696680533338,97.828488361522957,241.50696680533338,663.41684722234311,{"$f":"SUM(AI77,AI115,AI153,AI191,AI229)","v":740.72560611584765},85.504652074683491,86.037484963413874,147.14647202525006,320.99738422774612,19.655390015154271,19.655390015154271,157.87309199907668,178.61610095271897,5283.1822931321449,117.95539653277861,15.055523367299429,15.055523367299429,143.00345564912391,342.4194629945971,73.268476471807304,831.65547937040401,452.71076419317569,106.58664973565595,127.10430855186615,36.134223382340565,37]
[null,"Female 90+",{"$f":"SUM(C78,C116,C154,C192,C230)","v":106.72262852516798},214.01645407544225,107.29382555027428,85.638393169995808,64.626616672947279,260.99961052465324,72.749429828271076,73.538222773842165,26.053654994736902,108.79790361374924,108.79790361374924,92.394167210764962,75.161905672816602,64.578395181996299,58.255666813439035,54.039401927481038,731.7444656380718,251.25701985957056,27.155165781213441,88.903941805592154,227.75348985568016,227.75348985568016,162.44216457943432,338.25440765519755,1005.8733508916579,261.54714064175516,665.87303849001728,197.36780624748428,132.741189574537,55.240255312713757,132.741189574537,340.00031240164054,{"$f":"SUM(AI78,AI116,AI154,AI192,AI230)","v":431.24154595412051},46.33826175536614,47.53068656631293,89.204314221119617,150.47830769979146,12.169904792212481,12.169904792212481,95.778204081989998,97.295073142957875,3052.0432003995129,72.749429828271076,10.134923226530582,10.134923226530582,96.633390630717045,189.52200470184906,47.484567779105262,501.56425431843093,273.81076446275074,56.465505269670842,75.390597525744838,27.155165781213441,38]
[null,"Male 0-4",{"$f":"SUM(C79,C117,C155,C193,C231)","v":0},0,0,0,0,0,0,0,0,0,0,0,0,0,0,0,0,0,0,0,0,0,0,0,0,0,0,0,0,0,0,0,{"$f":"SUM(AI79,AI117,AI155,AI193,AI231)","v":0},0,0,0,0,0,0,0,0,0,0,0,0,0,0,0,0,0,0,0,0,39]
[null,"Male 5-9",{"$f":"SUM(C80,C118,C156,C194,C232)","v":0},0,0,0,0,0,0,0,0,0,0,0,0,0,0,0,0,0,0,0,0,0,0,0,0,0,0,0,0,0,0,0,{"$f":"SUM(AI80,AI118,AI156,AI194,AI232)","v":0},0,0,0,0,0,0,0,0,0,0,0,0,0,0,0,0,0,0,0,0,40]
[null,"Male 10-15",{"$f":"SUM(C81,C119,C157,C195,C233)","v":0},0,0,0,0,0,0,0,0,0,0,0,0,0,0,0,0,0,0,0,0,0,0,0,0,0,0,0,0,0,0,0,{"$f":"SUM(AI81,AI119,AI157,AI195,AI233)","v":0},0,0,0,0,0,0,0,0,0,0,0,0,0,0,0,0,0,0,0,0,41]
[null,"Male 16-19",{"$f":"SUM(C82,C120,C158,C196,C234)","v":447.82360949176211},1027.0690794099708,579.24546991820853,297.05226001412103,233.22905333864716,1037.0576783657425,267.22696344074984,412.72110202914848,147.6990286224204,359.74898636598721,359.74898636598721,418.32785895182803,344.84683685694074,233.32355437386212,237.21519096727909,220.99265371074793,3174.262471482481,1039.8669504850675,64.047869712117887,400.92735938413568,955.04409281327219,955.04409281327219,813.64846141328417,1829.1434420644973,5109.6036440399594,1258.8518439032941,3251.6574808140767,826.15589582170196,592.92684248305477,234.49656235143004,592.92684248305477,1857.9461632258826,{"$f":"SUM(AI82,AI120,AI158,AI196,AI234)","v":1951.9914152284587},209.13062399389534,231.78276449332319,412.93527909442128,1027.5011512462297,51.427092126225773,51.427092126225773,365.98809551620167,474.54359138768712,13833.977541742648,267.22696344074984,57.805384029704044,57.805384029704044,279.27556241438054,830.44501197965292,265.022073406728,2036.4123072954228,1081.368214482151,259.15767692585246,465.7786497822168,64.047869712117887,42]
[null,"Male 20-24",{"$f":"SUM(C83,C121,C159,C197,C235)","v":1002.629389211168},1698.4053098749866,695.77592066381862,357.64797823857725,305.98406505891404,1339.1150509548274,307.31988958433305,588.09325958841657,188.57720043562685,449.88536662419256,449.88536662419256,803.45278790814052,456.84471648610634,300.27041487953943,307.17874781288538,254.79744830267475,4851.1391031174135,2047.1828020579228,74.888177900248422,509.48749334777762,1300.0728465997515,1300.0728465997515,1097.5807529361941,3411.9755950170652,7711.1117654960517,1992.9487520496198,5303.4979442077747,983.4643644315006,677.48029937258661,315.57526504465693,677.48029937258661,2407.6138212882774,{"$f":"SUM(AI83,AI121,AI159,AI197,AI235)","v":3243.7463669333283},274.94601294330471,294.54344217463313,538.62817972224514,1332.476304773061,59.913387047872824,59.913387047872824,465.21212126430783,651.13202499617671,20262.514539970369,307.31988958433305,76.154932001422424,76.154932001422424,343.64215474647619,1075.1375165152165,399.51605915278969,2926.3857340107775,1626.3128874110257,369.74719596766113,614.43880411921452,74.888177900248422,43]
[null,"Male 25-29",{"$f":"SUM(C84,C122,C160,C198,C236)","v":1303.7823465568777},1989.1107211844324,685.32837462755469,328.30613534547581,259.42396998431514,1243.1096994079196,270.41676973841749,484.95835845604677,156.84779626636202,420.95043359444469,420.95043359444469,876.32485137083802,444.08660652728037,257.90252886397877,265.15316111398784,209.0140249501853,5280.1041499355533,2670.8557860038841,70.473773663492068,502.00898348757636,1198.8409060306235,1198.8409060306235,986.96734194362307,4074.2731030123709,8200.5175984820289,2272.5560917334815,5922.189734356909,938.61265362455902,679.18868364024388,306.54125204493067,679.18868364024388,2278.3278641251213,{"$f":"SUM(AI84,AI122,AI160,AI198,AI236)","v":3810.8464741665121},265.00924357069016,283.44537054904919,470.71181826320981,1267.4520543301144,63.30208330847092,63.30208330847092,434.83641503531055,704.24569998032223,21190.310942393775,270.41676973841749,74.249714948577662,74.249714948577662,328.31127461742949,1010.8758097950067,328.1105621896848,2838.308307782248,1639.4674017516243,370.21312550512113,609.82828347795021,70.473773663492068,44]
[null,"Male 30-34",{"$f":"SUM(C85,C123,C161,C199,C237)","v":1041.9847306648685},1777.8123386100942,735.82760794522585,334.50413528153967,216.57915775572903,1132.7995947802156,268.46781751188661,415.16180710895026,162.842756717611,392.89674618247687,392.89674618247687,667.65089484794919,411.16216546737343,222.20344073244758,260.86450781380086,180.07731536815243,4918.0614868233342,2329.2783257383558,71.767037314130732,505.12603198596679,1162.7714515211883,1162.7714515211883,920.2878390949171,3585.667962312813,7600.264383683736,2060.185488138246,5298.6146679071726,928.32780551398253,711.74864775825347,292.13079139925878,711.74864775825347,2301.6497157765639,{"$f":"SUM(AI85,AI123,AI161,AI199,AI237)","v":3486.8222177902594},272.15235539289807,282.37314952815154,426.36168436106794,1278.5292939875101,56.257901802360834,56.257901802360834,441.62523916471412,669.72067514988225,19594.18718671452,268.46781751188661,69.558634086914978,69.558634086914978,295.27574495177447,1023.1204217890536,252.31905039133926,2606.551720815391,1443.780269294203,348.81448294461859,624.52702884520477,71.767037314130732,45]
[null,"Male 35-39",{"$f":"SUM(C86,C124,C162,C200,C238)","v":843.30067726430298},1631.7854404201307,788.48476315582775,322.15337306930178,229.25360083530668,1099.8393381151034,282.44916422256341,412.03288457901022,167.33721323660183,360.65584913818299,360.65584913818299,496.07560529208172,388.67010201857261,229.12430359758869,275.42603647482963,215.8925912146297,4556.5475120878737,1948.5844807681121,79.612816821950176,536.68477104326644,1154.5286057490021,1154.5286057490021,948.71765562227654,2859.9460558559758,6792.4837182880437,1899.0397142217535,4463.7866382738794,928.07736295235952,698.82376211705287,257.05147213094403,698.82376211705287,2328.6970800141648,{"$f":"SUM(AI86,AI124,AI162,AI200,AI238)","v":3119.5697421163077},277.7998783704046,267.2542738016229,406.69573120993283,1265.128688342216,55.037375363559612,55.037375363559612,438.09499432782923,593.91612158783641,18051.580575855478,282.44916422256341,75.245260555160428,75.245260555160428,304.47350488659805,1063.5683916719486,244.69567134240842,2410.8525784382146,1256.3239726892127,307.85609388690477,617.75934650296119,79.612816821950176,46]
[null,"Male 40-44",{"$f":"SUM(C87,C125,C163,C201,C239)","v":714.29088336252039},1572.8411825459634,858.55029918344292,360.89684107929827,264.94886134190995,1251.7574241401453,351.58902451604359,454.74050684297401,184.46990879710404,431.64740263228913,431.64740263228913,447.11086550421027,444.27783935462674,269.94349431088563,343.85024726569674,253.36532652646798,4593.1317864664215,1700.2261665525032,94.04424703629067,575.37100371220356,1234.5113842225126,1234.5113842225126,1030.1115105551776,2434.4125153966015,6578.5430906068641,1872.3645930204755,4118.2709621617123,990.82678891844409,725.87792757653415,267.55448054616193,725.87792757653415,2460.2721284451513,{"$f":"SUM(AI87,AI125,AI163,AI201,AI239)","v":3007.0313777278657},289.99304274615275,299.52341047451227,468.0265826697476,1326.3093779585779,64.050996370743533,64.050996370743533,432.19172474004586,585.96486088970664,18230.411542559308,351.58902451604359,83.734271488900347,83.734271488900347,339.45300211577103,1133.9627504865741,270.27059804586992,2474.7108155460669,1240.1994313235543,307.03028449188895,672.96192116351301,94.04424703629067,47]
[null,"Male 45-49",{"$f":"SUM(C88,C126,C164,C202,C240)","v":707.55132207919519},1651.4569271153532,943.90560503615825,428.32468458781534,332.41135059625788,1521.9978044640543,452.8838671101654,565.66545613031076,232.69747663121538,560.30289090885401,560.30289090885401,545.82112222265914,531.19915936185066,329.42080042221062,377.48693228910588,282.95356375962194,5047.2472507117145,1634.1387253817331,122.87817038855734,671.31116841277333,1493.0297805613518,1493.0297805613518,1236.9766245430842,2609.466524041884,7558.6942575019111,2022.525800264129,4683.9534385042643,1213.4835803705544,881.07222977429649,341.98929172970935,881.07222977429649,2874.7408189976468,{"$f":"SUM(AI88,AI126,AI164,AI202,AI240)","v":3101.3336030401974},333.25012661807716,371.06887314877531,577.70572280068734,1531.8919249447922,81.631867704104124,81.631867704104124,533.30933859313438,738.17141145718256,20959.272667687055,452.8838671101654,86.079275426484287,86.079275426484287,413.09292230151618,1342.8488940528548,332.96797949909541,3000.4849259649609,1507.4551454036091,381.95184709365645,756.45781875128125,122.87817038855734,48]
[null,"Male 50-54",{"$f":"SUM(C89,C127,C165,C203,C241)","v":705.62213554879031},1667.085235849238,961.46310030044754,485.40371253235037,373.37936985345675,1645.7046559451203,502.52425950561218,588.96817789602608,231.64499304242221,649.11619813563846,649.11619813563846,569.38513421832022,561.5913579835975,368.84302392380675,412.91390997799414,316.18026881599417,5109.875643373367,1627.853874893857,119.4775206981017,664.52462332757023,1479.870314226795,1479.870314226795,1253.492801223596,2628.2519990720039,7844.6299062586513,2033.3192081449517,4952.3656553705796,1352.4916854061712,979.11231555271456,406.79204167104643,979.11231555271456,2892.2642508880713,{"$f":"SUM(AI89,AI127,AI165,AI203,AI241)","v":3127.4810696409595},340.27430357497207,366.23397229571361,631.35380307719606,1545.0790197196038,94.505129154981887,94.505129154981887,609.38358006022645,786.49250740561615,21864.995087590738,502.52425950561218,98.209912439259341,98.209912439259341,452.75949488432707,1347.1852311684668,357.32318485360383,3144.0427410376915,1664.1724268108969,445.805814482112,746.43898119413609,119.4775206981017,49]
[null,"Male 55-59",{"$f":"SUM(C90,C128,C166,C204,C242)","v":548.97427409773286},1164.1848867746317,615.21061267689879,318.22822784407111,269.05624031863169,1241.2838763546742,338.87963142027468,413.42136799775915,169.14693224635735,501.27686018327574,501.27686018327574,422.00819172337788,413.390981891568,285.16706159954958,306.78048273619419,229.30191325849876,3681.0148039807373,1113.8486264050659,94.973328000315377,485.03615416672721,1115.0091081221942,1115.0091081221942,898.45752216448636,1742.483272006358,5533.8510660356151,1404.8461170294329,3405.6982617175931,971.4814172318504,702.42517691321871,268.63379804978746,702.42517691321871,2128.1528043180219,{"$f":"SUM(AI90,AI128,AI166,AI204,AI242)","v":2227.1260644382683},277.43715856545157,240.66123025480135,456.1731854176403,1086.1300904085324,63.80490297077742,63.80490297077742,375.2959257663328,555.64444018459585,15559.246664384114,338.87963142027468,52.72442509916992,52.72442509916992,371.71970904546595,1042.0227139094895,244.2744357514018,2230.5414534559759,1115.5323453337819,324.46777661880316,529.05979673155628,94.973328000315377,50]
[null,"Male 60-64",{"$f":"SUM(C91,C129,C167,C205,C243)","v":479.80830926448641},1026.9867506971048,547.17844143261823,292.73464781151961,256.30056323820884,1106.5854467409456,313.16455902342943,348.51714060808371,145.99880193537982,468.21998755406941,468.21998755406941,342.52495230871295,355.61826355810013,245.78037743338797,248.71004900547476,196.53288567268464,3123.5310905453575,934.72488971291909,92.743524511054787,399.22955890928534,959.90305032903279,959.90305032903279,747.74669951736905,1418.8129031203403,4615.1020614416821,1240.4453672258078,2800.545705500283,895.69758907450387,639.39702583629503,219.26615769491698,639.39702583629503,1814.556355941399,{"$f":"SUM(AI91,AI129,AI167,AI205,AI243)","v":1850.4634811928956},246.78969012528526,213.4586165287032,406.55192182716939,922.3445649023605,56.032174058468087,56.032174058468087,350.10986007209857,441.88345534103831,13380.906742921612,313.16455902342943,49.433342060022611,49.433342060022611,344.41526135567608,892.21179103903864,202.51833867270383,1945.272510521364,985.3694601923313,278.2699262379146,420.23885234921642,92.743524511054787,51]
[null,"Male 65-69",{"$f":"SUM(C92,C130,C168,C206,C244)","v":433.16292010690643},991.88041488220733,558.71749477530079,325.32168056131576,276.88578553283105,1142.3072329731249,336.77661849348317,357.18234960592986,149.43752050093283,509.2177202264491,509.2177202264491,343.07036420926545,362.68950553884389,237.013799987281,247.7183171059045,172.86564085489087,3105.2715245960012,857.0674916996752,97.502873653671372,427.18630186284474,998.20974741040982,998.20974741040982,784.3686514687746,1226.2453553300547,4214.8157182873883,1205.952380470404,2511.095937495938,921.48038296361563,644.59459743078446,215.05698742182807,644.59459743078446,1703.7197807914492,{"$f":"SUM(AI92,AI130,AI168,AI206,AI244)","v":1770.2851586921081},241.16224037079158,214.07196558819683,417.406621902871,879.22494138568084,57.04628722217128,57.04628722217128,348.48108191120923,416.40161585158643,13104.876031134298,336.77661849348317,50.040132590907348,50.040132590907348,362.21110553141006,824.49483940576852,207.744829104997,2015.0828740922,1016.8731266817903,243.51253805029745,424.33710951573693,97.502873653671372,52]
[null,"Male 70-74",{"$f":"SUM(C93,C131,C169,C207,C245)","v":279.96713225086233},656.75428991935496,376.78715766849263,227.98625010376722,214.37111964431651,859.26541537359617,245.96023878694862,253.3472035297531,107.98207993874489,387.19113534850317,387.19113534850317,243.53875380522209,264.63127904197398,174.6855870391247,186.24934276375541,126.41429105828058,2263.9873603569454,589.61096165836341,67.79190543410192,297.10269663904865,743.63924660634052,743.63924660634052,550.44990016880183,874.5781188941944,3109.232600522078,820.53578096507795,1840.2296010203836,694.55872257825627,480.18760293393967,161.35814784941309,480.18760293393967,1269.0029995016944,{"$f":"SUM(AI93,AI131,AI169,AI207,AI245)","v":1274.3878749636563},180.63653921653105,163.78149104572293,312.09856595980773,639.36467614236983,45.635763489444955,45.635763489444955,260.7154826664879,316.60491729371284,9566.7727397322196,245.96023878694862,35.883668919937961,35.883668919937961,282.53557037181452,629.63832335932466,145.36512359100828,1475.8797331818175,732.24048657547723,186.58853888565781,317.89103132500645,67.79190543410192,53]
[null,"Male 75-79",{"$f":"SUM(C94,C132,C170,C208,C246)","v":219.13525202780369},490.90939250436674,271.77414047656305,171.09325112090943,153.14523219663732,643.3200108810579,177.31641550515033,192.01722686626911,75.836076938913877,300.04402603097526,300.04402603097526,199.33566019341413,205.67854693817461,143.07133903124873,141.481802682975,105.53040158949111,1652.8653183958579,450.39300084743235,54.275965518265288,221.35660937034072,528.52599426762481,528.52599426762481,413.37383623660986,650.33610550242327,2320.9271788462838,617.46705056106725,1390.6012908674456,480.49666366603537,327.35143146939805,116.94038657268302,327.35143146939805,930.32588797883841,{"$f":"SUM(AI94,AI132,AI170,AI208,AI246)","v":947.02290862308291},125.14718350934933,126.55765805670046,230.01498360242803,477.52336693341465,35.010116045991666,35.010116045991666,201.43976331950284,246.7697660707554,7115.1325068098595,177.31641550515033,25.483665993888344,25.483665993888344,207.62648034045526,452.80252104542376,116.18114992735525,1100.3946689014513,571.86867463382634,127.95329210084429,230.00092158332606,54.275965518265288,54]
[null,"Male 80-84",{"$f":"SUM(C95,C133,C171,C209,C247)","v":164.20643216259651},350.52469169190817,186.3182595293116,117.09907957168346,97.590334623919048,418.47693384086773,116.55165271101552,122.09092361737117,43.978197678199201,198.88232762057874,198.88232762057874,137.10579196007495,131.28045153713865,105.84916584008354,99.949952570679045,76.109260474519658,1141.155001560021,340.39687876479314,32.99903890086199,155.39861184742185,360.47639640612704,360.47639640612704,277.48953546479305,448.92146009475647,1570.3812733486097,430.9644500475224,957.35314466698014,322.62800686307952,225.03767223916049,76.941167321125121,225.03767223916049,613.02812868162971,{"$f":"SUM(AI95,AI133,AI171,AI209,AI247)","v":664.12695244287841},80.325577734969585,80.439758355614302,149.72274744307191,309.07975054975816,20.669903933837055,20.669903933837055,142.96706726892782,162.39023691844307,4826.0546932332336,116.55165271101552,15.236282852376499,15.236282852376499,137.47373486065717,303.94837813187161,78.11272593917198,757.64833520681327,397.17193880068623,87.141854018052157,143.4545433724366,32.99903890086199,55]
[null,"Male 85-89",{"$f":"SUM(C96,C134,C172,C210,C248)","v":84.983638912392877},175.40529407797152,90.421655165578628,63.642288556854567,48.506936923781417,206.21513153403512,67.88612982516274,59.382013741904558,23.083279184828289,96.991178942272768,96.991178942272768,74.810158387372226,64.718326258763241,53.700945856130261,48.632634057701829,38.172431228138223,580.79941848371607,178.14541498375132,19.350305849551336,70.636515886322385,177.7184015236671,177.7184015236671,130.01852962822696,216.05341667633596,753.26285549775912,219.10597302414018,467.38096407316948,164.80626457639505,116.29932765261364,37.346734160162043,116.29932765261364,285.88189142458953,{"$f":"SUM(AI96,AI134,AI172,AI210,AI248)","v":335.19488713488624},43.876175655032569,43.700678946168672,68.649079628533045,137.36666770198212,10.553378081967216,10.553378081967216,77.549129394119589,82.853200415056946,2405.0397150739195,67.88612982516274,7.9351031175094278,7.9351031175094278,72.847725646738851,148.51522372260746,36.298734557076273,393.71997786201348,216.00157633834635,39.254235737346086,64.540662438400517,19.350305849551336,56]
[null,"Male 90+",{"$f":"SUM(C97,C135,C173,C211,C249)","v":35.724883616680117},78.117567447903653,42.392683831223536,27.826040058215579,18.683541750383643,82.994729183437528,24.279568314551742,22.694133148096942,9.4305870815437007,42.780195704153542,42.780195704153542,31.114003894262076,24.587101358438076,25.070865319960333,21.460729680661991,17.822387355375529,253.87460891819842,86.546716167501032,6.2257932136715963,29.910685972063639,77.939626523850691,77.939626523850691,52.604819120160585,94.162822589455843,316.5684689189078,96.366685934102463,207.04174427519538,68.391067741644079,49.707525991260439,16.47636281510534,49.707525991260439,109.5267246437124,{"$f":"SUM(AI97,AI135,AI173,AI211,AI249)","v":151.65541407979595},17.279137314839868,18.249118486198828,27.511576232256207,52.930760723974011,4.8457596430884937,4.8457596430884937,32.319779365586101,37.154318305406633,1018.8335424087917,24.279568314551742,2.9215907133634245,2.9215907133634245,30.896051592743227,56.595963919738381,13.263546066553241,169.19944984191443,91.259823318063752,16.354987889891717,26.368830916793055,6.2257932136715963,57]
["SIMD Q1 (most deprived)","Female 0-4",{"$f":"'Population 2016'!C60*'Prevalence Rates'!C60","v":0},{"$f":"'Population 2016'!D60*'Prevalence Rates'!D60","v":0},{"$f":"'Population 2016'!E60*'Prevalence Rates'!E60","v":0},{"$f":"'Population 2016'!F60*'Prevalence Rates'!F60","v":0},{"$f":"'Population 2016'!G60*'Prevalence Rates'!G60","v":0},{"$f":"'Population 2016'!H60*'Prevalence Rates'!H60","v":0},{"$f":"'Population 2016'!I60*'Prevalence Rates'!I60","v":0},{"$f":"'Population 2016'!J60*'Prevalence Rates'!J60","v":0},{"$f":"'Population 2016'!K60*'Prevalence Rates'!K60","v":0},{"$f":"'Population 2016'!L60*'Prevalence Rates'!L60","v":0},{"$f":"'Population 2016'!M60*'Prevalence Rates'!M60","v":0},{"$f":"'Population 2016'!N60*'Prevalence Rates'!N60","v":0},{"$f":"'Population 2016'!O60*'Prevalence Rates'!O60","v":0},{"$f":"'Population 2016'!P60*'Prevalence Rates'!P60","v":0},{"$f":"'Population 2016'!Q60*'Prevalence Rates'!Q60","v":0},{"$f":"'Population 2016'!R60*'Prevalence Rates'!R60","v":0},{"$f":"'Population 2016'!S60*'Prevalence Rates'!S60","v":0},{"$f":"'Population 2016'!T60*'Prevalence Rates'!T60","v":0},{"$f":"'Population 2016'!U60*'Prevalence Rates'!U60","v":0},{"$f":"'Population 2016'!V60*'Prevalence Rates'!V60","v":0},{"$f":"'Population 2016'!W60*'Prevalence Rates'!W60","v":0},{"$f":"'Population 2016'!X60*'Prevalence Rates'!X60","v":0},{"$f":"'Population 2016'!Y60*'Prevalence Rates'!Y60","v":0},{"$f":"'Population 2016'!Z60*'Prevalence Rates'!Z60","v":0},{"$f":"'Population 2016'!AA60*'Prevalence Rates'!AA60","v":0},{"$f":"'Population 2016'!AB60*'Prevalence Rates'!AB60","v":0},{"$f":"'Population 2016'!AC60*'Prevalence Rates'!AC60","v":0},{"$f":"'Population 2016'!AD60*'Prevalence Rates'!AD60","v":0},{"$f":"'Population 2016'!AE60*'Prevalence Rates'!AE60","v":0},{"$f":"'Population 2016'!AF60*'Prevalence Rates'!AF60","v":0},{"$f":"'Population 2016'!AG60*'Prevalence Rates'!AG60","v":0},{"$f":"'Population 2016'!AH60*'Prevalence Rates'!AH60","v":0},{"$f":"'Population 2016'!AI60*'Prevalence Rates'!AI60","v":0},{"$f":"'Population 2016'!AJ60*'Prevalence Rates'!AJ60","v":0},{"$f":"'Population 2016'!AK60*'Prevalence Rates'!AK60","v":0},{"$f":"'Population 2016'!AL60*'Prevalence Rates'!AL60","v":0},{"$f":"'Population 2016'!AM60*'Prevalence Rates'!AM60","v":0},{"$f":"'Population 2016'!AN60*'Prevalence Rates'!AN60","v":0},{"$f":"'Population 2016'!AO60*'Prevalence Rates'!AO60","v":0},{"$f":"'Population 2016'!AP60*'Prevalence Rates'!AP60","v":0},{"$f":"'Population 2016'!AQ60*'Prevalence Rates'!AQ60","v":0},{"$f":"'Population 2016'!AR60*'Prevalence Rates'!AR60","v":0},{"$f":"'Population 2016'!AS60*'Prevalence Rates'!AS60","v":0},{"$f":"'Population 2016'!AT60*'Prevalence Rates'!AT60","v":0},{"$f":"'Population 2016'!AU60*'Prevalence Rates'!AU60","v":0},{"$f":"'Population 2016'!AV60*'Prevalence Rates'!AV60","v":0},{"$f":"'Population 2016'!AW60*'Prevalence Rates'!AW60","v":0},{"$f":"'Population 2016'!AX60*'Prevalence Rates'!AX60","v":0},{"$f":"'Population 2016'!AY60*'Prevalence Rates'!AY60","v":0},{"$f":"'Population 2016'!AZ60*'Prevalence Rates'!AZ60","v":0},{"$f":"'Population 2016'!BA60*'Prevalence Rates'!BA60","v":0},{"$f":"'Population 2016'!BB60*'Prevalence Rates'!BB60","v":0},{"$f":"'Population 2016'!BC60*'Prevalence Rates'!BC60","v":0},58]
[null,"Female 5-9",{"$f":"'Population 2016'!C61*'Prevalence Rates'!C61","v":0},{"$f":"'Population 2016'!D61*'Prevalence Rates'!D61","v":0},{"$f":"'Population 2016'!E61*'Prevalence Rates'!E61","v":0},{"$f":"'Population 2016'!F61*'Prevalence Rates'!F61","v":0},{"$f":"'Population 2016'!G61*'Prevalence Rates'!G61","v":0},{"$f":"'Population 2016'!H61*'Prevalence Rates'!H61","v":0},{"$f":"'Population 2016'!I61*'Prevalence Rates'!I61","v":0},{"$f":"'Population 2016'!J61*'Prevalence Rates'!J61","v":0},{"$f":"'Population 2016'!K61*'Prevalence Rates'!K61","v":0},{"$f":"'Population 2016'!L61*'Prevalence Rates'!L61","v":0},{"$f":"'Population 2016'!M61*'Prevalence Rates'!M61","v":0},{"$f":"'Population 2016'!N61*'Prevalence Rates'!N61","v":0},{"$f":"'Population 2016'!O61*'Prevalence Rates'!O61","v":0},{"$f":"'Population 2016'!P61*'Prevalence Rates'!P61","v":0},{"$f":"'Population 2016'!Q61*'Prevalence Rates'!Q61","v":0},{"$f":"'Population 2016'!R61*'Prevalence Rates'!R61","v":0},{"$f":"'Population 2016'!S61*'Prevalence Rates'!S61","v":0},{"$f":"'Population 2016'!T61*'Prevalence Rates'!T61","v":0},{"$f":"'Population 2016'!U61*'Prevalence Rates'!U61","v":0},{"$f":"'Population 2016'!V61*'Prevalence Rates'!V61","v":0},{"$f":"'Population 2016'!W61*'Prevalence Rates'!W61","v":0},{"$f":"'Population 2016'!X61*'Prevalence Rates'!X61","v":0},{"$f":"'Population 2016'!Y61*'Prevalence Rates'!Y61","v":0},{"$f":"'Population 2016'!Z61*'Prevalence Rates'!Z61","v":0},{"$f":"'Population 2016'!AA61*'Prevalence Rates'!AA61","v":0},{"$f":"'Population 2016'!AB61*'Prevalence Rates'!AB61","v":0},{"$f":"'Population 2016'!AC61*'Prevalence Rates'!AC61","v":0},{"$f":"'Population 2016'!AD61*'Prevalence Rates'!AD61","v":0},{"$f":"'Population 2016'!AE61*'Prevalence Rates'!AE61","v":0},{"$f":"'Population 2016'!AF61*'Prevalence Rates'!AF61","v":0},{"$f":"'Population 2016'!AG61*'Prevalence Rates'!AG61","v":0},{"$f":"'Population 2016'!AH61*'Prevalence Rates'!AH61","v":0},{"$f":"'Population 2016'!AI61*'Prevalence Rates'!AI61","v":0},{"$f":"'Population 2016'!AJ61*'Prevalence Rates'!AJ61","v":0},{"$f":"'Population 2016'!AK61*'Prevalence Rates'!AK61","v":0},{"$f":"'Population 2016'!AL61*'Prevalence Rates'!AL61","v":0},{"$f":"'Population 2016'!AM61*'Prevalence Rates'!AM61","v":0},{"$f":"'Population 2016'!AN61*'Prevalence Rates'!AN61","v":0},{"$f":"'Population 2016'!AO61*'Prevalence Rates'!AO61","v":0},{"$f":"'Population 2016'!AP61*'Prevalence Rates'!AP61","v":0},{"$f":"'Population 2016'!AQ61*'Prevalence Rates'!AQ61","v":0},{"$f":"'Population 2016'!AR61*'Prevalence Rates'!AR61","v":0},{"$f":"'Population 2016'!AS61*'Prevalence Rates'!AS61","v":0},{"$f":"'Population 2016'!AT61*'Prevalence Rates'!AT61","v":0},{"$f":"'Population 2016'!AU61*'Prevalence Rates'!AU61","v":0},{"$f":"'Population 2016'!AV61*'Prevalence Rates'!AV61","v":0},{"$f":"'Population 2016'!AW61*'Prevalence Rates'!AW61","v":0},{"$f":"'Population 2016'!AX61*'Prevalence Rates'!AX61","v":0},{"$f":"'Population 2016'!AY61*'Prevalence Rates'!AY61","v":0},{"$f":"'Population 2016'!AZ61*'Prevalence Rates'!AZ61","v":0},{"$f":"'Population 2016'!BA61*'Prevalence Rates'!BA61","v":0},{"$f":"'Population 2016'!BB61*'Prevalence Rates'!BB61","v":0},{"$f":"'Population 2016'!BC61*'Prevalence Rates'!BC61","v":0},59]
[null,"Female 10-15",{"$f":"'Population 2016'!C62*'Prevalence Rates'!C62","v":0},{"$f":"'Population 2016'!D62*'Prevalence Rates'!D62","v":0},{"$f":"'Population 2016'!E62*'Prevalence Rates'!E62","v":0},{"$f":"'Population 2016'!F62*'Prevalence Rates'!F62","v":0},{"$f":"'Population 2016'!G62*'Prevalence Rates'!G62","v":0},{"$f":"'Population 2016'!H62*'Prevalence Rates'!H62","v":0},{"$f":"'Population 2016'!I62*'Prevalence Rates'!I62","v":0},{"$f":"'Population 2016'!J62*'Prevalence Rates'!J62","v":0},{"$f":"'Population 2016'!K62*'Prevalence Rates'!K62","v":0},{"$f":"'Population 2016'!L62*'Prevalence Rates'!L62","v":0},{"$f":"'Population 2016'!M62*'Prevalence Rates'!M62","v":0},{"$f":"'Population 2016'!N62*'Prevalence Rates'!N62","v":0},{"$f":"'Population 2016'!O62*'Prevalence Rates'!O62","v":0},{"$f":"'Population 2016'!P62*'Prevalence Rates'!P62","v":0},{"$f":"'Population 2016'!Q62*'Prevalence Rates'!Q62","v":0},{"$f":"'Population 2016'!R62*'Prevalence Rates'!R62","v":0},{"$f":"'Population 2016'!S62*'Prevalence Rates'!S62","v":0},{"$f":"'Population 2016'!T62*'Prevalence Rates'!T62","v":0},{"$f":"'Population 2016'!U62*'Prevalence Rates'!U62","v":0},{"$f":"'Population 2016'!V62*'Prevalence Rates'!V62","v":0},{"$f":"'Population 2016'!W62*'Prevalence Rates'!W62","v":0},{"$f":"'Population 2016'!X62*'Prevalence Rates'!X62","v":0},{"$f":"'Population 2016'!Y62*'Prevalence Rates'!Y62","v":0},{"$f":"'Population 2016'!Z62*'Prevalence Rates'!Z62","v":0},{"$f":"'Population 2016'!AA62*'Prevalence Rates'!AA62","v":0},{"$f":"'Population 2016'!AB62*'Prevalence Rates'!AB62","v":0},{"$f":"'Population 2016'!AC62*'Prevalence Rates'!AC62","v":0},{"$f":"'Population 2016'!AD62*'Prevalence Rates'!AD62","v":0},{"$f":"'Population 2016'!AE62*'Prevalence Rates'!AE62","v":0},{"$f":"'Population 2016'!AF62*'Prevalence Rates'!AF62","v":0},{"$f":"'Population 2016'!AG62*'Prevalence Rates'!AG62","v":0},{"$f":"'Population 2016'!AH62*'Prevalence Rates'!AH62","v":0},{"$f":"'Population 2016'!AI62*'Prevalence Rates'!AI62","v":0},{"$f":"'Population 2016'!AJ62*'Prevalence Rates'!AJ62","v":0},{"$f":"'Population 2016'!AK62*'Prevalence Rates'!AK62","v":0},{"$f":"'Population 2016'!AL62*'Prevalence Rates'!AL62","v":0},{"$f":"'Population 2016'!AM62*'Prevalence Rates'!AM62","v":0},{"$f":"'Population 2016'!AN62*'Prevalence Rates'!AN62","v":0},{"$f":"'Population 2016'!AO62*'Prevalence Rates'!AO62","v":0},{"$f":"'Population 2016'!AP62*'Prevalence Rates'!AP62","v":0},{"$f":"'Population 2016'!AQ62*'Prevalence Rates'!AQ62","v":0},{"$f":"'Population 2016'!AR62*'Prevalence Rates'!AR62","v":0},{"$f":"'Population 2016'!AS62*'Prevalence Rates'!AS62","v":0},{"$f":"'Population 2016'!AT62*'Prevalence Rates'!AT62","v":0},{"$f":"'Population 2016'!AU62*'Prevalence Rates'!AU62","v":0},{"$f":"'Population 2016'!AV62*'Prevalence Rates'!AV62","v":0},{"$f":"'Population 2016'!AW62*'Prevalence Rates'!AW62","v":0},{"$f":"'Population 2016'!AX62*'Prevalence Rates'!AX62","v":0},{"$f":"'Population 2016'!AY62*'Prevalence Rates'!AY62","v":0},{"$f":"'Population 2016'!AZ62*'Prevalence Rates'!AZ62","v":0},{"$f":"'Population 2016'!BA62*'Prevalence Rates'!BA62","v":0},{"$f":"'Population 2016'!BB62*'Prevalence Rates'!BB62","v":0},{"$f":"'Population 2016'!BC62*'Prevalence Rates'!BC62","v":0},60]
[null,"Female 16-19",{"$f":"'Population 2016'!C63*'Prevalence Rates'!C63","v":73.893524858759406},{"$f":"'Population 2016'!D63*'Prevalence Rates'!D63","v":96.444137349715959},{"$f":"'Population 2016'!E63*'Prevalence Rates'!E63","v":22.550612490956549},{"$f":"'Population 2016'!F63*'Prevalence Rates'!F63","v":44.698535473146023},{"$f":"'Population 2016'!G63*'Prevalence Rates'!G63","v":29.396334139996931},{"$f":"'Population 2016'!H63*'Prevalence Rates'!H63","v":545.64428437939512},{"$f":"'Population 2016'!I63*'Prevalence Rates'!I63","v":34.027263490818363},{"$f":"'Population 2016'!J63*'Prevalence Rates'!J63","v":119.59878410382314},{"$f":"'Population 2016'!K63*'Prevalence Rates'!K63","v":55.168462701090135},{"$f":"'Population 2016'!L63*'Prevalence Rates'!L63","v":63.423597630815301},{"$f":"'Population 2016'!M63*'Prevalence Rates'!M63","v":63.423597630815301},{"$f":"'Population 2016'!N63*'Prevalence Rates'!N63","v":253.49304576887766},{"$f":"'Population 2016'!O63*'Prevalence Rates'!O63","v":175.16993631368035},{"$f":"'Population 2016'!P63*'Prevalence Rates'!P63","v":22.75195724534009},{"$f":"'Population 2016'!Q63*'Prevalence Rates'!Q63","v":16.711614613833873},{"$f":"'Population 2016'!R63*'Prevalence Rates'!R63","v":33.624573982051288},{"$f":"'Population 2016'!S63*'Prevalence Rates'!S63","v":907.86349751538467},{"$f":"'Population 2016'!T63*'Prevalence Rates'!T63","v":302.82251059284511},{"$f":"'Population 2016'!U63*'Prevalence Rates'!U63","v":0},{"$f":"'Population 2016'!V63*'Prevalence Rates'!V63","v":95.437413577798253},{"$f":"'Population 2016'!W63*'Prevalence Rates'!W63","v":368.25955576749584},{"$f":"'Population 2016'!X63*'Prevalence Rates'!X63","v":368.25955576749584},{"$f":"'Population 2016'!Y63*'Prevalence Rates'!Y63","v":215.03619768162139},{"$f":"'Population 2016'!Z63*'Prevalence Rates'!Z63","v":1211.8940766345311},{"$f":"'Population 2016'!AA63*'Prevalence Rates'!AA63","v":2583.6558882495933},{"$f":"'Population 2016'!AB63*'Prevalence Rates'!AB63","v":99.665653419852617},{"$f":"'Population 2016'!AC63*'Prevalence Rates'!AC63","v":1779.484939241732},{"$f":"'Population 2016'!AD63*'Prevalence Rates'!AD63","v":110.53827015656381},{"$f":"'Population 2016'!AE63*'Prevalence Rates'!AE63","v":81.141936016566873},{"$f":"'Population 2016'!AF63*'Prevalence Rates'!AF63","v":138.52519101587595},{"$f":"'Population 2016'!AG63*'Prevalence Rates'!AG63","v":81.141936016566873},{"$f":"'Population 2016'!AH63*'Prevalence Rates'!AH63","v":804.17094900786128},{"$f":"'Population 2016'!AI63*'Prevalence Rates'!AI63","v":505.57667825707051},{"$f":"'Population 2016'!AJ63*'Prevalence Rates'!AJ63","v":41.275674648625831},{"$f":"'Population 2016'!AK63*'Prevalence Rates'!AK63","v":3.2215160701366501},{"$f":"'Population 2016'!AL63*'Prevalence Rates'!AL63","v":272.01676317216339},{"$f":"'Population 2016'!AM63*'Prevalence Rates'!AM63","v":511.21433137980966},{"$f":"'Population 2016'!AN63*'Prevalence Rates'!AN63","v":0},{"$f":"'Population 2016'!AO63*'Prevalence Rates'!AO63","v":0},{"$f":"'Population 2016'!AP63*'Prevalence Rates'!AP63","v":36.846090052187932},{"$f":"'Population 2016'!AQ63*'Prevalence Rates'!AQ63","v":210.60661308518351},{"$f":"'Population 2016'!AR63*'Prevalence Rates'!AR63","v":4860.8650603274382},{"$f":"'Population 2016'!AS63*'Prevalence Rates'!AS63","v":34.027263490818363},{"$f":"'Population 2016'!AT63*'Prevalence Rates'!AT63","v":0},{"$f":"'Population 2016'!AU63*'Prevalence Rates'!AU63","v":0},{"$f":"'Population 2016'!AV63*'Prevalence Rates'!AV63","v":98.45758489355137},{"$f":"'Population 2016'!AW63*'Prevalence Rates'!AW63","v":292.95661762805162},{"$f":"'Population 2016'!AX63*'Prevalence Rates'!AX63","v":64.430321402733},{"$f":"'Population 2016'!AY63*'Prevalence Rates'!AY63","v":703.29722706170742},{"$f":"'Population 2016'!AZ63*'Prevalence Rates'!AZ63","v":335.03767129421163},{"$f":"'Population 2016'!BA63*'Prevalence Rates'!BA63","v":162.08252727875021},{"$f":"'Population 2016'!BB63*'Prevalence Rates'!BB63","v":144.76687840176572},{"$f":"'Population 2016'!BC63*'Prevalence Rates'!BC63","v":0},61]
[null,"Female 20-24",{"$f":"'Population 2016'!C64*'Prevalence Rates'!C64","v":157.45159792792876},{"$f":"'Population 2016'!D64*'Prevalence Rates'!D64","v":197.72054880463691},{"$f":"'Population 2016'!E64*'Prevalence Rates'!E64","v":40.268950876708125},{"$f":"'Population 2016'!F64*'Prevalence Rates'!F64","v":64.430321402733},{"$f":"'Population 2016'!G64*'Prevalence Rates'!G64","v":41.879708911776454},{"$f":"'Population 2016'!H64*'Prevalence Rates'!H64","v":816.85566853402429},{"$f":"'Population 2016'!I64*'Prevalence Rates'!I64","v":43.691811701228318},{"$f":"'Population 2016'!J64*'Prevalence Rates'!J64","v":192.68692994504838},{"$f":"'Population 2016'!K64*'Prevalence Rates'!K64","v":88.994381437524964},{"$f":"'Population 2016'!L64*'Prevalence Rates'!L64","v":101.07506670053739},{"$f":"'Population 2016'!M64*'Prevalence Rates'!M64","v":101.07506670053739},{"$f":"'Population 2016'!N64*'Prevalence Rates'!N64","v":431.68315339831111},{"$f":"'Population 2016'!O64*'Prevalence Rates'!O64","v":274.43290022476589},{"$f":"'Population 2016'!P64*'Prevalence Rates'!P64","v":35.638021525886693},{"$f":"'Population 2016'!Q64*'Prevalence Rates'!Q64","v":24.161370526024875},{"$f":"'Population 2016'!R64*'Prevalence Rates'!R64","v":46.107948753830804},{"$f":"'Population 2016'!S64*'Prevalence Rates'!S64","v":1260.8208519497314},{"$f":"'Population 2016'!T64*'Prevalence Rates'!T64","v":478.39513641529254},{"$f":"'Population 2016'!U64*'Prevalence Rates'!U64","v":0},{"$f":"'Population 2016'!V64*'Prevalence Rates'!V64","v":156.24352940162754},{"$f":"'Population 2016'!W64*'Prevalence Rates'!W64","v":452.62300785419933},{"$f":"'Population 2016'!X64*'Prevalence Rates'!X64","v":452.62300785419933},{"$f":"'Population 2016'!Y64*'Prevalence Rates'!Y64","v":348.93045934667589},{"$f":"'Population 2016'!Z64*'Prevalence Rates'!Z64","v":2063.3810429225246},{"$f":"'Population 2016'!AA64*'Prevalence Rates'!AA64","v":4117.9029166521732},{"$f":"'Population 2016'!AB64*'Prevalence Rates'!AB64","v":204.76761520806082},{"$f":"'Population 2016'!AC64*'Prevalence Rates'!AC64","v":3013.9296283672197},{"$f":"'Population 2016'!AD64*'Prevalence Rates'!AD64","v":163.29059580505145},{"$f":"'Population 2016'!AE64*'Prevalence Rates'!AE64","v":121.41088689327501},{"$f":"'Population 2016'!AF64*'Prevalence Rates'!AF64","v":228.12360671655154},{"$f":"'Population 2016'!AG64*'Prevalence Rates'!AG64","v":121.41088689327501},{"$f":"'Population 2016'!AH64*'Prevalence Rates'!AH64","v":1103.9732882849532},{"$f":"'Population 2016'!AI64*'Prevalence Rates'!AI64","v":764.50603239430382},{"$f":"'Population 2016'!AJ64*'Prevalence Rates'!AJ64","v":65.638389929034247},{"$f":"'Population 2016'!AK64*'Prevalence Rates'!AK64","v":7.0470664034239219},{"$f":"'Population 2016'!AL64*'Prevalence Rates'!AL64","v":391.81689203037007},{"$f":"'Population 2016'!AM64*'Prevalence Rates'!AM64","v":689.40443900924311},{"$f":"'Population 2016'!AN64*'Prevalence Rates'!AN64","v":0},{"$f":"'Population 2016'!AO64*'Prevalence Rates'!AO64","v":0},{"$f":"'Population 2016'!AP64*'Prevalence Rates'!AP64","v":65.638389929034247},{"$f":"'Population 2016'!AQ64*'Prevalence Rates'!AQ64","v":387.58865218831573},{"$f":"'Population 2016'!AR64*'Prevalence Rates'!AR64","v":7575.3950389263327},{"$f":"'Population 2016'!AS64*'Prevalence Rates'!AS64","v":43.691811701228318},{"$f":"'Population 2016'!AT64*'Prevalence Rates'!AT64","v":0},{"$f":"'Population 2016'!AU64*'Prevalence Rates'!AU64","v":0},{"$f":"'Population 2016'!AV64*'Prevalence Rates'!AV64","v":150.60587627888839},{"$f":"'Population 2016'!AW64*'Prevalence Rates'!AW64","v":414.56884927571014},{"$f":"'Population 2016'!AX64*'Prevalence Rates'!AX64","v":103.69254850752343},{"$f":"'Population 2016'!AY64*'Prevalence Rates'!AY64","v":1014.3748725842777},{"$f":"'Population 2016'!AZ64*'Prevalence Rates'!AZ64","v":561.75186473007841},{"$f":"'Population 2016'!BA64*'Prevalence Rates'!BA64","v":253.09035626011058},{"$f":"'Population 2016'!BB64*'Prevalence Rates'!BB64","v":196.31113552395212},{"$f":"'Population 2016'!BC64*'Prevalence Rates'!BC64","v":0},62]
[null,"Female 25-29",{"$f":"'Population 2016'!C65*'Prevalence Rates'!C65","v":207.58644176943039},{"$f":"'Population 2016'!D65*'Prevalence Rates'!D65","v":255.50649331271305},{"$f":"'Population 2016'!E65*'Prevalence Rates'!E65","v":47.920051543282668},{"$f":"'Population 2016'!F65*'Prevalence Rates'!F65","v":60.20208156067865},{"$f":"'Population 2016'!G65*'Prevalence Rates'!G65","v":34.631297753968987},{"$f":"'Population 2016'!H65*'Prevalence Rates'!H65","v":818.06373706032559},{"$f":"'Population 2016'!I65*'Prevalence Rates'!I65","v":41.07432989424229},{"$f":"'Population 2016'!J65*'Prevalence Rates'!J65","v":204.16358094491019},{"$f":"'Population 2016'!K65*'Prevalence Rates'!K65","v":86.175554876155388},{"$f":"'Population 2016'!L65*'Prevalence Rates'!L65","v":101.47775620930447},{"$f":"'Population 2016'!M65*'Prevalence Rates'!M65","v":101.47775620930447},{"$f":"'Population 2016'!N65*'Prevalence Rates'!N65","v":562.35589899322895},{"$f":"'Population 2016'!O65*'Prevalence Rates'!O65","v":282.28534564572396},{"$f":"'Population 2016'!P65*'Prevalence Rates'!P65","v":38.658192841639803},{"$f":"'Population 2016'!Q65*'Prevalence Rates'!Q65","v":27.584231350545068},{"$f":"'Population 2016'!R65*'Prevalence Rates'!R65","v":44.295845964378941},{"$f":"'Population 2016'!S65*'Prevalence Rates'!S65","v":1619.8185490155843},{"$f":"'Population 2016'!T65*'Prevalence Rates'!T65","v":720.41153118430839},{"$f":"'Population 2016'!U65*'Prevalence Rates'!U65","v":0},{"$f":"'Population 2016'!V65*'Prevalence Rates'!V65","v":179.59952091011823},{"$f":"'Population 2016'!W65*'Prevalence Rates'!W65","v":555.30883258980509},{"$f":"'Population 2016'!X65*'Prevalence Rates'!X65","v":555.30883258980509},{"$f":"'Population 2016'!Y65*'Prevalence Rates'!Y65","v":383.76310185502842},{"$f":"'Population 2016'!Z65*'Prevalence Rates'!Z65","v":2850.8403773165519},{"$f":"'Population 2016'!AA65*'Prevalence Rates'!AA65","v":5045.4982000971449},{"$f":"'Population 2016'!AB65*'Prevalence Rates'!AB65","v":260.13742266353449},{"$f":"'Population 2016'!AC65*'Prevalence Rates'!AC65","v":3866.8260079358979},{"$f":"'Population 2016'!AD65*'Prevalence Rates'!AD65","v":154.43142661217567},{"$f":"'Population 2016'!AE65*'Prevalence Rates'!AE65","v":119.80012885820668},{"$f":"'Population 2016'!AF65*'Prevalence Rates'!AF65","v":230.13705426038695},{"$f":"'Population 2016'!AG65*'Prevalence Rates'!AG65","v":119.80012885820668},{"$f":"'Population 2016'!AH65*'Prevalence Rates'!AH65","v":1178.6721921612468},{"$f":"'Population 2016'!AI65*'Prevalence Rates'!AI65","v":1023.435386531537},{"$f":"'Population 2016'!AJ65*'Prevalence Rates'!AJ65","v":67.853182227253185},{"$f":"'Population 2016'!AK65*'Prevalence Rates'!AK65","v":4.6309293508214342},{"$f":"'Population 2016'!AL65*'Prevalence Rates'!AL65","v":392.62227104790423},{"$f":"'Population 2016'!AM65*'Prevalence Rates'!AM65","v":748.80114155238755},{"$f":"'Population 2016'!AN65*'Prevalence Rates'!AN65","v":0},{"$f":"'Population 2016'!AO65*'Prevalence Rates'!AO65","v":0},{"$f":"'Population 2016'!AP65*'Prevalence Rates'!AP65","v":80.739246507799791},{"$f":"'Population 2016'!AQ65*'Prevalence Rates'!AQ65","v":439.93828832803626},{"$f":"'Population 2016'!AR65*'Prevalence Rates'!AR65","v":9086.4874205748056},{"$f":"'Population 2016'!AS65*'Prevalence Rates'!AS65","v":41.07432989424229},{"$f":"'Population 2016'!AT65*'Prevalence Rates'!AT65","v":0},{"$f":"'Population 2016'!AU65*'Prevalence Rates'!AU65","v":0},{"$f":"'Population 2016'!AV65*'Prevalence Rates'!AV65","v":143.15612036669739},{"$f":"'Population 2016'!AW65*'Prevalence Rates'!AW65","v":429.87105060885926},{"$f":"'Population 2016'!AX65*'Prevalence Rates'!AX65","v":117.98802606875481},{"$f":"'Population 2016'!AY65*'Prevalence Rates'!AY65","v":1258.6060596515124},{"$f":"'Population 2016'!AZ65*'Prevalence Rates'!AZ65","v":703.29722706170742},{"$f":"'Population 2016'!BA65*'Prevalence Rates'!BA65","v":262.95624922490407},{"$f":"'Population 2016'!BB65*'Prevalence Rates'!BB65","v":207.58644176943039},{"$f":"'Population 2016'!BC65*'Prevalence Rates'!BC65","v":0},63]
[null,"Female 30-34",{"$f":"'Population 2016'!C66*'Prevalence Rates'!C66","v":182.41834747148781},{"$f":"'Population 2016'!D66*'Prevalence Rates'!D66","v":229.73436475161986},{"$f":"'Population 2016'!E66*'Prevalence Rates'!E66","v":47.316017280132051},{"$f":"'Population 2016'!F66*'Prevalence Rates'!F66","v":66.846458455335494},{"$f":"'Population 2016'!G66*'Prevalence Rates'!G66","v":40.470295631091666},{"$f":"'Population 2016'!H66*'Prevalence Rates'!H66","v":726.04918430704754},{"$f":"'Population 2016'!I66*'Prevalence Rates'!I66","v":41.678364157392913},{"$f":"'Population 2016'!J66*'Prevalence Rates'!J66","v":178.59279713820055},{"$f":"'Population 2016'!K66*'Prevalence Rates'!K66","v":82.35000454286812},{"$f":"'Population 2016'!L66*'Prevalence Rates'!L66","v":86.578244384922471},{"$f":"'Population 2016'!M66*'Prevalence Rates'!M66","v":86.578244384922471},{"$f":"'Population 2016'!N66*'Prevalence Rates'!N66","v":450.81090506474749},{"$f":"'Population 2016'!O66*'Prevalence Rates'!O66","v":250.87556396189163},{"$f":"'Population 2016'!P66*'Prevalence Rates'!P66","v":33.221884473284206},{"$f":"'Population 2016'!Q66*'Prevalence Rates'!Q66","v":24.96674954355904},{"$f":"'Population 2016'!R66*'Prevalence Rates'!R66","v":43.087777438077694},{"$f":"'Population 2016'!S66*'Prevalence Rates'!S66","v":1547.9384717006603},{"$f":"'Population 2016'!T66*'Prevalence Rates'!T66","v":709.3375696932136},{"$f":"'Population 2016'!U66*'Prevalence Rates'!U66","v":0},{"$f":"'Population 2016'!V66*'Prevalence Rates'!V66","v":175.97531533121452},{"$f":"'Population 2016'!W66*'Prevalence Rates'!W66","v":489.87178741515436},{"$f":"'Population 2016'!X66*'Prevalence Rates'!X66","v":489.87178741515436},{"$f":"'Population 2016'!Y66*'Prevalence Rates'!Y66","v":354.56811246941504},{"$f":"'Population 2016'!Z66*'Prevalence Rates'!Z66","v":2413.9222603042685},{"$f":"'Population 2016'!AA66*'Prevalence Rates'!AA66","v":4589.4523314184253},{"$f":"'Population 2016'!AB66*'Prevalence Rates'!AB66","v":236.37874164627669},{"$f":"'Population 2016'!AC66*'Prevalence Rates'!AC66","v":3360.2426059069094},{"$f":"'Population 2016'!AD66*'Prevalence Rates'!AD66","v":172.35110975231078},{"$f":"'Population 2016'!AE66*'Prevalence Rates'!AE66","v":131.88081412121912},{"$f":"'Population 2016'!AF66*'Prevalence Rates'!AF66","v":225.10343540079842},{"$f":"'Population 2016'!AG66*'Prevalence Rates'!AG66","v":131.88081412121912},{"$f":"'Population 2016'!AH66*'Prevalence Rates'!AH66","v":1229.2097255115154},{"$f":"'Population 2016'!AI66*'Prevalence Rates'!AI66","v":1016.3883201281132},{"$f":"'Population 2016'!AJ66*'Prevalence Rates'!AJ66","v":59.598047297528026},{"$f":"'Population 2016'!AK66*'Prevalence Rates'!AK66","v":6.6443768946568404},{"$f":"'Population 2016'!AL66*'Prevalence Rates'!AL66","v":340.8766691713343},{"$f":"'Population 2016'!AM66*'Prevalence Rates'!AM66","v":757.05627648211282},{"$f":"'Population 2016'!AN66*'Prevalence Rates'!AN66","v":0},{"$f":"'Population 2016'!AO66*'Prevalence Rates'!AO66","v":0},{"$f":"'Population 2016'!AP66*'Prevalence Rates'!AP66","v":72.484111578074632},{"$f":"'Population 2016'!AQ66*'Prevalence Rates'!AQ66","v":375.30662217091975},{"$f":"'Population 2016'!AR66*'Prevalence Rates'!AR66","v":8303.4576707772158},{"$f":"'Population 2016'!AS66*'Prevalence Rates'!AS66","v":41.678364157392913},{"$f":"'Population 2016'!AT66*'Prevalence Rates'!AT66","v":0},{"$f":"'Population 2016'!AU66*'Prevalence Rates'!AU66","v":0},{"$f":"'Population 2016'!AV66*'Prevalence Rates'!AV66","v":134.29695117382161},{"$f":"'Population 2016'!AW66*'Prevalence Rates'!AW66","v":472.15344902940279},{"$f":"'Population 2016'!AX66*'Prevalence Rates'!AX66","v":96.242792595332418},{"$f":"'Population 2016'!AY66*'Prevalence Rates'!AY66","v":1080.0132625133119},{"$f":"'Population 2016'!AZ66*'Prevalence Rates'!AZ66","v":590.14147509815757},{"$f":"'Population 2016'!BA66*'Prevalence Rates'!BA66","v":269.6006261195609},{"$f":"'Population 2016'!BB66*'Prevalence Rates'!BB66","v":222.48595359381238},{"$f":"'Population 2016'!BC66*'Prevalence Rates'!BC66","v":0},64]
[null,"Female 35-39",{"$f":"'Population 2016'!C67*'Prevalence Rates'!C67","v":130.47140084053433},{"$f":"'Population 2016'!D67*'Prevalence Rates'!D67","v":165.10269859450332},{"$f":"'Population 2016'!E67*'Prevalence Rates'!E67","v":34.631297753968987},{"$f":"'Population 2016'!F67*'Prevalence Rates'!F67","v":60.000736806295109},{"$f":"'Population 2016'!G67*'Prevalence Rates'!G67","v":35.638021525886693},{"$f":"'Population 2016'!H67*'Prevalence Rates'!H67","v":652.15565944828813},{"$f":"'Population 2016'!I67*'Prevalence Rates'!I67","v":38.658192841639803},{"$f":"'Population 2016'!J67*'Prevalence Rates'!J67","v":155.84083989286046},{"$f":"'Population 2016'!K67*'Prevalence Rates'!K67","v":84.967486349854141},{"$f":"'Population 2016'!L67*'Prevalence Rates'!L67","v":72.685456332458173},{"$f":"'Population 2016'!M67*'Prevalence Rates'!M67","v":72.685456332458173},{"$f":"'Population 2016'!N67*'Prevalence Rates'!N67","v":352.95735443434671},{"$f":"'Population 2016'!O67*'Prevalence Rates'!O67","v":220.472506049977},{"$f":"'Population 2016'!P67*'Prevalence Rates'!P67","v":30.403057911914637},{"$f":"'Population 2016'!Q67*'Prevalence Rates'!Q67","v":29.19498938561339},{"$f":"'Population 2016'!R67*'Prevalence Rates'!R67","v":43.289122192461235},{"$f":"'Population 2016'!S67*'Prevalence Rates'!S67","v":1328.2713446682176},{"$f":"'Population 2016'!T67*'Prevalence Rates'!T67","v":568.19489687035161},{"$f":"'Population 2016'!U67*'Prevalence Rates'!U67","v":0},{"$f":"'Population 2016'!V67*'Prevalence Rates'!V67","v":138.92788052464303},{"$f":"'Population 2016'!W67*'Prevalence Rates'!W67","v":445.17325194200833},{"$f":"'Population 2016'!X67*'Prevalence Rates'!X67","v":445.17325194200833},{"$f":"'Population 2016'!Y67*'Prevalence Rates'!Y67","v":294.76872041750346},{"$f":"'Population 2016'!Z67*'Prevalence Rates'!Z67","v":2000.9641690636267},{"$f":"'Population 2016'!AA67*'Prevalence Rates'!AA67","v":3923.6052286720565},{"$f":"'Population 2016'!AB67*'Prevalence Rates'!AB67","v":169.93497269970828},{"$f":"'Population 2016'!AC67*'Prevalence Rates'!AC67","v":2829.0951438431293},{"$f":"'Population 2016'!AD67*'Prevalence Rates'!AD67","v":140.7399833140949},{"$f":"'Population 2016'!AE67*'Prevalence Rates'!AE67","v":105.10196178820821},{"$f":"'Population 2016'!AF67*'Prevalence Rates'!AF67","v":199.93534110285586},{"$f":"'Population 2016'!AG67*'Prevalence Rates'!AG67","v":105.10196178820821},{"$f":"'Population 2016'!AH67*'Prevalence Rates'!AH67","v":1094.5100848289269},{"$f":"'Population 2016'!AI67*'Prevalence Rates'!AI67","v":844.4398998845694},{"$f":"'Population 2016'!AJ67*'Prevalence Rates'!AJ67","v":56.376531227391375},{"$f":"'Population 2016'!AK67*'Prevalence Rates'!AK67","v":4.8322741052049754},{"$f":"'Population 2016'!AL67*'Prevalence Rates'!AL67","v":318.52740143476126},{"$f":"'Population 2016'!AM67*'Prevalence Rates'!AM67","v":677.52509850061426},{"$f":"'Population 2016'!AN67*'Prevalence Rates'!AN67","v":0},{"$f":"'Population 2016'!AO67*'Prevalence Rates'!AO67","v":0},{"$f":"'Population 2016'!AP67*'Prevalence Rates'!AP67","v":59.598047297528026},{"$f":"'Population 2016'!AQ67*'Prevalence Rates'!AQ67","v":331.21212096092432},{"$f":"'Population 2016'!AR67*'Prevalence Rates'!AR67","v":7054.7175040904967},{"$f":"'Population 2016'!AS67*'Prevalence Rates'!AS67","v":38.658192841639803},{"$f":"'Population 2016'!AT67*'Prevalence Rates'!AT67","v":0},{"$f":"'Population 2016'!AU67*'Prevalence Rates'!AU67","v":0},{"$f":"'Population 2016'!AV67*'Prevalence Rates'!AV67","v":113.15575196354983},{"$f":"'Population 2016'!AW67*'Prevalence Rates'!AW67","v":416.98498632831263},{"$f":"'Population 2016'!AX67*'Prevalence Rates'!AX67","v":70.873353543006303},{"$f":"'Population 2016'!AY67*'Prevalence Rates'!AY67","v":917.72939048017815},{"$f":"'Population 2016'!AZ67*'Prevalence Rates'!AZ67","v":472.55613853816988},{"$f":"'Population 2016'!BA67*'Prevalence Rates'!BA67","v":223.29133261134655},{"$f":"'Population 2016'!BB67*'Prevalence Rates'!BB67","v":190.67348240121296},{"$f":"'Population 2016'!BC67*'Prevalence Rates'!BC67","v":0},65]
[null,"Female 40-44",{"$f":"'Population 2016'!C68*'Prevalence Rates'!C68","v":133.08888264752036},{"$f":"'Population 2016'!D68*'Prevalence Rates'!D68","v":166.91480138395519},{"$f":"'Population 2016'!E68*'Prevalence Rates'!E68","v":33.825918736434829},{"$f":"'Population 2016'!F68*'Prevalence Rates'!F68","v":51.34291236780286},{"$f":"'Population 2016'!G68*'Prevalence Rates'!G68","v":41.879708911776454},{"$f":"'Population 2016'!H68*'Prevalence Rates'!H68","v":740.34466186827888},{"$f":"'Population 2016'!I68*'Prevalence Rates'!I68","v":46.913327771364969},{"$f":"'Population 2016'!J68*'Prevalence Rates'!J68","v":155.84083989286046},{"$f":"'Population 2016'!K68*'Prevalence Rates'!K68","v":81.947315034101038},{"$f":"'Population 2016'!L68*'Prevalence Rates'!L68","v":73.490835349992324},{"$f":"'Population 2016'!M68*'Prevalence Rates'!M68","v":73.490835349992324},{"$f":"'Population 2016'!N68*'Prevalence Rates'!N68","v":291.74854910175037},{"$f":"'Population 2016'!O68*'Prevalence Rates'!O68","v":248.05673740052205},{"$f":"'Population 2016'!P68*'Prevalence Rates'!P68","v":35.436676771503151},{"$f":"'Population 2016'!Q68*'Prevalence Rates'!Q68","v":21.342543964655306},{"$f":"'Population 2016'!R68*'Prevalence Rates'!R68","v":40.470295631091666},{"$f":"'Population 2016'!S68*'Prevalence Rates'!S68","v":1225.988209441379},{"$f":"'Population 2016'!T68*'Prevalence Rates'!T68","v":439.93828832803626},{"$f":"'Population 2016'!U68*'Prevalence Rates'!U68","v":0},{"$f":"'Population 2016'!V68*'Prevalence Rates'!V68","v":159.46504547176417},{"$f":"'Population 2016'!W68*'Prevalence Rates'!W68","v":458.05931622255491},{"$f":"'Population 2016'!X68*'Prevalence Rates'!X68","v":458.05931622255491},{"$f":"'Population 2016'!Y68*'Prevalence Rates'!Y68","v":315.3058853646246},{"$f":"'Population 2016'!Z68*'Prevalence Rates'!Z68","v":1791.5656245047446},{"$f":"'Population 2016'!AA68*'Prevalence Rates'!AA68","v":3710.3811337798866},{"$f":"'Population 2016'!AB68*'Prevalence Rates'!AB68","v":172.55245450669432},{"$f":"'Population 2016'!AC68*'Prevalence Rates'!AC68","v":2590.3002651442503},{"$f":"'Population 2016'!AD68*'Prevalence Rates'!AD68","v":147.78704971751881},{"$f":"'Population 2016'!AE68*'Prevalence Rates'!AE68","v":105.90734080574236},{"$f":"'Population 2016'!AF68*'Prevalence Rates'!AF68","v":201.14340962915708},{"$f":"'Population 2016'!AG68*'Prevalence Rates'!AG68","v":105.90734080574236},{"$f":"'Population 2016'!AH68*'Prevalence Rates'!AH68","v":1120.0808686356365},{"$f":"'Population 2016'!AI68*'Prevalence Rates'!AI68","v":721.01556544745904},{"$f":"'Population 2016'!AJ68*'Prevalence Rates'!AJ68","v":57.18191024492554},{"$f":"'Population 2016'!AK68*'Prevalence Rates'!AK68","v":5.6376531227391373},{"$f":"'Population 2016'!AL68*'Prevalence Rates'!AL68","v":369.87031380256411},{"$f":"'Population 2016'!AM68*'Prevalence Rates'!AM68","v":697.65957393896826},{"$f":"'Population 2016'!AN68*'Prevalence Rates'!AN68","v":0},{"$f":"'Population 2016'!AO68*'Prevalence Rates'!AO68","v":0},{"$f":"'Population 2016'!AP68*'Prevalence Rates'!AP68","v":48.926775315200373},{"$f":"'Population 2016'!AQ68*'Prevalence Rates'!AQ68","v":299.19830501394136},{"$f":"'Population 2016'!AR68*'Prevalence Rates'!AR68","v":6777.8684668131282},{"$f":"'Population 2016'!AS68*'Prevalence Rates'!AS68","v":46.913327771364969},{"$f":"'Population 2016'!AT68*'Prevalence Rates'!AT68","v":0},{"$f":"'Population 2016'!AU68*'Prevalence Rates'!AU68","v":0},{"$f":"'Population 2016'!AV68*'Prevalence Rates'!AV68","v":122.4176106651927},{"$f":"'Population 2016'!AW68*'Prevalence Rates'!AW68","v":422.42129469666827},{"$f":"'Population 2016'!AX68*'Prevalence Rates'!AX68","v":73.893524858759406},{"$f":"'Population 2016'!AY68*'Prevalence Rates'!AY68","v":850.07755300730855},{"$f":"'Population 2016'!AZ68*'Prevalence Rates'!AZ68","v":392.01823678475358},{"$f":"'Population 2016'!BA68*'Prevalence Rates'!BA68","v":222.48595359381238},{"$f":"'Population 2016'!BB68*'Prevalence Rates'!BB68","v":202.55282290984186},{"$f":"'Population 2016'!BC68*'Prevalence Rates'!BC68","v":0},66]
[null,"Female 45-49",{"$f":"'Population 2016'!C69*'Prevalence Rates'!C69","v":119.59878410382314},{"$f":"'Population 2016'!D69*'Prevalence Rates'!D69","v":159.06235596299709},{"$f":"'Population 2016'!E69*'Prevalence Rates'!E69","v":39.46357185917396},{"$f":"'Population 2016'!F69*'Prevalence Rates'!F69","v":61.208805332596349},{"$f":"'Population 2016'!G69*'Prevalence Rates'!G69","v":48.121396297666209},{"$f":"'Population 2016'!H69*'Prevalence Rates'!H69","v":882.49405846305854},{"$f":"'Population 2016'!I69*'Prevalence Rates'!I69","v":45.705259245063722},{"$f":"'Population 2016'!J69*'Prevalence Rates'!J69","v":197.72054880463691},{"$f":"'Population 2016'!K69*'Prevalence Rates'!K69","v":95.034724069031171},{"$f":"'Population 2016'!L69*'Prevalence Rates'!L69","v":92.215897507661609},{"$f":"'Population 2016'!M69*'Prevalence Rates'!M69","v":92.215897507661609},{"$f":"'Population 2016'!N69*'Prevalence Rates'!N69","v":331.61481046969141},{"$f":"'Population 2016'!O69*'Prevalence Rates'!O69","v":307.45343994366652},{"$f":"'Population 2016'!P69*'Prevalence Rates'!P69","v":42.483743174927071},{"$f":"'Population 2016'!Q69*'Prevalence Rates'!Q69","v":30.805747420681715},{"$f":"'Population 2016'!R69*'Prevalence Rates'!R69","v":49.530809578350997},{"$f":"'Population 2016'!S69*'Prevalence Rates'!S69","v":1373.1712248957472},{"$f":"'Population 2016'!T69*'Prevalence Rates'!T69","v":468.93193295926613},{"$f":"'Population 2016'!U69*'Prevalence Rates'!U69","v":0},{"$f":"'Population 2016'!V69*'Prevalence Rates'!V69","v":158.86101120861355},{"$f":"'Population 2016'!W69*'Prevalence Rates'!W69","v":555.71152209857212},{"$f":"'Population 2016'!X69*'Prevalence Rates'!X69","v":555.71152209857212},{"$f":"'Population 2016'!Y69*'Prevalence Rates'!Y69","v":356.58156001325045},{"$f":"'Population 2016'!Z69*'Prevalence Rates'!Z69","v":2102.8446147816985},{"$f":"'Population 2016'!AA69*'Prevalence Rates'!AA69","v":4411.0608790346078},{"$f":"'Population 2016'!AB69*'Prevalence Rates'!AB69","v":164.70000908573624},{"$f":"'Population 2016'!AC69*'Prevalence Rates'!AC69","v":3120.0383139273458},{"$f":"'Population 2016'!AD69*'Prevalence Rates'!AD69","v":170.94169647162599},{"$f":"'Population 2016'!AE69*'Prevalence Rates'!AE69","v":122.82030017395978},{"$f":"'Population 2016'!AF69*'Prevalence Rates'!AF69","v":270.40600513709506},{"$f":"'Population 2016'!AG69*'Prevalence Rates'!AG69","v":122.82030017395978},{"$f":"'Population 2016'!AH69*'Prevalence Rates'!AH69","v":1291.0225651072626},{"$f":"'Population 2016'!AI69*'Prevalence Rates'!AI69","v":771.75444355211118},{"$f":"'Population 2016'!AJ69*'Prevalence Rates'!AJ69","v":62.819563367664678},{"$f":"'Population 2016'!AK69*'Prevalence Rates'!AK69","v":5.6376531227391373},{"$f":"'Population 2016'!AL69*'Prevalence Rates'!AL69","v":427.2535688018732},{"$f":"'Population 2016'!AM69*'Prevalence Rates'!AM69","v":802.15750146402593},{"$f":"'Population 2016'!AN69*'Prevalence Rates'!AN69","v":0},{"$f":"'Population 2016'!AO69*'Prevalence Rates'!AO69","v":0},{"$f":"'Population 2016'!AP69*'Prevalence Rates'!AP69","v":48.121396297666209},{"$f":"'Population 2016'!AQ69*'Prevalence Rates'!AQ69","v":377.92410397790576},{"$f":"'Population 2016'!AR69*'Prevalence Rates'!AR69","v":7892.110337571642},{"$f":"'Population 2016'!AS69*'Prevalence Rates'!AS69","v":45.705259245063722},{"$f":"'Population 2016'!AT69*'Prevalence Rates'!AT69","v":0},{"$f":"'Population 2016'!AU69*'Prevalence Rates'!AU69","v":0},{"$f":"'Population 2016'!AV69*'Prevalence Rates'!AV69","v":147.78704971751881},{"$f":"'Population 2016'!AW69*'Prevalence Rates'!AW69","v":488.86506364323662},{"$f":"'Population 2016'!AX69*'Prevalence Rates'!AX69","v":102.68582473560572},{"$f":"'Population 2016'!AY69*'Prevalence Rates'!AY69","v":996.65653419852617},{"$f":"'Population 2016'!AZ69*'Prevalence Rates'!AZ69","v":440.945012099954},{"$f":"'Population 2016'!BA69*'Prevalence Rates'!BA69","v":276.84903727736838},{"$f":"'Population 2016'!BB69*'Prevalence Rates'!BB69","v":209.19719980449872},{"$f":"'Population 2016'!BC69*'Prevalence Rates'!BC69","v":0},67]
[null,"Female 50-54",{"$f":"'Population 2016'!C70*'Prevalence Rates'!C70","v":126.24316099847998},{"$f":"'Population 2016'!D70*'Prevalence Rates'!D70","v":163.49194055943499},{"$f":"'Population 2016'!E70*'Prevalence Rates'!E70","v":37.248779560955015},{"$f":"'Population 2016'!F70*'Prevalence Rates'!F70","v":56.175186473007834},{"$f":"'Population 2016'!G70*'Prevalence Rates'!G70","v":46.913327771364969},{"$f":"'Population 2016'!H70*'Prevalence Rates'!H70","v":898.80298356812534},{"$f":"'Population 2016'!I70*'Prevalence Rates'!I70","v":44.295845964378941},{"$f":"'Population 2016'!J70*'Prevalence Rates'!J70","v":182.21700271710426},{"$f":"'Population 2016'!K70*'Prevalence Rates'!K70","v":92.014552753278068},{"$f":"'Population 2016'!L70*'Prevalence Rates'!L70","v":95.236068823414712},{"$f":"'Population 2016'!M70*'Prevalence Rates'!M70","v":95.236068823414712},{"$f":"'Population 2016'!N70*'Prevalence Rates'!N70","v":375.70931167968683},{"$f":"'Population 2016'!O70*'Prevalence Rates'!O70","v":315.3058853646246},{"$f":"'Population 2016'!P70*'Prevalence Rates'!P70","v":42.685087929310612},{"$f":"'Population 2016'!Q70*'Prevalence Rates'!Q70","v":25.168094297942577},{"$f":"'Population 2016'!R70*'Prevalence Rates'!R70","v":51.946946630953484},{"$f":"'Population 2016'!S70*'Prevalence Rates'!S70","v":1320.620244001643},{"$f":"'Population 2016'!T70*'Prevalence Rates'!T70","v":421.41457092475054},{"$f":"'Population 2016'!U70*'Prevalence Rates'!U70","v":0},{"$f":"'Population 2016'!V70*'Prevalence Rates'!V70","v":169.12959368217412},{"$f":"'Population 2016'!W70*'Prevalence Rates'!W70","v":556.91959062487342},{"$f":"'Population 2016'!X70*'Prevalence Rates'!X70","v":556.91959062487342},{"$f":"'Population 2016'!Y70*'Prevalence Rates'!Y70","v":351.34659639927838},{"$f":"'Population 2016'!Z70*'Prevalence Rates'!Z70","v":2205.9331290260711},{"$f":"'Population 2016'!AA70*'Prevalence Rates'!AA70","v":4515.1561170508985},{"$f":"'Population 2016'!AB70*'Prevalence Rates'!AB70","v":168.92824892779058},{"$f":"'Population 2016'!AC70*'Prevalence Rates'!AC70","v":3214.4690037332261},{"$f":"'Population 2016'!AD70*'Prevalence Rates'!AD70","v":160.06907973491479},{"$f":"'Population 2016'!AE70*'Prevalence Rates'!AE70","v":113.15575196354983},{"$f":"'Population 2016'!AF70*'Prevalence Rates'!AF70","v":266.37911004942424},{"$f":"'Population 2016'!AG70*'Prevalence Rates'!AG70","v":113.15575196354983},{"$f":"'Population 2016'!AH70*'Prevalence Rates'!AH70","v":1300.6871133176726},{"$f":"'Population 2016'!AI70*'Prevalence Rates'!AI70","v":719.40480741239071},{"$f":"'Population 2016'!AJ70*'Prevalence Rates'!AJ70","v":63.826287139582377},{"$f":"'Population 2016'!AK70*'Prevalence Rates'!AK70","v":5.4363083683555971},{"$f":"'Population 2016'!AL70*'Prevalence Rates'!AL70","v":443.36114915255649},{"$f":"'Population 2016'!AM70*'Prevalence Rates'!AM70","v":813.83549721827126},{"$f":"'Population 2016'!AN70*'Prevalence Rates'!AN70","v":0},{"$f":"'Population 2016'!AO70*'Prevalence Rates'!AO70","v":0},{"$f":"'Population 2016'!AP70*'Prevalence Rates'!AP70","v":52.148291385337025},{"$f":"'Population 2016'!AQ70*'Prevalence Rates'!AQ70","v":362.01786838160604},{"$f":"'Population 2016'!AR70*'Prevalence Rates'!AR70","v":7994.1921280440974},{"$f":"'Population 2016'!AS70*'Prevalence Rates'!AS70","v":44.295845964378941},{"$f":"'Population 2016'!AT70*'Prevalence Rates'!AT70","v":0},{"$f":"'Population 2016'!AU70*'Prevalence Rates'!AU70","v":0},{"$f":"'Population 2016'!AV70*'Prevalence Rates'!AV70","v":140.13594905094428},{"$f":"'Population 2016'!AW70*'Prevalence Rates'!AW70","v":486.85161609940127},{"$f":"'Population 2016'!AX70*'Prevalence Rates'!AX70","v":90.202449963826197},{"$f":"'Population 2016'!AY70*'Prevalence Rates'!AY70","v":1040.952380162905},{"$f":"'Population 2016'!AZ70*'Prevalence Rates'!AZ70","v":484.03278953803169},{"$f":"'Population 2016'!BA70*'Prevalence Rates'!BA70","v":285.50686171586062},{"$f":"'Population 2016'!BB70*'Prevalence Rates'!BB70","v":208.99585505011518},{"$f":"'Population 2016'!BC70*'Prevalence Rates'!BC70","v":0},68]
[null,"Female 55-59",{"$f":"'Population 2016'!C71*'Prevalence Rates'!C71","v":72.912672676737515},{"$f":"'Population 2016'!D71*'Prevalence Rates'!D71","v":94.341720653819337},{"$f":"'Population 2016'!E71*'Prevalence Rates'!E71","v":21.429047977081819},{"$f":"'Population 2016'!F71*'Prevalence Rates'!F71","v":35.041210528561464},{"$f":"'Population 2016'!G71*'Prevalence Rates'!G71","v":30.054576722573874},{"$f":"'Population 2016'!H71*'Prevalence Rates'!H71","v":527.37021845485003},{"$f":"'Population 2016'!I71*'Prevalence Rates'!I71","v":26.280907896421098},{"$f":"'Population 2016'!J71*'Prevalence Rates'!J71","v":112.53619535134163},{"$f":"'Population 2016'!K71*'Prevalence Rates'!K71","v":56.470258505643287},{"$f":"'Population 2016'!L71*'Prevalence Rates'!L71","v":51.753172472952315},{"$f":"'Population 2016'!M71*'Prevalence Rates'!M71","v":51.753172472952315},{"$f":"'Population 2016'!N71*'Prevalence Rates'!N71","v":224.93761681603493},{"$f":"'Population 2016'!O71*'Prevalence Rates'!O71","v":170.8932882700613},{"$f":"'Population 2016'!P71*'Prevalence Rates'!P71","v":28.572063969442425},{"$f":"'Population 2016'!Q71*'Prevalence Rates'!Q71","v":18.464022470818925},{"$f":"'Population 2016'!R71*'Prevalence Rates'!R71","v":26.280907896421098},{"$f":"'Population 2016'!S71*'Prevalence Rates'!S71","v":819.69477859504161},{"$f":"'Population 2016'!T71*'Prevalence Rates'!T71","v":278.03852815547037},{"$f":"'Population 2016'!U71*'Prevalence Rates'!U71","v":0},{"$f":"'Population 2016'!V71*'Prevalence Rates'!V71","v":103.23679717260801},{"$f":"'Population 2016'!W71*'Prevalence Rates'!W71","v":329.65692674177438},{"$f":"'Population 2016'!X71*'Prevalence Rates'!X71","v":329.65692674177438},{"$f":"'Population 2016'!Y71*'Prevalence Rates'!Y71","v":215.77299252394965},{"$f":"'Population 2016'!Z71*'Prevalence Rates'!Z71","v":1278.5998626325486},{"$f":"'Population 2016'!AA71*'Prevalence Rates'!AA71","v":2685.234917580995},{"$f":"'Population 2016'!AB71*'Prevalence Rates'!AB71","v":97.441520046730531},{"$f":"'Population 2016'!AC71*'Prevalence Rates'!AC71","v":1892.6296902022641},{"$f":"'Population 2016'!AD71*'Prevalence Rates'!AD71","v":99.597902233103554},{"$f":"'Population 2016'!AE71*'Prevalence Rates'!AE71","v":69.543325510529684},{"$f":"'Population 2016'!AF71*'Prevalence Rates'!AF71","v":170.21941883681973},{"$f":"'Population 2016'!AG71*'Prevalence Rates'!AG71","v":69.543325510529684},{"$f":"'Population 2016'!AH71*'Prevalence Rates'!AH71","v":792.60522737873066},{"$f":"'Population 2016'!AI71*'Prevalence Rates'!AI71","v":463.75694395684616},{"$f":"'Population 2016'!AJ71*'Prevalence Rates'!AJ71","v":41.779904860977133},{"$f":"'Population 2016'!AK71*'Prevalence Rates'!AK71","v":3.0997993929112067},{"$f":"'Population 2016'!AL71*'Prevalence Rates'!AL71","v":264.29159171734244},{"$f":"'Population 2016'!AM71*'Prevalence Rates'!AM71","v":481.27754922112689},{"$f":"'Population 2016'!AN71*'Prevalence Rates'!AN71","v":0},{"$f":"'Population 2016'!AO71*'Prevalence Rates'!AO71","v":0},{"$f":"'Population 2016'!AP71*'Prevalence Rates'!AP71","v":31.402315589057007},{"$f":"'Population 2016'!AQ71*'Prevalence Rates'!AQ71","v":222.78123462966192},{"$f":"'Population 2016'!AR71*'Prevalence Rates'!AR71","v":4788.2466448412761},{"$f":"'Population 2016'!AS71*'Prevalence Rates'!AS71","v":26.280907896421098},{"$f":"'Population 2016'!AT71*'Prevalence Rates'!AT71","v":0},{"$f":"'Population 2016'!AU71*'Prevalence Rates'!AU71","v":0},{"$f":"'Population 2016'!AV71*'Prevalence Rates'!AV71","v":92.185338467446314},{"$f":"'Population 2016'!AW71*'Prevalence Rates'!AW71","v":311.32767815760377},{"$f":"'Population 2016'!AX71*'Prevalence Rates'!AX71","v":56.065936845698346},{"$f":"'Population 2016'!AY71*'Prevalence Rates'!AY71","v":621.03806967542778},{"$f":"'Population 2016'!AZ71*'Prevalence Rates'!AZ71","v":291.38114293365339},{"$f":"'Population 2016'!BA71*'Prevalence Rates'!BA71","v":166.17620223737035},{"$f":"'Population 2016'!BB71*'Prevalence Rates'!BB71","v":125.47448846957971},{"$f":"'Population 2016'!BC71*'Prevalence Rates'!BC71","v":0},69]
[null,"Female 60-64",{"$f":"'Population 2016'!C72*'Prevalence Rates'!C72","v":59.300510125257865},{"$f":"'Population 2016'!D72*'Prevalence Rates'!D72","v":76.147245956297027},{"$f":"'Population 2016'!E72*'Prevalence Rates'!E72","v":16.846735831039165},{"$f":"'Population 2016'!F72*'Prevalence Rates'!F72","v":28.167742309497484},{"$f":"'Population 2016'!G72*'Prevalence Rates'!G72","v":26.954777329662665},{"$f":"'Population 2016'!H72*'Prevalence Rates'!H72","v":477.50388039497415},{"$f":"'Population 2016'!I72*'Prevalence Rates'!I72","v":25.067942916586279},{"$f":"'Population 2016'!J72*'Prevalence Rates'!J72","v":86.120513568272216},{"$f":"'Population 2016'!K72*'Prevalence Rates'!K72","v":45.553573687129905},{"$f":"'Population 2016'!L72*'Prevalence Rates'!L72","v":46.496990893668098},{"$f":"'Population 2016'!M72*'Prevalence Rates'!M72","v":46.496990893668098},{"$f":"'Population 2016'!N72*'Prevalence Rates'!N72","v":179.24926924225673},{"$f":"'Population 2016'!O72*'Prevalence Rates'!O72","v":155.12474353220864},{"$f":"'Population 2016'!P72*'Prevalence Rates'!P72","v":21.968143523675074},{"$f":"'Population 2016'!Q72*'Prevalence Rates'!Q72","v":13.073067004886394},{"$f":"'Population 2016'!R72*'Prevalence Rates'!R72","v":23.181108503509893},{"$f":"'Population 2016'!S72*'Prevalence Rates'!S72","v":663.76139174294315},{"$f":"'Population 2016'!T72*'Prevalence Rates'!T72","v":207.95610709834747},{"$f":"'Population 2016'!U72*'Prevalence Rates'!U72","v":0},{"$f":"'Population 2016'!V72*'Prevalence Rates'!V72","v":87.468252434755357},{"$f":"'Population 2016'!W72*'Prevalence Rates'!W72","v":281.1383275483816},{"$f":"'Population 2016'!X72*'Prevalence Rates'!X72","v":281.1383275483816},{"$f":"'Population 2016'!Y72*'Prevalence Rates'!Y72","v":173.58876600302756},{"$f":"'Population 2016'!Z72*'Prevalence Rates'!Z72","v":984.11892030598392},{"$f":"'Population 2016'!AA72*'Prevalence Rates'!AA72","v":2166.7597756449336},{"$f":"'Population 2016'!AB72*'Prevalence Rates'!AB72","v":81.133879762284622},{"$f":"'Population 2016'!AC72*'Prevalence Rates'!AC72","v":1481.2997881516119},{"$f":"'Population 2016'!AD72*'Prevalence Rates'!AD72","v":91.781016807501373},{"$f":"'Population 2016'!AE72*'Prevalence Rates'!AE72","v":64.826239477838712},{"$f":"'Population 2016'!AF72*'Prevalence Rates'!AF72","v":140.43438988754249},{"$f":"'Population 2016'!AG72*'Prevalence Rates'!AG72","v":64.826239477838712},{"$f":"'Population 2016'!AH72*'Prevalence Rates'!AH72","v":685.45998749332159},{"$f":"'Population 2016'!AI72*'Prevalence Rates'!AI72","v":357.55512127797527},{"$f":"'Population 2016'!AJ72*'Prevalence Rates'!AJ72","v":31.267541702408693},{"$f":"'Population 2016'!AK72*'Prevalence Rates'!AK72","v":4.9866338059875934},{"$f":"'Population 2016'!AL72*'Prevalence Rates'!AL72","v":237.4715882743281},{"$f":"'Population 2016'!AM72*'Prevalence Rates'!AM72","v":412.54286703048712},{"$f":"'Population 2016'!AN72*'Prevalence Rates'!AN72","v":0},{"$f":"'Population 2016'!AO72*'Prevalence Rates'!AO72","v":0},{"$f":"'Population 2016'!AP72*'Prevalence Rates'!AP72","v":28.572063969442425},{"$f":"'Population 2016'!AQ72*'Prevalence Rates'!AQ72","v":169.68032329022648},{"$f":"'Population 2016'!AR72*'Prevalence Rates'!AR72","v":3937.0147767705289},{"$f":"'Population 2016'!AS72*'Prevalence Rates'!AS72","v":25.067942916586279},{"$f":"'Population 2016'!AT72*'Prevalence Rates'!AT72","v":0},{"$f":"'Population 2016'!AU72*'Prevalence Rates'!AU72","v":0},{"$f":"'Population 2016'!AV72*'Prevalence Rates'!AV72","v":84.907548588437393},{"$f":"'Population 2016'!AW72*'Prevalence Rates'!AW72","v":272.91712046283448},{"$f":"'Population 2016'!AX72*'Prevalence Rates'!AX72","v":40.566939881142311},{"$f":"'Population 2016'!AY72*'Prevalence Rates'!AY72","v":517.12740306957824},{"$f":"'Population 2016'!AZ72*'Prevalence Rates'!AZ72","v":235.98907552119664},{"$f":"'Population 2016'!BA72*'Prevalence Rates'!BA72","v":141.91690264067392},{"$f":"'Population 2016'!BB72*'Prevalence Rates'!BB72","v":105.25840547233271},{"$f":"'Population 2016'!BC72*'Prevalence Rates'!BC72","v":0},70]
[null,"Female 65-69",{"$f":"'Population 2016'!C73*'Prevalence Rates'!C73","v":54.987745752511842},{"$f":"'Population 2016'!D73*'Prevalence Rates'!D73","v":70.756290490364492},{"$f":"'Population 2016'!E73*'Prevalence Rates'!E73","v":15.768544737852659},{"$f":"'Population 2016'!F73*'Prevalence Rates'!F73","v":25.202716803234594},{"$f":"'Population 2016'!G73*'Prevalence Rates'!G73","v":30.3241244958705},{"$f":"'Population 2016'!H73*'Prevalence Rates'!H73","v":456.61392796448558},{"$f":"'Population 2016'!I73*'Prevalence Rates'!I73","v":26.011360123124472},{"$f":"'Population 2016'!J73*'Prevalence Rates'!J73","v":92.185338467446314},{"$f":"'Population 2016'!K73*'Prevalence Rates'!K73","v":50.135885833172559},{"$f":"'Population 2016'!L73*'Prevalence Rates'!L73","v":40.16261822119737},{"$f":"'Population 2016'!M73*'Prevalence Rates'!M73","v":40.16261822119737},{"$f":"'Population 2016'!N73*'Prevalence Rates'!N73","v":178.84494758231179},{"$f":"'Population 2016'!O73*'Prevalence Rates'!O73","v":151.21630081940756},{"$f":"'Population 2016'!P73*'Prevalence Rates'!P73","v":19.811761337302059},{"$f":"'Population 2016'!Q73*'Prevalence Rates'!Q73","v":13.74693643812796},{"$f":"'Population 2016'!R73*'Prevalence Rates'!R73","v":23.315882390158205},{"$f":"'Population 2016'!S73*'Prevalence Rates'!S73","v":661.87455732986678},{"$f":"'Population 2016'!T73*'Prevalence Rates'!T73","v":201.21741276593181},{"$f":"'Population 2016'!U73*'Prevalence Rates'!U73","v":0},{"$f":"'Population 2016'!V73*'Prevalence Rates'!V73","v":88.14212186799692},{"$f":"'Population 2016'!W73*'Prevalence Rates'!W73","v":282.75561418816136},{"$f":"'Population 2016'!X73*'Prevalence Rates'!X73","v":282.75561418816136},{"$f":"'Population 2016'!Y73*'Prevalence Rates'!Y73","v":180.32746033544322},{"$f":"'Population 2016'!Z73*'Prevalence Rates'!Z73","v":883.03850531974888},{"$f":"'Population 2016'!AA73*'Prevalence Rates'!AA73","v":2014.0609620723944},{"$f":"'Population 2016'!AB73*'Prevalence Rates'!AB73","v":75.069054863110523},{"$f":"'Population 2016'!AC73*'Prevalence Rates'!AC73","v":1359.7337423948331},{"$f":"'Population 2016'!AD73*'Prevalence Rates'!AD73","v":84.907548588437393},{"$f":"'Population 2016'!AE73*'Prevalence Rates'!AE73","v":54.583424092566901},{"$f":"'Population 2016'!AF73*'Prevalence Rates'!AF73","v":140.83871154748743},{"$f":"'Population 2016'!AG73*'Prevalence Rates'!AG73","v":54.583424092566901},{"$f":"'Population 2016'!AH73*'Prevalence Rates'!AH73","v":654.32721967756117},{"$f":"'Population 2016'!AI73*'Prevalence Rates'!AI73","v":353.1075830185809},{"$f":"'Population 2016'!AJ73*'Prevalence Rates'!AJ73","v":35.175984415209776},{"$f":"'Population 2016'!AK73*'Prevalence Rates'!AK73","v":4.3127643727460265},{"$f":"'Population 2016'!AL73*'Prevalence Rates'!AL73","v":232.61972835498881},{"$f":"'Population 2016'!AM73*'Prevalence Rates'!AM73","v":391.11381905340528},{"$f":"'Population 2016'!AN73*'Prevalence Rates'!AN73","v":0},{"$f":"'Population 2016'!AO73*'Prevalence Rates'!AO73","v":0},{"$f":"'Population 2016'!AP73*'Prevalence Rates'!AP73","v":24.528847369993027},{"$f":"'Population 2016'!AQ73*'Prevalence Rates'!AQ73","v":163.48072450440407},{"$f":"'Population 2016'!AR73*'Prevalence Rates'!AR73","v":3741.5926411304745},{"$f":"'Population 2016'!AS73*'Prevalence Rates'!AS73","v":26.011360123124472},{"$f":"'Population 2016'!AT73*'Prevalence Rates'!AT73","v":0},{"$f":"'Population 2016'!AU73*'Prevalence Rates'!AU73","v":0},{"$f":"'Population 2016'!AV73*'Prevalence Rates'!AV73","v":72.777898790089196},{"$f":"'Population 2016'!AW73*'Prevalence Rates'!AW73","v":263.21340062415595},{"$f":"'Population 2016'!AX73*'Prevalence Rates'!AX73","v":42.049452634273756},{"$f":"'Population 2016'!AY73*'Prevalence Rates'!AY73","v":511.33212594370076},{"$f":"'Population 2016'!AZ73*'Prevalence Rates'!AZ73","v":228.5765117555394},{"$f":"'Population 2016'!BA73*'Prevalence Rates'!BA73","v":129.24815729573248},{"$f":"'Population 2016'!BB73*'Prevalence Rates'!BB73","v":102.96724939931138},{"$f":"'Population 2016'!BC73*'Prevalence Rates'!BC73","v":0},71]
[null,"Female 70-74",{"$f":"'Population 2016'!C74*'Prevalence Rates'!C74","v":38.680105468065925},{"$f":"'Population 2016'!D74*'Prevalence Rates'!D74","v":49.462016399930995},{"$f":"'Population 2016'!E74*'Prevalence Rates'!E74","v":10.781910931865067},{"$f":"'Population 2016'!F74*'Prevalence Rates'!F74","v":21.698595750378445},{"$f":"'Population 2016'!G74*'Prevalence Rates'!G74","v":22.372465183620012},{"$f":"'Population 2016'!H74*'Prevalence Rates'!H74","v":357.42034739132697},{"$f":"'Population 2016'!I74*'Prevalence Rates'!I74","v":20.081309110598685},{"$f":"'Population 2016'!J74*'Prevalence Rates'!J74","v":71.160612150309433},{"$f":"'Population 2016'!K74*'Prevalence Rates'!K74","v":37.601914374879421},{"$f":"'Population 2016'!L74*'Prevalence Rates'!L74","v":41.914678747625445},{"$f":"'Population 2016'!M74*'Prevalence Rates'!M74","v":41.914678747625445},{"$f":"'Population 2016'!N74*'Prevalence Rates'!N74","v":129.11338340908418},{"$f":"'Population 2016'!O74*'Prevalence Rates'!O74","v":116.84895972408766},{"$f":"'Population 2016'!P74*'Prevalence Rates'!P74","v":13.74693643812796},{"$f":"'Population 2016'!Q74*'Prevalence Rates'!Q74","v":11.72532813840326},{"$f":"'Population 2016'!R74*'Prevalence Rates'!R74","v":16.711961944390854},{"$f":"'Population 2016'!S74*'Prevalence Rates'!S74","v":510.25393485051427},{"$f":"'Population 2016'!T74*'Prevalence Rates'!T74","v":146.36444090006827},{"$f":"'Population 2016'!U74*'Prevalence Rates'!U74","v":0},{"$f":"'Population 2016'!V74*'Prevalence Rates'!V74","v":63.748048384652208},{"$f":"'Population 2016'!W74*'Prevalence Rates'!W74","v":224.12897349614508},{"$f":"'Population 2016'!X74*'Prevalence Rates'!X74","v":224.12897349614508},{"$f":"'Population 2016'!Y74*'Prevalence Rates'!Y74","v":134.90866053496165},{"$f":"'Population 2016'!Z74*'Prevalence Rates'!Z74","v":727.23989235429872},{"$f":"'Population 2016'!AA74*'Prevalence Rates'!AA74","v":1604.0787988882253},{"$f":"'Population 2016'!AB74*'Prevalence Rates'!AB74","v":51.348850813007381},{"$f":"'Population 2016'!AC74*'Prevalence Rates'!AC74","v":1085.3341091788673},{"$f":"'Population 2016'!AD74*'Prevalence Rates'!AD74","v":65.095787251135334},{"$f":"'Population 2016'!AE74*'Prevalence Rates'!AE74","v":42.723322067515326},{"$f":"'Population 2016'!AF74*'Prevalence Rates'!AF74","v":106.2018226788709},{"$f":"'Population 2016'!AG74*'Prevalence Rates'!AG74","v":42.723322067515326},{"$f":"'Population 2016'!AH74*'Prevalence Rates'!AH74","v":518.744689709358},{"$f":"'Population 2016'!AI74*'Prevalence Rates'!AI74","v":266.04365224377051},{"$f":"'Population 2016'!AJ74*'Prevalence Rates'!AJ74","v":26.685229556366039},{"$f":"'Population 2016'!AK74*'Prevalence Rates'!AK74","v":1.8868344130763866},{"$f":"'Population 2016'!AL74*'Prevalence Rates'!AL74","v":181.27087754198143},{"$f":"'Population 2016'!AM74*'Prevalence Rates'!AM74","v":320.62707633633738},{"$f":"'Population 2016'!AN74*'Prevalence Rates'!AN74","v":0},{"$f":"'Population 2016'!AO74*'Prevalence Rates'!AO74","v":0},{"$f":"'Population 2016'!AP74*'Prevalence Rates'!AP74","v":20.350856883895311},{"$f":"'Population 2016'!AQ74*'Prevalence Rates'!AQ74","v":129.38293118238079},{"$f":"'Population 2016'!AR74*'Prevalence Rates'!AR74","v":2936.1838945201544},{"$f":"'Population 2016'!AS74*'Prevalence Rates'!AS74","v":20.081309110598685},{"$f":"'Population 2016'!AT74*'Prevalence Rates'!AT74","v":0},{"$f":"'Population 2016'!AU74*'Prevalence Rates'!AU74","v":0},{"$f":"'Population 2016'!AV74*'Prevalence Rates'!AV74","v":59.300510125257865},{"$f":"'Population 2016'!AW74*'Prevalence Rates'!AW74","v":198.11761337302059},{"$f":"'Population 2016'!AX74*'Prevalence Rates'!AX74","v":33.558697775430019},{"$f":"'Population 2016'!AY74*'Prevalence Rates'!AY74","v":395.29180953950299},{"$f":"'Population 2016'!AZ74*'Prevalence Rates'!AZ74","v":171.16283604335794},{"$f":"'Population 2016'!BA74*'Prevalence Rates'!BA74","v":92.05056458079801},{"$f":"'Population 2016'!BB74*'Prevalence Rates'!BB74","v":81.26865364893294},{"$f":"'Population 2016'!BC74*'Prevalence Rates'!BC74","v":0},72]
[null,"Female 75-79",{"$f":"'Population 2016'!C75*'Prevalence Rates'!C75","v":32.750054455540138},{"$f":"'Population 2016'!D75*'Prevalence Rates'!D75","v":40.027844334549059},{"$f":"'Population 2016'!E75*'Prevalence Rates'!E75","v":7.2777898790089202},{"$f":"'Population 2016'!F75*'Prevalence Rates'!F75","v":22.372465183620012},{"$f":"'Population 2016'!G75*'Prevalence Rates'!G75","v":19.407439677357118},{"$f":"'Population 2016'!H75*'Prevalence Rates'!H75","v":308.36265265134091},{"$f":"'Population 2016'!I75*'Prevalence Rates'!I75","v":14.016484211424586},{"$f":"'Population 2016'!J75*'Prevalence Rates'!J75","v":55.526841299105094},{"$f":"'Population 2016'!K75*'Prevalence Rates'!K75","v":28.70683785609074},{"$f":"'Population 2016'!L75*'Prevalence Rates'!L75","v":25.47226457653122},{"$f":"'Population 2016'!M75*'Prevalence Rates'!M75","v":25.47226457653122},{"$f":"'Population 2016'!N75*'Prevalence Rates'!N75","v":113.07529089793488},{"$f":"'Population 2016'!O75*'Prevalence Rates'!O75","v":99.597902233103554},{"$f":"'Population 2016'!P75*'Prevalence Rates'!P75","v":11.590554251754947},{"$f":"'Population 2016'!Q75*'Prevalence Rates'!Q75","v":10.1080414986235},{"$f":"'Population 2016'!R75*'Prevalence Rates'!R75","v":14.690353644666153},{"$f":"'Population 2016'!S75*'Prevalence Rates'!S75","v":419.82065690949599},{"$f":"'Population 2016'!T75*'Prevalence Rates'!T75","v":129.65247895567742},{"$f":"'Population 2016'!U75*'Prevalence Rates'!U75","v":0},{"$f":"'Population 2016'!V75*'Prevalence Rates'!V75","v":68.465134417343165},{"$f":"'Population 2016'!W75*'Prevalence Rates'!W75","v":183.96635527494769},{"$f":"'Population 2016'!X75*'Prevalence Rates'!X75","v":183.96635527494769},{"$f":"'Population 2016'!Y75*'Prevalence Rates'!Y75","v":123.99197571644827},{"$f":"'Population 2016'!Z75*'Prevalence Rates'!Z75","v":689.36843020612264},{"$f":"'Population 2016'!AA75*'Prevalence Rates'!AA75","v":1456.9057146682671},{"$f":"'Population 2016'!AB75*'Prevalence Rates'!AB75","v":41.375583201032192},{"$f":"'Population 2016'!AC75*'Prevalence Rates'!AC75","v":1025.4945035070161},{"$f":"'Population 2016'!AD75*'Prevalence Rates'!AD75","v":55.122519639160153},{"$f":"'Population 2016'!AE75*'Prevalence Rates'!AE75","v":35.715079961803035},{"$f":"'Population 2016'!AF75*'Prevalence Rates'!AF75","v":101.21518887288332},{"$f":"'Population 2016'!AG75*'Prevalence Rates'!AG75","v":35.715079961803035},{"$f":"'Population 2016'!AH75*'Prevalence Rates'!AH75","v":431.41121116125095},{"$f":"'Population 2016'!AI75*'Prevalence Rates'!AI75","v":221.83781742312374},{"$f":"'Population 2016'!AJ75*'Prevalence Rates'!AJ75","v":17.520605264280732},{"$f":"'Population 2016'!AK75*'Prevalence Rates'!AK75","v":1.3477388664831333},{"$f":"'Population 2016'!AL75*'Prevalence Rates'!AL75","v":157.28112571858165},{"$f":"'Population 2016'!AM75*'Prevalence Rates'!AM75","v":265.10023503723232},{"$f":"'Population 2016'!AN75*'Prevalence Rates'!AN75","v":0},{"$f":"'Population 2016'!AO75*'Prevalence Rates'!AO75","v":0},{"$f":"'Population 2016'!AP75*'Prevalence Rates'!AP75","v":12.803519231589766},{"$f":"'Population 2016'!AQ75*'Prevalence Rates'!AQ75","v":129.11338340908418},{"$f":"'Population 2016'!AR75*'Prevalence Rates'!AR75","v":2579.3026426754204},{"$f":"'Population 2016'!AS75*'Prevalence Rates'!AS75","v":14.016484211424586},{"$f":"'Population 2016'!AT75*'Prevalence Rates'!AT75","v":0},{"$f":"'Population 2016'!AU75*'Prevalence Rates'!AU75","v":0},{"$f":"'Population 2016'!AV75*'Prevalence Rates'!AV75","v":51.483624699655692},{"$f":"'Population 2016'!AW75*'Prevalence Rates'!AW75","v":166.31097612401865},{"$f":"'Population 2016'!AX75*'Prevalence Rates'!AX75","v":26.820003443014354},{"$f":"'Population 2016'!AY75*'Prevalence Rates'!AY75","v":332.21763058809233},{"$f":"'Population 2016'!AZ75*'Prevalence Rates'!AZ75","v":148.25127531314467},{"$f":"'Population 2016'!BA75*'Prevalence Rates'!BA75","v":79.516593122504858},{"$f":"'Population 2016'!BB75*'Prevalence Rates'!BB75","v":64.556691704542089},{"$f":"'Population 2016'!BC75*'Prevalence Rates'!BC75","v":0},73]
[null,"Female 80-84",{"$f":"'Population 2016'!C76*'Prevalence Rates'!C76","v":25.47226457653122},{"$f":"'Population 2016'!D76*'Prevalence Rates'!D76","v":32.210958908946886},{"$f":"'Population 2016'!E76*'Prevalence Rates'!E76","v":6.7386943324156663},{"$f":"'Population 2016'!F76*'Prevalence Rates'!F76","v":13.073067004886394},{"$f":"'Population 2016'!G76*'Prevalence Rates'!G76","v":15.768544737852659},{"$f":"'Population 2016'!H76*'Prevalence Rates'!H76","v":225.34193847597987},{"$f":"'Population 2016'!I76*'Prevalence Rates'!I76","v":11.051458705161693},{"$f":"'Population 2016'!J76*'Prevalence Rates'!J76","v":41.914678747625445},{"$f":"'Population 2016'!K76*'Prevalence Rates'!K76","v":18.868344130763866},{"$f":"'Population 2016'!L76*'Prevalence Rates'!L76","v":20.350856883895311},{"$f":"'Population 2016'!M76*'Prevalence Rates'!M76","v":20.350856883895311},{"$f":"'Population 2016'!N76*'Prevalence Rates'!N76","v":90.433277941018247},{"$f":"'Population 2016'!O76*'Prevalence Rates'!O76","v":75.473376523055464},{"$f":"'Population 2016'!P76*'Prevalence Rates'!P76","v":7.5473376523055462},{"$f":"'Population 2016'!Q76*'Prevalence Rates'!Q76","v":5.6605032392291594},{"$f":"'Population 2016'!R76*'Prevalence Rates'!R76","v":12.668745344941453},{"$f":"'Population 2016'!S76*'Prevalence Rates'!S76","v":318.60546803661271},{"$f":"'Population 2016'!T76*'Prevalence Rates'!T76","v":102.69770162601476},{"$f":"'Population 2016'!U76*'Prevalence Rates'!U76","v":0},{"$f":"'Population 2016'!V76*'Prevalence Rates'!V76","v":48.922920853337736},{"$f":"'Population 2016'!W76*'Prevalence Rates'!W76","v":132.88705223523695},{"$f":"'Population 2016'!X76*'Prevalence Rates'!X76","v":132.88705223523695},{"$f":"'Population 2016'!Y76*'Prevalence Rates'!Y76","v":90.837599600963188},{"$f":"'Population 2016'!Z76*'Prevalence Rates'!Z76","v":545.69946703902065},{"$f":"'Population 2016'!AA76*'Prevalence Rates'!AA76","v":1141.9391415711589},{"$f":"'Population 2016'!AB76*'Prevalence Rates'!AB76","v":33.558697775430019},{"$f":"'Population 2016'!AC76*'Prevalence Rates'!AC76","v":812.95608426262595},{"$f":"'Population 2016'!AD76*'Prevalence Rates'!AD76","v":42.588548180867015},{"$f":"'Population 2016'!AE76*'Prevalence Rates'!AE76","v":26.820003443014354},{"$f":"'Population 2016'!AF76*'Prevalence Rates'!AF76","v":80.594784215691377},{"$f":"'Population 2016'!AG76*'Prevalence Rates'!AG76","v":26.820003443014354},{"$f":"'Population 2016'!AH76*'Prevalence Rates'!AH76","v":328.98305730853286},{"$f":"'Population 2016'!AI76*'Prevalence Rates'!AI76","v":174.66695709621408},{"$f":"'Population 2016'!AJ76*'Prevalence Rates'!AJ76","v":18.329248584170614},{"$f":"'Population 2016'!AK76*'Prevalence Rates'!AK76","v":1.3477388664831333},{"$f":"'Population 2016'!AL76*'Prevalence Rates'!AL76","v":110.64936093826525},{"$f":"'Population 2016'!AM76*'Prevalence Rates'!AM76","v":199.60012612615205},{"$f":"'Population 2016'!AN76*'Prevalence Rates'!AN76","v":0},{"$f":"'Population 2016'!AO76*'Prevalence Rates'!AO76","v":0},{"$f":"'Population 2016'!AP76*'Prevalence Rates'!AP76","v":14.690353644666153},{"$f":"'Population 2016'!AQ76*'Prevalence Rates'!AQ76","v":106.06704879222259},{"$f":"'Population 2016'!AR76*'Prevalence Rates'!AR76","v":1991.4189491154777},{"$f":"'Population 2016'!AS76*'Prevalence Rates'!AS76","v":11.051458705161693},{"$f":"'Population 2016'!AT76*'Prevalence Rates'!AT76","v":0},{"$f":"'Population 2016'!AU76*'Prevalence Rates'!AU76","v":0},{"$f":"'Population 2016'!AV76*'Prevalence Rates'!AV76","v":39.219201014659177},{"$f":"'Population 2016'!AW76*'Prevalence Rates'!AW76","v":129.38293118238079},{"$f":"'Population 2016'!AX76*'Prevalence Rates'!AX76","v":23.046334616861579},{"$f":"'Population 2016'!AY76*'Prevalence Rates'!AY76","v":251.08375082580773},{"$f":"'Population 2016'!AZ76*'Prevalence Rates'!AZ76","v":118.19669859057079},{"$f":"'Population 2016'!BA76*'Prevalence Rates'!BA76","v":60.37870121844437},{"$f":"'Population 2016'!BB76*'Prevalence Rates'!BB76","v":47.979503646799543},{"$f":"'Population 2016'!BC76*'Prevalence Rates'!BC76","v":0},74]
[null,"Female 85-89",{"$f":"'Population 2016'!C77*'Prevalence Rates'!C77","v":19.542213564005433},{"$f":"'Population 2016'!D77*'Prevalence Rates'!D77","v":24.259299596696398},{"$f":"'Population 2016'!E77*'Prevalence Rates'!E77","v":4.7170860326909665},{"$f":"'Population 2016'!F77*'Prevalence Rates'!F77","v":8.0864331988987992},{"$f":"'Population 2016'!G77*'Prevalence Rates'!G77","v":11.590554251754947},{"$f":"'Population 2016'!H77*'Prevalence Rates'!H77","v":138.41278158781779},{"$f":"'Population 2016'!I77*'Prevalence Rates'!I77","v":7.9516593122504862},{"$f":"'Population 2016'!J77*'Prevalence Rates'!J77","v":22.2376912969717},{"$f":"'Population 2016'!K77*'Prevalence Rates'!K77","v":11.860102025051573},{"$f":"'Population 2016'!L77*'Prevalence Rates'!L77","v":13.612162551479646},{"$f":"'Population 2016'!M77*'Prevalence Rates'!M77","v":13.612162551479646},{"$f":"'Population 2016'!N77*'Prevalence Rates'!N77","v":59.570057898554488},{"$f":"'Population 2016'!O77*'Prevalence Rates'!O77","v":51.348850813007381},{"$f":"'Population 2016'!P77*'Prevalence Rates'!P77","v":4.4475382593943396},{"$f":"'Population 2016'!Q77*'Prevalence Rates'!Q77","v":2.8302516196145797},{"$f":"'Population 2016'!R77*'Prevalence Rates'!R77","v":5.9300510125257864},{"$f":"'Population 2016'!S77*'Prevalence Rates'!S77","v":191.91801458719817},{"$f":"'Population 2016'!T77*'Prevalence Rates'!T77","v":68.599908303991484},{"$f":"'Population 2016'!U77*'Prevalence Rates'!U77","v":0},{"$f":"'Population 2016'!V77*'Prevalence Rates'!V77","v":29.245933402683992},{"$f":"'Population 2016'!W77*'Prevalence Rates'!W77","v":81.538201422229562},{"$f":"'Population 2016'!X77*'Prevalence Rates'!X77","v":81.538201422229562},{"$f":"'Population 2016'!Y77*'Prevalence Rates'!Y77","v":51.483624699655692},{"$f":"'Population 2016'!Z77*'Prevalence Rates'!Z77","v":318.06637249001943},{"$f":"'Population 2016'!AA77*'Prevalence Rates'!AA77","v":671.84782494184196},{"$f":"'Population 2016'!AB77*'Prevalence Rates'!AB77","v":25.337490689882905},{"$f":"'Population 2016'!AC77*'Prevalence Rates'!AC77","v":482.08619254101677},{"$f":"'Population 2016'!AD77*'Prevalence Rates'!AD77","v":28.032968422849173},{"$f":"'Population 2016'!AE77*'Prevalence Rates'!AE77","v":16.442414171094224},{"$f":"'Population 2016'!AF77*'Prevalence Rates'!AF77","v":48.653373080041113},{"$f":"'Population 2016'!AG77*'Prevalence Rates'!AG77","v":16.442414171094224},{"$f":"'Population 2016'!AH77*'Prevalence Rates'!AH77","v":189.76163240082516},{"$f":"'Population 2016'!AI77*'Prevalence Rates'!AI77","v":102.42815385271813},{"$f":"'Population 2016'!AJ77*'Prevalence Rates'!AJ77","v":9.703719838678559},{"$f":"'Population 2016'!AK77*'Prevalence Rates'!AK77","v":1.0781910931865066},{"$f":"'Population 2016'!AL77*'Prevalence Rates'!AL77","v":61.05257065168594},{"$f":"'Population 2016'!AM77*'Prevalence Rates'!AM77","v":120.48785466359212},{"$f":"'Population 2016'!AN77*'Prevalence Rates'!AN77","v":0},{"$f":"'Population 2016'!AO77*'Prevalence Rates'!AO77","v":0},{"$f":"'Population 2016'!AP77*'Prevalence Rates'!AP77","v":7.0082421057122932},{"$f":"'Population 2016'!AQ77*'Prevalence Rates'!AQ77","v":61.05257065168594},{"$f":"'Population 2016'!AR77*'Prevalence Rates'!AR77","v":1195.3096006838909},{"$f":"'Population 2016'!AS77*'Prevalence Rates'!AS77","v":7.9516593122504862},{"$f":"'Population 2016'!AT77*'Prevalence Rates'!AT77","v":0},{"$f":"'Population 2016'!AU77*'Prevalence Rates'!AU77","v":0},{"$f":"'Population 2016'!AV77*'Prevalence Rates'!AV77","v":26.011360123124472},{"$f":"'Population 2016'!AW77*'Prevalence Rates'!AW77","v":69.273777737233047},{"$f":"'Population 2016'!AX77*'Prevalence Rates'!AX77","v":10.377589271920126},{"$f":"'Population 2016'!AY77*'Prevalence Rates'!AY77","v":156.20293462539516},{"$f":"'Population 2016'!AZ77*'Prevalence Rates'!AZ77","v":74.664733203165582},{"$f":"'Population 2016'!BA77*'Prevalence Rates'!BA77","v":43.936287047350149},{"$f":"'Population 2016'!BB77*'Prevalence Rates'!BB77","v":21.294274090433507},{"$f":"'Population 2016'!BC77*'Prevalence Rates'!BC77","v":0},75]
[null,"Female 90+",{"$f":"'Population 2016'!C78*'Prevalence Rates'!C78","v":9.568945952030246},{"$f":"'Population 2016'!D78*'Prevalence Rates'!D78","v":11.994875911699886},{"$f":"'Population 2016'!E78*'Prevalence Rates'!E78","v":2.4259299596696398},{"$f":"'Population 2016'!F78*'Prevalence Rates'!F78","v":4.9866338059875934},{"$f":"'Population 2016'!G78*'Prevalence Rates'!G78","v":7.4125637656572332},{"$f":"'Population 2016'!H78*'Prevalence Rates'!H78","v":76.551567616241968},{"$f":"'Population 2016'!I78*'Prevalence Rates'!I78","v":3.2345732795595197},{"$f":"'Population 2016'!J78*'Prevalence Rates'!J78","v":13.477388664831333},{"$f":"'Population 2016'!K78*'Prevalence Rates'!K78","v":7.5473376523055462},{"$f":"'Population 2016'!L78*'Prevalence Rates'!L78","v":5.3909554659325334},{"$f":"'Population 2016'!M78*'Prevalence Rates'!M78","v":5.3909554659325334},{"$f":"'Population 2016'!N78*'Prevalence Rates'!N78","v":32.210958908946886},{"$f":"'Population 2016'!O78*'Prevalence Rates'!O78","v":27.359098989607606},{"$f":"'Population 2016'!P78*'Prevalence Rates'!P78","v":0.67386943324156667},{"$f":"'Population 2016'!Q78*'Prevalence Rates'!Q78","v":0.80864331988987992},{"$f":"'Population 2016'!R78*'Prevalence Rates'!R78","v":3.5041210528561466},{"$f":"'Population 2016'!S78*'Prevalence Rates'!S78","v":109.70594373172705},{"$f":"'Population 2016'!T78*'Prevalence Rates'!T78","v":36.523723281692909},{"$f":"'Population 2016'!U78*'Prevalence Rates'!U78","v":0},{"$f":"'Population 2016'!V78*'Prevalence Rates'!V78","v":14.016484211424586},{"$f":"'Population 2016'!W78*'Prevalence Rates'!W78","v":47.440408100206291},{"$f":"'Population 2016'!X78*'Prevalence Rates'!X78","v":47.440408100206291},{"$f":"'Population 2016'!Y78*'Prevalence Rates'!Y78","v":27.493872876255921},{"$f":"'Population 2016'!Z78*'Prevalence Rates'!Z78","v":171.43238381665455},{"$f":"'Population 2016'!AA78*'Prevalence Rates'!AA78","v":361.73311176407299},{"$f":"'Population 2016'!AB78*'Prevalence Rates'!AB78","v":12.264423684996514},{"$f":"'Population 2016'!AC78*'Prevalence Rates'!AC78","v":257.14857572498181},{"$f":"'Population 2016'!AD78*'Prevalence Rates'!AD78","v":16.307640284445913},{"$f":"'Population 2016'!AE78*'Prevalence Rates'!AE78","v":8.8950765187886791},{"$f":"'Population 2016'!AF78*'Prevalence Rates'!AF78","v":24.394073483344712},{"$f":"'Population 2016'!AG78*'Prevalence Rates'!AG78","v":8.8950765187886791},{"$f":"'Population 2016'!AH78*'Prevalence Rates'!AH78","v":104.58453603909115},{"$f":"'Population 2016'!AI78*'Prevalence Rates'!AI78","v":59.030962351961236},{"$f":"'Population 2016'!AJ78*'Prevalence Rates'!AJ78","v":5.1214076926359065},{"$f":"'Population 2016'!AK78*'Prevalence Rates'!AK78","v":0.26954777329662666},{"$f":"'Population 2016'!AL78*'Prevalence Rates'!AL78","v":34.636888868616523},{"$f":"'Population 2016'!AM78*'Prevalence Rates'!AM78","v":62.535083404817385},{"$f":"'Population 2016'!AN78*'Prevalence Rates'!AN78","v":0},{"$f":"'Population 2016'!AO78*'Prevalence Rates'!AO78","v":0},{"$f":"'Population 2016'!AP78*'Prevalence Rates'!AP78","v":3.6388949395044601},{"$f":"'Population 2016'!AQ78*'Prevalence Rates'!AQ78","v":28.437290082794114},{"$f":"'Population 2016'!AR78*'Prevalence Rates'!AR78","v":650.28400307811182},{"$f":"'Population 2016'!AS78*'Prevalence Rates'!AS78","v":3.2345732795595197},{"$f":"'Population 2016'!AT78*'Prevalence Rates'!AT78","v":0},{"$f":"'Population 2016'!AU78*'Prevalence Rates'!AU78","v":0},{"$f":"'Population 2016'!AV78*'Prevalence Rates'!AV78","v":14.55557975801784},{"$f":"'Population 2016'!AW78*'Prevalence Rates'!AW78","v":42.049452634273756},{"$f":"'Population 2016'!AX78*'Prevalence Rates'!AX78","v":5.9300510125257864},{"$f":"'Population 2016'!AY78*'Prevalence Rates'!AY78","v":88.276895754645224},{"$f":"'Population 2016'!AZ78*'Prevalence Rates'!AZ78","v":40.83648765443894},{"$f":"'Population 2016'!BA78*'Prevalence Rates'!BA78","v":28.70683785609074},{"$f":"'Population 2016'!BB78*'Prevalence Rates'!BB78","v":16.577188057742539},{"$f":"'Population 2016'!BC78*'Prevalence Rates'!BC78","v":0},76]
[null,"Male 0-4",{"$f":"'Population 2016'!C79*'Prevalence Rates'!C79","v":0},{"$f":"'Population 2016'!D79*'Prevalence Rates'!D79","v":0},{"$f":"'Population 2016'!E79*'Prevalence Rates'!E79","v":0},{"$f":"'Population 2016'!F79*'Prevalence Rates'!F79","v":0},{"$f":"'Population 2016'!G79*'Prevalence Rates'!G79","v":0},{"$f":"'Population 2016'!H79*'Prevalence Rates'!H79","v":0},{"$f":"'Population 2016'!I79*'Prevalence Rates'!I79","v":0},{"$f":"'Population 2016'!J79*'Prevalence Rates'!J79","v":0},{"$f":"'Population 2016'!K79*'Prevalence Rates'!K79","v":0},{"$f":"'Population 2016'!L79*'Prevalence Rates'!L79","v":0},{"$f":"'Population 2016'!M79*'Prevalence Rates'!M79","v":0},{"$f":"'Population 2016'!N79*'Prevalence Rates'!N79","v":0},{"$f":"'Population 2016'!O79*'Prevalence Rates'!O79","v":0},{"$f":"'Population 2016'!P79*'Prevalence Rates'!P79","v":0},{"$f":"'Population 2016'!Q79*'Prevalence Rates'!Q79","v":0},{"$f":"'Population 2016'!R79*'Prevalence Rates'!R79","v":0},{"$f":"'Population 2016'!S79*'Prevalence Rates'!S79","v":0},{"$f":"'Population 2016'!T79*'Prevalence Rates'!T79","v":0},{"$f":"'Population 2016'!U79*'Prevalence Rates'!U79","v":0},{"$f":"'Population 2016'!V79*'Prevalence Rates'!V79","v":0},{"$f":"'Population 2016'!W79*'Prevalence Rates'!W79","v":0},{"$f":"'Population 2016'!X79*'Prevalence Rates'!X79","v":0},{"$f":"'Population 2016'!Y79*'Prevalence Rates'!Y79","v":0},{"$f":"'Population 2016'!Z79*'Prevalence Rates'!Z79","v":0},{"$f":"'Population 2016'!AA79*'Prevalence Rates'!AA79","v":0},{"$f":"'Population 2016'!AB79*'Prevalence Rates'!AB79","v":0},{"$f":"'Population 2016'!AC79*'Prevalence Rates'!AC79","v":0},{"$f":"'Population 2016'!AD79*'Prevalence Rates'!AD79","v":0},{"$f":"'Population 2016'!AE79*'Prevalence Rates'!AE79","v":0},{"$f":"'Population 2016'!AF79*'Prevalence Rates'!AF79","v":0},{"$f":"'Population 2016'!AG79*'Prevalence Rates'!AG79","v":0},{"$f":"'Population 2016'!AH79*'Prevalence Rates'!AH79","v":0},{"$f":"'Population 2016'!AI79*'Prevalence Rates'!AI79","v":0},{"$f":"'Population 2016'!AJ79*'Prevalence Rates'!AJ79","v":0},{"$f":"'Population 2016'!AK79*'Prevalence Rates'!AK79","v":0},{"$f":"'Population 2016'!AL79*'Prevalence Rates'!AL79","v":0},{"$f":"'Population 2016'!AM79*'Prevalence Rates'!AM79","v":0},{"$f":"'Population 2016'!AN79*'Prevalence Rates'!AN79","v":0},{"$f":"'Population 2016'!AO79*'Prevalence Rates'!AO79","v":0},{"$f":"'Population 2016'!AP79*'Prevalence Rates'!AP79","v":0},{"$f":"'Population 2016'!AQ79*'Prevalence Rates'!AQ79","v":0},{"$f":"'Population 2016'!AR79*'Prevalence Rates'!AR79","v":0},{"$f":"'Population 2016'!AS79*'Prevalence Rates'!AS79","v":0},{"$f":"'Population 2016'!AT79*'Prevalence Rates'!AT79","v":0},{"$f":"'Population 2016'!AU79*'Prevalence Rates'!AU79","v":0},{"$f":"'Population 2016'!AV79*'Prevalence Rates'!AV79","v":0},{"$f":"'Population 2016'!AW79*'Prevalence Rates'!AW79","v":0},{"$f":"'Population 2016'!AX79*'Prevalence Rates'!AX79","v":0},{"$f":"'Population 2016'!AY79*'Prevalence Rates'!AY79","v":0},{"$f":"'Population 2016'!AZ79*'Prevalence Rates'!AZ79","v":0},{"$f":"'Population 2016'!BA79*'Prevalence Rates'!BA79","v":0},{"$f":"'Population 2016'!BB79*'Prevalence Rates'!BB79","v":0},{"$f":"'Population 2016'!BC79*'Prevalence Rates'!BC79","v":0},77]
[null,"Male 5-9",{"$f":"'Population 2016'!C80*'Prevalence Rates'!C80","v":0},{"$f":"'Population 2016'!D80*'Prevalence Rates'!D80","v":0},{"$f":"'Population 2016'!E80*'Prevalence Rates'!E80","v":0},{"$f":"'Population 2016'!F80*'Prevalence Rates'!F80","v":0},{"$f":"'Population 2016'!G80*'Prevalence Rates'!G80","v":0},{"$f":"'Population 2016'!H80*'Prevalence Rates'!H80","v":0},{"$f":"'Population 2016'!I80*'Prevalence Rates'!I80","v":0},{"$f":"'Population 2016'!J80*'Prevalence Rates'!J80","v":0},{"$f":"'Population 2016'!K80*'Prevalence Rates'!K80","v":0},{"$f":"'Population 2016'!L80*'Prevalence Rates'!L80","v":0},{"$f":"'Population 2016'!M80*'Prevalence Rates'!M80","v":0},{"$f":"'Population 2016'!N80*'Prevalence Rates'!N80","v":0},{"$f":"'Population 2016'!O80*'Prevalence Rates'!O80","v":0},{"$f":"'Population 2016'!P80*'Prevalence Rates'!P80","v":0},{"$f":"'Population 2016'!Q80*'Prevalence Rates'!Q80","v":0},{"$f":"'Population 2016'!R80*'Prevalence Rates'!R80","v":0},{"$f":"'Population 2016'!S80*'Prevalence Rates'!S80","v":0},{"$f":"'Population 2016'!T80*'Prevalence Rates'!T80","v":0},{"$f":"'Population 2016'!U80*'Prevalence Rates'!U80","v":0},{"$f":"'Population 2016'!V80*'Prevalence Rates'!V80","v":0},{"$f":"'Population 2016'!W80*'Prevalence Rates'!W80","v":0},{"$f":"'Population 2016'!X80*'Prevalence Rates'!X80","v":0},{"$f":"'Population 2016'!Y80*'Prevalence Rates'!Y80","v":0},{"$f":"'Population 2016'!Z80*'Prevalence Rates'!Z80","v":0},{"$f":"'Population 2016'!AA80*'Prevalence Rates'!AA80","v":0},{"$f":"'Population 2016'!AB80*'Prevalence Rates'!AB80","v":0},{"$f":"'Population 2016'!AC80*'Prevalence Rates'!AC80","v":0},{"$f":"'Population 2016'!AD80*'Prevalence Rates'!AD80","v":0},{"$f":"'Population 2016'!AE80*'Prevalence Rates'!AE80","v":0},{"$f":"'Population 2016'!AF80*'Prevalence Rates'!AF80","v":0},{"$f":"'Population 2016'!AG80*'Prevalence Rates'!AG80","v":0},{"$f":"'Population 2016'!AH80*'Prevalence Rates'!AH80","v":0},{"$f":"'Population 2016'!AI80*'Prevalence Rates'!AI80","v":0},{"$f":"'Population 2016'!AJ80*'Prevalence Rates'!AJ80","v":0},{"$f":"'Population 2016'!AK80*'Prevalence Rates'!AK80","v":0},{"$f":"'Population 2016'!AL80*'Prevalence Rates'!AL80","v":0},{"$f":"'Population 2016'!AM80*'Prevalence Rates'!AM80","v":0},{"$f":"'Population 2016'!AN80*'Prevalence Rates'!AN80","v":0},{"$f":"'Population 2016'!AO80*'Prevalence Rates'!AO80","v":0},{"$f":"'Population 2016'!AP80*'Prevalence Rates'!AP80","v":0},{"$f":"'Population 2016'!AQ80*'Prevalence Rates'!AQ80","v":0},{"$f":"'Population 2016'!AR80*'Prevalence Rates'!AR80","v":0},{"$f":"'Population 2016'!AS80*'Prevalence Rates'!AS80","v":0},{"$f":"'Population 2016'!AT80*'Prevalence Rates'!AT80","v":0},{"$f":"'Population 2016'!AU80*'Prevalence Rates'!AU80","v":0},{"$f":"'Population 2016'!AV80*'Prevalence Rates'!AV80","v":0},{"$f":"'Population 2016'!AW80*'Prevalence Rates'!AW80","v":0},{"$f":"'Population 2016'!AX80*'Prevalence Rates'!AX80","v":0},{"$f":"'Population 2016'!AY80*'Prevalence Rates'!AY80","v":0},{"$f":"'Population 2016'!AZ80*'Prevalence Rates'!AZ80","v":0},{"$f":"'Population 2016'!BA80*'Prevalence Rates'!BA80","v":0},{"$f":"'Population 2016'!BB80*'Prevalence Rates'!BB80","v":0},{"$f":"'Population 2016'!BC80*'Prevalence Rates'!BC80","v":0},78]
[null,"Male 10-15",{"$f":"'Population 2016'!C81*'Prevalence Rates'!C81","v":0},{"$f":"'Population 2016'!D81*'Prevalence Rates'!D81","v":0},{"$f":"'Population 2016'!E81*'Prevalence Rates'!E81","v":0},{"$f":"'Population 2016'!F81*'Prevalence Rates'!F81","v":0},{"$f":"'Population 2016'!G81*'Prevalence Rates'!G81","v":0},{"$f":"'Population 2016'!H81*'Prevalence Rates'!H81","v":0},{"$f":"'Population 2016'!I81*'Prevalence Rates'!I81","v":0},{"$f":"'Population 2016'!J81*'Prevalence Rates'!J81","v":0},{"$f":"'Population 2016'!K81*'Prevalence Rates'!K81","v":0},{"$f":"'Population 2016'!L81*'Prevalence Rates'!L81","v":0},{"$f":"'Population 2016'!M81*'Prevalence Rates'!M81","v":0},{"$f":"'Population 2016'!N81*'Prevalence Rates'!N81","v":0},{"$f":"'Population 2016'!O81*'Prevalence Rates'!O81","v":0},{"$f":"'Population 2016'!P81*'Prevalence Rates'!P81","v":0},{"$f":"'Population 2016'!Q81*'Prevalence Rates'!Q81","v":0},{"$f":"'Population 2016'!R81*'Prevalence Rates'!R81","v":0},{"$f":"'Population 2016'!S81*'Prevalence Rates'!S81","v":0},{"$f":"'Population 2016'!T81*'Prevalence Rates'!T81","v":0},{"$f":"'Population 2016'!U81*'Prevalence Rates'!U81","v":0},{"$f":"'Population 2016'!V81*'Prevalence Rates'!V81","v":0},{"$f":"'Population 2016'!W81*'Prevalence Rates'!W81","v":0},{"$f":"'Population 2016'!X81*'Prevalence Rates'!X81","v":0},{"$f":"'Population 2016'!Y81*'Prevalence Rates'!Y81","v":0},{"$f":"'Population 2016'!Z81*'Prevalence Rates'!Z81","v":0},{"$f":"'Population 2016'!AA81*'Prevalence Rates'!AA81","v":0},{"$f":"'Population 2016'!AB81*'Prevalence Rates'!AB81","v":0},{"$f":"'Population 2016'!AC81*'Prevalence Rates'!AC81","v":0},{"$f":"'Population 2016'!AD81*'Prevalence Rates'!AD81","v":0},{"$f":"'Population 2016'!AE81*'Prevalence Rates'!AE81","v":0},{"$f":"'Population 2016'!AF81*'Prevalence Rates'!AF81","v":0},{"$f":"'Population 2016'!AG81*'Prevalence Rates'!AG81","v":0},{"$f":"'Population 2016'!AH81*'Prevalence Rates'!AH81","v":0},{"$f":"'Population 2016'!AI81*'Prevalence Rates'!AI81","v":0},{"$f":"'Population 2016'!AJ81*'Prevalence Rates'!AJ81","v":0},{"$f":"'Population 2016'!AK81*'Prevalence Rates'!AK81","v":0},{"$f":"'Population 2016'!AL81*'Prevalence Rates'!AL81","v":0},{"$f":"'Population 2016'!AM81*'Prevalence Rates'!AM81","v":0},{"$f":"'Population 2016'!AN81*'Prevalence Rates'!AN81","v":0},{"$f":"'Population 2016'!AO81*'Prevalence Rates'!AO81","v":0},{"$f":"'Population 2016'!AP81*'Prevalence Rates'!AP81","v":0},{"$f":"'Population 2016'!AQ81*'Prevalence Rates'!AQ81","v":0},{"$f":"'Population 2016'!AR81*'Prevalence Rates'!AR81","v":0},{"$f":"'Population 2016'!AS81*'Prevalence Rates'!AS81","v":0},{"$f":"'Population 2016'!AT81*'Prevalence Rates'!AT81","v":0},{"$f":"'Population 2016'!AU81*'Prevalence Rates'!AU81","v":0},{"$f":"'Population 2016'!AV81*'Prevalence Rates'!AV81","v":0},{"$f":"'Population 2016'!AW81*'Prevalence Rates'!AW81","v":0},{"$f":"'Population 2016'!AX81*'Prevalence Rates'!AX81","v":0},{"$f":"'Population 2016'!AY81*'Prevalence Rates'!AY81","v":0},{"$f":"'Population 2016'!AZ81*'Prevalence Rates'!AZ81","v":0},{"$f":"'Population 2016'!BA81*'Prevalence Rates'!BA81","v":0},{"$f":"'Population 2016'!BB81*'Prevalence Rates'!BB81","v":0},{"$f":"'Population 2016'!BC81*'Prevalence Rates'!BC81","v":0},79]
[null,"Male 16-19",{"$f":"'Population 2016'!C82*'Prevalence Rates'!C82","v":62.193478867517491},{"$f":"'Population 2016'!D82*'Prevalence Rates'!D82","v":76.875759024570698},{"$f":"'Population 2016'!E82*'Prevalence Rates'!E82","v":14.682280157053201},{"$f":"'Population 2016'!F82*'Prevalence Rates'!F82","v":39.757635032020467},{"$f":"'Population 2016'!G82*'Prevalence Rates'!G82","v":29.364560314106402},{"$f":"'Population 2016'!H82*'Prevalence Rates'!H82","v":452.18123494924521},{"$f":"'Population 2016'!I82*'Prevalence Rates'!I82","v":29.199590874139513},{"$f":"'Population 2016'!J82*'Prevalence Rates'!J82","v":114.4887913370216},{"$f":"'Population 2016'!K82*'Prevalence Rates'!K82","v":56.419548468676346},{"$f":"'Population 2016'!L82*'Prevalence Rates'!L82","v":48.501015350265632},{"$f":"'Population 2016'!M82*'Prevalence Rates'!M82","v":48.501015350265632},{"$f":"'Population 2016'!N82*'Prevalence Rates'!N82","v":193.17921420122806},{"$f":"'Population 2016'!O82*'Prevalence Rates'!O82","v":155.07127356887651},{"$f":"'Population 2016'!P82*'Prevalence Rates'!P82","v":22.435843835497025},{"$f":"'Population 2016'!Q82*'Prevalence Rates'!Q82","v":14.51731071708631},{"$f":"'Population 2016'!R82*'Prevalence Rates'!R82","v":26.890018714603052},{"$f":"'Population 2016'!S82*'Prevalence Rates'!S82","v":741.20769377123634},{"$f":"'Population 2016'!T82*'Prevalence Rates'!T82","v":247.61912939030174},{"$f":"'Population 2016'!U82*'Prevalence Rates'!U82","v":0},{"$f":"'Population 2016'!V82*'Prevalence Rates'!V82","v":82.814658863378725},{"$f":"'Population 2016'!W82*'Prevalence Rates'!W82","v":294.30548090093157},{"$f":"'Population 2016'!X82*'Prevalence Rates'!X82","v":294.30548090093157},{"$f":"'Population 2016'!Y82*'Prevalence Rates'!Y82","v":197.30345020040031},{"$f":"'Population 2016'!Z82*'Prevalence Rates'!Z82","v":1121.2972834549507},{"$f":"'Population 2016'!AA82*'Prevalence Rates'!AA82","v":2305.4479235372864},{"$f":"'Population 2016'!AB82*'Prevalence Rates'!AB82","v":80.670056143809163},{"$f":"'Population 2016'!AC82*'Prevalence Rates'!AC82","v":1612.9062145562825},{"$f":"'Population 2016'!AD82*'Prevalence Rates'!AD82","v":97.002030700531265},{"$f":"'Population 2016'!AE82*'Prevalence Rates'!AE82","v":67.637470386424852},{"$f":"'Population 2016'!AF82*'Prevalence Rates'!AF82","v":127.68634653437277},{"$f":"'Population 2016'!AG82*'Prevalence Rates'!AG82","v":67.637470386424852},{"$f":"'Population 2016'!AH82*'Prevalence Rates'!AH82","v":692.54170898100381},{"$f":"'Population 2016'!AI82*'Prevalence Rates'!AI82","v":417.70262199616519},{"$f":"'Population 2016'!AJ82*'Prevalence Rates'!AJ82","v":34.148674073146211},{"$f":"'Population 2016'!AK82*'Prevalence Rates'!AK82","v":3.7942971192384678},{"$f":"'Population 2016'!AL82*'Prevalence Rates'!AL82","v":226.00813275463915},{"$f":"'Population 2016'!AM82*'Prevalence Rates'!AM82","v":450.36657110960942},{"$f":"'Population 2016'!AN82*'Prevalence Rates'!AN82","v":0},{"$f":"'Population 2016'!AO82*'Prevalence Rates'!AO82","v":0},{"$f":"'Population 2016'!AP82*'Prevalence Rates'!AP82","v":28.209774234338173},{"$f":"'Population 2016'!AQ82*'Prevalence Rates'!AQ82","v":176.18736188463842},{"$f":"'Population 2016'!AR82*'Prevalence Rates'!AR82","v":4183.4600281203611},{"$f":"'Population 2016'!AS82*'Prevalence Rates'!AS82","v":29.199590874139513},{"$f":"'Population 2016'!AT82*'Prevalence Rates'!AT82","v":0},{"$f":"'Population 2016'!AU82*'Prevalence Rates'!AU82","v":0},{"$f":"'Population 2016'!AV82*'Prevalence Rates'!AV82","v":71.101828625729539},{"$f":"'Population 2016'!AW82*'Prevalence Rates'!AW82","v":242.17513787139436},{"$f":"'Population 2016'!AX82*'Prevalence Rates'!AX82","v":58.069242868345242},{"$f":"'Population 2016'!AY82*'Prevalence Rates'!AY82","v":555.45210436851823},{"$f":"'Population 2016'!AZ82*'Prevalence Rates'!AZ82","v":261.14662346758672},{"$f":"'Population 2016'!BA82*'Prevalence Rates'!BA82","v":138.40936013222063},{"$f":"'Population 2016'!BB82*'Prevalence Rates'!BB82","v":121.41750781563097},{"$f":"'Population 2016'!BC82*'Prevalence Rates'!BC82","v":0},80]
[null,"Male 20-24",{"$f":"'Population 2016'!C83*'Prevalence Rates'!C83","v":101.62117501960418},{"$f":"'Population 2016'!D83*'Prevalence Rates'!D83","v":139.89408509192262},{"$f":"'Population 2016'!E83*'Prevalence Rates'!E83","v":38.272910072318453},{"$f":"'Population 2016'!F83*'Prevalence Rates'!F83","v":56.089609588742562},{"$f":"'Population 2016'!G83*'Prevalence Rates'!G83","v":46.026473750762278},{"$f":"'Population 2016'!H83*'Prevalence Rates'!H83","v":633.81258835279095},{"$f":"'Population 2016'!I83*'Prevalence Rates'!I83","v":34.808551833013766},{"$f":"'Population 2016'!J83*'Prevalence Rates'!J83","v":146.32789325063135},{"$f":"'Population 2016'!K83*'Prevalence Rates'!K83","v":70.441950865861983},{"$f":"'Population 2016'!L83*'Prevalence Rates'!L83","v":72.421584145464664},{"$f":"'Population 2016'!M83*'Prevalence Rates'!M83","v":72.421584145464664},{"$f":"'Population 2016'!N83*'Prevalence Rates'!N83","v":318.88592745599817},{"$f":"'Population 2016'!O83*'Prevalence Rates'!O83","v":214.29530251698998},{"$f":"'Population 2016'!P83*'Prevalence Rates'!P83","v":27.879835354404392},{"$f":"'Population 2016'!Q83*'Prevalence Rates'!Q83","v":19.631363356059897},{"$f":"'Population 2016'!R83*'Prevalence Rates'!R83","v":32.004071353576641},{"$f":"'Population 2016'!S83*'Prevalence Rates'!S83","v":1014.0671474764722},{"$f":"'Population 2016'!T83*'Prevalence Rates'!T83","v":362.60282904722402},{"$f":"'Population 2016'!U83*'Prevalence Rates'!U83","v":0},{"$f":"'Population 2016'!V83*'Prevalence Rates'!V83","v":121.58247725559785},{"$f":"'Population 2016'!W83*'Prevalence Rates'!W83","v":379.2647424838799},{"$f":"'Population 2016'!X83*'Prevalence Rates'!X83","v":379.2647424838799},{"$f":"'Population 2016'!Y83*'Prevalence Rates'!Y83","v":267.91037050622919},{"$f":"'Population 2016'!Z83*'Prevalence Rates'!Z83","v":1749.9958191687681},{"$f":"'Population 2016'!AA83*'Prevalence Rates'!AA83","v":3436.1484650703496},{"$f":"'Population 2016'!AB83*'Prevalence Rates'!AB83","v":143.85335165112798},{"$f":"'Population 2016'!AC83*'Prevalence Rates'!AC83","v":2475.201477263216},{"$f":"'Population 2016'!AD83*'Prevalence Rates'!AD83","v":139.39917677202197},{"$f":"'Population 2016'!AE83*'Prevalence Rates'!AE83","v":93.372703021259682},{"$f":"'Population 2016'!AF83*'Prevalence Rates'!AF83","v":181.79632284351266},{"$f":"'Population 2016'!AG83*'Prevalence Rates'!AG83","v":93.372703021259682},{"$f":"'Population 2016'!AH83*'Prevalence Rates'!AH83","v":960.94698780713361},{"$f":"'Population 2016'!AI83*'Prevalence Rates'!AI83","v":599.99385315957852},{"$f":"'Population 2016'!AJ83*'Prevalence Rates'!AJ83","v":54.604884629040555},{"$f":"'Population 2016'!AK83*'Prevalence Rates'!AK83","v":3.9592665592053575},{"$f":"'Population 2016'!AL83*'Prevalence Rates'!AL83","v":308.8227916180179},{"$f":"'Population 2016'!AM83*'Prevalence Rates'!AM83","v":618.14049155593648},{"$f":"'Population 2016'!AN83*'Prevalence Rates'!AN83","v":0},{"$f":"'Population 2016'!AO83*'Prevalence Rates'!AO83","v":0},{"$f":"'Population 2016'!AP83*'Prevalence Rates'!AP83","v":50.975556949768979},{"$f":"'Population 2016'!AQ83*'Prevalence Rates'!AQ83","v":288.03664218218978},{"$f":"'Population 2016'!AR83*'Prevalence Rates'!AR83","v":6133.563777968966},{"$f":"'Population 2016'!AS83*'Prevalence Rates'!AS83","v":34.808551833013766},{"$f":"'Population 2016'!AT83*'Prevalence Rates'!AT83","v":0},{"$f":"'Population 2016'!AU83*'Prevalence Rates'!AU83","v":0},{"$f":"'Population 2016'!AV83*'Prevalence Rates'!AV83","v":110.69449421778312},{"$f":"'Population 2016'!AW83*'Prevalence Rates'!AW83","v":342.80649625119719},{"$f":"'Population 2016'!AX83*'Prevalence Rates'!AX83","v":75.885942384769351},{"$f":"'Population 2016'!AY83*'Prevalence Rates'!AY83","v":805.21583647838963},{"$f":"'Population 2016'!AZ83*'Prevalence Rates'!AZ83","v":425.95109399450973},{"$f":"'Population 2016'!BA83*'Prevalence Rates'!BA83","v":195.48878636076452},{"$f":"'Population 2016'!BB83*'Prevalence Rates'!BB83","v":163.15477612725411},{"$f":"'Population 2016'!BC83*'Prevalence Rates'!BC83","v":0},81]
[null,"Male 25-29",{"$f":"'Population 2016'!C84*'Prevalence Rates'!C84","v":170.57840092576416},{"$f":"'Population 2016'!D84*'Prevalence Rates'!D84","v":213.96536363705619},{"$f":"'Population 2016'!E84*'Prevalence Rates'!E84","v":43.386962711292043},{"$f":"'Population 2016'!F84*'Prevalence Rates'!F84","v":51.80040414960343},{"$f":"'Population 2016'!G84*'Prevalence Rates'!G84","v":37.118123992550224},{"$f":"'Population 2016'!H84*'Prevalence Rates'!H84","v":610.2219584375257},{"$f":"'Population 2016'!I84*'Prevalence Rates'!I84","v":26.065171514768604},{"$f":"'Population 2016'!J84*'Prevalence Rates'!J84","v":142.69856557135975},{"$f":"'Population 2016'!K84*'Prevalence Rates'!K84","v":57.079426228543902},{"$f":"'Population 2016'!L84*'Prevalence Rates'!L84","v":81.824842223577392},{"$f":"'Population 2016'!M84*'Prevalence Rates'!M84","v":81.824842223577392},{"$f":"'Population 2016'!N84*'Prevalence Rates'!N84","v":447.89202951010606},{"$f":"'Population 2016'!O84*'Prevalence Rates'!O84","v":211.49082203755285},{"$f":"'Population 2016'!P84*'Prevalence Rates'!P84","v":26.890018714603052},{"$f":"'Population 2016'!Q84*'Prevalence Rates'!Q84","v":17.321791196523439},{"$f":"'Population 2016'!R84*'Prevalence Rates'!R84","v":32.334010233510419},{"$f":"'Population 2016'!S84*'Prevalence Rates'!S84","v":1205.7616367179983},{"$f":"'Population 2016'!T84*'Prevalence Rates'!T84","v":550.17308228957779},{"$f":"'Population 2016'!U84*'Prevalence Rates'!U84","v":0},{"$f":"'Population 2016'!V84*'Prevalence Rates'!V84","v":137.2545740524524},{"$f":"'Population 2016'!W84*'Prevalence Rates'!W84","v":402.69040295917824},{"$f":"'Population 2016'!X84*'Prevalence Rates'!X84","v":402.69040295917824},{"$f":"'Population 2016'!Y84*'Prevalence Rates'!Y84","v":279.95313962381215},{"$f":"'Population 2016'!Z84*'Prevalence Rates'!Z84","v":2231.2116755521861},{"$f":"'Population 2016'!AA84*'Prevalence Rates'!AA84","v":3925.6127934521119},{"$f":"'Population 2016'!AB84*'Prevalence Rates'!AB84","v":215.94499691665888},{"$f":"'Population 2016'!AC84*'Prevalence Rates'!AC84","v":3007.227921156436},{"$f":"'Population 2016'!AD84*'Prevalence Rates'!AD84","v":135.6048796527835},{"$f":"'Population 2016'!AE84*'Prevalence Rates'!AE84","v":98.486755660233271},{"$f":"'Population 2016'!AF84*'Prevalence Rates'!AF84","v":183.28104780321468},{"$f":"'Population 2016'!AG84*'Prevalence Rates'!AG84","v":98.486755660233271},{"$f":"'Population 2016'!AH84*'Prevalence Rates'!AH84","v":918.38487229567602},{"$f":"'Population 2016'!AI84*'Prevalence Rates'!AI84","v":777.00606224405146},{"$f":"'Population 2016'!AJ84*'Prevalence Rates'!AJ84","v":42.067207191556925},{"$f":"'Population 2016'!AK84*'Prevalence Rates'!AK84","v":1.9796332796026788},{"$f":"'Population 2016'!AL84*'Prevalence Rates'!AL84","v":281.60283402348108},{"$f":"'Population 2016'!AM84*'Prevalence Rates'!AM84","v":589.60077844166449},{"$f":"'Population 2016'!AN84*'Prevalence Rates'!AN84","v":0},{"$f":"'Population 2016'!AO84*'Prevalence Rates'!AO84","v":0},{"$f":"'Population 2016'!AP84*'Prevalence Rates'!AP84","v":73.081461905332219},{"$f":"'Population 2016'!AQ84*'Prevalence Rates'!AQ84","v":340.49692409166073},{"$f":"'Population 2016'!AR84*'Prevalence Rates'!AR84","v":7027.6981425895092},{"$f":"'Population 2016'!AS84*'Prevalence Rates'!AS84","v":26.065171514768604},{"$f":"'Population 2016'!AT84*'Prevalence Rates'!AT84","v":0},{"$f":"'Population 2016'!AU84*'Prevalence Rates'!AU84","v":0},{"$f":"'Population 2016'!AV84*'Prevalence Rates'!AV84","v":117.12830237649183},{"$f":"'Population 2016'!AW84*'Prevalence Rates'!AW84","v":328.78409385401159},{"$f":"'Population 2016'!AX84*'Prevalence Rates'!AX84","v":85.619139342815856},{"$f":"'Population 2016'!AY84*'Prevalence Rates'!AY84","v":975.46429852422},{"$f":"'Population 2016'!AZ84*'Prevalence Rates'!AZ84","v":572.7738955650417},{"$f":"'Population 2016'!BA84*'Prevalence Rates'!BA84","v":193.01424476126118},{"$f":"'Population 2016'!BB84*'Prevalence Rates'!BB84","v":167.44398156639323},{"$f":"'Population 2016'!BC84*'Prevalence Rates'!BC84","v":0},82]
[null,"Male 30-34",{"$f":"'Population 2016'!C85*'Prevalence Rates'!C85","v":143.02850445129354},{"$f":"'Population 2016'!D85*'Prevalence Rates'!D85","v":188.06516156225447},{"$f":"'Population 2016'!E85*'Prevalence Rates'!E85","v":45.036657110960945},{"$f":"'Population 2016'!F85*'Prevalence Rates'!F85","v":42.562115511457591},{"$f":"'Population 2016'!G85*'Prevalence Rates'!G85","v":29.034621434172621},{"$f":"'Population 2016'!H85*'Prevalence Rates'!H85","v":537.96534373202792},{"$f":"'Population 2016'!I85*'Prevalence Rates'!I85","v":28.704682554238843},{"$f":"'Population 2016'!J85*'Prevalence Rates'!J85","v":125.21180493486943},{"$f":"'Population 2016'!K85*'Prevalence Rates'!K85","v":59.883906707981033},{"$f":"'Population 2016'!L85*'Prevalence Rates'!L85","v":57.079426228543902},{"$f":"'Population 2016'!M85*'Prevalence Rates'!M85","v":57.079426228543902},{"$f":"'Population 2016'!N85*'Prevalence Rates'!N85","v":351.38490712947549},{"$f":"'Population 2016'!O85*'Prevalence Rates'!O85","v":184.10589500304911},{"$f":"'Population 2016'!P85*'Prevalence Rates'!P85","v":22.105904955563247},{"$f":"'Population 2016'!Q85*'Prevalence Rates'!Q85","v":18.14663839635789},{"$f":"'Population 2016'!R85*'Prevalence Rates'!R85","v":30.354376953907742},{"$f":"'Population 2016'!S85*'Prevalence Rates'!S85","v":1091.9327231408442},{"$f":"'Population 2016'!T85*'Prevalence Rates'!T85","v":475.27695654460979},{"$f":"'Population 2016'!U85*'Prevalence Rates'!U85","v":0},{"$f":"'Population 2016'!V85*'Prevalence Rates'!V85","v":126.03665213470389},{"$f":"'Population 2016'!W85*'Prevalence Rates'!W85","v":377.28510920427721},{"$f":"'Population 2016'!X85*'Prevalence Rates'!X85","v":377.28510920427721},{"$f":"'Population 2016'!Y85*'Prevalence Rates'!Y85","v":251.24845706957331},{"$f":"'Population 2016'!Z85*'Prevalence Rates'!Z85","v":1953.733077527877},{"$f":"'Population 2016'!AA85*'Prevalence Rates'!AA85","v":3565.6494754443584},{"$f":"'Population 2016'!AB85*'Prevalence Rates'!AB85","v":189.54988652195649},{"$f":"'Population 2016'!AC85*'Prevalence Rates'!AC85","v":2687.6821159405704},{"$f":"'Population 2016'!AD85*'Prevalence Rates'!AD85","v":131.31567421364437},{"$f":"'Population 2016'!AE85*'Prevalence Rates'!AE85","v":102.28105277947174},{"$f":"'Population 2016'!AF85*'Prevalence Rates'!AF85","v":172.55803420536682},{"$f":"'Population 2016'!AG85*'Prevalence Rates'!AG85","v":102.28105277947174},{"$f":"'Population 2016'!AH85*'Prevalence Rates'!AH85","v":877.96735950378797},{"$f":"'Population 2016'!AI85*'Prevalence Rates'!AI85","v":685.9429313823282},{"$f":"'Population 2016'!AJ85*'Prevalence Rates'!AJ85","v":46.356412630696063},{"$f":"'Population 2016'!AK85*'Prevalence Rates'!AK85","v":1.4847249597020091},{"$f":"'Population 2016'!AL85*'Prevalence Rates'!AL85","v":255.70263194867934},{"$f":"'Population 2016'!AM85*'Prevalence Rates'!AM85","v":555.94701268841891},{"$f":"'Population 2016'!AN85*'Prevalence Rates'!AN85","v":0},{"$f":"'Population 2016'!AO85*'Prevalence Rates'!AO85","v":0},{"$f":"'Population 2016'!AP85*'Prevalence Rates'!AP85","v":51.140526389735868},{"$f":"'Population 2016'!AQ85*'Prevalence Rates'!AQ85","v":320.20568297573328},{"$f":"'Population 2016'!AR85*'Prevalence Rates'!AR85","v":6269.8285353816173},{"$f":"'Population 2016'!AS85*'Prevalence Rates'!AS85","v":28.704682554238843},{"$f":"'Population 2016'!AT85*'Prevalence Rates'!AT85","v":0},{"$f":"'Population 2016'!AU85*'Prevalence Rates'!AU85","v":0},{"$f":"'Population 2016'!AV85*'Prevalence Rates'!AV85","v":98.156816780299494},{"$f":"'Population 2016'!AW85*'Prevalence Rates'!AW85","v":322.02034681536907},{"$f":"'Population 2016'!AX85*'Prevalence Rates'!AX85","v":65.327898226888394},{"$f":"'Population 2016'!AY85*'Prevalence Rates'!AY85","v":822.37265823494613},{"$f":"'Population 2016'!AZ85*'Prevalence Rates'!AZ85","v":445.08754903066892},{"$f":"'Population 2016'!BA85*'Prevalence Rates'!BA85","v":188.72503932212203},{"$f":"'Population 2016'!BB85*'Prevalence Rates'!BB85","v":146.16292381066444},{"$f":"'Population 2016'!BC85*'Prevalence Rates'!BC85","v":0},83]
[null,"Male 35-39",{"$f":"'Population 2016'!C86*'Prevalence Rates'!C86","v":136.26475741265105},{"$f":"'Population 2016'!D86*'Prevalence Rates'!D86","v":170.41343148579728},{"$f":"'Population 2016'!E86*'Prevalence Rates'!E86","v":34.148674073146211},{"$f":"'Population 2016'!F86*'Prevalence Rates'!F86","v":42.232176631523814},{"$f":"'Population 2016'!G86*'Prevalence Rates'!G86","v":24.745415995033486},{"$f":"'Population 2016'!H86*'Prevalence Rates'!H86","v":480.72094806351714},{"$f":"'Population 2016'!I86*'Prevalence Rates'!I86","v":30.849285273808412},{"$f":"'Population 2016'!J86*'Prevalence Rates'!J86","v":108.38492205824666},{"$f":"'Population 2016'!K86*'Prevalence Rates'!K86","v":59.718937268014145},{"$f":"'Population 2016'!L86*'Prevalence Rates'!L86","v":49.160893110133188},{"$f":"'Population 2016'!M86*'Prevalence Rates'!M86","v":49.160893110133188},{"$f":"'Population 2016'!N86*'Prevalence Rates'!N86","v":252.89815146924221},{"$f":"'Population 2016'!O86*'Prevalence Rates'!O86","v":156.39102908861162},{"$f":"'Population 2016'!P86*'Prevalence Rates'!P86","v":22.435843835497025},{"$f":"'Population 2016'!Q86*'Prevalence Rates'!Q86","v":14.187371837152531},{"$f":"'Population 2016'!R86*'Prevalence Rates'!R86","v":27.219957594536833},{"$f":"'Population 2016'!S86*'Prevalence Rates'!S86","v":1009.2830337174324},{"$f":"'Population 2016'!T86*'Prevalence Rates'!T86","v":432.21993271325152},{"$f":"'Population 2016'!U86*'Prevalence Rates'!U86","v":0},{"$f":"'Population 2016'!V86*'Prevalence Rates'!V86","v":118.94296621612762},{"$f":"'Population 2016'!W86*'Prevalence Rates'!W86","v":350.23012104970724},{"$f":"'Population 2016'!X86*'Prevalence Rates'!X86","v":350.23012104970724},{"$f":"'Population 2016'!Y86*'Prevalence Rates'!Y86","v":227.32788827437429},{"$f":"'Population 2016'!Z86*'Prevalence Rates'!Z86","v":1593.6047900801564},{"$f":"'Population 2016'!AA86*'Prevalence Rates'!AA86","v":3053.7493032270991},{"$f":"'Population 2016'!AB86*'Prevalence Rates'!AB86","v":174.7026369249364},{"$f":"'Population 2016'!AC86*'Prevalence Rates'!AC86","v":2203.6617790777154},{"$f":"'Population 2016'!AD86*'Prevalence Rates'!AD86","v":100.96129725973661},{"$f":"'Population 2016'!AE86*'Prevalence Rates'!AE86","v":76.215881264703128},{"$f":"'Population 2016'!AF86*'Prevalence Rates'!AF86","v":137.08960461248552},{"$f":"'Population 2016'!AG86*'Prevalence Rates'!AG86","v":76.215881264703128},{"$f":"'Population 2016'!AH86*'Prevalence Rates'!AH86","v":850.08752414938363},{"$f":"'Population 2016'!AI86*'Prevalence Rates'!AI86","v":628.20362739391669},{"$f":"'Population 2016'!AJ86*'Prevalence Rates'!AJ86","v":39.262726712119793},{"$f":"'Population 2016'!AK86*'Prevalence Rates'!AK86","v":4.2892054391391374},{"$f":"'Population 2016'!AL86*'Prevalence Rates'!AL86","v":228.31770491417561},{"$f":"'Population 2016'!AM86*'Prevalence Rates'!AM86","v":523.6130024549085},{"$f":"'Population 2016'!AN86*'Prevalence Rates'!AN86","v":0},{"$f":"'Population 2016'!AO86*'Prevalence Rates'!AO86","v":0},{"$f":"'Population 2016'!AP86*'Prevalence Rates'!AP86","v":50.315679189901417},{"$f":"'Population 2016'!AQ86*'Prevalence Rates'!AQ86","v":265.60079834669273},{"$f":"'Population 2016'!AR86*'Prevalence Rates'!AR86","v":5441.3520078678966},{"$f":"'Population 2016'!AS86*'Prevalence Rates'!AS86","v":30.849285273808412},{"$f":"'Population 2016'!AT86*'Prevalence Rates'!AT86","v":0},{"$f":"'Population 2016'!AU86*'Prevalence Rates'!AU86","v":0},{"$f":"'Population 2016'!AV86*'Prevalence Rates'!AV86","v":96.012214060729917},{"$f":"'Population 2016'!AW86*'Prevalence Rates'!AW86","v":326.47452169447513},{"$f":"'Population 2016'!AX86*'Prevalence Rates'!AX86","v":48.665984790232521},{"$f":"'Population 2016'!AY86*'Prevalence Rates'!AY86","v":695.6761283403747},{"$f":"'Population 2016'!AZ86*'Prevalence Rates'!AZ86","v":345.44600729066747},{"$f":"'Population 2016'!BA86*'Prevalence Rates'!BA86","v":157.71078460834673},{"$f":"'Population 2016'!BB86*'Prevalence Rates'!BB86","v":142.53359613139287},{"$f":"'Population 2016'!BC86*'Prevalence Rates'!BC86","v":0},84]
[null,"Male 40-44",{"$f":"'Population 2016'!C87*'Prevalence Rates'!C87","v":111.35437197765069},{"$f":"'Population 2016'!D87*'Prevalence Rates'!D87","v":146.32789325063135},{"$f":"'Population 2016'!E87*'Prevalence Rates'!E87","v":34.973521272980655},{"$f":"'Population 2016'!F87*'Prevalence Rates'!F87","v":41.407329431689362},{"$f":"'Population 2016'!G87*'Prevalence Rates'!G87","v":27.549896474470614},{"$f":"'Population 2016'!H87*'Prevalence Rates'!H87","v":524.93275797464366},{"$f":"'Population 2016'!I87*'Prevalence Rates'!I87","v":31.344193593709079},{"$f":"'Population 2016'!J87*'Prevalence Rates'!J87","v":104.4256554990413},{"$f":"'Population 2016'!K87*'Prevalence Rates'!K87","v":58.069242868345242},{"$f":"'Population 2016'!L87*'Prevalence Rates'!L87","v":56.254579028709458},{"$f":"'Population 2016'!M87*'Prevalence Rates'!M87","v":56.254579028709458},{"$f":"'Population 2016'!N87*'Prevalence Rates'!N87","v":213.8003941970893},{"$f":"'Population 2016'!O87*'Prevalence Rates'!O87","v":185.26068108281734},{"$f":"'Population 2016'!P87*'Prevalence Rates'!P87","v":22.435843835497025},{"$f":"'Population 2016'!Q87*'Prevalence Rates'!Q87","v":21.940935515596355},{"$f":"'Population 2016'!R87*'Prevalence Rates'!R87","v":27.879835354404392},{"$f":"'Population 2016'!S87*'Prevalence Rates'!S87","v":981.40319836302797},{"$f":"'Population 2016'!T87*'Prevalence Rates'!T87","v":390.97757272152904},{"$f":"'Population 2016'!U87*'Prevalence Rates'!U87","v":0},{"$f":"'Population 2016'!V87*'Prevalence Rates'!V87","v":124.38695773503498},{"$f":"'Population 2016'!W87*'Prevalence Rates'!W87","v":346.76576281040258},{"$f":"'Population 2016'!X87*'Prevalence Rates'!X87","v":346.76576281040258},{"$f":"'Population 2016'!Y87*'Prevalence Rates'!Y87","v":228.81261323407628},{"$f":"'Population 2016'!Z87*'Prevalence Rates'!Z87","v":1431.9347389126044},{"$f":"'Population 2016'!AA87*'Prevalence Rates'!AA87","v":2861.8898445456061},{"$f":"'Population 2016'!AB87*'Prevalence Rates'!AB87","v":151.27697644963803},{"$f":"'Population 2016'!AC87*'Prevalence Rates'!AC87","v":2000.2544595985401},{"$f":"'Population 2016'!AD87*'Prevalence Rates'!AD87","v":115.47860797682293},{"$f":"'Population 2016'!AE87*'Prevalence Rates'!AE87","v":87.928711502352314},{"$f":"'Population 2016'!AF87*'Prevalence Rates'!AF87","v":140.88390173172397},{"$f":"'Population 2016'!AG87*'Prevalence Rates'!AG87","v":87.928711502352314},{"$f":"'Population 2016'!AH87*'Prevalence Rates'!AH87","v":861.63538494706597},{"$f":"'Population 2016'!AI87*'Prevalence Rates'!AI87","v":603.29324195891638},{"$f":"'Population 2016'!AJ87*'Prevalence Rates'!AJ87","v":44.046840471159605},{"$f":"'Population 2016'!AK87*'Prevalence Rates'!AK87","v":4.9490831990066972},{"$f":"'Population 2016'!AL87*'Prevalence Rates'!AL87","v":245.96943499063283},{"$f":"'Population 2016'!AM87*'Prevalence Rates'!AM87","v":527.90220789404771},{"$f":"'Population 2016'!AN87*'Prevalence Rates'!AN87","v":0},{"$f":"'Population 2016'!AO87*'Prevalence Rates'!AO87","v":0},{"$f":"'Population 2016'!AP87*'Prevalence Rates'!AP87","v":41.572298871656251},{"$f":"'Population 2016'!AQ87*'Prevalence Rates'!AQ87","v":232.27697147338097},{"$f":"'Population 2016'!AR87*'Prevalence Rates'!AR87","v":5216.8286000729595},{"$f":"'Population 2016'!AS87*'Prevalence Rates'!AS87","v":31.344193593709079},{"$f":"'Population 2016'!AT87*'Prevalence Rates'!AT87","v":0},{"$f":"'Population 2016'!AU87*'Prevalence Rates'!AU87","v":0},{"$f":"'Population 2016'!AV87*'Prevalence Rates'!AV87","v":93.702641901193459},{"$f":"'Population 2016'!AW87*'Prevalence Rates'!AW87","v":333.73317705301827},{"$f":"'Population 2016'!AX87*'Prevalence Rates'!AX87","v":46.356412630696063},{"$f":"'Population 2016'!AY87*'Prevalence Rates'!AY87","v":643.54578531083746},{"$f":"'Population 2016'!AZ87*'Prevalence Rates'!AZ87","v":296.78002250043494},{"$f":"'Population 2016'!BA87*'Prevalence Rates'!BA87","v":144.84316829092933},{"$f":"'Population 2016'!BB87*'Prevalence Rates'!BB87","v":146.32789325063135},{"$f":"'Population 2016'!BC87*'Prevalence Rates'!BC87","v":0},85]
[null,"Male 45-49",{"$f":"'Population 2016'!C88*'Prevalence Rates'!C88","v":103.27086941927307},{"$f":"'Population 2016'!D88*'Prevalence Rates'!D88","v":134.45009357301527},{"$f":"'Population 2016'!E88*'Prevalence Rates'!E88","v":31.17922415374219},{"$f":"'Population 2016'!F88*'Prevalence Rates'!F88","v":45.696534870828501},{"$f":"'Population 2016'!G88*'Prevalence Rates'!G88","v":33.488796313278648},{"$f":"'Population 2016'!H88*'Prevalence Rates'!H88","v":594.54986164067122},{"$f":"'Population 2016'!I88*'Prevalence Rates'!I88","v":41.572298871656251},{"$f":"'Population 2016'!J88*'Prevalence Rates'!J88","v":128.67616317417412},{"$f":"'Population 2016'!K88*'Prevalence Rates'!K88","v":70.112011985928206},{"$f":"'Population 2016'!L88*'Prevalence Rates'!L88","v":66.977592626557296},{"$f":"'Population 2016'!M88*'Prevalence Rates'!M88","v":66.977592626557296},{"$f":"'Population 2016'!N88*'Prevalence Rates'!N88","v":268.24030938616295},{"$f":"'Population 2016'!O88*'Prevalence Rates'!O88","v":211.16088315761908},{"$f":"'Population 2016'!P88*'Prevalence Rates'!P88","v":30.519346393874631},{"$f":"'Population 2016'!Q88*'Prevalence Rates'!Q88","v":15.507127356887651},{"$f":"'Population 2016'!R88*'Prevalence Rates'!R88","v":30.18940751394085},{"$f":"'Population 2016'!S88*'Prevalence Rates'!S88","v":1092.262662020778},{"$f":"'Population 2016'!T88*'Prevalence Rates'!T88","v":380.25455912368119},{"$f":"'Population 2016'!U88*'Prevalence Rates'!U88","v":0},{"$f":"'Population 2016'!V88*'Prevalence Rates'!V88","v":140.38899341182329},{"$f":"'Population 2016'!W88*'Prevalence Rates'!W88","v":434.69447431275489},{"$f":"'Population 2016'!X88*'Prevalence Rates'!X88","v":434.69447431275489},{"$f":"'Population 2016'!Y88*'Prevalence Rates'!Y88","v":269.06515658599744},{"$f":"'Population 2016'!Z88*'Prevalence Rates'!Z88","v":1562.9204742463148},{"$f":"'Population 2016'!AA88*'Prevalence Rates'!AA88","v":3276.9529555023009},{"$f":"'Population 2016'!AB88*'Prevalence Rates'!AB88","v":140.88390173172397},{"$f":"'Population 2016'!AC88*'Prevalence Rates'!AC88","v":2280.8674769822196},{"$f":"'Population 2016'!AD88*'Prevalence Rates'!AD88","v":121.74744669556475},{"$f":"'Population 2016'!AE88*'Prevalence Rates'!AE88","v":88.258650382286092},{"$f":"'Population 2016'!AF88*'Prevalence Rates'!AF88","v":184.43583388298291},{"$f":"'Population 2016'!AG88*'Prevalence Rates'!AG88","v":88.258650382286092},{"$f":"'Population 2016'!AH88*'Prevalence Rates'!AH88","v":996.08547852008121},{"$f":"'Population 2016'!AI88*'Prevalence Rates'!AI88","v":615.99588883636693},{"$f":"'Population 2016'!AJ88*'Prevalence Rates'!AJ88","v":50.975556949768979},{"$f":"'Population 2016'!AK88*'Prevalence Rates'!AK88","v":6.4338081587087057},{"$f":"'Population 2016'!AL88*'Prevalence Rates'!AL88","v":284.40731450291815},{"$f":"'Population 2016'!AM88*'Prevalence Rates'!AM88","v":624.73926915461209},{"$f":"'Population 2016'!AN88*'Prevalence Rates'!AN88","v":0},{"$f":"'Population 2016'!AO88*'Prevalence Rates'!AO88","v":0},{"$f":"'Population 2016'!AP88*'Prevalence Rates'!AP88","v":42.397146071490702},{"$f":"'Population 2016'!AQ88*'Prevalence Rates'!AQ88","v":299.0895946599714},{"$f":"'Population 2016'!AR88*'Prevalence Rates'!AR88","v":5918.7735671320761},{"$f":"'Population 2016'!AS88*'Prevalence Rates'!AS88","v":41.572298871656251},{"$f":"'Population 2016'!AT88*'Prevalence Rates'!AT88","v":0},{"$f":"'Population 2016'!AU88*'Prevalence Rates'!AU88","v":0},{"$f":"'Population 2016'!AV88*'Prevalence Rates'!AV88","v":98.981663980133945},{"$f":"'Population 2016'!AW88*'Prevalence Rates'!AW88","v":371.34620936546918},{"$f":"'Population 2016'!AX88*'Prevalence Rates'!AX88","v":58.564151188245916},{"$f":"'Population 2016'!AY88*'Prevalence Rates'!AY88","v":791.02846464123706},{"$f":"'Population 2016'!AZ88*'Prevalence Rates'!AZ88","v":356.33399032848217},{"$f":"'Population 2016'!BA88*'Prevalence Rates'!BA88","v":173.71282028513505},{"$f":"'Population 2016'!BB88*'Prevalence Rates'!BB88","v":169.25864540602905},{"$f":"'Population 2016'!BC88*'Prevalence Rates'!BC88","v":0},86]
[null,"Male 50-54",{"$f":"'Population 2016'!C89*'Prevalence Rates'!C89","v":101.45620557963728},{"$f":"'Population 2016'!D89*'Prevalence Rates'!D89","v":127.356407654439},{"$f":"'Population 2016'!E89*'Prevalence Rates'!E89","v":25.900202074801715},{"$f":"'Population 2016'!F89*'Prevalence Rates'!F89","v":48.171076470331847},{"$f":"'Population 2016'!G89*'Prevalence Rates'!G89","v":43.386962711292043},{"$f":"'Population 2016'!H89*'Prevalence Rates'!H89","v":640.08142707153274},{"$f":"'Population 2016'!I89*'Prevalence Rates'!I89","v":42.892054391391376},{"$f":"'Population 2016'!J89*'Prevalence Rates'!J89","v":142.0386878114922},{"$f":"'Population 2016'!K89*'Prevalence Rates'!K89","v":74.896125744968018},{"$f":"'Population 2016'!L89*'Prevalence Rates'!L89","v":72.091645265530886},{"$f":"'Population 2016'!M89*'Prevalence Rates'!M89","v":72.091645265530886},{"$f":"'Population 2016'!N89*'Prevalence Rates'!N89","v":274.67411754487171},{"$f":"'Population 2016'!O89*'Prevalence Rates'!O89","v":223.20365227520202},{"$f":"'Population 2016'!P89*'Prevalence Rates'!P89","v":31.17922415374219},{"$f":"'Population 2016'!Q89*'Prevalence Rates'!Q89","v":23.590629915265254},{"$f":"'Population 2016'!R89*'Prevalence Rates'!R89","v":39.757635032020467},{"$f":"'Population 2016'!S89*'Prevalence Rates'!S89","v":1077.2504429837911},{"$f":"'Population 2016'!T89*'Prevalence Rates'!T89","v":394.27696152086685},{"$f":"'Population 2016'!U89*'Prevalence Rates'!U89","v":0},{"$f":"'Population 2016'!V89*'Prevalence Rates'!V89","v":141.54377949159152},{"$f":"'Population 2016'!W89*'Prevalence Rates'!W89","v":402.36046407924448},{"$f":"'Population 2016'!X89*'Prevalence Rates'!X89","v":402.36046407924448},{"$f":"'Population 2016'!Y89*'Prevalence Rates'!Y89","v":283.58246730308372},{"$f":"'Population 2016'!Z89*'Prevalence Rates'!Z89","v":1600.6984759987326},{"$f":"'Population 2016'!AA89*'Prevalence Rates'!AA89","v":3380.2238249215739},{"$f":"'Population 2016'!AB89*'Prevalence Rates'!AB89","v":131.48064365361125},{"$f":"'Population 2016'!AC89*'Prevalence Rates'!AC89","v":2402.1200153578839},{"$f":"'Population 2016'!AD89*'Prevalence Rates'!AD89","v":134.45009357301527},{"$f":"'Population 2016'!AE89*'Prevalence Rates'!AE89","v":91.063130861723224},{"$f":"'Population 2016'!AF89*'Prevalence Rates'!AF89","v":211.98573035745352},{"$f":"'Population 2016'!AG89*'Prevalence Rates'!AG89","v":91.063130861723224},{"$f":"'Population 2016'!AH89*'Prevalence Rates'!AH89","v":978.10380956369022},{"$f":"'Population 2016'!AI89*'Prevalence Rates'!AI89","v":631.99792451315523},{"$f":"'Population 2016'!AJ89*'Prevalence Rates'!AJ89","v":50.315679189901417},{"$f":"'Population 2016'!AK89*'Prevalence Rates'!AK89","v":4.1242359991722477},{"$f":"'Population 2016'!AL89*'Prevalence Rates'!AL89","v":312.61708873725638},{"$f":"'Population 2016'!AM89*'Prevalence Rates'!AM89","v":624.40933027467827},{"$f":"'Population 2016'!AN89*'Prevalence Rates'!AN89","v":0},{"$f":"'Population 2016'!AO89*'Prevalence Rates'!AO89","v":0},{"$f":"'Population 2016'!AP89*'Prevalence Rates'!AP89","v":48.995923670166299},{"$f":"'Population 2016'!AQ89*'Prevalence Rates'!AQ89","v":296.94499194040179},{"$f":"'Population 2016'!AR89*'Prevalence Rates'!AR89","v":6091.0016624575092},{"$f":"'Population 2016'!AS89*'Prevalence Rates'!AS89","v":42.892054391391376},{"$f":"'Population 2016'!AT89*'Prevalence Rates'!AT89","v":0},{"$f":"'Population 2016'!AU89*'Prevalence Rates'!AU89","v":0},{"$f":"'Population 2016'!AV89*'Prevalence Rates'!AV89","v":104.26068605907442},{"$f":"'Population 2016'!AW89*'Prevalence Rates'!AW89","v":353.69447928901195},{"$f":"'Population 2016'!AX89*'Prevalence Rates'!AX89","v":67.142562066524192},{"$f":"'Population 2016'!AY89*'Prevalence Rates'!AY89","v":774.20158176461428},{"$f":"'Population 2016'!AZ89*'Prevalence Rates'!AZ89","v":371.84111768536985},{"$f":"'Population 2016'!BA89*'Prevalence Rates'!BA89","v":221.55395787553314},{"$f":"'Population 2016'!BB89*'Prevalence Rates'!BB89","v":163.81465388712166},{"$f":"'Population 2016'!BC89*'Prevalence Rates'!BC89","v":0},87]
[null,"Male 55-59",{"$f":"'Population 2016'!C90*'Prevalence Rates'!C90","v":62.059067994498484},{"$f":"'Population 2016'!D90*'Prevalence Rates'!D90","v":82.156488590581631},{"$f":"'Population 2016'!E90*'Prevalence Rates'!E90","v":20.09742059608314},{"$f":"'Population 2016'!F90*'Prevalence Rates'!F90","v":25.618689990611475},{"$f":"'Population 2016'!G90*'Prevalence Rates'!G90","v":23.520607620690708},{"$f":"'Population 2016'!H90*'Prevalence Rates'!H90","v":417.2975408384516},{"$f":"'Population 2016'!I90*'Prevalence Rates'!I90","v":21.753801414441639},{"$f":"'Population 2016'!J90*'Prevalence Rates'!J90","v":89.886265742921296},{"$f":"'Population 2016'!K90*'Prevalence Rates'!K90","v":47.262066017162546},{"$f":"'Population 2016'!L90*'Prevalence Rates'!L90","v":42.955475889430446},{"$f":"'Population 2016'!M90*'Prevalence Rates'!M90","v":42.955475889430446},{"$f":"'Population 2016'!N90*'Prevalence Rates'!N90","v":177.23274756435956},{"$f":"'Population 2016'!O90*'Prevalence Rates'!O90","v":139.57769029367631},{"$f":"'Population 2016'!P90*'Prevalence Rates'!P90","v":19.103592105068039},{"$f":"'Population 2016'!Q90*'Prevalence Rates'!Q90","v":12.367643443743471},{"$f":"'Population 2016'!R90*'Prevalence Rates'!R90","v":21.312099862879375},{"$f":"'Population 2016'!S90*'Prevalence Rates'!S90","v":628.32045709732449},{"$f":"'Population 2016'!T90*'Prevalence Rates'!T90","v":208.04143078582766},{"$f":"'Population 2016'!U90*'Prevalence Rates'!U90","v":0},{"$f":"'Population 2016'!V90*'Prevalence Rates'!V90","v":80.279256996441987},{"$f":"'Population 2016'!W90*'Prevalence Rates'!W90","v":266.45646097993745},{"$f":"'Population 2016'!X90*'Prevalence Rates'!X90","v":266.45646097993745},{"$f":"'Population 2016'!Y90*'Prevalence Rates'!Y90","v":170.1655227393633},{"$f":"'Population 2016'!Z90*'Prevalence Rates'!Z90","v":937.51154319091131},{"$f":"'Population 2016'!AA90*'Prevalence Rates'!AA90","v":2016.8092844333103},{"$f":"'Population 2016'!AB90*'Prevalence Rates'!AB90","v":85.137974063626928},{"$f":"'Population 2016'!AC90*'Prevalence Rates'!AC90","v":1408.9175240957406},{"$f":"'Population 2016'!AD90*'Prevalence Rates'!AD90","v":82.487764754253334},{"$f":"'Population 2016'!AE90*'Prevalence Rates'!AE90","v":58.967157133562623},{"$f":"'Population 2016'!AF90*'Prevalence Rates'!AF90","v":124.22856137688754},{"$f":"'Population 2016'!AG90*'Prevalence Rates'!AG90","v":58.967157133562623},{"$f":"'Population 2016'!AH90*'Prevalence Rates'!AH90","v":607.89176033756974},{"$f":"'Population 2016'!AI90*'Prevalence Rates'!AI90","v":340.11019470294542},{"$f":"'Population 2016'!AJ90*'Prevalence Rates'!AJ90","v":29.704429342562442},{"$f":"'Population 2016'!AK90*'Prevalence Rates'!AK90","v":2.9814854730453009},{"$f":"'Population 2016'!AL90*'Prevalence Rates'!AL90","v":205.39122147645406},{"$f":"'Population 2016'!AM90*'Prevalence Rates'!AM90","v":374.0107887853494},{"$f":"'Population 2016'!AN90*'Prevalence Rates'!AN90","v":0},{"$f":"'Population 2016'!AO90*'Prevalence Rates'!AO90","v":0},{"$f":"'Population 2016'!AP90*'Prevalence Rates'!AP90","v":25.729115378502041},{"$f":"'Population 2016'!AQ90*'Prevalence Rates'!AQ90","v":184.96252471669922},{"$f":"'Population 2016'!AR90*'Prevalence Rates'!AR90","v":3671.7545727492334},{"$f":"'Population 2016'!AS90*'Prevalence Rates'!AS90","v":21.753801414441639},{"$f":"'Population 2016'!AT90*'Prevalence Rates'!AT90","v":0},{"$f":"'Population 2016'!AU90*'Prevalence Rates'!AU90","v":0},{"$f":"'Population 2016'!AV90*'Prevalence Rates'!AV90","v":72.328629068321192},{"$f":"'Population 2016'!AW90*'Prevalence Rates'!AW90","v":233.88097155222027},{"$f":"'Population 2016'!AX90*'Prevalence Rates'!AX90","v":42.62419972575875},{"$f":"'Population 2016'!AY90*'Prevalence Rates'!AY90","v":495.03701391341053},{"$f":"'Population 2016'!AZ90*'Prevalence Rates'!AZ90","v":228.58055293347309},{"$f":"'Population 2016'!BA90*'Prevalence Rates'!BA90","v":121.79920284329508},{"$f":"'Population 2016'!BB90*'Prevalence Rates'!BB90","v":89.996691130811868},{"$f":"'Population 2016'!BC90*'Prevalence Rates'!BC90","v":0},88]
[null,"Male 60-64",{"$f":"'Population 2016'!C91*'Prevalence Rates'!C91","v":55.875246272626754},{"$f":"'Population 2016'!D91*'Prevalence Rates'!D91","v":67.02821044957399},{"$f":"'Population 2016'!E91*'Prevalence Rates'!E91","v":11.152964176947236},{"$f":"'Population 2016'!F91*'Prevalence Rates'!F91","v":21.643376026551074},{"$f":"'Population 2016'!G91*'Prevalence Rates'!G91","v":22.858055293347309},{"$f":"'Population 2016'!H91*'Prevalence Rates'!H91","v":356.67400288653045},{"$f":"'Population 2016'!I91*'Prevalence Rates'!I91","v":17.005509735147271},{"$f":"'Population 2016'!J91*'Prevalence Rates'!J91","v":70.120121310509859},{"$f":"'Population 2016'!K91*'Prevalence Rates'!K91","v":36.771654167558715},{"$f":"'Population 2016'!L91*'Prevalence Rates'!L91","v":35.556974900762476},{"$f":"'Population 2016'!M91*'Prevalence Rates'!M91","v":35.556974900762476},{"$f":"'Population 2016'!N91*'Prevalence Rates'!N91","v":142.89045193039331},{"$f":"'Population 2016'!O91*'Prevalence Rates'!O91","v":115.39453034564221},{"$f":"'Population 2016'!P91*'Prevalence Rates'!P91","v":17.668062062490673},{"$f":"'Population 2016'!Q91*'Prevalence Rates'!Q91","v":9.6070087464793037},{"$f":"'Population 2016'!R91*'Prevalence Rates'!R91","v":16.122106632022739},{"$f":"'Population 2016'!S91*'Prevalence Rates'!S91","v":525.84569713487861},{"$f":"'Population 2016'!T91*'Prevalence Rates'!T91","v":177.7848745038124},{"$f":"'Population 2016'!U91*'Prevalence Rates'!U91","v":0},{"$f":"'Population 2016'!V91*'Prevalence Rates'!V91","v":68.795016655823062},{"$f":"'Population 2016'!W91*'Prevalence Rates'!W91","v":222.83843276316361},{"$f":"'Population 2016'!X91*'Prevalence Rates'!X91","v":222.83843276316361},{"$f":"'Population 2016'!Y91*'Prevalence Rates'!Y91","v":138.91513796633291},{"$f":"'Population 2016'!Z91*'Prevalence Rates'!Z91","v":755.53050394725733},{"$f":"'Population 2016'!AA91*'Prevalence Rates'!AA91","v":1637.6085024171043},{"$f":"'Population 2016'!AB91*'Prevalence Rates'!AB91","v":69.236718207385323},{"$f":"'Population 2016'!AC91*'Prevalence Rates'!AC91","v":1136.387666781822},{"$f":"'Population 2016'!AD91*'Prevalence Rates'!AD91","v":71.224375189415525},{"$f":"'Population 2016'!AE91*'Prevalence Rates'!AE91","v":48.366319896068219},{"$f":"'Population 2016'!AF91*'Prevalence Rates'!AF91","v":106.45007392650631},{"$f":"'Population 2016'!AG91*'Prevalence Rates'!AG91","v":48.366319896068219},{"$f":"'Population 2016'!AH91*'Prevalence Rates'!AH91","v":501.22083563528224},{"$f":"'Population 2016'!AI91*'Prevalence Rates'!AI91","v":286.00175463656774},{"$f":"'Population 2016'!AJ91*'Prevalence Rates'!AJ91","v":26.943794645298276},{"$f":"'Population 2016'!AK91*'Prevalence Rates'!AK91","v":2.2085077578113341},{"$f":"'Population 2016'!AL91*'Prevalence Rates'!AL91","v":173.91998592764256},{"$f":"'Population 2016'!AM91*'Prevalence Rates'!AM91","v":300.57790583812255},{"$f":"'Population 2016'!AN91*'Prevalence Rates'!AN91","v":0},{"$f":"'Population 2016'!AO91*'Prevalence Rates'!AO91","v":0},{"$f":"'Population 2016'!AP91*'Prevalence Rates'!AP91","v":21.42252525076994},{"$f":"'Population 2016'!AQ91*'Prevalence Rates'!AQ91","v":132.06876391711776},{"$f":"'Population 2016'!AR91*'Prevalence Rates'!AR91","v":3021.0177619101237},{"$f":"'Population 2016'!AS91*'Prevalence Rates'!AS91","v":17.005509735147271},{"$f":"'Population 2016'!AT91*'Prevalence Rates'!AT91","v":0},{"$f":"'Population 2016'!AU91*'Prevalence Rates'!AU91","v":0},{"$f":"'Population 2016'!AV91*'Prevalence Rates'!AV91","v":67.359486613245693},{"$f":"'Population 2016'!AW91*'Prevalence Rates'!AW91","v":200.6429297971597},{"$f":"'Population 2016'!AX91*'Prevalence Rates'!AX91","v":33.348467142951144},{"$f":"'Population 2016'!AY91*'Prevalence Rates'!AY91","v":408.79478597087791},{"$f":"'Population 2016'!AZ91*'Prevalence Rates'!AZ91","v":185.95635320771433},{"$f":"'Population 2016'!BA91*'Prevalence Rates'!BA91","v":108.54815629642707},{"$f":"'Population 2016'!BB91*'Prevalence Rates'!BB91","v":71.666076740977786},{"$f":"'Population 2016'!BC91*'Prevalence Rates'!BC91","v":0},89]
[null,"Male 65-69",{"$f":"'Population 2016'!C92*'Prevalence Rates'!C92","v":48.035043732396517},{"$f":"'Population 2016'!D92*'Prevalence Rates'!D92","v":61.175664891373955},{"$f":"'Population 2016'!E92*'Prevalence Rates'!E92","v":13.140621158977437},{"$f":"'Population 2016'!F92*'Prevalence Rates'!F92","v":22.637204517566175},{"$f":"'Population 2016'!G92*'Prevalence Rates'!G92","v":18.882741329286905},{"$f":"'Population 2016'!H92*'Prevalence Rates'!H92","v":342.76040401231904},{"$f":"'Population 2016'!I92*'Prevalence Rates'!I92","v":22.085077578113342},{"$f":"'Population 2016'!J92*'Prevalence Rates'!J92","v":68.463740492151359},{"$f":"'Population 2016'!K92*'Prevalence Rates'!K92","v":37.213355719120976},{"$f":"'Population 2016'!L92*'Prevalence Rates'!L92","v":40.96781890740025},{"$f":"'Population 2016'!M92*'Prevalence Rates'!M92","v":40.96781890740025},{"$f":"'Population 2016'!N92*'Prevalence Rates'!N92","v":135.82322710539705},{"$f":"'Population 2016'!O92*'Prevalence Rates'!O92","v":120.25324741282714},{"$f":"'Population 2016'!P92*'Prevalence Rates'!P92","v":14.024024262101971},{"$f":"'Population 2016'!Q92*'Prevalence Rates'!Q92","v":11.152964176947236},{"$f":"'Population 2016'!R92*'Prevalence Rates'!R92","v":15.017852753117072},{"$f":"'Population 2016'!S92*'Prevalence Rates'!S92","v":492.05552844036521},{"$f":"'Population 2016'!T92*'Prevalence Rates'!T92","v":145.09895968820464},{"$f":"'Population 2016'!U92*'Prevalence Rates'!U92","v":0},{"$f":"'Population 2016'!V92*'Prevalence Rates'!V92","v":71.113949801524953},{"$f":"'Population 2016'!W92*'Prevalence Rates'!W92","v":215.2190809987145},{"$f":"'Population 2016'!X92*'Prevalence Rates'!X92","v":215.2190809987145},{"$f":"'Population 2016'!Y92*'Prevalence Rates'!Y92","v":139.57769029367631},{"$f":"'Population 2016'!Z92*'Prevalence Rates'!Z92","v":673.15316458089467},{"$f":"'Population 2016'!AA92*'Prevalence Rates'!AA92","v":1504.656335396862},{"$f":"'Population 2016'!AB92*'Prevalence Rates'!AB92","v":63.273747261294723},{"$f":"'Population 2016'!AC92*'Prevalence Rates'!AC92","v":1019.1159048420401},{"$f":"'Population 2016'!AD92*'Prevalence Rates'!AD92","v":63.715448812856991},{"$f":"'Population 2016'!AE92*'Prevalence Rates'!AE92","v":44.832707483570083},{"$f":"'Population 2016'!AF92*'Prevalence Rates'!AF92","v":107.99602935697423},{"$f":"'Population 2016'!AG92*'Prevalence Rates'!AG92","v":44.832707483570083},{"$f":"'Population 2016'!AH92*'Prevalence Rates'!AH92","v":485.5404305548218},{"$f":"'Population 2016'!AI92*'Prevalence Rates'!AI92","v":254.75136986353738},{"$f":"'Population 2016'!AJ92*'Prevalence Rates'!AJ92","v":22.416353741785041},{"$f":"'Population 2016'!AK92*'Prevalence Rates'!AK92","v":2.0980823699207676},{"$f":"'Population 2016'!AL92*'Prevalence Rates'!AL92","v":164.53382795694438},{"$f":"'Population 2016'!AM92*'Prevalence Rates'!AM92","v":294.50450950414142},{"$f":"'Population 2016'!AN92*'Prevalence Rates'!AN92","v":0},{"$f":"'Population 2016'!AO92*'Prevalence Rates'!AO92","v":0},{"$f":"'Population 2016'!AP92*'Prevalence Rates'!AP92","v":17.778487450381238},{"$f":"'Population 2016'!AQ92*'Prevalence Rates'!AQ92","v":118.70729198235921},{"$f":"'Population 2016'!AR92*'Prevalence Rates'!AR92","v":2823.2458921981188},{"$f":"'Population 2016'!AS92*'Prevalence Rates'!AS92","v":22.085077578113342},{"$f":"'Population 2016'!AT92*'Prevalence Rates'!AT92","v":0},{"$f":"'Population 2016'!AU92*'Prevalence Rates'!AU92","v":0},{"$f":"'Population 2016'!AV92*'Prevalence Rates'!AV92","v":57.973328642547521},{"$f":"'Population 2016'!AW92*'Prevalence Rates'!AW92","v":191.0359210506804},{"$f":"'Population 2016'!AX92*'Prevalence Rates'!AX92","v":31.250384773030376},{"$f":"'Population 2016'!AY92*'Prevalence Rates'!AY92","v":391.45800007205895},{"$f":"'Population 2016'!AZ92*'Prevalence Rates'!AZ92","v":176.23891907334445},{"$f":"'Population 2016'!BA92*'Prevalence Rates'!BA92","v":90.217541906592999},{"$f":"'Population 2016'!BB92*'Prevalence Rates'!BB92","v":76.083092256600452},{"$f":"'Population 2016'!BC92*'Prevalence Rates'!BC92","v":0},90]
[null,"Male 70-74",{"$f":"'Population 2016'!C93*'Prevalence Rates'!C93","v":27.937623136313377},{"$f":"'Population 2016'!D93*'Prevalence Rates'!D93","v":35.336124124981346},{"$f":"'Population 2016'!E93*'Prevalence Rates'!E93","v":7.3985009886679691},{"$f":"'Population 2016'!F93*'Prevalence Rates'!F93","v":14.907427365226505},{"$f":"'Population 2016'!G93*'Prevalence Rates'!G93","v":17.226360510928405},{"$f":"'Population 2016'!H93*'Prevalence Rates'!H93","v":254.19924292408456},{"$f":"'Population 2016'!I93*'Prevalence Rates'!I93","v":15.349128916788771},{"$f":"'Population 2016'!J93*'Prevalence Rates'!J93","v":49.139297611302183},{"$f":"'Population 2016'!K93*'Prevalence Rates'!K93","v":27.054220033188841},{"$f":"'Population 2016'!L93*'Prevalence Rates'!L93","v":24.956137663268073},{"$f":"'Population 2016'!M93*'Prevalence Rates'!M93","v":24.956137663268073},{"$f":"'Population 2016'!N93*'Prevalence Rates'!N93","v":96.622214404245867},{"$f":"'Population 2016'!O93*'Prevalence Rates'!O93","v":82.487764754253334},{"$f":"'Population 2016'!P93*'Prevalence Rates'!P93","v":9.7174341343698707},{"$f":"'Population 2016'!Q93*'Prevalence Rates'!Q93","v":7.067224824996269},{"$f":"'Population 2016'!R93*'Prevalence Rates'!R93","v":9.6070087464793037},{"$f":"'Population 2016'!S93*'Prevalence Rates'!S93","v":361.8639961173871},{"$f":"'Population 2016'!T93*'Prevalence Rates'!T93","v":98.720296774166627},{"$f":"'Population 2016'!U93*'Prevalence Rates'!U93","v":0},{"$f":"'Population 2016'!V93*'Prevalence Rates'!V93","v":44.832707483570083},{"$f":"'Population 2016'!W93*'Prevalence Rates'!W93","v":164.53382795694438},{"$f":"'Population 2016'!X93*'Prevalence Rates'!X93","v":164.53382795694438},{"$f":"'Population 2016'!Y93*'Prevalence Rates'!Y93","v":93.972005094872259},{"$f":"'Population 2016'!Z93*'Prevalence Rates'!Z93","v":487.74893831263313},{"$f":"'Population 2016'!AA93*'Prevalence Rates'!AA93","v":1084.2668836974744},{"$f":"'Population 2016'!AB93*'Prevalence Rates'!AB93","v":36.992504943339846},{"$f":"'Population 2016'!AC93*'Prevalence Rates'!AC93","v":732.56202326601954},{"$f":"'Population 2016'!AD93*'Prevalence Rates'!AD93","v":46.268237526147452},{"$f":"'Population 2016'!AE93*'Prevalence Rates'!AE93","v":29.041877015219043},{"$f":"'Population 2016'!AF93*'Prevalence Rates'!AF93","v":74.426711438241952},{"$f":"'Population 2016'!AG93*'Prevalence Rates'!AG93","v":29.041877015219043},{"$f":"'Population 2016'!AH93*'Prevalence Rates'!AH93","v":351.70486043145496},{"$f":"'Population 2016'!AI93*'Prevalence Rates'!AI93","v":181.98103924365392},{"$f":"'Population 2016'!AJ93*'Prevalence Rates'!AJ93","v":16.784658959366141},{"$f":"'Population 2016'!AK93*'Prevalence Rates'!AK93","v":1.6563808183585005},{"$f":"'Population 2016'!AL93*'Prevalence Rates'!AL93","v":126.21621835891774},{"$f":"'Population 2016'!AM93*'Prevalence Rates'!AM93","v":207.48930384637484},{"$f":"'Population 2016'!AN93*'Prevalence Rates'!AN93","v":0},{"$f":"'Population 2016'!AO93*'Prevalence Rates'!AO93","v":0},{"$f":"'Population 2016'!AP93*'Prevalence Rates'!AP93","v":13.140621158977437},{"$f":"'Population 2016'!AQ93*'Prevalence Rates'!AQ93","v":85.027548675736355},{"$f":"'Population 2016'!AR93*'Prevalence Rates'!AR93","v":2027.1892708950236},{"$f":"'Population 2016'!AS93*'Prevalence Rates'!AS93","v":15.349128916788771},{"$f":"'Population 2016'!AT93*'Prevalence Rates'!AT93","v":0},{"$f":"'Population 2016'!AU93*'Prevalence Rates'!AU93","v":0},{"$f":"'Population 2016'!AV93*'Prevalence Rates'!AV93","v":45.495259810913481},{"$f":"'Population 2016'!AW93*'Prevalence Rates'!AW93","v":144.21555658508012},{"$f":"'Population 2016'!AX93*'Prevalence Rates'!AX93","v":22.085077578113342},{"$f":"'Population 2016'!AY93*'Prevalence Rates'!AY93","v":289.20409088539418},{"$f":"'Population 2016'!AZ93*'Prevalence Rates'!AZ93","v":124.6702629284498},{"$f":"'Population 2016'!BA93*'Prevalence Rates'!BA93","v":66.034381958558882},{"$f":"'Population 2016'!BB93*'Prevalence Rates'!BB93","v":59.408858685124883},{"$f":"'Population 2016'!BC93*'Prevalence Rates'!BC93","v":0},91]
[null,"Male 75-79",{"$f":"'Population 2016'!C94*'Prevalence Rates'!C94","v":18.44103977772464},{"$f":"'Population 2016'!D94*'Prevalence Rates'!D94","v":24.845712275377508},{"$f":"'Population 2016'!E94*'Prevalence Rates'!E94","v":6.4046724976528688},{"$f":"'Population 2016'!F94*'Prevalence Rates'!F94","v":13.471897322649138},{"$f":"'Population 2016'!G94*'Prevalence Rates'!G94","v":9.9382849101510029},{"$f":"'Population 2016'!H94*'Prevalence Rates'!H94","v":198.21357126356725},{"$f":"'Population 2016'!I94*'Prevalence Rates'!I94","v":8.0610533160113693},{"$f":"'Population 2016'!J94*'Prevalence Rates'!J94","v":39.311438089041744},{"$f":"'Population 2016'!K94*'Prevalence Rates'!K94","v":20.09742059608314},{"$f":"'Population 2016'!L94*'Prevalence Rates'!L94","v":20.207845983973705},{"$f":"'Population 2016'!M94*'Prevalence Rates'!M94","v":20.207845983973705},{"$f":"'Population 2016'!N94*'Prevalence Rates'!N94","v":73.322457559336286},{"$f":"'Population 2016'!O94*'Prevalence Rates'!O94","v":70.120121310509859},{"$f":"'Population 2016'!P94*'Prevalence Rates'!P94","v":7.3985009886679691},{"$f":"'Population 2016'!Q94*'Prevalence Rates'!Q94","v":6.7359486613245689},{"$f":"'Population 2016'!R94*'Prevalence Rates'!R94","v":11.152964176947236},{"$f":"'Population 2016'!S94*'Prevalence Rates'!S94","v":263.14369934322048},{"$f":"'Population 2016'!T94*'Prevalence Rates'!T94","v":80.058406220660856},{"$f":"'Population 2016'!U94*'Prevalence Rates'!U94","v":0},{"$f":"'Population 2016'!V94*'Prevalence Rates'!V94","v":38.648885761698345},{"$f":"'Population 2016'!W94*'Prevalence Rates'!W94","v":110.4253878905667},{"$f":"'Population 2016'!X94*'Prevalence Rates'!X94","v":110.4253878905667},{"$f":"'Population 2016'!Y94*'Prevalence Rates'!Y94","v":77.960323850740096},{"$f":"'Population 2016'!Z94*'Prevalence Rates'!Z94","v":365.83931008144748},{"$f":"'Population 2016'!AA94*'Prevalence Rates'!AA94","v":822.88999056050307},{"$f":"'Population 2016'!AB94*'Prevalence Rates'!AB94","v":25.618689990611475},{"$f":"'Population 2016'!AC94*'Prevalence Rates'!AC94","v":559.41501505361089},{"$f":"'Population 2016'!AD94*'Prevalence Rates'!AD94","v":31.029533997249242},{"$f":"'Population 2016'!AE94*'Prevalence Rates'!AE94","v":21.091249087098241},{"$f":"'Population 2016'!AF94*'Prevalence Rates'!AF94","v":55.875246272626754},{"$f":"'Population 2016'!AG94*'Prevalence Rates'!AG94","v":21.091249087098241},{"$f":"'Population 2016'!AH94*'Prevalence Rates'!AH94","v":263.47497550689218},{"$f":"'Population 2016'!AI94*'Prevalence Rates'!AI94","v":144.65725813664238},{"$f":"'Population 2016'!AJ94*'Prevalence Rates'!AJ94","v":12.809344995305738},{"$f":"'Population 2016'!AK94*'Prevalence Rates'!AK94","v":0.77297771523396697},{"$f":"'Population 2016'!AL94*'Prevalence Rates'!AL94","v":94.082430482762831},{"$f":"'Population 2016'!AM94*'Prevalence Rates'!AM94","v":163.2087233022576},{"$f":"'Population 2016'!AN94*'Prevalence Rates'!AN94","v":0},{"$f":"'Population 2016'!AO94*'Prevalence Rates'!AO94","v":0},{"$f":"'Population 2016'!AP94*'Prevalence Rates'!AP94","v":10.600837237494403},{"$f":"'Population 2016'!AQ94*'Prevalence Rates'!AQ94","v":74.978838377694785},{"$f":"'Population 2016'!AR94*'Prevalence Rates'!AR94","v":1536.458847109345},{"$f":"'Population 2016'!AS94*'Prevalence Rates'!AS94","v":8.0610533160113693},{"$f":"'Population 2016'!AT94*'Prevalence Rates'!AT94","v":0},{"$f":"'Population 2016'!AU94*'Prevalence Rates'!AU94","v":0},{"$f":"'Population 2016'!AV94*'Prevalence Rates'!AV94","v":34.011019470294542},{"$f":"'Population 2016'!AW94*'Prevalence Rates'!AW94","v":100.26625220463457},{"$f":"'Population 2016'!AX94*'Prevalence Rates'!AX94","v":19.214017492958607},{"$f":"'Population 2016'!AY94*'Prevalence Rates'!AY94","v":207.82058001004654},{"$f":"'Population 2016'!AZ94*'Prevalence Rates'!AZ94","v":97.39519211947983},{"$f":"'Population 2016'!BA94*'Prevalence Rates'!BA94","v":44.170155156226684},{"$f":"'Population 2016'!BB94*'Prevalence Rates'!BB94","v":45.053558259351213},{"$f":"'Population 2016'!BC94*'Prevalence Rates'!BC94","v":0},92]
[null,"Male 80-84",{"$f":"'Population 2016'!C95*'Prevalence Rates'!C95","v":13.251046546868004},{"$f":"'Population 2016'!D95*'Prevalence Rates'!D95","v":17.888912838271807},{"$f":"'Population 2016'!E95*'Prevalence Rates'!E95","v":4.6378662914038014},{"$f":"'Population 2016'!F95*'Prevalence Rates'!F95","v":7.6193517644491022},{"$f":"'Population 2016'!G95*'Prevalence Rates'!G95","v":7.6193517644491022},{"$f":"'Population 2016'!H95*'Prevalence Rates'!H95","v":132.95216702024231},{"$f":"'Population 2016'!I95*'Prevalence Rates'!I95","v":6.1838217218717357},{"$f":"'Population 2016'!J95*'Prevalence Rates'!J95","v":18.772315941396339},{"$f":"'Population 2016'!K95*'Prevalence Rates'!K95","v":8.9444564191359035},{"$f":"'Population 2016'!L95*'Prevalence Rates'!L95","v":12.809344995305738},{"$f":"'Population 2016'!M95*'Prevalence Rates'!M95","v":12.809344995305738},{"$f":"'Population 2016'!N95*'Prevalence Rates'!N95","v":46.599513689819148},{"$f":"'Population 2016'!O95*'Prevalence Rates'!O95","v":46.599513689819148},{"$f":"'Population 2016'!P95*'Prevalence Rates'!P95","v":4.7482916792943684},{"$f":"'Population 2016'!Q95*'Prevalence Rates'!Q95","v":4.3065901277321013},{"$f":"'Population 2016'!R95*'Prevalence Rates'!R95","v":5.3004186187472015},{"$f":"'Population 2016'!S95*'Prevalence Rates'!S95","v":181.76018846787278},{"$f":"'Population 2016'!T95*'Prevalence Rates'!T95","v":54.770992393721087},{"$f":"'Population 2016'!U95*'Prevalence Rates'!U95","v":0},{"$f":"'Population 2016'!V95*'Prevalence Rates'!V95","v":28.268899299985076},{"$f":"'Population 2016'!W95*'Prevalence Rates'!W95","v":80.058406220660856},{"$f":"'Population 2016'!X95*'Prevalence Rates'!X95","v":80.058406220660856},{"$f":"'Population 2016'!Y95*'Prevalence Rates'!Y95","v":47.041215241381416},{"$f":"'Population 2016'!Z95*'Prevalence Rates'!Z95","v":250.00307818424301},{"$f":"'Population 2016'!AA95*'Prevalence Rates'!AA95","v":544.17631152471267},{"$f":"'Population 2016'!AB95*'Prevalence Rates'!AB95","v":18.220189001943506},{"$f":"'Population 2016'!AC95*'Prevalence Rates'!AC95","v":372.24398257910036},{"$f":"'Population 2016'!AD95*'Prevalence Rates'!AD95","v":21.643376026551074},{"$f":"'Population 2016'!AE95*'Prevalence Rates'!AE95","v":14.024024262101971},{"$f":"'Population 2016'!AF95*'Prevalence Rates'!AF95","v":35.888251064434179},{"$f":"'Population 2016'!AG95*'Prevalence Rates'!AG95","v":14.024024262101971},{"$f":"'Population 2016'!AH95*'Prevalence Rates'!AH95","v":171.93232894561237},{"$f":"'Population 2016'!AI95*'Prevalence Rates'!AI95","v":95.5179605253402},{"$f":"'Population 2016'!AJ95*'Prevalence Rates'!AJ95","v":8.1714787039019363},{"$f":"'Population 2016'!AK95*'Prevalence Rates'!AK95","v":0.3312761636717001},{"$f":"'Population 2016'!AL95*'Prevalence Rates'!AL95","v":61.286090279264521},{"$f":"'Population 2016'!AM95*'Prevalence Rates'!AM95","v":107.1126262538497},{"$f":"'Population 2016'!AN95*'Prevalence Rates'!AN95","v":0},{"$f":"'Population 2016'!AO95*'Prevalence Rates'!AO95","v":0},{"$f":"'Population 2016'!AP95*'Prevalence Rates'!AP95","v":7.067224824996269},{"$f":"'Population 2016'!AQ95*'Prevalence Rates'!AQ95","v":46.93078985349085},{"$f":"'Population 2016'!AR95*'Prevalence Rates'!AR95","v":1019.8888825572741},{"$f":"'Population 2016'!AS95*'Prevalence Rates'!AS95","v":6.1838217218717357},{"$f":"'Population 2016'!AT95*'Prevalence Rates'!AT95","v":0},{"$f":"'Population 2016'!AU95*'Prevalence Rates'!AU95","v":0},{"$f":"'Population 2016'!AV95*'Prevalence Rates'!AV95","v":25.066563051158642},{"$f":"'Population 2016'!AW95*'Prevalence Rates'!AW95","v":64.819702691762657},{"$f":"'Population 2016'!AX95*'Prevalence Rates'!AX95","v":9.8278595222604359},{"$f":"'Population 2016'!AY95*'Prevalence Rates'!AY95","v":141.34449649992538},{"$f":"'Population 2016'!AZ95*'Prevalence Rates'!AZ95","v":61.286090279264521},{"$f":"'Population 2016'!BA95*'Prevalence Rates'!BA95","v":29.373153178890743},{"$f":"'Population 2016'!BB95*'Prevalence Rates'!BB95","v":28.268899299985076},{"$f":"'Population 2016'!BC95*'Prevalence Rates'!BC95","v":0},93]
[null,"Male 85-89",{"$f":"'Population 2016'!C96*'Prevalence Rates'!C96","v":6.8463740492151359},{"$f":"'Population 2016'!D96*'Prevalence Rates'!D96","v":9.1653071949170357},{"$f":"'Population 2016'!E96*'Prevalence Rates'!E96","v":2.3189331457019007},{"$f":"'Population 2016'!F96*'Prevalence Rates'!F96","v":4.0857393519509682},{"$f":"'Population 2016'!G96*'Prevalence Rates'!G96","v":4.3065901277321013},{"$f":"'Population 2016'!H96*'Prevalence Rates'!H96","v":62.390344158170187},{"$f":"'Population 2016'!I96*'Prevalence Rates'!I96","v":4.1961647398415352},{"$f":"'Population 2016'!J96*'Prevalence Rates'!J96","v":11.484240340618937},{"$f":"'Population 2016'!K96*'Prevalence Rates'!K96","v":6.0733963339811687},{"$f":"'Population 2016'!L96*'Prevalence Rates'!L96","v":7.3985009886679691},{"$f":"'Population 2016'!M96*'Prevalence Rates'!M96","v":7.3985009886679691},{"$f":"'Population 2016'!N96*'Prevalence Rates'!N96","v":24.735286887486943},{"$f":"'Population 2016'!O96*'Prevalence Rates'!O96","v":22.968480681237875},{"$f":"'Population 2016'!P96*'Prevalence Rates'!P96","v":2.5397839214830342},{"$f":"'Population 2016'!Q96*'Prevalence Rates'!Q96","v":1.1042538789056671},{"$f":"'Population 2016'!R96*'Prevalence Rates'!R96","v":2.6502093093736008},{"$f":"'Population 2016'!S96*'Prevalence Rates'!S96","v":87.12563104565713},{"$f":"'Population 2016'!T96*'Prevalence Rates'!T96","v":25.839540766392609},{"$f":"'Population 2016'!U96*'Prevalence Rates'!U96","v":0},{"$f":"'Population 2016'!V96*'Prevalence Rates'!V96","v":11.484240340618937},{"$f":"'Population 2016'!W96*'Prevalence Rates'!W96","v":38.31760959802665},{"$f":"'Population 2016'!X96*'Prevalence Rates'!X96","v":38.31760959802665},{"$f":"'Population 2016'!Y96*'Prevalence Rates'!Y96","v":22.968480681237875},{"$f":"'Population 2016'!Z96*'Prevalence Rates'!Z96","v":119.59069508548374},{"$f":"'Population 2016'!AA96*'Prevalence Rates'!AA96","v":257.95370611236382},{"$f":"'Population 2016'!AB96*'Prevalence Rates'!AB96","v":9.6070087464793037},{"$f":"'Population 2016'!AC96*'Prevalence Rates'!AC96","v":178.55785221904637},{"$f":"'Population 2016'!AD96*'Prevalence Rates'!AD96","v":11.484240340618937},{"$f":"'Population 2016'!AE96*'Prevalence Rates'!AE96","v":7.177650212886836},{"$f":"'Population 2016'!AF96*'Prevalence Rates'!AF96","v":15.569979692569905},{"$f":"'Population 2016'!AG96*'Prevalence Rates'!AG96","v":7.177650212886836},{"$f":"'Population 2016'!AH96*'Prevalence Rates'!AH96","v":79.395853893317465},{"$f":"'Population 2016'!AI96*'Prevalence Rates'!AI96","v":44.611856707788945},{"$f":"'Population 2016'!AJ96*'Prevalence Rates'!AJ96","v":6.1838217218717357},{"$f":"'Population 2016'!AK96*'Prevalence Rates'!AK96","v":0.44170155156226681},{"$f":"'Population 2016'!AL96*'Prevalence Rates'!AL96","v":27.716772360532243},{"$f":"'Population 2016'!AM96*'Prevalence Rates'!AM96","v":46.268237526147452},{"$f":"'Population 2016'!AN96*'Prevalence Rates'!AN96","v":0},{"$f":"'Population 2016'!AO96*'Prevalence Rates'!AO96","v":0},{"$f":"'Population 2016'!AP96*'Prevalence Rates'!AP96","v":3.5336124124981345},{"$f":"'Population 2016'!AQ96*'Prevalence Rates'!AQ96","v":24.956137663268073},{"$f":"'Population 2016'!AR96*'Prevalence Rates'!AR96","v":491.28255072513127},{"$f":"'Population 2016'!AS96*'Prevalence Rates'!AS96","v":4.1961647398415352},{"$f":"'Population 2016'!AT96*'Prevalence Rates'!AT96","v":0},{"$f":"'Population 2016'!AU96*'Prevalence Rates'!AU96","v":0},{"$f":"'Population 2016'!AV96*'Prevalence Rates'!AV96","v":11.705091116400071},{"$f":"'Population 2016'!AW96*'Prevalence Rates'!AW96","v":33.127616367170013},{"$f":"'Population 2016'!AX96*'Prevalence Rates'!AX96","v":5.4108440066377685},{"$f":"'Population 2016'!AY96*'Prevalence Rates'!AY96","v":70.672248249962692},{"$f":"'Population 2016'!AZ96*'Prevalence Rates'!AZ96","v":32.354638651936042},{"$f":"'Population 2016'!BA96*'Prevalence Rates'!BA96","v":13.251046546868004},{"$f":"'Population 2016'!BB96*'Prevalence Rates'!BB96","v":11.484240340618937},{"$f":"'Population 2016'!BC96*'Prevalence Rates'!BC96","v":0},94]
[null,"Male 90+",{"$f":"'Population 2016'!C97*'Prevalence Rates'!C97","v":2.7606346972641678},{"$f":"'Population 2016'!D97*'Prevalence Rates'!D97","v":4.4170155156226683},{"$f":"'Population 2016'!E97*'Prevalence Rates'!E97","v":1.6563808183585005},{"$f":"'Population 2016'!F97*'Prevalence Rates'!F97","v":1.2146792667962338},{"$f":"'Population 2016'!G97*'Prevalence Rates'!G97","v":1.3251046546868004},{"$f":"'Population 2016'!H97*'Prevalence Rates'!H97","v":23.741458396471842},{"$f":"'Population 2016'!I97*'Prevalence Rates'!I97","v":1.5459554304679339},{"$f":"'Population 2016'!J97*'Prevalence Rates'!J97","v":4.9691424550755015},{"$f":"'Population 2016'!K97*'Prevalence Rates'!K97","v":3.2023362488264344},{"$f":"'Population 2016'!L97*'Prevalence Rates'!L97","v":2.8710600851547343},{"$f":"'Population 2016'!M97*'Prevalence Rates'!M97","v":2.8710600851547343},{"$f":"'Population 2016'!N97*'Prevalence Rates'!N97","v":10.04871029804157},{"$f":"'Population 2016'!O97*'Prevalence Rates'!O97","v":8.9444564191359035},{"$f":"'Population 2016'!P97*'Prevalence Rates'!P97","v":0.99382849101510029},{"$f":"'Population 2016'!Q97*'Prevalence Rates'!Q97","v":0.77297771523396697},{"$f":"'Population 2016'!R97*'Prevalence Rates'!R97","v":1.2146792667962338},{"$f":"'Population 2016'!S97*'Prevalence Rates'!S97","v":40.96781890740025},{"$f":"'Population 2016'!T97*'Prevalence Rates'!T97","v":12.146792667962337},{"$f":"'Population 2016'!U97*'Prevalence Rates'!U97","v":0},{"$f":"'Population 2016'!V97*'Prevalence Rates'!V97","v":5.7421201703094686},{"$f":"'Population 2016'!W97*'Prevalence Rates'!W97","v":17.226360510928405},{"$f":"'Population 2016'!X97*'Prevalence Rates'!X97","v":17.226360510928405},{"$f":"'Population 2016'!Y97*'Prevalence Rates'!Y97","v":10.71126262538497},{"$f":"'Population 2016'!Z97*'Prevalence Rates'!Z97","v":51.237379981222951},{"$f":"'Population 2016'!AA97*'Prevalence Rates'!AA97","v":112.7443210362686},{"$f":"'Population 2016'!AB97*'Prevalence Rates'!AB97","v":4.6378662914038014},{"$f":"'Population 2016'!AC97*'Prevalence Rates'!AC97","v":78.73330156597406},{"$f":"'Population 2016'!AD97*'Prevalence Rates'!AD97","v":3.6440378003887011},{"$f":"'Population 2016'!AE97*'Prevalence Rates'!AE97","v":2.3189331457019007},{"$f":"'Population 2016'!AF97*'Prevalence Rates'!AF97","v":6.956799437105702},{"$f":"'Population 2016'!AG97*'Prevalence Rates'!AG97","v":2.3189331457019007},{"$f":"'Population 2016'!AH97*'Prevalence Rates'!AH97","v":34.011019470294542},{"$f":"'Population 2016'!AI97*'Prevalence Rates'!AI97","v":22.195502966003907},{"$f":"'Population 2016'!AJ97*'Prevalence Rates'!AJ97","v":3.312761636717001},{"$f":"'Population 2016'!AK97*'Prevalence Rates'!AK97","v":0.22085077578113341},{"$f":"'Population 2016'!AL97*'Prevalence Rates'!AL97","v":10.159135685932137},{"$f":"'Population 2016'!AM97*'Prevalence Rates'!AM97","v":20.759972923426542},{"$f":"'Population 2016'!AN97*'Prevalence Rates'!AN97","v":0},{"$f":"'Population 2016'!AO97*'Prevalence Rates'!AO97","v":0},{"$f":"'Population 2016'!AP97*'Prevalence Rates'!AP97","v":0.99382849101510029},{"$f":"'Population 2016'!AQ97*'Prevalence Rates'!AQ97","v":10.379986461713271},{"$f":"'Population 2016'!AR97*'Prevalence Rates'!AR97","v":211.5750431983258},{"$f":"'Population 2016'!AS97*'Prevalence Rates'!AS97","v":1.5459554304679339},{"$f":"'Population 2016'!AT97*'Prevalence Rates'!AT97","v":0},{"$f":"'Population 2016'!AU97*'Prevalence Rates'!AU97","v":0},{"$f":"'Population 2016'!AV97*'Prevalence Rates'!AV97","v":4.6378662914038014},{"$f":"'Population 2016'!AW97*'Prevalence Rates'!AW97","v":13.251046546868004},{"$f":"'Population 2016'!AX97*'Prevalence Rates'!AX97","v":1.7668062062490673},{"$f":"'Population 2016'!AY97*'Prevalence Rates'!AY97","v":29.483578566781311},{"$f":"'Population 2016'!AZ97*'Prevalence Rates'!AZ97","v":12.257218055852904},{"$f":"'Population 2016'!BA97*'Prevalence Rates'!BA97","v":7.9506279281208023},{"$f":"'Population 2016'!BB97*'Prevalence Rates'!BB97","v":5.9629709460906017},{"$f":"'Population 2016'!BC97*'Prevalence Rates'!BC97","v":0},95]
["SIMD Q2","Female 0-4",{"$f":"'Population 2016'!C98*'Prevalence Rates'!C98","v":0},{"$f":"'Population 2016'!D98*'Prevalence Rates'!D98","v":0},{"$f":"'Population 2016'!E98*'Prevalence Rates'!E98","v":0},{"$f":"'Population 2016'!F98*'Prevalence Rates'!F98","v":0},{"$f":"'Population 2016'!G98*'Prevalence Rates'!G98","v":0},{"$f":"'Population 2016'!H98*'Prevalence Rates'!H98","v":0},{"$f":"'Population 2016'!I98*'Prevalence Rates'!I98","v":0},{"$f":"'Population 2016'!J98*'Prevalence Rates'!J98","v":0},{"$f":"'Population 2016'!K98*'Prevalence Rates'!K98","v":0},{"$f":"'Population 2016'!L98*'Prevalence Rates'!L98","v":0},{"$f":"'Population 2016'!M98*'Prevalence Rates'!M98","v":0},{"$f":"'Population 2016'!N98*'Prevalence Rates'!N98","v":0},{"$f":"'Population 2016'!O98*'Prevalence Rates'!O98","v":0},{"$f":"'Population 2016'!P98*'Prevalence Rates'!P98","v":0},{"$f":"'Population 2016'!Q98*'Prevalence Rates'!Q98","v":0},{"$f":"'Population 2016'!R98*'Prevalence Rates'!R98","v":0},{"$f":"'Population 2016'!S98*'Prevalence Rates'!S98","v":0},{"$f":"'Population 2016'!T98*'Prevalence Rates'!T98","v":0},{"$f":"'Population 2016'!U98*'Prevalence Rates'!U98","v":0},{"$f":"'Population 2016'!V98*'Prevalence Rates'!V98","v":0},{"$f":"'Population 2016'!W98*'Prevalence Rates'!W98","v":0},{"$f":"'Population 2016'!X98*'Prevalence Rates'!X98","v":0},{"$f":"'Population 2016'!Y98*'Prevalence Rates'!Y98","v":0},{"$f":"'Population 2016'!Z98*'Prevalence Rates'!Z98","v":0},{"$f":"'Population 2016'!AA98*'Prevalence Rates'!AA98","v":0},{"$f":"'Population 2016'!AB98*'Prevalence Rates'!AB98","v":0},{"$f":"'Population 2016'!AC98*'Prevalence Rates'!AC98","v":0},{"$f":"'Population 2016'!AD98*'Prevalence Rates'!AD98","v":0},{"$f":"'Population 2016'!AE98*'Prevalence Rates'!AE98","v":0},{"$f":"'Population 2016'!AF98*'Prevalence Rates'!AF98","v":0},{"$f":"'Population 2016'!AG98*'Prevalence Rates'!AG98","v":0},{"$f":"'Population 2016'!AH98*'Prevalence Rates'!AH98","v":0},{"$f":"'Population 2016'!AI98*'Prevalence Rates'!AI98","v":0},{"$f":"'Population 2016'!AJ98*'Prevalence Rates'!AJ98","v":0},{"$f":"'Population 2016'!AK98*'Prevalence Rates'!AK98","v":0},{"$f":"'Population 2016'!AL98*'Prevalence Rates'!AL98","v":0},{"$f":"'Population 2016'!AM98*'Prevalence Rates'!AM98","v":0},{"$f":"'Population 2016'!AN98*'Prevalence Rates'!AN98","v":0},{"$f":"'Population 2016'!AO98*'Prevalence Rates'!AO98","v":0},{"$f":"'Population 2016'!AP98*'Prevalence Rates'!AP98","v":0},{"$f":"'Population 2016'!AQ98*'Prevalence Rates'!AQ98","v":0},{"$f":"'Population 2016'!AR98*'Prevalence Rates'!AR98","v":0},{"$f":"'Population 2016'!AS98*'Prevalence Rates'!AS98","v":0},{"$f":"'Population 2016'!AT98*'Prevalence Rates'!AT98","v":0},{"$f":"'Population 2016'!AU98*'Prevalence Rates'!AU98","v":0},{"$f":"'Population 2016'!AV98*'Prevalence Rates'!AV98","v":0},{"$f":"'Population 2016'!AW98*'Prevalence Rates'!AW98","v":0},{"$f":"'Population 2016'!AX98*'Prevalence Rates'!AX98","v":0},{"$f":"'Population 2016'!AY98*'Prevalence Rates'!AY98","v":0},{"$f":"'Population 2016'!AZ98*'Prevalence Rates'!AZ98","v":0},{"$f":"'Population 2016'!BA98*'Prevalence Rates'!BA98","v":0},{"$f":"'Population 2016'!BB98*'Prevalence Rates'!BB98","v":0},{"$f":"'Population 2016'!BC98*'Prevalence Rates'!BC98","v":0},96]
[null,"Female 5-9",{"$f":"'Population 2016'!C99*'Prevalence Rates'!C99","v":0},{"$f":"'Population 2016'!D99*'Prevalence Rates'!D99","v":0},{"$f":"'Population 2016'!E99*'Prevalence Rates'!E99","v":0},{"$f":"'Population 2016'!F99*'Prevalence Rates'!F99","v":0},{"$f":"'Population 2016'!G99*'Prevalence Rates'!G99","v":0},{"$f":"'Population 2016'!H99*'Prevalence Rates'!H99","v":0},{"$f":"'Population 2016'!I99*'Prevalence Rates'!I99","v":0},{"$f":"'Population 2016'!J99*'Prevalence Rates'!J99","v":0},{"$f":"'Population 2016'!K99*'Prevalence Rates'!K99","v":0},{"$f":"'Population 2016'!L99*'Prevalence Rates'!L99","v":0},{"$f":"'Population 2016'!M99*'Prevalence Rates'!M99","v":0},{"$f":"'Population 2016'!N99*'Prevalence Rates'!N99","v":0},{"$f":"'Population 2016'!O99*'Prevalence Rates'!O99","v":0},{"$f":"'Population 2016'!P99*'Prevalence Rates'!P99","v":0},{"$f":"'Population 2016'!Q99*'Prevalence Rates'!Q99","v":0},{"$f":"'Population 2016'!R99*'Prevalence Rates'!R99","v":0},{"$f":"'Population 2016'!S99*'Prevalence Rates'!S99","v":0},{"$f":"'Population 2016'!T99*'Prevalence Rates'!T99","v":0},{"$f":"'Population 2016'!U99*'Prevalence Rates'!U99","v":0},{"$f":"'Population 2016'!V99*'Prevalence Rates'!V99","v":0},{"$f":"'Population 2016'!W99*'Prevalence Rates'!W99","v":0},{"$f":"'Population 2016'!X99*'Prevalence Rates'!X99","v":0},{"$f":"'Population 2016'!Y99*'Prevalence Rates'!Y99","v":0},{"$f":"'Population 2016'!Z99*'Prevalence Rates'!Z99","v":0},{"$f":"'Population 2016'!AA99*'Prevalence Rates'!AA99","v":0},{"$f":"'Population 2016'!AB99*'Prevalence Rates'!AB99","v":0},{"$f":"'Population 2016'!AC99*'Prevalence Rates'!AC99","v":0},{"$f":"'Population 2016'!AD99*'Prevalence Rates'!AD99","v":0},{"$f":"'Population 2016'!AE99*'Prevalence Rates'!AE99","v":0},{"$f":"'Population 2016'!AF99*'Prevalence Rates'!AF99","v":0},{"$f":"'Population 2016'!AG99*'Prevalence Rates'!AG99","v":0},{"$f":"'Population 2016'!AH99*'Prevalence Rates'!AH99","v":0},{"$f":"'Population 2016'!AI99*'Prevalence Rates'!AI99","v":0},{"$f":"'Population 2016'!AJ99*'Prevalence Rates'!AJ99","v":0},{"$f":"'Population 2016'!AK99*'Prevalence Rates'!AK99","v":0},{"$f":"'Population 2016'!AL99*'Prevalence Rates'!AL99","v":0},{"$f":"'Population 2016'!AM99*'Prevalence Rates'!AM99","v":0},{"$f":"'Population 2016'!AN99*'Prevalence Rates'!AN99","v":0},{"$f":"'Population 2016'!AO99*'Prevalence Rates'!AO99","v":0},{"$f":"'Population 2016'!AP99*'Prevalence Rates'!AP99","v":0},{"$f":"'Population 2016'!AQ99*'Prevalence Rates'!AQ99","v":0},{"$f":"'Population 2016'!AR99*'Prevalence Rates'!AR99","v":0},{"$f":"'Population 2016'!AS99*'Prevalence Rates'!AS99","v":0},{"$f":"'Population 2016'!AT99*'Prevalence Rates'!AT99","v":0},{"$f":"'Population 2016'!AU99*'Prevalence Rates'!AU99","v":0},{"$f":"'Population 2016'!AV99*'Prevalence Rates'!AV99","v":0},{"$f":"'Population 2016'!AW99*'Prevalence Rates'!AW99","v":0},{"$f":"'Population 2016'!AX99*'Prevalence Rates'!AX99","v":0},{"$f":"'Population 2016'!AY99*'Prevalence Rates'!AY99","v":0},{"$f":"'Population 2016'!AZ99*'Prevalence Rates'!AZ99","v":0},{"$f":"'Population 2016'!BA99*'Prevalence Rates'!BA99","v":0},{"$f":"'Population 2016'!BB99*'Prevalence Rates'!BB99","v":0},{"$f":"'Population 2016'!BC99*'Prevalence Rates'!BC99","v":0},97]
[null,"Female 10-15",{"$f":"'Population 2016'!C100*'Prevalence Rates'!C100","v":0},{"$f":"'Population 2016'!D100*'Prevalence Rates'!D100","v":0},{"$f":"'Population 2016'!E100*'Prevalence Rates'!E100","v":0},{"$f":"'Population 2016'!F100*'Prevalence Rates'!F100","v":0},{"$f":"'Population 2016'!G100*'Prevalence Rates'!G100","v":0},{"$f":"'Population 2016'!H100*'Prevalence Rates'!H100","v":0},{"$f":"'Population 2016'!I100*'Prevalence Rates'!I100","v":0},{"$f":"'Population 2016'!J100*'Prevalence Rates'!J100","v":0},{"$f":"'Population 2016'!K100*'Prevalence Rates'!K100","v":0},{"$f":"'Population 2016'!L100*'Prevalence Rates'!L100","v":0},{"$f":"'Population 2016'!M100*'Prevalence Rates'!M100","v":0},{"$f":"'Population 2016'!N100*'Prevalence Rates'!N100","v":0},{"$f":"'Population 2016'!O100*'Prevalence Rates'!O100","v":0},{"$f":"'Population 2016'!P100*'Prevalence Rates'!P100","v":0},{"$f":"'Population 2016'!Q100*'Prevalence Rates'!Q100","v":0},{"$f":"'Population 2016'!R100*'Prevalence Rates'!R100","v":0},{"$f":"'Population 2016'!S100*'Prevalence Rates'!S100","v":0},{"$f":"'Population 2016'!T100*'Prevalence Rates'!T100","v":0},{"$f":"'Population 2016'!U100*'Prevalence Rates'!U100","v":0},{"$f":"'Population 2016'!V100*'Prevalence Rates'!V100","v":0},{"$f":"'Population 2016'!W100*'Prevalence Rates'!W100","v":0},{"$f":"'Population 2016'!X100*'Prevalence Rates'!X100","v":0},{"$f":"'Population 2016'!Y100*'Prevalence Rates'!Y100","v":0},{"$f":"'Population 2016'!Z100*'Prevalence Rates'!Z100","v":0},{"$f":"'Population 2016'!AA100*'Prevalence Rates'!AA100","v":0},{"$f":"'Population 2016'!AB100*'Prevalence Rates'!AB100","v":0},{"$f":"'Population 2016'!AC100*'Prevalence Rates'!AC100","v":0},{"$f":"'Population 2016'!AD100*'Prevalence Rates'!AD100","v":0},{"$f":"'Population 2016'!AE100*'Prevalence Rates'!AE100","v":0},{"$f":"'Population 2016'!AF100*'Prevalence Rates'!AF100","v":0},{"$f":"'Population 2016'!AG100*'Prevalence Rates'!AG100","v":0},{"$f":"'Population 2016'!AH100*'Prevalence Rates'!AH100","v":0},{"$f":"'Population 2016'!AI100*'Prevalence Rates'!AI100","v":0},{"$f":"'Population 2016'!AJ100*'Prevalence Rates'!AJ100","v":0},{"$f":"'Population 2016'!AK100*'Prevalence Rates'!AK100","v":0},{"$f":"'Population 2016'!AL100*'Prevalence Rates'!AL100","v":0},{"$f":"'Population 2016'!AM100*'Prevalence Rates'!AM100","v":0},{"$f":"'Population 2016'!AN100*'Prevalence Rates'!AN100","v":0},{"$f":"'Population 2016'!AO100*'Prevalence Rates'!AO100","v":0},{"$f":"'Population 2016'!AP100*'Prevalence Rates'!AP100","v":0},{"$f":"'Population 2016'!AQ100*'Prevalence Rates'!AQ100","v":0},{"$f":"'Population 2016'!AR100*'Prevalence Rates'!AR100","v":0},{"$f":"'Population 2016'!AS100*'Prevalence Rates'!AS100","v":0},{"$f":"'Population 2016'!AT100*'Prevalence Rates'!AT100","v":0},{"$f":"'Population 2016'!AU100*'Prevalence Rates'!AU100","v":0},{"$f":"'Population 2016'!AV100*'Prevalence Rates'!AV100","v":0},{"$f":"'Population 2016'!AW100*'Prevalence Rates'!AW100","v":0},{"$f":"'Population 2016'!AX100*'Prevalence Rates'!AX100","v":0},{"$f":"'Population 2016'!AY100*'Prevalence Rates'!AY100","v":0},{"$f":"'Population 2016'!AZ100*'Prevalence Rates'!AZ100","v":0},{"$f":"'Population 2016'!BA100*'Prevalence Rates'!BA100","v":0},{"$f":"'Population 2016'!BB100*'Prevalence Rates'!BB100","v":0},{"$f":"'Population 2016'!BC100*'Prevalence Rates'!BC100","v":0},98]
[null,"Female 16-19",{"$f":"'Population 2016'!C101*'Prevalence Rates'!C101","v":118.61843592851108},{"$f":"'Population 2016'!D101*'Prevalence Rates'!D101","v":165.99159647138882},{"$f":"'Population 2016'!E101*'Prevalence Rates'!E101","v":47.373160542877727},{"$f":"'Population 2016'!F101*'Prevalence Rates'!F101","v":47.867919399722403},{"$f":"'Population 2016'!G101*'Prevalence Rates'!G101","v":34.756809693338489},{"$f":"'Population 2016'!H101*'Prevalence Rates'!H101","v":228.45490214802916},{"$f":"'Population 2016'!I101*'Prevalence Rates'!I101","v":44.775676544443179},{"$f":"'Population 2016'!J101*'Prevalence Rates'!J101","v":79.90355538041517},{"$f":"'Population 2016'!K101*'Prevalence Rates'!K101","v":40.693915975474603},{"$f":"'Population 2016'!L101*'Prevalence Rates'!L101","v":109.3417073626734},{"$f":"'Population 2016'!M101*'Prevalence Rates'!M101","v":109.3417073626734},{"$f":"'Population 2016'!N101*'Prevalence Rates'!N101","v":82.624729093060893},{"$f":"'Population 2016'!O101*'Prevalence Rates'!O101","v":85.345902805706615},{"$f":"'Population 2016'!P101*'Prevalence Rates'!P101","v":44.40460740180967},{"$f":"'Population 2016'!Q101*'Prevalence Rates'!Q101","v":68.276722244565292},{"$f":"'Population 2016'!R101*'Prevalence Rates'!R101","v":26.593288555401337},{"$f":"'Population 2016'!S101*'Prevalence Rates'!S101","v":731.37728013064236},{"$f":"'Population 2016'!T101*'Prevalence Rates'!T101","v":198.64568102313743},{"$f":"'Population 2016'!U101*'Prevalence Rates'!U101","v":14.595386276917942},{"$f":"'Population 2016'!V101*'Prevalence Rates'!V101","v":114.907744502176},{"$f":"'Population 2016'!W101*'Prevalence Rates'!W101","v":192.58488502679015},{"$f":"'Population 2016'!X101*'Prevalence Rates'!X101","v":192.58488502679015},{"$f":"'Population 2016'!Y101*'Prevalence Rates'!Y101","v":194.81129988259119},{"$f":"'Population 2016'!Z101*'Prevalence Rates'!Z101","v":296.97900382101676},{"$f":"'Population 2016'!AA101*'Prevalence Rates'!AA101","v":1045.1780850843782},{"$f":"'Population 2016'!AB101*'Prevalence Rates'!AB101","v":199.8825781652491},{"$f":"'Population 2016'!AC101*'Prevalence Rates'!AC101","v":561.30392309028491},{"$f":"'Population 2016'!AD101*'Prevalence Rates'!AD101","v":153.12786619342722},{"$f":"'Population 2016'!AE101*'Prevalence Rates'!AE101","v":118.37105650008874},{"$f":"'Population 2016'!AF101*'Prevalence Rates'!AF101","v":28.572323982780041},{"$f":"'Population 2016'!AG101*'Prevalence Rates'!AG101","v":118.37105650008874},{"$f":"'Population 2016'!AH101*'Prevalence Rates'!AH101","v":483.87416199409313},{"$f":"'Population 2016'!AI101*'Prevalence Rates'!AI101","v":494.01671855940901},{"$f":"'Population 2016'!AJ101*'Prevalence Rates'!AJ101","v":94.004182800488451},{"$f":"'Population 2016'!AK101*'Prevalence Rates'!AK101","v":33.890981693860304},{"$f":"'Population 2016'!AL101*'Prevalence Rates'!AL101","v":69.389929672465811},{"$f":"'Population 2016'!AM101*'Prevalence Rates'!AM101","v":271.62261240772716},{"$f":"'Population 2016'!AN101*'Prevalence Rates'!AN101","v":6.0607959963472808},{"$f":"'Population 2016'!AO101*'Prevalence Rates'!AO101","v":6.0607959963472808},{"$f":"'Population 2016'!AP101*'Prevalence Rates'!AP101","v":44.775676544443179},{"$f":"'Population 2016'!AQ101*'Prevalence Rates'!AQ101","v":93.3857342294326},{"$f":"'Population 2016'!AR101*'Prevalence Rates'!AR101","v":2859.8298822764386},{"$f":"'Population 2016'!AS101*'Prevalence Rates'!AS101","v":44.775676544443179},{"$f":"'Population 2016'!AT101*'Prevalence Rates'!AT101","v":1.731655998956366},{"$f":"'Population 2016'!AU101*'Prevalence Rates'!AU101","v":1.731655998956366},{"$f":"'Population 2016'!AV101*'Prevalence Rates'!AV101","v":73.719069669856722},{"$f":"'Population 2016'!AW101*'Prevalence Rates'!AW101","v":212.25154958636602},{"$f":"'Population 2016'!AX101*'Prevalence Rates'!AX101","v":39.209639404940575},{"$f":"'Population 2016'!AY101*'Prevalence Rates'!AY101","v":367.85321006401659},{"$f":"'Population 2016'!AZ101*'Prevalence Rates'!AZ101","v":175.26832503722648},{"$f":"'Population 2016'!BA101*'Prevalence Rates'!BA101","v":71.368965099844516},{"$f":"'Population 2016'!BB101*'Prevalence Rates'!BB101","v":133.09013249121784},{"$f":"'Population 2016'!BC101*'Prevalence Rates'!BC101","v":14.595386276917942},99]
[null,"Female 20-24",{"$f":"'Population 2016'!C102*'Prevalence Rates'!C102","v":271.25154326509363},{"$f":"'Population 2016'!D102*'Prevalence Rates'!D102","v":344.8469232207392},{"$f":"'Population 2016'!E102*'Prevalence Rates'!E102","v":73.595379955645555},{"$f":"'Population 2016'!F102*'Prevalence Rates'!F102","v":93.138354801010266},{"$f":"'Population 2016'!G102*'Prevalence Rates'!G102","v":45.146745687076688},{"$f":"'Population 2016'!H102*'Prevalence Rates'!H102","v":309.47166495634485},{"$f":"'Population 2016'!I102*'Prevalence Rates'!I102","v":68.400411958776459},{"$f":"'Population 2016'!J102*'Prevalence Rates'!J102","v":127.64778506592641},{"$f":"'Population 2016'!K102*'Prevalence Rates'!K102","v":46.507332543399549},{"$f":"'Population 2016'!L102*'Prevalence Rates'!L102","v":136.67713420334175},{"$f":"'Population 2016'!M102*'Prevalence Rates'!M102","v":136.67713420334175},{"$f":"'Population 2016'!N102*'Prevalence Rates'!N102","v":200.50102673630496},{"$f":"'Population 2016'!O102*'Prevalence Rates'!O102","v":110.57860450478509},{"$f":"'Population 2016'!P102*'Prevalence Rates'!P102","v":63.576513104540865},{"$f":"'Population 2016'!Q102*'Prevalence Rates'!Q102","v":114.907744502176},{"$f":"'Population 2016'!R102*'Prevalence Rates'!R102","v":33.767291979649137},{"$f":"'Population 2016'!S102*'Prevalence Rates'!S102","v":1246.7923192485837},{"$f":"'Population 2016'!T102*'Prevalence Rates'!T102","v":507.62258712263758},{"$f":"'Population 2016'!U102*'Prevalence Rates'!U102","v":17.811318846408337},{"$f":"'Population 2016'!V102*'Prevalence Rates'!V102","v":161.16769761715321},{"$f":"'Population 2016'!W102*'Prevalence Rates'!W102","v":260.49053812872194},{"$f":"'Population 2016'!X102*'Prevalence Rates'!X102","v":260.49053812872194},{"$f":"'Population 2016'!Y102*'Prevalence Rates'!Y102","v":288.81548268307961},{"$f":"'Population 2016'!Z102*'Prevalence Rates'!Z102","v":565.01461451661999},{"$f":"'Population 2016'!AA102*'Prevalence Rates'!AA102","v":1574.8174413366037},{"$f":"'Population 2016'!AB102*'Prevalence Rates'!AB102","v":413.61840432214916},{"$f":"'Population 2016'!AC102*'Prevalence Rates'!AC102","v":913.57222916369426},{"$f":"'Population 2016'!AD102*'Prevalence Rates'!AD102","v":197.03771473839222},{"$f":"'Population 2016'!AE102*'Prevalence Rates'!AE102","v":151.89096905131555},{"$f":"'Population 2016'!AF102*'Prevalence Rates'!AF102","v":35.746327407027842},{"$f":"'Population 2016'!AG102*'Prevalence Rates'!AG102","v":151.89096905131555},{"$f":"'Population 2016'!AH102*'Prevalence Rates'!AH102","v":661.24521217290953},{"$f":"'Population 2016'!AI102*'Prevalence Rates'!AI102","v":917.9013691610852},{"$f":"'Population 2016'!AJ102*'Prevalence Rates'!AJ102","v":117.87629764324406},{"$f":"'Population 2016'!AK102*'Prevalence Rates'!AK102","v":68.771481101409961},{"$f":"'Population 2016'!AL102*'Prevalence Rates'!AL102","v":94.251562228910785},{"$f":"'Population 2016'!AM102*'Prevalence Rates'!AM102","v":346.4548895054844},{"$f":"'Population 2016'!AN102*'Prevalence Rates'!AN102","v":10.884694850582873},{"$f":"'Population 2016'!AO102*'Prevalence Rates'!AO102","v":10.884694850582873},{"$f":"'Population 2016'!AP102*'Prevalence Rates'!AP102","v":71.245275385633349},{"$f":"'Population 2016'!AQ102*'Prevalence Rates'!AQ102","v":118.74212564272224},{"$f":"'Population 2016'!AR102*'Prevalence Rates'!AR102","v":4564.0267646779248},{"$f":"'Population 2016'!AS102*'Prevalence Rates'!AS102","v":68.400411958776459},{"$f":"'Population 2016'!AT102*'Prevalence Rates'!AT102","v":3.215932569490394},{"$f":"'Population 2016'!AU102*'Prevalence Rates'!AU102","v":3.215932569490394},{"$f":"'Population 2016'!AV102*'Prevalence Rates'!AV102","v":104.64149822264898},{"$f":"'Population 2016'!AW102*'Prevalence Rates'!AW102","v":314.79032266742513},{"$f":"'Population 2016'!AX102*'Prevalence Rates'!AX102","v":81.140452522526871},{"$f":"'Population 2016'!AY102*'Prevalence Rates'!AY102","v":625.37519505167052},{"$f":"'Population 2016'!AZ102*'Prevalence Rates'!AZ102","v":364.88465692294858},{"$f":"'Population 2016'!BA102*'Prevalence Rates'!BA102","v":96.725356513134159},{"$f":"'Population 2016'!BB102*'Prevalence Rates'!BB102","v":177.49473989302751},{"$f":"'Population 2016'!BC102*'Prevalence Rates'!BC102","v":17.811318846408337},100]
[null,"Female 25-29",{"$f":"'Population 2016'!C103*'Prevalence Rates'!C103","v":308.85321638528899},{"$f":"'Population 2016'!D103*'Prevalence Rates'!D103","v":391.10687633571638},{"$f":"'Population 2016'!E103*'Prevalence Rates'!E103","v":82.253659950427391},{"$f":"'Population 2016'!F103*'Prevalence Rates'!F103","v":95.983218227867141},{"$f":"'Population 2016'!G103*'Prevalence Rates'!G103","v":52.939197682380332},{"$f":"'Population 2016'!H103*'Prevalence Rates'!H103","v":332.60164151383344},{"$f":"'Population 2016'!I103*'Prevalence Rates'!I103","v":69.266239958254644},{"$f":"'Population 2016'!J103*'Prevalence Rates'!J103","v":126.03981878118121},{"$f":"'Population 2016'!K103*'Prevalence Rates'!K103","v":53.68133596764735},{"$f":"'Population 2016'!L103*'Prevalence Rates'!L103","v":132.59537363437317},{"$f":"'Population 2016'!M103*'Prevalence Rates'!M103","v":132.59537363437317},{"$f":"'Population 2016'!N103*'Prevalence Rates'!N103","v":185.16350217412},{"$f":"'Population 2016'!O103*'Prevalence Rates'!O103","v":125.66874963854771},{"$f":"'Population 2016'!P103*'Prevalence Rates'!P103","v":72.234793099322701},{"$f":"'Population 2016'!Q103*'Prevalence Rates'!Q103","v":114.66036507375367},{"$f":"'Population 2016'!R103*'Prevalence Rates'!R103","v":31.417187409636927},{"$f":"'Population 2016'!S103*'Prevalence Rates'!S103","v":1380.1298311682237},{"$f":"'Population 2016'!T103*'Prevalence Rates'!T103","v":574.29134308245773},{"$f":"'Population 2016'!U103*'Prevalence Rates'!U103","v":19.419285131153533},{"$f":"'Population 2016'!V103*'Prevalence Rates'!V103","v":174.89725589459297},{"$f":"'Population 2016'!W103*'Prevalence Rates'!W103","v":295.98948610732742},{"$f":"'Population 2016'!X103*'Prevalence Rates'!X103","v":295.98948610732742},{"$f":"'Population 2016'!Y103*'Prevalence Rates'!Y103","v":300.93707467577417},{"$f":"'Population 2016'!Z103*'Prevalence Rates'!Z103","v":735.21166127118852},{"$f":"'Population 2016'!AA103*'Prevalence Rates'!AA103","v":1815.6413149057498},{"$f":"'Population 2016'!AB103*'Prevalence Rates'!AB103","v":452.33328487024505},{"$f":"'Population 2016'!AC103*'Prevalence Rates'!AC103","v":1121.3709490384581},{"$f":"'Population 2016'!AD103*'Prevalence Rates'!AD103","v":213.61213644268886},{"$f":"'Population 2016'!AE103*'Prevalence Rates'!AE103","v":160.67293876030854},{"$f":"'Population 2016'!AF103*'Prevalence Rates'!AF103","v":44.157227973387336},{"$f":"'Population 2016'!AG103*'Prevalence Rates'!AG103","v":160.67293876030854},{"$f":"'Population 2016'!AH103*'Prevalence Rates'!AH103","v":694.27036586729162},{"$f":"'Population 2016'!AI103*'Prevalence Rates'!AI103","v":1014.8741051026417},{"$f":"'Population 2016'!AJ103*'Prevalence Rates'!AJ103","v":123.81340392538017},{"$f":"'Population 2016'!AK103*'Prevalence Rates'!AK103","v":61.226408534528659},{"$f":"'Population 2016'!AL103*'Prevalence Rates'!AL103","v":94.375251943121953},{"$f":"'Population 2016'!AM103*'Prevalence Rates'!AM103","v":375.1509032024756},{"$f":"'Population 2016'!AN103*'Prevalence Rates'!AN103","v":12.3689714211169},{"$f":"'Population 2016'!AO103*'Prevalence Rates'!AO103","v":12.3689714211169},{"$f":"'Population 2016'!AP103*'Prevalence Rates'!AP103","v":79.408796523570501},{"$f":"'Population 2016'!AQ103*'Prevalence Rates'!AQ103","v":132.84275306279551},{"$f":"'Population 2016'!AR103*'Prevalence Rates'!AR103","v":5023.0392941155733},{"$f":"'Population 2016'!AS103*'Prevalence Rates'!AS103","v":69.266239958254644},{"$f":"'Population 2016'!AT103*'Prevalence Rates'!AT103","v":2.8448634268568873},{"$f":"'Population 2016'!AU103*'Prevalence Rates'!AU103","v":2.8448634268568873},{"$f":"'Population 2016'!AV103*'Prevalence Rates'!AV103","v":112.5576399321638},{"$f":"'Population 2016'!AW103*'Prevalence Rates'!AW103","v":319.11946266481601},{"$f":"'Population 2016'!AX103*'Prevalence Rates'!AX103","v":72.358482813533868},{"$f":"'Population 2016'!AY103*'Prevalence Rates'!AY103","v":656.54500303288512},{"$f":"'Population 2016'!AZ103*'Prevalence Rates'!AZ103","v":360.55551692555764},{"$f":"'Population 2016'!BA103*'Prevalence Rates'!BA103","v":105.50732622212716},{"$f":"'Population 2016'!BB103*'Prevalence Rates'!BB103","v":202.10899302105017},{"$f":"'Population 2016'!BC103*'Prevalence Rates'!BC103","v":19.419285131153533},101]
[null,"Female 30-34",{"$f":"'Population 2016'!C104*'Prevalence Rates'!C104","v":263.08802212715648},{"$f":"'Population 2016'!D104*'Prevalence Rates'!D104","v":339.52826550965892},{"$f":"'Population 2016'!E104*'Prevalence Rates'!E104","v":76.440243382502445},{"$f":"'Population 2016'!F104*'Prevalence Rates'!F104","v":87.324938233085319},{"$f":"'Population 2016'!G104*'Prevalence Rates'!G104","v":44.033538259176169},{"$f":"'Population 2016'!H104*'Prevalence Rates'!H104","v":316.150909523748},{"$f":"'Population 2016'!I104*'Prevalence Rates'!I104","v":58.628924536094111},{"$f":"'Population 2016'!J104*'Prevalence Rates'!J104","v":104.64149822264898},{"$f":"'Population 2016'!K104*'Prevalence Rates'!K104","v":49.846954827101108},{"$f":"'Population 2016'!L104*'Prevalence Rates'!L104","v":134.94547820438538},{"$f":"'Population 2016'!M104*'Prevalence Rates'!M104","v":134.94547820438538},{"$f":"'Population 2016'!N104*'Prevalence Rates'!N104","v":136.80082391755292},{"$f":"'Population 2016'!O104*'Prevalence Rates'!O104","v":119.48426392798926},{"$f":"'Population 2016'!P104*'Prevalence Rates'!P104","v":63.823892532963207},{"$f":"'Population 2016'!Q104*'Prevalence Rates'!Q104","v":117.87629764324406},{"$f":"'Population 2016'!R104*'Prevalence Rates'!R104","v":30.427669695947575},{"$f":"'Population 2016'!S104*'Prevalence Rates'!S104","v":1292.6812032209273},{"$f":"'Population 2016'!T104*'Prevalence Rates'!T104","v":481.89512656671445},{"$f":"'Population 2016'!U104*'Prevalence Rates'!U104","v":18.553457131675351},{"$f":"'Population 2016'!V104*'Prevalence Rates'!V104","v":186.15301988780936},{"$f":"'Population 2016'!W104*'Prevalence Rates'!W104","v":293.26831239468169},{"$f":"'Population 2016'!X104*'Prevalence Rates'!X104","v":293.26831239468169},{"$f":"'Population 2016'!Y104*'Prevalence Rates'!Y104","v":290.79451811045834},{"$f":"'Population 2016'!Z104*'Prevalence Rates'!Z104","v":610.7798087747525},{"$f":"'Population 2016'!AA104*'Prevalence Rates'!AA104","v":1722.3792703905283},{"$f":"'Population 2016'!AB104*'Prevalence Rates'!AB104","v":405.20750375578967},{"$f":"'Population 2016'!AC104*'Prevalence Rates'!AC104","v":988.77557540408498},{"$f":"'Population 2016'!AD104*'Prevalence Rates'!AD104","v":212.49892901478836},{"$f":"'Population 2016'!AE104*'Prevalence Rates'!AE104","v":168.46539075561219},{"$f":"'Population 2016'!AF104*'Prevalence Rates'!AF104","v":46.878401686033051},{"$f":"'Population 2016'!AG104*'Prevalence Rates'!AG104","v":168.46539075561219},{"$f":"'Population 2016'!AH104*'Prevalence Rates'!AH104","v":733.60369498644332},{"$f":"'Population 2016'!AI104*'Prevalence Rates'!AI104","v":940.7839662901514},{"$f":"'Population 2016'!AJ104*'Prevalence Rates'!AJ104","v":131.11109706383914},{"$f":"'Population 2016'!AK104*'Prevalence Rates'!AK104","v":65.679238246130737},{"$f":"'Population 2016'!AL104*'Prevalence Rates'!AL104","v":97.220115369978842},{"$f":"'Population 2016'!AM104*'Prevalence Rates'!AM104","v":396.05446490416313},{"$f":"'Population 2016'!AN104*'Prevalence Rates'!AN104","v":7.6687622810924783},{"$f":"'Population 2016'!AO104*'Prevalence Rates'!AO104","v":7.6687622810924783},{"$f":"'Population 2016'!AP104*'Prevalence Rates'!AP104","v":85.840661662551284},{"$f":"'Population 2016'!AQ104*'Prevalence Rates'!AQ104","v":127.52409535171525},{"$f":"'Population 2016'!AR104*'Prevalence Rates'!AR104","v":4712.8254908739618},{"$f":"'Population 2016'!AS104*'Prevalence Rates'!AS104","v":58.628924536094111},{"$f":"'Population 2016'!AT104*'Prevalence Rates'!AT104","v":1.9790354273787041},{"$f":"'Population 2016'!AU104*'Prevalence Rates'!AU104","v":1.9790354273787041},{"$f":"'Population 2016'!AV104*'Prevalence Rates'!AV104","v":99.446530225779881},{"$f":"'Population 2016'!AW104*'Prevalence Rates'!AW104","v":337.54923008228019},{"$f":"'Population 2016'!AX104*'Prevalence Rates'!AX104","v":54.794543395547869},{"$f":"'Population 2016'!AY104*'Prevalence Rates'!AY104","v":603.23473620787126},{"$f":"'Population 2016'!AZ104*'Prevalence Rates'!AZ104","v":309.96642381318952},{"$f":"'Population 2016'!BA104*'Prevalence Rates'!BA104","v":109.3417073626734},{"$f":"'Population 2016'!BB104*'Prevalence Rates'!BB104","v":209.90144501635379},{"$f":"'Population 2016'!BC104*'Prevalence Rates'!BC104","v":18.553457131675351},102]
[null,"Female 35-39",{"$f":"'Population 2016'!C105*'Prevalence Rates'!C105","v":196.66664559575872},{"$f":"'Population 2016'!D105*'Prevalence Rates'!D105","v":272.98319926404997},{"$f":"'Population 2016'!E105*'Prevalence Rates'!E105","v":76.316553668291277},{"$f":"'Population 2016'!F105*'Prevalence Rates'!F105","v":70.008378243521662},{"$f":"'Population 2016'!G105*'Prevalence Rates'!G105","v":46.13626340076604},{"$f":"'Population 2016'!H105*'Prevalence Rates'!H105","v":318.37732437954901},{"$f":"'Population 2016'!I105*'Prevalence Rates'!I105","v":56.278819966081898},{"$f":"'Population 2016'!J105*'Prevalence Rates'!J105","v":104.88887765107131},{"$f":"'Population 2016'!K105*'Prevalence Rates'!K105","v":50.341713683945784},{"$f":"'Population 2016'!L105*'Prevalence Rates'!L105","v":131.729545634895},{"$f":"'Population 2016'!M105*'Prevalence Rates'!M105","v":131.729545634895},{"$f":"'Population 2016'!N105*'Prevalence Rates'!N105","v":106.62053365002768},{"$f":"'Population 2016'!O105*'Prevalence Rates'!O105","v":118.74212564272224},{"$f":"'Population 2016'!P105*'Prevalence Rates'!P105","v":71.492654814055683},{"$f":"'Population 2016'!Q105*'Prevalence Rates'!Q105","v":111.19705307584094},{"$f":"'Population 2016'!R105*'Prevalence Rates'!R105","v":33.272533122804461},{"$f":"'Population 2016'!S105*'Prevalence Rates'!S105","v":1076.595272494015},{"$f":"'Population 2016'!T105*'Prevalence Rates'!T105","v":325.55132780379682},{"$f":"'Population 2016'!U105*'Prevalence Rates'!U105","v":18.924526274308857},{"$f":"'Population 2016'!V105*'Prevalence Rates'!V105","v":181.45281074778492},{"$f":"'Population 2016'!W105*'Prevalence Rates'!W105","v":276.44651126196271},{"$f":"'Population 2016'!X105*'Prevalence Rates'!X105","v":276.44651126196271},{"$f":"'Population 2016'!Y105*'Prevalence Rates'!Y105","v":286.34168839885626},{"$f":"'Population 2016'!Z105*'Prevalence Rates'!Z105","v":456.04397629658013},{"$f":"'Population 2016'!AA105*'Prevalence Rates'!AA105","v":1468.3205974007872},{"$f":"'Population 2016'!AB105*'Prevalence Rates'!AB105","v":327.28298380275317},{"$f":"'Population 2016'!AC105*'Prevalence Rates'!AC105","v":809.54917951210109},{"$f":"'Population 2016'!AD105*'Prevalence Rates'!AD105","v":200.99578559314963},{"$f":"'Population 2016'!AE105*'Prevalence Rates'!AE105","v":154.85952219238359},{"$f":"'Population 2016'!AF105*'Prevalence Rates'!AF105","v":30.675049124369913},{"$f":"'Population 2016'!AG105*'Prevalence Rates'!AG105","v":154.85952219238359},{"$f":"'Population 2016'!AH105*'Prevalence Rates'!AH105","v":658.77141788868607},{"$f":"'Population 2016'!AI105*'Prevalence Rates'!AI105","v":743.8699412659704},{"$f":"'Population 2016'!AJ105*'Prevalence Rates'!AJ105","v":126.78195706644823},{"$f":"'Population 2016'!AK105*'Prevalence Rates'!AK105","v":54.299784538703193},{"$f":"'Population 2016'!AL105*'Prevalence Rates'!AL105","v":95.241079942600138},{"$f":"'Population 2016'!AM105*'Prevalence Rates'!AM105","v":364.26620835189271},{"$f":"'Population 2016'!AN105*'Prevalence Rates'!AN105","v":8.7819697089929996},{"$f":"'Population 2016'!AO105*'Prevalence Rates'!AO105","v":8.7819697089929996},{"$f":"'Population 2016'!AP105*'Prevalence Rates'!AP105","v":65.308169103497235},{"$f":"'Population 2016'!AQ105*'Prevalence Rates'!AQ105","v":118.24736678587757},{"$f":"'Population 2016'!AR105*'Prevalence Rates'!AR105","v":4083.4922249675337},{"$f":"'Population 2016'!AS105*'Prevalence Rates'!AS105","v":56.278819966081898},{"$f":"'Population 2016'!AT105*'Prevalence Rates'!AT105","v":4.2054502831797462},{"$f":"'Population 2016'!AU105*'Prevalence Rates'!AU105","v":4.2054502831797462},{"$f":"'Population 2016'!AV105*'Prevalence Rates'!AV105","v":104.39411879422664},{"$f":"'Population 2016'!AW105*'Prevalence Rates'!AW105","v":294.50520953679342},{"$f":"'Population 2016'!AX105*'Prevalence Rates'!AX105","v":54.547163967125535},{"$f":"'Population 2016'!AY105*'Prevalence Rates'!AY105","v":518.38359225900933},{"$f":"'Population 2016'!AZ105*'Prevalence Rates'!AZ105","v":241.93708099704656},{"$f":"'Population 2016'!BA105*'Prevalence Rates'!BA105","v":99.817599368413383},{"$f":"'Population 2016'!BB105*'Prevalence Rates'!BB105","v":180.33960331988442},{"$f":"'Population 2016'!BC105*'Prevalence Rates'!BC105","v":18.924526274308857},103]
[null,"Female 40-44",{"$f":"'Population 2016'!C106*'Prevalence Rates'!C106","v":177.24736046460518},{"$f":"'Population 2016'!D106*'Prevalence Rates'!D106","v":252.82177584762945},{"$f":"'Population 2016'!E106*'Prevalence Rates'!E106","v":75.57441538302426},{"$f":"'Population 2016'!F106*'Prevalence Rates'!F106","v":77.429761096191797},{"$f":"'Population 2016'!G106*'Prevalence Rates'!G106","v":54.299784538703193},{"$f":"'Population 2016'!H106*'Prevalence Rates'!H106","v":348.31023521865194},{"$f":"'Population 2016'!I106*'Prevalence Rates'!I106","v":61.102718820317492},{"$f":"'Population 2016'!J106*'Prevalence Rates'!J106","v":111.93919136110794},{"$f":"'Population 2016'!K106*'Prevalence Rates'!K106","v":57.144647965560083},{"$f":"'Population 2016'!L106*'Prevalence Rates'!L106","v":148.05658791076931},{"$f":"'Population 2016'!M106*'Prevalence Rates'!M106","v":148.05658791076931},{"$f":"'Population 2016'!N106*'Prevalence Rates'!N106","v":94.870010799966622},{"$f":"'Population 2016'!O106*'Prevalence Rates'!O106","v":126.78195706644823},{"$f":"'Population 2016'!P106*'Prevalence Rates'!P106","v":68.029342816142957},{"$f":"'Population 2016'!Q106*'Prevalence Rates'!Q106","v":107.98112050635054},{"$f":"'Population 2016'!R106*'Prevalence Rates'!R106","v":32.901463980170952},{"$f":"'Population 2016'!S106*'Prevalence Rates'!S106","v":1070.78185592609},{"$f":"'Population 2016'!T106*'Prevalence Rates'!T106","v":286.96013696991207},{"$f":"'Population 2016'!U106*'Prevalence Rates'!U106","v":24.737942842233799},{"$f":"'Population 2016'!V106*'Prevalence Rates'!V106","v":189.86371131414441},{"$f":"'Population 2016'!W106*'Prevalence Rates'!W106","v":295.61841696469395},{"$f":"'Population 2016'!X106*'Prevalence Rates'!X106","v":295.61841696469395},{"$f":"'Population 2016'!Y106*'Prevalence Rates'!Y106","v":301.80290267525237},{"$f":"'Population 2016'!Z106*'Prevalence Rates'!Z106","v":400.01253575892054},{"$f":"'Population 2016'!AA106*'Prevalence Rates'!AA106","v":1466.0941825449863},{"$f":"'Population 2016'!AB106*'Prevalence Rates'!AB106","v":309.34797524213366},{"$f":"'Population 2016'!AC106*'Prevalence Rates'!AC106","v":777.88461267404182},{"$f":"'Population 2016'!AD106*'Prevalence Rates'!AD106","v":223.38362386537122},{"$f":"'Population 2016'!AE106*'Prevalence Rates'!AE106","v":169.08383932666803},{"$f":"'Population 2016'!AF106*'Prevalence Rates'!AF106","v":35.993706835450183},{"$f":"'Population 2016'!AG106*'Prevalence Rates'!AG106","v":169.08383932666803},{"$f":"'Population 2016'!AH106*'Prevalence Rates'!AH106","v":688.20956987094439},{"$f":"'Population 2016'!AI106*'Prevalence Rates'!AI106","v":714.06072014107872},{"$f":"'Population 2016'!AJ106*'Prevalence Rates'!AJ106","v":120.1027124990451},{"$f":"'Population 2016'!AK106*'Prevalence Rates'!AK106","v":56.526199394504232},{"$f":"'Population 2016'!AL106*'Prevalence Rates'!AL106","v":113.29977821743081},{"$f":"'Population 2016'!AM106*'Prevalence Rates'!AM106","v":379.23266377144415},{"$f":"'Population 2016'!AN106*'Prevalence Rates'!AN106","v":12.987419992172745},{"$f":"'Population 2016'!AO106*'Prevalence Rates'!AO106","v":12.987419992172745},{"$f":"'Population 2016'!AP106*'Prevalence Rates'!AP106","v":56.897268537137741},{"$f":"'Population 2016'!AQ106*'Prevalence Rates'!AQ106","v":137.54296220281992},{"$f":"'Population 2016'!AR106*'Prevalence Rates'!AR106","v":4136.4314226499137},{"$f":"'Population 2016'!AS106*'Prevalence Rates'!AS106","v":61.102718820317492},{"$f":"'Population 2016'!AT106*'Prevalence Rates'!AT106","v":1.731655998956366},{"$f":"'Population 2016'!AU106*'Prevalence Rates'!AU106","v":1.731655998956366},{"$f":"'Population 2016'!AV106*'Prevalence Rates'!AV106","v":108.22849993477288},{"$f":"'Population 2016'!AW106*'Prevalence Rates'!AW106","v":308.97690609950018},{"$f":"'Population 2016'!AX106*'Prevalence Rates'!AX106","v":54.794543395547869},{"$f":"'Population 2016'!AY106*'Prevalence Rates'!AY106","v":524.81545739799014},{"$f":"'Population 2016'!AZ106*'Prevalence Rates'!AZ106","v":229.19704043329617},{"$f":"'Population 2016'!BA106*'Prevalence Rates'!BA106","v":103.40460108053729},{"$f":"'Population 2016'!BB106*'Prevalence Rates'!BB106","v":199.01675016577093},{"$f":"'Population 2016'!BC106*'Prevalence Rates'!BC106","v":24.737942842233799},104]
[null,"Female 45-49",{"$f":"'Population 2016'!C107*'Prevalence Rates'!C107","v":185.28719188833117},{"$f":"'Population 2016'!D107*'Prevalence Rates'!D107","v":270.1383358371931},{"$f":"'Population 2016'!E107*'Prevalence Rates'!E107","v":84.851143948861932},{"$f":"'Population 2016'!F107*'Prevalence Rates'!F107","v":82.253659950427391},{"$f":"'Population 2016'!G107*'Prevalence Rates'!G107","v":64.318651389807883},{"$f":"'Population 2016'!H107*'Prevalence Rates'!H107","v":443.67500487546323},{"$f":"'Population 2016'!I107*'Prevalence Rates'!I107","v":82.129970236216224},{"$f":"'Population 2016'!J107*'Prevalence Rates'!J107","v":128.63730277961577},{"$f":"'Population 2016'!K107*'Prevalence Rates'!K107","v":67.410894245087107},{"$f":"'Population 2016'!L107*'Prevalence Rates'!L107","v":193.69809245469065},{"$f":"'Population 2016'!M107*'Prevalence Rates'!M107","v":193.69809245469065},{"$f":"'Population 2016'!N107*'Prevalence Rates'!N107","v":98.828081654724031},{"$f":"'Population 2016'!O107*'Prevalence Rates'!O107","v":164.25994047243245},{"$f":"'Population 2016'!P107*'Prevalence Rates'!P107","v":93.262044515221433},{"$f":"'Population 2016'!Q107*'Prevalence Rates'!Q107","v":135.31654734701888},{"$f":"'Population 2016'!R107*'Prevalence Rates'!R107","v":47.620539971300069},{"$f":"'Population 2016'!S107*'Prevalence Rates'!S107","v":1202.0166427041404},{"$f":"'Population 2016'!T107*'Prevalence Rates'!T107","v":268.40667983823676},{"$f":"'Population 2016'!U107*'Prevalence Rates'!U107","v":28.819703411202379},{"$f":"'Population 2016'!V107*'Prevalence Rates'!V107","v":217.44651758323511},{"$f":"'Population 2016'!W107*'Prevalence Rates'!W107","v":338.29136836754725},{"$f":"'Population 2016'!X107*'Prevalence Rates'!X107","v":338.29136836754725},{"$f":"'Population 2016'!Y107*'Prevalence Rates'!Y107","v":346.08382036285087},{"$f":"'Population 2016'!Z107*'Prevalence Rates'!Z107","v":450.84900829971104},{"$f":"'Population 2016'!AA107*'Prevalence Rates'!AA107","v":1763.4442555086366},{"$f":"'Population 2016'!AB107*'Prevalence Rates'!AB107","v":335.44650494069032},{"$f":"'Population 2016'!AC107*'Prevalence Rates'!AC107","v":925.57013144217763},{"$f":"'Population 2016'!AD107*'Prevalence Rates'!AD107","v":263.95385012663468},{"$f":"'Population 2016'!AE107*'Prevalence Rates'!AE107","v":199.63519873682677},{"$f":"'Population 2016'!AF107*'Prevalence Rates'!AF107","v":49.475885684467599},{"$f":"'Population 2016'!AG107*'Prevalence Rates'!AG107","v":199.63519873682677},{"$f":"'Population 2016'!AH107*'Prevalence Rates'!AH107","v":837.87412406645888},{"$f":"'Population 2016'!AI107*'Prevalence Rates'!AI107","v":781.59530410037689},{"$f":"'Population 2016'!AJ107*'Prevalence Rates'!AJ107","v":150.40669248078152},{"$f":"'Population 2016'!AK107*'Prevalence Rates'!AK107","v":65.308169103497235},{"$f":"'Population 2016'!AL107*'Prevalence Rates'!AL107","v":141.00627420073266},{"$f":"'Population 2016'!AM107*'Prevalence Rates'!AM107","v":446.27248887389777},{"$f":"'Population 2016'!AN107*'Prevalence Rates'!AN107","v":11.750522850061056},{"$f":"'Population 2016'!AO107*'Prevalence Rates'!AO107","v":11.750522850061056},{"$f":"'Population 2016'!AP107*'Prevalence Rates'!AP107","v":72.111103385111534},{"$f":"'Population 2016'!AQ107*'Prevalence Rates'!AQ107","v":156.71486790555113},{"$f":"'Population 2016'!AR107*'Prevalence Rates'!AR107","v":4844.9261056514897},{"$f":"'Population 2016'!AS107*'Prevalence Rates'!AS107","v":82.129970236216224},{"$f":"'Population 2016'!AT107*'Prevalence Rates'!AT107","v":2.8448634268568873},{"$f":"'Population 2016'!AU107*'Prevalence Rates'!AU107","v":2.8448634268568873},{"$f":"'Population 2016'!AV107*'Prevalence Rates'!AV107","v":138.40879020229812},{"$f":"'Population 2016'!AW107*'Prevalence Rates'!AW107","v":391.60163519256105},{"$f":"'Population 2016'!AX107*'Prevalence Rates'!AX107","v":61.226408534528659},{"$f":"'Population 2016'!AY107*'Prevalence Rates'!AY107","v":591.48421335781018},{"$f":"'Population 2016'!AZ107*'Prevalence Rates'!AZ107","v":253.19284499026296},{"$f":"'Population 2016'!BA107*'Prevalence Rates'!BA107","v":127.64778506592641},{"$f":"'Population 2016'!BB107*'Prevalence Rates'!BB107","v":227.4653844343398},{"$f":"'Population 2016'!BC107*'Prevalence Rates'!BC107","v":28.819703411202379},105]
[null,"Female 50-54",{"$f":"'Population 2016'!C108*'Prevalence Rates'!C108","v":193.20333359784598},{"$f":"'Population 2016'!D108*'Prevalence Rates'!D108","v":283.86789411463286},{"$f":"'Population 2016'!E108*'Prevalence Rates'!E108","v":90.664560516786878},{"$f":"'Population 2016'!F108*'Prevalence Rates'!F108","v":76.687622810924779},{"$f":"'Population 2016'!G108*'Prevalence Rates'!G108","v":71.368965099844516},{"$f":"'Population 2016'!H108*'Prevalence Rates'!H108","v":458.39408086659233},{"$f":"'Population 2016'!I108*'Prevalence Rates'!I108","v":88.190766232563504},{"$f":"'Population 2016'!J108*'Prevalence Rates'!J108","v":134.82178849017421},{"$f":"'Population 2016'!K108*'Prevalence Rates'!K108","v":69.513619386676979},{"$f":"'Population 2016'!L108*'Prevalence Rates'!L108","v":209.65406558793146},{"$f":"'Population 2016'!M108*'Prevalence Rates'!M108","v":209.65406558793146},{"$f":"'Population 2016'!N108*'Prevalence Rates'!N108","v":117.87629764324406},{"$f":"'Population 2016'!O108*'Prevalence Rates'!O108","v":155.10690162080593},{"$f":"'Population 2016'!P108*'Prevalence Rates'!P108","v":91.530388516265063},{"$f":"'Population 2016'!Q108*'Prevalence Rates'!Q108","v":137.54296220281992},{"$f":"'Population 2016'!R108*'Prevalence Rates'!R108","v":44.899366258654346},{"$f":"'Population 2016'!S108*'Prevalence Rates'!S108","v":1212.2828889836674},{"$f":"'Population 2016'!T108*'Prevalence Rates'!T108","v":254.80081127500816},{"$f":"'Population 2016'!U108*'Prevalence Rates'!U108","v":33.396222837015628},{"$f":"'Population 2016'!V108*'Prevalence Rates'!V108","v":216.7043792979681},{"$f":"'Population 2016'!W108*'Prevalence Rates'!W108","v":364.51358778031505},{"$f":"'Population 2016'!X108*'Prevalence Rates'!X108","v":364.51358778031505},{"$f":"'Population 2016'!Y108*'Prevalence Rates'!Y108","v":351.52616778814229},{"$f":"'Population 2016'!Z108*'Prevalence Rates'!Z108","v":461.98108257871621},{"$f":"'Population 2016'!AA108*'Prevalence Rates'!AA108","v":1829.1234937547672},{"$f":"'Population 2016'!AB108*'Prevalence Rates'!AB108","v":347.32071750496254},{"$f":"'Population 2016'!AC108*'Prevalence Rates'!AC108","v":955.6267319954917},{"$f":"'Population 2016'!AD108*'Prevalence Rates'!AD108","v":288.32072382623494},{"$f":"'Population 2016'!AE108*'Prevalence Rates'!AE108","v":216.95175872639044},{"$f":"'Population 2016'!AF108*'Prevalence Rates'!AF108","v":59.371062821361122},{"$f":"'Population 2016'!AG108*'Prevalence Rates'!AG108","v":216.95175872639044},{"$f":"'Population 2016'!AH108*'Prevalence Rates'!AH108","v":873.4967617592755},{"$f":"'Population 2016'!AI108*'Prevalence Rates'!AI108","v":759.57853497078884},{"$f":"'Population 2016'!AJ108*'Prevalence Rates'!AJ108","v":149.29348505288098},{"$f":"'Population 2016'!AK108*'Prevalence Rates'!AK108","v":63.452823390329698},{"$f":"'Population 2016'!AL108*'Prevalence Rates'!AL108","v":147.06707019707994},{"$f":"'Population 2016'!AM108*'Prevalence Rates'!AM108","v":460.4968060081822},{"$f":"'Population 2016'!AN108*'Prevalence Rates'!AN108","v":15.090145133762618},{"$f":"'Population 2016'!AO108*'Prevalence Rates'!AO108","v":15.090145133762618},{"$f":"'Population 2016'!AP108*'Prevalence Rates'!AP108","v":69.513619386676979},{"$f":"'Population 2016'!AQ108*'Prevalence Rates'!AQ108","v":162.65197418768724},{"$f":"'Population 2016'!AR108*'Prevalence Rates'!AR108","v":5011.659840408146},{"$f":"'Population 2016'!AS108*'Prevalence Rates'!AS108","v":88.190766232563504},{"$f":"'Population 2016'!AT108*'Prevalence Rates'!AT108","v":2.4737942842233802},{"$f":"'Population 2016'!AU108*'Prevalence Rates'!AU108","v":2.4737942842233802},{"$f":"'Population 2016'!AV108*'Prevalence Rates'!AV108","v":156.22010904870646},{"$f":"'Population 2016'!AW108*'Prevalence Rates'!AW108","v":412.9999557510933},{"$f":"'Population 2016'!AX108*'Prevalence Rates'!AX108","v":65.308169103497235},{"$f":"'Population 2016'!AY108*'Prevalence Rates'!AY108","v":628.59112762116092},{"$f":"'Population 2016'!AZ108*'Prevalence Rates'!AZ108","v":264.07753984084582},{"$f":"'Population 2016'!BA108*'Prevalence Rates'!BA108","v":135.19285763280772},{"$f":"'Population 2016'!BB108*'Prevalence Rates'!BB108","v":217.94127644007978},{"$f":"'Population 2016'!BC108*'Prevalence Rates'!BC108","v":33.396222837015628},106]
[null,"Female 55-59",{"$f":"'Population 2016'!C109*'Prevalence Rates'!C109","v":224.71999079294227},{"$f":"'Population 2016'!D109*'Prevalence Rates'!D109","v":330.45155480631223},{"$f":"'Population 2016'!E109*'Prevalence Rates'!E109","v":105.73156401336996},{"$f":"'Population 2016'!F109*'Prevalence Rates'!F109","v":108.47993800148508},{"$f":"'Population 2016'!G109*'Prevalence Rates'!G109","v":94.899737119033887},{"$f":"'Population 2016'!H109*'Prevalence Rates'!H109","v":563.25499850547544},{"$f":"'Population 2016'!I109*'Prevalence Rates'!I109","v":112.0366572802223},{"$f":"'Population 2016'!J109*'Prevalence Rates'!J109","v":151.32223840445607},{"$f":"'Population 2016'!K109*'Prevalence Rates'!K109","v":76.146126376601302},{"$f":"'Population 2016'!L109*'Prevalence Rates'!L109","v":255.7604499528307},{"$f":"'Population 2016'!M109*'Prevalence Rates'!M109","v":255.7604499528307},{"$f":"'Population 2016'!N109*'Prevalence Rates'!N109","v":145.502152311977},{"$f":"'Population 2016'!O109*'Prevalence Rates'!O109","v":192.06284105180964},{"$f":"'Population 2016'!P109*'Prevalence Rates'!P109","v":113.16834068709323},{"$f":"'Population 2016'!Q109*'Prevalence Rates'!Q109","v":170.23751820501309},{"$f":"'Population 2016'!R109*'Prevalence Rates'!R109","v":46.560688739832642},{"$f":"'Population 2016'!S109*'Prevalence Rates'!S109","v":1467.6317096534747},{"$f":"'Population 2016'!T109*'Prevalence Rates'!T109","v":302.48280775078774},{"$f":"'Population 2016'!U109*'Prevalence Rates'!U109","v":37.345552426740767},{"$f":"'Population 2016'!V109*'Prevalence Rates'!V109","v":247.35365893036092},{"$f":"'Population 2016'!W109*'Prevalence Rates'!W109","v":430.03969461095426},{"$f":"'Population 2016'!X109*'Prevalence Rates'!X109","v":430.03969461095426},{"$f":"'Population 2016'!Y109*'Prevalence Rates'!Y109","v":398.67589733481702},{"$f":"'Population 2016'!Z109*'Prevalence Rates'!Z109","v":540.45966130993236},{"$f":"'Population 2016'!AA109*'Prevalence Rates'!AA109","v":2169.4370909715772},{"$f":"'Population 2016'!AB109*'Prevalence Rates'!AB109","v":412.74110539164144},{"$f":"'Population 2016'!AC109*'Prevalence Rates'!AC109","v":1121.6599252672183},{"$f":"'Population 2016'!AD109*'Prevalence Rates'!AD109","v":365.21040230306227},{"$f":"'Population 2016'!AE109*'Prevalence Rates'!AE109","v":270.31066518402838},{"$f":"'Population 2016'!AF109*'Prevalence Rates'!AF109","v":70.81104745849548},{"$f":"'Population 2016'!AG109*'Prevalence Rates'!AG109","v":270.31066518402838},{"$f":"'Population 2016'!AH109*'Prevalence Rates'!AH109","v":1047.7771657043588},{"$f":"'Population 2016'!AI109*'Prevalence Rates'!AI109","v":925.55535776229817},{"$f":"'Population 2016'!AJ109*'Prevalence Rates'!AJ109","v":191.25449576118754},{"$f":"'Population 2016'!AK109*'Prevalence Rates'!AK109","v":82.289550585329224},{"$f":"'Population 2016'!AL109*'Prevalence Rates'!AL109","v":171.36920161188402},{"$f":"'Population 2016'!AM109*'Prevalence Rates'!AM109","v":544.66305682116729},{"$f":"'Population 2016'!AN109*'Prevalence Rates'!AN109","v":17.621927335561658},{"$f":"'Population 2016'!AO109*'Prevalence Rates'!AO109","v":17.621927335561658},{"$f":"'Population 2016'!AP109*'Prevalence Rates'!AP109","v":82.289550585329224},{"$f":"'Population 2016'!AQ109*'Prevalence Rates'!AQ109","v":187.3744383662015},{"$f":"'Population 2016'!AR109*'Prevalence Rates'!AR109","v":6026.214141587714},{"$f":"'Population 2016'!AS109*'Prevalence Rates'!AS109","v":112.0366572802223},{"$f":"'Population 2016'!AT109*'Prevalence Rates'!AT109","v":2.2633668137418645},{"$f":"'Population 2016'!AU109*'Prevalence Rates'!AU109","v":2.2633668137418645},{"$f":"'Population 2016'!AV109*'Prevalence Rates'!AV109","v":199.82295584178175},{"$f":"'Population 2016'!AW109*'Prevalence Rates'!AW109","v":503.11410888319159},{"$f":"'Population 2016'!AX109*'Prevalence Rates'!AX109","v":75.176112027854785},{"$f":"'Population 2016'!AY109*'Prevalence Rates'!AY109","v":766.31133550974562},{"$f":"'Population 2016'!AZ109*'Prevalence Rates'!AZ109","v":336.2716408987913},{"$f":"'Population 2016'!BA109*'Prevalence Rates'!BA109","v":163.28574870566308},{"$f":"'Population 2016'!BB109*'Prevalence Rates'!BB109","v":261.58053604530977},{"$f":"'Population 2016'!BC109*'Prevalence Rates'!BC109","v":37.345552426740767},107]
[null,"Female 60-64",{"$f":"'Population 2016'!C110*'Prevalence Rates'!C110","v":200.79297019052828},{"$f":"'Population 2016'!D110*'Prevalence Rates'!D110","v":299.4110956464238},{"$f":"'Population 2016'!E110*'Prevalence Rates'!E110","v":98.618125455895523},{"$f":"'Population 2016'!F110*'Prevalence Rates'!F110","v":91.019679724047833},{"$f":"'Population 2016'!G110*'Prevalence Rates'!G110","v":85.037924573444343},{"$f":"'Population 2016'!H110*'Prevalence Rates'!H110","v":495.67733220946832},{"$f":"'Population 2016'!I110*'Prevalence Rates'!I110","v":101.68983756025949},{"$f":"'Population 2016'!J110*'Prevalence Rates'!J110","v":128.68857026703745},{"$f":"'Population 2016'!K110*'Prevalence Rates'!K110","v":67.577666296007095},{"$f":"'Population 2016'!L110*'Prevalence Rates'!L110","v":251.5570544415958},{"$f":"'Population 2016'!M110*'Prevalence Rates'!M110","v":251.5570544415958},{"$f":"'Population 2016'!N110*'Prevalence Rates'!N110","v":125.29352004642465},{"$f":"'Population 2016'!O110*'Prevalence Rates'!O110","v":168.13582044939565},{"$f":"'Population 2016'!P110*'Prevalence Rates'!P110","v":85.361262689693177},{"$f":"'Population 2016'!Q110*'Prevalence Rates'!Q110","v":142.59210926573746},{"$f":"'Population 2016'!R110*'Prevalence Rates'!R110","v":40.578933589229145},{"$f":"'Population 2016'!S110*'Prevalence Rates'!S110","v":1261.3419914867163},{"$f":"'Population 2016'!T110*'Prevalence Rates'!T110","v":248.32367327910742},{"$f":"'Population 2016'!U110*'Prevalence Rates'!U110","v":40.093926414855886},{"$f":"'Population 2016'!V110*'Prevalence Rates'!V110","v":230.54007688542134},{"$f":"'Population 2016'!W110*'Prevalence Rates'!W110","v":392.04746595171582},{"$f":"'Population 2016'!X110*'Prevalence Rates'!X110","v":392.04746595171582},{"$f":"'Population 2016'!Y110*'Prevalence Rates'!Y110","v":359.22864715245879},{"$f":"'Population 2016'!Z110*'Prevalence Rates'!Z110","v":425.18962286722171},{"$f":"'Population 2016'!AA110*'Prevalence Rates'!AA110","v":1842.865593560251},{"$f":"'Population 2016'!AB110*'Prevalence Rates'!AB110","v":378.30559601114021},{"$f":"'Population 2016'!AC110*'Prevalence Rates'!AC110","v":894.51489860240974},{"$f":"'Population 2016'!AD110*'Prevalence Rates'!AD110","v":329.96654763193897},{"$f":"'Population 2016'!AE110*'Prevalence Rates'!AE110","v":244.92862305849462},{"$f":"'Population 2016'!AF110*'Prevalence Rates'!AF110","v":51.410760483565213},{"$f":"'Population 2016'!AG110*'Prevalence Rates'!AG110","v":244.92862305849462},{"$f":"'Population 2016'!AH110*'Prevalence Rates'!AH110","v":948.35069495784126},{"$f":"'Population 2016'!AI110*'Prevalence Rates'!AI110","v":767.60468797474095},{"$f":"'Population 2016'!AJ110*'Prevalence Rates'!AJ110","v":156.65731732256191},{"$f":"'Population 2016'!AK110*'Prevalence Rates'!AK110","v":78.894500364716421},{"$f":"'Population 2016'!AL110*'Prevalence Rates'!AL110","v":149.22054064883864},{"$f":"'Population 2016'!AM110*'Prevalence Rates'!AM110","v":494.54564880259738},{"$f":"'Population 2016'!AN110*'Prevalence Rates'!AN110","v":16.813582044939565},{"$f":"'Population 2016'!AO110*'Prevalence Rates'!AO110","v":16.813582044939565},{"$f":"'Population 2016'!AP110*'Prevalence Rates'!AP110","v":80.511190945960607},{"$f":"'Population 2016'!AQ110*'Prevalence Rates'!AQ110","v":152.13058369507817},{"$f":"'Population 2016'!AR110*'Prevalence Rates'!AR110","v":5277.5247334135302},{"$f":"'Population 2016'!AS110*'Prevalence Rates'!AS110","v":101.68983756025949},{"$f":"'Population 2016'!AT110*'Prevalence Rates'!AT110","v":4.8500717437325669},{"$f":"'Population 2016'!AU110*'Prevalence Rates'!AU110","v":4.8500717437325669},{"$f":"'Population 2016'!AV110*'Prevalence Rates'!AV110","v":178.32097111123403},{"$f":"'Population 2016'!AW110*'Prevalence Rates'!AW110","v":453.80504615524382},{"$f":"'Population 2016'!AX110*'Prevalence Rates'!AX110","v":61.110903971030339},{"$f":"'Population 2016'!AY110*'Prevalence Rates'!AY110","v":688.87185666814889},{"$f":"'Population 2016'!AZ110*'Prevalence Rates'!AZ110","v":296.82439071643307},{"$f":"'Population 2016'!BA110*'Prevalence Rates'!BA110","v":139.84373527762236},{"$f":"'Population 2016'!BB110*'Prevalence Rates'!BB110","v":220.03158810733413},{"$f":"'Population 2016'!BC110*'Prevalence Rates'!BC110","v":40.093926414855886},108]
[null,"Female 65-69",{"$f":"'Population 2016'!C111*'Prevalence Rates'!C111","v":189.9611432961922},{"$f":"'Population 2016'!D111*'Prevalence Rates'!D111","v":298.44108129767727},{"$f":"'Population 2016'!E111*'Prevalence Rates'!E111","v":108.47993800148508},{"$f":"'Population 2016'!F111*'Prevalence Rates'!F111","v":97.163103932775755},{"$f":"'Population 2016'!G111*'Prevalence Rates'!G111","v":93.283046537789701},{"$f":"'Population 2016'!H111*'Prevalence Rates'!H111","v":510.22754744066606},{"$f":"'Population 2016'!I111*'Prevalence Rates'!I111","v":110.58163575710253},{"$f":"'Population 2016'!J111*'Prevalence Rates'!J111","v":133.37697295264559},{"$f":"'Population 2016'!K111*'Prevalence Rates'!K111","v":74.206097679108268},{"$f":"'Population 2016'!L111*'Prevalence Rates'!L111","v":248.80868045348069},{"$f":"'Population 2016'!M111*'Prevalence Rates'!M111","v":248.80868045348069},{"$f":"'Population 2016'!N111*'Prevalence Rates'!N111","v":129.17357744141069},{"$f":"'Population 2016'!O111*'Prevalence Rates'!O111","v":169.26750385626659},{"$f":"'Population 2016'!P111*'Prevalence Rates'!P111","v":84.552917399071077},{"$f":"'Population 2016'!Q111*'Prevalence Rates'!Q111","v":138.71205187075142},{"$f":"'Population 2016'!R111*'Prevalence Rates'!R111","v":39.932257356731469},{"$f":"'Population 2016'!S111*'Prevalence Rates'!S111","v":1297.7175295647105},{"$f":"'Population 2016'!T111*'Prevalence Rates'!T111","v":243.63527059349929},{"$f":"'Population 2016'!U111*'Prevalence Rates'!U111","v":38.15389771736286},{"$f":"'Population 2016'!V111*'Prevalence Rates'!V111","v":229.73173159479924},{"$f":"'Population 2016'!W111*'Prevalence Rates'!W111","v":403.84930719479843},{"$f":"'Population 2016'!X111*'Prevalence Rates'!X111","v":403.84930719479843},{"$f":"'Population 2016'!Y111*'Prevalence Rates'!Y111","v":363.10870454744486},{"$f":"'Population 2016'!Z111*'Prevalence Rates'!Z111","v":370.06047404679487},{"$f":"'Population 2016'!AA111*'Prevalence Rates'!AA111","v":1771.2462008111333},{"$f":"'Population 2016'!AB111*'Prevalence Rates'!AB111","v":371.67716462803907},{"$f":"'Population 2016'!AC111*'Prevalence Rates'!AC111","v":860.56439639628184},{"$f":"'Population 2016'!AD111*'Prevalence Rates'!AD111","v":342.25339604939478},{"$f":"'Population 2016'!AE111*'Prevalence Rates'!AE111","v":248.97034951160509},{"$f":"'Population 2016'!AF111*'Prevalence Rates'!AF111","v":58.200860924790803},{"$f":"'Population 2016'!AG111*'Prevalence Rates'!AG111","v":248.97034951160509},{"$f":"'Population 2016'!AH111*'Prevalence Rates'!AH111","v":910.68180441485163},{"$f":"'Population 2016'!AI111*'Prevalence Rates'!AI111","v":783.28658661280951},{"$f":"'Population 2016'!AJ111*'Prevalence Rates'!AJ111","v":168.29748950752008},{"$f":"'Population 2016'!AK111*'Prevalence Rates'!AK111","v":73.236083330361765},{"$f":"'Population 2016'!AL111*'Prevalence Rates'!AL111","v":157.78900072943284},{"$f":"'Population 2016'!AM111*'Prevalence Rates'!AM111","v":474.66035465329389},{"$f":"'Population 2016'!AN111*'Prevalence Rates'!AN111","v":19.23861791680585},{"$f":"'Population 2016'!AO111*'Prevalence Rates'!AO111","v":19.23861791680585},{"$f":"'Population 2016'!AP111*'Prevalence Rates'!AP111","v":74.367766737232699},{"$f":"'Population 2016'!AQ111*'Prevalence Rates'!AQ111","v":170.72252537938635},{"$f":"'Population 2016'!AR111*'Prevalence Rates'!AR111","v":5267.1779136935675},{"$f":"'Population 2016'!AS111*'Prevalence Rates'!AS111","v":110.58163575710253},{"$f":"'Population 2016'!AT111*'Prevalence Rates'!AT111","v":4.0417264531104724},{"$f":"'Population 2016'!AU111*'Prevalence Rates'!AU111","v":4.0417264531104724},{"$f":"'Population 2016'!AV111*'Prevalence Rates'!AV111","v":183.1710428549666},{"$f":"'Population 2016'!AW111*'Prevalence Rates'!AW111","v":436.02144976155779},{"$f":"'Population 2016'!AX111*'Prevalence Rates'!AX111","v":59.17087527353732},{"$f":"'Population 2016'!AY111*'Prevalence Rates'!AY111","v":704.55375530621757},{"$f":"'Population 2016'!AZ111*'Prevalence Rates'!AZ111","v":300.70444811141914},{"$f":"'Population 2016'!BA111*'Prevalence Rates'!BA111","v":137.09536128950722},{"$f":"'Population 2016'!BB111*'Prevalence Rates'!BB111","v":232.64177464103878},{"$f":"'Population 2016'!BC111*'Prevalence Rates'!BC111","v":38.15389771736286},109]
[null,"Female 70-74",{"$f":"'Population 2016'!C112*'Prevalence Rates'!C112","v":130.95193708077932},{"$f":"'Population 2016'!D112*'Prevalence Rates'!D112","v":215.50485447985039},{"$f":"'Population 2016'!E112*'Prevalence Rates'!E112","v":84.552917399071077},{"$f":"'Population 2016'!F112*'Prevalence Rates'!F112","v":78.40949319034317},{"$f":"'Population 2016'!G112*'Prevalence Rates'!G112","v":76.954471667223402},{"$f":"'Population 2016'!H112*'Prevalence Rates'!H112","v":410.96274575227284},{"$f":"'Population 2016'!I112*'Prevalence Rates'!I112","v":88.432974794057131},{"$f":"'Population 2016'!J112*'Prevalence Rates'!J112","v":108.6416070596095},{"$f":"'Population 2016'!K112*'Prevalence Rates'!K112","v":57.069177517919869},{"$f":"'Population 2016'!L112*'Prevalence Rates'!L112","v":202.40966077177245},{"$f":"'Population 2016'!M112*'Prevalence Rates'!M112","v":202.40966077177245},{"$f":"'Population 2016'!N112*'Prevalence Rates'!N112","v":103.79153531587693},{"$f":"'Population 2016'!O112*'Prevalence Rates'!O112","v":138.06537563825373},{"$f":"'Population 2016'!P112*'Prevalence Rates'!P112","v":75.661119202228036},{"$f":"'Population 2016'!Q112*'Prevalence Rates'!Q112","v":112.19832633834672},{"$f":"'Population 2016'!R112*'Prevalence Rates'!R112","v":23.603682486165159},{"$f":"'Population 2016'!S112*'Prevalence Rates'!S112","v":1011.0782895101157},{"$f":"'Population 2016'!T112*'Prevalence Rates'!T112","v":183.65605002933987},{"$f":"'Population 2016'!U112*'Prevalence Rates'!U112","v":27.968747055524467},{"$f":"'Population 2016'!V112*'Prevalence Rates'!V112","v":187.53610742432591},{"$f":"'Population 2016'!W112*'Prevalence Rates'!W112","v":310.72792971513314},{"$f":"'Population 2016'!X112*'Prevalence Rates'!X112","v":310.72792971513314},{"$f":"'Population 2016'!Y112*'Prevalence Rates'!Y112","v":296.1777144839354},{"$f":"'Population 2016'!Z112*'Prevalence Rates'!Z112","v":282.59751360148425},{"$f":"'Population 2016'!AA112*'Prevalence Rates'!AA112","v":1423.334387727384},{"$f":"'Population 2016'!AB112*'Prevalence Rates'!AB112","v":272.73570105589465},{"$f":"'Population 2016'!AC112*'Prevalence Rates'!AC112","v":667.20820287947674},{"$f":"'Population 2016'!AD112*'Prevalence Rates'!AD112","v":258.9938311153191},{"$f":"'Population 2016'!AE112*'Prevalence Rates'!AE112","v":182.03935944809567},{"$f":"'Population 2016'!AF112*'Prevalence Rates'!AF112","v":44.297321926090774},{"$f":"'Population 2016'!AG112*'Prevalence Rates'!AG112","v":182.03935944809567},{"$f":"'Population 2016'!AH112*'Prevalence Rates'!AH112","v":756.12618484790721},{"$f":"'Population 2016'!AI112*'Prevalence Rates'!AI112","v":611.91738500092549},{"$f":"'Population 2016'!AJ112*'Prevalence Rates'!AJ112","v":122.22180794206068},{"$f":"'Population 2016'!AK112*'Prevalence Rates'!AK112","v":57.230846576044286},{"$f":"'Population 2016'!AL112*'Prevalence Rates'!AL112","v":120.76678641894091},{"$f":"'Population 2016'!AM112*'Prevalence Rates'!AM112","v":401.90927849730537},{"$f":"'Population 2016'!AN112*'Prevalence Rates'!AN112","v":16.651912986815148},{"$f":"'Population 2016'!AO112*'Prevalence Rates'!AO112","v":16.651912986815148},{"$f":"'Population 2016'!AP112*'Prevalence Rates'!AP112","v":59.655882447910571},{"$f":"'Population 2016'!AQ112*'Prevalence Rates'!AQ112","v":138.22704469637816},{"$f":"'Population 2016'!AR112*'Prevalence Rates'!AR112","v":4165.2416135175281},{"$f":"'Population 2016'!AS112*'Prevalence Rates'!AS112","v":88.432974794057131},{"$f":"'Population 2016'!AT112*'Prevalence Rates'!AT112","v":3.071712104363959},{"$f":"'Population 2016'!AU112*'Prevalence Rates'!AU112","v":3.071712104363959},{"$f":"'Population 2016'!AV112*'Prevalence Rates'!AV112","v":152.13058369507817},{"$f":"'Population 2016'!AW112*'Prevalence Rates'!AW112","v":354.21690635060179},{"$f":"'Population 2016'!AX112*'Prevalence Rates'!AX112","v":51.57242954168963},{"$f":"'Population 2016'!AY112*'Prevalence Rates'!AY112","v":552.58484066926383},{"$f":"'Population 2016'!AZ112*'Prevalence Rates'!AZ112","v":241.85691095413068},{"$f":"'Population 2016'!BA112*'Prevalence Rates'!BA112","v":102.82152096713043},{"$f":"'Population 2016'!BB112*'Prevalence Rates'!BB112","v":193.84120069117824},{"$f":"'Population 2016'!BC112*'Prevalence Rates'!BC112","v":27.968747055524467},110]
[null,"Female 75-79",{"$f":"'Population 2016'!C113*'Prevalence Rates'!C113","v":129.98192273203279},{"$f":"'Population 2016'!D113*'Prevalence Rates'!D113","v":198.52960337678641},{"$f":"'Population 2016'!E113*'Prevalence Rates'!E113","v":68.547680644753612},{"$f":"'Population 2016'!F113*'Prevalence Rates'!F113","v":69.032687819126863},{"$f":"'Population 2016'!G113*'Prevalence Rates'!G113","v":71.134385574744314},{"$f":"'Population 2016'!H113*'Prevalence Rates'!H113","v":334.00827408504944},{"$f":"'Population 2016'!I113*'Prevalence Rates'!I113","v":71.457723690993149},{"$f":"'Population 2016'!J113*'Prevalence Rates'!J113","v":86.331277038439694},{"$f":"'Population 2016'!K113*'Prevalence Rates'!K113","v":38.800573949860535},{"$f":"'Population 2016'!L113*'Prevalence Rates'!L113","v":158.59734602005494},{"$f":"'Population 2016'!M113*'Prevalence Rates'!M113","v":158.59734602005494},{"$f":"'Population 2016'!N113*'Prevalence Rates'!N113","v":99.749808862766457},{"$f":"'Population 2016'!O113*'Prevalence Rates'!O113","v":118.01841243082579},{"$f":"'Population 2016'!P113*'Prevalence Rates'!P113","v":61.434242087279181},{"$f":"'Population 2016'!Q113*'Prevalence Rates'!Q113","v":99.103132630268789},{"$f":"'Population 2016'!R113*'Prevalence Rates'!R113","v":25.543711183658186},{"$f":"'Population 2016'!S113*'Prevalence Rates'!S113","v":847.14586457195503},{"$f":"'Population 2016'!T113*'Prevalence Rates'!T113","v":175.89593523936776},{"$f":"'Population 2016'!U113*'Prevalence Rates'!U113","v":26.837063648653537},{"$f":"'Population 2016'!V113*'Prevalence Rates'!V113","v":155.52563391569097},{"$f":"'Population 2016'!W113*'Prevalence Rates'!W113","v":255.11377372033303},{"$f":"'Population 2016'!X113*'Prevalence Rates'!X113","v":255.11377372033303},{"$f":"'Population 2016'!Y113*'Prevalence Rates'!Y113","v":241.85691095413068},{"$f":"'Population 2016'!Z113*'Prevalence Rates'!Z113","v":277.26243468337839},{"$f":"'Population 2016'!AA113*'Prevalence Rates'!AA113","v":1262.7970130098361},{"$f":"'Population 2016'!AB113*'Prevalence Rates'!AB113","v":248.32367327910742},{"$f":"'Population 2016'!AC113*'Prevalence Rates'!AC113","v":625.3359168252523},{"$f":"'Population 2016'!AD113*'Prevalence Rates'!AD113","v":237.97685355914462},{"$f":"'Population 2016'!AE113*'Prevalence Rates'!AE113","v":166.84246798440029},{"$f":"'Population 2016'!AF113*'Prevalence Rates'!AF113","v":32.657149741132613},{"$f":"'Population 2016'!AG113*'Prevalence Rates'!AG113","v":166.84246798440029},{"$f":"'Population 2016'!AH113*'Prevalence Rates'!AH113","v":637.46109618458365},{"$f":"'Population 2016'!AI113*'Prevalence Rates'!AI113","v":520.57436716062887},{"$f":"'Population 2016'!AJ113*'Prevalence Rates'!AJ113","v":97.163103932775755},{"$f":"'Population 2016'!AK113*'Prevalence Rates'!AK113","v":49.79406990232102},{"$f":"'Population 2016'!AL113*'Prevalence Rates'!AL113","v":91.828025014669933},{"$f":"'Population 2016'!AM113*'Prevalence Rates'!AM113","v":334.6549503175471},{"$f":"'Population 2016'!AN113*'Prevalence Rates'!AN113","v":10.18515066183839},{"$f":"'Population 2016'!AO113*'Prevalence Rates'!AO113","v":10.18515066183839},{"$f":"'Population 2016'!AP113*'Prevalence Rates'!AP113","v":45.590674391086125},{"$f":"'Population 2016'!AQ113*'Prevalence Rates'!AQ113","v":130.14359179015722},{"$f":"'Population 2016'!AR113*'Prevalence Rates'!AR113","v":3583.7180114439939},{"$f":"'Population 2016'!AS113*'Prevalence Rates'!AS113","v":71.457723690993149},{"$f":"'Population 2016'!AT113*'Prevalence Rates'!AT113","v":1.616690581244189},{"$f":"'Population 2016'!AU113*'Prevalence Rates'!AU113","v":1.616690581244189},{"$f":"'Population 2016'!AV113*'Prevalence Rates'!AV113","v":124.16183663955371},{"$f":"'Population 2016'!AW113*'Prevalence Rates'!AW113","v":302.80614586703661},{"$f":"'Population 2016'!AX113*'Prevalence Rates'!AX113","v":47.530703088579159},{"$f":"'Population 2016'!AY113*'Prevalence Rates'!AY113","v":469.48694479331249},{"$f":"'Population 2016'!AZ113*'Prevalence Rates'!AZ113","v":214.37317107297946},{"$f":"'Population 2016'!BA113*'Prevalence Rates'!BA113","v":98.294787339646689},{"$f":"'Population 2016'!BB113*'Prevalence Rates'!BB113","v":148.41219535821654},{"$f":"'Population 2016'!BC113*'Prevalence Rates'!BC113","v":26.837063648653537},111]
[null,"Female 80-84",{"$f":"'Population 2016'!C114*'Prevalence Rates'!C114","v":115.27003844271067},{"$f":"'Population 2016'!D114*'Prevalence Rates'!D114","v":169.91418008876425},{"$f":"'Population 2016'!E114*'Prevalence Rates'!E114","v":54.644141646053583},{"$f":"'Population 2016'!F114*'Prevalence Rates'!F114","v":53.350789181058232},{"$f":"'Population 2016'!G114*'Prevalence Rates'!G114","v":53.997465413555915},{"$f":"'Population 2016'!H114*'Prevalence Rates'!H114","v":261.90387416155863},{"$f":"'Population 2016'!I114*'Prevalence Rates'!I114","v":56.584170343546617},{"$f":"'Population 2016'!J114*'Prevalence Rates'!J114","v":57.715853750417544},{"$f":"'Population 2016'!K114*'Prevalence Rates'!K114","v":26.028718358031441},{"$f":"'Population 2016'!L114*'Prevalence Rates'!L114","v":132.08362048765025},{"$f":"'Population 2016'!M114*'Prevalence Rates'!M114","v":132.08362048765025},{"$f":"'Population 2016'!N114*'Prevalence Rates'!N114","v":81.157867178458289},{"$f":"'Population 2016'!O114*'Prevalence Rates'!O114","v":87.462960445310628},{"$f":"'Population 2016'!P114*'Prevalence Rates'!P114","v":56.584170343546617},{"$f":"'Population 2016'!Q114*'Prevalence Rates'!Q114","v":78.086155074094322},{"$f":"'Population 2016'!R114*'Prevalence Rates'!R114","v":24.412027776787255},{"$f":"'Population 2016'!S114*'Prevalence Rates'!S114","v":651.68797329953259},{"$f":"'Population 2016'!T114*'Prevalence Rates'!T114","v":131.76028237140139},{"$f":"'Population 2016'!U114*'Prevalence Rates'!U114","v":24.735365893036089},{"$f":"'Population 2016'!V114*'Prevalence Rates'!V114","v":112.0366572802223},{"$f":"'Population 2016'!W114*'Prevalence Rates'!W114","v":203.21800606239455},{"$f":"'Population 2016'!X114*'Prevalence Rates'!X114","v":203.21800606239455},{"$f":"'Population 2016'!Y114*'Prevalence Rates'!Y114","v":169.75251103063985},{"$f":"'Population 2016'!Z114*'Prevalence Rates'!Z114","v":249.77869480222719},{"$f":"'Population 2016'!AA114*'Prevalence Rates'!AA114","v":1019.4850805325856},{"$f":"'Population 2016'!AB114*'Prevalence Rates'!AB114","v":205.64304193426085},{"$f":"'Population 2016'!AC114*'Prevalence Rates'!AC114","v":534.31623710120448},{"$f":"'Population 2016'!AD114*'Prevalence Rates'!AD114","v":174.27924465812356},{"$f":"'Population 2016'!AE114*'Prevalence Rates'!AE114","v":120.28177924456766},{"$f":"'Population 2016'!AF114*'Prevalence Rates'!AF114","v":25.220373067409348},{"$f":"'Population 2016'!AG114*'Prevalence Rates'!AG114","v":120.28177924456766},{"$f":"'Population 2016'!AH114*'Prevalence Rates'!AH114","v":485.16884343138111},{"$f":"'Population 2016'!AI114*'Prevalence Rates'!AI114","v":391.88579689359142},{"$f":"'Population 2016'!AJ114*'Prevalence Rates'!AJ114","v":76.469464492850136},{"$f":"'Population 2016'!AK114*'Prevalence Rates'!AK114","v":35.728861845496574},{"$f":"'Population 2016'!AL114*'Prevalence Rates'!AL114","v":77.277809783472236},{"$f":"'Population 2016'!AM114*'Prevalence Rates'!AM114","v":247.19198987223649},{"$f":"'Population 2016'!AN114*'Prevalence Rates'!AN114","v":9.7001434874651338},{"$f":"'Population 2016'!AO114*'Prevalence Rates'!AO114","v":9.7001434874651338},{"$f":"'Population 2016'!AP114*'Prevalence Rates'!AP114","v":38.15389771736286},{"$f":"'Population 2016'!AQ114*'Prevalence Rates'!AQ114","v":108.47993800148508},{"$f":"'Population 2016'!AR114*'Prevalence Rates'!AR114","v":2824.3584454335983},{"$f":"'Population 2016'!AS114*'Prevalence Rates'!AS114","v":56.584170343546617},{"$f":"'Population 2016'!AT114*'Prevalence Rates'!AT114","v":2.4250358718662834},{"$f":"'Population 2016'!AU114*'Prevalence Rates'!AU114","v":2.4250358718662834},{"$f":"'Population 2016'!AV114*'Prevalence Rates'!AV114","v":97.163103932775755},{"$f":"'Population 2016'!AW114*'Prevalence Rates'!AW114","v":237.97685355914462},{"$f":"'Population 2016'!AX114*'Prevalence Rates'!AX114","v":31.687135392386104},{"$f":"'Population 2016'!AY114*'Prevalence Rates'!AY114","v":375.88056013927394},{"$f":"'Population 2016'!AZ114*'Prevalence Rates'!AZ114","v":172.66255407687939},{"$f":"'Population 2016'!BA114*'Prevalence Rates'!BA114","v":69.841033109748963},{"$f":"'Population 2016'!BB114*'Prevalence Rates'!BB114","v":105.56989495524554},{"$f":"'Population 2016'!BC114*'Prevalence Rates'!BC114","v":24.735365893036089},112]
[null,"Female 85-89",{"$f":"'Population 2016'!C115*'Prevalence Rates'!C115","v":64.829292307891976},{"$f":"'Population 2016'!D115*'Prevalence Rates'!D115","v":94.899737119033887},{"$f":"'Population 2016'!E115*'Prevalence Rates'!E115","v":30.070444811141915},{"$f":"'Population 2016'!F115*'Prevalence Rates'!F115","v":39.608919240482628},{"$f":"'Population 2016'!G115*'Prevalence Rates'!G115","v":30.232113869266335},{"$f":"'Population 2016'!H115*'Prevalence Rates'!H115","v":143.88546173073283},{"$f":"'Population 2016'!I115*'Prevalence Rates'!I115","v":34.435509380501223},{"$f":"'Population 2016'!J115*'Prevalence Rates'!J115","v":33.62716408987913},{"$f":"'Population 2016'!K115*'Prevalence Rates'!K115","v":16.490243928690727},{"$f":"'Population 2016'!L115*'Prevalence Rates'!L115","v":73.5594214466106},{"$f":"'Population 2016'!M115*'Prevalence Rates'!M115","v":73.5594214466106},{"$f":"'Population 2016'!N115*'Prevalence Rates'!N115","v":44.458990984215198},{"$f":"'Population 2016'!O115*'Prevalence Rates'!O115","v":46.722357797957059},{"$f":"'Population 2016'!P115*'Prevalence Rates'!P115","v":32.818818799257038},{"$f":"'Population 2016'!Q115*'Prevalence Rates'!Q115","v":43.97398380984194},{"$f":"'Population 2016'!R115*'Prevalence Rates'!R115","v":10.831826894336066},{"$f":"'Population 2016'!S115*'Prevalence Rates'!S115","v":408.53770988040657},{"$f":"'Population 2016'!T115*'Prevalence Rates'!T115","v":89.887996317176913},{"$f":"'Population 2016'!U115*'Prevalence Rates'!U115","v":10.18515066183839},{"$f":"'Population 2016'!V115*'Prevalence Rates'!V115","v":70.00270216787338},{"$f":"'Population 2016'!W115*'Prevalence Rates'!W115","v":130.79026802265489},{"$f":"'Population 2016'!X115*'Prevalence Rates'!X115","v":130.79026802265489},{"$f":"'Population 2016'!Y115*'Prevalence Rates'!Y115","v":103.62986625775251},{"$f":"'Population 2016'!Z115*'Prevalence Rates'!Z115","v":155.20229579944214},{"$f":"'Population 2016'!AA115*'Prevalence Rates'!AA115","v":593.81045049099066},{"$f":"'Population 2016'!AB115*'Prevalence Rates'!AB115","v":117.69507431457696},{"$f":"'Population 2016'!AC115*'Prevalence Rates'!AC115","v":310.40459159888428},{"$f":"'Population 2016'!AD115*'Prevalence Rates'!AD115","v":109.28828329210717},{"$f":"'Population 2016'!AE115*'Prevalence Rates'!AE115","v":79.056169422840838},{"$f":"'Population 2016'!AF115*'Prevalence Rates'!AF115","v":12.933524649953512},{"$f":"'Population 2016'!AG115*'Prevalence Rates'!AG115","v":79.056169422840838},{"$f":"'Population 2016'!AH115*'Prevalence Rates'!AH115","v":283.40585889210632},{"$f":"'Population 2016'!AI115*'Prevalence Rates'!AI115","v":243.31193247725045},{"$f":"'Population 2016'!AJ115*'Prevalence Rates'!AJ115","v":49.632400844196603},{"$f":"'Population 2016'!AK115*'Prevalence Rates'!AK115","v":22.795337195543063},{"$f":"'Population 2016'!AL115*'Prevalence Rates'!AL115","v":39.447250182358211},{"$f":"'Population 2016'!AM115*'Prevalence Rates'!AM115","v":136.12534694076072},{"$f":"'Population 2016'!AN115*'Prevalence Rates'!AN115","v":4.688402685608148},{"$f":"'Population 2016'!AO115*'Prevalence Rates'!AO115","v":4.688402685608148},{"$f":"'Population 2016'!AP115*'Prevalence Rates'!AP115","v":32.980487857381455},{"$f":"'Population 2016'!AQ115*'Prevalence Rates'!AQ115","v":57.069177517919869},{"$f":"'Population 2016'!AR115*'Prevalence Rates'!AR115","v":1683.1365641333252},{"$f":"'Population 2016'!AS115*'Prevalence Rates'!AS115","v":34.435509380501223},{"$f":"'Population 2016'!AT115*'Prevalence Rates'!AT115","v":0.80834529062209448},{"$f":"'Population 2016'!AU115*'Prevalence Rates'!AU115","v":0.80834529062209448},{"$f":"'Population 2016'!AV115*'Prevalence Rates'!AV115","v":57.715853750417544},{"$f":"'Population 2016'!AW115*'Prevalence Rates'!AW115","v":147.2805119513456},{"$f":"'Population 2016'!AX115*'Prevalence Rates'!AX115","v":17.136920161188403},{"$f":"'Population 2016'!AY115*'Prevalence Rates'!AY115","v":247.83866610473416},{"$f":"'Population 2016'!AZ115*'Prevalence Rates'!AZ115","v":117.04839808207927},{"$f":"'Population 2016'!BA115*'Prevalence Rates'!BA115","v":41.548947937975655},{"$f":"'Population 2016'!BB115*'Prevalence Rates'!BB115","v":59.817551506034988},{"$f":"'Population 2016'!BC115*'Prevalence Rates'!BC115","v":10.18515066183839},113]
[null,"Female 90+",{"$f":"'Population 2016'!C116*'Prevalence Rates'!C116","v":31.525466334261687},{"$f":"'Population 2016'!D116*'Prevalence Rates'!D116","v":49.955738960445437},{"$f":"'Population 2016'!E116*'Prevalence Rates'!E116","v":18.430272626183754},{"$f":"'Population 2016'!F116*'Prevalence Rates'!F116","v":26.028718358031441},{"$f":"'Population 2016'!G116*'Prevalence Rates'!G116","v":16.813582044939565},{"$f":"'Population 2016'!H116*'Prevalence Rates'!H116","v":100.23481603713972},{"$f":"'Population 2016'!I116*'Prevalence Rates'!I116","v":23.76535154428958},{"$f":"'Population 2016'!J116*'Prevalence Rates'!J116","v":20.370301323676781},{"$f":"'Population 2016'!K116*'Prevalence Rates'!K116","v":9.8618125455895527},{"$f":"'Population 2016'!L116*'Prevalence Rates'!L116","v":44.620660042339615},{"$f":"'Population 2016'!M116*'Prevalence Rates'!M116","v":44.620660042339615},{"$f":"'Population 2016'!N116*'Prevalence Rates'!N116","v":26.675394590529116},{"$f":"'Population 2016'!O116*'Prevalence Rates'!O116","v":29.747106694893077},{"$f":"'Population 2016'!P116*'Prevalence Rates'!P116","v":22.471999079294228},{"$f":"'Population 2016'!Q116*'Prevalence Rates'!Q116","v":23.76535154428958},{"$f":"'Population 2016'!R116*'Prevalence Rates'!R116","v":5.6584170343546614},{"$f":"'Population 2016'!S116*'Prevalence Rates'!S116","v":235.39014862915391},{"$f":"'Population 2016'!T116*'Prevalence Rates'!T116","v":54.320803529804749},{"$f":"'Population 2016'!U116*'Prevalence Rates'!U116","v":9.2151363130918771},{"$f":"'Population 2016'!V116*'Prevalence Rates'!V116","v":44.620660042339615},{"$f":"'Population 2016'!W116*'Prevalence Rates'!W116","v":77.924486015969904},{"$f":"'Population 2016'!X116*'Prevalence Rates'!X116","v":77.924486015969904},{"$f":"'Population 2016'!Y116*'Prevalence Rates'!Y116","v":64.990961366016393},{"$f":"'Population 2016'!Z116*'Prevalence Rates'!Z116","v":91.019679724047833},{"$f":"'Population 2016'!AA116*'Prevalence Rates'!AA116","v":306.68620326202267},{"$f":"'Population 2016'!AB116*'Prevalence Rates'!AB116","v":60.302558680408247},{"$f":"'Population 2016'!AC116*'Prevalence Rates'!AC116","v":167.00413704252472},{"$f":"'Population 2016'!AD116*'Prevalence Rates'!AD116","v":60.787565854781505},{"$f":"'Population 2016'!AE116*'Prevalence Rates'!AE116","v":43.97398380984194},{"$f":"'Population 2016'!AF116*'Prevalence Rates'!AF116","v":4.2033955112348913},{"$f":"'Population 2016'!AG116*'Prevalence Rates'!AG116","v":43.97398380984194},{"$f":"'Population 2016'!AH116*'Prevalence Rates'!AH116","v":139.68206621949793},{"$f":"'Population 2016'!AI116*'Prevalence Rates'!AI116","v":133.70031106889442},{"$f":"'Population 2016'!AJ116*'Prevalence Rates'!AJ116","v":22.471999079294228},{"$f":"'Population 2016'!AK116*'Prevalence Rates'!AK116","v":10.346819719962809},{"$f":"'Population 2016'!AL116*'Prevalence Rates'!AL116","v":24.89703495116051},{"$f":"'Population 2016'!AM116*'Prevalence Rates'!AM116","v":58.200860924790803},{"$f":"'Population 2016'!AN116*'Prevalence Rates'!AN116","v":1.9400286974930268},{"$f":"'Population 2016'!AO116*'Prevalence Rates'!AO116","v":1.9400286974930268},{"$f":"'Population 2016'!AP116*'Prevalence Rates'!AP116","v":15.520229579944214},{"$f":"'Population 2016'!AQ116*'Prevalence Rates'!AQ116","v":27.160401764902375},{"$f":"'Population 2016'!AR116*'Prevalence Rates'!AR116","v":952.55409046907619},{"$f":"'Population 2016'!AS116*'Prevalence Rates'!AS116","v":23.76535154428958},{"$f":"'Population 2016'!AT116*'Prevalence Rates'!AT116","v":0.1616690581244189},{"$f":"'Population 2016'!AU116*'Prevalence Rates'!AU116","v":0.1616690581244189},{"$f":"'Population 2016'!AV116*'Prevalence Rates'!AV116","v":45.590674391086125},{"$f":"'Population 2016'!AW116*'Prevalence Rates'!AW116","v":81.481205294707124},{"$f":"'Population 2016'!AX116*'Prevalence Rates'!AX116","v":10.508488778087228},{"$f":"'Population 2016'!AY116*'Prevalence Rates'!AY116","v":146.14882854447467},{"$f":"'Population 2016'!AZ116*'Prevalence Rates'!AZ116","v":68.224342528504778},{"$f":"'Population 2016'!BA116*'Prevalence Rates'!BA116","v":16.490243928690727},{"$f":"'Population 2016'!BB116*'Prevalence Rates'!BB116","v":33.142156915505872},{"$f":"'Population 2016'!BC116*'Prevalence Rates'!BC116","v":9.2151363130918771},114]
[null,"Male 0-4",{"$f":"'Population 2016'!C117*'Prevalence Rates'!C117","v":0},{"$f":"'Population 2016'!D117*'Prevalence Rates'!D117","v":0},{"$f":"'Population 2016'!E117*'Prevalence Rates'!E117","v":0},{"$f":"'Population 2016'!F117*'Prevalence Rates'!F117","v":0},{"$f":"'Population 2016'!G117*'Prevalence Rates'!G117","v":0},{"$f":"'Population 2016'!H117*'Prevalence Rates'!H117","v":0},{"$f":"'Population 2016'!I117*'Prevalence Rates'!I117","v":0},{"$f":"'Population 2016'!J117*'Prevalence Rates'!J117","v":0},{"$f":"'Population 2016'!K117*'Prevalence Rates'!K117","v":0},{"$f":"'Population 2016'!L117*'Prevalence Rates'!L117","v":0},{"$f":"'Population 2016'!M117*'Prevalence Rates'!M117","v":0},{"$f":"'Population 2016'!N117*'Prevalence Rates'!N117","v":0},{"$f":"'Population 2016'!O117*'Prevalence Rates'!O117","v":0},{"$f":"'Population 2016'!P117*'Prevalence Rates'!P117","v":0},{"$f":"'Population 2016'!Q117*'Prevalence Rates'!Q117","v":0},{"$f":"'Population 2016'!R117*'Prevalence Rates'!R117","v":0},{"$f":"'Population 2016'!S117*'Prevalence Rates'!S117","v":0},{"$f":"'Population 2016'!T117*'Prevalence Rates'!T117","v":0},{"$f":"'Population 2016'!U117*'Prevalence Rates'!U117","v":0},{"$f":"'Population 2016'!V117*'Prevalence Rates'!V117","v":0},{"$f":"'Population 2016'!W117*'Prevalence Rates'!W117","v":0},{"$f":"'Population 2016'!X117*'Prevalence Rates'!X117","v":0},{"$f":"'Population 2016'!Y117*'Prevalence Rates'!Y117","v":0},{"$f":"'Population 2016'!Z117*'Prevalence Rates'!Z117","v":0},{"$f":"'Population 2016'!AA117*'Prevalence Rates'!AA117","v":0},{"$f":"'Population 2016'!AB117*'Prevalence Rates'!AB117","v":0},{"$f":"'Population 2016'!AC117*'Prevalence Rates'!AC117","v":0},{"$f":"'Population 2016'!AD117*'Prevalence Rates'!AD117","v":0},{"$f":"'Population 2016'!AE117*'Prevalence Rates'!AE117","v":0},{"$f":"'Population 2016'!AF117*'Prevalence Rates'!AF117","v":0},{"$f":"'Population 2016'!AG117*'Prevalence Rates'!AG117","v":0},{"$f":"'Population 2016'!AH117*'Prevalence Rates'!AH117","v":0},{"$f":"'Population 2016'!AI117*'Prevalence Rates'!AI117","v":0},{"$f":"'Population 2016'!AJ117*'Prevalence Rates'!AJ117","v":0},{"$f":"'Population 2016'!AK117*'Prevalence Rates'!AK117","v":0},{"$f":"'Population 2016'!AL117*'Prevalence Rates'!AL117","v":0},{"$f":"'Population 2016'!AM117*'Prevalence Rates'!AM117","v":0},{"$f":"'Population 2016'!AN117*'Prevalence Rates'!AN117","v":0},{"$f":"'Population 2016'!AO117*'Prevalence Rates'!AO117","v":0},{"$f":"'Population 2016'!AP117*'Prevalence Rates'!AP117","v":0},{"$f":"'Population 2016'!AQ117*'Prevalence Rates'!AQ117","v":0},{"$f":"'Population 2016'!AR117*'Prevalence Rates'!AR117","v":0},{"$f":"'Population 2016'!AS117*'Prevalence Rates'!AS117","v":0},{"$f":"'Population 2016'!AT117*'Prevalence Rates'!AT117","v":0},{"$f":"'Population 2016'!AU117*'Prevalence Rates'!AU117","v":0},{"$f":"'Population 2016'!AV117*'Prevalence Rates'!AV117","v":0},{"$f":"'Population 2016'!AW117*'Prevalence Rates'!AW117","v":0},{"$f":"'Population 2016'!AX117*'Prevalence Rates'!AX117","v":0},{"$f":"'Population 2016'!AY117*'Prevalence Rates'!AY117","v":0},{"$f":"'Population 2016'!AZ117*'Prevalence Rates'!AZ117","v":0},{"$f":"'Population 2016'!BA117*'Prevalence Rates'!BA117","v":0},{"$f":"'Population 2016'!BB117*'Prevalence Rates'!BB117","v":0},{"$f":"'Population 2016'!BC117*'Prevalence Rates'!BC117","v":0},115]
[null,"Male 5-9",{"$f":"'Population 2016'!C118*'Prevalence Rates'!C118","v":0},{"$f":"'Population 2016'!D118*'Prevalence Rates'!D118","v":0},{"$f":"'Population 2016'!E118*'Prevalence Rates'!E118","v":0},{"$f":"'Population 2016'!F118*'Prevalence Rates'!F118","v":0},{"$f":"'Population 2016'!G118*'Prevalence Rates'!G118","v":0},{"$f":"'Population 2016'!H118*'Prevalence Rates'!H118","v":0},{"$f":"'Population 2016'!I118*'Prevalence Rates'!I118","v":0},{"$f":"'Population 2016'!J118*'Prevalence Rates'!J118","v":0},{"$f":"'Population 2016'!K118*'Prevalence Rates'!K118","v":0},{"$f":"'Population 2016'!L118*'Prevalence Rates'!L118","v":0},{"$f":"'Population 2016'!M118*'Prevalence Rates'!M118","v":0},{"$f":"'Population 2016'!N118*'Prevalence Rates'!N118","v":0},{"$f":"'Population 2016'!O118*'Prevalence Rates'!O118","v":0},{"$f":"'Population 2016'!P118*'Prevalence Rates'!P118","v":0},{"$f":"'Population 2016'!Q118*'Prevalence Rates'!Q118","v":0},{"$f":"'Population 2016'!R118*'Prevalence Rates'!R118","v":0},{"$f":"'Population 2016'!S118*'Prevalence Rates'!S118","v":0},{"$f":"'Population 2016'!T118*'Prevalence Rates'!T118","v":0},{"$f":"'Population 2016'!U118*'Prevalence Rates'!U118","v":0},{"$f":"'Population 2016'!V118*'Prevalence Rates'!V118","v":0},{"$f":"'Population 2016'!W118*'Prevalence Rates'!W118","v":0},{"$f":"'Population 2016'!X118*'Prevalence Rates'!X118","v":0},{"$f":"'Population 2016'!Y118*'Prevalence Rates'!Y118","v":0},{"$f":"'Population 2016'!Z118*'Prevalence Rates'!Z118","v":0},{"$f":"'Population 2016'!AA118*'Prevalence Rates'!AA118","v":0},{"$f":"'Population 2016'!AB118*'Prevalence Rates'!AB118","v":0},{"$f":"'Population 2016'!AC118*'Prevalence Rates'!AC118","v":0},{"$f":"'Population 2016'!AD118*'Prevalence Rates'!AD118","v":0},{"$f":"'Population 2016'!AE118*'Prevalence Rates'!AE118","v":0},{"$f":"'Population 2016'!AF118*'Prevalence Rates'!AF118","v":0},{"$f":"'Population 2016'!AG118*'Prevalence Rates'!AG118","v":0},{"$f":"'Population 2016'!AH118*'Prevalence Rates'!AH118","v":0},{"$f":"'Population 2016'!AI118*'Prevalence Rates'!AI118","v":0},{"$f":"'Population 2016'!AJ118*'Prevalence Rates'!AJ118","v":0},{"$f":"'Population 2016'!AK118*'Prevalence Rates'!AK118","v":0},{"$f":"'Population 2016'!AL118*'Prevalence Rates'!AL118","v":0},{"$f":"'Population 2016'!AM118*'Prevalence Rates'!AM118","v":0},{"$f":"'Population 2016'!AN118*'Prevalence Rates'!AN118","v":0},{"$f":"'Population 2016'!AO118*'Prevalence Rates'!AO118","v":0},{"$f":"'Population 2016'!AP118*'Prevalence Rates'!AP118","v":0},{"$f":"'Population 2016'!AQ118*'Prevalence Rates'!AQ118","v":0},{"$f":"'Population 2016'!AR118*'Prevalence Rates'!AR118","v":0},{"$f":"'Population 2016'!AS118*'Prevalence Rates'!AS118","v":0},{"$f":"'Population 2016'!AT118*'Prevalence Rates'!AT118","v":0},{"$f":"'Population 2016'!AU118*'Prevalence Rates'!AU118","v":0},{"$f":"'Population 2016'!AV118*'Prevalence Rates'!AV118","v":0},{"$f":"'Population 2016'!AW118*'Prevalence Rates'!AW118","v":0},{"$f":"'Population 2016'!AX118*'Prevalence Rates'!AX118","v":0},{"$f":"'Population 2016'!AY118*'Prevalence Rates'!AY118","v":0},{"$f":"'Population 2016'!AZ118*'Prevalence Rates'!AZ118","v":0},{"$f":"'Population 2016'!BA118*'Prevalence Rates'!BA118","v":0},{"$f":"'Population 2016'!BB118*'Prevalence Rates'!BB118","v":0},{"$f":"'Population 2016'!BC118*'Prevalence Rates'!BC118","v":0},116]
[null,"Male 10-15",{"$f":"'Population 2016'!C119*'Prevalence Rates'!C119","v":0},{"$f":"'Population 2016'!D119*'Prevalence Rates'!D119","v":0},{"$f":"'Population 2016'!E119*'Prevalence Rates'!E119","v":0},{"$f":"'Population 2016'!F119*'Prevalence Rates'!F119","v":0},{"$f":"'Population 2016'!G119*'Prevalence Rates'!G119","v":0},{"$f":"'Population 2016'!H119*'Prevalence Rates'!H119","v":0},{"$f":"'Population 2016'!I119*'Prevalence Rates'!I119","v":0},{"$f":"'Population 2016'!J119*'Prevalence Rates'!J119","v":0},{"$f":"'Population 2016'!K119*'Prevalence Rates'!K119","v":0},{"$f":"'Population 2016'!L119*'Prevalence Rates'!L119","v":0},{"$f":"'Population 2016'!M119*'Prevalence Rates'!M119","v":0},{"$f":"'Population 2016'!N119*'Prevalence Rates'!N119","v":0},{"$f":"'Population 2016'!O119*'Prevalence Rates'!O119","v":0},{"$f":"'Population 2016'!P119*'Prevalence Rates'!P119","v":0},{"$f":"'Population 2016'!Q119*'Prevalence Rates'!Q119","v":0},{"$f":"'Population 2016'!R119*'Prevalence Rates'!R119","v":0},{"$f":"'Population 2016'!S119*'Prevalence Rates'!S119","v":0},{"$f":"'Population 2016'!T119*'Prevalence Rates'!T119","v":0},{"$f":"'Population 2016'!U119*'Prevalence Rates'!U119","v":0},{"$f":"'Population 2016'!V119*'Prevalence Rates'!V119","v":0},{"$f":"'Population 2016'!W119*'Prevalence Rates'!W119","v":0},{"$f":"'Population 2016'!X119*'Prevalence Rates'!X119","v":0},{"$f":"'Population 2016'!Y119*'Prevalence Rates'!Y119","v":0},{"$f":"'Population 2016'!Z119*'Prevalence Rates'!Z119","v":0},{"$f":"'Population 2016'!AA119*'Prevalence Rates'!AA119","v":0},{"$f":"'Population 2016'!AB119*'Prevalence Rates'!AB119","v":0},{"$f":"'Population 2016'!AC119*'Prevalence Rates'!AC119","v":0},{"$f":"'Population 2016'!AD119*'Prevalence Rates'!AD119","v":0},{"$f":"'Population 2016'!AE119*'Prevalence Rates'!AE119","v":0},{"$f":"'Population 2016'!AF119*'Prevalence Rates'!AF119","v":0},{"$f":"'Population 2016'!AG119*'Prevalence Rates'!AG119","v":0},{"$f":"'Population 2016'!AH119*'Prevalence Rates'!AH119","v":0},{"$f":"'Population 2016'!AI119*'Prevalence Rates'!AI119","v":0},{"$f":"'Population 2016'!AJ119*'Prevalence Rates'!AJ119","v":0},{"$f":"'Population 2016'!AK119*'Prevalence Rates'!AK119","v":0},{"$f":"'Population 2016'!AL119*'Prevalence Rates'!AL119","v":0},{"$f":"'Population 2016'!AM119*'Prevalence Rates'!AM119","v":0},{"$f":"'Population 2016'!AN119*'Prevalence Rates'!AN119","v":0},{"$f":"'Population 2016'!AO119*'Prevalence Rates'!AO119","v":0},{"$f":"'Population 2016'!AP119*'Prevalence Rates'!AP119","v":0},{"$f":"'Population 2016'!AQ119*'Prevalence Rates'!AQ119","v":0},{"$f":"'Population 2016'!AR119*'Prevalence Rates'!AR119","v":0},{"$f":"'Population 2016'!AS119*'Prevalence Rates'!AS119","v":0},{"$f":"'Population 2016'!AT119*'Prevalence Rates'!AT119","v":0},{"$f":"'Population 2016'!AU119*'Prevalence Rates'!AU119","v":0},{"$f":"'Population 2016'!AV119*'Prevalence Rates'!AV119","v":0},{"$f":"'Population 2016'!AW119*'Prevalence Rates'!AW119","v":0},{"$f":"'Population 2016'!AX119*'Prevalence Rates'!AX119","v":0},{"$f":"'Population 2016'!AY119*'Prevalence Rates'!AY119","v":0},{"$f":"'Population 2016'!AZ119*'Prevalence Rates'!AZ119","v":0},{"$f":"'Population 2016'!BA119*'Prevalence Rates'!BA119","v":0},{"$f":"'Population 2016'!BB119*'Prevalence Rates'!BB119","v":0},{"$f":"'Population 2016'!BC119*'Prevalence Rates'!BC119","v":0},117]
[null,"Male 16-19",{"$f":"'Population 2016'!C120*'Prevalence Rates'!C120","v":93.742924789070514},{"$f":"'Population 2016'!D120*'Prevalence Rates'!D120","v":136.81399834080563},{"$f":"'Population 2016'!E120*'Prevalence Rates'!E120","v":43.071073551735097},{"$f":"'Population 2016'!F120*'Prevalence Rates'!F120","v":39.524043965121621},{"$f":"'Population 2016'!G120*'Prevalence Rates'!G120","v":30.808485552299931},{"$f":"'Population 2016'!H120*'Prevalence Rates'!H120","v":205.93040342853112},{"$f":"'Population 2016'!I120*'Prevalence Rates'!I120","v":36.990451403254852},{"$f":"'Population 2016'!J120*'Prevalence Rates'!J120","v":62.934439236770579},{"$f":"'Population 2016'!K120*'Prevalence Rates'!K120","v":31.011172957249272},{"$f":"'Population 2016'!L120*'Prevalence Rates'!L120","v":91.61470703710242},{"$f":"'Population 2016'!M120*'Prevalence Rates'!M120","v":91.61470703710242},{"$f":"'Population 2016'!N120*'Prevalence Rates'!N120","v":57.157848195714344},{"$f":"'Population 2016'!O120*'Prevalence Rates'!O120","v":73.676871699085694},{"$f":"'Population 2016'!P120*'Prevalence Rates'!P120","v":42.463011336887078},{"$f":"'Population 2016'!Q120*'Prevalence Rates'!Q120","v":61.616971104599862},{"$f":"'Population 2016'!R120*'Prevalence Rates'!R120","v":22.092927139478238},{"$f":"'Population 2016'!S120*'Prevalence Rates'!S120","v":601.17084307974733},{"$f":"'Population 2016'!T120*'Prevalence Rates'!T120","v":153.73839665407564},{"$f":"'Population 2016'!U120*'Prevalence Rates'!U120","v":14.188118346453916},{"$f":"'Population 2016'!V120*'Prevalence Rates'!V120","v":110.87001050728988},{"$f":"'Population 2016'!W120*'Prevalence Rates'!W120","v":165.6969535460868},{"$f":"'Population 2016'!X120*'Prevalence Rates'!X120","v":165.6969535460868},{"$f":"'Population 2016'!Y120*'Prevalence Rates'!Y120","v":173.80444974406046},{"$f":"'Population 2016'!Z120*'Prevalence Rates'!Z120","v":236.02948306350834},{"$f":"'Population 2016'!AA120*'Prevalence Rates'!AA120","v":866.18462505101149},{"$f":"'Population 2016'!AB120*'Prevalence Rates'!AB120","v":171.87891939704173},{"$f":"'Population 2016'!AC120*'Prevalence Rates'!AC120","v":454.72919300384797},{"$f":"'Population 2016'!AD120*'Prevalence Rates'!AD120","v":133.57099986161614},{"$f":"'Population 2016'!AE120*'Prevalence Rates'!AE120","v":102.76251430931622},{"$f":"'Population 2016'!AF120*'Prevalence Rates'!AF120","v":21.586208627104885},{"$f":"'Population 2016'!AG120*'Prevalence Rates'!AG120","v":102.76251430931622},{"$f":"'Population 2016'!AH120*'Prevalence Rates'!AH120","v":411.45543204716353},{"$f":"'Population 2016'!AI120*'Prevalence Rates'!AI120","v":398.48343813040566},{"$f":"'Population 2016'!AJ120*'Prevalence Rates'!AJ120","v":72.663434674338987},{"$f":"'Population 2016'!AK120*'Prevalence Rates'!AK120","v":35.064921056236102},{"$f":"'Population 2016'!AL120*'Prevalence Rates'!AL120","v":67.190874740706761},{"$f":"'Population 2016'!AM120*'Prevalence Rates'!AM120","v":224.07092617149721},{"$f":"'Population 2016'!AN120*'Prevalence Rates'!AN120","v":6.7900280658029448},{"$f":"'Population 2016'!AO120*'Prevalence Rates'!AO120","v":6.7900280658029448},{"$f":"'Population 2016'!AP120*'Prevalence Rates'!AP120","v":38.510606940374913},{"$f":"'Population 2016'!AQ120*'Prevalence Rates'!AQ120","v":73.47418429413635},{"$f":"'Population 2016'!AR120*'Prevalence Rates'!AR120","v":2401.1363427323759},{"$f":"'Population 2016'!AS120*'Prevalence Rates'!AS120","v":36.990451403254852},{"$f":"'Population 2016'!AT120*'Prevalence Rates'!AT120","v":0.81074961979736659},{"$f":"'Population 2016'!AU120*'Prevalence Rates'!AU120","v":0.81074961979736659},{"$f":"'Population 2016'!AV120*'Prevalence Rates'!AV120","v":65.062656988738667},{"$f":"'Population 2016'!AW120*'Prevalence Rates'!AW120","v":187.38450587566635},{"$f":"'Population 2016'!AX120*'Prevalence Rates'!AX120","v":31.923266279521311},{"$f":"'Population 2016'!AY120*'Prevalence Rates'!AY120","v":300.88945264729767},{"$f":"'Population 2016'!AZ120*'Prevalence Rates'!AZ120","v":135.19249910121087},{"$f":"'Population 2016'!BA120*'Prevalence Rates'!BA120","v":59.083378542733094},{"$f":"'Population 2016'!BB120*'Prevalence Rates'!BB120","v":110.4646356973912},{"$f":"'Population 2016'!BC120*'Prevalence Rates'!BC120","v":14.188118346453916},118]
[null,"Male 20-24",{"$f":"'Population 2016'!C121*'Prevalence Rates'!C121","v":225.69242541109193},{"$f":"'Population 2016'!D121*'Prevalence Rates'!D121","v":287.71477132559045},{"$f":"'Population 2016'!E121*'Prevalence Rates'!E121","v":62.022345914498544},{"$f":"'Population 2016'!F121*'Prevalence Rates'!F121","v":61.616971104599862},{"$f":"'Population 2016'!G121*'Prevalence Rates'!G121","v":40.334793584918991},{"$f":"'Population 2016'!H121*'Prevalence Rates'!H121","v":264.4057197564162},{"$f":"'Population 2016'!I121*'Prevalence Rates'!I121","v":54.725599336322247},{"$f":"'Population 2016'!J121*'Prevalence Rates'!J121","v":104.58670095386029},{"$f":"'Population 2016'!K121*'Prevalence Rates'!K121","v":41.145543204716354},{"$f":"'Population 2016'!L121*'Prevalence Rates'!L121","v":123.6393170190984},{"$f":"'Population 2016'!M121*'Prevalence Rates'!M121","v":123.6393170190984},{"$f":"'Population 2016'!N121*'Prevalence Rates'!N121","v":170.15607645497232},{"$f":"'Population 2016'!O121*'Prevalence Rates'!O121","v":99.114141020228061},{"$f":"'Population 2016'!P121*'Prevalence Rates'!P121","v":62.427720724397226},{"$f":"'Population 2016'!Q121*'Prevalence Rates'!Q121","v":86.446178210894217},{"$f":"'Population 2016'!R121*'Prevalence Rates'!R121","v":29.896392230027892},{"$f":"'Population 2016'!S121*'Prevalence Rates'!S121","v":888.88561440533783},{"$f":"'Population 2016'!T121*'Prevalence Rates'!T121","v":296.83570454831084},{"$f":"'Population 2016'!U121*'Prevalence Rates'!U121","v":15.809617586048649},{"$f":"'Population 2016'!V121*'Prevalence Rates'!V121","v":133.26696875419213},{"$f":"'Population 2016'!W121*'Prevalence Rates'!W121","v":205.72771602358176},{"$f":"'Population 2016'!X121*'Prevalence Rates'!X121","v":205.72771602358176},{"$f":"'Population 2016'!Y121*'Prevalence Rates'!Y121","v":237.85366970805242},{"$f":"'Population 2016'!Z121*'Prevalence Rates'!Z121","v":445.00019756627961},{"$f":"'Population 2016'!AA121*'Prevalence Rates'!AA121","v":1291.220113229781},{"$f":"'Population 2016'!AB121*'Prevalence Rates'!AB121","v":336.96781072828048},{"$f":"'Population 2016'!AC121*'Prevalence Rates'!AC121","v":753.49042789917758},{"$f":"'Population 2016'!AD121*'Prevalence Rates'!AD121","v":172.89235642178843},{"$f":"'Population 2016'!AE121*'Prevalence Rates'!AE121","v":132.55756283686944},{"$f":"'Population 2016'!AF121*'Prevalence Rates'!AF121","v":32.632672196844005},{"$f":"'Population 2016'!AG121*'Prevalence Rates'!AG121","v":132.55756283686944},{"$f":"'Population 2016'!AH121*'Prevalence Rates'!AH121","v":537.72968533060339},{"$f":"'Population 2016'!AI121*'Prevalence Rates'!AI121","v":628.43229904543375},{"$f":"'Population 2016'!AJ121*'Prevalence Rates'!AJ121","v":89.790520392558349},{"$f":"'Population 2016'!AK121*'Prevalence Rates'!AK121","v":49.253039402690021},{"$f":"'Population 2016'!AL121*'Prevalence Rates'!AL121","v":84.317960458926123},{"$f":"'Population 2016'!AM121*'Prevalence Rates'!AM121","v":287.00536540826778},{"$f":"'Population 2016'!AN121*'Prevalence Rates'!AN121","v":9.2222769251950449},{"$f":"'Population 2016'!AO121*'Prevalence Rates'!AO121","v":9.2222769251950449},{"$f":"'Population 2016'!AP121*'Prevalence Rates'!AP121","v":67.79893695555478},{"$f":"'Population 2016'!AQ121*'Prevalence Rates'!AQ121","v":98.911453615278731},{"$f":"'Population 2016'!AR121*'Prevalence Rates'!AR121","v":3644.7249157990614},{"$f":"'Population 2016'!AS121*'Prevalence Rates'!AS121","v":54.725599336322247},{"$f":"'Population 2016'!AT121*'Prevalence Rates'!AT121","v":4.2564355039361743},{"$f":"'Population 2016'!AU121*'Prevalence Rates'!AU121","v":4.2564355039361743},{"$f":"'Population 2016'!AV121*'Prevalence Rates'!AV121","v":80.973618277261991},{"$f":"'Population 2016'!AW121*'Prevalence Rates'!AW121","v":250.72431992233561},{"$f":"'Population 2016'!AX121*'Prevalence Rates'!AX121","v":63.441157749143933},{"$f":"'Population 2016'!AY121*'Prevalence Rates'!AY121","v":505.29970053870875},{"$f":"'Population 2016'!AZ121*'Prevalence Rates'!AZ121","v":299.57198451512693},{"$f":"'Population 2016'!BA121*'Prevalence Rates'!BA121","v":84.621991566350133},{"$f":"'Population 2016'!BB121*'Prevalence Rates'!BB121","v":155.35989589367037},{"$f":"'Population 2016'!BC121*'Prevalence Rates'!BC121","v":15.809617586048649},119]
[null,"Male 25-29",{"$f":"'Population 2016'!C122*'Prevalence Rates'!C122","v":269.47290488014971},{"$f":"'Population 2016'!D122*'Prevalence Rates'!D122","v":342.33902695943806},{"$f":"'Population 2016'!E122*'Prevalence Rates'!E122","v":72.866122079288317},{"$f":"'Population 2016'!F122*'Prevalence Rates'!F122","v":72.055372459490954},{"$f":"'Population 2016'!G122*'Prevalence Rates'!G122","v":36.88910770078018},{"$f":"'Population 2016'!H122*'Prevalence Rates'!H122","v":258.52778501288526},{"$f":"'Population 2016'!I122*'Prevalence Rates'!I122","v":57.563223005613025},{"$f":"'Population 2016'!J122*'Prevalence Rates'!J122","v":105.49879427613233},{"$f":"'Population 2016'!K122*'Prevalence Rates'!K122","v":39.220012857697611},{"$f":"'Population 2016'!L122*'Prevalence Rates'!L122","v":100.63429655734812},{"$f":"'Population 2016'!M122*'Prevalence Rates'!M122","v":100.63429655734812},{"$f":"'Population 2016'!N122*'Prevalence Rates'!N122","v":157.58945734811314},{"$f":"'Population 2016'!O122*'Prevalence Rates'!O122","v":95.263080326190575},{"$f":"'Population 2016'!P122*'Prevalence Rates'!P122","v":58.779347435309077},{"$f":"'Population 2016'!Q122*'Prevalence Rates'!Q122","v":86.142147103470194},{"$f":"'Population 2016'!R122*'Prevalence Rates'!R122","v":26.146675238465072},{"$f":"'Population 2016'!S122*'Prevalence Rates'!S122","v":1045.3602910262296},{"$f":"'Population 2016'!T122*'Prevalence Rates'!T122","v":436.28463915345787},{"$f":"'Population 2016'!U122*'Prevalence Rates'!U122","v":17.937835338016736},{"$f":"'Population 2016'!V122*'Prevalence Rates'!V122","v":135.09115539873622},{"$f":"'Population 2016'!W122*'Prevalence Rates'!W122","v":218.59836623786498},{"$f":"'Population 2016'!X122*'Prevalence Rates'!X122","v":218.59836623786498},{"$f":"'Population 2016'!Y122*'Prevalence Rates'!Y122","v":240.58994967486854},{"$f":"'Population 2016'!Z122*'Prevalence Rates'!Z122","v":612.01461924453713},{"$f":"'Population 2016'!AA122*'Prevalence Rates'!AA122","v":1465.9366562961134},{"$f":"'Population 2016'!AB122*'Prevalence Rates'!AB122","v":396.25387667596294},{"$f":"'Population 2016'!AC122*'Prevalence Rates'!AC122","v":917.86991331309366},{"$f":"'Population 2016'!AD122*'Prevalence Rates'!AD122","v":167.72382759558022},{"$f":"'Population 2016'!AE122*'Prevalence Rates'!AE122","v":130.83471989480003},{"$f":"'Population 2016'!AF122*'Prevalence Rates'!AF122","v":32.429984791894661},{"$f":"'Population 2016'!AG122*'Prevalence Rates'!AG122","v":130.83471989480003},{"$f":"'Population 2016'!AH122*'Prevalence Rates'!AH122","v":548.06674298301982},{"$f":"'Population 2016'!AI122*'Prevalence Rates'!AI122","v":769.19870178275153},{"$f":"'Population 2016'!AJ122*'Prevalence Rates'!AJ122","v":94.452330706393212},{"$f":"'Population 2016'!AK122*'Prevalence Rates'!AK122","v":53.914849716524877},{"$f":"'Population 2016'!AL122*'Prevalence Rates'!AL122","v":78.642713120344553},{"$f":"'Population 2016'!AM122*'Prevalence Rates'!AM122","v":293.49136236664668},{"$f":"'Population 2016'!AN122*'Prevalence Rates'!AN122","v":10.539745057365765},{"$f":"'Population 2016'!AO122*'Prevalence Rates'!AO122","v":10.539745057365765},{"$f":"'Population 2016'!AP122*'Prevalence Rates'!AP122","v":76.514495368376473},{"$f":"'Population 2016'!AQ122*'Prevalence Rates'!AQ122","v":102.96520171426556},{"$f":"'Population 2016'!AR122*'Prevalence Rates'!AR122","v":4014.325398724186},{"$f":"'Population 2016'!AS122*'Prevalence Rates'!AS122","v":57.563223005613025},{"$f":"'Population 2016'!AT122*'Prevalence Rates'!AT122","v":4.6618103138348577},{"$f":"'Population 2016'!AU122*'Prevalence Rates'!AU122","v":4.6618103138348577},{"$f":"'Population 2016'!AV122*'Prevalence Rates'!AV122","v":84.621991566350133},{"$f":"'Population 2016'!AW122*'Prevalence Rates'!AW122","v":254.57538061637311},{"$f":"'Population 2016'!AX122*'Prevalence Rates'!AX122","v":66.278781418434718},{"$f":"'Population 2016'!AY122*'Prevalence Rates'!AY122","v":524.75769141384558},{"$f":"'Population 2016'!AZ122*'Prevalence Rates'!AZ122","v":306.15932517598054},{"$f":"'Population 2016'!BA122*'Prevalence Rates'!BA122","v":85.534084888622175},{"$f":"'Population 2016'!BB122*'Prevalence Rates'!BB122","v":152.31958481943025},{"$f":"'Population 2016'!BC122*'Prevalence Rates'!BC122","v":17.937835338016736},120]
[null,"Male 30-34",{"$f":"'Population 2016'!C123*'Prevalence Rates'!C123","v":214.13924332897946},{"$f":"'Population 2016'!D123*'Prevalence Rates'!D123","v":278.99921291276877},{"$f":"'Population 2016'!E123*'Prevalence Rates'!E123","v":64.859969583789322},{"$f":"'Population 2016'!F123*'Prevalence Rates'!F123","v":72.866122079288317},{"$f":"'Population 2016'!G123*'Prevalence Rates'!G123","v":39.220012857697611},{"$f":"'Population 2016'!H123*'Prevalence Rates'!H123","v":246.16385331097544},{"$f":"'Population 2016'!I123*'Prevalence Rates'!I123","v":48.949008295266005},{"$f":"'Population 2016'!J123*'Prevalence Rates'!J123","v":83.608554541603425},{"$f":"'Population 2016'!K123*'Prevalence Rates'!K123","v":37.193138808204189},{"$f":"'Population 2016'!L123*'Prevalence Rates'!L123","v":101.03967136724681},{"$f":"'Population 2016'!M123*'Prevalence Rates'!M123","v":101.03967136724681},{"$f":"'Population 2016'!N123*'Prevalence Rates'!N123","v":121.20706815970631},{"$f":"'Population 2016'!O123*'Prevalence Rates'!O123","v":97.391298078158655},{"$f":"'Population 2016'!P123*'Prevalence Rates'!P123","v":51.48260085713278},{"$f":"'Population 2016'!Q123*'Prevalence Rates'!Q123","v":84.216616756451458},{"$f":"'Population 2016'!R123*'Prevalence Rates'!R123","v":22.295614544427583},{"$f":"'Population 2016'!S123*'Prevalence Rates'!S123","v":995.90456421859017},{"$f":"'Population 2016'!T123*'Prevalence Rates'!T123","v":394.12565892399482},{"$f":"'Population 2016'!U123*'Prevalence Rates'!U123","v":14.79618056130194},{"$f":"'Population 2016'!V123*'Prevalence Rates'!V123","v":135.29384280368555},{"$f":"'Population 2016'!W123*'Prevalence Rates'!W123","v":213.53118111413141},{"$f":"'Population 2016'!X123*'Prevalence Rates'!X123","v":213.53118111413141},{"$f":"'Population 2016'!Y123*'Prevalence Rates'!Y123","v":218.90239734528899},{"$f":"'Population 2016'!Z123*'Prevalence Rates'!Z123","v":567.8287649655806},{"$f":"'Population 2016'!AA123*'Prevalence Rates'!AA123","v":1412.7312124969112},{"$f":"'Population 2016'!AB123*'Prevalence Rates'!AB123","v":329.16434563773083},{"$f":"'Population 2016'!AC123*'Prevalence Rates'!AC123","v":867.60343688565695},{"$f":"'Population 2016'!AD123*'Prevalence Rates'!AD123","v":165.89964095103613},{"$f":"'Population 2016'!AE123*'Prevalence Rates'!AE123","v":126.67962809333854},{"$f":"'Population 2016'!AF123*'Prevalence Rates'!AF123","v":32.328641089419996},{"$f":"'Population 2016'!AG123*'Prevalence Rates'!AG123","v":126.67962809333854},{"$f":"'Population 2016'!AH123*'Prevalence Rates'!AH123","v":545.12777561125438},{"$f":"'Population 2016'!AI123*'Prevalence Rates'!AI123","v":733.42437480919273},{"$f":"'Population 2016'!AJ123*'Prevalence Rates'!AJ123","v":91.41201963215309},{"$f":"'Population 2016'!AK123*'Prevalence Rates'!AK123","v":50.165132724962056},{"$f":"'Population 2016'!AL123*'Prevalence Rates'!AL123","v":71.345966542168256},{"$f":"'Population 2016'!AM123*'Prevalence Rates'!AM123","v":300.28139043244965},{"$f":"'Population 2016'!AN123*'Prevalence Rates'!AN123","v":7.1954028757016282},{"$f":"'Population 2016'!AO123*'Prevalence Rates'!AO123","v":7.1954028757016282},{"$f":"'Population 2016'!AP123*'Prevalence Rates'!AP123","v":76.210464260952463},{"$f":"'Population 2016'!AQ123*'Prevalence Rates'!AQ123","v":110.66732310234055},{"$f":"'Population 2016'!AR123*'Prevalence Rates'!AR123","v":3764.5131721241223},{"$f":"'Population 2016'!AS123*'Prevalence Rates'!AS123","v":48.949008295266005},{"$f":"'Population 2016'!AT123*'Prevalence Rates'!AT123","v":2.4322488593920997},{"$f":"'Population 2016'!AU123*'Prevalence Rates'!AU123","v":2.4322488593920997},{"$f":"'Population 2016'!AV123*'Prevalence Rates'!AV123","v":77.426588690648515},{"$f":"'Population 2016'!AW123*'Prevalence Rates'!AW123","v":244.84638517880472},{"$f":"'Population 2016'!AX123*'Prevalence Rates'!AX123","v":46.415415733399236},{"$f":"'Population 2016'!AY123*'Prevalence Rates'!AY123","v":483.8148356140785},{"$f":"'Population 2016'!AZ123*'Prevalence Rates'!AZ123","v":270.28365449994709},{"$f":"'Population 2016'!BA123*'Prevalence Rates'!BA123","v":83.000492326755406},{"$f":"'Population 2016'!BB123*'Prevalence Rates'!BB123","v":163.67007949659339},{"$f":"'Population 2016'!BC123*'Prevalence Rates'!BC123","v":14.79618056130194},121]
[null,"Male 35-39",{"$f":"'Population 2016'!C124*'Prevalence Rates'!C124","v":166.4063594634095},{"$f":"'Population 2016'!D124*'Prevalence Rates'!D124","v":229.5434861051294},{"$f":"'Population 2016'!E124*'Prevalence Rates'!E124","v":63.137126641719924},{"$f":"'Population 2016'!F124*'Prevalence Rates'!F124","v":62.225033319447888},{"$f":"'Population 2016'!G124*'Prevalence Rates'!G124","v":38.206575832950904},{"$f":"'Population 2016'!H124*'Prevalence Rates'!H124","v":217.99030402301693},{"$f":"'Population 2016'!I124*'Prevalence Rates'!I124","v":47.834227568044632},{"$f":"'Population 2016'!J124*'Prevalence Rates'!J124","v":73.879559104035025},{"$f":"'Population 2016'!K124*'Prevalence Rates'!K124","v":38.915981750273595},{"$f":"'Population 2016'!L124*'Prevalence Rates'!L124","v":95.263080326190575},{"$f":"'Population 2016'!M124*'Prevalence Rates'!M124","v":95.263080326190575},{"$f":"'Population 2016'!N124*'Prevalence Rates'!N124","v":82.797804921806062},{"$f":"'Population 2016'!O124*'Prevalence Rates'!O124","v":85.939459698520864},{"$f":"'Population 2016'!P124*'Prevalence Rates'!P124","v":44.793916493804502},{"$f":"'Population 2016'!Q124*'Prevalence Rates'!Q124","v":80.872274574787312},{"$f":"'Population 2016'!R124*'Prevalence Rates'!R124","v":20.167396792459495},{"$f":"'Population 2016'!S124*'Prevalence Rates'!S124","v":873.07599681928912},{"$f":"'Population 2016'!T124*'Prevalence Rates'!T124","v":302.10557707699371},{"$f":"'Population 2016'!U124*'Prevalence Rates'!U124","v":14.390805751403256},{"$f":"'Population 2016'!V124*'Prevalence Rates'!V124","v":135.29384280368555},{"$f":"'Population 2016'!W124*'Prevalence Rates'!W124","v":209.27474561019525},{"$f":"'Population 2016'!X124*'Prevalence Rates'!X124","v":209.27474561019525},{"$f":"'Population 2016'!Y124*'Prevalence Rates'!Y124","v":209.17340190772057},{"$f":"'Population 2016'!Z124*'Prevalence Rates'!Z124","v":443.88541683905822},{"$f":"'Population 2016'!AA124*'Prevalence Rates'!AA124","v":1208.726339415399},{"$f":"'Population 2016'!AB124*'Prevalence Rates'!AB124","v":276.769651458326},{"$f":"'Population 2016'!AC124*'Prevalence Rates'!AC124","v":709.30457362022105},{"$f":"'Population 2016'!AD124*'Prevalence Rates'!AD124","v":157.79214475306247},{"$f":"'Population 2016'!AE124*'Prevalence Rates'!AE124","v":119.58556892011157},{"$f":"'Population 2016'!AF124*'Prevalence Rates'!AF124","v":31.112516659723944},{"$f":"'Population 2016'!AG124*'Prevalence Rates'!AG124","v":119.58556892011157},{"$f":"'Population 2016'!AH124*'Prevalence Rates'!AH124","v":499.42176579517781},{"$f":"'Population 2016'!AI124*'Prevalence Rates'!AI124","v":615.96702364104931},{"$f":"'Population 2016'!AJ124*'Prevalence Rates'!AJ124","v":89.790520392558349},{"$f":"'Population 2016'!AK124*'Prevalence Rates'!AK124","v":47.226165353196606},{"$f":"'Population 2016'!AL124*'Prevalence Rates'!AL124","v":61.110252592226509},{"$f":"'Population 2016'!AM124*'Prevalence Rates'!AM124","v":268.66215526035234},{"$f":"'Population 2016'!AN124*'Prevalence Rates'!AN124","v":7.2967465781762995},{"$f":"'Population 2016'!AO124*'Prevalence Rates'!AO124","v":7.2967465781762995},{"$f":"'Population 2016'!AP124*'Prevalence Rates'!AP124","v":68.711030277826822},{"$f":"'Population 2016'!AQ124*'Prevalence Rates'!AQ124","v":87.763646343064934},{"$f":"'Population 2016'!AR124*'Prevalence Rates'!AR124","v":3277.5566817333292},{"$f":"'Population 2016'!AS124*'Prevalence Rates'!AS124","v":47.834227568044632},{"$f":"'Population 2016'!AT124*'Prevalence Rates'!AT124","v":3.3443421816641372},{"$f":"'Population 2016'!AU124*'Prevalence Rates'!AU124","v":3.3443421816641372},{"$f":"'Population 2016'!AV124*'Prevalence Rates'!AV124","v":70.940591732269581},{"$f":"'Population 2016'!AW124*'Prevalence Rates'!AW124","v":230.75961053482547},{"$f":"'Population 2016'!AX124*'Prevalence Rates'!AX124","v":34.963577353761437},{"$f":"'Population 2016'!AY124*'Prevalence Rates'!AY124","v":423.008614129276},{"$f":"'Population 2016'!AZ124*'Prevalence Rates'!AZ124","v":213.73386851908077},{"$f":"'Population 2016'!BA124*'Prevalence Rates'!BA124","v":81.58168049211001},{"$f":"'Population 2016'!BB124*'Prevalence Rates'!BB124","v":143.19865159670988},{"$f":"'Population 2016'!BC124*'Prevalence Rates'!BC124","v":14.390805751403256},122]
[null,"Male 40-44",{"$f":"'Population 2016'!C125*'Prevalence Rates'!C125","v":144.82015083630461},{"$f":"'Population 2016'!D125*'Prevalence Rates'!D125","v":204.10621678398704},{"$f":"'Population 2016'!E125*'Prevalence Rates'!E125","v":59.286065947682431},{"$f":"'Population 2016'!F125*'Prevalence Rates'!F125","v":58.779347435309077},{"$f":"'Population 2016'!G125*'Prevalence Rates'!G125","v":36.483732890881498},{"$f":"'Population 2016'!H125*'Prevalence Rates'!H125","v":254.2713495089491},{"$f":"'Population 2016'!I125*'Prevalence Rates'!I125","v":52.090663071980806},{"$f":"'Population 2016'!J125*'Prevalence Rates'!J125","v":79.554806442616595},{"$f":"'Population 2016'!K125*'Prevalence Rates'!K125","v":42.260323931937734},{"$f":"'Population 2016'!L125*'Prevalence Rates'!L125","v":113.70763417658067},{"$f":"'Population 2016'!M125*'Prevalence Rates'!M125","v":113.70763417658067},{"$f":"'Population 2016'!N125*'Prevalence Rates'!N125","v":77.730619798072524},{"$f":"'Population 2016'!O125*'Prevalence Rates'!O125","v":95.668455136089264},{"$f":"'Population 2016'!P125*'Prevalence Rates'!P125","v":50.266476427436729},{"$f":"'Population 2016'!Q125*'Prevalence Rates'!Q125","v":83.304523434179416},{"$f":"'Population 2016'!R125*'Prevalence Rates'!R125","v":26.85608115578777},{"$f":"'Population 2016'!S125*'Prevalence Rates'!S125","v":867.80612429060625},{"$f":"'Population 2016'!T125*'Prevalence Rates'!T125","v":258.62912871535997},{"$f":"'Population 2016'!U125*'Prevalence Rates'!U125","v":20.167396792459495},{"$f":"'Population 2016'!V125*'Prevalence Rates'!V125","v":146.54299377837401},{"$f":"'Population 2016'!W125*'Prevalence Rates'!W125","v":229.5434861051294},{"$f":"'Population 2016'!X125*'Prevalence Rates'!X125","v":229.5434861051294},{"$f":"'Population 2016'!Y125*'Prevalence Rates'!Y125","v":226.09780022099062},{"$f":"'Population 2016'!Z125*'Prevalence Rates'!Z125","v":342.44037066191271},{"$f":"'Population 2016'!AA125*'Prevalence Rates'!AA125","v":1161.3988303597278},{"$f":"'Population 2016'!AB125*'Prevalence Rates'!AB125","v":244.94772888127937},{"$f":"'Population 2016'!AC125*'Prevalence Rates'!AC125","v":615.35896142620129},{"$f":"'Population 2016'!AD125*'Prevalence Rates'!AD125","v":155.05586478624636},{"$f":"'Population 2016'!AE125*'Prevalence Rates'!AE125","v":118.57213189536486},{"$f":"'Population 2016'!AF125*'Prevalence Rates'!AF125","v":26.450706345889085},{"$f":"'Population 2016'!AG125*'Prevalence Rates'!AG125","v":118.57213189536486},{"$f":"'Population 2016'!AH125*'Prevalence Rates'!AH125","v":546.03986893352635},{"$f":"'Population 2016'!AI125*'Prevalence Rates'!AI125","v":586.17197511349605},{"$f":"'Population 2016'!AJ125*'Prevalence Rates'!AJ125","v":89.48648928513434},{"$f":"'Population 2016'!AK125*'Prevalence Rates'!AK125","v":40.841512097292345},{"$f":"'Population 2016'!AL125*'Prevalence Rates'!AL125","v":75.298370938680421},{"$f":"'Population 2016'!AM125*'Prevalence Rates'!AM125","v":297.13973565573485},{"$f":"'Population 2016'!AN125*'Prevalence Rates'!AN125","v":10.337057652416425},{"$f":"'Population 2016'!AO125*'Prevalence Rates'!AO125","v":10.337057652416425},{"$f":"'Population 2016'!AP125*'Prevalence Rates'!AP125","v":51.178569749708764},{"$f":"'Population 2016'!AQ125*'Prevalence Rates'!AQ125","v":93.033518871747816},{"$f":"'Population 2016'!AR125*'Prevalence Rates'!AR125","v":3244.4172910241118},{"$f":"'Population 2016'!AS125*'Prevalence Rates'!AS125","v":52.090663071980806},{"$f":"'Population 2016'!AT125*'Prevalence Rates'!AT125","v":2.9389673717654539},{"$f":"'Population 2016'!AU125*'Prevalence Rates'!AU125","v":2.9389673717654539},{"$f":"'Population 2016'!AV125*'Prevalence Rates'!AV125","v":83.304523434179416},{"$f":"'Population 2016'!AW125*'Prevalence Rates'!AW125","v":248.90013327779155},{"$f":"'Population 2016'!AX125*'Prevalence Rates'!AX125","v":37.294482510678861},{"$f":"'Population 2016'!AY125*'Prevalence Rates'!AY125","v":417.23202308821976},{"$f":"'Population 2016'!AZ125*'Prevalence Rates'!AZ125","v":187.68853698309036},{"$f":"'Population 2016'!BA125*'Prevalence Rates'!BA125","v":76.311807963427128},{"$f":"'Population 2016'!BB125*'Prevalence Rates'!BB125","v":154.75183367882235},{"$f":"'Population 2016'!BC125*'Prevalence Rates'!BC125","v":20.167396792459495},123]
[null,"Male 45-49",{"$f":"'Population 2016'!C126*'Prevalence Rates'!C126","v":153.73839665407564},{"$f":"'Population 2016'!D126*'Prevalence Rates'!D126","v":216.87552329579557},{"$f":"'Population 2016'!E126*'Prevalence Rates'!E126","v":63.137126641719924},{"$f":"'Population 2016'!F126*'Prevalence Rates'!F126","v":67.49490584813077},{"$f":"'Population 2016'!G126*'Prevalence Rates'!G126","v":50.469163832386073},{"$f":"'Population 2016'!H126*'Prevalence Rates'!H126","v":326.42806567091475},{"$f":"'Population 2016'!I126*'Prevalence Rates'!I126","v":62.022345914498544},{"$f":"'Population 2016'!J126*'Prevalence Rates'!J126","v":97.999360293006688},{"$f":"'Population 2016'!K126*'Prevalence Rates'!K126","v":54.016193418999549},{"$f":"'Population 2016'!L126*'Prevalence Rates'!L126","v":136.91534204328028},{"$f":"'Population 2016'!M126*'Prevalence Rates'!M126","v":136.91534204328028},{"$f":"'Population 2016'!N126*'Prevalence Rates'!N126","v":92.425456656899797},{"$f":"'Population 2016'!O126*'Prevalence Rates'!O126","v":119.4842252176369},{"$f":"'Population 2016'!P126*'Prevalence Rates'!P126","v":57.360535600663688},{"$f":"'Population 2016'!Q126*'Prevalence Rates'!Q126","v":94.857705516291887},{"$f":"'Population 2016'!R126*'Prevalence Rates'!R126","v":28.781611502806513},{"$f":"'Population 2016'!S126*'Prevalence Rates'!S126","v":930.63921982490217},{"$f":"'Population 2016'!T126*'Prevalence Rates'!T126","v":237.2456074932044},{"$f":"'Population 2016'!U126*'Prevalence Rates'!U126","v":23.815770081547644},{"$f":"'Population 2016'!V126*'Prevalence Rates'!V126","v":173.29773123168712},{"$f":"'Population 2016'!W126*'Prevalence Rates'!W126","v":262.98690792177081},{"$f":"'Population 2016'!X126*'Prevalence Rates'!X126","v":262.98690792177081},{"$f":"'Population 2016'!Y126*'Prevalence Rates'!Y126","v":271.29709152469377},{"$f":"'Population 2016'!Z126*'Prevalence Rates'!Z126","v":361.79701783457483},{"$f":"'Population 2016'!AA126*'Prevalence Rates'!AA126","v":1330.03475127758},{"$f":"'Population 2016'!AB126*'Prevalence Rates'!AB126","v":269.77693598757372},{"$f":"'Population 2016'!AC126*'Prevalence Rates'!AC126","v":681.73908654711067},{"$f":"'Population 2016'!AD126*'Prevalence Rates'!AD126","v":195.39065837116536},{"$f":"'Population 2016'!AE126*'Prevalence Rates'!AE126","v":144.92149453877929},{"$f":"'Population 2016'!AF126*'Prevalence Rates'!AF126","v":32.328641089419996},{"$f":"'Population 2016'!AG126*'Prevalence Rates'!AG126","v":144.92149453877929},{"$f":"'Population 2016'!AH126*'Prevalence Rates'!AH126","v":648.2956647304693},{"$f":"'Population 2016'!AI126*'Prevalence Rates'!AI126","v":605.62996598863288},{"$f":"'Population 2016'!AJ126*'Prevalence Rates'!AJ126","v":103.87729503653759},{"$f":"'Population 2016'!AK126*'Prevalence Rates'!AK126","v":52.90141269177817},{"$f":"'Population 2016'!AL126*'Prevalence Rates'!AL126","v":100.53295285487346},{"$f":"'Population 2016'!AM126*'Prevalence Rates'!AM126","v":336.05571740600845},{"$f":"'Population 2016'!AN126*'Prevalence Rates'!AN126","v":10.641088759840436},{"$f":"'Population 2016'!AO126*'Prevalence Rates'!AO126","v":10.641088759840436},{"$f":"'Population 2016'!AP126*'Prevalence Rates'!AP126","v":61.921002212023872},{"$f":"'Population 2016'!AQ126*'Prevalence Rates'!AQ126","v":107.52566832562574},{"$f":"'Population 2016'!AR126*'Prevalence Rates'!AR126","v":3718.0977563907231},{"$f":"'Population 2016'!AS126*'Prevalence Rates'!AS126","v":62.022345914498544},{"$f":"'Population 2016'!AT126*'Prevalence Rates'!AT126","v":1.3174681321707207},{"$f":"'Population 2016'!AU126*'Prevalence Rates'!AU126","v":1.3174681321707207},{"$f":"'Population 2016'!AV126*'Prevalence Rates'!AV126","v":106.41088759840437},{"$f":"'Population 2016'!AW126*'Prevalence Rates'!AW126","v":312.23994732446079},{"$f":"'Population 2016'!AX126*'Prevalence Rates'!AX126","v":43.983166874007139},{"$f":"'Population 2016'!AY126*'Prevalence Rates'!AY126","v":484.82827263882524},{"$f":"'Population 2016'!AZ126*'Prevalence Rates'!AZ126","v":221.84136471705443},{"$f":"'Population 2016'!BA126*'Prevalence Rates'!BA126","v":93.945612194019859},{"$f":"'Population 2016'!BB126*'Prevalence Rates'!BB126","v":169.64935794259895},{"$f":"'Population 2016'!BC126*'Prevalence Rates'!BC126","v":23.815770081547644},124]
[null,"Male 50-54",{"$f":"'Population 2016'!C127*'Prevalence Rates'!C127","v":142.69193308433651},{"$f":"'Population 2016'!D127*'Prevalence Rates'!D127","v":209.27474561019525},{"$f":"'Population 2016'!E127*'Prevalence Rates'!E127","v":66.582812525858728},{"$f":"'Population 2016'!F127*'Prevalence Rates'!F127","v":67.596249550605435},{"$f":"'Population 2016'!G127*'Prevalence Rates'!G127","v":51.887975667031462},{"$f":"'Population 2016'!H127*'Prevalence Rates'!H127","v":345.17665062872885},{"$f":"'Population 2016'!I127*'Prevalence Rates'!I127","v":70.231185814946883},{"$f":"'Population 2016'!J127*'Prevalence Rates'!J127","v":99.012797317753396},{"$f":"'Population 2016'!K127*'Prevalence Rates'!K127","v":50.469163832386073},{"$f":"'Population 2016'!L127*'Prevalence Rates'!L127","v":160.32573731492926},{"$f":"'Population 2016'!M127*'Prevalence Rates'!M127","v":160.32573731492926},{"$f":"'Population 2016'!N127*'Prevalence Rates'!N127","v":85.939459698520864},{"$f":"'Population 2016'!O127*'Prevalence Rates'!O127","v":125.0581288537438},{"$f":"'Population 2016'!P127*'Prevalence Rates'!P127","v":73.575527996611015},{"$f":"'Population 2016'!Q127*'Prevalence Rates'!Q127","v":102.55982690436687},{"$f":"'Population 2016'!R127*'Prevalence Rates'!R127","v":34.65954624633742},{"$f":"'Population 2016'!S127*'Prevalence Rates'!S127","v":956.48186395594325},{"$f":"'Population 2016'!T127*'Prevalence Rates'!T127","v":228.42870537790805},{"$f":"'Population 2016'!U127*'Prevalence Rates'!U127","v":26.248018940939744},{"$f":"'Population 2016'!V127*'Prevalence Rates'!V127","v":168.43323351290292},{"$f":"'Population 2016'!W127*'Prevalence Rates'!W127","v":274.23605889645927},{"$f":"'Population 2016'!X127*'Prevalence Rates'!X127","v":274.23605889645927},{"$f":"'Population 2016'!Y127*'Prevalence Rates'!Y127","v":267.4460308306563},{"$f":"'Population 2016'!Z127*'Prevalence Rates'!Z127","v":349.73711724008899},{"$f":"'Population 2016'!AA127*'Prevalence Rates'!AA127","v":1370.9776070773469},{"$f":"'Population 2016'!AB127*'Prevalence Rates'!AB127","v":260.45331535990402},{"$f":"'Population 2016'!AC127*'Prevalence Rates'!AC127","v":712.85160320683462},{"$f":"'Population 2016'!AD127*'Prevalence Rates'!AD127","v":215.3553677586755},{"$f":"'Population 2016'!AE127*'Prevalence Rates'!AE127","v":163.46739209164403},{"$f":"'Population 2016'!AF127*'Prevalence Rates'!AF127","v":42.463011336887078},{"$f":"'Population 2016'!AG127*'Prevalence Rates'!AG127","v":163.46739209164403},{"$f":"'Population 2016'!AH127*'Prevalence Rates'!AH127","v":658.12600387051236},{"$f":"'Population 2016'!AI127*'Prevalence Rates'!AI127","v":612.01461924453713},{"$f":"'Population 2016'!AJ127*'Prevalence Rates'!AJ127","v":112.69419715183396},{"$f":"'Population 2016'!AK127*'Prevalence Rates'!AK127","v":51.178569749708764},{"$f":"'Population 2016'!AL127*'Prevalence Rates'!AL127","v":101.95176468951885},{"$f":"'Population 2016'!AM127*'Prevalence Rates'!AM127","v":342.33902695943806},{"$f":"'Population 2016'!AN127*'Prevalence Rates'!AN127","v":12.059900594485828},{"$f":"'Population 2016'!AO127*'Prevalence Rates'!AO127","v":12.059900594485828},{"$f":"'Population 2016'!AP127*'Prevalence Rates'!AP127","v":61.008908889751837},{"$f":"'Population 2016'!AQ127*'Prevalence Rates'!AQ127","v":113.50494677163132},{"$f":"'Population 2016'!AR127*'Prevalence Rates'!AR127","v":3832.7174838895758},{"$f":"'Population 2016'!AS127*'Prevalence Rates'!AS127","v":70.231185814946883},{"$f":"'Population 2016'!AT127*'Prevalence Rates'!AT127","v":3.6483732890881497},{"$f":"'Population 2016'!AU127*'Prevalence Rates'!AU127","v":3.6483732890881497},{"$f":"'Population 2016'!AV127*'Prevalence Rates'!AV127","v":118.16675708546619},{"$f":"'Population 2016'!AW127*'Prevalence Rates'!AW127","v":315.78697691107431},{"$f":"'Population 2016'!AX127*'Prevalence Rates'!AX127","v":48.543633485367323},{"$f":"'Population 2016'!AY127*'Prevalence Rates'!AY127","v":488.78067703533736},{"$f":"'Population 2016'!AZ127*'Prevalence Rates'!AZ127","v":214.54461813887812},{"$f":"'Population 2016'!BA127*'Prevalence Rates'!BA127","v":98.911453615278731},{"$f":"'Population 2016'!BB127*'Prevalence Rates'!BB127","v":168.33188981042824},{"$f":"'Population 2016'!BC127*'Prevalence Rates'!BC127","v":26.248018940939744},125]
[null,"Male 55-59",{"$f":"'Population 2016'!C128*'Prevalence Rates'!C128","v":183.45935494409966},{"$f":"'Population 2016'!D128*'Prevalence Rates'!D128","v":269.16202833675845},{"$f":"'Population 2016'!E128*'Prevalence Rates'!E128","v":85.702673392658824},{"$f":"'Population 2016'!F128*'Prevalence Rates'!F128","v":74.575896630706211},{"$f":"'Population 2016'!G128*'Prevalence Rates'!G128","v":71.794202440218058},{"$f":"'Population 2016'!H128*'Prevalence Rates'!H128","v":417.254128573223},{"$f":"'Population 2016'!I128*'Prevalence Rates'!I128","v":88.881752467502423},{"$f":"'Population 2016'!J128*'Prevalence Rates'!J128","v":120.67254321593846},{"$f":"'Population 2016'!K128*'Prevalence Rates'!K128","v":59.342809397080607},{"$f":"'Population 2016'!L128*'Prevalence Rates'!L128","v":202.66629102127976},{"$f":"'Population 2016'!M128*'Prevalence Rates'!M128","v":202.66629102127976},{"$f":"'Population 2016'!N128*'Prevalence Rates'!N128","v":104.379762957365},{"$f":"'Population 2016'!O128*'Prevalence Rates'!O128","v":150.47640954259725},{"$f":"'Population 2016'!P128*'Prevalence Rates'!P128","v":82.391132689696732},{"$f":"'Population 2016'!Q128*'Prevalence Rates'!Q128","v":125.83854671255932},{"$f":"'Population 2016'!R128*'Prevalence Rates'!R128","v":37.354179129412344},{"$f":"'Population 2016'!S128*'Prevalence Rates'!S128","v":1141.5543111250909},{"$f":"'Population 2016'!T128*'Prevalence Rates'!T128","v":256.57817366550256},{"$f":"'Population 2016'!U128*'Prevalence Rates'!U128","v":34.04263842645026},{"$f":"'Population 2016'!V128*'Prevalence Rates'!V128","v":200.94428985573947},{"$f":"'Population 2016'!W128*'Prevalence Rates'!W128","v":334.06822611481539},{"$f":"'Population 2016'!X128*'Prevalence Rates'!X128","v":334.06822611481539},{"$f":"'Population 2016'!Y128*'Prevalence Rates'!Y128","v":321.61683307167795},{"$f":"'Population 2016'!Z128*'Prevalence Rates'!Z128","v":410.49858553918034},{"$f":"'Population 2016'!AA128*'Prevalence Rates'!AA128","v":1650.6043479844229},{"$f":"'Population 2016'!AB128*'Prevalence Rates'!AB128","v":331.02160866809027},{"$f":"'Population 2016'!AC128*'Prevalence Rates'!AC128","v":846.56226530522804},{"$f":"'Population 2016'!AD128*'Prevalence Rates'!AD128","v":276.97726439574899},{"$f":"'Population 2016'!AE128*'Prevalence Rates'!AE128","v":205.18306195553095},{"$f":"'Population 2016'!AF128*'Prevalence Rates'!AF128","v":50.46788031314221},{"$f":"'Population 2016'!AG128*'Prevalence Rates'!AG128","v":205.18306195553095},{"$f":"'Population 2016'!AH128*'Prevalence Rates'!AH128","v":804.04208267919489},{"$f":"'Population 2016'!AI128*'Prevalence Rates'!AI128","v":718.60433254277302},{"$f":"'Population 2016'!AJ128*'Prevalence Rates'!AJ128","v":138.95224789628918},{"$f":"'Population 2016'!AK128*'Prevalence Rates'!AK128","v":61.859580331331792},{"$f":"'Population 2016'!AL128*'Prevalence Rates'!AL128","v":121.06992810029392},{"$f":"'Population 2016'!AM128*'Prevalence Rates'!AM128","v":402.94827273642682},{"$f":"'Population 2016'!AN128*'Prevalence Rates'!AN128","v":14.570779093033185},{"$f":"'Population 2016'!AO128*'Prevalence Rates'!AO128","v":14.570779093033185},{"$f":"'Population 2016'!AP128*'Prevalence Rates'!AP128","v":68.217738481018998},{"$f":"'Population 2016'!AQ128*'Prevalence Rates'!AQ128","v":139.7470176650001},{"$f":"'Population 2016'!AR128*'Prevalence Rates'!AR128","v":4640.9256027591882},{"$f":"'Population 2016'!AS128*'Prevalence Rates'!AS128","v":88.881752467502423},{"$f":"'Population 2016'!AT128*'Prevalence Rates'!AT128","v":3.4440023310805712},{"$f":"'Population 2016'!AU128*'Prevalence Rates'!AU128","v":3.4440023310805712},{"$f":"'Population 2016'!AV128*'Prevalence Rates'!AV128","v":145.70779093033184},{"$f":"'Population 2016'!AW128*'Prevalence Rates'!AW128","v":401.09380994276802},{"$f":"'Population 2016'!AX128*'Prevalence Rates'!AX128","v":61.329733818857861},{"$f":"'Population 2016'!AY128*'Prevalence Rates'!AY128","v":581.24162418390563},{"$f":"'Population 2016'!AZ128*'Prevalence Rates'!AZ128","v":247.17339806909021},{"$f":"'Population 2016'!BA128*'Prevalence Rates'!BA128","v":126.10346996879629},{"$f":"'Population 2016'!BB128*'Prevalence Rates'!BB128","v":197.23536426842193},{"$f":"'Population 2016'!BC128*'Prevalence Rates'!BC128","v":34.04263842645026},126]
[null,"Male 60-64",{"$f":"'Population 2016'!C129*'Prevalence Rates'!C129","v":150.07902465824179},{"$f":"'Population 2016'!D129*'Prevalence Rates'!D129","v":222.13815035469682},{"$f":"'Population 2016'!E129*'Prevalence Rates'!E129","v":72.059125696455027},{"$f":"'Population 2016'!F129*'Prevalence Rates'!F129","v":74.178511746350765},{"$f":"'Population 2016'!G129*'Prevalence Rates'!G129","v":66.893122199834167},{"$f":"'Population 2016'!H129*'Prevalence Rates'!H129","v":366.38886337572535},{"$f":"'Population 2016'!I129*'Prevalence Rates'!I129","v":85.040365252066408},{"$f":"'Population 2016'!J129*'Prevalence Rates'!J129","v":101.46560713875836},{"$f":"'Population 2016'!K129*'Prevalence Rates'!K129","v":54.574190784815201},{"$f":"'Population 2016'!L129*'Prevalence Rates'!L129","v":183.32689331598115},{"$f":"'Population 2016'!M129*'Prevalence Rates'!M129","v":183.32689331598115},{"$f":"'Population 2016'!N129*'Prevalence Rates'!N129","v":86.762366417606685},{"$f":"'Population 2016'!O129*'Prevalence Rates'!O129","v":126.23593159691477},{"$f":"'Population 2016'!P129*'Prevalence Rates'!P129","v":65.171121034293876},{"$f":"'Population 2016'!Q129*'Prevalence Rates'!Q129","v":99.213759460744143},{"$f":"'Population 2016'!R129*'Prevalence Rates'!R129","v":34.04263842645026},{"$f":"'Population 2016'!S129*'Prevalence Rates'!S129","v":971.73850387719494},{"$f":"'Population 2016'!T129*'Prevalence Rates'!T129","v":203.1961375337537},{"$f":"'Population 2016'!U129*'Prevalence Rates'!U129","v":34.307561682687229},{"$f":"'Population 2016'!V129*'Prevalence Rates'!V129","v":165.44457351998588},{"$f":"'Population 2016'!W129*'Prevalence Rates'!W129","v":300.68789582895755},{"$f":"'Population 2016'!X129*'Prevalence Rates'!X129","v":300.68789582895755},{"$f":"'Population 2016'!Y129*'Prevalence Rates'!Y129","v":266.91018065874425},{"$f":"'Population 2016'!Z129*'Prevalence Rates'!Z129","v":326.78283656829882},{"$f":"'Population 2016'!AA129*'Prevalence Rates'!AA129","v":1387.2706312848777},{"$f":"'Population 2016'!AB129*'Prevalence Rates'!AB129","v":271.67879927100967},{"$f":"'Population 2016'!AC129*'Prevalence Rates'!AC129","v":689.33031272858818},{"$f":"'Population 2016'!AD129*'Prevalence Rates'!AD129","v":248.8953992346305},{"$f":"'Population 2016'!AE129*'Prevalence Rates'!AE129","v":182.00227703479632},{"$f":"'Population 2016'!AF129*'Prevalence Rates'!AF129","v":38.016487270004767},{"$f":"'Population 2016'!AG129*'Prevalence Rates'!AG129","v":182.00227703479632},{"$f":"'Population 2016'!AH129*'Prevalence Rates'!AH129","v":697.94031855628953},{"$f":"'Population 2016'!AI129*'Prevalence Rates'!AI129","v":586.01024279617104},{"$f":"'Population 2016'!AJ129*'Prevalence Rates'!AJ129","v":121.99715949712331},{"$f":"'Population 2016'!AK129*'Prevalence Rates'!AK129","v":49.540648916312826},{"$f":"'Population 2016'!AL129*'Prevalence Rates'!AL129","v":112.19499901635552},{"$f":"'Population 2016'!AM129*'Prevalence Rates'!AM129","v":361.35532150722298},{"$f":"'Population 2016'!AN129*'Prevalence Rates'!AN129","v":14.438317464914702},{"$f":"'Population 2016'!AO129*'Prevalence Rates'!AO129","v":14.438317464914702},{"$f":"'Population 2016'!AP129*'Prevalence Rates'!AP129","v":62.521888471924214},{"$f":"'Population 2016'!AQ129*'Prevalence Rates'!AQ129","v":122.26208275336027},{"$f":"'Population 2016'!AR129*'Prevalence Rates'!AR129","v":3971.1996109921351},{"$f":"'Population 2016'!AS129*'Prevalence Rates'!AS129","v":85.040365252066408},{"$f":"'Population 2016'!AT129*'Prevalence Rates'!AT129","v":2.7816941904881536},{"$f":"'Population 2016'!AU129*'Prevalence Rates'!AU129","v":2.7816941904881536},{"$f":"'Population 2016'!AV129*'Prevalence Rates'!AV129","v":127.95793276245506},{"$f":"'Population 2016'!AW129*'Prevalence Rates'!AW129","v":336.58499704906654},{"$f":"'Population 2016'!AX129*'Prevalence Rates'!AX129","v":46.891416353943157},{"$f":"'Population 2016'!AY129*'Prevalence Rates'!AY129","v":524.15066246483923},{"$f":"'Population 2016'!AZ129*'Prevalence Rates'!AZ129","v":223.46276663588165},{"$f":"'Population 2016'!BA129*'Prevalence Rates'!BA129","v":103.05514667618016},{"$f":"'Population 2016'!BB129*'Prevalence Rates'!BB129","v":161.60318630454987},{"$f":"'Population 2016'!BC129*'Prevalence Rates'!BC129","v":34.307561682687229},127]
[null,"Male 65-69",{"$f":"'Population 2016'!C130*'Prevalence Rates'!C130","v":136.96532347451193},{"$f":"'Population 2016'!D130*'Prevalence Rates'!D130","v":221.21091895786745},{"$f":"'Population 2016'!E130*'Prevalence Rates'!E130","v":84.245595483355501},{"$f":"'Population 2016'!F130*'Prevalence Rates'!F130","v":79.212053614853133},{"$f":"'Population 2016'!G130*'Prevalence Rates'!G130","v":72.456510580810473},{"$f":"'Population 2016'!H130*'Prevalence Rates'!H130","v":390.76180294952633},{"$f":"'Population 2016'!I130*'Prevalence Rates'!I130","v":87.557136186317592},{"$f":"'Population 2016'!J130*'Prevalence Rates'!J130","v":105.9693024947868},{"$f":"'Population 2016'!K130*'Prevalence Rates'!K130","v":53.514497759867332},{"$f":"'Population 2016'!L130*'Prevalence Rates'!L130","v":203.59352241810913},{"$f":"'Population 2016'!M130*'Prevalence Rates'!M130","v":203.59352241810913},{"$f":"'Population 2016'!N130*'Prevalence Rates'!N130","v":96.43206527025599},{"$f":"'Population 2016'!O130*'Prevalence Rates'!O130","v":127.03070136562567},{"$f":"'Population 2016'!P130*'Prevalence Rates'!P130","v":58.680501256488192},{"$f":"'Population 2016'!Q130*'Prevalence Rates'!Q130","v":101.33314551063988},{"$f":"'Population 2016'!R130*'Prevalence Rates'!R130","v":26.757248879933666},{"$f":"'Population 2016'!S130*'Prevalence Rates'!S130","v":974.25527481144616},{"$f":"'Population 2016'!T130*'Prevalence Rates'!T130","v":187.83058867200961},{"$f":"'Population 2016'!U130*'Prevalence Rates'!U130","v":33.777715170213291},{"$f":"'Population 2016'!V130*'Prevalence Rates'!V130","v":185.18135610963992},{"$f":"'Population 2016'!W130*'Prevalence Rates'!W130","v":311.4172877065547},{"$f":"'Population 2016'!X130*'Prevalence Rates'!X130","v":311.4172877065547},{"$f":"'Population 2016'!Y130*'Prevalence Rates'!Y130","v":291.15065860442672},{"$f":"'Population 2016'!Z130*'Prevalence Rates'!Z130","v":271.28141438665421},{"$f":"'Population 2016'!AA130*'Prevalence Rates'!AA130","v":1254.5440799101573},{"$f":"'Population 2016'!AB130*'Prevalence Rates'!AB130","v":272.07618415536513},{"$f":"'Population 2016'!AC130*'Prevalence Rates'!AC130","v":597.26948118624205},{"$f":"'Population 2016'!AD130*'Prevalence Rates'!AD130","v":265.32064112132247},{"$f":"'Population 2016'!AE130*'Prevalence Rates'!AE130","v":192.86413054051198},{"$f":"'Population 2016'!AF130*'Prevalence Rates'!AF130","v":35.897101220109029},{"$f":"'Population 2016'!AG130*'Prevalence Rates'!AG130","v":192.86413054051198},{"$f":"'Population 2016'!AH130*'Prevalence Rates'!AH130","v":657.27459872391512},{"$f":"'Population 2016'!AI130*'Prevalence Rates'!AI130","v":575.28085091857383},{"$f":"'Population 2016'!AJ130*'Prevalence Rates'!AJ130","v":116.69869437238397},{"$f":"'Population 2016'!AK130*'Prevalence Rates'!AK130","v":50.865265197497664},{"$f":"'Population 2016'!AL130*'Prevalence Rates'!AL130","v":116.96361762862092},{"$f":"'Population 2016'!AM130*'Prevalence Rates'!AM130","v":339.23422961143626},{"$f":"'Population 2016'!AN130*'Prevalence Rates'!AN130","v":16.027857002336503},{"$f":"'Population 2016'!AO130*'Prevalence Rates'!AO130","v":16.027857002336503},{"$f":"'Population 2016'!AP130*'Prevalence Rates'!AP130","v":57.488346603421839},{"$f":"'Population 2016'!AQ130*'Prevalence Rates'!AQ130","v":111.53269087576311},{"$f":"'Population 2016'!AR130*'Prevalence Rates'!AR130","v":3937.6868190781588},{"$f":"'Population 2016'!AS130*'Prevalence Rates'!AS130","v":87.557136186317592},{"$f":"'Population 2016'!AT130*'Prevalence Rates'!AT130","v":3.0466174467251204},{"$f":"'Population 2016'!AU130*'Prevalence Rates'!AU130","v":3.0466174467251204},{"$f":"'Population 2016'!AV130*'Prevalence Rates'!AV130","v":146.76748395527972},{"$f":"'Population 2016'!AW130*'Prevalence Rates'!AW130","v":318.04036911247886},{"$f":"'Population 2016'!AX130*'Prevalence Rates'!AX130","v":52.454804734919463},{"$f":"'Population 2016'!AY130*'Prevalence Rates'!AY130","v":544.54975319508571},{"$f":"'Population 2016'!AZ130*'Prevalence Rates'!AZ130","v":233.13246548853095},{"$f":"'Population 2016'!BA130*'Prevalence Rates'!BA130","v":93.120524567293899},{"$f":"'Population 2016'!BB130*'Prevalence Rates'!BB130","v":169.4184223635404},{"$f":"'Population 2016'!BC130*'Prevalence Rates'!BC130","v":33.777715170213291},128]
[null,"Male 70-74",{"$f":"'Population 2016'!C131*'Prevalence Rates'!C131","v":89.014214095620915},{"$f":"'Population 2016'!D131*'Prevalence Rates'!D131","v":146.1051758146873},{"$f":"'Population 2016'!E131*'Prevalence Rates'!E131","v":57.090961719066385},{"$f":"'Population 2016'!F131*'Prevalence Rates'!F131","v":53.779421016104301},{"$f":"'Population 2016'!G131*'Prevalence Rates'!G131","v":57.355884975303354},{"$f":"'Population 2016'!H131*'Prevalence Rates'!H131","v":288.63388767017557},{"$f":"'Population 2016'!I131*'Prevalence Rates'!I131","v":62.786811728161176},{"$f":"'Population 2016'!J131*'Prevalence Rates'!J131","v":70.337124530914735},{"$f":"'Population 2016'!K131*'Prevalence Rates'!K131","v":38.016487270004767},{"$f":"'Population 2016'!L131*'Prevalence Rates'!L131","v":153.78795024555933},{"$f":"'Population 2016'!M131*'Prevalence Rates'!M131","v":153.78795024555933},{"$f":"'Population 2016'!N131*'Prevalence Rates'!N131","v":65.965890803004783},{"$f":"'Population 2016'!O131*'Prevalence Rates'!O131","v":95.637295501545083},{"$f":"'Population 2016'!P131*'Prevalence Rates'!P131","v":42.255259369796235},{"$f":"'Population 2016'!Q131*'Prevalence Rates'!Q131","v":72.324048952691996},{"$f":"'Population 2016'!R131*'Prevalence Rates'!R131","v":16.027857002336503},{"$f":"'Population 2016'!S131*'Prevalence Rates'!S131","v":717.8095627740621},{"$f":"'Population 2016'!T131*'Prevalence Rates'!T131","v":136.5679385901565},{"$f":"'Population 2016'!U131*'Prevalence Rates'!U131","v":21.59124538331281},{"$f":"'Population 2016'!V131*'Prevalence Rates'!V131","v":129.81239555611384},{"$f":"'Population 2016'!W131*'Prevalence Rates'!W131","v":224.12507477647409},{"$f":"'Population 2016'!X131*'Prevalence Rates'!X131","v":224.12507477647409},{"$f":"'Population 2016'!Y131*'Prevalence Rates'!Y131","v":200.14952008702858},{"$f":"'Population 2016'!Z131*'Prevalence Rates'!Z131","v":200.81182822762099},{"$f":"'Population 2016'!AA131*'Prevalence Rates'!AA131","v":979.28881667994847},{"$f":"'Population 2016'!AB131*'Prevalence Rates'!AB131","v":185.57874099399538},{"$f":"'Population 2016'!AC131*'Prevalence Rates'!AC131","v":459.11200305866379},{"$f":"'Population 2016'!AD131*'Prevalence Rates'!AD131","v":199.75213520267312},{"$f":"'Population 2016'!AE131*'Prevalence Rates'!AE131","v":142.39625022736976},{"$f":"'Population 2016'!AF131*'Prevalence Rates'!AF131","v":28.611711673592435},{"$f":"'Population 2016'!AG131*'Prevalence Rates'!AG131","v":142.39625022736976},{"$f":"'Population 2016'!AH131*'Prevalence Rates'!AH131","v":520.17681362128474},{"$f":"'Population 2016'!AI131*'Prevalence Rates'!AI131","v":430.89767626942682},{"$f":"'Population 2016'!AJ131*'Prevalence Rates'!AJ131","v":90.073907120568776},{"$f":"'Population 2016'!AK131*'Prevalence Rates'!AK131","v":39.473565179308082},{"$f":"'Population 2016'!AL131*'Prevalence Rates'!AL131","v":80.801593152274933},{"$f":"'Population 2016'!AM131*'Prevalence Rates'!AM131","v":265.58556437755942},{"$f":"'Population 2016'!AN131*'Prevalence Rates'!AN131","v":12.981239555611383},{"$f":"'Population 2016'!AO131*'Prevalence Rates'!AO131","v":12.981239555611383},{"$f":"'Population 2016'!AP131*'Prevalence Rates'!AP131","v":38.546333782478698},{"$f":"'Population 2016'!AQ131*'Prevalence Rates'!AQ131","v":93.252986195412376},{"$f":"'Population 2016'!AR131*'Prevalence Rates'!AR131","v":2921.043823268798},{"$f":"'Population 2016'!AS131*'Prevalence Rates'!AS131","v":62.786811728161176},{"$f":"'Population 2016'!AT131*'Prevalence Rates'!AT131","v":3.179079074843604},{"$f":"'Population 2016'!AU131*'Prevalence Rates'!AU131","v":3.179079074843604},{"$f":"'Population 2016'!AV131*'Prevalence Rates'!AV131","v":112.19499901635552},{"$f":"'Population 2016'!AW131*'Prevalence Rates'!AW131","v":254.59124924372529},{"$f":"'Population 2016'!AX131*'Prevalence Rates'!AX131","v":32.320637260909976},{"$f":"'Population 2016'!AY131*'Prevalence Rates'!AY131","v":382.41672037806188},{"$f":"'Population 2016'!AZ131*'Prevalence Rates'!AZ131","v":158.29164560158779},{"$f":"'Population 2016'!BA131*'Prevalence Rates'!BA131","v":78.152360589905271},{"$f":"'Population 2016'!BB131*'Prevalence Rates'!BB131","v":131.93178160600957},{"$f":"'Population 2016'!BC131*'Prevalence Rates'!BC131","v":21.59124538331281},129]
[null,"Male 75-79",{"$f":"'Population 2016'!C132*'Prevalence Rates'!C132","v":73.913588490113796},{"$f":"'Population 2016'!D132*'Prevalence Rates'!D132","v":117.09607925673942},{"$f":"'Population 2016'!E132*'Prevalence Rates'!E132","v":43.182490766625619},{"$f":"'Population 2016'!F132*'Prevalence Rates'!F132","v":40.135873319900497},{"$f":"'Population 2016'!G132*'Prevalence Rates'!G132","v":42.520182626033204},{"$f":"'Population 2016'!H132*'Prevalence Rates'!H132","v":221.60830384222288},{"$f":"'Population 2016'!I132*'Prevalence Rates'!I132","v":46.361569841469226},{"$f":"'Population 2016'!J132*'Prevalence Rates'!J132","v":56.031268694118523},{"$f":"'Population 2016'!K132*'Prevalence Rates'!K132","v":28.346788417355469},{"$f":"'Population 2016'!L132*'Prevalence Rates'!L132","v":121.73223624088634},{"$f":"'Population 2016'!M132*'Prevalence Rates'!M132","v":121.73223624088634},{"$f":"'Population 2016'!N132*'Prevalence Rates'!N132","v":59.077886140843638},{"$f":"'Population 2016'!O132*'Prevalence Rates'!O132","v":76.165436168128011},{"$f":"'Population 2016'!P132*'Prevalence Rates'!P132","v":37.354179129412344},{"$f":"'Population 2016'!Q132*'Prevalence Rates'!Q132","v":61.329733818857861},{"$f":"'Population 2016'!R132*'Prevalence Rates'!R132","v":12.981239555611383},{"$f":"'Population 2016'!S132*'Prevalence Rates'!S132","v":533.8203613174885},{"$f":"'Population 2016'!T132*'Prevalence Rates'!T132","v":99.34622108886262},{"$f":"'Population 2016'!U132*'Prevalence Rates'!U132","v":19.206936077180107},{"$f":"'Population 2016'!V132*'Prevalence Rates'!V132","v":96.034680385900543},{"$f":"'Population 2016'!W132*'Prevalence Rates'!W132","v":169.02103747918494},{"$f":"'Population 2016'!X132*'Prevalence Rates'!X132","v":169.02103747918494},{"$f":"'Population 2016'!Y132*'Prevalence Rates'!Y132","v":152.06594908001907},{"$f":"'Population 2016'!Z132*'Prevalence Rates'!Z132","v":149.81410140200484},{"$f":"'Population 2016'!AA132*'Prevalence Rates'!AA132","v":735.69188257005737},{"$f":"'Population 2016'!AB132*'Prevalence Rates'!AB132","v":144.51563627726549},{"$f":"'Population 2016'!AC132*'Prevalence Rates'!AC132","v":355.12962498565423},{"$f":"'Population 2016'!AD132*'Prevalence Rates'!AD132","v":141.20409557430341},{"$f":"'Population 2016'!AE132*'Prevalence Rates'!AE132","v":98.683912948270205},{"$f":"'Population 2016'!AF132*'Prevalence Rates'!AF132","v":20.134167474009491},{"$f":"'Population 2016'!AG132*'Prevalence Rates'!AG132","v":98.683912948270205},{"$f":"'Population 2016'!AH132*'Prevalence Rates'!AH132","v":380.56225758440308},{"$f":"'Population 2016'!AI132*'Prevalence Rates'!AI132","v":318.43775399683432},{"$f":"'Population 2016'!AJ132*'Prevalence Rates'!AJ132","v":62.521888471924214},{"$f":"'Population 2016'!AK132*'Prevalence Rates'!AK132","v":27.419557020526085},{"$f":"'Population 2016'!AL132*'Prevalence Rates'!AL132","v":61.992041959450276},{"$f":"'Population 2016'!AM132*'Prevalence Rates'!AM132","v":197.23536426842193},{"$f":"'Population 2016'!AN132*'Prevalence Rates'!AN132","v":10.729391877597163},{"$f":"'Population 2016'!AO132*'Prevalence Rates'!AO132","v":10.729391877597163},{"$f":"'Population 2016'!AP132*'Prevalence Rates'!AP132","v":30.598636095369688},{"$f":"'Population 2016'!AQ132*'Prevalence Rates'!AQ132","v":78.01989896178678},{"$f":"'Population 2016'!AR132*'Prevalence Rates'!AR132","v":2211.4468814380821},{"$f":"'Population 2016'!AS132*'Prevalence Rates'!AS132","v":46.361569841469226},{"$f":"'Population 2016'!AT132*'Prevalence Rates'!AT132","v":1.059693024947868},{"$f":"'Population 2016'!AU132*'Prevalence Rates'!AU132","v":1.059693024947868},{"$f":"'Population 2016'!AV132*'Prevalence Rates'!AV132","v":83.450825714644608},{"$f":"'Population 2016'!AW132*'Prevalence Rates'!AW132","v":183.32689331598115},{"$f":"'Population 2016'!AX132*'Prevalence Rates'!AX132","v":27.68448027676305},{"$f":"'Population 2016'!AY132*'Prevalence Rates'!AY132","v":298.83343303529875},{"$f":"'Population 2016'!AZ132*'Prevalence Rates'!AZ132","v":129.81239555611384},{"$f":"'Population 2016'!BA132*'Prevalence Rates'!BA132","v":56.826038462829423},{"$f":"'Population 2016'!BB132*'Prevalence Rates'!BB132","v":95.239910617189636},{"$f":"'Population 2016'!BC132*'Prevalence Rates'!BC132","v":19.206936077180107},130]
[null,"Male 80-84",{"$f":"'Population 2016'!C133*'Prevalence Rates'!C133","v":59.740194281436061},{"$f":"'Population 2016'!D133*'Prevalence Rates'!D133","v":95.239910617189636},{"$f":"'Population 2016'!E133*'Prevalence Rates'!E133","v":35.499716335753575},{"$f":"'Population 2016'!F133*'Prevalence Rates'!F133","v":30.068789582895754},{"$f":"'Population 2016'!G133*'Prevalence Rates'!G133","v":27.949403533000019},{"$f":"'Population 2016'!H133*'Prevalence Rates'!H133","v":137.62763161510435},{"$f":"'Population 2016'!I133*'Prevalence Rates'!I133","v":29.274019814184854},{"$f":"'Population 2016'!J133*'Prevalence Rates'!J133","v":35.897101220109029},{"$f":"'Population 2016'!K133*'Prevalence Rates'!K133","v":16.822626771047403},{"$f":"'Population 2016'!L133*'Prevalence Rates'!L133","v":77.225129193075887},{"$f":"'Population 2016'!M133*'Prevalence Rates'!M133","v":77.225129193075887},{"$f":"'Population 2016'!N133*'Prevalence Rates'!N133","v":39.341103551189597},{"$f":"'Population 2016'!O133*'Prevalence Rates'!O133","v":47.28880123829861},{"$f":"'Population 2016'!P133*'Prevalence Rates'!P133","v":26.757248879933666},{"$f":"'Population 2016'!Q133*'Prevalence Rates'!Q133","v":42.91756751038865},{"$f":"'Population 2016'!R133*'Prevalence Rates'!R133","v":10.861853505715647},{"$f":"'Population 2016'!S133*'Prevalence Rates'!S133","v":362.94486104464477},{"$f":"'Population 2016'!T133*'Prevalence Rates'!T133","v":72.324048952691996},{"$f":"'Population 2016'!U133*'Prevalence Rates'!U133","v":11.789084902545031},{"$f":"'Population 2016'!V133*'Prevalence Rates'!V133","v":69.542354762203843},{"$f":"'Population 2016'!W133*'Prevalence Rates'!W133","v":116.30130948802851},{"$f":"'Population 2016'!X133*'Prevalence Rates'!X133","v":116.30130948802851},{"$f":"'Population 2016'!Y133*'Prevalence Rates'!Y133","v":105.43945598231286},{"$f":"'Population 2016'!Z133*'Prevalence Rates'!Z133","v":105.9693024947868},{"$f":"'Population 2016'!AA133*'Prevalence Rates'!AA133","v":504.28141824706665},{"$f":"'Population 2016'!AB133*'Prevalence Rates'!AB133","v":114.8442315787252},{"$f":"'Population 2016'!AC133*'Prevalence Rates'!AC133","v":247.57078295344567},{"$f":"'Population 2016'!AD133*'Prevalence Rates'!AD133","v":92.325754798582992},{"$f":"'Population 2016'!AE133*'Prevalence Rates'!AE133","v":64.376351265582983},{"$f":"'Population 2016'!AF133*'Prevalence Rates'!AF133","v":14.173394208677735},{"$f":"'Population 2016'!AG133*'Prevalence Rates'!AG133","v":64.376351265582983},{"$f":"'Population 2016'!AH133*'Prevalence Rates'!AH133","v":256.71063529362101},{"$f":"'Population 2016'!AI133*'Prevalence Rates'!AI133","v":217.36953174243143},{"$f":"'Population 2016'!AJ133*'Prevalence Rates'!AJ133","v":38.943718666834151},{"$f":"'Population 2016'!AK133*'Prevalence Rates'!AK133","v":19.604320961535556},{"$f":"'Population 2016'!AL133*'Prevalence Rates'!AL133","v":38.678795410597182},{"$f":"'Population 2016'!AM133*'Prevalence Rates'!AM133","v":132.72655137472046},{"$f":"'Population 2016'!AN133*'Prevalence Rates'!AN133","v":4.6361569841469228},{"$f":"'Population 2016'!AO133*'Prevalence Rates'!AO133","v":4.6361569841469228},{"$f":"'Population 2016'!AP133*'Prevalence Rates'!AP133","v":19.869244217772525},{"$f":"'Population 2016'!AQ133*'Prevalence Rates'!AQ133","v":54.706652412933686},{"$f":"'Population 2016'!AR133*'Prevalence Rates'!AR133","v":1501.1876314667734},{"$f":"'Population 2016'!AS133*'Prevalence Rates'!AS133","v":29.274019814184854},{"$f":"'Population 2016'!AT133*'Prevalence Rates'!AT133","v":0.79476976871090099},{"$f":"'Population 2016'!AU133*'Prevalence Rates'!AU133","v":0.79476976871090099},{"$f":"'Population 2016'!AV133*'Prevalence Rates'!AV133","v":51.660034966208563},{"$f":"'Population 2016'!AW133*'Prevalence Rates'!AW133","v":123.98408391890055},{"$f":"'Population 2016'!AX133*'Prevalence Rates'!AX133","v":19.074474449061626},{"$f":"'Population 2016'!AY133*'Prevalence Rates'!AY133","v":205.58044683988638},{"$f":"'Population 2016'!AZ133*'Prevalence Rates'!AZ133","v":89.279137351857884},{"$f":"'Population 2016'!BA133*'Prevalence Rates'!BA133","v":35.102331451398129},{"$f":"'Population 2016'!BB133*'Prevalence Rates'!BB133","v":63.184196612516629},{"$f":"'Population 2016'!BC133*'Prevalence Rates'!BC133","v":11.789084902545031},131]
[null,"Male 85-89",{"$f":"'Population 2016'!C134*'Prevalence Rates'!C134","v":30.598636095369688},{"$f":"'Population 2016'!D134*'Prevalence Rates'!D134","v":44.242183791573488},{"$f":"'Population 2016'!E134*'Prevalence Rates'!E134","v":13.6435476962038},{"$f":"'Population 2016'!F134*'Prevalence Rates'!F134","v":16.160318630454988},{"$f":"'Population 2016'!G134*'Prevalence Rates'!G134","v":13.776009324322285},{"$f":"'Population 2016'!H134*'Prevalence Rates'!H134","v":72.85389546516592},{"$f":"'Population 2016'!I134*'Prevalence Rates'!I134","v":20.00170584589101},{"$f":"'Population 2016'!J134*'Prevalence Rates'!J134","v":16.822626771047403},{"$f":"'Population 2016'!K134*'Prevalence Rates'!K134","v":8.2126209433459767},{"$f":"'Population 2016'!L134*'Prevalence Rates'!L134","v":37.619102385649313},{"$f":"'Population 2016'!M134*'Prevalence Rates'!M134","v":37.619102385649313},{"$f":"'Population 2016'!N134*'Prevalence Rates'!N134","v":19.206936077180107},{"$f":"'Population 2016'!O134*'Prevalence Rates'!O134","v":25.300170970630347},{"$f":"'Population 2016'!P134*'Prevalence Rates'!P134","v":15.233087233625602},{"$f":"'Population 2016'!Q134*'Prevalence Rates'!Q134","v":19.869244217772525},{"$f":"'Population 2016'!R134*'Prevalence Rates'!R134","v":4.238772099791472},{"$f":"'Population 2016'!S134*'Prevalence Rates'!S134","v":181.33996889420391},{"$f":"'Population 2016'!T134*'Prevalence Rates'!T134","v":36.029562848227513},{"$f":"'Population 2016'!U134*'Prevalence Rates'!U134","v":6.4906197778056915},{"$f":"'Population 2016'!V134*'Prevalence Rates'!V134","v":33.512791913976322},{"$f":"'Population 2016'!W134*'Prevalence Rates'!W134","v":56.958500090947908},{"$f":"'Population 2016'!X134*'Prevalence Rates'!X134","v":56.958500090947908},{"$f":"'Population 2016'!Y134*'Prevalence Rates'!Y134","v":50.335418685023733},{"$f":"'Population 2016'!Z134*'Prevalence Rates'!Z134","v":52.454804734919463},{"$f":"'Population 2016'!AA134*'Prevalence Rates'!AA134","v":238.56339224138878},{"$f":"'Population 2016'!AB134*'Prevalence Rates'!AB134","v":53.779421016104301},{"$f":"'Population 2016'!AC134*'Prevalence Rates'!AC134","v":118.42069553792425},{"$f":"'Population 2016'!AD134*'Prevalence Rates'!AD134","v":48.216032635127995},{"$f":"'Population 2016'!AE134*'Prevalence Rates'!AE134","v":34.440023310805707},{"$f":"'Population 2016'!AF134*'Prevalence Rates'!AF134","v":6.4906197778056915},{"$f":"'Population 2016'!AG134*'Prevalence Rates'!AG134","v":34.440023310805707},{"$f":"'Population 2016'!AH134*'Prevalence Rates'!AH134","v":120.14269670346454},{"$f":"'Population 2016'!AI134*'Prevalence Rates'!AI134","v":104.379762957365},{"$f":"'Population 2016'!AJ134*'Prevalence Rates'!AJ134","v":20.79647561460191},{"$f":"'Population 2016'!AK134*'Prevalence Rates'!AK134","v":9.5372372245308128},{"$f":"'Population 2016'!AL134*'Prevalence Rates'!AL134","v":18.014781424113757},{"$f":"'Population 2016'!AM134*'Prevalence Rates'!AM134","v":59.210347768962123},{"$f":"'Population 2016'!AN134*'Prevalence Rates'!AN134","v":2.119386049895736},{"$f":"'Population 2016'!AO134*'Prevalence Rates'!AO134","v":2.119386049895736},{"$f":"'Population 2016'!AP134*'Prevalence Rates'!AP134","v":10.729391877597163},{"$f":"'Population 2016'!AQ134*'Prevalence Rates'!AQ134","v":23.048323292616129},{"$f":"'Population 2016'!AR134*'Prevalence Rates'!AR134","v":737.54634536371611},{"$f":"'Population 2016'!AS134*'Prevalence Rates'!AS134","v":20.00170584589101},{"$f":"'Population 2016'!AT134*'Prevalence Rates'!AT134","v":0.1324616281184835},{"$f":"'Population 2016'!AU134*'Prevalence Rates'!AU134","v":0.1324616281184835},{"$f":"'Population 2016'!AV134*'Prevalence Rates'!AV134","v":29.538943070421819},{"$f":"'Population 2016'!AW134*'Prevalence Rates'!AW134","v":60.932348934502407},{"$f":"'Population 2016'!AX134*'Prevalence Rates'!AX134","v":8.6100058277014266},{"$f":"'Population 2016'!AY134*'Prevalence Rates'!AY134","v":103.05514667618016},{"$f":"'Population 2016'!AZ134*'Prevalence Rates'!AZ134","v":46.096646585232257},{"$f":"'Population 2016'!BA134*'Prevalence Rates'!BA134","v":16.955088399165888},{"$f":"'Population 2016'!BB134*'Prevalence Rates'!BB134","v":27.68448027676305},{"$f":"'Population 2016'!BC134*'Prevalence Rates'!BC134","v":6.4906197778056915},132]
[null,"Male 90+",{"$f":"'Population 2016'!C135*'Prevalence Rates'!C135","v":12.318931415018966},{"$f":"'Population 2016'!D135*'Prevalence Rates'!D135","v":19.736782589654041},{"$f":"'Population 2016'!E135*'Prevalence Rates'!E135","v":7.4178511746350759},{"$f":"'Population 2016'!F135*'Prevalence Rates'!F135","v":9.0073907120568784},{"$f":"'Population 2016'!G135*'Prevalence Rates'!G135","v":4.6361569841469228},{"$f":"'Population 2016'!H135*'Prevalence Rates'!H135","v":28.346788417355469},{"$f":"'Population 2016'!I135*'Prevalence Rates'!I135","v":7.4178511746350759},{"$f":"'Population 2016'!J135*'Prevalence Rates'!J135","v":4.9010802403838891},{"$f":"'Population 2016'!K135*'Prevalence Rates'!K135","v":2.64923256236967},{"$f":"'Population 2016'!L135*'Prevalence Rates'!L135","v":16.425241886691953},{"$f":"'Population 2016'!M135*'Prevalence Rates'!M135","v":16.425241886691953},{"$f":"'Population 2016'!N135*'Prevalence Rates'!N135","v":8.8749290839383939},{"$f":"'Population 2016'!O135*'Prevalence Rates'!O135","v":9.2723139682938456},{"$f":"'Population 2016'!P135*'Prevalence Rates'!P135","v":8.4775441995829439},{"$f":"'Population 2016'!Q135*'Prevalence Rates'!Q135","v":8.8749290839383939},{"$f":"'Population 2016'!R135*'Prevalence Rates'!R135","v":2.2518476780142196},{"$f":"'Population 2016'!S135*'Prevalence Rates'!S135","v":79.212053614853133},{"$f":"'Population 2016'!T135*'Prevalence Rates'!T135","v":19.206936077180107},{"$f":"'Population 2016'!U135*'Prevalence Rates'!U135","v":1.1921546530663516},{"$f":"'Population 2016'!V135*'Prevalence Rates'!V135","v":12.318931415018966},{"$f":"'Population 2016'!W135*'Prevalence Rates'!W135","v":25.432632598748832},{"$f":"'Population 2016'!X135*'Prevalence Rates'!X135","v":25.432632598748832},{"$f":"'Population 2016'!Y135*'Prevalence Rates'!Y135","v":17.220011655402853},{"$f":"'Population 2016'!Z135*'Prevalence Rates'!Z135","v":21.723707011431294},{"$f":"'Population 2016'!AA135*'Prevalence Rates'!AA135","v":90.868676889279683},{"$f":"'Population 2016'!AB135*'Prevalence Rates'!AB135","v":23.843093061327028},{"$f":"'Population 2016'!AC135*'Prevalence Rates'!AC135","v":49.540648916312826},{"$f":"'Population 2016'!AD135*'Prevalence Rates'!AD135","v":22.650938408260679},{"$f":"'Population 2016'!AE135*'Prevalence Rates'!AE135","v":18.014781424113757},{"$f":"'Population 2016'!AF135*'Prevalence Rates'!AF135","v":2.3843093061327032},{"$f":"'Population 2016'!AG135*'Prevalence Rates'!AG135","v":18.014781424113757},{"$f":"'Population 2016'!AH135*'Prevalence Rates'!AH135","v":41.328027972966851},{"$f":"'Population 2016'!AI135*'Prevalence Rates'!AI135","v":46.361569841469226},{"$f":"'Population 2016'!AJ135*'Prevalence Rates'!AJ135","v":8.4775441995829439},{"$f":"'Population 2016'!AK135*'Prevalence Rates'!AK135","v":4.1063104716729883},{"$f":"'Population 2016'!AL135*'Prevalence Rates'!AL135","v":7.4178511746350759},{"$f":"'Population 2016'!AM135*'Prevalence Rates'!AM135","v":19.604320961535556},{"$f":"'Population 2016'!AN135*'Prevalence Rates'!AN135","v":1.1921546530663516},{"$f":"'Population 2016'!AO135*'Prevalence Rates'!AO135","v":1.1921546530663516},{"$f":"'Population 2016'!AP135*'Prevalence Rates'!AP135","v":3.9738488435545047},{"$f":"'Population 2016'!AQ135*'Prevalence Rates'!AQ135","v":9.6696988526492955},{"$f":"'Population 2016'!AR135*'Prevalence Rates'!AR135","v":302.8072818788533},{"$f":"'Population 2016'!AS135*'Prevalence Rates'!AS135","v":7.4178511746350759},{"$f":"'Population 2016'!AT135*'Prevalence Rates'!AT135","v":0},{"$f":"'Population 2016'!AU135*'Prevalence Rates'!AU135","v":0},{"$f":"'Population 2016'!AV135*'Prevalence Rates'!AV135","v":11.656623274426547},{"$f":"'Population 2016'!AW135*'Prevalence Rates'!AW135","v":21.723707011431294},{"$f":"'Population 2016'!AX135*'Prevalence Rates'!AX135","v":2.2518476780142196},{"$f":"'Population 2016'!AY135*'Prevalence Rates'!AY135","v":47.28880123829861},{"$f":"'Population 2016'!AZ135*'Prevalence Rates'!AZ135","v":21.856168639549779},{"$f":"'Population 2016'!BA135*'Prevalence Rates'!BA135","v":5.0335418685023727},{"$f":"'Population 2016'!BB135*'Prevalence Rates'!BB135","v":9.8021604807677782},{"$f":"'Population 2016'!BC135*'Prevalence Rates'!BC135","v":1.1921546530663516},133]
["SIMD Q3","Female 0-4",{"$f":"'Population 2016'!C136*'Prevalence Rates'!C136","v":0},{"$f":"'Population 2016'!D136*'Prevalence Rates'!D136","v":0},{"$f":"'Population 2016'!E136*'Prevalence Rates'!E136","v":0},{"$f":"'Population 2016'!F136*'Prevalence Rates'!F136","v":0},{"$f":"'Population 2016'!G136*'Prevalence Rates'!G136","v":0},{"$f":"'Population 2016'!H136*'Prevalence Rates'!H136","v":0},{"$f":"'Population 2016'!I136*'Prevalence Rates'!I136","v":0},{"$f":"'Population 2016'!J136*'Prevalence Rates'!J136","v":0},{"$f":"'Population 2016'!K136*'Prevalence Rates'!K136","v":0},{"$f":"'Population 2016'!L136*'Prevalence Rates'!L136","v":0},{"$f":"'Population 2016'!M136*'Prevalence Rates'!M136","v":0},{"$f":"'Population 2016'!N136*'Prevalence Rates'!N136","v":0},{"$f":"'Population 2016'!O136*'Prevalence Rates'!O136","v":0},{"$f":"'Population 2016'!P136*'Prevalence Rates'!P136","v":0},{"$f":"'Population 2016'!Q136*'Prevalence Rates'!Q136","v":0},{"$f":"'Population 2016'!R136*'Prevalence Rates'!R136","v":0},{"$f":"'Population 2016'!S136*'Prevalence Rates'!S136","v":0},{"$f":"'Population 2016'!T136*'Prevalence Rates'!T136","v":0},{"$f":"'Population 2016'!U136*'Prevalence Rates'!U136","v":0},{"$f":"'Population 2016'!V136*'Prevalence Rates'!V136","v":0},{"$f":"'Population 2016'!W136*'Prevalence Rates'!W136","v":0},{"$f":"'Population 2016'!X136*'Prevalence Rates'!X136","v":0},{"$f":"'Population 2016'!Y136*'Prevalence Rates'!Y136","v":0},{"$f":"'Population 2016'!Z136*'Prevalence Rates'!Z136","v":0},{"$f":"'Population 2016'!AA136*'Prevalence Rates'!AA136","v":0},{"$f":"'Population 2016'!AB136*'Prevalence Rates'!AB136","v":0},{"$f":"'Population 2016'!AC136*'Prevalence Rates'!AC136","v":0},{"$f":"'Population 2016'!AD136*'Prevalence Rates'!AD136","v":0},{"$f":"'Population 2016'!AE136*'Prevalence Rates'!AE136","v":0},{"$f":"'Population 2016'!AF136*'Prevalence Rates'!AF136","v":0},{"$f":"'Population 2016'!AG136*'Prevalence Rates'!AG136","v":0},{"$f":"'Population 2016'!AH136*'Prevalence Rates'!AH136","v":0},{"$f":"'Population 2016'!AI136*'Prevalence Rates'!AI136","v":0},{"$f":"'Population 2016'!AJ136*'Prevalence Rates'!AJ136","v":0},{"$f":"'Population 2016'!AK136*'Prevalence Rates'!AK136","v":0},{"$f":"'Population 2016'!AL136*'Prevalence Rates'!AL136","v":0},{"$f":"'Population 2016'!AM136*'Prevalence Rates'!AM136","v":0},{"$f":"'Population 2016'!AN136*'Prevalence Rates'!AN136","v":0},{"$f":"'Population 2016'!AO136*'Prevalence Rates'!AO136","v":0},{"$f":"'Population 2016'!AP136*'Prevalence Rates'!AP136","v":0},{"$f":"'Population 2016'!AQ136*'Prevalence Rates'!AQ136","v":0},{"$f":"'Population 2016'!AR136*'Prevalence Rates'!AR136","v":0},{"$f":"'Population 2016'!AS136*'Prevalence Rates'!AS136","v":0},{"$f":"'Population 2016'!AT136*'Prevalence Rates'!AT136","v":0},{"$f":"'Population 2016'!AU136*'Prevalence Rates'!AU136","v":0},{"$f":"'Population 2016'!AV136*'Prevalence Rates'!AV136","v":0},{"$f":"'Population 2016'!AW136*'Prevalence Rates'!AW136","v":0},{"$f":"'Population 2016'!AX136*'Prevalence Rates'!AX136","v":0},{"$f":"'Population 2016'!AY136*'Prevalence Rates'!AY136","v":0},{"$f":"'Population 2016'!AZ136*'Prevalence Rates'!AZ136","v":0},{"$f":"'Population 2016'!BA136*'Prevalence Rates'!BA136","v":0},{"$f":"'Population 2016'!BB136*'Prevalence Rates'!BB136","v":0},{"$f":"'Population 2016'!BC136*'Prevalence Rates'!BC136","v":0},134]
[null,"Female 5-9",{"$f":"'Population 2016'!C137*'Prevalence Rates'!C137","v":0},{"$f":"'Population 2016'!D137*'Prevalence Rates'!D137","v":0},{"$f":"'Population 2016'!E137*'Prevalence Rates'!E137","v":0},{"$f":"'Population 2016'!F137*'Prevalence Rates'!F137","v":0},{"$f":"'Population 2016'!G137*'Prevalence Rates'!G137","v":0},{"$f":"'Population 2016'!H137*'Prevalence Rates'!H137","v":0},{"$f":"'Population 2016'!I137*'Prevalence Rates'!I137","v":0},{"$f":"'Population 2016'!J137*'Prevalence Rates'!J137","v":0},{"$f":"'Population 2016'!K137*'Prevalence Rates'!K137","v":0},{"$f":"'Population 2016'!L137*'Prevalence Rates'!L137","v":0},{"$f":"'Population 2016'!M137*'Prevalence Rates'!M137","v":0},{"$f":"'Population 2016'!N137*'Prevalence Rates'!N137","v":0},{"$f":"'Population 2016'!O137*'Prevalence Rates'!O137","v":0},{"$f":"'Population 2016'!P137*'Prevalence Rates'!P137","v":0},{"$f":"'Population 2016'!Q137*'Prevalence Rates'!Q137","v":0},{"$f":"'Population 2016'!R137*'Prevalence Rates'!R137","v":0},{"$f":"'Population 2016'!S137*'Prevalence Rates'!S137","v":0},{"$f":"'Population 2016'!T137*'Prevalence Rates'!T137","v":0},{"$f":"'Population 2016'!U137*'Prevalence Rates'!U137","v":0},{"$f":"'Population 2016'!V137*'Prevalence Rates'!V137","v":0},{"$f":"'Population 2016'!W137*'Prevalence Rates'!W137","v":0},{"$f":"'Population 2016'!X137*'Prevalence Rates'!X137","v":0},{"$f":"'Population 2016'!Y137*'Prevalence Rates'!Y137","v":0},{"$f":"'Population 2016'!Z137*'Prevalence Rates'!Z137","v":0},{"$f":"'Population 2016'!AA137*'Prevalence Rates'!AA137","v":0},{"$f":"'Population 2016'!AB137*'Prevalence Rates'!AB137","v":0},{"$f":"'Population 2016'!AC137*'Prevalence Rates'!AC137","v":0},{"$f":"'Population 2016'!AD137*'Prevalence Rates'!AD137","v":0},{"$f":"'Population 2016'!AE137*'Prevalence Rates'!AE137","v":0},{"$f":"'Population 2016'!AF137*'Prevalence Rates'!AF137","v":0},{"$f":"'Population 2016'!AG137*'Prevalence Rates'!AG137","v":0},{"$f":"'Population 2016'!AH137*'Prevalence Rates'!AH137","v":0},{"$f":"'Population 2016'!AI137*'Prevalence Rates'!AI137","v":0},{"$f":"'Population 2016'!AJ137*'Prevalence Rates'!AJ137","v":0},{"$f":"'Population 2016'!AK137*'Prevalence Rates'!AK137","v":0},{"$f":"'Population 2016'!AL137*'Prevalence Rates'!AL137","v":0},{"$f":"'Population 2016'!AM137*'Prevalence Rates'!AM137","v":0},{"$f":"'Population 2016'!AN137*'Prevalence Rates'!AN137","v":0},{"$f":"'Population 2016'!AO137*'Prevalence Rates'!AO137","v":0},{"$f":"'Population 2016'!AP137*'Prevalence Rates'!AP137","v":0},{"$f":"'Population 2016'!AQ137*'Prevalence Rates'!AQ137","v":0},{"$f":"'Population 2016'!AR137*'Prevalence Rates'!AR137","v":0},{"$f":"'Population 2016'!AS137*'Prevalence Rates'!AS137","v":0},{"$f":"'Population 2016'!AT137*'Prevalence Rates'!AT137","v":0},{"$f":"'Population 2016'!AU137*'Prevalence Rates'!AU137","v":0},{"$f":"'Population 2016'!AV137*'Prevalence Rates'!AV137","v":0},{"$f":"'Population 2016'!AW137*'Prevalence Rates'!AW137","v":0},{"$f":"'Population 2016'!AX137*'Prevalence Rates'!AX137","v":0},{"$f":"'Population 2016'!AY137*'Prevalence Rates'!AY137","v":0},{"$f":"'Population 2016'!AZ137*'Prevalence Rates'!AZ137","v":0},{"$f":"'Population 2016'!BA137*'Prevalence Rates'!BA137","v":0},{"$f":"'Population 2016'!BB137*'Prevalence Rates'!BB137","v":0},{"$f":"'Population 2016'!BC137*'Prevalence Rates'!BC137","v":0},135]
[null,"Female 10-15",{"$f":"'Population 2016'!C138*'Prevalence Rates'!C138","v":0},{"$f":"'Population 2016'!D138*'Prevalence Rates'!D138","v":0},{"$f":"'Population 2016'!E138*'Prevalence Rates'!E138","v":0},{"$f":"'Population 2016'!F138*'Prevalence Rates'!F138","v":0},{"$f":"'Population 2016'!G138*'Prevalence Rates'!G138","v":0},{"$f":"'Population 2016'!H138*'Prevalence Rates'!H138","v":0},{"$f":"'Population 2016'!I138*'Prevalence Rates'!I138","v":0},{"$f":"'Population 2016'!J138*'Prevalence Rates'!J138","v":0},{"$f":"'Population 2016'!K138*'Prevalence Rates'!K138","v":0},{"$f":"'Population 2016'!L138*'Prevalence Rates'!L138","v":0},{"$f":"'Population 2016'!M138*'Prevalence Rates'!M138","v":0},{"$f":"'Population 2016'!N138*'Prevalence Rates'!N138","v":0},{"$f":"'Population 2016'!O138*'Prevalence Rates'!O138","v":0},{"$f":"'Population 2016'!P138*'Prevalence Rates'!P138","v":0},{"$f":"'Population 2016'!Q138*'Prevalence Rates'!Q138","v":0},{"$f":"'Population 2016'!R138*'Prevalence Rates'!R138","v":0},{"$f":"'Population 2016'!S138*'Prevalence Rates'!S138","v":0},{"$f":"'Population 2016'!T138*'Prevalence Rates'!T138","v":0},{"$f":"'Population 2016'!U138*'Prevalence Rates'!U138","v":0},{"$f":"'Population 2016'!V138*'Prevalence Rates'!V138","v":0},{"$f":"'Population 2016'!W138*'Prevalence Rates'!W138","v":0},{"$f":"'Population 2016'!X138*'Prevalence Rates'!X138","v":0},{"$f":"'Population 2016'!Y138*'Prevalence Rates'!Y138","v":0},{"$f":"'Population 2016'!Z138*'Prevalence Rates'!Z138","v":0},{"$f":"'Population 2016'!AA138*'Prevalence Rates'!AA138","v":0},{"$f":"'Population 2016'!AB138*'Prevalence Rates'!AB138","v":0},{"$f":"'Population 2016'!AC138*'Prevalence Rates'!AC138","v":0},{"$f":"'Population 2016'!AD138*'Prevalence Rates'!AD138","v":0},{"$f":"'Population 2016'!AE138*'Prevalence Rates'!AE138","v":0},{"$f":"'Population 2016'!AF138*'Prevalence Rates'!AF138","v":0},{"$f":"'Population 2016'!AG138*'Prevalence Rates'!AG138","v":0},{"$f":"'Population 2016'!AH138*'Prevalence Rates'!AH138","v":0},{"$f":"'Population 2016'!AI138*'Prevalence Rates'!AI138","v":0},{"$f":"'Population 2016'!AJ138*'Prevalence Rates'!AJ138","v":0},{"$f":"'Population 2016'!AK138*'Prevalence Rates'!AK138","v":0},{"$f":"'Population 2016'!AL138*'Prevalence Rates'!AL138","v":0},{"$f":"'Population 2016'!AM138*'Prevalence Rates'!AM138","v":0},{"$f":"'Population 2016'!AN138*'Prevalence Rates'!AN138","v":0},{"$f":"'Population 2016'!AO138*'Prevalence Rates'!AO138","v":0},{"$f":"'Population 2016'!AP138*'Prevalence Rates'!AP138","v":0},{"$f":"'Population 2016'!AQ138*'Prevalence Rates'!AQ138","v":0},{"$f":"'Population 2016'!AR138*'Prevalence Rates'!AR138","v":0},{"$f":"'Population 2016'!AS138*'Prevalence Rates'!AS138","v":0},{"$f":"'Population 2016'!AT138*'Prevalence Rates'!AT138","v":0},{"$f":"'Population 2016'!AU138*'Prevalence Rates'!AU138","v":0},{"$f":"'Population 2016'!AV138*'Prevalence Rates'!AV138","v":0},{"$f":"'Population 2016'!AW138*'Prevalence Rates'!AW138","v":0},{"$f":"'Population 2016'!AX138*'Prevalence Rates'!AX138","v":0},{"$f":"'Population 2016'!AY138*'Prevalence Rates'!AY138","v":0},{"$f":"'Population 2016'!AZ138*'Prevalence Rates'!AZ138","v":0},{"$f":"'Population 2016'!BA138*'Prevalence Rates'!BA138","v":0},{"$f":"'Population 2016'!BB138*'Prevalence Rates'!BB138","v":0},{"$f":"'Population 2016'!BC138*'Prevalence Rates'!BC138","v":0},136]
[null,"Female 16-19",{"$f":"'Population 2016'!C139*'Prevalence Rates'!C139","v":102.03285601642527},{"$f":"'Population 2016'!D139*'Prevalence Rates'!D139","v":258.6518026422209},{"$f":"'Population 2016'!E139*'Prevalence Rates'!E139","v":156.61894662579564},{"$f":"'Population 2016'!F139*'Prevalence Rates'!F139","v":116.46024236277113},{"$f":"'Population 2016'!G139*'Prevalence Rates'!G139","v":113.1880516450432},{"$f":"'Population 2016'!H139*'Prevalence Rates'!H139","v":199.75236972311828},{"$f":"'Population 2016'!I139*'Prevalence Rates'!I139","v":115.71656265419659},{"$f":"'Population 2016'!J139*'Prevalence Rates'!J139","v":77.491425633465838},{"$f":"'Population 2016'!K139*'Prevalence Rates'!K139","v":26.028789800108488},{"$f":"'Population 2016'!L139*'Prevalence Rates'!L139","v":158.84998575151923},{"$f":"'Population 2016'!M139*'Prevalence Rates'!M139","v":158.84998575151923},{"$f":"'Population 2016'!N139*'Prevalence Rates'!N139","v":70.798308256295087},{"$f":"'Population 2016'!O139*'Prevalence Rates'!O139","v":62.022887695115656},{"$f":"'Population 2016'!P139*'Prevalence Rates'!P139","v":24.392694441244526},{"$f":"'Population 2016'!Q139*'Prevalence Rates'!Q139","v":67.526117538567163},{"$f":"'Population 2016'!R139*'Prevalence Rates'!R139","v":34.358002536143204},{"$f":"'Population 2016'!S139*'Prevalence Rates'!S139","v":834.70610490405045},{"$f":"'Population 2016'!T139*'Prevalence Rates'!T139","v":213.58481230260452},{"$f":"'Population 2016'!U139*'Prevalence Rates'!U139","v":53.39620307565113},{"$f":"'Population 2016'!V139*'Prevalence Rates'!V139","v":88.944093145513577},{"$f":"'Population 2016'!W139*'Prevalence Rates'!W139","v":239.91107398614281},{"$f":"'Population 2016'!X139*'Prevalence Rates'!X139","v":239.91107398614281},{"$f":"'Population 2016'!Y139*'Prevalence Rates'!Y139","v":166.43551877897943},{"$f":"'Population 2016'!Z139*'Prevalence Rates'!Z139","v":351.90923809746675},{"$f":"'Population 2016'!AA139*'Prevalence Rates'!AA139","v":990.28389993784174},{"$f":"'Population 2016'!AB139*'Prevalence Rates'!AB139","v":343.43128941971713},{"$f":"'Population 2016'!AC139*'Prevalence Rates'!AC139","v":587.06076194873253},{"$f":"'Population 2016'!AD139*'Prevalence Rates'!AD139","v":327.81401553965202},{"$f":"'Population 2016'!AE139*'Prevalence Rates'!AE139","v":214.62596389460884},{"$f":"'Population 2016'!AF139*'Prevalence Rates'!AF139","v":41.051119913313961},{"$f":"'Population 2016'!AG139*'Prevalence Rates'!AG139","v":214.62596389460884},{"$f":"'Population 2016'!AH139*'Prevalence Rates'!AH139","v":403.2231379891092},{"$f":"'Population 2016'!AI139*'Prevalence Rates'!AI139","v":479.0784682637111},{"$f":"'Population 2016'!AJ139*'Prevalence Rates'!AJ139","v":71.095780139724894},{"$f":"'Population 2016'!AK139*'Prevalence Rates'!AK139","v":84.779486777496217},{"$f":"'Population 2016'!AL139*'Prevalence Rates'!AL139","v":60.535528277966598},{"$f":"'Population 2016'!AM139*'Prevalence Rates'!AM139","v":208.3790543425828},{"$f":"'Population 2016'!AN139*'Prevalence Rates'!AN139","v":18.294520830933394},{"$f":"'Population 2016'!AO139*'Prevalence Rates'!AO139","v":18.294520830933394},{"$f":"'Population 2016'!AP139*'Prevalence Rates'!AP139","v":98.314457473552636},{"$f":"'Population 2016'!AQ139*'Prevalence Rates'!AQ139","v":98.46319341526754},{"$f":"'Population 2016'!AR139*'Prevalence Rates'!AR139","v":3400.6985713696026},{"$f":"'Population 2016'!AS139*'Prevalence Rates'!AS139","v":115.71656265419659},{"$f":"'Population 2016'!AT139*'Prevalence Rates'!AT139","v":22.161655315520942},{"$f":"'Population 2016'!AU139*'Prevalence Rates'!AU139","v":22.161655315520942},{"$f":"'Population 2016'!AV139*'Prevalence Rates'!AV139","v":77.19395375003603},{"$f":"'Population 2016'!AW139*'Prevalence Rates'!AW139","v":194.8440836465264},{"$f":"'Population 2016'!AX139*'Prevalence Rates'!AX139","v":51.462635833357353},{"$f":"'Population 2016'!AY139*'Prevalence Rates'!AY139","v":525.48408207876162},{"$f":"'Population 2016'!AZ139*'Prevalence Rates'!AZ139","v":285.57300809261886},{"$f":"'Population 2016'!BA139*'Prevalence Rates'!BA139","v":36.886513545296602},{"$f":"'Population 2016'!BB139*'Prevalence Rates'!BB139","v":126.87175828281451},{"$f":"'Population 2016'!BC139*'Prevalence Rates'!BC139","v":53.39620307565113},137]
[null,"Female 20-24",{"$f":"'Population 2016'!C140*'Prevalence Rates'!C140","v":304.46247269041186},{"$f":"'Population 2016'!D140*'Prevalence Rates'!D140","v":500.64517981237242},{"$f":"'Population 2016'!E140*'Prevalence Rates'!E140","v":196.18270712196053},{"$f":"'Population 2016'!F140*'Prevalence Rates'!F140","v":132.67246000969584},{"$f":"'Population 2016'!G140*'Prevalence Rates'!G140","v":100.99170442442093},{"$f":"'Population 2016'!H140*'Prevalence Rates'!H140","v":228.45840647409506},{"$f":"'Population 2016'!I140*'Prevalence Rates'!I140","v":140.40672897887092},{"$f":"'Population 2016'!J140*'Prevalence Rates'!J140","v":135.05223507713433},{"$f":"'Population 2016'!K140*'Prevalence Rates'!K140","v":38.076401079015845},{"$f":"'Population 2016'!L140*'Prevalence Rates'!L140","v":187.1098146773513},{"$f":"'Population 2016'!M140*'Prevalence Rates'!M140","v":187.1098146773513},{"$f":"'Population 2016'!N140*'Prevalence Rates'!N140","v":127.31796610795924},{"$f":"'Population 2016'!O140*'Prevalence Rates'!O140","v":73.773027090593203},{"$f":"'Population 2016'!P140*'Prevalence Rates'!P140","v":32.12696341041962},{"$f":"'Population 2016'!Q140*'Prevalence Rates'!Q140","v":93.25743545524584},{"$f":"'Population 2016'!R140*'Prevalence Rates'!R140","v":38.37387296244566},{"$f":"'Population 2016'!S140*'Prevalence Rates'!S140","v":1484.2359623730433},{"$f":"'Population 2016'!T140*'Prevalence Rates'!T140","v":680.7644052291231},{"$f":"'Population 2016'!U140*'Prevalence Rates'!U140","v":54.288618725940559},{"$f":"'Population 2016'!V140*'Prevalence Rates'!V140","v":116.0140345376264},{"$f":"'Population 2016'!W140*'Prevalence Rates'!W140","v":334.5071329168228},{"$f":"'Population 2016'!X140*'Prevalence Rates'!X140","v":334.5071329168228},{"$f":"'Population 2016'!Y140*'Prevalence Rates'!Y140","v":251.06626961476073},{"$f":"'Population 2016'!Z140*'Prevalence Rates'!Z140","v":785.47450819641676},{"$f":"'Population 2016'!AA140*'Prevalence Rates'!AA140","v":1593.705615475214},{"$f":"'Population 2016'!AB140*'Prevalence Rates'!AB140","v":603.27297959565726},{"$f":"'Population 2016'!AC140*'Prevalence Rates'!AC140","v":1091.7218121874075},{"$f":"'Population 2016'!AD140*'Prevalence Rates'!AD140","v":346.40600825401526},{"$f":"'Population 2016'!AE140*'Prevalence Rates'!AE140","v":245.4143038295943},{"$f":"'Population 2016'!AF140*'Prevalence Rates'!AF140","v":47.446765407054897},{"$f":"'Population 2016'!AG140*'Prevalence Rates'!AG140","v":245.4143038295943},{"$f":"'Population 2016'!AH140*'Prevalence Rates'!AH140","v":501.98380328780655},{"$f":"'Population 2016'!AI140*'Prevalence Rates'!AI140","v":1009.3221004773497},{"$f":"'Population 2016'!AJ140*'Prevalence Rates'!AJ140","v":76.747745924891319},{"$f":"'Population 2016'!AK140*'Prevalence Rates'!AK140","v":102.6277997832849},{"$f":"'Population 2016'!AL140*'Prevalence Rates'!AL140","v":70.649572314580183},{"$f":"'Population 2016'!AM140*'Prevalence Rates'!AM140","v":254.48719627420357},{"$f":"'Population 2016'!AN140*'Prevalence Rates'!AN140","v":25.136374149819055},{"$f":"'Population 2016'!AO140*'Prevalence Rates'!AO140","v":25.136374149819055},{"$f":"'Population 2016'!AP140*'Prevalence Rates'!AP140","v":132.96993189312565},{"$f":"'Population 2016'!AQ140*'Prevalence Rates'!AQ140","v":129.69774117539771},{"$f":"'Population 2016'!AR140*'Prevalence Rates'!AR140","v":5192.3717252673559},{"$f":"'Population 2016'!AS140*'Prevalence Rates'!AS140","v":140.40672897887092},{"$f":"'Population 2016'!AT140*'Prevalence Rates'!AT140","v":25.731317916678677},{"$f":"'Population 2016'!AU140*'Prevalence Rates'!AU140","v":25.731317916678677},{"$f":"'Population 2016'!AV140*'Prevalence Rates'!AV140","v":84.035807068921685},{"$f":"'Population 2016'!AW140*'Prevalence Rates'!AW140","v":247.49660701360298},{"$f":"'Population 2016'!AX140*'Prevalence Rates'!AX140","v":96.975833998118475},{"$f":"'Population 2016'!AY140*'Prevalence Rates'!AY140","v":727.46749092760354},{"$f":"'Population 2016'!AZ140*'Prevalence Rates'!AZ140","v":392.96035801078074},{"$f":"'Population 2016'!BA140*'Prevalence Rates'!BA140","v":58.601961035672822},{"$f":"'Population 2016'!BB140*'Prevalence Rates'!BB140","v":158.55251386808942},{"$f":"'Population 2016'!BC140*'Prevalence Rates'!BC140","v":54.288618725940559},138]
[null,"Female 25-29",{"$f":"'Population 2016'!C141*'Prevalence Rates'!C141","v":297.62061937152617},{"$f":"'Population 2016'!D141*'Prevalence Rates'!D141","v":508.52818472326243},{"$f":"'Population 2016'!E141*'Prevalence Rates'!E141","v":210.9075653517362},{"$f":"'Population 2016'!F141*'Prevalence Rates'!F141","v":120.62484873078847},{"$f":"'Population 2016'!G141*'Prevalence Rates'!G141","v":108.27976556845131},{"$f":"'Population 2016'!H141*'Prevalence Rates'!H141","v":233.36669255068696},{"$f":"'Population 2016'!I141*'Prevalence Rates'!I141","v":114.37793917876245},{"$f":"'Population 2016'!J141*'Prevalence Rates'!J141","v":125.38439886566546},{"$f":"'Population 2016'!K141*'Prevalence Rates'!K141","v":39.415024554449992},{"$f":"'Population 2016'!L141*'Prevalence Rates'!L141","v":194.6953477048115},{"$f":"'Population 2016'!M141*'Prevalence Rates'!M141","v":194.6953477048115},{"$f":"'Population 2016'!N141*'Prevalence Rates'!N141","v":142.34029622116469},{"$f":"'Population 2016'!O141*'Prevalence Rates'!O141","v":79.573728817474517},{"$f":"'Population 2016'!P141*'Prevalence Rates'!P141","v":29.747188342981129},{"$f":"'Population 2016'!Q141*'Prevalence Rates'!Q141","v":87.902941553509237},{"$f":"'Population 2016'!R141*'Prevalence Rates'!R141","v":39.563760496164903},{"$f":"'Population 2016'!S141*'Prevalence Rates'!S141","v":1660.6367892469216},{"$f":"'Population 2016'!T141*'Prevalence Rates'!T141","v":837.97829562177844},{"$f":"'Population 2016'!U141*'Prevalence Rates'!U141","v":61.427943928256035},{"$f":"'Population 2016'!V141*'Prevalence Rates'!V141","v":117.35265801306055},{"$f":"'Population 2016'!W141*'Prevalence Rates'!W141","v":369.31134327811071},{"$f":"'Population 2016'!X141*'Prevalence Rates'!X141","v":369.31134327811071},{"$f":"'Population 2016'!Y141*'Prevalence Rates'!Y141","v":242.73705687872601},{"$f":"'Population 2016'!Z141*'Prevalence Rates'!Z141","v":740.25878191508536},{"$f":"'Population 2016'!AA141*'Prevalence Rates'!AA141","v":1576.0060384111403},{"$f":"'Population 2016'!AB141*'Prevalence Rates'!AB141","v":617.10542217514353},{"$f":"'Population 2016'!AC141*'Prevalence Rates'!AC141","v":1043.531367071778},{"$f":"'Population 2016'!AD141*'Prevalence Rates'!AD141","v":373.17847776269826},{"$f":"'Population 2016'!AE141*'Prevalence Rates'!AE141","v":264.89871219424697},{"$f":"'Population 2016'!AF141*'Prevalence Rates'!AF141","v":45.661934106476032},{"$f":"'Population 2016'!AG141*'Prevalence Rates'!AG141","v":264.89871219424697},{"$f":"'Population 2016'!AH141*'Prevalence Rates'!AH141","v":532.4746713393622},{"$f":"'Population 2016'!AI141*'Prevalence Rates'!AI141","v":1176.9475067900485},{"$f":"'Population 2016'!AJ141*'Prevalence Rates'!AJ141","v":86.415582136360186},{"$f":"'Population 2016'!AK141*'Prevalence Rates'!AK141","v":108.57723745188112},{"$f":"'Population 2016'!AL141*'Prevalence Rates'!AL141","v":63.956454937409426},{"$f":"'Population 2016'!AM141*'Prevalence Rates'!AM141","v":280.51598607431202},{"$f":"'Population 2016'!AN141*'Prevalence Rates'!AN141","v":27.367413275542638},{"$f":"'Population 2016'!AO141*'Prevalence Rates'!AO141","v":27.367413275542638},{"$f":"'Population 2016'!AP141*'Prevalence Rates'!AP141","v":138.02695391143243},{"$f":"'Population 2016'!AQ141*'Prevalence Rates'!AQ141","v":131.33383653426168},{"$f":"'Population 2016'!AR141*'Prevalence Rates'!AR141","v":5418.7478285574425},{"$f":"'Population 2016'!AS141*'Prevalence Rates'!AS141","v":114.37793917876245},{"$f":"'Population 2016'!AT141*'Prevalence Rates'!AT141","v":31.234547760130184},{"$f":"'Population 2016'!AU141*'Prevalence Rates'!AU141","v":31.234547760130184},{"$f":"'Population 2016'!AV141*'Prevalence Rates'!AV141","v":89.836508795803013},{"$f":"'Population 2016'!AW141*'Prevalence Rates'!AW141","v":251.95868526505015},{"$f":"'Population 2016'!AX141*'Prevalence Rates'!AX141","v":85.969374311215461},{"$f":"'Population 2016'!AY141*'Prevalence Rates'!AY141","v":770.30344214149636},{"$f":"'Population 2016'!AZ141*'Prevalence Rates'!AZ141","v":400.99209886338559},{"$f":"'Population 2016'!BA141*'Prevalence Rates'!BA141","v":56.96586567680886},{"$f":"'Population 2016'!BB141*'Prevalence Rates'!BB141","v":164.65068747840056},{"$f":"'Population 2016'!BC141*'Prevalence Rates'!BC141","v":61.427943928256035},139]
[null,"Female 30-34",{"$f":"'Population 2016'!C142*'Prevalence Rates'!C142","v":235.00278790955093},{"$f":"'Population 2016'!D142*'Prevalence Rates'!D142","v":464.35361003393541},{"$f":"'Population 2016'!E142*'Prevalence Rates'!E142","v":229.35082212438451},{"$f":"'Population 2016'!F142*'Prevalence Rates'!F142","v":148.88467765662054},{"$f":"'Population 2016'!G142*'Prevalence Rates'!G142","v":122.70715191479715},{"$f":"'Population 2016'!H142*'Prevalence Rates'!H142","v":250.47132584790111},{"$f":"'Population 2016'!I142*'Prevalence Rates'!I142","v":141.00167274573056},{"$f":"'Population 2016'!J142*'Prevalence Rates'!J142","v":102.6277997832849},{"$f":"'Population 2016'!K142*'Prevalence Rates'!K142","v":40.753648029884147},{"$f":"'Population 2016'!L142*'Prevalence Rates'!L142","v":186.51487091049168},{"$f":"'Population 2016'!M142*'Prevalence Rates'!M142","v":186.51487091049168},{"$f":"'Population 2016'!N142*'Prevalence Rates'!N142","v":91.621340096381871},{"$f":"'Population 2016'!O142*'Prevalence Rates'!O142","v":82.548447651772634},{"$f":"'Population 2016'!P142*'Prevalence Rates'!P142","v":23.946486616099808},{"$f":"'Population 2016'!Q142*'Prevalence Rates'!Q142","v":90.282716620947724},{"$f":"'Population 2016'!R142*'Prevalence Rates'!R142","v":41.794799621888487},{"$f":"'Population 2016'!S142*'Prevalence Rates'!S142","v":1500.7456519033979},{"$f":"'Population 2016'!T142*'Prevalence Rates'!T142","v":642.09306038324769},{"$f":"'Population 2016'!U142*'Prevalence Rates'!U142","v":67.37738159685226},{"$f":"'Population 2016'!V142*'Prevalence Rates'!V142","v":136.53959449428339},{"$f":"'Population 2016'!W142*'Prevalence Rates'!W142","v":352.80165374775618},{"$f":"'Population 2016'!X142*'Prevalence Rates'!X142","v":352.80165374775618},{"$f":"'Population 2016'!Y142*'Prevalence Rates'!Y142","v":239.16739427756826},{"$f":"'Population 2016'!Z142*'Prevalence Rates'!Z142","v":587.80444165730717},{"$f":"'Population 2016'!AA142*'Prevalence Rates'!AA142","v":1486.3182655570522},{"$f":"'Population 2016'!AB142*'Prevalence Rates'!AB142","v":590.18421672474562},{"$f":"'Population 2016'!AC142*'Prevalence Rates'!AC142","v":895.39036912373194},{"$f":"'Population 2016'!AD142*'Prevalence Rates'!AD142","v":408.13142406570108},{"$f":"'Population 2016'!AE142*'Prevalence Rates'!AE142","v":285.42427215090396},{"$f":"'Population 2016'!AF142*'Prevalence Rates'!AF142","v":40.009968321309621},{"$f":"'Population 2016'!AG142*'Prevalence Rates'!AG142","v":285.42427215090396},{"$f":"'Population 2016'!AH142*'Prevalence Rates'!AH142","v":590.92789643332014},{"$f":"'Population 2016'!AI142*'Prevalence Rates'!AI142","v":1006.9423254099112},{"$f":"'Population 2016'!AJ142*'Prevalence Rates'!AJ142","v":91.472604154666968},{"$f":"'Population 2016'!AK142*'Prevalence Rates'!AK142","v":125.83060669081017},{"$f":"'Population 2016'!AL142*'Prevalence Rates'!AL142","v":69.162212897431118},{"$f":"'Population 2016'!AM142*'Prevalence Rates'!AM142","v":320.22848251219187},{"$f":"'Population 2016'!AN142*'Prevalence Rates'!AN142","v":30.193396168125847},{"$f":"'Population 2016'!AO142*'Prevalence Rates'!AO142","v":30.193396168125847},{"$f":"'Population 2016'!AP142*'Prevalence Rates'!AP142","v":147.69479012290131},{"$f":"'Population 2016'!AQ142*'Prevalence Rates'!AQ142","v":144.72007128860318},{"$f":"'Population 2016'!AR142*'Prevalence Rates'!AR142","v":5175.2670919701422},{"$f":"'Population 2016'!AS142*'Prevalence Rates'!AS142","v":141.00167274573056},{"$f":"'Population 2016'!AT142*'Prevalence Rates'!AT142","v":27.96235704240226},{"$f":"'Population 2016'!AU142*'Prevalence Rates'!AU142","v":27.96235704240226},{"$f":"'Population 2016'!AV142*'Prevalence Rates'!AV142","v":98.760665298697347},{"$f":"'Population 2016'!AW142*'Prevalence Rates'!AW142","v":270.69941392112827},{"$f":"'Population 2016'!AX142*'Prevalence Rates'!AX142","v":61.874151753400746},{"$f":"'Population 2016'!AY142*'Prevalence Rates'!AY142","v":741.00246162365988},{"$f":"'Population 2016'!AZ142*'Prevalence Rates'!AZ142","v":388.20080787590371},{"$f":"'Population 2016'!BA142*'Prevalence Rates'!BA142","v":57.114601618523764},{"$f":"'Population 2016'!BB142*'Prevalence Rates'!BB142","v":183.09394425104884},{"$f":"'Population 2016'!BC142*'Prevalence Rates'!BC142","v":67.37738159685226},140]
[null,"Female 35-39",{"$f":"'Population 2016'!C143*'Prevalence Rates'!C143","v":146.65363853089696},{"$f":"'Population 2016'!D143*'Prevalence Rates'!D143","v":369.90628704497033},{"$f":"'Population 2016'!E143*'Prevalence Rates'!E143","v":223.25264851407337},{"$f":"'Population 2016'!F143*'Prevalence Rates'!F143","v":159.74240140180865},{"$f":"'Population 2016'!G143*'Prevalence Rates'!G143","v":125.53313480738036},{"$f":"'Population 2016'!H143*'Prevalence Rates'!H143","v":254.63593221591847},{"$f":"'Population 2016'!I143*'Prevalence Rates'!I143","v":134.01108348512997},{"$f":"'Population 2016'!J143*'Prevalence Rates'!J143","v":104.11515920043395},{"$f":"'Population 2016'!K143*'Prevalence Rates'!K143","v":35.25041818643264},{"$f":"'Population 2016'!L143*'Prevalence Rates'!L143","v":183.39141613447865},{"$f":"'Population 2016'!M143*'Prevalence Rates'!M143","v":183.39141613447865},{"$f":"'Population 2016'!N143*'Prevalence Rates'!N143","v":71.54198796486962},{"$f":"'Population 2016'!O143*'Prevalence Rates'!O143","v":81.061088234623583},{"$f":"'Population 2016'!P143*'Prevalence Rates'!P143","v":29.0035086344066},{"$f":"'Population 2016'!Q143*'Prevalence Rates'!Q143","v":92.067547921526597},{"$f":"'Population 2016'!R143*'Prevalence Rates'!R143","v":43.877102805897167},{"$f":"'Population 2016'!S143*'Prevalence Rates'!S143","v":1297.423619579122},{"$f":"'Population 2016'!T143*'Prevalence Rates'!T143","v":438.47355617554183},{"$f":"'Population 2016'!U143*'Prevalence Rates'!U143","v":81.35856011805339},{"$f":"'Population 2016'!V143*'Prevalence Rates'!V143","v":138.91936956172188},{"$f":"'Population 2016'!W143*'Prevalence Rates'!W143","v":363.80811343465922},{"$f":"'Population 2016'!X143*'Prevalence Rates'!X143","v":363.80811343465922},{"$f":"'Population 2016'!Y143*'Prevalence Rates'!Y143","v":243.03452876215582},{"$f":"'Population 2016'!Z143*'Prevalence Rates'!Z143","v":445.61288137785732},{"$f":"'Population 2016'!AA143*'Prevalence Rates'!AA143","v":1370.0067591359959},{"$f":"'Population 2016'!AB143*'Prevalence Rates'!AB143","v":475.36006972083845},{"$f":"'Population 2016'!AC143*'Prevalence Rates'!AC143","v":768.07240301577281},{"$f":"'Population 2016'!AD143*'Prevalence Rates'!AD143","v":431.18549503151149},{"$f":"'Population 2016'!AE143*'Prevalence Rates'!AE143","v":305.65236022413109},{"$f":"'Population 2016'!AF143*'Prevalence Rates'!AF143","v":55.478506259659802},{"$f":"'Population 2016'!AG143*'Prevalence Rates'!AG143","v":305.65236022413109},{"$f":"'Population 2016'!AH143*'Prevalence Rates'!AH143","v":601.93435612022313},{"$f":"'Population 2016'!AI143*'Prevalence Rates'!AI143","v":799.60442265933273},{"$f":"'Population 2016'!AJ143*'Prevalence Rates'!AJ143","v":92.067547921526597},{"$f":"'Population 2016'!AK143*'Prevalence Rates'!AK143","v":105.4537826758681},{"$f":"'Population 2016'!AL143*'Prevalence Rates'!AL143","v":74.219234915737914},{"$f":"'Population 2016'!AM143*'Prevalence Rates'!AM143","v":329.89631872366073},{"$f":"'Population 2016'!AN143*'Prevalence Rates'!AN143","v":21.120503723516602},{"$f":"'Population 2016'!AO143*'Prevalence Rates'!AO143","v":21.120503723516602},{"$f":"'Population 2016'!AP143*'Prevalence Rates'!AP143","v":136.09338666913865},{"$f":"'Population 2016'!AQ143*'Prevalence Rates'!AQ143","v":138.32442579486224},{"$f":"'Population 2016'!AR143*'Prevalence Rates'!AR143","v":4753.1544893832397},{"$f":"'Population 2016'!AS143*'Prevalence Rates'!AS143","v":134.01108348512997},{"$f":"'Population 2016'!AT143*'Prevalence Rates'!AT143","v":28.259828925832071},{"$f":"'Population 2016'!AU143*'Prevalence Rates'!AU143","v":28.259828925832071},{"$f":"'Population 2016'!AV143*'Prevalence Rates'!AV143","v":99.355609065556976},{"$f":"'Population 2016'!AW143*'Prevalence Rates'!AW143","v":272.0380373965624},{"$f":"'Population 2016'!AX143*'Prevalence Rates'!AX143","v":68.864741014001311},{"$f":"'Population 2016'!AY143*'Prevalence Rates'!AY143","v":731.18588947047613},{"$f":"'Population 2016'!AZ143*'Prevalence Rates'!AZ143","v":367.37777603581696},{"$f":"'Population 2016'!BA143*'Prevalence Rates'!BA143","v":55.775978143089617},{"$f":"'Population 2016'!BB143*'Prevalence Rates'!BB143","v":176.99577064073773},{"$f":"'Population 2016'!BC143*'Prevalence Rates'!BC143","v":81.35856011805339},141]
[null,"Female 40-44",{"$f":"'Population 2016'!C144*'Prevalence Rates'!C144","v":129.251533350253},{"$f":"'Population 2016'!D144*'Prevalence Rates'!D144","v":370.35249487011504},{"$f":"'Population 2016'!E144*'Prevalence Rates'!E144","v":241.10096151986204},{"$f":"'Population 2016'!F144*'Prevalence Rates'!F144","v":185.62245526020226},{"$f":"'Population 2016'!G144*'Prevalence Rates'!G144","v":155.87526691722113},{"$f":"'Population 2016'!H144*'Prevalence Rates'!H144","v":296.13325995437714},{"$f":"'Population 2016'!I144*'Prevalence Rates'!I144","v":178.63186599960167},{"$f":"'Population 2016'!J144*'Prevalence Rates'!J144","v":114.97288294562206},{"$f":"'Population 2016'!K144*'Prevalence Rates'!K144","v":43.579630922467352},{"$f":"'Population 2016'!L144*'Prevalence Rates'!L144","v":233.21795660897206},{"$f":"'Population 2016'!M144*'Prevalence Rates'!M144","v":233.21795660897206},{"$f":"'Population 2016'!N144*'Prevalence Rates'!N144","v":62.766567403690182},{"$f":"'Population 2016'!O144*'Prevalence Rates'!O144","v":97.868249648407911},{"$f":"'Population 2016'!P144*'Prevalence Rates'!P144","v":31.680755585274902},{"$f":"'Population 2016'!Q144*'Prevalence Rates'!Q144","v":101.58664819128056},{"$f":"'Population 2016'!R144*'Prevalence Rates'!R144","v":46.256877873335654},{"$f":"'Population 2016'!S144*'Prevalence Rates'!S144","v":1283.1449691744911},{"$f":"'Population 2016'!T144*'Prevalence Rates'!T144","v":349.08325520488353},{"$f":"'Population 2016'!U144*'Prevalence Rates'!U144","v":85.374430544355846},{"$f":"'Population 2016'!V144*'Prevalence Rates'!V144","v":148.73594171490564},{"$f":"'Population 2016'!W144*'Prevalence Rates'!W144","v":362.02328213408032},{"$f":"'Population 2016'!X144*'Prevalence Rates'!X144","v":362.02328213408032},{"$f":"'Population 2016'!Y144*'Prevalence Rates'!Y144","v":263.70882466052768},{"$f":"'Population 2016'!Z144*'Prevalence Rates'!Z144","v":373.02974182098336},{"$f":"'Population 2016'!AA144*'Prevalence Rates'!AA144","v":1349.6299351210539},{"$f":"'Population 2016'!AB144*'Prevalence Rates'!AB144","v":496.62930938606996},{"$f":"'Population 2016'!AC144*'Prevalence Rates'!AC144","v":725.53392368530979},{"$f":"'Population 2016'!AD144*'Prevalence Rates'!AD144","v":483.39181057344337},{"$f":"'Population 2016'!AE144*'Prevalence Rates'!AE144","v":327.51654365622221},{"$f":"'Population 2016'!AF144*'Prevalence Rates'!AF144","v":61.725415811685842},{"$f":"'Population 2016'!AG144*'Prevalence Rates'!AG144","v":327.51654365622221},{"$f":"'Population 2016'!AH144*'Prevalence Rates'!AH144","v":624.09601143574412},{"$f":"'Population 2016'!AI144*'Prevalence Rates'!AI144","v":742.48982104080903},{"$f":"'Population 2016'!AJ144*'Prevalence Rates'!AJ144","v":98.016985590122815},{"$f":"'Population 2016'!AK144*'Prevalence Rates'!AK144","v":126.2768145159549},{"$f":"'Population 2016'!AL144*'Prevalence Rates'!AL144","v":87.159261844934704},{"$f":"'Population 2016'!AM144*'Prevalence Rates'!AM144","v":340.90277841056371},{"$f":"'Population 2016'!AN144*'Prevalence Rates'!AN144","v":28.706036750976789},{"$f":"'Population 2016'!AO144*'Prevalence Rates'!AO144","v":28.706036750976789},{"$f":"'Population 2016'!AP144*'Prevalence Rates'!AP144","v":153.79296373321245},{"$f":"'Population 2016'!AQ144*'Prevalence Rates'!AQ144","v":152.75181214120809},{"$f":"'Population 2016'!AR144*'Prevalence Rates'!AR144","v":4951.5682356309235},{"$f":"'Population 2016'!AS144*'Prevalence Rates'!AS144","v":178.63186599960167},{"$f":"'Population 2016'!AT144*'Prevalence Rates'!AT144","v":29.449716459551318},{"$f":"'Population 2016'!AU144*'Prevalence Rates'!AU144","v":29.449716459551318},{"$f":"'Population 2016'!AV144*'Prevalence Rates'!AV144","v":111.10574846103452},{"$f":"'Population 2016'!AW144*'Prevalence Rates'!AW144","v":283.19323302518035},{"$f":"'Population 2016'!AX144*'Prevalence Rates'!AX144","v":71.393252023154716},{"$f":"'Population 2016'!AY144*'Prevalence Rates'!AY144","v":764.2052685311852},{"$f":"'Population 2016'!AZ144*'Prevalence Rates'!AZ144","v":402.18198639710488},{"$f":"'Population 2016'!BA144*'Prevalence Rates'!BA144","v":60.08932045282188},{"$f":"'Population 2016'!BB144*'Prevalence Rates'!BB144","v":193.80293205452205},{"$f":"'Population 2016'!BC144*'Prevalence Rates'!BC144","v":85.374430544355846},142]
[null,"Female 45-49",{"$f":"'Population 2016'!C145*'Prevalence Rates'!C145","v":133.11866783484055},{"$f":"'Population 2016'!D145*'Prevalence Rates'!D145","v":442.935634426989},{"$f":"'Population 2016'!E145*'Prevalence Rates'!E145","v":309.81696659214845},{"$f":"'Population 2016'!F145*'Prevalence Rates'!F145","v":210.46135752659148},{"$f":"'Population 2016'!G145*'Prevalence Rates'!G145","v":192.46430857908791},{"$f":"'Population 2016'!H145*'Prevalence Rates'!H145","v":378.38423572271995},{"$f":"'Population 2016'!I145*'Prevalence Rates'!I145","v":230.54070965810374},{"$f":"'Population 2016'!J145*'Prevalence Rates'!J145","v":139.8117852120113},{"$f":"'Population 2016'!K145*'Prevalence Rates'!K145","v":58.453225093957919},{"$f":"'Population 2016'!L145*'Prevalence Rates'!L145","v":321.56710598762601},{"$f":"'Population 2016'!M145*'Prevalence Rates'!M145","v":321.56710598762601},{"$f":"'Population 2016'!N145*'Prevalence Rates'!N145","v":79.722464759189421},{"$f":"'Population 2016'!O145*'Prevalence Rates'!O145","v":129.10279740853809},{"$f":"'Population 2016'!P145*'Prevalence Rates'!P145","v":46.10814193162075},{"$f":"'Population 2016'!Q145*'Prevalence Rates'!Q145","v":140.10925709544111},{"$f":"'Population 2016'!R145*'Prevalence Rates'!R145","v":53.098731192221315},{"$f":"'Population 2016'!S145*'Prevalence Rates'!S145","v":1503.5716347959813},{"$f":"'Population 2016'!T145*'Prevalence Rates'!T145","v":311.45306195101244},{"$f":"'Population 2016'!U145*'Prevalence Rates'!U145","v":105.4537826758681},{"$f":"'Population 2016'!V145*'Prevalence Rates'!V145","v":167.92287819612847},{"$f":"'Population 2016'!W145*'Prevalence Rates'!W145","v":450.37243151273429},{"$f":"'Population 2016'!X145*'Prevalence Rates'!X145","v":450.37243151273429},{"$f":"'Population 2016'!Y145*'Prevalence Rates'!Y145","v":307.7346634081398},{"$f":"'Population 2016'!Z145*'Prevalence Rates'!Z145","v":406.64406464855205},{"$f":"'Population 2016'!AA145*'Prevalence Rates'!AA145","v":1617.6521020913137},{"$f":"'Population 2016'!AB145*'Prevalence Rates'!AB145","v":591.67157614189466},{"$f":"'Population 2016'!AC145*'Prevalence Rates'!AC145","v":869.65905120705327},{"$f":"'Population 2016'!AD145*'Prevalence Rates'!AD145","v":621.86497231002045},{"$f":"'Population 2016'!AE145*'Prevalence Rates'!AE145","v":429.40066373093259},{"$f":"'Population 2016'!AF145*'Prevalence Rates'!AF145","v":72.731875498588863},{"$f":"'Population 2016'!AG145*'Prevalence Rates'!AG145","v":429.40066373093259},{"$f":"'Population 2016'!AH145*'Prevalence Rates'!AH145","v":747.99305088426047},{"$f":"'Population 2016'!AI145*'Prevalence Rates'!AI145","v":822.65849362514314},{"$f":"'Population 2016'!AJ145*'Prevalence Rates'!AJ145","v":129.251533350253},{"$f":"'Population 2016'!AK145*'Prevalence Rates'!AK145","v":148.73594171490564},{"$f":"'Population 2016'!AL145*'Prevalence Rates'!AL145","v":110.6595406358898},{"$f":"'Population 2016'!AM145*'Prevalence Rates'!AM145","v":372.13732617069394},{"$f":"'Population 2016'!AN145*'Prevalence Rates'!AN145","v":38.671344845875467},{"$f":"'Population 2016'!AO145*'Prevalence Rates'!AO145","v":38.671344845875467},{"$f":"'Population 2016'!AP145*'Prevalence Rates'!AP145","v":203.61950420770583},{"$f":"'Population 2016'!AQ145*'Prevalence Rates'!AQ145","v":204.80939174142506},{"$f":"'Population 2016'!AR145*'Prevalence Rates'!AR145","v":6022.0208081531},{"$f":"'Population 2016'!AS145*'Prevalence Rates'!AS145","v":230.54070965810374},{"$f":"'Population 2016'!AT145*'Prevalence Rates'!AT145","v":41.646063680173583},{"$f":"'Population 2016'!AU145*'Prevalence Rates'!AU145","v":41.646063680173583},{"$f":"'Population 2016'!AV145*'Prevalence Rates'!AV145","v":138.62189767829207},{"$f":"'Population 2016'!AW145*'Prevalence Rates'!AW145","v":375.85572471356659},{"$f":"'Population 2016'!AX145*'Prevalence Rates'!AX145","v":81.35856011805339},{"$f":"'Population 2016'!AY145*'Prevalence Rates'!AY145","v":944.17575800622103},{"$f":"'Population 2016'!AZ145*'Prevalence Rates'!AZ145","v":493.80332649348674},{"$f":"'Population 2016'!BA145*'Prevalence Rates'!BA145","v":86.266846194645268},{"$f":"'Population 2016'!BB145*'Prevalence Rates'!BB145","v":241.84464122843659},{"$f":"'Population 2016'!BC145*'Prevalence Rates'!BC145","v":105.4537826758681},143]
[null,"Female 50-54",{"$f":"'Population 2016'!C146*'Prevalence Rates'!C146","v":148.14099794804602},{"$f":"'Population 2016'!D146*'Prevalence Rates'!D146","v":457.21428483161998},{"$f":"'Population 2016'!E146*'Prevalence Rates'!E146","v":309.07328688357393},{"$f":"'Population 2016'!F146*'Prevalence Rates'!F146","v":236.19267544327016},{"$f":"'Population 2016'!G146*'Prevalence Rates'!G146","v":239.76233804442791},{"$f":"'Population 2016'!H146*'Prevalence Rates'!H146","v":420.17903534460845},{"$f":"'Population 2016'!I146*'Prevalence Rates'!I146","v":236.93635515184468},{"$f":"'Population 2016'!J146*'Prevalence Rates'!J146","v":148.28973388976092},{"$f":"'Population 2016'!K146*'Prevalence Rates'!K146","v":60.238056394536784},{"$f":"'Population 2016'!L146*'Prevalence Rates'!L146","v":348.0421036128792},{"$f":"'Population 2016'!M146*'Prevalence Rates'!M146","v":348.0421036128792},{"$f":"'Population 2016'!N146*'Prevalence Rates'!N146","v":98.165721531837733},{"$f":"'Population 2016'!O146*'Prevalence Rates'!O146","v":137.72948202800262},{"$f":"'Population 2016'!P146*'Prevalence Rates'!P146","v":39.563760496164903},{"$f":"'Population 2016'!Q146*'Prevalence Rates'!Q146","v":126.2768145159549},{"$f":"'Population 2016'!R146*'Prevalence Rates'!R146","v":60.08932045282188},{"$f":"'Population 2016'!S146*'Prevalence Rates'!S146","v":1527.9643292372257},{"$f":"'Population 2016'!T146*'Prevalence Rates'!T146","v":307.8833993498547},{"$f":"'Population 2016'!U146*'Prevalence Rates'!U146","v":106.94114209301716},{"$f":"'Population 2016'!V146*'Prevalence Rates'!V146","v":177.88818629102715},{"$f":"'Population 2016'!W146*'Prevalence Rates'!W146","v":486.51526534945634},{"$f":"'Population 2016'!X146*'Prevalence Rates'!X146","v":486.51526534945634},{"$f":"'Population 2016'!Y146*'Prevalence Rates'!Y146","v":326.17792018078808},{"$f":"'Population 2016'!Z146*'Prevalence Rates'!Z146","v":425.53352924634504},{"$f":"'Population 2016'!AA146*'Prevalence Rates'!AA146","v":1631.4845446708},{"$f":"'Population 2016'!AB146*'Prevalence Rates'!AB146","v":619.9314050677267},{"$f":"'Population 2016'!AC146*'Prevalence Rates'!AC146","v":888.99472362999109},{"$f":"'Population 2016'!AD146*'Prevalence Rates'!AD146","v":704.85962778693784},{"$f":"'Population 2016'!AE146*'Prevalence Rates'!AE146","v":465.09728974250993},{"$f":"'Population 2016'!AF146*'Prevalence Rates'!AF146","v":81.209824176338486},{"$f":"'Population 2016'!AG146*'Prevalence Rates'!AG146","v":465.09728974250993},{"$f":"'Population 2016'!AH146*'Prevalence Rates'!AH146","v":742.48982104080903},{"$f":"'Population 2016'!AI146*'Prevalence Rates'!AI146","v":804.51270873592466},{"$f":"'Population 2016'!AJ146*'Prevalence Rates'!AJ146","v":130.14394900054245},{"$f":"'Population 2016'!AK146*'Prevalence Rates'!AK146","v":162.71712023610678},{"$f":"'Population 2016'!AL146*'Prevalence Rates'!AL146","v":118.69128148849471},{"$f":"'Population 2016'!AM146*'Prevalence Rates'!AM146","v":361.1308664837909},{"$f":"'Population 2016'!AN146*'Prevalence Rates'!AN146","v":42.241007447033205},{"$f":"'Population 2016'!AO146*'Prevalence Rates'!AO146","v":42.241007447033205},{"$f":"'Population 2016'!AP146*'Prevalence Rates'!AP146","v":222.65770474721376},{"$f":"'Population 2016'!AQ146*'Prevalence Rates'!AQ146","v":197.6700665391096},{"$f":"'Population 2016'!AR146*'Prevalence Rates'!AR146","v":6326.7807527269415},{"$f":"'Population 2016'!AS146*'Prevalence Rates'!AS146","v":236.93635515184468},{"$f":"'Population 2016'!AT146*'Prevalence Rates'!AT146","v":41.94353556360339},{"$f":"'Population 2016'!AU146*'Prevalence Rates'!AU146","v":41.94353556360339},{"$f":"'Population 2016'!AV146*'Prevalence Rates'!AV146","v":163.75827182811111},{"$f":"'Population 2016'!AW146*'Prevalence Rates'!AW146","v":381.35895455701808},{"$f":"'Population 2016'!AX146*'Prevalence Rates'!AX146","v":88.051677495224141},{"$f":"'Population 2016'!AY146*'Prevalence Rates'!AY146","v":1043.531367071778},{"$f":"'Population 2016'!AZ146*'Prevalence Rates'!AZ146","v":557.01610172232165},{"$f":"'Population 2016'!BA146*'Prevalence Rates'!BA146","v":84.928222719211121},{"$f":"'Population 2016'!BB146*'Prevalence Rates'!BB146","v":240.20854586957262},{"$f":"'Population 2016'!BC146*'Prevalence Rates'!BC146","v":106.94114209301716},144]
[null,"Female 55-59",{"$f":"'Population 2016'!C147*'Prevalence Rates'!C147","v":90.883570822841421},{"$f":"'Population 2016'!D147*'Prevalence Rates'!D147","v":277.66636207243386},{"$f":"'Population 2016'!E147*'Prevalence Rates'!E147","v":186.78279124959241},{"$f":"'Population 2016'!F147*'Prevalence Rates'!F147","v":154.68263378457115},{"$f":"'Population 2016'!G147*'Prevalence Rates'!G147","v":149.16541922027062},{"$f":"'Population 2016'!H147*'Prevalence Rates'!H147","v":250.78248019547854},{"$f":"'Population 2016'!I147*'Prevalence Rates'!I147","v":157.49139756276051},{"$f":"'Population 2016'!J147*'Prevalence Rates'!J147","v":90.081066886215893},{"$f":"'Population 2016'!K147*'Prevalence Rates'!K147","v":38.720814942181889},{"$f":"'Population 2016'!L147*'Prevalence Rates'!L147","v":217.98013178590995},{"$f":"'Population 2016'!M147*'Prevalence Rates'!M147","v":217.98013178590995},{"$f":"'Population 2016'!N147*'Prevalence Rates'!N147","v":63.99968894588612},{"$f":"'Population 2016'!O147*'Prevalence Rates'!O147","v":81.052897599178664},{"$f":"'Population 2016'!P147*'Prevalence Rates'!P147","v":27.987324789815403},{"$f":"'Population 2016'!Q147*'Prevalence Rates'!Q147","v":83.861661377368023},{"$f":"'Population 2016'!R147*'Prevalence Rates'!R147","v":39.62363187088561},{"$f":"'Population 2016'!S147*'Prevalence Rates'!S147","v":938.22741490732426},{"$f":"'Population 2016'!T147*'Prevalence Rates'!T147","v":182.66995857438656},{"$f":"'Population 2016'!U147*'Prevalence Rates'!U147","v":68.513773589404735},{"$f":"'Population 2016'!V147*'Prevalence Rates'!V147","v":107.33490152366481},{"$f":"'Population 2016'!W147*'Prevalence Rates'!W147","v":299.63490733755776},{"$f":"'Population 2016'!X147*'Prevalence Rates'!X147","v":299.63490733755776},{"$f":"'Population 2016'!Y147*'Prevalence Rates'!Y147","v":197.41596840988072},{"$f":"'Population 2016'!Z147*'Prevalence Rates'!Z147","v":256.29969475977907},{"$f":"'Population 2016'!AA147*'Prevalence Rates'!AA147","v":1021.888450300536},{"$f":"'Population 2016'!AB147*'Prevalence Rates'!AB147","v":373.56558249918481},{"$f":"'Population 2016'!AC147*'Prevalence Rates'!AC147","v":553.52709028746028},{"$f":"'Population 2016'!AD147*'Prevalence Rates'!AD147","v":452.11065529640871},{"$f":"'Population 2016'!AE147*'Prevalence Rates'!AE147","v":302.94523607613809},{"$f":"'Population 2016'!AF147*'Prevalence Rates'!AF147","v":57.278718476647299},{"$f":"'Population 2016'!AG147*'Prevalence Rates'!AG147","v":302.94523607613809},{"$f":"'Population 2016'!AH147*'Prevalence Rates'!AH147","v":468.36136001307574},{"$f":"'Population 2016'!AI147*'Prevalence Rates'!AI147","v":481.10111000700601},{"$f":"'Population 2016'!AJ147*'Prevalence Rates'!AJ147","v":76.639125947738236},{"$f":"'Population 2016'!AK147*'Prevalence Rates'!AK147","v":95.899220426750986},{"$f":"'Population 2016'!AL147*'Prevalence Rates'!AL147","v":76.639125947738236},{"$f":"'Population 2016'!AM147*'Prevalence Rates'!AM147","v":215.0710550156424},{"$f":"'Population 2016'!AN147*'Prevalence Rates'!AN147","v":24.476370067078705},{"$f":"'Population 2016'!AO147*'Prevalence Rates'!AO147","v":24.476370067078705},{"$f":"'Population 2016'!AP147*'Prevalence Rates'!AP147","v":137.62942513127862},{"$f":"'Population 2016'!AQ147*'Prevalence Rates'!AQ147","v":117.56682671564033},{"$f":"'Population 2016'!AR147*'Prevalence Rates'!AR147","v":3927.5545788374284},{"$f":"'Population 2016'!AS147*'Prevalence Rates'!AS147","v":157.49139756276051},{"$f":"'Population 2016'!AT147*'Prevalence Rates'!AT147","v":26.282003924486151},{"$f":"'Population 2016'!AU147*'Prevalence Rates'!AU147","v":26.282003924486151},{"$f":"'Population 2016'!AV147*'Prevalence Rates'!AV147","v":93.090456648561627},{"$f":"'Population 2016'!AW147*'Prevalence Rates'!AW147","v":253.29030499743331},{"$f":"'Population 2016'!AX147*'Prevalence Rates'!AX147","v":51.360251944034005},{"$f":"'Population 2016'!AY147*'Prevalence Rates'!AY147","v":655.94665519929367},{"$f":"'Population 2016'!AZ147*'Prevalence Rates'!AZ147","v":356.31174786173591},{"$f":"'Population 2016'!BA147*'Prevalence Rates'!BA147","v":54.770893674692516},{"$f":"'Population 2016'!BB147*'Prevalence Rates'!BB147","v":137.93036410751318},{"$f":"'Population 2016'!BC147*'Prevalence Rates'!BC147","v":68.513773589404735},145]
[null,"Female 60-64",{"$f":"'Population 2016'!C148*'Prevalence Rates'!C148","v":84.363226337758974},{"$f":"'Population 2016'!D148*'Prevalence Rates'!D148","v":265.02692507058174},{"$f":"'Population 2016'!E148*'Prevalence Rates'!E148","v":180.66369873282275},{"$f":"'Population 2016'!F148*'Prevalence Rates'!F148","v":136.62629521049672},{"$f":"'Population 2016'!G148*'Prevalence Rates'!G148","v":147.76103733117594},{"$f":"'Population 2016'!H148*'Prevalence Rates'!H148","v":230.51925579568388},{"$f":"'Population 2016'!I148*'Prevalence Rates'!I148","v":141.94288379064085},{"$f":"'Population 2016'!J148*'Prevalence Rates'!J148","v":83.560722401133447},{"$f":"'Population 2016'!K148*'Prevalence Rates'!K148","v":32.7020354174904},{"$f":"'Population 2016'!L148*'Prevalence Rates'!L148","v":213.76698611862591},{"$f":"'Population 2016'!M148*'Prevalence Rates'!M148","v":213.76698611862591},{"$f":"'Population 2016'!N148*'Prevalence Rates'!N148","v":52.764633833128684},{"$f":"'Population 2016'!O148*'Prevalence Rates'!O148","v":66.80845272407548},{"$f":"'Population 2016'!P148*'Prevalence Rates'!P148","v":24.075118098765941},{"$f":"'Population 2016'!Q148*'Prevalence Rates'!Q148","v":73.128171225001537},{"$f":"'Population 2016'!R148*'Prevalence Rates'!R148","v":34.407356282819656},{"$f":"'Population 2016'!S148*'Prevalence Rates'!S148","v":804.00863150670421},{"$f":"'Population 2016'!T148*'Prevalence Rates'!T148","v":149.06510622819243},{"$f":"'Population 2016'!U148*'Prevalence Rates'!U148","v":69.516903510186651},{"$f":"'Population 2016'!V148*'Prevalence Rates'!V148","v":97.303602315845666},{"$f":"'Population 2016'!W148*'Prevalence Rates'!W148","v":258.90783255381206},{"$f":"'Population 2016'!X148*'Prevalence Rates'!X148","v":258.90783255381206},{"$f":"'Population 2016'!Y148*'Prevalence Rates'!Y148","v":180.86432471697913},{"$f":"'Population 2016'!Z148*'Prevalence Rates'!Z148","v":188.78905109115624},{"$f":"'Population 2016'!AA148*'Prevalence Rates'!AA148","v":832.19658228067601},{"$f":"'Population 2016'!AB148*'Prevalence Rates'!AB148","v":351.69735022613912},{"$f":"'Population 2016'!AC148*'Prevalence Rates'!AC148","v":438.46808837377466},{"$f":"'Population 2016'!AD148*'Prevalence Rates'!AD148","v":425.12646042737521},{"$f":"'Population 2016'!AE148*'Prevalence Rates'!AE148","v":277.36542309619927},{"$f":"'Population 2016'!AF148*'Prevalence Rates'!AF148","v":39.824257855041992},{"$f":"'Population 2016'!AG148*'Prevalence Rates'!AG148","v":277.36542309619927},{"$f":"'Population 2016'!AH148*'Prevalence Rates'!AH148","v":393.72849390690129},{"$f":"'Population 2016'!AI148*'Prevalence Rates'!AI148","v":403.1579151622513},{"$f":"'Population 2016'!AJ148*'Prevalence Rates'!AJ148","v":65.103131858746224},{"$f":"'Population 2016'!AK148*'Prevalence Rates'!AK148","v":86.670425155557382},{"$f":"'Population 2016'!AL148*'Prevalence Rates'!AL148","v":76.438499963581862},{"$f":"'Population 2016'!AM148*'Prevalence Rates'!AM148","v":182.06808062191743},{"$f":"'Population 2016'!AN148*'Prevalence Rates'!AN148","v":22.169171249280303},{"$f":"'Population 2016'!AO148*'Prevalence Rates'!AO148","v":22.169171249280303},{"$f":"'Population 2016'!AP148*'Prevalence Rates'!AP148","v":123.8865452165664},{"$f":"'Population 2016'!AQ148*'Prevalence Rates'!AQ148","v":102.01831294352067},{"$f":"'Population 2016'!AR148*'Prevalence Rates'!AR148","v":3469.3248310242502},{"$f":"'Population 2016'!AS148*'Prevalence Rates'!AS148","v":141.94288379064085},{"$f":"'Population 2016'!AT148*'Prevalence Rates'!AT148","v":26.18169093240796},{"$f":"'Population 2016'!AU148*'Prevalence Rates'!AU148","v":26.18169093240796},{"$f":"'Population 2016'!AV148*'Prevalence Rates'!AV148","v":87.272303108026534},{"$f":"'Population 2016'!AW148*'Prevalence Rates'!AW148","v":211.66041328498389},{"$f":"'Population 2016'!AX148*'Prevalence Rates'!AX148","v":50.858686983643047},{"$f":"'Population 2016'!AY148*'Prevalence Rates'!AY148","v":572.18530681400387},{"$f":"'Population 2016'!AZ148*'Prevalence Rates'!AZ148","v":313.27747426019181},{"$f":"'Population 2016'!BA148*'Prevalence Rates'!BA148","v":49.35399210247018},{"$f":"'Population 2016'!BB148*'Prevalence Rates'!BB148","v":115.86150585031109},{"$f":"'Population 2016'!BC148*'Prevalence Rates'!BC148","v":69.516903510186651},146]
[null,"Female 65-69",{"$f":"'Population 2016'!C149*'Prevalence Rates'!C149","v":79.648515710083984},{"$f":"'Population 2016'!D149*'Prevalence Rates'!D149","v":261.21503137161045},{"$f":"'Population 2016'!E149*'Prevalence Rates'!E149","v":181.56651566152647},{"$f":"'Population 2016'!F149*'Prevalence Rates'!F149","v":144.75164756883021},{"$f":"'Population 2016'!G149*'Prevalence Rates'!G149","v":156.08701567366583},{"$f":"'Population 2016'!H149*'Prevalence Rates'!H149","v":248.37496838560193},{"$f":"'Population 2016'!I149*'Prevalence Rates'!I149","v":151.97418299845998},{"$f":"'Population 2016'!J149*'Prevalence Rates'!J149","v":82.557592480351531},{"$f":"'Population 2016'!K149*'Prevalence Rates'!K149","v":36.012364156070717},{"$f":"'Population 2016'!L149*'Prevalence Rates'!L149","v":230.41894280360569},{"$f":"'Population 2016'!M149*'Prevalence Rates'!M149","v":230.41894280360569},{"$f":"'Population 2016'!N149*'Prevalence Rates'!N149","v":54.971519658848898},{"$f":"'Population 2016'!O149*'Prevalence Rates'!O149","v":77.241003900207389},{"$f":"'Population 2016'!P149*'Prevalence Rates'!P149","v":21.166041328498387},{"$f":"'Population 2016'!Q149*'Prevalence Rates'!Q149","v":74.131301145783453},{"$f":"'Population 2016'!R149*'Prevalence Rates'!R149","v":32.802348409568594},{"$f":"'Population 2016'!S149*'Prevalence Rates'!S149","v":842.22788148849509},{"$f":"'Population 2016'!T149*'Prevalence Rates'!T149","v":142.64507473518819},{"$f":"'Population 2016'!U149*'Prevalence Rates'!U149","v":70.921285399281331},{"$f":"'Population 2016'!V149*'Prevalence Rates'!V149","v":101.91799995144248},{"$f":"'Population 2016'!W149*'Prevalence Rates'!W149","v":283.18357663673436},{"$f":"'Population 2016'!X149*'Prevalence Rates'!X149","v":283.18357663673436},{"$f":"'Population 2016'!Y149*'Prevalence Rates'!Y149","v":184.47559243179401},{"$f":"'Population 2016'!Z149*'Prevalence Rates'!Z149","v":160.30016134094987},{"$f":"'Population 2016'!AA149*'Prevalence Rates'!AA149","v":778.72975750299997},{"$f":"'Population 2016'!AB149*'Prevalence Rates'!AB149","v":350.69422030535719},{"$f":"'Population 2016'!AC149*'Prevalence Rates'!AC149","v":407.07012185330075},{"$f":"'Population 2016'!AD149*'Prevalence Rates'!AD149","v":435.55901160350714},{"$f":"'Population 2016'!AE149*'Prevalence Rates'!AE149","v":279.47199592984128},{"$f":"'Population 2016'!AF149*'Prevalence Rates'!AF149","v":39.62363187088561},{"$f":"'Population 2016'!AG149*'Prevalence Rates'!AG149","v":279.47199592984128},{"$f":"'Population 2016'!AH149*'Prevalence Rates'!AH149","v":371.65963564969917},{"$f":"'Population 2016'!AI149*'Prevalence Rates'!AI149","v":407.07012185330075},{"$f":"'Population 2016'!AJ149*'Prevalence Rates'!AJ149","v":72.225354296297823},{"$f":"'Population 2016'!AK149*'Prevalence Rates'!AK149","v":89.479188933746741},{"$f":"'Population 2016'!AL149*'Prevalence Rates'!AL149","v":78.645385789302068},{"$f":"'Population 2016'!AM149*'Prevalence Rates'!AM149","v":179.96150778827541},{"$f":"'Population 2016'!AN149*'Prevalence Rates'!AN149","v":22.771049201749452},{"$f":"'Population 2016'!AO149*'Prevalence Rates'!AO149","v":22.771049201749452},{"$f":"'Population 2016'!AP149*'Prevalence Rates'!AP149","v":129.70469875710151},{"$f":"'Population 2016'!AQ149*'Prevalence Rates'!AQ149","v":104.52613774547545},{"$f":"'Population 2016'!AR149*'Prevalence Rates'!AR149","v":3517.0738152534691},{"$f":"'Population 2016'!AS149*'Prevalence Rates'!AS149","v":151.97418299845998},{"$f":"'Population 2016'!AT149*'Prevalence Rates'!AT149","v":23.473240146296792},{"$f":"'Population 2016'!AU149*'Prevalence Rates'!AU149","v":23.473240146296792},{"$f":"'Population 2016'!AV149*'Prevalence Rates'!AV149","v":92.488578696092489},{"$f":"'Population 2016'!AW149*'Prevalence Rates'!AW149","v":191.69812786142379},{"$f":"'Population 2016'!AX149*'Prevalence Rates'!AX149","v":46.545228324280814},{"$f":"'Population 2016'!AY149*'Prevalence Rates'!AY149","v":612.61144262151493},{"$f":"'Population 2016'!AZ149*'Prevalence Rates'!AZ149","v":329.42786598478062},{"$f":"'Population 2016'!BA149*'Prevalence Rates'!BA149","v":48.651801157922833},{"$f":"'Population 2016'!BB149*'Prevalence Rates'!BB149","v":118.0683916760313},{"$f":"'Population 2016'!BC149*'Prevalence Rates'!BC149","v":70.921285399281331},147]
[null,"Female 70-74",{"$f":"'Population 2016'!C150*'Prevalence Rates'!C150","v":60.087482254836658},{"$f":"'Population 2016'!D150*'Prevalence Rates'!D150","v":194.30626565545677},{"$f":"'Population 2016'!E150*'Prevalence Rates'!E150","v":134.21878340062011},{"$f":"'Population 2016'!F150*'Prevalence Rates'!F150","v":108.83959640483769},{"$f":"'Population 2016'!G150*'Prevalence Rates'!G150","v":116.36307081070204},{"$f":"'Population 2016'!H150*'Prevalence Rates'!H150","v":200.32504518014827},{"$f":"'Population 2016'!I150*'Prevalence Rates'!I150","v":114.65774994537279},{"$f":"'Population 2016'!J150*'Prevalence Rates'!J150","v":65.905635795371765},{"$f":"'Population 2016'!K150*'Prevalence Rates'!K150","v":27.987324789815403},{"$f":"'Population 2016'!L150*'Prevalence Rates'!L150","v":187.48498219413975},{"$f":"'Population 2016'!M150*'Prevalence Rates'!M150","v":187.48498219413975},{"$f":"'Population 2016'!N150*'Prevalence Rates'!N150","v":41.629891712449435},{"$f":"'Population 2016'!O150*'Prevalence Rates'!O150","v":60.99029918354038},{"$f":"'Population 2016'!P150*'Prevalence Rates'!P150","v":16.250704716667009},{"$f":"'Population 2016'!Q150*'Prevalence Rates'!Q150","v":59.084352334054742},{"$f":"'Population 2016'!R150*'Prevalence Rates'!R150","v":26.18169093240796},{"$f":"'Population 2016'!S150*'Prevalence Rates'!S150","v":644.10972213406706},{"$f":"'Population 2016'!T150*'Prevalence Rates'!T150","v":106.93364955535205},{"$f":"'Population 2016'!U150*'Prevalence Rates'!U150","v":57.679970444960063},{"$f":"'Population 2016'!V150*'Prevalence Rates'!V150","v":73.128171225001537},{"$f":"'Population 2016'!W150*'Prevalence Rates'!W150","v":215.57261997603334},{"$f":"'Population 2016'!X150*'Prevalence Rates'!X150","v":215.57261997603334},{"$f":"'Population 2016'!Y150*'Prevalence Rates'!Y150","v":139.0338070203733},{"$f":"'Population 2016'!Z150*'Prevalence Rates'!Z150","v":124.58873616111374},{"$f":"'Population 2016'!AA150*'Prevalence Rates'!AA150","v":617.92803120165911},{"$f":"'Population 2016'!AB150*'Prevalence Rates'!AB150","v":270.04257467449128},{"$f":"'Population 2016'!AC150*'Prevalence Rates'!AC150","v":315.08310811759924},{"$f":"'Population 2016'!AD150*'Prevalence Rates'!AD150","v":340.46229511338169},{"$f":"'Population 2016'!AE150*'Prevalence Rates'!AE150","v":224.09922430267963},{"$f":"'Population 2016'!AF150*'Prevalence Rates'!AF150","v":33.002974393724976},{"$f":"'Population 2016'!AG150*'Prevalence Rates'!AG150","v":224.09922430267963},{"$f":"'Population 2016'!AH150*'Prevalence Rates'!AH150","v":302.84492308405987},{"$f":"'Population 2016'!AI150*'Prevalence Rates'!AI150","v":313.87935221266093},{"$f":"'Population 2016'!AJ150*'Prevalence Rates'!AJ150","v":54.670580682614322},{"$f":"'Population 2016'!AK150*'Prevalence Rates'!AK150","v":75.736309019034522},{"$f":"'Population 2016'!AL150*'Prevalence Rates'!AL150","v":65.504383827058987},{"$f":"'Population 2016'!AM150*'Prevalence Rates'!AM150","v":141.04006686193713},{"$f":"'Population 2016'!AN150*'Prevalence Rates'!AN150","v":22.971675185905834},{"$f":"'Population 2016'!AO150*'Prevalence Rates'!AO150","v":22.971675185905834},{"$f":"'Population 2016'!AP150*'Prevalence Rates'!AP150","v":112.25023813549619},{"$f":"'Population 2016'!AQ150*'Prevalence Rates'!AQ150","v":79.748828702162172},{"$f":"'Population 2016'!AR150*'Prevalence Rates'!AR150","v":2764.4254356907991},{"$f":"'Population 2016'!AS150*'Prevalence Rates'!AS150","v":114.65774994537279},{"$f":"'Population 2016'!AT150*'Prevalence Rates'!AT150","v":21.667606288889345},{"$f":"'Population 2016'!AU150*'Prevalence Rates'!AU150","v":21.667606288889345},{"$f":"'Population 2016'!AV150*'Prevalence Rates'!AV150","v":73.830362169548877},{"$f":"'Population 2016'!AW150*'Prevalence Rates'!AW150","v":161.80485622212277},{"$f":"'Population 2016'!AX150*'Prevalence Rates'!AX150","v":37.918311005556355},{"$f":"'Population 2016'!AY150*'Prevalence Rates'!AY150","v":478.29234622881665},{"$f":"'Population 2016'!AZ150*'Prevalence Rates'!AZ150","v":262.71972625278329},{"$f":"'Population 2016'!BA150*'Prevalence Rates'!BA150","v":35.310173211523377},{"$f":"'Population 2016'!BB150*'Prevalence Rates'!BB150","v":93.190769640639829},{"$f":"'Population 2016'!BC150*'Prevalence Rates'!BC150","v":57.679970444960063},148]
[null,"Female 75-79",{"$f":"'Population 2016'!C151*'Prevalence Rates'!C151","v":55.473084619239856},{"$f":"'Population 2016'!D151*'Prevalence Rates'!D151","v":160.30016134094987},{"$f":"'Population 2016'!E151*'Prevalence Rates'!E151","v":104.82707672171003},{"$f":"'Population 2016'!F151*'Prevalence Rates'!F151","v":82.05602751996058},{"$f":"'Population 2016'!G151*'Prevalence Rates'!G151","v":95.698594442594612},{"$f":"'Population 2016'!H151*'Prevalence Rates'!H151","v":148.36291528364509},{"$f":"'Population 2016'!I151*'Prevalence Rates'!I151","v":92.388265704014287},{"$f":"'Population 2016'!J151*'Prevalence Rates'!J151","v":53.868076745988787},{"$f":"'Population 2016'!K151*'Prevalence Rates'!K151","v":21.767919280967536},{"$f":"'Population 2016'!L151*'Prevalence Rates'!L151","v":142.64507473518819},{"$f":"'Population 2016'!M151*'Prevalence Rates'!M151","v":142.64507473518819},{"$f":"'Population 2016'!N151*'Prevalence Rates'!N151","v":40.125196831276568},{"$f":"'Population 2016'!O151*'Prevalence Rates'!O151","v":43.435525569856885},{"$f":"'Population 2016'!P151*'Prevalence Rates'!P151","v":11.937246057304778},{"$f":"'Population 2016'!Q151*'Prevalence Rates'!Q151","v":50.256809031173901},{"$f":"'Population 2016'!R151*'Prevalence Rates'!R151","v":25.780438964095193},{"$f":"'Population 2016'!S151*'Prevalence Rates'!S151","v":514.10408440073104},{"$f":"'Population 2016'!T151*'Prevalence Rates'!T151","v":89.479188933746741},{"$f":"'Population 2016'!U151*'Prevalence Rates'!U151","v":51.059312967799428},{"$f":"'Population 2016'!V151*'Prevalence Rates'!V151","v":60.589047215227616},{"$f":"'Population 2016'!W151*'Prevalence Rates'!W151","v":169.42864362006529},{"$f":"'Population 2016'!X151*'Prevalence Rates'!X151","v":169.42864362006529},{"$f":"'Population 2016'!Y151*'Prevalence Rates'!Y151","v":114.45712396121641},{"$f":"'Population 2016'!Z151*'Prevalence Rates'!Z151","v":104.12488577716269},{"$f":"'Population 2016'!AA151*'Prevalence Rates'!AA151","v":515.00690132943475},{"$f":"'Population 2016'!AB151*'Prevalence Rates'!AB151","v":221.39077351656846},{"$f":"'Population 2016'!AC151*'Prevalence Rates'!AC151","v":264.52536011019077},{"$f":"'Population 2016'!AD151*'Prevalence Rates'!AD151","v":259.71033649043756},{"$f":"'Population 2016'!AE151*'Prevalence Rates'!AE151","v":164.01174204784297},{"$f":"'Population 2016'!AF151*'Prevalence Rates'!AF151","v":29.692645655144659},{"$f":"'Population 2016'!AG151*'Prevalence Rates'!AG151","v":164.01174204784297},{"$f":"'Population 2016'!AH151*'Prevalence Rates'!AH151","v":250.48154121924395},{"$f":"'Population 2016'!AI151*'Prevalence Rates'!AI151","v":252.28717507665141},{"$f":"'Population 2016'!AJ151*'Prevalence Rates'!AJ151","v":43.134586593622309},{"$f":"'Population 2016'!AK151*'Prevalence Rates'!AK151","v":61.090612175618574},{"$f":"'Population 2016'!AL151*'Prevalence Rates'!AL151","v":51.861816904424963},{"$f":"'Population 2016'!AM151*'Prevalence Rates'!AM151","v":109.04022238899407},{"$f":"'Population 2016'!AN151*'Prevalence Rates'!AN151","v":18.55790353446541},{"$f":"'Population 2016'!AO151*'Prevalence Rates'!AO151","v":18.55790353446541},{"$f":"'Population 2016'!AP151*'Prevalence Rates'!AP151","v":85.36635625854089},{"$f":"'Population 2016'!AQ151*'Prevalence Rates'!AQ151","v":64.100001937964308},{"$f":"'Population 2016'!AR151*'Prevalence Rates'!AR151","v":2209.6945894984005},{"$f":"'Population 2016'!AS151*'Prevalence Rates'!AS151","v":92.388265704014287},{"$f":"'Population 2016'!AT151*'Prevalence Rates'!AT151","v":16.852582669136158},{"$f":"'Population 2016'!AU151*'Prevalence Rates'!AU151","v":16.852582669136158},{"$f":"'Population 2016'!AV151*'Prevalence Rates'!AV151","v":53.06557280936326},{"$f":"'Population 2016'!AW151*'Prevalence Rates'!AW151","v":141.44131883024988},{"$f":"'Population 2016'!AX151*'Prevalence Rates'!AX151","v":32.100157465021255},{"$f":"'Population 2016'!AY151*'Prevalence Rates'!AY151","v":376.97622422984335},{"$f":"'Population 2016'!AZ151*'Prevalence Rates'!AZ151","v":207.54758060977804},{"$f":"'Population 2016'!BA151*'Prevalence Rates'!BA151","v":28.890141718519128},{"$f":"'Population 2016'!BB151*'Prevalence Rates'!BB151","v":69.416590518108464},{"$f":"'Population 2016'!BC151*'Prevalence Rates'!BC151","v":51.059312967799428},149]
[null,"Female 80-84",{"$f":"'Population 2016'!C152*'Prevalence Rates'!C152","v":50.256809031173901},{"$f":"'Population 2016'!D152*'Prevalence Rates'!D152","v":118.26901766018769},{"$f":"'Population 2016'!E152*'Prevalence Rates'!E152","v":68.012208629013784},{"$f":"'Population 2016'!F152*'Prevalence Rates'!F152","v":62.595307056791441},{"$f":"'Population 2016'!G152*'Prevalence Rates'!G152","v":67.811582644857396},{"$f":"'Population 2016'!H152*'Prevalence Rates'!H152","v":108.43834443652491},{"$f":"'Population 2016'!I152*'Prevalence Rates'!I152","v":68.212834613170159},{"$f":"'Population 2016'!J152*'Prevalence Rates'!J152","v":38.720814942181889},{"$f":"'Population 2016'!K152*'Prevalence Rates'!K152","v":14.84632282757233},{"$f":"'Population 2016'!L152*'Prevalence Rates'!L152","v":105.42895467417918},{"$f":"'Population 2016'!M152*'Prevalence Rates'!M152","v":105.42895467417918},{"$f":"'Population 2016'!N152*'Prevalence Rates'!N152","v":39.824257855041992},{"$f":"'Population 2016'!O152*'Prevalence Rates'!O152","v":31.899531480864869},{"$f":"'Population 2016'!P152*'Prevalence Rates'!P152","v":7.8244133820989301},{"$f":"'Population 2016'!Q152*'Prevalence Rates'!Q152","v":39.122066910494652},{"$f":"'Population 2016'!R152*'Prevalence Rates'!R152","v":25.078248019547853},{"$f":"'Population 2016'!S152*'Prevalence Rates'!S152","v":378.58123210309441},{"$f":"'Population 2016'!T152*'Prevalence Rates'!T152","v":70.921285399281331},{"$f":"'Population 2016'!U152*'Prevalence Rates'!U152","v":38.219249981790931},{"$f":"'Population 2016'!V152*'Prevalence Rates'!V152","v":42.031143680762206},{"$f":"'Population 2016'!W152*'Prevalence Rates'!W152","v":122.6827893116281},{"$f":"'Population 2016'!X152*'Prevalence Rates'!X152","v":122.6827893116281},{"$f":"'Population 2016'!Y152*'Prevalence Rates'!Y152","v":80.751958622944088},{"$f":"'Population 2016'!Z152*'Prevalence Rates'!Z152","v":93.993273577265356},{"$f":"'Population 2016'!AA152*'Prevalence Rates'!AA152","v":412.98858838591406},{"$f":"'Population 2016'!AB152*'Prevalence Rates'!AB152","v":169.22801763590891},{"$f":"'Population 2016'!AC152*'Prevalence Rates'!AC152","v":218.48169674630091},{"$f":"'Population 2016'!AD152*'Prevalence Rates'!AD152","v":188.48811211492168},{"$f":"'Population 2016'!AE152*'Prevalence Rates'!AE152","v":120.67652947006427},{"$f":"'Population 2016'!AF152*'Prevalence Rates'!AF152","v":21.667606288889345},{"$f":"'Population 2016'!AG152*'Prevalence Rates'!AG152","v":120.67652947006427},{"$f":"'Population 2016'!AH152*'Prevalence Rates'!AH152","v":194.50689163961314},{"$f":"'Population 2016'!AI152*'Prevalence Rates'!AI152","v":187.68560817829615},{"$f":"'Population 2016'!AJ152*'Prevalence Rates'!AJ152","v":29.79295864722285},{"$f":"'Population 2016'!AK152*'Prevalence Rates'!AK152","v":50.958999975721241},{"$f":"'Population 2016'!AL152*'Prevalence Rates'!AL152","v":36.012364156070717},{"$f":"'Population 2016'!AM152*'Prevalence Rates'!AM152","v":83.661035393211634},{"$f":"'Population 2016'!AN152*'Prevalence Rates'!AN152","v":10.633177160288289},{"$f":"'Population 2016'!AO152*'Prevalence Rates'!AO152","v":10.633177160288289},{"$f":"'Population 2016'!AP152*'Prevalence Rates'!AP152","v":67.310017684466445},{"$f":"'Population 2016'!AQ152*'Prevalence Rates'!AQ152","v":45.542098403498905},{"$f":"'Population 2016'!AR152*'Prevalence Rates'!AR152","v":1674.9260287295619},{"$f":"'Population 2016'!AS152*'Prevalence Rates'!AS152","v":68.212834613170159},{"$f":"'Population 2016'!AT152*'Prevalence Rates'!AT152","v":12.438811017695736},{"$f":"'Population 2016'!AU152*'Prevalence Rates'!AU152","v":12.438811017695736},{"$f":"'Population 2016'!AV152*'Prevalence Rates'!AV152","v":40.526448799589332},{"$f":"'Population 2016'!AW152*'Prevalence Rates'!AW152","v":110.84585624640151},{"$f":"'Population 2016'!AX152*'Prevalence Rates'!AX152","v":23.874492114609556},{"$f":"'Population 2016'!AY152*'Prevalence Rates'!AY152","v":292.41237190792799},{"$f":"'Population 2016'!AZ152*'Prevalence Rates'!AZ152","v":169.72958259629988},{"$f":"'Population 2016'!BA152*'Prevalence Rates'!BA152","v":24.376057075000514},{"$f":"'Population 2016'!BB152*'Prevalence Rates'!BB152","v":47.849297221297306},{"$f":"'Population 2016'!BC152*'Prevalence Rates'!BC152","v":38.219249981790931},150]
[null,"Female 85-89",{"$f":"'Population 2016'!C153*'Prevalence Rates'!C153","v":33.203600377881358},{"$f":"'Population 2016'!D153*'Prevalence Rates'!D153","v":82.256653504116954},{"$f":"'Population 2016'!E153*'Prevalence Rates'!E153","v":49.053053126235604},{"$f":"'Population 2016'!F153*'Prevalence Rates'!F153","v":40.927700767902095},{"$f":"'Population 2016'!G153*'Prevalence Rates'!G153","v":40.827387775823908},{"$f":"'Population 2016'!H153*'Prevalence Rates'!H153","v":61.190925167696761},{"$f":"'Population 2016'!I153*'Prevalence Rates'!I153","v":39.824257855041992},{"$f":"'Population 2016'!J153*'Prevalence Rates'!J153","v":24.376057075000514},{"$f":"'Population 2016'!K153*'Prevalence Rates'!K153","v":10.833803144444673},{"$f":"'Population 2016'!L153*'Prevalence Rates'!L153","v":71.924415320063247},{"$f":"'Population 2016'!M153*'Prevalence Rates'!M153","v":71.924415320063247},{"$f":"'Population 2016'!N153*'Prevalence Rates'!N153","v":22.269484241358494},{"$f":"'Population 2016'!O153*'Prevalence Rates'!O153","v":14.445070859259564},{"$f":"'Population 2016'!P153*'Prevalence Rates'!P153","v":5.015649603909571},{"$f":"'Population 2016'!Q153*'Prevalence Rates'!Q153","v":30.294523607613808},{"$f":"'Population 2016'!R153*'Prevalence Rates'!R153","v":15.448200780041478},{"$f":"'Population 2016'!S153*'Prevalence Rates'!S153","v":241.35305894012853},{"$f":"'Population 2016'!T153*'Prevalence Rates'!T153","v":49.253679110391985},{"$f":"'Population 2016'!U153*'Prevalence Rates'!U153","v":24.576683059156895},{"$f":"'Population 2016'!V153*'Prevalence Rates'!V153","v":22.068858257202113},{"$f":"'Population 2016'!W153*'Prevalence Rates'!W153","v":81.755088543726004},{"$f":"'Population 2016'!X153*'Prevalence Rates'!X153","v":81.755088543726004},{"$f":"'Population 2016'!Y153*'Prevalence Rates'!Y153","v":46.444915332202626},{"$f":"'Population 2016'!Z153*'Prevalence Rates'!Z153","v":56.676840524178147},{"$f":"'Population 2016'!AA153*'Prevalence Rates'!AA153","v":247.97371641728918},{"$f":"'Population 2016'!AB153*'Prevalence Rates'!AB153","v":109.14053538107225},{"$f":"'Population 2016'!AC153*'Prevalence Rates'!AC153","v":134.11847040854192},{"$f":"'Population 2016'!AD153*'Prevalence Rates'!AD153","v":122.28153734331534},{"$f":"'Population 2016'!AE153*'Prevalence Rates'!AE153","v":81.454149567491427},{"$f":"'Population 2016'!AF153*'Prevalence Rates'!AF153","v":17.554773613683498},{"$f":"'Population 2016'!AG153*'Prevalence Rates'!AG153","v":81.454149567491427},{"$f":"'Population 2016'!AH153*'Prevalence Rates'!AH153","v":113.85524600874726},{"$f":"'Population 2016'!AI153*'Prevalence Rates'!AI153","v":119.77371254136055},{"$f":"'Population 2016'!AJ153*'Prevalence Rates'!AJ153","v":15.548513772119669},{"$f":"'Population 2016'!AK153*'Prevalence Rates'!AK153","v":26.8838818769553},{"$f":"'Population 2016'!AL153*'Prevalence Rates'!AL153","v":22.771049201749452},{"$f":"'Population 2016'!AM153*'Prevalence Rates'!AM153","v":44.238029506482413},{"$f":"'Population 2016'!AN153*'Prevalence Rates'!AN153","v":7.8244133820989301},{"$f":"'Population 2016'!AO153*'Prevalence Rates'!AO153","v":7.8244133820989301},{"$f":"'Population 2016'!AP153*'Prevalence Rates'!AP153","v":45.943350371811668},{"$f":"'Population 2016'!AQ153*'Prevalence Rates'!AQ153","v":25.981064948251575},{"$f":"'Population 2016'!AR153*'Prevalence Rates'!AR153","v":1049.1735841458039},{"$f":"'Population 2016'!AS153*'Prevalence Rates'!AS153","v":39.824257855041992},{"$f":"'Population 2016'!AT153*'Prevalence Rates'!AT153","v":7.322848421707973},{"$f":"'Population 2016'!AU153*'Prevalence Rates'!AU153","v":7.322848421707973},{"$f":"'Population 2016'!AV153*'Prevalence Rates'!AV153","v":23.974805106687747},{"$f":"'Population 2016'!AW153*'Prevalence Rates'!AW153","v":69.617216502264839},{"$f":"'Population 2016'!AX153*'Prevalence Rates'!AX153","v":13.542253930555841},{"$f":"'Population 2016'!AY153*'Prevalence Rates'!AY153","v":190.89562392479826},{"$f":"'Population 2016'!AZ153*'Prevalence Rates'!AZ153","v":109.14053538107225},{"$f":"'Population 2016'!BA153*'Prevalence Rates'!BA153","v":13.44194093847765},{"$f":"'Population 2016'!BB153*'Prevalence Rates'!BB153","v":24.67699605123509},{"$f":"'Population 2016'!BC153*'Prevalence Rates'!BC153","v":24.576683059156895},151]
[null,"Female 90+",{"$f":"'Population 2016'!C154*'Prevalence Rates'!C154","v":19.059468494856368},{"$f":"'Population 2016'!D154*'Prevalence Rates'!D154","v":46.043663363889863},{"$f":"'Population 2016'!E154*'Prevalence Rates'!E154","v":26.984194869033491},{"$f":"'Population 2016'!F154*'Prevalence Rates'!F154","v":27.485759829424449},{"$f":"'Population 2016'!G154*'Prevalence Rates'!G154","v":27.184820853189873},{"$f":"'Population 2016'!H154*'Prevalence Rates'!H154","v":36.413616124383481},{"$f":"'Population 2016'!I154*'Prevalence Rates'!I154","v":23.272614162140407},{"$f":"'Population 2016'!J154*'Prevalence Rates'!J154","v":14.244444875103181},{"$f":"'Population 2016'!K154*'Prevalence Rates'!K154","v":4.5140846435186139},{"$f":"'Population 2016'!L154*'Prevalence Rates'!L154","v":41.429265728293053},{"$f":"'Population 2016'!M154*'Prevalence Rates'!M154","v":41.429265728293053},{"$f":"'Population 2016'!N154*'Prevalence Rates'!N154","v":13.241314954321266},{"$f":"'Population 2016'!O154*'Prevalence Rates'!O154","v":9.7303602315845676},{"$f":"'Population 2016'!P154*'Prevalence Rates'!P154","v":4.7147106276749966},{"$f":"'Population 2016'!Q154*'Prevalence Rates'!Q154","v":17.253834637448925},{"$f":"'Population 2016'!R154*'Prevalence Rates'!R154","v":8.2256653504116954},{"$f":"'Population 2016'!S154*'Prevalence Rates'!S154","v":141.04006686193713},{"$f":"'Population 2016'!T154*'Prevalence Rates'!T154","v":29.09076770267551},{"$f":"'Population 2016'!U154*'Prevalence Rates'!U154","v":17.253834637448925},{"$f":"'Population 2016'!V154*'Prevalence Rates'!V154","v":10.432551176131907},{"$f":"'Population 2016'!W154*'Prevalence Rates'!W154","v":45.241159427264328},{"$f":"'Population 2016'!X154*'Prevalence Rates'!X154","v":45.241159427264328},{"$f":"'Population 2016'!Y154*'Prevalence Rates'!Y154","v":24.67699605123509},{"$f":"'Population 2016'!Z154*'Prevalence Rates'!Z154","v":38.419875965947313},{"$f":"'Population 2016'!AA154*'Prevalence Rates'!AA154","v":156.78920661821317},{"$f":"'Population 2016'!AB154*'Prevalence Rates'!AB154","v":63.096872017182399},{"$f":"'Population 2016'!AC154*'Prevalence Rates'!AC154","v":98.407045228705783},{"$f":"'Population 2016'!AD154*'Prevalence Rates'!AD154","v":66.80845272407548},{"$f":"'Population 2016'!AE154*'Prevalence Rates'!AE154","v":39.62363187088561},{"$f":"'Population 2016'!AF154*'Prevalence Rates'!AF154","v":15.347887787963286},{"$f":"'Population 2016'!AG154*'Prevalence Rates'!AG154","v":39.62363187088561},{"$f":"'Population 2016'!AH154*'Prevalence Rates'!AH154","v":58.382161389507402},{"$f":"'Population 2016'!AI154*'Prevalence Rates'!AI154","v":72.526293272532399},{"$f":"'Population 2016'!AJ154*'Prevalence Rates'!AJ154","v":10.934116136522864},{"$f":"'Population 2016'!AK154*'Prevalence Rates'!AK154","v":17.05320865329254},{"$f":"'Population 2016'!AL154*'Prevalence Rates'!AL154","v":14.94663581965052},{"$f":"'Population 2016'!AM154*'Prevalence Rates'!AM154","v":19.962285423560093},{"$f":"'Population 2016'!AN154*'Prevalence Rates'!AN154","v":6.720970469238825},{"$f":"'Population 2016'!AO154*'Prevalence Rates'!AO154","v":6.720970469238825},{"$f":"'Population 2016'!AP154*'Prevalence Rates'!AP154","v":28.890141718519128},{"$f":"'Population 2016'!AQ154*'Prevalence Rates'!AQ154","v":24.376057075000514},{"$f":"'Population 2016'!AR154*'Prevalence Rates'!AR154","v":629.76496426688573},{"$f":"'Population 2016'!AS154*'Prevalence Rates'!AS154","v":23.272614162140407},{"$f":"'Population 2016'!AT154*'Prevalence Rates'!AT154","v":5.9184665326132935},{"$f":"'Population 2016'!AU154*'Prevalence Rates'!AU154","v":5.9184665326132935},{"$f":"'Population 2016'!AV154*'Prevalence Rates'!AV154","v":11.736620073148396},{"$f":"'Population 2016'!AW154*'Prevalence Rates'!AW154","v":38.419875965947313},{"$f":"'Population 2016'!AX154*'Prevalence Rates'!AX154","v":9.7303602315845676},{"$f":"'Population 2016'!AY154*'Prevalence Rates'!AY154","v":114.85837592952917},{"$f":"'Population 2016'!AZ154*'Prevalence Rates'!AZ154","v":69.617216502264839},{"$f":"'Population 2016'!BA154*'Prevalence Rates'!BA154","v":7.322848421707973},{"$f":"'Population 2016'!BB154*'Prevalence Rates'!BB154","v":15.247574795885095},{"$f":"'Population 2016'!BC154*'Prevalence Rates'!BC154","v":17.253834637448925},152]
[null,"Male 0-4",{"$f":"'Population 2016'!C155*'Prevalence Rates'!C155","v":0},{"$f":"'Population 2016'!D155*'Prevalence Rates'!D155","v":0},{"$f":"'Population 2016'!E155*'Prevalence Rates'!E155","v":0},{"$f":"'Population 2016'!F155*'Prevalence Rates'!F155","v":0},{"$f":"'Population 2016'!G155*'Prevalence Rates'!G155","v":0},{"$f":"'Population 2016'!H155*'Prevalence Rates'!H155","v":0},{"$f":"'Population 2016'!I155*'Prevalence Rates'!I155","v":0},{"$f":"'Population 2016'!J155*'Prevalence Rates'!J155","v":0},{"$f":"'Population 2016'!K155*'Prevalence Rates'!K155","v":0},{"$f":"'Population 2016'!L155*'Prevalence Rates'!L155","v":0},{"$f":"'Population 2016'!M155*'Prevalence Rates'!M155","v":0},{"$f":"'Population 2016'!N155*'Prevalence Rates'!N155","v":0},{"$f":"'Population 2016'!O155*'Prevalence Rates'!O155","v":0},{"$f":"'Population 2016'!P155*'Prevalence Rates'!P155","v":0},{"$f":"'Population 2016'!Q155*'Prevalence Rates'!Q155","v":0},{"$f":"'Population 2016'!R155*'Prevalence Rates'!R155","v":0},{"$f":"'Population 2016'!S155*'Prevalence Rates'!S155","v":0},{"$f":"'Population 2016'!T155*'Prevalence Rates'!T155","v":0},{"$f":"'Population 2016'!U155*'Prevalence Rates'!U155","v":0},{"$f":"'Population 2016'!V155*'Prevalence Rates'!V155","v":0},{"$f":"'Population 2016'!W155*'Prevalence Rates'!W155","v":0},{"$f":"'Population 2016'!X155*'Prevalence Rates'!X155","v":0},{"$f":"'Population 2016'!Y155*'Prevalence Rates'!Y155","v":0},{"$f":"'Population 2016'!Z155*'Prevalence Rates'!Z155","v":0},{"$f":"'Population 2016'!AA155*'Prevalence Rates'!AA155","v":0},{"$f":"'Population 2016'!AB155*'Prevalence Rates'!AB155","v":0},{"$f":"'Population 2016'!AC155*'Prevalence Rates'!AC155","v":0},{"$f":"'Population 2016'!AD155*'Prevalence Rates'!AD155","v":0},{"$f":"'Population 2016'!AE155*'Prevalence Rates'!AE155","v":0},{"$f":"'Population 2016'!AF155*'Prevalence Rates'!AF155","v":0},{"$f":"'Population 2016'!AG155*'Prevalence Rates'!AG155","v":0},{"$f":"'Population 2016'!AH155*'Prevalence Rates'!AH155","v":0},{"$f":"'Population 2016'!AI155*'Prevalence Rates'!AI155","v":0},{"$f":"'Population 2016'!AJ155*'Prevalence Rates'!AJ155","v":0},{"$f":"'Population 2016'!AK155*'Prevalence Rates'!AK155","v":0},{"$f":"'Population 2016'!AL155*'Prevalence Rates'!AL155","v":0},{"$f":"'Population 2016'!AM155*'Prevalence Rates'!AM155","v":0},{"$f":"'Population 2016'!AN155*'Prevalence Rates'!AN155","v":0},{"$f":"'Population 2016'!AO155*'Prevalence Rates'!AO155","v":0},{"$f":"'Population 2016'!AP155*'Prevalence Rates'!AP155","v":0},{"$f":"'Population 2016'!AQ155*'Prevalence Rates'!AQ155","v":0},{"$f":"'Population 2016'!AR155*'Prevalence Rates'!AR155","v":0},{"$f":"'Population 2016'!AS155*'Prevalence Rates'!AS155","v":0},{"$f":"'Population 2016'!AT155*'Prevalence Rates'!AT155","v":0},{"$f":"'Population 2016'!AU155*'Prevalence Rates'!AU155","v":0},{"$f":"'Population 2016'!AV155*'Prevalence Rates'!AV155","v":0},{"$f":"'Population 2016'!AW155*'Prevalence Rates'!AW155","v":0},{"$f":"'Population 2016'!AX155*'Prevalence Rates'!AX155","v":0},{"$f":"'Population 2016'!AY155*'Prevalence Rates'!AY155","v":0},{"$f":"'Population 2016'!AZ155*'Prevalence Rates'!AZ155","v":0},{"$f":"'Population 2016'!BA155*'Prevalence Rates'!BA155","v":0},{"$f":"'Population 2016'!BB155*'Prevalence Rates'!BB155","v":0},{"$f":"'Population 2016'!BC155*'Prevalence Rates'!BC155","v":0},153]
[null,"Male 5-9",{"$f":"'Population 2016'!C156*'Prevalence Rates'!C156","v":0},{"$f":"'Population 2016'!D156*'Prevalence Rates'!D156","v":0},{"$f":"'Population 2016'!E156*'Prevalence Rates'!E156","v":0},{"$f":"'Population 2016'!F156*'Prevalence Rates'!F156","v":0},{"$f":"'Population 2016'!G156*'Prevalence Rates'!G156","v":0},{"$f":"'Population 2016'!H156*'Prevalence Rates'!H156","v":0},{"$f":"'Population 2016'!I156*'Prevalence Rates'!I156","v":0},{"$f":"'Population 2016'!J156*'Prevalence Rates'!J156","v":0},{"$f":"'Population 2016'!K156*'Prevalence Rates'!K156","v":0},{"$f":"'Population 2016'!L156*'Prevalence Rates'!L156","v":0},{"$f":"'Population 2016'!M156*'Prevalence Rates'!M156","v":0},{"$f":"'Population 2016'!N156*'Prevalence Rates'!N156","v":0},{"$f":"'Population 2016'!O156*'Prevalence Rates'!O156","v":0},{"$f":"'Population 2016'!P156*'Prevalence Rates'!P156","v":0},{"$f":"'Population 2016'!Q156*'Prevalence Rates'!Q156","v":0},{"$f":"'Population 2016'!R156*'Prevalence Rates'!R156","v":0},{"$f":"'Population 2016'!S156*'Prevalence Rates'!S156","v":0},{"$f":"'Population 2016'!T156*'Prevalence Rates'!T156","v":0},{"$f":"'Population 2016'!U156*'Prevalence Rates'!U156","v":0},{"$f":"'Population 2016'!V156*'Prevalence Rates'!V156","v":0},{"$f":"'Population 2016'!W156*'Prevalence Rates'!W156","v":0},{"$f":"'Population 2016'!X156*'Prevalence Rates'!X156","v":0},{"$f":"'Population 2016'!Y156*'Prevalence Rates'!Y156","v":0},{"$f":"'Population 2016'!Z156*'Prevalence Rates'!Z156","v":0},{"$f":"'Population 2016'!AA156*'Prevalence Rates'!AA156","v":0},{"$f":"'Population 2016'!AB156*'Prevalence Rates'!AB156","v":0},{"$f":"'Population 2016'!AC156*'Prevalence Rates'!AC156","v":0},{"$f":"'Population 2016'!AD156*'Prevalence Rates'!AD156","v":0},{"$f":"'Population 2016'!AE156*'Prevalence Rates'!AE156","v":0},{"$f":"'Population 2016'!AF156*'Prevalence Rates'!AF156","v":0},{"$f":"'Population 2016'!AG156*'Prevalence Rates'!AG156","v":0},{"$f":"'Population 2016'!AH156*'Prevalence Rates'!AH156","v":0},{"$f":"'Population 2016'!AI156*'Prevalence Rates'!AI156","v":0},{"$f":"'Population 2016'!AJ156*'Prevalence Rates'!AJ156","v":0},{"$f":"'Population 2016'!AK156*'Prevalence Rates'!AK156","v":0},{"$f":"'Population 2016'!AL156*'Prevalence Rates'!AL156","v":0},{"$f":"'Population 2016'!AM156*'Prevalence Rates'!AM156","v":0},{"$f":"'Population 2016'!AN156*'Prevalence Rates'!AN156","v":0},{"$f":"'Population 2016'!AO156*'Prevalence Rates'!AO156","v":0},{"$f":"'Population 2016'!AP156*'Prevalence Rates'!AP156","v":0},{"$f":"'Population 2016'!AQ156*'Prevalence Rates'!AQ156","v":0},{"$f":"'Population 2016'!AR156*'Prevalence Rates'!AR156","v":0},{"$f":"'Population 2016'!AS156*'Prevalence Rates'!AS156","v":0},{"$f":"'Population 2016'!AT156*'Prevalence Rates'!AT156","v":0},{"$f":"'Population 2016'!AU156*'Prevalence Rates'!AU156","v":0},{"$f":"'Population 2016'!AV156*'Prevalence Rates'!AV156","v":0},{"$f":"'Population 2016'!AW156*'Prevalence Rates'!AW156","v":0},{"$f":"'Population 2016'!AX156*'Prevalence Rates'!AX156","v":0},{"$f":"'Population 2016'!AY156*'Prevalence Rates'!AY156","v":0},{"$f":"'Population 2016'!AZ156*'Prevalence Rates'!AZ156","v":0},{"$f":"'Population 2016'!BA156*'Prevalence Rates'!BA156","v":0},{"$f":"'Population 2016'!BB156*'Prevalence Rates'!BB156","v":0},{"$f":"'Population 2016'!BC156*'Prevalence Rates'!BC156","v":0},154]
[null,"Male 10-15",{"$f":"'Population 2016'!C157*'Prevalence Rates'!C157","v":0},{"$f":"'Population 2016'!D157*'Prevalence Rates'!D157","v":0},{"$f":"'Population 2016'!E157*'Prevalence Rates'!E157","v":0},{"$f":"'Population 2016'!F157*'Prevalence Rates'!F157","v":0},{"$f":"'Population 2016'!G157*'Prevalence Rates'!G157","v":0},{"$f":"'Population 2016'!H157*'Prevalence Rates'!H157","v":0},{"$f":"'Population 2016'!I157*'Prevalence Rates'!I157","v":0},{"$f":"'Population 2016'!J157*'Prevalence Rates'!J157","v":0},{"$f":"'Population 2016'!K157*'Prevalence Rates'!K157","v":0},{"$f":"'Population 2016'!L157*'Prevalence Rates'!L157","v":0},{"$f":"'Population 2016'!M157*'Prevalence Rates'!M157","v":0},{"$f":"'Population 2016'!N157*'Prevalence Rates'!N157","v":0},{"$f":"'Population 2016'!O157*'Prevalence Rates'!O157","v":0},{"$f":"'Population 2016'!P157*'Prevalence Rates'!P157","v":0},{"$f":"'Population 2016'!Q157*'Prevalence Rates'!Q157","v":0},{"$f":"'Population 2016'!R157*'Prevalence Rates'!R157","v":0},{"$f":"'Population 2016'!S157*'Prevalence Rates'!S157","v":0},{"$f":"'Population 2016'!T157*'Prevalence Rates'!T157","v":0},{"$f":"'Population 2016'!U157*'Prevalence Rates'!U157","v":0},{"$f":"'Population 2016'!V157*'Prevalence Rates'!V157","v":0},{"$f":"'Population 2016'!W157*'Prevalence Rates'!W157","v":0},{"$f":"'Population 2016'!X157*'Prevalence Rates'!X157","v":0},{"$f":"'Population 2016'!Y157*'Prevalence Rates'!Y157","v":0},{"$f":"'Population 2016'!Z157*'Prevalence Rates'!Z157","v":0},{"$f":"'Population 2016'!AA157*'Prevalence Rates'!AA157","v":0},{"$f":"'Population 2016'!AB157*'Prevalence Rates'!AB157","v":0},{"$f":"'Population 2016'!AC157*'Prevalence Rates'!AC157","v":0},{"$f":"'Population 2016'!AD157*'Prevalence Rates'!AD157","v":0},{"$f":"'Population 2016'!AE157*'Prevalence Rates'!AE157","v":0},{"$f":"'Population 2016'!AF157*'Prevalence Rates'!AF157","v":0},{"$f":"'Population 2016'!AG157*'Prevalence Rates'!AG157","v":0},{"$f":"'Population 2016'!AH157*'Prevalence Rates'!AH157","v":0},{"$f":"'Population 2016'!AI157*'Prevalence Rates'!AI157","v":0},{"$f":"'Population 2016'!AJ157*'Prevalence Rates'!AJ157","v":0},{"$f":"'Population 2016'!AK157*'Prevalence Rates'!AK157","v":0},{"$f":"'Population 2016'!AL157*'Prevalence Rates'!AL157","v":0},{"$f":"'Population 2016'!AM157*'Prevalence Rates'!AM157","v":0},{"$f":"'Population 2016'!AN157*'Prevalence Rates'!AN157","v":0},{"$f":"'Population 2016'!AO157*'Prevalence Rates'!AO157","v":0},{"$f":"'Population 2016'!AP157*'Prevalence Rates'!AP157","v":0},{"$f":"'Population 2016'!AQ157*'Prevalence Rates'!AQ157","v":0},{"$f":"'Population 2016'!AR157*'Prevalence Rates'!AR157","v":0},{"$f":"'Population 2016'!AS157*'Prevalence Rates'!AS157","v":0},{"$f":"'Population 2016'!AT157*'Prevalence Rates'!AT157","v":0},{"$f":"'Population 2016'!AU157*'Prevalence Rates'!AU157","v":0},{"$f":"'Population 2016'!AV157*'Prevalence Rates'!AV157","v":0},{"$f":"'Population 2016'!AW157*'Prevalence Rates'!AW157","v":0},{"$f":"'Population 2016'!AX157*'Prevalence Rates'!AX157","v":0},{"$f":"'Population 2016'!AY157*'Prevalence Rates'!AY157","v":0},{"$f":"'Population 2016'!AZ157*'Prevalence Rates'!AZ157","v":0},{"$f":"'Population 2016'!BA157*'Prevalence Rates'!BA157","v":0},{"$f":"'Population 2016'!BB157*'Prevalence Rates'!BB157","v":0},{"$f":"'Population 2016'!BC157*'Prevalence Rates'!BC157","v":0},155]
[null,"Male 16-19",{"$f":"'Population 2016'!C158*'Prevalence Rates'!C158","v":75.434455028348367},{"$f":"'Population 2016'!D158*'Prevalence Rates'!D158","v":225.57217489090922},{"$f":"'Population 2016'!E158*'Prevalence Rates'!E158","v":150.13771986256089},{"$f":"'Population 2016'!F158*'Prevalence Rates'!F158","v":112.72515492927663},{"$f":"'Population 2016'!G158*'Prevalence Rates'!G158","v":99.320001370119414},{"$f":"'Population 2016'!H158*'Prevalence Rates'!H158","v":175.97310672202752},{"$f":"'Population 2016'!I158*'Prevalence Rates'!I158","v":96.760835690643944},{"$f":"'Population 2016'!J158*'Prevalence Rates'!J158","v":62.394896566259064},{"$f":"'Population 2016'!K158*'Prevalence Rates'!K158","v":26.444712021246517},{"$f":"'Population 2016'!L158*'Prevalence Rates'!L158","v":147.21295908601749},{"$f":"'Population 2016'!M158*'Prevalence Rates'!M158","v":147.21295908601749},{"$f":"'Population 2016'!N158*'Prevalence Rates'!N158","v":47.405497586474169},{"$f":"'Population 2016'!O158*'Prevalence Rates'!O158","v":56.667240045528253},{"$f":"'Population 2016'!P158*'Prevalence Rates'!P158","v":19.498405176955956},{"$f":"'Population 2016'!Q158*'Prevalence Rates'!Q158","v":62.882356695682965},{"$f":"'Population 2016'!R158*'Prevalence Rates'!R158","v":29.978797959569786},{"$f":"'Population 2016'!S158*'Prevalence Rates'!S158","v":678.91009525513527},{"$f":"'Population 2016'!T158*'Prevalence Rates'!T158","v":159.76505741868289},{"$f":"'Population 2016'!U158*'Prevalence Rates'!U158","v":46.430577327626374},{"$f":"'Population 2016'!V158*'Prevalence Rates'!V158","v":76.287510254840186},{"$f":"'Population 2016'!W158*'Prevalence Rates'!W158","v":201.80849358149416},{"$f":"'Population 2016'!X158*'Prevalence Rates'!X158","v":201.80849358149416},{"$f":"'Population 2016'!Y158*'Prevalence Rates'!Y158","v":138.68240682109925},{"$f":"'Population 2016'!Z158*'Prevalence Rates'!Z158","v":250.3107764591721},{"$f":"'Population 2016'!AA158*'Prevalence Rates'!AA158","v":808.45262464953635},{"$f":"'Population 2016'!AB158*'Prevalence Rates'!AB158","v":293.45099791318717},{"$f":"'Population 2016'!AC158*'Prevalence Rates'!AC158","v":459.18744191731281},{"$f":"'Population 2016'!AD158*'Prevalence Rates'!AD158","v":305.27190605171671},{"$f":"'Population 2016'!AE158*'Prevalence Rates'!AE158","v":205.95190468159731},{"$f":"'Population 2016'!AF158*'Prevalence Rates'!AF158","v":31.68490841255343},{"$f":"'Population 2016'!AG158*'Prevalence Rates'!AG158","v":205.95190468159731},{"$f":"'Population 2016'!AH158*'Prevalence Rates'!AH158","v":349.26518273222359},{"$f":"'Population 2016'!AI158*'Prevalence Rates'!AI158","v":380.34076598299714},{"$f":"'Population 2016'!AJ158*'Prevalence Rates'!AJ158","v":50.208393330661593},{"$f":"'Population 2016'!AK158*'Prevalence Rates'!AK158","v":67.878823022277928},{"$f":"'Population 2016'!AL158*'Prevalence Rates'!AL158","v":46.674307392338321},{"$f":"'Population 2016'!AM158*'Prevalence Rates'!AM158","v":181.21330311333443},{"$f":"'Population 2016'!AN158*'Prevalence Rates'!AN158","v":18.279754853396209},{"$f":"'Population 2016'!AO158*'Prevalence Rates'!AO158","v":18.279754853396209},{"$f":"'Population 2016'!AP158*'Prevalence Rates'!AP158","v":98.345081111271611},{"$f":"'Population 2016'!AQ158*'Prevalence Rates'!AQ158","v":95.664050399440171},{"$f":"'Population 2016'!AR158*'Prevalence Rates'!AR158","v":2891.4916227102126},{"$f":"'Population 2016'!AS158*'Prevalence Rates'!AS158","v":96.760835690643944},{"$f":"'Population 2016'!AT158*'Prevalence Rates'!AT158","v":20.351460403447781},{"$f":"'Population 2016'!AU158*'Prevalence Rates'!AU158","v":20.351460403447781},{"$f":"'Population 2016'!AV158*'Prevalence Rates'!AV158","v":72.631559284160943},{"$f":"'Population 2016'!AW158*'Prevalence Rates'!AW158","v":168.05187961888916},{"$f":"'Population 2016'!AX158*'Prevalence Rates'!AX158","v":35.950184545012547},{"$f":"'Population 2016'!AY158*'Prevalence Rates'!AY158","v":460.2842272085166},{"$f":"'Population 2016'!AZ158*'Prevalence Rates'!AZ158","v":258.47573362702241},{"$f":"'Population 2016'!BA158*'Prevalence Rates'!BA158","v":32.050503509621358},{"$f":"'Population 2016'!BB158*'Prevalence Rates'!BB158","v":107.48495853796972},{"$f":"'Population 2016'!BC158*'Prevalence Rates'!BC158","v":46.430577327626374},156]
[null,"Male 20-24",{"$f":"'Population 2016'!C159*'Prevalence Rates'!C159","v":246.16736535906895},{"$f":"'Population 2016'!D159*'Prevalence Rates'!D159","v":430.79288937837066},{"$f":"'Population 2016'!E159*'Prevalence Rates'!E159","v":184.62552401930174},{"$f":"'Population 2016'!F159*'Prevalence Rates'!F159","v":119.79332680592316},{"$f":"'Population 2016'!G159*'Prevalence Rates'!G159","v":100.17305659661123},{"$f":"'Population 2016'!H159*'Prevalence Rates'!H159","v":219.84451837017841},{"$f":"'Population 2016'!I159*'Prevalence Rates'!I159","v":114.30940034990429},{"$f":"'Population 2016'!J159*'Prevalence Rates'!J159","v":113.45634512341248},{"$f":"'Population 2016'!K159*'Prevalence Rates'!K159","v":35.7064544803006},{"$f":"'Population 2016'!L159*'Prevalence Rates'!L159","v":168.41747471595707},{"$f":"'Population 2016'!M159*'Prevalence Rates'!M159","v":168.41747471595707},{"$f":"'Population 2016'!N159*'Prevalence Rates'!N159","v":92.861154655252747},{"$f":"'Population 2016'!O159*'Prevalence Rates'!O159","v":76.65310535190811},{"$f":"'Population 2016'!P159*'Prevalence Rates'!P159","v":26.932172150670418},{"$f":"'Population 2016'!Q159*'Prevalence Rates'!Q159","v":77.384295546043958},{"$f":"'Population 2016'!R159*'Prevalence Rates'!R159","v":39.72800054804776},{"$f":"'Population 2016'!S159*'Prevalence Rates'!S159","v":1141.5097580784154},{"$f":"'Population 2016'!T159*'Prevalence Rates'!T159","v":447.85399390820714},{"$f":"'Population 2016'!U159*'Prevalence Rates'!U159","v":54.473669463120707},{"$f":"'Population 2016'!V159*'Prevalence Rates'!V159","v":101.14797685545904},{"$f":"'Population 2016'!W159*'Prevalence Rates'!W159","v":279.43651919225005},{"$f":"'Population 2016'!X159*'Prevalence Rates'!X159","v":279.43651919225005},{"$f":"'Population 2016'!Y159*'Prevalence Rates'!Y159","v":214.6043219788715},{"$f":"'Population 2016'!Z159*'Prevalence Rates'!Z159","v":576.90906317318434},{"$f":"'Population 2016'!AA159*'Prevalence Rates'!AA159","v":1273.9770482493598},{"$f":"'Population 2016'!AB159*'Prevalence Rates'!AB159","v":513.05178621865366},{"$f":"'Population 2016'!AC159*'Prevalence Rates'!AC159","v":843.54975396805708},{"$f":"'Population 2016'!AD159*'Prevalence Rates'!AD159","v":316.60535406082238},{"$f":"'Population 2016'!AE159*'Prevalence Rates'!AE159","v":216.43229746421113},{"$f":"'Population 2016'!AF159*'Prevalence Rates'!AF159","v":47.039902489406245},{"$f":"'Population 2016'!AG159*'Prevalence Rates'!AG159","v":216.43229746421113},{"$f":"'Population 2016'!AH159*'Prevalence Rates'!AH159","v":430.42729428130275},{"$f":"'Population 2016'!AI159*'Prevalence Rates'!AI159","v":747.76383853626101},{"$f":"'Population 2016'!AJ159*'Prevalence Rates'!AJ159","v":72.997154381228867},{"$f":"'Population 2016'!AK159*'Prevalence Rates'!AK159","v":82.258896840282944},{"$f":"'Population 2016'!AL159*'Prevalence Rates'!AL159","v":64.344737083954655},{"$f":"'Population 2016'!AM159*'Prevalence Rates'!AM159","v":212.77634649353189},{"$f":"'Population 2016'!AN159*'Prevalence Rates'!AN159","v":21.935705824075452},{"$f":"'Population 2016'!AO159*'Prevalence Rates'!AO159","v":21.935705824075452},{"$f":"'Population 2016'!AP159*'Prevalence Rates'!AP159","v":130.39558462089298},{"$f":"'Population 2016'!AQ159*'Prevalence Rates'!AQ159","v":105.29138795556217},{"$f":"'Population 2016'!AR159*'Prevalence Rates'!AR159","v":4295.3767954510413},{"$f":"'Population 2016'!AS159*'Prevalence Rates'!AS159","v":114.30940034990429},{"$f":"'Population 2016'!AT159*'Prevalence Rates'!AT159","v":27.907092409518214},{"$f":"'Population 2016'!AU159*'Prevalence Rates'!AU159","v":27.907092409518214},{"$f":"'Population 2016'!AV159*'Prevalence Rates'!AV159","v":78.846675934315655},{"$f":"'Population 2016'!AW159*'Prevalence Rates'!AW159","v":217.65094778777089},{"$f":"'Population 2016'!AX159*'Prevalence Rates'!AX159","v":77.749890643111883},{"$f":"'Population 2016'!AY159*'Prevalence Rates'!AY159","v":622.48658527431894},{"$f":"'Population 2016'!AZ159*'Prevalence Rates'!AZ159","v":343.05006608206889},{"$f":"'Population 2016'!BA159*'Prevalence Rates'!BA159","v":47.649227651186123},{"$f":"'Population 2016'!BB159*'Prevalence Rates'!BB159","v":149.52839470078101},{"$f":"'Population 2016'!BC159*'Prevalence Rates'!BC159","v":54.473669463120707},157]
[null,"Male 25-29",{"$f":"'Population 2016'!C160*'Prevalence Rates'!C160","v":305.51563611642865},{"$f":"'Population 2016'!D160*'Prevalence Rates'!D160","v":470.52088992641842},{"$f":"'Population 2016'!E160*'Prevalence Rates'!E160","v":165.0052538099898},{"$f":"'Population 2016'!F160*'Prevalence Rates'!F160","v":106.51003827912191},{"$f":"'Population 2016'!G160*'Prevalence Rates'!G160","v":90.301988975777277},{"$f":"'Population 2016'!H160*'Prevalence Rates'!H160","v":195.10591680191555},{"$f":"'Population 2016'!I160*'Prevalence Rates'!I160","v":105.77884808498607},{"$f":"'Population 2016'!J160*'Prevalence Rates'!J160","v":95.420320334728217},{"$f":"'Population 2016'!K160*'Prevalence Rates'!K160","v":27.78522737716224},{"$f":"'Population 2016'!L160*'Prevalence Rates'!L160","v":160.25251754810677},{"$f":"'Population 2016'!M160*'Prevalence Rates'!M160","v":160.25251754810677},{"$f":"'Population 2016'!N160*'Prevalence Rates'!N160","v":109.43479905566531},{"$f":"'Population 2016'!O160*'Prevalence Rates'!O160","v":76.53124031955214},{"$f":"'Population 2016'!P160*'Prevalence Rates'!P160","v":25.347926730042744},{"$f":"'Population 2016'!Q160*'Prevalence Rates'!Q160","v":72.753424316516913},{"$f":"'Population 2016'!R160*'Prevalence Rates'!R160","v":30.709988153705634},{"$f":"'Population 2016'!S160*'Prevalence Rates'!S160","v":1290.0632325203485},{"$f":"'Population 2016'!T160*'Prevalence Rates'!T160","v":617.24638888301206},{"$f":"'Population 2016'!U160*'Prevalence Rates'!U160","v":50.086528298305616},{"$f":"'Population 2016'!V160*'Prevalence Rates'!V160","v":94.201670011168474},{"$f":"'Population 2016'!W160*'Prevalence Rates'!W160","v":278.33973390104632},{"$f":"'Population 2016'!X160*'Prevalence Rates'!X160","v":278.33973390104632},{"$f":"'Population 2016'!Y160*'Prevalence Rates'!Y160","v":189.62199034589668},{"$f":"'Population 2016'!Z160*'Prevalence Rates'!Z160","v":593.60457260595297},{"$f":"'Population 2016'!AA160*'Prevalence Rates'!AA160","v":1262.6436002402543},{"$f":"'Population 2016'!AB160*'Prevalence Rates'!AB160","v":554.24216715497312},{"$f":"'Population 2016'!AC160*'Prevalence Rates'!AC160","v":858.66101798019793},{"$f":"'Population 2016'!AD160*'Prevalence Rates'!AD160","v":307.34361160176826},{"$f":"'Population 2016'!AE160*'Prevalence Rates'!AE160","v":217.04162262599101},{"$f":"'Population 2016'!AF160*'Prevalence Rates'!AF160","v":44.358871777574805},{"$f":"'Population 2016'!AG160*'Prevalence Rates'!AG160","v":217.04162262599101},{"$f":"'Population 2016'!AH160*'Prevalence Rates'!AH160","v":403.98258226005623},{"$f":"'Population 2016'!AI160*'Prevalence Rates'!AI160","v":905.94465053431622},{"$f":"'Population 2016'!AJ160*'Prevalence Rates'!AJ160","v":69.219338378193655},{"$f":"'Population 2016'!AK160*'Prevalence Rates'!AK160","v":83.721277228554641},{"$f":"'Population 2016'!AL160*'Prevalence Rates'!AL160","v":51.427043654221336},{"$f":"'Population 2016'!AM160*'Prevalence Rates'!AM160","v":201.56476351678222},{"$f":"'Population 2016'!AN160*'Prevalence Rates'!AN160","v":24.738601568262872},{"$f":"'Population 2016'!AO160*'Prevalence Rates'!AO160","v":24.738601568262872},{"$f":"'Population 2016'!AP160*'Prevalence Rates'!AP160","v":105.1695229232062},{"$f":"'Population 2016'!AQ160*'Prevalence Rates'!AQ160","v":111.62836963807285},{"$f":"'Population 2016'!AR160*'Prevalence Rates'!AR160","v":4379.8292628737318},{"$f":"'Population 2016'!AS160*'Prevalence Rates'!AS160","v":105.77884808498607},{"$f":"'Population 2016'!AT160*'Prevalence Rates'!AT160","v":24.616736535906895},{"$f":"'Population 2016'!AU160*'Prevalence Rates'!AU160","v":24.616736535906895},{"$f":"'Population 2016'!AV160*'Prevalence Rates'!AV160","v":67.147632828142079},{"$f":"'Population 2016'!AW160*'Prevalence Rates'!AW160","v":202.41781874327404},{"$f":"'Population 2016'!AX160*'Prevalence Rates'!AX160","v":67.635092957565973},{"$f":"'Population 2016'!AY160*'Prevalence Rates'!AY160","v":599.45409415903976},{"$f":"'Population 2016'!AZ160*'Prevalence Rates'!AZ160","v":321.11436025799344},{"$f":"'Population 2016'!BA160*'Prevalence Rates'!BA160","v":53.01128907484901},{"$f":"'Population 2016'!BB160*'Prevalence Rates'!BB160","v":146.72549895659358},{"$f":"'Population 2016'!BC160*'Prevalence Rates'!BC160","v":50.086528298305616},158]
[null,"Male 30-34",{"$f":"'Population 2016'!C161*'Prevalence Rates'!C161","v":231.66542650870798},{"$f":"'Population 2016'!D161*'Prevalence Rates'!D161","v":406.54174793953172},{"$f":"'Population 2016'!E161*'Prevalence Rates'!E161","v":174.87632143082374},{"$f":"'Population 2016'!F161*'Prevalence Rates'!F161","v":119.06213661178731},{"$f":"'Population 2016'!G161*'Prevalence Rates'!G161","v":85.549252713894262},{"$f":"'Population 2016'!H161*'Prevalence Rates'!H161","v":181.70076324275834},{"$f":"'Population 2016'!I161*'Prevalence Rates'!I161","v":107.85055363503764},{"$f":"'Population 2016'!J161*'Prevalence Rates'!J161","v":79.821596193163444},{"$f":"'Population 2016'!K161*'Prevalence Rates'!K161","v":26.810307118314441},{"$f":"'Population 2016'!L161*'Prevalence Rates'!L161","v":150.25958489491686},{"$f":"'Population 2016'!M161*'Prevalence Rates'!M161","v":150.25958489491686},{"$f":"'Population 2016'!N161*'Prevalence Rates'!N161","v":89.692663813997399},{"$f":"'Population 2016'!O161*'Prevalence Rates'!O161","v":64.832197213378564},{"$f":"'Population 2016'!P161*'Prevalence Rates'!P161","v":21.813840791719478},{"$f":"'Population 2016'!Q161*'Prevalence Rates'!Q161","v":63.979141986886738},{"$f":"'Population 2016'!R161*'Prevalence Rates'!R161","v":30.953718218417581},{"$f":"'Population 2016'!S161*'Prevalence Rates'!S161","v":1214.8725075567122},{"$f":"'Population 2016'!T161*'Prevalence Rates'!T161","v":546.32094005183478},{"$f":"'Population 2016'!U161*'Prevalence Rates'!U161","v":54.717399527832654},{"$f":"'Population 2016'!V161*'Prevalence Rates'!V161","v":94.445400075880414},{"$f":"'Population 2016'!W161*'Prevalence Rates'!W161","v":276.02429828628277},{"$f":"'Population 2016'!X161*'Prevalence Rates'!X161","v":276.02429828628277},{"$f":"'Population 2016'!Y161*'Prevalence Rates'!Y161","v":174.26699626904386},{"$f":"'Population 2016'!Z161*'Prevalence Rates'!Z161","v":547.41772534303846},{"$f":"'Population 2016'!AA161*'Prevalence Rates'!AA161","v":1245.0950355809939},{"$f":"'Population 2016'!AB161*'Prevalence Rates'!AB161","v":503.05885356546372},{"$f":"'Population 2016'!AC161*'Prevalence Rates'!AC161","v":801.38445277288986},{"$f":"'Population 2016'!AD161*'Prevalence Rates'!AD161","v":323.30793084040096},{"$f":"'Population 2016'!AE161*'Prevalence Rates'!AE161","v":237.75867812650671},{"$f":"'Population 2016'!AF161*'Prevalence Rates'!AF161","v":39.362405450979836},{"$f":"'Population 2016'!AG161*'Prevalence Rates'!AG161","v":237.75867812650671},{"$f":"'Population 2016'!AH161*'Prevalence Rates'!AH161","v":443.71058280810399},{"$f":"'Population 2016'!AI161*'Prevalence Rates'!AI161","v":830.99765563539177},{"$f":"'Population 2016'!AJ161*'Prevalence Rates'!AJ161","v":69.09747334583767},{"$f":"'Population 2016'!AK161*'Prevalence Rates'!AK161","v":96.51710562593199},{"$f":"'Population 2016'!AL161*'Prevalence Rates'!AL161","v":48.014822748254048},{"$f":"'Population 2016'!AM161*'Prevalence Rates'!AM161","v":234.83391734996331},{"$f":"'Population 2016'!AN161*'Prevalence Rates'!AN161","v":21.326380662295577},{"$f":"'Population 2016'!AO161*'Prevalence Rates'!AO161","v":21.326380662295577},{"$f":"'Population 2016'!AP161*'Prevalence Rates'!AP161","v":117.35602615880367},{"$f":"'Population 2016'!AQ161*'Prevalence Rates'!AQ161","v":115.77178073817599},{"$f":"'Population 2016'!AR161*'Prevalence Rates'!AR161","v":4221.7703159080329},{"$f":"'Population 2016'!AS161*'Prevalence Rates'!AS161","v":107.85055363503764},{"$f":"'Population 2016'!AT161*'Prevalence Rates'!AT161","v":27.054037183026391},{"$f":"'Population 2016'!AU161*'Prevalence Rates'!AU161","v":27.054037183026391},{"$f":"'Population 2016'!AV161*'Prevalence Rates'!AV161","v":68.85374328112573},{"$f":"'Population 2016'!AW161*'Prevalence Rates'!AW161","v":208.87666545814071},{"$f":"'Population 2016'!AX161*'Prevalence Rates'!AX161","v":53.01128907484901},{"$f":"'Population 2016'!AY161*'Prevalence Rates'!AY161","v":602.13512487087121},{"$f":"'Population 2016'!AZ161*'Prevalence Rates'!AZ161","v":326.11082658458838},{"$f":"'Population 2016'!BA161*'Prevalence Rates'!BA161","v":46.064982230558449},{"$f":"'Population 2016'!BB161*'Prevalence Rates'!BB161","v":151.60010025083258},{"$f":"'Population 2016'!BC161*'Prevalence Rates'!BC161","v":54.717399527832654},159]
[null,"Male 35-39",{"$f":"'Population 2016'!C162*'Prevalence Rates'!C162","v":167.93001458653319},{"$f":"'Population 2016'!D162*'Prevalence Rates'!D162","v":344.63431150269656},{"$f":"'Population 2016'!E162*'Prevalence Rates'!E162","v":176.70429691616337},{"$f":"'Population 2016'!F162*'Prevalence Rates'!F162","v":117.84348628822757},{"$f":"'Population 2016'!G162*'Prevalence Rates'!G162","v":96.029645496508095},{"$f":"'Population 2016'!H162*'Prevalence Rates'!H162","v":194.25286157542374},{"$f":"'Population 2016'!I162*'Prevalence Rates'!I162","v":101.7573020172389},{"$f":"'Population 2016'!J162*'Prevalence Rates'!J162","v":78.237350772535777},{"$f":"'Population 2016'!K162*'Prevalence Rates'!K162","v":27.054037183026391},{"$f":"'Population 2016'!L162*'Prevalence Rates'!L162","v":139.4135970152351},{"$f":"'Population 2016'!M162*'Prevalence Rates'!M162","v":139.4135970152351},{"$f":"'Population 2016'!N162*'Prevalence Rates'!N162","v":64.344737083954655},{"$f":"'Population 2016'!O162*'Prevalence Rates'!O162","v":72.875289348872897},{"$f":"'Population 2016'!P162*'Prevalence Rates'!P162","v":19.254675112244009},{"$f":"'Population 2016'!Q162*'Prevalence Rates'!Q162","v":65.807117472226352},{"$f":"'Population 2016'!R162*'Prevalence Rates'!R162","v":32.050503509621358},{"$f":"'Population 2016'!S162*'Prevalence Rates'!S162","v":1078.7492664150884},{"$f":"'Population 2016'!T162*'Prevalence Rates'!T162","v":416.53468059272166},{"$f":"'Population 2016'!U162*'Prevalence Rates'!U162","v":60.323191016207495},{"$f":"'Population 2016'!V162*'Prevalence Rates'!V162","v":114.06567028519235},{"$f":"'Population 2016'!W162*'Prevalence Rates'!W162","v":272.00275221853559},{"$f":"'Population 2016'!X162*'Prevalence Rates'!X162","v":272.00275221853559},{"$f":"'Population 2016'!Y162*'Prevalence Rates'!Y162","v":192.30302105772813},{"$f":"'Population 2016'!Z162*'Prevalence Rates'!Z162","v":419.70317143397699},{"$f":"'Population 2016'!AA162*'Prevalence Rates'!AA162","v":1121.0364326426115},{"$f":"'Population 2016'!AB162*'Prevalence Rates'!AB162","v":432.74272989606629},{"$f":"'Population 2016'!AC162*'Prevalence Rates'!AC162","v":655.02454891336424},{"$f":"'Population 2016'!AD162*'Prevalence Rates'!AD162","v":337.56613962605002},{"$f":"'Population 2016'!AE162*'Prevalence Rates'!AE162","v":241.53649412954192},{"$f":"'Population 2016'!AF162*'Prevalence Rates'!AF162","v":42.28716622752323},{"$f":"'Population 2016'!AG162*'Prevalence Rates'!AG162","v":241.53649412954192},{"$f":"'Population 2016'!AH162*'Prevalence Rates'!AH162","v":466.01188372924736},{"$f":"'Population 2016'!AI162*'Prevalence Rates'!AI162","v":704.98921217931388},{"$f":"'Population 2016'!AJ162*'Prevalence Rates'!AJ162","v":71.4129089606012},{"$f":"'Population 2016'!AK162*'Prevalence Rates'!AK162","v":88.108418393369732},{"$f":"'Population 2016'!AL162*'Prevalence Rates'!AL162","v":50.817718492441465},{"$f":"'Population 2016'!AM162*'Prevalence Rates'!AM162","v":257.37894833581862},{"$f":"'Population 2016'!AN162*'Prevalence Rates'!AN162","v":19.742135241667906},{"$f":"'Population 2016'!AO162*'Prevalence Rates'!AO162","v":19.742135241667906},{"$f":"'Population 2016'!AP162*'Prevalence Rates'!AP162","v":114.7968604793282},{"$f":"'Population 2016'!AQ162*'Prevalence Rates'!AQ162","v":101.26984188781501},{"$f":"'Population 2016'!AR162*'Prevalence Rates'!AR162","v":3900.5340906176834},{"$f":"'Population 2016'!AS162*'Prevalence Rates'!AS162","v":101.7573020172389},{"$f":"'Population 2016'!AT162*'Prevalence Rates'!AT162","v":27.419632280094316},{"$f":"'Population 2016'!AU162*'Prevalence Rates'!AU162","v":27.419632280094316},{"$f":"'Population 2016'!AV162*'Prevalence Rates'!AV162","v":70.559853734109367},{"$f":"'Population 2016'!AW162*'Prevalence Rates'!AW162","v":208.63293539342874},{"$f":"'Population 2016'!AX162*'Prevalence Rates'!AX162","v":51.183313589509389},{"$f":"'Population 2016'!AY162*'Prevalence Rates'!AY162","v":568.987836070046},{"$f":"'Population 2016'!AZ162*'Prevalence Rates'!AZ162","v":296.98508385151041},{"$f":"'Population 2016'!BA162*'Prevalence Rates'!BA162","v":40.459190742183608},{"$f":"'Population 2016'!BB162*'Prevalence Rates'!BB162","v":151.23450515376464},{"$f":"'Population 2016'!BC162*'Prevalence Rates'!BC162","v":60.323191016207495},160]
[null,"Male 40-44",{"$f":"'Population 2016'!C163*'Prevalence Rates'!C163","v":129.54252939440113},{"$f":"'Population 2016'!D163*'Prevalence Rates'!D163","v":324.28285109924877},{"$f":"'Population 2016'!E163*'Prevalence Rates'!E163","v":194.74032170484762},{"$f":"'Population 2016'!F163*'Prevalence Rates'!F163","v":138.43867675638731},{"$f":"'Population 2016'!G163*'Prevalence Rates'!G163","v":114.91872551168417},{"$f":"'Population 2016'!H163*'Prevalence Rates'!H163","v":216.91975759363504},{"$f":"'Population 2016'!I163*'Prevalence Rates'!I163","v":133.80780552686025},{"$f":"'Population 2016'!J163*'Prevalence Rates'!J163","v":87.377228199233883},{"$f":"'Population 2016'!K163*'Prevalence Rates'!K163","v":35.584589447944623},{"$f":"'Population 2016'!L163*'Prevalence Rates'!L163","v":166.58949923061746},{"$f":"'Population 2016'!M163*'Prevalence Rates'!M163","v":166.58949923061746},{"$f":"'Population 2016'!N163*'Prevalence Rates'!N163","v":58.25148546615592},{"$f":"'Population 2016'!O163*'Prevalence Rates'!O163","v":74.21580470478861},{"$f":"'Population 2016'!P163*'Prevalence Rates'!P163","v":22.910626082923251},{"$f":"'Population 2016'!Q163*'Prevalence Rates'!Q163","v":85.427387681538292},{"$f":"'Population 2016'!R163*'Prevalence Rates'!R163","v":32.294233574333305},{"$f":"'Population 2016'!S163*'Prevalence Rates'!S163","v":1058.8852661410644},{"$f":"'Population 2016'!T163*'Prevalence Rates'!T163","v":311.36515766951544},{"$f":"'Population 2016'!U163*'Prevalence Rates'!U163","v":68.488148184057806},{"$f":"'Population 2016'!V163*'Prevalence Rates'!V163","v":116.2592408675999},{"$f":"'Population 2016'!W163*'Prevalence Rates'!W163","v":290.64810216899974},{"$f":"'Population 2016'!X163*'Prevalence Rates'!X163","v":290.64810216899974},{"$f":"'Population 2016'!Y163*'Prevalence Rates'!Y163","v":203.63646906683377},{"$f":"'Population 2016'!Z163*'Prevalence Rates'!Z163","v":304.54071585758084},{"$f":"'Population 2016'!AA163*'Prevalence Rates'!AA163","v":1033.7810694757336},{"$f":"'Population 2016'!AB163*'Prevalence Rates'!AB163","v":422.38420214580844},{"$f":"'Population 2016'!AC163*'Prevalence Rates'!AC163","v":554.729627284397},{"$f":"'Population 2016'!AD163*'Prevalence Rates'!AD163","v":352.18994350876699},{"$f":"'Population 2016'!AE163*'Prevalence Rates'!AE163","v":237.2712179970828},{"$f":"'Population 2016'!AF163*'Prevalence Rates'!AF163","v":42.530896292235184},{"$f":"'Population 2016'!AG163*'Prevalence Rates'!AG163","v":237.2712179970828},{"$f":"'Population 2016'!AH163*'Prevalence Rates'!AH163","v":479.05144219133666},{"$f":"'Population 2016'!AI163*'Prevalence Rates'!AI163","v":634.42935844520446},{"$f":"'Population 2016'!AJ163*'Prevalence Rates'!AJ163","v":77.993620707823823},{"$f":"'Population 2016'!AK163*'Prevalence Rates'!AK163","v":98.101351046559657},{"$f":"'Population 2016'!AL163*'Prevalence Rates'!AL163","v":62.760491663326988},{"$f":"'Population 2016'!AM163*'Prevalence Rates'!AM163","v":256.03843297990289},{"$f":"'Population 2016'!AN163*'Prevalence Rates'!AN163","v":20.229595371091804},{"$f":"'Population 2016'!AO163*'Prevalence Rates'!AO163","v":20.229595371091804},{"$f":"'Population 2016'!AP163*'Prevalence Rates'!AP163","v":112.48142486456467},{"$f":"'Population 2016'!AQ163*'Prevalence Rates'!AQ163","v":103.2196824055106},{"$f":"'Population 2016'!AR163*'Prevalence Rates'!AR163","v":3879.0858449230318},{"$f":"'Population 2016'!AS163*'Prevalence Rates'!AS163","v":133.80780552686025},{"$f":"'Population 2016'!AT163*'Prevalence Rates'!AT163","v":26.810307118314441},{"$f":"'Population 2016'!AU163*'Prevalence Rates'!AU163","v":26.810307118314441},{"$f":"'Population 2016'!AV163*'Prevalence Rates'!AV163","v":79.943461225519428},{"$f":"'Population 2016'!AW163*'Prevalence Rates'!AW163","v":223.01300921143377},{"$f":"'Population 2016'!AX163*'Prevalence Rates'!AX163","v":51.79263875128926},{"$f":"'Population 2016'!AY163*'Prevalence Rates'!AY163","v":599.81968925610761},{"$f":"'Population 2016'!AZ163*'Prevalence Rates'!AZ163","v":309.17158708710792},{"$f":"'Population 2016'!BA163*'Prevalence Rates'!BA163","v":49.233473071813791},{"$f":"'Population 2016'!BB163*'Prevalence Rates'!BB163","v":159.64319238632689},{"$f":"'Population 2016'!BC163*'Prevalence Rates'!BC163","v":68.488148184057806},161]
[null,"Male 45-49",{"$f":"'Population 2016'!C164*'Prevalence Rates'!C164","v":127.3489588119936},{"$f":"'Population 2016'!D164*'Prevalence Rates'!D164","v":372.29767384750284},{"$f":"'Population 2016'!E164*'Prevalence Rates'!E164","v":244.94871503550922},{"$f":"'Population 2016'!F164*'Prevalence Rates'!F164","v":166.71136426297343},{"$f":"'Population 2016'!G164*'Prevalence Rates'!G164","v":152.4531554773244},{"$f":"'Population 2016'!H164*'Prevalence Rates'!H164","v":279.80211428931801},{"$f":"'Population 2016'!I164*'Prevalence Rates'!I164","v":165.61457897176967},{"$f":"'Population 2016'!J164*'Prevalence Rates'!J164","v":107.48495853796972},{"$f":"'Population 2016'!K164*'Prevalence Rates'!K164","v":45.090061971710654},{"$f":"'Population 2016'!L164*'Prevalence Rates'!L164","v":229.83745102336835},{"$f":"'Population 2016'!M164*'Prevalence Rates'!M164","v":229.83745102336835},{"$f":"'Population 2016'!N164*'Prevalence Rates'!N164","v":61.054381210343344},{"$f":"'Population 2016'!O164*'Prevalence Rates'!O164","v":97.248295820067838},{"$f":"'Population 2016'!P164*'Prevalence Rates'!P164","v":28.760147636010036},{"$f":"'Population 2016'!Q164*'Prevalence Rates'!Q164","v":97.735755949491733},{"$f":"'Population 2016'!R164*'Prevalence Rates'!R164","v":37.168834868572297},{"$f":"'Population 2016'!S164*'Prevalence Rates'!S164","v":1156.7428871229122},{"$f":"'Population 2016'!T164*'Prevalence Rates'!T164","v":272.97767247738341},{"$f":"'Population 2016'!U164*'Prevalence Rates'!U164","v":92.008099428760929},{"$f":"'Population 2016'!V164*'Prevalence Rates'!V164","v":141.3634375329307},{"$f":"'Population 2016'!W164*'Prevalence Rates'!W164","v":346.94974711746005},{"$f":"'Population 2016'!X164*'Prevalence Rates'!X164","v":346.94974711746005},{"$f":"'Population 2016'!Y164*'Prevalence Rates'!Y164","v":248.84839607090041},{"$f":"'Population 2016'!Z164*'Prevalence Rates'!Z164","v":317.09281419024626},{"$f":"'Population 2016'!AA164*'Prevalence Rates'!AA164","v":1193.5461268944166},{"$f":"'Population 2016'!AB164*'Prevalence Rates'!AB164","v":491.35981045929014},{"$f":"'Population 2016'!AC164*'Prevalence Rates'!AC164","v":625.7769411479303},{"$f":"'Population 2016'!AD164*'Prevalence Rates'!AD164","v":462.96525792034799},{"$f":"'Population 2016'!AE164*'Prevalence Rates'!AE164","v":310.51210244302365},{"$f":"'Population 2016'!AF164*'Prevalence Rates'!AF164","v":48.989743007101843},{"$f":"'Population 2016'!AG164*'Prevalence Rates'!AG164","v":310.51210244302365},{"$f":"'Population 2016'!AH164*'Prevalence Rates'!AH164","v":567.7691857464863},{"$f":"'Population 2016'!AI164*'Prevalence Rates'!AI164","v":644.1785610336824},{"$f":"'Population 2016'!AJ164*'Prevalence Rates'!AJ164","v":90.545719040489232},{"$f":"'Population 2016'!AK164*'Prevalence Rates'!AK164","v":119.06213661178731},{"$f":"'Population 2016'!AL164*'Prevalence Rates'!AL164","v":82.137031807926974},{"$f":"'Population 2016'!AM164*'Prevalence Rates'!AM164","v":286.50469106889659},{"$f":"'Population 2016'!AN164*'Prevalence Rates'!AN164","v":26.322846988890543},{"$f":"'Population 2016'!AO164*'Prevalence Rates'!AO164","v":26.322846988890543},{"$f":"'Population 2016'!AP164*'Prevalence Rates'!AP164","v":147.09109405366149},{"$f":"'Population 2016'!AQ164*'Prevalence Rates'!AQ164","v":133.56407546214831},{"$f":"'Population 2016'!AR164*'Prevalence Rates'!AR164","v":4588.3403332348043},{"$f":"'Population 2016'!AS164*'Prevalence Rates'!AS164","v":165.61457897176967},{"$f":"'Population 2016'!AT164*'Prevalence Rates'!AT164","v":32.050503509621358},{"$f":"'Population 2016'!AU164*'Prevalence Rates'!AU164","v":32.050503509621358},{"$f":"'Population 2016'!AV164*'Prevalence Rates'!AV164","v":100.41678666132319},{"$f":"'Population 2016'!AW164*'Prevalence Rates'!AW164","v":281.26449467758971},{"$f":"'Population 2016'!AX164*'Prevalence Rates'!AX164","v":62.394896566259064},{"$f":"'Population 2016'!AY164*'Prevalence Rates'!AY164","v":721.80658664443831},{"$f":"'Population 2016'!AZ164*'Prevalence Rates'!AZ164","v":374.85683952697826},{"$f":"'Population 2016'!BA164*'Prevalence Rates'!BA164","v":60.201325983851518},{"$f":"'Population 2016'!BB164*'Prevalence Rates'!BB164","v":182.91941356631807},{"$f":"'Population 2016'!BC164*'Prevalence Rates'!BC164","v":92.008099428760929},162]
[null,"Male 50-54",{"$f":"'Population 2016'!C165*'Prevalence Rates'!C165","v":130.15185455618101},{"$f":"'Population 2016'!D165*'Prevalence Rates'!D165","v":372.78513397692672},{"$f":"'Population 2016'!E165*'Prevalence Rates'!E165","v":242.63327942074571},{"$f":"'Population 2016'!F165*'Prevalence Rates'!F165","v":194.00913151071177},{"$f":"'Population 2016'!G165*'Prevalence Rates'!G165","v":170.48918026600865},{"$f":"'Population 2016'!H165*'Prevalence Rates'!H165","v":312.94940309014311},{"$f":"'Population 2016'!I165*'Prevalence Rates'!I165","v":190.23131550767656},{"$f":"'Population 2016'!J165*'Prevalence Rates'!J165","v":115.2843206087521},{"$f":"'Population 2016'!K165*'Prevalence Rates'!K165","v":46.308712295270396},{"$f":"'Population 2016'!L165*'Prevalence Rates'!L165","v":267.37188098900856},{"$f":"'Population 2016'!M165*'Prevalence Rates'!M165","v":267.37188098900856},{"$f":"'Population 2016'!N165*'Prevalence Rates'!N165","v":78.237350772535777},{"$f":"'Population 2016'!O165*'Prevalence Rates'!O165","v":110.28785428215713},{"$f":"'Population 2016'!P165*'Prevalence Rates'!P165","v":29.491337830145884},{"$f":"'Population 2016'!Q165*'Prevalence Rates'!Q165","v":99.807461499543308},{"$f":"'Population 2016'!R165*'Prevalence Rates'!R165","v":47.283632554118199},{"$f":"'Population 2016'!S165*'Prevalence Rates'!S165","v":1196.9583478003838},{"$f":"'Population 2016'!T165*'Prevalence Rates'!T165","v":268.22493621550041},{"$f":"'Population 2016'!U165*'Prevalence Rates'!U165","v":87.742823296301808},{"$f":"'Population 2016'!V165*'Prevalence Rates'!V165","v":146.60363392423761},{"$f":"'Population 2016'!W165*'Prevalence Rates'!W165","v":361.57355100017702},{"$f":"'Population 2016'!X165*'Prevalence Rates'!X165","v":361.57355100017702},{"$f":"'Population 2016'!Y165*'Prevalence Rates'!Y165","v":261.88795453298968},{"$f":"'Population 2016'!Z165*'Prevalence Rates'!Z165","v":318.18959948145005},{"$f":"'Population 2016'!AA165*'Prevalence Rates'!AA165","v":1247.1667411310455},{"$f":"'Population 2016'!AB165*'Prevalence Rates'!AB165","v":494.77203136525742},{"$f":"'Population 2016'!AC165*'Prevalence Rates'!AC165","v":674.27922402560819},{"$f":"'Population 2016'!AD165*'Prevalence Rates'!AD165","v":536.44987243100081},{"$f":"'Population 2016'!AE165*'Prevalence Rates'!AE165","v":365.96069216499211},{"$f":"'Population 2016'!AF165*'Prevalence Rates'!AF165","v":58.373350498511897},{"$f":"'Population 2016'!AG165*'Prevalence Rates'!AG165","v":365.96069216499211},{"$f":"'Population 2016'!AH165*'Prevalence Rates'!AH165","v":572.88751710543727},{"$f":"'Population 2016'!AI165*'Prevalence Rates'!AI165","v":645.15348129253027},{"$f":"'Population 2016'!AJ165*'Prevalence Rates'!AJ165","v":91.27690923462508},{"$f":"'Population 2016'!AK165*'Prevalence Rates'!AK165","v":121.9868973883307},{"$f":"'Population 2016'!AL165*'Prevalence Rates'!AL165","v":92.129964461116899},{"$f":"'Population 2016'!AM165*'Prevalence Rates'!AM165","v":282.72687506586141},{"$f":"'Population 2016'!AN165*'Prevalence Rates'!AN165","v":34.609669189096827},{"$f":"'Population 2016'!AO165*'Prevalence Rates'!AO165","v":34.609669189096827},{"$f":"'Population 2016'!AP165*'Prevalence Rates'!AP165","v":172.92648091312816},{"$f":"'Population 2016'!AQ165*'Prevalence Rates'!AQ165","v":154.40299599501998},{"$f":"'Population 2016'!AR165*'Prevalence Rates'!AR165","v":4921.6411967283957},{"$f":"'Population 2016'!AS165*'Prevalence Rates'!AS165","v":190.23131550767656},{"$f":"'Population 2016'!AT165*'Prevalence Rates'!AT165","v":36.559509706792419},{"$f":"'Population 2016'!AU165*'Prevalence Rates'!AU165","v":36.559509706792419},{"$f":"'Population 2016'!AV165*'Prevalence Rates'!AV165","v":110.53158434686908},{"$f":"'Population 2016'!AW165*'Prevalence Rates'!AW165","v":290.16064203957586},{"$f":"'Population 2016'!AX165*'Prevalence Rates'!AX165","v":68.9756083134817},{"$f":"'Population 2016'!AY165*'Prevalence Rates'!AY165","v":806.74651419655277},{"$f":"'Population 2016'!AZ165*'Prevalence Rates'!AZ165","v":445.17296319637569},{"$f":"'Population 2016'!BA165*'Prevalence Rates'!BA165","v":66.538307666362201},{"$f":"'Population 2016'!BB165*'Prevalence Rates'!BB165","v":185.84417434286146},{"$f":"'Population 2016'!BC165*'Prevalence Rates'!BC165","v":87.742823296301808},163]
[null,"Male 55-59",{"$f":"'Population 2016'!C166*'Prevalence Rates'!C166","v":77.834178158369056},{"$f":"'Population 2016'!D166*'Prevalence Rates'!D166","v":229.39302137276457},{"$f":"'Population 2016'!E166*'Prevalence Rates'!E166","v":151.55884321439552},{"$f":"'Population 2016'!F166*'Prevalence Rates'!F166","v":121.31282678115389},{"$f":"'Population 2016'!G166*'Prevalence Rates'!G166","v":116.1348402722022},{"$f":"'Population 2016'!H166*'Prevalence Rates'!H166","v":184.84589934337066},{"$f":"'Population 2016'!I166*'Prevalence Rates'!I166","v":125.75110093168391},{"$f":"'Population 2016'!J166*'Prevalence Rates'!J166","v":72.984952697604783},{"$f":"'Population 2016'!K166*'Prevalence Rates'!K166","v":30.903538529616437},{"$f":"'Population 2016'!L166*'Prevalence Rates'!L166","v":173.09269187067079},{"$f":"'Population 2016'!M166*'Prevalence Rates'!M166","v":173.09269187067079},{"$f":"'Population 2016'!N166*'Prevalence Rates'!N166","v":48.985396179923931},{"$f":"'Population 2016'!O166*'Prevalence Rates'!O166","v":58.601656839405642},{"$f":"'Population 2016'!P166*'Prevalence Rates'!P166","v":18.985950532822866},{"$f":"'Population 2016'!Q166*'Prevalence Rates'!Q166","v":68.957629857309016},{"$f":"'Population 2016'!R166*'Prevalence Rates'!R166","v":31.232299577803847},{"$f":"'Population 2016'!S166*'Prevalence Rates'!S166","v":755.57507899671259},{"$f":"'Population 2016'!T166*'Prevalence Rates'!T166","v":152.38074583486403},{"$f":"'Population 2016'!U166*'Prevalence Rates'!U166","v":58.272895791218232},{"$f":"'Population 2016'!V166*'Prevalence Rates'!V166","v":83.998447811882983},{"$f":"'Population 2016'!W166*'Prevalence Rates'!W166","v":238.84490150815259},{"$f":"'Population 2016'!X166*'Prevalence Rates'!X166","v":238.84490150815259},{"$f":"'Population 2016'!Y166*'Prevalence Rates'!Y166","v":156.98340050948775},{"$f":"'Population 2016'!Z166*'Prevalence Rates'!Z166","v":190.43483716255662},{"$f":"'Population 2016'!AA166*'Prevalence Rates'!AA166","v":762.39687074660128},{"$f":"'Population 2016'!AB166*'Prevalence Rates'!AB166","v":308.46005346183642},{"$f":"'Population 2016'!AC166*'Prevalence Rates'!AC166","v":415.96491621911912},{"$f":"'Population 2016'!AD166*'Prevalence Rates'!AD166","v":359.99334776521277},{"$f":"'Population 2016'!AE166*'Prevalence Rates'!AE166","v":243.85850749301056},{"$f":"'Population 2016'!AF166*'Prevalence Rates'!AF166","v":41.999223905941491},{"$f":"'Population 2016'!AG166*'Prevalence Rates'!AG166","v":243.85850749301056},{"$f":"'Population 2016'!AH166*'Prevalence Rates'!AH166","v":346.43195452748216},{"$f":"'Population 2016'!AI166*'Prevalence Rates'!AI166","v":390.97907655687607},{"$f":"'Population 2016'!AJ166*'Prevalence Rates'!AJ166","v":56.875661336421743},{"$f":"'Population 2016'!AK166*'Prevalence Rates'!AK166","v":79.067032089071844},{"$f":"'Population 2016'!AL166*'Prevalence Rates'!AL166","v":59.341369197827312},{"$f":"'Population 2016'!AM166*'Prevalence Rates'!AM166","v":157.72311286790944},{"$f":"'Population 2016'!AN166*'Prevalence Rates'!AN166","v":24.903649400196226},{"$f":"'Population 2016'!AO166*'Prevalence Rates'!AO166","v":24.903649400196226},{"$f":"'Population 2016'!AP166*'Prevalence Rates'!AP166","v":108.81990695003235},{"$f":"'Population 2016'!AQ166*'Prevalence Rates'!AQ166","v":90.080527203350044},{"$f":"'Population 2016'!AR166*'Prevalence Rates'!AR166","v":3085.833388549067},{"$f":"'Population 2016'!AS166*'Prevalence Rates'!AS166","v":125.75110093168391},{"$f":"'Population 2016'!AT166*'Prevalence Rates'!AT166","v":22.191370752650101},{"$f":"'Population 2016'!AU166*'Prevalence Rates'!AU166","v":22.191370752650101},{"$f":"'Population 2016'!AV166*'Prevalence Rates'!AV166","v":66.902873306137721},{"$f":"'Population 2016'!AW166*'Prevalence Rates'!AW166","v":188.70884165957273},{"$f":"'Population 2016'!AX166*'Prevalence Rates'!AX166","v":42.081414167988342},{"$f":"'Population 2016'!AY166*'Prevalence Rates'!AY166","v":517.96303141926273},{"$f":"'Population 2016'!AZ166*'Prevalence Rates'!AZ166","v":279.1181299111102},{"$f":"'Population 2016'!BA166*'Prevalence Rates'!BA166","v":43.232077836644272},{"$f":"'Population 2016'!BB166*'Prevalence Rates'!BB166","v":112.76503952828126},{"$f":"'Population 2016'!BC166*'Prevalence Rates'!BC166","v":58.272895791218232},164]
[null,"Male 60-64",{"$f":"'Population 2016'!C167*'Prevalence Rates'!C167","v":69.861722739824401},{"$f":"'Population 2016'!D167*'Prevalence Rates'!D167","v":211.55773450859763},{"$f":"'Population 2016'!E167*'Prevalence Rates'!E167","v":141.69601176877325},{"$f":"'Population 2016'!F167*'Prevalence Rates'!F167","v":103.2309691308464},{"$f":"'Population 2016'!G167*'Prevalence Rates'!G167","v":112.60065900418756},{"$f":"'Population 2016'!H167*'Prevalence Rates'!H167","v":178.10629785552879},{"$f":"'Population 2016'!I167*'Prevalence Rates'!I167","v":110.95685376325051},{"$f":"'Population 2016'!J167*'Prevalence Rates'!J167","v":63.944023872451034},{"$f":"'Population 2016'!K167*'Prevalence Rates'!K167","v":25.314600710430486},{"$f":"'Population 2016'!L167*'Prevalence Rates'!L167","v":167.50375405148483},{"$f":"'Population 2016'!M167*'Prevalence Rates'!M167","v":167.50375405148483},{"$f":"'Population 2016'!N167*'Prevalence Rates'!N167","v":41.095131023426113},{"$f":"'Population 2016'!O167*'Prevalence Rates'!O167","v":55.889378191859514},{"$f":"'Population 2016'!P167*'Prevalence Rates'!P167","v":16.766813457557856},{"$f":"'Population 2016'!Q167*'Prevalence Rates'!Q167","v":60.738603652623802},{"$f":"'Population 2016'!R167*'Prevalence Rates'!R167","v":24.328317565868261},{"$f":"'Population 2016'!S167*'Prevalence Rates'!S167","v":642.97441999252499},{"$f":"'Population 2016'!T167*'Prevalence Rates'!T167","v":125.2579593594028},{"$f":"'Population 2016'!U167*'Prevalence Rates'!U167","v":56.135948978000073},{"$f":"'Population 2016'!V167*'Prevalence Rates'!V167","v":69.615151953683835},{"$f":"'Population 2016'!W167*'Prevalence Rates'!W167","v":199.80452703589776},{"$f":"'Population 2016'!X167*'Prevalence Rates'!X167","v":199.80452703589776},{"$f":"'Population 2016'!Y167*'Prevalence Rates'!Y167","v":133.55917582613486},{"$f":"'Population 2016'!Z167*'Prevalence Rates'!Z167","v":159.03815706065907},{"$f":"'Population 2016'!AA167*'Prevalence Rates'!AA167","v":641.9059465859159},{"$f":"'Population 2016'!AB167*'Prevalence Rates'!AB167","v":280.26879357976611},{"$f":"'Population 2016'!AC167*'Prevalence Rates'!AC167","v":342.15806090104581},{"$f":"'Population 2016'!AD167*'Prevalence Rates'!AD167","v":343.3909148317486},{"$f":"'Population 2016'!AE167*'Prevalence Rates'!AE167","v":230.79025582756105},{"$f":"'Population 2016'!AF167*'Prevalence Rates'!AF167","v":31.478870363944406},{"$f":"'Population 2016'!AG167*'Prevalence Rates'!AG167","v":230.79025582756105},{"$f":"'Population 2016'!AH167*'Prevalence Rates'!AH167","v":299.74788568487008},{"$f":"'Population 2016'!AI167*'Prevalence Rates'!AI167","v":332.21303919337669},{"$f":"'Population 2016'!AJ167*'Prevalence Rates'!AJ167","v":54.081192426828771},{"$f":"'Population 2016'!AK167*'Prevalence Rates'!AK167","v":68.711059071168464},{"$f":"'Population 2016'!AL167*'Prevalence Rates'!AL167","v":52.683957972032282},{"$f":"'Population 2016'!AM167*'Prevalence Rates'!AM167","v":134.5454589706971},{"$f":"'Population 2016'!AN167*'Prevalence Rates'!AN167","v":19.890043415338241},{"$f":"'Population 2016'!AO167*'Prevalence Rates'!AO167","v":19.890043415338241},{"$f":"'Population 2016'!AP167*'Prevalence Rates'!AP167","v":102.65563729651844},{"$f":"'Population 2016'!AQ167*'Prevalence Rates'!AQ167","v":72.491811125323665},{"$f":"'Population 2016'!AR167*'Prevalence Rates'!AR167","v":2732.5796422716962},{"$f":"'Population 2016'!AS167*'Prevalence Rates'!AS167","v":110.95685376325051},{"$f":"'Population 2016'!AT167*'Prevalence Rates'!AT167","v":21.862609704462692},{"$f":"'Population 2016'!AU167*'Prevalence Rates'!AU167","v":21.862609704462692},{"$f":"'Population 2016'!AV167*'Prevalence Rates'!AV167","v":69.532961691636984},{"$f":"'Population 2016'!AW167*'Prevalence Rates'!AW167","v":165.20242671417299},{"$f":"'Population 2016'!AX167*'Prevalence Rates'!AX167","v":38.629423162020551},{"$f":"'Population 2016'!AY167*'Prevalence Rates'!AY167","v":446.78626448668871},{"$f":"'Population 2016'!AZ167*'Prevalence Rates'!AZ167","v":246.98173745079094},{"$f":"'Population 2016'!BA167*'Prevalence Rates'!BA167","v":38.054091327692582},{"$f":"'Population 2016'!BB167*'Prevalence Rates'!BB167","v":92.135283754521353},{"$f":"'Population 2016'!BC167*'Prevalence Rates'!BC167","v":56.135948978000073},165]
[null,"Male 65-69",{"$f":"'Population 2016'!C168*'Prevalence Rates'!C168","v":65.916590161575485},{"$f":"'Population 2016'!D168*'Prevalence Rates'!D168","v":213.69468132181581},{"$f":"'Population 2016'!E168*'Prevalence Rates'!E168","v":147.77809116024031},{"$f":"'Population 2016'!F168*'Prevalence Rates'!F168","v":120.40873389863852},{"$f":"'Population 2016'!G168*'Prevalence Rates'!G168","v":128.95652115151114},{"$f":"'Population 2016'!H168*'Prevalence Rates'!H168","v":190.68140794869717},{"$f":"'Population 2016'!I168*'Prevalence Rates'!I168","v":120.16216311249796},{"$f":"'Population 2016'!J168*'Prevalence Rates'!J168","v":65.505638851341232},{"$f":"'Population 2016'!K168*'Prevalence Rates'!K168","v":26.794025427273827},{"$f":"'Population 2016'!L168*'Prevalence Rates'!L168","v":179.99667388260639},{"$f":"'Population 2016'!M168*'Prevalence Rates'!M168","v":179.99667388260639},{"$f":"'Population 2016'!N168*'Prevalence Rates'!N168","v":41.341701809566672},{"$f":"'Population 2016'!O168*'Prevalence Rates'!O168","v":58.272895791218232},{"$f":"'Population 2016'!P168*'Prevalence Rates'!P168","v":18.246238174401196},{"$f":"'Population 2016'!Q168*'Prevalence Rates'!Q168","v":56.793471074374892},{"$f":"'Population 2016'!R168*'Prevalence Rates'!R168","v":21.451658394228431},{"$f":"'Population 2016'!S168*'Prevalence Rates'!S168","v":645.76888890211796},{"$f":"'Population 2016'!T168*'Prevalence Rates'!T168","v":112.92942005237497},{"$f":"'Population 2016'!U168*'Prevalence Rates'!U168","v":61.067364700811204},{"$f":"'Population 2016'!V168*'Prevalence Rates'!V168","v":74.875328724682376},{"$f":"'Population 2016'!W168*'Prevalence Rates'!W168","v":213.20153974953467},{"$f":"'Population 2016'!X168*'Prevalence Rates'!X168","v":213.20153974953467},{"$f":"'Population 2016'!Y168*'Prevalence Rates'!Y168","v":140.38096757602361},{"$f":"'Population 2016'!Z168*'Prevalence Rates'!Z168","v":126.16205224191818},{"$f":"'Population 2016'!AA168*'Prevalence Rates'!AA168","v":580.59201109896412},{"$f":"'Population 2016'!AB168*'Prevalence Rates'!AB168","v":285.11801904053038},{"$f":"'Population 2016'!AC168*'Prevalence Rates'!AC168","v":303.44644747697845},{"$f":"'Population 2016'!AD168*'Prevalence Rates'!AD168","v":356.13040544901071},{"$f":"'Population 2016'!AE168*'Prevalence Rates'!AE168","v":227.17388429749957},{"$f":"'Population 2016'!AF168*'Prevalence Rates'!AF168","v":29.424113812773097},{"$f":"'Population 2016'!AG168*'Prevalence Rates'!AG168","v":227.17388429749957},{"$f":"'Population 2016'!AH168*'Prevalence Rates'!AH168","v":277.14556362198573},{"$f":"'Population 2016'!AI168*'Prevalence Rates'!AI168","v":312.40518604008531},{"$f":"'Population 2016'!AJ168*'Prevalence Rates'!AJ168","v":54.409953475016174},{"$f":"'Population 2016'!AK168*'Prevalence Rates'!AK168","v":71.423337718714592},{"$f":"'Population 2016'!AL168*'Prevalence Rates'!AL168","v":62.711169941748253},{"$f":"'Population 2016'!AM168*'Prevalence Rates'!AM168","v":135.53174211525933},{"$f":"'Population 2016'!AN168*'Prevalence Rates'!AN168","v":19.232521318963421},{"$f":"'Population 2016'!AO168*'Prevalence Rates'!AO168","v":19.232521318963421},{"$f":"'Population 2016'!AP168*'Prevalence Rates'!AP168","v":99.285836552597488},{"$f":"'Population 2016'!AQ168*'Prevalence Rates'!AQ168","v":75.450660559010345},{"$f":"'Population 2016'!AR168*'Prevalence Rates'!AR168","v":2742.7712347655056},{"$f":"'Population 2016'!AS168*'Prevalence Rates'!AS168","v":120.16216311249796},{"$f":"'Population 2016'!AT168*'Prevalence Rates'!AT168","v":22.766702586978067},{"$f":"'Population 2016'!AU168*'Prevalence Rates'!AU168","v":22.766702586978067},{"$f":"'Population 2016'!AV168*'Prevalence Rates'!AV168","v":69.697342215730686},{"$f":"'Population 2016'!AW168*'Prevalence Rates'!AW168","v":141.6138215067264},{"$f":"'Population 2016'!AX168*'Prevalence Rates'!AX168","v":38.711613424067401},{"$f":"'Population 2016'!AY168*'Prevalence Rates'!AY168","v":474.23781201033739},{"$f":"'Population 2016'!AZ168*'Prevalence Rates'!AZ168","v":261.03627226080266},{"$f":"'Population 2016'!BA168*'Prevalence Rates'!BA168","v":32.71172429464719},{"$f":"'Population 2016'!BB168*'Prevalence Rates'!BB168","v":88.272341438319302},{"$f":"'Population 2016'!BC168*'Prevalence Rates'!BC168","v":61.067364700811204},166]
[null,"Male 70-74",{"$f":"'Population 2016'!C169*'Prevalence Rates'!C169","v":40.766369975238703},{"$f":"'Population 2016'!D169*'Prevalence Rates'!D169","v":145.47676382292846},{"$f":"'Population 2016'!E169*'Prevalence Rates'!E169","v":104.71039384768974},{"$f":"'Population 2016'!F169*'Prevalence Rates'!F169","v":78.656080778837591},{"$f":"'Population 2016'!G169*'Prevalence Rates'!G169","v":93.121566899083575},{"$f":"'Population 2016'!H169*'Prevalence Rates'!H169","v":144.73705146450678},{"$f":"'Population 2016'!I169*'Prevalence Rates'!I169","v":88.683292748553555},{"$f":"'Population 2016'!J169*'Prevalence Rates'!J169","v":46.930639628752623},{"$f":"'Population 2016'!K169*'Prevalence Rates'!K169","v":20.465375249666206},{"$f":"'Population 2016'!L169*'Prevalence Rates'!L169","v":144.24390989222567},{"$f":"'Population 2016'!M169*'Prevalence Rates'!M169","v":144.24390989222567},{"$f":"'Population 2016'!N169*'Prevalence Rates'!N169","v":29.095352764585691},{"$f":"'Population 2016'!O169*'Prevalence Rates'!O169","v":44.793692815534463},{"$f":"'Population 2016'!P169*'Prevalence Rates'!P169","v":10.109402231762825},{"$f":"'Population 2016'!Q169*'Prevalence Rates'!Q169","v":43.232077836644272},{"$f":"'Population 2016'!R169*'Prevalence Rates'!R169","v":17.835286864166935},{"$f":"'Population 2016'!S169*'Prevalence Rates'!S169","v":459.9367064141851},{"$f":"'Population 2016'!T169*'Prevalence Rates'!T169","v":66.985063568184572},{"$f":"'Population 2016'!U169*'Prevalence Rates'!U169","v":44.053980457112793},{"$f":"'Population 2016'!V169*'Prevalence Rates'!V169","v":56.464710026187483},{"$f":"'Population 2016'!W169*'Prevalence Rates'!W169","v":156.16149788901924},{"$f":"'Population 2016'!X169*'Prevalence Rates'!X169","v":156.16149788901924},{"$f":"'Population 2016'!Y169*'Prevalence Rates'!Y169","v":103.39534965494011},{"$f":"'Population 2016'!Z169*'Prevalence Rates'!Z169","v":89.505195369022076},{"$f":"'Population 2016'!AA169*'Prevalence Rates'!AA169","v":426.07431845088195},{"$f":"'Population 2016'!AB169*'Prevalence Rates'!AB169","v":197.91415100882017},{"$f":"'Population 2016'!AC169*'Prevalence Rates'!AC169","v":222.9821809331101},{"$f":"'Population 2016'!AD169*'Prevalence Rates'!AD169","v":267.529302962504},{"$f":"'Population 2016'!AE169*'Prevalence Rates'!AE169","v":174.40773606342043},{"$f":"'Population 2016'!AF169*'Prevalence Rates'!AF169","v":24.739268876102521},{"$f":"'Population 2016'!AG169*'Prevalence Rates'!AG169","v":174.40773606342043},{"$f":"'Population 2016'!AH169*'Prevalence Rates'!AH169","v":203.09213751777187},{"$f":"'Population 2016'!AI169*'Prevalence Rates'!AI169","v":215.0919157766123},{"$f":"'Population 2016'!AJ169*'Prevalence Rates'!AJ169","v":38.629423162020551},{"$f":"'Population 2016'!AK169*'Prevalence Rates'!AK169","v":52.437387185891723},{"$f":"'Population 2016'!AL169*'Prevalence Rates'!AL169","v":47.177210414893182},{"$f":"'Population 2016'!AM169*'Prevalence Rates'!AM169","v":95.340703974348585},{"$f":"'Population 2016'!AN169*'Prevalence Rates'!AN169","v":16.027101099136186},{"$f":"'Population 2016'!AO169*'Prevalence Rates'!AO169","v":16.027101099136186},{"$f":"'Population 2016'!AP169*'Prevalence Rates'!AP169","v":79.724554185446664},{"$f":"'Population 2016'!AQ169*'Prevalence Rates'!AQ169","v":55.807187929812663},{"$f":"'Population 2016'!AR169*'Prevalence Rates'!AR169","v":2008.4012433768812},{"$f":"'Population 2016'!AS169*'Prevalence Rates'!AS169","v":88.683292748553555},{"$f":"'Population 2016'!AT169*'Prevalence Rates'!AT169","v":17.013384243698411},{"$f":"'Population 2016'!AU169*'Prevalence Rates'!AU169","v":17.013384243698411},{"$f":"'Population 2016'!AV169*'Prevalence Rates'!AV169","v":52.766148234079132},{"$f":"'Population 2016'!AW169*'Prevalence Rates'!AW169","v":107.75143354342327},{"$f":"'Population 2016'!AX169*'Prevalence Rates'!AX169","v":26.465264379086417},{"$f":"'Population 2016'!AY169*'Prevalence Rates'!AY169","v":343.63748561788918},{"$f":"'Population 2016'!AZ169*'Prevalence Rates'!AZ169","v":187.47598772886994},{"$f":"'Population 2016'!BA169*'Prevalence Rates'!BA169","v":24.985839662243077},{"$f":"'Population 2016'!BB169*'Prevalence Rates'!BB169","v":66.245351209762902},{"$f":"'Population 2016'!BC169*'Prevalence Rates'!BC169","v":44.053980457112793},167]
[null,"Male 75-79",{"$f":"'Population 2016'!C170*'Prevalence Rates'!C170","v":36.903427659036652},{"$f":"'Population 2016'!D170*'Prevalence Rates'!D170","v":109.23085826026661},{"$f":"'Population 2016'!E170*'Prevalence Rates'!E170","v":72.327430601229963},{"$f":"'Population 2016'!F170*'Prevalence Rates'!F170","v":58.766037363499343},{"$f":"'Population 2016'!G170*'Prevalence Rates'!G170","v":69.943913001871252},{"$f":"'Population 2016'!H170*'Prevalence Rates'!H170","v":107.0117211850016},{"$f":"'Population 2016'!I170*'Prevalence Rates'!I170","v":65.670019375434933},{"$f":"'Population 2016'!J170*'Prevalence Rates'!J170","v":32.876104818740892},{"$f":"'Population 2016'!K170*'Prevalence Rates'!K170","v":13.561393237730618},{"$f":"'Population 2016'!L170*'Prevalence Rates'!L170","v":108.24457511570439},{"$f":"'Population 2016'!M170*'Prevalence Rates'!M170","v":108.24457511570439},{"$f":"'Population 2016'!N170*'Prevalence Rates'!N170","v":25.314600710430486},{"$f":"'Population 2016'!O170*'Prevalence Rates'!O170","v":33.45143665306886},{"$f":"'Population 2016'!P170*'Prevalence Rates'!P170","v":5.5889378191859516},{"$f":"'Population 2016'!Q170*'Prevalence Rates'!Q170","v":28.684401454351427},{"$f":"'Population 2016'!R170*'Prevalence Rates'!R170","v":14.136725072058583},{"$f":"'Population 2016'!S170*'Prevalence Rates'!S170","v":341.82929985285841},{"$f":"'Population 2016'!T170*'Prevalence Rates'!T170","v":53.505860592500802},{"$f":"'Population 2016'!U170*'Prevalence Rates'!U170","v":33.944578225349971},{"$f":"'Population 2016'!V170*'Prevalence Rates'!V170","v":40.108847878863891},{"$f":"'Population 2016'!W170*'Prevalence Rates'!W170","v":118.18959682337351},{"$f":"'Population 2016'!X170*'Prevalence Rates'!X170","v":118.18959682337351},{"$f":"'Population 2016'!Y170*'Prevalence Rates'!Y170","v":72.984952697604783},{"$f":"'Population 2016'!Z170*'Prevalence Rates'!Z170","v":63.779643348357332},{"$f":"'Population 2016'!AA170*'Prevalence Rates'!AA170","v":313.9668010189755},{"$f":"'Population 2016'!AB170*'Prevalence Rates'!AB170","v":155.58616605469126},{"$f":"'Population 2016'!AC170*'Prevalence Rates'!AC170","v":155.83273684083184},{"$f":"'Population 2016'!AD170*'Prevalence Rates'!AD170","v":188.46227087343217},{"$f":"'Population 2016'!AE170*'Prevalence Rates'!AE170","v":118.51835787156092},{"$f":"'Population 2016'!AF170*'Prevalence Rates'!AF170","v":17.588716078026376},{"$f":"'Population 2016'!AG170*'Prevalence Rates'!AG170","v":118.51835787156092},{"$f":"'Population 2016'!AH170*'Prevalence Rates'!AH170","v":158.13406417814369},{"$f":"'Population 2016'!AI170*'Prevalence Rates'!AI170","v":157.96968365404999},{"$f":"'Population 2016'!AJ170*'Prevalence Rates'!AJ170","v":28.273450144117167},{"$f":"'Population 2016'!AK170*'Prevalence Rates'!AK170","v":46.355307794424661},{"$f":"'Population 2016'!AL170*'Prevalence Rates'!AL170","v":35.25962241809961},{"$f":"'Population 2016'!AM170*'Prevalence Rates'!AM170","v":69.532961691636984},{"$f":"'Population 2016'!AN170*'Prevalence Rates'!AN170","v":11.506636686559313},{"$f":"'Population 2016'!AO170*'Prevalence Rates'!AO170","v":11.506636686559313},{"$f":"'Population 2016'!AP170*'Prevalence Rates'!AP170","v":60.985174438764354},{"$f":"'Population 2016'!AQ170*'Prevalence Rates'!AQ170","v":39.369135520442221},{"$f":"'Population 2016'!AR170*'Prevalence Rates'!AR170","v":1491.4244951021806},{"$f":"'Population 2016'!AS170*'Prevalence Rates'!AS170","v":65.670019375434933},{"$f":"'Population 2016'!AT170*'Prevalence Rates'!AT170","v":12.821680879308948},{"$f":"'Population 2016'!AU170*'Prevalence Rates'!AU170","v":12.821680879308948},{"$f":"'Population 2016'!AV170*'Prevalence Rates'!AV170","v":38.300662113833141},{"$f":"'Population 2016'!AW170*'Prevalence Rates'!AW170","v":88.601102486506704},{"$f":"'Population 2016'!AX170*'Prevalence Rates'!AX170","v":19.314711581010275},{"$f":"'Population 2016'!AY170*'Prevalence Rates'!AY170","v":263.25540933606771},{"$f":"'Population 2016'!AZ170*'Prevalence Rates'!AZ170","v":145.06581251269418},{"$f":"'Population 2016'!BA170*'Prevalence Rates'!BA170","v":15.369579002761368},{"$f":"'Population 2016'!BB170*'Prevalence Rates'!BB170","v":47.505971463080591},{"$f":"'Population 2016'!BC170*'Prevalence Rates'!BC170","v":33.944578225349971},168]
[null,"Male 80-84",{"$f":"'Population 2016'!C171*'Prevalence Rates'!C171","v":26.054313068852156},{"$f":"'Population 2016'!D171*'Prevalence Rates'!D171","v":75.286280034916643},{"$f":"'Population 2016'!E171*'Prevalence Rates'!E171","v":49.231966966064483},{"$f":"'Population 2016'!F171*'Prevalence Rates'!F171","v":38.629423162020551},{"$f":"'Population 2016'!G171*'Prevalence Rates'!G171","v":41.752653119800932},{"$f":"'Population 2016'!H171*'Prevalence Rates'!H171","v":65.998780423622335},{"$f":"'Population 2016'!I171*'Prevalence Rates'!I171","v":42.903316788456863},{"$f":"'Population 2016'!J171*'Prevalence Rates'!J171","v":23.259844159259181},{"$f":"'Population 2016'!K171*'Prevalence Rates'!K171","v":8.6299775149194851},{"$f":"'Population 2016'!L171*'Prevalence Rates'!L171","v":73.313713745792185},{"$f":"'Population 2016'!M171*'Prevalence Rates'!M171","v":73.313713745792185},{"$f":"'Population 2016'!N171*'Prevalence Rates'!N171","v":17.25995502983897},{"$f":"'Population 2016'!O171*'Prevalence Rates'!O171","v":21.287277870134726},{"$f":"'Population 2016'!P171*'Prevalence Rates'!P171","v":5.671128081232804},{"$f":"'Population 2016'!Q171*'Prevalence Rates'!Q171","v":22.520131800837511},{"$f":"'Population 2016'!R171*'Prevalence Rates'!R171","v":10.602543804043938},{"$f":"'Population 2016'!S171*'Prevalence Rates'!S171","v":232.51625133054495},{"$f":"'Population 2016'!T171*'Prevalence Rates'!T171","v":44.793692815534463},{"$f":"'Population 2016'!U171*'Prevalence Rates'!U171","v":20.136614201478796},{"$f":"'Population 2016'!V171*'Prevalence Rates'!V171","v":23.835175993587146},{"$f":"'Population 2016'!W171*'Prevalence Rates'!W171","v":74.793138462635525},{"$f":"'Population 2016'!X171*'Prevalence Rates'!X171","v":74.793138462635525},{"$f":"'Population 2016'!Y171*'Prevalence Rates'!Y171","v":47.095020152846331},{"$f":"'Population 2016'!Z171*'Prevalence Rates'!Z171","v":43.971790195065942},{"$f":"'Population 2016'!AA171*'Prevalence Rates'!AA171","v":213.20153974953467},{"$f":"'Population 2016'!AB171*'Prevalence Rates'!AB171","v":101.25840284172195},{"$f":"'Population 2016'!AC171*'Prevalence Rates'!AC171","v":112.84722979032811},{"$f":"'Population 2016'!AD171*'Prevalence Rates'!AD171","v":125.01138857326224},{"$f":"'Population 2016'!AE171*'Prevalence Rates'!AE171","v":83.258735453461313},{"$f":"'Population 2016'!AF171*'Prevalence Rates'!AF171","v":11.588826948606165},{"$f":"'Population 2016'!AG171*'Prevalence Rates'!AG171","v":83.258735453461313},{"$f":"'Population 2016'!AH171*'Prevalence Rates'!AH171","v":100.35430995920657},{"$f":"'Population 2016'!AI171*'Prevalence Rates'!AI171","v":114.81979607945257},{"$f":"'Population 2016'!AJ171*'Prevalence Rates'!AJ171","v":18.328428436448046},{"$f":"'Population 2016'!AK171*'Prevalence Rates'!AK171","v":25.972122806805306},{"$f":"'Population 2016'!AL171*'Prevalence Rates'!AL171","v":22.520131800837511},{"$f":"'Population 2016'!AM171*'Prevalence Rates'!AM171","v":41.999223905941491},{"$f":"'Population 2016'!AN171*'Prevalence Rates'!AN171","v":8.6299775149194851},{"$f":"'Population 2016'!AO171*'Prevalence Rates'!AO171","v":8.6299775149194851},{"$f":"'Population 2016'!AP171*'Prevalence Rates'!AP171","v":43.478648622784831},{"$f":"'Population 2016'!AQ171*'Prevalence Rates'!AQ171","v":27.533737785695497},{"$f":"'Population 2016'!AR171*'Prevalence Rates'!AR171","v":994.17340971872454},{"$f":"'Population 2016'!AS171*'Prevalence Rates'!AS171","v":42.903316788456863},{"$f":"'Population 2016'!AT171*'Prevalence Rates'!AT171","v":7.6436943703572577},{"$f":"'Population 2016'!AU171*'Prevalence Rates'!AU171","v":7.6436943703572577},{"$f":"'Population 2016'!AV171*'Prevalence Rates'!AV171","v":22.191370752650101},{"$f":"'Population 2016'!AW171*'Prevalence Rates'!AW171","v":58.355086053265083},{"$f":"'Population 2016'!AX171*'Prevalence Rates'!AX171","v":14.629866644339698},{"$f":"'Population 2016'!AY171*'Prevalence Rates'!AY171","v":174.16116527727988},{"$f":"'Population 2016'!AZ171*'Prevalence Rates'!AZ171","v":99.368026814644352},{"$f":"'Population 2016'!BA171*'Prevalence Rates'!BA171","v":13.479202975683766},{"$f":"'Population 2016'!BB171*'Prevalence Rates'!BB171","v":29.177543026632542},{"$f":"'Population 2016'!BC171*'Prevalence Rates'!BC171","v":20.136614201478796},169]
[null,"Male 85-89",{"$f":"'Population 2016'!C172*'Prevalence Rates'!C172","v":12.986061403402653},{"$f":"'Population 2016'!D172*'Prevalence Rates'!D172","v":34.273339273537381},{"$f":"'Population 2016'!E172*'Prevalence Rates'!E172","v":21.287277870134726},{"$f":"'Population 2016'!F172*'Prevalence Rates'!F172","v":21.944799966509546},{"$f":"'Population 2016'!G172*'Prevalence Rates'!G172","v":20.136614201478796},{"$f":"'Population 2016'!H172*'Prevalence Rates'!H172","v":30.739158005522736},{"$f":"'Population 2016'!I172*'Prevalence Rates'!I172","v":21.287277870134726},{"$f":"'Population 2016'!J172*'Prevalence Rates'!J172","v":10.191592493809676},{"$f":"'Population 2016'!K172*'Prevalence Rates'!K172","v":4.6026546746237251},{"$f":"'Population 2016'!L172*'Prevalence Rates'!L172","v":33.944578225349971},{"$f":"'Population 2016'!M172*'Prevalence Rates'!M172","v":33.944578225349971},{"$f":"'Population 2016'!N172*'Prevalence Rates'!N172","v":11.835397734746721},{"$f":"'Population 2016'!O172*'Prevalence Rates'!O172","v":8.7121677769663357},{"$f":"'Population 2016'!P172*'Prevalence Rates'!P172","v":1.6438052409370445},{"$f":"'Population 2016'!Q172*'Prevalence Rates'!Q172","v":11.506636686559313},{"$f":"'Population 2016'!R172*'Prevalence Rates'!R172","v":5.8355086053265079},{"$f":"'Population 2016'!S172*'Prevalence Rates'!S172","v":116.1348402722022},{"$f":"'Population 2016'!T172*'Prevalence Rates'!T172","v":20.383184987619352},{"$f":"'Population 2016'!U172*'Prevalence Rates'!U172","v":12.246349044980983},{"$f":"'Population 2016'!V172*'Prevalence Rates'!V172","v":10.273782755856528},{"$f":"'Population 2016'!W172*'Prevalence Rates'!W172","v":38.382852375879992},{"$f":"'Population 2016'!X172*'Prevalence Rates'!X172","v":38.382852375879992},{"$f":"'Population 2016'!Y172*'Prevalence Rates'!Y172","v":20.465375249666206},{"$f":"'Population 2016'!Z172*'Prevalence Rates'!Z172","v":19.47909210510398},{"$f":"'Population 2016'!AA172*'Prevalence Rates'!AA172","v":104.13506201336178},{"$f":"'Population 2016'!AB172*'Prevalence Rates'!AB172","v":49.889489062439303},{"$f":"'Population 2016'!AC172*'Prevalence Rates'!AC172","v":57.040041860515451},{"$f":"'Population 2016'!AD172*'Prevalence Rates'!AD172","v":60.820793914670652},{"$f":"'Population 2016'!AE172*'Prevalence Rates'!AE172","v":40.684179713191853},{"$f":"'Population 2016'!AF172*'Prevalence Rates'!AF172","v":7.3149333221698489},{"$f":"'Population 2016'!AG172*'Prevalence Rates'!AG172","v":40.684179713191853},{"$f":"'Population 2016'!AH172*'Prevalence Rates'!AH172","v":47.095020152846331},{"$f":"'Population 2016'!AI172*'Prevalence Rates'!AI172","v":56.464710026187483},{"$f":"'Population 2016'!AJ172*'Prevalence Rates'!AJ172","v":9.9450217076691203},{"$f":"'Population 2016'!AK172*'Prevalence Rates'!AK172","v":15.616149788901923},{"$f":"'Population 2016'!AL172*'Prevalence Rates'!AL172","v":9.6162606594817106},{"$f":"'Population 2016'!AM172*'Prevalence Rates'!AM172","v":20.054423939431945},{"$f":"'Population 2016'!AN172*'Prevalence Rates'!AN172","v":4.3560838884831679},{"$f":"'Population 2016'!AO172*'Prevalence Rates'!AO172","v":4.3560838884831679},{"$f":"'Population 2016'!AP172*'Prevalence Rates'!AP172","v":23.506414945399737},{"$f":"'Population 2016'!AQ172*'Prevalence Rates'!AQ172","v":17.095574505745265},{"$f":"'Population 2016'!AR172*'Prevalence Rates'!AR172","v":494.70318726000357},{"$f":"'Population 2016'!AS172*'Prevalence Rates'!AS172","v":21.287277870134726},{"$f":"'Population 2016'!AT172*'Prevalence Rates'!AT172","v":4.6848449366705776},{"$f":"'Population 2016'!AU172*'Prevalence Rates'!AU172","v":4.6848449366705776},{"$f":"'Population 2016'!AV172*'Prevalence Rates'!AV172","v":12.410729569074686},{"$f":"'Population 2016'!AW172*'Prevalence Rates'!AW172","v":27.040596213414386},{"$f":"'Population 2016'!AX172*'Prevalence Rates'!AX172","v":5.5889378191859516},{"$f":"'Population 2016'!AY172*'Prevalence Rates'!AY172","v":95.669465022536002},{"$f":"'Population 2016'!AZ172*'Prevalence Rates'!AZ172","v":57.286612646656003},{"$f":"'Population 2016'!BA172*'Prevalence Rates'!BA172","v":5.671128081232804},{"$f":"'Population 2016'!BB172*'Prevalence Rates'!BB172","v":14.629866644339698},{"$f":"'Population 2016'!BC172*'Prevalence Rates'!BC172","v":12.246349044980983},170]
[null,"Male 90+",{"$f":"'Population 2016'!C173*'Prevalence Rates'!C173","v":5.1779865089516903},{"$f":"'Population 2016'!D173*'Prevalence Rates'!D173","v":15.287388740714515},{"$f":"'Population 2016'!E173*'Prevalence Rates'!E173","v":10.109402231762825},{"$f":"'Population 2016'!F173*'Prevalence Rates'!F173","v":9.6162606594817106},{"$f":"'Population 2016'!G173*'Prevalence Rates'!G173","v":8.3012164667320754},{"$f":"'Population 2016'!H173*'Prevalence Rates'!H173","v":12.246349044980983},{"$f":"'Population 2016'!I173*'Prevalence Rates'!I173","v":7.6436943703572577},{"$f":"'Population 2016'!J173*'Prevalence Rates'!J173","v":4.6026546746237251},{"$f":"'Population 2016'!K173*'Prevalence Rates'!K173","v":2.2191370752650101},{"$f":"'Population 2016'!L173*'Prevalence Rates'!L173","v":16.438052409370446},{"$f":"'Population 2016'!M173*'Prevalence Rates'!M173","v":16.438052409370446},{"$f":"'Population 2016'!N173*'Prevalence Rates'!N173","v":4.2738936264363163},{"$f":"'Population 2016'!O173*'Prevalence Rates'!O173","v":2.8766591716398282},{"$f":"'Population 2016'!P173*'Prevalence Rates'!P173","v":0.98628314456222677},{"$f":"'Population 2016'!Q173*'Prevalence Rates'!Q173","v":4.8492254607642815},{"$f":"'Population 2016'!R173*'Prevalence Rates'!R173","v":2.8766591716398282},{"$f":"'Population 2016'!S173*'Prevalence Rates'!S173","v":47.095020152846331},{"$f":"'Population 2016'!T173*'Prevalence Rates'!T173","v":8.6299775149194851},{"$f":"'Population 2016'!U173*'Prevalence Rates'!U173","v":4.9314157228111339},{"$f":"'Population 2016'!V173*'Prevalence Rates'!V173","v":5.2601767709985428},{"$f":"'Population 2016'!W173*'Prevalence Rates'!W173","v":16.19148162322989},{"$f":"'Population 2016'!X173*'Prevalence Rates'!X173","v":16.19148162322989},{"$f":"'Population 2016'!Y173*'Prevalence Rates'!Y173","v":9.8628314456222679},{"$f":"'Population 2016'!Z173*'Prevalence Rates'!Z173","v":9.8628314456222679},{"$f":"'Population 2016'!AA173*'Prevalence Rates'!AA173","v":49.314157228111341},{"$f":"'Population 2016'!AB173*'Prevalence Rates'!AB173","v":21.369468132181581},{"$f":"'Population 2016'!AC173*'Prevalence Rates'!AC173","v":29.752874860960507},{"$f":"'Population 2016'!AD173*'Prevalence Rates'!AD173","v":23.670795469493441},{"$f":"'Population 2016'!AE173*'Prevalence Rates'!AE173","v":15.369579002761368},{"$f":"'Population 2016'!AF173*'Prevalence Rates'!AF173","v":3.1232299577803846},{"$f":"'Population 2016'!AG173*'Prevalence Rates'!AG173","v":15.369579002761368},{"$f":"'Population 2016'!AH173*'Prevalence Rates'!AH173","v":19.561282367150831},{"$f":"'Population 2016'!AI173*'Prevalence Rates'!AI173","v":23.259844159259181},{"$f":"'Population 2016'!AJ173*'Prevalence Rates'!AJ173","v":3.1232299577803846},{"$f":"'Population 2016'!AK173*'Prevalence Rates'!AK173","v":6.0820793914670652},{"$f":"'Population 2016'!AL173*'Prevalence Rates'!AL173","v":4.8492254607642815},{"$f":"'Population 2016'!AM173*'Prevalence Rates'!AM173","v":7.3971235842167005},{"$f":"'Population 2016'!AN173*'Prevalence Rates'!AN173","v":1.7259955029838969},{"$f":"'Population 2016'!AO173*'Prevalence Rates'!AO173","v":1.7259955029838969},{"$f":"'Population 2016'!AP173*'Prevalence Rates'!AP173","v":10.931304852231346},{"$f":"'Population 2016'!AQ173*'Prevalence Rates'!AQ173","v":10.931304852231346},{"$f":"'Population 2016'!AR173*'Prevalence Rates'!AR173","v":213.11934948748782},{"$f":"'Population 2016'!AS173*'Prevalence Rates'!AS173","v":7.6436943703572577},{"$f":"'Population 2016'!AT173*'Prevalence Rates'!AT173","v":1.6438052409370445},{"$f":"'Population 2016'!AU173*'Prevalence Rates'!AU173","v":1.6438052409370445},{"$f":"'Population 2016'!AV173*'Prevalence Rates'!AV173","v":4.5204644125768727},{"$f":"'Population 2016'!AW173*'Prevalence Rates'!AW173","v":12.16415878293413},{"$f":"'Population 2016'!AX173*'Prevalence Rates'!AX173","v":2.3835175993587145},{"$f":"'Population 2016'!AY173*'Prevalence Rates'!AY173","v":41.012940761379262},{"$f":"'Population 2016'!AZ173*'Prevalence Rates'!AZ173","v":24.821459138149372},{"$f":"'Population 2016'!BA173*'Prevalence Rates'!BA173","v":1.9725662891244535},{"$f":"'Population 2016'!BB173*'Prevalence Rates'!BB173","v":6.6574112257950304},{"$f":"'Population 2016'!BC173*'Prevalence Rates'!BC173","v":4.9314157228111339},171]
["SIMD Q4","Female 0-4",{"$f":"'Population 2016'!C174*'Prevalence Rates'!C174","v":0},{"$f":"'Population 2016'!D174*'Prevalence Rates'!D174","v":0},{"$f":"'Population 2016'!E174*'Prevalence Rates'!E174","v":0},{"$f":"'Population 2016'!F174*'Prevalence Rates'!F174","v":0},{"$f":"'Population 2016'!G174*'Prevalence Rates'!G174","v":0},{"$f":"'Population 2016'!H174*'Prevalence Rates'!H174","v":0},{"$f":"'Population 2016'!I174*'Prevalence Rates'!I174","v":0},{"$f":"'Population 2016'!J174*'Prevalence Rates'!J174","v":0},{"$f":"'Population 2016'!K174*'Prevalence Rates'!K174","v":0},{"$f":"'Population 2016'!L174*'Prevalence Rates'!L174","v":0},{"$f":"'Population 2016'!M174*'Prevalence Rates'!M174","v":0},{"$f":"'Population 2016'!N174*'Prevalence Rates'!N174","v":0},{"$f":"'Population 2016'!O174*'Prevalence Rates'!O174","v":0},{"$f":"'Population 2016'!P174*'Prevalence Rates'!P174","v":0},{"$f":"'Population 2016'!Q174*'Prevalence Rates'!Q174","v":0},{"$f":"'Population 2016'!R174*'Prevalence Rates'!R174","v":0},{"$f":"'Population 2016'!S174*'Prevalence Rates'!S174","v":0},{"$f":"'Population 2016'!T174*'Prevalence Rates'!T174","v":0},{"$f":"'Population 2016'!U174*'Prevalence Rates'!U174","v":0},{"$f":"'Population 2016'!V174*'Prevalence Rates'!V174","v":0},{"$f":"'Population 2016'!W174*'Prevalence Rates'!W174","v":0},{"$f":"'Population 2016'!X174*'Prevalence Rates'!X174","v":0},{"$f":"'Population 2016'!Y174*'Prevalence Rates'!Y174","v":0},{"$f":"'Population 2016'!Z174*'Prevalence Rates'!Z174","v":0},{"$f":"'Population 2016'!AA174*'Prevalence Rates'!AA174","v":0},{"$f":"'Population 2016'!AB174*'Prevalence Rates'!AB174","v":0},{"$f":"'Population 2016'!AC174*'Prevalence Rates'!AC174","v":0},{"$f":"'Population 2016'!AD174*'Prevalence Rates'!AD174","v":0},{"$f":"'Population 2016'!AE174*'Prevalence Rates'!AE174","v":0},{"$f":"'Population 2016'!AF174*'Prevalence Rates'!AF174","v":0},{"$f":"'Population 2016'!AG174*'Prevalence Rates'!AG174","v":0},{"$f":"'Population 2016'!AH174*'Prevalence Rates'!AH174","v":0},{"$f":"'Population 2016'!AI174*'Prevalence Rates'!AI174","v":0},{"$f":"'Population 2016'!AJ174*'Prevalence Rates'!AJ174","v":0},{"$f":"'Population 2016'!AK174*'Prevalence Rates'!AK174","v":0},{"$f":"'Population 2016'!AL174*'Prevalence Rates'!AL174","v":0},{"$f":"'Population 2016'!AM174*'Prevalence Rates'!AM174","v":0},{"$f":"'Population 2016'!AN174*'Prevalence Rates'!AN174","v":0},{"$f":"'Population 2016'!AO174*'Prevalence Rates'!AO174","v":0},{"$f":"'Population 2016'!AP174*'Prevalence Rates'!AP174","v":0},{"$f":"'Population 2016'!AQ174*'Prevalence Rates'!AQ174","v":0},{"$f":"'Population 2016'!AR174*'Prevalence Rates'!AR174","v":0},{"$f":"'Population 2016'!AS174*'Prevalence Rates'!AS174","v":0},{"$f":"'Population 2016'!AT174*'Prevalence Rates'!AT174","v":0},{"$f":"'Population 2016'!AU174*'Prevalence Rates'!AU174","v":0},{"$f":"'Population 2016'!AV174*'Prevalence Rates'!AV174","v":0},{"$f":"'Population 2016'!AW174*'Prevalence Rates'!AW174","v":0},{"$f":"'Population 2016'!AX174*'Prevalence Rates'!AX174","v":0},{"$f":"'Population 2016'!AY174*'Prevalence Rates'!AY174","v":0},{"$f":"'Population 2016'!AZ174*'Prevalence Rates'!AZ174","v":0},{"$f":"'Population 2016'!BA174*'Prevalence Rates'!BA174","v":0},{"$f":"'Population 2016'!BB174*'Prevalence Rates'!BB174","v":0},{"$f":"'Population 2016'!BC174*'Prevalence Rates'!BC174","v":0},172]
[null,"Female 5-9",{"$f":"'Population 2016'!C175*'Prevalence Rates'!C175","v":0},{"$f":"'Population 2016'!D175*'Prevalence Rates'!D175","v":0},{"$f":"'Population 2016'!E175*'Prevalence Rates'!E175","v":0},{"$f":"'Population 2016'!F175*'Prevalence Rates'!F175","v":0},{"$f":"'Population 2016'!G175*'Prevalence Rates'!G175","v":0},{"$f":"'Population 2016'!H175*'Prevalence Rates'!H175","v":0},{"$f":"'Population 2016'!I175*'Prevalence Rates'!I175","v":0},{"$f":"'Population 2016'!J175*'Prevalence Rates'!J175","v":0},{"$f":"'Population 2016'!K175*'Prevalence Rates'!K175","v":0},{"$f":"'Population 2016'!L175*'Prevalence Rates'!L175","v":0},{"$f":"'Population 2016'!M175*'Prevalence Rates'!M175","v":0},{"$f":"'Population 2016'!N175*'Prevalence Rates'!N175","v":0},{"$f":"'Population 2016'!O175*'Prevalence Rates'!O175","v":0},{"$f":"'Population 2016'!P175*'Prevalence Rates'!P175","v":0},{"$f":"'Population 2016'!Q175*'Prevalence Rates'!Q175","v":0},{"$f":"'Population 2016'!R175*'Prevalence Rates'!R175","v":0},{"$f":"'Population 2016'!S175*'Prevalence Rates'!S175","v":0},{"$f":"'Population 2016'!T175*'Prevalence Rates'!T175","v":0},{"$f":"'Population 2016'!U175*'Prevalence Rates'!U175","v":0},{"$f":"'Population 2016'!V175*'Prevalence Rates'!V175","v":0},{"$f":"'Population 2016'!W175*'Prevalence Rates'!W175","v":0},{"$f":"'Population 2016'!X175*'Prevalence Rates'!X175","v":0},{"$f":"'Population 2016'!Y175*'Prevalence Rates'!Y175","v":0},{"$f":"'Population 2016'!Z175*'Prevalence Rates'!Z175","v":0},{"$f":"'Population 2016'!AA175*'Prevalence Rates'!AA175","v":0},{"$f":"'Population 2016'!AB175*'Prevalence Rates'!AB175","v":0},{"$f":"'Population 2016'!AC175*'Prevalence Rates'!AC175","v":0},{"$f":"'Population 2016'!AD175*'Prevalence Rates'!AD175","v":0},{"$f":"'Population 2016'!AE175*'Prevalence Rates'!AE175","v":0},{"$f":"'Population 2016'!AF175*'Prevalence Rates'!AF175","v":0},{"$f":"'Population 2016'!AG175*'Prevalence Rates'!AG175","v":0},{"$f":"'Population 2016'!AH175*'Prevalence Rates'!AH175","v":0},{"$f":"'Population 2016'!AI175*'Prevalence Rates'!AI175","v":0},{"$f":"'Population 2016'!AJ175*'Prevalence Rates'!AJ175","v":0},{"$f":"'Population 2016'!AK175*'Prevalence Rates'!AK175","v":0},{"$f":"'Population 2016'!AL175*'Prevalence Rates'!AL175","v":0},{"$f":"'Population 2016'!AM175*'Prevalence Rates'!AM175","v":0},{"$f":"'Population 2016'!AN175*'Prevalence Rates'!AN175","v":0},{"$f":"'Population 2016'!AO175*'Prevalence Rates'!AO175","v":0},{"$f":"'Population 2016'!AP175*'Prevalence Rates'!AP175","v":0},{"$f":"'Population 2016'!AQ175*'Prevalence Rates'!AQ175","v":0},{"$f":"'Population 2016'!AR175*'Prevalence Rates'!AR175","v":0},{"$f":"'Population 2016'!AS175*'Prevalence Rates'!AS175","v":0},{"$f":"'Population 2016'!AT175*'Prevalence Rates'!AT175","v":0},{"$f":"'Population 2016'!AU175*'Prevalence Rates'!AU175","v":0},{"$f":"'Population 2016'!AV175*'Prevalence Rates'!AV175","v":0},{"$f":"'Population 2016'!AW175*'Prevalence Rates'!AW175","v":0},{"$f":"'Population 2016'!AX175*'Prevalence Rates'!AX175","v":0},{"$f":"'Population 2016'!AY175*'Prevalence Rates'!AY175","v":0},{"$f":"'Population 2016'!AZ175*'Prevalence Rates'!AZ175","v":0},{"$f":"'Population 2016'!BA175*'Prevalence Rates'!BA175","v":0},{"$f":"'Population 2016'!BB175*'Prevalence Rates'!BB175","v":0},{"$f":"'Population 2016'!BC175*'Prevalence Rates'!BC175","v":0},173]
[null,"Female 10-15",{"$f":"'Population 2016'!C176*'Prevalence Rates'!C176","v":0},{"$f":"'Population 2016'!D176*'Prevalence Rates'!D176","v":0},{"$f":"'Population 2016'!E176*'Prevalence Rates'!E176","v":0},{"$f":"'Population 2016'!F176*'Prevalence Rates'!F176","v":0},{"$f":"'Population 2016'!G176*'Prevalence Rates'!G176","v":0},{"$f":"'Population 2016'!H176*'Prevalence Rates'!H176","v":0},{"$f":"'Population 2016'!I176*'Prevalence Rates'!I176","v":0},{"$f":"'Population 2016'!J176*'Prevalence Rates'!J176","v":0},{"$f":"'Population 2016'!K176*'Prevalence Rates'!K176","v":0},{"$f":"'Population 2016'!L176*'Prevalence Rates'!L176","v":0},{"$f":"'Population 2016'!M176*'Prevalence Rates'!M176","v":0},{"$f":"'Population 2016'!N176*'Prevalence Rates'!N176","v":0},{"$f":"'Population 2016'!O176*'Prevalence Rates'!O176","v":0},{"$f":"'Population 2016'!P176*'Prevalence Rates'!P176","v":0},{"$f":"'Population 2016'!Q176*'Prevalence Rates'!Q176","v":0},{"$f":"'Population 2016'!R176*'Prevalence Rates'!R176","v":0},{"$f":"'Population 2016'!S176*'Prevalence Rates'!S176","v":0},{"$f":"'Population 2016'!T176*'Prevalence Rates'!T176","v":0},{"$f":"'Population 2016'!U176*'Prevalence Rates'!U176","v":0},{"$f":"'Population 2016'!V176*'Prevalence Rates'!V176","v":0},{"$f":"'Population 2016'!W176*'Prevalence Rates'!W176","v":0},{"$f":"'Population 2016'!X176*'Prevalence Rates'!X176","v":0},{"$f":"'Population 2016'!Y176*'Prevalence Rates'!Y176","v":0},{"$f":"'Population 2016'!Z176*'Prevalence Rates'!Z176","v":0},{"$f":"'Population 2016'!AA176*'Prevalence Rates'!AA176","v":0},{"$f":"'Population 2016'!AB176*'Prevalence Rates'!AB176","v":0},{"$f":"'Population 2016'!AC176*'Prevalence Rates'!AC176","v":0},{"$f":"'Population 2016'!AD176*'Prevalence Rates'!AD176","v":0},{"$f":"'Population 2016'!AE176*'Prevalence Rates'!AE176","v":0},{"$f":"'Population 2016'!AF176*'Prevalence Rates'!AF176","v":0},{"$f":"'Population 2016'!AG176*'Prevalence Rates'!AG176","v":0},{"$f":"'Population 2016'!AH176*'Prevalence Rates'!AH176","v":0},{"$f":"'Population 2016'!AI176*'Prevalence Rates'!AI176","v":0},{"$f":"'Population 2016'!AJ176*'Prevalence Rates'!AJ176","v":0},{"$f":"'Population 2016'!AK176*'Prevalence Rates'!AK176","v":0},{"$f":"'Population 2016'!AL176*'Prevalence Rates'!AL176","v":0},{"$f":"'Population 2016'!AM176*'Prevalence Rates'!AM176","v":0},{"$f":"'Population 2016'!AN176*'Prevalence Rates'!AN176","v":0},{"$f":"'Population 2016'!AO176*'Prevalence Rates'!AO176","v":0},{"$f":"'Population 2016'!AP176*'Prevalence Rates'!AP176","v":0},{"$f":"'Population 2016'!AQ176*'Prevalence Rates'!AQ176","v":0},{"$f":"'Population 2016'!AR176*'Prevalence Rates'!AR176","v":0},{"$f":"'Population 2016'!AS176*'Prevalence Rates'!AS176","v":0},{"$f":"'Population 2016'!AT176*'Prevalence Rates'!AT176","v":0},{"$f":"'Population 2016'!AU176*'Prevalence Rates'!AU176","v":0},{"$f":"'Population 2016'!AV176*'Prevalence Rates'!AV176","v":0},{"$f":"'Population 2016'!AW176*'Prevalence Rates'!AW176","v":0},{"$f":"'Population 2016'!AX176*'Prevalence Rates'!AX176","v":0},{"$f":"'Population 2016'!AY176*'Prevalence Rates'!AY176","v":0},{"$f":"'Population 2016'!AZ176*'Prevalence Rates'!AZ176","v":0},{"$f":"'Population 2016'!BA176*'Prevalence Rates'!BA176","v":0},{"$f":"'Population 2016'!BB176*'Prevalence Rates'!BB176","v":0},{"$f":"'Population 2016'!BC176*'Prevalence Rates'!BC176","v":0},174]
[null,"Female 16-19",{"$f":"'Population 2016'!C177*'Prevalence Rates'!C177","v":129.38548641667981},{"$f":"'Population 2016'!D177*'Prevalence Rates'!D177","v":355.86987761186612},{"$f":"'Population 2016'!E177*'Prevalence Rates'!E177","v":226.4843911951863},{"$f":"'Population 2016'!F177*'Prevalence Rates'!F177","v":68.040981304150478},{"$f":"'Population 2016'!G177*'Prevalence Rates'!G177","v":51.778110553070576},{"$f":"'Population 2016'!H177*'Prevalence Rates'!H177","v":130.70086566860539},{"$f":"'Population 2016'!I177*'Prevalence Rates'!I177","v":104.63244049408026},{"$f":"'Population 2016'!J177*'Prevalence Rates'!J177","v":105.23034015404643},{"$f":"'Population 2016'!K177*'Prevalence Rates'!K177","v":21.404807826788989},{"$f":"'Population 2016'!L177*'Prevalence Rates'!L177","v":57.51794728874583},{"$f":"'Population 2016'!M177*'Prevalence Rates'!M177","v":57.51794728874583},{"$f":"'Population 2016'!N177*'Prevalence Rates'!N177","v":108.9373180458367},{"$f":"'Population 2016'!O177*'Prevalence Rates'!O177","v":40.298437081720053},{"$f":"'Population 2016'!P177*'Prevalence Rates'!P177","v":43.287935381550916},{"$f":"'Population 2016'!Q177*'Prevalence Rates'!Q177","v":104.51286056208703},{"$f":"'Population 2016'!R177*'Prevalence Rates'!R177","v":41.494236401652401},{"$f":"'Population 2016'!S177*'Prevalence Rates'!S177","v":630.90372119630558},{"$f":"'Population 2016'!T177*'Prevalence Rates'!T177","v":158.80214968701551},{"$f":"'Population 2016'!U177*'Prevalence Rates'!U177","v":3.4678180278038027},{"$f":"'Population 2016'!V177*'Prevalence Rates'!V177","v":72.345858855906926},{"$f":"'Population 2016'!W177*'Prevalence Rates'!W177","v":147.80079594363795},{"$f":"'Population 2016'!X177*'Prevalence Rates'!X177","v":147.80079594363795},{"$f":"'Population 2016'!Y177*'Prevalence Rates'!Y177","v":177.57619900995334},{"$f":"'Population 2016'!Z177*'Prevalence Rates'!Z177","v":165.73778574262312},{"$f":"'Population 2016'!AA177*'Prevalence Rates'!AA177","v":700.14050182038841},{"$f":"'Population 2016'!AB177*'Prevalence Rates'!AB177","v":448.54432490662288},{"$f":"'Population 2016'!AC177*'Prevalence Rates'!AC177","v":392.46133680179588},{"$f":"'Population 2016'!AD177*'Prevalence Rates'!AD177","v":232.70254765883448},{"$f":"'Population 2016'!AE177*'Prevalence Rates'!AE177","v":180.92443710576393},{"$f":"'Population 2016'!AF177*'Prevalence Rates'!AF177","v":38.863477897801239},{"$f":"'Population 2016'!AG177*'Prevalence Rates'!AG177","v":180.92443710576393},{"$f":"'Population 2016'!AH177*'Prevalence Rates'!AH177","v":307.67916501859258},{"$f":"'Population 2016'!AI177*'Prevalence Rates'!AI177","v":378.47048475858742},{"$f":"'Population 2016'!AJ177*'Prevalence Rates'!AJ177","v":34.319440482058326},{"$f":"'Population 2016'!AK177*'Prevalence Rates'!AK177","v":92.674447294756803},{"$f":"'Population 2016'!AL177*'Prevalence Rates'!AL177","v":55.126348648881141},{"$f":"'Population 2016'!AM177*'Prevalence Rates'!AM177","v":135.36448301634155},{"$f":"'Population 2016'!AN177*'Prevalence Rates'!AN177","v":23.557246602667213},{"$f":"'Population 2016'!AO177*'Prevalence Rates'!AO177","v":23.557246602667213},{"$f":"'Population 2016'!AP177*'Prevalence Rates'!AP177","v":173.63006125417661},{"$f":"'Population 2016'!AQ177*'Prevalence Rates'!AQ177","v":77.368215999622777},{"$f":"'Population 2016'!AR177*'Prevalence Rates'!AR177","v":2799.127048097635},{"$f":"'Population 2016'!AS177*'Prevalence Rates'!AS177","v":104.63244049408026},{"$f":"'Population 2016'!AT177*'Prevalence Rates'!AT177","v":43.407515313544152},{"$f":"'Population 2016'!AU177*'Prevalence Rates'!AU177","v":43.407515313544152},{"$f":"'Population 2016'!AV177*'Prevalence Rates'!AV177","v":35.276079938004202},{"$f":"'Population 2016'!AW177*'Prevalence Rates'!AW177","v":172.31468200225103},{"$f":"'Population 2016'!AX177*'Prevalence Rates'!AX177","v":83.825532327257434},{"$f":"'Population 2016'!AY177*'Prevalence Rates'!AY177","v":498.40915654780173},{"$f":"'Population 2016'!AZ177*'Prevalence Rates'!AZ177","v":350.60836060416381},{"$f":"'Population 2016'!BA177*'Prevalence Rates'!BA177","v":25.709685378545434},{"$f":"'Population 2016'!BB177*'Prevalence Rates'!BB177","v":80.836034027426578},{"$f":"'Population 2016'!BC177*'Prevalence Rates'!BC177","v":3.4678180278038027},175]
[null,"Female 20-24",{"$f":"'Population 2016'!C178*'Prevalence Rates'!C178","v":307.55958508659933},{"$f":"'Population 2016'!D178*'Prevalence Rates'!D178","v":568.7221565598237},{"$f":"'Population 2016'!E178*'Prevalence Rates'!E178","v":261.16257147322432},{"$f":"'Population 2016'!F178*'Prevalence Rates'!F178","v":75.813676883710727},{"$f":"'Population 2016'!G178*'Prevalence Rates'!G178","v":55.126348648881141},{"$f":"'Population 2016'!H178*'Prevalence Rates'!H178","v":157.7259302990764},{"$f":"'Population 2016'!I178*'Prevalence Rates'!I178","v":100.44714287431705},{"$f":"'Population 2016'!J178*'Prevalence Rates'!J178","v":149.95323471951616},{"$f":"'Population 2016'!K178*'Prevalence Rates'!K178","v":22.839767010707803},{"$f":"'Population 2016'!L178*'Prevalence Rates'!L178","v":74.617877563778379},{"$f":"'Population 2016'!M178*'Prevalence Rates'!M178","v":74.617877563778379},{"$f":"'Population 2016'!N178*'Prevalence Rates'!N178","v":237.96406466653681},{"$f":"'Population 2016'!O178*'Prevalence Rates'!O178","v":53.213069736989389},{"$f":"'Population 2016'!P178*'Prevalence Rates'!P178","v":65.768962596279025},{"$f":"'Population 2016'!Q178*'Prevalence Rates'!Q178","v":132.73372451249037},{"$f":"'Population 2016'!R178*'Prevalence Rates'!R178","v":42.690035721584742},{"$f":"'Population 2016'!S178*'Prevalence Rates'!S178","v":975.89182499678736},{"$f":"'Population 2016'!T178*'Prevalence Rates'!T178","v":413.26824496861872},{"$f":"'Population 2016'!U178*'Prevalence Rates'!U178","v":5.9789965996617287},{"$f":"'Population 2016'!V178*'Prevalence Rates'!V178","v":96.261845254553833},{"$f":"'Population 2016'!W178*'Prevalence Rates'!W178","v":191.08873132518886},{"$f":"'Population 2016'!X178*'Prevalence Rates'!X178","v":191.08873132518886},{"$f":"'Population 2016'!Y178*'Prevalence Rates'!Y178","v":246.21507997406999},{"$f":"'Population 2016'!Z178*'Prevalence Rates'!Z178","v":590.36612425059911},{"$f":"'Population 2016'!AA178*'Prevalence Rates'!AA178","v":1223.0635444268032},{"$f":"'Population 2016'!AB178*'Prevalence Rates'!AB178","v":664.86442188238425},{"$f":"'Population 2016'!AC178*'Prevalence Rates'!AC178","v":876.64048144240269},{"$f":"'Population 2016'!AD178*'Prevalence Rates'!AD178","v":254.58567521359643},{"$f":"'Population 2016'!AE178*'Prevalence Rates'!AE178","v":199.45932656471527},{"$f":"'Population 2016'!AF178*'Prevalence Rates'!AF178","v":47.473233001314128},{"$f":"'Population 2016'!AG178*'Prevalence Rates'!AG178","v":199.45932656471527},{"$f":"'Population 2016'!AH178*'Prevalence Rates'!AH178","v":346.42306298440059},{"$f":"'Population 2016'!AI178*'Prevalence Rates'!AI178","v":684.35595079728148},{"$f":"'Population 2016'!AJ178*'Prevalence Rates'!AJ178","v":39.700537421753879},{"$f":"'Population 2016'!AK178*'Prevalence Rates'!AK178","v":96.142265322560604},{"$f":"'Population 2016'!AL178*'Prevalence Rates'!AL178","v":63.975263616380502},{"$f":"'Population 2016'!AM178*'Prevalence Rates'!AM178","v":152.10567349539437},{"$f":"'Population 2016'!AN178*'Prevalence Rates'!AN178","v":27.862124154423658},{"$f":"'Population 2016'!AO178*'Prevalence Rates'!AO178","v":27.862124154423658},{"$f":"'Population 2016'!AP178*'Prevalence Rates'!AP178","v":177.33703914596688},{"$f":"'Population 2016'!AQ178*'Prevalence Rates'!AQ178","v":97.338064642492952},{"$f":"'Population 2016'!AR178*'Prevalence Rates'!AR178","v":4165.32777112034},{"$f":"'Population 2016'!AS178*'Prevalence Rates'!AS178","v":100.44714287431705},{"$f":"'Population 2016'!AT178*'Prevalence Rates'!AT178","v":43.407515313544152},{"$f":"'Population 2016'!AU178*'Prevalence Rates'!AU178","v":43.407515313544152},{"$f":"'Population 2016'!AV178*'Prevalence Rates'!AV178","v":40.537596945706525},{"$f":"'Population 2016'!AW178*'Prevalence Rates'!AW178","v":194.31738948900619},{"$f":"'Population 2016'!AX178*'Prevalence Rates'!AX178","v":127.11346770880836},{"$f":"'Population 2016'!AY178*'Prevalence Rates'!AY178","v":682.2035120214033},{"$f":"'Population 2016'!AZ178*'Prevalence Rates'!AZ178","v":491.11478069621444},{"$f":"'Population 2016'!BA178*'Prevalence Rates'!BA178","v":33.004061230132741},{"$f":"'Population 2016'!BB178*'Prevalence Rates'!BB178","v":98.65344389441853},{"$f":"'Population 2016'!BC178*'Prevalence Rates'!BC178","v":5.9789965996617287},176]
[null,"Female 25-29",{"$f":"'Population 2016'!C179*'Prevalence Rates'!C179","v":250.63953745781967},{"$f":"'Population 2016'!D179*'Prevalence Rates'!D179","v":533.08733682583977},{"$f":"'Population 2016'!E179*'Prevalence Rates'!E179","v":282.44779936802007},{"$f":"'Population 2016'!F179*'Prevalence Rates'!F179","v":75.454937087731025},{"$f":"'Population 2016'!G179*'Prevalence Rates'!G179","v":48.54945238925324},{"$f":"'Population 2016'!H179*'Prevalence Rates'!H179","v":143.85465818786119},{"$f":"'Population 2016'!I179*'Prevalence Rates'!I179","v":94.707306138641783},{"$f":"'Population 2016'!J179*'Prevalence Rates'!J179","v":118.02539287732253},{"$f":"'Population 2016'!K179*'Prevalence Rates'!K179","v":20.926488098816051},{"$f":"'Population 2016'!L179*'Prevalence Rates'!L179","v":72.585018719893384},{"$f":"'Population 2016'!M179*'Prevalence Rates'!M179","v":72.585018719893384},{"$f":"'Population 2016'!N179*'Prevalence Rates'!N179","v":119.34077212924811},{"$f":"'Population 2016'!O179*'Prevalence Rates'!O179","v":49.266931981212643},{"$f":"'Population 2016'!P179*'Prevalence Rates'!P179","v":52.136850349050277},{"$f":"'Population 2016'!Q179*'Prevalence Rates'!Q179","v":92.913607158743261},{"$f":"'Population 2016'!R179*'Prevalence Rates'!R179","v":45.679534021415606},{"$f":"'Population 2016'!S179*'Prevalence Rates'!S179","v":1117.1157246807975},{"$f":"'Population 2016'!T179*'Prevalence Rates'!T179","v":574.70115315948533},{"$f":"'Population 2016'!U179*'Prevalence Rates'!U179","v":4.9027772117226176},{"$f":"'Population 2016'!V179*'Prevalence Rates'!V179","v":92.794027226750032},{"$f":"'Population 2016'!W179*'Prevalence Rates'!W179","v":188.93629254931062},{"$f":"'Population 2016'!X179*'Prevalence Rates'!X179","v":188.93629254931062},{"$f":"'Population 2016'!Y179*'Prevalence Rates'!Y179","v":210.81942010407255},{"$f":"'Population 2016'!Z179*'Prevalence Rates'!Z179","v":489.79940144428883},{"$f":"'Population 2016'!AA179*'Prevalence Rates'!AA179","v":1089.9710801183332},{"$f":"'Population 2016'!AB179*'Prevalence Rates'!AB179","v":639.87221609579819},{"$f":"'Population 2016'!AC179*'Prevalence Rates'!AC179","v":749.52701373359434},{"$f":"'Population 2016'!AD179*'Prevalence Rates'!AD179","v":272.28350514859511},{"$f":"'Population 2016'!AE179*'Prevalence Rates'!AE179","v":223.73405275934189},{"$f":"'Population 2016'!AF179*'Prevalence Rates'!AF179","v":38.145998305841829},{"$f":"'Population 2016'!AG179*'Prevalence Rates'!AG179","v":223.73405275934189},{"$f":"'Population 2016'!AH179*'Prevalence Rates'!AH179","v":340.44406638473885},{"$f":"'Population 2016'!AI179*'Prevalence Rates'!AI179","v":833.47212599284501},{"$f":"'Population 2016'!AJ179*'Prevalence Rates'!AJ179","v":46.038273817395314},{"$f":"'Population 2016'!AK179*'Prevalence Rates'!AK179","v":106.78487926995848},{"$f":"'Population 2016'!AL179*'Prevalence Rates'!AL179","v":59.550806132630818},{"$f":"'Population 2016'!AM179*'Prevalence Rates'!AM179","v":147.56163607965146},{"$f":"'Population 2016'!AN179*'Prevalence Rates'!AN179","v":30.732042522261288},{"$f":"'Population 2016'!AO179*'Prevalence Rates'!AO179","v":30.732042522261288},{"$f":"'Population 2016'!AP179*'Prevalence Rates'!AP179","v":165.85736567461635},{"$f":"'Population 2016'!AQ179*'Prevalence Rates'!AQ179","v":89.684948994925932},{"$f":"'Population 2016'!AR179*'Prevalence Rates'!AR179","v":3997.9158663298117},{"$f":"'Population 2016'!AS179*'Prevalence Rates'!AS179","v":94.707306138641783},{"$f":"'Population 2016'!AT179*'Prevalence Rates'!AT179","v":55.126348648881141},{"$f":"'Population 2016'!AU179*'Prevalence Rates'!AU179","v":55.126348648881141},{"$f":"'Population 2016'!AV179*'Prevalence Rates'!AV179","v":35.036920074017729},{"$f":"'Population 2016'!AW179*'Prevalence Rates'!AW179","v":192.88243030508738},{"$f":"'Population 2016'!AX179*'Prevalence Rates'!AX179","v":97.09890477850648},{"$f":"'Population 2016'!AY179*'Prevalence Rates'!AY179","v":549.58936744090613},{"$f":"'Population 2016'!AZ179*'Prevalence Rates'!AZ179","v":360.65307489159551},{"$f":"'Population 2016'!BA179*'Prevalence Rates'!BA179","v":34.080280618071853},{"$f":"'Population 2016'!BB179*'Prevalence Rates'!BB179","v":119.81909185722105},{"$f":"'Population 2016'!BC179*'Prevalence Rates'!BC179","v":4.9027772117226176},177]
[null,"Female 30-34",{"$f":"'Population 2016'!C180*'Prevalence Rates'!C180","v":198.38310717677618},{"$f":"'Population 2016'!D180*'Prevalence Rates'!D180","v":542.05583172533238},{"$f":"'Population 2016'!E180*'Prevalence Rates'!E180","v":343.67272454855618},{"$f":"'Population 2016'!F180*'Prevalence Rates'!F180","v":84.543011919216852},{"$f":"'Population 2016'!G180*'Prevalence Rates'!G180","v":50.941051029117929},{"$f":"'Population 2016'!H180*'Prevalence Rates'!H180","v":156.29097111515759},{"$f":"'Population 2016'!I180*'Prevalence Rates'!I180","v":110.01353743377581},{"$f":"'Population 2016'!J180*'Prevalence Rates'!J180","v":106.90445920195171},{"$f":"'Population 2016'!K180*'Prevalence Rates'!K180","v":28.101284018410126},{"$f":"'Population 2016'!L180*'Prevalence Rates'!L180","v":74.617877563778379},{"$f":"'Population 2016'!M180*'Prevalence Rates'!M180","v":74.617877563778379},{"$f":"'Population 2016'!N180*'Prevalence Rates'!N180","v":93.391926886716206},{"$f":"'Population 2016'!O180*'Prevalence Rates'!O180","v":55.126348648881141},{"$f":"'Population 2016'!P180*'Prevalence Rates'!P180","v":55.843828240840551},{"$f":"'Population 2016'!Q180*'Prevalence Rates'!Q180","v":103.19748131016144},{"$f":"'Population 2016'!R180*'Prevalence Rates'!R180","v":40.776756809692991},{"$f":"'Population 2016'!S180*'Prevalence Rates'!S180","v":1097.9829355618799},{"$f":"'Population 2016'!T180*'Prevalence Rates'!T180","v":484.77704430057298},{"$f":"'Population 2016'!U180*'Prevalence Rates'!U180","v":7.2943758515873096},{"$f":"'Population 2016'!V180*'Prevalence Rates'!V180","v":105.4695000180329},{"$f":"'Population 2016'!W180*'Prevalence Rates'!W180","v":199.22016670072881},{"$f":"'Population 2016'!X180*'Prevalence Rates'!X180","v":199.22016670072881},{"$f":"'Population 2016'!Y180*'Prevalence Rates'!Y180","v":212.37395921998461},{"$f":"'Population 2016'!Z180*'Prevalence Rates'!Z180","v":390.54805788990416},{"$f":"'Population 2016'!AA180*'Prevalence Rates'!AA180","v":1050.8684423565455},{"$f":"'Population 2016'!AB180*'Prevalence Rates'!AB180","v":663.30988276647224},{"$f":"'Population 2016'!AC180*'Prevalence Rates'!AC180","v":657.92878582677668},{"$f":"'Population 2016'!AD180*'Prevalence Rates'!AD180","v":318.91967862595664},{"$f":"'Population 2016'!AE180*'Prevalence Rates'!AE180","v":267.97862759683869},{"$f":"'Population 2016'!AF180*'Prevalence Rates'!AF180","v":34.080280618071853},{"$f":"'Population 2016'!AG180*'Prevalence Rates'!AG180","v":267.97862759683869},{"$f":"'Population 2016'!AH180*'Prevalence Rates'!AH180","v":392.9396565297688},{"$f":"'Population 2016'!AI180*'Prevalence Rates'!AI180","v":788.74923142737532},{"$f":"'Population 2016'!AJ180*'Prevalence Rates'!AJ180","v":57.51794728874583},{"$f":"'Population 2016'!AK180*'Prevalence Rates'!AK180","v":121.25405104113986},{"$f":"'Population 2016'!AL180*'Prevalence Rates'!AL180","v":56.082988104827017},{"$f":"'Population 2016'!AM180*'Prevalence Rates'!AM180","v":163.22660717076519},{"$f":"'Population 2016'!AN180*'Prevalence Rates'!AN180","v":34.678180278038027},{"$f":"'Population 2016'!AO180*'Prevalence Rates'!AO180","v":34.678180278038027},{"$f":"'Population 2016'!AP180*'Prevalence Rates'!AP180","v":199.81806636069498},{"$f":"'Population 2016'!AQ180*'Prevalence Rates'!AQ180","v":102.71916158218851},{"$f":"'Population 2016'!AR180*'Prevalence Rates'!AR180","v":4046.3457387870717},{"$f":"'Population 2016'!AS180*'Prevalence Rates'!AS180","v":110.01353743377581},{"$f":"'Population 2016'!AT180*'Prevalence Rates'!AT180","v":52.256430281043514},{"$f":"'Population 2016'!AU180*'Prevalence Rates'!AU180","v":52.256430281043514},{"$f":"'Population 2016'!AV180*'Prevalence Rates'!AV180","v":45.081634361449439},{"$f":"'Population 2016'!AW180*'Prevalence Rates'!AW180","v":229.71304935900363},{"$f":"'Population 2016'!AX180*'Prevalence Rates'!AX180","v":78.803175183541583},{"$f":"'Population 2016'!AY180*'Prevalence Rates'!AY180","v":576.97317186735688},{"$f":"'Population 2016'!AZ180*'Prevalence Rates'!AZ180","v":377.75300516662804},{"$f":"'Population 2016'!BA180*'Prevalence Rates'!BA180","v":33.960700686078617},{"$f":"'Population 2016'!BB180*'Prevalence Rates'!BB180","v":143.25675852789502},{"$f":"'Population 2016'!BC180*'Prevalence Rates'!BC180","v":7.2943758515873096},178]
[null,"Female 35-39",{"$f":"'Population 2016'!C181*'Prevalence Rates'!C181","v":154.13853233927938},{"$f":"'Population 2016'!D181*'Prevalence Rates'!D181","v":511.68252899905076},{"$f":"'Population 2016'!E181*'Prevalence Rates'!E181","v":357.54399665977138},{"$f":"'Population 2016'!F181*'Prevalence Rates'!F181","v":91.239488110837982},{"$f":"'Population 2016'!G181*'Prevalence Rates'!G181","v":62.301144568475216},{"$f":"'Population 2016'!H181*'Prevalence Rates'!H181","v":171.59720241029163},{"$f":"'Population 2016'!I181*'Prevalence Rates'!I181","v":113.12261566559991},{"$f":"'Population 2016'!J181*'Prevalence Rates'!J181","v":117.18833335336988},{"$f":"'Population 2016'!K181*'Prevalence Rates'!K181","v":29.177503406349238},{"$f":"'Population 2016'!L181*'Prevalence Rates'!L181","v":72.345858855906926},{"$f":"'Population 2016'!M181*'Prevalence Rates'!M181","v":72.345858855906926},{"$f":"'Population 2016'!N181*'Prevalence Rates'!N181","v":78.922755115534827},{"$f":"'Population 2016'!O181*'Prevalence Rates'!O181","v":64.931903072326378},{"$f":"'Population 2016'!P181*'Prevalence Rates'!P181","v":60.029125860603756},{"$f":"'Population 2016'!Q181*'Prevalence Rates'!Q181","v":114.55757484951873},{"$f":"'Population 2016'!R181*'Prevalence Rates'!R181","v":48.310292525266767},{"$f":"'Population 2016'!S181*'Prevalence Rates'!S181","v":1006.1455477910757},{"$f":"'Population 2016'!T181*'Prevalence Rates'!T181","v":362.08803407551432},{"$f":"'Population 2016'!U181*'Prevalence Rates'!U181","v":5.5006768716887908},{"$f":"'Population 2016'!V181*'Prevalence Rates'!V181","v":112.52471600563373},{"$f":"'Population 2016'!W181*'Prevalence Rates'!W181","v":213.80891840390342},{"$f":"'Population 2016'!X181*'Prevalence Rates'!X181","v":213.80891840390342},{"$f":"'Population 2016'!Y181*'Prevalence Rates'!Y181","v":229.71304935900363},{"$f":"'Population 2016'!Z181*'Prevalence Rates'!Z181","v":287.11141671575621},{"$f":"'Population 2016'!AA181*'Prevalence Rates'!AA181","v":1034.1272518774927},{"$f":"'Population 2016'!AB181*'Prevalence Rates'!AB181","v":629.82750180836649},{"$f":"'Population 2016'!AC181*'Prevalence Rates'!AC181","v":577.21233173134328},{"$f":"'Population 2016'!AD181*'Prevalence Rates'!AD181","v":319.27841842193635},{"$f":"'Population 2016'!AE181*'Prevalence Rates'!AE181","v":256.9772738534611},{"$f":"'Population 2016'!AF181*'Prevalence Rates'!AF181","v":48.190712593273538},{"$f":"'Population 2016'!AG181*'Prevalence Rates'!AG181","v":256.9772738534611},{"$f":"'Population 2016'!AH181*'Prevalence Rates'!AH181","v":456.91492014614931},{"$f":"'Population 2016'!AI181*'Prevalence Rates'!AI181","v":679.21401372157243},{"$f":"'Population 2016'!AJ181*'Prevalence Rates'!AJ181","v":58.833326540671415},{"$f":"'Population 2016'!AK181*'Prevalence Rates'!AK181","v":118.14497280931576},{"$f":"'Population 2016'!AL181*'Prevalence Rates'!AL181","v":61.224925180536104},{"$f":"'Population 2016'!AM181*'Prevalence Rates'!AM181","v":182.23981635768951},{"$f":"'Population 2016'!AN181*'Prevalence Rates'!AN181","v":37.667678577868891},{"$f":"'Population 2016'!AO181*'Prevalence Rates'!AO181","v":37.667678577868891},{"$f":"'Population 2016'!AP181*'Prevalence Rates'!AP181","v":188.93629254931062},{"$f":"'Population 2016'!AQ181*'Prevalence Rates'!AQ181","v":102.0016819902291},{"$f":"'Population 2016'!AR181*'Prevalence Rates'!AR181","v":3922.221769378094},{"$f":"'Population 2016'!AS181*'Prevalence Rates'!AS181","v":113.12261566559991},{"$f":"'Population 2016'!AT181*'Prevalence Rates'!AT181","v":56.920047628779656},{"$f":"'Population 2016'!AU181*'Prevalence Rates'!AU181","v":56.920047628779656},{"$f":"'Population 2016'!AV181*'Prevalence Rates'!AV181","v":45.44037415742914},{"$f":"'Population 2016'!AW181*'Prevalence Rates'!AW181","v":274.67510378845981},{"$f":"'Population 2016'!AX181*'Prevalence Rates'!AX181","v":88.010829947020653},{"$f":"'Population 2016'!AY181*'Prevalence Rates'!AY181","v":572.90745417958692},{"$f":"'Population 2016'!AZ181*'Prevalence Rates'!AZ181","v":359.09853577568344},{"$f":"'Population 2016'!BA181*'Prevalence Rates'!BA181","v":31.569102046213928},{"$f":"'Population 2016'!BB181*'Prevalence Rates'!BB181","v":143.73507825586796},{"$f":"'Population 2016'!BC181*'Prevalence Rates'!BC181","v":5.5006768716887908},179]
[null,"Female 40-44",{"$f":"'Population 2016'!C182*'Prevalence Rates'!C182","v":123.40648981701808},{"$f":"'Population 2016'!D182*'Prevalence Rates'!D182","v":511.5629490670575},{"$f":"'Population 2016'!E182*'Prevalence Rates'!E182","v":388.15645925003946},{"$f":"'Population 2016'!F182*'Prevalence Rates'!F182","v":98.533863962425286},{"$f":"'Population 2016'!G182*'Prevalence Rates'!G182","v":76.770316339656603},{"$f":"'Population 2016'!H182*'Prevalence Rates'!H182","v":211.05857996805904},{"$f":"'Population 2016'!I182*'Prevalence Rates'!I182","v":149.23575512755676},{"$f":"'Population 2016'!J182*'Prevalence Rates'!J182","v":142.89801873191533},{"$f":"'Population 2016'!K182*'Prevalence Rates'!K182","v":38.743897965808003},{"$f":"'Population 2016'!L182*'Prevalence Rates'!L182","v":89.565369062932703},{"$f":"'Population 2016'!M182*'Prevalence Rates'!M182","v":89.565369062932703},{"$f":"'Population 2016'!N182*'Prevalence Rates'!N182","v":77.368215999622777},{"$f":"'Population 2016'!O182*'Prevalence Rates'!O182","v":66.845181984218129},{"$f":"'Population 2016'!P182*'Prevalence Rates'!P182","v":71.38921939996105},{"$f":"'Population 2016'!Q182*'Prevalence Rates'!Q182","v":138.23440138417917},{"$f":"'Population 2016'!R182*'Prevalence Rates'!R182","v":55.365508512867606},{"$f":"'Population 2016'!S182*'Prevalence Rates'!S182","v":1051.3467620845183},{"$f":"'Population 2016'!T182*'Prevalence Rates'!T182","v":308.87496433852493},{"$f":"'Population 2016'!U182*'Prevalence Rates'!U182","v":6.2181564636481976},{"$f":"'Population 2016'!V182*'Prevalence Rates'!V182","v":138.35398131617239},{"$f":"'Population 2016'!W182*'Prevalence Rates'!W182","v":246.57381977004971},{"$f":"'Population 2016'!X182*'Prevalence Rates'!X182","v":246.57381977004971},{"$f":"'Population 2016'!Y182*'Prevalence Rates'!Y182","v":281.25200004808772},{"$f":"'Population 2016'!Z182*'Prevalence Rates'!Z182","v":241.91020242231355},{"$f":"'Population 2016'!AA182*'Prevalence Rates'!AA182","v":1082.1983845387729},{"$f":"'Population 2016'!AB182*'Prevalence Rates'!AB182","v":661.87492358255338},{"$f":"'Population 2016'!AC182*'Prevalence Rates'!AC182","v":585.70250690286298},{"$f":"'Population 2016'!AD182*'Prevalence Rates'!AD182","v":381.818722854398},{"$f":"'Population 2016'!AE182*'Prevalence Rates'!AE182","v":305.04840651474143},{"$f":"'Population 2016'!AF182*'Prevalence Rates'!AF182","v":55.724248308847315},{"$f":"'Population 2016'!AG182*'Prevalence Rates'!AG182","v":305.04840651474143},{"$f":"'Population 2016'!AH182*'Prevalence Rates'!AH182","v":496.49587763590995},{"$f":"'Population 2016'!AI182*'Prevalence Rates'!AI182","v":655.53718718691198},{"$f":"'Population 2016'!AJ182*'Prevalence Rates'!AJ182","v":56.441727900806718},{"$f":"'Population 2016'!AK182*'Prevalence Rates'!AK182","v":150.31197451549588},{"$f":"'Population 2016'!AL182*'Prevalence Rates'!AL182","v":79.042335047528056},{"$f":"'Population 2016'!AM182*'Prevalence Rates'!AM182","v":205.31874323238378},{"$f":"'Population 2016'!AN182*'Prevalence Rates'!AN182","v":40.418017013713289},{"$f":"'Population 2016'!AO182*'Prevalence Rates'!AO182","v":40.418017013713289},{"$f":"'Population 2016'!AP182*'Prevalence Rates'!AP182","v":239.04028405447593},{"$f":"'Population 2016'!AQ182*'Prevalence Rates'!AQ182","v":121.61279083711956},{"$f":"'Population 2016'!AR182*'Prevalence Rates'!AR182","v":4281.5594650177645},{"$f":"'Population 2016'!AS182*'Prevalence Rates'!AS182","v":149.23575512755676},{"$f":"'Population 2016'!AT182*'Prevalence Rates'!AT182","v":60.866185384556402},{"$f":"'Population 2016'!AU182*'Prevalence Rates'!AU182","v":60.866185384556402},{"$f":"'Population 2016'!AV182*'Prevalence Rates'!AV182","v":65.17106293631285},{"$f":"'Population 2016'!AW182*'Prevalence Rates'!AW182","v":291.17713440352622},{"$f":"'Population 2016'!AX182*'Prevalence Rates'!AX182","v":104.15412076610731},{"$f":"'Population 2016'!AY182*'Prevalence Rates'!AY182","v":661.51618378657372},{"$f":"'Population 2016'!AZ182*'Prevalence Rates'!AZ182","v":414.94236401652398},{"$f":"'Population 2016'!BA182*'Prevalence Rates'!BA182","v":39.700537421753879},{"$f":"'Population 2016'!BB182*'Prevalence Rates'!BB182","v":151.98609356340114},{"$f":"'Population 2016'!BC182*'Prevalence Rates'!BC182","v":6.2181564636481976},180]
[null,"Female 45-49",{"$f":"'Population 2016'!C183*'Prevalence Rates'!C183","v":126.75472791282866},{"$f":"'Population 2016'!D183*'Prevalence Rates'!D183","v":587.85494567874116},{"$f":"'Population 2016'!E183*'Prevalence Rates'!E183","v":461.10021776591253},{"$f":"'Population 2016'!F183*'Prevalence Rates'!F183","v":130.22254594063244},{"$f":"'Population 2016'!G183*'Prevalence Rates'!G183","v":101.76252212624263},{"$f":"'Population 2016'!H183*'Prevalence Rates'!H183","v":254.34651534960994},{"$f":"'Population 2016'!I183*'Prevalence Rates'!I183","v":198.14394731278969},{"$f":"'Population 2016'!J183*'Prevalence Rates'!J183","v":168.00980445049458},{"$f":"'Population 2016'!K183*'Prevalence Rates'!K183","v":47.951552729287066},{"$f":"'Population 2016'!L183*'Prevalence Rates'!L183","v":122.56943029306544},{"$f":"'Population 2016'!M183*'Prevalence Rates'!M183","v":122.56943029306544},{"$f":"'Population 2016'!N183*'Prevalence Rates'!N183","v":89.565369062932703},{"$f":"'Population 2016'!O183*'Prevalence Rates'!O183","v":80.238134367460404},{"$f":"'Population 2016'!P183*'Prevalence Rates'!P183","v":91.119908178844753},{"$f":"'Population 2016'!Q183*'Prevalence Rates'!Q183","v":166.33568540258929},{"$f":"'Population 2016'!R183*'Prevalence Rates'!R183","v":67.443081644184304},{"$f":"'Population 2016'!S183*'Prevalence Rates'!S183","v":1195.5601600683592},{"$f":"'Population 2016'!T183*'Prevalence Rates'!T183","v":291.7750340634924},{"$f":"'Population 2016'!U183*'Prevalence Rates'!U183","v":6.2181564636481976},{"$f":"'Population 2016'!V183*'Prevalence Rates'!V183","v":155.9322313191779},{"$f":"'Population 2016'!W183*'Prevalence Rates'!W183","v":305.88546603869406},{"$f":"'Population 2016'!X183*'Prevalence Rates'!X183","v":305.88546603869406},{"$f":"'Population 2016'!Y183*'Prevalence Rates'!Y183","v":323.94203576967249},{"$f":"'Population 2016'!Z183*'Prevalence Rates'!Z183","v":269.77232657673721},{"$f":"'Population 2016'!AA183*'Prevalence Rates'!AA183","v":1288.9520869550756},{"$f":"'Population 2016'!AB183*'Prevalence Rates'!AB183","v":759.57172802102605},{"$f":"'Population 2016'!AC183*'Prevalence Rates'!AC183","v":717.00127223143454},{"$f":"'Population 2016'!AD183*'Prevalence Rates'!AD183","v":456.91492014614931},{"$f":"'Population 2016'!AE183*'Prevalence Rates'!AE183","v":355.15239801990668},{"$f":"'Population 2016'!AF183*'Prevalence Rates'!AF183","v":74.019977903812205},{"$f":"'Population 2016'!AG183*'Prevalence Rates'!AG183","v":355.15239801990668},{"$f":"'Population 2016'!AH183*'Prevalence Rates'!AH183","v":571.95081472364097},{"$f":"'Population 2016'!AI183*'Prevalence Rates'!AI183","v":691.53074671687557},{"$f":"'Population 2016'!AJ183*'Prevalence Rates'!AJ183","v":66.008122460265483},{"$f":"'Population 2016'!AK183*'Prevalence Rates'!AK183","v":171.71678234228486},{"$f":"'Population 2016'!AL183*'Prevalence Rates'!AL183","v":101.40378233026293},{"$f":"'Population 2016'!AM183*'Prevalence Rates'!AM183","v":248.24793881795497},{"$f":"'Population 2016'!AN183*'Prevalence Rates'!AN183","v":47.234073137327655},{"$f":"'Population 2016'!AO183*'Prevalence Rates'!AO183","v":47.234073137327655},{"$f":"'Population 2016'!AP183*'Prevalence Rates'!AP183","v":304.57008678676846},{"$f":"'Population 2016'!AQ183*'Prevalence Rates'!AQ183","v":157.00845070711699},{"$f":"'Population 2016'!AR183*'Prevalence Rates'!AR183","v":5044.9577508625734},{"$f":"'Population 2016'!AS183*'Prevalence Rates'!AS183","v":198.14394731278969},{"$f":"'Population 2016'!AT183*'Prevalence Rates'!AT183","v":65.29064286830608},{"$f":"'Population 2016'!AU183*'Prevalence Rates'!AU183","v":65.29064286830608},{"$f":"'Population 2016'!AV183*'Prevalence Rates'!AV183","v":72.704598651886627},{"$f":"'Population 2016'!AW183*'Prevalence Rates'!AW183","v":323.70287590568603},{"$f":"'Population 2016'!AX183*'Prevalence Rates'!AX183","v":120.05825172120751},{"$f":"'Population 2016'!AY183*'Prevalence Rates'!AY183","v":830.24346782902762},{"$f":"'Population 2016'!AZ183*'Prevalence Rates'!AZ183","v":524.35800179033367},{"$f":"'Population 2016'!BA183*'Prevalence Rates'!BA183","v":57.637527220739067},{"$f":"'Population 2016'!BB183*'Prevalence Rates'!BB183","v":167.41190479052841},{"$f":"'Population 2016'!BC183*'Prevalence Rates'!BC183","v":6.2181564636481976},181]
[null,"Female 50-54",{"$f":"'Population 2016'!C184*'Prevalence Rates'!C184","v":133.92952383242272},{"$f":"'Population 2016'!D184*'Prevalence Rates'!D184","v":604.95487595377369},{"$f":"'Population 2016'!E184*'Prevalence Rates'!E184","v":471.02535212135098},{"$f":"'Population 2016'!F184*'Prevalence Rates'!F184","v":148.03995580762441},{"$f":"'Population 2016'!G184*'Prevalence Rates'!G184","v":108.578578249857},{"$f":"'Population 2016'!H184*'Prevalence Rates'!H184","v":274.19678406048689},{"$f":"'Population 2016'!I184*'Prevalence Rates'!I184","v":215.60261738380194},{"$f":"'Population 2016'!J184*'Prevalence Rates'!J184","v":177.0978792819804},{"$f":"'Population 2016'!K184*'Prevalence Rates'!K184","v":43.16835544955768},{"$f":"'Population 2016'!L184*'Prevalence Rates'!L184","v":135.72322281232124},{"$f":"'Population 2016'!M184*'Prevalence Rates'!M184","v":135.72322281232124},{"$f":"'Population 2016'!N184*'Prevalence Rates'!N184","v":99.729663282357635},{"$f":"'Population 2016'!O184*'Prevalence Rates'!O184","v":82.74931293931833},{"$f":"'Population 2016'!P184*'Prevalence Rates'!P184","v":102.0016819902291},{"$f":"'Population 2016'!Q184*'Prevalence Rates'!Q184","v":162.1503877828261},{"$f":"'Population 2016'!R184*'Prevalence Rates'!R184","v":67.682241508170776},{"$f":"'Population 2016'!S184*'Prevalence Rates'!S184","v":1234.7823777621402},{"$f":"'Population 2016'!T184*'Prevalence Rates'!T184","v":317.12597964605811},{"$f":"'Population 2016'!U184*'Prevalence Rates'!U184","v":7.8922755115534819},{"$f":"'Population 2016'!V184*'Prevalence Rates'!V184","v":145.64835716775971},{"$f":"'Population 2016'!W184*'Prevalence Rates'!W184","v":319.75673814990927},{"$f":"'Population 2016'!X184*'Prevalence Rates'!X184","v":319.75673814990927},{"$f":"'Population 2016'!Y184*'Prevalence Rates'!Y184","v":322.74623644974014},{"$f":"'Population 2016'!Z184*'Prevalence Rates'!Z184","v":284.71981807589151},{"$f":"'Population 2016'!AA184*'Prevalence Rates'!AA184","v":1344.1980155359499},{"$f":"'Population 2016'!AB184*'Prevalence Rates'!AB184","v":783.2485545556865},{"$f":"'Population 2016'!AC184*'Prevalence Rates'!AC184","v":769.01854264849158},{"$f":"'Population 2016'!AD184*'Prevalence Rates'!AD184","v":493.86511913205879},{"$f":"'Population 2016'!AE184*'Prevalence Rates'!AE184","v":385.28654088220179},{"$f":"'Population 2016'!AF184*'Prevalence Rates'!AF184","v":82.510153075331857},{"$f":"'Population 2016'!AG184*'Prevalence Rates'!AG184","v":385.28654088220179},{"$f":"'Population 2016'!AH184*'Prevalence Rates'!AH184","v":575.17947288745836},{"$f":"'Population 2016'!AI184*'Prevalence Rates'!AI184","v":699.42302222842909},{"$f":"'Population 2016'!AJ184*'Prevalence Rates'!AJ184","v":64.453583344353433},{"$f":"'Population 2016'!AK184*'Prevalence Rates'!AK184","v":178.29367860191275},{"$f":"'Population 2016'!AL184*'Prevalence Rates'!AL184","v":117.90581294532929},{"$f":"'Population 2016'!AM184*'Prevalence Rates'!AM184","v":246.69339970204294},{"$f":"'Population 2016'!AN184*'Prevalence Rates'!AN184","v":49.147352049219414},{"$f":"'Population 2016'!AO184*'Prevalence Rates'!AO184","v":49.147352049219414},{"$f":"'Population 2016'!AP184*'Prevalence Rates'!AP184","v":308.99454427051813},{"$f":"'Population 2016'!AQ184*'Prevalence Rates'!AQ184","v":167.53148472252164},{"$f":"'Population 2016'!AR184*'Prevalence Rates'!AR184","v":5270.485502601814},{"$f":"'Population 2016'!AS184*'Prevalence Rates'!AS184","v":215.60261738380194},{"$f":"'Population 2016'!AT184*'Prevalence Rates'!AT184","v":67.921401372157234},{"$f":"'Population 2016'!AU184*'Prevalence Rates'!AU184","v":67.921401372157234},{"$f":"'Population 2016'!AV184*'Prevalence Rates'!AV184","v":73.54165817583926},{"$f":"'Population 2016'!AW184*'Prevalence Rates'!AW184","v":328.48607318541536},{"$f":"'Population 2016'!AX184*'Prevalence Rates'!AX184","v":133.92952383242272},{"$f":"'Population 2016'!AY184*'Prevalence Rates'!AY184","v":876.52090151040943},{"$f":"'Population 2016'!AZ184*'Prevalence Rates'!AZ184","v":556.76416336050022},{"$f":"'Population 2016'!BA184*'Prevalence Rates'!BA184","v":64.573163276346676},{"$f":"'Population 2016'!BB184*'Prevalence Rates'!BB184","v":155.69307145519141},{"$f":"'Population 2016'!BC184*'Prevalence Rates'!BC184","v":7.8922755115534819},182]
[null,"Female 55-59",{"$f":"'Population 2016'!C185*'Prevalence Rates'!C185","v":64.68945812795701},{"$f":"'Population 2016'!D185*'Prevalence Rates'!D185","v":275.91270327864402},{"$f":"'Population 2016'!E185*'Prevalence Rates'!E185","v":211.22324515068701},{"$f":"'Population 2016'!F185*'Prevalence Rates'!F185","v":68.432339022535032},{"$f":"'Population 2016'!G185*'Prevalence Rates'!G185","v":52.8993833100362},{"$f":"'Population 2016'!H185*'Prevalence Rates'!H185","v":136.92705939331304},{"$f":"'Population 2016'!I185*'Prevalence Rates'!I185","v":105.48685987885757},{"$f":"'Population 2016'!J185*'Prevalence Rates'!J185","v":76.604295642363738},{"$f":"'Population 2016'!K185*'Prevalence Rates'!K185","v":20.086794134235443},{"$f":"'Population 2016'!L185*'Prevalence Rates'!L185","v":71.052355648739663},{"$f":"'Population 2016'!M185*'Prevalence Rates'!M185","v":71.052355648739663},{"$f":"'Population 2016'!N185*'Prevalence Rates'!N185","v":52.462713872335428},{"$f":"'Population 2016'!O185*'Prevalence Rates'!O185","v":41.171689840358361},{"$f":"'Population 2016'!P185*'Prevalence Rates'!P185","v":57.016552294072035},{"$f":"'Population 2016'!Q185*'Prevalence Rates'!Q185","v":79.286693616811334},{"$f":"'Population 2016'!R185*'Prevalence Rates'!R185","v":32.563063782828891},{"$f":"'Population 2016'!S185*'Prevalence Rates'!S185","v":580.77035214202476},{"$f":"'Population 2016'!T185*'Prevalence Rates'!T185","v":148.40522747001901},{"$f":"'Population 2016'!U185*'Prevalence Rates'!U185","v":3.6181181980920987},{"$f":"'Population 2016'!V185*'Prevalence Rates'!V185","v":66.560898575246028},{"$f":"'Population 2016'!W185*'Prevalence Rates'!W185","v":154.01954881188607},{"$f":"'Population 2016'!X185*'Prevalence Rates'!X185","v":154.01954881188607},{"$f":"'Population 2016'!Y185*'Prevalence Rates'!Y185","v":143.16519421760978},{"$f":"'Population 2016'!Z185*'Prevalence Rates'!Z185","v":130.56416187253038},{"$f":"'Population 2016'!AA185*'Prevalence Rates'!AA185","v":631.6735323082861},{"$f":"'Population 2016'!AB185*'Prevalence Rates'!AB185","v":360.2522861031357},{"$f":"'Population 2016'!AC185*'Prevalence Rates'!AC185","v":373.53951327888768},{"$f":"'Population 2016'!AD185*'Prevalence Rates'!AD185","v":234.61625074179972},{"$f":"'Population 2016'!AE185*'Prevalence Rates'!AE185","v":181.71686743176352},{"$f":"'Population 2016'!AF185*'Prevalence Rates'!AF185","v":36.86737681159363},{"$f":"'Population 2016'!AG185*'Prevalence Rates'!AG185","v":181.71686743176352},{"$f":"'Population 2016'!AH185*'Prevalence Rates'!AH185","v":258.13401902939836},{"$f":"'Population 2016'!AI185*'Prevalence Rates'!AI185","v":321.26394345128119},{"$f":"'Population 2016'!AJ185*'Prevalence Rates'!AJ185","v":28.820182888250855},{"$f":"'Population 2016'!AK185*'Prevalence Rates'!AK185","v":84.339582824491686},{"$f":"'Population 2016'!AL185*'Prevalence Rates'!AL185","v":55.457018587997858},{"$f":"'Population 2016'!AM185*'Prevalence Rates'!AM185","v":105.67400392358647},{"$f":"'Population 2016'!AN185*'Prevalence Rates'!AN185","v":24.890157948943919},{"$f":"'Population 2016'!AO185*'Prevalence Rates'!AO185","v":24.890157948943919},{"$f":"'Population 2016'!AP185*'Prevalence Rates'!AP185","v":144.59996522719803},{"$f":"'Population 2016'!AQ185*'Prevalence Rates'!AQ185","v":81.657184850044089},{"$f":"'Population 2016'!AR185*'Prevalence Rates'!AR185","v":2483.6509989454967},{"$f":"'Population 2016'!AS185*'Prevalence Rates'!AS185","v":105.48685987885757},{"$f":"'Population 2016'!AT185*'Prevalence Rates'!AT185","v":31.19067412148361},{"$f":"'Population 2016'!AU185*'Prevalence Rates'!AU185","v":31.19067412148361},{"$f":"'Population 2016'!AV185*'Prevalence Rates'!AV185","v":40.298350964956825},{"$f":"'Population 2016'!AW185*'Prevalence Rates'!AW185","v":152.46001510581189},{"$f":"'Population 2016'!AX185*'Prevalence Rates'!AX185","v":56.517501508128298},{"$f":"'Population 2016'!AY185*'Prevalence Rates'!AY185","v":419.51456693395454},{"$f":"'Population 2016'!AZ185*'Prevalence Rates'!AZ185","v":265.49501812206847},{"$f":"'Population 2016'!BA185*'Prevalence Rates'!BA185","v":34.871173667818674},{"$f":"'Population 2016'!BB185*'Prevalence Rates'!BB185","v":64.751839476199976},{"$f":"'Population 2016'!BC185*'Prevalence Rates'!BC185","v":3.6181181980920987},183]
[null,"Female 60-64",{"$f":"'Population 2016'!C186*'Prevalence Rates'!C186","v":59.823712965005562},{"$f":"'Population 2016'!D186*'Prevalence Rates'!D186","v":249.21348623065404},{"$f":"'Population 2016'!E186*'Prevalence Rates'!E186","v":189.38977326564847},{"$f":"'Population 2016'!F186*'Prevalence Rates'!F186","v":68.993771156721749},{"$f":"'Population 2016'!G186*'Prevalence Rates'!G186","v":50.09222263910268},{"$f":"'Population 2016'!H186*'Prevalence Rates'!H186","v":127.32033176389609},{"$f":"'Population 2016'!I186*'Prevalence Rates'!I186","v":95.069174722282042},{"$f":"'Population 2016'!J186*'Prevalence Rates'!J186","v":63.816119252555467},{"$f":"'Population 2016'!K186*'Prevalence Rates'!K186","v":16.468675936143345},{"$f":"'Population 2016'!L186*'Prevalence Rates'!L186","v":68.432339022535032},{"$f":"'Population 2016'!M186*'Prevalence Rates'!M186","v":68.432339022535032},{"$f":"'Population 2016'!N186*'Prevalence Rates'!N186","v":37.491190294023298},{"$f":"'Population 2016'!O186*'Prevalence Rates'!O186","v":36.742614115107692},{"$f":"'Population 2016'!P186*'Prevalence Rates'!P186","v":45.538384217366072},{"$f":"'Population 2016'!Q186*'Prevalence Rates'!Q186","v":66.248991834031187},{"$f":"'Population 2016'!R186*'Prevalence Rates'!R186","v":29.069708281222724},{"$f":"'Population 2016'!S186*'Prevalence Rates'!S186","v":506.47416638465086},{"$f":"'Population 2016'!T186*'Prevalence Rates'!T186","v":124.51317109296257},{"$f":"'Population 2016'!U186*'Prevalence Rates'!U186","v":2.3704912332327543},{"$f":"'Population 2016'!V186*'Prevalence Rates'!V186","v":55.394637239754893},{"$f":"'Population 2016'!W186*'Prevalence Rates'!W186","v":140.35803354667624},{"$f":"'Population 2016'!X186*'Prevalence Rates'!X186","v":140.35803354667624},{"$f":"'Population 2016'!Y186*'Prevalence Rates'!Y186","v":119.21075649231035},{"$f":"'Population 2016'!Z186*'Prevalence Rates'!Z186","v":101.9935043772514},{"$f":"'Population 2016'!AA186*'Prevalence Rates'!AA186","v":521.25854591823406},{"$f":"'Population 2016'!AB186*'Prevalence Rates'!AB186","v":324.32062951518657},{"$f":"'Population 2016'!AC186*'Prevalence Rates'!AC186","v":302.42477628190505},{"$f":"'Population 2016'!AD186*'Prevalence Rates'!AD186","v":223.51237075455154},{"$f":"'Population 2016'!AE186*'Prevalence Rates'!AE186","v":173.42014811544888},{"$f":"'Population 2016'!AF186*'Prevalence Rates'!AF186","v":28.944945584736789},{"$f":"'Population 2016'!AG186*'Prevalence Rates'!AG186","v":173.42014811544888},{"$f":"'Population 2016'!AH186*'Prevalence Rates'!AH186","v":218.83376963632901},{"$f":"'Population 2016'!AI186*'Prevalence Rates'!AI186","v":271.04695811569258},{"$f":"'Population 2016'!AJ186*'Prevalence Rates'!AJ186","v":26.324928958532166},{"$f":"'Population 2016'!AK186*'Prevalence Rates'!AK186","v":75.107143284532526},{"$f":"'Population 2016'!AL186*'Prevalence Rates'!AL186","v":55.581781284483789},{"$f":"'Population 2016'!AM186*'Prevalence Rates'!AM186","v":90.141048211087636},{"$f":"'Population 2016'!AN186*'Prevalence Rates'!AN186","v":23.018717501654905},{"$f":"'Population 2016'!AO186*'Prevalence Rates'!AO186","v":23.018717501654905},{"$f":"'Population 2016'!AP186*'Prevalence Rates'!AP186","v":136.6151526520982},{"$f":"'Population 2016'!AQ186*'Prevalence Rates'!AQ186","v":70.802830255767788},{"$f":"'Population 2016'!AR186*'Prevalence Rates'!AR186","v":2187.1524507466738},{"$f":"'Population 2016'!AS186*'Prevalence Rates'!AS186","v":95.069174722282042},{"$f":"'Population 2016'!AT186*'Prevalence Rates'!AT186","v":28.133988057578215},{"$f":"'Population 2016'!AU186*'Prevalence Rates'!AU186","v":28.133988057578215},{"$f":"'Population 2016'!AV186*'Prevalence Rates'!AV186","v":34.995936364304612},{"$f":"'Population 2016'!AW186*'Prevalence Rates'!AW186","v":128.69272142524136},{"$f":"'Population 2016'!AX186*'Prevalence Rates'!AX186","v":47.347443316412118},{"$f":"'Population 2016'!AY186*'Prevalence Rates'!AY186","v":383.4581476495195},{"$f":"'Population 2016'!AZ186*'Prevalence Rates'!AZ186","v":243.10011410284326},{"$f":"'Population 2016'!BA186*'Prevalence Rates'!BA186","v":26.075403565560297},{"$f":"'Population 2016'!BB186*'Prevalence Rates'!BB186","v":53.959866230166647},{"$f":"'Population 2016'!BC186*'Prevalence Rates'!BC186","v":2.3704912332327543},184]
[null,"Female 65-69",{"$f":"'Population 2016'!C187*'Prevalence Rates'!C187","v":61.632772064051615},{"$f":"'Population 2016'!D187*'Prevalence Rates'!D187","v":247.34204578336502},{"$f":"'Population 2016'!E187*'Prevalence Rates'!E187","v":185.70927371931342},{"$f":"'Population 2016'!F187*'Prevalence Rates'!F187","v":74.046660364402086},{"$f":"'Population 2016'!G187*'Prevalence Rates'!G187","v":57.453221731772807},{"$f":"'Population 2016'!H187*'Prevalence Rates'!H187","v":129.75320434537181},{"$f":"'Population 2016'!I187*'Prevalence Rates'!I187","v":103.24113134211075},{"$f":"'Population 2016'!J187*'Prevalence Rates'!J187","v":66.186610485788222},{"$f":"'Population 2016'!K187*'Prevalence Rates'!K187","v":18.277735035189394},{"$f":"'Population 2016'!L187*'Prevalence Rates'!L187","v":65.126127565657782},{"$f":"'Population 2016'!M187*'Prevalence Rates'!M187","v":65.126127565657782},{"$f":"'Population 2016'!N187*'Prevalence Rates'!N187","v":41.42121523333023},{"$f":"'Population 2016'!O187*'Prevalence Rates'!O187","v":36.30594467740692},{"$f":"'Population 2016'!P187*'Prevalence Rates'!P187","v":44.540282645478591},{"$f":"'Population 2016'!Q187*'Prevalence Rates'!Q187","v":66.311373182274153},{"$f":"'Population 2016'!R187*'Prevalence Rates'!R187","v":26.512073003261069},{"$f":"'Population 2016'!S187*'Prevalence Rates'!S187","v":515.83136862109598},{"$f":"'Population 2016'!T187*'Prevalence Rates'!T187","v":119.70980727825409},{"$f":"'Population 2016'!U187*'Prevalence Rates'!U187","v":3.6804995463350658},{"$f":"'Population 2016'!V187*'Prevalence Rates'!V187","v":61.570390715808642},{"$f":"'Population 2016'!W187*'Prevalence Rates'!W187","v":144.47520253071207},{"$f":"'Population 2016'!X187*'Prevalence Rates'!X187","v":144.47520253071207},{"$f":"'Population 2016'!Y187*'Prevalence Rates'!Y187","v":127.75700120159686},{"$f":"'Population 2016'!Z187*'Prevalence Rates'!Z187","v":89.267709335686092},{"$f":"'Population 2016'!AA187*'Prevalence Rates'!AA187","v":472.60109428871965},{"$f":"'Population 2016'!AB187*'Prevalence Rates'!AB187","v":329.99733220529657},{"$f":"'Population 2016'!AC187*'Prevalence Rates'!AC187","v":280.59130439686658},{"$f":"'Population 2016'!AD187*'Prevalence Rates'!AD187","v":227.44239569385849},{"$f":"'Population 2016'!AE187*'Prevalence Rates'!AE187","v":169.98917396208566},{"$f":"'Population 2016'!AF187*'Prevalence Rates'!AF187","v":27.073505137447771},{"$f":"'Population 2016'!AG187*'Prevalence Rates'!AG187","v":169.98917396208566},{"$f":"'Population 2016'!AH187*'Prevalence Rates'!AH187","v":192.0097898918531},{"$f":"'Population 2016'!AI187*'Prevalence Rates'!AI187","v":268.1150347482731},{"$f":"'Population 2016'!AJ187*'Prevalence Rates'!AJ187","v":28.633038843521952},{"$f":"'Population 2016'!AK187*'Prevalence Rates'!AK187","v":82.655286421931564},{"$f":"'Population 2016'!AL187*'Prevalence Rates'!AL187","v":57.016552294072035},{"$f":"'Population 2016'!AM187*'Prevalence Rates'!AM187","v":75.231905981018471},{"$f":"'Population 2016'!AN187*'Prevalence Rates'!AN187","v":23.829675028813476},{"$f":"'Population 2016'!AO187*'Prevalence Rates'!AO187","v":23.829675028813476},{"$f":"'Population 2016'!AP187*'Prevalence Rates'!AP187","v":138.42421175114427},{"$f":"'Population 2016'!AQ187*'Prevalence Rates'!AQ187","v":65.937085092816346},{"$f":"'Population 2016'!AR187*'Prevalence Rates'!AR187","v":2176.3604775006402},{"$f":"'Population 2016'!AS187*'Prevalence Rates'!AS187","v":103.24113134211075},{"$f":"'Population 2016'!AT187*'Prevalence Rates'!AT187","v":26.4496916550181},{"$f":"'Population 2016'!AU187*'Prevalence Rates'!AU187","v":26.4496916550181},{"$f":"'Population 2016'!AV187*'Prevalence Rates'!AV187","v":36.430707373892858},{"$f":"'Population 2016'!AW187*'Prevalence Rates'!AW187","v":116.77788391083463},{"$f":"'Population 2016'!AX187*'Prevalence Rates'!AX187","v":47.908875450598828},{"$f":"'Population 2016'!AY187*'Prevalence Rates'!AY187","v":398.36728987958867},{"$f":"'Population 2016'!AZ187*'Prevalence Rates'!AZ187","v":253.89208734887657},{"$f":"'Population 2016'!BA187*'Prevalence Rates'!BA187","v":27.260649182176675},{"$f":"'Population 2016'!BB187*'Prevalence Rates'!BB187","v":53.460815444222909},{"$f":"'Population 2016'!BC187*'Prevalence Rates'!BC187","v":3.6804995463350658},185]
[null,"Female 70-74",{"$f":"'Population 2016'!C188*'Prevalence Rates'!C188","v":43.417418377105186},{"$f":"'Population 2016'!D188*'Prevalence Rates'!D188","v":178.97208810907296},{"$f":"'Population 2016'!E188*'Prevalence Rates'!E188","v":135.55466973196778},{"$f":"'Population 2016'!F188*'Prevalence Rates'!F188","v":58.825611393118088},{"$f":"'Population 2016'!G188*'Prevalence Rates'!G188","v":45.4760028691231},{"$f":"'Population 2016'!H188*'Prevalence Rates'!H188","v":109.29212212167857},{"$f":"'Population 2016'!I188*'Prevalence Rates'!I188","v":82.592905073688598},{"$f":"'Population 2016'!J188*'Prevalence Rates'!J188","v":52.649857917064331},{"$f":"'Population 2016'!K188*'Prevalence Rates'!K188","v":14.160566051153559},{"$f":"'Population 2016'!L188*'Prevalence Rates'!L188","v":56.143213418670499},{"$f":"'Population 2016'!M188*'Prevalence Rates'!M188","v":56.143213418670499},{"$f":"'Population 2016'!N188*'Prevalence Rates'!N188","v":29.069708281222724},{"$f":"'Population 2016'!O188*'Prevalence Rates'!O188","v":26.886361092718872},{"$f":"'Population 2016'!P188*'Prevalence Rates'!P188","v":31.627343559184379},{"$f":"'Population 2016'!Q188*'Prevalence Rates'!Q188","v":47.472206012898056},{"$f":"'Population 2016'!R188*'Prevalence Rates'!R188","v":20.710607616665115},{"$f":"'Population 2016'!S188*'Prevalence Rates'!S188","v":390.94390943867558},{"$f":"'Population 2016'!T188*'Prevalence Rates'!T188","v":90.141048211087636},{"$f":"'Population 2016'!U188*'Prevalence Rates'!U188","v":2.869542019176492},{"$f":"'Population 2016'!V188*'Prevalence Rates'!V188","v":46.099816351552775},{"$f":"'Population 2016'!W188*'Prevalence Rates'!W188","v":111.84975739964023},{"$f":"'Population 2016'!X188*'Prevalence Rates'!X188","v":111.84975739964023},{"$f":"'Population 2016'!Y188*'Prevalence Rates'!Y188","v":98.749674268617113},{"$f":"'Population 2016'!Z188*'Prevalence Rates'!Z188","v":63.940881949041398},{"$f":"'Population 2016'!AA188*'Prevalence Rates'!AA188","v":335.9235602883785},{"$f":"'Population 2016'!AB188*'Prevalence Rates'!AB188","v":241.16629230731127},{"$f":"'Population 2016'!AC188*'Prevalence Rates'!AC188","v":207.29322021138006},{"$f":"'Population 2016'!AD188*'Prevalence Rates'!AD188","v":174.23110564260745},{"$f":"'Population 2016'!AE188*'Prevalence Rates'!AE188","v":128.75510277348434},{"$f":"'Population 2016'!AF188*'Prevalence Rates'!AF188","v":22.644429412197102},{"$f":"'Population 2016'!AG188*'Prevalence Rates'!AG188","v":128.75510277348434},{"$f":"'Population 2016'!AH188*'Prevalence Rates'!AH188","v":128.63034007699841},{"$f":"'Population 2016'!AI188*'Prevalence Rates'!AI188","v":196.50124696534675},{"$f":"'Population 2016'!AJ188*'Prevalence Rates'!AJ188","v":22.082997278010396},{"$f":"'Population 2016'!AK188*'Prevalence Rates'!AK188","v":62.194204198238317},{"$f":"'Population 2016'!AL188*'Prevalence Rates'!AL188","v":46.474104441010581},{"$f":"'Population 2016'!AM188*'Prevalence Rates'!AM188","v":49.281265111944101},{"$f":"'Population 2016'!AN188*'Prevalence Rates'!AN188","v":18.028209642217526},{"$f":"'Population 2016'!AO188*'Prevalence Rates'!AO188","v":18.028209642217526},{"$f":"'Population 2016'!AP188*'Prevalence Rates'!AP188","v":105.29971583412866},{"$f":"'Population 2016'!AQ188*'Prevalence Rates'!AQ188","v":47.409824664655083},{"$f":"'Population 2016'!AR188*'Prevalence Rates'!AR188","v":1641.8770857548973},{"$f":"'Population 2016'!AS188*'Prevalence Rates'!AS188","v":82.592905073688598},{"$f":"'Population 2016'!AT188*'Prevalence Rates'!AT188","v":21.33442109909479},{"$f":"'Population 2016'!AU188*'Prevalence Rates'!AU188","v":21.33442109909479},{"$f":"'Population 2016'!AV188*'Prevalence Rates'!AV188","v":35.931656587949121},{"$f":"'Population 2016'!AW188*'Prevalence Rates'!AW188","v":79.349074965054299},{"$f":"'Population 2016'!AX188*'Prevalence Rates'!AX188","v":38.489291865910772},{"$f":"'Population 2016'!AY188*'Prevalence Rates'!AY188","v":305.04479290810968},{"$f":"'Population 2016'!AZ188*'Prevalence Rates'!AZ188","v":193.19503550846949},{"$f":"'Population 2016'!BA188*'Prevalence Rates'!BA188","v":20.960133009636987},{"$f":"'Population 2016'!BB188*'Prevalence Rates'!BB188","v":36.804995463350657},{"$f":"'Population 2016'!BC188*'Prevalence Rates'!BC188","v":2.869542019176492},186]
[null,"Female 75-79",{"$f":"'Population 2016'!C189*'Prevalence Rates'!C189","v":36.929758159836595},{"$f":"'Population 2016'!D189*'Prevalence Rates'!D189","v":143.35233826233866},{"$f":"'Population 2016'!E189*'Prevalence Rates'!E189","v":106.42258010250208},{"$f":"'Population 2016'!F189*'Prevalence Rates'!F189","v":45.787909610337941},{"$f":"'Population 2016'!G189*'Prevalence Rates'!G189","v":34.995936364304612},{"$f":"'Population 2016'!H189*'Prevalence Rates'!H189","v":77.04096508006451},{"$f":"'Population 2016'!I189*'Prevalence Rates'!I189","v":66.623279923488994},{"$f":"'Population 2016'!J189*'Prevalence Rates'!J189","v":38.61405456239671},{"$f":"'Population 2016'!K189*'Prevalence Rates'!K189","v":9.2948208882021159},{"$f":"'Population 2016'!L189*'Prevalence Rates'!L189","v":44.228375904263757},{"$f":"'Population 2016'!M189*'Prevalence Rates'!M189","v":44.228375904263757},{"$f":"'Population 2016'!N189*'Prevalence Rates'!N189","v":25.389208734887657},{"$f":"'Population 2016'!O189*'Prevalence Rates'!O189","v":19.026311214105},{"$f":"'Population 2016'!P189*'Prevalence Rates'!P189","v":29.943047156624264},{"$f":"'Population 2016'!Q189*'Prevalence Rates'!Q189","v":35.557368498491314},{"$f":"'Population 2016'!R189*'Prevalence Rates'!R189","v":18.8391671693761},{"$f":"'Population 2016'!S189*'Prevalence Rates'!S189","v":303.2981151573066},{"$f":"'Population 2016'!T189*'Prevalence Rates'!T189","v":73.73475362318726},{"$f":"'Population 2016'!U189*'Prevalence Rates'!U189","v":2.3704912332327543},{"$f":"'Population 2016'!V189*'Prevalence Rates'!V189","v":36.30594467740692},{"$f":"'Population 2016'!W189*'Prevalence Rates'!W189","v":81.657184850044089},{"$f":"'Population 2016'!X189*'Prevalence Rates'!X189","v":81.657184850044089},{"$f":"'Population 2016'!Y189*'Prevalence Rates'!Y189","v":74.91999923980363},{"$f":"'Population 2016'!Z189*'Prevalence Rates'!Z189","v":57.390840383529842},{"$f":"'Population 2016'!AA189*'Prevalence Rates'!AA189","v":279.84272821795093},{"$f":"'Population 2016'!AB189*'Prevalence Rates'!AB189","v":188.51643439024693},{"$f":"'Population 2016'!AC189*'Prevalence Rates'!AC189","v":173.73205485666369},{"$f":"'Population 2016'!AD189*'Prevalence Rates'!AD189","v":134.5565681600803},{"$f":"'Population 2016'!AE189*'Prevalence Rates'!AE189","v":99.560631795775677},{"$f":"'Population 2016'!AF189*'Prevalence Rates'!AF189","v":15.096286274798066},{"$f":"'Population 2016'!AG189*'Prevalence Rates'!AG189","v":99.560631795775677},{"$f":"'Population 2016'!AH189*'Prevalence Rates'!AH189","v":106.11067336128724},{"$f":"'Population 2016'!AI189*'Prevalence Rates'!AI189","v":155.01765038377354},{"$f":"'Population 2016'!AJ189*'Prevalence Rates'!AJ189","v":16.40629458790038},{"$f":"'Population 2016'!AK189*'Prevalence Rates'!AK189","v":45.164096127908266},{"$f":"'Population 2016'!AL189*'Prevalence Rates'!AL189","v":31.939250300399216},{"$f":"'Population 2016'!AM189*'Prevalence Rates'!AM189","v":42.232172760488808},{"$f":"'Population 2016'!AN189*'Prevalence Rates'!AN189","v":14.160566051153559},{"$f":"'Population 2016'!AO189*'Prevalence Rates'!AO189","v":14.160566051153559},{"$f":"'Population 2016'!AP189*'Prevalence Rates'!AP189","v":86.647692709481461},{"$f":"'Population 2016'!AQ189*'Prevalence Rates'!AQ189","v":35.557368498491314},{"$f":"'Population 2016'!AR189*'Prevalence Rates'!AR189","v":1291.7929594153652},{"$f":"'Population 2016'!AS189*'Prevalence Rates'!AS189","v":66.623279923488994},{"$f":"'Population 2016'!AT189*'Prevalence Rates'!AT189","v":15.033904926555099},{"$f":"'Population 2016'!AU189*'Prevalence Rates'!AU189","v":15.033904926555099},{"$f":"'Population 2016'!AV189*'Prevalence Rates'!AV189","v":26.075403565560297},{"$f":"'Population 2016'!AW189*'Prevalence Rates'!AW189","v":63.878500600798432},{"$f":"'Population 2016'!AX189*'Prevalence Rates'!AX189","v":29.319233674194592},{"$f":"'Population 2016'!AY189*'Prevalence Rates'!AY189","v":239.48199590475116},{"$f":"'Population 2016'!AZ189*'Prevalence Rates'!AZ189","v":157.82481105470706},{"$f":"'Population 2016'!BA189*'Prevalence Rates'!BA189","v":16.905345373844117},{"$f":"'Population 2016'!BB189*'Prevalence Rates'!BB189","v":29.319233674194592},{"$f":"'Population 2016'!BC189*'Prevalence Rates'!BC189","v":2.3704912332327543},187]
[null,"Female 80-84",{"$f":"'Population 2016'!C190*'Prevalence Rates'!C190","v":28.508276147036018},{"$f":"'Population 2016'!D190*'Prevalence Rates'!D190","v":107.79496976384735},{"$f":"'Population 2016'!E190*'Prevalence Rates'!E190","v":79.286693616811334},{"$f":"'Population 2016'!F190*'Prevalence Rates'!F190","v":36.86737681159363},{"$f":"'Population 2016'!G190*'Prevalence Rates'!G190","v":23.892056377056445},{"$f":"'Population 2016'!H190*'Prevalence Rates'!H190","v":58.70084869663215},{"$f":"'Population 2016'!I190*'Prevalence Rates'!I190","v":45.4760028691231},{"$f":"'Population 2016'!J190*'Prevalence Rates'!J190","v":30.317335246082067},{"$f":"'Population 2016'!K190*'Prevalence Rates'!K190","v":6.8619483067263944},{"$f":"'Population 2016'!L190*'Prevalence Rates'!L190","v":34.995936364304612},{"$f":"'Population 2016'!M190*'Prevalence Rates'!M190","v":34.995936364304612},{"$f":"'Population 2016'!N190*'Prevalence Rates'!N190","v":25.264446038401722},{"$f":"'Population 2016'!O190*'Prevalence Rates'!O190","v":11.914837514406738},{"$f":"'Population 2016'!P190*'Prevalence Rates'!P190","v":21.022514357879952},{"$f":"'Population 2016'!Q190*'Prevalence Rates'!Q190","v":27.634937271634477},{"$f":"'Population 2016'!R190*'Prevalence Rates'!R190","v":16.032006498442577},{"$f":"'Population 2016'!S190*'Prevalence Rates'!S190","v":226.50667547021396},{"$f":"'Population 2016'!T190*'Prevalence Rates'!T190","v":63.192305770125792},{"$f":"'Population 2016'!U190*'Prevalence Rates'!U190","v":1.1852456166163772},{"$f":"'Population 2016'!V190*'Prevalence Rates'!V190","v":26.387310306775134},{"$f":"'Population 2016'!W190*'Prevalence Rates'!W190","v":60.884195885136009},{"$f":"'Population 2016'!X190*'Prevalence Rates'!X190","v":60.884195885136009},{"$f":"'Population 2016'!Y190*'Prevalence Rates'!Y190","v":56.704645552857201},{"$f":"'Population 2016'!Z190*'Prevalence Rates'!Z190","v":43.105511635890345},{"$f":"'Population 2016'!AA190*'Prevalence Rates'!AA190","v":206.04559324652072},{"$f":"'Population 2016'!AB190*'Prevalence Rates'!AB190","v":144.53758387895505},{"$f":"'Population 2016'!AC190*'Prevalence Rates'!AC190","v":132.68512771279129},{"$f":"'Population 2016'!AD190*'Prevalence Rates'!AD190","v":102.05588572549436},{"$f":"'Population 2016'!AE190*'Prevalence Rates'!AE190","v":78.163829348437929},{"$f":"'Population 2016'!AF190*'Prevalence Rates'!AF190","v":14.098184702910592},{"$f":"'Population 2016'!AG190*'Prevalence Rates'!AG190","v":78.163829348437929},{"$f":"'Population 2016'!AH190*'Prevalence Rates'!AH190","v":73.360465533729453},{"$f":"'Population 2016'!AI190*'Prevalence Rates'!AI190","v":120.14647671595486},{"$f":"'Population 2016'!AJ190*'Prevalence Rates'!AJ190","v":11.103879987248165},{"$f":"'Population 2016'!AK190*'Prevalence Rates'!AK190","v":36.742614115107692},{"$f":"'Population 2016'!AL190*'Prevalence Rates'!AL190","v":23.767293680570511},{"$f":"'Population 2016'!AM190*'Prevalence Rates'!AM190","v":26.761598396232937},{"$f":"'Population 2016'!AN190*'Prevalence Rates'!AN190","v":8.3591006645576069},{"$f":"'Population 2016'!AO190*'Prevalence Rates'!AO190","v":8.3591006645576069},{"$f":"'Population 2016'!AP190*'Prevalence Rates'!AP190","v":63.31706846661173},{"$f":"'Population 2016'!AQ190*'Prevalence Rates'!AQ190","v":27.385411878662609},{"$f":"'Population 2016'!AR190*'Prevalence Rates'!AR190","v":975.26999843054955},{"$f":"'Population 2016'!AS190*'Prevalence Rates'!AS190","v":45.4760028691231},{"$f":"'Population 2016'!AT190*'Prevalence Rates'!AT190","v":10.729591897790362},{"$f":"'Population 2016'!AU190*'Prevalence Rates'!AU190","v":10.729591897790362},{"$f":"'Population 2016'!AV190*'Prevalence Rates'!AV190","v":23.018717501654905},{"$f":"'Population 2016'!AW190*'Prevalence Rates'!AW190","v":46.598867137496512},{"$f":"'Population 2016'!AX190*'Prevalence Rates'!AX190","v":23.455386939355673},{"$f":"'Population 2016'!AY190*'Prevalence Rates'!AY190","v":186.33308720174307},{"$f":"'Population 2016'!AZ190*'Prevalence Rates'!AZ190","v":125.44889131660707},{"$f":"'Population 2016'!BA190*'Prevalence Rates'!BA190","v":11.041498639005198},{"$f":"'Population 2016'!BB190*'Prevalence Rates'!BB190","v":18.215353686946429},{"$f":"'Population 2016'!BC190*'Prevalence Rates'!BC190","v":1.1852456166163772},188]
[null,"Female 85-89",{"$f":"'Population 2016'!C191*'Prevalence Rates'!C191","v":17.46677750803082},{"$f":"'Population 2016'!D191*'Prevalence Rates'!D191","v":67.808525540105364},{"$f":"'Population 2016'!E191*'Prevalence Rates'!E191","v":50.341748032074548},{"$f":"'Population 2016'!F191*'Prevalence Rates'!F191","v":21.771090536795558},{"$f":"'Population 2016'!G191*'Prevalence Rates'!G191","v":15.595337060741805},{"$f":"'Population 2016'!H191*'Prevalence Rates'!H191","v":34.434504230117902},{"$f":"'Population 2016'!I191*'Prevalence Rates'!I191","v":29.568759067166461},{"$f":"'Population 2016'!J191*'Prevalence Rates'!J191","v":18.652023124647197},{"$f":"'Population 2016'!K191*'Prevalence Rates'!K191","v":4.3043130287647378},{"$f":"'Population 2016'!L191*'Prevalence Rates'!L191","v":20.461082223693246},{"$f":"'Population 2016'!M191*'Prevalence Rates'!M191","v":20.461082223693246},{"$f":"'Population 2016'!N191*'Prevalence Rates'!N191","v":20.211556830721378},{"$f":"'Population 2016'!O191*'Prevalence Rates'!O191","v":7.2362363961841973},{"$f":"'Population 2016'!P191*'Prevalence Rates'!P191","v":16.094387846685542},{"$f":"'Population 2016'!Q191*'Prevalence Rates'!Q191","v":15.782481105470707},{"$f":"'Population 2016'!R191*'Prevalence Rates'!R191","v":10.542447853061461},{"$f":"'Population 2016'!S191*'Prevalence Rates'!S191","v":149.0290409524487},{"$f":"'Population 2016'!T191*'Prevalence Rates'!T191","v":52.088425782877628},{"$f":"'Population 2016'!U191*'Prevalence Rates'!U191","v":1.3723896613452788},{"$f":"'Population 2016'!V191*'Prevalence Rates'!V191","v":15.844862453713674},{"$f":"'Population 2016'!W191*'Prevalence Rates'!W191","v":36.929758159836595},{"$f":"'Population 2016'!X191*'Prevalence Rates'!X191","v":36.929758159836595},{"$f":"'Population 2016'!Y191*'Prevalence Rates'!Y191","v":34.496885578360875},{"$f":"'Population 2016'!Z191*'Prevalence Rates'!Z191","v":27.759699968120412},{"$f":"'Population 2016'!AA191*'Prevalence Rates'!AA191","v":131.00083131023115},{"$f":"'Population 2016'!AB191*'Prevalence Rates'!AB191","v":91.326293827704006},{"$f":"'Population 2016'!AC191*'Prevalence Rates'!AC191","v":88.643895853256424},{"$f":"'Population 2016'!AD191*'Prevalence Rates'!AD191","v":62.506110939453151},{"$f":"'Population 2016'!AE191*'Prevalence Rates'!AE191","v":46.910773878711346},{"$f":"'Population 2016'!AF191*'Prevalence Rates'!AF191","v":8.9829141469872802},{"$f":"'Population 2016'!AG191*'Prevalence Rates'!AG191","v":46.910773878711346},{"$f":"'Population 2016'!AH191*'Prevalence Rates'!AH191","v":42.356935456974739},{"$f":"'Population 2016'!AI191*'Prevalence Rates'!AI191","v":82.530523725445633},{"$f":"'Population 2016'!AJ191*'Prevalence Rates'!AJ191","v":5.9886094313248535},{"$f":"'Population 2016'!AK191*'Prevalence Rates'!AK191","v":23.517768287598642},{"$f":"'Population 2016'!AL191*'Prevalence Rates'!AL191","v":14.098184702910592},{"$f":"'Population 2016'!AM191*'Prevalence Rates'!AM191","v":11.103879987248165},{"$f":"'Population 2016'!AN191*'Prevalence Rates'!AN191","v":6.1133721278107878},{"$f":"'Population 2016'!AO191*'Prevalence Rates'!AO191","v":6.1133721278107878},{"$f":"'Population 2016'!AP191*'Prevalence Rates'!AP191","v":43.417418377105186},{"$f":"'Population 2016'!AQ191*'Prevalence Rates'!AQ191","v":18.340116383432363},{"$f":"'Population 2016'!AR191*'Prevalence Rates'!AR191","v":623.06490625075662},{"$f":"'Population 2016'!AS191*'Prevalence Rates'!AS191","v":29.568759067166461},{"$f":"'Population 2016'!AT191*'Prevalence Rates'!AT191","v":6.9243296549693616},{"$f":"'Population 2016'!AU191*'Prevalence Rates'!AU191","v":6.9243296549693616},{"$f":"'Population 2016'!AV191*'Prevalence Rates'!AV191","v":13.100083131023116},{"$f":"'Population 2016'!AW191*'Prevalence Rates'!AW191","v":31.253055469726576},{"$f":"'Population 2016'!AX191*'Prevalence Rates'!AX191","v":14.34771009588246},{"$f":"'Population 2016'!AY191*'Prevalence Rates'!AY191","v":122.32982390445872},{"$f":"'Population 2016'!AZ191*'Prevalence Rates'!AZ191","v":85.400065744622125},{"$f":"'Population 2016'!BA191*'Prevalence Rates'!BA191","v":6.9243296549693616},{"$f":"'Population 2016'!BB191*'Prevalence Rates'!BB191","v":8.6710074057724427},{"$f":"'Population 2016'!BC191*'Prevalence Rates'!BC191","v":1.3723896613452788},189]
[null,"Female 90+",{"$f":"'Population 2016'!C192*'Prevalence Rates'!C192","v":8.0471939233427712},{"$f":"'Population 2016'!D192*'Prevalence Rates'!D192","v":36.992139508079561},{"$f":"'Population 2016'!E192*'Prevalence Rates'!E192","v":28.944945584736789},{"$f":"'Population 2016'!F192*'Prevalence Rates'!F192","v":17.653921552759723},{"$f":"'Population 2016'!G192*'Prevalence Rates'!G192","v":9.9810157188747546},{"$f":"'Population 2016'!H192*'Prevalence Rates'!H192","v":21.33442109909479},{"$f":"'Population 2016'!I192*'Prevalence Rates'!I192","v":17.404396159787854},{"$f":"'Population 2016'!J192*'Prevalence Rates'!J192","v":13.536752568723886},{"$f":"'Population 2016'!K192*'Prevalence Rates'!K192","v":2.8071606709335248},{"$f":"'Population 2016'!L192*'Prevalence Rates'!L192","v":10.667210549547395},{"$f":"'Population 2016'!M192*'Prevalence Rates'!M192","v":10.667210549547395},{"$f":"'Population 2016'!N192*'Prevalence Rates'!N192","v":11.665312121434869},{"$f":"'Population 2016'!O192*'Prevalence Rates'!O192","v":4.4290757252506729},{"$f":"'Population 2016'!P192*'Prevalence Rates'!P192","v":8.0471939233427712},{"$f":"'Population 2016'!Q192*'Prevalence Rates'!Q192","v":8.0471939233427712},{"$f":"'Population 2016'!R192*'Prevalence Rates'!R192","v":10.480066504818494},{"$f":"'Population 2016'!S192*'Prevalence Rates'!S192","v":88.581514505013445},{"$f":"'Population 2016'!T192*'Prevalence Rates'!T192","v":30.754004683782838},{"$f":"'Population 2016'!U192*'Prevalence Rates'!U192","v":0.68619483067263942},{"$f":"'Population 2016'!V192*'Prevalence Rates'!V192","v":10.791973246033329},{"$f":"'Population 2016'!W192*'Prevalence Rates'!W192","v":25.389208734887657},{"$f":"'Population 2016'!X192*'Prevalence Rates'!X192","v":25.389208734887657},{"$f":"'Population 2016'!Y192*'Prevalence Rates'!Y192","v":24.328725814757217},{"$f":"'Population 2016'!Z192*'Prevalence Rates'!Z192","v":17.092489418573017},{"$f":"'Population 2016'!AA192*'Prevalence Rates'!AA192","v":73.921897667916156},{"$f":"'Population 2016'!AB192*'Prevalence Rates'!AB192","v":49.281265111944101},{"$f":"'Population 2016'!AC192*'Prevalence Rates'!AC192","v":53.772722185437743},{"$f":"'Population 2016'!AD192*'Prevalence Rates'!AD192","v":40.672639054414624},{"$f":"'Population 2016'!AE192*'Prevalence Rates'!AE192","v":30.691623335539873},{"$f":"'Population 2016'!AF192*'Prevalence Rates'!AF192","v":4.6786011182225415},{"$f":"'Population 2016'!AG192*'Prevalence Rates'!AG192","v":30.691623335539873},{"$f":"'Population 2016'!AH192*'Prevalence Rates'!AH192","v":20.149175482478412},{"$f":"'Population 2016'!AI192*'Prevalence Rates'!AI192","v":45.787909610337941},{"$f":"'Population 2016'!AJ192*'Prevalence Rates'!AJ192","v":4.4290757252506729},{"$f":"'Population 2016'!AK192*'Prevalence Rates'!AK192","v":12.289125603864543},{"$f":"'Population 2016'!AL192*'Prevalence Rates'!AL192","v":9.3572022364450831},{"$f":"'Population 2016'!AM192*'Prevalence Rates'!AM192","v":4.9281265111944101},{"$f":"'Population 2016'!AN192*'Prevalence Rates'!AN192","v":2.9943047156624267},{"$f":"'Population 2016'!AO192*'Prevalence Rates'!AO192","v":2.9943047156624267},{"$f":"'Population 2016'!AP192*'Prevalence Rates'!AP192","v":28.321132102307118},{"$f":"'Population 2016'!AQ192*'Prevalence Rates'!AQ192","v":10.043397067117722},{"$f":"'Population 2016'!AR192*'Prevalence Rates'!AR192","v":374.16332676131736},{"$f":"'Population 2016'!AS192*'Prevalence Rates'!AS192","v":17.404396159787854},{"$f":"'Population 2016'!AT192*'Prevalence Rates'!AT192","v":4.0547876357928692},{"$f":"'Population 2016'!AU192*'Prevalence Rates'!AU192","v":4.0547876357928692},{"$f":"'Population 2016'!AV192*'Prevalence Rates'!AV192","v":7.5481431373990331},{"$f":"'Population 2016'!AW192*'Prevalence Rates'!AW192","v":15.221048971284002},{"$f":"'Population 2016'!AX192*'Prevalence Rates'!AX192","v":10.729591897790362},{"$f":"'Population 2016'!AY192*'Prevalence Rates'!AY192","v":83.02957451138937},{"$f":"'Population 2016'!AZ192*'Prevalence Rates'!AZ192","v":57.64036577650171},{"$f":"'Population 2016'!BA192*'Prevalence Rates'!BA192","v":3.4309741533631972},{"$f":"'Population 2016'!BB192*'Prevalence Rates'!BB192","v":2.5576352779616558},{"$f":"'Population 2016'!BC192*'Prevalence Rates'!BC192","v":0.68619483067263942},190]
[null,"Male 0-4",{"$f":"'Population 2016'!C193*'Prevalence Rates'!C193","v":0},{"$f":"'Population 2016'!D193*'Prevalence Rates'!D193","v":0},{"$f":"'Population 2016'!E193*'Prevalence Rates'!E193","v":0},{"$f":"'Population 2016'!F193*'Prevalence Rates'!F193","v":0},{"$f":"'Population 2016'!G193*'Prevalence Rates'!G193","v":0},{"$f":"'Population 2016'!H193*'Prevalence Rates'!H193","v":0},{"$f":"'Population 2016'!I193*'Prevalence Rates'!I193","v":0},{"$f":"'Population 2016'!J193*'Prevalence Rates'!J193","v":0},{"$f":"'Population 2016'!K193*'Prevalence Rates'!K193","v":0},{"$f":"'Population 2016'!L193*'Prevalence Rates'!L193","v":0},{"$f":"'Population 2016'!M193*'Prevalence Rates'!M193","v":0},{"$f":"'Population 2016'!N193*'Prevalence Rates'!N193","v":0},{"$f":"'Population 2016'!O193*'Prevalence Rates'!O193","v":0},{"$f":"'Population 2016'!P193*'Prevalence Rates'!P193","v":0},{"$f":"'Population 2016'!Q193*'Prevalence Rates'!Q193","v":0},{"$f":"'Population 2016'!R193*'Prevalence Rates'!R193","v":0},{"$f":"'Population 2016'!S193*'Prevalence Rates'!S193","v":0},{"$f":"'Population 2016'!T193*'Prevalence Rates'!T193","v":0},{"$f":"'Population 2016'!U193*'Prevalence Rates'!U193","v":0},{"$f":"'Population 2016'!V193*'Prevalence Rates'!V193","v":0},{"$f":"'Population 2016'!W193*'Prevalence Rates'!W193","v":0},{"$f":"'Population 2016'!X193*'Prevalence Rates'!X193","v":0},{"$f":"'Population 2016'!Y193*'Prevalence Rates'!Y193","v":0},{"$f":"'Population 2016'!Z193*'Prevalence Rates'!Z193","v":0},{"$f":"'Population 2016'!AA193*'Prevalence Rates'!AA193","v":0},{"$f":"'Population 2016'!AB193*'Prevalence Rates'!AB193","v":0},{"$f":"'Population 2016'!AC193*'Prevalence Rates'!AC193","v":0},{"$f":"'Population 2016'!AD193*'Prevalence Rates'!AD193","v":0},{"$f":"'Population 2016'!AE193*'Prevalence Rates'!AE193","v":0},{"$f":"'Population 2016'!AF193*'Prevalence Rates'!AF193","v":0},{"$f":"'Population 2016'!AG193*'Prevalence Rates'!AG193","v":0},{"$f":"'Population 2016'!AH193*'Prevalence Rates'!AH193","v":0},{"$f":"'Population 2016'!AI193*'Prevalence Rates'!AI193","v":0},{"$f":"'Population 2016'!AJ193*'Prevalence Rates'!AJ193","v":0},{"$f":"'Population 2016'!AK193*'Prevalence Rates'!AK193","v":0},{"$f":"'Population 2016'!AL193*'Prevalence Rates'!AL193","v":0},{"$f":"'Population 2016'!AM193*'Prevalence Rates'!AM193","v":0},{"$f":"'Population 2016'!AN193*'Prevalence Rates'!AN193","v":0},{"$f":"'Population 2016'!AO193*'Prevalence Rates'!AO193","v":0},{"$f":"'Population 2016'!AP193*'Prevalence Rates'!AP193","v":0},{"$f":"'Population 2016'!AQ193*'Prevalence Rates'!AQ193","v":0},{"$f":"'Population 2016'!AR193*'Prevalence Rates'!AR193","v":0},{"$f":"'Population 2016'!AS193*'Prevalence Rates'!AS193","v":0},{"$f":"'Population 2016'!AT193*'Prevalence Rates'!AT193","v":0},{"$f":"'Population 2016'!AU193*'Prevalence Rates'!AU193","v":0},{"$f":"'Population 2016'!AV193*'Prevalence Rates'!AV193","v":0},{"$f":"'Population 2016'!AW193*'Prevalence Rates'!AW193","v":0},{"$f":"'Population 2016'!AX193*'Prevalence Rates'!AX193","v":0},{"$f":"'Population 2016'!AY193*'Prevalence Rates'!AY193","v":0},{"$f":"'Population 2016'!AZ193*'Prevalence Rates'!AZ193","v":0},{"$f":"'Population 2016'!BA193*'Prevalence Rates'!BA193","v":0},{"$f":"'Population 2016'!BB193*'Prevalence Rates'!BB193","v":0},{"$f":"'Population 2016'!BC193*'Prevalence Rates'!BC193","v":0},191]
[null,"Male 5-9",{"$f":"'Population 2016'!C194*'Prevalence Rates'!C194","v":0},{"$f":"'Population 2016'!D194*'Prevalence Rates'!D194","v":0},{"$f":"'Population 2016'!E194*'Prevalence Rates'!E194","v":0},{"$f":"'Population 2016'!F194*'Prevalence Rates'!F194","v":0},{"$f":"'Population 2016'!G194*'Prevalence Rates'!G194","v":0},{"$f":"'Population 2016'!H194*'Prevalence Rates'!H194","v":0},{"$f":"'Population 2016'!I194*'Prevalence Rates'!I194","v":0},{"$f":"'Population 2016'!J194*'Prevalence Rates'!J194","v":0},{"$f":"'Population 2016'!K194*'Prevalence Rates'!K194","v":0},{"$f":"'Population 2016'!L194*'Prevalence Rates'!L194","v":0},{"$f":"'Population 2016'!M194*'Prevalence Rates'!M194","v":0},{"$f":"'Population 2016'!N194*'Prevalence Rates'!N194","v":0},{"$f":"'Population 2016'!O194*'Prevalence Rates'!O194","v":0},{"$f":"'Population 2016'!P194*'Prevalence Rates'!P194","v":0},{"$f":"'Population 2016'!Q194*'Prevalence Rates'!Q194","v":0},{"$f":"'Population 2016'!R194*'Prevalence Rates'!R194","v":0},{"$f":"'Population 2016'!S194*'Prevalence Rates'!S194","v":0},{"$f":"'Population 2016'!T194*'Prevalence Rates'!T194","v":0},{"$f":"'Population 2016'!U194*'Prevalence Rates'!U194","v":0},{"$f":"'Population 2016'!V194*'Prevalence Rates'!V194","v":0},{"$f":"'Population 2016'!W194*'Prevalence Rates'!W194","v":0},{"$f":"'Population 2016'!X194*'Prevalence Rates'!X194","v":0},{"$f":"'Population 2016'!Y194*'Prevalence Rates'!Y194","v":0},{"$f":"'Population 2016'!Z194*'Prevalence Rates'!Z194","v":0},{"$f":"'Population 2016'!AA194*'Prevalence Rates'!AA194","v":0},{"$f":"'Population 2016'!AB194*'Prevalence Rates'!AB194","v":0},{"$f":"'Population 2016'!AC194*'Prevalence Rates'!AC194","v":0},{"$f":"'Population 2016'!AD194*'Prevalence Rates'!AD194","v":0},{"$f":"'Population 2016'!AE194*'Prevalence Rates'!AE194","v":0},{"$f":"'Population 2016'!AF194*'Prevalence Rates'!AF194","v":0},{"$f":"'Population 2016'!AG194*'Prevalence Rates'!AG194","v":0},{"$f":"'Population 2016'!AH194*'Prevalence Rates'!AH194","v":0},{"$f":"'Population 2016'!AI194*'Prevalence Rates'!AI194","v":0},{"$f":"'Population 2016'!AJ194*'Prevalence Rates'!AJ194","v":0},{"$f":"'Population 2016'!AK194*'Prevalence Rates'!AK194","v":0},{"$f":"'Population 2016'!AL194*'Prevalence Rates'!AL194","v":0},{"$f":"'Population 2016'!AM194*'Prevalence Rates'!AM194","v":0},{"$f":"'Population 2016'!AN194*'Prevalence Rates'!AN194","v":0},{"$f":"'Population 2016'!AO194*'Prevalence Rates'!AO194","v":0},{"$f":"'Population 2016'!AP194*'Prevalence Rates'!AP194","v":0},{"$f":"'Population 2016'!AQ194*'Prevalence Rates'!AQ194","v":0},{"$f":"'Population 2016'!AR194*'Prevalence Rates'!AR194","v":0},{"$f":"'Population 2016'!AS194*'Prevalence Rates'!AS194","v":0},{"$f":"'Population 2016'!AT194*'Prevalence Rates'!AT194","v":0},{"$f":"'Population 2016'!AU194*'Prevalence Rates'!AU194","v":0},{"$f":"'Population 2016'!AV194*'Prevalence Rates'!AV194","v":0},{"$f":"'Population 2016'!AW194*'Prevalence Rates'!AW194","v":0},{"$f":"'Population 2016'!AX194*'Prevalence Rates'!AX194","v":0},{"$f":"'Population 2016'!AY194*'Prevalence Rates'!AY194","v":0},{"$f":"'Population 2016'!AZ194*'Prevalence Rates'!AZ194","v":0},{"$f":"'Population 2016'!BA194*'Prevalence Rates'!BA194","v":0},{"$f":"'Population 2016'!BB194*'Prevalence Rates'!BB194","v":0},{"$f":"'Population 2016'!BC194*'Prevalence Rates'!BC194","v":0},192]
[null,"Male 10-15",{"$f":"'Population 2016'!C195*'Prevalence Rates'!C195","v":0},{"$f":"'Population 2016'!D195*'Prevalence Rates'!D195","v":0},{"$f":"'Population 2016'!E195*'Prevalence Rates'!E195","v":0},{"$f":"'Population 2016'!F195*'Prevalence Rates'!F195","v":0},{"$f":"'Population 2016'!G195*'Prevalence Rates'!G195","v":0},{"$f":"'Population 2016'!H195*'Prevalence Rates'!H195","v":0},{"$f":"'Population 2016'!I195*'Prevalence Rates'!I195","v":0},{"$f":"'Population 2016'!J195*'Prevalence Rates'!J195","v":0},{"$f":"'Population 2016'!K195*'Prevalence Rates'!K195","v":0},{"$f":"'Population 2016'!L195*'Prevalence Rates'!L195","v":0},{"$f":"'Population 2016'!M195*'Prevalence Rates'!M195","v":0},{"$f":"'Population 2016'!N195*'Prevalence Rates'!N195","v":0},{"$f":"'Population 2016'!O195*'Prevalence Rates'!O195","v":0},{"$f":"'Population 2016'!P195*'Prevalence Rates'!P195","v":0},{"$f":"'Population 2016'!Q195*'Prevalence Rates'!Q195","v":0},{"$f":"'Population 2016'!R195*'Prevalence Rates'!R195","v":0},{"$f":"'Population 2016'!S195*'Prevalence Rates'!S195","v":0},{"$f":"'Population 2016'!T195*'Prevalence Rates'!T195","v":0},{"$f":"'Population 2016'!U195*'Prevalence Rates'!U195","v":0},{"$f":"'Population 2016'!V195*'Prevalence Rates'!V195","v":0},{"$f":"'Population 2016'!W195*'Prevalence Rates'!W195","v":0},{"$f":"'Population 2016'!X195*'Prevalence Rates'!X195","v":0},{"$f":"'Population 2016'!Y195*'Prevalence Rates'!Y195","v":0},{"$f":"'Population 2016'!Z195*'Prevalence Rates'!Z195","v":0},{"$f":"'Population 2016'!AA195*'Prevalence Rates'!AA195","v":0},{"$f":"'Population 2016'!AB195*'Prevalence Rates'!AB195","v":0},{"$f":"'Population 2016'!AC195*'Prevalence Rates'!AC195","v":0},{"$f":"'Population 2016'!AD195*'Prevalence Rates'!AD195","v":0},{"$f":"'Population 2016'!AE195*'Prevalence Rates'!AE195","v":0},{"$f":"'Population 2016'!AF195*'Prevalence Rates'!AF195","v":0},{"$f":"'Population 2016'!AG195*'Prevalence Rates'!AG195","v":0},{"$f":"'Population 2016'!AH195*'Prevalence Rates'!AH195","v":0},{"$f":"'Population 2016'!AI195*'Prevalence Rates'!AI195","v":0},{"$f":"'Population 2016'!AJ195*'Prevalence Rates'!AJ195","v":0},{"$f":"'Population 2016'!AK195*'Prevalence Rates'!AK195","v":0},{"$f":"'Population 2016'!AL195*'Prevalence Rates'!AL195","v":0},{"$f":"'Population 2016'!AM195*'Prevalence Rates'!AM195","v":0},{"$f":"'Population 2016'!AN195*'Prevalence Rates'!AN195","v":0},{"$f":"'Population 2016'!AO195*'Prevalence Rates'!AO195","v":0},{"$f":"'Population 2016'!AP195*'Prevalence Rates'!AP195","v":0},{"$f":"'Population 2016'!AQ195*'Prevalence Rates'!AQ195","v":0},{"$f":"'Population 2016'!AR195*'Prevalence Rates'!AR195","v":0},{"$f":"'Population 2016'!AS195*'Prevalence Rates'!AS195","v":0},{"$f":"'Population 2016'!AT195*'Prevalence Rates'!AT195","v":0},{"$f":"'Population 2016'!AU195*'Prevalence Rates'!AU195","v":0},{"$f":"'Population 2016'!AV195*'Prevalence Rates'!AV195","v":0},{"$f":"'Population 2016'!AW195*'Prevalence Rates'!AW195","v":0},{"$f":"'Population 2016'!AX195*'Prevalence Rates'!AX195","v":0},{"$f":"'Population 2016'!AY195*'Prevalence Rates'!AY195","v":0},{"$f":"'Population 2016'!AZ195*'Prevalence Rates'!AZ195","v":0},{"$f":"'Population 2016'!BA195*'Prevalence Rates'!BA195","v":0},{"$f":"'Population 2016'!BB195*'Prevalence Rates'!BB195","v":0},{"$f":"'Population 2016'!BC195*'Prevalence Rates'!BC195","v":0},193]
[null,"Male 16-19",{"$f":"'Population 2016'!C196*'Prevalence Rates'!C196","v":84.651610538985253},{"$f":"'Population 2016'!D196*'Prevalence Rates'!D196","v":297.45635369948985},{"$f":"'Population 2016'!E196*'Prevalence Rates'!E196","v":212.80474316050459},{"$f":"'Population 2016'!F196*'Prevalence Rates'!F196","v":68.877409964012301},{"$f":"'Population 2016'!G196*'Prevalence Rates'!G196","v":49.576058949914973},{"$f":"'Population 2016'!H196*'Prevalence Rates'!H196","v":119.9231149302291},{"$f":"'Population 2016'!I196*'Prevalence Rates'!I196","v":83.279940923770212},{"$f":"'Population 2016'!J196*'Prevalence Rates'!J196","v":86.905067763981378},{"$f":"'Population 2016'!K196*'Prevalence Rates'!K196","v":22.53457224996135},{"$f":"'Population 2016'!L196*'Prevalence Rates'!L196","v":51.927492575997896},{"$f":"'Population 2016'!M196*'Prevalence Rates'!M196","v":51.927492575997896},{"$f":"'Population 2016'!N196*'Prevalence Rates'!N196","v":74.853970430306404},{"$f":"'Population 2016'!O196*'Prevalence Rates'!O196","v":35.271504391243852},{"$f":"'Population 2016'!P196*'Prevalence Rates'!P196","v":44.089380489054818},{"$f":"'Population 2016'!Q196*'Prevalence Rates'!Q196","v":72.600513205310264},{"$f":"'Population 2016'!R196*'Prevalence Rates'!R196","v":34.389716781462759},{"$f":"'Population 2016'!S196*'Prevalence Rates'!S196","v":506.04811161326251},{"$f":"'Population 2016'!T196*'Prevalence Rates'!T196","v":122.96038336391955},{"$f":"'Population 2016'!U196*'Prevalence Rates'!U196","v":3.4291740380375968},{"$f":"'Population 2016'!V196*'Prevalence Rates'!V196","v":80.04671968790619},{"$f":"'Population 2016'!W196*'Prevalence Rates'!W196","v":136.48112671389634},{"$f":"'Population 2016'!X196*'Prevalence Rates'!X196","v":136.48112671389634},{"$f":"'Population 2016'!Y196*'Prevalence Rates'!Y196","v":166.95178745188758},{"$f":"'Population 2016'!Z196*'Prevalence Rates'!Z196","v":126.87943940739109},{"$f":"'Population 2016'!AA196*'Prevalence Rates'!AA196","v":601.37914987070769},{"$f":"'Population 2016'!AB196*'Prevalence Rates'!AB196","v":379.07069580478463},{"$f":"'Population 2016'!AC196*'Prevalence Rates'!AC196","v":335.47119732116374},{"$f":"'Population 2016'!AD196*'Prevalence Rates'!AD196","v":230.34251895503974},{"$f":"'Population 2016'!AE196*'Prevalence Rates'!AE196","v":180.76646000512474},{"$f":"'Population 2016'!AF196*'Prevalence Rates'!AF196","v":38.798654830368243},{"$f":"'Population 2016'!AG196*'Prevalence Rates'!AG196","v":180.76646000512474},{"$f":"'Population 2016'!AH196*'Prevalence Rates'!AH196","v":265.90795254954395},{"$f":"'Population 2016'!AI196*'Prevalence Rates'!AI196","v":286.28704397559596},{"$f":"'Population 2016'!AJ196*'Prevalence Rates'!AJ196","v":26.943510298866833},{"$f":"'Population 2016'!AK196*'Prevalence Rates'!AK196","v":81.61434210529481},{"$f":"'Population 2016'!AL196*'Prevalence Rates'!AL196","v":50.555822960782855},{"$f":"'Population 2016'!AM196*'Prevalence Rates'!AM196","v":112.67286124980676},{"$f":"'Population 2016'!AN196*'Prevalence Rates'!AN196","v":24.200171068436756},{"$f":"'Population 2016'!AO196*'Prevalence Rates'!AO196","v":24.200171068436756},{"$f":"'Population 2016'!AP196*'Prevalence Rates'!AP196","v":159.50558096929166},{"$f":"'Population 2016'!AQ196*'Prevalence Rates'!AQ196","v":69.465268370533039},{"$f":"'Population 2016'!AR196*'Prevalence Rates'!AR196","v":2423.1523516784528},{"$f":"'Population 2016'!AS196*'Prevalence Rates'!AS196","v":83.279940923770212},{"$f":"'Population 2016'!AT196*'Prevalence Rates'!AT196","v":36.643174006458892},{"$f":"'Population 2016'!AU196*'Prevalence Rates'!AU196","v":36.643174006458892},{"$f":"'Population 2016'!AV196*'Prevalence Rates'!AV196","v":34.09578757820239},{"$f":"'Population 2016'!AW196*'Prevalence Rates'!AW196","v":153.23509129973718},{"$f":"'Population 2016'!AX196*'Prevalence Rates'!AX196","v":64.370495514020035},{"$f":"'Population 2016'!AY196*'Prevalence Rates'!AY196","v":439.71808807750671},{"$f":"'Population 2016'!AZ196*'Prevalence Rates'!AZ196","v":303.23696136361036},{"$f":"'Population 2016'!BA196*'Prevalence Rates'!BA196","v":21.848737442353833},{"$f":"'Population 2016'!BB196*'Prevalence Rates'!BB196","v":63.782637107499305},{"$f":"'Population 2016'!BC196*'Prevalence Rates'!BC196","v":3.4291740380375968},194]
[null,"Male 20-24",{"$f":"'Population 2016'!C197*'Prevalence Rates'!C197","v":209.76747472681416},{"$f":"'Population 2016'!D197*'Prevalence Rates'!D197","v":449.4177517850988},{"$f":"'Population 2016'!E197*'Prevalence Rates'!E197","v":239.65027705828464},{"$f":"'Population 2016'!F197*'Prevalence Rates'!F197","v":82.398153313989113},{"$f":"'Population 2016'!G197*'Prevalence Rates'!G197","v":55.454643015122279},{"$f":"'Population 2016'!H197*'Prevalence Rates'!H197","v":130.30861344542868},{"$f":"'Population 2016'!I197*'Prevalence Rates'!I197","v":86.219232956373872},{"$f":"'Population 2016'!J197*'Prevalence Rates'!J197","v":126.29158100087035},{"$f":"'Population 2016'!K197*'Prevalence Rates'!K197","v":29.490896727123335},{"$f":"'Population 2016'!L197*'Prevalence Rates'!L197","v":62.900849497718205},{"$f":"'Population 2016'!M197*'Prevalence Rates'!M197","v":62.900849497718205},{"$f":"'Population 2016'!N197*'Prevalence Rates'!N197","v":163.52261341384997},{"$f":"'Population 2016'!O197*'Prevalence Rates'!O197","v":39.386513236888973},{"$f":"'Population 2016'!P197*'Prevalence Rates'!P197","v":58.491911448812722},{"$f":"'Population 2016'!Q197*'Prevalence Rates'!Q197","v":91.216029411800079},{"$f":"'Population 2016'!R197*'Prevalence Rates'!R197","v":35.173527990157069},{"$f":"'Population 2016'!S197*'Prevalence Rates'!S197","v":754.71221757153171},{"$f":"'Population 2016'!T197*'Prevalence Rates'!T197","v":290.30407642015427},{"$f":"'Population 2016'!U197*'Prevalence Rates'!U197","v":4.6048908510790589},{"$f":"'Population 2016'!V197*'Prevalence Rates'!V197","v":93.665439438969784},{"$f":"'Population 2016'!W197*'Prevalence Rates'!W197","v":178.51300278012863},{"$f":"'Population 2016'!X197*'Prevalence Rates'!X197","v":178.51300278012863},{"$f":"'Population 2016'!Y197*'Prevalence Rates'!Y197","v":219.95702043984014},{"$f":"'Population 2016'!Z197*'Prevalence Rates'!Z197","v":414.14624739385494},{"$f":"'Population 2016'!AA197*'Prevalence Rates'!AA197","v":987.70009935591474},{"$f":"'Population 2016'!AB197*'Prevalence Rates'!AB197","v":551.90106732187951},{"$f":"'Population 2016'!AC197*'Prevalence Rates'!AC197","v":670.25655983472006},{"$f":"'Population 2016'!AD197*'Prevalence Rates'!AD197","v":255.91435963869151},{"$f":"'Population 2016'!AE197*'Prevalence Rates'!AE197","v":200.45971662356925},{"$f":"'Population 2016'!AF197*'Prevalence Rates'!AF197","v":40.660206451017224},{"$f":"'Population 2016'!AG197*'Prevalence Rates'!AG197","v":200.45971662356925},{"$f":"'Population 2016'!AH197*'Prevalence Rates'!AH197","v":317.44353952119468},{"$f":"'Population 2016'!AI197*'Prevalence Rates'!AI197","v":489.97998183502921},{"$f":"'Population 2016'!AJ197*'Prevalence Rates'!AJ197","v":29.294943924949756},{"$f":"'Population 2016'!AK197*'Prevalence Rates'!AK197","v":102.48331553678075},{"$f":"'Population 2016'!AL197*'Prevalence Rates'!AL197","v":57.41417103685805},{"$f":"'Population 2016'!AM197*'Prevalence Rates'!AM197","v":148.04234204213739},{"$f":"'Population 2016'!AN197*'Prevalence Rates'!AN197","v":25.375887881478217},{"$f":"'Population 2016'!AO197*'Prevalence Rates'!AO197","v":25.375887881478217},{"$f":"'Population 2016'!AP197*'Prevalence Rates'!AP197","v":168.22548066601584},{"$f":"'Population 2016'!AQ197*'Prevalence Rates'!AQ197","v":89.648406994411459},{"$f":"'Population 2016'!AR197*'Prevalence Rates'!AR197","v":3451.5126574853848},{"$f":"'Population 2016'!AS197*'Prevalence Rates'!AS197","v":86.219232956373872},{"$f":"'Population 2016'!AT197*'Prevalence Rates'!AT197","v":43.991404087968029},{"$f":"'Population 2016'!AU197*'Prevalence Rates'!AU197","v":43.991404087968029},{"$f":"'Population 2016'!AV197*'Prevalence Rates'!AV197","v":33.50792917168166},{"$f":"'Population 2016'!AW197*'Prevalence Rates'!AW197","v":169.40119747905729},{"$f":"'Population 2016'!AX197*'Prevalence Rates'!AX197","v":96.800684273747024},{"$f":"'Population 2016'!AY197*'Prevalence Rates'!AY197","v":592.65925017398354},{"$f":"'Population 2016'!AZ197*'Prevalence Rates'!AZ197","v":414.14624739385494},{"$f":"'Population 2016'!BA197*'Prevalence Rates'!BA197","v":32.136259556466619},{"$f":"'Population 2016'!BB197*'Prevalence Rates'!BB197","v":79.164932078125091},{"$f":"'Population 2016'!BC197*'Prevalence Rates'!BC197","v":4.6048908510790589},195]
[null,"Male 25-29",{"$f":"'Population 2016'!C198*'Prevalence Rates'!C198","v":237.59277263546207},{"$f":"'Population 2016'!D198*'Prevalence Rates'!D198","v":477.1450732926599},{"$f":"'Population 2016'!E198*'Prevalence Rates'!E198","v":239.55230065719783},{"$f":"'Population 2016'!F198*'Prevalence Rates'!F198","v":68.38752795857836},{"$f":"'Population 2016'!G198*'Prevalence Rates'!G198","v":45.0691444999227},{"$f":"'Population 2016'!H198*'Prevalence Rates'!H198","v":115.90608248567078},{"$f":"'Population 2016'!I198*'Prevalence Rates'!I198","v":69.07336276618588},{"$f":"'Population 2016'!J198*'Prevalence Rates'!J198","v":90.432218203105776},{"$f":"'Population 2016'!K198*'Prevalence Rates'!K198","v":24.494100271697121},{"$f":"'Population 2016'!L198*'Prevalence Rates'!L198","v":59.471675459680611},{"$f":"'Population 2016'!M198*'Prevalence Rates'!M198","v":59.471675459680611},{"$f":"'Population 2016'!N198*'Prevalence Rates'!N198","v":107.48011199220697},{"$f":"'Population 2016'!O198*'Prevalence Rates'!O198","v":38.798654830368243},{"$f":"'Population 2016'!P198*'Prevalence Rates'!P198","v":46.146884911877379},{"$f":"'Population 2016'!Q198*'Prevalence Rates'!Q198","v":64.272519112933239},{"$f":"'Population 2016'!R198*'Prevalence Rates'!R198","v":37.133056011892833},{"$f":"'Population 2016'!S198*'Prevalence Rates'!S198","v":836.22858327573977},{"$f":"'Population 2016'!T198*'Prevalence Rates'!T198","v":430.50830637534858},{"$f":"'Population 2016'!U198*'Prevalence Rates'!U198","v":2.4494100271697121},{"$f":"'Population 2016'!V198*'Prevalence Rates'!V198","v":76.715522050955386},{"$f":"'Population 2016'!W198*'Prevalence Rates'!W198","v":155.97843053016726},{"$f":"'Population 2016'!X198*'Prevalence Rates'!X198","v":155.97843053016726},{"$f":"'Population 2016'!Y198*'Prevalence Rates'!Y198","v":167.14774025406115},{"$f":"'Population 2016'!Z198*'Prevalence Rates'!Z198","v":397.78418841236123},{"$f":"'Population 2016'!AA198*'Prevalence Rates'!AA198","v":922.83972183646074},{"$f":"'Population 2016'!AB198*'Prevalence Rates'!AB198","v":569.63479591858822},{"$f":"'Population 2016'!AC198*'Prevalence Rates'!AC198","v":640.2757811021628},{"$f":"'Population 2016'!AD198*'Prevalence Rates'!AD198","v":242.58956909088829},{"$f":"'Population 2016'!AE198*'Prevalence Rates'!AE198","v":197.52042459096558},{"$f":"'Population 2016'!AF198*'Prevalence Rates'!AF198","v":32.234235957553409},{"$f":"'Population 2016'!AG198*'Prevalence Rates'!AG198","v":197.52042459096558},{"$f":"'Population 2016'!AH198*'Prevalence Rates'!AH198","v":282.563940734298},{"$f":"'Population 2016'!AI198*'Prevalence Rates'!AI198","v":611.17678997938651},{"$f":"'Population 2016'!AJ198*'Prevalence Rates'!AJ198","v":32.234235957553409},{"$f":"'Population 2016'!AK198*'Prevalence Rates'!AK198","v":92.489722625928323},{"$f":"'Population 2016'!AL198*'Prevalence Rates'!AL198","v":43.795451285794449},{"$f":"'Population 2016'!AM198*'Prevalence Rates'!AM198","v":126.78146300630429},{"$f":"'Population 2016'!AN198*'Prevalence Rates'!AN198","v":24.788029474957487},{"$f":"'Population 2016'!AO198*'Prevalence Rates'!AO198","v":24.788029474957487},{"$f":"'Population 2016'!AP198*'Prevalence Rates'!AP198","v":141.67387597149616},{"$f":"'Population 2016'!AQ198*'Prevalence Rates'!AQ198","v":94.939132653098042},{"$f":"'Population 2016'!AR198*'Prevalence Rates'!AR198","v":3303.568291844334},{"$f":"'Population 2016'!AS198*'Prevalence Rates'!AS198","v":69.07336276618588},{"$f":"'Population 2016'!AT198*'Prevalence Rates'!AT198","v":44.971168098835911},{"$f":"'Population 2016'!AU198*'Prevalence Rates'!AU198","v":44.971168098835911},{"$f":"'Population 2016'!AV198*'Prevalence Rates'!AV198","v":33.311976369508088},{"$f":"'Population 2016'!AW198*'Prevalence Rates'!AW198","v":155.78247772799369},{"$f":"'Population 2016'!AX198*'Prevalence Rates'!AX198","v":65.938117931408655},{"$f":"'Population 2016'!AY198*'Prevalence Rates'!AY198","v":473.51994645244872},{"$f":"'Population 2016'!AZ198*'Prevalence Rates'!AZ198","v":317.54151592228146},{"$f":"'Population 2016'!BA198*'Prevalence Rates'!BA198","v":32.038283155379837},{"$f":"'Population 2016'!BB198*'Prevalence Rates'!BB198","v":84.161728533551312},{"$f":"'Population 2016'!BC198*'Prevalence Rates'!BC198","v":2.4494100271697121},196]
[null,"Male 30-34",{"$f":"'Population 2016'!C199*'Prevalence Rates'!C199","v":175.67168714861174},{"$f":"'Population 2016'!D199*'Prevalence Rates'!D199","v":434.52533881990695},{"$f":"'Population 2016'!E199*'Prevalence Rates'!E199","v":258.85365167129515},{"$f":"'Population 2016'!F199*'Prevalence Rates'!F199","v":66.721929140102958},{"$f":"'Population 2016'!G199*'Prevalence Rates'!G199","v":39.190560434715394},{"$f":"'Population 2016'!H199*'Prevalence Rates'!H199","v":109.7335692172031},{"$f":"'Population 2016'!I199*'Prevalence Rates'!I199","v":69.661221172706618},{"$f":"'Population 2016'!J199*'Prevalence Rates'!J199","v":84.455657736811673},{"$f":"'Population 2016'!K199*'Prevalence Rates'!K199","v":30.470660737991217},{"$f":"'Population 2016'!L199*'Prevalence Rates'!L199","v":62.802873096631416},{"$f":"'Population 2016'!M199*'Prevalence Rates'!M199","v":62.802873096631416},{"$f":"'Population 2016'!N199*'Prevalence Rates'!N199","v":68.191575156404781},{"$f":"'Population 2016'!O199*'Prevalence Rates'!O199","v":41.248064857537955},{"$f":"'Population 2016'!P199*'Prevalence Rates'!P199","v":41.737946862971896},{"$f":"'Population 2016'!Q199*'Prevalence Rates'!Q199","v":67.70169315097084},{"$f":"'Population 2016'!R199*'Prevalence Rates'!R199","v":29.09899112277618},{"$f":"'Population 2016'!S199*'Prevalence Rates'!S199","v":847.98575140615435},{"$f":"'Population 2016'!T199*'Prevalence Rates'!T199","v":407.77778132321367},{"$f":"'Population 2016'!U199*'Prevalence Rates'!U199","v":2.2534572249961351},{"$f":"'Population 2016'!V199*'Prevalence Rates'!V199","v":79.458861281385467},{"$f":"'Population 2016'!W199*'Prevalence Rates'!W199","v":156.07640693125404},{"$f":"'Population 2016'!X199*'Prevalence Rates'!X199","v":156.07640693125404},{"$f":"'Population 2016'!Y199*'Prevalence Rates'!Y199","v":163.91451901819713},{"$f":"'Population 2016'!Z199*'Prevalence Rates'!Z199","v":329.59261325595645},{"$f":"'Population 2016'!AA199*'Prevalence Rates'!AA199","v":852.10076025179944},{"$f":"'Population 2016'!AB199*'Prevalence Rates'!AB199","v":528.68066026431063},{"$f":"'Population 2016'!AC199*'Prevalence Rates'!AC199","v":534.4612679284312},{"$f":"'Population 2016'!AD199*'Prevalence Rates'!AD199","v":245.82279032675231},{"$f":"'Population 2016'!AE199*'Prevalence Rates'!AE199","v":206.63222989203692},{"$f":"'Population 2016'!AF199*'Prevalence Rates'!AF199","v":34.29174038037597},{"$f":"'Population 2016'!AG199*'Prevalence Rates'!AG199","v":206.63222989203692},{"$f":"'Population 2016'!AH199*'Prevalence Rates'!AH199","v":317.63949232336824},{"$f":"'Population 2016'!AI199*'Prevalence Rates'!AI199","v":622.24812330219368},{"$f":"'Population 2016'!AJ199*'Prevalence Rates'!AJ199","v":37.818890819500353},{"$f":"'Population 2016'!AK199*'Prevalence Rates'!AK199","v":94.155321444403739},{"$f":"'Population 2016'!AL199*'Prevalence Rates'!AL199","v":37.133056011892833},{"$f":"'Population 2016'!AM199*'Prevalence Rates'!AM199","v":137.85279632911138},{"$f":"'Population 2016'!AN199*'Prevalence Rates'!AN199","v":24.788029474957487},{"$f":"'Population 2016'!AO199*'Prevalence Rates'!AO199","v":24.788029474957487},{"$f":"'Population 2016'!AP199*'Prevalence Rates'!AP199","v":156.07640693125404},{"$f":"'Population 2016'!AQ199*'Prevalence Rates'!AQ199","v":74.755994029219607},{"$f":"'Population 2016'!AR199*'Prevalence Rates'!AR199","v":3169.1446695532604},{"$f":"'Population 2016'!AS199*'Prevalence Rates'!AS199","v":69.661221172706618},{"$f":"'Population 2016'!AT199*'Prevalence Rates'!AT199","v":40.072348044496486},{"$f":"'Population 2016'!AU199*'Prevalence Rates'!AU199","v":40.072348044496486},{"$f":"'Population 2016'!AV199*'Prevalence Rates'!AV199","v":31.352448347772317},{"$f":"'Population 2016'!AW199*'Prevalence Rates'!AW199","v":179.78669599425686},{"$f":"'Population 2016'!AX199*'Prevalence Rates'!AX199","v":53.984996998820456},{"$f":"'Population 2016'!AY199*'Prevalence Rates'!AY199","v":447.06631815901585},{"$f":"'Population 2016'!AZ199*'Prevalence Rates'!AZ199","v":290.98991122776181},{"$f":"'Population 2016'!BA199*'Prevalence Rates'!BA199","v":24.983982277131062},{"$f":"'Population 2016'!BB199*'Prevalence Rates'!BB199","v":108.94975800850879},{"$f":"'Population 2016'!BC199*'Prevalence Rates'!BC199","v":2.2534572249961351},197]
[null,"Male 35-39",{"$f":"'Population 2016'!C200*'Prevalence Rates'!C200","v":138.14672553237176},{"$f":"'Population 2016'!D200*'Prevalence Rates'!D200","v":430.31235357317502},{"$f":"'Population 2016'!E200*'Prevalence Rates'!E200","v":292.16562804080326},{"$f":"'Population 2016'!F200*'Prevalence Rates'!F200","v":63.684660706412515},{"$f":"'Population 2016'!G200*'Prevalence Rates'!G200","v":48.988200543394242},{"$f":"'Population 2016'!H200*'Prevalence Rates'!H200","v":128.64301462695329},{"$f":"'Population 2016'!I200*'Prevalence Rates'!I200","v":82.594106116162692},{"$f":"'Population 2016'!J200*'Prevalence Rates'!J200","v":99.544023504177105},{"$f":"'Population 2016'!K200*'Prevalence Rates'!K200","v":30.862566342338372},{"$f":"'Population 2016'!L200*'Prevalence Rates'!L200","v":53.593091394473298},{"$f":"'Population 2016'!M200*'Prevalence Rates'!M200","v":53.593091394473298},{"$f":"'Population 2016'!N200*'Prevalence Rates'!N200","v":55.552619416209069},{"$f":"'Population 2016'!O200*'Prevalence Rates'!O200","v":45.85295570861701},{"$f":"'Population 2016'!P200*'Prevalence Rates'!P200","v":41.541994060798316},{"$f":"'Population 2016'!Q200*'Prevalence Rates'!Q200","v":82.202200511815533},{"$f":"'Population 2016'!R200*'Prevalence Rates'!R200","v":34.781622385809911},{"$f":"'Population 2016'!S200*'Prevalence Rates'!S200","v":815.84949184968775},{"$f":"'Population 2016'!T200*'Prevalence Rates'!T200","v":321.06866636140586},{"$f":"'Population 2016'!U200*'Prevalence Rates'!U200","v":4.8988200543394242},{"$f":"'Population 2016'!V200*'Prevalence Rates'!V200","v":91.803887818320803},{"$f":"'Population 2016'!W200*'Prevalence Rates'!W200","v":170.87084349535911},{"$f":"'Population 2016'!X200*'Prevalence Rates'!X200","v":170.87084349535911},{"$f":"'Population 2016'!Y200*'Prevalence Rates'!Y200","v":191.34791132249791},{"$f":"'Population 2016'!Z200*'Prevalence Rates'!Z200","v":244.05921510719011},{"$f":"'Population 2016'!AA200*'Prevalence Rates'!AA200","v":814.96770423990665},{"$f":"'Population 2016'!AB200*'Prevalence Rates'!AB200","v":524.07576941323157},{"$f":"'Population 2016'!AC200*'Prevalence Rates'!AC200","v":456.96193466878151},{"$f":"'Population 2016'!AD200*'Prevalence Rates'!AD200","v":259.63746287998947},{"$f":"'Population 2016'!AE200*'Prevalence Rates'!AE200","v":210.64926233659523},{"$f":"'Population 2016'!AF200*'Prevalence Rates'!AF200","v":33.116023567334508},{"$f":"'Population 2016'!AG200*'Prevalence Rates'!AG200","v":210.64926233659523},{"$f":"'Population 2016'!AH200*'Prevalence Rates'!AH200","v":358.00576957112514},{"$f":"'Population 2016'!AI200*'Prevalence Rates'!AI200","v":562.38454223816586},{"$f":"'Population 2016'!AJ200*'Prevalence Rates'!AJ200","v":46.342837714050951},{"$f":"'Population 2016'!AK200*'Prevalence Rates'!AK200","v":93.763415840056581},{"$f":"'Population 2016'!AL200*'Prevalence Rates'!AL200","v":46.244861312964161},{"$f":"'Population 2016'!AM200*'Prevalence Rates'!AM200","v":149.60996445952603},{"$f":"'Population 2016'!AN200*'Prevalence Rates'!AN200","v":23.612312661916025},{"$f":"'Population 2016'!AO200*'Prevalence Rates'!AO200","v":23.612312661916025},{"$f":"'Population 2016'!AP200*'Prevalence Rates'!AP200","v":156.95819454103514},{"$f":"'Population 2016'!AQ200*'Prevalence Rates'!AQ200","v":81.61434210529481},{"$f":"'Population 2016'!AR200*'Prevalence Rates'!AR200","v":3137.3023392000541},{"$f":"'Population 2016'!AS200*'Prevalence Rates'!AS200","v":82.594106116162692},{"$f":"'Population 2016'!AT200*'Prevalence Rates'!AT200","v":44.48128609340197},{"$f":"'Population 2016'!AU200*'Prevalence Rates'!AU200","v":44.48128609340197},{"$f":"'Population 2016'!AV200*'Prevalence Rates'!AV200","v":36.545197605372103},{"$f":"'Population 2016'!AW200*'Prevalence Rates'!AW200","v":208.39580511159912},{"$f":"'Population 2016'!AX200*'Prevalence Rates'!AX200","v":68.681457161838722},{"$f":"'Population 2016'!AY200*'Prevalence Rates'!AY200","v":447.06631815901585},{"$f":"'Population 2016'!AZ200*'Prevalence Rates'!AZ200","v":276.19547466365674},{"$f":"'Population 2016'!BA200*'Prevalence Rates'!BA200","v":21.848737442353833},{"$f":"'Population 2016'!BB200*'Prevalence Rates'!BB200","v":112.77083765089354},{"$f":"'Population 2016'!BC200*'Prevalence Rates'!BC200","v":4.8988200543394242},198]
[null,"Male 40-44",{"$f":"'Population 2016'!C201*'Prevalence Rates'!C201","v":115.80810608458398},{"$f":"'Population 2016'!D201*'Prevalence Rates'!D201","v":438.15046566011807},{"$f":"'Population 2016'!E201*'Prevalence Rates'!E201","v":322.34235957553409},{"$f":"'Population 2016'!F201*'Prevalence Rates'!F201","v":75.245876034653548},{"$f":"'Population 2016'!G201*'Prevalence Rates'!G201","v":61.333227080329593},{"$f":"'Population 2016'!H201*'Prevalence Rates'!H201","v":153.52902050299755},{"$f":"'Population 2016'!I201*'Prevalence Rates'!I201","v":107.38213559112017},{"$f":"'Population 2016'!J201*'Prevalence Rates'!J201","v":110.6153568269842},{"$f":"'Population 2016'!K201*'Prevalence Rates'!K201","v":33.311976369508088},{"$f":"'Population 2016'!L201*'Prevalence Rates'!L201","v":69.857173974880183},{"$f":"'Population 2016'!M201*'Prevalence Rates'!M201","v":69.857173974880183},{"$f":"'Population 2016'!N201*'Prevalence Rates'!N201","v":56.630359828163741},{"$f":"'Population 2016'!O201*'Prevalence Rates'!O201","v":54.474879004254397},{"$f":"'Population 2016'!P201*'Prevalence Rates'!P201","v":49.576058949914973},{"$f":"'Population 2016'!Q201*'Prevalence Rates'!Q201","v":109.24368721176916},{"$f":"'Population 2016'!R201*'Prevalence Rates'!R201","v":42.227828868405837},{"$f":"'Population 2016'!S201*'Prevalence Rates'!S201","v":835.05286646269826},{"$f":"'Population 2016'!T201*'Prevalence Rates'!T201","v":268.06343337345328},{"$f":"'Population 2016'!U201*'Prevalence Rates'!U201","v":5.388702059773367},{"$f":"'Population 2016'!V201*'Prevalence Rates'!V201","v":100.81771671830535},{"$f":"'Population 2016'!W201*'Prevalence Rates'!W201","v":182.040153219253},{"$f":"'Population 2016'!X201*'Prevalence Rates'!X201","v":182.040153219253},{"$f":"'Population 2016'!Y201*'Prevalence Rates'!Y201","v":211.43307354528955},{"$f":"'Population 2016'!Z201*'Prevalence Rates'!Z201","v":212.11890835289708},{"$f":"'Population 2016'!AA201*'Prevalence Rates'!AA201","v":852.68861865832014},{"$f":"'Population 2016'!AB201*'Prevalence Rates'!AB201","v":552.29297292622664},{"$f":"'Population 2016'!AC201*'Prevalence Rates'!AC201","v":463.7223063437699},{"$f":"'Population 2016'!AD201*'Prevalence Rates'!AD201","v":293.53729765601832},{"$f":"'Population 2016'!AE201*'Prevalence Rates'!AE201","v":232.20407057568872},{"$f":"'Population 2016'!AF201*'Prevalence Rates'!AF201","v":40.072348044496486},{"$f":"'Population 2016'!AG201*'Prevalence Rates'!AG201","v":232.20407057568872},{"$f":"'Population 2016'!AH201*'Prevalence Rates'!AH201","v":388.96631231455029},{"$f":"'Population 2016'!AI201*'Prevalence Rates'!AI201","v":545.63057765232509},{"$f":"'Population 2016'!AJ201*'Prevalence Rates'!AJ201","v":44.38330969231518},{"$f":"'Population 2016'!AK201*'Prevalence Rates'!AK201","v":114.14250726610858},{"$f":"'Population 2016'!AL201*'Prevalence Rates'!AL201","v":58.687864250986301},{"$f":"'Population 2016'!AM201*'Prevalence Rates'!AM201","v":167.93155146275546},{"$f":"'Population 2016'!AN201*'Prevalence Rates'!AN201","v":30.176731534730852},{"$f":"'Population 2016'!AO201*'Prevalence Rates'!AO201","v":30.176731534730852},{"$f":"'Population 2016'!AP201*'Prevalence Rates'!AP201","v":175.47573434643817},{"$f":"'Population 2016'!AQ201*'Prevalence Rates'!AQ201","v":89.844359796585039},{"$f":"'Population 2016'!AR201*'Prevalence Rates'!AR201","v":3365.2934245290107},{"$f":"'Population 2016'!AS201*'Prevalence Rates'!AS201","v":107.38213559112017},{"$f":"'Population 2016'!AT201*'Prevalence Rates'!AT201","v":53.984996998820456},{"$f":"'Population 2016'!AU201*'Prevalence Rates'!AU201","v":53.984996998820456},{"$f":"'Population 2016'!AV201*'Prevalence Rates'!AV201","v":40.366277247756855},{"$f":"'Population 2016'!AW201*'Prevalence Rates'!AW201","v":221.03476085179483},{"$f":"'Population 2016'!AX201*'Prevalence Rates'!AX201","v":77.303380457476109},{"$f":"'Population 2016'!AY201*'Prevalence Rates'!AY201","v":489.39212342850846},{"$f":"'Population 2016'!AZ201*'Prevalence Rates'!AZ201","v":307.35197020925546},{"$f":"'Population 2016'!BA201*'Prevalence Rates'!BA201","v":29.882802331470486},{"$f":"'Population 2016'!BB201*'Prevalence Rates'!BB201","v":123.94014737478743},{"$f":"'Population 2016'!BC201*'Prevalence Rates'!BC201","v":5.388702059773367},199]
[null,"Male 45-49",{"$f":"'Population 2016'!C202*'Prevalence Rates'!C202","v":108.55785240416164},{"$f":"'Population 2016'!D202*'Prevalence Rates'!D202","v":455.49228865247966},{"$f":"'Population 2016'!E202*'Prevalence Rates'!E202","v":346.93443624831804},{"$f":"'Population 2016'!F202*'Prevalence Rates'!F202","v":96.506755070486662},{"$f":"'Population 2016'!G202*'Prevalence Rates'!G202","v":75.147899633566766},{"$f":"'Population 2016'!H202*'Prevalence Rates'!H202","v":195.16899096488265},{"$f":"'Population 2016'!I202*'Prevalence Rates'!I202","v":147.65043643779023},{"$f":"'Population 2016'!J202*'Prevalence Rates'!J202","v":138.24470193345854},{"$f":"'Population 2016'!K202*'Prevalence Rates'!K202","v":41.835923264058685},{"$f":"'Population 2016'!L202*'Prevalence Rates'!L202","v":92.489722625928323},{"$f":"'Population 2016'!M202*'Prevalence Rates'!M202","v":92.489722625928323},{"$f":"'Population 2016'!N202*'Prevalence Rates'!N202","v":67.799669552057637},{"$f":"'Population 2016'!O202*'Prevalence Rates'!O202","v":61.529179882503165},{"$f":"'Population 2016'!P202*'Prevalence Rates'!P202","v":65.448235925974714},{"$f":"'Population 2016'!Q202*'Prevalence Rates'!Q202","v":120.70692613892341},{"$f":"'Population 2016'!R202*'Prevalence Rates'!R202","v":43.795451285794449},{"$f":"'Population 2016'!S202*'Prevalence Rates'!S202","v":937.73213480165259},{"$f":"'Population 2016'!T202*'Prevalence Rates'!T202","v":250.03577557348422},{"$f":"'Population 2016'!U202*'Prevalence Rates'!U202","v":7.0543008782487711},{"$f":"'Population 2016'!V202*'Prevalence Rates'!V202","v":121.49073734761772},{"$f":"'Population 2016'!W202*'Prevalence Rates'!W202","v":244.54909711262405},{"$f":"'Population 2016'!X202*'Prevalence Rates'!X202","v":244.54909711262405},{"$f":"'Population 2016'!Y202*'Prevalence Rates'!Y202","v":259.73543928107625},{"$f":"'Population 2016'!Z202*'Prevalence Rates'!Z202","v":219.17320923114585},{"$f":"'Population 2016'!AA202*'Prevalence Rates'!AA202","v":984.46687812005064},{"$f":"'Population 2016'!AB202*'Prevalence Rates'!AB202","v":600.2034330576663},{"$f":"'Population 2016'!AC202*'Prevalence Rates'!AC202","v":537.30258355994806},{"$f":"'Population 2016'!AD202*'Prevalence Rates'!AD202","v":351.04944509396313},{"$f":"'Population 2016'!AE202*'Prevalence Rates'!AE202","v":275.90154546039639},{"$f":"'Population 2016'!AF202*'Prevalence Rates'!AF202","v":55.454643015122279},{"$f":"'Population 2016'!AG202*'Prevalence Rates'!AG202","v":275.90154546039639},{"$f":"'Population 2016'!AH202*'Prevalence Rates'!AH202","v":447.16429456010263},{"$f":"'Population 2016'!AI202*'Prevalence Rates'!AI202","v":545.53260125123825},{"$f":"'Population 2016'!AJ202*'Prevalence Rates'!AJ202","v":46.146884911877379},{"$f":"'Population 2016'!AK202*'Prevalence Rates'!AK202","v":144.71114440518659},{"$f":"'Population 2016'!AL202*'Prevalence Rates'!AL202","v":76.617545649868589},{"$f":"'Population 2016'!AM202*'Prevalence Rates'!AM202","v":195.07101456379587},{"$f":"'Population 2016'!AN202*'Prevalence Rates'!AN202","v":39.778418841236125},{"$f":"'Population 2016'!AO202*'Prevalence Rates'!AO202","v":39.778418841236125},{"$f":"'Population 2016'!AP202*'Prevalence Rates'!AP202","v":219.27118563223263},{"$f":"'Population 2016'!AQ202*'Prevalence Rates'!AQ202","v":111.20321523350493},{"$f":"'Population 2016'!AR202*'Prevalence Rates'!AR202","v":3903.9676777041741},{"$f":"'Population 2016'!AS202*'Prevalence Rates'!AS202","v":147.65043643779023},{"$f":"'Population 2016'!AT202*'Prevalence Rates'!AT202","v":52.711303784692205},{"$f":"'Population 2016'!AU202*'Prevalence Rates'!AU202","v":52.711303784692205},{"$f":"'Population 2016'!AV202*'Prevalence Rates'!AV202","v":57.022265432510899},{"$f":"'Population 2016'!AW202*'Prevalence Rates'!AW202","v":252.09327999630676},{"$f":"'Population 2016'!AX202*'Prevalence Rates'!AX202","v":96.408778669399865},{"$f":"'Population 2016'!AY202*'Prevalence Rates'!AY202","v":628.12670736740097},{"$f":"'Population 2016'!AZ202*'Prevalence Rates'!AZ202","v":383.57761025477691},{"$f":"'Population 2016'!BA202*'Prevalence Rates'!BA202","v":42.227828868405837},{"$f":"'Population 2016'!BB202*'Prevalence Rates'!BB202","v":128.64301462695329},{"$f":"'Population 2016'!BC202*'Prevalence Rates'!BC202","v":7.0543008782487711},200]
[null,"Male 50-54",{"$f":"'Population 2016'!C203*'Prevalence Rates'!C203","v":112.08500284328602},{"$f":"'Population 2016'!D203*'Prevalence Rates'!D203","v":487.62854820894626},{"$f":"'Population 2016'!E203*'Prevalence Rates'!E203","v":375.54354536566024},{"$f":"'Population 2016'!F203*'Prevalence Rates'!F203","v":114.43643646936894},{"$f":"'Population 2016'!G203*'Prevalence Rates'!G203","v":84.749586940072035},{"$f":"'Population 2016'!H203*'Prevalence Rates'!H203","v":210.15938033116129},{"$f":"'Population 2016'!I203*'Prevalence Rates'!I203","v":169.40119747905729},{"$f":"'Population 2016'!J203*'Prevalence Rates'!J203","v":142.75161638345082},{"$f":"'Population 2016'!K203*'Prevalence Rates'!K203","v":39.190560434715394},{"$f":"'Population 2016'!L203*'Prevalence Rates'!L203","v":109.63559281611631},{"$f":"'Population 2016'!M203*'Prevalence Rates'!M203","v":109.63559281611631},{"$f":"'Population 2016'!N203*'Prevalence Rates'!N203","v":74.951946831393187},{"$f":"'Population 2016'!O203*'Prevalence Rates'!O203","v":64.860377519453976},{"$f":"'Population 2016'!P203*'Prevalence Rates'!P203","v":70.151103178140559},{"$f":"'Population 2016'!Q203*'Prevalence Rates'!Q203","v":130.79849545086262},{"$f":"'Population 2016'!R203*'Prevalence Rates'!R203","v":54.768808207514759},{"$f":"'Population 2016'!S203*'Prevalence Rates'!S203","v":972.61173358854933},{"$f":"'Population 2016'!T203*'Prevalence Rates'!T203","v":247.68434194740129},{"$f":"'Population 2016'!U203*'Prevalence Rates'!U203","v":5.4866784608601549},{"$f":"'Population 2016'!V203*'Prevalence Rates'!V203","v":115.90608248567078},{"$f":"'Population 2016'!W203*'Prevalence Rates'!W203","v":250.72161038109172},{"$f":"'Population 2016'!X203*'Prevalence Rates'!X203","v":250.72161038109172},{"$f":"'Population 2016'!Y203*'Prevalence Rates'!Y203","v":258.65769886912159},{"$f":"'Population 2016'!Z203*'Prevalence Rates'!Z203","v":213.5885543691989},{"$f":"'Population 2016'!AA203*'Prevalence Rates'!AA203","v":1028.8501878123659},{"$f":"'Population 2016'!AB203*'Prevalence Rates'!AB203","v":634.00529143260826},{"$f":"'Population 2016'!AC203*'Prevalence Rates'!AC203","v":570.90848913271645},{"$f":"'Population 2016'!AD203*'Prevalence Rates'!AD203","v":382.10796423847506},{"$f":"'Population 2016'!AE203*'Prevalence Rates'!AE203","v":297.35837729840307},{"$f":"'Population 2016'!AF203*'Prevalence Rates'!AF203","v":63.194778700978574},{"$f":"'Population 2016'!AG203*'Prevalence Rates'!AG203","v":297.35837729840307},{"$f":"'Population 2016'!AH203*'Prevalence Rates'!AH203","v":457.94169867964939},{"$f":"'Population 2016'!AI203*'Prevalence Rates'!AI203","v":552.4889257284002},{"$f":"'Population 2016'!AJ203*'Prevalence Rates'!AJ203","v":47.518554527092412},{"$f":"'Population 2016'!AK203*'Prevalence Rates'!AK203","v":146.376743223662},{"$f":"'Population 2016'!AL203*'Prevalence Rates'!AL203","v":86.905067763981378},{"$f":"'Population 2016'!AM203*'Prevalence Rates'!AM203","v":198.89209420618062},{"$f":"'Population 2016'!AN203*'Prevalence Rates'!AN203","v":43.305569280360508},{"$f":"'Population 2016'!AO203*'Prevalence Rates'!AO203","v":43.305569280360508},{"$f":"'Population 2016'!AP203*'Prevalence Rates'!AP203","v":248.07624755174845},{"$f":"'Population 2016'!AQ203*'Prevalence Rates'!AQ203","v":123.05835976500633},{"$f":"'Population 2016'!AR203*'Prevalence Rates'!AR203","v":4140.2867571255074},{"$f":"'Population 2016'!AS203*'Prevalence Rates'!AS203","v":169.40119747905729},{"$f":"'Population 2016'!AT203*'Prevalence Rates'!AT203","v":58.002029443378781},{"$f":"'Population 2016'!AU203*'Prevalence Rates'!AU203","v":58.002029443378781},{"$f":"'Population 2016'!AV203*'Prevalence Rates'!AV203","v":58.39393504772594},{"$f":"'Population 2016'!AW203*'Prevalence Rates'!AW203","v":259.04960447346878},{"$f":"'Population 2016'!AX203*'Prevalence Rates'!AX203","v":103.56105594873543},{"$f":"'Population 2016'!AY203*'Prevalence Rates'!AY203","v":688.18624123360235},{"$f":"'Population 2016'!AZ203*'Prevalence Rates'!AZ203","v":437.4646308525106},{"$f":"'Population 2016'!BA203*'Prevalence Rates'!BA203","v":46.146884911877379},{"$f":"'Population 2016'!BB203*'Prevalence Rates'!BB203","v":126.48753380304393},{"$f":"'Population 2016'!BC203*'Prevalence Rates'!BC203","v":5.4866784608601549},201]
[null,"Male 55-59",{"$f":"'Population 2016'!C204*'Prevalence Rates'!C204","v":53.05365281514328},{"$f":"'Population 2016'!D204*'Prevalence Rates'!D204","v":230.20583071233656},{"$f":"'Population 2016'!E204*'Prevalence Rates'!E204","v":177.15217789719327},{"$f":"'Population 2016'!F204*'Prevalence Rates'!F204","v":52.389204369481568},{"$f":"'Population 2016'!G204*'Prevalence Rates'!G204","v":41.042469374335312},{"$f":"'Population 2016'!H204*'Prevalence Rates'!H204","v":105.03396583344841},{"$f":"'Population 2016'!I204*'Prevalence Rates'!I204","v":81.471601721905969},{"$f":"'Population 2016'!J204*'Prevalence Rates'!J204","v":65.729284701612968},{"$f":"'Population 2016'!K204*'Prevalence Rates'!K204","v":17.122325330513487},{"$f":"'Population 2016'!L204*'Prevalence Rates'!L204","v":52.746984301760953},{"$f":"'Population 2016'!M204*'Prevalence Rates'!M204","v":52.746984301760953},{"$f":"'Population 2016'!N204*'Prevalence Rates'!N204","v":42.320254846761692},{"$f":"'Population 2016'!O204*'Prevalence Rates'!O204","v":32.149082486247714},{"$f":"'Population 2016'!P204*'Prevalence Rates'!P204","v":39.100235456247219},{"$f":"'Population 2016'!Q204*'Prevalence Rates'!Q204","v":63.838162202421927},{"$f":"'Population 2016'!R204*'Prevalence Rates'!R204","v":21.466795936763177},{"$f":"'Population 2016'!S204*'Prevalence Rates'!S204","v":466.13614034114329},{"$f":"'Population 2016'!T204*'Prevalence Rates'!T204","v":118.88516035455037},{"$f":"'Population 2016'!U204*'Prevalence Rates'!U204","v":2.6577937826468698},{"$f":"'Population 2016'!V204*'Prevalence Rates'!V204","v":55.967003692275426},{"$f":"'Population 2016'!W204*'Prevalence Rates'!W204","v":122.10517974506485},{"$f":"'Population 2016'!X204*'Prevalence Rates'!X204","v":122.10517974506485},{"$f":"'Population 2016'!Y204*'Prevalence Rates'!Y204","v":121.69628839388839},{"$f":"'Population 2016'!Z204*'Prevalence Rates'!Z204","v":96.702804553228418},{"$f":"'Population 2016'!AA204*'Prevalence Rates'!AA204","v":472.01395351430466},{"$f":"'Population 2016'!AB204*'Prevalence Rates'!AB204","v":297.26401230527296},{"$f":"'Population 2016'!AC204*'Prevalence Rates'!AC204","v":273.65053677483348},{"$f":"'Population 2016'!AD204*'Prevalence Rates'!AD204","v":188.95891566241303},{"$f":"'Population 2016'!AE204*'Prevalence Rates'!AE204","v":147.91644628807771},{"$f":"'Population 2016'!AF204*'Prevalence Rates'!AF204","v":28.929063095733234},{"$f":"'Population 2016'!AG204*'Prevalence Rates'!AG204","v":147.91644628807771},{"$f":"'Population 2016'!AH204*'Prevalence Rates'!AH204","v":198.36341673947118},{"$f":"'Population 2016'!AI204*'Prevalence Rates'!AI204","v":262.55935887417252},{"$f":"'Population 2016'!AJ204*'Prevalence Rates'!AJ204","v":23.715698368233607},{"$f":"'Population 2016'!AK204*'Prevalence Rates'!AK204","v":67.058181592936407},{"$f":"'Population 2016'!AL204*'Prevalence Rates'!AL204","v":42.422477684555801},{"$f":"'Population 2016'!AM204*'Prevalence Rates'!AM204","v":81.216044627420686},{"$f":"'Population 2016'!AN204*'Prevalence Rates'!AN204","v":19.933453369851524},{"$f":"'Population 2016'!AO204*'Prevalence Rates'!AO204","v":19.933453369851524},{"$f":"'Population 2016'!AP204*'Prevalence Rates'!AP204","v":118.68071467896215},{"$f":"'Population 2016'!AQ204*'Prevalence Rates'!AQ204","v":62.611488148892604},{"$f":"'Population 2016'!AR204*'Prevalence Rates'!AR204","v":1966.9207334153748},{"$f":"'Population 2016'!AS204*'Prevalence Rates'!AS204","v":81.471601721905969},{"$f":"'Population 2016'!AT204*'Prevalence Rates'!AT204","v":27.089052015439247},{"$f":"'Population 2016'!AU204*'Prevalence Rates'!AU204","v":27.089052015439247},{"$f":"'Population 2016'!AV204*'Prevalence Rates'!AV204","v":30.46240566264489},{"$f":"'Population 2016'!AW204*'Prevalence Rates'!AW204","v":117.14737211205049},{"$f":"'Population 2016'!AX204*'Prevalence Rates'!AX204","v":48.606959371099485},{"$f":"'Population 2016'!AY204*'Prevalence Rates'!AY204","v":335.49535364027025},{"$f":"'Population 2016'!AZ204*'Prevalence Rates'!AZ204","v":213.39017389520541},{"$f":"'Population 2016'!BA204*'Prevalence Rates'!BA204","v":24.84014958396882},{"$f":"'Population 2016'!BB204*'Prevalence Rates'!BB204","v":56.120337948966593},{"$f":"'Population 2016'!BC204*'Prevalence Rates'!BC204","v":2.6577937826468698},202]
[null,"Male 60-64",{"$f":"'Population 2016'!C205*'Prevalence Rates'!C205","v":51.06030747815813},{"$f":"'Population 2016'!D205*'Prevalence Rates'!D205","v":207.87014065432345},{"$f":"'Population 2016'!E205*'Prevalence Rates'!E205","v":156.80983317616531},{"$f":"'Population 2016'!F205*'Prevalence Rates'!F205","v":52.542538626172728},{"$f":"'Population 2016'!G205*'Prevalence Rates'!G205","v":40.275798090879483},{"$f":"'Population 2016'!H205*'Prevalence Rates'!H205","v":95.731687594184365},{"$f":"'Population 2016'!I205*'Prevalence Rates'!I205","v":77.99602523690622},{"$f":"'Population 2016'!J205*'Prevalence Rates'!J205","v":52.031424437202176},{"$f":"'Population 2016'!K205*'Prevalence Rates'!K205","v":13.135634656543182},{"$f":"'Population 2016'!L205*'Prevalence Rates'!L205","v":53.462544166319724},{"$f":"'Population 2016'!M205*'Prevalence Rates'!M205","v":53.462544166319724},{"$f":"'Population 2016'!N205*'Prevalence Rates'!N205","v":31.84241397286538},{"$f":"'Population 2016'!O205*'Prevalence Rates'!O205","v":29.849068635880229},{"$f":"'Population 2016'!P205*'Prevalence Rates'!P205","v":35.164656201173969},{"$f":"'Population 2016'!Q205*'Prevalence Rates'!Q205","v":48.913627884481812},{"$f":"'Population 2016'!R205*'Prevalence Rates'!R205","v":22.233467220219005},{"$f":"'Population 2016'!S205*'Prevalence Rates'!S205","v":395.39793658761891},{"$f":"'Population 2016'!T205*'Prevalence Rates'!T205","v":103.34728900984558},{"$f":"'Population 2016'!U205*'Prevalence Rates'!U205","v":2.3000138503674834},{"$f":"'Population 2016'!V205*'Prevalence Rates'!V205","v":43.393594643599855},{"$f":"'Population 2016'!W205*'Prevalence Rates'!W205","v":104.42062880668375},{"$f":"'Population 2016'!X205*'Prevalence Rates'!X205","v":104.42062880668375},{"$f":"'Population 2016'!Y205*'Prevalence Rates'!Y205","v":95.425019080802031},{"$f":"'Population 2016'!Z205*'Prevalence Rates'!Z205","v":81.931604491979456},{"$f":"'Population 2016'!AA205*'Prevalence Rates'!AA205","v":400.91796982850087},{"$f":"'Population 2016'!AB205*'Prevalence Rates'!AB205","v":272.6794198157894},{"$f":"'Population 2016'!AC205*'Prevalence Rates'!AC205","v":235.01030408865975},{"$f":"'Population 2016'!AD205*'Prevalence Rates'!AD205","v":175.56772391138458},{"$f":"'Population 2016'!AE205*'Prevalence Rates'!AE205","v":135.29192582050507},{"$f":"'Population 2016'!AF205*'Prevalence Rates'!AF205","v":24.226812557204159},{"$f":"'Population 2016'!AG205*'Prevalence Rates'!AG205","v":135.29192582050507},{"$f":"'Population 2016'!AH205*'Prevalence Rates'!AH205","v":165.90766573984112},{"$f":"'Population 2016'!AI205*'Prevalence Rates'!AI205","v":212.98128254402897},{"$f":"'Population 2016'!AJ205*'Prevalence Rates'!AJ205","v":20.035676207645633},{"$f":"'Population 2016'!AK205*'Prevalence Rates'!AK205","v":64.80927916146598},{"$f":"'Population 2016'!AL205*'Prevalence Rates'!AL205","v":39.202458294041328},{"$f":"'Population 2016'!AM205*'Prevalence Rates'!AM205","v":67.62040720080401},{"$f":"'Population 2016'!AN205*'Prevalence Rates'!AN205","v":18.451222221836922},{"$f":"'Population 2016'!AO205*'Prevalence Rates'!AO205","v":18.451222221836922},{"$f":"'Population 2016'!AP205*'Prevalence Rates'!AP205","v":109.48065927749221},{"$f":"'Population 2016'!AQ205*'Prevalence Rates'!AQ205","v":51.213641734849297},{"$f":"'Population 2016'!AR205*'Prevalence Rates'!AR205","v":1728.5881870984065},{"$f":"'Population 2016'!AS205*'Prevalence Rates'!AS205","v":77.99602523690622},{"$f":"'Population 2016'!AT205*'Prevalence Rates'!AT205","v":24.789038165071766},{"$f":"'Population 2016'!AU205*'Prevalence Rates'!AU205","v":24.789038165071766},{"$f":"'Population 2016'!AV205*'Prevalence Rates'!AV205","v":26.680160664262807},{"$f":"'Population 2016'!AW205*'Prevalence Rates'!AW205","v":98.287258539037126},{"$f":"'Population 2016'!AX205*'Prevalence Rates'!AX205","v":38.895789780658994},{"$f":"'Population 2016'!AY205*'Prevalence Rates'!AY205","v":298.28624068321409},{"$f":"'Population 2016'!AZ205*'Prevalence Rates'!AZ205","v":193.86561187653032},{"$f":"'Population 2016'!BA205*'Prevalence Rates'!BA205","v":20.240121883233854},{"$f":"'Population 2016'!BB205*'Prevalence Rates'!BB205","v":40.684689442055927},{"$f":"'Population 2016'!BC205*'Prevalence Rates'!BC205","v":2.3000138503674834},203]
[null,"Male 65-69",{"$f":"'Population 2016'!C206*'Prevalence Rates'!C206","v":47.022505385290771},{"$f":"'Population 2016'!D206*'Prevalence Rates'!D206","v":206.43902092520591},{"$f":"'Population 2016'!E206*'Prevalence Rates'!E206","v":159.41651553991511},{"$f":"'Population 2016'!F206*'Prevalence Rates'!F206","v":53.973658355290276},{"$f":"'Population 2016'!G206*'Prevalence Rates'!G206","v":42.013586333379365},{"$f":"'Population 2016'!H206*'Prevalence Rates'!H206","v":96.191690364257866},{"$f":"'Population 2016'!I206*'Prevalence Rates'!I206","v":82.698275775435292},{"$f":"'Population 2016'!J206*'Prevalence Rates'!J206","v":49.782522005731749},{"$f":"'Population 2016'!K206*'Prevalence Rates'!K206","v":13.544526007719623},{"$f":"'Population 2016'!L206*'Prevalence Rates'!L206","v":53.820324098599109},{"$f":"'Population 2016'!M206*'Prevalence Rates'!M206","v":53.820324098599109},{"$f":"'Population 2016'!N206*'Prevalence Rates'!N206","v":29.900180054777284},{"$f":"'Population 2016'!O206*'Prevalence Rates'!O206","v":27.49794336661569},{"$f":"'Population 2016'!P206*'Prevalence Rates'!P206","v":35.113544782276911},{"$f":"'Population 2016'!Q206*'Prevalence Rates'!Q206","v":47.840288087643657},{"$f":"'Population 2016'!R206*'Prevalence Rates'!R206","v":19.831230532057411},{"$f":"'Population 2016'!S206*'Prevalence Rates'!S206","v":393.1490341561485},{"$f":"'Population 2016'!T206*'Prevalence Rates'!T206","v":87.093857800582043},{"$f":"'Population 2016'!U206*'Prevalence Rates'!U206","v":2.6577937826468698},{"$f":"'Population 2016'!V206*'Prevalence Rates'!V206","v":45.540274237276172},{"$f":"'Population 2016'!W206*'Prevalence Rates'!W206","v":112.54734441131552},{"$f":"'Population 2016'!X206*'Prevalence Rates'!X206","v":112.54734441131552},{"$f":"'Population 2016'!Y206*'Prevalence Rates'!Y206","v":95.322796243007915},{"$f":"'Population 2016'!Z206*'Prevalence Rates'!Z206","v":70.84042659131849},{"$f":"'Population 2016'!AA206*'Prevalence Rates'!AA206","v":370.14889565247364},{"$f":"'Population 2016'!AB206*'Prevalence Rates'!AB206","v":267.87494643946621},{"$f":"'Population 2016'!AC206*'Prevalence Rates'!AC206","v":216.25241335344049},{"$f":"'Population 2016'!AD206*'Prevalence Rates'!AD206","v":176.74328654601683},{"$f":"'Population 2016'!AE206*'Prevalence Rates'!AE206","v":134.72970021263748},{"$f":"'Population 2016'!AF206*'Prevalence Rates'!AF206","v":20.597901815513239},{"$f":"'Population 2016'!AG206*'Prevalence Rates'!AG206","v":134.72970021263748},{"$f":"'Population 2016'!AH206*'Prevalence Rates'!AH206","v":153.89648229903315},{"$f":"'Population 2016'!AI206*'Prevalence Rates'!AI206","v":197.90341396939769},{"$f":"'Population 2016'!AJ206*'Prevalence Rates'!AJ206","v":21.977910125733729},{"$f":"'Population 2016'!AK206*'Prevalence Rates'!AK206","v":61.435925514260333},{"$f":"'Population 2016'!AL206*'Prevalence Rates'!AL206","v":42.780257616835193},{"$f":"'Population 2016'!AM206*'Prevalence Rates'!AM206","v":59.238134501686957},{"$f":"'Population 2016'!AN206*'Prevalence Rates'!AN206","v":17.991219451763424},{"$f":"'Population 2016'!AO206*'Prevalence Rates'!AO206","v":17.991219451763424},{"$f":"'Population 2016'!AP206*'Prevalence Rates'!AP206","v":110.50288765543331},{"$f":"'Population 2016'!AQ206*'Prevalence Rates'!AQ206","v":48.249179438820093},{"$f":"'Population 2016'!AR206*'Prevalence Rates'!AR206","v":1692.5035253570854},{"$f":"'Population 2016'!AS206*'Prevalence Rates'!AS206","v":82.698275775435292},{"$f":"'Population 2016'!AT206*'Prevalence Rates'!AT206","v":24.226812557204159},{"$f":"'Population 2016'!AU206*'Prevalence Rates'!AU206","v":24.226812557204159},{"$f":"'Population 2016'!AV206*'Prevalence Rates'!AV206","v":25.913489380806979},{"$f":"'Population 2016'!AW206*'Prevalence Rates'!AW206","v":94.65834779734621},{"$f":"'Population 2016'!AX206*'Prevalence Rates'!AX206","v":36.237995998012124},{"$f":"'Population 2016'!AY206*'Prevalence Rates'!AY206","v":306.92407047681638},{"$f":"'Population 2016'!AZ206*'Prevalence Rates'!AZ206","v":194.37672606550086},{"$f":"'Population 2016'!BA206*'Prevalence Rates'!BA206","v":21.620130193454344},{"$f":"'Population 2016'!BB206*'Prevalence Rates'!BB206","v":40.991357955438261},{"$f":"'Population 2016'!BC206*'Prevalence Rates'!BC206","v":2.6577937826468698},204]
[null,"Male 70-74",{"$f":"'Population 2016'!C207*'Prevalence Rates'!C207","v":33.886870728747589},{"$f":"'Population 2016'!D207*'Prevalence Rates'!D207","v":138.71639088660777},{"$f":"'Population 2016'!E207*'Prevalence Rates'!E207","v":104.82952015786019},{"$f":"'Population 2016'!F207*'Prevalence Rates'!F207","v":44.262488764849792},{"$f":"'Population 2016'!G207*'Prevalence Rates'!G207","v":34.50020775551225},{"$f":"'Population 2016'!H207*'Prevalence Rates'!H207","v":79.478256384920812},{"$f":"'Population 2016'!I207*'Prevalence Rates'!I207","v":63.480382270142542},{"$f":"'Population 2016'!J207*'Prevalence Rates'!J207","v":41.042469374335312},{"$f":"'Population 2016'!K207*'Prevalence Rates'!K207","v":10.580063711690423},{"$f":"'Population 2016'!L207*'Prevalence Rates'!L207","v":42.218032008967583},{"$f":"'Population 2016'!M207*'Prevalence Rates'!M207","v":42.218032008967583},{"$f":"'Population 2016'!N207*'Prevalence Rates'!N207","v":20.955681747792624},{"$f":"'Population 2016'!O207*'Prevalence Rates'!O207","v":22.437912895807226},{"$f":"'Population 2016'!P207*'Prevalence Rates'!P207","v":24.482369651689435},{"$f":"'Population 2016'!Q207*'Prevalence Rates'!Q207","v":38.026895659409057},{"$f":"'Population 2016'!R207*'Prevalence Rates'!R207","v":14.157863034484286},{"$f":"'Population 2016'!S207*'Prevalence Rates'!S207","v":293.89065865806731},{"$f":"'Population 2016'!T207*'Prevalence Rates'!T207","v":61.282591257569166},{"$f":"'Population 2016'!U207*'Prevalence Rates'!U207","v":2.1466795936763177},{"$f":"'Population 2016'!V207*'Prevalence Rates'!V207","v":32.864642350806484},{"$f":"'Population 2016'!W207*'Prevalence Rates'!W207","v":84.436064017935166},{"$f":"'Population 2016'!X207*'Prevalence Rates'!X207","v":84.436064017935166},{"$f":"'Population 2016'!Y207*'Prevalence Rates'!Y207","v":73.907111725141803},{"$f":"'Population 2016'!Z207*'Prevalence Rates'!Z207","v":45.795831331761448},{"$f":"'Population 2016'!AA207*'Prevalence Rates'!AA207","v":254.2281975939525},{"$f":"'Population 2016'!AB207*'Prevalence Rates'!AB207","v":186.40334471756026},{"$f":"'Population 2016'!AC207*'Prevalence Rates'!AC207","v":151.39202277307746},{"$f":"'Population 2016'!AD207*'Prevalence Rates'!AD207","v":136.97860264410789},{"$f":"'Population 2016'!AE207*'Prevalence Rates'!AE207","v":102.47839488859564},{"$f":"'Population 2016'!AF207*'Prevalence Rates'!AF207","v":15.691205601395943},{"$f":"'Population 2016'!AG207*'Prevalence Rates'!AG207","v":102.47839488859564},{"$f":"'Population 2016'!AH207*'Prevalence Rates'!AH207","v":102.83617482087503},{"$f":"'Population 2016'!AI207*'Prevalence Rates'!AI207","v":145.9742123699896},{"$f":"'Population 2016'!AJ207*'Prevalence Rates'!AJ207","v":18.042330870660482},{"$f":"'Population 2016'!AK207*'Prevalence Rates'!AK207","v":47.68695383095249},{"$f":"'Population 2016'!AL207*'Prevalence Rates'!AL207","v":34.653542012203417},{"$f":"'Population 2016'!AM207*'Prevalence Rates'!AM207","v":40.53135518536476},{"$f":"'Population 2016'!AN207*'Prevalence Rates'!AN207","v":14.157863034484286},{"$f":"'Population 2016'!AO207*'Prevalence Rates'!AO207","v":14.157863034484286},{"$f":"'Population 2016'!AP207*'Prevalence Rates'!AP207","v":80.756041857347199},{"$f":"'Population 2016'!AQ207*'Prevalence Rates'!AQ207","v":36.800221605879734},{"$f":"'Population 2016'!AR207*'Prevalence Rates'!AR207","v":1245.0741643322642},{"$f":"'Population 2016'!AS207*'Prevalence Rates'!AS207","v":63.480382270142542},{"$f":"'Population 2016'!AT207*'Prevalence Rates'!AT207","v":15.691205601395943},{"$f":"'Population 2016'!AU207*'Prevalence Rates'!AU207","v":15.691205601395943},{"$f":"'Population 2016'!AV207*'Prevalence Rates'!AV207","v":22.386801476910172},{"$f":"'Population 2016'!AW207*'Prevalence Rates'!AW207","v":62.30481963551027},{"$f":"'Population 2016'!AX207*'Prevalence Rates'!AX207","v":30.46240566264489},{"$f":"'Population 2016'!AY207*'Prevalence Rates'!AY207","v":230.41027638792477},{"$f":"'Population 2016'!AZ207*'Prevalence Rates'!AZ207","v":145.9742123699896},{"$f":"'Population 2016'!BA207*'Prevalence Rates'!BA207","v":14.464531547866617},{"$f":"'Population 2016'!BB207*'Prevalence Rates'!BB207","v":28.622394582350903},{"$f":"'Population 2016'!BC207*'Prevalence Rates'!BC207","v":2.1466795936763177},205]
[null,"Male 75-79",{"$f":"'Population 2016'!C208*'Prevalence Rates'!C208","v":22.897915665880724},{"$f":"'Population 2016'!D208*'Prevalence Rates'!D208","v":99.513932592566448},{"$f":"'Population 2016'!E208*'Prevalence Rates'!E208","v":76.616016926685717},{"$f":"'Population 2016'!F208*'Prevalence Rates'!F208","v":34.806876268894584},{"$f":"'Population 2016'!G208*'Prevalence Rates'!G208","v":23.153472760366},{"$f":"'Population 2016'!H208*'Prevalence Rates'!H208","v":52.33809295058451},{"$f":"'Population 2016'!I208*'Prevalence Rates'!I208","v":46.562502615217277},{"$f":"'Population 2016'!J208*'Prevalence Rates'!J208","v":26.935717758748083},{"$f":"'Population 2016'!K208*'Prevalence Rates'!K208","v":6.5422616188230638},{"$f":"'Population 2016'!L208*'Prevalence Rates'!L208","v":31.12685410830661},{"$f":"'Population 2016'!M208*'Prevalence Rates'!M208","v":31.12685410830661},{"$f":"'Population 2016'!N208*'Prevalence Rates'!N208","v":16.202319790366495},{"$f":"'Population 2016'!O208*'Prevalence Rates'!O208","v":12.931188980954962},{"$f":"'Population 2016'!P208*'Prevalence Rates'!P208","v":19.064559248601583},{"$f":"'Population 2016'!Q208*'Prevalence Rates'!Q208","v":25.095706678454096},{"$f":"'Population 2016'!R208*'Prevalence Rates'!R208","v":10.580063711690423},{"$f":"'Population 2016'!S208*'Prevalence Rates'!S208","v":209.35237180233804},{"$f":"'Population 2016'!T208*'Prevalence Rates'!T208","v":48.709182208893594},{"$f":"'Population 2016'!U208*'Prevalence Rates'!U208","v":1.124451215735214},{"$f":"'Population 2016'!V208*'Prevalence Rates'!V208","v":24.277923976101214},{"$f":"'Population 2016'!W208*'Prevalence Rates'!W208","v":58.36924038043702},{"$f":"'Population 2016'!X208*'Prevalence Rates'!X208","v":58.36924038043702},{"$f":"'Population 2016'!Y208*'Prevalence Rates'!Y208","v":51.213641734849297},{"$f":"'Population 2016'!Z208*'Prevalence Rates'!Z208","v":35.726881809041572},{"$f":"'Population 2016'!AA208*'Prevalence Rates'!AA208","v":177.50995782947265},{"$f":"'Population 2016'!AB208*'Prevalence Rates'!AB208","v":134.11636318587281},{"$f":"'Population 2016'!AC208*'Prevalence Rates'!AC208","v":111.57622745227147},{"$f":"'Population 2016'!AD208*'Prevalence Rates'!AD208","v":90.467211447787676},{"$f":"'Population 2016'!AE208*'Prevalence Rates'!AE208","v":67.313738687421676},{"$f":"'Population 2016'!AF208*'Prevalence Rates'!AF208","v":11.295623576249197},{"$f":"'Population 2016'!AG208*'Prevalence Rates'!AG208","v":67.313738687421676},{"$f":"'Population 2016'!AH208*'Prevalence Rates'!AH208","v":65.933730377201186},{"$f":"'Population 2016'!AI208*'Prevalence Rates'!AI208","v":104.42062880668375},{"$f":"'Population 2016'!AJ208*'Prevalence Rates'!AJ208","v":10.580063711690423},{"$f":"'Population 2016'!AK208*'Prevalence Rates'!AK208","v":34.602430593306359},{"$f":"'Population 2016'!AL208*'Prevalence Rates'!AL208","v":23.56236411154244},{"$f":"'Population 2016'!AM208*'Prevalence Rates'!AM208","v":25.862377961909925},{"$f":"'Population 2016'!AN208*'Prevalence Rates'!AN208","v":11.448957832940362},{"$f":"'Population 2016'!AO208*'Prevalence Rates'!AO208","v":11.448957832940362},{"$f":"'Population 2016'!AP208*'Prevalence Rates'!AP208","v":62.151485378819103},{"$f":"'Population 2016'!AQ208*'Prevalence Rates'!AQ208","v":25.249040935145263},{"$f":"'Population 2016'!AR208*'Prevalence Rates'!AR208","v":883.46087563559888},{"$f":"'Population 2016'!AS208*'Prevalence Rates'!AS208","v":46.562502615217277},{"$f":"'Population 2016'!AT208*'Prevalence Rates'!AT208","v":11.602292089631527},{"$f":"'Population 2016'!AU208*'Prevalence Rates'!AU208","v":11.602292089631527},{"$f":"'Population 2016'!AV208*'Prevalence Rates'!AV208","v":15.844539858087108},{"$f":"'Population 2016'!AW208*'Prevalence Rates'!AW208","v":40.071352415291265},{"$f":"'Population 2016'!AX208*'Prevalence Rates'!AX208","v":20.393456139925018},{"$f":"'Population 2016'!AY208*'Prevalence Rates'!AY208","v":171.52992181851721},{"$f":"'Population 2016'!AZ208*'Prevalence Rates'!AZ208","v":113.16068143808018},{"$f":"'Population 2016'!BA208*'Prevalence Rates'!BA208","v":9.6600581715434295},{"$f":"'Population 2016'!BB208*'Prevalence Rates'!BB208","v":20.035676207645633},{"$f":"'Population 2016'!BC208*'Prevalence Rates'!BC208","v":1.124451215735214},206]
[null,"Male 80-84",{"$f":"'Population 2016'!C209*'Prevalence Rates'!C209","v":15.588982763601832},{"$f":"'Population 2016'!D209*'Prevalence Rates'!D209","v":65.013724837054198},{"$f":"'Population 2016'!E209*'Prevalence Rates'!E209","v":49.424742073452364},{"$f":"'Population 2016'!F209*'Prevalence Rates'!F209","v":20.90457032889557},{"$f":"'Population 2016'!G209*'Prevalence Rates'!G209","v":15.691205601395943},{"$f":"'Population 2016'!H209*'Prevalence Rates'!H209","v":35.880216065732739},{"$f":"'Population 2016'!I209*'Prevalence Rates'!I209","v":30.360182824850781},{"$f":"'Population 2016'!J209*'Prevalence Rates'!J209","v":18.502333640733976},{"$f":"'Population 2016'!K209*'Prevalence Rates'!K209","v":4.7022505385290767},{"$f":"'Population 2016'!L209*'Prevalence Rates'!L209","v":23.306807017057164},{"$f":"'Population 2016'!M209*'Prevalence Rates'!M209","v":23.306807017057164},{"$f":"'Population 2016'!N209*'Prevalence Rates'!N209","v":14.208974453381341},{"$f":"'Population 2016'!O209*'Prevalence Rates'!O209","v":7.9733813479406086},{"$f":"'Population 2016'!P209*'Prevalence Rates'!P209","v":13.8000831022049},{"$f":"'Population 2016'!Q209*'Prevalence Rates'!Q209","v":16.713433979337047},{"$f":"'Population 2016'!R209*'Prevalence Rates'!R209","v":8.024492766837664},{"$f":"'Population 2016'!S209*'Prevalence Rates'!S209","v":139.0230593999901},{"$f":"'Population 2016'!T209*'Prevalence Rates'!T209","v":35.573547552350412},{"$f":"'Population 2016'!U209*'Prevalence Rates'!U209","v":1.0733397968381588},{"$f":"'Population 2016'!V209*'Prevalence Rates'!V209","v":17.428993843895817},{"$f":"'Population 2016'!W209*'Prevalence Rates'!W209","v":36.800221605879734},{"$f":"'Population 2016'!X209*'Prevalence Rates'!X209","v":36.800221605879734},{"$f":"'Population 2016'!Y209*'Prevalence Rates'!Y209","v":35.931327484629797},{"$f":"'Population 2016'!Z209*'Prevalence Rates'!Z209","v":25.606820867424648},{"$f":"'Population 2016'!AA209*'Prevalence Rates'!AA209","v":120.67406001594729},{"$f":"'Population 2016'!AB209*'Prevalence Rates'!AB209","v":87.860529084037864},{"$f":"'Population 2016'!AC209*'Prevalence Rates'!AC209","v":77.842690980215053},{"$f":"'Population 2016'!AD209*'Prevalence Rates'!AD209","v":62.867045243377881},{"$f":"'Population 2016'!AE209*'Prevalence Rates'!AE209","v":47.175839641981938},{"$f":"'Population 2016'!AF209*'Prevalence Rates'!AF209","v":6.7978187133083399},{"$f":"'Population 2016'!AG209*'Prevalence Rates'!AG209","v":47.175839641981938},{"$f":"'Population 2016'!AH209*'Prevalence Rates'!AH209","v":42.831369035732244},{"$f":"'Population 2016'!AI209*'Prevalence Rates'!AI209","v":71.862654969259594},{"$f":"'Population 2016'!AJ209*'Prevalence Rates'!AJ209","v":8.0756041857347185},{"$f":"'Population 2016'!AK209*'Prevalence Rates'!AK209","v":22.84680424698367},{"$f":"'Population 2016'!AL209*'Prevalence Rates'!AL209","v":15.793428439190052},{"$f":"'Population 2016'!AM209*'Prevalence Rates'!AM209","v":15.435648506910667},{"$f":"'Population 2016'!AN209*'Prevalence Rates'!AN209","v":6.440038781028953},{"$f":"'Population 2016'!AO209*'Prevalence Rates'!AO209","v":6.440038781028953},{"$f":"'Population 2016'!AP209*'Prevalence Rates'!AP209","v":43.700263156982182},{"$f":"'Population 2016'!AQ209*'Prevalence Rates'!AQ209","v":15.691205601395943},{"$f":"'Population 2016'!AR209*'Prevalence Rates'!AR209","v":598.66804954120744},{"$f":"'Population 2016'!AS209*'Prevalence Rates'!AS209","v":30.360182824850781},{"$f":"'Population 2016'!AT209*'Prevalence Rates'!AT209","v":6.7978187133083399},{"$f":"'Population 2016'!AU209*'Prevalence Rates'!AU209","v":6.7978187133083399},{"$f":"'Population 2016'!AV209*'Prevalence Rates'!AV209","v":12.11340627860208},{"$f":"'Population 2016'!AW209*'Prevalence Rates'!AW209","v":27.395720528821581},{"$f":"'Population 2016'!AX209*'Prevalence Rates'!AX209","v":13.8000831022049},{"$f":"'Population 2016'!AY209*'Prevalence Rates'!AY209","v":115.61402954513883},{"$f":"'Population 2016'!AZ209*'Prevalence Rates'!AZ209","v":78.813807939259092},{"$f":"'Population 2016'!BA209*'Prevalence Rates'!BA209","v":7.9222699290435541},{"$f":"'Population 2016'!BB209*'Prevalence Rates'!BB209","v":11.500069251837417},{"$f":"'Population 2016'!BC209*'Prevalence Rates'!BC209","v":1.0733397968381588},207]
[null,"Male 85-89",{"$f":"'Population 2016'!C210*'Prevalence Rates'!C210","v":7.2067100644847812},{"$f":"'Population 2016'!D210*'Prevalence Rates'!D210","v":34.960210525585744},{"$f":"'Population 2016'!E210*'Prevalence Rates'!E210","v":27.753500461100966},{"$f":"'Population 2016'!F210*'Prevalence Rates'!F210","v":12.777854724263797},{"$f":"'Population 2016'!G210*'Prevalence Rates'!G210","v":7.1555986455877258},{"$f":"'Population 2016'!H210*'Prevalence Rates'!H210","v":16.56009972264588},{"$f":"'Population 2016'!I210*'Prevalence Rates'!I210","v":17.582328100586984},{"$f":"'Population 2016'!J210*'Prevalence Rates'!J210","v":10.222283779411038},{"$f":"'Population 2016'!K210*'Prevalence Rates'!K210","v":2.1466795936763177},{"$f":"'Population 2016'!L210*'Prevalence Rates'!L210","v":11.704514927425638},{"$f":"'Population 2016'!M210*'Prevalence Rates'!M210","v":11.704514927425638},{"$f":"'Population 2016'!N210*'Prevalence Rates'!N210","v":7.7689356723523879},{"$f":"'Population 2016'!O210*'Prevalence Rates'!O210","v":3.2200193905144765},{"$f":"'Population 2016'!P210*'Prevalence Rates'!P210","v":7.3600443211759465},{"$f":"'Population 2016'!Q210*'Prevalence Rates'!Q210","v":10.068949522719871},{"$f":"'Population 2016'!R210*'Prevalence Rates'!R210","v":3.884467836176194},{"$f":"'Population 2016'!S210*'Prevalence Rates'!S210","v":77.178242534553334},{"$f":"'Population 2016'!T210*'Prevalence Rates'!T210","v":21.926798706836674},{"$f":"'Population 2016'!U210*'Prevalence Rates'!U210","v":0.61333702676466229},{"$f":"'Population 2016'!V210*'Prevalence Rates'!V210","v":8.740052631396436},{"$f":"'Population 2016'!W210*'Prevalence Rates'!W210","v":18.400110802939867},{"$f":"'Population 2016'!X210*'Prevalence Rates'!X210","v":18.400110802939867},{"$f":"'Population 2016'!Y210*'Prevalence Rates'!Y210","v":18.962336410807474},{"$f":"'Population 2016'!Z210*'Prevalence Rates'!Z210","v":13.084523237646128},{"$f":"'Population 2016'!AA210*'Prevalence Rates'!AA210","v":61.538148352054442},{"$f":"'Population 2016'!AB210*'Prevalence Rates'!AB210","v":45.898054169555557},{"$f":"'Population 2016'!AC210*'Prevalence Rates'!AC210","v":40.480243766467709},{"$f":"'Population 2016'!AD210*'Prevalence Rates'!AD210","v":32.660196675218266},{"$f":"'Population 2016'!AE210*'Prevalence Rates'!AE210","v":25.504598029630539},{"$f":"'Population 2016'!AF210*'Prevalence Rates'!AF210","v":3.9355792550732493},{"$f":"'Population 2016'!AG210*'Prevalence Rates'!AG210","v":25.504598029630539},{"$f":"'Population 2016'!AH210*'Prevalence Rates'!AH210","v":21.057904585586737},{"$f":"'Population 2016'!AI210*'Prevalence Rates'!AI210","v":41.195803631026479},{"$f":"'Population 2016'!AJ210*'Prevalence Rates'!AJ210","v":3.5777993227938629},{"$f":"'Population 2016'!AK210*'Prevalence Rates'!AK210","v":10.93784364396981},{"$f":"'Population 2016'!AL210*'Prevalence Rates'!AL210","v":7.8200470912494433},{"$f":"'Population 2016'!AM210*'Prevalence Rates'!AM210","v":6.5933730377201192},{"$f":"'Population 2016'!AN210*'Prevalence Rates'!AN210","v":3.4755764849997526},{"$f":"'Population 2016'!AO210*'Prevalence Rates'!AO210","v":3.4755764849997526},{"$f":"'Population 2016'!AP210*'Prevalence Rates'!AP210","v":23.817921206027716},{"$f":"'Population 2016'!AQ210*'Prevalence Rates'!AQ210","v":9.2000554014699336},{"$f":"'Population 2016'!AR210*'Prevalence Rates'!AR210","v":316.07301445938924},{"$f":"'Population 2016'!AS210*'Prevalence Rates'!AS210","v":17.582328100586984},{"$f":"'Population 2016'!AT210*'Prevalence Rates'!AT210","v":3.1177965527203662},{"$f":"'Population 2016'!AU210*'Prevalence Rates'!AU210","v":3.1177965527203662},{"$f":"'Population 2016'!AV210*'Prevalence Rates'!AV210","v":5.5200332408819603},{"$f":"'Population 2016'!AW210*'Prevalence Rates'!AW210","v":14.464531547866617},{"$f":"'Population 2016'!AX210*'Prevalence Rates'!AX210","v":8.0756041857347185},{"$f":"'Population 2016'!AY210*'Prevalence Rates'!AY210","v":62.764822405583772},{"$f":"'Population 2016'!AZ210*'Prevalence Rates'!AZ210","v":44.364711602643901},{"$f":"'Population 2016'!BA210*'Prevalence Rates'!BA210","v":3.0155737149262558},{"$f":"'Population 2016'!BB210*'Prevalence Rates'!BB210","v":5.6222560786760702},{"$f":"'Population 2016'!BC210*'Prevalence Rates'!BC210","v":0.61333702676466229},208]
[null,"Male 90+",{"$f":"'Population 2016'!C211*'Prevalence Rates'!C211","v":2.0955681747792627},{"$f":"'Population 2016'!D211*'Prevalence Rates'!D211","v":13.8000831022049},{"$f":"'Population 2016'!E211*'Prevalence Rates'!E211","v":11.704514927425638},{"$f":"'Population 2016'!F211*'Prevalence Rates'!F211","v":4.8555847952202429},{"$f":"'Population 2016'!G211*'Prevalence Rates'!G211","v":3.5777993227938629},{"$f":"'Population 2016'!H211*'Prevalence Rates'!H211","v":7.1555986455877258},{"$f":"'Population 2016'!I211*'Prevalence Rates'!I211","v":6.2867045243377877},{"$f":"'Population 2016'!J211*'Prevalence Rates'!J211","v":3.884467836176194},{"$f":"'Population 2016'!K211*'Prevalence Rates'!K211","v":0.81778270235288297},{"$f":"'Population 2016'!L211*'Prevalence Rates'!L211","v":4.3955820251467461},{"$f":"'Population 2016'!M211*'Prevalence Rates'!M211","v":4.3955820251467461},{"$f":"'Population 2016'!N211*'Prevalence Rates'!N211","v":4.2422477684555808},{"$f":"'Population 2016'!O211*'Prevalence Rates'!O211","v":1.6866768236028211},{"$f":"'Population 2016'!P211*'Prevalence Rates'!P211","v":3.1689079716174215},{"$f":"'Population 2016'!Q211*'Prevalence Rates'!Q211","v":3.1689079716174215},{"$f":"'Population 2016'!R211*'Prevalence Rates'!R211","v":2.5044595259557041},{"$f":"'Population 2016'!S211*'Prevalence Rates'!S211","v":30.46240566264489},{"$f":"'Population 2016'!T211*'Prevalence Rates'!T211","v":10.784509387278645},{"$f":"'Population 2016'!U211*'Prevalence Rates'!U211","v":0.10222283779411037},{"$f":"'Population 2016'!V211*'Prevalence Rates'!V211","v":3.5777993227938629},{"$f":"'Population 2016'!W211*'Prevalence Rates'!W211","v":8.1267156046317748},{"$f":"'Population 2016'!X211*'Prevalence Rates'!X211","v":8.1267156046317748},{"$f":"'Population 2016'!Y211*'Prevalence Rates'!Y211","v":7.4622671589700573},{"$f":"'Population 2016'!Z211*'Prevalence Rates'!Z211","v":5.3155875652937397},{"$f":"'Population 2016'!AA211*'Prevalence Rates'!AA211","v":25.453486610733481},{"$f":"'Population 2016'!AB211*'Prevalence Rates'!AB211","v":18.809002154116307},{"$f":"'Population 2016'!AC211*'Prevalence Rates'!AC211","v":17.633439519484039},{"$f":"'Population 2016'!AD211*'Prevalence Rates'!AD211","v":14.208974453381341},{"$f":"'Population 2016'!AE211*'Prevalence Rates'!AE211","v":10.631175130587479},{"$f":"'Population 2016'!AF211*'Prevalence Rates'!AF211","v":1.4822311480146004},{"$f":"'Population 2016'!AG211*'Prevalence Rates'!AG211","v":10.631175130587479},{"$f":"'Population 2016'!AH211*'Prevalence Rates'!AH211","v":7.8200470912494433},{"$f":"'Population 2016'!AI211*'Prevalence Rates'!AI211","v":16.048985533675328},{"$f":"'Population 2016'!AJ211*'Prevalence Rates'!AJ211","v":0.92000554014699332},{"$f":"'Population 2016'!AK211*'Prevalence Rates'!AK211","v":5.0089190519114082},{"$f":"'Population 2016'!AL211*'Prevalence Rates'!AL211","v":2.5555709448527595},{"$f":"'Population 2016'!AM211*'Prevalence Rates'!AM211","v":2.7600166204409802},{"$f":"'Population 2016'!AN211*'Prevalence Rates'!AN211","v":1.6866768236028211},{"$f":"'Population 2016'!AO211*'Prevalence Rates'!AO211","v":1.6866768236028211},{"$f":"'Population 2016'!AP211*'Prevalence Rates'!AP211","v":9.9156152660287056},{"$f":"'Population 2016'!AQ211*'Prevalence Rates'!AQ211","v":3.884467836176194},{"$f":"'Population 2016'!AR211*'Prevalence Rates'!AR211","v":130.0274496741084},{"$f":"'Population 2016'!AS211*'Prevalence Rates'!AS211","v":6.2867045243377877},{"$f":"'Population 2016'!AT211*'Prevalence Rates'!AT211","v":1.2777854724263797},{"$f":"'Population 2016'!AU211*'Prevalence Rates'!AU211","v":1.2777854724263797},{"$f":"'Population 2016'!AV211*'Prevalence Rates'!AV211","v":2.9133508771321455},{"$f":"'Population 2016'!AW211*'Prevalence Rates'!AW211","v":5.0600304708084636},{"$f":"'Population 2016'!AX211*'Prevalence Rates'!AX211","v":3.0666851338233112},{"$f":"'Population 2016'!AY211*'Prevalence Rates'!AY211","v":27.140163434336305},{"$f":"'Population 2016'!AZ211*'Prevalence Rates'!AZ211","v":19.013447829704528},{"$f":"'Population 2016'!BA211*'Prevalence Rates'!BA211","v":1.2777854724263797},{"$f":"'Population 2016'!BB211*'Prevalence Rates'!BB211","v":1.1755626346322692},{"$f":"'Population 2016'!BC211*'Prevalence Rates'!BC211","v":0.10222283779411037},209]
["SIMD Q5 (least deprived)","Female 0-4",{"$f":"'Population 2016'!C212*'Prevalence Rates'!C212","v":0},{"$f":"'Population 2016'!D212*'Prevalence Rates'!D212","v":0},{"$f":"'Population 2016'!E212*'Prevalence Rates'!E212","v":0},{"$f":"'Population 2016'!F212*'Prevalence Rates'!F212","v":0},{"$f":"'Population 2016'!G212*'Prevalence Rates'!G212","v":0},{"$f":"'Population 2016'!H212*'Prevalence Rates'!H212","v":0},{"$f":"'Population 2016'!I212*'Prevalence Rates'!I212","v":0},{"$f":"'Population 2016'!J212*'Prevalence Rates'!J212","v":0},{"$f":"'Population 2016'!K212*'Prevalence Rates'!K212","v":0},{"$f":"'Population 2016'!L212*'Prevalence Rates'!L212","v":0},{"$f":"'Population 2016'!M212*'Prevalence Rates'!M212","v":0},{"$f":"'Population 2016'!N212*'Prevalence Rates'!N212","v":0},{"$f":"'Population 2016'!O212*'Prevalence Rates'!O212","v":0},{"$f":"'Population 2016'!P212*'Prevalence Rates'!P212","v":0},{"$f":"'Population 2016'!Q212*'Prevalence Rates'!Q212","v":0},{"$f":"'Population 2016'!R212*'Prevalence Rates'!R212","v":0},{"$f":"'Population 2016'!S212*'Prevalence Rates'!S212","v":0},{"$f":"'Population 2016'!T212*'Prevalence Rates'!T212","v":0},{"$f":"'Population 2016'!U212*'Prevalence Rates'!U212","v":0},{"$f":"'Population 2016'!V212*'Prevalence Rates'!V212","v":0},{"$f":"'Population 2016'!W212*'Prevalence Rates'!W212","v":0},{"$f":"'Population 2016'!X212*'Prevalence Rates'!X212","v":0},{"$f":"'Population 2016'!Y212*'Prevalence Rates'!Y212","v":0},{"$f":"'Population 2016'!Z212*'Prevalence Rates'!Z212","v":0},{"$f":"'Population 2016'!AA212*'Prevalence Rates'!AA212","v":0},{"$f":"'Population 2016'!AB212*'Prevalence Rates'!AB212","v":0},{"$f":"'Population 2016'!AC212*'Prevalence Rates'!AC212","v":0},{"$f":"'Population 2016'!AD212*'Prevalence Rates'!AD212","v":0},{"$f":"'Population 2016'!AE212*'Prevalence Rates'!AE212","v":0},{"$f":"'Population 2016'!AF212*'Prevalence Rates'!AF212","v":0},{"$f":"'Population 2016'!AG212*'Prevalence Rates'!AG212","v":0},{"$f":"'Population 2016'!AH212*'Prevalence Rates'!AH212","v":0},{"$f":"'Population 2016'!AI212*'Prevalence Rates'!AI212","v":0},{"$f":"'Population 2016'!AJ212*'Prevalence Rates'!AJ212","v":0},{"$f":"'Population 2016'!AK212*'Prevalence Rates'!AK212","v":0},{"$f":"'Population 2016'!AL212*'Prevalence Rates'!AL212","v":0},{"$f":"'Population 2016'!AM212*'Prevalence Rates'!AM212","v":0},{"$f":"'Population 2016'!AN212*'Prevalence Rates'!AN212","v":0},{"$f":"'Population 2016'!AO212*'Prevalence Rates'!AO212","v":0},{"$f":"'Population 2016'!AP212*'Prevalence Rates'!AP212","v":0},{"$f":"'Population 2016'!AQ212*'Prevalence Rates'!AQ212","v":0},{"$f":"'Population 2016'!AR212*'Prevalence Rates'!AR212","v":0},{"$f":"'Population 2016'!AS212*'Prevalence Rates'!AS212","v":0},{"$f":"'Population 2016'!AT212*'Prevalence Rates'!AT212","v":0},{"$f":"'Population 2016'!AU212*'Prevalence Rates'!AU212","v":0},{"$f":"'Population 2016'!AV212*'Prevalence Rates'!AV212","v":0},{"$f":"'Population 2016'!AW212*'Prevalence Rates'!AW212","v":0},{"$f":"'Population 2016'!AX212*'Prevalence Rates'!AX212","v":0},{"$f":"'Population 2016'!AY212*'Prevalence Rates'!AY212","v":0},{"$f":"'Population 2016'!AZ212*'Prevalence Rates'!AZ212","v":0},{"$f":"'Population 2016'!BA212*'Prevalence Rates'!BA212","v":0},{"$f":"'Population 2016'!BB212*'Prevalence Rates'!BB212","v":0},{"$f":"'Population 2016'!BC212*'Prevalence Rates'!BC212","v":0},210]
[null,"Female 5-9",{"$f":"'Population 2016'!C213*'Prevalence Rates'!C213","v":0},{"$f":"'Population 2016'!D213*'Prevalence Rates'!D213","v":0},{"$f":"'Population 2016'!E213*'Prevalence Rates'!E213","v":0},{"$f":"'Population 2016'!F213*'Prevalence Rates'!F213","v":0},{"$f":"'Population 2016'!G213*'Prevalence Rates'!G213","v":0},{"$f":"'Population 2016'!H213*'Prevalence Rates'!H213","v":0},{"$f":"'Population 2016'!I213*'Prevalence Rates'!I213","v":0},{"$f":"'Population 2016'!J213*'Prevalence Rates'!J213","v":0},{"$f":"'Population 2016'!K213*'Prevalence Rates'!K213","v":0},{"$f":"'Population 2016'!L213*'Prevalence Rates'!L213","v":0},{"$f":"'Population 2016'!M213*'Prevalence Rates'!M213","v":0},{"$f":"'Population 2016'!N213*'Prevalence Rates'!N213","v":0},{"$f":"'Population 2016'!O213*'Prevalence Rates'!O213","v":0},{"$f":"'Population 2016'!P213*'Prevalence Rates'!P213","v":0},{"$f":"'Population 2016'!Q213*'Prevalence Rates'!Q213","v":0},{"$f":"'Population 2016'!R213*'Prevalence Rates'!R213","v":0},{"$f":"'Population 2016'!S213*'Prevalence Rates'!S213","v":0},{"$f":"'Population 2016'!T213*'Prevalence Rates'!T213","v":0},{"$f":"'Population 2016'!U213*'Prevalence Rates'!U213","v":0},{"$f":"'Population 2016'!V213*'Prevalence Rates'!V213","v":0},{"$f":"'Population 2016'!W213*'Prevalence Rates'!W213","v":0},{"$f":"'Population 2016'!X213*'Prevalence Rates'!X213","v":0},{"$f":"'Population 2016'!Y213*'Prevalence Rates'!Y213","v":0},{"$f":"'Population 2016'!Z213*'Prevalence Rates'!Z213","v":0},{"$f":"'Population 2016'!AA213*'Prevalence Rates'!AA213","v":0},{"$f":"'Population 2016'!AB213*'Prevalence Rates'!AB213","v":0},{"$f":"'Population 2016'!AC213*'Prevalence Rates'!AC213","v":0},{"$f":"'Population 2016'!AD213*'Prevalence Rates'!AD213","v":0},{"$f":"'Population 2016'!AE213*'Prevalence Rates'!AE213","v":0},{"$f":"'Population 2016'!AF213*'Prevalence Rates'!AF213","v":0},{"$f":"'Population 2016'!AG213*'Prevalence Rates'!AG213","v":0},{"$f":"'Population 2016'!AH213*'Prevalence Rates'!AH213","v":0},{"$f":"'Population 2016'!AI213*'Prevalence Rates'!AI213","v":0},{"$f":"'Population 2016'!AJ213*'Prevalence Rates'!AJ213","v":0},{"$f":"'Population 2016'!AK213*'Prevalence Rates'!AK213","v":0},{"$f":"'Population 2016'!AL213*'Prevalence Rates'!AL213","v":0},{"$f":"'Population 2016'!AM213*'Prevalence Rates'!AM213","v":0},{"$f":"'Population 2016'!AN213*'Prevalence Rates'!AN213","v":0},{"$f":"'Population 2016'!AO213*'Prevalence Rates'!AO213","v":0},{"$f":"'Population 2016'!AP213*'Prevalence Rates'!AP213","v":0},{"$f":"'Population 2016'!AQ213*'Prevalence Rates'!AQ213","v":0},{"$f":"'Population 2016'!AR213*'Prevalence Rates'!AR213","v":0},{"$f":"'Population 2016'!AS213*'Prevalence Rates'!AS213","v":0},{"$f":"'Population 2016'!AT213*'Prevalence Rates'!AT213","v":0},{"$f":"'Population 2016'!AU213*'Prevalence Rates'!AU213","v":0},{"$f":"'Population 2016'!AV213*'Prevalence Rates'!AV213","v":0},{"$f":"'Population 2016'!AW213*'Prevalence Rates'!AW213","v":0},{"$f":"'Population 2016'!AX213*'Prevalence Rates'!AX213","v":0},{"$f":"'Population 2016'!AY213*'Prevalence Rates'!AY213","v":0},{"$f":"'Population 2016'!AZ213*'Prevalence Rates'!AZ213","v":0},{"$f":"'Population 2016'!BA213*'Prevalence Rates'!BA213","v":0},{"$f":"'Population 2016'!BB213*'Prevalence Rates'!BB213","v":0},{"$f":"'Population 2016'!BC213*'Prevalence Rates'!BC213","v":0},211]
[null,"Female 10-15",{"$f":"'Population 2016'!C214*'Prevalence Rates'!C214","v":0},{"$f":"'Population 2016'!D214*'Prevalence Rates'!D214","v":0},{"$f":"'Population 2016'!E214*'Prevalence Rates'!E214","v":0},{"$f":"'Population 2016'!F214*'Prevalence Rates'!F214","v":0},{"$f":"'Population 2016'!G214*'Prevalence Rates'!G214","v":0},{"$f":"'Population 2016'!H214*'Prevalence Rates'!H214","v":0},{"$f":"'Population 2016'!I214*'Prevalence Rates'!I214","v":0},{"$f":"'Population 2016'!J214*'Prevalence Rates'!J214","v":0},{"$f":"'Population 2016'!K214*'Prevalence Rates'!K214","v":0},{"$f":"'Population 2016'!L214*'Prevalence Rates'!L214","v":0},{"$f":"'Population 2016'!M214*'Prevalence Rates'!M214","v":0},{"$f":"'Population 2016'!N214*'Prevalence Rates'!N214","v":0},{"$f":"'Population 2016'!O214*'Prevalence Rates'!O214","v":0},{"$f":"'Population 2016'!P214*'Prevalence Rates'!P214","v":0},{"$f":"'Population 2016'!Q214*'Prevalence Rates'!Q214","v":0},{"$f":"'Population 2016'!R214*'Prevalence Rates'!R214","v":0},{"$f":"'Population 2016'!S214*'Prevalence Rates'!S214","v":0},{"$f":"'Population 2016'!T214*'Prevalence Rates'!T214","v":0},{"$f":"'Population 2016'!U214*'Prevalence Rates'!U214","v":0},{"$f":"'Population 2016'!V214*'Prevalence Rates'!V214","v":0},{"$f":"'Population 2016'!W214*'Prevalence Rates'!W214","v":0},{"$f":"'Population 2016'!X214*'Prevalence Rates'!X214","v":0},{"$f":"'Population 2016'!Y214*'Prevalence Rates'!Y214","v":0},{"$f":"'Population 2016'!Z214*'Prevalence Rates'!Z214","v":0},{"$f":"'Population 2016'!AA214*'Prevalence Rates'!AA214","v":0},{"$f":"'Population 2016'!AB214*'Prevalence Rates'!AB214","v":0},{"$f":"'Population 2016'!AC214*'Prevalence Rates'!AC214","v":0},{"$f":"'Population 2016'!AD214*'Prevalence Rates'!AD214","v":0},{"$f":"'Population 2016'!AE214*'Prevalence Rates'!AE214","v":0},{"$f":"'Population 2016'!AF214*'Prevalence Rates'!AF214","v":0},{"$f":"'Population 2016'!AG214*'Prevalence Rates'!AG214","v":0},{"$f":"'Population 2016'!AH214*'Prevalence Rates'!AH214","v":0},{"$f":"'Population 2016'!AI214*'Prevalence Rates'!AI214","v":0},{"$f":"'Population 2016'!AJ214*'Prevalence Rates'!AJ214","v":0},{"$f":"'Population 2016'!AK214*'Prevalence Rates'!AK214","v":0},{"$f":"'Population 2016'!AL214*'Prevalence Rates'!AL214","v":0},{"$f":"'Population 2016'!AM214*'Prevalence Rates'!AM214","v":0},{"$f":"'Population 2016'!AN214*'Prevalence Rates'!AN214","v":0},{"$f":"'Population 2016'!AO214*'Prevalence Rates'!AO214","v":0},{"$f":"'Population 2016'!AP214*'Prevalence Rates'!AP214","v":0},{"$f":"'Population 2016'!AQ214*'Prevalence Rates'!AQ214","v":0},{"$f":"'Population 2016'!AR214*'Prevalence Rates'!AR214","v":0},{"$f":"'Population 2016'!AS214*'Prevalence Rates'!AS214","v":0},{"$f":"'Population 2016'!AT214*'Prevalence Rates'!AT214","v":0},{"$f":"'Population 2016'!AU214*'Prevalence Rates'!AU214","v":0},{"$f":"'Population 2016'!AV214*'Prevalence Rates'!AV214","v":0},{"$f":"'Population 2016'!AW214*'Prevalence Rates'!AW214","v":0},{"$f":"'Population 2016'!AX214*'Prevalence Rates'!AX214","v":0},{"$f":"'Population 2016'!AY214*'Prevalence Rates'!AY214","v":0},{"$f":"'Population 2016'!AZ214*'Prevalence Rates'!AZ214","v":0},{"$f":"'Population 2016'!BA214*'Prevalence Rates'!BA214","v":0},{"$f":"'Population 2016'!BB214*'Prevalence Rates'!BB214","v":0},{"$f":"'Population 2016'!BC214*'Prevalence Rates'!BC214","v":0},212]
[null,"Female 16-19",{"$f":"'Population 2016'!C215*'Prevalence Rates'!C215","v":178.85360638091541},{"$f":"'Population 2016'!D215*'Prevalence Rates'!D215","v":343.40243462636016},{"$f":"'Population 2016'!E215*'Prevalence Rates'!E215","v":164.54882824544475},{"$f":"'Population 2016'!F215*'Prevalence Rates'!F215","v":40.281553154484875},{"$f":"'Population 2016'!G215*'Prevalence Rates'!G215","v":11.759756258607785},{"$f":"'Population 2016'!H215*'Prevalence Rates'!H215","v":93.200456318219906},{"$f":"'Population 2016'!I215*'Prevalence Rates'!I215","v":18.429468763489812},{"$f":"'Population 2016'!J215*'Prevalence Rates'!J215","v":108.55834695446141},{"$f":"'Population 2016'!K215*'Prevalence Rates'!K215","v":14.304778135470663},{"$f":"'Population 2016'!L215*'Prevalence Rates'!L215","v":22.729678141637436},{"$f":"'Population 2016'!M215*'Prevalence Rates'!M215","v":22.729678141637436},{"$f":"'Population 2016'!N215*'Prevalence Rates'!N215","v":55.463925040597907},{"$f":"'Population 2016'!O215*'Prevalence Rates'!O215","v":27.907481270427429},{"$f":"'Population 2016'!P215*'Prevalence Rates'!P215","v":115.93013445985734},{"$f":"'Population 2016'!Q215*'Prevalence Rates'!Q215","v":31.33009689793268},{"$f":"'Population 2016'!R215*'Prevalence Rates'!R215","v":114.87702195908649},{"$f":"'Population 2016'!S215*'Prevalence Rates'!S215","v":752.01008492544861},{"$f":"'Population 2016'!T215*'Prevalence Rates'!T215","v":404.30744092094079},{"$f":"'Population 2016'!U215*'Prevalence Rates'!U215","v":0},{"$f":"'Population 2016'!V215*'Prevalence Rates'!V215","v":59.413096918488584},{"$f":"'Population 2016'!W215*'Prevalence Rates'!W215","v":201.6710438976171},{"$f":"'Population 2016'!X215*'Prevalence Rates'!X215","v":201.6710438976171},{"$f":"'Population 2016'!Y215*'Prevalence Rates'!Y215","v":167.97144387295},{"$f":"'Population 2016'!Z215*'Prevalence Rates'!Z215","v":130.76146884571344},{"$f":"'Population 2016'!AA215*'Prevalence Rates'!AA215","v":608.96230357074194},{"$f":"'Population 2016'!AB215*'Prevalence Rates'!AB215","v":379.91033465308283},{"$f":"'Population 2016'!AC215*'Prevalence Rates'!AC215","v":453.27717220678511},{"$f":"'Population 2016'!AD215*'Prevalence Rates'!AD215","v":50.461640661936393},{"$f":"'Population 2016'!AE215*'Prevalence Rates'!AE215","v":38.701884403328606},{"$f":"'Population 2016'!AF215*'Prevalence Rates'!AF215","v":17.113078137526255},{"$f":"'Population 2016'!AG215*'Prevalence Rates'!AG215","v":38.701884403328606},{"$f":"'Population 2016'!AH215*'Prevalence Rates'!AH215","v":155.6851313639568},{"$f":"'Population 2016'!AI215*'Prevalence Rates'!AI215","v":531.9095722643417},{"$f":"'Population 2016'!AJ215*'Prevalence Rates'!AJ215","v":24.835903143179127},{"$f":"'Population 2016'!AK215*'Prevalence Rates'!AK215","v":36.507900026722673},{"$f":"'Population 2016'!AL215*'Prevalence Rates'!AL215","v":22.466400016444723},{"$f":"'Population 2016'!AM215*'Prevalence Rates'!AM215","v":69.066628175554669},{"$f":"'Population 2016'!AN215*'Prevalence Rates'!AN215","v":2.2817437516701671},{"$f":"'Population 2016'!AO215*'Prevalence Rates'!AO215","v":2.2817437516701671},{"$f":"'Population 2016'!AP215*'Prevalence Rates'!AP215","v":44.230725032375545},{"$f":"'Population 2016'!AQ215*'Prevalence Rates'!AQ215","v":65.644012548049432},{"$f":"'Population 2016'!AR215*'Prevalence Rates'!AR215","v":2217.5038891231457},{"$f":"'Population 2016'!AS215*'Prevalence Rates'!AS215","v":18.429468763489812},{"$f":"'Population 2016'!AT215*'Prevalence Rates'!AT215","v":0},{"$f":"'Population 2016'!AU215*'Prevalence Rates'!AU215","v":0},{"$f":"'Population 2016'!AV215*'Prevalence Rates'!AV215","v":42.826575031347751},{"$f":"'Population 2016'!AW215*'Prevalence Rates'!AW215","v":86.618503188402116},{"$f":"'Population 2016'!AX215*'Prevalence Rates'!AX215","v":94.253568818990757},{"$f":"'Population 2016'!AY215*'Prevalence Rates'!AY215","v":341.64724712507541},{"$f":"'Population 2016'!AZ215*'Prevalence Rates'!AZ215","v":139.97620322745834},{"$f":"'Population 2016'!BA215*'Prevalence Rates'!BA215","v":8.9514562565521949},{"$f":"'Population 2016'!BB215*'Prevalence Rates'!BB215","v":71.436131302289084},{"$f":"'Population 2016'!BC215*'Prevalence Rates'!BC215","v":0},213]
[null,"Female 20-24",{"$f":"'Population 2016'!C216*'Prevalence Rates'!C216","v":315.23167523074},{"$f":"'Population 2016'!D216*'Prevalence Rates'!D216","v":495.57719098774749},{"$f":"'Population 2016'!E216*'Prevalence Rates'!E216","v":180.34551575700743},{"$f":"'Population 2016'!F216*'Prevalence Rates'!F216","v":37.209975027236574},{"$f":"'Population 2016'!G216*'Prevalence Rates'!G216","v":16.147725011819645},{"$f":"'Population 2016'!H216*'Prevalence Rates'!H216","v":90.830953191485506},{"$f":"'Population 2016'!I216*'Prevalence Rates'!I216","v":17.815153138040152},{"$f":"'Population 2016'!J216*'Prevalence Rates'!J216","v":113.12183445780175},{"$f":"'Population 2016'!K216*'Prevalence Rates'!K216","v":12.812868759378631},{"$f":"'Population 2016'!L216*'Prevalence Rates'!L216","v":27.029887519785056},{"$f":"'Population 2016'!M216*'Prevalence Rates'!M216","v":27.029887519785056},{"$f":"'Population 2016'!N216*'Prevalence Rates'!N216","v":68.10127504984807},{"$f":"'Population 2016'!O216*'Prevalence Rates'!O216","v":27.907481270427429},{"$f":"'Population 2016'!P216*'Prevalence Rates'!P216","v":121.98553133928971},{"$f":"'Population 2016'!Q216*'Prevalence Rates'!Q216","v":31.417856272996918},{"$f":"'Population 2016'!R216*'Prevalence Rates'!R216","v":120.58138133826191},{"$f":"'Population 2016'!S216*'Prevalence Rates'!S216","v":1414.2423291601824},{"$f":"'Population 2016'!T216*'Prevalence Rates'!T216","v":901.99085691022992},{"$f":"'Population 2016'!U216*'Prevalence Rates'!U216","v":0},{"$f":"'Population 2016'!V216*'Prevalence Rates'!V216","v":70.295259426453995},{"$f":"'Population 2016'!W216*'Prevalence Rates'!W216","v":365.69331589267642},{"$f":"'Population 2016'!X216*'Prevalence Rates'!X216","v":365.69331589267642},{"$f":"'Population 2016'!Y216*'Prevalence Rates'!Y216","v":183.41709388425573},{"$f":"'Population 2016'!Z216*'Prevalence Rates'!Z216","v":339.10222524821256},{"$f":"'Population 2016'!AA216*'Prevalence Rates'!AA216","v":867.76470063517741},{"$f":"'Population 2016'!AB216*'Prevalence Rates'!AB216","v":533.75251914069065},{"$f":"'Population 2016'!AC216*'Prevalence Rates'!AC216","v":691.01731925580373},{"$f":"'Population 2016'!AD216*'Prevalence Rates'!AD216","v":59.325337543424347},{"$f":"'Population 2016'!AE216*'Prevalence Rates'!AE216","v":43.177612531604701},{"$f":"'Population 2016'!AF216*'Prevalence Rates'!AF216","v":21.501046890738113},{"$f":"'Population 2016'!AG216*'Prevalence Rates'!AG216","v":43.177612531604701},{"$f":"'Population 2016'!AH216*'Prevalence Rates'!AH216","v":176.74738137937371},{"$f":"'Population 2016'!AI216*'Prevalence Rates'!AI216","v":1030.7338601294659},{"$f":"'Population 2016'!AJ216*'Prevalence Rates'!AJ216","v":30.628021897418783},{"$f":"'Population 2016'!AK216*'Prevalence Rates'!AK216","v":38.17532815294318},{"$f":"'Population 2016'!AL216*'Prevalence Rates'!AL216","v":21.852084390995064},{"$f":"'Population 2016'!AM216*'Prevalence Rates'!AM216","v":75.385303180179761},{"$f":"'Population 2016'!AN216*'Prevalence Rates'!AN216","v":3.861412502826437},{"$f":"'Population 2016'!AO216*'Prevalence Rates'!AO216","v":3.861412502826437},{"$f":"'Population 2016'!AP216*'Prevalence Rates'!AP216","v":50.461640661936393},{"$f":"'Population 2016'!AQ216*'Prevalence Rates'!AQ216","v":77.491528181721449},{"$f":"'Population 2016'!AR216*'Prevalence Rates'!AR216","v":3335.9971243168488},{"$f":"'Population 2016'!AS216*'Prevalence Rates'!AS216","v":17.815153138040152},{"$f":"'Population 2016'!AT216*'Prevalence Rates'!AT216","v":0},{"$f":"'Population 2016'!AU216*'Prevalence Rates'!AU216","v":0},{"$f":"'Population 2016'!AV216*'Prevalence Rates'!AV216","v":41.071387530063006},{"$f":"'Population 2016'!AW216*'Prevalence Rates'!AW216","v":101.36207819919396},{"$f":"'Population 2016'!AX216*'Prevalence Rates'!AX216","v":100.30896569842312},{"$f":"'Population 2016'!AY216*'Prevalence Rates'!AY216","v":521.46620663169745},{"$f":"'Population 2016'!AZ216*'Prevalence Rates'!AZ216","v":155.77289073902102},{"$f":"'Population 2016'!BA216*'Prevalence Rates'!BA216","v":10.355606257579989},{"$f":"'Population 2016'!BB216*'Prevalence Rates'!BB216","v":66.697125048820268},{"$f":"'Population 2016'!BC216*'Prevalence Rates'!BC216","v":0},214]
[null,"Female 25-29",{"$f":"'Population 2016'!C217*'Prevalence Rates'!C217","v":352.88044713329776},{"$f":"'Population 2016'!D217*'Prevalence Rates'!D217","v":535.68322539210385},{"$f":"'Population 2016'!E217*'Prevalence Rates'!E217","v":182.80277825880609},{"$f":"'Population 2016'!F217*'Prevalence Rates'!F217","v":35.279268775823354},{"$f":"'Population 2016'!G217*'Prevalence Rates'!G217","v":12.812868759378631},{"$f":"'Population 2016'!H217*'Prevalence Rates'!H217","v":76.262896930822123},{"$f":"'Population 2016'!I217*'Prevalence Rates'!I217","v":13.865981260149477},{"$f":"'Population 2016'!J217*'Prevalence Rates'!J217","v":69.944221926197045},{"$f":"'Population 2016'!K217*'Prevalence Rates'!K217","v":9.3024937568091435},{"$f":"'Population 2016'!L217*'Prevalence Rates'!L217","v":31.066818772739968},{"$f":"'Population 2016'!M217*'Prevalence Rates'!M217","v":31.066818772739968},{"$f":"'Population 2016'!N217*'Prevalence Rates'!N217","v":56.07824066604757},{"$f":"'Population 2016'!O217*'Prevalence Rates'!O217","v":29.925946896904886},{"$f":"'Population 2016'!P217*'Prevalence Rates'!P217","v":92.761659442898718},{"$f":"'Population 2016'!Q217*'Prevalence Rates'!Q217","v":31.94441252338234},{"$f":"'Population 2016'!R217*'Prevalence Rates'!R217","v":98.817056322331084},{"$f":"'Population 2016'!S217*'Prevalence Rates'!S217","v":1085.846747669807},{"$f":"'Population 2016'!T217*'Prevalence Rates'!T217","v":774.47648494189332},{"$f":"'Population 2016'!U217*'Prevalence Rates'!U217","v":0},{"$f":"'Population 2016'!V217*'Prevalence Rates'!V217","v":67.574718799462644},{"$f":"'Population 2016'!W217*'Prevalence Rates'!W217","v":169.55111262410628},{"$f":"'Population 2016'!X217*'Prevalence Rates'!X217","v":169.55111262410628},{"$f":"'Population 2016'!Y217*'Prevalence Rates'!Y217","v":137.51894072565969},{"$f":"'Population 2016'!Z217*'Prevalence Rates'!Z217","v":300.75137834514089},{"$f":"'Population 2016'!AA217*'Prevalence Rates'!AA217","v":724.98019740566349},{"$f":"'Population 2016'!AB217*'Prevalence Rates'!AB217","v":576.57909417203837},{"$f":"'Population 2016'!AC217*'Prevalence Rates'!AC217","v":577.54444729774502},{"$f":"'Population 2016'!AD217*'Prevalence Rates'!AD217","v":65.819531298177893},{"$f":"'Population 2016'!AE217*'Prevalence Rates'!AE217","v":53.006662538799269},{"$f":"'Population 2016'!AF217*'Prevalence Rates'!AF217","v":15.006853135984562},{"$f":"'Population 2016'!AG217*'Prevalence Rates'!AG217","v":53.006662538799269},{"$f":"'Population 2016'!AH217*'Prevalence Rates'!AH217","v":147.43575010791849},{"$f":"'Population 2016'!AI217*'Prevalence Rates'!AI217","v":902.42965378555107},{"$f":"'Population 2016'!AJ217*'Prevalence Rates'!AJ217","v":30.628021897418783},{"$f":"'Population 2016'!AK217*'Prevalence Rates'!AK217","v":40.895868779934538},{"$f":"'Population 2016'!AL217*'Prevalence Rates'!AL217","v":15.97220626169117},{"$f":"'Population 2016'!AM217*'Prevalence Rates'!AM217","v":64.503140672214343},{"$f":"'Population 2016'!AN217*'Prevalence Rates'!AN217","v":4.7390062534688084},{"$f":"'Population 2016'!AO217*'Prevalence Rates'!AO217","v":4.7390062534688084},{"$f":"'Population 2016'!AP217*'Prevalence Rates'!AP217","v":46.687987534174191},{"$f":"'Population 2016'!AQ217*'Prevalence Rates'!AQ217","v":64.23986254702163},{"$f":"'Population 2016'!AR217*'Prevalence Rates'!AR217","v":2840.8587302044225},{"$f":"'Population 2016'!AS217*'Prevalence Rates'!AS217","v":13.865981260149477},{"$f":"'Population 2016'!AT217*'Prevalence Rates'!AT217","v":0},{"$f":"'Population 2016'!AU217*'Prevalence Rates'!AU217","v":0},{"$f":"'Population 2016'!AV217*'Prevalence Rates'!AV217","v":30.36474377222607},{"$f":"'Population 2016'!AW217*'Prevalence Rates'!AW217","v":82.932609435704151},{"$f":"'Population 2016'!AX217*'Prevalence Rates'!AX217","v":60.641728169387903},{"$f":"'Population 2016'!AY217*'Prevalence Rates'!AY217","v":307.5966096001514},{"$f":"'Population 2016'!AZ217*'Prevalence Rates'!AZ217","v":138.04549697604511},{"$f":"'Population 2016'!BA217*'Prevalence Rates'!BA217","v":5.9676375043681293},{"$f":"'Population 2016'!BB217*'Prevalence Rates'!BB217","v":65.380734422856719},{"$f":"'Population 2016'!BC217*'Prevalence Rates'!BC217","v":0},215]
[null,"Female 30-34",{"$f":"'Population 2016'!C218*'Prevalence Rates'!C218","v":301.89225022097594},{"$f":"'Population 2016'!D218*'Prevalence Rates'!D218","v":561.83551916124657},{"$f":"'Population 2016'!E218*'Prevalence Rates'!E218","v":259.94326894027057},{"$f":"'Population 2016'!F218*'Prevalence Rates'!F218","v":43.177612531604701},{"$f":"'Population 2016'!G218*'Prevalence Rates'!G218","v":9.8290500071945672},{"$f":"'Population 2016'!H218*'Prevalence Rates'!H218","v":89.602321940586179},{"$f":"'Population 2016'!I218*'Prevalence Rates'!I218","v":24.484865642922177},{"$f":"'Population 2016'!J218*'Prevalence Rates'!J218","v":59.588615668617059},{"$f":"'Population 2016'!K218*'Prevalence Rates'!K218","v":12.374071884057445},{"$f":"'Population 2016'!L218*'Prevalence Rates'!L218","v":31.066818772739968},{"$f":"'Population 2016'!M218*'Prevalence Rates'!M218","v":31.066818772739968},{"$f":"'Population 2016'!N218*'Prevalence Rates'!N218","v":54.323053164762825},{"$f":"'Population 2016'!O218*'Prevalence Rates'!O218","v":34.577193775309453},{"$f":"'Population 2016'!P218*'Prevalence Rates'!P218","v":98.992575072459559},{"$f":"'Population 2016'!Q218*'Prevalence Rates'!Q218","v":37.034456277108099},{"$f":"'Population 2016'!R218*'Prevalence Rates'!R218","v":97.763943821560247},{"$f":"'Population 2016'!S218*'Prevalence Rates'!S218","v":987.20521009760421},{"$f":"'Population 2016'!T218*'Prevalence Rates'!T218","v":632.3940567128933},{"$f":"'Population 2016'!U218*'Prevalence Rates'!U218","v":0},{"$f":"'Population 2016'!V218*'Prevalence Rates'!V218","v":90.830953191485506},{"$f":"'Population 2016'!W218*'Prevalence Rates'!W218","v":178.85360638091541},{"$f":"'Population 2016'!X218*'Prevalence Rates'!X218","v":178.85360638091541},{"$f":"'Population 2016'!Y218*'Prevalence Rates'!Y218","v":150.41956886010257},{"$f":"'Population 2016'!Z218*'Prevalence Rates'!Z218","v":224.92727828963993},{"$f":"'Population 2016'!AA218*'Prevalence Rates'!AA218","v":684.17208800079322},{"$f":"'Population 2016'!AB218*'Prevalence Rates'!AB218","v":606.59280044400748},{"$f":"'Population 2016'!AC218*'Prevalence Rates'!AC218","v":510.40852537360354},{"$f":"'Population 2016'!AD218*'Prevalence Rates'!AD218","v":67.574718799462644},{"$f":"'Population 2016'!AE218*'Prevalence Rates'!AE218","v":57.745668792268077},{"$f":"'Population 2016'!AF218*'Prevalence Rates'!AF218","v":15.708928136498459},{"$f":"'Population 2016'!AG218*'Prevalence Rates'!AG218","v":57.745668792268077},{"$f":"'Population 2016'!AH218*'Prevalence Rates'!AH218","v":173.76356262718966},{"$f":"'Population 2016'!AI218*'Prevalence Rates'!AI218","v":783.86673807376667},{"$f":"'Population 2016'!AJ218*'Prevalence Rates'!AJ218","v":37.385493777365049},{"$f":"'Population 2016'!AK218*'Prevalence Rates'!AK218","v":44.757281282760971},{"$f":"'Population 2016'!AL218*'Prevalence Rates'!AL218","v":23.080715641894383},{"$f":"'Population 2016'!AM218*'Prevalence Rates'!AM218","v":75.824100055500935},{"$f":"'Population 2016'!AN218*'Prevalence Rates'!AN218","v":3.4226156275052508},{"$f":"'Population 2016'!AO218*'Prevalence Rates'!AO218","v":3.4226156275052508},{"$f":"'Population 2016'!AP218*'Prevalence Rates'!AP218","v":58.535503167846215},{"$f":"'Population 2016'!AQ218*'Prevalence Rates'!AQ218","v":65.819531298177893},{"$f":"'Population 2016'!AR218*'Prevalence Rates'!AR218","v":2776.0923114070151},{"$f":"'Population 2016'!AS218*'Prevalence Rates'!AS218","v":24.484865642922177},{"$f":"'Population 2016'!AT218*'Prevalence Rates'!AT218","v":0},{"$f":"'Population 2016'!AU218*'Prevalence Rates'!AU218","v":0},{"$f":"'Population 2016'!AV218*'Prevalence Rates'!AV218","v":31.94441252338234},{"$f":"'Population 2016'!AW218*'Prevalence Rates'!AW218","v":97.939462571688708},{"$f":"'Population 2016'!AX218*'Prevalence Rates'!AX218","v":47.214543784559616},{"$f":"'Population 2016'!AY218*'Prevalence Rates'!AY218","v":334.88977524512916},{"$f":"'Population 2016'!AZ218*'Prevalence Rates'!AZ218","v":156.03616886421375},{"$f":"'Population 2016'!BA218*'Prevalence Rates'!BA218","v":7.1962687552674502},{"$f":"'Population 2016'!BB218*'Prevalence Rates'!BB218","v":77.052731306400261},{"$f":"'Population 2016'!BC218*'Prevalence Rates'!BC218","v":0},216]
[null,"Female 35-39",{"$f":"'Population 2016'!C219*'Prevalence Rates'!C219","v":269.42128144720823},{"$f":"'Population 2016'!D219*'Prevalence Rates'!D219","v":552.18198790418046},{"$f":"'Population 2016'!E219*'Prevalence Rates'!E219","v":282.76070645697223},{"$f":"'Population 2016'!F219*'Prevalence Rates'!F219","v":50.461640661936393},{"$f":"'Population 2016'!G219*'Prevalence Rates'!G219","v":14.743575010791849},{"$f":"'Population 2016'!H219*'Prevalence Rates'!H219","v":108.20730945420446},{"$f":"'Population 2016'!I219*'Prevalence Rates'!I219","v":27.293165644977769},{"$f":"'Population 2016'!J219*'Prevalence Rates'!J219","v":72.664762553188396},{"$f":"'Population 2016'!K219*'Prevalence Rates'!K219","v":17.025318762462017},{"$f":"'Population 2016'!L219*'Prevalence Rates'!L219","v":30.540262522354546},{"$f":"'Population 2016'!M219*'Prevalence Rates'!M219","v":30.540262522354546},{"$f":"'Population 2016'!N219*'Prevalence Rates'!N219","v":50.19836253674368},{"$f":"'Population 2016'!O219*'Prevalence Rates'!O219","v":35.454787525951829},{"$f":"'Population 2016'!P219*'Prevalence Rates'!P219","v":141.99466885393579},{"$f":"'Population 2016'!Q219*'Prevalence Rates'!Q219","v":48.26765628533046},{"$f":"'Population 2016'!R219*'Prevalence Rates'!R219","v":150.85836573542375},{"$f":"'Population 2016'!S219*'Prevalence Rates'!S219","v":1022.2212007482349},{"$f":"'Population 2016'!T219*'Prevalence Rates'!T219","v":611.59508482266904},{"$f":"'Population 2016'!U219*'Prevalence Rates'!U219","v":0},{"$f":"'Population 2016'!V219*'Prevalence Rates'!V219","v":94.692365694311931},{"$f":"'Population 2016'!W219*'Prevalence Rates'!W219","v":201.23224702229589},{"$f":"'Population 2016'!X219*'Prevalence Rates'!X219","v":201.23224702229589},{"$f":"'Population 2016'!Y219*'Prevalence Rates'!Y219","v":167.35712824750033},{"$f":"'Population 2016'!Z219*'Prevalence Rates'!Z219","v":177.36169700482338},{"$f":"'Population 2016'!AA219*'Prevalence Rates'!AA219","v":797.03064433340228},{"$f":"'Population 2016'!AB219*'Prevalence Rates'!AB219","v":587.90005355532503},{"$f":"'Population 2016'!AC219*'Prevalence Rates'!AC219","v":583.51208480211312},{"$f":"'Population 2016'!AD219*'Prevalence Rates'!AD219","v":75.99961880562941},{"$f":"'Population 2016'!AE219*'Prevalence Rates'!AE219","v":61.256043794837566},{"$f":"'Population 2016'!AF219*'Prevalence Rates'!AF219","v":20.360175014903032},{"$f":"'Population 2016'!AG219*'Prevalence Rates'!AG219","v":61.256043794837566},{"$f":"'Population 2016'!AH219*'Prevalence Rates'!AH219","v":213.5185595312891},{"$f":"'Population 2016'!AI219*'Prevalence Rates'!AI219","v":793.69578808096128},{"$f":"'Population 2016'!AJ219*'Prevalence Rates'!AJ219","v":41.861221905641145},{"$f":"'Population 2016'!AK219*'Prevalence Rates'!AK219","v":35.718065651144542},{"$f":"'Population 2016'!AL219*'Prevalence Rates'!AL219","v":27.731962520298953},{"$f":"'Population 2016'!AM219*'Prevalence Rates'!AM219","v":90.918712566549743},{"$f":"'Population 2016'!AN219*'Prevalence Rates'!AN219","v":5.1778031287899946},{"$f":"'Population 2016'!AO219*'Prevalence Rates'!AO219","v":5.1778031287899946},{"$f":"'Population 2016'!AP219*'Prevalence Rates'!AP219","v":60.290690669130953},{"$f":"'Population 2016'!AQ219*'Prevalence Rates'!AQ219","v":81.967256309997538},{"$f":"'Population 2016'!AR219*'Prevalence Rates'!AR219","v":2955.384714663252},{"$f":"'Population 2016'!AS219*'Prevalence Rates'!AS219","v":27.293165644977769},{"$f":"'Population 2016'!AT219*'Prevalence Rates'!AT219","v":0},{"$f":"'Population 2016'!AU219*'Prevalence Rates'!AU219","v":0},{"$f":"'Population 2016'!AV219*'Prevalence Rates'!AV219","v":45.020559407953684},{"$f":"'Population 2016'!AW219*'Prevalence Rates'!AW219","v":122.59984696473937},{"$f":"'Population 2016'!AX219*'Prevalence Rates'!AX219","v":55.639443790726382},{"$f":"'Population 2016'!AY219*'Prevalence Rates'!AY219","v":362.18294089010692},{"$f":"'Population 2016'!AZ219*'Prevalence Rates'!AZ219","v":160.95069386781103},{"$f":"'Population 2016'!BA219*'Prevalence Rates'!BA219","v":10.969921883029651},{"$f":"'Population 2016'!BB219*'Prevalence Rates'!BB219","v":91.97182506732058},{"$f":"'Population 2016'!BC219*'Prevalence Rates'!BC219","v":0},217]
[null,"Female 40-44",{"$f":"'Population 2016'!C220*'Prevalence Rates'!C220","v":248.27127205672704},{"$f":"'Population 2016'!D220*'Prevalence Rates'!D220","v":549.1104097769321},{"$f":"'Population 2016'!E220*'Prevalence Rates'!E220","v":300.83913772020514},{"$f":"'Population 2016'!F220*'Prevalence Rates'!F220","v":62.221396920544173},{"$f":"'Population 2016'!G220*'Prevalence Rates'!G220","v":17.025318762462017},{"$f":"'Population 2016'!H220*'Prevalence Rates'!H220","v":137.95773760098089},{"$f":"'Population 2016'!I220*'Prevalence Rates'!I220","v":42.212259405898095},{"$f":"'Population 2016'!J220*'Prevalence Rates'!J220","v":92.410621942641768},{"$f":"'Population 2016'!K220*'Prevalence Rates'!K220","v":21.939843766059301},{"$f":"'Population 2016'!L220*'Prevalence Rates'!L220","v":32.997525024153184},{"$f":"'Population 2016'!M220*'Prevalence Rates'!M220","v":32.997525024153184},{"$f":"'Population 2016'!N220*'Prevalence Rates'!N220","v":58.974300043167396},{"$f":"'Population 2016'!O220*'Prevalence Rates'!O220","v":46.33695003391724},{"$f":"'Population 2016'!P220*'Prevalence Rates'!P220","v":164.8998657457017},{"$f":"'Population 2016'!Q220*'Prevalence Rates'!Q220","v":56.07824066604757},{"$f":"'Population 2016'!R220*'Prevalence Rates'!R220","v":170.34094699968441},{"$f":"'Population 2016'!S220*'Prevalence Rates'!S220","v":1070.9276539088864},{"$f":"'Population 2016'!T220*'Prevalence Rates'!T220","v":582.89776917666347},{"$f":"'Population 2016'!U220*'Prevalence Rates'!U220","v":0},{"$f":"'Population 2016'!V220*'Prevalence Rates'!V220","v":115.31581883440768},{"$f":"'Population 2016'!W220*'Prevalence Rates'!W220","v":231.15819391920078},{"$f":"'Population 2016'!X220*'Prevalence Rates'!X220","v":231.15819391920078},{"$f":"'Population 2016'!Y220*'Prevalence Rates'!Y220","v":207.72644077704945},{"$f":"'Population 2016'!Z220*'Prevalence Rates'!Z220","v":165.1631438708944},{"$f":"'Population 2016'!AA220*'Prevalence Rates'!AA220","v":869.6954068865906},{"$f":"'Population 2016'!AB220*'Prevalence Rates'!AB220","v":596.23719418642759},{"$f":"'Population 2016'!AC220*'Prevalence Rates'!AC220","v":631.25318483705814},{"$f":"'Population 2016'!AD220*'Prevalence Rates'!AD220","v":87.759375064237204},{"$f":"'Population 2016'!AE220*'Prevalence Rates'!AE220","v":70.734056301775183},{"$f":"'Population 2016'!AF220*'Prevalence Rates'!AF220","v":26.591090644463872},{"$f":"'Population 2016'!AG220*'Prevalence Rates'!AG220","v":70.734056301775183},{"$f":"'Population 2016'!AH220*'Prevalence Rates'!AH220","v":238.44222204953246},{"$f":"'Population 2016'!AI220*'Prevalence Rates'!AI220","v":797.55720058378768},{"$f":"'Population 2016'!AJ220*'Prevalence Rates'!AJ220","v":43.353131281733177},{"$f":"'Population 2016'!AK220*'Prevalence Rates'!AK220","v":47.126784409495379},{"$f":"'Population 2016'!AL220*'Prevalence Rates'!AL220","v":35.542546901016067},{"$f":"'Population 2016'!AM220*'Prevalence Rates'!AM220","v":97.851703196624484},{"$f":"'Population 2016'!AN220*'Prevalence Rates'!AN220","v":3.7736531277621994},{"$f":"'Population 2016'!AO220*'Prevalence Rates'!AO220","v":3.7736531277621994},{"$f":"'Population 2016'!AP220*'Prevalence Rates'!AP220","v":75.64858130537246},{"$f":"'Population 2016'!AQ220*'Prevalence Rates'!AQ220","v":93.463734443412619},{"$f":"'Population 2016'!AR220*'Prevalence Rates'!AR220","v":3203.9192648451717},{"$f":"'Population 2016'!AS220*'Prevalence Rates'!AS220","v":42.212259405898095},{"$f":"'Population 2016'!AT220*'Prevalence Rates'!AT220","v":0},{"$f":"'Population 2016'!AU220*'Prevalence Rates'!AU220","v":0},{"$f":"'Population 2016'!AV220*'Prevalence Rates'!AV220","v":56.07824066604757},{"$f":"'Population 2016'!AW220*'Prevalence Rates'!AW220","v":140.59051885290799},{"$f":"'Population 2016'!AX220*'Prevalence Rates'!AX220","v":70.470778176582471},{"$f":"'Population 2016'!AY220*'Prevalence Rates'!AY220","v":428.0024721882848},{"$f":"'Population 2016'!AZ220*'Prevalence Rates'!AZ220","v":196.84427826908404},{"$f":"'Population 2016'!BA220*'Prevalence Rates'!BA220","v":10.794403132901175},{"$f":"'Population 2016'!BB220*'Prevalence Rates'!BB220","v":115.22805945934344},{"$f":"'Population 2016'!BC220*'Prevalence Rates'!BC220","v":0},218]
[null,"Female 45-49",{"$f":"'Population 2016'!C221*'Prevalence Rates'!C221","v":264.33123769348242},{"$f":"'Population 2016'!D221*'Prevalence Rates'!D221","v":587.28573792987538},{"$f":"'Population 2016'!E221*'Prevalence Rates'!E221","v":322.9545002363929},{"$f":"'Population 2016'!F221*'Prevalence Rates'!F221","v":71.523890677353322},{"$f":"'Population 2016'!G221*'Prevalence Rates'!G221","v":23.16847501695862},{"$f":"'Population 2016'!H221*'Prevalence Rates'!H221","v":175.16771262821746},{"$f":"'Population 2016'!I221*'Prevalence Rates'!I221","v":43.265371906668939},{"$f":"'Population 2016'!J221*'Prevalence Rates'!J221","v":120.14258446294073},{"$f":"'Population 2016'!K221*'Prevalence Rates'!K221","v":25.889015643949975},{"$f":"'Population 2016'!L221*'Prevalence Rates'!L221","v":44.055206282247077},{"$f":"'Population 2016'!M221*'Prevalence Rates'!M221","v":44.055206282247077},{"$f":"'Population 2016'!N221*'Prevalence Rates'!N221","v":74.946506304858573},{"$f":"'Population 2016'!O221*'Prevalence Rates'!O221","v":53.094421913863506},{"$f":"'Population 2016'!P221*'Prevalence Rates'!P221","v":198.59946577036879},{"$f":"'Population 2016'!Q221*'Prevalence Rates'!Q221","v":68.540071925169258},{"$f":"'Population 2016'!R221*'Prevalence Rates'!R221","v":199.74033764620387},{"$f":"'Population 2016'!S221*'Prevalence Rates'!S221","v":1174.8347539849433},{"$f":"'Population 2016'!T221*'Prevalence Rates'!T221","v":621.5118942049279},{"$f":"'Population 2016'!U221*'Prevalence Rates'!U221","v":0},{"$f":"'Population 2016'!V221*'Prevalence Rates'!V221","v":124.17951571589563},{"$f":"'Population 2016'!W221*'Prevalence Rates'!W221","v":253.71235331070974},{"$f":"'Population 2016'!X221*'Prevalence Rates'!X221","v":253.71235331070974},{"$f":"'Population 2016'!Y221*'Prevalence Rates'!Y221","v":244.32210017883637},{"$f":"'Population 2016'!Z221*'Prevalence Rates'!Z221","v":186.48867201150404},{"$f":"'Population 2016'!AA221*'Prevalence Rates'!AA221","v":1043.7222476389729},{"$f":"'Population 2016'!AB221*'Prevalence Rates'!AB221","v":641.34551296944551},{"$f":"'Population 2016'!AC221*'Prevalence Rates'!AC221","v":756.13477555346776},{"$f":"'Population 2016'!AD221*'Prevalence Rates'!AD221","v":100.57224382361584},{"$f":"'Population 2016'!AE221*'Prevalence Rates'!AE221","v":77.403768806657212},{"$f":"'Population 2016'!AF221*'Prevalence Rates'!AF221","v":34.577193775309453},{"$f":"'Population 2016'!AG221*'Prevalence Rates'!AG221","v":77.403768806657212},{"$f":"'Population 2016'!AH221*'Prevalence Rates'!AH221","v":287.58747208550528},{"$f":"'Population 2016'!AI221*'Prevalence Rates'!AI221","v":877.85702876756466},{"$f":"'Population 2016'!AJ221*'Prevalence Rates'!AJ221","v":49.320768786101304},{"$f":"'Population 2016'!AK221*'Prevalence Rates'!AK221","v":54.059775039570113},{"$f":"'Population 2016'!AL221*'Prevalence Rates'!AL221","v":47.126784409495379},{"$f":"'Population 2016'!AM221*'Prevalence Rates'!AM221","v":125.93470321718038},{"$f":"'Population 2016'!AN221*'Prevalence Rates'!AN221","v":6.5819531298177898},{"$f":"'Population 2016'!AO221*'Prevalence Rates'!AO221","v":6.5819531298177898},{"$f":"'Population 2016'!AP221*'Prevalence Rates'!AP221","v":89.95335944084313},{"$f":"'Population 2016'!AQ221*'Prevalence Rates'!AQ221","v":120.84465946345462},{"$f":"'Population 2016'!AR221*'Prevalence Rates'!AR221","v":3667.0254870591516},{"$f":"'Population 2016'!AS221*'Prevalence Rates'!AS221","v":43.265371906668939},{"$f":"'Population 2016'!AT221*'Prevalence Rates'!AT221","v":0},{"$f":"'Population 2016'!AU221*'Prevalence Rates'!AU221","v":0},{"$f":"'Population 2016'!AV221*'Prevalence Rates'!AV221","v":74.946506304858573},{"$f":"'Population 2016'!AW221*'Prevalence Rates'!AW221","v":161.65276886832493},{"$f":"'Population 2016'!AX221*'Prevalence Rates'!AX221","v":94.253568818990757},{"$f":"'Population 2016'!AY221*'Prevalence Rates'!AY221","v":490.13610973376478},{"$f":"'Population 2016'!AZ221*'Prevalence Rates'!AZ221","v":236.42375642305501},{"$f":"'Population 2016'!BA221*'Prevalence Rates'!BA221","v":15.884446886626932},{"$f":"'Population 2016'!BB221*'Prevalence Rates'!BB221","v":138.48429385136629},{"$f":"'Population 2016'!BC221*'Prevalence Rates'!BC221","v":0},219]
[null,"Female 50-54",{"$f":"'Population 2016'!C222*'Prevalence Rates'!C222","v":281.61983458113718},{"$f":"'Population 2016'!D222*'Prevalence Rates'!D222","v":593.42889418437198},{"$f":"'Population 2016'!E222*'Prevalence Rates'!E222","v":311.80905960323474},{"$f":"'Population 2016'!F222*'Prevalence Rates'!F222","v":73.366837553702297},{"$f":"'Population 2016'!G222*'Prevalence Rates'!G222","v":24.221587517729468},{"$f":"'Population 2016'!H222*'Prevalence Rates'!H222","v":180.34551575700743},{"$f":"'Population 2016'!I222*'Prevalence Rates'!I222","v":38.965162528521319},{"$f":"'Population 2016'!J222*'Prevalence Rates'!J222","v":117.86084071127055},{"$f":"'Population 2016'!K222*'Prevalence Rates'!K222","v":27.556443770170482},{"$f":"'Population 2016'!L222*'Prevalence Rates'!L222","v":53.006662538799269},{"$f":"'Population 2016'!M222*'Prevalence Rates'!M222","v":53.006662538799269},{"$f":"'Population 2016'!N222*'Prevalence Rates'!N222","v":79.773271933391612},{"$f":"'Population 2016'!O222*'Prevalence Rates'!O222","v":50.724918787129099},{"$f":"'Population 2016'!P222*'Prevalence Rates'!P222","v":216.76565640866588},{"$f":"'Population 2016'!Q222*'Prevalence Rates'!Q222","v":64.415381297150105},{"$f":"'Population 2016'!R222*'Prevalence Rates'!R222","v":200.00361577139657},{"$f":"'Population 2016'!S222*'Prevalence Rates'!S222","v":1158.6870289731237},{"$f":"'Population 2016'!T222*'Prevalence Rates'!T222","v":632.83285358821445},{"$f":"'Population 2016'!U222*'Prevalence Rates'!U222","v":0},{"$f":"'Population 2016'!V222*'Prevalence Rates'!V222","v":114.26270633363683},{"$f":"'Population 2016'!W222*'Prevalence Rates'!W222","v":245.98952830505687},{"$f":"'Population 2016'!X222*'Prevalence Rates'!X222","v":245.98952830505687},{"$f":"'Population 2016'!Y222*'Prevalence Rates'!Y222","v":232.12354704490738},{"$f":"'Population 2016'!Z222*'Prevalence Rates'!Z222","v":189.47249076368811},{"$f":"'Population 2016'!AA222*'Prevalence Rates'!AA222","v":1091.2000695487254},{"$f":"'Population 2016'!AB222*'Prevalence Rates'!AB222","v":644.153812971501},{"$f":"'Population 2016'!AC222*'Prevalence Rates'!AC222","v":789.92213495319902},{"$f":"'Population 2016'!AD222*'Prevalence Rates'!AD222","v":105.75004695240582},{"$f":"'Population 2016'!AE222*'Prevalence Rates'!AE222","v":81.528459434676364},{"$f":"'Population 2016'!AF222*'Prevalence Rates'!AF222","v":35.015990650630641},{"$f":"'Population 2016'!AG222*'Prevalence Rates'!AG222","v":81.528459434676364},{"$f":"'Population 2016'!AH222*'Prevalence Rates'!AH222","v":301.27793459552629},{"$f":"'Population 2016'!AI222*'Prevalence Rates'!AI222","v":873.7323381395455},{"$f":"'Population 2016'!AJ222*'Prevalence Rates'!AJ222","v":46.512468784045716},{"$f":"'Population 2016'!AK222*'Prevalence Rates'!AK222","v":50.724918787129099},{"$f":"'Population 2016'!AL222*'Prevalence Rates'!AL222","v":45.547115658339109},{"$f":"'Population 2016'!AM222*'Prevalence Rates'!AM222","v":123.91623759070292},{"$f":"'Population 2016'!AN222*'Prevalence Rates'!AN222","v":5.8798781293038926},{"$f":"'Population 2016'!AO222*'Prevalence Rates'!AO222","v":5.8798781293038926},{"$f":"'Population 2016'!AP222*'Prevalence Rates'!AP222","v":99.168093822588034},{"$f":"'Population 2016'!AQ222*'Prevalence Rates'!AQ222","v":130.67370947064919},{"$f":"'Population 2016'!AR222*'Prevalence Rates'!AR222","v":3723.454765225456},{"$f":"'Population 2016'!AS222*'Prevalence Rates'!AS222","v":38.965162528521319},{"$f":"'Population 2016'!AT222*'Prevalence Rates'!AT222","v":0},{"$f":"'Population 2016'!AU222*'Prevalence Rates'!AU222","v":0},{"$f":"'Population 2016'!AV222*'Prevalence Rates'!AV222","v":84.07348131153924},{"$f":"'Population 2016'!AW222*'Prevalence Rates'!AW222","v":177.36169700482338},{"$f":"'Population 2016'!AX222*'Prevalence Rates'!AX222","v":90.30439694110008},{"$f":"'Population 2016'!AY222*'Prevalence Rates'!AY222","v":498.29773161473884},{"$f":"'Population 2016'!AZ222*'Prevalence Rates'!AZ222","v":252.30820330968194},{"$f":"'Population 2016'!BA222*'Prevalence Rates'!BA222","v":17.990671888168627},{"$f":"'Population 2016'!BB222*'Prevalence Rates'!BB222","v":129.97163447013529},{"$f":"'Population 2016'!BC222*'Prevalence Rates'!BC222","v":0},220]
[null,"Female 55-59",{"$f":"'Population 2016'!C223*'Prevalence Rates'!C223","v":218.04375693154142},{"$f":"'Population 2016'!D223*'Prevalence Rates'!D223","v":438.36646074942064},{"$f":"'Population 2016'!E223*'Prevalence Rates'!E223","v":220.32270381787919},{"$f":"'Population 2016'!F223*'Prevalence Rates'!F223","v":57.194215405508842},{"$f":"'Population 2016'!G223*'Prevalence Rates'!G223","v":21.907295875117782},{"$f":"'Population 2016'!H223*'Prevalence Rates'!H223","v":157.02679191024023},{"$f":"'Population 2016'!I223*'Prevalence Rates'!I223","v":28.817650949819367},{"$f":"'Population 2016'!J223*'Prevalence Rates'!J223","v":86.085380771016531},{"$f":"'Population 2016'!K223*'Prevalence Rates'!K223","v":19.554834573091714},{"$f":"'Population 2016'!L223*'Prevalence Rates'!L223","v":39.330212393248367},{"$f":"'Population 2016'!M223*'Prevalence Rates'!M223","v":39.330212393248367},{"$f":"'Population 2016'!N223*'Prevalence Rates'!N223","v":66.23648853517156},{"$f":"'Population 2016'!O223*'Prevalence Rates'!O223","v":41.168072785456239},{"$f":"'Population 2016'!P223*'Prevalence Rates'!P223","v":163.71660373787685},{"$f":"'Population 2016'!Q223*'Prevalence Rates'!Q223","v":45.431908895378491},{"$f":"'Population 2016'!R223*'Prevalence Rates'!R223","v":149.67535034140874},{"$f":"'Population 2016'!S223*'Prevalence Rates'!S223","v":880.26161345188029},{"$f":"'Population 2016'!T223*'Prevalence Rates'!T223","v":495.56067615492947},{"$f":"'Population 2016'!U223*'Prevalence Rates'!U223","v":0},{"$f":"'Population 2016'!V223*'Prevalence Rates'!V223","v":78.660424786496733},{"$f":"'Population 2016'!W223*'Prevalence Rates'!W223","v":190.62287987980005},{"$f":"'Population 2016'!X223*'Prevalence Rates'!X223","v":190.62287987980005},{"$f":"'Population 2016'!Y223*'Prevalence Rates'!Y223","v":164.74580555751328},{"$f":"'Population 2016'!Z223*'Prevalence Rates'!Z223","v":142.83850968239548},{"$f":"'Population 2016'!AA223*'Prevalence Rates'!AA223","v":814.31918257946199},{"$f":"'Population 2016'!AB223*'Prevalence Rates'!AB223","v":475.12366859357797},{"$f":"'Population 2016'!AC223*'Prevalence Rates'!AC223","v":592.59970486350483},{"$f":"'Population 2016'!AD223*'Prevalence Rates'!AD223","v":81.380458166964388},{"$f":"'Population 2016'!AE223*'Prevalence Rates'!AE223","v":59.473162291846599},{"$f":"'Population 2016'!AF223*'Prevalence Rates'!AF223","v":25.58301665953352},{"$f":"'Population 2016'!AG223*'Prevalence Rates'!AG223","v":59.473162291846599},{"$f":"'Population 2016'!AH223*'Prevalence Rates'!AH223","v":221.71947771595717},{"$f":"'Population 2016'!AI223*'Prevalence Rates'!AI223","v":660.82108262226097},{"$f":"'Population 2016'!AJ223*'Prevalence Rates'!AJ223","v":36.610179012780726},{"$f":"'Population 2016'!AK223*'Prevalence Rates'!AK223","v":36.757207844157357},{"$f":"'Population 2016'!AL223*'Prevalence Rates'!AL223","v":39.256697977560059},{"$f":"'Population 2016'!AM223*'Prevalence Rates'!AM223","v":90.643274543692044},{"$f":"'Population 2016'!AN223*'Prevalence Rates'!AN223","v":3.8962640314806798},{"$f":"'Population 2016'!AO223*'Prevalence Rates'!AO223","v":3.8962640314806798},{"$f":"'Population 2016'!AP223*'Prevalence Rates'!AP223","v":77.116622057042136},{"$f":"'Population 2016'!AQ223*'Prevalence Rates'!AQ223","v":98.288773775276766},{"$f":"'Population 2016'!AR223*'Prevalence Rates'!AR223","v":2816.6313226820898},{"$f":"'Population 2016'!AS223*'Prevalence Rates'!AS223","v":28.817650949819367},{"$f":"'Population 2016'!AT223*'Prevalence Rates'!AT223","v":0},{"$f":"'Population 2016'!AU223*'Prevalence Rates'!AU223","v":0},{"$f":"'Population 2016'!AV223*'Prevalence Rates'!AV223","v":76.602021147223923},{"$f":"'Population 2016'!AW223*'Prevalence Rates'!AW223","v":131.07620317226514},{"$f":"'Population 2016'!AX223*'Prevalence Rates'!AX223","v":66.530546197924807},{"$f":"'Population 2016'!AY223*'Prevalence Rates'!AY223","v":391.17020587752256},{"$f":"'Population 2016'!AZ223*'Prevalence Rates'!AZ223","v":200.54732599772254},{"$f":"'Population 2016'!BA223*'Prevalence Rates'!BA223","v":12.497450667013501},{"$f":"'Population 2016'!BB223*'Prevalence Rates'!BB223","v":83.218318559172246},{"$f":"'Population 2016'!BC223*'Prevalence Rates'!BC223","v":0},221]
[null,"Female 60-64",{"$f":"'Population 2016'!C224*'Prevalence Rates'!C224","v":171.8767038792798},{"$f":"'Population 2016'!D224*'Prevalence Rates'!D224","v":375.65866416728818},{"$f":"'Population 2016'!E224*'Prevalence Rates'!E224","v":203.78196028800838},{"$f":"'Population 2016'!F224*'Prevalence Rates'!F224","v":53.371465789716481},{"$f":"'Population 2016'!G224*'Prevalence Rates'!G224","v":16.099657035740922},{"$f":"'Population 2016'!H224*'Prevalence Rates'!H224","v":146.51423046681123},{"$f":"'Population 2016'!I224*'Prevalence Rates'!I224","v":26.685732894858241},{"$f":"'Population 2016'!J224*'Prevalence Rates'!J224","v":81.306943751276066},{"$f":"'Population 2016'!K224*'Prevalence Rates'!K224","v":22.715954447689246},{"$f":"'Population 2016'!L224*'Prevalence Rates'!L224","v":37.859924079482077},{"$f":"'Population 2016'!M224*'Prevalence Rates'!M224","v":37.859924079482077},{"$f":"'Population 2016'!N224*'Prevalence Rates'!N224","v":49.401687342547483},{"$f":"'Population 2016'!O224*'Prevalence Rates'!O224","v":36.904236675533987},{"$f":"'Population 2016'!P224*'Prevalence Rates'!P224","v":146.66125929818784},{"$f":"'Population 2016'!Q224*'Prevalence Rates'!Q224","v":39.697784471689943},{"$f":"'Population 2016'!R224*'Prevalence Rates'!R224","v":129.8999725212521},{"$f":"'Population 2016'!S224*'Prevalence Rates'!S224","v":766.90238446049909},{"$f":"'Population 2016'!T224*'Prevalence Rates'!T224","v":421.8257172195498},{"$f":"'Population 2016'!U224*'Prevalence Rates'!U224","v":0},{"$f":"'Population 2016'!V224*'Prevalence Rates'!V224","v":65.574858793976716},{"$f":"'Population 2016'!W224*'Prevalence Rates'!W224","v":176.72865531470856},{"$f":"'Population 2016'!X224*'Prevalence Rates'!X224","v":176.72865531470856},{"$f":"'Population 2016'!Y224*'Prevalence Rates'!Y224","v":146.88180254525278},{"$f":"'Population 2016'!Z224*'Prevalence Rates'!Z224","v":125.48910757995321},{"$f":"'Population 2016'!AA224*'Prevalence Rates'!AA224","v":709.63465463930186},{"$f":"'Population 2016'!AB224*'Prevalence Rates'!AB224","v":412.7834440898871},{"$f":"'Population 2016'!AC224*'Prevalence Rates'!AC224","v":523.49615411648904},{"$f":"'Population 2016'!AD224*'Prevalence Rates'!AD224","v":73.293872441249761},{"$f":"'Population 2016'!AE224*'Prevalence Rates'!AE224","v":57.194215405508842},{"$f":"'Population 2016'!AF224*'Prevalence Rates'!AF224","v":29.405766275325885},{"$f":"'Population 2016'!AG224*'Prevalence Rates'!AG224","v":57.194215405508842},{"$f":"'Population 2016'!AH224*'Prevalence Rates'!AH224","v":186.13850052281285},{"$f":"'Population 2016'!AI224*'Prevalence Rates'!AI224","v":563.48799625093227},{"$f":"'Population 2016'!AJ224*'Prevalence Rates'!AJ224","v":31.611198745975326},{"$f":"'Population 2016'!AK224*'Prevalence Rates'!AK224","v":37.124779922598925},{"$f":"'Population 2016'!AL224*'Prevalence Rates'!AL224","v":34.698804204884546},{"$f":"'Population 2016'!AM224*'Prevalence Rates'!AM224","v":71.161954386288642},{"$f":"'Population 2016'!AN224*'Prevalence Rates'!AN224","v":4.1168072785456236},{"$f":"'Population 2016'!AO224*'Prevalence Rates'!AO224","v":4.1168072785456236},{"$f":"'Population 2016'!AP224*'Prevalence Rates'!AP224","v":72.558728284366623},{"$f":"'Population 2016'!AQ224*'Prevalence Rates'!AQ224","v":82.189116739535848},{"$f":"'Population 2016'!AR224*'Prevalence Rates'!AR224","v":2473.3190014176603},{"$f":"'Population 2016'!AS224*'Prevalence Rates'!AS224","v":26.685732894858241},{"$f":"'Population 2016'!AT224*'Prevalence Rates'!AT224","v":0},{"$f":"'Population 2016'!AU224*'Prevalence Rates'!AU224","v":0},{"$f":"'Population 2016'!AV224*'Prevalence Rates'!AV224","v":74.911189586392695},{"$f":"'Population 2016'!AW224*'Prevalence Rates'!AW224","v":114.97654613652421},{"$f":"'Population 2016'!AX224*'Prevalence Rates'!AX224","v":58.590989303586824},{"$f":"'Population 2016'!AY224*'Prevalence Rates'!AY224","v":352.06053673133914},{"$f":"'Population 2016'!AZ224*'Prevalence Rates'!AZ224","v":175.33188141663058},{"$f":"'Population 2016'!BA224*'Prevalence Rates'!BA224","v":9.8509317022341705},{"$f":"'Population 2016'!BB224*'Prevalence Rates'!BB224","v":70.353295813717182},{"$f":"'Population 2016'!BC224*'Prevalence Rates'!BC224","v":0},222]
[null,"Female 65-69",{"$f":"'Population 2016'!C225*'Prevalence Rates'!C225","v":165.92203620852629},{"$f":"'Population 2016'!D225*'Prevalence Rates'!D225","v":351.03133491170274},{"$f":"'Population 2016'!E225*'Prevalence Rates'!E225","v":185.10929870317645},{"$f":"'Population 2016'!F225*'Prevalence Rates'!F225","v":65.28080113122347},{"$f":"'Population 2016'!G225*'Prevalence Rates'!G225","v":18.59914716914362},{"$f":"'Population 2016'!H225*'Prevalence Rates'!H225","v":158.49708022400651},{"$f":"'Population 2016'!I225*'Prevalence Rates'!I225","v":29.405766275325885},{"$f":"'Population 2016'!J225*'Prevalence Rates'!J225","v":86.747010512211361},{"$f":"'Population 2016'!K225*'Prevalence Rates'!K225","v":22.348382369247673},{"$f":"'Population 2016'!L225*'Prevalence Rates'!L225","v":35.801520440209266},{"$f":"'Population 2016'!M225*'Prevalence Rates'!M225","v":35.801520440209266},{"$f":"'Population 2016'!N225*'Prevalence Rates'!N225","v":56.532585664314013},{"$f":"'Population 2016'!O225*'Prevalence Rates'!O225","v":37.492352001040501},{"$f":"'Population 2016'!P225*'Prevalence Rates'!P225","v":149.01372060021393},{"$f":"'Population 2016'!Q225*'Prevalence Rates'!Q225","v":43.22647642472905},{"$f":"'Population 2016'!R225*'Prevalence Rates'!R225","v":125.26856433288826},{"$f":"'Population 2016'!S225*'Prevalence Rates'!S225","v":796.74923722995482},{"$f":"'Population 2016'!T225*'Prevalence Rates'!T225","v":436.38157152583614},{"$f":"'Population 2016'!U225*'Prevalence Rates'!U225","v":0},{"$f":"'Population 2016'!V225*'Prevalence Rates'!V225","v":63.589969570392228},{"$f":"'Population 2016'!W225*'Prevalence Rates'!W225","v":197.23917729174838},{"$f":"'Population 2016'!X225*'Prevalence Rates'!X225","v":197.23917729174838},{"$f":"'Population 2016'!Y225*'Prevalence Rates'!Y225","v":150.33698008260359},{"$f":"'Population 2016'!Z225*'Prevalence Rates'!Z225","v":104.24344144603026},{"$f":"'Population 2016'!AA225*'Prevalence Rates'!AA225","v":665.23194756355986},{"$f":"'Population 2016'!AB225*'Prevalence Rates'!AB225","v":389.25883106962641},{"$f":"'Population 2016'!AC225*'Prevalence Rates'!AC225","v":496.58987797456587},{"$f":"'Population 2016'!AD225*'Prevalence Rates'!AD225","v":75.131732833457633},{"$f":"'Population 2016'!AE225*'Prevalence Rates'!AE225","v":56.532585664314013},{"$f":"'Population 2016'!AF225*'Prevalence Rates'!AF225","v":29.773338353767457},{"$f":"'Population 2016'!AG225*'Prevalence Rates'!AG225","v":56.532585664314013},{"$f":"'Population 2016'!AH225*'Prevalence Rates'!AH225","v":168.64206958899393},{"$f":"'Population 2016'!AI225*'Prevalence Rates'!AI225","v":570.10429366288054},{"$f":"'Population 2016'!AJ225*'Prevalence Rates'!AJ225","v":30.508482510650605},{"$f":"'Population 2016'!AK225*'Prevalence Rates'!AK225","v":38.227496157923646},{"$f":"'Population 2016'!AL225*'Prevalence Rates'!AL225","v":38.815611483430168},{"$f":"'Population 2016'!AM225*'Prevalence Rates'!AM225","v":63.810512817457166},{"$f":"'Population 2016'!AN225*'Prevalence Rates'!AN225","v":3.7492352001040503},{"$f":"'Population 2016'!AO225*'Prevalence Rates'!AO225","v":3.7492352001040503},{"$f":"'Population 2016'!AP225*'Prevalence Rates'!AP225","v":85.717808692574948},{"$f":"'Population 2016'!AQ225*'Prevalence Rates'!AQ225","v":81.306943751276066},{"$f":"'Population 2016'!AR225*'Prevalence Rates'!AR225","v":2482.2877601316345},{"$f":"'Population 2016'!AS225*'Prevalence Rates'!AS225","v":29.405766275325885},{"$f":"'Population 2016'!AT225*'Prevalence Rates'!AT225","v":0},{"$f":"'Population 2016'!AU225*'Prevalence Rates'!AU225","v":0},{"$f":"'Population 2016'!AV225*'Prevalence Rates'!AV225","v":82.189116739535848},{"$f":"'Population 2016'!AW225*'Prevalence Rates'!AW225","v":104.83155677153678},{"$f":"'Population 2016'!AX225*'Prevalence Rates'!AX225","v":64.398628142963688},{"$f":"'Population 2016'!AY225*'Prevalence Rates'!AY225","v":404.77037277986079},{"$f":"'Population 2016'!AZ225*'Prevalence Rates'!AZ225","v":207.53119548811242},{"$f":"'Population 2016'!BA225*'Prevalence Rates'!BA225","v":6.9838694903898979},{"$f":"'Population 2016'!BB225*'Prevalence Rates'!BB225","v":59.987763201664805},{"$f":"'Population 2016'!BC225*'Prevalence Rates'!BC225","v":0},223]
[null,"Female 70-74",{"$f":"'Population 2016'!C226*'Prevalence Rates'!C226","v":127.69454005060265},{"$f":"'Population 2016'!D226*'Prevalence Rates'!D226","v":261.04969010920553},{"$f":"'Population 2016'!E226*'Prevalence Rates'!E226","v":133.35515005860287},{"$f":"'Population 2016'!F226*'Prevalence Rates'!F226","v":46.975711624833103},{"$f":"'Population 2016'!G226*'Prevalence Rates'!G226","v":15.29099846316946},{"$f":"'Population 2016'!H226*'Prevalence Rates'!H226","v":122.10744445829073},{"$f":"'Population 2016'!I226*'Prevalence Rates'!I226","v":22.274867953559358},{"$f":"'Population 2016'!J226*'Prevalence Rates'!J226","v":66.824603860678067},{"$f":"'Population 2016'!K226*'Prevalence Rates'!K226","v":15.29099846316946},{"$f":"'Population 2016'!L226*'Prevalence Rates'!L226","v":34.4782609578196},{"$f":"'Population 2016'!M226*'Prevalence Rates'!M226","v":34.4782609578196},{"$f":"'Population 2016'!N226*'Prevalence Rates'!N226","v":45.431908895378491},{"$f":"'Population 2016'!O226*'Prevalence Rates'!O226","v":25.73004549091015},{"$f":"'Population 2016'!P226*'Prevalence Rates'!P226","v":124.68044900738175},{"$f":"'Population 2016'!Q226*'Prevalence Rates'!Q226","v":36.463150181404096},{"$f":"'Population 2016'!R226*'Prevalence Rates'!R226","v":107.84564781475768},{"$f":"'Population 2016'!S226*'Prevalence Rates'!S226","v":596.49596889498559},{"$f":"'Population 2016'!T226*'Prevalence Rates'!T226","v":324.86020292666268},{"$f":"'Population 2016'!U226*'Prevalence Rates'!U226","v":0},{"$f":"'Population 2016'!V226*'Prevalence Rates'!V226","v":44.9908224012486},{"$f":"'Population 2016'!W226*'Prevalence Rates'!W226","v":148.4991196903957},{"$f":"'Population 2016'!X226*'Prevalence Rates'!X226","v":148.4991196903957},{"$f":"'Population 2016'!Y226*'Prevalence Rates'!Y226","v":111.81542626192667},{"$f":"'Population 2016'!Z226*'Prevalence Rates'!Z226","v":62.413738919379192},{"$f":"'Population 2016'!AA226*'Prevalence Rates'!AA226","v":506.22026642973509},{"$f":"'Population 2016'!AB226*'Prevalence Rates'!AB226","v":294.27820600032379},{"$f":"'Population 2016'!AC226*'Prevalence Rates'!AC226","v":383.15713456749626},{"$f":"'Population 2016'!AD226*'Prevalence Rates'!AD226","v":60.355335280106374},{"$f":"'Population 2016'!AE226*'Prevalence Rates'!AE226","v":45.064336816936915},{"$f":"'Population 2016'!AF226*'Prevalence Rates'!AF226","v":23.671641851637336},{"$f":"'Population 2016'!AG226*'Prevalence Rates'!AG226","v":45.064336816936915},{"$f":"'Population 2016'!AH226*'Prevalence Rates'!AH226","v":123.06313186223882},{"$f":"'Population 2016'!AI226*'Prevalence Rates'!AI226","v":425.72198125103051},{"$f":"'Population 2016'!AJ226*'Prevalence Rates'!AJ226","v":21.907295875117782},{"$f":"'Population 2016'!AK226*'Prevalence Rates'!AK226","v":33.228515891118249},{"$f":"'Population 2016'!AL226*'Prevalence Rates'!AL226","v":30.214424847897345},{"$f":"'Population 2016'!AM226*'Prevalence Rates'!AM226","v":42.41781785215759},{"$f":"'Population 2016'!AN226*'Prevalence Rates'!AN226","v":3.3081487059741619},{"$f":"'Population 2016'!AO226*'Prevalence Rates'!AO226","v":3.3081487059741619},{"$f":"'Population 2016'!AP226*'Prevalence Rates'!AP226","v":69.4711228254574},{"$f":"'Population 2016'!AQ226*'Prevalence Rates'!AQ226","v":61.090479436989526},{"$f":"'Population 2016'!AR226*'Prevalence Rates'!AR226","v":1890.9378003348311},{"$f":"'Population 2016'!AS226*'Prevalence Rates'!AS226","v":22.274867953559358},{"$f":"'Population 2016'!AT226*'Prevalence Rates'!AT226","v":0},{"$f":"'Population 2016'!AU226*'Prevalence Rates'!AU226","v":0},{"$f":"'Population 2016'!AV226*'Prevalence Rates'!AV226","v":66.162974119483238},{"$f":"'Population 2016'!AW226*'Prevalence Rates'!AW226","v":80.645314010081236},{"$f":"'Population 2016'!AX226*'Prevalence Rates'!AX226","v":51.533605397508609},{"$f":"'Population 2016'!AY226*'Prevalence Rates'!AY226","v":310.3778630360647},{"$f":"'Population 2016'!AZ226*'Prevalence Rates'!AZ226","v":161.87874334566899},{"$f":"'Population 2016'!BA226*'Prevalence Rates'!BA226","v":3.4551775373507914},{"$f":"'Population 2016'!BB226*'Prevalence Rates'!BB226","v":42.491332267845905},{"$f":"'Population 2016'!BC226*'Prevalence Rates'!BC226","v":0},224]
[null,"Female 75-79",{"$f":"'Population 2016'!C227*'Prevalence Rates'!C227","v":110.49216677953702},{"$f":"'Population 2016'!D227*'Prevalence Rates'!D227","v":210.25122886858009},{"$f":"'Population 2016'!E227*'Prevalence Rates'!E227","v":99.759062089043056},{"$f":"'Population 2016'!F227*'Prevalence Rates'!F227","v":36.536664597092411},{"$f":"'Population 2016'!G227*'Prevalence Rates'!G227","v":10.733104690493947},{"$f":"'Population 2016'!H227*'Prevalence Rates'!H227","v":91.745990779016765},{"$f":"'Population 2016'!I227*'Prevalence Rates'!I227","v":19.481320157403399},{"$f":"'Population 2016'!J227*'Prevalence Rates'!J227","v":54.988782934859401},{"$f":"'Population 2016'!K227*'Prevalence Rates'!K227","v":12.056364172883612},{"$f":"'Population 2016'!L227*'Prevalence Rates'!L227","v":26.39167523210498},{"$f":"'Population 2016'!M227*'Prevalence Rates'!M227","v":26.39167523210498},{"$f":"'Population 2016'!N227*'Prevalence Rates'!N227","v":36.977751091222302},{"$f":"'Population 2016'!O227*'Prevalence Rates'!O227","v":17.79048859657216},{"$f":"'Population 2016'!P227*'Prevalence Rates'!P227","v":112.62408483449813},{"$f":"'Population 2016'!Q227*'Prevalence Rates'!Q227","v":28.597107702754421},{"$f":"'Population 2016'!R227*'Prevalence Rates'!R227","v":82.483174402289109},{"$f":"'Population 2016'!S227*'Prevalence Rates'!S227","v":472.91823612292853},{"$f":"'Population 2016'!T227*'Prevalence Rates'!T227","v":275.16445792136199},{"$f":"'Population 2016'!U227*'Prevalence Rates'!U227","v":0},{"$f":"'Population 2016'!V227*'Prevalence Rates'!V227","v":33.302030306806564},{"$f":"'Population 2016'!W227*'Prevalence Rates'!W227","v":105.05210001860172},{"$f":"'Population 2016'!X227*'Prevalence Rates'!X227","v":105.05210001860172},{"$f":"'Population 2016'!Y227*'Prevalence Rates'!Y227","v":88.290813241665973},{"$f":"'Population 2016'!Z227*'Prevalence Rates'!Z227","v":54.547696440729517},{"$f":"'Population 2016'!AA227*'Prevalence Rates'!AA227","v":401.16816641113337},{"$f":"'Population 2016'!AB227*'Prevalence Rates'!AB227","v":233.92287072021742},{"$f":"'Population 2016'!AC227*'Prevalence Rates'!AC227","v":310.3043486203764},{"$f":"'Population 2016'!AD227*'Prevalence Rates'!AD227","v":44.549735907118716},{"$f":"'Population 2016'!AE227*'Prevalence Rates'!AE227","v":33.816631216624764},{"$f":"'Population 2016'!AF227*'Prevalence Rates'!AF227","v":18.746176000520251},{"$f":"'Population 2016'!AG227*'Prevalence Rates'!AG227","v":33.816631216624764},{"$f":"'Population 2016'!AH227*'Prevalence Rates'!AH227","v":90.863817790756983},{"$f":"'Population 2016'!AI227*'Prevalence Rates'!AI227","v":348.38481594692342},{"$f":"'Population 2016'!AJ227*'Prevalence Rates'!AJ227","v":16.83480119262407},{"$f":"'Population 2016'!AK227*'Prevalence Rates'!AK227","v":23.671641851637336},{"$f":"'Population 2016'!AL227*'Prevalence Rates'!AL227","v":21.907295875117782},{"$f":"'Population 2016'!AM227*'Prevalence Rates'!AM227","v":31.758227577351956},{"$f":"'Population 2016'!AN227*'Prevalence Rates'!AN227","v":1.6908315608312383},{"$f":"'Population 2016'!AO227*'Prevalence Rates'!AO227","v":1.6908315608312383},{"$f":"'Population 2016'!AP227*'Prevalence Rates'!AP227","v":57.414758652573788},{"$f":"'Population 2016'!AQ227*'Prevalence Rates'!AQ227","v":39.477241224624997},{"$f":"'Population 2016'!AR227*'Prevalence Rates'!AR227","v":1491.6074943159056},{"$f":"'Population 2016'!AS227*'Prevalence Rates'!AS227","v":19.481320157403399},{"$f":"'Population 2016'!AT227*'Prevalence Rates'!AT227","v":0},{"$f":"'Population 2016'!AU227*'Prevalence Rates'!AU227","v":0},{"$f":"'Population 2016'!AV227*'Prevalence Rates'!AV227","v":52.048206307326815},{"$f":"'Population 2016'!AW227*'Prevalence Rates'!AW227","v":59.10559021340503},{"$f":"'Population 2016'!AX227*'Prevalence Rates'!AX227","v":42.932418761975789},{"$f":"'Population 2016'!AY227*'Prevalence Rates'!AY227","v":235.98127435949021},{"$f":"'Population 2016'!AZ227*'Prevalence Rates'!AZ227","v":130.92917434088849},{"$f":"'Population 2016'!BA227*'Prevalence Rates'!BA227","v":2.4259757177143855},{"$f":"'Population 2016'!BB227*'Prevalence Rates'!BB227","v":27.788449130182961},{"$f":"'Population 2016'!BC227*'Prevalence Rates'!BC227","v":0},225]
[null,"Female 80-84",{"$f":"'Population 2016'!C228*'Prevalence Rates'!C228","v":86.232409602393162},{"$f":"'Population 2016'!D228*'Prevalence Rates'!D228","v":161.07008477309753},{"$f":"'Population 2016'!E228*'Prevalence Rates'!E228","v":74.837675170704372},{"$f":"'Population 2016'!F228*'Prevalence Rates'!F228","v":28.817650949819367},{"$f":"'Population 2016'!G228*'Prevalence Rates'!G228","v":8.9687587139743954},{"$f":"'Population 2016'!H228*'Prevalence Rates'!H228","v":68.515435421509309},{"$f":"'Population 2016'!I228*'Prevalence Rates'!I228","v":11.688792094442039},{"$f":"'Population 2016'!J228*'Prevalence Rates'!J228","v":37.786409663793762},{"$f":"'Population 2016'!K228*'Prevalence Rates'!K228","v":7.5719848158964149},{"$f":"'Population 2016'!L228*'Prevalence Rates'!L228","v":21.319180549611264},{"$f":"'Population 2016'!M228*'Prevalence Rates'!M228","v":21.319180549611264},{"$f":"'Population 2016'!N228*'Prevalence Rates'!N228","v":29.699823938079142},{"$f":"'Population 2016'!O228*'Prevalence Rates'!O228","v":14.261796643533053},{"$f":"'Population 2016'!P228*'Prevalence Rates'!P228","v":83.071289727795616},{"$f":"'Population 2016'!Q228*'Prevalence Rates'!Q228","v":20.363493145663174},{"$f":"'Population 2016'!R228*'Prevalence Rates'!R228","v":68.588949837197632},{"$f":"'Population 2016'!S228*'Prevalence Rates'!S228","v":370.43914065341784},{"$f":"'Population 2016'!T228*'Prevalence Rates'!T228","v":232.08501032800953},{"$f":"'Population 2016'!U228*'Prevalence Rates'!U228","v":0},{"$f":"'Population 2016'!V228*'Prevalence Rates'!V228","v":21.907295875117782},{"$f":"'Population 2016'!W228*'Prevalence Rates'!W228","v":77.410679719795397},{"$f":"'Population 2016'!X228*'Prevalence Rates'!X228","v":77.410679719795397},{"$f":"'Population 2016'!Y228*'Prevalence Rates'!Y228","v":59.693705538911544},{"$f":"'Population 2016'!Z228*'Prevalence Rates'!Z228","v":46.387596299326582},{"$f":"'Population 2016'!AA228*'Prevalence Rates'!AA228","v":306.48159900458404},{"$f":"'Population 2016'!AB228*'Prevalence Rates'!AB228","v":180.55140493050092},{"$f":"'Population 2016'!AC228*'Prevalence Rates'!AC228","v":241.3478267047372},{"$f":"'Population 2016'!AD228*'Prevalence Rates'!AD228","v":38.006952910858708},{"$f":"'Population 2016'!AE228*'Prevalence Rates'!AE228","v":29.038194196884312},{"$f":"'Population 2016'!AF228*'Prevalence Rates'!AF228","v":13.673681318026537},{"$f":"'Population 2016'!AG228*'Prevalence Rates'!AG228","v":29.038194196884312},{"$f":"'Population 2016'!AH228*'Prevalence Rates'!AH228","v":65.133772299846839},{"$f":"'Population 2016'!AI228*'Prevalence Rates'!AI228","v":281.33966883918038},{"$f":"'Population 2016'!AJ228*'Prevalence Rates'!AJ228","v":11.321220016000465},{"$f":"'Population 2016'!AK228*'Prevalence Rates'!AK228","v":19.481320157403399},{"$f":"'Population 2016'!AL228*'Prevalence Rates'!AL228","v":17.202373271065643},{"$f":"'Population 2016'!AM228*'Prevalence Rates'!AM228","v":20.216464314286544},{"$f":"'Population 2016'!AN228*'Prevalence Rates'!AN228","v":1.9848892235844973},{"$f":"'Population 2016'!AO228*'Prevalence Rates'!AO228","v":1.9848892235844973},{"$f":"'Population 2016'!AP228*'Prevalence Rates'!AP228","v":44.255678244365455},{"$f":"'Population 2016'!AQ228*'Prevalence Rates'!AQ228","v":28.008992377247903},{"$f":"'Population 2016'!AR228*'Prevalence Rates'!AR228","v":1149.7654613652421},{"$f":"'Population 2016'!AS228*'Prevalence Rates'!AS228","v":11.688792094442039},{"$f":"'Population 2016'!AT228*'Prevalence Rates'!AT228","v":0},{"$f":"'Population 2016'!AU228*'Prevalence Rates'!AU228","v":0},{"$f":"'Population 2016'!AV228*'Prevalence Rates'!AV228","v":37.051265506910617},{"$f":"'Population 2016'!AW228*'Prevalence Rates'!AW228","v":44.917307985560285},{"$f":"'Population 2016'!AX228*'Prevalence Rates'!AX228","v":30.214424847897345},{"$f":"'Population 2016'!AY228*'Prevalence Rates'!AY228","v":180.18383285205937},{"$f":"'Population 2016'!AZ228*'Prevalence Rates'!AZ228","v":102.77315313226397},{"$f":"'Population 2016'!BA228*'Prevalence Rates'!BA228","v":1.6173171451429236},{"$f":"'Population 2016'!BB228*'Prevalence Rates'!BB228","v":17.569945349507215},{"$f":"'Population 2016'!BC228*'Prevalence Rates'!BC228","v":0},226]
[null,"Female 85-89",{"$f":"'Population 2016'!C229*'Prevalence Rates'!C229","v":63.222397491950652},{"$f":"'Population 2016'!D229*'Prevalence Rates'!D229","v":110.71271002660195},{"$f":"'Population 2016'!E229*'Prevalence Rates'!E229","v":47.490312534651302},{"$f":"'Population 2016'!F229*'Prevalence Rates'!F229","v":18.59914716914362},{"$f":"'Population 2016'!G229*'Prevalence Rates'!G229","v":5.1460090981820299},{"$f":"'Population 2016'!H229*'Prevalence Rates'!H229","v":40.653471875638033},{"$f":"'Population 2016'!I229*'Prevalence Rates'!I229","v":6.1752109178184353},{"$f":"'Population 2016'!J229*'Prevalence Rates'!J229","v":21.172151718234637},{"$f":"'Population 2016'!K229*'Prevalence Rates'!K229","v":3.3081487059741619},{"$f":"'Population 2016'!L229*'Prevalence Rates'!L229","v":11.468248847377096},{"$f":"'Population 2016'!M229*'Prevalence Rates'!M229","v":11.468248847377096},{"$f":"'Population 2016'!N229*'Prevalence Rates'!N229","v":19.334291326026769},{"$f":"'Population 2016'!O229*'Prevalence Rates'!O229","v":8.6747010512211364},{"$f":"'Population 2016'!P229*'Prevalence Rates'!P229","v":48.445999938599392},{"$f":"'Population 2016'!Q229*'Prevalence Rates'!Q229","v":13.379623655273278},{"$f":"'Population 2016'!R229*'Prevalence Rates'!R229","v":47.637341366027933},{"$f":"'Population 2016'!S229*'Prevalence Rates'!S229","v":246.78789346567248},{"$f":"'Population 2016'!T229*'Prevalence Rates'!T229","v":162.02577217704561},{"$f":"'Population 2016'!U229*'Prevalence Rates'!U229","v":0},{"$f":"'Population 2016'!V229*'Prevalence Rates'!V229","v":11.835820925818668},{"$f":"'Population 2016'!W229*'Prevalence Rates'!W229","v":47.931399028781193},{"$f":"'Population 2016'!X229*'Prevalence Rates'!X229","v":47.931399028781193},{"$f":"'Population 2016'!Y229*'Prevalence Rates'!Y229","v":33.007972644053304},{"$f":"'Population 2016'!Z229*'Prevalence Rates'!Z229","v":31.096597836157123},{"$f":"'Population 2016'!AA229*'Prevalence Rates'!AA229","v":187.82933208364409},{"$f":"'Population 2016'!AB229*'Prevalence Rates'!AB229","v":122.47501653673231},{"$f":"'Population 2016'!AC229*'Prevalence Rates'!AC229","v":153.79215761995437},{"$f":"'Population 2016'!AD229*'Prevalence Rates'!AD229","v":22.789468863377561},{"$f":"'Population 2016'!AE229*'Prevalence Rates'!AE229","v":17.64345976519553},{"$f":"'Population 2016'!AF229*'Prevalence Rates'!AF229","v":9.7039028708575419},{"$f":"'Population 2016'!AG229*'Prevalence Rates'!AG229","v":17.64345976519553},{"$f":"'Population 2016'!AH229*'Prevalence Rates'!AH229","v":34.037174463689709},{"$f":"'Population 2016'!AI229*'Prevalence Rates'!AI229","v":192.68128351907285},{"$f":"'Population 2016'!AJ229*'Prevalence Rates'!AJ229","v":4.6314081883638272},{"$f":"'Population 2016'!AK229*'Prevalence Rates'!AK229","v":11.762306510130355},{"$f":"'Population 2016'!AL229*'Prevalence Rates'!AL229","v":9.7774172865458571},{"$f":"'Population 2016'!AM229*'Prevalence Rates'!AM229","v":9.0422731296627088},{"$f":"'Population 2016'!AN229*'Prevalence Rates'!AN229","v":1.0292018196364059},{"$f":"'Population 2016'!AO229*'Prevalence Rates'!AO229","v":1.0292018196364059},{"$f":"'Population 2016'!AP229*'Prevalence Rates'!AP229","v":28.523593287066106},{"$f":"'Population 2016'!AQ229*'Prevalence Rates'!AQ229","v":16.173171451429237},{"$f":"'Population 2016'!AR229*'Prevalence Rates'!AR229","v":732.49763791836779},{"$f":"'Population 2016'!AS229*'Prevalence Rates'!AS229","v":6.1752109178184353},{"$f":"'Population 2016'!AT229*'Prevalence Rates'!AT229","v":0},{"$f":"'Population 2016'!AU229*'Prevalence Rates'!AU229","v":0},{"$f":"'Population 2016'!AV229*'Prevalence Rates'!AV229","v":22.201353537871043},{"$f":"'Population 2016'!AW229*'Prevalence Rates'!AW229","v":24.994901334027002},{"$f":"'Population 2016'!AX229*'Prevalence Rates'!AX229","v":17.864003012260476},{"$f":"'Population 2016'!AY229*'Prevalence Rates'!AY229","v":114.38843081101768},{"$f":"'Population 2016'!AZ229*'Prevalence Rates'!AZ229","v":66.457031782236498},{"$f":"'Population 2016'!BA229*'Prevalence Rates'!BA229","v":0.73514415688314716},{"$f":"'Population 2016'!BB229*'Prevalence Rates'!BB229","v":12.64447949839013},{"$f":"'Population 2016'!BC229*'Prevalence Rates'!BC229","v":0},227]
[null,"Female 90+",{"$f":"'Population 2016'!C230*'Prevalence Rates'!C230","v":38.521553820676907},{"$f":"'Population 2016'!D230*'Prevalence Rates'!D230","v":69.030036331327508},{"$f":"'Population 2016'!E230*'Prevalence Rates'!E230","v":30.508482510650605},{"$f":"'Population 2016'!F230*'Prevalence Rates'!F230","v":9.4833596237925981},{"$f":"'Population 2016'!G230*'Prevalence Rates'!G230","v":3.2346342902858471},{"$f":"'Population 2016'!H230*'Prevalence Rates'!H230","v":26.465189647793295},{"$f":"'Population 2016'!I230*'Prevalence Rates'!I230","v":5.0724946824937147},{"$f":"'Population 2016'!J230*'Prevalence Rates'!J230","v":11.909335341506983},{"$f":"'Population 2016'!K230*'Prevalence Rates'!K230","v":1.3232594823896648},{"$f":"'Population 2016'!L230*'Prevalence Rates'!L230","v":6.689811827636639},{"$f":"'Population 2016'!M230*'Prevalence Rates'!M230","v":6.689811827636639},{"$f":"'Population 2016'!N230*'Prevalence Rates'!N230","v":8.6011866355328213},{"$f":"'Population 2016'!O230*'Prevalence Rates'!O230","v":3.8962640314806798},{"$f":"'Population 2016'!P230*'Prevalence Rates'!P230","v":28.670622118442736},{"$f":"'Population 2016'!Q230*'Prevalence Rates'!Q230","v":8.3806433884678775},{"$f":"'Population 2016'!R230*'Prevalence Rates'!R230","v":26.171131985040038},{"$f":"'Population 2016'!S230*'Prevalence Rates'!S230","v":157.02679191024023},{"$f":"'Population 2016'!T230*'Prevalence Rates'!T230","v":100.56772066161453},{"$f":"'Population 2016'!U230*'Prevalence Rates'!U230","v":0},{"$f":"'Population 2016'!V230*'Prevalence Rates'!V230","v":9.0422731296627088},{"$f":"'Population 2016'!W230*'Prevalence Rates'!W230","v":31.758227577351956},{"$f":"'Population 2016'!X230*'Prevalence Rates'!X230","v":31.758227577351956},{"$f":"'Population 2016'!Y230*'Prevalence Rates'!Y230","v":20.951608471169692},{"$f":"'Population 2016'!Z230*'Prevalence Rates'!Z230","v":20.289978729974859},{"$f":"'Population 2016'!AA230*'Prevalence Rates'!AA230","v":106.74293157943296},{"$f":"'Population 2016'!AB230*'Prevalence Rates'!AB230","v":76.602021147223923},{"$f":"'Population 2016'!AC230*'Prevalence Rates'!AC230","v":89.540558308367324},{"$f":"'Population 2016'!AD230*'Prevalence Rates'!AD230","v":12.79150832976676},{"$f":"'Population 2016'!AE230*'Prevalence Rates'!AE230","v":9.5568740394809115},{"$f":"'Population 2016'!AF230*'Prevalence Rates'!AF230","v":6.6162974119483238},{"$f":"'Population 2016'!AG230*'Prevalence Rates'!AG230","v":9.5568740394809115},{"$f":"'Population 2016'!AH230*'Prevalence Rates'!AH230","v":17.202373271065643},{"$f":"'Population 2016'!AI230*'Prevalence Rates'!AI230","v":120.19606965039455},{"$f":"'Population 2016'!AJ230*'Prevalence Rates'!AJ230","v":3.3816631216624766},{"$f":"'Population 2016'!AK230*'Prevalence Rates'!AK230","v":7.5719848158964149},{"$f":"'Population 2016'!AL230*'Prevalence Rates'!AL230","v":5.3665523452469737},{"$f":"'Population 2016'!AM230*'Prevalence Rates'!AM230","v":4.8519514354287709},{"$f":"'Population 2016'!AN230*'Prevalence Rates'!AN230","v":0.51460090981820295},{"$f":"'Population 2016'!AO230*'Prevalence Rates'!AO230","v":0.51460090981820295},{"$f":"'Population 2016'!AP230*'Prevalence Rates'!AP230","v":19.407805741715084},{"$f":"'Population 2016'!AQ230*'Prevalence Rates'!AQ230","v":7.277927153143156},{"$f":"'Population 2016'!AR230*'Prevalence Rates'!AR230","v":445.2768158241222},{"$f":"'Population 2016'!AS230*'Prevalence Rates'!AS230","v":5.0724946824937147},{"$f":"'Population 2016'!AT230*'Prevalence Rates'!AT230","v":0},{"$f":"'Population 2016'!AU230*'Prevalence Rates'!AU230","v":0},{"$f":"'Population 2016'!AV230*'Prevalence Rates'!AV230","v":17.202373271065643},{"$f":"'Population 2016'!AW230*'Prevalence Rates'!AW230","v":12.350421835636871},{"$f":"'Population 2016'!AX230*'Prevalence Rates'!AX230","v":10.586075859117319},{"$f":"'Population 2016'!AY230*'Prevalence Rates'!AY230","v":69.250579578392461},{"$f":"'Population 2016'!AZ230*'Prevalence Rates'!AZ230","v":37.492352001040501},{"$f":"'Population 2016'!BA230*'Prevalence Rates'!BA230","v":0.51460090981820295},{"$f":"'Population 2016'!BB230*'Prevalence Rates'!BB230","v":7.8660424786496739},{"$f":"'Population 2016'!BC230*'Prevalence Rates'!BC230","v":0},228]
[null,"Male 0-4",{"$f":"'Population 2016'!C231*'Prevalence Rates'!C231","v":0},{"$f":"'Population 2016'!D231*'Prevalence Rates'!D231","v":0},{"$f":"'Population 2016'!E231*'Prevalence Rates'!E231","v":0},{"$f":"'Population 2016'!F231*'Prevalence Rates'!F231","v":0},{"$f":"'Population 2016'!G231*'Prevalence Rates'!G231","v":0},{"$f":"'Population 2016'!H231*'Prevalence Rates'!H231","v":0},{"$f":"'Population 2016'!I231*'Prevalence Rates'!I231","v":0},{"$f":"'Population 2016'!J231*'Prevalence Rates'!J231","v":0},{"$f":"'Population 2016'!K231*'Prevalence Rates'!K231","v":0},{"$f":"'Population 2016'!L231*'Prevalence Rates'!L231","v":0},{"$f":"'Population 2016'!M231*'Prevalence Rates'!M231","v":0},{"$f":"'Population 2016'!N231*'Prevalence Rates'!N231","v":0},{"$f":"'Population 2016'!O231*'Prevalence Rates'!O231","v":0},{"$f":"'Population 2016'!P231*'Prevalence Rates'!P231","v":0},{"$f":"'Population 2016'!Q231*'Prevalence Rates'!Q231","v":0},{"$f":"'Population 2016'!R231*'Prevalence Rates'!R231","v":0},{"$f":"'Population 2016'!S231*'Prevalence Rates'!S231","v":0},{"$f":"'Population 2016'!T231*'Prevalence Rates'!T231","v":0},{"$f":"'Population 2016'!U231*'Prevalence Rates'!U231","v":0},{"$f":"'Population 2016'!V231*'Prevalence Rates'!V231","v":0},{"$f":"'Population 2016'!W231*'Prevalence Rates'!W231","v":0},{"$f":"'Population 2016'!X231*'Prevalence Rates'!X231","v":0},{"$f":"'Population 2016'!Y231*'Prevalence Rates'!Y231","v":0},{"$f":"'Population 2016'!Z231*'Prevalence Rates'!Z231","v":0},{"$f":"'Population 2016'!AA231*'Prevalence Rates'!AA231","v":0},{"$f":"'Population 2016'!AB231*'Prevalence Rates'!AB231","v":0},{"$f":"'Population 2016'!AC231*'Prevalence Rates'!AC231","v":0},{"$f":"'Population 2016'!AD231*'Prevalence Rates'!AD231","v":0},{"$f":"'Population 2016'!AE231*'Prevalence Rates'!AE231","v":0},{"$f":"'Population 2016'!AF231*'Prevalence Rates'!AF231","v":0},{"$f":"'Population 2016'!AG231*'Prevalence Rates'!AG231","v":0},{"$f":"'Population 2016'!AH231*'Prevalence Rates'!AH231","v":0},{"$f":"'Population 2016'!AI231*'Prevalence Rates'!AI231","v":0},{"$f":"'Population 2016'!AJ231*'Prevalence Rates'!AJ231","v":0},{"$f":"'Population 2016'!AK231*'Prevalence Rates'!AK231","v":0},{"$f":"'Population 2016'!AL231*'Prevalence Rates'!AL231","v":0},{"$f":"'Population 2016'!AM231*'Prevalence Rates'!AM231","v":0},{"$f":"'Population 2016'!AN231*'Prevalence Rates'!AN231","v":0},{"$f":"'Population 2016'!AO231*'Prevalence Rates'!AO231","v":0},{"$f":"'Population 2016'!AP231*'Prevalence Rates'!AP231","v":0},{"$f":"'Population 2016'!AQ231*'Prevalence Rates'!AQ231","v":0},{"$f":"'Population 2016'!AR231*'Prevalence Rates'!AR231","v":0},{"$f":"'Population 2016'!AS231*'Prevalence Rates'!AS231","v":0},{"$f":"'Population 2016'!AT231*'Prevalence Rates'!AT231","v":0},{"$f":"'Population 2016'!AU231*'Prevalence Rates'!AU231","v":0},{"$f":"'Population 2016'!AV231*'Prevalence Rates'!AV231","v":0},{"$f":"'Population 2016'!AW231*'Prevalence Rates'!AW231","v":0},{"$f":"'Population 2016'!AX231*'Prevalence Rates'!AX231","v":0},{"$f":"'Population 2016'!AY231*'Prevalence Rates'!AY231","v":0},{"$f":"'Population 2016'!AZ231*'Prevalence Rates'!AZ231","v":0},{"$f":"'Population 2016'!BA231*'Prevalence Rates'!BA231","v":0},{"$f":"'Population 2016'!BB231*'Prevalence Rates'!BB231","v":0},{"$f":"'Population 2016'!BC231*'Prevalence Rates'!BC231","v":0},229]
[null,"Male 5-9",{"$f":"'Population 2016'!C232*'Prevalence Rates'!C232","v":0},{"$f":"'Population 2016'!D232*'Prevalence Rates'!D232","v":0},{"$f":"'Population 2016'!E232*'Prevalence Rates'!E232","v":0},{"$f":"'Population 2016'!F232*'Prevalence Rates'!F232","v":0},{"$f":"'Population 2016'!G232*'Prevalence Rates'!G232","v":0},{"$f":"'Population 2016'!H232*'Prevalence Rates'!H232","v":0},{"$f":"'Population 2016'!I232*'Prevalence Rates'!I232","v":0},{"$f":"'Population 2016'!J232*'Prevalence Rates'!J232","v":0},{"$f":"'Population 2016'!K232*'Prevalence Rates'!K232","v":0},{"$f":"'Population 2016'!L232*'Prevalence Rates'!L232","v":0},{"$f":"'Population 2016'!M232*'Prevalence Rates'!M232","v":0},{"$f":"'Population 2016'!N232*'Prevalence Rates'!N232","v":0},{"$f":"'Population 2016'!O232*'Prevalence Rates'!O232","v":0},{"$f":"'Population 2016'!P232*'Prevalence Rates'!P232","v":0},{"$f":"'Population 2016'!Q232*'Prevalence Rates'!Q232","v":0},{"$f":"'Population 2016'!R232*'Prevalence Rates'!R232","v":0},{"$f":"'Population 2016'!S232*'Prevalence Rates'!S232","v":0},{"$f":"'Population 2016'!T232*'Prevalence Rates'!T232","v":0},{"$f":"'Population 2016'!U232*'Prevalence Rates'!U232","v":0},{"$f":"'Population 2016'!V232*'Prevalence Rates'!V232","v":0},{"$f":"'Population 2016'!W232*'Prevalence Rates'!W232","v":0},{"$f":"'Population 2016'!X232*'Prevalence Rates'!X232","v":0},{"$f":"'Population 2016'!Y232*'Prevalence Rates'!Y232","v":0},{"$f":"'Population 2016'!Z232*'Prevalence Rates'!Z232","v":0},{"$f":"'Population 2016'!AA232*'Prevalence Rates'!AA232","v":0},{"$f":"'Population 2016'!AB232*'Prevalence Rates'!AB232","v":0},{"$f":"'Population 2016'!AC232*'Prevalence Rates'!AC232","v":0},{"$f":"'Population 2016'!AD232*'Prevalence Rates'!AD232","v":0},{"$f":"'Population 2016'!AE232*'Prevalence Rates'!AE232","v":0},{"$f":"'Population 2016'!AF232*'Prevalence Rates'!AF232","v":0},{"$f":"'Population 2016'!AG232*'Prevalence Rates'!AG232","v":0},{"$f":"'Population 2016'!AH232*'Prevalence Rates'!AH232","v":0},{"$f":"'Population 2016'!AI232*'Prevalence Rates'!AI232","v":0},{"$f":"'Population 2016'!AJ232*'Prevalence Rates'!AJ232","v":0},{"$f":"'Population 2016'!AK232*'Prevalence Rates'!AK232","v":0},{"$f":"'Population 2016'!AL232*'Prevalence Rates'!AL232","v":0},{"$f":"'Population 2016'!AM232*'Prevalence Rates'!AM232","v":0},{"$f":"'Population 2016'!AN232*'Prevalence Rates'!AN232","v":0},{"$f":"'Population 2016'!AO232*'Prevalence Rates'!AO232","v":0},{"$f":"'Population 2016'!AP232*'Prevalence Rates'!AP232","v":0},{"$f":"'Population 2016'!AQ232*'Prevalence Rates'!AQ232","v":0},{"$f":"'Population 2016'!AR232*'Prevalence Rates'!AR232","v":0},{"$f":"'Population 2016'!AS232*'Prevalence Rates'!AS232","v":0},{"$f":"'Population 2016'!AT232*'Prevalence Rates'!AT232","v":0},{"$f":"'Population 2016'!AU232*'Prevalence Rates'!AU232","v":0},{"$f":"'Population 2016'!AV232*'Prevalence Rates'!AV232","v":0},{"$f":"'Population 2016'!AW232*'Prevalence Rates'!AW232","v":0},{"$f":"'Population 2016'!AX232*'Prevalence Rates'!AX232","v":0},{"$f":"'Population 2016'!AY232*'Prevalence Rates'!AY232","v":0},{"$f":"'Population 2016'!AZ232*'Prevalence Rates'!AZ232","v":0},{"$f":"'Population 2016'!BA232*'Prevalence Rates'!BA232","v":0},{"$f":"'Population 2016'!BB232*'Prevalence Rates'!BB232","v":0},{"$f":"'Population 2016'!BC232*'Prevalence Rates'!BC232","v":0},230]
[null,"Male 10-15",{"$f":"'Population 2016'!C233*'Prevalence Rates'!C233","v":0},{"$f":"'Population 2016'!D233*'Prevalence Rates'!D233","v":0},{"$f":"'Population 2016'!E233*'Prevalence Rates'!E233","v":0},{"$f":"'Population 2016'!F233*'Prevalence Rates'!F233","v":0},{"$f":"'Population 2016'!G233*'Prevalence Rates'!G233","v":0},{"$f":"'Population 2016'!H233*'Prevalence Rates'!H233","v":0},{"$f":"'Population 2016'!I233*'Prevalence Rates'!I233","v":0},{"$f":"'Population 2016'!J233*'Prevalence Rates'!J233","v":0},{"$f":"'Population 2016'!K233*'Prevalence Rates'!K233","v":0},{"$f":"'Population 2016'!L233*'Prevalence Rates'!L233","v":0},{"$f":"'Population 2016'!M233*'Prevalence Rates'!M233","v":0},{"$f":"'Population 2016'!N233*'Prevalence Rates'!N233","v":0},{"$f":"'Population 2016'!O233*'Prevalence Rates'!O233","v":0},{"$f":"'Population 2016'!P233*'Prevalence Rates'!P233","v":0},{"$f":"'Population 2016'!Q233*'Prevalence Rates'!Q233","v":0},{"$f":"'Population 2016'!R233*'Prevalence Rates'!R233","v":0},{"$f":"'Population 2016'!S233*'Prevalence Rates'!S233","v":0},{"$f":"'Population 2016'!T233*'Prevalence Rates'!T233","v":0},{"$f":"'Population 2016'!U233*'Prevalence Rates'!U233","v":0},{"$f":"'Population 2016'!V233*'Prevalence Rates'!V233","v":0},{"$f":"'Population 2016'!W233*'Prevalence Rates'!W233","v":0},{"$f":"'Population 2016'!X233*'Prevalence Rates'!X233","v":0},{"$f":"'Population 2016'!Y233*'Prevalence Rates'!Y233","v":0},{"$f":"'Population 2016'!Z233*'Prevalence Rates'!Z233","v":0},{"$f":"'Population 2016'!AA233*'Prevalence Rates'!AA233","v":0},{"$f":"'Population 2016'!AB233*'Prevalence Rates'!AB233","v":0},{"$f":"'Population 2016'!AC233*'Prevalence Rates'!AC233","v":0},{"$f":"'Population 2016'!AD233*'Prevalence Rates'!AD233","v":0},{"$f":"'Population 2016'!AE233*'Prevalence Rates'!AE233","v":0},{"$f":"'Population 2016'!AF233*'Prevalence Rates'!AF233","v":0},{"$f":"'Population 2016'!AG233*'Prevalence Rates'!AG233","v":0},{"$f":"'Population 2016'!AH233*'Prevalence Rates'!AH233","v":0},{"$f":"'Population 2016'!AI233*'Prevalence Rates'!AI233","v":0},{"$f":"'Population 2016'!AJ233*'Prevalence Rates'!AJ233","v":0},{"$f":"'Population 2016'!AK233*'Prevalence Rates'!AK233","v":0},{"$f":"'Population 2016'!AL233*'Prevalence Rates'!AL233","v":0},{"$f":"'Population 2016'!AM233*'Prevalence Rates'!AM233","v":0},{"$f":"'Population 2016'!AN233*'Prevalence Rates'!AN233","v":0},{"$f":"'Population 2016'!AO233*'Prevalence Rates'!AO233","v":0},{"$f":"'Population 2016'!AP233*'Prevalence Rates'!AP233","v":0},{"$f":"'Population 2016'!AQ233*'Prevalence Rates'!AQ233","v":0},{"$f":"'Population 2016'!AR233*'Prevalence Rates'!AR233","v":0},{"$f":"'Population 2016'!AS233*'Prevalence Rates'!AS233","v":0},{"$f":"'Population 2016'!AT233*'Prevalence Rates'!AT233","v":0},{"$f":"'Population 2016'!AU233*'Prevalence Rates'!AU233","v":0},{"$f":"'Population 2016'!AV233*'Prevalence Rates'!AV233","v":0},{"$f":"'Population 2016'!AW233*'Prevalence Rates'!AW233","v":0},{"$f":"'Population 2016'!AX233*'Prevalence Rates'!AX233","v":0},{"$f":"'Population 2016'!AY233*'Prevalence Rates'!AY233","v":0},{"$f":"'Population 2016'!AZ233*'Prevalence Rates'!AZ233","v":0},{"$f":"'Population 2016'!BA233*'Prevalence Rates'!BA233","v":0},{"$f":"'Population 2016'!BB233*'Prevalence Rates'!BB233","v":0},{"$f":"'Population 2016'!BC233*'Prevalence Rates'!BC233","v":0},231]
[null,"Male 16-19",{"$f":"'Population 2016'!C234*'Prevalence Rates'!C234","v":131.80114026784051},{"$f":"'Population 2016'!D234*'Prevalence Rates'!D234","v":290.3507934541953},{"$f":"'Population 2016'!E234*'Prevalence Rates'!E234","v":158.54965318635479},{"$f":"'Population 2016'!F234*'Prevalence Rates'!F234","v":36.168016123690009},{"$f":"'Population 2016'!G234*'Prevalence Rates'!G234","v":24.159947152206446},{"$f":"'Population 2016'!H234*'Prevalence Rates'!H234","v":83.049818335709659},{"$f":"'Population 2016'!I234*'Prevalence Rates'!I234","v":20.996144548941317},{"$f":"'Population 2016'!J234*'Prevalence Rates'!J234","v":85.997907125115802},{"$f":"'Population 2016'!K234*'Prevalence Rates'!K234","v":11.28902292528694},{"$f":"'Population 2016'!L234*'Prevalence Rates'!L234","v":20.492812316603683},{"$f":"'Population 2016'!M234*'Prevalence Rates'!M234","v":20.492812316603683},{"$f":"'Population 2016'!N234*'Prevalence Rates'!N234","v":45.73132853810506},{"$f":"'Population 2016'!O234*'Prevalence Rates'!O234","v":24.159947152206446},{"$f":"'Population 2016'!P234*'Prevalence Rates'!P234","v":104.83691353546726},{"$f":"'Population 2016'!Q234*'Prevalence Rates'!Q234","v":25.598039244599686},{"$f":"'Population 2016'!R234*'Prevalence Rates'!R234","v":107.64119311563408},{"$f":"'Population 2016'!S234*'Prevalence Rates'!S234","v":646.92572776309942},{"$f":"'Population 2016'!T234*'Prevalence Rates'!T234","v":355.78398365808778},{"$f":"'Population 2016'!U234*'Prevalence Rates'!U234","v":0},{"$f":"'Population 2016'!V234*'Prevalence Rates'!V234","v":50.908460070720722},{"$f":"'Population 2016'!W234*'Prevalence Rates'!W234","v":156.75203807086325},{"$f":"'Population 2016'!X234*'Prevalence Rates'!X234","v":156.75203807086325},{"$f":"'Population 2016'!Y234*'Prevalence Rates'!Y234","v":136.90636719583654},{"$f":"'Population 2016'!Z234*'Prevalence Rates'!Z234","v":94.626459679475246},{"$f":"'Population 2016'!AA234*'Prevalence Rates'!AA234","v":528.13932093141773},{"$f":"'Population 2016'!AB234*'Prevalence Rates'!AB234","v":333.78117464447121},{"$f":"'Population 2016'!AC234*'Prevalence Rates'!AC234","v":389.36343401546998},{"$f":"'Population 2016'!AD234*'Prevalence Rates'!AD234","v":59.968440252798139},{"$f":"'Population 2016'!AE234*'Prevalence Rates'!AE234","v":35.808493100591697},{"$f":"'Population 2016'!AF234*'Prevalence Rates'!AF234","v":14.740443947030718},{"$f":"'Population 2016'!AG234*'Prevalence Rates'!AG234","v":35.808493100591697},{"$f":"'Population 2016'!AH234*'Prevalence Rates'!AH234","v":138.77588691594775},{"$f":"'Population 2016'!AI234*'Prevalence Rates'!AI234","v":469.17754514329482},{"$f":"'Population 2016'!AJ234*'Prevalence Rates'!AJ234","v":25.166611616881713},{"$f":"'Population 2016'!AK234*'Prevalence Rates'!AK234","v":43.430381190275874},{"$f":"'Population 2016'!AL234*'Prevalence Rates'!AL234","v":22.506141245954218},{"$f":"'Population 2016'!AM234*'Prevalence Rates'!AM234","v":59.177489601981861},{"$f":"'Population 2016'!AN234*'Prevalence Rates'!AN234","v":2.1571381385898611},{"$f":"'Population 2016'!AO234*'Prevalence Rates'!AO234","v":2.1571381385898611},{"$f":"'Population 2016'!AP234*'Prevalence Rates'!AP234","v":41.417052260925338},{"$f":"'Population 2016'!AQ234*'Prevalence Rates'!AQ234","v":59.752726438939156},{"$f":"'Population 2016'!AR234*'Prevalence Rates'!AR234","v":1934.7371965012464},{"$f":"'Population 2016'!AS234*'Prevalence Rates'!AS234","v":20.996144548941317},{"$f":"'Population 2016'!AT234*'Prevalence Rates'!AT234","v":0},{"$f":"'Population 2016'!AU234*'Prevalence Rates'!AU234","v":0},{"$f":"'Population 2016'!AV234*'Prevalence Rates'!AV234","v":36.383729937548992},{"$f":"'Population 2016'!AW234*'Prevalence Rates'!AW234","v":79.598397313965876},{"$f":"'Population 2016'!AX234*'Prevalence Rates'!AX234","v":74.708884199828859},{"$f":"'Population 2016'!AY234*'Prevalence Rates'!AY234","v":280.06843499358365},{"$f":"'Population 2016'!AZ234*'Prevalence Rates'!AZ234","v":123.3163969227204},{"$f":"'Population 2016'!BA234*'Prevalence Rates'!BA234","v":7.7656972989235005},{"$f":"'Population 2016'!BB234*'Prevalence Rates'!BB234","v":62.628910623725638},{"$f":"'Population 2016'!BC234*'Prevalence Rates'!BC234","v":0},232]
[null,"Male 20-24",{"$f":"'Population 2016'!C235*'Prevalence Rates'!C235","v":219.38094869458888},{"$f":"'Population 2016'!D235*'Prevalence Rates'!D235","v":390.5858122940042},{"$f":"'Population 2016'!E235*'Prevalence Rates'!E235","v":171.20486359941532},{"$f":"'Population 2016'!F235*'Prevalence Rates'!F235","v":37.749917425322572},{"$f":"'Population 2016'!G235*'Prevalence Rates'!G235","v":63.995098111499217},{"$f":"'Population 2016'!H235*'Prevalence Rates'!H235","v":90.743611030013497},{"$f":"'Population 2016'!I235*'Prevalence Rates'!I235","v":17.257105108718889},{"$f":"'Population 2016'!J235*'Prevalence Rates'!J235","v":97.430739259642067},{"$f":"'Population 2016'!K235*'Prevalence Rates'!K235","v":11.792355157624575},{"$f":"'Population 2016'!L235*'Prevalence Rates'!L235","v":22.506141245954218},{"$f":"'Population 2016'!M235*'Prevalence Rates'!M235","v":22.506141245954218},{"$f":"'Population 2016'!N235*'Prevalence Rates'!N235","v":58.027015928067264},{"$f":"'Population 2016'!O235*'Prevalence Rates'!O235","v":27.395654360091239},{"$f":"'Population 2016'!P235*'Prevalence Rates'!P235","v":124.53877520125465},{"$f":"'Population 2016'!Q235*'Prevalence Rates'!Q235","v":32.500881288087243},{"$f":"'Population 2016'!R235*'Prevalence Rates'!R235","v":117.9954561808654},{"$f":"'Population 2016'!S235*'Prevalence Rates'!S235","v":1051.9643655856557},{"$f":"'Population 2016'!T235*'Prevalence Rates'!T235","v":649.58619813402686},{"$f":"'Population 2016'!U235*'Prevalence Rates'!U235","v":0},{"$f":"'Population 2016'!V235*'Prevalence Rates'!V235","v":59.824631043558817},{"$f":"'Population 2016'!W235*'Prevalence Rates'!W235","v":257.13086611991145},{"$f":"'Population 2016'!X235*'Prevalence Rates'!X235","v":257.13086611991145},{"$f":"'Population 2016'!Y235*'Prevalence Rates'!Y235","v":157.25537030320089},{"$f":"'Population 2016'!Z235*'Prevalence Rates'!Z235","v":225.92426771497813},{"$f":"'Population 2016'!AA235*'Prevalence Rates'!AA235","v":722.06603959064626},{"$f":"'Population 2016'!AB235*'Prevalence Rates'!AB235","v":447.17473612967825},{"$f":"'Population 2016'!AC235*'Prevalence Rates'!AC235","v":560.99972524260329},{"$f":"'Population 2016'!AD235*'Prevalence Rates'!AD235","v":98.653117538176318},{"$f":"'Population 2016'!AE235*'Prevalence Rates'!AE235","v":34.6580194266771},{"$f":"'Population 2016'!AF235*'Prevalence Rates'!AF235","v":13.446161063876801},{"$f":"'Population 2016'!AG235*'Prevalence Rates'!AG235","v":34.6580194266771},{"$f":"'Population 2016'!AH235*'Prevalence Rates'!AH235","v":161.06631434804297},{"$f":"'Population 2016'!AI235*'Prevalence Rates'!AI235","v":777.57639435702526},{"$f":"'Population 2016'!AJ235*'Prevalence Rates'!AJ235","v":28.258509615527181},{"$f":"'Population 2016'!AK235*'Prevalence Rates'!AK235","v":56.588923835674024},{"$f":"'Population 2016'!AL235*'Prevalence Rates'!AL235","v":23.728519524488473},{"$f":"'Population 2016'!AM235*'Prevalence Rates'!AM235","v":66.511759273187394},{"$f":"'Population 2016'!AN235*'Prevalence Rates'!AN235","v":3.3795164171241159},{"$f":"'Population 2016'!AO235*'Prevalence Rates'!AO235","v":3.3795164171241159},{"$f":"'Population 2016'!AP235*'Prevalence Rates'!AP235","v":47.816562072075257},{"$f":"'Population 2016'!AQ235*'Prevalence Rates'!AQ235","v":69.244134248734539},{"$f":"'Population 2016'!AR235*'Prevalence Rates'!AR235","v":2737.336393265914},{"$f":"'Population 2016'!AS235*'Prevalence Rates'!AS235","v":17.257105108718889},{"$f":"'Population 2016'!AT235*'Prevalence Rates'!AT235","v":0},{"$f":"'Population 2016'!AU235*'Prevalence Rates'!AU235","v":0},{"$f":"'Population 2016'!AV235*'Prevalence Rates'!AV235","v":39.619437145433785},{"$f":"'Population 2016'!AW235*'Prevalence Rates'!AW235","v":94.554555074855585},{"$f":"'Population 2016'!AX235*'Prevalence Rates'!AX235","v":85.638384102017497},{"$f":"'Population 2016'!AY235*'Prevalence Rates'!AY235","v":400.72436154537655},{"$f":"'Population 2016'!AZ235*'Prevalence Rates'!AZ235","v":143.59349542546511},{"$f":"'Population 2016'!BA235*'Prevalence Rates'!BA235","v":9.8509308328936989},{"$f":"'Population 2016'!BB235*'Prevalence Rates'!BB235","v":67.230805319384004},{"$f":"'Population 2016'!BC235*'Prevalence Rates'!BC235","v":0},233]
[null,"Male 25-29",{"$f":"'Population 2016'!C236*'Prevalence Rates'!C236","v":320.62263199907306},{"$f":"'Population 2016'!D236*'Prevalence Rates'!D236","v":485.14036736885981},{"$f":"'Population 2016'!E236*'Prevalence Rates'!E236","v":164.51773536978675},{"$f":"'Population 2016'!F236*'Prevalence Rates'!F236","v":29.5527924986811},{"$f":"'Population 2016'!G236*'Prevalence Rates'!G236","v":50.045604815284783},{"$f":"'Population 2016'!H236*'Prevalence Rates'!H236","v":63.347956669922254},{"$f":"'Population 2016'!I236*'Prevalence Rates'!I236","v":11.936164366863899},{"$f":"'Population 2016'!J236*'Prevalence Rates'!J236","v":50.908460070720722},{"$f":"'Population 2016'!K236*'Prevalence Rates'!K236","v":8.2690295312611344},{"$f":"'Population 2016'!L236*'Prevalence Rates'!L236","v":18.767101805731794},{"$f":"'Population 2016'!M236*'Prevalence Rates'!M236","v":18.767101805731794},{"$f":"'Population 2016'!N236*'Prevalence Rates'!N236","v":53.928453464746532},{"$f":"'Population 2016'!O236*'Prevalence Rates'!O236","v":22.002809013616584},{"$f":"'Population 2016'!P236*'Prevalence Rates'!P236","v":100.73835107214651},{"$f":"'Population 2016'!Q236*'Prevalence Rates'!Q236","v":24.663279384544079},{"$f":"'Population 2016'!R236*'Prevalence Rates'!R236","v":82.69029531261134},{"$f":"'Population 2016'!S236*'Prevalence Rates'!S236","v":902.69040639523723},{"$f":"'Population 2016'!T236*'Prevalence Rates'!T236","v":636.64336930248771},{"$f":"'Population 2016'!U236*'Prevalence Rates'!U236","v":0},{"$f":"'Population 2016'!V236*'Prevalence Rates'!V236","v":58.746061974263888},{"$f":"'Population 2016'!W236*'Prevalence Rates'!W236","v":143.23397240236679},{"$f":"'Population 2016'!X236*'Prevalence Rates'!X236","v":143.23397240236679},{"$f":"'Population 2016'!Y236*'Prevalence Rates'!Y236","v":109.65452204498462},{"$f":"'Population 2016'!Z236*'Prevalence Rates'!Z236","v":239.65804719733359},{"$f":"'Population 2016'!AA236*'Prevalence Rates'!AA236","v":623.48482665708957},{"$f":"'Population 2016'!AB236*'Prevalence Rates'!AB236","v":536.48025506729846},{"$f":"'Population 2016'!AC236*'Prevalence Rates'!AC236","v":498.15510080501861},{"$f":"'Population 2016'!AD236*'Prevalence Rates'!AD236","v":85.350765683538839},{"$f":"'Population 2016'!AE236*'Prevalence Rates'!AE236","v":35.305160868254063},{"$f":"'Population 2016'!AF236*'Prevalence Rates'!AF236","v":14.237111714693084},{"$f":"'Population 2016'!AG236*'Prevalence Rates'!AG236","v":35.305160868254063},{"$f":"'Population 2016'!AH236*'Prevalence Rates'!AH236","v":125.32972585207094},{"$f":"'Population 2016'!AI236*'Prevalence Rates'!AI236","v":747.52026962600655},{"$f":"'Population 2016'!AJ236*'Prevalence Rates'!AJ236","v":27.036131336992927},{"$f":"'Population 2016'!AK236*'Prevalence Rates'!AK236","v":51.339887698438694},{"$f":"'Population 2016'!AL236*'Prevalence Rates'!AL236","v":15.243776179368353},{"$f":"'Population 2016'!AM236*'Prevalence Rates'!AM236","v":56.013686998716729},{"$f":"'Population 2016'!AN236*'Prevalence Rates'!AN236","v":3.2357072078847917},{"$f":"'Population 2016'!AO236*'Prevalence Rates'!AO236","v":3.2357072078847917},{"$f":"'Population 2016'!AP236*'Prevalence Rates'!AP236","v":38.397058866899528},{"$f":"'Population 2016'!AQ236*'Prevalence Rates'!AQ236","v":54.216071883225176},{"$f":"'Population 2016'!AR236*'Prevalence Rates'!AR236","v":2464.8898463620149},{"$f":"'Population 2016'!AS236*'Prevalence Rates'!AS236","v":11.936164366863899},{"$f":"'Population 2016'!AT236*'Prevalence Rates'!AT236","v":0},{"$f":"'Population 2016'!AU236*'Prevalence Rates'!AU236","v":0},{"$f":"'Population 2016'!AV236*'Prevalence Rates'!AV236","v":26.10137147693732},{"$f":"'Population 2016'!AW236*'Prevalence Rates'!AW236","v":69.3160388533542},{"$f":"'Population 2016'!AX236*'Prevalence Rates'!AX236","v":42.639430539459589},{"$f":"'Population 2016'!AY236*'Prevalence Rates'!AY236","v":265.11227723269394},{"$f":"'Population 2016'!AZ236*'Prevalence Rates'!AZ236","v":121.87830483032715},{"$f":"'Population 2016'!BA236*'Prevalence Rates'!BA236","v":6.615223625008908},{"$f":"'Population 2016'!BB236*'Prevalence Rates'!BB236","v":59.177489601981861},{"$f":"'Population 2016'!BC236*'Prevalence Rates'!BC236","v":0},234]
[null,"Male 30-34",{"$f":"'Population 2016'!C237*'Prevalence Rates'!C237","v":277.4798692272758},{"$f":"'Population 2016'!D237*'Prevalence Rates'!D237","v":469.68087737563246},{"$f":"'Population 2016'!E237*'Prevalence Rates'!E237","v":192.20100814835664},{"$f":"'Population 2016'!F237*'Prevalence Rates'!F237","v":33.291831938903528},{"$f":"'Population 2016'!G237*'Prevalence Rates'!G237","v":23.584710315249151},{"$f":"'Population 2016'!H237*'Prevalence Rates'!H237","v":57.236065277250987},{"$f":"'Population 2016'!I237*'Prevalence Rates'!I237","v":13.302351854637477},{"$f":"'Population 2016'!J237*'Prevalence Rates'!J237","v":42.064193702502294},{"$f":"'Population 2016'!K237*'Prevalence Rates'!K237","v":8.4847433451201208},{"$f":"'Population 2016'!L237*'Prevalence Rates'!L237","v":21.715190595137937},{"$f":"'Population 2016'!M237*'Prevalence Rates'!M237","v":21.715190595137937},{"$f":"'Population 2016'!N237*'Prevalence Rates'!N237","v":37.174680588365277},{"$f":"'Population 2016'!O237*'Prevalence Rates'!O237","v":23.584710315249151},{"$f":"'Population 2016'!P237*'Prevalence Rates'!P237","v":85.063147265060195},{"$f":"'Population 2016'!Q237*'Prevalence Rates'!Q237","v":26.820417523133941},{"$f":"'Population 2016'!R237*'Prevalence Rates'!R237","v":67.374614528623326},{"$f":"'Population 2016'!S237*'Prevalence Rates'!S237","v":767.36594050103326},{"$f":"'Population 2016'!T237*'Prevalence Rates'!T237","v":505.77698889470281},{"$f":"'Population 2016'!U237*'Prevalence Rates'!U237","v":0},{"$f":"'Population 2016'!V237*'Prevalence Rates'!V237","v":69.891275690311502},{"$f":"'Population 2016'!W237*'Prevalence Rates'!W237","v":139.85445598524268},{"$f":"'Population 2016'!X237*'Prevalence Rates'!X237","v":139.85445598524268},{"$f":"'Population 2016'!Y237*'Prevalence Rates'!Y237","v":111.9554693928138},{"$f":"'Population 2016'!Z237*'Prevalence Rates'!Z237","v":187.09578122036064},{"$f":"'Population 2016'!AA237*'Prevalence Rates'!AA237","v":524.68789990967389},{"$f":"'Population 2016'!AB237*'Prevalence Rates'!AB237","v":509.73174214878424},{"$f":"'Population 2016'!AC237*'Prevalence Rates'!AC237","v":407.48339437962477},{"$f":"'Population 2016'!AD237*'Prevalence Rates'!AD237","v":61.981769182148682},{"$f":"'Population 2016'!AE237*'Prevalence Rates'!AE237","v":38.397058866899528},{"$f":"'Population 2016'!AF237*'Prevalence Rates'!AF237","v":13.589970273116126},{"$f":"'Population 2016'!AG237*'Prevalence Rates'!AG237","v":38.397058866899528},{"$f":"'Population 2016'!AH237*'Prevalence Rates'!AH237","v":117.20450553004913},{"$f":"'Population 2016'!AI237*'Prevalence Rates'!AI237","v":614.20913266115315},{"$f":"'Population 2016'!AJ237*'Prevalence Rates'!AJ237","v":27.4675589647109},{"$f":"'Population 2016'!AK237*'Prevalence Rates'!AK237","v":40.050864773151758},{"$f":"'Population 2016'!AL237*'Prevalence Rates'!AL237","v":14.165207110073423},{"$f":"'Population 2016'!AM237*'Prevalence Rates'!AM237","v":49.61417718756681},{"$f":"'Population 2016'!AN237*'Prevalence Rates'!AN237","v":2.9480887894061438},{"$f":"'Population 2016'!AO237*'Prevalence Rates'!AO237","v":2.9480887894061438},{"$f":"'Population 2016'!AP237*'Prevalence Rates'!AP237","v":40.841815423968036},{"$f":"'Population 2016'!AQ237*'Prevalence Rates'!AQ237","v":48.319894304412891},{"$f":"'Population 2016'!AR237*'Prevalence Rates'!AR237","v":2168.9304937474858},{"$f":"'Population 2016'!AS237*'Prevalence Rates'!AS237","v":13.302351854637477},{"$f":"'Population 2016'!AT237*'Prevalence Rates'!AT237","v":0},{"$f":"'Population 2016'!AU237*'Prevalence Rates'!AU237","v":0},{"$f":"'Population 2016'!AV237*'Prevalence Rates'!AV237","v":19.486147851928415},{"$f":"'Population 2016'!AW237*'Prevalence Rates'!AW237","v":67.590328342482323},{"$f":"'Population 2016'!AX237*'Prevalence Rates'!AX237","v":33.579450357382171},{"$f":"'Population 2016'!AY237*'Prevalence Rates'!AY237","v":251.16278393647951},{"$f":"'Population 2016'!AZ237*'Prevalence Rates'!AZ237","v":111.30832795123683},{"$f":"'Population 2016'!BA237*'Prevalence Rates'!BA237","v":6.0399867880516114},{"$f":"'Population 2016'!BB237*'Prevalence Rates'!BB237","v":54.144167278605515},{"$f":"'Population 2016'!BC237*'Prevalence Rates'!BC237","v":0},235]
[null,"Male 35-39",{"$f":"'Population 2016'!C238*'Prevalence Rates'!C238","v":234.55282026933759},{"$f":"'Population 2016'!D238*'Prevalence Rates'!D238","v":456.88185775333261},{"$f":"'Population 2016'!E238*'Prevalence Rates'!E238","v":222.32903748399502},{"$f":"'Population 2016'!F238*'Prevalence Rates'!F238","v":36.168016123690009},{"$f":"'Population 2016'!G238*'Prevalence Rates'!G238","v":21.283762967419964},{"$f":"'Population 2016'!H238*'Prevalence Rates'!H238","v":78.232209826192303},{"$f":"'Population 2016'!I238*'Prevalence Rates'!I238","v":19.41424324730875},{"$f":"'Population 2016'!J238*'Prevalence Rates'!J238","v":51.987029140015657},{"$f":"'Population 2016'!K238*'Prevalence Rates'!K238","v":10.785690692949306},{"$f":"'Population 2016'!L238*'Prevalence Rates'!L238","v":23.225187292150839},{"$f":"'Population 2016'!M238*'Prevalence Rates'!M238","v":23.225187292150839},{"$f":"'Population 2016'!N238*'Prevalence Rates'!N238","v":40.482292400869731},{"$f":"'Population 2016'!O238*'Prevalence Rates'!O238","v":27.611368173950225},{"$f":"'Population 2016'!P238*'Prevalence Rates'!P238","v":101.09787409524483},{"$f":"'Population 2016'!Q238*'Prevalence Rates'!Q238","v":32.357072078847921},{"$f":"'Population 2016'!R238*'Prevalence Rates'!R238","v":101.67311093220212},{"$f":"'Population 2016'!S238*'Prevalence Rates'!S238","v":779.58972328637583},{"$f":"'Population 2016'!T238*'Prevalence Rates'!T238","v":476.65562402373968},{"$f":"'Population 2016'!U238*'Prevalence Rates'!U238","v":0},{"$f":"'Population 2016'!V238*'Prevalence Rates'!V238","v":76.578403919940072},{"$f":"'Population 2016'!W238*'Prevalence Rates'!W238","v":152.15014337520489},{"$f":"'Population 2016'!X238*'Prevalence Rates'!X238","v":152.15014337520489},{"$f":"'Population 2016'!Y238*'Prevalence Rates'!Y238","v":128.56543305995572},{"$f":"'Population 2016'!Z238*'Prevalence Rates'!Z238","v":158.69346239559411},{"$f":"'Population 2016'!AA238*'Prevalence Rates'!AA238","v":594.00393876302815},{"$f":"'Population 2016'!AB238*'Prevalence Rates'!AB238","v":490.74892652919345},{"$f":"'Population 2016'!AC238*'Prevalence Rates'!AC238","v":438.83380199379741},{"$f":"'Population 2016'!AD238*'Prevalence Rates'!AD238","v":72.120318433521021},{"$f":"'Population 2016'!AE238*'Prevalence Rates'!AE238","v":50.836555466101061},{"$f":"'Population 2016'!AF238*'Prevalence Rates'!AF238","v":13.446161063876801},{"$f":"'Population 2016'!AG238*'Prevalence Rates'!AG238","v":50.836555466101061},{"$f":"'Population 2016'!AH238*'Prevalence Rates'!AH238","v":155.17013676923068},{"$f":"'Population 2016'!AI238*'Prevalence Rates'!AI238","v":608.02533666386216},{"$f":"'Population 2016'!AJ238*'Prevalence Rates'!AJ238","v":30.990884591074341},{"$f":"'Population 2016'!AK238*'Prevalence Rates'!AK238","v":33.867068775860822},{"$f":"'Population 2016'!AL238*'Prevalence Rates'!AL238","v":20.205193898125035},{"$f":"'Population 2016'!AM238*'Prevalence Rates'!AM238","v":65.864617831610431},{"$f":"'Population 2016'!AN238*'Prevalence Rates'!AN238","v":4.3861808817993841},{"$f":"'Population 2016'!AO238*'Prevalence Rates'!AO238","v":4.3861808817993841},{"$f":"'Population 2016'!AP238*'Prevalence Rates'!AP238","v":47.313229839737623},{"$f":"'Population 2016'!AQ238*'Prevalence Rates'!AQ238","v":57.66749290496896},{"$f":"'Population 2016'!AR238*'Prevalence Rates'!AR238","v":2294.8354564365141},{"$f":"'Population 2016'!AS238*'Prevalence Rates'!AS238","v":19.41424324730875},{"$f":"'Population 2016'!AT238*'Prevalence Rates'!AT238","v":0},{"$f":"'Population 2016'!AU238*'Prevalence Rates'!AU238","v":0},{"$f":"'Population 2016'!AV238*'Prevalence Rates'!AV238","v":30.415647754117042},{"$f":"'Population 2016'!AW238*'Prevalence Rates'!AW238","v":89.305518937620249},{"$f":"'Population 2016'!AX238*'Prevalence Rates'!AX238","v":41.201338447066348},{"$f":"'Population 2016'!AY238*'Prevalence Rates'!AY238","v":276.11368173950223},{"$f":"'Population 2016'!AZ238*'Prevalence Rates'!AZ238","v":123.96353836429736},{"$f":"'Population 2016'!BA238*'Prevalence Rates'!BA238","v":6.2557006019105978},{"$f":"'Population 2016'!BB238*'Prevalence Rates'!BB238","v":68.021755970200289},{"$f":"'Population 2016'!BC238*'Prevalence Rates'!BC238","v":0},236]
[null,"Male 40-44",{"$f":"'Population 2016'!C239*'Prevalence Rates'!C239","v":212.76572506957999},{"$f":"'Population 2016'!D239*'Prevalence Rates'!D239","v":459.9737557519781},{"$f":"'Population 2016'!E239*'Prevalence Rates'!E239","v":247.20803068239809},{"$f":"'Population 2016'!F239*'Prevalence Rates'!F239","v":47.025611421258972},{"$f":"'Population 2016'!G239*'Prevalence Rates'!G239","v":24.663279384544079},{"$f":"'Population 2016'!H239*'Prevalence Rates'!H239","v":102.1045385599201},{"$f":"'Population 2016'!I239*'Prevalence Rates'!I239","v":26.964226732373266},{"$f":"'Population 2016'!J239*'Prevalence Rates'!J239","v":72.767459875097984},{"$f":"'Population 2016'!K239*'Prevalence Rates'!K239","v":15.243776179368353},{"$f":"'Population 2016'!L239*'Prevalence Rates'!L239","v":25.238516221501378},{"$f":"'Population 2016'!M239*'Prevalence Rates'!M239","v":25.238516221501378},{"$f":"'Population 2016'!N239*'Prevalence Rates'!N239","v":40.698006214728714},{"$f":"'Population 2016'!O239*'Prevalence Rates'!O239","v":34.6580194266771},{"$f":"'Population 2016'!P239*'Prevalence Rates'!P239","v":124.75448901511363},{"$f":"'Population 2016'!Q239*'Prevalence Rates'!Q239","v":43.933713422613508},{"$f":"'Population 2016'!R239*'Prevalence Rates'!R239","v":124.10734757353669},{"$f":"'Population 2016'!S239*'Prevalence Rates'!S239","v":849.98433120902496},{"$f":"'Population 2016'!T239*'Prevalence Rates'!T239","v":471.19087407264533},{"$f":"'Population 2016'!U239*'Prevalence Rates'!U239","v":0},{"$f":"'Population 2016'!V239*'Prevalence Rates'!V239","v":87.364094612889375},{"$f":"'Population 2016'!W239*'Prevalence Rates'!W239","v":185.51387991872807},{"$f":"'Population 2016'!X239*'Prevalence Rates'!X239","v":185.51387991872807},{"$f":"'Population 2016'!Y239*'Prevalence Rates'!Y239","v":160.13155448798736},{"$f":"'Population 2016'!Z239*'Prevalence Rates'!Z239","v":143.37778161160611},{"$f":"'Population 2016'!AA239*'Prevalence Rates'!AA239","v":668.78472756747669},{"$f":"'Population 2016'!AB239*'Prevalence Rates'!AB239","v":501.4627126175231},{"$f":"'Population 2016'!AC239*'Prevalence Rates'!AC239","v":484.20560750880418},{"$f":"'Population 2016'!AD239*'Prevalence Rates'!AD239","v":74.565074990589537},{"$f":"'Population 2016'!AE239*'Prevalence Rates'!AE239","v":49.901795606045454},{"$f":"'Population 2016'!AF239*'Prevalence Rates'!AF239","v":17.616628131817201},{"$f":"'Population 2016'!AG239*'Prevalence Rates'!AG239","v":49.901795606045454},{"$f":"'Population 2016'!AH239*'Prevalence Rates'!AH239","v":184.57912005867246},{"$f":"'Population 2016'!AI239*'Prevalence Rates'!AI239","v":637.5062245579237},{"$f":"'Population 2016'!AJ239*'Prevalence Rates'!AJ239","v":34.082782589719805},{"$f":"'Population 2016'!AK239*'Prevalence Rates'!AK239","v":41.488956865544999},{"$f":"'Population 2016'!AL239*'Prevalence Rates'!AL239","v":25.310420826121039},{"$f":"'Population 2016'!AM239*'Prevalence Rates'!AM239","v":77.297449966136696},{"$f":"'Population 2016'!AN239*'Prevalence Rates'!AN239","v":3.307611812504454},{"$f":"'Population 2016'!AO239*'Prevalence Rates'!AO239","v":3.307611812504454},{"$f":"'Population 2016'!AP239*'Prevalence Rates'!AP239","v":51.483696907678024},{"$f":"'Population 2016'!AQ239*'Prevalence Rates'!AQ239","v":67.590328342482323},{"$f":"'Population 2016'!AR239*'Prevalence Rates'!AR239","v":2524.7863820101934},{"$f":"'Population 2016'!AS239*'Prevalence Rates'!AS239","v":26.964226732373266},{"$f":"'Population 2016'!AT239*'Prevalence Rates'!AT239","v":0},{"$f":"'Population 2016'!AU239*'Prevalence Rates'!AU239","v":0},{"$f":"'Population 2016'!AV239*'Prevalence Rates'!AV239","v":42.136098307121955},{"$f":"'Population 2016'!AW239*'Prevalence Rates'!AW239","v":107.28167009253576},{"$f":"'Population 2016'!AX239*'Prevalence Rates'!AX239","v":57.52368369572963},{"$f":"'Population 2016'!AY239*'Prevalence Rates'!AY239","v":324.72119446239378},{"$f":"'Population 2016'!AZ239*'Prevalence Rates'!AZ239","v":139.20731454366572},{"$f":"'Population 2016'!BA239*'Prevalence Rates'!BA239","v":6.7590328342482318},{"$f":"'Population 2016'!BB239*'Prevalence Rates'!BB239","v":88.298854472944981},{"$f":"'Population 2016'!BC239*'Prevalence Rates'!BC239","v":0},237]
[null,"Male 45-49",{"$f":"'Population 2016'!C240*'Prevalence Rates'!C240","v":214.6352447896912},{"$f":"'Population 2016'!D240*'Prevalence Rates'!D240","v":472.34134774655996},{"$f":"'Population 2016'!E240*'Prevalence Rates'!E240","v":257.70610295686873},{"$f":"'Population 2016'!F240*'Prevalence Rates'!F240","v":51.915124535395996},{"$f":"'Population 2016'!G240*'Prevalence Rates'!G240","v":20.852335339701991},{"$f":"'Population 2016'!H240*'Prevalence Rates'!H240","v":126.04877189826756},{"$f":"'Population 2016'!I240*'Prevalence Rates'!I240","v":36.02420691445068},{"$f":"'Population 2016'!J240*'Prevalence Rates'!J240","v":93.260272191701674},{"$f":"'Population 2016'!K240*'Prevalence Rates'!K240","v":21.643285990518276},{"$f":"'Population 2016'!L240*'Prevalence Rates'!L240","v":34.082782589719805},{"$f":"'Population 2016'!M240*'Prevalence Rates'!M240","v":34.082782589719805},{"$f":"'Population 2016'!N240*'Prevalence Rates'!N240","v":56.30130541719538},{"$f":"'Population 2016'!O240*'Prevalence Rates'!O240","v":41.776575284023643},{"$f":"'Population 2016'!P240*'Prevalence Rates'!P240","v":147.33253486568753},{"$f":"'Population 2016'!Q240*'Prevalence Rates'!Q240","v":48.679417327511203},{"$f":"'Population 2016'!R240*'Prevalence Rates'!R240","v":143.01825858850779},{"$f":"'Population 2016'!S240*'Prevalence Rates'!S240","v":929.87034694146951},{"$f":"'Population 2016'!T240*'Prevalence Rates'!T240","v":493.62511071397989},{"$f":"'Population 2016'!U240*'Prevalence Rates'!U240","v":0},{"$f":"'Population 2016'!V240*'Prevalence Rates'!V240","v":94.770268888714568},{"$f":"'Population 2016'!W240*'Prevalence Rates'!W240","v":203.84955409674188},{"$f":"'Population 2016'!X240*'Prevalence Rates'!X240","v":203.84955409674188},{"$f":"'Population 2016'!Y240*'Prevalence Rates'!Y240","v":188.03054108041624},{"$f":"'Population 2016'!Z240*'Prevalence Rates'!Z240","v":148.48300853960211},{"$f":"'Population 2016'!AA240*'Prevalence Rates'!AA240","v":773.69354570756354},{"$f":"'Population 2016'!AB240*'Prevalence Rates'!AB240","v":520.30171902787458},{"$f":"'Population 2016'!AC240*'Prevalence Rates'!AC240","v":558.26735026705603},{"$f":"'Population 2016'!AD240*'Prevalence Rates'!AD240","v":82.330772289513035},{"$f":"'Population 2016'!AE240*'Prevalence Rates'!AE240","v":61.478436949811048},{"$f":"'Population 2016'!AF240*'Prevalence Rates'!AF240","v":20.78043073508233},{"$f":"'Population 2016'!AG240*'Prevalence Rates'!AG240","v":61.478436949811048},{"$f":"'Population 2016'!AH240*'Prevalence Rates'!AH240","v":215.42619544050748},{"$f":"'Population 2016'!AI240*'Prevalence Rates'!AI240","v":689.99658593027698},{"$f":"'Population 2016'!AJ240*'Prevalence Rates'!AJ240","v":41.704670679403982},{"$f":"'Population 2016'!AK240*'Prevalence Rates'!AK240","v":47.960371281314579},{"$f":"'Population 2016'!AL240*'Prevalence Rates'!AL240","v":34.010877985100144},{"$f":"'Population 2016'!AM240*'Prevalence Rates'!AM240","v":89.521232751479246},{"$f":"'Population 2016'!AN240*'Prevalence Rates'!AN240","v":4.8895131141370189},{"$f":"'Population 2016'!AO240*'Prevalence Rates'!AO240","v":4.8895131141370189},{"$f":"'Population 2016'!AP240*'Prevalence Rates'!AP240","v":62.628910623725638},{"$f":"'Population 2016'!AQ240*'Prevalence Rates'!AQ240","v":86.788857775932087},{"$f":"'Population 2016'!AR240*'Prevalence Rates'!AR240","v":2830.0933332252785},{"$f":"'Population 2016'!AS240*'Prevalence Rates'!AS240","v":36.02420691445068},{"$f":"'Population 2016'!AT240*'Prevalence Rates'!AT240","v":0},{"$f":"'Population 2016'!AU240*'Prevalence Rates'!AU240","v":0},{"$f":"'Population 2016'!AV240*'Prevalence Rates'!AV240","v":50.261318629143766},{"$f":"'Population 2016'!AW240*'Prevalence Rates'!AW240","v":125.90496268902824},{"$f":"'Population 2016'!AX240*'Prevalence Rates'!AX240","v":71.616986201183394},{"$f":"'Population 2016'!AY240*'Prevalence Rates'!AY240","v":374.69489467305891},{"$f":"'Population 2016'!AZ240*'Prevalence Rates'!AZ240","v":170.845340576317},{"$f":"'Population 2016'!BA240*'Prevalence Rates'!BA240","v":11.864259762244236},{"$f":"'Population 2016'!BB240*'Prevalence Rates'!BB240","v":105.98738720938185},{"$f":"'Population 2016'!BC240*'Prevalence Rates'!BC240","v":0},238]
[null,"Male 50-54",{"$f":"'Population 2016'!C241*'Prevalence Rates'!C241","v":219.23713948534956},{"$f":"'Population 2016'!D241*'Prevalence Rates'!D241","v":470.04040039873075},{"$f":"'Population 2016'!E241*'Prevalence Rates'!E241","v":250.80326091338119},{"$f":"'Population 2016'!F241*'Prevalence Rates'!F241","v":61.190818531332397},{"$f":"'Population 2016'!G241*'Prevalence Rates'!G241","v":22.86566426905253},{"$f":"'Population 2016'!H241*'Prevalence Rates'!H241","v":137.3377948235545},{"$f":"'Population 2016'!I241*'Prevalence Rates'!I241","v":29.768506312540087},{"$f":"'Population 2016'!J241*'Prevalence Rates'!J241","v":89.880755774577551},{"$f":"'Population 2016'!K241*'Prevalence Rates'!K241","v":20.78043073508233},{"$f":"'Population 2016'!L241*'Prevalence Rates'!L241","v":39.691341750053446},{"$f":"'Population 2016'!M241*'Prevalence Rates'!M241","v":39.691341750053446},{"$f":"'Population 2016'!N241*'Prevalence Rates'!N241","v":55.582259370998756},{"$f":"'Population 2016'!O241*'Prevalence Rates'!O241","v":38.181345053040545},{"$f":"'Population 2016'!P241*'Prevalence Rates'!P241","v":164.44583076516707},{"$f":"'Population 2016'!Q241*'Prevalence Rates'!Q241","v":56.157496207956051},{"$f":"'Population 2016'!R241*'Prevalence Rates'!R241","v":139.71064677600336},{"$f":"'Population 2016'!S241*'Prevalence Rates'!S241","v":906.57325504469907},{"$f":"'Population 2016'!T241*'Prevalence Rates'!T241","v":489.23892983218053},{"$f":"'Population 2016'!U241*'Prevalence Rates'!U241","v":0},{"$f":"'Population 2016'!V241*'Prevalence Rates'!V241","v":92.037893913167409},{"$f":"'Population 2016'!W241*'Prevalence Rates'!W241","v":190.97862986982238},{"$f":"'Population 2016'!X241*'Prevalence Rates'!X241","v":190.97862986982238},{"$f":"'Population 2016'!Y241*'Prevalence Rates'!Y241","v":181.91864968774496},{"$f":"'Population 2016'!Z241*'Prevalence Rates'!Z241","v":146.03825198253361},{"$f":"'Population 2016'!AA241*'Prevalence Rates'!AA241","v":817.4115453163181},{"$f":"'Population 2016'!AB241*'Prevalence Rates'!AB241","v":512.60792633357073},{"$f":"'Population 2016'!AC241*'Prevalence Rates'!AC241","v":592.20632364753658},{"$f":"'Population 2016'!AD241*'Prevalence Rates'!AD241","v":84.128387405004588},{"$f":"'Population 2016'!AE241*'Prevalence Rates'!AE241","v":61.262723135952058},{"$f":"'Population 2016'!AF241*'Prevalence Rates'!AF241","v":30.775170777215354},{"$f":"'Population 2016'!AG241*'Prevalence Rates'!AG241","v":61.262723135952058},{"$f":"'Population 2016'!AH241*'Prevalence Rates'!AH241","v":225.20522166878152},{"$f":"'Population 2016'!AI241*'Prevalence Rates'!AI241","v":685.82611886233656},{"$f":"'Population 2016'!AJ241*'Prevalence Rates'!AJ241","v":38.468963471519189},{"$f":"'Population 2016'!AK241*'Prevalence Rates'!AK241","v":42.567525934839928},{"$f":"'Population 2016'!AL241*'Prevalence Rates'!AL241","v":37.749917425322572},{"$f":"'Population 2016'!AM241*'Prevalence Rates'!AM241","v":96.711693213445443},{"$f":"'Population 2016'!AN241*'Prevalence Rates'!AN241","v":4.5299900910387088},{"$f":"'Population 2016'!AO241*'Prevalence Rates'!AO241","v":4.5299900910387088},{"$f":"'Population 2016'!AP241*'Prevalence Rates'!AP241","v":78.376019035431625},{"$f":"'Population 2016'!AQ241*'Prevalence Rates'!AQ241","v":98.581212933556657},{"$f":"'Population 2016'!AR241*'Prevalence Rates'!AR241","v":2879.3479873897468},{"$f":"'Population 2016'!AS241*'Prevalence Rates'!AS241","v":29.768506312540087},{"$f":"'Population 2016'!AT241*'Prevalence Rates'!AT241","v":0},{"$f":"'Population 2016'!AU241*'Prevalence Rates'!AU241","v":0},{"$f":"'Population 2016'!AV241*'Prevalence Rates'!AV241","v":61.40653234519138},{"$f":"'Population 2016'!AW241*'Prevalence Rates'!AW241","v":128.49352845533608},{"$f":"'Population 2016'!AX241*'Prevalence Rates'!AX241","v":69.100325039495218},{"$f":"'Population 2016'!AY241*'Prevalence Rates'!AY241","v":386.12772680758513},{"$f":"'Population 2016'!AZ241*'Prevalence Rates'!AZ241","v":195.14909693776278},{"$f":"'Population 2016'!BA241*'Prevalence Rates'!BA241","v":12.655210413060519},{"$f":"'Population 2016'!BB241*'Prevalence Rates'!BB241","v":101.96072935068078},{"$f":"'Population 2016'!BC241*'Prevalence Rates'!BC241","v":0},239]
[null,"Male 55-59",{"$f":"'Population 2016'!C242*'Prevalence Rates'!C242","v":172.5680201856224},{"$f":"'Population 2016'!D242*'Prevalence Rates'!D242","v":353.26751776219038},{"$f":"'Population 2016'!E242*'Prevalence Rates'!E242","v":180.69949757656798},{"$f":"'Population 2016'!F242*'Prevalence Rates'!F242","v":44.331610072118011},{"$f":"'Population 2016'!G242*'Prevalence Rates'!G242","v":16.564120611185398},{"$f":"'Population 2016'!H242*'Prevalence Rates'!H242","v":116.85234176618063},{"$f":"'Population 2016'!I242*'Prevalence Rates'!I242","v":21.021374884740741},{"$f":"'Population 2016'!J242*'Prevalence Rates'!J242","v":64.148321639681626},{"$f":"'Population 2016'!K242*'Prevalence Rates'!K242","v":14.516192971984294},{"$f":"'Population 2016'!L242*'Prevalence Rates'!L242","v":29.815417100133715},{"$f":"'Population 2016'!M242*'Prevalence Rates'!M242","v":29.815417100133715},{"$f":"'Population 2016'!N242*'Prevalence Rates'!N242","v":49.09003017496763},{"$f":"'Population 2016'!O242*'Prevalence Rates'!O242","v":32.586142729641089},{"$f":"'Population 2016'!P242*'Prevalence Rates'!P242","v":125.58615081571475},{"$f":"'Population 2016'!Q242*'Prevalence Rates'!Q242","v":35.778500520160456},{"$f":"'Population 2016'!R242*'Prevalence Rates'!R242","v":117.93653875164003},{"$f":"'Population 2016'!S242*'Prevalence Rates'!S242","v":689.42881642046564},{"$f":"'Population 2016'!T242*'Prevalence Rates'!T242","v":377.96311576432134},{"$f":"'Population 2016'!U242*'Prevalence Rates'!U242","v":0},{"$f":"'Population 2016'!V242*'Prevalence Rates'!V242","v":63.847155810387349},{"$f":"'Population 2016'!W242*'Prevalence Rates'!W242","v":153.53433977422392},{"$f":"'Population 2016'!X242*'Prevalence Rates'!X242","v":153.53433977422392},{"$f":"'Population 2016'!Y242*'Prevalence Rates'!Y242","v":127.99547745006898},{"$f":"'Population 2016'!Z242*'Prevalence Rates'!Z242","v":107.33550156048138},{"$f":"'Population 2016'!AA242*'Prevalence Rates'!AA242","v":632.02660935697588},{"$f":"'Population 2016'!AB242*'Prevalence Rates'!AB242","v":382.96246853060637},{"$f":"'Population 2016'!AC242*'Prevalence Rates'!AC242","v":460.60301932267174},{"$f":"'Population 2016'!AD242*'Prevalence Rates'!AD242","v":63.064124654222226},{"$f":"'Population 2016'!AE242*'Prevalence Rates'!AE242","v":46.500004043036824},{"$f":"'Population 2016'!AF242*'Prevalence Rates'!AF242","v":23.009069358082989},{"$f":"'Population 2016'!AG242*'Prevalence Rates'!AG242","v":46.500004043036824},{"$f":"'Population 2016'!AH242*'Prevalence Rates'!AH242","v":171.42359003430414},{"$f":"'Population 2016'!AI242*'Prevalence Rates'!AI242","v":514.87310176150106},{"$f":"'Population 2016'!AJ242*'Prevalence Rates'!AJ242","v":28.189121621944604},{"$f":"'Population 2016'!AK242*'Prevalence Rates'!AK242","v":29.694950768416003},{"$f":"'Population 2016'!AL242*'Prevalence Rates'!AL242","v":27.948188958509181},{"$f":"'Population 2016'!AM242*'Prevalence Rates'!AM242","v":70.231871391426083},{"$f":"'Population 2016'!AN242*'Prevalence Rates'!AN242","v":4.3970211076964878},{"$f":"'Population 2016'!AO242*'Prevalence Rates'!AO242","v":4.3970211076964878},{"$f":"'Population 2016'!AP242*'Prevalence Rates'!AP242","v":53.848450277817257},{"$f":"'Population 2016'!AQ242*'Prevalence Rates'!AQ242","v":78.242882450653937},{"$f":"'Population 2016'!AR242*'Prevalence Rates'!AR242","v":2193.8123669112529},{"$f":"'Population 2016'!AS242*'Prevalence Rates'!AS242","v":21.021374884740741},{"$f":"'Population 2016'!AT242*'Prevalence Rates'!AT242","v":0},{"$f":"'Population 2016'!AU242*'Prevalence Rates'!AU242","v":0},{"$f":"'Population 2016'!AV242*'Prevalence Rates'!AV242","v":56.318010078030355},{"$f":"'Population 2016'!AW242*'Prevalence Rates'!AW242","v":101.19171864287807},{"$f":"'Population 2016'!AX242*'Prevalence Rates'!AX242","v":49.632128667697337},{"$f":"'Population 2016'!AY242*'Prevalence Rates'!AY242","v":300.80443029912681},{"$f":"'Population 2016'!AZ242*'Prevalence Rates'!AZ242","v":147.27009052490291},{"$f":"'Population 2016'!BA242*'Prevalence Rates'!BA242","v":8.4928763860986951},{"$f":"'Population 2016'!BB242*'Prevalence Rates'!BB242","v":72.942363855074603},{"$f":"'Population 2016'!BC242*'Prevalence Rates'!BC242","v":0},240]
[null,"Male 60-64",{"$f":"'Population 2016'!C243*'Prevalence Rates'!C243","v":152.93200811563537},{"$f":"'Population 2016'!D243*'Prevalence Rates'!D243","v":318.39251472991276},{"$f":"'Population 2016'!E243*'Prevalence Rates'!E243","v":165.46050661427742},{"$f":"'Population 2016'!F243*'Prevalence Rates'!F243","v":41.139252281598644},{"$f":"'Population 2016'!G243*'Prevalence Rates'!G243","v":13.67292864996031},{"$f":"'Population 2016'!H243*'Prevalence Rates'!H243","v":109.68459502897676},{"$f":"'Population 2016'!I243*'Prevalence Rates'!I243","v":22.165805036059005},{"$f":"'Population 2016'!J243*'Prevalence Rates'!J243","v":60.955963849162266},{"$f":"'Population 2016'!K243*'Prevalence Rates'!K243","v":16.20272161603226},{"$f":"'Population 2016'!L243*'Prevalence Rates'!L243","v":28.369821119521173},{"$f":"'Population 2016'!M243*'Prevalence Rates'!M243","v":28.369821119521173},{"$f":"'Population 2016'!N243*'Prevalence Rates'!N243","v":39.934588964421522},{"$f":"'Population 2016'!O243*'Prevalence Rates'!O243","v":28.249354787803458},{"$f":"'Population 2016'!P243*'Prevalence Rates'!P243","v":111.00972467787159},{"$f":"'Population 2016'!Q243*'Prevalence Rates'!Q243","v":30.237049261145707},{"$f":"'Population 2016'!R243*'Prevalence Rates'!R243","v":99.806355828124381},{"$f":"'Population 2016'!S243*'Prevalence Rates'!S243","v":587.57453295314019},{"$f":"'Population 2016'!T243*'Prevalence Rates'!T243","v":325.13862930610463},{"$f":"'Population 2016'!U243*'Prevalence Rates'!U243","v":0},{"$f":"'Population 2016'!V243*'Prevalence Rates'!V243","v":51.98122213619272},{"$f":"'Population 2016'!W243*'Prevalence Rates'!W243","v":132.15156589433005},{"$f":"'Population 2016'!X243*'Prevalence Rates'!X243","v":132.15156589433005},{"$f":"'Population 2016'!Y243*'Prevalence Rates'!Y243","v":112.93718598535499},{"$f":"'Population 2016'!Z243*'Prevalence Rates'!Z243","v":95.529801052145601},{"$f":"'Population 2016'!AA243*'Prevalence Rates'!AA243","v":547.39901132528325},{"$f":"'Population 2016'!AB243*'Prevalence Rates'!AB243","v":346.58163635185736},{"$f":"'Population 2016'!AC243*'Prevalence Rates'!AC243","v":397.65936100016728},{"$f":"'Population 2016'!AD243*'Prevalence Rates'!AD243","v":56.619175907324632},{"$f":"'Population 2016'!AE243*'Prevalence Rates'!AE243","v":42.94624725736432},{"$f":"'Population 2016'!AF243*'Prevalence Rates'!AF243","v":19.09391357725735},{"$f":"'Population 2016'!AG243*'Prevalence Rates'!AG243","v":42.94624725736432},{"$f":"'Population 2016'!AH243*'Prevalence Rates'!AH243","v":149.739650325116},{"$f":"'Population 2016'!AI243*'Prevalence Rates'!AI243","v":433.25716202275117},{"$f":"'Population 2016'!AJ243*'Prevalence Rates'!AJ243","v":23.731867348389262},{"$f":"'Population 2016'!AK243*'Prevalence Rates'!AK243","v":28.189121621944604},{"$f":"'Population 2016'!AL243*'Prevalence Rates'!AL243","v":28.550520617097739},{"$f":"'Population 2016'!AM243*'Prevalence Rates'!AM243","v":58.245471385513746},{"$f":"'Population 2016'!AN243*'Prevalence Rates'!AN243","v":3.2525909563782234},{"$f":"'Population 2016'!AO243*'Prevalence Rates'!AO243","v":3.2525909563782234},{"$f":"'Population 2016'!AP243*'Prevalence Rates'!AP243","v":54.029149775393826},{"$f":"'Population 2016'!AQ243*'Prevalence Rates'!AQ243","v":63.847155810387349},{"$f":"'Population 2016'!AR243*'Prevalence Rates'!AR243","v":1927.5215406492505},{"$f":"'Population 2016'!AS243*'Prevalence Rates'!AS243","v":22.165805036059005},{"$f":"'Population 2016'!AT243*'Prevalence Rates'!AT243","v":0},{"$f":"'Population 2016'!AU243*'Prevalence Rates'!AU243","v":0},{"$f":"'Population 2016'!AV243*'Prevalence Rates'!AV243","v":52.884719624075558},{"$f":"'Population 2016'!AW243*'Prevalence Rates'!AW243","v":91.49417893960225},{"$f":"'Population 2016'!AX243*'Prevalence Rates'!AX243","v":44.753242233130003},{"$f":"'Population 2016'!AY243*'Prevalence Rates'!AY243","v":267.25455691574405},{"$f":"'Population 2016'!AZ243*'Prevalence Rates'!AZ243","v":135.102991021414},{"$f":"'Population 2016'!BA243*'Prevalence Rates'!BA243","v":8.3724100543809836},{"$f":"'Population 2016'!BB243*'Prevalence Rates'!BB243","v":54.149616107111534},{"$f":"'Population 2016'!BC243*'Prevalence Rates'!BC243","v":0},241]
[null,"Male 65-69",{"$f":"'Population 2016'!C244*'Prevalence Rates'!C244","v":135.22345735313169},{"$f":"'Population 2016'!D244*'Prevalence Rates'!D244","v":289.3601287859442},{"$f":"'Population 2016'!E244*'Prevalence Rates'!E244","v":154.13667143281248},{"$f":"'Population 2016'!F244*'Prevalence Rates'!F244","v":49.09003017496763},{"$f":"'Population 2016'!G244*'Prevalence Rates'!G244","v":14.57642613784315},{"$f":"'Population 2016'!H244*'Prevalence Rates'!H244","v":121.91192769832453},{"$f":"'Population 2016'!I244*'Prevalence Rates'!I244","v":24.273965841118965},{"$f":"'Population 2016'!J244*'Prevalence Rates'!J244","v":67.461145761918715},{"$f":"'Population 2016'!K244*'Prevalence Rates'!K244","v":18.371115586951078},{"$f":"'Population 2016'!L244*'Prevalence Rates'!L244","v":30.839380919734268},{"$f":"'Population 2016'!M244*'Prevalence Rates'!M244","v":30.839380919734268},{"$f":"'Population 2016'!N244*'Prevalence Rates'!N244","v":39.573189969268384},{"$f":"'Population 2016'!O244*'Prevalence Rates'!O244","v":29.634717602557149},{"$f":"'Population 2016'!P244*'Prevalence Rates'!P244","v":110.94949151201274},{"$f":"'Population 2016'!Q244*'Prevalence Rates'!Q244","v":30.598448256298845},{"$f":"'Population 2016'!R244*'Prevalence Rates'!R244","v":89.807650295554282},{"$f":"'Population 2016'!S244*'Prevalence Rates'!S244","v":600.04279828592337},{"$f":"'Population 2016'!T244*'Prevalence Rates'!T244","v":324.11466548650407},{"$f":"'Population 2016'!U244*'Prevalence Rates'!U244","v":0},{"$f":"'Population 2016'!V244*'Prevalence Rates'!V244","v":50.475392989721321},{"$f":"'Population 2016'!W244*'Prevalence Rates'!W244","v":145.82449454429036},{"$f":"'Population 2016'!X244*'Prevalence Rates'!X244","v":145.82449454429036},{"$f":"'Population 2016'!Y244*'Prevalence Rates'!Y244","v":117.93653875164003},{"$f":"'Population 2016'!Z244*'Prevalence Rates'!Z244","v":84.80829752926924},{"$f":"'Population 2016'!AA244*'Prevalence Rates'!AA244","v":504.87439622893095},{"$f":"'Population 2016'!AB244*'Prevalence Rates'!AB244","v":317.60948357374764},{"$f":"'Population 2016'!AC244*'Prevalence Rates'!AC244","v":375.01169063723739},{"$f":"'Population 2016'!AD244*'Prevalence Rates'!AD244","v":59.570601034408575},{"$f":"'Population 2016'!AE244*'Prevalence Rates'!AE244","v":44.994174896565426},{"$f":"'Population 2016'!AF244*'Prevalence Rates'!AF244","v":21.141841216458452},{"$f":"'Population 2016'!AG244*'Prevalence Rates'!AG244","v":44.994174896565426},{"$f":"'Population 2016'!AH244*'Prevalence Rates'!AH244","v":129.86270559169353},{"$f":"'Population 2016'!AI244*'Prevalence Rates'!AI244","v":429.94433790051409},{"$f":"'Population 2016'!AJ244*'Prevalence Rates'!AJ244","v":25.659328655872653},{"$f":"'Population 2016'!AK244*'Prevalence Rates'!AK244","v":28.249354787803458},{"$f":"'Population 2016'!AL244*'Prevalence Rates'!AL244","v":30.417748758722276},{"$f":"'Population 2016'!AM244*'Prevalence Rates'!AM244","v":50.716325653156744},{"$f":"'Population 2016'!AN244*'Prevalence Rates'!AN244","v":3.7946894491079273},{"$f":"'Population 2016'!AO244*'Prevalence Rates'!AO244","v":3.7946894491079273},{"$f":"'Population 2016'!AP244*'Prevalence Rates'!AP244","v":63.425523649375357},{"$f":"'Population 2016'!AQ244*'Prevalence Rates'!AQ244","v":62.461792995633665},{"$f":"'Population 2016'!AR244*'Prevalence Rates'!AR244","v":1908.6685597354287},{"$f":"'Population 2016'!AS244*'Prevalence Rates'!AS244","v":24.273965841118965},{"$f":"'Population 2016'!AT244*'Prevalence Rates'!AT244","v":0},{"$f":"'Population 2016'!AU244*'Prevalence Rates'!AU244","v":0},{"$f":"'Population 2016'!AV244*'Prevalence Rates'!AV244","v":61.859461337045104},{"$f":"'Population 2016'!AW244*'Prevalence Rates'!AW244","v":79.146379938536768},{"$f":"'Population 2016'!AX244*'Prevalence Rates'!AX244","v":49.09003017496763},{"$f":"'Population 2016'!AY244*'Prevalence Rates'!AY244","v":297.91323833790176},{"$f":"'Population 2016'!AZ244*'Prevalence Rates'!AZ244","v":152.08874379361137},{"$f":"'Population 2016'!BA244*'Prevalence Rates'!BA244","v":5.8426170883090309},{"$f":"'Population 2016'!BB244*'Prevalence Rates'!BB244","v":49.571895501838483},{"$f":"'Population 2016'!BC244*'Prevalence Rates'!BC244","v":0},242]
[null,"Male 70-74",{"$f":"'Population 2016'!C245*'Prevalence Rates'!C245","v":88.362054314941744},{"$f":"'Population 2016'!D245*'Prevalence Rates'!D245","v":191.11983527015005},{"$f":"'Population 2016'!E245*'Prevalence Rates'!E245","v":102.75778095520832},{"$f":"'Population 2016'!F245*'Prevalence Rates'!F245","v":36.380832178749017},{"$f":"'Population 2016'!G245*'Prevalence Rates'!G245","v":12.16709950348891},{"$f":"'Population 2016'!H245*'Prevalence Rates'!H245","v":92.216976929908526},{"$f":"'Population 2016'!I245*'Prevalence Rates'!I245","v":15.660623123302559},{"$f":"'Population 2016'!J245*'Prevalence Rates'!J245","v":45.897672384448263},{"$f":"'Population 2016'!K245*'Prevalence Rates'!K245","v":11.865933674194631},{"$f":"'Population 2016'!L245*'Prevalence Rates'!L245","v":21.985105538482436},{"$f":"'Population 2016'!M245*'Prevalence Rates'!M245","v":21.985105538482436},{"$f":"'Population 2016'!N245*'Prevalence Rates'!N245","v":30.899614085593125},{"$f":"'Population 2016'!O245*'Prevalence Rates'!O245","v":19.274613074833916},{"$f":"'Population 2016'!P245*'Prevalence Rates'!P245","v":88.121121651506314},{"$f":"'Population 2016'!Q245*'Prevalence Rates'!Q245","v":25.599095490013795},{"$f":"'Population 2016'!R245*'Prevalence Rates'!R245","v":68.786275410813545},{"$f":"'Population 2016'!S245*'Prevalence Rates'!S245","v":430.48643639324376},{"$f":"'Population 2016'!T245*'Prevalence Rates'!T245","v":226.05507146828654},{"$f":"'Population 2016'!U245*'Prevalence Rates'!U245","v":0},{"$f":"'Population 2016'!V245*'Prevalence Rates'!V245","v":33.128241222370796},{"$f":"'Population 2016'!W245*'Prevalence Rates'!W245","v":114.38278196596752},{"$f":"'Population 2016'!X245*'Prevalence Rates'!X245","v":114.38278196596752},{"$f":"'Population 2016'!Y245*'Prevalence Rates'!Y245","v":79.02591360681906},{"$f":"'Population 2016'!Z245*'Prevalence Rates'!Z245","v":50.716325653156744},{"$f":"'Population 2016'!AA245*'Prevalence Rates'!AA245","v":365.37438409982042},{"$f":"'Population 2016'!AB245*'Prevalence Rates'!AB245","v":213.64703930136221},{"$f":"'Population 2016'!AC245*'Prevalence Rates'!AC245","v":274.18137098951246},{"$f":"'Population 2016'!AD245*'Prevalence Rates'!AD245","v":44.030444242823727},{"$f":"'Population 2016'!AE245*'Prevalence Rates'!AE245","v":31.863344739334821},{"$f":"'Population 2016'!AF245*'Prevalence Rates'!AF245","v":17.889250260080228},{"$f":"'Population 2016'!AG245*'Prevalence Rates'!AG245","v":31.863344739334821},{"$f":"'Population 2016'!AH245*'Prevalence Rates'!AH245","v":91.193013110307973},{"$f":"'Population 2016'!AI245*'Prevalence Rates'!AI245","v":300.44303130397367},{"$f":"'Population 2016'!AJ245*'Prevalence Rates'!AJ245","v":17.106219103915102},{"$f":"'Population 2016'!AK245*'Prevalence Rates'!AK245","v":22.52720403121214},{"$f":"'Population 2016'!AL245*'Prevalence Rates'!AL245","v":23.250002021518412},{"$f":"'Population 2016'!AM245*'Prevalence Rates'!AM245","v":30.417748758722276},{"$f":"'Population 2016'!AN245*'Prevalence Rates'!AN245","v":2.4695598002130956},{"$f":"'Population 2016'!AO245*'Prevalence Rates'!AO245","v":2.4695598002130956},{"$f":"'Population 2016'!AP245*'Prevalence Rates'!AP245","v":48.54793168223793},{"$f":"'Population 2016'!AQ245*'Prevalence Rates'!AQ245","v":45.716972886871694},{"$f":"'Population 2016'!AR245*'Prevalence Rates'!AR245","v":1365.0642378592534},{"$f":"'Population 2016'!AS245*'Prevalence Rates'!AS245","v":15.660623123302559},{"$f":"'Population 2016'!AT245*'Prevalence Rates'!AT245","v":0},{"$f":"'Population 2016'!AU245*'Prevalence Rates'!AU245","v":0},{"$f":"'Population 2016'!AV245*'Prevalence Rates'!AV245","v":49.692361833556191},{"$f":"'Population 2016'!AW245*'Prevalence Rates'!AW245","v":60.775264351585697},{"$f":"'Population 2016'!AX245*'Prevalence Rates'!AX245","v":34.031738710253634},{"$f":"'Population 2016'!AY245*'Prevalence Rates'!AY245","v":230.2111599125476},{"$f":"'Population 2016'!AZ245*'Prevalence Rates'!AZ245","v":115.82837794658008},{"$f":"'Population 2016'!BA245*'Prevalence Rates'!BA245","v":2.9514251270839438},{"$f":"'Population 2016'!BB245*'Prevalence Rates'!BB245","v":31.682645241758252},{"$f":"'Population 2016'!BC245*'Prevalence Rates'!BC245","v":0},243]
[null,"Male 75-79",{"$f":"'Population 2016'!C246*'Prevalence Rates'!C246","v":66.979280435047869},{"$f":"'Population 2016'!D246*'Prevalence Rates'!D246","v":140.22281011941675},{"$f":"'Population 2016'!E246*'Prevalence Rates'!E246","v":73.24352968436888},{"$f":"'Population 2016'!F246*'Prevalence Rates'!F246","v":23.912566845965827},{"$f":"'Population 2016'!G246*'Prevalence Rates'!G246","v":7.5893788982158545},{"$f":"'Population 2016'!H246*'Prevalence Rates'!H246","v":64.148321639681626},{"$f":"'Population 2016'!I246*'Prevalence Rates'!I246","v":10.661270357017511},{"$f":"'Population 2016'!J246*'Prevalence Rates'!J246","v":36.86269750561987},{"$f":"'Population 2016'!K246*'Prevalence Rates'!K246","v":7.2882130689215749},{"$f":"'Population 2016'!L246*'Prevalence Rates'!L246","v":18.732514582104212},{"$f":"'Population 2016'!M246*'Prevalence Rates'!M246","v":18.732514582104212},{"$f":"'Population 2016'!N246*'Prevalence Rates'!N246","v":25.41839599243723},{"$f":"'Population 2016'!O246*'Prevalence Rates'!O246","v":13.010363825512893},{"$f":"'Population 2016'!P246*'Prevalence Rates'!P246","v":73.665161845380879},{"$f":"'Population 2016'!Q246*'Prevalence Rates'!Q246","v":19.636012069987054},{"$f":"'Population 2016'!R246*'Prevalence Rates'!R246","v":56.679409073183486},{"$f":"'Population 2016'!S246*'Prevalence Rates'!S246","v":304.71958607995248},{"$f":"'Population 2016'!T246*'Prevalence Rates'!T246","v":168.77333073651448},{"$f":"'Population 2016'!U246*'Prevalence Rates'!U246","v":0},{"$f":"'Population 2016'!V246*'Prevalence Rates'!V246","v":22.286271367776717},{"$f":"'Population 2016'!W246*'Prevalence Rates'!W246","v":72.520731694062619},{"$f":"'Population 2016'!X246*'Prevalence Rates'!X246","v":72.520731694062619},{"$f":"'Population 2016'!Y246*'Prevalence Rates'!Y246","v":59.148968873396583},{"$f":"'Population 2016'!Z246*'Prevalence Rates'!Z246","v":35.176168861571902},{"$f":"'Population 2016'!AA246*'Prevalence Rates'!AA246","v":270.86854686727537},{"$f":"'Population 2016'!AB246*'Prevalence Rates'!AB246","v":157.63019505262614},{"$f":"'Population 2016'!AC246*'Prevalence Rates'!AC246","v":208.64768653507716},{"$f":"'Population 2016'!AD246*'Prevalence Rates'!AD246","v":29.333551773262869},{"$f":"'Population 2016'!AE246*'Prevalence Rates'!AE246","v":21.744172875047013},{"$f":"'Population 2016'!AF246*'Prevalence Rates'!AF246","v":12.046633171771198},{"$f":"'Population 2016'!AG246*'Prevalence Rates'!AG246","v":21.744172875047013},{"$f":"'Population 2016'!AH246*'Prevalence Rates'!AH246","v":62.220860332198242},{"$f":"'Population 2016'!AI246*'Prevalence Rates'!AI246","v":221.53758402887235},{"$f":"'Population 2016'!AJ246*'Prevalence Rates'!AJ246","v":10.962436186311791},{"$f":"'Population 2016'!AK246*'Prevalence Rates'!AK246","v":17.407384933209382},{"$f":"'Population 2016'!AL246*'Prevalence Rates'!AL246","v":15.118524630572853},{"$f":"'Population 2016'!AM246*'Prevalence Rates'!AM246","v":21.683939709188156},{"$f":"'Population 2016'!AN246*'Prevalence Rates'!AN246","v":1.3251296488948319},{"$f":"'Population 2016'!AO246*'Prevalence Rates'!AO246","v":1.3251296488948319},{"$f":"'Population 2016'!AP246*'Prevalence Rates'!AP246","v":37.103630169055293},{"$f":"'Population 2016'!AQ246*'Prevalence Rates'!AQ246","v":29.1528522756863},{"$f":"'Population 2016'!AR246*'Prevalence Rates'!AR246","v":992.34140752465248},{"$f":"'Population 2016'!AS246*'Prevalence Rates'!AS246","v":10.661270357017511},{"$f":"'Population 2016'!AT246*'Prevalence Rates'!AT246","v":0},{"$f":"'Population 2016'!AU246*'Prevalence Rates'!AU246","v":0},{"$f":"'Population 2016'!AV246*'Prevalence Rates'!AV246","v":36.019433183595886},{"$f":"'Population 2016'!AW246*'Prevalence Rates'!AW246","v":40.536920623010083},{"$f":"'Population 2016'!AX246*'Prevalence Rates'!AX246","v":29.574484436698292},{"$f":"'Population 2016'!AY246*'Prevalence Rates'!AY246","v":158.95532470152096},{"$f":"'Population 2016'!AZ246*'Prevalence Rates'!AZ246","v":86.434593007458346},{"$f":"'Population 2016'!BA246*'Prevalence Rates'!BA246","v":1.9274613074833917},{"$f":"'Population 2016'!BB246*'Prevalence Rates'!BB246","v":22.165805036059005},{"$f":"'Population 2016'!BC246*'Prevalence Rates'!BC246","v":0},244]
[null,"Male 80-84",{"$f":"'Population 2016'!C247*'Prevalence Rates'!C247","v":49.571895501838483},{"$f":"'Population 2016'!D247*'Prevalence Rates'!D247","v":97.095863364475861},{"$f":"'Population 2016'!E247*'Prevalence Rates'!E247","v":47.523967862637377},{"$f":"'Population 2016'!F247*'Prevalence Rates'!F247","v":19.876944733422476},{"$f":"'Population 2016'!G247*'Prevalence Rates'!G247","v":4.577720605273055},{"$f":"'Population 2016'!H247*'Prevalence Rates'!H247","v":46.018138716165979},{"$f":"'Population 2016'!I247*'Prevalence Rates'!I247","v":7.8303115616512793},{"$f":"'Population 2016'!J247*'Prevalence Rates'!J247","v":25.659328655872653},{"$f":"'Population 2016'!K247*'Prevalence Rates'!K247","v":4.8788864345673355},{"$f":"'Population 2016'!L247*'Prevalence Rates'!L247","v":12.227332669347767},{"$f":"'Population 2016'!M247*'Prevalence Rates'!M247","v":12.227332669347767},{"$f":"'Population 2016'!N247*'Prevalence Rates'!N247","v":19.696245235845907},{"$f":"'Population 2016'!O247*'Prevalence Rates'!O247","v":8.1314773909455589},{"$f":"'Population 2016'!P247*'Prevalence Rates'!P247","v":54.87241409741781},{"$f":"'Population 2016'!Q247*'Prevalence Rates'!Q247","v":13.492229152383743},{"$f":"'Population 2016'!R247*'Prevalence Rates'!R247","v":41.319951779175213},{"$f":"'Population 2016'!S247*'Prevalence Rates'!S247","v":224.91064131696828},{"$f":"'Population 2016'!T247*'Prevalence Rates'!T247","v":132.93459705049517},{"$f":"'Population 2016'!U247*'Prevalence Rates'!U247","v":0},{"$f":"'Population 2016'!V247*'Prevalence Rates'!V247","v":16.323187947749975},{"$f":"'Population 2016'!W247*'Prevalence Rates'!W247","v":52.523320628922427},{"$f":"'Population 2016'!X247*'Prevalence Rates'!X247","v":52.523320628922427},{"$f":"'Population 2016'!Y247*'Prevalence Rates'!Y247","v":41.982516603622628},{"$f":"'Population 2016'!Z247*'Prevalence Rates'!Z247","v":23.370468353236124},{"$f":"'Population 2016'!AA247*'Prevalence Rates'!AA247","v":188.0479438113484},{"$f":"'Population 2016'!AB247*'Prevalence Rates'!AB247","v":108.78109754109391},{"$f":"'Population 2016'!AC247*'Prevalence Rates'!AC247","v":146.8484583638909},{"$f":"'Population 2016'!AD247*'Prevalence Rates'!AD247","v":20.780442221305318},{"$f":"'Population 2016'!AE247*'Prevalence Rates'!AE247","v":16.20272161603226},{"$f":"'Population 2016'!AF247*'Prevalence Rates'!AF247","v":8.4928763860986951},{"$f":"'Population 2016'!AG247*'Prevalence Rates'!AG247","v":16.20272161603226},{"$f":"'Population 2016'!AH247*'Prevalence Rates'!AH247","v":41.199485447457498},{"$f":"'Population 2016'!AI247*'Prevalence Rates'!AI247","v":164.55700912639458},{"$f":"'Population 2016'!AJ247*'Prevalence Rates'!AJ247","v":6.8063477420507272},{"$f":"'Population 2016'!AK247*'Prevalence Rates'!AK247","v":11.685234176618062},{"$f":"'Population 2016'!AL247*'Prevalence Rates'!AL247","v":11.444301513182639},{"$f":"'Population 2016'!AM247*'Prevalence Rates'!AM247","v":11.805700508335775},{"$f":"'Population 2016'!AN247*'Prevalence Rates'!AN247","v":0.96373065374169586},{"$f":"'Population 2016'!AO247*'Prevalence Rates'!AO247","v":0.96373065374169586},{"$f":"'Population 2016'!AP247*'Prevalence Rates'!AP247","v":28.851686446392019},{"$f":"'Population 2016'!AQ247*'Prevalence Rates'!AQ247","v":17.527851264927094},{"$f":"'Population 2016'!AR247*'Prevalence Rates'!AR247","v":712.13671994925437},{"$f":"'Population 2016'!AS247*'Prevalence Rates'!AS247","v":7.8303115616512793},{"$f":"'Population 2016'!AT247*'Prevalence Rates'!AT247","v":0},{"$f":"'Population 2016'!AU247*'Prevalence Rates'!AU247","v":0},{"$f":"'Population 2016'!AV247*'Prevalence Rates'!AV247","v":26.442359812037779},{"$f":"'Population 2016'!AW247*'Prevalence Rates'!AW247","v":29.393784939121723},{"$f":"'Population 2016'!AX247*'Prevalence Rates'!AX247","v":20.780442221305318},{"$f":"'Population 2016'!AY247*'Prevalence Rates'!AY247","v":120.94819704458283},{"$f":"'Population 2016'!AZ247*'Prevalence Rates'!AZ247","v":68.424876415660407},{"$f":"'Population 2016'!BA247*'Prevalence Rates'!BA247","v":1.2648964830359759},{"$f":"'Population 2016'!BB247*'Prevalence Rates'!BB247","v":11.323835181464926},{"$f":"'Population 2016'!BC247*'Prevalence Rates'!BC247","v":0},245]
[null,"Male 85-89",{"$f":"'Population 2016'!C248*'Prevalence Rates'!C248","v":27.34585729992062},{"$f":"'Population 2016'!D248*'Prevalence Rates'!D248","v":52.76425329235785},{"$f":"'Population 2016'!E248*'Prevalence Rates'!E248","v":25.41839599243723},{"$f":"'Population 2016'!F248*'Prevalence Rates'!F248","v":8.6735758836752623},{"$f":"'Population 2016'!G248*'Prevalence Rates'!G248","v":3.1321246246605114},{"$f":"'Population 2016'!H248*'Prevalence Rates'!H248","v":23.671634182530404},{"$f":"'Population 2016'!I248*'Prevalence Rates'!I248","v":4.8186532687084789},{"$f":"'Population 2016'!J248*'Prevalence Rates'!J248","v":10.661270357017511},{"$f":"'Population 2016'!K248*'Prevalence Rates'!K248","v":2.0479276392011037},{"$f":"'Population 2016'!L248*'Prevalence Rates'!L248","v":6.3244824151798795},{"$f":"'Population 2016'!M248*'Prevalence Rates'!M248","v":6.3244824151798795},{"$f":"'Population 2016'!N248*'Prevalence Rates'!N248","v":11.26360201560607},{"$f":"'Population 2016'!O248*'Prevalence Rates'!O248","v":4.5174874394141993},{"$f":"'Population 2016'!P248*'Prevalence Rates'!P248","v":26.924225138908628},{"$f":"'Population 2016'!Q248*'Prevalence Rates'!Q248","v":6.0835497517444548},{"$f":"'Population 2016'!R248*'Prevalence Rates'!R248","v":21.563473377470444},{"$f":"'Population 2016'!S248*'Prevalence Rates'!S248","v":119.02073573709944},{"$f":"'Population 2016'!T248*'Prevalence Rates'!T248","v":73.966327674675156},{"$f":"'Population 2016'!U248*'Prevalence Rates'!U248","v":0},{"$f":"'Population 2016'!V248*'Prevalence Rates'!V248","v":6.6256482444741591},{"$f":"'Population 2016'!W248*'Prevalence Rates'!W248","v":25.659328655872653},{"$f":"'Population 2016'!X248*'Prevalence Rates'!X248","v":25.659328655872653},{"$f":"'Population 2016'!Y248*'Prevalence Rates'!Y248","v":17.286918601491671},{"$f":"'Population 2016'!Z248*'Prevalence Rates'!Z248","v":11.444301513182639},{"$f":"'Population 2016'!AA248*'Prevalence Rates'!AA248","v":91.072546778590265},{"$f":"'Population 2016'!AB248*'Prevalence Rates'!AB248","v":59.932000029561713},{"$f":"'Population 2016'!AC248*'Prevalence Rates'!AC248","v":72.882130689215757},{"$f":"'Population 2016'!AD248*'Prevalence Rates'!AD248","v":11.625001010759206},{"$f":"'Population 2016'!AE248*'Prevalence Rates'!AE248","v":8.4928763860986951},{"$f":"'Population 2016'!AF248*'Prevalence Rates'!AF248","v":4.0356221125433516},{"$f":"'Population 2016'!AG248*'Prevalence Rates'!AG248","v":8.4928763860986951},{"$f":"'Population 2016'!AH248*'Prevalence Rates'!AH248","v":18.190416089374509},{"$f":"'Population 2016'!AI248*'Prevalence Rates'!AI248","v":88.542753812518313},{"$f":"'Population 2016'!AJ248*'Prevalence Rates'!AJ248","v":3.3730572880959357},{"$f":"'Population 2016'!AK248*'Prevalence Rates'!AK248","v":7.1677467372038626},{"$f":"'Population 2016'!AL248*'Prevalence Rates'!AL248","v":5.4812180931558956},{"$f":"'Population 2016'!AM248*'Prevalence Rates'!AM248","v":5.2402854297204708},{"$f":"'Population 2016'!AN248*'Prevalence Rates'!AN248","v":0.60233165858855986},{"$f":"'Population 2016'!AO248*'Prevalence Rates'!AO248","v":0.60233165858855986},{"$f":"'Population 2016'!AP248*'Prevalence Rates'!AP248","v":15.961788952596837},{"$f":"'Population 2016'!AQ248*'Prevalence Rates'!AQ248","v":8.5531095519575508},{"$f":"'Population 2016'!AR248*'Prevalence Rates'!AR248","v":365.43461726567932},{"$f":"'Population 2016'!AS248*'Prevalence Rates'!AS248","v":4.8186532687084789},{"$f":"'Population 2016'!AT248*'Prevalence Rates'!AT248","v":0},{"$f":"'Population 2016'!AU248*'Prevalence Rates'!AU248","v":0},{"$f":"'Population 2016'!AV248*'Prevalence Rates'!AV248","v":13.67292864996031},{"$f":"'Population 2016'!AW248*'Prevalence Rates'!AW248","v":12.950130659654038},{"$f":"'Population 2016'!AX248*'Prevalence Rates'!AX248","v":8.6133427178164066},{"$f":"'Population 2016'!AY248*'Prevalence Rates'!AY248","v":61.55829550775082},{"$f":"'Population 2016'!AZ248*'Prevalence Rates'!AZ248","v":35.898966851878171},{"$f":"'Population 2016'!BA248*'Prevalence Rates'!BA248","v":0.36139899515313595},{"$f":"'Population 2016'!BB248*'Prevalence Rates'!BB248","v":5.1198190980027594},{"$f":"'Population 2016'!BC248*'Prevalence Rates'!BC248","v":0},246]
[null,"Male 90+",{"$f":"'Population 2016'!C249*'Prevalence Rates'!C249","v":13.37176282066603},{"$f":"'Population 2016'!D249*'Prevalence Rates'!D249","v":24.876297499707526},{"$f":"'Population 2016'!E249*'Prevalence Rates'!E249","v":11.504534679041495},{"$f":"'Population 2016'!F249*'Prevalence Rates'!F249","v":3.1321246246605114},{"$f":"'Population 2016'!G249*'Prevalence Rates'!G249","v":0.84326432202398394},{"$f":"'Population 2016'!H249*'Prevalence Rates'!H249","v":11.504534679041495},{"$f":"'Population 2016'!I249*'Prevalence Rates'!I249","v":1.3853628147536878},{"$f":"'Population 2016'!J249*'Prevalence Rates'!J249","v":4.3367879418376312},{"$f":"'Population 2016'!K249*'Prevalence Rates'!K249","v":0.5420984927297039},{"$f":"'Population 2016'!L249*'Prevalence Rates'!L249","v":2.6502592977896637},{"$f":"'Population 2016'!M249*'Prevalence Rates'!M249","v":2.6502592977896637},{"$f":"'Population 2016'!N249*'Prevalence Rates'!N249","v":3.6742231173902153},{"$f":"'Population 2016'!O249*'Prevalence Rates'!O249","v":1.8069949757656798},{"$f":"'Population 2016'!P249*'Prevalence Rates'!P249","v":11.444301513182639},{"$f":"'Population 2016'!Q249*'Prevalence Rates'!Q249","v":3.7946894491079273},{"$f":"'Population 2016'!R249*'Prevalence Rates'!R249","v":8.9747417129695428},{"$f":"'Population 2016'!S249*'Prevalence Rates'!S249","v":56.137310580453786},{"$f":"'Population 2016'!T249*'Prevalence Rates'!T249","v":35.778500520160456},{"$f":"'Population 2016'!U249*'Prevalence Rates'!U249","v":0},{"$f":"'Population 2016'!V249*'Prevalence Rates'!V249","v":3.0116582929427995},{"$f":"'Population 2016'!W249*'Prevalence Rates'!W249","v":10.962436186311791},{"$f":"'Population 2016'!X249*'Prevalence Rates'!X249","v":10.962436186311791},{"$f":"'Population 2016'!Y249*'Prevalence Rates'!Y249","v":7.3484462347804307},{"$f":"'Population 2016'!Z249*'Prevalence Rates'!Z249","v":6.023316585885599},{"$f":"'Population 2016'!AA249*'Prevalence Rates'!AA249","v":38.1878271545147},{"$f":"'Population 2016'!AB249*'Prevalence Rates'!AB249","v":27.707256295073755},{"$f":"'Population 2016'!AC249*'Prevalence Rates'!AC249","v":31.381479412463971},{"$f":"'Population 2016'!AD249*'Prevalence Rates'!AD249","v":4.2163216101199197},{"$f":"'Population 2016'!AE249*'Prevalence Rates'!AE249","v":3.3730572880959357},{"$f":"'Population 2016'!AF249*'Prevalence Rates'!AF249","v":2.5297929660719518},{"$f":"'Population 2016'!AG249*'Prevalence Rates'!AG249","v":3.3730572880959357},{"$f":"'Population 2016'!AH249*'Prevalence Rates'!AH249","v":6.8063477420507272},{"$f":"'Population 2016'!AI249*'Prevalence Rates'!AI249","v":43.789511579388304},{"$f":"'Population 2016'!AJ249*'Prevalence Rates'!AJ249","v":1.4455959806125438},{"$f":"'Population 2016'!AK249*'Prevalence Rates'!AK249","v":2.8309587953662314},{"$f":"'Population 2016'!AL249*'Prevalence Rates'!AL249","v":2.5297929660719518},{"$f":"'Population 2016'!AM249*'Prevalence Rates'!AM249","v":2.4093266343542394},{"$f":"'Population 2016'!AN249*'Prevalence Rates'!AN249","v":0.24093266343542397},{"$f":"'Population 2016'!AO249*'Prevalence Rates'!AO249","v":0.24093266343542397},{"$f":"'Population 2016'!AP249*'Prevalence Rates'!AP249","v":6.5051819127564467},{"$f":"'Population 2016'!AQ249*'Prevalence Rates'!AQ249","v":2.2888603026365275},{"$f":"'Population 2016'!AR249*'Prevalence Rates'!AR249","v":161.30441817001633},{"$f":"'Population 2016'!AS249*'Prevalence Rates'!AS249","v":1.3853628147536878},{"$f":"'Population 2016'!AT249*'Prevalence Rates'!AT249","v":0},{"$f":"'Population 2016'!AU249*'Prevalence Rates'!AU249","v":0},{"$f":"'Population 2016'!AV249*'Prevalence Rates'!AV249","v":7.1677467372038626},{"$f":"'Population 2016'!AW249*'Prevalence Rates'!AW249","v":4.3970211076964878},{"$f":"'Population 2016'!AX249*'Prevalence Rates'!AX249","v":3.7946894491079273},{"$f":"'Population 2016'!AY249*'Prevalence Rates'!AY249","v":24.273965841118965},{"$f":"'Population 2016'!AZ249*'Prevalence Rates'!AZ249","v":13.311529654807174},{"$f":"'Population 2016'!BA249*'Prevalence Rates'!BA249","v":0.12046633171771198},{"$f":"'Population 2016'!BB249*'Prevalence Rates'!BB249","v":2.7707256295073757},{"$f":"'Population 2016'!BC249*'Prevalence Rates'!BC249","v":0},247]
["Estimated number of people with mild/moderate/subthreshold depression",null,null,null,null,null,null,null,null,null,null,null,null,null,null,null,null,null,null,null,null,null,null,null,null,null,null,null,null,null,null,null,null,null,null,null,null,null,null,null,null,null,null,null,null,null,null,null,null,null,null,null,null,null,null,248]
[null,"Total at risk",{"$f":"C5","v":20167.641958358927},40258.425795576142,20090.783837217219,10238.216090036549,8003.498314961942,37698.872699421743,10009.878289102064,13259.265087959342,5040.857711658593,14206.187098062041,14206.187098062041,15485.923415941703,12580.151279293332,8151.1761494550337,8965.5391480649268,6902.3834207356958,123626.98580630691,44983.155817770865,2632.8303131864436,14819.001250027464,34733.838086202071,34733.838086202071,28078.26633798681,69403.95650738744,185953.45441425816,48178.354434253677,120001.73108945668,28955.152333003942,20951.654018042005,8356.8106414528029,20951.654018042005,65951.723324801438,{"$f":"AI5","v":78883.269431002787},8204.613768359075,7919.9286386775248,14323.027946552891,35146.909223781608,1838.7113562141033,1838.7113562141033,12539.606554021648,17424.621329905269,511311.09606680617,10009.878289102064,1878.535214112524,1878.535214112524,10795.69347357552,30804.814101019834,8218.4073763007491,72997.58414620196,38263.746059999903,9762.783040520435,16729.960696807913,2632.8303131864436,249]
[null,"Q1 only",{"$f":"C7","v":2608.9404930489427},3332.539224132267,723.59873108332442,1102.4491497486583,859.20708430481602,14910.682403887353,831.35643238066552,3246.2196286052013,1616.6367915023163,1623.3713601451341,1623.3713601451341,7086.0374919400356,5069.2401794472116,671.7122054622198,474.30991469874141,807.64310407752896,25074.378693717434,9316.3590552070473,0,3079.0011385234375,9548.1108482410655,9548.1108482410655,6325.2207671286396,39124.920077024093,78786.052862965968,3435.6817674936756,56326.923324399148,3011.039364263358,2151.8322799585421,4439.4133904512855,2151.8322799585421,22459.129538566809,{"$f":"AI7","v":14694.911413095706},1148.2578535909306,103.14254336140857,7242.3723766975672,13979.589201972129,0,0,1094.4520615837132,6690.6389298520407,142449.36592287396,831.35643238066552,0,0,2599.0698477425731,8479.5403365946877,1629.5828371028845,18831.049551513475,9282.938703272408,4592.5956175319716,3755.984589598982,0,250]
[null,"Q1 & Q2",{"$f":"SUM(C7:C8)","v":7557.9826093807051},10351.530147561447,2793.5475381807423,3175.5126329740765,2476.2410874385218,24528.642650540845,2816.8417377045398,6103.9850976953403,3013.6684074163686,6106.982391303538,6106.982391303538,10190.170075875885,8473.6937238730497,2549.5885232150754,3402.4545749054878,1661.075871239244,53589.566619269419,16962.968593371123,700.54438235345185,7829.8226559184677,17386.632265105989,17386.632265105989,13933.807753613808,50391.431712956561,118809.03690526925,11977.095934540697,77637.467973006933,9301.7492403977376,6825.5081529592162,5517.525863109493,6825.5081529592162,41171.568932262307,{"$f":"SUM(AI7:AI8)","v":33386.092616458889},4388.444204116302,1625.5657869792526,10124.343551614433,23838.037378093773,333.21057724024217,333.21057724024217,2862.4217554022503,10129.683804479764,255586.85550085048,2816.8417377045398,78.114582069268238,78.114582069268238,5930.6053750533629,17333.531554168538,3090.3166902789708,33614.736729358207,16228.104464252212,7388.1621980067894,8632.225244065974,700.54438235345185,251]
["Estimated no. of people with mild/moderate/subthreshold depression who seek help (estimated at 26%)",null,null,null,null,null,null,null,null,null,null,null,null,null,null,null,null,null,null,null,null,null,null,null,null,null,null,null,null,null,null,null,null,null,null,null,null,null,null,null,null,null,null,null,null,null,null,null,null,null,null,null,null,null,null,252]
[null,"Eligible at risk",{"$f":"0.26*C251","v":5243.5869091733211},10467.190706849797,5223.6037976764774,2661.936183409503,2080.9095618901051,9801.7069018496531,2602.5683551665365,3447.4089228694293,1310.6230050312342,3693.6086454961305,3693.6086454961305,4026.3400881448429,3270.8393326162663,2119.3057988583087,2331.0401784968813,1794.6196893912809,32143.016309639799,11695.620512620426,684.53588142847536,3852.9403250071409,9030.797902412538,9030.797902412538,7300.3492478765711,18045.028691920736,48347.898147707121,12526.372152905957,31200.450083258736,7528.3396065810248,5447.4300446909219,2172.770766777729,5447.4300446909219,17147.448064448374,{"$f":"0.26*AI251","v":20509.650052060726},2133.1995797733598,2059.1814460561563,3723.9872661037516,9138.1963981832178,478.06495261566687,478.06495261566687,3260.2977040456285,4530.4015457753703,132940.8849773696,2602.5683551665365,488.41915566925627,488.41915566925627,2806.8803031296352,8009.2516662651569,2136.785917838195,18979.371878012509,9948.5739755999748,2538.3235905353131,4349.7897811700577,684.53588142847536,253]
[null,"Q1",{"$f":"0.26*C252","v":678.3245281927251},866.46019827438943,188.13567008166436,286.63677893465115,223.39384191925217,3876.7774250107118,216.15267241897305,844.01710343735238,420.32556579060224,422.07655363773489,422.07655363773489,1842.3697479044092,1318.002446656275,174.64517342017714,123.32057782167277,209.98720706015754,6519.3384603665327,2422.2533543538325,0,800.54029601609375,2482.5088205426773,2482.5088205426773,1644.5573994534464,10172.479220026265,20484.373744371151,893.27725954835569,14645.00006434378,782.87023470847316,559.47639278922099,1154.2474815173343,559.47639278922099,5839.3736800273709,{"$f":"0.26*AI252","v":3820.6769674048837},298.54704193364199,26.817061273966228,1883.0168179413674,3634.6931925127537,0,0,284.55753601176542,1739.5661217615307,37036.83513994723,216.15267241897305,0,0,675.75816041306905,2204.680487514619,423.69153764674996,4896.0728833935036,2413.5640628508263,1194.0748605583126,976.55599329573533,0,254]
[null,"Q1 & Q2",{"$f":"0.26*C253","v":1965.0754784389833},2691.3978383659764,726.32235992699304,825.63328457325997,643.82268273401576,6377.4470891406199,732.3788518031804,1587.0361254007885,783.55378592825582,1587.8154217389199,1587.8154217389199,2649.4442197277303,2203.1603682069931,662.89301603591957,884.63818947542688,431.87972652220344,13933.28732101005,4410.3718342764923,182.1415394118975,2035.7538905388017,4520.5243889275571,4520.5243889275571,3622.7900159395904,13101.772245368706,30890.349595370008,3114.0449429805813,20185.741672981803,2418.4548025034119,1774.6321197693962,1434.5567244084682,1774.6321197693962,10704.607922388201,{"$f":"0.26*AI253","v":8680.3840802793111},1140.9954930702386,422.64710461460567,2632.3293234197527,6197.8897183043809,86.634750082462972,86.634750082462972,744.22965640458506,2633.7177891647389,66452.582430221126,732.3788518031804,20.309791338009742,20.309791338009742,1541.9573975138744,4506.7182040838197,803.48233947253243,8739.8315496331343,4219.3071607055754,1920.9221714817652,2244.3785634571532,182.1415394118975,255]

{"sheet":"Pop2016fraction","index":14,"n_rows":249,"n_cols":56,"rows_kept":249,"cut":false,"hidden":true,"merged":[]}
["Subgroup's fraction of area's 2016 population (16+ only)"]
[]
["SIMD","group","Aberdeen City Local Authority","Aberdeen City Region Deal","Aberdeenshire Local Authority","Angus Local Authority","Argyll & Bute Local Authority","Ayrshire & Arran Health Board","Borders Health Board","Clackmannanshire & Stirling IJB","Clackmannanshire Local Authority","Dumfries & Galloway Health Board","Dumfries & Galloway Local Authority","Dundee City Local Authority","East Ayrshire Local Authority","East Dunbartonshire Local Authority","East Lothian Local Authority","East Renfrewshire Local Authority","Edinburgh & SE Scotland City Region Deal","Edinburgh, City of Local Authority","Eilean Siar Local Authority","Falkirk Local Authority","Fife Health Board","Fife Local Authority","Forth Valley Health Board","Glasgow City Local Authority","Glasgow City Region Deal","Grampian Health Board","Greater Glasgow & Clyde Health Board","Highland Health Board","Highland Local Authority","Inverclyde Local Authority","Inverness & Highland City Region Deal","Lanarkshire Health Board","Lothian Health Board","Midlothian Local Authority","Moray Local Authority","North Ayrshire Local Authority","North Lanarkshire Local Authority","Orkney Health Board","Orkney Islands Local Authority","Perth & Kinross Local Authority","Renfrewshire Local Authority","Scotland","Scottish Borders Local Authority","Shetland Health Board","Shetland Islands Local Authority","South Ayrshire Local Authority","South Lanarkshire Local Authority","Stirling Local Authority","Tay Cities Region Deal ","Tayside Health Board","West Dunbartonshire Local Authority","West Lothian Local Authority","Western Isles Health Board",1]
[null,null,"popS12000033","Aber_deal","popS12000034","popS12000041","popS12000035","popS08000015","popS08000016","ClacksStirIJB","popS12000005","popS08000017","popS12000006","popS12000042","popS12000008","popS12000045","popS12000010","popS12000011","EdinSE_deal","popS12000036","popS12000013","popS12000014","popS08000018","popS12000015","popS08000019","popS12000046","GClyde_deal","popS08000020","popS08000021","popS08000022","popS12000017","popS12000018","Inver_deal","popS08000023","popS08000024","popS12000019","popS12000020","popS12000021","popS12000044","popS08000025","popS12000023","popS12000024","popS12000038","popS00000001","popS12000026","popS08000026","popS12000027","popS12000028","popS12000029","popS12000030","Tay_deal","popS08000027","popS12000039","popS12000040","popS08000028",2]
["All quintiles","16+ Males and Females",{"$f":"'Population 2016'!C5/'Population 2016'!C$5","v":1},{"$f":"'Population 2016'!D5/'Population 2016'!D$5","v":1},{"$f":"'Population 2016'!E5/'Population 2016'!E$5","v":1},{"$f":"'Population 2016'!F5/'Population 2016'!F$5","v":1},{"$f":"'Population 2016'!G5/'Population 2016'!G$5","v":1},{"$f":"'Population 2016'!H5/'Population 2016'!H$5","v":1},{"$f":"'Population 2016'!I5/'Population 2016'!I$5","v":1},{"$f":"'Population 2016'!J5/'Population 2016'!J$5","v":1},{"$f":"'Population 2016'!K5/'Population 2016'!K$5","v":1},{"$f":"'Population 2016'!L5/'Population 2016'!L$5","v":1},{"$f":"'Population 2016'!M5/'Population 2016'!M$5","v":1},{"$f":"'Population 2016'!N5/'Population 2016'!N$5","v":1},{"$f":"'Population 2016'!O5/'Population 2016'!O$5","v":1},{"$f":"'Population 2016'!P5/'Population 2016'!P$5","v":1},{"$f":"'Population 2016'!Q5/'Population 2016'!Q$5","v":1},{"$f":"'Population 2016'!R5/'Population 2016'!R$5","v":1},{"$f":"'Population 2016'!S5/'Population 2016'!S$5","v":1},{"$f":"'Population 2016'!T5/'Population 2016'!T$5","v":1},{"$f":"'Population 2016'!U5/'Population 2016'!U$5","v":1},{"$f":"'Population 2016'!V5/'Population 2016'!V$5","v":1},{"$f":"'Population 2016'!W5/'Population 2016'!W$5","v":1},{"$f":"'Population 2016'!X5/'Population 2016'!X$5","v":1},{"$f":"'Population 2016'!Y5/'Population 2016'!Y$5","v":1},{"$f":"'Population 2016'!Z5/'Population 2016'!Z$5","v":1},{"$f":"'Population 2016'!AA5/'Population 2016'!AA$5","v":1},{"$f":"'Population 2016'!AB5/'Population 2016'!AB$5","v":1},{"$f":"'Population 2016'!AC5/'Population 2016'!AC$5","v":1},{"$f":"'Population 2016'!AD5/'Population 2016'!AD$5","v":1},{"$f":"'Population 2016'!AE5/'Population 2016'!AE$5","v":1},{"$f":"'Population 2016'!AF5/'Population 2016'!AF$5","v":1},{"$f":"'Population 2016'!AG5/'Population 2016'!AG$5","v":1},{"$f":"'Population 2016'!AH5/'Population 2016'!AH$5","v":1},{"$f":"'Population 2016'!AI5/'Population 2016'!AI$5","v":1},{"$f":"'Population 2016'!AJ5/'Population 2016'!AJ$5","v":1},{"$f":"'Population 2016'!AK5/'Population 2016'!AK$5","v":1},{"$f":"'Population 2016'!AL5/'Population 2016'!AL$5","v":1},{"$f":"'Population 2016'!AM5/'Population 2016'!AM$5","v":1},{"$f":"'Population 2016'!AN5/'Population 2016'!AN$5","v":1},{"$f":"'Population 2016'!AO5/'Population 2016'!AO$5","v":1},{"$f":"'Population 2016'!AP5/'Population 2016'!AP$5","v":1},{"$f":"'Population 2016'!AQ5/'Population 2016'!AQ$5","v":1},{"$f":"'Population 2016'!AR5/'Population 2016'!AR$5","v":1},{"$f":"'Population 2016'!AS5/'Population 2016'!AS$5","v":1},{"$f":"'Population 2016'!AT5/'Population 2016'!AT$5","v":1},{"$f":"'Population 2016'!AU5/'Population 2016'!AU$5","v":1},{"$f":"'Population 2016'!AV5/'Population 2016'!AV$5","v":1},{"$f":"'Population 2016'!AW5/'Population 2016'!AW$5","v":1},{"$f":"'Population 2016'!AX5/'Population 2016'!AX$5","v":1},{"$f":"'Population 2016'!AY5/'Population 2016'!AY$5","v":1},{"$f":"'Population 2016'!AZ5/'Population 2016'!AZ$5","v":1},{"$f":"'Population 2016'!BA5/'Population 2016'!BA$5","v":1},{"$f":"'Population 2016'!BB5/'Population 2016'!BB$5","v":1},{"$f":"'Population 2016'!BC5/'Population 2016'!BC$5","v":1},3]
["Q1 and Q2","16+ Males and Females",{"$f":"'Population 2016'!C6/'Population 2016'!C$5","v":0.28505568532043973},{"$f":"'Population 2016'!D6/'Population 2016'!D$5","v":0.18697123519458544},{"$f":"'Population 2016'!E6/'Population 2016'!E$5","v":9.7009642835377996E-2},{"$f":"'Population 2016'!F6/'Population 2016'!F$5","v":0.23802214782384754},{"$f":"'Population 2016'!G6/'Population 2016'!G$5","v":0.24178530828777134},{"$f":"'Population 2016'!H6/'Population 2016'!H$5","v":0.54380651918044964},{"$f":"'Population 2016'!I6/'Population 2016'!I$5","v":0.21558077212963739},{"$f":"'Population 2016'!J6/'Population 2016'!J$5","v":0.35335826774918522},{"$f":"'Population 2016'!K6/'Population 2016'!K$5","v":0.49690497566507585},{"$f":"'Population 2016'!L6/'Population 2016'!L$5","v":0.35540800279573648},{"$f":"'Population 2016'!M6/'Population 2016'!M$5","v":0.35540800279573648},{"$f":"'Population 2016'!N6/'Population 2016'!N$5","v":0.54660386912177206},{"$f":"'Population 2016'!O6/'Population 2016'!O$5","v":0.57661406167959506},{"$f":"'Population 2016'!P6/'Population 2016'!P$5","v":0.21319734024568918},{"$f":"'Population 2016'!Q6/'Population 2016'!Q$5","v":0.30533131220549697},{"$f":"'Population 2016'!R6/'Population 2016'!R$5","v":0.15587906531111939},{"$f":"'Population 2016'!S6/'Population 2016'!S$5","v":0.33554762732778909},{"$f":"'Population 2016'!T6/'Population 2016'!T$5","v":0.27603849178466566},{"$f":"'Population 2016'!U6/'Population 2016'!U$5","v":0.24042845129022264},{"$f":"'Population 2016'!V6/'Population 2016'!V$5","v":0.43180864136283498},{"$f":"'Population 2016'!W6/'Population 2016'!W$5","v":0.39425345962517733},{"$f":"'Population 2016'!X6/'Population 2016'!X$5","v":0.39425345962517733},{"$f":"'Population 2016'!Y6/'Population 2016'!Y$5","v":0.39421074386734711},{"$f":"'Population 2016'!Z6/'Population 2016'!Z$5","v":0.63716963198556664},{"$f":"'Population 2016'!AA6/'Population 2016'!AA$5","v":0.53156248816568641},{"$f":"'Population 2016'!AB6/'Population 2016'!AB$5","v":0.1825286838684585},{"$f":"'Population 2016'!AC6/'Population 2016'!AC$5","v":0.53169597514381872},{"$f":"'Population 2016'!AD6/'Population 2016'!AD$5","v":0.2515650005582642},{"$f":"'Population 2016'!AE6/'Population 2016'!AE$5","v":0.25527469481206172},{"$f":"'Population 2016'!AF6/'Population 2016'!AF$5","v":0.54526534859521336},{"$f":"'Population 2016'!AG6/'Population 2016'!AG$5","v":0.25527469481206172},{"$f":"'Population 2016'!AH6/'Population 2016'!AH$5","v":0.53132273854527556},{"$f":"'Population 2016'!AI6/'Population 2016'!AI$5","v":0.32665942995887653},{"$f":"'Population 2016'!AJ6/'Population 2016'!AJ$5","v":0.45442377938265066},{"$f":"'Population 2016'!AK6/'Population 2016'!AK$5","v":0.15968721320543605},{"$f":"'Population 2016'!AL6/'Population 2016'!AL$5","v":0.59903158865575279},{"$f":"'Population 2016'!AM6/'Population 2016'!AM$5","v":0.59371728886490327},{"$f":"'Population 2016'!AN6/'Population 2016'!AN$5","v":0.14186756845205628},{"$f":"'Population 2016'!AO6/'Population 2016'!AO$5","v":0.14186756845205628},{"$f":"'Population 2016'!AP6/'Population 2016'!AP$5","v":0.16515543014758335},{"$f":"'Population 2016'!AQ6/'Population 2016'!AQ$5","v":0.465384720776018},{"$f":"'Population 2016'!AR6/'Population 2016'!AR$5","v":0.39415271355287168},{"$f":"'Population 2016'!AS6/'Population 2016'!AS$5","v":0.21558077212963739},{"$f":"'Population 2016'!AT6/'Population 2016'!AT$5","v":3.3162861812621923E-2},{"$f":"'Population 2016'!AU6/'Population 2016'!AU$5","v":3.3162861812621923E-2},{"$f":"'Population 2016'!AV6/'Population 2016'!AV$5","v":0.44308943089430897},{"$f":"'Population 2016'!AW6/'Population 2016'!AW$5","v":0.46562862285679418},{"$f":"'Population 2016'!AX6/'Population 2016'!AX$5","v":0.27571974392067161},{"$f":"'Population 2016'!AY6/'Population 2016'!AY$5","v":0.35582907499770511},{"$f":"'Population 2016'!AZ6/'Population 2016'!AZ$5","v":0.32201391006207181},{"$f":"'Population 2016'!BA6/'Population 2016'!BA$5","v":0.67740498812351546},{"$f":"'Population 2016'!BB6/'Population 2016'!BB$5","v":0.4261477803939982},{"$f":"'Population 2016'!BC6/'Population 2016'!BC$5","v":0.24042845129022264},4]
["SIMD Q1 (most deprived)","16+ Males and Females",{"$f":"'Population 2016'!C7/'Population 2016'!C$5","v":8.0274772173184156E-2},{"$f":"'Population 2016'!D7/'Population 2016'!D$5","v":4.9091380338996314E-2},{"$f":"'Population 2016'!E7/'Population 2016'!E$5","v":2.0490439201383843E-2},{"$f":"'Population 2016'!F7/'Population 2016'!F$5","v":6.9245428792171007E-2},{"$f":"'Population 2016'!G7/'Population 2016'!G$5","v":7.3052563200346449E-2},{"$f":"'Population 2016'!H7/'Population 2016'!H$5","v":0.30013974767600587},{"$f":"'Population 2016'!I7/'Population 2016'!I$5","v":5.3816682019931332E-2},{"$f":"'Population 2016'!J7/'Population 2016'!J$5","v":0.16491545242695901},{"$f":"'Population 2016'!K7/'Population 2016'!K$5","v":0.23571799839342247},{"$f":"'Population 2016'!L7/'Population 2016'!L$5","v":7.9297253506584273E-2},{"$f":"'Population 2016'!M7/'Population 2016'!M$5","v":7.9297253506584273E-2},{"$f":"'Population 2016'!N7/'Population 2016'!N$5","v":0.34639650862796473},{"$f":"'Population 2016'!O7/'Population 2016'!O$5","v":0.31131056755926728},{"$f":"'Population 2016'!P7/'Population 2016'!P$5","v":4.6647131747999553E-2},{"$f":"'Population 2016'!Q7/'Population 2016'!Q$5","v":3.4300419501533473E-2},{"$f":"'Population 2016'!R7/'Population 2016'!R$5","v":6.5577260871879497E-2},{"$f":"'Population 2016'!S7/'Population 2016'!S$5","v":0.13517902946487992},{"$f":"'Population 2016'!T7/'Population 2016'!T$5","v":0.13021223528754833},{"$f":"'Population 2016'!U7/'Population 2016'!U$5","v":0},{"$f":"'Population 2016'!V7/'Population 2016'!V$5","v":0.14533548057181672},{"$f":"'Population 2016'!W7/'Population 2016'!W$5","v":0.19312781492884645},{"$f":"'Population 2016'!X7/'Population 2016'!X$5","v":0.19312781492884645},{"$f":"'Population 2016'!Y7/'Population 2016'!Y$5","v":0.15471932083750656},{"$f":"'Population 2016'!Z7/'Population 2016'!Z$5","v":0.45964152904760708},{"$f":"'Population 2016'!AA7/'Population 2016'!AA$5","v":0.32015729920533209},{"$f":"'Population 2016'!AB7/'Population 2016'!AB$5","v":4.2397879287227616E-2},{"$f":"'Population 2016'!AC7/'Population 2016'!AC$5","v":0.35500319597204094},{"$f":"'Population 2016'!AD7/'Population 2016'!AD$5","v":6.9094495515277826E-2},{"$f":"'Population 2016'!AE7/'Population 2016'!AE$5","v":6.7593096438361797E-2},{"$f":"'Population 2016'!AF7/'Population 2016'!AF$5","v":0.41722843052979236},{"$f":"'Population 2016'!AG7/'Population 2016'!AG$5","v":6.7593096438361797E-2},{"$f":"'Population 2016'!AH7/'Population 2016'!AH$5","v":0.25757223930226725},{"$f":"'Population 2016'!AI7/'Population 2016'!AI$5","v":0.12156575378423309},{"$f":"'Population 2016'!AJ7/'Population 2016'!AJ$5","v":9.858349831302457E-2},{"$f":"'Population 2016'!AK7/'Population 2016'!AK$5","v":7.9831034786216268E-3},{"$f":"'Population 2016'!AL7/'Population 2016'!AL$5","v":0.39894645359252229},{"$f":"'Population 2016'!AM7/'Population 2016'!AM$5","v":0.31183196844518657},{"$f":"'Population 2016'!AN7/'Population 2016'!AN$5","v":0},{"$f":"'Population 2016'!AO7/'Population 2016'!AO$5","v":0},{"$f":"'Population 2016'!AP7/'Population 2016'!AP$5","v":5.2470554666074851E-2},{"$f":"'Population 2016'!AQ7/'Population 2016'!AQ$5","v":0.28025154819970405},{"$f":"'Population 2016'!AR7/'Population 2016'!AR$5","v":0.19431413815281337},{"$f":"'Population 2016'!AS7/'Population 2016'!AS$5","v":5.3816682019931332E-2},{"$f":"'Population 2016'!AT7/'Population 2016'!AT$5","v":0},{"$f":"'Population 2016'!AU7/'Population 2016'!AU$5","v":0},{"$f":"'Population 2016'!AV7/'Population 2016'!AV$5","v":0.1705944462042023},{"$f":"'Population 2016'!AW7/'Population 2016'!AW$5","v":0.20044313258893159},{"$f":"'Population 2016'!AX7/'Population 2016'!AX$5","v":0.12662126071789104},{"$f":"'Population 2016'!AY7/'Population 2016'!AY$5","v":0.1767540772926165},{"$f":"'Population 2016'!AZ7/'Population 2016'!AZ$5","v":0.1623444609994765},{"$f":"'Population 2016'!BA7/'Population 2016'!BA$5","v":0.37985856186568778},{"$f":"'Population 2016'!BB7/'Population 2016'!BB$5","v":0.15856597363678421},{"$f":"'Population 2016'!BC7/'Population 2016'!BC$5","v":0},5]
["SIMD Q2",null,{"$f":"'Population 2016'!C8/'Population 2016'!C$5","v":0.20478091314725561},{"$f":"'Population 2016'!D8/'Population 2016'!D$5","v":0.13787985485558912},{"$f":"'Population 2016'!E8/'Population 2016'!E$5","v":7.6519203633994157E-2},{"$f":"'Population 2016'!F8/'Population 2016'!F$5","v":0.16877671903167654},{"$f":"'Population 2016'!G8/'Population 2016'!G$5","v":0.16873274508742489},{"$f":"'Population 2016'!H8/'Population 2016'!H$5","v":0.24366677150444371},{"$f":"'Population 2016'!I8/'Population 2016'!I$5","v":0.16176409010970605},{"$f":"'Population 2016'!J8/'Population 2016'!J$5","v":0.18844281532222618},{"$f":"'Population 2016'!K8/'Population 2016'!K$5","v":0.26118697727165335},{"$f":"'Population 2016'!L8/'Population 2016'!L$5","v":0.27611074928915225},{"$f":"'Population 2016'!M8/'Population 2016'!M$5","v":0.27611074928915225},{"$f":"'Population 2016'!N8/'Population 2016'!N$5","v":0.20020736049380733},{"$f":"'Population 2016'!O8/'Population 2016'!O$5","v":0.26530349412032772},{"$f":"'Population 2016'!P8/'Population 2016'!P$5","v":0.16655020849768962},{"$f":"'Population 2016'!Q8/'Population 2016'!Q$5","v":0.27103089270396352},{"$f":"'Population 2016'!R8/'Population 2016'!R$5","v":9.0301804439239894E-2},{"$f":"'Population 2016'!S8/'Population 2016'!S$5","v":0.20036859786290914},{"$f":"'Population 2016'!T8/'Population 2016'!T$5","v":0.14582625649711731},{"$f":"'Population 2016'!U8/'Population 2016'!U$5","v":0.24042845129022264},{"$f":"'Population 2016'!V8/'Population 2016'!V$5","v":0.28647316079101826},{"$f":"'Population 2016'!W8/'Population 2016'!W$5","v":0.20112564469633087},{"$f":"'Population 2016'!X8/'Population 2016'!X$5","v":0.20112564469633087},{"$f":"'Population 2016'!Y8/'Population 2016'!Y$5","v":0.23949142302984056},{"$f":"'Population 2016'!Z8/'Population 2016'!Z$5","v":0.17752810293795962},{"$f":"'Population 2016'!AA8/'Population 2016'!AA$5","v":0.21140518896035429},{"$f":"'Population 2016'!AB8/'Population 2016'!AB$5","v":0.14013080458123087},{"$f":"'Population 2016'!AC8/'Population 2016'!AC$5","v":0.17669277917177781},{"$f":"'Population 2016'!AD8/'Population 2016'!AD$5","v":0.18247050504298634},{"$f":"'Population 2016'!AE8/'Population 2016'!AE$5","v":0.18768159837369994},{"$f":"'Population 2016'!AF8/'Population 2016'!AF$5","v":0.12803691806542097},{"$f":"'Population 2016'!AG8/'Population 2016'!AG$5","v":0.18768159837369994},{"$f":"'Population 2016'!AH8/'Population 2016'!AH$5","v":0.27375049924300826},{"$f":"'Population 2016'!AI8/'Population 2016'!AI$5","v":0.20509367617464344},{"$f":"'Population 2016'!AJ8/'Population 2016'!AJ$5","v":0.35584028106962606},{"$f":"'Population 2016'!AK8/'Population 2016'!AK$5","v":0.15170410972681442},{"$f":"'Population 2016'!AL8/'Population 2016'!AL$5","v":0.20008513506323053},{"$f":"'Population 2016'!AM8/'Population 2016'!AM$5","v":0.2818853204197167},{"$f":"'Population 2016'!AN8/'Population 2016'!AN$5","v":0.14186756845205628},{"$f":"'Population 2016'!AO8/'Population 2016'!AO$5","v":0.14186756845205628},{"$f":"'Population 2016'!AP8/'Population 2016'!AP$5","v":0.11268487548150849},{"$f":"'Population 2016'!AQ8/'Population 2016'!AQ$5","v":0.18513317257631393},{"$f":"'Population 2016'!AR8/'Population 2016'!AR$5","v":0.19983857540005831},{"$f":"'Population 2016'!AS8/'Population 2016'!AS$5","v":0.16176409010970605},{"$f":"'Population 2016'!AT8/'Population 2016'!AT$5","v":3.3162861812621923E-2},{"$f":"'Population 2016'!AU8/'Population 2016'!AU$5","v":3.3162861812621923E-2},{"$f":"'Population 2016'!AV8/'Population 2016'!AV$5","v":0.27249498469010663},{"$f":"'Population 2016'!AW8/'Population 2016'!AW$5","v":0.26518549026786259},{"$f":"'Population 2016'!AX8/'Population 2016'!AX$5","v":0.14909848320278057},{"$f":"'Population 2016'!AY8/'Population 2016'!AY$5","v":0.17907499770508858},{"$f":"'Population 2016'!AZ8/'Population 2016'!AZ$5","v":0.15966944906259528},{"$f":"'Population 2016'!BA8/'Population 2016'!BA$5","v":0.29754642625782768},{"$f":"'Population 2016'!BB8/'Population 2016'!BB$5","v":0.26758180675721399},{"$f":"'Population 2016'!BC8/'Population 2016'!BC$5","v":0.24042845129022264},6]
["SIMD Q3",null,{"$f":"'Population 2016'!C9/'Population 2016'!C$5","v":0.15567356493383694},{"$f":"'Population 2016'!D9/'Population 2016'!D$5","v":0.17959909235840107},{"$f":"'Population 2016'!E9/'Population 2016'!E$5","v":0.20154322868567731},{"$f":"'Population 2016'!F9/'Population 2016'!F$5","v":0.32874581509142414},{"$f":"'Population 2016'!G9/'Population 2016'!G$5","v":0.41176311373355706},{"$f":"'Population 2016'!H9/'Population 2016'!H$5","v":0.17415284050931706},{"$f":"'Population 2016'!I9/'Population 2016'!I$5","v":0.33486517042123776},{"$f":"'Population 2016'!J9/'Population 2016'!J$5","v":0.17295970410422695},{"$f":"'Population 2016'!K9/'Population 2016'!K$5","v":0.18900911969002504},{"$f":"'Population 2016'!L9/'Population 2016'!L$5","v":0.37253983130271789},{"$f":"'Population 2016'!M9/'Population 2016'!M$5","v":0.37253983130271789},{"$f":"'Population 2016'!N9/'Population 2016'!N$5","v":0.12765529934657333},{"$f":"'Population 2016'!O9/'Population 2016'!O$5","v":0.17299214392565954},{"$f":"'Population 2016'!P9/'Population 2016'!P$5","v":6.1444832638341038E-2},{"$f":"'Population 2016'!Q9/'Population 2016'!Q$5","v":0.21600216213675516},{"$f":"'Population 2016'!R9/'Population 2016'!R$5","v":0.1108745409059456},{"$f":"'Population 2016'!S9/'Population 2016'!S$5","v":0.2041278370825691},{"$f":"'Population 2016'!T9/'Population 2016'!T$5","v":0.15277125028501232},{"$f":"'Population 2016'!U9/'Population 2016'!U$5","v":0.70207586420572743},{"$f":"'Population 2016'!V9/'Population 2016'!V$5","v":0.18445134749391318},{"$f":"'Population 2016'!W9/'Population 2016'!W$5","v":0.2169774936429183},{"$f":"'Population 2016'!X9/'Population 2016'!X$5","v":0.2169774936429183},{"$f":"'Population 2016'!Y9/'Population 2016'!Y$5","v":0.17894389596349819},{"$f":"'Population 2016'!Z9/'Population 2016'!Z$5","v":0.14271859507571871},{"$f":"'Population 2016'!AA9/'Population 2016'!AA$5","v":0.15730917106986181},{"$f":"'Population 2016'!AB9/'Population 2016'!AB$5","v":0.19575038637503453},{"$f":"'Population 2016'!AC9/'Population 2016'!AC$5","v":0.13991014043659666},{"$f":"'Population 2016'!AD9/'Population 2016'!AD$5","v":0.34543898172615284},{"$f":"'Population 2016'!AE9/'Population 2016'!AE$5","v":0.32028049569297429},{"$f":"'Population 2016'!AF9/'Population 2016'!AF$5","v":0.15791219894735253},{"$f":"'Population 2016'!AG9/'Population 2016'!AG$5","v":0.32028049569297429},{"$f":"'Population 2016'!AH9/'Population 2016'!AH$5","v":0.1885587434866203},{"$f":"'Population 2016'!AI9/'Population 2016'!AI$5","v":0.18167873392247791},{"$f":"'Population 2016'!AJ9/'Population 2016'!AJ$5","v":0.23635780609541868},{"$f":"'Population 2016'!AK9/'Population 2016'!AK$5","v":0.27879260274317036},{"$f":"'Population 2016'!AL9/'Population 2016'!AL$5","v":0.14443695571203066},{"$f":"'Population 2016'!AM9/'Population 2016'!AM$5","v":0.18133513950110652},{"$f":"'Population 2016'!AN9/'Population 2016'!AN$5","v":0.31329769826551762},{"$f":"'Population 2016'!AO9/'Population 2016'!AO$5","v":0.31329769826551762},{"$f":"'Population 2016'!AP9/'Population 2016'!AP$5","v":0.23947022177131716},{"$f":"'Population 2016'!AQ9/'Population 2016'!AQ$5","v":0.17783745273195595},{"$f":"'Population 2016'!AR9/'Population 2016'!AR$5","v":0.2022770982691745},{"$f":"'Population 2016'!AS9/'Population 2016'!AS$5","v":0.33486517042123776},{"$f":"'Population 2016'!AT9/'Population 2016'!AT$5","v":0.32904518374018032},{"$f":"'Population 2016'!AU9/'Population 2016'!AU$5","v":0.32904518374018032},{"$f":"'Population 2016'!AV9/'Population 2016'!AV$5","v":0.21076971808679126},{"$f":"'Population 2016'!AW9/'Population 2016'!AW$5","v":0.19616434803831839},{"$f":"'Population 2016'!AX9/'Population 2016'!AX$5","v":0.16427923380656043},{"$f":"'Population 2016'!AY9/'Population 2016'!AY$5","v":0.22091582264924575},{"$f":"'Population 2016'!AZ9/'Population 2016'!AZ$5","v":0.22438172707974988},{"$f":"'Population 2016'!BA9/'Population 2016'!BA$5","v":0.15290973871733968},{"$f":"'Population 2016'!BB9/'Population 2016'!BB$5","v":0.22022054507916561},{"$f":"'Population 2016'!BC9/'Population 2016'!BC$5","v":0.70207586420572743},7]
["SIMD Q4",null,{"$f":"'Population 2016'!C10/'Population 2016'!C$5","v":0.17209038450726541},{"$f":"'Population 2016'!D10/'Population 2016'!D$5","v":0.27172520368142561},{"$f":"'Population 2016'!E10/'Population 2016'!E$5","v":0.36310877137057646},{"$f":"'Population 2016'!F10/'Population 2016'!F$5","v":0.25391707442698946},{"$f":"'Population 2016'!G10/'Population 2016'!G$5","v":0.24428896226925784},{"$f":"'Population 2016'!H10/'Population 2016'!H$5","v":0.14626166860670595},{"$f":"'Population 2016'!I10/'Population 2016'!I$5","v":0.35694246713005612},{"$f":"'Population 2016'!J10/'Population 2016'!J$5","v":0.2411036381579493},{"$f":"'Population 2016'!K10/'Population 2016'!K$5","v":0.17731418040920474},{"$f":"'Population 2016'!L10/'Population 2016'!L$5","v":0.18171493018601179},{"$f":"'Population 2016'!M10/'Population 2016'!M$5","v":0.18171493018601179},{"$f":"'Population 2016'!N10/'Population 2016'!N$5","v":0.17335498026860419},{"$f":"'Population 2016'!O10/'Population 2016'!O$5","v":0.13525722947068089},{"$f":"'Population 2016'!P10/'Population 2016'!P$5","v":0.1839738532627071},{"$f":"'Population 2016'!Q10/'Population 2016'!Q$5","v":0.31186472544388433},{"$f":"'Population 2016'!R10/'Population 2016'!R$5","v":0.14973119710438068},{"$f":"'Population 2016'!S10/'Population 2016'!S$5","v":0.19364098073864328},{"$f":"'Population 2016'!T10/'Population 2016'!T$5","v":0.16057477094316971},{"$f":"'Population 2016'!U10/'Population 2016'!U$5","v":5.7495684504049925E-2},{"$f":"'Population 2016'!V10/'Population 2016'!V$5","v":0.19151128445058427},{"$f":"'Population 2016'!W10/'Population 2016'!W$5","v":0.17321985370541054},{"$f":"'Population 2016'!X10/'Population 2016'!X$5","v":0.17321985370541054},{"$f":"'Population 2016'!Y10/'Population 2016'!Y$5","v":0.2152787714026804},{"$f":"'Population 2016'!Z10/'Population 2016'!Z$5","v":0.11734029187952372},{"$f":"'Population 2016'!AA10/'Population 2016'!AA$5","v":0.1494574984536497},{"$f":"'Population 2016'!AB10/'Population 2016'!AB$5","v":0.28981505173843175},{"$f":"'Population 2016'!AC10/'Population 2016'!AC$5","v":0.13997943821224151},{"$f":"'Population 2016'!AD10/'Population 2016'!AD$5","v":0.30640142915627677},{"$f":"'Population 2016'!AE10/'Population 2016'!AE$5","v":0.32996231994168318},{"$f":"'Population 2016'!AF10/'Population 2016'!AF$5","v":0.17646171711230754},{"$f":"'Population 2016'!AG10/'Population 2016'!AG$5","v":0.32996231994168318},{"$f":"'Population 2016'!AH10/'Population 2016'!AH$5","v":0.16648059221831085},{"$f":"'Population 2016'!AI10/'Population 2016'!AI$5","v":0.18085571791057836},{"$f":"'Population 2016'!AJ10/'Population 2016'!AJ$5","v":0.15486713325711737},{"$f":"'Population 2016'!AK10/'Population 2016'!AK$5","v":0.38282438429528681},{"$f":"'Population 2016'!AL10/'Population 2016'!AL$5","v":0.16345045316684698},{"$f":"'Population 2016'!AM10/'Population 2016'!AM$5","v":0.13531770322103945},{"$f":"'Population 2016'!AN10/'Population 2016'!AN$5","v":0.47027380822515547},{"$f":"'Population 2016'!AO10/'Population 2016'!AO$5","v":0.47027380822515547},{"$f":"'Population 2016'!AP10/'Population 2016'!AP$5","v":0.41339188053833836},{"$f":"'Population 2016'!AQ10/'Population 2016'!AQ$5","v":0.17690579273305201},{"$f":"'Population 2016'!AR10/'Population 2016'!AR$5","v":0.20290399424521077},{"$f":"'Population 2016'!AS10/'Population 2016'!AS$5","v":0.35694246713005612},{"$f":"'Population 2016'!AT10/'Population 2016'!AT$5","v":0.63779195444719772},{"$f":"'Population 2016'!AU10/'Population 2016'!AU$5","v":0.63779195444719772},{"$f":"'Population 2016'!AV10/'Population 2016'!AV$5","v":0.1375250765494668},{"$f":"'Population 2016'!AW10/'Population 2016'!AW$5","v":0.19929144548172556},{"$f":"'Population 2016'!AX10/'Population 2016'!AX$5","v":0.27560473823427933},{"$f":"'Population 2016'!AY10/'Population 2016'!AY$5","v":0.23159022061748416},{"$f":"'Population 2016'!AZ10/'Population 2016'!AZ$5","v":0.28295873578360592},{"$f":"'Population 2016'!BA10/'Population 2016'!BA$5","v":0.12984506586050529},{"$f":"'Population 2016'!BB10/'Population 2016'!BB$5","v":0.17693322193298025},{"$f":"'Population 2016'!BC10/'Population 2016'!BC$5","v":5.7495684504049925E-2},8]
["SIMD Q5 (least deprived)",null,{"$f":"'Population 2016'!C11/'Population 2016'!C$5","v":0.38718036523845789},{"$f":"'Population 2016'!D11/'Population 2016'!D$5","v":0.36170446876558787},{"$f":"'Population 2016'!E11/'Population 2016'!E$5","v":0.33833835710836824},{"$f":"'Population 2016'!F11/'Population 2016'!F$5","v":0.17931496265773886},{"$f":"'Population 2016'!G11/'Population 2016'!G$5","v":0.10216261570941373},{"$f":"'Population 2016'!H11/'Population 2016'!H$5","v":0.1357789717035274},{"$f":"'Population 2016'!I11/'Population 2016'!I$5","v":9.2611590319068751E-2},{"$f":"'Population 2016'!J11/'Population 2016'!J$5","v":0.23257838998863853},{"$f":"'Population 2016'!K11/'Population 2016'!K$5","v":0.13677172423569436},{"$f":"'Population 2016'!L11/'Population 2016'!L$5","v":9.0337235715533815E-2},{"$f":"'Population 2016'!M11/'Population 2016'!M$5","v":9.0337235715533815E-2},{"$f":"'Population 2016'!N11/'Population 2016'!N$5","v":0.15238585126305046},{"$f":"'Population 2016'!O11/'Population 2016'!O$5","v":0.11513656492406456},{"$f":"'Population 2016'!P11/'Population 2016'!P$5","v":0.54138397385326276},{"$f":"'Population 2016'!Q11/'Population 2016'!Q$5","v":0.16680180021386354},{"$f":"'Population 2016'!R11/'Population 2016'!R$5","v":0.58351519667855434},{"$f":"'Population 2016'!S11/'Population 2016'!S$5","v":0.26668355485099854},{"$f":"'Population 2016'!T11/'Population 2016'!T$5","v":0.41061548698715233},{"$f":"'Population 2016'!U11/'Population 2016'!U$5","v":0},{"$f":"'Population 2016'!V11/'Population 2016'!V$5","v":0.19222872669266758},{"$f":"'Population 2016'!W11/'Population 2016'!W$5","v":0.21554919302649383},{"$f":"'Population 2016'!X11/'Population 2016'!X$5","v":0.21554919302649383},{"$f":"'Population 2016'!Y11/'Population 2016'!Y$5","v":0.2115665887664743},{"$f":"'Population 2016'!Z11/'Population 2016'!Z$5","v":0.10277148105919087},{"$f":"'Population 2016'!AA11/'Population 2016'!AA$5","v":0.16167084231080212},{"$f":"'Population 2016'!AB11/'Population 2016'!AB$5","v":0.3319058780180752},{"$f":"'Population 2016'!AC11/'Population 2016'!AC$5","v":0.18841444620734307},{"$f":"'Population 2016'!AD11/'Population 2016'!AD$5","v":9.6594588559306263E-2},{"$f":"'Population 2016'!AE11/'Population 2016'!AE$5","v":9.4482489553280841E-2},{"$f":"'Population 2016'!AF11/'Population 2016'!AF$5","v":0.1203607353451266},{"$f":"'Population 2016'!AG11/'Population 2016'!AG$5","v":9.4482489553280841E-2},{"$f":"'Population 2016'!AH11/'Population 2016'!AH$5","v":0.11363792574979334},{"$f":"'Population 2016'!AI11/'Population 2016'!AI$5","v":0.31080611820806719},{"$f":"'Population 2016'!AJ11/'Population 2016'!AJ$5","v":0.15435128126481332},{"$f":"'Population 2016'!AK11/'Population 2016'!AK$5","v":0.17869579975610675},{"$f":"'Population 2016'!AL11/'Population 2016'!AL$5","v":9.3081002465369544E-2},{"$f":"'Population 2016'!AM11/'Population 2016'!AM$5","v":8.96298684129508E-2},{"$f":"'Population 2016'!AN11/'Population 2016'!AN$5","v":7.4560925057270647E-2},{"$f":"'Population 2016'!AO11/'Population 2016'!AO$5","v":7.4560925057270647E-2},{"$f":"'Population 2016'!AP11/'Population 2016'!AP$5","v":0.18198246754276112},{"$f":"'Population 2016'!AQ11/'Population 2016'!AQ$5","v":0.17987203375897406},{"$f":"'Population 2016'!AR11/'Population 2016'!AR$5","v":0.20066619393274301},{"$f":"'Population 2016'!AS11/'Population 2016'!AS$5","v":9.2611590319068751E-2},{"$f":"'Population 2016'!AT11/'Population 2016'!AT$5","v":0},{"$f":"'Population 2016'!AU11/'Population 2016'!AU$5","v":0},{"$f":"'Population 2016'!AV11/'Population 2016'!AV$5","v":0.208615774469433},{"$f":"'Population 2016'!AW11/'Population 2016'!AW$5","v":0.13891558362316186},{"$f":"'Population 2016'!AX11/'Population 2016'!AX$5","v":0.28439628403848854},{"$f":"'Population 2016'!AY11/'Population 2016'!AY$5","v":0.19166488173556501},{"$f":"'Population 2016'!AZ11/'Population 2016'!AZ$5","v":0.17064562707457243},{"$f":"'Population 2016'!BA11/'Population 2016'!BA$5","v":3.9840207298639602E-2},{"$f":"'Population 2016'!BB11/'Population 2016'!BB$5","v":0.17669845259385594},{"$f":"'Population 2016'!BC11/'Population 2016'!BC$5","v":0},9]
["SIMD Q1 (most deprived)","16+ Females",{"$f":"'Population 2016'!C12/'Population 2016'!C$5","v":4.0582050875785189E-2},{"$f":"'Population 2016'!D12/'Population 2016'!D$5","v":2.4656944729712547E-2},{"$f":"'Population 2016'!E12/'Population 2016'!E$5","v":1.0050675279745357E-2},{"$f":"'Population 2016'!F12/'Population 2016'!F$5","v":3.5910378573268092E-2},{"$f":"'Population 2016'!G12/'Population 2016'!G$5","v":3.7893141341417205E-2},{"$f":"'Population 2016'!H12/'Population 2016'!H$5","v":0.1596884696818876},{"$f":"'Population 2016'!I12/'Population 2016'!I$5","v":2.7855707227200401E-2},{"$f":"'Population 2016'!J12/'Population 2016'!J$5","v":8.7582826766625474E-2},{"$f":"'Population 2016'!K12/'Population 2016'!K$5","v":0.12323394603789632},{"$f":"'Population 2016'!L12/'Population 2016'!L$5","v":4.1515098565596556E-2},{"$f":"'Population 2016'!M12/'Population 2016'!M$5","v":4.1515098565596556E-2},{"$f":"'Population 2016'!N12/'Population 2016'!N$5","v":0.18184229350350825},{"$f":"'Population 2016'!O12/'Population 2016'!O$5","v":0.16437324773877809},{"$f":"'Population 2016'!P12/'Population 2016'!P$5","v":2.48055899921109E-2},{"$f":"'Population 2016'!Q12/'Population 2016'!Q$5","v":1.8331159445834948E-2},{"$f":"'Population 2016'!R12/'Population 2016'!R$5","v":3.5756107946984618E-2},{"$f":"'Population 2016'!S12/'Population 2016'!S$5","v":7.060379083836596E-2},{"$f":"'Population 2016'!T12/'Population 2016'!T$5","v":6.7702637934323864E-2},{"$f":"'Population 2016'!U12/'Population 2016'!U$5","v":0},{"$f":"'Population 2016'!V12/'Population 2016'!V$5","v":7.526274414025233E-2},{"$f":"'Population 2016'!W12/'Population 2016'!W$5","v":0.1009321540865086},{"$f":"'Population 2016'!X12/'Population 2016'!X$5","v":0.1009321540865086},{"$f":"'Population 2016'!Y12/'Population 2016'!Y$5","v":8.1167231045611354E-2},{"$f":"'Population 2016'!Z12/'Population 2016'!Z$5","v":0.24039505752221813},{"$f":"'Population 2016'!AA12/'Population 2016'!AA$5","v":0.16821102383339412},{"$f":"'Population 2016'!AB12/'Population 2016'!AB$5","v":2.1358607207557598E-2},{"$f":"'Population 2016'!AC12/'Population 2016'!AC$5","v":0.18656616075842797},{"$f":"'Population 2016'!AD12/'Population 2016'!AD$5","v":3.5903829692210357E-2},{"$f":"'Population 2016'!AE12/'Population 2016'!AE$5","v":3.5149231511617161E-2},{"$f":"'Population 2016'!AF12/'Population 2016'!AF$5","v":0.2227299461611546},{"$f":"'Population 2016'!AG12/'Population 2016'!AG$5","v":3.5149231511617161E-2},{"$f":"'Population 2016'!AH12/'Population 2016'!AH$5","v":0.13524423432376953},{"$f":"'Population 2016'!AI12/'Population 2016'!AI$5","v":6.3500743722110425E-2},{"$f":"'Population 2016'!AJ12/'Population 2016'!AJ$5","v":5.2059225385494796E-2},{"$f":"'Population 2016'!AK12/'Population 2016'!AK$5","v":4.4001357756182193E-3},{"$f":"'Population 2016'!AL12/'Population 2016'!AL$5","v":0.21438959933310867},{"$f":"'Population 2016'!AM12/'Population 2016'!AM$5","v":0.16305131279179691},{"$f":"'Population 2016'!AN12/'Population 2016'!AN$5","v":0},{"$f":"'Population 2016'!AO12/'Population 2016'!AO$5","v":0},{"$f":"'Population 2016'!AP12/'Population 2016'!AP$5","v":2.6694989141290048E-2},{"$f":"'Population 2016'!AQ12/'Population 2016'!AQ$5","v":0.14605140571052777},{"$f":"'Population 2016'!AR12/'Population 2016'!AR$5","v":0.10195035046247501},{"$f":"'Population 2016'!AS12/'Population 2016'!AS$5","v":2.7855707227200401E-2},{"$f":"'Population 2016'!AT12/'Population 2016'!AT$5","v":0},{"$f":"'Population 2016'!AU12/'Population 2016'!AU$5","v":0},{"$f":"'Population 2016'!AV12/'Population 2016'!AV$5","v":8.9568155421813955E-2},{"$f":"'Population 2016'!AW12/'Population 2016'!AW$5","v":0.10596665446335957},{"$f":"'Population 2016'!AX12/'Population 2016'!AX$5","v":6.8300599307410198E-2},{"$f":"'Population 2016'!AY12/'Population 2016'!AY$5","v":9.2347235396713689E-2},{"$f":"'Population 2016'!AZ12/'Population 2016'!AZ$5","v":8.4792125685292041E-2},{"$f":"'Population 2016'!BA12/'Population 2016'!BA$5","v":0.20539570287194991},{"$f":"'Population 2016'!BB12/'Population 2016'!BB$5","v":8.3239540680692989E-2},{"$f":"'Population 2016'!BC12/'Population 2016'!BC$5","v":0},10]
["SIMD Q2",null,{"$f":"'Population 2016'!C13/'Population 2016'!C$5","v":0.10523222235283895},{"$f":"'Population 2016'!D13/'Population 2016'!D$5","v":7.0951067554747019E-2},{"$f":"'Population 2016'!E13/'Population 2016'!E$5","v":3.9508904504521394E-2},{"$f":"'Population 2016'!F13/'Population 2016'!F$5","v":8.8405871748647946E-2},{"$f":"'Population 2016'!G13/'Population 2016'!G$5","v":8.8913549504682513E-2},{"$f":"'Population 2016'!H13/'Population 2016'!H$5","v":0.12879158790323364},{"$f":"'Population 2016'!I13/'Population 2016'!I$5","v":8.3535717276609994E-2},{"$f":"'Population 2016'!J13/'Population 2016'!J$5","v":9.8521350439116626E-2},{"$f":"'Population 2016'!K13/'Population 2016'!K$5","v":0.13662996739592687},{"$f":"'Population 2016'!L13/'Population 2016'!L$5","v":0.1440201420107064},{"$f":"'Population 2016'!M13/'Population 2016'!M$5","v":0.1440201420107064},{"$f":"'Population 2016'!N13/'Population 2016'!N$5","v":0.10406603386888065},{"$f":"'Population 2016'!O13/'Population 2016'!O$5","v":0.13875432183156497},{"$f":"'Population 2016'!P13/'Population 2016'!P$5","v":8.887636650512791E-2},{"$f":"'Population 2016'!Q13/'Population 2016'!Q$5","v":0.14501592225708276},{"$f":"'Population 2016'!R13/'Population 2016'!R$5","v":4.8091765582583698E-2},{"$f":"'Population 2016'!S13/'Population 2016'!S$5","v":0.10494535466069754},{"$f":"'Population 2016'!T13/'Population 2016'!T$5","v":7.509434489048547E-2},{"$f":"'Population 2016'!U13/'Population 2016'!U$5","v":0.12180763953436906},{"$f":"'Population 2016'!V13/'Population 2016'!V$5","v":0.14931957472466245},{"$f":"'Population 2016'!W13/'Population 2016'!W$5","v":0.10578249302191804},{"$f":"'Population 2016'!X13/'Population 2016'!X$5","v":0.10578249302191804},{"$f":"'Population 2016'!Y13/'Population 2016'!Y$5","v":0.12497416575253176},{"$f":"'Population 2016'!Z13/'Population 2016'!Z$5","v":9.0876006372644855E-2},{"$f":"'Population 2016'!AA13/'Population 2016'!AA$5","v":0.11083229191373392},{"$f":"'Population 2016'!AB13/'Population 2016'!AB$5","v":7.2358064747244197E-2},{"$f":"'Population 2016'!AC13/'Population 2016'!AC$5","v":9.2128806981906036E-2},{"$f":"'Population 2016'!AD13/'Population 2016'!AD$5","v":9.5995385016189663E-2},{"$f":"'Population 2016'!AE13/'Population 2016'!AE$5","v":9.8681711311204429E-2},{"$f":"'Population 2016'!AF13/'Population 2016'!AF$5","v":6.8301437210635058E-2},{"$f":"'Population 2016'!AG13/'Population 2016'!AG$5","v":9.8681711311204429E-2},{"$f":"'Population 2016'!AH13/'Population 2016'!AH$5","v":0.14442473273083603},{"$f":"'Population 2016'!AI13/'Population 2016'!AI$5","v":0.10739128532680024},{"$f":"'Population 2016'!AJ13/'Population 2016'!AJ$5","v":0.19047486267183447},{"$f":"'Population 2016'!AK13/'Population 2016'!AK$5","v":7.95921702726827E-2},{"$f":"'Population 2016'!AL13/'Population 2016'!AL$5","v":0.10674695376101878},{"$f":"'Population 2016'!AM13/'Population 2016'!AM$5","v":0.1493167107946293},{"$f":"'Population 2016'!AN13/'Population 2016'!AN$5","v":7.0415621250136354E-2},{"$f":"'Population 2016'!AO13/'Population 2016'!AO$5","v":7.0415621250136354E-2},{"$f":"'Population 2016'!AP13/'Population 2016'!AP$5","v":5.5965949621926671E-2},{"$f":"'Population 2016'!AQ13/'Population 2016'!AQ$5","v":9.9180687236258017E-2},{"$f":"'Population 2016'!AR13/'Population 2016'!AR$5","v":0.10450026209776681},{"$f":"'Population 2016'!AS13/'Population 2016'!AS$5","v":8.3535717276609994E-2},{"$f":"'Population 2016'!AT13/'Population 2016'!AT$5","v":1.5236990562556018E-2},{"$f":"'Population 2016'!AU13/'Population 2016'!AU$5","v":1.5236990562556018E-2},{"$f":"'Population 2016'!AV13/'Population 2016'!AV$5","v":0.14441980783444197},{"$f":"'Population 2016'!AW13/'Population 2016'!AW$5","v":0.13927405576911342},{"$f":"'Population 2016'!AX13/'Population 2016'!AX$5","v":7.7909963325964449E-2},{"$f":"'Population 2016'!AY13/'Population 2016'!AY$5","v":9.3259080199504296E-2},{"$f":"'Population 2016'!AZ13/'Population 2016'!AZ$5","v":8.2237920739108669E-2},{"$f":"'Population 2016'!BA13/'Population 2016'!BA$5","v":0.15685057223061974},{"$f":"'Population 2016'!BB13/'Population 2016'!BB$5","v":0.13998467094315128},{"$f":"'Population 2016'!BC13/'Population 2016'!BC$5","v":0.12180763953436906},11]
["SIMD Q3",null,{"$f":"'Population 2016'!C14/'Population 2016'!C$5","v":7.5516347819864757E-2},{"$f":"'Population 2016'!D14/'Population 2016'!D$5","v":8.9693181929325239E-2},{"$f":"'Population 2016'!E14/'Population 2016'!E$5","v":0.10269596238497274},{"$f":"'Population 2016'!F14/'Population 2016'!F$5","v":0.16861189801699716},{"$f":"'Population 2016'!G14/'Population 2016'!G$5","v":0.21348725166459157},{"$f":"'Population 2016'!H14/'Population 2016'!H$5","v":9.0813292565488479E-2},{"$f":"'Population 2016'!I14/'Population 2016'!I$5","v":0.17332091114647014},{"$f":"'Population 2016'!J14/'Population 2016'!J$5","v":9.0319530945489834E-2},{"$f":"'Population 2016'!K14/'Population 2016'!K$5","v":9.8426499078580545E-2},{"$f":"'Population 2016'!L14/'Population 2016'!L$5","v":0.19272314266198592},{"$f":"'Population 2016'!M14/'Population 2016'!M$5","v":0.19272314266198592},{"$f":"'Population 2016'!N14/'Population 2016'!N$5","v":6.6564325957836706E-2},{"$f":"'Population 2016'!O14/'Population 2016'!O$5","v":8.7615537789401732E-2},{"$f":"'Population 2016'!P14/'Population 2016'!P$5","v":3.2807393215372481E-2},{"$f":"'Population 2016'!Q14/'Population 2016'!Q$5","v":0.11315965734832728},{"$f":"'Population 2016'!R14/'Population 2016'!R$5","v":5.9509235109384148E-2},{"$f":"'Population 2016'!S14/'Population 2016'!S$5","v":0.10545464816380715},{"$f":"'Population 2016'!T14/'Population 2016'!T$5","v":7.817015118448789E-2},{"$f":"'Population 2016'!U14/'Population 2016'!U$5","v":0.3586951710706856},{"$f":"'Population 2016'!V14/'Population 2016'!V$5","v":9.5221376725868376E-2},{"$f":"'Population 2016'!W14/'Population 2016'!W$5","v":0.11313317514168611},{"$f":"'Population 2016'!X14/'Population 2016'!X$5","v":0.11313317514168611},{"$f":"'Population 2016'!Y14/'Population 2016'!Y$5","v":9.2872132398531024E-2},{"$f":"'Population 2016'!Z14/'Population 2016'!Z$5","v":7.3318324451249847E-2},{"$f":"'Population 2016'!AA14/'Population 2016'!AA$5","v":8.2239925801760219E-2},{"$f":"'Population 2016'!AB14/'Population 2016'!AB$5","v":9.8649990276654762E-2},{"$f":"'Population 2016'!AC14/'Population 2016'!AC$5","v":7.2824722136605569E-2},{"$f":"'Population 2016'!AD14/'Population 2016'!AD$5","v":0.17748706688004764},{"$f":"'Population 2016'!AE14/'Population 2016'!AE$5","v":0.16383125083419747},{"$f":"'Population 2016'!AF14/'Population 2016'!AF$5","v":8.3337103560602629E-2},{"$f":"'Population 2016'!AG14/'Population 2016'!AG$5","v":0.16383125083419747},{"$f":"'Population 2016'!AH14/'Population 2016'!AH$5","v":9.9150125855679297E-2},{"$f":"'Population 2016'!AI14/'Population 2016'!AI$5","v":9.3379506081021968E-2},{"$f":"'Population 2016'!AJ14/'Population 2016'!AJ$5","v":0.12381842009870897},{"$f":"'Population 2016'!AK14/'Population 2016'!AK$5","v":0.14470160793533057},{"$f":"'Population 2016'!AL14/'Population 2016'!AL$5","v":7.6435323956652063E-2},{"$f":"'Population 2016'!AM14/'Population 2016'!AM$5","v":9.529828933214049E-2},{"$f":"'Population 2016'!AN14/'Population 2016'!AN$5","v":0.15899421839205846},{"$f":"'Population 2016'!AO14/'Population 2016'!AO$5","v":0.15899421839205846},{"$f":"'Population 2016'!AP14/'Population 2016'!AP$5","v":0.123472250844126},{"$f":"'Population 2016'!AQ14/'Population 2016'!AQ$5","v":9.367293253685538E-2},{"$f":"'Population 2016'!AR14/'Population 2016'!AR$5","v":0.10450338098321973},{"$f":"'Population 2016'!AS14/'Population 2016'!AS$5","v":0.17332091114647014},{"$f":"'Population 2016'!AT14/'Population 2016'!AT$5","v":0.16170190330574155},{"$f":"'Population 2016'!AU14/'Population 2016'!AU$5","v":0.16170190330574155},{"$f":"'Population 2016'!AV14/'Population 2016'!AV$5","v":0.11133987963256256},{"$f":"'Population 2016'!AW14/'Population 2016'!AW$5","v":0.1032056562328391},{"$f":"'Population 2016'!AX14/'Population 2016'!AX$5","v":8.5934804554225183E-2},{"$f":"'Population 2016'!AY14/'Population 2016'!AY$5","v":0.11450384015177015},{"$f":"'Population 2016'!AZ14/'Population 2016'!AZ$5","v":0.11571008623318051},{"$f":"'Population 2016'!BA14/'Population 2016'!BA$5","v":8.0328222846037578E-2},{"$f":"'Population 2016'!BB14/'Population 2016'!BB$5","v":0.11181925522879653},{"$f":"'Population 2016'!BC14/'Population 2016'!BC$5","v":0.3586951710706856},12]
["SIMD Q4",null,{"$f":"'Population 2016'!C15/'Population 2016'!C$5","v":8.7133854323726195E-2},{"$f":"'Population 2016'!D15/'Population 2016'!D$5","v":0.13744950754574886},{"$f":"'Population 2016'!E15/'Population 2016'!E$5","v":0.18359827300896778},{"$f":"'Population 2016'!F15/'Population 2016'!F$5","v":0.13129023950553695},{"$f":"'Population 2016'!G15/'Population 2016'!G$5","v":0.12589996210685866},{"$f":"'Population 2016'!H15/'Population 2016'!H$5","v":7.6780161666337027E-2},{"$f":"'Population 2016'!I15/'Population 2016'!I$5","v":0.18659450632275354},{"$f":"'Population 2016'!J15/'Population 2016'!J$5","v":0.12317656717779454},{"$f":"'Population 2016'!K15/'Population 2016'!K$5","v":8.4794216320937491E-2},{"$f":"'Population 2016'!L15/'Population 2016'!L$5","v":9.3712769844169458E-2},{"$f":"'Population 2016'!M15/'Population 2016'!M$5","v":9.3712769844169458E-2},{"$f":"'Population 2016'!N15/'Population 2016'!N$5","v":9.2146824089181081E-2},{"$f":"'Population 2016'!O15/'Population 2016'!O$5","v":6.9991381103813116E-2},{"$f":"'Population 2016'!P15/'Population 2016'!P$5","v":9.6900710019159245E-2},{"$f":"'Population 2016'!Q15/'Population 2016'!Q$5","v":0.16494518278281101},{"$f":"'Population 2016'!R15/'Population 2016'!R$5","v":8.0707404055996163E-2},{"$f":"'Population 2016'!S15/'Population 2016'!S$5","v":0.10040937664946661},{"$f":"'Population 2016'!T15/'Population 2016'!T$5","v":8.2849006295863711E-2},{"$f":"'Population 2016'!U15/'Population 2016'!U$5","v":3.0451909883592265E-2},{"$f":"'Population 2016'!V15/'Population 2016'!V$5","v":9.7701895116050097E-2},{"$f":"'Population 2016'!W15/'Population 2016'!W$5","v":8.914295426169605E-2},{"$f":"'Population 2016'!X15/'Population 2016'!X$5","v":8.914295426169605E-2},{"$f":"'Population 2016'!Y15/'Population 2016'!Y$5","v":0.1099108122287404},{"$f":"'Population 2016'!Z15/'Population 2016'!Z$5","v":6.05130250124375E-2},{"$f":"'Population 2016'!AA15/'Population 2016'!AA$5","v":7.7215200806294626E-2},{"$f":"'Population 2016'!AB15/'Population 2016'!AB$5","v":0.1466403283420161},{"$f":"'Population 2016'!AC15/'Population 2016'!AC$5","v":7.2800933347951374E-2},{"$f":"'Population 2016'!AD15/'Population 2016'!AD$5","v":0.15654843872120286},{"$f":"'Population 2016'!AE15/'Population 2016'!AE$5","v":0.16817421123420159},{"$f":"'Population 2016'!AF15/'Population 2016'!AF$5","v":9.1133933553514609E-2},{"$f":"'Population 2016'!AG15/'Population 2016'!AG$5","v":0.16817421123420159},{"$f":"'Population 2016'!AH15/'Population 2016'!AH$5","v":8.5143456897912931E-2},{"$f":"'Population 2016'!AI15/'Population 2016'!AI$5","v":9.3866206579753253E-2},{"$f":"'Population 2016'!AJ15/'Population 2016'!AJ$5","v":8.1490672838301317E-2},{"$f":"'Population 2016'!AK15/'Population 2016'!AK$5","v":0.19389512590674227},{"$f":"'Population 2016'!AL15/'Population 2016'!AL$5","v":8.5826785619268903E-2},{"$f":"'Population 2016'!AM15/'Population 2016'!AM$5","v":6.8386872444230348E-2},{"$f":"'Population 2016'!AN15/'Population 2016'!AN$5","v":0.23900949056397949},{"$f":"'Population 2016'!AO15/'Population 2016'!AO$5","v":0.23900949056397949},{"$f":"'Population 2016'!AP15/'Population 2016'!AP$5","v":0.21140402327092878},{"$f":"'Population 2016'!AQ15/'Population 2016'!AQ$5","v":9.1652052392174055E-2},{"$f":"'Population 2016'!AR15/'Population 2016'!AR$5","v":0.10443632494598201},{"$f":"'Population 2016'!AS15/'Population 2016'!AS$5","v":0.18659450632275354},{"$f":"'Population 2016'!AT15/'Population 2016'!AT$5","v":0.31786787578425685},{"$f":"'Population 2016'!AU15/'Population 2016'!AU$5","v":0.31786787578425685},{"$f":"'Population 2016'!AV15/'Population 2016'!AV$5","v":7.3244641537324462E-2},{"$f":"'Population 2016'!AW15/'Population 2016'!AW$5","v":0.10278616755140643},{"$f":"'Population 2016'!AX15/'Population 2016'!AX$5","v":0.14393600572472751},{"$f":"'Population 2016'!AY15/'Population 2016'!AY$5","v":0.11957406444111257},{"$f":"'Population 2016'!AZ15/'Population 2016'!AZ$5","v":0.14635479287353809},{"$f":"'Population 2016'!BA15/'Population 2016'!BA$5","v":6.8046858129993518E-2},{"$f":"'Population 2016'!BB15/'Population 2016'!BB$5","v":9.0924784046732904E-2},{"$f":"'Population 2016'!BC15/'Population 2016'!BC$5","v":3.0451909883592265E-2},13]
["SIMD Q5 (least deprived)",null,{"$f":"'Population 2016'!C16/'Population 2016'!C$5","v":0.19712961211941549},{"$f":"'Population 2016'!D16/'Population 2016'!D$5","v":0.18329861212992576},{"$f":"'Population 2016'!E16/'Population 2016'!E$5","v":0.17061302556265498},{"$f":"'Population 2016'!F16/'Population 2016'!F$5","v":9.2856039144990993E-2},{"$f":"'Population 2016'!G16/'Population 2016'!G$5","v":3.8407405402479292E-2},{"$f":"'Population 2016'!H16/'Population 2016'!H$5","v":7.095031662089471E-2},{"$f":"'Population 2016'!I16/'Population 2016'!I$5","v":4.8299974876476005E-2},{"$f":"'Population 2016'!J16/'Population 2016'!J$5","v":0.12168381944386854},{"$f":"'Population 2016'!K16/'Population 2016'!K$5","v":7.1492699522751973E-2},{"$f":"'Population 2016'!L16/'Population 2016'!L$5","v":4.7710196495798454E-2},{"$f":"'Population 2016'!M16/'Population 2016'!M$5","v":4.7710196495798454E-2},{"$f":"'Population 2016'!N16/'Population 2016'!N$5","v":7.9729306146068588E-2},{"$f":"'Population 2016'!O16/'Population 2016'!O$5","v":5.958926501619758E-2},{"$f":"'Population 2016'!P16/'Population 2016'!P$5","v":0.27929674292798379},{"$f":"'Population 2016'!Q16/'Population 2016'!Q$5","v":8.7061256624481498E-2},{"$f":"'Population 2016'!R16/'Population 2016'!R$5","v":0.30833821259381489},{"$f":"'Population 2016'!S16/'Population 2016'!S$5","v":0.13863904771824154},{"$f":"'Population 2016'!T16/'Population 2016'!T$5","v":0.21434321531109385},{"$f":"'Population 2016'!U16/'Population 2016'!U$5","v":0},{"$f":"'Population 2016'!V16/'Population 2016'!V$5","v":9.8205631158363921E-2},{"$f":"'Population 2016'!W16/'Population 2016'!W$5","v":0.11217879578242765},{"$f":"'Population 2016'!X16/'Population 2016'!X$5","v":0.11217879578242765},{"$f":"'Population 2016'!Y16/'Population 2016'!Y$5","v":0.10945771927314352},{"$f":"'Population 2016'!Z16/'Population 2016'!Z$5","v":5.3273142941211771E-2},{"$f":"'Population 2016'!AA16/'Population 2016'!AA$5","v":8.4045053107416695E-2},{"$f":"'Population 2016'!AB16/'Population 2016'!AB$5","v":0.16735617125369742},{"$f":"'Population 2016'!AC16/'Population 2016'!AC$5","v":9.8111170180856855E-2},{"$f":"'Population 2016'!AD16/'Population 2016'!AD$5","v":4.6678328184897096E-2},{"$f":"'Population 2016'!AE16/'Population 2016'!AE$5","v":4.9815706526761053E-2},{"$f":"'Population 2016'!AF16/'Population 2016'!AF$5","v":6.4184349032559679E-2},{"$f":"'Population 2016'!AG16/'Population 2016'!AG$5","v":4.9815706526761053E-2},{"$f":"'Population 2016'!AH16/'Population 2016'!AH$5","v":5.8781568412546559E-2},{"$f":"'Population 2016'!AI16/'Population 2016'!AI$5","v":0.1615052716773121},{"$f":"'Population 2016'!AJ16/'Population 2016'!AJ$5","v":7.8116721969718098E-2},{"$f":"'Population 2016'!AK16/'Population 2016'!AK$5","v":8.5387777679996987E-2},{"$f":"'Population 2016'!AL16/'Population 2016'!AL$5","v":4.7977155424699811E-2},{"$f":"'Population 2016'!AM16/'Population 2016'!AM$5","v":4.6307195815872303E-2},{"$f":"'Population 2016'!AN16/'Population 2016'!AN$5","v":3.7253190793062073E-2},{"$f":"'Population 2016'!AO16/'Population 2016'!AO$5","v":3.7253190793062073E-2},{"$f":"'Population 2016'!AP16/'Population 2016'!AP$5","v":9.6412662682497666E-2},{"$f":"'Population 2016'!AQ16/'Population 2016'!AQ$5","v":9.3213952978571823E-2},{"$f":"'Population 2016'!AR16/'Population 2016'!AR$5","v":0.10360915196836203},{"$f":"'Population 2016'!AS16/'Population 2016'!AS$5","v":4.8299974876476005E-2},{"$f":"'Population 2016'!AT16/'Population 2016'!AT$5","v":0},{"$f":"'Population 2016'!AU16/'Population 2016'!AU$5","v":0},{"$f":"'Population 2016'!AV16/'Population 2016'!AV$5","v":0.11041072748389821},{"$f":"'Population 2016'!AW16/'Population 2016'!AW$5","v":7.191561413142962E-2},{"$f":"'Population 2016'!AX16/'Population 2016'!AX$5","v":0.14883013660119862},{"$f":"'Population 2016'!AY16/'Population 2016'!AY$5","v":0.10008873657476822},{"$f":"'Population 2016'!AZ16/'Population 2016'!AZ$5","v":8.9448947541002466E-2},{"$f":"'Population 2016'!BA16/'Population 2016'!BA$5","v":2.0540919887713237E-2},{"$f":"'Population 2016'!BB16/'Population 2016'!BB$5","v":8.973712738998639E-2},{"$f":"'Population 2016'!BC16/'Population 2016'!BC$5","v":0},14]
["SIMD Q1 (most deprived)","16+ Males",{"$f":"'Population 2016'!C17/'Population 2016'!C$5","v":3.9692721297398967E-2},{"$f":"'Population 2016'!D17/'Population 2016'!D$5","v":2.4434435609283767E-2},{"$f":"'Population 2016'!E17/'Population 2016'!E$5","v":1.0439763921638485E-2},{"$f":"'Population 2016'!F17/'Population 2016'!F$5","v":3.3335050218902908E-2},{"$f":"'Population 2016'!G17/'Population 2016'!G$5","v":3.515942185892925E-2},{"$f":"'Population 2016'!H17/'Population 2016'!H$5","v":0.14045127799411827},{"$f":"'Population 2016'!I17/'Population 2016'!I$5","v":2.5960974792730927E-2},{"$f":"'Population 2016'!J17/'Population 2016'!J$5","v":7.733262566033354E-2},{"$f":"'Population 2016'!K17/'Population 2016'!K$5","v":0.11248405235552615},{"$f":"'Population 2016'!L17/'Population 2016'!L$5","v":3.7782154940987724E-2},{"$f":"'Population 2016'!M17/'Population 2016'!M$5","v":3.7782154940987724E-2},{"$f":"'Population 2016'!N17/'Population 2016'!N$5","v":0.16455421512445648},{"$f":"'Population 2016'!O17/'Population 2016'!O$5","v":0.14693731982048919},{"$f":"'Population 2016'!P17/'Population 2016'!P$5","v":2.1841541755888649E-2},{"$f":"'Population 2016'!Q17/'Population 2016'!Q$5","v":1.5969260055698525E-2},{"$f":"'Population 2016'!R17/'Population 2016'!R$5","v":2.9821152924894873E-2},{"$f":"'Population 2016'!S17/'Population 2016'!S$5","v":6.4575238626513973E-2},{"$f":"'Population 2016'!T17/'Population 2016'!T$5","v":6.2509597353224478E-2},{"$f":"'Population 2016'!U17/'Population 2016'!U$5","v":0},{"$f":"'Population 2016'!V17/'Population 2016'!V$5","v":7.0072736431564406E-2},{"$f":"'Population 2016'!W17/'Population 2016'!W$5","v":9.2195660842337837E-2},{"$f":"'Population 2016'!X17/'Population 2016'!X$5","v":9.2195660842337837E-2},{"$f":"'Population 2016'!Y17/'Population 2016'!Y$5","v":7.3552089791895203E-2},{"$f":"'Population 2016'!Z17/'Population 2016'!Z$5","v":0.21924647152538895},{"$f":"'Population 2016'!AA17/'Population 2016'!AA$5","v":0.15194627537193794},{"$f":"'Population 2016'!AB17/'Population 2016'!AB$5","v":2.1039272079670022E-2},{"$f":"'Population 2016'!AC17/'Population 2016'!AC$5","v":0.16843703521361297},{"$f":"'Population 2016'!AD17/'Population 2016'!AD$5","v":3.3190665823067476E-2},{"$f":"'Population 2016'!AE17/'Population 2016'!AE$5","v":3.2443864926744628E-2},{"$f":"'Population 2016'!AF17/'Population 2016'!AF$5","v":0.19449848436863773},{"$f":"'Population 2016'!AG17/'Population 2016'!AG$5","v":3.2443864926744628E-2},{"$f":"'Population 2016'!AH17/'Population 2016'!AH$5","v":0.12232800497849772},{"$f":"'Population 2016'!AI17/'Population 2016'!AI$5","v":5.8065010062122668E-2},{"$f":"'Population 2016'!AJ17/'Population 2016'!AJ$5","v":4.6524272927529767E-2},{"$f":"'Population 2016'!AK17/'Population 2016'!AK$5","v":3.5829677030034071E-3},{"$f":"'Population 2016'!AL17/'Population 2016'!AL$5","v":0.18455685425941362},{"$f":"'Population 2016'!AM17/'Population 2016'!AM$5","v":0.14878065565338963},{"$f":"'Population 2016'!AN17/'Population 2016'!AN$5","v":0},{"$f":"'Population 2016'!AO17/'Population 2016'!AO$5","v":0},{"$f":"'Population 2016'!AP17/'Population 2016'!AP$5","v":2.5775565524784806E-2},{"$f":"'Population 2016'!AQ17/'Population 2016'!AQ$5","v":0.13420014248917631},{"$f":"'Population 2016'!AR17/'Population 2016'!AR$5","v":9.2363787690338345E-2},{"$f":"'Population 2016'!AS17/'Population 2016'!AS$5","v":2.5960974792730927E-2},{"$f":"'Population 2016'!AT17/'Population 2016'!AT$5","v":0},{"$f":"'Population 2016'!AU17/'Population 2016'!AU$5","v":0},{"$f":"'Population 2016'!AV17/'Population 2016'!AV$5","v":8.1026290782388349E-2},{"$f":"'Population 2016'!AW17/'Population 2016'!AW$5","v":9.4476478125572028E-2},{"$f":"'Population 2016'!AX17/'Population 2016'!AX$5","v":5.8320661410480854E-2},{"$f":"'Population 2016'!AY17/'Population 2016'!AY$5","v":8.440684189590282E-2},{"$f":"'Population 2016'!AZ17/'Population 2016'!AZ$5","v":7.755233531418447E-2},{"$f":"'Population 2016'!BA17/'Population 2016'!BA$5","v":0.17446285899373784},{"$f":"'Population 2016'!BB17/'Population 2016'!BB$5","v":7.5326432956091233E-2},{"$f":"'Population 2016'!BC17/'Population 2016'!BC$5","v":0},15]
["SIMD Q2",null,{"$f":"'Population 2016'!C18/'Population 2016'!C$5","v":9.9548690794416653E-2},{"$f":"'Population 2016'!D18/'Population 2016'!D$5","v":6.6928787300842105E-2},{"$f":"'Population 2016'!E18/'Population 2016'!E$5","v":3.7010299129472762E-2},{"$f":"'Population 2016'!F18/'Population 2016'!F$5","v":8.0370847283028582E-2},{"$f":"'Population 2016'!G18/'Population 2016'!G$5","v":7.9819195582742378E-2},{"$f":"'Population 2016'!H18/'Population 2016'!H$5","v":0.11487518360121006},{"$f":"'Population 2016'!I18/'Population 2016'!I$5","v":7.8228372833096055E-2},{"$f":"'Population 2016'!J18/'Population 2016'!J$5","v":8.9921464883109564E-2},{"$f":"'Population 2016'!K18/'Population 2016'!K$5","v":0.1245570098757265},{"$f":"'Population 2016'!L18/'Population 2016'!L$5","v":0.13209060727844582},{"$f":"'Population 2016'!M18/'Population 2016'!M$5","v":0.13209060727844582},{"$f":"'Population 2016'!N18/'Population 2016'!N$5","v":9.6141326624926665E-2},{"$f":"'Population 2016'!O18/'Population 2016'!O$5","v":0.12654917228876275},{"$f":"'Population 2016'!P18/'Population 2016'!P$5","v":7.7673841992561707E-2},{"$f":"'Population 2016'!Q18/'Population 2016'!Q$5","v":0.12601497044688076},{"$f":"'Population 2016'!R18/'Population 2016'!R$5","v":4.2210038856656196E-2},{"$f":"'Population 2016'!S18/'Population 2016'!S$5","v":9.5423243202211586E-2},{"$f":"'Population 2016'!T18/'Population 2016'!T$5","v":7.0731911606631823E-2},{"$f":"'Population 2016'!U18/'Population 2016'!U$5","v":0.11862081175585358},{"$f":"'Population 2016'!V18/'Population 2016'!V$5","v":0.13715358606635578},{"$f":"'Population 2016'!W18/'Population 2016'!W$5","v":9.5343151674412832E-2},{"$f":"'Population 2016'!X18/'Population 2016'!X$5","v":9.5343151674412832E-2},{"$f":"'Population 2016'!Y18/'Population 2016'!Y$5","v":0.11451725727730878},{"$f":"'Population 2016'!Z18/'Population 2016'!Z$5","v":8.6652096565314765E-2},{"$f":"'Population 2016'!AA18/'Population 2016'!AA$5","v":0.10057289704662038},{"$f":"'Population 2016'!AB18/'Population 2016'!AB$5","v":6.777273983398667E-2},{"$f":"'Population 2016'!AC18/'Population 2016'!AC$5","v":8.4563972189871772E-2},{"$f":"'Population 2016'!AD18/'Population 2016'!AD$5","v":8.6475120026796679E-2},{"$f":"'Population 2016'!AE18/'Population 2016'!AE$5","v":8.8999887062495509E-2},{"$f":"'Population 2016'!AF18/'Population 2016'!AF$5","v":5.9735480854785923E-2},{"$f":"'Population 2016'!AG18/'Population 2016'!AG$5","v":8.8999887062495509E-2},{"$f":"'Population 2016'!AH18/'Population 2016'!AH$5","v":0.12932576651217223},{"$f":"'Population 2016'!AI18/'Population 2016'!AI$5","v":9.7702390847843212E-2},{"$f":"'Population 2016'!AJ18/'Population 2016'!AJ$5","v":0.16536541839779159},{"$f":"'Population 2016'!AK18/'Population 2016'!AK$5","v":7.2111939454131732E-2},{"$f":"'Population 2016'!AL18/'Population 2016'!AL$5","v":9.3338181302211734E-2},{"$f":"'Population 2016'!AM18/'Population 2016'!AM$5","v":0.13256860962508737},{"$f":"'Population 2016'!AN18/'Population 2016'!AN$5","v":7.1451947201919927E-2},{"$f":"'Population 2016'!AO18/'Population 2016'!AO$5","v":7.1451947201919927E-2},{"$f":"'Population 2016'!AP18/'Population 2016'!AP$5","v":5.6718925859581819E-2},{"$f":"'Population 2016'!AQ18/'Population 2016'!AQ$5","v":8.5952485340055895E-2},{"$f":"'Population 2016'!AR18/'Population 2016'!AR$5","v":9.5338313302291505E-2},{"$f":"'Population 2016'!AS18/'Population 2016'!AS$5","v":7.8228372833096055E-2},{"$f":"'Population 2016'!AT18/'Population 2016'!AT$5","v":1.7925871250065905E-2},{"$f":"'Population 2016'!AU18/'Population 2016'!AU$5","v":1.7925871250065905E-2},{"$f":"'Population 2016'!AV18/'Population 2016'!AV$5","v":0.12807517685566466},{"$f":"'Population 2016'!AW18/'Population 2016'!AW$5","v":0.12591143449874917},{"$f":"'Population 2016'!AX18/'Population 2016'!AX$5","v":7.1188519876816125E-2},{"$f":"'Population 2016'!AY18/'Population 2016'!AY$5","v":8.5815917505584288E-2},{"$f":"'Population 2016'!AZ18/'Population 2016'!AZ$5","v":7.7431528323486598E-2},{"$f":"'Population 2016'!BA18/'Population 2016'!BA$5","v":0.14069585402720794},{"$f":"'Population 2016'!BB18/'Population 2016'!BB$5","v":0.12759713581406268},{"$f":"'Population 2016'!BC18/'Population 2016'!BC$5","v":0.11862081175585358},16]
["SIMD Q3",null,{"$f":"'Population 2016'!C19/'Population 2016'!C$5","v":8.0157217113972182E-2},{"$f":"'Population 2016'!D19/'Population 2016'!D$5","v":8.9905910429075836E-2},{"$f":"'Population 2016'!E19/'Population 2016'!E$5","v":9.8847266300704575E-2},{"$f":"'Population 2016'!F19/'Population 2016'!F$5","v":0.16013391707442698},{"$f":"'Population 2016'!G19/'Population 2016'!G$5","v":0.19827586206896552},{"$f":"'Population 2016'!H19/'Population 2016'!H$5","v":8.3339547943828571E-2},{"$f":"'Population 2016'!I19/'Population 2016'!I$5","v":0.16154425927476762},{"$f":"'Population 2016'!J19/'Population 2016'!J$5","v":8.2640173158737132E-2},{"$f":"'Population 2016'!K19/'Population 2016'!K$5","v":9.0582620611444509E-2},{"$f":"'Population 2016'!L19/'Population 2016'!L$5","v":0.17981668864073197},{"$f":"'Population 2016'!M19/'Population 2016'!M$5","v":0.17981668864073197},{"$f":"'Population 2016'!N19/'Population 2016'!N$5","v":6.1090973388736626E-2},{"$f":"'Population 2016'!O19/'Population 2016'!O$5","v":8.5376606136257818E-2},{"$f":"'Population 2016'!P19/'Population 2016'!P$5","v":2.8637439422968557E-2},{"$f":"'Population 2016'!Q19/'Population 2016'!Q$5","v":0.10284250478842787},{"$f":"'Population 2016'!R19/'Population 2016'!R$5","v":5.1365305796561449E-2},{"$f":"'Population 2016'!S19/'Population 2016'!S$5","v":9.867318891876195E-2},{"$f":"'Population 2016'!T19/'Population 2016'!T$5","v":7.4601099100524426E-2},{"$f":"'Population 2016'!U19/'Population 2016'!U$5","v":0.34338069313504183},{"$f":"'Population 2016'!V19/'Population 2016'!V$5","v":8.9229970768044814E-2},{"$f":"'Population 2016'!W19/'Population 2016'!W$5","v":0.1038443185012322},{"$f":"'Population 2016'!X19/'Population 2016'!X$5","v":0.1038443185012322},{"$f":"'Population 2016'!Y19/'Population 2016'!Y$5","v":8.6071763564967166E-2},{"$f":"'Population 2016'!Z19/'Population 2016'!Z$5","v":6.9400270624468866E-2},{"$f":"'Population 2016'!AA19/'Population 2016'!AA$5","v":7.5069245268101603E-2},{"$f":"'Population 2016'!AB19/'Population 2016'!AB$5","v":9.7100396098379782E-2},{"$f":"'Population 2016'!AC19/'Population 2016'!AC$5","v":6.7085418299991109E-2},{"$f":"'Population 2016'!AD19/'Population 2016'!AD$5","v":0.16795191484610517},{"$f":"'Population 2016'!AE19/'Population 2016'!AE$5","v":0.15644924485877679},{"$f":"'Population 2016'!AF19/'Population 2016'!AF$5","v":7.4575095386749918E-2},{"$f":"'Population 2016'!AG19/'Population 2016'!AG$5","v":0.15644924485877679},{"$f":"'Population 2016'!AH19/'Population 2016'!AH$5","v":8.940861763094099E-2},{"$f":"'Population 2016'!AI19/'Population 2016'!AI$5","v":8.8299227841455941E-2},{"$f":"'Population 2016'!AJ19/'Population 2016'!AJ$5","v":0.11253938599670971},{"$f":"'Population 2016'!AK19/'Population 2016'!AK$5","v":0.13409099480783979},{"$f":"'Population 2016'!AL19/'Population 2016'!AL$5","v":6.8001631755378586E-2},{"$f":"'Population 2016'!AM19/'Population 2016'!AM$5","v":8.6036850168966034E-2},{"$f":"'Population 2016'!AN19/'Population 2016'!AN$5","v":0.15430347987345916},{"$f":"'Population 2016'!AO19/'Population 2016'!AO$5","v":0.15430347987345916},{"$f":"'Population 2016'!AP19/'Population 2016'!AP$5","v":0.11599797092719116},{"$f":"'Population 2016'!AQ19/'Population 2016'!AQ$5","v":8.4164520195100567E-2},{"$f":"'Population 2016'!AR19/'Population 2016'!AR$5","v":9.7773717285954784E-2},{"$f":"'Population 2016'!AS19/'Population 2016'!AS$5","v":0.16154425927476762},{"$f":"'Population 2016'!AT19/'Population 2016'!AT$5","v":0.16734328043443877},{"$f":"'Population 2016'!AU19/'Population 2016'!AU$5","v":0.16734328043443877},{"$f":"'Population 2016'!AV19/'Population 2016'!AV$5","v":9.9429838454228703E-2},{"$f":"'Population 2016'!AW19/'Population 2016'!AW$5","v":9.295869180547929E-2},{"$f":"'Population 2016'!AX19/'Population 2016'!AX$5","v":7.8344429252335257E-2},{"$f":"'Population 2016'!AY19/'Population 2016'!AY$5","v":0.10641198249747559},{"$f":"'Population 2016'!AZ19/'Population 2016'!AZ$5","v":0.10867164084656937},{"$f":"'Population 2016'!BA19/'Population 2016'!BA$5","v":7.2581515871302099E-2},{"$f":"'Population 2016'!BB19/'Population 2016'!BB$5","v":0.10840128985036906},{"$f":"'Population 2016'!BC19/'Population 2016'!BC$5","v":0.34338069313504183},17]
["SIMD Q4",null,{"$f":"'Population 2016'!C20/'Population 2016'!C$5","v":8.4956530183539228E-2},{"$f":"'Population 2016'!D20/'Population 2016'!D$5","v":0.13427569613567678},{"$f":"'Population 2016'!E20/'Population 2016'!E$5","v":0.17951049836160868},{"$f":"'Population 2016'!F20/'Population 2016'!F$5","v":0.12262683492145249},{"$f":"'Population 2016'!G20/'Population 2016'!G$5","v":0.11838900016239917},{"$f":"'Population 2016'!H20/'Population 2016'!H$5","v":6.948150694036892E-2},{"$f":"'Population 2016'!I20/'Population 2016'!I$5","v":0.17034796080730258},{"$f":"'Population 2016'!J20/'Population 2016'!J$5","v":0.11792707098015474},{"$f":"'Population 2016'!K20/'Population 2016'!K$5","v":9.2519964088267265E-2},{"$f":"'Population 2016'!L20/'Population 2016'!L$5","v":8.8002160341842328E-2},{"$f":"'Population 2016'!M20/'Population 2016'!M$5","v":8.8002160341842328E-2},{"$f":"'Population 2016'!N20/'Population 2016'!N$5","v":8.1208156179423091E-2},{"$f":"'Population 2016'!O20/'Population 2016'!O$5","v":6.5265848366867774E-2},{"$f":"'Population 2016'!P20/'Population 2016'!P$5","v":8.707314324354784E-2},{"$f":"'Population 2016'!Q20/'Population 2016'!Q$5","v":0.14691954266107332},{"$f":"'Population 2016'!R20/'Population 2016'!R$5","v":6.9023793048384519E-2},{"$f":"'Population 2016'!S20/'Population 2016'!S$5","v":9.3231604089176676E-2},{"$f":"'Population 2016'!T20/'Population 2016'!T$5","v":7.7725764647305989E-2},{"$f":"'Population 2016'!U20/'Population 2016'!U$5","v":2.7043774620457664E-2},{"$f":"'Population 2016'!V20/'Population 2016'!V$5","v":9.3809389334534157E-2},{"$f":"'Population 2016'!W20/'Population 2016'!W$5","v":8.4076899443714492E-2},{"$f":"'Population 2016'!X20/'Population 2016'!X$5","v":8.4076899443714492E-2},{"$f":"'Population 2016'!Y20/'Population 2016'!Y$5","v":0.10536795917394},{"$f":"'Population 2016'!Z20/'Population 2016'!Z$5","v":5.6827266867086217E-2},{"$f":"'Population 2016'!AA20/'Population 2016'!AA$5","v":7.2242297647355055E-2},{"$f":"'Population 2016'!AB20/'Population 2016'!AB$5","v":0.14317472339641565},{"$f":"'Population 2016'!AC20/'Population 2016'!AC$5","v":6.7178504864290126E-2},{"$f":"'Population 2016'!AD20/'Population 2016'!AD$5","v":0.14985299043507389},{"$f":"'Population 2016'!AE20/'Population 2016'!AE$5","v":0.16178810870748159},{"$f":"'Population 2016'!AF20/'Population 2016'!AF$5","v":8.5327783558792919E-2},{"$f":"'Population 2016'!AG20/'Population 2016'!AG$5","v":0.16178810870748159},{"$f":"'Population 2016'!AH20/'Population 2016'!AH$5","v":8.1337135320397908E-2},{"$f":"'Population 2016'!AI20/'Population 2016'!AI$5","v":8.6989511330825095E-2},{"$f":"'Population 2016'!AJ20/'Population 2016'!AJ$5","v":7.3376460418816056E-2},{"$f":"'Population 2016'!AK20/'Population 2016'!AK$5","v":0.18892925838854457},{"$f":"'Population 2016'!AL20/'Population 2016'!AL$5","v":7.7623667547578087E-2},{"$f":"'Population 2016'!AM20/'Population 2016'!AM$5","v":6.69308307768091E-2},{"$f":"'Population 2016'!AN20/'Population 2016'!AN$5","v":0.23126431766117594},{"$f":"'Population 2016'!AO20/'Population 2016'!AO$5","v":0.23126431766117594},{"$f":"'Population 2016'!AP20/'Population 2016'!AP$5","v":0.20198785726740962},{"$f":"'Population 2016'!AQ20/'Population 2016'!AQ$5","v":8.5253740340877959E-2},{"$f":"'Population 2016'!AR20/'Population 2016'!AR$5","v":9.8467669299228761E-2},{"$f":"'Population 2016'!AS20/'Population 2016'!AS$5","v":0.17034796080730258},{"$f":"'Population 2016'!AT20/'Population 2016'!AT$5","v":0.31992407866294092},{"$f":"'Population 2016'!AU20/'Population 2016'!AU$5","v":0.31992407866294092},{"$f":"'Population 2016'!AV20/'Population 2016'!AV$5","v":6.4280435012142326E-2},{"$f":"'Population 2016'!AW20/'Population 2016'!AW$5","v":9.6505277930319114E-2},{"$f":"'Population 2016'!AX20/'Population 2016'!AX$5","v":0.13166873250955186},{"$f":"'Population 2016'!AY20/'Population 2016'!AY$5","v":0.11201615617637159},{"$f":"'Population 2016'!AZ20/'Population 2016'!AZ$5","v":0.13660394291006783},{"$f":"'Population 2016'!BA20/'Population 2016'!BA$5","v":6.179820773051177E-2},{"$f":"'Population 2016'!BB20/'Population 2016'!BB$5","v":8.6008437886247346E-2},{"$f":"'Population 2016'!BC20/'Population 2016'!BC$5","v":2.7043774620457664E-2},18]
["SIMD Q5 (least deprived)",null,{"$f":"'Population 2016'!C21/'Population 2016'!C$5","v":0.19005075311904238},{"$f":"'Population 2016'!D21/'Population 2016'!D$5","v":0.17840585663566211},{"$f":"'Population 2016'!E21/'Population 2016'!E$5","v":0.16772533154571323},{"$f":"'Population 2016'!F21/'Population 2016'!F$5","v":8.6458923512747879E-2},{"$f":"'Population 2016'!G21/'Population 2016'!G$5","v":6.3755210306934443E-2},{"$f":"'Population 2016'!H21/'Population 2016'!H$5","v":6.4828655082632705E-2},{"$f":"'Population 2016'!I21/'Population 2016'!I$5","v":4.4311615442592746E-2},{"$f":"'Population 2016'!J21/'Population 2016'!J$5","v":0.11089457054476999},{"$f":"'Population 2016'!K21/'Population 2016'!K$5","v":6.5279024712942404E-2},{"$f":"'Population 2016'!L21/'Population 2016'!L$5","v":4.262703921973536E-2},{"$f":"'Population 2016'!M21/'Population 2016'!M$5","v":4.262703921973536E-2},{"$f":"'Population 2016'!N21/'Population 2016'!N$5","v":7.2656545116981858E-2},{"$f":"'Population 2016'!O21/'Population 2016'!O$5","v":5.554729990786697E-2},{"$f":"'Population 2016'!P21/'Population 2016'!P$5","v":0.26208723092527891},{"$f":"'Population 2016'!Q21/'Population 2016'!Q$5","v":7.9740543589382026E-2},{"$f":"'Population 2016'!R21/'Population 2016'!R$5","v":0.27517698408473945},{"$f":"'Population 2016'!S21/'Population 2016'!S$5","v":0.12804450713275703},{"$f":"'Population 2016'!T21/'Population 2016'!T$5","v":0.19627227167605851},{"$f":"'Population 2016'!U21/'Population 2016'!U$5","v":0},{"$f":"'Population 2016'!V21/'Population 2016'!V$5","v":9.4023095534303658E-2},{"$f":"'Population 2016'!W21/'Population 2016'!W$5","v":0.10337039724406617},{"$f":"'Population 2016'!X21/'Population 2016'!X$5","v":0.10337039724406617},{"$f":"'Population 2016'!Y21/'Population 2016'!Y$5","v":0.10210886949333078},{"$f":"'Population 2016'!Z21/'Population 2016'!Z$5","v":4.9498338117979102E-2},{"$f":"'Population 2016'!AA21/'Population 2016'!AA$5","v":7.7625789203385434E-2},{"$f":"'Population 2016'!AB21/'Population 2016'!AB$5","v":0.16454970676437775},{"$f":"'Population 2016'!AC21/'Population 2016'!AC$5","v":9.0303276026486232E-2},{"$f":"'Population 2016'!AD21/'Population 2016'!AD$5","v":4.9916260374409167E-2},{"$f":"'Population 2016'!AE21/'Population 2016'!AE$5","v":4.4666783026519781E-2},{"$f":"'Population 2016'!AF21/'Population 2016'!AF$5","v":5.6176386312566919E-2},{"$f":"'Population 2016'!AG21/'Population 2016'!AG$5","v":4.4666783026519781E-2},{"$f":"'Population 2016'!AH21/'Population 2016'!AH$5","v":5.4856357337246781E-2},{"$f":"'Population 2016'!AI21/'Population 2016'!AI$5","v":0.14930084653075509},{"$f":"'Population 2016'!AJ21/'Population 2016'!AJ$5","v":7.6234559295095219E-2},{"$f":"'Population 2016'!AK21/'Population 2016'!AK$5","v":9.3308022076109776E-2},{"$f":"'Population 2016'!AL21/'Population 2016'!AL$5","v":4.5103847040669727E-2},{"$f":"'Population 2016'!AM21/'Population 2016'!AM$5","v":4.3322672597078497E-2},{"$f":"'Population 2016'!AN21/'Population 2016'!AN$5","v":3.7307734264208574E-2},{"$f":"'Population 2016'!AO21/'Population 2016'!AO$5","v":3.7307734264208574E-2},{"$f":"'Population 2016'!AP21/'Population 2016'!AP$5","v":8.5569804860263457E-2},{"$f":"'Population 2016'!AQ21/'Population 2016'!AQ$5","v":8.6658080780402255E-2},{"$f":"'Population 2016'!AR21/'Population 2016'!AR$5","v":9.7057041964380988E-2},{"$f":"'Population 2016'!AS21/'Population 2016'!AS$5","v":4.4311615442592746E-2},{"$f":"'Population 2016'!AT21/'Population 2016'!AT$5","v":0},{"$f":"'Population 2016'!AU21/'Population 2016'!AU$5","v":0},{"$f":"'Population 2016'!AV21/'Population 2016'!AV$5","v":9.8205046985534797E-2},{"$f":"'Population 2016'!AW21/'Population 2016'!AW$5","v":6.6999969491732259E-2},{"$f":"'Population 2016'!AX21/'Population 2016'!AX$5","v":0.13556614743728995},{"$f":"'Population 2016'!AY21/'Population 2016'!AY$5","v":9.157614516079679E-2},{"$f":"'Population 2016'!AZ21/'Population 2016'!AZ$5","v":8.119667953356996E-2},{"$f":"'Population 2016'!BA21/'Population 2016'!BA$5","v":1.9299287410926364E-2},{"$f":"'Population 2016'!BB21/'Population 2016'!BB$5","v":8.6961325203869552E-2},{"$f":"'Population 2016'!BC21/'Population 2016'!BC$5","v":0},19]
["All quintiles","Female 0-4",{"$f":"'Population 2016'!C22/'Population 2016'!C$5","v":0},{"$f":"'Population 2016'!D22/'Population 2016'!D$5","v":0},{"$f":"'Population 2016'!E22/'Population 2016'!E$5","v":0},{"$f":"'Population 2016'!F22/'Population 2016'!F$5","v":0},{"$f":"'Population 2016'!G22/'Population 2016'!G$5","v":0},{"$f":"'Population 2016'!H22/'Population 2016'!H$5","v":0},{"$f":"'Population 2016'!I22/'Population 2016'!I$5","v":0},{"$f":"'Population 2016'!J22/'Population 2016'!J$5","v":0},{"$f":"'Population 2016'!K22/'Population 2016'!K$5","v":0},{"$f":"'Population 2016'!L22/'Population 2016'!L$5","v":0},{"$f":"'Population 2016'!M22/'Population 2016'!M$5","v":0},{"$f":"'Population 2016'!N22/'Population 2016'!N$5","v":0},{"$f":"'Population 2016'!O22/'Population 2016'!O$5","v":0},{"$f":"'Population 2016'!P22/'Population 2016'!P$5","v":0},{"$f":"'Population 2016'!Q22/'Population 2016'!Q$5","v":0},{"$f":"'Population 2016'!R22/'Population 2016'!R$5","v":0},{"$f":"'Population 2016'!S22/'Population 2016'!S$5","v":0},{"$f":"'Population 2016'!T22/'Population 2016'!T$5","v":0},{"$f":"'Population 2016'!U22/'Population 2016'!U$5","v":0},{"$f":"'Population 2016'!V22/'Population 2016'!V$5","v":0},{"$f":"'Population 2016'!W22/'Population 2016'!W$5","v":0},{"$f":"'Population 2016'!X22/'Population 2016'!X$5","v":0},{"$f":"'Population 2016'!Y22/'Population 2016'!Y$5","v":0},{"$f":"'Population 2016'!Z22/'Population 2016'!Z$5","v":0},{"$f":"'Population 2016'!AA22/'Population 2016'!AA$5","v":0},{"$f":"'Population 2016'!AB22/'Population 2016'!AB$5","v":0},{"$f":"'Population 2016'!AC22/'Population 2016'!AC$5","v":0},{"$f":"'Population 2016'!AD22/'Population 2016'!AD$5","v":0},{"$f":"'Population 2016'!AE22/'Population 2016'!AE$5","v":0},{"$f":"'Population 2016'!AF22/'Population 2016'!AF$5","v":0},{"$f":"'Population 2016'!AG22/'Population 2016'!AG$5","v":0},{"$f":"'Population 2016'!AH22/'Population 2016'!AH$5","v":0},{"$f":"'Population 2016'!AI22/'Population 2016'!AI$5","v":0},{"$f":"'Population 2016'!AJ22/'Population 2016'!AJ$5","v":0},{"$f":"'Population 2016'!AK22/'Population 2016'!AK$5","v":0},{"$f":"'Population 2016'!AL22/'Population 2016'!AL$5","v":0},{"$f":"'Population 2016'!AM22/'Population 2016'!AM$5","v":0},{"$f":"'Population 2016'!AN22/'Population 2016'!AN$5","v":0},{"$f":"'Population 2016'!AO22/'Population 2016'!AO$5","v":0},{"$f":"'Population 2016'!AP22/'Population 2016'!AP$5","v":0},{"$f":"'Population 2016'!AQ22/'Population 2016'!AQ$5","v":0},{"$f":"'Population 2016'!AR22/'Population 2016'!AR$5","v":0},{"$f":"'Population 2016'!AS22/'Population 2016'!AS$5","v":0},{"$f":"'Population 2016'!AT22/'Population 2016'!AT$5","v":0},{"$f":"'Population 2016'!AU22/'Population 2016'!AU$5","v":0},{"$f":"'Population 2016'!AV22/'Population 2016'!AV$5","v":0},{"$f":"'Population 2016'!AW22/'Population 2016'!AW$5","v":0},{"$f":"'Population 2016'!AX22/'Population 2016'!AX$5","v":0},{"$f":"'Population 2016'!AY22/'Population 2016'!AY$5","v":0},{"$f":"'Population 2016'!AZ22/'Population 2016'!AZ$5","v":0},{"$f":"'Population 2016'!BA22/'Population 2016'!BA$5","v":0},{"$f":"'Population 2016'!BB22/'Population 2016'!BB$5","v":0},{"$f":"'Population 2016'!BC22/'Population 2016'!BC$5","v":0},20]
[null,"Female 5-9",{"$f":"'Population 2016'!C23/'Population 2016'!C$5","v":0},{"$f":"'Population 2016'!D23/'Population 2016'!D$5","v":0},{"$f":"'Population 2016'!E23/'Population 2016'!E$5","v":0},{"$f":"'Population 2016'!F23/'Population 2016'!F$5","v":0},{"$f":"'Population 2016'!G23/'Population 2016'!G$5","v":0},{"$f":"'Population 2016'!H23/'Population 2016'!H$5","v":0},{"$f":"'Population 2016'!I23/'Population 2016'!I$5","v":0},{"$f":"'Population 2016'!J23/'Population 2016'!J$5","v":0},{"$f":"'Population 2016'!K23/'Population 2016'!K$5","v":0},{"$f":"'Population 2016'!L23/'Population 2016'!L$5","v":0},{"$f":"'Population 2016'!M23/'Population 2016'!M$5","v":0},{"$f":"'Population 2016'!N23/'Population 2016'!N$5","v":0},{"$f":"'Population 2016'!O23/'Population 2016'!O$5","v":0},{"$f":"'Population 2016'!P23/'Population 2016'!P$5","v":0},{"$f":"'Population 2016'!Q23/'Population 2016'!Q$5","v":0},{"$f":"'Population 2016'!R23/'Population 2016'!R$5","v":0},{"$f":"'Population 2016'!S23/'Population 2016'!S$5","v":0},{"$f":"'Population 2016'!T23/'Population 2016'!T$5","v":0},{"$f":"'Population 2016'!U23/'Population 2016'!U$5","v":0},{"$f":"'Population 2016'!V23/'Population 2016'!V$5","v":0},{"$f":"'Population 2016'!W23/'Population 2016'!W$5","v":0},{"$f":"'Population 2016'!X23/'Population 2016'!X$5","v":0},{"$f":"'Population 2016'!Y23/'Population 2016'!Y$5","v":0},{"$f":"'Population 2016'!Z23/'Population 2016'!Z$5","v":0},{"$f":"'Population 2016'!AA23/'Population 2016'!AA$5","v":0},{"$f":"'Population 2016'!AB23/'Population 2016'!AB$5","v":0},{"$f":"'Population 2016'!AC23/'Population 2016'!AC$5","v":0},{"$f":"'Population 2016'!AD23/'Population 2016'!AD$5","v":0},{"$f":"'Population 2016'!AE23/'Population 2016'!AE$5","v":0},{"$f":"'Population 2016'!AF23/'Population 2016'!AF$5","v":0},{"$f":"'Population 2016'!AG23/'Population 2016'!AG$5","v":0},{"$f":"'Population 2016'!AH23/'Population 2016'!AH$5","v":0},{"$f":"'Population 2016'!AI23/'Population 2016'!AI$5","v":0},{"$f":"'Population 2016'!AJ23/'Population 2016'!AJ$5","v":0},{"$f":"'Population 2016'!AK23/'Population 2016'!AK$5","v":0},{"$f":"'Population 2016'!AL23/'Population 2016'!AL$5","v":0},{"$f":"'Population 2016'!AM23/'Population 2016'!AM$5","v":0},{"$f":"'Population 2016'!AN23/'Population 2016'!AN$5","v":0},{"$f":"'Population 2016'!AO23/'Population 2016'!AO$5","v":0},{"$f":"'Population 2016'!AP23/'Population 2016'!AP$5","v":0},{"$f":"'Population 2016'!AQ23/'Population 2016'!AQ$5","v":0},{"$f":"'Population 2016'!AR23/'Population 2016'!AR$5","v":0},{"$f":"'Population 2016'!AS23/'Population 2016'!AS$5","v":0},{"$f":"'Population 2016'!AT23/'Population 2016'!AT$5","v":0},{"$f":"'Population 2016'!AU23/'Population 2016'!AU$5","v":0},{"$f":"'Population 2016'!AV23/'Population 2016'!AV$5","v":0},{"$f":"'Population 2016'!AW23/'Population 2016'!AW$5","v":0},{"$f":"'Population 2016'!AX23/'Population 2016'!AX$5","v":0},{"$f":"'Population 2016'!AY23/'Population 2016'!AY$5","v":0},{"$f":"'Population 2016'!AZ23/'Population 2016'!AZ$5","v":0},{"$f":"'Population 2016'!BA23/'Population 2016'!BA$5","v":0},{"$f":"'Population 2016'!BB23/'Population 2016'!BB$5","v":0},{"$f":"'Population 2016'!BC23/'Population 2016'!BC$5","v":0},21]
[null,"Female 10-15",{"$f":"'Population 2016'!C24/'Population 2016'!C$5","v":0},{"$f":"'Population 2016'!D24/'Population 2016'!D$5","v":0},{"$f":"'Population 2016'!E24/'Population 2016'!E$5","v":0},{"$f":"'Population 2016'!F24/'Population 2016'!F$5","v":0},{"$f":"'Population 2016'!G24/'Population 2016'!G$5","v":0},{"$f":"'Population 2016'!H24/'Population 2016'!H$5","v":0},{"$f":"'Population 2016'!I24/'Population 2016'!I$5","v":0},{"$f":"'Population 2016'!J24/'Population 2016'!J$5","v":0},{"$f":"'Population 2016'!K24/'Population 2016'!K$5","v":0},{"$f":"'Population 2016'!L24/'Population 2016'!L$5","v":0},{"$f":"'Population 2016'!M24/'Population 2016'!M$5","v":0},{"$f":"'Population 2016'!N24/'Population 2016'!N$5","v":0},{"$f":"'Population 2016'!O24/'Population 2016'!O$5","v":0},{"$f":"'Population 2016'!P24/'Population 2016'!P$5","v":0},{"$f":"'Population 2016'!Q24/'Population 2016'!Q$5","v":0},{"$f":"'Population 2016'!R24/'Population 2016'!R$5","v":0},{"$f":"'Population 2016'!S24/'Population 2016'!S$5","v":0},{"$f":"'Population 2016'!T24/'Population 2016'!T$5","v":0},{"$f":"'Population 2016'!U24/'Population 2016'!U$5","v":0},{"$f":"'Population 2016'!V24/'Population 2016'!V$5","v":0},{"$f":"'Population 2016'!W24/'Population 2016'!W$5","v":0},{"$f":"'Population 2016'!X24/'Population 2016'!X$5","v":0},{"$f":"'Population 2016'!Y24/'Population 2016'!Y$5","v":0},{"$f":"'Population 2016'!Z24/'Population 2016'!Z$5","v":0},{"$f":"'Population 2016'!AA24/'Population 2016'!AA$5","v":0},{"$f":"'Population 2016'!AB24/'Population 2016'!AB$5","v":0},{"$f":"'Population 2016'!AC24/'Population 2016'!AC$5","v":0},{"$f":"'Population 2016'!AD24/'Population 2016'!AD$5","v":0},{"$f":"'Population 2016'!AE24/'Population 2016'!AE$5","v":0},{"$f":"'Population 2016'!AF24/'Population 2016'!AF$5","v":0},{"$f":"'Population 2016'!AG24/'Population 2016'!AG$5","v":0},{"$f":"'Population 2016'!AH24/'Population 2016'!AH$5","v":0},{"$f":"'Population 2016'!AI24/'Population 2016'!AI$5","v":0},{"$f":"'Population 2016'!AJ24/'Population 2016'!AJ$5","v":0},{"$f":"'Population 2016'!AK24/'Population 2016'!AK$5","v":0},{"$f":"'Population 2016'!AL24/'Population 2016'!AL$5","v":0},{"$f":"'Population 2016'!AM24/'Population 2016'!AM$5","v":0},{"$f":"'Population 2016'!AN24/'Population 2016'!AN$5","v":0},{"$f":"'Population 2016'!AO24/'Population 2016'!AO$5","v":0},{"$f":"'Population 2016'!AP24/'Population 2016'!AP$5","v":0},{"$f":"'Population 2016'!AQ24/'Population 2016'!AQ$5","v":0},{"$f":"'Population 2016'!AR24/'Population 2016'!AR$5","v":0},{"$f":"'Population 2016'!AS24/'Population 2016'!AS$5","v":0},{"$f":"'Population 2016'!AT24/'Population 2016'!AT$5","v":0},{"$f":"'Population 2016'!AU24/'Population 2016'!AU$5","v":0},{"$f":"'Population 2016'!AV24/'Population 2016'!AV$5","v":0},{"$f":"'Population 2016'!AW24/'Population 2016'!AW$5","v":0},{"$f":"'Population 2016'!AX24/'Population 2016'!AX$5","v":0},{"$f":"'Population 2016'!AY24/'Population 2016'!AY$5","v":0},{"$f":"'Population 2016'!AZ24/'Population 2016'!AZ$5","v":0},{"$f":"'Population 2016'!BA24/'Population 2016'!BA$5","v":0},{"$f":"'Population 2016'!BB24/'Population 2016'!BB$5","v":0},{"$f":"'Population 2016'!BC24/'Population 2016'!BC$5","v":0},22]
[null,"Female 16-19",{"$f":"'Population 2016'!C25/'Population 2016'!C$5","v":2.623011147286267E-2},{"$f":"'Population 2016'!D25/'Population 2016'!D$5","v":2.5549426366597225E-2},{"$f":"'Population 2016'!E25/'Population 2016'!E$5","v":2.492511215597298E-2},{"$f":"'Population 2016'!F25/'Population 2016'!F$5","v":2.4929178470254956E-2},{"$f":"'Population 2016'!G25/'Population 2016'!G$5","v":2.3750879662209713E-2},{"$f":"'Population 2016'!H25/'Population 2016'!H$5","v":2.6117576107362529E-2},{"$f":"'Population 2016'!I25/'Population 2016'!I$5","v":2.5060715182983001E-2},{"$f":"'Population 2016'!J25/'Population 2016'!J$5","v":3.2160420623139251E-2},{"$f":"'Population 2016'!K25/'Population 2016'!K$5","v":2.6461276756603504E-2},{"$f":"'Population 2016'!L25/'Population 2016'!L$5","v":2.3882896764252697E-2},{"$f":"'Population 2016'!M25/'Population 2016'!M$5","v":2.3882896764252697E-2},{"$f":"'Population 2016'!N25/'Population 2016'!N$5","v":3.1714903432700267E-2},{"$f":"'Population 2016'!O25/'Population 2016'!O$5","v":2.6074637659622948E-2},{"$f":"'Population 2016'!P25/'Population 2016'!P$5","v":2.6135467147526202E-2},{"$f":"'Population 2016'!Q25/'Population 2016'!Q$5","v":2.7261724304062231E-2},{"$f":"'Population 2016'!R25/'Population 2016'!R$5","v":3.0193750998030552E-2},{"$f":"'Population 2016'!S25/'Population 2016'!S$5","v":2.6372929946987578E-2},{"$f":"'Population 2016'!T25/'Population 2016'!T$5","v":2.4385420398970698E-2},{"$f":"'Population 2016'!U25/'Population 2016'!U$5","v":2.2396317443455938E-2},{"$f":"'Population 2016'!V25/'Population 2016'!V$5","v":2.505705192297418E-2},{"$f":"'Population 2016'!W25/'Population 2016'!W$5","v":2.7889448878604253E-2},{"$f":"'Population 2016'!X25/'Population 2016'!X$5","v":2.7889448878604253E-2},{"$f":"'Population 2016'!Y25/'Population 2016'!Y$5","v":2.8461391710783612E-2},{"$f":"'Population 2016'!Z25/'Population 2016'!Z$5","v":2.644686333077163E-2},{"$f":"'Population 2016'!AA25/'Population 2016'!AA$5","v":2.7062957551936443E-2},{"$f":"'Population 2016'!AB25/'Population 2016'!AB$5","v":2.5587750632017441E-2},{"$f":"'Population 2016'!AC25/'Population 2016'!AC$5","v":2.6653786244288106E-2},{"$f":"'Population 2016'!AD25/'Population 2016'!AD$5","v":2.4236108526554764E-2},{"$f":"'Population 2016'!AE25/'Population 2016'!AE$5","v":2.4420168584893067E-2},{"$f":"'Population 2016'!AF25/'Population 2016'!AF$5","v":2.5863759067396581E-2},{"$f":"'Population 2016'!AG25/'Population 2016'!AG$5","v":2.4420168584893067E-2},{"$f":"'Population 2016'!AH25/'Population 2016'!AH$5","v":2.779785070079786E-2},{"$f":"'Population 2016'!AI25/'Population 2016'!AI$5","v":2.5909965876279639E-2},{"$f":"'Population 2016'!AJ25/'Population 2016'!AJ$5","v":2.8065136770487688E-2},{"$f":"'Population 2016'!AK25/'Population 2016'!AK$5","v":2.5784795645122763E-2},{"$f":"'Population 2016'!AL25/'Population 2016'!AL$5","v":2.6923963746652242E-2},{"$f":"'Population 2016'!AM25/'Population 2016'!AM$5","v":2.9175163261388457E-2},{"$f":"'Population 2016'!AN25/'Population 2016'!AN$5","v":2.1544671102868986E-2},{"$f":"'Population 2016'!AO25/'Population 2016'!AO$5","v":2.1544671102868986E-2},{"$f":"'Population 2016'!AP25/'Population 2016'!AP$5","v":2.5062219615427293E-2},{"$f":"'Population 2016'!AQ25/'Population 2016'!AQ$5","v":2.6429002027730585E-2},{"$f":"'Population 2016'!AR25/'Population 2016'!AR$5","v":2.6466639175919175E-2},{"$f":"'Population 2016'!AS25/'Population 2016'!AS$5","v":2.5060715182983001E-2},{"$f":"'Population 2016'!AT25/'Population 2016'!AT$5","v":2.7732377286866665E-2},{"$f":"'Population 2016'!AU25/'Population 2016'!AU$5","v":2.7732377286866665E-2},{"$f":"'Population 2016'!AV25/'Population 2016'!AV$5","v":2.5203252032520326E-2},{"$f":"'Population 2016'!AW25/'Population 2016'!AW$5","v":2.6347702727439137E-2},{"$f":"'Population 2016'!AX25/'Population 2016'!AX$5","v":3.5242853674431682E-2},{"$f":"'Population 2016'!AY25/'Population 2016'!AY$5","v":2.7632263394632966E-2},{"$f":"'Population 2016'!AZ25/'Population 2016'!AZ$5","v":2.7405928746886344E-2},{"$f":"'Population 2016'!BA25/'Population 2016'!BA$5","v":2.6276722090261283E-2},{"$f":"'Population 2016'!BB25/'Population 2016'!BB$5","v":2.8572809567541067E-2},{"$f":"'Population 2016'!BC25/'Population 2016'!BC$5","v":2.2396317443455938E-2},23]
[null,"Female 20-24",{"$f":"'Population 2016'!C26/'Population 2016'!C$5","v":5.7172647493266136E-2},{"$f":"'Population 2016'!D26/'Population 2016'!D$5","v":4.2885576518685874E-2},{"$f":"'Population 2016'!E26/'Population 2016'!E$5","v":2.9781688457193218E-2},{"$f":"'Population 2016'!F26/'Population 2016'!F$5","v":3.1140870460983777E-2},{"$f":"'Population 2016'!G26/'Population 2016'!G$5","v":2.5672603258810156E-2},{"$f":"'Population 2016'!H26/'Population 2016'!H$5","v":3.3879894816366364E-2},{"$f":"'Population 2016'!I26/'Population 2016'!I$5","v":2.8860648186919018E-2},{"$f":"'Population 2016'!J26/'Population 2016'!J$5","v":4.5114153736430511E-2},{"$f":"'Population 2016'!K26/'Population 2016'!K$5","v":3.3336483485328167E-2},{"$f":"'Population 2016'!L26/'Population 2016'!L$5","v":3.0157419026893079E-2},{"$f":"'Population 2016'!M26/'Population 2016'!M$5","v":3.0157419026893079E-2},{"$f":"'Population 2016'!N26/'Population 2016'!N$5","v":5.937100650211781E-2},{"$f":"'Population 2016'!O26/'Population 2016'!O$5","v":3.4832228727672603E-2},{"$f":"'Population 2016'!P26/'Population 2016'!P$5","v":3.2086103910740446E-2},{"$f":"'Population 2016'!Q26/'Population 2016'!Q$5","v":3.694433672929813E-2},{"$f":"'Population 2016'!R26/'Population 2016'!R$5","v":3.3147921435034866E-2},{"$f":"'Population 2016'!S26/'Population 2016'!S$5","v":4.4659832542177799E-2},{"$f":"'Population 2016'!T26/'Population 2016'!T$5","v":5.7679511221341719E-2},{"$f":"'Population 2016'!U26/'Population 2016'!U$5","v":2.4742176780418713E-2},{"$f":"'Population 2016'!V26/'Population 2016'!V$5","v":3.4078506498958182E-2},{"$f":"'Population 2016'!W26/'Population 2016'!W$5","v":4.042384902502958E-2},{"$f":"'Population 2016'!X26/'Population 2016'!X$5","v":4.042384902502958E-2},{"$f":"'Population 2016'!Y26/'Population 2016'!Y$5","v":3.9367418641992974E-2},{"$f":"'Population 2016'!Z26/'Population 2016'!Z$5","v":5.5940671682962857E-2},{"$f":"'Population 2016'!AA26/'Population 2016'!AA$5","v":4.2530446989915337E-2},{"$f":"'Population 2016'!AB26/'Population 2016'!AB$5","v":4.1061175194211028E-2},{"$f":"'Population 2016'!AC26/'Population 2016'!AC$5","v":4.643985263362576E-2},{"$f":"'Population 2016'!AD26/'Population 2016'!AD$5","v":2.8054635453496596E-2},{"$f":"'Population 2016'!AE26/'Population 2016'!AE$5","v":2.8958202856292158E-2},{"$f":"'Population 2016'!AF26/'Population 2016'!AF$5","v":3.5937806330965633E-2},{"$f":"'Population 2016'!AG26/'Population 2016'!AG$5","v":2.8958202856292158E-2},{"$f":"'Population 2016'!AH26/'Population 2016'!AH$5","v":3.5508949221180905E-2},{"$f":"'Population 2016'!AI26/'Population 2016'!AI$5","v":4.8495056435383675E-2},{"$f":"'Population 2016'!AJ26/'Population 2016'!AJ$5","v":3.4520257647157236E-2},{"$f":"'Population 2016'!AK26/'Population 2016'!AK$5","v":3.1680977584451174E-2},{"$f":"'Population 2016'!AL26/'Population 2016'!AL$5","v":3.5180291232862135E-2},{"$f":"'Population 2016'!AM26/'Population 2016'!AM$5","v":3.6462615586889832E-2},{"$f":"'Population 2016'!AN26/'Population 2016'!AN$5","v":2.9126213592233011E-2},{"$f":"'Population 2016'!AO26/'Population 2016'!AO$5","v":2.9126213592233011E-2},{"$f":"'Population 2016'!AP26/'Population 2016'!AP$5","v":3.0547057051820616E-2},{"$f":"'Population 2016'!AQ26/'Population 2016'!AQ$5","v":3.7362306132514934E-2},{"$f":"'Population 2016'!AR26/'Population 2016'!AR$5","v":4.0607665819443708E-2},{"$f":"'Population 2016'!AS26/'Population 2016'!AS$5","v":2.8860648186919018E-2},{"$f":"'Population 2016'!AT26/'Population 2016'!AT$5","v":2.963041071334423E-2},{"$f":"'Population 2016'!AU26/'Population 2016'!AU$5","v":2.963041071334423E-2},{"$f":"'Population 2016'!AV26/'Population 2016'!AV$5","v":3.1316650828845952E-2},{"$f":"'Population 2016'!AW26/'Population 2016'!AW$5","v":3.4504850814570748E-2},{"$f":"'Population 2016'!AX26/'Population 2016'!AX$5","v":5.1484212274940259E-2},{"$f":"'Population 2016'!AY26/'Population 2016'!AY$5","v":4.0745387228052994E-2},{"$f":"'Population 2016'!AZ26/'Population 2016'!AZ$5","v":4.1028355126530941E-2},{"$f":"'Population 2016'!BA26/'Population 2016'!BA$5","v":3.8153206650831356E-2},{"$f":"'Population 2016'!BB26/'Population 2016'!BB$5","v":3.4946106626709848E-2},{"$f":"'Population 2016'!BC26/'Population 2016'!BC$5","v":2.4742176780418713E-2},24]
[null,"Female 25-29",{"$f":"'Population 2016'!C27/'Population 2016'!C$5","v":5.9523748677505581E-2},{"$f":"'Population 2016'!D27/'Population 2016'!D$5","v":4.5020196981700455E-2},{"$f":"'Population 2016'!E27/'Population 2016'!E$5","v":3.171775603673372E-2},{"$f":"'Population 2016'!F27/'Population 2016'!F$5","v":3.0069533865567859E-2},{"$f":"'Population 2016'!G27/'Population 2016'!G$5","v":2.5442537757808695E-2},{"$f":"'Population 2016'!H27/'Population 2016'!H$5","v":3.3698320109722998E-2},{"$f":"'Population 2016'!I27/'Population 2016'!I$5","v":2.5992379197722133E-2},{"$f":"'Population 2016'!J27/'Population 2016'!J$5","v":3.8645580222751136E-2},{"$f":"'Population 2016'!K27/'Population 2016'!K$5","v":3.326560506544441E-2},{"$f":"'Population 2016'!L27/'Population 2016'!L$5","v":3.0546598255841658E-2},{"$f":"'Population 2016'!M27/'Population 2016'!M$5","v":3.0546598255841658E-2},{"$f":"'Population 2016'!N27/'Population 2016'!N$5","v":5.532828059571937E-2},{"$f":"'Population 2016'!O27/'Population 2016'!O$5","v":3.6714516400669701E-2},{"$f":"'Population 2016'!P27/'Population 2016'!P$5","v":2.7825988955257522E-2},{"$f":"'Population 2016'!Q27/'Population 2016'!Q$5","v":3.2855078083688795E-2},{"$f":"'Population 2016'!R27/'Population 2016'!R$5","v":2.9914302443178793E-2},{"$f":"'Population 2016'!S27/'Population 2016'!S$5","v":4.5971461910671509E-2},{"$f":"'Population 2016'!T27/'Population 2016'!T$5","v":6.394978199466736E-2},{"$f":"'Population 2016'!U27/'Population 2016'!U$5","v":2.7043774620457664E-2},{"$f":"'Population 2016'!V27/'Population 2016'!V$5","v":3.5421802611795054E-2},{"$f":"'Population 2016'!W27/'Population 2016'!W$5","v":3.642983677498219E-2},{"$f":"'Population 2016'!X27/'Population 2016'!X$5","v":3.642983677498219E-2},{"$f":"'Population 2016'!Y27/'Population 2016'!Y$5","v":3.6966820877251554E-2},{"$f":"'Population 2016'!Z27/'Population 2016'!Z$5","v":6.3112800847104925E-2},{"$f":"'Population 2016'!AA27/'Population 2016'!AA$5","v":4.4985340399705809E-2},{"$f":"'Population 2016'!AB27/'Population 2016'!AB$5","v":4.3026314442749965E-2},{"$f":"'Population 2016'!AC27/'Population 2016'!AC$5","v":4.9786831767755231E-2},{"$f":"'Population 2016'!AD27/'Population 2016'!AD$5","v":2.9885741933082736E-2},{"$f":"'Population 2016'!AE27/'Population 2016'!AE$5","v":3.1571166028398649E-2},{"$f":"'Population 2016'!AF27/'Population 2016'!AF$5","v":3.4640848150326503E-2},{"$f":"'Population 2016'!AG27/'Population 2016'!AG$5","v":3.1571166028398649E-2},{"$f":"'Population 2016'!AH27/'Population 2016'!AH$5","v":3.6361609838105942E-2},{"$f":"'Population 2016'!AI27/'Population 2016'!AI$5","v":5.2571856680374486E-2},{"$f":"'Population 2016'!AJ27/'Population 2016'!AJ$5","v":3.6987982042773891E-2},{"$f":"'Population 2016'!AK27/'Population 2016'!AK$5","v":3.2774725620104847E-2},{"$f":"'Population 2016'!AL27/'Population 2016'!AL$5","v":3.3903265284404321E-2},{"$f":"'Population 2016'!AM27/'Population 2016'!AM$5","v":3.8418492453575093E-2},{"$f":"'Population 2016'!AN27/'Population 2016'!AN$5","v":3.2453365332169741E-2},{"$f":"'Population 2016'!AO27/'Population 2016'!AO$5","v":3.2453365332169741E-2},{"$f":"'Population 2016'!AP27/'Population 2016'!AP$5","v":3.0832395415563624E-2},{"$f":"'Population 2016'!AQ27/'Population 2016'!AQ$5","v":3.8526881131144844E-2},{"$f":"'Population 2016'!AR27/'Population 2016'!AR$5","v":4.1876606643716126E-2},{"$f":"'Population 2016'!AS27/'Population 2016'!AS$5","v":2.5992379197722133E-2},{"$f":"'Population 2016'!AT27/'Population 2016'!AT$5","v":3.6589866610428637E-2},{"$f":"'Population 2016'!AU27/'Population 2016'!AU$5","v":3.6589866610428637E-2},{"$f":"'Population 2016'!AV27/'Population 2016'!AV$5","v":3.0239679020166825E-2},{"$f":"'Population 2016'!AW27/'Population 2016'!AW$5","v":3.4195954603697599E-2},{"$f":"'Population 2016'!AX27/'Population 2016'!AX$5","v":4.1555388016407478E-2},{"$f":"'Population 2016'!AY27/'Population 2016'!AY$5","v":3.8002203114959762E-2},{"$f":"'Population 2016'!AZ27/'Population 2016'!AZ$5","v":3.93859553244243E-2},{"$f":"'Population 2016'!BA27/'Population 2016'!BA$5","v":3.9070935003239042E-2},{"$f":"'Population 2016'!BB27/'Population 2016'!BB$5","v":3.8108587724325557E-2},{"$f":"'Population 2016'!BC27/'Population 2016'!BC$5","v":2.7043774620457664E-2},25]
[null,"Female 30-34",{"$f":"'Population 2016'!C28/'Population 2016'!C$5","v":4.9638901524638006E-2},{"$f":"'Population 2016'!D28/'Population 2016'!D$5","v":4.3873419207182886E-2},{"$f":"'Population 2016'!E28/'Population 2016'!E$5","v":3.8585404956895539E-2},{"$f":"'Population 2016'!F28/'Population 2016'!F$5","v":3.3355652845737833E-2},{"$f":"'Population 2016'!G28/'Population 2016'!G$5","v":2.5983868348400368E-2},{"$f":"'Population 2016'!H28/'Population 2016'!H$5","v":3.2988233310528414E-2},{"$f":"'Population 2016'!I28/'Population 2016'!I$5","v":2.960388577171091E-2},{"$f":"'Population 2016'!J28/'Population 2016'!J$5","v":3.3138999693157409E-2},{"$f":"'Population 2016'!K28/'Population 2016'!K$5","v":3.4541416623352077E-2},{"$f":"'Population 2016'!L28/'Population 2016'!L$5","v":2.9807951964163741E-2},{"$f":"'Population 2016'!M28/'Population 2016'!M$5","v":2.9807951964163741E-2},{"$f":"'Population 2016'!N28/'Population 2016'!N$5","v":4.3087581678334042E-2},{"$f":"'Population 2016'!O28/'Population 2016'!O$5","v":3.5882347113660458E-2},{"$f":"'Population 2016'!P28/'Population 2016'!P$5","v":2.7465344302941508E-2},{"$f":"'Population 2016'!Q28/'Population 2016'!Q$5","v":3.4887956663258952E-2},{"$f":"'Population 2016'!R28/'Population 2016'!R$5","v":2.9222334593069676E-2},{"$f":"'Population 2016'!S28/'Population 2016'!S$5","v":4.2950124543003967E-2},{"$f":"'Population 2016'!T28/'Population 2016'!T$5","v":5.3503208424265834E-2},{"$f":"'Population 2016'!U28/'Population 2016'!U$5","v":2.938963395742044E-2},{"$f":"'Population 2016'!V28/'Population 2016'!V$5","v":3.9795147342792374E-2},{"$f":"'Population 2016'!W28/'Population 2016'!W$5","v":3.556043639976729E-2},{"$f":"'Population 2016'!X28/'Population 2016'!X$5","v":3.556043639976729E-2},{"$f":"'Population 2016'!Y28/'Population 2016'!Y$5","v":3.6605141412696142E-2},{"$f":"'Population 2016'!Z28/'Population 2016'!Z$5","v":5.1701275496870785E-2},{"$f":"'Population 2016'!AA28/'Population 2016'!AA$5","v":4.205275595834853E-2},{"$f":"'Population 2016'!AB28/'Population 2016'!AB$5","v":4.2735637595570246E-2},{"$f":"'Population 2016'!AC28/'Population 2016'!AC$5","v":4.3462116871215775E-2},{"$f":"'Population 2016'!AD28/'Population 2016'!AD$5","v":3.2584018757676129E-2},{"$f":"'Population 2016'!AE28/'Population 2016'!AE$5","v":3.50876292364398E-2},{"$f":"'Population 2016'!AF28/'Population 2016'!AF$5","v":3.3630427242154155E-2},{"$f":"'Population 2016'!AG28/'Population 2016'!AG$5","v":3.50876292364398E-2},{"$f":"'Population 2016'!AH28/'Population 2016'!AH$5","v":3.9521469771416365E-2},{"$f":"'Population 2016'!AI28/'Population 2016'!AI$5","v":4.7784145594540202E-2},{"$f":"'Population 2016'!AJ28/'Population 2016'!AJ$5","v":4.0124919833812007E-2},{"$f":"'Population 2016'!AK28/'Population 2016'!AK$5","v":3.6885709616182441E-2},{"$f":"'Population 2016'!AL28/'Population 2016'!AL$5","v":3.2599634628686966E-2},{"$f":"'Population 2016'!AM28/'Population 2016'!AM$5","v":4.108790217718071E-2},{"$f":"'Population 2016'!AN28/'Population 2016'!AN$5","v":3.2398821861023233E-2},{"$f":"'Population 2016'!AO28/'Population 2016'!AO$5","v":3.2398821861023233E-2},{"$f":"'Population 2016'!AP28/'Population 2016'!AP$5","v":3.4755797917029943E-2},{"$f":"'Population 2016'!AQ28/'Population 2016'!AQ$5","v":3.7519866279388393E-2},{"$f":"'Population 2016'!AR28/'Population 2016'!AR$5","v":4.0012627030533668E-2},{"$f":"'Population 2016'!AS28/'Population 2016'!AS$5","v":2.960388577171091E-2},{"$f":"'Population 2016'!AT28/'Population 2016'!AT$5","v":3.3795539621447775E-2},{"$f":"'Population 2016'!AU28/'Population 2016'!AU$5","v":3.3795539621447775E-2},{"$f":"'Population 2016'!AV28/'Population 2016'!AV$5","v":3.0366381585893783E-2},{"$f":"'Population 2016'!AW28/'Population 2016'!AW$5","v":3.7872200866434801E-2},{"$f":"'Population 2016'!AX28/'Population 2016'!AX$5","v":3.2380489924224029E-2},{"$f":"'Population 2016'!AY28/'Population 2016'!AY$5","v":3.65105106942872E-2},{"$f":"'Population 2016'!AZ28/'Population 2016'!AZ$5","v":3.7346618267167536E-2},{"$f":"'Population 2016'!BA28/'Population 2016'!BA$5","v":4.0123623407471387E-2},{"$f":"'Population 2016'!BB28/'Population 2016'!BB$5","v":4.2182526256188589E-2},{"$f":"'Population 2016'!BC28/'Population 2016'!BC$5","v":2.938963395742044E-2},26]
[null,"Female 35-39",{"$f":"'Population 2016'!C29/'Population 2016'!C$5","v":3.8757391913234143E-2},{"$f":"'Population 2016'!D29/'Population 2016'!D$5","v":3.9330320902164449E-2},{"$f":"'Population 2016'!E29/'Population 2016'!E$5","v":3.9855802811751412E-2},{"$f":"'Population 2016'!F29/'Population 2016'!F$5","v":3.3747102755601339E-2},{"$f":"'Population 2016'!G29/'Population 2016'!G$5","v":2.818979050506144E-2},{"$f":"'Population 2016'!H29/'Population 2016'!H$5","v":3.3049839014568129E-2},{"$f":"'Population 2016'!I29/'Population 2016'!I$5","v":2.9363118666778328E-2},{"$f":"'Population 2016'!J29/'Population 2016'!J$5","v":3.4250267450635662E-2},{"$f":"'Population 2016'!K29/'Population 2016'!K$5","v":3.5533714501724711E-2},{"$f":"'Population 2016'!L29/'Population 2016'!L$5","v":2.8688068876781089E-2},{"$f":"'Population 2016'!M29/'Population 2016'!M$5","v":2.8688068876781089E-2},{"$f":"'Population 2016'!N29/'Population 2016'!N$5","v":3.4785124697599278E-2},{"$f":"'Population 2016'!O29/'Population 2016'!O$5","v":3.5139338821687918E-2},{"$f":"'Population 2016'!P29/'Population 2016'!P$5","v":3.4306322551560915E-2},{"$f":"'Population 2016'!Q29/'Population 2016'!Q$5","v":3.726160679662989E-2},{"$f":"'Population 2016'!R29/'Population 2016'!R$5","v":3.8617128865705008E-2},{"$f":"'Population 2016'!S29/'Population 2016'!S$5","v":3.89128481422703E-2},{"$f":"'Population 2016'!T29/'Population 2016'!T$5","v":4.2807685327799057E-2},{"$f":"'Population 2016'!U29/'Population 2016'!U$5","v":3.301907670517417E-2},{"$f":"'Population 2016'!V29/'Population 2016'!V$5","v":3.9009013822211704E-2},{"$f":"'Population 2016'!W29/'Population 2016'!W$5","v":3.586439968884618E-2},{"$f":"'Population 2016'!X29/'Population 2016'!X$5","v":3.586439968884618E-2},{"$f":"'Population 2016'!Y29/'Population 2016'!Y$5","v":3.6728350900621612E-2},{"$f":"'Population 2016'!Z29/'Population 2016'!Z$5","v":4.073498353604358E-2},{"$f":"'Population 2016'!AA29/'Population 2016'!AA$5","v":3.8732836508085206E-2},{"$f":"'Population 2016'!AB29/'Population 2016'!AB$5","v":3.8181017983071143E-2},{"$f":"'Population 2016'!AC29/'Population 2016'!AC$5","v":3.8513014535984165E-2},{"$f":"'Population 2016'!AD29/'Population 2016'!AD$5","v":3.259890580222561E-2},{"$f":"'Population 2016'!AE29/'Population 2016'!AE$5","v":3.4271399090339737E-2},{"$f":"'Population 2016'!AF29/'Population 2016'!AF$5","v":3.3916964514620944E-2},{"$f":"'Population 2016'!AG29/'Population 2016'!AG$5","v":3.4271399090339737E-2},{"$f":"'Population 2016'!AH29/'Population 2016'!AH$5","v":3.9127648310004363E-2},{"$f":"'Population 2016'!AI29/'Population 2016'!AI$5","v":4.1435164931315077E-2},{"$f":"'Population 2016'!AJ29/'Population 2016'!AJ$5","v":4.0334049019881212E-2},{"$f":"'Population 2016'!AK29/'Population 2016'!AK$5","v":3.2271852960034195E-2},{"$f":"'Population 2016'!AL29/'Population 2016'!AL$5","v":3.2626239335946508E-2},{"$f":"'Population 2016'!AM29/'Population 2016'!AM$5","v":4.0160671662603994E-2},{"$f":"'Population 2016'!AN29/'Population 2016'!AN$5","v":3.2017017562997706E-2},{"$f":"'Population 2016'!AO29/'Population 2016'!AO$5","v":3.2017017562997706E-2},{"$f":"'Population 2016'!AP29/'Population 2016'!AP$5","v":3.1751819032068862E-2},{"$f":"'Population 2016'!AQ29/'Population 2016'!AQ$5","v":3.6430646133611001E-2},{"$f":"'Population 2016'!AR29/'Population 2016'!AR$5","v":3.708911747348892E-2},{"$f":"'Population 2016'!AS29/'Population 2016'!AS$5","v":2.9363118666778328E-2},{"$f":"'Population 2016'!AT29/'Population 2016'!AT$5","v":3.690620551484157E-2},{"$f":"'Population 2016'!AU29/'Population 2016'!AU$5","v":3.690620551484157E-2},{"$f":"'Population 2016'!AV29/'Population 2016'!AV$5","v":3.1327209375989866E-2},{"$f":"'Population 2016'!AW29/'Population 2016'!AW$5","v":3.803999633900787E-2},{"$f":"'Population 2016'!AX29/'Population 2016'!AX$5","v":3.3556103607345032E-2},{"$f":"'Population 2016'!AY29/'Population 2016'!AY$5","v":3.4550656344665094E-2},{"$f":"'Population 2016'!AZ29/'Population 2016'!AZ$5","v":3.3394503857194634E-2},{"$f":"'Population 2016'!BA29/'Population 2016'!BA$5","v":3.6169293889008851E-2},{"$f":"'Population 2016'!BB29/'Population 2016'!BB$5","v":4.0359611387693943E-2},{"$f":"'Population 2016'!BC29/'Population 2016'!BC$5","v":3.301907670517417E-2},27]
[null,"Female 40-44",{"$f":"'Population 2016'!C30/'Population 2016'!C$5","v":3.4878074959239058E-2},{"$f":"'Population 2016'!D30/'Population 2016'!D$5","v":3.887307688545915E-2},{"$f":"'Population 2016'!E30/'Population 2016'!E$5","v":4.2537232970340191E-2},{"$f":"'Population 2016'!F30/'Population 2016'!F$5","v":3.7723409734741177E-2},{"$f":"'Population 2016'!G30/'Population 2016'!G$5","v":3.4252693119688191E-2},{"$f":"'Population 2016'!H30/'Population 2016'!H$5","v":3.8328475129128799E-2},{"$f":"'Population 2016'!I30/'Population 2016'!I$5","v":3.8281969684281048E-2},{"$f":"'Population 2016'!J30/'Population 2016'!J$5","v":3.8977301941401359E-2},{"$f":"'Population 2016'!K30/'Population 2016'!K$5","v":4.1014978972735434E-2},{"$f":"'Population 2016'!L30/'Population 2016'!L$5","v":3.3795053452575732E-2},{"$f":"'Population 2016'!M30/'Population 2016'!M$5","v":3.3795053452575732E-2},{"$f":"'Population 2016'!N30/'Population 2016'!N$5","v":3.180331294556385E-2},{"$f":"'Population 2016'!O30/'Population 2016'!O$5","v":3.9646922459654649E-2},{"$f":"'Population 2016'!P30/'Population 2016'!P$5","v":3.8487546489349711E-2},{"$f":"'Population 2016'!Q30/'Population 2016'!Q$5","v":4.0622319361699626E-2},{"$f":"'Population 2016'!R30/'Population 2016'!R$5","v":4.23431095970618E-2},{"$f":"'Population 2016'!S30/'Population 2016'!S$5","v":3.9161757618660087E-2},{"$f":"'Population 2016'!T30/'Population 2016'!T$5","v":3.7405247949074696E-2},{"$f":"'Population 2016'!U30/'Population 2016'!U$5","v":3.6559996459080243E-2},{"$f":"'Population 2016'!V30/'Population 2016'!V$5","v":4.4252448080842E-2},{"$f":"'Population 2016'!W30/'Population 2016'!W$5","v":3.8551042953608013E-2},{"$f":"'Population 2016'!X30/'Population 2016'!X$5","v":3.8551042953608013E-2},{"$f":"'Population 2016'!Y30/'Population 2016'!Y$5","v":4.17242969110189E-2},{"$f":"'Population 2016'!Z30/'Population 2016'!Z$5","v":3.5899361767615275E-2},{"$f":"'Population 2016'!AA30/'Population 2016'!AA$5","v":3.8743466628398233E-2},{"$f":"'Population 2016'!AB30/'Population 2016'!AB$5","v":3.8946603481981104E-2},{"$f":"'Population 2016'!AC30/'Population 2016'!AC$5","v":3.7361844024152858E-2},{"$f":"'Population 2016'!AD30/'Population 2016'!AD$5","v":3.7154341434366744E-2},{"$f":"'Population 2016'!AE30/'Population 2016'!AE$5","v":3.8255012885142561E-2},{"$f":"'Population 2016'!AF30/'Population 2016'!AF$5","v":3.7310169056990757E-2},{"$f":"'Population 2016'!AG30/'Population 2016'!AG$5","v":3.8255012885142561E-2},{"$f":"'Population 2016'!AH30/'Population 2016'!AH$5","v":4.1224933356863544E-2},{"$f":"'Population 2016'!AI30/'Population 2016'!AI$5","v":3.9532111295826407E-2},{"$f":"'Population 2016'!AJ30/'Population 2016'!AJ$5","v":4.01528037252879E-2},{"$f":"'Population 2016'!AK30/'Population 2016'!AK$5","v":3.9324642017525113E-2},{"$f":"'Population 2016'!AL30/'Population 2016'!AL$5","v":3.9064578492754652E-2},{"$f":"'Population 2016'!AM30/'Population 2016'!AM$5","v":4.2214342372623517E-2},{"$f":"'Population 2016'!AN30/'Population 2016'!AN$5","v":3.7035016908476055E-2},{"$f":"'Population 2016'!AO30/'Population 2016'!AO$5","v":3.7035016908476055E-2},{"$f":"'Population 2016'!AP30/'Population 2016'!AP$5","v":3.6444049902509393E-2},{"$f":"'Population 2016'!AQ30/'Population 2016'!AQ$5","v":3.9095467748122982E-2},{"$f":"'Population 2016'!AR30/'Population 2016'!AR$5","v":3.847568483484276E-2},{"$f":"'Population 2016'!AS30/'Population 2016'!AS$5","v":3.8281969684281048E-2},{"$f":"'Population 2016'!AT30/'Population 2016'!AT$5","v":3.8013391680286814E-2},{"$f":"'Population 2016'!AU30/'Population 2016'!AU$5","v":3.8013391680286814E-2},{"$f":"'Population 2016'!AV30/'Population 2016'!AV$5","v":3.6046879949318975E-2},{"$f":"'Population 2016'!AW30/'Population 2016'!AW$5","v":4.0183202147782052E-2},{"$f":"'Population 2016'!AX30/'Population 2016'!AX$5","v":3.7875206051854786E-2},{"$f":"'Population 2016'!AY30/'Population 2016'!AY$5","v":3.6736941954040571E-2},{"$f":"'Population 2016'!AZ30/'Population 2016'!AZ$5","v":3.5140452508470872E-2},{"$f":"'Population 2016'!BA30/'Population 2016'!BA$5","v":3.7788814510904774E-2},{"$f":"'Population 2016'!BB30/'Population 2016'!BB$5","v":4.4896183617243117E-2},{"$f":"'Population 2016'!BC30/'Population 2016'!BC$5","v":3.6559996459080243E-2},28]
[null,"Female 45-49",{"$f":"'Population 2016'!C31/'Population 2016'!C$5","v":3.6079180999013562E-2},{"$f":"'Population 2016'!D31/'Population 2016'!D$5","v":4.2936924777246366E-2},{"$f":"'Population 2016'!E31/'Population 2016'!E$5","v":4.9226744921924442E-2},{"$f":"'Population 2016'!F31/'Population 2016'!F$5","v":4.4172031934071591E-2},{"$f":"'Population 2016'!G31/'Population 2016'!G$5","v":4.2873382774860608E-2},{"$f":"'Population 2016'!H31/'Population 2016'!H$5","v":4.745908894890942E-2},{"$f":"'Population 2016'!I31/'Population 2016'!I$5","v":4.8059207771543419E-2},{"$f":"'Population 2016'!J31/'Population 2016'!J$5","v":4.7568894454442172E-2},{"$f":"'Population 2016'!K31/'Population 2016'!K$5","v":4.9756650758399093E-2},{"$f":"'Population 2016'!L31/'Population 2016'!L$5","v":4.5375121122106968E-2},{"$f":"'Population 2016'!M31/'Population 2016'!M$5","v":4.5375121122106968E-2},{"$f":"'Population 2016'!N31/'Population 2016'!N$5","v":3.6850692407230289E-2},{"$f":"'Population 2016'!O31/'Population 2016'!O$5","v":4.9523979354276264E-2},{"$f":"'Population 2016'!P31/'Population 2016'!P$5","v":4.8461625154964501E-2},{"$f":"'Population 2016'!Q31/'Population 2016'!Q$5","v":5.1244991245696293E-2},{"$f":"'Population 2016'!R31/'Population 2016'!R$5","v":5.0939479427263533E-2},{"$f":"'Population 2016'!S31/'Population 2016'!S$5","v":4.4161130931680524E-2},{"$f":"'Population 2016'!T31/'Population 2016'!T$5","v":3.7493659930294132E-2},{"$f":"'Population 2016'!U31/'Population 2016'!U$5","v":4.3995927942283006E-2},{"$f":"'Population 2016'!V31/'Population 2016'!V$5","v":4.8808969554498899E-2},{"$f":"'Population 2016'!W31/'Population 2016'!W$5","v":4.5666398656024683E-2},{"$f":"'Population 2016'!X31/'Population 2016'!X$5","v":4.5666398656024683E-2},{"$f":"'Population 2016'!Y31/'Population 2016'!Y$5","v":4.8214654774963832E-2},{"$f":"'Population 2016'!Z31/'Population 2016'!Z$5","v":4.1046646908628429E-2},{"$f":"'Population 2016'!AA31/'Population 2016'!AA$5","v":4.6316098586393316E-2},{"$f":"'Population 2016'!AB31/'Population 2016'!AB$5","v":4.3331320430283614E-2},{"$f":"'Population 2016'!AC31/'Population 2016'!AC$5","v":4.492771311134601E-2},{"$f":"'Population 2016'!AD31/'Population 2016'!AD$5","v":4.5148684357437942E-2},{"$f":"'Population 2016'!AE31/'Population 2016'!AE$5","v":4.6011766034558879E-2},{"$f":"'Population 2016'!AF31/'Population 2016'!AF$5","v":4.893754995551132E-2},{"$f":"'Population 2016'!AG31/'Population 2016'!AG$5","v":4.6011766034558879E-2},{"$f":"'Population 2016'!AH31/'Population 2016'!AH$5","v":4.8809711785850293E-2},{"$f":"'Population 2016'!AI31/'Population 2016'!AI$5","v":4.3022410097121357E-2},{"$f":"'Population 2016'!AJ31/'Population 2016'!AJ$5","v":4.895017148593258E-2},{"$f":"'Population 2016'!AK31/'Population 2016'!AK$5","v":4.5359113938372955E-2},{"$f":"'Population 2016'!AL31/'Population 2016'!AL$5","v":4.7808658945389403E-2},{"$f":"'Population 2016'!AM31/'Population 2016'!AM$5","v":4.9277231057875848E-2},{"$f":"'Population 2016'!AN31/'Population 2016'!AN$5","v":4.4998363695865608E-2},{"$f":"'Population 2016'!AO31/'Population 2016'!AO$5","v":4.4998363695865608E-2},{"$f":"'Population 2016'!AP31/'Population 2016'!AP$5","v":4.5677916395859421E-2},{"$f":"'Population 2016'!AQ31/'Population 2016'!AQ$5","v":4.9398531265413492E-2},{"$f":"'Population 2016'!AR31/'Population 2016'!AR$5","v":4.5185744109260795E-2},{"$f":"'Population 2016'!AS31/'Population 2016'!AS$5","v":4.8059207771543419E-2},{"$f":"'Population 2016'!AT31/'Population 2016'!AT$5","v":4.4761954974429273E-2},{"$f":"'Population 2016'!AU31/'Population 2016'!AU$5","v":4.4761954974429273E-2},{"$f":"'Population 2016'!AV31/'Population 2016'!AV$5","v":4.4842149720198503E-2},{"$f":"'Population 2016'!AW31/'Population 2016'!AW$5","v":4.8317469034108246E-2},{"$f":"'Population 2016'!AX31/'Population 2016'!AX$5","v":4.6385626844882885E-2},{"$f":"'Population 2016'!AY31/'Population 2016'!AY$5","v":4.3768550533949388E-2},{"$f":"'Population 2016'!AZ31/'Population 2016'!AZ$5","v":4.2098359901283432E-2},{"$f":"'Population 2016'!BA31/'Population 2016'!BA$5","v":4.9260418916000866E-2},{"$f":"'Population 2016'!BB31/'Population 2016'!BB$5","v":5.1663064568473242E-2},{"$f":"'Population 2016'!BC31/'Population 2016'!BC$5","v":4.3995927942283006E-2},29]
[null,"Female 50-54",{"$f":"'Population 2016'!C32/'Population 2016'!C$5","v":3.8404726735598228E-2},{"$f":"'Population 2016'!D32/'Population 2016'!D$5","v":4.4017683362186165E-2},{"$f":"'Population 2016'!E32/'Population 2016'!E$5","v":4.9165803327411058E-2},{"$f":"'Population 2016'!F32/'Population 2016'!F$5","v":4.6984290497038374E-2},{"$f":"'Population 2016'!G32/'Population 2016'!G$5","v":4.8800952741839439E-2},{"$f":"'Population 2016'!H32/'Population 2016'!H$5","v":4.9748227214806123E-2},{"$f":"'Population 2016'!I32/'Population 2016'!I$5","v":4.9964408341009965E-2},{"$f":"'Population 2016'!J32/'Population 2016'!J$5","v":4.8232337891742617E-2},{"$f":"'Population 2016'!K32/'Population 2016'!K$5","v":4.9591267778670324E-2},{"$f":"'Population 2016'!L32/'Population 2016'!L$5","v":4.9616380474322111E-2},{"$f":"'Population 2016'!M32/'Population 2016'!M$5","v":4.9616380474322111E-2},{"$f":"'Population 2016'!N32/'Population 2016'!N$5","v":4.1970406924876025E-2},{"$f":"'Population 2016'!O32/'Population 2016'!O$5","v":4.969239456712337E-2},{"$f":"'Population 2016'!P32/'Population 2016'!P$5","v":5.1177730192719484E-2},{"$f":"'Population 2016'!Q32/'Population 2016'!Q$5","v":4.9071103747312016E-2},{"$f":"'Population 2016'!R32/'Population 2016'!R$5","v":5.1498376536967053E-2},{"$f":"'Population 2016'!S32/'Population 2016'!S$5","v":4.4275876434980786E-2},{"$f":"'Population 2016'!T32/'Population 2016'!T$5","v":3.7426187628837197E-2},{"$f":"'Population 2016'!U32/'Population 2016'!U$5","v":4.6695879254636391E-2},{"$f":"'Population 2016'!V32/'Population 2016'!V$5","v":4.8144953862357939E-2},{"$f":"'Population 2016'!W32/'Population 2016'!W$5","v":4.726465724053628E-2},{"$f":"'Population 2016'!X32/'Population 2016'!X$5","v":4.726465724053628E-2},{"$f":"'Population 2016'!Y32/'Population 2016'!Y$5","v":4.8186833277690341E-2},{"$f":"'Population 2016'!Z32/'Population 2016'!Z$5","v":4.2765634951208227E-2},{"$f":"'Population 2016'!AA32/'Population 2016'!AA$5","v":4.7740534708339395E-2},{"$f":"'Population 2016'!AB32/'Population 2016'!AB$5","v":4.4430570197435085E-2},{"$f":"'Population 2016'!AC32/'Population 2016'!AC$5","v":4.664671166540138E-2},{"$f":"'Population 2016'!AD32/'Population 2016'!AD$5","v":4.912724701328669E-2},{"$f":"'Population 2016'!AE32/'Population 2016'!AE$5","v":4.9251019004301892E-2},{"$f":"'Population 2016'!AF32/'Population 2016'!AF$5","v":5.184816540741076E-2},{"$f":"'Population 2016'!AG32/'Population 2016'!AG$5","v":4.9251019004301892E-2},{"$f":"'Population 2016'!AH32/'Population 2016'!AH$5","v":4.9705098316041724E-2},{"$f":"'Population 2016'!AI32/'Population 2016'!AI$5","v":4.2282789395397674E-2},{"$f":"'Population 2016'!AJ32/'Population 2016'!AJ$5","v":4.8350667819200846E-2},{"$f":"'Population 2016'!AK32/'Population 2016'!AK$5","v":4.6553436506040755E-2},{"$f":"'Population 2016'!AL32/'Population 2016'!AL$5","v":5.0495734378602719E-2},{"$f":"'Population 2016'!AM32/'Population 2016'!AM$5","v":4.950541669232246E-2},{"$f":"'Population 2016'!AN32/'Population 2016'!AN$5","v":4.8216428493509329E-2},{"$f":"'Population 2016'!AO32/'Population 2016'!AO$5","v":4.8216428493509329E-2},{"$f":"'Population 2016'!AP32/'Population 2016'!AP$5","v":4.7810028058272433E-2},{"$f":"'Population 2016'!AQ32/'Population 2016'!AQ$5","v":5.0227434646791254E-2},{"$f":"'Population 2016'!AR32/'Population 2016'!AR$5","v":4.661887197487604E-2},{"$f":"'Population 2016'!AS32/'Population 2016'!AS$5","v":4.9964408341009965E-2},{"$f":"'Population 2016'!AT32/'Population 2016'!AT$5","v":4.5869141139874517E-2},{"$f":"'Population 2016'!AU32/'Population 2016'!AU$5","v":4.5869141139874517E-2},{"$f":"'Population 2016'!AV32/'Population 2016'!AV$5","v":4.8917748917748916E-2},{"$f":"'Population 2016'!AW32/'Population 2016'!AW$5","v":4.9915339557019954E-2},{"$f":"'Population 2016'!AX32/'Population 2016'!AX$5","v":4.7497348480008181E-2},{"$f":"'Population 2016'!AY32/'Population 2016'!AY$5","v":4.6320492029007683E-2},{"$f":"'Population 2016'!AZ32/'Population 2016'!AZ$5","v":4.5489584711587691E-2},{"$f":"'Population 2016'!BA32/'Population 2016'!BA$5","v":5.1649211833297341E-2},{"$f":"'Population 2016'!BB32/'Population 2016'!BB$5","v":4.9702050088729001E-2},{"$f":"'Population 2016'!BC32/'Population 2016'!BC$5","v":4.6695879254636391E-2},30]
[null,"Female 55-59",{"$f":"'Population 2016'!C33/'Population 2016'!C$5","v":3.4959852391734346E-2},{"$f":"'Population 2016'!D33/'Population 2016'!D$5","v":3.887307688545915E-2},{"$f":"'Population 2016'!E33/'Population 2016'!E$5","v":4.2462227930939109E-2},{"$f":"'Population 2016'!F33/'Population 2016'!F$5","v":4.4790110739119239E-2},{"$f":"'Population 2016'!G33/'Population 2016'!G$5","v":4.6595030585178367E-2},{"$f":"'Population 2016'!H33/'Population 2016'!H$5","v":4.6132945109317702E-2},{"$f":"'Population 2016'!I33/'Population 2016'!I$5","v":4.7535801021689979E-2},{"$f":"'Population 2016'!J33/'Population 2016'!J$5","v":4.2029141752983425E-2},{"$f":"'Population 2016'!K33/'Population 2016'!K$5","v":4.4039124887775838E-2},{"$f":"'Population 2016'!L33/'Population 2016'!L$5","v":4.6169364446491827E-2},{"$f":"'Population 2016'!M33/'Population 2016'!M$5","v":4.6169364446491827E-2},{"$f":"'Population 2016'!N33/'Population 2016'!N$5","v":3.9776243560170711E-2},{"$f":"'Population 2016'!O33/'Population 2016'!O$5","v":4.4421989082731497E-2},{"$f":"'Population 2016'!P33/'Population 2016'!P$5","v":4.8822269807280515E-2},{"$f":"'Population 2016'!Q33/'Population 2016'!Q$5","v":4.6004159763105019E-2},{"$f":"'Population 2016'!R33/'Population 2016'!R$5","v":4.5723106403364029E-2},{"$f":"'Population 2016'!S33/'Population 2016'!S$5","v":4.0423075497245227E-2},{"$f":"'Population 2016'!T33/'Population 2016'!T$5","v":3.4608637385238922E-2},{"$f":"'Population 2016'!U33/'Population 2016'!U$5","v":4.3022175009958835E-2},{"$f":"'Population 2016'!V33/'Population 2016'!V$5","v":4.2000900618984746E-2},{"$f":"'Population 2016'!W33/'Population 2016'!W$5","v":4.2996097503578926E-2},{"$f":"'Population 2016'!X33/'Population 2016'!X$5","v":4.2996097503578926E-2},{"$f":"'Population 2016'!Y33/'Population 2016'!Y$5","v":4.2014435382585334E-2},{"$f":"'Population 2016'!Z33/'Population 2016'!Z$5","v":3.7595120242052103E-2},{"$f":"'Population 2016'!AA33/'Population 2016'!AA$5","v":4.3007473638962582E-2},{"$f":"'Population 2016'!AB33/'Population 2016'!AB$5","v":3.9380571732700119E-2},{"$f":"'Population 2016'!AC33/'Population 2016'!AC$5","v":4.1938600102188361E-2},{"$f":"'Population 2016'!AD33/'Population 2016'!AD$5","v":4.6049350552681528E-2},{"$f":"'Population 2016'!AE33/'Population 2016'!AE$5","v":4.5842359777821126E-2},{"$f":"'Population 2016'!AF33/'Population 2016'!AF$5","v":4.8424799046886548E-2},{"$f":"'Population 2016'!AG33/'Population 2016'!AG$5","v":4.5842359777821126E-2},{"$f":"'Population 2016'!AH33/'Population 2016'!AH$5","v":4.4927226623816909E-2},{"$f":"'Population 2016'!AI33/'Population 2016'!AI$5","v":3.8417895266427506E-2},{"$f":"'Population 2016'!AJ33/'Population 2016'!AJ$5","v":4.4851239438976107E-2},{"$f":"'Population 2016'!AK33/'Population 2016'!AK$5","v":4.1989867115899575E-2},{"$f":"'Population 2016'!AL33/'Population 2016'!AL$5","v":4.6185771802557597E-2},{"$f":"'Population 2016'!AM33/'Population 2016'!AM$5","v":4.3503772306956762E-2},{"$f":"'Population 2016'!AN33/'Population 2016'!AN$5","v":4.3907494272935527E-2},{"$f":"'Population 2016'!AO33/'Population 2016'!AO$5","v":4.3907494272935527E-2},{"$f":"'Population 2016'!AP33/'Population 2016'!AP$5","v":4.3442765879872551E-2},{"$f":"'Population 2016'!AQ33/'Population 2016'!AQ$5","v":4.541842494656656E-2},{"$f":"'Population 2016'!AR33/'Population 2016'!AR$5","v":4.2346444459444799E-2},{"$f":"'Population 2016'!AS33/'Population 2016'!AS$5","v":4.7535801021689979E-2},{"$f":"'Population 2016'!AT33/'Population 2016'!AT$5","v":4.0913164970738651E-2},{"$f":"'Population 2016'!AU33/'Population 2016'!AU$5","v":4.0913164970738651E-2},{"$f":"'Population 2016'!AV33/'Population 2016'!AV$5","v":4.789356984478936E-2},{"$f":"'Population 2016'!AW33/'Population 2016'!AW$5","v":4.6425956434193665E-2},{"$f":"'Population 2016'!AX33/'Population 2016'!AX$5","v":4.0942024355648698E-2},{"$f":"'Population 2016'!AY33/'Population 2016'!AY$5","v":4.2735840396560691E-2},{"$f":"'Population 2016'!AZ33/'Population 2016'!AZ$5","v":4.2506802584119055E-2},{"$f":"'Population 2016'!BA33/'Population 2016'!BA$5","v":4.7478946231915356E-2},{"$f":"'Population 2016'!BB33/'Population 2016'!BB$5","v":4.2078951547751396E-2},{"$f":"'Population 2016'!BC33/'Population 2016'!BC$5","v":4.3022175009958835E-2},31]
[null,"Female 60-64",{"$f":"'Population 2016'!C34/'Population 2016'!C$5","v":2.9746541070159924E-2},{"$f":"'Population 2016'!D34/'Population 2016'!D$5","v":3.463317782146455E-2},{"$f":"'Population 2016'!E34/'Population 2016'!E$5","v":3.9115128047665704E-2},{"$f":"'Population 2016'!F34/'Population 2016'!F$5","v":4.0855009013649239E-2},{"$f":"'Population 2016'!G34/'Population 2016'!G$5","v":4.3590645807394579E-2},{"$f":"'Population 2016'!H34/'Population 2016'!H$5","v":4.1959969261996091E-2},{"$f":"'Population 2016'!I34/'Population 2016'!I$5","v":4.3097311782932753E-2},{"$f":"'Population 2016'!J34/'Population 2016'!J$5","v":3.6464509922625912E-2},{"$f":"'Population 2016'!K34/'Population 2016'!K$5","v":3.9101261635873928E-2},{"$f":"'Population 2016'!L34/'Population 2016'!L$5","v":4.4827093228281413E-2},{"$f":"'Population 2016'!M34/'Population 2016'!M$5","v":4.4827093228281413E-2},{"$f":"'Population 2016'!N34/'Population 2016'!N$5","v":3.1377339838130222E-2},{"$f":"'Population 2016'!O34/'Population 2016'!O$5","v":3.911195648943442E-2},{"$f":"'Population 2016'!P34/'Population 2016'!P$5","v":4.1203651527104701E-2},{"$f":"'Population 2016'!Q34/'Population 2016'!Q$5","v":3.8894960106226721E-2},{"$f":"'Population 2016'!R34/'Population 2016'!R$5","v":3.9907915047639325E-2},{"$f":"'Population 2016'!S34/'Population 2016'!S$5","v":3.4682269701361589E-2},{"$f":"'Population 2016'!T34/'Population 2016'!T$5","v":2.8615235710995193E-2},{"$f":"'Population 2016'!U34/'Population 2016'!U$5","v":4.3332005488425619E-2},{"$f":"'Population 2016'!V34/'Population 2016'!V$5","v":3.6826157638851789E-2},{"$f":"'Population 2016'!W34/'Population 2016'!W$5","v":3.839089025291053E-2},{"$f":"'Population 2016'!X34/'Population 2016'!X$5","v":3.839089025291053E-2},{"$f":"'Population 2016'!Y34/'Population 2016'!Y$5","v":3.6652835408022132E-2},{"$f":"'Population 2016'!Z34/'Population 2016'!Z$5","v":2.9338944564571423E-2},{"$f":"'Population 2016'!AA34/'Population 2016'!AA$5","v":3.5731156284693227E-2},{"$f":"'Population 2016'!AB34/'Population 2016'!AB$5","v":3.5335660112790802E-2},{"$f":"'Population 2016'!AC34/'Population 2016'!AC$5","v":3.39910761013692E-2},{"$f":"'Population 2016'!AD34/'Population 2016'!AD$5","v":4.2949123525252146E-2},{"$f":"'Population 2016'!AE34/'Population 2016'!AE$5","v":4.2705777266707053E-2},{"$f":"'Population 2016'!AF34/'Population 2016'!AF$5","v":3.9527062691339036E-2},{"$f":"'Population 2016'!AG34/'Population 2016'!AG$5","v":4.2705777266707053E-2},{"$f":"'Population 2016'!AH34/'Population 2016'!AH$5","v":3.8856431643182893E-2},{"$f":"'Population 2016'!AI34/'Population 2016'!AI$5","v":3.2032001924927812E-2},{"$f":"'Population 2016'!AJ34/'Population 2016'!AJ$5","v":3.7671137383933302E-2},{"$f":"'Population 2016'!AK34/'Population 2016'!AK$5","v":3.8947487522472124E-2},{"$f":"'Population 2016'!AL34/'Population 2016'!AL$5","v":4.2656213972792255E-2},{"$f":"'Population 2016'!AM34/'Population 2016'!AM$5","v":3.7480395956405677E-2},{"$f":"'Population 2016'!AN34/'Population 2016'!AN$5","v":4.0907603359877823E-2},{"$f":"'Population 2016'!AO34/'Population 2016'!AO$5","v":4.0907603359877823E-2},{"$f":"'Population 2016'!AP34/'Population 2016'!AP$5","v":4.0597308308102022E-2},{"$f":"'Population 2016'!AQ34/'Population 2016'!AQ$5","v":3.7471913191209516E-2},{"$f":"'Population 2016'!AR34/'Population 2016'!AR$5","v":3.6790818357670667E-2},{"$f":"'Population 2016'!AS34/'Population 2016'!AS$5","v":4.3097311782932753E-2},{"$f":"'Population 2016'!AT34/'Population 2016'!AT$5","v":3.9120577845732064E-2},{"$f":"'Population 2016'!AU34/'Population 2016'!AU$5","v":3.9120577845732064E-2},{"$f":"'Population 2016'!AV34/'Population 2016'!AV$5","v":4.4166402702988071E-2},{"$f":"'Population 2016'!AW34/'Population 2016'!AW$5","v":4.0305235218744281E-2},{"$f":"'Population 2016'!AX34/'Population 2016'!AX$5","v":3.5038399120845422E-2},{"$f":"'Population 2016'!AY34/'Population 2016'!AY$5","v":3.7847679079587526E-2},{"$f":"'Population 2016'!AZ34/'Population 2016'!AZ$5","v":3.7369629122538557E-2},{"$f":"'Population 2016'!BA34/'Population 2016'!BA$5","v":3.9975167350464261E-2},{"$f":"'Population 2016'!BB34/'Population 2016'!BB$5","v":3.5346595499333666E-2},{"$f":"'Population 2016'!BC34/'Population 2016'!BC$5","v":4.3332005488425619E-2},32]
[null,"Female 65-69",{"$f":"'Population 2016'!C35/'Population 2016'!C$5","v":2.8734545343030774E-2},{"$f":"'Population 2016'!D35/'Population 2016'!D$5","v":3.3535303150337918E-2},{"$f":"'Population 2016'!E35/'Population 2016'!E$5","v":3.7938486492061184E-2},{"$f":"'Population 2016'!F35/'Population 2016'!F$5","v":4.4357455575585888E-2},{"$f":"'Population 2016'!G35/'Population 2016'!G$5","v":4.7799491149244845E-2},{"$f":"'Population 2016'!H35/'Population 2016'!H$5","v":4.2981326986865014E-2},{"$f":"'Population 2016'!I35/'Population 2016'!I$5","v":4.6551796331965496E-2},{"$f":"'Population 2016'!J35/'Population 2016'!J$5","v":3.7924085484686898E-2},{"$f":"'Population 2016'!K35/'Population 2016'!K$5","v":4.2219912110759344E-2},{"$f":"'Population 2016'!L35/'Population 2016'!L$5","v":4.4993884326402236E-2},{"$f":"'Population 2016'!M35/'Population 2016'!M$5","v":4.4993884326402236E-2},{"$f":"'Population 2016'!N35/'Population 2016'!N$5","v":3.3008897211885456E-2},{"$f":"'Population 2016'!O35/'Population 2016'!O$5","v":3.9934218999217362E-2},{"$f":"'Population 2016'!P35/'Population 2016'!P$5","v":4.0820466584018937E-2},{"$f":"'Population 2016'!Q35/'Population 2016'!Q$5","v":3.93649898356071E-2},{"$f":"'Population 2016'!R35/'Population 2016'!R$5","v":3.8271144940650446E-2},{"$f":"'Population 2016'!S35/'Population 2016'!S$5","v":3.5695560761274628E-2},{"$f":"'Population 2016'!T35/'Population 2016'!T$5","v":2.8564049827131309E-2},{"$f":"'Population 2016'!U35/'Population 2016'!U$5","v":4.4350019917673615E-2},{"$f":"'Population 2016'!V35/'Population 2016'!V$5","v":3.7726776623594693E-2},{"$f":"'Population 2016'!W35/'Population 2016'!W$5","v":4.0587270148190274E-2},{"$f":"'Population 2016'!X35/'Population 2016'!X$5","v":4.0587270148190274E-2},{"$f":"'Population 2016'!Y35/'Population 2016'!Y$5","v":3.7821338293508845E-2},{"$f":"'Population 2016'!Z35/'Population 2016'!Z$5","v":2.5722875123649055E-2},{"$f":"'Population 2016'!AA35/'Population 2016'!AA$5","v":3.341046814385476E-2},{"$f":"'Population 2016'!AB35/'Population 2016'!AB$5","v":3.4670378596358353E-2},{"$f":"'Population 2016'!AC35/'Population 2016'!AC$5","v":3.1776650166211229E-2},{"$f":"'Population 2016'!AD35/'Population 2016'!AD$5","v":4.3756745692061484E-2},{"$f":"'Population 2016'!AE35/'Population 2016'!AE$5","v":4.2223226111151035E-2},{"$f":"'Population 2016'!AF35/'Population 2016'!AF$5","v":3.9798519054728622E-2},{"$f":"'Population 2016'!AG35/'Population 2016'!AG$5","v":4.2223226111151035E-2},{"$f":"'Population 2016'!AH35/'Population 2016'!AH$5","v":3.6344891002479958E-2},{"$f":"'Population 2016'!AI35/'Population 2016'!AI$5","v":3.2231603814856943E-2},{"$f":"'Population 2016'!AJ35/'Population 2016'!AJ$5","v":4.0375874857095054E-2},{"$f":"'Population 2016'!AK35/'Population 2016'!AK$5","v":4.0506392768691148E-2},{"$f":"'Population 2016'!AL35/'Population 2016'!AL$5","v":4.3702665791667407E-2},{"$f":"'Population 2016'!AM35/'Population 2016'!AM$5","v":3.5155075681568761E-2},{"$f":"'Population 2016'!AN35/'Population 2016'!AN$5","v":4.2489364023126433E-2},{"$f":"'Population 2016'!AO35/'Population 2016'!AO$5","v":4.2489364023126433E-2},{"$f":"'Population 2016'!AP35/'Population 2016'!AP$5","v":4.2166669308688551E-2},{"$f":"'Population 2016'!AQ35/'Population 2016'!AQ$5","v":3.7499314955883156E-2},{"$f":"'Population 2016'!AR35/'Population 2016'!AR$5","v":3.6548213624940214E-2},{"$f":"'Population 2016'!AS35/'Population 2016'!AS$5","v":4.6551796331965496E-2},{"$f":"'Population 2016'!AT35/'Population 2016'!AT$5","v":3.6009911952338269E-2},{"$f":"'Population 2016'!AU35/'Population 2016'!AU$5","v":3.6009911952338269E-2},{"$f":"'Population 2016'!AV35/'Population 2016'!AV$5","v":4.5370077077394148E-2},{"$f":"'Population 2016'!AW35/'Population 2016'!AW$5","v":3.7597626456769784E-2},{"$f":"'Population 2016'!AX35/'Population 2016'!AX$5","v":3.5600649143207638E-2},{"$f":"'Population 2016'!AY35/'Population 2016'!AY$5","v":4.0009485633854536E-2},{"$f":"'Population 2016'!AZ35/'Population 2016'!AZ$5","v":3.9501009601279405E-2},{"$f":"'Population 2016'!BA35/'Population 2016'!BA$5","v":3.8112718635283954E-2},{"$f":"'Population 2016'!BB35/'Population 2016'!BB$5","v":3.4890866782210005E-2},{"$f":"'Population 2016'!BC35/'Population 2016'!BC$5","v":4.4350019917673615E-2},33]
[null,"Female 70-74",{"$f":"'Population 2016'!C36/'Population 2016'!C$5","v":2.110368867331449E-2},{"$f":"'Population 2016'!D36/'Population 2016'!D$5","v":2.4590925540134777E-2},{"$f":"'Population 2016'!E36/'Population 2016'!E$5","v":2.7789367098101904E-2},{"$f":"'Population 2016'!F36/'Population 2016'!F$5","v":3.4128251352047383E-2},{"$f":"'Population 2016'!G36/'Population 2016'!G$5","v":3.7067612190764897E-2},{"$f":"'Population 2016'!H36/'Population 2016'!H$5","v":3.4382467665111389E-2},{"$f":"'Population 2016'!I36/'Population 2016'!I$5","v":3.6282555899840883E-2},{"$f":"'Population 2016'!J36/'Population 2016'!J$5","v":2.9937885108182745E-2},{"$f":"'Population 2016'!K36/'Population 2016'!K$5","v":3.1800784387846712E-2},{"$f":"'Population 2016'!L36/'Population 2016'!L$5","v":3.8131622003717058E-2},{"$f":"'Population 2016'!M36/'Population 2016'!M$5","v":3.8131622003717058E-2},{"$f":"'Population 2016'!N36/'Population 2016'!N$5","v":2.4907370942204292E-2},{"$f":"'Population 2016'!O36/'Population 2016'!O$5","v":3.0810077173794592E-2},{"$f":"'Population 2016'!P36/'Population 2016'!P$5","v":3.3077876704609488E-2},{"$f":"'Population 2016'!Q36/'Population 2016'!Q$5","v":3.0869202477056674E-2},{"$f":"'Population 2016'!R36/'Population 2016'!R$5","v":3.1005482514504711E-2},{"$f":"'Population 2016'!S36/'Population 2016'!S$5","v":2.7222929329127177E-2},{"$f":"'Population 2016'!T36/'Population 2016'!T$5","v":2.1293327687375234E-2},{"$f":"'Population 2016'!U36/'Population 2016'!U$5","v":3.5143628557517813E-2},{"$f":"'Population 2016'!V36/'Population 2016'!V$5","v":2.8338968562291542E-2},{"$f":"'Population 2016'!W36/'Population 2016'!W$5","v":3.1203629256303152E-2},{"$f":"'Population 2016'!X36/'Population 2016'!X$5","v":3.1203629256303152E-2},{"$f":"'Population 2016'!Y36/'Population 2016'!Y$5","v":2.9105260647684456E-2},{"$f":"'Population 2016'!Z36/'Population 2016'!Z$5","v":1.9861280762239562E-2},{"$f":"'Population 2016'!AA36/'Population 2016'!AA$5","v":2.6001938668192087E-2},{"$f":"'Population 2016'!AB36/'Population 2016'!AB$5","v":2.585181621853986E-2},{"$f":"'Population 2016'!AC36/'Population 2016'!AC$5","v":2.4674145310195461E-2},{"$f":"'Population 2016'!AD36/'Population 2016'!AD$5","v":3.3841974022107264E-2},{"$f":"'Population 2016'!AE36/'Population 2016'!AE$5","v":3.2618404706413827E-2},{"$f":"'Population 2016'!AF36/'Population 2016'!AF$5","v":3.1307967244265482E-2},{"$f":"'Population 2016'!AG36/'Population 2016'!AG$5","v":3.2618404706413827E-2},{"$f":"'Population 2016'!AH36/'Population 2016'!AH$5","v":2.838672524451297E-2},{"$f":"'Population 2016'!AI36/'Population 2016'!AI$5","v":2.4374671887304227E-2},{"$f":"'Population 2016'!AJ36/'Population 2016'!AJ$5","v":2.9989125282324402E-2},{"$f":"'Population 2016'!AK36/'Population 2016'!AK$5","v":3.2334712042543026E-2},{"$f":"'Population 2016'!AL36/'Population 2016'!AL$5","v":3.4594987673152305E-2},{"$f":"'Population 2016'!AM36/'Population 2016'!AM$5","v":2.7664791681003727E-2},{"$f":"'Population 2016'!AN36/'Population 2016'!AN$5","v":3.6325951783571508E-2},{"$f":"'Population 2016'!AO36/'Population 2016'!AO$5","v":3.6325951783571508E-2},{"$f":"'Population 2016'!AP36/'Population 2016'!AP$5","v":3.3860152497503286E-2},{"$f":"'Population 2016'!AQ36/'Population 2016'!AQ$5","v":2.8778703348495645E-2},{"$f":"'Population 2016'!AR36/'Population 2016'!AR$5","v":2.8326163238454612E-2},{"$f":"'Population 2016'!AS36/'Population 2016'!AS$5","v":3.6282555899840883E-2},{"$f":"'Population 2016'!AT36/'Population 2016'!AT$5","v":3.0421257974376548E-2},{"$f":"'Population 2016'!AU36/'Population 2016'!AU$5","v":3.0421257974376548E-2},{"$f":"'Population 2016'!AV36/'Population 2016'!AV$5","v":3.7936859888079398E-2},{"$f":"'Population 2016'!AW36/'Population 2016'!AW$5","v":2.9146836292635304E-2},{"$f":"'Population 2016'!AX36/'Population 2016'!AX$5","v":2.8930319332455882E-2},{"$f":"'Population 2016'!AY36/'Population 2016'!AY$5","v":3.0952235243719591E-2},{"$f":"'Population 2016'!AZ36/'Population 2016'!AZ$5","v":3.0730997347998917E-2},{"$f":"'Population 2016'!BA36/'Population 2016'!BA$5","v":2.7720794644785142E-2},{"$f":"'Population 2016'!BB36/'Population 2016'!BB$5","v":2.6922519213108415E-2},{"$f":"'Population 2016'!BC36/'Population 2016'!BC$5","v":3.5143628557517813E-2},34]
[null,"Female 75-79",{"$f":"'Population 2016'!C37/'Population 2016'!C$5","v":1.8885475816879885E-2},{"$f":"'Population 2016'!D37/'Population 2016'!D$5","v":2.02483299590192E-2},{"$f":"'Population 2016'!E37/'Population 2016'!E$5","v":2.149831941833592E-2},{"$f":"'Population 2016'!F37/'Population 2016'!F$5","v":2.7216070048931239E-2},{"$f":"'Population 2016'!G37/'Population 2016'!G$5","v":3.0382179396957722E-2},{"$f":"'Population 2016'!H37/'Population 2016'!H$5","v":2.6963843936539639E-2},{"$f":"'Population 2016'!I37/'Population 2016'!I$5","v":2.9310777991792981E-2},{"$f":"'Population 2016'!J37/'Population 2016'!J$5","v":2.3635172453828485E-2},{"$f":"'Population 2016'!K37/'Population 2016'!K$5","v":2.3224495581911826E-2},{"$f":"'Population 2016'!L37/'Population 2016'!L$5","v":2.9069305672485824E-2},{"$f":"'Population 2016'!M37/'Population 2016'!M$5","v":2.9069305672485824E-2},{"$f":"'Population 2016'!N37/'Population 2016'!N$5","v":2.2230973870970335E-2},{"$f":"'Population 2016'!O37/'Population 2016'!O$5","v":2.4261697427209954E-2},{"$f":"'Population 2016'!P37/'Population 2016'!P$5","v":2.9268567564521581E-2},{"$f":"'Population 2016'!Q37/'Population 2016'!Q$5","v":2.5240596467726584E-2},{"$f":"'Population 2016'!R37/'Population 2016'!R$5","v":2.5922180231010804E-2},{"$f":"'Population 2016'!S37/'Population 2016'!S$5","v":2.1867844955875942E-2},{"$f":"'Population 2016'!T37/'Population 2016'!T$5","v":1.8303606743507537E-2},{"$f":"'Population 2016'!U37/'Population 2016'!U$5","v":3.1558447306687915E-2},{"$f":"'Population 2016'!V37/'Population 2016'!V$5","v":2.3729020538692271E-2},{"$f":"'Population 2016'!W37/'Population 2016'!W$5","v":2.4088273553886482E-2},{"$f":"'Population 2016'!X37/'Population 2016'!X$5","v":2.4088273553886482E-2},{"$f":"'Population 2016'!Y37/'Population 2016'!Y$5","v":2.3684043178963769E-2},{"$f":"'Population 2016'!Z37/'Population 2016'!Z$5","v":1.8448148700208871E-2},{"$f":"'Population 2016'!AA37/'Population 2016'!AA$5","v":2.2388362144281294E-2},{"$f":"'Population 2016'!AB37/'Population 2016'!AB$5","v":2.0990143598456548E-2},{"$f":"'Population 2016'!AC37/'Population 2016'!AC$5","v":2.1844313755505038E-2},{"$f":"'Population 2016'!AD37/'Population 2016'!AD$5","v":2.6919498306598684E-2},{"$f":"'Population 2016'!AE37/'Population 2016'!AE$5","v":2.560601238205731E-2},{"$f":"'Population 2016'!AF37/'Population 2016'!AF$5","v":2.6331267248789758E-2},{"$f":"'Population 2016'!AG37/'Population 2016'!AG$5","v":2.560601238205731E-2},{"$f":"'Population 2016'!AH37/'Population 2016'!AH$5","v":2.3365501611509989E-2},{"$f":"'Population 2016'!AI37/'Population 2016'!AI$5","v":1.9967024674074723E-2},{"$f":"'Population 2016'!AJ37/'Population 2016'!AJ$5","v":2.3046036304826701E-2},{"$f":"'Population 2016'!AK37/'Population 2016'!AK$5","v":2.4804193957984989E-2},{"$f":"'Population 2016'!AL37/'Population 2016'!AL$5","v":2.7154537876234904E-2},{"$f":"'Population 2016'!AM37/'Population 2016'!AM$5","v":2.2575889833424487E-2},{"$f":"'Population 2016'!AN37/'Population 2016'!AN$5","v":2.7162648630958873E-2},{"$f":"'Population 2016'!AO37/'Population 2016'!AO$5","v":2.7162648630958873E-2},{"$f":"'Population 2016'!AP37/'Population 2016'!AP$5","v":2.6932771111075886E-2},{"$f":"'Population 2016'!AQ37/'Population 2016'!AQ$5","v":2.4038198059955062E-2},{"$f":"'Population 2016'!AR37/'Population 2016'!AR$5","v":2.324260272773266E-2},{"$f":"'Population 2016'!AS37/'Population 2016'!AS$5","v":2.9310777991792981E-2},{"$f":"'Population 2016'!AT37/'Population 2016'!AT$5","v":2.2091000158169453E-2},{"$f":"'Population 2016'!AU37/'Population 2016'!AU$5","v":2.2091000158169453E-2},{"$f":"'Population 2016'!AV37/'Population 2016'!AV$5","v":2.9616724738675958E-2},{"$f":"'Population 2016'!AW37/'Population 2016'!AW$5","v":2.4196869851729818E-2},{"$f":"'Population 2016'!AX37/'Population 2016'!AX$5","v":2.3857290721596789E-2},{"$f":"'Population 2016'!AY37/'Population 2016'!AY$5","v":2.4748324714666012E-2},{"$f":"'Population 2016'!AZ37/'Population 2016'!AZ$5","v":2.5329199049651672E-2},{"$f":"'Population 2016'!BA37/'Population 2016'!BA$5","v":2.4157849276614123E-2},{"$f":"'Population 2016'!BB37/'Population 2016'!BB$5","v":2.0279927912002928E-2},{"$f":"'Population 2016'!BC37/'Population 2016'!BC$5","v":3.1558447306687915E-2},35]
[null,"Female 80-84",{"$f":"'Population 2016'!C38/'Population 2016'!C$5","v":1.5501934547387467E-2},{"$f":"'Population 2016'!D38/'Population 2016'!D$5","v":1.5619651223066616E-2},{"$f":"'Population 2016'!E38/'Population 2016'!E$5","v":1.5727619199414962E-2},{"$f":"'Population 2016'!F38/'Population 2016'!F$5","v":2.0952871491115119E-2},{"$f":"'Population 2016'!G38/'Population 2016'!G$5","v":2.2086288096140314E-2},{"$f":"'Population 2016'!H38/'Population 2016'!H$5","v":2.0252064601686701E-2},{"$f":"'Population 2016'!I38/'Population 2016'!I$5","v":2.0936269994137845E-2},{"$f":"'Population 2016'!J38/'Population 2016'!J$5","v":1.7033910252689018E-2},{"$f":"'Population 2016'!K38/'Population 2016'!K$5","v":1.5640504654349574E-2},{"$f":"'Population 2016'!L38/'Population 2016'!L$5","v":2.2794783409845441E-2},{"$f":"'Population 2016'!M38/'Population 2016'!M$5","v":2.2794783409845441E-2},{"$f":"'Population 2016'!N38/'Population 2016'!N$5","v":1.9120566463860601E-2},{"$f":"'Population 2016'!O38/'Population 2016'!O$5","v":1.7871826116246124E-2},{"$f":"'Population 2016'!P38/'Population 2016'!P$5","v":2.1988053645892031E-2},{"$f":"'Population 2016'!Q38/'Population 2016'!Q$5","v":1.9212465188423167E-2},{"$f":"'Population 2016'!R38/'Population 2016'!R$5","v":2.2422419758343536E-2},{"$f":"'Population 2016'!S38/'Population 2016'!S$5","v":1.6628388743642659E-2},{"$f":"'Population 2016'!T38/'Population 2016'!T$5","v":1.5016077020795429E-2},{"$f":"'Population 2016'!U38/'Population 2016'!U$5","v":2.4476607798875758E-2},{"$f":"'Population 2016'!V38/'Population 2016'!V$5","v":1.676067195335099E-2},{"$f":"'Population 2016'!W38/'Population 2016'!W$5","v":1.7959981435360407E-2},{"$f":"'Population 2016'!X38/'Population 2016'!X$5","v":1.7959981435360407E-2},{"$f":"'Population 2016'!Y38/'Population 2016'!Y$5","v":1.6891623344620913E-2},{"$f":"'Population 2016'!Z38/'Population 2016'!Z$5","v":1.520181655222878E-2},{"$f":"'Population 2016'!AA38/'Population 2016'!AA$5","v":1.751843827587421E-2},{"$f":"'Population 2016'!AB38/'Population 2016'!AB$5","v":1.6337267023530496E-2},{"$f":"'Population 2016'!AC38/'Population 2016'!AC$5","v":1.7505445564011492E-2},{"$f":"'Population 2016'!AD38/'Population 2016'!AD$5","v":2.0194275931370725E-2},{"$f":"'Population 2016'!AE38/'Population 2016'!AE$5","v":1.9476586001909671E-2},{"$f":"'Population 2016'!AF38/'Population 2016'!AF$5","v":2.0841816344689259E-2},{"$f":"'Population 2016'!AG38/'Population 2016'!AG$5","v":1.9476586001909671E-2},{"$f":"'Population 2016'!AH38/'Population 2016'!AH$5","v":1.7541773868459915E-2},{"$f":"'Population 2016'!AI38/'Population 2016'!AI$5","v":1.550879342024674E-2},{"$f":"'Population 2016'!AJ38/'Population 2016'!AJ$5","v":1.7260128823578618E-2},{"$f":"'Population 2016'!AK38/'Population 2016'!AK$5","v":2.0026903687313781E-2},{"$f":"'Population 2016'!AL38/'Population 2016'!AL$5","v":2.0157499866976465E-2},{"$f":"'Population 2016'!AM38/'Population 2016'!AM$5","v":1.6472829610526964E-2},{"$f":"'Population 2016'!AN38/'Population 2016'!AN$5","v":1.7835715064906731E-2},{"$f":"'Population 2016'!AO38/'Population 2016'!AO$5","v":1.7835715064906731E-2},{"$f":"'Population 2016'!AP38/'Population 2016'!AP$5","v":2.0869330881537022E-2},{"$f":"'Population 2016'!AQ38/'Population 2016'!AQ$5","v":1.8715405272099524E-2},{"$f":"'Population 2016'!AR38/'Population 2016'!AR$5","v":1.7870545312615914E-2},{"$f":"'Population 2016'!AS38/'Population 2016'!AS$5","v":2.0936269994137845E-2},{"$f":"'Population 2016'!AT38/'Population 2016'!AT$5","v":1.6396899878736753E-2},{"$f":"'Population 2016'!AU38/'Population 2016'!AU$5","v":1.6396899878736753E-2},{"$f":"'Population 2016'!AV38/'Population 2016'!AV$5","v":2.2901488755147293E-2},{"$f":"'Population 2016'!AW38/'Population 2016'!AW$5","v":1.8667246323753738E-2},{"$f":"'Population 2016'!AX38/'Population 2016'!AX$5","v":1.7787546162004678E-2},{"$f":"'Population 2016'!AY38/'Population 2016'!AY$5","v":1.9186989382209845E-2},{"$f":"'Population 2016'!AZ38/'Population 2016'!AZ$5","v":2.026681086802699E-2},{"$f":"'Population 2016'!BA38/'Population 2016'!BA$5","v":1.7841718851220038E-2},{"$f":"'Population 2016'!BB38/'Population 2016'!BB$5","v":1.3927345794521588E-2},{"$f":"'Population 2016'!BC38/'Population 2016'!BC$5","v":2.4476607798875758E-2},36]
[null,"Female 85-89",{"$f":"'Population 2016'!C39/'Population 2016'!C$5","v":1.0309067583936867E-2},{"$f":"'Population 2016'!D39/'Population 2016'!D$5","v":1.0220748608706708E-2},{"$f":"'Population 2016'!E39/'Population 2016'!E$5","v":1.0139743764034146E-2},{"$f":"'Population 2016'!F39/'Population 2016'!F$5","v":1.3546227143960855E-2},{"$f":"'Population 2016'!G39/'Population 2016'!G$5","v":1.3533264764791858E-2},{"$f":"'Population 2016'!H39/'Population 2016'!H$5","v":1.1776416688012502E-2},{"$f":"'Population 2016'!I39/'Population 2016'!I$5","v":1.2844401641403567E-2},{"$f":"'Population 2016'!J39/'Population 2016'!J$5","v":9.9765306884054966E-3},{"$f":"'Population 2016'!K39/'Population 2016'!K$5","v":9.7339696640362898E-3},{"$f":"'Population 2016'!L39/'Population 2016'!L$5","v":1.3954855209441964E-2},{"$f":"'Population 2016'!M39/'Population 2016'!M$5","v":1.3954855209441964E-2},{"$f":"'Population 2016'!N39/'Population 2016'!N$5","v":1.2264810602711762E-2},{"$f":"'Population 2016'!O39/'Population 2016'!O$5","v":1.0382302533162937E-2},{"$f":"'Population 2016'!P39/'Population 2016'!P$5","v":1.3557984898005184E-2},{"$f":"'Population 2016'!Q39/'Population 2016'!Q$5","v":1.2103265531544871E-2},{"$f":"'Population 2016'!R39/'Population 2016'!R$5","v":1.4398254111885878E-2},{"$f":"'Population 2016'!S39/'Population 2016'!S$5","v":1.0682806357253946E-2},{"$f":"'Population 2016'!T39/'Population 2016'!T$5","v":1.0690869834297335E-2},{"$f":"'Population 2016'!U39/'Population 2016'!U$5","v":1.4606293984862568E-2},{"$f":"'Population 2016'!V39/'Population 2016'!V$5","v":9.8075880965646737E-3},{"$f":"'Population 2016'!W39/'Population 2016'!W$5","v":1.1351231214741892E-2},{"$f":"'Population 2016'!X39/'Population 2016'!X$5","v":1.1351231214741892E-2},{"$f":"'Population 2016'!Y39/'Population 2016'!Y$5","v":9.8885550309216075E-3},{"$f":"'Population 2016'!Z39/'Population 2016'!Z$5","v":9.2008447819614658E-3},{"$f":"'Population 2016'!AA39/'Population 2016'!AA$5","v":1.0487278071324121E-2},{"$f":"'Population 2016'!AB39/'Population 2016'!AB$5","v":1.0509400939582204E-2},{"$f":"'Population 2016'!AC39/'Population 2016'!AC$5","v":1.0701852008911487E-2},{"$f":"'Population 2016'!AD39/'Population 2016'!AD$5","v":1.2709814284119245E-2},{"$f":"'Population 2016'!AE39/'Population 2016'!AE$5","v":1.2397457879444348E-2},{"$f":"'Population 2016'!AF39/'Population 2016'!AF$5","v":1.3452170896861662E-2},{"$f":"'Population 2016'!AG39/'Population 2016'!AG$5","v":1.2397457879444348E-2},{"$f":"'Population 2016'!AH39/'Population 2016'!AH$5","v":1.0101892014898341E-2},{"$f":"'Population 2016'!AI39/'Population 2016'!AI$5","v":1.0120909528392685E-2},{"$f":"'Population 2016'!AJ39/'Population 2016'!AJ$5","v":9.6617683963974004E-3},{"$f":"'Population 2016'!AK39/'Population 2016'!AK$5","v":1.1993512942685089E-2},{"$f":"'Population 2016'!AL39/'Population 2016'!AL$5","v":1.1377946471328993E-2},{"$f":"'Population 2016'!AM39/'Population 2016'!AM$5","v":8.975301621566803E-3},{"$f":"'Population 2016'!AN39/'Population 2016'!AN$5","v":1.1945020181084324E-2},{"$f":"'Population 2016'!AO39/'Population 2016'!AO$5","v":1.1945020181084324E-2},{"$f":"'Population 2016'!AP39/'Population 2016'!AP$5","v":1.4251066055831206E-2},{"$f":"'Population 2016'!AQ39/'Population 2016'!AQ$5","v":1.0816846604921358E-2},{"$f":"'Population 2016'!AR39/'Population 2016'!AR$5","v":1.1070038360063296E-2},{"$f":"'Population 2016'!AS39/'Population 2016'!AS$5","v":1.2844401641403567E-2},{"$f":"'Population 2016'!AT39/'Population 2016'!AT$5","v":9.9646754890072228E-3},{"$f":"'Population 2016'!AU39/'Population 2016'!AU$5","v":9.9646754890072228E-3},{"$f":"'Population 2016'!AV39/'Population 2016'!AV$5","v":1.3736669834230809E-2},{"$f":"'Population 2016'!AW39/'Population 2016'!AW$5","v":1.1288059064006345E-2},{"$f":"'Population 2016'!AX39/'Population 2016'!AX$5","v":1.0107721992920761E-2},{"$f":"'Population 2016'!AY39/'Population 2016'!AY$5","v":1.2410880939995716E-2},{"$f":"'Population 2016'!AZ39/'Population 2016'!AZ$5","v":1.3343419758270964E-2},{"$f":"'Population 2016'!BA39/'Population 2016'!BA$5","v":1.13096523429065E-2},{"$f":"'Population 2016'!BB39/'Population 2016'!BB$5","v":7.4919039102904926E-3},{"$f":"'Population 2016'!BC39/'Population 2016'!BC$5","v":1.4606293984862568E-2},37]
[null,"Female 90+",{"$f":"'Population 2016'!C40/'Population 2016'!C$5","v":5.6681982898294427E-3},{"$f":"'Population 2016'!D40/'Population 2016'!D$5","v":5.8414757000479246E-3},{"$f":"'Population 2016'!E40/'Population 2016'!E$5","v":6.0004031520867812E-3},{"$f":"'Population 2016'!F40/'Population 2016'!F$5","v":9.1063610610352813E-3},{"$f":"'Population 2016'!G40/'Population 2016'!G$5","v":8.5800898608780381E-3},{"$f":"'Population 2016'!H40/'Population 2016'!H$5","v":7.3051395369196498E-3},{"$f":"'Population 2016'!I40/'Population 2016'!I$5","v":7.8615693827987602E-3},{"$f":"'Population 2016'!J40/'Population 2016'!J$5","v":6.1949030957929394E-3},{"$f":"'Population 2016'!K40/'Population 2016'!K$5","v":5.3158814912819541E-3},{"$f":"'Population 2016'!L40/'Population 2016'!L$5","v":7.8709513446539488E-3},{"$f":"'Population 2016'!M40/'Population 2016'!M$5","v":7.8709513446539488E-3},{"$f":"'Population 2016'!N40/'Population 2016'!N$5","v":6.7512718914009692E-3},{"$f":"'Population 2016'!O40/'Population 2016'!O$5","v":6.023320553590711E-3},{"$f":"'Population 2016'!P40/'Population 2016'!P$5","v":8.0018032232615794E-3},{"$f":"'Population 2016'!Q40/'Population 2016'!Q$5","v":6.674422157201443E-3},{"$f":"'Population 2016'!R40/'Population 2016'!R$5","v":8.8758183850534949E-3},{"$f":"'Population 2016'!S40/'Population 2016'!S$5","v":6.383380614365078E-3},{"$f":"'Population 2016'!T40/'Population 2016'!T$5","v":6.4168485316631226E-3},{"$f":"'Population 2016'!U40/'Population 2016'!U$5","v":1.0622759261718231E-2},{"$f":"'Population 2016'!V40/'Population 2016'!V$5","v":5.9532441364361435E-3},{"$f":"'Population 2016'!W40/'Population 2016'!W$5","v":6.9421293118663348E-3},{"$f":"'Population 2016'!X40/'Population 2016'!X$5","v":6.9421293118663348E-3},{"$f":"'Population 2016'!Y40/'Population 2016'!Y$5","v":6.0690609052320311E-3},{"$f":"'Population 2016'!Z40/'Population 2016'!Z$5","v":5.3582870516451376E-3},{"$f":"'Population 2016'!AA40/'Population 2016'!AA$5","v":5.8339429042950338E-3},{"$f":"'Population 2016'!AB40/'Population 2016'!AB$5","v":5.9875336478920809E-3},{"$f":"'Population 2016'!AC40/'Population 2016'!AC$5","v":6.2078395435862322E-3},{"$f":"'Population 2016'!AD40/'Population 2016'!AD$5","v":7.4025829022293351E-3},{"$f":"'Population 2016'!AE40/'Population 2016'!AE$5","v":6.9559235721105969E-3},{"$f":"'Population 2016'!AF40/'Population 2016'!AF$5","v":7.9174772655295662E-3},{"$f":"'Population 2016'!AG40/'Population 2016'!AG$5","v":6.9559235721105969E-3},{"$f":"'Population 2016'!AH40/'Population 2016'!AH$5","v":5.1624049116223772E-3},{"$f":"'Population 2016'!AI40/'Population 2016'!AI$5","v":5.95661256452883E-3},{"$f":"'Population 2016'!AJ40/'Population 2016'!AJ$5","v":5.6186041323927167E-3},{"$f":"'Population 2016'!AK40/'Population 2016'!AK$5","v":6.7384936449467582E-3},{"$f":"'Population 2016'!AL40/'Population 2016'!AL$5","v":6.9438285947393628E-3},{"$f":"'Population 2016'!AM40/'Population 2016'!AM$5","v":4.2304892227562653E-3},{"$f":"'Population 2016'!AN40/'Population 2016'!AN$5","v":7.308825133631504E-3},{"$f":"'Population 2016'!AO40/'Population 2016'!AO$5","v":7.308825133631504E-3},{"$f":"'Population 2016'!AP40/'Population 2016'!AP$5","v":8.9485281296070255E-3},{"$f":"'Population 2016'!AQ40/'Population 2016'!AQ$5","v":6.0420891105387184E-3},{"$f":"'Population 2016'!AR40/'Population 2016'!AR$5","v":6.4716873148022522E-3},{"$f":"'Population 2016'!AS40/'Population 2016'!AS$5","v":7.8615693827987602E-3},{"$f":"'Population 2016'!AT40/'Population 2016'!AT$5","v":6.590393841935994E-3},{"$f":"'Population 2016'!AU40/'Population 2016'!AU$5","v":6.590393841935994E-3},{"$f":"'Population 2016'!AV40/'Population 2016'!AV$5","v":9.1014676380530048E-3},{"$f":"'Population 2016'!AW40/'Population 2016'!AW$5","v":6.1436024162548047E-3},{"$f":"'Population 2016'!AX40/'Population 2016'!AX$5","v":6.6703298107517539E-3},{"$f":"'Population 2016'!AY40/'Population 2016'!AY$5","v":7.6145160796793248E-3},{"$f":"'Population 2016'!AZ40/'Population 2016'!AZ$5","v":8.2062462966904642E-3},{"$f":"'Population 2016'!BA40/'Population 2016'!BA$5","v":6.0732023321096954E-3},{"$f":"'Population 2016'!BB40/'Population 2016'!BB$5","v":4.3363277932372624E-3},{"$f":"'Population 2016'!BC40/'Population 2016'!BC$5","v":1.0622759261718231E-2},38]
[null,"Male 0-4",{"$f":"'Population 2016'!C41/'Population 2016'!C$5","v":0},{"$f":"'Population 2016'!D41/'Population 2016'!D$5","v":0},{"$f":"'Population 2016'!E41/'Population 2016'!E$5","v":0},{"$f":"'Population 2016'!F41/'Population 2016'!F$5","v":0},{"$f":"'Population 2016'!G41/'Population 2016'!G$5","v":0},{"$f":"'Population 2016'!H41/'Population 2016'!H$5","v":0},{"$f":"'Population 2016'!I41/'Population 2016'!I$5","v":0},{"$f":"'Population 2016'!J41/'Population 2016'!J$5","v":0},{"$f":"'Population 2016'!K41/'Population 2016'!K$5","v":0},{"$f":"'Population 2016'!L41/'Population 2016'!L$5","v":0},{"$f":"'Population 2016'!M41/'Population 2016'!M$5","v":0},{"$f":"'Population 2016'!N41/'Population 2016'!N$5","v":0},{"$f":"'Population 2016'!O41/'Population 2016'!O$5","v":0},{"$f":"'Population 2016'!P41/'Population 2016'!P$5","v":0},{"$f":"'Population 2016'!Q41/'Population 2016'!Q$5","v":0},{"$f":"'Population 2016'!R41/'Population 2016'!R$5","v":0},{"$f":"'Population 2016'!S41/'Population 2016'!S$5","v":0},{"$f":"'Population 2016'!T41/'Population 2016'!T$5","v":0},{"$f":"'Population 2016'!U41/'Population 2016'!U$5","v":0},{"$f":"'Population 2016'!V41/'Population 2016'!V$5","v":0},{"$f":"'Population 2016'!W41/'Population 2016'!W$5","v":0},{"$f":"'Population 2016'!X41/'Population 2016'!X$5","v":0},{"$f":"'Population 2016'!Y41/'Population 2016'!Y$5","v":0},{"$f":"'Population 2016'!Z41/'Population 2016'!Z$5","v":0},{"$f":"'Population 2016'!AA41/'Population 2016'!AA$5","v":0},{"$f":"'Population 2016'!AB41/'Population 2016'!AB$5","v":0},{"$f":"'Population 2016'!AC41/'Population 2016'!AC$5","v":0},{"$f":"'Population 2016'!AD41/'Population 2016'!AD$5","v":0},{"$f":"'Population 2016'!AE41/'Population 2016'!AE$5","v":0},{"$f":"'Population 2016'!AF41/'Population 2016'!AF$5","v":0},{"$f":"'Population 2016'!AG41/'Population 2016'!AG$5","v":0},{"$f":"'Population 2016'!AH41/'Population 2016'!AH$5","v":0},{"$f":"'Population 2016'!AI41/'Population 2016'!AI$5","v":0},{"$f":"'Population 2016'!AJ41/'Population 2016'!AJ$5","v":0},{"$f":"'Population 2016'!AK41/'Population 2016'!AK$5","v":0},{"$f":"'Population 2016'!AL41/'Population 2016'!AL$5","v":0},{"$f":"'Population 2016'!AM41/'Population 2016'!AM$5","v":0},{"$f":"'Population 2016'!AN41/'Population 2016'!AN$5","v":0},{"$f":"'Population 2016'!AO41/'Population 2016'!AO$5","v":0},{"$f":"'Population 2016'!AP41/'Population 2016'!AP$5","v":0},{"$f":"'Population 2016'!AQ41/'Population 2016'!AQ$5","v":0},{"$f":"'Population 2016'!AR41/'Population 2016'!AR$5","v":0},{"$f":"'Population 2016'!AS41/'Population 2016'!AS$5","v":0},{"$f":"'Population 2016'!AT41/'Population 2016'!AT$5","v":0},{"$f":"'Population 2016'!AU41/'Population 2016'!AU$5","v":0},{"$f":"'Population 2016'!AV41/'Population 2016'!AV$5","v":0},{"$f":"'Population 2016'!AW41/'Population 2016'!AW$5","v":0},{"$f":"'Population 2016'!AX41/'Population 2016'!AX$5","v":0},{"$f":"'Population 2016'!AY41/'Population 2016'!AY$5","v":0},{"$f":"'Population 2016'!AZ41/'Population 2016'!AZ$5","v":0},{"$f":"'Population 2016'!BA41/'Population 2016'!BA$5","v":0},{"$f":"'Population 2016'!BB41/'Population 2016'!BB$5","v":0},{"$f":"'Population 2016'!BC41/'Population 2016'!BC$5","v":0},39]
[null,"Male 5-9",{"$f":"'Population 2016'!C42/'Population 2016'!C$5","v":0},{"$f":"'Population 2016'!D42/'Population 2016'!D$5","v":0},{"$f":"'Population 2016'!E42/'Population 2016'!E$5","v":0},{"$f":"'Population 2016'!F42/'Population 2016'!F$5","v":0},{"$f":"'Population 2016'!G42/'Population 2016'!G$5","v":0},{"$f":"'Population 2016'!H42/'Population 2016'!H$5","v":0},{"$f":"'Population 2016'!I42/'Population 2016'!I$5","v":0},{"$f":"'Population 2016'!J42/'Population 2016'!J$5","v":0},{"$f":"'Population 2016'!K42/'Population 2016'!K$5","v":0},{"$f":"'Population 2016'!L42/'Population 2016'!L$5","v":0},{"$f":"'Population 2016'!M42/'Population 2016'!M$5","v":0},{"$f":"'Population 2016'!N42/'Population 2016'!N$5","v":0},{"$f":"'Population 2016'!O42/'Population 2016'!O$5","v":0},{"$f":"'Population 2016'!P42/'Population 2016'!P$5","v":0},{"$f":"'Population 2016'!Q42/'Population 2016'!Q$5","v":0},{"$f":"'Population 2016'!R42/'Population 2016'!R$5","v":0},{"$f":"'Population 2016'!S42/'Population 2016'!S$5","v":0},{"$f":"'Population 2016'!T42/'Population 2016'!T$5","v":0},{"$f":"'Population 2016'!U42/'Population 2016'!U$5","v":0},{"$f":"'Population 2016'!V42/'Population 2016'!V$5","v":0},{"$f":"'Population 2016'!W42/'Population 2016'!W$5","v":0},{"$f":"'Population 2016'!X42/'Population 2016'!X$5","v":0},{"$f":"'Population 2016'!Y42/'Population 2016'!Y$5","v":0},{"$f":"'Population 2016'!Z42/'Population 2016'!Z$5","v":0},{"$f":"'Population 2016'!AA42/'Population 2016'!AA$5","v":0},{"$f":"'Population 2016'!AB42/'Population 2016'!AB$5","v":0},{"$f":"'Population 2016'!AC42/'Population 2016'!AC$5","v":0},{"$f":"'Population 2016'!AD42/'Population 2016'!AD$5","v":0},{"$f":"'Population 2016'!AE42/'Population 2016'!AE$5","v":0},{"$f":"'Population 2016'!AF42/'Population 2016'!AF$5","v":0},{"$f":"'Population 2016'!AG42/'Population 2016'!AG$5","v":0},{"$f":"'Population 2016'!AH42/'Population 2016'!AH$5","v":0},{"$f":"'Population 2016'!AI42/'Population 2016'!AI$5","v":0},{"$f":"'Population 2016'!AJ42/'Population 2016'!AJ$5","v":0},{"$f":"'Population 2016'!AK42/'Population 2016'!AK$5","v":0},{"$f":"'Population 2016'!AL42/'Population 2016'!AL$5","v":0},{"$f":"'Population 2016'!AM42/'Population 2016'!AM$5","v":0},{"$f":"'Population 2016'!AN42/'Population 2016'!AN$5","v":0},{"$f":"'Population 2016'!AO42/'Population 2016'!AO$5","v":0},{"$f":"'Population 2016'!AP42/'Population 2016'!AP$5","v":0},{"$f":"'Population 2016'!AQ42/'Population 2016'!AQ$5","v":0},{"$f":"'Population 2016'!AR42/'Population 2016'!AR$5","v":0},{"$f":"'Population 2016'!AS42/'Population 2016'!AS$5","v":0},{"$f":"'Population 2016'!AT42/'Population 2016'!AT$5","v":0},{"$f":"'Population 2016'!AU42/'Population 2016'!AU$5","v":0},{"$f":"'Population 2016'!AV42/'Population 2016'!AV$5","v":0},{"$f":"'Population 2016'!AW42/'Population 2016'!AW$5","v":0},{"$f":"'Population 2016'!AX42/'Population 2016'!AX$5","v":0},{"$f":"'Population 2016'!AY42/'Population 2016'!AY$5","v":0},{"$f":"'Population 2016'!AZ42/'Population 2016'!AZ$5","v":0},{"$f":"'Population 2016'!BA42/'Population 2016'!BA$5","v":0},{"$f":"'Population 2016'!BB42/'Population 2016'!BB$5","v":0},{"$f":"'Population 2016'!BC42/'Population 2016'!BC$5","v":0},40]
[null,"Male 10-15",{"$f":"'Population 2016'!C43/'Population 2016'!C$5","v":0},{"$f":"'Population 2016'!D43/'Population 2016'!D$5","v":0},{"$f":"'Population 2016'!E43/'Population 2016'!E$5","v":0},{"$f":"'Population 2016'!F43/'Population 2016'!F$5","v":0},{"$f":"'Population 2016'!G43/'Population 2016'!G$5","v":0},{"$f":"'Population 2016'!H43/'Population 2016'!H$5","v":0},{"$f":"'Population 2016'!I43/'Population 2016'!I$5","v":0},{"$f":"'Population 2016'!J43/'Population 2016'!J$5","v":0},{"$f":"'Population 2016'!K43/'Population 2016'!K$5","v":0},{"$f":"'Population 2016'!L43/'Population 2016'!L$5","v":0},{"$f":"'Population 2016'!M43/'Population 2016'!M$5","v":0},{"$f":"'Population 2016'!N43/'Population 2016'!N$5","v":0},{"$f":"'Population 2016'!O43/'Population 2016'!O$5","v":0},{"$f":"'Population 2016'!P43/'Population 2016'!P$5","v":0},{"$f":"'Population 2016'!Q43/'Population 2016'!Q$5","v":0},{"$f":"'Population 2016'!R43/'Population 2016'!R$5","v":0},{"$f":"'Population 2016'!S43/'Population 2016'!S$5","v":0},{"$f":"'Population 2016'!T43/'Population 2016'!T$5","v":0},{"$f":"'Population 2016'!U43/'Population 2016'!U$5","v":0},{"$f":"'Population 2016'!V43/'Population 2016'!V$5","v":0},{"$f":"'Population 2016'!W43/'Population 2016'!W$5","v":0},{"$f":"'Population 2016'!X43/'Population 2016'!X$5","v":0},{"$f":"'Population 2016'!Y43/'Population 2016'!Y$5","v":0},{"$f":"'Population 2016'!Z43/'Population 2016'!Z$5","v":0},{"$f":"'Population 2016'!AA43/'Population 2016'!AA$5","v":0},{"$f":"'Population 2016'!AB43/'Population 2016'!AB$5","v":0},{"$f":"'Population 2016'!AC43/'Population 2016'!AC$5","v":0},{"$f":"'Population 2016'!AD43/'Population 2016'!AD$5","v":0},{"$f":"'Population 2016'!AE43/'Population 2016'!AE$5","v":0},{"$f":"'Population 2016'!AF43/'Population 2016'!AF$5","v":0},{"$f":"'Population 2016'!AG43/'Population 2016'!AG$5","v":0},{"$f":"'Population 2016'!AH43/'Population 2016'!AH$5","v":0},{"$f":"'Population 2016'!AI43/'Population 2016'!AI$5","v":0},{"$f":"'Population 2016'!AJ43/'Population 2016'!AJ$5","v":0},{"$f":"'Population 2016'!AK43/'Population 2016'!AK$5","v":0},{"$f":"'Population 2016'!AL43/'Population 2016'!AL$5","v":0},{"$f":"'Population 2016'!AM43/'Population 2016'!AM$5","v":0},{"$f":"'Population 2016'!AN43/'Population 2016'!AN$5","v":0},{"$f":"'Population 2016'!AO43/'Population 2016'!AO$5","v":0},{"$f":"'Population 2016'!AP43/'Population 2016'!AP$5","v":0},{"$f":"'Population 2016'!AQ43/'Population 2016'!AQ$5","v":0},{"$f":"'Population 2016'!AR43/'Population 2016'!AR$5","v":0},{"$f":"'Population 2016'!AS43/'Population 2016'!AS$5","v":0},{"$f":"'Population 2016'!AT43/'Population 2016'!AT$5","v":0},{"$f":"'Population 2016'!AU43/'Population 2016'!AU$5","v":0},{"$f":"'Population 2016'!AV43/'Population 2016'!AV$5","v":0},{"$f":"'Population 2016'!AW43/'Population 2016'!AW$5","v":0},{"$f":"'Population 2016'!AX43/'Population 2016'!AX$5","v":0},{"$f":"'Population 2016'!AY43/'Population 2016'!AY$5","v":0},{"$f":"'Population 2016'!AZ43/'Population 2016'!AZ$5","v":0},{"$f":"'Population 2016'!BA43/'Population 2016'!BA$5","v":0},{"$f":"'Population 2016'!BB43/'Population 2016'!BB$5","v":0},{"$f":"'Population 2016'!BC43/'Population 2016'!BC$5","v":0},41]
[null,"Male 16-19",{"$f":"'Population 2016'!C44/'Population 2016'!C$5","v":2.360301145395164E-2},{"$f":"'Population 2016'!D44/'Population 2016'!D$5","v":2.6263411676104964E-2},{"$f":"'Population 2016'!E44/'Population 2016'!E$5","v":2.8703491015802624E-2},{"$f":"'Population 2016'!F44/'Population 2016'!F$5","v":2.8452227659026524E-2},{"$f":"'Population 2016'!G44/'Population 2016'!G$5","v":2.8947653331889787E-2},{"$f":"'Population 2016'!H44/'Population 2016'!H$5","v":2.7871717469756464E-2},{"$f":"'Population 2016'!I44/'Population 2016'!I$5","v":2.594003852273679E-2},{"$f":"'Population 2016'!J44/'Population 2016'!J$5","v":3.2425797998059426E-2},{"$f":"'Population 2016'!K44/'Population 2016'!K$5","v":2.9579927231488921E-2},{"$f":"'Population 2016'!L44/'Population 2016'!L$5","v":2.5582577478436293E-2},{"$f":"'Population 2016'!M44/'Population 2016'!M$5","v":2.5582577478436293E-2},{"$f":"'Population 2016'!N44/'Population 2016'!N$5","v":2.8323193030115493E-2},{"$f":"'Population 2016'!O44/'Population 2016'!O$5","v":2.8016365995977847E-2},{"$f":"'Population 2016'!P44/'Population 2016'!P$5","v":2.9561591344528345E-2},{"$f":"'Population 2016'!Q44/'Population 2016'!Q$5","v":2.7132466128482628E-2},{"$f":"'Population 2016'!R44/'Population 2016'!R$5","v":3.2935008250385908E-2},{"$f":"'Population 2016'!S44/'Population 2016'!S$5","v":2.6619191450224282E-2},{"$f":"'Population 2016'!T44/'Population 2016'!T$5","v":2.4504078584291517E-2},{"$f":"'Population 2016'!U44/'Population 2016'!U$5","v":2.4609392289647238E-2},{"$f":"'Population 2016'!V44/'Population 2016'!V$5","v":2.8598468947725938E-2},{"$f":"'Population 2016'!W44/'Population 2016'!W$5","v":2.8265317461873853E-2},{"$f":"'Population 2016'!X44/'Population 2016'!X$5","v":2.8265317461873853E-2},{"$f":"'Population 2016'!Y44/'Population 2016'!Y$5","v":3.0432743517591135E-2},{"$f":"'Population 2016'!Z44/'Population 2016'!Z$5","v":2.6696581188308557E-2},{"$f":"'Population 2016'!AA44/'Population 2016'!AA$5","v":2.8328606251706634E-2},{"$f":"'Population 2016'!AB44/'Population 2016'!AB$5","v":2.6824150742556525E-2},{"$f":"'Population 2016'!AC44/'Population 2016'!AC$5","v":2.7792545214212871E-2},{"$f":"'Population 2016'!AD44/'Population 2016'!AD$5","v":2.8270497599464067E-2},{"$f":"'Population 2016'!AE44/'Population 2016'!AE$5","v":2.8013634636905923E-2},{"$f":"'Population 2016'!AF44/'Population 2016'!AF$5","v":2.7869519974664074E-2},{"$f":"'Population 2016'!AG44/'Population 2016'!AG$5","v":2.8013634636905923E-2},{"$f":"'Population 2016'!AH44/'Population 2016'!AH$5","v":2.9291400016718837E-2},{"$f":"'Population 2016'!AI44/'Population 2016'!AI$5","v":2.6019336774870942E-2},{"$f":"'Population 2016'!AJ44/'Population 2016'!AJ$5","v":2.7340155592114435E-2},{"$f":"'Population 2016'!AK44/'Population 2016'!AK$5","v":2.9707202393673863E-2},{"$f":"'Population 2016'!AL44/'Population 2016'!AL$5","v":2.8777425019066705E-2},{"$f":"'Population 2016'!AM44/'Population 2016'!AM$5","v":3.0428373253746047E-2},{"$f":"'Population 2016'!AN44/'Population 2016'!AN$5","v":2.6944474746372859E-2},{"$f":"'Population 2016'!AO44/'Population 2016'!AO$5","v":2.6944474746372859E-2},{"$f":"'Population 2016'!AP44/'Population 2016'!AP$5","v":2.8232645879238464E-2},{"$f":"'Population 2016'!AQ44/'Population 2016'!AQ$5","v":2.821011673151751E-2},{"$f":"'Population 2016'!AR44/'Population 2016'!AR$5","v":2.7717535020071141E-2},{"$f":"'Population 2016'!AS44/'Population 2016'!AS$5","v":2.594003852273679E-2},{"$f":"'Population 2016'!AT44/'Population 2016'!AT$5","v":2.8945009753782888E-2},{"$f":"'Population 2016'!AU44/'Population 2016'!AU$5","v":2.8945009753782888E-2},{"$f":"'Population 2016'!AV44/'Population 2016'!AV$5","v":2.6639214444092493E-2},{"$f":"'Population 2016'!AW44/'Population 2016'!AW$5","v":2.8094301055586062E-2},{"$f":"'Population 2016'!AX44/'Population 2016'!AX$5","v":3.3965012714517552E-2},{"$f":"'Population 2016'!AY44/'Population 2016'!AY$5","v":2.829778770539457E-2},{"$f":"'Population 2016'!AZ44/'Population 2016'!AZ$5","v":2.8326362961727195E-2},{"$f":"'Population 2016'!BA44/'Population 2016'!BA$5","v":2.7207946447851437E-2},{"$f":"'Population 2016'!BB44/'Population 2016'!BB$5","v":2.92080677792892E-2},{"$f":"'Population 2016'!BC44/'Population 2016'!BC$5","v":2.4609392289647238E-2},42]
[null,"Male 20-24",{"$f":"'Population 2016'!C45/'Population 2016'!C$5","v":5.1392005233755679E-2},{"$f":"'Population 2016'!D45/'Population 2016'!D$5","v":4.2156920278160849E-2},{"$f":"'Population 2016'!E45/'Population 2016'!E$5","v":3.3686638321012194E-2},{"$f":"'Population 2016'!F45/'Population 2016'!F$5","v":3.3963430337368011E-2},{"$f":"'Population 2016'!G45/'Population 2016'!G$5","v":3.999079737995994E-2},{"$f":"'Population 2016'!H45/'Population 2016'!H$5","v":3.5170372195724567E-2},{"$f":"'Population 2016'!I45/'Population 2016'!I$5","v":2.9404991206766602E-2},{"$f":"'Population 2016'!J45/'Population 2016'!J$5","v":4.5561978056608311E-2},{"$f":"'Population 2016'!K45/'Population 2016'!K$5","v":3.758918867835373E-2},{"$f":"'Population 2016'!L45/'Population 2016'!L$5","v":3.1737963242418947E-2},{"$f":"'Population 2016'!M45/'Population 2016'!M$5","v":3.1737963242418947E-2},{"$f":"'Population 2016'!N45/'Population 2016'!N$5","v":5.5055014828686473E-2},{"$f":"'Population 2016'!O45/'Population 2016'!O$5","v":3.6546101187822588E-2},{"$f":"'Population 2016'!P45/'Population 2016'!P$5","v":3.7585934858559676E-2},{"$f":"'Population 2016'!Q45/'Population 2016'!Q$5","v":3.5134722271183652E-2},{"$f":"'Population 2016'!R45/'Population 2016'!R$5","v":3.7459413424176295E-2},{"$f":"'Population 2016'!S45/'Population 2016'!S$5","v":4.1147737483472231E-2},{"$f":"'Population 2016'!T45/'Population 2016'!T$5","v":4.8391599931131721E-2},{"$f":"'Population 2016'!U45/'Population 2016'!U$5","v":2.8769973000486875E-2},{"$f":"'Population 2016'!V45/'Population 2016'!V$5","v":3.5643141175842039E-2},{"$f":"'Population 2016'!W45/'Population 2016'!W$5","v":3.9286438007831138E-2},{"$f":"'Population 2016'!X45/'Population 2016'!X$5","v":3.9286438007831138E-2},{"$f":"'Population 2016'!Y45/'Population 2016'!Y$5","v":4.0396814041112221E-2},{"$f":"'Population 2016'!Z45/'Population 2016'!Z$5","v":5.2463979650898308E-2},{"$f":"'Population 2016'!AA45/'Population 2016'!AA$5","v":4.2618145482497836E-2},{"$f":"'Population 2016'!AB45/'Population 2016'!AB$5","v":4.1470579204323309E-2},{"$f":"'Population 2016'!AC45/'Population 2016'!AC$5","v":4.5513124171271006E-2},{"$f":"'Population 2016'!AD45/'Population 2016'!AD$5","v":3.3990844467602067E-2},{"$f":"'Population 2016'!AE45/'Population 2016'!AE$5","v":3.171490467047916E-2},{"$f":"'Population 2016'!AF45/'Population 2016'!AF$5","v":3.637515269420441E-2},{"$f":"'Population 2016'!AG45/'Population 2016'!AG$5","v":3.171490467047916E-2},{"$f":"'Population 2016'!AH45/'Population 2016'!AH$5","v":3.7418611779348521E-2},{"$f":"'Population 2016'!AI45/'Population 2016'!AI$5","v":4.3459893691486569E-2},{"$f":"'Population 2016'!AJ45/'Population 2016'!AJ$5","v":3.4966399910771551E-2},{"$f":"'Population 2016'!AK45/'Population 2016'!AK$5","v":3.7941742202330812E-2},{"$f":"'Population 2016'!AL45/'Population 2016'!AL$5","v":3.6785441904187581E-2},{"$f":"'Population 2016'!AM45/'Population 2016'!AM$5","v":3.8976279560000146E-2},{"$f":"'Population 2016'!AN45/'Population 2016'!AN$5","v":3.1471582851532669E-2},{"$f":"'Population 2016'!AO45/'Population 2016'!AO$5","v":3.1471582851532669E-2},{"$f":"'Population 2016'!AP45/'Population 2016'!AP$5","v":3.5112470871708698E-2},{"$f":"'Population 2016'!AQ45/'Population 2016'!AQ$5","v":3.7430810544199049E-2},{"$f":"'Population 2016'!AR45/'Population 2016'!AR$5","v":4.0476004297824157E-2},{"$f":"'Population 2016'!AS45/'Population 2016'!AS$5","v":2.9404991206766602E-2},{"$f":"'Population 2016'!AT45/'Population 2016'!AT$5","v":3.7960668529551329E-2},{"$f":"'Population 2016'!AU45/'Population 2016'!AU$5","v":3.7960668529551329E-2},{"$f":"'Population 2016'!AV45/'Population 2016'!AV$5","v":3.1781226903178125E-2},{"$f":"'Population 2016'!AW45/'Population 2016'!AW$5","v":3.5778570992739032E-2},{"$f":"'Population 2016'!AX45/'Population 2016'!AX$5","v":4.9874132665448455E-2},{"$f":"'Population 2016'!AY45/'Population 2016'!AY$5","v":4.069183929500321E-2},{"$f":"'Population 2016'!AZ45/'Population 2016'!AZ$5","v":4.1928654842922151E-2},{"$f":"'Population 2016'!BA45/'Population 2016'!BA$5","v":3.8814510904772184E-2},{"$f":"'Population 2016'!BB45/'Population 2016'!BB$5","v":3.7922153249138606E-2},{"$f":"'Population 2016'!BC45/'Population 2016'!BC$5","v":2.8769973000486875E-2},43]
[null,"Male 25-29",{"$f":"'Population 2016'!C46/'Population 2016'!C$5","v":6.6873495423019319E-2},{"$f":"'Population 2016'!D46/'Population 2016'!D$5","v":4.9277212131881888E-2},{"$f":"'Population 2016'!E46/'Population 2016'!E$5","v":3.3138163970391758E-2},{"$f":"'Population 2016'!F46/'Population 2016'!F$5","v":3.0986350759721865E-2},{"$f":"'Population 2016'!G46/'Population 2016'!G$5","v":3.3643696205272557E-2},{"$f":"'Population 2016'!H46/'Population 2016'!H$5","v":3.2148450292302851E-2},{"$f":"'Population 2016'!I46/'Population 2016'!I$5","v":2.5803952767774894E-2},{"$f":"'Population 2016'!J46/'Population 2016'!J$5","v":3.5825945614224225E-2},{"$f":"'Population 2016'!K46/'Population 2016'!K$5","v":3.1328261588621648E-2},{"$f":"'Population 2016'!L46/'Population 2016'!L$5","v":2.9164614871412007E-2},{"$f":"'Population 2016'!M46/'Population 2016'!M$5","v":2.9164614871412007E-2},{"$f":"'Population 2016'!N46/'Population 2016'!N$5","v":5.6381157521640239E-2},{"$f":"'Population 2016'!O46/'Population 2016'!O$5","v":3.5188872707819417E-2},{"$f":"'Population 2016'!P46/'Population 2016'!P$5","v":3.1815620421503439E-2},{"$f":"'Population 2016'!Q46/'Population 2016'!Q$5","v":2.9976145991233945E-2},{"$f":"'Population 2016'!R46/'Population 2016'!R$5","v":2.9741310480651515E-2},{"$f":"'Population 2016'!S46/'Population 2016'!S$5","v":4.3514142824610615E-2},{"$f":"'Population 2016'!T46/'Population 2016'!T$5","v":6.0383056541788618E-2},{"$f":"'Population 2016'!U46/'Population 2016'!U$5","v":2.7132297614305315E-2},{"$f":"'Population 2016'!V46/'Population 2016'!V$5","v":3.4635669091214384E-2},{"$f":"'Population 2016'!W46/'Population 2016'!W$5","v":3.420730949999673E-2},{"$f":"'Population 2016'!X46/'Population 2016'!X$5","v":3.420730949999673E-2},{"$f":"'Population 2016'!Y46/'Population 2016'!Y$5","v":3.5206117549800478E-2},{"$f":"'Population 2016'!Z46/'Population 2016'!Z$5","v":6.1612557904538089E-2},{"$f":"'Population 2016'!AA46/'Population 2016'!AA$5","v":4.4322286645180536E-2},{"$f":"'Population 2016'!AB46/'Population 2016'!AB$5","v":4.7167436005035666E-2},{"$f":"'Population 2016'!AC46/'Population 2016'!AC$5","v":4.9434137118577803E-2},{"$f":"'Population 2016'!AD46/'Population 2016'!AD$5","v":3.2237894971900702E-2},{"$f":"'Population 2016'!AE46/'Population 2016'!AE$5","v":3.1704637624616269E-2},{"$f":"'Population 2016'!AF46/'Population 2016'!AF$5","v":3.5017870877256482E-2},{"$f":"'Population 2016'!AG46/'Population 2016'!AG$5","v":3.1704637624616269E-2},{"$f":"'Population 2016'!AH46/'Population 2016'!AH$5","v":3.5141134837409327E-2},{"$f":"'Population 2016'!AI46/'Population 2016'!AI$5","v":4.9720010499606268E-2},{"$f":"'Population 2016'!AJ46/'Population 2016'!AJ$5","v":3.4297186515350082E-2},{"$f":"'Population 2016'!AK46/'Population 2016'!AK$5","v":3.6319977873602957E-2},{"$f":"'Population 2016'!AL46/'Population 2016'!AL$5","v":3.1606392224330891E-2},{"$f":"'Population 2016'!AM46/'Population 2016'!AM$5","v":3.6933474832573317E-2},{"$f":"'Population 2016'!AN46/'Population 2016'!AN$5","v":3.2998800043634778E-2},{"$f":"'Population 2016'!AO46/'Population 2016'!AO$5","v":3.2998800043634778E-2},{"$f":"'Population 2016'!AP46/'Population 2016'!AP$5","v":3.2029231330152341E-2},{"$f":"'Population 2016'!AQ46/'Population 2016'!AQ$5","v":3.9177673042143916E-2},{"$f":"'Population 2016'!AR46/'Population 2016'!AR$5","v":4.1469814869642838E-2},{"$f":"'Population 2016'!AS46/'Population 2016'!AS$5","v":2.5803952767774894E-2},{"$f":"'Population 2016'!AT46/'Population 2016'!AT$5","v":3.727526756998998E-2},{"$f":"'Population 2016'!AU46/'Population 2016'!AU$5","v":3.727526756998998E-2},{"$f":"'Population 2016'!AV46/'Population 2016'!AV$5","v":2.9553373455812479E-2},{"$f":"'Population 2016'!AW46/'Population 2016'!AW$5","v":3.3254011837207886E-2},{"$f":"'Population 2016'!AX46/'Population 2016'!AX$5","v":3.8258558339829024E-2},{"$f":"'Population 2016'!AY46/'Population 2016'!AY$5","v":3.7529451363177382E-2},{"$f":"'Population 2016'!AZ46/'Population 2016'!AZ$5","v":4.0453083742255411E-2},{"$f":"'Population 2016'!BA46/'Population 2016'!BA$5","v":3.870654286331246E-2},{"$f":"'Population 2016'!BB46/'Population 2016'!BB$5","v":3.7314514959640388E-2},{"$f":"'Population 2016'!BC46/'Population 2016'!BC$5","v":2.7132297614305315E-2},44]
[null,"Male 30-34",{"$f":"'Population 2016'!C47/'Population 2016'!C$5","v":5.383510602955232E-2},{"$f":"'Population 2016'!D47/'Population 2016'!D$5","v":4.4492043465078297E-2},{"$f":"'Population 2016'!E47/'Population 2016'!E$5","v":3.592272605815703E-2},{"$f":"'Population 2016'!F47/'Population 2016'!F$5","v":3.1913468967293329E-2},{"$f":"'Population 2016'!G47/'Population 2016'!G$5","v":2.6971796676230175E-2},{"$f":"'Population 2016'!H47/'Population 2016'!H$5","v":2.9496162613119423E-2},{"$f":"'Population 2016'!I47/'Population 2016'!I$5","v":2.5521313122854033E-2},{"$f":"'Population 2016'!J47/'Population 2016'!J$5","v":3.056815637361817E-2},{"$f":"'Population 2016'!K47/'Population 2016'!K$5","v":3.2580447006568064E-2},{"$f":"'Population 2016'!L47/'Population 2016'!L$5","v":2.7949422585103172E-2},{"$f":"'Population 2016'!M47/'Population 2016'!M$5","v":2.7949422585103172E-2},{"$f":"'Population 2016'!N47/'Population 2016'!N$5","v":4.2396380032309659E-2},{"$f":"'Population 2016'!O47/'Population 2016'!O$5","v":3.3266957925917121E-2},{"$f":"'Population 2016'!P47/'Population 2016'!P$5","v":2.7386453285247379E-2},{"$f":"'Population 2016'!Q47/'Population 2016'!Q$5","v":2.9729380383309245E-2},{"$f":"'Population 2016'!R47/'Population 2016'!R$5","v":2.5176984084739448E-2},{"$f":"'Population 2016'!S47/'Population 2016'!S$5","v":4.0374529322772038E-2},{"$f":"'Population 2016'!T47/'Population 2016'!T$5","v":5.2230541220922931E-2},{"$f":"'Population 2016'!U47/'Population 2016'!U$5","v":2.7353605098924445E-2},{"$f":"'Population 2016'!V47/'Population 2016'!V$5","v":3.5543920440234772E-2},{"$f":"'Population 2016'!W47/'Population 2016'!W$5","v":3.332810385739219E-2},{"$f":"'Population 2016'!X47/'Population 2016'!X$5","v":3.332810385739219E-2},{"$f":"'Population 2016'!Y47/'Population 2016'!Y$5","v":3.3159250250393478E-2},{"$f":"'Population 2016'!Z47/'Population 2016'!Z$5","v":5.4016489121786818E-2},{"$f":"'Population 2016'!AA47/'Population 2016'!AA$5","v":4.1035586320895427E-2},{"$f":"'Population 2016'!AB47/'Population 2016'!AB$5","v":4.3007891262294914E-2},{"$f":"'Population 2016'!AC47/'Population 2016'!AC$5","v":4.4010293305421153E-2},{"$f":"'Population 2016'!AD47/'Population 2016'!AD$5","v":3.1474933938739812E-2},{"$f":"'Population 2016'!AE47/'Population 2016'!AE$5","v":3.3183092228872987E-2},{"$f":"'Population 2016'!AF47/'Population 2016'!AF$5","v":3.358518451492256E-2},{"$f":"'Population 2016'!AG47/'Population 2016'!AG$5","v":3.3183092228872987E-2},{"$f":"'Population 2016'!AH47/'Population 2016'!AH$5","v":3.5692856413066701E-2},{"$f":"'Population 2016'!AI47/'Population 2016'!AI$5","v":4.5261779245778282E-2},{"$f":"'Population 2016'!AJ47/'Population 2016'!AJ$5","v":3.510581936815102E-2},{"$f":"'Population 2016'!AK47/'Population 2016'!AK$5","v":3.5377091635970484E-2},{"$f":"'Population 2016'!AL47/'Population 2016'!AL$5","v":2.8591192068249942E-2},{"$f":"'Population 2016'!AM47/'Population 2016'!AM$5","v":3.7512993904183764E-2},{"$f":"'Population 2016'!AN47/'Population 2016'!AN$5","v":2.9453474419112034E-2},{"$f":"'Population 2016'!AO47/'Population 2016'!AO$5","v":2.9453474419112034E-2},{"$f":"'Population 2016'!AP47/'Population 2016'!AP$5","v":3.3178510850783889E-2},{"$f":"'Population 2016'!AQ47/'Population 2016'!AQ$5","v":3.7115690250452131E-2},{"$f":"'Population 2016'!AR47/'Population 2016'!AR$5","v":3.8385682711772881E-2},{"$f":"'Population 2016'!AS47/'Population 2016'!AS$5","v":2.5521313122854033E-2},{"$f":"'Population 2016'!AT47/'Population 2016'!AT$5","v":3.4533663731744609E-2},{"$f":"'Population 2016'!AU47/'Population 2016'!AU$5","v":3.4533663731744609E-2},{"$f":"'Population 2016'!AV47/'Population 2016'!AV$5","v":2.6554746066941189E-2},{"$f":"'Population 2016'!AW47/'Population 2016'!AW$5","v":3.3776465922264937E-2},{"$f":"'Population 2016'!AX47/'Population 2016'!AX$5","v":2.9479790945218957E-2},{"$f":"'Population 2016'!AY47/'Population 2016'!AY$5","v":3.4815336128025461E-2},{"$f":"'Population 2016'!AZ47/'Population 2016'!AZ$5","v":3.6124166575582033E-2},{"$f":"'Population 2016'!BA47/'Population 2016'!BA$5","v":3.6169293889008851E-2},{"$f":"'Population 2016'!BB47/'Population 2016'!BB$5","v":3.8736940955511209E-2},{"$f":"'Population 2016'!BC47/'Population 2016'!BC$5","v":2.7353605098924445E-2},45]
[null,"Male 35-39",{"$f":"'Population 2016'!C48/'Population 2016'!C$5","v":4.3536260624677366E-2},{"$f":"'Population 2016'!D48/'Population 2016'!D$5","v":4.1254658020597988E-2},{"$f":"'Population 2016'!E48/'Population 2016'!E$5","v":3.9162006197291384E-2},{"$f":"'Population 2016'!F48/'Population 2016'!F$5","v":3.0800927118207571E-2},{"$f":"'Population 2016'!G48/'Population 2016'!G$5","v":2.8568721918475613E-2},{"$f":"'Population 2016'!H48/'Population 2016'!H$5","v":2.9376193610515768E-2},{"$f":"'Population 2016'!I48/'Population 2016'!I$5","v":2.7290427937358679E-2},{"$f":"'Population 2016'!J48/'Population 2016'!J$5","v":3.1239892853884874E-2},{"$f":"'Population 2016'!K48/'Population 2016'!K$5","v":3.3856258564475737E-2},{"$f":"'Population 2016'!L48/'Population 2016'!L$5","v":2.5828792908995601E-2},{"$f":"'Population 2016'!M48/'Population 2016'!M$5","v":2.5828792908995601E-2},{"$f":"'Population 2016'!N48/'Population 2016'!N$5","v":3.2213211596113199E-2},{"$f":"'Population 2016'!O48/'Population 2016'!O$5","v":3.2157398876571465E-2},{"$f":"'Population 2016'!P48/'Population 2016'!P$5","v":2.8919193057590442E-2},{"$f":"'Population 2016'!Q48/'Population 2016'!Q$5","v":3.1879766395224496E-2},{"$f":"'Population 2016'!R48/'Population 2016'!R$5","v":3.1883749401181667E-2},{"$f":"'Population 2016'!S48/'Population 2016'!S$5","v":3.7737148062301509E-2},{"$f":"'Population 2016'!T48/'Population 2016'!T$5","v":4.4031493278362796E-2},{"$f":"'Population 2016'!U48/'Population 2016'!U$5","v":3.0407648386668436E-2},{"$f":"'Population 2016'!V48/'Population 2016'!V$5","v":3.8116027201746283E-2},{"$f":"'Population 2016'!W48/'Population 2016'!W$5","v":3.3599382921838943E-2},{"$f":"'Population 2016'!X48/'Population 2016'!X$5","v":3.3599382921838943E-2},{"$f":"'Population 2016'!Y48/'Population 2016'!Y$5","v":3.4820591087582071E-2},{"$f":"'Population 2016'!Z48/'Population 2016'!Z$5","v":4.2939856712280504E-2},{"$f":"'Population 2016'!AA48/'Population 2016'!AA$5","v":3.7348927719832552E-2},{"$f":"'Population 2016'!AB48/'Population 2016'!AB$5","v":3.9947596286705626E-2},{"$f":"'Population 2016'!AC48/'Population 2016'!AC$5","v":3.7750739003891018E-2},{"$f":"'Population 2016'!AD48/'Population 2016'!AD$5","v":3.1977371692284789E-2},{"$f":"'Population 2016'!AE48/'Population 2016'!AE$5","v":3.3270362118707583E-2},{"$f":"'Population 2016'!AF48/'Population 2016'!AF$5","v":3.0312627245170341E-2},{"$f":"'Population 2016'!AG48/'Population 2016'!AG$5","v":3.3270362118707583E-2},{"$f":"'Population 2016'!AH48/'Population 2016'!AH$5","v":3.6627253559718749E-2},{"$f":"'Population 2016'!AI48/'Population 2016'!AI$5","v":4.0832257852830518E-2},{"$f":"'Population 2016'!AJ48/'Population 2016'!AJ$5","v":3.644424615899395E-2},{"$f":"'Population 2016'!AK48/'Population 2016'!AK$5","v":3.322731101416844E-2},{"$f":"'Population 2016'!AL48/'Population 2016'!AL$5","v":2.7997020272786933E-2},{"$f":"'Population 2016'!AM48/'Population 2016'!AM$5","v":3.7596299770727766E-2},{"$f":"'Population 2016'!AN48/'Population 2016'!AN$5","v":2.9235300534526016E-2},{"$f":"'Population 2016'!AO48/'Population 2016'!AO$5","v":2.9235300534526016E-2},{"$f":"'Population 2016'!AP48/'Population 2016'!AP$5","v":3.3170584785124357E-2},{"$f":"'Population 2016'!AQ48/'Population 2016'!AQ$5","v":3.3854880254288379E-2},{"$f":"'Population 2016'!AR48/'Population 2016'!AR$5","v":3.5926887087212728E-2},{"$f":"'Population 2016'!AS48/'Population 2016'!AS$5","v":2.7290427937358679E-2},{"$f":"'Population 2016'!AT48/'Population 2016'!AT$5","v":3.7538883323667421E-2},{"$f":"'Population 2016'!AU48/'Population 2016'!AU$5","v":3.7538883323667421E-2},{"$f":"'Population 2016'!AV48/'Population 2016'!AV$5","v":2.8054059761376836E-2},{"$f":"'Population 2016'!AW48/'Population 2016'!AW$5","v":3.5606961986698396E-2},{"$f":"'Population 2016'!AX48/'Population 2016'!AX$5","v":2.9824808004395773E-2},{"$f":"'Population 2016'!AY48/'Population 2016'!AY$5","v":3.2837122487071997E-2},{"$f":"'Population 2016'!AZ48/'Population 2016'!AZ$5","v":3.216629945176637E-2},{"$f":"'Population 2016'!BA48/'Population 2016'!BA$5","v":3.2430900453465777E-2},{"$f":"'Population 2016'!BB48/'Population 2016'!BB$5","v":3.8771465858323612E-2},{"$f":"'Population 2016'!BC48/'Population 2016'!BC$5","v":3.0407648386668436E-2},46]
[null,"Male 40-44",{"$f":"'Population 2016'!C49/'Population 2016'!C$5","v":3.7351842292221431E-2},{"$f":"'Population 2016'!D49/'Population 2016'!D$5","v":4.0176344590827737E-2},{"$f":"'Population 2016'!E49/'Population 2016'!E$5","v":4.2766935903506019E-2},{"$f":"'Population 2016'!F49/'Population 2016'!F$5","v":3.4911151171774402E-2},{"$f":"'Population 2016'!G49/'Population 2016'!G$5","v":3.3007632761327343E-2},{"$f":"'Population 2016'!H49/'Population 2016'!H$5","v":3.3909076465648336E-2},{"$f":"'Population 2016'!I49/'Population 2016'!I$5","v":3.4262205845406582E-2},{"$f":"'Population 2016'!J49/'Population 2016'!J$5","v":3.5461051723708982E-2},{"$f":"'Population 2016'!K49/'Population 2016'!K$5","v":3.81089637575013E-2},{"$f":"'Population 2016'!L49/'Population 2016'!L$5","v":3.0927835051546393E-2},{"$f":"'Population 2016'!M49/'Population 2016'!M$5","v":3.0927835051546393E-2},{"$f":"'Population 2016'!N49/'Population 2016'!N$5","v":2.9617186809300682E-2},{"$f":"'Population 2016'!O49/'Population 2016'!O$5","v":3.6793770618480104E-2},{"$f":"'Population 2016'!P49/'Population 2016'!P$5","v":3.4497915023103801E-2},{"$f":"'Population 2016'!Q49/'Population 2016'!Q$5","v":3.9741013619111407E-2},{"$f":"'Population 2016'!R49/'Population 2016'!R$5","v":3.8005003459839252E-2},{"$f":"'Population 2016'!S49/'Population 2016'!S$5","v":3.8435330316997696E-2},{"$f":"'Population 2016'!T49/'Population 2016'!T$5","v":3.9008296766448118E-2},{"$f":"'Population 2016'!U49/'Population 2016'!U$5","v":3.6117381489841983E-2},{"$f":"'Population 2016'!V49/'Population 2016'!V$5","v":4.1199502369849109E-2},{"$f":"'Population 2016'!W49/'Population 2016'!W$5","v":3.6573647363363597E-2},{"$f":"'Population 2016'!X49/'Population 2016'!X$5","v":3.6573647363363597E-2},{"$f":"'Population 2016'!Y49/'Population 2016'!Y$5","v":3.8449309231967696E-2},{"$f":"'Population 2016'!Z49/'Population 2016'!Z$5","v":3.6232318910997846E-2},{"$f":"'Population 2016'!AA49/'Population 2016'!AA$5","v":3.6737031419313733E-2},{"$f":"'Population 2016'!AB49/'Population 2016'!AB$5","v":3.9734706201447242E-2},{"$f":"'Population 2016'!AC49/'Population 2016'!AC$5","v":3.5389443156172366E-2},{"$f":"'Population 2016'!AD49/'Population 2016'!AD$5","v":3.4065279690349476E-2},{"$f":"'Population 2016'!AE49/'Population 2016'!AE$5","v":3.4466472961734718E-2},{"$f":"'Population 2016'!AF49/'Population 2016'!AF$5","v":3.1941365425507851E-2},{"$f":"'Population 2016'!AG49/'Population 2016'!AG$5","v":3.4466472961734718E-2},{"$f":"'Population 2016'!AH49/'Population 2016'!AH$5","v":3.9157370684450556E-2},{"$f":"'Population 2016'!AI49/'Population 2016'!AI$5","v":3.9759055910403358E-2},{"$f":"'Population 2016'!AJ49/'Population 2016'!AJ$5","v":3.7880266570002506E-2},{"$f":"'Population 2016'!AK49/'Population 2016'!AK$5","v":3.7464013175263697E-2},{"$f":"'Population 2016'!AL49/'Population 2016'!AL$5","v":3.2812472286763268E-2},{"$f":"'Population 2016'!AM49/'Population 2016'!AM$5","v":3.9921620045564689E-2},{"$f":"'Population 2016'!AN49/'Population 2016'!AN$5","v":3.3926039053125343E-2},{"$f":"'Population 2016'!AO49/'Population 2016'!AO$5","v":3.3926039053125343E-2},{"$f":"'Population 2016'!AP49/'Population 2016'!AP$5","v":3.3186436916443414E-2},{"$f":"'Population 2016'!AQ49/'Population 2016'!AQ$5","v":3.4457719077108567E-2},{"$f":"'Population 2016'!AR49/'Population 2016'!AR$5","v":3.6742475633150452E-2},{"$f":"'Population 2016'!AS49/'Population 2016'!AS$5","v":3.4262205845406582E-2},{"$f":"'Population 2016'!AT49/'Population 2016'!AT$5","v":4.2178520588390361E-2},{"$f":"'Population 2016'!AU49/'Population 2016'!AU$5","v":4.2178520588390361E-2},{"$f":"'Population 2016'!AV49/'Population 2016'!AV$5","v":3.2140217506071163E-2},{"$f":"'Population 2016'!AW49/'Population 2016'!AW$5","v":3.8352706083348585E-2},{"$f":"'Population 2016'!AX49/'Population 2016'!AX$5","v":3.402890476251326E-2},{"$f":"'Population 2016'!AY49/'Population 2016'!AY$5","v":3.4348704140020198E-2},{"$f":"'Population 2016'!AZ49/'Population 2016'!AZ$5","v":3.2390655291633826E-2},{"$f":"'Population 2016'!BA49/'Population 2016'!BA$5","v":3.2849276614122222E-2},{"$f":"'Population 2016'!BB49/'Population 2016'!BB$5","v":4.2928264156936395E-2},{"$f":"'Population 2016'!BC49/'Population 2016'!BC$5","v":3.6117381489841983E-2},47]
[null,"Male 45-49",{"$f":"'Population 2016'!C50/'Population 2016'!C$5","v":3.721384287488564E-2},{"$f":"'Population 2016'!D50/'Population 2016'!D$5","v":4.2125133260956737E-2},{"$f":"'Population 2016'!E50/'Population 2016'!E$5","v":4.6629695432661884E-2},{"$f":"'Population 2016'!F50/'Population 2016'!F$5","v":4.1390677311357198E-2},{"$f":"'Population 2016'!G50/'Population 2016'!G$5","v":4.0721593677258701E-2},{"$f":"'Population 2016'!H50/'Population 2016'!H$5","v":4.1716788851313011E-2},{"$f":"'Population 2016'!I50/'Population 2016'!I$5","v":4.4290679172598608E-2},{"$f":"'Population 2016'!J50/'Population 2016'!J$5","v":4.4259970310906178E-2},{"$f":"'Population 2016'!K50/'Population 2016'!K$5","v":4.857534376033644E-2},{"$f":"'Population 2016'!L50/'Population 2016'!L$5","v":4.0196654647117691E-2},{"$f":"'Population 2016'!M50/'Population 2016'!M$5","v":4.0196654647117691E-2},{"$f":"'Population 2016'!N50/'Population 2016'!N$5","v":3.6280049187838066E-2},{"$f":"'Population 2016'!O50/'Population 2016'!O$5","v":4.424366709265809E-2},{"$f":"'Population 2016'!P50/'Population 2016'!P$5","v":4.1744618505578722E-2},{"$f":"'Population 2016'!Q50/'Population 2016'!Q$5","v":4.3959530440300348E-2},{"$f":"'Population 2016'!R50/'Population 2016'!R$5","v":4.2689093522116354E-2},{"$f":"'Population 2016'!S50/'Population 2016'!S$5","v":4.219015624806919E-2},{"$f":"'Population 2016'!T50/'Population 2016'!T$5","v":3.7931066574221857E-2},{"$f":"'Population 2016'!U50/'Population 2016'!U$5","v":4.7005709733103175E-2},{"$f":"'Population 2016'!V50/'Population 2016'!V$5","v":4.7923615298310955E-2},{"$f":"'Population 2016'!W50/'Population 2016'!W$5","v":4.3823008386772042E-2},{"$f":"'Population 2016'!X50/'Population 2016'!X$5","v":4.3823008386772042E-2},{"$f":"'Population 2016'!Y50/'Population 2016'!Y$5","v":4.6167787475556825E-2},{"$f":"'Population 2016'!Z50/'Population 2016'!Z$5","v":3.8615285442997541E-2},{"$f":"'Population 2016'!AA50/'Population 2016'!AA$5","v":4.2248084419100468E-2},{"$f":"'Population 2016'!AB50/'Population 2016'!AB$5","v":4.2803189257238777E-2},{"$f":"'Population 2016'!AC50/'Population 2016'!AC$5","v":4.0271316306076894E-2},{"$f":"'Population 2016'!AD50/'Population 2016'!AD$5","v":4.1657672410584691E-2},{"$f":"'Population 2016'!AE50/'Population 2016'!AE$5","v":4.2012751670961711E-2},{"$f":"'Population 2016'!AF50/'Population 2016'!AF$5","v":4.0627969053974575E-2},{"$f":"'Population 2016'!AG50/'Population 2016'!AG$5","v":4.2012751670961711E-2},{"$f":"'Population 2016'!AH50/'Population 2016'!AH$5","v":4.579846372477081E-2},{"$f":"'Population 2016'!AI50/'Population 2016'!AI$5","v":4.1232828768921162E-2},{"$f":"'Population 2016'!AJ50/'Population 2016'!AJ$5","v":4.3610406268298804E-2},{"$f":"'Population 2016'!AK50/'Population 2016'!AK$5","v":4.6289428359503663E-2},{"$f":"'Population 2016'!AL50/'Population 2016'!AL$5","v":4.1192955073517674E-2},{"$f":"'Population 2016'!AM50/'Population 2016'!AM$5","v":4.5963106367103601E-2},{"$f":"'Population 2016'!AN50/'Population 2016'!AN$5","v":4.336205956147049E-2},{"$f":"'Population 2016'!AO50/'Population 2016'!AO$5","v":4.336205956147049E-2},{"$f":"'Population 2016'!AP50/'Population 2016'!AP$5","v":4.1088724378992754E-2},{"$f":"'Population 2016'!AQ50/'Population 2016'!AQ$5","v":4.3239984655011783E-2},{"$f":"'Population 2016'!AR50/'Population 2016'!AR$5","v":4.219896573302831E-2},{"$f":"'Population 2016'!AS50/'Population 2016'!AS$5","v":4.4290679172598608E-2},{"$f":"'Population 2016'!AT50/'Population 2016'!AT$5","v":4.2916644698687195E-2},{"$f":"'Population 2016'!AU50/'Population 2016'!AU$5","v":4.2916644698687195E-2},{"$f":"'Population 2016'!AV50/'Population 2016'!AV$5","v":3.9647344525393306E-2},{"$f":"'Population 2016'!AW50/'Population 2016'!AW$5","v":4.562511440600403E-2},{"$f":"'Population 2016'!AX50/'Population 2016'!AX$5","v":4.1925961894782572E-2},{"$f":"'Population 2016'!AY50/'Population 2016'!AY$5","v":4.1498118172638536E-2},{"$f":"'Population 2016'!AZ50/'Population 2016'!AZ$5","v":3.9452111533615983E-2},{"$f":"'Population 2016'!BA50/'Population 2016'!BA$5","v":4.143273591017059E-2},{"$f":"'Population 2016'!BB50/'Population 2016'!BB$5","v":4.8252004170608258E-2},{"$f":"'Population 2016'!BC50/'Population 2016'!BC$5","v":4.7005709733103175E-2},48]
[null,"Male 50-54",{"$f":"'Population 2016'!C51/'Population 2016'!C$5","v":3.7229176143478503E-2},{"$f":"'Population 2016'!D51/'Population 2016'!D$5","v":4.2570151501814306E-2},{"$f":"'Population 2016'!E51/'Population 2016'!E$5","v":4.7468814310961518E-2},{"$f":"'Population 2016'!F51/'Population 2016'!F$5","v":4.7077002317795519E-2},{"$f":"'Population 2016'!G51/'Population 2016'!G$5","v":4.5431169815406271E-2},{"$f":"'Population 2016'!H51/'Population 2016'!H$5","v":4.509861776254568E-2},{"$f":"'Population 2016'!I51/'Population 2016'!I$5","v":4.8750104681349972E-2},{"$f":"'Population 2016'!J51/'Population 2016'!J$5","v":4.5537098927709546E-2},{"$f":"'Population 2016'!K51/'Population 2016'!K$5","v":4.7748428861692574E-2},{"$f":"'Population 2016'!L51/'Population 2016'!L$5","v":4.6733277206805077E-2},{"$f":"'Population 2016'!M51/'Population 2016'!M$5","v":4.6733277206805077E-2},{"$f":"'Population 2016'!N51/'Population 2016'!N$5","v":3.7718713078981843E-2},{"$f":"'Population 2016'!O51/'Population 2016'!O$5","v":4.6413251305217902E-2},{"$f":"'Population 2016'!P51/'Population 2016'!P$5","v":4.6883804801081931E-2},{"$f":"'Population 2016'!Q51/'Population 2016'!Q$5","v":4.806053982914419E-2},{"$f":"'Population 2016'!R51/'Population 2016'!R$5","v":4.6215468142864743E-2},{"$f":"'Population 2016'!S51/'Population 2016'!S$5","v":4.2654434207576378E-2},{"$f":"'Population 2016'!T51/'Population 2016'!T$5","v":3.7637911057546894E-2},{"$f":"'Population 2016'!U51/'Population 2016'!U$5","v":4.5810649316159871E-2},{"$f":"'Population 2016'!V51/'Population 2016'!V$5","v":4.7213805420505107E-2},{"$f":"'Population 2016'!W51/'Population 2016'!W$5","v":4.3558266167251718E-2},{"$f":"'Population 2016'!X51/'Population 2016'!X$5","v":4.3558266167251718E-2},{"$f":"'Population 2016'!Y51/'Population 2016'!Y$5","v":4.6410231951797269E-2},{"$f":"'Population 2016'!Z51/'Population 2016'!Z$5","v":3.8669487768664475E-2},{"$f":"'Population 2016'!AA51/'Population 2016'!AA$5","v":4.3929636576117974E-2},{"$f":"'Population 2016'!AB51/'Population 2016'!AB$5","v":4.3042690603154458E-2},{"$f":"'Population 2016'!AC51/'Population 2016'!AC$5","v":4.2603651889346963E-2},{"$f":"'Population 2016'!AD51/'Population 2016'!AD$5","v":4.6194499237038965E-2},{"$f":"'Population 2016'!AE51/'Population 2016'!AE$5","v":4.6484050144251991E-2},{"$f":"'Population 2016'!AF51/'Population 2016'!AF$5","v":4.9103439955360512E-2},{"$f":"'Population 2016'!AG51/'Population 2016'!AG$5","v":4.6484050144251991E-2},{"$f":"'Population 2016'!AH51/'Population 2016'!AH$5","v":4.6311174683967567E-2},{"$f":"'Population 2016'!AI51/'Population 2016'!AI$5","v":4.1480280426983991E-2},{"$f":"'Population 2016'!AJ51/'Population 2016'!AJ$5","v":4.4419039121099742E-2},{"$f":"'Population 2016'!AK51/'Population 2016'!AK$5","v":4.5472260286888853E-2},{"$f":"'Population 2016'!AL51/'Population 2016'!AL$5","v":4.4953087032865685E-2},{"$f":"'Population 2016'!AM51/'Population 2016'!AM$5","v":4.6571601392294569E-2},{"$f":"'Population 2016'!AN51/'Population 2016'!AN$5","v":4.9525471801025414E-2},{"$f":"'Population 2016'!AO51/'Population 2016'!AO$5","v":4.9525471801025414E-2},{"$f":"'Population 2016'!AP51/'Population 2016'!AP$5","v":4.7080830017595866E-2},{"$f":"'Population 2016'!AQ51/'Population 2016'!AQ$5","v":4.6678906121554231E-2},{"$f":"'Population 2016'!AR51/'Population 2016'!AR$5","v":4.3982745434564333E-2},{"$f":"'Population 2016'!AS51/'Population 2016'!AS$5","v":4.8750104681349972E-2},{"$f":"'Population 2016'!AT51/'Population 2016'!AT$5","v":4.8927083882532821E-2},{"$f":"'Population 2016'!AU51/'Population 2016'!AU$5","v":4.8927083882532821E-2},{"$f":"'Population 2016'!AV51/'Population 2016'!AV$5","v":4.3870763382958505E-2},{"$f":"'Population 2016'!AW51/'Population 2016'!AW$5","v":4.6036976020501559E-2},{"$f":"'Population 2016'!AX51/'Population 2016'!AX$5","v":4.4341081309020279E-2},{"$f":"'Population 2016'!AY51/'Population 2016'!AY$5","v":4.3649215140295586E-2},{"$f":"'Population 2016'!AZ51/'Population 2016'!AZ$5","v":4.3729254275704565E-2},{"$f":"'Population 2016'!BA51/'Population 2016'!BA$5","v":4.7397970200820559E-2},{"$f":"'Population 2016'!BB51/'Population 2016'!BB$5","v":4.7561506114360289E-2},{"$f":"'Population 2016'!BC51/'Population 2016'!BC$5","v":4.5810649316159871E-2},49]
[null,"Male 55-59",{"$f":"'Population 2016'!C52/'Population 2016'!C$5","v":3.4740075541903268E-2},{"$f":"'Population 2016'!D52/'Population 2016'!D$5","v":3.8965992781901937E-2},{"$f":"'Population 2016'!E52/'Population 2016'!E$5","v":4.2841940942907102E-2},{"$f":"'Population 2016'!F52/'Population 2016'!F$5","v":4.153489569920165E-2},{"$f":"'Population 2016'!G52/'Population 2016'!G$5","v":4.3928977426514373E-2},{"$f":"'Population 2016'!H52/'Population 2016'!H$5","v":4.271220733237574E-2},{"$f":"'Population 2016'!I52/'Population 2016'!I$5","v":4.544217402227619E-2},{"$f":"'Population 2016'!J52/'Population 2016'!J$5","v":4.1166665284492837E-2},{"$f":"'Population 2016'!K52/'Population 2016'!K$5","v":4.3188583849170722E-2},{"$f":"'Population 2016'!L52/'Population 2016'!L$5","v":4.4096389369847347E-2},{"$f":"'Population 2016'!M52/'Population 2016'!M$5","v":4.4096389369847347E-2},{"$f":"'Population 2016'!N52/'Population 2016'!N$5","v":3.722844214401106E-2},{"$f":"'Population 2016'!O52/'Population 2016'!O$5","v":4.2430726860245092E-2},{"$f":"'Population 2016'!P52/'Population 2016'!P$5","v":4.3683083511777299E-2},{"$f":"'Population 2016'!Q52/'Population 2016'!Q$5","v":4.3994782670003875E-2},{"$f":"'Population 2016'!R52/'Population 2016'!R$5","v":4.3021770373130354E-2},{"$f":"'Population 2016'!S52/'Population 2016'!S$5","v":3.889607764563411E-2},{"$f":"'Population 2016'!T52/'Population 2016'!T$5","v":3.3214985365490474E-2},{"$f":"'Population 2016'!U52/'Population 2016'!U$5","v":4.5058203868454834E-2},{"$f":"'Population 2016'!V52/'Population 2016'!V$5","v":4.1375046748231198E-2},{"$f":"'Population 2016'!W52/'Population 2016'!W$5","v":4.1767170657410493E-2},{"$f":"'Population 2016'!X52/'Population 2016'!X$5","v":4.1767170657410493E-2},{"$f":"'Population 2016'!Y52/'Population 2016'!Y$5","v":4.1275178455032514E-2},{"$f":"'Population 2016'!Z52/'Population 2016'!Z$5","v":3.4031317329451416E-2},{"$f":"'Population 2016'!AA52/'Population 2016'!AA$5","v":3.9682903511062302E-2},{"$f":"'Population 2016'!AB52/'Population 2016'!AB$5","v":3.9296643910627108E-2},{"$f":"'Population 2016'!AC52/'Population 2016'!AC$5","v":3.848819145217109E-2},{"$f":"'Population 2016'!AD52/'Population 2016'!AD$5","v":4.4519706725222374E-2},{"$f":"'Population 2016'!AE52/'Population 2016'!AE$5","v":4.4743785870491486E-2},{"$f":"'Population 2016'!AF52/'Population 2016'!AF$5","v":4.4714895413895547E-2},{"$f":"'Population 2016'!AG52/'Population 2016'!AG$5","v":4.4743785870491486E-2},{"$f":"'Population 2016'!AH52/'Population 2016'!AH$5","v":4.1828669087801751E-2},{"$f":"'Population 2016'!AI52/'Population 2016'!AI$5","v":3.6840220054247967E-2},{"$f":"'Population 2016'!AJ52/'Population 2016'!AJ$5","v":4.101720436104063E-2},{"$f":"'Population 2016'!AK52/'Population 2016'!AK$5","v":4.0996693612260035E-2},{"$f":"'Population 2016'!AL52/'Population 2016'!AL$5","v":4.2478849257728671E-2},{"$f":"'Population 2016'!AM52/'Population 2016'!AM$5","v":4.0215001575567476E-2},{"$f":"'Population 2016'!AN52/'Population 2016'!AN$5","v":4.7780080724337294E-2},{"$f":"'Population 2016'!AO52/'Population 2016'!AO$5","v":4.7780080724337294E-2},{"$f":"'Population 2016'!AP52/'Population 2016'!AP$5","v":4.191303520758366E-2},{"$f":"'Population 2016'!AQ52/'Population 2016'!AQ$5","v":4.3500301419411413E-2},{"$f":"'Population 2016'!AR52/'Population 2016'!AR$5","v":4.0264142864558164E-2},{"$f":"'Population 2016'!AS52/'Population 2016'!AS$5","v":4.544217402227619E-2},{"$f":"'Population 2016'!AT52/'Population 2016'!AT$5","v":4.3549322507513047E-2},{"$f":"'Population 2016'!AU52/'Population 2016'!AU$5","v":4.3549322507513047E-2},{"$f":"'Population 2016'!AV52/'Population 2016'!AV$5","v":4.3290043290043288E-2},{"$f":"'Population 2016'!AW52/'Population 2016'!AW$5","v":4.3527670998840688E-2},{"$f":"'Population 2016'!AX52/'Population 2016'!AX$5","v":4.0073092502907089E-2},{"$f":"'Population 2016'!AY52/'Population 2016'!AY$5","v":4.0896851381536675E-2},{"$f":"'Population 2016'!AZ52/'Population 2016'!AZ$5","v":4.0130931767061111E-2},{"$f":"'Population 2016'!BA52/'Population 2016'!BA$5","v":4.3295184625350897E-2},{"$f":"'Population 2016'!BB52/'Population 2016'!BB$5","v":4.1326308666441103E-2},{"$f":"'Population 2016'!BC52/'Population 2016'!BC$5","v":4.5058203868454834E-2},50]
[null,"Male 60-64",{"$f":"'Population 2016'!C53/'Population 2016'!C$5","v":3.0804536603067676E-2},{"$f":"'Population 2016'!D53/'Population 2016'!D$5","v":3.4748100114433259E-2},{"$f":"'Population 2016'!E53/'Population 2016'!E$5","v":3.8365077653654857E-2},{"$f":"'Population 2016'!F53/'Population 2016'!F$5","v":3.8351789853206281E-2},{"$f":"'Population 2016'!G53/'Population 2016'!G$5","v":4.1912520976560383E-2},{"$f":"'Population 2016'!H53/'Population 2016'!H$5","v":3.8445201726256678E-2},{"$f":"'Population 2016'!I53/'Population 2016'!I$5","v":4.2291265388158444E-2},{"$f":"'Population 2016'!J53/'Population 2016'!J$5","v":3.4905417844969852E-2},{"$f":"'Population 2016'!K53/'Population 2016'!K$5","v":3.7305674998818691E-2},{"$f":"'Population 2016'!L53/'Population 2016'!L$5","v":4.178514129588741E-2},{"$f":"'Population 2016'!M53/'Population 2016'!M$5","v":4.178514129588741E-2},{"$f":"'Population 2016'!N53/'Population 2016'!N$5","v":3.0019048231407882E-2},{"$f":"'Population 2016'!O53/'Population 2016'!O$5","v":3.696218583132721E-2},{"$f":"'Population 2016'!P53/'Population 2016'!P$5","v":3.8171982418573197E-2},{"$f":"'Population 2016'!Q53/'Population 2016'!Q$5","v":3.5651754973502071E-2},{"$f":"'Population 2016'!R53/'Population 2016'!R$5","v":3.7140043647202851E-2},{"$f":"'Population 2016'!S53/'Population 2016'!S$5","v":3.3021990534378633E-2},{"$f":"'Population 2016'!T53/'Population 2016'!T$5","v":2.8124316552118864E-2},{"$f":"'Population 2016'!U53/'Population 2016'!U$5","v":4.3686097463816229E-2},{"$f":"'Population 2016'!V53/'Population 2016'!V$5","v":3.3819006113523786E-2},{"$f":"'Population 2016'!W53/'Population 2016'!W$5","v":3.5808836506971545E-2},{"$f":"'Population 2016'!X53/'Population 2016'!X$5","v":3.5808836506971545E-2},{"$f":"'Population 2016'!Y53/'Population 2016'!Y$5","v":3.4339676634711692E-2},{"$f":"'Population 2016'!Z53/'Population 2016'!Z$5","v":2.7939363083957468E-2},{"$f":"'Population 2016'!AA53/'Population 2016'!AA$5","v":3.3249023191600613E-2},{"$f":"'Population 2016'!AB53/'Population 2016'!AB$5","v":3.5161663408493089E-2},{"$f":"'Population 2016'!AC53/'Population 2016'!AC$5","v":3.1916280012659774E-2},{"$f":"'Population 2016'!AD53/'Population 2016'!AD$5","v":4.1225948118649748E-2},{"$f":"'Population 2016'!AE53/'Population 2016'!AE$5","v":4.096551299294654E-2},{"$f":"'Population 2016'!AF53/'Population 2016'!AF$5","v":3.6571204512207994E-2},{"$f":"'Population 2016'!AG53/'Population 2016'!AG$5","v":4.096551299294654E-2},{"$f":"'Population 2016'!AH53/'Population 2016'!AH$5","v":3.5642699906188756E-2},{"$f":"'Population 2016'!AI53/'Population 2016'!AI$5","v":3.0645725785283053E-2},{"$f":"'Population 2016'!AJ53/'Population 2016'!AJ$5","v":3.6374536430304215E-2},{"$f":"'Population 2016'!AK53/'Population 2016'!AK$5","v":3.7288007744238967E-2},{"$f":"'Population 2016'!AL53/'Population 2016'!AL$5","v":3.8168886681683549E-2},{"$f":"'Population 2016'!AM53/'Population 2016'!AM$5","v":3.3963439590569779E-2},{"$f":"'Population 2016'!AN53/'Population 2016'!AN$5","v":4.1780298898221886E-2},{"$f":"'Population 2016'!AO53/'Population 2016'!AO$5","v":4.1780298898221886E-2},{"$f":"'Population 2016'!AP53/'Population 2016'!AP$5","v":3.9265729277301334E-2},{"$f":"'Population 2016'!AQ53/'Population 2016'!AQ$5","v":3.4683783635666134E-2},{"$f":"'Population 2016'!AR53/'Population 2016'!AR$5","v":3.484374272492121E-2},{"$f":"'Population 2016'!AS53/'Population 2016'!AS$5","v":4.2291265388158444E-2},{"$f":"'Population 2016'!AT53/'Population 2016'!AT$5","v":4.07022723677967E-2},{"$f":"'Population 2016'!AU53/'Population 2016'!AU$5","v":4.07022723677967E-2},{"$f":"'Population 2016'!AV53/'Population 2016'!AV$5","v":4.0354767184035474E-2},{"$f":"'Population 2016'!AW53/'Population 2016'!AW$5","v":3.7410763316858872E-2},{"$f":"'Population 2016'!AX53/'Population 2016'!AX$5","v":3.3607217245741595E-2},{"$f":"'Population 2016'!AY53/'Population 2016'!AY$5","v":3.5751659985924542E-2},{"$f":"'Population 2016'!AZ53/'Population 2016'!AZ$5","v":3.5701342108139515E-2},{"$f":"'Population 2016'!BA53/'Population 2016'!BA$5","v":3.7235478298423663E-2},{"$f":"'Population 2016'!BB53/'Population 2016'!BB$5","v":3.2349833935217474E-2},{"$f":"'Population 2016'!BC53/'Population 2016'!BC$5","v":4.3686097463816229E-2},51]
[null,"Male 65-69",{"$f":"'Population 2016'!C54/'Population 2016'!C$5","v":2.7783882690273085E-2},{"$f":"'Population 2016'!D54/'Population 2016'!D$5","v":3.3417935702199662E-2},{"$f":"'Population 2016'!E54/'Population 2016'!E$5","v":3.8585404956895539E-2},{"$f":"'Population 2016'!F54/'Population 2016'!F$5","v":4.2637136234869949E-2},{"$f":"'Population 2016'!G54/'Population 2016'!G$5","v":4.5349970226817519E-2},{"$f":"'Population 2016'!H54/'Population 2016'!H$5","v":3.9816739242509232E-2},{"$f":"'Population 2016'!I54/'Population 2016'!I$5","v":4.5473578427267396E-2},{"$f":"'Population 2016'!J54/'Population 2016'!J$5","v":3.575130822752793E-2},{"$f":"'Population 2016'!K54/'Population 2016'!K$5","v":3.8675991116571377E-2},{"$f":"'Population 2016'!L54/'Population 2016'!L$5","v":4.4977999459914542E-2},{"$f":"'Population 2016'!M54/'Population 2016'!M$5","v":4.4977999459914542E-2},{"$f":"'Population 2016'!N54/'Population 2016'!N$5","v":2.9761856921259273E-2},{"$f":"'Population 2016'!O54/'Population 2016'!O$5","v":3.7516965356000041E-2},{"$f":"'Population 2016'!P54/'Population 2016'!P$5","v":3.7428152823171419E-2},{"$f":"'Population 2016'!Q54/'Population 2016'!Q$5","v":3.5263980446763259E-2},{"$f":"'Population 2016'!R54/'Population 2016'!R$5","v":3.2974929472507582E-2},{"$f":"'Population 2016'!S54/'Population 2016'!S$5","v":3.2942551339786151E-2},{"$f":"'Population 2016'!T54/'Population 2016'!T$5","v":2.603732846912328E-2},{"$f":"'Population 2016'!U54/'Population 2016'!U$5","v":4.6474571770017264E-2},{"$f":"'Population 2016'!V54/'Population 2016'!V$5","v":3.5734729547171828E-2},{"$f":"'Population 2016'!W54/'Population 2016'!W$5","v":3.7642421508834546E-2},{"$f":"'Population 2016'!X54/'Population 2016'!X$5","v":3.7642421508834546E-2},{"$f":"'Population 2016'!Y54/'Population 2016'!Y$5","v":3.5742674997217852E-2},{"$f":"'Population 2016'!Z54/'Population 2016'!Z$5","v":2.4145200287272326E-2},{"$f":"'Population 2016'!AA54/'Population 2016'!AA$5","v":3.0418753658256248E-2},{"$f":"'Population 2016'!AB54/'Population 2016'!AB$5","v":3.4001003039824777E-2},{"$f":"'Population 2016'!AC54/'Population 2016'!AC$5","v":2.8843389095632999E-2},{"$f":"'Population 2016'!AD54/'Population 2016'!AD$5","v":4.2279206520525511E-2},{"$f":"'Population 2016'!AE54/'Population 2016'!AE$5","v":4.1114385157958504E-2},{"$f":"'Population 2016'!AF54/'Population 2016'!AF$5","v":3.5606026331267249E-2},{"$f":"'Population 2016'!AG54/'Population 2016'!AG$5","v":4.1114385157958504E-2},{"$f":"'Population 2016'!AH54/'Population 2016'!AH$5","v":3.3248191114867688E-2},{"$f":"'Population 2016'!AI54/'Population 2016'!AI$5","v":2.9340110683349373E-2},{"$f":"'Population 2016'!AJ54/'Population 2016'!AJ$5","v":3.6276942810138581E-2},{"$f":"'Population 2016'!AK54/'Population 2016'!AK$5","v":3.6998855964698339E-2},{"$f":"'Population 2016'!AL54/'Population 2016'!AL$5","v":3.9711959702736735E-2},{"$f":"'Population 2016'!AM54/'Population 2016'!AM$5","v":3.2156064485984695E-2},{"$f":"'Population 2016'!AN54/'Population 2016'!AN$5","v":4.1998472782807897E-2},{"$f":"'Population 2016'!AO54/'Population 2016'!AO$5","v":4.1998472782807897E-2},{"$f":"'Population 2016'!AP54/'Population 2016'!AP$5","v":3.9772997479511123E-2},{"$f":"'Population 2016'!AQ54/'Population 2016'!AQ$5","v":3.299172466706856E-2},{"$f":"'Population 2016'!AR54/'Population 2016'!AR$5","v":3.4188999557341046E-2},{"$f":"'Population 2016'!AS54/'Population 2016'!AS$5","v":4.5473578427267396E-2},{"$f":"'Population 2016'!AT54/'Population 2016'!AT$5","v":4.0807718669267676E-2},{"$f":"'Population 2016'!AU54/'Population 2016'!AU$5","v":4.0807718669267676E-2},{"$f":"'Population 2016'!AV54/'Population 2016'!AV$5","v":4.2392566782810684E-2},{"$f":"'Population 2016'!AW54/'Population 2016'!AW$5","v":3.4398071877478793E-2},{"$f":"'Population 2016'!AX54/'Population 2016'!AX$5","v":3.4169467268103812E-2},{"$f":"'Population 2016'!AY54/'Population 2016'!AY$5","v":3.7295370398702607E-2},{"$f":"'Population 2016'!AZ54/'Population 2016'!AZ$5","v":3.6989950008916708E-2},{"$f":"'Population 2016'!BA54/'Population 2016'!BA$5","v":3.2903260634852084E-2},{"$f":"'Population 2016'!BB54/'Population 2016'!BB$5","v":3.222554428509284E-2},{"$f":"'Population 2016'!BC54/'Population 2016'!BC$5","v":4.6474571770017264E-2},52]
[null,"Male 70-74",{"$f":"'Population 2016'!C55/'Population 2016'!C$5","v":1.814947892442232E-2},{"$f":"'Population 2016'!D55/'Population 2016'!D$5","v":2.2202008939487299E-2},{"$f":"'Population 2016'!E55/'Population 2016'!E$5","v":2.5918928928037353E-2},{"$f":"'Population 2016'!F55/'Population 2016'!F$5","v":3.0574298223023436E-2},{"$f":"'Population 2016'!G55/'Population 2016'!G$5","v":3.517295512369404E-2},{"$f":"'Population 2016'!H55/'Population 2016'!H$5","v":3.02451582780233E-2},{"$f":"'Population 2016'!I55/'Population 2016'!I$5","v":3.3435223180638136E-2},{"$f":"'Population 2016'!J55/'Population 2016'!J$5","v":2.5807949710987453E-2},{"$f":"'Population 2016'!K55/'Population 2016'!K$5","v":2.7996975854084959E-2},{"$f":"'Population 2016'!L55/'Population 2016'!L$5","v":3.4414563245595921E-2},{"$f":"'Population 2016'!M55/'Population 2016'!M$5","v":3.4414563245595921E-2},{"$f":"'Population 2016'!N55/'Population 2016'!N$5","v":2.129865537168163E-2},{"$f":"'Population 2016'!O55/'Population 2016'!O$5","v":2.747149324853132E-2},{"$f":"'Population 2016'!P55/'Population 2016'!P$5","v":2.785979939141215E-2},{"$f":"'Population 2016'!Q55/'Population 2016'!Q$5","v":2.7085463155544588E-2},{"$f":"'Population 2016'!R55/'Population 2016'!R$5","v":2.453824453079257E-2},{"$f":"'Population 2016'!S55/'Population 2016'!S$5","v":2.3998580686389947E-2},{"$f":"'Population 2016'!T55/'Population 2016'!T$5","v":1.7896446303681195E-2},{"$f":"'Population 2016'!U55/'Population 2016'!U$5","v":3.2797769220555037E-2},{"$f":"'Population 2016'!V55/'Population 2016'!V$5","v":2.4927301730256982E-2},{"$f":"'Population 2016'!W55/'Population 2016'!W$5","v":2.8216291124925644E-2},{"$f":"'Population 2016'!X55/'Population 2016'!X$5","v":2.8216291124925644E-2},{"$f":"'Population 2016'!Y55/'Population 2016'!Y$5","v":2.5349358515762865E-2},{"$f":"'Population 2016'!Z55/'Population 2016'!Z$5","v":1.695758474436828E-2},{"$f":"'Population 2016'!AA55/'Population 2016'!AA$5","v":2.2214293924155422E-2},{"$f":"'Population 2016'!AB55/'Population 2016'!AB$5","v":2.32091133332651E-2},{"$f":"'Population 2016'!AC55/'Population 2016'!AC$5","v":2.1024117694514718E-2},{"$f":"'Population 2016'!AD55/'Population 2016'!AD$5","v":3.1981093453422156E-2},{"$f":"'Population 2016'!AE55/'Population 2016'!AE$5","v":3.0770336451092926E-2},{"$f":"'Population 2016'!AF55/'Population 2016'!AF$5","v":2.7070231793572517E-2},{"$f":"'Population 2016'!AG55/'Population 2016'!AG$5","v":3.0770336451092926E-2},{"$f":"'Population 2016'!AH55/'Population 2016'!AH$5","v":2.4351912913442873E-2},{"$f":"'Population 2016'!AI55/'Population 2016'!AI$5","v":2.1001946801994926E-2},{"$f":"'Population 2016'!AJ55/'Population 2016'!AJ$5","v":2.7033432785879597E-2},{"$f":"'Population 2016'!AK55/'Population 2016'!AK$5","v":2.8387161660988397E-2},{"$f":"'Population 2016'!AL55/'Population 2016'!AL$5","v":3.0072187439030878E-2},{"$f":"'Population 2016'!AM55/'Population 2016'!AM$5","v":2.2970687200959104E-2},{"$f":"'Population 2016'!AN55/'Population 2016'!AN$5","v":3.3326060870513798E-2},{"$f":"'Population 2016'!AO55/'Population 2016'!AO$5","v":3.3326060870513798E-2},{"$f":"'Population 2016'!AP55/'Population 2016'!AP$5","v":2.9849563273782159E-2},{"$f":"'Population 2016'!AQ55/'Population 2016'!AQ$5","v":2.4880802323669644E-2},{"$f":"'Population 2016'!AR55/'Population 2016'!AR$5","v":2.4921899766595978E-2},{"$f":"'Population 2016'!AS55/'Population 2016'!AS$5","v":3.3435223180638136E-2},{"$f":"'Population 2016'!AT55/'Population 2016'!AT$5","v":2.836505509569252E-2},{"$f":"'Population 2016'!AU55/'Population 2016'!AU$5","v":2.836505509569252E-2},{"$f":"'Population 2016'!AV55/'Population 2016'!AV$5","v":3.3407243163340726E-2},{"$f":"'Population 2016'!AW55/'Population 2016'!AW$5","v":2.5806180975044238E-2},{"$f":"'Population 2016'!AX55/'Population 2016'!AX$5","v":2.4623995297545269E-2},{"$f":"'Population 2016'!AY55/'Population 2016'!AY$5","v":2.7564945993084667E-2},{"$f":"'Population 2016'!AZ55/'Population 2016'!AZ$5","v":2.699173335020796E-2},{"$f":"'Population 2016'!BA55/'Population 2016'!BA$5","v":2.4616713452817966E-2},{"$f":"'Population 2016'!BB55/'Population 2016'!BB$5","v":2.365646340705551E-2},{"$f":"'Population 2016'!BC55/'Population 2016'!BC$5","v":3.2797769220555037E-2},53]
[null,"Male 75-79",{"$f":"'Population 2016'!C56/'Population 2016'!C$5","v":1.3973718777631828E-2},{"$f":"'Population 2016'!D56/'Population 2016'!D$5","v":1.6414326653169411E-2},{"$f":"'Population 2016'!E56/'Population 2016'!E$5","v":1.8652815736057267E-2},{"$f":"'Population 2016'!F56/'Population 2016'!F$5","v":2.2848313159927892E-2},{"$f":"'Population 2016'!G56/'Population 2016'!G$5","v":2.4914740431981813E-2},{"$f":"'Population 2016'!H56/'Population 2016'!H$5","v":2.2239659158336388E-2},{"$f":"'Population 2016'!I56/'Population 2016'!I$5","v":2.4181391843229209E-2},{"$f":"'Population 2016'!J56/'Population 2016'!J$5","v":1.92232735957805E-2},{"$f":"'Population 2016'!K56/'Population 2016'!K$5","v":1.9137173368615035E-2},{"$f":"'Population 2016'!L56/'Population 2016'!L$5","v":2.6519784601210426E-2},{"$f":"'Population 2016'!M56/'Population 2016'!M$5","v":2.6519784601210426E-2},{"$f":"'Population 2016'!N56/'Population 2016'!N$5","v":1.7336301749704634E-2},{"$f":"'Population 2016'!O56/'Population 2016'!O$5","v":2.0665537294062869E-2},{"$f":"'Population 2016'!P56/'Population 2016'!P$5","v":2.2686802659754309E-2},{"$f":"'Population 2016'!Q56/'Population 2016'!Q$5","v":1.9858756066321193E-2},{"$f":"'Population 2016'!R56/'Population 2016'!R$5","v":2.0213445467610582E-2},{"$f":"'Population 2016'!S56/'Population 2016'!S$5","v":1.7412188796955184E-2},{"$f":"'Population 2016'!T56/'Population 2016'!T$5","v":1.3682917409249755E-2},{"$f":"'Population 2016'!U56/'Population 2016'!U$5","v":2.5671668215819059E-2},{"$f":"'Population 2016'!V56/'Population 2016'!V$5","v":1.8378733180177225E-2},{"$f":"'Population 2016'!W56/'Population 2016'!W$5","v":1.9806640127076267E-2},{"$f":"'Population 2016'!X56/'Population 2016'!X$5","v":1.9806640127076267E-2},{"$f":"'Population 2016'!Y56/'Population 2016'!Y$5","v":1.8783485159218453E-2},{"$f":"'Population 2016'!Z56/'Population 2016'!Z$5","v":1.2588490136144628E-2},{"$f":"'Population 2016'!AA56/'Population 2016'!AA$5","v":1.6474028955118968E-2},{"$f":"'Population 2016'!AB56/'Population 2016'!AB$5","v":1.7311648567597721E-2},{"$f":"'Population 2016'!AC56/'Population 2016'!AC$5","v":1.5814372979245834E-2},{"$f":"'Population 2016'!AD56/'Population 2016'!AD$5","v":2.194722542707209E-2},{"$f":"'Population 2016'!AE56/'Population 2016'!AE$5","v":2.0821569009948769E-2},{"$f":"'Population 2016'!AF56/'Population 2016'!AF$5","v":1.9499615436818531E-2},{"$f":"'Population 2016'!AG56/'Population 2016'!AG$5","v":2.0821569009948769E-2},{"$f":"'Population 2016'!AH56/'Population 2016'!AH$5","v":1.7658805717841786E-2},{"$f":"'Population 2016'!AI56/'Population 2016'!AI$5","v":1.5526566191267828E-2},{"$f":"'Population 2016'!AJ56/'Population 2016'!AJ$5","v":1.8417310319828236E-2},{"$f":"'Population 2016'!AK56/'Population 2016'!AK$5","v":2.1925247979080496E-2},{"$f":"'Population 2016'!AL56/'Population 2016'!AL$5","v":2.1824728188574165E-2},{"$f":"'Population 2016'!AM56/'Population 2016'!AM$5","v":1.6947310850408018E-2},{"$f":"'Population 2016'!AN56/'Population 2016'!AN$5","v":2.5471801025417257E-2},{"$f":"'Population 2016'!AO56/'Population 2016'!AO$5","v":2.5471801025417257E-2},{"$f":"'Population 2016'!AP56/'Population 2016'!AP$5","v":2.2993516478290506E-2},{"$f":"'Population 2016'!AQ56/'Population 2016'!AQ$5","v":1.8667452183920644E-2},{"$f":"'Population 2016'!AR56/'Population 2016'!AR$5","v":1.8382488081958963E-2},{"$f":"'Population 2016'!AS56/'Population 2016'!AS$5","v":2.4181391843229209E-2},{"$f":"'Population 2016'!AT56/'Population 2016'!AT$5","v":2.0614751937575788E-2},{"$f":"'Population 2016'!AU56/'Population 2016'!AU$5","v":2.0614751937575788E-2},{"$f":"'Population 2016'!AV56/'Population 2016'!AV$5","v":2.441136099672685E-2},{"$f":"'Population 2016'!AW56/'Population 2016'!AW$5","v":1.8407926047958996E-2},{"$f":"'Population 2016'!AX56/'Population 2016'!AX$5","v":1.9269841675505068E-2},{"$f":"'Population 2016'!AY56/'Population 2016'!AY$5","v":2.0403292432912088E-2},{"$f":"'Population 2016'!AZ56/'Population 2016'!AZ$5","v":2.0928372959943854E-2},{"$f":"'Population 2016'!BA56/'Population 2016'!BA$5","v":1.6694558410710429E-2},{"$f":"'Population 2016'!BB56/'Population 2016'!BB$5","v":1.7020777086512503E-2},{"$f":"'Population 2016'!BC56/'Population 2016'!BC$5","v":2.5671668215819059E-2},54]
[null,"Male 80-84",{"$f":"'Population 2016'!C57/'Population 2016'!C$5","v":1.0303956494405913E-2},{"$f":"'Population 2016'!D57/'Population 2016'!D$5","v":1.1445771348649785E-2},{"$f":"'Population 2016'!E57/'Population 2016'!E$5","v":1.2493026875243181E-2},{"$f":"'Population 2016'!F57/'Population 2016'!F$5","v":1.5503476693278393E-2},{"$f":"'Population 2016'!G57/'Population 2016'!G$5","v":1.5847453039571267E-2},{"$f":"'Population 2016'!H57/'Population 2016'!H$5","v":1.4629733506693946E-2},{"$f":"'Population 2016'!I57/'Population 2016'!I$5","v":1.5942969600535969E-2},{"$f":"'Population 2016'!J57/'Population 2016'!J$5","v":1.253908096497848E-2},{"$f":"'Population 2016'!K57/'Population 2016'!K$5","v":1.1482304021169022E-2},{"$f":"'Population 2016'!L57/'Population 2016'!L$5","v":1.7870474798659317E-2},{"$f":"'Population 2016'!M57/'Population 2016'!M$5","v":1.7870474798659317E-2},{"$f":"'Population 2016'!N57/'Population 2016'!N$5","v":1.2329108430248913E-2},{"$f":"'Population 2016'!O57/'Population 2016'!O$5","v":1.3166106933753381E-2},{"$f":"'Population 2016'!P57/'Population 2016'!P$5","v":1.6848867350388819E-2},{"$f":"'Population 2016'!Q57/'Population 2016'!Q$5","v":1.3959882962597384E-2},{"$f":"'Population 2016'!R57/'Population 2016'!R$5","v":1.4664395592697077E-2},{"$f":"'Population 2016'!S57/'Population 2016'!S$5","v":1.2065048343163198E-2},{"$f":"'Population 2016'!T57/'Population 2016'!T$5","v":1.044657357040153E-2},{"$f":"'Population 2016'!U57/'Population 2016'!U$5","v":1.5712831407958216E-2},{"$f":"'Population 2016'!V57/'Population 2016'!V$5","v":1.2845269079002603E-2},{"$f":"'Population 2016'!W57/'Population 2016'!W$5","v":1.3416874211493081E-2},{"$f":"'Population 2016'!X57/'Population 2016'!X$5","v":1.3416874211493081E-2},{"$f":"'Population 2016'!Y57/'Population 2016'!Y$5","v":1.2698526255544428E-2},{"$f":"'Population 2016'!Z57/'Population 2016'!Z$5","v":8.6878584854708733E-3},{"$f":"'Population 2016'!AA57/'Population 2016'!AA$5","v":1.1169598918916765E-2},{"$f":"'Population 2016'!AB57/'Population 2016'!AB$5","v":1.1850199072699918E-2},{"$f":"'Population 2016'!AC57/'Population 2016'!AC$5","v":1.0936637009976812E-2},{"$f":"'Population 2016'!AD57/'Population 2016'!AD$5","v":1.4846105176969743E-2},{"$f":"'Population 2016'!AE57/'Population 2016'!AE$5","v":1.4466267620817461E-2},{"$f":"'Population 2016'!AF57/'Population 2016'!AF$5","v":1.27735299883877E-2},{"$f":"'Population 2016'!AG57/'Population 2016'!AG$5","v":1.4466267620817461E-2},{"$f":"'Population 2016'!AH57/'Population 2016'!AH$5","v":1.1588010737207768E-2},{"$f":"'Population 2016'!AI57/'Population 2016'!AI$5","v":1.0993142444658325E-2},{"$f":"'Population 2016'!AJ57/'Population 2016'!AJ$5","v":1.2017957226110477E-2},{"$f":"'Population 2016'!AK57/'Population 2016'!AK$5","v":1.3929572683957106E-2},{"$f":"'Population 2016'!AL57/'Population 2016'!AL$5","v":1.4366541920150406E-2},{"$f":"'Population 2016'!AM57/'Population 2016'!AM$5","v":1.0797164702942145E-2},{"$f":"'Population 2016'!AN57/'Population 2016'!AN$5","v":1.5381258863314061E-2},{"$f":"'Population 2016'!AO57/'Population 2016'!AO$5","v":1.5381258863314061E-2},{"$f":"'Population 2016'!AP57/'Population 2016'!AP$5","v":1.6462438374839496E-2},{"$f":"'Population 2016'!AQ57/'Population 2016'!AQ$5","v":1.2132131309256316E-2},{"$f":"'Population 2016'!AR57/'Population 2016'!AR$5","v":1.2520320095669583E-2},{"$f":"'Population 2016'!AS57/'Population 2016'!AS$5","v":1.5942969600535969E-2},{"$f":"'Population 2016'!AT57/'Population 2016'!AT$5","v":1.2231770970633205E-2},{"$f":"'Population 2016'!AU57/'Population 2016'!AU$5","v":1.2231770970633205E-2},{"$f":"'Population 2016'!AV57/'Population 2016'!AV$5","v":1.6503009185936016E-2},{"$f":"'Population 2016'!AW57/'Population 2016'!AW$5","v":1.2420678503874551E-2},{"$f":"'Population 2016'!AX57/'Population 2016'!AX$5","v":1.3110648248718965E-2},{"$f":"'Population 2016'!AY57/'Population 2016'!AY$5","v":1.4107585447201738E-2},{"$f":"'Population 2016'!AZ57/'Population 2016'!AZ$5","v":1.4715442009768109E-2},{"$f":"'Population 2016'!BA57/'Population 2016'!BA$5","v":1.1755020513927877E-2},{"$f":"'Population 2016'!BB57/'Population 2016'!BB$5","v":1.0364375824282054E-2},{"$f":"'Population 2016'!BC57/'Population 2016'!BC$5","v":1.5712831407958216E-2},55]
[null,"Male 85-89",{"$f":"'Population 2016'!C58/'Population 2016'!C$5","v":5.3461996493792581E-3},{"$f":"'Population 2016'!D58/'Population 2016'!D$5","v":5.8537014758956608E-3},{"$f":"'Population 2016'!E58/'Population 2016'!E$5","v":6.3191745695413909E-3},{"$f":"'Population 2016'!F58/'Population 2016'!F$5","v":8.447077002317796E-3},{"$f":"'Population 2016'!G58/'Population 2016'!G$5","v":7.8492935635792772E-3},{"$f":"'Population 2016'!H58/'Population 2016'!H$5","v":7.1527464795582548E-3},{"$f":"'Population 2016'!I58/'Population 2016'!I$5","v":9.1282137174441003E-3},{"$f":"'Population 2016'!J58/'Population 2016'!J$5","v":6.070507451299105E-3},{"$f":"'Population 2016'!K58/'Population 2016'!K$5","v":5.8829088503520293E-3},{"$f":"'Population 2016'!L58/'Population 2016'!L$5","v":8.7207917017457469E-3},{"$f":"'Population 2016'!M58/'Population 2016'!M$5","v":8.7207917017457469E-3},{"$f":"'Population 2016'!N58/'Population 2016'!N$5","v":6.8477186327066978E-3},{"$f":"'Population 2016'!O58/'Population 2016'!O$5","v":6.3700577565112297E-3},{"$f":"'Population 2016'!P58/'Population 2016'!P$5","v":8.4413388932717236E-3},{"$f":"'Population 2016'!Q58/'Population 2016'!Q$5","v":7.0269444542367301E-3},{"$f":"'Population 2016'!R58/'Population 2016'!R$5","v":7.4652685367541383E-3},{"$f":"'Population 2016'!S58/'Population 2016'!S$5","v":6.2289155137685778E-3},{"$f":"'Population 2016'!T58/'Population 2016'!T$5","v":5.6095075452646075E-3},{"$f":"'Population 2016'!U58/'Population 2016'!U$5","v":9.2949143540034529E-3},{"$f":"'Population 2016'!V58/'Population 2016'!V$5","v":5.8234939437189458E-3},{"$f":"'Population 2016'!W58/'Population 2016'!W$5","v":6.6348976003242277E-3},{"$f":"'Population 2016'!X58/'Population 2016'!X$5","v":6.6348976003242277E-3},{"$f":"'Population 2016'!Y58/'Population 2016'!Y$5","v":5.941876917696062E-3},{"$f":"'Population 2016'!Z58/'Population 2016'!Z$5","v":4.1851938604251402E-3},{"$f":"'Population 2016'!AA58/'Population 2016'!AA$5","v":5.3947860588629626E-3},{"$f":"'Population 2016'!AB58/'Population 2016'!AB$5","v":6.126731011330256E-3},{"$f":"'Population 2016'!AC58/'Population 2016'!AC$5","v":5.3855748922781591E-3},{"$f":"'Population 2016'!AD58/'Population 2016'!AD$5","v":7.5923927202352151E-3},{"$f":"'Population 2016'!AE58/'Population 2016'!AE$5","v":7.4949434799125251E-3},{"$f":"'Population 2016'!AF58/'Population 2016'!AF$5","v":6.3792245396552504E-3},{"$f":"'Population 2016'!AG58/'Population 2016'!AG$5","v":7.4949434799125251E-3},{"$f":"'Population 2016'!AH58/'Population 2016'!AH$5","v":5.4113297976092064E-3},{"$f":"'Population 2016'!AI58/'Population 2016'!AI$5","v":5.6804510455857908E-3},{"$f":"'Population 2016'!AJ58/'Population 2016'!AJ$5","v":6.4132950394557063E-3},{"$f":"'Population 2016'!AK58/'Population 2016'!AK$5","v":7.5305180845580376E-3},{"$f":"'Population 2016'!AL58/'Population 2016'!AL$5","v":6.6334403433780881E-3},{"$f":"'Population 2016'!AM58/'Population 2016'!AM$5","v":4.8027643059715816E-3},{"$f":"'Population 2016'!AN58/'Population 2016'!AN$5","v":8.0178902585360534E-3},{"$f":"'Population 2016'!AO58/'Population 2016'!AO$5","v":8.0178902585360534E-3},{"$f":"'Population 2016'!AP58/'Population 2016'!AP$5","v":8.9564541952665538E-3},{"$f":"'Population 2016'!AQ58/'Population 2016'!AQ$5","v":6.3709102866224589E-3},{"$f":"'Population 2016'!AR58/'Population 2016'!AR$5","v":6.30170805761829E-3},{"$f":"'Population 2016'!AS58/'Population 2016'!AS$5","v":9.1282137174441003E-3},{"$f":"'Population 2016'!AT58/'Population 2016'!AT$5","v":6.2740549375230664E-3},{"$f":"'Population 2016'!AU58/'Population 2016'!AU$5","v":6.2740549375230664E-3},{"$f":"'Population 2016'!AV58/'Population 2016'!AV$5","v":8.6052159222890934E-3},{"$f":"'Population 2016'!AW58/'Population 2016'!AW$5","v":6.0520776130331324E-3},{"$f":"'Population 2016'!AX58/'Population 2016'!AX$5","v":6.1719718363852432E-3},{"$f":"'Population 2016'!AY58/'Population 2016'!AY$5","v":7.3926746427587899E-3},{"$f":"'Population 2016'!AZ58/'Population 2016'!AZ$5","v":8.0595520937002032E-3},{"$f":"'Population 2016'!BA58/'Population 2016'!BA$5","v":5.1554739797020086E-3},{"$f":"'Population 2016'!BB58/'Population 2016'!BB$5","v":4.7368166658610855E-3},{"$f":"'Population 2016'!BC58/'Population 2016'!BC$5","v":9.2949143540034529E-3},56]
[null,"Male 90+",{"$f":"'Population 2016'!C59/'Population 2016'!C$5","v":2.2693237517441593E-3},{"$f":"'Population 2016'!D59/'Population 2016'!D$5","v":2.586974169380789E-3},{"$f":"'Population 2016'!E59/'Population 2016'!E$5","v":2.8783183870166279E-3},{"$f":"'Population 2016'!F59/'Population 2016'!F$5","v":3.5333505021890293E-3},{"$f":"'Population 2016'!G59/'Population 2016'!G$5","v":3.1397174254317113E-3},{"$f":"'Population 2016'!H59/'Population 2016'!H$5","v":2.9473465774789002E-3},{"$f":"'Population 2016'!I59/'Population 2016'!I$5","v":3.2346537140942968E-3},{"$f":"'Population 2016'!J59/'Population 2016'!J$5","v":2.3718102883491039E-3},{"$f":"'Population 2016'!K59/'Population 2016'!K$5","v":2.386240136086566E-3},{"$f":"'Population 2016'!L59/'Population 2016'!L$5","v":3.8123679570473208E-3},{"$f":"'Population 2016'!M59/'Population 2016'!M$5","v":3.8123679570473208E-3},{"$f":"'Population 2016'!N59/'Population 2016'!N$5","v":2.8451788685189801E-3},{"$f":"'Population 2016'!O59/'Population 2016'!O$5","v":2.4667875293488276E-3},{"$f":"'Population 2016'!P59/'Population 2016'!P$5","v":3.7980389947030319E-3},{"$f":"'Population 2016'!Q59/'Population 2016'!Q$5","v":3.0316917545034723E-3},{"$f":"'Population 2016'!R59/'Population 2016'!R$5","v":3.4731463245861499E-3},{"$f":"'Population 2016'!S59/'Population 2016'!S$5","v":2.7097591933214586E-3},{"$f":"'Population 2016'!T59/'Population 2016'!T$5","v":2.7105252137010652E-3},{"$f":"'Population 2016'!U59/'Population 2016'!U$5","v":3.1425662815916435E-3},{"$f":"'Population 2016'!V59/'Population 2016'!V$5","v":2.5110478472916554E-3},{"$f":"'Population 2016'!W59/'Population 2016'!W$5","v":2.8958223024075202E-3},{"$f":"'Population 2016'!X59/'Population 2016'!X$5","v":2.8958223024075202E-3},{"$f":"'Population 2016'!Y59/'Population 2016'!Y$5","v":2.4443172604569083E-3},{"$f":"'Population 2016'!Z59/'Population 2016'!Z$5","v":1.8428790726756398E-3},{"$f":"'Population 2016'!AA59/'Population 2016'!AA$5","v":2.2848114847819861E-3},{"$f":"'Population 2016'!AB59/'Population 2016'!AB$5","v":2.6815962662354279E-3},{"$f":"'Population 2016'!AC59/'Population 2016'!AC$5","v":2.3943932928027537E-3},{"$f":"'Population 2016'!AD59/'Population 2016'!AD$5","v":3.126279355390971E-3},{"$f":"'Population 2016'!AE59/'Population 2016'!AE$5","v":3.1211819423197363E-3},{"$f":"'Population 2016'!AF59/'Population 2016'!AF$5","v":2.8653727246678428E-3},{"$f":"'Population 2016'!AG59/'Population 2016'!AG$5","v":3.1211819423197363E-3},{"$f":"'Population 2016'!AH59/'Population 2016'!AH$5","v":2.0879968048447472E-3},{"$f":"'Population 2016'!AI59/'Population 2016'!AI$5","v":2.5633804357336602E-3},{"$f":"'Population 2016'!AJ59/'Population 2016'!AJ$5","v":2.4258985584028107E-3},{"$f":"'Population 2016'!AK59/'Population 2016'!AK$5","v":3.1680977584451178E-3},{"$f":"'Population 2016'!AL59/'Population 2016'!AL$5","v":2.6516024902005996E-3},{"$f":"'Population 2016'!AM59/'Population 2016'!AM$5","v":1.8834369827339537E-3},{"$f":"'Population 2016'!AN59/'Population 2016'!AN$5","v":3.654412566815752E-3},{"$f":"'Population 2016'!AO59/'Population 2016'!AO$5","v":3.654412566815752E-3},{"$f":"'Population 2016'!AP59/'Population 2016'!AP$5","v":3.7569551226162359E-3},{"$f":"'Population 2016'!AQ59/'Population 2016'!AQ$5","v":2.8360826437222558E-3},{"$f":"'Population 2016'!AR59/'Population 2016'!AR$5","v":2.6771176062643262E-3},{"$f":"'Population 2016'!AS59/'Population 2016'!AS$5","v":3.2346537140942968E-3},{"$f":"'Population 2016'!AT59/'Population 2016'!AT$5","v":2.3725417830969581E-3},{"$f":"'Population 2016'!AU59/'Population 2016'!AU$5","v":2.3725417830969581E-3},{"$f":"'Population 2016'!AV59/'Population 2016'!AV$5","v":3.8116355189525921E-3},{"$f":"'Population 2016'!AW59/'Population 2016'!AW$5","v":2.3033742144121057E-3},{"$f":"'Population 2016'!AX59/'Population 2016'!AX$5","v":2.3640057758411389E-3},{"$f":"'Population 2016'!AY59/'Population 2016'!AY$5","v":3.1470885223830358E-3},{"$f":"'Population 2016'!AZ59/'Population 2016'!AZ$5","v":3.3682139549332398E-3},{"$f":"'Population 2016'!BA59/'Population 2016'!BA$5","v":2.1728568343770244E-3},{"$f":"'Population 2016'!BB59/'Population 2016'!BB$5","v":1.9195845963693612E-3},{"$f":"'Population 2016'!BC59/'Population 2016'!BC$5","v":3.1425662815916435E-3},57]
["SIMD Q1 (most deprived)","Female 0-4",{"$f":"'Population 2016'!C60/'Population 2016'!C$5","v":0},{"$f":"'Population 2016'!D60/'Population 2016'!D$5","v":0},{"$f":"'Population 2016'!E60/'Population 2016'!E$5","v":0},{"$f":"'Population 2016'!F60/'Population 2016'!F$5","v":0},{"$f":"'Population 2016'!G60/'Population 2016'!G$5","v":0},{"$f":"'Population 2016'!H60/'Population 2016'!H$5","v":0},{"$f":"'Population 2016'!I60/'Population 2016'!I$5","v":0},{"$f":"'Population 2016'!J60/'Population 2016'!J$5","v":0},{"$f":"'Population 2016'!K60/'Population 2016'!K$5","v":0},{"$f":"'Population 2016'!L60/'Population 2016'!L$5","v":0},{"$f":"'Population 2016'!M60/'Population 2016'!M$5","v":0},{"$f":"'Population 2016'!N60/'Population 2016'!N$5","v":0},{"$f":"'Population 2016'!O60/'Population 2016'!O$5","v":0},{"$f":"'Population 2016'!P60/'Population 2016'!P$5","v":0},{"$f":"'Population 2016'!Q60/'Population 2016'!Q$5","v":0},{"$f":"'Population 2016'!R60/'Population 2016'!R$5","v":0},{"$f":"'Population 2016'!S60/'Population 2016'!S$5","v":0},{"$f":"'Population 2016'!T60/'Population 2016'!T$5","v":0},{"$f":"'Population 2016'!U60/'Population 2016'!U$5","v":0},{"$f":"'Population 2016'!V60/'Population 2016'!V$5","v":0},{"$f":"'Population 2016'!W60/'Population 2016'!W$5","v":0},{"$f":"'Population 2016'!X60/'Population 2016'!X$5","v":0},{"$f":"'Population 2016'!Y60/'Population 2016'!Y$5","v":0},{"$f":"'Population 2016'!Z60/'Population 2016'!Z$5","v":0},{"$f":"'Population 2016'!AA60/'Population 2016'!AA$5","v":0},{"$f":"'Population 2016'!AB60/'Population 2016'!AB$5","v":0},{"$f":"'Population 2016'!AC60/'Population 2016'!AC$5","v":0},{"$f":"'Population 2016'!AD60/'Population 2016'!AD$5","v":0},{"$f":"'Population 2016'!AE60/'Population 2016'!AE$5","v":0},{"$f":"'Population 2016'!AF60/'Population 2016'!AF$5","v":0},{"$f":"'Population 2016'!AG60/'Population 2016'!AG$5","v":0},{"$f":"'Population 2016'!AH60/'Population 2016'!AH$5","v":0},{"$f":"'Population 2016'!AI60/'Population 2016'!AI$5","v":0},{"$f":"'Population 2016'!AJ60/'Population 2016'!AJ$5","v":0},{"$f":"'Population 2016'!AK60/'Population 2016'!AK$5","v":0},{"$f":"'Population 2016'!AL60/'Population 2016'!AL$5","v":0},{"$f":"'Population 2016'!AM60/'Population 2016'!AM$5","v":0},{"$f":"'Population 2016'!AN60/'Population 2016'!AN$5","v":0},{"$f":"'Population 2016'!AO60/'Population 2016'!AO$5","v":0},{"$f":"'Population 2016'!AP60/'Population 2016'!AP$5","v":0},{"$f":"'Population 2016'!AQ60/'Population 2016'!AQ$5","v":0},{"$f":"'Population 2016'!AR60/'Population 2016'!AR$5","v":0},{"$f":"'Population 2016'!AS60/'Population 2016'!AS$5","v":0},{"$f":"'Population 2016'!AT60/'Population 2016'!AT$5","v":0},{"$f":"'Population 2016'!AU60/'Population 2016'!AU$5","v":0},{"$f":"'Population 2016'!AV60/'Population 2016'!AV$5","v":0},{"$f":"'Population 2016'!AW60/'Population 2016'!AW$5","v":0},{"$f":"'Population 2016'!AX60/'Population 2016'!AX$5","v":0},{"$f":"'Population 2016'!AY60/'Population 2016'!AY$5","v":0},{"$f":"'Population 2016'!AZ60/'Population 2016'!AZ$5","v":0},{"$f":"'Population 2016'!BA60/'Population 2016'!BA$5","v":0},{"$f":"'Population 2016'!BB60/'Population 2016'!BB$5","v":0},{"$f":"'Population 2016'!BC60/'Population 2016'!BC$5","v":0},58]
[null,"Female 5-9",{"$f":"'Population 2016'!C61/'Population 2016'!C$5","v":0},{"$f":"'Population 2016'!D61/'Population 2016'!D$5","v":0},{"$f":"'Population 2016'!E61/'Population 2016'!E$5","v":0},{"$f":"'Population 2016'!F61/'Population 2016'!F$5","v":0},{"$f":"'Population 2016'!G61/'Population 2016'!G$5","v":0},{"$f":"'Population 2016'!H61/'Population 2016'!H$5","v":0},{"$f":"'Population 2016'!I61/'Population 2016'!I$5","v":0},{"$f":"'Population 2016'!J61/'Population 2016'!J$5","v":0},{"$f":"'Population 2016'!K61/'Population 2016'!K$5","v":0},{"$f":"'Population 2016'!L61/'Population 2016'!L$5","v":0},{"$f":"'Population 2016'!M61/'Population 2016'!M$5","v":0},{"$f":"'Population 2016'!N61/'Population 2016'!N$5","v":0},{"$f":"'Population 2016'!O61/'Population 2016'!O$5","v":0},{"$f":"'Population 2016'!P61/'Population 2016'!P$5","v":0},{"$f":"'Population 2016'!Q61/'Population 2016'!Q$5","v":0},{"$f":"'Population 2016'!R61/'Population 2016'!R$5","v":0},{"$f":"'Population 2016'!S61/'Population 2016'!S$5","v":0},{"$f":"'Population 2016'!T61/'Population 2016'!T$5","v":0},{"$f":"'Population 2016'!U61/'Population 2016'!U$5","v":0},{"$f":"'Population 2016'!V61/'Population 2016'!V$5","v":0},{"$f":"'Population 2016'!W61/'Population 2016'!W$5","v":0},{"$f":"'Population 2016'!X61/'Population 2016'!X$5","v":0},{"$f":"'Population 2016'!Y61/'Population 2016'!Y$5","v":0},{"$f":"'Population 2016'!Z61/'Population 2016'!Z$5","v":0},{"$f":"'Population 2016'!AA61/'Population 2016'!AA$5","v":0},{"$f":"'Population 2016'!AB61/'Population 2016'!AB$5","v":0},{"$f":"'Population 2016'!AC61/'Population 2016'!AC$5","v":0},{"$f":"'Population 2016'!AD61/'Population 2016'!AD$5","v":0},{"$f":"'Population 2016'!AE61/'Population 2016'!AE$5","v":0},{"$f":"'Population 2016'!AF61/'Population 2016'!AF$5","v":0},{"$f":"'Population 2016'!AG61/'Population 2016'!AG$5","v":0},{"$f":"'Population 2016'!AH61/'Population 2016'!AH$5","v":0},{"$f":"'Population 2016'!AI61/'Population 2016'!AI$5","v":0},{"$f":"'Population 2016'!AJ61/'Population 2016'!AJ$5","v":0},{"$f":"'Population 2016'!AK61/'Population 2016'!AK$5","v":0},{"$f":"'Population 2016'!AL61/'Population 2016'!AL$5","v":0},{"$f":"'Population 2016'!AM61/'Population 2016'!AM$5","v":0},{"$f":"'Population 2016'!AN61/'Population 2016'!AN$5","v":0},{"$f":"'Population 2016'!AO61/'Population 2016'!AO$5","v":0},{"$f":"'Population 2016'!AP61/'Population 2016'!AP$5","v":0},{"$f":"'Population 2016'!AQ61/'Population 2016'!AQ$5","v":0},{"$f":"'Population 2016'!AR61/'Population 2016'!AR$5","v":0},{"$f":"'Population 2016'!AS61/'Population 2016'!AS$5","v":0},{"$f":"'Population 2016'!AT61/'Population 2016'!AT$5","v":0},{"$f":"'Population 2016'!AU61/'Population 2016'!AU$5","v":0},{"$f":"'Population 2016'!AV61/'Population 2016'!AV$5","v":0},{"$f":"'Population 2016'!AW61/'Population 2016'!AW$5","v":0},{"$f":"'Population 2016'!AX61/'Population 2016'!AX$5","v":0},{"$f":"'Population 2016'!AY61/'Population 2016'!AY$5","v":0},{"$f":"'Population 2016'!AZ61/'Population 2016'!AZ$5","v":0},{"$f":"'Population 2016'!BA61/'Population 2016'!BA$5","v":0},{"$f":"'Population 2016'!BB61/'Population 2016'!BB$5","v":0},{"$f":"'Population 2016'!BC61/'Population 2016'!BC$5","v":0},59]
[null,"Female 10-15",{"$f":"'Population 2016'!C62/'Population 2016'!C$5","v":0},{"$f":"'Population 2016'!D62/'Population 2016'!D$5","v":0},{"$f":"'Population 2016'!E62/'Population 2016'!E$5","v":0},{"$f":"'Population 2016'!F62/'Population 2016'!F$5","v":0},{"$f":"'Population 2016'!G62/'Population 2016'!G$5","v":0},{"$f":"'Population 2016'!H62/'Population 2016'!H$5","v":0},{"$f":"'Population 2016'!I62/'Population 2016'!I$5","v":0},{"$f":"'Population 2016'!J62/'Population 2016'!J$5","v":0},{"$f":"'Population 2016'!K62/'Population 2016'!K$5","v":0},{"$f":"'Population 2016'!L62/'Population 2016'!L$5","v":0},{"$f":"'Population 2016'!M62/'Population 2016'!M$5","v":0},{"$f":"'Population 2016'!N62/'Population 2016'!N$5","v":0},{"$f":"'Population 2016'!O62/'Population 2016'!O$5","v":0},{"$f":"'Population 2016'!P62/'Population 2016'!P$5","v":0},{"$f":"'Population 2016'!Q62/'Population 2016'!Q$5","v":0},{"$f":"'Population 2016'!R62/'Population 2016'!R$5","v":0},{"$f":"'Population 2016'!S62/'Population 2016'!S$5","v":0},{"$f":"'Population 2016'!T62/'Population 2016'!T$5","v":0},{"$f":"'Population 2016'!U62/'Population 2016'!U$5","v":0},{"$f":"'Population 2016'!V62/'Population 2016'!V$5","v":0},{"$f":"'Population 2016'!W62/'Population 2016'!W$5","v":0},{"$f":"'Population 2016'!X62/'Population 2016'!X$5","v":0},{"$f":"'Population 2016'!Y62/'Population 2016'!Y$5","v":0},{"$f":"'Population 2016'!Z62/'Population 2016'!Z$5","v":0},{"$f":"'Population 2016'!AA62/'Population 2016'!AA$5","v":0},{"$f":"'Population 2016'!AB62/'Population 2016'!AB$5","v":0},{"$f":"'Population 2016'!AC62/'Population 2016'!AC$5","v":0},{"$f":"'Population 2016'!AD62/'Population 2016'!AD$5","v":0},{"$f":"'Population 2016'!AE62/'Population 2016'!AE$5","v":0},{"$f":"'Population 2016'!AF62/'Population 2016'!AF$5","v":0},{"$f":"'Population 2016'!AG62/'Population 2016'!AG$5","v":0},{"$f":"'Population 2016'!AH62/'Population 2016'!AH$5","v":0},{"$f":"'Population 2016'!AI62/'Population 2016'!AI$5","v":0},{"$f":"'Population 2016'!AJ62/'Population 2016'!AJ$5","v":0},{"$f":"'Population 2016'!AK62/'Population 2016'!AK$5","v":0},{"$f":"'Population 2016'!AL62/'Population 2016'!AL$5","v":0},{"$f":"'Population 2016'!AM62/'Population 2016'!AM$5","v":0},{"$f":"'Population 2016'!AN62/'Population 2016'!AN$5","v":0},{"$f":"'Population 2016'!AO62/'Population 2016'!AO$5","v":0},{"$f":"'Population 2016'!AP62/'Population 2016'!AP$5","v":0},{"$f":"'Population 2016'!AQ62/'Population 2016'!AQ$5","v":0},{"$f":"'Population 2016'!AR62/'Population 2016'!AR$5","v":0},{"$f":"'Population 2016'!AS62/'Population 2016'!AS$5","v":0},{"$f":"'Population 2016'!AT62/'Population 2016'!AT$5","v":0},{"$f":"'Population 2016'!AU62/'Population 2016'!AU$5","v":0},{"$f":"'Population 2016'!AV62/'Population 2016'!AV$5","v":0},{"$f":"'Population 2016'!AW62/'Population 2016'!AW$5","v":0},{"$f":"'Population 2016'!AX62/'Population 2016'!AX$5","v":0},{"$f":"'Population 2016'!AY62/'Population 2016'!AY$5","v":0},{"$f":"'Population 2016'!AZ62/'Population 2016'!AZ$5","v":0},{"$f":"'Population 2016'!BA62/'Population 2016'!BA$5","v":0},{"$f":"'Population 2016'!BB62/'Population 2016'!BB$5","v":0},{"$f":"'Population 2016'!BC62/'Population 2016'!BC$5","v":0},60]
[null,"Female 16-19",{"$f":"'Population 2016'!C63/'Population 2016'!C$5","v":1.8757698578606001E-3},{"$f":"'Population 2016'!D63/'Population 2016'!D$5","v":1.1712293262130416E-3},{"$f":"'Population 2016'!E63/'Population 2016'!E$5","v":5.2503527580759332E-4},{"$f":"'Population 2016'!F63/'Population 2016'!F$5","v":2.286891578676281E-3},{"$f":"'Population 2016'!G63/'Population 2016'!G$5","v":1.9758566556596115E-3},{"$f":"'Population 2016'!H63/'Population 2016'!H$5","v":8.7869188393485363E-3},{"$f":"'Population 2016'!I63/'Population 2016'!I$5","v":1.7691148145046478E-3},{"$f":"'Population 2016'!J63/'Population 2016'!J$5","v":4.9260675219558311E-3},{"$f":"'Population 2016'!K63/'Population 2016'!K$5","v":6.4735623493833577E-3},{"$f":"'Population 2016'!L63/'Population 2016'!L$5","v":2.5018664718123042E-3},{"$f":"'Population 2016'!M63/'Population 2016'!M$5","v":2.5018664718123042E-3},{"$f":"'Population 2016'!N63/'Population 2016'!N$5","v":1.0118870608659311E-2},{"$f":"'Population 2016'!O63/'Population 2016'!O$5","v":8.6188961868814452E-3},{"$f":"'Population 2016'!P63/'Population 2016'!P$5","v":1.2735264284909275E-3},{"$f":"'Population 2016'!Q63/'Population 2016'!Q$5","v":9.7531168846429542E-4},{"$f":"'Population 2016'!R63/'Population 2016'!R$5","v":2.2222813647735135E-3},{"$f":"'Population 2016'!S63/'Population 2016'!S$5","v":3.9799036490835368E-3},{"$f":"'Population 2016'!T63/'Population 2016'!T$5","v":3.4992531514218043E-3},{"$f":"'Population 2016'!U63/'Population 2016'!U$5","v":0},{"$f":"'Population 2016'!V63/'Population 2016'!V$5","v":3.6177406675265795E-3},{"$f":"'Population 2016'!W63/'Population 2016'!W$5","v":5.9779446852182326E-3},{"$f":"'Population 2016'!X63/'Population 2016'!X$5","v":5.9779446852182326E-3},{"$f":"'Population 2016'!Y63/'Population 2016'!Y$5","v":4.2447655840129727E-3},{"$f":"'Population 2016'!Z63/'Population 2016'!Z$5","v":1.1651564221044828E-2},{"$f":"'Population 2016'!AA63/'Population 2016'!AA$5","v":8.525356491050436E-3},{"$f":"'Population 2016'!AB63/'Population 2016'!AB$5","v":1.0132749250278906E-3},{"$f":"'Population 2016'!AC63/'Population 2016'!AC$5","v":9.141100614164465E-3},{"$f":"'Population 2016'!AD63/'Population 2016'!AD$5","v":2.0432468644162416E-3},{"$f":"'Population 2016'!AE63/'Population 2016'!AE$5","v":2.0688097413731148E-3},{"$f":"'Population 2016'!AF63/'Population 2016'!AF$5","v":1.0375665445113031E-2},{"$f":"'Population 2016'!AG63/'Population 2016'!AG$5","v":2.0688097413731148E-3},{"$f":"'Population 2016'!AH63/'Population 2016'!AH$5","v":7.4194477211298217E-3},{"$f":"'Population 2016'!AI63/'Population 2016'!AI$5","v":3.4328790795345177E-3},{"$f":"'Population 2016'!AJ63/'Population 2016'!AJ$5","v":2.8580988762791737E-3},{"$f":"'Population 2016'!AK63/'Population 2016'!AK$5","v":2.0114906402826145E-4},{"$f":"'Population 2016'!AL63/'Population 2016'!AL$5","v":1.1980986502545183E-2},{"$f":"'Population 2016'!AM63/'Population 2016'!AM$5","v":9.196243267618285E-3},{"$f":"'Population 2016'!AN63/'Population 2016'!AN$5","v":0},{"$f":"'Population 2016'!AO63/'Population 2016'!AO$5","v":0},{"$f":"'Population 2016'!AP63/'Population 2016'!AP$5","v":1.45047001569361E-3},{"$f":"'Population 2016'!AQ63/'Population 2016'!AQ$5","v":7.1655614621581633E-3},{"$f":"'Population 2016'!AR63/'Population 2016'!AR$5","v":5.378295186022581E-3},{"$f":"'Population 2016'!AS63/'Population 2016'!AS$5","v":1.7691148145046478E-3},{"$f":"'Population 2016'!AT63/'Population 2016'!AT$5","v":0},{"$f":"'Population 2016'!AU63/'Population 2016'!AU$5","v":0},{"$f":"'Population 2016'!AV63/'Population 2016'!AV$5","v":5.1631295533734562E-3},{"$f":"'Population 2016'!AW63/'Population 2016'!AW$5","v":5.5486911953139297E-3},{"$f":"'Population 2016'!AX63/'Population 2016'!AX$5","v":4.089091071725213E-3},{"$f":"'Population 2016'!AY63/'Population 2016'!AY$5","v":5.344083718368471E-3},{"$f":"'Population 2016'!AZ63/'Population 2016'!AZ$5","v":4.786257917172426E-3},{"$f":"'Population 2016'!BA63/'Population 2016'!BA$5","v":1.0864284171885123E-2},{"$f":"'Population 2016'!BB63/'Population 2016'!BB$5","v":4.9646810244229162E-3},{"$f":"'Population 2016'!BC63/'Population 2016'!BC$5","v":0},61]
[null,"Female 20-24",{"$f":"'Population 2016'!C64/'Population 2016'!C$5","v":3.9968720132070555E-3},{"$f":"'Population 2016'!D64/'Population 2016'!D$5","v":2.4011423764952124E-3},{"$f":"'Population 2016'!E64/'Population 2016'!E$5","v":9.3756299251355948E-4},{"$f":"'Population 2016'!F64/'Population 2016'!F$5","v":3.2964202935874326E-3},{"$f":"'Population 2016'!G64/'Population 2016'!G$5","v":2.8149190710767065E-3},{"$f":"'Population 2016'!H64/'Population 2016'!H$5","v":1.315443901521661E-2},{"$f":"'Population 2016'!I64/'Population 2016'!I$5","v":2.271585294363956E-3},{"$f":"'Population 2016'!J64/'Population 2016'!J$5","v":7.9364421187066176E-3},{"$f":"'Population 2016'!K64/'Population 2016'!K$5","v":1.0442753862873884E-2},{"$f":"'Population 2016'!L64/'Population 2016'!L$5","v":3.9871014884119895E-3},{"$f":"'Population 2016'!M64/'Population 2016'!M$5","v":3.9871014884119895E-3},{"$f":"'Population 2016'!N64/'Population 2016'!N$5","v":1.7231817779956759E-2},{"$f":"'Population 2016'!O64/'Population 2016'!O$5","v":1.3502937359447598E-2},{"$f":"'Population 2016'!P64/'Population 2016'!P$5","v":1.9948157331229573E-3},{"$f":"'Population 2016'!Q64/'Population 2016'!Q$5","v":1.41008918814115E-3},{"$f":"'Population 2016'!R64/'Population 2016'!R$5","v":3.0473199552882311E-3},{"$f":"'Population 2016'!S64/'Population 2016'!S$5","v":5.5272026282016202E-3},{"$f":"'Population 2016'!T64/'Population 2016'!T$5","v":5.5280754572993394E-3},{"$f":"'Population 2016'!U64/'Population 2016'!U$5","v":0},{"$f":"'Population 2016'!V64/'Population 2016'!V$5","v":5.922714679326215E-3},{"$f":"'Population 2016'!W64/'Population 2016'!W$5","v":7.3474136973048585E-3},{"$f":"'Population 2016'!X64/'Population 2016'!X$5","v":7.3474136973048585E-3},{"$f":"'Population 2016'!Y64/'Population 2016'!Y$5","v":6.887807824994833E-3},{"$f":"'Population 2016'!Z64/'Population 2016'!Z$5","v":1.9838051194096592E-2},{"$f":"'Population 2016'!AA64/'Population 2016'!AA$5","v":1.3587951290131196E-2},{"$f":"'Population 2016'!AB64/'Population 2016'!AB$5","v":2.081819391420939E-3},{"$f":"'Population 2016'!AC64/'Population 2016'!AC$5","v":1.548236423324597E-2},{"$f":"'Population 2016'!AD64/'Population 2016'!AD$5","v":3.0183482824072353E-3},{"$f":"'Population 2016'!AE64/'Population 2016'!AE$5","v":3.0955143276625015E-3},{"$f":"'Population 2016'!AF64/'Population 2016'!AF$5","v":1.7086669984466663E-2},{"$f":"'Population 2016'!AG64/'Population 2016'!AG$5","v":3.0955143276625015E-3},{"$f":"'Population 2016'!AH64/'Population 2016'!AH$5","v":1.0185486193028245E-2},{"$f":"'Population 2016'!AI64/'Population 2016'!AI$5","v":5.1910162743897103E-3},{"$f":"'Population 2016'!AJ64/'Population 2016'!AJ$5","v":4.5450743105707831E-3},{"$f":"'Population 2016'!AK64/'Population 2016'!AK$5","v":4.4001357756182189E-4},{"$f":"'Population 2016'!AL64/'Population 2016'!AL$5","v":1.7257586775686846E-2},{"$f":"'Population 2016'!AM64/'Population 2016'!AM$5","v":1.2401708132463572E-2},{"$f":"'Population 2016'!AN64/'Population 2016'!AN$5","v":0},{"$f":"'Population 2016'!AO64/'Population 2016'!AO$5","v":0},{"$f":"'Population 2016'!AP64/'Population 2016'!AP$5","v":2.5838974050061032E-3},{"$f":"'Population 2016'!AQ64/'Population 2016'!AQ$5","v":1.3187099249191647E-2},{"$f":"'Population 2016'!AR64/'Population 2016'!AR$5","v":8.3817818771814104E-3},{"$f":"'Population 2016'!AS64/'Population 2016'!AS$5","v":2.271585294363956E-3},{"$f":"'Population 2016'!AT64/'Population 2016'!AT$5","v":0},{"$f":"'Population 2016'!AU64/'Population 2016'!AU$5","v":0},{"$f":"'Population 2016'!AV64/'Population 2016'!AV$5","v":7.8977932636469222E-3},{"$f":"'Population 2016'!AW64/'Population 2016'!AW$5","v":7.8520654097260362E-3},{"$f":"'Population 2016'!AX64/'Population 2016'!AX$5","v":6.5808809435577648E-3},{"$f":"'Population 2016'!AY64/'Population 2016'!AY$5","v":7.707842477280377E-3},{"$f":"'Population 2016'!AZ64/'Population 2016'!AZ$5","v":8.0250358106436718E-3},{"$f":"'Population 2016'!BA64/'Population 2016'!BA$5","v":1.6964478514359751E-2},{"$f":"'Population 2016'!BB64/'Population 2016'!BB$5","v":6.7323560484177239E-3},{"$f":"'Population 2016'!BC64/'Population 2016'!BC$5","v":0},62]
[null,"Female 25-29",{"$f":"'Population 2016'!C65/'Population 2016'!C$5","v":5.2695333064149289E-3},{"$f":"'Population 2016'!D65/'Population 2016'!D$5","v":3.1029019101552185E-3},{"$f":"'Population 2016'!E65/'Population 2016'!E$5","v":1.1156999610911359E-3},{"$f":"'Population 2016'!F65/'Population 2016'!F$5","v":3.0800927118207573E-3},{"$f":"'Population 2016'!G65/'Population 2016'!G$5","v":2.3277215395441997E-3},{"$f":"'Population 2016'!H65/'Population 2016'!H$5","v":1.3173893448071254E-2},{"$f":"'Population 2016'!I65/'Population 2016'!I$5","v":2.1354995394020602E-3},{"$f":"'Population 2016'!J65/'Population 2016'!J$5","v":8.4091455677831866E-3},{"$f":"'Population 2016'!K65/'Population 2016'!K$5","v":1.0111987903416339E-2},{"$f":"'Population 2016'!L65/'Population 2016'!L$5","v":4.0029863548996869E-3},{"$f":"'Population 2016'!M65/'Population 2016'!M$5","v":4.0029863548996869E-3},{"$f":"'Population 2016'!N65/'Population 2016'!N$5","v":2.2447979038908224E-2},{"$f":"'Population 2016'!O65/'Population 2016'!O$5","v":1.3889301671273318E-2},{"$f":"'Population 2016'!P65/'Population 2016'!P$5","v":2.1638679138960893E-3},{"$f":"'Population 2016'!Q65/'Population 2016'!Q$5","v":1.6098518231278129E-3},{"$f":"'Population 2016'!R65/'Population 2016'!R$5","v":2.9275562889231914E-3},{"$f":"'Population 2016'!S65/'Population 2016'!S$5","v":7.1009813388505328E-3},{"$f":"'Population 2016'!T65/'Population 2016'!T$5","v":8.3246860211351175E-3},{"$f":"'Population 2016'!U65/'Population 2016'!U$5","v":0},{"$f":"'Population 2016'!V65/'Population 2016'!V$5","v":6.8080689355141544E-3},{"$f":"'Population 2016'!W65/'Population 2016'!W$5","v":9.01430915354395E-3},{"$f":"'Population 2016'!X65/'Population 2016'!X$5","v":9.01430915354395E-3},{"$f":"'Population 2016'!Y65/'Population 2016'!Y$5","v":7.5753962576111666E-3},{"$f":"'Population 2016'!Z65/'Population 2016'!Z$5","v":2.7408954611359646E-2},{"$f":"'Population 2016'!AA65/'Population 2016'!AA$5","v":1.6648761557764406E-2},{"$f":"'Population 2016'!AB65/'Population 2016'!AB$5","v":2.6447499053253226E-3},{"$f":"'Population 2016'!AC65/'Population 2016'!AC$5","v":1.9863638526253512E-2},{"$f":"'Population 2016'!AD65/'Population 2016'!AD$5","v":2.8545907923629463E-3},{"$f":"'Population 2016'!AE65/'Population 2016'!AE$5","v":3.0544461442109263E-3},{"$f":"'Population 2016'!AF65/'Population 2016'!AF$5","v":1.7237479075238656E-2},{"$f":"'Population 2016'!AG65/'Population 2016'!AG$5","v":3.0544461442109263E-3},{"$f":"'Population 2016'!AH65/'Population 2016'!AH$5","v":1.0874673750499242E-2},{"$f":"'Population 2016'!AI65/'Population 2016'!AI$5","v":6.9491534692449029E-3},{"$f":"'Population 2016'!AJ65/'Population 2016'!AJ$5","v":4.6984357136882022E-3},{"$f":"'Population 2016'!AK65/'Population 2016'!AK$5","v":2.8915177954062581E-4},{"$f":"'Population 2016'!AL65/'Population 2016'!AL$5","v":1.7293059718699561E-2},{"$f":"'Population 2016'!AM65/'Population 2016'!AM$5","v":1.3470196420745335E-2},{"$f":"'Population 2016'!AN65/'Population 2016'!AN$5","v":0},{"$f":"'Population 2016'!AO65/'Population 2016'!AO$5","v":0},{"$f":"'Population 2016'!AP65/'Population 2016'!AP$5","v":3.1783523294706974E-3},{"$f":"'Population 2016'!AQ65/'Population 2016'!AQ$5","v":1.4968213952978572E-2},{"$f":"'Population 2016'!AR65/'Population 2016'!AR$5","v":1.0053727257477139E-2},{"$f":"'Population 2016'!AS65/'Population 2016'!AS$5","v":2.1354995394020602E-3},{"$f":"'Population 2016'!AT65/'Population 2016'!AT$5","v":0},{"$f":"'Population 2016'!AU65/'Population 2016'!AU$5","v":0},{"$f":"'Population 2016'!AV65/'Population 2016'!AV$5","v":7.5071270193221417E-3},{"$f":"'Population 2016'!AW65/'Population 2016'!AW$5","v":8.1418939532613335E-3},{"$f":"'Population 2016'!AX65/'Population 2016'!AX$5","v":7.4881480250967962E-3},{"$f":"'Population 2016'!AY65/'Population 2016'!AY$5","v":9.563660842691472E-3},{"$f":"'Population 2016'!AZ65/'Population 2016'!AZ$5","v":1.0047114726372167E-2},{"$f":"'Population 2016'!BA65/'Population 2016'!BA$5","v":1.7625782768300582E-2},{"$f":"'Population 2016'!BB65/'Population 2016'!BB$5","v":7.1190349599165878E-3},{"$f":"'Population 2016'!BC65/'Population 2016'!BC$5","v":0},63]
[null,"Female 30-34",{"$f":"'Population 2016'!C66/'Population 2016'!C$5","v":4.6306471150455147E-3},{"$f":"'Population 2016'!D66/'Population 2016'!D$5","v":2.7899220484531948E-3},{"$f":"'Population 2016'!E66/'Population 2016'!E$5","v":1.1016365162034325E-3},{"$f":"'Population 2016'!F66/'Population 2016'!F$5","v":3.4200360545969611E-3},{"$f":"'Population 2016'!G66/'Population 2016'!G$5","v":2.7201862177231636E-3},{"$f":"'Population 2016'!H66/'Population 2016'!H$5","v":1.169211414564237E-2},{"$f":"'Population 2016'!I66/'Population 2016'!I$5","v":2.1669039443932667E-3},{"$f":"'Population 2016'!J66/'Population 2016'!J$5","v":7.3559291110687243E-3},{"$f":"'Population 2016'!K66/'Population 2016'!K$5","v":9.6630912441525302E-3},{"$f":"'Population 2016'!L66/'Population 2016'!L$5","v":3.4152462948548916E-3},{"$f":"'Population 2016'!M66/'Population 2016'!M$5","v":3.4152462948548916E-3},{"$f":"'Population 2016'!N66/'Population 2016'!N$5","v":1.7995354481960442E-2},{"$f":"'Population 2016'!O66/'Population 2016'!O$5","v":1.2343844423970438E-2},{"$f":"'Population 2016'!P66/'Population 2016'!P$5","v":1.8595739885044517E-3},{"$f":"'Population 2016'!Q66/'Population 2016'!Q$5","v":1.4570921610791883E-3},{"$f":"'Population 2016'!R66/'Population 2016'!R$5","v":2.8477138446798317E-3},{"$f":"'Population 2016'!S66/'Population 2016'!S$5","v":6.7858725336336721E-3},{"$f":"'Population 2016'!T66/'Population 2016'!T$5","v":8.1967213114754103E-3},{"$f":"'Population 2016'!U66/'Population 2016'!U$5","v":0},{"$f":"'Population 2016'!V66/'Population 2016'!V$5","v":6.6706863785194739E-3},{"$f":"'Population 2016'!W66/'Population 2016'!W$5","v":7.9520718529994313E-3},{"$f":"'Population 2016'!X66/'Population 2016'!X$5","v":7.9520718529994313E-3},{"$f":"'Population 2016'!Y66/'Population 2016'!Y$5","v":6.9990938140888064E-3},{"$f":"'Population 2016'!Z66/'Population 2016'!Z$5","v":2.3208274372172526E-2},{"$f":"'Population 2016'!AA66/'Population 2016'!AA$5","v":1.514393515095103E-2},{"$f":"'Population 2016'!AB66/'Population 2016'!AB$5","v":2.403201539359078E-3},{"$f":"'Population 2016'!AC66/'Population 2016'!AC$5","v":1.7261351906516266E-2},{"$f":"'Population 2016'!AD66/'Population 2016'!AD$5","v":3.1858275335888944E-3},{"$f":"'Population 2016'!AE66/'Population 2016'!AE$5","v":3.3624575200977423E-3},{"$f":"'Population 2016'!AF66/'Population 2016'!AF$5","v":1.6860456348308676E-2},{"$f":"'Population 2016'!AG66/'Population 2016'!AG$5","v":3.3624575200977423E-3},{"$f":"'Population 2016'!AH66/'Population 2016'!AH$5","v":1.1340943499623826E-2},{"$f":"'Population 2016'!AI66/'Population 2016'!AI$5","v":6.9013037011112083E-3},{"$f":"'Population 2016'!AJ66/'Population 2016'!AJ$5","v":4.1268159384323672E-3},{"$f":"'Population 2016'!AK66/'Population 2016'!AK$5","v":4.1486994455828922E-4},{"$f":"'Population 2016'!AL66/'Population 2016'!AL$5","v":1.5013923130132492E-2},{"$f":"'Population 2016'!AM66/'Population 2016'!AM$5","v":1.3618698182845512E-2},{"$f":"'Population 2016'!AN66/'Population 2016'!AN$5","v":0},{"$f":"'Population 2016'!AO66/'Population 2016'!AO$5","v":0},{"$f":"'Population 2016'!AP66/'Population 2016'!AP$5","v":2.8533836374300525E-3},{"$f":"'Population 2016'!AQ66/'Population 2016'!AQ$5","v":1.2769222337918561E-2},{"$f":"'Population 2016'!AR66/'Population 2016'!AR$5","v":9.187345434163335E-3},{"$f":"'Population 2016'!AS66/'Population 2016'!AS$5","v":2.1669039443932667E-3},{"$f":"'Population 2016'!AT66/'Population 2016'!AT$5","v":0},{"$f":"'Population 2016'!AU66/'Population 2016'!AU$5","v":0},{"$f":"'Population 2016'!AV66/'Population 2016'!AV$5","v":7.0425509449899698E-3},{"$f":"'Population 2016'!AW66/'Population 2016'!AW$5","v":8.9427359814509728E-3},{"$f":"'Population 2016'!AX66/'Population 2016'!AX$5","v":6.1080797883895374E-3},{"$f":"'Population 2016'!AY66/'Population 2016'!AY$5","v":8.2066032251155111E-3},{"$f":"'Population 2016'!AZ66/'Population 2016'!AZ$5","v":8.4306021365579218E-3},{"$f":"'Population 2016'!BA66/'Population 2016'!BA$5","v":1.8071150939321962E-2},{"$f":"'Population 2016'!BB66/'Population 2016'!BB$5","v":7.6300035215400869E-3},{"$f":"'Population 2016'!BC66/'Population 2016'!BC$5","v":0},64]
[null,"Female 35-39",{"$f":"'Population 2016'!C67/'Population 2016'!C$5","v":3.3119860160590433E-3},{"$f":"'Population 2016'!D67/'Population 2016'!D$5","v":2.005027239028589E-3},{"$f":"'Population 2016'!E67/'Population 2016'!E$5","v":8.0630417356166112E-4},{"$f":"'Population 2016'!F67/'Population 2016'!F$5","v":3.0697913984032966E-3},{"$f":"'Population 2016'!G67/'Population 2016'!G$5","v":2.3953878633681588E-3},{"$f":"'Population 2016'!H67/'Population 2016'!H$5","v":1.0502151336033176E-2},{"$f":"'Population 2016'!I67/'Population 2016'!I$5","v":2.0098819194372332E-3},{"$f":"'Population 2016'!J67/'Population 2016'!J$5","v":6.4188152558818405E-3},{"$f":"'Population 2016'!K67/'Population 2016'!K$5","v":9.9702310636488219E-3},{"$f":"'Population 2016'!L67/'Population 2016'!L$5","v":2.8672184010293394E-3},{"$f":"'Population 2016'!M67/'Population 2016'!M$5","v":2.8672184010293394E-3},{"$f":"'Population 2016'!N67/'Population 2016'!N$5","v":1.4089261459078451E-2},{"$f":"'Population 2016'!O67/'Population 2016'!O$5","v":1.0847921062799061E-2},{"$f":"'Population 2016'!P67/'Population 2016'!P$5","v":1.7017919531161952E-3},{"$f":"'Population 2016'!Q67/'Population 2016'!Q$5","v":1.7038577690038895E-3},{"$f":"'Population 2016'!R67/'Population 2016'!R$5","v":2.8610209187203916E-3},{"$f":"'Population 2016'!S67/'Population 2016'!S$5","v":5.8228929636292065E-3},{"$f":"'Population 2016'!T67/'Population 2016'!T$5","v":6.5657529210853272E-3},{"$f":"'Population 2016'!U67/'Population 2016'!U$5","v":0},{"$f":"'Population 2016'!V67/'Population 2016'!V$5","v":5.2663313514627426E-3},{"$f":"'Population 2016'!W67/'Population 2016'!W$5","v":7.2264820661659445E-3},{"$f":"'Population 2016'!X67/'Population 2016'!X$5","v":7.2264820661659445E-3},{"$f":"'Population 2016'!Y67/'Population 2016'!Y$5","v":5.818667429770592E-3},{"$f":"'Population 2016'!Z67/'Population 2016'!Z$5","v":1.9237954017069861E-2},{"$f":"'Population 2016'!AA67/'Population 2016'!AA$5","v":1.2946822158751545E-2},{"$f":"'Population 2016'!AB67/'Population 2016'!AB$5","v":1.7276849226738175E-3},{"$f":"'Population 2016'!AC67/'Population 2016'!AC$5","v":1.4532881277395894E-2},{"$f":"'Population 2016'!AD67/'Population 2016'!AD$5","v":2.6015110350217723E-3},{"$f":"'Population 2016'!AE67/'Population 2016'!AE$5","v":2.6796989702152999E-3},{"$f":"'Population 2016'!AF67/'Population 2016'!AF$5","v":1.4975342713658779E-2},{"$f":"'Population 2016'!AG67/'Population 2016'!AG$5","v":2.6796989702152999E-3},{"$f":"'Population 2016'!AH67/'Population 2016'!AH$5","v":1.0098176718092567E-2},{"$f":"'Population 2016'!AI67/'Population 2016'!AI$5","v":5.7337693586490502E-3},{"$f":"'Population 2016'!AJ67/'Population 2016'!AJ$5","v":3.9037448066252126E-3},{"$f":"'Population 2016'!AK67/'Population 2016'!AK$5","v":3.0172359604239214E-4},{"$f":"'Population 2016'!AL67/'Population 2016'!AL$5","v":1.4029548961529593E-2},{"$f":"'Population 2016'!AM67/'Population 2016'!AM$5","v":1.2188010474807219E-2},{"$f":"'Population 2016'!AN67/'Population 2016'!AN$5","v":0},{"$f":"'Population 2016'!AO67/'Population 2016'!AO$5","v":0},{"$f":"'Population 2016'!AP67/'Population 2016'!AP$5","v":2.3461154352202654E-3},{"$f":"'Population 2016'!AQ67/'Population 2016'!AQ$5","v":1.1268975722036499E-2},{"$f":"'Population 2016'!AR67/'Population 2016'!AR$5","v":7.8056791785212163E-3},{"$f":"'Population 2016'!AS67/'Population 2016'!AS$5","v":2.0098819194372332E-3},{"$f":"'Population 2016'!AT67/'Population 2016'!AT$5","v":0},{"$f":"'Population 2016'!AU67/'Population 2016'!AU$5","v":0},{"$f":"'Population 2016'!AV67/'Population 2016'!AV$5","v":5.9339034948791046E-3},{"$f":"'Population 2016'!AW67/'Population 2016'!AW$5","v":7.8978278113368723E-3},{"$f":"'Population 2016'!AX67/'Population 2016'!AX$5","v":4.4980001788977346E-3},{"$f":"'Population 2016'!AY67/'Population 2016'!AY$5","v":6.9734708240261926E-3},{"$f":"'Population 2016'!AZ67/'Population 2016'!AZ$5","v":6.7508096944733677E-3},{"$f":"'Population 2016'!BA67/'Population 2016'!BA$5","v":1.4967069747354783E-2},{"$f":"'Population 2016'!BB67/'Population 2016'!BB$5","v":6.539016592668292E-3},{"$f":"'Population 2016'!BC67/'Population 2016'!BC$5","v":0},65]
[null,"Female 40-44",{"$f":"'Population 2016'!C68/'Population 2016'!C$5","v":3.3784301799614624E-3},{"$f":"'Population 2016'!D68/'Population 2016'!D$5","v":2.0270336355545124E-3},{"$f":"'Population 2016'!E68/'Population 2016'!E$5","v":7.8755291371139003E-4},{"$f":"'Population 2016'!F68/'Population 2016'!F$5","v":2.6268349214524853E-3},{"$f":"'Population 2016'!G68/'Population 2016'!G$5","v":2.8149190710767065E-3},{"$f":"'Population 2016'!H68/'Population 2016'!H$5","v":1.192232493442235E-2},{"$f":"'Population 2016'!I68/'Population 2016'!I$5","v":2.439075454317059E-3},{"$f":"'Population 2016'!J68/'Population 2016'!J$5","v":6.4188152558818405E-3},{"$f":"'Population 2016'!K68/'Population 2016'!K$5","v":9.6158389642300238E-3},{"$f":"'Population 2016'!L68/'Population 2016'!L$5","v":2.8989881340047339E-3},{"$f":"'Population 2016'!M68/'Population 2016'!M$5","v":2.8989881340047339E-3},{"$f":"'Population 2016'!N68/'Population 2016'!N$5","v":1.1645944012666672E-2},{"$f":"'Population 2016'!O68/'Population 2016'!O$5","v":1.220514954280223E-2},{"$f":"'Population 2016'!P68/'Population 2016'!P$5","v":1.9835455877380819E-3},{"$f":"'Population 2016'!Q68/'Population 2016'!Q$5","v":1.2455787828580158E-3},{"$f":"'Population 2016'!R68/'Population 2016'!R$5","v":2.6747218821525521E-3},{"$f":"'Population 2016'!S68/'Population 2016'!S$5","v":5.3745028430405087E-3},{"$f":"'Population 2016'!T68/'Population 2016'!T$5","v":5.0836889201174486E-3},{"$f":"'Population 2016'!U68/'Population 2016'!U$5","v":0},{"$f":"'Population 2016'!V68/'Population 2016'!V$5","v":6.0448325077659308E-3},{"$f":"'Population 2016'!W68/'Population 2016'!W$5","v":7.4356611038116343E-3},{"$f":"'Population 2016'!X68/'Population 2016'!X$5","v":7.4356611038116343E-3},{"$f":"'Population 2016'!Y68/'Population 2016'!Y$5","v":6.2240663900414933E-3},{"$f":"'Population 2016'!Z68/'Population 2016'!Z$5","v":1.7224724778012439E-2},{"$f":"'Population 2016'!AA68/'Population 2016'!AA$5","v":1.2243241070532842E-2},{"$f":"'Population 2016'!AB68/'Population 2016'!AB$5","v":1.7542961833311157E-3},{"$f":"'Population 2016'!AC68/'Population 2016'!AC$5","v":1.3306207218966491E-2},{"$f":"'Population 2016'!AD68/'Population 2016'!AD$5","v":2.7317726748297294E-3},{"$f":"'Population 2016'!AE68/'Population 2016'!AE$5","v":2.7002330619410875E-3},{"$f":"'Population 2016'!AF68/'Population 2016'!AF$5","v":1.5065828168121975E-2},{"$f":"'Population 2016'!AG68/'Population 2016'!AG$5","v":2.7002330619410875E-3},{"$f":"'Population 2016'!AH68/'Population 2016'!AH$5","v":1.0334098065259189E-2},{"$f":"'Population 2016'!AI68/'Population 2016'!AI$5","v":4.8957148481931926E-3},{"$f":"'Population 2016'!AJ68/'Population 2016'!AJ$5","v":3.959512589577001E-3},{"$f":"'Population 2016'!AK68/'Population 2016'!AK$5","v":3.5201086204945752E-4},{"$f":"'Population 2016'!AL68/'Population 2016'!AL$5","v":1.6290949078590307E-2},{"$f":"'Population 2016'!AM68/'Population 2016'!AM$5","v":1.2550209894563749E-2},{"$f":"'Population 2016'!AN68/'Population 2016'!AN$5","v":0},{"$f":"'Population 2016'!AO68/'Population 2016'!AO$5","v":0},{"$f":"'Population 2016'!AP68/'Population 2016'!AP$5","v":1.9260339552652854E-3},{"$f":"'Population 2016'!AQ68/'Population 2016'!AQ$5","v":1.017975557625911E-2},{"$f":"'Population 2016'!AR68/'Population 2016'!AR$5","v":7.4993600715383213E-3},{"$f":"'Population 2016'!AS68/'Population 2016'!AS$5","v":2.439075454317059E-3},{"$f":"'Population 2016'!AT68/'Population 2016'!AT$5","v":0},{"$f":"'Population 2016'!AU68/'Population 2016'!AU$5","v":0},{"$f":"'Population 2016'!AV68/'Population 2016'!AV$5","v":6.4195966634991025E-3},{"$f":"'Population 2016'!AW68/'Population 2016'!AW$5","v":8.0007932149612545E-3},{"$f":"'Population 2016'!AX68/'Population 2016'!AX$5","v":4.6896763228848537E-3},{"$f":"'Population 2016'!AY68/'Population 2016'!AY$5","v":6.4594106667482639E-3},{"$f":"'Population 2016'!AZ68/'Population 2016'!AZ$5","v":5.6002669259223037E-3},{"$f":"'Population 2016'!BA68/'Population 2016'!BA$5","v":1.4913085726624919E-2},{"$f":"'Population 2016'!BB68/'Population 2016'!BB$5","v":6.9464104458545946E-3},{"$f":"'Population 2016'!BC68/'Population 2016'!BC$5","v":0},66]
[null,"Female 45-49",{"$f":"'Population 2016'!C69/'Population 2016'!C$5","v":3.0359871813874562E-3},{"$f":"'Population 2016'!D69/'Population 2016'!D$5","v":1.9316725839421769E-3},{"$f":"'Population 2016'!E69/'Population 2016'!E$5","v":9.1881173266328828E-4},{"$f":"'Population 2016'!F69/'Population 2016'!F$5","v":3.1315992789080608E-3},{"$f":"'Population 2016'!G69/'Population 2016'!G$5","v":3.2344502787852543E-3},{"$f":"'Population 2016'!H69/'Population 2016'!H$5","v":1.4211463200319052E-2},{"$f":"'Population 2016'!I69/'Population 2016'!I$5","v":2.3762666443346452E-3},{"$f":"'Population 2016'!J69/'Population 2016'!J$5","v":8.1437681928630077E-3},{"$f":"'Population 2016'!K69/'Population 2016'!K$5","v":1.1151538061711477E-2},{"$f":"'Population 2016'!L69/'Population 2016'!L$5","v":3.6376344256826522E-3},{"$f":"'Population 2016'!M69/'Population 2016'!M$5","v":3.6376344256826522E-3},{"$f":"'Population 2016'!N69/'Population 2016'!N$5","v":1.3237315244211185E-2},{"$f":"'Population 2016'!O69/'Population 2016'!O$5","v":1.5127648824560882E-2},{"$f":"'Population 2016'!P69/'Population 2016'!P$5","v":2.378000676208723E-3},{"$f":"'Population 2016'!Q69/'Population 2016'!Q$5","v":1.7978637148799662E-3},{"$f":"'Population 2016'!R69/'Population 2016'!R$5","v":3.2735402139777506E-3},{"$f":"'Population 2016'!S69/'Population 2016'!S$5","v":6.0197256346750322E-3},{"$f":"'Population 2016'!T69/'Population 2016'!T$5","v":5.4187237963174081E-3},{"$f":"'Population 2016'!U69/'Population 2016'!U$5","v":0},{"$f":"'Population 2016'!V69/'Population 2016'!V$5","v":6.0219354149334842E-3},{"$f":"'Population 2016'!W69/'Population 2016'!W$5","v":9.0208459984703789E-3},{"$f":"'Population 2016'!X69/'Population 2016'!X$5","v":9.0208459984703789E-3},{"$f":"'Population 2016'!Y69/'Population 2016'!Y$5","v":7.038838810193797E-3},{"$f":"'Population 2016'!Z69/'Population 2016'!Z$5","v":2.0217467473765106E-2},{"$f":"'Population 2016'!AA69/'Population 2016'!AA$5","v":1.4555292238616967E-2},{"$f":"'Population 2016'!AB69/'Population 2016'!AB$5","v":1.6744624013592213E-3},{"$f":"'Population 2016'!AC69/'Population 2016'!AC$5","v":1.6027437781974716E-2},{"$f":"'Population 2016'!AD69/'Population 2016'!AD$5","v":3.159775205627303E-3},{"$f":"'Population 2016'!AE69/'Population 2016'!AE$5","v":3.1314489881826301E-3},{"$f":"'Population 2016'!AF69/'Population 2016'!AF$5","v":2.0253660890678489E-2},{"$f":"'Population 2016'!AG69/'Population 2016'!AG$5","v":3.1314489881826301E-3},{"$f":"'Population 2016'!AH69/'Population 2016'!AH$5","v":1.191124155931007E-2},{"$f":"'Population 2016'!AI69/'Population 2016'!AI$5","v":5.240233178755797E-3},{"$f":"'Population 2016'!AJ69/'Population 2016'!AJ$5","v":4.3498870702395227E-3},{"$f":"'Population 2016'!AK69/'Population 2016'!AK$5","v":3.5201086204945752E-4},{"$f":"'Population 2016'!AL69/'Population 2016'!AL$5","v":1.8818396268246395E-2},{"$f":"'Population 2016'!AM69/'Population 2016'!AM$5","v":1.4430024883100138E-2},{"$f":"'Population 2016'!AN69/'Population 2016'!AN$5","v":0},{"$f":"'Population 2016'!AO69/'Population 2016'!AO$5","v":0},{"$f":"'Population 2016'!AP69/'Population 2016'!AP$5","v":1.8943296926271736E-3},{"$f":"'Population 2016'!AQ69/'Population 2016'!AQ$5","v":1.2858278073107908E-2},{"$f":"'Population 2016'!AR69/'Population 2016'!AR$5","v":8.732210935569841E-3},{"$f":"'Population 2016'!AS69/'Population 2016'!AS$5","v":2.3762666443346452E-3},{"$f":"'Population 2016'!AT69/'Population 2016'!AT$5","v":0},{"$f":"'Population 2016'!AU69/'Population 2016'!AU$5","v":0},{"$f":"'Population 2016'!AV69/'Population 2016'!AV$5","v":7.7499736036321402E-3},{"$f":"'Population 2016'!AW69/'Population 2016'!AW$5","v":9.2592592592592587E-3},{"$f":"'Population 2016'!AX69/'Population 2016'!AX$5","v":6.5169888955620581E-3},{"$f":"'Population 2016'!AY69/'Population 2016'!AY$5","v":7.5732076741837767E-3},{"$f":"'Population 2016'!AZ69/'Population 2016'!AZ$5","v":6.2992216578170749E-3},{"$f":"'Population 2016'!BA69/'Population 2016'!BA$5","v":1.8557007125890736E-2},{"$f":"'Population 2016'!BB69/'Population 2016'!BB$5","v":7.1742748044164254E-3},{"$f":"'Population 2016'!BC69/'Population 2016'!BC$5","v":0},67]
[null,"Female 50-54",{"$f":"'Population 2016'!C70/'Population 2016'!C$5","v":3.2046531359089816E-3},{"$f":"'Population 2016'!D70/'Population 2016'!D$5","v":1.9854659976722123E-3},{"$f":"'Population 2016'!E70/'Population 2016'!E$5","v":8.6724576807504258E-4},{"$f":"'Population 2016'!F70/'Population 2016'!F$5","v":2.8740664434715427E-3},{"$f":"'Population 2016'!G70/'Population 2016'!G$5","v":3.1532506901965031E-3},{"$f":"'Population 2016'!H70/'Population 2016'!H$5","v":1.4474098043856777E-2},{"$f":"'Population 2016'!I70/'Population 2016'!I$5","v":2.3029896993551628E-3},{"$f":"'Population 2016'!J70/'Population 2016'!J$5","v":7.5052038844613256E-3},{"$f":"'Population 2016'!K70/'Population 2016'!K$5","v":1.0797145962292681E-2},{"$f":"'Population 2016'!L70/'Population 2016'!L$5","v":3.7567709243403811E-3},{"$f":"'Population 2016'!M70/'Population 2016'!M$5","v":3.7567709243403811E-3},{"$f":"'Population 2016'!N70/'Population 2016'!N$5","v":1.4997468273040725E-2},{"$f":"'Population 2016'!O70/'Population 2016'!O$5","v":1.5514013136386602E-2},{"$f":"'Population 2016'!P70/'Population 2016'!P$5","v":2.3892708215935985E-3},{"$f":"'Population 2016'!Q70/'Population 2016'!Q$5","v":1.4688429043136979E-3},{"$f":"'Population 2016'!R70/'Population 2016'!R$5","v":3.4332251024644703E-3},{"$f":"'Population 2016'!S70/'Population 2016'!S$5","v":5.7893519703568234E-3},{"$f":"'Population 2016'!T70/'Population 2016'!T$5","v":4.8696388603230297E-3},{"$f":"'Population 2016'!U70/'Population 2016'!U$5","v":0},{"$f":"'Population 2016'!V70/'Population 2016'!V$5","v":6.4111859930850784E-3},{"$f":"'Population 2016'!W70/'Population 2016'!W$5","v":9.040456533249662E-3},{"$f":"'Population 2016'!X70/'Population 2016'!X$5","v":9.040456533249662E-3},{"$f":"'Population 2016'!Y70/'Population 2016'!Y$5","v":6.9355018203208219E-3},{"$f":"'Population 2016'!Z70/'Population 2016'!Z$5","v":2.1208595714531837E-2},{"$f":"'Population 2016'!AA70/'Population 2016'!AA$5","v":1.4898778001231764E-2},{"$f":"'Population 2016'!AB70/'Population 2016'!AB$5","v":1.7174498224210106E-3},{"$f":"'Population 2016'!AC70/'Population 2016'!AC$5","v":1.6512522211488537E-2},{"$f":"'Population 2016'!AD70/'Population 2016'!AD$5","v":2.9588001042093119E-3},{"$f":"'Population 2016'!AE70/'Population 2016'!AE$5","v":2.8850398874731772E-3},{"$f":"'Population 2016'!AF70/'Population 2016'!AF$5","v":1.9952042709134508E-2},{"$f":"'Population 2016'!AG70/'Population 2016'!AG$5","v":2.8850398874731772E-3},{"$f":"'Population 2016'!AH70/'Population 2016'!AH$5","v":1.2000408682648634E-2},{"$f":"'Population 2016'!AI70/'Population 2016'!AI$5","v":4.8847777583340621E-3},{"$f":"'Population 2016'!AJ70/'Population 2016'!AJ$5","v":4.4195967989292583E-3},{"$f":"'Population 2016'!AK70/'Population 2016'!AK$5","v":3.3943904554769119E-4},{"$f":"'Population 2016'!AL70/'Population 2016'!AL$5","v":1.9527855128500735E-2},{"$f":"'Population 2016'!AM70/'Population 2016'!AM$5","v":1.4640100546558924E-2},{"$f":"'Population 2016'!AN70/'Population 2016'!AN$5","v":0},{"$f":"'Population 2016'!AO70/'Population 2016'!AO$5","v":0},{"$f":"'Population 2016'!AP70/'Population 2016'!AP$5","v":2.0528510058177322E-3},{"$f":"'Population 2016'!AQ70/'Population 2016'!AQ$5","v":1.231709322080342E-2},{"$f":"'Population 2016'!AR70/'Population 2016'!AR$5","v":8.845159144471898E-3},{"$f":"'Population 2016'!AS70/'Population 2016'!AS$5","v":2.3029896993551628E-3},{"$f":"'Population 2016'!AT70/'Population 2016'!AT$5","v":0},{"$f":"'Population 2016'!AU70/'Population 2016'!AU$5","v":0},{"$f":"'Population 2016'!AV70/'Population 2016'!AV$5","v":7.3487488121634463E-3},{"$f":"'Population 2016'!AW70/'Population 2016'!AW$5","v":9.221123924583562E-3},{"$f":"'Population 2016'!AX70/'Population 2016'!AX$5","v":5.7247275004152984E-3},{"$f":"'Population 2016'!AY70/'Population 2016'!AY$5","v":7.9097946819252779E-3},{"$f":"'Population 2016'!AZ70/'Population 2016'!AZ$5","v":6.9147620389918944E-3},{"$f":"'Population 2016'!BA70/'Population 2016'!BA$5","v":1.9137335348736774E-2},{"$f":"'Population 2016'!BB70/'Population 2016'!BB$5","v":7.1673698238539458E-3},{"$f":"'Population 2016'!BC70/'Population 2016'!BC$5","v":0},68]
[null,"Female 55-59",{"$f":"'Population 2016'!C71/'Population 2016'!C$5","v":2.7650994362468247E-3},{"$f":"'Population 2016'!D71/'Population 2016'!D$5","v":1.7116086186829416E-3},{"$f":"'Population 2016'!E71/'Population 2016'!E$5","v":7.4536257904827977E-4},{"$f":"'Population 2016'!F71/'Population 2016'!F$5","v":2.6783414885397888E-3},{"$f":"'Population 2016'!G71/'Population 2016'!G$5","v":3.0179180425485845E-3},{"$f":"'Population 2016'!H71/'Population 2016'!H$5","v":1.2687532626705101E-2},{"$f":"'Population 2016'!I71/'Population 2016'!I$5","v":2.0412863244284396E-3},{"$f":"'Population 2016'!J71/'Population 2016'!J$5","v":6.9246908768234331E-3},{"$f":"'Population 2016'!K71/'Population 2016'!K$5","v":9.8993526437650622E-3},{"$f":"'Population 2016'!L71/'Population 2016'!L$5","v":3.0498943656378568E-3},{"$f":"'Population 2016'!M71/'Population 2016'!M$5","v":3.0498943656378568E-3},{"$f":"'Population 2016'!N71/'Population 2016'!N$5","v":1.3414134269938354E-2},{"$f":"'Population 2016'!O71/'Population 2016'!O$5","v":1.256179352294905E-2},{"$f":"'Population 2016'!P71/'Population 2016'!P$5","v":2.3892708215935985E-3},{"$f":"'Population 2016'!Q71/'Population 2016'!Q$5","v":1.6098518231278129E-3},{"$f":"'Population 2016'!R71/'Population 2016'!R$5","v":2.5948794379091924E-3},{"$f":"'Population 2016'!S71/'Population 2016'!S$5","v":5.3683242390166483E-3},{"$f":"'Population 2016'!T71/'Population 2016'!T$5","v":4.799839927781371E-3},{"$f":"'Population 2016'!U71/'Population 2016'!U$5","v":0},{"$f":"'Population 2016'!V71/'Population 2016'!V$5","v":5.8463910365513924E-3},{"$f":"'Population 2016'!W71/'Population 2016'!W$5","v":7.994561345021212E-3},{"$f":"'Population 2016'!X71/'Population 2016'!X$5","v":7.994561345021212E-3},{"$f":"'Population 2016'!Y71/'Population 2016'!Y$5","v":6.3631738764089599E-3},{"$f":"'Population 2016'!Z71/'Population 2016'!Z$5","v":1.836490941436323E-2},{"$f":"'Population 2016'!AA71/'Population 2016'!AA$5","v":1.323715731980119E-2},{"$f":"'Population 2016'!AB71/'Population 2016'!AB$5","v":1.4799954965558889E-3},{"$f":"'Population 2016'!AC71/'Population 2016'!AC$5","v":1.4524606916124868E-2},{"$f":"'Population 2016'!AD71/'Population 2016'!AD$5","v":2.7503814805165806E-3},{"$f":"'Population 2016'!AE71/'Population 2016'!AE$5","v":2.6488978326266181E-3},{"$f":"'Population 2016'!AF71/'Population 2016'!AF$5","v":1.9047188164502557E-2},{"$f":"'Population 2016'!AG71/'Population 2016'!AG$5","v":2.6488978326266181E-3},{"$f":"'Population 2016'!AH71/'Population 2016'!AH$5","v":1.0924830257377185E-2},{"$f":"'Population 2016'!AI71/'Population 2016'!AI$5","v":4.7043157756584131E-3},{"$f":"'Population 2016'!AJ71/'Population 2016'!AJ$5","v":4.3220031787636285E-3},{"$f":"'Population 2016'!AK71/'Population 2016'!AK$5","v":2.8915177954062581E-4},{"$f":"'Population 2016'!AL71/'Population 2016'!AL$5","v":1.7390610311984533E-2},{"$f":"'Population 2016'!AM71/'Population 2016'!AM$5","v":1.293414127950567E-2},{"$f":"'Population 2016'!AN71/'Population 2016'!AN$5","v":0},{"$f":"'Population 2016'!AO71/'Population 2016'!AO$5","v":0},{"$f":"'Population 2016'!AP71/'Population 2016'!AP$5","v":1.8467732986700062E-3},{"$f":"'Population 2016'!AQ71/'Population 2016'!AQ$5","v":1.132377925138379E-2},{"$f":"'Population 2016'!AR71/'Population 2016'!AR$5","v":7.914840169373303E-3},{"$f":"'Population 2016'!AS71/'Population 2016'!AS$5","v":2.0412863244284396E-3},{"$f":"'Population 2016'!AT71/'Population 2016'!AT$5","v":0},{"$f":"'Population 2016'!AU71/'Population 2016'!AU$5","v":0},{"$f":"'Population 2016'!AV71/'Population 2016'!AV$5","v":7.2220462464364903E-3},{"$f":"'Population 2016'!AW71/'Population 2016'!AW$5","v":8.8092623100860332E-3},{"$f":"'Population 2016'!AX71/'Population 2016'!AX$5","v":5.3158183932427768E-3},{"$f":"'Population 2016'!AY71/'Population 2016'!AY$5","v":7.0499678712401702E-3},{"$f":"'Population 2016'!AZ71/'Population 2016'!AZ$5","v":6.2186836640185008E-3},{"$f":"'Population 2016'!BA71/'Population 2016'!BA$5","v":1.6640574389980567E-2},{"$f":"'Population 2016'!BB71/'Population 2016'!BB$5","v":6.428536903668616E-3},{"$f":"'Population 2016'!BC71/'Population 2016'!BC$5","v":0},69]
[null,"Female 60-64",{"$f":"'Population 2016'!C72/'Population 2016'!C$5","v":2.2488793936203382E-3},{"$f":"'Population 2016'!D72/'Population 2016'!D$5","v":1.3815126707940886E-3},{"$f":"'Population 2016'!E72/'Population 2016'!E$5","v":5.8597687032097467E-4},{"$f":"'Population 2016'!F72/'Population 2016'!F$5","v":2.1529745042492918E-3},{"$f":"'Population 2016'!G72/'Population 2016'!G$5","v":2.7066529529583719E-3},{"$f":"'Population 2016'!H72/'Population 2016'!H$5","v":1.1487842600668584E-2},{"$f":"'Population 2016'!I72/'Population 2016'!I$5","v":1.9470731094548195E-3},{"$f":"'Population 2016'!J72/'Population 2016'!J$5","v":5.2992544554373334E-3},{"$f":"'Population 2016'!K72/'Population 2016'!K$5","v":7.9856353069035577E-3},{"$f":"'Population 2016'!L72/'Population 2016'!L$5","v":2.7401394691277622E-3},{"$f":"'Population 2016'!M72/'Population 2016'!M$5","v":2.7401394691277622E-3},{"$f":"'Population 2016'!N72/'Population 2016'!N$5","v":1.0689513828051535E-2},{"$f":"'Population 2016'!O72/'Population 2016'!O$5","v":1.1402700587471889E-2},{"$f":"'Population 2016'!P72/'Population 2016'!P$5","v":1.8370336977347008E-3},{"$f":"'Population 2016'!Q72/'Population 2016'!Q$5","v":1.1398220937474295E-3},{"$f":"'Population 2016'!R72/'Population 2016'!R$5","v":2.2888167349763133E-3},{"$f":"'Population 2016'!S72/'Population 2016'!S$5","v":4.3470892596443591E-3},{"$f":"'Population 2016'!T72/'Population 2016'!T$5","v":3.5899917637259599E-3},{"$f":"'Population 2016'!U72/'Population 2016'!U$5","v":0},{"$f":"'Population 2016'!V72/'Population 2016'!V$5","v":4.953404416085971E-3},{"$f":"'Population 2016'!W72/'Population 2016'!W$5","v":6.8179292582642064E-3},{"$f":"'Population 2016'!X72/'Population 2016'!X$5","v":6.8179292582642064E-3},{"$f":"'Population 2016'!Y72/'Population 2016'!Y$5","v":5.1191554983227609E-3},{"$f":"'Population 2016'!Z72/'Population 2016'!Z$5","v":1.4135192214997396E-2},{"$f":"'Population 2016'!AA72/'Population 2016'!AA$5","v":1.0681277767036926E-2},{"$f":"'Population 2016'!AB72/'Population 2016'!AB$5","v":1.23230607043796E-3},{"$f":"'Population 2016'!AC72/'Population 2016'!AC$5","v":1.136793809122897E-2},{"$f":"'Population 2016'!AD72/'Population 2016'!AD$5","v":2.5345193345491087E-3},{"$f":"'Population 2016'!AE72/'Population 2016'!AE$5","v":2.4692245300259757E-3},{"$f":"'Population 2016'!AF72/'Population 2016'!AF$5","v":1.5714307258441539E-2},{"$f":"'Population 2016'!AG72/'Population 2016'!AG$5","v":2.4692245300259757E-3},{"$f":"'Population 2016'!AH72/'Population 2016'!AH$5","v":9.4479997770821923E-3},{"$f":"'Population 2016'!AI72/'Population 2016'!AI$5","v":3.62701242453408E-3},{"$f":"'Population 2016'!AJ72/'Population 2016'!AJ$5","v":3.2345314112037474E-3},{"$f":"'Population 2016'!AK72/'Population 2016'!AK$5","v":4.651572105653546E-4},{"$f":"'Population 2016'!AL72/'Population 2016'!AL$5","v":1.5625831397101862E-2},{"$f":"'Population 2016'!AM72/'Population 2016'!AM$5","v":1.1086924238747369E-2},{"$f":"'Population 2016'!AN72/'Population 2016'!AN$5","v":0},{"$f":"'Population 2016'!AO72/'Population 2016'!AO$5","v":0},{"$f":"'Population 2016'!AP72/'Population 2016'!AP$5","v":1.6803259198199198E-3},{"$f":"'Population 2016'!AQ72/'Population 2016'!AQ$5","v":8.6247054310297586E-3},{"$f":"'Population 2016'!AR72/'Population 2016'!AR$5","v":6.5077772750431464E-3},{"$f":"'Population 2016'!AS72/'Population 2016'!AS$5","v":1.9470731094548195E-3},{"$f":"'Population 2016'!AT72/'Population 2016'!AT$5","v":0},{"$f":"'Population 2016'!AU72/'Population 2016'!AU$5","v":0},{"$f":"'Population 2016'!AV72/'Population 2016'!AV$5","v":6.6518847006651885E-3},{"$f":"'Population 2016'!AW72/'Population 2016'!AW$5","v":7.7224052718286654E-3},{"$f":"'Population 2016'!AX72/'Population 2016'!AX$5","v":3.8463012893415285E-3},{"$f":"'Population 2016'!AY72/'Population 2016'!AY$5","v":5.8703834032006368E-3},{"$f":"'Population 2016'!AZ72/'Population 2016'!AZ$5","v":5.0365009693322822E-3},{"$f":"'Population 2016'!BA72/'Population 2016'!BA$5","v":1.4211293457136688E-2},{"$f":"'Population 2016'!BB72/'Population 2016'!BB$5","v":5.3927898192966586E-3},{"$f":"'Population 2016'!BC72/'Population 2016'!BC$5","v":0},70]
[null,"Female 65-69",{"$f":"'Population 2016'!C73/'Population 2016'!C$5","v":2.0853245286297679E-3},{"$f":"'Population 2016'!D73/'Population 2016'!D$5","v":1.2837064640122062E-3},{"$f":"'Population 2016'!E73/'Population 2016'!E$5","v":5.4847435062043229E-4},{"$f":"'Population 2016'!F73/'Population 2016'!F$5","v":1.9263456090651558E-3},{"$f":"'Population 2016'!G73/'Population 2016'!G$5","v":3.044984572078168E-3},{"$f":"'Population 2016'!H73/'Population 2016'!H$5","v":1.0985269751923557E-2},{"$f":"'Population 2016'!I73/'Population 2016'!I$5","v":2.0203500544343019E-3},{"$f":"'Population 2016'!J73/'Population 2016'!J$5","v":5.6724413889188358E-3},{"$f":"'Population 2016'!K73/'Population 2016'!K$5","v":8.788924065586165E-3},{"$f":"'Population 2016'!L73/'Population 2016'!L$5","v":2.3668451066668783E-3},{"$f":"'Population 2016'!M73/'Population 2016'!M$5","v":2.3668451066668783E-3},{"$f":"'Population 2016'!N73/'Population 2016'!N$5","v":1.0665402142725103E-2},{"$f":"'Population 2016'!O73/'Population 2016'!O$5","v":1.1115404047909175E-2},{"$f":"'Population 2016'!P73/'Population 2016'!P$5","v":1.6567113715766934E-3},{"$f":"'Population 2016'!Q73/'Population 2016'!Q$5","v":1.1985758099199773E-3},{"$f":"'Population 2016'!R73/'Population 2016'!R$5","v":2.3021238090168736E-3},{"$f":"'Population 2016'!S73/'Population 2016'!S$5","v":4.3347320515966393E-3},{"$f":"'Population 2016'!T73/'Population 2016'!T$5","v":3.4736602094898629E-3},{"$f":"'Population 2016'!U73/'Population 2016'!U$5","v":0},{"$f":"'Population 2016'!V73/'Population 2016'!V$5","v":4.9915662374733823E-3},{"$f":"'Population 2016'!W73/'Population 2016'!W$5","v":6.8571503278227735E-3},{"$f":"'Population 2016'!X73/'Population 2016'!X$5","v":6.8571503278227735E-3},{"$f":"'Population 2016'!Y73/'Population 2016'!Y$5","v":5.3178804788477129E-3},{"$f":"'Population 2016'!Z73/'Population 2016'!Z$5","v":1.2683344206061755E-2},{"$f":"'Population 2016'!AA73/'Population 2016'!AA$5","v":9.9285323723704577E-3},{"$f":"'Population 2016'!AB73/'Population 2016'!AB$5","v":1.1401901681626972E-3},{"$f":"'Population 2016'!AC73/'Population 2016'!AC$5","v":1.0435003857920943E-2},{"$f":"'Population 2016'!AD73/'Population 2016'!AD$5","v":2.3447095165432283E-3},{"$f":"'Population 2016'!AE73/'Population 2016'!AE$5","v":2.0790767872360086E-3},{"$f":"'Population 2016'!AF73/'Population 2016'!AF$5","v":1.5759549985673138E-2},{"$f":"'Population 2016'!AG73/'Population 2016'!AG$5","v":2.0790767872360086E-3},{"$f":"'Population 2016'!AH73/'Population 2016'!AH$5","v":9.0188829960153438E-3},{"$f":"'Population 2016'!AI73/'Population 2016'!AI$5","v":3.5818969288651677E-3},{"$f":"'Population 2016'!AJ73/'Population 2016'!AJ$5","v":3.6388478376042162E-3},{"$f":"'Population 2016'!AK73/'Population 2016'!AK$5","v":4.0229812805652289E-4},{"$f":"'Population 2016'!AL73/'Population 2016'!AL$5","v":1.5306574909987406E-2},{"$f":"'Population 2016'!AM73/'Population 2016'!AM$5","v":1.0511027161334488E-2},{"$f":"'Population 2016'!AN73/'Population 2016'!AN$5","v":0},{"$f":"'Population 2016'!AO73/'Population 2016'!AO$5","v":0},{"$f":"'Population 2016'!AP73/'Population 2016'!AP$5","v":1.4425439500340821E-3},{"$f":"'Population 2016'!AQ73/'Population 2016'!AQ$5","v":8.3095851372828409E-3},{"$f":"'Population 2016'!AR73/'Population 2016'!AR$5","v":6.1847498531339114E-3},{"$f":"'Population 2016'!AS73/'Population 2016'!AS$5","v":2.0203500544343019E-3},{"$f":"'Population 2016'!AT73/'Population 2016'!AT$5","v":0},{"$f":"'Population 2016'!AU73/'Population 2016'!AU$5","v":0},{"$f":"'Population 2016'!AV73/'Population 2016'!AV$5","v":5.7016154577130187E-3},{"$f":"'Population 2016'!AW73/'Population 2016'!AW$5","v":7.4478308621636459E-3},{"$f":"'Population 2016'!AX73/'Population 2016'!AX$5","v":3.986863794932083E-3},{"$f":"'Population 2016'!AY73/'Population 2016'!AY$5","v":5.8045959425966154E-3},{"$f":"'Population 2016'!AZ73/'Population 2016'!AZ$5","v":4.8783013386565115E-3},{"$f":"'Population 2016'!BA73/'Population 2016'!BA$5","v":1.2942668969984885E-2},{"$f":"'Population 2016'!BB73/'Population 2016'!BB$5","v":5.2754051497345038E-3},{"$f":"'Population 2016'!BC73/'Population 2016'!BC$5","v":0},71]
[null,"Female 70-74",{"$f":"'Population 2016'!C74/'Population 2016'!C$5","v":1.466882695384175E-3},{"$f":"'Population 2016'!D74/'Population 2016'!D$5","v":8.9737194722377077E-4},{"$f":"'Population 2016'!E74/'Population 2016'!E$5","v":3.7502519700542382E-4},{"$f":"'Population 2016'!F74/'Population 2016'!F$5","v":1.658511460211177E-3},{"$f":"'Population 2016'!G74/'Population 2016'!G$5","v":2.2465219509554485E-3},{"$f":"'Population 2016'!H74/'Population 2016'!H$5","v":8.5988593217536224E-3},{"$f":"'Population 2016'!I74/'Population 2016'!I$5","v":1.5597521145632694E-3},{"$f":"'Population 2016'!J74/'Population 2016'!J$5","v":4.3787266861829615E-3},{"$f":"'Population 2016'!K74/'Population 2016'!K$5","v":6.5916930491896238E-3},{"$f":"'Population 2016'!L74/'Population 2016'!L$5","v":2.4700967388369102E-3},{"$f":"'Population 2016'!M74/'Population 2016'!M$5","v":2.4700967388369102E-3},{"$f":"'Population 2016'!N74/'Population 2016'!N$5","v":7.6996648475739626E-3},{"$f":"'Population 2016'!O74/'Population 2016'!O$5","v":8.5891758552025434E-3},{"$f":"'Population 2016'!P74/'Population 2016'!P$5","v":1.1495548292572975E-3},{"$f":"'Population 2016'!Q74/'Population 2016'!Q$5","v":1.0223146614023338E-3},{"$f":"'Population 2016'!R74/'Population 2016'!R$5","v":1.6500771810294352E-3},{"$f":"'Population 2016'!S74/'Population 2016'!S$5","v":3.3417421191905675E-3},{"$f":"'Population 2016'!T74/'Population 2016'!T$5","v":2.5267213580080316E-3},{"$f":"'Population 2016'!U74/'Population 2016'!U$5","v":0},{"$f":"'Population 2016'!V74/'Population 2016'!V$5","v":3.6101083032490976E-3},{"$f":"'Population 2016'!W74/'Population 2016'!W$5","v":5.4353865563247245E-3},{"$f":"'Population 2016'!X74/'Population 2016'!X$5","v":5.4353865563247245E-3},{"$f":"'Population 2016'!Y74/'Population 2016'!Y$5","v":3.978474110109537E-3},{"$f":"'Population 2016'!Z74/'Population 2016'!Z$5","v":1.0445562474955622E-2},{"$f":"'Population 2016'!AA74/'Population 2016'!AA$5","v":7.9074807478555394E-3},{"$f":"'Population 2016'!AB74/'Population 2016'!AB$5","v":7.7991463926389154E-4},{"$f":"'Population 2016'!AC74/'Population 2016'!AC$5","v":8.3291789144451737E-3},{"$f":"'Population 2016'!AD74/'Population 2016'!AD$5","v":1.7976106293498084E-3},{"$f":"'Population 2016'!AE74/'Population 2016'!AE$5","v":1.6273267692686784E-3},{"$f":"'Population 2016'!AF74/'Population 2016'!AF$5","v":1.1883756352832949E-2},{"$f":"'Population 2016'!AG74/'Population 2016'!AG$5","v":1.6273267692686784E-3},{"$f":"'Population 2016'!AH74/'Population 2016'!AH$5","v":7.1500887027112379E-3},{"$f":"'Population 2016'!AI74/'Population 2016'!AI$5","v":2.6987269227403974E-3},{"$f":"'Population 2016'!AJ74/'Population 2016'!AJ$5","v":2.760505256113543E-3},{"$f":"'Population 2016'!AK74/'Population 2016'!AK$5","v":1.7600543102472876E-4},{"$f":"'Population 2016'!AL74/'Population 2016'!AL$5","v":1.1927777088026108E-2},{"$f":"'Population 2016'!AM74/'Population 2016'!AM$5","v":8.6167241960078376E-3},{"$f":"'Population 2016'!AN74/'Population 2016'!AN$5","v":0},{"$f":"'Population 2016'!AO74/'Population 2016'!AO$5","v":0},{"$f":"'Population 2016'!AP74/'Population 2016'!AP$5","v":1.1968359145887164E-3},{"$f":"'Population 2016'!AQ74/'Population 2016'!AQ$5","v":6.5764235216747959E-3},{"$f":"'Population 2016'!AR74/'Population 2016'!AR$5","v":4.8534313198031623E-3},{"$f":"'Population 2016'!AS74/'Population 2016'!AS$5","v":1.5597521145632694E-3},{"$f":"'Population 2016'!AT74/'Population 2016'!AT$5","v":0},{"$f":"'Population 2016'!AU74/'Population 2016'!AU$5","v":0},{"$f":"'Population 2016'!AV74/'Population 2016'!AV$5","v":4.6457607433217189E-3},{"$f":"'Population 2016'!AW74/'Population 2016'!AW$5","v":5.6058941973274757E-3},{"$f":"'Population 2016'!AX74/'Population 2016'!AX$5","v":3.1818239901861816E-3},{"$f":"'Population 2016'!AY74/'Population 2016'!AY$5","v":4.4873167895719225E-3},{"$f":"'Population 2016'!AZ74/'Population 2016'!AZ$5","v":3.6529732901496282E-3},{"$f":"'Population 2016'!BA74/'Population 2016'!BA$5","v":9.217771539624272E-3},{"$f":"'Population 2016'!BB74/'Population 2016'!BB$5","v":4.1637032791752692E-3},{"$f":"'Population 2016'!BC74/'Population 2016'!BC$5","v":0},72]
[null,"Female 75-79",{"$f":"'Population 2016'!C75/'Population 2016'!C$5","v":1.2419947560221413E-3},{"$f":"'Population 2016'!D75/'Population 2016'!D$5","v":7.2621108535547664E-4},{"$f":"'Population 2016'!E75/'Population 2016'!E$5","v":2.5314200797866106E-4},{"$f":"'Population 2016'!F75/'Population 2016'!F$5","v":1.7100180272984805E-3},{"$f":"'Population 2016'!G75/'Population 2016'!G$5","v":1.9487901261300276E-3},{"$f":"'Population 2016'!H75/'Population 2016'!H$5","v":7.4186237285717525E-3},{"$f":"'Population 2016'!I75/'Population 2016'!I$5","v":1.0886860396951679E-3},{"$f":"'Population 2016'!J75/'Population 2016'!J$5","v":3.4167337020973108E-3},{"$f":"'Population 2016'!K75/'Population 2016'!K$5","v":5.0323678117469165E-3},{"$f":"'Population 2016'!L75/'Population 2016'!L$5","v":1.5011198830873827E-3},{"$f":"'Population 2016'!M75/'Population 2016'!M$5","v":1.5011198830873827E-3},{"$f":"'Population 2016'!N75/'Population 2016'!N$5","v":6.7432346629588249E-3},{"$f":"'Population 2016'!O75/'Population 2016'!O$5","v":7.3211083702360786E-3},{"$f":"'Population 2016'!P75/'Population 2016'!P$5","v":9.6923250309928998E-4},{"$f":"'Population 2016'!Q75/'Population 2016'!Q$5","v":8.8130574258821865E-4},{"$f":"'Population 2016'!R75/'Population 2016'!R$5","v":1.4504710704210358E-3},{"$f":"'Population 2016'!S75/'Population 2016'!S$5","v":2.7494787906177016E-3},{"$f":"'Population 2016'!T75/'Population 2016'!T$5","v":2.2382191035025104E-3},{"$f":"'Population 2016'!U75/'Population 2016'!U$5","v":0},{"$f":"'Population 2016'!V75/'Population 2016'!V$5","v":3.8772410529609759E-3},{"$f":"'Population 2016'!W75/'Population 2016'!W$5","v":4.4613966622869808E-3},{"$f":"'Population 2016'!X75/'Population 2016'!X$5","v":4.4613966622869808E-3},{"$f":"'Population 2016'!Y75/'Population 2016'!Y$5","v":3.656539641659115E-3},{"$f":"'Population 2016'!Z75/'Population 2016'!Z$5","v":9.9016034209410686E-3},{"$f":"'Population 2016'!AA75/'Population 2016'!AA$5","v":7.1819750364912095E-3},{"$f":"'Population 2016'!AB75/'Population 2016'!AB$5","v":6.2843515552234836E-4},{"$f":"'Population 2016'!AC75/'Population 2016'!AC$5","v":7.8699518639033066E-3},{"$f":"'Population 2016'!AD75/'Population 2016'!AD$5","v":1.5222003051844134E-3},{"$f":"'Population 2016'!AE75/'Population 2016'!AE$5","v":1.3603835768334377E-3},{"$f":"'Population 2016'!AF75/'Population 2016'!AF$5","v":1.132576271697658E-2},{"$f":"'Population 2016'!AG75/'Population 2016'!AG$5","v":1.3603835768334377E-3},{"$f":"'Population 2016'!AH75/'Population 2016'!AH$5","v":5.9463325376406008E-3},{"$f":"'Population 2016'!AI75/'Population 2016'!AI$5","v":2.2503062385160555E-3},{"$f":"'Population 2016'!AJ75/'Population 2016'!AJ$5","v":1.8124529459331343E-3},{"$f":"'Population 2016'!AK75/'Population 2016'!AK$5","v":1.2571816501766341E-4},{"$f":"'Population 2016'!AL75/'Population 2016'!AL$5","v":1.03492311239602E-2},{"$f":"'Population 2016'!AM75/'Population 2016'!AM$5","v":7.1244625866109359E-3},{"$f":"'Population 2016'!AN75/'Population 2016'!AN$5","v":0},{"$f":"'Population 2016'!AO75/'Population 2016'!AO$5","v":0},{"$f":"'Population 2016'!AP75/'Population 2016'!AP$5","v":7.5297623765515275E-4},{"$f":"'Population 2016'!AQ75/'Population 2016'!AQ$5","v":6.5627226393379732E-3},{"$f":"'Population 2016'!AR75/'Population 2016'!AR$5","v":4.2635164141371952E-3},{"$f":"'Population 2016'!AS75/'Population 2016'!AS$5","v":1.0886860396951679E-3},{"$f":"'Population 2016'!AT75/'Population 2016'!AT$5","v":0},{"$f":"'Population 2016'!AU75/'Population 2016'!AU$5","v":0},{"$f":"'Population 2016'!AV75/'Population 2016'!AV$5","v":4.0333650089747651E-3},{"$f":"'Population 2016'!AW75/'Population 2016'!AW$5","v":4.7059002989810238E-3},{"$f":"'Population 2016'!AX75/'Population 2016'!AX$5","v":2.5429035102291168E-3},{"$f":"'Population 2016'!AY75/'Population 2016'!AY$5","v":3.7713044276490928E-3},{"$f":"'Population 2016'!AZ75/'Population 2016'!AZ$5","v":3.163992613515426E-3},{"$f":"'Population 2016'!BA75/'Population 2016'!BA$5","v":7.9626430576549348E-3},{"$f":"'Population 2016'!BB75/'Population 2016'!BB$5","v":3.3074856894277842E-3},{"$f":"'Population 2016'!BC75/'Population 2016'!BC$5","v":0},73]
[null,"Female 80-84",{"$f":"'Population 2016'!C76/'Population 2016'!C$5","v":9.6599592135055432E-4},{"$f":"'Population 2016'!D76/'Population 2016'!D$5","v":5.8439208552174722E-4},{"$f":"'Population 2016'!E76/'Population 2016'!E$5","v":2.3439074812838987E-4},{"$f":"'Population 2016'!F76/'Population 2016'!F$5","v":9.9922740149369039E-4},{"$f":"'Population 2016'!G76/'Population 2016'!G$5","v":1.5833919774806474E-3},{"$f":"'Population 2016'!H76/'Population 2016'!H$5","v":5.4213019554947423E-3},{"$f":"'Population 2016'!I76/'Population 2016'!I$5","v":8.5838706975965157E-4},{"$f":"'Population 2016'!J76/'Population 2016'!J$5","v":2.579136362505494E-3},{"$f":"'Population 2016'!K76/'Population 2016'!K$5","v":3.307659594575438E-3},{"$f":"'Population 2016'!L76/'Population 2016'!L$5","v":1.1993074198211363E-3},{"$f":"'Population 2016'!M76/'Population 2016'!M$5","v":1.1993074198211363E-3},{"$f":"'Population 2016'!N76/'Population 2016'!N$5","v":5.3929802846786317E-3},{"$f":"'Population 2016'!O76/'Population 2016'!O$5","v":5.5477952467282866E-3},{"$f":"'Population 2016'!P76/'Population 2016'!P$5","v":6.3112814155302603E-4},{"$f":"'Population 2016'!Q76/'Population 2016'!Q$5","v":4.9353121584940244E-4},{"$f":"'Population 2016'!R76/'Population 2016'!R$5","v":1.2508649598126365E-3},{"$f":"'Population 2016'!S76/'Population 2016'!S$5","v":2.0866028446292926E-3},{"$f":"'Population 2016'!T76/'Population 2016'!T$5","v":1.7728928865581215E-3},{"$f":"'Population 2016'!U76/'Population 2016'!U$5","v":0},{"$f":"'Population 2016'!V76/'Population 2016'!V$5","v":2.7705482327260514E-3},{"$f":"'Population 2016'!W76/'Population 2016'!W$5","v":3.2226645487289105E-3},{"$f":"'Population 2016'!X76/'Population 2016'!X$5","v":3.2226645487289105E-3},{"$f":"'Population 2016'!Y76/'Population 2016'!Y$5","v":2.6788127374763517E-3},{"$f":"'Population 2016'!Z76/'Population 2016'!Z$5","v":7.838043450907212E-3},{"$f":"'Population 2016'!AA76/'Population 2016'!AA$5","v":5.629313088269197E-3},{"$f":"'Population 2016'!AB76/'Population 2016'!AB$5","v":5.0970799258978747E-4},{"$f":"'Population 2016'!AC76/'Population 2016'!AC$5","v":6.2388683983525747E-3},{"$f":"'Population 2016'!AD76/'Population 2016'!AD$5","v":1.1760765194089844E-3},{"$f":"'Population 2016'!AE76/'Population 2016'!AE$5","v":1.02157106335794E-3},{"$f":"'Population 2016'!AF76/'Population 2016'!AF$5","v":9.0183836281651063E-3},{"$f":"'Population 2016'!AG76/'Population 2016'!AG$5","v":1.02157106335794E-3},{"$f":"'Population 2016'!AH76/'Population 2016'!AH$5","v":4.5345197514466435E-3},{"$f":"'Population 2016'!AI76/'Population 2016'!AI$5","v":1.7718085571791057E-3},{"$f":"'Population 2016'!AJ76/'Population 2016'!AJ$5","v":1.8961046203608176E-3},{"$f":"'Population 2016'!AK76/'Population 2016'!AK$5","v":1.2571816501766341E-4},{"$f":"'Population 2016'!AL76/'Population 2016'!AL$5","v":7.2808215533601743E-3},{"$f":"'Population 2016'!AM76/'Population 2016'!AM$5","v":5.3641734065942026E-3},{"$f":"'Population 2016'!AN76/'Population 2016'!AN$5","v":0},{"$f":"'Population 2016'!AO76/'Population 2016'!AO$5","v":0},{"$f":"'Population 2016'!AP76/'Population 2016'!AP$5","v":8.6394115688854362E-4},{"$f":"'Population 2016'!AQ76/'Population 2016'!AQ$5","v":5.3912971995396502E-3},{"$f":"'Population 2016'!AR76/'Population 2016'!AR$5","v":3.2917608180212765E-3},{"$f":"'Population 2016'!AS76/'Population 2016'!AS$5","v":8.5838706975965157E-4},{"$f":"'Population 2016'!AT76/'Population 2016'!AT$5","v":0},{"$f":"'Population 2016'!AU76/'Population 2016'!AU$5","v":0},{"$f":"'Population 2016'!AV76/'Population 2016'!AV$5","v":3.0725372188786823E-3},{"$f":"'Population 2016'!AW76/'Population 2016'!AW$5","v":3.6609921288669228E-3},{"$f":"'Population 2016'!AX76/'Population 2016'!AX$5","v":2.1851080414531606E-3},{"$f":"'Population 2016'!AY76/'Population 2016'!AY$5","v":2.8502799791928031E-3},{"$f":"'Population 2016'!AZ76/'Population 2016'!AZ$5","v":2.5225650200482079E-3},{"$f":"'Population 2016'!BA76/'Population 2016'!BA$5","v":6.0462103217447634E-3},{"$f":"'Population 2016'!BB76/'Population 2016'!BB$5","v":2.4581730802427791E-3},{"$f":"'Population 2016'!BC76/'Population 2016'!BC$5","v":0},74]
[null,"Female 85-89",{"$f":"'Population 2016'!C77/'Population 2016'!C$5","v":7.4110798198852052E-4},{"$f":"'Population 2016'!D77/'Population 2016'!D$5","v":4.4012793051847072E-4},{"$f":"'Population 2016'!E77/'Population 2016'!E$5","v":1.6407352368987292E-4},{"$f":"'Population 2016'!F77/'Population 2016'!F$5","v":6.1807880504764355E-4},{"$f":"'Population 2016'!G77/'Population 2016'!G$5","v":1.1638607697720999E-3},{"$f":"'Population 2016'!H77/'Population 2016'!H$5","v":3.3299504236202755E-3},{"$f":"'Population 2016'!I77/'Population 2016'!I$5","v":6.1761996482706646E-4},{"$f":"'Population 2016'!J77/'Population 2016'!J$5","v":1.3683520894321754E-3},{"$f":"'Population 2016'!K77/'Population 2016'!K$5","v":2.0791003165902757E-3},{"$f":"'Population 2016'!L77/'Population 2016'!L$5","v":8.0218575762870713E-4},{"$f":"'Population 2016'!M77/'Population 2016'!M$5","v":8.0218575762870713E-4},{"$f":"'Population 2016'!N77/'Population 2016'!N$5","v":3.5524549714276528E-3},{"$f":"'Population 2016'!O77/'Population 2016'!O$5","v":3.774482123220495E-3},{"$f":"'Population 2016'!P77/'Population 2016'!P$5","v":3.7191479770089036E-4},{"$f":"'Population 2016'!Q77/'Population 2016'!Q$5","v":2.4676560792470122E-4},{"$f":"'Population 2016'!R77/'Population 2016'!R$5","v":5.8551125778463829E-4},{"$f":"'Population 2016'!S77/'Population 2016'!S$5","v":1.2569045899966636E-3},{"$f":"'Population 2016'!T77/'Population 2016'!T$5","v":1.1842552221234697E-3},{"$f":"'Population 2016'!U77/'Population 2016'!U$5","v":0},{"$f":"'Population 2016'!V77/'Population 2016'!V$5","v":1.6562230482136452E-3},{"$f":"'Population 2016'!W77/'Population 2016'!W$5","v":1.9773955902444127E-3},{"$f":"'Population 2016'!X77/'Population 2016'!X$5","v":1.9773955902444127E-3},{"$f":"'Population 2016'!Y77/'Population 2016'!Y$5","v":1.5182588512106326E-3},{"$f":"'Population 2016'!Z77/'Population 2016'!Z$5","v":4.5684817347841486E-3},{"$f":"'Population 2016'!AA77/'Population 2016'!AA$5","v":3.311946860028555E-3},{"$f":"'Population 2016'!AB77/'Population 2016'!AB$5","v":3.8483976950554229E-4},{"$f":"'Population 2016'!AC77/'Population 2016'!AC$5","v":3.6996737833068899E-3},{"$f":"'Population 2016'!AD77/'Population 2016'!AD$5","v":7.7412631657300239E-4},{"$f":"'Population 2016'!AE77/'Population 2016'!AE$5","v":6.2628979763652609E-4},{"$f":"'Population 2016'!AF77/'Population 2016'!AF$5","v":5.4442081768689013E-3},{"$f":"'Population 2016'!AG77/'Population 2016'!AG$5","v":6.2628979763652609E-4},{"$f":"'Population 2016'!AH77/'Population 2016'!AH$5","v":2.615568951264594E-3},{"$f":"'Population 2016'!AI77/'Population 2016'!AI$5","v":1.0390235366173769E-3},{"$f":"'Population 2016'!AJ77/'Population 2016'!AJ$5","v":1.0038200931321976E-3},{"$f":"'Population 2016'!AK77/'Population 2016'!AK$5","v":1.0057453201413072E-4},{"$f":"'Population 2016'!AL77/'Population 2016'!AL$5","v":4.0173107961902063E-3},{"$f":"'Population 2016'!AM77/'Population 2016'!AM$5","v":3.2380628126233743E-3},{"$f":"'Population 2016'!AN77/'Population 2016'!AN$5","v":0},{"$f":"'Population 2016'!AO77/'Population 2016'!AO$5","v":0},{"$f":"'Population 2016'!AP77/'Population 2016'!AP$5","v":4.1215541429545204E-4},{"$f":"'Population 2016'!AQ77/'Population 2016'!AQ$5","v":3.1032498492902941E-3},{"$f":"'Population 2016'!AR77/'Population 2016'!AR$5","v":1.97581393442276E-3},{"$f":"'Population 2016'!AS77/'Population 2016'!AS$5","v":6.1761996482706646E-4},{"$f":"'Population 2016'!AT77/'Population 2016'!AT$5","v":0},{"$f":"'Population 2016'!AU77/'Population 2016'!AU$5","v":0},{"$f":"'Population 2016'!AV77/'Population 2016'!AV$5","v":2.0377995987752085E-3},{"$f":"'Population 2016'!AW77/'Population 2016'!AW$5","v":1.9601562023308316E-3},{"$f":"'Population 2016'!AX77/'Population 2016'!AX$5","v":9.839375391338793E-4},{"$f":"'Population 2016'!AY77/'Population 2016'!AY$5","v":1.7732015544199994E-3},{"$f":"'Population 2016'!AZ77/'Population 2016'!AZ$5","v":1.5935017344432237E-3},{"$f":"'Population 2016'!BA77/'Population 2016'!BA$5","v":4.3996976894839128E-3},{"$f":"'Population 2016'!BB77/'Population 2016'!BB$5","v":1.0909869288717952E-3},{"$f":"'Population 2016'!BC77/'Population 2016'!BC$5","v":0},75]
[null,"Female 90+",{"$f":"'Population 2016'!C78/'Population 2016'!C$5","v":3.6288735669782725E-4},{"$f":"'Population 2016'!D78/'Population 2016'!D$5","v":2.176188100896883E-4},{"$f":"'Population 2016'!E78/'Population 2016'!E$5","v":8.4380669326220359E-5},{"$f":"'Population 2016'!F78/'Population 2016'!F$5","v":3.8114859644604689E-4},{"$f":"'Population 2016'!G78/'Population 2016'!G$5","v":7.4432956206355223E-4},{"$f":"'Population 2016'!H78/'Population 2016'!H$5","v":1.8416863102398407E-3},{"$f":"'Population 2016'!I78/'Population 2016'!I$5","v":2.5123523992965415E-4},{"$f":"'Population 2016'!J78/'Population 2016'!J$5","v":8.2930429662556081E-4},{"$f":"'Population 2016'!K78/'Population 2016'!K$5","v":1.3230638378301752E-3},{"$f":"'Population 2016'!L78/'Population 2016'!L$5","v":3.1769732975394342E-4},{"$f":"'Population 2016'!M78/'Population 2016'!M$5","v":3.1769732975394342E-4},{"$f":"'Population 2016'!N78/'Population 2016'!N$5","v":1.9208975976724187E-3},{"$f":"'Population 2016'!O78/'Population 2016'!O$5","v":2.0110757769390038E-3},{"$f":"'Population 2016'!P78/'Population 2016'!P$5","v":5.6350726924377322E-5},{"$f":"'Population 2016'!Q78/'Population 2016'!Q$5","v":7.0504459407057495E-5},{"$f":"'Population 2016'!R78/'Population 2016'!R$5","v":3.4598392505455901E-4},{"$f":"'Population 2016'!S78/'Population 2016'!S$5","v":7.1848338220314892E-4},{"$f":"'Population 2016'!T78/'Population 2016'!T$5","v":6.3051702395964691E-4},{"$f":"'Population 2016'!U78/'Population 2016'!U$5","v":0},{"$f":"'Population 2016'!V78/'Population 2016'!V$5","v":7.9376588485815256E-4},{"$f":"'Population 2016'!W78/'Population 2016'!W$5","v":1.1504847070512947E-3},{"$f":"'Population 2016'!X78/'Population 2016'!X$5","v":1.1504847070512947E-3},{"$f":"'Population 2016'!Y78/'Population 2016'!Y$5","v":8.1079792054180374E-4},{"$f":"'Population 2016'!Z78/'Population 2016'!Z$5","v":2.4623342231548462E-3},{"$f":"'Population 2016'!AA78/'Population 2016'!AA$5","v":1.783202682510861E-3},{"$f":"'Population 2016'!AB78/'Population 2016'!AB$5","v":1.8627882460108696E-4},{"$f":"'Population 2016'!AC78/'Population 2016'!AC$5","v":1.9734351631393752E-3},{"$f":"'Population 2016'!AD78/'Population 2016'!AD$5","v":4.5033309762179463E-4},{"$f":"'Population 2016'!AE78/'Population 2016'!AE$5","v":3.3881251347549771E-4},{"$f":"'Population 2016'!AF78/'Population 2016'!AF$5","v":2.7296445429730505E-3},{"$f":"'Population 2016'!AG78/'Population 2016'!AG$5","v":3.3881251347549771E-4},{"$f":"'Population 2016'!AH78/'Population 2016'!AH$5","v":1.4415351606401456E-3},{"$f":"'Population 2016'!AI78/'Population 2016'!AI$5","v":5.98805669787383E-4},{"$f":"'Population 2016'!AJ78/'Population 2016'!AJ$5","v":5.2979393804199312E-4},{"$f":"'Population 2016'!AK78/'Population 2016'!AK$5","v":2.5143633003532681E-5},{"$f":"'Population 2016'!AL78/'Population 2016'!AL$5","v":2.2791365885670703E-3},{"$f":"'Population 2016'!AM78/'Population 2016'!AM$5","v":1.6806053076702972E-3},{"$f":"'Population 2016'!AN78/'Population 2016'!AN$5","v":0},{"$f":"'Population 2016'!AO78/'Population 2016'!AO$5","v":0},{"$f":"'Population 2016'!AP78/'Population 2016'!AP$5","v":2.1400377280725394E-4},{"$f":"'Population 2016'!AQ78/'Population 2016'!AQ$5","v":1.4454430865347729E-3},{"$f":"'Population 2016'!AR78/'Population 2016'!AR$5","v":1.0749015935945221E-3},{"$f":"'Population 2016'!AS78/'Population 2016'!AS$5","v":2.5123523992965415E-4},{"$f":"'Population 2016'!AT78/'Population 2016'!AT$5","v":0},{"$f":"'Population 2016'!AU78/'Population 2016'!AU$5","v":0},{"$f":"'Population 2016'!AV78/'Population 2016'!AV$5","v":1.1403230915426037E-3},{"$f":"'Population 2016'!AW78/'Population 2016'!AW$5","v":1.18982244188175E-3},{"$f":"'Population 2016'!AX78/'Population 2016'!AX$5","v":5.6225002236221682E-4},{"$f":"'Population 2016'!AY78/'Population 2016'!AY$5","v":1.0021113185031058E-3},{"$f":"'Population 2016'!AZ78/'Population 2016'!AZ$5","v":8.7153614717743095E-4},{"$f":"'Population 2016'!BA78/'Population 2016'!BA$5","v":2.8746491038652558E-3},{"$f":"'Population 2016'!BB78/'Population 2016'!BB$5","v":8.4931260918500514E-4},{"$f":"'Population 2016'!BC78/'Population 2016'!BC$5","v":0},76]
[null,"Male 0-4",{"$f":"'Population 2016'!C79/'Population 2016'!C$5","v":0},{"$f":"'Population 2016'!D79/'Population 2016'!D$5","v":0},{"$f":"'Population 2016'!E79/'Population 2016'!E$5","v":0},{"$f":"'Population 2016'!F79/'Population 2016'!F$5","v":0},{"$f":"'Population 2016'!G79/'Population 2016'!G$5","v":0},{"$f":"'Population 2016'!H79/'Population 2016'!H$5","v":0},{"$f":"'Population 2016'!I79/'Population 2016'!I$5","v":0},{"$f":"'Population 2016'!J79/'Population 2016'!J$5","v":0},{"$f":"'Population 2016'!K79/'Population 2016'!K$5","v":0},{"$f":"'Population 2016'!L79/'Population 2016'!L$5","v":0},{"$f":"'Population 2016'!M79/'Population 2016'!M$5","v":0},{"$f":"'Population 2016'!N79/'Population 2016'!N$5","v":0},{"$f":"'Population 2016'!O79/'Population 2016'!O$5","v":0},{"$f":"'Population 2016'!P79/'Population 2016'!P$5","v":0},{"$f":"'Population 2016'!Q79/'Population 2016'!Q$5","v":0},{"$f":"'Population 2016'!R79/'Population 2016'!R$5","v":0},{"$f":"'Population 2016'!S79/'Population 2016'!S$5","v":0},{"$f":"'Population 2016'!T79/'Population 2016'!T$5","v":0},{"$f":"'Population 2016'!U79/'Population 2016'!U$5","v":0},{"$f":"'Population 2016'!V79/'Population 2016'!V$5","v":0},{"$f":"'Population 2016'!W79/'Population 2016'!W$5","v":0},{"$f":"'Population 2016'!X79/'Population 2016'!X$5","v":0},{"$f":"'Population 2016'!Y79/'Population 2016'!Y$5","v":0},{"$f":"'Population 2016'!Z79/'Population 2016'!Z$5","v":0},{"$f":"'Population 2016'!AA79/'Population 2016'!AA$5","v":0},{"$f":"'Population 2016'!AB79/'Population 2016'!AB$5","v":0},{"$f":"'Population 2016'!AC79/'Population 2016'!AC$5","v":0},{"$f":"'Population 2016'!AD79/'Population 2016'!AD$5","v":0},{"$f":"'Population 2016'!AE79/'Population 2016'!AE$5","v":0},{"$f":"'Population 2016'!AF79/'Population 2016'!AF$5","v":0},{"$f":"'Population 2016'!AG79/'Population 2016'!AG$5","v":0},{"$f":"'Population 2016'!AH79/'Population 2016'!AH$5","v":0},{"$f":"'Population 2016'!AI79/'Population 2016'!AI$5","v":0},{"$f":"'Population 2016'!AJ79/'Population 2016'!AJ$5","v":0},{"$f":"'Population 2016'!AK79/'Population 2016'!AK$5","v":0},{"$f":"'Population 2016'!AL79/'Population 2016'!AL$5","v":0},{"$f":"'Population 2016'!AM79/'Population 2016'!AM$5","v":0},{"$f":"'Population 2016'!AN79/'Population 2016'!AN$5","v":0},{"$f":"'Population 2016'!AO79/'Population 2016'!AO$5","v":0},{"$f":"'Population 2016'!AP79/'Population 2016'!AP$5","v":0},{"$f":"'Population 2016'!AQ79/'Population 2016'!AQ$5","v":0},{"$f":"'Population 2016'!AR79/'Population 2016'!AR$5","v":0},{"$f":"'Population 2016'!AS79/'Population 2016'!AS$5","v":0},{"$f":"'Population 2016'!AT79/'Population 2016'!AT$5","v":0},{"$f":"'Population 2016'!AU79/'Population 2016'!AU$5","v":0},{"$f":"'Population 2016'!AV79/'Population 2016'!AV$5","v":0},{"$f":"'Population 2016'!AW79/'Population 2016'!AW$5","v":0},{"$f":"'Population 2016'!AX79/'Population 2016'!AX$5","v":0},{"$f":"'Population 2016'!AY79/'Population 2016'!AY$5","v":0},{"$f":"'Population 2016'!AZ79/'Population 2016'!AZ$5","v":0},{"$f":"'Population 2016'!BA79/'Population 2016'!BA$5","v":0},{"$f":"'Population 2016'!BB79/'Population 2016'!BB$5","v":0},{"$f":"'Population 2016'!BC79/'Population 2016'!BC$5","v":0},77]
[null,"Male 5-9",{"$f":"'Population 2016'!C80/'Population 2016'!C$5","v":0},{"$f":"'Population 2016'!D80/'Population 2016'!D$5","v":0},{"$f":"'Population 2016'!E80/'Population 2016'!E$5","v":0},{"$f":"'Population 2016'!F80/'Population 2016'!F$5","v":0},{"$f":"'Population 2016'!G80/'Population 2016'!G$5","v":0},{"$f":"'Population 2016'!H80/'Population 2016'!H$5","v":0},{"$f":"'Population 2016'!I80/'Population 2016'!I$5","v":0},{"$f":"'Population 2016'!J80/'Population 2016'!J$5","v":0},{"$f":"'Population 2016'!K80/'Population 2016'!K$5","v":0},{"$f":"'Population 2016'!L80/'Population 2016'!L$5","v":0},{"$f":"'Population 2016'!M80/'Population 2016'!M$5","v":0},{"$f":"'Population 2016'!N80/'Population 2016'!N$5","v":0},{"$f":"'Population 2016'!O80/'Population 2016'!O$5","v":0},{"$f":"'Population 2016'!P80/'Population 2016'!P$5","v":0},{"$f":"'Population 2016'!Q80/'Population 2016'!Q$5","v":0},{"$f":"'Population 2016'!R80/'Population 2016'!R$5","v":0},{"$f":"'Population 2016'!S80/'Population 2016'!S$5","v":0},{"$f":"'Population 2016'!T80/'Population 2016'!T$5","v":0},{"$f":"'Population 2016'!U80/'Population 2016'!U$5","v":0},{"$f":"'Population 2016'!V80/'Population 2016'!V$5","v":0},{"$f":"'Population 2016'!W80/'Population 2016'!W$5","v":0},{"$f":"'Population 2016'!X80/'Population 2016'!X$5","v":0},{"$f":"'Population 2016'!Y80/'Population 2016'!Y$5","v":0},{"$f":"'Population 2016'!Z80/'Population 2016'!Z$5","v":0},{"$f":"'Population 2016'!AA80/'Population 2016'!AA$5","v":0},{"$f":"'Population 2016'!AB80/'Population 2016'!AB$5","v":0},{"$f":"'Population 2016'!AC80/'Population 2016'!AC$5","v":0},{"$f":"'Population 2016'!AD80/'Population 2016'!AD$5","v":0},{"$f":"'Population 2016'!AE80/'Population 2016'!AE$5","v":0},{"$f":"'Population 2016'!AF80/'Population 2016'!AF$5","v":0},{"$f":"'Population 2016'!AG80/'Population 2016'!AG$5","v":0},{"$f":"'Population 2016'!AH80/'Population 2016'!AH$5","v":0},{"$f":"'Population 2016'!AI80/'Population 2016'!AI$5","v":0},{"$f":"'Population 2016'!AJ80/'Population 2016'!AJ$5","v":0},{"$f":"'Population 2016'!AK80/'Population 2016'!AK$5","v":0},{"$f":"'Population 2016'!AL80/'Population 2016'!AL$5","v":0},{"$f":"'Population 2016'!AM80/'Population 2016'!AM$5","v":0},{"$f":"'Population 2016'!AN80/'Population 2016'!AN$5","v":0},{"$f":"'Population 2016'!AO80/'Population 2016'!AO$5","v":0},{"$f":"'Population 2016'!AP80/'Population 2016'!AP$5","v":0},{"$f":"'Population 2016'!AQ80/'Population 2016'!AQ$5","v":0},{"$f":"'Population 2016'!AR80/'Population 2016'!AR$5","v":0},{"$f":"'Population 2016'!AS80/'Population 2016'!AS$5","v":0},{"$f":"'Population 2016'!AT80/'Population 2016'!AT$5","v":0},{"$f":"'Population 2016'!AU80/'Population 2016'!AU$5","v":0},{"$f":"'Population 2016'!AV80/'Population 2016'!AV$5","v":0},{"$f":"'Population 2016'!AW80/'Population 2016'!AW$5","v":0},{"$f":"'Population 2016'!AX80/'Population 2016'!AX$5","v":0},{"$f":"'Population 2016'!AY80/'Population 2016'!AY$5","v":0},{"$f":"'Population 2016'!AZ80/'Population 2016'!AZ$5","v":0},{"$f":"'Population 2016'!BA80/'Population 2016'!BA$5","v":0},{"$f":"'Population 2016'!BB80/'Population 2016'!BB$5","v":0},{"$f":"'Population 2016'!BC80/'Population 2016'!BC$5","v":0},78]
[null,"Male 10-15",{"$f":"'Population 2016'!C81/'Population 2016'!C$5","v":0},{"$f":"'Population 2016'!D81/'Population 2016'!D$5","v":0},{"$f":"'Population 2016'!E81/'Population 2016'!E$5","v":0},{"$f":"'Population 2016'!F81/'Population 2016'!F$5","v":0},{"$f":"'Population 2016'!G81/'Population 2016'!G$5","v":0},{"$f":"'Population 2016'!H81/'Population 2016'!H$5","v":0},{"$f":"'Population 2016'!I81/'Population 2016'!I$5","v":0},{"$f":"'Population 2016'!J81/'Population 2016'!J$5","v":0},{"$f":"'Population 2016'!K81/'Population 2016'!K$5","v":0},{"$f":"'Population 2016'!L81/'Population 2016'!L$5","v":0},{"$f":"'Population 2016'!M81/'Population 2016'!M$5","v":0},{"$f":"'Population 2016'!N81/'Population 2016'!N$5","v":0},{"$f":"'Population 2016'!O81/'Population 2016'!O$5","v":0},{"$f":"'Population 2016'!P81/'Population 2016'!P$5","v":0},{"$f":"'Population 2016'!Q81/'Population 2016'!Q$5","v":0},{"$f":"'Population 2016'!R81/'Population 2016'!R$5","v":0},{"$f":"'Population 2016'!S81/'Population 2016'!S$5","v":0},{"$f":"'Population 2016'!T81/'Population 2016'!T$5","v":0},{"$f":"'Population 2016'!U81/'Population 2016'!U$5","v":0},{"$f":"'Population 2016'!V81/'Population 2016'!V$5","v":0},{"$f":"'Population 2016'!W81/'Population 2016'!W$5","v":0},{"$f":"'Population 2016'!X81/'Population 2016'!X$5","v":0},{"$f":"'Population 2016'!Y81/'Population 2016'!Y$5","v":0},{"$f":"'Population 2016'!Z81/'Population 2016'!Z$5","v":0},{"$f":"'Population 2016'!AA81/'Population 2016'!AA$5","v":0},{"$f":"'Population 2016'!AB81/'Population 2016'!AB$5","v":0},{"$f":"'Population 2016'!AC81/'Population 2016'!AC$5","v":0},{"$f":"'Population 2016'!AD81/'Population 2016'!AD$5","v":0},{"$f":"'Population 2016'!AE81/'Population 2016'!AE$5","v":0},{"$f":"'Population 2016'!AF81/'Population 2016'!AF$5","v":0},{"$f":"'Population 2016'!AG81/'Population 2016'!AG$5","v":0},{"$f":"'Population 2016'!AH81/'Population 2016'!AH$5","v":0},{"$f":"'Population 2016'!AI81/'Population 2016'!AI$5","v":0},{"$f":"'Population 2016'!AJ81/'Population 2016'!AJ$5","v":0},{"$f":"'Population 2016'!AK81/'Population 2016'!AK$5","v":0},{"$f":"'Population 2016'!AL81/'Population 2016'!AL$5","v":0},{"$f":"'Population 2016'!AM81/'Population 2016'!AM$5","v":0},{"$f":"'Population 2016'!AN81/'Population 2016'!AN$5","v":0},{"$f":"'Population 2016'!AO81/'Population 2016'!AO$5","v":0},{"$f":"'Population 2016'!AP81/'Population 2016'!AP$5","v":0},{"$f":"'Population 2016'!AQ81/'Population 2016'!AQ$5","v":0},{"$f":"'Population 2016'!AR81/'Population 2016'!AR$5","v":0},{"$f":"'Population 2016'!AS81/'Population 2016'!AS$5","v":0},{"$f":"'Population 2016'!AT81/'Population 2016'!AT$5","v":0},{"$f":"'Population 2016'!AU81/'Population 2016'!AU$5","v":0},{"$f":"'Population 2016'!AV81/'Population 2016'!AV$5","v":0},{"$f":"'Population 2016'!AW81/'Population 2016'!AW$5","v":0},{"$f":"'Population 2016'!AX81/'Population 2016'!AX$5","v":0},{"$f":"'Population 2016'!AY81/'Population 2016'!AY$5","v":0},{"$f":"'Population 2016'!AZ81/'Population 2016'!AZ$5","v":0},{"$f":"'Population 2016'!BA81/'Population 2016'!BA$5","v":0},{"$f":"'Population 2016'!BB81/'Population 2016'!BB$5","v":0},{"$f":"'Population 2016'!BC81/'Population 2016'!BC$5","v":0},79]
[null,"Male 16-19",{"$f":"'Population 2016'!C82/'Population 2016'!C$5","v":1.9268807531701534E-3},{"$f":"'Population 2016'!D82/'Population 2016'!D$5","v":1.1394423090089296E-3},{"$f":"'Population 2016'!E82/'Population 2016'!E$5","v":4.1721553166853398E-4},{"$f":"'Population 2016'!F82/'Population 2016'!F$5","v":2.4826165336080349E-3},{"$f":"'Population 2016'!G82/'Population 2016'!G$5","v":2.4089211281329509E-3},{"$f":"'Population 2016'!H82/'Population 2016'!H$5","v":8.8874334090975407E-3},{"$f":"'Population 2016'!I82/'Population 2016'!I$5","v":1.8528598944811993E-3},{"$f":"'Population 2016'!J82/'Population 2016'!J$5","v":5.7553718185813924E-3},{"$f":"'Population 2016'!K82/'Population 2016'!K$5","v":8.0801398667485706E-3},{"$f":"'Population 2016'!L82/'Population 2016'!L$5","v":2.3350753736914843E-3},{"$f":"'Population 2016'!M82/'Population 2016'!M$5","v":2.3350753736914843E-3},{"$f":"'Population 2016'!N82/'Population 2016'!N$5","v":9.4115945057506364E-3},{"$f":"'Population 2016'!O82/'Population 2016'!O$5","v":9.3123705927224808E-3},{"$f":"'Population 2016'!P82/'Population 2016'!P$5","v":1.5327397723430632E-3},{"$f":"'Population 2016'!Q82/'Population 2016'!Q$5","v":1.0340654046368434E-3},{"$f":"'Population 2016'!R82/'Population 2016'!R$5","v":2.1690530686112736E-3},{"$f":"'Population 2016'!S82/'Population 2016'!S$5","v":3.9657811256004283E-3},{"$f":"'Population 2016'!T82/'Population 2016'!T$5","v":3.4922732581676385E-3},{"$f":"'Population 2016'!U82/'Population 2016'!U$5","v":0},{"$f":"'Population 2016'!V82/'Population 2016'!V$5","v":3.8314468672960822E-3},{"$f":"'Population 2016'!W82/'Population 2016'!W$5","v":5.8308656743736066E-3},{"$f":"'Population 2016'!X82/'Population 2016'!X$5","v":5.8308656743736066E-3},{"$f":"'Population 2016'!Y82/'Population 2016'!Y$5","v":4.7535015341568501E-3},{"$f":"'Population 2016'!Z82/'Population 2016'!Z$5","v":1.3157614555647398E-2},{"$f":"'Population 2016'!AA82/'Population 2016'!AA$5","v":9.2847457109125498E-3},{"$f":"'Population 2016'!AB82/'Population 2016'!AB$5","v":1.0009928047245223E-3},{"$f":"'Population 2016'!AC82/'Population 2016'!AC$5","v":1.0112303768350981E-2},{"$f":"'Population 2016'!AD82/'Population 2016'!AD$5","v":2.1883955487736798E-3},{"$f":"'Population 2016'!AE82/'Population 2016'!AE$5","v":2.104744401893243E-3},{"$f":"'Population 2016'!AF82/'Population 2016'!AF$5","v":1.167262362575216E-2},{"$f":"'Population 2016'!AG82/'Population 2016'!AG$5","v":2.104744401893243E-3},{"$f":"'Population 2016'!AH82/'Population 2016'!AH$5","v":7.7984079953187261E-3},{"$f":"'Population 2016'!AI82/'Population 2016'!AI$5","v":3.4615889404147346E-3},{"$f":"'Population 2016'!AJ82/'Population 2016'!AJ$5","v":2.8859827677550679E-3},{"$f":"'Population 2016'!AK82/'Population 2016'!AK$5","v":2.8915177954062581E-4},{"$f":"'Population 2016'!AL82/'Population 2016'!AL$5","v":1.214948298185559E-2},{"$f":"'Population 2016'!AM82/'Population 2016'!AM$5","v":9.8880441593532566E-3},{"$f":"'Population 2016'!AN82/'Population 2016'!AN$5","v":0},{"$f":"'Population 2016'!AO82/'Population 2016'!AO$5","v":0},{"$f":"'Population 2016'!AP82/'Population 2016'!AP$5","v":1.355357227779275E-3},{"$f":"'Population 2016'!AQ82/'Population 2016'!AQ$5","v":7.3162711678632104E-3},{"$f":"'Population 2016'!AR82/'Population 2016'!AR$5","v":5.6494154428939868E-3},{"$f":"'Population 2016'!AS82/'Population 2016'!AS$5","v":1.8528598944811993E-3},{"$f":"'Population 2016'!AT82/'Population 2016'!AT$5","v":0},{"$f":"'Population 2016'!AU82/'Population 2016'!AU$5","v":0},{"$f":"'Population 2016'!AV82/'Population 2016'!AV$5","v":4.5507338190265024E-3},{"$f":"'Population 2016'!AW82/'Population 2016'!AW$5","v":5.5982671303923363E-3},{"$f":"'Population 2016'!AX82/'Population 2016'!AX$5","v":4.4980001788977346E-3},{"$f":"'Population 2016'!AY82/'Population 2016'!AY$5","v":5.1513111593892479E-3},{"$f":"'Population 2016'!AZ82/'Population 2016'!AZ$5","v":4.5532730065408356E-3},{"$f":"'Population 2016'!BA82/'Population 2016'!BA$5","v":1.1323148348088966E-2},{"$f":"'Population 2016'!BB82/'Population 2016'!BB$5","v":5.0820656939850719E-3},{"$f":"'Population 2016'!BC82/'Population 2016'!BC$5","v":0},80]
[null,"Male 20-24",{"$f":"'Population 2016'!C83/'Population 2016'!C$5","v":3.1484311510684734E-3},{"$f":"'Population 2016'!D83/'Population 2016'!D$5","v":2.0734915837759063E-3},{"$f":"'Population 2016'!E83/'Population 2016'!E$5","v":1.087573071315729E-3},{"$f":"'Population 2016'!F83/'Population 2016'!F$5","v":3.5024465619366467E-3},{"$f":"'Population 2016'!G83/'Population 2016'!G$5","v":3.7757808693769284E-3},{"$f":"'Population 2016'!H83/'Population 2016'!H$5","v":1.245732183792512E-2},{"$f":"'Population 2016'!I83/'Population 2016'!I$5","v":2.2087764843815427E-3},{"$f":"'Population 2016'!J83/'Population 2016'!J$5","v":7.3559291110687243E-3},{"$f":"'Population 2016'!K83/'Population 2016'!K$5","v":1.0088361763455086E-2},{"$f":"'Population 2016'!L83/'Population 2016'!L$5","v":3.4867281940495292E-3},{"$f":"'Population 2016'!M83/'Population 2016'!M$5","v":3.4867281940495292E-3},{"$f":"'Population 2016'!N83/'Population 2016'!N$5","v":1.5535962578664374E-2},{"$f":"'Population 2016'!O83/'Population 2016'!O$5","v":1.2868903616964366E-2},{"$f":"'Population 2016'!P83/'Population 2016'!P$5","v":1.9046545700439536E-3},{"$f":"'Population 2016'!Q83/'Population 2016'!Q$5","v":1.3983384449066404E-3},{"$f":"'Population 2016'!R83/'Population 2016'!R$5","v":2.5815723638686326E-3},{"$f":"'Population 2016'!S83/'Population 2016'!S$5","v":5.4256969906667776E-3},{"$f":"'Population 2016'!T83/'Population 2016'!T$5","v":5.113935124218834E-3},{"$f":"'Population 2016'!U83/'Population 2016'!U$5","v":0},{"$f":"'Population 2016'!V83/'Population 2016'!V$5","v":5.6250524725044073E-3},{"$f":"'Population 2016'!W83/'Population 2016'!W$5","v":7.5141032429287677E-3},{"$f":"'Population 2016'!X83/'Population 2016'!X$5","v":7.5141032429287677E-3},{"$f":"'Population 2016'!Y83/'Population 2016'!Y$5","v":6.4545873674504376E-3},{"$f":"'Population 2016'!Z83/'Population 2016'!Z$5","v":2.0534938238385699E-2},{"$f":"'Population 2016'!AA83/'Population 2016'!AA$5","v":1.3838423500006976E-2},{"$f":"'Population 2016'!AB83/'Population 2016'!AB$5","v":1.7850014840895367E-3},{"$f":"'Population 2016'!AC83/'Population 2016'!AC$5","v":1.5518564563806703E-2},{"$f":"'Population 2016'!AD83/'Population 2016'!AD$5","v":3.1448881610778219E-3},{"$f":"'Population 2016'!AE83/'Population 2016'!AE$5","v":2.9055739791989652E-3},{"$f":"'Population 2016'!AF83/'Population 2016'!AF$5","v":1.661916180307349E-2},{"$f":"'Population 2016'!AG83/'Population 2016'!AG$5","v":2.9055739791989652E-3},{"$f":"'Population 2016'!AH83/'Population 2016'!AH$5","v":1.0820801946815527E-2},{"$f":"'Population 2016'!AI83/'Population 2016'!AI$5","v":4.972274477207105E-3},{"$f":"'Population 2016'!AJ83/'Population 2016'!AJ$5","v":4.6147840392605196E-3},{"$f":"'Population 2016'!AK83/'Population 2016'!AK$5","v":3.0172359604239214E-4},{"$f":"'Population 2016'!AL83/'Population 2016'!AL$5","v":1.6601337329951581E-2},{"$f":"'Population 2016'!AM83/'Population 2016'!AM$5","v":1.3571612258277162E-2},{"$f":"'Population 2016'!AN83/'Population 2016'!AN$5","v":0},{"$f":"'Population 2016'!AO83/'Population 2016'!AO$5","v":0},{"$f":"'Population 2016'!AP83/'Population 2016'!AP$5","v":2.4491542887941282E-3},{"$f":"'Population 2016'!AQ83/'Population 2016'!AQ$5","v":1.1960870280046035E-2},{"$f":"'Population 2016'!AR83/'Population 2016'!AR$5","v":8.2828686528174794E-3},{"$f":"'Population 2016'!AS83/'Population 2016'!AS$5","v":2.2087764843815427E-3},{"$f":"'Population 2016'!AT83/'Population 2016'!AT$5","v":0},{"$f":"'Population 2016'!AU83/'Population 2016'!AU$5","v":0},{"$f":"'Population 2016'!AV83/'Population 2016'!AV$5","v":7.0847851335656218E-3},{"$f":"'Population 2016'!AW83/'Population 2016'!AW$5","v":7.9245225456098609E-3},{"$f":"'Population 2016'!AX83/'Population 2016'!AX$5","v":5.8780684156049942E-3},{"$f":"'Population 2016'!AY83/'Population 2016'!AY$5","v":7.4676417490284874E-3},{"$f":"'Population 2016'!AZ83/'Population 2016'!AZ$5","v":7.426753570997118E-3},{"$f":"'Population 2016'!BA83/'Population 2016'!BA$5","v":1.5992766141222199E-2},{"$f":"'Population 2016'!BB83/'Population 2016'!BB$5","v":6.8290257762924399E-3},{"$f":"'Population 2016'!BC83/'Population 2016'!BC$5","v":0},81]
[null,"Male 25-29",{"$f":"'Population 2016'!C84/'Population 2016'!C$5","v":5.284866575007794E-3},{"$f":"'Population 2016'!D84/'Population 2016'!D$5","v":3.1713662549025363E-3},{"$f":"'Population 2016'!E84/'Population 2016'!E$5","v":1.2328953351553307E-3},{"$f":"'Population 2016'!F84/'Population 2016'!F$5","v":3.2346124130826679E-3},{"$f":"'Population 2016'!G84/'Population 2016'!G$5","v":3.044984572078168E-3},{"$f":"'Population 2016'!H84/'Population 2016'!H$5","v":1.1993657854889385E-2},{"$f":"'Population 2016'!I84/'Population 2016'!I$5","v":1.6539653295368896E-3},{"$f":"'Population 2016'!J84/'Population 2016'!J$5","v":7.1734821658111011E-3},{"$f":"'Population 2016'!K84/'Population 2016'!K$5","v":8.1746444265935834E-3},{"$f":"'Population 2016'!L84/'Population 2016'!L$5","v":3.9394468889488981E-3},{"$f":"'Population 2016'!M84/'Population 2016'!M$5","v":3.9394468889488981E-3},{"$f":"'Population 2016'!N84/'Population 2016'!N$5","v":2.1821075220420989E-2},{"$f":"'Population 2016'!O84/'Population 2016'!O$5","v":1.2700488404117256E-2},{"$f":"'Population 2016'!P84/'Population 2016'!P$5","v":1.8370336977347008E-3},{"$f":"'Population 2016'!Q84/'Population 2016'!Q$5","v":1.2338280396235063E-3},{"$f":"'Population 2016'!R84/'Population 2016'!R$5","v":2.6081865119497523E-3},{"$f":"'Population 2016'!S84/'Population 2016'!S$5","v":6.4513452586275376E-3},{"$f":"'Population 2016'!T84/'Population 2016'!T$5","v":7.7593146675476845E-3},{"$f":"'Population 2016'!U84/'Population 2016'!U$5","v":0},{"$f":"'Population 2016'!V84/'Population 2016'!V$5","v":6.3501270788652205E-3},{"$f":"'Population 2016'!W84/'Population 2016'!W$5","v":7.9782192327051433E-3},{"$f":"'Population 2016'!X84/'Population 2016'!X$5","v":7.9782192327051433E-3},{"$f":"'Population 2016'!Y84/'Population 2016'!Y$5","v":6.7447258390168682E-3},{"$f":"'Population 2016'!Z84/'Population 2016'!Z$5","v":2.6181659094472717E-2},{"$f":"'Population 2016'!AA84/'Population 2016'!AA$5","v":1.5809646435554565E-2},{"$f":"'Population 2016'!AB84/'Population 2016'!AB$5","v":2.6795492461848666E-3},{"$f":"'Population 2016'!AC84/'Population 2016'!AC$5","v":1.8854166451188509E-2},{"$f":"'Population 2016'!AD84/'Population 2016'!AD$5","v":3.0592876549183075E-3},{"$f":"'Population 2016'!AE84/'Population 2016'!AE$5","v":3.0647131900738201E-3},{"$f":"'Population 2016'!AF84/'Population 2016'!AF$5","v":1.6754889984768283E-2},{"$f":"'Population 2016'!AG84/'Population 2016'!AG$5","v":3.0647131900738201E-3},{"$f":"'Population 2016'!AH84/'Population 2016'!AH$5","v":1.0341528658870735E-2},{"$f":"'Population 2016'!AI84/'Population 2016'!AI$5","v":6.4392116545629536E-3},{"$f":"'Population 2016'!AJ84/'Population 2016'!AJ$5","v":3.5551961631765331E-3},{"$f":"'Population 2016'!AK84/'Population 2016'!AK$5","v":1.5086179802119607E-4},{"$f":"'Population 2016'!AL84/'Population 2016'!AL$5","v":1.5138078430677E-2},{"$f":"'Population 2016'!AM84/'Population 2016'!AM$5","v":1.2945007262098365E-2},{"$f":"'Population 2016'!AN84/'Population 2016'!AN$5","v":0},{"$f":"'Population 2016'!AO84/'Population 2016'!AO$5","v":0},{"$f":"'Population 2016'!AP84/'Population 2016'!AP$5","v":3.5112470871708702E-3},{"$f":"'Population 2016'!AQ84/'Population 2016'!AQ$5","v":1.4139310571600811E-2},{"$f":"'Population 2016'!AR84/'Population 2016'!AR$5","v":9.490322878160963E-3},{"$f":"'Population 2016'!AS84/'Population 2016'!AS$5","v":1.6539653295368896E-3},{"$f":"'Population 2016'!AT84/'Population 2016'!AT$5","v":0},{"$f":"'Population 2016'!AU84/'Population 2016'!AU$5","v":0},{"$f":"'Population 2016'!AV84/'Population 2016'!AV$5","v":7.4965684721782283E-3},{"$f":"'Population 2016'!AW84/'Population 2016'!AW$5","v":7.6003722008664348E-3},{"$f":"'Population 2016'!AX84/'Population 2016'!AX$5","v":6.6319945819543298E-3},{"$f":"'Population 2016'!AY84/'Population 2016'!AY$5","v":9.0465408035249831E-3},{"$f":"'Population 2016'!AZ84/'Population 2016'!AZ$5","v":9.9867112310232358E-3},{"$f":"'Population 2016'!BA84/'Population 2016'!BA$5","v":1.5790326063485207E-2},{"$f":"'Population 2016'!BB84/'Population 2016'!BB$5","v":7.0085552709169127E-3},{"$f":"'Population 2016'!BC84/'Population 2016'!BC$5","v":0},82]
[null,"Male 30-34",{"$f":"'Population 2016'!C85/'Population 2016'!C$5","v":4.4313146233382573E-3},{"$f":"'Population 2016'!D85/'Population 2016'!D$5","v":2.7874768932836477E-3},{"$f":"'Population 2016'!E85/'Population 2016'!E$5","v":1.2797734847810086E-3},{"$f":"'Population 2016'!F85/'Population 2016'!F$5","v":2.6577388617048674E-3},{"$f":"'Population 2016'!G85/'Population 2016'!G$5","v":2.3818545986033671E-3},{"$f":"'Population 2016'!H85/'Population 2016'!H$5","v":1.0573484256500213E-2},{"$f":"'Population 2016'!I85/'Population 2016'!I$5","v":1.8214554894899924E-3},{"$f":"'Population 2016'!J85/'Population 2016'!J$5","v":6.2944196113880069E-3},{"$f":"'Population 2016'!K85/'Population 2016'!K$5","v":8.5762888059348862E-3},{"$f":"'Population 2016'!L85/'Population 2016'!L$5","v":2.7480819023716105E-3},{"$f":"'Population 2016'!M85/'Population 2016'!M$5","v":2.7480819023716105E-3},{"$f":"'Population 2016'!N85/'Population 2016'!N$5","v":1.7119296581766745E-2},{"$f":"'Population 2016'!O85/'Population 2016'!O$5","v":1.1055963384551372E-2},{"$f":"'Population 2016'!P85/'Population 2016'!P$5","v":1.5101994815733123E-3},{"$f":"'Population 2016'!Q85/'Population 2016'!Q$5","v":1.2925817557960541E-3},{"$f":"'Population 2016'!R85/'Population 2016'!R$5","v":2.448501623463033E-3},{"$f":"'Population 2016'!S85/'Population 2016'!S$5","v":5.8423114334184801E-3},{"$f":"'Population 2016'!T85/'Population 2016'!T$5","v":6.7030241550839215E-3},{"$f":"'Population 2016'!U85/'Population 2016'!U$5","v":0},{"$f":"'Population 2016'!V85/'Population 2016'!V$5","v":5.8311263079964277E-3},{"$f":"'Population 2016'!W85/'Population 2016'!W$5","v":7.4748821733702014E-3},{"$f":"'Population 2016'!X85/'Population 2016'!X$5","v":7.4748821733702014E-3},{"$f":"'Population 2016'!Y85/'Population 2016'!Y$5","v":6.0531629067900354E-3},{"$f":"'Population 2016'!Z85/'Population 2016'!Z$5","v":2.2925647959766388E-2},{"$f":"'Population 2016'!AA85/'Population 2016'!AA$5","v":1.4359963777865033E-2},{"$f":"'Population 2016'!AB85/'Population 2016'!AB$5","v":2.3520260380950433E-3},{"$f":"'Population 2016'!AC85/'Population 2016'!AC$5","v":1.685073672844167E-2},{"$f":"'Population 2016'!AD85/'Population 2016'!AD$5","v":2.962521865346682E-3},{"$f":"'Population 2016'!AE85/'Population 2016'!AE$5","v":3.1827842174970995E-3},{"$f":"'Population 2016'!AF85/'Population 2016'!AF$5","v":1.5774630894750334E-2},{"$f":"'Population 2016'!AG85/'Population 2016'!AG$5","v":3.1827842174970995E-3},{"$f":"'Population 2016'!AH85/'Population 2016'!AH$5","v":9.8864048001634734E-3},{"$f":"'Population 2016'!AI85/'Population 2016'!AI$5","v":5.6845524542829644E-3},{"$f":"'Population 2016'!AJ85/'Population 2016'!AJ$5","v":3.9176867523631597E-3},{"$f":"'Population 2016'!AK85/'Population 2016'!AK$5","v":1.1314634851589707E-4},{"$f":"'Population 2016'!AL85/'Population 2016'!AL$5","v":1.3745765417427856E-2},{"$f":"'Population 2016'!AM85/'Population 2016'!AM$5","v":1.2206120445795046E-2},{"$f":"'Population 2016'!AN85/'Population 2016'!AN$5","v":0},{"$f":"'Population 2016'!AO85/'Population 2016'!AO$5","v":0},{"$f":"'Population 2016'!AP85/'Population 2016'!AP$5","v":2.4570803544536565E-3},{"$f":"'Population 2016'!AQ85/'Population 2016'!AQ$5","v":1.3296706307886227E-2},{"$f":"'Population 2016'!AR85/'Population 2016'!AR$5","v":8.4668828945395659E-3},{"$f":"'Population 2016'!AS85/'Population 2016'!AS$5","v":1.8214554894899924E-3},{"$f":"'Population 2016'!AT85/'Population 2016'!AT$5","v":0},{"$f":"'Population 2016'!AU85/'Population 2016'!AU$5","v":0},{"$f":"'Population 2016'!AV85/'Population 2016'!AV$5","v":6.282335550628234E-3},{"$f":"'Population 2016'!AW85/'Population 2016'!AW$5","v":7.4440173286960763E-3},{"$f":"'Population 2016'!AX85/'Population 2016'!AX$5","v":5.0602502012599511E-3},{"$f":"'Population 2016'!AY85/'Population 2016'!AY$5","v":7.626755607233561E-3},{"$f":"'Population 2016'!AZ85/'Population 2016'!AZ$5","v":7.7604109738769267E-3},{"$f":"'Population 2016'!BA85/'Population 2016'!BA$5","v":1.5439429928741092E-2},{"$f":"'Population 2016'!BB85/'Population 2016'!BB$5","v":6.1178127783570293E-3},{"$f":"'Population 2016'!BC85/'Population 2016'!BC$5","v":0},83]
[null,"Male 35-39",{"$f":"'Population 2016'!C86/'Population 2016'!C$5","v":4.221759952569089E-3},{"$f":"'Population 2016'!D86/'Population 2016'!D$5","v":2.5258452901421122E-3},{"$f":"'Population 2016'!E86/'Population 2016'!E$5","v":9.7037769725153409E-4},{"$f":"'Population 2016'!F86/'Population 2016'!F$5","v":2.637136234869946E-3},{"$f":"'Population 2016'!G86/'Population 2016'!G$5","v":2.0299897147187788E-3},{"$f":"'Population 2016'!H86/'Population 2016'!H$5","v":9.4483695564065075E-3},{"$f":"'Population 2016'!I86/'Population 2016'!I$5","v":1.9575412444518886E-3},{"$f":"'Population 2016'!J86/'Population 2016'!J$5","v":5.4485292288299347E-3},{"$f":"'Population 2016'!K86/'Population 2016'!K$5","v":8.5526626659736329E-3},{"$f":"'Population 2016'!L86/'Population 2016'!L$5","v":2.3668451066668783E-3},{"$f":"'Population 2016'!M86/'Population 2016'!M$5","v":2.3668451066668783E-3},{"$f":"'Population 2016'!N86/'Population 2016'!N$5","v":1.2321071201806769E-2},{"$f":"'Population 2016'!O86/'Population 2016'!O$5","v":9.3916248105328851E-3},{"$f":"'Population 2016'!P86/'Population 2016'!P$5","v":1.5327397723430632E-3},{"$f":"'Population 2016'!Q86/'Population 2016'!Q$5","v":1.010563918167824E-3},{"$f":"'Population 2016'!R86/'Population 2016'!R$5","v":2.1956672166923937E-3},{"$f":"'Population 2016'!S86/'Population 2016'!S$5","v":5.4000999168536427E-3},{"$f":"'Population 2016'!T86/'Population 2016'!T$5","v":6.0957734419714938E-3},{"$f":"'Population 2016'!U86/'Population 2016'!U$5","v":0},{"$f":"'Population 2016'!V86/'Population 2016'!V$5","v":5.5029346440646923E-3},{"$f":"'Population 2016'!W86/'Population 2016'!W$5","v":6.9388608894031204E-3},{"$f":"'Population 2016'!X86/'Population 2016'!X$5","v":6.9388608894031204E-3},{"$f":"'Population 2016'!Y86/'Population 2016'!Y$5","v":5.4768604632676743E-3},{"$f":"'Population 2016'!Z86/'Population 2016'!Z$5","v":1.8699802355091052E-2},{"$f":"'Population 2016'!AA86/'Population 2016'!AA$5","v":1.2298384819656687E-2},{"$f":"'Population 2016'!AB86/'Population 2016'!AB$5","v":2.1677942335445177E-3},{"$f":"'Population 2016'!AC86/'Population 2016'!AC$5","v":1.3816114732293385E-2},{"$f":"'Population 2016'!AD86/'Population 2016'!AD$5","v":2.2777178160705647E-3},{"$f":"'Population 2016'!AE86/'Population 2016'!AE$5","v":2.3716875943284839E-3},{"$f":"'Population 2016'!AF86/'Population 2016'!AF$5","v":1.2532235443152514E-2},{"$f":"'Population 2016'!AG86/'Population 2016'!AG$5","v":2.3716875943284839E-3},{"$f":"'Population 2016'!AH86/'Population 2016'!AH$5","v":9.5724622200756056E-3},{"$f":"'Population 2016'!AI86/'Population 2016'!AI$5","v":5.2060547729460144E-3},{"$f":"'Population 2016'!AJ86/'Population 2016'!AJ$5","v":3.3181830856314309E-3},{"$f":"'Population 2016'!AK86/'Population 2016'!AK$5","v":3.2686722904592486E-4},{"$f":"'Population 2016'!AL86/'Population 2016'!AL$5","v":1.22736382824001E-2},{"$f":"'Population 2016'!AM86/'Population 2016'!AM$5","v":1.1496209583072249E-2},{"$f":"'Population 2016'!AN86/'Population 2016'!AN$5","v":0},{"$f":"'Population 2016'!AO86/'Population 2016'!AO$5","v":0},{"$f":"'Population 2016'!AP86/'Population 2016'!AP$5","v":2.4174500261560168E-3},{"$f":"'Population 2016'!AQ86/'Population 2016'!AQ$5","v":1.1029210281142105E-2},{"$f":"'Population 2016'!AR86/'Population 2016'!AR$5","v":7.3480941270718586E-3},{"$f":"'Population 2016'!AS86/'Population 2016'!AS$5","v":1.9575412444518886E-3},{"$f":"'Population 2016'!AT86/'Population 2016'!AT$5","v":0},{"$f":"'Population 2016'!AU86/'Population 2016'!AU$5","v":0},{"$f":"'Population 2016'!AV86/'Population 2016'!AV$5","v":6.1450744377573646E-3},{"$f":"'Population 2016'!AW86/'Population 2016'!AW$5","v":7.5469827323204584E-3},{"$f":"'Population 2016'!AX86/'Population 2016'!AX$5","v":3.769630831746681E-3},{"$f":"'Population 2016'!AY86/'Population 2016'!AY$5","v":6.4517609620268661E-3},{"$f":"'Population 2016'!AZ86/'Population 2016'!AZ$5","v":6.0230913933648203E-3},{"$f":"'Population 2016'!BA86/'Population 2016'!BA$5","v":1.2902180954437487E-2},{"$f":"'Population 2016'!BB86/'Population 2016'!BB$5","v":5.9659032059824748E-3},{"$f":"'Population 2016'!BC86/'Population 2016'!BC$5","v":0},84]
[null,"Male 40-44",{"$f":"'Population 2016'!C87/'Population 2016'!C$5","v":3.449985433394837E-3},{"$f":"'Population 2016'!D87/'Population 2016'!D$5","v":2.1688526353882418E-3},{"$f":"'Population 2016'!E87/'Population 2016'!E$5","v":9.9381677206437317E-4},{"$f":"'Population 2016'!F87/'Population 2016'!F$5","v":2.5856296677826424E-3},{"$f":"'Population 2016'!G87/'Population 2016'!G$5","v":2.2600552157202402E-3},{"$f":"'Population 2016'!H87/'Population 2016'!H$5","v":1.0317334223914038E-2},{"$f":"'Population 2016'!I87/'Population 2016'!I$5","v":1.9889456494430954E-3},{"$f":"'Population 2016'!J87/'Population 2016'!J$5","v":5.2494961976397997E-3},{"$f":"'Population 2016'!K87/'Population 2016'!K$5","v":8.3164012663611026E-3},{"$f":"'Population 2016'!L87/'Population 2016'!L$5","v":2.7083697361523678E-3},{"$f":"'Population 2016'!M87/'Population 2016'!M$5","v":2.7083697361523678E-3},{"$f":"'Population 2016'!N87/'Population 2016'!N$5","v":1.0416248061018638E-2},{"$f":"'Population 2016'!O87/'Population 2016'!O$5","v":1.1125310825135475E-2},{"$f":"'Population 2016'!P87/'Population 2016'!P$5","v":1.5327397723430632E-3},{"$f":"'Population 2016'!Q87/'Population 2016'!Q$5","v":1.5628488501897744E-3},{"$f":"'Population 2016'!R87/'Population 2016'!R$5","v":2.2488955128546336E-3},{"$f":"'Population 2016'!S87/'Population 2016'!S$5","v":5.2509307625633085E-3},{"$f":"'Population 2016'!T87/'Population 2016'!T$5","v":5.5141156707910078E-3},{"$f":"'Population 2016'!U87/'Population 2016'!U$5","v":0},{"$f":"'Population 2016'!V87/'Population 2016'!V$5","v":5.7548026652216059E-3},{"$f":"'Population 2016'!W87/'Population 2016'!W$5","v":6.8702240176756286E-3},{"$f":"'Population 2016'!X87/'Population 2016'!X$5","v":6.8702240176756286E-3},{"$f":"'Population 2016'!Y87/'Population 2016'!Y$5","v":5.5126309597621657E-3},{"$f":"'Population 2016'!Z87/'Population 2016'!Z$5","v":1.6802720956748479E-2},{"$f":"'Population 2016'!AA87/'Population 2016'!AA$5","v":1.1525707949403285E-2},{"$f":"'Population 2016'!AB87/'Population 2016'!AB$5","v":1.8771173863647995E-3},{"$f":"'Population 2016'!AC87/'Population 2016'!AC$5","v":1.2540828801396712E-2},{"$f":"'Population 2016'!AD87/'Population 2016'!AD$5","v":2.6052327961591424E-3},{"$f":"'Population 2016'!AE87/'Population 2016'!AE$5","v":2.7361677224612161E-3},{"$f":"'Population 2016'!AF87/'Population 2016'!AF$5","v":1.2879096351928094E-2},{"$f":"'Population 2016'!AG87/'Population 2016'!AG$5","v":2.7361677224612161E-3},{"$f":"'Population 2016'!AH87/'Population 2016'!AH$5","v":9.7024976082776809E-3},{"$f":"'Population 2016'!AI87/'Population 2016'!AI$5","v":4.9996172018549308E-3},{"$f":"'Population 2016'!AJ87/'Population 2016'!AJ$5","v":3.7224995120318993E-3},{"$f":"'Population 2016'!AK87/'Population 2016'!AK$5","v":3.7715449505299018E-4},{"$f":"'Population 2016'!AL87/'Population 2016'!AL$5","v":1.322253950799028E-2},{"$f":"'Population 2016'!AM87/'Population 2016'!AM$5","v":1.1590381432208946E-2},{"$f":"'Population 2016'!AN87/'Population 2016'!AN$5","v":0},{"$f":"'Population 2016'!AO87/'Population 2016'!AO$5","v":0},{"$f":"'Population 2016'!AP87/'Population 2016'!AP$5","v":1.9973685462010369E-3},{"$f":"'Population 2016'!AQ87/'Population 2016'!AQ$5","v":9.6454211651230345E-3},{"$f":"'Population 2016'!AR87/'Population 2016'!AR$5","v":7.0448939055418811E-3},{"$f":"'Population 2016'!AS87/'Population 2016'!AS$5","v":1.9889456494430954E-3},{"$f":"'Population 2016'!AT87/'Population 2016'!AT$5","v":0},{"$f":"'Population 2016'!AU87/'Population 2016'!AU$5","v":0},{"$f":"'Population 2016'!AV87/'Population 2016'!AV$5","v":5.9972547777425826E-3},{"$f":"'Population 2016'!AW87/'Population 2016'!AW$5","v":7.714778204893526E-3},{"$f":"'Population 2016'!AX87/'Population 2016'!AX$5","v":3.5907330973587027E-3},{"$f":"'Population 2016'!AY87/'Population 2016'!AY$5","v":5.9682996236345275E-3},{"$f":"'Population 2016'!AZ87/'Population 2016'!AZ$5","v":5.1745661015584104E-3},{"$f":"'Population 2016'!BA87/'Population 2016'!BA$5","v":1.184949255020514E-2},{"$f":"'Population 2016'!BB87/'Population 2016'!BB$5","v":6.1247177589195088E-3},{"$f":"'Population 2016'!BC87/'Population 2016'!BC$5","v":0},85]
[null,"Male 45-49",{"$f":"'Population 2016'!C88/'Population 2016'!C$5","v":3.1995420463780265E-3},{"$f":"'Population 2016'!D88/'Population 2016'!D$5","v":1.9928014631808533E-3},{"$f":"'Population 2016'!E88/'Population 2016'!E$5","v":8.8599702792531378E-4},{"$f":"'Population 2016'!F88/'Population 2016'!F$5","v":2.8534638166366213E-3},{"$f":"'Population 2016'!G88/'Population 2016'!G$5","v":2.7472527472527475E-3},{"$f":"'Population 2016'!H88/'Population 2016'!H$5","v":1.168562933469082E-2},{"$f":"'Population 2016'!I88/'Population 2016'!I$5","v":2.6379700192613684E-3},{"$f":"'Population 2016'!J88/'Population 2016'!J$5","v":6.4685735136793742E-3},{"$f":"'Population 2016'!K88/'Population 2016'!K$5","v":1.004110948353258E-2},{"$f":"'Population 2016'!L88/'Population 2016'!L$5","v":3.2246278970025255E-3},{"$f":"'Population 2016'!M88/'Population 2016'!M$5","v":3.2246278970025255E-3},{"$f":"'Population 2016'!N88/'Population 2016'!N$5","v":1.3068533446926161E-2},{"$f":"'Population 2016'!O88/'Population 2016'!O$5","v":1.2680674849664656E-2},{"$f":"'Population 2016'!P88/'Population 2016'!P$5","v":2.0849768962019608E-3},{"$f":"'Population 2016'!Q88/'Population 2016'!Q$5","v":1.1045698640439008E-3},{"$f":"'Population 2016'!R88/'Population 2016'!R$5","v":2.4351945494224731E-3},{"$f":"'Population 2016'!S88/'Population 2016'!S$5","v":5.8440767488538688E-3},{"$f":"'Population 2016'!T88/'Population 2016'!T$5","v":5.3628846502840818E-3},{"$f":"'Population 2016'!U88/'Population 2016'!U$5","v":0},{"$f":"'Population 2016'!V88/'Population 2016'!V$5","v":6.4951420001373829E-3},{"$f":"'Population 2016'!W88/'Population 2016'!W$5","v":8.6122931905686408E-3},{"$f":"'Population 2016'!X88/'Population 2016'!X$5","v":8.6122931905686408E-3},{"$f":"'Population 2016'!Y88/'Population 2016'!Y$5","v":6.4824088647239316E-3},{"$f":"'Population 2016'!Z88/'Population 2016'!Z$5","v":1.833974404887501E-2},{"$f":"'Population 2016'!AA88/'Population 2016'!AA$5","v":1.3197294368627327E-2},{"$f":"'Population 2016'!AB88/'Population 2016'!AB$5","v":1.7481551231794317E-3},{"$f":"'Population 2016'!AC88/'Population 2016'!AC$5","v":1.4300164866648325E-2},{"$f":"'Population 2016'!AD88/'Population 2016'!AD$5","v":2.7466597193792101E-3},{"$f":"'Population 2016'!AE88/'Population 2016'!AE$5","v":2.7464347683241099E-3},{"$f":"'Population 2016'!AF88/'Population 2016'!AF$5","v":1.6860456348308676E-2},{"$f":"'Population 2016'!AG88/'Population 2016'!AG$5","v":2.7464347683241099E-3},{"$f":"'Population 2016'!AH88/'Population 2016'!AH$5","v":1.1216481056630411E-2},{"$f":"'Population 2016'!AI88/'Population 2016'!AI$5","v":5.1048866917490594E-3},{"$f":"'Population 2016'!AJ88/'Population 2016'!AJ$5","v":4.3080612330256814E-3},{"$f":"'Population 2016'!AK88/'Population 2016'!AK$5","v":4.9030084356888731E-4},{"$f":"'Population 2016'!AL88/'Population 2016'!AL$5","v":1.5288838438481049E-2},{"$f":"'Population 2016'!AM88/'Population 2016'!AM$5","v":1.3716492026179774E-2},{"$f":"'Population 2016'!AN88/'Population 2016'!AN$5","v":0},{"$f":"'Population 2016'!AO88/'Population 2016'!AO$5","v":0},{"$f":"'Population 2016'!AP88/'Population 2016'!AP$5","v":2.0369988744986765E-3},{"$f":"'Population 2016'!AQ88/'Population 2016'!AQ$5","v":1.2419849838329588E-2},{"$f":"'Population 2016'!AR88/'Population 2016'!AR$5","v":7.9928123056962203E-3},{"$f":"'Population 2016'!AS88/'Population 2016'!AS$5","v":2.6379700192613684E-3},{"$f":"'Population 2016'!AT88/'Population 2016'!AT$5","v":0},{"$f":"'Population 2016'!AU88/'Population 2016'!AU$5","v":0},{"$f":"'Population 2016'!AV88/'Population 2016'!AV$5","v":6.3351282863477985E-3},{"$f":"'Population 2016'!AW88/'Population 2016'!AW$5","v":8.5842638354994196E-3},{"$f":"'Population 2016'!AX88/'Population 2016'!AX$5","v":4.5363354076951579E-3},{"$f":"'Population 2016'!AY88/'Population 2016'!AY$5","v":7.3360668278204463E-3},{"$f":"'Population 2016'!AZ88/'Population 2016'!AZ$5","v":6.2129309501757456E-3},{"$f":"'Population 2016'!BA88/'Population 2016'!BA$5","v":1.4211293457136688E-2},{"$f":"'Population 2016'!BB88/'Population 2016'!BB$5","v":7.084510057104189E-3},{"$f":"'Population 2016'!BC88/'Population 2016'!BC$5","v":0},86]
[null,"Male 50-54",{"$f":"'Population 2016'!C89/'Population 2016'!C$5","v":3.1433200615375179E-3},{"$f":"'Population 2016'!D89/'Population 2016'!D$5","v":1.8876597908903299E-3},{"$f":"'Population 2016'!E89/'Population 2016'!E$5","v":7.3598694912314422E-4},{"$f":"'Population 2016'!F89/'Population 2016'!F$5","v":3.0079835178985319E-3},{"$f":"'Population 2016'!G89/'Population 2016'!G$5","v":3.5592486331402586E-3},{"$f":"'Population 2016'!H89/'Population 2016'!H$5","v":1.2580533246004546E-2},{"$f":"'Population 2016'!I89/'Population 2016'!I$5","v":2.7217150992379199E-3},{"$f":"'Population 2016'!J89/'Population 2016'!J$5","v":7.1403099939460783E-3},{"$f":"'Population 2016'!K89/'Population 2016'!K$5","v":1.0726267542408921E-2},{"$f":"'Population 2016'!L89/'Population 2016'!L$5","v":3.4708433275618318E-3},{"$f":"'Population 2016'!M89/'Population 2016'!M$5","v":3.4708433275618318E-3},{"$f":"'Population 2016'!N89/'Population 2016'!N$5","v":1.3381985356169778E-2},{"$f":"'Population 2016'!O89/'Population 2016'!O$5","v":1.3403869587184593E-2},{"$f":"'Population 2016'!P89/'Population 2016'!P$5","v":2.130057477741463E-3},{"$f":"'Population 2016'!Q89/'Population 2016'!Q$5","v":1.6803562825348703E-3},{"$f":"'Population 2016'!R89/'Population 2016'!R$5","v":3.2070048437749508E-3},{"$f":"'Population 2016'!S89/'Population 2016'!S$5","v":5.7637548965436885E-3},{"$f":"'Population 2016'!T89/'Population 2016'!T$5","v":5.560648292485447E-3},{"$f":"'Population 2016'!U89/'Population 2016'!U$5","v":0},{"$f":"'Population 2016'!V89/'Population 2016'!V$5","v":6.5485685500797581E-3},{"$f":"'Population 2016'!W89/'Population 2016'!W$5","v":7.9716823877787144E-3},{"$f":"'Population 2016'!X89/'Population 2016'!X$5","v":7.9716823877787144E-3},{"$f":"'Population 2016'!Y89/'Population 2016'!Y$5","v":6.8321648304478467E-3},{"$f":"'Population 2016'!Z89/'Population 2016'!Z$5","v":1.8783041640936693E-2},{"$f":"'Population 2016'!AA89/'Population 2016'!AA$5","v":1.3613197825874643E-2},{"$f":"'Population 2016'!AB89/'Population 2016'!AB$5","v":1.6314749802974319E-3},{"$f":"'Population 2016'!AC89/'Population 2016'!AC$5","v":1.5060371808423713E-2},{"$f":"'Population 2016'!AD89/'Population 2016'!AD$5","v":3.0332353269567161E-3},{"$f":"'Population 2016'!AE89/'Population 2016'!AE$5","v":2.8337046581587079E-3},{"$f":"'Population 2016'!AF89/'Population 2016'!AF$5","v":1.9378968164200937E-2},{"$f":"'Population 2016'!AG89/'Population 2016'!AG$5","v":2.8337046581587079E-3},{"$f":"'Population 2016'!AH89/'Population 2016'!AH$5","v":1.1013997380715752E-2},{"$f":"'Population 2016'!AI89/'Population 2016'!AI$5","v":5.2374989062910137E-3},{"$f":"'Population 2016'!AJ89/'Population 2016'!AJ$5","v":4.2522934500738921E-3},{"$f":"'Population 2016'!AK89/'Population 2016'!AK$5","v":3.1429541254415853E-4},{"$f":"'Population 2016'!AL89/'Population 2016'!AL$5","v":1.6805306752274703E-2},{"$f":"'Population 2016'!AM89/'Population 2016'!AM$5","v":1.3709248037784644E-2},{"$f":"'Population 2016'!AN89/'Population 2016'!AN$5","v":0},{"$f":"'Population 2016'!AO89/'Population 2016'!AO$5","v":0},{"$f":"'Population 2016'!AP89/'Population 2016'!AP$5","v":2.3540415008797932E-3},{"$f":"'Population 2016'!AQ89/'Population 2016'!AQ$5","v":1.2330794103140242E-2},{"$f":"'Population 2016'!AR89/'Population 2016'!AR$5","v":8.2253920494708699E-3},{"$f":"'Population 2016'!AS89/'Population 2016'!AS$5","v":2.7217150992379199E-3},{"$f":"'Population 2016'!AT89/'Population 2016'!AT$5","v":0},{"$f":"'Population 2016'!AU89/'Population 2016'!AU$5","v":0},{"$f":"'Population 2016'!AV89/'Population 2016'!AV$5","v":6.6730017949530145E-3},{"$f":"'Population 2016'!AW89/'Population 2016'!AW$5","v":8.1762157544694614E-3},{"$f":"'Population 2016'!AX89/'Population 2016'!AX$5","v":5.2008127068505052E-3},{"$f":"'Population 2016'!AY89/'Population 2016'!AY$5","v":7.180012851503932E-3},{"$f":"'Population 2016'!AZ89/'Population 2016'!AZ$5","v":6.4833085007852459E-3},{"$f":"'Population 2016'!BA89/'Population 2016'!BA$5","v":1.8125134960051824E-2},{"$f":"'Population 2016'!BB89/'Population 2016'!BB$5","v":6.8566456985423583E-3},{"$f":"'Population 2016'!BC89/'Population 2016'!BC$5","v":0},87]
[null,"Male 55-59",{"$f":"'Population 2016'!C90/'Population 2016'!C$5","v":2.8724323163968864E-3},{"$f":"'Population 2016'!D90/'Population 2016'!D$5","v":1.8191954461430123E-3},{"$f":"'Population 2016'!E90/'Population 2016'!E$5","v":8.5318232318733916E-4},{"$f":"'Population 2016'!F90/'Population 2016'!F$5","v":2.3899047128508885E-3},{"$f":"'Population 2016'!G90/'Population 2016'!G$5","v":2.882585394900666E-3},{"$f":"'Population 2016'!H90/'Population 2016'!H$5","v":1.2253050292951335E-2},{"$f":"'Population 2016'!I90/'Population 2016'!I$5","v":2.0622225944225778E-3},{"$f":"'Population 2016'!J90/'Population 2016'!J$5","v":6.750536974532065E-3},{"$f":"'Population 2016'!K90/'Population 2016'!K$5","v":1.0111987903416339E-2},{"$f":"'Population 2016'!L90/'Population 2016'!L$5","v":3.0896065318570995E-3},{"$f":"'Population 2016'!M90/'Population 2016'!M$5","v":3.0896065318570995E-3},{"$f":"'Population 2016'!N90/'Population 2016'!N$5","v":1.2899751649641137E-2},{"$f":"'Population 2016'!O90/'Population 2016'!O$5","v":1.2522166414043847E-2},{"$f":"'Population 2016'!P90/'Population 2016'!P$5","v":1.9497351515834554E-3},{"$f":"'Population 2016'!Q90/'Population 2016'!Q$5","v":1.3160832422650732E-3},{"$f":"'Population 2016'!R90/'Population 2016'!R$5","v":2.5682652898280727E-3},{"$f":"'Population 2016'!S90/'Population 2016'!S$5","v":5.0223224136804884E-3},{"$f":"'Population 2016'!T90/'Population 2016'!T$5","v":4.3833729636161434E-3},{"$f":"'Population 2016'!U90/'Population 2016'!U$5","v":0},{"$f":"'Population 2016'!V90/'Population 2016'!V$5","v":5.5487288297295856E-3},{"$f":"'Population 2016'!W90/'Population 2016'!W$5","v":7.8867034037351531E-3},{"$f":"'Population 2016'!X90/'Population 2016'!X$5","v":7.8867034037351531E-3},{"$f":"'Population 2016'!Y90/'Population 2016'!Y$5","v":6.1247038997790182E-3},{"$f":"'Population 2016'!Z90/'Population 2016'!Z$5","v":1.643491946115145E-2},{"$f":"'Population 2016'!AA90/'Population 2016'!AA$5","v":1.2134282337324279E-2},{"$f":"'Population 2016'!AB90/'Population 2016'!AB$5","v":1.5782524589828357E-3},{"$f":"'Population 2016'!AC90/'Population 2016'!AC$5","v":1.3196571932125414E-2},{"$f":"'Population 2016'!AD90/'Population 2016'!AD$5","v":2.7801555696155421E-3},{"$f":"'Population 2016'!AE90/'Population 2016'!AE$5","v":2.741301245392663E-3},{"$f":"'Population 2016'!AF90/'Population 2016'!AF$5","v":1.696602271184907E-2},{"$f":"'Population 2016'!AG90/'Population 2016'!AG$5","v":2.741301245392663E-3},{"$f":"'Population 2016'!AH90/'Population 2016'!AH$5","v":1.0226354457891754E-2},{"$f":"'Population 2016'!AI90/'Population 2016'!AI$5","v":4.210779595765159E-3},{"$f":"'Population 2016'!AJ90/'Population 2016'!AJ$5","v":3.7503834035077935E-3},{"$f":"'Population 2016'!AK90/'Population 2016'!AK$5","v":3.3943904554769119E-4},{"$f":"'Population 2016'!AL90/'Population 2016'!AL$5","v":1.649491850091343E-2},{"$f":"'Population 2016'!AM90/'Population 2016'!AM$5","v":1.2267694347153656E-2},{"$f":"'Population 2016'!AN90/'Population 2016'!AN$5","v":0},{"$f":"'Population 2016'!AO90/'Population 2016'!AO$5","v":0},{"$f":"'Population 2016'!AP90/'Population 2016'!AP$5","v":1.8467732986700062E-3},{"$f":"'Population 2016'!AQ90/'Population 2016'!AQ$5","v":1.1474488957088837E-2},{"$f":"'Population 2016'!AR90/'Population 2016'!AR$5","v":7.4075757282096285E-3},{"$f":"'Population 2016'!AS90/'Population 2016'!AS$5","v":2.0622225944225778E-3},{"$f":"'Population 2016'!AT90/'Population 2016'!AT$5","v":0},{"$f":"'Population 2016'!AU90/'Population 2016'!AU$5","v":0},{"$f":"'Population 2016'!AV90/'Population 2016'!AV$5","v":6.9158483792630138E-3},{"$f":"'Population 2016'!AW90/'Population 2016'!AW$5","v":8.0770638843126481E-3},{"$f":"'Population 2016'!AX90/'Population 2016'!AX$5","v":4.9324661052685386E-3},{"$f":"'Population 2016'!AY90/'Population 2016'!AY$5","v":6.8587252532052263E-3},{"$f":"'Population 2016'!AZ90/'Population 2016'!AZ$5","v":5.9540588272517557E-3},{"$f":"'Population 2016'!BA90/'Population 2016'!BA$5","v":1.4886093716259987E-2},{"$f":"'Population 2016'!BB90/'Population 2016'!BB$5","v":5.6275591584209689E-3},{"$f":"'Population 2016'!BC90/'Population 2016'!BC$5","v":0},88]
[null,"Male 60-64",{"$f":"'Population 2016'!C91/'Population 2016'!C$5","v":2.5862113026633889E-3},{"$f":"'Population 2016'!D91/'Population 2016'!D$5","v":1.484209187915065E-3},{"$f":"'Population 2016'!E91/'Population 2016'!E$5","v":4.7346931121934756E-4},{"$f":"'Population 2016'!F91/'Population 2016'!F$5","v":2.0190574298223022E-3},{"$f":"'Population 2016'!G91/'Population 2016'!G$5","v":2.8013858063119148E-3},{"$f":"'Population 2016'!H91/'Population 2016'!H$5","v":1.0472969686751207E-2},{"$f":"'Population 2016'!I91/'Population 2016'!I$5","v":1.6120927895486141E-3},{"$f":"'Population 2016'!J91/'Population 2016'!J$5","v":5.2660822835723115E-3},{"$f":"'Population 2016'!K91/'Population 2016'!K$5","v":7.8675046070972917E-3},{"$f":"'Population 2016'!L91/'Population 2016'!L$5","v":2.5574635045192444E-3},{"$f":"'Population 2016'!M91/'Population 2016'!M$5","v":2.5574635045192444E-3},{"$f":"'Population 2016'!N91/'Population 2016'!N$5","v":1.0400173604134351E-2},{"$f":"'Population 2016'!O91/'Population 2016'!O$5","v":1.0352582201484035E-2},{"$f":"'Population 2016'!P91/'Population 2016'!P$5","v":1.8032232615800743E-3},{"$f":"'Population 2016'!Q91/'Population 2016'!Q$5","v":1.0223146614023338E-3},{"$f":"'Population 2016'!R91/'Population 2016'!R$5","v":1.9428328099217545E-3},{"$f":"'Population 2016'!S91/'Population 2016'!S$5","v":4.203216051660191E-3},{"$f":"'Population 2016'!T91/'Population 2016'!T$5","v":3.7458760464023303E-3},{"$f":"'Population 2016'!U91/'Population 2016'!U$5","v":0},{"$f":"'Population 2016'!V91/'Population 2016'!V$5","v":4.7549629448714326E-3},{"$f":"'Population 2016'!W91/'Population 2016'!W$5","v":6.5956765307656606E-3},{"$f":"'Population 2016'!X91/'Population 2016'!X$5","v":6.5956765307656606E-3},{"$f":"'Population 2016'!Y91/'Population 2016'!Y$5","v":4.9999205100077901E-3},{"$f":"'Population 2016'!Z91/'Population 2016'!Z$5","v":1.3244725436183536E-2},{"$f":"'Population 2016'!AA91/'Population 2016'!AA$5","v":9.8527927651401153E-3},{"$f":"'Population 2016'!AB91/'Population 2016'!AB$5","v":1.2834815717019947E-3},{"$f":"'Population 2016'!AC91/'Population 2016'!AC$5","v":1.0643931480014315E-2},{"$f":"'Population 2016'!AD91/'Population 2016'!AD$5","v":2.4005359336037812E-3},{"$f":"'Population 2016'!AE91/'Population 2016'!AE$5","v":2.2484830439737573E-3},{"$f":"'Population 2016'!AF91/'Population 2016'!AF$5","v":1.4537996350420003E-2},{"$f":"'Population 2016'!AG91/'Population 2016'!AG$5","v":2.2484830439737573E-3},{"$f":"'Population 2016'!AH91/'Population 2016'!AH$5","v":8.4318661007031191E-3},{"$f":"'Population 2016'!AI91/'Population 2016'!AI$5","v":3.5408828418934291E-3},{"$f":"'Population 2016'!AJ91/'Population 2016'!AJ$5","v":3.401834760059114E-3},{"$f":"'Population 2016'!AK91/'Population 2016'!AK$5","v":2.5143633003532682E-4},{"$f":"'Population 2016'!AL91/'Population 2016'!AL$5","v":1.3967471311257338E-2},{"$f":"'Population 2016'!AM91/'Population 2016'!AM$5","v":9.8590682057727343E-3},{"$f":"'Population 2016'!AN91/'Population 2016'!AN$5","v":0},{"$f":"'Population 2016'!AO91/'Population 2016'!AO$5","v":0},{"$f":"'Population 2016'!AP91/'Population 2016'!AP$5","v":1.5376567379484171E-3},{"$f":"'Population 2016'!AQ91/'Population 2016'!AQ$5","v":8.1931276374198492E-3},{"$f":"'Population 2016'!AR91/'Population 2016'!AR$5","v":6.0947477300640285E-3},{"$f":"'Population 2016'!AS91/'Population 2016'!AS$5","v":1.6120927895486141E-3},{"$f":"'Population 2016'!AT91/'Population 2016'!AT$5","v":0},{"$f":"'Population 2016'!AU91/'Population 2016'!AU$5","v":0},{"$f":"'Population 2016'!AV91/'Population 2016'!AV$5","v":6.4407137577869285E-3},{"$f":"'Population 2016'!AW91/'Population 2016'!AW$5","v":6.9291903105741653E-3},{"$f":"'Population 2016'!AX91/'Population 2016'!AX$5","v":3.8590796989406697E-3},{"$f":"'Population 2016'!AY91/'Population 2016'!AY$5","v":5.6638413757228974E-3},{"$f":"'Population 2016'!AZ91/'Population 2016'!AZ$5","v":4.8437850555999792E-3},{"$f":"'Population 2016'!BA91/'Population 2016'!BA$5","v":1.3266573094364069E-2},{"$f":"'Population 2016'!BB91/'Population 2016'!BB$5","v":4.4813323850493364E-3},{"$f":"'Population 2016'!BC91/'Population 2016'!BC$5","v":0},89]
[null,"Male 65-69",{"$f":"'Population 2016'!C92/'Population 2016'!C$5","v":2.2233239459655617E-3},{"$f":"'Population 2016'!D92/'Population 2016'!D$5","v":1.3546159639290709E-3},{"$f":"'Population 2016'!E92/'Population 2016'!E$5","v":5.5784998054556794E-4},{"$f":"'Population 2016'!F92/'Population 2016'!F$5","v":2.111769250579449E-3},{"$f":"'Population 2016'!G92/'Population 2016'!G$5","v":2.3141882747794076E-3},{"$f":"'Population 2016'!H92/'Population 2016'!H$5","v":1.0064426596803637E-2},{"$f":"'Population 2016'!I92/'Population 2016'!I$5","v":2.0936269994137843E-3},{"$f":"'Population 2016'!J92/'Population 2016'!J$5","v":5.1416866390784771E-3},{"$f":"'Population 2016'!K92/'Population 2016'!K$5","v":7.9620091669423045E-3},{"$f":"'Population 2016'!L92/'Population 2016'!L$5","v":2.9466427334678253E-3},{"$f":"'Population 2016'!M92/'Population 2016'!M$5","v":2.9466427334678253E-3},{"$f":"'Population 2016'!N92/'Population 2016'!N$5","v":9.8857909838371335E-3},{"$f":"'Population 2016'!O92/'Population 2016'!O$5","v":1.0788480399441257E-2},{"$f":"'Population 2016'!P92/'Population 2016'!P$5","v":1.431308463879184E-3},{"$f":"'Population 2016'!Q92/'Population 2016'!Q$5","v":1.1868250666854678E-3},{"$f":"'Population 2016'!R92/'Population 2016'!R$5","v":1.8097620695161547E-3},{"$f":"'Population 2016'!S92/'Population 2016'!S$5","v":3.9331227900457396E-3},{"$f":"'Population 2016'!T92/'Population 2016'!T$5","v":3.0571932453246349E-3},{"$f":"'Population 2016'!U92/'Population 2016'!U$5","v":0},{"$f":"'Population 2016'!V92/'Population 2016'!V$5","v":4.9152425946985597E-3},{"$f":"'Population 2016'!W92/'Population 2016'!W$5","v":6.3701553808039012E-3},{"$f":"'Population 2016'!X92/'Population 2016'!X$5","v":6.3701553808039012E-3},{"$f":"'Population 2016'!Y92/'Population 2016'!Y$5","v":5.023767507670784E-3},{"$f":"'Population 2016'!Z92/'Population 2016'!Z$5","v":1.1800620616628886E-2},{"$f":"'Population 2016'!AA92/'Population 2016'!AA$5","v":9.0528762115845724E-3},{"$f":"'Population 2016'!AB92/'Population 2016'!AB$5","v":1.1729424889716795E-3},{"$f":"'Population 2016'!AC92/'Population 2016'!AC$5","v":9.5455100212857944E-3},{"$f":"'Population 2016'!AD92/'Population 2016'!AD$5","v":2.1474561762626077E-3},{"$f":"'Population 2016'!AE92/'Population 2016'!AE$5","v":2.0842103101674555E-3},{"$f":"'Population 2016'!AF92/'Population 2016'!AF$5","v":1.4749129077500792E-2},{"$f":"'Population 2016'!AG92/'Population 2016'!AG$5","v":2.0842103101674555E-3},{"$f":"'Population 2016'!AH92/'Population 2016'!AH$5","v":8.1680800274931964E-3},{"$f":"'Population 2016'!AI92/'Population 2016'!AI$5","v":3.1539832881266952E-3},{"$f":"'Population 2016'!AJ92/'Population 2016'!AJ$5","v":2.830214984803279E-3},{"$f":"'Population 2016'!AK92/'Population 2016'!AK$5","v":2.3886451353356047E-4},{"$f":"'Population 2016'!AL92/'Population 2016'!AL$5","v":1.3213671272237101E-2},{"$f":"'Population 2016'!AM92/'Population 2016'!AM$5","v":9.6598585249066428E-3},{"$f":"'Population 2016'!AN92/'Population 2016'!AN$5","v":0},{"$f":"'Population 2016'!AO92/'Population 2016'!AO$5","v":0},{"$f":"'Population 2016'!AP92/'Population 2016'!AP$5","v":1.2760965711839957E-3},{"$f":"'Population 2016'!AQ92/'Population 2016'!AQ$5","v":7.3642242560420894E-3},{"$f":"'Population 2016'!AR92/'Population 2016'!AR$5","v":5.6957531696230357E-3},{"$f":"'Population 2016'!AS92/'Population 2016'!AS$5","v":2.0936269994137843E-3},{"$f":"'Population 2016'!AT92/'Population 2016'!AT$5","v":0},{"$f":"'Population 2016'!AU92/'Population 2016'!AU$5","v":0},{"$f":"'Population 2016'!AV92/'Population 2016'!AV$5","v":5.5432372505543242E-3},{"$f":"'Population 2016'!AW92/'Population 2016'!AW$5","v":6.5974128988956007E-3},{"$f":"'Population 2016'!AX92/'Population 2016'!AX$5","v":3.6162899165569852E-3},{"$f":"'Population 2016'!AY92/'Population 2016'!AY$5","v":5.4236406474710078E-3},{"$f":"'Population 2016'!AZ92/'Population 2016'!AZ$5","v":4.5906656465187455E-3},{"$f":"'Population 2016'!BA92/'Population 2016'!BA$5","v":1.1026236234074714E-2},{"$f":"'Population 2016'!BB92/'Population 2016'!BB$5","v":4.7575316075485251E-3},{"$f":"'Population 2016'!BC92/'Population 2016'!BC$5","v":0},90]
[null,"Male 70-74",{"$f":"'Population 2016'!C93/'Population 2016'!C$5","v":1.2931056513316944E-3},{"$f":"'Population 2016'!D93/'Population 2016'!D$5","v":7.8244965425505904E-4},{"$f":"'Population 2016'!E93/'Population 2016'!E$5","v":3.1408360249204242E-4},{"$f":"'Population 2016'!F93/'Population 2016'!F$5","v":1.3906773113571979E-3},{"$f":"'Population 2016'!G93/'Population 2016'!G$5","v":2.11118930330753E-3},{"$f":"'Population 2016'!H93/'Population 2016'!H$5","v":7.4640174052325939E-3},{"$f":"'Population 2016'!I93/'Population 2016'!I$5","v":1.4550707645925802E-3},{"$f":"'Population 2016'!J93/'Population 2016'!J$5","v":3.6904041199837456E-3},{"$f":"'Population 2016'!K93/'Population 2016'!K$5","v":5.7884042905070173E-3},{"$f":"'Population 2016'!L93/'Population 2016'!L$5","v":1.7949899131097804E-3},{"$f":"'Population 2016'!M93/'Population 2016'!M$5","v":1.7949899131097804E-3},{"$f":"'Population 2016'!N93/'Population 2016'!N$5","v":7.0325748868760099E-3},{"$f":"'Population 2016'!O93/'Population 2016'!O$5","v":7.4003625880464828E-3},{"$f":"'Population 2016'!P93/'Population 2016'!P$5","v":9.9177279386904096E-4},{"$f":"'Population 2016'!Q93/'Population 2016'!Q$5","v":7.5204756700861328E-4},{"$f":"'Population 2016'!R93/'Population 2016'!R$5","v":1.1577154415287167E-3},{"$f":"'Population 2016'!S93/'Population 2016'!S$5","v":2.8924693408841759E-3},{"$f":"'Population 2016'!T93/'Population 2016'!T$5","v":2.0800081897414183E-3},{"$f":"'Population 2016'!U93/'Population 2016'!U$5","v":0},{"$f":"'Population 2016'!V93/'Population 2016'!V$5","v":3.0987398966577876E-3},{"$f":"'Population 2016'!W93/'Population 2016'!W$5","v":4.8699494701887188E-3},{"$f":"'Population 2016'!X93/'Population 2016'!X$5","v":4.8699494701887188E-3},{"$f":"'Population 2016'!Y93/'Population 2016'!Y$5","v":3.3822991685346815E-3},{"$f":"'Population 2016'!Z93/'Population 2016'!Z$5","v":8.5504168739582997E-3},{"$f":"'Population 2016'!AA93/'Population 2016'!AA$5","v":6.5235719596028856E-3},{"$f":"'Population 2016'!AB93/'Population 2016'!AB$5","v":6.8575171693806736E-4},{"$f":"'Population 2016'!AC93/'Population 2016'!AC$5","v":6.8615140839971781E-3},{"$f":"'Population 2016'!AD93/'Population 2016'!AD$5","v":1.5594179165581152E-3},{"$f":"'Population 2016'!AE93/'Population 2016'!AE$5","v":1.3501165309705437E-3},{"$f":"'Population 2016'!AF93/'Population 2016'!AF$5","v":1.0164532718032243E-2},{"$f":"'Population 2016'!AG93/'Population 2016'!AG$5","v":1.3501165309705437E-3},{"$f":"'Population 2016'!AH93/'Population 2016'!AH$5","v":5.9166101631944121E-3},{"$f":"'Population 2016'!AI93/'Population 2016'!AI$5","v":2.2530405109808384E-3},{"$f":"'Population 2016'!AJ93/'Population 2016'!AJ$5","v":2.1191757521679725E-3},{"$f":"'Population 2016'!AK93/'Population 2016'!AK$5","v":1.8857724752649509E-4},{"$f":"'Population 2016'!AL93/'Population 2016'!AL$5","v":1.0136393465883898E-2},{"$f":"'Population 2016'!AM93/'Population 2016'!AM$5","v":6.8057270972251898E-3},{"$f":"'Population 2016'!AN93/'Population 2016'!AN$5","v":0},{"$f":"'Population 2016'!AO93/'Population 2016'!AO$5","v":0},{"$f":"'Population 2016'!AP93/'Population 2016'!AP$5","v":9.432018134838229E-4},{"$f":"'Population 2016'!AQ93/'Population 2016'!AQ$5","v":5.2748396996766594E-3},{"$f":"'Population 2016'!AR93/'Population 2016'!AR$5","v":4.0897499389032617E-3},{"$f":"'Population 2016'!AS93/'Population 2016'!AS$5","v":1.4550707645925802E-3},{"$f":"'Population 2016'!AT93/'Population 2016'!AT$5","v":0},{"$f":"'Population 2016'!AU93/'Population 2016'!AU$5","v":0},{"$f":"'Population 2016'!AV93/'Population 2016'!AV$5","v":4.350121423292155E-3},{"$f":"'Population 2016'!AW93/'Population 2016'!AW$5","v":4.9804747086460432E-3},{"$f":"'Population 2016'!AX93/'Population 2016'!AX$5","v":2.555681919828258E-3},{"$f":"'Population 2016'!AY93/'Population 2016'!AY$5","v":4.0069153330681432E-3},{"$f":"'Population 2016'!AZ93/'Population 2016'!AZ$5","v":3.2474069642353782E-3},{"$f":"'Population 2016'!BA93/'Population 2016'!BA$5","v":8.0706110991146628E-3},{"$f":"'Population 2016'!BB93/'Population 2016'!BB$5","v":3.7148795426140877E-3},{"$f":"'Population 2016'!BC93/'Population 2016'!BC$5","v":0},91]
[null,"Male 75-79",{"$f":"'Population 2016'!C94/'Population 2016'!C$5","v":8.5355195166953736E-4},{"$f":"'Population 2016'!D94/'Population 2016'!D$5","v":5.5015991314808833E-4},{"$f":"'Population 2016'!E94/'Population 2016'!E$5","v":2.7189326782893226E-4},{"$f":"'Population 2016'!F94/'Population 2016'!F$5","v":1.2567602369302085E-3},{"$f":"'Population 2016'!G94/'Population 2016'!G$5","v":1.2179938288312672E-3},{"$f":"'Population 2016'!H94/'Population 2016'!H$5","v":5.82011782901499E-3},{"$f":"'Population 2016'!I94/'Population 2016'!I$5","v":7.6417385478603128E-4},{"$f":"'Population 2016'!J94/'Population 2016'!J$5","v":2.9523232959869964E-3},{"$f":"'Population 2016'!K94/'Population 2016'!K$5","v":4.2999574729480697E-3},{"$f":"'Population 2016'!L94/'Population 2016'!L$5","v":1.4534652836242911E-3},{"$f":"'Population 2016'!M94/'Population 2016'!M$5","v":1.4534652836242911E-3},{"$f":"'Population 2016'!N94/'Population 2016'!N$5","v":5.336719685583623E-3},{"$f":"'Population 2016'!O94/'Population 2016'!O$5","v":6.2908035387008255E-3},{"$f":"'Population 2016'!P94/'Population 2016'!P$5","v":7.5509974078665615E-4},{"$f":"'Population 2016'!Q94/'Population 2016'!Q$5","v":7.1679533730508458E-4},{"$f":"'Population 2016'!R94/'Population 2016'!R$5","v":1.3440144780965562E-3},{"$f":"'Population 2016'!S94/'Population 2016'!S$5","v":2.1033733412654841E-3},{"$f":"'Population 2016'!T94/'Population 2016'!T$5","v":1.6868075364234096E-3},{"$f":"'Population 2016'!U94/'Population 2016'!U$5","v":0},{"$f":"'Population 2016'!V94/'Population 2016'!V$5","v":2.6713274971187826E-3},{"$f":"'Population 2016'!W94/'Population 2016'!W$5","v":3.2684224632139052E-3},{"$f":"'Population 2016'!X94/'Population 2016'!X$5","v":3.2684224632139052E-3},{"$f":"'Population 2016'!Y94/'Population 2016'!Y$5","v":2.8059967250123208E-3},{"$f":"'Population 2016'!Z94/'Population 2016'!Z$5","v":6.4132966048050365E-3},{"$f":"'Population 2016'!AA94/'Population 2016'!AA$5","v":4.9509785357939404E-3},{"$f":"'Population 2016'!AB94/'Population 2016'!AB$5","v":4.7490865173024368E-4},{"$f":"'Population 2016'!AC94/'Population 2016'!AC$5","v":5.2397392748763502E-3},{"$f":"'Population 2016'!AD94/'Population 2016'!AD$5","v":1.0458148796010272E-3},{"$f":"'Population 2016'!AE94/'Population 2016'!AE$5","v":9.8050287990636463E-4},{"$f":"'Population 2016'!AF94/'Population 2016'!AF$5","v":7.630939993062782E-3},{"$f":"'Population 2016'!AG94/'Population 2016'!AG$5","v":9.8050287990636463E-4},{"$f":"'Population 2016'!AH94/'Population 2016'!AH$5","v":4.4323490892878709E-3},{"$f":"'Population 2016'!AI94/'Population 2016'!AI$5","v":1.7909484644325839E-3},{"$f":"'Population 2016'!AJ94/'Population 2016'!AJ$5","v":1.6172657056018737E-3},{"$f":"'Population 2016'!AK94/'Population 2016'!AK$5","v":8.800271551236438E-5},{"$f":"'Population 2016'!AL94/'Population 2016'!AL$5","v":7.5557368617087317E-3},{"$f":"'Population 2016'!AM94/'Population 2016'!AM$5","v":5.3533074240015065E-3},{"$f":"'Population 2016'!AN94/'Population 2016'!AN$5","v":0},{"$f":"'Population 2016'!AO94/'Population 2016'!AO$5","v":0},{"$f":"'Population 2016'!AP94/'Population 2016'!AP$5","v":7.609023033146807E-4},{"$f":"'Population 2016'!AQ94/'Population 2016'!AQ$5","v":4.6514495533512357E-3},{"$f":"'Population 2016'!AR94/'Population 2016'!AR$5","v":3.0997265851345455E-3},{"$f":"'Population 2016'!AS94/'Population 2016'!AS$5","v":7.6417385478603128E-4},{"$f":"'Population 2016'!AT94/'Population 2016'!AT$5","v":0},{"$f":"'Population 2016'!AU94/'Population 2016'!AU$5","v":0},{"$f":"'Population 2016'!AV94/'Population 2016'!AV$5","v":3.2520325203252032E-3},{"$f":"'Population 2016'!AW94/'Population 2016'!AW$5","v":3.4626883885532978E-3},{"$f":"'Population 2016'!AX94/'Population 2016'!AX$5","v":2.2234432702505848E-3},{"$f":"'Population 2016'!AY94/'Population 2016'!AY$5","v":2.8793488571341144E-3},{"$f":"'Population 2016'!AZ94/'Population 2016'!AZ$5","v":2.536946804655096E-3},{"$f":"'Population 2016'!BA94/'Population 2016'!BA$5","v":5.3984020729863956E-3},{"$f":"'Population 2016'!BB94/'Population 2016'!BB$5","v":2.8172320694917243E-3},{"$f":"'Population 2016'!BC94/'Population 2016'!BC$5","v":0},92]
[null,"Male 80-84",{"$f":"'Population 2016'!C95/'Population 2016'!C$5","v":6.1333074371463766E-4},{"$f":"'Population 2016'!D95/'Population 2016'!D$5","v":3.9611513746662364E-4},{"$f":"'Population 2016'!E95/'Population 2016'!E$5","v":1.9688822842784751E-4},{"$f":"'Population 2016'!F95/'Population 2016'!F$5","v":7.1079062580479014E-4},{"$f":"'Population 2016'!G95/'Population 2016'!G$5","v":9.3379526877063819E-4},{"$f":"'Population 2016'!H95/'Population 2016'!H$5","v":3.9038561928323385E-3},{"$f":"'Population 2016'!I95/'Population 2016'!I$5","v":5.8621555983585959E-4},{"$f":"'Population 2016'!J95/'Population 2016'!J$5","v":1.4098173042634535E-3},{"$f":"'Population 2016'!K95/'Population 2016'!K$5","v":1.9137173368615036E-3},{"$f":"'Population 2016'!L95/'Population 2016'!L$5","v":9.2132225628643589E-4},{"$f":"'Population 2016'!M95/'Population 2016'!M$5","v":9.2132225628643589E-4},{"$f":"'Population 2016'!N95/'Population 2016'!N$5","v":3.3917104025847728E-3},{"$f":"'Population 2016'!O95/'Population 2016'!O$5","v":4.180659989498816E-3},{"$f":"'Population 2016'!P95/'Population 2016'!P$5","v":4.8461625154964499E-4},{"$f":"'Population 2016'!Q95/'Population 2016'!Q$5","v":4.5827898614587373E-4},{"$f":"'Population 2016'!R95/'Population 2016'!R$5","v":6.3873955394687821E-4},{"$f":"'Population 2016'!S95/'Population 2016'!S$5","v":1.452854603324795E-3},{"$f":"'Population 2016'!T95/'Population 2016'!T$5","v":1.1540090180220844E-3},{"$f":"'Population 2016'!U95/'Population 2016'!U$5","v":0},{"$f":"'Population 2016'!V95/'Population 2016'!V$5","v":1.9538852550354522E-3},{"$f":"'Population 2016'!W95/'Population 2016'!W$5","v":2.3696062858300812E-3},{"$f":"'Population 2016'!X95/'Population 2016'!X$5","v":2.3696062858300812E-3},{"$f":"'Population 2016'!Y95/'Population 2016'!Y$5","v":1.6931368340725903E-3},{"$f":"'Population 2016'!Z95/'Population 2016'!Z$5","v":4.3826451896403868E-3},{"$f":"'Population 2016'!AA95/'Population 2016'!AA$5","v":3.2740770564133842E-3},{"$f":"'Population 2016'!AB95/'Population 2016'!AB$5","v":3.377583083426302E-4},{"$f":"'Population 2016'!AC95/'Population 2016'!AC$5","v":3.4866089805780055E-3},{"$f":"'Population 2016'!AD95/'Population 2016'!AD$5","v":7.2946518292455994E-4},{"$f":"'Population 2016'!AE95/'Population 2016'!AE$5","v":6.5195741229376076E-4},{"$f":"'Population 2016'!AF95/'Population 2016'!AF$5","v":4.9012954500897311E-3},{"$f":"'Population 2016'!AG95/'Population 2016'!AG$5","v":6.5195741229376076E-4},{"$f":"'Population 2016'!AH95/'Population 2016'!AH$5","v":2.8923585632947254E-3},{"$f":"'Population 2016'!AI95/'Population 2016'!AI$5","v":1.1825728410184619E-3},{"$f":"'Population 2016'!AJ95/'Population 2016'!AJ$5","v":1.0317039846080918E-3},{"$f":"'Population 2016'!AK95/'Population 2016'!AK$5","v":3.7715449505299018E-5},{"$f":"'Population 2016'!AL95/'Population 2016'!AL$5","v":4.9218708430144907E-3},{"$f":"'Population 2016'!AM95/'Population 2016'!AM$5","v":3.5133343716383368E-3},{"$f":"'Population 2016'!AN95/'Population 2016'!AN$5","v":0},{"$f":"'Population 2016'!AO95/'Population 2016'!AO$5","v":0},{"$f":"'Population 2016'!AP95/'Population 2016'!AP$5","v":5.0726820220978706E-4},{"$f":"'Population 2016'!AQ95/'Population 2016'!AQ$5","v":2.9114374965747794E-3},{"$f":"'Population 2016'!AR95/'Population 2016'!AR$5","v":2.0575732887956489E-3},{"$f":"'Population 2016'!AS95/'Population 2016'!AS$5","v":5.8621555983585959E-4},{"$f":"'Population 2016'!AT95/'Population 2016'!AT$5","v":0},{"$f":"'Population 2016'!AU95/'Population 2016'!AU$5","v":0},{"$f":"'Population 2016'!AV95/'Population 2016'!AV$5","v":2.3967902016682504E-3},{"$f":"'Population 2016'!AW95/'Population 2016'!AW$5","v":2.2385441454634207E-3},{"$f":"'Population 2016'!AX95/'Population 2016'!AX$5","v":1.1372784543235749E-3},{"$f":"'Population 2016'!AY95/'Population 2016'!AY$5","v":1.9583244086778251E-3},{"$f":"'Population 2016'!AZ95/'Population 2016'!AZ$5","v":1.5963780913646013E-3},{"$f":"'Population 2016'!BA95/'Population 2016'!BA$5","v":3.5899373785359535E-3},{"$f":"'Population 2016'!BB95/'Population 2016'!BB$5","v":1.7676750239948075E-3},{"$f":"'Population 2016'!BC95/'Population 2016'!BC$5","v":0},93]
[null,"Male 85-89",{"$f":"'Population 2016'!C96/'Population 2016'!C$5","v":3.1688755091922947E-4},{"$f":"'Population 2016'!D96/'Population 2016'!D$5","v":2.0294787907240594E-4},{"$f":"'Population 2016'!E96/'Population 2016'!E$5","v":9.8444114213923754E-5},{"$f":"'Population 2016'!F96/'Population 2016'!F$5","v":3.8114859644604689E-4},{"$f":"'Population 2016'!G96/'Population 2016'!G$5","v":5.277973258268825E-4},{"$f":"'Population 2016'!H96/'Population 2016'!H$5","v":1.8319590938125176E-3},{"$f":"'Population 2016'!I96/'Population 2016'!I$5","v":3.9778912988861902E-4},{"$f":"'Population 2016'!J96/'Population 2016'!J$5","v":8.6247646849058328E-4},{"$f":"'Population 2016'!K96/'Population 2016'!K$5","v":1.2994376978689222E-3},{"$f":"'Population 2016'!L96/'Population 2016'!L$5","v":5.3214302733785518E-4},{"$f":"'Population 2016'!M96/'Population 2016'!M$5","v":5.3214302733785518E-4},{"$f":"'Population 2016'!N96/'Population 2016'!N$5","v":1.8003391710402585E-3},{"$f":"'Population 2016'!O96/'Population 2016'!O$5","v":2.0606096630705066E-3},{"$f":"'Population 2016'!P96/'Population 2016'!P$5","v":2.5921334385213568E-4},{"$f":"'Population 2016'!Q96/'Population 2016'!Q$5","v":1.1750743234509583E-4},{"$f":"'Population 2016'!R96/'Population 2016'!R$5","v":3.193697769734391E-4},{"$f":"'Population 2016'!S96/'Population 2016'!S$5","v":6.9641693926079181E-4},{"$f":"'Population 2016'!T96/'Population 2016'!T$5","v":5.4443167382493493E-4},{"$f":"'Population 2016'!U96/'Population 2016'!U$5","v":0},{"$f":"'Population 2016'!V96/'Population 2016'!V$5","v":7.9376588485815256E-4},{"$f":"'Population 2016'!W96/'Population 2016'!W$5","v":1.1341425947352251E-3},{"$f":"'Population 2016'!X96/'Population 2016'!X$5","v":1.1341425947352251E-3},{"$f":"'Population 2016'!Y96/'Population 2016'!Y$5","v":8.2669591898379999E-4},{"$f":"'Population 2016'!Z96/'Population 2016'!Z$5","v":2.0964685249030648E-3},{"$f":"'Population 2016'!AA96/'Population 2016'!AA$5","v":1.5519975657024483E-3},{"$f":"'Population 2016'!AB96/'Population 2016'!AB$5","v":1.7809074439884139E-4},{"$f":"'Population 2016'!AC96/'Population 2016'!AC$5","v":1.6724552719058544E-3},{"$f":"'Population 2016'!AD96/'Population 2016'!AD$5","v":3.8706315828650119E-4},{"$f":"'Population 2016'!AE96/'Population 2016'!AE$5","v":3.3367899054405077E-4},{"$f":"'Population 2016'!AF96/'Population 2016'!AF$5","v":2.1264081798850836E-3},{"$f":"'Population 2016'!AG96/'Population 2016'!AG$5","v":3.3367899054405077E-4},{"$f":"'Population 2016'!AH96/'Population 2016'!AH$5","v":1.3356492016755989E-3},{"$f":"'Population 2016'!AI96/'Population 2016'!AI$5","v":5.5232303788607922E-4},{"$f":"'Population 2016'!AJ96/'Population 2016'!AJ$5","v":7.8074896132504252E-4},{"$f":"'Population 2016'!AK96/'Population 2016'!AK$5","v":5.0287266007065362E-5},{"$f":"'Population 2016'!AL96/'Population 2016'!AL$5","v":2.2259271740479947E-3},{"$f":"'Population 2016'!AM96/'Population 2016'!AM$5","v":1.5176155687798589E-3},{"$f":"'Population 2016'!AN96/'Population 2016'!AN$5","v":0},{"$f":"'Population 2016'!AO96/'Population 2016'!AO$5","v":0},{"$f":"'Population 2016'!AP96/'Population 2016'!AP$5","v":2.5363410110489353E-4},{"$f":"'Population 2016'!AQ96/'Population 2016'!AQ$5","v":1.5481997040609416E-3},{"$f":"'Population 2016'!AR96/'Population 2016'!AR$5","v":9.9113724143047241E-4},{"$f":"'Population 2016'!AS96/'Population 2016'!AS$5","v":3.9778912988861902E-4},{"$f":"'Population 2016'!AT96/'Population 2016'!AT$5","v":0},{"$f":"'Population 2016'!AU96/'Population 2016'!AU$5","v":0},{"$f":"'Population 2016'!AV96/'Population 2016'!AV$5","v":1.1192059972547777E-3},{"$f":"'Population 2016'!AW96/'Population 2016'!AW$5","v":1.1440600402709135E-3},{"$f":"'Population 2016'!AX96/'Population 2016'!AX$5","v":6.2614207035792326E-4},{"$f":"'Population 2016'!AY96/'Population 2016'!AY$5","v":9.7916220433891255E-4},{"$f":"'Population 2016'!AZ96/'Population 2016'!AZ$5","v":8.4277257796365435E-4},{"$f":"'Population 2016'!BA96/'Population 2016'!BA$5","v":1.6195206218959188E-3},{"$f":"'Population 2016'!BB96/'Population 2016'!BB$5","v":7.1811797849789057E-4},{"$f":"'Population 2016'!BC96/'Population 2016'!BC$5","v":0},94]
[null,"Male 90+",{"$f":"'Population 2016'!C97/'Population 2016'!C$5","v":1.2777723827388284E-4},{"$f":"'Population 2016'!D97/'Population 2016'!D$5","v":9.780620678188238E-5},{"$f":"'Population 2016'!E97/'Population 2016'!E$5","v":7.0317224438516964E-5},{"$f":"'Population 2016'!F97/'Population 2016'!F$5","v":1.1331444759206799E-4},{"$f":"'Population 2016'!G97/'Population 2016'!G$5","v":1.623991771775023E-4},{"$f":"'Population 2016'!H97/'Population 2016'!H$5","v":6.9711717729148903E-4},{"$f":"'Population 2016'!I97/'Population 2016'!I$5","v":1.465538899589649E-4},{"$f":"'Population 2016'!J97/'Population 2016'!J$5","v":3.7318693348150234E-4},{"$f":"'Population 2016'!K97/'Population 2016'!K$5","v":6.8515805887634082E-4},{"$f":"'Population 2016'!L97/'Population 2016'!L$5","v":2.0650326434006321E-4},{"$f":"'Population 2016'!M97/'Population 2016'!M$5","v":2.0650326434006321E-4},{"$f":"'Population 2016'!N97/'Population 2016'!N$5","v":7.3138778823510502E-4},{"$f":"'Population 2016'!O97/'Population 2016'!O$5","v":8.0244895533034151E-4},{"$f":"'Population 2016'!P97/'Population 2016'!P$5","v":1.0143130846387918E-4},{"$f":"'Population 2016'!Q97/'Population 2016'!Q$5","v":8.2255202641567078E-5},{"$f":"'Population 2016'!R97/'Population 2016'!R$5","v":1.4637781444615957E-4},{"$f":"'Population 2016'!S97/'Population 2016'!S$5","v":3.2746601326458019E-4},{"$f":"'Population 2016'!T97/'Population 2016'!T$5","v":2.5592941931941389E-4},{"$f":"'Population 2016'!U97/'Population 2016'!U$5","v":0},{"$f":"'Population 2016'!V97/'Population 2016'!V$5","v":3.9688294242907628E-4},{"$f":"'Population 2016'!W97/'Population 2016'!W$5","v":5.0987390426136922E-4},{"$f":"'Population 2016'!X97/'Population 2016'!X$5","v":5.0987390426136922E-4},{"$f":"'Population 2016'!Y97/'Population 2016'!Y$5","v":3.8552646221840669E-4},{"$f":"'Population 2016'!Z97/'Population 2016'!Z$5","v":8.9820996819484967E-4},{"$f":"'Population 2016'!AA97/'Population 2016'!AA$5","v":6.7833455247525679E-4},{"$f":"'Population 2016'!AB97/'Population 2016'!AB$5","v":8.5974842123578594E-5},{"$f":"'Population 2016'!AC97/'Population 2016'!AC$5","v":7.374524482800706E-4},{"$f":"'Population 2016'!AD97/'Population 2016'!AD$5","v":1.2281811753321671E-4},{"$f":"'Population 2016'!AE97/'Population 2016'!AE$5","v":1.0780398156038564E-4},{"$f":"'Population 2016'!AF97/'Population 2016'!AF$5","v":9.5009727186354796E-4},{"$f":"'Population 2016'!AG97/'Population 2016'!AG$5","v":1.0780398156038564E-4},{"$f":"'Population 2016'!AH97/'Population 2016'!AH$5","v":5.7215570808912995E-4},{"$f":"'Population 2016'!AI97/'Population 2016'!AI$5","v":2.7479438271064835E-4},{"$f":"'Population 2016'!AJ97/'Population 2016'!AJ$5","v":4.1825837213841564E-4},{"$f":"'Population 2016'!AK97/'Population 2016'!AK$5","v":2.5143633003532681E-5},{"$f":"'Population 2016'!AL97/'Population 2016'!AL$5","v":8.1587768929249212E-4},{"$f":"'Population 2016'!AM97/'Population 2016'!AM$5","v":6.8093490914227558E-4},{"$f":"'Population 2016'!AN97/'Population 2016'!AN$5","v":0},{"$f":"'Population 2016'!AO97/'Population 2016'!AO$5","v":0},{"$f":"'Population 2016'!AP97/'Population 2016'!AP$5","v":7.1334590935751306E-5},{"$f":"'Population 2016'!AQ97/'Population 2016'!AQ$5","v":6.4394146983065711E-4},{"$f":"'Population 2016'!AR97/'Population 2016'!AR$5","v":4.2684175198489212E-4},{"$f":"'Population 2016'!AS97/'Population 2016'!AS$5","v":1.465538899589649E-4},{"$f":"'Population 2016'!AT97/'Population 2016'!AT$5","v":0},{"$f":"'Population 2016'!AU97/'Population 2016'!AU$5","v":0},{"$f":"'Population 2016'!AV97/'Population 2016'!AV$5","v":4.434589800443459E-4},{"$f":"'Population 2016'!AW97/'Population 2016'!AW$5","v":4.5762401610836536E-4},{"$f":"'Population 2016'!AX97/'Population 2016'!AX$5","v":2.0445455358626064E-4},{"$f":"'Population 2016'!AY97/'Population 2016'!AY$5","v":4.0849423212264009E-4},{"$f":"'Population 2016'!AZ97/'Population 2016'!AZ$5","v":3.1927561827292027E-4},{"$f":"'Population 2016'!BA97/'Population 2016'!BA$5","v":9.7171237313755125E-4},{"$f":"'Population 2016'!BB97/'Population 2016'!BB$5","v":3.7286895037390468E-4},{"$f":"'Population 2016'!BC97/'Population 2016'!BC$5","v":0},95]
["SIMD Q2","Female 0-4",{"$f":"'Population 2016'!C98/'Population 2016'!C$5","v":0},{"$f":"'Population 2016'!D98/'Population 2016'!D$5","v":0},{"$f":"'Population 2016'!E98/'Population 2016'!E$5","v":0},{"$f":"'Population 2016'!F98/'Population 2016'!F$5","v":0},{"$f":"'Population 2016'!G98/'Population 2016'!G$5","v":0},{"$f":"'Population 2016'!H98/'Population 2016'!H$5","v":0},{"$f":"'Population 2016'!I98/'Population 2016'!I$5","v":0},{"$f":"'Population 2016'!J98/'Population 2016'!J$5","v":0},{"$f":"'Population 2016'!K98/'Population 2016'!K$5","v":0},{"$f":"'Population 2016'!L98/'Population 2016'!L$5","v":0},{"$f":"'Population 2016'!M98/'Population 2016'!M$5","v":0},{"$f":"'Population 2016'!N98/'Population 2016'!N$5","v":0},{"$f":"'Population 2016'!O98/'Population 2016'!O$5","v":0},{"$f":"'Population 2016'!P98/'Population 2016'!P$5","v":0},{"$f":"'Population 2016'!Q98/'Population 2016'!Q$5","v":0},{"$f":"'Population 2016'!R98/'Population 2016'!R$5","v":0},{"$f":"'Population 2016'!S98/'Population 2016'!S$5","v":0},{"$f":"'Population 2016'!T98/'Population 2016'!T$5","v":0},{"$f":"'Population 2016'!U98/'Population 2016'!U$5","v":0},{"$f":"'Population 2016'!V98/'Population 2016'!V$5","v":0},{"$f":"'Population 2016'!W98/'Population 2016'!W$5","v":0},{"$f":"'Population 2016'!X98/'Population 2016'!X$5","v":0},{"$f":"'Population 2016'!Y98/'Population 2016'!Y$5","v":0},{"$f":"'Population 2016'!Z98/'Population 2016'!Z$5","v":0},{"$f":"'Population 2016'!AA98/'Population 2016'!AA$5","v":0},{"$f":"'Population 2016'!AB98/'Population 2016'!AB$5","v":0},{"$f":"'Population 2016'!AC98/'Population 2016'!AC$5","v":0},{"$f":"'Population 2016'!AD98/'Population 2016'!AD$5","v":0},{"$f":"'Population 2016'!AE98/'Population 2016'!AE$5","v":0},{"$f":"'Population 2016'!AF98/'Population 2016'!AF$5","v":0},{"$f":"'Population 2016'!AG98/'Population 2016'!AG$5","v":0},{"$f":"'Population 2016'!AH98/'Population 2016'!AH$5","v":0},{"$f":"'Population 2016'!AI98/'Population 2016'!AI$5","v":0},{"$f":"'Population 2016'!AJ98/'Population 2016'!AJ$5","v":0},{"$f":"'Population 2016'!AK98/'Population 2016'!AK$5","v":0},{"$f":"'Population 2016'!AL98/'Population 2016'!AL$5","v":0},{"$f":"'Population 2016'!AM98/'Population 2016'!AM$5","v":0},{"$f":"'Population 2016'!AN98/'Population 2016'!AN$5","v":0},{"$f":"'Population 2016'!AO98/'Population 2016'!AO$5","v":0},{"$f":"'Population 2016'!AP98/'Population 2016'!AP$5","v":0},{"$f":"'Population 2016'!AQ98/'Population 2016'!AQ$5","v":0},{"$f":"'Population 2016'!AR98/'Population 2016'!AR$5","v":0},{"$f":"'Population 2016'!AS98/'Population 2016'!AS$5","v":0},{"$f":"'Population 2016'!AT98/'Population 2016'!AT$5","v":0},{"$f":"'Population 2016'!AU98/'Population 2016'!AU$5","v":0},{"$f":"'Population 2016'!AV98/'Population 2016'!AV$5","v":0},{"$f":"'Population 2016'!AW98/'Population 2016'!AW$5","v":0},{"$f":"'Population 2016'!AX98/'Population 2016'!AX$5","v":0},{"$f":"'Population 2016'!AY98/'Population 2016'!AY$5","v":0},{"$f":"'Population 2016'!AZ98/'Population 2016'!AZ$5","v":0},{"$f":"'Population 2016'!BA98/'Population 2016'!BA$5","v":0},{"$f":"'Population 2016'!BB98/'Population 2016'!BB$5","v":0},{"$f":"'Population 2016'!BC98/'Population 2016'!BC$5","v":0},96]
[null,"Female 5-9",{"$f":"'Population 2016'!C99/'Population 2016'!C$5","v":0},{"$f":"'Population 2016'!D99/'Population 2016'!D$5","v":0},{"$f":"'Population 2016'!E99/'Population 2016'!E$5","v":0},{"$f":"'Population 2016'!F99/'Population 2016'!F$5","v":0},{"$f":"'Population 2016'!G99/'Population 2016'!G$5","v":0},{"$f":"'Population 2016'!H99/'Population 2016'!H$5","v":0},{"$f":"'Population 2016'!I99/'Population 2016'!I$5","v":0},{"$f":"'Population 2016'!J99/'Population 2016'!J$5","v":0},{"$f":"'Population 2016'!K99/'Population 2016'!K$5","v":0},{"$f":"'Population 2016'!L99/'Population 2016'!L$5","v":0},{"$f":"'Population 2016'!M99/'Population 2016'!M$5","v":0},{"$f":"'Population 2016'!N99/'Population 2016'!N$5","v":0},{"$f":"'Population 2016'!O99/'Population 2016'!O$5","v":0},{"$f":"'Population 2016'!P99/'Population 2016'!P$5","v":0},{"$f":"'Population 2016'!Q99/'Population 2016'!Q$5","v":0},{"$f":"'Population 2016'!R99/'Population 2016'!R$5","v":0},{"$f":"'Population 2016'!S99/'Population 2016'!S$5","v":0},{"$f":"'Population 2016'!T99/'Population 2016'!T$5","v":0},{"$f":"'Population 2016'!U99/'Population 2016'!U$5","v":0},{"$f":"'Population 2016'!V99/'Population 2016'!V$5","v":0},{"$f":"'Population 2016'!W99/'Population 2016'!W$5","v":0},{"$f":"'Population 2016'!X99/'Population 2016'!X$5","v":0},{"$f":"'Population 2016'!Y99/'Population 2016'!Y$5","v":0},{"$f":"'Population 2016'!Z99/'Population 2016'!Z$5","v":0},{"$f":"'Population 2016'!AA99/'Population 2016'!AA$5","v":0},{"$f":"'Population 2016'!AB99/'Population 2016'!AB$5","v":0},{"$f":"'Population 2016'!AC99/'Population 2016'!AC$5","v":0},{"$f":"'Population 2016'!AD99/'Population 2016'!AD$5","v":0},{"$f":"'Population 2016'!AE99/'Population 2016'!AE$5","v":0},{"$f":"'Population 2016'!AF99/'Population 2016'!AF$5","v":0},{"$f":"'Population 2016'!AG99/'Population 2016'!AG$5","v":0},{"$f":"'Population 2016'!AH99/'Population 2016'!AH$5","v":0},{"$f":"'Population 2016'!AI99/'Population 2016'!AI$5","v":0},{"$f":"'Population 2016'!AJ99/'Population 2016'!AJ$5","v":0},{"$f":"'Population 2016'!AK99/'Population 2016'!AK$5","v":0},{"$f":"'Population 2016'!AL99/'Population 2016'!AL$5","v":0},{"$f":"'Population 2016'!AM99/'Population 2016'!AM$5","v":0},{"$f":"'Population 2016'!AN99/'Population 2016'!AN$5","v":0},{"$f":"'Population 2016'!AO99/'Population 2016'!AO$5","v":0},{"$f":"'Population 2016'!AP99/'Population 2016'!AP$5","v":0},{"$f":"'Population 2016'!AQ99/'Population 2016'!AQ$5","v":0},{"$f":"'Population 2016'!AR99/'Population 2016'!AR$5","v":0},{"$f":"'Population 2016'!AS99/'Population 2016'!AS$5","v":0},{"$f":"'Population 2016'!AT99/'Population 2016'!AT$5","v":0},{"$f":"'Population 2016'!AU99/'Population 2016'!AU$5","v":0},{"$f":"'Population 2016'!AV99/'Population 2016'!AV$5","v":0},{"$f":"'Population 2016'!AW99/'Population 2016'!AW$5","v":0},{"$f":"'Population 2016'!AX99/'Population 2016'!AX$5","v":0},{"$f":"'Population 2016'!AY99/'Population 2016'!AY$5","v":0},{"$f":"'Population 2016'!AZ99/'Population 2016'!AZ$5","v":0},{"$f":"'Population 2016'!BA99/'Population 2016'!BA$5","v":0},{"$f":"'Population 2016'!BB99/'Population 2016'!BB$5","v":0},{"$f":"'Population 2016'!BC99/'Population 2016'!BC$5","v":0},97]
[null,"Female 10-15",{"$f":"'Population 2016'!C100/'Population 2016'!C$5","v":0},{"$f":"'Population 2016'!D100/'Population 2016'!D$5","v":0},{"$f":"'Population 2016'!E100/'Population 2016'!E$5","v":0},{"$f":"'Population 2016'!F100/'Population 2016'!F$5","v":0},{"$f":"'Population 2016'!G100/'Population 2016'!G$5","v":0},{"$f":"'Population 2016'!H100/'Population 2016'!H$5","v":0},{"$f":"'Population 2016'!I100/'Population 2016'!I$5","v":0},{"$f":"'Population 2016'!J100/'Population 2016'!J$5","v":0},{"$f":"'Population 2016'!K100/'Population 2016'!K$5","v":0},{"$f":"'Population 2016'!L100/'Population 2016'!L$5","v":0},{"$f":"'Population 2016'!M100/'Population 2016'!M$5","v":0},{"$f":"'Population 2016'!N100/'Population 2016'!N$5","v":0},{"$f":"'Population 2016'!O100/'Population 2016'!O$5","v":0},{"$f":"'Population 2016'!P100/'Population 2016'!P$5","v":0},{"$f":"'Population 2016'!Q100/'Population 2016'!Q$5","v":0},{"$f":"'Population 2016'!R100/'Population 2016'!R$5","v":0},{"$f":"'Population 2016'!S100/'Population 2016'!S$5","v":0},{"$f":"'Population 2016'!T100/'Population 2016'!T$5","v":0},{"$f":"'Population 2016'!U100/'Population 2016'!U$5","v":0},{"$f":"'Population 2016'!V100/'Population 2016'!V$5","v":0},{"$f":"'Population 2016'!W100/'Population 2016'!W$5","v":0},{"$f":"'Population 2016'!X100/'Population 2016'!X$5","v":0},{"$f":"'Population 2016'!Y100/'Population 2016'!Y$5","v":0},{"$f":"'Population 2016'!Z100/'Population 2016'!Z$5","v":0},{"$f":"'Population 2016'!AA100/'Population 2016'!AA$5","v":0},{"$f":"'Population 2016'!AB100/'Population 2016'!AB$5","v":0},{"$f":"'Population 2016'!AC100/'Population 2016'!AC$5","v":0},{"$f":"'Population 2016'!AD100/'Population 2016'!AD$5","v":0},{"$f":"'Population 2016'!AE100/'Population 2016'!AE$5","v":0},{"$f":"'Population 2016'!AF100/'Population 2016'!AF$5","v":0},{"$f":"'Population 2016'!AG100/'Population 2016'!AG$5","v":0},{"$f":"'Population 2016'!AH100/'Population 2016'!AH$5","v":0},{"$f":"'Population 2016'!AI100/'Population 2016'!AI$5","v":0},{"$f":"'Population 2016'!AJ100/'Population 2016'!AJ$5","v":0},{"$f":"'Population 2016'!AK100/'Population 2016'!AK$5","v":0},{"$f":"'Population 2016'!AL100/'Population 2016'!AL$5","v":0},{"$f":"'Population 2016'!AM100/'Population 2016'!AM$5","v":0},{"$f":"'Population 2016'!AN100/'Population 2016'!AN$5","v":0},{"$f":"'Population 2016'!AO100/'Population 2016'!AO$5","v":0},{"$f":"'Population 2016'!AP100/'Population 2016'!AP$5","v":0},{"$f":"'Population 2016'!AQ100/'Population 2016'!AQ$5","v":0},{"$f":"'Population 2016'!AR100/'Population 2016'!AR$5","v":0},{"$f":"'Population 2016'!AS100/'Population 2016'!AS$5","v":0},{"$f":"'Population 2016'!AT100/'Population 2016'!AT$5","v":0},{"$f":"'Population 2016'!AU100/'Population 2016'!AU$5","v":0},{"$f":"'Population 2016'!AV100/'Population 2016'!AV$5","v":0},{"$f":"'Population 2016'!AW100/'Population 2016'!AW$5","v":0},{"$f":"'Population 2016'!AX100/'Population 2016'!AX$5","v":0},{"$f":"'Population 2016'!AY100/'Population 2016'!AY$5","v":0},{"$f":"'Population 2016'!AZ100/'Population 2016'!AZ$5","v":0},{"$f":"'Population 2016'!BA100/'Population 2016'!BA$5","v":0},{"$f":"'Population 2016'!BB100/'Population 2016'!BB$5","v":0},{"$f":"'Population 2016'!BC100/'Population 2016'!BC$5","v":0},98]
[null,"Female 16-19",{"$f":"'Population 2016'!C101/'Population 2016'!C$5","v":4.9015348601861462E-3},{"$f":"'Population 2016'!D101/'Population 2016'!D$5","v":3.2813982375321537E-3},{"$f":"'Population 2016'!E101/'Population 2016'!E$5","v":1.7954331306634665E-3},{"$f":"'Population 2016'!F101/'Population 2016'!F$5","v":3.9866082925573013E-3},{"$f":"'Population 2016'!G101/'Population 2016'!G$5","v":3.8028473989065122E-3},{"$f":"'Population 2016'!H101/'Population 2016'!H$5","v":5.9887229137552565E-3},{"$f":"'Population 2016'!I101/'Population 2016'!I$5","v":3.7894648689389496E-3},{"$f":"'Population 2016'!J101/'Population 2016'!J$5","v":5.3573057562011231E-3},{"$f":"'Population 2016'!K101/'Population 2016'!K$5","v":7.7730000472522797E-3},{"$f":"'Population 2016'!L101/'Population 2016'!L$5","v":7.0211109875621498E-3},{"$f":"'Population 2016'!M101/'Population 2016'!M$5","v":7.0211109875621498E-3},{"$f":"'Population 2016'!N101/'Population 2016'!N$5","v":5.3688685993521995E-3},{"$f":"'Population 2016'!O101/'Population 2016'!O$5","v":6.8356762861473538E-3},{"$f":"'Population 2016'!P101/'Population 2016'!P$5","v":4.0459821931702923E-3},{"$f":"'Population 2016'!Q101/'Population 2016'!Q$5","v":6.4864102654492899E-3},{"$f":"'Population 2016'!R101/'Population 2016'!R$5","v":2.8610209187203916E-3},{"$f":"'Population 2016'!S101/'Population 2016'!S$5","v":5.2191550847263141E-3},{"$f":"'Population 2016'!T101/'Population 2016'!T$5","v":3.7365695220634427E-3},{"$f":"'Population 2016'!U101/'Population 2016'!U$5","v":5.2228566370114641E-3},{"$f":"'Population 2016'!V101/'Population 2016'!V$5","v":7.0904664137809966E-3},{"$f":"'Population 2016'!W101/'Population 2016'!W$5","v":5.0889337752240502E-3},{"$f":"'Population 2016'!X101/'Population 2016'!X$5","v":5.0889337752240502E-3},{"$f":"'Population 2016'!Y101/'Population 2016'!Y$5","v":6.2598368865359848E-3},{"$f":"'Population 2016'!Z101/'Population 2016'!Z$5","v":4.6478494259392976E-3},{"$f":"'Population 2016'!AA101/'Population 2016'!AA$5","v":5.6140322903192163E-3},{"$f":"'Population 2016'!AB101/'Population 2016'!AB$5","v":3.3079844017072147E-3},{"$f":"'Population 2016'!AC101/'Population 2016'!AC$5","v":4.6936314309887241E-3},{"$f":"'Population 2016'!AD101/'Population 2016'!AD$5","v":4.6075402880643122E-3},{"$f":"'Population 2016'!AE101/'Population 2016'!AE$5","v":4.9127814453947165E-3},{"$f":"'Population 2016'!AF101/'Population 2016'!AF$5","v":3.4836899968330092E-3},{"$f":"'Population 2016'!AG101/'Population 2016'!AG$5","v":4.9127814453947165E-3},{"$f":"'Population 2016'!AH101/'Population 2016'!AH$5","v":7.2671205520931049E-3},{"$f":"'Population 2016'!AI101/'Population 2016'!AI$5","v":5.4603421121707935E-3},{"$f":"'Population 2016'!AJ101/'Population 2016'!AJ$5","v":1.0595878760839863E-2},{"$f":"'Population 2016'!AK101/'Population 2016'!AK$5","v":3.4446777214839773E-3},{"$f":"'Population 2016'!AL101/'Population 2016'!AL$5","v":4.9750802575335663E-3},{"$f":"'Population 2016'!AM101/'Population 2016'!AM$5","v":7.9538992578533883E-3},{"$f":"'Population 2016'!AN101/'Population 2016'!AN$5","v":2.6726300861786845E-3},{"$f":"'Population 2016'!AO101/'Population 2016'!AO$5","v":2.6726300861786845E-3},{"$f":"'Population 2016'!AP101/'Population 2016'!AP$5","v":2.8692357687491081E-3},{"$f":"'Population 2016'!AQ101/'Population 2016'!AQ$5","v":5.1720830821504905E-3},{"$f":"'Population 2016'!AR101/'Population 2016'!AR$5","v":5.15083932549201E-3},{"$f":"'Population 2016'!AS101/'Population 2016'!AS$5","v":3.7894648689389496E-3},{"$f":"'Population 2016'!AT101/'Population 2016'!AT$5","v":7.3812411029683129E-4},{"$f":"'Population 2016'!AU101/'Population 2016'!AU$5","v":7.3812411029683129E-4},{"$f":"'Population 2016'!AV101/'Population 2016'!AV$5","v":6.2928940977721465E-3},{"$f":"'Population 2016'!AW101/'Population 2016'!AW$5","v":6.5440234303496244E-3},{"$f":"'Population 2016'!AX101/'Population 2016'!AX$5","v":4.0507558429277888E-3},{"$f":"'Population 2016'!AY101/'Population 2016'!AY$5","v":4.5500443682873837E-3},{"$f":"'Population 2016'!AZ101/'Population 2016'!AZ$5","v":4.0757977575921443E-3},{"$f":"'Population 2016'!BA101/'Population 2016'!BA$5","v":7.7871949902828764E-3},{"$f":"'Population 2016'!BB101/'Population 2016'!BB$5","v":7.4297590852281754E-3},{"$f":"'Population 2016'!BC101/'Population 2016'!BC$5","v":5.2228566370114641E-3},99]
[null,"Female 20-24",{"$f":"'Population 2016'!C102/'Population 2016'!C$5","v":1.1208619341385003E-2},{"$f":"'Population 2016'!D102/'Population 2016'!D$5","v":6.8170926126972014E-3},{"$f":"'Population 2016'!E102/'Population 2016'!E$5","v":2.7892499027278397E-3},{"$f":"'Population 2016'!F102/'Population 2016'!F$5","v":7.7568890033479273E-3},{"$f":"'Population 2016'!G102/'Population 2016'!G$5","v":4.9396416391490287E-3},{"$f":"'Population 2016'!H102/'Population 2016'!H$5","v":8.1124985003874668E-3},{"$f":"'Population 2016'!I102/'Population 2016'!I$5","v":5.7888786533791137E-3},{"$f":"'Population 2016'!J102/'Population 2016'!J$5","v":8.5584203411757879E-3},{"$f":"'Population 2016'!K102/'Population 2016'!K$5","v":8.8834286254311778E-3},{"$f":"'Population 2016'!L102/'Population 2016'!L$5","v":8.7763887344526875E-3},{"$f":"'Population 2016'!M102/'Population 2016'!M$5","v":8.7763887344526875E-3},{"$f":"'Population 2016'!N102/'Population 2016'!N$5","v":1.3028347304715441E-2},{"$f":"'Population 2016'!O102/'Population 2016'!O$5","v":8.8566588403126579E-3},{"$f":"'Population 2016'!P102/'Population 2016'!P$5","v":5.7928547278259888E-3},{"$f":"'Population 2016'!Q102/'Population 2016'!Q$5","v":1.0916440464859402E-2},{"$f":"'Population 2016'!R102/'Population 2016'!R$5","v":3.6328312130728697E-3},{"$f":"'Population 2016'!S102/'Population 2016'!S$5","v":8.8971897943584052E-3},{"$f":"'Population 2016'!T102/'Population 2016'!T$5","v":9.5484939716988602E-3},{"$f":"'Population 2016'!U102/'Population 2016'!U$5","v":6.3736555570309385E-3},{"$f":"'Population 2016'!V102/'Population 2016'!V$5","v":9.9449706535593534E-3},{"$f":"'Population 2016'!W102/'Population 2016'!W$5","v":6.8832977075284846E-3},{"$f":"'Population 2016'!X102/'Population 2016'!X$5","v":6.8832977075284846E-3},{"$f":"'Population 2016'!Y102/'Population 2016'!Y$5","v":9.2804565905152542E-3},{"$f":"'Population 2016'!Z102/'Population 2016'!Z$5","v":8.8427222730906741E-3},{"$f":"'Population 2016'!AA102/'Population 2016'!AA$5","v":8.4589182390939956E-3},{"$f":"'Population 2016'!AB102/'Population 2016'!AB$5","v":6.8452350490773054E-3},{"$f":"'Population 2016'!AC102/'Population 2016'!AC$5","v":7.6393040434734943E-3},{"$f":"'Population 2016'!AD102/'Population 2016'!AD$5","v":5.928765491830734E-3},{"$f":"'Population 2016'!AE102/'Population 2016'!AE$5","v":6.3039661598168362E-3},{"$f":"'Population 2016'!AF102/'Population 2016'!AF$5","v":4.3583827233105608E-3},{"$f":"'Population 2016'!AG102/'Population 2016'!AG$5","v":6.3039661598168362E-3},{"$f":"'Population 2016'!AH102/'Population 2016'!AH$5","v":9.9309883618327564E-3},{"$f":"'Population 2016'!AI102/'Population 2016'!AI$5","v":1.0145517980575728E-2},{"$f":"'Population 2016'!AJ102/'Population 2016'!AJ$5","v":1.328667428826367E-2},{"$f":"'Population 2016'!AK102/'Population 2016'!AK$5","v":6.9899299749820853E-3},{"$f":"'Population 2016'!AL102/'Population 2016'!AL$5","v":6.7575956439225983E-3},{"$f":"'Population 2016'!AM102/'Population 2016'!AM$5","v":1.0145205747380393E-2},{"$f":"'Population 2016'!AN102/'Population 2016'!AN$5","v":4.799825460892331E-3},{"$f":"'Population 2016'!AO102/'Population 2016'!AO$5","v":4.799825460892331E-3},{"$f":"'Population 2016'!AP102/'Population 2016'!AP$5","v":4.5654138198880836E-3},{"$f":"'Population 2016'!AQ102/'Population 2016'!AQ$5","v":6.5764235216747959E-3},{"$f":"'Population 2016'!AR102/'Population 2016'!AR$5","v":8.2202681662267921E-3},{"$f":"'Population 2016'!AS102/'Population 2016'!AS$5","v":5.7888786533791137E-3},{"$f":"'Population 2016'!AT102/'Population 2016'!AT$5","v":1.3708019191226869E-3},{"$f":"'Population 2016'!AU102/'Population 2016'!AU$5","v":1.3708019191226869E-3},{"$f":"'Population 2016'!AV102/'Population 2016'!AV$5","v":8.9325308837503968E-3},{"$f":"'Population 2016'!AW102/'Population 2016'!AW$5","v":9.7054426749649154E-3},{"$f":"'Population 2016'!AX102/'Population 2016'!AX$5","v":8.3826366970366877E-3},{"$f":"'Population 2016'!AY102/'Population 2016'!AY$5","v":7.7353814142774088E-3},{"$f":"'Population 2016'!AZ102/'Population 2016'!AZ$5","v":8.4852529180640974E-3},{"$f":"'Population 2016'!BA102/'Population 2016'!BA$5","v":1.0553876052688404E-2},{"$f":"'Population 2016'!BB102/'Population 2016'!BB$5","v":9.9086471071583929E-3},{"$f":"'Population 2016'!BC102/'Population 2016'!BC$5","v":6.3736555570309385E-3},100]
[null,"Female 25-29",{"$f":"'Population 2016'!C103/'Population 2016'!C$5","v":1.2762390558795418E-2},{"$f":"'Population 2016'!D103/'Population 2016'!D$5","v":7.7315806461078019E-3},{"$f":"'Population 2016'!E103/'Population 2016'!E$5","v":3.1173969501075852E-3},{"$f":"'Population 2016'!F103/'Population 2016'!F$5","v":7.9938192119495231E-3},{"$f":"'Population 2016'!G103/'Population 2016'!G$5","v":5.7922373193309154E-3},{"$f":"'Population 2016'!H103/'Population 2016'!H$5","v":8.7188283243572733E-3},{"$f":"'Population 2016'!I103/'Population 2016'!I$5","v":5.8621555983585961E-3},{"$f":"'Population 2016'!J103/'Population 2016'!J$5","v":8.4506107826144653E-3},{"$f":"'Population 2016'!K103/'Population 2016'!K$5","v":1.0253744743183859E-2},{"$f":"'Population 2016'!L103/'Population 2016'!L$5","v":8.5142884374056829E-3},{"$f":"'Population 2016'!M103/'Population 2016'!M$5","v":8.5142884374056829E-3},{"$f":"'Population 2016'!N103/'Population 2016'!N$5","v":1.2031730977889584E-2},{"$f":"'Population 2016'!O103/'Population 2016'!O$5","v":1.006528566192132E-2},{"$f":"'Population 2016'!P103/'Population 2016'!P$5","v":6.5817649047672719E-3},{"$f":"'Population 2016'!Q103/'Population 2016'!Q$5","v":1.0892938978390384E-2},{"$f":"'Population 2016'!R103/'Population 2016'!R$5","v":3.3799968063022304E-3},{"$f":"'Population 2016'!S103/'Population 2016'!S$5","v":9.8486948140328462E-3},{"$f":"'Population 2016'!T103/'Population 2016'!T$5","v":1.0802548126363987E-2},{"$f":"'Population 2016'!U103/'Population 2016'!U$5","v":6.9490550170406762E-3},{"$f":"'Population 2016'!V103/'Population 2016'!V$5","v":1.0792163088359881E-2},{"$f":"'Population 2016'!W103/'Population 2016'!W$5","v":7.8213349544708748E-3},{"$f":"'Population 2016'!X103/'Population 2016'!X$5","v":7.8213349544708748E-3},{"$f":"'Population 2016'!Y103/'Population 2016'!Y$5","v":9.6699575523441599E-3},{"$f":"'Population 2016'!Z103/'Population 2016'!Z$5","v":1.1506379420151263E-2},{"$f":"'Population 2016'!AA103/'Population 2016'!AA$5","v":9.7524710046858892E-3},{"$f":"'Population 2016'!AB103/'Population 2016'!AB$5","v":7.4859523249030226E-3},{"$f":"'Population 2016'!AC103/'Population 2016'!AC$5","v":9.3769199103886682E-3},{"$f":"'Population 2016'!AD103/'Population 2016'!AD$5","v":6.4274814842383418E-3},{"$f":"'Population 2016'!AE103/'Population 2016'!AE$5","v":6.6684462879495685E-3},{"$f":"'Population 2016'!AF103/'Population 2016'!AF$5","v":5.3838845405601047E-3},{"$f":"'Population 2016'!AG103/'Population 2016'!AG$5","v":6.6684462879495685E-3},{"$f":"'Population 2016'!AH103/'Population 2016'!AH$5","v":1.0426980485403527E-2},{"$f":"'Population 2016'!AI103/'Population 2016'!AI$5","v":1.1217352786770496E-2},{"$f":"'Population 2016'!AJ103/'Population 2016'!AJ$5","v":1.3955887683685135E-2},{"$f":"'Population 2016'!AK103/'Population 2016'!AK$5","v":6.2230491683743384E-3},{"$f":"'Population 2016'!AL103/'Population 2016'!AL$5","v":6.766463879675777E-3},{"$f":"'Population 2016'!AM103/'Population 2016'!AM$5","v":1.0985508401215541E-2},{"$f":"'Population 2016'!AN103/'Population 2016'!AN$5","v":5.454347114650376E-3},{"$f":"'Population 2016'!AO103/'Population 2016'!AO$5","v":5.454347114650376E-3},{"$f":"'Population 2016'!AP103/'Population 2016'!AP$5","v":5.0885341534169272E-3},{"$f":"'Population 2016'!AQ103/'Population 2016'!AQ$5","v":7.3573738148736776E-3},{"$f":"'Population 2016'!AR103/'Population 2016'!AR$5","v":9.0469955887820825E-3},{"$f":"'Population 2016'!AS103/'Population 2016'!AS$5","v":5.8621555983585961E-3},{"$f":"'Population 2016'!AT103/'Population 2016'!AT$5","v":1.2126324669162229E-3},{"$f":"'Population 2016'!AU103/'Population 2016'!AU$5","v":1.2126324669162229E-3},{"$f":"'Population 2016'!AV103/'Population 2016'!AV$5","v":9.6082779009608286E-3},{"$f":"'Population 2016'!AW103/'Population 2016'!AW$5","v":9.8389163463298551E-3},{"$f":"'Population 2016'!AX103/'Population 2016'!AX$5","v":7.4753696154976554E-3},{"$f":"'Population 2016'!AY103/'Population 2016'!AY$5","v":8.1209265322358549E-3},{"$f":"'Population 2016'!AZ103/'Population 2016'!AZ$5","v":8.3845804258158782E-3},{"$f":"'Population 2016'!BA103/'Population 2016'!BA$5","v":1.151209242064349E-2},{"$f":"'Population 2016'!BB103/'Population 2016'!BB$5","v":1.1282738239091856E-2},{"$f":"'Population 2016'!BC103/'Population 2016'!BC$5","v":6.9490550170406762E-3},101]
[null,"Female 30-34",{"$f":"'Population 2016'!C104/'Population 2016'!C$5","v":1.0871287432341952E-2},{"$f":"'Population 2016'!D104/'Population 2016'!D$5","v":6.7119509404066783E-3},{"$f":"'Population 2016'!E104/'Population 2016'!E$5","v":2.897069646866899E-3},{"$f":"'Population 2016'!F104/'Population 2016'!F$5","v":7.2727272727272727E-3},{"$f":"'Population 2016'!G104/'Population 2016'!G$5","v":4.8178422562659019E-3},{"$f":"'Population 2016'!H104/'Population 2016'!H$5","v":8.2875883960792825E-3},{"$f":"'Population 2016'!I104/'Population 2016'!I$5","v":4.961895988610669E-3},{"$f":"'Population 2016'!J104/'Population 2016'!J$5","v":7.0159143494522447E-3},{"$f":"'Population 2016'!K104/'Population 2016'!K$5","v":9.5213344043850109E-3},{"$f":"'Population 2016'!L104/'Population 2016'!L$5","v":8.6651946690388063E-3},{"$f":"'Population 2016'!M104/'Population 2016'!M$5","v":8.6651946690388063E-3},{"$f":"'Population 2016'!N104/'Population 2016'!N$5","v":8.8891746570112767E-3},{"$f":"'Population 2016'!O104/'Population 2016'!O$5","v":9.5699468006062941E-3},{"$f":"'Population 2016'!P104/'Population 2016'!P$5","v":5.8153950185957396E-3},{"$f":"'Population 2016'!Q104/'Population 2016'!Q$5","v":1.1198458302487632E-2},{"$f":"'Population 2016'!R104/'Population 2016'!R$5","v":3.2735402139777506E-3},{"$f":"'Population 2016'!S104/'Population 2016'!S$5","v":9.2246558076229859E-3},{"$f":"'Population 2016'!T104/'Population 2016'!T$5","v":9.0645547060766943E-3},{"$f":"'Population 2016'!U104/'Population 2016'!U$5","v":6.6392245385738947E-3},{"$f":"'Population 2016'!V104/'Population 2016'!V$5","v":1.1486708237610764E-2},{"$f":"'Population 2016'!W104/'Population 2016'!W$5","v":7.7494296602801695E-3},{"$f":"'Population 2016'!X104/'Population 2016'!X$5","v":7.7494296602801695E-3},{"$f":"'Population 2016'!Y104/'Population 2016'!Y$5","v":9.3440485842832387E-3},{"$f":"'Population 2016'!Z104/'Population 2016'!Z$5","v":9.5589672908322574E-3},{"$f":"'Population 2016'!AA104/'Population 2016'!AA$5","v":9.2515265849343296E-3},{"$f":"'Population 2016'!AB104/'Population 2016'!AB$5","v":6.7060376856391312E-3},{"$f":"'Population 2016'!AC104/'Population 2016'!AC$5","v":8.2681555000713655E-3},{"$f":"'Population 2016'!AD104/'Population 2016'!AD$5","v":6.3939856340020093E-3},{"$f":"'Population 2016'!AE104/'Population 2016'!AE$5","v":6.9918582326307255E-3},{"$f":"'Population 2016'!AF104/'Population 2016'!AF$5","v":5.7156645402584869E-3},{"$f":"'Population 2016'!AG104/'Population 2016'!AG$5","v":6.9918582326307255E-3},{"$f":"'Population 2016'!AH104/'Population 2016'!AH$5","v":1.1017712677521526E-2},{"$f":"'Population 2016'!AI104/'Population 2016'!AI$5","v":1.0398438183568117E-2},{"$f":"'Population 2016'!AJ104/'Population 2016'!AJ$5","v":1.4778462482224019E-2},{"$f":"'Population 2016'!AK104/'Population 2016'!AK$5","v":6.6756345624379267E-3},{"$f":"'Population 2016'!AL104/'Population 2016'!AL$5","v":6.9704333019989006E-3},{"$f":"'Population 2016'!AM104/'Population 2016'!AM$5","v":1.1597625420604076E-2},{"$f":"'Population 2016'!AN104/'Population 2016'!AN$5","v":3.3816952110832335E-3},{"$f":"'Population 2016'!AO104/'Population 2016'!AO$5","v":3.3816952110832335E-3},{"$f":"'Population 2016'!AP104/'Population 2016'!AP$5","v":5.5006895677123793E-3},{"$f":"'Population 2016'!AQ104/'Population 2016'!AQ$5","v":7.0628048446319943E-3},{"$f":"'Population 2016'!AR104/'Population 2016'!AR$5","v":8.4882695376452821E-3},{"$f":"'Population 2016'!AS104/'Population 2016'!AS$5","v":4.961895988610669E-3},{"$f":"'Population 2016'!AT104/'Population 2016'!AT$5","v":8.4357041176780722E-4},{"$f":"'Population 2016'!AU104/'Population 2016'!AU$5","v":8.4357041176780722E-4},{"$f":"'Population 2016'!AV104/'Population 2016'!AV$5","v":8.48907190370605E-3},{"$f":"'Population 2016'!AW104/'Population 2016'!AW$5","v":1.0407132832997743E-2},{"$f":"'Population 2016'!AX104/'Population 2016'!AX$5","v":5.6608354524195917E-3},{"$f":"'Population 2016'!AY104/'Population 2016'!AY$5","v":7.4615219852513697E-3},{"$f":"'Population 2016'!AZ104/'Population 2016'!AZ$5","v":7.2081504449724157E-3},{"$f":"'Population 2016'!BA104/'Population 2016'!BA$5","v":1.1930468581299935E-2},{"$f":"'Population 2016'!BB104/'Population 2016'!BB$5","v":1.171775201452808E-2},{"$f":"'Population 2016'!BC104/'Population 2016'!BC$5","v":6.6392245385738947E-3},102]
[null,"Female 35-39",{"$f":"'Population 2016'!C105/'Population 2016'!C$5","v":8.1266323542189493E-3},{"$f":"'Population 2016'!D105/'Population 2016'!D$5","v":5.3964574591903606E-3},{"$f":"'Population 2016'!E105/'Population 2016'!E$5","v":2.8923818319043309E-3},{"$f":"'Population 2016'!F105/'Population 2016'!F$5","v":5.830543394282771E-3},{"$f":"'Population 2016'!G105/'Population 2016'!G$5","v":5.0479077572673633E-3},{"$f":"'Population 2016'!H105/'Population 2016'!H$5","v":8.3459516946432222E-3},{"$f":"'Population 2016'!I105/'Population 2016'!I$5","v":4.76300142366636E-3},{"$f":"'Population 2016'!J105/'Population 2016'!J$5","v":7.0325004353847557E-3},{"$f":"'Population 2016'!K105/'Population 2016'!K$5","v":9.6158389642300238E-3},{"$f":"'Population 2016'!L105/'Population 2016'!L$5","v":8.4586914046987441E-3},{"$f":"'Population 2016'!M105/'Population 2016'!M$5","v":8.4586914046987441E-3},{"$f":"'Population 2016'!N105/'Population 2016'!N$5","v":6.9280909171281378E-3},{"$f":"'Population 2016'!O105/'Population 2016'!O$5","v":9.5105061372484923E-3},{"$f":"'Population 2016'!P105/'Population 2016'!P$5","v":6.5141440324580184E-3},{"$f":"'Population 2016'!Q105/'Population 2016'!Q$5","v":1.0563918167824114E-2},{"$f":"'Population 2016'!R105/'Population 2016'!R$5","v":3.5796029169106298E-3},{"$f":"'Population 2016'!S105/'Population 2016'!S$5","v":7.6826527748110668E-3},{"$f":"'Population 2016'!T105/'Population 2016'!T$5","v":6.1236930149881578E-3},{"$f":"'Population 2016'!U105/'Population 2016'!U$5","v":6.7720090293453723E-3},{"$f":"'Population 2016'!V105/'Population 2016'!V$5","v":1.1196678395066439E-2},{"$f":"'Population 2016'!W105/'Population 2016'!W$5","v":7.3049242052830778E-3},{"$f":"'Population 2016'!X105/'Population 2016'!X$5","v":7.3049242052830778E-3},{"$f":"'Population 2016'!Y105/'Population 2016'!Y$5","v":9.200966598305273E-3},{"$f":"'Population 2016'!Z105/'Population 2016'!Z$5","v":7.1372848119276092E-3},{"$f":"'Population 2016'!AA105/'Population 2016'!AA$5","v":7.8868848897490421E-3},{"$f":"'Population 2016'!AB105/'Population 2016'!AB$5","v":5.4164150537854517E-3},{"$f":"'Population 2016'!AC105/'Population 2016'!AC$5","v":6.7694618148570291E-3},{"$f":"'Population 2016'!AD105/'Population 2016'!AD$5","v":6.0478618482265808E-3},{"$f":"'Population 2016'!AE105/'Population 2016'!AE$5","v":6.4271707101715625E-3},{"$f":"'Population 2016'!AF105/'Population 2016'!AF$5","v":3.7400654511453952E-3},{"$f":"'Population 2016'!AG105/'Population 2016'!AG$5","v":6.4271707101715625E-3},{"$f":"'Population 2016'!AH105/'Population 2016'!AH$5","v":9.8938353937750197E-3},{"$f":"'Population 2016'!AI105/'Population 2016'!AI$5","v":8.2219573016011904E-3},{"$f":"'Population 2016'!AJ105/'Population 2016'!AJ$5","v":1.4290494381395867E-2},{"$f":"'Population 2016'!AK105/'Population 2016'!AK$5","v":5.519027444275423E-3},{"$f":"'Population 2016'!AL105/'Population 2016'!AL$5","v":6.8285415299480321E-3},{"$f":"'Population 2016'!AM105/'Population 2016'!AM$5","v":1.0666772911829795E-2},{"$f":"'Population 2016'!AN105/'Population 2016'!AN$5","v":3.872586451401767E-3},{"$f":"'Population 2016'!AO105/'Population 2016'!AO$5","v":3.872586451401767E-3},{"$f":"'Population 2016'!AP105/'Population 2016'!AP$5","v":4.1849626682307437E-3},{"$f":"'Population 2016'!AQ105/'Population 2016'!AQ$5","v":6.5490217570011505E-3},{"$f":"'Population 2016'!AR105/'Population 2016'!AR$5","v":7.3547774530423951E-3},{"$f":"'Population 2016'!AS105/'Population 2016'!AS$5","v":4.76300142366636E-3},{"$f":"'Population 2016'!AT105/'Population 2016'!AT$5","v":1.7925871250065904E-3},{"$f":"'Population 2016'!AU105/'Population 2016'!AU$5","v":1.7925871250065904E-3},{"$f":"'Population 2016'!AV105/'Population 2016'!AV$5","v":8.9114137894625699E-3},{"$f":"'Population 2016'!AW105/'Population 2016'!AW$5","v":9.080023186283483E-3},{"$f":"'Population 2016'!AX105/'Population 2016'!AX$5","v":5.6352786332213092E-3},{"$f":"'Population 2016'!AY105/'Population 2016'!AY$5","v":6.4119824974755973E-3},{"$f":"'Population 2016'!AZ105/'Population 2016'!AZ$5","v":5.6261541382147031E-3},{"$f":"'Population 2016'!BA105/'Population 2016'!BA$5","v":1.0891276182250054E-2},{"$f":"'Population 2016'!BB105/'Population 2016'!BB$5","v":1.0067461660095426E-2},{"$f":"'Population 2016'!BC105/'Population 2016'!BC$5","v":6.7720090293453723E-3},103]
[null,"Female 40-44",{"$f":"'Population 2016'!C106/'Population 2016'!C$5","v":7.3241912978589648E-3},{"$f":"'Population 2016'!D106/'Population 2016'!D$5","v":4.9978971665541891E-3},{"$f":"'Population 2016'!E106/'Population 2016'!E$5","v":2.8642549421289245E-3},{"$f":"'Population 2016'!F106/'Population 2016'!F$5","v":6.4486221993304144E-3},{"$f":"'Population 2016'!G106/'Population 2016'!G$5","v":5.9411032317436257E-3},{"$f":"'Population 2016'!H106/'Population 2016'!H$5","v":9.1306138197806194E-3},{"$f":"'Population 2016'!I106/'Population 2016'!I$5","v":5.1712586885520476E-3},{"$f":"'Population 2016'!J106/'Population 2016'!J$5","v":7.5052038844613256E-3},{"$f":"'Population 2016'!K106/'Population 2016'!K$5","v":1.0915276662098947E-2},{"$f":"'Population 2016'!L106/'Population 2016'!L$5","v":9.507092592886757E-3},{"$f":"'Population 2016'!M106/'Population 2016'!M$5","v":9.507092592886757E-3},{"$f":"'Population 2016'!N106/'Population 2016'!N$5","v":6.1645542151244565E-3},{"$f":"'Population 2016'!O106/'Population 2016'!O$5","v":1.0154446656958025E-2},{"$f":"'Population 2016'!P106/'Population 2016'!P$5","v":6.1985799616815053E-3},{"$f":"'Population 2016'!Q106/'Population 2016'!Q$5","v":1.0258398843726866E-2},{"$f":"'Population 2016'!R106/'Population 2016'!R$5","v":3.5396816947889497E-3},{"$f":"'Population 2016'!S106/'Population 2016'!S$5","v":7.6411678620794355E-3},{"$f":"'Population 2016'!T106/'Population 2016'!T$5","v":5.3977841165549108E-3},{"$f":"'Population 2016'!U106/'Population 2016'!U$5","v":8.8522993847651929E-3},{"$f":"'Population 2016'!V106/'Population 2016'!V$5","v":1.1715679165935232E-2},{"$f":"'Population 2016'!W106/'Population 2016'!W$5","v":7.8115296870812333E-3},{"$f":"'Population 2016'!X106/'Population 2016'!X$5","v":7.8115296870812333E-3},{"$f":"'Population 2016'!Y106/'Population 2016'!Y$5","v":9.6977790496176539E-3},{"$f":"'Population 2016'!Z106/'Population 2016'!Z$5","v":6.2603686145304817E-3},{"$f":"'Population 2016'!AA106/'Population 2016'!AA$5","v":7.874926004396883E-3},{"$f":"'Population 2016'!AB106/'Population 2016'!AB$5","v":5.1195971464540494E-3},{"$f":"'Population 2016'!AC106/'Population 2016'!AC$5","v":6.5046822541842408E-3},{"$f":"'Population 2016'!AD106/'Population 2016'!AD$5","v":6.7215006140905875E-3},{"$f":"'Population 2016'!AE106/'Population 2016'!AE$5","v":7.0175258472879596E-3},{"$f":"'Population 2016'!AF106/'Population 2016'!AF$5","v":4.3885445414649591E-3},{"$f":"'Population 2016'!AG106/'Population 2016'!AG$5","v":7.0175258472879596E-3},{"$f":"'Population 2016'!AH106/'Population 2016'!AH$5","v":1.0335955713662075E-2},{"$f":"'Population 2016'!AI106/'Population 2016'!AI$5","v":7.8924774695948909E-3},{"$f":"'Population 2016'!AJ106/'Population 2016'!AJ$5","v":1.353762931154672E-2},{"$f":"'Population 2016'!AK106/'Population 2016'!AK$5","v":5.7453201413072176E-3},{"$f":"'Population 2016'!AL106/'Population 2016'!AL$5","v":8.1233039499122046E-3},{"$f":"'Population 2016'!AM106/'Population 2016'!AM$5","v":1.1105034209735196E-2},{"$f":"'Population 2016'!AN106/'Population 2016'!AN$5","v":5.7270644703828954E-3},{"$f":"'Population 2016'!AO106/'Population 2016'!AO$5","v":5.7270644703828954E-3},{"$f":"'Population 2016'!AP106/'Population 2016'!AP$5","v":3.6459902033828448E-3},{"$f":"'Population 2016'!AQ106/'Population 2016'!AQ$5","v":7.6176905792733054E-3},{"$f":"'Population 2016'!AR106/'Population 2016'!AR$5","v":7.4501262368887071E-3},{"$f":"'Population 2016'!AS106/'Population 2016'!AS$5","v":5.1712586885520476E-3},{"$f":"'Population 2016'!AT106/'Population 2016'!AT$5","v":7.3812411029683129E-4},{"$f":"'Population 2016'!AU106/'Population 2016'!AU$5","v":7.3812411029683129E-4},{"$f":"'Population 2016'!AV106/'Population 2016'!AV$5","v":9.2387287509238733E-3},{"$f":"'Population 2016'!AW106/'Population 2016'!AW$5","v":9.5262066019891397E-3},{"$f":"'Population 2016'!AX106/'Population 2016'!AX$5","v":5.6608354524195917E-3},{"$f":"'Population 2016'!AY106/'Population 2016'!AY$5","v":6.4915394265781341E-3},{"$f":"'Population 2016'!AZ106/'Population 2016'!AZ$5","v":5.3298893753128034E-3},{"$f":"'Population 2016'!BA106/'Population 2016'!BA$5","v":1.1282660332541567E-2},{"$f":"'Population 2016'!BB106/'Population 2016'!BB$5","v":1.1110113725029864E-2},{"$f":"'Population 2016'!BC106/'Population 2016'!BC$5","v":8.8522993847651929E-3},104]
[null,"Female 45-49",{"$f":"'Population 2016'!C107/'Population 2016'!C$5","v":7.6564121173710604E-3},{"$f":"'Population 2016'!D107/'Population 2016'!D$5","v":5.3402188902907776E-3},{"$f":"'Population 2016'!E107/'Population 2016'!E$5","v":3.2158410643215092E-3},{"$f":"'Population 2016'!F107/'Population 2016'!F$5","v":6.8503734226113833E-3},{"$f":"'Population 2016'!G107/'Population 2016'!G$5","v":7.0372976776917661E-3},{"$f":"'Population 2016'!H107/'Population 2016'!H$5","v":1.1630508441602657E-2},{"$f":"'Population 2016'!I107/'Population 2016'!I$5","v":6.9508416380537645E-3},{"$f":"'Population 2016'!J107/'Population 2016'!J$5","v":8.6247646849058317E-3},{"$f":"'Population 2016'!K107/'Population 2016'!K$5","v":1.2876246278882956E-2},{"$f":"'Population 2016'!L107/'Population 2016'!L$5","v":1.2437850459866884E-2},{"$f":"'Population 2016'!M107/'Population 2016'!M$5","v":1.2437850459866884E-2},{"$f":"'Population 2016'!N107/'Population 2016'!N$5","v":6.421745525273065E-3},{"$f":"'Population 2016'!O107/'Population 2016'!O$5","v":1.3156200156527079E-2},{"$f":"'Population 2016'!P107/'Population 2016'!P$5","v":8.4976896201961003E-3},{"$f":"'Population 2016'!Q107/'Population 2016'!Q$5","v":1.2855313098553483E-2},{"$f":"'Population 2016'!R107/'Population 2016'!R$5","v":5.1232235056155855E-3},{"$f":"'Population 2016'!S107/'Population 2016'!S$5","v":8.5776677005530728E-3},{"$f":"'Population 2016'!T107/'Population 2016'!T$5","v":5.0487894538466188E-3},{"$f":"'Population 2016'!U107/'Population 2016'!U$5","v":1.0312928783251449E-2},{"$f":"'Population 2016'!V107/'Population 2016'!V$5","v":1.341769639981377E-2},{"$f":"'Population 2016'!W107/'Population 2016'!W$5","v":8.9391354368900302E-3},{"$f":"'Population 2016'!X107/'Population 2016'!X$5","v":8.9391354368900302E-3},{"$f":"'Population 2016'!Y107/'Population 2016'!Y$5","v":1.1120649910176309E-2},{"$f":"'Population 2016'!Z107/'Population 2016'!Z$5","v":7.0559813234272132E-3},{"$f":"'Population 2016'!AA107/'Population 2016'!AA$5","v":9.4721015814297118E-3},{"$f":"'Population 2016'!AB107/'Population 2016'!AB$5","v":5.5515183771225043E-3},{"$f":"'Population 2016'!AC107/'Population 2016'!AC$5","v":7.7396306738846676E-3},{"$f":"'Population 2016'!AD107/'Population 2016'!AD$5","v":7.9422382671480145E-3},{"$f":"'Population 2016'!AE107/'Population 2016'!AE$5","v":8.2855060113553522E-3},{"$f":"'Population 2016'!AF107/'Population 2016'!AF$5","v":6.0323636308796695E-3},{"$f":"'Population 2016'!AG107/'Population 2016'!AG$5","v":8.2855060113553522E-3},{"$f":"'Population 2016'!AH107/'Population 2016'!AH$5","v":1.2583710281155085E-2},{"$f":"'Population 2016'!AI107/'Population 2016'!AI$5","v":8.638933852480532E-3},{"$f":"'Population 2016'!AJ107/'Population 2016'!AJ$5","v":1.695340601734378E-2},{"$f":"'Population 2016'!AK107/'Population 2016'!AK$5","v":6.6379191129326276E-3},{"$f":"'Population 2016'!AL107/'Population 2016'!AL$5","v":1.0109788758624359E-2},{"$f":"'Population 2016'!AM107/'Population 2016'!AM$5","v":1.3068155064815587E-2},{"$f":"'Population 2016'!AN107/'Population 2016'!AN$5","v":5.1816297589178575E-3},{"$f":"'Population 2016'!AO107/'Population 2016'!AO$5","v":5.1816297589178575E-3},{"$f":"'Population 2016'!AP107/'Population 2016'!AP$5","v":4.6208962795047798E-3},{"$f":"'Population 2016'!AQ107/'Population 2016'!AQ$5","v":8.6795089603770477E-3},{"$f":"'Population 2016'!AR107/'Population 2016'!AR$5","v":8.72619594219636E-3},{"$f":"'Population 2016'!AS107/'Population 2016'!AS$5","v":6.9508416380537645E-3},{"$f":"'Population 2016'!AT107/'Population 2016'!AT$5","v":1.2126324669162229E-3},{"$f":"'Population 2016'!AU107/'Population 2016'!AU$5","v":1.2126324669162229E-3},{"$f":"'Population 2016'!AV107/'Population 2016'!AV$5","v":1.1815014254038645E-2},{"$f":"'Population 2016'!AW107/'Population 2016'!AW$5","v":1.2073646958325706E-2},{"$f":"'Population 2016'!AX107/'Population 2016'!AX$5","v":6.325312751574939E-3},{"$f":"'Population 2016'!AY107/'Population 2016'!AY$5","v":7.3161775955448123E-3},{"$f":"'Population 2016'!AZ107/'Population 2016'!AZ$5","v":5.8879026180600697E-3},{"$f":"'Population 2016'!BA107/'Population 2016'!BA$5","v":1.3927877348304902E-2},{"$f":"'Population 2016'!BB107/'Population 2016'!BB$5","v":1.2698259254400199E-2},{"$f":"'Population 2016'!BC107/'Population 2016'!BC$5","v":1.0312928783251449E-2},105]
[null,"Female 50-54",{"$f":"'Population 2016'!C108/'Population 2016'!C$5","v":7.9835218473522009E-3},{"$f":"'Population 2016'!D108/'Population 2016'!D$5","v":5.6116311141105012E-3},{"$f":"'Population 2016'!E108/'Population 2016'!E$5","v":3.4361683675621954E-3},{"$f":"'Population 2016'!F108/'Population 2016'!F$5","v":6.3868143188256501E-3},{"$f":"'Population 2016'!G108/'Population 2016'!G$5","v":7.8086937692849025E-3},{"$f":"'Population 2016'!H108/'Population 2016'!H$5","v":1.2016354693219806E-2},{"$f":"'Population 2016'!I108/'Population 2016'!I$5","v":7.4637802529101413E-3},{"$f":"'Population 2016'!J108/'Population 2016'!J$5","v":9.0394168332186137E-3},{"$f":"'Population 2016'!K108/'Population 2016'!K$5","v":1.3277890658224259E-2},{"$f":"'Population 2016'!L108/'Population 2016'!L$5","v":1.3462424348323352E-2},{"$f":"'Population 2016'!M108/'Population 2016'!M$5","v":1.3462424348323352E-2},{"$f":"'Population 2016'!N108/'Population 2016'!N$5","v":7.6594787053632426E-3},{"$f":"'Population 2016'!O108/'Population 2016'!O$5","v":1.2423098641780842E-2},{"$f":"'Population 2016'!P108/'Population 2016'!P$5","v":8.3399075848078433E-3},{"$f":"'Population 2016'!Q108/'Population 2016'!Q$5","v":1.3066826476774656E-2},{"$f":"'Population 2016'!R108/'Population 2016'!R$5","v":4.8304678767232658E-3},{"$f":"'Population 2016'!S108/'Population 2016'!S$5","v":8.6509282911216984E-3},{"$f":"'Population 2016'!T108/'Population 2016'!T$5","v":4.7928600345272052E-3},{"$f":"'Population 2016'!U108/'Population 2016'!U$5","v":1.1950604169433009E-2},{"$f":"'Population 2016'!V108/'Population 2016'!V$5","v":1.3371902214148877E-2},{"$f":"'Population 2016'!W108/'Population 2016'!W$5","v":9.6320409990913788E-3},{"$f":"'Population 2016'!X108/'Population 2016'!X$5","v":9.6320409990913788E-3},{"$f":"'Population 2016'!Y108/'Population 2016'!Y$5","v":1.1295527893038266E-2},{"$f":"'Population 2016'!Z108/'Population 2016'!Z$5","v":7.23020308449949E-3},{"$f":"'Population 2016'!AA108/'Population 2016'!AA$5","v":9.8248886993184091E-3},{"$f":"'Population 2016'!AB108/'Population 2016'!AB$5","v":5.748032301976398E-3},{"$f":"'Population 2016'!AC108/'Population 2016'!AC$5","v":7.9909643974920407E-3},{"$f":"'Population 2016'!AD108/'Population 2016'!AD$5","v":8.6754252112099441E-3},{"$f":"'Population 2016'!AE108/'Population 2016'!AE$5","v":9.0041992217579237E-3},{"$f":"'Population 2016'!AF108/'Population 2016'!AF$5","v":7.2388363570556032E-3},{"$f":"'Population 2016'!AG108/'Population 2016'!AG$5","v":9.0041992217579237E-3},{"$f":"'Population 2016'!AH108/'Population 2016'!AH$5","v":1.311871302118648E-2},{"$f":"'Population 2016'!AI108/'Population 2016'!AI$5","v":8.3955836031148826E-3},{"$f":"'Population 2016'!AJ108/'Population 2016'!AJ$5","v":1.6827928505702257E-2},{"$f":"'Population 2016'!AK108/'Population 2016'!AK$5","v":6.4493418654061321E-3},{"$f":"'Population 2016'!AL108/'Population 2016'!AL$5","v":1.0544332310530143E-2},{"$f":"'Population 2016'!AM108/'Population 2016'!AM$5","v":1.3484684397535595E-2},{"$f":"'Population 2016'!AN108/'Population 2016'!AN$5","v":6.654303479873459E-3},{"$f":"'Population 2016'!AO108/'Population 2016'!AO$5","v":6.654303479873459E-3},{"$f":"'Population 2016'!AP108/'Population 2016'!AP$5","v":4.4544489006546929E-3},{"$f":"'Population 2016'!AQ108/'Population 2016'!AQ$5","v":9.0083301364607873E-3},{"$f":"'Population 2016'!AR108/'Population 2016'!AR$5","v":9.0265000558057713E-3},{"$f":"'Population 2016'!AS108/'Population 2016'!AS$5","v":7.4637802529101413E-3},{"$f":"'Population 2016'!AT108/'Population 2016'!AT$5","v":1.0544630147097591E-3},{"$f":"'Population 2016'!AU108/'Population 2016'!AU$5","v":1.0544630147097591E-3},{"$f":"'Population 2016'!AV108/'Population 2016'!AV$5","v":1.3335445042762116E-2},{"$f":"'Population 2016'!AW108/'Population 2016'!AW$5","v":1.2733388248215266E-2},{"$f":"'Population 2016'!AX108/'Population 2016'!AX$5","v":6.7470002683466014E-3},{"$f":"'Population 2016'!AY108/'Population 2016'!AY$5","v":7.7751598788286776E-3},{"$f":"'Population 2016'!AZ108/'Population 2016'!AZ$5","v":6.1410220271413043E-3},{"$f":"'Population 2016'!BA108/'Population 2016'!BA$5","v":1.4751133664435328E-2},{"$f":"'Population 2016'!BB108/'Population 2016'!BB$5","v":1.2166575751089261E-2},{"$f":"'Population 2016'!BC108/'Population 2016'!BC$5","v":1.1950604169433009E-2},106]
[null,"Female 55-59",{"$f":"'Population 2016'!C109/'Population 2016'!C$5","v":7.1044144480278864E-3},{"$f":"'Population 2016'!D109/'Population 2016'!D$5","v":4.9978971665541891E-3},{"$f":"'Population 2016'!E109/'Population 2016'!E$5","v":3.0658309855193396E-3},{"$f":"'Population 2016'!F109/'Population 2016'!F$5","v":6.9121813031161475E-3},{"$f":"'Population 2016'!G109/'Population 2016'!G$5","v":7.9440264169328215E-3},{"$f":"'Population 2016'!H109/'Population 2016'!H$5","v":1.1296540677597897E-2},{"$f":"'Population 2016'!I109/'Population 2016'!I$5","v":7.2544175529687628E-3},{"$f":"'Population 2016'!J109/'Population 2016'!J$5","v":7.7622882164152494E-3},{"$f":"'Population 2016'!K109/'Population 2016'!K$5","v":1.1127911921750224E-2},{"$f":"'Population 2016'!L109/'Population 2016'!L$5","v":1.2564929391768462E-2},{"$f":"'Population 2016'!M109/'Population 2016'!M$5","v":1.2564929391768462E-2},{"$f":"'Population 2016'!N109/'Population 2016'!N$5","v":7.2335055979296098E-3},{"$f":"'Population 2016'!O109/'Population 2016'!O$5","v":1.1769251344845008E-2},{"$f":"'Population 2016'!P109/'Population 2016'!P$5","v":7.8891017694128259E-3},{"$f":"'Population 2016'!Q109/'Population 2016'!Q$5","v":1.237353262593859E-2},{"$f":"'Population 2016'!R109/'Population 2016'!R$5","v":3.832437323681269E-3},{"$f":"'Population 2016'!S109/'Population 2016'!S$5","v":8.0127667612287304E-3},{"$f":"'Population 2016'!T109/'Population 2016'!T$5","v":4.3531267595147581E-3},{"$f":"'Population 2016'!U109/'Population 2016'!U$5","v":1.0224405789403798E-2},{"$f":"'Population 2016'!V109/'Population 2016'!V$5","v":1.1677517344547821E-2},{"$f":"'Population 2016'!W109/'Population 2016'!W$5","v":8.6940037521489877E-3},{"$f":"'Population 2016'!X109/'Population 2016'!X$5","v":8.6940037521489877E-3},{"$f":"'Population 2016'!Y109/'Population 2016'!Y$5","v":9.8011160394906281E-3},{"$f":"'Population 2016'!Z109/'Population 2016'!Z$5","v":6.4713705251624619E-3},{"$f":"'Population 2016'!AA109/'Population 2016'!AA$5","v":8.9153490300347398E-3},{"$f":"'Population 2016'!AB109/'Population 2016'!AB$5","v":5.2260421890832423E-3},{"$f":"'Population 2016'!AC109/'Population 2016'!AC$5","v":7.1759398122961142E-3},{"$f":"'Population 2016'!AD109/'Population 2016'!AD$5","v":8.4074584093192899E-3},{"$f":"'Population 2016'!AE109/'Population 2016'!AE$5","v":8.5832503413792744E-3},{"$f":"'Population 2016'!AF109/'Population 2016'!AF$5","v":6.605438175813238E-3},{"$f":"'Population 2016'!AG109/'Population 2016'!AG$5","v":8.5832503413792744E-3},{"$f":"'Population 2016'!AH109/'Population 2016'!AH$5","v":1.2039419299109257E-2},{"$f":"'Population 2016'!AI109/'Population 2016'!AI$5","v":7.826854930440108E-3},{"$f":"'Population 2016'!AJ109/'Population 2016'!AJ$5","v":1.6493321807991523E-2},{"$f":"'Population 2016'!AK109/'Population 2016'!AK$5","v":6.3990545993990672E-3},{"$f":"'Population 2016'!AL109/'Population 2016'!AL$5","v":9.4003298983700179E-3},{"$f":"'Population 2016'!AM109/'Population 2016'!AM$5","v":1.2202498451597481E-2},{"$f":"'Population 2016'!AN109/'Population 2016'!AN$5","v":5.9452383549689104E-3},{"$f":"'Population 2016'!AO109/'Population 2016'!AO$5","v":5.9452383549689104E-3},{"$f":"'Population 2016'!AP109/'Population 2016'!AP$5","v":4.0343674206997134E-3},{"$f":"'Population 2016'!AQ109/'Population 2016'!AQ$5","v":7.9396613141886341E-3},{"$f":"'Population 2016'!AR109/'Population 2016'!AR$5","v":8.3040325183908418E-3},{"$f":"'Population 2016'!AS109/'Population 2016'!AS$5","v":7.2544175529687628E-3},{"$f":"'Population 2016'!AT109/'Population 2016'!AT$5","v":7.3812411029683129E-4},{"$f":"'Population 2016'!AU109/'Population 2016'!AU$5","v":7.3812411029683129E-4},{"$f":"'Population 2016'!AV109/'Population 2016'!AV$5","v":1.3050364269876465E-2},{"$f":"'Population 2016'!AW109/'Population 2016'!AW$5","v":1.1867716151076941E-2},{"$f":"'Population 2016'!AX109/'Population 2016'!AX$5","v":5.9419604636007E-3},{"$f":"'Population 2016'!AY109/'Population 2016'!AY$5","v":7.251920075885071E-3},{"$f":"'Population 2016'!AZ109/'Population 2016'!AZ$5","v":5.9828223964655328E-3},{"$f":"'Population 2016'!BA109/'Population 2016'!BA$5","v":1.3630965234290649E-2},{"$f":"'Population 2016'!BB109/'Population 2016'!BB$5","v":1.1172258550092181E-2},{"$f":"'Population 2016'!BC109/'Population 2016'!BC$5","v":1.0224405789403798E-2},107]
[null,"Female 60-64",{"$f":"'Population 2016'!C110/'Population 2016'!C$5","v":6.3479731974464999E-3},{"$f":"'Population 2016'!D110/'Population 2016'!D$5","v":4.5284273740011545E-3},{"$f":"'Population 2016'!E110/'Population 2016'!E$5","v":2.8595671271663564E-3},{"$f":"'Population 2016'!F110/'Population 2016'!F$5","v":5.7996394540303885E-3},{"$f":"'Population 2016'!G110/'Population 2016'!G$5","v":7.1184972662805173E-3},{"$f":"'Population 2016'!H110/'Population 2016'!H$5","v":9.9412151887242114E-3},{"$f":"'Population 2016'!I110/'Population 2016'!I$5","v":6.5844569131563524E-3},{"$f":"'Population 2016'!J110/'Population 2016'!J$5","v":6.6012622011394637E-3},{"$f":"'Population 2016'!K110/'Population 2016'!K$5","v":9.875726503803809E-3},{"$f":"'Population 2016'!L110/'Population 2016'!L$5","v":1.2358426127428398E-2},{"$f":"'Population 2016'!M110/'Population 2016'!M$5","v":1.2358426127428398E-2},{"$f":"'Population 2016'!N110/'Population 2016'!N$5","v":6.2288520426616086E-3},{"$f":"'Population 2016'!O110/'Population 2016'!O$5","v":1.0303048315352533E-2},{"$f":"'Population 2016'!P110/'Population 2016'!P$5","v":5.9506367632142457E-3},{"$f":"'Population 2016'!Q110/'Population 2016'!Q$5","v":1.0364155532837451E-2},{"$f":"'Population 2016'!R110/'Population 2016'!R$5","v":3.3400755841805504E-3},{"$f":"'Population 2016'!S110/'Population 2016'!S$5","v":6.8864955134508212E-3},{"$f":"'Population 2016'!T110/'Population 2016'!T$5","v":3.5737053461329066E-3},{"$f":"'Population 2016'!U110/'Population 2016'!U$5","v":1.0976851237108839E-2},{"$f":"'Population 2016'!V110/'Population 2016'!V$5","v":1.0883751459689669E-2},{"$f":"'Population 2016'!W110/'Population 2016'!W$5","v":7.9259244732937193E-3},{"$f":"'Population 2016'!X110/'Population 2016'!X$5","v":7.9259244732937193E-3},{"$f":"'Population 2016'!Y110/'Population 2016'!Y$5","v":8.8313381345288631E-3},{"$f":"'Population 2016'!Z110/'Population 2016'!Z$5","v":5.0911470180009799E-3},{"$f":"'Population 2016'!AA110/'Population 2016'!AA$5","v":7.5732963405146436E-3},{"$f":"'Population 2016'!AB110/'Population 2016'!AB$5","v":4.7900269183136649E-3},{"$f":"'Population 2016'!AC110/'Population 2016'!AC$5","v":5.7227551140724134E-3},{"$f":"'Population 2016'!AD110/'Population 2016'!AD$5","v":7.5961144813725852E-3},{"$f":"'Population 2016'!AE110/'Population 2016'!AE$5","v":7.7772872411421062E-3},{"$f":"'Population 2016'!AF110/'Population 2016'!AF$5","v":4.7957290865493375E-3},{"$f":"'Population 2016'!AG110/'Population 2016'!AG$5","v":7.7772872411421062E-3},{"$f":"'Population 2016'!AH110/'Population 2016'!AH$5","v":1.0896965531333885E-2},{"$f":"'Population 2016'!AI110/'Population 2016'!AI$5","v":6.4911628313938227E-3},{"$f":"'Population 2016'!AJ110/'Population 2016'!AJ$5","v":1.3509745420070825E-2},{"$f":"'Population 2016'!AK110/'Population 2016'!AK$5","v":6.1350464528619744E-3},{"$f":"'Population 2016'!AL110/'Population 2016'!AL$5","v":8.1853816001844597E-3},{"$f":"'Population 2016'!AM110/'Population 2016'!AM$5","v":1.1079680250352239E-2},{"$f":"'Population 2016'!AN110/'Population 2016'!AN$5","v":5.672520999236391E-3},{"$f":"'Population 2016'!AO110/'Population 2016'!AO$5","v":5.672520999236391E-3},{"$f":"'Population 2016'!AP110/'Population 2016'!AP$5","v":3.9471806984449059E-3},{"$f":"'Population 2016'!AQ110/'Population 2016'!AQ$5","v":6.4462651394749824E-3},{"$f":"'Population 2016'!AR110/'Population 2016'!AR$5","v":7.272349766072452E-3},{"$f":"'Population 2016'!AS110/'Population 2016'!AS$5","v":6.5844569131563524E-3},{"$f":"'Population 2016'!AT110/'Population 2016'!AT$5","v":1.5816945220646385E-3},{"$f":"'Population 2016'!AU110/'Population 2016'!AU$5","v":1.5816945220646385E-3},{"$f":"'Population 2016'!AV110/'Population 2016'!AV$5","v":1.1646077499736037E-2},{"$f":"'Population 2016'!AW110/'Population 2016'!AW$5","v":1.070458844346818E-2},{"$f":"'Population 2016'!AX110/'Population 2016'!AX$5","v":4.8302388284754078E-3},{"$f":"'Population 2016'!AY110/'Population 2016'!AY$5","v":6.5190783635751658E-3},{"$f":"'Population 2016'!AZ110/'Population 2016'!AZ$5","v":5.2809913076493839E-3},{"$f":"'Population 2016'!BA110/'Population 2016'!BA$5","v":1.1674044482833081E-2},{"$f":"'Population 2016'!BB110/'Population 2016'!BB$5","v":9.3976785455348946E-3},{"$f":"'Population 2016'!BC110/'Population 2016'!BC$5","v":1.0976851237108839E-2},108]
[null,"Female 65-69",{"$f":"'Population 2016'!C111/'Population 2016'!C$5","v":6.0055301988724934E-3},{"$f":"'Population 2016'!D111/'Population 2016'!D$5","v":4.5137564429838717E-3},{"$f":"'Population 2016'!E111/'Population 2016'!E$5","v":3.145523839882992E-3},{"$f":"'Population 2016'!F111/'Population 2016'!F$5","v":6.1910893638938962E-3},{"$f":"'Population 2016'!G111/'Population 2016'!G$5","v":7.8086937692849025E-3},{"$f":"'Population 2016'!H111/'Population 2016'!H$5","v":1.0233031681543903E-2},{"$f":"'Population 2016'!I111/'Population 2016'!I$5","v":7.160204337995143E-3},{"$f":"'Population 2016'!J111/'Population 2016'!J$5","v":6.8417604471608766E-3},{"$f":"'Population 2016'!K111/'Population 2016'!K$5","v":1.0844398242215187E-2},{"$f":"'Population 2016'!L111/'Population 2016'!L$5","v":1.2223404762282973E-2},{"$f":"'Population 2016'!M111/'Population 2016'!M$5","v":1.2223404762282973E-2},{"$f":"'Population 2016'!N111/'Population 2016'!N$5","v":6.421745525273065E-3},{"$f":"'Population 2016'!O111/'Population 2016'!O$5","v":1.0372395755936636E-2},{"$f":"'Population 2016'!P111/'Population 2016'!P$5","v":5.8942860362898681E-3},{"$f":"'Population 2016'!Q111/'Population 2016'!Q$5","v":1.0082137695209221E-2},{"$f":"'Population 2016'!R111/'Population 2016'!R$5","v":3.2868472880183104E-3},{"$f":"'Population 2016'!S111/'Population 2016'!S$5","v":7.0850934999320356E-3},{"$f":"'Population 2016'!T111/'Population 2016'!T$5","v":3.50623304467597E-3},{"$f":"'Population 2016'!U111/'Population 2016'!U$5","v":1.0445713274022928E-2},{"$f":"'Population 2016'!V111/'Population 2016'!V$5","v":1.0845589638302258E-2},{"$f":"'Population 2016'!W111/'Population 2016'!W$5","v":8.1645193131083347E-3},{"$f":"'Population 2016'!X111/'Population 2016'!X$5","v":8.1645193131083347E-3},{"$f":"'Population 2016'!Y111/'Population 2016'!Y$5","v":8.9267261251808391E-3},{"$f":"'Population 2016'!Z111/'Population 2016'!Z$5","v":4.431040123271575E-3},{"$f":"'Population 2016'!AA111/'Population 2016'!AA$5","v":7.2789748843476131E-3},{"$f":"'Population 2016'!AB111/'Population 2016'!AB$5","v":4.7060990962406474E-3},{"$f":"'Population 2016'!AC111/'Population 2016'!AC$5","v":5.5055531307080163E-3},{"$f":"'Population 2016'!AD111/'Population 2016'!AD$5","v":7.8789683278127215E-3},{"$f":"'Population 2016'!AE111/'Population 2016'!AE$5","v":7.9056253144282797E-3},{"$f":"'Population 2016'!AF111/'Population 2016'!AF$5","v":5.4291272677917026E-3},{"$f":"'Population 2016'!AG111/'Population 2016'!AG$5","v":7.9056253144282797E-3},{"$f":"'Population 2016'!AH111/'Population 2016'!AH$5","v":1.0464133453461264E-2},{"$f":"'Population 2016'!AI111/'Population 2016'!AI$5","v":6.623775045935777E-3},{"$f":"'Population 2016'!AJ111/'Population 2016'!AJ$5","v":1.4513565513203023E-2},{"$f":"'Population 2016'!AK111/'Population 2016'!AK$5","v":5.6950328753001518E-3},{"$f":"'Population 2016'!AL111/'Population 2016'!AL$5","v":8.6553980951029601E-3},{"$f":"'Population 2016'!AM111/'Population 2016'!AM$5","v":1.0634174964051708E-2},{"$f":"'Population 2016'!AN111/'Population 2016'!AN$5","v":6.4906730664339475E-3},{"$f":"'Population 2016'!AO111/'Population 2016'!AO$5","v":6.4906730664339475E-3},{"$f":"'Population 2016'!AP111/'Population 2016'!AP$5","v":3.6459902033828448E-3},{"$f":"'Population 2016'!AQ111/'Population 2016'!AQ$5","v":7.234065873842275E-3},{"$f":"'Population 2016'!AR111/'Population 2016'!AR$5","v":7.2580920040019757E-3},{"$f":"'Population 2016'!AS111/'Population 2016'!AS$5","v":7.160204337995143E-3},{"$f":"'Population 2016'!AT111/'Population 2016'!AT$5","v":1.3180787683871988E-3},{"$f":"'Population 2016'!AU111/'Population 2016'!AU$5","v":1.3180787683871988E-3},{"$f":"'Population 2016'!AV111/'Population 2016'!AV$5","v":1.1962833914053426E-2},{"$f":"'Population 2016'!AW111/'Population 2016'!AW$5","v":1.0285099762035512E-2},{"$f":"'Population 2016'!AX111/'Population 2016'!AX$5","v":4.6768979132857129E-3},{"$f":"'Population 2016'!AY111/'Population 2016'!AY$5","v":6.6674826351702824E-3},{"$f":"'Population 2016'!AZ111/'Population 2016'!AZ$5","v":5.3500238737624476E-3},{"$f":"'Population 2016'!BA111/'Population 2016'!BA$5","v":1.1444612394731159E-2},{"$f":"'Population 2016'!BB111/'Population 2016'!BB$5","v":9.936267029408313E-3},{"$f":"'Population 2016'!BC111/'Population 2016'!BC$5","v":1.0445713274022928E-2},109]
[null,"Female 70-74",{"$f":"'Population 2016'!C112/'Population 2016'!C$5","v":4.1399825200738039E-3},{"$f":"'Population 2016'!D112/'Population 2016'!D$5","v":3.2593918410062303E-3},{"$f":"'Population 2016'!E112/'Population 2016'!E$5","v":2.451727225422958E-3},{"$f":"'Population 2016'!F112/'Population 2016'!F$5","v":4.9961370074684524E-3},{"$f":"'Population 2016'!G112/'Population 2016'!G$5","v":6.4418340280409242E-3},{"$f":"'Population 2016'!H112/'Population 2016'!H$5","v":8.2421947194184428E-3},{"$f":"'Population 2016'!I112/'Population 2016'!I$5","v":5.7260698433967009E-3},{"$f":"'Population 2016'!J112/'Population 2016'!J$5","v":5.5729248733237683E-3},{"$f":"'Population 2016'!K112/'Population 2016'!K$5","v":8.3400274063223558E-3},{"$f":"'Population 2016'!L112/'Population 2016'!L$5","v":9.9439264212984289E-3},{"$f":"'Population 2016'!M112/'Population 2016'!M$5","v":9.9439264212984289E-3},{"$f":"'Population 2016'!N112/'Population 2016'!N$5","v":5.1599006598564553E-3},{"$f":"'Population 2016'!O112/'Population 2016'!O$5","v":8.4603877512606368E-3},{"$f":"'Population 2016'!P112/'Population 2016'!P$5","v":5.2744280401217179E-3},{"$f":"'Population 2016'!Q112/'Population 2016'!Q$5","v":8.1550158047496504E-3},{"$f":"'Population 2016'!R112/'Population 2016'!R$5","v":1.9428328099217545E-3},{"$f":"'Population 2016'!S112/'Population 2016'!S$5","v":5.5201413664600655E-3},{"$f":"'Population 2016'!T112/'Population 2016'!T$5","v":2.6430529122441287E-3},{"$f":"'Population 2016'!U112/'Population 2016'!U$5","v":7.6572389678218914E-3},{"$f":"'Population 2016'!V112/'Population 2016'!V$5","v":8.8535425618793927E-3},{"$f":"'Population 2016'!W112/'Population 2016'!W$5","v":6.2819079742971254E-3},{"$f":"'Population 2016'!X112/'Population 2016'!X$5","v":6.2819079742971254E-3},{"$f":"'Population 2016'!Y112/'Population 2016'!Y$5","v":7.2812832864342378E-3},{"$f":"'Population 2016'!Z112/'Population 2016'!Z$5","v":3.3837737594926663E-3},{"$f":"'Population 2016'!AA112/'Population 2016'!AA$5","v":5.8492237022450154E-3},{"$f":"'Population 2016'!AB112/'Population 2016'!AB$5","v":3.4533228252970737E-3},{"$f":"'Population 2016'!AC112/'Population 2016'!AC$5","v":4.2685361206898339E-3},{"$f":"'Population 2016'!AD112/'Population 2016'!AD$5","v":5.9622613420670665E-3},{"$f":"'Population 2016'!AE112/'Population 2016'!AE$5","v":5.7803468208092483E-3},{"$f":"'Population 2016'!AF112/'Population 2016'!AF$5","v":4.1321690871525731E-3},{"$f":"'Population 2016'!AG112/'Population 2016'!AG$5","v":5.7803468208092483E-3},{"$f":"'Population 2016'!AH112/'Population 2016'!AH$5","v":8.6882215803014955E-3},{"$f":"'Population 2016'!AI112/'Population 2016'!AI$5","v":5.174610639601015E-3},{"$f":"'Population 2016'!AJ112/'Population 2016'!AJ$5","v":1.0540110977888074E-2},{"$f":"'Population 2016'!AK112/'Population 2016'!AK$5","v":4.4504230416252842E-3},{"$f":"'Population 2016'!AL112/'Population 2016'!AL$5","v":6.6245721076249094E-3},{"$f":"'Population 2016'!AM112/'Population 2016'!AM$5","v":9.0042775751473254E-3},{"$f":"'Population 2016'!AN112/'Population 2016'!AN$5","v":5.6179775280898875E-3},{"$f":"'Population 2016'!AO112/'Population 2016'!AO$5","v":5.6179775280898875E-3},{"$f":"'Population 2016'!AP112/'Population 2016'!AP$5","v":2.9247182283658039E-3},{"$f":"'Population 2016'!AQ112/'Population 2016'!AQ$5","v":5.857127198991615E-3},{"$f":"'Population 2016'!AR112/'Population 2016'!AR$5","v":5.7396403434962218E-3},{"$f":"'Population 2016'!AS112/'Population 2016'!AS$5","v":5.7260698433967009E-3},{"$f":"'Population 2016'!AT112/'Population 2016'!AT$5","v":1.001739863974271E-3},{"$f":"'Population 2016'!AU112/'Population 2016'!AU$5","v":1.001739863974271E-3},{"$f":"'Population 2016'!AV112/'Population 2016'!AV$5","v":9.9355928624221303E-3},{"$f":"'Population 2016'!AW112/'Population 2016'!AW$5","v":8.3554518274452372E-3},{"$f":"'Population 2016'!AX112/'Population 2016'!AX$5","v":4.0763126621260722E-3},{"$f":"'Population 2016'!AY112/'Population 2016'!AY$5","v":5.2293381475475046E-3},{"$f":"'Population 2016'!AZ112/'Population 2016'!AZ$5","v":4.3030299543809795E-3},{"$f":"'Population 2016'!BA112/'Population 2016'!BA$5","v":8.5834592960483697E-3},{"$f":"'Population 2016'!BB112/'Population 2016'!BB$5","v":8.2790716944131804E-3},{"$f":"'Population 2016'!BC112/'Population 2016'!BC$5","v":7.6572389678218914E-3},110]
[null,"Female 75-79",{"$f":"'Population 2016'!C113/'Population 2016'!C$5","v":4.1093159828880718E-3},{"$f":"'Population 2016'!D113/'Population 2016'!D$5","v":3.0026505482037892E-3},{"$f":"'Population 2016'!E113/'Population 2016'!E$5","v":1.9876335441287463E-3},{"$f":"'Population 2016'!F113/'Population 2016'!F$5","v":4.3986608292557305E-3},{"$f":"'Population 2016'!G113/'Population 2016'!G$5","v":5.9546364965084178E-3},{"$f":"'Population 2016'!H113/'Population 2016'!H$5","v":6.6988097129498433E-3},{"$f":"'Population 2016'!I113/'Population 2016'!I$5","v":4.6269156687044639E-3},{"$f":"'Population 2016'!J113/'Population 2016'!J$5","v":4.4284849439804944E-3},{"$f":"'Population 2016'!K113/'Population 2016'!K$5","v":5.6702735907007513E-3},{"$f":"'Population 2016'!L113/'Population 2016'!L$5","v":7.7915270122154625E-3},{"$f":"'Population 2016'!M113/'Population 2016'!M$5","v":7.7915270122154625E-3},{"$f":"'Population 2016'!N113/'Population 2016'!N$5","v":4.9589699488028546E-3},{"$f":"'Population 2016'!O113/'Population 2016'!O$5","v":7.231947375199374E-3},{"$f":"'Population 2016'!P113/'Population 2016'!P$5","v":4.2826552462526769E-3},{"$f":"'Population 2016'!Q113/'Population 2016'!Q$5","v":7.203205602754374E-3},{"$f":"'Population 2016'!R113/'Population 2016'!R$5","v":2.1025176984084738E-3},{"$f":"'Population 2016'!S113/'Population 2016'!S$5","v":4.6251264407180595E-3},{"$f":"'Population 2016'!T113/'Population 2016'!T$5","v":2.5313746201774752E-3},{"$f":"'Population 2016'!U113/'Population 2016'!U$5","v":7.34740848935511E-3},{"$f":"'Population 2016'!V113/'Population 2016'!V$5","v":7.342334434937911E-3},{"$f":"'Population 2016'!W113/'Population 2016'!W$5","v":5.157570646951542E-3},{"$f":"'Population 2016'!X113/'Population 2016'!X$5","v":5.157570646951542E-3},{"$f":"'Population 2016'!Y113/'Population 2016'!Y$5","v":5.9458514173065611E-3},{"$f":"'Population 2016'!Z113/'Population 2016'!Z$5","v":3.3198924470994981E-3},{"$f":"'Population 2016'!AA113/'Population 2016'!AA$5","v":5.1894918603175612E-3},{"$f":"'Population 2016'!AB113/'Population 2016'!AB$5","v":3.1442227976623033E-3},{"$f":"'Population 2016'!AC113/'Population 2016'!AC$5","v":4.0006536745404112E-3},{"$f":"'Population 2016'!AD113/'Population 2016'!AD$5","v":5.4784323942089399E-3},{"$f":"'Population 2016'!AE113/'Population 2016'!AE$5","v":5.2977956652532363E-3},{"$f":"'Population 2016'!AF113/'Population 2016'!AF$5","v":3.046343633594233E-3},{"$f":"'Population 2016'!AG113/'Population 2016'!AG$5","v":5.2977956652532363E-3},{"$f":"'Population 2016'!AH113/'Population 2016'!AH$5","v":7.3247076525825953E-3},{"$f":"'Population 2016'!AI113/'Population 2016'!AI$5","v":4.4021786682999385E-3},{"$f":"'Population 2016'!AJ113/'Population 2016'!AJ$5","v":8.3791093885062593E-3},{"$f":"'Population 2016'!AK113/'Population 2016'!AK$5","v":3.8721194825440328E-3},{"$f":"'Population 2016'!AL113/'Population 2016'!AL$5","v":5.0371579078058214E-3},{"$f":"'Population 2016'!AM113/'Population 2016'!AM$5","v":7.4975279889601615E-3},{"$f":"'Population 2016'!AN113/'Population 2016'!AN$5","v":3.436238682229737E-3},{"$f":"'Population 2016'!AO113/'Population 2016'!AO$5","v":3.436238682229737E-3},{"$f":"'Population 2016'!AP113/'Population 2016'!AP$5","v":2.2351505159868743E-3},{"$f":"'Population 2016'!AQ113/'Population 2016'!AQ$5","v":5.5146051405710527E-3},{"$f":"'Population 2016'!AR113/'Population 2016'!AR$5","v":4.9383095596289683E-3},{"$f":"'Population 2016'!AS113/'Population 2016'!AS$5","v":4.6269156687044639E-3},{"$f":"'Population 2016'!AT113/'Population 2016'!AT$5","v":5.2723150735487954E-4},{"$f":"'Population 2016'!AU113/'Population 2016'!AU$5","v":5.2723150735487954E-4},{"$f":"'Population 2016'!AV113/'Population 2016'!AV$5","v":8.1089642065251821E-3},{"$f":"'Population 2016'!AW113/'Population 2016'!AW$5","v":7.1427481847580691E-3},{"$f":"'Population 2016'!AX113/'Population 2016'!AX$5","v":3.7568524221475393E-3},{"$f":"'Population 2016'!AY113/'Population 2016'!AY$5","v":4.4429485021878152E-3},{"$f":"'Population 2016'!AZ113/'Population 2016'!AZ$5","v":3.8140492777467769E-3},{"$f":"'Population 2016'!BA113/'Population 2016'!BA$5","v":8.2055711509393219E-3},{"$f":"'Population 2016'!BB113/'Population 2016'!BB$5","v":6.3387721563563796E-3},{"$f":"'Population 2016'!BC113/'Population 2016'!BC$5","v":7.34740848935511E-3},111]
[null,"Female 80-84",{"$f":"'Population 2016'!C114/'Population 2016'!C$5","v":3.6442068355711388E-3},{"$f":"'Population 2016'!D114/'Population 2016'!D$5","v":2.5698580831939595E-3},{"$f":"'Population 2016'!E114/'Population 2016'!E$5","v":1.5844814573479156E-3},{"$f":"'Population 2016'!F114/'Population 2016'!F$5","v":3.3994334277620396E-3},{"$f":"'Population 2016'!G114/'Population 2016'!G$5","v":4.5201104314404805E-3},{"$f":"'Population 2016'!H114/'Population 2016'!H$5","v":5.2526968707544757E-3},{"$f":"'Population 2016'!I114/'Population 2016'!I$5","v":3.6638472489741226E-3},{"$f":"'Population 2016'!J114/'Population 2016'!J$5","v":2.9606163389532523E-3},{"$f":"'Population 2016'!K114/'Population 2016'!K$5","v":3.8038085337617541E-3},{"$f":"'Population 2016'!L114/'Population 2016'!L$5","v":6.4889679602242942E-3},{"$f":"'Population 2016'!M114/'Population 2016'!M$5","v":6.4889679602242942E-3},{"$f":"'Population 2016'!N114/'Population 2016'!N$5","v":4.0346886779562934E-3},{"$f":"'Population 2016'!O114/'Population 2016'!O$5","v":5.3595664794285772E-3},{"$f":"'Population 2016'!P114/'Population 2016'!P$5","v":3.944550884706413E-3},{"$f":"'Population 2016'!Q114/'Population 2016'!Q$5","v":5.6756089822681283E-3},{"$f":"'Population 2016'!R114/'Population 2016'!R$5","v":2.0093681801245543E-3},{"$f":"'Population 2016'!S114/'Population 2016'!S$5","v":3.5579932600256678E-3},{"$f":"'Population 2016'!T114/'Population 2016'!T$5","v":1.8962043340483845E-3},{"$f":"'Population 2016'!U114/'Population 2016'!U$5","v":6.7720090293453723E-3},{"$f":"'Population 2016'!V114/'Population 2016'!V$5","v":5.2892284442951892E-3},{"$f":"'Population 2016'!W114/'Population 2016'!W$5","v":4.1084070362598785E-3},{"$f":"'Population 2016'!X114/'Population 2016'!X$5","v":4.1084070362598785E-3},{"$f":"'Population 2016'!Y114/'Population 2016'!Y$5","v":4.1732245910239898E-3},{"$f":"'Population 2016'!Z114/'Population 2016'!Z$5","v":2.9908068984074196E-3},{"$f":"'Population 2016'!AA114/'Population 2016'!AA$5","v":4.1895961683731334E-3},{"$f":"'Population 2016'!AB114/'Population 2016'!AB$5","v":2.6038095043140947E-3},{"$f":"'Population 2016'!AC114/'Population 2016'!AC$5","v":3.4183455000920521E-3},{"$f":"'Population 2016'!AD114/'Population 2016'!AD$5","v":4.0120585060850799E-3},{"$f":"'Population 2016'!AE114/'Population 2016'!AE$5","v":3.8193410609965194E-3},{"$f":"'Population 2016'!AF114/'Population 2016'!AF$5","v":2.3526218160430713E-3},{"$f":"'Population 2016'!AG114/'Population 2016'!AG$5","v":3.8193410609965194E-3},{"$f":"'Population 2016'!AH114/'Population 2016'!AH$5","v":5.5748028570632435E-3},{"$f":"'Population 2016'!AI114/'Population 2016'!AI$5","v":3.3139382273164758E-3},{"$f":"'Population 2016'!AJ114/'Population 2016'!AJ$5","v":6.5945403340490196E-3},{"$f":"'Population 2016'!AK114/'Population 2016'!AK$5","v":2.7783714468903611E-3},{"$f":"'Population 2016'!AL114/'Population 2016'!AL$5","v":4.2390166900196872E-3},{"$f":"'Population 2016'!AM114/'Population 2016'!AM$5","v":5.5380291280773368E-3},{"$f":"'Population 2016'!AN114/'Population 2016'!AN$5","v":3.272608268790226E-3},{"$f":"'Population 2016'!AO114/'Population 2016'!AO$5","v":3.272608268790226E-3},{"$f":"'Population 2016'!AP114/'Population 2016'!AP$5","v":1.8705514956485899E-3},{"$f":"'Population 2016'!AQ114/'Population 2016'!AQ$5","v":4.5966460240039458E-3},{"$f":"'Population 2016'!AR114/'Population 2016'!AR$5","v":3.8919234901753992E-3},{"$f":"'Population 2016'!AS114/'Population 2016'!AS$5","v":3.6638472489741226E-3},{"$f":"'Population 2016'!AT114/'Population 2016'!AT$5","v":7.9084726103231925E-4},{"$f":"'Population 2016'!AU114/'Population 2016'!AU$5","v":7.9084726103231925E-4},{"$f":"'Population 2016'!AV114/'Population 2016'!AV$5","v":6.345686833491712E-3},{"$f":"'Population 2016'!AW114/'Population 2016'!AW$5","v":5.6135212642626151E-3},{"$f":"'Population 2016'!AX114/'Population 2016'!AX$5","v":2.504568281431693E-3},{"$f":"'Population 2016'!AY114/'Population 2016'!AY$5","v":3.5571126954499557E-3},{"$f":"'Population 2016'!AZ114/'Population 2016'!AZ$5","v":3.0719491920313409E-3},{"$f":"'Population 2016'!BA114/'Population 2016'!BA$5","v":5.8302742388253075E-3},{"$f":"'Population 2016'!BB114/'Population 2016'!BB$5","v":4.5089523072992547E-3},{"$f":"'Population 2016'!BC114/'Population 2016'!BC$5","v":6.7720090293453723E-3},112]
[null,"Female 85-89",{"$f":"'Population 2016'!C115/'Population 2016'!C$5","v":2.0495469019130809E-3},{"$f":"'Population 2016'!D115/'Population 2016'!D$5","v":1.4353060845241239E-3},{"$f":"'Population 2016'!E115/'Population 2016'!E$5","v":8.7193358303761035E-4},{"$f":"'Population 2016'!F115/'Population 2016'!F$5","v":2.5238217872778777E-3},{"$f":"'Population 2016'!G115/'Population 2016'!G$5","v":2.5307205110160777E-3},{"$f":"'Population 2016'!H115/'Population 2016'!H$5","v":2.8857408734391872E-3},{"$f":"'Population 2016'!I115/'Population 2016'!I$5","v":2.2297127543756804E-3},{"$f":"'Population 2016'!J115/'Population 2016'!J$5","v":1.7249529369811666E-3},{"$f":"'Population 2016'!K115/'Population 2016'!K$5","v":2.4098662760478192E-3},{"$f":"'Population 2016'!L115/'Population 2016'!L$5","v":3.6138071259511064E-3},{"$f":"'Population 2016'!M115/'Population 2016'!M$5","v":3.6138071259511064E-3},{"$f":"'Population 2016'!N115/'Population 2016'!N$5","v":2.2102378215896031E-3},{"$f":"'Population 2016'!O115/'Population 2016'!O$5","v":2.8630586184008478E-3},{"$f":"'Population 2016'!P115/'Population 2016'!P$5","v":2.2878395131297195E-3},{"$f":"'Population 2016'!Q115/'Population 2016'!Q$5","v":3.1962021597866067E-3},{"$f":"'Population 2016'!R115/'Population 2016'!R$5","v":8.9157396071751747E-4},{"$f":"'Population 2016'!S115/'Population 2016'!S$5","v":2.2304760526134612E-3},{"$f":"'Population 2016'!T115/'Population 2016'!T$5","v":1.293606883105401E-3},{"$f":"'Population 2016'!U115/'Population 2016'!U$5","v":2.7884743062010359E-3},{"$f":"'Population 2016'!V115/'Population 2016'!V$5","v":3.304813732149808E-3},{"$f":"'Population 2016'!W115/'Population 2016'!W$5","v":2.6441537727400492E-3},{"$f":"'Population 2016'!X115/'Population 2016'!X$5","v":2.6441537727400492E-3},{"$f":"'Population 2016'!Y115/'Population 2016'!Y$5","v":2.5476542503298834E-3},{"$f":"'Population 2016'!Z115/'Population 2016'!Z$5","v":1.85836545143762E-3},{"$f":"'Population 2016'!AA115/'Population 2016'!AA$5","v":2.4402769943600569E-3},{"$f":"'Population 2016'!AB115/'Population 2016'!AB$5","v":1.4902305968086957E-3},{"$f":"'Population 2016'!AC115/'Population 2016'!AC$5","v":1.9858467050459122E-3},{"$f":"'Population 2016'!AD115/'Population 2016'!AD$5","v":2.5159105288622575E-3},{"$f":"'Population 2016'!AE115/'Population 2016'!AE$5","v":2.5102927134775513E-3},{"$f":"'Population 2016'!AF115/'Population 2016'!AF$5","v":1.2064727261759339E-3},{"$f":"'Population 2016'!AG115/'Population 2016'!AG$5","v":2.5102927134775513E-3},{"$f":"'Population 2016'!AH115/'Population 2016'!AH$5","v":3.256457650260535E-3},{"$f":"'Population 2016'!AI115/'Population 2016'!AI$5","v":2.0575400297488844E-3},{"$f":"'Population 2016'!AJ115/'Population 2016'!AJ$5","v":4.2801773415497863E-3},{"$f":"'Population 2016'!AK115/'Population 2016'!AK$5","v":1.772626126749054E-3},{"$f":"'Population 2016'!AL115/'Population 2016'!AL$5","v":2.16384952377574E-3},{"$f":"'Population 2016'!AM115/'Population 2016'!AM$5","v":3.0497191143499789E-3},{"$f":"'Population 2016'!AN115/'Population 2016'!AN$5","v":1.5817606632486092E-3},{"$f":"'Population 2016'!AO115/'Population 2016'!AO$5","v":1.5817606632486092E-3},{"$f":"'Population 2016'!AP115/'Population 2016'!AP$5","v":1.6169173945436964E-3},{"$f":"'Population 2016'!AQ115/'Population 2016'!AQ$5","v":2.4182057324491696E-3},{"$f":"'Population 2016'!AR115/'Population 2016'!AR$5","v":2.3193368893083049E-3},{"$f":"'Population 2016'!AS115/'Population 2016'!AS$5","v":2.2297127543756804E-3},{"$f":"'Population 2016'!AT115/'Population 2016'!AT$5","v":2.6361575367743977E-4},{"$f":"'Population 2016'!AU115/'Population 2016'!AU$5","v":2.6361575367743977E-4},{"$f":"'Population 2016'!AV115/'Population 2016'!AV$5","v":3.7694013303769401E-3},{"$f":"'Population 2016'!AW115/'Population 2016'!AW$5","v":3.4741289889560069E-3},{"$f":"'Population 2016'!AX115/'Population 2016'!AX$5","v":1.3545114175089769E-3},{"$f":"'Population 2016'!AY115/'Population 2016'!AY$5","v":2.3453994675805513E-3},{"$f":"'Population 2016'!AZ115/'Population 2016'!AZ$5","v":2.0824824110774257E-3},{"$f":"'Population 2016'!BA115/'Population 2016'!BA$5","v":3.4684733318937596E-3},{"$f":"'Population 2016'!BB115/'Population 2016'!BB$5","v":2.5548428081174951E-3},{"$f":"'Population 2016'!BC115/'Population 2016'!BC$5","v":2.7884743062010359E-3},113]
[null,"Female 90+",{"$f":"'Population 2016'!C116/'Population 2016'!C$5","v":9.9666245853628614E-4},{"$f":"'Population 2016'!D116/'Population 2016'!D$5","v":7.5555294739004136E-4},{"$f":"'Population 2016'!E116/'Population 2016'!E$5","v":5.3441090573272897E-4},{"$f":"'Population 2016'!F116/'Population 2016'!F$5","v":1.658511460211177E-3},{"$f":"'Population 2016'!G116/'Population 2016'!G$5","v":1.4074595355383533E-3},{"$f":"'Population 2016'!H116/'Population 2016'!H$5","v":2.0102913949801076E-3},{"$f":"'Population 2016'!I116/'Population 2016'!I$5","v":1.5388158445691317E-3},{"$f":"'Population 2016'!J116/'Population 2016'!J$5","v":1.0449234137482066E-3},{"$f":"'Population 2016'!K116/'Population 2016'!K$5","v":1.441194537636441E-3},{"$f":"'Population 2016'!L116/'Population 2016'!L$5","v":2.1921115753022096E-3},{"$f":"'Population 2016'!M116/'Population 2016'!M$5","v":2.1921115753022096E-3},{"$f":"'Population 2016'!N116/'Population 2016'!N$5","v":1.3261426929537619E-3},{"$f":"'Population 2016'!O116/'Population 2016'!O$5","v":1.8228470096392942E-3},{"$f":"'Population 2016'!P116/'Population 2016'!P$5","v":1.5665502084976897E-3},{"$f":"'Population 2016'!Q116/'Population 2016'!Q$5","v":1.7273592554729086E-3},{"$f":"'Population 2016'!R116/'Population 2016'!R$5","v":4.6574759141959865E-4},{"$f":"'Population 2016'!S116/'Population 2016'!S$5","v":1.2851496369628806E-3},{"$f":"'Population 2016'!T116/'Population 2016'!T$5","v":7.817480444665733E-4},{"$f":"'Population 2016'!U116/'Population 2016'!U$5","v":2.5229053246580801E-3},{"$f":"'Population 2016'!V116/'Population 2016'!V$5","v":2.106532540585097E-3},{"$f":"'Population 2016'!W116/'Population 2016'!W$5","v":1.5753796272691023E-3},{"$f":"'Population 2016'!X116/'Population 2016'!X$5","v":1.5753796272691023E-3},{"$f":"'Population 2016'!Y116/'Population 2016'!Y$5","v":1.5977488434206133E-3},{"$f":"'Population 2016'!Z116/'Population 2016'!Z$5","v":1.0898539053743543E-3},{"$f":"'Population 2016'!AA116/'Population 2016'!AA$5","v":1.2603336396136749E-3},{"$f":"'Population 2016'!AB116/'Population 2016'!AB$5","v":7.635384788594004E-4},{"$f":"'Population 2016'!AC116/'Population 2016'!AC$5","v":1.068426899121056E-3},{"$f":"'Population 2016'!AD116/'Population 2016'!AD$5","v":1.3993821876511965E-3},{"$f":"'Population 2016'!AE116/'Population 2016'!AE$5","v":1.3963182373535662E-3},{"$f":"'Population 2016'!AF116/'Population 2016'!AF$5","v":3.9210363600717849E-4},{"$f":"'Population 2016'!AG116/'Population 2016'!AG$5","v":1.3963182373535662E-3},{"$f":"'Population 2016'!AH116/'Population 2016'!AH$5","v":1.6050082200941827E-3},{"$f":"'Population 2016'!AI116/'Population 2016'!AI$5","v":1.130621664187593E-3},{"$f":"'Population 2016'!AJ116/'Population 2016'!AJ$5","v":1.9379304575746592E-3},{"$f":"'Population 2016'!AK116/'Population 2016'!AK$5","v":8.0459625611304579E-4},{"$f":"'Population 2016'!AL116/'Population 2016'!AL$5","v":1.3657083059896065E-3},{"$f":"'Population 2016'!AM116/'Population 2016'!AM$5","v":1.3039179111235064E-3},{"$f":"'Population 2016'!AN116/'Population 2016'!AN$5","v":6.5452165375804513E-4},{"$f":"'Population 2016'!AO116/'Population 2016'!AO$5","v":6.5452165375804513E-4},{"$f":"'Population 2016'!AP116/'Population 2016'!AP$5","v":7.609023033146807E-4},{"$f":"'Population 2016'!AQ116/'Population 2016'!AQ$5","v":1.1508741162930892E-3},{"$f":"'Population 2016'!AR116/'Population 2016'!AR$5","v":1.3126052206132487E-3},{"$f":"'Population 2016'!AS116/'Population 2016'!AS$5","v":1.5388158445691317E-3},{"$f":"'Population 2016'!AT116/'Population 2016'!AT$5","v":5.2723150735487951E-5},{"$f":"'Population 2016'!AU116/'Population 2016'!AU$5","v":5.2723150735487951E-5},{"$f":"'Population 2016'!AV116/'Population 2016'!AV$5","v":2.9775102945834653E-3},{"$f":"'Population 2016'!AW116/'Population 2016'!AW$5","v":1.9220208676551346E-3},{"$f":"'Population 2016'!AX116/'Population 2016'!AX$5","v":8.3059662394418393E-4},{"$f":"'Population 2016'!AY116/'Population 2016'!AY$5","v":1.3830666136287139E-3},{"$f":"'Population 2016'!AZ116/'Population 2016'!AZ$5","v":1.2138226208213724E-3},{"$f":"'Population 2016'!BA116/'Population 2016'!BA$5","v":1.3765925286115309E-3},{"$f":"'Population 2016'!BB116/'Population 2016'!BB$5","v":1.4155210153083419E-3},{"$f":"'Population 2016'!BC116/'Population 2016'!BC$5","v":2.5229053246580801E-3},114]
[null,"Male 0-4",{"$f":"'Population 2016'!C117/'Population 2016'!C$5","v":0},{"$f":"'Population 2016'!D117/'Population 2016'!D$5","v":0},{"$f":"'Population 2016'!E117/'Population 2016'!E$5","v":0},{"$f":"'Population 2016'!F117/'Population 2016'!F$5","v":0},{"$f":"'Population 2016'!G117/'Population 2016'!G$5","v":0},{"$f":"'Population 2016'!H117/'Population 2016'!H$5","v":0},{"$f":"'Population 2016'!I117/'Population 2016'!I$5","v":0},{"$f":"'Population 2016'!J117/'Population 2016'!J$5","v":0},{"$f":"'Population 2016'!K117/'Population 2016'!K$5","v":0},{"$f":"'Population 2016'!L117/'Population 2016'!L$5","v":0},{"$f":"'Population 2016'!M117/'Population 2016'!M$5","v":0},{"$f":"'Population 2016'!N117/'Population 2016'!N$5","v":0},{"$f":"'Population 2016'!O117/'Population 2016'!O$5","v":0},{"$f":"'Population 2016'!P117/'Population 2016'!P$5","v":0},{"$f":"'Population 2016'!Q117/'Population 2016'!Q$5","v":0},{"$f":"'Population 2016'!R117/'Population 2016'!R$5","v":0},{"$f":"'Population 2016'!S117/'Population 2016'!S$5","v":0},{"$f":"'Population 2016'!T117/'Population 2016'!T$5","v":0},{"$f":"'Population 2016'!U117/'Population 2016'!U$5","v":0},{"$f":"'Population 2016'!V117/'Population 2016'!V$5","v":0},{"$f":"'Population 2016'!W117/'Population 2016'!W$5","v":0},{"$f":"'Population 2016'!X117/'Population 2016'!X$5","v":0},{"$f":"'Population 2016'!Y117/'Population 2016'!Y$5","v":0},{"$f":"'Population 2016'!Z117/'Population 2016'!Z$5","v":0},{"$f":"'Population 2016'!AA117/'Population 2016'!AA$5","v":0},{"$f":"'Population 2016'!AB117/'Population 2016'!AB$5","v":0},{"$f":"'Population 2016'!AC117/'Population 2016'!AC$5","v":0},{"$f":"'Population 2016'!AD117/'Population 2016'!AD$5","v":0},{"$f":"'Population 2016'!AE117/'Population 2016'!AE$5","v":0},{"$f":"'Population 2016'!AF117/'Population 2016'!AF$5","v":0},{"$f":"'Population 2016'!AG117/'Population 2016'!AG$5","v":0},{"$f":"'Population 2016'!AH117/'Population 2016'!AH$5","v":0},{"$f":"'Population 2016'!AI117/'Population 2016'!AI$5","v":0},{"$f":"'Population 2016'!AJ117/'Population 2016'!AJ$5","v":0},{"$f":"'Population 2016'!AK117/'Population 2016'!AK$5","v":0},{"$f":"'Population 2016'!AL117/'Population 2016'!AL$5","v":0},{"$f":"'Population 2016'!AM117/'Population 2016'!AM$5","v":0},{"$f":"'Population 2016'!AN117/'Population 2016'!AN$5","v":0},{"$f":"'Population 2016'!AO117/'Population 2016'!AO$5","v":0},{"$f":"'Population 2016'!AP117/'Population 2016'!AP$5","v":0},{"$f":"'Population 2016'!AQ117/'Population 2016'!AQ$5","v":0},{"$f":"'Population 2016'!AR117/'Population 2016'!AR$5","v":0},{"$f":"'Population 2016'!AS117/'Population 2016'!AS$5","v":0},{"$f":"'Population 2016'!AT117/'Population 2016'!AT$5","v":0},{"$f":"'Population 2016'!AU117/'Population 2016'!AU$5","v":0},{"$f":"'Population 2016'!AV117/'Population 2016'!AV$5","v":0},{"$f":"'Population 2016'!AW117/'Population 2016'!AW$5","v":0},{"$f":"'Population 2016'!AX117/'Population 2016'!AX$5","v":0},{"$f":"'Population 2016'!AY117/'Population 2016'!AY$5","v":0},{"$f":"'Population 2016'!AZ117/'Population 2016'!AZ$5","v":0},{"$f":"'Population 2016'!BA117/'Population 2016'!BA$5","v":0},{"$f":"'Population 2016'!BB117/'Population 2016'!BB$5","v":0},{"$f":"'Population 2016'!BC117/'Population 2016'!BC$5","v":0},115]
[null,"Male 5-9",{"$f":"'Population 2016'!C118/'Population 2016'!C$5","v":0},{"$f":"'Population 2016'!D118/'Population 2016'!D$5","v":0},{"$f":"'Population 2016'!E118/'Population 2016'!E$5","v":0},{"$f":"'Population 2016'!F118/'Population 2016'!F$5","v":0},{"$f":"'Population 2016'!G118/'Population 2016'!G$5","v":0},{"$f":"'Population 2016'!H118/'Population 2016'!H$5","v":0},{"$f":"'Population 2016'!I118/'Population 2016'!I$5","v":0},{"$f":"'Population 2016'!J118/'Population 2016'!J$5","v":0},{"$f":"'Population 2016'!K118/'Population 2016'!K$5","v":0},{"$f":"'Population 2016'!L118/'Population 2016'!L$5","v":0},{"$f":"'Population 2016'!M118/'Population 2016'!M$5","v":0},{"$f":"'Population 2016'!N118/'Population 2016'!N$5","v":0},{"$f":"'Population 2016'!O118/'Population 2016'!O$5","v":0},{"$f":"'Population 2016'!P118/'Population 2016'!P$5","v":0},{"$f":"'Population 2016'!Q118/'Population 2016'!Q$5","v":0},{"$f":"'Population 2016'!R118/'Population 2016'!R$5","v":0},{"$f":"'Population 2016'!S118/'Population 2016'!S$5","v":0},{"$f":"'Population 2016'!T118/'Population 2016'!T$5","v":0},{"$f":"'Population 2016'!U118/'Population 2016'!U$5","v":0},{"$f":"'Population 2016'!V118/'Population 2016'!V$5","v":0},{"$f":"'Population 2016'!W118/'Population 2016'!W$5","v":0},{"$f":"'Population 2016'!X118/'Population 2016'!X$5","v":0},{"$f":"'Population 2016'!Y118/'Population 2016'!Y$5","v":0},{"$f":"'Population 2016'!Z118/'Population 2016'!Z$5","v":0},{"$f":"'Population 2016'!AA118/'Population 2016'!AA$5","v":0},{"$f":"'Population 2016'!AB118/'Population 2016'!AB$5","v":0},{"$f":"'Population 2016'!AC118/'Population 2016'!AC$5","v":0},{"$f":"'Population 2016'!AD118/'Population 2016'!AD$5","v":0},{"$f":"'Population 2016'!AE118/'Population 2016'!AE$5","v":0},{"$f":"'Population 2016'!AF118/'Population 2016'!AF$5","v":0},{"$f":"'Population 2016'!AG118/'Population 2016'!AG$5","v":0},{"$f":"'Population 2016'!AH118/'Population 2016'!AH$5","v":0},{"$f":"'Population 2016'!AI118/'Population 2016'!AI$5","v":0},{"$f":"'Population 2016'!AJ118/'Population 2016'!AJ$5","v":0},{"$f":"'Population 2016'!AK118/'Population 2016'!AK$5","v":0},{"$f":"'Population 2016'!AL118/'Population 2016'!AL$5","v":0},{"$f":"'Population 2016'!AM118/'Population 2016'!AM$5","v":0},{"$f":"'Population 2016'!AN118/'Population 2016'!AN$5","v":0},{"$f":"'Population 2016'!AO118/'Population 2016'!AO$5","v":0},{"$f":"'Population 2016'!AP118/'Population 2016'!AP$5","v":0},{"$f":"'Population 2016'!AQ118/'Population 2016'!AQ$5","v":0},{"$f":"'Population 2016'!AR118/'Population 2016'!AR$5","v":0},{"$f":"'Population 2016'!AS118/'Population 2016'!AS$5","v":0},{"$f":"'Population 2016'!AT118/'Population 2016'!AT$5","v":0},{"$f":"'Population 2016'!AU118/'Population 2016'!AU$5","v":0},{"$f":"'Population 2016'!AV118/'Population 2016'!AV$5","v":0},{"$f":"'Population 2016'!AW118/'Population 2016'!AW$5","v":0},{"$f":"'Population 2016'!AX118/'Population 2016'!AX$5","v":0},{"$f":"'Population 2016'!AY118/'Population 2016'!AY$5","v":0},{"$f":"'Population 2016'!AZ118/'Population 2016'!AZ$5","v":0},{"$f":"'Population 2016'!BA118/'Population 2016'!BA$5","v":0},{"$f":"'Population 2016'!BB118/'Population 2016'!BB$5","v":0},{"$f":"'Population 2016'!BC118/'Population 2016'!BC$5","v":0},116]
[null,"Male 10-15",{"$f":"'Population 2016'!C119/'Population 2016'!C$5","v":0},{"$f":"'Population 2016'!D119/'Population 2016'!D$5","v":0},{"$f":"'Population 2016'!E119/'Population 2016'!E$5","v":0},{"$f":"'Population 2016'!F119/'Population 2016'!F$5","v":0},{"$f":"'Population 2016'!G119/'Population 2016'!G$5","v":0},{"$f":"'Population 2016'!H119/'Population 2016'!H$5","v":0},{"$f":"'Population 2016'!I119/'Population 2016'!I$5","v":0},{"$f":"'Population 2016'!J119/'Population 2016'!J$5","v":0},{"$f":"'Population 2016'!K119/'Population 2016'!K$5","v":0},{"$f":"'Population 2016'!L119/'Population 2016'!L$5","v":0},{"$f":"'Population 2016'!M119/'Population 2016'!M$5","v":0},{"$f":"'Population 2016'!N119/'Population 2016'!N$5","v":0},{"$f":"'Population 2016'!O119/'Population 2016'!O$5","v":0},{"$f":"'Population 2016'!P119/'Population 2016'!P$5","v":0},{"$f":"'Population 2016'!Q119/'Population 2016'!Q$5","v":0},{"$f":"'Population 2016'!R119/'Population 2016'!R$5","v":0},{"$f":"'Population 2016'!S119/'Population 2016'!S$5","v":0},{"$f":"'Population 2016'!T119/'Population 2016'!T$5","v":0},{"$f":"'Population 2016'!U119/'Population 2016'!U$5","v":0},{"$f":"'Population 2016'!V119/'Population 2016'!V$5","v":0},{"$f":"'Population 2016'!W119/'Population 2016'!W$5","v":0},{"$f":"'Population 2016'!X119/'Population 2016'!X$5","v":0},{"$f":"'Population 2016'!Y119/'Population 2016'!Y$5","v":0},{"$f":"'Population 2016'!Z119/'Population 2016'!Z$5","v":0},{"$f":"'Population 2016'!AA119/'Population 2016'!AA$5","v":0},{"$f":"'Population 2016'!AB119/'Population 2016'!AB$5","v":0},{"$f":"'Population 2016'!AC119/'Population 2016'!AC$5","v":0},{"$f":"'Population 2016'!AD119/'Population 2016'!AD$5","v":0},{"$f":"'Population 2016'!AE119/'Population 2016'!AE$5","v":0},{"$f":"'Population 2016'!AF119/'Population 2016'!AF$5","v":0},{"$f":"'Population 2016'!AG119/'Population 2016'!AG$5","v":0},{"$f":"'Population 2016'!AH119/'Population 2016'!AH$5","v":0},{"$f":"'Population 2016'!AI119/'Population 2016'!AI$5","v":0},{"$f":"'Population 2016'!AJ119/'Population 2016'!AJ$5","v":0},{"$f":"'Population 2016'!AK119/'Population 2016'!AK$5","v":0},{"$f":"'Population 2016'!AL119/'Population 2016'!AL$5","v":0},{"$f":"'Population 2016'!AM119/'Population 2016'!AM$5","v":0},{"$f":"'Population 2016'!AN119/'Population 2016'!AN$5","v":0},{"$f":"'Population 2016'!AO119/'Population 2016'!AO$5","v":0},{"$f":"'Population 2016'!AP119/'Population 2016'!AP$5","v":0},{"$f":"'Population 2016'!AQ119/'Population 2016'!AQ$5","v":0},{"$f":"'Population 2016'!AR119/'Population 2016'!AR$5","v":0},{"$f":"'Population 2016'!AS119/'Population 2016'!AS$5","v":0},{"$f":"'Population 2016'!AT119/'Population 2016'!AT$5","v":0},{"$f":"'Population 2016'!AU119/'Population 2016'!AU$5","v":0},{"$f":"'Population 2016'!AV119/'Population 2016'!AV$5","v":0},{"$f":"'Population 2016'!AW119/'Population 2016'!AW$5","v":0},{"$f":"'Population 2016'!AX119/'Population 2016'!AX$5","v":0},{"$f":"'Population 2016'!AY119/'Population 2016'!AY$5","v":0},{"$f":"'Population 2016'!AZ119/'Population 2016'!AZ$5","v":0},{"$f":"'Population 2016'!BA119/'Population 2016'!BA$5","v":0},{"$f":"'Population 2016'!BB119/'Population 2016'!BB$5","v":0},{"$f":"'Population 2016'!BC119/'Population 2016'!BC$5","v":0},117]
[null,"Male 16-19",{"$f":"'Population 2016'!C120/'Population 2016'!C$5","v":4.727757816133665E-3},{"$f":"'Population 2016'!D120/'Population 2016'!D$5","v":3.3009594788885304E-3},{"$f":"'Population 2016'!E120/'Population 2016'!E$5","v":1.992321359091314E-3},{"$f":"'Population 2016'!F120/'Population 2016'!F$5","v":4.017512232809683E-3},{"$f":"'Population 2016'!G120/'Population 2016'!G$5","v":4.1141124884967253E-3},{"$f":"'Population 2016'!H120/'Population 2016'!H$5","v":6.5885679267735147E-3},{"$f":"'Population 2016'!I120/'Population 2016'!I$5","v":3.8208692739301565E-3},{"$f":"'Population 2016'!J120/'Population 2016'!J$5","v":5.149979682044733E-3},{"$f":"'Population 2016'!K120/'Population 2016'!K$5","v":7.2295988281434577E-3},{"$f":"'Population 2016'!L120/'Population 2016'!L$5","v":7.1799596524391215E-3},{"$f":"'Population 2016'!M120/'Population 2016'!M$5","v":7.1799596524391215E-3},{"$f":"'Population 2016'!N120/'Population 2016'!N$5","v":4.5329968413692226E-3},{"$f":"'Population 2016'!O120/'Population 2016'!O$5","v":7.2022270435204722E-3},{"$f":"'Population 2016'!P120/'Population 2016'!P$5","v":4.7221909162628202E-3},{"$f":"'Population 2016'!Q120/'Population 2016'!Q$5","v":7.1444518865818266E-3},{"$f":"'Population 2016'!R120/'Population 2016'!R$5","v":2.9009421408420716E-3},{"$f":"'Population 2016'!S120/'Population 2016'!S$5","v":5.2359255813625057E-3},{"$f":"'Population 2016'!T120/'Population 2016'!T$5","v":3.5294993555231896E-3},{"$f":"'Population 2016'!U120/'Population 2016'!U$5","v":6.1966095693356347E-3},{"$f":"'Population 2016'!V120/'Population 2016'!V$5","v":8.3498065195655655E-3},{"$f":"'Population 2016'!W120/'Population 2016'!W$5","v":5.3438707273547352E-3},{"$f":"'Population 2016'!X120/'Population 2016'!X$5","v":5.3438707273547352E-3},{"$f":"'Population 2016'!Y120/'Population 2016'!Y$5","v":6.8162668320058501E-3},{"$f":"'Population 2016'!Z120/'Population 2016'!Z$5","v":4.5084720170814755E-3},{"$f":"'Population 2016'!AA120/'Population 2016'!AA$5","v":5.6784773947169635E-3},{"$f":"'Population 2016'!AB120/'Population 2016'!AB$5","v":3.4717460057521262E-3},{"$f":"'Population 2016'!AC120/'Population 2016'!AC$5","v":4.640882377885942E-3},{"$f":"'Population 2016'!AD120/'Population 2016'!AD$5","v":4.905281179053928E-3},{"$f":"'Population 2016'!AE120/'Population 2016'!AE$5","v":5.2053922524871923E-3},{"$f":"'Population 2016'!AF120/'Population 2016'!AF$5","v":3.2122336334434241E-3},{"$f":"'Population 2016'!AG120/'Population 2016'!AG$5","v":5.2053922524871923E-3},{"$f":"'Population 2016'!AH120/'Population 2016'!AH$5","v":7.5420525157203497E-3},{"$f":"'Population 2016'!AI120/'Population 2016'!AI$5","v":5.3755796657625338E-3},{"$f":"'Population 2016'!AJ120/'Population 2016'!AJ$5","v":9.9963750941081345E-3},{"$f":"'Population 2016'!AK120/'Population 2016'!AK$5","v":4.3498485096111535E-3},{"$f":"'Population 2016'!AL120/'Population 2016'!AL$5","v":5.8796403043578508E-3},{"$f":"'Population 2016'!AM120/'Population 2016'!AM$5","v":8.008229170816868E-3},{"$f":"'Population 2016'!AN120/'Population 2016'!AN$5","v":3.654412566815752E-3},{"$f":"'Population 2016'!AO120/'Population 2016'!AO$5","v":3.654412566815752E-3},{"$f":"'Population 2016'!AP120/'Population 2016'!AP$5","v":3.011904950620611E-3},{"$f":"'Population 2016'!AQ120/'Population 2016'!AQ$5","v":4.9665698470981534E-3},{"$f":"'Population 2016'!AR120/'Population 2016'!AR$5","v":5.2782680739968937E-3},{"$f":"'Population 2016'!AS120/'Population 2016'!AS$5","v":3.8208692739301565E-3},{"$f":"'Population 2016'!AT120/'Population 2016'!AT$5","v":4.2178520588390361E-4},{"$f":"'Population 2016'!AU120/'Population 2016'!AU$5","v":4.2178520588390361E-4},{"$f":"'Population 2016'!AV120/'Population 2016'!AV$5","v":6.7785872663921444E-3},{"$f":"'Population 2016'!AW120/'Population 2016'!AW$5","v":7.0512233815363968E-3},{"$f":"'Population 2016'!AX120/'Population 2016'!AX$5","v":4.0251990237295063E-3},{"$f":"'Population 2016'!AY120/'Population 2016'!AY$5","v":4.542394663565986E-3},{"$f":"'Population 2016'!AZ120/'Population 2016'!AZ$5","v":3.8370601331177982E-3},{"$f":"'Population 2016'!BA120/'Population 2016'!BA$5","v":7.8681710213776724E-3},{"$f":"'Population 2016'!BB120/'Population 2016'!BB$5","v":7.5264288131028914E-3},{"$f":"'Population 2016'!BC120/'Population 2016'!BC$5","v":6.1966095693356347E-3},118]
[null,"Male 20-24",{"$f":"'Population 2016'!C121/'Population 2016'!C$5","v":1.1382396385437483E-2},{"$f":"'Population 2016'!D121/'Population 2016'!D$5","v":6.9417955263441017E-3},{"$f":"'Population 2016'!E121/'Population 2016'!E$5","v":2.8689427570914921E-3},{"$f":"'Population 2016'!F121/'Population 2016'!F$5","v":6.2631985578161216E-3},{"$f":"'Population 2016'!G121/'Population 2016'!G$5","v":5.3862393763871594E-3},{"$f":"'Population 2016'!H121/'Population 2016'!H$5","v":8.4594358862953248E-3},{"$f":"'Population 2016'!I121/'Population 2016'!I$5","v":5.6527928984172176E-3},{"$f":"'Population 2016'!J121/'Population 2016'!J$5","v":8.5584203411757879E-3},{"$f":"'Population 2016'!K121/'Population 2016'!K$5","v":9.5922128242687706E-3},{"$f":"'Population 2016'!L121/'Population 2016'!L$5","v":9.6897685574952735E-3},{"$f":"'Population 2016'!M121/'Population 2016'!M$5","v":9.6897685574952735E-3},{"$f":"'Population 2016'!N121/'Population 2016'!N$5","v":1.3494506554359794E-2},{"$f":"'Population 2016'!O121/'Population 2016'!O$5","v":9.6888281273219013E-3},{"$f":"'Population 2016'!P121/'Population 2016'!P$5","v":6.9424095570832867E-3},{"$f":"'Population 2016'!Q121/'Population 2016'!Q$5","v":1.0023383979036673E-2},{"$f":"'Population 2016'!R121/'Population 2016'!R$5","v":3.9255868419651885E-3},{"$f":"'Population 2016'!S121/'Population 2016'!S$5","v":7.7417908418965847E-3},{"$f":"'Population 2016'!T121/'Population 2016'!T$5","v":6.814702447150575E-3},{"$f":"'Population 2016'!U121/'Population 2016'!U$5","v":6.90479352011685E-3},{"$f":"'Population 2016'!V121/'Population 2016'!V$5","v":1.003655902488914E-2},{"$f":"'Population 2016'!W121/'Population 2016'!W$5","v":6.6348976003242277E-3},{"$f":"'Population 2016'!X121/'Population 2016'!X$5","v":6.6348976003242277E-3},{"$f":"'Population 2016'!Y121/'Population 2016'!Y$5","v":9.3281505858412422E-3},{"$f":"'Population 2016'!Z121/'Population 2016'!Z$5","v":8.5000861429818629E-3},{"$f":"'Population 2016'!AA121/'Population 2016'!AA$5","v":8.4648976817700752E-3},{"$f":"'Population 2016'!AB121/'Population 2016'!AB$5","v":6.8063416681166389E-3},{"$f":"'Population 2016'!AC121/'Population 2016'!AC$5","v":7.6899845062585199E-3},{"$f":"'Population 2016'!AD121/'Population 2016'!AD$5","v":6.3493245003535675E-3},{"$f":"'Population 2016'!AE121/'Population 2016'!AE$5","v":6.7146479943325909E-3},{"$f":"'Population 2016'!AF121/'Population 2016'!AF$5","v":4.8560527228581341E-3},{"$f":"'Population 2016'!AG121/'Population 2016'!AG$5","v":6.7146479943325909E-3},{"$f":"'Population 2016'!AH121/'Population 2016'!AH$5","v":9.8566824257172846E-3},{"$f":"'Population 2016'!AI121/'Population 2016'!AI$5","v":8.4776117770583598E-3},{"$f":"'Population 2016'!AJ121/'Population 2016'!AJ$5","v":1.2352563923821209E-2},{"$f":"'Population 2016'!AK121/'Population 2016'!AK$5","v":6.1099028198584411E-3},{"$f":"'Population 2016'!AL121/'Population 2016'!AL$5","v":7.3783721466451468E-3},{"$f":"'Population 2016'!AM121/'Population 2016'!AM$5","v":1.0257487567504917E-2},{"$f":"'Population 2016'!AN121/'Population 2016'!AN$5","v":4.9634558743318425E-3},{"$f":"'Population 2016'!AO121/'Population 2016'!AO$5","v":4.9634558743318425E-3},{"$f":"'Population 2016'!AP121/'Population 2016'!AP$5","v":5.3025379262241811E-3},{"$f":"'Population 2016'!AQ121/'Population 2016'!AQ$5","v":6.6860305803693757E-3},{"$f":"'Population 2016'!AR121/'Population 2016'!AR$5","v":8.011971173478424E-3},{"$f":"'Population 2016'!AS121/'Population 2016'!AS$5","v":5.6527928984172176E-3},{"$f":"'Population 2016'!AT121/'Population 2016'!AT$5","v":2.2143723308904939E-3},{"$f":"'Population 2016'!AU121/'Population 2016'!AU$5","v":2.2143723308904939E-3},{"$f":"'Population 2016'!AV121/'Population 2016'!AV$5","v":8.4362791679864855E-3},{"$f":"'Population 2016'!AW121/'Population 2016'!AW$5","v":9.4346817987674657E-3},{"$f":"'Population 2016'!AX121/'Population 2016'!AX$5","v":7.9992844090624477E-3},{"$f":"'Population 2016'!AY121/'Population 2016'!AY$5","v":7.6282855481778402E-3},{"$f":"'Population 2016'!AZ121/'Population 2016'!AZ$5","v":8.5025110595923631E-3},{"$f":"'Population 2016'!BA121/'Population 2016'!BA$5","v":1.1269164327359102E-2},{"$f":"'Population 2016'!BB121/'Population 2016'!BB$5","v":1.0585335202281406E-2},{"$f":"'Population 2016'!BC121/'Population 2016'!BC$5","v":6.90479352011685E-3},119]
[null,"Male 25-29",{"$f":"'Population 2016'!C122/'Population 2016'!C$5","v":1.359038706281018E-2},{"$f":"'Population 2016'!D122/'Population 2016'!D$5","v":8.2597341627299661E-3},{"$f":"'Population 2016'!E122/'Population 2016'!E$5","v":3.3705389580862464E-3},{"$f":"'Population 2016'!F122/'Population 2016'!F$5","v":7.3242338398145767E-3},{"$f":"'Population 2016'!G122/'Population 2016'!G$5","v":4.9261083743842365E-3},{"$f":"'Population 2016'!H122/'Population 2016'!H$5","v":8.2713763687004109E-3},{"$f":"'Population 2016'!I122/'Population 2016'!I$5","v":5.9459006783351481E-3},{"$f":"'Population 2016'!J122/'Population 2016'!J$5","v":8.6330577278720885E-3},{"$f":"'Population 2016'!K122/'Population 2016'!K$5","v":9.1433161650049614E-3},{"$f":"'Population 2016'!L122/'Population 2016'!L$5","v":7.8868362111416453E-3},{"$f":"'Population 2016'!M122/'Population 2016'!M$5","v":7.8868362111416453E-3},{"$f":"'Population 2016'!N122/'Population 2016'!N$5","v":1.2497890227533937E-2},{"$f":"'Population 2016'!O122/'Population 2016'!O$5","v":9.3123705927224808E-3},{"$f":"'Population 2016'!P122/'Population 2016'!P$5","v":6.5366843232277693E-3},{"$f":"'Population 2016'!Q122/'Population 2016'!Q$5","v":9.9881317493331449E-3},{"$f":"'Population 2016'!R122/'Population 2016'!R$5","v":3.4332251024644703E-3},{"$f":"'Population 2016'!S122/'Population 2016'!S$5","v":9.104614358016563E-3},{"$f":"'Population 2016'!T122/'Population 2016'!T$5","v":1.001614681972797E-2},{"$f":"'Population 2016'!U122/'Population 2016'!U$5","v":7.8342849555171953E-3},{"$f":"'Population 2016'!V122/'Population 2016'!V$5","v":1.0173941581883819E-2},{"$f":"'Population 2016'!W122/'Population 2016'!W$5","v":7.0499872531523938E-3},{"$f":"'Population 2016'!X122/'Population 2016'!X$5","v":7.0499872531523938E-3},{"$f":"'Population 2016'!Y122/'Population 2016'!Y$5","v":9.4354620753247173E-3},{"$f":"'Population 2016'!Z122/'Population 2016'!Z$5","v":1.1690280167949778E-2},{"$f":"'Population 2016'!AA122/'Population 2016'!AA$5","v":9.6102931454991082E-3},{"$f":"'Population 2016'!AB122/'Population 2016'!AB$5","v":8.0038483976950549E-3},{"$f":"'Population 2016'!AC122/'Population 2016'!AC$5","v":9.3676112539587651E-3},{"$f":"'Population 2016'!AD122/'Population 2016'!AD$5","v":6.1595146823476866E-3},{"$f":"'Population 2016'!AE122/'Population 2016'!AE$5","v":6.6273781044979925E-3},{"$f":"'Population 2016'!AF122/'Population 2016'!AF$5","v":4.8258909047037358E-3},{"$f":"'Population 2016'!AG122/'Population 2016'!AG$5","v":6.6273781044979925E-3},{"$f":"'Population 2016'!AH122/'Population 2016'!AH$5","v":1.0046162562811737E-2},{"$f":"'Population 2016'!AI122/'Population 2016'!AI$5","v":1.0376564003849856E-2},{"$f":"'Population 2016'!AJ122/'Population 2016'!AJ$5","v":1.299389342776678E-2},{"$f":"'Population 2016'!AK122/'Population 2016'!AK$5","v":6.6882063789396934E-3},{"$f":"'Population 2016'!AL122/'Population 2016'!AL$5","v":6.8817509444671077E-3},{"$f":"'Population 2016'!AM122/'Population 2016'!AM$5","v":1.0489295196149096E-2},{"$f":"'Population 2016'!AN122/'Population 2016'!AN$5","v":5.672520999236391E-3},{"$f":"'Population 2016'!AO122/'Population 2016'!AO$5","v":5.672520999236391E-3},{"$f":"'Population 2016'!AP122/'Population 2016'!AP$5","v":5.9841795729435824E-3},{"$f":"'Population 2016'!AQ122/'Population 2016'!AQ$5","v":6.9600482271058254E-3},{"$f":"'Population 2016'!AR122/'Population 2016'!AR$5","v":8.8244408339632364E-3},{"$f":"'Population 2016'!AS122/'Population 2016'!AS$5","v":5.9459006783351481E-3},{"$f":"'Population 2016'!AT122/'Population 2016'!AT$5","v":2.4252649338324457E-3},{"$f":"'Population 2016'!AU122/'Population 2016'!AU$5","v":2.4252649338324457E-3},{"$f":"'Population 2016'!AV122/'Population 2016'!AV$5","v":8.8163868651673534E-3},{"$f":"'Population 2016'!AW122/'Population 2016'!AW$5","v":9.5795960705351152E-3},{"$f":"'Population 2016'!AX122/'Population 2016'!AX$5","v":8.3570798778384043E-3},{"$f":"'Population 2016'!AY122/'Population 2016'!AY$5","v":7.9220342094795133E-3},{"$f":"'Population 2016'!AZ122/'Population 2016'!AZ$5","v":8.6894742594819108E-3},{"$f":"'Population 2016'!BA122/'Population 2016'!BA$5","v":1.1390628374001295E-2},{"$f":"'Population 2016'!BB122/'Population 2016'!BB$5","v":1.0378185785407014E-2},{"$f":"'Population 2016'!BC122/'Population 2016'!BC$5","v":7.8342849555171953E-3},120]
[null,"Male 30-34",{"$f":"'Population 2016'!C123/'Population 2016'!C$5","v":1.0799732178908578E-2},{"$f":"'Population 2016'!D123/'Population 2016'!D$5","v":6.7315121817630545E-3},{"$f":"'Population 2016'!E123/'Population 2016'!E$5","v":3.0002015760433906E-3},{"$f":"'Population 2016'!F123/'Population 2016'!F$5","v":7.4066443471542624E-3},{"$f":"'Population 2016'!G123/'Population 2016'!G$5","v":5.2373734639744492E-3},{"$f":"'Population 2016'!H123/'Population 2016'!H$5","v":7.8758029006559382E-3},{"$f":"'Population 2016'!I123/'Population 2016'!I$5","v":5.0561092035842897E-3},{"$f":"'Population 2016'!J123/'Population 2016'!J$5","v":6.8417604471608766E-3},{"$f":"'Population 2016'!K123/'Population 2016'!K$5","v":8.670793365779899E-3},{"$f":"'Population 2016'!L123/'Population 2016'!L$5","v":7.9186059441170402E-3},{"$f":"'Population 2016'!M123/'Population 2016'!M$5","v":7.9186059441170402E-3},{"$f":"'Population 2016'!N123/'Population 2016'!N$5","v":9.612525216804238E-3},{"$f":"'Population 2016'!O123/'Population 2016'!O$5","v":9.5204129144747917E-3},{"$f":"'Population 2016'!P123/'Population 2016'!P$5","v":5.7252338555167362E-3},{"$f":"'Population 2016'!Q123/'Population 2016'!Q$5","v":9.7648676278774636E-3},{"$f":"'Population 2016'!R123/'Population 2016'!R$5","v":2.9275562889231914E-3},{"$f":"'Population 2016'!S123/'Population 2016'!S$5","v":8.6738773917817511E-3},{"$f":"'Population 2016'!T123/'Population 2016'!T$5","v":9.0482682884836414E-3},{"$f":"'Population 2016'!U123/'Population 2016'!U$5","v":6.4621785508785909E-3},{"$f":"'Population 2016'!V123/'Population 2016'!V$5","v":1.0189206310438785E-2},{"$f":"'Population 2016'!W123/'Population 2016'!W$5","v":6.8865661299916982E-3},{"$f":"'Population 2016'!X123/'Population 2016'!X$5","v":6.8865661299916982E-3},{"$f":"'Population 2016'!Y123/'Population 2016'!Y$5","v":8.5849191586779231E-3},{"$f":"'Population 2016'!Z123/'Population 2016'!Z$5","v":1.0846272525421859E-2},{"$f":"'Population 2016'!AA123/'Population 2016'!AA$5","v":9.2614923227277955E-3},{"$f":"'Population 2016'!AB123/'Population 2016'!AB$5","v":6.6487211242234117E-3},{"$f":"'Population 2016'!AC123/'Population 2016'!AC$5","v":8.8546008551552372E-3},{"$f":"'Population 2016'!AD123/'Population 2016'!AD$5","v":6.0925229818750235E-3},{"$f":"'Population 2016'!AE123/'Population 2016'!AE$5","v":6.4169036643086687E-3},{"$f":"'Population 2016'!AF123/'Population 2016'!AF$5","v":4.8108099956265362E-3},{"$f":"'Population 2016'!AG123/'Population 2016'!AG$5","v":6.4169036643086687E-3},{"$f":"'Population 2016'!AH123/'Population 2016'!AH$5","v":9.99229075912802E-3},{"$f":"'Population 2016'!AI123/'Population 2016'!AI$5","v":9.8939649138157313E-3},{"$f":"'Population 2016'!AJ123/'Population 2016'!AJ$5","v":1.2575635055628363E-2},{"$f":"'Population 2016'!AK123/'Population 2016'!AK$5","v":6.2230491683743384E-3},{"$f":"'Population 2016'!AL123/'Population 2016'!AL$5","v":6.243237970238201E-3},{"$f":"'Population 2016'!AM123/'Population 2016'!AM$5","v":1.073196880738597E-2},{"$f":"'Population 2016'!AN123/'Population 2016'!AN$5","v":3.872586451401767E-3},{"$f":"'Population 2016'!AO123/'Population 2016'!AO$5","v":3.872586451401767E-3},{"$f":"'Population 2016'!AP123/'Population 2016'!AP$5","v":5.9604013759649984E-3},{"$f":"'Population 2016'!AQ123/'Population 2016'!AQ$5","v":7.4806817559050802E-3},{"$f":"'Population 2016'!AR123/'Population 2016'!AR$5","v":8.2752942167175388E-3},{"$f":"'Population 2016'!AS123/'Population 2016'!AS$5","v":5.0561092035842897E-3},{"$f":"'Population 2016'!AT123/'Population 2016'!AT$5","v":1.2653556176517109E-3},{"$f":"'Population 2016'!AU123/'Population 2016'!AU$5","v":1.2653556176517109E-3},{"$f":"'Population 2016'!AV123/'Population 2016'!AV$5","v":8.0667300179495301E-3},{"$f":"'Population 2016'!AW123/'Population 2016'!AW$5","v":9.2134968576484226E-3},{"$f":"'Population 2016'!AX123/'Population 2016'!AX$5","v":5.8525115964067108E-3},{"$f":"'Population 2016'!AY123/'Population 2016'!AY$5","v":7.3039380679905752E-3},{"$f":"'Population 2016'!AZ123/'Population 2016'!AZ$5","v":7.6712439093142189E-3},{"$f":"'Population 2016'!BA123/'Population 2016'!BA$5","v":1.1053228244439646E-2},{"$f":"'Population 2016'!BB123/'Population 2016'!BB$5","v":1.1151543608404743E-2},{"$f":"'Population 2016'!BC123/'Population 2016'!BC$5","v":6.4621785508785909E-3},121]
[null,"Male 35-39",{"$f":"'Population 2016'!C124/'Population 2016'!C$5","v":8.3924090098286257E-3},{"$f":"'Population 2016'!D124/'Population 2016'!D$5","v":5.5382764590240895E-3},{"$f":"'Population 2016'!E124/'Population 2016'!E$5","v":2.9205087216797377E-3},{"$f":"'Population 2016'!F124/'Population 2016'!F$5","v":6.3250064383208859E-3},{"$f":"'Population 2016'!G124/'Population 2016'!G$5","v":5.1020408163265302E-3},{"$f":"'Population 2016'!H124/'Population 2016'!H$5","v":6.9744141783906642E-3},{"$f":"'Population 2016'!I124/'Population 2016'!I$5","v":4.9409597186165317E-3},{"$f":"'Population 2016'!J124/'Population 2016'!J$5","v":6.0456283224003381E-3},{"$f":"'Population 2016'!K124/'Population 2016'!K$5","v":9.0724377451212018E-3},{"$f":"'Population 2016'!L124/'Population 2016'!L$5","v":7.46588724921767E-3},{"$f":"'Population 2016'!M124/'Population 2016'!M$5","v":7.46588724921767E-3},{"$f":"'Population 2016'!N124/'Population 2016'!N$5","v":6.5664156372316571E-3},{"$f":"'Population 2016'!O124/'Population 2016'!O$5","v":8.4009470879028349E-3},{"$f":"'Population 2016'!P124/'Population 2016'!P$5","v":4.9814042601149557E-3},{"$f":"'Population 2016'!Q124/'Population 2016'!Q$5","v":9.3770931011386473E-3},{"$f":"'Population 2016'!R124/'Population 2016'!R$5","v":2.6481077340714324E-3},{"$f":"'Population 2016'!S124/'Population 2016'!S$5","v":7.604096237936276E-3},{"$f":"'Population 2016'!T124/'Population 2016'!T$5","v":6.9356872635561164E-3},{"$f":"'Population 2016'!U124/'Population 2016'!U$5","v":6.285132563183287E-3},{"$f":"'Population 2016'!V124/'Population 2016'!V$5","v":1.0189206310438785E-2},{"$f":"'Population 2016'!W124/'Population 2016'!W$5","v":6.7492923865367146E-3},{"$f":"'Population 2016'!X124/'Population 2016'!X$5","v":6.7492923865367146E-3},{"$f":"'Population 2016'!Y124/'Population 2016'!Y$5","v":8.203367196070014E-3},{"$f":"'Population 2016'!Z124/'Population 2016'!Z$5","v":8.47879237218414E-3},{"$f":"'Population 2016'!AA124/'Population 2016'!AA$5","v":7.9240903108446486E-3},{"$f":"'Population 2016'!AB124/'Population 2016'!AB$5","v":5.59041175808317E-3},{"$f":"'Population 2016'!AC124/'Population 2016'!AC$5","v":7.2390318169876771E-3},{"$f":"'Population 2016'!AD124/'Population 2016'!AD$5","v":5.7947820908854069E-3},{"$f":"'Population 2016'!AE124/'Population 2016'!AE$5","v":6.0575570591073829E-3},{"$f":"'Population 2016'!AF124/'Population 2016'!AF$5","v":4.6298390867001464E-3},{"$f":"'Population 2016'!AG124/'Population 2016'!AG$5","v":6.0575570591073829E-3},{"$f":"'Population 2016'!AH124/'Population 2016'!AH$5","v":9.1544913294260791E-3},{"$f":"'Population 2016'!AI124/'Population 2016'!AI$5","v":8.3094540204742325E-3},{"$f":"'Population 2016'!AJ124/'Population 2016'!AJ$5","v":1.2352563923821209E-2},{"$f":"'Population 2016'!AK124/'Population 2016'!AK$5","v":5.8584664898231149E-3},{"$f":"'Population 2016'!AL124/'Population 2016'!AL$5","v":5.3475461591670952E-3},{"$f":"'Population 2016'!AM124/'Population 2016'!AM$5","v":9.6019066177455981E-3},{"$f":"'Population 2016'!AN124/'Population 2016'!AN$5","v":3.927129922548271E-3},{"$f":"'Population 2016'!AO124/'Population 2016'!AO$5","v":3.927129922548271E-3},{"$f":"'Population 2016'!AP124/'Population 2016'!AP$5","v":5.3738725171599321E-3},{"$f":"'Population 2016'!AQ124/'Population 2016'!AQ$5","v":5.9324820518441386E-3},{"$f":"'Population 2016'!AR124/'Population 2016'!AR$5","v":7.2048481737700398E-3},{"$f":"'Population 2016'!AS124/'Population 2016'!AS$5","v":4.9409597186165317E-3},{"$f":"'Population 2016'!AT124/'Population 2016'!AT$5","v":1.7398639742711025E-3},{"$f":"'Population 2016'!AU124/'Population 2016'!AU$5","v":1.7398639742711025E-3},{"$f":"'Population 2016'!AV124/'Population 2016'!AV$5","v":7.3909830007390983E-3},{"$f":"'Population 2016'!AW124/'Population 2016'!AW$5","v":8.683415705656233E-3},{"$f":"'Population 2016'!AX124/'Population 2016'!AX$5","v":4.4085513117037454E-3},{"$f":"'Population 2016'!AY124/'Population 2016'!AY$5","v":6.3859735014228447E-3},{"$f":"'Population 2016'!AZ124/'Population 2016'!AZ$5","v":6.0662367471854845E-3},{"$f":"'Population 2016'!BA124/'Population 2016'!BA$5","v":1.0864284171885123E-2},{"$f":"'Population 2016'!BB124/'Population 2016'!BB$5","v":9.7567375347838402E-3},{"$f":"'Population 2016'!BC124/'Population 2016'!BC$5","v":6.285132563183287E-3},122]
[null,"Male 40-44",{"$f":"'Population 2016'!C125/'Population 2016'!C$5","v":7.3037469397351437E-3},{"$f":"'Population 2016'!D125/'Population 2016'!D$5","v":4.9245425114677775E-3},{"$f":"'Population 2016'!E125/'Population 2016'!E$5","v":2.7423717531021618E-3},{"$f":"'Population 2016'!F125/'Population 2016'!F$5","v":5.9747617821272209E-3},{"$f":"'Population 2016'!G125/'Population 2016'!G$5","v":4.8719753153250688E-3},{"$f":"'Population 2016'!H125/'Population 2016'!H$5","v":8.1351953387178884E-3},{"$f":"'Population 2016'!I125/'Population 2016'!I$5","v":5.3806213884934262E-3},{"$f":"'Population 2016'!J125/'Population 2016'!J$5","v":6.5100387285106521E-3},{"$f":"'Population 2016'!K125/'Population 2016'!K$5","v":9.8521003638425558E-3},{"$f":"'Population 2016'!L125/'Population 2016'!L$5","v":8.9114100995981126E-3},{"$f":"'Population 2016'!M125/'Population 2016'!M$5","v":8.9114100995981126E-3},{"$f":"'Population 2016'!N125/'Population 2016'!N$5","v":6.1645542151244565E-3},{"$f":"'Population 2016'!O125/'Population 2016'!O$5","v":9.3519977016276838E-3},{"$f":"'Population 2016'!P125/'Population 2016'!P$5","v":5.5899921108982309E-3},{"$f":"'Population 2016'!Q125/'Population 2016'!Q$5","v":9.659110938766877E-3},{"$f":"'Population 2016'!R125/'Population 2016'!R$5","v":3.5263746207483898E-3},{"$f":"'Population 2016'!S125/'Population 2016'!S$5","v":7.5581980366161731E-3},{"$f":"'Population 2016'!T125/'Population 2016'!T$5","v":5.937562528210402E-3},{"$f":"'Population 2016'!U125/'Population 2016'!U$5","v":8.8080378878413676E-3},{"$f":"'Population 2016'!V125/'Population 2016'!V$5","v":1.1036398745239312E-2},{"$f":"'Population 2016'!W125/'Population 2016'!W$5","v":7.4029768791794952E-3},{"$f":"'Population 2016'!X125/'Population 2016'!X$5","v":7.4029768791794952E-3},{"$f":"'Population 2016'!Y125/'Population 2016'!Y$5","v":8.8671086310233536E-3},{"$f":"'Population 2016'!Z125/'Population 2016'!Z$5","v":6.5410592295913729E-3},{"$f":"'Population 2016'!AA125/'Population 2016'!AA$5","v":7.6138236742080726E-3},{"$f":"'Population 2016'!AB125/'Population 2016'!AB$5","v":4.947647462206892E-3},{"$f":"'Population 2016'!AC125/'Population 2016'!AC$5","v":6.2802402047076981E-3},{"$f":"'Population 2016'!AD125/'Population 2016'!AD$5","v":5.6942945401764113E-3},{"$f":"'Population 2016'!AE125/'Population 2016'!AE$5","v":6.006221829792914E-3},{"$f":"'Population 2016'!AF125/'Population 2016'!AF$5","v":3.9361172691489846E-3},{"$f":"'Population 2016'!AG125/'Population 2016'!AG$5","v":6.006221829792914E-3},{"$f":"'Population 2016'!AH125/'Population 2016'!AH$5","v":1.0009009594754001E-2},{"$f":"'Population 2016'!AI125/'Population 2016'!AI$5","v":7.907515968151195E-3},{"$f":"'Population 2016'!AJ125/'Population 2016'!AJ$5","v":1.2310738086607367E-2},{"$f":"'Population 2016'!AK125/'Population 2016'!AK$5","v":5.0664420502118347E-3},{"$f":"'Population 2016'!AL125/'Population 2016'!AL$5","v":6.5890991646121921E-3},{"$f":"'Population 2016'!AM125/'Population 2016'!AM$5","v":1.0619686987261446E-2},{"$f":"'Population 2016'!AN125/'Population 2016'!AN$5","v":5.5634340569433839E-3},{"$f":"'Population 2016'!AO125/'Population 2016'!AO$5","v":5.5634340569433839E-3},{"$f":"'Population 2016'!AP125/'Population 2016'!AP$5","v":4.0026631580616012E-3},{"$f":"'Population 2016'!AQ125/'Population 2016'!AQ$5","v":6.2887049926015235E-3},{"$f":"'Population 2016'!AR125/'Population 2016'!AR$5","v":7.1319999206911986E-3},{"$f":"'Population 2016'!AS125/'Population 2016'!AS$5","v":5.3806213884934262E-3},{"$f":"'Population 2016'!AT125/'Population 2016'!AT$5","v":1.5289713713291507E-3},{"$f":"'Population 2016'!AU125/'Population 2016'!AU$5","v":1.5289713713291507E-3},{"$f":"'Population 2016'!AV125/'Population 2016'!AV$5","v":8.6791257522964849E-3},{"$f":"'Population 2016'!AW125/'Population 2016'!AW$5","v":9.3660381963512115E-3},{"$f":"'Population 2016'!AX125/'Population 2016'!AX$5","v":4.7024547324839953E-3},{"$f":"'Population 2016'!AY125/'Population 2016'!AY$5","v":6.298766867598911E-3},{"$f":"'Population 2016'!AZ125/'Population 2016'!AZ$5","v":5.3270130183914258E-3},{"$f":"'Population 2016'!BA125/'Population 2016'!BA$5","v":1.0162491902396891E-2},{"$f":"'Population 2016'!BB125/'Population 2016'!BB$5","v":1.0543905318906527E-2},{"$f":"'Population 2016'!BC125/'Population 2016'!BC$5","v":8.8080378878413676E-3},123]
[null,"Male 45-49",{"$f":"'Population 2016'!C126/'Population 2016'!C$5","v":7.7535228184592107E-3},{"$f":"'Population 2016'!D126/'Population 2016'!D$5","v":5.2326320628307069E-3},{"$f":"'Population 2016'!E126/'Population 2016'!E$5","v":2.9205087216797377E-3},{"$f":"'Population 2016'!F126/'Population 2016'!F$5","v":6.8606747360288435E-3},{"$f":"'Population 2016'!G126/'Population 2016'!G$5","v":6.7395658528663456E-3},{"$f":"'Population 2016'!H126/'Population 2016'!H$5","v":1.0443788037469239E-2},{"$f":"'Population 2016'!I126/'Population 2016'!I$5","v":6.4064986182061807E-3},{"$f":"'Population 2016'!J126/'Population 2016'!J$5","v":8.0193725483691733E-3},{"$f":"'Population 2016'!K126/'Population 2016'!K$5","v":1.2592732599347919E-2},{"$f":"'Population 2016'!L126/'Population 2016'!L$5","v":1.0730227312439439E-2},{"$f":"'Population 2016'!M126/'Population 2016'!M$5","v":1.0730227312439439E-2},{"$f":"'Population 2016'!N126/'Population 2016'!N$5","v":7.3299523392353384E-3},{"$f":"'Population 2016'!O126/'Population 2016'!O$5","v":1.1680090349808304E-2},{"$f":"'Population 2016'!P126/'Population 2016'!P$5","v":6.3789022878395132E-3},{"$f":"'Population 2016'!Q126/'Population 2016'!Q$5","v":1.0998695667500969E-2},{"$f":"'Population 2016'!R126/'Population 2016'!R$5","v":3.7792090275190291E-3},{"$f":"'Population 2016'!S126/'Population 2016'!S$5","v":8.1054458215866296E-3},{"$f":"'Population 2016'!T126/'Population 2016'!T$5","v":5.4466433693340713E-3},{"$f":"'Population 2016'!U126/'Population 2016'!U$5","v":1.0401451777099101E-2},{"$f":"'Population 2016'!V126/'Population 2016'!V$5","v":1.3051342914494623E-2},{"$f":"'Population 2016'!W126/'Population 2016'!W$5","v":8.4815562920400843E-3},{"$f":"'Population 2016'!X126/'Population 2016'!X$5","v":8.4815562920400843E-3},{"$f":"'Population 2016'!Y126/'Population 2016'!Y$5","v":1.0639735457305925E-2},{"$f":"'Population 2016'!Z126/'Population 2016'!Z$5","v":6.9107965225336486E-3},{"$f":"'Population 2016'!AA126/'Population 2016'!AA$5","v":8.7193561867632413E-3},{"$f":"'Population 2016'!AB126/'Population 2016'!AB$5","v":5.449167374594434E-3},{"$f":"'Population 2016'!AC126/'Population 2016'!AC$5","v":6.9577035337728401E-3},{"$f":"'Population 2016'!AD126/'Population 2016'!AD$5","v":7.1755554728497525E-3},{"$f":"'Population 2016'!AE126/'Population 2016'!AE$5","v":7.3409377919691167E-3},{"$f":"'Population 2016'!AF126/'Population 2016'!AF$5","v":4.8108099956265362E-3},{"$f":"'Population 2016'!AG126/'Population 2016'!AG$5","v":7.3409377919691167E-3},{"$f":"'Population 2016'!AH126/'Population 2016'!AH$5","v":1.1883376833266767E-2},{"$f":"'Population 2016'!AI126/'Population 2016'!AI$5","v":8.1700061247703213E-3},{"$f":"'Population 2016'!AJ126/'Population 2016'!AJ$5","v":1.4290494381395867E-2},{"$f":"'Population 2016'!AK126/'Population 2016'!AK$5","v":6.5624882139220294E-3},{"$f":"'Population 2016'!AL126/'Population 2016'!AL$5","v":8.7972898671538277E-3},{"$f":"'Population 2016'!AM126/'Population 2016'!AM$5","v":1.2010532759126519E-2},{"$f":"'Population 2016'!AN126/'Population 2016'!AN$5","v":5.7270644703828954E-3},{"$f":"'Population 2016'!AO126/'Population 2016'!AO$5","v":5.7270644703828954E-3},{"$f":"'Population 2016'!AP126/'Population 2016'!AP$5","v":4.8428261179715611E-3},{"$f":"'Population 2016'!AQ126/'Population 2016'!AQ$5","v":7.2683180796843314E-3},{"$f":"'Population 2016'!AR126/'Population 2016'!AR$5","v":8.1732621069006903E-3},{"$f":"'Population 2016'!AS126/'Population 2016'!AS$5","v":6.4064986182061807E-3},{"$f":"'Population 2016'!AT126/'Population 2016'!AT$5","v":6.8540095956134343E-4},{"$f":"'Population 2016'!AU126/'Population 2016'!AU$5","v":6.8540095956134343E-4},{"$f":"'Population 2016'!AV126/'Population 2016'!AV$5","v":1.1086474501108648E-2},{"$f":"'Population 2016'!AW126/'Population 2016'!AW$5","v":1.174949661358228E-2},{"$f":"'Population 2016'!AX126/'Population 2016'!AX$5","v":5.5458297660273201E-3},{"$f":"'Population 2016'!AY126/'Population 2016'!AY$5","v":7.3192374774333708E-3},{"$f":"'Population 2016'!AZ126/'Population 2016'!AZ$5","v":6.2963453008956973E-3},{"$f":"'Population 2016'!BA126/'Population 2016'!BA$5","v":1.2510796804145973E-2},{"$f":"'Population 2016'!BB126/'Population 2016'!BB$5","v":1.1558937461591045E-2},{"$f":"'Population 2016'!BC126/'Population 2016'!BC$5","v":1.0401451777099101E-2},124]
[null,"Male 50-54",{"$f":"'Population 2016'!C127/'Population 2016'!C$5","v":7.1964140595850816E-3},{"$f":"'Population 2016'!D127/'Population 2016'!D$5","v":5.0492454251146778E-3},{"$f":"'Population 2016'!E127/'Population 2016'!E$5","v":3.079894430407043E-3},{"$f":"'Population 2016'!F127/'Population 2016'!F$5","v":6.8709760494463047E-3},{"$f":"'Population 2016'!G127/'Population 2016'!G$5","v":6.9290315595734314E-3},{"$f":"'Population 2016'!H127/'Population 2016'!H$5","v":1.1043633050487495E-2},{"$f":"'Population 2016'!I127/'Population 2016'!I$5","v":7.2544175529687628E-3},{"$f":"'Population 2016'!J127/'Population 2016'!J$5","v":8.102302978031729E-3},{"$f":"'Population 2016'!K127/'Population 2016'!K$5","v":1.1765817700704059E-2},{"$f":"'Population 2016'!L127/'Population 2016'!L$5","v":1.2564929391768462E-2},{"$f":"'Population 2016'!M127/'Population 2016'!M$5","v":1.2564929391768462E-2},{"$f":"'Population 2016'!N127/'Population 2016'!N$5","v":6.8155697189381213E-3},{"$f":"'Population 2016'!O127/'Population 2016'!O$5","v":1.2224963097254833E-2},{"$f":"'Population 2016'!P127/'Population 2016'!P$5","v":8.1821255494195881E-3},{"$f":"'Population 2016'!Q127/'Population 2016'!Q$5","v":1.1891752153323698E-2},{"$f":"'Population 2016'!R127/'Population 2016'!R$5","v":4.5510193218715068E-3},{"$f":"'Population 2016'!S127/'Population 2016'!S$5","v":8.3305235395986724E-3},{"$f":"'Population 2016'!T127/'Population 2016'!T$5","v":5.2442264649632626E-3},{"$f":"'Population 2016'!U127/'Population 2016'!U$5","v":1.1463727703270924E-2},{"$f":"'Population 2016'!V127/'Population 2016'!V$5","v":1.2684989429175475E-2},{"$f":"'Population 2016'!W127/'Population 2016'!W$5","v":8.8443511854568273E-3},{"$f":"'Population 2016'!X127/'Population 2016'!X$5","v":8.8443511854568273E-3},{"$f":"'Population 2016'!Y127/'Population 2016'!Y$5","v":1.0488704472106961E-2},{"$f":"'Population 2016'!Z127/'Population 2016'!Z$5","v":6.6804366384491942E-3},{"$f":"'Population 2016'!AA127/'Population 2016'!AA$5","v":8.9877667246672614E-3},{"$f":"'Population 2016'!AB127/'Population 2016'!AB$5","v":5.2608415299427854E-3},{"$f":"'Population 2016'!AC127/'Population 2016'!AC$5","v":7.2752321475484105E-3},{"$f":"'Population 2016'!AD127/'Population 2016'!AD$5","v":7.9087424169116821E-3},{"$f":"'Population 2016'!AE127/'Population 2016'!AE$5","v":8.2803724884239066E-3},{"$f":"'Population 2016'!AF127/'Population 2016'!AF$5","v":6.3189009033464538E-3},{"$f":"'Population 2016'!AG127/'Population 2016'!AG$5","v":8.2803724884239066E-3},{"$f":"'Population 2016'!AH127/'Population 2016'!AH$5","v":1.2063568728346786E-2},{"$f":"'Population 2016'!AI127/'Population 2016'!AI$5","v":8.2561357074109713E-3},{"$f":"'Population 2016'!AJ127/'Population 2016'!AJ$5","v":1.5503443660597273E-2},{"$f":"'Population 2016'!AK127/'Population 2016'!AK$5","v":6.3487673333920015E-3},{"$f":"'Population 2016'!AL127/'Population 2016'!AL$5","v":8.9214451676983379E-3},{"$f":"'Population 2016'!AM127/'Population 2016'!AM$5","v":1.2235096399375568E-2},{"$f":"'Population 2016'!AN127/'Population 2016'!AN$5","v":6.4906730664339475E-3},{"$f":"'Population 2016'!AO127/'Population 2016'!AO$5","v":6.4906730664339475E-3},{"$f":"'Population 2016'!AP127/'Population 2016'!AP$5","v":4.7714915270358101E-3},{"$f":"'Population 2016'!AQ127/'Population 2016'!AQ$5","v":7.6724941086205953E-3},{"$f":"'Population 2016'!AR127/'Population 2016'!AR$5","v":8.4252234959898923E-3},{"$f":"'Population 2016'!AS127/'Population 2016'!AS$5","v":7.2544175529687628E-3},{"$f":"'Population 2016'!AT127/'Population 2016'!AT$5","v":1.8980334264775663E-3},{"$f":"'Population 2016'!AU127/'Population 2016'!AU$5","v":1.8980334264775663E-3},{"$f":"'Population 2016'!AV127/'Population 2016'!AV$5","v":1.2311265969802556E-2},{"$f":"'Population 2016'!AW127/'Population 2016'!AW$5","v":1.188297028494722E-2},{"$f":"'Population 2016'!AX127/'Population 2016'!AX$5","v":6.1208581979886783E-3},{"$f":"'Population 2016'!AY127/'Population 2016'!AY$5","v":7.3789051742602736E-3},{"$f":"'Population 2016'!AZ127/'Population 2016'!AZ$5","v":6.0892476025565063E-3},{"$f":"'Population 2016'!BA127/'Population 2016'!BA$5","v":1.3172101058086806E-2},{"$f":"'Population 2016'!BB127/'Population 2016'!BB$5","v":1.1469172714278809E-2},{"$f":"'Population 2016'!BC127/'Population 2016'!BC$5","v":1.1463727703270924E-2},125]
[null,"Male 55-59",{"$f":"'Population 2016'!C128/'Population 2016'!C$5","v":7.0788590003731094E-3},{"$f":"'Population 2016'!D128/'Population 2016'!D$5","v":4.9685553045196252E-3},{"$f":"'Population 2016'!E128/'Population 2016'!E$5","v":3.0330162807813651E-3},{"$f":"'Population 2016'!F128/'Population 2016'!F$5","v":5.7996394540303885E-3},{"$f":"'Population 2016'!G128/'Population 2016'!G$5","v":7.3350295025171874E-3},{"$f":"'Population 2016'!H128/'Population 2016'!H$5","v":1.0213577248689258E-2},{"$f":"'Population 2016'!I128/'Population 2016'!I$5","v":7.0241185830332469E-3},{"$f":"'Population 2016'!J128/'Population 2016'!J$5","v":7.5549621422588593E-3},{"$f":"'Population 2016'!K128/'Population 2016'!K$5","v":1.0584510702641402E-2},{"$f":"'Population 2016'!L128/'Population 2016'!L$5","v":1.2151922863088336E-2},{"$f":"'Population 2016'!M128/'Population 2016'!M$5","v":1.2151922863088336E-2},{"$f":"'Population 2016'!N128/'Population 2016'!N$5","v":6.3333360124094807E-3},{"$f":"'Population 2016'!O128/'Population 2016'!O$5","v":1.1254098929077382E-2},{"$f":"'Population 2016'!P128/'Population 2016'!P$5","v":7.0100304293925393E-3},{"$f":"'Population 2016'!Q128/'Population 2016'!Q$5","v":1.1163206072784104E-2},{"$f":"'Population 2016'!R128/'Population 2016'!R$5","v":3.7525948794379094E-3},{"$f":"'Population 2016'!S128/'Population 2016'!S$5","v":7.6067442110893582E-3},{"$f":"'Population 2016'!T128/'Population 2016'!T$5","v":4.5066844111064062E-3},{"$f":"'Population 2016'!U128/'Population 2016'!U$5","v":1.1375204709423273E-2},{"$f":"'Population 2016'!V128/'Population 2016'!V$5","v":1.1578296608940551E-2},{"$f":"'Population 2016'!W128/'Population 2016'!W$5","v":8.2429614522254689E-3},{"$f":"'Population 2016'!X128/'Population 2016'!X$5","v":8.2429614522254689E-3},{"$f":"'Population 2016'!Y128/'Population 2016'!Y$5","v":9.6500850542916641E-3},{"$f":"'Population 2016'!Z128/'Population 2016'!Z$5","v":5.9990359729220665E-3},{"$f":"'Population 2016'!AA128/'Population 2016'!AA$5","v":8.2788705762920408E-3},{"$f":"'Population 2016'!AB128/'Population 2016'!AB$5","v":5.1155031063529269E-3},{"$f":"'Population 2016'!AC128/'Population 2016'!AC$5","v":6.610180360389805E-3},{"$f":"'Population 2016'!AD128/'Population 2016'!AD$5","v":7.782202538241096E-3},{"$f":"'Population 2016'!AE128/'Population 2016'!AE$5","v":7.9518270208113022E-3},{"$f":"'Population 2016'!AF128/'Population 2016'!AF$5","v":5.7458263584128852E-3},{"$f":"'Population 2016'!AG128/'Population 2016'!AG$5","v":7.9518270208113022E-3},{"$f":"'Population 2016'!AH128/'Population 2016'!AH$5","v":1.1275925805522788E-2},{"$f":"'Population 2016'!AI128/'Population 2016'!AI$5","v":7.4167140607227233E-3},{"$f":"'Population 2016'!AJ128/'Population 2016'!AJ$5","v":1.4625101079106599E-2},{"$f":"'Population 2016'!AK128/'Population 2016'!AK$5","v":5.8710383063248807E-3},{"$f":"'Population 2016'!AL128/'Population 2016'!AL$5","v":8.1055674784058455E-3},{"$f":"'Population 2016'!AM128/'Population 2016'!AM$5","v":1.1018106348993629E-2},{"$f":"'Population 2016'!AN128/'Population 2016'!AN$5","v":5.999781826115414E-3},{"$f":"'Population 2016'!AO128/'Population 2016'!AO$5","v":5.999781826115414E-3},{"$f":"'Population 2016'!AP128/'Population 2016'!AP$5","v":4.0819238146568805E-3},{"$f":"'Population 2016'!AQ128/'Population 2016'!AQ$5","v":7.2272154326738641E-3},{"$f":"'Population 2016'!AR128/'Population 2016'!AR$5","v":7.8052336234565138E-3},{"$f":"'Population 2016'!AS128/'Population 2016'!AS$5","v":7.0241185830332469E-3},{"$f":"'Population 2016'!AT128/'Population 2016'!AT$5","v":1.3708019191226869E-3},{"$f":"'Population 2016'!AU128/'Population 2016'!AU$5","v":1.3708019191226869E-3},{"$f":"'Population 2016'!AV128/'Population 2016'!AV$5","v":1.1614401858304297E-2},{"$f":"'Population 2016'!AW128/'Population 2016'!AW$5","v":1.1547379339801087E-2},{"$f":"'Population 2016'!AX128/'Population 2016'!AX$5","v":5.9164036444024175E-3},{"$f":"'Population 2016'!AY128/'Population 2016'!AY$5","v":6.713380863498669E-3},{"$f":"'Population 2016'!AZ128/'Population 2016'!AZ$5","v":5.3672820152907133E-3},{"$f":"'Population 2016'!BA128/'Population 2016'!BA$5","v":1.2848196933707623E-2},{"$f":"'Population 2016'!BB128/'Population 2016'!BB$5","v":1.0281516057532298E-2},{"$f":"'Population 2016'!BC128/'Population 2016'!BC$5","v":1.1375204709423273E-2},126]
[null,"Male 60-64",{"$f":"'Population 2016'!C129/'Population 2016'!C$5","v":5.7908644385723709E-3},{"$f":"'Population 2016'!D129/'Population 2016'!D$5","v":4.1005252193304191E-3},{"$f":"'Population 2016'!E129/'Population 2016'!E$5","v":2.5501713396368819E-3},{"$f":"'Population 2016'!F129/'Population 2016'!F$5","v":5.7687355137780068E-3},{"$f":"'Population 2016'!G129/'Population 2016'!G$5","v":6.8342987062198881E-3},{"$f":"'Population 2016'!H129/'Population 2016'!H$5","v":8.9684935459919003E-3},{"$f":"'Population 2016'!I129/'Population 2016'!I$5","v":6.7205426681182477E-3},{"$f":"'Population 2016'!J129/'Population 2016'!J$5","v":6.3524709121517958E-3},{"$f":"'Population 2016'!K129/'Population 2016'!K$5","v":9.7339696640362898E-3},{"$f":"'Population 2016'!L129/'Population 2016'!L$5","v":1.0992327609486442E-2},{"$f":"'Population 2016'!M129/'Population 2016'!M$5","v":1.0992327609486442E-2},{"$f":"'Population 2016'!N129/'Population 2016'!N$5","v":5.2643846296043274E-3},{"$f":"'Population 2016'!O129/'Population 2016'!O$5","v":9.4411586966643875E-3},{"$f":"'Population 2016'!P129/'Population 2016'!P$5","v":5.5449115293587283E-3},{"$f":"'Population 2016'!Q129/'Population 2016'!Q$5","v":8.801306682647678E-3},{"$f":"'Population 2016'!R129/'Population 2016'!R$5","v":3.41991802842391E-3},{"$f":"'Population 2016'!S129/'Population 2016'!S$5","v":6.4751770170052838E-3},{"$f":"'Population 2016'!T129/'Population 2016'!T$5","v":3.5690520839634626E-3},{"$f":"'Population 2016'!U129/'Population 2016'!U$5","v":1.1463727703270924E-2},{"$f":"'Population 2016'!V129/'Population 2016'!V$5","v":9.5328229825753126E-3},{"$f":"'Population 2016'!W129/'Population 2016'!W$5","v":7.4193189914955647E-3},{"$f":"'Population 2016'!X129/'Population 2016'!X$5","v":7.4193189914955647E-3},{"$f":"'Population 2016'!Y129/'Population 2016'!Y$5","v":8.0086167151555612E-3},{"$f":"'Population 2016'!Z129/'Population 2016'!Z$5","v":4.775612050725634E-3},{"$f":"'Population 2016'!AA129/'Population 2016'!AA$5","v":6.9580781273980057E-3},{"$f":"'Population 2016'!AB129/'Population 2016'!AB$5","v":4.198438123701422E-3},{"$f":"'Population 2016'!AC129/'Population 2016'!AC$5","v":5.3824720068015247E-3},{"$f":"'Population 2016'!AD129/'Population 2016'!AD$5","v":6.9931891771186127E-3},{"$f":"'Population 2016'!AE129/'Population 2016'!AE$5","v":7.0534605078080882E-3},{"$f":"'Population 2016'!AF129/'Population 2016'!AF$5","v":4.3282209051561625E-3},{"$f":"'Population 2016'!AG129/'Population 2016'!AG$5","v":7.0534605078080882E-3},{"$f":"'Population 2016'!AH129/'Population 2016'!AH$5","v":9.787949434810473E-3},{"$f":"'Population 2016'!AI129/'Population 2016'!AI$5","v":6.0482106920990465E-3},{"$f":"'Population 2016'!AJ129/'Population 2016'!AJ$5","v":1.2840532024649361E-2},{"$f":"'Population 2016'!AK129/'Population 2016'!AK$5","v":4.7018593716606112E-3},{"$f":"'Population 2016'!AL129/'Population 2016'!AL$5","v":7.5113956829428357E-3},{"$f":"'Population 2016'!AM129/'Population 2016'!AM$5","v":9.8808001709581265E-3},{"$f":"'Population 2016'!AN129/'Population 2016'!AN$5","v":5.9452383549689104E-3},{"$f":"'Population 2016'!AO129/'Population 2016'!AO$5","v":5.9452383549689104E-3},{"$f":"'Population 2016'!AP129/'Population 2016'!AP$5","v":3.7411029912971798E-3},{"$f":"'Population 2016'!AQ129/'Population 2016'!AQ$5","v":6.3229571984435799E-3},{"$f":"'Population 2016'!AR129/'Population 2016'!AR$5","v":6.6788704198888649E-3},{"$f":"'Population 2016'!AS129/'Population 2016'!AS$5","v":6.7205426681182477E-3},{"$f":"'Population 2016'!AT129/'Population 2016'!AT$5","v":1.1071861654452469E-3},{"$f":"'Population 2016'!AU129/'Population 2016'!AU$5","v":1.1071861654452469E-3},{"$f":"'Population 2016'!AV129/'Population 2016'!AV$5","v":1.0199556541019957E-2},{"$f":"'Population 2016'!AW129/'Population 2016'!AW$5","v":9.6901885410946367E-3},{"$f":"'Population 2016'!AX129/'Population 2016'!AX$5","v":4.5235569980960171E-3},{"$f":"'Population 2016'!AY129/'Population 2016'!AY$5","v":6.0539763165141829E-3},{"$f":"'Population 2016'!AZ129/'Population 2016'!AZ$5","v":4.8524141263641121E-3},{"$f":"'Population 2016'!BA129/'Population 2016'!BA$5","v":1.049989203195854E-2},{"$f":"'Population 2016'!BB129/'Population 2016'!BB$5","v":8.4240762862252544E-3},{"$f":"'Population 2016'!BC129/'Population 2016'!BC$5","v":1.1463727703270924E-2},127]
[null,"Male 65-69",{"$f":"'Population 2016'!C130/'Population 2016'!C$5","v":5.284866575007794E-3},{"$f":"'Population 2016'!D130/'Population 2016'!D$5","v":4.0834091331435896E-3},{"$f":"'Population 2016'!E130/'Population 2016'!E$5","v":2.9814503161931191E-3},{"$f":"'Population 2016'!F130/'Population 2016'!F$5","v":6.1601854236415145E-3},{"$f":"'Population 2016'!G130/'Population 2016'!G$5","v":7.4026958263411465E-3},{"$f":"'Population 2016'!H130/'Population 2016'!H$5","v":9.5650961535343835E-3},{"$f":"'Population 2016'!I130/'Population 2016'!I$5","v":6.9194372330625576E-3},{"$f":"'Population 2016'!J130/'Population 2016'!J$5","v":6.6344343730044865E-3},{"$f":"'Population 2016'!K130/'Population 2016'!K$5","v":9.5449605443462641E-3},{"$f":"'Population 2016'!L130/'Population 2016'!L$5","v":1.2207519895795277E-2},{"$f":"'Population 2016'!M130/'Population 2016'!M$5","v":1.2207519895795277E-2},{"$f":"'Population 2016'!N130/'Population 2016'!N$5","v":5.8511023058808401E-3},{"$f":"'Population 2016'!O130/'Population 2016'!O$5","v":9.5005993600221911E-3},{"$f":"'Population 2016'!P130/'Population 2016'!P$5","v":4.9926744054998307E-3},{"$f":"'Population 2016'!Q130/'Population 2016'!Q$5","v":8.9893185743998311E-3},{"$f":"'Population 2016'!R130/'Population 2016'!R$5","v":2.6880289561931124E-3},{"$f":"'Population 2016'!S130/'Population 2016'!S$5","v":6.4919475136414754E-3},{"$f":"'Population 2016'!T130/'Population 2016'!T$5","v":3.2991628781357169E-3},{"$f":"'Population 2016'!U130/'Population 2016'!U$5","v":1.1286681715575621E-2},{"$f":"'Population 2016'!V130/'Population 2016'!V$5","v":1.0670045259920165E-2},{"$f":"'Population 2016'!W130/'Population 2016'!W$5","v":7.6840612110158912E-3},{"$f":"'Population 2016'!X130/'Population 2016'!X$5","v":7.6840612110158912E-3},{"$f":"'Population 2016'!Y130/'Population 2016'!Y$5","v":8.7359501438768854E-3},{"$f":"'Population 2016'!Z130/'Population 2016'!Z$5","v":3.9645129630669221E-3},{"$f":"'Population 2016'!AA130/'Population 2016'!AA$5","v":6.2923668427944729E-3},{"$f":"'Population 2016'!AB130/'Population 2016'!AB$5","v":4.2045791838531054E-3},{"$f":"'Population 2016'!AC130/'Population 2016'!AC$5","v":4.6636368713812602E-3},{"$f":"'Population 2016'!AD130/'Population 2016'!AD$5","v":7.4546875581525179E-3},{"$f":"'Population 2016'!AE130/'Population 2016'!AE$5","v":7.4744093881867367E-3},{"$f":"'Population 2016'!AF130/'Population 2016'!AF$5","v":4.0869263599209761E-3},{"$f":"'Population 2016'!AG130/'Population 2016'!AG$5","v":7.4744093881867367E-3},{"$f":"'Population 2016'!AH130/'Population 2016'!AH$5","v":9.2176513751242306E-3},{"$f":"'Population 2016'!AI130/'Population 2016'!AI$5","v":5.9374726572753523E-3},{"$f":"'Population 2016'!AJ130/'Population 2016'!AJ$5","v":1.2282854195131473E-2},{"$f":"'Population 2016'!AK130/'Population 2016'!AK$5","v":4.8275775366782743E-3},{"$f":"'Population 2016'!AL130/'Population 2016'!AL$5","v":7.8306521700572881E-3},{"$f":"'Population 2016'!AM130/'Population 2016'!AM$5","v":9.2759271399647219E-3},{"$f":"'Population 2016'!AN130/'Population 2016'!AN$5","v":6.5997600087269554E-3},{"$f":"'Population 2016'!AO130/'Population 2016'!AO$5","v":6.5997600087269554E-3},{"$f":"'Population 2016'!AP130/'Population 2016'!AP$5","v":3.4399124962351188E-3},{"$f":"'Population 2016'!AQ130/'Population 2016'!AQ$5","v":5.7680714638022688E-3},{"$f":"'Population 2016'!AR130/'Population 2016'!AR$5","v":6.6225077042040125E-3},{"$f":"'Population 2016'!AS130/'Population 2016'!AS$5","v":6.9194372330625576E-3},{"$f":"'Population 2016'!AT130/'Population 2016'!AT$5","v":1.2126324669162229E-3},{"$f":"'Population 2016'!AU130/'Population 2016'!AU$5","v":1.2126324669162229E-3},{"$f":"'Population 2016'!AV130/'Population 2016'!AV$5","v":1.1698870235455601E-2},{"$f":"'Population 2016'!AW130/'Population 2016'!AW$5","v":9.1562938556348766E-3},{"$f":"'Population 2016'!AX130/'Population 2016'!AX$5","v":5.0602502012599511E-3},{"$f":"'Population 2016'!AY130/'Population 2016'!AY$5","v":6.2895872219332332E-3},{"$f":"'Population 2016'!AZ130/'Population 2016'!AZ$5","v":5.0623881816246816E-3},{"$f":"'Population 2016'!BA130/'Population 2016'!BA$5","v":9.4876916432735919E-3},{"$f":"'Population 2016'!BB130/'Population 2016'!BB$5","v":8.8314701394115579E-3},{"$f":"'Population 2016'!BC130/'Population 2016'!BC$5","v":1.1286681715575621E-2},128]
[null,"Male 70-74",{"$f":"'Population 2016'!C131/'Population 2016'!C$5","v":3.434652164801971E-3},{"$f":"'Population 2016'!D131/'Population 2016'!D$5","v":2.6970061520104065E-3},{"$f":"'Population 2016'!E131/'Population 2016'!E$5","v":2.0204482488667208E-3},{"$f":"'Population 2016'!F131/'Population 2016'!F$5","v":4.1823332474890552E-3},{"$f":"'Population 2016'!G131/'Population 2016'!G$5","v":5.8599036431548745E-3},{"$f":"'Population 2016'!H131/'Population 2016'!H$5","v":7.065201531712347E-3},{"$f":"'Population 2016'!I131/'Population 2016'!I$5","v":4.961895988610669E-3},{"$f":"'Population 2016'!J131/'Population 2016'!J$5","v":4.4036058150817283E-3},{"$f":"'Population 2016'!K131/'Population 2016'!K$5","v":6.7807021688796485E-3},{"$f":"'Population 2016'!L131/'Population 2016'!L$5","v":9.2211649961082085E-3},{"$f":"'Population 2016'!M131/'Population 2016'!M$5","v":9.2211649961082085E-3},{"$f":"'Population 2016'!N131/'Population 2016'!N$5","v":4.0025397641877177E-3},{"$f":"'Population 2016'!O131/'Population 2016'!O$5","v":7.1526931573889698E-3},{"$f":"'Population 2016'!P131/'Population 2016'!P$5","v":3.5951763777752731E-3},{"$f":"'Population 2016'!Q131/'Population 2016'!Q$5","v":6.4159058060422325E-3},{"$f":"'Population 2016'!R131/'Population 2016'!R$5","v":1.6101559589077553E-3},{"$f":"'Population 2016'!S131/'Population 2016'!S$5","v":4.7831221721853371E-3},{"$f":"'Population 2016'!T131/'Population 2016'!T$5","v":2.3987566483483244E-3},{"$f":"'Population 2016'!U131/'Population 2016'!U$5","v":7.2146239985836323E-3},{"$f":"'Population 2016'!V131/'Population 2016'!V$5","v":7.4797169919325907E-3},{"$f":"'Population 2016'!W131/'Population 2016'!W$5","v":5.5301708077579274E-3},{"$f":"'Population 2016'!X131/'Population 2016'!X$5","v":5.5301708077579274E-3},{"$f":"'Population 2016'!Y131/'Population 2016'!Y$5","v":6.0054689114640465E-3},{"$f":"'Population 2016'!Z131/'Population 2016'!Z$5","v":2.9346687753952416E-3},{"$f":"'Population 2016'!AA131/'Population 2016'!AA$5","v":4.9117799671396407E-3},{"$f":"'Population 2016'!AB131/'Population 2016'!AB$5","v":2.8678750908365147E-3},{"$f":"'Population 2016'!AC131/'Population 2016'!AC$5","v":3.5848670206714232E-3},{"$f":"'Population 2016'!AD131/'Population 2016'!AD$5","v":5.612415795154267E-3},{"$f":"'Population 2016'!AE131/'Population 2016'!AE$5","v":5.5185371513054547E-3},{"$f":"'Population 2016'!AF131/'Population 2016'!AF$5","v":3.2574763606750216E-3},{"$f":"'Population 2016'!AG131/'Population 2016'!AG$5","v":5.5185371513054547E-3},{"$f":"'Population 2016'!AH131/'Population 2016'!AH$5","v":7.2949852781364075E-3},{"$f":"'Population 2016'!AI131/'Population 2016'!AI$5","v":4.4472941639688516E-3},{"$f":"'Population 2016'!AJ131/'Population 2016'!AJ$5","v":9.4805231018040871E-3},{"$f":"'Population 2016'!AK131/'Population 2016'!AK$5","v":3.7464013175263692E-3},{"$f":"'Population 2016'!AL131/'Population 2016'!AL$5","v":5.4096238094393503E-3},{"$f":"'Population 2016'!AM131/'Population 2016'!AM$5","v":7.2620983661184175E-3},{"$f":"'Population 2016'!AN131/'Population 2016'!AN$5","v":5.3452601723573689E-3},{"$f":"'Population 2016'!AO131/'Population 2016'!AO$5","v":5.3452601723573689E-3},{"$f":"'Population 2016'!AP131/'Population 2016'!AP$5","v":2.3064851069226257E-3},{"$f":"'Population 2016'!AQ131/'Population 2016'!AQ$5","v":4.8227105825615173E-3},{"$f":"'Population 2016'!AR131/'Population 2016'!AR$5","v":4.912690143408581E-3},{"$f":"'Population 2016'!AS131/'Population 2016'!AS$5","v":4.961895988610669E-3},{"$f":"'Population 2016'!AT131/'Population 2016'!AT$5","v":1.2653556176517109E-3},{"$f":"'Population 2016'!AU131/'Population 2016'!AU$5","v":1.2653556176517109E-3},{"$f":"'Population 2016'!AV131/'Population 2016'!AV$5","v":8.9430894308943094E-3},{"$f":"'Population 2016'!AW131/'Population 2016'!AW$5","v":7.329611324668985E-3},{"$f":"'Population 2016'!AX131/'Population 2016'!AX$5","v":3.1179319421904749E-3},{"$f":"'Population 2016'!AY131/'Population 2016'!AY$5","v":4.4169395061350635E-3},{"$f":"'Population 2016'!AZ131/'Population 2016'!AZ$5","v":3.4372465210463035E-3},{"$f":"'Population 2016'!BA131/'Population 2016'!BA$5","v":7.9626430576549348E-3},{"$f":"'Population 2016'!BB131/'Population 2016'!BB$5","v":6.8773606402297979E-3},{"$f":"'Population 2016'!BC131/'Population 2016'!BC$5","v":7.2146239985836323E-3},129]
[null,"Male 75-79",{"$f":"'Population 2016'!C132/'Population 2016'!C$5","v":2.8519879582730649E-3},{"$f":"'Population 2016'!D132/'Population 2016'!D$5","v":2.1615171698796004E-3},{"$f":"'Population 2016'!E132/'Population 2016'!E$5","v":1.5282276777971019E-3},{"$f":"'Population 2016'!F132/'Population 2016'!F$5","v":3.1212979654906001E-3},{"$f":"'Population 2016'!G132/'Population 2016'!G$5","v":4.3441779894981868E-3},{"$f":"'Population 2016'!H132/'Population 2016'!H$5","v":5.4245443609705164E-3},{"$f":"'Population 2016'!I132/'Population 2016'!I$5","v":3.6638472489741226E-3},{"$f":"'Population 2016'!J132/'Population 2016'!J$5","v":3.5079571747261224E-3},{"$f":"'Population 2016'!K132/'Population 2016'!K$5","v":5.0559939517081697E-3},{"$f":"'Population 2016'!L132/'Population 2016'!L$5","v":7.29909615109685E-3},{"$f":"'Population 2016'!M132/'Population 2016'!M$5","v":7.29909615109685E-3},{"$f":"'Population 2016'!N132/'Population 2016'!N$5","v":3.5846038851962288E-3},{"$f":"'Population 2016'!O132/'Population 2016'!O$5","v":5.6963969051227947E-3},{"$f":"'Population 2016'!P132/'Population 2016'!P$5","v":3.1781809985348811E-3},{"$f":"'Population 2016'!Q132/'Population 2016'!Q$5","v":5.440594117577937E-3},{"$f":"'Population 2016'!R132/'Population 2016'!R$5","v":1.3040932559748762E-3},{"$f":"'Population 2016'!S132/'Population 2016'!S$5","v":3.5571106023079735E-3},{"$f":"'Population 2016'!T132/'Population 2016'!T$5","v":1.7449733135414583E-3},{"$f":"'Population 2016'!U132/'Population 2016'!U$5","v":6.4179170539547647E-3},{"$f":"'Population 2016'!V132/'Population 2016'!V$5","v":5.5334641011746209E-3},{"$f":"'Population 2016'!W132/'Population 2016'!W$5","v":4.1705070630609431E-3},{"$f":"'Population 2016'!X132/'Population 2016'!X$5","v":4.1705070630609431E-3},{"$f":"'Population 2016'!Y132/'Population 2016'!Y$5","v":4.5627255528528955E-3},{"$f":"'Population 2016'!Z132/'Population 2016'!Z$5","v":2.1893867974749461E-3},{"$f":"'Population 2016'!AA132/'Population 2016'!AA$5","v":3.689980513660701E-3},{"$f":"'Population 2016'!AB132/'Population 2016'!AB$5","v":2.2332988751624823E-3},{"$f":"'Population 2016'!AC132/'Population 2016'!AC$5","v":2.7729453209521309E-3},{"$f":"'Population 2016'!AD132/'Population 2016'!AD$5","v":3.9673973724366372E-3},{"$f":"'Population 2016'!AE132/'Population 2016'!AE$5","v":3.8244745839279663E-3},{"$f":"'Population 2016'!AF132/'Population 2016'!AF$5","v":2.2922981797342742E-3},{"$f":"'Population 2016'!AG132/'Population 2016'!AG$5","v":3.8244745839279663E-3},{"$f":"'Population 2016'!AH132/'Population 2016'!AH$5","v":5.3370238614937355E-3},{"$f":"'Population 2016'!AI132/'Population 2016'!AI$5","v":3.28659550266865E-3},{"$f":"'Population 2016'!AJ132/'Population 2016'!AJ$5","v":6.5805983883110725E-3},{"$f":"'Population 2016'!AK132/'Population 2016'!AK$5","v":2.6023660158656322E-3},{"$f":"'Population 2016'!AL132/'Population 2016'!AL$5","v":4.1503343324878952E-3},{"$f":"'Population 2016'!AM132/'Population 2016'!AM$5","v":5.393149360174725E-3},{"$f":"'Population 2016'!AN132/'Population 2016'!AN$5","v":4.4180211628668045E-3},{"$f":"'Population 2016'!AO132/'Population 2016'!AO$5","v":4.4180211628668045E-3},{"$f":"'Population 2016'!AP132/'Population 2016'!AP$5","v":1.8309211673509503E-3},{"$f":"'Population 2016'!AQ132/'Population 2016'!AQ$5","v":4.0349098481942238E-3},{"$f":"'Population 2016'!AR132/'Population 2016'!AR$5","v":3.7192709026032224E-3},{"$f":"'Population 2016'!AS132/'Population 2016'!AS$5","v":3.6638472489741226E-3},{"$f":"'Population 2016'!AT132/'Population 2016'!AT$5","v":4.2178520588390361E-4},{"$f":"'Population 2016'!AU132/'Population 2016'!AU$5","v":4.2178520588390361E-4},{"$f":"'Population 2016'!AV132/'Population 2016'!AV$5","v":6.6518847006651885E-3},{"$f":"'Population 2016'!AW132/'Population 2016'!AW$5","v":5.2779303191164808E-3},{"$f":"'Population 2016'!AX132/'Population 2016'!AX$5","v":2.6706876062205297E-3},{"$f":"'Population 2016'!AY132/'Population 2016'!AY$5","v":3.4515467702946668E-3},{"$f":"'Population 2016'!AZ132/'Population 2016'!AZ$5","v":2.8188297829501068E-3},{"$f":"'Population 2016'!BA132/'Population 2016'!BA$5","v":5.7897862232779099E-3},{"$f":"'Population 2016'!BB132/'Population 2016'!BB$5","v":4.9646810244229162E-3},{"$f":"'Population 2016'!BC132/'Population 2016'!BC$5","v":6.4179170539547647E-3},130]
[null,"Male 80-84",{"$f":"'Population 2016'!C133/'Population 2016'!C$5","v":2.3051013784608464E-3},{"$f":"'Population 2016'!D133/'Population 2016'!D$5","v":1.7580665669043357E-3},{"$f":"'Population 2016'!E133/'Population 2016'!E$5","v":1.2563344099681697E-3},{"$f":"'Population 2016'!F133/'Population 2016'!F$5","v":2.338398145763585E-3},{"$f":"'Population 2016'!G133/'Population 2016'!G$5","v":2.8555188653710821E-3},{"$f":"'Population 2016'!H133/'Population 2016'!H$5","v":3.3688592893295678E-3},{"$f":"'Population 2016'!I133/'Population 2016'!I$5","v":2.3134578343522319E-3},{"$f":"'Population 2016'!J133/'Population 2016'!J$5","v":2.24741464385527E-3},{"$f":"'Population 2016'!K133/'Population 2016'!K$5","v":3.0005197750791477E-3},{"$f":"'Population 2016'!L133/'Population 2016'!L$5","v":4.6304385811637254E-3},{"$f":"'Population 2016'!M133/'Population 2016'!M$5","v":4.6304385811637254E-3},{"$f":"'Population 2016'!N133/'Population 2016'!N$5","v":2.3870568473167712E-3},{"$f":"'Population 2016'!O133/'Population 2016'!O$5","v":3.5367194697892828E-3},{"$f":"'Population 2016'!P133/'Population 2016'!P$5","v":2.2765693677448441E-3},{"$f":"'Population 2016'!Q133/'Population 2016'!Q$5","v":3.8072408079811047E-3},{"$f":"'Population 2016'!R133/'Population 2016'!R$5","v":1.0911800713259169E-3},{"$f":"'Population 2016'!S133/'Population 2016'!S$5","v":2.4184821464823441E-3},{"$f":"'Population 2016'!T133/'Population 2016'!T$5","v":1.2703405722581816E-3},{"$f":"'Population 2016'!U133/'Population 2016'!U$5","v":3.9392732262205112E-3},{"$f":"'Population 2016'!V133/'Population 2016'!V$5","v":4.0069912456781737E-3},{"$f":"'Population 2016'!W133/'Population 2016'!W$5","v":2.8696749227018086E-3},{"$f":"'Population 2016'!X133/'Population 2016'!X$5","v":2.8696749227018086E-3},{"$f":"'Population 2016'!Y133/'Population 2016'!Y$5","v":3.1637016899572342E-3},{"$f":"'Population 2016'!Z133/'Population 2016'!Z$5","v":1.5486378761980165E-3},{"$f":"'Population 2016'!AA133/'Population 2016'!AA$5","v":2.5293042519816868E-3},{"$f":"'Population 2016'!AB133/'Population 2016'!AB$5","v":1.7747663838367296E-3},{"$f":"'Population 2016'!AC133/'Population 2016'!AC$5","v":1.9330976519431303E-3},{"$f":"'Population 2016'!AD133/'Population 2016'!AD$5","v":2.5940675127470317E-3},{"$f":"'Population 2016'!AE133/'Population 2016'!AE$5","v":2.4948921446832101E-3},{"$f":"'Population 2016'!AF133/'Population 2016'!AF$5","v":1.6136572712603116E-3},{"$f":"'Population 2016'!AG133/'Population 2016'!AG$5","v":2.4948921446832101E-3},{"$f":"'Population 2016'!AH133/'Population 2016'!AH$5","v":3.6001226047945906E-3},{"$f":"'Population 2016'!AI133/'Population 2016'!AI$5","v":2.2434705573540991E-3},{"$f":"'Population 2016'!AJ133/'Population 2016'!AJ$5","v":4.098932046956473E-3},{"$f":"'Population 2016'!AK133/'Population 2016'!AK$5","v":1.8606288422614184E-3},{"$f":"'Population 2016'!AL133/'Population 2016'!AL$5","v":2.5895248399283445E-3},{"$f":"'Population 2016'!AM133/'Population 2016'!AM$5","v":3.6292381859604262E-3},{"$f":"'Population 2016'!AN133/'Population 2016'!AN$5","v":1.9090214901276317E-3},{"$f":"'Population 2016'!AO133/'Population 2016'!AO$5","v":1.9090214901276317E-3},{"$f":"'Population 2016'!AP133/'Population 2016'!AP$5","v":1.1889098489291886E-3},{"$f":"'Population 2016'!AQ133/'Population 2016'!AQ$5","v":2.8292322025538445E-3},{"$f":"'Population 2016'!AR133/'Population 2016'!AR$5","v":2.5247377741361076E-3},{"$f":"'Population 2016'!AS133/'Population 2016'!AS$5","v":2.3134578343522319E-3},{"$f":"'Population 2016'!AT133/'Population 2016'!AT$5","v":3.1633890441292773E-4},{"$f":"'Population 2016'!AU133/'Population 2016'!AU$5","v":3.1633890441292773E-4},{"$f":"'Population 2016'!AV133/'Population 2016'!AV$5","v":4.117833386126069E-3},{"$f":"'Population 2016'!AW133/'Population 2016'!AW$5","v":3.5694673256452497E-3},{"$f":"'Population 2016'!AX133/'Population 2016'!AX$5","v":1.8400909822763459E-3},{"$f":"'Population 2016'!AY133/'Population 2016'!AY$5","v":2.3744683455218627E-3},{"$f":"'Population 2016'!AZ133/'Population 2016'!AZ$5","v":1.9386645650085429E-3},{"$f":"'Population 2016'!BA133/'Population 2016'!BA$5","v":3.5764413733534875E-3},{"$f":"'Population 2016'!BB133/'Population 2016'!BB$5","v":3.293675728302825E-3},{"$f":"'Population 2016'!BC133/'Population 2016'!BC$5","v":3.9392732262205112E-3},131]
[null,"Male 85-89",{"$f":"'Population 2016'!C134/'Population 2016'!C$5","v":1.1806616816506775E-3},{"$f":"'Population 2016'!D134/'Population 2016'!D$5","v":8.1668182662871782E-4},{"$f":"'Population 2016'!E134/'Population 2016'!E$5","v":4.8284494114448316E-4},{"$f":"'Population 2016'!F134/'Population 2016'!F$5","v":1.2567602369302085E-3},{"$f":"'Population 2016'!G134/'Population 2016'!G$5","v":1.4074595355383533E-3},{"$f":"'Population 2016'!H134/'Population 2016'!H$5","v":1.7833230116759021E-3},{"$f":"'Population 2016'!I134/'Population 2016'!I$5","v":1.5806883845574072E-3},{"$f":"'Population 2016'!J134/'Population 2016'!J$5","v":1.0532164567144623E-3},{"$f":"'Population 2016'!K134/'Population 2016'!K$5","v":1.464820677597694E-3},{"$f":"'Population 2016'!L134/'Population 2016'!L$5","v":2.2556510412529984E-3},{"$f":"'Population 2016'!M134/'Population 2016'!M$5","v":2.2556510412529984E-3},{"$f":"'Population 2016'!N134/'Population 2016'!N$5","v":1.1653981241108815E-3},{"$f":"'Population 2016'!O134/'Population 2016'!O$5","v":1.8921944502233979E-3},{"$f":"'Population 2016'!P134/'Population 2016'!P$5","v":1.2960667192606784E-3},{"$f":"'Population 2016'!Q134/'Population 2016'!Q$5","v":1.7626114851764373E-3},{"$f":"'Population 2016'!R134/'Population 2016'!R$5","v":4.2582636929791877E-4},{"$f":"'Population 2016'!S134/'Population 2016'!S$5","v":1.2083584155234779E-3},{"$f":"'Population 2016'!T134/'Population 2016'!T$5","v":6.328436550443688E-4},{"$f":"'Population 2016'!U134/'Population 2016'!U$5","v":2.1688133492674721E-3},{"$f":"'Population 2016'!V134/'Population 2016'!V$5","v":1.9309881622030056E-3},{"$f":"'Population 2016'!W134/'Population 2016'!W$5","v":1.4054216591819792E-3},{"$f":"'Population 2016'!X134/'Population 2016'!X$5","v":1.4054216591819792E-3},{"$f":"'Population 2016'!Y134/'Population 2016'!Y$5","v":1.5103098519896345E-3},{"$f":"'Population 2016'!Z134/'Population 2016'!Z$5","v":7.6657574871801817E-4},{"$f":"'Population 2016'!AA134/'Population 2016'!AA$5","v":1.196552917735492E-3},{"$f":"'Population 2016'!AB134/'Population 2016'!AB$5","v":8.3109014052792647E-4},{"$f":"'Population 2016'!AC134/'Population 2016'!AC$5","v":9.2465987203700292E-4},{"$f":"'Population 2016'!AD134/'Population 2016'!AD$5","v":1.354721054002754E-3},{"$f":"'Population 2016'!AE134/'Population 2016'!AE$5","v":1.3347159621762031E-3},{"$f":"'Population 2016'!AF134/'Population 2016'!AF$5","v":7.3896454478275953E-4},{"$f":"'Population 2016'!AG134/'Population 2016'!AG$5","v":1.3347159621762031E-3},{"$f":"'Population 2016'!AH134/'Population 2016'!AH$5","v":1.6848871014183146E-3},{"$f":"'Population 2016'!AI134/'Population 2016'!AI$5","v":1.0773033511243329E-3},{"$f":"'Population 2016'!AJ134/'Population 2016'!AJ$5","v":2.1888854808577085E-3},{"$f":"'Population 2016'!AK134/'Population 2016'!AK$5","v":9.0517078812717654E-4},{"$f":"'Population 2016'!AL134/'Population 2016'!AL$5","v":1.2060800624323798E-3},{"$f":"'Population 2016'!AM134/'Population 2016'!AM$5","v":1.6190314063116871E-3},{"$f":"'Population 2016'!AN134/'Population 2016'!AN$5","v":8.7269553834406024E-4},{"$f":"'Population 2016'!AO134/'Population 2016'!AO$5","v":8.7269553834406024E-4},{"$f":"'Population 2016'!AP134/'Population 2016'!AP$5","v":6.4201131842176178E-4},{"$f":"'Population 2016'!AQ134/'Population 2016'!AQ$5","v":1.1919767633035568E-3},{"$f":"'Population 2016'!AR134/'Population 2016'!AR$5","v":1.240425300131461E-3},{"$f":"'Population 2016'!AS134/'Population 2016'!AS$5","v":1.5806883845574072E-3},{"$f":"'Population 2016'!AT134/'Population 2016'!AT$5","v":5.2723150735487951E-5},{"$f":"'Population 2016'!AU134/'Population 2016'!AU$5","v":5.2723150735487951E-5},{"$f":"'Population 2016'!AV134/'Population 2016'!AV$5","v":2.3545560130925985E-3},{"$f":"'Population 2016'!AW134/'Population 2016'!AW$5","v":1.7542253950820672E-3},{"$f":"'Population 2016'!AX134/'Population 2016'!AX$5","v":8.3059662394418393E-4},{"$f":"'Population 2016'!AY134/'Population 2016'!AY$5","v":1.1902940546494906E-3},{"$f":"'Population 2016'!AZ134/'Population 2016'!AZ$5","v":1.0009722086394255E-3},{"$f":"'Population 2016'!BA134/'Population 2016'!BA$5","v":1.7274886633556468E-3},{"$f":"'Population 2016'!BB134/'Population 2016'!BB$5","v":1.4431409375582607E-3},{"$f":"'Population 2016'!BC134/'Population 2016'!BC$5","v":2.1688133492674721E-3},132]
[null,"Male 90+",{"$f":"'Population 2016'!C135/'Population 2016'!C$5","v":4.753313263788442E-4},{"$f":"'Population 2016'!D135/'Population 2016'!D$5","v":3.6432812026251183E-4},{"$f":"'Population 2016'!E135/'Population 2016'!E$5","v":2.6251763790379666E-4},{"$f":"'Population 2016'!F135/'Population 2016'!F$5","v":7.0048931238732943E-4},{"$f":"'Population 2016'!G135/'Population 2016'!G$5","v":4.7366426676771507E-4},{"$f":"'Population 2016'!H135/'Population 2016'!H$5","v":6.9387477181571467E-4},{"$f":"'Population 2016'!I135/'Population 2016'!I$5","v":5.8621555983585959E-4},{"$f":"'Population 2016'!J135/'Population 2016'!J$5","v":3.0684258975145751E-4},{"$f":"'Population 2016'!K135/'Population 2016'!K$5","v":4.7252279922506261E-4},{"$f":"'Population 2016'!L135/'Population 2016'!L$5","v":9.8486172223722452E-4},{"$f":"'Population 2016'!M135/'Population 2016'!M$5","v":9.8486172223722452E-4},{"$f":"'Population 2016'!N135/'Population 2016'!N$5","v":5.3849430562364871E-4},{"$f":"'Population 2016'!O135/'Population 2016'!O$5","v":6.9347440584103582E-4},{"$f":"'Population 2016'!P135/'Population 2016'!P$5","v":7.2128930463202974E-4},{"$f":"'Population 2016'!Q135/'Population 2016'!Q$5","v":7.8729979671214199E-4},{"$f":"'Population 2016'!R135/'Population 2016'!R$5","v":2.2622025868951934E-4},{"$f":"'Population 2016'!S135/'Population 2016'!S$5","v":5.2782931518118319E-4},{"$f":"'Population 2016'!T135/'Population 2016'!T$5","v":3.3736150728468192E-4},{"$f":"'Population 2016'!U135/'Population 2016'!U$5","v":3.9835347231443366E-4},{"$f":"'Population 2016'!V135/'Population 2016'!V$5","v":7.0980987780584791E-4},{"$f":"'Population 2016'!W135/'Population 2016'!W$5","v":6.275371129370698E-4},{"$f":"'Population 2016'!X135/'Population 2016'!X$5","v":6.275371129370698E-4},{"$f":"'Population 2016'!Y135/'Population 2016'!Y$5","v":5.1668494936487491E-4},{"$f":"'Population 2016'!Z135/'Population 2016'!Z$5","v":3.1747076462059338E-4},{"$f":"'Population 2016'!AA135/'Population 2016'!AA$5","v":4.5576640842118129E-4},{"$f":"'Population 2016'!AB135/'Population 2016'!AB$5","v":3.6846360910105114E-4},{"$f":"'Population 2016'!AC135/'Population 2016'!AC$5","v":3.8682638942040169E-4},{"$f":"'Population 2016'!AD135/'Population 2016'!AD$5","v":6.3642115449030485E-4},{"$f":"'Population 2016'!AE135/'Population 2016'!AE$5","v":6.9815911867678309E-4},{"$f":"'Population 2016'!AF135/'Population 2016'!AF$5","v":2.7145636338958513E-4},{"$f":"'Population 2016'!AG135/'Population 2016'!AG$5","v":6.9815911867678309E-4},{"$f":"'Population 2016'!AH135/'Population 2016'!AH$5","v":5.7958630170067713E-4},{"$f":"'Population 2016'!AI135/'Population 2016'!AI$5","v":4.7849768133694984E-4},{"$f":"'Population 2016'!AJ135/'Population 2016'!AJ$5","v":8.9228452722862005E-4},{"$f":"'Population 2016'!AK135/'Population 2016'!AK$5","v":3.8972631155475656E-4},{"$f":"'Population 2016'!AL135/'Population 2016'!AL$5","v":4.9662120217803868E-4},{"$f":"'Population 2016'!AM135/'Population 2016'!AM$5","v":5.3605514123966375E-4},{"$f":"'Population 2016'!AN135/'Population 2016'!AN$5","v":4.9089124031853387E-4},{"$f":"'Population 2016'!AO135/'Population 2016'!AO$5","v":4.9089124031853387E-4},{"$f":"'Population 2016'!AP135/'Population 2016'!AP$5","v":2.3778196978583771E-4},{"$f":"'Population 2016'!AQ135/'Population 2016'!AQ$5","v":5.0008220529402093E-4},{"$f":"'Population 2016'!AR135/'Population 2016'!AR$5","v":5.0926943895483474E-4},{"$f":"'Population 2016'!AS135/'Population 2016'!AS$5","v":5.8621555983585959E-4},{"$f":"'Population 2016'!AT135/'Population 2016'!AT$5","v":0},{"$f":"'Population 2016'!AU135/'Population 2016'!AU$5","v":0},{"$f":"'Population 2016'!AV135/'Population 2016'!AV$5","v":9.2915214866434379E-4},{"$f":"'Population 2016'!AW135/'Population 2016'!AW$5","v":6.2541948868143266E-4},{"$f":"'Population 2016'!AX135/'Population 2016'!AX$5","v":2.1723296318540194E-4},{"$f":"'Population 2016'!AY135/'Population 2016'!AY$5","v":5.4618891710779961E-4},{"$f":"'Population 2016'!AZ135/'Population 2016'!AZ$5","v":4.745988920273139E-4},{"$f":"'Population 2016'!BA135/'Population 2016'!BA$5","v":5.1284819693370762E-4},{"$f":"'Population 2016'!BB135/'Population 2016'!BB$5","v":5.10968561623499E-4},{"$f":"'Population 2016'!BC135/'Population 2016'!BC$5","v":3.9835347231443366E-4},133]
["SIMD Q3","Female 0-4",{"$f":"'Population 2016'!C136/'Population 2016'!C$5","v":0},{"$f":"'Population 2016'!D136/'Population 2016'!D$5","v":0},{"$f":"'Population 2016'!E136/'Population 2016'!E$5","v":0},{"$f":"'Population 2016'!F136/'Population 2016'!F$5","v":0},{"$f":"'Population 2016'!G136/'Population 2016'!G$5","v":0},{"$f":"'Population 2016'!H136/'Population 2016'!H$5","v":0},{"$f":"'Population 2016'!I136/'Population 2016'!I$5","v":0},{"$f":"'Population 2016'!J136/'Population 2016'!J$5","v":0},{"$f":"'Population 2016'!K136/'Population 2016'!K$5","v":0},{"$f":"'Population 2016'!L136/'Population 2016'!L$5","v":0},{"$f":"'Population 2016'!M136/'Population 2016'!M$5","v":0},{"$f":"'Population 2016'!N136/'Population 2016'!N$5","v":0},{"$f":"'Population 2016'!O136/'Population 2016'!O$5","v":0},{"$f":"'Population 2016'!P136/'Population 2016'!P$5","v":0},{"$f":"'Population 2016'!Q136/'Population 2016'!Q$5","v":0},{"$f":"'Population 2016'!R136/'Population 2016'!R$5","v":0},{"$f":"'Population 2016'!S136/'Population 2016'!S$5","v":0},{"$f":"'Population 2016'!T136/'Population 2016'!T$5","v":0},{"$f":"'Population 2016'!U136/'Population 2016'!U$5","v":0},{"$f":"'Population 2016'!V136/'Population 2016'!V$5","v":0},{"$f":"'Population 2016'!W136/'Population 2016'!W$5","v":0},{"$f":"'Population 2016'!X136/'Population 2016'!X$5","v":0},{"$f":"'Population 2016'!Y136/'Population 2016'!Y$5","v":0},{"$f":"'Population 2016'!Z136/'Population 2016'!Z$5","v":0},{"$f":"'Population 2016'!AA136/'Population 2016'!AA$5","v":0},{"$f":"'Population 2016'!AB136/'Population 2016'!AB$5","v":0},{"$f":"'Population 2016'!AC136/'Population 2016'!AC$5","v":0},{"$f":"'Population 2016'!AD136/'Population 2016'!AD$5","v":0},{"$f":"'Population 2016'!AE136/'Population 2016'!AE$5","v":0},{"$f":"'Population 2016'!AF136/'Population 2016'!AF$5","v":0},{"$f":"'Population 2016'!AG136/'Population 2016'!AG$5","v":0},{"$f":"'Population 2016'!AH136/'Population 2016'!AH$5","v":0},{"$f":"'Population 2016'!AI136/'Population 2016'!AI$5","v":0},{"$f":"'Population 2016'!AJ136/'Population 2016'!AJ$5","v":0},{"$f":"'Population 2016'!AK136/'Population 2016'!AK$5","v":0},{"$f":"'Population 2016'!AL136/'Population 2016'!AL$5","v":0},{"$f":"'Population 2016'!AM136/'Population 2016'!AM$5","v":0},{"$f":"'Population 2016'!AN136/'Population 2016'!AN$5","v":0},{"$f":"'Population 2016'!AO136/'Population 2016'!AO$5","v":0},{"$f":"'Population 2016'!AP136/'Population 2016'!AP$5","v":0},{"$f":"'Population 2016'!AQ136/'Population 2016'!AQ$5","v":0},{"$f":"'Population 2016'!AR136/'Population 2016'!AR$5","v":0},{"$f":"'Population 2016'!AS136/'Population 2016'!AS$5","v":0},{"$f":"'Population 2016'!AT136/'Population 2016'!AT$5","v":0},{"$f":"'Population 2016'!AU136/'Population 2016'!AU$5","v":0},{"$f":"'Population 2016'!AV136/'Population 2016'!AV$5","v":0},{"$f":"'Population 2016'!AW136/'Population 2016'!AW$5","v":0},{"$f":"'Population 2016'!AX136/'Population 2016'!AX$5","v":0},{"$f":"'Population 2016'!AY136/'Population 2016'!AY$5","v":0},{"$f":"'Population 2016'!AZ136/'Population 2016'!AZ$5","v":0},{"$f":"'Population 2016'!BA136/'Population 2016'!BA$5","v":0},{"$f":"'Population 2016'!BB136/'Population 2016'!BB$5","v":0},{"$f":"'Population 2016'!BC136/'Population 2016'!BC$5","v":0},134]
[null,"Female 5-9",{"$f":"'Population 2016'!C137/'Population 2016'!C$5","v":0},{"$f":"'Population 2016'!D137/'Population 2016'!D$5","v":0},{"$f":"'Population 2016'!E137/'Population 2016'!E$5","v":0},{"$f":"'Population 2016'!F137/'Population 2016'!F$5","v":0},{"$f":"'Population 2016'!G137/'Population 2016'!G$5","v":0},{"$f":"'Population 2016'!H137/'Population 2016'!H$5","v":0},{"$f":"'Population 2016'!I137/'Population 2016'!I$5","v":0},{"$f":"'Population 2016'!J137/'Population 2016'!J$5","v":0},{"$f":"'Population 2016'!K137/'Population 2016'!K$5","v":0},{"$f":"'Population 2016'!L137/'Population 2016'!L$5","v":0},{"$f":"'Population 2016'!M137/'Population 2016'!M$5","v":0},{"$f":"'Population 2016'!N137/'Population 2016'!N$5","v":0},{"$f":"'Population 2016'!O137/'Population 2016'!O$5","v":0},{"$f":"'Population 2016'!P137/'Population 2016'!P$5","v":0},{"$f":"'Population 2016'!Q137/'Population 2016'!Q$5","v":0},{"$f":"'Population 2016'!R137/'Population 2016'!R$5","v":0},{"$f":"'Population 2016'!S137/'Population 2016'!S$5","v":0},{"$f":"'Population 2016'!T137/'Population 2016'!T$5","v":0},{"$f":"'Population 2016'!U137/'Population 2016'!U$5","v":0},{"$f":"'Population 2016'!V137/'Population 2016'!V$5","v":0},{"$f":"'Population 2016'!W137/'Population 2016'!W$5","v":0},{"$f":"'Population 2016'!X137/'Population 2016'!X$5","v":0},{"$f":"'Population 2016'!Y137/'Population 2016'!Y$5","v":0},{"$f":"'Population 2016'!Z137/'Population 2016'!Z$5","v":0},{"$f":"'Population 2016'!AA137/'Population 2016'!AA$5","v":0},{"$f":"'Population 2016'!AB137/'Population 2016'!AB$5","v":0},{"$f":"'Population 2016'!AC137/'Population 2016'!AC$5","v":0},{"$f":"'Population 2016'!AD137/'Population 2016'!AD$5","v":0},{"$f":"'Population 2016'!AE137/'Population 2016'!AE$5","v":0},{"$f":"'Population 2016'!AF137/'Population 2016'!AF$5","v":0},{"$f":"'Population 2016'!AG137/'Population 2016'!AG$5","v":0},{"$f":"'Population 2016'!AH137/'Population 2016'!AH$5","v":0},{"$f":"'Population 2016'!AI137/'Population 2016'!AI$5","v":0},{"$f":"'Population 2016'!AJ137/'Population 2016'!AJ$5","v":0},{"$f":"'Population 2016'!AK137/'Population 2016'!AK$5","v":0},{"$f":"'Population 2016'!AL137/'Population 2016'!AL$5","v":0},{"$f":"'Population 2016'!AM137/'Population 2016'!AM$5","v":0},{"$f":"'Population 2016'!AN137/'Population 2016'!AN$5","v":0},{"$f":"'Population 2016'!AO137/'Population 2016'!AO$5","v":0},{"$f":"'Population 2016'!AP137/'Population 2016'!AP$5","v":0},{"$f":"'Population 2016'!AQ137/'Population 2016'!AQ$5","v":0},{"$f":"'Population 2016'!AR137/'Population 2016'!AR$5","v":0},{"$f":"'Population 2016'!AS137/'Population 2016'!AS$5","v":0},{"$f":"'Population 2016'!AT137/'Population 2016'!AT$5","v":0},{"$f":"'Population 2016'!AU137/'Population 2016'!AU$5","v":0},{"$f":"'Population 2016'!AV137/'Population 2016'!AV$5","v":0},{"$f":"'Population 2016'!AW137/'Population 2016'!AW$5","v":0},{"$f":"'Population 2016'!AX137/'Population 2016'!AX$5","v":0},{"$f":"'Population 2016'!AY137/'Population 2016'!AY$5","v":0},{"$f":"'Population 2016'!AZ137/'Population 2016'!AZ$5","v":0},{"$f":"'Population 2016'!BA137/'Population 2016'!BA$5","v":0},{"$f":"'Population 2016'!BB137/'Population 2016'!BB$5","v":0},{"$f":"'Population 2016'!BC137/'Population 2016'!BC$5","v":0},135]
[null,"Female 10-15",{"$f":"'Population 2016'!C138/'Population 2016'!C$5","v":0},{"$f":"'Population 2016'!D138/'Population 2016'!D$5","v":0},{"$f":"'Population 2016'!E138/'Population 2016'!E$5","v":0},{"$f":"'Population 2016'!F138/'Population 2016'!F$5","v":0},{"$f":"'Population 2016'!G138/'Population 2016'!G$5","v":0},{"$f":"'Population 2016'!H138/'Population 2016'!H$5","v":0},{"$f":"'Population 2016'!I138/'Population 2016'!I$5","v":0},{"$f":"'Population 2016'!J138/'Population 2016'!J$5","v":0},{"$f":"'Population 2016'!K138/'Population 2016'!K$5","v":0},{"$f":"'Population 2016'!L138/'Population 2016'!L$5","v":0},{"$f":"'Population 2016'!M138/'Population 2016'!M$5","v":0},{"$f":"'Population 2016'!N138/'Population 2016'!N$5","v":0},{"$f":"'Population 2016'!O138/'Population 2016'!O$5","v":0},{"$f":"'Population 2016'!P138/'Population 2016'!P$5","v":0},{"$f":"'Population 2016'!Q138/'Population 2016'!Q$5","v":0},{"$f":"'Population 2016'!R138/'Population 2016'!R$5","v":0},{"$f":"'Population 2016'!S138/'Population 2016'!S$5","v":0},{"$f":"'Population 2016'!T138/'Population 2016'!T$5","v":0},{"$f":"'Population 2016'!U138/'Population 2016'!U$5","v":0},{"$f":"'Population 2016'!V138/'Population 2016'!V$5","v":0},{"$f":"'Population 2016'!W138/'Population 2016'!W$5","v":0},{"$f":"'Population 2016'!X138/'Population 2016'!X$5","v":0},{"$f":"'Population 2016'!Y138/'Population 2016'!Y$5","v":0},{"$f":"'Population 2016'!Z138/'Population 2016'!Z$5","v":0},{"$f":"'Population 2016'!AA138/'Population 2016'!AA$5","v":0},{"$f":"'Population 2016'!AB138/'Population 2016'!AB$5","v":0},{"$f":"'Population 2016'!AC138/'Population 2016'!AC$5","v":0},{"$f":"'Population 2016'!AD138/'Population 2016'!AD$5","v":0},{"$f":"'Population 2016'!AE138/'Population 2016'!AE$5","v":0},{"$f":"'Population 2016'!AF138/'Population 2016'!AF$5","v":0},{"$f":"'Population 2016'!AG138/'Population 2016'!AG$5","v":0},{"$f":"'Population 2016'!AH138/'Population 2016'!AH$5","v":0},{"$f":"'Population 2016'!AI138/'Population 2016'!AI$5","v":0},{"$f":"'Population 2016'!AJ138/'Population 2016'!AJ$5","v":0},{"$f":"'Population 2016'!AK138/'Population 2016'!AK$5","v":0},{"$f":"'Population 2016'!AL138/'Population 2016'!AL$5","v":0},{"$f":"'Population 2016'!AM138/'Population 2016'!AM$5","v":0},{"$f":"'Population 2016'!AN138/'Population 2016'!AN$5","v":0},{"$f":"'Population 2016'!AO138/'Population 2016'!AO$5","v":0},{"$f":"'Population 2016'!AP138/'Population 2016'!AP$5","v":0},{"$f":"'Population 2016'!AQ138/'Population 2016'!AQ$5","v":0},{"$f":"'Population 2016'!AR138/'Population 2016'!AR$5","v":0},{"$f":"'Population 2016'!AS138/'Population 2016'!AS$5","v":0},{"$f":"'Population 2016'!AT138/'Population 2016'!AT$5","v":0},{"$f":"'Population 2016'!AU138/'Population 2016'!AU$5","v":0},{"$f":"'Population 2016'!AV138/'Population 2016'!AV$5","v":0},{"$f":"'Population 2016'!AW138/'Population 2016'!AW$5","v":0},{"$f":"'Population 2016'!AX138/'Population 2016'!AX$5","v":0},{"$f":"'Population 2016'!AY138/'Population 2016'!AY$5","v":0},{"$f":"'Population 2016'!AZ138/'Population 2016'!AZ$5","v":0},{"$f":"'Population 2016'!BA138/'Population 2016'!BA$5","v":0},{"$f":"'Population 2016'!BB138/'Population 2016'!BB$5","v":0},{"$f":"'Population 2016'!BC138/'Population 2016'!BC$5","v":0},136]
[null,"Female 16-19",{"$f":"'Population 2016'!C139/'Population 2016'!C$5","v":3.5062074182353451E-3},{"$f":"'Population 2016'!D139/'Population 2016'!D$5","v":4.2521248398423367E-3},{"$f":"'Population 2016'!E139/'Population 2016'!E$5","v":4.9362691555838905E-3},{"$f":"'Population 2016'!F139/'Population 2016'!F$5","v":8.0659284058717494E-3},{"$f":"'Population 2016'!G139/'Population 2016'!G$5","v":1.0298814486006605E-2},{"$f":"'Population 2016'!H139/'Population 2016'!H$5","v":4.3545505539649759E-3},{"$f":"'Population 2016'!I139/'Population 2016'!I$5","v":8.1442090277196212E-3},{"$f":"'Population 2016'!J139/'Population 2016'!J$5","v":4.3206753854191718E-3},{"$f":"'Population 2016'!K139/'Population 2016'!K$5","v":4.1345744932192981E-3},{"$f":"'Population 2016'!L139/'Population 2016'!L$5","v":8.4825187044302898E-3},{"$f":"'Population 2016'!M139/'Population 2016'!M$5","v":8.4825187044302898E-3},{"$f":"'Population 2016'!N139/'Population 2016'!N$5","v":3.8257207384605491E-3},{"$f":"'Population 2016'!O139/'Population 2016'!O$5","v":4.1311261033673136E-3},{"$f":"'Population 2016'!P139/'Population 2016'!P$5","v":1.8483038431195763E-3},{"$f":"'Population 2016'!Q139/'Population 2016'!Q$5","v":5.3348374284673504E-3},{"$f":"'Population 2016'!R139/'Population 2016'!R$5","v":3.0739341033693512E-3},{"$f":"'Population 2016'!S139/'Population 2016'!S$5","v":4.9534751117003345E-3},{"$f":"'Population 2016'!T139/'Population 2016'!T$5","v":3.3410422376607121E-3},{"$f":"'Population 2016'!U139/'Population 2016'!U$5","v":1.5889877395653521E-2},{"$f":"'Population 2016'!V139/'Population 2016'!V$5","v":4.5641538379343769E-3},{"$f":"'Population 2016'!W139/'Population 2016'!W$5","v":5.2719654331640289E-3},{"$f":"'Population 2016'!X139/'Population 2016'!X$5","v":5.2719654331640289E-3},{"$f":"'Population 2016'!Y139/'Population 2016'!Y$5","v":4.4474650641484238E-3},{"$f":"'Population 2016'!Z139/'Population 2016'!Z$5","v":4.5800965188556343E-3},{"$f":"'Population 2016'!AA139/'Population 2016'!AA$5","v":4.4234588152598031E-3},{"$f":"'Population 2016'!AB139/'Population 2016'!AB$5","v":4.726569296746262E-3},{"$f":"'Population 2016'!AC139/'Population 2016'!AC$5","v":4.0823629920917794E-3},{"$f":"'Population 2016'!AD139/'Population 2016'!AD$5","v":8.2027615467639287E-3},{"$f":"'Population 2016'!AE139/'Population 2016'!AE$5","v":7.4076735900779267E-3},{"$f":"'Population 2016'!AF139/'Population 2016'!AF$5","v":4.1623309053069723E-3},{"$f":"'Population 2016'!AG139/'Population 2016'!AG$5","v":7.4076735900779267E-3},{"$f":"'Population 2016'!AH139/'Population 2016'!AH$5","v":5.036084820226076E-3},{"$f":"'Population 2016'!AI139/'Population 2016'!AI$5","v":4.4035458045323297E-3},{"$f":"'Population 2016'!AJ139/'Population 2016'!AJ$5","v":6.6642500627387561E-3},{"$f":"'Population 2016'!AK139/'Population 2016'!AK$5","v":7.1659354060068141E-3},{"$f":"'Population 2016'!AL139/'Population 2016'!AL$5","v":3.6093719515439601E-3},{"$f":"'Population 2016'!AM139/'Population 2016'!AM$5","v":5.074413870788979E-3},{"$f":"'Population 2016'!AN139/'Population 2016'!AN$5","v":6.7088469510199625E-3},{"$f":"'Population 2016'!AO139/'Population 2016'!AO$5","v":6.7088469510199625E-3},{"$f":"'Population 2016'!AP139/'Population 2016'!AP$5","v":5.2391294009479575E-3},{"$f":"'Population 2016'!AQ139/'Population 2016'!AQ$5","v":4.5349920534882449E-3},{"$f":"'Population 2016'!AR139/'Population 2016'!AR$5","v":5.0935854996777526E-3},{"$f":"'Population 2016'!AS139/'Population 2016'!AS$5","v":8.1442090277196212E-3},{"$f":"'Population 2016'!AT139/'Population 2016'!AT$5","v":7.8557494595877051E-3},{"$f":"'Population 2016'!AU139/'Population 2016'!AU$5","v":7.8557494595877051E-3},{"$f":"'Population 2016'!AV139/'Population 2016'!AV$5","v":5.4798859676908462E-3},{"$f":"'Population 2016'!AW139/'Population 2016'!AW$5","v":4.995728842516322E-3},{"$f":"'Population 2016'!AX139/'Population 2016'!AX$5","v":4.4213297213028862E-3},{"$f":"'Population 2016'!AY139/'Population 2016'!AY$5","v":5.405281356139653E-3},{"$f":"'Population 2016'!AZ139/'Population 2016'!AZ$5","v":5.5226052890451072E-3},{"$f":"'Population 2016'!BA139/'Population 2016'!BA$5","v":3.3470092852515656E-3},{"$f":"'Population 2016'!BB139/'Population 2016'!BB$5","v":5.8899484197951985E-3},{"$f":"'Population 2016'!BC139/'Population 2016'!BC$5","v":1.5889877395653521E-2},137]
[null,"Female 20-24",{"$f":"'Population 2016'!C140/'Population 2016'!C$5","v":1.0462400269865528E-2},{"$f":"'Population 2016'!D140/'Population 2016'!D$5","v":8.2303923006954022E-3},{"$f":"'Population 2016'!E140/'Population 2016'!E$5","v":6.1832279356269252E-3},{"$f":"'Population 2016'!F140/'Population 2016'!F$5","v":9.188771568374967E-3},{"$f":"'Population 2016'!G140/'Population 2016'!G$5","v":9.1890867752936721E-3},{"$f":"'Population 2016'!H140/'Population 2016'!H$5","v":4.9803348107894281E-3},{"$f":"'Population 2016'!I140/'Population 2016'!I$5","v":9.8819194372330634E-3},{"$f":"'Population 2016'!J140/'Population 2016'!J$5","v":7.5300830133600925E-3},{"$f":"'Population 2016'!K140/'Population 2016'!K$5","v":6.0482918300808017E-3},{"$f":"'Population 2016'!L140/'Population 2016'!L$5","v":9.9915810207615204E-3},{"$f":"'Population 2016'!M140/'Population 2016'!M$5","v":9.9915810207615204E-3},{"$f":"'Population 2016'!N140/'Population 2016'!N$5","v":6.8798675464752735E-3},{"$f":"'Population 2016'!O140/'Population 2016'!O$5","v":4.9137615042450537E-3},{"$f":"'Population 2016'!P140/'Population 2016'!P$5","v":2.4343514031331002E-3},{"$f":"'Population 2016'!Q140/'Population 2016'!Q$5","v":7.367716008037508E-3},{"$f":"'Population 2016'!R140/'Population 2016'!R$5","v":3.4332251024644703E-3},{"$f":"'Population 2016'!S140/'Population 2016'!S$5","v":8.8080413648712816E-3},{"$f":"'Population 2016'!T140/'Population 2016'!T$5","v":1.0648990474772338E-2},{"$f":"'Population 2016'!U140/'Population 2016'!U$5","v":1.6155446377196476E-2},{"$f":"'Population 2016'!V140/'Population 2016'!V$5","v":5.9532441364361435E-3},{"$f":"'Population 2016'!W140/'Population 2016'!W$5","v":7.3506821197680729E-3},{"$f":"'Population 2016'!X140/'Population 2016'!X$5","v":7.3506821197680729E-3},{"$f":"'Population 2016'!Y140/'Population 2016'!Y$5","v":6.7089553425223767E-3},{"$f":"'Population 2016'!Z140/'Population 2016'!Z$5","v":1.0222945780252157E-2},{"$f":"'Population 2016'!AA140/'Population 2016'!AA$5","v":7.1188586971325917E-3},{"$f":"'Population 2016'!AB140/'Population 2016'!AB$5","v":8.3027133250770189E-3},{"$f":"'Population 2016'!AC140/'Population 2016'!AC$5","v":7.5917264661651022E-3},{"$f":"'Population 2016'!AD140/'Population 2016'!AD$5","v":8.667981688935204E-3},{"$f":"'Population 2016'!AE140/'Population 2016'!AE$5","v":8.470312836887442E-3},{"$f":"'Population 2016'!AF140/'Population 2016'!AF$5","v":4.8108099956265362E-3},{"$f":"'Population 2016'!AG140/'Population 2016'!AG$5","v":8.470312836887442E-3},{"$f":"'Population 2016'!AH140/'Population 2016'!AH$5","v":6.2695633597429018E-3},{"$f":"'Population 2016'!AI140/'Population 2016'!AI$5","v":9.2773864730072621E-3},{"$f":"'Population 2016'!AJ140/'Population 2016'!AJ$5","v":7.1940440007807489E-3},{"$f":"'Population 2016'!AK140/'Population 2016'!AK$5","v":8.6745533862187755E-3},{"$f":"'Population 2016'!AL140/'Population 2016'!AL$5","v":4.2124119827601494E-3},{"$f":"'Population 2016'!AM140/'Population 2016'!AM$5","v":6.1972320720342202E-3},{"$f":"'Population 2016'!AN140/'Population 2016'!AN$5","v":9.2178466237591364E-3},{"$f":"'Population 2016'!AO140/'Population 2016'!AO$5","v":9.2178466237591364E-3},{"$f":"'Population 2016'!AP140/'Population 2016'!AP$5","v":7.0859026996179632E-3},{"$f":"'Population 2016'!AQ140/'Population 2016'!AQ$5","v":5.9735846988546067E-3},{"$f":"'Population 2016'!AR140/'Population 2016'!AR$5","v":7.7771636543802628E-3},{"$f":"'Population 2016'!AS140/'Population 2016'!AS$5","v":9.8819194372330634E-3},{"$f":"'Population 2016'!AT140/'Population 2016'!AT$5","v":9.1211050772394154E-3},{"$f":"'Population 2016'!AU140/'Population 2016'!AU$5","v":9.1211050772394154E-3},{"$f":"'Population 2016'!AV140/'Population 2016'!AV$5","v":5.9655791363108441E-3},{"$f":"'Population 2016'!AW140/'Population 2016'!AW$5","v":6.3457196900359994E-3},{"$f":"'Population 2016'!AX140/'Population 2016'!AX$5","v":8.3315230586401209E-3},{"$f":"'Population 2016'!AY140/'Population 2016'!AY$5","v":7.4829411584712829E-3},{"$f":"'Population 2016'!AZ140/'Population 2016'!AZ$5","v":7.5993349862797776E-3},{"$f":"'Population 2016'!BA140/'Population 2016'!BA$5","v":5.3174260418915997E-3},{"$f":"'Population 2016'!BB140/'Population 2016'!BB$5","v":7.3607092796033778E-3},{"$f":"'Population 2016'!BC140/'Population 2016'!BC$5","v":1.6155446377196476E-2},138]
[null,"Female 25-29",{"$f":"'Population 2016'!C141/'Population 2016'!C$5","v":1.0227290151441583E-2},{"$f":"'Population 2016'!D141/'Population 2016'!D$5","v":8.3599855246813959E-3},{"$f":"'Population 2016'!E141/'Population 2016'!E$5","v":6.6473216169211369E-3},{"$f":"'Population 2016'!F141/'Population 2016'!F$5","v":8.3543651815606492E-3},{"$f":"'Population 2016'!G141/'Population 2016'!G$5","v":9.852216748768473E-3},{"$f":"'Population 2016'!H141/'Population 2016'!H$5","v":5.0873341914899825E-3},{"$f":"'Population 2016'!I141/'Population 2016'!I$5","v":8.0499958127460015E-3},{"$f":"'Population 2016'!J141/'Population 2016'!J$5","v":6.9910352205534779E-3},{"$f":"'Population 2016'!K141/'Population 2016'!K$5","v":6.2609270897320797E-3},{"$f":"'Population 2016'!L141/'Population 2016'!L$5","v":1.0396645116197799E-2},{"$f":"'Population 2016'!M141/'Population 2016'!M$5","v":1.0396645116197799E-2},{"$f":"'Population 2016'!N141/'Population 2016'!N$5","v":7.6916276191318182E-3},{"$f":"'Population 2016'!O141/'Population 2016'!O$5","v":5.3001258160707736E-3},{"$f":"'Population 2016'!P141/'Population 2016'!P$5","v":2.2540290769750928E-3},{"$f":"'Population 2016'!Q141/'Population 2016'!Q$5","v":6.9446892515951635E-3},{"$f":"'Population 2016'!R141/'Population 2016'!R$5","v":3.5396816947889497E-3},{"$f":"'Population 2016'!S141/'Population 2016'!S$5","v":9.8548734180567057E-3},{"$f":"'Population 2016'!T141/'Population 2016'!T$5","v":1.3108239531323434E-2},{"$f":"'Population 2016'!U141/'Population 2016'!U$5","v":1.8279998229540122E-2},{"$f":"'Population 2016'!V141/'Population 2016'!V$5","v":6.0219354149334842E-3},{"$f":"'Population 2016'!W141/'Population 2016'!W$5","v":8.1154929761601269E-3},{"$f":"'Population 2016'!X141/'Population 2016'!X$5","v":8.1154929761601269E-3},{"$f":"'Population 2016'!Y141/'Population 2016'!Y$5","v":6.4863833643344299E-3},{"$f":"'Population 2016'!Z141/'Population 2016'!Z$5","v":9.6344633872969109E-3},{"$f":"'Population 2016'!AA141/'Population 2016'!AA$5","v":7.0397971773044276E-3},{"$f":"'Population 2016'!AB141/'Population 2016'!AB$5","v":8.4930861897792292E-3},{"$f":"'Population 2016'!AC141/'Population 2016'!AC$5","v":7.2566148346886045E-3},{"$f":"'Population 2016'!AD141/'Population 2016'!AD$5","v":9.3378986936618405E-3},{"$f":"'Population 2016'!AE141/'Population 2016'!AE$5","v":9.142804340906991E-3},{"$f":"'Population 2016'!AF141/'Population 2016'!AF$5","v":4.6298390867001464E-3},{"$f":"'Population 2016'!AG141/'Population 2016'!AG$5","v":9.142804340906991E-3},{"$f":"'Population 2016'!AH141/'Population 2016'!AH$5","v":6.6503812823346924E-3},{"$f":"'Population 2016'!AI141/'Population 2016'!AI$5","v":1.0818149006912241E-2},{"$f":"'Population 2016'!AJ141/'Population 2016'!AJ$5","v":8.1002704737473154E-3},{"$f":"'Population 2016'!AK141/'Population 2016'!AK$5","v":9.1774260462894278E-3},{"$f":"'Population 2016'!AL141/'Population 2016'!AL$5","v":3.8133413738670827E-3},{"$f":"'Population 2016'!AM141/'Population 2016'!AM$5","v":6.8310810566081471E-3},{"$f":"'Population 2016'!AN141/'Population 2016'!AN$5","v":1.0035998690956692E-2},{"$f":"'Population 2016'!AO141/'Population 2016'!AO$5","v":1.0035998690956692E-2},{"$f":"'Population 2016'!AP141/'Population 2016'!AP$5","v":7.3553889320419133E-3},{"$f":"'Population 2016'!AQ141/'Population 2016'!AQ$5","v":6.0489395517071302E-3},{"$f":"'Population 2016'!AR141/'Population 2016'!AR$5","v":8.1162310586187832E-3},{"$f":"'Population 2016'!AS141/'Population 2016'!AS$5","v":8.0499958127460015E-3},{"$f":"'Population 2016'!AT141/'Population 2016'!AT$5","v":1.107186165445247E-2},{"$f":"'Population 2016'!AU141/'Population 2016'!AU$5","v":1.107186165445247E-2},{"$f":"'Population 2016'!AV141/'Population 2016'!AV$5","v":6.3773624749234505E-3},{"$f":"'Population 2016'!AW141/'Population 2016'!AW$5","v":6.4601256940630914E-3},{"$f":"'Population 2016'!AX141/'Population 2016'!AX$5","v":7.3859207483036662E-3},{"$f":"'Population 2016'!AY141/'Population 2016'!AY$5","v":7.9235641504237942E-3},{"$f":"'Population 2016'!AZ141/'Population 2016'!AZ$5","v":7.7546582600341715E-3},{"$f":"'Population 2016'!BA141/'Population 2016'!BA$5","v":5.1689699848844741E-3},{"$f":"'Population 2016'!BB141/'Population 2016'!BB$5","v":7.6438134826650461E-3},{"$f":"'Population 2016'!BC141/'Population 2016'!BC$5","v":1.8279998229540122E-2},139]
[null,"Female 30-34",{"$f":"'Population 2016'!C142/'Population 2016'!C$5","v":8.0755214589093953E-3},{"$f":"'Population 2016'!D142/'Population 2016'!D$5","v":7.6337744393259197E-3},{"$f":"'Population 2016'!E142/'Population 2016'!E$5","v":7.2286106722795436E-3},{"$f":"'Population 2016'!F142/'Population 2016'!F$5","v":1.0311614730878186E-2},{"$f":"'Population 2016'!G142/'Population 2016'!G$5","v":1.1164943430953284E-2},{"$f":"'Population 2016'!H142/'Population 2016'!H$5","v":5.4602108212040345E-3},{"$f":"'Population 2016'!I142/'Population 2016'!I$5","v":9.9237919772213381E-3},{"$f":"'Population 2016'!J142/'Population 2016'!J$5","v":5.7221996467163696E-3},{"$f":"'Population 2016'!K142/'Population 2016'!K$5","v":6.4735623493833577E-3},{"$f":"'Population 2016'!L142/'Population 2016'!L$5","v":9.9598112877861255E-3},{"$f":"'Population 2016'!M142/'Population 2016'!M$5","v":9.9598112877861255E-3},{"$f":"'Population 2016'!N142/'Population 2016'!N$5","v":4.9509327203607111E-3},{"$f":"'Population 2016'!O142/'Population 2016'!O$5","v":5.4982613605967842E-3},{"$f":"'Population 2016'!P142/'Population 2016'!P$5","v":1.8144934069649499E-3},{"$f":"'Population 2016'!Q142/'Population 2016'!Q$5","v":7.1327011433473166E-3},{"$f":"'Population 2016'!R142/'Population 2016'!R$5","v":3.7392878053973491E-3},{"$f":"'Population 2016'!S142/'Population 2016'!S$5","v":8.9060163715353486E-3},{"$f":"'Population 2016'!T142/'Population 2016'!T$5","v":1.0044066392744634E-2},{"$f":"'Population 2016'!U142/'Population 2016'!U$5","v":2.0050458106493162E-2},{"$f":"'Population 2016'!V142/'Population 2016'!V$5","v":7.006510406728692E-3},{"$f":"'Population 2016'!W142/'Population 2016'!W$5","v":7.752698082743383E-3},{"$f":"'Population 2016'!X142/'Population 2016'!X$5","v":7.752698082743383E-3},{"$f":"'Population 2016'!Y142/'Population 2016'!Y$5","v":6.390995373682453E-3},{"$f":"'Population 2016'!Z142/'Population 2016'!Z$5","v":7.6502711084182017E-3},{"$f":"'Population 2016'!AA142/'Population 2016'!AA$5","v":6.6391745180070915E-3},{"$f":"'Population 2016'!AB142/'Population 2016'!AB$5","v":8.1225755606276172E-3},{"$f":"'Population 2016'!AC142/'Population 2016'!AC$5","v":6.2264568564460374E-3},{"$f":"'Population 2016'!AD142/'Population 2016'!AD$5","v":1.0212512560943838E-2},{"$f":"'Population 2016'!AE142/'Population 2016'!AE$5","v":9.8512305054466679E-3},{"$f":"'Population 2016'!AF142/'Population 2016'!AF$5","v":4.0567645417665778E-3},{"$f":"'Population 2016'!AG142/'Population 2016'!AG$5","v":9.8512305054466679E-3},{"$f":"'Population 2016'!AH142/'Population 2016'!AH$5","v":7.3804371046691996E-3},{"$f":"'Population 2016'!AI142/'Population 2016'!AI$5","v":9.2555122932890012E-3},{"$f":"'Population 2016'!AJ142/'Population 2016'!AJ$5","v":8.5742966288375206E-3},{"$f":"'Population 2016'!AK142/'Population 2016'!AK$5","v":1.0635756760494323E-2},{"$f":"'Population 2016'!AL142/'Population 2016'!AL$5","v":4.1237296252283574E-3},{"$f":"'Population 2016'!AM142/'Population 2016'!AM$5","v":7.7981535073580813E-3},{"$f":"'Population 2016'!AN142/'Population 2016'!AN$5","v":1.1072324642740263E-2},{"$f":"'Population 2016'!AO142/'Population 2016'!AO$5","v":1.1072324642740263E-2},{"$f":"'Population 2016'!AP142/'Population 2016'!AP$5","v":7.8705831999112286E-3},{"$f":"'Population 2016'!AQ142/'Population 2016'!AQ$5","v":6.6654792568641421E-3},{"$f":"'Population 2016'!AR142/'Population 2016'!AR$5","v":7.7515442381598755E-3},{"$f":"'Population 2016'!AS142/'Population 2016'!AS$5","v":9.9237919772213381E-3},{"$f":"'Population 2016'!AT142/'Population 2016'!AT$5","v":9.9119523382717352E-3},{"$f":"'Population 2016'!AU142/'Population 2016'!AU$5","v":9.9119523382717352E-3},{"$f":"'Population 2016'!AV142/'Population 2016'!AV$5","v":7.0108753035582304E-3},{"$f":"'Population 2016'!AW142/'Population 2016'!AW$5","v":6.9406309109768744E-3},{"$f":"'Population 2016'!AX142/'Population 2016'!AX$5","v":5.3158183932427768E-3},{"$f":"'Population 2016'!AY142/'Population 2016'!AY$5","v":7.6221657844007225E-3},{"$f":"'Population 2016'!AZ142/'Population 2016'!AZ$5","v":7.5072915647956921E-3},{"$f":"'Population 2016'!BA142/'Population 2016'!BA$5","v":5.1824659900669406E-3},{"$f":"'Population 2016'!BB142/'Population 2016'!BB$5","v":8.5000310724125307E-3},{"$f":"'Population 2016'!BC142/'Population 2016'!BC$5","v":2.0050458106493162E-2},140]
[null,"Female 35-39",{"$f":"'Population 2016'!C143/'Population 2016'!C$5","v":5.0395342775219395E-3},{"$f":"'Population 2016'!D143/'Population 2016'!D$5","v":6.0811009066635367E-3},{"$f":"'Population 2016'!E143/'Population 2016'!E$5","v":7.0364102588142642E-3},{"$f":"'Population 2016'!F143/'Population 2016'!F$5","v":1.106361061035282E-2},{"$f":"'Population 2016'!G143/'Population 2016'!G$5","v":1.1422075461484328E-2},{"$f":"'Population 2016'!H143/'Population 2016'!H$5","v":5.5509981745257174E-3},{"$f":"'Population 2016'!I143/'Population 2016'!I$5","v":9.4317896323590986E-3},{"$f":"'Population 2016'!J143/'Population 2016'!J$5","v":5.8051300763789261E-3},{"$f":"'Population 2016'!K143/'Population 2016'!K$5","v":5.5993951708169917E-3},{"$f":"'Population 2016'!L143/'Population 2016'!L$5","v":9.7930201896653055E-3},{"$f":"'Population 2016'!M143/'Population 2016'!M$5","v":9.7930201896653055E-3},{"$f":"'Population 2016'!N143/'Population 2016'!N$5","v":3.8659068806712695E-3},{"$f":"'Population 2016'!O143/'Population 2016'!O$5","v":5.3991935883337793E-3},{"$f":"'Population 2016'!P143/'Population 2016'!P$5","v":2.1976783500507156E-3},{"$f":"'Population 2016'!Q143/'Population 2016'!Q$5","v":7.2737100621614315E-3},{"$f":"'Population 2016'!R143/'Population 2016'!R$5","v":3.9255868419651885E-3},{"$f":"'Population 2016'!S143/'Population 2016'!S$5","v":7.6994232714472583E-3},{"$f":"'Population 2016'!T143/'Population 2016'!T$5","v":6.8589084377602919E-3},{"$f":"'Population 2016'!U143/'Population 2016'!U$5","v":2.4211038817332803E-2},{"$f":"'Population 2016'!V143/'Population 2016'!V$5","v":7.1286282351684079E-3},{"$f":"'Population 2016'!W143/'Population 2016'!W$5","v":7.994561345021212E-3},{"$f":"'Population 2016'!X143/'Population 2016'!X$5","v":7.994561345021212E-3},{"$f":"'Population 2016'!Y143/'Population 2016'!Y$5","v":6.4943323635554282E-3},{"$f":"'Population 2016'!Z143/'Population 2016'!Z$5","v":5.7996488463615721E-3},{"$f":"'Population 2016'!AA143/'Population 2016'!AA$5","v":6.1196273877077278E-3},{"$f":"'Population 2016'!AB143/'Population 2016'!AB$5","v":6.5422760815942189E-3},{"$f":"'Population 2016'!AC143/'Population 2016'!AC$5","v":5.3411002004464022E-3},{"$f":"'Population 2016'!AD143/'Population 2016'!AD$5","v":1.0789385537236219E-2},{"$f":"'Population 2016'!AE143/'Population 2016'!AE$5","v":1.054938962412345E-2},{"$f":"'Population 2016'!AF143/'Population 2016'!AF$5","v":5.625179085795292E-3},{"$f":"'Population 2016'!AG143/'Population 2016'!AG$5","v":1.054938962412345E-2},{"$f":"'Population 2016'!AH143/'Population 2016'!AH$5","v":7.5179030864828212E-3},{"$f":"'Population 2016'!AI143/'Population 2016'!AI$5","v":7.3497243853355501E-3},{"$f":"'Population 2016'!AJ143/'Population 2016'!AJ$5","v":8.630064411789309E-3},{"$f":"'Population 2016'!AK143/'Population 2016'!AK$5","v":8.913417899752335E-3},{"$f":"'Population 2016'!AL143/'Population 2016'!AL$5","v":4.4252496408364516E-3},{"$f":"'Population 2016'!AM143/'Population 2016'!AM$5","v":8.0335831301998253E-3},{"$f":"'Population 2016'!AN143/'Population 2016'!AN$5","v":7.745172902803534E-3},{"$f":"'Population 2016'!AO143/'Population 2016'!AO$5","v":7.745172902803534E-3},{"$f":"'Population 2016'!AP143/'Population 2016'!AP$5","v":7.2523500784680501E-3},{"$f":"'Population 2016'!AQ143/'Population 2016'!AQ$5","v":6.3709102866224589E-3},{"$f":"'Population 2016'!AR143/'Population 2016'!AR$5","v":7.1193016013471801E-3},{"$f":"'Population 2016'!AS143/'Population 2016'!AS$5","v":9.4317896323590986E-3},{"$f":"'Population 2016'!AT143/'Population 2016'!AT$5","v":1.001739863974271E-2},{"$f":"'Population 2016'!AU143/'Population 2016'!AU$5","v":1.001739863974271E-2},{"$f":"'Population 2016'!AV143/'Population 2016'!AV$5","v":7.0531094921338824E-3},{"$f":"'Population 2016'!AW143/'Population 2016'!AW$5","v":6.9749527121850024E-3},{"$f":"'Population 2016'!AX143/'Population 2016'!AX$5","v":5.9164036444024175E-3},{"$f":"'Population 2016'!AY143/'Population 2016'!AY$5","v":7.5211896820782716E-3},{"$f":"'Population 2016'!AZ143/'Population 2016'!AZ$5","v":7.1046015958028197E-3},{"$f":"'Population 2016'!BA143/'Population 2016'!BA$5","v":5.0610019434247462E-3},{"$f":"'Population 2016'!BB143/'Population 2016'!BB$5","v":8.2169268693508633E-3},{"$f":"'Population 2016'!BC143/'Population 2016'!BC$5","v":2.4211038817332803E-2},141]
[null,"Female 40-44",{"$f":"'Population 2016'!C144/'Population 2016'!C$5","v":4.4415368024001674E-3},{"$f":"'Population 2016'!D144/'Population 2016'!D$5","v":6.0884363721721776E-3},{"$f":"'Population 2016'!E144/'Population 2016'!E$5","v":7.5989480543224002E-3},{"$f":"'Population 2016'!F144/'Population 2016'!F$5","v":1.2856039144990986E-2},{"$f":"'Population 2016'!G144/'Population 2016'!G$5","v":1.4182861473501868E-2},{"$f":"'Population 2016'!H144/'Population 2016'!H$5","v":6.4556293022667655E-3},{"$f":"'Population 2016'!I144/'Population 2016'!I$5","v":1.2572230131479775E-2},{"$f":"'Population 2016'!J144/'Population 2016'!J$5","v":6.4105222129155854E-3},{"$f":"'Population 2016'!K144/'Population 2016'!K$5","v":6.9224590086471669E-3},{"$f":"'Population 2016'!L144/'Population 2016'!L$5","v":1.2453735326354583E-2},{"$f":"'Population 2016'!M144/'Population 2016'!M$5","v":1.2453735326354583E-2},{"$f":"'Population 2016'!N144/'Population 2016'!N$5","v":3.3917104025847728E-3},{"$f":"'Population 2016'!O144/'Population 2016'!O$5","v":6.5186594149057369E-3},{"$f":"'Population 2016'!P144/'Population 2016'!P$5","v":2.4005409669784739E-3},{"$f":"'Population 2016'!Q144/'Population 2016'!Q$5","v":8.0257576291700456E-3},{"$f":"'Population 2016'!R144/'Population 2016'!R$5","v":4.1385000266141482E-3},{"$f":"'Population 2016'!S144/'Population 2016'!S$5","v":7.6146881305486072E-3},{"$f":"'Population 2016'!T144/'Population 2016'!T$5","v":5.4606031558424037E-3},{"$f":"'Population 2016'!U144/'Population 2016'!U$5","v":2.5406099234276103E-2},{"$f":"'Population 2016'!V144/'Population 2016'!V$5","v":7.632364277482236E-3},{"$f":"'Population 2016'!W144/'Population 2016'!W$5","v":7.9553402754626457E-3},{"$f":"'Population 2016'!X144/'Population 2016'!X$5","v":7.9553402754626457E-3},{"$f":"'Population 2016'!Y144/'Population 2016'!Y$5","v":7.0467878094147944E-3},{"$f":"'Population 2016'!Z144/'Population 2016'!Z$5","v":4.8549797418807822E-3},{"$f":"'Population 2016'!AA144/'Population 2016'!AA$5","v":6.0286069825274038E-3},{"$f":"'Population 2016'!AB144/'Population 2016'!AB$5","v":6.8349999488244986E-3},{"$f":"'Population 2016'!AC144/'Population 2016'!AC$5","v":5.0452917850072714E-3},{"$f":"'Population 2016'!AD144/'Population 2016'!AD$5","v":1.2095723696453162E-2},{"$f":"'Population 2016'!AE144/'Population 2016'!AE$5","v":1.1304017495046151E-2},{"$f":"'Population 2016'!AF144/'Population 2016'!AF$5","v":6.2585772670376572E-3},{"$f":"'Population 2016'!AG144/'Population 2016'!AG$5","v":1.1304017495046151E-2},{"$f":"'Population 2016'!AH144/'Population 2016'!AH$5","v":7.7946926985129521E-3},{"$f":"'Population 2016'!AI144/'Population 2016'!AI$5","v":6.8247440720972967E-3},{"$f":"'Population 2016'!AJ144/'Population 2016'!AJ$5","v":9.1877422413071969E-3},{"$f":"'Population 2016'!AK144/'Population 2016'!AK$5","v":1.0673472209999623E-2},{"$f":"'Population 2016'!AL144/'Population 2016'!AL$5","v":5.1967861513630481E-3},{"$f":"'Population 2016'!AM144/'Population 2016'!AM$5","v":8.3016107008196567E-3},{"$f":"'Population 2016'!AN144/'Population 2016'!AN$5","v":1.0526889931275226E-2},{"$f":"'Population 2016'!AO144/'Population 2016'!AO$5","v":1.0526889931275226E-2},{"$f":"'Population 2016'!AP144/'Population 2016'!AP$5","v":8.1955518919518723E-3},{"$f":"'Population 2016'!AQ144/'Population 2016'!AQ$5","v":7.0354030799583489E-3},{"$f":"'Population 2016'!AR144/'Population 2016'!AR$5","v":7.4164868295036766E-3},{"$f":"'Population 2016'!AS144/'Population 2016'!AS$5","v":1.2572230131479775E-2},{"$f":"'Population 2016'!AT144/'Population 2016'!AT$5","v":1.0439183845626615E-2},{"$f":"'Population 2016'!AU144/'Population 2016'!AU$5","v":1.0439183845626615E-2},{"$f":"'Population 2016'!AV144/'Population 2016'!AV$5","v":7.8872347165030096E-3},{"$f":"'Population 2016'!AW144/'Population 2016'!AW$5","v":7.2609677222527308E-3},{"$f":"'Population 2016'!AX144/'Population 2016'!AX$5","v":6.1336366075878199E-3},{"$f":"'Population 2016'!AY144/'Population 2016'!AY$5","v":7.8608365717083312E-3},{"$f":"'Population 2016'!AZ144/'Population 2016'!AZ$5","v":7.7776691154051924E-3},{"$f":"'Population 2016'!BA144/'Population 2016'!BA$5","v":5.4523860937162596E-3},{"$f":"'Population 2016'!BB144/'Population 2016'!BB$5","v":8.9971896729110715E-3},{"$f":"'Population 2016'!BC144/'Population 2016'!BC$5","v":2.5406099234276103E-2},142]
[null,"Female 45-49",{"$f":"'Population 2016'!C145/'Population 2016'!C$5","v":4.5744251302050057E-3},{"$f":"'Population 2016'!D145/'Population 2016'!D$5","v":7.2816720949111426E-3},{"$f":"'Population 2016'!E145/'Population 2016'!E$5","v":9.7647185670287229E-3},{"$f":"'Population 2016'!F145/'Population 2016'!F$5","v":1.4576358485706927E-2},{"$f":"'Population 2016'!G145/'Population 2016'!G$5","v":1.7512044605640664E-2},{"$f":"'Population 2016'!H145/'Population 2016'!H$5","v":8.2486795303699911E-3},{"$f":"'Population 2016'!I145/'Population 2016'!I$5","v":1.622560924545683E-2},{"$f":"'Population 2016'!J145/'Population 2016'!J$5","v":7.7954603882802714E-3},{"$f":"'Population 2016'!K145/'Population 2016'!K$5","v":9.2850730047724806E-3},{"$f":"'Population 2016'!L145/'Population 2016'!L$5","v":1.717154067320064E-2},{"$f":"'Population 2016'!M145/'Population 2016'!M$5","v":1.717154067320064E-2},{"$f":"'Population 2016'!N145/'Population 2016'!N$5","v":4.3079544449891897E-3},{"$f":"'Population 2016'!O145/'Population 2016'!O$5","v":8.5990826324288446E-3},{"$f":"'Population 2016'!P145/'Population 2016'!P$5","v":3.4937450693113942E-3},{"$f":"'Population 2016'!Q145/'Population 2016'!Q$5","v":1.1069200126908027E-2},{"$f":"'Population 2016'!R145/'Population 2016'!R$5","v":4.7506254324799066E-3},{"$f":"'Population 2016'!S145/'Population 2016'!S$5","v":8.9227868681715384E-3},{"$f":"'Population 2016'!T145/'Population 2016'!T$5","v":4.8719654914077511E-3},{"$f":"'Population 2016'!U145/'Population 2016'!U$5","v":3.1381401318992606E-2},{"$f":"'Population 2016'!V145/'Population 2016'!V$5","v":8.6169392692774446E-3},{"$f":"'Population 2016'!W145/'Population 2016'!W$5","v":9.8967832186117044E-3},{"$f":"'Population 2016'!X145/'Population 2016'!X$5","v":9.8967832186117044E-3},{"$f":"'Population 2016'!Y145/'Population 2016'!Y$5","v":8.2232396941225097E-3},{"$f":"'Population 2016'!Z145/'Population 2016'!Z$5","v":5.2924699419067221E-3},{"$f":"'Population 2016'!AA145/'Population 2016'!AA$5","v":7.2258242827824603E-3},{"$f":"'Population 2016'!AB145/'Population 2016'!AB$5","v":8.1430457611332309E-3},{"$f":"'Population 2016'!AC145/'Population 2016'!AC$5","v":6.0475237939601302E-3},{"$f":"'Population 2016'!AD145/'Population 2016'!AD$5","v":1.5560683315344822E-2},{"$f":"'Population 2016'!AE145/'Population 2016'!AE$5","v":1.4820480703087301E-2},{"$f":"'Population 2016'!AF145/'Population 2016'!AF$5","v":7.374564538750396E-3},{"$f":"'Population 2016'!AG145/'Population 2016'!AG$5","v":1.4820480703087301E-2},{"$f":"'Population 2016'!AH145/'Population 2016'!AH$5","v":9.3421138181176457E-3},{"$f":"'Population 2016'!AI145/'Population 2016'!AI$5","v":7.5616305013561994E-3},{"$f":"'Population 2016'!AJ145/'Population 2016'!AJ$5","v":1.2115550846276106E-2},{"$f":"'Population 2016'!AK145/'Population 2016'!AK$5","v":1.257181650176634E-2},{"$f":"'Population 2016'!AL145/'Population 2016'!AL$5","v":6.5979674003653717E-3},{"$f":"'Population 2016'!AM145/'Population 2016'!AM$5","v":9.0622294823083701E-3},{"$f":"'Population 2016'!AN145/'Population 2016'!AN$5","v":1.4181302498090978E-2},{"$f":"'Population 2016'!AO145/'Population 2016'!AO$5","v":1.4181302498090978E-2},{"$f":"'Population 2016'!AP145/'Population 2016'!AP$5","v":1.0850783887893727E-2},{"$f":"'Population 2016'!AQ145/'Population 2016'!AQ$5","v":9.4330574889022849E-3},{"$f":"'Population 2016'!AR145/'Population 2016'!AR$5","v":9.0198167298352356E-3},{"$f":"'Population 2016'!AS145/'Population 2016'!AS$5","v":1.622560924545683E-2},{"$f":"'Population 2016'!AT145/'Population 2016'!AT$5","v":1.4762482205936628E-2},{"$f":"'Population 2016'!AU145/'Population 2016'!AU$5","v":1.4762482205936628E-2},{"$f":"'Population 2016'!AV145/'Population 2016'!AV$5","v":9.8405659381269137E-3},{"$f":"'Population 2016'!AW145/'Population 2016'!AW$5","v":9.6367990725486612E-3},{"$f":"'Population 2016'!AX145/'Population 2016'!AX$5","v":6.9897900507302864E-3},{"$f":"'Population 2016'!AY145/'Population 2016'!AY$5","v":9.7120651142865878E-3},{"$f":"'Population 2016'!AZ145/'Population 2016'!AZ$5","v":9.5495049789738311E-3},{"$f":"'Population 2016'!BA145/'Population 2016'!BA$5","v":7.827683005830274E-3},{"$f":"'Population 2016'!BB145/'Population 2016'!BB$5","v":1.1227498394592019E-2},{"$f":"'Population 2016'!BC145/'Population 2016'!BC$5","v":3.1381401318992606E-2},143]
[null,"Female 50-54",{"$f":"'Population 2016'!C146/'Population 2016'!C$5","v":5.0906451728314926E-3},{"$f":"'Population 2016'!D146/'Population 2016'!D$5","v":7.5164069911876604E-3},{"$f":"'Population 2016'!E146/'Population 2016'!E$5","v":9.7412794922158829E-3},{"$f":"'Population 2016'!F146/'Population 2016'!F$5","v":1.6358485706927633E-2},{"$f":"'Population 2016'!G146/'Population 2016'!G$5","v":2.1815622800844477E-2},{"$f":"'Population 2016'!H146/'Population 2016'!H$5","v":9.1597954690625875E-3},{"$f":"'Population 2016'!I146/'Population 2016'!I$5","v":1.6675739050330794E-2},{"$f":"'Population 2016'!J146/'Population 2016'!J$5","v":8.2681638373568421E-3},{"$f":"'Population 2016'!K146/'Population 2016'!K$5","v":9.5685866843075174E-3},{"$f":"'Population 2016'!L146/'Population 2016'!L$5","v":1.8585293790605691E-2},{"$f":"'Population 2016'!M146/'Population 2016'!M$5","v":1.8585293790605691E-2},{"$f":"'Population 2016'!N146/'Population 2016'!N$5","v":5.3045707718150474E-3},{"$f":"'Population 2016'!O146/'Population 2016'!O$5","v":9.1736757115542748E-3},{"$f":"'Population 2016'!P146/'Population 2016'!P$5","v":2.9978586723768737E-3},{"$f":"'Population 2016'!Q146/'Population 2016'!Q$5","v":9.9763810060986349E-3},{"$f":"'Population 2016'!R146/'Population 2016'!R$5","v":5.3760579123862248E-3},{"$f":"'Population 2016'!S146/'Population 2016'!S$5","v":9.0675427338734026E-3},{"$f":"'Population 2016'!T146/'Population 2016'!T$5","v":4.8161263453744248E-3},{"$f":"'Population 2016'!U146/'Population 2016'!U$5","v":3.1824016288230866E-2},{"$f":"'Population 2016'!V146/'Population 2016'!V$5","v":9.1283076758687538E-3},{"$f":"'Population 2016'!W146/'Population 2016'!W$5","v":1.0691009877172683E-2},{"$f":"'Population 2016'!X146/'Population 2016'!X$5","v":1.0691009877172683E-2},{"$f":"'Population 2016'!Y146/'Population 2016'!Y$5","v":8.7160776458243914E-3},{"$f":"'Population 2016'!Z146/'Population 2016'!Z$5","v":5.5383162047531569E-3},{"$f":"'Population 2016'!AA146/'Population 2016'!AA$5","v":7.2876118571019504E-3},{"$f":"'Population 2016'!AB146/'Population 2016'!AB$5","v":8.5319795707398949E-3},{"$f":"'Population 2016'!AC146/'Population 2016'!AC$5","v":6.1819821646142805E-3},{"$f":"'Population 2016'!AD146/'Population 2016'!AD$5","v":1.7637426029997395E-2},{"$f":"'Population 2016'!AE146/'Population 2016'!AE$5","v":1.6052526206634565E-2},{"$f":"'Population 2016'!AF146/'Population 2016'!AF$5","v":8.2341763561507488E-3},{"$f":"'Population 2016'!AG146/'Population 2016'!AG$5","v":1.6052526206634565E-2},{"$f":"'Population 2016'!AH146/'Population 2016'!AH$5","v":9.273380827210834E-3},{"$f":"'Population 2016'!AI146/'Population 2016'!AI$5","v":7.3948398810044624E-3},{"$f":"'Population 2016'!AJ146/'Population 2016'!AJ$5","v":1.219920252070379E-2},{"$f":"'Population 2016'!AK146/'Population 2016'!AK$5","v":1.3753567252932376E-2},{"$f":"'Population 2016'!AL146/'Population 2016'!AL$5","v":7.0768521310370517E-3},{"$f":"'Population 2016'!AM146/'Population 2016'!AM$5","v":8.7942019116885369E-3},{"$f":"'Population 2016'!AN146/'Population 2016'!AN$5","v":1.5490345805607068E-2},{"$f":"'Population 2016'!AO146/'Population 2016'!AO$5","v":1.5490345805607068E-2},{"$f":"'Population 2016'!AP146/'Population 2016'!AP$5","v":1.1865320292313301E-2},{"$f":"'Population 2016'!AQ146/'Population 2016'!AQ$5","v":9.1042363128185453E-3},{"$f":"'Population 2016'!AR146/'Population 2016'!AR$5","v":9.4762878936228371E-3},{"$f":"'Population 2016'!AS146/'Population 2016'!AS$5","v":1.6675739050330794E-2},{"$f":"'Population 2016'!AT146/'Population 2016'!AT$5","v":1.4867928507407603E-2},{"$f":"'Population 2016'!AU146/'Population 2016'!AU$5","v":1.4867928507407603E-2},{"$f":"'Population 2016'!AV146/'Population 2016'!AV$5","v":1.162496040544821E-2},{"$f":"'Population 2016'!AW146/'Population 2016'!AW$5","v":9.7778998108487402E-3},{"$f":"'Population 2016'!AX146/'Population 2016'!AX$5","v":7.5648184826916445E-3},{"$f":"'Population 2016'!AY146/'Population 2016'!AY$5","v":1.0734065665065328E-2},{"$f":"'Population 2016'!AZ146/'Population 2016'!AZ$5","v":1.0771956670559336E-2},{"$f":"'Population 2016'!BA146/'Population 2016'!BA$5","v":7.7062189591880804E-3},{"$f":"'Population 2016'!BB146/'Population 2016'!BB$5","v":1.1151543608404743E-2},{"$f":"'Population 2016'!BC146/'Population 2016'!BC$5","v":3.1824016288230866E-2},144]
[null,"Female 55-59",{"$f":"'Population 2016'!C147/'Population 2016'!C$5","v":4.6306471150455147E-3},{"$f":"'Population 2016'!D147/'Population 2016'!D$5","v":6.7681895093062603E-3},{"$f":"'Population 2016'!E147/'Population 2016'!E$5","v":8.7287114603012382E-3},{"$f":"'Population 2016'!F147/'Population 2016'!F$5","v":1.5884625289724438E-2},{"$f":"'Population 2016'!G147/'Population 2016'!G$5","v":2.0123964705245495E-2},{"$f":"'Population 2016'!H147/'Population 2016'!H$5","v":8.1060136894359185E-3},{"$f":"'Population 2016'!I147/'Population 2016'!I$5","v":1.6434971945398207E-2},{"$f":"'Population 2016'!J147/'Population 2016'!J$5","v":7.4471525836975359E-3},{"$f":"'Population 2016'!K147/'Population 2016'!K$5","v":9.1196900250437082E-3},{"$f":"'Population 2016'!L147/'Population 2016'!L$5","v":1.7258907438882976E-2},{"$f":"'Population 2016'!M147/'Population 2016'!M$5","v":1.7258907438882976E-2},{"$f":"'Population 2016'!N147/'Population 2016'!N$5","v":5.1277517460878788E-3},{"$f":"'Population 2016'!O147/'Population 2016'!O$5","v":8.0046759988508139E-3},{"$f":"'Population 2016'!P147/'Population 2016'!P$5","v":3.1443705623802548E-3},{"$f":"'Population 2016'!Q147/'Population 2016'!Q$5","v":9.8236213440500118E-3},{"$f":"'Population 2016'!R147/'Population 2016'!R$5","v":5.2562942460211851E-3},{"$f":"'Population 2016'!S147/'Population 2016'!S$5","v":8.2554976335946582E-3},{"$f":"'Population 2016'!T147/'Population 2016'!T$5","v":4.2367952052786602E-3},{"$f":"'Population 2016'!U147/'Population 2016'!U$5","v":3.0230602398973135E-2},{"$f":"'Population 2016'!V147/'Population 2016'!V$5","v":8.1666297769059926E-3},{"$f":"'Population 2016'!W147/'Population 2016'!W$5","v":9.7627778976199352E-3},{"$f":"'Population 2016'!X147/'Population 2016'!X$5","v":9.7627778976199352E-3},{"$f":"'Population 2016'!Y147/'Population 2016'!Y$5","v":7.8218152334621066E-3},{"$f":"'Population 2016'!Z147/'Population 2016'!Z$5","v":4.9459622171074153E-3},{"$f":"'Population 2016'!AA147/'Population 2016'!AA$5","v":6.7680647268025858E-3},{"$f":"'Population 2016'!AB147/'Population 2016'!AB$5","v":7.623102668290636E-3},{"$f":"'Population 2016'!AC147/'Population 2016'!AC$5","v":5.7072406866892416E-3},{"$f":"'Population 2016'!AD147/'Population 2016'!AD$5","v":1.6773977446127509E-2},{"$f":"'Population 2016'!AE147/'Population 2016'!AE$5","v":1.5503239252969743E-2},{"$f":"'Population 2016'!AF147/'Population 2016'!AF$5","v":8.611199083080728E-3},{"$f":"'Population 2016'!AG147/'Population 2016'!AG$5","v":1.5503239252969743E-2},{"$f":"'Population 2016'!AH147/'Population 2016'!AH$5","v":8.6733603930784029E-3},{"$f":"'Population 2016'!AI147/'Population 2016'!AI$5","v":6.5567853705486047E-3},{"$f":"'Population 2016'!AJ147/'Population 2016'!AJ$5","v":1.0651646543791651E-2},{"$f":"'Population 2016'!AK147/'Population 2016'!AK$5","v":1.2018656575688621E-2},{"$f":"'Population 2016'!AL147/'Population 2016'!AL$5","v":6.7753321154289566E-3},{"$f":"'Population 2016'!AM147/'Population 2016'!AM$5","v":7.7655555595799938E-3},{"$f":"'Population 2016'!AN147/'Population 2016'!AN$5","v":1.3308606959746918E-2},{"$f":"'Population 2016'!AO147/'Population 2016'!AO$5","v":1.3308606959746918E-2},{"$f":"'Population 2016'!AP147/'Population 2016'!AP$5","v":1.0874562084872311E-2},{"$f":"'Population 2016'!AQ147/'Population 2016'!AQ$5","v":8.0287170493779803E-3},{"$f":"'Population 2016'!AR147/'Population 2016'!AR$5","v":8.7224087241463896E-3},{"$f":"'Population 2016'!AS147/'Population 2016'!AS$5","v":1.6434971945398207E-2},{"$f":"'Population 2016'!AT147/'Population 2016'!AT$5","v":1.3813465492697843E-2},{"$f":"'Population 2016'!AU147/'Population 2016'!AU$5","v":1.3813465492697843E-2},{"$f":"'Population 2016'!AV147/'Population 2016'!AV$5","v":9.7983317495512617E-3},{"$f":"'Population 2016'!AW147/'Population 2016'!AW$5","v":9.6291720056135219E-3},{"$f":"'Population 2016'!AX147/'Population 2016'!AX$5","v":6.5425457147603406E-3},{"$f":"'Population 2016'!AY147/'Population 2016'!AY$5","v":1.0004283834643983E-2},{"$f":"'Population 2016'!AZ147/'Population 2016'!AZ$5","v":1.0216819784733449E-2},{"$f":"'Population 2016'!BA147/'Population 2016'!BA$5","v":7.368818829626431E-3},{"$f":"'Population 2016'!BB147/'Population 2016'!BB$5","v":9.4943482734096106E-3},{"$f":"'Population 2016'!BC147/'Population 2016'!BC$5","v":3.0230602398973135E-2},145]
[null,"Female 60-64",{"$f":"'Population 2016'!C148/'Population 2016'!C$5","v":4.2984262955334191E-3},{"$f":"'Population 2016'!D148/'Population 2016'!D$5","v":6.460099957943331E-3},{"$f":"'Population 2016'!E148/'Population 2016'!E$5","v":8.4427547475846038E-3},{"$f":"'Population 2016'!F148/'Population 2016'!F$5","v":1.4030388874581509E-2},{"$f":"'Population 2016'!G148/'Population 2016'!G$5","v":1.9934498998538407E-2},{"$f":"'Population 2016'!H148/'Population 2016'!H$5","v":7.4510477833294965E-3},{"$f":"'Population 2016'!I148/'Population 2016'!I$5","v":1.4812411020852526E-2},{"$f":"'Population 2016'!J148/'Population 2016'!J$5","v":6.9081047908909213E-3},{"$f":"'Population 2016'!K148/'Population 2016'!K$5","v":7.7021216273685201E-3},{"$f":"'Population 2016'!L148/'Population 2016'!L$5","v":1.6925325242641336E-2},{"$f":"'Population 2016'!M148/'Population 2016'!M$5","v":1.6925325242641336E-2},{"$f":"'Population 2016'!N148/'Population 2016'!N$5","v":4.2275821605677498E-3},{"$f":"'Population 2016'!O148/'Population 2016'!O$5","v":6.5979136327161412E-3},{"$f":"'Population 2016'!P148/'Population 2016'!P$5","v":2.7048348923701115E-3},{"$f":"'Population 2016'!Q148/'Population 2016'!Q$5","v":8.5662918179574866E-3},{"$f":"'Population 2016'!R148/'Population 2016'!R$5","v":4.5643263959120666E-3},{"$f":"'Population 2016'!S148/'Population 2016'!S$5","v":7.0745016073197036E-3},{"$f":"'Population 2016'!T148/'Population 2016'!T$5","v":3.4573737918968091E-3},{"$f":"'Population 2016'!U148/'Population 2016'!U$5","v":3.0673217368211395E-2},{"$f":"'Population 2016'!V148/'Population 2016'!V$5","v":7.403393349157769E-3},{"$f":"'Population 2016'!W148/'Population 2016'!W$5","v":8.4357983775550892E-3},{"$f":"'Population 2016'!X148/'Population 2016'!X$5","v":8.4357983775550892E-3},{"$f":"'Population 2016'!Y148/'Population 2016'!Y$5","v":7.1660227977297661E-3},{"$f":"'Population 2016'!Z148/'Population 2016'!Z$5","v":3.6431706037558342E-3},{"$f":"'Population 2016'!AA148/'Population 2016'!AA$5","v":5.5117173823062979E-3},{"$f":"'Population 2016'!AB148/'Population 2016'!AB$5","v":7.1768522972682517E-3},{"$f":"'Population 2016'!AC148/'Population 2016'!AC$5","v":4.5209041394560848E-3},{"$f":"'Population 2016'!AD148/'Population 2016'!AD$5","v":1.5772823700174923E-2},{"$f":"'Population 2016'!AE148/'Population 2016'!AE$5","v":1.4194190905450774E-2},{"$f":"'Population 2016'!AF148/'Population 2016'!AF$5","v":5.9871209036480716E-3},{"$f":"'Population 2016'!AG148/'Population 2016'!AG$5","v":1.4194190905450774E-2},{"$f":"'Population 2016'!AH148/'Population 2016'!AH$5","v":7.2912699813306335E-3},{"$f":"'Population 2016'!AI148/'Population 2016'!AI$5","v":5.4945205179805761E-3},{"$f":"'Population 2016'!AJ148/'Population 2016'!AJ$5","v":9.0483227839277258E-3},{"$f":"'Population 2016'!AK148/'Population 2016'!AK$5","v":1.0862049457526118E-2},{"$f":"'Population 2016'!AL148/'Population 2016'!AL$5","v":6.7575956439225983E-3},{"$f":"'Population 2016'!AM148/'Population 2016'!AM$5","v":6.5739194685810109E-3},{"$f":"'Population 2016'!AN148/'Population 2016'!AN$5","v":1.2054107123377332E-2},{"$f":"'Population 2016'!AO148/'Population 2016'!AO$5","v":1.2054107123377332E-2},{"$f":"'Population 2016'!AP148/'Population 2016'!AP$5","v":9.7886910895169862E-3},{"$f":"'Population 2016'!AQ148/'Population 2016'!AQ$5","v":6.9668986682742372E-3},{"$f":"'Population 2016'!AR148/'Population 2016'!AR$5","v":7.704760956366124E-3},{"$f":"'Population 2016'!AS148/'Population 2016'!AS$5","v":1.4812411020852526E-2},{"$f":"'Population 2016'!AT148/'Population 2016'!AT$5","v":1.3760742341962355E-2},{"$f":"'Population 2016'!AU148/'Population 2016'!AU$5","v":1.3760742341962355E-2},{"$f":"'Population 2016'!AV148/'Population 2016'!AV$5","v":9.1859360152043087E-3},{"$f":"'Population 2016'!AW148/'Population 2016'!AW$5","v":8.0465556165720906E-3},{"$f":"'Population 2016'!AX148/'Population 2016'!AX$5","v":6.4786536667646348E-3},{"$f":"'Population 2016'!AY148/'Population 2016'!AY$5","v":8.7267831461705584E-3},{"$f":"'Population 2016'!AZ148/'Population 2016'!AZ$5","v":8.9828626654624311E-3},{"$f":"'Population 2016'!BA148/'Population 2016'!BA$5","v":6.6400345497732672E-3},{"$f":"'Population 2016'!BB148/'Population 2016'!BB$5","v":7.9752525496640733E-3},{"$f":"'Population 2016'!BC148/'Population 2016'!BC$5","v":3.0673217368211395E-2},146]
[null,"Female 65-69",{"$f":"'Population 2016'!C149/'Population 2016'!C$5","v":4.0582050875785187E-3},{"$f":"'Population 2016'!D149/'Population 2016'!D$5","v":6.3671840615005431E-3},{"$f":"'Population 2016'!E149/'Population 2016'!E$5","v":8.4849450822477128E-3},{"$f":"'Population 2016'!F149/'Population 2016'!F$5","v":1.4864795261395829E-2},{"$f":"'Population 2016'!G149/'Population 2016'!G$5","v":2.105775997401613E-2},{"$f":"'Population 2016'!H149/'Population 2016'!H$5","v":8.028195958017334E-3},{"$f":"'Population 2016'!I149/'Population 2016'!I$5","v":1.5859224520559417E-2},{"$f":"'Population 2016'!J149/'Population 2016'!J$5","v":6.8251743612283656E-3},{"$f":"'Population 2016'!K149/'Population 2016'!K$5","v":8.4817842460898733E-3},{"$f":"'Population 2016'!L149/'Population 2016'!L$5","v":1.82437691611202E-2},{"$f":"'Population 2016'!M149/'Population 2016'!M$5","v":1.82437691611202E-2},{"$f":"'Population 2016'!N149/'Population 2016'!N$5","v":4.4044011862949184E-3},{"$f":"'Population 2016'!O149/'Population 2016'!O$5","v":7.6282184642513942E-3},{"$f":"'Population 2016'!P149/'Population 2016'!P$5","v":2.378000676208723E-3},{"$f":"'Population 2016'!Q149/'Population 2016'!Q$5","v":8.6837992503025815E-3},{"$f":"'Population 2016'!R149/'Population 2016'!R$5","v":4.3514132112631079E-3},{"$f":"'Population 2016'!S149/'Population 2016'!S$5","v":7.4107941977612267E-3},{"$f":"'Population 2016'!T149/'Population 2016'!T$5","v":3.3084694024746049E-3},{"$f":"'Population 2016'!U149/'Population 2016'!U$5","v":3.1292878325144956E-2},{"$f":"'Population 2016'!V149/'Population 2016'!V$5","v":7.7544821059219518E-3},{"$f":"'Population 2016'!W149/'Population 2016'!W$5","v":9.2267566136528551E-3},{"$f":"'Population 2016'!X149/'Population 2016'!X$5","v":9.2267566136528551E-3},{"$f":"'Population 2016'!Y149/'Population 2016'!Y$5","v":7.309104783707731E-3},{"$f":"'Population 2016'!Z149/'Population 2016'!Z$5","v":3.093404157705538E-3},{"$f":"'Population 2016'!AA149/'Population 2016'!AA$5","v":5.1576014993784704E-3},{"$f":"'Population 2016'!AB149/'Population 2016'!AB$5","v":7.156382096762638E-3},{"$f":"'Population 2016'!AC149/'Population 2016'!AC$5","v":4.1971697547272457E-3},{"$f":"'Population 2016'!AD149/'Population 2016'!AD$5","v":1.6159886858461425E-2},{"$f":"'Population 2016'!AE149/'Population 2016'!AE$5","v":1.4301994887011161E-2},{"$f":"'Population 2016'!AF149/'Population 2016'!AF$5","v":5.9569590854936733E-3},{"$f":"'Population 2016'!AG149/'Population 2016'!AG$5","v":1.4301994887011161E-2},{"$f":"'Population 2016'!AH149/'Population 2016'!AH$5","v":6.8825873326955403E-3},{"$f":"'Population 2016'!AI149/'Population 2016'!AI$5","v":5.5478388310438356E-3},{"$f":"'Population 2016'!AJ149/'Population 2016'!AJ$5","v":1.0038200931321975E-2},{"$f":"'Population 2016'!AK149/'Population 2016'!AK$5","v":1.1214060319575576E-2},{"$f":"'Population 2016'!AL149/'Population 2016'!AL$5","v":6.9526968304925415E-3},{"$f":"'Population 2016'!AM149/'Population 2016'!AM$5","v":6.4978575904321399E-3},{"$f":"'Population 2016'!AN149/'Population 2016'!AN$5","v":1.2381367950256354E-2},{"$f":"'Population 2016'!AO149/'Population 2016'!AO$5","v":1.2381367950256354E-2},{"$f":"'Population 2016'!AP149/'Population 2016'!AP$5","v":1.0248402897769605E-2},{"$f":"'Population 2016'!AQ149/'Population 2016'!AQ$5","v":7.1381596974845179E-3},{"$f":"'Population 2016'!AR149/'Population 2016'!AR$5","v":7.8108030617652932E-3},{"$f":"'Population 2016'!AS149/'Population 2016'!AS$5","v":1.5859224520559417E-2},{"$f":"'Population 2016'!AT149/'Population 2016'!AT$5","v":1.233721727210418E-2},{"$f":"'Population 2016'!AU149/'Population 2016'!AU$5","v":1.233721727210418E-2},{"$f":"'Population 2016'!AV149/'Population 2016'!AV$5","v":9.7349804666877846E-3},{"$f":"'Population 2016'!AW149/'Population 2016'!AW$5","v":7.2876624565257186E-3},{"$f":"'Population 2016'!AX149/'Population 2016'!AX$5","v":5.9291820540015592E-3},{"$f":"'Population 2016'!AY149/'Population 2016'!AY$5","v":9.3433493467152164E-3},{"$f":"'Population 2016'!AZ149/'Population 2016'!AZ$5","v":9.4459561298042352E-3},{"$f":"'Population 2016'!BA149/'Population 2016'!BA$5","v":6.5455625134960048E-3},{"$f":"'Population 2016'!BB149/'Population 2016'!BB$5","v":8.127162122038626E-3},{"$f":"'Population 2016'!BC149/'Population 2016'!BC$5","v":3.1292878325144956E-2},147]
[null,"Female 70-74",{"$f":"'Population 2016'!C150/'Population 2016'!C$5","v":3.0615426290422328E-3},{"$f":"'Population 2016'!D150/'Population 2016'!D$5","v":4.7362655634126541E-3},{"$f":"'Population 2016'!E150/'Population 2016'!E$5","v":6.2722964199157134E-3},{"$f":"'Population 2016'!F150/'Population 2016'!F$5","v":1.1176925057944887E-2},{"$f":"'Population 2016'!G150/'Population 2016'!G$5","v":1.5698587127158554E-2},{"$f":"'Population 2016'!H150/'Population 2016'!H$5","v":6.4750837351214121E-3},{"$f":"'Population 2016'!I150/'Population 2016'!I$5","v":1.1965078301649779E-2},{"$f":"'Population 2016'!J150/'Population 2016'!J$5","v":5.4485292288299347E-3},{"$f":"'Population 2016'!K150/'Population 2016'!K$5","v":6.5916930491896238E-3},{"$f":"'Population 2016'!L150/'Population 2016'!L$5","v":1.4844407732753006E-2},{"$f":"'Population 2016'!M150/'Population 2016'!M$5","v":1.4844407732753006E-2},{"$f":"'Population 2016'!N150/'Population 2016'!N$5","v":3.3354498034897646E-3},{"$f":"'Population 2016'!O150/'Population 2016'!O$5","v":6.023320553590711E-3},{"$f":"'Population 2016'!P150/'Population 2016'!P$5","v":1.8257635523498254E-3},{"$f":"'Population 2016'!Q150/'Population 2016'!Q$5","v":6.9211877651261444E-3},{"$f":"'Population 2016'!R150/'Population 2016'!R$5","v":3.4731463245861499E-3},{"$f":"'Population 2016'!S150/'Population 2016'!S$5","v":5.6675452053150119E-3},{"$f":"'Population 2016'!T150/'Population 2016'!T$5","v":2.4801887363135925E-3},{"$f":"'Population 2016'!U150/'Population 2016'!U$5","v":2.5450360731199929E-2},{"$f":"'Population 2016'!V150/'Population 2016'!V$5","v":5.5639935582845494E-3},{"$f":"'Population 2016'!W150/'Population 2016'!W$5","v":7.0238398734466826E-3},{"$f":"'Population 2016'!X150/'Population 2016'!X$5","v":7.0238398734466826E-3},{"$f":"'Population 2016'!Y150/'Population 2016'!Y$5","v":5.5086564601516666E-3},{"$f":"'Population 2016'!Z150/'Population 2016'!Z$5","v":2.4042603027974209E-3},{"$f":"'Population 2016'!AA150/'Population 2016'!AA$5","v":4.0925963205167299E-3},{"$f":"'Population 2016'!AB150/'Population 2016'!AB$5","v":5.510577976111276E-3},{"$f":"'Population 2016'!AC150/'Population 2016'!AC$5","v":3.2487210940360472E-3},{"$f":"'Population 2016'!AD150/'Population 2016'!AD$5","v":1.263165730023447E-2},{"$f":"'Population 2016'!AE150/'Population 2016'!AE$5","v":1.1468290228852452E-2},{"$f":"'Population 2016'!AF150/'Population 2016'!AF$5","v":4.9616190863985285E-3},{"$f":"'Population 2016'!AG150/'Population 2016'!AG$5","v":1.1468290228852452E-2},{"$f":"'Population 2016'!AH150/'Population 2016'!AH$5","v":5.6082405283152054E-3},{"$f":"'Population 2016'!AI150/'Population 2016'!AI$5","v":4.2777692711523322E-3},{"$f":"'Population 2016'!AJ150/'Population 2016'!AJ$5","v":7.5983604271812177E-3},{"$f":"'Population 2016'!AK150/'Population 2016'!AK$5","v":9.4917214588335873E-3},{"$f":"'Population 2016'!AL150/'Population 2016'!AL$5","v":5.7909579468260588E-3},{"$f":"'Population 2016'!AM150/'Population 2016'!AM$5","v":5.0925238417768052E-3},{"$f":"'Population 2016'!AN150/'Population 2016'!AN$5","v":1.2490454892549362E-2},{"$f":"'Population 2016'!AO150/'Population 2016'!AO$5","v":1.2490454892549362E-2},{"$f":"'Population 2016'!AP150/'Population 2016'!AP$5","v":8.8692674730117462E-3},{"$f":"'Population 2016'!AQ150/'Population 2016'!AQ$5","v":5.4461007288869401E-3},{"$f":"'Population 2016'!AR150/'Population 2016'!AR$5","v":6.1393032365342675E-3},{"$f":"'Population 2016'!AS150/'Population 2016'!AS$5","v":1.1965078301649779E-2},{"$f":"'Population 2016'!AT150/'Population 2016'!AT$5","v":1.1388200558865398E-2},{"$f":"'Population 2016'!AU150/'Population 2016'!AU$5","v":1.1388200558865398E-2},{"$f":"'Population 2016'!AV150/'Population 2016'!AV$5","v":7.7710906979199662E-3},{"$f":"'Population 2016'!AW150/'Population 2016'!AW$5","v":6.1512294831899449E-3},{"$f":"'Population 2016'!AX150/'Population 2016'!AX$5","v":4.8302388284754078E-3},{"$f":"'Population 2016'!AY150/'Population 2016'!AY$5","v":7.2947584223248983E-3},{"$f":"'Population 2016'!AZ150/'Population 2016'!AZ$5","v":7.5331787770880915E-3},{"$f":"'Population 2016'!BA150/'Population 2016'!BA$5","v":4.7505938242280287E-3},{"$f":"'Population 2016'!BB150/'Population 2016'!BB$5","v":6.4147269425436568E-3},{"$f":"'Population 2016'!BC150/'Population 2016'!BC$5","v":2.5450360731199929E-2},148]
[null,"Female 75-79",{"$f":"'Population 2016'!C151/'Population 2016'!C$5","v":2.8264325106182884E-3},{"$f":"'Population 2016'!D151/'Population 2016'!D$5","v":3.9073579609362006E-3},{"$f":"'Population 2016'!E151/'Population 2016'!E$5","v":4.8987666358833483E-3},{"$f":"'Population 2016'!F151/'Population 2016'!F$5","v":8.4264743754828737E-3},{"$f":"'Population 2016'!G151/'Population 2016'!G$5","v":1.2910734585611433E-2},{"$f":"'Population 2016'!H151/'Population 2016'!H$5","v":4.7955176986702892E-3},{"$f":"'Population 2016'!I151/'Population 2016'!I$5","v":9.6411523323004771E-3},{"$f":"'Population 2016'!J151/'Population 2016'!J$5","v":4.4533640728792612E-3},{"$f":"'Population 2016'!K151/'Population 2016'!K$5","v":5.1268723715919293E-3},{"$f":"'Population 2016'!L151/'Population 2016'!L$5","v":1.1294140072752689E-2},{"$f":"'Population 2016'!M151/'Population 2016'!M$5","v":1.1294140072752689E-2},{"$f":"'Population 2016'!N151/'Population 2016'!N$5","v":3.2148913768576043E-3},{"$f":"'Population 2016'!O151/'Population 2016'!O$5","v":4.289634538988122E-3},{"$f":"'Population 2016'!P151/'Population 2016'!P$5","v":1.3411473008001803E-3},{"$f":"'Population 2016'!Q151/'Population 2016'!Q$5","v":5.8871223604893006E-3},{"$f":"'Population 2016'!R151/'Population 2016'!R$5","v":3.41991802842391E-3},{"$f":"'Population 2016'!S151/'Population 2016'!S$5","v":4.5236208031832169E-3},{"$f":"'Population 2016'!T151/'Population 2016'!T$5","v":2.0753549275719743E-3},{"$f":"'Population 2016'!U151/'Population 2016'!U$5","v":2.2529101934227417E-2},{"$f":"'Population 2016'!V151/'Population 2016'!V$5","v":4.6099480235992701E-3},{"$f":"'Population 2016'!W151/'Population 2016'!W$5","v":5.5203655403682859E-3},{"$f":"'Population 2016'!X151/'Population 2016'!X$5","v":5.5203655403682859E-3},{"$f":"'Population 2016'!Y151/'Population 2016'!Y$5","v":4.5349040555794024E-3},{"$f":"'Population 2016'!Z151/'Population 2016'!Z$5","v":2.0093576443669264E-3},{"$f":"'Population 2016'!AA151/'Population 2016'!AA$5","v":3.4109398554436512E-3},{"$f":"'Population 2016'!AB151/'Population 2016'!AB$5","v":4.5177732515889997E-3},{"$f":"'Population 2016'!AC151/'Population 2016'!AC$5","v":2.7274363339614954E-3},{"$f":"'Population 2016'!AD151/'Population 2016'!AD$5","v":9.6356395846514571E-3},{"$f":"'Population 2016'!AE151/'Population 2016'!AE$5","v":8.3933099929157391E-3},{"$f":"'Population 2016'!AF151/'Population 2016'!AF$5","v":4.4639490868509553E-3},{"$f":"'Population 2016'!AG151/'Population 2016'!AG$5","v":8.3933099929157391E-3},{"$f":"'Population 2016'!AH151/'Population 2016'!AH$5","v":4.638548062008304E-3},{"$f":"'Population 2016'!AI151/'Population 2016'!AI$5","v":3.4383476244640825E-3},{"$f":"'Population 2016'!AJ151/'Population 2016'!AJ$5","v":5.9950366673172904E-3},{"$f":"'Population 2016'!AK151/'Population 2016'!AK$5","v":7.6562362495757015E-3},{"$f":"'Population 2016'!AL151/'Population 2016'!AL$5","v":4.5848778843936783E-3},{"$f":"'Population 2016'!AM151/'Population 2016'!AM$5","v":3.9371076927534766E-3},{"$f":"'Population 2016'!AN151/'Population 2016'!AN$5","v":1.0090542162103196E-2},{"$f":"'Population 2016'!AO151/'Population 2016'!AO$5","v":1.0090542162103196E-2},{"$f":"'Population 2016'!AP151/'Population 2016'!AP$5","v":6.745081876258263E-3},{"$f":"'Population 2016'!AQ151/'Population 2016'!AQ$5","v":4.3774319066147861E-3},{"$f":"'Population 2016'!AR151/'Population 2016'!AR$5","v":4.9073434826321519E-3},{"$f":"'Population 2016'!AS151/'Population 2016'!AS$5","v":9.6411523323004771E-3},{"$f":"'Population 2016'!AT151/'Population 2016'!AT$5","v":8.8574893235619755E-3},{"$f":"'Population 2016'!AU151/'Population 2016'!AU$5","v":8.8574893235619755E-3},{"$f":"'Population 2016'!AV151/'Population 2016'!AV$5","v":5.5854714391299761E-3},{"$f":"'Population 2016'!AW151/'Population 2016'!AW$5","v":5.3770821892732933E-3},{"$f":"'Population 2016'!AX151/'Population 2016'!AX$5","v":4.089091071725213E-3},{"$f":"'Population 2016'!AY151/'Population 2016'!AY$5","v":5.7495180686025519E-3},{"$f":"'Population 2016'!AZ151/'Population 2016'!AZ$5","v":5.9511824703303781E-3},{"$f":"'Population 2016'!BA151/'Population 2016'!BA$5","v":3.886849492550205E-3},{"$f":"'Population 2016'!BB151/'Population 2016'!BB$5","v":4.7782465492359639E-3},{"$f":"'Population 2016'!BC151/'Population 2016'!BC$5","v":2.2529101934227417E-2},149]
[null,"Female 80-84",{"$f":"'Population 2016'!C152/'Population 2016'!C$5","v":2.5606558550086123E-3},{"$f":"'Population 2016'!D152/'Population 2016'!D$5","v":2.8828379448959831E-3},{"$f":"'Population 2016'!E152/'Population 2016'!E$5","v":3.1783385446209666E-3},{"$f":"'Population 2016'!F152/'Population 2016'!F$5","v":6.4280195724954929E-3},{"$f":"'Population 2016'!G152/'Population 2016'!G$5","v":9.1484869809992965E-3},{"$f":"'Population 2016'!H152/'Population 2016'!H$5","v":3.5050403193120912E-3},{"$f":"'Population 2016'!I152/'Population 2016'!I$5","v":7.1183317980068675E-3},{"$f":"'Population 2016'!J152/'Population 2016'!J$5","v":3.2011145849746648E-3},{"$f":"'Population 2016'!K152/'Population 2016'!K$5","v":3.4966687142654633E-3},{"$f":"'Population 2016'!L152/'Population 2016'!L$5","v":8.347497339284863E-3},{"$f":"'Population 2016'!M152/'Population 2016'!M$5","v":8.347497339284863E-3},{"$f":"'Population 2016'!N152/'Population 2016'!N$5","v":3.1907796915311725E-3},{"$f":"'Population 2016'!O152/'Population 2016'!O$5","v":3.1503551579635629E-3},{"$f":"'Population 2016'!P152/'Population 2016'!P$5","v":8.7907134002028627E-4},{"$f":"'Population 2016'!Q152/'Population 2016'!Q$5","v":4.5827898614587371E-3},{"$f":"'Population 2016'!R152/'Population 2016'!R$5","v":3.3267685101399905E-3},{"$f":"'Population 2016'!S152/'Population 2016'!S$5","v":3.3311502265782359E-3},{"$f":"'Population 2016'!T152/'Population 2016'!T$5","v":1.6449281768984147E-3},{"$f":"'Population 2016'!U152/'Population 2016'!U$5","v":1.6863630327977691E-2},{"$f":"'Population 2016'!V152/'Population 2016'!V$5","v":3.1979606322650568E-3},{"$f":"'Population 2016'!W152/'Population 2016'!W$5","v":3.997280672510606E-3},{"$f":"'Population 2016'!X152/'Population 2016'!X$5","v":3.997280672510606E-3},{"$f":"'Population 2016'!Y152/'Population 2016'!Y$5","v":3.1994721864517257E-3},{"$f":"'Population 2016'!Z152/'Population 2016'!Z$5","v":1.8138421124969269E-3},{"$f":"'Population 2016'!AA152/'Population 2016'!AA$5","v":2.7352628330466521E-3},{"$f":"'Population 2016'!AB152/'Population 2016'!AB$5","v":3.4533228252970737E-3},{"$f":"'Population 2016'!AC152/'Population 2016'!AC$5","v":2.252694856036457E-3},{"$f":"'Population 2016'!AD152/'Population 2016'!AD$5","v":6.9931891771186127E-3},{"$f":"'Population 2016'!AE152/'Population 2016'!AE$5","v":6.1756280865306627E-3},{"$f":"'Population 2016'!AF152/'Population 2016'!AF$5","v":3.2574763606750216E-3},{"$f":"'Population 2016'!AG152/'Population 2016'!AG$5","v":6.1756280865306627E-3},{"$f":"'Population 2016'!AH152/'Population 2016'!AH$5","v":3.6019802531974772E-3},{"$f":"'Population 2016'!AI152/'Population 2016'!AI$5","v":2.5579118908040949E-3},{"$f":"'Population 2016'!AJ152/'Population 2016'!AJ$5","v":4.1407578841703152E-3},{"$f":"'Population 2016'!AK152/'Population 2016'!AK$5","v":6.3864827828973006E-3},{"$f":"'Population 2016'!AL152/'Population 2016'!AL$5","v":3.1836966353913552E-3},{"$f":"'Population 2016'!AM152/'Population 2016'!AM$5","v":3.0207431607694566E-3},{"$f":"'Population 2016'!AN152/'Population 2016'!AN$5","v":5.781607941529399E-3},{"$f":"'Population 2016'!AO152/'Population 2016'!AO$5","v":5.781607941529399E-3},{"$f":"'Population 2016'!AP152/'Population 2016'!AP$5","v":5.3183900575432368E-3},{"$f":"'Population 2016'!AQ152/'Population 2016'!AQ$5","v":3.1101002904587055E-3},{"$f":"'Population 2016'!AR152/'Population 2016'!AR$5","v":3.7197164576679249E-3},{"$f":"'Population 2016'!AS152/'Population 2016'!AS$5","v":7.1183317980068675E-3},{"$f":"'Population 2016'!AT152/'Population 2016'!AT$5","v":6.5376706912005063E-3},{"$f":"'Population 2016'!AU152/'Population 2016'!AU$5","v":6.5376706912005063E-3},{"$f":"'Population 2016'!AV152/'Population 2016'!AV$5","v":4.265653046140851E-3},{"$f":"'Population 2016'!AW152/'Population 2016'!AW$5","v":4.213954481664531E-3},{"$f":"'Population 2016'!AX152/'Population 2016'!AX$5","v":3.041261484595627E-3},{"$f":"'Population 2016'!AY152/'Population 2016'!AY$5","v":4.4597778525748907E-3},{"$f":"'Population 2016'!AZ152/'Population 2016'!AZ$5","v":4.8667959109710002E-3},{"$f":"'Population 2016'!BA152/'Population 2016'!BA$5","v":3.2795292593392356E-3},{"$f":"'Population 2016'!BB152/'Population 2016'!BB$5","v":3.293675728302825E-3},{"$f":"'Population 2016'!BC152/'Population 2016'!BC$5","v":1.6863630327977691E-2},150]
[null,"Female 85-89",{"$f":"'Population 2016'!C153/'Population 2016'!C$5","v":1.6917706347462089E-3},{"$f":"'Population 2016'!D153/'Population 2016'!D$5","v":2.005027239028589E-3},{"$f":"'Population 2016'!E153/'Population 2016'!E$5","v":2.2923415166956531E-3},{"$f":"'Population 2016'!F153/'Population 2016'!F$5","v":4.2029358743239766E-3},{"$f":"'Population 2016'!G153/'Population 2016'!G$5","v":5.5080387592702862E-3},{"$f":"'Population 2016'!H153/'Population 2016'!H$5","v":1.9778673402223641E-3},{"$f":"'Population 2016'!I153/'Population 2016'!I$5","v":4.1558495938363617E-3},{"$f":"'Population 2016'!J153/'Population 2016'!J$5","v":2.015209440800113E-3},{"$f":"'Population 2016'!K153/'Population 2016'!K$5","v":2.551623115815338E-3},{"$f":"'Population 2016'!L153/'Population 2016'!L$5","v":5.6947246358394358E-3},{"$f":"'Population 2016'!M153/'Population 2016'!M$5","v":5.6947246358394358E-3},{"$f":"'Population 2016'!N153/'Population 2016'!N$5","v":1.7842647141559705E-3},{"$f":"'Population 2016'!O153/'Population 2016'!O$5","v":1.4265759205872738E-3},{"$f":"'Population 2016'!P153/'Population 2016'!P$5","v":5.635072692437732E-4},{"$f":"'Population 2016'!Q153/'Population 2016'!Q$5","v":3.5487244568218942E-3},{"$f":"'Population 2016'!R153/'Population 2016'!R$5","v":2.0492894022462343E-3},{"$f":"'Population 2016'!S153/'Population 2016'!S$5","v":2.1236744687724526E-3},{"$f":"'Population 2016'!T153/'Population 2016'!T$5","v":1.1423758625984746E-3},{"$f":"'Population 2016'!U153/'Population 2016'!U$5","v":1.0844066746337361E-2},{"$f":"'Population 2016'!V153/'Population 2016'!V$5","v":1.6791201410460918E-3},{"$f":"'Population 2016'!W153/'Population 2016'!W$5","v":2.6637643075193328E-3},{"$f":"'Population 2016'!X153/'Population 2016'!X$5","v":2.6637643075193328E-3},{"$f":"'Population 2016'!Y153/'Population 2016'!Y$5","v":1.8401933196610547E-3},{"$f":"'Population 2016'!Z153/'Population 2016'!Z$5","v":1.0937255000648492E-3},{"$f":"'Population 2016'!AA153/'Population 2016'!AA$5","v":1.6423535883632074E-3},{"$f":"'Population 2016'!AB153/'Population 2016'!AB$5","v":2.227157815010798E-3},{"$f":"'Population 2016'!AC153/'Population 2016'!AC$5","v":1.382852627419992E-3},{"$f":"'Population 2016'!AD153/'Population 2016'!AD$5","v":4.5368268264542782E-3},{"$f":"'Population 2016'!AE153/'Population 2016'!AE$5","v":4.168420620334911E-3},{"$f":"'Population 2016'!AF153/'Population 2016'!AF$5","v":2.6391590885098556E-3},{"$f":"'Population 2016'!AG153/'Population 2016'!AG$5","v":4.168420620334911E-3},{"$f":"'Population 2016'!AH153/'Population 2016'!AH$5","v":2.1084309372765018E-3},{"$f":"'Population 2016'!AI153/'Population 2016'!AI$5","v":1.6323606614751947E-3},{"$f":"'Population 2016'!AJ153/'Population 2016'!AJ$5","v":2.1610015893818143E-3},{"$f":"'Population 2016'!AK153/'Population 2016'!AK$5","v":3.3692468224733791E-3},{"$f":"'Population 2016'!AL153/'Population 2016'!AL$5","v":2.0130895159716925E-3},{"$f":"'Population 2016'!AM153/'Population 2016'!AM$5","v":1.5972994411262954E-3},{"$f":"'Population 2016'!AN153/'Population 2016'!AN$5","v":4.2543907494272939E-3},{"$f":"'Population 2016'!AO153/'Population 2016'!AO$5","v":4.2543907494272939E-3},{"$f":"'Population 2016'!AP153/'Population 2016'!AP$5","v":3.6301380720637892E-3},{"$f":"'Population 2016'!AQ153/'Population 2016'!AQ$5","v":1.7742642626185127E-3},{"$f":"'Population 2016'!AR153/'Population 2016'!AR$5","v":2.3300302108611622E-3},{"$f":"'Population 2016'!AS153/'Population 2016'!AS$5","v":4.1558495938363617E-3},{"$f":"'Population 2016'!AT153/'Population 2016'!AT$5","v":3.8487900036906207E-3},{"$f":"'Population 2016'!AU153/'Population 2016'!AU$5","v":3.8487900036906207E-3},{"$f":"'Population 2016'!AV153/'Population 2016'!AV$5","v":2.5234927673952064E-3},{"$f":"'Population 2016'!AW153/'Population 2016'!AW$5","v":2.6465922264933797E-3},{"$f":"'Population 2016'!AX153/'Population 2016'!AX$5","v":1.7250852958840743E-3},{"$f":"'Population 2016'!AY153/'Population 2016'!AY$5","v":2.9114776169639851E-3},{"$f":"'Population 2016'!AZ153/'Population 2016'!AZ$5","v":3.1294763304588941E-3},{"$f":"'Population 2016'!BA153/'Population 2016'!BA$5","v":1.8084646944504428E-3},{"$f":"'Population 2016'!BB153/'Population 2016'!BB$5","v":1.6986252183700103E-3},{"$f":"'Population 2016'!BC153/'Population 2016'!BC$5","v":1.0844066746337361E-2},151]
[null,"Female 90+",{"$f":"'Population 2016'!C154/'Population 2016'!C$5","v":9.7110701088150959E-4},{"$f":"'Population 2016'!D154/'Population 2016'!D$5","v":1.1223262228221003E-3},{"$f":"'Population 2016'!E154/'Population 2016'!E$5","v":1.2610222249307375E-3},{"$f":"'Population 2016'!F154/'Population 2016'!F$5","v":2.8225598763842391E-3},{"$f":"'Population 2016'!G154/'Population 2016'!G$5","v":3.6675147512585937E-3},{"$f":"'Population 2016'!H154/'Population 2016'!H$5","v":1.1769931877060953E-3},{"$f":"'Population 2016'!I154/'Population 2016'!I$5","v":2.4286073193199899E-3},{"$f":"'Population 2016'!J154/'Population 2016'!J$5","v":1.1776121012082963E-3},{"$f":"'Population 2016'!K154/'Population 2016'!K$5","v":1.0631762982563908E-3},{"$f":"'Population 2016'!L154/'Population 2016'!L$5","v":3.2802249297094657E-3},{"$f":"'Population 2016'!M154/'Population 2016'!M$5","v":3.2802249297094657E-3},{"$f":"'Population 2016'!N154/'Population 2016'!N$5","v":1.0609141543630094E-3},{"$f":"'Population 2016'!O154/'Population 2016'!O$5","v":9.6095739095114973E-4},{"$f":"'Population 2016'!P154/'Population 2016'!P$5","v":5.2969683308914689E-4},{"$f":"'Population 2016'!Q154/'Population 2016'!Q$5","v":2.021127836335648E-3},{"$f":"'Population 2016'!R154/'Population 2016'!R$5","v":1.0911800713259169E-3},{"$f":"'Population 2016'!S154/'Population 2016'!S$5","v":1.2410167510781664E-3},{"$f":"'Population 2016'!T154/'Population 2016'!T$5","v":6.7472301456936385E-4},{"$f":"'Population 2016'!U154/'Population 2016'!U$5","v":7.6129774708980661E-3},{"$f":"'Population 2016'!V154/'Population 2016'!V$5","v":7.9376588485815256E-4},{"$f":"'Population 2016'!W154/'Population 2016'!W$5","v":1.4740585309094712E-3},{"$f":"'Population 2016'!X154/'Population 2016'!X$5","v":1.4740585309094712E-3},{"$f":"'Population 2016'!Y154/'Population 2016'!Y$5","v":9.7772690418276333E-4},{"$f":"'Population 2016'!Z154/'Population 2016'!Z$5","v":7.414103832298004E-4},{"$f":"'Population 2016'!AA154/'Population 2016'!AA$5","v":1.0384298780791639E-3},{"$f":"'Population 2016'!AB154/'Population 2016'!AB$5","v":1.2875756118031177E-3},{"$f":"'Population 2016'!AC154/'Population 2016'!AC$5","v":1.0146435508593958E-3},{"$f":"'Population 2016'!AD154/'Population 2016'!AD$5","v":2.4786929174885554E-3},{"$f":"'Population 2016'!AE154/'Population 2016'!AE$5","v":2.0277415579215393E-3},{"$f":"'Population 2016'!AF154/'Population 2016'!AF$5","v":2.3073790888114734E-3},{"$f":"'Population 2016'!AG154/'Population 2016'!AG$5","v":2.0277415579215393E-3},{"$f":"'Population 2016'!AH154/'Population 2016'!AH$5","v":1.0811513704801093E-3},{"$f":"'Population 2016'!AI154/'Population 2016'!AI$5","v":9.8843949601889938E-4},{"$f":"'Population 2016'!AJ154/'Population 2016'!AJ$5","v":1.5196720854362435E-3},{"$f":"'Population 2016'!AK154/'Population 2016'!AK$5","v":2.1372088053002777E-3},{"$f":"'Population 2016'!AL154/'Population 2016'!AL$5","v":1.32136712722371E-3},{"$f":"'Population 2016'!AM154/'Population 2016'!AM$5","v":7.2077684531549383E-4},{"$f":"'Population 2016'!AN154/'Population 2016'!AN$5","v":3.654412566815752E-3},{"$f":"'Population 2016'!AO154/'Population 2016'!AO$5","v":3.654412566815752E-3},{"$f":"'Population 2016'!AP154/'Population 2016'!AP$5","v":2.2827069099440418E-3},{"$f":"'Population 2016'!AQ154/'Population 2016'!AQ$5","v":1.6646572039239328E-3},{"$f":"'Population 2016'!AR154/'Population 2016'!AR$5","v":1.3985973481008105E-3},{"$f":"'Population 2016'!AS154/'Population 2016'!AS$5","v":2.4286073193199899E-3},{"$f":"'Population 2016'!AT154/'Population 2016'!AT$5","v":3.1106658933937894E-3},{"$f":"'Population 2016'!AU154/'Population 2016'!AU$5","v":3.1106658933937894E-3},{"$f":"'Population 2016'!AV154/'Population 2016'!AV$5","v":1.2353500158378207E-3},{"$f":"'Population 2016'!AW154/'Population 2016'!AW$5","v":1.4605833180791994E-3},{"$f":"'Population 2016'!AX154/'Population 2016'!AX$5","v":1.2395057311167053E-3},{"$f":"'Population 2016'!AY154/'Population 2016'!AY$5","v":1.7517823812000857E-3},{"$f":"'Population 2016'!AZ154/'Population 2016'!AZ$5","v":1.9961917034360959E-3},{"$f":"'Population 2016'!BA154/'Population 2016'!BA$5","v":9.8520837832001724E-4},{"$f":"'Population 2016'!BB154/'Population 2016'!BB$5","v":1.049557045496917E-3},{"$f":"'Population 2016'!BC154/'Population 2016'!BC$5","v":7.6129774708980661E-3},152]
[null,"Male 0-4",{"$f":"'Population 2016'!C155/'Population 2016'!C$5","v":0},{"$f":"'Population 2016'!D155/'Population 2016'!D$5","v":0},{"$f":"'Population 2016'!E155/'Population 2016'!E$5","v":0},{"$f":"'Population 2016'!F155/'Population 2016'!F$5","v":0},{"$f":"'Population 2016'!G155/'Population 2016'!G$5","v":0},{"$f":"'Population 2016'!H155/'Population 2016'!H$5","v":0},{"$f":"'Population 2016'!I155/'Population 2016'!I$5","v":0},{"$f":"'Population 2016'!J155/'Population 2016'!J$5","v":0},{"$f":"'Population 2016'!K155/'Population 2016'!K$5","v":0},{"$f":"'Population 2016'!L155/'Population 2016'!L$5","v":0},{"$f":"'Population 2016'!M155/'Population 2016'!M$5","v":0},{"$f":"'Population 2016'!N155/'Population 2016'!N$5","v":0},{"$f":"'Population 2016'!O155/'Population 2016'!O$5","v":0},{"$f":"'Population 2016'!P155/'Population 2016'!P$5","v":0},{"$f":"'Population 2016'!Q155/'Population 2016'!Q$5","v":0},{"$f":"'Population 2016'!R155/'Population 2016'!R$5","v":0},{"$f":"'Population 2016'!S155/'Population 2016'!S$5","v":0},{"$f":"'Population 2016'!T155/'Population 2016'!T$5","v":0},{"$f":"'Population 2016'!U155/'Population 2016'!U$5","v":0},{"$f":"'Population 2016'!V155/'Population 2016'!V$5","v":0},{"$f":"'Population 2016'!W155/'Population 2016'!W$5","v":0},{"$f":"'Population 2016'!X155/'Population 2016'!X$5","v":0},{"$f":"'Population 2016'!Y155/'Population 2016'!Y$5","v":0},{"$f":"'Population 2016'!Z155/'Population 2016'!Z$5","v":0},{"$f":"'Population 2016'!AA155/'Population 2016'!AA$5","v":0},{"$f":"'Population 2016'!AB155/'Population 2016'!AB$5","v":0},{"$f":"'Population 2016'!AC155/'Population 2016'!AC$5","v":0},{"$f":"'Population 2016'!AD155/'Population 2016'!AD$5","v":0},{"$f":"'Population 2016'!AE155/'Population 2016'!AE$5","v":0},{"$f":"'Population 2016'!AF155/'Population 2016'!AF$5","v":0},{"$f":"'Population 2016'!AG155/'Population 2016'!AG$5","v":0},{"$f":"'Population 2016'!AH155/'Population 2016'!AH$5","v":0},{"$f":"'Population 2016'!AI155/'Population 2016'!AI$5","v":0},{"$f":"'Population 2016'!AJ155/'Population 2016'!AJ$5","v":0},{"$f":"'Population 2016'!AK155/'Population 2016'!AK$5","v":0},{"$f":"'Population 2016'!AL155/'Population 2016'!AL$5","v":0},{"$f":"'Population 2016'!AM155/'Population 2016'!AM$5","v":0},{"$f":"'Population 2016'!AN155/'Population 2016'!AN$5","v":0},{"$f":"'Population 2016'!AO155/'Population 2016'!AO$5","v":0},{"$f":"'Population 2016'!AP155/'Population 2016'!AP$5","v":0},{"$f":"'Population 2016'!AQ155/'Population 2016'!AQ$5","v":0},{"$f":"'Population 2016'!AR155/'Population 2016'!AR$5","v":0},{"$f":"'Population 2016'!AS155/'Population 2016'!AS$5","v":0},{"$f":"'Population 2016'!AT155/'Population 2016'!AT$5","v":0},{"$f":"'Population 2016'!AU155/'Population 2016'!AU$5","v":0},{"$f":"'Population 2016'!AV155/'Population 2016'!AV$5","v":0},{"$f":"'Population 2016'!AW155/'Population 2016'!AW$5","v":0},{"$f":"'Population 2016'!AX155/'Population 2016'!AX$5","v":0},{"$f":"'Population 2016'!AY155/'Population 2016'!AY$5","v":0},{"$f":"'Population 2016'!AZ155/'Population 2016'!AZ$5","v":0},{"$f":"'Population 2016'!BA155/'Population 2016'!BA$5","v":0},{"$f":"'Population 2016'!BB155/'Population 2016'!BB$5","v":0},{"$f":"'Population 2016'!BC155/'Population 2016'!BC$5","v":0},153]
[null,"Male 5-9",{"$f":"'Population 2016'!C156/'Population 2016'!C$5","v":0},{"$f":"'Population 2016'!D156/'Population 2016'!D$5","v":0},{"$f":"'Population 2016'!E156/'Population 2016'!E$5","v":0},{"$f":"'Population 2016'!F156/'Population 2016'!F$5","v":0},{"$f":"'Population 2016'!G156/'Population 2016'!G$5","v":0},{"$f":"'Population 2016'!H156/'Population 2016'!H$5","v":0},{"$f":"'Population 2016'!I156/'Population 2016'!I$5","v":0},{"$f":"'Population 2016'!J156/'Population 2016'!J$5","v":0},{"$f":"'Population 2016'!K156/'Population 2016'!K$5","v":0},{"$f":"'Population 2016'!L156/'Population 2016'!L$5","v":0},{"$f":"'Population 2016'!M156/'Population 2016'!M$5","v":0},{"$f":"'Population 2016'!N156/'Population 2016'!N$5","v":0},{"$f":"'Population 2016'!O156/'Population 2016'!O$5","v":0},{"$f":"'Population 2016'!P156/'Population 2016'!P$5","v":0},{"$f":"'Population 2016'!Q156/'Population 2016'!Q$5","v":0},{"$f":"'Population 2016'!R156/'Population 2016'!R$5","v":0},{"$f":"'Population 2016'!S156/'Population 2016'!S$5","v":0},{"$f":"'Population 2016'!T156/'Population 2016'!T$5","v":0},{"$f":"'Population 2016'!U156/'Population 2016'!U$5","v":0},{"$f":"'Population 2016'!V156/'Population 2016'!V$5","v":0},{"$f":"'Population 2016'!W156/'Population 2016'!W$5","v":0},{"$f":"'Population 2016'!X156/'Population 2016'!X$5","v":0},{"$f":"'Population 2016'!Y156/'Population 2016'!Y$5","v":0},{"$f":"'Population 2016'!Z156/'Population 2016'!Z$5","v":0},{"$f":"'Population 2016'!AA156/'Population 2016'!AA$5","v":0},{"$f":"'Population 2016'!AB156/'Population 2016'!AB$5","v":0},{"$f":"'Population 2016'!AC156/'Population 2016'!AC$5","v":0},{"$f":"'Population 2016'!AD156/'Population 2016'!AD$5","v":0},{"$f":"'Population 2016'!AE156/'Population 2016'!AE$5","v":0},{"$f":"'Population 2016'!AF156/'Population 2016'!AF$5","v":0},{"$f":"'Population 2016'!AG156/'Population 2016'!AG$5","v":0},{"$f":"'Population 2016'!AH156/'Population 2016'!AH$5","v":0},{"$f":"'Population 2016'!AI156/'Population 2016'!AI$5","v":0},{"$f":"'Population 2016'!AJ156/'Population 2016'!AJ$5","v":0},{"$f":"'Population 2016'!AK156/'Population 2016'!AK$5","v":0},{"$f":"'Population 2016'!AL156/'Population 2016'!AL$5","v":0},{"$f":"'Population 2016'!AM156/'Population 2016'!AM$5","v":0},{"$f":"'Population 2016'!AN156/'Population 2016'!AN$5","v":0},{"$f":"'Population 2016'!AO156/'Population 2016'!AO$5","v":0},{"$f":"'Population 2016'!AP156/'Population 2016'!AP$5","v":0},{"$f":"'Population 2016'!AQ156/'Population 2016'!AQ$5","v":0},{"$f":"'Population 2016'!AR156/'Population 2016'!AR$5","v":0},{"$f":"'Population 2016'!AS156/'Population 2016'!AS$5","v":0},{"$f":"'Population 2016'!AT156/'Population 2016'!AT$5","v":0},{"$f":"'Population 2016'!AU156/'Population 2016'!AU$5","v":0},{"$f":"'Population 2016'!AV156/'Population 2016'!AV$5","v":0},{"$f":"'Population 2016'!AW156/'Population 2016'!AW$5","v":0},{"$f":"'Population 2016'!AX156/'Population 2016'!AX$5","v":0},{"$f":"'Population 2016'!AY156/'Population 2016'!AY$5","v":0},{"$f":"'Population 2016'!AZ156/'Population 2016'!AZ$5","v":0},{"$f":"'Population 2016'!BA156/'Population 2016'!BA$5","v":0},{"$f":"'Population 2016'!BB156/'Population 2016'!BB$5","v":0},{"$f":"'Population 2016'!BC156/'Population 2016'!BC$5","v":0},154]
[null,"Male 10-15",{"$f":"'Population 2016'!C157/'Population 2016'!C$5","v":0},{"$f":"'Population 2016'!D157/'Population 2016'!D$5","v":0},{"$f":"'Population 2016'!E157/'Population 2016'!E$5","v":0},{"$f":"'Population 2016'!F157/'Population 2016'!F$5","v":0},{"$f":"'Population 2016'!G157/'Population 2016'!G$5","v":0},{"$f":"'Population 2016'!H157/'Population 2016'!H$5","v":0},{"$f":"'Population 2016'!I157/'Population 2016'!I$5","v":0},{"$f":"'Population 2016'!J157/'Population 2016'!J$5","v":0},{"$f":"'Population 2016'!K157/'Population 2016'!K$5","v":0},{"$f":"'Population 2016'!L157/'Population 2016'!L$5","v":0},{"$f":"'Population 2016'!M157/'Population 2016'!M$5","v":0},{"$f":"'Population 2016'!N157/'Population 2016'!N$5","v":0},{"$f":"'Population 2016'!O157/'Population 2016'!O$5","v":0},{"$f":"'Population 2016'!P157/'Population 2016'!P$5","v":0},{"$f":"'Population 2016'!Q157/'Population 2016'!Q$5","v":0},{"$f":"'Population 2016'!R157/'Population 2016'!R$5","v":0},{"$f":"'Population 2016'!S157/'Population 2016'!S$5","v":0},{"$f":"'Population 2016'!T157/'Population 2016'!T$5","v":0},{"$f":"'Population 2016'!U157/'Population 2016'!U$5","v":0},{"$f":"'Population 2016'!V157/'Population 2016'!V$5","v":0},{"$f":"'Population 2016'!W157/'Population 2016'!W$5","v":0},{"$f":"'Population 2016'!X157/'Population 2016'!X$5","v":0},{"$f":"'Population 2016'!Y157/'Population 2016'!Y$5","v":0},{"$f":"'Population 2016'!Z157/'Population 2016'!Z$5","v":0},{"$f":"'Population 2016'!AA157/'Population 2016'!AA$5","v":0},{"$f":"'Population 2016'!AB157/'Population 2016'!AB$5","v":0},{"$f":"'Population 2016'!AC157/'Population 2016'!AC$5","v":0},{"$f":"'Population 2016'!AD157/'Population 2016'!AD$5","v":0},{"$f":"'Population 2016'!AE157/'Population 2016'!AE$5","v":0},{"$f":"'Population 2016'!AF157/'Population 2016'!AF$5","v":0},{"$f":"'Population 2016'!AG157/'Population 2016'!AG$5","v":0},{"$f":"'Population 2016'!AH157/'Population 2016'!AH$5","v":0},{"$f":"'Population 2016'!AI157/'Population 2016'!AI$5","v":0},{"$f":"'Population 2016'!AJ157/'Population 2016'!AJ$5","v":0},{"$f":"'Population 2016'!AK157/'Population 2016'!AK$5","v":0},{"$f":"'Population 2016'!AL157/'Population 2016'!AL$5","v":0},{"$f":"'Population 2016'!AM157/'Population 2016'!AM$5","v":0},{"$f":"'Population 2016'!AN157/'Population 2016'!AN$5","v":0},{"$f":"'Population 2016'!AO157/'Population 2016'!AO$5","v":0},{"$f":"'Population 2016'!AP157/'Population 2016'!AP$5","v":0},{"$f":"'Population 2016'!AQ157/'Population 2016'!AQ$5","v":0},{"$f":"'Population 2016'!AR157/'Population 2016'!AR$5","v":0},{"$f":"'Population 2016'!AS157/'Population 2016'!AS$5","v":0},{"$f":"'Population 2016'!AT157/'Population 2016'!AT$5","v":0},{"$f":"'Population 2016'!AU157/'Population 2016'!AU$5","v":0},{"$f":"'Population 2016'!AV157/'Population 2016'!AV$5","v":0},{"$f":"'Population 2016'!AW157/'Population 2016'!AW$5","v":0},{"$f":"'Population 2016'!AX157/'Population 2016'!AX$5","v":0},{"$f":"'Population 2016'!AY157/'Population 2016'!AY$5","v":0},{"$f":"'Population 2016'!AZ157/'Population 2016'!AZ$5","v":0},{"$f":"'Population 2016'!BA157/'Population 2016'!BA$5","v":0},{"$f":"'Population 2016'!BB157/'Population 2016'!BB$5","v":0},{"$f":"'Population 2016'!BC157/'Population 2016'!BC$5","v":0},155]
[null,"Male 16-19",{"$f":"'Population 2016'!C158/'Population 2016'!C$5","v":3.163764419661339E-3},{"$f":"'Population 2016'!D158/'Population 2016'!D$5","v":4.5259822188316069E-3},{"$f":"'Population 2016'!E158/'Population 2016'!E$5","v":5.7753880338835264E-3},{"$f":"'Population 2016'!F158/'Population 2016'!F$5","v":9.5287149111511725E-3},{"$f":"'Population 2016'!G158/'Population 2016'!G$5","v":1.1029610783305364E-2},{"$f":"'Population 2016'!H158/'Population 2016'!H$5","v":4.6820335070181865E-3},{"$f":"'Population 2016'!I158/'Population 2016'!I$5","v":8.3116991876727234E-3},{"$f":"'Population 2016'!J158/'Population 2016'!J$5","v":4.2460379987228711E-3},{"$f":"'Population 2016'!K158/'Population 2016'!K$5","v":5.1268723715919293E-3},{"$f":"'Population 2016'!L158/'Population 2016'!L$5","v":9.5944593585690907E-3},{"$f":"'Population 2016'!M158/'Population 2016'!M$5","v":9.5944593585690907E-3},{"$f":"'Population 2016'!N158/'Population 2016'!N$5","v":3.1264818639940204E-3},{"$f":"'Population 2016'!O158/'Population 2016'!O$5","v":4.606651410229738E-3},{"$f":"'Population 2016'!P158/'Population 2016'!P$5","v":1.8032232615800743E-3},{"$f":"'Population 2016'!Q158/'Population 2016'!Q$5","v":6.0633835090069445E-3},{"$f":"'Population 2016'!R158/'Population 2016'!R$5","v":3.2735402139777506E-3},{"$f":"'Population 2016'!S158/'Population 2016'!S$5","v":4.9172861452748684E-3},{"$f":"'Population 2016'!T158/'Population 2016'!T$5","v":3.0502133520704691E-3},{"$f":"'Population 2016'!U158/'Population 2016'!U$5","v":1.6863630327977691E-2},{"$f":"'Population 2016'!V158/'Population 2016'!V$5","v":4.7778600377038792E-3},{"$f":"'Population 2016'!W158/'Population 2016'!W$5","v":5.412507599082227E-3},{"$f":"'Population 2016'!X158/'Population 2016'!X$5","v":5.412507599082227E-3},{"$f":"'Population 2016'!Y158/'Population 2016'!Y$5","v":4.5229805567479058E-3},{"$f":"'Population 2016'!Z158/'Population 2016'!Z$5","v":3.9761277471384079E-3},{"$f":"'Population 2016'!AA158/'Population 2016'!AA$5","v":4.4075136347902577E-3},{"$f":"'Population 2016'!AB158/'Population 2016'!AB$5","v":4.92922428175184E-3},{"$f":"'Population 2016'!AC158/'Population 2016'!AC$5","v":3.8972241586526031E-3},{"$f":"'Population 2016'!AD158/'Population 2016'!AD$5","v":9.3230116491123602E-3},{"$f":"'Population 2016'!AE158/'Population 2016'!AE$5","v":8.6756537541453193E-3},{"$f":"'Population 2016'!AF158/'Population 2016'!AF$5","v":3.921036360071785E-3},{"$f":"'Population 2016'!AG158/'Population 2016'!AG$5","v":8.6756537541453193E-3},{"$f":"'Population 2016'!AH158/'Population 2016'!AH$5","v":5.3240203226735273E-3},{"$f":"'Population 2016'!AI158/'Population 2016'!AI$5","v":4.2668321812932017E-3},{"$f":"'Population 2016'!AJ158/'Population 2016'!AJ$5","v":5.7440816440342416E-3},{"$f":"'Population 2016'!AK158/'Population 2016'!AK$5","v":7.0025017914838519E-3},{"$f":"'Population 2016'!AL158/'Population 2016'!AL$5","v":3.3965342934676574E-3},{"$f":"'Population 2016'!AM158/'Population 2016'!AM$5","v":5.3859053717795948E-3},{"$f":"'Population 2016'!AN158/'Population 2016'!AN$5","v":8.1815206719755649E-3},{"$f":"'Population 2016'!AO158/'Population 2016'!AO$5","v":8.1815206719755649E-3},{"$f":"'Population 2016'!AP158/'Population 2016'!AP$5","v":6.3963349872390345E-3},{"$f":"'Population 2016'!AQ158/'Population 2016'!AQ$5","v":5.3775963172028275E-3},{"$f":"'Population 2016'!AR158/'Population 2016'!AR$5","v":5.2858425100968344E-3},{"$f":"'Population 2016'!AS158/'Population 2016'!AS$5","v":8.3116991876727234E-3},{"$f":"'Population 2016'!AT158/'Population 2016'!AT$5","v":8.8047661728264878E-3},{"$f":"'Population 2016'!AU158/'Population 2016'!AU$5","v":8.8047661728264878E-3},{"$f":"'Population 2016'!AV158/'Population 2016'!AV$5","v":6.2928940977721465E-3},{"$f":"'Population 2016'!AW158/'Population 2016'!AW$5","v":5.2588626517786324E-3},{"$f":"'Population 2016'!AX158/'Population 2016'!AX$5","v":3.769630831746681E-3},{"$f":"'Population 2016'!AY158/'Population 2016'!AY$5","v":5.7785869465438637E-3},{"$f":"'Population 2016'!AZ158/'Population 2016'!AZ$5","v":6.1007530302420168E-3},{"$f":"'Population 2016'!BA158/'Population 2016'!BA$5","v":3.5494493629885555E-3},{"$f":"'Population 2016'!BB158/'Population 2016'!BB$5","v":6.09019285610711E-3},{"$f":"'Population 2016'!BC158/'Population 2016'!BC$5","v":1.6863630327977691E-2},156]
[null,"Male 20-24",{"$f":"'Population 2016'!C159/'Population 2016'!C$5","v":1.0324400852529734E-2},{"$f":"'Population 2016'!D159/'Population 2016'!D$5","v":8.6436235243488556E-3},{"$f":"'Population 2016'!E159/'Population 2016'!E$5","v":7.1020396682902132E-3},{"$f":"'Population 2016'!F159/'Population 2016'!F$5","v":1.0126191089363894E-2},{"$f":"'Population 2016'!G159/'Population 2016'!G$5","v":1.1124343636658908E-2},{"$f":"'Population 2016'!H159/'Population 2016'!H$5","v":5.849299478296959E-3},{"$f":"'Population 2016'!I159/'Population 2016'!I$5","v":9.8191106272506497E-3},{"$f":"'Population 2016'!J159/'Population 2016'!J$5","v":7.7208230015839716E-3},{"$f":"'Population 2016'!K159/'Population 2016'!K$5","v":6.9224590086471669E-3},{"$f":"'Population 2016'!L159/'Population 2016'!L$5","v":1.0976442742998745E-2},{"$f":"'Population 2016'!M159/'Population 2016'!M$5","v":1.0976442742998745E-2},{"$f":"'Population 2016'!N159/'Population 2016'!N$5","v":6.1243680729137365E-3},{"$f":"'Population 2016'!O159/'Population 2016'!O$5","v":6.2313628753430219E-3},{"$f":"'Population 2016'!P159/'Population 2016'!P$5","v":2.4907021300574778E-3},{"$f":"'Population 2016'!Q159/'Population 2016'!Q$5","v":7.4617219539135854E-3},{"$f":"'Population 2016'!R159/'Population 2016'!R$5","v":4.3381061372225471E-3},{"$f":"'Population 2016'!S159/'Population 2016'!S$5","v":8.2678548416423789E-3},{"$f":"'Population 2016'!T159/'Population 2016'!T$5","v":8.5503692363531458E-3},{"$f":"'Population 2016'!U159/'Population 2016'!U$5","v":1.9784889124950206E-2},{"$f":"'Population 2016'!V159/'Population 2016'!V$5","v":6.3348623503102558E-3},{"$f":"'Population 2016'!W159/'Population 2016'!W$5","v":7.4944927081494845E-3},{"$f":"'Population 2016'!X159/'Population 2016'!X$5","v":7.4944927081494845E-3},{"$f":"'Population 2016'!Y159/'Population 2016'!Y$5","v":6.9990938140888064E-3},{"$f":"'Population 2016'!Z159/'Population 2016'!Z$5","v":9.1640646324017624E-3},{"$f":"'Population 2016'!AA159/'Population 2016'!AA$5","v":6.945454859526282E-3},{"$f":"'Population 2016'!AB159/'Population 2016'!AB$5","v":8.6179544128634732E-3},{"$f":"'Population 2016'!AC159/'Population 2016'!AC$5","v":7.1593910897540655E-3},{"$f":"'Population 2016'!AD159/'Population 2016'!AD$5","v":9.6691354348877896E-3},{"$f":"'Population 2016'!AE159/'Population 2016'!AE$5","v":9.1171367262497562E-3},{"$f":"'Population 2016'!AF159/'Population 2016'!AF$5","v":5.8212309037988814E-3},{"$f":"'Population 2016'!AG159/'Population 2016'!AG$5","v":9.1171367262497562E-3},{"$f":"'Population 2016'!AH159/'Population 2016'!AH$5","v":6.5612141589961271E-3},{"$f":"'Population 2016'!AI159/'Population 2016'!AI$5","v":8.3887479219529274E-3},{"$f":"'Population 2016'!AJ159/'Population 2016'!AJ$5","v":8.3512254970303651E-3},{"$f":"'Population 2016'!AK159/'Population 2016'!AK$5","v":8.4859761386922791E-3},{"$f":"'Population 2016'!AL159/'Population 2016'!AL$5","v":4.6824284776786507E-3},{"$f":"'Population 2016'!AM159/'Population 2016'!AM$5","v":6.3240018689490057E-3},{"$f":"'Population 2016'!AN159/'Population 2016'!AN$5","v":9.8178248063706779E-3},{"$f":"'Population 2016'!AO159/'Population 2016'!AO$5","v":9.8178248063706779E-3},{"$f":"'Population 2016'!AP159/'Population 2016'!AP$5","v":8.4808902556948781E-3},{"$f":"'Population 2016'!AQ159/'Population 2016'!AQ$5","v":5.9187811695073159E-3},{"$f":"'Population 2016'!AR159/'Population 2016'!AR$5","v":7.8522396827826156E-3},{"$f":"'Population 2016'!AS159/'Population 2016'!AS$5","v":9.8191106272506497E-3},{"$f":"'Population 2016'!AT159/'Population 2016'!AT$5","v":1.2073601518426741E-2},{"$f":"'Population 2016'!AU159/'Population 2016'!AU$5","v":1.2073601518426741E-2},{"$f":"'Population 2016'!AV159/'Population 2016'!AV$5","v":6.8313800021117099E-3},{"$f":"'Population 2016'!AW159/'Population 2016'!AW$5","v":6.8109707730795045E-3},{"$f":"'Population 2016'!AX159/'Population 2016'!AX$5","v":8.1526253242521444E-3},{"$f":"'Population 2016'!AY159/'Population 2016'!AY$5","v":7.8149383433799447E-3},{"$f":"'Population 2016'!AZ159/'Population 2016'!AZ$5","v":8.0969447336781131E-3},{"$f":"'Population 2016'!BA159/'Population 2016'!BA$5","v":5.2769380263442021E-3},{"$f":"'Population 2016'!BB159/'Population 2016'!BB$5","v":8.4724111501626124E-3},{"$f":"'Population 2016'!BC159/'Population 2016'!BC$5","v":1.9784889124950206E-2},157]
[null,"Male 25-29",{"$f":"'Population 2016'!C160/'Population 2016'!C$5","v":1.2813501454104972E-2},{"$f":"'Population 2016'!D160/'Population 2016'!D$5","v":9.4407441096211967E-3},{"$f":"'Population 2016'!E160/'Population 2016'!E$5","v":6.3473014593167978E-3},{"$f":"'Population 2016'!F160/'Population 2016'!F$5","v":9.0033479268606751E-3},{"$f":"'Population 2016'!G160/'Population 2016'!G$5","v":1.0028149190710767E-2},{"$f":"'Population 2016'!H160/'Population 2016'!H$5","v":5.1910911667147628E-3},{"$f":"'Population 2016'!I160/'Population 2016'!I$5","v":9.0863411774558239E-3},{"$f":"'Population 2016'!J160/'Population 2016'!J$5","v":6.4934526425781411E-3},{"$f":"'Population 2016'!K160/'Population 2016'!K$5","v":5.3867599111657137E-3},{"$f":"'Population 2016'!L160/'Population 2016'!L$5","v":1.0444299715660891E-2},{"$f":"'Population 2016'!M160/'Population 2016'!M$5","v":1.0444299715660891E-2},{"$f":"'Population 2016'!N160/'Population 2016'!N$5","v":7.217431141045322E-3},{"$f":"'Population 2016'!O160/'Population 2016'!O$5","v":6.2214560981167216E-3},{"$f":"'Population 2016'!P160/'Population 2016'!P$5","v":2.3441902400540967E-3},{"$f":"'Population 2016'!Q160/'Population 2016'!Q$5","v":7.0151937110022209E-3},{"$f":"'Population 2016'!R160/'Population 2016'!R$5","v":3.3533826582211102E-3},{"$f":"'Population 2016'!S160/'Population 2016'!S$5","v":9.3438145995117135E-3},{"$f":"'Population 2016'!T160/'Population 2016'!T$5","v":1.1784386444116649E-2},{"$f":"'Population 2016'!U160/'Population 2016'!U$5","v":1.8191475235692471E-2},{"$f":"'Population 2016'!V160/'Population 2016'!V$5","v":5.8998175864937684E-3},{"$f":"'Population 2016'!W160/'Population 2016'!W$5","v":7.4650769059805598E-3},{"$f":"'Population 2016'!X160/'Population 2016'!X$5","v":7.4650769059805598E-3},{"$f":"'Population 2016'!Y160/'Population 2016'!Y$5","v":6.1843213939365036E-3},{"$f":"'Population 2016'!Z160/'Population 2016'!Z$5","v":9.4292688687006732E-3},{"$f":"'Population 2016'!AA160/'Population 2016'!AA$5","v":6.8836672852067926E-3},{"$f":"'Population 2016'!AB160/'Population 2016'!AB$5","v":9.3098471899532263E-3},{"$f":"'Population 2016'!AC160/'Population 2016'!AC$5","v":7.287643689454947E-3},{"$f":"'Population 2016'!AD160/'Population 2016'!AD$5","v":9.3862815884476532E-3},{"$f":"'Population 2016'!AE160/'Population 2016'!AE$5","v":9.142804340906991E-3},{"$f":"'Population 2016'!AF160/'Population 2016'!AF$5","v":5.4894509041004992E-3},{"$f":"'Population 2016'!AG160/'Population 2016'!AG$5","v":9.142804340906991E-3},{"$f":"'Population 2016'!AH160/'Population 2016'!AH$5","v":6.1581044555696941E-3},{"$f":"'Population 2016'!AI160/'Population 2016'!AI$5","v":1.0163290751596814E-2},{"$f":"'Population 2016'!AJ160/'Population 2016'!AJ$5","v":7.9190251791540021E-3},{"$f":"'Population 2016'!AK160/'Population 2016'!AK$5","v":8.6368379367134755E-3},{"$f":"'Population 2016'!AL160/'Population 2016'!AL$5","v":3.7423954878416489E-3},{"$f":"'Population 2016'!AM160/'Population 2016'!AM$5","v":5.9907784027729985E-3},{"$f":"'Population 2016'!AN160/'Population 2016'!AN$5","v":1.1072324642740263E-2},{"$f":"'Population 2016'!AO160/'Population 2016'!AO$5","v":1.1072324642740263E-2},{"$f":"'Population 2016'!AP160/'Population 2016'!AP$5","v":6.840194664172598E-3},{"$f":"'Population 2016'!AQ160/'Population 2016'!AQ$5","v":6.2750041102647008E-3},{"$f":"'Population 2016'!AR160/'Population 2016'!AR$5","v":8.0066245127019958E-3},{"$f":"'Population 2016'!AS160/'Population 2016'!AS$5","v":9.0863411774558239E-3},{"$f":"'Population 2016'!AT160/'Population 2016'!AT$5","v":1.0650076448568566E-2},{"$f":"'Population 2016'!AU160/'Population 2016'!AU$5","v":1.0650076448568566E-2},{"$f":"'Population 2016'!AV160/'Population 2016'!AV$5","v":5.8177594762960621E-3},{"$f":"'Population 2016'!AW160/'Population 2016'!AW$5","v":6.3342790896332903E-3},{"$f":"'Population 2016'!AX160/'Population 2016'!AX$5","v":7.0920173275234163E-3},{"$f":"'Population 2016'!AY160/'Population 2016'!AY$5","v":7.5257795049111101E-3},{"$f":"'Population 2016'!AZ160/'Population 2016'!AZ$5","v":7.5792004878301343E-3},{"$f":"'Population 2016'!BA160/'Population 2016'!BA$5","v":5.8707622543727059E-3},{"$f":"'Population 2016'!BB160/'Population 2016'!BB$5","v":8.3135965972255792E-3},{"$f":"'Population 2016'!BC160/'Population 2016'!BC$5","v":1.8191475235692471E-2},158]
[null,"Male 30-34",{"$f":"'Population 2016'!C161/'Population 2016'!C$5","v":9.7161811983460522E-3},{"$f":"'Population 2016'!D161/'Population 2016'!D$5","v":8.1570376456089905E-3},{"$f":"'Population 2016'!E161/'Population 2016'!E$5","v":6.7270144712847897E-3},{"$f":"'Population 2016'!F161/'Population 2016'!F$5","v":1.0064383208859129E-2},{"$f":"'Population 2016'!G161/'Population 2016'!G$5","v":9.5003518648838839E-3},{"$f":"'Population 2016'!H161/'Population 2016'!H$5","v":4.8344265643795823E-3},{"$f":"'Population 2016'!I161/'Population 2016'!I$5","v":9.2642994724059964E-3},{"$f":"'Population 2016'!J161/'Population 2016'!J$5","v":5.4319431428974238E-3},{"$f":"'Population 2016'!K161/'Population 2016'!K$5","v":5.1977507914756889E-3},{"$f":"'Population 2016'!L161/'Population 2016'!L$5","v":9.7930201896653055E-3},{"$f":"'Population 2016'!M161/'Population 2016'!M$5","v":9.7930201896653055E-3},{"$f":"'Population 2016'!N161/'Population 2016'!N$5","v":5.9154001334179923E-3},{"$f":"'Population 2016'!O161/'Population 2016'!O$5","v":5.2704054843918727E-3},{"$f":"'Population 2016'!P161/'Population 2016'!P$5","v":2.0173560238927082E-3},{"$f":"'Population 2016'!Q161/'Population 2016'!Q$5","v":6.1691401981175311E-3},{"$f":"'Population 2016'!R161/'Population 2016'!R$5","v":3.3799968063022304E-3},{"$f":"'Population 2016'!S161/'Population 2016'!S$5","v":8.79921478769434E-3},{"$f":"'Population 2016'!T161/'Population 2016'!T$5","v":1.0430287152808476E-2},{"$f":"'Population 2016'!U161/'Population 2016'!U$5","v":1.9873412118797857E-2},{"$f":"'Population 2016'!V161/'Population 2016'!V$5","v":5.9150823150487322E-3},{"$f":"'Population 2016'!W161/'Population 2016'!W$5","v":7.4029768791794952E-3},{"$f":"'Population 2016'!X161/'Population 2016'!X$5","v":7.4029768791794952E-3},{"$f":"'Population 2016'!Y161/'Population 2016'!Y$5","v":5.6835344430136246E-3},{"$f":"'Population 2016'!Z161/'Population 2016'!Z$5","v":8.6956016748518626E-3},{"$f":"'Population 2016'!AA161/'Population 2016'!AA$5","v":6.7879962023895185E-3},{"$f":"'Population 2016'!AB161/'Population 2016'!AB$5","v":8.45009876871744E-3},{"$f":"'Population 2016'!AC161/'Population 2016'!AC$5","v":6.8015249647822495E-3},{"$f":"'Population 2016'!AD161/'Population 2016'!AD$5","v":9.8738322974431508E-3},{"$f":"'Population 2016'!AE161/'Population 2016'!AE$5","v":1.001550323925297E-2},{"$f":"'Population 2016'!AF161/'Population 2016'!AF$5","v":4.8711336319353328E-3},{"$f":"'Population 2016'!AG161/'Population 2016'!AG$5","v":1.001550323925297E-2},{"$f":"'Population 2016'!AH161/'Population 2016'!AH$5","v":6.7636978349107863E-3},{"$f":"'Population 2016'!AI161/'Population 2016'!AI$5","v":9.3225019686761744E-3},{"$f":"'Population 2016'!AJ161/'Population 2016'!AJ$5","v":7.9050832334160558E-3},{"$f":"'Population 2016'!AK161/'Population 2016'!AK$5","v":9.9568786693989414E-3},{"$f":"'Population 2016'!AL161/'Population 2016'!AL$5","v":3.4940848867526294E-3},{"$f":"'Population 2016'!AM161/'Population 2016'!AM$5","v":6.979582818708324E-3},{"$f":"'Population 2016'!AN161/'Population 2016'!AN$5","v":9.5451074506381593E-3},{"$f":"'Population 2016'!AO161/'Population 2016'!AO$5","v":9.5451074506381593E-3},{"$f":"'Population 2016'!AP161/'Population 2016'!AP$5","v":7.6328012301253908E-3},{"$f":"'Population 2016'!AQ161/'Population 2016'!AQ$5","v":6.5079191099906833E-3},{"$f":"'Population 2016'!AR161/'Population 2016'!AR$5","v":7.7176820532424938E-3},{"$f":"'Population 2016'!AS161/'Population 2016'!AS$5","v":9.2642994724059964E-3},{"$f":"'Population 2016'!AT161/'Population 2016'!AT$5","v":1.1704539463278325E-2},{"$f":"'Population 2016'!AU161/'Population 2016'!AU$5","v":1.1704539463278325E-2},{"$f":"'Population 2016'!AV161/'Population 2016'!AV$5","v":5.9655791363108441E-3},{"$f":"'Population 2016'!AW161/'Population 2016'!AW$5","v":6.536396363414485E-3},{"$f":"'Population 2016'!AX161/'Population 2016'!AX$5","v":5.5586081756264618E-3},{"$f":"'Population 2016'!AY161/'Population 2016'!AY$5","v":7.5594382056852604E-3},{"$f":"'Population 2016'!AZ161/'Population 2016'!AZ$5","v":7.6971311216066183E-3},{"$f":"'Population 2016'!BA161/'Population 2016'!BA$5","v":5.1014899589721446E-3},{"$f":"'Population 2016'!BB161/'Population 2016'!BB$5","v":8.589795819724768E-3},{"$f":"'Population 2016'!BC161/'Population 2016'!BC$5","v":1.9873412118797857E-2},159]
[null,"Male 35-39",{"$f":"'Population 2016'!C162/'Population 2016'!C$5","v":7.0430813736564223E-3},{"$f":"'Population 2016'!D162/'Population 2016'!D$5","v":6.9148988194790845E-3},{"$f":"'Population 2016'!E162/'Population 2016'!E$5","v":6.7973316957233064E-3},{"$f":"'Population 2016'!F162/'Population 2016'!F$5","v":9.9613700746845231E-3},{"$f":"'Population 2016'!G162/'Population 2016'!G$5","v":1.0664212634655985E-2},{"$f":"'Population 2016'!H162/'Population 2016'!H$5","v":5.1683943283843421E-3},{"$f":"'Population 2016'!I162/'Population 2016'!I$5","v":8.7408927225525509E-3},{"$f":"'Population 2016'!J162/'Population 2016'!J$5","v":5.3241335843361003E-3},{"$f":"'Population 2016'!K162/'Population 2016'!K$5","v":5.2450030713981953E-3},{"$f":"'Population 2016'!L162/'Population 2016'!L$5","v":9.0861436309627817E-3},{"$f":"'Population 2016'!M162/'Population 2016'!M$5","v":9.0861436309627817E-3},{"$f":"'Population 2016'!N162/'Population 2016'!N$5","v":4.2436566174520376E-3},{"$f":"'Population 2016'!O162/'Population 2016'!O$5","v":5.9242527813277062E-3},{"$f":"'Population 2016'!P162/'Population 2016'!P$5","v":1.7806829708103234E-3},{"$f":"'Population 2016'!Q162/'Population 2016'!Q$5","v":6.3454013466351751E-3},{"$f":"'Population 2016'!R162/'Population 2016'!R$5","v":3.4997604726672701E-3},{"$f":"'Population 2016'!S162/'Population 2016'!S$5","v":7.8132861170298207E-3},{"$f":"'Population 2016'!T162/'Population 2016'!T$5","v":7.952425047579606E-3},{"$f":"'Population 2016'!U162/'Population 2016'!U$5","v":2.1909440977293852E-2},{"$f":"'Population 2016'!V162/'Population 2016'!V$5","v":7.1438929637233726E-3},{"$f":"'Population 2016'!W162/'Population 2016'!W$5","v":7.2951189378934363E-3},{"$f":"'Population 2016'!X162/'Population 2016'!X$5","v":7.2951189378934363E-3},{"$f":"'Population 2016'!Y162/'Population 2016'!Y$5","v":6.2717603853674822E-3},{"$f":"'Population 2016'!Z162/'Population 2016'!Z$5","v":6.6668860570324616E-3},{"$f":"'Population 2016'!AA162/'Population 2016'!AA$5","v":6.1116547974729551E-3},{"$f":"'Population 2016'!AB162/'Population 2016'!AB$5","v":7.2689681995435143E-3},{"$f":"'Population 2016'!AC162/'Population 2016'!AC$5","v":5.5593364789696762E-3},{"$f":"'Population 2016'!AD162/'Population 2016'!AD$5","v":1.0309278350515464E-2},{"$f":"'Population 2016'!AE162/'Population 2016'!AE$5","v":1.0174642450127825E-2},{"$f":"'Population 2016'!AF162/'Population 2016'!AF$5","v":5.2330754497881132E-3},{"$f":"'Population 2016'!AG162/'Population 2016'!AG$5","v":1.0174642450127825E-2},{"$f":"'Population 2016'!AH162/'Population 2016'!AH$5","v":7.1036474926390678E-3},{"$f":"'Population 2016'!AI162/'Population 2016'!AI$5","v":7.9088831043835853E-3},{"$f":"'Population 2016'!AJ162/'Population 2016'!AJ$5","v":8.1699802024370518E-3},{"$f":"'Population 2016'!AK162/'Population 2016'!AK$5","v":9.0894233307770647E-3},{"$f":"'Population 2016'!AL162/'Population 2016'!AL$5","v":3.6980543090757525E-3},{"$f":"'Population 2016'!AM162/'Population 2016'!AM$5","v":7.6496517452579044E-3},{"$f":"'Population 2016'!AN162/'Population 2016'!AN$5","v":8.836042325733609E-3},{"$f":"'Population 2016'!AO162/'Population 2016'!AO$5","v":8.836042325733609E-3},{"$f":"'Population 2016'!AP162/'Population 2016'!AP$5","v":7.4663538512753039E-3},{"$f":"'Population 2016'!AQ162/'Population 2016'!AQ$5","v":5.6927166109497452E-3},{"$f":"'Population 2016'!AR162/'Population 2016'!AR$5","v":7.1304404779647399E-3},{"$f":"'Population 2016'!AS162/'Population 2016'!AS$5","v":8.7408927225525509E-3},{"$f":"'Population 2016'!AT162/'Population 2016'!AT$5","v":1.186270891548479E-2},{"$f":"'Population 2016'!AU162/'Population 2016'!AU$5","v":1.186270891548479E-2},{"$f":"'Population 2016'!AV162/'Population 2016'!AV$5","v":6.113398796325626E-3},{"$f":"'Population 2016'!AW162/'Population 2016'!AW$5","v":6.5287692964793457E-3},{"$f":"'Population 2016'!AX162/'Population 2016'!AX$5","v":5.3669320316393418E-3},{"$f":"'Population 2016'!AY162/'Population 2016'!AY$5","v":7.1432942688412224E-3},{"$f":"'Population 2016'!AZ162/'Population 2016'!AZ$5","v":7.0096818173973575E-3},{"$f":"'Population 2016'!BA162/'Population 2016'!BA$5","v":4.4806737205787088E-3},{"$f":"'Population 2016'!BB162/'Population 2016'!BB$5","v":8.5690808780373284E-3},{"$f":"'Population 2016'!BC162/'Population 2016'!BC$5","v":2.1909440977293852E-2},160]
[null,"Male 40-44",{"$f":"'Population 2016'!C163/'Population 2016'!C$5","v":5.4330881714054983E-3},{"$f":"'Population 2016'!D163/'Population 2016'!D$5","v":6.5065579061647253E-3},{"$f":"'Population 2016'!E163/'Population 2016'!E$5","v":7.4911283101833405E-3},{"$f":"'Population 2016'!F163/'Population 2016'!F$5","v":1.1702292042235385E-2},{"$f":"'Population 2016'!G163/'Population 2016'!G$5","v":1.2761868673198723E-2},{"$f":"'Population 2016'!H163/'Population 2016'!H$5","v":5.7714817468783744E-3},{"$f":"'Population 2016'!I163/'Population 2016'!I$5","v":1.1494012226781676E-2},{"$f":"'Population 2016'!J163/'Population 2016'!J$5","v":5.9461118068052715E-3},{"$f":"'Population 2016'!K163/'Population 2016'!K$5","v":6.8988328686859137E-3},{"$f":"'Population 2016'!L163/'Population 2016'!L$5","v":1.0857306244341017E-2},{"$f":"'Population 2016'!M163/'Population 2016'!M$5","v":1.0857306244341017E-2},{"$f":"'Population 2016'!N163/'Population 2016'!N$5","v":3.8417951953448374E-3},{"$f":"'Population 2016'!O163/'Population 2016'!O$5","v":6.0332273308170122E-3},{"$f":"'Population 2016'!P163/'Population 2016'!P$5","v":2.1187873323565876E-3},{"$f":"'Population 2016'!Q163/'Population 2016'!Q$5","v":8.237271007391217E-3},{"$f":"'Population 2016'!R163/'Population 2016'!R$5","v":3.5263746207483898E-3},{"$f":"'Population 2016'!S163/'Population 2016'!S$5","v":7.6694129090456526E-3},{"$f":"'Population 2016'!T163/'Population 2016'!T$5","v":5.9445424214645678E-3},{"$f":"'Population 2016'!U163/'Population 2016'!U$5","v":2.4874961271190193E-2},{"$f":"'Population 2016'!V163/'Population 2016'!V$5","v":7.2812755207180531E-3},{"$f":"'Population 2016'!W163/'Population 2016'!W$5","v":7.7951875747651637E-3},{"$f":"'Population 2016'!X163/'Population 2016'!X$5","v":7.7951875747651637E-3},{"$f":"'Population 2016'!Y163/'Population 2016'!Y$5","v":6.641388849143893E-3},{"$f":"'Population 2016'!Z163/'Population 2016'!Z$5","v":4.837557565773554E-3},{"$f":"'Population 2016'!AA163/'Population 2016'!AA$5","v":5.6359569134648412E-3},{"$f":"'Population 2016'!AB163/'Population 2016'!AB$5","v":7.094971495245796E-3},{"$f":"'Population 2016'!AC163/'Population 2016'!AC$5","v":4.7081115632130171E-3},{"$f":"'Population 2016'!AD163/'Population 2016'!AD$5","v":1.0755889686999889E-2},{"$f":"'Population 2016'!AE163/'Population 2016'!AE$5","v":9.9949691475271826E-3},{"$f":"'Population 2016'!AF163/'Population 2016'!AF$5","v":5.2632372679425115E-3},{"$f":"'Population 2016'!AG163/'Population 2016'!AG$5","v":9.9949691475271826E-3},{"$f":"'Population 2016'!AH163/'Population 2016'!AH$5","v":7.3024158717479547E-3},{"$f":"'Population 2016'!AI163/'Population 2016'!AI$5","v":7.1173112258290311E-3},{"$f":"'Population 2016'!AJ163/'Population 2016'!AJ$5","v":8.922845272286201E-3},{"$f":"'Population 2016'!AK163/'Population 2016'!AK$5","v":1.0120312283921904E-2},{"$f":"'Population 2016'!AL163/'Population 2016'!AL$5","v":4.5671414128873201E-3},{"$f":"'Population 2016'!AM163/'Population 2016'!AM$5","v":7.6098098090846859E-3},{"$f":"'Population 2016'!AN163/'Population 2016'!AN$5","v":9.0542162103196249E-3},{"$f":"'Population 2016'!AO163/'Population 2016'!AO$5","v":9.0542162103196249E-3},{"$f":"'Population 2016'!AP163/'Population 2016'!AP$5","v":7.3157586037442737E-3},{"$f":"'Population 2016'!AQ163/'Population 2016'!AQ$5","v":5.8023236696443251E-3},{"$f":"'Population 2016'!AR163/'Population 2016'!AR$5","v":7.09123163227093E-3},{"$f":"'Population 2016'!AS163/'Population 2016'!AS$5","v":1.1494012226781676E-2},{"$f":"'Population 2016'!AT163/'Population 2016'!AT$5","v":1.159909316180735E-2},{"$f":"'Population 2016'!AU163/'Population 2016'!AU$5","v":1.159909316180735E-2},{"$f":"'Population 2016'!AV163/'Population 2016'!AV$5","v":6.9264069264069264E-3},{"$f":"'Population 2016'!AW163/'Population 2016'!AW$5","v":6.978766245652572E-3},{"$f":"'Population 2016'!AX163/'Population 2016'!AX$5","v":5.4308240796350484E-3},{"$f":"'Population 2016'!AY163/'Population 2016'!AY$5","v":7.5303693277439495E-3},{"$f":"'Population 2016'!AZ163/'Population 2016'!AZ$5","v":7.2973175095351235E-3},{"$f":"'Population 2016'!BA163/'Population 2016'!BA$5","v":5.4523860937162596E-3},{"$f":"'Population 2016'!BB163/'Population 2016'!BB$5","v":9.0455245368484295E-3},{"$f":"'Population 2016'!BC163/'Population 2016'!BC$5","v":2.4874961271190193E-2},161]
[null,"Male 45-49",{"$f":"'Population 2016'!C164/'Population 2016'!C$5","v":5.341088559848303E-3},{"$f":"'Population 2016'!D164/'Population 2016'!D$5","v":7.4699490429662669E-3},{"$f":"'Population 2016'!E164/'Population 2016'!E$5","v":9.4225080747612731E-3},{"$f":"'Population 2016'!F164/'Population 2016'!F$5","v":1.4092196755086274E-2},{"$f":"'Population 2016'!G164/'Population 2016'!G$5","v":1.6930114220754616E-2},{"$f":"'Population 2016'!H164/'Population 2016'!H$5","v":7.4445629723779482E-3},{"$f":"'Population 2016'!I164/'Population 2016'!I$5","v":1.4226195461016665E-2},{"$f":"'Population 2016'!J164/'Population 2016'!J$5","v":7.3144638962374465E-3},{"$f":"'Population 2016'!K164/'Population 2016'!K$5","v":8.7416717856636586E-3},{"$f":"'Population 2016'!L164/'Population 2016'!L$5","v":1.4979429097898431E-2},{"$f":"'Population 2016'!M164/'Population 2016'!M$5","v":1.4979429097898431E-2},{"$f":"'Population 2016'!N164/'Population 2016'!N$5","v":4.0266514495141499E-3},{"$f":"'Population 2016'!O164/'Population 2016'!O$5","v":7.905608226587809E-3},{"$f":"'Population 2016'!P164/'Population 2016'!P$5","v":2.6597543108306098E-3},{"$f":"'Population 2016'!Q164/'Population 2016'!Q$5","v":9.4240960740766856E-3},{"$f":"'Population 2016'!R164/'Population 2016'!R$5","v":4.0586575823707881E-3},{"$f":"'Population 2016'!S164/'Population 2016'!S$5","v":8.3781870563541649E-3},{"$f":"'Population 2016'!T164/'Population 2016'!T$5","v":5.211653629777155E-3},{"$f":"'Population 2016'!U164/'Population 2016'!U$5","v":3.3417430177488605E-2},{"$f":"'Population 2016'!V164/'Population 2016'!V$5","v":8.8535425618793927E-3},{"$f":"'Population 2016'!W164/'Population 2016'!W$5","v":9.3051987527699876E-3},{"$f":"'Population 2016'!X164/'Population 2016'!X$5","v":9.3051987527699876E-3},{"$f":"'Population 2016'!Y164/'Population 2016'!Y$5","v":8.1159282046390363E-3},{"$f":"'Population 2016'!Z164/'Population 2016'!Z$5","v":5.0369446923340493E-3},{"$f":"'Population 2016'!AA164/'Population 2016'!AA$5","v":6.5069623966137755E-3},{"$f":"'Population 2016'!AB164/'Population 2016'!AB$5","v":8.2535848438635463E-3},{"$f":"'Population 2016'!AC164/'Population 2016'!AC$5","v":5.3111056408389375E-3},{"$f":"'Population 2016'!AD164/'Population 2016'!AD$5","v":1.4138970560869404E-2},{"$f":"'Population 2016'!AE164/'Population 2016'!AE$5","v":1.308021642932679E-2},{"$f":"'Population 2016'!AF164/'Population 2016'!AF$5","v":6.0625254490340678E-3},{"$f":"'Population 2016'!AG164/'Population 2016'!AG$5","v":1.308021642932679E-2},{"$f":"'Population 2016'!AH164/'Population 2016'!AH$5","v":8.6547839090495345E-3},{"$f":"'Population 2016'!AI164/'Population 2016'!AI$5","v":7.2266821244203342E-3},{"$f":"'Population 2016'!AJ164/'Population 2016'!AJ$5","v":1.0358865683294761E-2},{"$f":"'Population 2016'!AK164/'Population 2016'!AK$5","v":1.2282664722225714E-2},{"$f":"'Population 2016'!AL164/'Population 2016'!AL$5","v":5.9771908976428232E-3},{"$f":"'Population 2016'!AM164/'Population 2016'!AM$5","v":8.5153083584760102E-3},{"$f":"'Population 2016'!AN164/'Population 2016'!AN$5","v":1.1781389767644812E-2},{"$f":"'Population 2016'!AO164/'Population 2016'!AO$5","v":1.1781389767644812E-2},{"$f":"'Population 2016'!AP164/'Population 2016'!AP$5","v":9.5667612510502032E-3},{"$f":"'Population 2016'!AQ164/'Population 2016'!AQ$5","v":7.5080835205787256E-3},{"$f":"'Population 2016'!AR164/'Population 2016'!AR$5","v":8.3877968705548915E-3},{"$f":"'Population 2016'!AS164/'Population 2016'!AS$5","v":1.4226195461016665E-2},{"$f":"'Population 2016'!AT164/'Population 2016'!AT$5","v":1.3866188643433332E-2},{"$f":"'Population 2016'!AU164/'Population 2016'!AU$5","v":1.3866188643433332E-2},{"$f":"'Population 2016'!AV164/'Population 2016'!AV$5","v":8.70024284658431E-3},{"$f":"'Population 2016'!AW164/'Population 2016'!AW$5","v":8.8016352431508939E-3},{"$f":"'Population 2016'!AX164/'Population 2016'!AX$5","v":6.5425457147603406E-3},{"$f":"'Population 2016'!AY164/'Population 2016'!AY$5","v":9.0618402129677787E-3},{"$f":"'Population 2016'!AZ164/'Population 2016'!AZ$5","v":8.8476738901576823E-3},{"$f":"'Population 2016'!BA164/'Population 2016'!BA$5","v":6.6670265601381992E-3},{"$f":"'Population 2016'!BB164/'Population 2016'!BB$5","v":1.0364375824282054E-2},{"$f":"'Population 2016'!BC164/'Population 2016'!BC$5","v":3.3417430177488605E-2},162]
[null,"Male 50-54",{"$f":"'Population 2016'!C165/'Population 2016'!C$5","v":5.4586436190602753E-3},{"$f":"'Population 2016'!D165/'Population 2016'!D$5","v":7.4797296636444546E-3},{"$f":"'Population 2016'!E165/'Population 2016'!E$5","v":9.3334395904724841E-3},{"$f":"'Population 2016'!F165/'Population 2016'!F$5","v":1.6399690960597475E-2},{"$f":"'Population 2016'!G165/'Population 2016'!G$5","v":1.893303740594381E-2},{"$f":"'Population 2016'!H165/'Population 2016'!H$5","v":8.3264972617885756E-3},{"$f":"'Population 2016'!I165/'Population 2016'!I$5","v":1.6340758730424589E-2},{"$f":"'Population 2016'!J165/'Population 2016'!J$5","v":7.8452186460778051E-3},{"$f":"'Population 2016'!K165/'Population 2016'!K$5","v":8.9779331852761889E-3},{"$f":"'Population 2016'!L165/'Population 2016'!L$5","v":1.7425698537003795E-2},{"$f":"'Population 2016'!M165/'Population 2016'!M$5","v":1.7425698537003795E-2},{"$f":"'Population 2016'!N165/'Population 2016'!N$5","v":5.1599006598564553E-3},{"$f":"'Population 2016'!O165/'Population 2016'!O$5","v":8.9656333898019639E-3},{"$f":"'Population 2016'!P165/'Population 2016'!P$5","v":2.7273751831398624E-3},{"$f":"'Population 2016'!Q165/'Population 2016'!Q$5","v":9.6238587090633487E-3},{"$f":"'Population 2016'!R165/'Population 2016'!R$5","v":5.1631447277372651E-3},{"$f":"'Population 2016'!S165/'Population 2016'!S$5","v":8.6694641031932786E-3},{"$f":"'Population 2016'!T165/'Population 2016'!T$5","v":5.1209150174729998E-3},{"$f":"'Population 2016'!U165/'Population 2016'!U$5","v":3.1868277785154692E-2},{"$f":"'Population 2016'!V165/'Population 2016'!V$5","v":9.1817342258111289E-3},{"$f":"'Population 2016'!W165/'Population 2016'!W$5","v":9.697409448355657E-3},{"$f":"'Population 2016'!X165/'Population 2016'!X$5","v":9.697409448355657E-3},{"$f":"'Population 2016'!Y165/'Population 2016'!Y$5","v":8.5411996629624325E-3},{"$f":"'Population 2016'!Z165/'Population 2016'!Z$5","v":5.0543668684412766E-3},{"$f":"'Population 2016'!AA165/'Population 2016'!AA$5","v":6.7992907052221128E-3},{"$f":"'Population 2016'!AB165/'Population 2016'!AB$5","v":8.310901405279264E-3},{"$f":"'Population 2016'!AC165/'Population 2016'!AC$5","v":5.7227551140724134E-3},{"$f":"'Population 2016'!AD165/'Population 2016'!AD$5","v":1.6383192526703637E-2},{"$f":"'Population 2016'!AE165/'Population 2016'!AE$5","v":1.5415969363135145E-2},{"$f":"'Population 2016'!AF165/'Population 2016'!AF$5","v":7.2237554479784045E-3},{"$f":"'Population 2016'!AG165/'Population 2016'!AG$5","v":1.5415969363135145E-2},{"$f":"'Population 2016'!AH165/'Population 2016'!AH$5","v":8.7328051419707786E-3},{"$f":"'Population 2016'!AI165/'Population 2016'!AI$5","v":7.2376192142794647E-3},{"$f":"'Population 2016'!AJ165/'Population 2016'!AJ$5","v":1.0442517357722444E-2},{"$f":"'Population 2016'!AK165/'Population 2016'!AK$5","v":1.2584388318268106E-2},{"$f":"'Population 2016'!AL165/'Population 2016'!AL$5","v":6.7043862294035228E-3},{"$f":"'Population 2016'!AM165/'Population 2016'!AM$5","v":8.4030265383514859E-3},{"$f":"'Population 2016'!AN165/'Population 2016'!AN$5","v":1.5490345805607068E-2},{"$f":"'Population 2016'!AO165/'Population 2016'!AO$5","v":1.5490345805607068E-2},{"$f":"'Population 2016'!AP165/'Population 2016'!AP$5","v":1.1247087170870123E-2},{"$f":"'Population 2016'!AQ165/'Population 2016'!AQ$5","v":8.6795089603770477E-3},{"$f":"'Population 2016'!AR165/'Population 2016'!AR$5","v":8.9970934215354136E-3},{"$f":"'Population 2016'!AS165/'Population 2016'!AS$5","v":1.6340758730424589E-2},{"$f":"'Population 2016'!AT165/'Population 2016'!AT$5","v":1.5816945220646386E-2},{"$f":"'Population 2016'!AU165/'Population 2016'!AU$5","v":1.5816945220646386E-2},{"$f":"'Population 2016'!AV165/'Population 2016'!AV$5","v":9.5766022595290892E-3},{"$f":"'Population 2016'!AW165/'Population 2016'!AW$5","v":9.080023186283483E-3},{"$f":"'Population 2016'!AX165/'Population 2016'!AX$5","v":7.2325798331139704E-3},{"$f":"'Population 2016'!AY165/'Population 2016'!AY$5","v":1.0128209051130627E-2},{"$f":"'Population 2016'!AZ165/'Population 2016'!AZ$5","v":1.0507331833792592E-2},{"$f":"'Population 2016'!BA165/'Population 2016'!BA$5","v":7.368818829626431E-3},{"$f":"'Population 2016'!BB165/'Population 2016'!BB$5","v":1.0530095357781568E-2},{"$f":"'Population 2016'!BC165/'Population 2016'!BC$5","v":3.1868277785154692E-2},163]
[null,"Male 55-59",{"$f":"'Population 2016'!C166/'Population 2016'!C$5","v":4.8402017858146821E-3},{"$f":"'Population 2016'!D166/'Population 2016'!D$5","v":6.8244280782058433E-3},{"$f":"'Population 2016'!E166/'Population 2016'!E$5","v":8.6443307909750185E-3},{"$f":"'Population 2016'!F166/'Population 2016'!F$5","v":1.5204738604172032E-2},{"$f":"'Population 2016'!G166/'Population 2016'!G$5","v":1.9122503112650895E-2},{"$f":"'Population 2016'!H166/'Population 2016'!H$5","v":7.2921699150165524E-3},{"$f":"'Population 2016'!I166/'Population 2016'!I$5","v":1.601624654551545E-2},{"$f":"'Population 2016'!J166/'Population 2016'!J$5","v":7.3642221540349802E-3},{"$f":"'Population 2016'!K166/'Population 2016'!K$5","v":8.8834286254311778E-3},{"$f":"'Population 2016'!L166/'Population 2016'!L$5","v":1.6726764411545123E-2},{"$f":"'Population 2016'!M166/'Population 2016'!M$5","v":1.6726764411545123E-2},{"$f":"'Population 2016'!N166/'Population 2016'!N$5","v":4.7901881515178303E-3},{"$f":"'Population 2016'!O166/'Population 2016'!O$5","v":7.0635321623522653E-3},{"$f":"'Population 2016'!P166/'Population 2016'!P$5","v":2.6034035839062322E-3},{"$f":"'Population 2016'!Q166/'Population 2016'!Q$5","v":9.8588735737535401E-3},{"$f":"'Population 2016'!R166/'Population 2016'!R$5","v":5.0566881354127853E-3},{"$f":"'Population 2016'!S166/'Population 2016'!S$5","v":8.114272398763573E-3},{"$f":"'Population 2016'!T166/'Population 2016'!T$5","v":4.3135740310744847E-3},{"$f":"'Population 2016'!U166/'Population 2016'!U$5","v":3.1381401318992606E-2},{"$f":"'Population 2016'!V166/'Population 2016'!V$5","v":7.800276291586845E-3},{"$f":"'Population 2016'!W166/'Population 2016'!W$5","v":9.4980356780996079E-3},{"$f":"'Population 2016'!X166/'Population 2016'!X$5","v":9.4980356780996079E-3},{"$f":"'Population 2016'!Y166/'Population 2016'!Y$5","v":7.5912942560531632E-3},{"$f":"'Population 2016'!Z166/'Population 2016'!Z$5","v":4.4852424489385057E-3},{"$f":"'Population 2016'!AA166/'Population 2016'!AA$5","v":6.1628122514794138E-3},{"$f":"'Population 2016'!AB166/'Population 2016'!AB$5","v":7.6824662497569163E-3},{"$f":"'Population 2016'!AC166/'Population 2016'!AC$5","v":5.2345677990819593E-3},{"$f":"'Population 2016'!AD166/'Population 2016'!AD$5","v":1.6301313781681492E-2},{"$f":"'Population 2016'!AE166/'Population 2016'!AE$5","v":1.5231162537603055E-2},{"$f":"'Population 2016'!AF166/'Population 2016'!AF$5","v":7.7063445384487773E-3},{"$f":"'Population 2016'!AG166/'Population 2016'!AG$5","v":1.5231162537603055E-2},{"$f":"'Population 2016'!AH166/'Population 2016'!AH$5","v":7.8299880181678019E-3},{"$f":"'Population 2016'!AI166/'Population 2016'!AI$5","v":6.5034670574853444E-3},{"$f":"'Population 2016'!AJ166/'Population 2016'!AJ$5","v":9.6478264506594542E-3},{"$f":"'Population 2016'!AK166/'Population 2016'!AK$5","v":1.2094087474699219E-2},{"$f":"'Population 2016'!AL166/'Population 2016'!AL$5","v":6.4028662137954277E-3},{"$f":"'Population 2016'!AM166/'Population 2016'!AM$5","v":6.9506068651278017E-3},{"$f":"'Population 2016'!AN166/'Population 2016'!AN$5","v":1.652667175739064E-2},{"$f":"'Population 2016'!AO166/'Population 2016'!AO$5","v":1.652667175739064E-2},{"$f":"'Population 2016'!AP166/'Population 2016'!AP$5","v":1.0494110933214972E-2},{"$f":"'Population 2016'!AQ166/'Population 2016'!AQ$5","v":7.5080835205787256E-3},{"$f":"'Population 2016'!AR166/'Population 2016'!AR$5","v":8.3641824521256646E-3},{"$f":"'Population 2016'!AS166/'Population 2016'!AS$5","v":1.601624654551545E-2},{"$f":"'Population 2016'!AT166/'Population 2016'!AT$5","v":1.4235250698581748E-2},{"$f":"'Population 2016'!AU166/'Population 2016'!AU$5","v":1.4235250698581748E-2},{"$f":"'Population 2016'!AV166/'Population 2016'!AV$5","v":8.5946573751451809E-3},{"$f":"'Population 2016'!AW166/'Population 2016'!AW$5","v":8.7558728415400577E-3},{"$f":"'Population 2016'!AX166/'Population 2016'!AX$5","v":6.5425457147603406E-3},{"$f":"'Population 2016'!AY166/'Population 2016'!AY$5","v":9.6416878308497288E-3},{"$f":"'Population 2016'!AZ166/'Population 2016'!AZ$5","v":9.7681081049985335E-3},{"$f":"'Population 2016'!BA166/'Population 2016'!BA$5","v":7.0988987259771111E-3},{"$f":"'Population 2016'!BB166/'Population 2016'!BB$5","v":9.473633331722171E-3},{"$f":"'Population 2016'!BC166/'Population 2016'!BC$5","v":3.1381401318992606E-2},164]
[null,"Male 60-64",{"$f":"'Population 2016'!C167/'Population 2016'!C$5","v":4.3444261013120163E-3},{"$f":"'Population 2016'!D167/'Population 2016'!D$5","v":6.2938294064141314E-3},{"$f":"'Population 2016'!E167/'Population 2016'!E$5","v":8.0817929954668834E-3},{"$f":"'Population 2016'!F167/'Population 2016'!F$5","v":1.2938449652330672E-2},{"$f":"'Population 2016'!G167/'Population 2016'!G$5","v":1.8540572727764847E-2},{"$f":"'Population 2016'!H167/'Population 2016'!H$5","v":7.0262926660030547E-3},{"$f":"'Population 2016'!I167/'Population 2016'!I$5","v":1.4131982246043045E-2},{"$f":"'Population 2016'!J167/'Population 2016'!J$5","v":6.4519874277468633E-3},{"$f":"'Population 2016'!K167/'Population 2016'!K$5","v":7.2768511080659641E-3},{"$f":"'Population 2016'!L167/'Population 2016'!L$5","v":1.6186678950963419E-2},{"$f":"'Population 2016'!M167/'Population 2016'!M$5","v":1.6186678950963419E-2},{"$f":"'Population 2016'!N167/'Population 2016'!N$5","v":4.0186142210720055E-3},{"$f":"'Population 2016'!O167/'Population 2016'!O$5","v":6.7366085138843481E-3},{"$f":"'Population 2016'!P167/'Population 2016'!P$5","v":2.299109658514595E-3},{"$f":"'Population 2016'!Q167/'Population 2016'!Q$5","v":8.6837992503025815E-3},{"$f":"'Population 2016'!R167/'Population 2016'!R$5","v":3.9388939160057484E-3},{"$f":"'Population 2016'!S167/'Population 2016'!S$5","v":6.9050313255224005E-3},{"$f":"'Population 2016'!T167/'Population 2016'!T$5","v":3.545785773116243E-3},{"$f":"'Population 2016'!U167/'Population 2016'!U$5","v":3.0230602398973135E-2},{"$f":"'Population 2016'!V167/'Population 2016'!V$5","v":6.4646125430274535E-3},{"$f":"'Population 2016'!W167/'Population 2016'!W$5","v":7.9455350080730042E-3},{"$f":"'Population 2016'!X167/'Population 2016'!X$5","v":7.9455350080730042E-3},{"$f":"'Population 2016'!Y167/'Population 2016'!Y$5","v":6.4585618670609368E-3},{"$f":"'Population 2016'!Z167/'Population 2016'!Z$5","v":3.7457678630539526E-3},{"$f":"'Population 2016'!AA167/'Population 2016'!AA$5","v":5.1888274777979974E-3},{"$f":"'Population 2016'!AB167/'Population 2016'!AB$5","v":6.980338372414358E-3},{"$f":"'Population 2016'!AC167/'Population 2016'!AC$5","v":4.3057707464094442E-3},{"$f":"'Population 2016'!AD167/'Population 2016'!AD$5","v":1.554951803193271E-2},{"$f":"'Population 2016'!AE167/'Population 2016'!AE$5","v":1.4414932391502993E-2},{"$f":"'Population 2016'!AF167/'Population 2016'!AF$5","v":5.7759881765672835E-3},{"$f":"'Population 2016'!AG167/'Population 2016'!AG$5","v":1.4414932391502993E-2},{"$f":"'Population 2016'!AH167/'Population 2016'!AH$5","v":6.7748437253281075E-3},{"$f":"'Population 2016'!AI167/'Population 2016'!AI$5","v":5.5259646513255755E-3},{"$f":"'Population 2016'!AJ167/'Population 2016'!AJ$5","v":9.1738002955692489E-3},{"$f":"'Population 2016'!AK167/'Population 2016'!AK$5","v":1.051003859547666E-2},{"$f":"'Population 2016'!AL167/'Population 2016'!AL$5","v":5.6845391177879076E-3},{"$f":"'Population 2016'!AM167/'Population 2016'!AM$5","v":5.9292045014143887E-3},{"$f":"'Population 2016'!AN167/'Population 2016'!AN$5","v":1.3199520017453911E-2},{"$f":"'Population 2016'!AO167/'Population 2016'!AO$5","v":1.3199520017453911E-2},{"$f":"'Population 2016'!AP167/'Population 2016'!AP$5","v":9.8996560087503769E-3},{"$f":"'Population 2016'!AQ167/'Population 2016'!AQ$5","v":6.0420891105387184E-3},{"$f":"'Population 2016'!AR167/'Population 2016'!AR$5","v":7.4066846180802235E-3},{"$f":"'Population 2016'!AS167/'Population 2016'!AS$5","v":1.4131982246043045E-2},{"$f":"'Population 2016'!AT167/'Population 2016'!AT$5","v":1.4024358095639795E-2},{"$f":"'Population 2016'!AU167/'Population 2016'!AU$5","v":1.4024358095639795E-2},{"$f":"'Population 2016'!AV167/'Population 2016'!AV$5","v":8.9325308837503968E-3},{"$f":"'Population 2016'!AW167/'Population 2016'!AW$5","v":7.6652022698151202E-3},{"$f":"'Population 2016'!AX167/'Population 2016'!AX$5","v":6.0058525115964066E-3},{"$f":"'Population 2016'!AY167/'Population 2016'!AY$5","v":8.3167589731036381E-3},{"$f":"'Population 2016'!AZ167/'Population 2016'!AZ$5","v":8.6434525487398672E-3},{"$f":"'Population 2016'!BA167/'Population 2016'!BA$5","v":6.2486503994817538E-3},{"$f":"'Population 2016'!BB167/'Population 2016'!BB$5","v":7.7404832105397621E-3},{"$f":"'Population 2016'!BC167/'Population 2016'!BC$5","v":3.0230602398973135E-2},165]
[null,"Male 65-69",{"$f":"'Population 2016'!C168/'Population 2016'!C$5","v":4.0990938038261617E-3},{"$f":"'Population 2016'!D168/'Population 2016'!D$5","v":6.3574034408223545E-3},{"$f":"'Population 2016'!E168/'Population 2016'!E$5","v":8.4286913026968991E-3},{"$f":"'Population 2016'!F168/'Population 2016'!F$5","v":1.5091424156579963E-2},{"$f":"'Population 2016'!G168/'Population 2016'!G$5","v":2.1233692415958426E-2},{"$f":"'Population 2016'!H168/'Population 2016'!H$5","v":7.5223807037965327E-3},{"$f":"'Population 2016'!I168/'Population 2016'!I$5","v":1.5304413365714765E-2},{"$f":"'Population 2016'!J168/'Population 2016'!J$5","v":6.6095552441057196E-3},{"$f":"'Population 2016'!K168/'Population 2016'!K$5","v":7.7021216273685201E-3},{"$f":"'Population 2016'!L168/'Population 2016'!L$5","v":1.7393928804028402E-2},{"$f":"'Population 2016'!M168/'Population 2016'!M$5","v":1.7393928804028402E-2},{"$f":"'Population 2016'!N168/'Population 2016'!N$5","v":4.0427259063984377E-3},{"$f":"'Population 2016'!O168/'Population 2016'!O$5","v":7.0239050534470632E-3},{"$f":"'Population 2016'!P168/'Population 2016'!P$5","v":2.5019722754423533E-3},{"$f":"'Population 2016'!Q168/'Population 2016'!Q$5","v":8.1197635750461222E-3},{"$f":"'Population 2016'!R168/'Population 2016'!R$5","v":3.4731463245861499E-3},{"$f":"'Population 2016'!S168/'Population 2016'!S$5","v":6.9350416879240071E-3},{"$f":"'Population 2016'!T168/'Population 2016'!T$5","v":3.1967911104079515E-3},{"$f":"'Population 2016'!U168/'Population 2016'!U$5","v":3.2886292214402695E-2},{"$f":"'Population 2016'!V168/'Population 2016'!V$5","v":6.9530838567863169E-3},{"$f":"'Population 2016'!W168/'Population 2016'!W$5","v":8.4782878695768699E-3},{"$f":"'Population 2016'!X168/'Population 2016'!X$5","v":8.4782878695768699E-3},{"$f":"'Population 2016'!Y168/'Population 2016'!Y$5","v":6.788445334732357E-3},{"$f":"'Population 2016'!Z168/'Population 2016'!Z$5","v":2.9714489249549445E-3},{"$f":"'Population 2016'!AA168/'Population 2016'!AA$5","v":4.6931981182029518E-3},{"$f":"'Population 2016'!AB168/'Population 2016'!AB$5","v":7.1011125553974803E-3},{"$f":"'Population 2016'!AC168/'Population 2016'!AC$5","v":3.8186177265778689E-3},{"$f":"'Population 2016'!AD168/'Population 2016'!AD$5","v":1.6126391008225091E-2},{"$f":"'Population 2016'!AE168/'Population 2016'!AE$5","v":1.4189057382519328E-2},{"$f":"'Population 2016'!AF168/'Population 2016'!AF$5","v":5.3989654496373043E-3},{"$f":"'Population 2016'!AG168/'Population 2016'!AG$5","v":1.4189057382519328E-2},{"$f":"'Population 2016'!AH168/'Population 2016'!AH$5","v":6.2639904145342408E-3},{"$f":"'Population 2016'!AI168/'Population 2016'!AI$5","v":5.1964848193192751E-3},{"$f":"'Population 2016'!AJ168/'Population 2016'!AJ$5","v":9.2295680785210391E-3},{"$f":"'Population 2016'!AK168/'Population 2016'!AK$5","v":1.092490854003495E-2},{"$f":"'Population 2016'!AL168/'Population 2016'!AL$5","v":6.766463879675777E-3},{"$f":"'Population 2016'!AM168/'Population 2016'!AM$5","v":5.9726684317851723E-3},{"$f":"'Population 2016'!AN168/'Population 2016'!AN$5","v":1.2763172248281881E-2},{"$f":"'Population 2016'!AO168/'Population 2016'!AO$5","v":1.2763172248281881E-2},{"$f":"'Population 2016'!AP168/'Population 2016'!AP$5","v":9.5746873167097315E-3},{"$f":"'Population 2016'!AQ168/'Population 2016'!AQ$5","v":6.2887049926015235E-3},{"$f":"'Population 2016'!AR168/'Population 2016'!AR$5","v":7.434309032091772E-3},{"$f":"'Population 2016'!AS168/'Population 2016'!AS$5","v":1.5304413365714765E-2},{"$f":"'Population 2016'!AT168/'Population 2016'!AT$5","v":1.4604312753730163E-2},{"$f":"'Population 2016'!AU168/'Population 2016'!AU$5","v":1.4604312753730163E-2},{"$f":"'Population 2016'!AV168/'Population 2016'!AV$5","v":8.9536479780382219E-3},{"$f":"'Population 2016'!AW168/'Population 2016'!AW$5","v":6.570718164622613E-3},{"$f":"'Population 2016'!AX168/'Population 2016'!AX$5","v":6.0186309211955483E-3},{"$f":"'Population 2016'!AY168/'Population 2016'!AY$5","v":8.8277592484930084E-3},{"$f":"'Population 2016'!AZ168/'Population 2016'!AZ$5","v":9.1353095822954474E-3},{"$f":"'Population 2016'!BA168/'Population 2016'!BA$5","v":5.3714100626214636E-3},{"$f":"'Population 2016'!BB168/'Population 2016'!BB$5","v":7.4159491241032154E-3},{"$f":"'Population 2016'!BC168/'Population 2016'!BC$5","v":3.2886292214402695E-2},166]
[null,"Male 70-74",{"$f":"'Population 2016'!C169/'Population 2016'!C$5","v":2.5351004073538358E-3},{"$f":"'Population 2016'!D169/'Population 2016'!D$5","v":4.327924650098295E-3},{"$f":"'Population 2016'!E169/'Population 2016'!E$5","v":5.9722762623113743E-3},{"$f":"'Population 2016'!F169/'Population 2016'!F$5","v":9.8583569405099152E-3},{"$f":"'Population 2016'!G169/'Population 2016'!G$5","v":1.5333188978509176E-2},{"$f":"'Population 2016'!H169/'Population 2016'!H$5","v":5.7098760428386615E-3},{"$f":"'Population 2016'!I169/'Population 2016'!I$5","v":1.1295117661837367E-2},{"$f":"'Population 2016'!J169/'Population 2016'!J$5","v":4.735327533731952E-3},{"$f":"'Population 2016'!K169/'Population 2016'!K$5","v":5.8829088503520293E-3},{"$f":"'Population 2016'!L169/'Population 2016'!L$5","v":1.3938970342954268E-2},{"$f":"'Population 2016'!M169/'Population 2016'!M$5","v":1.3938970342954268E-2},{"$f":"'Population 2016'!N169/'Population 2016'!N$5","v":2.8451788685189801E-3},{"$f":"'Population 2016'!O169/'Population 2016'!O$5","v":5.3991935883337793E-3},{"$f":"'Population 2016'!P169/'Population 2016'!P$5","v":1.3862278823396821E-3},{"$f":"'Population 2016'!Q169/'Population 2016'!Q$5","v":6.1808909413520402E-3},{"$f":"'Population 2016'!R169/'Population 2016'!R$5","v":2.8876350668015117E-3},{"$f":"'Population 2016'!S169/'Population 2016'!S$5","v":4.9393525882172259E-3},{"$f":"'Population 2016'!T169/'Population 2016'!T$5","v":1.8962043340483845E-3},{"$f":"'Population 2016'!U169/'Population 2016'!U$5","v":2.3724162351170718E-2},{"$f":"'Population 2016'!V169/'Population 2016'!V$5","v":5.2434342586302959E-3},{"$f":"'Population 2016'!W169/'Population 2016'!W$5","v":6.21000268010642E-3},{"$f":"'Population 2016'!X169/'Population 2016'!X$5","v":6.21000268010642E-3},{"$f":"'Population 2016'!Y169/'Population 2016'!Y$5","v":4.9999205100077901E-3},{"$f":"'Population 2016'!Z169/'Population 2016'!Z$5","v":2.1080833089745501E-3},{"$f":"'Population 2016'!AA169/'Population 2016'!AA$5","v":3.4441589814218714E-3},{"$f":"'Population 2016'!AB169/'Population 2016'!AB$5","v":4.92922428175184E-3},{"$f":"'Population 2016'!AC169/'Population 2016'!AC$5","v":2.8060427660362292E-3},{"$f":"'Population 2016'!AD169/'Population 2016'!AD$5","v":1.2114332502140012E-2},{"$f":"'Population 2016'!AE169/'Population 2016'!AE$5","v":1.0893335660530395E-2},{"$f":"'Population 2016'!AF169/'Population 2016'!AF$5","v":4.5393536322369515E-3},{"$f":"'Population 2016'!AG169/'Population 2016'!AG$5","v":1.0893335660530395E-2},{"$f":"'Population 2016'!AH169/'Population 2016'!AH$5","v":4.5902492035332469E-3},{"$f":"'Population 2016'!AI169/'Population 2016'!AI$5","v":3.5777955201679937E-3},{"$f":"'Population 2016'!AJ169/'Population 2016'!AJ$5","v":6.5527144968351783E-3},{"$f":"'Population 2016'!AK169/'Population 2016'!AK$5","v":8.020818928126925E-3},{"$f":"'Population 2016'!AL169/'Population 2016'!AL$5","v":5.090367322324897E-3},{"$f":"'Population 2016'!AM169/'Population 2016'!AM$5","v":4.2015132691757429E-3},{"$f":"'Population 2016'!AN169/'Population 2016'!AN$5","v":1.0635976873568233E-2},{"$f":"'Population 2016'!AO169/'Population 2016'!AO$5","v":1.0635976873568233E-2},{"$f":"'Population 2016'!AP169/'Population 2016'!AP$5","v":7.6882836897420861E-3},{"$f":"'Population 2016'!AQ169/'Population 2016'!AQ$5","v":4.6514495533512357E-3},{"$f":"'Population 2016'!AR169/'Population 2016'!AR$5","v":5.4437917805338328E-3},{"$f":"'Population 2016'!AS169/'Population 2016'!AS$5","v":1.1295117661837367E-2},{"$f":"'Population 2016'!AT169/'Population 2016'!AT$5","v":1.0913692202246006E-2},{"$f":"'Population 2016'!AU169/'Population 2016'!AU$5","v":1.0913692202246006E-2},{"$f":"'Population 2016'!AV169/'Population 2016'!AV$5","v":6.7785872663921444E-3},{"$f":"'Population 2016'!AW169/'Population 2016'!AW$5","v":4.9995423759838916E-3},{"$f":"'Population 2016'!AX169/'Population 2016'!AX$5","v":4.1146478909234955E-3},{"$f":"'Population 2016'!AY169/'Population 2016'!AY$5","v":6.3966830880328018E-3},{"$f":"'Population 2016'!AZ169/'Population 2016'!AZ$5","v":6.5609701376624424E-3},{"$f":"'Population 2016'!BA169/'Population 2016'!BA$5","v":4.1027855754696609E-3},{"$f":"'Population 2016'!BB169/'Population 2016'!BB$5","v":5.5654143333586517E-3},{"$f":"'Population 2016'!BC169/'Population 2016'!BC$5","v":2.3724162351170718E-2},167]
[null,"Male 75-79",{"$f":"'Population 2016'!C170/'Population 2016'!C$5","v":2.2948791993989358E-3},{"$f":"'Population 2016'!D170/'Population 2016'!D$5","v":3.2496112203280422E-3},{"$f":"'Population 2016'!E170/'Population 2016'!E$5","v":4.1252771670596622E-3},{"$f":"'Population 2016'!F170/'Population 2016'!F$5","v":7.3654390934844195E-3},{"$f":"'Population 2016'!G170/'Population 2016'!G$5","v":1.1516808314837871E-2},{"$f":"'Population 2016'!H170/'Population 2016'!H$5","v":4.2216119294582266E-3},{"$f":"'Population 2016'!I170/'Population 2016'!I$5","v":8.3640398626580684E-3},{"$f":"'Population 2016'!J170/'Population 2016'!J$5","v":3.3172171865022432E-3},{"$f":"'Population 2016'!K170/'Population 2016'!K$5","v":3.8983130936067665E-3},{"$f":"'Population 2016'!L170/'Population 2016'!L$5","v":1.0460184582148587E-2},{"$f":"'Population 2016'!M170/'Population 2016'!M$5","v":1.0460184582148587E-2},{"$f":"'Population 2016'!N170/'Population 2016'!N$5","v":2.4754663601803555E-3},{"$f":"'Population 2016'!O170/'Population 2016'!O$5","v":4.0320583311043087E-3},{"$f":"'Population 2016'!P170/'Population 2016'!P$5","v":7.6636988617153159E-4},{"$f":"'Population 2016'!Q170/'Population 2016'!Q$5","v":4.1010093888438444E-3},{"$f":"'Population 2016'!R170/'Population 2016'!R$5","v":2.2888167349763133E-3},{"$f":"'Population 2016'!S170/'Population 2016'!S$5","v":3.6709734478905364E-3},{"$f":"'Population 2016'!T170/'Population 2016'!T$5","v":1.5146368361539857E-3},{"$f":"'Population 2016'!U170/'Population 2016'!U$5","v":1.8279998229540122E-2},{"$f":"'Population 2016'!V170/'Population 2016'!V$5","v":3.7245937674113311E-3},{"$f":"'Population 2016'!W170/'Population 2016'!W$5","v":4.6999915021015953E-3},{"$f":"'Population 2016'!X170/'Population 2016'!X$5","v":4.6999915021015953E-3},{"$f":"'Population 2016'!Y170/'Population 2016'!Y$5","v":3.5293556541231459E-3},{"$f":"'Population 2016'!Z170/'Population 2016'!Z$5","v":1.5021787399120761E-3},{"$f":"'Population 2016'!AA170/'Population 2016'!AA$5","v":2.5379412247360242E-3},{"$f":"'Population 2016'!AB170/'Population 2016'!AB$5","v":3.8750089557127213E-3},{"$f":"'Population 2016'!AC170/'Population 2016'!AC$5","v":1.9610236212328383E-3},{"$f":"'Population 2016'!AD170/'Population 2016'!AD$5","v":8.533998287989876E-3},{"$f":"'Population 2016'!AE170/'Population 2016'!AE$5","v":7.4025400671464802E-3},{"$f":"'Population 2016'!AF170/'Population 2016'!AF$5","v":3.2273145425206233E-3},{"$f":"'Population 2016'!AG170/'Population 2016'!AG$5","v":7.4025400671464802E-3},{"$f":"'Population 2016'!AH170/'Population 2016'!AH$5","v":3.5741155271541755E-3},{"$f":"'Population 2016'!AI170/'Population 2016'!AI$5","v":2.6276358386560505E-3},{"$f":"'Population 2016'!AJ170/'Population 2016'!AJ$5","v":4.7960293338538329E-3},{"$f":"'Population 2016'!AK170/'Population 2016'!AK$5","v":7.0905045069962159E-3},{"$f":"'Population 2016'!AL170/'Population 2016'!AL$5","v":3.8044731381139036E-3},{"$f":"'Population 2016'!AM170/'Population 2016'!AM$5","v":3.0642070911402401E-3},{"$f":"'Population 2016'!AN170/'Population 2016'!AN$5","v":7.6360859605105269E-3},{"$f":"'Population 2016'!AO170/'Population 2016'!AO$5","v":7.6360859605105269E-3},{"$f":"'Population 2016'!AP170/'Population 2016'!AP$5","v":5.8811407193697192E-3},{"$f":"'Population 2016'!AQ170/'Population 2016'!AQ$5","v":3.2813613196689866E-3},{"$f":"'Population 2016'!AR170/'Population 2016'!AR$5","v":4.0425211020448078E-3},{"$f":"'Population 2016'!AS170/'Population 2016'!AS$5","v":8.3640398626580684E-3},{"$f":"'Population 2016'!AT170/'Population 2016'!AT$5","v":8.2248115147361203E-3},{"$f":"'Population 2016'!AU170/'Population 2016'!AU$5","v":8.2248115147361203E-3},{"$f":"'Population 2016'!AV170/'Population 2016'!AV$5","v":4.9202829690634569E-3},{"$f":"'Population 2016'!AW170/'Population 2016'!AW$5","v":4.1109890780401488E-3},{"$f":"'Population 2016'!AX170/'Population 2016'!AX$5","v":3.0029262557982033E-3},{"$f":"'Population 2016'!AY170/'Population 2016'!AY$5","v":4.9004008445274012E-3},{"$f":"'Population 2016'!AZ170/'Population 2016'!AZ$5","v":5.0767699662315697E-3},{"$f":"'Population 2016'!BA170/'Population 2016'!BA$5","v":2.5237529691211403E-3},{"$f":"'Population 2016'!BB170/'Population 2016'!BB$5","v":3.991078765113276E-3},{"$f":"'Population 2016'!BC170/'Population 2016'!BC$5","v":1.8279998229540122E-2},168]
[null,"Male 80-84",{"$f":"'Population 2016'!C171/'Population 2016'!C$5","v":1.6202153813128345E-3},{"$f":"'Population 2016'!D171/'Population 2016'!D$5","v":2.2397621353051063E-3},{"$f":"'Population 2016'!E171/'Population 2016'!E$5","v":2.8080011625781108E-3},{"$f":"'Population 2016'!F171/'Population 2016'!F$5","v":4.8416173062065413E-3},{"$f":"'Population 2016'!G171/'Population 2016'!G$5","v":6.8748985005142637E-3},{"$f":"'Population 2016'!H171/'Population 2016'!H$5","v":2.6036515970468172E-3},{"$f":"'Population 2016'!I171/'Population 2016'!I$5","v":5.4643664684699772E-3},{"$f":"'Population 2016'!J171/'Population 2016'!J$5","v":2.3469311594503371E-3},{"$f":"'Population 2016'!K171/'Population 2016'!K$5","v":2.4807446959315789E-3},{"$f":"'Population 2016'!L171/'Population 2016'!L$5","v":7.0846504535129386E-3},{"$f":"'Population 2016'!M171/'Population 2016'!M$5","v":7.0846504535129386E-3},{"$f":"'Population 2016'!N171/'Population 2016'!N$5","v":1.6878179728502423E-3},{"$f":"'Population 2016'!O171/'Population 2016'!O$5","v":2.5658553016118329E-3},{"$f":"'Population 2016'!P171/'Population 2016'!P$5","v":7.7764003155640703E-4},{"$f":"'Population 2016'!Q171/'Population 2016'!Q$5","v":3.2197036462556258E-3},{"$f":"'Population 2016'!R171/'Population 2016'!R$5","v":1.7166125512322352E-3},{"$f":"'Population 2016'!S171/'Population 2016'!S$5","v":2.4970386833571357E-3},{"$f":"'Population 2016'!T171/'Population 2016'!T$5","v":1.2680139411734596E-3},{"$f":"'Population 2016'!U171/'Population 2016'!U$5","v":1.0844066746337361E-2},{"$f":"'Population 2016'!V171/'Population 2016'!V$5","v":2.2133856404698482E-3},{"$f":"'Population 2016'!W171/'Population 2016'!W$5","v":2.9742644415246535E-3},{"$f":"'Population 2016'!X171/'Population 2016'!X$5","v":2.9742644415246535E-3},{"$f":"'Population 2016'!Y171/'Population 2016'!Y$5","v":2.2773882768159491E-3},{"$f":"'Population 2016'!Z171/'Population 2016'!Z$5","v":1.0356515797074236E-3},{"$f":"'Population 2016'!AA171/'Population 2016'!AA$5","v":1.7234082557500646E-3},{"$f":"'Population 2016'!AB171/'Population 2016'!AB$5","v":2.521928702291639E-3},{"$f":"'Population 2016'!AC171/'Population 2016'!AC$5","v":1.420087253139603E-3},{"$f":"'Population 2016'!AD171/'Population 2016'!AD$5","v":5.6607986899400798E-3},{"$f":"'Population 2016'!AE171/'Population 2016'!AE$5","v":5.2002587295557449E-3},{"$f":"'Population 2016'!AF171/'Population 2016'!AF$5","v":2.1264081798850836E-3},{"$f":"'Population 2016'!AG171/'Population 2016'!AG$5","v":5.2002587295557449E-3},{"$f":"'Population 2016'!AH171/'Population 2016'!AH$5","v":2.2681886999247653E-3},{"$f":"'Population 2016'!AI171/'Population 2016'!AI$5","v":1.9098893166506255E-3},{"$f":"'Population 2016'!AJ171/'Population 2016'!AJ$5","v":3.109053899562223E-3},{"$f":"'Population 2016'!AK171/'Population 2016'!AK$5","v":3.9726940145581634E-3},{"$f":"'Population 2016'!AL171/'Population 2016'!AL$5","v":2.4298965963711178E-3},{"$f":"'Population 2016'!AM171/'Population 2016'!AM$5","v":1.8508390349558661E-3},{"$f":"'Population 2016'!AN171/'Population 2016'!AN$5","v":5.7270644703828954E-3},{"$f":"'Population 2016'!AO171/'Population 2016'!AO$5","v":5.7270644703828954E-3},{"$f":"'Population 2016'!AP171/'Population 2016'!AP$5","v":4.1928887338902711E-3},{"$f":"'Population 2016'!AQ171/'Population 2016'!AQ$5","v":2.2948977914177674E-3},{"$f":"'Population 2016'!AR171/'Population 2016'!AR$5","v":2.6947170313200704E-3},{"$f":"'Population 2016'!AS171/'Population 2016'!AS$5","v":5.4643664684699772E-3},{"$f":"'Population 2016'!AT171/'Population 2016'!AT$5","v":4.90325301840038E-3},{"$f":"'Population 2016'!AU171/'Population 2016'!AU$5","v":4.90325301840038E-3},{"$f":"'Population 2016'!AV171/'Population 2016'!AV$5","v":2.8508077288565093E-3},{"$f":"'Population 2016'!AW171/'Population 2016'!AW$5","v":2.707608761974495E-3},{"$f":"'Population 2016'!AX171/'Population 2016'!AX$5","v":2.2745569086471498E-3},{"$f":"'Population 2016'!AY171/'Population 2016'!AY$5","v":3.2419448609283682E-3},{"$f":"'Population 2016'!AZ171/'Population 2016'!AZ$5","v":3.477515517945591E-3},{"$f":"'Population 2016'!BA171/'Population 2016'!BA$5","v":2.2133448499244224E-3},{"$f":"'Population 2016'!BB171/'Population 2016'!BB$5","v":2.4512680996802995E-3},{"$f":"'Population 2016'!BC171/'Population 2016'!BC$5","v":1.0844066746337361E-2},169]
[null,"Male 85-89",{"$f":"'Population 2016'!C172/'Population 2016'!C$5","v":8.0755214589093953E-4},{"$f":"'Population 2016'!D172/'Population 2016'!D$5","v":1.0196297057011238E-3},{"$f":"'Population 2016'!E172/'Population 2016'!E$5","v":1.2141440753050596E-3},{"$f":"'Population 2016'!F172/'Population 2016'!F$5","v":2.7504506824620138E-3},{"$f":"'Population 2016'!G172/'Population 2016'!G$5","v":3.3156498673740055E-3},{"$f":"'Population 2016'!H172/'Population 2016'!H$5","v":1.2126596479396135E-3},{"$f":"'Population 2016'!I172/'Population 2016'!I$5","v":2.7112469642408508E-3},{"$f":"'Population 2016'!J172/'Population 2016'!J$5","v":1.0283373278156954E-3},{"$f":"'Population 2016'!K172/'Population 2016'!K$5","v":1.3230638378301752E-3},{"$f":"'Population 2016'!L172/'Population 2016'!L$5","v":3.2802249297094657E-3},{"$f":"'Population 2016'!M172/'Population 2016'!M$5","v":3.2802249297094657E-3},{"$f":"'Population 2016'!N172/'Population 2016'!N$5","v":1.1573608956687376E-3},{"$f":"'Population 2016'!O172/'Population 2016'!O$5","v":1.0501183859878544E-3},{"$f":"'Population 2016'!P172/'Population 2016'!P$5","v":2.2540290769750929E-4},{"$f":"'Population 2016'!Q172/'Population 2016'!Q$5","v":1.6451040528313416E-3},{"$f":"'Population 2016'!R172/'Population 2016'!R$5","v":9.4480225687975728E-4},{"$f":"'Population 2016'!S172/'Population 2016'!S$5","v":1.2471953551020263E-3},{"$f":"'Population 2016'!T172/'Population 2016'!T$5","v":5.7700450901104219E-4},{"$f":"'Population 2016'!U172/'Population 2016'!U$5","v":6.5949630416500685E-3},{"$f":"'Population 2016'!V172/'Population 2016'!V$5","v":9.540455346852795E-4},{"$f":"'Population 2016'!W172/'Population 2016'!W$5","v":1.5263532903208937E-3},{"$f":"'Population 2016'!X172/'Population 2016'!X$5","v":1.5263532903208937E-3},{"$f":"'Population 2016'!Y172/'Population 2016'!Y$5","v":9.8965040301426054E-4},{"$f":"'Population 2016'!Z172/'Population 2016'!Z$5","v":4.5878397082366239E-4},{"$f":"'Population 2016'!AA172/'Population 2016'!AA$5","v":8.4177265228810012E-4},{"$f":"'Population 2016'!AB172/'Population 2016'!AB$5","v":1.2425411706907669E-3},{"$f":"'Population 2016'!AC172/'Population 2016'!AC$5","v":7.1780084026138705E-4},{"$f":"'Population 2016'!AD172/'Population 2016'!AD$5","v":2.7541032416539507E-3},{"$f":"'Population 2016'!AE172/'Population 2016'!AE$5","v":2.5410938510662326E-3},{"$f":"'Population 2016'!AF172/'Population 2016'!AF$5","v":1.3422009078707265E-3},{"$f":"'Population 2016'!AG172/'Population 2016'!AG$5","v":2.5410938510662326E-3},{"$f":"'Population 2016'!AH172/'Population 2016'!AH$5","v":1.0644325348541281E-3},{"$f":"'Population 2016'!AI172/'Population 2016'!AI$5","v":9.3922259165281298E-4},{"$f":"'Population 2016'!AJ172/'Population 2016'!AJ$5","v":1.6869754342916097E-3},{"$f":"'Population 2016'!AK172/'Population 2016'!AK$5","v":2.3886451353356047E-3},{"$f":"'Population 2016'!AL172/'Population 2016'!AL$5","v":1.0375835831219738E-3},{"$f":"'Population 2016'!AM172/'Population 2016'!AM$5","v":8.8376658420593213E-4},{"$f":"'Population 2016'!AN172/'Population 2016'!AN$5","v":2.8908039707646995E-3},{"$f":"'Population 2016'!AO172/'Population 2016'!AO$5","v":2.8908039707646995E-3},{"$f":"'Population 2016'!AP172/'Population 2016'!AP$5","v":2.2668547786249861E-3},{"$f":"'Population 2016'!AQ172/'Population 2016'!AQ$5","v":1.424891763029539E-3},{"$f":"'Population 2016'!AR172/'Population 2016'!AR$5","v":1.3408979672218505E-3},{"$f":"'Population 2016'!AS172/'Population 2016'!AS$5","v":2.7112469642408508E-3},{"$f":"'Population 2016'!AT172/'Population 2016'!AT$5","v":3.0052195919228132E-3},{"$f":"'Population 2016'!AU172/'Population 2016'!AU$5","v":3.0052195919228132E-3},{"$f":"'Population 2016'!AV172/'Population 2016'!AV$5","v":1.5943406187308626E-3},{"$f":"'Population 2016'!AW172/'Population 2016'!AW$5","v":1.254652510830435E-3},{"$f":"'Population 2016'!AX172/'Population 2016'!AX$5","v":8.6893185274160777E-4},{"$f":"'Population 2016'!AY172/'Population 2016'!AY$5","v":1.7808512591413971E-3},{"$f":"'Population 2016'!AZ172/'Population 2016'!AZ$5","v":2.0048207742002291E-3},{"$f":"'Population 2016'!BA172/'Population 2016'!BA$5","v":9.3122435759015326E-4},{"$f":"'Population 2016'!BB172/'Population 2016'!BB$5","v":1.2290865401213896E-3},{"$f":"'Population 2016'!BC172/'Population 2016'!BC$5","v":6.5949630416500685E-3},170]
[null,"Male 90+",{"$f":"'Population 2016'!C173/'Population 2016'!C$5","v":3.2199864045018479E-4},{"$f":"'Population 2016'!D173/'Population 2016'!D$5","v":4.5479886153575308E-4},{"$f":"'Population 2016'!E173/'Population 2016'!E$5","v":5.7660124039583913E-4},{"$f":"'Population 2016'!F173/'Population 2016'!F$5","v":1.205253669842905E-3},{"$f":"'Population 2016'!G173/'Population 2016'!G$5","v":1.3668597412439777E-3},{"$f":"'Population 2016'!H173/'Population 2016'!H$5","v":4.8311841589038077E-4},{"$f":"'Population 2016'!I173/'Population 2016'!I$5","v":9.7353655472740973E-4},{"$f":"'Population 2016'!J173/'Population 2016'!J$5","v":4.6441040611031406E-4},{"$f":"'Population 2016'!K173/'Population 2016'!K$5","v":6.3790577895383451E-4},{"$f":"'Population 2016'!L173/'Population 2016'!L$5","v":1.588486648769717E-3},{"$f":"'Population 2016'!M173/'Population 2016'!M$5","v":1.588486648769717E-3},{"$f":"'Population 2016'!N173/'Population 2016'!N$5","v":4.1793587899148857E-4},{"$f":"'Population 2016'!O173/'Population 2016'!O$5","v":3.4673720292051791E-4},{"$f":"'Population 2016'!P173/'Population 2016'!P$5","v":1.3524174461850558E-4},{"$f":"'Population 2016'!Q173/'Population 2016'!Q$5","v":6.9329385083606533E-4},{"$f":"'Population 2016'!R173/'Population 2016'!R$5","v":4.6574759141959865E-4},{"$f":"'Population 2016'!S173/'Population 2016'!S$5","v":5.0576287223882597E-4},{"$f":"'Population 2016'!T173/'Population 2016'!T$5","v":2.4429626389580416E-4},{"$f":"'Population 2016'!U173/'Population 2016'!U$5","v":2.6556898154295578E-3},{"$f":"'Population 2016'!V173/'Population 2016'!V$5","v":4.8847131375886305E-4},{"$f":"'Population 2016'!W173/'Population 2016'!W$5","v":6.4387922525313936E-4},{"$f":"'Population 2016'!X173/'Population 2016'!X$5","v":6.4387922525313936E-4},{"$f":"'Population 2016'!Y173/'Population 2016'!Y$5","v":4.7693995325988456E-4},{"$f":"'Population 2016'!Z173/'Population 2016'!Z$5","v":2.322956814297025E-4},{"$f":"'Population 2016'!AA173/'Population 2016'!AA$5","v":3.9862951173864257E-4},{"$f":"'Population 2016'!AB173/'Population 2016'!AB$5","v":5.3222521314596279E-4},{"$f":"'Population 2016'!AC173/'Population 2016'!AC$5","v":3.7441484751386475E-4},{"$f":"'Population 2016'!AD173/'Population 2016'!AD$5","v":1.0718672075626186E-3},{"$f":"'Population 2016'!AE173/'Population 2016'!AE$5","v":9.5996878818057675E-4},{"$f":"'Population 2016'!AF173/'Population 2016'!AF$5","v":5.7307454493356856E-4},{"$f":"'Population 2016'!AG173/'Population 2016'!AG$5","v":9.5996878818057675E-4},{"$f":"'Population 2016'!AH173/'Population 2016'!AH$5","v":4.42120319887055E-4},{"$f":"'Population 2016'!AI173/'Population 2016'!AI$5","v":3.8689955376673376E-4},{"$f":"'Population 2016'!AJ173/'Population 2016'!AJ$5","v":5.2979393804199312E-4},{"$f":"'Population 2016'!AK173/'Population 2016'!AK$5","v":9.303144211307092E-4},{"$f":"'Population 2016'!AL173/'Population 2016'!AL$5","v":5.2322590943757645E-4},{"$f":"'Population 2016'!AM173/'Population 2016'!AM$5","v":3.2597947778087661E-4},{"$f":"'Population 2016'!AN173/'Population 2016'!AN$5","v":1.145412894076579E-3},{"$f":"'Population 2016'!AO173/'Population 2016'!AO$5","v":1.145412894076579E-3},{"$f":"'Population 2016'!AP173/'Population 2016'!AP$5","v":1.0541667327172138E-3},{"$f":"'Population 2016'!AQ173/'Population 2016'!AQ$5","v":9.1110867539869573E-4},{"$f":"'Population 2016'!AR173/'Population 2016'!AR$5","v":5.7766214138665201E-4},{"$f":"'Population 2016'!AS173/'Population 2016'!AS$5","v":9.7353655472740973E-4},{"$f":"'Population 2016'!AT173/'Population 2016'!AT$5","v":1.0544630147097591E-3},{"$f":"'Population 2016'!AU173/'Population 2016'!AU$5","v":1.0544630147097591E-3},{"$f":"'Population 2016'!AV173/'Population 2016'!AV$5","v":5.8072009291521487E-4},{"$f":"'Population 2016'!AW173/'Population 2016'!AW$5","v":5.6440295320031727E-4},{"$f":"'Population 2016'!AX173/'Population 2016'!AX$5","v":3.7057387837509745E-4},{"$f":"'Population 2016'!AY173/'Population 2016'!AY$5","v":7.634405311954959E-4},{"$f":"'Population 2016'!AZ173/'Population 2016'!AZ$5","v":8.6865979025605334E-4},{"$f":"'Population 2016'!BA173/'Population 2016'!BA$5","v":3.2390412437918379E-4},{"$f":"'Population 2016'!BB173/'Population 2016'!BB$5","v":5.593034255608571E-4},{"$f":"'Population 2016'!BC173/'Population 2016'!BC$5","v":2.6556898154295578E-3},171]
["SIMD Q4","Female 0-4",{"$f":"'Population 2016'!C174/'Population 2016'!C$5","v":0},{"$f":"'Population 2016'!D174/'Population 2016'!D$5","v":0},{"$f":"'Population 2016'!E174/'Population 2016'!E$5","v":0},{"$f":"'Population 2016'!F174/'Population 2016'!F$5","v":0},{"$f":"'Population 2016'!G174/'Population 2016'!G$5","v":0},{"$f":"'Population 2016'!H174/'Population 2016'!H$5","v":0},{"$f":"'Population 2016'!I174/'Population 2016'!I$5","v":0},{"$f":"'Population 2016'!J174/'Population 2016'!J$5","v":0},{"$f":"'Population 2016'!K174/'Population 2016'!K$5","v":0},{"$f":"'Population 2016'!L174/'Population 2016'!L$5","v":0},{"$f":"'Population 2016'!M174/'Population 2016'!M$5","v":0},{"$f":"'Population 2016'!N174/'Population 2016'!N$5","v":0},{"$f":"'Population 2016'!O174/'Population 2016'!O$5","v":0},{"$f":"'Population 2016'!P174/'Population 2016'!P$5","v":0},{"$f":"'Population 2016'!Q174/'Population 2016'!Q$5","v":0},{"$f":"'Population 2016'!R174/'Population 2016'!R$5","v":0},{"$f":"'Population 2016'!S174/'Population 2016'!S$5","v":0},{"$f":"'Population 2016'!T174/'Population 2016'!T$5","v":0},{"$f":"'Population 2016'!U174/'Population 2016'!U$5","v":0},{"$f":"'Population 2016'!V174/'Population 2016'!V$5","v":0},{"$f":"'Population 2016'!W174/'Population 2016'!W$5","v":0},{"$f":"'Population 2016'!X174/'Population 2016'!X$5","v":0},{"$f":"'Population 2016'!Y174/'Population 2016'!Y$5","v":0},{"$f":"'Population 2016'!Z174/'Population 2016'!Z$5","v":0},{"$f":"'Population 2016'!AA174/'Population 2016'!AA$5","v":0},{"$f":"'Population 2016'!AB174/'Population 2016'!AB$5","v":0},{"$f":"'Population 2016'!AC174/'Population 2016'!AC$5","v":0},{"$f":"'Population 2016'!AD174/'Population 2016'!AD$5","v":0},{"$f":"'Population 2016'!AE174/'Population 2016'!AE$5","v":0},{"$f":"'Population 2016'!AF174/'Population 2016'!AF$5","v":0},{"$f":"'Population 2016'!AG174/'Population 2016'!AG$5","v":0},{"$f":"'Population 2016'!AH174/'Population 2016'!AH$5","v":0},{"$f":"'Population 2016'!AI174/'Population 2016'!AI$5","v":0},{"$f":"'Population 2016'!AJ174/'Population 2016'!AJ$5","v":0},{"$f":"'Population 2016'!AK174/'Population 2016'!AK$5","v":0},{"$f":"'Population 2016'!AL174/'Population 2016'!AL$5","v":0},{"$f":"'Population 2016'!AM174/'Population 2016'!AM$5","v":0},{"$f":"'Population 2016'!AN174/'Population 2016'!AN$5","v":0},{"$f":"'Population 2016'!AO174/'Population 2016'!AO$5","v":0},{"$f":"'Population 2016'!AP174/'Population 2016'!AP$5","v":0},{"$f":"'Population 2016'!AQ174/'Population 2016'!AQ$5","v":0},{"$f":"'Population 2016'!AR174/'Population 2016'!AR$5","v":0},{"$f":"'Population 2016'!AS174/'Population 2016'!AS$5","v":0},{"$f":"'Population 2016'!AT174/'Population 2016'!AT$5","v":0},{"$f":"'Population 2016'!AU174/'Population 2016'!AU$5","v":0},{"$f":"'Population 2016'!AV174/'Population 2016'!AV$5","v":0},{"$f":"'Population 2016'!AW174/'Population 2016'!AW$5","v":0},{"$f":"'Population 2016'!AX174/'Population 2016'!AX$5","v":0},{"$f":"'Population 2016'!AY174/'Population 2016'!AY$5","v":0},{"$f":"'Population 2016'!AZ174/'Population 2016'!AZ$5","v":0},{"$f":"'Population 2016'!BA174/'Population 2016'!BA$5","v":0},{"$f":"'Population 2016'!BB174/'Population 2016'!BB$5","v":0},{"$f":"'Population 2016'!BC174/'Population 2016'!BC$5","v":0},172]
[null,"Female 5-9",{"$f":"'Population 2016'!C175/'Population 2016'!C$5","v":0},{"$f":"'Population 2016'!D175/'Population 2016'!D$5","v":0},{"$f":"'Population 2016'!E175/'Population 2016'!E$5","v":0},{"$f":"'Population 2016'!F175/'Population 2016'!F$5","v":0},{"$f":"'Population 2016'!G175/'Population 2016'!G$5","v":0},{"$f":"'Population 2016'!H175/'Population 2016'!H$5","v":0},{"$f":"'Population 2016'!I175/'Population 2016'!I$5","v":0},{"$f":"'Population 2016'!J175/'Population 2016'!J$5","v":0},{"$f":"'Population 2016'!K175/'Population 2016'!K$5","v":0},{"$f":"'Population 2016'!L175/'Population 2016'!L$5","v":0},{"$f":"'Population 2016'!M175/'Population 2016'!M$5","v":0},{"$f":"'Population 2016'!N175/'Population 2016'!N$5","v":0},{"$f":"'Population 2016'!O175/'Population 2016'!O$5","v":0},{"$f":"'Population 2016'!P175/'Population 2016'!P$5","v":0},{"$f":"'Population 2016'!Q175/'Population 2016'!Q$5","v":0},{"$f":"'Population 2016'!R175/'Population 2016'!R$5","v":0},{"$f":"'Population 2016'!S175/'Population 2016'!S$5","v":0},{"$f":"'Population 2016'!T175/'Population 2016'!T$5","v":0},{"$f":"'Population 2016'!U175/'Population 2016'!U$5","v":0},{"$f":"'Population 2016'!V175/'Population 2016'!V$5","v":0},{"$f":"'Population 2016'!W175/'Population 2016'!W$5","v":0},{"$f":"'Population 2016'!X175/'Population 2016'!X$5","v":0},{"$f":"'Population 2016'!Y175/'Population 2016'!Y$5","v":0},{"$f":"'Population 2016'!Z175/'Population 2016'!Z$5","v":0},{"$f":"'Population 2016'!AA175/'Population 2016'!AA$5","v":0},{"$f":"'Population 2016'!AB175/'Population 2016'!AB$5","v":0},{"$f":"'Population 2016'!AC175/'Population 2016'!AC$5","v":0},{"$f":"'Population 2016'!AD175/'Population 2016'!AD$5","v":0},{"$f":"'Population 2016'!AE175/'Population 2016'!AE$5","v":0},{"$f":"'Population 2016'!AF175/'Population 2016'!AF$5","v":0},{"$f":"'Population 2016'!AG175/'Population 2016'!AG$5","v":0},{"$f":"'Population 2016'!AH175/'Population 2016'!AH$5","v":0},{"$f":"'Population 2016'!AI175/'Population 2016'!AI$5","v":0},{"$f":"'Population 2016'!AJ175/'Population 2016'!AJ$5","v":0},{"$f":"'Population 2016'!AK175/'Population 2016'!AK$5","v":0},{"$f":"'Population 2016'!AL175/'Population 2016'!AL$5","v":0},{"$f":"'Population 2016'!AM175/'Population 2016'!AM$5","v":0},{"$f":"'Population 2016'!AN175/'Population 2016'!AN$5","v":0},{"$f":"'Population 2016'!AO175/'Population 2016'!AO$5","v":0},{"$f":"'Population 2016'!AP175/'Population 2016'!AP$5","v":0},{"$f":"'Population 2016'!AQ175/'Population 2016'!AQ$5","v":0},{"$f":"'Population 2016'!AR175/'Population 2016'!AR$5","v":0},{"$f":"'Population 2016'!AS175/'Population 2016'!AS$5","v":0},{"$f":"'Population 2016'!AT175/'Population 2016'!AT$5","v":0},{"$f":"'Population 2016'!AU175/'Population 2016'!AU$5","v":0},{"$f":"'Population 2016'!AV175/'Population 2016'!AV$5","v":0},{"$f":"'Population 2016'!AW175/'Population 2016'!AW$5","v":0},{"$f":"'Population 2016'!AX175/'Population 2016'!AX$5","v":0},{"$f":"'Population 2016'!AY175/'Population 2016'!AY$5","v":0},{"$f":"'Population 2016'!AZ175/'Population 2016'!AZ$5","v":0},{"$f":"'Population 2016'!BA175/'Population 2016'!BA$5","v":0},{"$f":"'Population 2016'!BB175/'Population 2016'!BB$5","v":0},{"$f":"'Population 2016'!BC175/'Population 2016'!BC$5","v":0},173]
[null,"Female 10-15",{"$f":"'Population 2016'!C176/'Population 2016'!C$5","v":0},{"$f":"'Population 2016'!D176/'Population 2016'!D$5","v":0},{"$f":"'Population 2016'!E176/'Population 2016'!E$5","v":0},{"$f":"'Population 2016'!F176/'Population 2016'!F$5","v":0},{"$f":"'Population 2016'!G176/'Population 2016'!G$5","v":0},{"$f":"'Population 2016'!H176/'Population 2016'!H$5","v":0},{"$f":"'Population 2016'!I176/'Population 2016'!I$5","v":0},{"$f":"'Population 2016'!J176/'Population 2016'!J$5","v":0},{"$f":"'Population 2016'!K176/'Population 2016'!K$5","v":0},{"$f":"'Population 2016'!L176/'Population 2016'!L$5","v":0},{"$f":"'Population 2016'!M176/'Population 2016'!M$5","v":0},{"$f":"'Population 2016'!N176/'Population 2016'!N$5","v":0},{"$f":"'Population 2016'!O176/'Population 2016'!O$5","v":0},{"$f":"'Population 2016'!P176/'Population 2016'!P$5","v":0},{"$f":"'Population 2016'!Q176/'Population 2016'!Q$5","v":0},{"$f":"'Population 2016'!R176/'Population 2016'!R$5","v":0},{"$f":"'Population 2016'!S176/'Population 2016'!S$5","v":0},{"$f":"'Population 2016'!T176/'Population 2016'!T$5","v":0},{"$f":"'Population 2016'!U176/'Population 2016'!U$5","v":0},{"$f":"'Population 2016'!V176/'Population 2016'!V$5","v":0},{"$f":"'Population 2016'!W176/'Population 2016'!W$5","v":0},{"$f":"'Population 2016'!X176/'Population 2016'!X$5","v":0},{"$f":"'Population 2016'!Y176/'Population 2016'!Y$5","v":0},{"$f":"'Population 2016'!Z176/'Population 2016'!Z$5","v":0},{"$f":"'Population 2016'!AA176/'Population 2016'!AA$5","v":0},{"$f":"'Population 2016'!AB176/'Population 2016'!AB$5","v":0},{"$f":"'Population 2016'!AC176/'Population 2016'!AC$5","v":0},{"$f":"'Population 2016'!AD176/'Population 2016'!AD$5","v":0},{"$f":"'Population 2016'!AE176/'Population 2016'!AE$5","v":0},{"$f":"'Population 2016'!AF176/'Population 2016'!AF$5","v":0},{"$f":"'Population 2016'!AG176/'Population 2016'!AG$5","v":0},{"$f":"'Population 2016'!AH176/'Population 2016'!AH$5","v":0},{"$f":"'Population 2016'!AI176/'Population 2016'!AI$5","v":0},{"$f":"'Population 2016'!AJ176/'Population 2016'!AJ$5","v":0},{"$f":"'Population 2016'!AK176/'Population 2016'!AK$5","v":0},{"$f":"'Population 2016'!AL176/'Population 2016'!AL$5","v":0},{"$f":"'Population 2016'!AM176/'Population 2016'!AM$5","v":0},{"$f":"'Population 2016'!AN176/'Population 2016'!AN$5","v":0},{"$f":"'Population 2016'!AO176/'Population 2016'!AO$5","v":0},{"$f":"'Population 2016'!AP176/'Population 2016'!AP$5","v":0},{"$f":"'Population 2016'!AQ176/'Population 2016'!AQ$5","v":0},{"$f":"'Population 2016'!AR176/'Population 2016'!AR$5","v":0},{"$f":"'Population 2016'!AS176/'Population 2016'!AS$5","v":0},{"$f":"'Population 2016'!AT176/'Population 2016'!AT$5","v":0},{"$f":"'Population 2016'!AU176/'Population 2016'!AU$5","v":0},{"$f":"'Population 2016'!AV176/'Population 2016'!AV$5","v":0},{"$f":"'Population 2016'!AW176/'Population 2016'!AW$5","v":0},{"$f":"'Population 2016'!AX176/'Population 2016'!AX$5","v":0},{"$f":"'Population 2016'!AY176/'Population 2016'!AY$5","v":0},{"$f":"'Population 2016'!AZ176/'Population 2016'!AZ$5","v":0},{"$f":"'Population 2016'!BA176/'Population 2016'!BA$5","v":0},{"$f":"'Population 2016'!BB176/'Population 2016'!BB$5","v":0},{"$f":"'Population 2016'!BC176/'Population 2016'!BC$5","v":0},174]
[null,"Female 16-19",{"$f":"'Population 2016'!C177/'Population 2016'!C$5","v":5.5301988724936494E-3},{"$f":"'Population 2016'!D177/'Population 2016'!D$5","v":7.2767817845720492E-3},{"$f":"'Population 2016'!E177/'Population 2016'!E$5","v":8.8787215391034086E-3},{"$f":"'Population 2016'!F177/'Population 2016'!F$5","v":5.8614473345351536E-3},{"$f":"'Population 2016'!G177/'Population 2016'!G$5","v":5.8599036431548745E-3},{"$f":"'Population 2016'!H177/'Population 2016'!H$5","v":3.5439491850213839E-3},{"$f":"'Population 2016'!I177/'Population 2016'!I$5","v":9.1596181224353063E-3},{"$f":"'Population 2016'!J177/'Population 2016'!J$5","v":7.2978778103049355E-3},{"$f":"'Population 2016'!K177/'Population 2016'!K$5","v":4.2290790530643101E-3},{"$f":"'Population 2016'!L177/'Population 2016'!L$5","v":3.8203103902911695E-3},{"$f":"'Population 2016'!M177/'Population 2016'!M$5","v":3.8203103902911695E-3},{"$f":"'Population 2016'!N177/'Population 2016'!N$5","v":7.3219151107931941E-3},{"$f":"'Population 2016'!O177/'Population 2016'!O$5","v":3.3385839252632727E-3},{"$f":"'Population 2016'!P177/'Population 2016'!P$5","v":4.0797926293249182E-3},{"$f":"'Population 2016'!Q177/'Population 2016'!Q$5","v":1.0270149586961375E-2},{"$f":"'Population 2016'!R177/'Population 2016'!R$5","v":4.617554692074307E-3},{"$f":"'Population 2016'!S177/'Population 2016'!S$5","v":4.6569021185550539E-3},{"$f":"'Population 2016'!T177/'Population 2016'!T$5","v":3.089766080510742E-3},{"$f":"'Population 2016'!U177/'Population 2016'!U$5","v":1.2835834107909529E-3},{"$f":"'Population 2016'!V177/'Population 2016'!V$5","v":4.6175803878767529E-3},{"$f":"'Population 2016'!W177/'Population 2016'!W$5","v":4.0397701645323867E-3},{"$f":"'Population 2016'!X177/'Population 2016'!X$5","v":4.0397701645323867E-3},{"$f":"'Population 2016'!Y177/'Population 2016'!Y$5","v":5.9021319215910714E-3},{"$f":"'Population 2016'!Z177/'Population 2016'!Z$5","v":2.6830151205130639E-3},{"$f":"'Population 2016'!AA177/'Population 2016'!AA$5","v":3.8899596520495868E-3},{"$f":"'Population 2016'!AB177/'Population 2016'!AB$5","v":7.6783722096557937E-3},{"$f":"'Population 2016'!AC177/'Population 2016'!AC$5","v":3.3945567114378565E-3},{"$f":"'Population 2016'!AD177/'Population 2016'!AD$5","v":7.2425471733224165E-3},{"$f":"'Population 2016'!AE177/'Population 2016'!AE$5","v":7.7670201952792124E-3},{"$f":"'Population 2016'!AF177/'Population 2016'!AF$5","v":4.9012954500897311E-3},{"$f":"'Population 2016'!AG177/'Population 2016'!AG$5","v":7.7670201952792124E-3},{"$f":"'Population 2016'!AH177/'Population 2016'!AH$5","v":4.7797293406276996E-3},{"$f":"'Population 2016'!AI177/'Population 2016'!AI$5","v":4.3269861755184181E-3},{"$f":"'Population 2016'!AJ177/'Population 2016'!AJ$5","v":4.0013384267908432E-3},{"$f":"'Population 2016'!AK177/'Population 2016'!AK$5","v":9.7431577888689135E-3},{"$f":"'Population 2016'!AL177/'Population 2016'!AL$5","v":4.0882566822156401E-3},{"$f":"'Population 2016'!AM177/'Population 2016'!AM$5","v":4.1000974316439147E-3},{"$f":"'Population 2016'!AN177/'Population 2016'!AN$5","v":1.0745063815861241E-2},{"$f":"'Population 2016'!AO177/'Population 2016'!AO$5","v":1.0745063815861241E-2},{"$f":"'Population 2016'!AP177/'Population 2016'!AP$5","v":1.1508647337634546E-2},{"$f":"'Population 2016'!AQ177/'Population 2016'!AQ$5","v":4.432235435962076E-3},{"$f":"'Population 2016'!AR177/'Population 2016'!AR$5","v":5.2147764772768031E-3},{"$f":"'Population 2016'!AS177/'Population 2016'!AS$5","v":9.1596181224353063E-3},{"$f":"'Population 2016'!AT177/'Population 2016'!AT$5","v":1.9138503716982128E-2},{"$f":"'Population 2016'!AU177/'Population 2016'!AU$5","v":1.9138503716982128E-2},{"$f":"'Population 2016'!AV177/'Population 2016'!AV$5","v":3.1147714074543343E-3},{"$f":"'Population 2016'!AW177/'Population 2016'!AW$5","v":5.4953017267679542E-3},{"$f":"'Population 2016'!AX177/'Population 2016'!AX$5","v":8.957665128998045E-3},{"$f":"'Population 2016'!AY177/'Population 2016'!AY$5","v":6.3767938557571678E-3},{"$f":"'Population 2016'!AZ177/'Population 2016'!AZ$5","v":8.4334784934792986E-3},{"$f":"'Population 2016'!BA177/'Population 2016'!BA$5","v":2.9016411142301878E-3},{"$f":"'Population 2016'!BB177/'Population 2016'!BB$5","v":4.6677668602362887E-3},{"$f":"'Population 2016'!BC177/'Population 2016'!BC$5","v":1.2835834107909529E-3},175]
[null,"Female 20-24",{"$f":"'Population 2016'!C178/'Population 2016'!C$5","v":1.3145722273617067E-2},{"$f":"'Population 2016'!D178/'Population 2016'!D$5","v":1.1629157986365815E-2},{"$f":"'Population 2016'!E178/'Population 2016'!E$5","v":1.0238187878248069E-2},{"$f":"'Population 2016'!F178/'Population 2016'!F$5","v":6.5310327066701E-3},{"$f":"'Population 2016'!G178/'Population 2016'!G$5","v":6.2388350565690471E-3},{"$f":"'Population 2016'!H178/'Population 2016'!H$5","v":4.2767328225463905E-3},{"$f":"'Population 2016'!I178/'Population 2016'!I$5","v":8.7932333975378942E-3},{"$f":"'Population 2016'!J178/'Population 2016'!J$5","v":1.0399475879684532E-2},{"$f":"'Population 2016'!K178/'Population 2016'!K$5","v":4.5125927325993477E-3},{"$f":"'Population 2016'!L178/'Population 2016'!L$5","v":4.956078344161517E-3},{"$f":"'Population 2016'!M178/'Population 2016'!M$5","v":4.956078344161517E-3},{"$f":"'Population 2016'!N178/'Population 2016'!N$5","v":1.5994084599866582E-2},{"$f":"'Population 2016'!O178/'Population 2016'!O$5","v":4.4085158657037283E-3},{"$f":"'Population 2016'!P178/'Population 2016'!P$5","v":6.1985799616815053E-3},{"$f":"'Population 2016'!Q178/'Population 2016'!Q$5","v":1.3043324990305636E-2},{"$f":"'Population 2016'!R178/'Population 2016'!R$5","v":4.7506254324799066E-3},{"$f":"'Population 2016'!S178/'Population 2016'!S$5","v":7.2033696341030698E-3},{"$f":"'Population 2016'!T178/'Population 2016'!T$5","v":8.0408370287990399E-3},{"$f":"'Population 2016'!U178/'Population 2016'!U$5","v":2.2130748461912982E-3},{"$f":"'Population 2016'!V178/'Population 2016'!V$5","v":6.1440532433732001E-3},{"$f":"'Population 2016'!W178/'Population 2016'!W$5","v":5.2229390962158203E-3},{"$f":"'Population 2016'!X178/'Population 2016'!X$5","v":5.2229390962158203E-3},{"$f":"'Population 2016'!Y178/'Population 2016'!Y$5","v":8.18349469801752E-3},{"$f":"'Population 2016'!Z178/'Population 2016'!Z$5","v":9.5570314934870105E-3},{"$f":"'Population 2016'!AA178/'Population 2016'!AA$5","v":6.7953044101047265E-3},{"$f":"'Population 2016'!AB178/'Population 2016'!AB$5","v":1.1381431481121357E-2},{"$f":"'Population 2016'!AC178/'Population 2016'!AC$5","v":7.5824178097352E-3},{"$f":"'Population 2016'!AD178/'Population 2016'!AD$5","v":7.9236294614611642E-3},{"$f":"'Population 2016'!AE178/'Population 2016'!AE$5","v":8.5627162496534868E-3},{"$f":"'Population 2016'!AF178/'Population 2016'!AF$5","v":5.9871209036480716E-3},{"$f":"'Population 2016'!AG178/'Population 2016'!AG$5","v":8.5627162496534868E-3},{"$f":"'Population 2016'!AH178/'Population 2016'!AH$5","v":5.3816074231630177E-3},{"$f":"'Population 2016'!AI178/'Population 2016'!AI$5","v":7.8241206579753256E-3},{"$f":"'Population 2016'!AJ178/'Population 2016'!AJ$5","v":4.6287259849984667E-3},{"$f":"'Population 2016'!AK178/'Population 2016'!AK$5","v":1.0107740467420138E-2},{"$f":"'Population 2016'!AL178/'Population 2016'!AL$5","v":4.7445061279509058E-3},{"$f":"'Population 2016'!AM178/'Population 2016'!AM$5","v":4.607176619303056E-3},{"$f":"'Population 2016'!AN178/'Population 2016'!AN$5","v":1.2708628777135376E-2},{"$f":"'Population 2016'!AO178/'Population 2016'!AO$5","v":1.2708628777135376E-2},{"$f":"'Population 2016'!AP178/'Population 2016'!AP$5","v":1.175435537307991E-2},{"$f":"'Population 2016'!AQ178/'Population 2016'!AQ$5","v":5.5762591110867536E-3},{"$f":"'Population 2016'!AR178/'Population 2016'!AR$5","v":7.7600097843892211E-3},{"$f":"'Population 2016'!AS178/'Population 2016'!AS$5","v":8.7932333975378942E-3},{"$f":"'Population 2016'!AT178/'Population 2016'!AT$5","v":1.9138503716982128E-2},{"$f":"'Population 2016'!AU178/'Population 2016'!AU$5","v":1.9138503716982128E-2},{"$f":"'Population 2016'!AV178/'Population 2016'!AV$5","v":3.5793474817865062E-3},{"$f":"'Population 2016'!AW178/'Population 2016'!AW$5","v":6.196991884800781E-3},{"$f":"'Population 2016'!AX178/'Population 2016'!AX$5","v":1.3583449403887192E-2},{"$f":"'Population 2016'!AY178/'Population 2016'!AY$5","v":8.7283130871148376E-3},{"$f":"'Population 2016'!AZ178/'Population 2016'!AZ$5","v":1.1813197876098049E-2},{"$f":"'Population 2016'!BA178/'Population 2016'!BA$5","v":3.724897430360613E-3},{"$f":"'Population 2016'!BB178/'Population 2016'!BB$5","v":5.6966089640457665E-3},{"$f":"'Population 2016'!BC178/'Population 2016'!BC$5","v":2.2130748461912982E-3},176]
[null,"Female 25-29",{"$f":"'Population 2016'!C179/'Population 2016'!C$5","v":1.0712843656882338E-2},{"$f":"'Population 2016'!D179/'Population 2016'!D$5","v":1.0900501745840792E-2},{"$f":"'Population 2016'!E179/'Population 2016'!E$5","v":1.1072618941585137E-2},{"$f":"'Population 2016'!F179/'Population 2016'!F$5","v":6.5001287664177183E-3},{"$f":"'Population 2016'!G179/'Population 2016'!G$5","v":5.4945054945054949E-3},{"$f":"'Population 2016'!H179/'Population 2016'!H$5","v":3.9006137873565639E-3},{"$f":"'Population 2016'!I179/'Population 2016'!I$5","v":8.290762917678586E-3},{"$f":"'Population 2016'!J179/'Population 2016'!J$5","v":8.1852334076942847E-3},{"$f":"'Population 2016'!K179/'Population 2016'!K$5","v":4.1345744932192981E-3},{"$f":"'Population 2016'!L179/'Population 2016'!L$5","v":4.8210569790160911E-3},{"$f":"'Population 2016'!M179/'Population 2016'!M$5","v":4.8210569790160911E-3},{"$f":"'Population 2016'!N179/'Population 2016'!N$5","v":8.0211539852597224E-3},{"$f":"'Population 2016'!O179/'Population 2016'!O$5","v":4.0815922172358111E-3},{"$f":"'Population 2016'!P179/'Population 2016'!P$5","v":4.913783387805703E-3},{"$f":"'Population 2016'!Q179/'Population 2016'!Q$5","v":9.130327493213946E-3},{"$f":"'Population 2016'!R179/'Population 2016'!R$5","v":5.083302283493905E-3},{"$f":"'Population 2016'!S179/'Population 2016'!S$5","v":8.2457883987000213E-3},{"$f":"'Population 2016'!T179/'Population 2016'!T$5","v":1.1181788993173665E-2},{"$f":"'Population 2016'!U179/'Population 2016'!U$5","v":1.8147213738768646E-3},{"$f":"'Population 2016'!V179/'Population 2016'!V$5","v":5.922714679326215E-3},{"$f":"'Population 2016'!W179/'Population 2016'!W$5","v":5.16410749187797E-3},{"$f":"'Population 2016'!X179/'Population 2016'!X$5","v":5.16410749187797E-3},{"$f":"'Population 2016'!Y179/'Population 2016'!Y$5","v":7.0070428133098047E-3},{"$f":"'Population 2016'!Z179/'Population 2016'!Z$5","v":7.9290259261338442E-3},{"$f":"'Population 2016'!AA179/'Population 2016'!AA$5","v":6.0558466658295444E-3},{"$f":"'Population 2016'!AB179/'Population 2016'!AB$5","v":1.0953604290554026E-2},{"$f":"'Population 2016'!AC179/'Population 2016'!AC$5","v":6.4829620558478013E-3},{"$f":"'Population 2016'!AD179/'Population 2016'!AD$5","v":8.474450109791953E-3},{"$f":"'Population 2016'!AE179/'Population 2016'!AE$5","v":9.6048214047372155E-3},{"$f":"'Population 2016'!AF179/'Population 2016'!AF$5","v":4.8108099956265362E-3},{"$f":"'Population 2016'!AG179/'Population 2016'!AG$5","v":9.6048214047372155E-3},{"$f":"'Population 2016'!AH179/'Population 2016'!AH$5","v":5.2887250030186784E-3},{"$f":"'Population 2016'!AI179/'Population 2016'!AI$5","v":9.5289395397672588E-3},{"$f":"'Population 2016'!AJ179/'Population 2016'!AJ$5","v":5.367649109109667E-3},{"$f":"'Population 2016'!AK179/'Population 2016'!AK$5","v":1.1226632136077342E-2},{"$f":"'Population 2016'!AL179/'Population 2016'!AL$5","v":4.416381405083273E-3},{"$f":"'Population 2016'!AM179/'Population 2016'!AM$5","v":4.4695408397955744E-3},{"$f":"'Population 2016'!AN179/'Population 2016'!AN$5","v":1.4017672084651467E-2},{"$f":"'Population 2016'!AO179/'Population 2016'!AO$5","v":1.4017672084651467E-2},{"$f":"'Population 2016'!AP179/'Population 2016'!AP$5","v":1.099345306976523E-2},{"$f":"'Population 2016'!AQ179/'Population 2016'!AQ$5","v":5.1378308763084342E-3},{"$f":"'Population 2016'!AR179/'Population 2016'!AR$5","v":7.4481212390975458E-3},{"$f":"'Population 2016'!AS179/'Population 2016'!AS$5","v":8.290762917678586E-3},{"$f":"'Population 2016'!AT179/'Population 2016'!AT$5","v":2.4305372489059947E-2},{"$f":"'Population 2016'!AU179/'Population 2016'!AU$5","v":2.4305372489059947E-2},{"$f":"'Population 2016'!AV179/'Population 2016'!AV$5","v":3.0936543131665083E-3},{"$f":"'Population 2016'!AW179/'Population 2016'!AW$5","v":6.1512294831899449E-3},{"$f":"'Population 2016'!AX179/'Population 2016'!AX$5","v":1.0376068594502729E-2},{"$f":"'Population 2016'!AY179/'Population 2016'!AY$5","v":7.0316085799088154E-3},{"$f":"'Population 2016'!AZ179/'Population 2016'!AZ$5","v":8.6750924748750218E-3},{"$f":"'Population 2016'!BA179/'Population 2016'!BA$5","v":3.846361477002807E-3},{"$f":"'Population 2016'!BB179/'Population 2016'!BB$5","v":6.9187905236046763E-3},{"$f":"'Population 2016'!BC179/'Population 2016'!BC$5","v":1.8147213738768646E-3},177]
[null,"Female 30-34",{"$f":"'Population 2016'!C180/'Population 2016'!C$5","v":8.4792975318548659E-3},{"$f":"'Population 2016'!D180/'Population 2016'!D$5","v":1.108388838355682E-2},{"$f":"'Population 2016'!E180/'Population 2016'!E$5","v":1.347278020241985E-2},{"$f":"'Population 2016'!F180/'Population 2016'!F$5","v":7.2830285861447339E-3},{"$f":"'Population 2016'!G180/'Population 2016'!G$5","v":5.765170789801332E-3},{"$f":"'Population 2016'!H180/'Population 2016'!H$5","v":4.2378239568370982E-3},{"$f":"'Population 2016'!I180/'Population 2016'!I$5","v":9.6306841973034085E-3},{"$f":"'Population 2016'!J180/'Population 2016'!J$5","v":7.413980411832514E-3},{"$f":"'Population 2016'!K180/'Population 2016'!K$5","v":5.5521428908944853E-3},{"$f":"'Population 2016'!L180/'Population 2016'!L$5","v":4.956078344161517E-3},{"$f":"'Population 2016'!M180/'Population 2016'!M$5","v":4.956078344161517E-3},{"$f":"'Population 2016'!N180/'Population 2016'!N$5","v":6.2770754133144729E-3},{"$f":"'Population 2016'!O180/'Population 2016'!O$5","v":4.5670243013245359E-3},{"$f":"'Population 2016'!P180/'Population 2016'!P$5","v":5.263157894736842E-3},{"$f":"'Population 2016'!Q180/'Population 2016'!Q$5","v":1.014089141138177E-2},{"$f":"'Population 2016'!R180/'Population 2016'!R$5","v":4.5377122478309469E-3},{"$f":"'Population 2016'!S180/'Population 2016'!S$5","v":8.1045631638689362E-3},{"$f":"'Population 2016'!T180/'Population 2016'!T$5","v":9.4321624174627614E-3},{"$f":"'Population 2016'!U180/'Population 2016'!U$5","v":2.699951312353384E-3},{"$f":"'Population 2016'!V180/'Population 2016'!V$5","v":6.7317452927393318E-3},{"$f":"'Population 2016'!W180/'Population 2016'!W$5","v":5.4451918237143661E-3},{"$f":"'Population 2016'!X180/'Population 2016'!X$5","v":5.4451918237143661E-3},{"$f":"'Population 2016'!Y180/'Population 2016'!Y$5","v":7.0587113082462918E-3},{"$f":"'Population 2016'!Z180/'Population 2016'!Z$5","v":6.3223141295784026E-3},{"$f":"'Population 2016'!AA180/'Population 2016'!AA$5","v":5.8385935819319848E-3},{"$f":"'Population 2016'!AB180/'Population 2016'!AB$5","v":1.135482022046406E-2},{"$f":"'Population 2016'!AC180/'Population 2016'!AC$5","v":5.690691964147193E-3},{"$f":"'Population 2016'!AD180/'Population 2016'!AD$5","v":9.9259369533663336E-3},{"$f":"'Population 2016'!AE180/'Population 2016'!AE$5","v":1.1504224889372581E-2},{"$f":"'Population 2016'!AF180/'Population 2016'!AF$5","v":4.2980590870017642E-3},{"$f":"'Population 2016'!AG180/'Population 2016'!AG$5","v":1.1504224889372581E-2},{"$f":"'Population 2016'!AH180/'Population 2016'!AH$5","v":6.1042326518859777E-3},{"$f":"'Population 2016'!AI180/'Population 2016'!AI$5","v":9.0176305888529183E-3},{"$f":"'Population 2016'!AJ180/'Population 2016'!AJ$5","v":6.7060758999525974E-3},{"$f":"'Population 2016'!AK180/'Population 2016'!AK$5","v":1.274782193279107E-2},{"$f":"'Population 2016'!AL180/'Population 2016'!AL$5","v":4.1592025682410739E-3},{"$f":"'Population 2016'!AM180/'Population 2016'!AM$5","v":4.9440220796766283E-3},{"$f":"'Population 2016'!AN180/'Population 2016'!AN$5","v":1.5817606632486093E-2},{"$f":"'Population 2016'!AO180/'Population 2016'!AO$5","v":1.5817606632486093E-2},{"$f":"'Population 2016'!AP180/'Population 2016'!AP$5","v":1.324445571707116E-2},{"$f":"'Population 2016'!AQ180/'Population 2016'!AQ$5","v":5.8845289636652604E-3},{"$f":"'Population 2016'!AR180/'Population 2016'!AR$5","v":7.5383461396997808E-3},{"$f":"'Population 2016'!AS180/'Population 2016'!AS$5","v":9.6306841973034085E-3},{"$f":"'Population 2016'!AT180/'Population 2016'!AT$5","v":2.3040016871408234E-2},{"$f":"'Population 2016'!AU180/'Population 2016'!AU$5","v":2.3040016871408234E-2},{"$f":"'Population 2016'!AV180/'Population 2016'!AV$5","v":3.9805722732552005E-3},{"$f":"'Population 2016'!AW180/'Population 2016'!AW$5","v":7.3257977912014154E-3},{"$f":"'Population 2016'!AX180/'Population 2016'!AX$5","v":8.4209719258341101E-3},{"$f":"'Population 2016'!AY180/'Population 2016'!AY$5","v":7.3819650561488329E-3},{"$f":"'Population 2016'!AZ180/'Population 2016'!AZ$5","v":9.0864115146320271E-3},{"$f":"'Population 2016'!BA180/'Population 2016'!BA$5","v":3.832865471820341E-3},{"$f":"'Population 2016'!BB180/'Population 2016'!BB$5","v":8.2721667138507E-3},{"$f":"'Population 2016'!BC180/'Population 2016'!BC$5","v":2.699951312353384E-3},178]
[null,"Female 35-39",{"$f":"'Population 2016'!C181/'Population 2016'!C$5","v":6.5881944054013994E-3},{"$f":"'Population 2016'!D181/'Population 2016'!D$5","v":1.0462818970491868E-2},{"$f":"'Population 2016'!E181/'Population 2016'!E$5","v":1.4016566738077715E-2},{"$f":"'Population 2016'!F181/'Population 2016'!F$5","v":7.8599021375225335E-3},{"$f":"'Population 2016'!G181/'Population 2016'!G$5","v":7.0508309424565582E-3},{"$f":"'Population 2016'!H181/'Population 2016'!H$5","v":4.6528518577362175E-3},{"$f":"'Population 2016'!I181/'Population 2016'!I$5","v":9.9028557072272008E-3},{"$f":"'Population 2016'!J181/'Population 2016'!J$5","v":8.1271821069304959E-3},{"$f":"'Population 2016'!K181/'Population 2016'!K$5","v":5.7647781505457641E-3},{"$f":"'Population 2016'!L181/'Population 2016'!L$5","v":4.8051721125283945E-3},{"$f":"'Population 2016'!M181/'Population 2016'!M$5","v":4.8051721125283945E-3},{"$f":"'Population 2016'!N181/'Population 2016'!N$5","v":5.3045707718150474E-3},{"$f":"'Population 2016'!O181/'Population 2016'!O$5","v":5.3793800338811778E-3},{"$f":"'Population 2016'!P181/'Population 2016'!P$5","v":5.6576129832074835E-3},{"$f":"'Population 2016'!Q181/'Population 2016'!Q$5","v":1.125721201866018E-2},{"$f":"'Population 2016'!R181/'Population 2016'!R$5","v":5.3760579123862248E-3},{"$f":"'Population 2016'!S181/'Population 2016'!S$5","v":7.4266820366797239E-3},{"$f":"'Population 2016'!T181/'Population 2016'!T$5","v":7.0450389245380477E-3},{"$f":"'Population 2016'!U181/'Population 2016'!U$5","v":2.0360288584959944E-3},{"$f":"'Population 2016'!V181/'Population 2016'!V$5","v":7.1820547851107839E-3},{"$f":"'Population 2016'!W181/'Population 2016'!W$5","v":5.8439393642264626E-3},{"$f":"'Population 2016'!X181/'Population 2016'!X$5","v":5.8439393642264626E-3},{"$f":"'Population 2016'!Y181/'Population 2016'!Y$5","v":7.6350137517686521E-3},{"$f":"'Population 2016'!Z181/'Population 2016'!Z$5","v":4.6478494259392976E-3},{"$f":"'Population 2016'!AA181/'Population 2016'!AA$5","v":5.7455800291929676E-3},{"$f":"'Population 2016'!AB181/'Population 2016'!AB$5","v":1.0781654606306869E-2},{"$f":"'Population 2016'!AC181/'Population 2016'!AC$5","v":4.9925427319044893E-3},{"$f":"'Population 2016'!AD181/'Population 2016'!AD$5","v":9.9371022367784438E-3},{"$f":"'Population 2016'!AE181/'Population 2016'!AE$5","v":1.1031940779679462E-2},{"$f":"'Population 2016'!AF181/'Population 2016'!AF$5","v":6.0776063581112674E-3},{"$f":"'Population 2016'!AG181/'Population 2016'!AG$5","v":1.1031940779679462E-2},{"$f":"'Population 2016'!AH181/'Population 2016'!AH$5","v":7.0980745474304077E-3},{"$f":"'Population 2016'!AI181/'Population 2016'!AI$5","v":7.7653337999825005E-3},{"$f":"'Population 2016'!AJ181/'Population 2016'!AJ$5","v":6.8594373030700165E-3},{"$f":"'Population 2016'!AK181/'Population 2016'!AK$5","v":1.2420954703745143E-2},{"$f":"'Population 2016'!AL181/'Population 2016'!AL$5","v":4.5405367056277823E-3},{"$f":"'Population 2016'!AM181/'Population 2016'!AM$5","v":5.5199191570895105E-3},{"$f":"'Population 2016'!AN181/'Population 2016'!AN$5","v":1.7181193411148685E-2},{"$f":"'Population 2016'!AO181/'Population 2016'!AO$5","v":1.7181193411148685E-2},{"$f":"'Population 2016'!AP181/'Population 2016'!AP$5","v":1.252318374205412E-2},{"$f":"'Population 2016'!AQ181/'Population 2016'!AQ$5","v":5.8434263166547923E-3},{"$f":"'Population 2016'!AR181/'Population 2016'!AR$5","v":7.3071030611192387E-3},{"$f":"'Population 2016'!AS181/'Population 2016'!AS$5","v":9.9028557072272008E-3},{"$f":"'Population 2016'!AT181/'Population 2016'!AT$5","v":2.5096219750092266E-2},{"$f":"'Population 2016'!AU181/'Population 2016'!AU$5","v":2.5096219750092266E-2},{"$f":"'Population 2016'!AV181/'Population 2016'!AV$5","v":4.0122479146869391E-3},{"$f":"'Population 2016'!AW181/'Population 2016'!AW$5","v":8.7596863750076265E-3},{"$f":"'Population 2016'!AX181/'Population 2016'!AX$5","v":9.4049094649679907E-3},{"$f":"'Population 2016'!AY181/'Population 2016'!AY$5","v":7.3299470640433278E-3},{"$f":"'Population 2016'!AZ181/'Population 2016'!AZ$5","v":8.6376998348971119E-3},{"$f":"'Population 2016'!BA181/'Population 2016'!BA$5","v":3.5629453681710215E-3},{"$f":"'Population 2016'!BB181/'Population 2016'!BB$5","v":8.2997866361006201E-3},{"$f":"'Population 2016'!BC181/'Population 2016'!BC$5","v":2.0360288584959944E-3},179]
[null,"Female 40-44",{"$f":"'Population 2016'!C182/'Population 2016'!C$5","v":5.2746443959458839E-3},{"$f":"'Population 2016'!D182/'Population 2016'!D$5","v":1.046037381532232E-2},{"$f":"'Population 2016'!E182/'Population 2016'!E$5","v":1.5216647368495071E-2},{"$f":"'Population 2016'!F182/'Population 2016'!F$5","v":8.4882822559876388E-3},{"$f":"'Population 2016'!G182/'Population 2016'!G$5","v":8.6883559789963736E-3},{"$f":"'Population 2016'!H182/'Population 2016'!H$5","v":5.7228456647417589E-3},{"$f":"'Population 2016'!I182/'Population 2016'!I$5","v":1.3064232476342015E-2},{"$f":"'Population 2016'!J182/'Population 2016'!J$5","v":9.910186344675451E-3},{"$f":"'Population 2016'!K182/'Population 2016'!K$5","v":7.6548693474460146E-3},{"$f":"'Population 2016'!L182/'Population 2016'!L$5","v":5.9488824996425903E-3},{"$f":"'Population 2016'!M182/'Population 2016'!M$5","v":5.9488824996425903E-3},{"$f":"'Population 2016'!N182/'Population 2016'!N$5","v":5.2000868020671753E-3},{"$f":"'Population 2016'!O182/'Population 2016'!O$5","v":5.5378884695019863E-3},{"$f":"'Population 2016'!P182/'Population 2016'!P$5","v":6.7282767947706521E-3},{"$f":"'Population 2016'!Q182/'Population 2016'!Q$5","v":1.3583859179093077E-2},{"$f":"'Population 2016'!R182/'Population 2016'!R$5","v":6.1611752807792623E-3},{"$f":"'Population 2016'!S182/'Population 2016'!S$5","v":7.760326653968164E-3},{"$f":"'Population 2016'!T182/'Population 2016'!T$5","v":6.0096880918367821E-3},{"$f":"'Population 2016'!U182/'Population 2016'!U$5","v":2.3015978400389501E-3},{"$f":"'Population 2016'!V182/'Population 2016'!V$5","v":8.8306454690469469E-3},{"$f":"'Population 2016'!W182/'Population 2016'!W$5","v":6.7394871191470722E-3},{"$f":"'Population 2016'!X182/'Population 2016'!X$5","v":6.7394871191470722E-3},{"$f":"'Population 2016'!Y182/'Population 2016'!Y$5","v":9.3480230838937379E-3},{"$f":"'Population 2016'!Z182/'Population 2016'!Z$5","v":3.9161180294357348E-3},{"$f":"'Population 2016'!AA182/'Population 2016'!AA$5","v":6.0126618020578584E-3},{"$f":"'Population 2016'!AB182/'Population 2016'!AB$5","v":1.1330255979857323E-2},{"$f":"'Population 2016'!AC182/'Population 2016'!AC$5","v":5.0659776881848331E-3},{"$f":"'Population 2016'!AD182/'Population 2016'!AD$5","v":1.188358331162306E-2},{"$f":"'Population 2016'!AE182/'Population 2016'!AE$5","v":1.309561699812113E-2},{"$f":"'Population 2016'!AF182/'Population 2016'!AF$5","v":7.0277036299748151E-3},{"$f":"'Population 2016'!AG182/'Population 2016'!AG$5","v":1.309561699812113E-2},{"$f":"'Population 2016'!AH182/'Population 2016'!AH$5","v":7.712956168785934E-3},{"$f":"'Population 2016'!AI182/'Population 2016'!AI$5","v":7.4946408259690261E-3},{"$f":"'Population 2016'!AJ182/'Population 2016'!AJ$5","v":6.5805983883110725E-3},{"$f":"'Population 2016'!AK182/'Population 2016'!AK$5","v":1.5802773342720289E-2},{"$f":"'Population 2016'!AL182/'Population 2016'!AL$5","v":5.8619038328514925E-3},{"$f":"'Population 2016'!AM182/'Population 2016'!AM$5","v":6.2189640372196124E-3},{"$f":"'Population 2016'!AN182/'Population 2016'!AN$5","v":1.8435693247518273E-2},{"$f":"'Population 2016'!AO182/'Population 2016'!AO$5","v":1.8435693247518273E-2},{"$f":"'Population 2016'!AP182/'Population 2016'!AP$5","v":1.5844205253396318E-2},{"$f":"'Population 2016'!AQ182/'Population 2016'!AQ$5","v":6.9668986682742372E-3},{"$f":"'Population 2016'!AR182/'Population 2016'!AR$5","v":7.9765495458345836E-3},{"$f":"'Population 2016'!AS182/'Population 2016'!AS$5","v":1.3064232476342015E-2},{"$f":"'Population 2016'!AT182/'Population 2016'!AT$5","v":2.6836083724363368E-2},{"$f":"'Population 2016'!AU182/'Population 2016'!AU$5","v":2.6836083724363368E-2},{"$f":"'Population 2016'!AV182/'Population 2016'!AV$5","v":5.7544081934325841E-3},{"$f":"'Population 2016'!AW182/'Population 2016'!AW$5","v":9.2859539935322474E-3},{"$f":"'Population 2016'!AX182/'Population 2016'!AX$5","v":1.1129994760852064E-2},{"$f":"'Population 2016'!AY182/'Population 2016'!AY$5","v":8.4636333037544746E-3},{"$f":"'Population 2016'!AZ182/'Population 2016'!AZ$5","v":9.9809585171804806E-3},{"$f":"'Population 2016'!BA182/'Population 2016'!BA$5","v":4.4806737205787088E-3},{"$f":"'Population 2016'!BB182/'Population 2016'!BB$5","v":8.7762302949117195E-3},{"$f":"'Population 2016'!BC182/'Population 2016'!BC$5","v":2.3015978400389501E-3},180]
[null,"Female 45-49",{"$f":"'Population 2016'!C183/'Population 2016'!C$5","v":5.4177549028126323E-3},{"$f":"'Population 2016'!D183/'Population 2016'!D$5","v":1.2020382813493343E-2},{"$f":"'Population 2016'!E183/'Population 2016'!E$5","v":1.8076214495661429E-2},{"$f":"'Population 2016'!F183/'Population 2016'!F$5","v":1.121813031161473E-2},{"$f":"'Population 2016'!G183/'Population 2016'!G$5","v":1.1516808314837871E-2},{"$f":"'Population 2016'!H183/'Population 2016'!H$5","v":6.8965964469720796E-3},{"$f":"'Population 2016'!I183/'Population 2016'!I$5","v":1.7345699690143206E-2},{"$f":"'Population 2016'!J183/'Population 2016'!J$5","v":1.1651725367589129E-2},{"$f":"'Population 2016'!K183/'Population 2016'!K$5","v":9.4740821244625045E-3},{"$f":"'Population 2016'!L183/'Population 2016'!L$5","v":8.1409940749448007E-3},{"$f":"'Population 2016'!M183/'Population 2016'!M$5","v":8.1409940749448007E-3},{"$f":"'Population 2016'!N183/'Population 2016'!N$5","v":6.0198841031658644E-3},{"$f":"'Population 2016'!O183/'Population 2016'!O$5","v":6.6474475188476436E-3},{"$f":"'Population 2016'!P183/'Population 2016'!P$5","v":8.5878507832751038E-3},{"$f":"'Population 2016'!Q183/'Population 2016'!Q$5","v":1.6345283839202831E-2},{"$f":"'Population 2016'!R183/'Population 2016'!R$5","v":7.5051897588758187E-3},{"$f":"'Population 2016'!S183/'Population 2016'!S$5","v":8.8248118615074731E-3},{"$f":"'Population 2016'!T183/'Population 2016'!T$5","v":5.676979846721544E-3},{"$f":"'Population 2016'!U183/'Population 2016'!U$5","v":2.3015978400389501E-3},{"$f":"'Population 2016'!V183/'Population 2016'!V$5","v":9.9526030178368353E-3},{"$f":"'Population 2016'!W183/'Population 2016'!W$5","v":8.3606246609011694E-3},{"$f":"'Population 2016'!X183/'Population 2016'!X$5","v":8.3606246609011694E-3},{"$f":"'Population 2016'!Y183/'Population 2016'!Y$5","v":1.0766919444841894E-2},{"$f":"'Population 2016'!Z183/'Population 2016'!Z$5","v":4.3671588108784064E-3},{"$f":"'Population 2016'!AA183/'Population 2016'!AA$5","v":7.1613791783847131E-3},{"$f":"'Population 2016'!AB183/'Population 2016'!AB$5","v":1.3002671361165983E-2},{"$f":"'Population 2016'!AC183/'Population 2016'!AC$5","v":6.2016337726329635E-3},{"$f":"'Population 2016'!AD183/'Population 2016'!AD$5","v":1.4220849305891547E-2},{"$f":"'Population 2016'!AE183/'Population 2016'!AE$5","v":1.5246563106397396E-2},{"$f":"'Population 2016'!AF183/'Population 2016'!AF$5","v":9.3350827187862889E-3},{"$f":"'Population 2016'!AG183/'Population 2016'!AG$5","v":1.5246563106397396E-2},{"$f":"'Population 2016'!AH183/'Population 2016'!AH$5","v":8.8851323110074962E-3},{"$f":"'Population 2016'!AI183/'Population 2016'!AI$5","v":7.9061488319188029E-3},{"$f":"'Population 2016'!AJ183/'Population 2016'!AJ$5","v":7.6959540473468474E-3},{"$f":"'Population 2016'!AK183/'Population 2016'!AK$5","v":1.8053128496536463E-2},{"$f":"'Population 2016'!AL183/'Population 2016'!AL$5","v":7.5202639186960143E-3},{"$f":"'Population 2016'!AM183/'Population 2016'!AM$5","v":7.5192599541455537E-3},{"$f":"'Population 2016'!AN183/'Population 2016'!AN$5","v":2.1544671102868986E-2},{"$f":"'Population 2016'!AO183/'Population 2016'!AO$5","v":2.1544671102868986E-2},{"$f":"'Population 2016'!AP183/'Population 2016'!AP$5","v":2.0187689234817622E-2},{"$f":"'Population 2016'!AQ183/'Population 2016'!AQ$5","v":8.9946292541239654E-3},{"$f":"'Population 2016'!AR183/'Population 2016'!AR$5","v":9.3987613123646205E-3},{"$f":"'Population 2016'!AS183/'Population 2016'!AS$5","v":1.7345699690143206E-2},{"$f":"'Population 2016'!AT183/'Population 2016'!AT$5","v":2.8786840301576421E-2},{"$f":"'Population 2016'!AU183/'Population 2016'!AU$5","v":2.8786840301576421E-2},{"$f":"'Population 2016'!AV183/'Population 2016'!AV$5","v":6.4195966634991025E-3},{"$f":"'Population 2016'!AW183/'Population 2016'!AW$5","v":1.0323235096711209E-2},{"$f":"'Population 2016'!AX183/'Population 2016'!AX$5","v":1.2829523237537856E-2},{"$f":"'Population 2016'!AY183/'Population 2016'!AY$5","v":1.0622379976132921E-2},{"$f":"'Population 2016'!AZ183/'Population 2016'!AZ$5","v":1.2612825100241039E-2},{"$f":"'Population 2016'!BA183/'Population 2016'!BA$5","v":6.5050744979486073E-3},{"$f":"'Population 2016'!BB183/'Population 2016'!BB$5","v":9.6669727874716029E-3},{"$f":"'Population 2016'!BC183/'Population 2016'!BC$5","v":2.3015978400389501E-3},181]
[null,"Female 50-54",{"$f":"'Population 2016'!C184/'Population 2016'!C$5","v":5.7244202746699517E-3},{"$f":"'Population 2016'!D184/'Population 2016'!D$5","v":1.2370040002738574E-2},{"$f":"'Population 2016'!E184/'Population 2016'!E$5","v":1.8465303137554553E-2},{"$f":"'Population 2016'!F184/'Population 2016'!F$5","v":1.275302601081638E-2},{"$f":"'Population 2016'!G184/'Population 2016'!G$5","v":1.2288204406431007E-2},{"$f":"'Population 2016'!H184/'Population 2016'!H$5","v":7.4348357559506249E-3},{"$f":"'Population 2016'!I184/'Population 2016'!I$5","v":1.8874047399715266E-2},{"$f":"'Population 2016'!J184/'Population 2016'!J$5","v":1.2281996633024556E-2},{"$f":"'Population 2016'!K184/'Population 2016'!K$5","v":8.5290365260123797E-3},{"$f":"'Population 2016'!L184/'Population 2016'!L$5","v":9.0146617317681445E-3},{"$f":"'Population 2016'!M184/'Population 2016'!M$5","v":9.0146617317681445E-3},{"$f":"'Population 2016'!N184/'Population 2016'!N$5","v":6.7030485207481049E-3},{"$f":"'Population 2016'!O184/'Population 2016'!O$5","v":6.8554898405999544E-3},{"$f":"'Population 2016'!P184/'Population 2016'!P$5","v":9.6134340132987724E-3},{"$f":"'Population 2016'!Q184/'Population 2016'!Q$5","v":1.5934007825994995E-2},{"$f":"'Population 2016'!R184/'Population 2016'!R$5","v":7.5318039069569385E-3},{"$f":"'Population 2016'!S184/'Population 2016'!S$5","v":9.1143235929111999E-3},{"$f":"'Population 2016'!T184/'Population 2016'!T$5","v":6.1702256366825961E-3},{"$f":"'Population 2016'!U184/'Population 2016'!U$5","v":2.9212587969725135E-3},{"$f":"'Population 2016'!V184/'Population 2016'!V$5","v":9.2962196899733628E-3},{"$f":"'Population 2016'!W184/'Population 2016'!W$5","v":8.7397616666339828E-3},{"$f":"'Population 2016'!X184/'Population 2016'!X$5","v":8.7397616666339828E-3},{"$f":"'Population 2016'!Y184/'Population 2016'!Y$5","v":1.0727174448736904E-2},{"$f":"'Population 2016'!Z184/'Population 2016'!Z$5","v":4.6091334790343465E-3},{"$f":"'Population 2016'!AA184/'Population 2016'!AA$5","v":7.4683239024234682E-3},{"$f":"'Population 2016'!AB184/'Population 2016'!AB$5","v":1.3407981331177139E-2},{"$f":"'Population 2016'!AC184/'Population 2016'!AC$5","v":6.6515521667449284E-3},{"$f":"'Population 2016'!AD184/'Population 2016'!AD$5","v":1.5370873497338941E-2},{"$f":"'Population 2016'!AE184/'Population 2016'!AE$5","v":1.6540210885122024E-2},{"$f":"'Population 2016'!AF184/'Population 2016'!AF$5","v":1.040582726326743E-2},{"$f":"'Population 2016'!AG184/'Population 2016'!AG$5","v":1.6540210885122024E-2},{"$f":"'Population 2016'!AH184/'Population 2016'!AH$5","v":8.9352888178854395E-3},{"$f":"'Population 2016'!AI184/'Population 2016'!AI$5","v":7.9963798232566274E-3},{"$f":"'Population 2016'!AJ184/'Population 2016'!AJ$5","v":7.5147087527535341E-3},{"$f":"'Population 2016'!AK184/'Population 2016'!AK$5","v":1.8744578404133613E-2},{"$f":"'Population 2016'!AL184/'Population 2016'!AL$5","v":8.7440804526347522E-3},{"$f":"'Population 2016'!AM184/'Population 2016'!AM$5","v":7.4721740295772042E-3},{"$f":"'Population 2016'!AN184/'Population 2016'!AN$5","v":2.2417366641213046E-2},{"$f":"'Population 2016'!AO184/'Population 2016'!AO$5","v":2.2417366641213046E-2},{"$f":"'Population 2016'!AP184/'Population 2016'!AP$5","v":2.0480953664220154E-2},{"$f":"'Population 2016'!AQ184/'Population 2016'!AQ$5","v":9.5974680769441555E-3},{"$f":"'Population 2016'!AR184/'Population 2016'!AR$5","v":9.8189197383789766E-3},{"$f":"'Population 2016'!AS184/'Population 2016'!AS$5","v":1.8874047399715266E-2},{"$f":"'Population 2016'!AT184/'Population 2016'!AT$5","v":2.9946749617757156E-2},{"$f":"'Population 2016'!AU184/'Population 2016'!AU$5","v":2.9946749617757156E-2},{"$f":"'Population 2016'!AV184/'Population 2016'!AV$5","v":6.4935064935064939E-3},{"$f":"'Population 2016'!AW184/'Population 2016'!AW$5","v":1.0475776435413997E-2},{"$f":"'Population 2016'!AX184/'Population 2016'!AX$5","v":1.4311818751038246E-2},{"$f":"'Population 2016'!AY184/'Population 2016'!AY$5","v":1.1214467121569108E-2},{"$f":"'Population 2016'!AZ184/'Population 2016'!AZ$5","v":1.3392317825934384E-2},{"$f":"'Population 2016'!BA184/'Population 2016'!BA$5","v":7.287842798531635E-3},{"$f":"'Population 2016'!BB184/'Population 2016'!BB$5","v":8.9902846923485911E-3},{"$f":"'Population 2016'!BC184/'Population 2016'!BC$5","v":2.9212587969725135E-3},182]
[null,"Female 55-59",{"$f":"'Population 2016'!C185/'Population 2016'!C$5","v":5.30019984360066E-3},{"$f":"'Population 2016'!D185/'Population 2016'!D$5","v":1.0814921314906644E-2},{"$f":"'Population 2016'!E185/'Population 2016'!E$5","v":1.5872941463254561E-2},{"$f":"'Population 2016'!F185/'Population 2016'!F$5","v":1.1300540818954416E-2},{"$f":"'Population 2016'!G185/'Population 2016'!G$5","v":1.1476208520543495E-2},{"$f":"'Population 2016'!H185/'Population 2016'!H$5","v":7.1170800193247367E-3},{"$f":"'Population 2016'!I185/'Population 2016'!I$5","v":1.7701616280043547E-2},{"$f":"'Population 2016'!J185/'Population 2016'!J$5","v":1.0183856762561887E-2},{"$f":"'Population 2016'!K185/'Population 2016'!K$5","v":7.6076170675235082E-3},{"$f":"'Population 2016'!L185/'Population 2016'!L$5","v":9.0464314647435394E-3},{"$f":"'Population 2016'!M185/'Population 2016'!M$5","v":9.0464314647435394E-3},{"$f":"'Population 2016'!N185/'Population 2016'!N$5","v":6.7593091198431135E-3},{"$f":"'Population 2016'!O185/'Population 2016'!O$5","v":6.5384729693583384E-3},{"$f":"'Population 2016'!P185/'Population 2016'!P$5","v":1.0300912881776175E-2},{"$f":"'Population 2016'!Q185/'Population 2016'!Q$5","v":1.4935194651061679E-2},{"$f":"'Population 2016'!R185/'Population 2016'!R$5","v":6.9462926491722999E-3},{"$f":"'Population 2016'!S185/'Population 2016'!S$5","v":8.2175433517338043E-3},{"$f":"'Population 2016'!T185/'Population 2016'!T$5","v":5.5350553505535052E-3},{"$f":"'Population 2016'!U185/'Population 2016'!U$5","v":2.5671668215819059E-3},{"$f":"'Population 2016'!V185/'Population 2016'!V$5","v":8.1437326840735451E-3},{"$f":"'Population 2016'!W185/'Population 2016'!W$5","v":8.0697350616751318E-3},{"$f":"'Population 2016'!X185/'Population 2016'!X$5","v":8.0697350616751318E-3},{"$f":"'Population 2016'!Y185/'Population 2016'!Y$5","v":9.1214766060952919E-3},{"$f":"'Population 2016'!Z185/'Population 2016'!Z$5","v":4.0516238436030605E-3},{"$f":"'Population 2016'!AA185/'Population 2016'!AA$5","v":6.7275373931091577E-3},{"$f":"'Population 2016'!AB185/'Population 2016'!AB$5","v":1.1821540791992057E-2},{"$f":"'Population 2016'!AC185/'Population 2016'!AC$5","v":6.1933594113619391E-3},{"$f":"'Population 2016'!AD185/'Population 2016'!AD$5","v":1.3997543637649336E-2},{"$f":"'Population 2016'!AE185/'Population 2016'!AE$5","v":1.4953952299304921E-2},{"$f":"'Population 2016'!AF185/'Population 2016'!AF$5","v":8.912817264624711E-3},{"$f":"'Population 2016'!AG185/'Population 2016'!AG$5","v":1.4953952299304921E-2},{"$f":"'Population 2016'!AH185/'Population 2016'!AH$5","v":7.6869490911455193E-3},{"$f":"'Population 2016'!AI185/'Population 2016'!AI$5","v":7.0407515968151195E-3},{"$f":"'Population 2016'!AJ185/'Population 2016'!AJ$5","v":6.4411789309316006E-3},{"$f":"'Population 2016'!AK185/'Population 2016'!AK$5","v":1.6997095910388092E-2},{"$f":"'Population 2016'!AL185/'Population 2016'!AL$5","v":7.8838615845763637E-3},{"$f":"'Population 2016'!AM185/'Population 2016'!AM$5","v":6.1356581706756104E-3},{"$f":"'Population 2016'!AN185/'Population 2016'!AN$5","v":2.1762844987455003E-2},{"$f":"'Population 2016'!AO185/'Population 2016'!AO$5","v":2.1762844987455003E-2},{"$f":"'Population 2016'!AP185/'Population 2016'!AP$5","v":1.8372620198785727E-2},{"$f":"'Population 2016'!AQ185/'Population 2016'!AQ$5","v":8.96722748945032E-3},{"$f":"'Population 2016'!AR185/'Population 2016'!AR$5","v":8.8696646730305299E-3},{"$f":"'Population 2016'!AS185/'Population 2016'!AS$5","v":1.7701616280043547E-2},{"$f":"'Population 2016'!AT185/'Population 2016'!AT$5","v":2.6361575367743976E-2},{"$f":"'Population 2016'!AU185/'Population 2016'!AU$5","v":2.6361575367743976E-2},{"$f":"'Population 2016'!AV185/'Population 2016'!AV$5","v":6.8208214549677964E-3},{"$f":"'Population 2016'!AW185/'Population 2016'!AW$5","v":9.3202757947403753E-3},{"$f":"'Population 2016'!AX185/'Population 2016'!AX$5","v":1.157723909682201E-2},{"$f":"'Population 2016'!AY185/'Population 2016'!AY$5","v":1.0288852850279979E-2},{"$f":"'Population 2016'!AZ185/'Population 2016'!AZ$5","v":1.224177505738332E-2},{"$f":"'Population 2016'!BA185/'Population 2016'!BA$5","v":7.5442668969984885E-3},{"$f":"'Population 2016'!BB185/'Population 2016'!BB$5","v":7.1673698238539458E-3},{"$f":"'Population 2016'!BC185/'Population 2016'!BC$5","v":2.5671668215819059E-3},183]
[null,"Female 60-64",{"$f":"'Population 2016'!C186/'Population 2016'!C$5","v":4.9015348601861462E-3},{"$f":"'Population 2016'!D186/'Population 2016'!D$5","v":9.7683949023405024E-3},{"$f":"'Population 2016'!E186/'Population 2016'!E$5","v":1.4232206226355834E-2},{"$f":"'Population 2016'!F186/'Population 2016'!F$5","v":1.1393252639711563E-2},{"$f":"'Population 2016'!G186/'Population 2016'!G$5","v":1.0867211606127863E-2},{"$f":"'Population 2016'!H186/'Population 2016'!H$5","v":6.6177495760554837E-3},{"$f":"'Population 2016'!I186/'Population 2016'!I$5","v":1.5953437735533038E-2},{"$f":"'Population 2016'!J186/'Population 2016'!J$5","v":8.4837829544794872E-3},{"$f":"'Population 2016'!K186/'Population 2016'!K$5","v":6.2373009497708265E-3},{"$f":"'Population 2016'!L186/'Population 2016'!L$5","v":8.7128492685018977E-3},{"$f":"'Population 2016'!M186/'Population 2016'!M$5","v":8.7128492685018977E-3},{"$f":"'Population 2016'!N186/'Population 2016'!N$5","v":4.8303742937285503E-3},{"$f":"'Population 2016'!O186/'Population 2016'!O$5","v":5.8350917862910016E-3},{"$f":"'Population 2016'!P186/'Population 2016'!P$5","v":8.2272061309590899E-3},{"$f":"'Population 2016'!Q186/'Population 2016'!Q$5","v":1.2479289315049177E-2},{"$f":"'Population 2016'!R186/'Population 2016'!R$5","v":6.2010965029009419E-3},{"$f":"'Population 2016'!S186/'Population 2016'!S$5","v":7.1662980099599094E-3},{"$f":"'Population 2016'!T186/'Population 2016'!T$5","v":4.6439556451050006E-3},{"$f":"'Population 2016'!U186/'Population 2016'!U$5","v":1.6819368831053865E-3},{"$f":"'Population 2016'!V186/'Population 2016'!V$5","v":6.777539478404225E-3},{"$f":"'Population 2016'!W186/'Population 2016'!W$5","v":7.3539505422312865E-3},{"$f":"'Population 2016'!X186/'Population 2016'!X$5","v":7.3539505422312865E-3},{"$f":"'Population 2016'!Y186/'Population 2016'!Y$5","v":7.5952687556636624E-3},{"$f":"'Population 2016'!Z186/'Population 2016'!Z$5","v":3.1650286594796964E-3},{"$f":"'Population 2016'!AA186/'Population 2016'!AA$5","v":5.5515803334801623E-3},{"$f":"'Population 2016'!AB186/'Population 2016'!AB$5","v":1.0642457242868693E-2},{"$f":"'Population 2016'!AC186/'Population 2016'!AC$5","v":5.0142629302409288E-3},{"$f":"'Population 2016'!AD186/'Population 2016'!AD$5","v":1.3335070155197439E-2},{"$f":"'Population 2016'!AE186/'Population 2016'!AE$5","v":1.4271193749422479E-2},{"$f":"'Population 2016'!AF186/'Population 2016'!AF$5","v":6.9975418118204168E-3},{"$f":"'Population 2016'!AG186/'Population 2016'!AG$5","v":1.4271193749422479E-2},{"$f":"'Population 2016'!AH186/'Population 2016'!AH$5","v":6.5166305973268441E-3},{"$f":"'Population 2016'!AI186/'Population 2016'!AI$5","v":5.9402069297401347E-3},{"$f":"'Population 2016'!AJ186/'Population 2016'!AJ$5","v":5.8835011014137135E-3},{"$f":"'Population 2016'!AK186/'Population 2016'!AK$5","v":1.5136467068126673E-2},{"$f":"'Population 2016'!AL186/'Population 2016'!AL$5","v":7.9015980560827228E-3},{"$f":"'Population 2016'!AM186/'Population 2016'!AM$5","v":5.233781615481852E-3},{"$f":"'Population 2016'!AN186/'Population 2016'!AN$5","v":2.0126540853059888E-2},{"$f":"'Population 2016'!AO186/'Population 2016'!AO$5","v":2.0126540853059888E-2},{"$f":"'Population 2016'!AP186/'Population 2016'!AP$5","v":1.7358083794366153E-2},{"$f":"'Population 2016'!AQ186/'Population 2016'!AQ$5","v":7.7752507261467634E-3},{"$f":"'Population 2016'!AR186/'Population 2016'!AR$5","v":7.8108030617652932E-3},{"$f":"'Population 2016'!AS186/'Population 2016'!AS$5","v":1.5953437735533038E-2},{"$f":"'Population 2016'!AT186/'Population 2016'!AT$5","v":2.3778140981705068E-2},{"$f":"'Population 2016'!AU186/'Population 2016'!AU$5","v":2.3778140981705068E-2},{"$f":"'Population 2016'!AV186/'Population 2016'!AV$5","v":5.9233449477351921E-3},{"$f":"'Population 2016'!AW186/'Population 2016'!AW$5","v":7.8673195435963149E-3},{"$f":"'Population 2016'!AX186/'Population 2016'!AX$5","v":9.6988128857482397E-3},{"$f":"'Population 2016'!AY186/'Population 2016'!AY$5","v":9.4045469844863984E-3},{"$f":"'Population 2016'!AZ186/'Population 2016'!AZ$5","v":1.1209162922608741E-2},{"$f":"'Population 2016'!BA186/'Population 2016'!BA$5","v":5.6413301662707836E-3},{"$f":"'Population 2016'!BB186/'Population 2016'!BB$5","v":5.9728081865449553E-3},{"$f":"'Population 2016'!BC186/'Population 2016'!BC$5","v":1.6819368831053865E-3},184]
[null,"Female 65-69",{"$f":"'Population 2016'!C187/'Population 2016'!C$5","v":5.0497564565838496E-3},{"$f":"'Population 2016'!D187/'Population 2016'!D$5","v":9.6950402472540907E-3},{"$f":"'Population 2016'!E187/'Population 2016'!E$5","v":1.3955625143564333E-2},{"$f":"'Population 2016'!F187/'Population 2016'!F$5","v":1.2227659026525882E-2},{"$f":"'Population 2016'!G187/'Population 2016'!G$5","v":1.2464136848373301E-2},{"$f":"'Population 2016'!H187/'Population 2016'!H$5","v":6.7442033896106847E-3},{"$f":"'Population 2016'!I187/'Population 2016'!I$5","v":1.7324763420149065E-2},{"$f":"'Population 2016'!J187/'Population 2016'!J$5","v":8.7989185871971999E-3},{"$f":"'Population 2016'!K187/'Population 2016'!K$5","v":6.9224590086471669E-3},{"$f":"'Population 2016'!L187/'Population 2016'!L$5","v":8.2919003065779224E-3},{"$f":"'Population 2016'!M187/'Population 2016'!M$5","v":8.2919003065779224E-3},{"$f":"'Population 2016'!N187/'Population 2016'!N$5","v":5.336719685583623E-3},{"$f":"'Population 2016'!O187/'Population 2016'!O$5","v":5.7657443457068977E-3},{"$f":"'Population 2016'!P187/'Population 2016'!P$5","v":8.0468838048010811E-3},{"$f":"'Population 2016'!Q187/'Population 2016'!Q$5","v":1.2491040058283687E-2},{"$f":"'Population 2016'!R187/'Population 2016'!R$5","v":5.6555064672379838E-3},{"$f":"'Population 2016'!S187/'Population 2016'!S$5","v":7.2986966676140529E-3},{"$f":"'Population 2016'!T187/'Population 2016'!T$5","v":4.4648050515814115E-3},{"$f":"'Population 2016'!U187/'Population 2016'!U$5","v":2.611428318505732E-3},{"$f":"'Population 2016'!V187/'Population 2016'!V$5","v":7.5331435418749667E-3},{"$f":"'Population 2016'!W187/'Population 2016'!W$5","v":7.5696664248034043E-3},{"$f":"'Population 2016'!X187/'Population 2016'!X$5","v":7.5696664248034043E-3},{"$f":"'Population 2016'!Y187/'Population 2016'!Y$5","v":8.1397752023020294E-3},{"$f":"'Population 2016'!Z187/'Population 2016'!Z$5","v":2.7701260010492023E-3},{"$f":"'Population 2016'!AA187/'Population 2016'!AA$5","v":5.0333619682199262E-3},{"$f":"'Population 2016'!AB187/'Population 2016'!AB$5","v":1.082873606746978E-2},{"$f":"'Population 2016'!AC187/'Population 2016'!AC$5","v":4.6522596246336007E-3},{"$f":"'Population 2016'!AD187/'Population 2016'!AD$5","v":1.3569541106851763E-2},{"$f":"'Population 2016'!AE187/'Population 2016'!AE$5","v":1.3988849988192897E-2},{"$f":"'Population 2016'!AF187/'Population 2016'!AF$5","v":6.5451145395044414E-3},{"$f":"'Population 2016'!AG187/'Population 2016'!AG$5","v":1.3988849988192897E-2},{"$f":"'Population 2016'!AH187/'Population 2016'!AH$5","v":5.7178417840855261E-3},{"$f":"'Population 2016'!AI187/'Population 2016'!AI$5","v":5.8759515268177447E-3},{"$f":"'Population 2016'!AJ187/'Population 2016'!AJ$5","v":6.3993530937177592E-3},{"$f":"'Population 2016'!AK187/'Population 2016'!AK$5","v":1.6657656864840401E-2},{"$f":"'Population 2016'!AL187/'Population 2016'!AL$5","v":8.1055674784058455E-3},{"$f":"'Population 2016'!AM187/'Population 2016'!AM$5","v":4.3681250022637461E-3},{"$f":"'Population 2016'!AN187/'Population 2016'!AN$5","v":2.0835605977964439E-2},{"$f":"'Population 2016'!AO187/'Population 2016'!AO$5","v":2.0835605977964439E-2},{"$f":"'Population 2016'!AP187/'Population 2016'!AP$5","v":1.7587939698492462E-2},{"$f":"'Population 2016'!AQ187/'Population 2016'!AQ$5","v":7.2409163150106868E-3},{"$f":"'Population 2016'!AR187/'Population 2016'!AR$5","v":7.7722625486685371E-3},{"$f":"'Population 2016'!AS187/'Population 2016'!AS$5","v":1.7324763420149065E-2},{"$f":"'Population 2016'!AT187/'Population 2016'!AT$5","v":2.2354615911846891E-2},{"$f":"'Population 2016'!AU187/'Population 2016'!AU$5","v":2.2354615911846891E-2},{"$f":"'Population 2016'!AV187/'Population 2016'!AV$5","v":6.1661915320451906E-3},{"$f":"'Population 2016'!AW187/'Population 2016'!AW$5","v":7.1389346512904994E-3},{"$f":"'Population 2016'!AX187/'Population 2016'!AX$5","v":9.8138185721405122E-3},{"$f":"'Population 2016'!AY187/'Population 2016'!AY$5","v":9.7702028701692114E-3},{"$f":"'Population 2016'!AZ187/'Population 2016'!AZ$5","v":1.1706772670007077E-2},{"$f":"'Population 2016'!BA187/'Population 2016'!BA$5","v":5.8977542647376379E-3},{"$f":"'Population 2016'!BB187/'Population 2016'!BB$5","v":5.9175683420451168E-3},{"$f":"'Population 2016'!BC187/'Population 2016'!BC$5","v":2.611428318505732E-3},185]
[null,"Female 70-74",{"$f":"'Population 2016'!C188/'Population 2016'!C$5","v":3.5573183135448982E-3},{"$f":"'Population 2016'!D188/'Population 2016'!D$5","v":7.0151501814305134E-3},{"$f":"'Population 2016'!E188/'Population 2016'!E$5","v":1.0186621913659825E-2},{"$f":"'Population 2016'!F188/'Population 2016'!F$5","v":9.7141385526654644E-3},{"$f":"'Population 2016'!G188/'Population 2016'!G$5","v":9.8657500135332643E-3},{"$f":"'Population 2016'!H188/'Population 2016'!H$5","v":5.6806943935566916E-3},{"$f":"'Population 2016'!I188/'Population 2016'!I$5","v":1.3859810736119253E-2},{"$f":"'Population 2016'!J188/'Population 2016'!J$5","v":6.9993282635197329E-3},{"$f":"'Population 2016'!K188/'Population 2016'!K$5","v":5.3631337712044605E-3},{"$f":"'Population 2016'!L188/'Population 2016'!L$5","v":7.1481899194637266E-3},{"$f":"'Population 2016'!M188/'Population 2016'!M$5","v":7.1481899194637266E-3},{"$f":"'Population 2016'!N188/'Population 2016'!N$5","v":3.7453484540391092E-3},{"$f":"'Population 2016'!O188/'Population 2016'!O$5","v":4.2698209845355205E-3},{"$f":"'Population 2016'!P188/'Population 2016'!P$5","v":5.7139637101318603E-3},{"$f":"'Population 2016'!Q188/'Population 2016'!Q$5","v":8.9423156014617929E-3},{"$f":"'Population 2016'!R188/'Population 2016'!R$5","v":4.4179485814659072E-3},{"$f":"'Population 2016'!S188/'Population 2016'!S$5","v":5.5316159167900919E-3},{"$f":"'Population 2016'!T188/'Population 2016'!T$5","v":3.3619819174232094E-3},{"$f":"'Population 2016'!U188/'Population 2016'!U$5","v":2.0360288584959944E-3},{"$f":"'Population 2016'!V188/'Population 2016'!V$5","v":5.640317201059372E-3},{"$f":"'Population 2016'!W188/'Population 2016'!W$5","v":5.8602814765425322E-3},{"$f":"'Population 2016'!X188/'Population 2016'!X$5","v":5.8602814765425322E-3},{"$f":"'Population 2016'!Y188/'Population 2016'!Y$5","v":6.2916328834199771E-3},{"$f":"'Population 2016'!Z188/'Population 2016'!Z$5","v":1.9841922788787088E-3},{"$f":"'Population 2016'!AA188/'Population 2016'!AA$5","v":3.5776998678543168E-3},{"$f":"'Population 2016'!AB188/'Population 2016'!AB$5","v":7.9137795154703549E-3},{"$f":"'Population 2016'!AC188/'Population 2016'!AC$5","v":3.4369628129518577E-3},{"$f":"'Population 2016'!AD188/'Population 2016'!AD$5","v":1.0394878856674979E-2},{"$f":"'Population 2016'!AE188/'Population 2016'!AE$5","v":1.0595591330506473E-2},{"$f":"'Population 2016'!AF188/'Population 2016'!AF$5","v":5.4743699950232996E-3},{"$f":"'Population 2016'!AG188/'Population 2016'!AG$5","v":1.0595591330506473E-2},{"$f":"'Population 2016'!AH188/'Population 2016'!AH$5","v":3.8304710067525519E-3},{"$f":"'Population 2016'!AI188/'Population 2016'!AI$5","v":4.3064791320325492E-3},{"$f":"'Population 2016'!AJ188/'Population 2016'!AJ$5","v":4.9354487912333048E-3},{"$f":"'Population 2016'!AK188/'Population 2016'!AK$5","v":1.2534101052261042E-2},{"$f":"'Population 2016'!AL188/'Population 2016'!AL$5","v":6.6068356361185503E-3},{"$f":"'Population 2016'!AM188/'Population 2016'!AM$5","v":2.8613754160765835E-3},{"$f":"'Population 2016'!AN188/'Population 2016'!AN$5","v":1.5763063161339588E-2},{"$f":"'Population 2016'!AO188/'Population 2016'!AO$5","v":1.5763063161339588E-2},{"$f":"'Population 2016'!AP188/'Population 2016'!AP$5","v":1.3379198833283135E-2},{"$f":"'Population 2016'!AQ188/'Population 2016'!AQ$5","v":5.2063352879925468E-3},{"$f":"'Population 2016'!AR188/'Population 2016'!AR$5","v":5.8635046514834864E-3},{"$f":"'Population 2016'!AS188/'Population 2016'!AS$5","v":1.3859810736119253E-2},{"$f":"'Population 2016'!AT188/'Population 2016'!AT$5","v":1.803131755153688E-2},{"$f":"'Population 2016'!AU188/'Population 2016'!AU$5","v":1.803131755153688E-2},{"$f":"'Population 2016'!AV188/'Population 2016'!AV$5","v":6.0817231548938866E-3},{"$f":"'Population 2016'!AW188/'Population 2016'!AW$5","v":4.8508145707486733E-3},{"$f":"'Population 2016'!AX188/'Population 2016'!AX$5","v":7.8842787226701769E-3},{"$f":"'Population 2016'!AY188/'Population 2016'!AY$5","v":7.4814112175270037E-3},{"$f":"'Population 2016'!AZ188/'Population 2016'!AZ$5","v":8.9080773855066131E-3},{"$f":"'Population 2016'!BA188/'Population 2016'!BA$5","v":4.5346577413085728E-3},{"$f":"'Population 2016'!BB188/'Population 2016'!BB$5","v":4.0739385318630328E-3},{"$f":"'Population 2016'!BC188/'Population 2016'!BC$5","v":2.0360288584959944E-3},186]
[null,"Female 75-79",{"$f":"'Population 2016'!C189/'Population 2016'!C$5","v":3.0257650023255457E-3},{"$f":"'Population 2016'!D189/'Population 2016'!D$5","v":5.618966579619143E-3},{"$f":"'Population 2016'!E189/'Population 2016'!E$5","v":7.997412326140662E-3},{"$f":"'Population 2016'!F189/'Population 2016'!F$5","v":7.5611640484161734E-3},{"$f":"'Population 2016'!G189/'Population 2016'!G$5","v":7.5921615330482323E-3},{"$f":"'Population 2016'!H189/'Population 2016'!H$5","v":4.0043707625813437E-3},{"$f":"'Population 2016'!I189/'Population 2016'!I$5","v":1.1179968176869609E-2},{"$f":"'Population 2016'!J189/'Population 2016'!J$5","v":5.1333935961122212E-3},{"$f":"'Population 2016'!K189/'Population 2016'!K$5","v":3.5202948542267165E-3},{"$f":"'Population 2016'!L189/'Population 2016'!L$5","v":5.6311851698886469E-3},{"$f":"'Population 2016'!M189/'Population 2016'!M$5","v":5.6311851698886469E-3},{"$f":"'Population 2016'!N189/'Population 2016'!N$5","v":3.2711519759526125E-3},{"$f":"'Population 2016'!O189/'Population 2016'!O$5","v":3.0215670540216562E-3},{"$f":"'Population 2016'!P189/'Population 2016'!P$5","v":5.4096697847402231E-3},{"$f":"'Population 2016'!Q189/'Population 2016'!Q$5","v":6.6979236436704621E-3},{"$f":"'Population 2016'!R189/'Population 2016'!R$5","v":4.0187363602491085E-3},{"$f":"'Population 2016'!S189/'Population 2016'!S$5","v":4.2914818234296194E-3},{"$f":"'Population 2016'!T189/'Population 2016'!T$5","v":2.7500779421413381E-3},{"$f":"'Population 2016'!U189/'Population 2016'!U$5","v":1.6819368831053865E-3},{"$f":"'Population 2016'!V189/'Population 2016'!V$5","v":4.442036009494661E-3},{"$f":"'Population 2016'!W189/'Population 2016'!W$5","v":4.278365004347002E-3},{"$f":"'Population 2016'!X189/'Population 2016'!X$5","v":4.278365004347002E-3},{"$f":"'Population 2016'!Y189/'Population 2016'!Y$5","v":4.7733740322093449E-3},{"$f":"'Population 2016'!Z189/'Population 2016'!Z$5","v":1.7809335576277191E-3},{"$f":"'Population 2016'!AA189/'Population 2016'!AA$5","v":2.9804199827659175E-3},{"$f":"'Population 2016'!AB189/'Population 2016'!AB$5","v":6.1860945927965363E-3},{"$f":"'Population 2016'!AC189/'Population 2016'!AC$5","v":2.8805120174754512E-3},{"$f":"'Population 2016'!AD189/'Population 2016'!AD$5","v":8.0278387733075298E-3},{"$f":"'Population 2016'!AE189/'Population 2016'!AE$5","v":8.1931025985893073E-3},{"$f":"'Population 2016'!AF189/'Population 2016'!AF$5","v":3.6495799966821999E-3},{"$f":"'Population 2016'!AG189/'Population 2016'!AG$5","v":8.1931025985893073E-3},{"$f":"'Population 2016'!AH189/'Population 2016'!AH$5","v":3.1598599333104225E-3},{"$f":"'Population 2016'!AI189/'Population 2016'!AI$5","v":3.3973335374923442E-3},{"$f":"'Population 2016'!AJ189/'Population 2016'!AJ$5","v":3.6667317290801104E-3},{"$f":"'Population 2016'!AK189/'Population 2016'!AK$5","v":9.1019951472788296E-3},{"$f":"'Population 2016'!AL189/'Population 2016'!AL$5","v":4.5405367056277823E-3},{"$f":"'Population 2016'!AM189/'Population 2016'!AM$5","v":2.4520900717517049E-3},{"$f":"'Population 2016'!AN189/'Population 2016'!AN$5","v":1.2381367950256354E-2},{"$f":"'Population 2016'!AO189/'Population 2016'!AO$5","v":1.2381367950256354E-2},{"$f":"'Population 2016'!AP189/'Population 2016'!AP$5","v":1.1009305201084285E-2},{"$f":"'Population 2016'!AQ189/'Population 2016'!AQ$5","v":3.9047514659944099E-3},{"$f":"'Population 2016'!AR189/'Population 2016'!AR$5","v":4.6132771399285729E-3},{"$f":"'Population 2016'!AS189/'Population 2016'!AS$5","v":1.1179968176869609E-2},{"$f":"'Population 2016'!AT189/'Population 2016'!AT$5","v":1.2706279327252597E-2},{"$f":"'Population 2016'!AU189/'Population 2016'!AU$5","v":1.2706279327252597E-2},{"$f":"'Population 2016'!AV189/'Population 2016'!AV$5","v":4.413472706155633E-3},{"$f":"'Population 2016'!AW189/'Population 2016'!AW$5","v":3.9050582707913844E-3},{"$f":"'Population 2016'!AX189/'Population 2016'!AX$5","v":6.0058525115964066E-3},{"$f":"'Population 2016'!AY189/'Population 2016'!AY$5","v":5.8734432850891952E-3},{"$f":"'Population 2016'!AZ189/'Population 2016'!AZ$5","v":7.2771830110854793E-3},{"$f":"'Population 2016'!BA189/'Population 2016'!BA$5","v":3.6574174044482835E-3},{"$f":"'Population 2016'!BB189/'Population 2016'!BB$5","v":3.245340864365467E-3},{"$f":"'Population 2016'!BC189/'Population 2016'!BC$5","v":1.6819368831053865E-3},187]
[null,"Female 80-84",{"$f":"'Population 2016'!C190/'Population 2016'!C$5","v":2.3357679156465784E-3},{"$f":"'Population 2016'!D190/'Population 2016'!D$5","v":4.2252281329773185E-3},{"$f":"'Population 2016'!E190/'Population 2016'!E$5","v":5.9582128174236705E-3},{"$f":"'Population 2016'!F190/'Population 2016'!F$5","v":6.0880762297192892E-3},{"$f":"'Population 2016'!G190/'Population 2016'!G$5","v":5.1832404049152814E-3},{"$f":"'Population 2016'!H190/'Population 2016'!H$5","v":3.05110355270368E-3},{"$f":"'Population 2016'!I190/'Population 2016'!I$5","v":7.6312704128632444E-3},{"$f":"'Population 2016'!J190/'Population 2016'!J$5","v":4.030418881600226E-3},{"$f":"'Population 2016'!K190/'Population 2016'!K$5","v":2.5988753957378445E-3},{"$f":"'Population 2016'!L190/'Population 2016'!L$5","v":4.4557050497990563E-3},{"$f":"'Population 2016'!M190/'Population 2016'!M$5","v":4.4557050497990563E-3},{"$f":"'Population 2016'!N190/'Population 2016'!N$5","v":3.2550775190683247E-3},{"$f":"'Population 2016'!O190/'Population 2016'!O$5","v":1.8921944502233979E-3},{"$f":"'Population 2016'!P190/'Population 2016'!P$5","v":3.7980389947030319E-3},{"$f":"'Population 2016'!Q190/'Population 2016'!Q$5","v":5.2055792528877456E-3},{"$f":"'Population 2016'!R190/'Population 2016'!R$5","v":3.41991802842391E-3},{"$f":"'Population 2016'!S190/'Population 2016'!S$5","v":3.2049301729479532E-3},{"$f":"'Population 2016'!T190/'Population 2016'!T$5","v":2.3568772888233297E-3},{"$f":"'Population 2016'!U190/'Population 2016'!U$5","v":8.4096844155269327E-4},{"$f":"'Population 2016'!V190/'Population 2016'!V$5","v":3.2284900893749858E-3},{"$f":"'Population 2016'!W190/'Population 2016'!W$5","v":3.1899803240967714E-3},{"$f":"'Population 2016'!X190/'Population 2016'!X$5","v":3.1899803240967714E-3},{"$f":"'Population 2016'!Y190/'Population 2016'!Y$5","v":3.6128201459436258E-3},{"$f":"'Population 2016'!Z190/'Population 2016'!Z$5","v":1.3376359655660368E-3},{"$f":"'Population 2016'!AA190/'Population 2016'!AA$5","v":2.1944554621212272E-3},{"$f":"'Population 2016'!AB190/'Population 2016'!AB$5","v":4.7429454571507532E-3},{"$f":"'Population 2016'!AC190/'Population 2016'!AC$5","v":2.1999458029336749E-3},{"$f":"'Population 2016'!AD190/'Population 2016'!AD$5","v":6.0888012207376534E-3},{"$f":"'Population 2016'!AE190/'Population 2016'!AE$5","v":6.4323042331030089E-3},{"$f":"'Population 2016'!AF190/'Population 2016'!AF$5","v":3.4082854514470131E-3},{"$f":"'Population 2016'!AG190/'Population 2016'!AG$5","v":6.4323042331030089E-3},{"$f":"'Population 2016'!AH190/'Population 2016'!AH$5","v":2.1845945217948597E-3},{"$f":"'Population 2016'!AI190/'Population 2016'!AI$5","v":2.6331043835856154E-3},{"$f":"'Population 2016'!AJ190/'Population 2016'!AJ$5","v":2.4816663413545995E-3},{"$f":"'Population 2016'!AK190/'Population 2016'!AK$5","v":7.4047999195403745E-3},{"$f":"'Population 2016'!AL190/'Population 2016'!AL$5","v":3.3787978219612992E-3},{"$f":"'Population 2016'!AM190/'Population 2016'!AM$5","v":1.5538355107555118E-3},{"$f":"'Population 2016'!AN190/'Population 2016'!AN$5","v":7.308825133631504E-3},{"$f":"'Population 2016'!AO190/'Population 2016'!AO$5","v":7.308825133631504E-3},{"$f":"'Population 2016'!AP190/'Population 2016'!AP$5","v":8.044956644420842E-3},{"$f":"'Population 2016'!AQ190/'Population 2016'!AQ$5","v":3.0073436729325369E-3},{"$f":"'Population 2016'!AR190/'Population 2016'!AR$5","v":3.4829039407786029E-3},{"$f":"'Population 2016'!AS190/'Population 2016'!AS$5","v":7.6312704128632444E-3},{"$f":"'Population 2016'!AT190/'Population 2016'!AT$5","v":9.0683819265039278E-3},{"$f":"'Population 2016'!AU190/'Population 2016'!AU$5","v":9.0683819265039278E-3},{"$f":"'Population 2016'!AV190/'Population 2016'!AV$5","v":3.8961038961038961E-3},{"$f":"'Population 2016'!AW190/'Population 2016'!AW$5","v":2.8487095002745744E-3},{"$f":"'Population 2016'!AX190/'Population 2016'!AX$5","v":4.8046820092771253E-3},{"$f":"'Population 2016'!AY190/'Population 2016'!AY$5","v":4.5699336005630186E-3},{"$f":"'Population 2016'!AZ190/'Population 2016'!AZ$5","v":5.7843537688904738E-3},{"$f":"'Population 2016'!BA190/'Population 2016'!BA$5","v":2.3887929172964804E-3},{"$f":"'Population 2016'!BB190/'Population 2016'!BB$5","v":2.0162543242440772E-3},{"$f":"'Population 2016'!BC190/'Population 2016'!BC$5","v":8.4096844155269327E-4},188]
[null,"Female 85-89",{"$f":"'Population 2016'!C191/'Population 2016'!C$5","v":1.4311050686674879E-3},{"$f":"'Population 2016'!D191/'Population 2016'!D$5","v":2.6578836692976535E-3},{"$f":"'Population 2016'!E191/'Population 2016'!E$5","v":3.7830666747922124E-3},{"$f":"'Population 2016'!F191/'Population 2016'!F$5","v":3.5951583826937935E-3},{"$f":"'Population 2016'!G191/'Population 2016'!G$5","v":3.3833161911979645E-3},{"$f":"'Population 2016'!H191/'Population 2016'!H$5","v":1.7898078226274508E-3},{"$f":"'Population 2016'!I191/'Population 2016'!I$5","v":4.961895988610669E-3},{"$f":"'Population 2016'!J191/'Population 2016'!J$5","v":2.479619846910427E-3},{"$f":"'Population 2016'!K191/'Population 2016'!K$5","v":1.630203657326466E-3},{"$f":"'Population 2016'!L191/'Population 2016'!L$5","v":2.6051181039823362E-3},{"$f":"'Population 2016'!M191/'Population 2016'!M$5","v":2.6051181039823362E-3},{"$f":"'Population 2016'!N191/'Population 2016'!N$5","v":2.6040620152546594E-3},{"$f":"'Population 2016'!O191/'Population 2016'!O$5","v":1.1491861582508594E-3},{"$f":"'Population 2016'!P191/'Population 2016'!P$5","v":2.9076975092978698E-3},{"$f":"'Population 2016'!Q191/'Population 2016'!Q$5","v":2.9729380383309244E-3},{"$f":"'Population 2016'!R191/'Population 2016'!R$5","v":2.2488955128546336E-3},{"$f":"'Population 2016'!S191/'Population 2016'!S$5","v":2.1086692875716497E-3},{"$f":"'Population 2016'!T191/'Population 2016'!T$5","v":1.9427369557428235E-3},{"$f":"'Population 2016'!U191/'Population 2016'!U$5","v":9.7375293232417125E-4},{"$f":"'Population 2016'!V191/'Population 2016'!V$5","v":1.938620526480488E-3},{"$f":"'Population 2016'!W191/'Population 2016'!W$5","v":1.9349060982226318E-3},{"$f":"'Population 2016'!X191/'Population 2016'!X$5","v":1.9349060982226318E-3},{"$f":"'Population 2016'!Y191/'Population 2016'!Y$5","v":2.1978982846059679E-3},{"$f":"'Population 2016'!Z191/'Population 2016'!Z$5","v":8.6142981863514669E-4},{"$f":"'Population 2016'!AA191/'Population 2016'!AA$5","v":1.3952032910852488E-3},{"$f":"'Population 2016'!AB191/'Population 2016'!AB$5","v":2.9968373540218826E-3},{"$f":"'Population 2016'!AC191/'Population 2016'!AC$5","v":1.4697334207657508E-3},{"$f":"'Population 2016'!AD191/'Population 2016'!AD$5","v":3.729204659644944E-3},{"$f":"'Population 2016'!AE191/'Population 2016'!AE$5","v":3.860409244448095E-3},{"$f":"'Population 2016'!AF191/'Population 2016'!AF$5","v":2.171650907116681E-3},{"$f":"'Population 2016'!AG191/'Population 2016'!AG$5","v":3.860409244448095E-3},{"$f":"'Population 2016'!AH191/'Population 2016'!AH$5","v":1.2613432655601273E-3},{"$f":"'Population 2016'!AI191/'Population 2016'!AI$5","v":1.8087212354536706E-3},{"$f":"'Population 2016'!AJ191/'Population 2016'!AJ$5","v":1.33842679084293E-3},{"$f":"'Population 2016'!AK191/'Population 2016'!AK$5","v":4.7395748211659103E-3},{"$f":"'Population 2016'!AL191/'Population 2016'!AL$5","v":2.0042212802185134E-3},{"$f":"'Population 2016'!AM191/'Population 2016'!AM$5","v":6.4471496716662262E-4},{"$f":"'Population 2016'!AN191/'Population 2016'!AN$5","v":5.3452601723573689E-3},{"$f":"'Population 2016'!AO191/'Population 2016'!AO$5","v":5.3452601723573689E-3},{"$f":"'Population 2016'!AP191/'Population 2016'!AP$5","v":5.516541699031435E-3},{"$f":"'Population 2016'!AQ191/'Population 2016'!AQ$5","v":2.0140297035129064E-3},{"$f":"'Population 2016'!AR191/'Population 2016'!AR$5","v":2.2251019931237488E-3},{"$f":"'Population 2016'!AS191/'Population 2016'!AS$5","v":4.961895988610669E-3},{"$f":"'Population 2016'!AT191/'Population 2016'!AT$5","v":5.8522697316391627E-3},{"$f":"'Population 2016'!AU191/'Population 2016'!AU$5","v":5.8522697316391627E-3},{"$f":"'Population 2016'!AV191/'Population 2016'!AV$5","v":2.2172949002217295E-3},{"$f":"'Population 2016'!AW191/'Population 2016'!AW$5","v":1.9105802672524253E-3},{"$f":"'Population 2016'!AX191/'Population 2016'!AX$5","v":2.9390342078024971E-3},{"$f":"'Population 2016'!AY191/'Population 2016'!AY$5","v":3.0002141917321993E-3},{"$f":"'Population 2016'!AZ191/'Population 2016'!AZ$5","v":3.9377326253660161E-3},{"$f":"'Population 2016'!BA191/'Population 2016'!BA$5","v":1.4980565752537249E-3},{"$f":"'Population 2016'!BB191/'Population 2016'!BB$5","v":9.5979229818468062E-4},{"$f":"'Population 2016'!BC191/'Population 2016'!BC$5","v":9.7375293232417125E-4},189]
[null,"Female 90+",{"$f":"'Population 2016'!C192/'Population 2016'!C$5","v":6.5933054949323549E-4},{"$f":"'Population 2016'!D192/'Population 2016'!D$5","v":1.4499770155414063E-3},{"$f":"'Population 2016'!E192/'Population 2016'!E$5","v":2.1751461426314581E-3},{"$f":"'Population 2016'!F192/'Population 2016'!F$5","v":2.9152716971413855E-3},{"$f":"'Population 2016'!G192/'Population 2016'!G$5","v":2.1653223623666973E-3},{"$f":"'Population 2016'!H192/'Population 2016'!H$5","v":1.1089026727148336E-3},{"$f":"'Population 2016'!I192/'Population 2016'!I$5","v":2.9206096641822294E-3},{"$f":"'Population 2016'!J192/'Population 2016'!J$5","v":1.799590323677467E-3},{"$f":"'Population 2016'!K192/'Population 2016'!K$5","v":1.0631762982563908E-3},{"$f":"'Population 2016'!L192/'Population 2016'!L$5","v":1.358156084698108E-3},{"$f":"'Population 2016'!M192/'Population 2016'!M$5","v":1.358156084698108E-3},{"$f":"'Population 2016'!N192/'Population 2016'!N$5","v":1.50296171868093E-3},{"$f":"'Population 2016'!O192/'Population 2016'!O$5","v":7.0338118306733635E-4},{"$f":"'Population 2016'!P192/'Population 2016'!P$5","v":1.4538487546489349E-3},{"$f":"'Population 2016'!Q192/'Population 2016'!Q$5","v":1.5158458772517361E-3},{"$f":"'Population 2016'!R192/'Population 2016'!R$5","v":2.2355884388140738E-3},{"$f":"'Population 2016'!S192/'Population 2016'!S$5","v":1.2533739591258865E-3},{"$f":"'Population 2016'!T192/'Population 2016'!T$5","v":1.1470291247679186E-3},{"$f":"'Population 2016'!U192/'Population 2016'!U$5","v":4.8687646616208562E-4},{"$f":"'Population 2016'!V192/'Population 2016'!V$5","v":1.3203990200044268E-3},{"$f":"'Population 2016'!W192/'Population 2016'!W$5","v":1.3302479425280594E-3},{"$f":"'Population 2016'!X192/'Population 2016'!X$5","v":1.3302479425280594E-3},{"$f":"'Population 2016'!Y192/'Population 2016'!Y$5","v":1.5500548480946248E-3},{"$f":"'Population 2016'!Z192/'Population 2016'!Z$5","v":5.3040847259782069E-4},{"$f":"'Population 2016'!AA192/'Population 2016'!AA$5","v":7.8729328568381905E-4},{"$f":"'Population 2016'!AB192/'Population 2016'!AB$5","v":1.6171458399435023E-3},{"$f":"'Population 2016'!AC192/'Population 2016'!AC$5","v":8.9156242695290439E-4},{"$f":"'Population 2016'!AD192/'Population 2016'!AD$5","v":2.4265882615653726E-3},{"$f":"'Population 2016'!AE192/'Population 2016'!AE$5","v":2.5256932822718919E-3},{"$f":"'Population 2016'!AF192/'Population 2016'!AF$5","v":1.131068180789938E-3},{"$f":"'Population 2016'!AG192/'Population 2016'!AG$5","v":2.5256932822718919E-3},{"$f":"'Population 2016'!AH192/'Population 2016'!AH$5","v":6.0002043413243176E-4},{"$f":"'Population 2016'!AI192/'Population 2016'!AI$5","v":1.0034779945752035E-3},{"$f":"'Population 2016'!AJ192/'Population 2016'!AJ$5","v":9.8987814739425026E-4},{"$f":"'Population 2016'!AK192/'Population 2016'!AK$5","v":2.4766478508479691E-3},{"$f":"'Population 2016'!AL192/'Population 2016'!AL$5","v":1.3302353629768894E-3},{"$f":"'Population 2016'!AM192/'Population 2016'!AM$5","v":2.8613754160765835E-4},{"$f":"'Population 2016'!AN192/'Population 2016'!AN$5","v":2.6180866150321805E-3},{"$f":"'Population 2016'!AO192/'Population 2016'!AO$5","v":2.6180866150321805E-3},{"$f":"'Population 2016'!AP192/'Population 2016'!AP$5","v":3.5984338094256774E-3},{"$f":"'Population 2016'!AQ192/'Population 2016'!AQ$5","v":1.1029210281142106E-3},{"$f":"'Population 2016'!AR192/'Population 2016'!AR$5","v":1.3362196390424754E-3},{"$f":"'Population 2016'!AS192/'Population 2016'!AS$5","v":2.9206096641822294E-3},{"$f":"'Population 2016'!AT192/'Population 2016'!AT$5","v":3.4270047978067169E-3},{"$f":"'Population 2016'!AU192/'Population 2016'!AU$5","v":3.4270047978067169E-3},{"$f":"'Population 2016'!AV192/'Population 2016'!AV$5","v":1.2775842044134727E-3},{"$f":"'Population 2016'!AW192/'Population 2016'!AW$5","v":9.3050216608700953E-4},{"$f":"'Population 2016'!AX192/'Population 2016'!AX$5","v":2.1978864510523019E-3},{"$f":"'Population 2016'!AY192/'Population 2016'!AY$5","v":2.0363513968360823E-3},{"$f":"'Population 2016'!AZ192/'Population 2016'!AZ$5","v":2.6577537953529577E-3},{"$f":"'Population 2016'!BA192/'Population 2016'!BA$5","v":7.4228028503562943E-4},{"$f":"'Population 2016'!BB192/'Population 2016'!BB$5","v":2.831042030616684E-4},{"$f":"'Population 2016'!BC192/'Population 2016'!BC$5","v":4.8687646616208562E-4},190]
[null,"Male 0-4",{"$f":"'Population 2016'!C193/'Population 2016'!C$5","v":0},{"$f":"'Population 2016'!D193/'Population 2016'!D$5","v":0},{"$f":"'Population 2016'!E193/'Population 2016'!E$5","v":0},{"$f":"'Population 2016'!F193/'Population 2016'!F$5","v":0},{"$f":"'Population 2016'!G193/'Population 2016'!G$5","v":0},{"$f":"'Population 2016'!H193/'Population 2016'!H$5","v":0},{"$f":"'Population 2016'!I193/'Population 2016'!I$5","v":0},{"$f":"'Population 2016'!J193/'Population 2016'!J$5","v":0},{"$f":"'Population 2016'!K193/'Population 2016'!K$5","v":0},{"$f":"'Population 2016'!L193/'Population 2016'!L$5","v":0},{"$f":"'Population 2016'!M193/'Population 2016'!M$5","v":0},{"$f":"'Population 2016'!N193/'Population 2016'!N$5","v":0},{"$f":"'Population 2016'!O193/'Population 2016'!O$5","v":0},{"$f":"'Population 2016'!P193/'Population 2016'!P$5","v":0},{"$f":"'Population 2016'!Q193/'Population 2016'!Q$5","v":0},{"$f":"'Population 2016'!R193/'Population 2016'!R$5","v":0},{"$f":"'Population 2016'!S193/'Population 2016'!S$5","v":0},{"$f":"'Population 2016'!T193/'Population 2016'!T$5","v":0},{"$f":"'Population 2016'!U193/'Population 2016'!U$5","v":0},{"$f":"'Population 2016'!V193/'Population 2016'!V$5","v":0},{"$f":"'Population 2016'!W193/'Population 2016'!W$5","v":0},{"$f":"'Population 2016'!X193/'Population 2016'!X$5","v":0},{"$f":"'Population 2016'!Y193/'Population 2016'!Y$5","v":0},{"$f":"'Population 2016'!Z193/'Population 2016'!Z$5","v":0},{"$f":"'Population 2016'!AA193/'Population 2016'!AA$5","v":0},{"$f":"'Population 2016'!AB193/'Population 2016'!AB$5","v":0},{"$f":"'Population 2016'!AC193/'Population 2016'!AC$5","v":0},{"$f":"'Population 2016'!AD193/'Population 2016'!AD$5","v":0},{"$f":"'Population 2016'!AE193/'Population 2016'!AE$5","v":0},{"$f":"'Population 2016'!AF193/'Population 2016'!AF$5","v":0},{"$f":"'Population 2016'!AG193/'Population 2016'!AG$5","v":0},{"$f":"'Population 2016'!AH193/'Population 2016'!AH$5","v":0},{"$f":"'Population 2016'!AI193/'Population 2016'!AI$5","v":0},{"$f":"'Population 2016'!AJ193/'Population 2016'!AJ$5","v":0},{"$f":"'Population 2016'!AK193/'Population 2016'!AK$5","v":0},{"$f":"'Population 2016'!AL193/'Population 2016'!AL$5","v":0},{"$f":"'Population 2016'!AM193/'Population 2016'!AM$5","v":0},{"$f":"'Population 2016'!AN193/'Population 2016'!AN$5","v":0},{"$f":"'Population 2016'!AO193/'Population 2016'!AO$5","v":0},{"$f":"'Population 2016'!AP193/'Population 2016'!AP$5","v":0},{"$f":"'Population 2016'!AQ193/'Population 2016'!AQ$5","v":0},{"$f":"'Population 2016'!AR193/'Population 2016'!AR$5","v":0},{"$f":"'Population 2016'!AS193/'Population 2016'!AS$5","v":0},{"$f":"'Population 2016'!AT193/'Population 2016'!AT$5","v":0},{"$f":"'Population 2016'!AU193/'Population 2016'!AU$5","v":0},{"$f":"'Population 2016'!AV193/'Population 2016'!AV$5","v":0},{"$f":"'Population 2016'!AW193/'Population 2016'!AW$5","v":0},{"$f":"'Population 2016'!AX193/'Population 2016'!AX$5","v":0},{"$f":"'Population 2016'!AY193/'Population 2016'!AY$5","v":0},{"$f":"'Population 2016'!AZ193/'Population 2016'!AZ$5","v":0},{"$f":"'Population 2016'!BA193/'Population 2016'!BA$5","v":0},{"$f":"'Population 2016'!BB193/'Population 2016'!BB$5","v":0},{"$f":"'Population 2016'!BC193/'Population 2016'!BC$5","v":0},191]
[null,"Male 5-9",{"$f":"'Population 2016'!C194/'Population 2016'!C$5","v":0},{"$f":"'Population 2016'!D194/'Population 2016'!D$5","v":0},{"$f":"'Population 2016'!E194/'Population 2016'!E$5","v":0},{"$f":"'Population 2016'!F194/'Population 2016'!F$5","v":0},{"$f":"'Population 2016'!G194/'Population 2016'!G$5","v":0},{"$f":"'Population 2016'!H194/'Population 2016'!H$5","v":0},{"$f":"'Population 2016'!I194/'Population 2016'!I$5","v":0},{"$f":"'Population 2016'!J194/'Population 2016'!J$5","v":0},{"$f":"'Population 2016'!K194/'Population 2016'!K$5","v":0},{"$f":"'Population 2016'!L194/'Population 2016'!L$5","v":0},{"$f":"'Population 2016'!M194/'Population 2016'!M$5","v":0},{"$f":"'Population 2016'!N194/'Population 2016'!N$5","v":0},{"$f":"'Population 2016'!O194/'Population 2016'!O$5","v":0},{"$f":"'Population 2016'!P194/'Population 2016'!P$5","v":0},{"$f":"'Population 2016'!Q194/'Population 2016'!Q$5","v":0},{"$f":"'Population 2016'!R194/'Population 2016'!R$5","v":0},{"$f":"'Population 2016'!S194/'Population 2016'!S$5","v":0},{"$f":"'Population 2016'!T194/'Population 2016'!T$5","v":0},{"$f":"'Population 2016'!U194/'Population 2016'!U$5","v":0},{"$f":"'Population 2016'!V194/'Population 2016'!V$5","v":0},{"$f":"'Population 2016'!W194/'Population 2016'!W$5","v":0},{"$f":"'Population 2016'!X194/'Population 2016'!X$5","v":0},{"$f":"'Population 2016'!Y194/'Population 2016'!Y$5","v":0},{"$f":"'Population 2016'!Z194/'Population 2016'!Z$5","v":0},{"$f":"'Population 2016'!AA194/'Population 2016'!AA$5","v":0},{"$f":"'Population 2016'!AB194/'Population 2016'!AB$5","v":0},{"$f":"'Population 2016'!AC194/'Population 2016'!AC$5","v":0},{"$f":"'Population 2016'!AD194/'Population 2016'!AD$5","v":0},{"$f":"'Population 2016'!AE194/'Population 2016'!AE$5","v":0},{"$f":"'Population 2016'!AF194/'Population 2016'!AF$5","v":0},{"$f":"'Population 2016'!AG194/'Population 2016'!AG$5","v":0},{"$f":"'Population 2016'!AH194/'Population 2016'!AH$5","v":0},{"$f":"'Population 2016'!AI194/'Population 2016'!AI$5","v":0},{"$f":"'Population 2016'!AJ194/'Population 2016'!AJ$5","v":0},{"$f":"'Population 2016'!AK194/'Population 2016'!AK$5","v":0},{"$f":"'Population 2016'!AL194/'Population 2016'!AL$5","v":0},{"$f":"'Population 2016'!AM194/'Population 2016'!AM$5","v":0},{"$f":"'Population 2016'!AN194/'Population 2016'!AN$5","v":0},{"$f":"'Population 2016'!AO194/'Population 2016'!AO$5","v":0},{"$f":"'Population 2016'!AP194/'Population 2016'!AP$5","v":0},{"$f":"'Population 2016'!AQ194/'Population 2016'!AQ$5","v":0},{"$f":"'Population 2016'!AR194/'Population 2016'!AR$5","v":0},{"$f":"'Population 2016'!AS194/'Population 2016'!AS$5","v":0},{"$f":"'Population 2016'!AT194/'Population 2016'!AT$5","v":0},{"$f":"'Population 2016'!AU194/'Population 2016'!AU$5","v":0},{"$f":"'Population 2016'!AV194/'Population 2016'!AV$5","v":0},{"$f":"'Population 2016'!AW194/'Population 2016'!AW$5","v":0},{"$f":"'Population 2016'!AX194/'Population 2016'!AX$5","v":0},{"$f":"'Population 2016'!AY194/'Population 2016'!AY$5","v":0},{"$f":"'Population 2016'!AZ194/'Population 2016'!AZ$5","v":0},{"$f":"'Population 2016'!BA194/'Population 2016'!BA$5","v":0},{"$f":"'Population 2016'!BB194/'Population 2016'!BB$5","v":0},{"$f":"'Population 2016'!BC194/'Population 2016'!BC$5","v":0},192]
[null,"Male 10-15",{"$f":"'Population 2016'!C195/'Population 2016'!C$5","v":0},{"$f":"'Population 2016'!D195/'Population 2016'!D$5","v":0},{"$f":"'Population 2016'!E195/'Population 2016'!E$5","v":0},{"$f":"'Population 2016'!F195/'Population 2016'!F$5","v":0},{"$f":"'Population 2016'!G195/'Population 2016'!G$5","v":0},{"$f":"'Population 2016'!H195/'Population 2016'!H$5","v":0},{"$f":"'Population 2016'!I195/'Population 2016'!I$5","v":0},{"$f":"'Population 2016'!J195/'Population 2016'!J$5","v":0},{"$f":"'Population 2016'!K195/'Population 2016'!K$5","v":0},{"$f":"'Population 2016'!L195/'Population 2016'!L$5","v":0},{"$f":"'Population 2016'!M195/'Population 2016'!M$5","v":0},{"$f":"'Population 2016'!N195/'Population 2016'!N$5","v":0},{"$f":"'Population 2016'!O195/'Population 2016'!O$5","v":0},{"$f":"'Population 2016'!P195/'Population 2016'!P$5","v":0},{"$f":"'Population 2016'!Q195/'Population 2016'!Q$5","v":0},{"$f":"'Population 2016'!R195/'Population 2016'!R$5","v":0},{"$f":"'Population 2016'!S195/'Population 2016'!S$5","v":0},{"$f":"'Population 2016'!T195/'Population 2016'!T$5","v":0},{"$f":"'Population 2016'!U195/'Population 2016'!U$5","v":0},{"$f":"'Population 2016'!V195/'Population 2016'!V$5","v":0},{"$f":"'Population 2016'!W195/'Population 2016'!W$5","v":0},{"$f":"'Population 2016'!X195/'Population 2016'!X$5","v":0},{"$f":"'Population 2016'!Y195/'Population 2016'!Y$5","v":0},{"$f":"'Population 2016'!Z195/'Population 2016'!Z$5","v":0},{"$f":"'Population 2016'!AA195/'Population 2016'!AA$5","v":0},{"$f":"'Population 2016'!AB195/'Population 2016'!AB$5","v":0},{"$f":"'Population 2016'!AC195/'Population 2016'!AC$5","v":0},{"$f":"'Population 2016'!AD195/'Population 2016'!AD$5","v":0},{"$f":"'Population 2016'!AE195/'Population 2016'!AE$5","v":0},{"$f":"'Population 2016'!AF195/'Population 2016'!AF$5","v":0},{"$f":"'Population 2016'!AG195/'Population 2016'!AG$5","v":0},{"$f":"'Population 2016'!AH195/'Population 2016'!AH$5","v":0},{"$f":"'Population 2016'!AI195/'Population 2016'!AI$5","v":0},{"$f":"'Population 2016'!AJ195/'Population 2016'!AJ$5","v":0},{"$f":"'Population 2016'!AK195/'Population 2016'!AK$5","v":0},{"$f":"'Population 2016'!AL195/'Population 2016'!AL$5","v":0},{"$f":"'Population 2016'!AM195/'Population 2016'!AM$5","v":0},{"$f":"'Population 2016'!AN195/'Population 2016'!AN$5","v":0},{"$f":"'Population 2016'!AO195/'Population 2016'!AO$5","v":0},{"$f":"'Population 2016'!AP195/'Population 2016'!AP$5","v":0},{"$f":"'Population 2016'!AQ195/'Population 2016'!AQ$5","v":0},{"$f":"'Population 2016'!AR195/'Population 2016'!AR$5","v":0},{"$f":"'Population 2016'!AS195/'Population 2016'!AS$5","v":0},{"$f":"'Population 2016'!AT195/'Population 2016'!AT$5","v":0},{"$f":"'Population 2016'!AU195/'Population 2016'!AU$5","v":0},{"$f":"'Population 2016'!AV195/'Population 2016'!AV$5","v":0},{"$f":"'Population 2016'!AW195/'Population 2016'!AW$5","v":0},{"$f":"'Population 2016'!AX195/'Population 2016'!AX$5","v":0},{"$f":"'Population 2016'!AY195/'Population 2016'!AY$5","v":0},{"$f":"'Population 2016'!AZ195/'Population 2016'!AZ$5","v":0},{"$f":"'Population 2016'!BA195/'Population 2016'!BA$5","v":0},{"$f":"'Population 2016'!BB195/'Population 2016'!BB$5","v":0},{"$f":"'Population 2016'!BC195/'Population 2016'!BC$5","v":0},193]
[null,"Male 16-19",{"$f":"'Population 2016'!C196/'Population 2016'!C$5","v":4.4159813547453913E-3},{"$f":"'Population 2016'!D196/'Population 2016'!D$5","v":7.4234910947448725E-3},{"$f":"'Population 2016'!E196/'Population 2016'!E$5","v":1.0181934098697257E-2},{"$f":"'Population 2016'!F196/'Population 2016'!F$5","v":7.2418233324748902E-3},{"$f":"'Population 2016'!G196/'Population 2016'!G$5","v":6.8478319709846802E-3},{"$f":"'Population 2016'!H196/'Population 2016'!H$5","v":3.9687043023478256E-3},{"$f":"'Population 2016'!I196/'Population 2016'!I$5","v":8.8979147475085844E-3},{"$f":"'Population 2016'!J196/'Population 2016'!J$5","v":7.3559291110687243E-3},{"$f":"'Population 2016'!K196/'Population 2016'!K$5","v":5.4340121910882201E-3},{"$f":"'Population 2016'!L196/'Population 2016'!L$5","v":4.20948961923975E-3},{"$f":"'Population 2016'!M196/'Population 2016'!M$5","v":4.20948961923975E-3},{"$f":"'Population 2016'!N196/'Population 2016'!N$5","v":6.1404425297980243E-3},{"$f":"'Population 2016'!O196/'Population 2016'!O$5","v":3.5664398014681846E-3},{"$f":"'Population 2016'!P196/'Population 2016'!P$5","v":5.0715654231939591E-3},{"$f":"'Population 2016'!Q196/'Population 2016'!Q$5","v":8.7073007367716015E-3},{"$f":"'Population 2016'!R196/'Population 2016'!R$5","v":4.6707829882365465E-3},{"$f":"'Population 2016'!S196/'Population 2016'!S$5","v":4.5589271118909886E-3},{"$f":"'Population 2016'!T196/'Population 2016'!T$5","v":2.9199220113260401E-3},{"$f":"'Population 2016'!U196/'Population 2016'!U$5","v":1.5491523923339087E-3},{"$f":"'Population 2016'!V196/'Population 2016'!V$5","v":6.2356416147029865E-3},{"$f":"'Population 2016'!W196/'Population 2016'!W$5","v":4.5529124912569701E-3},{"$f":"'Population 2016'!X196/'Population 2016'!X$5","v":4.5529124912569701E-3},{"$f":"'Population 2016'!Y196/'Population 2016'!Y$5","v":6.7725473362903613E-3},{"$f":"'Population 2016'!Z196/'Population 2016'!Z$5","v":2.5068575620955393E-3},{"$f":"'Population 2016'!AA196/'Population 2016'!AA$5","v":4.077979905086313E-3},{"$f":"'Population 2016'!AB196/'Population 2016'!AB$5","v":7.9199205756220383E-3},{"$f":"'Population 2016'!AC196/'Population 2016'!AC$5","v":3.5414266239985437E-3},{"$f":"'Population 2016'!AD196/'Population 2016'!AD$5","v":8.7498604339573492E-3},{"$f":"'Population 2016'!AE196/'Population 2016'!AE$5","v":9.4713498085195955E-3},{"$f":"'Population 2016'!AF196/'Population 2016'!AF$5","v":5.9720399945708729E-3},{"$f":"'Population 2016'!AG196/'Population 2016'!AG$5","v":9.4713498085195955E-3},{"$f":"'Population 2016'!AH196/'Population 2016'!AH$5","v":5.0416577654347362E-3},{"$f":"'Population 2016'!AI196/'Population 2016'!AI$5","v":3.9947720710473361E-3},{"$f":"'Population 2016'!AJ196/'Population 2016'!AJ$5","v":3.8340350779354766E-3},{"$f":"'Population 2016'!AK196/'Population 2016'!AK$5","v":1.0472323145971362E-2},{"$f":"'Population 2016'!AL196/'Population 2016'!AL$5","v":4.5760096486404996E-3},{"$f":"'Population 2016'!AM196/'Population 2016'!AM$5","v":4.1652933272000895E-3},{"$f":"'Population 2016'!AN196/'Population 2016'!AN$5","v":1.3472237373186429E-2},{"$f":"'Population 2016'!AO196/'Population 2016'!AO$5","v":1.3472237373186429E-2},{"$f":"'Population 2016'!AP196/'Population 2016'!AP$5","v":1.290363489371146E-2},{"$f":"'Population 2016'!AQ196/'Population 2016'!AQ$5","v":4.8569627884035736E-3},{"$f":"'Population 2016'!AR196/'Population 2016'!AR$5","v":5.5097339301097871E-3},{"$f":"'Population 2016'!AS196/'Population 2016'!AS$5","v":8.8979147475085844E-3},{"$f":"'Population 2016'!AT196/'Population 2016'!AT$5","v":1.9718458375072495E-2},{"$f":"'Population 2016'!AU196/'Population 2016'!AU$5","v":1.9718458375072495E-2},{"$f":"'Population 2016'!AV196/'Population 2016'!AV$5","v":3.6743744060817232E-3},{"$f":"'Population 2016'!AW196/'Population 2016'!AW$5","v":5.9643663432790289E-3},{"$f":"'Population 2016'!AX196/'Population 2016'!AX$5","v":8.3954151066358285E-3},{"$f":"'Population 2016'!AY196/'Population 2016'!AY$5","v":6.866374957926624E-3},{"$f":"'Population 2016'!AZ196/'Population 2016'!AZ$5","v":8.9023246716638579E-3},{"$f":"'Population 2016'!BA196/'Population 2016'!BA$5","v":3.0096091556899157E-3},{"$f":"'Population 2016'!BB196/'Population 2016'!BB$5","v":4.4951423461742955E-3},{"$f":"'Population 2016'!BC196/'Population 2016'!BC$5","v":1.5491523923339087E-3},194]
[null,"Male 20-24",{"$f":"'Population 2016'!C197/'Population 2016'!C$5","v":1.0942842685775327E-2},{"$f":"'Population 2016'!D197/'Population 2016'!D$5","v":1.1215926762712361E-2},{"$f":"'Population 2016'!E197/'Population 2016'!E$5","v":1.1466395398440833E-2},{"$f":"'Population 2016'!F197/'Population 2016'!F$5","v":8.6634045840844713E-3},{"$f":"'Population 2016'!G197/'Population 2016'!G$5","v":7.6598278568721923E-3},{"$f":"'Population 2016'!H197/'Population 2016'!H$5","v":4.3123992827799086E-3},{"$f":"'Population 2016'!I197/'Population 2016'!I$5","v":9.2119587974206513E-3},{"$f":"'Population 2016'!J197/'Population 2016'!J$5","v":1.0689732383503479E-2},{"$f":"'Population 2016'!K197/'Population 2016'!K$5","v":7.1114681283371926E-3},{"$f":"'Population 2016'!L197/'Population 2016'!L$5","v":5.0990421425507922E-3},{"$f":"'Population 2016'!M197/'Population 2016'!M$5","v":5.0990421425507922E-3},{"$f":"'Population 2016'!N197/'Population 2016'!N$5","v":1.3414134269938354E-2},{"$f":"'Population 2016'!O197/'Population 2016'!O$5","v":3.9825244449728063E-3},{"$f":"'Population 2016'!P197/'Population 2016'!P$5","v":6.7282767947706521E-3},{"$f":"'Population 2016'!Q197/'Population 2016'!Q$5","v":1.0939941951328422E-2},{"$f":"'Population 2016'!R197/'Population 2016'!R$5","v":4.7772395805610263E-3},{"$f":"'Population 2016'!S197/'Population 2016'!S$5","v":6.7991123993990862E-3},{"$f":"'Population 2016'!T197/'Population 2016'!T$5","v":6.8938079040311209E-3},{"$f":"'Population 2016'!U197/'Population 2016'!U$5","v":2.0802903554198201E-3},{"$f":"'Population 2016'!V197/'Population 2016'!V$5","v":7.296540249273017E-3},{"$f":"'Population 2016'!W197/'Population 2016'!W$5","v":5.9550657279757351E-3},{"$f":"'Population 2016'!X197/'Population 2016'!X$5","v":5.9550657279757351E-3},{"$f":"'Population 2016'!Y197/'Population 2016'!Y$5","v":8.9227516255703399E-3},{"$f":"'Population 2016'!Z197/'Population 2016'!Z$5","v":8.1826153783612701E-3},{"$f":"'Population 2016'!AA197/'Population 2016'!AA$5","v":6.6976401797287591E-3},{"$f":"'Population 2016'!AB197/'Population 2016'!AB$5","v":1.153086394481234E-2},{"$f":"'Population 2016'!AC197/'Population 2016'!AC$5","v":7.0756131818849408E-3},{"$f":"'Population 2016'!AD197/'Population 2016'!AD$5","v":9.7212400908109724E-3},{"$f":"'Population 2016'!AE197/'Population 2016'!AE$5","v":1.0503187917740428E-2},{"$f":"'Population 2016'!AF197/'Population 2016'!AF$5","v":6.2585772670376572E-3},{"$f":"'Population 2016'!AG197/'Population 2016'!AG$5","v":1.0503187917740428E-2},{"$f":"'Population 2016'!AH197/'Population 2016'!AH$5","v":6.0187808253531856E-3},{"$f":"'Population 2016'!AI197/'Population 2016'!AI$5","v":6.8370482981888183E-3},{"$f":"'Population 2016'!AJ197/'Population 2016'!AJ$5","v":4.1686417756462094E-3},{"$f":"'Population 2016'!AK197/'Population 2016'!AK$5","v":1.3150120060847592E-2},{"$f":"'Population 2016'!AL197/'Population 2016'!AL$5","v":5.1967861513630481E-3},{"$f":"'Population 2016'!AM197/'Population 2016'!AM$5","v":5.4728332325211619E-3},{"$f":"'Population 2016'!AN197/'Population 2016'!AN$5","v":1.4126759026944475E-2},{"$f":"'Population 2016'!AO197/'Population 2016'!AO$5","v":1.4126759026944475E-2},{"$f":"'Population 2016'!AP197/'Population 2016'!AP$5","v":1.3609054737409445E-2},{"$f":"'Population 2016'!AQ197/'Population 2016'!AQ$5","v":6.2681536690962899E-3},{"$f":"'Population 2016'!AR197/'Population 2016'!AR$5","v":7.8480069096679428E-3},{"$f":"'Population 2016'!AS197/'Population 2016'!AS$5","v":9.2119587974206513E-3},{"$f":"'Population 2016'!AT197/'Population 2016'!AT$5","v":2.3672694680234092E-2},{"$f":"'Population 2016'!AU197/'Population 2016'!AU$5","v":2.3672694680234092E-2},{"$f":"'Population 2016'!AV197/'Population 2016'!AV$5","v":3.6110231232182452E-3},{"$f":"'Population 2016'!AW197/'Population 2016'!AW$5","v":6.5935993654280311E-3},{"$f":"'Population 2016'!AX197/'Population 2016'!AX$5","v":1.2625068683951595E-2},{"$f":"'Population 2016'!AY197/'Population 2016'!AY$5","v":9.2546127719470034E-3},{"$f":"'Population 2016'!AZ197/'Population 2016'!AZ$5","v":1.2158360706663368E-2},{"$f":"'Population 2016'!BA197/'Population 2016'!BA$5","v":4.4266896998488448E-3},{"$f":"'Population 2016'!BB197/'Population 2016'!BB$5","v":5.5792242944836109E-3},{"$f":"'Population 2016'!BC197/'Population 2016'!BC$5","v":2.0802903554198201E-3},195]
[null,"Male 25-29",{"$f":"'Population 2016'!C198/'Population 2016'!C$5","v":1.2394392112566635E-2},{"$f":"'Population 2016'!D198/'Population 2016'!D$5","v":1.1907905675694179E-2},{"$f":"'Population 2016'!E198/'Population 2016'!E$5","v":1.1461707583478266E-2},{"$f":"'Population 2016'!F198/'Population 2016'!F$5","v":7.1903167653875871E-3},{"$f":"'Population 2016'!G198/'Population 2016'!G$5","v":6.2253017918042549E-3},{"$f":"'Population 2016'!H198/'Population 2016'!H$5","v":3.8357656778410768E-3},{"$f":"'Population 2016'!I198/'Population 2016'!I$5","v":7.3800351729335903E-3},{"$f":"'Population 2016'!J198/'Population 2016'!J$5","v":7.654478657853926E-3},{"$f":"'Population 2016'!K198/'Population 2016'!K$5","v":5.9065349903132825E-3},{"$f":"'Population 2016'!L198/'Population 2016'!L$5","v":4.8210569790160911E-3},{"$f":"'Population 2016'!M198/'Population 2016'!M$5","v":4.8210569790160911E-3},{"$f":"'Population 2016'!N198/'Population 2016'!N$5","v":8.8168396010319793E-3},{"$f":"'Population 2016'!O198/'Population 2016'!O$5","v":3.9230837816150027E-3},{"$f":"'Population 2016'!P198/'Population 2016'!P$5","v":5.3082384762763437E-3},{"$f":"'Population 2016'!Q198/'Population 2016'!Q$5","v":7.7084875618382859E-3},{"$f":"'Population 2016'!R198/'Population 2016'!R$5","v":5.0433810613722254E-3},{"$f":"'Population 2016'!S198/'Population 2016'!S$5","v":7.5334836205207326E-3},{"$f":"'Population 2016'!T198/'Population 2016'!T$5","v":1.0223216986268224E-2},{"$f":"'Population 2016'!U198/'Population 2016'!U$5","v":1.1065374230956491E-3},{"$f":"'Population 2016'!V198/'Population 2016'!V$5","v":5.9761412292685901E-3},{"$f":"'Population 2016'!W198/'Population 2016'!W$5","v":5.2033285614365371E-3},{"$f":"'Population 2016'!X198/'Population 2016'!X$5","v":5.2033285614365371E-3},{"$f":"'Population 2016'!Y198/'Population 2016'!Y$5","v":6.7804963355113587E-3},{"$f":"'Population 2016'!Z198/'Population 2016'!Z$5","v":7.8593372217049349E-3},{"$f":"'Population 2016'!AA198/'Population 2016'!AA$5","v":6.2578189517771233E-3},{"$f":"'Population 2016'!AB198/'Population 2016'!AB$5","v":1.1901374573963952E-2},{"$f":"'Population 2016'!AC198/'Population 2016'!AC$5","v":6.7591188632682483E-3},{"$f":"'Population 2016'!AD198/'Population 2016'!AD$5","v":9.2150805761286245E-3},{"$f":"'Population 2016'!AE198/'Population 2016'!AE$5","v":1.034918222979702E-2},{"$f":"'Population 2016'!AF198/'Population 2016'!AF$5","v":4.9616190863985285E-3},{"$f":"'Population 2016'!AG198/'Population 2016'!AG$5","v":1.034918222979702E-2},{"$f":"'Population 2016'!AH198/'Population 2016'!AH$5","v":5.35745799392549E-3},{"$f":"'Population 2016'!AI198/'Population 2016'!AI$5","v":8.5281958176568386E-3},{"$f":"'Population 2016'!AJ198/'Population 2016'!AJ$5","v":4.5869001477846245E-3},{"$f":"'Population 2016'!AK198/'Population 2016'!AK$5","v":1.1867794777667424E-2},{"$f":"'Population 2016'!AL198/'Population 2016'!AL$5","v":3.9641013816711307E-3},{"$f":"'Population 2016'!AM198/'Population 2016'!AM$5","v":4.6868604916494921E-3},{"$f":"'Population 2016'!AN198/'Population 2016'!AN$5","v":1.3799498200065452E-2},{"$f":"'Population 2016'!AO198/'Population 2016'!AO$5","v":1.3799498200065452E-2},{"$f":"'Population 2016'!AP198/'Population 2016'!AP$5","v":1.1461090943677378E-2},{"$f":"'Population 2016'!AQ198/'Population 2016'!AQ$5","v":6.6380774921904967E-3},{"$f":"'Population 2016'!AR198/'Population 2016'!AR$5","v":7.5116128358176373E-3},{"$f":"'Population 2016'!AS198/'Population 2016'!AS$5","v":7.3800351729335903E-3},{"$f":"'Population 2016'!AT198/'Population 2016'!AT$5","v":2.4199926187588969E-2},{"$f":"'Population 2016'!AU198/'Population 2016'!AU$5","v":2.4199926187588969E-2},{"$f":"'Population 2016'!AV198/'Population 2016'!AV$5","v":3.5899060289304192E-3},{"$f":"'Population 2016'!AW198/'Population 2016'!AW$5","v":6.0635182134358414E-3},{"$f":"'Population 2016'!AX198/'Population 2016'!AX$5","v":8.5998696602220884E-3},{"$f":"'Population 2016'!AY198/'Population 2016'!AY$5","v":7.3942045837030691E-3},{"$f":"'Population 2016'!AZ198/'Population 2016'!AZ$5","v":9.3222727821849951E-3},{"$f":"'Population 2016'!BA198/'Population 2016'!BA$5","v":4.4131936946663784E-3},{"$f":"'Population 2016'!BB198/'Population 2016'!BB$5","v":5.9313783031700769E-3},{"$f":"'Population 2016'!BC198/'Population 2016'!BC$5","v":1.1065374230956491E-3},196]
[null,"Male 30-34",{"$f":"'Population 2016'!C199/'Population 2016'!C$5","v":9.1641835290028773E-3},{"$f":"'Population 2016'!D199/'Population 2016'!D$5","v":1.0844263176941208E-2},{"$f":"'Population 2016'!E199/'Population 2016'!E$5","v":1.2385207131104121E-2},{"$f":"'Population 2016'!F199/'Population 2016'!F$5","v":7.0151944372907546E-3},{"$f":"'Population 2016'!G199/'Population 2016'!G$5","v":5.4133059059167437E-3},{"$f":"'Population 2016'!H199/'Population 2016'!H$5","v":3.6314941328672917E-3},{"$f":"'Population 2016'!I199/'Population 2016'!I$5","v":7.442843982916004E-3},{"$f":"'Population 2016'!J199/'Population 2016'!J$5","v":7.1486030369123342E-3},{"$f":"'Population 2016'!K199/'Population 2016'!K$5","v":7.3477295279497238E-3},{"$f":"'Population 2016'!L199/'Population 2016'!L$5","v":5.091099709306943E-3},{"$f":"'Population 2016'!M199/'Population 2016'!M$5","v":5.091099709306943E-3},{"$f":"'Population 2016'!N199/'Population 2016'!N$5","v":5.5939109957322316E-3},{"$f":"'Population 2016'!O199/'Population 2016'!O$5","v":4.1707532122725157E-3},{"$f":"'Population 2016'!P199/'Population 2016'!P$5","v":4.8010819339569478E-3},{"$f":"'Population 2016'!Q199/'Population 2016'!Q$5","v":8.1197635750461222E-3},{"$f":"'Population 2016'!R199/'Population 2016'!R$5","v":3.9522009900463083E-3},{"$f":"'Population 2016'!S199/'Population 2016'!S$5","v":7.6394025466440469E-3},{"$f":"'Population 2016'!T199/'Population 2016'!T$5","v":9.6834385746127315E-3},{"$f":"'Population 2016'!U199/'Population 2016'!U$5","v":1.0180144292479972E-3},{"$f":"'Population 2016'!V199/'Population 2016'!V$5","v":6.1898474290380933E-3},{"$f":"'Population 2016'!W199/'Population 2016'!W$5","v":5.2065969838997507E-3},{"$f":"'Population 2016'!X199/'Population 2016'!X$5","v":5.2065969838997507E-3},{"$f":"'Population 2016'!Y199/'Population 2016'!Y$5","v":6.6493378483648904E-3},{"$f":"'Population 2016'!Z199/'Population 2016'!Z$5","v":6.5120222694126598E-3},{"$f":"'Population 2016'!AA199/'Population 2016'!AA$5","v":5.778134772651624E-3},{"$f":"'Population 2016'!AB199/'Population 2016'!AB$5","v":1.1045720192829289E-2},{"$f":"'Population 2016'!AC199/'Population 2016'!AC$5","v":5.642080091679923E-3},{"$f":"'Population 2016'!AD199/'Population 2016'!AD$5","v":9.3378986936618405E-3},{"$f":"'Population 2016'!AE199/'Population 2016'!AE$5","v":1.0826599862421585E-2},{"$f":"'Population 2016'!AF199/'Population 2016'!AF$5","v":5.2783181770197111E-3},{"$f":"'Population 2016'!AG199/'Population 2016'!AG$5","v":1.0826599862421585E-2},{"$f":"'Population 2016'!AH199/'Population 2016'!AH$5","v":6.0224961221589587E-3},{"$f":"'Population 2016'!AI199/'Population 2016'!AI$5","v":8.6826822119170539E-3},{"$f":"'Population 2016'!AJ199/'Population 2016'!AJ$5","v":5.3815910548476141E-3},{"$f":"'Population 2016'!AK199/'Population 2016'!AK$5","v":1.2081515658197452E-2},{"$f":"'Population 2016'!AL199/'Population 2016'!AL$5","v":3.3610613504549405E-3},{"$f":"'Population 2016'!AM199/'Population 2016'!AM$5","v":5.0961458359743712E-3},{"$f":"'Population 2016'!AN199/'Population 2016'!AN$5","v":1.3799498200065452E-2},{"$f":"'Population 2016'!AO199/'Population 2016'!AO$5","v":1.3799498200065452E-2},{"$f":"'Population 2016'!AP199/'Population 2016'!AP$5","v":1.2626222595627982E-2},{"$f":"'Population 2016'!AQ199/'Population 2016'!AQ$5","v":5.2268866114977804E-3},{"$f":"'Population 2016'!AR199/'Population 2016'!AR$5","v":7.2059620614317961E-3},{"$f":"'Population 2016'!AS199/'Population 2016'!AS$5","v":7.442843982916004E-3},{"$f":"'Population 2016'!AT199/'Population 2016'!AT$5","v":2.1563768650814573E-2},{"$f":"'Population 2016'!AU199/'Population 2016'!AU$5","v":2.1563768650814573E-2},{"$f":"'Population 2016'!AV199/'Population 2016'!AV$5","v":3.3787350860521592E-3},{"$f":"'Population 2016'!AW199/'Population 2016'!AW$5","v":6.9978339129904204E-3},{"$f":"'Population 2016'!AX199/'Population 2016'!AX$5","v":7.0409036891268513E-3},{"$f":"'Population 2016'!AY199/'Population 2016'!AY$5","v":6.9811205287475904E-3},{"$f":"'Population 2016'!AZ199/'Population 2016'!AZ$5","v":8.5427800564916497E-3},{"$f":"'Population 2016'!BA199/'Population 2016'!BA$5","v":3.4414813215288276E-3},{"$f":"'Population 2016'!BB199/'Population 2016'!BB$5","v":7.6783383854774449E-3},{"$f":"'Population 2016'!BC199/'Population 2016'!BC$5","v":1.0180144292479972E-3},197]
[null,"Male 35-39",{"$f":"'Population 2016'!C200/'Population 2016'!C$5","v":7.2066362386469926E-3},{"$f":"'Population 2016'!D200/'Population 2016'!D$5","v":1.0739121504650685E-2},{"$f":"'Population 2016'!E200/'Population 2016'!E$5","v":1.3979064218377172E-2},{"$f":"'Population 2016'!F200/'Population 2016'!F$5","v":6.6958537213494722E-3},{"$f":"'Population 2016'!G200/'Population 2016'!G$5","v":6.766632382395929E-3},{"$f":"'Population 2016'!H200/'Population 2016'!H$5","v":4.2572783896917448E-3},{"$f":"'Population 2016'!I200/'Population 2016'!I$5","v":8.824637802529102E-3},{"$f":"'Population 2016'!J200/'Population 2016'!J$5","v":8.4257316537156984E-3},{"$f":"'Population 2016'!K200/'Population 2016'!K$5","v":7.4422340877947357E-3},{"$f":"'Population 2016'!L200/'Population 2016'!L$5","v":4.344510984385176E-3},{"$f":"'Population 2016'!M200/'Population 2016'!M$5","v":4.344510984385176E-3},{"$f":"'Population 2016'!N200/'Population 2016'!N$5","v":4.5571085266956539E-3},{"$f":"'Population 2016'!O200/'Population 2016'!O$5","v":4.6363717419086398E-3},{"$f":"'Population 2016'!P200/'Population 2016'!P$5","v":4.7785416431871969E-3},{"$f":"'Population 2016'!Q200/'Population 2016'!Q$5","v":9.8588735737535401E-3},{"$f":"'Population 2016'!R200/'Population 2016'!R$5","v":4.7240112843987868E-3},{"$f":"'Population 2016'!S200/'Population 2016'!S$5","v":7.349890815240321E-3},{"$f":"'Population 2016'!T200/'Population 2016'!T$5","v":7.6243700646338114E-3},{"$f":"'Population 2016'!U200/'Population 2016'!U$5","v":2.2130748461912982E-3},{"$f":"'Population 2016'!V200/'Population 2016'!V$5","v":7.1515253280008545E-3},{"$f":"'Population 2016'!W200/'Population 2016'!W$5","v":5.700128775845051E-3},{"$f":"'Population 2016'!X200/'Population 2016'!X$5","v":5.700128775845051E-3},{"$f":"'Population 2016'!Y200/'Population 2016'!Y$5","v":7.7621977393046212E-3},{"$f":"'Population 2016'!Z200/'Population 2016'!Z$5","v":4.8220711870115745E-3},{"$f":"'Population 2016'!AA200/'Population 2016'!AA$5","v":5.5263337977367148E-3},{"$f":"'Population 2016'!AB200/'Population 2016'!AB$5","v":1.0949510250452904E-2},{"$f":"'Population 2016'!AC200/'Population 2016'!AC$5","v":4.8239526210073621E-3},{"$f":"'Population 2016'!AD200/'Population 2016'!AD$5","v":9.8626670140310388E-3},{"$f":"'Population 2016'!AE200/'Population 2016'!AE$5","v":1.1037074302610909E-2},{"$f":"'Population 2016'!AF200/'Population 2016'!AF$5","v":5.0973472680933204E-3},{"$f":"'Population 2016'!AG200/'Population 2016'!AG$5","v":1.1037074302610909E-2},{"$f":"'Population 2016'!AH200/'Population 2016'!AH$5","v":6.7878472641483148E-3},{"$f":"'Population 2016'!AI200/'Population 2016'!AI$5","v":7.8473619739259769E-3},{"$f":"'Population 2016'!AJ200/'Population 2016'!AJ$5","v":6.5945403340490196E-3},{"$f":"'Population 2016'!AK200/'Population 2016'!AK$5","v":1.2031228392190388E-2},{"$f":"'Population 2016'!AL200/'Population 2016'!AL$5","v":4.1858072755006116E-3},{"$f":"'Population 2016'!AM200/'Population 2016'!AM$5","v":5.5307851396822066E-3},{"$f":"'Population 2016'!AN200/'Population 2016'!AN$5","v":1.3144976546307406E-2},{"$f":"'Population 2016'!AO200/'Population 2016'!AO$5","v":1.3144976546307406E-2},{"$f":"'Population 2016'!AP200/'Population 2016'!AP$5","v":1.2697557186563733E-2},{"$f":"'Population 2016'!AQ200/'Population 2016'!AQ$5","v":5.7064174932865679E-3},{"$f":"'Population 2016'!AR200/'Population 2016'!AR$5","v":7.1335593634176565E-3},{"$f":"'Population 2016'!AS200/'Population 2016'!AS$5","v":8.824637802529102E-3},{"$f":"'Population 2016'!AT200/'Population 2016'!AT$5","v":2.3936310433911531E-2},{"$f":"'Population 2016'!AU200/'Population 2016'!AU$5","v":2.3936310433911531E-2},{"$f":"'Population 2016'!AV200/'Population 2016'!AV$5","v":3.9383380846795485E-3},{"$f":"'Population 2016'!AW200/'Population 2016'!AW$5","v":8.111385685520776E-3},{"$f":"'Population 2016'!AX200/'Population 2016'!AX$5","v":8.957665128998045E-3},{"$f":"'Population 2016'!AY200/'Population 2016'!AY$5","v":6.9811205287475904E-3},{"$f":"'Population 2016'!AZ200/'Population 2016'!AZ$5","v":8.1084501613636235E-3},{"$f":"'Population 2016'!BA200/'Population 2016'!BA$5","v":3.0096091556899157E-3},{"$f":"'Population 2016'!BB200/'Population 2016'!BB$5","v":7.9476326274141532E-3},{"$f":"'Population 2016'!BC200/'Population 2016'!BC$5","v":2.2130748461912982E-3},198]
[null,"Male 40-44",{"$f":"'Population 2016'!C201/'Population 2016'!C$5","v":6.0413078255891805E-3},{"$f":"'Population 2016'!D201/'Population 2016'!D$5","v":1.0934733918214449E-2},{"$f":"'Population 2016'!E201/'Population 2016'!E$5","v":1.5422911226848053E-2},{"$f":"'Population 2016'!F201/'Population 2016'!F$5","v":7.9114087046098375E-3},{"$f":"'Population 2016'!G201/'Population 2016'!G$5","v":8.4718237427597026E-3},{"$f":"'Population 2016'!H201/'Population 2016'!H$5","v":5.0808493805384342E-3},{"$f":"'Population 2016'!I201/'Population 2016'!I$5","v":1.1473075956787539E-2},{"$f":"'Population 2016'!J201/'Population 2016'!J$5","v":9.3628455089025814E-3},{"$f":"'Population 2016'!K201/'Population 2016'!K$5","v":8.0328875868260641E-3},{"$f":"'Population 2016'!L201/'Population 2016'!L$5","v":5.6629549028640418E-3},{"$f":"'Population 2016'!M201/'Population 2016'!M$5","v":5.6629549028640418E-3},{"$f":"'Population 2016'!N201/'Population 2016'!N$5","v":4.6455180395592382E-3},{"$f":"'Population 2016'!O201/'Population 2016'!O$5","v":5.5081681378230845E-3},{"$f":"'Population 2016'!P201/'Population 2016'!P$5","v":5.7026935647469853E-3},{"$f":"'Population 2016'!Q201/'Population 2016'!Q$5","v":1.3102078706478185E-2},{"$f":"'Population 2016'!R201/'Population 2016'!R$5","v":5.7353489114813439E-3},{"$f":"'Population 2016'!S201/'Population 2016'!S$5","v":7.5228917279084014E-3},{"$f":"'Population 2016'!T201/'Population 2016'!T$5","v":6.3656626477992398E-3},{"$f":"'Population 2016'!U201/'Population 2016'!U$5","v":2.4343823308104282E-3},{"$f":"'Population 2016'!V201/'Population 2016'!V$5","v":7.8537028415292202E-3},{"$f":"'Population 2016'!W201/'Population 2016'!W$5","v":6.0727289366514356E-3},{"$f":"'Population 2016'!X201/'Population 2016'!X$5","v":6.0727289366514356E-3},{"$f":"'Population 2016'!Y201/'Population 2016'!Y$5","v":8.5769701594569248E-3},{"$f":"'Population 2016'!Z201/'Population 2016'!Z$5","v":4.1910012524608827E-3},{"$f":"'Population 2016'!AA201/'Population 2016'!AA$5","v":5.7821210677690103E-3},{"$f":"'Population 2016'!AB201/'Population 2016'!AB$5","v":1.1539052025014585E-2},{"$f":"'Population 2016'!AC201/'Population 2016'!AC$5","v":4.8953189869699494E-3},{"$f":"'Population 2016'!AD201/'Population 2016'!AD$5","v":1.1150396367561131E-2},{"$f":"'Population 2016'!AE201/'Population 2016'!AE$5","v":1.2166449347529236E-2},{"$f":"'Population 2016'!AF201/'Population 2016'!AF$5","v":6.1680918125744623E-3},{"$f":"'Population 2016'!AG201/'Population 2016'!AG$5","v":1.2166449347529236E-2},{"$f":"'Population 2016'!AH201/'Population 2016'!AH$5","v":7.3748641594605386E-3},{"$f":"'Population 2016'!AI201/'Population 2016'!AI$5","v":7.6135816781870676E-3},{"$f":"'Population 2016'!AJ201/'Population 2016'!AJ$5","v":6.3157014192900757E-3},{"$f":"'Population 2016'!AK201/'Population 2016'!AK$5","v":1.4646166224557786E-2},{"$f":"'Population 2016'!AL201/'Population 2016'!AL$5","v":5.3120732161543779E-3},{"$f":"'Population 2016'!AM201/'Population 2016'!AM$5","v":6.2080980546269163E-3},{"$f":"'Population 2016'!AN201/'Population 2016'!AN$5","v":1.6799389113123158E-2},{"$f":"'Population 2016'!AO201/'Population 2016'!AO$5","v":1.6799389113123158E-2},{"$f":"'Population 2016'!AP201/'Population 2016'!AP$5","v":1.4195583596214511E-2},{"$f":"'Population 2016'!AQ201/'Population 2016'!AQ$5","v":6.2818545514331126E-3},{"$f":"'Population 2016'!AR201/'Population 2016'!AR$5","v":7.6519626811988907E-3},{"$f":"'Population 2016'!AS201/'Population 2016'!AS$5","v":1.1473075956787539E-2},{"$f":"'Population 2016'!AT201/'Population 2016'!AT$5","v":2.9050456055253863E-2},{"$f":"'Population 2016'!AU201/'Population 2016'!AU$5","v":2.9050456055253863E-2},{"$f":"'Population 2016'!AV201/'Population 2016'!AV$5","v":4.350121423292155E-3},{"$f":"'Population 2016'!AW201/'Population 2016'!AW$5","v":8.6033315028372689E-3},{"$f":"'Population 2016'!AX201/'Population 2016'!AX$5","v":1.0082165173722478E-2},{"$f":"'Population 2016'!AY201/'Population 2016'!AY$5","v":7.6420550166763565E-3},{"$f":"'Population 2016'!AZ201/'Population 2016'!AZ$5","v":9.0231316623617195E-3},{"$f":"'Population 2016'!BA201/'Population 2016'!BA$5","v":4.1162815806521274E-3},{"$f":"'Population 2016'!BB201/'Population 2016'!BB$5","v":8.734800411536842E-3},{"$f":"'Population 2016'!BC201/'Population 2016'!BC$5","v":2.4343823308104282E-3},199]
[null,"Male 45-49",{"$f":"'Population 2016'!C202/'Population 2016'!C$5","v":5.6630872002984877E-3},{"$f":"'Population 2016'!D202/'Population 2016'!D$5","v":1.136752638322428E-2},{"$f":"'Population 2016'!E202/'Population 2016'!E$5","v":1.6599552782452572E-2},{"$f":"'Population 2016'!F202/'Population 2016'!F$5","v":1.0146793716198815E-2},{"$f":"'Population 2016'!G202/'Population 2016'!G$5","v":1.0380014074595356E-2},{"$f":"'Population 2016'!H202/'Population 2016'!H$5","v":6.4588717077425396E-3},{"$f":"'Population 2016'!I202/'Population 2016'!I$5","v":1.5775479440582867E-2},{"$f":"'Population 2016'!J202/'Population 2016'!J$5","v":1.1701483625386663E-2},{"$f":"'Population 2016'!K202/'Population 2016'!K$5","v":1.0088361763455086E-2},{"$f":"'Population 2016'!L202/'Population 2016'!L$5","v":7.4976569821930648E-3},{"$f":"'Population 2016'!M202/'Population 2016'!M$5","v":7.4976569821930648E-3},{"$f":"'Population 2016'!N202/'Population 2016'!N$5","v":5.561762081963656E-3},{"$f":"'Population 2016'!O202/'Population 2016'!O$5","v":6.2214560981167216E-3},{"$f":"'Population 2016'!P202/'Population 2016'!P$5","v":7.5284571170968102E-3},{"$f":"'Population 2016'!Q202/'Population 2016'!Q$5","v":1.4476915664915806E-2},{"$f":"'Population 2016'!R202/'Population 2016'!R$5","v":5.9482620961303027E-3},{"$f":"'Population 2016'!S202/'Population 2016'!S$5","v":8.4479170160520131E-3},{"$f":"'Population 2016'!T202/'Population 2016'!T$5","v":5.937562528210402E-3},{"$f":"'Population 2016'!U202/'Population 2016'!U$5","v":3.1868277785154693E-3},{"$f":"'Population 2016'!V202/'Population 2016'!V$5","v":9.4641317040779719E-3},{"$f":"'Population 2016'!W202/'Population 2016'!W$5","v":8.1579824681819076E-3},{"$f":"'Population 2016'!X202/'Population 2016'!X$5","v":8.1579824681819076E-3},{"$f":"'Population 2016'!Y202/'Population 2016'!Y$5","v":1.0536398467432951E-2},{"$f":"'Population 2016'!Z202/'Population 2016'!Z$5","v":4.330378661318704E-3},{"$f":"'Population 2016'!AA202/'Population 2016'!AA$5","v":6.6757155565831342E-3},{"$f":"'Population 2016'!AB202/'Population 2016'!AB$5","v":1.2540044829739107E-2},{"$f":"'Population 2016'!AC202/'Population 2016'!AC$5","v":5.6720746512873869E-3},{"$f":"'Population 2016'!AD202/'Population 2016'!AD$5","v":1.3335070155197439E-2},{"$f":"'Population 2016'!AE202/'Population 2016'!AE$5","v":1.4456000574954568E-2},{"$f":"'Population 2016'!AF202/'Population 2016'!AF$5","v":8.5357945376947318E-3},{"$f":"'Population 2016'!AG202/'Population 2016'!AG$5","v":1.4456000574954568E-2},{"$f":"'Population 2016'!AH202/'Population 2016'!AH$5","v":8.4783073107752901E-3},{"$f":"'Population 2016'!AI202/'Population 2016'!AI$5","v":7.6122145419546764E-3},{"$f":"'Population 2016'!AJ202/'Population 2016'!AJ$5","v":6.5666564425731254E-3},{"$f":"'Population 2016'!AK202/'Population 2016'!AK$5","v":1.8568572973108884E-2},{"$f":"'Population 2016'!AL202/'Population 2016'!AL$5","v":6.9349603589861832E-3},{"$f":"'Population 2016'!AM202/'Population 2016'!AM$5","v":7.2113904473525029E-3},{"$f":"'Population 2016'!AN202/'Population 2016'!AN$5","v":2.2144649285480527E-2},{"$f":"'Population 2016'!AO202/'Population 2016'!AO$5","v":2.2144649285480527E-2},{"$f":"'Population 2016'!AP202/'Population 2016'!AP$5","v":1.7738534946023492E-2},{"$f":"'Population 2016'!AQ202/'Population 2016'!AQ$5","v":7.7752507261467634E-3},{"$f":"'Population 2016'!AR202/'Population 2016'!AR$5","v":8.8767935540657681E-3},{"$f":"'Population 2016'!AS202/'Population 2016'!AS$5","v":1.5775479440582867E-2},{"$f":"'Population 2016'!AT202/'Population 2016'!AT$5","v":2.836505509569252E-2},{"$f":"'Population 2016'!AU202/'Population 2016'!AU$5","v":2.836505509569252E-2},{"$f":"'Population 2016'!AV202/'Population 2016'!AV$5","v":6.1450744377573646E-3},{"$f":"'Population 2016'!AW202/'Population 2016'!AW$5","v":9.8122216120568682E-3},{"$f":"'Population 2016'!AX202/'Population 2016'!AX$5","v":1.257395504555503E-2},{"$f":"'Population 2016'!AY202/'Population 2016'!AY$5","v":9.8084513937762002E-3},{"$f":"'Population 2016'!AZ202/'Population 2016'!AZ$5","v":1.1260937347193538E-2},{"$f":"'Population 2016'!BA202/'Population 2016'!BA$5","v":5.8167782336428419E-3},{"$f":"'Population 2016'!BB202/'Population 2016'!BB$5","v":9.0662394785358674E-3},{"$f":"'Population 2016'!BC202/'Population 2016'!BC$5","v":3.1868277785154693E-3},200]
[null,"Male 50-54",{"$f":"'Population 2016'!C203/'Population 2016'!C$5","v":5.847086423412879E-3},{"$f":"'Population 2016'!D203/'Population 2016'!D$5","v":1.2169537278835714E-2},{"$f":"'Population 2016'!E203/'Population 2016'!E$5","v":1.7968394751522367E-2},{"$f":"'Population 2016'!F203/'Population 2016'!F$5","v":1.2031934071594128E-2},{"$f":"'Population 2016'!G203/'Population 2016'!G$5","v":1.1706274021544958E-2},{"$f":"'Population 2016'!H203/'Population 2016'!H$5","v":6.9549597455360185E-3},{"$f":"'Population 2016'!I203/'Population 2016'!I$5","v":1.8099405409932167E-2},{"$f":"'Population 2016'!J203/'Population 2016'!J$5","v":1.2082963601834421E-2},{"$f":"'Population 2016'!K203/'Population 2016'!K$5","v":9.4504559845012513E-3},{"$f":"'Population 2016'!L203/'Population 2016'!L$5","v":8.8875827998665669E-3},{"$f":"'Population 2016'!M203/'Population 2016'!M$5","v":8.8875827998665669E-3},{"$f":"'Population 2016'!N203/'Population 2016'!N$5","v":6.1484797582401687E-3},{"$f":"'Population 2016'!O203/'Population 2016'!O$5","v":6.558286523810939E-3},{"$f":"'Population 2016'!P203/'Population 2016'!P$5","v":8.0694240955708329E-3},{"$f":"'Population 2016'!Q203/'Population 2016'!Q$5","v":1.5687242218070292E-2},{"$f":"'Population 2016'!R203/'Population 2016'!R$5","v":7.4386543886730185E-3},{"$f":"'Population 2016'!S203/'Population 2016'!S$5","v":8.7621431635511796E-3},{"$f":"'Population 2016'!T203/'Population 2016'!T$5","v":5.8817233821770749E-3},{"$f":"'Population 2016'!U203/'Population 2016'!U$5","v":2.478643827734254E-3},{"$f":"'Population 2016'!V203/'Population 2016'!V$5","v":9.0290869402614854E-3},{"$f":"'Population 2016'!W203/'Population 2016'!W$5","v":8.3638930833643838E-3},{"$f":"'Population 2016'!X203/'Population 2016'!X$5","v":8.3638930833643838E-3},{"$f":"'Population 2016'!Y203/'Population 2016'!Y$5","v":1.049267897171746E-2},{"$f":"'Population 2016'!Z203/'Population 2016'!Z$5","v":4.2200382126395949E-3},{"$f":"'Population 2016'!AA203/'Population 2016'!AA$5","v":6.976680837945809E-3},{"$f":"'Population 2016'!AB203/'Population 2016'!AB$5","v":1.3246266747182789E-2},{"$f":"'Population 2016'!AC203/'Population 2016'!AC$5","v":6.0268378907825685E-3},{"$f":"'Population 2016'!AD203/'Population 2016'!AD$5","v":1.4514868435743794E-2},{"$f":"'Population 2016'!AE203/'Population 2016'!AE$5","v":1.5580242096941447E-2},{"$f":"'Population 2016'!AF203/'Population 2016'!AF$5","v":9.7271863547934677E-3},{"$f":"'Population 2016'!AG203/'Population 2016'!AG$5","v":1.5580242096941447E-2},{"$f":"'Population 2016'!AH203/'Population 2016'!AH$5","v":8.6826486350928354E-3},{"$f":"'Population 2016'!AI203/'Population 2016'!AI$5","v":7.7092812144544578E-3},{"$f":"'Population 2016'!AJ203/'Population 2016'!AJ$5","v":6.7618436829043858E-3},{"$f":"'Population 2016'!AK203/'Population 2016'!AK$5","v":1.8782293853638912E-2},{"$f":"'Population 2016'!AL203/'Population 2016'!AL$5","v":7.8661251130700063E-3},{"$f":"'Population 2016'!AM203/'Population 2016'!AM$5","v":7.3526482210575497E-3},{"$f":"'Population 2016'!AN203/'Population 2016'!AN$5","v":2.4108214246754665E-2},{"$f":"'Population 2016'!AO203/'Population 2016'!AO$5","v":2.4108214246754665E-2},{"$f":"'Population 2016'!AP203/'Population 2016'!AP$5","v":2.0068798249924701E-2},{"$f":"'Population 2016'!AQ203/'Population 2016'!AQ$5","v":8.604154107524525E-3},{"$f":"'Population 2016'!AR203/'Population 2016'!AR$5","v":9.414132962096854E-3},{"$f":"'Population 2016'!AS203/'Population 2016'!AS$5","v":1.8099405409932167E-2},{"$f":"'Population 2016'!AT203/'Population 2016'!AT$5","v":3.1212105235408866E-2},{"$f":"'Population 2016'!AU203/'Population 2016'!AU$5","v":3.1212105235408866E-2},{"$f":"'Population 2016'!AV203/'Population 2016'!AV$5","v":6.2928940977721465E-3},{"$f":"'Population 2016'!AW203/'Population 2016'!AW$5","v":1.0082982488254316E-2},{"$f":"'Population 2016'!AX203/'Population 2016'!AX$5","v":1.3506778946292344E-2},{"$f":"'Population 2016'!AY203/'Population 2016'!AY$5","v":1.0746305192619566E-2},{"$f":"'Population 2016'!AZ203/'Population 2016'!AZ$5","v":1.2842933653951252E-2},{"$f":"'Population 2016'!BA203/'Population 2016'!BA$5","v":6.3566184409414809E-3},{"$f":"'Population 2016'!BB203/'Population 2016'!BB$5","v":8.9143299061613147E-3},{"$f":"'Population 2016'!BC203/'Population 2016'!BC$5","v":2.478643827734254E-3},201]
[null,"Male 55-59",{"$f":"'Population 2016'!C204/'Population 2016'!C$5","v":5.305310933131616E-3},{"$f":"'Population 2016'!D204/'Population 2016'!D$5","v":1.1012978883639956E-2},{"$f":"'Population 2016'!E204/'Population 2016'!E$5","v":1.6247966660259985E-2},{"$f":"'Population 2016'!F204/'Population 2016'!F$5","v":1.0558846252897245E-2},{"$f":"'Population 2016'!G204/'Population 2016'!G$5","v":1.0867211606127863E-2},{"$f":"'Population 2016'!H204/'Population 2016'!H$5","v":6.6631432527163251E-3},{"$f":"'Population 2016'!I204/'Population 2016'!I$5","v":1.6686207185327862E-2},{"$f":"'Population 2016'!J204/'Population 2016'!J$5","v":1.0664853254604712E-2},{"$f":"'Population 2016'!K204/'Population 2016'!K$5","v":7.9147568870197981E-3},{"$f":"'Population 2016'!L204/'Population 2016'!L$5","v":8.1965911076517396E-3},{"$f":"'Population 2016'!M204/'Population 2016'!M$5","v":8.1965911076517396E-3},{"$f":"'Population 2016'!N204/'Population 2016'!N$5","v":6.6548251500952414E-3},{"$f":"'Population 2016'!O204/'Population 2016'!O$5","v":6.2313628753430219E-3},{"$f":"'Population 2016'!P204/'Population 2016'!P$5","v":8.6216612194297305E-3},{"$f":"'Population 2016'!Q204/'Population 2016'!Q$5","v":1.4676678299902469E-2},{"$f":"'Population 2016'!R204/'Population 2016'!R$5","v":5.5889710970351836E-3},{"$f":"'Population 2016'!S204/'Population 2016'!S$5","v":8.0498383853718908E-3},{"$f":"'Population 2016'!T204/'Population 2016'!T$5","v":5.4117439030632424E-3},{"$f":"'Population 2016'!U204/'Population 2016'!U$5","v":2.3015978400389501E-3},{"$f":"'Population 2016'!V204/'Population 2016'!V$5","v":8.3574388838430474E-3},{"$f":"'Population 2016'!W204/'Population 2016'!W$5","v":7.8082612646180197E-3},{"$f":"'Population 2016'!X204/'Population 2016'!X$5","v":7.8082612646180197E-3},{"$f":"'Population 2016'!Y204/'Population 2016'!Y$5","v":9.4632835725982096E-3},{"$f":"'Population 2016'!Z204/'Population 2016'!Z$5","v":3.6625285772083093E-3},{"$f":"'Population 2016'!AA204/'Population 2016'!AA$5","v":6.1355725681772732E-3},{"$f":"'Population 2016'!AB204/'Population 2016'!AB$5","v":1.1905468614065075E-2},{"$f":"'Population 2016'!AC204/'Population 2016'!AC$5","v":5.5376162806332367E-3},{"$f":"'Population 2016'!AD204/'Population 2016'!AD$5","v":1.3759350924857642E-2},{"$f":"'Population 2016'!AE204/'Population 2016'!AE$5","v":1.4856415363607428E-2},{"$f":"'Population 2016'!AF204/'Population 2016'!AF$5","v":8.5357945376947318E-3},{"$f":"'Population 2016'!AG204/'Population 2016'!AG$5","v":1.4856415363607428E-2},{"$f":"'Population 2016'!AH204/'Population 2016'!AH$5","v":7.2095334516036154E-3},{"$f":"'Population 2016'!AI204/'Population 2016'!AI$5","v":7.022978825794033E-3},{"$f":"'Population 2016'!AJ204/'Population 2016'!AJ$5","v":6.4690628224074948E-3},{"$f":"'Population 2016'!AK204/'Population 2016'!AK$5","v":1.6494223250317439E-2},{"$f":"'Population 2016'!AL204/'Population 2016'!AL$5","v":7.3606356751387877E-3},{"$f":"'Population 2016'!AM204/'Population 2016'!AM$5","v":5.7553487799312545E-3},{"$f":"'Population 2016'!AN204/'Population 2016'!AN$5","v":2.1271953747136467E-2},{"$f":"'Population 2016'!AO204/'Population 2016'!AO$5","v":2.1271953747136467E-2},{"$f":"'Population 2016'!AP204/'Population 2016'!AP$5","v":1.840432446142384E-2},{"$f":"'Population 2016'!AQ204/'Population 2016'!AQ$5","v":8.3917904313037753E-3},{"$f":"'Population 2016'!AR204/'Population 2016'!AR$5","v":8.5731477774710872E-3},{"$f":"'Population 2016'!AS204/'Population 2016'!AS$5","v":1.6686207185327862E-2},{"$f":"'Population 2016'!AT204/'Population 2016'!AT$5","v":2.7943269889808615E-2},{"$f":"'Population 2016'!AU204/'Population 2016'!AU$5","v":2.7943269889808615E-2},{"$f":"'Population 2016'!AV204/'Population 2016'!AV$5","v":6.2928940977721465E-3},{"$f":"'Population 2016'!AW204/'Population 2016'!AW$5","v":8.740618707669779E-3},{"$f":"'Population 2016'!AX204/'Population 2016'!AX$5","v":1.2152267528783367E-2},{"$f":"'Population 2016'!AY204/'Population 2016'!AY$5","v":1.0042532358250972E-2},{"$f":"'Population 2016'!AZ204/'Population 2016'!AZ$5","v":1.2008790146751731E-2},{"$f":"'Population 2016'!BA204/'Population 2016'!BA$5","v":6.5590585186784713E-3},{"$f":"'Population 2016'!BB204/'Population 2016'!BB$5","v":7.581668657602729E-3},{"$f":"'Population 2016'!BC204/'Population 2016'!BC$5","v":2.3015978400389501E-3},202]
[null,"Male 60-64",{"$f":"'Population 2016'!C205/'Population 2016'!C$5","v":5.1059784414243586E-3},{"$f":"'Population 2016'!D205/'Population 2016'!D$5","v":9.9444460745478913E-3},{"$f":"'Population 2016'!E205/'Population 2016'!E$5","v":1.4382216305158003E-2},{"$f":"'Population 2016'!F205/'Population 2016'!F$5","v":1.0589750193149627E-2},{"$f":"'Population 2016'!G205/'Population 2016'!G$5","v":1.0664212634655985E-2},{"$f":"'Population 2016'!H205/'Population 2016'!H$5","v":6.0730254561253902E-3},{"$f":"'Population 2016'!I205/'Population 2016'!I$5","v":1.5974374005527175E-2},{"$f":"'Population 2016'!J205/'Population 2016'!J$5","v":8.4423177396482085E-3},{"$f":"'Population 2016'!K205/'Population 2016'!K$5","v":6.071917970042055E-3},{"$f":"'Population 2016'!L205/'Population 2016'!L$5","v":8.3077851730656207E-3},{"$f":"'Population 2016'!M205/'Population 2016'!M$5","v":8.3077851730656207E-3},{"$f":"'Population 2016'!N205/'Population 2016'!N$5","v":5.0071933194557189E-3},{"$f":"'Population 2016'!O205/'Population 2016'!O$5","v":5.7855579001594992E-3},{"$f":"'Population 2016'!P205/'Population 2016'!P$5","v":7.7538600247943198E-3},{"$f":"'Population 2016'!Q205/'Population 2016'!Q$5","v":1.124546127542567E-2},{"$f":"'Population 2016'!R205/'Population 2016'!R$5","v":5.7885772076435834E-3},{"$f":"'Population 2016'!S205/'Population 2016'!S$5","v":6.8282401040829985E-3},{"$f":"'Population 2016'!T205/'Population 2016'!T$5","v":4.7044480533077714E-3},{"$f":"'Population 2016'!U205/'Population 2016'!U$5","v":1.9917673615721682E-3},{"$f":"'Population 2016'!V205/'Population 2016'!V$5","v":6.4798772715824182E-3},{"$f":"'Population 2016'!W205/'Population 2016'!W$5","v":6.6773870923460084E-3},{"$f":"'Population 2016'!X205/'Population 2016'!X$5","v":6.6773870923460084E-3},{"$f":"'Population 2016'!Y205/'Population 2016'!Y$5","v":7.4203907728017044E-3},{"$f":"'Population 2016'!Z205/'Population 2016'!Z$5","v":3.1030831444317755E-3},{"$f":"'Population 2016'!AA205/'Population 2016'!AA$5","v":5.211416483463187E-3},{"$f":"'Population 2016'!AB205/'Population 2016'!AB$5","v":1.0920851969745043E-2},{"$f":"'Population 2016'!AC205/'Population 2016'!AC$5","v":4.7556891405214092E-3},{"$f":"'Population 2016'!AD205/'Population 2016'!AD$5","v":1.2784249506866649E-2},{"$f":"'Population 2016'!AE205/'Population 2016'!AE$5","v":1.3588435199540037E-2},{"$f":"'Population 2016'!AF205/'Population 2016'!AF$5","v":7.1483509025924083E-3},{"$f":"'Population 2016'!AG205/'Population 2016'!AG$5","v":1.3588435199540037E-2},{"$f":"'Population 2016'!AH205/'Population 2016'!AH$5","v":6.0299267157705059E-3},{"$f":"'Population 2016'!AI205/'Population 2016'!AI$5","v":5.6968566803744861E-3},{"$f":"'Population 2016'!AJ205/'Population 2016'!AJ$5","v":5.4652427292752976E-3},{"$f":"'Population 2016'!AK205/'Population 2016'!AK$5","v":1.594106332423972E-2},{"$f":"'Population 2016'!AL205/'Population 2016'!AL$5","v":6.8019368226884943E-3},{"$f":"'Population 2016'!AM205/'Population 2016'!AM$5","v":4.7918983233788863E-3},{"$f":"'Population 2016'!AN205/'Population 2016'!AN$5","v":1.969019308388786E-2},{"$f":"'Population 2016'!AO205/'Population 2016'!AO$5","v":1.969019308388786E-2},{"$f":"'Population 2016'!AP205/'Population 2016'!AP$5","v":1.6977632642708813E-2},{"$f":"'Population 2016'!AQ205/'Population 2016'!AQ$5","v":6.8641420507480682E-3},{"$f":"'Population 2016'!AR205/'Population 2016'!AR$5","v":7.5343361441174593E-3},{"$f":"'Population 2016'!AS205/'Population 2016'!AS$5","v":1.5974374005527175E-2},{"$f":"'Population 2016'!AT205/'Population 2016'!AT$5","v":2.5570728106711658E-2},{"$f":"'Population 2016'!AU205/'Population 2016'!AU$5","v":2.5570728106711658E-2},{"$f":"'Population 2016'!AV205/'Population 2016'!AV$5","v":5.5115616091225847E-3},{"$f":"'Population 2016'!AW205/'Population 2016'!AW$5","v":7.3334248581365547E-3},{"$f":"'Population 2016'!AX205/'Population 2016'!AX$5","v":9.7243697049465231E-3},{"$f":"'Population 2016'!AY205/'Population 2016'!AY$5","v":8.9287353508154584E-3},{"$f":"'Population 2016'!AZ205/'Population 2016'!AZ$5","v":1.0910021802785464E-2},{"$f":"'Population 2016'!BA205/'Population 2016'!BA$5","v":5.3444180522565317E-3},{"$f":"'Population 2016'!BB205/'Population 2016'!BB$5","v":5.4963645277338541E-3},{"$f":"'Population 2016'!BC205/'Population 2016'!BC$5","v":1.9917673615721682E-3},203]
[null,"Male 65-69",{"$f":"'Population 2016'!C206/'Population 2016'!C$5","v":4.7022023684788888E-3},{"$f":"'Population 2016'!D206/'Population 2016'!D$5","v":9.8759817298005731E-3},{"$f":"'Population 2016'!E206/'Population 2016'!E$5","v":1.4621294868248961E-2},{"$f":"'Population 2016'!F206/'Population 2016'!F$5","v":1.0878186968838527E-2},{"$f":"'Population 2016'!G206/'Population 2016'!G$5","v":1.1124343636658908E-2},{"$f":"'Population 2016'!H206/'Population 2016'!H$5","v":6.10220710540736E-3},{"$f":"'Population 2016'!I206/'Population 2016'!I$5","v":1.6937442425257517E-2},{"$f":"'Population 2016'!J206/'Population 2016'!J$5","v":8.0774238491329621E-3},{"$f":"'Population 2016'!K206/'Population 2016'!K$5","v":6.2609270897320797E-3},{"$f":"'Population 2016'!L206/'Population 2016'!L$5","v":8.3633822057725613E-3},{"$f":"'Population 2016'!M206/'Population 2016'!M$5","v":8.3633822057725613E-3},{"$f":"'Population 2016'!N206/'Population 2016'!N$5","v":4.7017786386542469E-3},{"$f":"'Population 2016'!O206/'Population 2016'!O$5","v":5.3298461477496754E-3},{"$f":"'Population 2016'!P206/'Population 2016'!P$5","v":7.7425898794094448E-3},{"$f":"'Population 2016'!Q206/'Population 2016'!Q$5","v":1.0998695667500969E-2},{"$f":"'Population 2016'!R206/'Population 2016'!R$5","v":5.1631447277372651E-3},{"$f":"'Population 2016'!S206/'Population 2016'!S$5","v":6.7894031645044494E-3},{"$f":"'Population 2016'!T206/'Population 2016'!T$5","v":3.9645793683661928E-3},{"$f":"'Population 2016'!U206/'Population 2016'!U$5","v":2.3015978400389501E-3},{"$f":"'Population 2016'!V206/'Population 2016'!V$5","v":6.8004365712366717E-3},{"$f":"'Population 2016'!W206/'Population 2016'!W$5","v":7.1970662639970189E-3},{"$f":"'Population 2016'!X206/'Population 2016'!X$5","v":7.1970662639970189E-3},{"$f":"'Population 2016'!Y206/'Population 2016'!Y$5","v":7.4124417735807061E-3},{"$f":"'Population 2016'!Z206/'Population 2016'!Z$5","v":2.6830151205130639E-3},{"$f":"'Population 2016'!AA206/'Population 2016'!AA$5","v":4.8114582066854155E-3},{"$f":"'Population 2016'!AB206/'Population 2016'!AB$5","v":1.0728432084992273E-2},{"$f":"'Population 2016'!AC206/'Population 2016'!AC$5","v":4.3761028172131537E-3},{"$f":"'Population 2016'!AD206/'Population 2016'!AD$5","v":1.2869850013026164E-2},{"$f":"'Population 2016'!AE206/'Population 2016'!AE$5","v":1.353196644729412E-2},{"$f":"'Population 2016'!AF206/'Population 2016'!AF$5","v":6.0776063581112674E-3},{"$f":"'Population 2016'!AG206/'Population 2016'!AG$5","v":1.353196644729412E-2},{"$f":"'Population 2016'!AH206/'Population 2016'!AH$5","v":5.5933793410921119E-3},{"$f":"'Population 2016'!AI206/'Population 2016'!AI$5","v":5.2935514918190565E-3},{"$f":"'Population 2016'!AJ206/'Population 2016'!AJ$5","v":5.9950366673172904E-3},{"$f":"'Population 2016'!AK206/'Population 2016'!AK$5","v":1.5111323435123142E-2},{"$f":"'Population 2016'!AL206/'Population 2016'!AL$5","v":7.4227133254110428E-3},{"$f":"'Population 2016'!AM206/'Population 2016'!AM$5","v":4.1978912749781779E-3},{"$f":"'Population 2016'!AN206/'Population 2016'!AN$5","v":1.9199301843569324E-2},{"$f":"'Population 2016'!AO206/'Population 2016'!AO$5","v":1.9199301843569324E-2},{"$f":"'Population 2016'!AP206/'Population 2016'!AP$5","v":1.7136153955899371E-2},{"$f":"'Population 2016'!AQ206/'Population 2016'!AQ$5","v":6.466816462980216E-3},{"$f":"'Population 2016'!AR206/'Population 2016'!AR$5","v":7.3770552062775146E-3},{"$f":"'Population 2016'!AS206/'Population 2016'!AS$5","v":1.6937442425257517E-2},{"$f":"'Population 2016'!AT206/'Population 2016'!AT$5","v":2.499077344862129E-2},{"$f":"'Population 2016'!AU206/'Population 2016'!AU$5","v":2.499077344862129E-2},{"$f":"'Population 2016'!AV206/'Population 2016'!AV$5","v":5.3531834019638902E-3},{"$f":"'Population 2016'!AW206/'Population 2016'!AW$5","v":7.0626639819391058E-3},{"$f":"'Population 2016'!AX206/'Population 2016'!AX$5","v":9.0598924057911749E-3},{"$f":"'Population 2016'!AY206/'Population 2016'!AY$5","v":9.1872953703987029E-3},{"$f":"'Population 2016'!AZ206/'Population 2016'!AZ$5","v":1.093878537199924E-2},{"$f":"'Population 2016'!BA206/'Population 2016'!BA$5","v":5.708810192183114E-3},{"$f":"'Population 2016'!BB206/'Population 2016'!BB$5","v":5.5377944111087325E-3},{"$f":"'Population 2016'!BC206/'Population 2016'!BC$5","v":2.3015978400389501E-3},204]
[null,"Male 70-74",{"$f":"'Population 2016'!C207/'Population 2016'!C$5","v":3.3886523590233729E-3},{"$f":"'Population 2016'!D207/'Population 2016'!D$5","v":6.6361511301507191E-3},{"$f":"'Population 2016'!E207/'Population 2016'!E$5","v":9.6147084882265525E-3},{"$f":"'Population 2016'!F207/'Population 2016'!F$5","v":8.9209374195209894E-3},{"$f":"'Population 2016'!G207/'Population 2016'!G$5","v":9.1349537162345052E-3},{"$f":"'Population 2016'!H207/'Population 2016'!H$5","v":5.0419405148291411E-3},{"$f":"'Population 2016'!I207/'Population 2016'!I$5","v":1.3001423666359601E-2},{"$f":"'Population 2016'!J207/'Population 2016'!J$5","v":6.6593135019032534E-3},{"$f":"'Population 2016'!K207/'Population 2016'!K$5","v":4.8906109719793981E-3},{"$f":"'Population 2016'!L207/'Population 2016'!L$5","v":6.5604498594189313E-3},{"$f":"'Population 2016'!M207/'Population 2016'!M$5","v":6.5604498594189313E-3},{"$f":"'Population 2016'!N207/'Population 2016'!N$5","v":3.2952636612790446E-3},{"$f":"'Population 2016'!O207/'Population 2016'!O$5","v":4.3490752023459247E-3},{"$f":"'Population 2016'!P207/'Population 2016'!P$5","v":5.3983996393553481E-3},{"$f":"'Population 2016'!Q207/'Population 2016'!Q$5","v":8.7425529664751297E-3},{"$f":"'Population 2016'!R207/'Population 2016'!R$5","v":3.6860595092351096E-3},{"$f":"'Population 2016'!S207/'Population 2016'!S$5","v":5.075281876742146E-3},{"$f":"'Population 2016'!T207/'Population 2016'!T$5","v":2.789630670581611E-3},{"$f":"'Population 2016'!U207/'Population 2016'!U$5","v":1.8589828708006906E-3},{"$f":"'Population 2016'!V207/'Population 2016'!V$5","v":4.9076102304210778E-3},{"$f":"'Population 2016'!W207/'Population 2016'!W$5","v":5.399433909229371E-3},{"$f":"'Population 2016'!X207/'Population 2016'!X$5","v":5.399433909229371E-3},{"$f":"'Population 2016'!Y207/'Population 2016'!Y$5","v":5.7471264367816091E-3},{"$f":"'Population 2016'!Z207/'Population 2016'!Z$5","v":1.7344744213417785E-3},{"$f":"'Population 2016'!AA207/'Population 2016'!AA$5","v":3.3046386523133465E-3},{"$f":"'Population 2016'!AB207/'Population 2016'!AB$5","v":7.4654821243974089E-3},{"$f":"'Population 2016'!AC207/'Population 2016'!AC$5","v":3.0635822605968709E-3},{"$f":"'Population 2016'!AD207/'Population 2016'!AD$5","v":9.9743198481521463E-3},{"$f":"'Population 2016'!AE207/'Population 2016'!AE$5","v":1.0292713477551105E-2},{"$f":"'Population 2016'!AF207/'Population 2016'!AF$5","v":4.6298390867001464E-3},{"$f":"'Population 2016'!AG207/'Population 2016'!AG$5","v":1.0292713477551105E-2},{"$f":"'Population 2016'!AH207/'Population 2016'!AH$5","v":3.7375885866082125E-3},{"$f":"'Population 2016'!AI207/'Population 2016'!AI$5","v":3.9045410797095108E-3},{"$f":"'Population 2016'!AJ207/'Population 2016'!AJ$5","v":4.9215068454953577E-3},{"$f":"'Population 2016'!AK207/'Population 2016'!AK$5","v":1.1729504796147995E-2},{"$f":"'Population 2016'!AL207/'Population 2016'!AL$5","v":6.0126638406555397E-3},{"$f":"'Population 2016'!AM207/'Population 2016'!AM$5","v":2.8722413986692792E-3},{"$f":"'Population 2016'!AN207/'Population 2016'!AN$5","v":1.5108541507581542E-2},{"$f":"'Population 2016'!AO207/'Population 2016'!AO$5","v":1.5108541507581542E-2},{"$f":"'Population 2016'!AP207/'Population 2016'!AP$5","v":1.252318374205412E-2},{"$f":"'Population 2016'!AQ207/'Population 2016'!AQ$5","v":4.9323176412560971E-3},{"$f":"'Population 2016'!AR207/'Population 2016'!AR$5","v":5.4268606880751424E-3},{"$f":"'Population 2016'!AS207/'Population 2016'!AS$5","v":1.3001423666359601E-2},{"$f":"'Population 2016'!AT207/'Population 2016'!AT$5","v":1.6186007275794802E-2},{"$f":"'Population 2016'!AU207/'Population 2016'!AU$5","v":1.6186007275794802E-2},{"$f":"'Population 2016'!AV207/'Population 2016'!AV$5","v":4.6246436490338929E-3},{"$f":"'Population 2016'!AW207/'Population 2016'!AW$5","v":4.6486972969674778E-3},{"$f":"'Population 2016'!AX207/'Population 2016'!AX$5","v":7.6159321210882095E-3},{"$f":"'Population 2016'!AY207/'Population 2016'!AY$5","v":6.8969737768122151E-3},{"$f":"'Population 2016'!AZ207/'Population 2016'!AZ$5","v":8.2148753674545962E-3},{"$f":"'Population 2016'!BA207/'Population 2016'!BA$5","v":3.819369466637875E-3},{"$f":"'Population 2016'!BB207/'Population 2016'!BB$5","v":3.8667891149886413E-3},{"$f":"'Population 2016'!BC207/'Population 2016'!BC$5","v":1.8589828708006906E-3},205]
[null,"Male 75-79",{"$f":"'Population 2016'!C208/'Population 2016'!C$5","v":2.2897681098679804E-3},{"$f":"'Population 2016'!D208/'Population 2016'!D$5","v":4.7607171151081247E-3},{"$f":"'Population 2016'!E208/'Population 2016'!E$5","v":7.0270346288891289E-3},{"$f":"'Population 2016'!F208/'Population 2016'!F$5","v":7.0151944372907546E-3},{"$f":"'Population 2016'!G208/'Population 2016'!G$5","v":6.1305689384507115E-3},{"$f":"'Population 2016'!H208/'Population 2016'!H$5","v":3.3202232071929522E-3},{"$f":"'Population 2016'!I208/'Population 2016'!I$5","v":9.5364709823297887E-3},{"$f":"'Population 2016'!J208/'Population 2016'!J$5","v":4.3704336432167055E-3},{"$f":"'Population 2016'!K208/'Population 2016'!K$5","v":3.0241459150404009E-3},{"$f":"'Population 2016'!L208/'Population 2016'!L$5","v":4.8369418455037885E-3},{"$f":"'Population 2016'!M208/'Population 2016'!M$5","v":4.8369418455037885E-3},{"$f":"'Population 2016'!N208/'Population 2016'!N$5","v":2.5478014161596516E-3},{"$f":"'Population 2016'!O208/'Population 2016'!O$5","v":2.5064146382540297E-3},{"$f":"'Population 2016'!P208/'Population 2016'!P$5","v":4.2037642285585484E-3},{"$f":"'Population 2016'!Q208/'Population 2016'!Q$5","v":5.7696149281442049E-3},{"$f":"'Population 2016'!R208/'Population 2016'!R$5","v":2.7545643263959122E-3},{"$f":"'Population 2016'!S208/'Population 2016'!S$5","v":3.6153660116757962E-3},{"$f":"'Population 2016'!T208/'Population 2016'!T$5","v":2.2172794237400131E-3},{"$f":"'Population 2016'!U208/'Population 2016'!U$5","v":9.7375293232417125E-4},{"$f":"'Population 2016'!V208/'Population 2016'!V$5","v":3.6253730318040619E-3},{"$f":"'Population 2016'!W208/'Population 2016'!W$5","v":3.7325384529902799E-3},{"$f":"'Population 2016'!X208/'Population 2016'!X$5","v":3.7325384529902799E-3},{"$f":"'Population 2016'!Y208/'Population 2016'!Y$5","v":3.9824486097200362E-3},{"$f":"'Population 2016'!Z208/'Population 2016'!Z$5","v":1.3531223443280171E-3},{"$f":"'Population 2016'!AA208/'Population 2016'!AA$5","v":2.3074004904471757E-3},{"$f":"'Population 2016'!AB208/'Population 2016'!AB$5","v":5.3713806126731009E-3},{"$f":"'Population 2016'!AC208/'Population 2016'!AC$5","v":2.2578663318308474E-3},{"$f":"'Population 2016'!AD208/'Population 2016'!AD$5","v":6.5875172131452603E-3},{"$f":"'Population 2016'!AE208/'Population 2016'!AE$5","v":6.7608497007156133E-3},{"$f":"'Population 2016'!AF208/'Population 2016'!AF$5","v":3.3328809060610173E-3},{"$f":"'Population 2016'!AG208/'Population 2016'!AG$5","v":6.7608497007156133E-3},{"$f":"'Population 2016'!AH208/'Population 2016'!AH$5","v":2.3963664397239535E-3},{"$f":"'Population 2016'!AI208/'Population 2016'!AI$5","v":2.7930593227753959E-3},{"$f":"'Population 2016'!AJ208/'Population 2016'!AJ$5","v":2.8859827677550679E-3},{"$f":"'Population 2016'!AK208/'Population 2016'!AK$5","v":8.5111197716958124E-3},{"$f":"'Population 2016'!AL208/'Population 2016'!AL$5","v":4.0882566822156401E-3},{"$f":"'Population 2016'!AM208/'Population 2016'!AM$5","v":1.8327290639680396E-3},{"$f":"'Population 2016'!AN208/'Population 2016'!AN$5","v":1.2217737536816844E-2},{"$f":"'Population 2016'!AO208/'Population 2016'!AO$5","v":1.2217737536816844E-2},{"$f":"'Population 2016'!AP208/'Population 2016'!AP$5","v":9.6380958419859542E-3},{"$f":"'Population 2016'!AQ208/'Population 2016'!AQ$5","v":3.3841179371951555E-3},{"$f":"'Population 2016'!AR208/'Population 2016'!AR$5","v":3.8507096466904281E-3},{"$f":"'Population 2016'!AS208/'Population 2016'!AS$5","v":9.5364709823297887E-3},{"$f":"'Population 2016'!AT208/'Population 2016'!AT$5","v":1.1968155216955765E-2},{"$f":"'Population 2016'!AU208/'Population 2016'!AU$5","v":1.1968155216955765E-2},{"$f":"'Population 2016'!AV208/'Population 2016'!AV$5","v":3.2731496146130292E-3},{"$f":"'Population 2016'!AW208/'Population 2016'!AW$5","v":2.9898102385746538E-3},{"$f":"'Population 2016'!AX208/'Population 2016'!AX$5","v":5.0985854300573752E-3},{"$f":"'Population 2016'!AY208/'Population 2016'!AY$5","v":5.1344818090021723E-3},{"$f":"'Population 2016'!AZ208/'Population 2016'!AZ$5","v":6.3682542239301395E-3},{"$f":"'Population 2016'!BA208/'Population 2016'!BA$5","v":2.5507449794860723E-3},{"$f":"'Population 2016'!BB208/'Population 2016'!BB$5","v":2.7067523804920491E-3},{"$f":"'Population 2016'!BC208/'Population 2016'!BC$5","v":9.7375293232417125E-4},206]
[null,"Male 80-84",{"$f":"'Population 2016'!C209/'Population 2016'!C$5","v":1.5588823069413707E-3},{"$f":"'Population 2016'!D209/'Population 2016'!D$5","v":3.1102373756638595E-3},{"$f":"'Population 2016'!E209/'Population 2016'!E$5","v":4.5331170688030602E-3},{"$f":"'Population 2016'!F209/'Population 2016'!F$5","v":4.2132371877414369E-3},{"$f":"'Population 2016'!G209/'Population 2016'!G$5","v":4.1547122827911009E-3},{"$f":"'Population 2016'!H209/'Population 2016'!H$5","v":2.2761686439936061E-3},{"$f":"'Population 2016'!I209/'Population 2016'!I$5","v":6.2180721882589395E-3},{"$f":"'Population 2016'!J209/'Population 2016'!J$5","v":3.0020815537845301E-3},{"$f":"'Population 2016'!K209/'Population 2016'!K$5","v":2.173604876435288E-3},{"$f":"'Population 2016'!L209/'Population 2016'!L$5","v":3.6217495591949552E-3},{"$f":"'Population 2016'!M209/'Population 2016'!M$5","v":3.6217495591949552E-3},{"$f":"'Population 2016'!N209/'Population 2016'!N$5","v":2.2343495069160352E-3},{"$f":"'Population 2016'!O209/'Population 2016'!O$5","v":1.5454572473028799E-3},{"$f":"'Population 2016'!P209/'Population 2016'!P$5","v":3.0429392539163755E-3},{"$f":"'Population 2016'!Q209/'Population 2016'!Q$5","v":3.8424930376846334E-3},{"$f":"'Population 2016'!R209/'Population 2016'!R$5","v":2.0892106243679139E-3},{"$f":"'Population 2016'!S209/'Population 2016'!S$5","v":2.4008289921284586E-3},{"$f":"'Population 2016'!T209/'Population 2016'!T$5","v":1.6193352349664733E-3},{"$f":"'Population 2016'!U209/'Population 2016'!U$5","v":9.2949143540034529E-4},{"$f":"'Population 2016'!V209/'Population 2016'!V$5","v":2.6026362186214423E-3},{"$f":"'Population 2016'!W209/'Population 2016'!W$5","v":2.3532641735140116E-3},{"$f":"'Population 2016'!X209/'Population 2016'!X$5","v":2.3532641735140116E-3},{"$f":"'Population 2016'!Y209/'Population 2016'!Y$5","v":2.7940732261808239E-3},{"$f":"'Population 2016'!Z209/'Population 2016'!Z$5","v":9.6983446996900787E-4},{"$f":"'Population 2016'!AA209/'Population 2016'!AA$5","v":1.5686071286915584E-3},{"$f":"'Population 2016'!AB209/'Population 2016'!AB$5","v":3.5188274669150383E-3},{"$f":"'Population 2016'!AC209/'Population 2016'!AC$5","v":1.575231526971315E-3},{"$f":"'Population 2016'!AD209/'Population 2016'!AD$5","v":4.5777661989653507E-3},{"$f":"'Population 2016'!AE209/'Population 2016'!AE$5","v":4.7382416657255205E-3},{"$f":"'Population 2016'!AF209/'Population 2016'!AF$5","v":2.00576090726749E-3},{"$f":"'Population 2016'!AG209/'Population 2016'!AG$5","v":4.7382416657255205E-3},{"$f":"'Population 2016'!AH209/'Population 2016'!AH$5","v":1.5567093616191264E-3},{"$f":"'Population 2016'!AI209/'Population 2016'!AI$5","v":1.9221935427421472E-3},{"$f":"'Population 2016'!AJ209/'Population 2016'!AJ$5","v":2.2028274265956556E-3},{"$f":"'Population 2016'!AK209/'Population 2016'!AK$5","v":5.6196019762895537E-3},{"$f":"'Population 2016'!AL209/'Population 2016'!AL$5","v":2.740284847732392E-3},{"$f":"'Population 2016'!AM209/'Population 2016'!AM$5","v":1.0938422476647193E-3},{"$f":"'Population 2016'!AN209/'Population 2016'!AN$5","v":6.872477364459474E-3},{"$f":"'Population 2016'!AO209/'Population 2016'!AO$5","v":6.872477364459474E-3},{"$f":"'Population 2016'!AP209/'Population 2016'!AP$5","v":6.7767861388963744E-3},{"$f":"'Population 2016'!AQ209/'Population 2016'!AQ$5","v":2.1030854387022522E-3},{"$f":"'Population 2016'!AR209/'Population 2016'!AR$5","v":2.6093932364295623E-3},{"$f":"'Population 2016'!AS209/'Population 2016'!AS$5","v":6.2180721882589395E-3},{"$f":"'Population 2016'!AT209/'Population 2016'!AT$5","v":7.0121790478198977E-3},{"$f":"'Population 2016'!AU209/'Population 2016'!AU$5","v":7.0121790478198977E-3},{"$f":"'Population 2016'!AV209/'Population 2016'!AV$5","v":2.5023756731073804E-3},{"$f":"'Population 2016'!AW209/'Population 2016'!AW$5","v":2.0440539386173654E-3},{"$f":"'Population 2016'!AX209/'Population 2016'!AX$5","v":3.4501705917681486E-3},{"$f":"'Population 2016'!AY209/'Population 2016'!AY$5","v":3.4607264159603438E-3},{"$f":"'Population 2016'!AZ209/'Population 2016'!AZ$5","v":4.4353423727643516E-3},{"$f":"'Population 2016'!BA209/'Population 2016'!BA$5","v":2.0918808032822284E-3},{"$f":"'Population 2016'!BB209/'Population 2016'!BB$5","v":1.5536206265579363E-3},{"$f":"'Population 2016'!BC209/'Population 2016'!BC$5","v":9.2949143540034529E-4},207]
[null,"Male 85-89",{"$f":"'Population 2016'!C210/'Population 2016'!C$5","v":7.2066362386469923E-4},{"$f":"'Population 2016'!D210/'Population 2016'!D$5","v":1.6724861359701886E-3},{"$f":"'Population 2016'!E210/'Population 2016'!E$5","v":2.5454835246743143E-3},{"$f":"'Population 2016'!F210/'Population 2016'!F$5","v":2.5753283543651817E-3},{"$f":"'Population 2016'!G210/'Population 2016'!G$5","v":1.8946570670708603E-3},{"$f":"'Population 2016'!H210/'Population 2016'!H$5","v":1.050539374150895E-3},{"$f":"'Population 2016'!I210/'Population 2016'!I$5","v":3.6010384389917093E-3},{"$f":"'Population 2016'!J210/'Population 2016'!J$5","v":1.6586085932511216E-3},{"$f":"'Population 2016'!K210/'Population 2016'!K$5","v":9.9229787837263141E-4},{"$f":"'Population 2016'!L210/'Population 2016'!L$5","v":1.8188172128413261E-3},{"$f":"'Population 2016'!M210/'Population 2016'!M$5","v":1.8188172128413261E-3},{"$f":"'Population 2016'!N210/'Population 2016'!N$5","v":1.2216587232058897E-3},{"$f":"'Population 2016'!O210/'Population 2016'!O$5","v":6.2412696525693224E-4},{"$f":"'Population 2016'!P210/'Population 2016'!P$5","v":1.6229009354220669E-3},{"$f":"'Population 2016'!Q210/'Population 2016'!Q$5","v":2.3148964171983877E-3},{"$f":"'Population 2016'!R210/'Population 2016'!R$5","v":1.0113376270825571E-3},{"$f":"'Population 2016'!S210/'Population 2016'!S$5","v":1.3328131537183722E-3},{"$f":"'Population 2016'!T210/'Population 2016'!T$5","v":9.981247353457142E-4},{"$f":"'Population 2016'!U210/'Population 2016'!U$5","v":5.3113796308591158E-4},{"$f":"'Population 2016'!V210/'Population 2016'!V$5","v":1.3051342914494623E-3},{"$f":"'Population 2016'!W210/'Population 2016'!W$5","v":1.1766320867570058E-3},{"$f":"'Population 2016'!X210/'Population 2016'!X$5","v":1.1766320867570058E-3},{"$f":"'Population 2016'!Y210/'Population 2016'!Y$5","v":1.4745393554951431E-3},{"$f":"'Population 2016'!Z210/'Population 2016'!Z$5","v":4.9556412038336526E-4},{"$f":"'Population 2016'!AA210/'Population 2016'!AA$5","v":7.9991655355554268E-4},{"$f":"'Population 2016'!AB210/'Population 2016'!AB$5","v":1.8382240054041329E-3},{"$f":"'Population 2016'!AC210/'Population 2016'!AC$5","v":8.1916176583143885E-4},{"$f":"'Population 2016'!AD210/'Population 2016'!AD$5","v":2.3782053667795603E-3},{"$f":"'Population 2016'!AE210/'Population 2016'!AE$5","v":2.5616279427920206E-3},{"$f":"'Population 2016'!AF210/'Population 2016'!AF$5","v":1.1612299989443363E-3},{"$f":"'Population 2016'!AG210/'Population 2016'!AG$5","v":2.5616279427920206E-3},{"$f":"'Population 2016'!AH210/'Population 2016'!AH$5","v":7.6535114198935566E-4},{"$f":"'Population 2016'!AI210/'Population 2016'!AI$5","v":1.101911803307376E-3},{"$f":"'Population 2016'!AJ210/'Population 2016'!AJ$5","v":9.7593620165630315E-4},{"$f":"'Population 2016'!AK210/'Population 2016'!AK$5","v":2.6903687313779966E-3},{"$f":"'Population 2016'!AL210/'Population 2016'!AL$5","v":1.3568400702364271E-3},{"$f":"'Population 2016'!AM210/'Population 2016'!AM$5","v":4.6723725148592314E-4},{"$f":"'Population 2016'!AN210/'Population 2016'!AN$5","v":3.708956037962256E-3},{"$f":"'Population 2016'!AO210/'Population 2016'!AO$5","v":3.708956037962256E-3},{"$f":"'Population 2016'!AP210/'Population 2016'!AP$5","v":3.6935465973400123E-3},{"$f":"'Population 2016'!AQ210/'Population 2016'!AQ$5","v":1.2330794103140243E-3},{"$f":"'Population 2016'!AR210/'Population 2016'!AR$5","v":1.377656260059798E-3},{"$f":"'Population 2016'!AS210/'Population 2016'!AS$5","v":3.6010384389917093E-3},{"$f":"'Population 2016'!AT210/'Population 2016'!AT$5","v":3.2161121948647651E-3},{"$f":"'Population 2016'!AU210/'Population 2016'!AU$5","v":3.2161121948647651E-3},{"$f":"'Population 2016'!AV210/'Population 2016'!AV$5","v":1.1403230915426037E-3},{"$f":"'Population 2016'!AW210/'Population 2016'!AW$5","v":1.0792299713222283E-3},{"$f":"'Population 2016'!AX210/'Population 2016'!AX$5","v":2.018988716664324E-3},{"$f":"'Population 2016'!AY210/'Population 2016'!AY$5","v":1.8787674795752885E-3},{"$f":"'Population 2016'!AZ210/'Population 2016'!AZ$5","v":2.496677807755809E-3},{"$f":"'Population 2016'!BA210/'Population 2016'!BA$5","v":7.9626430576549341E-4},{"$f":"'Population 2016'!BB210/'Population 2016'!BB$5","v":7.5954786187276886E-4},{"$f":"'Population 2016'!BC210/'Population 2016'!BC$5","v":5.3113796308591158E-4},208]
[null,"Male 90+",{"$f":"'Population 2016'!C211/'Population 2016'!C$5","v":2.0955467076916786E-4},{"$f":"'Population 2016'!D211/'Population 2016'!D$5","v":6.601918957777061E-4},{"$f":"'Population 2016'!E211/'Population 2016'!E$5","v":1.0735096264280256E-3},{"$f":"'Population 2016'!F211/'Population 2016'!F$5","v":9.7862477465876898E-4},{"$f":"'Population 2016'!G211/'Population 2016'!G$5","v":9.4732853353543013E-4},{"$f":"'Population 2016'!H211/'Population 2016'!H$5","v":4.5393676660841146E-4},{"$f":"'Population 2016'!I211/'Population 2016'!I$5","v":1.2875806046394773E-3},{"$f":"'Population 2016'!J211/'Population 2016'!J$5","v":6.302712654354262E-4},{"$f":"'Population 2016'!K211/'Population 2016'!K$5","v":3.7801823938005011E-4},{"$f":"'Population 2016'!L211/'Population 2016'!L$5","v":6.8304925897097837E-4},{"$f":"'Population 2016'!M211/'Population 2016'!M$5","v":6.8304925897097837E-4},{"$f":"'Population 2016'!N211/'Population 2016'!N$5","v":6.6708996069795288E-4},{"$f":"'Population 2016'!O211/'Population 2016'!O$5","v":3.2692364846791691E-4},{"$f":"'Population 2016'!P211/'Population 2016'!P$5","v":6.9874901386227887E-4},{"$f":"'Population 2016'!Q211/'Population 2016'!Q$5","v":7.2854608053959415E-4},{"$f":"'Population 2016'!R211/'Population 2016'!R$5","v":6.5204662798743808E-4},{"$f":"'Population 2016'!S211/'Population 2016'!S$5","v":5.2606399974579462E-4},{"$f":"'Population 2016'!T211/'Population 2016'!T$5","v":4.909191588763302E-4},{"$f":"'Population 2016'!U211/'Population 2016'!U$5","v":8.8522993847651925E-5},{"$f":"'Population 2016'!V211/'Population 2016'!V$5","v":5.342654994237565E-4},{"$f":"'Population 2016'!W211/'Population 2016'!W$5","v":5.1967917165101089E-4},{"$f":"'Population 2016'!X211/'Population 2016'!X$5","v":5.1967917165101089E-4},{"$f":"'Population 2016'!Y211/'Population 2016'!Y$5","v":5.8027694313285958E-4},{"$f":"'Population 2016'!Z211/'Population 2016'!Z$5","v":2.0132292390574215E-4},{"$f":"'Population 2016'!AA211/'Population 2016'!AA$5","v":3.308624947430733E-4},{"$f":"'Population 2016'!AB211/'Population 2016'!AB$5","v":7.5330337860659343E-4},{"$f":"'Population 2016'!AC211/'Population 2016'!AC$5","v":3.5683182981293738E-4},{"$f":"'Population 2016'!AD211/'Population 2016'!AD$5","v":1.0346495961889165E-3},{"$f":"'Population 2016'!AE211/'Population 2016'!AE$5","v":1.0677727697409624E-3},{"$f":"'Population 2016'!AF211/'Population 2016'!AF$5","v":4.3734636323877605E-4},{"$f":"'Population 2016'!AG211/'Population 2016'!AG$5","v":1.0677727697409624E-3},{"$f":"'Population 2016'!AH211/'Population 2016'!AH$5","v":2.8422020564167818E-4},{"$f":"'Population 2016'!AI211/'Population 2016'!AI$5","v":4.2928077697086361E-4},{"$f":"'Population 2016'!AJ211/'Population 2016'!AJ$5","v":2.509550232830494E-4},{"$f":"'Population 2016'!AK211/'Population 2016'!AK$5","v":1.2320380171731012E-3},{"$f":"'Population 2016'!AL211/'Population 2016'!AL$5","v":4.4341178765896312E-4},{"$f":"'Population 2016'!AM211/'Population 2016'!AM$5","v":1.9558768666852596E-4},{"$f":"'Population 2016'!AN211/'Population 2016'!AN$5","v":1.7999345478346242E-3},{"$f":"'Population 2016'!AO211/'Population 2016'!AO$5","v":1.7999345478346242E-3},{"$f":"'Population 2016'!AP211/'Population 2016'!AP$5","v":1.5376567379484171E-3},{"$f":"'Population 2016'!AQ211/'Population 2016'!AQ$5","v":5.2063352879925466E-4},{"$f":"'Population 2016'!AR211/'Population 2016'!AR$5","v":5.6674604230144341E-4},{"$f":"'Population 2016'!AS211/'Population 2016'!AS$5","v":1.2875806046394773E-3},{"$f":"'Population 2016'!AT211/'Population 2016'!AT$5","v":1.3180787683871988E-3},{"$f":"'Population 2016'!AU211/'Population 2016'!AU$5","v":1.3180787683871988E-3},{"$f":"'Population 2016'!AV211/'Population 2016'!AV$5","v":6.0183718720304086E-4},{"$f":"'Population 2016'!AW211/'Population 2016'!AW$5","v":3.7753981328940141E-4},{"$f":"'Population 2016'!AX211/'Population 2016'!AX$5","v":7.6670457594847749E-4},{"$f":"'Population 2016'!AY211/'Population 2016'!AY$5","v":8.1239864141244148E-4},{"$f":"'Population 2016'!AZ211/'Population 2016'!AZ$5","v":1.0700047747524894E-3},{"$f":"'Population 2016'!BA211/'Population 2016'!BA$5","v":3.3740012956164973E-4},{"$f":"'Population 2016'!BB211/'Population 2016'!BB$5","v":1.588145529370335E-4},{"$f":"'Population 2016'!BC211/'Population 2016'!BC$5","v":8.8522993847651925E-5},209]
["SIMD Q5 (least deprived)","Female 0-4",{"$f":"'Population 2016'!C212/'Population 2016'!C$5","v":0},{"$f":"'Population 2016'!D212/'Population 2016'!D$5","v":0},{"$f":"'Population 2016'!E212/'Population 2016'!E$5","v":0},{"$f":"'Population 2016'!F212/'Population 2016'!F$5","v":0},{"$f":"'Population 2016'!G212/'Population 2016'!G$5","v":0},{"$f":"'Population 2016'!H212/'Population 2016'!H$5","v":0},{"$f":"'Population 2016'!I212/'Population 2016'!I$5","v":0},{"$f":"'Population 2016'!J212/'Population 2016'!J$5","v":0},{"$f":"'Population 2016'!K212/'Population 2016'!K$5","v":0},{"$f":"'Population 2016'!L212/'Population 2016'!L$5","v":0},{"$f":"'Population 2016'!M212/'Population 2016'!M$5","v":0},{"$f":"'Population 2016'!N212/'Population 2016'!N$5","v":0},{"$f":"'Population 2016'!O212/'Population 2016'!O$5","v":0},{"$f":"'Population 2016'!P212/'Population 2016'!P$5","v":0},{"$f":"'Population 2016'!Q212/'Population 2016'!Q$5","v":0},{"$f":"'Population 2016'!R212/'Population 2016'!R$5","v":0},{"$f":"'Population 2016'!S212/'Population 2016'!S$5","v":0},{"$f":"'Population 2016'!T212/'Population 2016'!T$5","v":0},{"$f":"'Population 2016'!U212/'Population 2016'!U$5","v":0},{"$f":"'Population 2016'!V212/'Population 2016'!V$5","v":0},{"$f":"'Population 2016'!W212/'Population 2016'!W$5","v":0},{"$f":"'Population 2016'!X212/'Population 2016'!X$5","v":0},{"$f":"'Population 2016'!Y212/'Population 2016'!Y$5","v":0},{"$f":"'Population 2016'!Z212/'Population 2016'!Z$5","v":0},{"$f":"'Population 2016'!AA212/'Population 2016'!AA$5","v":0},{"$f":"'Population 2016'!AB212/'Population 2016'!AB$5","v":0},{"$f":"'Population 2016'!AC212/'Population 2016'!AC$5","v":0},{"$f":"'Population 2016'!AD212/'Population 2016'!AD$5","v":0},{"$f":"'Population 2016'!AE212/'Population 2016'!AE$5","v":0},{"$f":"'Population 2016'!AF212/'Population 2016'!AF$5","v":0},{"$f":"'Population 2016'!AG212/'Population 2016'!AG$5","v":0},{"$f":"'Population 2016'!AH212/'Population 2016'!AH$5","v":0},{"$f":"'Population 2016'!AI212/'Population 2016'!AI$5","v":0},{"$f":"'Population 2016'!AJ212/'Population 2016'!AJ$5","v":0},{"$f":"'Population 2016'!AK212/'Population 2016'!AK$5","v":0},{"$f":"'Population 2016'!AL212/'Population 2016'!AL$5","v":0},{"$f":"'Population 2016'!AM212/'Population 2016'!AM$5","v":0},{"$f":"'Population 2016'!AN212/'Population 2016'!AN$5","v":0},{"$f":"'Population 2016'!AO212/'Population 2016'!AO$5","v":0},{"$f":"'Population 2016'!AP212/'Population 2016'!AP$5","v":0},{"$f":"'Population 2016'!AQ212/'Population 2016'!AQ$5","v":0},{"$f":"'Population 2016'!AR212/'Population 2016'!AR$5","v":0},{"$f":"'Population 2016'!AS212/'Population 2016'!AS$5","v":0},{"$f":"'Population 2016'!AT212/'Population 2016'!AT$5","v":0},{"$f":"'Population 2016'!AU212/'Population 2016'!AU$5","v":0},{"$f":"'Population 2016'!AV212/'Population 2016'!AV$5","v":0},{"$f":"'Population 2016'!AW212/'Population 2016'!AW$5","v":0},{"$f":"'Population 2016'!AX212/'Population 2016'!AX$5","v":0},{"$f":"'Population 2016'!AY212/'Population 2016'!AY$5","v":0},{"$f":"'Population 2016'!AZ212/'Population 2016'!AZ$5","v":0},{"$f":"'Population 2016'!BA212/'Population 2016'!BA$5","v":0},{"$f":"'Population 2016'!BB212/'Population 2016'!BB$5","v":0},{"$f":"'Population 2016'!BC212/'Population 2016'!BC$5","v":0},210]
[null,"Female 5-9",{"$f":"'Population 2016'!C213/'Population 2016'!C$5","v":0},{"$f":"'Population 2016'!D213/'Population 2016'!D$5","v":0},{"$f":"'Population 2016'!E213/'Population 2016'!E$5","v":0},{"$f":"'Population 2016'!F213/'Population 2016'!F$5","v":0},{"$f":"'Population 2016'!G213/'Population 2016'!G$5","v":0},{"$f":"'Population 2016'!H213/'Population 2016'!H$5","v":0},{"$f":"'Population 2016'!I213/'Population 2016'!I$5","v":0},{"$f":"'Population 2016'!J213/'Population 2016'!J$5","v":0},{"$f":"'Population 2016'!K213/'Population 2016'!K$5","v":0},{"$f":"'Population 2016'!L213/'Population 2016'!L$5","v":0},{"$f":"'Population 2016'!M213/'Population 2016'!M$5","v":0},{"$f":"'Population 2016'!N213/'Population 2016'!N$5","v":0},{"$f":"'Population 2016'!O213/'Population 2016'!O$5","v":0},{"$f":"'Population 2016'!P213/'Population 2016'!P$5","v":0},{"$f":"'Population 2016'!Q213/'Population 2016'!Q$5","v":0},{"$f":"'Population 2016'!R213/'Population 2016'!R$5","v":0},{"$f":"'Population 2016'!S213/'Population 2016'!S$5","v":0},{"$f":"'Population 2016'!T213/'Population 2016'!T$5","v":0},{"$f":"'Population 2016'!U213/'Population 2016'!U$5","v":0},{"$f":"'Population 2016'!V213/'Population 2016'!V$5","v":0},{"$f":"'Population 2016'!W213/'Population 2016'!W$5","v":0},{"$f":"'Population 2016'!X213/'Population 2016'!X$5","v":0},{"$f":"'Population 2016'!Y213/'Population 2016'!Y$5","v":0},{"$f":"'Population 2016'!Z213/'Population 2016'!Z$5","v":0},{"$f":"'Population 2016'!AA213/'Population 2016'!AA$5","v":0},{"$f":"'Population 2016'!AB213/'Population 2016'!AB$5","v":0},{"$f":"'Population 2016'!AC213/'Population 2016'!AC$5","v":0},{"$f":"'Population 2016'!AD213/'Population 2016'!AD$5","v":0},{"$f":"'Population 2016'!AE213/'Population 2016'!AE$5","v":0},{"$f":"'Population 2016'!AF213/'Population 2016'!AF$5","v":0},{"$f":"'Population 2016'!AG213/'Population 2016'!AG$5","v":0},{"$f":"'Population 2016'!AH213/'Population 2016'!AH$5","v":0},{"$f":"'Population 2016'!AI213/'Population 2016'!AI$5","v":0},{"$f":"'Population 2016'!AJ213/'Population 2016'!AJ$5","v":0},{"$f":"'Population 2016'!AK213/'Population 2016'!AK$5","v":0},{"$f":"'Population 2016'!AL213/'Population 2016'!AL$5","v":0},{"$f":"'Population 2016'!AM213/'Population 2016'!AM$5","v":0},{"$f":"'Population 2016'!AN213/'Population 2016'!AN$5","v":0},{"$f":"'Population 2016'!AO213/'Population 2016'!AO$5","v":0},{"$f":"'Population 2016'!AP213/'Population 2016'!AP$5","v":0},{"$f":"'Population 2016'!AQ213/'Population 2016'!AQ$5","v":0},{"$f":"'Population 2016'!AR213/'Population 2016'!AR$5","v":0},{"$f":"'Population 2016'!AS213/'Population 2016'!AS$5","v":0},{"$f":"'Population 2016'!AT213/'Population 2016'!AT$5","v":0},{"$f":"'Population 2016'!AU213/'Population 2016'!AU$5","v":0},{"$f":"'Population 2016'!AV213/'Population 2016'!AV$5","v":0},{"$f":"'Population 2016'!AW213/'Population 2016'!AW$5","v":0},{"$f":"'Population 2016'!AX213/'Population 2016'!AX$5","v":0},{"$f":"'Population 2016'!AY213/'Population 2016'!AY$5","v":0},{"$f":"'Population 2016'!AZ213/'Population 2016'!AZ$5","v":0},{"$f":"'Population 2016'!BA213/'Population 2016'!BA$5","v":0},{"$f":"'Population 2016'!BB213/'Population 2016'!BB$5","v":0},{"$f":"'Population 2016'!BC213/'Population 2016'!BC$5","v":0},211]
[null,"Female 10-15",{"$f":"'Population 2016'!C214/'Population 2016'!C$5","v":0},{"$f":"'Population 2016'!D214/'Population 2016'!D$5","v":0},{"$f":"'Population 2016'!E214/'Population 2016'!E$5","v":0},{"$f":"'Population 2016'!F214/'Population 2016'!F$5","v":0},{"$f":"'Population 2016'!G214/'Population 2016'!G$5","v":0},{"$f":"'Population 2016'!H214/'Population 2016'!H$5","v":0},{"$f":"'Population 2016'!I214/'Population 2016'!I$5","v":0},{"$f":"'Population 2016'!J214/'Population 2016'!J$5","v":0},{"$f":"'Population 2016'!K214/'Population 2016'!K$5","v":0},{"$f":"'Population 2016'!L214/'Population 2016'!L$5","v":0},{"$f":"'Population 2016'!M214/'Population 2016'!M$5","v":0},{"$f":"'Population 2016'!N214/'Population 2016'!N$5","v":0},{"$f":"'Population 2016'!O214/'Population 2016'!O$5","v":0},{"$f":"'Population 2016'!P214/'Population 2016'!P$5","v":0},{"$f":"'Population 2016'!Q214/'Population 2016'!Q$5","v":0},{"$f":"'Population 2016'!R214/'Population 2016'!R$5","v":0},{"$f":"'Population 2016'!S214/'Population 2016'!S$5","v":0},{"$f":"'Population 2016'!T214/'Population 2016'!T$5","v":0},{"$f":"'Population 2016'!U214/'Population 2016'!U$5","v":0},{"$f":"'Population 2016'!V214/'Population 2016'!V$5","v":0},{"$f":"'Population 2016'!W214/'Population 2016'!W$5","v":0},{"$f":"'Population 2016'!X214/'Population 2016'!X$5","v":0},{"$f":"'Population 2016'!Y214/'Population 2016'!Y$5","v":0},{"$f":"'Population 2016'!Z214/'Population 2016'!Z$5","v":0},{"$f":"'Population 2016'!AA214/'Population 2016'!AA$5","v":0},{"$f":"'Population 2016'!AB214/'Population 2016'!AB$5","v":0},{"$f":"'Population 2016'!AC214/'Population 2016'!AC$5","v":0},{"$f":"'Population 2016'!AD214/'Population 2016'!AD$5","v":0},{"$f":"'Population 2016'!AE214/'Population 2016'!AE$5","v":0},{"$f":"'Population 2016'!AF214/'Population 2016'!AF$5","v":0},{"$f":"'Population 2016'!AG214/'Population 2016'!AG$5","v":0},{"$f":"'Population 2016'!AH214/'Population 2016'!AH$5","v":0},{"$f":"'Population 2016'!AI214/'Population 2016'!AI$5","v":0},{"$f":"'Population 2016'!AJ214/'Population 2016'!AJ$5","v":0},{"$f":"'Population 2016'!AK214/'Population 2016'!AK$5","v":0},{"$f":"'Population 2016'!AL214/'Population 2016'!AL$5","v":0},{"$f":"'Population 2016'!AM214/'Population 2016'!AM$5","v":0},{"$f":"'Population 2016'!AN214/'Population 2016'!AN$5","v":0},{"$f":"'Population 2016'!AO214/'Population 2016'!AO$5","v":0},{"$f":"'Population 2016'!AP214/'Population 2016'!AP$5","v":0},{"$f":"'Population 2016'!AQ214/'Population 2016'!AQ$5","v":0},{"$f":"'Population 2016'!AR214/'Population 2016'!AR$5","v":0},{"$f":"'Population 2016'!AS214/'Population 2016'!AS$5","v":0},{"$f":"'Population 2016'!AT214/'Population 2016'!AT$5","v":0},{"$f":"'Population 2016'!AU214/'Population 2016'!AU$5","v":0},{"$f":"'Population 2016'!AV214/'Population 2016'!AV$5","v":0},{"$f":"'Population 2016'!AW214/'Population 2016'!AW$5","v":0},{"$f":"'Population 2016'!AX214/'Population 2016'!AX$5","v":0},{"$f":"'Population 2016'!AY214/'Population 2016'!AY$5","v":0},{"$f":"'Population 2016'!AZ214/'Population 2016'!AZ$5","v":0},{"$f":"'Population 2016'!BA214/'Population 2016'!BA$5","v":0},{"$f":"'Population 2016'!BB214/'Population 2016'!BB$5","v":0},{"$f":"'Population 2016'!BC214/'Population 2016'!BC$5","v":0},212]
[null,"Female 16-19",{"$f":"'Population 2016'!C215/'Population 2016'!C$5","v":1.041640046408693E-2},{"$f":"'Population 2016'!D215/'Population 2016'!D$5","v":9.5678921784376428E-3},{"$f":"'Population 2016'!E215/'Population 2016'!E$5","v":8.7896530548146196E-3},{"$f":"'Population 2016'!F215/'Population 2016'!F$5","v":4.7283028586144731E-3},{"$f":"'Population 2016'!G215/'Population 2016'!G$5","v":1.8134574784821091E-3},{"$f":"'Population 2016'!H215/'Population 2016'!H$5","v":3.4434346152723782E-3},{"$f":"'Population 2016'!I215/'Population 2016'!I$5","v":2.1983083493844736E-3},{"$f":"'Population 2016'!J215/'Population 2016'!J$5","v":1.0258494149258187E-2},{"$f":"'Population 2016'!K215/'Population 2016'!K$5","v":3.8510608136842601E-3},{"$f":"'Population 2016'!L215/'Population 2016'!L$5","v":2.0570902101567836E-3},{"$f":"'Population 2016'!M215/'Population 2016'!M$5","v":2.0570902101567836E-3},{"$f":"'Population 2016'!N215/'Population 2016'!N$5","v":5.0795283754350154E-3},{"$f":"'Population 2016'!O215/'Population 2016'!O$5","v":3.1503551579635629E-3},{"$f":"'Population 2016'!P215/'Population 2016'!P$5","v":1.4887862053420488E-2},{"$f":"'Population 2016'!Q215/'Population 2016'!Q$5","v":4.1950153347199209E-3},{"$f":"'Population 2016'!R215/'Population 2016'!R$5","v":1.741895991909299E-2},{"$f":"'Population 2016'!S215/'Population 2016'!S$5","v":7.5634939829223383E-3},{"$f":"'Population 2016'!T215/'Population 2016'!T$5","v":1.0718789407313998E-2},{"$f":"'Population 2016'!U215/'Population 2016'!U$5","v":0},{"$f":"'Population 2016'!V215/'Population 2016'!V$5","v":5.1671106158554733E-3},{"$f":"'Population 2016'!W215/'Population 2016'!W$5","v":7.5108348204655541E-3},{"$f":"'Population 2016'!X215/'Population 2016'!X$5","v":7.5108348204655541E-3},{"$f":"'Population 2016'!Y215/'Population 2016'!Y$5","v":7.6071922544951589E-3},{"$f":"'Population 2016'!Z215/'Population 2016'!Z$5","v":2.8843380444188061E-3},{"$f":"'Population 2016'!AA215/'Population 2016'!AA$5","v":4.6101503032574013E-3},{"$f":"'Population 2016'!AB215/'Population 2016'!AB$5","v":8.8615497988802795E-3},{"$f":"'Population 2016'!AC215/'Population 2016'!AC$5","v":5.34213449560528E-3},{"$f":"'Population 2016'!AD215/'Population 2016'!AD$5","v":2.1400126539878671E-3},{"$f":"'Population 2016'!AE215/'Population 2016'!AE$5","v":2.2638836127680984E-3},{"$f":"'Population 2016'!AF215/'Population 2016'!AF$5","v":2.940777270053839E-3},{"$f":"'Population 2016'!AG215/'Population 2016'!AG$5","v":2.2638836127680984E-3},{"$f":"'Population 2016'!AH215/'Population 2016'!AH$5","v":3.2954682667211575E-3},{"$f":"'Population 2016'!AI215/'Population 2016'!AI$5","v":8.2862127045235812E-3},{"$f":"'Population 2016'!AJ215/'Population 2016'!AJ$5","v":3.9455706438390539E-3},{"$f":"'Population 2016'!AK215/'Population 2016'!AK$5","v":5.2298756647347977E-3},{"$f":"'Population 2016'!AL215/'Population 2016'!AL$5","v":2.2702683528138911E-3},{"$f":"'Population 2016'!AM215/'Population 2016'!AM$5","v":2.8505094334838874E-3},{"$f":"'Population 2016'!AN215/'Population 2016'!AN$5","v":1.4181302498090978E-3},{"$f":"'Population 2016'!AO215/'Population 2016'!AO$5","v":1.4181302498090978E-3},{"$f":"'Population 2016'!AP215/'Population 2016'!AP$5","v":3.9947370924020738E-3},{"$f":"'Population 2016'!AQ215/'Population 2016'!AQ$5","v":5.1241299939716115E-3},{"$f":"'Population 2016'!AR215/'Population 2016'!AR$5","v":5.6291426874500285E-3},{"$f":"'Population 2016'!AS215/'Population 2016'!AS$5","v":2.1983083493844736E-3},{"$f":"'Population 2016'!AT215/'Population 2016'!AT$5","v":0},{"$f":"'Population 2016'!AU215/'Population 2016'!AU$5","v":0},{"$f":"'Population 2016'!AV215/'Population 2016'!AV$5","v":5.1525710062295428E-3},{"$f":"'Population 2016'!AW215/'Population 2016'!AW$5","v":3.763957532491305E-3},{"$f":"'Population 2016'!AX215/'Population 2016'!AX$5","v":1.3724011909477746E-2},{"$f":"'Population 2016'!AY215/'Population 2016'!AY$5","v":5.9560600960802913E-3},{"$f":"'Population 2016'!AZ215/'Population 2016'!AZ$5","v":4.5877892895973679E-3},{"$f":"'Population 2016'!BA215/'Population 2016'!BA$5","v":1.3765925286115309E-3},{"$f":"'Population 2016'!BB215/'Population 2016'!BB$5","v":5.6206541778584893E-3},{"$f":"'Population 2016'!BC215/'Population 2016'!BC$5","v":0},213]
[null,"Female 20-24",{"$f":"'Population 2016'!C216/'Population 2016'!C$5","v":1.8359033595191487E-2},{"$f":"'Population 2016'!D216/'Population 2016'!D$5","v":1.3807791242432244E-2},{"$f":"'Population 2016'!E216/'Population 2016'!E$5","v":9.6334597480768232E-3},{"$f":"'Population 2016'!F216/'Population 2016'!F$5","v":4.3677568890033479E-3},{"$f":"'Population 2016'!G216/'Population 2016'!G$5","v":2.4901207167217021E-3},{"$f":"'Population 2016'!H216/'Population 2016'!H$5","v":3.3558896674264703E-3},{"$f":"'Population 2016'!I216/'Population 2016'!I$5","v":2.1250314044049911E-3},{"$f":"'Population 2016'!J216/'Population 2016'!J$5","v":1.0689732383503479E-2},{"$f":"'Population 2016'!K216/'Population 2016'!K$5","v":3.4494164343429569E-3},{"$f":"'Population 2016'!L216/'Population 2016'!L$5","v":2.4462694391053645E-3},{"$f":"'Population 2016'!M216/'Population 2016'!M$5","v":2.4462694391053645E-3},{"$f":"'Population 2016'!N216/'Population 2016'!N$5","v":6.236889271103753E-3},{"$f":"'Population 2016'!O216/'Population 2016'!O$5","v":3.1503551579635629E-3},{"$f":"'Population 2016'!P216/'Population 2016'!P$5","v":1.5665502084976895E-2},{"$f":"'Population 2016'!Q216/'Population 2016'!Q$5","v":4.2067660779544309E-3},{"$f":"'Population 2016'!R216/'Population 2016'!R$5","v":1.8283919731729388E-2},{"$f":"'Population 2016'!S216/'Population 2016'!S$5","v":1.4224029120643421E-2},{"$f":"'Population 2016'!T216/'Population 2016'!T$5","v":2.3913114288772144E-2},{"$f":"'Population 2016'!U216/'Population 2016'!U$5","v":0},{"$f":"'Population 2016'!V216/'Population 2016'!V$5","v":6.1135237862632707E-3},{"$f":"'Population 2016'!W216/'Population 2016'!W$5","v":1.3619516404212342E-2},{"$f":"'Population 2016'!X216/'Population 2016'!X$5","v":1.3619516404212342E-2},{"$f":"'Population 2016'!Y216/'Population 2016'!Y$5","v":8.30670418594299E-3},{"$f":"'Population 2016'!Z216/'Population 2016'!Z$5","v":7.4799209420364204E-3},{"$f":"'Population 2016'!AA216/'Population 2016'!AA$5","v":6.5694143534528295E-3},{"$f":"'Population 2016'!AB216/'Population 2016'!AB$5","v":1.2449975947514406E-2},{"$f":"'Population 2016'!AC216/'Population 2016'!AC$5","v":8.144040081005997E-3},{"$f":"'Population 2016'!AD216/'Population 2016'!AD$5","v":2.5159105288622575E-3},{"$f":"'Population 2016'!AE216/'Population 2016'!AE$5","v":2.5256932822718919E-3},{"$f":"'Population 2016'!AF216/'Population 2016'!AF$5","v":3.6948227239137973E-3},{"$f":"'Population 2016'!AG216/'Population 2016'!AG$5","v":2.5256932822718919E-3},{"$f":"'Population 2016'!AH216/'Population 2016'!AH$5","v":3.7413038834139861E-3},{"$f":"'Population 2016'!AI216/'Population 2016'!AI$5","v":1.6057015049435647E-2},{"$f":"'Population 2016'!AJ216/'Population 2016'!AJ$5","v":4.8657390625435684E-3},{"$f":"'Population 2016'!AK216/'Population 2016'!AK$5","v":5.4687401782683581E-3},{"$f":"'Population 2016'!AL216/'Population 2016'!AL$5","v":2.2081907025416365E-3},{"$f":"'Population 2016'!AM216/'Population 2016'!AM$5","v":3.1112930157085887E-3},{"$f":"'Population 2016'!AN216/'Population 2016'!AN$5","v":2.3999127304461655E-3},{"$f":"'Population 2016'!AO216/'Population 2016'!AO$5","v":2.3999127304461655E-3},{"$f":"'Population 2016'!AP216/'Population 2016'!AP$5","v":4.5574877542285562E-3},{"$f":"'Population 2016'!AQ216/'Population 2016'!AQ$5","v":6.0489395517071302E-3},{"$f":"'Population 2016'!AR216/'Population 2016'!AR$5","v":8.4684423372660255E-3},{"$f":"'Population 2016'!AS216/'Population 2016'!AS$5","v":2.1250314044049911E-3},{"$f":"'Population 2016'!AT216/'Population 2016'!AT$5","v":0},{"$f":"'Population 2016'!AU216/'Population 2016'!AU$5","v":0},{"$f":"'Population 2016'!AV216/'Population 2016'!AV$5","v":4.9414000633512829E-3},{"$f":"'Population 2016'!AW216/'Population 2016'!AW$5","v":4.4046311550430166E-3},{"$f":"'Population 2016'!AX216/'Population 2016'!AX$5","v":1.4605722171818495E-2},{"$f":"'Population 2016'!AY216/'Population 2016'!AY$5","v":9.0909090909090905E-3},{"$f":"'Population 2016'!AZ216/'Population 2016'!AZ$5","v":5.1055335354453467E-3},{"$f":"'Population 2016'!BA216/'Population 2016'!BA$5","v":1.5925286115309868E-3},{"$f":"'Population 2016'!BB216/'Population 2016'!BB$5","v":5.2477852274845846E-3},{"$f":"'Population 2016'!BC216/'Population 2016'!BC$5","v":0},214]
[null,"Female 25-29",{"$f":"'Population 2016'!C217/'Population 2016'!C$5","v":2.0551691003971317E-2},{"$f":"'Population 2016'!D217/'Population 2016'!D$5","v":1.4925227154915252E-2},{"$f":"'Population 2016'!E217/'Population 2016'!E$5","v":9.7647185670287229E-3},{"$f":"'Population 2016'!F217/'Population 2016'!F$5","v":4.1411279938192123E-3},{"$f":"'Population 2016'!G217/'Population 2016'!G$5","v":1.9758566556596115E-3},{"$f":"'Population 2016'!H217/'Population 2016'!H$5","v":2.8176503584479255E-3},{"$f":"'Population 2016'!I217/'Population 2016'!I$5","v":1.6539653295368896E-3},{"$f":"'Population 2016'!J217/'Population 2016'!J$5","v":6.6095552441057196E-3},{"$f":"'Population 2016'!K217/'Population 2016'!K$5","v":2.5043708358928316E-3},{"$f":"'Population 2016'!L217/'Population 2016'!L$5","v":2.8116213683223993E-3},{"$f":"'Population 2016'!M217/'Population 2016'!M$5","v":2.8116213683223993E-3},{"$f":"'Population 2016'!N217/'Population 2016'!N$5","v":5.1357889745300232E-3},{"$f":"'Population 2016'!O217/'Population 2016'!O$5","v":3.3782110341684748E-3},{"$f":"'Population 2016'!P217/'Population 2016'!P$5","v":1.1912543671813366E-2},{"$f":"'Population 2016'!Q217/'Population 2016'!Q$5","v":4.2772705373614883E-3},{"$f":"'Population 2016'!R217/'Population 2016'!R$5","v":1.4983765369670516E-2},{"$f":"'Population 2016'!S217/'Population 2016'!S$5","v":1.0921123941031403E-2},{"$f":"'Population 2016'!T217/'Population 2016'!T$5","v":2.053251932267116E-2},{"$f":"'Population 2016'!U217/'Population 2016'!U$5","v":0},{"$f":"'Population 2016'!V217/'Population 2016'!V$5","v":5.8769204936613218E-3},{"$f":"'Population 2016'!W217/'Population 2016'!W$5","v":6.3145921989292645E-3},{"$f":"'Population 2016'!X217/'Population 2016'!X$5","v":6.3145921989292645E-3},{"$f":"'Population 2016'!Y217/'Population 2016'!Y$5","v":6.2280408896519925E-3},{"$f":"'Population 2016'!Z217/'Population 2016'!Z$5","v":6.6339775021632538E-3},{"$f":"'Population 2016'!AA217/'Population 2016'!AA$5","v":5.4884639941215436E-3},{"$f":"'Population 2016'!AB217/'Population 2016'!AB$5","v":1.3448921732188366E-2},{"$f":"'Population 2016'!AC217/'Population 2016'!AC$5","v":6.8066964405766404E-3},{"$f":"'Population 2016'!AD217/'Population 2016'!AD$5","v":2.7913208530276528E-3},{"$f":"'Population 2016'!AE217/'Population 2016'!AE$5","v":3.1006478505939488E-3},{"$f":"'Population 2016'!AF217/'Population 2016'!AF$5","v":2.5788354522010585E-3},{"$f":"'Population 2016'!AG217/'Population 2016'!AG$5","v":3.1006478505939488E-3},{"$f":"'Population 2016'!AH217/'Population 2016'!AH$5","v":3.1208493168497996E-3},{"$f":"'Population 2016'!AI217/'Population 2016'!AI$5","v":1.4058261877679588E-2},{"$f":"'Population 2016'!AJ217/'Population 2016'!AJ$5","v":4.8657390625435684E-3},{"$f":"'Population 2016'!AK217/'Population 2016'!AK$5","v":5.8584664898231149E-3},{"$f":"'Population 2016'!AL217/'Population 2016'!AL$5","v":1.6140189070786258E-3},{"$f":"'Population 2016'!AM217/'Population 2016'!AM$5","v":2.6621657352104921E-3},{"$f":"'Population 2016'!AN217/'Population 2016'!AN$5","v":2.945347441911203E-3},{"$f":"'Population 2016'!AO217/'Population 2016'!AO$5","v":2.945347441911203E-3},{"$f":"'Population 2016'!AP217/'Population 2016'!AP$5","v":4.2166669308688551E-3},{"$f":"'Population 2016'!AQ217/'Population 2016'!AQ$5","v":5.0145229352770316E-3},{"$f":"'Population 2016'!AR217/'Population 2016'!AR$5","v":7.2115314997405755E-3},{"$f":"'Population 2016'!AS217/'Population 2016'!AS$5","v":1.6539653295368896E-3},{"$f":"'Population 2016'!AT217/'Population 2016'!AT$5","v":0},{"$f":"'Population 2016'!AU217/'Population 2016'!AU$5","v":0},{"$f":"'Population 2016'!AV217/'Population 2016'!AV$5","v":3.6532573117938972E-3},{"$f":"'Population 2016'!AW217/'Population 2016'!AW$5","v":3.6037891268533772E-3},{"$f":"'Population 2016'!AX217/'Population 2016'!AX$5","v":8.8298810330066316E-3},{"$f":"'Population 2016'!AY217/'Population 2016'!AY$5","v":5.3624430096998257E-3},{"$f":"'Population 2016'!AZ217/'Population 2016'!AZ$5","v":4.5245094373270595E-3},{"$f":"'Population 2016'!BA217/'Population 2016'!BA$5","v":9.1772835240768738E-4},{"$f":"'Population 2016'!BB217/'Population 2016'!BB$5","v":5.144210519047389E-3},{"$f":"'Population 2016'!BC217/'Population 2016'!BC$5","v":0},215]
[null,"Female 30-34",{"$f":"'Population 2016'!C218/'Population 2016'!C$5","v":1.7582147986486281E-2},{"$f":"'Population 2016'!D218/'Population 2016'!D$5","v":1.5653883395440275E-2},{"$f":"'Population 2016'!E218/'Population 2016'!E$5","v":1.3885307919125817E-2},{"$f":"'Population 2016'!F218/'Population 2016'!F$5","v":5.0682462013906769E-3},{"$f":"'Population 2016'!G218/'Population 2016'!G$5","v":1.5157256536566881E-3},{"$f":"'Population 2016'!H218/'Population 2016'!H$5","v":3.3104959907656294E-3},{"$f":"'Population 2016'!I218/'Population 2016'!I$5","v":2.9206096641822294E-3},{"$f":"'Population 2016'!J218/'Population 2016'!J$5","v":5.6309761740875579E-3},{"$f":"'Population 2016'!K218/'Population 2016'!K$5","v":3.3312857345366913E-3},{"$f":"'Population 2016'!L218/'Population 2016'!L$5","v":2.8116213683223993E-3},{"$f":"'Population 2016'!M218/'Population 2016'!M$5","v":2.8116213683223993E-3},{"$f":"'Population 2016'!N218/'Population 2016'!N$5","v":4.9750444056871432E-3},{"$f":"'Population 2016'!O218/'Population 2016'!O$5","v":3.9032702271624017E-3},{"$f":"'Population 2016'!P218/'Population 2016'!P$5","v":1.2712723994139525E-2},{"$f":"'Population 2016'!Q218/'Population 2016'!Q$5","v":4.9588136449630442E-3},{"$f":"'Population 2016'!R218/'Population 2016'!R$5","v":1.4824080481183798E-2},{"$f":"'Population 2016'!S218/'Population 2016'!S$5","v":9.9290166663430247E-3},{"$f":"'Population 2016'!T218/'Population 2016'!T$5","v":1.676570359650633E-2},{"$f":"'Population 2016'!U218/'Population 2016'!U$5","v":0},{"$f":"'Population 2016'!V218/'Population 2016'!V$5","v":7.8994970271941134E-3},{"$f":"'Population 2016'!W218/'Population 2016'!W$5","v":6.6610449800299388E-3},{"$f":"'Population 2016'!X218/'Population 2016'!X$5","v":6.6610449800299388E-3},{"$f":"'Population 2016'!Y218/'Population 2016'!Y$5","v":6.812292332395351E-3},{"$f":"'Population 2016'!Z218/'Population 2016'!Z$5","v":4.9614485958693957E-3},{"$f":"'Population 2016'!AA218/'Population 2016'!AA$5","v":5.1795261225240953E-3},{"$f":"'Population 2016'!AB218/'Population 2016'!AB$5","v":1.4149002589480365E-2},{"$f":"'Population 2016'!AC218/'Population 2016'!AC$5","v":6.0154606440349099E-3},{"$f":"'Population 2016'!AD218/'Population 2016'!AD$5","v":2.8657560757750569E-3},{"$f":"'Population 2016'!AE218/'Population 2016'!AE$5","v":3.377858088892083E-3},{"$f":"'Population 2016'!AF218/'Population 2016'!AF$5","v":2.6994827248186522E-3},{"$f":"'Population 2016'!AG218/'Population 2016'!AG$5","v":3.377858088892083E-3},{"$f":"'Population 2016'!AH218/'Population 2016'!AH$5","v":3.6781438377158355E-3},{"$f":"'Population 2016'!AI218/'Population 2016'!AI$5","v":1.2211260827718961E-2},{"$f":"'Population 2016'!AJ218/'Population 2016'!AJ$5","v":5.939268884365502E-3},{"$f":"'Population 2016'!AK218/'Population 2016'!AK$5","v":6.4116264159008339E-3},{"$f":"'Population 2016'!AL218/'Population 2016'!AL$5","v":2.3323460030861463E-3},{"$f":"'Population 2016'!AM218/'Population 2016'!AM$5","v":3.1294029866964154E-3},{"$f":"'Population 2016'!AN218/'Population 2016'!AN$5","v":2.127195374713647E-3},{"$f":"'Population 2016'!AO218/'Population 2016'!AO$5","v":2.127195374713647E-3},{"$f":"'Population 2016'!AP218/'Population 2016'!AP$5","v":5.2866857949051254E-3},{"$f":"'Population 2016'!AQ218/'Population 2016'!AQ$5","v":5.1378308763084342E-3},{"$f":"'Population 2016'!AR218/'Population 2016'!AR$5","v":7.0471216808653927E-3},{"$f":"'Population 2016'!AS218/'Population 2016'!AS$5","v":2.9206096641822294E-3},{"$f":"'Population 2016'!AT218/'Population 2016'!AT$5","v":0},{"$f":"'Population 2016'!AU218/'Population 2016'!AU$5","v":0},{"$f":"'Population 2016'!AV218/'Population 2016'!AV$5","v":3.8433111603843311E-3},{"$f":"'Population 2016'!AW218/'Population 2016'!AW$5","v":4.2559033498077983E-3},{"$f":"'Population 2016'!AX218/'Population 2016'!AX$5","v":6.8747843643380147E-3},{"$f":"'Population 2016'!AY218/'Population 2016'!AY$5","v":5.8382546433707657E-3},{"$f":"'Population 2016'!AZ218/'Population 2016'!AZ$5","v":5.1141626062094795E-3},{"$f":"'Population 2016'!BA218/'Population 2016'!BA$5","v":1.1066724249622112E-3},{"$f":"'Population 2016'!BB218/'Population 2016'!BB$5","v":6.0625729338571908E-3},{"$f":"'Population 2016'!BC218/'Population 2016'!BC$5","v":0},216]
[null,"Female 35-39",{"$f":"'Population 2016'!C219/'Population 2016'!C$5","v":1.5691044860032814E-2},{"$f":"'Population 2016'!D219/'Population 2016'!D$5","v":1.5384916326790099E-2},{"$f":"'Population 2016'!E219/'Population 2016'!E$5","v":1.5104139809393444E-2},{"$f":"'Population 2016'!F219/'Population 2016'!F$5","v":5.9232552150399178E-3},{"$f":"'Population 2016'!G219/'Population 2016'!G$5","v":2.2735884804850324E-3},{"$f":"'Population 2016'!H219/'Population 2016'!H$5","v":3.9978859516297954E-3},{"$f":"'Population 2016'!I219/'Population 2016'!I$5","v":3.255589984088435E-3},{"$f":"'Population 2016'!J219/'Population 2016'!J$5","v":6.8666395760596435E-3},{"$f":"'Population 2016'!K219/'Population 2016'!K$5","v":4.5834711524831073E-3},{"$f":"'Population 2016'!L219/'Population 2016'!L$5","v":2.7639667688593079E-3},{"$f":"'Population 2016'!M219/'Population 2016'!M$5","v":2.7639667688593079E-3},{"$f":"'Population 2016'!N219/'Population 2016'!N$5","v":4.5972946689063739E-3},{"$f":"'Population 2016'!O219/'Population 2016'!O$5","v":4.0023379994254069E-3},{"$f":"'Population 2016'!P219/'Population 2016'!P$5","v":1.8235095232728503E-2},{"$f":"'Population 2016'!Q219/'Population 2016'!Q$5","v":6.4629087789802708E-3},{"$f":"'Population 2016'!R219/'Population 2016'!R$5","v":2.2874860275722574E-2},{"$f":"'Population 2016'!S219/'Population 2016'!S$5","v":1.0281197095703045E-2},{"$f":"'Population 2016'!T219/'Population 2016'!T$5","v":1.621429202942723E-2},{"$f":"'Population 2016'!U219/'Population 2016'!U$5","v":0},{"$f":"'Population 2016'!V219/'Population 2016'!V$5","v":8.2353210554033315E-3},{"$f":"'Population 2016'!W219/'Population 2016'!W$5","v":7.4944927081494845E-3},{"$f":"'Population 2016'!X219/'Population 2016'!X$5","v":7.4944927081494845E-3},{"$f":"'Population 2016'!Y219/'Population 2016'!Y$5","v":7.5793707572216658E-3},{"$f":"'Population 2016'!Z219/'Population 2016'!Z$5","v":3.9122464347452392E-3},{"$f":"'Population 2016'!AA219/'Population 2016'!AA$5","v":6.0339220426839195E-3},{"$f":"'Population 2016'!AB219/'Population 2016'!AB$5","v":1.3712987318710786E-2},{"$f":"'Population 2016'!AC219/'Population 2016'!AC$5","v":6.8770285113803498E-3},{"$f":"'Population 2016'!AD219/'Population 2016'!AD$5","v":3.2230451449625965E-3},{"$f":"'Population 2016'!AE219/'Population 2016'!AE$5","v":3.5831990061499603E-3},{"$f":"'Population 2016'!AF219/'Population 2016'!AF$5","v":3.4987709059102084E-3},{"$f":"'Population 2016'!AG219/'Population 2016'!AG$5","v":3.5831990061499603E-3},{"$f":"'Population 2016'!AH219/'Population 2016'!AH$5","v":4.5196585642235491E-3},{"$f":"'Population 2016'!AI219/'Population 2016'!AI$5","v":1.2364380085746784E-2},{"$f":"'Population 2016'!AJ219/'Population 2016'!AJ$5","v":6.650308117000809E-3},{"$f":"'Population 2016'!AK219/'Population 2016'!AK$5","v":5.1167293162189004E-3},{"$f":"'Population 2016'!AL219/'Population 2016'!AL$5","v":2.8023624980046472E-3},{"$f":"'Population 2016'!AM219/'Population 2016'!AM$5","v":3.7523859886776463E-3},{"$f":"'Population 2016'!AN219/'Population 2016'!AN$5","v":3.218064797643722E-3},{"$f":"'Population 2016'!AO219/'Population 2016'!AO$5","v":3.218064797643722E-3},{"$f":"'Population 2016'!AP219/'Population 2016'!AP$5","v":5.4452071080956831E-3},{"$f":"'Population 2016'!AQ219/'Population 2016'!AQ$5","v":6.3983120512961034E-3},{"$f":"'Population 2016'!AR219/'Population 2016'!AR$5","v":7.5022561794588867E-3},{"$f":"'Population 2016'!AS219/'Population 2016'!AS$5","v":3.255589984088435E-3},{"$f":"'Population 2016'!AT219/'Population 2016'!AT$5","v":0},{"$f":"'Population 2016'!AU219/'Population 2016'!AU$5","v":0},{"$f":"'Population 2016'!AV219/'Population 2016'!AV$5","v":5.4165346848273682E-3},{"$f":"'Population 2016'!AW219/'Population 2016'!AW$5","v":5.3275062541948866E-3},{"$f":"'Population 2016'!AX219/'Population 2016'!AX$5","v":8.1015116858555777E-3},{"$f":"'Population 2016'!AY219/'Population 2016'!AY$5","v":6.3140662770417065E-3},{"$f":"'Population 2016'!AZ219/'Population 2016'!AZ$5","v":5.2752385938066287E-3},{"$f":"'Population 2016'!BA219/'Population 2016'!BA$5","v":1.6870006478082488E-3},{"$f":"'Population 2016'!BB219/'Population 2016'!BB$5","v":7.2364196294787434E-3},{"$f":"'Population 2016'!BC219/'Population 2016'!BC$5","v":0},217]
[null,"Female 40-44",{"$f":"'Population 2016'!C220/'Population 2016'!C$5","v":1.4459272283072583E-2},{"$f":"'Population 2016'!D220/'Population 2016'!D$5","v":1.5299335895855951E-2},{"$f":"'Population 2016'!E220/'Population 2016'!E$5","v":1.606982969168241E-2},{"$f":"'Population 2016'!F220/'Population 2016'!F$5","v":7.3036312129796553E-3},{"$f":"'Population 2016'!G220/'Population 2016'!G$5","v":2.6254533643696207E-3},{"$f":"'Population 2016'!H220/'Population 2016'!H$5","v":5.0970614079173058E-3},{"$f":"'Population 2016'!I220/'Population 2016'!I$5","v":5.0351729335901515E-3},{"$f":"'Population 2016'!J220/'Population 2016'!J$5","v":8.732574243467156E-3},{"$f":"'Population 2016'!K220/'Population 2016'!K$5","v":5.9065349903132825E-3},{"$f":"'Population 2016'!L220/'Population 2016'!L$5","v":2.986354899687068E-3},{"$f":"'Population 2016'!M220/'Population 2016'!M$5","v":2.986354899687068E-3},{"$f":"'Population 2016'!N220/'Population 2016'!N$5","v":5.4010175131207752E-3},{"$f":"'Population 2016'!O220/'Population 2016'!O$5","v":5.2307783754866706E-3},{"$f":"'Population 2016'!P220/'Population 2016'!P$5","v":2.1176603178181E-2},{"$f":"'Population 2016'!Q220/'Population 2016'!Q$5","v":7.5087249268516237E-3},{"$f":"'Population 2016'!R220/'Population 2016'!R$5","v":2.5829030712726887E-2},{"$f":"'Population 2016'!S220/'Population 2016'!S$5","v":1.0771072129023375E-2},{"$f":"'Population 2016'!T220/'Population 2016'!T$5","v":1.5453483664723154E-2},{"$f":"'Population 2016'!U220/'Population 2016'!U$5","v":0},{"$f":"'Population 2016'!V220/'Population 2016'!V$5","v":1.0028926660611658E-2},{"$f":"'Population 2016'!W220/'Population 2016'!W$5","v":8.6090247681054263E-3},{"$f":"'Population 2016'!X220/'Population 2016'!X$5","v":8.6090247681054263E-3},{"$f":"'Population 2016'!Y220/'Population 2016'!Y$5","v":9.4076405780512233E-3},{"$f":"'Population 2016'!Z220/'Population 2016'!Z$5","v":3.6431706037558342E-3},{"$f":"'Population 2016'!AA220/'Population 2016'!AA$5","v":6.5840307688832464E-3},{"$f":"'Population 2016'!AB220/'Population 2016'!AB$5","v":1.390745422351412E-2},{"$f":"'Population 2016'!AC220/'Population 2016'!AC$5","v":7.4396850778100246E-3},{"$f":"'Population 2016'!AD220/'Population 2016'!AD$5","v":3.7217611373702034E-3},{"$f":"'Population 2016'!AE220/'Population 2016'!AE$5","v":4.1376194827462296E-3},{"$f":"'Population 2016'!AF220/'Population 2016'!AF$5","v":4.5695154503913498E-3},{"$f":"'Population 2016'!AG220/'Population 2016'!AG$5","v":4.1376194827462296E-3},{"$f":"'Population 2016'!AH220/'Population 2016'!AH$5","v":5.0472307106433963E-3},{"$f":"'Population 2016'!AI220/'Population 2016'!AI$5","v":1.2424534079972E-2},{"$f":"'Population 2016'!AJ220/'Population 2016'!AJ$5","v":6.8873211945459107E-3},{"$f":"'Population 2016'!AK220/'Population 2016'!AK$5","v":6.7510654614485249E-3},{"$f":"'Population 2016'!AL220/'Population 2016'!AL$5","v":3.5916354800376014E-3},{"$f":"'Population 2016'!AM220/'Population 2016'!AM$5","v":4.0385235302853048E-3},{"$f":"'Population 2016'!AN220/'Population 2016'!AN$5","v":2.345369259299662E-3},{"$f":"'Population 2016'!AO220/'Population 2016'!AO$5","v":2.345369259299662E-3},{"$f":"'Population 2016'!AP220/'Population 2016'!AP$5","v":6.8322685985130697E-3},{"$f":"'Population 2016'!AQ220/'Population 2016'!AQ$5","v":7.2957198443579768E-3},{"$f":"'Population 2016'!AR220/'Population 2016'!AR$5","v":8.1331621510774745E-3},{"$f":"'Population 2016'!AS220/'Population 2016'!AS$5","v":5.0351729335901515E-3},{"$f":"'Population 2016'!AT220/'Population 2016'!AT$5","v":0},{"$f":"'Population 2016'!AU220/'Population 2016'!AU$5","v":0},{"$f":"'Population 2016'!AV220/'Population 2016'!AV$5","v":6.7469116249604059E-3},{"$f":"'Population 2016'!AW220/'Population 2016'!AW$5","v":6.1092806150466776E-3},{"$f":"'Population 2016'!AX220/'Population 2016'!AX$5","v":1.0261062908110456E-2},{"$f":"'Population 2016'!AY220/'Population 2016'!AY$5","v":7.4615219852513697E-3},{"$f":"'Population 2016'!AZ220/'Population 2016'!AZ$5","v":6.4516685746500912E-3},{"$f":"'Population 2016'!BA220/'Population 2016'!BA$5","v":1.6600086374433168E-3},{"$f":"'Population 2016'!BB220/'Population 2016'!BB$5","v":9.0662394785358674E-3},{"$f":"'Population 2016'!BC220/'Population 2016'!BC$5","v":0},218]
[null,"Female 45-49",{"$f":"'Population 2016'!C221/'Population 2016'!C$5","v":1.5394601667237405E-2},{"$f":"'Population 2016'!D221/'Population 2016'!D$5","v":1.6362978394608922E-2},{"$f":"'Population 2016'!E221/'Population 2016'!E$5","v":1.7251159062249496E-2},{"$f":"'Population 2016'!F221/'Population 2016'!F$5","v":8.395570435230492E-3},{"$f":"'Population 2016'!G221/'Population 2016'!G$5","v":3.5727818979050508E-3},{"$f":"'Population 2016'!H221/'Population 2016'!H$5","v":6.4718413296456379E-3},{"$f":"'Population 2016'!I221/'Population 2016'!I$5","v":5.1607905535549789E-3},{"$f":"'Population 2016'!J221/'Population 2016'!J$5","v":1.1353175820803928E-2},{"$f":"'Population 2016'!K221/'Population 2016'!K$5","v":6.9697112885696733E-3},{"$f":"'Population 2016'!L221/'Population 2016'!L$5","v":3.9871014884119895E-3},{"$f":"'Population 2016'!M221/'Population 2016'!M$5","v":3.9871014884119895E-3},{"$f":"'Population 2016'!N221/'Population 2016'!N$5","v":6.8637930895909856E-3},{"$f":"'Population 2016'!O221/'Population 2016'!O$5","v":5.9936002219118101E-3},{"$f":"'Population 2016'!P221/'Population 2016'!P$5","v":2.5504339005973178E-2},{"$f":"'Population 2016'!Q221/'Population 2016'!Q$5","v":9.1773304661519842E-3},{"$f":"'Population 2016'!R221/'Population 2016'!R$5","v":3.0286900516314472E-2},{"$f":"'Population 2016'!S221/'Population 2016'!S$5","v":1.1816138866773409E-2},{"$f":"'Population 2016'!T221/'Population 2016'!T$5","v":1.647720134200081E-2},{"$f":"'Population 2016'!U221/'Population 2016'!U$5","v":0},{"$f":"'Population 2016'!V221/'Population 2016'!V$5","v":1.0799795452637364E-2},{"$f":"'Population 2016'!W221/'Population 2016'!W$5","v":9.4490093411514001E-3},{"$f":"'Population 2016'!X221/'Population 2016'!X$5","v":9.4490093411514001E-3},{"$f":"'Population 2016'!Y221/'Population 2016'!Y$5","v":1.1065006915629323E-2},{"$f":"'Population 2016'!Z221/'Population 2016'!Z$5","v":4.1135693586509814E-3},{"$f":"'Population 2016'!AA221/'Population 2016'!AA$5","v":7.9015013051794598E-3},{"$f":"'Population 2016'!AB221/'Population 2016'!AB$5","v":1.4959622529502677E-2},{"$f":"'Population 2016'!AC221/'Population 2016'!AC$5","v":8.9114870888935323E-3},{"$f":"'Population 2016'!AD221/'Population 2016'!AD$5","v":4.2651382634262529E-3},{"$f":"'Population 2016'!AE221/'Population 2016'!AE$5","v":4.5277672255361967E-3},{"$f":"'Population 2016'!AF221/'Population 2016'!AF$5","v":5.9418781764164746E-3},{"$f":"'Population 2016'!AG221/'Population 2016'!AG$5","v":4.5277672255361967E-3},{"$f":"'Population 2016'!AH221/'Population 2016'!AH$5","v":6.0875138162599964E-3},{"$f":"'Population 2016'!AI221/'Population 2016'!AI$5","v":1.3675463732610027E-2},{"$f":"'Population 2016'!AJ221/'Population 2016'!AJ$5","v":7.8353735047263194E-3},{"$f":"'Population 2016'!AK221/'Population 2016'!AK$5","v":7.7442389650880655E-3},{"$f":"'Population 2016'!AL221/'Population 2016'!AL$5","v":4.7622425994572641E-3},{"$f":"'Population 2016'!AM221/'Population 2016'!AM$5","v":5.1975616735061994E-3},{"$f":"'Population 2016'!AN221/'Population 2016'!AN$5","v":4.0907603359877824E-3},{"$f":"'Population 2016'!AO221/'Population 2016'!AO$5","v":4.0907603359877824E-3},{"$f":"'Population 2016'!AP221/'Population 2016'!AP$5","v":8.1242173010161213E-3},{"$f":"'Population 2016'!AQ221/'Population 2016'!AQ$5","v":9.4330574889022849E-3},{"$f":"'Population 2016'!AR221/'Population 2016'!AR$5","v":9.3087591892947377E-3},{"$f":"'Population 2016'!AS221/'Population 2016'!AS$5","v":5.1607905535549789E-3},{"$f":"'Population 2016'!AT221/'Population 2016'!AT$5","v":0},{"$f":"'Population 2016'!AU221/'Population 2016'!AU$5","v":0},{"$f":"'Population 2016'!AV221/'Population 2016'!AV$5","v":9.0169992609017008E-3},{"$f":"'Population 2016'!AW221/'Population 2016'!AW$5","v":7.0245286472634082E-3},{"$f":"'Population 2016'!AX221/'Population 2016'!AX$5","v":1.3724011909477746E-2},{"$f":"'Population 2016'!AY221/'Population 2016'!AY$5","v":8.5447201738012915E-3},{"$f":"'Population 2016'!AZ221/'Population 2016'!AZ$5","v":7.7489055461914154E-3},{"$f":"'Population 2016'!BA221/'Population 2016'!BA$5","v":2.4427769380263443E-3},{"$f":"'Population 2016'!BB221/'Population 2016'!BB$5","v":1.0896059327592992E-2},{"$f":"'Population 2016'!BC221/'Population 2016'!BC$5","v":0},219]
[null,"Female 50-54",{"$f":"'Population 2016'!C222/'Population 2016'!C$5","v":1.6401486304835601E-2},{"$f":"'Population 2016'!D222/'Population 2016'!D$5","v":1.6534139256477218E-2},{"$f":"'Population 2016'!E222/'Population 2016'!E$5","v":1.6655806562003383E-2},{"$f":"'Population 2016'!F222/'Population 2016'!F$5","v":8.6118980169971673E-3},{"$f":"'Population 2016'!G222/'Population 2016'!G$5","v":3.7351810750825528E-3},{"$f":"'Population 2016'!H222/'Population 2016'!H$5","v":6.6631432527163251E-3},{"$f":"'Population 2016'!I222/'Population 2016'!I$5","v":4.6478519386986012E-3},{"$f":"'Population 2016'!J222/'Population 2016'!J$5","v":1.1137556703681281E-2},{"$f":"'Population 2016'!K222/'Population 2016'!K$5","v":7.4186079478334834E-3},{"$f":"'Population 2016'!L222/'Population 2016'!L$5","v":4.7972296792845454E-3},{"$f":"'Population 2016'!M222/'Population 2016'!M$5","v":4.7972296792845454E-3},{"$f":"'Population 2016'!N222/'Population 2016'!N$5","v":7.3058406539089063E-3},{"$f":"'Population 2016'!O222/'Population 2016'!O$5","v":5.7261172368016956E-3},{"$f":"'Population 2016'!P222/'Population 2016'!P$5","v":2.7837259100642397E-2},{"$f":"'Population 2016'!Q222/'Population 2016'!Q$5","v":8.6250455341300332E-3},{"$f":"'Population 2016'!R222/'Population 2016'!R$5","v":3.0326821738436153E-2},{"$f":"'Population 2016'!S222/'Population 2016'!S$5","v":1.1653729846717661E-2},{"$f":"'Population 2016'!T222/'Population 2016'!T$5","v":1.6777336751929939E-2},{"$f":"'Population 2016'!U222/'Population 2016'!U$5","v":0},{"$f":"'Population 2016'!V222/'Population 2016'!V$5","v":9.9373382892818714E-3},{"$f":"'Population 2016'!W222/'Population 2016'!W$5","v":9.1613881643885769E-3},{"$f":"'Population 2016'!X222/'Population 2016'!X$5","v":9.1613881643885769E-3},{"$f":"'Population 2016'!Y222/'Population 2016'!Y$5","v":1.0512551469769956E-2},{"$f":"'Population 2016'!Z222/'Population 2016'!Z$5","v":4.1793864683893969E-3},{"$f":"'Population 2016'!AA222/'Population 2016'!AA$5","v":8.2609322482638022E-3},{"$f":"'Population 2016'!AB222/'Population 2016'!AB$5","v":1.5025127171120641E-2},{"$f":"'Population 2016'!AC222/'Population 2016'!AC$5","v":9.309690725061593E-3},{"$f":"'Population 2016'!AD222/'Population 2016'!AD$5","v":4.4847221705310953E-3},{"$f":"'Population 2016'!AE222/'Population 2016'!AE$5","v":4.7690428033142027E-3},{"$f":"'Population 2016'!AF222/'Population 2016'!AF$5","v":6.0172827218024699E-3},{"$f":"'Population 2016'!AG222/'Population 2016'!AG$5","v":4.7690428033142027E-3},{"$f":"'Population 2016'!AH222/'Population 2016'!AH$5","v":6.3773069671103346E-3},{"$f":"'Population 2016'!AI222/'Population 2016'!AI$5","v":1.3611208329687636E-2},{"$f":"'Population 2016'!AJ222/'Population 2016'!AJ$5","v":7.3892312411120093E-3},{"$f":"'Population 2016'!AK222/'Population 2016'!AK$5","v":7.2665099380209448E-3},{"$f":"'Population 2016'!AL222/'Population 2016'!AL$5","v":4.6026143559000374E-3},{"$f":"'Population 2016'!AM222/'Population 2016'!AM$5","v":5.1142558069621974E-3},{"$f":"'Population 2016'!AN222/'Population 2016'!AN$5","v":3.654412566815752E-3},{"$f":"'Population 2016'!AO222/'Population 2016'!AO$5","v":3.654412566815752E-3},{"$f":"'Population 2016'!AP222/'Population 2016'!AP$5","v":8.9564541952665538E-3},{"$f":"'Population 2016'!AQ222/'Population 2016'!AQ$5","v":1.0200306899764346E-2},{"$f":"'Population 2016'!AR222/'Population 2016'!AR$5","v":9.4520051425965573E-3},{"$f":"'Population 2016'!AS222/'Population 2016'!AS$5","v":4.6478519386986012E-3},{"$f":"'Population 2016'!AT222/'Population 2016'!AT$5","v":0},{"$f":"'Population 2016'!AU222/'Population 2016'!AU$5","v":0},{"$f":"'Population 2016'!AV222/'Population 2016'!AV$5","v":1.0115088163868653E-2},{"$f":"'Population 2016'!AW222/'Population 2016'!AW$5","v":7.7071511379583867E-3},{"$f":"'Population 2016'!AX222/'Population 2016'!AX$5","v":1.3148983477516389E-2},{"$f":"'Population 2016'!AY222/'Population 2016'!AY$5","v":8.6870046816192887E-3},{"$f":"'Population 2016'!AZ222/'Population 2016'!AZ$5","v":8.2695261489607718E-3},{"$f":"'Population 2016'!BA222/'Population 2016'!BA$5","v":2.7666810624055278E-3},{"$f":"'Population 2016'!BB222/'Population 2016'!BB$5","v":1.0226276213032461E-2},{"$f":"'Population 2016'!BC222/'Population 2016'!BC$5","v":0},220]
[null,"Female 55-59",{"$f":"'Population 2016'!C223/'Population 2016'!C$5","v":1.5159491548813461E-2},{"$f":"'Population 2016'!D223/'Population 2016'!D$5","v":1.4580460276009115E-2},{"$f":"'Population 2016'!E223/'Population 2016'!E$5","v":1.404938144281569E-2},{"$f":"'Population 2016'!F223/'Population 2016'!F$5","v":8.0144218387844454E-3},{"$f":"'Population 2016'!G223/'Population 2016'!G$5","v":4.0329128999079741E-3},{"$f":"'Population 2016'!H223/'Population 2016'!H$5","v":6.9257780962540486E-3},{"$f":"'Population 2016'!I223/'Population 2016'!I$5","v":4.1035089188510175E-3},{"$f":"'Population 2016'!J223/'Population 2016'!J$5","v":9.7111533134853177E-3},{"$f":"'Population 2016'!K223/'Population 2016'!K$5","v":6.2845532296933329E-3},{"$f":"'Population 2016'!L223/'Population 2016'!L$5","v":4.2492017854589932E-3},{"$f":"'Population 2016'!M223/'Population 2016'!M$5","v":4.2492017854589932E-3},{"$f":"'Population 2016'!N223/'Population 2016'!N$5","v":7.2415428263717541E-3},{"$f":"'Population 2016'!O223/'Population 2016'!O$5","v":5.5477952467282866E-3},{"$f":"'Population 2016'!P223/'Population 2016'!P$5","v":2.509861377211766E-2},{"$f":"'Population 2016'!Q223/'Population 2016'!Q$5","v":7.2619593189269223E-3},{"$f":"'Population 2016'!R223/'Population 2016'!R$5","v":2.7093202746580083E-2},{"$f":"'Population 2016'!S223/'Population 2016'!S$5","v":1.0568943511671383E-2},{"$f":"'Population 2016'!T223/'Population 2016'!T$5","v":1.5683820142110626E-2},{"$f":"'Population 2016'!U223/'Population 2016'!U$5","v":0},{"$f":"'Population 2016'!V223/'Population 2016'!V$5","v":8.1666297769059926E-3},{"$f":"'Population 2016'!W223/'Population 2016'!W$5","v":8.4750194471136554E-3},{"$f":"'Population 2016'!X223/'Population 2016'!X$5","v":8.4750194471136554E-3},{"$f":"'Population 2016'!Y223/'Population 2016'!Y$5","v":8.9068536271283451E-3},{"$f":"'Population 2016'!Z223/'Population 2016'!Z$5","v":3.7612542418159326E-3},{"$f":"'Population 2016'!AA223/'Population 2016'!AA$5","v":7.3593651692149056E-3},{"$f":"'Population 2016'!AB223/'Population 2016'!AB$5","v":1.3229890586778297E-2},{"$f":"'Population 2016'!AC223/'Population 2016'!AC$5","v":8.337453275716198E-3},{"$f":"'Population 2016'!AD223/'Population 2016'!AD$5","v":4.1199895790688156E-3},{"$f":"'Population 2016'!AE223/'Population 2016'!AE$5","v":4.1530200515405699E-3},{"$f":"'Population 2016'!AF223/'Population 2016'!AF$5","v":5.2481563588653128E-3},{"$f":"'Population 2016'!AG223/'Population 2016'!AG$5","v":4.1530200515405699E-3},{"$f":"'Population 2016'!AH223/'Population 2016'!AH$5","v":5.6026675831065452E-3},{"$f":"'Population 2016'!AI223/'Population 2016'!AI$5","v":1.2289187592965264E-2},{"$f":"'Population 2016'!AJ223/'Population 2016'!AJ$5","v":6.9430889774977E-3},{"$f":"'Population 2016'!AK223/'Population 2016'!AK$5","v":6.2859082508831699E-3},{"$f":"'Population 2016'!AL223/'Population 2016'!AL$5","v":4.7356378921977263E-3},{"$f":"'Population 2016'!AM223/'Population 2016'!AM$5","v":4.4659188455980093E-3},{"$f":"'Population 2016'!AN223/'Population 2016'!AN$5","v":2.8908039707646995E-3},{"$f":"'Population 2016'!AO223/'Population 2016'!AO$5","v":2.8908039707646995E-3},{"$f":"'Population 2016'!AP223/'Population 2016'!AP$5","v":8.3144428768447912E-3},{"$f":"'Population 2016'!AQ223/'Population 2016'!AQ$5","v":9.1590398421658361E-3},{"$f":"'Population 2016'!AR223/'Population 2016'!AR$5","v":8.5354983745037361E-3},{"$f":"'Population 2016'!AS223/'Population 2016'!AS$5","v":4.1035089188510175E-3},{"$f":"'Population 2016'!AT223/'Population 2016'!AT$5","v":0},{"$f":"'Population 2016'!AU223/'Population 2016'!AU$5","v":0},{"$f":"'Population 2016'!AV223/'Population 2016'!AV$5","v":1.1002006123957344E-2},{"$f":"'Population 2016'!AW223/'Population 2016'!AW$5","v":6.7995301726767954E-3},{"$f":"'Population 2016'!AX223/'Population 2016'!AX$5","v":1.1564460687222868E-2},{"$f":"'Population 2016'!AY223/'Population 2016'!AY$5","v":8.1408157645114897E-3},{"$f":"'Population 2016'!AZ223/'Population 2016'!AZ$5","v":7.8467016815182561E-3},{"$f":"'Population 2016'!BA223/'Population 2016'!BA$5","v":2.2943208810192184E-3},{"$f":"'Population 2016'!BB223/'Population 2016'!BB$5","v":7.8164379967270384E-3},{"$f":"'Population 2016'!BC223/'Population 2016'!BC$5","v":0},221]
[null,"Female 60-64",{"$f":"'Population 2016'!C224/'Population 2016'!C$5","v":1.1949727323373523E-2},{"$f":"'Population 2016'!D224/'Population 2016'!D$5","v":1.2494742916385474E-2},{"$f":"'Population 2016'!E224/'Population 2016'!E$5","v":1.2994623076237935E-2},{"$f":"'Population 2016'!F224/'Population 2016'!F$5","v":7.4787535410764869E-3},{"$f":"'Population 2016'!G224/'Population 2016'!G$5","v":2.9637849834894172E-3},{"$f":"'Population 2016'!H224/'Population 2016'!H$5","v":6.4621141132183146E-3},{"$f":"'Population 2016'!I224/'Population 2016'!I$5","v":3.7999330039360187E-3},{"$f":"'Population 2016'!J224/'Population 2016'!J$5","v":9.1721055206787031E-3},{"$f":"'Population 2016'!K224/'Population 2016'!K$5","v":7.3004772480272173E-3},{"$f":"'Population 2016'!L224/'Population 2016'!L$5","v":4.0903531205820215E-3},{"$f":"'Population 2016'!M224/'Population 2016'!M$5","v":4.0903531205820215E-3},{"$f":"'Population 2016'!N224/'Population 2016'!N$5","v":5.4010175131207752E-3},{"$f":"'Population 2016'!O224/'Population 2016'!O$5","v":4.9732021676028573E-3},{"$f":"'Population 2016'!P224/'Population 2016'!P$5","v":2.2483940042826552E-2},{"$f":"'Population 2016'!Q224/'Population 2016'!Q$5","v":6.3454013466351751E-3},{"$f":"'Population 2016'!R224/'Population 2016'!R$5","v":2.3513599829669451E-2},{"$f":"'Population 2016'!S224/'Population 2016'!S$5","v":9.2078853109867943E-3},{"$f":"'Population 2016'!T224/'Population 2016'!T$5","v":1.3350209164134517E-2},{"$f":"'Population 2016'!U224/'Population 2016'!U$5","v":0},{"$f":"'Population 2016'!V224/'Population 2016'!V$5","v":6.8080689355141544E-3},{"$f":"'Population 2016'!W224/'Population 2016'!W$5","v":7.8572876015662284E-3},{"$f":"'Population 2016'!X224/'Population 2016'!X$5","v":7.8572876015662284E-3},{"$f":"'Population 2016'!Y224/'Population 2016'!Y$5","v":7.9410502217770775E-3},{"$f":"'Population 2016'!Z224/'Population 2016'!Z$5","v":3.3044060683375177E-3},{"$f":"'Population 2016'!AA224/'Population 2016'!AA$5","v":6.4132844613551945E-3},{"$f":"'Population 2016'!AB224/'Population 2016'!AB$5","v":1.1494017583902234E-2},{"$f":"'Population 2016'!AC224/'Population 2016'!AC$5","v":7.365215826370803E-3},{"$f":"'Population 2016'!AD224/'Population 2016'!AD$5","v":3.7105958539580932E-3},{"$f":"'Population 2016'!AE224/'Population 2016'!AE$5","v":3.993880840665715E-3},{"$f":"'Population 2016'!AF224/'Population 2016'!AF$5","v":6.0323636308796695E-3},{"$f":"'Population 2016'!AG224/'Population 2016'!AG$5","v":3.993880840665715E-3},{"$f":"'Population 2016'!AH224/'Population 2016'!AH$5","v":4.7035657561093408E-3},{"$f":"'Population 2016'!AI224/'Population 2016'!AI$5","v":1.0479099221279202E-2},{"$f":"'Population 2016'!AJ224/'Population 2016'!AJ$5","v":5.9950366673172904E-3},{"$f":"'Population 2016'!AK224/'Population 2016'!AK$5","v":6.3487673333920015E-3},{"$f":"'Population 2016'!AL224/'Population 2016'!AL$5","v":4.1858072755006116E-3},{"$f":"'Population 2016'!AM224/'Population 2016'!AM$5","v":3.5060903832432062E-3},{"$f":"'Population 2016'!AN224/'Population 2016'!AN$5","v":3.0544343842042109E-3},{"$f":"'Population 2016'!AO224/'Population 2016'!AO$5","v":3.0544343842042109E-3},{"$f":"'Population 2016'!AP224/'Population 2016'!AP$5","v":7.8230268059540607E-3},{"$f":"'Population 2016'!AQ224/'Population 2016'!AQ$5","v":7.6587932262837726E-3},{"$f":"'Population 2016'!AR224/'Population 2016'!AR$5","v":7.4951272984236485E-3},{"$f":"'Population 2016'!AS224/'Population 2016'!AS$5","v":3.7999330039360187E-3},{"$f":"'Population 2016'!AT224/'Population 2016'!AT$5","v":0},{"$f":"'Population 2016'!AU224/'Population 2016'!AU$5","v":0},{"$f":"'Population 2016'!AV224/'Population 2016'!AV$5","v":1.0759159539647345E-2},{"$f":"'Population 2016'!AW224/'Population 2016'!AW$5","v":5.9643663432790289E-3},{"$f":"'Population 2016'!AX224/'Population 2016'!AX$5","v":1.018439245051561E-2},{"$f":"'Population 2016'!AY224/'Population 2016'!AY$5","v":7.3268871821547685E-3},{"$f":"'Population 2016'!AZ224/'Population 2016'!AZ$5","v":6.8601112574857188E-3},{"$f":"'Population 2016'!BA224/'Population 2016'!BA$5","v":1.8084646944504428E-3},{"$f":"'Population 2016'!BB224/'Population 2016'!BB$5","v":6.6080663982930887E-3},{"$f":"'Population 2016'!BC224/'Population 2016'!BC$5","v":0},222]
[null,"Female 65-69",{"$f":"'Population 2016'!C225/'Population 2016'!C$5","v":1.1535729071366144E-2},{"$f":"'Population 2016'!D225/'Population 2016'!D$5","v":1.1675615934587208E-2},{"$f":"'Population 2016'!E225/'Population 2016'!E$5","v":1.1803918075745714E-2},{"$f":"'Population 2016'!F225/'Population 2016'!F$5","v":9.1475663147051241E-3},{"$f":"'Population 2016'!G225/'Population 2016'!G$5","v":3.4239159854923401E-3},{"$f":"'Population 2016'!H225/'Population 2016'!H$5","v":6.9906262057695366E-3},{"$f":"'Population 2016'!I225/'Population 2016'!I$5","v":4.1872539988275686E-3},{"$f":"'Population 2016'!J225/'Population 2016'!J$5","v":9.7857907001816184E-3},{"$f":"'Population 2016'!K225/'Population 2016'!K$5","v":7.1823465482209513E-3},{"$f":"'Population 2016'!L225/'Population 2016'!L$5","v":3.867964989754261E-3},{"$f":"'Population 2016'!M225/'Population 2016'!M$5","v":3.867964989754261E-3},{"$f":"'Population 2016'!N225/'Population 2016'!N$5","v":6.1806286720087443E-3},{"$f":"'Population 2016'!O225/'Population 2016'!O$5","v":5.0524563854132615E-3},{"$f":"'Population 2016'!P225/'Population 2016'!P$5","v":2.2844584695142566E-2},{"$f":"'Population 2016'!Q225/'Population 2016'!Q$5","v":6.9094370218916344E-3},{"$f":"'Population 2016'!R225/'Population 2016'!R$5","v":2.2675254165114175E-2},{"$f":"'Population 2016'!S225/'Population 2016'!S$5","v":9.5662443443706741E-3},{"$f":"'Population 2016'!T225/'Population 2016'!T$5","v":1.3810882118909462E-2},{"$f":"'Population 2016'!U225/'Population 2016'!U$5","v":0},{"$f":"'Population 2016'!V225/'Population 2016'!V$5","v":6.6019951000221341E-3},{"$f":"'Population 2016'!W225/'Population 2016'!W$5","v":8.7691774688029075E-3},{"$f":"'Population 2016'!X225/'Population 2016'!X$5","v":8.7691774688029075E-3},{"$f":"'Population 2016'!Y225/'Population 2016'!Y$5","v":8.1278517034705337E-3},{"$f":"'Population 2016'!Z225/'Population 2016'!Z$5","v":2.7449606355609843E-3},{"$f":"'Population 2016'!AA225/'Population 2016'!AA$5","v":6.0119974195382937E-3},{"$f":"'Population 2016'!AB225/'Population 2016'!AB$5","v":1.0838971167722589E-2},{"$f":"'Population 2016'!AC225/'Population 2016'!AC$5","v":6.9866637982214262E-3},{"$f":"'Population 2016'!AD225/'Population 2016'!AD$5","v":3.8036398823923481E-3},{"$f":"'Population 2016'!AE225/'Population 2016'!AE$5","v":3.9476791342826925E-3},{"$f":"'Population 2016'!AF225/'Population 2016'!AF$5","v":6.1077681762656657E-3},{"$f":"'Population 2016'!AG225/'Population 2016'!AG$5","v":3.9476791342826925E-3},{"$f":"'Population 2016'!AH225/'Population 2016'!AH$5","v":4.2614454362222866E-3},{"$f":"'Population 2016'!AI225/'Population 2016'!AI$5","v":1.0602141482194417E-2},{"$f":"'Population 2016'!AJ225/'Population 2016'!AJ$5","v":5.7859074812480829E-3},{"$f":"'Population 2016'!AK225/'Population 2016'!AK$5","v":6.537344580918497E-3},{"$f":"'Population 2016'!AL225/'Population 2016'!AL$5","v":4.6824284776786507E-3},{"$f":"'Population 2016'!AM225/'Population 2016'!AM$5","v":3.1438909634866766E-3},{"$f":"'Population 2016'!AN225/'Population 2016'!AN$5","v":2.781717028471692E-3},{"$f":"'Population 2016'!AO225/'Population 2016'!AO$5","v":2.781717028471692E-3},{"$f":"'Population 2016'!AP225/'Population 2016'!AP$5","v":9.2417925590095595E-3},{"$f":"'Population 2016'!AQ225/'Population 2016'!AQ$5","v":7.5765879322628373E-3},{"$f":"'Population 2016'!AR225/'Population 2016'!AR$5","v":7.5223061573704945E-3},{"$f":"'Population 2016'!AS225/'Population 2016'!AS$5","v":4.1872539988275686E-3},{"$f":"'Population 2016'!AT225/'Population 2016'!AT$5","v":0},{"$f":"'Population 2016'!AU225/'Population 2016'!AU$5","v":0},{"$f":"'Population 2016'!AV225/'Population 2016'!AV$5","v":1.1804455706894732E-2},{"$f":"'Population 2016'!AW225/'Population 2016'!AW$5","v":5.4380987247544081E-3},{"$f":"'Population 2016'!AX225/'Population 2016'!AX$5","v":1.119388680884777E-2},{"$f":"'Population 2016'!AY225/'Population 2016'!AY$5","v":8.4238548392032066E-3},{"$f":"'Population 2016'!AZ225/'Population 2016'!AZ$5","v":8.119955589049134E-3},{"$f":"'Population 2016'!BA225/'Population 2016'!BA$5","v":1.2821204923342691E-3},{"$f":"'Population 2016'!BB225/'Population 2016'!BB$5","v":5.6344641389834485E-3},{"$f":"'Population 2016'!BC225/'Population 2016'!BC$5","v":0},223]
[null,"Female 70-74",{"$f":"'Population 2016'!C226/'Population 2016'!C$5","v":8.8779625152693806E-3},{"$f":"'Population 2016'!D226/'Population 2016'!D$5","v":8.6827460070616081E-3},{"$f":"'Population 2016'!E226/'Population 2016'!E$5","v":8.5036963420979852E-3},{"$f":"'Population 2016'!F226/'Population 2016'!F$5","v":6.582539273757404E-3},{"$f":"'Population 2016'!G226/'Population 2016'!G$5","v":2.8149190710767065E-3},{"$f":"'Population 2016'!H226/'Population 2016'!H$5","v":5.3856354952612241E-3},{"$f":"'Population 2016'!I226/'Population 2016'!I$5","v":3.1718449041118835E-3},{"$f":"'Population 2016'!J226/'Population 2016'!J$5","v":7.5383760563263475E-3},{"$f":"'Population 2016'!K226/'Population 2016'!K$5","v":4.9142371119406513E-3},{"$f":"'Population 2016'!L226/'Population 2016'!L$5","v":3.7250011913649867E-3},{"$f":"'Population 2016'!M226/'Population 2016'!M$5","v":3.7250011913649867E-3},{"$f":"'Population 2016'!N226/'Population 2016'!N$5","v":4.9670071772449989E-3},{"$f":"'Population 2016'!O226/'Population 2016'!O$5","v":3.4673720292051793E-3},{"$f":"'Population 2016'!P226/'Population 2016'!P$5","v":1.9114166572748788E-2},{"$f":"'Population 2016'!Q226/'Population 2016'!Q$5","v":5.8283686443167532E-3},{"$f":"'Population 2016'!R226/'Population 2016'!R$5","v":1.9521477617501462E-2},{"$f":"'Population 2016'!S226/'Population 2016'!S$5","v":7.1618847213714386E-3},{"$f":"'Population 2016'!T226/'Population 2016'!T$5","v":1.0281382763386271E-2},{"$f":"'Population 2016'!U226/'Population 2016'!U$5","v":0},{"$f":"'Population 2016'!V226/'Population 2016'!V$5","v":4.671006937819128E-3},{"$f":"'Population 2016'!W226/'Population 2016'!W$5","v":6.6022133756920886E-3},{"$f":"'Population 2016'!X226/'Population 2016'!X$5","v":6.6022133756920886E-3},{"$f":"'Population 2016'!Y226/'Population 2016'!Y$5","v":6.0452139075690371E-3},{"$f":"'Population 2016'!Z226/'Population 2016'!Z$5","v":1.6434919461151452E-3},{"$f":"'Population 2016'!AA226/'Population 2016'!AA$5","v":4.574938029720488E-3},{"$f":"'Population 2016'!AB226/'Population 2016'!AB$5","v":8.1942212623972652E-3},{"$f":"'Population 2016'!AC226/'Population 2016'!AC$5","v":5.3907463680725499E-3},{"$f":"'Population 2016'!AD226/'Population 2016'!AD$5","v":3.055565893780937E-3},{"$f":"'Population 2016'!AE226/'Population 2016'!AE$5","v":3.1468495569769712E-3},{"$f":"'Population 2016'!AF226/'Population 2016'!AF$5","v":4.8560527228581341E-3},{"$f":"'Population 2016'!AG226/'Population 2016'!AG$5","v":3.1468495569769712E-3},{"$f":"'Population 2016'!AH226/'Population 2016'!AH$5","v":3.1097034264324793E-3},{"$f":"'Population 2016'!AI226/'Population 2016'!AI$5","v":7.9170859217779326E-3},{"$f":"'Population 2016'!AJ226/'Population 2016'!AJ$5","v":4.1546998299082623E-3},{"$f":"'Population 2016'!AK226/'Population 2016'!AK$5","v":5.6824610587983861E-3},{"$f":"'Population 2016'!AL226/'Population 2016'!AL$5","v":3.6448448945566769E-3},{"$f":"'Population 2016'!AM226/'Population 2016'!AM$5","v":2.0898906519951754E-3},{"$f":"'Population 2016'!AN226/'Population 2016'!AN$5","v":2.4544562015926695E-3},{"$f":"'Population 2016'!AO226/'Population 2016'!AO$5","v":2.4544562015926695E-3},{"$f":"'Population 2016'!AP226/'Population 2016'!AP$5","v":7.4901320482538879E-3},{"$f":"'Population 2016'!AQ226/'Population 2016'!AQ$5","v":5.6927166109497452E-3},{"$f":"'Population 2016'!AR226/'Population 2016'!AR$5","v":5.7302836871374711E-3},{"$f":"'Population 2016'!AS226/'Population 2016'!AS$5","v":3.1718449041118835E-3},{"$f":"'Population 2016'!AT226/'Population 2016'!AT$5","v":0},{"$f":"'Population 2016'!AU226/'Population 2016'!AU$5","v":0},{"$f":"'Population 2016'!AV226/'Population 2016'!AV$5","v":9.5026924295216978E-3},{"$f":"'Population 2016'!AW226/'Population 2016'!AW$5","v":4.1834462139239735E-3},{"$f":"'Population 2016'!AX226/'Population 2016'!AX$5","v":8.957665128998045E-3},{"$f":"'Population 2016'!AY226/'Population 2016'!AY$5","v":6.4594106667482639E-3},{"$f":"'Population 2016'!AZ226/'Population 2016'!AZ$5","v":6.3337379408736072E-3},{"$f":"'Population 2016'!BA226/'Population 2016'!BA$5","v":6.3431224357590158E-4},{"$f":"'Population 2016'!BB226/'Population 2016'!BB$5","v":3.991078765113276E-3},{"$f":"'Population 2016'!BC226/'Population 2016'!BC$5","v":0},224]
[null,"Female 75-79",{"$f":"'Population 2016'!C227/'Population 2016'!C$5","v":7.6819675650258365E-3},{"$f":"'Population 2016'!D227/'Population 2016'!D$5","v":6.9931437849045904E-3},{"$f":"'Population 2016'!E227/'Population 2016'!E$5","v":6.3613649042045016E-3},{"$f":"'Population 2016'!F227/'Population 2016'!F$5","v":5.1197527684779809E-3},{"$f":"'Population 2016'!G227/'Population 2016'!G$5","v":1.9758566556596115E-3},{"$f":"'Population 2016'!H227/'Population 2016'!H$5","v":4.046522033766411E-3},{"$f":"'Population 2016'!I227/'Population 2016'!I$5","v":2.7740557742232646E-3},{"$f":"'Population 2016'!J227/'Population 2016'!J$5","v":6.2031961387591953E-3},{"$f":"'Population 2016'!K227/'Population 2016'!K$5","v":3.8746869536455133E-3},{"$f":"'Population 2016'!L227/'Population 2016'!L$5","v":2.851333534541642E-3},{"$f":"'Population 2016'!M227/'Population 2016'!M$5","v":2.851333534541642E-3},{"$f":"'Population 2016'!N227/'Population 2016'!N$5","v":4.0427259063984377E-3},{"$f":"'Population 2016'!O227/'Population 2016'!O$5","v":2.3974400887647241E-3},{"$f":"'Population 2016'!P227/'Population 2016'!P$5","v":1.7265862729629211E-2},{"$f":"'Population 2016'!Q227/'Population 2016'!Q$5","v":4.571039118224228E-3},{"$f":"'Population 2016'!R227/'Population 2016'!R$5","v":1.4930537073508277E-2},{"$f":"'Population 2016'!S227/'Population 2016'!S$5","v":5.6781370979273431E-3},{"$f":"'Population 2016'!T227/'Population 2016'!T$5","v":8.7085801501142375E-3},{"$f":"'Population 2016'!U227/'Population 2016'!U$5","v":0},{"$f":"'Population 2016'!V227/'Population 2016'!V$5","v":3.4574610176994528E-3},{"$f":"'Population 2016'!W227/'Population 2016'!W$5","v":4.6705756999326706E-3},{"$f":"'Population 2016'!X227/'Population 2016'!X$5","v":4.6705756999326706E-3},{"$f":"'Population 2016'!Y227/'Population 2016'!Y$5","v":4.7733740322093449E-3},{"$f":"'Population 2016'!Z227/'Population 2016'!Z$5","v":1.4363616301736604E-3},{"$f":"'Population 2016'!AA227/'Population 2016'!AA$5","v":3.6255354092629539E-3},{"$f":"'Population 2016'!AB227/'Population 2016'!AB$5","v":6.51361780088636E-3},{"$f":"'Population 2016'!AC227/'Population 2016'!AC$5","v":4.3657598656243728E-3},{"$f":"'Population 2016'!AD227/'Population 2016'!AD$5","v":2.2553872492463434E-3},{"$f":"'Population 2016'!AE227/'Population 2016'!AE$5","v":2.3614205484655901E-3},{"$f":"'Population 2016'!AF227/'Population 2016'!AF$5","v":3.8456318146857893E-3},{"$f":"'Population 2016'!AG227/'Population 2016'!AG$5","v":2.3614205484655901E-3},{"$f":"'Population 2016'!AH227/'Population 2016'!AH$5","v":2.296053425968067E-3},{"$f":"'Population 2016'!AI227/'Population 2016'!AI$5","v":6.478858605302301E-3},{"$f":"'Population 2016'!AJ227/'Population 2016'!AJ$5","v":3.1927055739899061E-3},{"$f":"'Population 2016'!AK227/'Population 2016'!AK$5","v":4.0481249135687616E-3},{"$f":"'Population 2016'!AL227/'Population 2016'!AL$5","v":2.64273425444742E-3},{"$f":"'Population 2016'!AM227/'Population 2016'!AM$5","v":1.5647014933482077E-3},{"$f":"'Population 2016'!AN227/'Population 2016'!AN$5","v":1.2544998363695865E-3},{"$f":"'Population 2016'!AO227/'Population 2016'!AO$5","v":1.2544998363695865E-3},{"$f":"'Population 2016'!AP227/'Population 2016'!AP$5","v":6.190257280091308E-3},{"$f":"'Population 2016'!AQ227/'Population 2016'!AQ$5","v":3.6786869074368388E-3},{"$f":"'Population 2016'!AR227/'Population 2016'!AR$5","v":4.5201561314057734E-3},{"$f":"'Population 2016'!AS227/'Population 2016'!AS$5","v":2.7740557742232646E-3},{"$f":"'Population 2016'!AT227/'Population 2016'!AT$5","v":0},{"$f":"'Population 2016'!AU227/'Population 2016'!AU$5","v":0},{"$f":"'Population 2016'!AV227/'Population 2016'!AV$5","v":7.4754513778904023E-3},{"$f":"'Population 2016'!AW227/'Population 2016'!AW$5","v":3.0660809079260478E-3},{"$f":"'Population 2016'!AX227/'Population 2016'!AX$5","v":7.4625912058985137E-3},{"$f":"'Population 2016'!AY227/'Population 2016'!AY$5","v":4.9111104311373582E-3},{"$f":"'Population 2016'!AZ227/'Population 2016'!AZ$5","v":5.1227916769736124E-3},{"$f":"'Population 2016'!BA227/'Population 2016'!BA$5","v":4.4536817102137769E-4},{"$f":"'Population 2016'!BB227/'Population 2016'!BB$5","v":2.6100826526173327E-3},{"$f":"'Population 2016'!BC227/'Population 2016'!BC$5","v":0},225]
[null,"Female 80-84",{"$f":"'Population 2016'!C228/'Population 2016'!C$5","v":5.9953080198105833E-3},{"$f":"'Population 2016'!D228/'Population 2016'!D$5","v":5.3573349764776072E-3},{"$f":"'Population 2016'!E228/'Population 2016'!E$5","v":4.7721956318940179E-3},{"$f":"'Population 2016'!F228/'Population 2016'!F$5","v":4.0381148596446044E-3},{"$f":"'Population 2016'!G228/'Population 2016'!G$5","v":1.6510583013046067E-3},{"$f":"'Population 2016'!H228/'Population 2016'!H$5","v":3.0219219034217106E-3},{"$f":"'Population 2016'!I228/'Population 2016'!I$5","v":1.6644334645339587E-3},{"$f":"'Population 2016'!J228/'Population 2016'!J$5","v":4.262624084655383E-3},{"$f":"'Population 2016'!K228/'Population 2016'!K$5","v":2.4334924160090724E-3},{"$f":"'Population 2016'!L228/'Population 2016'!L$5","v":2.3033056407160898E-3},{"$f":"'Population 2016'!M228/'Population 2016'!M$5","v":2.3033056407160898E-3},{"$f":"'Population 2016'!N228/'Population 2016'!N$5","v":3.2470402906261803E-3},{"$f":"'Population 2016'!O228/'Population 2016'!O$5","v":1.9219147819022995E-3},{"$f":"'Population 2016'!P228/'Population 2016'!P$5","v":1.2735264284909275E-2},{"$f":"'Population 2016'!Q228/'Population 2016'!Q$5","v":3.2549558759591545E-3},{"$f":"'Population 2016'!R228/'Population 2016'!R$5","v":1.2415500079842445E-2},{"$f":"'Population 2016'!S228/'Population 2016'!S$5","v":4.4477122394615083E-3},{"$f":"'Population 2016'!T228/'Population 2016'!T$5","v":7.3451743344671782E-3},{"$f":"'Population 2016'!U228/'Population 2016'!U$5","v":0},{"$f":"'Population 2016'!V228/'Population 2016'!V$5","v":2.2744445546897061E-3},{"$f":"'Population 2016'!W228/'Population 2016'!W$5","v":3.4416488537642423E-3},{"$f":"'Population 2016'!X228/'Population 2016'!X$5","v":3.4416488537642423E-3},{"$f":"'Population 2016'!Y228/'Population 2016'!Y$5","v":3.2272936837252188E-3},{"$f":"'Population 2016'!Z228/'Population 2016'!Z$5","v":1.2214881248511856E-3},{"$f":"'Population 2016'!AA228/'Population 2016'!AA$5","v":2.7698107240640012E-3},{"$f":"'Population 2016'!AB228/'Population 2016'!AB$5","v":5.0274812441787869E-3},{"$f":"'Population 2016'!AC228/'Population 2016'!AC$5","v":3.3955910065967343E-3},{"$f":"'Population 2016'!AD228/'Population 2016'!AD$5","v":1.9241505080203952E-3},{"$f":"'Population 2016'!AE228/'Population 2016'!AE$5","v":2.0277415579215393E-3},{"$f":"'Population 2016'!AF228/'Population 2016'!AF$5","v":2.8050490883590462E-3},{"$f":"'Population 2016'!AG228/'Population 2016'!AG$5","v":2.0277415579215393E-3},{"$f":"'Population 2016'!AH228/'Population 2016'!AH$5","v":1.645876484957692E-3},{"$f":"'Population 2016'!AI228/'Population 2016'!AI$5","v":5.2320303613614489E-3},{"$f":"'Population 2016'!AJ228/'Population 2016'!AJ$5","v":2.1470596436438671E-3},{"$f":"'Population 2016'!AK228/'Population 2016'!AK$5","v":3.33153137296808E-3},{"$f":"'Population 2016'!AL228/'Population 2016'!AL$5","v":2.0751671662439476E-3},{"$f":"'Population 2016'!AM228/'Population 2016'!AM$5","v":9.960484043304563E-4},{"$f":"'Population 2016'!AN228/'Population 2016'!AN$5","v":1.4726737209556015E-3},{"$f":"'Population 2016'!AO228/'Population 2016'!AO$5","v":1.4726737209556015E-3},{"$f":"'Population 2016'!AP228/'Population 2016'!AP$5","v":4.7714915270358101E-3},{"$f":"'Population 2016'!AQ228/'Population 2016'!AQ$5","v":2.6100180851646847E-3},{"$f":"'Population 2016'!AR228/'Population 2016'!AR$5","v":3.4842406059727104E-3},{"$f":"'Population 2016'!AS228/'Population 2016'!AS$5","v":1.6644334645339587E-3},{"$f":"'Population 2016'!AT228/'Population 2016'!AT$5","v":0},{"$f":"'Population 2016'!AU228/'Population 2016'!AU$5","v":0},{"$f":"'Population 2016'!AV228/'Population 2016'!AV$5","v":5.3215077605321508E-3},{"$f":"'Population 2016'!AW228/'Population 2016'!AW$5","v":2.3300689486850938E-3},{"$f":"'Population 2016'!AX228/'Population 2016'!AX$5","v":5.2519263452470702E-3},{"$f":"'Population 2016'!AY228/'Population 2016'!AY$5","v":3.7498852544291792E-3},{"$f":"'Population 2016'!AZ228/'Population 2016'!AZ$5","v":4.0211469760859687E-3},{"$f":"'Population 2016'!BA228/'Population 2016'!BA$5","v":2.9691211401425179E-4},{"$f":"'Population 2016'!BB228/'Population 2016'!BB$5","v":1.6502903544326523E-3},{"$f":"'Population 2016'!BC228/'Population 2016'!BC$5","v":0},226]
[null,"Female 85-89",{"$f":"'Population 2016'!C229/'Population 2016'!C$5","v":4.3955369966215702E-3},{"$f":"'Population 2016'!D229/'Population 2016'!D$5","v":3.6824036853378714E-3},{"$f":"'Population 2016'!E229/'Population 2016'!E$5","v":3.028328465818797E-3},{"$f":"'Population 2016'!F229/'Population 2016'!F$5","v":2.6062322946175638E-3},{"$f":"'Population 2016'!G229/'Population 2016'!G$5","v":9.4732853353543013E-4},{"$f":"'Population 2016'!H229/'Population 2016'!H$5","v":1.7930502281032251E-3},{"$f":"'Population 2016'!I229/'Population 2016'!I$5","v":8.7932333975378944E-4},{"$f":"'Population 2016'!J229/'Population 2016'!J$5","v":2.3883963742816153E-3},{"$f":"'Population 2016'!K229/'Population 2016'!K$5","v":1.0631762982563908E-3},{"$f":"'Population 2016'!L229/'Population 2016'!L$5","v":1.2390195860403793E-3},{"$f":"'Population 2016'!M229/'Population 2016'!M$5","v":1.2390195860403793E-3},{"$f":"'Population 2016'!N229/'Population 2016'!N$5","v":2.1137910802838749E-3},{"$f":"'Population 2016'!O229/'Population 2016'!O$5","v":1.1689997127034605E-3},{"$f":"'Population 2016'!P229/'Population 2016'!P$5","v":7.4270258086329317E-3},{"$f":"'Population 2016'!Q229/'Population 2016'!Q$5","v":2.1386352686807442E-3},{"$f":"'Population 2016'!R229/'Population 2016'!R$5","v":8.6229839782828548E-3},{"$f":"'Population 2016'!S229/'Population 2016'!S$5","v":2.9630819582997189E-3},{"$f":"'Population 2016'!T229/'Population 2016'!T$5","v":5.1278949107271656E-3},{"$f":"'Population 2016'!U229/'Population 2016'!U$5","v":0},{"$f":"'Population 2016'!V229/'Population 2016'!V$5","v":1.2288106486746399E-3},{"$f":"'Population 2016'!W229/'Population 2016'!W$5","v":2.1310114460154662E-3},{"$f":"'Population 2016'!X229/'Population 2016'!X$5","v":2.1310114460154662E-3},{"$f":"'Population 2016'!Y229/'Population 2016'!Y$5","v":1.7845503251140682E-3},{"$f":"'Population 2016'!Z229/'Population 2016'!Z$5","v":8.1884227703970126E-4},{"$f":"'Population 2016'!AA229/'Population 2016'!AA$5","v":1.6974973374870529E-3},{"$f":"'Population 2016'!AB229/'Population 2016'!AB$5","v":3.4103354042352846E-3},{"$f":"'Population 2016'!AC229/'Population 2016'!AC$5","v":2.1637454723729419E-3},{"$f":"'Population 2016'!AD229/'Population 2016'!AD$5","v":1.1537459525847631E-3},{"$f":"'Population 2016'!AE229/'Population 2016'!AE$5","v":1.2320455035472644E-3},{"$f":"'Population 2016'!AF229/'Population 2016'!AF$5","v":1.9906799981902908E-3},{"$f":"'Population 2016'!AG229/'Population 2016'!AG$5","v":1.2320455035472644E-3},{"$f":"'Population 2016'!AH229/'Population 2016'!AH$5","v":8.6009121053658177E-4},{"$f":"'Population 2016'!AI229/'Population 2016'!AI$5","v":3.5832640650975589E-3},{"$f":"'Population 2016'!AJ229/'Population 2016'!AJ$5","v":8.7834258149067283E-4},{"$f":"'Population 2016'!AK229/'Population 2016'!AK$5","v":2.0114906402826146E-3},{"$f":"'Population 2016'!AL229/'Population 2016'!AL$5","v":1.179475355172842E-3},{"$f":"'Population 2016'!AM229/'Population 2016'!AM$5","v":4.4550528630053136E-4},{"$f":"'Population 2016'!AN229/'Population 2016'!AN$5","v":7.6360859605105274E-4},{"$f":"'Population 2016'!AO229/'Population 2016'!AO$5","v":7.6360859605105274E-4},{"$f":"'Population 2016'!AP229/'Population 2016'!AP$5","v":3.0753134758968342E-3},{"$f":"'Population 2016'!AQ229/'Population 2016'!AQ$5","v":1.5070970570504741E-3},{"$f":"'Population 2016'!AR229/'Population 2016'!AR$5","v":2.2197553323473201E-3},{"$f":"'Population 2016'!AS229/'Population 2016'!AS$5","v":8.7932333975378944E-4},{"$f":"'Population 2016'!AT229/'Population 2016'!AT$5","v":0},{"$f":"'Population 2016'!AU229/'Population 2016'!AU$5","v":0},{"$f":"'Population 2016'!AV229/'Population 2016'!AV$5","v":3.1886812374617253E-3},{"$f":"'Population 2016'!AW229/'Population 2016'!AW$5","v":1.2966013789737019E-3},{"$f":"'Population 2016'!AX229/'Population 2016'!AX$5","v":3.1051535325913337E-3},{"$f":"'Population 2016'!AY229/'Population 2016'!AY$5","v":2.3805881092989812E-3},{"$f":"'Population 2016'!AZ229/'Population 2016'!AZ$5","v":2.6002266569254045E-3},{"$f":"'Population 2016'!BA229/'Population 2016'!BA$5","v":1.349600518246599E-4},{"$f":"'Population 2016'!BB229/'Population 2016'!BB$5","v":1.1876566567465112E-3},{"$f":"'Population 2016'!BC229/'Population 2016'!BC$5","v":0},227]
[null,"Female 90+",{"$f":"'Population 2016'!C230/'Population 2016'!C$5","v":2.6782109142205845E-3},{"$f":"'Population 2016'!D230/'Population 2016'!D$5","v":2.2960007042046888E-3},{"$f":"'Population 2016'!E230/'Population 2016'!E$5","v":1.9454432094656361E-3},{"$f":"'Population 2016'!F230/'Population 2016'!F$5","v":1.3288694308524337E-3},{"$f":"'Population 2016'!G230/'Population 2016'!G$5","v":5.9546364965084176E-4},{"$f":"'Population 2016'!H230/'Population 2016'!H$5","v":1.1672659712787723E-3},{"$f":"'Population 2016'!I230/'Population 2016'!I$5","v":7.2230131479775563E-4},{"$f":"'Population 2016'!J230/'Population 2016'!J$5","v":1.3434729605334085E-3},{"$f":"'Population 2016'!K230/'Population 2016'!K$5","v":4.2527051930255636E-4},{"$f":"'Population 2016'!L230/'Population 2016'!L$5","v":7.2276142519022129E-4},{"$f":"'Population 2016'!M230/'Population 2016'!M$5","v":7.2276142519022129E-4},{"$f":"'Population 2016'!N230/'Population 2016'!N$5","v":9.4035572773084925E-4},{"$f":"'Population 2016'!O230/'Population 2016'!O$5","v":5.2505919299392718E-4},{"$f":"'Population 2016'!P230/'Population 2016'!P$5","v":4.3953567001014313E-3},{"$f":"'Population 2016'!Q230/'Population 2016'!Q$5","v":1.3395847287340924E-3},{"$f":"'Population 2016'!R230/'Population 2016'!R$5","v":4.7373183584393467E-3},{"$f":"'Population 2016'!S230/'Population 2016'!S$5","v":1.8853568849949954E-3},{"$f":"'Population 2016'!T230/'Population 2016'!T$5","v":3.1828313238996199E-3},{"$f":"'Population 2016'!U230/'Population 2016'!U$5","v":0},{"$f":"'Population 2016'!V230/'Population 2016'!V$5","v":9.3878080613031501E-4},{"$f":"'Population 2016'!W230/'Population 2016'!W$5","v":1.411958504108407E-3},{"$f":"'Population 2016'!X230/'Population 2016'!X$5","v":1.411958504108407E-3},{"$f":"'Population 2016'!Y230/'Population 2016'!Y$5","v":1.1327323889922258E-3},{"$f":"'Population 2016'!Z230/'Population 2016'!Z$5","v":5.3428006728831569E-4},{"$f":"'Population 2016'!AA230/'Population 2016'!AA$5","v":9.6468341840751494E-4},{"$f":"'Population 2016'!AB230/'Population 2016'!AB$5","v":2.1329948926849737E-3},{"$f":"'Population 2016'!AC230/'Population 2016'!AC$5","v":1.2597715035135007E-3},{"$f":"'Population 2016'!AD230/'Population 2016'!AD$5","v":6.4758643790241541E-4},{"$f":"'Population 2016'!AE230/'Population 2016'!AE$5","v":6.6735798108810153E-4},{"$f":"'Population 2016'!AF230/'Population 2016'!AF$5","v":1.3572818169479257E-3},{"$f":"'Population 2016'!AG230/'Population 2016'!AG$5","v":6.6735798108810153E-4},{"$f":"'Population 2016'!AH230/'Population 2016'!AH$5","v":4.3468972627550782E-4},{"$f":"'Population 2016'!AI230/'Population 2016'!AI$5","v":2.2352677399597514E-3},{"$f":"'Population 2016'!AJ230/'Population 2016'!AJ$5","v":6.4132950394557066E-4},{"$f":"'Population 2016'!AK230/'Population 2016'!AK$5","v":1.294897099681933E-3},{"$f":"'Population 2016'!AL230/'Population 2016'!AL$5","v":6.4738120998208612E-4},{"$f":"'Population 2016'!AM230/'Population 2016'!AM$5","v":2.3905161703930951E-4},{"$f":"'Population 2016'!AN230/'Population 2016'!AN$5","v":3.8180429802552637E-4},{"$f":"'Population 2016'!AO230/'Population 2016'!AO$5","v":3.8180429802552637E-4},{"$f":"'Population 2016'!AP230/'Population 2016'!AP$5","v":2.0924813341153719E-3},{"$f":"'Population 2016'!AQ230/'Population 2016'!AQ$5","v":6.7819367567271331E-4},{"$f":"'Population 2016'!AR230/'Population 2016'!AR$5","v":1.349363513451196E-3},{"$f":"'Population 2016'!AS230/'Population 2016'!AS$5","v":7.2230131479775563E-4},{"$f":"'Population 2016'!AT230/'Population 2016'!AT$5","v":0},{"$f":"'Population 2016'!AU230/'Population 2016'!AU$5","v":0},{"$f":"'Population 2016'!AV230/'Population 2016'!AV$5","v":2.4707000316756414E-3},{"$f":"'Population 2016'!AW230/'Population 2016'!AW$5","v":6.4067362255171149E-4},{"$f":"'Population 2016'!AX230/'Population 2016'!AX$5","v":1.8400909822763459E-3},{"$f":"'Population 2016'!AY230/'Population 2016'!AY$5","v":1.4412043695113369E-3},{"$f":"'Population 2016'!AZ230/'Population 2016'!AZ$5","v":1.4669420299026066E-3},{"$f":"'Population 2016'!BA230/'Population 2016'!BA$5","v":9.4472036277261928E-5},{"$f":"'Population 2016'!BB230/'Population 2016'!BB$5","v":7.3883292018532966E-4},{"$f":"'Population 2016'!BC230/'Population 2016'!BC$5","v":0},228]
[null,"Male 0-4",{"$f":"'Population 2016'!C231/'Population 2016'!C$5","v":0},{"$f":"'Population 2016'!D231/'Population 2016'!D$5","v":0},{"$f":"'Population 2016'!E231/'Population 2016'!E$5","v":0},{"$f":"'Population 2016'!F231/'Population 2016'!F$5","v":0},{"$f":"'Population 2016'!G231/'Population 2016'!G$5","v":0},{"$f":"'Population 2016'!H231/'Population 2016'!H$5","v":0},{"$f":"'Population 2016'!I231/'Population 2016'!I$5","v":0},{"$f":"'Population 2016'!J231/'Population 2016'!J$5","v":0},{"$f":"'Population 2016'!K231/'Population 2016'!K$5","v":0},{"$f":"'Population 2016'!L231/'Population 2016'!L$5","v":0},{"$f":"'Population 2016'!M231/'Population 2016'!M$5","v":0},{"$f":"'Population 2016'!N231/'Population 2016'!N$5","v":0},{"$f":"'Population 2016'!O231/'Population 2016'!O$5","v":0},{"$f":"'Population 2016'!P231/'Population 2016'!P$5","v":0},{"$f":"'Population 2016'!Q231/'Population 2016'!Q$5","v":0},{"$f":"'Population 2016'!R231/'Population 2016'!R$5","v":0},{"$f":"'Population 2016'!S231/'Population 2016'!S$5","v":0},{"$f":"'Population 2016'!T231/'Population 2016'!T$5","v":0},{"$f":"'Population 2016'!U231/'Population 2016'!U$5","v":0},{"$f":"'Population 2016'!V231/'Population 2016'!V$5","v":0},{"$f":"'Population 2016'!W231/'Population 2016'!W$5","v":0},{"$f":"'Population 2016'!X231/'Population 2016'!X$5","v":0},{"$f":"'Population 2016'!Y231/'Population 2016'!Y$5","v":0},{"$f":"'Population 2016'!Z231/'Population 2016'!Z$5","v":0},{"$f":"'Population 2016'!AA231/'Population 2016'!AA$5","v":0},{"$f":"'Population 2016'!AB231/'Population 2016'!AB$5","v":0},{"$f":"'Population 2016'!AC231/'Population 2016'!AC$5","v":0},{"$f":"'Population 2016'!AD231/'Population 2016'!AD$5","v":0},{"$f":"'Population 2016'!AE231/'Population 2016'!AE$5","v":0},{"$f":"'Population 2016'!AF231/'Population 2016'!AF$5","v":0},{"$f":"'Population 2016'!AG231/'Population 2016'!AG$5","v":0},{"$f":"'Population 2016'!AH231/'Population 2016'!AH$5","v":0},{"$f":"'Population 2016'!AI231/'Population 2016'!AI$5","v":0},{"$f":"'Population 2016'!AJ231/'Population 2016'!AJ$5","v":0},{"$f":"'Population 2016'!AK231/'Population 2016'!AK$5","v":0},{"$f":"'Population 2016'!AL231/'Population 2016'!AL$5","v":0},{"$f":"'Population 2016'!AM231/'Population 2016'!AM$5","v":0},{"$f":"'Population 2016'!AN231/'Population 2016'!AN$5","v":0},{"$f":"'Population 2016'!AO231/'Population 2016'!AO$5","v":0},{"$f":"'Population 2016'!AP231/'Population 2016'!AP$5","v":0},{"$f":"'Population 2016'!AQ231/'Population 2016'!AQ$5","v":0},{"$f":"'Population 2016'!AR231/'Population 2016'!AR$5","v":0},{"$f":"'Population 2016'!AS231/'Population 2016'!AS$5","v":0},{"$f":"'Population 2016'!AT231/'Population 2016'!AT$5","v":0},{"$f":"'Population 2016'!AU231/'Population 2016'!AU$5","v":0},{"$f":"'Population 2016'!AV231/'Population 2016'!AV$5","v":0},{"$f":"'Population 2016'!AW231/'Population 2016'!AW$5","v":0},{"$f":"'Population 2016'!AX231/'Population 2016'!AX$5","v":0},{"$f":"'Population 2016'!AY231/'Population 2016'!AY$5","v":0},{"$f":"'Population 2016'!AZ231/'Population 2016'!AZ$5","v":0},{"$f":"'Population 2016'!BA231/'Population 2016'!BA$5","v":0},{"$f":"'Population 2016'!BB231/'Population 2016'!BB$5","v":0},{"$f":"'Population 2016'!BC231/'Population 2016'!BC$5","v":0},229]
[null,"Male 5-9",{"$f":"'Population 2016'!C232/'Population 2016'!C$5","v":0},{"$f":"'Population 2016'!D232/'Population 2016'!D$5","v":0},{"$f":"'Population 2016'!E232/'Population 2016'!E$5","v":0},{"$f":"'Population 2016'!F232/'Population 2016'!F$5","v":0},{"$f":"'Population 2016'!G232/'Population 2016'!G$5","v":0},{"$f":"'Population 2016'!H232/'Population 2016'!H$5","v":0},{"$f":"'Population 2016'!I232/'Population 2016'!I$5","v":0},{"$f":"'Population 2016'!J232/'Population 2016'!J$5","v":0},{"$f":"'Population 2016'!K232/'Population 2016'!K$5","v":0},{"$f":"'Population 2016'!L232/'Population 2016'!L$5","v":0},{"$f":"'Population 2016'!M232/'Population 2016'!M$5","v":0},{"$f":"'Population 2016'!N232/'Population 2016'!N$5","v":0},{"$f":"'Population 2016'!O232/'Population 2016'!O$5","v":0},{"$f":"'Population 2016'!P232/'Population 2016'!P$5","v":0},{"$f":"'Population 2016'!Q232/'Population 2016'!Q$5","v":0},{"$f":"'Population 2016'!R232/'Population 2016'!R$5","v":0},{"$f":"'Population 2016'!S232/'Population 2016'!S$5","v":0},{"$f":"'Population 2016'!T232/'Population 2016'!T$5","v":0},{"$f":"'Population 2016'!U232/'Population 2016'!U$5","v":0},{"$f":"'Population 2016'!V232/'Population 2016'!V$5","v":0},{"$f":"'Population 2016'!W232/'Population 2016'!W$5","v":0},{"$f":"'Population 2016'!X232/'Population 2016'!X$5","v":0},{"$f":"'Population 2016'!Y232/'Population 2016'!Y$5","v":0},{"$f":"'Population 2016'!Z232/'Population 2016'!Z$5","v":0},{"$f":"'Population 2016'!AA232/'Population 2016'!AA$5","v":0},{"$f":"'Population 2016'!AB232/'Population 2016'!AB$5","v":0},{"$f":"'Population 2016'!AC232/'Population 2016'!AC$5","v":0},{"$f":"'Population 2016'!AD232/'Population 2016'!AD$5","v":0},{"$f":"'Population 2016'!AE232/'Population 2016'!AE$5","v":0},{"$f":"'Population 2016'!AF232/'Population 2016'!AF$5","v":0},{"$f":"'Population 2016'!AG232/'Population 2016'!AG$5","v":0},{"$f":"'Population 2016'!AH232/'Population 2016'!AH$5","v":0},{"$f":"'Population 2016'!AI232/'Population 2016'!AI$5","v":0},{"$f":"'Population 2016'!AJ232/'Population 2016'!AJ$5","v":0},{"$f":"'Population 2016'!AK232/'Population 2016'!AK$5","v":0},{"$f":"'Population 2016'!AL232/'Population 2016'!AL$5","v":0},{"$f":"'Population 2016'!AM232/'Population 2016'!AM$5","v":0},{"$f":"'Population 2016'!AN232/'Population 2016'!AN$5","v":0},{"$f":"'Population 2016'!AO232/'Population 2016'!AO$5","v":0},{"$f":"'Population 2016'!AP232/'Population 2016'!AP$5","v":0},{"$f":"'Population 2016'!AQ232/'Population 2016'!AQ$5","v":0},{"$f":"'Population 2016'!AR232/'Population 2016'!AR$5","v":0},{"$f":"'Population 2016'!AS232/'Population 2016'!AS$5","v":0},{"$f":"'Population 2016'!AT232/'Population 2016'!AT$5","v":0},{"$f":"'Population 2016'!AU232/'Population 2016'!AU$5","v":0},{"$f":"'Population 2016'!AV232/'Population 2016'!AV$5","v":0},{"$f":"'Population 2016'!AW232/'Population 2016'!AW$5","v":0},{"$f":"'Population 2016'!AX232/'Population 2016'!AX$5","v":0},{"$f":"'Population 2016'!AY232/'Population 2016'!AY$5","v":0},{"$f":"'Population 2016'!AZ232/'Population 2016'!AZ$5","v":0},{"$f":"'Population 2016'!BA232/'Population 2016'!BA$5","v":0},{"$f":"'Population 2016'!BB232/'Population 2016'!BB$5","v":0},{"$f":"'Population 2016'!BC232/'Population 2016'!BC$5","v":0},230]
[null,"Male 10-15",{"$f":"'Population 2016'!C233/'Population 2016'!C$5","v":0},{"$f":"'Population 2016'!D233/'Population 2016'!D$5","v":0},{"$f":"'Population 2016'!E233/'Population 2016'!E$5","v":0},{"$f":"'Population 2016'!F233/'Population 2016'!F$5","v":0},{"$f":"'Population 2016'!G233/'Population 2016'!G$5","v":0},{"$f":"'Population 2016'!H233/'Population 2016'!H$5","v":0},{"$f":"'Population 2016'!I233/'Population 2016'!I$5","v":0},{"$f":"'Population 2016'!J233/'Population 2016'!J$5","v":0},{"$f":"'Population 2016'!K233/'Population 2016'!K$5","v":0},{"$f":"'Population 2016'!L233/'Population 2016'!L$5","v":0},{"$f":"'Population 2016'!M233/'Population 2016'!M$5","v":0},{"$f":"'Population 2016'!N233/'Population 2016'!N$5","v":0},{"$f":"'Population 2016'!O233/'Population 2016'!O$5","v":0},{"$f":"'Population 2016'!P233/'Population 2016'!P$5","v":0},{"$f":"'Population 2016'!Q233/'Population 2016'!Q$5","v":0},{"$f":"'Population 2016'!R233/'Population 2016'!R$5","v":0},{"$f":"'Population 2016'!S233/'Population 2016'!S$5","v":0},{"$f":"'Population 2016'!T233/'Population 2016'!T$5","v":0},{"$f":"'Population 2016'!U233/'Population 2016'!U$5","v":0},{"$f":"'Population 2016'!V233/'Population 2016'!V$5","v":0},{"$f":"'Population 2016'!W233/'Population 2016'!W$5","v":0},{"$f":"'Population 2016'!X233/'Population 2016'!X$5","v":0},{"$f":"'Population 2016'!Y233/'Population 2016'!Y$5","v":0},{"$f":"'Population 2016'!Z233/'Population 2016'!Z$5","v":0},{"$f":"'Population 2016'!AA233/'Population 2016'!AA$5","v":0},{"$f":"'Population 2016'!AB233/'Population 2016'!AB$5","v":0},{"$f":"'Population 2016'!AC233/'Population 2016'!AC$5","v":0},{"$f":"'Population 2016'!AD233/'Population 2016'!AD$5","v":0},{"$f":"'Population 2016'!AE233/'Population 2016'!AE$5","v":0},{"$f":"'Population 2016'!AF233/'Population 2016'!AF$5","v":0},{"$f":"'Population 2016'!AG233/'Population 2016'!AG$5","v":0},{"$f":"'Population 2016'!AH233/'Population 2016'!AH$5","v":0},{"$f":"'Population 2016'!AI233/'Population 2016'!AI$5","v":0},{"$f":"'Population 2016'!AJ233/'Population 2016'!AJ$5","v":0},{"$f":"'Population 2016'!AK233/'Population 2016'!AK$5","v":0},{"$f":"'Population 2016'!AL233/'Population 2016'!AL$5","v":0},{"$f":"'Population 2016'!AM233/'Population 2016'!AM$5","v":0},{"$f":"'Population 2016'!AN233/'Population 2016'!AN$5","v":0},{"$f":"'Population 2016'!AO233/'Population 2016'!AO$5","v":0},{"$f":"'Population 2016'!AP233/'Population 2016'!AP$5","v":0},{"$f":"'Population 2016'!AQ233/'Population 2016'!AQ$5","v":0},{"$f":"'Population 2016'!AR233/'Population 2016'!AR$5","v":0},{"$f":"'Population 2016'!AS233/'Population 2016'!AS$5","v":0},{"$f":"'Population 2016'!AT233/'Population 2016'!AT$5","v":0},{"$f":"'Population 2016'!AU233/'Population 2016'!AU$5","v":0},{"$f":"'Population 2016'!AV233/'Population 2016'!AV$5","v":0},{"$f":"'Population 2016'!AW233/'Population 2016'!AW$5","v":0},{"$f":"'Population 2016'!AX233/'Population 2016'!AX$5","v":0},{"$f":"'Population 2016'!AY233/'Population 2016'!AY$5","v":0},{"$f":"'Population 2016'!AZ233/'Population 2016'!AZ$5","v":0},{"$f":"'Population 2016'!BA233/'Population 2016'!BA$5","v":0},{"$f":"'Population 2016'!BB233/'Population 2016'!BB$5","v":0},{"$f":"'Population 2016'!BC233/'Population 2016'!BC$5","v":0},231]
[null,"Male 16-19",{"$f":"'Population 2016'!C234/'Population 2016'!C$5","v":9.3686271102410897E-3},{"$f":"'Population 2016'!D234/'Population 2016'!D$5","v":9.8735365746310255E-3},{"$f":"'Population 2016'!E234/'Population 2016'!E$5","v":1.0336631992461993E-2},{"$f":"'Population 2016'!F234/'Population 2016'!F$5","v":5.1815606489827451E-3},{"$f":"'Population 2016'!G234/'Population 2016'!G$5","v":4.5471769609700648E-3},{"$f":"'Population 2016'!H234/'Population 2016'!H$5","v":3.7449783245193944E-3},{"$f":"'Population 2016'!I234/'Population 2016'!I$5","v":3.0566954191441251E-3},{"$f":"'Population 2016'!J234/'Population 2016'!J$5","v":9.9184793876417078E-3},{"$f":"'Population 2016'!K234/'Population 2016'!K$5","v":3.7093039739167417E-3},{"$f":"'Population 2016'!L234/'Population 2016'!L$5","v":2.2635934744968467E-3},{"$f":"'Population 2016'!M234/'Population 2016'!M$5","v":2.2635934744968467E-3},{"$f":"'Population 2016'!N234/'Population 2016'!N$5","v":5.111677289203591E-3},{"$f":"'Population 2016'!O234/'Population 2016'!O$5","v":3.3286771480369719E-3},{"$f":"'Population 2016'!P234/'Population 2016'!P$5","v":1.6431871971148426E-2},{"$f":"'Population 2016'!Q234/'Population 2016'!Q$5","v":4.1832645914854118E-3},{"$f":"'Population 2016'!R234/'Population 2016'!R$5","v":1.9920689838718263E-2},{"$f":"'Population 2016'!S234/'Population 2016'!S$5","v":7.9412714860954935E-3},{"$f":"'Population 2016'!T234/'Population 2016'!T$5","v":1.151217060720418E-2},{"$f":"'Population 2016'!U234/'Population 2016'!U$5","v":0},{"$f":"'Population 2016'!V234/'Population 2016'!V$5","v":5.4037139084574231E-3},{"$f":"'Population 2016'!W234/'Population 2016'!W$5","v":7.1251609698063136E-3},{"$f":"'Population 2016'!X234/'Population 2016'!X$5","v":7.1251609698063136E-3},{"$f":"'Population 2016'!Y234/'Population 2016'!Y$5","v":7.5674472583901684E-3},{"$f":"'Population 2016'!Z234/'Population 2016'!Z$5","v":2.5475093063457373E-3},{"$f":"'Population 2016'!AA234/'Population 2016'!AA$5","v":4.8798896062005491E-3},{"$f":"'Population 2016'!AB234/'Population 2016'!AB$5","v":9.5022670747059966E-3},{"$f":"'Population 2016'!AC234/'Population 2016'!AC$5","v":5.6007082853247996E-3},{"$f":"'Population 2016'!AD234/'Population 2016'!AD$5","v":3.1039487885667497E-3},{"$f":"'Population 2016'!AE234/'Population 2016'!AE$5","v":2.5564944198605737E-3},{"$f":"'Population 2016'!AF234/'Population 2016'!AF$5","v":3.0915863608258305E-3},{"$f":"'Population 2016'!AG234/'Population 2016'!AG$5","v":2.5564944198605737E-3},{"$f":"'Population 2016'!AH234/'Population 2016'!AH$5","v":3.5852614175714962E-3},{"$f":"'Population 2016'!AI234/'Population 2016'!AI$5","v":8.9205639163531369E-3},{"$f":"'Population 2016'!AJ234/'Population 2016'!AJ$5","v":4.8796810082815155E-3},{"$f":"'Population 2016'!AK234/'Population 2016'!AK$5","v":7.5933771670668691E-3},{"$f":"'Population 2016'!AL234/'Population 2016'!AL$5","v":2.7757577907451094E-3},{"$f":"'Population 2016'!AM234/'Population 2016'!AM$5","v":2.9809012245962381E-3},{"$f":"'Population 2016'!AN234/'Population 2016'!AN$5","v":1.636304134395113E-3},{"$f":"'Population 2016'!AO234/'Population 2016'!AO$5","v":1.636304134395113E-3},{"$f":"'Population 2016'!AP234/'Population 2016'!AP$5","v":4.5654138198880836E-3},{"$f":"'Population 2016'!AQ234/'Population 2016'!AQ$5","v":5.6927166109497452E-3},{"$f":"'Population 2016'!AR234/'Population 2016'!AR$5","v":5.9942750629736388E-3},{"$f":"'Population 2016'!AS234/'Population 2016'!AS$5","v":3.0566954191441251E-3},{"$f":"'Population 2016'!AT234/'Population 2016'!AT$5","v":0},{"$f":"'Population 2016'!AU234/'Population 2016'!AU$5","v":0},{"$f":"'Population 2016'!AV234/'Population 2016'!AV$5","v":5.3426248548199768E-3},{"$f":"'Population 2016'!AW234/'Population 2016'!AW$5","v":4.2215815485996703E-3},{"$f":"'Population 2016'!AX234/'Population 2016'!AX$5","v":1.32767675735078E-2},{"$f":"'Population 2016'!AY234/'Population 2016'!AY$5","v":5.9591199779688506E-3},{"$f":"'Population 2016'!AZ234/'Population 2016'!AZ$5","v":4.9329521201626871E-3},{"$f":"'Population 2016'!BA234/'Population 2016'!BA$5","v":1.4575685597063269E-3},{"$f":"'Population 2016'!BB234/'Population 2016'!BB$5","v":6.0142380699198328E-3},{"$f":"'Population 2016'!BC234/'Population 2016'!BC$5","v":0},232]
[null,"Male 20-24",{"$f":"'Population 2016'!C235/'Population 2016'!C$5","v":1.5593934158944662E-2},{"$f":"'Population 2016'!D235/'Population 2016'!D$5","v":1.3282082880979627E-2},{"$f":"'Population 2016'!E235/'Population 2016'!E$5","v":1.1161687425873926E-2},{"$f":"'Population 2016'!F235/'Population 2016'!F$5","v":5.4081895441668816E-3},{"$f":"'Population 2016'!G235/'Population 2016'!G$5","v":1.2044605640664754E-2},{"$f":"'Population 2016'!H235/'Population 2016'!H$5","v":4.0919157104272515E-3},{"$f":"'Population 2016'!I235/'Population 2016'!I$5","v":2.5123523992965414E-3},{"$f":"'Population 2016'!J235/'Population 2016'!J$5","v":1.1237073219276349E-2},{"$f":"'Population 2016'!K235/'Population 2016'!K$5","v":3.8746869536455133E-3},{"$f":"'Population 2016'!L235/'Population 2016'!L$5","v":2.4859816053246072E-3},{"$f":"'Population 2016'!M235/'Population 2016'!M$5","v":2.4859816053246072E-3},{"$f":"'Population 2016'!N235/'Population 2016'!N$5","v":6.4860433528102172E-3},{"$f":"'Population 2016'!O235/'Population 2016'!O$5","v":3.774482123220495E-3},{"$f":"'Population 2016'!P235/'Population 2016'!P$5","v":1.9519891806604305E-2},{"$f":"'Population 2016'!Q235/'Population 2016'!Q$5","v":5.3113359419983313E-3},{"$f":"'Population 2016'!R235/'Population 2016'!R$5","v":2.1836908500558899E-2},{"$f":"'Population 2016'!S235/'Population 2016'!S$5","v":1.2913282409867407E-2},{"$f":"'Population 2016'!T235/'Population 2016'!T$5","v":2.1018785219378045E-2},{"$f":"'Population 2016'!U235/'Population 2016'!U$5","v":0},{"$f":"'Population 2016'!V235/'Population 2016'!V$5","v":6.3501270788652205E-3},{"$f":"'Population 2016'!W235/'Population 2016'!W$5","v":1.1687878728452925E-2},{"$f":"'Population 2016'!X235/'Population 2016'!X$5","v":1.1687878728452925E-2},{"$f":"'Population 2016'!Y235/'Population 2016'!Y$5","v":8.6922306481613965E-3},{"$f":"'Population 2016'!Z235/'Population 2016'!Z$5","v":6.0822752587677102E-3},{"$f":"'Population 2016'!AA235/'Population 2016'!AA$5","v":6.671729261465747E-3},{"$f":"'Population 2016'!AB235/'Population 2016'!AB$5","v":1.2730417694441318E-2},{"$f":"'Population 2016'!AC235/'Population 2016'!AC$5","v":8.0695708295667745E-3},{"$f":"'Population 2016'!AD235/'Population 2016'!AD$5","v":5.1062562804719191E-3},{"$f":"'Population 2016'!AE235/'Population 2016'!AE$5","v":2.4743580529574226E-3},{"$f":"'Population 2016'!AF235/'Population 2016'!AF$5","v":2.8201299974362454E-3},{"$f":"'Population 2016'!AG235/'Population 2016'!AG$5","v":2.4743580529574226E-3},{"$f":"'Population 2016'!AH235/'Population 2016'!AH$5","v":4.1611324224664001E-3},{"$f":"'Population 2016'!AI235/'Population 2016'!AI$5","v":1.478421121707936E-2},{"$f":"'Population 2016'!AJ235/'Population 2016'!AJ$5","v":5.4791846750132447E-3},{"$f":"'Population 2016'!AK235/'Population 2016'!AK$5","v":9.8940195868901099E-3},{"$f":"'Population 2016'!AL235/'Population 2016'!AL$5","v":2.9265177985491565E-3},{"$f":"'Population 2016'!AM235/'Population 2016'!AM$5","v":3.3503446327478982E-3},{"$f":"'Population 2016'!AN235/'Population 2016'!AN$5","v":2.563543143885677E-3},{"$f":"'Population 2016'!AO235/'Population 2016'!AO$5","v":2.563543143885677E-3},{"$f":"'Population 2016'!AP235/'Population 2016'!AP$5","v":5.2708336635860688E-3},{"$f":"'Population 2016'!AQ235/'Population 2016'!AQ$5","v":6.5969748451800295E-3},{"$f":"'Population 2016'!AR235/'Population 2016'!AR$5","v":8.4809178790776919E-3},{"$f":"'Population 2016'!AS235/'Population 2016'!AS$5","v":2.5123523992965414E-3},{"$f":"'Population 2016'!AT235/'Population 2016'!AT$5","v":0},{"$f":"'Population 2016'!AU235/'Population 2016'!AU$5","v":0},{"$f":"'Population 2016'!AV235/'Population 2016'!AV$5","v":5.8177594762960621E-3},{"$f":"'Population 2016'!AW235/'Population 2016'!AW$5","v":5.0147965098541704E-3},{"$f":"'Population 2016'!AX235/'Population 2016'!AX$5","v":1.5219085832577278E-2},{"$f":"'Population 2016'!AY235/'Population 2016'!AY$5","v":8.5263608824699359E-3},{"$f":"'Population 2016'!AZ235/'Population 2016'!AZ$5","v":5.7440847719911871E-3},{"$f":"'Population 2016'!BA235/'Population 2016'!BA$5","v":1.8489527099978407E-3},{"$f":"'Population 2016'!BB235/'Population 2016'!BB$5","v":6.4561568259185352E-3},{"$f":"'Population 2016'!BC235/'Population 2016'!BC$5","v":0},233]
[null,"Male 25-29",{"$f":"'Population 2016'!C236/'Population 2016'!C$5","v":2.2790348218529745E-2},{"$f":"'Population 2016'!D236/'Population 2016'!D$5","v":1.6497461928934011E-2},{"$f":"'Population 2016'!E236/'Population 2016'!E$5","v":1.0725720634355122E-2},{"$f":"'Population 2016'!F236/'Population 2016'!F$5","v":4.2338398145763583E-3},{"$f":"'Population 2016'!G236/'Population 2016'!G$5","v":9.4191522762951327E-3},{"$f":"'Population 2016'!H236/'Population 2016'!H$5","v":2.8565592241572178E-3},{"$f":"'Population 2016'!I236/'Population 2016'!I$5","v":1.7377104095134411E-3},{"$f":"'Population 2016'!J236/'Population 2016'!J$5","v":5.8714744201089708E-3},{"$f":"'Population 2016'!K236/'Population 2016'!K$5","v":2.7170060955441101E-3},{"$f":"'Population 2016'!L236/'Population 2016'!L$5","v":2.0729750766444806E-3},{"$f":"'Population 2016'!M236/'Population 2016'!M$5","v":2.0729750766444806E-3},{"$f":"'Population 2016'!N236/'Population 2016'!N$5","v":6.0279213316080079E-3},{"$f":"'Population 2016'!O236/'Population 2016'!O$5","v":3.0314738312479566E-3},{"$f":"'Population 2016'!P236/'Population 2016'!P$5","v":1.5789473684210527E-2},{"$f":"'Population 2016'!Q236/'Population 2016'!Q$5","v":4.0305049294367869E-3},{"$f":"'Population 2016'!R236/'Population 2016'!R$5","v":1.5303135146643956E-2},{"$f":"'Population 2016'!S236/'Population 2016'!S$5","v":1.1080884987934069E-2},{"$f":"'Population 2016'!T236/'Population 2016'!T$5","v":2.0599991624128094E-2},{"$f":"'Population 2016'!U236/'Population 2016'!U$5","v":0},{"$f":"'Population 2016'!V236/'Population 2016'!V$5","v":6.2356416147029865E-3},{"$f":"'Population 2016'!W236/'Population 2016'!W$5","v":6.5106975467220992E-3},{"$f":"'Population 2016'!X236/'Population 2016'!X$5","v":6.5106975467220992E-3},{"$f":"'Population 2016'!Y236/'Population 2016'!Y$5","v":6.0611119060110328E-3},{"$f":"'Population 2016'!Z236/'Population 2016'!Z$5","v":6.4520125517099867E-3},{"$f":"'Population 2016'!AA236/'Population 2016'!AA$5","v":5.7608608271429492E-3},{"$f":"'Population 2016'!AB236/'Population 2016'!AB$5","v":1.5272816597238569E-2},{"$f":"'Population 2016'!AC236/'Population 2016'!AC$5","v":7.1655968607073342E-3},{"$f":"'Population 2016'!AD236/'Population 2016'!AD$5","v":4.4177304700584313E-3},{"$f":"'Population 2016'!AE236/'Population 2016'!AE$5","v":2.520559759340445E-3},{"$f":"'Population 2016'!AF236/'Population 2016'!AF$5","v":2.9860199972854364E-3},{"$f":"'Population 2016'!AG236/'Population 2016'!AG$5","v":2.520559759340445E-3},{"$f":"'Population 2016'!AH236/'Population 2016'!AH$5","v":3.2378811662316675E-3},{"$f":"'Population 2016'!AI236/'Population 2016'!AI$5","v":1.4212748271939803E-2},{"$f":"'Population 2016'!AJ236/'Population 2016'!AJ$5","v":5.242171597468143E-3},{"$f":"'Population 2016'!AK236/'Population 2016'!AK$5","v":8.9762769822611665E-3},{"$f":"'Population 2016'!AL236/'Population 2016'!AL$5","v":1.8800659796740036E-3},{"$f":"'Population 2016'!AM236/'Population 2016'!AM$5","v":2.8215334799033651E-3},{"$f":"'Population 2016'!AN236/'Population 2016'!AN$5","v":2.4544562015926695E-3},{"$f":"'Population 2016'!AO236/'Population 2016'!AO$5","v":2.4544562015926695E-3},{"$f":"'Population 2016'!AP236/'Population 2016'!AP$5","v":4.2325190621879108E-3},{"$f":"'Population 2016'!AQ236/'Population 2016'!AQ$5","v":5.1652326409820795E-3},{"$f":"'Population 2016'!AR236/'Population 2016'!AR$5","v":7.6368138089990094E-3},{"$f":"'Population 2016'!AS236/'Population 2016'!AS$5","v":1.7377104095134411E-3},{"$f":"'Population 2016'!AT236/'Population 2016'!AT$5","v":0},{"$f":"'Population 2016'!AU236/'Population 2016'!AU$5","v":0},{"$f":"'Population 2016'!AV236/'Population 2016'!AV$5","v":3.8327526132404181E-3},{"$f":"'Population 2016'!AW236/'Population 2016'!AW$5","v":3.676246262737202E-3},{"$f":"'Population 2016'!AX236/'Population 2016'!AX$5","v":7.5775968922907853E-3},{"$f":"'Population 2016'!AY236/'Population 2016'!AY$5","v":5.6408922615587042E-3},{"$f":"'Population 2016'!AZ236/'Population 2016'!AZ$5","v":4.8754249817351339E-3},{"$f":"'Population 2016'!BA236/'Population 2016'!BA$5","v":1.2416324767868712E-3},{"$f":"'Population 2016'!BB236/'Population 2016'!BB$5","v":5.6827990029208065E-3},{"$f":"'Population 2016'!BC236/'Population 2016'!BC$5","v":0},234]
[null,"Male 30-34",{"$f":"'Population 2016'!C237/'Population 2016'!C$5","v":1.9723694499956555E-2},{"$f":"'Population 2016'!D237/'Population 2016'!D$5","v":1.5971753567481393E-2},{"$f":"'Population 2016'!E237/'Population 2016'!E$5","v":1.2530529394943722E-2},{"$f":"'Population 2016'!F237/'Population 2016'!F$5","v":4.769508112284316E-3},{"$f":"'Population 2016'!G237/'Population 2016'!G$5","v":4.4389108428517293E-3},{"$f":"'Population 2016'!H237/'Population 2016'!H$5","v":2.5809547587163965E-3},{"$f":"'Population 2016'!I237/'Population 2016'!I$5","v":1.9366049744577506E-3},{"$f":"'Population 2016'!J237/'Population 2016'!J$5","v":4.8514301352595305E-3},{"$f":"'Population 2016'!K237/'Population 2016'!K$5","v":2.7878845154278692E-3},{"$f":"'Population 2016'!L237/'Population 2016'!L$5","v":2.3986148396422727E-3},{"$f":"'Population 2016'!M237/'Population 2016'!M$5","v":2.3986148396422727E-3},{"$f":"'Population 2016'!N237/'Population 2016'!N$5","v":4.1552471045884542E-3},{"$f":"'Population 2016'!O237/'Population 2016'!O$5","v":3.2494229302265682E-3},{"$f":"'Population 2016'!P237/'Population 2016'!P$5","v":1.3332581990307676E-2},{"$f":"'Population 2016'!Q237/'Population 2016'!Q$5","v":4.383027226472074E-3},{"$f":"'Population 2016'!R237/'Population 2016'!R$5","v":1.2468728376004684E-2},{"$f":"'Population 2016'!S237/'Population 2016'!S$5","v":9.4197231632334229E-3},{"$f":"'Population 2016'!T237/'Population 2016'!T$5","v":1.6365523049934157E-2},{"$f":"'Population 2016'!U237/'Population 2016'!U$5","v":0},{"$f":"'Population 2016'!V237/'Population 2016'!V$5","v":7.4186580777127328E-3},{"$f":"'Population 2016'!W237/'Population 2016'!W$5","v":6.3570816909510452E-3},{"$f":"'Population 2016'!X237/'Population 2016'!X$5","v":6.3570816909510452E-3},{"$f":"'Population 2016'!Y237/'Population 2016'!Y$5","v":6.1882958935470028E-3},{"$f":"'Population 2016'!Z237/'Population 2016'!Z$5","v":5.0369446923340493E-3},{"$f":"'Population 2016'!AA237/'Population 2016'!AA$5","v":4.8479992452614574E-3},{"$f":"'Population 2016'!AB237/'Population 2016'!AB$5","v":1.4511325138429731E-2},{"$f":"'Population 2016'!AC237/'Population 2016'!AC$5","v":5.8613506653620757E-3},{"$f":"'Population 2016'!AD237/'Population 2016'!AD$5","v":3.2081581004131153E-3},{"$f":"'Population 2016'!AE237/'Population 2016'!AE$5","v":2.741301245392663E-3},{"$f":"'Population 2016'!AF237/'Population 2016'!AF$5","v":2.8502918155906437E-3},{"$f":"'Population 2016'!AG237/'Population 2016'!AG$5","v":2.741301245392663E-3},{"$f":"'Population 2016'!AH237/'Population 2016'!AH$5","v":3.0279668967054607E-3},{"$f":"'Population 2016'!AI237/'Population 2016'!AI$5","v":1.1678077697086359E-2},{"$f":"'Population 2016'!AJ237/'Population 2016'!AJ$5","v":5.3258232718958257E-3},{"$f":"'Population 2016'!AK237/'Population 2016'!AK$5","v":7.0025017914838519E-3},{"$f":"'Population 2016'!AL237/'Population 2016'!AL$5","v":1.7470424433763147E-3},{"$f":"'Population 2016'!AM237/'Population 2016'!AM$5","v":2.499175996320054E-3},{"$f":"'Population 2016'!AN237/'Population 2016'!AN$5","v":2.2362823170066545E-3},{"$f":"'Population 2016'!AO237/'Population 2016'!AO$5","v":2.2362823170066545E-3},{"$f":"'Population 2016'!AP237/'Population 2016'!AP$5","v":4.5020052946118608E-3},{"$f":"'Population 2016'!AQ237/'Population 2016'!AQ$5","v":4.6034964651723567E-3},{"$f":"'Population 2016'!AR237/'Population 2016'!AR$5","v":6.7198614858414857E-3},{"$f":"'Population 2016'!AS237/'Population 2016'!AS$5","v":1.9366049744577506E-3},{"$f":"'Population 2016'!AT237/'Population 2016'!AT$5","v":0},{"$f":"'Population 2016'!AU237/'Population 2016'!AU$5","v":0},{"$f":"'Population 2016'!AV237/'Population 2016'!AV$5","v":2.8613662760004223E-3},{"$f":"'Population 2016'!AW237/'Population 2016'!AW$5","v":3.5847214595155288E-3},{"$f":"'Population 2016'!AX237/'Population 2016'!AX$5","v":5.9675172827989825E-3},{"$f":"'Population 2016'!AY237/'Population 2016'!AY$5","v":5.344083718368471E-3},{"$f":"'Population 2016'!AZ237/'Population 2016'!AZ$5","v":4.4526005142926173E-3},{"$f":"'Population 2016'!BA237/'Population 2016'!BA$5","v":1.1336644353271432E-3},{"$f":"'Population 2016'!BB237/'Population 2016'!BB$5","v":5.1994503635472266E-3},{"$f":"'Population 2016'!BC237/'Population 2016'!BC$5","v":0},235]
[null,"Male 35-39",{"$f":"'Population 2016'!C238/'Population 2016'!C$5","v":1.6672374049976232E-2},{"$f":"'Population 2016'!D238/'Population 2016'!D$5","v":1.5536515947302015E-2},{"$f":"'Population 2016'!E238/'Population 2016'!E$5","v":1.449472386425963E-2},{"$f":"'Population 2016'!F238/'Population 2016'!F$5","v":5.1815606489827451E-3},{"$f":"'Population 2016'!G238/'Population 2016'!G$5","v":4.0058463703783898E-3},{"$f":"'Population 2016'!H238/'Population 2016'!H$5","v":3.5277371576425119E-3},{"$f":"'Population 2016'!I238/'Population 2016'!I$5","v":2.8263964492086088E-3},{"$f":"'Population 2016'!J238/'Population 2016'!J$5","v":5.9958700646028044E-3},{"$f":"'Population 2016'!K238/'Population 2016'!K$5","v":3.5439209941879697E-3},{"$f":"'Population 2016'!L238/'Population 2016'!L$5","v":2.5654059377630931E-3},{"$f":"'Population 2016'!M238/'Population 2016'!M$5","v":2.5654059377630931E-3},{"$f":"'Population 2016'!N238/'Population 2016'!N$5","v":4.5249596129270783E-3},{"$f":"'Population 2016'!O238/'Population 2016'!O$5","v":3.8042024548993968E-3},{"$f":"'Population 2016'!P238/'Population 2016'!P$5","v":1.5845824411134905E-2},{"$f":"'Population 2016'!Q238/'Population 2016'!Q$5","v":5.2878344555293121E-3},{"$f":"'Population 2016'!R238/'Population 2016'!R$5","v":1.8816202693351786E-2},{"$f":"'Population 2016'!S238/'Population 2016'!S$5","v":9.5697749752414515E-3},{"$f":"'Population 2016'!T238/'Population 2016'!T$5","v":1.5423237460621769E-2},{"$f":"'Population 2016'!U238/'Population 2016'!U$5","v":0},{"$f":"'Population 2016'!V238/'Population 2016'!V$5","v":8.1284679555185813E-3},{"$f":"'Population 2016'!W238/'Population 2016'!W$5","v":6.9159819321606237E-3},{"$f":"'Population 2016'!X238/'Population 2016'!X$5","v":6.9159819321606237E-3},{"$f":"'Population 2016'!Y238/'Population 2016'!Y$5","v":7.1064053035722798E-3},{"$f":"'Population 2016'!Z238/'Population 2016'!Z$5","v":4.2723047409612787E-3},{"$f":"'Population 2016'!AA238/'Population 2016'!AA$5","v":5.4884639941215436E-3},{"$f":"'Population 2016'!AB238/'Population 2016'!AB$5","v":1.3970911845081523E-2},{"$f":"'Population 2016'!AC238/'Population 2016'!AC$5","v":6.3123033546329185E-3},{"$f":"'Population 2016'!AD238/'Population 2016'!AD$5","v":3.7329264207823141E-3},{"$f":"'Population 2016'!AE238/'Population 2016'!AE$5","v":3.6294007125329828E-3},{"$f":"'Population 2016'!AF238/'Population 2016'!AF$5","v":2.8201299974362454E-3},{"$f":"'Population 2016'!AG238/'Population 2016'!AG$5","v":3.6294007125329828E-3},{"$f":"'Population 2016'!AH238/'Population 2016'!AH$5","v":4.0088052534296833E-3},{"$f":"'Population 2016'!AI238/'Population 2016'!AI$5","v":1.1560503981100709E-2},{"$f":"'Population 2016'!AJ238/'Population 2016'!AJ$5","v":6.0089786130552384E-3},{"$f":"'Population 2016'!AK238/'Population 2016'!AK$5","v":5.9213255723319464E-3},{"$f":"'Population 2016'!AL238/'Population 2016'!AL$5","v":2.4919742466433729E-3},{"$f":"'Population 2016'!AM238/'Population 2016'!AM$5","v":3.3177466849698108E-3},{"$f":"'Population 2016'!AN238/'Population 2016'!AN$5","v":3.3271517399367295E-3},{"$f":"'Population 2016'!AO238/'Population 2016'!AO$5","v":3.3271517399367295E-3},{"$f":"'Population 2016'!AP238/'Population 2016'!AP$5","v":5.2153512039693735E-3},{"$f":"'Population 2016'!AQ238/'Population 2016'!AQ$5","v":5.4940538170658191E-3},{"$f":"'Population 2016'!AR238/'Population 2016'!AR$5","v":7.1099449449884304E-3},{"$f":"'Population 2016'!AS238/'Population 2016'!AS$5","v":2.8263964492086088E-3},{"$f":"'Population 2016'!AT238/'Population 2016'!AT$5","v":0},{"$f":"'Population 2016'!AU238/'Population 2016'!AU$5","v":0},{"$f":"'Population 2016'!AV238/'Population 2016'!AV$5","v":4.4662654418751984E-3},{"$f":"'Population 2016'!AW238/'Population 2016'!AW$5","v":4.7364085667215812E-3},{"$f":"'Population 2016'!AX238/'Population 2016'!AX$5","v":7.3220287003079596E-3},{"$f":"'Population 2016'!AY238/'Population 2016'!AY$5","v":5.8749732260334753E-3},{"$f":"'Population 2016'!AZ238/'Population 2016'!AZ$5","v":4.9588393324550856E-3},{"$f":"'Population 2016'!BA238/'Population 2016'!BA$5","v":1.1741524508745412E-3},{"$f":"'Population 2016'!BB238/'Population 2016'!BB$5","v":6.5321116121058115E-3},{"$f":"'Population 2016'!BC238/'Population 2016'!BC$5","v":0},236]
[null,"Male 40-44",{"$f":"'Population 2016'!C239/'Population 2016'!C$5","v":1.5123713922096773E-2},{"$f":"'Population 2016'!D239/'Population 2016'!D$5","v":1.564165761959254E-2},{"$f":"'Population 2016'!E239/'Population 2016'!E$5","v":1.6116707841308087E-2},{"$f":"'Population 2016'!F239/'Population 2016'!F$5","v":6.737058975019315E-3},{"$f":"'Population 2016'!G239/'Population 2016'!G$5","v":4.6419098143236073E-3},{"$f":"'Population 2016'!H239/'Population 2016'!H$5","v":4.6042157755996019E-3},{"$f":"'Population 2016'!I239/'Population 2016'!I$5","v":3.9255506239008458E-3},{"$f":"'Population 2016'!J239/'Population 2016'!J$5","v":8.3925594818506748E-3},{"$f":"'Population 2016'!K239/'Population 2016'!K$5","v":5.0087416717856633E-3},{"$f":"'Population 2016'!L239/'Population 2016'!L$5","v":2.7877940685908536E-3},{"$f":"'Population 2016'!M239/'Population 2016'!M$5","v":2.7877940685908536E-3},{"$f":"'Population 2016'!N239/'Population 2016'!N$5","v":4.5490712982535104E-3},{"$f":"'Population 2016'!O239/'Population 2016'!O$5","v":4.7750666230768467E-3},{"$f":"'Population 2016'!P239/'Population 2016'!P$5","v":1.955370224275893E-2},{"$f":"'Population 2016'!Q239/'Population 2016'!Q$5","v":7.1797041162853549E-3},{"$f":"'Population 2016'!R239/'Population 2016'!R$5","v":2.2968009794006494E-2},{"$f":"'Population 2016'!S239/'Population 2016'!S$5","v":1.0433896880864157E-2},{"$f":"'Population 2016'!T239/'Population 2016'!T$5","v":1.5246413498182902E-2},{"$f":"'Population 2016'!U239/'Population 2016'!U$5","v":0},{"$f":"'Population 2016'!V239/'Population 2016'!V$5","v":9.2733225971409171E-3},{"$f":"'Population 2016'!W239/'Population 2016'!W$5","v":8.4325299550918748E-3},{"$f":"'Population 2016'!X239/'Population 2016'!X$5","v":8.4325299550918748E-3},{"$f":"'Population 2016'!Y239/'Population 2016'!Y$5","v":8.8512106325813588E-3},{"$f":"'Population 2016'!Z239/'Population 2016'!Z$5","v":3.8599799064235564E-3},{"$f":"'Population 2016'!AA239/'Population 2016'!AA$5","v":6.1794218144685239E-3},{"$f":"'Population 2016'!AB239/'Population 2016'!AB$5","v":1.427591783261517E-2},{"$f":"'Population 2016'!AC239/'Population 2016'!AC$5","v":6.9649435998849867E-3},{"$f":"'Population 2016'!AD239/'Population 2016'!AD$5","v":3.859466299452901E-3},{"$f":"'Population 2016'!AE239/'Population 2016'!AE$5","v":3.5626649144241728E-3},{"$f":"'Population 2016'!AF239/'Population 2016'!AF$5","v":3.6948227239137973E-3},{"$f":"'Population 2016'!AG239/'Population 2016'!AG$5","v":3.5626649144241728E-3},{"$f":"'Population 2016'!AH239/'Population 2016'!AH$5","v":4.7685834502103784E-3},{"$f":"'Population 2016'!AI239/'Population 2016'!AI$5","v":1.2121029836381136E-2},{"$f":"'Population 2016'!AJ239/'Population 2016'!AJ$5","v":6.6084822797869668E-3},{"$f":"'Population 2016'!AK239/'Population 2016'!AK$5","v":7.2539381215191781E-3},{"$f":"'Population 2016'!AL239/'Population 2016'!AL$5","v":3.1216189851191005E-3},{"$f":"'Population 2016'!AM239/'Population 2016'!AM$5","v":3.8936437623826926E-3},{"$f":"'Population 2016'!AN239/'Population 2016'!AN$5","v":2.508999672739173E-3},{"$f":"'Population 2016'!AO239/'Population 2016'!AO$5","v":2.508999672739173E-3},{"$f":"'Population 2016'!AP239/'Population 2016'!AP$5","v":5.6750630122219935E-3},{"$f":"'Population 2016'!AQ239/'Population 2016'!AQ$5","v":6.4394146983065706E-3},{"$f":"'Population 2016'!AR239/'Population 2016'!AR$5","v":7.8223874934475555E-3},{"$f":"'Population 2016'!AS239/'Population 2016'!AS$5","v":3.9255506239008458E-3},{"$f":"'Population 2016'!AT239/'Population 2016'!AT$5","v":0},{"$f":"'Population 2016'!AU239/'Population 2016'!AU$5","v":0},{"$f":"'Population 2016'!AV239/'Population 2016'!AV$5","v":6.1873086263330166E-3},{"$f":"'Population 2016'!AW239/'Population 2016'!AW$5","v":5.6897919336140095E-3},{"$f":"'Population 2016'!AX239/'Population 2016'!AX$5","v":1.0222727679313032E-2},{"$f":"'Population 2016'!AY239/'Population 2016'!AY$5","v":6.9092133043664513E-3},{"$f":"'Population 2016'!AZ239/'Population 2016'!AZ$5","v":5.5686269997871499E-3},{"$f":"'Population 2016'!BA239/'Population 2016'!BA$5","v":1.2686244871518032E-3},{"$f":"'Population 2016'!BB239/'Population 2016'!BB$5","v":8.4793161307250928E-3},{"$f":"'Population 2016'!BC239/'Population 2016'!BC$5","v":0},237]
[null,"Male 45-49",{"$f":"'Population 2016'!C240/'Population 2016'!C$5","v":1.5256602249901611E-2},{"$f":"'Population 2016'!D240/'Population 2016'!D$5","v":1.6062224308754633E-2},{"$f":"'Population 2016'!E240/'Population 2016'!E$5","v":1.6801128825842986E-2},{"$f":"'Population 2016'!F240/'Population 2016'!F$5","v":7.437548287406644E-3},{"$f":"'Population 2016'!G240/'Population 2016'!G$5","v":3.9246467817896386E-3},{"$f":"'Population 2016'!H240/'Population 2016'!H$5","v":5.6839367990324666E-3},{"$f":"'Population 2016'!I240/'Population 2016'!I$5","v":5.24453563353153E-3},{"$f":"'Population 2016'!J240/'Population 2016'!J$5","v":1.0756076727233523E-2},{"$f":"'Population 2016'!K240/'Population 2016'!K$5","v":7.1114681283371926E-3},{"$f":"'Population 2016'!L240/'Population 2016'!L$5","v":3.7647133575842294E-3},{"$f":"'Population 2016'!M240/'Population 2016'!M$5","v":3.7647133575842294E-3},{"$f":"'Population 2016'!N240/'Population 2016'!N$5","v":6.2931498701987608E-3},{"$f":"'Population 2016'!O240/'Population 2016'!O$5","v":5.7558375684805974E-3},{"$f":"'Population 2016'!P240/'Population 2016'!P$5","v":2.3092527893609827E-2},{"$f":"'Population 2016'!Q240/'Population 2016'!Q$5","v":7.9552531697629873E-3},{"$f":"'Population 2016'!R240/'Population 2016'!R$5","v":2.6467770266673765E-2},{"$f":"'Population 2016'!S240/'Population 2016'!S$5","v":1.1414529605222509E-2},{"$f":"'Population 2016'!T240/'Population 2016'!T$5","v":1.5972322396616147E-2},{"$f":"'Population 2016'!U240/'Population 2016'!U$5","v":0},{"$f":"'Population 2016'!V240/'Population 2016'!V$5","v":1.0059456117721587E-2},{"$f":"'Population 2016'!W240/'Population 2016'!W$5","v":9.2659776832114214E-3},{"$f":"'Population 2016'!X240/'Population 2016'!X$5","v":9.2659776832114214E-3},{"$f":"'Population 2016'!Y240/'Population 2016'!Y$5","v":1.0393316481454985E-2},{"$f":"'Population 2016'!Z240/'Population 2016'!Z$5","v":3.9974215179361299E-3},{"$f":"'Population 2016'!AA240/'Population 2016'!AA$5","v":7.1487559105129894E-3},{"$f":"'Population 2016'!AB240/'Population 2016'!AB$5","v":1.4812237085862255E-2},{"$f":"'Population 2016'!AC240/'Population 2016'!AC$5","v":8.0302676135294085E-3},{"$f":"'Population 2016'!AD240/'Population 2016'!AD$5","v":4.2614165022888829E-3},{"$f":"'Population 2016'!AE240/'Population 2016'!AE$5","v":4.3891621063871294E-3},{"$f":"'Population 2016'!AF240/'Population 2016'!AF$5","v":4.3583827233105608E-3},{"$f":"'Population 2016'!AG240/'Population 2016'!AG$5","v":4.3891621063871294E-3},{"$f":"'Population 2016'!AH240/'Population 2016'!AH$5","v":5.5655146150488093E-3},{"$f":"'Population 2016'!AI240/'Population 2016'!AI$5","v":1.3119039286026774E-2},{"$f":"'Population 2016'!AJ240/'Population 2016'!AJ$5","v":8.0863285280093691E-3},{"$f":"'Population 2016'!AK240/'Population 2016'!AK$5","v":8.3854016066781493E-3},{"$f":"'Population 2016'!AL240/'Population 2016'!AL$5","v":4.1946755112537912E-3},{"$f":"'Population 2016'!AM240/'Population 2016'!AM$5","v":4.5093827759687928E-3},{"$f":"'Population 2016'!AN240/'Population 2016'!AN$5","v":3.708956037962256E-3},{"$f":"'Population 2016'!AO240/'Population 2016'!AO$5","v":3.708956037962256E-3},{"$f":"'Population 2016'!AP240/'Population 2016'!AP$5","v":6.9036031894488216E-3},{"$f":"'Population 2016'!AQ240/'Population 2016'!AQ$5","v":8.2684824902723737E-3},{"$f":"'Population 2016'!AR240/'Population 2016'!AR$5","v":8.7683008958107361E-3},{"$f":"'Population 2016'!AS240/'Population 2016'!AS$5","v":5.24453563353153E-3},{"$f":"'Population 2016'!AT240/'Population 2016'!AT$5","v":0},{"$f":"'Population 2016'!AU240/'Population 2016'!AU$5","v":0},{"$f":"'Population 2016'!AV240/'Population 2016'!AV$5","v":7.3804244535951857E-3},{"$f":"'Population 2016'!AW240/'Population 2016'!AW$5","v":6.6774971017145648E-3},{"$f":"'Population 2016'!AX240/'Population 2016'!AX$5","v":1.2727295960744726E-2},{"$f":"'Population 2016'!AY240/'Population 2016'!AY$5","v":7.9725222606407391E-3},{"$f":"'Population 2016'!AZ240/'Population 2016'!AZ$5","v":6.8342240451933203E-3},{"$f":"'Population 2016'!BA240/'Population 2016'!BA$5","v":2.2268408551068884E-3},{"$f":"'Population 2016'!BB240/'Population 2016'!BB$5","v":1.0177941349095103E-2},{"$f":"'Population 2016'!BC240/'Population 2016'!BC$5","v":0},238]
[null,"Male 50-54",{"$f":"'Population 2016'!C241/'Population 2016'!C$5","v":1.5583711979882751E-2},{"$f":"'Population 2016'!D241/'Population 2016'!D$5","v":1.5983979343329128E-2},{"$f":"'Population 2016'!E241/'Population 2016'!E$5","v":1.6351098589436477E-2},{"$f":"'Population 2016'!F241/'Population 2016'!F$5","v":8.7664177182590775E-3},{"$f":"'Population 2016'!G241/'Population 2016'!G$5","v":4.3035781952038112E-3},{"$f":"'Population 2016'!H241/'Population 2016'!H$5","v":6.192994458729042E-3},{"$f":"'Population 2016'!I241/'Population 2016'!I$5","v":4.3338078887865334E-3},{"$f":"'Population 2016'!J241/'Population 2016'!J$5","v":1.036630370781951E-2},{"$f":"'Population 2016'!K241/'Population 2016'!K$5","v":6.827954448802155E-3},{"$f":"'Population 2016'!L241/'Population 2016'!L$5","v":4.3842231506044192E-3},{"$f":"'Population 2016'!M241/'Population 2016'!M$5","v":4.3842231506044192E-3},{"$f":"'Population 2016'!N241/'Population 2016'!N$5","v":6.2127775857773208E-3},{"$f":"'Population 2016'!O241/'Population 2016'!O$5","v":5.2604987071655724E-3},{"$f":"'Population 2016'!P241/'Population 2016'!P$5","v":2.5774822495210188E-2},{"$f":"'Population 2016'!Q241/'Population 2016'!Q$5","v":9.1773304661519842E-3},{"$f":"'Population 2016'!R241/'Population 2016'!R$5","v":2.5855644860808005E-2},{"$f":"'Population 2016'!S241/'Population 2016'!S$5","v":1.1128548504689561E-2},{"$f":"'Population 2016'!T241/'Population 2016'!T$5","v":1.5830397900448108E-2},{"$f":"'Population 2016'!U241/'Population 2016'!U$5","v":0},{"$f":"'Population 2016'!V241/'Population 2016'!V$5","v":9.7694262751772624E-3},{"$f":"'Population 2016'!W241/'Population 2016'!W$5","v":8.6809300622961317E-3},{"$f":"'Population 2016'!X241/'Population 2016'!X$5","v":8.6809300622961317E-3},{"$f":"'Population 2016'!Y241/'Population 2016'!Y$5","v":1.0055484014562566E-2},{"$f":"'Population 2016'!Z241/'Population 2016'!Z$5","v":3.9316044081977143E-3},{"$f":"'Population 2016'!AA241/'Population 2016'!AA$5","v":7.5527004824081471E-3},{"$f":"'Population 2016'!AB241/'Population 2016'!AB$5","v":1.4593205940452186E-2},{"$f":"'Population 2016'!AC241/'Population 2016'!AC$5","v":8.5184549285198616E-3},{"$f":"'Population 2016'!AD241/'Population 2016'!AD$5","v":4.3544605307231383E-3},{"$f":"'Population 2016'!AE241/'Population 2016'!AE$5","v":4.3737615375927883E-3},{"$f":"'Population 2016'!AF241/'Population 2016'!AF$5","v":6.4546290850412465E-3},{"$f":"'Population 2016'!AG241/'Population 2016'!AG$5","v":4.3737615375927883E-3},{"$f":"'Population 2016'!AH241/'Population 2016'!AH$5","v":5.8181547978414126E-3},{"$f":"'Population 2016'!AI241/'Population 2016'!AI$5","v":1.3039745384548079E-2},{"$f":"'Population 2016'!AJ241/'Population 2016'!AJ$5","v":7.4589409698017457E-3},{"$f":"'Population 2016'!AK241/'Population 2016'!AK$5","v":7.4425153690456736E-3},{"$f":"'Population 2016'!AL241/'Population 2016'!AL$5","v":4.655823770419113E-3},{"$f":"'Population 2016'!AM241/'Population 2016'!AM$5","v":4.8715821957253224E-3},{"$f":"'Population 2016'!AN241/'Population 2016'!AN$5","v":3.436238682229737E-3},{"$f":"'Population 2016'!AO241/'Population 2016'!AO$5","v":3.436238682229737E-3},{"$f":"'Population 2016'!AP241/'Population 2016'!AP$5","v":8.6394115688854366E-3},{"$f":"'Population 2016'!AQ241/'Population 2016'!AQ$5","v":9.3919548418918176E-3},{"$f":"'Population 2016'!AR241/'Population 2016'!AR$5","v":8.9209035054713046E-3},{"$f":"'Population 2016'!AS241/'Population 2016'!AS$5","v":4.3338078887865334E-3},{"$f":"'Population 2016'!AT241/'Population 2016'!AT$5","v":0},{"$f":"'Population 2016'!AU241/'Population 2016'!AU$5","v":0},{"$f":"'Population 2016'!AV241/'Population 2016'!AV$5","v":9.0169992609017008E-3},{"$f":"'Population 2016'!AW241/'Population 2016'!AW$5","v":6.8147843065470741E-3},{"$f":"'Population 2016'!AX241/'Population 2016'!AX$5","v":1.2280051624774781E-2},{"$f":"'Population 2016'!AY241/'Population 2016'!AY$5","v":8.2157828707811881E-3},{"$f":"'Population 2016'!AZ241/'Population 2016'!AZ$5","v":7.8064326846189686E-3},{"$f":"'Population 2016'!BA241/'Population 2016'!BA$5","v":2.3752969121140144E-3},{"$f":"'Population 2016'!BB241/'Population 2016'!BB$5","v":9.791262437596239E-3},{"$f":"'Population 2016'!BC241/'Population 2016'!BC$5","v":0},239]
[null,"Male 55-59",{"$f":"'Population 2016'!C242/'Population 2016'!C$5","v":1.4643271506186974E-2},{"$f":"'Population 2016'!D242/'Population 2016'!D$5","v":1.4340835069393505E-2},{"$f":"'Population 2016'!E242/'Population 2016'!E$5","v":1.4063444887703393E-2},{"$f":"'Population 2016'!F242/'Population 2016'!F$5","v":7.5817666752510948E-3},{"$f":"'Population 2016'!G242/'Population 2016'!G$5","v":3.721647810317761E-3},{"$f":"'Population 2016'!H242/'Population 2016'!H$5","v":6.2902666230022731E-3},{"$f":"'Population 2016'!I242/'Population 2016'!I$5","v":3.6533791139770539E-3},{"$f":"'Population 2016'!J242/'Population 2016'!J$5","v":8.8320907590622218E-3},{"$f":"'Population 2016'!K242/'Population 2016'!K$5","v":5.6938997306620045E-3},{"$f":"'Population 2016'!L242/'Population 2016'!L$5","v":3.9315044557050498E-3},{"$f":"'Population 2016'!M242/'Population 2016'!M$5","v":3.9315044557050498E-3},{"$f":"'Population 2016'!N242/'Population 2016'!N$5","v":6.5503411803473693E-3},{"$f":"'Population 2016'!O242/'Population 2016'!O$5","v":5.3595664794285772E-3},{"$f":"'Population 2016'!P242/'Population 2016'!P$5","v":2.3498253127465344E-2},{"$f":"'Population 2016'!Q242/'Population 2016'!Q$5","v":6.9799414812986918E-3},{"$f":"'Population 2016'!R242/'Population 2016'!R$5","v":2.6055250971416404E-2},{"$f":"'Population 2016'!S242/'Population 2016'!S$5","v":1.0102900236728799E-2},{"$f":"'Population 2016'!T242/'Population 2016'!T$5","v":1.4599610056630201E-2},{"$f":"'Population 2016'!U242/'Population 2016'!U$5","v":0},{"$f":"'Population 2016'!V242/'Population 2016'!V$5","v":8.0903061341311699E-3},{"$f":"'Population 2016'!W242/'Population 2016'!W$5","v":8.3312088587322447E-3},{"$f":"'Population 2016'!X242/'Population 2016'!X$5","v":8.3312088587322447E-3},{"$f":"'Population 2016'!Y242/'Population 2016'!Y$5","v":8.4458116723104566E-3},{"$f":"'Population 2016'!Z242/'Population 2016'!Z$5","v":3.4495908692310819E-3},{"$f":"'Population 2016'!AA242/'Population 2016'!AA$5","v":6.9713657777892941E-3},{"$f":"'Population 2016'!AB242/'Population 2016'!AB$5","v":1.3014953481469351E-2},{"$f":"'Population 2016'!AC242/'Population 2016'!AC$5","v":7.9092550799406726E-3},{"$f":"'Population 2016'!AD242/'Population 2016'!AD$5","v":3.8966839108266031E-3},{"$f":"'Population 2016'!AE242/'Population 2016'!AE$5","v":3.9630797030770337E-3},{"$f":"'Population 2016'!AF242/'Population 2016'!AF$5","v":5.7609072674900839E-3},{"$f":"'Population 2016'!AG242/'Population 2016'!AG$5","v":3.9630797030770337E-3},{"$f":"'Population 2016'!AH242/'Population 2016'!AH$5","v":5.2868673546157922E-3},{"$f":"'Population 2016'!AI242/'Population 2016'!AI$5","v":1.1686280514480707E-2},{"$f":"'Population 2016'!AJ242/'Population 2016'!AJ$5","v":6.5248306053592841E-3},{"$f":"'Population 2016'!AK242/'Population 2016'!AK$5","v":6.1979055353708059E-3},{"$f":"'Population 2016'!AL242/'Population 2016'!AL$5","v":4.1148613894751778E-3},{"$f":"'Population 2016'!AM242/'Population 2016'!AM$5","v":4.2232452343611343E-3},{"$f":"'Population 2016'!AN242/'Population 2016'!AN$5","v":3.9816733936947745E-3},{"$f":"'Population 2016'!AO242/'Population 2016'!AO$5","v":3.9816733936947745E-3},{"$f":"'Population 2016'!AP242/'Population 2016'!AP$5","v":7.0859026996179632E-3},{"$f":"'Population 2016'!AQ242/'Population 2016'!AQ$5","v":8.8987230777662074E-3},{"$f":"'Population 2016'!AR242/'Population 2016'!AR$5","v":8.1140032832952725E-3},{"$f":"'Population 2016'!AS242/'Population 2016'!AS$5","v":3.6533791139770539E-3},{"$f":"'Population 2016'!AT242/'Population 2016'!AT$5","v":0},{"$f":"'Population 2016'!AU242/'Population 2016'!AU$5","v":0},{"$f":"'Population 2016'!AV242/'Population 2016'!AV$5","v":9.8722415795586532E-3},{"$f":"'Population 2016'!AW242/'Population 2016'!AW$5","v":6.4067362255171151E-3},{"$f":"'Population 2016'!AX242/'Population 2016'!AX$5","v":1.0529409509692424E-2},{"$f":"'Population 2016'!AY242/'Population 2016'!AY$5","v":7.6405250757320764E-3},{"$f":"'Population 2016'!AZ242/'Population 2016'!AZ$5","v":7.0326926727683784E-3},{"$f":"'Population 2016'!BA242/'Population 2016'!BA$5","v":1.9029367307277045E-3},{"$f":"'Population 2016'!BB242/'Population 2016'!BB$5","v":8.3619314611629372E-3},{"$f":"'Population 2016'!BC242/'Population 2016'!BC$5","v":0},240]
[null,"Male 60-64",{"$f":"'Population 2016'!C243/'Population 2016'!C$5","v":1.2977056319095542E-2},{"$f":"'Population 2016'!D243/'Population 2016'!D$5","v":1.2925090226225757E-2},{"$f":"'Population 2016'!E243/'Population 2016'!E$5","v":1.287742770217374E-2},{"$f":"'Population 2016'!F243/'Population 2016'!F$5","v":7.035797064125676E-3},{"$f":"'Population 2016'!G243/'Population 2016'!G$5","v":3.0720511016077518E-3},{"$f":"'Population 2016'!H243/'Population 2016'!H$5","v":5.9044203713851228E-3},{"$f":"'Population 2016'!I243/'Population 2016'!I$5","v":3.8522736789213634E-3},{"$f":"'Population 2016'!J243/'Population 2016'!J$5","v":8.3925594818506748E-3},{"$f":"'Population 2016'!K243/'Population 2016'!K$5","v":6.3554316495770917E-3},{"$f":"'Population 2016'!L243/'Population 2016'!L$5","v":3.7408860578526837E-3},{"$f":"'Population 2016'!M243/'Population 2016'!M$5","v":3.7408860578526837E-3},{"$f":"'Population 2016'!N243/'Population 2016'!N$5","v":5.3286824571414796E-3},{"$f":"'Population 2016'!O243/'Population 2016'!O$5","v":4.6462785191349401E-3},{"$f":"'Population 2016'!P243/'Population 2016'!P$5","v":2.0770877944325482E-2},{"$f":"'Population 2016'!Q243/'Population 2016'!Q$5","v":5.8988731037238106E-3},{"$f":"'Population 2016'!R243/'Population 2016'!R$5","v":2.2049821685207856E-2},{"$f":"'Population 2016'!S243/'Population 2016'!S$5","v":8.6103260361077624E-3},{"$f":"'Population 2016'!T243/'Population 2016'!T$5","v":1.2559154595329055E-2},{"$f":"'Population 2016'!U243/'Population 2016'!U$5","v":0},{"$f":"'Population 2016'!V243/'Population 2016'!V$5","v":6.5867303714671694E-3},{"$f":"'Population 2016'!W243/'Population 2016'!W$5","v":7.1709188842913078E-3},{"$f":"'Population 2016'!X243/'Population 2016'!X$5","v":7.1709188842913078E-3},{"$f":"'Population 2016'!Y243/'Population 2016'!Y$5","v":7.4521867696856967E-3},{"$f":"'Population 2016'!Z243/'Population 2016'!Z$5","v":3.0701745895625678E-3},{"$f":"'Population 2016'!AA243/'Population 2016'!AA$5","v":6.0379083378013058E-3},{"$f":"'Population 2016'!AB243/'Population 2016'!AB$5","v":1.1778553370930268E-2},{"$f":"'Population 2016'!AC243/'Population 2016'!AC$5","v":6.8284166389130799E-3},{"$f":"'Population 2016'!AD243/'Population 2016'!AD$5","v":3.4984554691279914E-3},{"$f":"'Population 2016'!AE243/'Population 2016'!AE$5","v":3.6602018501216645E-3},{"$f":"'Population 2016'!AF243/'Population 2016'!AF$5","v":4.7806481774721379E-3},{"$f":"'Population 2016'!AG243/'Population 2016'!AG$5","v":3.6602018501216645E-3},{"$f":"'Population 2016'!AH243/'Population 2016'!AH$5","v":4.6181139295765486E-3},{"$f":"'Population 2016'!AI243/'Population 2016'!AI$5","v":9.833810919590515E-3},{"$f":"'Population 2016'!AJ243/'Population 2016'!AJ$5","v":5.4931266207511919E-3},{"$f":"'Population 2016'!AK243/'Population 2016'!AK$5","v":5.8836101228266473E-3},{"$f":"'Population 2016'!AL243/'Population 2016'!AL$5","v":4.2035437470069707E-3},{"$f":"'Population 2016'!AM243/'Population 2016'!AM$5","v":3.5024683890456407E-3},{"$f":"'Population 2016'!AN243/'Population 2016'!AN$5","v":2.945347441911203E-3},{"$f":"'Population 2016'!AO243/'Population 2016'!AO$5","v":2.945347441911203E-3},{"$f":"'Population 2016'!AP243/'Population 2016'!AP$5","v":7.1096808965965472E-3},{"$f":"'Population 2016'!AQ243/'Population 2016'!AQ$5","v":7.2614676385159204E-3},{"$f":"'Population 2016'!AR243/'Population 2016'!AR$5","v":7.1291038127706333E-3},{"$f":"'Population 2016'!AS243/'Population 2016'!AS$5","v":3.8522736789213634E-3},{"$f":"'Population 2016'!AT243/'Population 2016'!AT$5","v":0},{"$f":"'Population 2016'!AU243/'Population 2016'!AU$5","v":0},{"$f":"'Population 2016'!AV243/'Population 2016'!AV$5","v":9.2704043923556127E-3},{"$f":"'Population 2016'!AW243/'Population 2016'!AW$5","v":5.7927573372383917E-3},{"$f":"'Population 2016'!AX243/'Population 2016'!AX$5","v":9.4943583321619798E-3},{"$f":"'Population 2016'!AY243/'Population 2016'!AY$5","v":6.7883479697683673E-3},{"$f":"'Population 2016'!AZ243/'Population 2016'!AZ$5","v":6.4516685746500912E-3},{"$f":"'Population 2016'!BA243/'Population 2016'!BA$5","v":1.8759447203627725E-3},{"$f":"'Population 2016'!BB243/'Population 2016'!BB$5","v":6.2075775256692656E-3},{"$f":"'Population 2016'!BC243/'Population 2016'!BC$5","v":0},241]
[null,"Male 65-69",{"$f":"'Population 2016'!C244/'Population 2016'!C$5","v":1.147439599699468E-2},{"$f":"'Population 2016'!D244/'Population 2016'!D$5","v":1.1746525434504074E-2},{"$f":"'Population 2016'!E244/'Population 2016'!E$5","v":1.1996118489210995E-2},{"$f":"'Population 2016'!F244/'Population 2016'!F$5","v":8.395570435230492E-3},{"$f":"'Population 2016'!G244/'Population 2016'!G$5","v":3.2750500730796299E-3},{"$f":"'Population 2016'!H244/'Population 2016'!H$5","v":6.5626286829673199E-3},{"$f":"'Population 2016'!I244/'Population 2016'!I$5","v":4.2186584038187754E-3},{"$f":"'Population 2016'!J244/'Population 2016'!J$5","v":9.2882081222062807E-3},{"$f":"'Population 2016'!K244/'Population 2016'!K$5","v":7.2059726881822045E-3},{"$f":"'Population 2016'!L244/'Population 2016'!L$5","v":4.0665258208504758E-3},{"$f":"'Population 2016'!M244/'Population 2016'!M$5","v":4.0665258208504758E-3},{"$f":"'Population 2016'!N244/'Population 2016'!N$5","v":5.2804590864886152E-3},{"$f":"'Population 2016'!O244/'Population 2016'!O$5","v":4.8741343953398516E-3},{"$f":"'Population 2016'!P244/'Population 2016'!P$5","v":2.0759607798940607E-2},{"$f":"'Population 2016'!Q244/'Population 2016'!Q$5","v":5.969377563130868E-3},{"$f":"'Population 2016'!R244/'Population 2016'!R$5","v":1.9840847394474902E-2},{"$f":"'Population 2016'!S244/'Population 2016'!S$5","v":8.7930361836704787E-3},{"$f":"'Population 2016'!T244/'Population 2016'!T$5","v":1.2519601866888783E-2},{"$f":"'Population 2016'!U244/'Population 2016'!U$5","v":0},{"$f":"'Population 2016'!V244/'Population 2016'!V$5","v":6.3959212645301137E-3},{"$f":"'Population 2016'!W244/'Population 2016'!W$5","v":7.9128507834408651E-3},{"$f":"'Population 2016'!X244/'Population 2016'!X$5","v":7.9128507834408651E-3},{"$f":"'Population 2016'!Y244/'Population 2016'!Y$5","v":7.7820702373571169E-3},{"$f":"'Population 2016'!Z244/'Population 2016'!Z$5","v":2.7256026621085092E-3},{"$f":"'Population 2016'!AA244/'Population 2016'!AA$5","v":5.5688542789888362E-3},{"$f":"'Population 2016'!AB244/'Population 2016'!AB$5","v":1.0793936726610238E-2},{"$f":"'Population 2016'!AC244/'Population 2016'!AC$5","v":6.4395216591749222E-3},{"$f":"'Population 2016'!AD244/'Population 2016'!AD$5","v":3.6808217648591312E-3},{"$f":"'Population 2016'!AE244/'Population 2016'!AE$5","v":3.8347416297908601E-3},{"$f":"'Population 2016'!AF244/'Population 2016'!AF$5","v":5.2933990860969098E-3},{"$f":"'Population 2016'!AG244/'Population 2016'!AG$5","v":3.8347416297908601E-3},{"$f":"'Population 2016'!AH244/'Population 2016'!AH$5","v":4.0050899566239102E-3},{"$f":"'Population 2016'!AI244/'Population 2016'!AI$5","v":9.7586184268089946E-3},{"$f":"'Population 2016'!AJ244/'Population 2016'!AJ$5","v":5.939268884365502E-3},{"$f":"'Population 2016'!AK244/'Population 2016'!AK$5","v":5.8961819393284131E-3},{"$f":"'Population 2016'!AL244/'Population 2016'!AL$5","v":4.4784590553555272E-3},{"$f":"'Population 2016'!AM244/'Population 2016'!AM$5","v":3.0497191143499789E-3},{"$f":"'Population 2016'!AN244/'Population 2016'!AN$5","v":3.436238682229737E-3},{"$f":"'Population 2016'!AO244/'Population 2016'!AO$5","v":3.436238682229737E-3},{"$f":"'Population 2016'!AP244/'Population 2016'!AP$5","v":8.3461471394829043E-3},{"$f":"'Population 2016'!AQ244/'Population 2016'!AQ$5","v":7.1039074916424616E-3},{"$f":"'Population 2016'!AR244/'Population 2016'!AR$5","v":7.0593744451447086E-3},{"$f":"'Population 2016'!AS244/'Population 2016'!AS$5","v":4.2186584038187754E-3},{"$f":"'Population 2016'!AT244/'Population 2016'!AT$5","v":0},{"$f":"'Population 2016'!AU244/'Population 2016'!AU$5","v":0},{"$f":"'Population 2016'!AV244/'Population 2016'!AV$5","v":1.0843627916798649E-2},{"$f":"'Population 2016'!AW244/'Population 2016'!AW$5","v":5.0109829763866007E-3},{"$f":"'Population 2016'!AX244/'Population 2016'!AX$5","v":1.0414403823300153E-2},{"$f":"'Population 2016'!AY244/'Population 2016'!AY$5","v":7.5670879104066582E-3},{"$f":"'Population 2016'!AZ244/'Population 2016'!AZ$5","v":7.2628012264785912E-3},{"$f":"'Population 2016'!BA244/'Population 2016'!BA$5","v":1.3091125026992011E-3},{"$f":"'Population 2016'!BB244/'Population 2016'!BB$5","v":5.6827990029208065E-3},{"$f":"'Population 2016'!BC244/'Population 2016'!BC$5","v":0},242]
[null,"Male 70-74",{"$f":"'Population 2016'!C245/'Population 2016'!C$5","v":7.4979683419114452E-3},{"$f":"'Population 2016'!D245/'Population 2016'!D$5","v":7.75847735297282E-3},{"$f":"'Population 2016'!E245/'Population 2016'!E$5","v":7.997412326140662E-3},{"$f":"'Population 2016'!F245/'Population 2016'!F$5","v":6.2219933041462788E-3},{"$f":"'Population 2016'!G245/'Population 2016'!G$5","v":2.7337194824879553E-3},{"$f":"'Population 2016'!H245/'Population 2016'!H$5","v":4.9641227834105565E-3},{"$f":"'Population 2016'!I245/'Population 2016'!I$5","v":2.7217150992379199E-3},{"$f":"'Population 2016'!J245/'Population 2016'!J$5","v":6.3192987402867738E-3},{"$f":"'Population 2016'!K245/'Population 2016'!K$5","v":4.6543495723668669E-3},{"$f":"'Population 2016'!L245/'Population 2016'!L$5","v":2.8989881340047339E-3},{"$f":"'Population 2016'!M245/'Population 2016'!M$5","v":2.8989881340047339E-3},{"$f":"'Population 2016'!N245/'Population 2016'!N$5","v":4.1230981908198776E-3},{"$f":"'Population 2016'!O245/'Population 2016'!O$5","v":3.1701687124161639E-3},{"$f":"'Population 2016'!P245/'Population 2016'!P$5","v":1.6488222698072805E-2},{"$f":"'Population 2016'!Q245/'Population 2016'!Q$5","v":4.9940658746665725E-3},{"$f":"'Population 2016'!R245/'Population 2016'!R$5","v":1.5196678554319476E-2},{"$f":"'Population 2016'!S245/'Population 2016'!S$5","v":6.3083547083610638E-3},{"$f":"'Population 2016'!T245/'Population 2016'!T$5","v":8.7318464609614562E-3},{"$f":"'Population 2016'!U245/'Population 2016'!U$5","v":0},{"$f":"'Population 2016'!V245/'Population 2016'!V$5","v":4.1978003526152293E-3},{"$f":"'Population 2016'!W245/'Population 2016'!W$5","v":6.2067342576432056E-3},{"$f":"'Population 2016'!X245/'Population 2016'!X$5","v":6.2067342576432056E-3},{"$f":"'Population 2016'!Y245/'Population 2016'!Y$5","v":5.2145434889747377E-3},{"$f":"'Population 2016'!Z245/'Population 2016'!Z$5","v":1.6299413646984125E-3},{"$f":"'Population 2016'!AA245/'Population 2016'!AA$5","v":4.0301443636776759E-3},{"$f":"'Population 2016'!AB245/'Population 2016'!AB$5","v":7.2607801193412692E-3},{"$f":"'Population 2016'!AC245/'Population 2016'!AC$5","v":4.7081115632130171E-3},{"$f":"'Population 2016'!AD245/'Population 2016'!AD$5","v":2.7206073914176187E-3},{"$f":"'Population 2016'!AE245/'Population 2016'!AE$5","v":2.7156336307354286E-3},{"$f":"'Population 2016'!AF245/'Population 2016'!AF$5","v":4.4790299959281549E-3},{"$f":"'Population 2016'!AG245/'Population 2016'!AG$5","v":2.7156336307354286E-3},{"$f":"'Population 2016'!AH245/'Population 2016'!AH$5","v":2.8124796819705934E-3},{"$f":"'Population 2016'!AI245/'Population 2016'!AI$5","v":6.819275527167731E-3},{"$f":"'Population 2016'!AJ245/'Population 2016'!AJ$5","v":3.959512589577001E-3},{"$f":"'Population 2016'!AK245/'Population 2016'!AK$5","v":4.7018593716606112E-3},{"$f":"'Population 2016'!AL245/'Population 2016'!AL$5","v":3.4231390007271952E-3},{"$f":"'Population 2016'!AM245/'Population 2016'!AM$5","v":1.8291070697704743E-3},{"$f":"'Population 2016'!AN245/'Population 2016'!AN$5","v":2.2362823170066545E-3},{"$f":"'Population 2016'!AO245/'Population 2016'!AO$5","v":2.2362823170066545E-3},{"$f":"'Population 2016'!AP245/'Population 2016'!AP$5","v":6.3884089215795062E-3},{"$f":"'Population 2016'!AQ245/'Population 2016'!AQ$5","v":5.1994848468241359E-3},{"$f":"'Population 2016'!AR245/'Population 2016'!AR$5","v":5.0488072156751615E-3},{"$f":"'Population 2016'!AS245/'Population 2016'!AS$5","v":2.7217150992379199E-3},{"$f":"'Population 2016'!AT245/'Population 2016'!AT$5","v":0},{"$f":"'Population 2016'!AU245/'Population 2016'!AU$5","v":0},{"$f":"'Population 2016'!AV245/'Population 2016'!AV$5","v":8.7108013937282226E-3},{"$f":"'Population 2016'!AW245/'Population 2016'!AW$5","v":3.8478552687778388E-3},{"$f":"'Population 2016'!AX245/'Population 2016'!AX$5","v":7.2198014235148296E-3},{"$f":"'Population 2016'!AY245/'Population 2016'!AY$5","v":5.8474342890364435E-3},{"$f":"'Population 2016'!AZ245/'Population 2016'!AZ$5","v":5.53123435980924E-3},{"$f":"'Population 2016'!BA245/'Population 2016'!BA$5","v":6.6130425394083357E-4},{"$f":"'Population 2016'!BB245/'Population 2016'!BB$5","v":3.6320197758643309E-3},{"$f":"'Population 2016'!BC245/'Population 2016'!BC$5","v":0},243]
[null,"Male 75-79",{"$f":"'Population 2016'!C246/'Population 2016'!C$5","v":5.6835315584223087E-3},{"$f":"'Population 2016'!D246/'Population 2016'!D$5","v":5.6923212347055547E-3},{"$f":"'Population 2016'!E246/'Population 2016'!E$5","v":5.7003829944824421E-3},{"$f":"'Population 2016'!F246/'Population 2016'!F$5","v":4.0896214267319084E-3},{"$f":"'Population 2016'!G246/'Population 2016'!G$5","v":1.7051913603637742E-3},{"$f":"'Population 2016'!H246/'Population 2016'!H$5","v":3.4531618316997015E-3},{"$f":"'Population 2016'!I246/'Population 2016'!I$5","v":1.8528598944811993E-3},{"$f":"'Population 2016'!J246/'Population 2016'!J$5","v":5.0753422953484324E-3},{"$f":"'Population 2016'!K246/'Population 2016'!K$5","v":2.8587629353116289E-3},{"$f":"'Population 2016'!L246/'Population 2016'!L$5","v":2.4700967388369102E-3},{"$f":"'Population 2016'!M246/'Population 2016'!M$5","v":2.4700967388369102E-3},{"$f":"'Population 2016'!N246/'Population 2016'!N$5","v":3.3917104025847728E-3},{"$f":"'Population 2016'!O246/'Population 2016'!O$5","v":2.1398638808809108E-3},{"$f":"'Population 2016'!P246/'Population 2016'!P$5","v":1.3783387805702693E-2},{"$f":"'Population 2016'!Q246/'Population 2016'!Q$5","v":3.8307422944501238E-3},{"$f":"'Population 2016'!R246/'Population 2016'!R$5","v":1.2521956672166924E-2},{"$f":"'Population 2016'!S246/'Population 2016'!S$5","v":4.4653653938153941E-3},{"$f":"'Population 2016'!T246/'Population 2016'!T$5","v":6.519220299390888E-3},{"$f":"'Population 2016'!U246/'Population 2016'!U$5","v":0},{"$f":"'Population 2016'!V246/'Population 2016'!V$5","v":2.8239747826684274E-3},{"$f":"'Population 2016'!W246/'Population 2016'!W$5","v":3.9351806457095422E-3},{"$f":"'Population 2016'!X246/'Population 2016'!X$5","v":3.9351806457095422E-3},{"$f":"'Population 2016'!Y246/'Population 2016'!Y$5","v":3.9029586175100555E-3},{"$f":"'Population 2016'!Z246/'Population 2016'!Z$5","v":1.130505649624552E-3},{"$f":"'Population 2016'!AA246/'Population 2016'!AA$5","v":2.9877281904811259E-3},{"$f":"'Population 2016'!AB246/'Population 2016'!AB$5","v":5.3570514723191714E-3},{"$f":"'Population 2016'!AC246/'Population 2016'!AC$5","v":3.5827984303536671E-3},{"$f":"'Population 2016'!AD246/'Population 2016'!AD$5","v":1.8124976738992892E-3},{"$f":"'Population 2016'!AE246/'Population 2016'!AE$5","v":1.8532017782523435E-3},{"$f":"'Population 2016'!AF246/'Population 2016'!AF$5","v":3.0161818154398347E-3},{"$f":"'Population 2016'!AG246/'Population 2016'!AG$5","v":1.8532017782523435E-3},{"$f":"'Population 2016'!AH246/'Population 2016'!AH$5","v":1.9189508001820495E-3},{"$f":"'Population 2016'!AI246/'Population 2016'!AI$5","v":5.0283270627351478E-3},{"$f":"'Population 2016'!AJ246/'Population 2016'!AJ$5","v":2.5374341243063884E-3},{"$f":"'Population 2016'!AK246/'Population 2016'!AK$5","v":3.6332549690104724E-3},{"$f":"'Population 2016'!AL246/'Population 2016'!AL$5","v":2.2259271740479947E-3},{"$f":"'Population 2016'!AM246/'Population 2016'!AM$5","v":1.3039179111235064E-3},{"$f":"'Population 2016'!AN246/'Population 2016'!AN$5","v":1.1999563652230827E-3},{"$f":"'Population 2016'!AO246/'Population 2016'!AO$5","v":1.1999563652230827E-3},{"$f":"'Population 2016'!AP246/'Population 2016'!AP$5","v":4.8824564462692007E-3},{"$f":"'Population 2016'!AQ246/'Population 2016'!AQ$5","v":3.3156135255110429E-3},{"$f":"'Population 2016'!AR246/'Population 2016'!AR$5","v":3.670259845485959E-3},{"$f":"'Population 2016'!AS246/'Population 2016'!AS$5","v":1.8528598944811993E-3},{"$f":"'Population 2016'!AT246/'Population 2016'!AT$5","v":0},{"$f":"'Population 2016'!AU246/'Population 2016'!AU$5","v":0},{"$f":"'Population 2016'!AV246/'Population 2016'!AV$5","v":6.3140111920599725E-3},{"$f":"'Population 2016'!AW246/'Population 2016'!AW$5","v":2.5665080236744156E-3},{"$f":"'Population 2016'!AX246/'Population 2016'!AX$5","v":6.2741991131783741E-3},{"$f":"'Population 2016'!AY246/'Population 2016'!AY$5","v":4.0375141519537342E-3},{"$f":"'Population 2016'!AZ246/'Population 2016'!AZ$5","v":4.1275721821769423E-3},{"$f":"'Population 2016'!BA246/'Population 2016'!BA$5","v":4.318721658389117E-4},{"$f":"'Population 2016'!BB246/'Population 2016'!BB$5","v":2.5410328469925359E-3},{"$f":"'Population 2016'!BC246/'Population 2016'!BC$5","v":0},244]
[null,"Male 80-84",{"$f":"'Population 2016'!C247/'Population 2016'!C$5","v":4.206426683976223E-3},{"$f":"'Population 2016'!D247/'Population 2016'!D$5","v":3.9415901333098597E-3},{"$f":"'Population 2016'!E247/'Population 2016'!E$5","v":3.6986860054659923E-3},{"$f":"'Population 2016'!F247/'Population 2016'!F$5","v":3.3994334277620396E-3},{"$f":"'Population 2016'!G247/'Population 2016'!G$5","v":1.0285281221241813E-3},{"$f":"'Population 2016'!H247/'Population 2016'!H$5","v":2.4771977834916166E-3},{"$f":"'Population 2016'!I247/'Population 2016'!I$5","v":1.36085754961896E-3},{"$f":"'Population 2016'!J247/'Population 2016'!J$5","v":3.5328363036248893E-3},{"$f":"'Population 2016'!K247/'Population 2016'!K$5","v":1.9137173368615036E-3},{"$f":"'Population 2016'!L247/'Population 2016'!L$5","v":1.6123139485012628E-3},{"$f":"'Population 2016'!M247/'Population 2016'!M$5","v":1.6123139485012628E-3},{"$f":"'Population 2016'!N247/'Population 2016'!N$5","v":2.6281737005810915E-3},{"$f":"'Population 2016'!O247/'Population 2016'!O$5","v":1.3374149255505692E-3},{"$f":"'Population 2016'!P247/'Population 2016'!P$5","v":1.0267102445621549E-2},{"$f":"'Population 2016'!Q247/'Population 2016'!Q$5","v":2.6321664845301465E-3},{"$f":"'Population 2016'!R247/'Population 2016'!R$5","v":9.1286527918241333E-3},{"$f":"'Population 2016'!S247/'Population 2016'!S$5","v":3.2958439178704647E-3},{"$f":"'Population 2016'!T247/'Population 2016'!T$5","v":5.1348748039813314E-3},{"$f":"'Population 2016'!U247/'Population 2016'!U$5","v":0},{"$f":"'Population 2016'!V247/'Population 2016'!V$5","v":2.0683707191976857E-3},{"$f":"'Population 2016'!W247/'Population 2016'!W$5","v":2.8500643879225255E-3},{"$f":"'Population 2016'!X247/'Population 2016'!X$5","v":2.8500643879225255E-3},{"$f":"'Population 2016'!Y247/'Population 2016'!Y$5","v":2.7702262285178294E-3},{"$f":"'Population 2016'!Z247/'Population 2016'!Z$5","v":7.5108936995603806E-4},{"$f":"'Population 2016'!AA247/'Population 2016'!AA$5","v":2.0742022260800698E-3},{"$f":"'Population 2016'!AB247/'Population 2016'!AB$5","v":3.69691821131388E-3},{"$f":"'Population 2016'!AC247/'Population 2016'!AC$5","v":2.5216115973447574E-3},{"$f":"'Population 2016'!AD247/'Population 2016'!AD$5","v":1.2840075923927202E-3},{"$f":"'Population 2016'!AE247/'Population 2016'!AE$5","v":1.3809176685592255E-3},{"$f":"'Population 2016'!AF247/'Population 2016'!AF$5","v":2.1264081798850836E-3},{"$f":"'Population 2016'!AG247/'Population 2016'!AG$5","v":1.3809176685592255E-3},{"$f":"'Population 2016'!AH247/'Population 2016'!AH$5","v":1.2706315075745613E-3},{"$f":"'Population 2016'!AI247/'Population 2016'!AI$5","v":3.7350161868929914E-3},{"$f":"'Population 2016'!AJ247/'Population 2016'!AJ$5","v":1.5754398683880321E-3},{"$f":"'Population 2016'!AK247/'Population 2016'!AK$5","v":2.43893240134267E-3},{"$f":"'Population 2016'!AL247/'Population 2016'!AL$5","v":1.6849647931040598E-3},{"$f":"'Population 2016'!AM247/'Population 2016'!AM$5","v":7.0991086272279794E-4},{"$f":"'Population 2016'!AN247/'Population 2016'!AN$5","v":8.7269553834406024E-4},{"$f":"'Population 2016'!AO247/'Population 2016'!AO$5","v":8.7269553834406024E-4},{"$f":"'Population 2016'!AP247/'Population 2016'!AP$5","v":3.7965854509138756E-3},{"$f":"'Population 2016'!AQ247/'Population 2016'!AQ$5","v":1.9934783800076724E-3},{"$f":"'Population 2016'!AR247/'Population 2016'!AR$5","v":2.6338987649881939E-3},{"$f":"'Population 2016'!AS247/'Population 2016'!AS$5","v":1.36085754961896E-3},{"$f":"'Population 2016'!AT247/'Population 2016'!AT$5","v":0},{"$f":"'Population 2016'!AU247/'Population 2016'!AU$5","v":0},{"$f":"'Population 2016'!AV247/'Population 2016'!AV$5","v":4.6352021961778064E-3},{"$f":"'Population 2016'!AW247/'Population 2016'!AW$5","v":1.8610043321740191E-3},{"$f":"'Population 2016'!AX247/'Population 2016'!AX$5","v":4.4085513117037454E-3},{"$f":"'Population 2016'!AY247/'Population 2016'!AY$5","v":3.0721214161133379E-3},{"$f":"'Population 2016'!AZ247/'Population 2016'!AZ$5","v":3.2675414626850215E-3},{"$f":"'Population 2016'!BA247/'Population 2016'!BA$5","v":2.834161088317858E-4},{"$f":"'Population 2016'!BB247/'Population 2016'!BB$5","v":1.2981363457461868E-3},{"$f":"'Population 2016'!BC247/'Population 2016'!BC$5","v":0},245]
[null,"Male 85-89",{"$f":"'Population 2016'!C248/'Population 2016'!C$5","v":2.3204346470537124E-3},{"$f":"'Population 2016'!D248/'Population 2016'!D$5","v":2.1419559285232241E-3},{"$f":"'Population 2016'!E248/'Population 2016'!E$5","v":1.9782579142036106E-3},{"$f":"'Population 2016'!F248/'Population 2016'!F$5","v":1.4833891321143445E-3},{"$f":"'Population 2016'!G248/'Population 2016'!G$5","v":7.0372976776917663E-4},{"$f":"'Population 2016'!H248/'Population 2016'!H$5","v":1.2742653519793264E-3},{"$f":"'Population 2016'!I248/'Population 2016'!I$5","v":8.374507997655138E-4},{"$f":"'Population 2016'!J248/'Population 2016'!J$5","v":1.4678686050272427E-3},{"$f":"'Population 2016'!K248/'Population 2016'!K$5","v":8.0328875868260641E-4},{"$f":"'Population 2016'!L248/'Population 2016'!L$5","v":8.3395549060410145E-4},{"$f":"'Population 2016'!M248/'Population 2016'!M$5","v":8.3395549060410145E-4},{"$f":"'Population 2016'!N248/'Population 2016'!N$5","v":1.50296171868093E-3},{"$f":"'Population 2016'!O248/'Population 2016'!O$5","v":7.4300829197253846E-4},{"$f":"'Population 2016'!P248/'Population 2016'!P$5","v":5.0377549870393324E-3},{"$f":"'Population 2016'!Q248/'Population 2016'!Q$5","v":1.1868250666854678E-3},{"$f":"'Population 2016'!R248/'Population 2016'!R$5","v":4.7639325065204664E-3},{"$f":"'Population 2016'!S248/'Population 2016'!S$5","v":1.7441316501639096E-3},{"$f":"'Population 2016'!T248/'Population 2016'!T$5","v":2.8571029720385476E-3},{"$f":"'Population 2016'!U248/'Population 2016'!U$5","v":0},{"$f":"'Population 2016'!V248/'Population 2016'!V$5","v":8.3956007052304589E-4},{"$f":"'Population 2016'!W248/'Population 2016'!W$5","v":1.3923479693291236E-3},{"$f":"'Population 2016'!X248/'Population 2016'!X$5","v":1.3923479693291236E-3},{"$f":"'Population 2016'!Y248/'Population 2016'!Y$5","v":1.1406813882132239E-3},{"$f":"'Population 2016'!Z248/'Population 2016'!Z$5","v":3.6780149559702892E-4},{"$f":"'Population 2016'!AA248/'Population 2016'!AA$5","v":1.0045463695813792E-3},{"$f":"'Population 2016'!AB248/'Population 2016'!AB$5","v":2.0367849503085881E-3},{"$f":"'Population 2016'!AC248/'Population 2016'!AC$5","v":1.2514971422424761E-3},{"$f":"'Population 2016'!AD248/'Population 2016'!AD$5","v":7.1829989951244927E-4},{"$f":"'Population 2016'!AE248/'Population 2016'!AE$5","v":7.2382673333401776E-4},{"$f":"'Population 2016'!AF248/'Population 2016'!AF$5","v":1.0104209081723446E-3},{"$f":"'Population 2016'!AG248/'Population 2016'!AG$5","v":7.2382673333401776E-4},{"$f":"'Population 2016'!AH248/'Population 2016'!AH$5","v":5.6100981767180928E-4},{"$f":"'Population 2016'!AI248/'Population 2016'!AI$5","v":2.0096902616151893E-3},{"$f":"'Population 2016'!AJ248/'Population 2016'!AJ$5","v":7.8074896132504252E-4},{"$f":"'Population 2016'!AK248/'Population 2016'!AK$5","v":1.4960461637101945E-3},{"$f":"'Population 2016'!AL248/'Population 2016'!AL$5","v":8.070094535393129E-4},{"$f":"'Population 2016'!AM248/'Population 2016'!AM$5","v":3.1511349518818072E-4},{"$f":"'Population 2016'!AN248/'Population 2016'!AN$5","v":5.4543471146503762E-4},{"$f":"'Population 2016'!AO248/'Population 2016'!AO$5","v":5.4543471146503762E-4},{"$f":"'Population 2016'!AP248/'Population 2016'!AP$5","v":2.1004073997748997E-3},{"$f":"'Population 2016'!AQ248/'Population 2016'!AQ$5","v":9.727626459143969E-4},{"$f":"'Population 2016'!AR248/'Population 2016'!AR$5","v":1.351591288774708E-3},{"$f":"'Population 2016'!AS248/'Population 2016'!AS$5","v":8.374507997655138E-4},{"$f":"'Population 2016'!AT248/'Population 2016'!AT$5","v":0},{"$f":"'Population 2016'!AU248/'Population 2016'!AU$5","v":0},{"$f":"'Population 2016'!AV248/'Population 2016'!AV$5","v":2.3967902016682504E-3},{"$f":"'Population 2016'!AW248/'Population 2016'!AW$5","v":8.1990969552748799E-4},{"$f":"'Population 2016'!AX248/'Population 2016'!AX$5","v":1.8273125726772047E-3},{"$f":"'Population 2016'!AY248/'Population 2016'!AY$5","v":1.5635996450537009E-3},{"$f":"'Population 2016'!AZ248/'Population 2016'!AZ$5","v":1.7143087251410853E-3},{"$f":"'Population 2016'!BA248/'Population 2016'!BA$5","v":8.0976031094795946E-5},{"$f":"'Population 2016'!BB248/'Population 2016'!BB$5","v":5.8692334781077589E-4},{"$f":"'Population 2016'!BC248/'Population 2016'!BC$5","v":0},246]
[null,"Male 90+",{"$f":"'Population 2016'!C249/'Population 2016'!C$5","v":1.1346618758720796E-3},{"$f":"'Population 2016'!D249/'Population 2016'!D$5","v":1.0098490850229355E-3},{"$f":"'Population 2016'!E249/'Population 2016'!E$5","v":8.9537265785044932E-4},{"$f":"'Population 2016'!F249/'Population 2016'!F$5","v":5.3566829770795778E-4},{"$f":"'Population 2016'!G249/'Population 2016'!G$5","v":1.8946570670708602E-4},{"$f":"'Population 2016'!H249/'Population 2016'!H$5","v":6.1929944587290416E-4},{"$f":"'Population 2016'!I249/'Population 2016'!I$5","v":2.4076710493258521E-4},{"$f":"'Population 2016'!J249/'Population 2016'!J$5","v":5.9709909357040384E-4},{"$f":"'Population 2016'!K249/'Population 2016'!K$5","v":2.1263525965127818E-4},{"$f":"'Population 2016'!L249/'Population 2016'!L$5","v":3.4946706272933774E-4},{"$f":"'Population 2016'!M249/'Population 2016'!M$5","v":3.4946706272933774E-4},{"$f":"'Population 2016'!N249/'Population 2016'!N$5","v":4.9027093497078472E-4},{"$f":"'Population 2016'!O249/'Population 2016'!O$5","v":2.9720331678901538E-4},{"$f":"'Population 2016'!P249/'Population 2016'!P$5","v":2.1413276231263384E-3},{"$f":"'Population 2016'!Q249/'Population 2016'!Q$5","v":7.4029682377410371E-4},{"$f":"'Population 2016'!R249/'Population 2016'!R$5","v":1.9827540320434341E-3},{"$f":"'Population 2016'!S249/'Population 2016'!S$5","v":8.2263699289107477E-4},{"$f":"'Population 2016'!T249/'Population 2016'!T$5","v":1.3820188643248348E-3},{"$f":"'Population 2016'!U249/'Population 2016'!U$5","v":0},{"$f":"'Population 2016'!V249/'Population 2016'!V$5","v":3.816182138741118E-4},{"$f":"'Population 2016'!W249/'Population 2016'!W$5","v":5.948528883049308E-4},{"$f":"'Population 2016'!X249/'Population 2016'!X$5","v":5.948528883049308E-4},{"$f":"'Population 2016'!Y249/'Population 2016'!Y$5","v":4.8488895248088268E-4},{"$f":"'Population 2016'!Z249/'Population 2016'!Z$5","v":1.9357973452475207E-4},{"$f":"'Population 2016'!AA249/'Population 2016'!AA$5","v":4.2121851740383229E-4},{"$f":"'Population 2016'!AB249/'Population 2016'!AB$5","v":9.4162922325824179E-4},{"$f":"'Population 2016'!AC249/'Population 2016'!AC$5","v":5.3886777777547939E-4},{"$f":"'Population 2016'!AD249/'Population 2016'!AD$5","v":2.6052327961591427E-4},{"$f":"'Population 2016'!AE249/'Population 2016'!AE$5","v":2.8747728416102832E-4},{"$f":"'Population 2016'!AF249/'Population 2016'!AF$5","v":6.3339818124236527E-4},{"$f":"'Population 2016'!AG249/'Population 2016'!AG$5","v":2.8747728416102832E-4},{"$f":"'Population 2016'!AH249/'Population 2016'!AH$5","v":2.0991426952620678E-4},{"$f":"'Population 2016'!AI249/'Population 2016'!AI$5","v":9.939080409484644E-4},{"$f":"'Population 2016'!AJ249/'Population 2016'!AJ$5","v":3.3460669771073249E-4},{"$f":"'Population 2016'!AK249/'Population 2016'!AK$5","v":5.9087537558301796E-4},{"$f":"'Population 2016'!AL249/'Population 2016'!AL$5","v":3.7246590163352901E-4},{"$f":"'Population 2016'!AM249/'Population 2016'!AM$5","v":1.4487976790261183E-4},{"$f":"'Population 2016'!AN249/'Population 2016'!AN$5","v":2.1817388458601506E-4},{"$f":"'Population 2016'!AO249/'Population 2016'!AO$5","v":2.1817388458601506E-4},{"$f":"'Population 2016'!AP249/'Population 2016'!AP$5","v":8.5601509122901578E-4},{"$f":"'Population 2016'!AQ249/'Population 2016'!AQ$5","v":2.6031676439962733E-4},{"$f":"'Population 2016'!AR249/'Population 2016'!AR$5","v":5.9659823163650376E-4},{"$f":"'Population 2016'!AS249/'Population 2016'!AS$5","v":2.4076710493258521E-4},{"$f":"'Population 2016'!AT249/'Population 2016'!AT$5","v":0},{"$f":"'Population 2016'!AU249/'Population 2016'!AU$5","v":0},{"$f":"'Population 2016'!AV249/'Population 2016'!AV$5","v":1.2564671101256467E-3},{"$f":"'Population 2016'!AW249/'Population 2016'!AW$5","v":2.7838794313258896E-4},{"$f":"'Population 2016'!AX249/'Population 2016'!AX$5","v":8.0503980474590133E-4},{"$f":"'Population 2016'!AY249/'Population 2016'!AY$5","v":6.1656620054465893E-4},{"$f":"'Population 2016'!AZ249/'Population 2016'!AZ$5","v":6.3567487962446281E-4},{"$f":"'Population 2016'!BA249/'Population 2016'!BA$5","v":2.6992010364931981E-5},{"$f":"'Population 2016'!BB249/'Population 2016'!BB$5","v":3.1762910587406699E-4},{"$f":"'Population 2016'!BC249/'Population 2016'!BC$5","v":0},247]

{"sheet":"Pop2016fractionQ1","index":15,"n_rows":249,"n_cols":56,"rows_kept":249,"cut":false,"hidden":true,"merged":[]}
["Q1 subgroup's fraction of area's 2016 Q1 population (16+ only)"]
[]
["SIMD","group","Aberdeen City Local Authority","Aberdeen City Region Deal","Aberdeenshire Local Authority","Angus Local Authority","Argyll & Bute Local Authority","Ayrshire & Arran Health Board","Borders Health Board","Clackmannanshire & Stirling IJB","Clackmannanshire Local Authority","Dumfries & Galloway Health Board","Dumfries & Galloway Local Authority","Dundee City Local Authority","East Ayrshire Local Authority","East Dunbartonshire Local Authority","East Lothian Local Authority","East Renfrewshire Local Authority","Edinburgh & SE Scotland City Region Deal","Edinburgh, City of Local Authority","Eilean Siar Local Authority","Falkirk Local Authority","Fife Health Board","Fife Local Authority","Forth Valley Health Board","Glasgow City Local Authority","Glasgow City Region Deal","Grampian Health Board","Greater Glasgow & Clyde Health Board","Highland Health Board","Highland Local Authority","Inverclyde Local Authority","Inverness & Highland City Region Deal","Lanarkshire Health Board","Lothian Health Board","Midlothian Local Authority","Moray Local Authority","North Ayrshire Local Authority","North Lanarkshire Local Authority","Orkney Health Board","Orkney Islands Local Authority","Perth & Kinross Local Authority","Renfrewshire Local Authority","Scotland","Scottish Borders Local Authority","Shetland Health Board","Shetland Islands Local Authority","South Ayrshire Local Authority","South Lanarkshire Local Authority","Stirling Local Authority","Tay Cities Region Deal ","Tayside Health Board","West Dunbartonshire Local Authority","West Lothian Local Authority","Western Isles Health Board",1]
[null,null,"popS12000033","Aber_deal","popS12000034","popS12000041","popS12000035","popS08000015","popS08000016","ClacksStirIJB","popS12000005","popS08000017","popS12000006","popS12000042","popS12000008","popS12000045","popS12000010","popS12000011","EdinSE_deal","popS12000036","popS12000013","popS12000014","popS08000018","popS12000015","popS08000019","popS12000046","GClyde_deal","popS08000020","popS08000021","popS08000022","popS12000017","popS12000018","Inver_deal","popS08000023","popS08000024","popS12000019","popS12000020","popS12000021","popS12000044","popS08000025","popS12000023","popS12000024","popS12000038","popS00000001","popS12000026","popS08000026","popS12000027","popS12000028","popS12000029","popS12000030","Tay_deal","popS08000027","popS12000039","popS12000040","popS08000028",2]
["All quintiles","16+ Males and Females",null,null,null,null,null,null,null,null,null,null,null,null,null,null,null,null,null,null,null,null,null,null,null,null,null,null,null,null,null,null,null,null,null,null,null,null,null,null,null,null,null,null,null,null,null,null,null,null,null,null,null,null,null,3]
["Q1 and Q2","16+ Males and Females",null,null,null,null,null,null,null,null,null,null,null,null,null,null,null,null,null,null,null,null,null,null,null,null,null,null,null,null,null,null,null,null,null,null,null,null,null,null,null,null,null,null,null,null,null,null,null,null,null,null,null,null,null,4]
["SIMD Q1 (most deprived)","16+ Males and Females",{"$f":"'Population 2016'!R7/'Population 2016'!R$7","v":1},{"$f":"'Population 2016'!AX7/'Population 2016'!AX$7","v":1},{"$f":"'Population 2016'!S7/'Population 2016'!S$7","v":1},{"$f":"'Population 2016'!T7/'Population 2016'!T$7","v":1},{"$f":"'Population 2016'!U7/'Population 2016'!U$7","v":{"$error":"#DIV/0!"}},{"$f":"'Population 2016'!D7/'Population 2016'!D$7","v":1},{"$f":"'Population 2016'!E7/'Population 2016'!E$7","v":1},{"$f":"'Population 2016'!BC7/'Population 2016'!BC$7","v":{"$error":"#DIV/0!"}},{"$f":"'Population 2016'!V7/'Population 2016'!V$7","v":1},{"$f":"'Population 2016'!F7/'Population 2016'!F$7","v":1},{"$f":"'Population 2016'!W7/'Population 2016'!W$7","v":1},{"$f":"'Population 2016'!X7/'Population 2016'!X$7","v":1},{"$f":"'Population 2016'!Y7/'Population 2016'!Y$7","v":1},{"$f":"'Population 2016'!Z7/'Population 2016'!Z$7","v":1},{"$f":"'Population 2016'!AA7/'Population 2016'!AA$7","v":1},{"$f":"'Population 2016'!AB7/'Population 2016'!AB$7","v":1},{"$f":"'Population 2016'!AY7/'Population 2016'!AY$7","v":1},{"$f":"'Population 2016'!AC7/'Population 2016'!AC$7","v":1},{"$f":"'Population 2016'!AD7/'Population 2016'!AD$7","v":1},{"$f":"'Population 2016'!AE7/'Population 2016'!AE$7","v":1},{"$f":"'Population 2016'!G7/'Population 2016'!G$7","v":1},{"$f":"'Population 2016'!AF7/'Population 2016'!AF$7","v":1},{"$f":"'Population 2016'!H7/'Population 2016'!H$7","v":1},{"$f":"'Population 2016'!AG7/'Population 2016'!AG$7","v":1},{"$f":"'Population 2016'!AZ7/'Population 2016'!AZ$7","v":1},{"$f":"'Population 2016'!I7/'Population 2016'!I$7","v":1},{"$f":"'Population 2016'!J7/'Population 2016'!J$7","v":1},{"$f":"'Population 2016'!K7/'Population 2016'!K$7","v":1},{"$f":"'Population 2016'!AH7/'Population 2016'!AH$7","v":1},{"$f":"'Population 2016'!AI7/'Population 2016'!AI$7","v":1},{"$f":"'Population 2016'!BA7/'Population 2016'!BA$7","v":1},{"$f":"'Population 2016'!L7/'Population 2016'!L$7","v":1},{"$f":"'Population 2016'!M7/'Population 2016'!M$7","v":1},{"$f":"'Population 2016'!AJ7/'Population 2016'!AJ$7","v":1},{"$f":"'Population 2016'!AK7/'Population 2016'!AK$7","v":1},{"$f":"'Population 2016'!AL7/'Population 2016'!AL$7","v":1},{"$f":"'Population 2016'!AM7/'Population 2016'!AM$7","v":1},{"$f":"'Population 2016'!N7/'Population 2016'!N$7","v":1},{"$f":"'Population 2016'!AN7/'Population 2016'!AN$7","v":{"$error":"#DIV/0!"}},{"$f":"'Population 2016'!AO7/'Population 2016'!AO$7","v":{"$error":"#DIV/0!"}},{"$f":"'Population 2016'!AP7/'Population 2016'!AP$7","v":1},{"$f":"'Population 2016'!C7/'Population 2016'!C$7","v":1},{"$f":"'Population 2016'!AQ7/'Population 2016'!AQ$7","v":1},{"$f":"'Population 2016'!O7/'Population 2016'!O$7","v":1},{"$f":"'Population 2016'!AR7/'Population 2016'!AR$7","v":1},{"$f":"'Population 2016'!AS7/'Population 2016'!AS$7","v":1},{"$f":"'Population 2016'!AT7/'Population 2016'!AT$7","v":{"$error":"#DIV/0!"}},{"$f":"'Population 2016'!AU7/'Population 2016'!AU$7","v":{"$error":"#DIV/0!"}},{"$f":"'Population 2016'!BB7/'Population 2016'!BB$7","v":1},{"$f":"'Population 2016'!P7/'Population 2016'!P$7","v":1},{"$f":"'Population 2016'!AV7/'Population 2016'!AV$7","v":1},{"$f":"'Population 2016'!AW7/'Population 2016'!AW$7","v":1},{"$f":"'Population 2016'!Q7/'Population 2016'!Q$7","v":1},5]
["SIMD Q2",null,null,null,null,null,null,null,null,null,null,null,null,null,null,null,null,null,null,null,null,null,null,null,null,null,null,null,null,null,null,null,null,null,null,null,null,null,null,null,null,null,null,null,null,null,null,null,null,null,null,null,null,null,null,6]
["SIMD Q3",null,null,null,null,null,null,null,null,null,null,null,null,null,null,null,null,null,null,null,null,null,null,null,null,null,null,null,null,null,null,null,null,null,null,null,null,null,null,null,null,null,null,null,null,null,null,null,null,null,null,null,null,null,null,7]
["SIMD Q4",null,null,null,null,null,null,null,null,null,null,null,null,null,null,null,null,null,null,null,null,null,null,null,null,null,null,null,null,null,null,null,null,null,null,null,null,null,null,null,null,null,null,null,null,null,null,null,null,null,null,null,null,null,null,8]
["SIMD Q5 (least deprived)",null,null,null,null,null,null,null,null,null,null,null,null,null,null,null,null,null,null,null,null,null,null,null,null,null,null,null,null,null,null,null,null,null,null,null,null,null,null,null,null,null,null,null,null,null,null,null,null,null,null,null,null,null,null,9]
["SIMD Q1 (most deprived)","16+ Females",null,null,null,null,null,null,null,null,null,null,null,null,null,null,null,null,null,null,null,null,null,null,null,null,null,null,null,null,null,null,null,null,null,null,null,null,null,null,null,null,null,null,null,null,null,null,null,null,null,null,null,null,null,10]
["SIMD Q2",null,null,null,null,null,null,null,null,null,null,null,null,null,null,null,null,null,null,null,null,null,null,null,null,null,null,null,null,null,null,null,null,null,null,null,null,null,null,null,null,null,null,null,null,null,null,null,null,null,null,null,null,null,null,11]
["SIMD Q3",null,null,null,null,null,null,null,null,null,null,null,null,null,null,null,null,null,null,null,null,null,null,null,null,null,null,null,null,null,null,null,null,null,null,null,null,null,null,null,null,null,null,null,null,null,null,null,null,null,null,null,null,null,null,12]
["SIMD Q4",null,null,null,null,null,null,null,null,null,null,null,null,null,null,null,null,null,null,null,null,null,null,null,null,null,null,null,null,null,null,null,null,null,null,null,null,null,null,null,null,null,null,null,null,null,null,null,null,null,null,null,null,null,null,13]
["SIMD Q5 (least deprived)",null,null,null,null,null,null,null,null,null,null,null,null,null,null,null,null,null,null,null,null,null,null,null,null,null,null,null,null,null,null,null,null,null,null,null,null,null,null,null,null,null,null,null,null,null,null,null,null,null,null,null,null,null,null,14]
["SIMD Q1 (most deprived)","16+ Males",null,null,null,null,null,null,null,null,null,null,null,null,null,null,null,null,null,null,null,null,null,null,null,null,null,null,null,null,null,null,null,null,null,null,null,null,null,null,null,null,null,null,null,null,null,null,null,null,null,null,null,null,null,15]
["SIMD Q2",null,null,null,null,null,null,null,null,null,null,null,null,null,null,null,null,null,null,null,null,null,null,null,null,null,null,null,null,null,null,null,null,null,null,null,null,null,null,null,null,null,null,null,null,null,null,null,null,null,null,null,null,null,null,16]
["SIMD Q3",null,null,null,null,null,null,null,null,null,null,null,null,null,null,null,null,null,null,null,null,null,null,null,null,null,null,null,null,null,null,null,null,null,null,null,null,null,null,null,null,null,null,null,null,null,null,null,null,null,null,null,null,null,null,17]
["SIMD Q4",null,null,null,null,null,null,null,null,null,null,null,null,null,null,null,null,null,null,null,null,null,null,null,null,null,null,null,null,null,null,null,null,null,null,null,null,null,null,null,null,null,null,null,null,null,null,null,null,null,null,null,null,null,null,18]
["SIMD Q5 (least deprived)",null,null,null,null,null,null,null,null,null,null,null,null,null,null,null,null,null,null,null,null,null,null,null,null,null,null,null,null,null,null,null,null,null,null,null,null,null,null,null,null,null,null,null,null,null,null,null,null,null,null,null,null,null,null,19]
["All quintiles","Female 0-4",null,null,null,null,null,null,null,null,null,null,null,null,null,null,null,null,null,null,null,null,null,null,null,null,null,null,null,null,null,null,null,null,null,null,null,null,null,null,null,null,null,null,null,null,null,null,null,null,null,null,null,null,null,20]
[null,"Female 5-9",null,null,null,null,null,null,null,null,null,null,null,null,null,null,null,null,null,null,null,null,null,null,null,null,null,null,null,null,null,null,null,null,null,null,null,null,null,null,null,null,null,null,null,null,null,null,null,null,null,null,null,null,null,21]
[null,"Female 10-15",null,null,null,null,null,null,null,null,null,null,null,null,null,null,null,null,null,null,null,null,null,null,null,null,null,null,null,null,null,null,null,null,null,null,null,null,null,null,null,null,null,null,null,null,null,null,null,null,null,null,null,null,null,22]
[null,"Female 16-19",null,null,null,null,null,null,null,null,null,null,null,null,null,null,null,null,null,null,null,null,null,null,null,null,null,null,null,null,null,null,null,null,null,null,null,null,null,null,null,null,null,null,null,null,null,null,null,null,null,null,null,null,null,23]
[null,"Female 20-24",null,null,null,null,null,null,null,null,null,null,null,null,null,null,null,null,null,null,null,null,null,null,null,null,null,null,null,null,null,null,null,null,null,null,null,null,null,null,null,null,null,null,null,null,null,null,null,null,null,null,null,null,null,24]
[null,"Female 25-29",null,null,null,null,null,null,null,null,null,null,null,null,null,null,null,null,null,null,null,null,null,null,null,null,null,null,null,null,null,null,null,null,null,null,null,null,null,null,null,null,null,null,null,null,null,null,null,null,null,null,null,null,null,25]
[null,"Female 30-34",null,null,null,null,null,null,null,null,null,null,null,null,null,null,null,null,null,null,null,null,null,null,null,null,null,null,null,null,null,null,null,null,null,null,null,null,null,null,null,null,null,null,null,null,null,null,null,null,null,null,null,null,null,26]
[null,"Female 35-39",null,null,null,null,null,null,null,null,null,null,null,null,null,null,null,null,null,null,null,null,null,null,null,null,null,null,null,null,null,null,null,null,null,null,null,null,null,null,null,null,null,null,null,null,null,null,null,null,null,null,null,null,null,27]
[null,"Female 40-44",null,null,null,null,null,null,null,null,null,null,null,null,null,null,null,null,null,null,null,null,null,null,null,null,null,null,null,null,null,null,null,null,null,null,null,null,null,null,null,null,null,null,null,null,null,null,null,null,null,null,null,null,null,28]
[null,"Female 45-49",null,null,null,null,null,null,null,null,null,null,null,null,null,null,null,null,null,null,null,null,null,null,null,null,null,null,null,null,null,null,null,null,null,null,null,null,null,null,null,null,null,null,null,null,null,null,null,null,null,null,null,null,null,29]
[null,"Female 50-54",null,null,null,null,null,null,null,null,null,null,null,null,null,null,null,null,null,null,null,null,null,null,null,null,null,null,null,null,null,null,null,null,null,null,null,null,null,null,null,null,null,null,null,null,null,null,null,null,null,null,null,null,null,30]
[null,"Female 55-59",null,null,null,null,null,null,null,null,null,null,null,null,null,null,null,null,null,null,null,null,null,null,null,null,null,null,null,null,null,null,null,null,null,null,null,null,null,null,null,null,null,null,null,null,null,null,null,null,null,null,null,null,null,31]
[null,"Female 60-64",null,null,null,null,null,null,null,null,null,null,null,null,null,null,null,null,null,null,null,null,null,null,null,null,null,null,null,null,null,null,null,null,null,null,null,null,null,null,null,null,null,null,null,null,null,null,null,null,null,null,null,null,null,32]
[null,"Female 65-69",null,null,null,null,null,null,null,null,null,null,null,null,null,null,null,null,null,null,null,null,null,null,null,null,null,null,null,null,null,null,null,null,null,null,null,null,null,null,null,null,null,null,null,null,null,null,null,null,null,null,null,null,null,33]
[null,"Female 70-74",null,null,null,null,null,null,null,null,null,null,null,null,null,null,null,null,null,null,null,null,null,null,null,null,null,null,null,null,null,null,null,null,null,null,null,null,null,null,null,null,null,null,null,null,null,null,null,null,null,null,null,null,null,34]
[null,"Female 75-79",null,null,null,null,null,null,null,null,null,null,null,null,null,null,null,null,null,null,null,null,null,null,null,null,null,null,null,null,null,null,null,null,null,null,null,null,null,null,null,null,null,null,null,null,null,null,null,null,null,null,null,null,null,35]
[null,"Female 80-84",null,null,null,null,null,null,null,null,null,null,null,null,null,null,null,null,null,null,null,null,null,null,null,null,null,null,null,null,null,null,null,null,null,null,null,null,null,null,null,null,null,null,null,null,null,null,null,null,null,null,null,null,null,36]
[null,"Female 85-89",null,null,null,null,null,null,null,null,null,null,null,null,null,null,null,null,null,null,null,null,null,null,null,null,null,null,null,null,null,null,null,null,null,null,null,null,null,null,null,null,null,null,null,null,null,null,null,null,null,null,null,null,null,37]
[null,"Female 90+",null,null,null,null,null,null,null,null,null,null,null,null,null,null,null,null,null,null,null,null,null,null,null,null,null,null,null,null,null,null,null,null,null,null,null,null,null,null,null,null,null,null,null,null,null,null,null,null,null,null,null,null,null,38]
[null,"Male 0-4",null,null,null,null,null,null,null,null,null,null,null,null,null,null,null,null,null,null,null,null,null,null,null,null,null,null,null,null,null,null,null,null,null,null,null,null,null,null,null,null,null,null,null,null,null,null,null,null,null,null,null,null,null,39]
[null,"Male 5-9",null,null,null,null,null,null,null,null,null,null,null,null,null,null,null,null,null,null,null,null,null,null,null,null,null,null,null,null,null,null,null,null,null,null,null,null,null,null,null,null,null,null,null,null,null,null,null,null,null,null,null,null,null,40]
[null,"Male 10-15",null,null,null,null,null,null,null,null,null,null,null,null,null,null,null,null,null,null,null,null,null,null,null,null,null,null,null,null,null,null,null,null,null,null,null,null,null,null,null,null,null,null,null,null,null,null,null,null,null,null,null,null,null,41]
[null,"Male 16-19",null,null,null,null,null,null,null,null,null,null,null,null,null,null,null,null,null,null,null,null,null,null,null,null,null,null,null,null,null,null,null,null,null,null,null,null,null,null,null,null,null,null,null,null,null,null,null,null,null,null,null,null,null,42]
[null,"Male 20-24",null,null,null,null,null,null,null,null,null,null,null,null,null,null,null,null,null,null,null,null,null,null,null,null,null,null,null,null,null,null,null,null,null,null,null,null,null,null,null,null,null,null,null,null,null,null,null,null,null,null,null,null,null,43]
[null,"Male 25-29",null,null,null,null,null,null,null,null,null,null,null,null,null,null,null,null,null,null,null,null,null,null,null,null,null,null,null,null,null,null,null,null,null,null,null,null,null,null,null,null,null,null,null,null,null,null,null,null,null,null,null,null,null,44]
[null,"Male 30-34",null,null,null,null,null,null,null,null,null,null,null,null,null,null,null,null,null,null,null,null,null,null,null,null,null,null,null,null,null,null,null,null,null,null,null,null,null,null,null,null,null,null,null,null,null,null,null,null,null,null,null,null,null,45]
[null,"Male 35-39",null,null,null,null,null,null,null,null,null,null,null,null,null,null,null,null,null,null,null,null,null,null,null,null,null,null,null,null,null,null,null,null,null,null,null,null,null,null,null,null,null,null,null,null,null,null,null,null,null,null,null,null,null,46]
[null,"Male 40-44",null,null,null,null,null,null,null,null,null,null,null,null,null,null,null,null,null,null,null,null,null,null,null,null,null,null,null,null,null,null,null,null,null,null,null,null,null,null,null,null,null,null,null,null,null,null,null,null,null,null,null,null,null,47]
[null,"Male 45-49",null,null,null,null,null,null,null,null,null,null,null,null,null,null,null,null,null,null,null,null,null,null,null,null,null,null,null,null,null,null,null,null,null,null,null,null,null,null,null,null,null,null,null,null,null,null,null,null,null,null,null,null,null,48]
[null,"Male 50-54",null,null,null,null,null,null,null,null,null,null,null,null,null,null,null,null,null,null,null,null,null,null,null,null,null,null,null,null,null,null,null,null,null,null,null,null,null,null,null,null,null,null,null,null,null,null,null,null,null,null,null,null,null,49]
[null,"Male 55-59",null,null,null,null,null,null,null,null,null,null,null,null,null,null,null,null,null,null,null,null,null,null,null,null,null,null,null,null,null,null,null,null,null,null,null,null,null,null,null,null,null,null,null,null,null,null,null,null,null,null,null,null,null,50]
[null,"Male 60-64",null,null,null,null,null,null,null,null,null,null,null,null,null,null,null,null,null,null,null,null,null,null,null,null,null,null,null,null,null,null,null,null,null,null,null,null,null,null,null,null,null,null,null,null,null,null,null,null,null,null,null,null,null,51]
[null,"Male 65-69",null,null,null,null,null,null,null,null,null,null,null,null,null,null,null,null,null,null,null,null,null,null,null,null,null,null,null,null,null,null,null,null,null,null,null,null,null,null,null,null,null,null,null,null,null,null,null,null,null,null,null,null,null,52]
[null,"Male 70-74",null,null,null,null,null,null,null,null,null,null,null,null,null,null,null,null,null,null,null,null,null,null,null,null,null,null,null,null,null,null,null,null,null,null,null,null,null,null,null,null,null,null,null,null,null,null,null,null,null,null,null,null,null,53]
[null,"Male 75-79",null,null,null,null,null,null,null,null,null,null,null,null,null,null,null,null,null,null,null,null,null,null,null,null,null,null,null,null,null,null,null,null,null,null,null,null,null,null,null,null,null,null,null,null,null,null,null,null,null,null,null,null,null,54]
[null,"Male 80-84",null,null,null,null,null,null,null,null,null,null,null,null,null,null,null,null,null,null,null,null,null,null,null,null,null,null,null,null,null,null,null,null,null,null,null,null,null,null,null,null,null,null,null,null,null,null,null,null,null,null,null,null,null,55]
[null,"Male 85-89",null,null,null,null,null,null,null,null,null,null,null,null,null,null,null,null,null,null,null,null,null,null,null,null,null,null,null,null,null,null,null,null,null,null,null,null,null,null,null,null,null,null,null,null,null,null,null,null,null,null,null,null,null,56]
[null,"Male 90+",null,null,null,null,null,null,null,null,null,null,null,null,null,null,null,null,null,null,null,null,null,null,null,null,null,null,null,null,null,null,null,null,null,null,null,null,null,null,null,null,null,null,null,null,null,null,null,null,null,null,null,null,null,57]
["SIMD Q1 (most deprived)","Female 0-4",{"$f":"'Population 2016'!C60/'Population 2016'!C$7","v":0},{"$f":"'Population 2016'!D60/'Population 2016'!D$7","v":0},{"$f":"'Population 2016'!E60/'Population 2016'!E$7","v":0},{"$f":"'Population 2016'!F60/'Population 2016'!F$7","v":0},{"$f":"'Population 2016'!G60/'Population 2016'!G$7","v":0},{"$f":"'Population 2016'!H60/'Population 2016'!H$7","v":0},{"$f":"'Population 2016'!I60/'Population 2016'!I$7","v":0},{"$f":"'Population 2016'!J60/'Population 2016'!J$7","v":0},{"$f":"'Population 2016'!K60/'Population 2016'!K$7","v":0},{"$f":"'Population 2016'!L60/'Population 2016'!L$7","v":0},{"$f":"'Population 2016'!M60/'Population 2016'!M$7","v":0},{"$f":"'Population 2016'!N60/'Population 2016'!N$7","v":0},{"$f":"'Population 2016'!O60/'Population 2016'!O$7","v":0},{"$f":"'Population 2016'!P60/'Population 2016'!P$7","v":0},{"$f":"'Population 2016'!Q60/'Population 2016'!Q$7","v":0},{"$f":"'Population 2016'!R60/'Population 2016'!R$7","v":0},{"$f":"'Population 2016'!S60/'Population 2016'!S$7","v":0},{"$f":"'Population 2016'!T60/'Population 2016'!T$7","v":0},{"$f":"'Population 2016'!U60/'Population 2016'!U$7","v":{"$error":"#DIV/0!"}},{"$f":"'Population 2016'!V60/'Population 2016'!V$7","v":0},{"$f":"'Population 2016'!W60/'Population 2016'!W$7","v":0},{"$f":"'Population 2016'!X60/'Population 2016'!X$7","v":0},{"$f":"'Population 2016'!Y60/'Population 2016'!Y$7","v":0},{"$f":"'Population 2016'!Z60/'Population 2016'!Z$7","v":0},{"$f":"'Population 2016'!AA60/'Population 2016'!AA$7","v":0},{"$f":"'Population 2016'!AB60/'Population 2016'!AB$7","v":0},{"$f":"'Population 2016'!AC60/'Population 2016'!AC$7","v":0},{"$f":"'Population 2016'!AD60/'Population 2016'!AD$7","v":0},{"$f":"'Population 2016'!AE60/'Population 2016'!AE$7","v":0},{"$f":"'Population 2016'!AF60/'Population 2016'!AF$7","v":0},{"$f":"'Population 2016'!AG60/'Population 2016'!AG$7","v":0},{"$f":"'Population 2016'!AH60/'Population 2016'!AH$7","v":0},{"$f":"'Population 2016'!AI60/'Population 2016'!AI$7","v":0},{"$f":"'Population 2016'!AJ60/'Population 2016'!AJ$7","v":0},{"$f":"'Population 2016'!AK60/'Population 2016'!AK$7","v":0},{"$f":"'Population 2016'!AL60/'Population 2016'!AL$7","v":0},{"$f":"'Population 2016'!AM60/'Population 2016'!AM$7","v":0},{"$f":"'Population 2016'!AN60/'Population 2016'!AN$7","v":{"$error":"#DIV/0!"}},{"$f":"'Population 2016'!AO60/'Population 2016'!AO$7","v":{"$error":"#DIV/0!"}},{"$f":"'Population 2016'!AP60/'Population 2016'!AP$7","v":0},{"$f":"'Population 2016'!AQ60/'Population 2016'!AQ$7","v":0},{"$f":"'Population 2016'!AR60/'Population 2016'!AR$7","v":0},{"$f":"'Population 2016'!AS60/'Population 2016'!AS$7","v":0},{"$f":"'Population 2016'!AT60/'Population 2016'!AT$7","v":{"$error":"#DIV/0!"}},{"$f":"'Population 2016'!AU60/'Population 2016'!AU$7","v":{"$error":"#DIV/0!"}},{"$f":"'Population 2016'!AV60/'Population 2016'!AV$7","v":0},{"$f":"'Population 2016'!AW60/'Population 2016'!AW$7","v":0},{"$f":"'Population 2016'!AX60/'Population 2016'!AX$7","v":0},{"$f":"'Population 2016'!AY60/'Population 2016'!AY$7","v":0},{"$f":"'Population 2016'!AZ60/'Population 2016'!AZ$7","v":0},{"$f":"'Population 2016'!BA60/'Population 2016'!BA$7","v":0},{"$f":"'Population 2016'!BB60/'Population 2016'!BB$7","v":0},{"$f":"'Population 2016'!BC60/'Population 2016'!BC$7","v":{"$error":"#DIV/0!"}},58]
[null,"Female 5-9",{"$f":"'Population 2016'!C61/'Population 2016'!C$7","v":0},{"$f":"'Population 2016'!D61/'Population 2016'!D$7","v":0},{"$f":"'Population 2016'!E61/'Population 2016'!E$7","v":0},{"$f":"'Population 2016'!F61/'Population 2016'!F$7","v":0},{"$f":"'Population 2016'!G61/'Population 2016'!G$7","v":0},{"$f":"'Population 2016'!H61/'Population 2016'!H$7","v":0},{"$f":"'Population 2016'!I61/'Population 2016'!I$7","v":0},{"$f":"'Population 2016'!J61/'Population 2016'!J$7","v":0},{"$f":"'Population 2016'!K61/'Population 2016'!K$7","v":0},{"$f":"'Population 2016'!L61/'Population 2016'!L$7","v":0},{"$f":"'Population 2016'!M61/'Population 2016'!M$7","v":0},{"$f":"'Population 2016'!N61/'Population 2016'!N$7","v":0},{"$f":"'Population 2016'!O61/'Population 2016'!O$7","v":0},{"$f":"'Population 2016'!P61/'Population 2016'!P$7","v":0},{"$f":"'Population 2016'!Q61/'Population 2016'!Q$7","v":0},{"$f":"'Population 2016'!R61/'Population 2016'!R$7","v":0},{"$f":"'Population 2016'!S61/'Population 2016'!S$7","v":0},{"$f":"'Population 2016'!T61/'Population 2016'!T$7","v":0},{"$f":"'Population 2016'!U61/'Population 2016'!U$7","v":{"$error":"#DIV/0!"}},{"$f":"'Population 2016'!V61/'Population 2016'!V$7","v":0},{"$f":"'Population 2016'!W61/'Population 2016'!W$7","v":0},{"$f":"'Population 2016'!X61/'Population 2016'!X$7","v":0},{"$f":"'Population 2016'!Y61/'Population 2016'!Y$7","v":0},{"$f":"'Population 2016'!Z61/'Population 2016'!Z$7","v":0},{"$f":"'Population 2016'!AA61/'Population 2016'!AA$7","v":0},{"$f":"'Population 2016'!AB61/'Population 2016'!AB$7","v":0},{"$f":"'Population 2016'!AC61/'Population 2016'!AC$7","v":0},{"$f":"'Population 2016'!AD61/'Population 2016'!AD$7","v":0},{"$f":"'Population 2016'!AE61/'Population 2016'!AE$7","v":0},{"$f":"'Population 2016'!AF61/'Population 2016'!AF$7","v":0},{"$f":"'Population 2016'!AG61/'Population 2016'!AG$7","v":0},{"$f":"'Population 2016'!AH61/'Population 2016'!AH$7","v":0},{"$f":"'Population 2016'!AI61/'Population 2016'!AI$7","v":0},{"$f":"'Population 2016'!AJ61/'Population 2016'!AJ$7","v":0},{"$f":"'Population 2016'!AK61/'Population 2016'!AK$7","v":0},{"$f":"'Population 2016'!AL61/'Population 2016'!AL$7","v":0},{"$f":"'Population 2016'!AM61/'Population 2016'!AM$7","v":0},{"$f":"'Population 2016'!AN61/'Population 2016'!AN$7","v":{"$error":"#DIV/0!"}},{"$f":"'Population 2016'!AO61/'Population 2016'!AO$7","v":{"$error":"#DIV/0!"}},{"$f":"'Population 2016'!AP61/'Population 2016'!AP$7","v":0},{"$f":"'Population 2016'!AQ61/'Population 2016'!AQ$7","v":0},{"$f":"'Population 2016'!AR61/'Population 2016'!AR$7","v":0},{"$f":"'Population 2016'!AS61/'Population 2016'!AS$7","v":0},{"$f":"'Population 2016'!AT61/'Population 2016'!AT$7","v":{"$error":"#DIV/0!"}},{"$f":"'Population 2016'!AU61/'Population 2016'!AU$7","v":{"$error":"#DIV/0!"}},{"$f":"'Population 2016'!AV61/'Population 2016'!AV$7","v":0},{"$f":"'Population 2016'!AW61/'Population 2016'!AW$7","v":0},{"$f":"'Population 2016'!AX61/'Population 2016'!AX$7","v":0},{"$f":"'Population 2016'!AY61/'Population 2016'!AY$7","v":0},{"$f":"'Population 2016'!AZ61/'Population 2016'!AZ$7","v":0},{"$f":"'Population 2016'!BA61/'Population 2016'!BA$7","v":0},{"$f":"'Population 2016'!BB61/'Population 2016'!BB$7","v":0},{"$f":"'Population 2016'!BC61/'Population 2016'!BC$7","v":{"$error":"#DIV/0!"}},59]
[null,"Female 10-15",{"$f":"'Population 2016'!C62/'Population 2016'!C$7","v":0},{"$f":"'Population 2016'!D62/'Population 2016'!D$7","v":0},{"$f":"'Population 2016'!E62/'Population 2016'!E$7","v":0},{"$f":"'Population 2016'!F62/'Population 2016'!F$7","v":0},{"$f":"'Population 2016'!G62/'Population 2016'!G$7","v":0},{"$f":"'Population 2016'!H62/'Population 2016'!H$7","v":0},{"$f":"'Population 2016'!I62/'Population 2016'!I$7","v":0},{"$f":"'Population 2016'!J62/'Population 2016'!J$7","v":0},{"$f":"'Population 2016'!K62/'Population 2016'!K$7","v":0},{"$f":"'Population 2016'!L62/'Population 2016'!L$7","v":0},{"$f":"'Population 2016'!M62/'Population 2016'!M$7","v":0},{"$f":"'Population 2016'!N62/'Population 2016'!N$7","v":0},{"$f":"'Population 2016'!O62/'Population 2016'!O$7","v":0},{"$f":"'Population 2016'!P62/'Population 2016'!P$7","v":0},{"$f":"'Population 2016'!Q62/'Population 2016'!Q$7","v":0},{"$f":"'Population 2016'!R62/'Population 2016'!R$7","v":0},{"$f":"'Population 2016'!S62/'Population 2016'!S$7","v":0},{"$f":"'Population 2016'!T62/'Population 2016'!T$7","v":0},{"$f":"'Population 2016'!U62/'Population 2016'!U$7","v":{"$error":"#DIV/0!"}},{"$f":"'Population 2016'!V62/'Population 2016'!V$7","v":0},{"$f":"'Population 2016'!W62/'Population 2016'!W$7","v":0},{"$f":"'Population 2016'!X62/'Population 2016'!X$7","v":0},{"$f":"'Population 2016'!Y62/'Population 2016'!Y$7","v":0},{"$f":"'Population 2016'!Z62/'Population 2016'!Z$7","v":0},{"$f":"'Population 2016'!AA62/'Population 2016'!AA$7","v":0},{"$f":"'Population 2016'!AB62/'Population 2016'!AB$7","v":0},{"$f":"'Population 2016'!AC62/'Population 2016'!AC$7","v":0},{"$f":"'Population 2016'!AD62/'Population 2016'!AD$7","v":0},{"$f":"'Population 2016'!AE62/'Population 2016'!AE$7","v":0},{"$f":"'Population 2016'!AF62/'Population 2016'!AF$7","v":0},{"$f":"'Population 2016'!AG62/'Population 2016'!AG$7","v":0},{"$f":"'Population 2016'!AH62/'Population 2016'!AH$7","v":0},{"$f":"'Population 2016'!AI62/'Population 2016'!AI$7","v":0},{"$f":"'Population 2016'!AJ62/'Population 2016'!AJ$7","v":0},{"$f":"'Population 2016'!AK62/'Population 2016'!AK$7","v":0},{"$f":"'Population 2016'!AL62/'Population 2016'!AL$7","v":0},{"$f":"'Population 2016'!AM62/'Population 2016'!AM$7","v":0},{"$f":"'Population 2016'!AN62/'Population 2016'!AN$7","v":{"$error":"#DIV/0!"}},{"$f":"'Population 2016'!AO62/'Population 2016'!AO$7","v":{"$error":"#DIV/0!"}},{"$f":"'Population 2016'!AP62/'Population 2016'!AP$7","v":0},{"$f":"'Population 2016'!AQ62/'Population 2016'!AQ$7","v":0},{"$f":"'Population 2016'!AR62/'Population 2016'!AR$7","v":0},{"$f":"'Population 2016'!AS62/'Population 2016'!AS$7","v":0},{"$f":"'Population 2016'!AT62/'Population 2016'!AT$7","v":{"$error":"#DIV/0!"}},{"$f":"'Population 2016'!AU62/'Population 2016'!AU$7","v":{"$error":"#DIV/0!"}},{"$f":"'Population 2016'!AV62/'Population 2016'!AV$7","v":0},{"$f":"'Population 2016'!AW62/'Population 2016'!AW$7","v":0},{"$f":"'Population 2016'!AX62/'Population 2016'!AX$7","v":0},{"$f":"'Population 2016'!AY62/'Population 2016'!AY$7","v":0},{"$f":"'Population 2016'!AZ62/'Population 2016'!AZ$7","v":0},{"$f":"'Population 2016'!BA62/'Population 2016'!BA$7","v":0},{"$f":"'Population 2016'!BB62/'Population 2016'!BB$7","v":0},{"$f":"'Population 2016'!BC62/'Population 2016'!BC$7","v":{"$error":"#DIV/0!"}},60]
[null,"Female 16-19",{"$f":"'Population 2016'!C63/'Population 2016'!C$7","v":2.3366866165796512E-2},{"$f":"'Population 2016'!D63/'Population 2016'!D$7","v":2.3858146137371122E-2},{"$f":"'Population 2016'!E63/'Population 2016'!E$7","v":2.562342713337909E-2},{"$f":"'Population 2016'!F63/'Population 2016'!F$7","v":3.3025885153228206E-2},{"$f":"'Population 2016'!G63/'Population 2016'!G$7","v":2.7047054464616523E-2},{"$f":"'Population 2016'!H63/'Population 2016'!H$7","v":2.9276091911804424E-2},{"$f":"'Population 2016'!I63/'Population 2016'!I$7","v":3.2872981910134214E-2},{"$f":"'Population 2016'!J63/'Population 2016'!J$7","v":2.9870260484763149E-2},{"$f":"'Population 2016'!K63/'Population 2016'!K$7","v":2.7463165280144333E-2},{"$f":"'Population 2016'!L63/'Population 2016'!L$7","v":3.1550480769230768E-2},{"$f":"'Population 2016'!M63/'Population 2016'!M$7","v":3.1550480769230768E-2},{"$f":"'Population 2016'!N63/'Population 2016'!N$7","v":2.9211814659272837E-2},{"$f":"'Population 2016'!O63/'Population 2016'!O$7","v":2.7685845213849286E-2},{"$f":"'Population 2016'!P63/'Population 2016'!P$7","v":2.7301280502536846E-2},{"$f":"'Population 2016'!Q63/'Population 2016'!Q$7","v":2.843439534087016E-2},{"$f":"'Population 2016'!R63/'Population 2016'!R$7","v":3.3887987012987016E-2},{"$f":"'Population 2016'!S63/'Population 2016'!S$7","v":2.9441723800195885E-2},{"$f":"'Population 2016'!T63/'Population 2016'!T$7","v":2.6873458885752065E-2},{"$f":"'Population 2016'!U63/'Population 2016'!U$7","v":{"$error":"#DIV/0!"}},{"$f":"'Population 2016'!V63/'Population 2016'!V$7","v":2.4892343241256172E-2},{"$f":"'Population 2016'!W63/'Population 2016'!W$7","v":3.0953307722249489E-2},{"$f":"'Population 2016'!X63/'Population 2016'!X$7","v":3.0953307722249489E-2},{"$f":"'Population 2016'!Y63/'Population 2016'!Y$7","v":2.7435265104808877E-2},{"$f":"'Population 2016'!Z63/'Population 2016'!Z$7","v":2.53492417127479E-2},{"$f":"'Population 2016'!AA63/'Population 2016'!AA$7","v":2.6628649455162724E-2},{"$f":"'Population 2016'!AB63/'Population 2016'!AB$7","v":2.3899188876013906E-2},{"$f":"'Population 2016'!AC63/'Population 2016'!AC$7","v":2.574934738019765E-2},{"$f":"'Population 2016'!AD63/'Population 2016'!AD$7","v":2.9571774845138701E-2},{"$f":"'Population 2016'!AE63/'Population 2016'!AE$7","v":3.0606820080504291E-2},{"$f":"'Population 2016'!AF63/'Population 2016'!AF$7","v":2.4868069110099037E-2},{"$f":"'Population 2016'!AG63/'Population 2016'!AG$7","v":3.0606820080504291E-2},{"$f":"'Population 2016'!AH63/'Population 2016'!AH$7","v":2.8805308138905916E-2},{"$f":"'Population 2016'!AI63/'Population 2016'!AI$7","v":2.8238866396761132E-2},{"$f":"'Population 2016'!AJ63/'Population 2016'!AJ$7","v":2.899165605996323E-2},{"$f":"'Population 2016'!AK63/'Population 2016'!AK$7","v":2.5196850393700787E-2},{"$f":"'Population 2016'!AL63/'Population 2016'!AL$7","v":3.0031565375894721E-2},{"$f":"'Population 2016'!AM63/'Population 2016'!AM$7","v":2.9491021441680025E-2},{"$f":"'Population 2016'!AN63/'Population 2016'!AN$7","v":{"$error":"#DIV/0!"}},{"$f":"'Population 2016'!AO63/'Population 2016'!AO$7","v":{"$error":"#DIV/0!"}},{"$f":"'Population 2016'!AP63/'Population 2016'!AP$7","v":2.7643504531722055E-2},{"$f":"'Population 2016'!AQ63/'Population 2016'!AQ$7","v":2.5568320703984355E-2},{"$f":"'Population 2016'!AR63/'Population 2016'!AR$7","v":2.7678352368745083E-2},{"$f":"'Population 2016'!AS63/'Population 2016'!AS$7","v":3.2872981910134214E-2},{"$f":"'Population 2016'!AT63/'Population 2016'!AT$7","v":{"$error":"#DIV/0!"}},{"$f":"'Population 2016'!AU63/'Population 2016'!AU$7","v":{"$error":"#DIV/0!"}},{"$f":"'Population 2016'!AV63/'Population 2016'!AV$7","v":3.0265519589032619E-2},{"$f":"'Population 2016'!AW63/'Population 2016'!AW$7","v":2.7682121725233537E-2},{"$f":"'Population 2016'!AX63/'Population 2016'!AX$7","v":3.229387425572712E-2},{"$f":"'Population 2016'!AY63/'Population 2016'!AY$7","v":3.0234571107071756E-2},{"$f":"'Population 2016'!AZ63/'Population 2016'!AZ$7","v":2.9482114066015839E-2},{"$f":"'Population 2016'!BA63/'Population 2016'!BA$7","v":2.8600866908264053E-2},{"$f":"'Population 2016'!BB63/'Population 2016'!BB$7","v":3.1309876328165828E-2},{"$f":"'Population 2016'!BC63/'Population 2016'!BC$7","v":{"$error":"#DIV/0!"}},61]
[null,"Female 20-24",{"$f":"'Population 2016'!C64/'Population 2016'!C$7","v":4.9789889214313002E-2},{"$f":"'Population 2016'!D64/'Population 2016'!D$7","v":4.891168999352493E-2},{"$f":"'Population 2016'!E64/'Population 2016'!E$7","v":4.5756119881034091E-2},{"$f":"'Population 2016'!F64/'Population 2016'!F$7","v":4.7604879500148765E-2},{"$f":"'Population 2016'!G64/'Population 2016'!G$7","v":3.8532789922193403E-2},{"$f":"'Population 2016'!H64/'Population 2016'!H$7","v":4.3827713980144109E-2},{"$f":"'Population 2016'!I64/'Population 2016'!I$7","v":4.2209686831355765E-2},{"$f":"'Population 2016'!J64/'Population 2016'!J$7","v":4.8124308558785078E-2},{"$f":"'Population 2016'!K64/'Population 2016'!K$7","v":4.430189435702115E-2},{"$f":"'Population 2016'!L64/'Population 2016'!L$7","v":5.028044871794872E-2},{"$f":"'Population 2016'!M64/'Population 2016'!M$7","v":5.028044871794872E-2},{"$f":"'Population 2016'!N64/'Population 2016'!N$7","v":4.9745933780366132E-2},{"$f":"'Population 2016'!O64/'Population 2016'!O$7","v":4.3374490835030553E-2},{"$f":"'Population 2016'!P64/'Population 2016'!P$7","v":4.2763952645566559E-2},{"$f":"'Population 2016'!Q64/'Population 2016'!Q$7","v":4.1109969167523124E-2},{"$f":"'Population 2016'!R64/'Population 2016'!R$7","v":4.6469155844155847E-2},{"$f":"'Population 2016'!S64/'Population 2016'!S$7","v":4.0888018282729352E-2},{"$f":"'Population 2016'!T64/'Population 2016'!T$7","v":4.2454347282278523E-2},{"$f":"'Population 2016'!U64/'Population 2016'!U$7","v":{"$error":"#DIV/0!"}},{"$f":"'Population 2016'!V64/'Population 2016'!V$7","v":4.0752021846444698E-2},{"$f":"'Population 2016'!W64/'Population 2016'!W$7","v":3.8044306046810743E-2},{"$f":"'Population 2016'!X64/'Population 2016'!X$7","v":3.8044306046810743E-2},{"$f":"'Population 2016'!Y64/'Population 2016'!Y$7","v":4.4518084669132756E-2},{"$f":"'Population 2016'!Z64/'Population 2016'!Z$7","v":4.3159832043901065E-2},{"$f":"'Population 2016'!AA64/'Population 2016'!AA$7","v":4.2441485244466025E-2},{"$f":"'Population 2016'!AB64/'Population 2016'!AB$7","v":4.9101969872537662E-2},{"$f":"'Population 2016'!AC64/'Population 2016'!AC$7","v":4.3611900988252843E-2},{"$f":"'Population 2016'!AD64/'Population 2016'!AD$7","v":4.368435227578777E-2},{"$f":"'Population 2016'!AE64/'Population 2016'!AE$7","v":4.5796308954203689E-2},{"$f":"'Population 2016'!AF64/'Population 2016'!AF$7","v":4.0952794043229955E-2},{"$f":"'Population 2016'!AG64/'Population 2016'!AG$7","v":4.5796308954203689E-2},{"$f":"'Population 2016'!AH64/'Population 2016'!AH$7","v":3.9544192420035339E-2},{"$f":"'Population 2016'!AI64/'Population 2016'!AI$7","v":4.2701304543409806E-2},{"$f":"'Population 2016'!AJ64/'Population 2016'!AJ$7","v":4.6103804270965915E-2},{"$f":"'Population 2016'!AK64/'Population 2016'!AK$7","v":5.5118110236220472E-2},{"$f":"'Population 2016'!AL64/'Population 2016'!AL$7","v":4.3257902458542656E-2},{"$f":"'Population 2016'!AM64/'Population 2016'!AM$7","v":3.9770483425093504E-2},{"$f":"'Population 2016'!AN64/'Population 2016'!AN$7","v":{"$error":"#DIV/0!"}},{"$f":"'Population 2016'!AO64/'Population 2016'!AO$7","v":{"$error":"#DIV/0!"}},{"$f":"'Population 2016'!AP64/'Population 2016'!AP$7","v":4.9244712990936558E-2},{"$f":"'Population 2016'!AQ64/'Population 2016'!AQ$7","v":4.7054509899780002E-2},{"$f":"'Population 2016'!AR64/'Population 2016'!AR$7","v":4.3135213715585499E-2},{"$f":"'Population 2016'!AS64/'Population 2016'!AS$7","v":4.2209686831355765E-2},{"$f":"'Population 2016'!AT64/'Population 2016'!AT$7","v":{"$error":"#DIV/0!"}},{"$f":"'Population 2016'!AU64/'Population 2016'!AU$7","v":{"$error":"#DIV/0!"}},{"$f":"'Population 2016'!AV64/'Population 2016'!AV$7","v":4.6295723215943552E-2},{"$f":"'Population 2016'!AW64/'Population 2016'!AW$7","v":3.917353170601777E-2},{"$f":"'Population 2016'!AX64/'Population 2016'!AX$7","v":5.1972953880310827E-2},{"$f":"'Population 2016'!AY64/'Population 2016'!AY$7","v":4.3607720938284425E-2},{"$f":"'Population 2016'!AZ64/'Population 2016'!AZ$7","v":4.9432150387129926E-2},{"$f":"'Population 2016'!BA64/'Population 2016'!BA$7","v":4.4659987209550202E-2},{"$f":"'Population 2016'!BB64/'Population 2016'!BB$7","v":4.2457759972130291E-2},{"$f":"'Population 2016'!BC64/'Population 2016'!BC$7","v":{"$error":"#DIV/0!"}},62]
[null,"Female 25-29",{"$f":"'Population 2016'!C65/'Population 2016'!C$7","v":6.5643703043422902E-2},{"$f":"'Population 2016'!D65/'Population 2016'!D$7","v":6.3206654380634553E-2},{"$f":"'Population 2016'!E65/'Population 2016'!E$7","v":5.4449782658430562E-2},{"$f":"'Population 2016'!F65/'Population 2016'!F$7","v":4.4480809282951506E-2},{"$f":"'Population 2016'!G65/'Population 2016'!G$7","v":3.18636532048907E-2},{"$f":"'Population 2016'!H65/'Population 2016'!H$7","v":4.3892531895816003E-2},{"$f":"'Population 2016'!I65/'Population 2016'!I$7","v":3.96809959151916E-2},{"$f":"'Population 2016'!J65/'Population 2016'!J$7","v":5.0990646686110828E-2},{"$f":"'Population 2016'!K65/'Population 2016'!K$7","v":4.2898666933948081E-2},{"$f":"'Population 2016'!L65/'Population 2016'!L$7","v":5.0480769230769232E-2},{"$f":"'Population 2016'!M65/'Population 2016'!M$7","v":5.0480769230769232E-2},{"$f":"'Population 2016'!N65/'Population 2016'!N$7","v":6.480428780250122E-2},{"$f":"'Population 2016'!O65/'Population 2016'!O$7","v":4.461558044806517E-2},{"$f":"'Population 2016'!P65/'Population 2016'!P$7","v":4.638801642908915E-2},{"$f":"'Population 2016'!Q65/'Population 2016'!Q$7","v":4.6933881466255566E-2},{"$f":"'Population 2016'!R65/'Population 2016'!R$7","v":4.4642857142857144E-2},{"$f":"'Population 2016'!S65/'Population 2016'!S$7","v":5.2530199151158995E-2},{"$f":"'Population 2016'!T65/'Population 2016'!T$7","v":6.3931672801343667E-2},{"$f":"'Population 2016'!U65/'Population 2016'!U$7","v":{"$error":"#DIV/0!"}},{"$f":"'Population 2016'!V65/'Population 2016'!V$7","v":4.684381892658334E-2},{"$f":"'Population 2016'!W65/'Population 2016'!W$7","v":4.6675354126825636E-2},{"$f":"'Population 2016'!X65/'Population 2016'!X$7","v":4.6675354126825636E-2},{"$f":"'Population 2016'!Y65/'Population 2016'!Y$7","v":4.8962186600904234E-2},{"$f":"'Population 2016'!Z65/'Population 2016'!Z$7","v":5.963115358212287E-2},{"$f":"'Population 2016'!AA65/'Population 2016'!AA$7","v":5.2001817853563177E-2},{"$f":"'Population 2016'!AB65/'Population 2016'!AB$7","v":6.2379297025878716E-2},{"$f":"'Population 2016'!AC65/'Population 2016'!AC$7","v":5.5953407607682269E-2},{"$f":"'Population 2016'!AD65/'Population 2016'!AD$7","v":4.1314301104228388E-2},{"$f":"'Population 2016'!AE65/'Population 2016'!AE$7","v":4.5188729399255716E-2},{"$f":"'Population 2016'!AF65/'Population 2016'!AF$7","v":4.1314248536109301E-2},{"$f":"'Population 2016'!AG65/'Population 2016'!AG$7","v":4.5188729399255716E-2},{"$f":"'Population 2016'!AH65/'Population 2016'!AH$7","v":4.2219898308751939E-2},{"$f":"'Population 2016'!AI65/'Population 2016'!AI$7","v":5.7163742690058479E-2},{"$f":"'Population 2016'!AJ65/'Population 2016'!AJ$7","v":4.76594541083298E-2},{"$f":"'Population 2016'!AK65/'Population 2016'!AK$7","v":3.6220472440944881E-2},{"$f":"'Population 2016'!AL65/'Population 2016'!AL$7","v":4.3346819010358778E-2},{"$f":"'Population 2016'!AM65/'Population 2016'!AM$7","v":4.3196970752897995E-2},{"$f":"'Population 2016'!AN65/'Population 2016'!AN$7","v":{"$error":"#DIV/0!"}},{"$f":"'Population 2016'!AO65/'Population 2016'!AO$7","v":{"$error":"#DIV/0!"}},{"$f":"'Population 2016'!AP65/'Population 2016'!AP$7","v":6.0574018126888216E-2},{"$f":"'Population 2016'!AQ65/'Population 2016'!AQ$7","v":5.3409924223906134E-2},{"$f":"'Population 2016'!AR65/'Population 2016'!AR$7","v":5.1739556128286672E-2},{"$f":"'Population 2016'!AS65/'Population 2016'!AS$7","v":3.96809959151916E-2},{"$f":"'Population 2016'!AT65/'Population 2016'!AT$7","v":{"$error":"#DIV/0!"}},{"$f":"'Population 2016'!AU65/'Population 2016'!AU$7","v":{"$error":"#DIV/0!"}},{"$f":"'Population 2016'!AV65/'Population 2016'!AV$7","v":4.4005694126384852E-2},{"$f":"'Population 2016'!AW65/'Population 2016'!AW$7","v":4.0619470710222406E-2},{"$f":"'Population 2016'!AX65/'Population 2016'!AX$7","v":5.9138157230800285E-2},{"$f":"'Population 2016'!AY65/'Population 2016'!AY$7","v":5.4107158313857873E-2},{"$f":"'Population 2016'!AZ65/'Population 2016'!AZ$7","v":6.1887634875356569E-2},{"$f":"'Population 2016'!BA65/'Population 2016'!BA$7","v":4.6400909543096711E-2},{"$f":"'Population 2016'!BB65/'Population 2016'!BB$7","v":4.4896359519247517E-2},{"$f":"'Population 2016'!BC65/'Population 2016'!BC$7","v":{"$error":"#DIV/0!"}},63]
[null,"Female 30-34",{"$f":"'Population 2016'!C66/'Population 2016'!C$7","v":5.7684961161339615E-2},{"$f":"'Population 2016'!D66/'Population 2016'!D$7","v":5.6831199880460231E-2},{"$f":"'Population 2016'!E66/'Population 2016'!E$7","v":5.3763440860215055E-2},{"$f":"'Population 2016'!F66/'Population 2016'!F$7","v":4.9390062481404345E-2},{"$f":"'Population 2016'!G66/'Population 2016'!G$7","v":3.7236013338273435E-2},{"$f":"'Population 2016'!H66/'Population 2016'!H$7","v":3.8955567318806915E-2},{"$f":"'Population 2016'!I66/'Population 2016'!I$7","v":4.0264539972767945E-2},{"$f":"'Population 2016'!J66/'Population 2016'!J$7","v":4.4604244191893794E-2},{"$f":"'Population 2016'!K66/'Population 2016'!K$7","v":4.099428685977749E-2},{"$f":"'Population 2016'!L66/'Population 2016'!L$7","v":4.3068910256410256E-2},{"$f":"'Population 2016'!M66/'Population 2016'!M$7","v":4.3068910256410256E-2},{"$f":"'Population 2016'!N66/'Population 2016'!N$7","v":5.1950161256641689E-2},{"$f":"'Population 2016'!O66/'Population 2016'!O$7","v":3.9651221995926682E-2},{"$f":"'Population 2016'!P66/'Population 2016'!P$7","v":3.9864701618748492E-2},{"$f":"'Population 2016'!Q66/'Population 2016'!Q$7","v":4.2480301473107225E-2},{"$f":"'Population 2016'!R66/'Population 2016'!R$7","v":4.3425324675324672E-2},{"$f":"'Population 2016'!S66/'Population 2016'!S$7","v":5.0199151158994447E-2},{"$f":"'Population 2016'!T66/'Population 2016'!T$7","v":6.2948933280920563E-2},{"$f":"'Population 2016'!U66/'Population 2016'!U$7","v":{"$error":"#DIV/0!"}},{"$f":"'Population 2016'!V66/'Population 2016'!V$7","v":4.5898540069320447E-2},{"$f":"'Population 2016'!W66/'Population 2016'!W$7","v":4.1175176428776931E-2},{"$f":"'Population 2016'!X66/'Population 2016'!X$7","v":4.1175176428776931E-2},{"$f":"'Population 2016'!Y66/'Population 2016'!Y$7","v":4.5237361282367446E-2},{"$f":"'Population 2016'!Z66/'Population 2016'!Z$7","v":5.0492118108346001E-2},{"$f":"'Population 2016'!AA66/'Population 2016'!AA$7","v":4.7301545798081296E-2},{"$f":"'Population 2016'!AB66/'Population 2016'!AB$7","v":5.6682116647354189E-2},{"$f":"'Population 2016'!AC66/'Population 2016'!AC$7","v":4.862308875629312E-2},{"$f":"'Population 2016'!AD66/'Population 2016'!AD$7","v":4.6108268246700779E-2},{"$f":"'Population 2016'!AE66/'Population 2016'!AE$7","v":4.9745576061365537E-2},{"$f":"'Population 2016'!AF66/'Population 2016'!AF$7","v":4.0410612303910937E-2},{"$f":"'Population 2016'!AG66/'Population 2016'!AG$7","v":4.9745576061365537E-2},{"$f":"'Population 2016'!AH66/'Population 2016'!AH$7","v":4.4030146767155894E-2},{"$f":"'Population 2016'!AI66/'Population 2016'!AI$7","v":5.6770130454340983E-2},{"$f":"'Population 2016'!AJ66/'Population 2016'!AJ$7","v":4.1861122896337151E-2},{"$f":"'Population 2016'!AK66/'Population 2016'!AK$7","v":5.1968503937007873E-2},{"$f":"'Population 2016'!AL66/'Population 2016'!AL$7","v":3.7633930556173034E-2},{"$f":"'Population 2016'!AM66/'Population 2016'!AM$7","v":4.3673194415406416E-2},{"$f":"'Population 2016'!AN66/'Population 2016'!AN$7","v":{"$error":"#DIV/0!"}},{"$f":"'Population 2016'!AO66/'Population 2016'!AO$7","v":{"$error":"#DIV/0!"}},{"$f":"'Population 2016'!AP66/'Population 2016'!AP$7","v":5.4380664652567974E-2},{"$f":"'Population 2016'!AQ66/'Population 2016'!AQ$7","v":4.5563431923735027E-2},{"$f":"'Population 2016'!AR66/'Population 2016'!AR$7","v":4.728089021982633E-2},{"$f":"'Population 2016'!AS66/'Population 2016'!AS$7","v":4.0264539972767945E-2},{"$f":"'Population 2016'!AT66/'Population 2016'!AT$7","v":{"$error":"#DIV/0!"}},{"$f":"'Population 2016'!AU66/'Population 2016'!AU$7","v":{"$error":"#DIV/0!"}},{"$f":"'Population 2016'!AV66/'Population 2016'!AV$7","v":4.1282416290152876E-2},{"$f":"'Population 2016'!AW66/'Population 2016'!AW$7","v":4.4614828484998384E-2},{"$f":"'Population 2016'!AX66/'Population 2016'!AX$7","v":4.8238974669492382E-2},{"$f":"'Population 2016'!AY66/'Population 2016'!AY$7","v":4.6429498831472342E-2},{"$f":"'Population 2016'!AZ66/'Population 2016'!AZ$7","v":5.1930334331425736E-2},{"$f":"'Population 2016'!BA66/'Population 2016'!BA$7","v":4.7573367441199457E-2},{"$f":"'Population 2016'!BB66/'Population 2016'!BB$7","v":4.8118794635080994E-2},{"$f":"'Population 2016'!BC66/'Population 2016'!BC$7","v":{"$error":"#DIV/0!"}},64]
[null,"Female 35-39",{"$f":"'Population 2016'!C67/'Population 2016'!C$7","v":4.1258117916719725E-2},{"$f":"'Population 2016'!D67/'Population 2016'!D$7","v":4.0842755391741793E-2},{"$f":"'Population 2016'!E67/'Population 2016'!E$7","v":3.9350263097689318E-2},{"$f":"'Population 2016'!F67/'Population 2016'!F$7","v":4.4332044034513539E-2},{"$f":"'Population 2016'!G67/'Population 2016'!G$7","v":3.2789922193404965E-2},{"$f":"'Population 2016'!H67/'Population 2016'!H$7","v":3.4990871476876212E-2},{"$f":"'Population 2016'!I67/'Population 2016'!I$7","v":3.7346819684886207E-2},{"$f":"'Population 2016'!J67/'Population 2016'!J$7","v":3.8921854571055015E-2},{"$f":"'Population 2016'!K67/'Population 2016'!K$7","v":4.2297283752631053E-2},{"$f":"'Population 2016'!L67/'Population 2016'!L$7","v":3.6157852564102567E-2},{"$f":"'Population 2016'!M67/'Population 2016'!M$7","v":3.6157852564102567E-2},{"$f":"'Population 2016'!N67/'Population 2016'!N$7","v":4.0673797535905706E-2},{"$f":"'Population 2016'!O67/'Population 2016'!O$7","v":3.4845977596741344E-2},{"$f":"'Population 2016'!P67/'Population 2016'!P$7","v":3.6482242087460738E-2},{"$f":"'Population 2016'!Q67/'Population 2016'!Q$7","v":4.9674546077423776E-2},{"$f":"'Population 2016'!R67/'Population 2016'!R$7","v":4.3628246753246752E-2},{"$f":"'Population 2016'!S67/'Population 2016'!S$7","v":4.3075416258570032E-2},{"$f":"'Population 2016'!T67/'Population 2016'!T$7","v":5.0423471393345957E-2},{"$f":"'Population 2016'!U67/'Population 2016'!U$7","v":{"$error":"#DIV/0!"}},{"$f":"'Population 2016'!V67/'Population 2016'!V$7","v":3.6235689528410879E-2},{"$f":"'Population 2016'!W67/'Population 2016'!W$7","v":3.7418131970417504E-2},{"$f":"'Population 2016'!X67/'Population 2016'!X$7","v":3.7418131970417504E-2},{"$f":"'Population 2016'!Y67/'Population 2016'!Y$7","v":3.76078914919852E-2},{"$f":"'Population 2016'!Z67/'Population 2016'!Z$7","v":4.1854255547647226E-2},{"$f":"'Population 2016'!AA67/'Population 2016'!AA$7","v":4.0438941079547694E-2},{"$f":"'Population 2016'!AB67/'Population 2016'!AB$7","v":4.0749324063344923E-2},{"$f":"'Population 2016'!AC67/'Population 2016'!AC$7","v":4.093732519112437E-2},{"$f":"'Population 2016'!AD67/'Population 2016'!AD$7","v":3.7651494748182066E-2},{"$f":"'Population 2016'!AE67/'Population 2016'!AE$7","v":3.9644565960355434E-2},{"$f":"'Population 2016'!AF67/'Population 2016'!AF$7","v":3.589243114291911E-2},{"$f":"'Population 2016'!AG67/'Population 2016'!AG$7","v":3.9644565960355434E-2},{"$f":"'Population 2016'!AH67/'Population 2016'!AH$7","v":3.9205221593162885E-2},{"$f":"'Population 2016'!AI67/'Population 2016'!AI$7","v":4.7165991902834006E-2},{"$f":"'Population 2016'!AJ67/'Population 2016'!AJ$7","v":3.9598359496535146E-2},{"$f":"'Population 2016'!AK67/'Population 2016'!AK$7","v":3.7795275590551181E-2},{"$f":"'Population 2016'!AL67/'Population 2016'!AL$7","v":3.5166496243275683E-2},{"$f":"'Population 2016'!AM67/'Population 2016'!AM$7","v":3.9085185959532601E-2},{"$f":"'Population 2016'!AN67/'Population 2016'!AN$7","v":{"$error":"#DIV/0!"}},{"$f":"'Population 2016'!AO67/'Population 2016'!AO$7","v":{"$error":"#DIV/0!"}},{"$f":"'Population 2016'!AP67/'Population 2016'!AP$7","v":4.4712990936555889E-2},{"$f":"'Population 2016'!AQ67/'Population 2016'!AQ$7","v":4.0210217550721093E-2},{"$f":"'Population 2016'!AR67/'Population 2016'!AR$7","v":4.0170412985506186E-2},{"$f":"'Population 2016'!AS67/'Population 2016'!AS$7","v":3.7346819684886207E-2},{"$f":"'Population 2016'!AT67/'Population 2016'!AT$7","v":{"$error":"#DIV/0!"}},{"$f":"'Population 2016'!AU67/'Population 2016'!AU$7","v":{"$error":"#DIV/0!"}},{"$f":"'Population 2016'!AV67/'Population 2016'!AV$7","v":3.4783685090053848E-2},{"$f":"'Population 2016'!AW67/'Population 2016'!AW$7","v":3.9401837864576399E-2},{"$f":"'Population 2016'!AX67/'Population 2016'!AX$7","v":3.5523261681299829E-2},{"$f":"'Population 2016'!AY67/'Population 2016'!AY$7","v":3.945295594217952E-2},{"$f":"'Population 2016'!AZ67/'Population 2016'!AZ$7","v":4.1583246221718252E-2},{"$f":"'Population 2016'!BA67/'Population 2016'!BA$7","v":3.9401691181695446E-2},{"$f":"'Population 2016'!BB67/'Population 2016'!BB$7","v":4.1238460198571678E-2},{"$f":"'Population 2016'!BC67/'Population 2016'!BC$7","v":{"$error":"#DIV/0!"}},65]
[null,"Female 40-44",{"$f":"'Population 2016'!C68/'Population 2016'!C$7","v":4.2085827072456387E-2},{"$f":"'Population 2016'!D68/'Population 2016'!D$7","v":4.1291029536285301E-2},{"$f":"'Population 2016'!E68/'Population 2016'!E$7","v":3.8435140700068635E-2},{"$f":"'Population 2016'!F68/'Population 2016'!F$7","v":3.7935138351681046E-2},{"$f":"'Population 2016'!G68/'Population 2016'!G$7","v":3.8532789922193403E-2},{"$f":"'Population 2016'!H68/'Population 2016'!H$7","v":3.9722579320924302E-2},{"$f":"'Population 2016'!I68/'Population 2016'!I$7","v":4.5321921805096282E-2},{"$f":"'Population 2016'!J68/'Population 2016'!J$7","v":3.8921854571055015E-2},{"$f":"'Population 2016'!K68/'Population 2016'!K$7","v":4.0793825799338476E-2},{"$f":"'Population 2016'!L68/'Population 2016'!L$7","v":3.6558493589743592E-2},{"$f":"'Population 2016'!M68/'Population 2016'!M$7","v":3.6558493589743592E-2},{"$f":"'Population 2016'!N68/'Population 2016'!N$7","v":3.362026961182394E-2},{"$f":"'Population 2016'!O68/'Population 2016'!O$7","v":3.9205702647657839E-2},{"$f":"'Population 2016'!P68/'Population 2016'!P$7","v":4.2522348393331723E-2},{"$f":"'Population 2016'!Q68/'Population 2016'!Q$7","v":3.6313806097978761E-2},{"$f":"'Population 2016'!R68/'Population 2016'!R$7","v":4.0787337662337664E-2},{"$f":"'Population 2016'!S68/'Population 2016'!S$7","v":3.9758406790728042E-2},{"$f":"'Population 2016'!T68/'Population 2016'!T$7","v":3.9041560947718261E-2},{"$f":"'Population 2016'!U68/'Population 2016'!U$7","v":{"$error":"#DIV/0!"}},{"$f":"'Population 2016'!V68/'Population 2016'!V$7","v":4.1592269719567275E-2},{"$f":"'Population 2016'!W68/'Population 2016'!W$7","v":3.8501243886340943E-2},{"$f":"'Population 2016'!X68/'Population 2016'!X$7","v":3.8501243886340943E-2},{"$f":"'Population 2016'!Y68/'Population 2016'!Y$7","v":4.0228113440197284E-2},{"$f":"'Population 2016'!Z68/'Population 2016'!Z$7","v":3.7474256979569832E-2},{"$f":"'Population 2016'!AA68/'Population 2016'!AA$7","v":3.8241330436388617E-2},{"$f":"'Population 2016'!AB68/'Population 2016'!AB$7","v":4.1376979528775587E-2},{"$f":"'Population 2016'!AC68/'Population 2016'!AC$7","v":3.7481936416184969E-2},{"$f":"'Population 2016'!AD68/'Population 2016'!AD$7","v":3.9536762725558845E-2},{"$f":"'Population 2016'!AE68/'Population 2016'!AE$7","v":3.994835573782942E-2},{"$f":"'Population 2016'!AF68/'Population 2016'!AF$7","v":3.6109303838646717E-2},{"$f":"'Population 2016'!AG68/'Population 2016'!AG$7","v":3.994835573782942E-2},{"$f":"'Population 2016'!AH68/'Population 2016'!AH$7","v":4.0121164040243767E-2},{"$f":"'Population 2016'!AI68/'Population 2016'!AI$7","v":4.0272154745838958E-2},{"$f":"'Population 2016'!AJ68/'Population 2016'!AJ$7","v":4.0164050346485645E-2},{"$f":"'Population 2016'!AK68/'Population 2016'!AK$7","v":4.4094488188976377E-2},{"$f":"'Population 2016'!AL68/'Population 2016'!AL$7","v":4.0834926421553369E-2},{"$f":"'Population 2016'!AM68/'Population 2016'!AM$7","v":4.0246707087601925E-2},{"$f":"'Population 2016'!AN68/'Population 2016'!AN$7","v":{"$error":"#DIV/0!"}},{"$f":"'Population 2016'!AO68/'Population 2016'!AO$7","v":{"$error":"#DIV/0!"}},{"$f":"'Population 2016'!AP68/'Population 2016'!AP$7","v":3.6706948640483385E-2},{"$f":"'Population 2016'!AQ68/'Population 2016'!AQ$7","v":3.6323637252505502E-2},{"$f":"'Population 2016'!AR68/'Population 2016'!AR$7","v":3.8594001151067259E-2},{"$f":"'Population 2016'!AS68/'Population 2016'!AS$7","v":4.5321921805096282E-2},{"$f":"'Population 2016'!AT68/'Population 2016'!AT$7","v":{"$error":"#DIV/0!"}},{"$f":"'Population 2016'!AU68/'Population 2016'!AU$7","v":{"$error":"#DIV/0!"}},{"$f":"'Population 2016'!AV68/'Population 2016'!AV$7","v":3.7630748282478185E-2},{"$f":"'Population 2016'!AW68/'Population 2016'!AW$7","v":3.9915526721333305E-2},{"$f":"'Population 2016'!AX68/'Population 2016'!AX$7","v":3.7037037037037035E-2},{"$f":"'Population 2016'!AY68/'Population 2016'!AY$7","v":3.6544620444906084E-2},{"$f":"'Population 2016'!AZ68/'Population 2016'!AZ$7","v":3.4496199571233677E-2},{"$f":"'Population 2016'!BA68/'Population 2016'!BA$7","v":3.9259575072834507E-2},{"$f":"'Population 2016'!BB68/'Population 2016'!BB$7","v":4.3807699007141612E-2},{"$f":"'Population 2016'!BC68/'Population 2016'!BC$7","v":{"$error":"#DIV/0!"}},66]
[null,"Female 45-49",{"$f":"'Population 2016'!C69/'Population 2016'!C$7","v":3.7819941423659749E-2},{"$f":"'Population 2016'!D69/'Population 2016'!D$7","v":3.9348508243263434E-2},{"$f":"'Population 2016'!E69/'Population 2016'!E$7","v":4.4840997483413407E-2},{"$f":"'Population 2016'!F69/'Population 2016'!F$7","v":4.5224635525141325E-2},{"$f":"'Population 2016'!G69/'Population 2016'!G$7","v":4.4275657650981848E-2},{"$f":"'Population 2016'!H69/'Population 2016'!H$7","v":4.7349487398316896E-2},{"$f":"'Population 2016'!I69/'Population 2016'!I$7","v":4.4154833689943593E-2},{"$f":"'Population 2016'!J69/'Population 2016'!J$7","v":4.9381474404103391E-2},{"$f":"'Population 2016'!K69/'Population 2016'!K$7","v":4.7308810263606296E-2},{"$f":"'Population 2016'!L69/'Population 2016'!L$7","v":4.5873397435897433E-2},{"$f":"'Population 2016'!M69/'Population 2016'!M$7","v":4.5873397435897433E-2},{"$f":"'Population 2016'!N69/'Population 2016'!N$7","v":3.821434372027193E-2},{"$f":"'Population 2016'!O69/'Population 2016'!O$7","v":4.8593431771894097E-2},{"$f":"'Population 2016'!P69/'Population 2016'!P$7","v":5.0978497221551101E-2},{"$f":"'Population 2016'!Q69/'Population 2016'!Q$7","v":5.2415210688591986E-2},{"$f":"'Population 2016'!R69/'Population 2016'!R$7","v":4.9918831168831168E-2},{"$f":"'Population 2016'!S69/'Population 2016'!S$7","v":4.4531505060398303E-2},{"$f":"'Population 2016'!T69/'Population 2016'!T$7","v":4.1614551692098774E-2},{"$f":"'Population 2016'!U69/'Population 2016'!U$7","v":{"$error":"#DIV/0!"}},{"$f":"'Population 2016'!V69/'Population 2016'!V$7","v":4.1434723243356793E-2},{"$f":"'Population 2016'!W69/'Population 2016'!W$7","v":4.6709201374198241E-2},{"$f":"'Population 2016'!X69/'Population 2016'!X$7","v":4.6709201374198241E-2},{"$f":"'Population 2016'!Y69/'Population 2016'!Y$7","v":4.5494245787094122E-2},{"$f":"'Population 2016'!Z69/'Population 2016'!Z$7","v":4.3985293312500263E-2},{"$f":"'Population 2016'!AA69/'Population 2016'!AA$7","v":4.546294048189721E-2},{"$f":"'Population 2016'!AB69/'Population 2016'!AB$7","v":3.9494013132483581E-2},{"$f":"'Population 2016'!AC69/'Population 2016'!AC$7","v":4.5147305612530303E-2},{"$f":"'Population 2016'!AD69/'Population 2016'!AD$7","v":4.5731214651225427E-2},{"$f":"'Population 2016'!AE69/'Population 2016'!AE$7","v":4.6327941064783169E-2},{"$f":"'Population 2016'!AF69/'Population 2016'!AF$7","v":4.8543338393696234E-2},{"$f":"'Population 2016'!AG69/'Population 2016'!AG$7","v":4.6327941064783169E-2},{"$f":"'Population 2016'!AH69/'Population 2016'!AH$7","v":4.6244275359705746E-2},{"$f":"'Population 2016'!AI69/'Population 2016'!AI$7","v":4.3106162843004947E-2},{"$f":"'Population 2016'!AJ69/'Population 2016'!AJ$7","v":4.4123886296139163E-2},{"$f":"'Population 2016'!AK69/'Population 2016'!AK$7","v":4.4094488188976377E-2},{"$f":"'Population 2016'!AL69/'Population 2016'!AL$7","v":4.717023073845196E-2},{"$f":"'Population 2016'!AM69/'Population 2016'!AM$7","v":4.6275001742281691E-2},{"$f":"'Population 2016'!AN69/'Population 2016'!AN$7","v":{"$error":"#DIV/0!"}},{"$f":"'Population 2016'!AO69/'Population 2016'!AO$7","v":{"$error":"#DIV/0!"}},{"$f":"'Population 2016'!AP69/'Population 2016'!AP$7","v":3.610271903323263E-2},{"$f":"'Population 2016'!AQ69/'Population 2016'!AQ$7","v":4.5881202639941332E-2},{"$f":"'Population 2016'!AR69/'Population 2016'!AR$7","v":4.4938628854183628E-2},{"$f":"'Population 2016'!AS69/'Population 2016'!AS$7","v":4.4154833689943593E-2},{"$f":"'Population 2016'!AT69/'Population 2016'!AT$7","v":{"$error":"#DIV/0!"}},{"$f":"'Population 2016'!AU69/'Population 2016'!AU$7","v":{"$error":"#DIV/0!"}},{"$f":"'Population 2016'!AV69/'Population 2016'!AV$7","v":4.5429225722597014E-2},{"$f":"'Population 2016'!AW69/'Population 2016'!AW$7","v":4.6193946081695553E-2},{"$f":"'Population 2016'!AX69/'Population 2016'!AX$7","v":5.1468362095065091E-2},{"$f":"'Population 2016'!AY69/'Population 2016'!AY$7","v":4.284601402233186E-2},{"$f":"'Population 2016'!AZ69/'Population 2016'!AZ$7","v":3.880158041140306E-2},{"$f":"'Population 2016'!BA69/'Population 2016'!BA$7","v":4.8852412420947913E-2},{"$f":"'Population 2016'!BB69/'Population 2016'!BB$7","v":4.5244730883121406E-2},{"$f":"'Population 2016'!BC69/'Population 2016'!BC$7","v":{"$error":"#DIV/0!"}},67]
[null,"Female 50-54",{"$f":"'Population 2016'!C70/'Population 2016'!C$7","v":3.9921049280529732E-2},{"$f":"'Population 2016'!D70/'Population 2016'!D$7","v":4.04442894854809E-2},{"$f":"'Population 2016'!E70/'Population 2016'!E$7","v":4.2324410889956532E-2},{"$f":"'Population 2016'!F70/'Population 2016'!F$7","v":4.1505504314192206E-2},{"$f":"'Population 2016'!G70/'Population 2016'!G$7","v":4.3164134864764725E-2},{"$f":"'Population 2016'!H70/'Population 2016'!H$7","v":4.8224529259887433E-2},{"$f":"'Population 2016'!I70/'Population 2016'!I$7","v":4.2793230888932117E-2},{"$f":"'Population 2016'!J70/'Population 2016'!J$7","v":4.5509403600522982E-2},{"$f":"'Population 2016'!K70/'Population 2016'!K$7","v":4.580535231031372E-2},{"$f":"'Population 2016'!L70/'Population 2016'!L$7","v":4.737580128205128E-2},{"$f":"'Population 2016'!M70/'Population 2016'!M$7","v":4.737580128205128E-2},{"$f":"'Population 2016'!N70/'Population 2016'!N$7","v":4.3295668112949257E-2},{"$f":"'Population 2016'!O70/'Population 2016'!O$7","v":4.9834521384928714E-2},{"$f":"'Population 2016'!P70/'Population 2016'!P$7","v":5.1220101473785938E-2},{"$f":"'Population 2016'!Q70/'Population 2016'!Q$7","v":4.2822884549503254E-2},{"$f":"'Population 2016'!R70/'Population 2016'!R$7","v":5.2353896103896104E-2},{"$f":"'Population 2016'!S70/'Population 2016'!S$7","v":4.2827293503101535E-2},{"$f":"'Population 2016'!T70/'Population 2016'!T$7","v":3.7397705749919595E-2},{"$f":"'Population 2016'!U70/'Population 2016'!U$7","v":{"$error":"#DIV/0!"}},{"$f":"'Population 2016'!V70/'Population 2016'!V$7","v":4.4113013338934984E-2},{"$f":"'Population 2016'!W70/'Population 2016'!W$7","v":4.6810743116316063E-2},{"$f":"'Population 2016'!X70/'Population 2016'!X$7","v":4.6810743116316063E-2},{"$f":"'Population 2016'!Y70/'Population 2016'!Y$7","v":4.482634607480477E-2},{"$f":"'Population 2016'!Z70/'Population 2016'!Z$7","v":4.6141600299861439E-2},{"$f":"'Population 2016'!AA70/'Population 2016'!AA$7","v":4.6535806112221328E-2},{"$f":"'Population 2016'!AB70/'Population 2016'!AB$7","v":4.0507918115102355E-2},{"$f":"'Population 2016'!AC70/'Population 2016'!AC$7","v":4.6513728323699419E-2},{"$f":"'Population 2016'!AD70/'Population 2016'!AD$7","v":4.2822515486129815E-2},{"$f":"'Population 2016'!AE70/'Population 2016'!AE$7","v":4.2682463735095315E-2},{"$f":"'Population 2016'!AF70/'Population 2016'!AF$7","v":4.7820429407937542E-2},{"$f":"'Population 2016'!AG70/'Population 2016'!AG$7","v":4.2682463735095315E-2},{"$f":"'Population 2016'!AH70/'Population 2016'!AH$7","v":4.65904583318308E-2},{"$f":"'Population 2016'!AI70/'Population 2016'!AI$7","v":4.0182186234817813E-2},{"$f":"'Population 2016'!AJ70/'Population 2016'!AJ$7","v":4.4830999858577289E-2},{"$f":"'Population 2016'!AK70/'Population 2016'!AK$7","v":4.2519685039370078E-2},{"$f":"'Population 2016'!AL70/'Population 2016'!AL$7","v":4.8948561774774371E-2},{"$f":"'Population 2016'!AM70/'Population 2016'!AM$7","v":4.69486839965619E-2},{"$f":"'Population 2016'!AN70/'Population 2016'!AN$7","v":{"$error":"#DIV/0!"}},{"$f":"'Population 2016'!AO70/'Population 2016'!AO$7","v":{"$error":"#DIV/0!"}},{"$f":"'Population 2016'!AP70/'Population 2016'!AP$7","v":3.9123867069486402E-2},{"$f":"'Population 2016'!AQ70/'Population 2016'!AQ$7","v":4.3950134441456859E-2},{"$f":"'Population 2016'!AR70/'Population 2016'!AR$7","v":4.5519894890591286E-2},{"$f":"'Population 2016'!AS70/'Population 2016'!AS$7","v":4.2793230888932117E-2},{"$f":"'Population 2016'!AT70/'Population 2016'!AT$7","v":{"$error":"#DIV/0!"}},{"$f":"'Population 2016'!AU70/'Population 2016'!AU$7","v":{"$error":"#DIV/0!"}},{"$f":"'Population 2016'!AV70/'Population 2016'!AV$7","v":4.307730395494213E-2},{"$f":"'Population 2016'!AW70/'Population 2016'!AW$7","v":4.6003690949563365E-2},{"$f":"'Population 2016'!AX70/'Population 2016'!AX$7","v":4.5211423958017964E-2},{"$f":"'Population 2016'!AY70/'Population 2016'!AY$7","v":4.4750281312213279E-2},{"$f":"'Population 2016'!AZ70/'Population 2016'!AZ$7","v":4.259315036941231E-2},{"$f":"'Population 2016'!BA70/'Population 2016'!BA$7","v":5.038016059120301E-2},{"$f":"'Population 2016'!BB70/'Population 2016'!BB$7","v":4.520118446263717E-2},{"$f":"'Population 2016'!BC70/'Population 2016'!BC$7","v":{"$error":"#DIV/0!"}},68]
[null,"Female 55-59",{"$f":"'Population 2016'!C71/'Population 2016'!C$7","v":3.4445434865656439E-2},{"$f":"'Population 2016'!D71/'Population 2016'!D$7","v":3.4865766797828358E-2},{"$f":"'Population 2016'!E71/'Population 2016'!E$7","v":3.6376115305422098E-2},{"$f":"'Population 2016'!F71/'Population 2016'!F$7","v":3.8678964593870872E-2},{"$f":"'Population 2016'!G71/'Population 2016'!G$7","v":4.1311596887736196E-2},{"$f":"'Population 2016'!H71/'Population 2016'!H$7","v":4.227208400401871E-2},{"$f":"'Population 2016'!I71/'Population 2016'!I$7","v":3.7930363742462558E-2},{"$f":"'Population 2016'!J71/'Population 2016'!J$7","v":4.1989339233631698E-2},{"$f":"'Population 2016'!K71/'Population 2016'!K$7","v":4.1996592161972539E-2},{"$f":"'Population 2016'!L71/'Population 2016'!L$7","v":3.8461538461538464E-2},{"$f":"'Population 2016'!M71/'Population 2016'!M$7","v":3.8461538461538464E-2},{"$f":"'Population 2016'!N71/'Population 2016'!N$7","v":3.8724796398988376E-2},{"$f":"'Population 2016'!O71/'Population 2016'!O$7","v":4.0351323828920573E-2},{"$f":"'Population 2016'!P71/'Population 2016'!P$7","v":5.1220101473785938E-2},{"$f":"'Population 2016'!Q71/'Population 2016'!Q$7","v":4.6933881466255566E-2},{"$f":"'Population 2016'!R71/'Population 2016'!R$7","v":3.9569805194805192E-2},{"$f":"'Population 2016'!S71/'Population 2016'!S$7","v":3.9712699967352272E-2},{"$f":"'Population 2016'!T71/'Population 2016'!T$7","v":3.6861666011506984E-2},{"$f":"'Population 2016'!U71/'Population 2016'!U$7","v":{"$error":"#DIV/0!"}},{"$f":"'Population 2016'!V71/'Population 2016'!V$7","v":4.0226866925743093E-2},{"$f":"'Population 2016'!W71/'Population 2016'!W$7","v":4.1395183536698875E-2},{"$f":"'Population 2016'!X71/'Population 2016'!X$7","v":4.1395183536698875E-2},{"$f":"'Population 2016'!Y71/'Population 2016'!Y$7","v":4.112720920674065E-2},{"$f":"'Population 2016'!Z71/'Population 2016'!Z$7","v":3.9954852322452127E-2},{"$f":"'Population 2016'!AA71/'Population 2016'!AA$7","v":4.1345792685837136E-2},{"$f":"'Population 2016'!AB71/'Population 2016'!AB$7","v":3.4907300115874854E-2},{"$f":"'Population 2016'!AC71/'Population 2016'!AC$7","v":4.0914017341040464E-2},{"$f":"'Population 2016'!AD71/'Population 2016'!AD$7","v":3.980608672232696E-2},{"$f":"'Population 2016'!AE71/'Population 2016'!AE$7","v":3.9188881294144454E-2},{"$f":"'Population 2016'!AF71/'Population 2016'!AF$7","v":4.5651702450661462E-2},{"$f":"'Population 2016'!AG71/'Population 2016'!AG$7","v":3.9188881294144454E-2},{"$f":"'Population 2016'!AH71/'Population 2016'!AH$7","v":4.241462623057228E-2},{"$f":"'Population 2016'!AI71/'Population 2016'!AI$7","v":3.8697705802968961E-2},{"$f":"'Population 2016'!AJ71/'Population 2016'!AJ$7","v":4.384104087116391E-2},{"$f":"'Population 2016'!AK71/'Population 2016'!AK$7","v":3.6220472440944881E-2},{"$f":"'Population 2016'!AL71/'Population 2016'!AL$7","v":4.3591339527853108E-2},{"$f":"'Population 2016'!AM71/'Population 2016'!AM$7","v":4.1477919483355399E-2},{"$f":"'Population 2016'!AN71/'Population 2016'!AN$7","v":{"$error":"#DIV/0!"}},{"$f":"'Population 2016'!AO71/'Population 2016'!AO$7","v":{"$error":"#DIV/0!"}},{"$f":"'Population 2016'!AP71/'Population 2016'!AP$7","v":3.5196374622356495E-2},{"$f":"'Population 2016'!AQ71/'Population 2016'!AQ$7","v":4.0405768760694204E-2},{"$f":"'Population 2016'!AR71/'Population 2016'!AR$7","v":4.0732188839233512E-2},{"$f":"'Population 2016'!AS71/'Population 2016'!AS$7","v":3.7930363742462558E-2},{"$f":"'Population 2016'!AT71/'Population 2016'!AT$7","v":{"$error":"#DIV/0!"}},{"$f":"'Population 2016'!AU71/'Population 2016'!AU$7","v":{"$error":"#DIV/0!"}},{"$f":"'Population 2016'!AV71/'Population 2016'!AV$7","v":4.2334591817787953E-2},{"$f":"'Population 2016'!AW71/'Population 2016'!AW$7","v":4.3948935522535718E-2},{"$f":"'Population 2016'!AX71/'Population 2016'!AX$7","v":4.1982036532445255E-2},{"$f":"'Population 2016'!AY71/'Population 2016'!AY$7","v":3.9885743962607113E-2},{"$f":"'Population 2016'!AZ71/'Population 2016'!AZ$7","v":3.8305487145869135E-2},{"$f":"'Population 2016'!BA71/'Population 2016'!BA$7","v":4.3807290556384569E-2},{"$f":"'Population 2016'!BB71/'Population 2016'!BB$7","v":4.0541717470823899E-2},{"$f":"'Population 2016'!BC71/'Population 2016'!BC$7","v":{"$error":"#DIV/0!"}},69]
[null,"Female 60-64",{"$f":"'Population 2016'!C72/'Population 2016'!C$7","v":2.8014771424933145E-2},{"$f":"'Population 2016'!D72/'Population 2016'!D$7","v":2.8141654629675748E-2},{"$f":"'Population 2016'!E72/'Population 2016'!E$7","v":2.8597574925646307E-2},{"$f":"'Population 2016'!F72/'Population 2016'!F$7","v":3.1091936923534663E-2},{"$f":"'Population 2016'!G72/'Population 2016'!G$7","v":3.7050759540570584E-2},{"$f":"'Population 2016'!H72/'Population 2016'!H$7","v":3.8274979204252053E-2},{"$f":"'Population 2016'!I72/'Population 2016'!I$7","v":3.6179731569733517E-2},{"$f":"'Population 2016'!J72/'Population 2016'!J$7","v":3.2133159006336114E-2},{"$f":"'Population 2016'!K72/'Population 2016'!K$7","v":3.3877919214192642E-2},{"$f":"'Population 2016'!L72/'Population 2016'!L$7","v":3.4555288461538464E-2},{"$f":"'Population 2016'!M72/'Population 2016'!M$7","v":3.4555288461538464E-2},{"$f":"'Population 2016'!N72/'Population 2016'!N$7","v":3.0859184667857722E-2},{"$f":"'Population 2016'!O72/'Population 2016'!O$7","v":3.6628054989816701E-2},{"$f":"'Population 2016'!P72/'Population 2016'!P$7","v":3.9381493114278812E-2},{"$f":"'Population 2016'!Q72/'Population 2016'!Q$7","v":3.3230558410414522E-2},{"$f":"'Population 2016'!R72/'Population 2016'!R$7","v":3.49025974025974E-2},{"$f":"'Population 2016'!S72/'Population 2016'!S$7","v":3.2158015017956253E-2},{"$f":"'Population 2016'!T72/'Population 2016'!T$7","v":2.7570310545688453E-2},{"$f":"'Population 2016'!U72/'Population 2016'!U$7","v":{"$error":"#DIV/0!"}},{"$f":"'Population 2016'!V72/'Population 2016'!V$7","v":3.4082554353534293E-2},{"$f":"'Population 2016'!W72/'Population 2016'!W$7","v":3.5302679009629544E-2},{"$f":"'Population 2016'!X72/'Population 2016'!X$7","v":3.5302679009629544E-2},{"$f":"'Population 2016'!Y72/'Population 2016'!Y$7","v":3.3086724208795729E-2},{"$f":"'Population 2016'!Z72/'Population 2016'!Z$7","v":3.0752643792404916E-2},{"$f":"'Population 2016'!AA72/'Population 2016'!AA$7","v":3.3362593305069445E-2},{"$f":"'Population 2016'!AB72/'Population 2016'!AB$7","v":2.9065276168404791E-2},{"$f":"'Population 2016'!AC72/'Population 2016'!AC$7","v":3.2022072534029458E-2},{"$f":"'Population 2016'!AD72/'Population 2016'!AD$7","v":3.6681928359816859E-2},{"$f":"'Population 2016'!AE72/'Population 2016'!AE$7","v":3.6530720741247059E-2},{"$f":"'Population 2016'!AF72/'Population 2016'!AF$7","v":3.7663558158027903E-2},{"$f":"'Population 2016'!AG72/'Population 2016'!AG$7","v":3.6530720741247059E-2},{"$f":"'Population 2016'!AH72/'Population 2016'!AH$7","v":3.6680970754750998E-2},{"$f":"'Population 2016'!AI72/'Population 2016'!AI$7","v":2.9835807467386413E-2},{"$f":"'Population 2016'!AJ72/'Population 2016'!AJ$7","v":3.2810069297129117E-2},{"$f":"'Population 2016'!AK72/'Population 2016'!AK$7","v":5.826771653543307E-2},{"$f":"'Population 2016'!AL72/'Population 2016'!AL$7","v":3.9167741075001108E-2},{"$f":"'Population 2016'!AM72/'Population 2016'!AM$7","v":3.5554161730201872E-2},{"$f":"'Population 2016'!AN72/'Population 2016'!AN$7","v":{"$error":"#DIV/0!"}},{"$f":"'Population 2016'!AO72/'Population 2016'!AO$7","v":{"$error":"#DIV/0!"}},{"$f":"'Population 2016'!AP72/'Population 2016'!AP$7","v":3.2024169184290033E-2},{"$f":"'Population 2016'!AQ72/'Population 2016'!AQ$7","v":3.0774871669518457E-2},{"$f":"'Population 2016'!AR72/'Population 2016'!AR$7","v":3.34910127328217E-2},{"$f":"'Population 2016'!AS72/'Population 2016'!AS$7","v":3.6179731569733517E-2},{"$f":"'Population 2016'!AT72/'Population 2016'!AT$7","v":{"$error":"#DIV/0!"}},{"$f":"'Population 2016'!AU72/'Population 2016'!AU$7","v":{"$error":"#DIV/0!"}},{"$f":"'Population 2016'!AV72/'Population 2016'!AV$7","v":3.899238720059417E-2},{"$f":"'Population 2016'!AW72/'Population 2016'!AW$7","v":3.8526664256768324E-2},{"$f":"'Population 2016'!AX72/'Population 2016'!AX$7","v":3.0376425471793318E-2},{"$f":"'Population 2016'!AY72/'Population 2016'!AY$7","v":3.3212152687613607E-2},{"$f":"'Population 2016'!AZ72/'Population 2016'!AZ$7","v":3.1023546712496235E-2},{"$f":"'Population 2016'!BA72/'Population 2016'!BA$7","v":3.7412065657642296E-2},{"$f":"'Population 2016'!BB72/'Population 2016'!BB$7","v":3.4009754398188471E-2},{"$f":"'Population 2016'!BC72/'Population 2016'!BC$7","v":{"$error":"#DIV/0!"}},70]
[null,"Female 65-69",{"$f":"'Population 2016'!C73/'Population 2016'!C$7","v":2.5977333503119825E-2},{"$f":"'Population 2016'!D73/'Population 2016'!D$7","v":2.6149325098371271E-2},{"$f":"'Population 2016'!E73/'Population 2016'!E$7","v":2.6767330130404943E-2},{"$f":"'Population 2016'!F73/'Population 2016'!F$7","v":2.7819101457899436E-2},{"$f":"'Population 2016'!G73/'Population 2016'!G$7","v":4.1682104483141906E-2},{"$f":"'Population 2016'!H73/'Population 2016'!H$7","v":3.6600516382728189E-2},{"$f":"'Population 2016'!I73/'Population 2016'!I$7","v":3.7541334370744993E-2},{"$f":"'Population 2016'!J73/'Population 2016'!J$7","v":3.4396057527909085E-2},{"$f":"'Population 2016'!K73/'Population 2016'!K$7","v":3.7285757241655809E-2},{"$f":"'Population 2016'!L73/'Population 2016'!L$7","v":2.9847756410256412E-2},{"$f":"'Population 2016'!M73/'Population 2016'!M$7","v":2.9847756410256412E-2},{"$f":"'Population 2016'!N73/'Population 2016'!N$7","v":3.078957748439639E-2},{"$f":"'Population 2016'!O73/'Population 2016'!O$7","v":3.5705193482688392E-2},{"$f":"'Population 2016'!P73/'Population 2016'!P$7","v":3.5515825078521385E-2},{"$f":"'Population 2016'!Q73/'Population 2016'!Q$7","v":3.4943473792394653E-2},{"$f":"'Population 2016'!R73/'Population 2016'!R$7","v":3.510551948051948E-2},{"$f":"'Population 2016'!S73/'Population 2016'!S$7","v":3.2066601371204699E-2},{"$f":"'Population 2016'!T73/'Population 2016'!T$7","v":2.667691098166744E-2},{"$f":"'Population 2016'!U73/'Population 2016'!U$7","v":{"$error":"#DIV/0!"}},{"$f":"'Population 2016'!V73/'Population 2016'!V$7","v":3.4345131813885099E-2},{"$f":"'Population 2016'!W73/'Population 2016'!W$7","v":3.5505762493865188E-2},{"$f":"'Population 2016'!X73/'Population 2016'!X$7","v":3.5505762493865188E-2},{"$f":"'Population 2016'!Y73/'Population 2016'!Y$7","v":3.4371146732429102E-2},{"$f":"'Population 2016'!Z73/'Population 2016'!Z$7","v":2.7593990978887564E-2},{"$f":"'Population 2016'!AA73/'Population 2016'!AA$7","v":3.1011419689678285E-2},{"$f":"'Population 2016'!AB73/'Population 2016'!AB$7","v":2.6892622634221708E-2},{"$f":"'Population 2016'!AC73/'Population 2016'!AC$7","v":2.9394112437068805E-2},{"$f":"'Population 2016'!AD73/'Population 2016'!AD$7","v":3.3934823592782118E-2},{"$f":"'Population 2016'!AE73/'Population 2016'!AE$7","v":3.0758714969241284E-2},{"$f":"'Population 2016'!AF73/'Population 2016'!AF$7","v":3.7771994505891707E-2},{"$f":"'Population 2016'!AG73/'Population 2016'!AG$7","v":3.0758714969241284E-2},{"$f":"'Population 2016'!AH73/'Population 2016'!AH$7","v":3.5014965201399156E-2},{"$f":"'Population 2016'!AI73/'Population 2016'!AI$7","v":2.9464687359424202E-2},{"$f":"'Population 2016'!AJ73/'Population 2016'!AJ$7","v":3.6911327959270261E-2},{"$f":"'Population 2016'!AK73/'Population 2016'!AK$7","v":5.0393700787401574E-2},{"$f":"'Population 2016'!AL73/'Population 2016'!AL$7","v":3.8367492108656025E-2},{"$f":"'Population 2016'!AM73/'Population 2016'!AM$7","v":3.3707343136571657E-2},{"$f":"'Population 2016'!AN73/'Population 2016'!AN$7","v":{"$error":"#DIV/0!"}},{"$f":"'Population 2016'!AO73/'Population 2016'!AO$7","v":{"$error":"#DIV/0!"}},{"$f":"'Population 2016'!AP73/'Population 2016'!AP$7","v":2.7492447129909364E-2},{"$f":"'Population 2016'!AQ73/'Population 2016'!AQ$7","v":2.9650452212173061E-2},{"$f":"'Population 2016'!AR73/'Population 2016'!AR$7","v":3.1828614798322469E-2},{"$f":"'Population 2016'!AS73/'Population 2016'!AS$7","v":3.7541334370744993E-2},{"$f":"'Population 2016'!AT73/'Population 2016'!AT$7","v":{"$error":"#DIV/0!"}},{"$f":"'Population 2016'!AU73/'Population 2016'!AU$7","v":{"$error":"#DIV/0!"}},{"$f":"'Population 2016'!AV73/'Population 2016'!AV$7","v":3.3422046171937857E-2},{"$f":"'Population 2016'!AW73/'Population 2016'!AW$7","v":3.7156827305416563E-2},{"$f":"'Population 2016'!AX73/'Population 2016'!AX$7","v":3.1486527399333941E-2},{"$f":"'Population 2016'!AY73/'Population 2016'!AY$7","v":3.2839954990045876E-2},{"$f":"'Population 2016'!AZ73/'Population 2016'!AZ$7","v":3.0049077798054605E-2},{"$f":"'Population 2016'!BA73/'Population 2016'!BA$7","v":3.4072337099410217E-2},{"$f":"'Population 2016'!BB73/'Population 2016'!BB$7","v":3.3269465249956456E-2},{"$f":"'Population 2016'!BC73/'Population 2016'!BC$7","v":{"$error":"#DIV/0!"}},71]
[null,"Female 70-74",{"$f":"'Population 2016'!C74/'Population 2016'!C$7","v":1.8273271361263211E-2},{"$f":"'Population 2016'!D74/'Population 2016'!D$7","v":1.8279623449718584E-2},{"$f":"'Population 2016'!E74/'Population 2016'!E$7","v":1.8302447952413637E-2},{"$f":"'Population 2016'!F74/'Population 2016'!F$7","v":2.3951204998512346E-2},{"$f":"'Population 2016'!G74/'Population 2016'!G$7","v":3.0752130418673584E-2},{"$f":"'Population 2016'!H74/'Population 2016'!H$7","v":2.8649518726976138E-2},{"$f":"'Population 2016'!I74/'Population 2016'!I$7","v":2.8982688192958569E-2},{"$f":"'Population 2016'!J74/'Population 2016'!J$7","v":2.6551342653122801E-2},{"$f":"'Population 2016'!K74/'Population 2016'!K$7","v":2.7964317931241857E-2},{"$f":"'Population 2016'!L74/'Population 2016'!L$7","v":3.1149839743589744E-2},{"$f":"'Population 2016'!M74/'Population 2016'!M$7","v":3.1149839743589744E-2},{"$f":"'Population 2016'!N74/'Population 2016'!N$7","v":2.2227893918652406E-2},{"$f":"'Population 2016'!O74/'Population 2016'!O$7","v":2.7590376782077392E-2},{"$f":"'Population 2016'!P74/'Population 2016'!P$7","v":2.4643633727953612E-2},{"$f":"'Population 2016'!Q74/'Population 2016'!Q$7","v":2.9804727646454265E-2},{"$f":"'Population 2016'!R74/'Population 2016'!R$7","v":2.5162337662337664E-2},{"$f":"'Population 2016'!S74/'Population 2016'!S$7","v":2.4720861900097944E-2},{"$f":"'Population 2016'!T74/'Population 2016'!T$7","v":1.9404638530536398E-2},{"$f":"'Population 2016'!U74/'Population 2016'!U$7","v":{"$error":"#DIV/0!"}},{"$f":"'Population 2016'!V74/'Population 2016'!V$7","v":2.483982774918601E-2},{"$f":"'Population 2016'!W74/'Population 2016'!W$7","v":2.8143986190323073E-2},{"$f":"'Population 2016'!X74/'Population 2016'!X$7","v":2.8143986190323073E-2},{"$f":"'Population 2016'!Y74/'Population 2016'!Y$7","v":2.5714138923140156E-2},{"$f":"'Population 2016'!Z74/'Population 2016'!Z$7","v":2.2725454108986156E-2},{"$f":"'Population 2016'!AA74/'Population 2016'!AA$7","v":2.4698736425759565E-2},{"$f":"'Population 2016'!AB74/'Population 2016'!AB$7","v":1.839513325608343E-2},{"$f":"'Population 2016'!AC74/'Population 2016'!AC$7","v":2.3462264590714151E-2},{"$f":"'Population 2016'!AD74/'Population 2016'!AD$7","v":2.6016698087799623E-2},{"$f":"'Population 2016'!AE74/'Population 2016'!AE$7","v":2.4075339864813548E-2},{"$f":"'Population 2016'!AF74/'Population 2016'!AF$7","v":2.8482614038892504E-2},{"$f":"'Population 2016'!AG74/'Population 2016'!AG$7","v":2.4075339864813548E-2},{"$f":"'Population 2016'!AH74/'Population 2016'!AH$7","v":2.7759547077278138E-2},{"$f":"'Population 2016'!AI74/'Population 2016'!AI$7","v":2.2199730094466935E-2},{"$f":"'Population 2016'!AJ74/'Population 2016'!AJ$7","v":2.8001697072549851E-2},{"$f":"'Population 2016'!AK74/'Population 2016'!AK$7","v":2.2047244094488189E-2},{"$f":"'Population 2016'!AL74/'Population 2016'!AL$7","v":2.9898190548170542E-2},{"$f":"'Population 2016'!AM74/'Population 2016'!AM$7","v":2.7632587636769113E-2},{"$f":"'Population 2016'!AN74/'Population 2016'!AN$7","v":{"$error":"#DIV/0!"}},{"$f":"'Population 2016'!AO74/'Population 2016'!AO$7","v":{"$error":"#DIV/0!"}},{"$f":"'Population 2016'!AP74/'Population 2016'!AP$7","v":2.2809667673716012E-2},{"$f":"'Population 2016'!AQ74/'Population 2016'!AQ$7","v":2.3466145196773404E-2},{"$f":"'Population 2016'!AR74/'Population 2016'!AR$7","v":2.4977242345517372E-2},{"$f":"'Population 2016'!AS74/'Population 2016'!AS$7","v":2.8982688192958569E-2},{"$f":"'Population 2016'!AT74/'Population 2016'!AT$7","v":{"$error":"#DIV/0!"}},{"$f":"'Population 2016'!AU74/'Population 2016'!AU$7","v":{"$error":"#DIV/0!"}},{"$f":"'Population 2016'!AV74/'Population 2016'!AV$7","v":2.7232778362319736E-2},{"$f":"'Population 2016'!AW74/'Population 2016'!AW$7","v":2.7967504423431822E-2},{"$f":"'Population 2016'!AX74/'Population 2016'!AX$7","v":2.5128670905237661E-2},{"$f":"'Population 2016'!AY74/'Population 2016'!AY$7","v":2.5387345278282698E-2},{"$f":"'Population 2016'!AZ74/'Population 2016'!AZ$7","v":2.250137311528853E-2},{"$f":"'Population 2016'!BA74/'Population 2016'!BA$7","v":2.42663255880054E-2},{"$f":"'Population 2016'!BB74/'Population 2016'!BB$7","v":2.6258491551994428E-2},{"$f":"'Population 2016'!BC74/'Population 2016'!BC$7","v":{"$error":"#DIV/0!"}},72]
[null,"Female 75-79",{"$f":"'Population 2016'!C75/'Population 2016'!C$7","v":1.5471794218769897E-2},{"$f":"'Population 2016'!D75/'Population 2016'!D$7","v":1.4793046769935748E-2},{"$f":"'Population 2016'!E75/'Population 2016'!E$7","v":1.2354152367879203E-2},{"$f":"'Population 2016'!F75/'Population 2016'!F$7","v":2.4695031240702173E-2},{"$f":"'Population 2016'!G75/'Population 2016'!G$7","v":2.667654686921082E-2},{"$f":"'Population 2016'!H75/'Population 2016'!H$7","v":2.4717231842881372E-2},{"$f":"'Population 2016'!I75/'Population 2016'!I$7","v":2.0229527329313362E-2},{"$f":"'Population 2016'!J75/'Population 2016'!J$7","v":2.071809313084582E-2},{"$f":"'Population 2016'!K75/'Population 2016'!K$7","v":2.1349102936754537E-2},{"$f":"'Population 2016'!L75/'Population 2016'!L$7","v":1.893028846153846E-2},{"$f":"'Population 2016'!M75/'Population 2016'!M$7","v":1.893028846153846E-2},{"$f":"'Population 2016'!N75/'Population 2016'!N$7","v":1.9466808974686188E-2},{"$f":"'Population 2016'!O75/'Population 2016'!O$7","v":2.3517057026476579E-2},{"$f":"'Population 2016'!P75/'Population 2016'!P$7","v":2.0777965692196181E-2},{"$f":"'Population 2016'!Q75/'Population 2016'!Q$7","v":2.5693730729701953E-2},{"$f":"'Population 2016'!R75/'Population 2016'!R$7","v":2.2118506493506492E-2},{"$f":"'Population 2016'!S75/'Population 2016'!S$7","v":2.0339536402220047E-2},{"$f":"'Population 2016'!T75/'Population 2016'!T$7","v":1.7189007611764284E-2},{"$f":"'Population 2016'!U75/'Population 2016'!U$7","v":{"$error":"#DIV/0!"}},{"$f":"'Population 2016'!V75/'Population 2016'!V$7","v":2.6677869971641635E-2},{"$f":"'Population 2016'!W75/'Population 2016'!W$7","v":2.3100746331804565E-2},{"$f":"'Population 2016'!X75/'Population 2016'!X$7","v":2.3100746331804565E-2},{"$f":"'Population 2016'!Y75/'Population 2016'!Y$7","v":2.3633374434854089E-2},{"$f":"'Population 2016'!Z75/'Population 2016'!Z$7","v":2.1542012188188322E-2},{"$f":"'Population 2016'!AA75/'Population 2016'!AA$7","v":2.2432644997686178E-2},{"$f":"'Population 2016'!AB75/'Population 2016'!AB$7","v":1.4822325222093473E-2},{"$f":"'Population 2016'!AC75/'Population 2016'!AC$7","v":2.2168678911057244E-2},{"$f":"'Population 2016'!AD75/'Population 2016'!AD$7","v":2.2030702935631565E-2},{"$f":"'Population 2016'!AE75/'Population 2016'!AE$7","v":2.0126072757651704E-2},{"$f":"'Population 2016'!AF75/'Population 2016'!AF$7","v":2.7145232415238921E-2},{"$f":"'Population 2016'!AG75/'Population 2016'!AG$7","v":2.0126072757651704E-2},{"$f":"'Population 2016'!AH75/'Population 2016'!AH$7","v":2.3086076953589846E-2},{"$f":"'Population 2016'!AI75/'Population 2016'!AI$7","v":1.851102114260009E-2},{"$f":"'Population 2016'!AJ75/'Population 2016'!AJ$7","v":1.8384952623391317E-2},{"$f":"'Population 2016'!AK75/'Population 2016'!AK$7","v":1.5748031496062992E-2},{"$f":"'Population 2016'!AL75/'Population 2016'!AL$7","v":2.5941403992353177E-2},{"$f":"'Population 2016'!AM75/'Population 2016'!AM$7","v":2.2847120589123516E-2},{"$f":"'Population 2016'!AN75/'Population 2016'!AN$7","v":{"$error":"#DIV/0!"}},{"$f":"'Population 2016'!AO75/'Population 2016'!AO$7","v":{"$error":"#DIV/0!"}},{"$f":"'Population 2016'!AP75/'Population 2016'!AP$7","v":1.4350453172205438E-2},{"$f":"'Population 2016'!AQ75/'Population 2016'!AQ$7","v":2.3417257394280126E-2},{"$f":"'Population 2016'!AR75/'Population 2016'!AR$7","v":2.194135977272154E-2},{"$f":"'Population 2016'!AS75/'Population 2016'!AS$7","v":2.0229527329313362E-2},{"$f":"'Population 2016'!AT75/'Population 2016'!AT$7","v":{"$error":"#DIV/0!"}},{"$f":"'Population 2016'!AU75/'Population 2016'!AU$7","v":{"$error":"#DIV/0!"}},{"$f":"'Population 2016'!AV75/'Population 2016'!AV$7","v":2.3643003032741226E-2},{"$f":"'Population 2016'!AW75/'Population 2016'!AW$7","v":2.3477483305112155E-2},{"$f":"'Population 2016'!AX75/'Population 2016'!AX$7","v":2.0082753052780299E-2},{"$f":"'Population 2016'!AY75/'Population 2016'!AY$7","v":2.1336449407080411E-2},{"$f":"'Population 2016'!AZ75/'Population 2016'!AZ$7","v":1.9489378288832588E-2},{"$f":"'Population 2016'!BA75/'Population 2016'!BA$7","v":2.0962126056988561E-2},{"$f":"'Population 2016'!BB75/'Population 2016'!BB$7","v":2.0858735411949138E-2},{"$f":"'Population 2016'!BC75/'Population 2016'!BC$7","v":{"$error":"#DIV/0!"}},73]
[null,"Female 80-84",{"$f":"'Population 2016'!C76/'Population 2016'!C$7","v":1.2033617725709919E-2},{"$f":"'Population 2016'!D76/'Population 2016'!D$7","v":1.1904168949544255E-2},{"$f":"'Population 2016'!E76/'Population 2016'!E$7","v":1.1439029970258523E-2},{"$f":"'Population 2016'!F76/'Population 2016'!F$7","v":1.4430229098482595E-2},{"$f":"'Population 2016'!G76/'Population 2016'!G$7","v":2.1674694331233792E-2},{"$f":"'Population 2016'!H76/'Population 2016'!H$7","v":1.8062592500567156E-2},{"$f":"'Population 2016'!I76/'Population 2016'!I$7","v":1.5950204240420152E-2},{"$f":"'Population 2016'!J76/'Population 2016'!J$7","v":1.563914311575983E-2},{"$f":"'Population 2016'!K76/'Population 2016'!K$7","v":1.403227423073068E-2},{"$f":"'Population 2016'!L76/'Population 2016'!L$7","v":1.5124198717948718E-2},{"$f":"'Population 2016'!M76/'Population 2016'!M$7","v":1.5124198717948718E-2},{"$f":"'Population 2016'!N76/'Population 2016'!N$7","v":1.5568806700851527E-2},{"$f":"'Population 2016'!O76/'Population 2016'!O$7","v":1.7820773930753563E-2},{"$f":"'Population 2016'!P76/'Population 2016'!P$7","v":1.3529838125151003E-2},{"$f":"'Population 2016'!Q76/'Population 2016'!Q$7","v":1.4388489208633094E-2},{"$f":"'Population 2016'!R76/'Population 2016'!R$7","v":1.9074675324675324E-2},{"$f":"'Population 2016'!S76/'Population 2016'!S$7","v":1.5435847208619001E-2},{"$f":"'Population 2016'!T76/'Population 2016'!T$7","v":1.3615409355680234E-2},{"$f":"'Population 2016'!U76/'Population 2016'!U$7","v":{"$error":"#DIV/0!"}},{"$f":"'Population 2016'!V76/'Population 2016'!V$7","v":1.9063123621468333E-2},{"$f":"'Population 2016'!W76/'Population 2016'!W$7","v":1.6686692954695461E-2},{"$f":"'Population 2016'!X76/'Population 2016'!X$7","v":1.6686692954695461E-2},{"$f":"'Population 2016'!Y76/'Population 2016'!Y$7","v":1.7314015618577889E-2},{"$f":"'Population 2016'!Z76/'Population 2016'!Z$7","v":1.7052513655908996E-2},{"$f":"'Population 2016'!AA76/'Population 2016'!AA$7","v":1.758296032057308E-2},{"$f":"'Population 2016'!AB76/'Population 2016'!AB$7","v":1.2022016222479722E-2},{"$f":"'Population 2016'!AC76/'Population 2016'!AC$7","v":1.7574118963266827E-2},{"$f":"'Population 2016'!AD76/'Population 2016'!AD$7","v":1.7021276595744681E-2},{"$f":"'Population 2016'!AE76/'Population 2016'!AE$7","v":1.5113541429330904E-2},{"$f":"'Population 2016'!AF76/'Population 2016'!AF$7","v":2.161497867418492E-2},{"$f":"'Population 2016'!AG76/'Population 2016'!AG$7","v":1.5113541429330904E-2},{"$f":"'Population 2016'!AH76/'Population 2016'!AH$7","v":1.7604846561609752E-2},{"$f":"'Population 2016'!AI76/'Population 2016'!AI$7","v":1.4574898785425101E-2},{"$f":"'Population 2016'!AJ76/'Population 2016'!AJ$7","v":1.923348889831707E-2},{"$f":"'Population 2016'!AK76/'Population 2016'!AK$7","v":1.5748031496062992E-2},{"$f":"'Population 2016'!AL76/'Population 2016'!AL$7","v":1.8250122260258746E-2},{"$f":"'Population 2016'!AM76/'Population 2016'!AM$7","v":1.7202127906706624E-2},{"$f":"'Population 2016'!AN76/'Population 2016'!AN$7","v":{"$error":"#DIV/0!"}},{"$f":"'Population 2016'!AO76/'Population 2016'!AO$7","v":{"$error":"#DIV/0!"}},{"$f":"'Population 2016'!AP76/'Population 2016'!AP$7","v":1.646525679758308E-2},{"$f":"'Population 2016'!AQ76/'Population 2016'!AQ$7","v":1.9237350281104865E-2},{"$f":"'Population 2016'!AR76/'Population 2016'!AR$7","v":1.6940408193214206E-2},{"$f":"'Population 2016'!AS76/'Population 2016'!AS$7","v":1.5950204240420152E-2},{"$f":"'Population 2016'!AT76/'Population 2016'!AT$7","v":{"$error":"#DIV/0!"}},{"$f":"'Population 2016'!AU76/'Population 2016'!AU$7","v":{"$error":"#DIV/0!"}},{"$f":"'Population 2016'!AV76/'Population 2016'!AV$7","v":1.8010769325988735E-2},{"$f":"'Population 2016'!AW76/'Population 2016'!AW$7","v":1.8264492684690169E-2},{"$f":"'Population 2016'!AX76/'Population 2016'!AX$7","v":1.725703905540418E-2},{"$f":"'Population 2016'!AY76/'Population 2016'!AY$7","v":1.6125681641132174E-2},{"$f":"'Population 2016'!AZ76/'Population 2016'!AZ$7","v":1.5538349781187434E-2},{"$f":"'Population 2016'!BA76/'Population 2016'!BA$7","v":1.591700419242521E-2},{"$f":"'Population 2016'!BB76/'Population 2016'!BB$7","v":1.5502525692388086E-2},{"$f":"'Population 2016'!BC76/'Population 2016'!BC$7","v":{"$error":"#DIV/0!"}},74]
[null,"Female 85-89",{"$f":"'Population 2016'!C77/'Population 2016'!C$7","v":9.232140583216605E-3},{"$f":"'Population 2016'!D77/'Population 2016'!D$7","v":8.9654828908701505E-3},{"$f":"'Population 2016'!E77/'Population 2016'!E$7","v":8.0073209791809655E-3},{"$f":"'Population 2016'!F77/'Population 2016'!F$7","v":8.9259149062778931E-3},{"$f":"'Population 2016'!G77/'Population 2016'!G$7","v":1.593182660244535E-2},{"$f":"'Population 2016'!H77/'Population 2016'!H$7","v":1.1094666565838797E-2},{"$f":"'Population 2016'!I77/'Population 2016'!I$7","v":1.1476366465668159E-2},{"$f":"'Population 2016'!J77/'Population 2016'!J$7","v":8.2972945791008751E-3},{"$f":"'Population 2016'!K77/'Population 2016'!K$7","v":8.8202866593164279E-3},{"$f":"'Population 2016'!L77/'Population 2016'!L$7","v":1.0116185897435898E-2},{"$f":"'Population 2016'!M77/'Population 2016'!M$7","v":1.0116185897435898E-2},{"$f":"'Population 2016'!N77/'Population 2016'!N$7","v":1.0255458363303093E-2},{"$f":"'Population 2016'!O77/'Population 2016'!O$7","v":1.212449083503055E-2},{"$f":"'Population 2016'!P77/'Population 2016'!P$7","v":7.9729403237496985E-3},{"$f":"'Population 2016'!Q77/'Population 2016'!Q$7","v":7.1942446043165471E-3},{"$f":"'Population 2016'!R77/'Population 2016'!R$7","v":8.9285714285714281E-3},{"$f":"'Population 2016'!S77/'Population 2016'!S$7","v":9.2980737838720216E-3},{"$f":"'Population 2016'!T77/'Population 2016'!T$7","v":9.0948075617339093E-3},{"$f":"'Population 2016'!U77/'Population 2016'!U$7","v":{"$error":"#DIV/0!"}},{"$f":"'Population 2016'!V77/'Population 2016'!V$7","v":1.1395861779224871E-2},{"$f":"'Population 2016'!W77/'Population 2016'!W$7","v":1.0238792330213745E-2},{"$f":"'Population 2016'!X77/'Population 2016'!X$7","v":1.0238792330213745E-2},{"$f":"'Population 2016'!Y77/'Population 2016'!Y$7","v":9.8129880805589813E-3},{"$f":"'Population 2016'!Z77/'Population 2016'!Z$7","v":9.9392275198679266E-3},{"$f":"'Population 2016'!AA77/'Population 2016'!AA$7","v":1.0344748872661017E-2},{"$f":"'Population 2016'!AB77/'Population 2016'!AB$7","v":9.0768636539204327E-3},{"$f":"'Population 2016'!AC77/'Population 2016'!AC$7","v":1.042152246876748E-2},{"$f":"'Population 2016'!AD77/'Population 2016'!AD$7","v":1.1203878265553462E-2},{"$f":"'Population 2016'!AE77/'Population 2016'!AE$7","v":9.2655882129566332E-3},{"$f":"'Population 2016'!AF77/'Population 2016'!AF$7","v":1.3048507192944408E-2},{"$f":"'Population 2016'!AG77/'Population 2016'!AG$7","v":9.2655882129566332E-3},{"$f":"'Population 2016'!AH77/'Population 2016'!AH$7","v":1.0154700515668386E-2},{"$f":"'Population 2016'!AI77/'Population 2016'!AI$7","v":8.5470085470085479E-3},{"$f":"'Population 2016'!AJ77/'Population 2016'!AJ$7","v":1.0182435299109036E-2},{"$f":"'Population 2016'!AK77/'Population 2016'!AK$7","v":1.2598425196850394E-2},{"$f":"'Population 2016'!AL77/'Population 2016'!AL$7","v":1.0069799493175654E-2},{"$f":"'Population 2016'!AM77/'Population 2016'!AM$7","v":1.0383998884939717E-2},{"$f":"'Population 2016'!AN77/'Population 2016'!AN$7","v":{"$error":"#DIV/0!"}},{"$f":"'Population 2016'!AO77/'Population 2016'!AO$7","v":{"$error":"#DIV/0!"}},{"$f":"'Population 2016'!AP77/'Population 2016'!AP$7","v":7.8549848942598196E-3},{"$f":"'Population 2016'!AQ77/'Population 2016'!AQ$7","v":1.1073087264727451E-2},{"$f":"'Population 2016'!AR77/'Population 2016'!AR$7","v":1.0168142952464591E-2},{"$f":"'Population 2016'!AS77/'Population 2016'!AS$7","v":1.1476366465668159E-2},{"$f":"'Population 2016'!AT77/'Population 2016'!AT$7","v":{"$error":"#DIV/0!"}},{"$f":"'Population 2016'!AU77/'Population 2016'!AU$7","v":{"$error":"#DIV/0!"}},{"$f":"'Population 2016'!AV77/'Population 2016'!AV$7","v":1.1945286872562976E-2},{"$f":"'Population 2016'!AW77/'Population 2016'!AW$7","v":9.7791137915945285E-3},{"$f":"'Population 2016'!AX77/'Population 2016'!AX$7","v":7.770713492784337E-3},{"$f":"'Population 2016'!AY77/'Population 2016'!AY$7","v":1.0032026313511641E-2},{"$f":"'Population 2016'!AZ77/'Population 2016'!AZ$7","v":9.8155596109211381E-3},{"$f":"'Population 2016'!BA77/'Population 2016'!BA$7","v":1.1582462872166559E-2},{"$f":"'Population 2016'!BB77/'Population 2016'!BB$7","v":6.8803344365093192E-3},{"$f":"'Population 2016'!BC77/'Population 2016'!BC$7","v":{"$error":"#DIV/0!"}},75]
[null,"Female 90+",{"$f":"'Population 2016'!C78/'Population 2016'!C$7","v":4.520565389023303E-3},{"$f":"'Population 2016'!D78/'Population 2016'!D$7","v":4.4329332071524627E-3},{"$f":"'Population 2016'!E78/'Population 2016'!E$7","v":4.1180507892930682E-3},{"$f":"'Population 2016'!F78/'Population 2016'!F$7","v":5.5043141922047007E-3},{"$f":"'Population 2016'!G78/'Population 2016'!G$7","v":1.018895887365691E-2},{"$f":"'Population 2016'!H78/'Population 2016'!H$7","v":6.1360960169390818E-3},{"$f":"'Population 2016'!I78/'Population 2016'!I$7","v":4.6683524606107758E-3},{"$f":"'Population 2016'!J78/'Population 2016'!J$7","v":5.0286633812732578E-3},{"$f":"'Population 2016'!K78/'Population 2016'!K$7","v":5.6129096922922722E-3},{"$f":"'Population 2016'!L78/'Population 2016'!L$7","v":4.0064102564102561E-3},{"$f":"'Population 2016'!M78/'Population 2016'!M$7","v":4.0064102564102561E-3},{"$f":"'Population 2016'!N78/'Population 2016'!N$7","v":5.5453722824195459E-3},{"$f":"'Population 2016'!O78/'Population 2016'!O$7","v":6.4600305498981672E-3},{"$f":"'Population 2016'!P78/'Population 2016'!P$7","v":1.2080212611741967E-3},{"$f":"'Population 2016'!Q78/'Population 2016'!Q$7","v":2.0554984583761563E-3},{"$f":"'Population 2016'!R78/'Population 2016'!R$7","v":5.275974025974026E-3},{"$f":"'Population 2016'!S78/'Population 2016'!S$7","v":5.3150506039830233E-3},{"$f":"'Population 2016'!T78/'Population 2016'!T$7","v":4.8422256369938894E-3},{"$f":"'Population 2016'!U78/'Population 2016'!U$7","v":{"$error":"#DIV/0!"}},{"$f":"'Population 2016'!V78/'Population 2016'!V$7","v":5.4616111752967128E-3},{"$f":"'Population 2016'!W78/'Population 2016'!W$7","v":5.9571155375789065E-3},{"$f":"'Population 2016'!X78/'Population 2016'!X$7","v":5.9571155375789065E-3},{"$f":"'Population 2016'!Y78/'Population 2016'!Y$7","v":5.2404438964241675E-3},{"$f":"'Population 2016'!Z78/'Population 2016'!Z$7","v":5.3570751717254249E-3},{"$f":"'Population 2016'!AA78/'Population 2016'!AA$7","v":5.5697705063635248E-3},{"$f":"'Population 2016'!AB78/'Population 2016'!AB$7","v":4.3935882580146777E-3},{"$f":"'Population 2016'!AC78/'Population 2016'!AC$7","v":5.55892224501212E-3},{"$f":"'Population 2016'!AD78/'Population 2016'!AD$7","v":6.5176407217883113E-3},{"$f":"'Population 2016'!AE78/'Population 2016'!AE$7","v":5.0125313283208017E-3},{"$f":"'Population 2016'!AF78/'Population 2016'!AF$7","v":6.5423263211161712E-3},{"$f":"'Population 2016'!AG78/'Population 2016'!AG$7","v":5.0125313283208017E-3},{"$f":"'Population 2016'!AH78/'Population 2016'!AH$7","v":5.5966247160217806E-3},{"$f":"'Population 2016'!AI78/'Population 2016'!AI$7","v":4.9257759784075575E-3},{"$f":"'Population 2016'!AJ78/'Population 2016'!AJ$7","v":5.3740630745297696E-3},{"$f":"'Population 2016'!AK78/'Population 2016'!AK$7","v":3.1496062992125984E-3},{"$f":"'Population 2016'!AL78/'Population 2016'!AL$7","v":5.7128884541857465E-3},{"$f":"'Population 2016'!AM78/'Population 2016'!AM$7","v":5.3894580342416431E-3},{"$f":"'Population 2016'!AN78/'Population 2016'!AN$7","v":{"$error":"#DIV/0!"}},{"$f":"'Population 2016'!AO78/'Population 2016'!AO$7","v":{"$error":"#DIV/0!"}},{"$f":"'Population 2016'!AP78/'Population 2016'!AP$7","v":4.0785498489425984E-3},{"$f":"'Population 2016'!AQ78/'Population 2016'!AQ$7","v":5.1576631630408211E-3},{"$f":"'Population 2016'!AR78/'Population 2016'!AR$7","v":5.5317724372129498E-3},{"$f":"'Population 2016'!AS78/'Population 2016'!AS$7","v":4.6683524606107758E-3},{"$f":"'Population 2016'!AT78/'Population 2016'!AT$7","v":{"$error":"#DIV/0!"}},{"$f":"'Population 2016'!AU78/'Population 2016'!AU$7","v":{"$error":"#DIV/0!"}},{"$f":"'Population 2016'!AV78/'Population 2016'!AV$7","v":6.6844092343875724E-3},{"$f":"'Population 2016'!AW78/'Population 2016'!AW$7","v":5.9359601225243055E-3},{"$f":"'Population 2016'!AX78/'Population 2016'!AX$7","v":4.4404077101624787E-3},{"$f":"'Population 2016'!AY78/'Population 2016'!AY$7","v":5.6695230676014887E-3},{"$f":"'Population 2016'!AZ78/'Population 2016'!AZ$7","v":5.3684378377420669E-3},{"$f":"'Population 2016'!BA78/'Population 2016'!BA$7","v":7.5676827968450223E-3},{"$f":"'Population 2016'!BB78/'Population 2016'!BB$7","v":5.356209719561052E-3},{"$f":"'Population 2016'!BC78/'Population 2016'!BC$7","v":{"$error":"#DIV/0!"}},76]
[null,"Male 0-4",{"$f":"'Population 2016'!C79/'Population 2016'!C$7","v":0},{"$f":"'Population 2016'!D79/'Population 2016'!D$7","v":0},{"$f":"'Population 2016'!E79/'Population 2016'!E$7","v":0},{"$f":"'Population 2016'!F79/'Population 2016'!F$7","v":0},{"$f":"'Population 2016'!G79/'Population 2016'!G$7","v":0},{"$f":"'Population 2016'!H79/'Population 2016'!H$7","v":0},{"$f":"'Population 2016'!I79/'Population 2016'!I$7","v":0},{"$f":"'Population 2016'!J79/'Population 2016'!J$7","v":0},{"$f":"'Population 2016'!K79/'Population 2016'!K$7","v":0},{"$f":"'Population 2016'!L79/'Population 2016'!L$7","v":0},{"$f":"'Population 2016'!M79/'Population 2016'!M$7","v":0},{"$f":"'Population 2016'!N79/'Population 2016'!N$7","v":0},{"$f":"'Population 2016'!O79/'Population 2016'!O$7","v":0},{"$f":"'Population 2016'!P79/'Population 2016'!P$7","v":0},{"$f":"'Population 2016'!Q79/'Population 2016'!Q$7","v":0},{"$f":"'Population 2016'!R79/'Population 2016'!R$7","v":0},{"$f":"'Population 2016'!S79/'Population 2016'!S$7","v":0},{"$f":"'Population 2016'!T79/'Population 2016'!T$7","v":0},{"$f":"'Population 2016'!U79/'Population 2016'!U$7","v":{"$error":"#DIV/0!"}},{"$f":"'Population 2016'!V79/'Population 2016'!V$7","v":0},{"$f":"'Population 2016'!W79/'Population 2016'!W$7","v":0},{"$f":"'Population 2016'!X79/'Population 2016'!X$7","v":0},{"$f":"'Population 2016'!Y79/'Population 2016'!Y$7","v":0},{"$f":"'Population 2016'!Z79/'Population 2016'!Z$7","v":0},{"$f":"'Population 2016'!AA79/'Population 2016'!AA$7","v":0},{"$f":"'Population 2016'!AB79/'Population 2016'!AB$7","v":0},{"$f":"'Population 2016'!AC79/'Population 2016'!AC$7","v":0},{"$f":"'Population 2016'!AD79/'Population 2016'!AD$7","v":0},{"$f":"'Population 2016'!AE79/'Population 2016'!AE$7","v":0},{"$f":"'Population 2016'!AF79/'Population 2016'!AF$7","v":0},{"$f":"'Population 2016'!AG79/'Population 2016'!AG$7","v":0},{"$f":"'Population 2016'!AH79/'Population 2016'!AH$7","v":0},{"$f":"'Population 2016'!AI79/'Population 2016'!AI$7","v":0},{"$f":"'Population 2016'!AJ79/'Population 2016'!AJ$7","v":0},{"$f":"'Population 2016'!AK79/'Population 2016'!AK$7","v":0},{"$f":"'Population 2016'!AL79/'Population 2016'!AL$7","v":0},{"$f":"'Population 2016'!AM79/'Population 2016'!AM$7","v":0},{"$f":"'Population 2016'!AN79/'Population 2016'!AN$7","v":{"$error":"#DIV/0!"}},{"$f":"'Population 2016'!AO79/'Population 2016'!AO$7","v":{"$error":"#DIV/0!"}},{"$f":"'Population 2016'!AP79/'Population 2016'!AP$7","v":0},{"$f":"'Population 2016'!AQ79/'Population 2016'!AQ$7","v":0},{"$f":"'Population 2016'!AR79/'Population 2016'!AR$7","v":0},{"$f":"'Population 2016'!AS79/'Population 2016'!AS$7","v":0},{"$f":"'Population 2016'!AT79/'Population 2016'!AT$7","v":{"$error":"#DIV/0!"}},{"$f":"'Population 2016'!AU79/'Population 2016'!AU$7","v":{"$error":"#DIV/0!"}},{"$f":"'Population 2016'!AV79/'Population 2016'!AV$7","v":0},{"$f":"'Population 2016'!AW79/'Population 2016'!AW$7","v":0},{"$f":"'Population 2016'!AX79/'Population 2016'!AX$7","v":0},{"$f":"'Population 2016'!AY79/'Population 2016'!AY$7","v":0},{"$f":"'Population 2016'!AZ79/'Population 2016'!AZ$7","v":0},{"$f":"'Population 2016'!BA79/'Population 2016'!BA$7","v":0},{"$f":"'Population 2016'!BB79/'Population 2016'!BB$7","v":0},{"$f":"'Population 2016'!BC79/'Population 2016'!BC$7","v":{"$error":"#DIV/0!"}},77]
[null,"Male 5-9",{"$f":"'Population 2016'!C80/'Population 2016'!C$7","v":0},{"$f":"'Population 2016'!D80/'Population 2016'!D$7","v":0},{"$f":"'Population 2016'!E80/'Population 2016'!E$7","v":0},{"$f":"'Population 2016'!F80/'Population 2016'!F$7","v":0},{"$f":"'Population 2016'!G80/'Population 2016'!G$7","v":0},{"$f":"'Population 2016'!H80/'Population 2016'!H$7","v":0},{"$f":"'Population 2016'!I80/'Population 2016'!I$7","v":0},{"$f":"'Population 2016'!J80/'Population 2016'!J$7","v":0},{"$f":"'Population 2016'!K80/'Population 2016'!K$7","v":0},{"$f":"'Population 2016'!L80/'Population 2016'!L$7","v":0},{"$f":"'Population 2016'!M80/'Population 2016'!M$7","v":0},{"$f":"'Population 2016'!N80/'Population 2016'!N$7","v":0},{"$f":"'Population 2016'!O80/'Population 2016'!O$7","v":0},{"$f":"'Population 2016'!P80/'Population 2016'!P$7","v":0},{"$f":"'Population 2016'!Q80/'Population 2016'!Q$7","v":0},{"$f":"'Population 2016'!R80/'Population 2016'!R$7","v":0},{"$f":"'Population 2016'!S80/'Population 2016'!S$7","v":0},{"$f":"'Population 2016'!T80/'Population 2016'!T$7","v":0},{"$f":"'Population 2016'!U80/'Population 2016'!U$7","v":{"$error":"#DIV/0!"}},{"$f":"'Population 2016'!V80/'Population 2016'!V$7","v":0},{"$f":"'Population 2016'!W80/'Population 2016'!W$7","v":0},{"$f":"'Population 2016'!X80/'Population 2016'!X$7","v":0},{"$f":"'Population 2016'!Y80/'Population 2016'!Y$7","v":0},{"$f":"'Population 2016'!Z80/'Population 2016'!Z$7","v":0},{"$f":"'Population 2016'!AA80/'Population 2016'!AA$7","v":0},{"$f":"'Population 2016'!AB80/'Population 2016'!AB$7","v":0},{"$f":"'Population 2016'!AC80/'Population 2016'!AC$7","v":0},{"$f":"'Population 2016'!AD80/'Population 2016'!AD$7","v":0},{"$f":"'Population 2016'!AE80/'Population 2016'!AE$7","v":0},{"$f":"'Population 2016'!AF80/'Population 2016'!AF$7","v":0},{"$f":"'Population 2016'!AG80/'Population 2016'!AG$7","v":0},{"$f":"'Population 2016'!AH80/'Population 2016'!AH$7","v":0},{"$f":"'Population 2016'!AI80/'Population 2016'!AI$7","v":0},{"$f":"'Population 2016'!AJ80/'Population 2016'!AJ$7","v":0},{"$f":"'Population 2016'!AK80/'Population 2016'!AK$7","v":0},{"$f":"'Population 2016'!AL80/'Population 2016'!AL$7","v":0},{"$f":"'Population 2016'!AM80/'Population 2016'!AM$7","v":0},{"$f":"'Population 2016'!AN80/'Population 2016'!AN$7","v":{"$error":"#DIV/0!"}},{"$f":"'Population 2016'!AO80/'Population 2016'!AO$7","v":{"$error":"#DIV/0!"}},{"$f":"'Population 2016'!AP80/'Population 2016'!AP$7","v":0},{"$f":"'Population 2016'!AQ80/'Population 2016'!AQ$7","v":0},{"$f":"'Population 2016'!AR80/'Population 2016'!AR$7","v":0},{"$f":"'Population 2016'!AS80/'Population 2016'!AS$7","v":0},{"$f":"'Population 2016'!AT80/'Population 2016'!AT$7","v":{"$error":"#DIV/0!"}},{"$f":"'Population 2016'!AU80/'Population 2016'!AU$7","v":{"$error":"#DIV/0!"}},{"$f":"'Population 2016'!AV80/'Population 2016'!AV$7","v":0},{"$f":"'Population 2016'!AW80/'Population 2016'!AW$7","v":0},{"$f":"'Population 2016'!AX80/'Population 2016'!AX$7","v":0},{"$f":"'Population 2016'!AY80/'Population 2016'!AY$7","v":0},{"$f":"'Population 2016'!AZ80/'Population 2016'!AZ$7","v":0},{"$f":"'Population 2016'!BA80/'Population 2016'!BA$7","v":0},{"$f":"'Population 2016'!BB80/'Population 2016'!BB$7","v":0},{"$f":"'Population 2016'!BC80/'Population 2016'!BC$7","v":{"$error":"#DIV/0!"}},78]
[null,"Male 10-15",{"$f":"'Population 2016'!C81/'Population 2016'!C$7","v":0},{"$f":"'Population 2016'!D81/'Population 2016'!D$7","v":0},{"$f":"'Population 2016'!E81/'Population 2016'!E$7","v":0},{"$f":"'Population 2016'!F81/'Population 2016'!F$7","v":0},{"$f":"'Population 2016'!G81/'Population 2016'!G$7","v":0},{"$f":"'Population 2016'!H81/'Population 2016'!H$7","v":0},{"$f":"'Population 2016'!I81/'Population 2016'!I$7","v":0},{"$f":"'Population 2016'!J81/'Population 2016'!J$7","v":0},{"$f":"'Population 2016'!K81/'Population 2016'!K$7","v":0},{"$f":"'Population 2016'!L81/'Population 2016'!L$7","v":0},{"$f":"'Population 2016'!M81/'Population 2016'!M$7","v":0},{"$f":"'Population 2016'!N81/'Population 2016'!N$7","v":0},{"$f":"'Population 2016'!O81/'Population 2016'!O$7","v":0},{"$f":"'Population 2016'!P81/'Population 2016'!P$7","v":0},{"$f":"'Population 2016'!Q81/'Population 2016'!Q$7","v":0},{"$f":"'Population 2016'!R81/'Population 2016'!R$7","v":0},{"$f":"'Population 2016'!S81/'Population 2016'!S$7","v":0},{"$f":"'Population 2016'!T81/'Population 2016'!T$7","v":0},{"$f":"'Population 2016'!U81/'Population 2016'!U$7","v":{"$error":"#DIV/0!"}},{"$f":"'Population 2016'!V81/'Population 2016'!V$7","v":0},{"$f":"'Population 2016'!W81/'Population 2016'!W$7","v":0},{"$f":"'Population 2016'!X81/'Population 2016'!X$7","v":0},{"$f":"'Population 2016'!Y81/'Population 2016'!Y$7","v":0},{"$f":"'Population 2016'!Z81/'Population 2016'!Z$7","v":0},{"$f":"'Population 2016'!AA81/'Population 2016'!AA$7","v":0},{"$f":"'Population 2016'!AB81/'Population 2016'!AB$7","v":0},{"$f":"'Population 2016'!AC81/'Population 2016'!AC$7","v":0},{"$f":"'Population 2016'!AD81/'Population 2016'!AD$7","v":0},{"$f":"'Population 2016'!AE81/'Population 2016'!AE$7","v":0},{"$f":"'Population 2016'!AF81/'Population 2016'!AF$7","v":0},{"$f":"'Population 2016'!AG81/'Population 2016'!AG$7","v":0},{"$f":"'Population 2016'!AH81/'Population 2016'!AH$7","v":0},{"$f":"'Population 2016'!AI81/'Population 2016'!AI$7","v":0},{"$f":"'Population 2016'!AJ81/'Population 2016'!AJ$7","v":0},{"$f":"'Population 2016'!AK81/'Population 2016'!AK$7","v":0},{"$f":"'Population 2016'!AL81/'Population 2016'!AL$7","v":0},{"$f":"'Population 2016'!AM81/'Population 2016'!AM$7","v":0},{"$f":"'Population 2016'!AN81/'Population 2016'!AN$7","v":{"$error":"#DIV/0!"}},{"$f":"'Population 2016'!AO81/'Population 2016'!AO$7","v":{"$error":"#DIV/0!"}},{"$f":"'Population 2016'!AP81/'Population 2016'!AP$7","v":0},{"$f":"'Population 2016'!AQ81/'Population 2016'!AQ$7","v":0},{"$f":"'Population 2016'!AR81/'Population 2016'!AR$7","v":0},{"$f":"'Population 2016'!AS81/'Population 2016'!AS$7","v":0},{"$f":"'Population 2016'!AT81/'Population 2016'!AT$7","v":{"$error":"#DIV/0!"}},{"$f":"'Population 2016'!AU81/'Population 2016'!AU$7","v":{"$error":"#DIV/0!"}},{"$f":"'Population 2016'!AV81/'Population 2016'!AV$7","v":0},{"$f":"'Population 2016'!AW81/'Population 2016'!AW$7","v":0},{"$f":"'Population 2016'!AX81/'Population 2016'!AX$7","v":0},{"$f":"'Population 2016'!AY81/'Population 2016'!AY$7","v":0},{"$f":"'Population 2016'!AZ81/'Population 2016'!AZ$7","v":0},{"$f":"'Population 2016'!BA81/'Population 2016'!BA$7","v":0},{"$f":"'Population 2016'!BB81/'Population 2016'!BB$7","v":0},{"$f":"'Population 2016'!BC81/'Population 2016'!BC$7","v":{"$error":"#DIV/0!"}},79]
[null,"Male 16-19",{"$f":"'Population 2016'!C82/'Population 2016'!C$7","v":2.4003565516363172E-2},{"$f":"'Population 2016'!D82/'Population 2016'!D$7","v":2.3210639039697167E-2},{"$f":"'Population 2016'!E82/'Population 2016'!E$7","v":2.036147334706017E-2},{"$f":"'Population 2016'!F82/'Population 2016'!F$7","v":3.5852424873549539E-2},{"$f":"'Population 2016'!G82/'Population 2016'!G$7","v":3.2975175991107816E-2},{"$f":"'Population 2016'!H82/'Population 2016'!H$7","v":2.9610984476109197E-2},{"$f":"'Population 2016'!I82/'Population 2016'!I$7","v":3.4429099397004476E-2},{"$f":"'Population 2016'!J82/'Population 2016'!J$7","v":3.4898923866036408E-2},{"$f":"'Population 2016'!K82/'Population 2016'!K$7","v":3.4278841335070663E-2},{"$f":"'Population 2016'!L82/'Population 2016'!L$7","v":2.9447115384615384E-2},{"$f":"'Population 2016'!M82/'Population 2016'!M$7","v":2.9447115384615384E-2},{"$f":"'Population 2016'!N82/'Population 2016'!N$7","v":2.7170003944407061E-2},{"$f":"'Population 2016'!O82/'Population 2016'!O$7","v":2.9913441955193482E-2},{"$f":"'Population 2016'!P82/'Population 2016'!P$7","v":3.2858178303938147E-2},{"$f":"'Population 2016'!Q82/'Population 2016'!Q$7","v":3.014731072285029E-2},{"$f":"'Population 2016'!R82/'Population 2016'!R$7","v":3.3076298701298704E-2},{"$f":"'Population 2016'!S82/'Population 2016'!S$7","v":2.9337251061051256E-2},{"$f":"'Population 2016'!T82/'Population 2016'!T$7","v":2.6819854911910804E-2},{"$f":"'Population 2016'!U82/'Population 2016'!U$7","v":{"$error":"#DIV/0!"}},{"$f":"'Population 2016'!V82/'Population 2016'!V$7","v":2.6362777019220671E-2},{"$f":"'Population 2016'!W82/'Population 2016'!W$7","v":3.0191744656365822E-2},{"$f":"'Population 2016'!X82/'Population 2016'!X$7","v":3.0191744656365822E-2},{"$f":"'Population 2016'!Y82/'Population 2016'!Y$7","v":3.0723386765310317E-2},{"$f":"'Population 2016'!Z82/'Population 2016'!Z$7","v":2.8625817564636565E-2},{"$f":"'Population 2016'!AA82/'Population 2016'!AA$7","v":2.9000574823558219E-2},{"$f":"'Population 2016'!AB82/'Population 2016'!AB$7","v":2.3609501738122828E-2},{"$f":"'Population 2016'!AC82/'Population 2016'!AC$7","v":2.8485106283796382E-2},{"$f":"'Population 2016'!AD82/'Population 2016'!AD$7","v":3.1672502019929973E-2},{"$f":"'Population 2016'!AE82/'Population 2016'!AE$7","v":3.1138452191083771E-2},{"$f":"'Population 2016'!AF82/'Population 2016'!AF$7","v":2.797657774886142E-2},{"$f":"'Population 2016'!AG82/'Population 2016'!AG$7","v":3.1138452191083771E-2},{"$f":"'Population 2016'!AH82/'Population 2016'!AH$7","v":3.0276585770437417E-2},{"$f":"'Population 2016'!AI82/'Population 2016'!AI$7","v":2.8475033738191633E-2},{"$f":"'Population 2016'!AJ82/'Population 2016'!AJ$7","v":2.927450148493848E-2},{"$f":"'Population 2016'!AK82/'Population 2016'!AK$7","v":3.6220472440944881E-2},{"$f":"'Population 2016'!AL82/'Population 2016'!AL$7","v":3.0453918997021295E-2},{"$f":"'Population 2016'!AM82/'Population 2016'!AM$7","v":3.1709526796292423E-2},{"$f":"'Population 2016'!AN82/'Population 2016'!AN$7","v":{"$error":"#DIV/0!"}},{"$f":"'Population 2016'!AO82/'Population 2016'!AO$7","v":{"$error":"#DIV/0!"}},{"$f":"'Population 2016'!AP82/'Population 2016'!AP$7","v":2.5830815709969788E-2},{"$f":"'Population 2016'!AQ82/'Population 2016'!AQ$7","v":2.6106086531410413E-2},{"$f":"'Population 2016'!AR82/'Population 2016'!AR$7","v":2.90736201523903E-2},{"$f":"'Population 2016'!AS82/'Population 2016'!AS$7","v":3.4429099397004476E-2},{"$f":"'Population 2016'!AT82/'Population 2016'!AT$7","v":{"$error":"#DIV/0!"}},{"$f":"'Population 2016'!AU82/'Population 2016'!AU$7","v":{"$error":"#DIV/0!"}},{"$f":"'Population 2016'!AV82/'Population 2016'!AV$7","v":2.6675744259454105E-2},{"$f":"'Population 2016'!AW82/'Population 2016'!AW$7","v":2.7929453397005383E-2},{"$f":"'Population 2016'!AX82/'Population 2016'!AX$7","v":3.5523261681299829E-2},{"$f":"'Population 2016'!AY82/'Population 2016'!AY$7","v":2.9143945295594217E-2},{"$f":"'Population 2016'!AZ82/'Population 2016'!AZ$7","v":2.8046987119292714E-2},{"$f":"'Population 2016'!BA82/'Population 2016'!BA$7","v":2.9808853833582036E-2},{"$f":"'Population 2016'!BB82/'Population 2016'!BB$7","v":3.2050165476397843E-2},{"$f":"'Population 2016'!BC82/'Population 2016'!BC$7","v":{"$error":"#DIV/0!"}},80]
[null,"Male 20-24",{"$f":"'Population 2016'!C83/'Population 2016'!C$7","v":3.9220679994906409E-2},{"$f":"'Population 2016'!D83/'Population 2016'!D$7","v":4.223738606365493E-2},{"$f":"'Population 2016'!E83/'Population 2016'!E$7","v":5.307709906199954E-2},{"$f":"'Population 2016'!F83/'Population 2016'!F$7","v":5.0580184468908065E-2},{"$f":"'Population 2016'!G83/'Population 2016'!G$7","v":5.1685809559095963E-2},{"$f":"'Population 2016'!H83/'Population 2016'!H$7","v":4.1505072001901323E-2},{"$f":"'Population 2016'!I83/'Population 2016'!I$7","v":4.1042598716203076E-2},{"$f":"'Population 2016'!J83/'Population 2016'!J$7","v":4.4604244191893794E-2},{"$f":"'Population 2016'!K83/'Population 2016'!K$7","v":4.2798436403728574E-2},{"$f":"'Population 2016'!L83/'Population 2016'!L$7","v":4.3970352564102567E-2},{"$f":"'Population 2016'!M83/'Population 2016'!M$7","v":4.3970352564102567E-2},{"$f":"'Population 2016'!N83/'Population 2016'!N$7","v":4.4850228543585696E-2},{"$f":"'Population 2016'!O83/'Population 2016'!O$7","v":4.1337830957230141E-2},{"$f":"'Population 2016'!P83/'Population 2016'!P$7","v":4.0831118627687846E-2},{"$f":"'Population 2016'!Q83/'Population 2016'!Q$7","v":4.0767386091127102E-2},{"$f":"'Population 2016'!R83/'Population 2016'!R$7","v":3.936688311688312E-2},{"$f":"'Population 2016'!S83/'Population 2016'!S$7","v":4.0137120470127324E-2},{"$f":"'Population 2016'!T83/'Population 2016'!T$7","v":3.9273844834363719E-2},{"$f":"'Population 2016'!U83/'Population 2016'!U$7","v":{"$error":"#DIV/0!"}},{"$f":"'Population 2016'!V83/'Population 2016'!V$7","v":3.8703917655708436E-2},{"$f":"'Population 2016'!W83/'Population 2016'!W$7","v":3.8907410854812231E-2},{"$f":"'Population 2016'!X83/'Population 2016'!X$7","v":3.8907410854812231E-2},{"$f":"'Population 2016'!Y83/'Population 2016'!Y$7","v":4.1718043567612002E-2},{"$f":"'Population 2016'!Z83/'Population 2016'!Z$7","v":4.4675985394389391E-2},{"$f":"'Population 2016'!AA83/'Population 2016'!AA$7","v":4.3223826332729455E-2},{"$f":"'Population 2016'!AB83/'Population 2016'!AB$7","v":4.2101197373503284E-2},{"$f":"'Population 2016'!AC83/'Population 2016'!AC$7","v":4.3713872832369945E-2},{"$f":"'Population 2016'!AD83/'Population 2016'!AD$7","v":4.5515755453810931E-2},{"$f":"'Population 2016'!AE83/'Population 2016'!AE$7","v":4.2986253512569302E-2},{"$f":"'Population 2016'!AF83/'Population 2016'!AF$7","v":3.9832285115303984E-2},{"$f":"'Population 2016'!AG83/'Population 2016'!AG$7","v":4.2986253512569302E-2},{"$f":"'Population 2016'!AH83/'Population 2016'!AH$7","v":4.2010746096426382E-2},{"$f":"'Population 2016'!AI83/'Population 2016'!AI$7","v":4.0901934322986958E-2},{"$f":"'Population 2016'!AJ83/'Population 2016'!AJ$7","v":4.6810917833404048E-2},{"$f":"'Population 2016'!AK83/'Population 2016'!AK$7","v":3.7795275590551181E-2},{"$f":"'Population 2016'!AL83/'Population 2016'!AL$7","v":4.1612946249944424E-2},{"$f":"'Population 2016'!AM83/'Population 2016'!AM$7","v":4.3522196668757403E-2},{"$f":"'Population 2016'!AN83/'Population 2016'!AN$7","v":{"$error":"#DIV/0!"}},{"$f":"'Population 2016'!AO83/'Population 2016'!AO$7","v":{"$error":"#DIV/0!"}},{"$f":"'Population 2016'!AP83/'Population 2016'!AP$7","v":4.6676737160120843E-2},{"$f":"'Population 2016'!AQ83/'Population 2016'!AQ$7","v":4.2679051576631627E-2},{"$f":"'Population 2016'!AR83/'Population 2016'!AR$7","v":4.2626176003228489E-2},{"$f":"'Population 2016'!AS83/'Population 2016'!AS$7","v":4.1042598716203076E-2},{"$f":"'Population 2016'!AT83/'Population 2016'!AT$7","v":{"$error":"#DIV/0!"}},{"$f":"'Population 2016'!AU83/'Population 2016'!AU$7","v":{"$error":"#DIV/0!"}},{"$f":"'Population 2016'!AV83/'Population 2016'!AV$7","v":4.1529987002537599E-2},{"$f":"'Population 2016'!AW83/'Population 2016'!AW$7","v":3.9535016457068931E-2},{"$f":"'Population 2016'!AX83/'Population 2016'!AX$7","v":4.6422444242607733E-2},{"$f":"'Population 2016'!AY83/'Population 2016'!AY$7","v":4.2248766554141781E-2},{"$f":"'Population 2016'!AZ83/'Population 2016'!AZ$7","v":4.5746886128877944E-2},{"$f":"'Population 2016'!BA83/'Population 2016'!BA$7","v":4.2101897250053297E-2},{"$f":"'Population 2016'!BB83/'Population 2016'!BB$7","v":4.3067409858909597E-2},{"$f":"'Population 2016'!BC83/'Population 2016'!BC$7","v":{"$error":"#DIV/0!"}},81]
[null,"Male 25-29",{"$f":"'Population 2016'!C84/'Population 2016'!C$7","v":6.5834712848592894E-2},{"$f":"'Population 2016'!D84/'Population 2016'!D$7","v":6.4601285052547697E-2},{"$f":"'Population 2016'!E84/'Population 2016'!E$7","v":6.0169297643559827E-2},{"$f":"'Population 2016'!F84/'Population 2016'!F$7","v":4.6712288009520979E-2},{"$f":"'Population 2016'!G84/'Population 2016'!G$7","v":4.1682104483141906E-2},{"$f":"'Population 2016'!H84/'Population 2016'!H$7","v":3.996024501172124E-2},{"$f":"'Population 2016'!I84/'Population 2016'!I$7","v":3.073332036568761E-2},{"$f":"'Population 2016'!J84/'Population 2016'!J$7","v":4.3497938248013679E-2},{"$f":"'Population 2016'!K84/'Population 2016'!K$7","v":3.4679763455948684E-2},{"$f":"'Population 2016'!L84/'Population 2016'!L$7","v":4.9679487179487176E-2},{"$f":"'Population 2016'!M84/'Population 2016'!M$7","v":4.9679487179487176E-2},{"$f":"'Population 2016'!N84/'Population 2016'!N$7","v":6.2994501032506561E-2},{"$f":"'Population 2016'!O84/'Population 2016'!O$7","v":4.0796843177189408E-2},{"$f":"'Population 2016'!P84/'Population 2016'!P$7","v":3.9381493114278812E-2},{"$f":"'Population 2016'!Q84/'Population 2016'!Q$7","v":3.5971223021582732E-2},{"$f":"'Population 2016'!R84/'Population 2016'!R$7","v":3.9772727272727272E-2},{"$f":"'Population 2016'!S84/'Population 2016'!S$7","v":4.7724453150506038E-2},{"$f":"'Population 2016'!T84/'Population 2016'!T$7","v":5.9589750920201551E-2},{"$f":"'Population 2016'!U84/'Population 2016'!U$7","v":{"$error":"#DIV/0!"}},{"$f":"'Population 2016'!V84/'Population 2016'!V$7","v":4.3692889402373702E-2},{"$f":"'Population 2016'!W84/'Population 2016'!W$7","v":4.1310565418267359E-2},{"$f":"'Population 2016'!X84/'Population 2016'!X$7","v":4.1310565418267359E-2},{"$f":"'Population 2016'!Y84/'Population 2016'!Y$7","v":4.3593300452116727E-2},{"$f":"'Population 2016'!Z84/'Population 2016'!Z$7","v":5.6961039070429535E-2},{"$f":"'Population 2016'!AA84/'Population 2016'!AA$7","v":4.9380871449115661E-2},{"$f":"'Population 2016'!AB84/'Population 2016'!AB$7","v":6.3200077249903439E-2},{"$f":"'Population 2016'!AC84/'Population 2016'!AC$7","v":5.3109849897445459E-2},{"$f":"'Population 2016'!AD84/'Population 2016'!AD$7","v":4.4276865068677618E-2},{"$f":"'Population 2016'!AE84/'Population 2016'!AE$7","v":4.5340624287992709E-2},{"$f":"'Population 2016'!AF84/'Population 2016'!AF$7","v":4.0157594158895395E-2},{"$f":"'Population 2016'!AG84/'Population 2016'!AG$7","v":4.5340624287992709E-2},{"$f":"'Population 2016'!AH84/'Population 2016'!AH$7","v":4.0150012621254193E-2},{"$f":"'Population 2016'!AI84/'Population 2016'!AI$7","v":5.2968960863697706E-2},{"$f":"'Population 2016'!AJ84/'Population 2016'!AJ$7","v":3.6062791684344508E-2},{"$f":"'Population 2016'!AK84/'Population 2016'!AK$7","v":1.889763779527559E-2},{"$f":"'Population 2016'!AL84/'Population 2016'!AL$7","v":3.7945138487529451E-2},{"$f":"'Population 2016'!AM84/'Population 2016'!AM$7","v":4.1512765117197481E-2},{"$f":"'Population 2016'!AN84/'Population 2016'!AN$7","v":{"$error":"#DIV/0!"}},{"$f":"'Population 2016'!AO84/'Population 2016'!AO$7","v":{"$error":"#DIV/0!"}},{"$f":"'Population 2016'!AP84/'Population 2016'!AP$7","v":6.6918429003021154E-2},{"$f":"'Population 2016'!AQ84/'Population 2016'!AQ$7","v":5.0452212173062824E-2},{"$f":"'Population 2016'!AR84/'Population 2016'!AR$7","v":4.8840104834253197E-2},{"$f":"'Population 2016'!AS84/'Population 2016'!AS$7","v":3.073332036568761E-2},{"$f":"'Population 2016'!AT84/'Population 2016'!AT$7","v":{"$error":"#DIV/0!"}},{"$f":"'Population 2016'!AU84/'Population 2016'!AU$7","v":{"$error":"#DIV/0!"}},{"$f":"'Population 2016'!AV84/'Population 2016'!AV$7","v":4.3943801448288668E-2},{"$f":"'Population 2016'!AW84/'Population 2016'!AW$7","v":3.791784783394532E-2},{"$f":"'Population 2016'!AX84/'Population 2016'!AX$7","v":5.2376627308507416E-2},{"$f":"'Population 2016'!AY84/'Population 2016'!AY$7","v":5.1181511295767333E-2},{"$f":"'Population 2016'!AZ84/'Population 2016'!AZ$7","v":6.1515564926206127E-2},{"$f":"'Population 2016'!BA84/'Population 2016'!BA$7","v":4.1568961841824771E-2},{"$f":"'Population 2016'!BB84/'Population 2016'!BB$7","v":4.4199616791499738E-2},{"$f":"'Population 2016'!BC84/'Population 2016'!BC$7","v":{"$error":"#DIV/0!"}},82]
[null,"Male 30-34",{"$f":"'Population 2016'!C85/'Population 2016'!C$7","v":5.5201833694129634E-2},{"$f":"'Population 2016'!D85/'Population 2016'!D$7","v":5.6781391642177617E-2},{"$f":"'Population 2016'!E85/'Population 2016'!E$7","v":6.2457103637611533E-2},{"$f":"'Population 2016'!F85/'Population 2016'!F$7","v":3.8381434096994939E-2},{"$f":"'Population 2016'!G85/'Population 2016'!G$7","v":3.2604668395702113E-2},{"$f":"'Population 2016'!H85/'Population 2016'!H$7","v":3.5228537167673143E-2},{"$f":"'Population 2016'!I85/'Population 2016'!I$7","v":3.3845555339428124E-2},{"$f":"'Population 2016'!J85/'Population 2016'!J$7","v":3.8167555063864024E-2},{"$f":"'Population 2016'!K85/'Population 2016'!K$7","v":3.6383682469680267E-2},{"$f":"'Population 2016'!L85/'Population 2016'!L$7","v":3.465544871794872E-2},{"$f":"'Population 2016'!M85/'Population 2016'!M$7","v":3.465544871794872E-2},{"$f":"'Population 2016'!N85/'Population 2016'!N$7","v":4.9421100257546577E-2},{"$f":"'Population 2016'!O85/'Population 2016'!O$7","v":3.5514256619144605E-2},{"$f":"'Population 2016'!P85/'Population 2016'!P$7","v":3.2374969799468474E-2},{"$f":"'Population 2016'!Q85/'Population 2016'!Q$7","v":3.7684138403562863E-2},{"$f":"'Population 2016'!R85/'Population 2016'!R$7","v":3.7337662337662336E-2},{"$f":"'Population 2016'!S85/'Population 2016'!S$7","v":4.3219066274893893E-2},{"$f":"'Population 2016'!T85/'Population 2016'!T$7","v":5.1477682878890756E-2},{"$f":"'Population 2016'!U85/'Population 2016'!U$7","v":{"$error":"#DIV/0!"}},{"$f":"'Population 2016'!V85/'Population 2016'!V$7","v":4.012183594160277E-2},{"$f":"'Population 2016'!W85/'Population 2016'!W$7","v":3.8704327370576587E-2},{"$f":"'Population 2016'!X85/'Population 2016'!X$7","v":3.8704327370576587E-2},{"$f":"'Population 2016'!Y85/'Population 2016'!Y$7","v":3.9123510069872587E-2},{"$f":"'Population 2016'!Z85/'Population 2016'!Z$7","v":4.9877233693981289E-2},{"$f":"'Population 2016'!AA85/'Population 2016'!AA$7","v":4.4852838943569756E-2},{"$f":"'Population 2016'!AB85/'Population 2016'!AB$7","v":5.547508690614137E-2},{"$f":"'Population 2016'!AC85/'Population 2016'!AC$7","v":4.7466436695879174E-2},{"$f":"'Population 2016'!AD85/'Population 2016'!AD$7","v":4.2876380285483434E-2},{"$f":"'Population 2016'!AE85/'Population 2016'!AE$7","v":4.7087415508468143E-2},{"$f":"'Population 2016'!AF85/'Population 2016'!AF$7","v":3.7808139955179641E-2},{"$f":"'Population 2016'!AG85/'Population 2016'!AG$7","v":4.7087415508468143E-2},{"$f":"'Population 2016'!AH85/'Population 2016'!AH$7","v":3.8383037034365873E-2},{"$f":"'Population 2016'!AI85/'Population 2016'!AI$7","v":4.6761133603238865E-2},{"$f":"'Population 2016'!AJ85/'Population 2016'!AJ$7","v":3.9739782209022766E-2},{"$f":"'Population 2016'!AK85/'Population 2016'!AK$7","v":1.4173228346456693E-2},{"$f":"'Population 2016'!AL85/'Population 2016'!AL$7","v":3.4455163828746721E-2},{"$f":"'Population 2016'!AM85/'Population 2016'!AM$7","v":3.914326201593607E-2},{"$f":"'Population 2016'!AN85/'Population 2016'!AN$7","v":{"$error":"#DIV/0!"}},{"$f":"'Population 2016'!AO85/'Population 2016'!AO$7","v":{"$error":"#DIV/0!"}},{"$f":"'Population 2016'!AP85/'Population 2016'!AP$7","v":4.6827794561933533E-2},{"$f":"'Population 2016'!AQ85/'Population 2016'!AQ$7","v":4.744561231972623E-2},{"$f":"'Population 2016'!AR85/'Population 2016'!AR$7","v":4.3573169585225981E-2},{"$f":"'Population 2016'!AS85/'Population 2016'!AS$7","v":3.3845555339428124E-2},{"$f":"'Population 2016'!AT85/'Population 2016'!AT$7","v":{"$error":"#DIV/0!"}},{"$f":"'Population 2016'!AU85/'Population 2016'!AU$7","v":{"$error":"#DIV/0!"}},{"$f":"'Population 2016'!AV85/'Population 2016'!AV$7","v":3.6826143467227825E-2},{"$f":"'Population 2016'!AW85/'Population 2016'!AW$7","v":3.7137801792203343E-2},{"$f":"'Population 2016'!AX85/'Population 2016'!AX$7","v":3.9963669391462307E-2},{"$f":"'Population 2016'!AY85/'Population 2016'!AY$7","v":4.3148965636631176E-2},{"$f":"'Population 2016'!AZ85/'Population 2016'!AZ$7","v":4.7802129657518469E-2},{"$f":"'Population 2016'!BA85/'Population 2016'!BA$7","v":4.0645207134228666E-2},{"$f":"'Population 2016'!BB85/'Population 2016'!BB$7","v":3.858212854903327E-2},{"$f":"'Population 2016'!BC85/'Population 2016'!BC$7","v":{"$error":"#DIV/0!"}},83]
[null,"Male 35-39",{"$f":"'Population 2016'!C86/'Population 2016'!C$7","v":5.2591366356806314E-2},{"$f":"'Population 2016'!D86/'Population 2016'!D$7","v":5.145191014593814E-2},{"$f":"'Population 2016'!E86/'Population 2016'!E$7","v":4.7357584076870282E-2},{"$f":"'Population 2016'!F86/'Population 2016'!F$7","v":3.8083903600119012E-2},{"$f":"'Population 2016'!G86/'Population 2016'!G$7","v":2.7788069655427936E-2},{"$f":"'Population 2016'!H86/'Population 2016'!H$7","v":3.1479901044648741E-2},{"$f":"'Population 2016'!I86/'Population 2016'!I$7","v":3.6374246255592296E-2},{"$f":"'Population 2016'!J86/'Population 2016'!J$7","v":3.3038318414965302E-2},{"$f":"'Population 2016'!K86/'Population 2016'!K$7","v":3.628345193946076E-2},{"$f":"'Population 2016'!L86/'Population 2016'!L$7","v":2.9847756410256412E-2},{"$f":"'Population 2016'!M86/'Population 2016'!M$7","v":2.9847756410256412E-2},{"$f":"'Population 2016'!N86/'Population 2016'!N$7","v":3.556927074874127E-2},{"$f":"'Population 2016'!O86/'Population 2016'!O$7","v":3.0168024439918534E-2},{"$f":"'Population 2016'!P86/'Population 2016'!P$7","v":3.2858178303938147E-2},{"$f":"'Population 2016'!Q86/'Population 2016'!Q$7","v":2.9462144570058239E-2},{"$f":"'Population 2016'!R86/'Population 2016'!R$7","v":3.3482142857142856E-2},{"$f":"'Population 2016'!S86/'Population 2016'!S$7","v":3.9947763630427686E-2},{"$f":"'Population 2016'!T86/'Population 2016'!T$7","v":4.681413715470107E-2},{"$f":"'Population 2016'!U86/'Population 2016'!U$7","v":{"$error":"#DIV/0!"}},{"$f":"'Population 2016'!V86/'Population 2016'!V$7","v":3.786366978258586E-2},{"$f":"'Population 2016'!W86/'Population 2016'!W$7","v":3.5928853086022776E-2},{"$f":"'Population 2016'!X86/'Population 2016'!X$7","v":3.5928853086022776E-2},{"$f":"'Population 2016'!Y86/'Population 2016'!Y$7","v":3.5398684751335799E-2},{"$f":"'Population 2016'!Z86/'Population 2016'!Z$7","v":4.0683448238103458E-2},{"$f":"'Population 2016'!AA86/'Population 2016'!AA$7","v":3.8413569986324593E-2},{"$f":"'Population 2016'!AB86/'Population 2016'!AB$7","v":5.1129779837775204E-2},{"$f":"'Population 2016'!AC86/'Population 2016'!AC$7","v":3.8918282677605817E-2},{"$f":"'Population 2016'!AD86/'Population 2016'!AD$7","v":3.2965257204416912E-2},{"$f":"'Population 2016'!AE86/'Population 2016'!AE$7","v":3.5087719298245612E-2},{"$f":"'Population 2016'!AF86/'Population 2016'!AF$7","v":3.0036868358273693E-2},{"$f":"'Population 2016'!AG86/'Population 2016'!AG$7","v":3.5087719298245612E-2},{"$f":"'Population 2016'!AH86/'Population 2016'!AH$7","v":3.7164184486675564E-2},{"$f":"'Population 2016'!AI86/'Population 2016'!AI$7","v":4.2825011246063881E-2},{"$f":"'Population 2016'!AJ86/'Population 2016'!AJ$7","v":3.365860557205487E-2},{"$f":"'Population 2016'!AK86/'Population 2016'!AK$7","v":4.0944881889763779E-2},{"$f":"'Population 2016'!AL86/'Population 2016'!AL$7","v":3.0765126928377719E-2},{"$f":"'Population 2016'!AM86/'Population 2016'!AM$7","v":3.6866680604920203E-2},{"$f":"'Population 2016'!AN86/'Population 2016'!AN$7","v":{"$error":"#DIV/0!"}},{"$f":"'Population 2016'!AO86/'Population 2016'!AO$7","v":{"$error":"#DIV/0!"}},{"$f":"'Population 2016'!AP86/'Population 2016'!AP$7","v":4.6072507552870089E-2},{"$f":"'Population 2016'!AQ86/'Population 2016'!AQ$7","v":3.9354681007088728E-2},{"$f":"'Population 2016'!AR86/'Population 2016'!AR$7","v":3.7815540325187968E-2},{"$f":"'Population 2016'!AS86/'Population 2016'!AS$7","v":3.6374246255592296E-2},{"$f":"'Population 2016'!AT86/'Population 2016'!AT$7","v":{"$error":"#DIV/0!"}},{"$f":"'Population 2016'!AU86/'Population 2016'!AU$7","v":{"$error":"#DIV/0!"}},{"$f":"'Population 2016'!AV86/'Population 2016'!AV$7","v":3.6021538651977471E-2},{"$f":"'Population 2016'!AW86/'Population 2016'!AW$7","v":3.7651490648960256E-2},{"$f":"'Population 2016'!AX86/'Population 2016'!AX$7","v":2.9770915329498437E-2},{"$f":"'Population 2016'!AY86/'Population 2016'!AY$7","v":3.6501341642863325E-2},{"$f":"'Population 2016'!AZ86/'Population 2016'!AZ$7","v":3.710068921528676E-2},{"$f":"'Population 2016'!BA86/'Population 2016'!BA$7","v":3.3965750017764515E-2},{"$f":"'Population 2016'!BB86/'Population 2016'!BB$7","v":3.7624107298380075E-2},{"$f":"'Population 2016'!BC86/'Population 2016'!BC$7","v":{"$error":"#DIV/0!"}},84]
[null,"Male 40-44",{"$f":"'Population 2016'!C87/'Population 2016'!C$7","v":4.2977206163249716E-2},{"$f":"'Population 2016'!D87/'Population 2016'!D$7","v":4.4179907356676797E-2},{"$f":"'Population 2016'!E87/'Population 2016'!E$7","v":4.8501487073896135E-2},{"$f":"'Population 2016'!F87/'Population 2016'!F$7","v":3.7340077357929186E-2},{"$f":"'Population 2016'!G87/'Population 2016'!G$7","v":3.0937384216376436E-2},{"$f":"'Population 2016'!H87/'Population 2016'!H$7","v":3.4375101277993238E-2},{"$f":"'Population 2016'!I87/'Population 2016'!I$7","v":3.6957790313168641E-2},{"$f":"'Population 2016'!J87/'Population 2016'!J$7","v":3.1831439203459717E-2},{"$f":"'Population 2016'!K87/'Population 2016'!K$7","v":3.5281146637265712E-2},{"$f":"'Population 2016'!L87/'Population 2016'!L$7","v":3.4154647435897433E-2},{"$f":"'Population 2016'!M87/'Population 2016'!M$7","v":3.4154647435897433E-2},{"$f":"'Population 2016'!N87/'Population 2016'!N$7","v":3.0070303255295947E-2},{"$f":"'Population 2016'!O87/'Population 2016'!O$7","v":3.5737016293279023E-2},{"$f":"'Population 2016'!P87/'Population 2016'!P$7","v":3.2858178303938147E-2},{"$f":"'Population 2016'!Q87/'Population 2016'!Q$7","v":4.5563549160671464E-2},{"$f":"'Population 2016'!R87/'Population 2016'!R$7","v":3.4293831168831168E-2},{"$f":"'Population 2016'!S87/'Population 2016'!S$7","v":3.8844270323212533E-2},{"$f":"'Population 2016'!T87/'Population 2016'!T$7","v":4.2347139334596003E-2},{"$f":"'Population 2016'!U87/'Population 2016'!U$7","v":{"$error":"#DIV/0!"}},{"$f":"'Population 2016'!V87/'Population 2016'!V$7","v":3.9596681020901164E-2},{"$f":"'Population 2016'!W87/'Population 2016'!W$7","v":3.5573456988610398E-2},{"$f":"'Population 2016'!X87/'Population 2016'!X$7","v":3.5573456988610398E-2},{"$f":"'Population 2016'!Y87/'Population 2016'!Y$7","v":3.5629880805589806E-2},{"$f":"'Population 2016'!Z87/'Population 2016'!Z$7","v":3.6556141895107461E-2},{"$f":"'Population 2016'!AA87/'Population 2016'!AA$7","v":3.6000141111920431E-2},{"$f":"'Population 2016'!AB87/'Population 2016'!AB$7","v":4.4273850907686367E-2},{"$f":"'Population 2016'!AC87/'Population 2016'!AC$7","v":3.5325960283423455E-2},{"$f":"'Population 2016'!AD87/'Population 2016'!AD$7","v":3.7705359547535684E-2},{"$f":"'Population 2016'!AE87/'Population 2016'!AE$7","v":4.0479987848408901E-2},{"$f":"'Population 2016'!AF87/'Population 2016'!AF$7","v":3.0868213691896192E-2},{"$f":"'Population 2016'!AG87/'Population 2016'!AG$7","v":4.0479987848408901E-2},{"$f":"'Population 2016'!AH87/'Population 2016'!AH$7","v":3.766903465435794E-2},{"$f":"'Population 2016'!AI87/'Population 2016'!AI$7","v":4.1126855600539809E-2},{"$f":"'Population 2016'!AJ87/'Population 2016'!AJ$7","v":3.7759864234196014E-2},{"$f":"'Population 2016'!AK87/'Population 2016'!AK$7","v":4.7244094488188976E-2},{"$f":"'Population 2016'!AL87/'Population 2016'!AL$7","v":3.3143644689458941E-2},{"$f":"'Population 2016'!AM87/'Population 2016'!AM$7","v":3.716867609821823E-2},{"$f":"'Population 2016'!AN87/'Population 2016'!AN$7","v":{"$error":"#DIV/0!"}},{"$f":"'Population 2016'!AO87/'Population 2016'!AO$7","v":{"$error":"#DIV/0!"}},{"$f":"'Population 2016'!AP87/'Population 2016'!AP$7","v":3.8066465256797584E-2},{"$f":"'Population 2016'!AQ87/'Population 2016'!AQ$7","v":3.441701295526766E-2},{"$f":"'Population 2016'!AR87/'Population 2016'!AR$7","v":3.6255179229426969E-2},{"$f":"'Population 2016'!AS87/'Population 2016'!AS$7","v":3.6957790313168641E-2},{"$f":"'Population 2016'!AT87/'Population 2016'!AT$7","v":{"$error":"#DIV/0!"}},{"$f":"'Population 2016'!AU87/'Population 2016'!AU$7","v":{"$error":"#DIV/0!"}},{"$f":"'Population 2016'!AV87/'Population 2016'!AV$7","v":3.5155041158630933E-2},{"$f":"'Population 2016'!AW87/'Population 2016'!AW$7","v":3.8488613230341889E-2},{"$f":"'Population 2016'!AX87/'Population 2016'!AX$7","v":2.8358058330810374E-2},{"$f":"'Population 2016'!AY87/'Population 2016'!AY$7","v":3.3766121353760926E-2},{"$f":"'Population 2016'!AZ87/'Population 2016'!AZ$7","v":3.1873992310554385E-2},{"$f":"'Population 2016'!BA87/'Population 2016'!BA$7","v":3.1194485894976195E-2},{"$f":"'Population 2016'!BB87/'Population 2016'!BB$7","v":3.8625674969517507E-2},{"$f":"'Population 2016'!BC87/'Population 2016'!BC$7","v":{"$error":"#DIV/0!"}},85]
[null,"Male 45-49",{"$f":"'Population 2016'!C88/'Population 2016'!C$7","v":3.9857379345473065E-2},{"$f":"'Population 2016'!D88/'Population 2016'!D$7","v":4.0593714200328736E-2},{"$f":"'Population 2016'!E88/'Population 2016'!E$7","v":4.3239533287577216E-2},{"$f":"'Population 2016'!F88/'Population 2016'!F$7","v":4.1207973817316272E-2},{"$f":"'Population 2016'!G88/'Population 2016'!G$7","v":3.7606520933679138E-2},{"$f":"'Population 2016'!H88/'Population 2016'!H$7","v":3.893396134691629E-2},{"$f":"'Population 2016'!I88/'Population 2016'!I$7","v":4.9017700836413151E-2},{"$f":"'Population 2016'!J88/'Population 2016'!J$7","v":3.9223574373931411E-2},{"$f":"'Population 2016'!K88/'Population 2016'!K$7","v":4.2597975343289567E-2},{"$f":"'Population 2016'!L88/'Population 2016'!L$7","v":4.0665064102564104E-2},{"$f":"'Population 2016'!M88/'Population 2016'!M$7","v":4.0665064102564104E-2},{"$f":"'Population 2016'!N88/'Population 2016'!N$7","v":3.7727093436042601E-2},{"$f":"'Population 2016'!O88/'Population 2016'!O$7","v":4.0733197556008148E-2},{"$f":"'Population 2016'!P88/'Population 2016'!P$7","v":4.4696786663445273E-2},{"$f":"'Population 2016'!Q88/'Population 2016'!Q$7","v":3.2202809181226449E-2},{"$f":"'Population 2016'!R88/'Population 2016'!R$7","v":3.7134740259740256E-2},{"$f":"'Population 2016'!S88/'Population 2016'!S$7","v":4.3232125367286975E-2},{"$f":"'Population 2016'!T88/'Population 2016'!T$7","v":4.1185719901368691E-2},{"$f":"'Population 2016'!U88/'Population 2016'!U$7","v":{"$error":"#DIV/0!"}},{"$f":"'Population 2016'!V88/'Population 2016'!V$7","v":4.4690683751706754E-2},{"$f":"'Population 2016'!W88/'Population 2016'!W$7","v":4.4593748413410281E-2},{"$f":"'Population 2016'!X88/'Population 2016'!X$7","v":4.4593748413410281E-2},{"$f":"'Population 2016'!Y88/'Population 2016'!Y$7","v":4.1897862720920671E-2},{"$f":"'Population 2016'!Z88/'Population 2016'!Z$7","v":3.9900102340351157E-2},{"$f":"'Population 2016'!AA88/'Population 2016'!AA$7","v":4.1221282167811124E-2},{"$f":"'Population 2016'!AB88/'Population 2016'!AB$7","v":4.1232135959830052E-2},{"$f":"'Population 2016'!AC88/'Population 2016'!AC$7","v":4.028179190751445E-2},{"$f":"'Population 2016'!AD88/'Population 2016'!AD$7","v":3.9752221922973334E-2},{"$f":"'Population 2016'!AE88/'Population 2016'!AE$7","v":4.0631882737145894E-2},{"$f":"'Population 2016'!AF88/'Population 2016'!AF$7","v":4.0410612303910937E-2},{"$f":"'Population 2016'!AG88/'Population 2016'!AG$7","v":4.0631882737145894E-2},{"$f":"'Population 2016'!AH88/'Population 2016'!AH$7","v":4.3546933035231328E-2},{"$f":"'Population 2016'!AI88/'Population 2016'!AI$7","v":4.1992802519118307E-2},{"$f":"'Population 2016'!AJ88/'Population 2016'!AJ$7","v":4.3699618158676283E-2},{"$f":"'Population 2016'!AK88/'Population 2016'!AK$7","v":6.1417322834645668E-2},{"$f":"'Population 2016'!AL88/'Population 2016'!AL$7","v":3.8323033832747967E-2},{"$f":"'Population 2016'!AM88/'Population 2016'!AM$7","v":4.398680511998513E-2},{"$f":"'Population 2016'!AN88/'Population 2016'!AN$7","v":{"$error":"#DIV/0!"}},{"$f":"'Population 2016'!AO88/'Population 2016'!AO$7","v":{"$error":"#DIV/0!"}},{"$f":"'Population 2016'!AP88/'Population 2016'!AP$7","v":3.8821752265861029E-2},{"$f":"'Population 2016'!AQ88/'Population 2016'!AQ$7","v":4.4316792960156441E-2},{"$f":"'Population 2016'!AR88/'Population 2016'!AR$7","v":4.1133457306181599E-2},{"$f":"'Population 2016'!AS88/'Population 2016'!AS$7","v":4.9017700836413151E-2},{"$f":"'Population 2016'!AT88/'Population 2016'!AT$7","v":{"$error":"#DIV/0!"}},{"$f":"'Population 2016'!AU88/'Population 2016'!AU$7","v":{"$error":"#DIV/0!"}},{"$f":"'Population 2016'!AV88/'Population 2016'!AV$7","v":3.7135606857708732E-2},{"$f":"'Population 2016'!AW88/'Population 2016'!AW$7","v":4.2826430242955807E-2},{"$f":"'Population 2016'!AX88/'Population 2016'!AX$7","v":3.5826016752447273E-2},{"$f":"'Population 2016'!AY88/'Population 2016'!AY$7","v":4.150437115900632E-2},{"$f":"'Population 2016'!AZ88/'Population 2016'!AZ$7","v":3.8270051912616718E-2},{"$f":"'Population 2016'!BA88/'Population 2016'!BA$7","v":3.7412065657642296E-2},{"$f":"'Population 2016'!BB88/'Population 2016'!BB$7","v":4.4678627416826336E-2},{"$f":"'Population 2016'!BC88/'Population 2016'!BC$7","v":{"$error":"#DIV/0!"}},86]
[null,"Male 50-54",{"$f":"'Population 2016'!C89/'Population 2016'!C$7","v":3.9157010059849742E-2},{"$f":"'Population 2016'!D89/'Population 2016'!D$7","v":3.8451959954176419E-2},{"$f":"'Population 2016'!E89/'Population 2016'!E$7","v":3.5918554106611759E-2},{"$f":"'Population 2016'!F89/'Population 2016'!F$7","v":4.3439452543885745E-2},{"$f":"'Population 2016'!G89/'Population 2016'!G$7","v":4.8721748795850311E-2},{"$f":"'Population 2016'!H89/'Population 2016'!H$7","v":4.1915585467823306E-2},{"$f":"'Population 2016'!I89/'Population 2016'!I$7","v":5.0573818323283407E-2},{"$f":"'Population 2016'!J89/'Population 2016'!J$7","v":4.3296791712762746E-2},{"$f":"'Population 2016'!K89/'Population 2016'!K$7","v":4.5504660719655206E-2},{"$f":"'Population 2016'!L89/'Population 2016'!L$7","v":4.3770032051282048E-2},{"$f":"'Population 2016'!M89/'Population 2016'!M$7","v":4.3770032051282048E-2},{"$f":"'Population 2016'!N89/'Population 2016'!N$7","v":3.8631986821039931E-2},{"$f":"'Population 2016'!O89/'Population 2016'!O$7","v":4.3056262729124238E-2},{"$f":"'Population 2016'!P89/'Population 2016'!P$7","v":4.5663203672384634E-2},{"$f":"'Population 2016'!Q89/'Population 2016'!Q$7","v":4.8989379924631725E-2},{"$f":"'Population 2016'!R89/'Population 2016'!R$7","v":4.8904220779220776E-2},{"$f":"'Population 2016'!S89/'Population 2016'!S$7","v":4.263793666340189E-2},{"$f":"'Population 2016'!T89/'Population 2016'!T$7","v":4.2704499160204412E-2},{"$f":"'Population 2016'!U89/'Population 2016'!U$7","v":{"$error":"#DIV/0!"}},{"$f":"'Population 2016'!V89/'Population 2016'!V$7","v":4.5058292196197877E-2},{"$f":"'Population 2016'!W89/'Population 2016'!W$7","v":4.1276718170894754E-2},{"$f":"'Population 2016'!X89/'Population 2016'!X$7","v":4.1276718170894754E-2},{"$f":"'Population 2016'!Y89/'Population 2016'!Y$7","v":4.4158446362515411E-2},{"$f":"'Population 2016'!Z89/'Population 2016'!Z$7","v":4.0864544332745119E-2},{"$f":"'Population 2016'!AA89/'Population 2016'!AA$7","v":4.2520341905882497E-2},{"$f":"'Population 2016'!AB89/'Population 2016'!AB$7","v":3.8480108149864814E-2},{"$f":"'Population 2016'!AC89/'Population 2016'!AC$7","v":4.2423200633973521E-2},{"$f":"'Population 2016'!AD89/'Population 2016'!AD$7","v":4.3899811473202259E-2},{"$f":"'Population 2016'!AE89/'Population 2016'!AE$7","v":4.1922989291410341E-2},{"$f":"'Population 2016'!AF89/'Population 2016'!AF$7","v":4.6446902334996022E-2},{"$f":"'Population 2016'!AG89/'Population 2016'!AG$7","v":4.1922989291410341E-2},{"$f":"'Population 2016'!AH89/'Population 2016'!AH$7","v":4.2760809202697342E-2},{"$f":"'Population 2016'!AI89/'Population 2016'!AI$7","v":4.3083670715249663E-2},{"$f":"'Population 2016'!AJ89/'Population 2016'!AJ$7","v":4.3133927308725784E-2},{"$f":"'Population 2016'!AK89/'Population 2016'!AK$7","v":3.937007874015748E-2},{"$f":"'Population 2016'!AL89/'Population 2016'!AL$7","v":4.212421642288712E-2},{"$f":"'Population 2016'!AM89/'Population 2016'!AM$7","v":4.3963574697423749E-2},{"$f":"'Population 2016'!AN89/'Population 2016'!AN$7","v":{"$error":"#DIV/0!"}},{"$f":"'Population 2016'!AO89/'Population 2016'!AO$7","v":{"$error":"#DIV/0!"}},{"$f":"'Population 2016'!AP89/'Population 2016'!AP$7","v":4.486404833836858E-2},{"$f":"'Population 2016'!AQ89/'Population 2016'!AQ$7","v":4.3999022243950137E-2},{"$f":"'Population 2016'!AR89/'Population 2016'!AR$7","v":4.2330383819021045E-2},{"$f":"'Population 2016'!AS89/'Population 2016'!AS$7","v":5.0573818323283407E-2},{"$f":"'Population 2016'!AT89/'Population 2016'!AT$7","v":{"$error":"#DIV/0!"}},{"$f":"'Population 2016'!AU89/'Population 2016'!AU$7","v":{"$error":"#DIV/0!"}},{"$f":"'Population 2016'!AV89/'Population 2016'!AV$7","v":3.9116172556786531E-2},{"$f":"'Population 2016'!AW89/'Population 2016'!AW$7","v":4.079070032914138E-2},{"$f":"'Population 2016'!AX89/'Population 2016'!AX$7","v":4.1073771319002923E-2},{"$f":"'Population 2016'!AY89/'Population 2016'!AY$7","v":4.0621483597334022E-2},{"$f":"'Population 2016'!AZ89/'Population 2016'!AZ$7","v":3.9935507875480593E-2},{"$f":"'Population 2016'!BA89/'Population 2016'!BA$7","v":4.7715483550060396E-2},{"$f":"'Population 2016'!BB89/'Population 2016'!BB$7","v":4.3241595540846542E-2},{"$f":"'Population 2016'!BC89/'Population 2016'!BC$7","v":{"$error":"#DIV/0!"}},87]
[null,"Male 55-59",{"$f":"'Population 2016'!C90/'Population 2016'!C$7","v":3.5782503501846426E-2},{"$f":"'Population 2016'!D90/'Population 2016'!D$7","v":3.7057329282263289E-2},{"$f":"'Population 2016'!E90/'Population 2016'!E$7","v":4.1638069091741017E-2},{"$f":"'Population 2016'!F90/'Population 2016'!F$7","v":3.4513537637607852E-2},{"$f":"'Population 2016'!G90/'Population 2016'!G$7","v":3.9459058910707667E-2},{"$f":"'Population 2016'!H90/'Population 2016'!H$7","v":4.0824483887346462E-2},{"$f":"'Population 2016'!I90/'Population 2016'!I$7","v":3.8319393114180124E-2},{"$f":"'Population 2016'!J90/'Population 2016'!J$7","v":4.0933319923564318E-2},{"$f":"'Population 2016'!K90/'Population 2016'!K$7","v":4.2898666933948081E-2},{"$f":"'Population 2016'!L90/'Population 2016'!L$7","v":3.8962339743589744E-2},{"$f":"'Population 2016'!M90/'Population 2016'!M$7","v":3.8962339743589744E-2},{"$f":"'Population 2016'!N90/'Population 2016'!N$7","v":3.7239843151813265E-2},{"$f":"'Population 2016'!O90/'Population 2016'!O$7","v":4.0224032586558045E-2},{"$f":"'Population 2016'!P90/'Population 2016'!P$7","v":4.1797535636627206E-2},{"$f":"'Population 2016'!Q90/'Population 2016'!Q$7","v":3.8369304556354913E-2},{"$f":"'Population 2016'!R90/'Population 2016'!R$7","v":3.916396103896104E-2},{"$f":"'Population 2016'!S90/'Population 2016'!S$7","v":3.7153117858308847E-2},{"$f":"'Population 2016'!T90/'Population 2016'!T$7","v":3.3663295572311763E-2},{"$f":"'Population 2016'!U90/'Population 2016'!U$7","v":{"$error":"#DIV/0!"}},{"$f":"'Population 2016'!V90/'Population 2016'!V$7","v":3.8178762735006824E-2},{"$f":"'Population 2016'!W90/'Population 2016'!W$7","v":4.0836703955050853E-2},{"$f":"'Population 2016'!X90/'Population 2016'!X$7","v":4.0836703955050853E-2},{"$f":"'Population 2016'!Y90/'Population 2016'!Y$7","v":3.9585902178380601E-2},{"$f":"'Population 2016'!Z90/'Population 2016'!Z$7","v":3.5755949849016394E-2},{"$f":"'Population 2016'!AA90/'Population 2016'!AA$7","v":3.7901001687117519E-2},{"$f":"'Population 2016'!AB90/'Population 2016'!AB$7","v":3.7224797219003479E-2},{"$f":"'Population 2016'!AC90/'Population 2016'!AC$7","v":3.7173107402573187E-2},{"$f":"'Population 2016'!AD90/'Population 2016'!AD$7","v":4.0237005117155937E-2},{"$f":"'Population 2016'!AE90/'Population 2016'!AE$7","v":4.0555935292777401E-2},{"$f":"'Population 2016'!AF90/'Population 2016'!AF$7","v":4.0663630448926479E-2},{"$f":"'Population 2016'!AG90/'Population 2016'!AG$7","v":4.0555935292777401E-2},{"$f":"'Population 2016'!AH90/'Population 2016'!AH$7","v":3.970285961559266E-2},{"$f":"'Population 2016'!AI90/'Population 2016'!AI$7","v":3.4637876743139902E-2},{"$f":"'Population 2016'!AJ90/'Population 2016'!AJ$7","v":3.804270965917126E-2},{"$f":"'Population 2016'!AK90/'Population 2016'!AK$7","v":4.2519685039370078E-2},{"$f":"'Population 2016'!AL90/'Population 2016'!AL$7","v":4.1346196594496065E-2},{"$f":"'Population 2016'!AM90/'Population 2016'!AM$7","v":3.9340720607707852E-2},{"$f":"'Population 2016'!AN90/'Population 2016'!AN$7","v":{"$error":"#DIV/0!"}},{"$f":"'Population 2016'!AO90/'Population 2016'!AO$7","v":{"$error":"#DIV/0!"}},{"$f":"'Population 2016'!AP90/'Population 2016'!AP$7","v":3.5196374622356495E-2},{"$f":"'Population 2016'!AQ90/'Population 2016'!AQ$7","v":4.0943534588120264E-2},{"$f":"'Population 2016'!AR90/'Population 2016'!AR$7","v":3.8121650841402649E-2},{"$f":"'Population 2016'!AS90/'Population 2016'!AS$7","v":3.8319393114180124E-2},{"$f":"'Population 2016'!AT90/'Population 2016'!AT$7","v":{"$error":"#DIV/0!"}},{"$f":"'Population 2016'!AU90/'Population 2016'!AU$7","v":{"$error":"#DIV/0!"}},{"$f":"'Population 2016'!AV90/'Population 2016'!AV$7","v":4.05397041529987E-2},{"$f":"'Population 2016'!AW90/'Population 2016'!AW$7","v":4.0296036985597687E-2},{"$f":"'Population 2016'!AX90/'Population 2016'!AX$7","v":3.8954485820970837E-2},{"$f":"'Population 2016'!AY90/'Population 2016'!AY$7","v":3.8803773911538129E-2},{"$f":"'Population 2016'!AZ90/'Population 2016'!AZ$7","v":3.6675466416257685E-2},{"$f":"'Population 2016'!BA90/'Population 2016'!BA$7","v":3.9188517018404034E-2},{"$f":"'Population 2016'!BB90/'Population 2016'!BB$7","v":3.5490332694652502E-2},{"$f":"'Population 2016'!BC90/'Population 2016'!BC$7","v":{"$error":"#DIV/0!"}},88]
[null,"Male 60-64",{"$f":"'Population 2016'!C91/'Population 2016'!C$7","v":3.2216987138673117E-2},{"$f":"'Population 2016'!D91/'Population 2016'!D$7","v":3.023360063754545E-2},{"$f":"'Population 2016'!E91/'Population 2016'!E$7","v":2.3106840539922215E-2},{"$f":"'Population 2016'!F91/'Population 2016'!F$7","v":2.9157988693841119E-2},{"$f":"'Population 2016'!G91/'Population 2016'!G$7","v":3.8347536124490551E-2},{"$f":"'Population 2016'!H91/'Population 2016'!H$7","v":3.4893644603368371E-2},{"$f":"'Population 2016'!I91/'Population 2016'!I$7","v":2.9955261622252479E-2},{"$f":"'Population 2016'!J91/'Population 2016'!J$7","v":3.1932012471085187E-2},{"$f":"'Population 2016'!K91/'Population 2016'!K$7","v":3.3376766563095121E-2},{"$f":"'Population 2016'!L91/'Population 2016'!L$7","v":3.2251602564102567E-2},{"$f":"'Population 2016'!M91/'Population 2016'!M$7","v":3.2251602564102567E-2},{"$f":"'Population 2016'!N91/'Population 2016'!N$7","v":3.0023898466321725E-2},{"$f":"'Population 2016'!O91/'Population 2016'!O$7","v":3.3254837067209775E-2},{"$f":"'Population 2016'!P91/'Population 2016'!P$7","v":3.8656680357574295E-2},{"$f":"'Population 2016'!Q91/'Population 2016'!Q$7","v":2.9804727646454265E-2},{"$f":"'Population 2016'!R91/'Population 2016'!R$7","v":2.9626623376623376E-2},{"$f":"'Population 2016'!S91/'Population 2016'!S$7","v":3.1093698987920339E-2},{"$f":"'Population 2016'!T91/'Population 2016'!T$7","v":2.8767465961476609E-2},{"$f":"'Population 2016'!U91/'Population 2016'!U$7","v":{"$error":"#DIV/0!"}},{"$f":"'Population 2016'!V91/'Population 2016'!V$7","v":3.2717151559710111E-2},{"$f":"'Population 2016'!W91/'Population 2016'!W$7","v":3.4151872598960888E-2},{"$f":"'Population 2016'!X91/'Population 2016'!X$7","v":3.4151872598960888E-2},{"$f":"'Population 2016'!Y91/'Population 2016'!Y$7","v":3.2316070694615701E-2},{"$f":"'Population 2016'!Z91/'Population 2016'!Z$7","v":2.8815336733447605E-2},{"$f":"'Population 2016'!AA91/'Population 2016'!AA$7","v":3.0774849705428865E-2},{"$f":"'Population 2016'!AB91/'Population 2016'!AB$7","v":3.0272305909617613E-2},{"$f":"'Population 2016'!AC91/'Population 2016'!AC$7","v":2.9982635651687489E-2},{"$f":"'Population 2016'!AD91/'Population 2016'!AD$7","v":3.4742795583086454E-2},{"$f":"'Population 2016'!AE91/'Population 2016'!AE$7","v":3.3264980633401685E-2},{"$f":"'Population 2016'!AF91/'Population 2016'!AF$7","v":3.4844213113569E-2},{"$f":"'Population 2016'!AG91/'Population 2016'!AG$7","v":3.3264980633401685E-2},{"$f":"'Population 2016'!AH91/'Population 2016'!AH$7","v":3.2735927301575853E-2},{"$f":"'Population 2016'!AI91/'Population 2016'!AI$7","v":2.9127305443094918E-2},{"$f":"'Population 2016'!AJ91/'Population 2016'!AJ$7","v":3.4507141846980623E-2},{"$f":"'Population 2016'!AK91/'Population 2016'!AK$7","v":3.1496062992125984E-2},{"$f":"'Population 2016'!AL91/'Population 2016'!AL$7","v":3.5010892277597475E-2},{"$f":"'Population 2016'!AM91/'Population 2016'!AM$7","v":3.1616605106046879E-2},{"$f":"'Population 2016'!AN91/'Population 2016'!AN$7","v":{"$error":"#DIV/0!"}},{"$f":"'Population 2016'!AO91/'Population 2016'!AO$7","v":{"$error":"#DIV/0!"}},{"$f":"'Population 2016'!AP91/'Population 2016'!AP$7","v":2.9305135951661631E-2},{"$f":"'Population 2016'!AQ91/'Population 2016'!AQ$7","v":2.9234905890980201E-2},{"$f":"'Population 2016'!AR91/'Population 2016'!AR$7","v":3.1365436339330963E-2},{"$f":"'Population 2016'!AS91/'Population 2016'!AS$7","v":2.9955261622252479E-2},{"$f":"'Population 2016'!AT91/'Population 2016'!AT$7","v":{"$error":"#DIV/0!"}},{"$f":"'Population 2016'!AU91/'Population 2016'!AU$7","v":{"$error":"#DIV/0!"}},{"$f":"'Population 2016'!AV91/'Population 2016'!AV$7","v":3.7754533638670547E-2},{"$f":"'Population 2016'!AW91/'Population 2016'!AW$7","v":3.4569357508418788E-2},{"$f":"'Population 2016'!AX91/'Population 2016'!AX$7","v":3.0477343828842467E-2},{"$f":"'Population 2016'!AY91/'Population 2016'!AY$7","v":3.2043625032459104E-2},{"$f":"'Population 2016'!AZ91/'Population 2016'!AZ$7","v":2.9836466398540068E-2},{"$f":"'Population 2016'!BA91/'Population 2016'!BA$7","v":3.4925033752575857E-2},{"$f":"'Population 2016'!BB91/'Population 2016'!BB$7","v":2.8261626894269292E-2},{"$f":"'Population 2016'!BC91/'Population 2016'!BC$7","v":{"$error":"#DIV/0!"}},89]
[null,"Male 65-69",{"$f":"'Population 2016'!C92/'Population 2016'!C$7","v":2.7696421749649817E-2},{"$f":"'Population 2016'!D92/'Population 2016'!D$7","v":2.7593764008567018E-2},{"$f":"'Population 2016'!E92/'Population 2016'!E$7","v":2.7224891329215281E-2},{"$f":"'Population 2016'!F92/'Population 2016'!F$7","v":3.0496875929782803E-2},{"$f":"'Population 2016'!G92/'Population 2016'!G$7","v":3.1678399407187849E-2},{"$f":"'Population 2016'!H92/'Population 2016'!H$7","v":3.3532468374258648E-2},{"$f":"'Population 2016'!I92/'Population 2016'!I$7","v":3.8902937171756469E-2},{"$f":"'Population 2016'!J92/'Population 2016'!J$7","v":3.1177712963894197E-2},{"$f":"'Population 2016'!K92/'Population 2016'!K$7","v":3.3777688683973135E-2},{"$f":"'Population 2016'!L92/'Population 2016'!L$7","v":3.7159455128205128E-2},{"$f":"'Population 2016'!M92/'Population 2016'!M$7","v":3.7159455128205128E-2},{"$f":"'Population 2016'!N92/'Population 2016'!N$7","v":2.8538945219146617E-2},{"$f":"'Population 2016'!O92/'Population 2016'!O$7","v":3.4655040733197556E-2},{"$f":"'Population 2016'!P92/'Population 2016'!P$7","v":3.0683740033824597E-2},{"$f":"'Population 2016'!Q92/'Population 2016'!Q$7","v":3.4600890715998631E-2},{"$f":"'Population 2016'!R92/'Population 2016'!R$7","v":2.7597402597402596E-2},{"$f":"'Population 2016'!S92/'Population 2016'!S$7","v":2.90956578517793E-2},{"$f":"'Population 2016'!T92/'Population 2016'!T$7","v":2.3478540542472216E-2},{"$f":"'Population 2016'!U92/'Population 2016'!U$7","v":{"$error":"#DIV/0!"}},{"$f":"'Population 2016'!V92/'Population 2016'!V$7","v":3.3819976893183487E-2},{"$f":"'Population 2016'!W92/'Population 2016'!W$7","v":3.2984142564605932E-2},{"$f":"'Population 2016'!X92/'Population 2016'!X$7","v":3.2984142564605932E-2},{"$f":"'Population 2016'!Y92/'Population 2016'!Y$7","v":3.2470201397451708E-2},{"$f":"'Population 2016'!Z92/'Population 2016'!Z$7","v":2.5673530068269015E-2},{"$f":"'Population 2016'!AA92/'Population 2016'!AA$7","v":2.8276338643706926E-2},{"$f":"'Population 2016'!AB92/'Population 2016'!AB$7","v":2.7665121668597914E-2},{"$f":"'Population 2016'!AC92/'Population 2016'!AC$7","v":2.6888518553048666E-2},{"$f":"'Population 2016'!AD92/'Population 2016'!AD$7","v":3.1079989227040129E-2},{"$f":"'Population 2016'!AE92/'Population 2016'!AE$7","v":3.0834662413609781E-2},{"$f":"'Population 2016'!AF92/'Population 2016'!AF$7","v":3.5350249403600084E-2},{"$f":"'Population 2016'!AG92/'Population 2016'!AG$7","v":3.0834662413609781E-2},{"$f":"'Population 2016'!AH92/'Population 2016'!AH$7","v":3.1711802675705891E-2},{"$f":"'Population 2016'!AI92/'Population 2016'!AI$7","v":2.5944669365721998E-2},{"$f":"'Population 2016'!AJ92/'Population 2016'!AJ$7","v":2.870881063498798E-2},{"$f":"'Population 2016'!AK92/'Population 2016'!AK$7","v":2.9921259842519685E-2},{"$f":"'Population 2016'!AL92/'Population 2016'!AL$7","v":3.3121415551504912E-2},{"$f":"'Population 2016'!AM92/'Population 2016'!AM$7","v":3.0977768485608754E-2},{"$f":"'Population 2016'!AN92/'Population 2016'!AN$7","v":{"$error":"#DIV/0!"}},{"$f":"'Population 2016'!AO92/'Population 2016'!AO$7","v":{"$error":"#DIV/0!"}},{"$f":"'Population 2016'!AP92/'Population 2016'!AP$7","v":2.4320241691842902E-2},{"$f":"'Population 2016'!AQ92/'Population 2016'!AQ$7","v":2.6277193840136884E-2},{"$f":"'Population 2016'!AR92/'Population 2016'!AR$7","v":2.9312088269890877E-2},{"$f":"'Population 2016'!AS92/'Population 2016'!AS$7","v":3.8902937171756469E-2},{"$f":"'Population 2016'!AT92/'Population 2016'!AT$7","v":{"$error":"#DIV/0!"}},{"$f":"'Population 2016'!AU92/'Population 2016'!AU$7","v":{"$error":"#DIV/0!"}},{"$f":"'Population 2016'!AV92/'Population 2016'!AV$7","v":3.2493656000495141E-2},{"$f":"'Population 2016'!AW92/'Population 2016'!AW$7","v":3.2914137858868743E-2},{"$f":"'Population 2016'!AX92/'Population 2016'!AX$7","v":2.8559895044908669E-2},{"$f":"'Population 2016'!AY92/'Population 2016'!AY$7","v":3.0684670648316453E-2},{"$f":"'Population 2016'!AZ92/'Population 2016'!AZ$7","v":2.827731613543346E-2},{"$f":"'Population 2016'!BA92/'Population 2016'!BA$7","v":2.902721523484687E-2},{"$f":"'Population 2016'!BB92/'Population 2016'!BB$7","v":3.0003483713638739E-2},{"$f":"'Population 2016'!BC92/'Population 2016'!BC$7","v":{"$error":"#DIV/0!"}},90]
[null,"Male 70-74",{"$f":"'Population 2016'!C93/'Population 2016'!C$7","v":1.6108493569336559E-2},{"$f":"'Population 2016'!D93/'Population 2016'!D$7","v":1.593863625043582E-2},{"$f":"'Population 2016'!E93/'Population 2016'!E$7","v":1.532830016014642E-2},{"$f":"'Population 2016'!F93/'Population 2016'!F$7","v":2.0083308539125259E-2},{"$f":"'Population 2016'!G93/'Population 2016'!G$7","v":2.8899592441645052E-2},{"$f":"'Population 2016'!H93/'Population 2016'!H$7","v":2.4868473646115788E-2},{"$f":"'Population 2016'!I93/'Population 2016'!I$7","v":2.7037541334370745E-2},{"$f":"'Population 2016'!J93/'Population 2016'!J$7","v":2.2377552046665996E-2},{"$f":"'Population 2016'!K93/'Population 2016'!K$7","v":2.455647990377869E-2},{"$f":"'Population 2016'!L93/'Population 2016'!L$7","v":2.2636217948717948E-2},{"$f":"'Population 2016'!M93/'Population 2016'!M$7","v":2.2636217948717948E-2},{"$f":"'Population 2016'!N93/'Population 2016'!N$7","v":2.0302095176222185E-2},{"$f":"'Population 2016'!O93/'Population 2016'!O$7","v":2.377163951120163E-2},{"$f":"'Population 2016'!P93/'Population 2016'!P$7","v":2.1261174196665861E-2},{"$f":"'Population 2016'!Q93/'Population 2016'!Q$7","v":2.1925316889345667E-2},{"$f":"'Population 2016'!R93/'Population 2016'!R$7","v":1.765422077922078E-2},{"$f":"'Population 2016'!S93/'Population 2016'!S$7","v":2.139732288605942E-2},{"$f":"'Population 2016'!T93/'Population 2016'!T$7","v":1.5973984204695708E-2},{"$f":"'Population 2016'!U93/'Population 2016'!U$7","v":{"$error":"#DIV/0!"}},{"$f":"'Population 2016'!V93/'Population 2016'!V$7","v":2.1321289780485243E-2},{"$f":"'Population 2016'!W93/'Population 2016'!W$7","v":2.5216199292592528E-2},{"$f":"'Population 2016'!X93/'Population 2016'!X$7","v":2.5216199292592528E-2},{"$f":"'Population 2016'!Y93/'Population 2016'!Y$7","v":2.1860871352240033E-2},{"$f":"'Population 2016'!Z93/'Population 2016'!Z$7","v":1.8602359303074842E-2},{"$f":"'Population 2016'!AA93/'Population 2016'!AA$7","v":2.0376146274956576E-2},{"$f":"'Population 2016'!AB93/'Population 2016'!AB$7","v":1.6174198532251834E-2},{"$f":"'Population 2016'!AC93/'Population 2016'!AC$7","v":1.9328034682080924E-2},{"$f":"'Population 2016'!AD93/'Population 2016'!AD$7","v":2.256935092916779E-2},{"$f":"'Population 2016'!AE93/'Population 2016'!AE$7","v":1.997417786891471E-2},{"$f":"'Population 2016'!AF93/'Population 2016'!AF$7","v":2.4362032820067953E-2},{"$f":"'Population 2016'!AG93/'Population 2016'!AG$7","v":1.997417786891471E-2},{"$f":"'Population 2016'!AH93/'Population 2016'!AH$7","v":2.2970682629548159E-2},{"$f":"'Population 2016'!AI93/'Population 2016'!AI$7","v":1.8533513270355375E-2},{"$f":"'Population 2016'!AJ93/'Population 2016'!AJ$7","v":2.1496252298119078E-2},{"$f":"'Population 2016'!AK93/'Population 2016'!AK$7","v":2.3622047244094488E-2},{"$f":"'Population 2016'!AL93/'Population 2016'!AL$7","v":2.5407904681456452E-2},{"$f":"'Population 2016'!AM93/'Population 2016'!AM$7","v":2.1824981996422514E-2},{"$f":"'Population 2016'!AN93/'Population 2016'!AN$7","v":{"$error":"#DIV/0!"}},{"$f":"'Population 2016'!AO93/'Population 2016'!AO$7","v":{"$error":"#DIV/0!"}},{"$f":"'Population 2016'!AP93/'Population 2016'!AP$7","v":1.797583081570997E-2},{"$f":"'Population 2016'!AQ93/'Population 2016'!AQ$7","v":1.8821803959912002E-2},{"$f":"'Population 2016'!AR93/'Population 2016'!AR$7","v":2.104710433209437E-2},{"$f":"'Population 2016'!AS93/'Population 2016'!AS$7","v":2.7037541334370745E-2},{"$f":"'Population 2016'!AT93/'Population 2016'!AT$7","v":{"$error":"#DIV/0!"}},{"$f":"'Population 2016'!AU93/'Population 2016'!AU$7","v":{"$error":"#DIV/0!"}},{"$f":"'Population 2016'!AV93/'Population 2016'!AV$7","v":2.5499783375626663E-2},{"$f":"'Population 2016'!AW93/'Population 2016'!AW$7","v":2.4847320256463919E-2},{"$f":"'Population 2016'!AX93/'Population 2016'!AX$7","v":2.0183671409829448E-2},{"$f":"'Population 2016'!AY93/'Population 2016'!AY$7","v":2.2669436509997403E-2},{"$f":"'Population 2016'!AZ93/'Population 2016'!AZ$7","v":2.0003189170992718E-2},{"$f":"'Population 2016'!BA93/'Population 2016'!BA$7","v":2.1246358274710438E-2},{"$f":"'Population 2016'!BB93/'Population 2016'!BB$7","v":2.3427974220519072E-2},{"$f":"'Population 2016'!BC93/'Population 2016'!BC$7","v":{"$error":"#DIV/0!"}},91]
[null,"Male 75-79",{"$f":"'Population 2016'!C94/'Population 2016'!C$7","v":1.0632879154463263E-2},{"$f":"'Population 2016'!D94/'Population 2016'!D$7","v":1.1206853613587687E-2},{"$f":"'Population 2016'!E94/'Population 2016'!E$7","v":1.3269274765499885E-2},{"$f":"'Population 2016'!F94/'Population 2016'!F$7","v":1.8149360309431716E-2},{"$f":"'Population 2016'!G94/'Population 2016'!G$7","v":1.6672841793256763E-2},{"$f":"'Population 2016'!H94/'Population 2016'!H$7","v":1.9391359771840935E-2},{"$f":"'Population 2016'!I94/'Population 2016'!I$7","v":1.419957206769111E-2},{"$f":"'Population 2016'!J94/'Population 2016'!J$7","v":1.7902041637332798E-2},{"$f":"'Population 2016'!K94/'Population 2016'!K$7","v":1.8241956499949884E-2},{"$f":"'Population 2016'!L94/'Population 2016'!L$7","v":1.8329326923076924E-2},{"$f":"'Population 2016'!M94/'Population 2016'!M$7","v":1.8329326923076924E-2},{"$f":"'Population 2016'!N94/'Population 2016'!N$7","v":1.540638993944175E-2},{"$f":"'Population 2016'!O94/'Population 2016'!O$7","v":2.0207484725050916E-2},{"$f":"'Population 2016'!P94/'Population 2016'!P$7","v":1.6187484899734237E-2},{"$f":"'Population 2016'!Q94/'Population 2016'!Q$7","v":2.0897567660157587E-2},{"$f":"'Population 2016'!R94/'Population 2016'!R$7","v":2.0495129870129872E-2},{"$f":"'Population 2016'!S94/'Population 2016'!S$7","v":1.5559908586353248E-2},{"$f":"'Population 2016'!T94/'Population 2016'!T$7","v":1.2954293678304685E-2},{"$f":"'Population 2016'!U94/'Population 2016'!U$7","v":{"$error":"#DIV/0!"}},{"$f":"'Population 2016'!V94/'Population 2016'!V$7","v":1.8380422224556246E-2},{"$f":"'Population 2016'!W94/'Population 2016'!W$7","v":1.6923623686303711E-2},{"$f":"'Population 2016'!X94/'Population 2016'!X$7","v":1.6923623686303711E-2},{"$f":"'Population 2016'!Y94/'Population 2016'!Y$7","v":1.8136046033703248E-2},{"$f":"'Population 2016'!Z94/'Population 2016'!Z$7","v":1.3952822361577305E-2},{"$f":"'Population 2016'!AA94/'Population 2016'!AA$7","v":1.5464206338830474E-2},{"$f":"'Population 2016'!AB94/'Population 2016'!AB$7","v":1.1201235998455001E-2},{"$f":"'Population 2016'!AC94/'Population 2016'!AC$7","v":1.4759696065634906E-2},{"$f":"'Population 2016'!AD94/'Population 2016'!AD$7","v":1.5136008618367896E-2},{"$f":"'Population 2016'!AE94/'Population 2016'!AE$7","v":1.4505961874382927E-2},{"$f":"'Population 2016'!AF94/'Population 2016'!AF$7","v":1.8289597339694933E-2},{"$f":"'Population 2016'!AG94/'Population 2016'!AG$7","v":1.4505961874382927E-2},{"$f":"'Population 2016'!AH94/'Population 2016'!AH$7","v":1.7208178572716455E-2},{"$f":"'Population 2016'!AI94/'Population 2016'!AI$7","v":1.4732343679712101E-2},{"$f":"'Population 2016'!AJ94/'Population 2016'!AJ$7","v":1.6405034648564559E-2},{"$f":"'Population 2016'!AK94/'Population 2016'!AK$7","v":1.1023622047244094E-2},{"$f":"'Population 2016'!AL94/'Population 2016'!AL$7","v":1.8939225536833682E-2},{"$f":"'Population 2016'!AM94/'Population 2016'!AM$7","v":1.7167282272864542E-2},{"$f":"'Population 2016'!AN94/'Population 2016'!AN$7","v":{"$error":"#DIV/0!"}},{"$f":"'Population 2016'!AO94/'Population 2016'!AO$7","v":{"$error":"#DIV/0!"}},{"$f":"'Population 2016'!AP94/'Population 2016'!AP$7","v":1.4501510574018127E-2},{"$f":"'Population 2016'!AQ94/'Population 2016'!AQ$7","v":1.6597408946467856E-2},{"$f":"'Population 2016'!AR94/'Population 2016'!AR$7","v":1.5952141283187768E-2},{"$f":"'Population 2016'!AS94/'Population 2016'!AS$7","v":1.419957206769111E-2},{"$f":"'Population 2016'!AT94/'Population 2016'!AT$7","v":{"$error":"#DIV/0!"}},{"$f":"'Population 2016'!AU94/'Population 2016'!AU$7","v":{"$error":"#DIV/0!"}},{"$f":"'Population 2016'!AV94/'Population 2016'!AV$7","v":1.9062944853623816E-2},{"$f":"'Population 2016'!AW94/'Population 2016'!AW$7","v":1.7275165997602784E-2},{"$f":"'Population 2016'!AX94/'Population 2016'!AX$7","v":1.755979412655162E-2},{"$f":"'Population 2016'!AY94/'Population 2016'!AY$7","v":1.629014108889466E-2},{"$f":"'Population 2016'!AZ94/'Population 2016'!AZ$7","v":1.5626937864318492E-2},{"$f":"'Population 2016'!BA94/'Population 2016'!BA$7","v":1.4211610886093939E-2},{"$f":"'Population 2016'!BB94/'Population 2016'!BB$7","v":1.7766939557568369E-2},{"$f":"'Population 2016'!BC94/'Population 2016'!BC$7","v":{"$error":"#DIV/0!"}},92]
[null,"Male 80-84",{"$f":"'Population 2016'!C95/'Population 2016'!C$7","v":7.6403922067999489E-3},{"$f":"'Population 2016'!D95/'Population 2016'!D$7","v":8.0689346017831353E-3},{"$f":"'Population 2016'!E95/'Population 2016'!E$7","v":9.6087851750171586E-3},{"$f":"'Population 2016'!F95/'Population 2016'!F$7","v":1.0264802142219578E-2},{"$f":"'Population 2016'!G95/'Population 2016'!G$7","v":1.278251204149685E-2},{"$f":"'Population 2016'!H95/'Population 2016'!H$7","v":1.3006795078159604E-2},{"$f":"'Population 2016'!I95/'Population 2016'!I$7","v":1.089282240809181E-2},{"$f":"'Population 2016'!J95/'Population 2016'!J$7","v":8.548727748164538E-3},{"$f":"'Population 2016'!K95/'Population 2016'!K$7","v":8.1186729477798932E-3},{"$f":"'Population 2016'!L95/'Population 2016'!L$7","v":1.1618589743589744E-2},{"$f":"'Population 2016'!M95/'Population 2016'!M$7","v":1.1618589743589744E-2},{"$f":"'Population 2016'!N95/'Population 2016'!N$7","v":9.7914104735608715E-3},{"$f":"'Population 2016'!O95/'Population 2016'!O$7","v":1.3429226069246436E-2},{"$f":"'Population 2016'!P95/'Population 2016'!P$7","v":1.0388982846098091E-2},{"$f":"'Population 2016'!Q95/'Population 2016'!Q$7","v":1.3360739979445015E-2},{"$f":"'Population 2016'!R95/'Population 2016'!R$7","v":9.74025974025974E-3},{"$f":"'Population 2016'!S95/'Population 2016'!S$7","v":1.0747633039503754E-2},{"$f":"'Population 2016'!T95/'Population 2016'!T$7","v":8.8625236750884458E-3},{"$f":"'Population 2016'!U95/'Population 2016'!U$7","v":{"$error":"#DIV/0!"}},{"$f":"'Population 2016'!V95/'Population 2016'!V$7","v":1.3443965969961138E-2},{"$f":"'Population 2016'!W95/'Population 2016'!W$7","v":1.2269627172570191E-2},{"$f":"'Population 2016'!X95/'Population 2016'!X$7","v":1.2269627172570191E-2},{"$f":"'Population 2016'!Y95/'Population 2016'!Y$7","v":1.0943279901356351E-2},{"$f":"'Population 2016'!Z95/'Population 2016'!Z$7","v":9.5349199597377053E-3},{"$f":"'Population 2016'!AA95/'Population 2016'!AA$7","v":1.0226463880536309E-2},{"$f":"'Population 2016'!AB95/'Population 2016'!AB$7","v":7.9663962920046346E-3},{"$f":"'Population 2016'!AC95/'Population 2016'!AC$7","v":9.8213453291068429E-3},{"$f":"'Population 2016'!AD95/'Population 2016'!AD$7","v":1.0557500673309992E-2},{"$f":"'Population 2016'!AE95/'Population 2016'!AE$7","v":9.6453254347991183E-3},{"$f":"'Population 2016'!AF95/'Population 2016'!AF$7","v":1.174727101857876E-2},{"$f":"'Population 2016'!AG95/'Population 2016'!AG$7","v":9.6453254347991183E-3},{"$f":"'Population 2016'!AH95/'Population 2016'!AH$7","v":1.1229310158306588E-2},{"$f":"'Population 2016'!AI95/'Population 2016'!AI$7","v":9.7278452541610435E-3},{"$f":"'Population 2016'!AJ95/'Population 2016'!AJ$7","v":1.0465280724084288E-2},{"$f":"'Population 2016'!AK95/'Population 2016'!AK$7","v":4.7244094488188976E-3},{"$f":"'Population 2016'!AL95/'Population 2016'!AL$7","v":1.2337171564486729E-2},{"$f":"'Population 2016'!AM95/'Population 2016'!AM$7","v":1.1266754942272399E-2},{"$f":"'Population 2016'!AN95/'Population 2016'!AN$7","v":{"$error":"#DIV/0!"}},{"$f":"'Population 2016'!AO95/'Population 2016'!AO$7","v":{"$error":"#DIV/0!"}},{"$f":"'Population 2016'!AP95/'Population 2016'!AP$7","v":9.6676737160120846E-3},{"$f":"'Population 2016'!AQ95/'Population 2016'!AQ$7","v":1.0388658029821559E-2},{"$f":"'Population 2016'!AR95/'Population 2016'!AR$7","v":1.0588901602093016E-2},{"$f":"'Population 2016'!AS95/'Population 2016'!AS$7","v":1.089282240809181E-2},{"$f":"'Population 2016'!AT95/'Population 2016'!AT$7","v":{"$error":"#DIV/0!"}},{"$f":"'Population 2016'!AU95/'Population 2016'!AU$7","v":{"$error":"#DIV/0!"}},{"$f":"'Population 2016'!AV95/'Population 2016'!AV$7","v":1.4049637927833137E-2},{"$f":"'Population 2016'!AW95/'Population 2016'!AW$7","v":1.116797625615951E-2},{"$f":"'Population 2016'!AX95/'Population 2016'!AX$7","v":8.9817337773741047E-3},{"$f":"'Population 2016'!AY95/'Population 2016'!AY$7","v":1.1079373322946421E-2},{"$f":"'Population 2016'!AZ95/'Population 2016'!AZ$7","v":9.8332772275473504E-3},{"$f":"'Population 2016'!BA95/'Population 2016'!BA$7","v":9.450721239252469E-3},{"$f":"'Population 2016'!BB95/'Population 2016'!BB$7","v":1.1147883643964466E-2},{"$f":"'Population 2016'!BC95/'Population 2016'!BC$7","v":{"$error":"#DIV/0!"}},93]
[null,"Male 85-89",{"$f":"'Population 2016'!C96/'Population 2016'!C$7","v":3.9475359735133067E-3},{"$f":"'Population 2016'!D96/'Population 2016'!D$7","v":4.134083777456791E-3},{"$f":"'Population 2016'!E96/'Population 2016'!E$7","v":4.8043925875085793E-3},{"$f":"'Population 2016'!F96/'Population 2016'!F$7","v":5.5043141922047007E-3},{"$f":"'Population 2016'!G96/'Population 2016'!G$7","v":7.224898110411263E-3},{"$f":"'Population 2016'!H96/'Population 2016'!H$7","v":6.1036870591031364E-3},{"$f":"'Population 2016'!I96/'Population 2016'!I$7","v":7.3915580626337293E-3},{"$f":"'Population 2016'!J96/'Population 2016'!J$7","v":5.2298099165241875E-3},{"$f":"'Population 2016'!K96/'Population 2016'!K$7","v":5.512679162072767E-3},{"$f":"'Population 2016'!L96/'Population 2016'!L$7","v":6.7107371794871791E-3},{"$f":"'Population 2016'!M96/'Population 2016'!M$7","v":6.7107371794871791E-3},{"$f":"'Population 2016'!N96/'Population 2016'!N$7","v":5.1973363651128795E-3},{"$f":"'Population 2016'!O96/'Population 2016'!O$7","v":6.619144602851324E-3},{"$f":"'Population 2016'!P96/'Population 2016'!P$7","v":5.5568978014013046E-3},{"$f":"'Population 2016'!Q96/'Population 2016'!Q$7","v":3.4258307639602604E-3},{"$f":"'Population 2016'!R96/'Population 2016'!R$7","v":4.87012987012987E-3},{"$f":"'Population 2016'!S96/'Population 2016'!S$7","v":5.15181194906954E-3},{"$f":"'Population 2016'!T96/'Population 2016'!T$7","v":4.1811099596183393E-3},{"$f":"'Population 2016'!U96/'Population 2016'!U$7","v":{"$error":"#DIV/0!"}},{"$f":"'Population 2016'!V96/'Population 2016'!V$7","v":5.4616111752967128E-3},{"$f":"'Population 2016'!W96/'Population 2016'!W$7","v":5.8724974191473878E-3},{"$f":"'Population 2016'!X96/'Population 2016'!X$7","v":5.8724974191473878E-3},{"$f":"'Population 2016'!Y96/'Population 2016'!Y$7","v":5.3431976983148374E-3},{"$f":"'Population 2016'!Z96/'Population 2016'!Z$7","v":4.5610946627190523E-3},{"$f":"'Population 2016'!AA96/'Population 2016'!AA$7","v":4.8476095018126653E-3},{"$f":"'Population 2016'!AB96/'Population 2016'!AB$7","v":4.2004634994206261E-3},{"$f":"'Population 2016'!AC96/'Population 2016'!AC$7","v":4.711099198209957E-3},{"$f":"'Population 2016'!AD96/'Population 2016'!AD$7","v":5.6019391327767308E-3},{"$f":"'Population 2016'!AE96/'Population 2016'!AE$7","v":4.936583883952305E-3},{"$f":"'Population 2016'!AF96/'Population 2016'!AF$7","v":5.0965083495987853E-3},{"$f":"'Population 2016'!AG96/'Population 2016'!AG$7","v":4.936583883952305E-3},{"$f":"'Population 2016'!AH96/'Population 2016'!AH$7","v":5.1855324366232736E-3},{"$f":"'Population 2016'!AI96/'Population 2016'!AI$7","v":4.5434098065677015E-3},{"$f":"'Population 2016'!AJ96/'Population 2016'!AJ$7","v":7.9196718993070295E-3},{"$f":"'Population 2016'!AK96/'Population 2016'!AK$7","v":6.2992125984251968E-3},{"$f":"'Population 2016'!AL96/'Population 2016'!AL$7","v":5.5795136264615661E-3},{"$f":"'Population 2016'!AM96/'Population 2016'!AM$7","v":4.8667735266104493E-3},{"$f":"'Population 2016'!AN96/'Population 2016'!AN$7","v":{"$error":"#DIV/0!"}},{"$f":"'Population 2016'!AO96/'Population 2016'!AO$7","v":{"$error":"#DIV/0!"}},{"$f":"'Population 2016'!AP96/'Population 2016'!AP$7","v":4.8338368580060423E-3},{"$f":"'Population 2016'!AQ96/'Population 2016'!AQ$7","v":5.5243216817404059E-3},{"$f":"'Population 2016'!AR96/'Population 2016'!AR$7","v":5.1006954555772874E-3},{"$f":"'Population 2016'!AS96/'Population 2016'!AS$7","v":7.3915580626337293E-3},{"$f":"'Population 2016'!AT96/'Population 2016'!AT$7","v":{"$error":"#DIV/0!"}},{"$f":"'Population 2016'!AU96/'Population 2016'!AU$7","v":{"$error":"#DIV/0!"}},{"$f":"'Population 2016'!AV96/'Population 2016'!AV$7","v":6.5606238781952099E-3},{"$f":"'Population 2016'!AW96/'Population 2016'!AW$7","v":5.7076539639656781E-3},{"$f":"'Population 2016'!AX96/'Population 2016'!AX$7","v":4.9449994954082147E-3},{"$f":"'Population 2016'!AY96/'Population 2016'!AY$7","v":5.5396866614732107E-3},{"$f":"'Population 2016'!AZ96/'Population 2016'!AZ$7","v":5.1912616714799523E-3},{"$f":"'Population 2016'!BA96/'Population 2016'!BA$7","v":4.2634832658281817E-3},{"$f":"'Population 2016'!BB96/'Population 2016'!BB$7","v":4.5288277303605646E-3},{"$f":"'Population 2016'!BC96/'Population 2016'!BC$7","v":{"$error":"#DIV/0!"}},94]
[null,"Male 90+",{"$f":"'Population 2016'!C97/'Population 2016'!C$7","v":1.5917483764166561E-3},{"$f":"'Population 2016'!D97/'Population 2016'!D$7","v":1.9923295313044776E-3},{"$f":"'Population 2016'!E97/'Population 2016'!E$7","v":3.4317089910775567E-3},{"$f":"'Population 2016'!F97/'Population 2016'!F$7","v":1.6364177328176137E-3},{"$f":"'Population 2016'!G97/'Population 2016'!G$7","v":2.2230455724342349E-3},{"$f":"'Population 2016'!H97/'Population 2016'!H$7","v":2.3226419782427861E-3},{"$f":"'Population 2016'!I97/'Population 2016'!I$7","v":2.7232056020229526E-3},{"$f":"'Population 2016'!J97/'Population 2016'!J$7","v":2.262898521572966E-3},{"$f":"'Population 2016'!K97/'Population 2016'!K$7","v":2.9066853763656409E-3},{"$f":"'Population 2016'!L97/'Population 2016'!L$7","v":2.6041666666666665E-3},{"$f":"'Population 2016'!M97/'Population 2016'!M$7","v":2.6041666666666665E-3},{"$f":"'Population 2016'!N97/'Population 2016'!N$7","v":2.1114178983271076E-3},{"$f":"'Population 2016'!O97/'Population 2016'!O$7","v":2.5776476578411407E-3},{"$f":"'Population 2016'!P97/'Population 2016'!P$7","v":2.1744382701135538E-3},{"$f":"'Population 2016'!Q97/'Population 2016'!Q$7","v":2.3980815347721821E-3},{"$f":"'Population 2016'!R97/'Population 2016'!R$7","v":2.232142857142857E-3},{"$f":"'Population 2016'!S97/'Population 2016'!S$7","v":2.4224616389160953E-3},{"$f":"'Population 2016'!T97/'Population 2016'!T$7","v":1.9654790408462279E-3},{"$f":"'Population 2016'!U97/'Population 2016'!U$7","v":{"$error":"#DIV/0!"}},{"$f":"'Population 2016'!V97/'Population 2016'!V$7","v":2.7308055876483564E-3},{"$f":"'Population 2016'!W97/'Population 2016'!W$7","v":2.640085295063379E-3},{"$f":"'Population 2016'!X97/'Population 2016'!X$7","v":2.640085295063379E-3},{"$f":"'Population 2016'!Y97/'Population 2016'!Y$7","v":2.4917796958487462E-3},{"$f":"'Population 2016'!Z97/'Population 2016'!Z$7","v":1.9541532072960667E-3},{"$f":"'Population 2016'!AA97/'Population 2016'!AA$7","v":2.1187539817426079E-3},{"$f":"'Population 2016'!AB97/'Population 2016'!AB$7","v":2.0278099652375433E-3},{"$f":"'Population 2016'!AC97/'Population 2016'!AC$7","v":2.0773121387283235E-3},{"$f":"'Population 2016'!AD97/'Population 2016'!AD$7","v":1.7775383786695395E-3},{"$f":"'Population 2016'!AE97/'Population 2016'!AE$7","v":1.594896331738437E-3},{"$f":"'Population 2016'!AF97/'Population 2016'!AF$7","v":2.277163305139883E-3},{"$f":"'Population 2016'!AG97/'Population 2016'!AG$7","v":1.594896331738437E-3},{"$f":"'Population 2016'!AH97/'Population 2016'!AH$7","v":2.2213407378024594E-3},{"$f":"'Population 2016'!AI97/'Population 2016'!AI$7","v":2.2604588394062076E-3},{"$f":"'Population 2016'!AJ97/'Population 2016'!AJ$7","v":4.2426813746287654E-3},{"$f":"'Population 2016'!AK97/'Population 2016'!AK$7","v":3.1496062992125984E-3},{"$f":"'Population 2016'!AL97/'Population 2016'!AL$7","v":2.0450806917707729E-3},{"$f":"'Population 2016'!AM97/'Population 2016'!AM$7","v":2.1836597207703207E-3},{"$f":"'Population 2016'!AN97/'Population 2016'!AN$7","v":{"$error":"#DIV/0!"}},{"$f":"'Population 2016'!AO97/'Population 2016'!AO$7","v":{"$error":"#DIV/0!"}},{"$f":"'Population 2016'!AP97/'Population 2016'!AP$7","v":1.3595166163141994E-3},{"$f":"'Population 2016'!AQ97/'Population 2016'!AQ$7","v":2.2977267171840625E-3},{"$f":"'Population 2016'!AR97/'Population 2016'!AR$7","v":2.1966582362072562E-3},{"$f":"'Population 2016'!AS97/'Population 2016'!AS$7","v":2.7232056020229526E-3},{"$f":"'Population 2016'!AT97/'Population 2016'!AT$7","v":{"$error":"#DIV/0!"}},{"$f":"'Population 2016'!AU97/'Population 2016'!AU$7","v":{"$error":"#DIV/0!"}},{"$f":"'Population 2016'!AV97/'Population 2016'!AV$7","v":2.5994924800396115E-3},{"$f":"'Population 2016'!AW97/'Population 2016'!AW$7","v":2.2830615855862712E-3},{"$f":"'Population 2016'!AX97/'Population 2016'!AX$7","v":1.6146937127863559E-3},{"$f":"'Population 2016'!AY97/'Population 2016'!AY$7","v":2.3110880290833549E-3},{"$f":"'Population 2016'!AZ97/'Population 2016'!AZ$7","v":1.9666554455094699E-3},{"$f":"'Population 2016'!BA97/'Population 2016'!BA$7","v":2.5580899594969089E-3},{"$f":"'Population 2016'!BB97/'Population 2016'!BB$7","v":2.3515067061487547E-3},{"$f":"'Population 2016'!BC97/'Population 2016'!BC$7","v":{"$error":"#DIV/0!"}},95]
["SIMD Q2","Female 0-4",0,0,0,0,0,0,0,0,0,0,0,0,0,0,0,0,0,0,0,0,0,0,0,0,0,0,0,0,0,0,0,0,0,0,0,0,0,0,0,0,0,0,0,0,0,0,0,0,0,0,0,0,0,96]
[null,"Female 5-9",0,0,0,0,0,0,0,0,0,0,0,0,0,0,0,0,0,0,0,0,0,0,0,0,0,0,0,0,0,0,0,0,0,0,0,0,0,0,0,0,0,0,0,0,0,0,0,0,0,0,0,0,0,97]
[null,"Female 10-15",0,0,0,0,0,0,0,0,0,0,0,0,0,0,0,0,0,0,0,0,0,0,0,0,0,0,0,0,0,0,0,0,0,0,0,0,0,0,0,0,0,0,0,0,0,0,0,0,0,0,0,0,0,98]
[null,"Female 16-19",0,0,0,0,0,0,0,0,0,0,0,0,0,0,0,0,0,0,0,0,0,0,0,0,0,0,0,0,0,0,0,0,0,0,0,0,0,0,0,0,0,0,0,0,0,0,0,0,0,0,0,0,0,99]
[null,"Female 20-24",0,0,0,0,0,0,0,0,0,0,0,0,0,0,0,0,0,0,0,0,0,0,0,0,0,0,0,0,0,0,0,0,0,0,0,0,0,0,0,0,0,0,0,0,0,0,0,0,0,0,0,0,0,100]
[null,"Female 25-29",0,0,0,0,0,0,0,0,0,0,0,0,0,0,0,0,0,0,0,0,0,0,0,0,0,0,0,0,0,0,0,0,0,0,0,0,0,0,0,0,0,0,0,0,0,0,0,0,0,0,0,0,0,101]
[null,"Female 30-34",0,0,0,0,0,0,0,0,0,0,0,0,0,0,0,0,0,0,0,0,0,0,0,0,0,0,0,0,0,0,0,0,0,0,0,0,0,0,0,0,0,0,0,0,0,0,0,0,0,0,0,0,0,102]
[null,"Female 35-39",0,0,0,0,0,0,0,0,0,0,0,0,0,0,0,0,0,0,0,0,0,0,0,0,0,0,0,0,0,0,0,0,0,0,0,0,0,0,0,0,0,0,0,0,0,0,0,0,0,0,0,0,0,103]
[null,"Female 40-44",0,0,0,0,0,0,0,0,0,0,0,0,0,0,0,0,0,0,0,0,0,0,0,0,0,0,0,0,0,0,0,0,0,0,0,0,0,0,0,0,0,0,0,0,0,0,0,0,0,0,0,0,0,104]
[null,"Female 45-49",0,0,0,0,0,0,0,0,0,0,0,0,0,0,0,0,0,0,0,0,0,0,0,0,0,0,0,0,0,0,0,0,0,0,0,0,0,0,0,0,0,0,0,0,0,0,0,0,0,0,0,0,0,105]
[null,"Female 50-54",0,0,0,0,0,0,0,0,0,0,0,0,0,0,0,0,0,0,0,0,0,0,0,0,0,0,0,0,0,0,0,0,0,0,0,0,0,0,0,0,0,0,0,0,0,0,0,0,0,0,0,0,0,106]
[null,"Female 55-59",0,0,0,0,0,0,0,0,0,0,0,0,0,0,0,0,0,0,0,0,0,0,0,0,0,0,0,0,0,0,0,0,0,0,0,0,0,0,0,0,0,0,0,0,0,0,0,0,0,0,0,0,0,107]
[null,"Female 60-64",0,0,0,0,0,0,0,0,0,0,0,0,0,0,0,0,0,0,0,0,0,0,0,0,0,0,0,0,0,0,0,0,0,0,0,0,0,0,0,0,0,0,0,0,0,0,0,0,0,0,0,0,0,108]
[null,"Female 65-69",0,0,0,0,0,0,0,0,0,0,0,0,0,0,0,0,0,0,0,0,0,0,0,0,0,0,0,0,0,0,0,0,0,0,0,0,0,0,0,0,0,0,0,0,0,0,0,0,0,0,0,0,0,109]
[null,"Female 70-74",0,0,0,0,0,0,0,0,0,0,0,0,0,0,0,0,0,0,0,0,0,0,0,0,0,0,0,0,0,0,0,0,0,0,0,0,0,0,0,0,0,0,0,0,0,0,0,0,0,0,0,0,0,110]
[null,"Female 75-79",0,0,0,0,0,0,0,0,0,0,0,0,0,0,0,0,0,0,0,0,0,0,0,0,0,0,0,0,0,0,0,0,0,0,0,0,0,0,0,0,0,0,0,0,0,0,0,0,0,0,0,0,0,111]
[null,"Female 80-84",0,0,0,0,0,0,0,0,0,0,0,0,0,0,0,0,0,0,0,0,0,0,0,0,0,0,0,0,0,0,0,0,0,0,0,0,0,0,0,0,0,0,0,0,0,0,0,0,0,0,0,0,0,112]
[null,"Female 85-89",0,0,0,0,0,0,0,0,0,0,0,0,0,0,0,0,0,0,0,0,0,0,0,0,0,0,0,0,0,0,0,0,0,0,0,0,0,0,0,0,0,0,0,0,0,0,0,0,0,0,0,0,0,113]
[null,"Female 90+",0,0,0,0,0,0,0,0,0,0,0,0,0,0,0,0,0,0,0,0,0,0,0,0,0,0,0,0,0,0,0,0,0,0,0,0,0,0,0,0,0,0,0,0,0,0,0,0,0,0,0,0,0,114]
[null,"Male 0-4",0,0,0,0,0,0,0,0,0,0,0,0,0,0,0,0,0,0,0,0,0,0,0,0,0,0,0,0,0,0,0,0,0,0,0,0,0,0,0,0,0,0,0,0,0,0,0,0,0,0,0,0,0,115]
[null,"Male 5-9",0,0,0,0,0,0,0,0,0,0,0,0,0,0,0,0,0,0,0,0,0,0,0,0,0,0,0,0,0,0,0,0,0,0,0,0,0,0,0,0,0,0,0,0,0,0,0,0,0,0,0,0,0,116]
[null,"Male 10-15",0,0,0,0,0,0,0,0,0,0,0,0,0,0,0,0,0,0,0,0,0,0,0,0,0,0,0,0,0,0,0,0,0,0,0,0,0,0,0,0,0,0,0,0,0,0,0,0,0,0,0,0,0,117]
[null,"Male 16-19",0,0,0,0,0,0,0,0,0,0,0,0,0,0,0,0,0,0,0,0,0,0,0,0,0,0,0,0,0,0,0,0,0,0,0,0,0,0,0,0,0,0,0,0,0,0,0,0,0,0,0,0,0,118]
[null,"Male 20-24",0,0,0,0,0,0,0,0,0,0,0,0,0,0,0,0,0,0,0,0,0,0,0,0,0,0,0,0,0,0,0,0,0,0,0,0,0,0,0,0,0,0,0,0,0,0,0,0,0,0,0,0,0,119]
[null,"Male 25-29",0,0,0,0,0,0,0,0,0,0,0,0,0,0,0,0,0,0,0,0,0,0,0,0,0,0,0,0,0,0,0,0,0,0,0,0,0,0,0,0,0,0,0,0,0,0,0,0,0,0,0,0,0,120]
[null,"Male 30-34",0,0,0,0,0,0,0,0,0,0,0,0,0,0,0,0,0,0,0,0,0,0,0,0,0,0,0,0,0,0,0,0,0,0,0,0,0,0,0,0,0,0,0,0,0,0,0,0,0,0,0,0,0,121]
[null,"Male 35-39",0,0,0,0,0,0,0,0,0,0,0,0,0,0,0,0,0,0,0,0,0,0,0,0,0,0,0,0,0,0,0,0,0,0,0,0,0,0,0,0,0,0,0,0,0,0,0,0,0,0,0,0,0,122]
[null,"Male 40-44",0,0,0,0,0,0,0,0,0,0,0,0,0,0,0,0,0,0,0,0,0,0,0,0,0,0,0,0,0,0,0,0,0,0,0,0,0,0,0,0,0,0,0,0,0,0,0,0,0,0,0,0,0,123]
[null,"Male 45-49",0,0,0,0,0,0,0,0,0,0,0,0,0,0,0,0,0,0,0,0,0,0,0,0,0,0,0,0,0,0,0,0,0,0,0,0,0,0,0,0,0,0,0,0,0,0,0,0,0,0,0,0,0,124]
[null,"Male 50-54",0,0,0,0,0,0,0,0,0,0,0,0,0,0,0,0,0,0,0,0,0,0,0,0,0,0,0,0,0,0,0,0,0,0,0,0,0,0,0,0,0,0,0,0,0,0,0,0,0,0,0,0,0,125]
[null,"Male 55-59",0,0,0,0,0,0,0,0,0,0,0,0,0,0,0,0,0,0,0,0,0,0,0,0,0,0,0,0,0,0,0,0,0,0,0,0,0,0,0,0,0,0,0,0,0,0,0,0,0,0,0,0,0,126]
[null,"Male 60-64",0,0,0,0,0,0,0,0,0,0,0,0,0,0,0,0,0,0,0,0,0,0,0,0,0,0,0,0,0,0,0,0,0,0,0,0,0,0,0,0,0,0,0,0,0,0,0,0,0,0,0,0,0,127]
[null,"Male 65-69",0,0,0,0,0,0,0,0,0,0,0,0,0,0,0,0,0,0,0,0,0,0,0,0,0,0,0,0,0,0,0,0,0,0,0,0,0,0,0,0,0,0,0,0,0,0,0,0,0,0,0,0,0,128]
[null,"Male 70-74",0,0,0,0,0,0,0,0,0,0,0,0,0,0,0,0,0,0,0,0,0,0,0,0,0,0,0,0,0,0,0,0,0,0,0,0,0,0,0,0,0,0,0,0,0,0,0,0,0,0,0,0,0,129]
[null,"Male 75-79",0,0,0,0,0,0,0,0,0,0,0,0,0,0,0,0,0,0,0,0,0,0,0,0,0,0,0,0,0,0,0,0,0,0,0,0,0,0,0,0,0,0,0,0,0,0,0,0,0,0,0,0,0,130]
[null,"Male 80-84",0,0,0,0,0,0,0,0,0,0,0,0,0,0,0,0,0,0,0,0,0,0,0,0,0,0,0,0,0,0,0,0,0,0,0,0,0,0,0,0,0,0,0,0,0,0,0,0,0,0,0,0,0,131]
[null,"Male 85-89",0,0,0,0,0,0,0,0,0,0,0,0,0,0,0,0,0,0,0,0,0,0,0,0,0,0,0,0,0,0,0,0,0,0,0,0,0,0,0,0,0,0,0,0,0,0,0,0,0,0,0,0,0,132]
[null,"Male 90+",0,0,0,0,0,0,0,0,0,0,0,0,0,0,0,0,0,0,0,0,0,0,0,0,0,0,0,0,0,0,0,0,0,0,0,0,0,0,0,0,0,0,0,0,0,0,0,0,0,0,0,0,0,133]
["SIMD Q3","Female 0-4",0,0,0,0,0,0,0,0,0,0,0,0,0,0,0,0,0,0,0,0,0,0,0,0,0,0,0,0,0,0,0,0,0,0,0,0,0,0,0,0,0,0,0,0,0,0,0,0,0,0,0,0,0,134]
[null,"Female 5-9",0,0,0,0,0,0,0,0,0,0,0,0,0,0,0,0,0,0,0,0,0,0,0,0,0,0,0,0,0,0,0,0,0,0,0,0,0,0,0,0,0,0,0,0,0,0,0,0,0,0,0,0,0,135]
[null,"Female 10-15",0,0,0,0,0,0,0,0,0,0,0,0,0,0,0,0,0,0,0,0,0,0,0,0,0,0,0,0,0,0,0,0,0,0,0,0,0,0,0,0,0,0,0,0,0,0,0,0,0,0,0,0,0,136]
[null,"Female 16-19",0,0,0,0,0,0,0,0,0,0,0,0,0,0,0,0,0,0,0,0,0,0,0,0,0,0,0,0,0,0,0,0,0,0,0,0,0,0,0,0,0,0,0,0,0,0,0,0,0,0,0,0,0,137]
[null,"Female 20-24",0,0,0,0,0,0,0,0,0,0,0,0,0,0,0,0,0,0,0,0,0,0,0,0,0,0,0,0,0,0,0,0,0,0,0,0,0,0,0,0,0,0,0,0,0,0,0,0,0,0,0,0,0,138]
[null,"Female 25-29",0,0,0,0,0,0,0,0,0,0,0,0,0,0,0,0,0,0,0,0,0,0,0,0,0,0,0,0,0,0,0,0,0,0,0,0,0,0,0,0,0,0,0,0,0,0,0,0,0,0,0,0,0,139]
[null,"Female 30-34",0,0,0,0,0,0,0,0,0,0,0,0,0,0,0,0,0,0,0,0,0,0,0,0,0,0,0,0,0,0,0,0,0,0,0,0,0,0,0,0,0,0,0,0,0,0,0,0,0,0,0,0,0,140]
[null,"Female 35-39",0,0,0,0,0,0,0,0,0,0,0,0,0,0,0,0,0,0,0,0,0,0,0,0,0,0,0,0,0,0,0,0,0,0,0,0,0,0,0,0,0,0,0,0,0,0,0,0,0,0,0,0,0,141]
[null,"Female 40-44",0,0,0,0,0,0,0,0,0,0,0,0,0,0,0,0,0,0,0,0,0,0,0,0,0,0,0,0,0,0,0,0,0,0,0,0,0,0,0,0,0,0,0,0,0,0,0,0,0,0,0,0,0,142]
[null,"Female 45-49",0,0,0,0,0,0,0,0,0,0,0,0,0,0,0,0,0,0,0,0,0,0,0,0,0,0,0,0,0,0,0,0,0,0,0,0,0,0,0,0,0,0,0,0,0,0,0,0,0,0,0,0,0,143]
[null,"Female 50-54",0,0,0,0,0,0,0,0,0,0,0,0,0,0,0,0,0,0,0,0,0,0,0,0,0,0,0,0,0,0,0,0,0,0,0,0,0,0,0,0,0,0,0,0,0,0,0,0,0,0,0,0,0,144]
[null,"Female 55-59",0,0,0,0,0,0,0,0,0,0,0,0,0,0,0,0,0,0,0,0,0,0,0,0,0,0,0,0,0,0,0,0,0,0,0,0,0,0,0,0,0,0,0,0,0,0,0,0,0,0,0,0,0,145]
[null,"Female 60-64",0,0,0,0,0,0,0,0,0,0,0,0,0,0,0,0,0,0,0,0,0,0,0,0,0,0,0,0,0,0,0,0,0,0,0,0,0,0,0,0,0,0,0,0,0,0,0,0,0,0,0,0,0,146]
[null,"Female 65-69",0,0,0,0,0,0,0,0,0,0,0,0,0,0,0,0,0,0,0,0,0,0,0,0,0,0,0,0,0,0,0,0,0,0,0,0,0,0,0,0,0,0,0,0,0,0,0,0,0,0,0,0,0,147]
[null,"Female 70-74",0,0,0,0,0,0,0,0,0,0,0,0,0,0,0,0,0,0,0,0,0,0,0,0,0,0,0,0,0,0,0,0,0,0,0,0,0,0,0,0,0,0,0,0,0,0,0,0,0,0,0,0,0,148]
[null,"Female 75-79",0,0,0,0,0,0,0,0,0,0,0,0,0,0,0,0,0,0,0,0,0,0,0,0,0,0,0,0,0,0,0,0,0,0,0,0,0,0,0,0,0,0,0,0,0,0,0,0,0,0,0,0,0,149]
[null,"Female 80-84",0,0,0,0,0,0,0,0,0,0,0,0,0,0,0,0,0,0,0,0,0,0,0,0,0,0,0,0,0,0,0,0,0,0,0,0,0,0,0,0,0,0,0,0,0,0,0,0,0,0,0,0,0,150]
[null,"Female 85-89",0,0,0,0,0,0,0,0,0,0,0,0,0,0,0,0,0,0,0,0,0,0,0,0,0,0,0,0,0,0,0,0,0,0,0,0,0,0,0,0,0,0,0,0,0,0,0,0,0,0,0,0,0,151]
[null,"Female 90+",0,0,0,0,0,0,0,0,0,0,0,0,0,0,0,0,0,0,0,0,0,0,0,0,0,0,0,0,0,0,0,0,0,0,0,0,0,0,0,0,0,0,0,0,0,0,0,0,0,0,0,0,0,152]
[null,"Male 0-4",0,0,0,0,0,0,0,0,0,0,0,0,0,0,0,0,0,0,0,0,0,0,0,0,0,0,0,0,0,0,0,0,0,0,0,0,0,0,0,0,0,0,0,0,0,0,0,0,0,0,0,0,0,153]
[null,"Male 5-9",0,0,0,0,0,0,0,0,0,0,0,0,0,0,0,0,0,0,0,0,0,0,0,0,0,0,0,0,0,0,0,0,0,0,0,0,0,0,0,0,0,0,0,0,0,0,0,0,0,0,0,0,0,154]
[null,"Male 10-15",0,0,0,0,0,0,0,0,0,0,0,0,0,0,0,0,0,0,0,0,0,0,0,0,0,0,0,0,0,0,0,0,0,0,0,0,0,0,0,0,0,0,0,0,0,0,0,0,0,0,0,0,0,155]
[null,"Male 16-19",0,0,0,0,0,0,0,0,0,0,0,0,0,0,0,0,0,0,0,0,0,0,0,0,0,0,0,0,0,0,0,0,0,0,0,0,0,0,0,0,0,0,0,0,0,0,0,0,0,0,0,0,0,156]
[null,"Male 20-24",0,0,0,0,0,0,0,0,0,0,0,0,0,0,0,0,0,0,0,0,0,0,0,0,0,0,0,0,0,0,0,0,0,0,0,0,0,0,0,0,0,0,0,0,0,0,0,0,0,0,0,0,0,157]
[null,"Male 25-29",0,0,0,0,0,0,0,0,0,0,0,0,0,0,0,0,0,0,0,0,0,0,0,0,0,0,0,0,0,0,0,0,0,0,0,0,0,0,0,0,0,0,0,0,0,0,0,0,0,0,0,0,0,158]
[null,"Male 30-34",0,0,0,0,0,0,0,0,0,0,0,0,0,0,0,0,0,0,0,0,0,0,0,0,0,0,0,0,0,0,0,0,0,0,0,0,0,0,0,0,0,0,0,0,0,0,0,0,0,0,0,0,0,159]
[null,"Male 35-39",0,0,0,0,0,0,0,0,0,0,0,0,0,0,0,0,0,0,0,0,0,0,0,0,0,0,0,0,0,0,0,0,0,0,0,0,0,0,0,0,0,0,0,0,0,0,0,0,0,0,0,0,0,160]
[null,"Male 40-44",0,0,0,0,0,0,0,0,0,0,0,0,0,0,0,0,0,0,0,0,0,0,0,0,0,0,0,0,0,0,0,0,0,0,0,0,0,0,0,0,0,0,0,0,0,0,0,0,0,0,0,0,0,161]
[null,"Male 45-49",0,0,0,0,0,0,0,0,0,0,0,0,0,0,0,0,0,0,0,0,0,0,0,0,0,0,0,0,0,0,0,0,0,0,0,0,0,0,0,0,0,0,0,0,0,0,0,0,0,0,0,0,0,162]
[null,"Male 50-54",0,0,0,0,0,0,0,0,0,0,0,0,0,0,0,0,0,0,0,0,0,0,0,0,0,0,0,0,0,0,0,0,0,0,0,0,0,0,0,0,0,0,0,0,0,0,0,0,0,0,0,0,0,163]
[null,"Male 55-59",0,0,0,0,0,0,0,0,0,0,0,0,0,0,0,0,0,0,0,0,0,0,0,0,0,0,0,0,0,0,0,0,0,0,0,0,0,0,0,0,0,0,0,0,0,0,0,0,0,0,0,0,0,164]
[null,"Male 60-64",0,0,0,0,0,0,0,0,0,0,0,0,0,0,0,0,0,0,0,0,0,0,0,0,0,0,0,0,0,0,0,0,0,0,0,0,0,0,0,0,0,0,0,0,0,0,0,0,0,0,0,0,0,165]
[null,"Male 65-69",0,0,0,0,0,0,0,0,0,0,0,0,0,0,0,0,0,0,0,0,0,0,0,0,0,0,0,0,0,0,0,0,0,0,0,0,0,0,0,0,0,0,0,0,0,0,0,0,0,0,0,0,0,166]
[null,"Male 70-74",0,0,0,0,0,0,0,0,0,0,0,0,0,0,0,0,0,0,0,0,0,0,0,0,0,0,0,0,0,0,0,0,0,0,0,0,0,0,0,0,0,0,0,0,0,0,0,0,0,0,0,0,0,167]
[null,"Male 75-79",0,0,0,0,0,0,0,0,0,0,0,0,0,0,0,0,0,0,0,0,0,0,0,0,0,0,0,0,0,0,0,0,0,0,0,0,0,0,0,0,0,0,0,0,0,0,0,0,0,0,0,0,0,168]
[null,"Male 80-84",0,0,0,0,0,0,0,0,0,0,0,0,0,0,0,0,0,0,0,0,0,0,0,0,0,0,0,0,0,0,0,0,0,0,0,0,0,0,0,0,0,0,0,0,0,0,0,0,0,0,0,0,0,169]
[null,"Male 85-89",0,0,0,0,0,0,0,0,0,0,0,0,0,0,0,0,0,0,0,0,0,0,0,0,0,0,0,0,0,0,0,0,0,0,0,0,0,0,0,0,0,0,0,0,0,0,0,0,0,0,0,0,0,170]
[null,"Male 90+",0,0,0,0,0,0,0,0,0,0,0,0,0,0,0,0,0,0,0,0,0,0,0,0,0,0,0,0,0,0,0,0,0,0,0,0,0,0,0,0,0,0,0,0,0,0,0,0,0,0,0,0,0,171]
["SIMD Q4","Female 0-4",0,0,0,0,0,0,0,0,0,0,0,0,0,0,0,0,0,0,0,0,0,0,0,0,0,0,0,0,0,0,0,0,0,0,0,0,0,0,0,0,0,0,0,0,0,0,0,0,0,0,0,0,0,172]
[null,"Female 5-9",0,0,0,0,0,0,0,0,0,0,0,0,0,0,0,0,0,0,0,0,0,0,0,0,0,0,0,0,0,0,0,0,0,0,0,0,0,0,0,0,0,0,0,0,0,0,0,0,0,0,0,0,0,173]
[null,"Female 10-15",0,0,0,0,0,0,0,0,0,0,0,0,0,0,0,0,0,0,0,0,0,0,0,0,0,0,0,0,0,0,0,0,0,0,0,0,0,0,0,0,0,0,0,0,0,0,0,0,0,0,0,0,0,174]
[null,"Female 16-19",0,0,0,0,0,0,0,0,0,0,0,0,0,0,0,0,0,0,0,0,0,0,0,0,0,0,0,0,0,0,0,0,0,0,0,0,0,0,0,0,0,0,0,0,0,0,0,0,0,0,0,0,0,175]
[null,"Female 20-24",0,0,0,0,0,0,0,0,0,0,0,0,0,0,0,0,0,0,0,0,0,0,0,0,0,0,0,0,0,0,0,0,0,0,0,0,0,0,0,0,0,0,0,0,0,0,0,0,0,0,0,0,0,176]
[null,"Female 25-29",0,0,0,0,0,0,0,0,0,0,0,0,0,0,0,0,0,0,0,0,0,0,0,0,0,0,0,0,0,0,0,0,0,0,0,0,0,0,0,0,0,0,0,0,0,0,0,0,0,0,0,0,0,177]
[null,"Female 30-34",0,0,0,0,0,0,0,0,0,0,0,0,0,0,0,0,0,0,0,0,0,0,0,0,0,0,0,0,0,0,0,0,0,0,0,0,0,0,0,0,0,0,0,0,0,0,0,0,0,0,0,0,0,178]
[null,"Female 35-39",0,0,0,0,0,0,0,0,0,0,0,0,0,0,0,0,0,0,0,0,0,0,0,0,0,0,0,0,0,0,0,0,0,0,0,0,0,0,0,0,0,0,0,0,0,0,0,0,0,0,0,0,0,179]
[null,"Female 40-44",0,0,0,0,0,0,0,0,0,0,0,0,0,0,0,0,0,0,0,0,0,0,0,0,0,0,0,0,0,0,0,0,0,0,0,0,0,0,0,0,0,0,0,0,0,0,0,0,0,0,0,0,0,180]
[null,"Female 45-49",0,0,0,0,0,0,0,0,0,0,0,0,0,0,0,0,0,0,0,0,0,0,0,0,0,0,0,0,0,0,0,0,0,0,0,0,0,0,0,0,0,0,0,0,0,0,0,0,0,0,0,0,0,181]
[null,"Female 50-54",0,0,0,0,0,0,0,0,0,0,0,0,0,0,0,0,0,0,0,0,0,0,0,0,0,0,0,0,0,0,0,0,0,0,0,0,0,0,0,0,0,0,0,0,0,0,0,0,0,0,0,0,0,182]
[null,"Female 55-59",0,0,0,0,0,0,0,0,0,0,0,0,0,0,0,0,0,0,0,0,0,0,0,0,0,0,0,0,0,0,0,0,0,0,0,0,0,0,0,0,0,0,0,0,0,0,0,0,0,0,0,0,0,183]
[null,"Female 60-64",0,0,0,0,0,0,0,0,0,0,0,0,0,0,0,0,0,0,0,0,0,0,0,0,0,0,0,0,0,0,0,0,0,0,0,0,0,0,0,0,0,0,0,0,0,0,0,0,0,0,0,0,0,184]
[null,"Female 65-69",0,0,0,0,0,0,0,0,0,0,0,0,0,0,0,0,0,0,0,0,0,0,0,0,0,0,0,0,0,0,0,0,0,0,0,0,0,0,0,0,0,0,0,0,0,0,0,0,0,0,0,0,0,185]
[null,"Female 70-74",0,0,0,0,0,0,0,0,0,0,0,0,0,0,0,0,0,0,0,0,0,0,0,0,0,0,0,0,0,0,0,0,0,0,0,0,0,0,0,0,0,0,0,0,0,0,0,0,0,0,0,0,0,186]
[null,"Female 75-79",0,0,0,0,0,0,0,0,0,0,0,0,0,0,0,0,0,0,0,0,0,0,0,0,0,0,0,0,0,0,0,0,0,0,0,0,0,0,0,0,0,0,0,0,0,0,0,0,0,0,0,0,0,187]
[null,"Female 80-84",0,0,0,0,0,0,0,0,0,0,0,0,0,0,0,0,0,0,0,0,0,0,0,0,0,0,0,0,0,0,0,0,0,0,0,0,0,0,0,0,0,0,0,0,0,0,0,0,0,0,0,0,0,188]
[null,"Female 85-89",0,0,0,0,0,0,0,0,0,0,0,0,0,0,0,0,0,0,0,0,0,0,0,0,0,0,0,0,0,0,0,0,0,0,0,0,0,0,0,0,0,0,0,0,0,0,0,0,0,0,0,0,0,189]
[null,"Female 90+",0,0,0,0,0,0,0,0,0,0,0,0,0,0,0,0,0,0,0,0,0,0,0,0,0,0,0,0,0,0,0,0,0,0,0,0,0,0,0,0,0,0,0,0,0,0,0,0,0,0,0,0,0,190]
[null,"Male 0-4",0,0,0,0,0,0,0,0,0,0,0,0,0,0,0,0,0,0,0,0,0,0,0,0,0,0,0,0,0,0,0,0,0,0,0,0,0,0,0,0,0,0,0,0,0,0,0,0,0,0,0,0,0,191]
[null,"Male 5-9",0,0,0,0,0,0,0,0,0,0,0,0,0,0,0,0,0,0,0,0,0,0,0,0,0,0,0,0,0,0,0,0,0,0,0,0,0,0,0,0,0,0,0,0,0,0,0,0,0,0,0,0,0,192]
[null,"Male 10-15",0,0,0,0,0,0,0,0,0,0,0,0,0,0,0,0,0,0,0,0,0,0,0,0,0,0,0,0,0,0,0,0,0,0,0,0,0,0,0,0,0,0,0,0,0,0,0,0,0,0,0,0,0,193]
[null,"Male 16-19",0,0,0,0,0,0,0,0,0,0,0,0,0,0,0,0,0,0,0,0,0,0,0,0,0,0,0,0,0,0,0,0,0,0,0,0,0,0,0,0,0,0,0,0,0,0,0,0,0,0,0,0,0,194]
[null,"Male 20-24",0,0,0,0,0,0,0,0,0,0,0,0,0,0,0,0,0,0,0,0,0,0,0,0,0,0,0,0,0,0,0,0,0,0,0,0,0,0,0,0,0,0,0,0,0,0,0,0,0,0,0,0,0,195]
[null,"Male 25-29",0,0,0,0,0,0,0,0,0,0,0,0,0,0,0,0,0,0,0,0,0,0,0,0,0,0,0,0,0,0,0,0,0,0,0,0,0,0,0,0,0,0,0,0,0,0,0,0,0,0,0,0,0,196]
[null,"Male 30-34",0,0,0,0,0,0,0,0,0,0,0,0,0,0,0,0,0,0,0,0,0,0,0,0,0,0,0,0,0,0,0,0,0,0,0,0,0,0,0,0,0,0,0,0,0,0,0,0,0,0,0,0,0,197]
[null,"Male 35-39",0,0,0,0,0,0,0,0,0,0,0,0,0,0,0,0,0,0,0,0,0,0,0,0,0,0,0,0,0,0,0,0,0,0,0,0,0,0,0,0,0,0,0,0,0,0,0,0,0,0,0,0,0,198]
[null,"Male 40-44",0,0,0,0,0,0,0,0,0,0,0,0,0,0,0,0,0,0,0,0,0,0,0,0,0,0,0,0,0,0,0,0,0,0,0,0,0,0,0,0,0,0,0,0,0,0,0,0,0,0,0,0,0,199]
[null,"Male 45-49",0,0,0,0,0,0,0,0,0,0,0,0,0,0,0,0,0,0,0,0,0,0,0,0,0,0,0,0,0,0,0,0,0,0,0,0,0,0,0,0,0,0,0,0,0,0,0,0,0,0,0,0,0,200]
[null,"Male 50-54",0,0,0,0,0,0,0,0,0,0,0,0,0,0,0,0,0,0,0,0,0,0,0,0,0,0,0,0,0,0,0,0,0,0,0,0,0,0,0,0,0,0,0,0,0,0,0,0,0,0,0,0,0,201]
[null,"Male 55-59",0,0,0,0,0,0,0,0,0,0,0,0,0,0,0,0,0,0,0,0,0,0,0,0,0,0,0,0,0,0,0,0,0,0,0,0,0,0,0,0,0,0,0,0,0,0,0,0,0,0,0,0,0,202]
[null,"Male 60-64",0,0,0,0,0,0,0,0,0,0,0,0,0,0,0,0,0,0,0,0,0,0,0,0,0,0,0,0,0,0,0,0,0,0,0,0,0,0,0,0,0,0,0,0,0,0,0,0,0,0,0,0,0,203]
[null,"Male 65-69",0,0,0,0,0,0,0,0,0,0,0,0,0,0,0,0,0,0,0,0,0,0,0,0,0,0,0,0,0,0,0,0,0,0,0,0,0,0,0,0,0,0,0,0,0,0,0,0,0,0,0,0,0,204]
[null,"Male 70-74",0,0,0,0,0,0,0,0,0,0,0,0,0,0,0,0,0,0,0,0,0,0,0,0,0,0,0,0,0,0,0,0,0,0,0,0,0,0,0,0,0,0,0,0,0,0,0,0,0,0,0,0,0,205]
[null,"Male 75-79",0,0,0,0,0,0,0,0,0,0,0,0,0,0,0,0,0,0,0,0,0,0,0,0,0,0,0,0,0,0,0,0,0,0,0,0,0,0,0,0,0,0,0,0,0,0,0,0,0,0,0,0,0,206]
[null,"Male 80-84",0,0,0,0,0,0,0,0,0,0,0,0,0,0,0,0,0,0,0,0,0,0,0,0,0,0,0,0,0,0,0,0,0,0,0,0,0,0,0,0,0,0,0,0,0,0,0,0,0,0,0,0,0,207]
[null,"Male 85-89",0,0,0,0,0,0,0,0,0,0,0,0,0,0,0,0,0,0,0,0,0,0,0,0,0,0,0,0,0,0,0,0,0,0,0,0,0,0,0,0,0,0,0,0,0,0,0,0,0,0,0,0,0,208]
[null,"Male 90+",0,0,0,0,0,0,0,0,0,0,0,0,0,0,0,0,0,0,0,0,0,0,0,0,0,0,0,0,0,0,0,0,0,0,0,0,0,0,0,0,0,0,0,0,0,0,0,0,0,0,0,0,0,209]
["SIMD Q5 (least deprived)","Female 0-4",0,0,0,0,0,0,0,0,0,0,0,0,0,0,0,0,0,0,0,0,0,0,0,0,0,0,0,0,0,0,0,0,0,0,0,0,0,0,0,0,0,0,0,0,0,0,0,0,0,0,0,0,0,210]
[null,"Female 5-9",0,0,0,0,0,0,0,0,0,0,0,0,0,0,0,0,0,0,0,0,0,0,0,0,0,0,0,0,0,0,0,0,0,0,0,0,0,0,0,0,0,0,0,0,0,0,0,0,0,0,0,0,0,211]
[null,"Female 10-15",0,0,0,0,0,0,0,0,0,0,0,0,0,0,0,0,0,0,0,0,0,0,0,0,0,0,0,0,0,0,0,0,0,0,0,0,0,0,0,0,0,0,0,0,0,0,0,0,0,0,0,0,0,212]
[null,"Female 16-19",0,0,0,0,0,0,0,0,0,0,0,0,0,0,0,0,0,0,0,0,0,0,0,0,0,0,0,0,0,0,0,0,0,0,0,0,0,0,0,0,0,0,0,0,0,0,0,0,0,0,0,0,0,213]
[null,"Female 20-24",0,0,0,0,0,0,0,0,0,0,0,0,0,0,0,0,0,0,0,0,0,0,0,0,0,0,0,0,0,0,0,0,0,0,0,0,0,0,0,0,0,0,0,0,0,0,0,0,0,0,0,0,0,214]
[null,"Female 25-29",0,0,0,0,0,0,0,0,0,0,0,0,0,0,0,0,0,0,0,0,0,0,0,0,0,0,0,0,0,0,0,0,0,0,0,0,0,0,0,0,0,0,0,0,0,0,0,0,0,0,0,0,0,215]
[null,"Female 30-34",0,0,0,0,0,0,0,0,0,0,0,0,0,0,0,0,0,0,0,0,0,0,0,0,0,0,0,0,0,0,0,0,0,0,0,0,0,0,0,0,0,0,0,0,0,0,0,0,0,0,0,0,0,216]
[null,"Female 35-39",0,0,0,0,0,0,0,0,0,0,0,0,0,0,0,0,0,0,0,0,0,0,0,0,0,0,0,0,0,0,0,0,0,0,0,0,0,0,0,0,0,0,0,0,0,0,0,0,0,0,0,0,0,217]
[null,"Female 40-44",0,0,0,0,0,0,0,0,0,0,0,0,0,0,0,0,0,0,0,0,0,0,0,0,0,0,0,0,0,0,0,0,0,0,0,0,0,0,0,0,0,0,0,0,0,0,0,0,0,0,0,0,0,218]
[null,"Female 45-49",0,0,0,0,0,0,0,0,0,0,0,0,0,0,0,0,0,0,0,0,0,0,0,0,0,0,0,0,0,0,0,0,0,0,0,0,0,0,0,0,0,0,0,0,0,0,0,0,0,0,0,0,0,219]
[null,"Female 50-54",0,0,0,0,0,0,0,0,0,0,0,0,0,0,0,0,0,0,0,0,0,0,0,0,0,0,0,0,0,0,0,0,0,0,0,0,0,0,0,0,0,0,0,0,0,0,0,0,0,0,0,0,0,220]
[null,"Female 55-59",0,0,0,0,0,0,0,0,0,0,0,0,0,0,0,0,0,0,0,0,0,0,0,0,0,0,0,0,0,0,0,0,0,0,0,0,0,0,0,0,0,0,0,0,0,0,0,0,0,0,0,0,0,221]
[null,"Female 60-64",0,0,0,0,0,0,0,0,0,0,0,0,0,0,0,0,0,0,0,0,0,0,0,0,0,0,0,0,0,0,0,0,0,0,0,0,0,0,0,0,0,0,0,0,0,0,0,0,0,0,0,0,0,222]
[null,"Female 65-69",0,0,0,0,0,0,0,0,0,0,0,0,0,0,0,0,0,0,0,0,0,0,0,0,0,0,0,0,0,0,0,0,0,0,0,0,0,0,0,0,0,0,0,0,0,0,0,0,0,0,0,0,0,223]
[null,"Female 70-74",0,0,0,0,0,0,0,0,0,0,0,0,0,0,0,0,0,0,0,0,0,0,0,0,0,0,0,0,0,0,0,0,0,0,0,0,0,0,0,0,0,0,0,0,0,0,0,0,0,0,0,0,0,224]
[null,"Female 75-79",0,0,0,0,0,0,0,0,0,0,0,0,0,0,0,0,0,0,0,0,0,0,0,0,0,0,0,0,0,0,0,0,0,0,0,0,0,0,0,0,0,0,0,0,0,0,0,0,0,0,0,0,0,225]
[null,"Female 80-84",0,0,0,0,0,0,0,0,0,0,0,0,0,0,0,0,0,0,0,0,0,0,0,0,0,0,0,0,0,0,0,0,0,0,0,0,0,0,0,0,0,0,0,0,0,0,0,0,0,0,0,0,0,226]
[null,"Female 85-89",0,0,0,0,0,0,0,0,0,0,0,0,0,0,0,0,0,0,0,0,0,0,0,0,0,0,0,0,0,0,0,0,0,0,0,0,0,0,0,0,0,0,0,0,0,0,0,0,0,0,0,0,0,227]
[null,"Female 90+",0,0,0,0,0,0,0,0,0,0,0,0,0,0,0,0,0,0,0,0,0,0,0,0,0,0,0,0,0,0,0,0,0,0,0,0,0,0,0,0,0,0,0,0,0,0,0,0,0,0,0,0,0,228]
[null,"Male 0-4",0,0,0,0,0,0,0,0,0,0,0,0,0,0,0,0,0,0,0,0,0,0,0,0,0,0,0,0,0,0,0,0,0,0,0,0,0,0,0,0,0,0,0,0,0,0,0,0,0,0,0,0,0,229]
[null,"Male 5-9",0,0,0,0,0,0,0,0,0,0,0,0,0,0,0,0,0,0,0,0,0,0,0,0,0,0,0,0,0,0,0,0,0,0,0,0,0,0,0,0,0,0,0,0,0,0,0,0,0,0,0,0,0,230]
[null,"Male 10-15",0,0,0,0,0,0,0,0,0,0,0,0,0,0,0,0,0,0,0,0,0,0,0,0,0,0,0,0,0,0,0,0,0,0,0,0,0,0,0,0,0,0,0,0,0,0,0,0,0,0,0,0,0,231]
[null,"Male 16-19",0,0,0,0,0,0,0,0,0,0,0,0,0,0,0,0,0,0,0,0,0,0,0,0,0,0,0,0,0,0,0,0,0,0,0,0,0,0,0,0,0,0,0,0,0,0,0,0,0,0,0,0,0,232]
[null,"Male 20-24",0,0,0,0,0,0,0,0,0,0,0,0,0,0,0,0,0,0,0,0,0,0,0,0,0,0,0,0,0,0,0,0,0,0,0,0,0,0,0,0,0,0,0,0,0,0,0,0,0,0,0,0,0,233]
[null,"Male 25-29",0,0,0,0,0,0,0,0,0,0,0,0,0,0,0,0,0,0,0,0,0,0,0,0,0,0,0,0,0,0,0,0,0,0,0,0,0,0,0,0,0,0,0,0,0,0,0,0,0,0,0,0,0,234]
[null,"Male 30-34",0,0,0,0,0,0,0,0,0,0,0,0,0,0,0,0,0,0,0,0,0,0,0,0,0,0,0,0,0,0,0,0,0,0,0,0,0,0,0,0,0,0,0,0,0,0,0,0,0,0,0,0,0,235]
[null,"Male 35-39",0,0,0,0,0,0,0,0,0,0,0,0,0,0,0,0,0,0,0,0,0,0,0,0,0,0,0,0,0,0,0,0,0,0,0,0,0,0,0,0,0,0,0,0,0,0,0,0,0,0,0,0,0,236]
[null,"Male 40-44",0,0,0,0,0,0,0,0,0,0,0,0,0,0,0,0,0,0,0,0,0,0,0,0,0,0,0,0,0,0,0,0,0,0,0,0,0,0,0,0,0,0,0,0,0,0,0,0,0,0,0,0,0,237]
[null,"Male 45-49",0,0,0,0,0,0,0,0,0,0,0,0,0,0,0,0,0,0,0,0,0,0,0,0,0,0,0,0,0,0,0,0,0,0,0,0,0,0,0,0,0,0,0,0,0,0,0,0,0,0,0,0,0,238]
[null,"Male 50-54",0,0,0,0,0,0,0,0,0,0,0,0,0,0,0,0,0,0,0,0,0,0,0,0,0,0,0,0,0,0,0,0,0,0,0,0,0,0,0,0,0,0,0,0,0,0,0,0,0,0,0,0,0,239]
[null,"Male 55-59",0,0,0,0,0,0,0,0,0,0,0,0,0,0,0,0,0,0,0,0,0,0,0,0,0,0,0,0,0,0,0,0,0,0,0,0,0,0,0,0,0,0,0,0,0,0,0,0,0,0,0,0,0,240]
[null,"Male 60-64",0,0,0,0,0,0,0,0,0,0,0,0,0,0,0,0,0,0,0,0,0,0,0,0,0,0,0,0,0,0,0,0,0,0,0,0,0,0,0,0,0,0,0,0,0,0,0,0,0,0,0,0,0,241]
[null,"Male 65-69",0,0,0,0,0,0,0,0,0,0,0,0,0,0,0,0,0,0,0,0,0,0,0,0,0,0,0,0,0,0,0,0,0,0,0,0,0,0,0,0,0,0,0,0,0,0,0,0,0,0,0,0,0,242]
[null,"Male 70-74",0,0,0,0,0,0,0,0,0,0,0,0,0,0,0,0,0,0,0,0,0,0,0,0,0,0,0,0,0,0,0,0,0,0,0,0,0,0,0,0,0,0,0,0,0,0,0,0,0,0,0,0,0,243]
[null,"Male 75-79",0,0,0,0,0,0,0,0,0,0,0,0,0,0,0,0,0,0,0,0,0,0,0,0,0,0,0,0,0,0,0,0,0,0,0,0,0,0,0,0,0,0,0,0,0,0,0,0,0,0,0,0,0,244]
[null,"Male 80-84",0,0,0,0,0,0,0,0,0,0,0,0,0,0,0,0,0,0,0,0,0,0,0,0,0,0,0,0,0,0,0,0,0,0,0,0,0,0,0,0,0,0,0,0,0,0,0,0,0,0,0,0,0,245]
[null,"Male 85-89",0,0,0,0,0,0,0,0,0,0,0,0,0,0,0,0,0,0,0,0,0,0,0,0,0,0,0,0,0,0,0,0,0,0,0,0,0,0,0,0,0,0,0,0,0,0,0,0,0,0,0,0,0,246]
[null,"Male 90+",0,0,0,0,0,0,0,0,0,0,0,0,0,0,0,0,0,0,0,0,0,0,0,0,0,0,0,0,0,0,0,0,0,0,0,0,0,0,0,0,0,0,0,0,0,0,0,0,0,0,0,0,0,247]

{"sheet":"Pop2016fractionQ1&2","index":16,"n_rows":249,"n_cols":56,"rows_kept":249,"cut":false,"hidden":true,"merged":[]}
["Q1 & Q2 subgroup's fraction of area's 2016 Q1 + Q2 population (16+ only)"]
[]
["SIMD","group","Aberdeen City Local Authority","Aberdeen City Region Deal","Aberdeenshire Local Authority","Angus Local Authority","Argyll & Bute Local Authority","Ayrshire & Arran Health Board","Borders Health Board","Clackmannanshire & Stirling IJB","Clackmannanshire Local Authority","Dumfries & Galloway Health Board","Dumfries & Galloway Local Authority","Dundee City Local Authority","East Ayrshire Local Authority","East Dunbartonshire Local Authority","East Lothian Local Authority","East Renfrewshire Local Authority","Edinburgh & SE Scotland City Region Deal","Edinburgh, City of Local Authority","Eilean Siar Local Authority","Falkirk Local Authority","Fife Health Board","Fife Local Authority","Forth Valley Health Board","Glasgow City Local Authority","Glasgow City Region Deal","Grampian Health Board","Greater Glasgow & Clyde Health Board","Highland Health Board","Highland Local Authority","Inverclyde Local Authority","Inverness & Highland City Region Deal","Lanarkshire Health Board","Lothian Health Board","Midlothian Local Authority","Moray Local Authority","North Ayrshire Local Authority","North Lanarkshire Local Authority","Orkney Health Board","Orkney Islands Local Authority","Perth & Kinross Local Authority","Renfrewshire Local Authority","Scotland","Scottish Borders Local Authority","Shetland Health Board","Shetland Islands Local Authority","South Ayrshire Local Authority","South Lanarkshire Local Authority","Stirling Local Authority","Tay Cities Region Deal ","Tayside Health Board","West Dunbartonshire Local Authority","West Lothian Local Authority","Western Isles Health Board",1]
[null,null,"popS12000033","Aber_deal","popS12000034","popS12000041","popS12000035","popS08000015","popS08000016","ClacksStirIJB","popS12000005","popS08000017","popS12000006","popS12000042","popS12000008","popS12000045","popS12000010","popS12000011","EdinSE_deal","popS12000036","popS12000013","popS12000014","popS08000018","popS12000015","popS08000019","popS12000046","GClyde_deal","popS08000020","popS08000021","popS08000022","popS12000017","popS12000018","Inver_deal","popS08000023","popS08000024","popS12000019","popS12000020","popS12000021","popS12000044","popS08000025","popS12000023","popS12000024","popS12000038","popS00000001","popS12000026","popS08000026","popS12000027","popS12000028","popS12000029","popS12000030","Tay_deal","popS08000027","popS12000039","popS12000040","popS08000028",2]
["All quintiles","16+ Males and Females",null,null,null,null,null,null,null,null,null,null,null,null,null,null,null,null,null,null,null,null,null,null,null,null,null,null,null,null,null,null,null,null,null,null,null,null,null,null,null,null,null,null,null,null,null,null,null,null,null,null,null,null,null,3]
["Q1 and Q2","16+ Males and Females",{"$f":"'Population 2016'!R6/'Population 2016'!R$6","v":1},{"$f":"'Population 2016'!AX6/'Population 2016'!AX$6","v":1},{"$f":"'Population 2016'!S6/'Population 2016'!S$6","v":1},{"$f":"'Population 2016'!T6/'Population 2016'!T$6","v":1},{"$f":"'Population 2016'!U6/'Population 2016'!U$6","v":1},{"$f":"'Population 2016'!D6/'Population 2016'!D$6","v":1},{"$f":"'Population 2016'!E6/'Population 2016'!E$6","v":1},{"$f":"'Population 2016'!BC6/'Population 2016'!BC$6","v":1},{"$f":"'Population 2016'!V6/'Population 2016'!V$6","v":1},{"$f":"'Population 2016'!F6/'Population 2016'!F$6","v":1},{"$f":"'Population 2016'!W6/'Population 2016'!W$6","v":1},{"$f":"'Population 2016'!X6/'Population 2016'!X$6","v":1},{"$f":"'Population 2016'!Y6/'Population 2016'!Y$6","v":1},{"$f":"'Population 2016'!Z6/'Population 2016'!Z$6","v":1},{"$f":"'Population 2016'!AA6/'Population 2016'!AA$6","v":1},{"$f":"'Population 2016'!AB6/'Population 2016'!AB$6","v":1},{"$f":"'Population 2016'!AY6/'Population 2016'!AY$6","v":1},{"$f":"'Population 2016'!AC6/'Population 2016'!AC$6","v":1},{"$f":"'Population 2016'!AD6/'Population 2016'!AD$6","v":1},{"$f":"'Population 2016'!AE6/'Population 2016'!AE$6","v":1},{"$f":"'Population 2016'!G6/'Population 2016'!G$6","v":1},{"$f":"'Population 2016'!AF6/'Population 2016'!AF$6","v":1},{"$f":"'Population 2016'!H6/'Population 2016'!H$6","v":1},{"$f":"'Population 2016'!AG6/'Population 2016'!AG$6","v":1},{"$f":"'Population 2016'!AZ6/'Population 2016'!AZ$6","v":1},{"$f":"'Population 2016'!I6/'Population 2016'!I$6","v":1},{"$f":"'Population 2016'!J6/'Population 2016'!J$6","v":1},{"$f":"'Population 2016'!K6/'Population 2016'!K$6","v":1},{"$f":"'Population 2016'!AH6/'Population 2016'!AH$6","v":1},{"$f":"'Population 2016'!AI6/'Population 2016'!AI$6","v":1},{"$f":"'Population 2016'!BA6/'Population 2016'!BA$6","v":1},{"$f":"'Population 2016'!L6/'Population 2016'!L$6","v":1},{"$f":"'Population 2016'!M6/'Population 2016'!M$6","v":1},{"$f":"'Population 2016'!AJ6/'Population 2016'!AJ$6","v":1},{"$f":"'Population 2016'!AK6/'Population 2016'!AK$6","v":1},{"$f":"'Population 2016'!AL6/'Population 2016'!AL$6","v":1},{"$f":"'Population 2016'!AM6/'Population 2016'!AM$6","v":1},{"$f":"'Population 2016'!N6/'Population 2016'!N$6","v":1},{"$f":"'Population 2016'!AN6/'Population 2016'!AN$6","v":1},{"$f":"'Population 2016'!AO6/'Population 2016'!AO$6","v":1},{"$f":"'Population 2016'!AP6/'Population 2016'!AP$6","v":1},{"$f":"'Population 2016'!C6/'Population 2016'!C$6","v":1},{"$f":"'Population 2016'!AQ6/'Population 2016'!AQ$6","v":1},{"$f":"'Population 2016'!O6/'Population 2016'!O$6","v":1},{"$f":"'Population 2016'!AR6/'Population 2016'!AR$6","v":1},{"$f":"'Population 2016'!AS6/'Population 2016'!AS$6","v":1},{"$f":"'Population 2016'!AT6/'Population 2016'!AT$6","v":1},{"$f":"'Population 2016'!AU6/'Population 2016'!AU$6","v":1},{"$f":"'Population 2016'!BB6/'Population 2016'!BB$6","v":1},{"$f":"'Population 2016'!P6/'Population 2016'!P$6","v":1},{"$f":"'Population 2016'!AV6/'Population 2016'!AV$6","v":1},{"$f":"'Population 2016'!AW6/'Population 2016'!AW$6","v":1},{"$f":"'Population 2016'!Q6/'Population 2016'!Q$6","v":1},4]
["SIMD Q1 (most deprived)","16+ Males and Females",null,null,null,null,null,null,null,null,null,null,null,null,null,null,null,null,null,null,null,null,null,null,null,null,null,null,null,null,null,null,null,null,null,null,null,null,null,null,null,null,null,null,null,null,null,null,null,null,null,null,null,null,null,5]
["SIMD Q2",null,null,null,null,null,null,null,null,null,null,null,null,null,null,null,null,null,null,null,null,null,null,null,null,null,null,null,null,null,null,null,null,null,null,null,null,null,null,null,null,null,null,null,null,null,null,null,null,null,null,null,null,null,null,6]
["SIMD Q3",null,null,null,null,null,null,null,null,null,null,null,null,null,null,null,null,null,null,null,null,null,null,null,null,null,null,null,null,null,null,null,null,null,null,null,null,null,null,null,null,null,null,null,null,null,null,null,null,null,null,null,null,null,null,7]
["SIMD Q4",null,null,null,null,null,null,null,null,null,null,null,null,null,null,null,null,null,null,null,null,null,null,null,null,null,null,null,null,null,null,null,null,null,null,null,null,null,null,null,null,null,null,null,null,null,null,null,null,null,null,null,null,null,null,8]
["SIMD Q5 (least deprived)",null,null,null,null,null,null,null,null,null,null,null,null,null,null,null,null,null,null,null,null,null,null,null,null,null,null,null,null,null,null,null,null,null,null,null,null,null,null,null,null,null,null,null,null,null,null,null,null,null,null,null,null,null,null,9]
["SIMD Q1 (most deprived)","16+ Females",null,null,null,null,null,null,null,null,null,null,null,null,null,null,null,null,null,null,null,null,null,null,null,null,null,null,null,null,null,null,null,null,null,null,null,null,null,null,null,null,null,null,null,null,null,null,null,null,null,null,null,null,null,10]
["SIMD Q2",null,null,null,null,null,null,null,null,null,null,null,null,null,null,null,null,null,null,null,null,null,null,null,null,null,null,null,null,null,null,null,null,null,null,null,null,null,null,null,null,null,null,null,null,null,null,null,null,null,null,null,null,null,null,11]
["SIMD Q3",null,null,null,null,null,null,null,null,null,null,null,null,null,null,null,null,null,null,null,null,null,null,null,null,null,null,null,null,null,null,null,null,null,null,null,null,null,null,null,null,null,null,null,null,null,null,null,null,null,null,null,null,null,null,12]
["SIMD Q4",null,null,null,null,null,null,null,null,null,null,null,null,null,null,null,null,null,null,null,null,null,null,null,null,null,null,null,null,null,null,null,null,null,null,null,null,null,null,null,null,null,null,null,null,null,null,null,null,null,null,null,null,null,null,13]
["SIMD Q5 (least deprived)",null,null,null,null,null,null,null,null,null,null,null,null,null,null,null,null,null,null,null,null,null,null,null,null,null,null,null,null,null,null,null,null,null,null,null,null,null,null,null,null,null,null,null,null,null,null,null,null,null,null,null,null,null,null,14]
["SIMD Q1 (most deprived)","16+ Males",null,null,null,null,null,null,null,null,null,null,null,null,null,null,null,null,null,null,null,null,null,null,null,null,null,null,null,null,null,null,null,null,null,null,null,null,null,null,null,null,null,null,null,null,null,null,null,null,null,null,null,null,null,15]
["SIMD Q2",null,null,null,null,null,null,null,null,null,null,null,null,null,null,null,null,null,null,null,null,null,null,null,null,null,null,null,null,null,null,null,null,null,null,null,null,null,null,null,null,null,null,null,null,null,null,null,null,null,null,null,null,null,null,16]
["SIMD Q3",null,null,null,null,null,null,null,null,null,null,null,null,null,null,null,null,null,null,null,null,null,null,null,null,null,null,null,null,null,null,null,null,null,null,null,null,null,null,null,null,null,null,null,null,null,null,null,null,null,null,null,null,null,null,17]
["SIMD Q4",null,null,null,null,null,null,null,null,null,null,null,null,null,null,null,null,null,null,null,null,null,null,null,null,null,null,null,null,null,null,null,null,null,null,null,null,null,null,null,null,null,null,null,null,null,null,null,null,null,null,null,null,null,null,18]
["SIMD Q5 (least deprived)",null,null,null,null,null,null,null,null,null,null,null,null,null,null,null,null,null,null,null,null,null,null,null,null,null,null,null,null,null,null,null,null,null,null,null,null,null,null,null,null,null,null,null,null,null,null,null,null,null,null,null,null,null,null,19]
["All quintiles","Female 0-4",null,null,null,null,null,null,null,null,null,null,null,null,null,null,null,null,null,null,null,null,null,null,null,null,null,null,null,null,null,null,null,null,null,null,null,null,null,null,null,null,null,null,null,null,null,null,null,null,null,null,null,null,null,20]
[null,"Female 5-9",null,null,null,null,null,null,null,null,null,null,null,null,null,null,null,null,null,null,null,null,null,null,null,null,null,null,null,null,null,null,null,null,null,null,null,null,null,null,null,null,null,null,null,null,null,null,null,null,null,null,null,null,null,21]
[null,"Female 10-15",null,null,null,null,null,null,null,null,null,null,null,null,null,null,null,null,null,null,null,null,null,null,null,null,null,null,null,null,null,null,null,null,null,null,null,null,null,null,null,null,null,null,null,null,null,null,null,null,null,null,null,null,null,22]
[null,"Female 16-19",null,null,null,null,null,null,null,null,null,null,null,null,null,null,null,null,null,null,null,null,null,null,null,null,null,null,null,null,null,null,null,null,null,null,null,null,null,null,null,null,null,null,null,null,null,null,null,null,null,null,null,null,null,23]
[null,"Female 20-24",null,null,null,null,null,null,null,null,null,null,null,null,null,null,null,null,null,null,null,null,null,null,null,null,null,null,null,null,null,null,null,null,null,null,null,null,null,null,null,null,null,null,null,null,null,null,null,null,null,null,null,null,null,24]
[null,"Female 25-29",null,null,null,null,null,null,null,null,null,null,null,null,null,null,null,null,null,null,null,null,null,null,null,null,null,null,null,null,null,null,null,null,null,null,null,null,null,null,null,null,null,null,null,null,null,null,null,null,null,null,null,null,null,25]
[null,"Female 30-34",null,null,null,null,null,null,null,null,null,null,null,null,null,null,null,null,null,null,null,null,null,null,null,null,null,null,null,null,null,null,null,null,null,null,null,null,null,null,null,null,null,null,null,null,null,null,null,null,null,null,null,null,null,26]
[null,"Female 35-39",null,null,null,null,null,null,null,null,null,null,null,null,null,null,null,null,null,null,null,null,null,null,null,null,null,null,null,null,null,null,null,null,null,null,null,null,null,null,null,null,null,null,null,null,null,null,null,null,null,null,null,null,null,27]
[null,"Female 40-44",null,null,null,null,null,null,null,null,null,null,null,null,null,null,null,null,null,null,null,null,null,null,null,null,null,null,null,null,null,null,null,null,null,null,null,null,null,null,null,null,null,null,null,null,null,null,null,null,null,null,null,null,null,28]
[null,"Female 45-49",null,null,null,null,null,null,null,null,null,null,null,null,null,null,null,null,null,null,null,null,null,null,null,null,null,null,null,null,null,null,null,null,null,null,null,null,null,null,null,null,null,null,null,null,null,null,null,null,null,null,null,null,null,29]
[null,"Female 50-54",null,null,null,null,null,null,null,null,null,null,null,null,null,null,null,null,null,null,null,null,null,null,null,null,null,null,null,null,null,null,null,null,null,null,null,null,null,null,null,null,null,null,null,null,null,null,null,null,null,null,null,null,null,30]
[null,"Female 55-59",null,null,null,null,null,null,null,null,null,null,null,null,null,null,null,null,null,null,null,null,null,null,null,null,null,null,null,null,null,null,null,null,null,null,null,null,null,null,null,null,null,null,null,null,null,null,null,null,null,null,null,null,null,31]
[null,"Female 60-64",null,null,null,null,null,null,null,null,null,null,null,null,null,null,null,null,null,null,null,null,null,null,null,null,null,null,null,null,null,null,null,null,null,null,null,null,null,null,null,null,null,null,null,null,null,null,null,null,null,null,null,null,null,32]
[null,"Female 65-69",null,null,null,null,null,null,null,null,null,null,null,null,null,null,null,null,null,null,null,null,null,null,null,null,null,null,null,null,null,null,null,null,null,null,null,null,null,null,null,null,null,null,null,null,null,null,null,null,null,null,null,null,null,33]
[null,"Female 70-74",null,null,null,null,null,null,null,null,null,null,null,null,null,null,null,null,null,null,null,null,null,null,null,null,null,null,null,null,null,null,null,null,null,null,null,null,null,null,null,null,null,null,null,null,null,null,null,null,null,null,null,null,null,34]
[null,"Female 75-79",null,null,null,null,null,null,null,null,null,null,null,null,null,null,null,null,null,null,null,null,null,null,null,null,null,null,null,null,null,null,null,null,null,null,null,null,null,null,null,null,null,null,null,null,null,null,null,null,null,null,null,null,null,35]
[null,"Female 80-84",null,null,null,null,null,null,null,null,null,null,null,null,null,null,null,null,null,null,null,null,null,null,null,null,null,null,null,null,null,null,null,null,null,null,null,null,null,null,null,null,null,null,null,null,null,null,null,null,null,null,null,null,null,36]
[null,"Female 85-89",null,null,null,null,null,null,null,null,null,null,null,null,null,null,null,null,null,null,null,null,null,null,null,null,null,null,null,null,null,null,null,null,null,null,null,null,null,null,null,null,null,null,null,null,null,null,null,null,null,null,null,null,null,37]
[null,"Female 90+",null,null,null,null,null,null,null,null,null,null,null,null,null,null,null,null,null,null,null,null,null,null,null,null,null,null,null,null,null,null,null,null,null,null,null,null,null,null,null,null,null,null,null,null,null,null,null,null,null,null,null,null,null,38]
[null,"Male 0-4",null,null,null,null,null,null,null,null,null,null,null,null,null,null,null,null,null,null,null,null,null,null,null,null,null,null,null,null,null,null,null,null,null,null,null,null,null,null,null,null,null,null,null,null,null,null,null,null,null,null,null,null,null,39]
[null,"Male 5-9",null,null,null,null,null,null,null,null,null,null,null,null,null,null,null,null,null,null,null,null,null,null,null,null,null,null,null,null,null,null,null,null,null,null,null,null,null,null,null,null,null,null,null,null,null,null,null,null,null,null,null,null,null,40]
[null,"Male 10-15",null,null,null,null,null,null,null,null,null,null,null,null,null,null,null,null,null,null,null,null,null,null,null,null,null,null,null,null,null,null,null,null,null,null,null,null,null,null,null,null,null,null,null,null,null,null,null,null,null,null,null,null,null,41]
[null,"Male 16-19",null,null,null,null,null,null,null,null,null,null,null,null,null,null,null,null,null,null,null,null,null,null,null,null,null,null,null,null,null,null,null,null,null,null,null,null,null,null,null,null,null,null,null,null,null,null,null,null,null,null,null,null,null,42]
[null,"Male 20-24",null,null,null,null,null,null,null,null,null,null,null,null,null,null,null,null,null,null,null,null,null,null,null,null,null,null,null,null,null,null,null,null,null,null,null,null,null,null,null,null,null,null,null,null,null,null,null,null,null,null,null,null,null,43]
[null,"Male 25-29",null,null,null,null,null,null,null,null,null,null,null,null,null,null,null,null,null,null,null,null,null,null,null,null,null,null,null,null,null,null,null,null,null,null,null,null,null,null,null,null,null,null,null,null,null,null,null,null,null,null,null,null,null,44]
[null,"Male 30-34",null,null,null,null,null,null,null,null,null,null,null,null,null,null,null,null,null,null,null,null,null,null,null,null,null,null,null,null,null,null,null,null,null,null,null,null,null,null,null,null,null,null,null,null,null,null,null,null,null,null,null,null,null,45]
[null,"Male 35-39",null,null,null,null,null,null,null,null,null,null,null,null,null,null,null,null,null,null,null,null,null,null,null,null,null,null,null,null,null,null,null,null,null,null,null,null,null,null,null,null,null,null,null,null,null,null,null,null,null,null,null,null,null,46]
[null,"Male 40-44",null,null,null,null,null,null,null,null,null,null,null,null,null,null,null,null,null,null,null,null,null,null,null,null,null,null,null,null,null,null,null,null,null,null,null,null,null,null,null,null,null,null,null,null,null,null,null,null,null,null,null,null,null,47]
[null,"Male 45-49",null,null,null,null,null,null,null,null,null,null,null,null,null,null,null,null,null,null,null,null,null,null,null,null,null,null,null,null,null,null,null,null,null,null,null,null,null,null,null,null,null,null,null,null,null,null,null,null,null,null,null,null,null,48]
[null,"Male 50-54",null,null,null,null,null,null,null,null,null,null,null,null,null,null,null,null,null,null,null,null,null,null,null,null,null,null,null,null,null,null,null,null,null,null,null,null,null,null,null,null,null,null,null,null,null,null,null,null,null,null,null,null,null,49]
[null,"Male 55-59",null,null,null,null,null,null,null,null,null,null,null,null,null,null,null,null,null,null,null,null,null,null,null,null,null,null,null,null,null,null,null,null,null,null,null,null,null,null,null,null,null,null,null,null,null,null,null,null,null,null,null,null,null,50]
[null,"Male 60-64",null,null,null,null,null,null,null,null,null,null,null,null,null,null,null,null,null,null,null,null,null,null,null,null,null,null,null,null,null,null,null,null,null,null,null,null,null,null,null,null,null,null,null,null,null,null,null,null,null,null,null,null,null,51]
[null,"Male 65-69",null,null,null,null,null,null,null,null,null,null,null,null,null,null,null,null,null,null,null,null,null,null,null,null,null,null,null,null,null,null,null,null,null,null,null,null,null,null,null,null,null,null,null,null,null,null,null,null,null,null,null,null,null,52]
[null,"Male 70-74",null,null,null,null,null,null,null,null,null,null,null,null,null,null,null,null,null,null,null,null,null,null,null,null,null,null,null,null,null,null,null,null,null,null,null,null,null,null,null,null,null,null,null,null,null,null,null,null,null,null,null,null,null,53]
[null,"Male 75-79",null,null,null,null,null,null,null,null,null,null,null,null,null,null,null,null,null,null,null,null,null,null,null,null,null,null,null,null,null,null,null,null,null,null,null,null,null,null,null,null,null,null,null,null,null,null,null,null,null,null,null,null,null,54]
[null,"Male 80-84",null,null,null,null,null,null,null,null,null,null,null,null,null,null,null,null,null,null,null,null,null,null,null,null,null,null,null,null,null,null,null,null,null,null,null,null,null,null,null,null,null,null,null,null,null,null,null,null,null,null,null,null,null,55]
[null,"Male 85-89",null,null,null,null,null,null,null,null,null,null,null,null,null,null,null,null,null,null,null,null,null,null,null,null,null,null,null,null,null,null,null,null,null,null,null,null,null,null,null,null,null,null,null,null,null,null,null,null,null,null,null,null,null,56]
[null,"Male 90+",null,null,null,null,null,null,null,null,null,null,null,null,null,null,null,null,null,null,null,null,null,null,null,null,null,null,null,null,null,null,null,null,null,null,null,null,null,null,null,null,null,null,null,null,null,null,null,null,null,null,null,null,null,57]
["SIMD Q1 (most deprived)","Female 0-4",{"$f":"'Population 2016'!C60/'Population 2016'!C$6","v":0},{"$f":"'Population 2016'!D60/'Population 2016'!D$6","v":0},{"$f":"'Population 2016'!E60/'Population 2016'!E$6","v":0},{"$f":"'Population 2016'!F60/'Population 2016'!F$6","v":0},{"$f":"'Population 2016'!G60/'Population 2016'!G$6","v":0},{"$f":"'Population 2016'!H60/'Population 2016'!H$6","v":0},{"$f":"'Population 2016'!I60/'Population 2016'!I$6","v":0},{"$f":"'Population 2016'!J60/'Population 2016'!J$6","v":0},{"$f":"'Population 2016'!K60/'Population 2016'!K$6","v":0},{"$f":"'Population 2016'!L60/'Population 2016'!L$6","v":0},{"$f":"'Population 2016'!M60/'Population 2016'!M$6","v":0},{"$f":"'Population 2016'!N60/'Population 2016'!N$6","v":0},{"$f":"'Population 2016'!O60/'Population 2016'!O$6","v":0},{"$f":"'Population 2016'!P60/'Population 2016'!P$6","v":0},{"$f":"'Population 2016'!Q60/'Population 2016'!Q$6","v":0},{"$f":"'Population 2016'!R60/'Population 2016'!R$6","v":0},{"$f":"'Population 2016'!S60/'Population 2016'!S$6","v":0},{"$f":"'Population 2016'!T60/'Population 2016'!T$6","v":0},{"$f":"'Population 2016'!U60/'Population 2016'!U$6","v":0},{"$f":"'Population 2016'!V60/'Population 2016'!V$6","v":0},{"$f":"'Population 2016'!W60/'Population 2016'!W$6","v":0},{"$f":"'Population 2016'!X60/'Population 2016'!X$6","v":0},{"$f":"'Population 2016'!Y60/'Population 2016'!Y$6","v":0},{"$f":"'Population 2016'!Z60/'Population 2016'!Z$6","v":0},{"$f":"'Population 2016'!AA60/'Population 2016'!AA$6","v":0},{"$f":"'Population 2016'!AB60/'Population 2016'!AB$6","v":0},{"$f":"'Population 2016'!AC60/'Population 2016'!AC$6","v":0},{"$f":"'Population 2016'!AD60/'Population 2016'!AD$6","v":0},{"$f":"'Population 2016'!AE60/'Population 2016'!AE$6","v":0},{"$f":"'Population 2016'!AF60/'Population 2016'!AF$6","v":0},{"$f":"'Population 2016'!AG60/'Population 2016'!AG$6","v":0},{"$f":"'Population 2016'!AH60/'Population 2016'!AH$6","v":0},{"$f":"'Population 2016'!AI60/'Population 2016'!AI$6","v":0},{"$f":"'Population 2016'!AJ60/'Population 2016'!AJ$6","v":0},{"$f":"'Population 2016'!AK60/'Population 2016'!AK$6","v":0},{"$f":"'Population 2016'!AL60/'Population 2016'!AL$6","v":0},{"$f":"'Population 2016'!AM60/'Population 2016'!AM$6","v":0},{"$f":"'Population 2016'!AN60/'Population 2016'!AN$6","v":0},{"$f":"'Population 2016'!AO60/'Population 2016'!AO$6","v":0},{"$f":"'Population 2016'!AP60/'Population 2016'!AP$6","v":0},{"$f":"'Population 2016'!AQ60/'Population 2016'!AQ$6","v":0},{"$f":"'Population 2016'!AR60/'Population 2016'!AR$6","v":0},{"$f":"'Population 2016'!AS60/'Population 2016'!AS$6","v":0},{"$f":"'Population 2016'!AT60/'Population 2016'!AT$6","v":0},{"$f":"'Population 2016'!AU60/'Population 2016'!AU$6","v":0},{"$f":"'Population 2016'!AV60/'Population 2016'!AV$6","v":0},{"$f":"'Population 2016'!AW60/'Population 2016'!AW$6","v":0},{"$f":"'Population 2016'!AX60/'Population 2016'!AX$6","v":0},{"$f":"'Population 2016'!AY60/'Population 2016'!AY$6","v":0},{"$f":"'Population 2016'!AZ60/'Population 2016'!AZ$6","v":0},{"$f":"'Population 2016'!BA60/'Population 2016'!BA$6","v":0},{"$f":"'Population 2016'!BB60/'Population 2016'!BB$6","v":0},{"$f":"'Population 2016'!BC60/'Population 2016'!BC$6","v":0},58]
[null,"Female 5-9",{"$f":"'Population 2016'!C61/'Population 2016'!C$6","v":0},{"$f":"'Population 2016'!D61/'Population 2016'!D$6","v":0},{"$f":"'Population 2016'!E61/'Population 2016'!E$6","v":0},{"$f":"'Population 2016'!F61/'Population 2016'!F$6","v":0},{"$f":"'Population 2016'!G61/'Population 2016'!G$6","v":0},{"$f":"'Population 2016'!H61/'Population 2016'!H$6","v":0},{"$f":"'Population 2016'!I61/'Population 2016'!I$6","v":0},{"$f":"'Population 2016'!J61/'Population 2016'!J$6","v":0},{"$f":"'Population 2016'!K61/'Population 2016'!K$6","v":0},{"$f":"'Population 2016'!L61/'Population 2016'!L$6","v":0},{"$f":"'Population 2016'!M61/'Population 2016'!M$6","v":0},{"$f":"'Population 2016'!N61/'Population 2016'!N$6","v":0},{"$f":"'Population 2016'!O61/'Population 2016'!O$6","v":0},{"$f":"'Population 2016'!P61/'Population 2016'!P$6","v":0},{"$f":"'Population 2016'!Q61/'Population 2016'!Q$6","v":0},{"$f":"'Population 2016'!R61/'Population 2016'!R$6","v":0},{"$f":"'Population 2016'!S61/'Population 2016'!S$6","v":0},{"$f":"'Population 2016'!T61/'Population 2016'!T$6","v":0},{"$f":"'Population 2016'!U61/'Population 2016'!U$6","v":0},{"$f":"'Population 2016'!V61/'Population 2016'!V$6","v":0},{"$f":"'Population 2016'!W61/'Population 2016'!W$6","v":0},{"$f":"'Population 2016'!X61/'Population 2016'!X$6","v":0},{"$f":"'Population 2016'!Y61/'Population 2016'!Y$6","v":0},{"$f":"'Population 2016'!Z61/'Population 2016'!Z$6","v":0},{"$f":"'Population 2016'!AA61/'Population 2016'!AA$6","v":0},{"$f":"'Population 2016'!AB61/'Population 2016'!AB$6","v":0},{"$f":"'Population 2016'!AC61/'Population 2016'!AC$6","v":0},{"$f":"'Population 2016'!AD61/'Population 2016'!AD$6","v":0},{"$f":"'Population 2016'!AE61/'Population 2016'!AE$6","v":0},{"$f":"'Population 2016'!AF61/'Population 2016'!AF$6","v":0},{"$f":"'Population 2016'!AG61/'Population 2016'!AG$6","v":0},{"$f":"'Population 2016'!AH61/'Population 2016'!AH$6","v":0},{"$f":"'Population 2016'!AI61/'Population 2016'!AI$6","v":0},{"$f":"'Population 2016'!AJ61/'Population 2016'!AJ$6","v":0},{"$f":"'Population 2016'!AK61/'Population 2016'!AK$6","v":0},{"$f":"'Population 2016'!AL61/'Population 2016'!AL$6","v":0},{"$f":"'Population 2016'!AM61/'Population 2016'!AM$6","v":0},{"$f":"'Population 2016'!AN61/'Population 2016'!AN$6","v":0},{"$f":"'Population 2016'!AO61/'Population 2016'!AO$6","v":0},{"$f":"'Population 2016'!AP61/'Population 2016'!AP$6","v":0},{"$f":"'Population 2016'!AQ61/'Population 2016'!AQ$6","v":0},{"$f":"'Population 2016'!AR61/'Population 2016'!AR$6","v":0},{"$f":"'Population 2016'!AS61/'Population 2016'!AS$6","v":0},{"$f":"'Population 2016'!AT61/'Population 2016'!AT$6","v":0},{"$f":"'Population 2016'!AU61/'Population 2016'!AU$6","v":0},{"$f":"'Population 2016'!AV61/'Population 2016'!AV$6","v":0},{"$f":"'Population 2016'!AW61/'Population 2016'!AW$6","v":0},{"$f":"'Population 2016'!AX61/'Population 2016'!AX$6","v":0},{"$f":"'Population 2016'!AY61/'Population 2016'!AY$6","v":0},{"$f":"'Population 2016'!AZ61/'Population 2016'!AZ$6","v":0},{"$f":"'Population 2016'!BA61/'Population 2016'!BA$6","v":0},{"$f":"'Population 2016'!BB61/'Population 2016'!BB$6","v":0},{"$f":"'Population 2016'!BC61/'Population 2016'!BC$6","v":0},59]
[null,"Female 10-15",{"$f":"'Population 2016'!C62/'Population 2016'!C$6","v":0},{"$f":"'Population 2016'!D62/'Population 2016'!D$6","v":0},{"$f":"'Population 2016'!E62/'Population 2016'!E$6","v":0},{"$f":"'Population 2016'!F62/'Population 2016'!F$6","v":0},{"$f":"'Population 2016'!G62/'Population 2016'!G$6","v":0},{"$f":"'Population 2016'!H62/'Population 2016'!H$6","v":0},{"$f":"'Population 2016'!I62/'Population 2016'!I$6","v":0},{"$f":"'Population 2016'!J62/'Population 2016'!J$6","v":0},{"$f":"'Population 2016'!K62/'Population 2016'!K$6","v":0},{"$f":"'Population 2016'!L62/'Population 2016'!L$6","v":0},{"$f":"'Population 2016'!M62/'Population 2016'!M$6","v":0},{"$f":"'Population 2016'!N62/'Population 2016'!N$6","v":0},{"$f":"'Population 2016'!O62/'Population 2016'!O$6","v":0},{"$f":"'Population 2016'!P62/'Population 2016'!P$6","v":0},{"$f":"'Population 2016'!Q62/'Population 2016'!Q$6","v":0},{"$f":"'Population 2016'!R62/'Population 2016'!R$6","v":0},{"$f":"'Population 2016'!S62/'Population 2016'!S$6","v":0},{"$f":"'Population 2016'!T62/'Population 2016'!T$6","v":0},{"$f":"'Population 2016'!U62/'Population 2016'!U$6","v":0},{"$f":"'Population 2016'!V62/'Population 2016'!V$6","v":0},{"$f":"'Population 2016'!W62/'Population 2016'!W$6","v":0},{"$f":"'Population 2016'!X62/'Population 2016'!X$6","v":0},{"$f":"'Population 2016'!Y62/'Population 2016'!Y$6","v":0},{"$f":"'Population 2016'!Z62/'Population 2016'!Z$6","v":0},{"$f":"'Population 2016'!AA62/'Population 2016'!AA$6","v":0},{"$f":"'Population 2016'!AB62/'Population 2016'!AB$6","v":0},{"$f":"'Population 2016'!AC62/'Population 2016'!AC$6","v":0},{"$f":"'Population 2016'!AD62/'Population 2016'!AD$6","v":0},{"$f":"'Population 2016'!AE62/'Population 2016'!AE$6","v":0},{"$f":"'Population 2016'!AF62/'Population 2016'!AF$6","v":0},{"$f":"'Population 2016'!AG62/'Population 2016'!AG$6","v":0},{"$f":"'Population 2016'!AH62/'Population 2016'!AH$6","v":0},{"$f":"'Population 2016'!AI62/'Population 2016'!AI$6","v":0},{"$f":"'Population 2016'!AJ62/'Population 2016'!AJ$6","v":0},{"$f":"'Population 2016'!AK62/'Population 2016'!AK$6","v":0},{"$f":"'Population 2016'!AL62/'Population 2016'!AL$6","v":0},{"$f":"'Population 2016'!AM62/'Population 2016'!AM$6","v":0},{"$f":"'Population 2016'!AN62/'Population 2016'!AN$6","v":0},{"$f":"'Population 2016'!AO62/'Population 2016'!AO$6","v":0},{"$f":"'Population 2016'!AP62/'Population 2016'!AP$6","v":0},{"$f":"'Population 2016'!AQ62/'Population 2016'!AQ$6","v":0},{"$f":"'Population 2016'!AR62/'Population 2016'!AR$6","v":0},{"$f":"'Population 2016'!AS62/'Population 2016'!AS$6","v":0},{"$f":"'Population 2016'!AT62/'Population 2016'!AT$6","v":0},{"$f":"'Population 2016'!AU62/'Population 2016'!AU$6","v":0},{"$f":"'Population 2016'!AV62/'Population 2016'!AV$6","v":0},{"$f":"'Population 2016'!AW62/'Population 2016'!AW$6","v":0},{"$f":"'Population 2016'!AX62/'Population 2016'!AX$6","v":0},{"$f":"'Population 2016'!AY62/'Population 2016'!AY$6","v":0},{"$f":"'Population 2016'!AZ62/'Population 2016'!AZ$6","v":0},{"$f":"'Population 2016'!BA62/'Population 2016'!BA$6","v":0},{"$f":"'Population 2016'!BB62/'Population 2016'!BB$6","v":0},{"$f":"'Population 2016'!BC62/'Population 2016'!BC$6","v":0},60]
[null,"Female 16-19",{"$f":"'Population 2016'!C63/'Population 2016'!C$6","v":6.5803629061177652E-3},{"$f":"'Population 2016'!D63/'Population 2016'!D$6","v":6.264222007166584E-3},{"$f":"'Population 2016'!E63/'Population 2016'!E$6","v":5.4121967720112112E-3},{"$f":"'Population 2016'!F63/'Population 2016'!F$6","v":9.6078940534925997E-3},{"$f":"'Population 2016'!G63/'Population 2016'!G$6","v":8.1719467144296433E-3},{"$f":"'Population 2016'!H63/'Population 2016'!H$6","v":1.6158171205065675E-2},{"$f":"'Population 2016'!I63/'Population 2016'!I$6","v":8.206273671943284E-3},{"$f":"'Population 2016'!J63/'Population 2016'!J$6","v":1.3940716749982398E-2},{"$f":"'Population 2016'!K63/'Population 2016'!K$6","v":1.302776721186763E-2},{"$f":"'Population 2016'!L63/'Population 2016'!L$6","v":7.0394207562349152E-3},{"$f":"'Population 2016'!M63/'Population 2016'!M$6","v":7.0394207562349152E-3},{"$f":"'Population 2016'!N63/'Population 2016'!N$6","v":1.8512255730859149E-2},{"$f":"'Population 2016'!O63/'Population 2016'!O$6","v":1.4947426293725518E-2},{"$f":"'Population 2016'!P63/'Population 2016'!P$6","v":5.9734630226780149E-3},{"$f":"'Population 2016'!Q63/'Population 2016'!Q$6","v":3.1942733990147783E-3},{"$f":"'Population 2016'!R63/'Population 2016'!R$6","v":1.425644527915315E-2},{"$f":"'Population 2016'!S63/'Population 2016'!S$6","v":1.186092025379055E-2},{"$f":"'Population 2016'!T63/'Population 2016'!T$6","v":1.2676685518741097E-2},{"$f":"'Population 2016'!U63/'Population 2016'!U$6","v":0},{"$f":"'Population 2016'!V63/'Population 2016'!V$6","v":8.3781108597285065E-3},{"$f":"'Population 2016'!W63/'Population 2016'!W$6","v":1.5162694300518136E-2},{"$f":"'Population 2016'!X63/'Population 2016'!X$6","v":1.5162694300518136E-2},{"$f":"'Population 2016'!Y63/'Population 2016'!Y$6","v":1.0767757221354035E-2},{"$f":"'Population 2016'!Z63/'Population 2016'!Z$6","v":1.8286439962205796E-2},{"$f":"'Population 2016'!AA63/'Population 2016'!AA$6","v":1.6038295931057326E-2},{"$f":"'Population 2016'!AB63/'Population 2016'!AB$6","v":5.5513188587834198E-3},{"$f":"'Population 2016'!AC63/'Population 2016'!AC$6","v":1.7192344951815524E-2},{"$f":"'Population 2016'!AD63/'Population 2016'!AD$6","v":8.1221428254405047E-3},{"$f":"'Population 2016'!AE63/'Population 2016'!AE$6","v":8.1042492006354692E-3},{"$f":"'Population 2016'!AF63/'Population 2016'!AF$6","v":1.9028653612125235E-2},{"$f":"'Population 2016'!AG63/'Population 2016'!AG$6","v":8.1042492006354692E-3},{"$f":"'Population 2016'!AH63/'Population 2016'!AH$6","v":1.3964107279586321E-2},{"$f":"'Population 2016'!AI63/'Population 2016'!AI$6","v":1.0509046317648586E-2},{"$f":"'Population 2016'!AJ63/'Population 2016'!AJ$6","v":6.2895011351782534E-3},{"$f":"'Population 2016'!AK63/'Population 2016'!AK$6","v":1.259644150527476E-3},{"$f":"'Population 2016'!AL63/'Population 2016'!AL$6","v":2.0000592171492863E-2},{"$f":"'Population 2016'!AM63/'Population 2016'!AM$6","v":1.5489263055148854E-2},{"$f":"'Population 2016'!AN63/'Population 2016'!AN$6","v":0},{"$f":"'Population 2016'!AO63/'Population 2016'!AO$6","v":0},{"$f":"'Population 2016'!AP63/'Population 2016'!AP$6","v":8.7824542880453032E-3},{"$f":"'Population 2016'!AQ63/'Population 2016'!AQ$6","v":1.5397070729373666E-2},{"$f":"'Population 2016'!AR63/'Population 2016'!AR$6","v":1.36452065432784E-2},{"$f":"'Population 2016'!AS63/'Population 2016'!AS$6","v":8.206273671943284E-3},{"$f":"'Population 2016'!AT63/'Population 2016'!AT$6","v":0},{"$f":"'Population 2016'!AU63/'Population 2016'!AU$6","v":0},{"$f":"'Population 2016'!AV63/'Population 2016'!AV$6","v":1.1652567615870368E-2},{"$f":"'Population 2016'!AW63/'Population 2016'!AW$6","v":1.1916559513181926E-2},{"$f":"'Population 2016'!AX63/'Population 2016'!AX$6","v":1.483060666450387E-2},{"$f":"'Population 2016'!AY63/'Population 2016'!AY$6","v":1.5018681984891025E-2},{"$f":"'Population 2016'!AZ63/'Population 2016'!AZ$6","v":1.4863512934114621E-2},{"$f":"'Population 2016'!BA63/'Population 2016'!BA$6","v":1.6038092961169884E-2},{"$f":"'Population 2016'!BB63/'Population 2016'!BB$6","v":1.1650139347981075E-2},{"$f":"'Population 2016'!BC63/'Population 2016'!BC$6","v":0},61]
[null,"Female 20-24",{"$f":"'Population 2016'!C64/'Population 2016'!C$6","v":1.4021372731836764E-2},{"$f":"'Population 2016'!D64/'Population 2016'!D$6","v":1.2842309000078466E-2},{"$f":"'Population 2016'!E64/'Population 2016'!E$6","v":9.6646370928771628E-3},{"$f":"'Population 2016'!F64/'Population 2016'!F$6","v":1.3849216653683025E-2},{"$f":"'Population 2016'!G64/'Population 2016'!G$6","v":1.1642225456173739E-2},{"$f":"'Population 2016'!H64/'Population 2016'!H$6","v":2.4189557409207176E-2},{"$f":"'Population 2016'!I64/'Population 2016'!I$6","v":1.053704962610469E-2},{"$f":"'Population 2016'!J64/'Population 2016'!J$6","v":2.2460043652749419E-2},{"$f":"'Population 2016'!K64/'Population 2016'!K$6","v":2.1015595283377712E-2},{"$f":"'Population 2016'!L64/'Population 2016'!L$6","v":1.1218378475015642E-2},{"$f":"'Population 2016'!M64/'Population 2016'!M$6","v":1.1218378475015642E-2},{"$f":"'Population 2016'!N64/'Population 2016'!N$6","v":3.1525239306562369E-2},{"$f":"'Population 2016'!O64/'Population 2016'!O$6","v":2.3417634526836643E-2},{"$f":"'Population 2016'!P64/'Population 2016'!P$6","v":9.3566633187080403E-3},{"$f":"'Population 2016'!Q64/'Population 2016'!Q$6","v":4.6182266009852221E-3},{"$f":"'Population 2016'!R64/'Population 2016'!R$6","v":1.9549257298958511E-2},{"$f":"'Population 2016'!S64/'Population 2016'!S$6","v":1.6472185102957733E-2},{"$f":"'Population 2016'!T64/'Population 2016'!T$6","v":2.0026465952479287E-2},{"$f":"'Population 2016'!U64/'Population 2016'!U$6","v":0},{"$f":"'Population 2016'!V64/'Population 2016'!V$6","v":1.3716063348416289E-2},{"$f":"'Population 2016'!W64/'Population 2016'!W$6","v":1.8636269430051814E-2},{"$f":"'Population 2016'!X64/'Population 2016'!X$6","v":1.8636269430051814E-2},{"$f":"'Population 2016'!Y64/'Population 2016'!Y$6","v":1.7472400060493019E-2},{"$f":"'Population 2016'!Z64/'Population 2016'!Z$6","v":3.1134646408487291E-2},{"$f":"'Population 2016'!AA64/'Population 2016'!AA$6","v":2.5562284007324222E-2},{"$f":"'Population 2016'!AB64/'Population 2016'!AB$6","v":1.1405436928045935E-2},{"$f":"'Population 2016'!AC64/'Population 2016'!AC$6","v":2.91188290997654E-2},{"$f":"'Population 2016'!AD64/'Population 2016'!AD$6","v":1.199828384596038E-2},{"$f":"'Population 2016'!AE64/'Population 2016'!AE$6","v":1.2126209101695255E-2},{"$f":"'Population 2016'!AF64/'Population 2016'!AF$6","v":3.1336431021130658E-2},{"$f":"'Population 2016'!AG64/'Population 2016'!AG$6","v":1.2126209101695255E-2},{"$f":"'Population 2016'!AH64/'Population 2016'!AH$6","v":1.9170055136197246E-2},{"$f":"'Population 2016'!AI64/'Population 2016'!AI$6","v":1.5891218187220901E-2},{"$f":"'Population 2016'!AJ64/'Population 2016'!AJ$6","v":1.0001840829600541E-2},{"$f":"'Population 2016'!AK64/'Population 2016'!AK$6","v":2.7554715792788538E-3},{"$f":"'Population 2016'!AL64/'Population 2016'!AL$6","v":2.8809143127849827E-2},{"$f":"'Population 2016'!AM64/'Population 2016'!AM$6","v":2.0888238164958516E-2},{"$f":"'Population 2016'!AN64/'Population 2016'!AN$6","v":0},{"$f":"'Population 2016'!AO64/'Population 2016'!AO$6","v":0},{"$f":"'Population 2016'!AP64/'Population 2016'!AP$6","v":1.5645246436627153E-2},{"$f":"'Population 2016'!AQ64/'Population 2016'!AQ$6","v":2.8335909325090159E-2},{"$f":"'Population 2016'!AR64/'Population 2016'!AR$6","v":2.1265315673279203E-2},{"$f":"'Population 2016'!AS64/'Population 2016'!AS$6","v":1.053704962610469E-2},{"$f":"'Population 2016'!AT64/'Population 2016'!AT$6","v":0},{"$f":"'Population 2016'!AU64/'Population 2016'!AU$6","v":0},{"$f":"'Population 2016'!AV64/'Population 2016'!AV$6","v":1.7824377457404981E-2},{"$f":"'Population 2016'!AW64/'Population 2016'!AW$6","v":1.6863364974324113E-2},{"$f":"'Population 2016'!AX64/'Population 2016'!AX$6","v":2.3868007600685914E-2},{"$f":"'Population 2016'!AY64/'Population 2016'!AY$6","v":2.1661643240733178E-2},{"$f":"'Population 2016'!AZ64/'Population 2016'!AZ$6","v":2.4921394883521509E-2},{"$f":"'Population 2016'!BA64/'Population 2016'!BA$6","v":2.5043332735640429E-2},{"$f":"'Population 2016'!BB64/'Population 2016'!BB$6","v":1.5798172272992416E-2},{"$f":"'Population 2016'!BC64/'Population 2016'!BC$6","v":0},62]
[null,"Female 25-29",{"$f":"'Population 2016'!C65/'Population 2016'!C$6","v":1.8485978627268165E-2},{"$f":"'Population 2016'!D65/'Population 2016'!D$6","v":1.6595611121282661E-2},{"$f":"'Population 2016'!E65/'Population 2016'!E$6","v":1.1500918140523824E-2},{"$f":"'Population 2016'!F65/'Population 2016'!F$6","v":1.2940361810785077E-2},{"$f":"'Population 2016'!G65/'Population 2016'!G$6","v":9.6272248964513595E-3},{"$f":"'Population 2016'!H65/'Population 2016'!H$6","v":2.4225331958000678E-2},{"$f":"'Population 2016'!I65/'Population 2016'!I$6","v":9.9057978051859761E-3},{"$f":"'Population 2016'!J65/'Population 2016'!J$6","v":2.3797789199464903E-2},{"$f":"'Population 2016'!K65/'Population 2016'!K$6","v":2.0349942944085205E-2},{"$f":"'Population 2016'!L65/'Population 2016'!L$6","v":1.1263073209975865E-2},{"$f":"'Population 2016'!M65/'Population 2016'!M$6","v":1.1263073209975865E-2},{"$f":"'Population 2016'!N65/'Population 2016'!N$6","v":4.1068093928744727E-2},{"$f":"'Population 2016'!O65/'Population 2016'!O$6","v":2.4087691567589855E-2},{"$f":"'Population 2016'!P65/'Population 2016'!P$6","v":1.0149600888090077E-2},{"$f":"'Population 2016'!Q65/'Population 2016'!Q$6","v":5.2724753694581277E-3},{"$f":"'Population 2016'!R65/'Population 2016'!R$6","v":1.87809458767287E-2},{"$f":"'Population 2016'!S65/'Population 2016'!S$6","v":2.1162364923873356E-2},{"$f":"'Population 2016'!T65/'Population 2016'!T$6","v":3.0157699990728488E-2},{"$f":"'Population 2016'!U65/'Population 2016'!U$6","v":0},{"$f":"'Population 2016'!V65/'Population 2016'!V$6","v":1.5766402714932126E-2},{"$f":"'Population 2016'!W65/'Population 2016'!W$6","v":2.2864248704663213E-2},{"$f":"'Population 2016'!X65/'Population 2016'!X$6","v":2.2864248704663213E-2},{"$f":"'Population 2016'!Y65/'Population 2016'!Y$6","v":1.9216615415637444E-2},{"$f":"'Population 2016'!Z65/'Population 2016'!Z$6","v":4.3016730922889497E-2},{"$f":"'Population 2016'!AA65/'Population 2016'!AA$6","v":3.1320422205140704E-2},{"$f":"'Population 2016'!AB65/'Population 2016'!AB$6","v":1.4489502960703391E-2},{"$f":"'Population 2016'!AC65/'Population 2016'!AC$6","v":3.7359016157458382E-2},{"$f":"'Population 2016'!AD65/'Population 2016'!AD$6","v":1.1347328865415058E-2},{"$f":"'Population 2016'!AE65/'Population 2016'!AE$6","v":1.1965330705652864E-2},{"$f":"'Population 2016'!AF65/'Population 2016'!AF$6","v":3.1613010288748758E-2},{"$f":"'Population 2016'!AG65/'Population 2016'!AG$6","v":1.1965330705652864E-2},{"$f":"'Population 2016'!AH65/'Population 2016'!AH$6","v":2.0467171761316554E-2},{"$f":"'Population 2016'!AI65/'Population 2016'!AI$6","v":2.1273390056793212E-2},{"$f":"'Population 2016'!AJ65/'Population 2016'!AJ$6","v":1.0339326256366202E-2},{"$f":"'Population 2016'!AK65/'Population 2016'!AK$6","v":1.8107384663832468E-3},{"$f":"'Population 2016'!AL65/'Population 2016'!AL$6","v":2.8868360277136258E-2},{"$f":"'Population 2016'!AM65/'Population 2016'!AM$6","v":2.2687896534895072E-2},{"$f":"'Population 2016'!AN65/'Population 2016'!AN$6","v":0},{"$f":"'Population 2016'!AO65/'Population 2016'!AO$6","v":0},{"$f":"'Population 2016'!AP65/'Population 2016'!AP$6","v":1.9244612948121131E-2},{"$f":"'Population 2016'!AQ65/'Population 2016'!AQ$6","v":3.2163097078089349E-2},{"$f":"'Population 2016'!AR65/'Population 2016'!AR$6","v":2.5507187726435707E-2},{"$f":"'Population 2016'!AS65/'Population 2016'!AS$6","v":9.9057978051859761E-3},{"$f":"'Population 2016'!AT65/'Population 2016'!AT$6","v":0},{"$f":"'Population 2016'!AU65/'Population 2016'!AU$6","v":0},{"$f":"'Population 2016'!AV65/'Population 2016'!AV$6","v":1.6942690337185751E-2},{"$f":"'Population 2016'!AW65/'Population 2016'!AW$6","v":1.7485810694600284E-2},{"$f":"'Population 2016'!AX65/'Population 2016'!AX$6","v":2.7158548454372711E-2},{"$f":"'Population 2016'!AY65/'Population 2016'!AY$6","v":2.6877120265546464E-2},{"$f":"'Population 2016'!AZ65/'Population 2016'!AZ$6","v":3.1200871802200943E-2},{"$f":"'Population 2016'!BA65/'Population 2016'!BA$6","v":2.6019564481102944E-2},{"$f":"'Population 2016'!BB65/'Population 2016'!BB$6","v":1.6705554475338648E-2},{"$f":"'Population 2016'!BC65/'Population 2016'!BC$6","v":0},63]
[null,"Female 30-34",{"$f":"'Population 2016'!C66/'Population 2016'!C$6","v":1.6244710607473282E-2},{"$f":"'Population 2016'!D66/'Population 2016'!D$6","v":1.4921664530641069E-2},{"$f":"'Population 2016'!E66/'Population 2016'!E$6","v":1.1355948584130665E-2},{"$f":"'Population 2016'!F66/'Population 2016'!F$6","v":1.4368562278196139E-2},{"$f":"'Population 2016'!G66/'Population 2016'!G$6","v":1.1250419791783275E-2},{"$f":"'Population 2016'!H66/'Population 2016'!H$6","v":2.150050382489551E-2},{"$f":"'Population 2016'!I66/'Population 2016'!I$6","v":1.0051471302321065E-2},{"$f":"'Population 2016'!J66/'Population 2016'!J$6","v":2.0817198244502334E-2},{"$f":"'Population 2016'!K66/'Population 2016'!K$6","v":1.9446557626473945E-2},{"$f":"'Population 2016'!L66/'Population 2016'!L$6","v":9.6093680164476628E-3},{"$f":"'Population 2016'!M66/'Population 2016'!M$6","v":9.6093680164476628E-3},{"$f":"'Population 2016'!N66/'Population 2016'!N$6","v":3.2922113249716951E-2},{"$f":"'Population 2016'!O66/'Population 2016'!O$6","v":2.1407463404577005E-2},{"$f":"'Population 2016'!P66/'Population 2016'!P$6","v":8.7223132632024102E-3},{"$f":"'Population 2016'!Q66/'Population 2016'!Q$6","v":4.7721674876847293E-3},{"$f":"'Population 2016'!R66/'Population 2016'!R$6","v":1.8268738261908828E-2},{"$f":"'Population 2016'!S66/'Population 2016'!S$6","v":2.0223276760066921E-2},{"$f":"'Population 2016'!T66/'Population 2016'!T$6","v":2.9694124389976654E-2},{"$f":"'Population 2016'!U66/'Population 2016'!U$6","v":0},{"$f":"'Population 2016'!V66/'Population 2016'!V$6","v":1.5448246606334842E-2},{"$f":"'Population 2016'!W66/'Population 2016'!W$6","v":2.0169948186528498E-2},{"$f":"'Population 2016'!X66/'Population 2016'!X$6","v":2.0169948186528498E-2},{"$f":"'Population 2016'!Y66/'Population 2016'!Y$6","v":1.7754700811614659E-2},{"$f":"'Population 2016'!Z66/'Population 2016'!Z$6","v":3.6424012079562265E-2},{"$f":"'Population 2016'!AA66/'Population 2016'!AA$6","v":2.8489472993494441E-2},{"$f":"'Population 2016'!AB66/'Population 2016'!AB$6","v":1.316615826305401E-2},{"$f":"'Population 2016'!AC66/'Population 2016'!AC$6","v":3.2464702975882477E-2},{"$f":"'Population 2016'!AD66/'Population 2016'!AD$6","v":1.2664033257881733E-2},{"$f":"'Population 2016'!AE66/'Population 2016'!AE$6","v":1.3171918675970801E-2},{"$f":"'Population 2016'!AF66/'Population 2016'!AF$6","v":3.0921562119703507E-2},{"$f":"'Population 2016'!AG66/'Population 2016'!AG$6","v":1.3171918675970801E-2},{"$f":"'Population 2016'!AH66/'Population 2016'!AH$6","v":2.1344735839227465E-2},{"$f":"'Population 2016'!AI66/'Population 2016'!AI$6","v":2.112690792970532E-2},{"$f":"'Population 2016'!AJ66/'Population 2016'!AJ$6","v":9.081426029330552E-3},{"$f":"'Population 2016'!AK66/'Population 2016'!AK$6","v":2.5980160604629193E-3},{"$f":"'Population 2016'!AL66/'Population 2016'!AL$6","v":2.5063658435482916E-2},{"$f":"'Population 2016'!AM66/'Population 2016'!AM$6","v":2.2938018545632016E-2},{"$f":"'Population 2016'!AN66/'Population 2016'!AN$6","v":0},{"$f":"'Population 2016'!AO66/'Population 2016'!AO$6","v":0},{"$f":"'Population 2016'!AP66/'Population 2016'!AP$6","v":1.7276959255171091E-2},{"$f":"'Population 2016'!AQ66/'Population 2016'!AQ$6","v":2.7437992198424965E-2},{"$f":"'Population 2016'!AR66/'Population 2016'!AR$6","v":2.3309101062248413E-2},{"$f":"'Population 2016'!AS66/'Population 2016'!AS$6","v":1.0051471302321065E-2},{"$f":"'Population 2016'!AT66/'Population 2016'!AT$6","v":0},{"$f":"'Population 2016'!AU66/'Population 2016'!AU$6","v":0},{"$f":"'Population 2016'!AV66/'Population 2016'!AV$6","v":1.5894197545573693E-2},{"$f":"'Population 2016'!AW66/'Population 2016'!AW$6","v":1.920572650062654E-2},{"$f":"'Population 2016'!AX66/'Population 2016'!AX$6","v":2.2153218705102656E-2},{"$f":"'Population 2016'!AY66/'Population 2016'!AY$6","v":2.3063329563972362E-2},{"$f":"'Population 2016'!AZ66/'Population 2016'!AZ$6","v":2.6180863227097326E-2},{"$f":"'Population 2016'!BA66/'Population 2016'!BA$6","v":2.6677026677026677E-2},{"$f":"'Population 2016'!BB66/'Population 2016'!BB$6","v":1.7904595242724738E-2},{"$f":"'Population 2016'!BC66/'Population 2016'!BC$6","v":0},64]
[null,"Female 35-39",{"$f":"'Population 2016'!C67/'Population 2016'!C$6","v":1.1618733414616653E-2},{"$f":"'Population 2016'!D67/'Population 2016'!D$6","v":1.0723720346297701E-2},{"$f":"'Population 2016'!E67/'Population 2016'!E$6","v":8.3115878998743595E-3},{"$f":"'Population 2016'!F67/'Population 2016'!F$6","v":1.2897083008742318E-2},{"$f":"'Population 2016'!G67/'Population 2016'!G$6","v":9.90708608530169E-3},{"$f":"'Population 2016'!H67/'Population 2016'!H$6","v":1.9312293923692887E-2},{"$f":"'Population 2016'!I67/'Population 2016'!I$6","v":9.3231038166456254E-3},{"$f":"'Population 2016'!J67/'Population 2016'!J$6","v":1.8165176371189185E-2},{"$f":"'Population 2016'!K67/'Population 2016'!K$6","v":2.0064663370102702E-2},{"$f":"'Population 2016'!L67/'Population 2016'!L$6","v":8.0673996603200151E-3},{"$f":"'Population 2016'!M67/'Population 2016'!M$6","v":8.0673996603200151E-3},{"$f":"'Population 2016'!N67/'Population 2016'!N$6","v":2.577600023526298E-2},{"$f":"'Population 2016'!O67/'Population 2016'!O$6","v":1.8813139990378668E-2},{"$f":"'Population 2016'!P67/'Population 2016'!P$6","v":7.9822381984458422E-3},{"$f":"'Population 2016'!Q67/'Population 2016'!Q$6","v":5.580357142857143E-3},{"$f":"'Population 2016'!R67/'Population 2016'!R$6","v":1.835410619771214E-2},{"$f":"'Population 2016'!S67/'Population 2016'!S$6","v":1.735340228748198E-2},{"$f":"'Population 2016'!T67/'Population 2016'!T$6","v":2.3785642642212352E-2},{"$f":"'Population 2016'!U67/'Population 2016'!U$6","v":0},{"$f":"'Population 2016'!V67/'Population 2016'!V$6","v":1.2195984162895928E-2},{"$f":"'Population 2016'!W67/'Population 2016'!W$6","v":1.8329533678756477E-2},{"$f":"'Population 2016'!X67/'Population 2016'!X$6","v":1.8329533678756477E-2},{"$f":"'Population 2016'!Y67/'Population 2016'!Y$6","v":1.4760296415788677E-2},{"$f":"'Population 2016'!Z67/'Population 2016'!Z$6","v":3.0192829430869116E-2},{"$f":"'Population 2016'!AA67/'Population 2016'!AA$6","v":2.4356162157770738E-2},{"$f":"'Population 2016'!AB67/'Population 2016'!AB$6","v":9.4652790238650645E-3},{"$f":"'Population 2016'!AC67/'Population 2016'!AC$6","v":2.7333066182163381E-2},{"$f":"'Population 2016'!AD67/'Population 2016'!AD$6","v":1.0341307531845013E-2},{"$f":"'Population 2016'!AE67/'Population 2016'!AE$6","v":1.0497315341766043E-2},{"$f":"'Population 2016'!AF67/'Population 2016'!AF$6","v":2.7464321274477264E-2},{"$f":"'Population 2016'!AG67/'Population 2016'!AG$6","v":1.0497315341766043E-2},{"$f":"'Population 2016'!AH67/'Population 2016'!AH$6","v":1.9005730388540622E-2},{"$f":"'Population 2016'!AI67/'Population 2016'!AI$6","v":1.7552744028760718E-2},{"$f":"'Population 2016'!AJ67/'Population 2016'!AJ$6","v":8.5905381358532245E-3},{"$f":"'Population 2016'!AK67/'Population 2016'!AK$6","v":1.8894662257912141E-3},{"$f":"'Population 2016'!AL67/'Population 2016'!AL$6","v":2.342038254278439E-2},{"$f":"'Population 2016'!AM67/'Population 2016'!AM$6","v":2.0528306490971204E-2},{"$f":"'Population 2016'!AN67/'Population 2016'!AN$6","v":0},{"$f":"'Population 2016'!AO67/'Population 2016'!AO$6","v":0},{"$f":"'Population 2016'!AP67/'Population 2016'!AP$6","v":1.4205499832029563E-2},{"$f":"'Population 2016'!AQ67/'Population 2016'!AQ$6","v":2.4214322514167955E-2},{"$f":"'Population 2016'!AR67/'Population 2016'!AR$6","v":1.9803692604729872E-2},{"$f":"'Population 2016'!AS67/'Population 2016'!AS$6","v":9.3231038166456254E-3},{"$f":"'Population 2016'!AT67/'Population 2016'!AT$6","v":0},{"$f":"'Population 2016'!AU67/'Population 2016'!AU$6","v":0},{"$f":"'Population 2016'!AV67/'Population 2016'!AV$6","v":1.3392112474681282E-2},{"$f":"'Population 2016'!AW67/'Population 2016'!AW$6","v":1.6961645877525616E-2},{"$f":"'Population 2016'!AX67/'Population 2016'!AX$6","v":1.6313667330954258E-2},{"$f":"'Population 2016'!AY67/'Population 2016'!AY$6","v":1.9597810617558917E-2},{"$f":"'Population 2016'!AZ67/'Population 2016'!AZ$6","v":2.0964341860797486E-2},{"$f":"'Population 2016'!BA67/'Population 2016'!BA$6","v":2.209471440240671E-2},{"$f":"'Population 2016'!BB67/'Population 2016'!BB$6","v":1.5344481171819302E-2},{"$f":"'Population 2016'!BC67/'Population 2016'!BC$6","v":0},65]
[null,"Female 40-44",{"$f":"'Population 2016'!C68/'Population 2016'!C$6","v":1.1851825288675321E-2},{"$f":"'Population 2016'!D68/'Population 2016'!D$6","v":1.0841419715952188E-2},{"$f":"'Population 2016'!E68/'Population 2016'!E$6","v":8.118295158016816E-3},{"$f":"'Population 2016'!F68/'Population 2016'!F$6","v":1.1036094520903662E-2},{"$f":"'Population 2016'!G68/'Population 2016'!G$6","v":1.1642225456173739E-2},{"$f":"'Population 2016'!H68/'Population 2016'!H$6","v":2.1923835985618631E-2},{"$f":"'Population 2016'!I68/'Population 2016'!I$6","v":1.1313974944158492E-2},{"$f":"'Population 2016'!J68/'Population 2016'!J$6","v":1.8165176371189185E-2},{"$f":"'Population 2016'!K68/'Population 2016'!K$6","v":1.9351464435146442E-2},{"$f":"'Population 2016'!L68/'Population 2016'!L$6","v":8.1567891302404584E-3},{"$f":"'Population 2016'!M68/'Population 2016'!M$6","v":8.1567891302404584E-3},{"$f":"'Population 2016'!N68/'Population 2016'!N$6","v":2.1306003617168317E-2},{"$f":"'Population 2016'!O68/'Population 2016'!O$6","v":2.1166930107896366E-2},{"$f":"'Population 2016'!P68/'Population 2016'!P$6","v":9.3038008140825714E-3},{"$f":"'Population 2016'!Q68/'Population 2016'!Q$6","v":4.079433497536946E-3},{"$f":"'Population 2016'!R68/'Population 2016'!R$6","v":1.7158955096465766E-2},{"$f":"'Population 2016'!S68/'Population 2016'!S$6","v":1.6017108765875063E-2},{"$f":"'Population 2016'!T68/'Population 2016'!T$6","v":1.8416594320777458E-2},{"$f":"'Population 2016'!U68/'Population 2016'!U$6","v":0},{"$f":"'Population 2016'!V68/'Population 2016'!V$6","v":1.3998868778280544E-2},{"$f":"'Population 2016'!W68/'Population 2016'!W$6","v":1.8860103626943004E-2},{"$f":"'Population 2016'!X68/'Population 2016'!X$6","v":1.8860103626943004E-2},{"$f":"'Population 2016'!Y68/'Population 2016'!Y$6","v":1.5788677723446085E-2},{"$f":"'Population 2016'!Z68/'Population 2016'!Z$6","v":2.7033185376924267E-2},{"$f":"'Population 2016'!AA68/'Population 2016'!AA$6","v":2.3032552791265929E-2},{"$f":"'Population 2016'!AB68/'Population 2016'!AB$6","v":9.6110712363179623E-3},{"$f":"'Population 2016'!AC68/'Population 2016'!AC$6","v":2.5025969428050094E-2},{"$f":"'Population 2016'!AD68/'Population 2016'!AD$6","v":1.0859112630006065E-2},{"$f":"'Population 2016'!AE68/'Population 2016'!AE$6","v":1.0577754539787239E-2},{"$f":"'Population 2016'!AF68/'Population 2016'!AF$6","v":2.7630268835048124E-2},{"$f":"'Population 2016'!AG68/'Population 2016'!AG$6","v":1.0577754539787239E-2},{"$f":"'Population 2016'!AH68/'Population 2016'!AH$6","v":1.9449756834336182E-2},{"$f":"'Population 2016'!AI68/'Population 2016'!AI$6","v":1.4987214202907042E-2},{"$f":"'Population 2016'!AJ68/'Population 2016'!AJ$6","v":8.7132601092225568E-3},{"$f":"'Population 2016'!AK68/'Population 2016'!AK$6","v":2.2043772634230828E-3},{"$f":"'Population 2016'!AL68/'Population 2016'!AL$6","v":2.7195475809794516E-2},{"$f":"'Population 2016'!AM68/'Population 2016'!AM$6","v":2.113836017569546E-2},{"$f":"'Population 2016'!AN68/'Population 2016'!AN$6","v":0},{"$f":"'Population 2016'!AO68/'Population 2016'!AO$6","v":0},{"$f":"'Population 2016'!AP68/'Population 2016'!AP$6","v":1.1661947497240486E-2},{"$f":"'Population 2016'!AQ68/'Population 2016'!AQ$6","v":2.1873850003679987E-2},{"$f":"'Population 2016'!AR68/'Population 2016'!AR$6","v":1.9026534167276149E-2},{"$f":"'Population 2016'!AS68/'Population 2016'!AS$6","v":1.1313974944158492E-2},{"$f":"'Population 2016'!AT68/'Population 2016'!AT$6","v":0},{"$f":"'Population 2016'!AU68/'Population 2016'!AU$6","v":0},{"$f":"'Population 2016'!AV68/'Population 2016'!AV$6","v":1.4488264029548434E-2},{"$f":"'Population 2016'!AW68/'Population 2016'!AW$6","v":1.718277790972899E-2},{"$f":"'Population 2016'!AX68/'Population 2016'!AX$6","v":1.7008852018352876E-2},{"$f":"'Population 2016'!AY68/'Population 2016'!AY$6","v":1.8153127781336934E-2},{"$f":"'Population 2016'!AZ68/'Population 2016'!AZ$6","v":1.7391382020866087E-2},{"$f":"'Population 2016'!BA68/'Population 2016'!BA$6","v":2.2015022015022014E-2},{"$f":"'Population 2016'!BB68/'Population 2016'!BB$6","v":1.630047313500551E-2},{"$f":"'Population 2016'!BC68/'Population 2016'!BC$6","v":0},66]
[null,"Female 45-49",{"$f":"'Population 2016'!C69/'Population 2016'!C$6","v":1.0650505630065265E-2},{"$f":"'Population 2016'!D69/'Population 2016'!D$6","v":1.0331389114116078E-2},{"$f":"'Population 2016'!E69/'Population 2016'!E$6","v":9.4713443510196192E-3},{"$f":"'Population 2016'!F69/'Population 2016'!F$6","v":1.3156755820998874E-2},{"$f":"'Population 2016'!G69/'Population 2016'!G$6","v":1.3377364827045785E-2},{"$f":"'Population 2016'!H69/'Population 2016'!H$6","v":2.613330789365419E-2},{"$f":"'Population 2016'!I69/'Population 2016'!I$6","v":1.1022627949888317E-2},{"$f":"'Population 2016'!J69/'Population 2016'!J$6","v":2.3046774155694807E-2},{"$f":"'Population 2016'!K69/'Population 2016'!K$6","v":2.2441993153290225E-2},{"$f":"'Population 2016'!L69/'Population 2016'!L$6","v":1.0235094305890766E-2},{"$f":"'Population 2016'!M69/'Population 2016'!M$6","v":1.0235094305890766E-2},{"$f":"'Population 2016'!N69/'Population 2016'!N$6","v":2.4217382993427339E-2},{"$f":"'Population 2016'!O69/'Population 2016'!O$6","v":2.6235310287952718E-2},{"$f":"'Population 2016'!P69/'Population 2016'!P$6","v":1.1153988475973991E-2},{"$f":"'Population 2016'!Q69/'Population 2016'!Q$6","v":5.8882389162561574E-3},{"$f":"'Population 2016'!R69/'Population 2016'!R$6","v":2.100051220761482E-2},{"$f":"'Population 2016'!S69/'Population 2016'!S$6","v":1.7940003577478721E-2},{"$f":"'Population 2016'!T69/'Population 2016'!T$6","v":1.9630319530018626E-2},{"$f":"'Population 2016'!U69/'Population 2016'!U$6","v":0},{"$f":"'Population 2016'!V69/'Population 2016'!V$6","v":1.3945842760180996E-2},{"$f":"'Population 2016'!W69/'Population 2016'!W$6","v":2.288082901554404E-2},{"$f":"'Population 2016'!X69/'Population 2016'!X$6","v":2.288082901554404E-2},{"$f":"'Population 2016'!Y69/'Population 2016'!Y$6","v":1.7855522508443817E-2},{"$f":"'Population 2016'!Z69/'Population 2016'!Z$6","v":3.1730117787884586E-2},{"$f":"'Population 2016'!AA69/'Population 2016'!AA$6","v":2.7382090652868132E-2},{"$f":"'Population 2016'!AB69/'Population 2016'!AB$6","v":9.1736945989592672E-3},{"$f":"'Population 2016'!AC69/'Population 2016'!AC$6","v":3.0143989293203596E-2},{"$f":"'Population 2016'!AD69/'Population 2016'!AD$6","v":1.2560472238249522E-2},{"$f":"'Population 2016'!AE69/'Population 2016'!AE$6","v":1.2266977698232349E-2},{"$f":"'Population 2016'!AF69/'Population 2016'!AF$6","v":3.7144595641110743E-2},{"$f":"'Population 2016'!AG69/'Population 2016'!AG$6","v":1.2266977698232349E-2},{"$f":"'Population 2016'!AH69/'Population 2016'!AH$6","v":2.2418091105835626E-2},{"$f":"'Population 2016'!AI69/'Population 2016'!AI$6","v":1.6041885517939874E-2},{"$f":"'Population 2016'!AJ69/'Population 2016'!AJ$6","v":9.5723139228078794E-3},{"$f":"'Population 2016'!AK69/'Population 2016'!AK$6","v":2.2043772634230828E-3},{"$f":"'Population 2016'!AL69/'Population 2016'!AL$6","v":3.1414697696452894E-2},{"$f":"'Population 2016'!AM69/'Population 2016'!AM$6","v":2.4304538799414348E-2},{"$f":"'Population 2016'!AN69/'Population 2016'!AN$6","v":0},{"$f":"'Population 2016'!AO69/'Population 2016'!AO$6","v":0},{"$f":"'Population 2016'!AP69/'Population 2016'!AP$6","v":1.1469981283294141E-2},{"$f":"'Population 2016'!AQ69/'Population 2016'!AQ$6","v":2.7629351586074925E-2},{"$f":"'Population 2016'!AR69/'Population 2016'!AR$6","v":2.2154384925726262E-2},{"$f":"'Population 2016'!AS69/'Population 2016'!AS$6","v":1.1022627949888317E-2},{"$f":"'Population 2016'!AT69/'Population 2016'!AT$6","v":0},{"$f":"'Population 2016'!AU69/'Population 2016'!AU$6","v":0},{"$f":"'Population 2016'!AV69/'Population 2016'!AV$6","v":1.7490766114619326E-2},{"$f":"'Population 2016'!AW69/'Population 2016'!AW$6","v":1.9885502747770251E-2},{"$f":"'Population 2016'!AX69/'Population 2016'!AX$6","v":2.3636279371553041E-2},{"$f":"'Population 2016'!AY69/'Population 2016'!AY$6","v":2.1283273926484561E-2},{"$f":"'Population 2016'!AZ69/'Population 2016'!AZ$6","v":1.9561955123624412E-2},{"$f":"'Population 2016'!BA69/'Population 2016'!BA$6","v":2.7394258163488932E-2},{"$f":"'Population 2016'!BB69/'Population 2016'!BB$6","v":1.6835180504245251E-2},{"$f":"'Population 2016'!BC69/'Population 2016'!BC$6","v":0},67]
[null,"Female 50-54",{"$f":"'Population 2016'!C70/'Population 2016'!C$6","v":1.1242200387291113E-2},{"$f":"'Population 2016'!D70/'Population 2016'!D$6","v":1.0619098684382601E-2},{"$f":"'Population 2016'!E70/'Population 2016'!E$6","v":8.9397893109113748E-3},{"$f":"'Population 2016'!F70/'Population 2016'!F$6","v":1.2074785769929888E-2},{"$f":"'Population 2016'!G70/'Population 2016'!G$6","v":1.3041531400425389E-2},{"$f":"'Population 2016'!H70/'Population 2016'!H$6","v":2.6616264302366487E-2},{"$f":"'Population 2016'!I70/'Population 2016'!I$6","v":1.0682723123239779E-2},{"$f":"'Population 2016'!J70/'Population 2016'!J$6","v":2.1239644206623012E-2},{"$f":"'Population 2016'!K70/'Population 2016'!K$6","v":2.1728794218333968E-2},{"$f":"'Population 2016'!L70/'Population 2016'!L$6","v":1.0570304818092428E-2},{"$f":"'Population 2016'!M70/'Population 2016'!M$6","v":1.0570304818092428E-2},{"$f":"'Population 2016'!N70/'Population 2016'!N$6","v":2.7437545030804745E-2},{"$f":"'Population 2016'!O70/'Population 2016'!O$6","v":2.690536732870593E-2},{"$f":"'Population 2016'!P70/'Population 2016'!P$6","v":1.120685098059946E-2},{"$f":"'Population 2016'!Q70/'Population 2016'!Q$6","v":4.8106527093596061E-3},{"$f":"'Population 2016'!R70/'Population 2016'!R$6","v":2.2024927437254566E-2},{"$f":"'Population 2016'!S70/'Population 2016'!S$6","v":1.7253443323267292E-2},{"$f":"'Population 2016'!T70/'Population 2016'!T$6","v":1.7641158770428933E-2},{"$f":"'Population 2016'!U70/'Population 2016'!U$6","v":0},{"$f":"'Population 2016'!V70/'Population 2016'!V$6","v":1.4847285067873302E-2},{"$f":"'Population 2016'!W70/'Population 2016'!W$6","v":2.2930569948186527E-2},{"$f":"'Population 2016'!X70/'Population 2016'!X$6","v":2.2930569948186527E-2},{"$f":"'Population 2016'!Y70/'Population 2016'!Y$6","v":1.7593386096688007E-2},{"$f":"'Population 2016'!Z70/'Population 2016'!Z$6","v":3.3285634860595895E-2},{"$f":"'Population 2016'!AA70/'Population 2016'!AA$6","v":2.8028271996100414E-2},{"$f":"'Population 2016'!AB70/'Population 2016'!AB$6","v":9.4092050959985653E-3},{"$f":"'Population 2016'!AC70/'Population 2016'!AC$6","v":3.1056323507098312E-2},{"$f":"'Population 2016'!AD70/'Population 2016'!AD$6","v":1.17615729439439E-2},{"$f":"'Population 2016'!AE70/'Population 2016'!AE$6","v":1.1301707321977999E-2},{"$f":"'Population 2016'!AF70/'Population 2016'!AF$6","v":3.6591437105874543E-2},{"$f":"'Population 2016'!AG70/'Population 2016'!AG$6","v":1.1301707321977999E-2},{"$f":"'Population 2016'!AH70/'Population 2016'!AH$6","v":2.2585912124718988E-2},{"$f":"'Population 2016'!AI70/'Population 2016'!AI$6","v":1.4953732573858382E-2},{"$f":"'Population 2016'!AJ70/'Population 2016'!AJ$6","v":9.7257163895195439E-3},{"$f":"'Population 2016'!AK70/'Population 2016'!AK$6","v":2.1256495040151155E-3},{"$f":"'Population 2016'!AL70/'Population 2016'!AL$6","v":3.2599040682181557E-2},{"$f":"'Population 2016'!AM70/'Population 2016'!AM$6","v":2.4658369936554417E-2},{"$f":"'Population 2016'!AN70/'Population 2016'!AN$6","v":0},{"$f":"'Population 2016'!AO70/'Population 2016'!AO$6","v":0},{"$f":"'Population 2016'!AP70/'Population 2016'!AP$6","v":1.2429812353025867E-2},{"$f":"'Population 2016'!AQ70/'Population 2016'!AQ$6","v":2.6466475307279018E-2},{"$f":"'Population 2016'!AR70/'Population 2016'!AR$6","v":2.2440944436845561E-2},{"$f":"'Population 2016'!AS70/'Population 2016'!AS$6","v":1.0682723123239779E-2},{"$f":"'Population 2016'!AT70/'Population 2016'!AT$6","v":0},{"$f":"'Population 2016'!AU70/'Population 2016'!AU$6","v":0},{"$f":"'Population 2016'!AV70/'Population 2016'!AV$6","v":1.6585249612772548E-2},{"$f":"'Population 2016'!AW70/'Population 2016'!AW$6","v":1.9803601995102334E-2},{"$f":"'Population 2016'!AX70/'Population 2016'!AX$6","v":2.0762849330305418E-2},{"$f":"'Population 2016'!AY70/'Population 2016'!AY$6","v":2.2229197212106099E-2},{"$f":"'Population 2016'!AZ70/'Population 2016'!AZ$6","v":2.147348863798771E-2},{"$f":"'Population 2016'!BA70/'Population 2016'!BA$6","v":2.8250951327874405E-2},{"$f":"'Population 2016'!BB70/'Population 2016'!BB$6","v":1.6818977250631927E-2},{"$f":"'Population 2016'!BC70/'Population 2016'!BC$6","v":0},68]
[null,"Female 55-59",{"$f":"'Population 2016'!C71/'Population 2016'!C$6","v":9.7002079896722371E-3},{"$f":"'Population 2016'!D71/'Population 2016'!D$6","v":9.1543954175712077E-3},{"$f":"'Population 2016'!E71/'Population 2016'!E$6","v":7.6833864888373442E-3},{"$f":"'Population 2016'!F71/'Population 2016'!F$6","v":1.1252488531117459E-2},{"$f":"'Population 2016'!G71/'Population 2016'!G$6","v":1.2481809022724728E-2},{"$f":"'Population 2016'!H71/'Population 2016'!H$6","v":2.3330968238163097E-2},{"$f":"'Population 2016'!I71/'Population 2016'!I$6","v":9.4687773137807126E-3},{"$f":"'Population 2016'!J71/'Population 2016'!J$6","v":1.959679879837593E-2},{"$f":"'Population 2016'!K71/'Population 2016'!K$6","v":1.9922023583111449E-2},{"$f":"'Population 2016'!L71/'Population 2016'!L$6","v":8.5813891123625637E-3},{"$f":"'Population 2016'!M71/'Population 2016'!M$6","v":8.5813891123625637E-3},{"$f":"'Population 2016'!N71/'Population 2016'!N$6","v":2.4540869590789455E-2},{"$f":"'Population 2016'!O71/'Population 2016'!O$6","v":2.1785444299360867E-2},{"$f":"'Population 2016'!P71/'Population 2016'!P$6","v":1.120685098059946E-2},{"$f":"'Population 2016'!Q71/'Population 2016'!Q$6","v":5.2724753694581277E-3},{"$f":"'Population 2016'!R71/'Population 2016'!R$6","v":1.6646747481645893E-2},{"$f":"'Population 2016'!S71/'Population 2016'!S$6","v":1.5998695272467091E-2},{"$f":"'Population 2016'!T71/'Population 2016'!T$6","v":1.7388299351837024E-2},{"$f":"'Population 2016'!U71/'Population 2016'!U$6","v":0},{"$f":"'Population 2016'!V71/'Population 2016'!V$6","v":1.3539309954751132E-2},{"$f":"'Population 2016'!W71/'Population 2016'!W$6","v":2.0277720207253887E-2},{"$f":"'Population 2016'!X71/'Population 2016'!X$6","v":2.0277720207253887E-2},{"$f":"'Population 2016'!Y71/'Population 2016'!Y$6","v":1.6141553662348138E-2},{"$f":"'Population 2016'!Z71/'Population 2016'!Z$6","v":2.8822637634398802E-2},{"$f":"'Population 2016'!AA71/'Population 2016'!AA$6","v":2.4902354124874231E-2},{"$f":"'Population 2016'!AB71/'Population 2016'!AB$6","v":8.1082899694957834E-3},{"$f":"'Population 2016'!AC71/'Population 2016'!AC$6","v":2.7317503978088416E-2},{"$f":"'Population 2016'!AD71/'Population 2016'!AD$6","v":1.0933084786886217E-2},{"$f":"'Population 2016'!AE71/'Population 2016'!AE$6","v":1.0376656544734249E-2},{"$f":"'Population 2016'!AF71/'Population 2016'!AF$6","v":3.4931961500165948E-2},{"$f":"'Population 2016'!AG71/'Population 2016'!AG$6","v":1.0376656544734249E-2},{"$f":"'Population 2016'!AH71/'Population 2016'!AH$6","v":2.0561571084438447E-2},{"$f":"'Population 2016'!AI71/'Population 2016'!AI$6","v":1.4401285694555468E-2},{"$f":"'Population 2016'!AJ71/'Population 2016'!AJ$6","v":9.5109529361232133E-3},{"$f":"'Population 2016'!AK71/'Population 2016'!AK$6","v":1.8107384663832468E-3},{"$f":"'Population 2016'!AL71/'Population 2016'!AL$6","v":2.9031207437673949E-2},{"$f":"'Population 2016'!AM71/'Population 2016'!AM$6","v":2.1785017081503173E-2},{"$f":"'Population 2016'!AN71/'Population 2016'!AN$6","v":0},{"$f":"'Population 2016'!AO71/'Population 2016'!AO$6","v":0},{"$f":"'Population 2016'!AP71/'Population 2016'!AP$6","v":1.1182031962374621E-2},{"$f":"'Population 2016'!AQ71/'Population 2016'!AQ$6","v":2.433208213733716E-2},{"$f":"'Population 2016'!AR71/'Population 2016'!AR$6","v":2.008064361153156E-2},{"$f":"'Population 2016'!AS71/'Population 2016'!AS$6","v":9.4687773137807126E-3},{"$f":"'Population 2016'!AT71/'Population 2016'!AT$6","v":0},{"$f":"'Population 2016'!AU71/'Population 2016'!AU$6","v":0},{"$f":"'Population 2016'!AV71/'Population 2016'!AV$6","v":1.6299297033241986E-2},{"$f":"'Population 2016'!AW71/'Population 2016'!AW$6","v":1.891907386628883E-2},{"$f":"'Population 2016'!AX71/'Population 2016'!AX$6","v":1.9279788663855033E-2},{"$f":"'Population 2016'!AY71/'Population 2016'!AY$6","v":1.98127931824729E-2},{"$f":"'Population 2016'!AZ71/'Population 2016'!AZ$6","v":1.9311847934829214E-2},{"$f":"'Population 2016'!BA71/'Population 2016'!BA$6","v":2.4565178411332256E-2},{"$f":"'Population 2016'!BB71/'Population 2016'!BB$6","v":1.5085229114006093E-2},{"$f":"'Population 2016'!BC71/'Population 2016'!BC$6","v":0},69]
[null,"Female 60-64",{"$f":"'Population 2016'!C72/'Population 2016'!C$6","v":7.8892634296779743E-3},{"$f":"'Population 2016'!D72/'Population 2016'!D$6","v":7.3889048727539038E-3},{"$f":"'Population 2016'!E72/'Population 2016'!E$6","v":6.0403981830482265E-3},{"$f":"'Population 2016'!F72/'Population 2016'!F$6","v":9.0452696269367264E-3},{"$f":"'Population 2016'!G72/'Population 2016'!G$6","v":1.119444755401321E-2},{"$f":"'Population 2016'!H72/'Population 2016'!H$6","v":2.1124871062563725E-2},{"$f":"'Population 2016'!I72/'Population 2016'!I$6","v":9.0317568223754491E-3},{"$f":"'Population 2016'!J72/'Population 2016'!J$6","v":1.4996831655284095E-2},{"$f":"'Population 2016'!K72/'Population 2016'!K$6","v":1.6070749334347659E-2},{"$f":"'Population 2016'!L72/'Population 2016'!L$6","v":7.7098417806382409E-3},{"$f":"'Population 2016'!M72/'Population 2016'!M$6","v":7.7098417806382409E-3},{"$f":"'Population 2016'!N72/'Population 2016'!N$6","v":1.9556235204164156E-2},{"$f":"'Population 2016'!O72/'Population 2016'!O$6","v":1.9775273177101229E-2},{"$f":"'Population 2016'!P72/'Population 2016'!P$6","v":8.6165882539514724E-3},{"$f":"'Population 2016'!Q72/'Population 2016'!Q$6","v":3.7330665024630544E-3},{"$f":"'Population 2016'!R72/'Population 2016'!R$6","v":1.4683284958169712E-2},{"$f":"'Population 2016'!S72/'Population 2016'!S$6","v":1.2955207862035585E-2},{"$f":"'Population 2016'!T72/'Population 2016'!T$6","v":1.3005402762910581E-2},{"$f":"'Population 2016'!U72/'Population 2016'!U$6","v":0},{"$f":"'Population 2016'!V72/'Population 2016'!V$6","v":1.1471295248868777E-2},{"$f":"'Population 2016'!W72/'Population 2016'!W$6","v":1.7293264248704664E-2},{"$f":"'Population 2016'!X72/'Population 2016'!X$6","v":1.7293264248704664E-2},{"$f":"'Population 2016'!Y72/'Population 2016'!Y$6","v":1.2985834551595504E-2},{"$f":"'Population 2016'!Z72/'Population 2016'!Z$6","v":2.2184347001831986E-2},{"$f":"'Population 2016'!AA72/'Population 2016'!AA$6","v":2.0094115000281219E-2},{"$f":"'Population 2016'!AB72/'Population 2016'!AB$6","v":6.7513009151265024E-3},{"$f":"'Population 2016'!AC72/'Population 2016'!AC$6","v":2.1380523123489981E-2},{"$f":"'Population 2016'!AD72/'Population 2016'!AD$6","v":1.0075007767076472E-2},{"$f":"'Population 2016'!AE72/'Population 2016'!AE$6","v":9.6728135620487866E-3},{"$f":"'Population 2016'!AF72/'Population 2016'!AF$6","v":2.8819559685805952E-2},{"$f":"'Population 2016'!AG72/'Population 2016'!AG$6","v":9.6728135620487866E-3},{"$f":"'Population 2016'!AH72/'Population 2016'!AH$6","v":1.778203545918278E-2},{"$f":"'Population 2016'!AI72/'Population 2016'!AI$6","v":1.1103345233262325E-2},{"$f":"'Population 2016'!AJ72/'Population 2016'!AJ$6","v":7.117874455421243E-3},{"$f":"'Population 2016'!AK72/'Population 2016'!AK$6","v":2.9129270980947884E-3},{"$f":"'Population 2016'!AL72/'Population 2016'!AL$6","v":2.6085154260673891E-2},{"$f":"'Population 2016'!AM72/'Population 2016'!AM$6","v":1.8673743289409468E-2},{"$f":"'Population 2016'!AN72/'Population 2016'!AN$6","v":0},{"$f":"'Population 2016'!AO72/'Population 2016'!AO$6","v":0},{"$f":"'Population 2016'!AP72/'Population 2016'!AP$6","v":1.0174209339156309E-2},{"$f":"'Population 2016'!AQ72/'Population 2016'!AQ$6","v":1.8532420696253771E-2},{"$f":"'Population 2016'!AR72/'Population 2016'!AR$6","v":1.6510801654471403E-2},{"$f":"'Population 2016'!AS72/'Population 2016'!AS$6","v":9.0317568223754491E-3},{"$f":"'Population 2016'!AT72/'Population 2016'!AT$6","v":0},{"$f":"'Population 2016'!AU72/'Population 2016'!AU$6","v":0},{"$f":"'Population 2016'!AV72/'Population 2016'!AV$6","v":1.5012510425354461E-2},{"$f":"'Population 2016'!AW72/'Population 2016'!AW$6","v":1.6584902415253195E-2},{"$f":"'Population 2016'!AX72/'Population 2016'!AX$6","v":1.3950039393798953E-2},{"$f":"'Population 2016'!AY72/'Population 2016'!AY$6","v":1.6497762031499247E-2},{"$f":"'Population 2016'!AZ72/'Population 2016'!AZ$6","v":1.56406316992997E-2},{"$f":"'Population 2016'!BA72/'Population 2016'!BA$6","v":2.097902097902098E-2},{"$f":"'Population 2016'!BB72/'Population 2016'!BB$6","v":1.2654741072007258E-2},{"$f":"'Population 2016'!BC72/'Population 2016'!BC$6","v":0},70]
[null,"Female 65-69",{"$f":"'Population 2016'!C73/'Population 2016'!C$6","v":7.315498816610486E-3},{"$f":"'Population 2016'!D73/'Population 2016'!D$6","v":6.8657965631784062E-3},{"$f":"'Population 2016'!E73/'Population 2016'!E$6","v":5.6538126993331403E-3},{"$f":"'Population 2016'!F73/'Population 2016'!F$6","v":8.0931359819960188E-3},{"$f":"'Population 2016'!G73/'Population 2016'!G$6","v":1.2593753498264861E-2},{"$f":"'Population 2016'!H73/'Population 2016'!H$6","v":2.0200695218731555E-2},{"$f":"'Population 2016'!I73/'Population 2016'!I$6","v":9.3716616490239872E-3},{"$f":"'Population 2016'!J73/'Population 2016'!J$6","v":1.6052946560585792E-2},{"$f":"'Population 2016'!K73/'Population 2016'!K$6","v":1.7687333586915176E-2},{"$f":"'Population 2016'!L73/'Population 2016'!L$6","v":6.6595155090730315E-3},{"$f":"'Population 2016'!M73/'Population 2016'!M$6","v":6.6595155090730315E-3},{"$f":"'Population 2016'!N73/'Population 2016'!N$6","v":1.9512123395432956E-2},{"$f":"'Population 2016'!O73/'Population 2016'!O$6","v":1.9277025633977048E-2},{"$f":"'Population 2016'!P73/'Population 2016'!P$6","v":7.7707881799439658E-3},{"$f":"'Population 2016'!Q73/'Population 2016'!Q$6","v":3.9254926108374388E-3},{"$f":"'Population 2016'!R73/'Population 2016'!R$6","v":1.4768652893973024E-2},{"$f":"'Population 2016'!S73/'Population 2016'!S$6","v":1.2918380875219647E-2},{"$f":"'Population 2016'!T73/'Population 2016'!T$6","v":1.258397039859073E-2},{"$f":"'Population 2016'!U73/'Population 2016'!U$6","v":0},{"$f":"'Population 2016'!V73/'Population 2016'!V$6","v":1.1559671945701358E-2},{"$f":"'Population 2016'!W73/'Population 2016'!W$6","v":1.7392746113989638E-2},{"$f":"'Population 2016'!X73/'Population 2016'!X$6","v":1.7392746113989638E-2},{"$f":"'Population 2016'!Y73/'Population 2016'!Y$6","v":1.3489943035741291E-2},{"$f":"'Population 2016'!Z73/'Population 2016'!Z$6","v":1.990575753985253E-2},{"$f":"'Population 2016'!AA73/'Population 2016'!AA$6","v":1.8678015460857286E-2},{"$f":"'Population 2016'!AB73/'Population 2016'!AB$6","v":6.2466355643280101E-3},{"$f":"'Population 2016'!AC73/'Population 2016'!AC$6","v":1.9625884614037886E-2},{"$f":"'Population 2016'!AD73/'Population 2016'!AD$6","v":9.3204917668989386E-3},{"$f":"'Population 2016'!AE73/'Population 2016'!AE$6","v":8.1444687996460683E-3},{"$f":"'Population 2016'!AF73/'Population 2016'!AF$6","v":2.8902533466091382E-2},{"$f":"'Population 2016'!AG73/'Population 2016'!AG$6","v":8.1444687996460683E-3},{"$f":"'Population 2016'!AH73/'Population 2016'!AH$6","v":1.6974396805806608E-2},{"$f":"'Population 2016'!AI73/'Population 2016'!AI$6","v":1.0965233513436597E-2},{"$f":"'Population 2016'!AJ73/'Population 2016'!AJ$6","v":8.0076087623488987E-3},{"$f":"'Population 2016'!AK73/'Population 2016'!AK$6","v":2.519288301054952E-3},{"$f":"'Population 2016'!AL73/'Population 2016'!AL$6","v":2.5552199917095991E-2},{"$f":"'Population 2016'!AM73/'Population 2016'!AM$6","v":1.7703757930697901E-2},{"$f":"'Population 2016'!AN73/'Population 2016'!AN$6","v":0},{"$f":"'Population 2016'!AO73/'Population 2016'!AO$6","v":0},{"$f":"'Population 2016'!AP73/'Population 2016'!AP$6","v":8.7344627345587178E-3},{"$f":"'Population 2016'!AQ73/'Population 2016'!AQ$6","v":1.7855302863030838E-2},{"$f":"'Population 2016'!AR73/'Population 2016'!AR$6","v":1.569125275679293E-2},{"$f":"'Population 2016'!AS73/'Population 2016'!AS$6","v":9.3716616490239872E-3},{"$f":"'Population 2016'!AT73/'Population 2016'!AT$6","v":0},{"$f":"'Population 2016'!AU73/'Population 2016'!AU$6","v":0},{"$f":"'Population 2016'!AV73/'Population 2016'!AV$6","v":1.2867866078875254E-2},{"$f":"'Population 2016'!AW73/'Population 2016'!AW$6","v":1.5995216996044195E-2},{"$f":"'Population 2016'!AX73/'Population 2016'!AX$6","v":1.4459841497891273E-2},{"$f":"'Population 2016'!AY73/'Population 2016'!AY$6","v":1.6312877025673217E-2},{"$f":"'Population 2016'!AZ73/'Population 2016'!AZ$6","v":1.5149349721309132E-2},{"$f":"'Population 2016'!BA73/'Population 2016'!BA$6","v":1.9106249875480645E-2},{"$f":"'Population 2016'!BB73/'Population 2016'!BB$6","v":1.2379285760580725E-2},{"$f":"'Population 2016'!BC73/'Population 2016'!BC$6","v":0},71]
[null,"Female 70-74",{"$f":"'Population 2016'!C74/'Population 2016'!C$6","v":5.1459513734490427E-3},{"$f":"'Population 2016'!D74/'Population 2016'!D$6","v":4.7995187403551904E-3},{"$f":"'Population 2016'!E74/'Population 2016'!E$6","v":3.8658548371508649E-3},{"$f":"'Population 2016'!F74/'Population 2016'!F$6","v":6.9678871288842729E-3},{"$f":"'Population 2016'!G74/'Population 2016'!G$6","v":9.2913914698309636E-3},{"$f":"'Population 2016'!H74/'Population 2016'!H$6","v":1.5812350566728476E-2},{"$f":"'Population 2016'!I74/'Population 2016'!I$6","v":7.2351170243760317E-3},{"$f":"'Population 2016'!J74/'Population 2016'!J$6","v":1.2391748222206575E-2},{"$f":"'Population 2016'!K74/'Population 2016'!K$6","v":1.3265500190186384E-2},{"$f":"'Population 2016'!L74/'Population 2016'!L$6","v":6.9500312863144719E-3},{"$f":"'Population 2016'!M74/'Population 2016'!M$6","v":6.9500312863144719E-3},{"$f":"'Population 2016'!N74/'Population 2016'!N$6","v":1.4086370921495684E-2},{"$f":"'Population 2016'!O74/'Population 2016'!O$6","v":1.4895883444436809E-2},{"$f":"'Population 2016'!P74/'Population 2016'!P$6","v":5.3919754717978536E-3},{"$f":"'Population 2016'!Q74/'Population 2016'!Q$6","v":3.3482142857142855E-3},{"$f":"'Population 2016'!R74/'Population 2016'!R$6","v":1.0585624039610723E-2},{"$f":"'Population 2016'!S74/'Population 2016'!S$6","v":9.9590694346531426E-3},{"$f":"'Population 2016'!T74/'Population 2016'!T$6","v":9.1535109530271486E-3},{"$f":"'Population 2016'!U74/'Population 2016'!U$6","v":0},{"$f":"'Population 2016'!V74/'Population 2016'!V$6","v":8.3604355203619907E-3},{"$f":"'Population 2016'!W74/'Population 2016'!W$6","v":1.3786528497409327E-2},{"$f":"'Population 2016'!X74/'Population 2016'!X$6","v":1.3786528497409327E-2},{"$f":"'Population 2016'!Y74/'Population 2016'!Y$6","v":1.0092251852598679E-2},{"$f":"'Population 2016'!Z74/'Population 2016'!Z$6","v":1.6393691649121529E-2},{"$f":"'Population 2016'!AA74/'Population 2016'!AA$6","v":1.4875919433560184E-2},{"$f":"'Population 2016'!AB74/'Population 2016'!AB$6","v":4.2728333034272384E-3},{"$f":"'Population 2016'!AC74/'Population 2016'!AC$6","v":1.5665303676959768E-2},{"$f":"'Population 2016'!AD74/'Population 2016'!AD$6","v":7.1457103546225201E-3},{"$f":"'Population 2016'!AE74/'Population 2016'!AE$6","v":6.3748064431797613E-3},{"$f":"'Population 2016'!AF74/'Population 2016'!AF$6","v":2.1794446288306228E-2},{"$f":"'Population 2016'!AG74/'Population 2016'!AG$6","v":6.3748064431797613E-3},{"$f":"'Population 2016'!AH74/'Population 2016'!AH$6","v":1.3457147951709502E-2},{"$f":"'Population 2016'!AI74/'Population 2016'!AI$6","v":8.2615919677571908E-3},{"$f":"'Population 2016'!AJ74/'Population 2016'!AJ$6","v":6.0747376817819228E-3},{"$f":"'Population 2016'!AK74/'Population 2016'!AK$6","v":1.1021886317115414E-3},{"$f":"'Population 2016'!AL74/'Population 2016'!AL$6","v":1.9911766447563213E-2},{"$f":"'Population 2016'!AM74/'Population 2016'!AM$6","v":1.4513177159590045E-2},{"$f":"'Population 2016'!AN74/'Population 2016'!AN$6","v":0},{"$f":"'Population 2016'!AO74/'Population 2016'!AO$6","v":0},{"$f":"'Population 2016'!AP74/'Population 2016'!AP$6","v":7.2467245764745404E-3},{"$f":"'Population 2016'!AQ74/'Population 2016'!AQ$6","v":1.4131154780304703E-2},{"$f":"'Population 2016'!AR74/'Population 2016'!AR$6","v":1.2313580886084963E-2},{"$f":"'Population 2016'!AS74/'Population 2016'!AS$6","v":7.2351170243760317E-3},{"$f":"'Population 2016'!AT74/'Population 2016'!AT$6","v":0},{"$f":"'Population 2016'!AU74/'Population 2016'!AU$6","v":0},{"$f":"'Population 2016'!AV74/'Population 2016'!AV$6","v":1.0484927916120577E-2},{"$f":"'Population 2016'!AW74/'Population 2016'!AW$6","v":1.2039410642183801E-2},{"$f":"'Population 2016'!AX74/'Population 2016'!AX$6","v":1.1540065810817074E-2},{"$f":"'Population 2016'!AY74/'Population 2016'!AY$6","v":1.2610877257854388E-2},{"$f":"'Population 2016'!AZ74/'Population 2016'!AZ$6","v":1.1344147491782192E-2},{"$f":"'Population 2016'!BA74/'Population 2016'!BA$6","v":1.3607475145936684E-2},{"$f":"'Population 2016'!BB74/'Population 2016'!BB$6","v":9.7705619288353095E-3},{"$f":"'Population 2016'!BC74/'Population 2016'!BC$6","v":0},72]
[null,"Female 75-79",{"$f":"'Population 2016'!C75/'Population 2016'!C$6","v":4.3570250304812447E-3},{"$f":"'Population 2016'!D75/'Population 2016'!D$6","v":3.8840791985980698E-3},{"$f":"'Population 2016'!E75/'Population 2016'!E$6","v":2.6094520150768338E-3},{"$f":"'Population 2016'!F75/'Population 2016'!F$6","v":7.1842811390980697E-3},{"$f":"'Population 2016'!G75/'Population 2016'!G$6","v":8.0600022388895107E-3},{"$f":"'Population 2016'!H75/'Population 2016'!H$6","v":1.3642027939922608E-2},{"$f":"'Population 2016'!I75/'Population 2016'!I$6","v":5.0500145673497135E-3},{"$f":"'Population 2016'!J75/'Population 2016'!J$6","v":9.6693186885399799E-3},{"$f":"'Population 2016'!K75/'Population 2016'!K$6","v":1.0127424876378851E-2},{"$f":"'Population 2016'!L75/'Population 2016'!L$6","v":4.2236524537409489E-3},{"$f":"'Population 2016'!M75/'Population 2016'!M$6","v":4.2236524537409489E-3},{"$f":"'Population 2016'!N75/'Population 2016'!N$6","v":1.2336602508491524E-2},{"$f":"'Population 2016'!O75/'Population 2016'!O$6","v":1.2696721874785238E-2},{"$f":"'Population 2016'!P75/'Population 2016'!P$6","v":4.5461753977903471E-3},{"$f":"'Population 2016'!Q75/'Population 2016'!Q$6","v":2.8863916256157635E-3},{"$f":"'Population 2016'!R75/'Population 2016'!R$6","v":9.3051050025610375E-3},{"$f":"'Population 2016'!S75/'Population 2016'!S$6","v":8.1940045665463649E-3},{"$f":"'Population 2016'!T75/'Population 2016'!T$6","v":8.1083586895139195E-3},{"$f":"'Population 2016'!U75/'Population 2016'!U$6","v":0},{"$f":"'Population 2016'!V75/'Population 2016'!V$6","v":8.9790723981900446E-3},{"$f":"'Population 2016'!W75/'Population 2016'!W$6","v":1.1316062176165802E-2},{"$f":"'Population 2016'!X75/'Population 2016'!X$6","v":1.1316062176165802E-2},{"$f":"'Population 2016'!Y75/'Population 2016'!Y$6","v":9.2755961082825016E-3},{"$f":"'Population 2016'!Z75/'Population 2016'!Z$6","v":1.5539980130699892E-2},{"$f":"'Population 2016'!AA75/'Population 2016'!AA$6","v":1.3511064449402251E-2},{"$f":"'Population 2016'!AB75/'Population 2016'!AB$6","v":3.4429391710030506E-3},{"$f":"'Population 2016'!AC75/'Population 2016'!AC$6","v":1.4801601350799314E-2},{"$f":"'Population 2016'!AD75/'Population 2016'!AD$6","v":6.0509224327962956E-3},{"$f":"'Population 2016'!AE75/'Population 2016'!AE$6","v":5.329096868904217E-3},{"$f":"'Population 2016'!AF75/'Population 2016'!AF$6","v":2.077110299811926E-2},{"$f":"'Population 2016'!AG75/'Population 2016'!AG$6","v":5.329096868904217E-3},{"$f":"'Population 2016'!AH75/'Population 2016'!AH$6","v":1.119156419678413E-2},{"$f":"'Population 2016'!AI75/'Population 2016'!AI$6","v":6.8888451767620757E-3},{"$f":"'Population 2016'!AJ75/'Population 2016'!AJ$6","v":3.9884641345032832E-3},{"$f":"'Population 2016'!AK75/'Population 2016'!AK$6","v":7.8727759407967246E-4},{"$f":"'Population 2016'!AL75/'Population 2016'!AL$6","v":1.7276603304316931E-2},{"$f":"'Population 2016'!AM75/'Population 2016'!AM$6","v":1.199975597852611E-2},{"$f":"'Population 2016'!AN75/'Population 2016'!AN$6","v":0},{"$f":"'Population 2016'!AO75/'Population 2016'!AO$6","v":0},{"$f":"'Population 2016'!AP75/'Population 2016'!AP$6","v":4.5591975812257039E-3},{"$f":"'Population 2016'!AQ75/'Population 2016'!AQ$6","v":1.4101714874512401E-2},{"$f":"'Population 2016'!AR75/'Population 2016'!AR$6","v":1.0816915037083175E-2},{"$f":"'Population 2016'!AS75/'Population 2016'!AS$6","v":5.0500145673497135E-3},{"$f":"'Population 2016'!AT75/'Population 2016'!AT$6","v":0},{"$f":"'Population 2016'!AU75/'Population 2016'!AU$6","v":0},{"$f":"'Population 2016'!AV75/'Population 2016'!AV$6","v":9.1028237817228647E-3},{"$f":"'Population 2016'!AW75/'Population 2016'!AW$6","v":1.0106552879220959E-2},{"$f":"'Population 2016'!AX75/'Population 2016'!AX$6","v":9.2227835194883447E-3},{"$f":"'Population 2016'!AY75/'Population 2016'!AY$6","v":1.0598640450259484E-2},{"$f":"'Population 2016'!AZ75/'Population 2016'!AZ$6","v":9.8256395598113472E-3},{"$f":"'Population 2016'!BA75/'Population 2016'!BA$6","v":1.1754627139242524E-2},{"$f":"'Population 2016'!BB75/'Population 2016'!BB$6","v":7.7613584807829416E-3},{"$f":"'Population 2016'!BC75/'Population 2016'!BC$6","v":0},73]
[null,"Female 80-84",{"$f":"'Population 2016'!C76/'Population 2016'!C$6","v":3.3887972459298575E-3},{"$f":"'Population 2016'!D76/'Population 2016'!D$6","v":3.1255721497135984E-3},{"$f":"'Population 2016'!E76/'Population 2016'!E$6","v":2.4161592732192907E-3},{"$f":"'Population 2016'!F76/'Population 2016'!F$6","v":4.1980437981476671E-3},{"$f":"'Population 2016'!G76/'Population 2016'!G$6","v":6.5487518190977274E-3},{"$f":"'Population 2016'!H76/'Population 2016'!H$6","v":9.9691742637895986E-3},{"$f":"'Population 2016'!I76/'Population 2016'!I$6","v":3.9817422550257357E-3},{"$f":"'Population 2016'!J76/'Population 2016'!J$6","v":7.2989274566406161E-3},{"$f":"'Population 2016'!K76/'Population 2016'!K$6","v":6.6565233929250667E-3},{"$f":"'Population 2016'!L76/'Population 2016'!L$6","v":3.3744524894967374E-3},{"$f":"'Population 2016'!M76/'Population 2016'!M$6","v":3.3744524894967374E-3},{"$f":"'Population 2016'!N76/'Population 2016'!N$6","v":9.8663412195444718E-3},{"$f":"'Population 2016'!O76/'Population 2016'!O$6","v":9.6213318672256198E-3},{"$f":"'Population 2016'!P76/'Population 2016'!P$6","v":2.9603002590262726E-3},{"$f":"'Population 2016'!Q76/'Population 2016'!Q$6","v":1.6163793103448276E-3},{"$f":"'Population 2016'!R76/'Population 2016'!R$6","v":8.0245859655113539E-3},{"$f":"'Population 2016'!S76/'Population 2016'!S$6","v":6.2184997737770812E-3},{"$f":"'Population 2016'!T76/'Population 2016'!T$6","v":6.422629232234519E-3},{"$f":"'Population 2016'!U76/'Population 2016'!U$6","v":0},{"$f":"'Population 2016'!V76/'Population 2016'!V$6","v":6.4161481900452486E-3},{"$f":"'Population 2016'!W76/'Population 2016'!W$6","v":8.1740932642487048E-3},{"$f":"'Population 2016'!X76/'Population 2016'!X$6","v":8.1740932642487048E-3},{"$f":"'Population 2016'!Y76/'Population 2016'!Y$6","v":6.7953823662852244E-3},{"$f":"'Population 2016'!Z76/'Population 2016'!Z$6","v":1.2301344975406425E-2},{"$f":"'Population 2016'!AA76/'Population 2016'!AA$6","v":1.0590124799240081E-2},{"$f":"'Population 2016'!AB76/'Population 2016'!AB$6","v":2.7924816077516596E-3},{"$f":"'Population 2016'!AC76/'Population 2016'!AC$6","v":1.1733901872522205E-2},{"$f":"'Population 2016'!AD76/'Population 2016'!AD$6","v":4.6750403148255E-3},{"$f":"'Population 2016'!AE76/'Population 2016'!AE$6","v":4.0018501015544874E-3},{"$f":"'Population 2016'!AF76/'Population 2016'!AF$6","v":1.653944020356234E-2},{"$f":"'Population 2016'!AG76/'Population 2016'!AG$6","v":4.0018501015544874E-3},{"$f":"'Population 2016'!AH76/'Population 2016'!AH$6","v":8.5343980644642485E-3},{"$f":"'Population 2016'!AI76/'Population 2016'!AI$6","v":5.4240239058831411E-3},{"$f":"'Population 2016'!AJ76/'Population 2016'!AJ$6","v":4.1725470945572808E-3},{"$f":"'Population 2016'!AK76/'Population 2016'!AK$6","v":7.8727759407967246E-4},{"$f":"'Population 2016'!AL76/'Population 2016'!AL$6","v":1.2154319891040445E-2},{"$f":"'Population 2016'!AM76/'Population 2016'!AM$6","v":9.0348950707662273E-3},{"$f":"'Population 2016'!AN76/'Population 2016'!AN$6","v":0},{"$f":"'Population 2016'!AO76/'Population 2016'!AO$6","v":0},{"$f":"'Population 2016'!AP76/'Population 2016'!AP$6","v":5.2310793300379133E-3},{"$f":"'Population 2016'!AQ76/'Population 2016'!AQ$6","v":1.1584602929270627E-2},{"$f":"'Population 2016'!AR76/'Population 2016'!AR$6","v":8.3514858704117987E-3},{"$f":"'Population 2016'!AS76/'Population 2016'!AS$6","v":3.9817422550257357E-3},{"$f":"'Population 2016'!AT76/'Population 2016'!AT$6","v":0},{"$f":"'Population 2016'!AU76/'Population 2016'!AU$6","v":0},{"$f":"'Population 2016'!AV76/'Population 2016'!AV$6","v":6.9343500536161087E-3},{"$f":"'Population 2016'!AW76/'Population 2016'!AW$6","v":7.8624722561200337E-3},{"$f":"'Population 2016'!AX76/'Population 2016'!AX$6","v":7.9251054363442559E-3},{"$f":"'Population 2016'!AY76/'Population 2016'!AY$6","v":8.0102503686950988E-3},{"$f":"'Population 2016'!AZ76/'Population 2016'!AZ$6","v":7.833714449049593E-3},{"$f":"'Population 2016'!BA76/'Population 2016'!BA$6","v":8.9255473870858484E-3},{"$f":"'Population 2016'!BB76/'Population 2016'!BB$6","v":5.7683582863438977E-3},{"$f":"'Population 2016'!BC76/'Population 2016'!BC$6","v":0},74]
[null,"Female 85-89",{"$f":"'Population 2016'!C77/'Population 2016'!C$6","v":2.5998709029620599E-3},{"$f":"'Population 2016'!D77/'Population 2016'!D$6","v":2.3539873930897392E-3},{"$f":"'Population 2016'!E77/'Population 2016'!E$6","v":1.6913114912535034E-3},{"$f":"'Population 2016'!F77/'Population 2016'!F$6","v":2.5967281225655675E-3},{"$f":"'Population 2016'!G77/'Population 2016'!G$6","v":4.8136124482256798E-3},{"$f":"'Population 2016'!H77/'Population 2016'!H$6","v":6.1234102684879889E-3},{"$f":"'Population 2016'!I77/'Population 2016'!I$6","v":2.8649121103233952E-3},{"$f":"'Population 2016'!J77/'Population 2016'!J$6","v":3.8724213194395551E-3},{"$f":"'Population 2016'!K77/'Population 2016'!K$6","v":4.1841004184100415E-3},{"$f":"'Population 2016'!L77/'Population 2016'!L$6","v":2.2570841154911951E-3},{"$f":"'Population 2016'!M77/'Population 2016'!M$6","v":2.2570841154911951E-3},{"$f":"'Population 2016'!N77/'Population 2016'!N$6","v":6.4991398197297417E-3},{"$f":"'Population 2016'!O77/'Population 2016'!O$6","v":6.545941859666002E-3},{"$f":"'Population 2016'!P77/'Population 2016'!P$6","v":1.744462652640482E-3},{"$f":"'Population 2016'!Q77/'Population 2016'!Q$6","v":8.0818965517241378E-4},{"$f":"'Population 2016'!R77/'Population 2016'!R$6","v":3.7561891753457402E-3},{"$f":"'Population 2016'!S77/'Population 2016'!S$6","v":3.7458306589926243E-3},{"$f":"'Population 2016'!T77/'Population 2016'!T$6","v":4.2901814687760758E-3},{"$f":"'Population 2016'!U77/'Population 2016'!U$6","v":0},{"$f":"'Population 2016'!V77/'Population 2016'!V$6","v":3.8355486425339365E-3},{"$f":"'Population 2016'!W77/'Population 2016'!W$6","v":5.0155440414507771E-3},{"$f":"'Population 2016'!X77/'Population 2016'!X$6","v":5.0155440414507771E-3},{"$f":"'Population 2016'!Y77/'Population 2016'!Y$6","v":3.8513888188738215E-3},{"$f":"'Population 2016'!Z77/'Population 2016'!Z$6","v":7.1699615070286889E-3},{"$f":"'Population 2016'!AA77/'Population 2016'!AA$6","v":6.2305880000249969E-3},{"$f":"'Population 2016'!AB77/'Population 2016'!AB$6","v":2.1083796877803696E-3},{"$f":"'Population 2016'!AC77/'Population 2016'!AC$6","v":6.958250497017893E-3},{"$f":"'Population 2016'!AD77/'Population 2016'!AD$6","v":3.0772417262142529E-3},{"$f":"'Population 2016'!AE77/'Population 2016'!AE$6","v":2.4533955396464696E-3},{"$f":"'Population 2016'!AF77/'Population 2016'!AF$6","v":9.9845115610133865E-3},{"$f":"'Population 2016'!AG77/'Population 2016'!AG$6","v":2.4533955396464696E-3},{"$f":"'Population 2016'!AH77/'Population 2016'!AH$6","v":4.9227498872452527E-3},{"$f":"'Population 2016'!AI77/'Population 2016'!AI$6","v":3.1807547596228295E-3},{"$f":"'Population 2016'!AJ77/'Population 2016'!AJ$6","v":2.2089955206479718E-3},{"$f":"'Population 2016'!AK77/'Population 2016'!AK$6","v":6.2982207526373799E-4},{"$f":"'Population 2016'!AL77/'Population 2016'!AL$6","v":6.7063421566885767E-3},{"$f":"'Population 2016'!AM77/'Population 2016'!AM$6","v":5.4538799414348459E-3},{"$f":"'Population 2016'!AN77/'Population 2016'!AN$6","v":0},{"$f":"'Population 2016'!AO77/'Population 2016'!AO$6","v":0},{"$f":"'Population 2016'!AP77/'Population 2016'!AP$6","v":2.4955607813024906E-3},{"$f":"'Population 2016'!AQ77/'Population 2016'!AQ$6","v":6.668138661956282E-3},{"$f":"'Population 2016'!AR77/'Population 2016'!AR$6","v":5.0128132231106008E-3},{"$f":"'Population 2016'!AS77/'Population 2016'!AS$6","v":2.8649121103233952E-3},{"$f":"'Population 2016'!AT77/'Population 2016'!AT$6","v":0},{"$f":"'Population 2016'!AU77/'Population 2016'!AU$6","v":0},{"$f":"'Population 2016'!AV77/'Population 2016'!AV$6","v":4.5990706541165259E-3},{"$f":"'Population 2016'!AW77/'Population 2016'!AW$6","v":4.209698687130935E-3},{"$f":"'Population 2016'!AX77/'Population 2016'!AX$6","v":3.5686147286462435E-3},{"$f":"'Population 2016'!AY77/'Population 2016'!AY$6","v":4.983295854706183E-3},{"$f":"'Population 2016'!AZ77/'Population 2016'!AZ$6","v":4.948549378304988E-3},{"$f":"'Population 2016'!BA77/'Population 2016'!BA$6","v":6.4949295718526485E-3},{"$f":"'Population 2016'!BB77/'Population 2016'!BB$6","v":2.5601140709054378E-3},{"$f":"'Population 2016'!BC77/'Population 2016'!BC$6","v":0},75]
[null,"Female 90+",{"$f":"'Population 2016'!C78/'Population 2016'!C$6","v":1.2730402352434914E-3},{"$f":"'Population 2016'!D78/'Population 2016'!D$6","v":1.1639159888054821E-3},{"$f":"'Population 2016'!E78/'Population 2016'!E$6","v":8.6981733835894465E-4},{"$f":"'Population 2016'!F78/'Population 2016'!F$6","v":1.6013156755820999E-3},{"$f":"'Population 2016'!G78/'Population 2016'!G$6","v":3.0784730773536326E-3},{"$f":"'Population 2016'!H78/'Population 2016'!H$6","v":3.3866572857849829E-3},{"$f":"'Population 2016'!I78/'Population 2016'!I$6","v":1.1653879770807032E-3},{"$f":"'Population 2016'!J78/'Population 2016'!J$6","v":2.3469220117815484E-3},{"$f":"'Population 2016'!K78/'Population 2016'!K$6","v":2.6626093571700264E-3},{"$f":"'Population 2016'!L78/'Population 2016'!L$6","v":8.9389469920443372E-4},{"$f":"'Population 2016'!M78/'Population 2016'!M$6","v":8.9389469920443372E-4},{"$f":"'Population 2016'!N78/'Population 2016'!N$6","v":3.514240762252055E-3},{"$f":"'Population 2016'!O78/'Population 2016'!O$6","v":3.4877328018692874E-3},{"$f":"'Population 2016'!P78/'Population 2016'!P$6","v":2.6431252312734575E-4},{"$f":"'Population 2016'!Q78/'Population 2016'!Q$6","v":2.3091133004926107E-4},{"$f":"'Population 2016'!R78/'Population 2016'!R$6","v":2.2195663308861194E-3},{"$f":"'Population 2016'!S78/'Population 2016'!S$6","v":2.1412262334410083E-3},{"$f":"'Population 2016'!T78/'Population 2016'!T$6","v":2.2841634146135888E-3},{"$f":"'Population 2016'!U78/'Population 2016'!U$6","v":0},{"$f":"'Population 2016'!V78/'Population 2016'!V$6","v":1.838235294117647E-3},{"$f":"'Population 2016'!W78/'Population 2016'!W$6","v":2.9181347150259067E-3},{"$f":"'Population 2016'!X78/'Population 2016'!X$6","v":2.9181347150259067E-3},{"$f":"'Population 2016'!Y78/'Population 2016'!Y$6","v":2.0567626153148158E-3},{"$f":"'Population 2016'!Z78/'Population 2016'!Z$6","v":3.8644877275171578E-3},{"$f":"'Population 2016'!AA78/'Population 2016'!AA$6","v":3.3546435691207809E-3},{"$f":"'Population 2016'!AB78/'Population 2016'!AB$6","v":1.0205454871702853E-3},{"$f":"'Population 2016'!AC78/'Population 2016'!AC$6","v":3.7115856718787084E-3},{"$f":"'Population 2016'!AD78/'Population 2016'!AD$6","v":1.7901261964996375E-3},{"$f":"'Population 2016'!AE78/'Population 2016'!AE$6","v":1.3272467673497296E-3},{"$f":"'Population 2016'!AF78/'Population 2016'!AF$6","v":5.0060847438875983E-3},{"$f":"'Population 2016'!AG78/'Population 2016'!AG$6","v":1.3272467673497296E-3},{"$f":"'Population 2016'!AH78/'Population 2016'!AH$6","v":2.7131064719476679E-3},{"$f":"'Population 2016'!AI78/'Population 2016'!AI$6","v":1.8331191904142096E-3},{"$f":"'Population 2016'!AJ78/'Population 2016'!AJ$6","v":1.1658587470086519E-3},{"$f":"'Population 2016'!AK78/'Population 2016'!AK$6","v":1.574555188159345E-4},{"$f":"'Population 2016'!AL78/'Population 2016'!AL$6","v":3.8047018416533427E-3},{"$f":"'Population 2016'!AM78/'Population 2016'!AM$6","v":2.8306490971205466E-3},{"$f":"'Population 2016'!AN78/'Population 2016'!AN$6","v":0},{"$f":"'Population 2016'!AO78/'Population 2016'!AO$6","v":0},{"$f":"'Population 2016'!AP78/'Population 2016'!AP$6","v":1.2957719441378317E-3},{"$f":"'Population 2016'!AQ78/'Population 2016'!AQ$6","v":3.1059100610878044E-3},{"$f":"'Population 2016'!AR78/'Population 2016'!AR$6","v":2.7271196077921578E-3},{"$f":"'Population 2016'!AS78/'Population 2016'!AS$6","v":1.1653879770807032E-3},{"$f":"'Population 2016'!AT78/'Population 2016'!AT$6","v":0},{"$f":"'Population 2016'!AU78/'Population 2016'!AU$6","v":0},{"$f":"'Population 2016'!AV78/'Population 2016'!AV$6","v":2.5735732157750506E-3},{"$f":"'Population 2016'!AW78/'Population 2016'!AW$6","v":2.555303483239011E-3},{"$f":"'Population 2016'!AX78/'Population 2016'!AX$6","v":2.0392084163692822E-3},{"$f":"'Population 2016'!AY78/'Population 2016'!AY$6","v":2.8162716003732099E-3},{"$f":"'Population 2016'!AZ78/'Population 2016'!AZ$6","v":2.7065170787480349E-3},{"$f":"'Population 2016'!BA78/'Population 2016'!BA$6","v":4.2436196282350132E-3},{"$f":"'Population 2016'!BB78/'Population 2016'!BB$6","v":1.9930001944390434E-3},{"$f":"'Population 2016'!BC78/'Population 2016'!BC$6","v":0},76]
[null,"Male 0-4",{"$f":"'Population 2016'!C79/'Population 2016'!C$6","v":0},{"$f":"'Population 2016'!D79/'Population 2016'!D$6","v":0},{"$f":"'Population 2016'!E79/'Population 2016'!E$6","v":0},{"$f":"'Population 2016'!F79/'Population 2016'!F$6","v":0},{"$f":"'Population 2016'!G79/'Population 2016'!G$6","v":0},{"$f":"'Population 2016'!H79/'Population 2016'!H$6","v":0},{"$f":"'Population 2016'!I79/'Population 2016'!I$6","v":0},{"$f":"'Population 2016'!J79/'Population 2016'!J$6","v":0},{"$f":"'Population 2016'!K79/'Population 2016'!K$6","v":0},{"$f":"'Population 2016'!L79/'Population 2016'!L$6","v":0},{"$f":"'Population 2016'!M79/'Population 2016'!M$6","v":0},{"$f":"'Population 2016'!N79/'Population 2016'!N$6","v":0},{"$f":"'Population 2016'!O79/'Population 2016'!O$6","v":0},{"$f":"'Population 2016'!P79/'Population 2016'!P$6","v":0},{"$f":"'Population 2016'!Q79/'Population 2016'!Q$6","v":0},{"$f":"'Population 2016'!R79/'Population 2016'!R$6","v":0},{"$f":"'Population 2016'!S79/'Population 2016'!S$6","v":0},{"$f":"'Population 2016'!T79/'Population 2016'!T$6","v":0},{"$f":"'Population 2016'!U79/'Population 2016'!U$6","v":0},{"$f":"'Population 2016'!V79/'Population 2016'!V$6","v":0},{"$f":"'Population 2016'!W79/'Population 2016'!W$6","v":0},{"$f":"'Population 2016'!X79/'Population 2016'!X$6","v":0},{"$f":"'Population 2016'!Y79/'Population 2016'!Y$6","v":0},{"$f":"'Population 2016'!Z79/'Population 2016'!Z$6","v":0},{"$f":"'Population 2016'!AA79/'Population 2016'!AA$6","v":0},{"$f":"'Population 2016'!AB79/'Population 2016'!AB$6","v":0},{"$f":"'Population 2016'!AC79/'Population 2016'!AC$6","v":0},{"$f":"'Population 2016'!AD79/'Population 2016'!AD$6","v":0},{"$f":"'Population 2016'!AE79/'Population 2016'!AE$6","v":0},{"$f":"'Population 2016'!AF79/'Population 2016'!AF$6","v":0},{"$f":"'Population 2016'!AG79/'Population 2016'!AG$6","v":0},{"$f":"'Population 2016'!AH79/'Population 2016'!AH$6","v":0},{"$f":"'Population 2016'!AI79/'Population 2016'!AI$6","v":0},{"$f":"'Population 2016'!AJ79/'Population 2016'!AJ$6","v":0},{"$f":"'Population 2016'!AK79/'Population 2016'!AK$6","v":0},{"$f":"'Population 2016'!AL79/'Population 2016'!AL$6","v":0},{"$f":"'Population 2016'!AM79/'Population 2016'!AM$6","v":0},{"$f":"'Population 2016'!AN79/'Population 2016'!AN$6","v":0},{"$f":"'Population 2016'!AO79/'Population 2016'!AO$6","v":0},{"$f":"'Population 2016'!AP79/'Population 2016'!AP$6","v":0},{"$f":"'Population 2016'!AQ79/'Population 2016'!AQ$6","v":0},{"$f":"'Population 2016'!AR79/'Population 2016'!AR$6","v":0},{"$f":"'Population 2016'!AS79/'Population 2016'!AS$6","v":0},{"$f":"'Population 2016'!AT79/'Population 2016'!AT$6","v":0},{"$f":"'Population 2016'!AU79/'Population 2016'!AU$6","v":0},{"$f":"'Population 2016'!AV79/'Population 2016'!AV$6","v":0},{"$f":"'Population 2016'!AW79/'Population 2016'!AW$6","v":0},{"$f":"'Population 2016'!AX79/'Population 2016'!AX$6","v":0},{"$f":"'Population 2016'!AY79/'Population 2016'!AY$6","v":0},{"$f":"'Population 2016'!AZ79/'Population 2016'!AZ$6","v":0},{"$f":"'Population 2016'!BA79/'Population 2016'!BA$6","v":0},{"$f":"'Population 2016'!BB79/'Population 2016'!BB$6","v":0},{"$f":"'Population 2016'!BC79/'Population 2016'!BC$6","v":0},77]
[null,"Male 5-9",{"$f":"'Population 2016'!C80/'Population 2016'!C$6","v":0},{"$f":"'Population 2016'!D80/'Population 2016'!D$6","v":0},{"$f":"'Population 2016'!E80/'Population 2016'!E$6","v":0},{"$f":"'Population 2016'!F80/'Population 2016'!F$6","v":0},{"$f":"'Population 2016'!G80/'Population 2016'!G$6","v":0},{"$f":"'Population 2016'!H80/'Population 2016'!H$6","v":0},{"$f":"'Population 2016'!I80/'Population 2016'!I$6","v":0},{"$f":"'Population 2016'!J80/'Population 2016'!J$6","v":0},{"$f":"'Population 2016'!K80/'Population 2016'!K$6","v":0},{"$f":"'Population 2016'!L80/'Population 2016'!L$6","v":0},{"$f":"'Population 2016'!M80/'Population 2016'!M$6","v":0},{"$f":"'Population 2016'!N80/'Population 2016'!N$6","v":0},{"$f":"'Population 2016'!O80/'Population 2016'!O$6","v":0},{"$f":"'Population 2016'!P80/'Population 2016'!P$6","v":0},{"$f":"'Population 2016'!Q80/'Population 2016'!Q$6","v":0},{"$f":"'Population 2016'!R80/'Population 2016'!R$6","v":0},{"$f":"'Population 2016'!S80/'Population 2016'!S$6","v":0},{"$f":"'Population 2016'!T80/'Population 2016'!T$6","v":0},{"$f":"'Population 2016'!U80/'Population 2016'!U$6","v":0},{"$f":"'Population 2016'!V80/'Population 2016'!V$6","v":0},{"$f":"'Population 2016'!W80/'Population 2016'!W$6","v":0},{"$f":"'Population 2016'!X80/'Population 2016'!X$6","v":0},{"$f":"'Population 2016'!Y80/'Population 2016'!Y$6","v":0},{"$f":"'Population 2016'!Z80/'Population 2016'!Z$6","v":0},{"$f":"'Population 2016'!AA80/'Population 2016'!AA$6","v":0},{"$f":"'Population 2016'!AB80/'Population 2016'!AB$6","v":0},{"$f":"'Population 2016'!AC80/'Population 2016'!AC$6","v":0},{"$f":"'Population 2016'!AD80/'Population 2016'!AD$6","v":0},{"$f":"'Population 2016'!AE80/'Population 2016'!AE$6","v":0},{"$f":"'Population 2016'!AF80/'Population 2016'!AF$6","v":0},{"$f":"'Population 2016'!AG80/'Population 2016'!AG$6","v":0},{"$f":"'Population 2016'!AH80/'Population 2016'!AH$6","v":0},{"$f":"'Population 2016'!AI80/'Population 2016'!AI$6","v":0},{"$f":"'Population 2016'!AJ80/'Population 2016'!AJ$6","v":0},{"$f":"'Population 2016'!AK80/'Population 2016'!AK$6","v":0},{"$f":"'Population 2016'!AL80/'Population 2016'!AL$6","v":0},{"$f":"'Population 2016'!AM80/'Population 2016'!AM$6","v":0},{"$f":"'Population 2016'!AN80/'Population 2016'!AN$6","v":0},{"$f":"'Population 2016'!AO80/'Population 2016'!AO$6","v":0},{"$f":"'Population 2016'!AP80/'Population 2016'!AP$6","v":0},{"$f":"'Population 2016'!AQ80/'Population 2016'!AQ$6","v":0},{"$f":"'Population 2016'!AR80/'Population 2016'!AR$6","v":0},{"$f":"'Population 2016'!AS80/'Population 2016'!AS$6","v":0},{"$f":"'Population 2016'!AT80/'Population 2016'!AT$6","v":0},{"$f":"'Population 2016'!AU80/'Population 2016'!AU$6","v":0},{"$f":"'Population 2016'!AV80/'Population 2016'!AV$6","v":0},{"$f":"'Population 2016'!AW80/'Population 2016'!AW$6","v":0},{"$f":"'Population 2016'!AX80/'Population 2016'!AX$6","v":0},{"$f":"'Population 2016'!AY80/'Population 2016'!AY$6","v":0},{"$f":"'Population 2016'!AZ80/'Population 2016'!AZ$6","v":0},{"$f":"'Population 2016'!BA80/'Population 2016'!BA$6","v":0},{"$f":"'Population 2016'!BB80/'Population 2016'!BB$6","v":0},{"$f":"'Population 2016'!BC80/'Population 2016'!BC$6","v":0},78]
[null,"Male 10-15",{"$f":"'Population 2016'!C81/'Population 2016'!C$6","v":0},{"$f":"'Population 2016'!D81/'Population 2016'!D$6","v":0},{"$f":"'Population 2016'!E81/'Population 2016'!E$6","v":0},{"$f":"'Population 2016'!F81/'Population 2016'!F$6","v":0},{"$f":"'Population 2016'!G81/'Population 2016'!G$6","v":0},{"$f":"'Population 2016'!H81/'Population 2016'!H$6","v":0},{"$f":"'Population 2016'!I81/'Population 2016'!I$6","v":0},{"$f":"'Population 2016'!J81/'Population 2016'!J$6","v":0},{"$f":"'Population 2016'!K81/'Population 2016'!K$6","v":0},{"$f":"'Population 2016'!L81/'Population 2016'!L$6","v":0},{"$f":"'Population 2016'!M81/'Population 2016'!M$6","v":0},{"$f":"'Population 2016'!N81/'Population 2016'!N$6","v":0},{"$f":"'Population 2016'!O81/'Population 2016'!O$6","v":0},{"$f":"'Population 2016'!P81/'Population 2016'!P$6","v":0},{"$f":"'Population 2016'!Q81/'Population 2016'!Q$6","v":0},{"$f":"'Population 2016'!R81/'Population 2016'!R$6","v":0},{"$f":"'Population 2016'!S81/'Population 2016'!S$6","v":0},{"$f":"'Population 2016'!T81/'Population 2016'!T$6","v":0},{"$f":"'Population 2016'!U81/'Population 2016'!U$6","v":0},{"$f":"'Population 2016'!V81/'Population 2016'!V$6","v":0},{"$f":"'Population 2016'!W81/'Population 2016'!W$6","v":0},{"$f":"'Population 2016'!X81/'Population 2016'!X$6","v":0},{"$f":"'Population 2016'!Y81/'Population 2016'!Y$6","v":0},{"$f":"'Population 2016'!Z81/'Population 2016'!Z$6","v":0},{"$f":"'Population 2016'!AA81/'Population 2016'!AA$6","v":0},{"$f":"'Population 2016'!AB81/'Population 2016'!AB$6","v":0},{"$f":"'Population 2016'!AC81/'Population 2016'!AC$6","v":0},{"$f":"'Population 2016'!AD81/'Population 2016'!AD$6","v":0},{"$f":"'Population 2016'!AE81/'Population 2016'!AE$6","v":0},{"$f":"'Population 2016'!AF81/'Population 2016'!AF$6","v":0},{"$f":"'Population 2016'!AG81/'Population 2016'!AG$6","v":0},{"$f":"'Population 2016'!AH81/'Population 2016'!AH$6","v":0},{"$f":"'Population 2016'!AI81/'Population 2016'!AI$6","v":0},{"$f":"'Population 2016'!AJ81/'Population 2016'!AJ$6","v":0},{"$f":"'Population 2016'!AK81/'Population 2016'!AK$6","v":0},{"$f":"'Population 2016'!AL81/'Population 2016'!AL$6","v":0},{"$f":"'Population 2016'!AM81/'Population 2016'!AM$6","v":0},{"$f":"'Population 2016'!AN81/'Population 2016'!AN$6","v":0},{"$f":"'Population 2016'!AO81/'Population 2016'!AO$6","v":0},{"$f":"'Population 2016'!AP81/'Population 2016'!AP$6","v":0},{"$f":"'Population 2016'!AQ81/'Population 2016'!AQ$6","v":0},{"$f":"'Population 2016'!AR81/'Population 2016'!AR$6","v":0},{"$f":"'Population 2016'!AS81/'Population 2016'!AS$6","v":0},{"$f":"'Population 2016'!AT81/'Population 2016'!AT$6","v":0},{"$f":"'Population 2016'!AU81/'Population 2016'!AU$6","v":0},{"$f":"'Population 2016'!AV81/'Population 2016'!AV$6","v":0},{"$f":"'Population 2016'!AW81/'Population 2016'!AW$6","v":0},{"$f":"'Population 2016'!AX81/'Population 2016'!AX$6","v":0},{"$f":"'Population 2016'!AY81/'Population 2016'!AY$6","v":0},{"$f":"'Population 2016'!AZ81/'Population 2016'!AZ$6","v":0},{"$f":"'Population 2016'!BA81/'Population 2016'!BA$6","v":0},{"$f":"'Population 2016'!BB81/'Population 2016'!BB$6","v":0},{"$f":"'Population 2016'!BC81/'Population 2016'!BC$6","v":0},79]
[null,"Male 16-19",{"$f":"'Population 2016'!C82/'Population 2016'!C$6","v":6.7596643477013559E-3},{"$f":"'Population 2016'!D82/'Population 2016'!D$6","v":6.0942118065545475E-3},{"$f":"'Population 2016'!E82/'Population 2016'!E$6","v":4.300763506330337E-3},{"$f":"'Population 2016'!F82/'Population 2016'!F$6","v":1.0430191292305029E-2},{"$f":"'Population 2016'!G82/'Population 2016'!G$6","v":9.9630583230717572E-3},{"$f":"'Population 2016'!H82/'Population 2016'!H$6","v":1.6343006373832111E-2},{"$f":"'Population 2016'!I82/'Population 2016'!I$6","v":8.5947363309701857E-3},{"$f":"'Population 2016'!J82/'Population 2016'!J$6","v":1.6287638761763947E-2},{"$f":"'Population 2016'!K82/'Population 2016'!K$6","v":1.6260935717002663E-2},{"$f":"'Population 2016'!L82/'Population 2016'!L$6","v":6.5701260391525882E-3},{"$f":"'Population 2016'!M82/'Population 2016'!M$6","v":6.5701260391525882E-3},{"$f":"'Population 2016'!N82/'Population 2016'!N$6","v":1.7218309341410696E-2},{"$f":"'Population 2016'!O82/'Population 2016'!O$6","v":1.615009277712872E-2},{"$f":"'Population 2016'!P82/'Population 2016'!P$6","v":7.1893006290638054E-3},{"$f":"'Population 2016'!Q82/'Population 2016'!Q$6","v":3.3866995073891628E-3},{"$f":"'Population 2016'!R82/'Population 2016'!R$6","v":1.3914973535939901E-2},{"$f":"'Population 2016'!S82/'Population 2016'!S$6","v":1.1818832268858048E-2},{"$f":"'Population 2016'!T82/'Population 2016'!T$6","v":1.2651399576881906E-2},{"$f":"'Population 2016'!U82/'Population 2016'!U$6","v":0},{"$f":"'Population 2016'!V82/'Population 2016'!V$6","v":8.8730203619909499E-3},{"$f":"'Population 2016'!W82/'Population 2016'!W$6","v":1.4789637305699483E-2},{"$f":"'Population 2016'!X82/'Population 2016'!X$6","v":1.4789637305699483E-2},{"$f":"'Population 2016'!Y82/'Population 2016'!Y$6","v":1.2058274940767253E-2},{"$f":"'Population 2016'!Z82/'Population 2016'!Z$6","v":2.0650096764099152E-2},{"$f":"'Population 2016'!AA82/'Population 2016'!AA$6","v":1.7466894142497361E-2},{"$f":"'Population 2016'!AB82/'Population 2016'!AB$6","v":5.4840301453436208E-3},{"$f":"'Population 2016'!AC82/'Population 2016'!AC$6","v":1.9018958655114323E-2},{"$f":"'Population 2016'!AD82/'Population 2016'!AD$6","v":8.6991256491056775E-3},{"$f":"'Population 2016'!AE82/'Population 2016'!AE$6","v":8.2450177971725627E-3},{"$f":"'Population 2016'!AF82/'Population 2016'!AF$6","v":2.1407235313640891E-2},{"$f":"'Population 2016'!AG82/'Population 2016'!AG$6","v":8.2450177971725627E-3},{"$f":"'Population 2016'!AH82/'Population 2016'!AH$6","v":1.4677346609840604E-2},{"$f":"'Population 2016'!AI82/'Population 2016'!AI$6","v":1.0596935593901321E-2},{"$f":"'Population 2016'!AJ82/'Population 2016'!AJ$6","v":6.3508621218629196E-3},{"$f":"'Population 2016'!AK82/'Population 2016'!AK$6","v":1.8107384663832468E-3},{"$f":"'Population 2016'!AL82/'Population 2016'!AL$6","v":2.0281873630603423E-2},{"$f":"'Population 2016'!AM82/'Population 2016'!AM$6","v":1.6654465592972182E-2},{"$f":"'Population 2016'!AN82/'Population 2016'!AN$6","v":0},{"$f":"'Population 2016'!AO82/'Population 2016'!AO$6","v":0},{"$f":"'Population 2016'!AP82/'Population 2016'!AP$6","v":8.2065556462062681E-3},{"$f":"'Population 2016'!AQ82/'Population 2016'!AQ$6","v":1.5720909693088984E-2},{"$f":"'Population 2016'!AR82/'Population 2016'!AR$6","v":1.4333062411191986E-2},{"$f":"'Population 2016'!AS82/'Population 2016'!AS$6","v":8.5947363309701857E-3},{"$f":"'Population 2016'!AT82/'Population 2016'!AT$6","v":0},{"$f":"'Population 2016'!AU82/'Population 2016'!AU$6","v":0},{"$f":"'Population 2016'!AV82/'Population 2016'!AV$6","v":1.0270463481472656E-2},{"$f":"'Population 2016'!AW82/'Population 2016'!AW$6","v":1.2023030491650218E-2},{"$f":"'Population 2016'!AX82/'Population 2016'!AX$6","v":1.6313667330954258E-2},{"$f":"'Population 2016'!AY82/'Population 2016'!AY$6","v":1.4476925921307782E-2},{"$f":"'Population 2016'!AZ82/'Population 2016'!AZ$6","v":1.4139988566528513E-2},{"$f":"'Population 2016'!BA82/'Population 2016'!BA$6","v":1.6715478253939792E-2},{"$f":"'Population 2016'!BB82/'Population 2016'!BB$6","v":1.192559465940761E-2},{"$f":"'Population 2016'!BC82/'Population 2016'!BC$6","v":0},80]
[null,"Male 20-24",{"$f":"'Population 2016'!C83/'Population 2016'!C$6","v":1.1044968801549164E-2},{"$f":"'Population 2016'!D83/'Population 2016'!D$6","v":1.1089896163000549E-2},{"$f":"'Population 2016'!E83/'Population 2016'!E$6","v":1.1210979027737508E-2},{"$f":"'Population 2016'!F83/'Population 2016'!F$6","v":1.4714792694538216E-2},{"$f":"'Population 2016'!G83/'Population 2016'!G$6","v":1.5616254337848428E-2},{"$f":"'Population 2016'!H83/'Population 2016'!H$6","v":2.2907636077439973E-2},{"$f":"'Population 2016'!I83/'Population 2016'!I$6","v":1.0245702631834514E-2},{"$f":"'Population 2016'!J83/'Population 2016'!J$6","v":2.0817198244502334E-2},{"$f":"'Population 2016'!K83/'Population 2016'!K$6","v":2.0302396348421452E-2},{"$f":"'Population 2016'!L83/'Population 2016'!L$6","v":9.8104943237686607E-3},{"$f":"'Population 2016'!M83/'Population 2016'!M$6","v":9.8104943237686607E-3},{"$f":"'Population 2016'!N83/'Population 2016'!N$6","v":2.8422708759134819E-2},{"$f":"'Population 2016'!O83/'Population 2016'!O$6","v":2.231805374201086E-2},{"$f":"'Population 2016'!P83/'Population 2016'!P$6","v":8.9337632817042874E-3},{"$f":"'Population 2016'!Q83/'Population 2016'!Q$6","v":4.5797413793103444E-3},{"$f":"'Population 2016'!R83/'Population 2016'!R$6","v":1.6561379545842581E-2},{"$f":"'Population 2016'!S83/'Population 2016'!S$6","v":1.6169677711255378E-2},{"$f":"'Population 2016'!T83/'Population 2016'!T$6","v":1.8526166735500619E-2},{"$f":"'Population 2016'!U83/'Population 2016'!U$6","v":0},{"$f":"'Population 2016'!V83/'Population 2016'!V$6","v":1.3026725113122173E-2},{"$f":"'Population 2016'!W83/'Population 2016'!W$6","v":1.9059067357512952E-2},{"$f":"'Population 2016'!X83/'Population 2016'!X$6","v":1.9059067357512952E-2},{"$f":"'Population 2016'!Y83/'Population 2016'!Y$6","v":1.6373443565055198E-2},{"$f":"'Population 2016'!Z83/'Population 2016'!Z$6","v":3.2228369350237429E-2},{"$f":"'Population 2016'!AA83/'Population 2016'!AA$6","v":2.6033483942331126E-2},{"$f":"'Population 2016'!AB83/'Population 2016'!AB$6","v":9.7792930199174597E-3},{"$f":"'Population 2016'!AC83/'Population 2016'!AC$6","v":2.9186913742593364E-2},{"$f":"'Population 2016'!AD83/'Population 2016'!AD$6","v":1.2501294512745403E-2},{"$f":"'Population 2016'!AE83/'Population 2016'!AE$6","v":1.1382146519999196E-2},{"$f":"'Population 2016'!AF83/'Population 2016'!AF$6","v":3.0479035291514547E-2},{"$f":"'Population 2016'!AG83/'Population 2016'!AG$6","v":1.1382146519999196E-2},{"$f":"'Population 2016'!AH83/'Population 2016'!AH$6","v":2.0365779895741194E-2},{"$f":"'Population 2016'!AI83/'Population 2016'!AI$6","v":1.5221585606247671E-2},{"$f":"'Population 2016'!AJ83/'Population 2016'!AJ$6","v":1.0155243296312205E-2},{"$f":"'Population 2016'!AK83/'Population 2016'!AK$6","v":1.8894662257912141E-3},{"$f":"'Population 2016'!AL83/'Population 2016'!AL$6","v":2.771362586605081E-2},{"$f":"'Population 2016'!AM83/'Population 2016'!AM$6","v":2.2858711566617864E-2},{"$f":"'Population 2016'!AN83/'Population 2016'!AN$6","v":0},{"$f":"'Population 2016'!AO83/'Population 2016'!AO$6","v":0},{"$f":"'Population 2016'!AP83/'Population 2016'!AP$6","v":1.4829390027355185E-2},{"$f":"'Population 2016'!AQ83/'Population 2016'!AQ$6","v":2.5701037756679177E-2},{"$f":"'Population 2016'!AR83/'Population 2016'!AR$6","v":2.1014364148748691E-2},{"$f":"'Population 2016'!AS83/'Population 2016'!AS$6","v":1.0245702631834514E-2},{"$f":"'Population 2016'!AT83/'Population 2016'!AT$6","v":0},{"$f":"'Population 2016'!AU83/'Population 2016'!AU$6","v":0},{"$f":"'Population 2016'!AV83/'Population 2016'!AV$6","v":1.598951507208388E-2},{"$f":"'Population 2016'!AW83/'Population 2016'!AW$6","v":1.7018976404393156E-2},{"$f":"'Population 2016'!AX83/'Population 2016'!AX$6","v":2.1318997080224313E-2},{"$f":"'Population 2016'!AY83/'Population 2016'!AY$6","v":2.0986597986903263E-2},{"$f":"'Population 2016'!AZ83/'Population 2016'!AZ$6","v":2.3063455766757182E-2},{"$f":"'Population 2016'!BA83/'Population 2016'!BA$6","v":2.3608869762715916E-2},{"$f":"'Population 2016'!BB83/'Population 2016'!BB$6","v":1.6025017823578975E-2},{"$f":"'Population 2016'!BC83/'Population 2016'!BC$6","v":0},81]
[null,"Male 25-29",{"$f":"'Population 2016'!C84/'Population 2016'!C$6","v":1.8539769059743239E-2},{"$f":"'Population 2016'!D84/'Population 2016'!D$6","v":1.6961786937985508E-2},{"$f":"'Population 2016'!E84/'Population 2016'!E$6","v":1.2708997777133468E-2},{"$f":"'Population 2016'!F84/'Population 2016'!F$6","v":1.3589543841426469E-2},{"$f":"'Population 2016'!G84/'Population 2016'!G$6","v":1.2593753498264861E-2},{"$f":"'Population 2016'!H84/'Population 2016'!H$6","v":2.2055009331194812E-2},{"$f":"'Population 2016'!I84/'Population 2016'!I$6","v":7.6721375157812952E-3},{"$f":"'Population 2016'!J84/'Population 2016'!J$6","v":2.0300875401910393E-2},{"$f":"'Population 2016'!K84/'Population 2016'!K$6","v":1.6451122099657666E-2},{"$f":"'Population 2016'!L84/'Population 2016'!L$6","v":1.1084294270134978E-2},{"$f":"'Population 2016'!M84/'Population 2016'!M$6","v":1.1084294270134978E-2},{"$f":"'Population 2016'!N84/'Population 2016'!N$6","v":3.9921186901733595E-2},{"$f":"'Population 2016'!O84/'Population 2016'!O$6","v":2.202597759604151E-2},{"$f":"'Population 2016'!P84/'Population 2016'!P$6","v":8.6165882539514724E-3},{"$f":"'Population 2016'!Q84/'Population 2016'!Q$6","v":4.0409482758620692E-3},{"$f":"'Population 2016'!R84/'Population 2016'!R$6","v":1.6732115417449206E-2},{"$f":"'Population 2016'!S84/'Population 2016'!S$6","v":1.9226317616978295E-2},{"$f":"'Population 2016'!T84/'Population 2016'!T$6","v":2.8109538700134017E-2},{"$f":"'Population 2016'!U84/'Population 2016'!U$6","v":0},{"$f":"'Population 2016'!V84/'Population 2016'!V$6","v":1.4705882352941176E-2},{"$f":"'Population 2016'!W84/'Population 2016'!W$6","v":2.0236269430051815E-2},{"$f":"'Population 2016'!X84/'Population 2016'!X$6","v":2.0236269430051815E-2},{"$f":"'Population 2016'!Y84/'Population 2016'!Y$6","v":1.7109441951908052E-2},{"$f":"'Population 2016'!Z84/'Population 2016'!Z$6","v":4.1090563297696191E-2},{"$f":"'Population 2016'!AA84/'Population 2016'!AA$6","v":2.9741839929507491E-2},{"$f":"'Population 2016'!AB84/'Population 2016'!AB$6","v":1.4680154315449489E-2},{"$f":"'Population 2016'!AC84/'Population 2016'!AC$6","v":3.5460427260312878E-2},{"$f":"'Population 2016'!AD84/'Population 2016'!AD$6","v":1.2161022591096712E-2},{"$f":"'Population 2016'!AE84/'Population 2016'!AE$6","v":1.2005550304663463E-2},{"$f":"'Population 2016'!AF84/'Population 2016'!AF$6","v":3.0727956632370837E-2},{"$f":"'Population 2016'!AG84/'Population 2016'!AG$6","v":1.2005550304663463E-2},{"$f":"'Population 2016'!AH84/'Population 2016'!AH$6","v":1.9463741919243126E-2},{"$f":"'Population 2016'!AI84/'Population 2016'!AI$6","v":1.9712309102399378E-2},{"$f":"'Population 2016'!AJ84/'Population 2016'!AJ$6","v":7.8235258022949002E-3},{"$f":"'Population 2016'!AK84/'Population 2016'!AK$6","v":9.4473311289560704E-4},{"$f":"'Population 2016'!AL84/'Population 2016'!AL$6","v":2.5270918457985434E-2},{"$f":"'Population 2016'!AM84/'Population 2016'!AM$6","v":2.1803318692044899E-2},{"$f":"'Population 2016'!AN84/'Population 2016'!AN$6","v":0},{"$f":"'Population 2016'!AO84/'Population 2016'!AO$6","v":0},{"$f":"'Population 2016'!AP84/'Population 2016'!AP$6","v":2.1260258194557759E-2},{"$f":"'Population 2016'!AQ84/'Population 2016'!AQ$6","v":3.0381982777655112E-2},{"$f":"'Population 2016'!AR84/'Population 2016'!AR$6","v":2.4077781407657185E-2},{"$f":"'Population 2016'!AS84/'Population 2016'!AS$6","v":7.6721375157812952E-3},{"$f":"'Population 2016'!AT84/'Population 2016'!AT$6","v":0},{"$f":"'Population 2016'!AU84/'Population 2016'!AU$6","v":0},{"$f":"'Population 2016'!AV84/'Population 2016'!AV$6","v":1.6918860955558203E-2},{"$f":"'Population 2016'!AW84/'Population 2016'!AW$6","v":1.6322820006715862E-2},{"$f":"'Population 2016'!AX84/'Population 2016'!AX$6","v":2.4053390183992215E-2},{"$f":"'Population 2016'!AY84/'Population 2016'!AY$6","v":2.5423838126727924E-2},{"$f":"'Population 2016'!AZ84/'Population 2016'!AZ$6","v":3.1013291410604545E-2},{"$f":"'Population 2016'!BA84/'Population 2016'!BA$6","v":2.3310023310023312E-2},{"$f":"'Population 2016'!BB84/'Population 2016'!BB$6","v":1.6446302417525441E-2},{"$f":"'Population 2016'!BC84/'Population 2016'!BC$6","v":0},82]
[null,"Male 30-34",{"$f":"'Population 2016'!C85/'Population 2016'!C$6","v":1.5545434985297282E-2},{"$f":"'Population 2016'!D85/'Population 2016'!D$6","v":1.4908586822901682E-2},{"$f":"'Population 2016'!E85/'Population 2016'!E$6","v":1.3192229631777326E-2},{"$f":"'Population 2016'!F85/'Population 2016'!F$6","v":1.116593092703194E-2},{"$f":"'Population 2016'!G85/'Population 2016'!G$6","v":9.8511138475316246E-3},{"$f":"'Population 2016'!H85/'Population 2016'!H$6","v":1.9443467269269068E-2},{"$f":"'Population 2016'!I85/'Population 2016'!I$6","v":8.4490628338350984E-3},{"$f":"'Population 2016'!J85/'Population 2016'!J$6","v":1.7813138069421953E-2},{"$f":"'Population 2016'!K85/'Population 2016'!K$6","v":1.7259414225941423E-2},{"$f":"'Population 2016'!L85/'Population 2016'!L$6","v":7.7321891481183513E-3},{"$f":"'Population 2016'!M85/'Population 2016'!M$6","v":7.7321891481183513E-3},{"$f":"'Population 2016'!N85/'Population 2016'!N$6","v":3.1319384199150112E-2},{"$f":"'Population 2016'!O85/'Population 2016'!O$6","v":1.917393993539963E-2},{"$f":"'Population 2016'!P85/'Population 2016'!P$6","v":7.0835756198128668E-3},{"$f":"'Population 2016'!Q85/'Population 2016'!Q$6","v":4.2333743842364532E-3},{"$f":"'Population 2016'!R85/'Population 2016'!R$6","v":1.570770018780946E-2},{"$f":"'Population 2016'!S85/'Population 2016'!S$6","v":1.7411273266764171E-2},{"$f":"'Population 2016'!T85/'Population 2016'!T$6","v":2.4282932832109774E-2},{"$f":"'Population 2016'!U85/'Population 2016'!U$6","v":0},{"$f":"'Population 2016'!V85/'Population 2016'!V$6","v":1.35039592760181E-2},{"$f":"'Population 2016'!W85/'Population 2016'!W$6","v":1.8959585492227978E-2},{"$f":"'Population 2016'!X85/'Population 2016'!X$6","v":1.8959585492227978E-2},{"$f":"'Population 2016'!Y85/'Population 2016'!Y$6","v":1.5355144427080707E-2},{"$f":"'Population 2016'!Z85/'Population 2016'!Z$6","v":3.5980446664296936E-2},{"$f":"'Population 2016'!AA85/'Population 2016'!AA$6","v":2.7014629695594844E-2},{"$f":"'Population 2016'!AB85/'Population 2016'!AB$6","v":1.2885788623721514E-2},{"$f":"'Population 2016'!AC85/'Population 2016'!AC$6","v":3.1692428598662427E-2},{"$f":"'Population 2016'!AD85/'Population 2016'!AD$6","v":1.1776367375319929E-2},{"$f":"'Population 2016'!AE85/'Population 2016'!AE$6","v":1.2468075693285337E-2},{"$f":"'Population 2016'!AF85/'Population 2016'!AF$6","v":2.8930191392853192E-2},{"$f":"'Population 2016'!AG85/'Population 2016'!AG$6","v":1.2468075693285337E-2},{"$f":"'Population 2016'!AH85/'Population 2016'!AH$6","v":1.860715546869264E-2},{"$f":"'Population 2016'!AI85/'Population 2016'!AI$6","v":1.7402076698041745E-2},{"$f":"'Population 2016'!AJ85/'Population 2016'!AJ$6","v":8.6212186291955567E-3},{"$f":"'Population 2016'!AK85/'Population 2016'!AK$6","v":7.0854983467170528E-4},{"$f":"'Population 2016'!AL85/'Population 2016'!AL$6","v":2.2946645348492924E-2},{"$f":"'Population 2016'!AM85/'Population 2016'!AM$6","v":2.0558809175207419E-2},{"$f":"'Population 2016'!AN85/'Population 2016'!AN$6","v":0},{"$f":"'Population 2016'!AO85/'Population 2016'!AO$6","v":0},{"$f":"'Population 2016'!AP85/'Population 2016'!AP$6","v":1.4877381580841773E-2},{"$f":"'Population 2016'!AQ85/'Population 2016'!AQ$6","v":2.8571428571428571E-2},{"$f":"'Population 2016'!AR85/'Population 2016'!AR$6","v":2.1481224417357253E-2},{"$f":"'Population 2016'!AS85/'Population 2016'!AS$6","v":8.4490628338350984E-3},{"$f":"'Population 2016'!AT85/'Population 2016'!AT$6","v":0},{"$f":"'Population 2016'!AU85/'Population 2016'!AU$6","v":0},{"$f":"'Population 2016'!AV85/'Population 2016'!AV$6","v":1.4178482068390326E-2},{"$f":"'Population 2016'!AW85/'Population 2016'!AW$6","v":1.5987026920777404E-2},{"$f":"'Population 2016'!AX85/'Population 2016'!AX$6","v":1.8352875747323538E-2},{"$f":"'Population 2016'!AY85/'Population 2016'!AY$6","v":2.1433761721924353E-2},{"$f":"'Population 2016'!AZ85/'Population 2016'!AZ$6","v":2.4099614120337287E-2},{"$f":"'Population 2016'!BA85/'Population 2016'!BA$6","v":2.2792022792022793E-2},{"$f":"'Population 2016'!BB85/'Population 2016'!BB$6","v":1.4356082701406443E-2},{"$f":"'Population 2016'!BC85/'Population 2016'!BC$6","v":0},83]
[null,"Male 35-39",{"$f":"'Population 2016'!C86/'Population 2016'!C$6","v":1.4810299074804561E-2},{"$f":"'Population 2016'!D86/'Population 2016'!D$6","v":1.3509272094787226E-2},{"$f":"'Population 2016'!E86/'Population 2016'!E$6","v":1.0002899391127864E-2},{"$f":"'Population 2016'!F86/'Population 2016'!F$6","v":1.1079373322946421E-2},{"$f":"'Population 2016'!G86/'Population 2016'!G$6","v":8.3958356655099067E-3},{"$f":"'Population 2016'!H86/'Population 2016'!H$6","v":1.7374505864044789E-2},{"$f":"'Population 2016'!I86/'Population 2016'!I$6","v":9.080314654753811E-3},{"$f":"'Population 2016'!J86/'Population 2016'!J$6","v":1.5419277617404773E-2},{"$f":"'Population 2016'!K86/'Population 2016'!K$6","v":1.7211867630277673E-2},{"$f":"'Population 2016'!L86/'Population 2016'!L$6","v":6.6595155090730315E-3},{"$f":"'Population 2016'!M86/'Population 2016'!M$6","v":6.6595155090730315E-3},{"$f":"'Population 2016'!N86/'Population 2016'!N$6","v":2.2541134261641841E-2},{"$f":"'Population 2016'!O86/'Population 2016'!O$6","v":1.6287540375231942E-2},{"$f":"'Population 2016'!P86/'Population 2016'!P$6","v":7.1893006290638054E-3},{"$f":"'Population 2016'!Q86/'Population 2016'!Q$6","v":3.3097290640394087E-3},{"$f":"'Population 2016'!R86/'Population 2016'!R$6","v":1.4085709407546526E-2},{"$f":"'Population 2016'!S86/'Population 2016'!S$6","v":1.6093393238565221E-2},{"$f":"'Population 2016'!T86/'Population 2016'!T$6","v":2.2083055890360154E-2},{"$f":"'Population 2016'!U86/'Population 2016'!U$6","v":0},{"$f":"'Population 2016'!V86/'Population 2016'!V$6","v":1.2743919683257918E-2},{"$f":"'Population 2016'!W86/'Population 2016'!W$6","v":1.7600000000000001E-2},{"$f":"'Population 2016'!X86/'Population 2016'!X$6","v":1.7600000000000001E-2},{"$f":"'Population 2016'!Y86/'Population 2016'!Y$6","v":1.3893229823057922E-2},{"$f":"'Population 2016'!Z86/'Population 2016'!Z$6","v":2.9348232270295396E-2},{"$f":"'Population 2016'!AA86/'Population 2016'!AA$6","v":2.3136291768999544E-2},{"$f":"'Population 2016'!AB86/'Population 2016'!AB$6","v":1.1876457922124529E-2},{"$f":"'Population 2016'!AC86/'Population 2016'!AC$6","v":2.5984990254169699E-2},{"$f":"'Population 2016'!AD86/'Population 2016'!AD$6","v":9.0541920021303974E-3},{"$f":"'Population 2016'!AE86/'Population 2016'!AE$6","v":9.290727371448107E-3},{"$f":"'Population 2016'!AF86/'Population 2016'!AF$6","v":2.2983737139064056E-2},{"$f":"'Population 2016'!AG86/'Population 2016'!AG$6","v":9.290727371448107E-3},{"$f":"'Population 2016'!AH86/'Population 2016'!AH$6","v":1.801628563137414E-2},{"$f":"'Population 2016'!AI86/'Population 2016'!AI$6","v":1.5937255427162809E-2},{"$f":"'Population 2016'!AJ86/'Population 2016'!AJ$6","v":7.3019574154752406E-3},{"$f":"'Population 2016'!AK86/'Population 2016'!AK$6","v":2.0469217446071487E-3},{"$f":"'Population 2016'!AL86/'Population 2016'!AL$6","v":2.0489133653105941E-2},{"$f":"'Population 2016'!AM86/'Population 2016'!AM$6","v":1.9363103953147876E-2},{"$f":"'Population 2016'!AN86/'Population 2016'!AN$6","v":0},{"$f":"'Population 2016'!AO86/'Population 2016'!AO$6","v":0},{"$f":"'Population 2016'!AP86/'Population 2016'!AP$6","v":1.463742381340884E-2},{"$f":"'Population 2016'!AQ86/'Population 2016'!AQ$6","v":2.369912416280268E-2},{"$f":"'Population 2016'!AR86/'Population 2016'!AR$6","v":1.8642759200708091E-2},{"$f":"'Population 2016'!AS86/'Population 2016'!AS$6","v":9.080314654753811E-3},{"$f":"'Population 2016'!AT86/'Population 2016'!AT$6","v":0},{"$f":"'Population 2016'!AU86/'Population 2016'!AU$6","v":0},{"$f":"'Population 2016'!AV86/'Population 2016'!AV$6","v":1.3868700107232217E-2},{"$f":"'Population 2016'!AW86/'Population 2016'!AW$6","v":1.6208158952980778E-2},{"$f":"'Population 2016'!AX86/'Population 2016'!AX$6","v":1.3671965518839506E-2},{"$f":"'Population 2016'!AY86/'Population 2016'!AY$6","v":1.8131629524845535E-2},{"$f":"'Population 2016'!AZ86/'Population 2016'!AZ$6","v":1.8704444762040875E-2},{"$f":"'Population 2016'!BA86/'Population 2016'!BA$6","v":1.9046480584942124E-2},{"$f":"'Population 2016'!BB86/'Population 2016'!BB$6","v":1.399961112191328E-2},{"$f":"'Population 2016'!BC86/'Population 2016'!BC$6","v":0},84]
[null,"Male 40-44",{"$f":"'Population 2016'!C87/'Population 2016'!C$6","v":1.2102847306892348E-2},{"$f":"'Population 2016'!D87/'Population 2016'!D$6","v":1.1599926764836659E-2},{"$f":"'Population 2016'!E87/'Population 2016'!E$6","v":1.0244515318449792E-2},{"$f":"'Population 2016'!F87/'Population 2016'!F$6","v":1.0862979312732623E-2},{"$f":"'Population 2016'!G87/'Population 2016'!G$6","v":9.3473637076010307E-3},{"$f":"'Population 2016'!H87/'Population 2016'!H$6","v":1.8972435710154605E-2},{"$f":"'Population 2016'!I87/'Population 2016'!I$6","v":9.2259881518889E-3},{"$f":"'Population 2016'!J87/'Population 2016'!J$6","v":1.4856016334577202E-2},{"$f":"'Population 2016'!K87/'Population 2016'!K$6","v":1.6736401673640166E-2},{"$f":"'Population 2016'!L87/'Population 2016'!L$6","v":7.6204523107177976E-3},{"$f":"'Population 2016'!M87/'Population 2016'!M$6","v":7.6204523107177976E-3},{"$f":"'Population 2016'!N87/'Population 2016'!N$6","v":1.9056301371877252E-2},{"$f":"'Population 2016'!O87/'Population 2016'!O$6","v":1.929420658373995E-2},{"$f":"'Population 2016'!P87/'Population 2016'!P$6","v":7.1893006290638054E-3},{"$f":"'Population 2016'!Q87/'Population 2016'!Q$6","v":5.1185344827586205E-3},{"$f":"'Population 2016'!R87/'Population 2016'!R$6","v":1.4427181150759775E-2},{"$f":"'Population 2016'!S87/'Population 2016'!S$6","v":1.5648838897715674E-2},{"$f":"'Population 2016'!T87/'Population 2016'!T$6","v":1.9975894068760904E-2},{"$f":"'Population 2016'!U87/'Population 2016'!U$6","v":0},{"$f":"'Population 2016'!V87/'Population 2016'!V$6","v":1.3327205882352941E-2},{"$f":"'Population 2016'!W87/'Population 2016'!W$6","v":1.7425906735751295E-2},{"$f":"'Population 2016'!X87/'Population 2016'!X$6","v":1.7425906735751295E-2},{"$f":"'Population 2016'!Y87/'Population 2016'!Y$6","v":1.3983969350204163E-2},{"$f":"'Population 2016'!Z87/'Population 2016'!Z$6","v":2.6370875373308907E-2},{"$f":"'Population 2016'!AA87/'Population 2016'!AA$6","v":2.1682696213527312E-2},{"$f":"'Population 2016'!AB87/'Population 2016'!AB$6","v":1.0283958370715952E-2},{"$f":"'Population 2016'!AC87/'Population 2016'!AC$6","v":2.3586465551116004E-2},{"$f":"'Population 2016'!AD87/'Population 2016'!AD$6","v":1.0356101963221044E-2},{"$f":"'Population 2016'!AE87/'Population 2016'!AE$6","v":1.0718523136324331E-2},{"$f":"'Population 2016'!AF87/'Population 2016'!AF$6","v":2.3619869454585683E-2},{"$f":"'Population 2016'!AG87/'Population 2016'!AG$6","v":1.0718523136324331E-2},{"$f":"'Population 2016'!AH87/'Population 2016'!AH$6","v":1.8261024617245707E-2},{"$f":"'Population 2016'!AI87/'Population 2016'!AI$6","v":1.5305289678869325E-2},{"$f":"'Population 2016'!AJ87/'Population 2016'!AJ$6","v":8.1916917224028954E-3},{"$f":"'Population 2016'!AK87/'Population 2016'!AK$6","v":2.3618327822390174E-3},{"$f":"'Population 2016'!AL87/'Population 2016'!AL$6","v":2.2073192396518032E-2},{"$f":"'Population 2016'!AM87/'Population 2016'!AM$6","v":1.9521717911176184E-2},{"$f":"'Population 2016'!AN87/'Population 2016'!AN$6","v":0},{"$f":"'Population 2016'!AO87/'Population 2016'!AO$6","v":0},{"$f":"'Population 2016'!AP87/'Population 2016'!AP$6","v":1.2093871478619763E-2},{"$f":"'Population 2016'!AQ87/'Population 2016'!AQ$6","v":2.0725693677780231E-2},{"$f":"'Population 2016'!AR87/'Population 2016'!AR$6","v":1.7873513649162988E-2},{"$f":"'Population 2016'!AS87/'Population 2016'!AS$6","v":9.2259881518889E-3},{"$f":"'Population 2016'!AT87/'Population 2016'!AT$6","v":0},{"$f":"'Population 2016'!AU87/'Population 2016'!AU$6","v":0},{"$f":"'Population 2016'!AV87/'Population 2016'!AV$6","v":1.3535088764446562E-2},{"$f":"'Population 2016'!AW87/'Population 2016'!AW$6","v":1.6568522264719613E-2},{"$f":"'Population 2016'!AX87/'Population 2016'!AX$6","v":1.3023126477267461E-2},{"$f":"'Population 2016'!AY87/'Population 2016'!AY$6","v":1.6772939714589145E-2},{"$f":"'Population 2016'!AZ87/'Population 2016'!AZ$6","v":1.6069386880091466E-2},{"$f":"'Population 2016'!BA87/'Population 2016'!BA$6","v":1.7492479030940568E-2},{"$f":"'Population 2016'!BB87/'Population 2016'!BB$6","v":1.4372285955019768E-2},{"$f":"'Population 2016'!BC87/'Population 2016'!BC$6","v":0},85]
[null,"Male 45-49",{"$f":"'Population 2016'!C88/'Population 2016'!C$6","v":1.1224270243132755E-2},{"$f":"'Population 2016'!D88/'Population 2016'!D$6","v":1.0658331807600764E-2},{"$f":"'Population 2016'!E88/'Population 2016'!E$6","v":9.1330820527689184E-3},{"$f":"'Population 2016'!F88/'Population 2016'!F$6","v":1.198822816584437E-2},{"$f":"'Population 2016'!G88/'Population 2016'!G$6","v":1.1362364267323408E-2},{"$f":"'Population 2016'!H88/'Population 2016'!H$6","v":2.1488578975297674E-2},{"$f":"'Population 2016'!I88/'Population 2016'!I$6","v":1.2236573759347382E-2},{"$f":"'Population 2016'!J88/'Population 2016'!J$6","v":1.8305991691896079E-2},{"$f":"'Population 2016'!K88/'Population 2016'!K$6","v":2.0207303157093952E-2},{"$f":"'Population 2016'!L88/'Population 2016'!L$6","v":9.0730311969250028E-3},{"$f":"'Population 2016'!M88/'Population 2016'!M$6","v":9.0730311969250028E-3},{"$f":"'Population 2016'!N88/'Population 2016'!N$6","v":2.390860033230896E-2},{"$f":"'Population 2016'!O88/'Population 2016'!O$6","v":2.1991615696515702E-2},{"$f":"'Population 2016'!P88/'Population 2016'!P$6","v":9.7795633557117932E-3},{"$f":"'Population 2016'!Q88/'Population 2016'!Q$6","v":3.6176108374384236E-3},{"$f":"'Population 2016'!R88/'Population 2016'!R$6","v":1.5622332252006146E-2},{"$f":"'Population 2016'!S88/'Population 2016'!S$6","v":1.7416534264880733E-2},{"$f":"'Population 2016'!T88/'Population 2016'!T$6","v":1.94280319951451E-2},{"$f":"'Population 2016'!U88/'Population 2016'!U$6","v":0},{"$f":"'Population 2016'!V88/'Population 2016'!V$6","v":1.5041713800904978E-2},{"$f":"'Population 2016'!W88/'Population 2016'!W$6","v":2.1844559585492227E-2},{"$f":"'Population 2016'!X88/'Population 2016'!X$6","v":2.1844559585492227E-2},{"$f":"'Population 2016'!Y88/'Population 2016'!Y$6","v":1.6444018752835611E-2},{"$f":"'Population 2016'!Z88/'Population 2016'!Z$6","v":2.878314208372449E-2},{"$f":"'Population 2016'!AA88/'Population 2016'!AA$6","v":2.4827362092777642E-2},{"$f":"'Population 2016'!AB88/'Population 2016'!AB$6","v":9.5774268795980628E-3},{"$f":"'Population 2016'!AC88/'Population 2016'!AC$6","v":2.6895379192555042E-2},{"$f":"'Population 2016'!AD88/'Population 2016'!AD$6","v":1.0918290355510186E-2},{"$f":"'Population 2016'!AE88/'Population 2016'!AE$6","v":1.0758742735334928E-2},{"$f":"'Population 2016'!AF88/'Population 2016'!AF$6","v":3.0921562119703507E-2},{"$f":"'Population 2016'!AG88/'Population 2016'!AG$6","v":1.0758742735334928E-2},{"$f":"'Population 2016'!AH88/'Population 2016'!AH$6","v":2.1110485667036105E-2},{"$f":"'Population 2016'!AI88/'Population 2016'!AI$6","v":1.5627550358462691E-2},{"$f":"'Population 2016'!AJ88/'Population 2016'!AJ$6","v":9.4802724427808793E-3},{"$f":"'Population 2016'!AK88/'Population 2016'!AK$6","v":3.0703826169107226E-3},{"$f":"'Population 2016'!AL88/'Population 2016'!AL$6","v":2.5522591342452775E-2},{"$f":"'Population 2016'!AM88/'Population 2016'!AM$6","v":2.3102733040507566E-2},{"$f":"'Population 2016'!AN88/'Population 2016'!AN$6","v":0},{"$f":"'Population 2016'!AO88/'Population 2016'!AO$6","v":0},{"$f":"'Population 2016'!AP88/'Population 2016'!AP$6","v":1.2333829246052695E-2},{"$f":"'Population 2016'!AQ88/'Population 2016'!AQ$6","v":2.6687274600721279E-2},{"$f":"'Population 2016'!AR88/'Population 2016'!AR$6","v":2.0278465759247057E-2},{"$f":"'Population 2016'!AS88/'Population 2016'!AS$6","v":1.2236573759347382E-2},{"$f":"'Population 2016'!AT88/'Population 2016'!AT$6","v":0},{"$f":"'Population 2016'!AU88/'Population 2016'!AU$6","v":0},{"$f":"'Population 2016'!AV88/'Population 2016'!AV$6","v":1.429762897652806E-2},{"$f":"'Population 2016'!AW88/'Population 2016'!AW$6","v":1.843585942554812E-2},{"$f":"'Population 2016'!AX88/'Population 2016'!AX$6","v":1.6452704268433982E-2},{"$f":"'Population 2016'!AY88/'Population 2016'!AY$6","v":2.0616827975251207E-2},{"$f":"'Population 2016'!AZ88/'Population 2016'!AZ$6","v":1.9293983135629557E-2},{"$f":"'Population 2016'!BA88/'Population 2016'!BA$6","v":2.097902097902098E-2},{"$f":"'Population 2016'!BB88/'Population 2016'!BB$6","v":1.662453820727202E-2},{"$f":"'Population 2016'!BC88/'Population 2016'!BC$6","v":0},86]
[null,"Male 50-54",{"$f":"'Population 2016'!C89/'Population 2016'!C$6","v":1.1027038657390806E-2},{"$f":"'Population 2016'!D89/'Population 2016'!D$6","v":1.0095990374807105E-2},{"$f":"'Population 2016'!E89/'Population 2016'!E$6","v":7.5867401179085725E-3},{"$f":"'Population 2016'!F89/'Population 2016'!F$6","v":1.2637410196485762E-2},{"$f":"'Population 2016'!G89/'Population 2016'!G$6","v":1.4720698533527371E-2},{"$f":"'Population 2016'!H89/'Population 2016'!H$6","v":2.3134208219798828E-2},{"$f":"'Population 2016'!I89/'Population 2016'!I$6","v":1.2625036418374284E-2},{"$f":"'Population 2016'!J89/'Population 2016'!J$6","v":2.0206998521439132E-2},{"$f":"'Population 2016'!K89/'Population 2016'!K$6","v":2.1586154431342715E-2},{"$f":"'Population 2016'!L89/'Population 2016'!L$6","v":9.7657995888084381E-3},{"$f":"'Population 2016'!M89/'Population 2016'!M$6","v":9.7657995888084381E-3},{"$f":"'Population 2016'!N89/'Population 2016'!N$6","v":2.4482053845814526E-2},{"$f":"'Population 2016'!O89/'Population 2016'!O$6","v":2.3245825029207613E-2},{"$f":"'Population 2016'!P89/'Population 2016'!P$6","v":9.9910133742136704E-3},{"$f":"'Population 2016'!Q89/'Population 2016'!Q$6","v":5.5033866995073894E-3},{"$f":"'Population 2016'!R89/'Population 2016'!R$6","v":2.057367252859826E-2},{"$f":"'Population 2016'!S89/'Population 2016'!S$6","v":1.7177158850577131E-2},{"$f":"'Population 2016'!T89/'Population 2016'!T$6","v":2.0144467014488843E-2},{"$f":"'Population 2016'!U89/'Population 2016'!U$6","v":0},{"$f":"'Population 2016'!V89/'Population 2016'!V$6","v":1.5165441176470588E-2},{"$f":"'Population 2016'!W89/'Population 2016'!W$6","v":2.0219689119170985E-2},{"$f":"'Population 2016'!X89/'Population 2016'!X$6","v":2.0219689119170985E-2},{"$f":"'Population 2016'!Y89/'Population 2016'!Y$6","v":1.7331249684932198E-2},{"$f":"'Population 2016'!Z89/'Population 2016'!Z$6","v":2.9478871399448884E-2},{"$f":"'Population 2016'!AA89/'Population 2016'!AA$6","v":2.5609778960985395E-2},{"$f":"'Population 2016'!AB89/'Population 2016'!AB$6","v":8.9381841019199708E-3},{"$f":"'Population 2016'!AC89/'Population 2016'!AC$6","v":2.8325156691942278E-2},{"$f":"'Population 2016'!AD89/'Population 2016'!AD$6","v":1.2057461571464501E-2},{"$f":"'Population 2016'!AE89/'Population 2016'!AE$6","v":1.110060932692501E-2},{"$f":"'Population 2016'!AF89/'Population 2016'!AF$6","v":3.5540435888925768E-2},{"$f":"'Population 2016'!AG89/'Population 2016'!AG$6","v":1.110060932692501E-2},{"$f":"'Population 2016'!AH89/'Population 2016'!AH$6","v":2.0729392103321809E-2},{"$f":"'Population 2016'!AI89/'Population 2016'!AI$6","v":1.6033515110677712E-2},{"$f":"'Population 2016'!AJ89/'Population 2016'!AJ$6","v":9.3575504694115488E-3},{"$f":"'Population 2016'!AK89/'Population 2016'!AK$6","v":1.9681939851991814E-3},{"$f":"'Population 2016'!AL89/'Population 2016'!AL$6","v":2.80541244744478E-2},{"$f":"'Population 2016'!AM89/'Population 2016'!AM$6","v":2.3090531966813078E-2},{"$f":"'Population 2016'!AN89/'Population 2016'!AN$6","v":0},{"$f":"'Population 2016'!AO89/'Population 2016'!AO$6","v":0},{"$f":"'Population 2016'!AP89/'Population 2016'!AP$6","v":1.4253491385516149E-2},{"$f":"'Population 2016'!AQ89/'Population 2016'!AQ$6","v":2.6495915213071319E-2},{"$f":"'Population 2016'!AR89/'Population 2016'!AR$6","v":2.0868540965575555E-2},{"$f":"'Population 2016'!AS89/'Population 2016'!AS$6","v":1.2625036418374284E-2},{"$f":"'Population 2016'!AT89/'Population 2016'!AT$6","v":0},{"$f":"'Population 2016'!AU89/'Population 2016'!AU$6","v":0},{"$f":"'Population 2016'!AV89/'Population 2016'!AV$6","v":1.5060169188609555E-2},{"$f":"'Population 2016'!AW89/'Population 2016'!AW$6","v":1.755952137200141E-2},{"$f":"'Population 2016'!AX89/'Population 2016'!AX$6","v":1.8862677851415859E-2},{"$f":"'Population 2016'!AY89/'Population 2016'!AY$6","v":2.0178263542826678E-2},{"$f":"'Population 2016'!AZ89/'Population 2016'!AZ$6","v":2.0133628698013436E-2},{"$f":"'Population 2016'!BA89/'Population 2016'!BA$6","v":2.6756719064411374E-2},{"$f":"'Population 2016'!BB89/'Population 2016'!BB$6","v":1.6089830838032278E-2},{"$f":"'Population 2016'!BC89/'Population 2016'!BC$6","v":0},87]
[null,"Male 55-59",{"$f":"'Population 2016'!C90/'Population 2016'!C$6","v":1.0076741016997777E-2},{"$f":"'Population 2016'!D90/'Population 2016'!D$6","v":9.7298145581042553E-3},{"$f":"'Population 2016'!E90/'Population 2016'!E$6","v":8.7948197545182176E-3},{"$f":"'Population 2016'!F90/'Population 2016'!F$6","v":1.0040682073920193E-2},{"$f":"'Population 2016'!G90/'Population 2016'!G$6","v":1.1922086645024067E-2},{"$f":"'Population 2016'!H90/'Population 2016'!H$6","v":2.2532003315108188E-2},{"$f":"'Population 2016'!I90/'Population 2016'!I$6","v":9.565892978537438E-3},{"$f":"'Population 2016'!J90/'Population 2016'!J$6","v":1.9103945175901804E-2},{"$f":"'Population 2016'!K90/'Population 2016'!K$6","v":2.0349942944085205E-2},{"$f":"'Population 2016'!L90/'Population 2016'!L$6","v":8.6931259497631183E-3},{"$f":"'Population 2016'!M90/'Population 2016'!M$6","v":8.6931259497631183E-3},{"$f":"'Population 2016'!N90/'Population 2016'!N$6","v":2.3599817671190577E-2},{"$f":"'Population 2016'!O90/'Population 2016'!O$6","v":2.1716720500309258E-2},{"$f":"'Population 2016'!P90/'Population 2016'!P$6","v":9.145213300206163E-3},{"$f":"'Population 2016'!Q90/'Population 2016'!Q$6","v":4.3103448275862068E-3},{"$f":"'Population 2016'!R90/'Population 2016'!R$6","v":1.6476011610039268E-2},{"$f":"'Population 2016'!S90/'Population 2016'!S$6","v":1.4967539641620809E-2},{"$f":"'Population 2016'!T90/'Population 2016'!T$6","v":1.5879571487571961E-2},{"$f":"'Population 2016'!U90/'Population 2016'!U$6","v":0},{"$f":"'Population 2016'!V90/'Population 2016'!V$6","v":1.2849971719457013E-2},{"$f":"'Population 2016'!W90/'Population 2016'!W$6","v":2.0004145077720206E-2},{"$f":"'Population 2016'!X90/'Population 2016'!X$6","v":2.0004145077720206E-2},{"$f":"'Population 2016'!Y90/'Population 2016'!Y$6","v":1.5536623481373191E-2},{"$f":"'Population 2016'!Z90/'Population 2016'!Z$6","v":2.5793632709607446E-2},{"$f":"'Population 2016'!AA90/'Population 2016'!AA$6","v":2.2827574570201917E-2},{"$f":"'Population 2016'!AB90/'Population 2016'!AB$6","v":8.6465996770141752E-3},{"$f":"'Population 2016'!AC90/'Population 2016'!AC$6","v":2.4819770224056834E-2},{"$f":"'Population 2016'!AD90/'Population 2016'!AD$6","v":1.1051440237894457E-2},{"$f":"'Population 2016'!AE90/'Population 2016'!AE$6","v":1.073863293582963E-2},{"$f":"'Population 2016'!AF90/'Population 2016'!AF$6","v":3.1115167607036177E-2},{"$f":"'Population 2016'!AG90/'Population 2016'!AG$6","v":1.073863293582963E-2},{"$f":"'Population 2016'!AH90/'Population 2016'!AH$6","v":1.9246973103185454E-2},{"$f":"'Population 2016'!AI90/'Population 2016'!AI$6","v":1.2890427183734624E-2},{"$f":"'Population 2016'!AJ90/'Population 2016'!AJ$6","v":8.2530527090875615E-3},{"$f":"'Population 2016'!AK90/'Population 2016'!AK$6","v":2.1256495040151155E-3},{"$f":"'Population 2016'!AL90/'Population 2016'!AL$6","v":2.7535974418191507E-2},{"$f":"'Population 2016'!AM90/'Population 2016'!AM$6","v":2.0662518301610543E-2},{"$f":"'Population 2016'!AN90/'Population 2016'!AN$6","v":0},{"$f":"'Population 2016'!AO90/'Population 2016'!AO$6","v":0},{"$f":"'Population 2016'!AP90/'Population 2016'!AP$6","v":1.1182031962374621E-2},{"$f":"'Population 2016'!AQ90/'Population 2016'!AQ$6","v":2.4655921101052476E-2},{"$f":"'Population 2016'!AR90/'Population 2016'!AR$6","v":1.8793669239108194E-2},{"$f":"'Population 2016'!AS90/'Population 2016'!AS$6","v":9.565892978537438E-3},{"$f":"'Population 2016'!AT90/'Population 2016'!AT$6","v":0},{"$f":"'Population 2016'!AU90/'Population 2016'!AU$6","v":0},{"$f":"'Population 2016'!AV90/'Population 2016'!AV$6","v":1.5608244966043131E-2},{"$f":"'Population 2016'!AW90/'Population 2016'!AW$6","v":1.7346579415064824E-2},{"$f":"'Population 2016'!AX90/'Population 2016'!AX$6","v":1.7889419289057792E-2},{"$f":"'Population 2016'!AY90/'Population 2016'!AY$6","v":1.9275336770187938E-2},{"$f":"'Population 2016'!AZ90/'Population 2016'!AZ$6","v":1.8490067171644992E-2},{"$f":"'Population 2016'!BA90/'Population 2016'!BA$6","v":2.1975175821329667E-2},{"$f":"'Population 2016'!BB90/'Population 2016'!BB$6","v":1.3205651694860328E-2},{"$f":"'Population 2016'!BC90/'Population 2016'!BC$6","v":0},88]
[null,"Male 60-64",{"$f":"'Population 2016'!C91/'Population 2016'!C$6","v":9.0726529441296708E-3},{"$f":"'Population 2016'!D91/'Population 2016'!D$6","v":7.9381685978081769E-3},{"$f":"'Population 2016'!E91/'Population 2016'!E$6","v":4.8806417319029669E-3},{"$f":"'Population 2016'!F91/'Population 2016'!F$6","v":8.482645200380853E-3},{"$f":"'Population 2016'!G91/'Population 2016'!G$6","v":1.1586253218403671E-2},{"$f":"'Population 2016'!H91/'Population 2016'!H$6","v":1.9258632100502632E-2},{"$f":"'Population 2016'!I91/'Population 2016'!I$6","v":7.4779061862678452E-3},{"$f":"'Population 2016'!J91/'Population 2016'!J$6","v":1.4902954774812833E-2},{"$f":"'Population 2016'!K91/'Population 2016'!K$6","v":1.583301635602891E-2},{"$f":"'Population 2016'!L91/'Population 2016'!L$6","v":7.1958523285956914E-3},{"$f":"'Population 2016'!M91/'Population 2016'!M$6","v":7.1958523285956914E-3},{"$f":"'Population 2016'!N91/'Population 2016'!N$6","v":1.9026893499389786E-2},{"$f":"'Population 2016'!O91/'Population 2016'!O$6","v":1.7954092502233523E-2},{"$f":"'Population 2016'!P91/'Population 2016'!P$6","v":8.458000740075064E-3},{"$f":"'Population 2016'!Q91/'Population 2016'!Q$6","v":3.3482142857142855E-3},{"$f":"'Population 2016'!R91/'Population 2016'!R$6","v":1.2463718627283592E-2},{"$f":"'Population 2016'!S91/'Population 2016'!S$6","v":1.2526436515535727E-2},{"$f":"'Population 2016'!T91/'Population 2016'!T$6","v":1.3570122131099181E-2},{"$f":"'Population 2016'!U91/'Population 2016'!U$6","v":0},{"$f":"'Population 2016'!V91/'Population 2016'!V$6","v":1.1011736425339367E-2},{"$f":"'Population 2016'!W91/'Population 2016'!W$6","v":1.6729533678756476E-2},{"$f":"'Population 2016'!X91/'Population 2016'!X$6","v":1.6729533678756476E-2},{"$f":"'Population 2016'!Y91/'Population 2016'!Y$6","v":1.268336946110803E-2},{"$f":"'Population 2016'!Z91/'Population 2016'!Z$6","v":2.0786812131817919E-2},{"$f":"'Population 2016'!AA91/'Population 2016'!AA$6","v":1.8535530599873763E-2},{"$f":"'Population 2016'!AB91/'Population 2016'!AB$6","v":7.031670554458999E-3},{"$f":"'Population 2016'!AC91/'Population 2016'!AC$6","v":2.0018830266930705E-2},{"$f":"'Population 2016'!AD91/'Population 2016'!AD$6","v":9.5424082375393897E-3},{"$f":"'Population 2016'!AE91/'Population 2016'!AE$6","v":8.8080921833209331E-3},{"$f":"'Population 2016'!AF91/'Population 2016'!AF$6","v":2.6662241398384776E-2},{"$f":"'Population 2016'!AG91/'Population 2016'!AG$6","v":8.8080921833209331E-3},{"$f":"'Population 2016'!AH91/'Population 2016'!AH$6","v":1.5869575098157816E-2},{"$f":"'Population 2016'!AI91/'Population 2016'!AI$6","v":1.0839677404504117E-2},{"$f":"'Population 2016'!AJ91/'Population 2016'!AJ$6","v":7.4860403755292381E-3},{"$f":"'Population 2016'!AK91/'Population 2016'!AK$6","v":1.5745551881593449E-3},{"$f":"'Population 2016'!AL91/'Population 2016'!AL$6","v":2.3316752531533133E-2},{"$f":"'Population 2016'!AM91/'Population 2016'!AM$6","v":1.6605661298194241E-2},{"$f":"'Population 2016'!AN91/'Population 2016'!AN$6","v":0},{"$f":"'Population 2016'!AO91/'Population 2016'!AO$6","v":0},{"$f":"'Population 2016'!AP91/'Population 2016'!AP$6","v":9.3103613763977546E-3},{"$f":"'Population 2016'!AQ91/'Population 2016'!AQ$6","v":1.7605063663796276E-2},{"$f":"'Population 2016'!AR91/'Population 2016'!AR$6","v":1.5462909477715617E-2},{"$f":"'Population 2016'!AS91/'Population 2016'!AS$6","v":7.4779061862678452E-3},{"$f":"'Population 2016'!AT91/'Population 2016'!AT$6","v":0},{"$f":"'Population 2016'!AU91/'Population 2016'!AU$6","v":0},{"$f":"'Population 2016'!AV91/'Population 2016'!AV$6","v":1.4535922792803527E-2},{"$f":"'Population 2016'!AW91/'Population 2016'!AW$6","v":1.4881366759760522E-2},{"$f":"'Population 2016'!AX91/'Population 2016'!AX$6","v":1.3996385039625527E-2},{"$f":"'Population 2016'!AY91/'Population 2016'!AY$6","v":1.5917309106231483E-2},{"$f":"'Population 2016'!AZ91/'Population 2016'!AZ$6","v":1.504216092611119E-2},{"$f":"'Population 2016'!BA91/'Population 2016'!BA$6","v":1.9584404199788814E-2},{"$f":"'Population 2016'!BB91/'Population 2016'!BB$6","v":1.0515911595048286E-2},{"$f":"'Population 2016'!BC91/'Population 2016'!BC$6","v":0},89]
[null,"Male 65-69",{"$f":"'Population 2016'!C92/'Population 2016'!C$6","v":7.7996127088861798E-3},{"$f":"'Population 2016'!D92/'Population 2016'!D$6","v":7.2450500876206419E-3},{"$f":"'Population 2016'!E92/'Population 2016'!E$6","v":5.750459070261912E-3},{"$f":"'Population 2016'!F92/'Population 2016'!F$6","v":8.8721544187656889E-3},{"$f":"'Population 2016'!G92/'Population 2016'!G$6","v":9.5712526586812941E-3},{"$f":"'Population 2016'!H92/'Population 2016'!H$6","v":1.8507366575839061E-2},{"$f":"'Population 2016'!I92/'Population 2016'!I$6","v":9.7115664756725253E-3},{"$f":"'Population 2016'!J92/'Population 2016'!J$6","v":1.4550916473045601E-2},{"$f":"'Population 2016'!K92/'Population 2016'!K$6","v":1.6023202738683909E-2},{"$f":"'Population 2016'!L92/'Population 2016'!L$6","v":8.2908733351211225E-3},{"$f":"'Population 2016'!M92/'Population 2016'!M$6","v":8.2908733351211225E-3},{"$f":"'Population 2016'!N92/'Population 2016'!N$6","v":1.8085841579790912E-2},{"$f":"'Population 2016'!O92/'Population 2016'!O$6","v":1.871005429180125E-2},{"$f":"'Population 2016'!P92/'Population 2016'!P$6","v":6.7135380874345828E-3},{"$f":"'Population 2016'!Q92/'Population 2016'!Q$6","v":3.8870073891625616E-3},{"$f":"'Population 2016'!R92/'Population 2016'!R$6","v":1.161003926925047E-2},{"$f":"'Population 2016'!S92/'Population 2016'!S$6","v":1.1721503803701638E-2},{"$f":"'Population 2016'!T92/'Population 2016'!T$6","v":1.1075242534325666E-2},{"$f":"'Population 2016'!U92/'Population 2016'!U$6","v":0},{"$f":"'Population 2016'!V92/'Population 2016'!V$6","v":1.1382918552036199E-2},{"$f":"'Population 2016'!W92/'Population 2016'!W$6","v":1.6157512953367877E-2},{"$f":"'Population 2016'!X92/'Population 2016'!X$6","v":1.6157512953367877E-2},{"$f":"'Population 2016'!Y92/'Population 2016'!Y$6","v":1.2743862479205526E-2},{"$f":"'Population 2016'!Z92/'Population 2016'!Z$6","v":1.8520375146969019E-2},{"$f":"'Population 2016'!AA92/'Population 2016'!AA$6","v":1.7030690489135528E-2},{"$f":"'Population 2016'!AB92/'Population 2016'!AB$6","v":6.4260721335008073E-3},{"$f":"'Population 2016'!AC92/'Population 2016'!AC$6","v":1.7952947675979349E-2},{"$f":"'Population 2016'!AD92/'Population 2016'!AD$6","v":8.5363869039693455E-3},{"$f":"'Population 2016'!AE92/'Population 2016'!AE$6","v":8.1645785991513661E-3},{"$f":"'Population 2016'!AF92/'Population 2016'!AF$6","v":2.7049452373050117E-2},{"$f":"'Population 2016'!AG92/'Population 2016'!AG$6","v":8.1645785991513661E-3},{"$f":"'Population 2016'!AH92/'Population 2016'!AH$6","v":1.5373104583961206E-2},{"$f":"'Population 2016'!AI92/'Population 2016'!AI$6","v":9.6552647769077207E-3},{"$f":"'Population 2016'!AJ92/'Population 2016'!AJ$6","v":6.2281401484935882E-3},{"$f":"'Population 2016'!AK92/'Population 2016'!AK$6","v":1.4958274287513776E-3},{"$f":"'Population 2016'!AL92/'Population 2016'!AL$6","v":2.2058388109196424E-2},{"$f":"'Population 2016'!AM92/'Population 2016'!AM$6","v":1.6270131771595902E-2},{"$f":"'Population 2016'!AN92/'Population 2016'!AN$6","v":0},{"$f":"'Population 2016'!AO92/'Population 2016'!AO$6","v":0},{"$f":"'Population 2016'!AP92/'Population 2016'!AP$6","v":7.7266401113404038E-3},{"$f":"'Population 2016'!AQ92/'Population 2016'!AQ$6","v":1.5823949363362039E-2},{"$f":"'Population 2016'!AR92/'Population 2016'!AR$6","v":1.4450625287548622E-2},{"$f":"'Population 2016'!AS92/'Population 2016'!AS$6","v":9.7115664756725253E-3},{"$f":"'Population 2016'!AT92/'Population 2016'!AT$6","v":0},{"$f":"'Population 2016'!AU92/'Population 2016'!AU$6","v":0},{"$f":"'Population 2016'!AV92/'Population 2016'!AV$6","v":1.2510425354462052E-2},{"$f":"'Population 2016'!AW92/'Population 2016'!AW$6","v":1.4168830211549644E-2},{"$f":"'Population 2016'!AX92/'Population 2016'!AX$6","v":1.311581776892061E-2},{"$f":"'Population 2016'!AY92/'Population 2016'!AY$6","v":1.524226385240157E-2},{"$f":"'Population 2016'!AZ92/'Population 2016'!AZ$6","v":1.4256109761326283E-2},{"$f":"'Population 2016'!BA92/'Population 2016'!BA$6","v":1.627717012332397E-2},{"$f":"'Population 2016'!BB92/'Population 2016'!BB$6","v":1.1164041739581307E-2},{"$f":"'Population 2016'!BC92/'Population 2016'!BC$6","v":0},90]
[null,"Male 70-74",{"$f":"'Population 2016'!C93/'Population 2016'!C$6","v":4.5363264720648354E-3},{"$f":"'Population 2016'!D93/'Population 2016'!D$6","v":4.1848664766039809E-3},{"$f":"'Population 2016'!E93/'Population 2016'!E$6","v":3.2376534261138496E-3},{"$f":"'Population 2016'!F93/'Population 2016'!F$6","v":5.842638275772527E-3},{"$f":"'Population 2016'!G93/'Population 2016'!G$6","v":8.7316690921303026E-3},{"$f":"'Population 2016'!H93/'Population 2016'!H$6","v":1.3725501887107449E-2},{"$f":"'Population 2016'!I93/'Population 2016'!I$6","v":6.7495387005924055E-3},{"$f":"'Population 2016'!J93/'Population 2016'!J$6","v":1.044380295242789E-2},{"$f":"'Population 2016'!K93/'Population 2016'!K$6","v":1.1648915937618867E-2},{"$f":"'Population 2016'!L93/'Population 2016'!L$6","v":5.0505050505050509E-3},{"$f":"'Population 2016'!M93/'Population 2016'!M$6","v":5.0505050505050509E-3},{"$f":"'Population 2016'!N93/'Population 2016'!N$6","v":1.2865944213265892E-2},{"$f":"'Population 2016'!O93/'Population 2016'!O$6","v":1.283416947288846E-2},{"$f":"'Population 2016'!P93/'Population 2016'!P$6","v":4.6519004070412857E-3},{"$f":"'Population 2016'!Q93/'Population 2016'!Q$6","v":2.4630541871921183E-3},{"$f":"'Population 2016'!R93/'Population 2016'!R$6","v":7.4270104148881676E-3},{"$f":"'Population 2016'!S93/'Population 2016'!S$6","v":8.6201454139879421E-3},{"$f":"'Population 2016'!T93/'Population 2016'!T$6","v":7.5352106740389233E-3},{"$f":"'Population 2016'!U93/'Population 2016'!U$6","v":0},{"$f":"'Population 2016'!V93/'Population 2016'!V$6","v":7.1761877828054295E-3},{"$f":"'Population 2016'!W93/'Population 2016'!W$6","v":1.2352331606217617E-2},{"$f":"'Population 2016'!X93/'Population 2016'!X$6","v":1.2352331606217617E-2},{"$f":"'Population 2016'!Y93/'Population 2016'!Y$6","v":8.5799264001613154E-3},{"$f":"'Population 2016'!Z93/'Population 2016'!Z$6","v":1.3419372871417678E-2},{"$f":"'Population 2016'!AA93/'Population 2016'!AA$6","v":1.2272446052606911E-2},{"$f":"'Population 2016'!AB93/'Population 2016'!AB$6","v":3.7569531670554458E-3},{"$f":"'Population 2016'!AC93/'Population 2016'!AC$6","v":1.2904957729163181E-2},{"$f":"'Population 2016'!AD93/'Population 2016'!AD$6","v":6.198866746556596E-3},{"$f":"'Population 2016'!AE93/'Population 2016'!AE$6","v":5.2888772698936196E-3},{"$f":"'Population 2016'!AF93/'Population 2016'!AF$6","v":1.8641442637459895E-2},{"$f":"'Population 2016'!AG93/'Population 2016'!AG$6","v":5.2888772698936196E-3},{"$f":"'Population 2016'!AH93/'Population 2016'!AH$6","v":1.1135623857156343E-2},{"$f":"'Population 2016'!AI93/'Population 2016'!AI$6","v":6.8972155840242404E-3},{"$f":"'Population 2016'!AJ93/'Population 2016'!AJ$6","v":4.6634349880346074E-3},{"$f":"'Population 2016'!AK93/'Population 2016'!AK$6","v":1.1809163911195087E-3},{"$f":"'Population 2016'!AL93/'Population 2016'!AL$6","v":1.6921300408598329E-2},{"$f":"'Population 2016'!AM93/'Population 2016'!AM$6","v":1.1462908735968766E-2},{"$f":"'Population 2016'!AN93/'Population 2016'!AN$6","v":0},{"$f":"'Population 2016'!AO93/'Population 2016'!AO$6","v":0},{"$f":"'Population 2016'!AP93/'Population 2016'!AP$6","v":5.7109948649037767E-3},{"$f":"'Population 2016'!AQ93/'Population 2016'!AQ$6","v":1.1334363730036065E-2},{"$f":"'Population 2016'!AR93/'Population 2016'!AR$6","v":1.037605425074579E-2},{"$f":"'Population 2016'!AS93/'Population 2016'!AS$6","v":6.7495387005924055E-3},{"$f":"'Population 2016'!AT93/'Population 2016'!AT$6","v":0},{"$f":"'Population 2016'!AU93/'Population 2016'!AU$6","v":0},{"$f":"'Population 2016'!AV93/'Population 2016'!AV$6","v":9.8177052305492667E-3},{"$f":"'Population 2016'!AW93/'Population 2016'!AW$6","v":1.0696238298429963E-2},{"$f":"'Population 2016'!AX93/'Population 2016'!AX$6","v":9.269129165314919E-3},{"$f":"'Population 2016'!AY93/'Population 2016'!AY$6","v":1.1260786750194559E-2},{"$f":"'Population 2016'!AZ93/'Population 2016'!AZ$6","v":1.0084679148206373E-2},{"$f":"'Population 2016'!BA93/'Population 2016'!BA$6","v":1.1914011914011913E-2},{"$f":"'Population 2016'!BB93/'Population 2016'!BB$6","v":8.7173504439691483E-3},{"$f":"'Population 2016'!BC93/'Population 2016'!BC$6","v":0},91]
[null,"Male 75-79",{"$f":"'Population 2016'!C94/'Population 2016'!C$6","v":2.9943340744459585E-3},{"$f":"'Population 2016'!D94/'Population 2016'!D$6","v":2.9424842413621742E-3},{"$f":"'Population 2016'!E94/'Population 2016'!E$6","v":2.802744756934377E-3},{"$f":"'Population 2016'!F94/'Population 2016'!F$6","v":5.2800138492166537E-3},{"$f":"'Population 2016'!G94/'Population 2016'!G$6","v":5.037501399305944E-3},{"$f":"'Population 2016'!H94/'Population 2016'!H$6","v":1.0702552514056416E-2},{"$f":"'Population 2016'!I94/'Population 2016'!I$6","v":3.5447217636204718E-3},{"$f":"'Population 2016'!J94/'Population 2016'!J$6","v":8.355042361942313E-3},{"$f":"'Population 2016'!K94/'Population 2016'!K$6","v":8.6534804108025862E-3},{"$f":"'Population 2016'!L94/'Population 2016'!L$6","v":4.089568248860284E-3},{"$f":"'Population 2016'!M94/'Population 2016'!M$6","v":4.089568248860284E-3},{"$f":"'Population 2016'!N94/'Population 2016'!N$6","v":9.7634136658383448E-3},{"$f":"'Population 2016'!O94/'Population 2016'!O$6","v":1.0909903099443338E-2},{"$f":"'Population 2016'!P94/'Population 2016'!P$6","v":3.5417878099064334E-3},{"$f":"'Population 2016'!Q94/'Population 2016'!Q$6","v":2.3475985221674879E-3},{"$f":"'Population 2016'!R94/'Population 2016'!R$6","v":8.6221615161345393E-3},{"$f":"'Population 2016'!S94/'Population 2016'!S$6","v":6.268479255884426E-3},{"$f":"'Population 2016'!T94/'Population 2016'!T$6","v":6.1107692826378292E-3},{"$f":"'Population 2016'!U94/'Population 2016'!U$6","v":0},{"$f":"'Population 2016'!V94/'Population 2016'!V$6","v":6.1863687782805427E-3},{"$f":"'Population 2016'!W94/'Population 2016'!W$6","v":8.2901554404145074E-3},{"$f":"'Population 2016'!X94/'Population 2016'!X$6","v":8.2901554404145074E-3},{"$f":"'Population 2016'!Y94/'Population 2016'!Y$6","v":7.1180117961385288E-3},{"$f":"'Population 2016'!Z94/'Population 2016'!Z$6","v":1.0065289183383917E-2},{"$f":"'Population 2016'!AA94/'Population 2016'!AA$6","v":9.3140103863964454E-3},{"$f":"'Population 2016'!AB94/'Population 2016'!AB$6","v":2.6018302530055625E-3},{"$f":"'Population 2016'!AC94/'Population 2016'!AC$6","v":9.8547657304704061E-3},{"$f":"'Population 2016'!AD94/'Population 2016'!AD$6","v":4.1572352166644472E-3},{"$f":"'Population 2016'!AE94/'Population 2016'!AE$6","v":3.8409717055120961E-3},{"$f":"'Population 2016'!AF94/'Population 2016'!AF$6","v":1.3994910941475827E-2},{"$f":"'Population 2016'!AG94/'Population 2016'!AG$6","v":3.8409717055120961E-3},{"$f":"'Population 2016'!AH94/'Population 2016'!AH$6","v":8.3421031469937314E-3},{"$f":"'Population 2016'!AI94/'Population 2016'!AI$6","v":5.4826167567182983E-3},{"$f":"'Population 2016'!AJ94/'Population 2016'!AJ$6","v":3.5589372277106215E-3},{"$f":"'Population 2016'!AK94/'Population 2016'!AK$6","v":5.510943158557707E-4},{"$f":"'Population 2016'!AL94/'Population 2016'!AL$6","v":1.2613252798010304E-2},{"$f":"'Population 2016'!AM94/'Population 2016'!AM$6","v":9.016593460224499E-3},{"$f":"'Population 2016'!AN94/'Population 2016'!AN$6","v":0},{"$f":"'Population 2016'!AO94/'Population 2016'!AO$6","v":0},{"$f":"'Population 2016'!AP94/'Population 2016'!AP$6","v":4.6071891347122911E-3},{"$f":"'Population 2016'!AQ94/'Population 2016'!AQ$6","v":9.9948480164863476E-3},{"$f":"'Population 2016'!AR94/'Population 2016'!AR$6","v":7.8642781808953548E-3},{"$f":"'Population 2016'!AS94/'Population 2016'!AS$6","v":3.5447217636204718E-3},{"$f":"'Population 2016'!AT94/'Population 2016'!AT$6","v":0},{"$f":"'Population 2016'!AU94/'Population 2016'!AU$6","v":0},{"$f":"'Population 2016'!AV94/'Population 2016'!AV$6","v":7.3394495412844041E-3},{"$f":"'Population 2016'!AW94/'Population 2016'!AW$6","v":7.4365883422468654E-3},{"$f":"'Population 2016'!AX94/'Population 2016'!AX$6","v":8.0641423738239786E-3},{"$f":"'Population 2016'!AY94/'Population 2016'!AY$6","v":8.091943743362414E-3},{"$f":"'Population 2016'!AZ94/'Population 2016'!AZ$6","v":7.878376447048736E-3},{"$f":"'Population 2016'!BA94/'Population 2016'!BA$6","v":7.9692387384695078E-3},{"$f":"'Population 2016'!BB94/'Population 2016'!BB$6","v":6.6109274742368268E-3},{"$f":"'Population 2016'!BC94/'Population 2016'!BC$6","v":0},92]
[null,"Male 80-84",{"$f":"'Population 2016'!C95/'Population 2016'!C$6","v":2.1516172990030838E-3},{"$f":"'Population 2016'!D95/'Population 2016'!D$6","v":2.1185886537807654E-3},{"$f":"'Population 2016'!E95/'Population 2016'!E$6","v":2.029573789504204E-3},{"$f":"'Population 2016'!F95/'Population 2016'!F$6","v":2.9862373409504026E-3},{"$f":"'Population 2016'!G95/'Population 2016'!G$6","v":3.8620844061345574E-3},{"$f":"'Population 2016'!H95/'Population 2016'!H$6","v":7.178759457896337E-3},{"$f":"'Population 2016'!I95/'Population 2016'!I$6","v":2.7192386131883071E-3},{"$f":"'Population 2016'!J95/'Population 2016'!J$6","v":3.9897674200286325E-3},{"$f":"'Population 2016'!K95/'Population 2016'!K$6","v":3.8512742487637887E-3},{"$f":"'Population 2016'!L95/'Population 2016'!L$6","v":2.592294627692858E-3},{"$f":"'Population 2016'!M95/'Population 2016'!M$6","v":2.592294627692858E-3},{"$f":"'Population 2016'!N95/'Population 2016'!N$6","v":6.205061094855093E-3},{"$f":"'Population 2016'!O95/'Population 2016'!O$6","v":7.2503607999450208E-3},{"$f":"'Population 2016'!P95/'Population 2016'!P$6","v":2.2730876988951735E-3},{"$f":"'Population 2016'!Q95/'Population 2016'!Q$6","v":1.5009236453201969E-3},{"$f":"'Population 2016'!R95/'Population 2016'!R$6","v":4.0976609185589897E-3},{"$f":"'Population 2016'!S95/'Population 2016'!S$6","v":4.3298014499310805E-3},{"$f":"'Population 2016'!T95/'Population 2016'!T$6","v":4.180609054052915E-3},{"$f":"'Population 2016'!U95/'Population 2016'!U$6","v":0},{"$f":"'Population 2016'!V95/'Population 2016'!V$6","v":4.5248868778280547E-3},{"$f":"'Population 2016'!W95/'Population 2016'!W$6","v":6.0103626943005181E-3},{"$f":"'Population 2016'!X95/'Population 2016'!X$6","v":6.0103626943005181E-3},{"$f":"'Population 2016'!Y95/'Population 2016'!Y$6","v":4.2950042849221153E-3},{"$f":"'Population 2016'!Z95/'Population 2016'!Z$6","v":6.878302055895319E-3},{"$f":"'Population 2016'!AA95/'Population 2016'!AA$6","v":6.1593455695332375E-3},{"$f":"'Population 2016'!AB95/'Population 2016'!AB$6","v":1.8504396195944733E-3},{"$f":"'Population 2016'!AC95/'Population 2016'!AC$6","v":6.5575237420875919E-3},{"$f":"'Population 2016'!AD95/'Population 2016'!AD$6","v":2.8997085497018921E-3},{"$f":"'Population 2016'!AE95/'Population 2016'!AE$6","v":2.5539445371729644E-3},{"$f":"'Population 2016'!AF95/'Population 2016'!AF$6","v":8.9888261975882289E-3},{"$f":"'Population 2016'!AG95/'Population 2016'!AG$6","v":2.5539445371729644E-3},{"$f":"'Population 2016'!AH95/'Population 2016'!AH$6","v":5.4436943000290188E-3},{"$f":"'Population 2016'!AI95/'Population 2016'!AI$6","v":3.6202011408865099E-3},{"$f":"'Population 2016'!AJ95/'Population 2016'!AJ$6","v":2.270356507332638E-3},{"$f":"'Population 2016'!AK95/'Population 2016'!AK$6","v":2.3618327822390176E-4},{"$f":"'Population 2016'!AL95/'Population 2016'!AL$6","v":8.2163794634926273E-3},{"$f":"'Population 2016'!AM95/'Population 2016'!AM$6","v":5.9175207418252808E-3},{"$f":"'Population 2016'!AN95/'Population 2016'!AN$6","v":0},{"$f":"'Population 2016'!AO95/'Population 2016'!AO$6","v":0},{"$f":"'Population 2016'!AP95/'Population 2016'!AP$6","v":3.0714594231415269E-3},{"$f":"'Population 2016'!AQ95/'Population 2016'!AQ$6","v":6.255979980864061E-3},{"$f":"'Population 2016'!AR95/'Population 2016'!AR$6","v":5.2202438751437034E-3},{"$f":"'Population 2016'!AS95/'Population 2016'!AS$6","v":2.7192386131883071E-3},{"$f":"'Population 2016'!AT95/'Population 2016'!AT$6","v":0},{"$f":"'Population 2016'!AU95/'Population 2016'!AU$6","v":0},{"$f":"'Population 2016'!AV95/'Population 2016'!AV$6","v":5.4092696294531159E-3},{"$f":"'Population 2016'!AW95/'Population 2016'!AW$6","v":4.807574181606729E-3},{"$f":"'Population 2016'!AX95/'Population 2016'!AX$6","v":4.1247624785651386E-3},{"$f":"'Population 2016'!AY95/'Population 2016'!AY$6","v":5.5035536617980283E-3},{"$f":"'Population 2016'!AZ95/'Population 2016'!AZ$6","v":4.9574817779048166E-3},{"$f":"'Population 2016'!BA95/'Population 2016'!BA$6","v":5.2995437610822227E-3},{"$f":"'Population 2016'!BB95/'Population 2016'!BB$6","v":4.1480329250113421E-3},{"$f":"'Population 2016'!BC95/'Population 2016'!BC$6","v":0},93]
[null,"Male 85-89",{"$f":"'Population 2016'!C96/'Population 2016'!C$6","v":1.11166893781826E-3},{"$f":"'Population 2016'!D96/'Population 2016'!D$6","v":1.0854497423691575E-3},{"$f":"'Population 2016'!E96/'Population 2016'!E$6","v":1.014786894752102E-3},{"$f":"'Population 2016'!F96/'Population 2016'!F$6","v":1.6013156755820999E-3},{"$f":"'Population 2016'!G96/'Population 2016'!G$6","v":2.1829172730325756E-3},{"$f":"'Population 2016'!H96/'Population 2016'!H$6","v":3.3687700113882312E-3},{"$f":"'Population 2016'!I96/'Population 2016'!I$6","v":1.8451976303777799E-3},{"$f":"'Population 2016'!J96/'Population 2016'!J$6","v":2.4407988922528104E-3},{"$f":"'Population 2016'!K96/'Population 2016'!K$6","v":2.615062761506276E-3},{"$f":"'Population 2016'!L96/'Population 2016'!L$6","v":1.4972736211674264E-3},{"$f":"'Population 2016'!M96/'Population 2016'!M$6","v":1.4972736211674264E-3},{"$f":"'Population 2016'!N96/'Population 2016'!N$6","v":3.2936817185960682E-3},{"$f":"'Population 2016'!O96/'Population 2016'!O$6","v":3.5736375506838017E-3},{"$f":"'Population 2016'!P96/'Population 2016'!P$6","v":1.2158376063857905E-3},{"$f":"'Population 2016'!Q96/'Population 2016'!Q$6","v":3.8485221674876849E-4},{"$f":"'Population 2016'!R96/'Population 2016'!R$6","v":2.0488304592794948E-3},{"$f":"'Population 2016'!S96/'Population 2016'!S$6","v":2.0754637569839751E-3},{"$f":"'Population 2016'!T96/'Population 2016'!T$6","v":1.9723034650168995E-3},{"$f":"'Population 2016'!U96/'Population 2016'!U$6","v":0},{"$f":"'Population 2016'!V96/'Population 2016'!V$6","v":1.838235294117647E-3},{"$f":"'Population 2016'!W96/'Population 2016'!W$6","v":2.8766839378238343E-3},{"$f":"'Population 2016'!X96/'Population 2016'!X$6","v":2.8766839378238343E-3},{"$f":"'Population 2016'!Y96/'Population 2016'!Y$6","v":2.0970912940464787E-3},{"$f":"'Population 2016'!Z96/'Population 2016'!Z$6","v":3.2902831830983349E-3},{"$f":"'Population 2016'!AA96/'Population 2016'!AA$6","v":2.9196897829605606E-3},{"$f":"'Population 2016'!AB96/'Population 2016'!AB$6","v":9.756863448770859E-4},{"$f":"'Population 2016'!AC96/'Population 2016'!AC$6","v":3.1455104986519242E-3},{"$f":"'Population 2016'!AD96/'Population 2016'!AD$6","v":1.5386208631071264E-3},{"$f":"'Population 2016'!AE96/'Population 2016'!AE$6","v":1.3071369678444307E-3},{"$f":"'Population 2016'!AF96/'Population 2016'!AF$6","v":3.8997676734152009E-3},{"$f":"'Population 2016'!AG96/'Population 2016'!AG$6","v":1.3071369678444307E-3},{"$f":"'Population 2016'!AH96/'Population 2016'!AH$6","v":2.5138190120236768E-3},{"$f":"'Population 2016'!AI96/'Population 2016'!AI$6","v":1.6908222669573987E-3},{"$f":"'Population 2016'!AJ96/'Population 2016'!AJ$6","v":1.7181076271706448E-3},{"$f":"'Population 2016'!AK96/'Population 2016'!AK$6","v":3.14911037631869E-4},{"$f":"'Population 2016'!AL96/'Population 2016'!AL$6","v":3.7158761177236927E-3},{"$f":"'Population 2016'!AM96/'Population 2016'!AM$6","v":2.5561249389946315E-3},{"$f":"'Population 2016'!AN96/'Population 2016'!AN$6","v":0},{"$f":"'Population 2016'!AO96/'Population 2016'!AO$6","v":0},{"$f":"'Population 2016'!AP96/'Population 2016'!AP$6","v":1.5357297115707635E-3},{"$f":"'Population 2016'!AQ96/'Population 2016'!AQ$6","v":3.3267093545300656E-3},{"$f":"'Population 2016'!AR96/'Population 2016'!AR$6","v":2.5146021005320852E-3},{"$f":"'Population 2016'!AS96/'Population 2016'!AS$6","v":1.8451976303777799E-3},{"$f":"'Population 2016'!AT96/'Population 2016'!AT$6","v":0},{"$f":"'Population 2016'!AU96/'Population 2016'!AU$6","v":0},{"$f":"'Population 2016'!AV96/'Population 2016'!AV$6","v":2.525914452519957E-3},{"$f":"'Population 2016'!AW96/'Population 2016'!AW$6","v":2.4570225800375108E-3},{"$f":"'Population 2016'!AX96/'Population 2016'!AX$6","v":2.2709366455021551E-3},{"$f":"'Population 2016'!AY96/'Population 2016'!AY$6","v":2.7517768308990141E-3},{"$f":"'Population 2016'!AZ96/'Population 2016'!AZ$6","v":2.6171930827497501E-3},{"$f":"'Population 2016'!BA96/'Population 2016'!BA$6","v":2.3907716215408525E-3},{"$f":"'Population 2016'!BB96/'Population 2016'!BB$6","v":1.6851383757858578E-3},{"$f":"'Population 2016'!BC96/'Population 2016'!BC$6","v":0},94]
[null,"Male 90+",{"$f":"'Population 2016'!C97/'Population 2016'!C$6","v":4.4825360395897584E-4},{"$f":"'Population 2016'!D97/'Population 2016'!D$6","v":5.2310830957549761E-4},{"$f":"'Population 2016'!E97/'Population 2016'!E$6","v":7.2484778196578719E-4},{"$f":"'Population 2016'!F97/'Population 2016'!F$6","v":4.7606682247035401E-4},{"$f":"'Population 2016'!G97/'Population 2016'!G$6","v":6.716668532407926E-4},{"$f":"'Population 2016'!H97/'Population 2016'!H$6","v":1.281921331767203E-3},{"$f":"'Population 2016'!I97/'Population 2016'!I$6","v":6.7980965329707678E-4},{"$f":"'Population 2016'!J97/'Population 2016'!J$6","v":1.0561149053016968E-3},{"$f":"'Population 2016'!K97/'Population 2016'!K$6","v":1.3788512742487638E-3},{"$f":"'Population 2016'!L97/'Population 2016'!L$6","v":5.8103155448288189E-4},{"$f":"'Population 2016'!M97/'Population 2016'!M$6","v":5.8103155448288189E-4},{"$f":"'Population 2016'!N97/'Population 2016'!N$6","v":1.3380581981796526E-3},{"$f":"'Population 2016'!O97/'Population 2016'!O$6","v":1.3916569307951343E-3},{"$f":"'Population 2016'!P97/'Population 2016'!P$6","v":4.7576254162922239E-4},{"$f":"'Population 2016'!Q97/'Population 2016'!Q$6","v":2.6939655172413793E-4},{"$f":"'Population 2016'!R97/'Population 2016'!R$6","v":9.3904729383643504E-4},{"$f":"'Population 2016'!S97/'Population 2016'!S$6","v":9.7591515062237606E-4},{"$f":"'Population 2016'!T97/'Population 2016'!T$6","v":9.2715120150367071E-4},{"$f":"'Population 2016'!U97/'Population 2016'!U$6","v":0},{"$f":"'Population 2016'!V97/'Population 2016'!V$6","v":9.1911764705882352E-4},{"$f":"'Population 2016'!W97/'Population 2016'!W$6","v":1.2932642487046631E-3},{"$f":"'Population 2016'!X97/'Population 2016'!X$6","v":1.2932642487046631E-3},{"$f":"'Population 2016'!Y97/'Population 2016'!Y$6","v":9.7797045924282898E-4},{"$f":"'Population 2016'!Z97/'Population 2016'!Z$6","v":1.4096873471446236E-3},{"$f":"'Population 2016'!AA97/'Population 2016'!AA$6","v":1.2761144128436354E-3},{"$f":"'Population 2016'!AB97/'Population 2016'!AB$6","v":4.710209940785932E-4},{"$f":"'Population 2016'!AC97/'Population 2016'!AC$6","v":1.3869814381810895E-3},{"$f":"'Population 2016'!AD97/'Population 2016'!AD$6","v":4.8821623540899208E-4},{"$f":"'Population 2016'!AE97/'Population 2016'!AE$6","v":4.2230578961127756E-4},{"$f":"'Population 2016'!AF97/'Population 2016'!AF$6","v":1.7424493859940259E-3},{"$f":"'Population 2016'!AG97/'Population 2016'!AG$6","v":4.2230578961127756E-4},{"$f":"'Population 2016'!AH97/'Population 2016'!AH$6","v":1.076851537834899E-3},{"$f":"'Population 2016'!AI97/'Population 2016'!AI$6","v":8.4122592984761679E-4},{"$f":"'Population 2016'!AJ97/'Population 2016'!AJ$6","v":9.2041480026998834E-4},{"$f":"'Population 2016'!AK97/'Population 2016'!AK$6","v":1.574555188159345E-4},{"$f":"'Population 2016'!AL97/'Population 2016'!AL$6","v":1.361994433587967E-3},{"$f":"'Population 2016'!AM97/'Population 2016'!AM$6","v":1.1469009272816009E-3},{"$f":"'Population 2016'!AN97/'Population 2016'!AN$6","v":0},{"$f":"'Population 2016'!AO97/'Population 2016'!AO$6","v":0},{"$f":"'Population 2016'!AP97/'Population 2016'!AP$6","v":4.3192398137927723E-4},{"$f":"'Population 2016'!AQ97/'Population 2016'!AQ$6","v":1.3836755722381688E-3},{"$f":"'Population 2016'!AR97/'Population 2016'!AR$6","v":1.0829349572082435E-3},{"$f":"'Population 2016'!AS97/'Population 2016'!AS$6","v":6.7980965329707678E-4},{"$f":"'Population 2016'!AT97/'Population 2016'!AT$6","v":0},{"$f":"'Population 2016'!AU97/'Population 2016'!AU$6","v":0},{"$f":"'Population 2016'!AV97/'Population 2016'!AV$6","v":1.0008340283569641E-3},{"$f":"'Population 2016'!AW97/'Population 2016'!AW$6","v":9.8280903201500422E-4},{"$f":"'Population 2016'!AX97/'Population 2016'!AX$6","v":7.4153033322519354E-4},{"$f":"'Population 2016'!AY97/'Population 2016'!AY$6","v":1.1480068966406825E-3},{"$f":"'Population 2016'!AZ97/'Population 2016'!AZ$6","v":9.9149635558096324E-4},{"$f":"'Population 2016'!BA97/'Population 2016'!BA$6","v":1.4344629729245114E-3},{"$f":"'Population 2016'!BB97/'Population 2016'!BB$6","v":8.7497569511958001E-4},{"$f":"'Population 2016'!BC97/'Population 2016'!BC$6","v":0},95]
["SIMD Q2","Female 0-4",{"$f":"'Population 2016'!C98/'Population 2016'!C$6","v":0},{"$f":"'Population 2016'!D98/'Population 2016'!D$6","v":0},{"$f":"'Population 2016'!E98/'Population 2016'!E$6","v":0},{"$f":"'Population 2016'!F98/'Population 2016'!F$6","v":0},{"$f":"'Population 2016'!G98/'Population 2016'!G$6","v":0},{"$f":"'Population 2016'!H98/'Population 2016'!H$6","v":0},{"$f":"'Population 2016'!I98/'Population 2016'!I$6","v":0},{"$f":"'Population 2016'!J98/'Population 2016'!J$6","v":0},{"$f":"'Population 2016'!K98/'Population 2016'!K$6","v":0},{"$f":"'Population 2016'!L98/'Population 2016'!L$6","v":0},{"$f":"'Population 2016'!M98/'Population 2016'!M$6","v":0},{"$f":"'Population 2016'!N98/'Population 2016'!N$6","v":0},{"$f":"'Population 2016'!O98/'Population 2016'!O$6","v":0},{"$f":"'Population 2016'!P98/'Population 2016'!P$6","v":0},{"$f":"'Population 2016'!Q98/'Population 2016'!Q$6","v":0},{"$f":"'Population 2016'!R98/'Population 2016'!R$6","v":0},{"$f":"'Population 2016'!S98/'Population 2016'!S$6","v":0},{"$f":"'Population 2016'!T98/'Population 2016'!T$6","v":0},{"$f":"'Population 2016'!U98/'Population 2016'!U$6","v":0},{"$f":"'Population 2016'!V98/'Population 2016'!V$6","v":0},{"$f":"'Population 2016'!W98/'Population 2016'!W$6","v":0},{"$f":"'Population 2016'!X98/'Population 2016'!X$6","v":0},{"$f":"'Population 2016'!Y98/'Population 2016'!Y$6","v":0},{"$f":"'Population 2016'!Z98/'Population 2016'!Z$6","v":0},{"$f":"'Population 2016'!AA98/'Population 2016'!AA$6","v":0},{"$f":"'Population 2016'!AB98/'Population 2016'!AB$6","v":0},{"$f":"'Population 2016'!AC98/'Population 2016'!AC$6","v":0},{"$f":"'Population 2016'!AD98/'Population 2016'!AD$6","v":0},{"$f":"'Population 2016'!AE98/'Population 2016'!AE$6","v":0},{"$f":"'Population 2016'!AF98/'Population 2016'!AF$6","v":0},{"$f":"'Population 2016'!AG98/'Population 2016'!AG$6","v":0},{"$f":"'Population 2016'!AH98/'Population 2016'!AH$6","v":0},{"$f":"'Population 2016'!AI98/'Population 2016'!AI$6","v":0},{"$f":"'Population 2016'!AJ98/'Population 2016'!AJ$6","v":0},{"$f":"'Population 2016'!AK98/'Population 2016'!AK$6","v":0},{"$f":"'Population 2016'!AL98/'Population 2016'!AL$6","v":0},{"$f":"'Population 2016'!AM98/'Population 2016'!AM$6","v":0},{"$f":"'Population 2016'!AN98/'Population 2016'!AN$6","v":0},{"$f":"'Population 2016'!AO98/'Population 2016'!AO$6","v":0},{"$f":"'Population 2016'!AP98/'Population 2016'!AP$6","v":0},{"$f":"'Population 2016'!AQ98/'Population 2016'!AQ$6","v":0},{"$f":"'Population 2016'!AR98/'Population 2016'!AR$6","v":0},{"$f":"'Population 2016'!AS98/'Population 2016'!AS$6","v":0},{"$f":"'Population 2016'!AT98/'Population 2016'!AT$6","v":0},{"$f":"'Population 2016'!AU98/'Population 2016'!AU$6","v":0},{"$f":"'Population 2016'!AV98/'Population 2016'!AV$6","v":0},{"$f":"'Population 2016'!AW98/'Population 2016'!AW$6","v":0},{"$f":"'Population 2016'!AX98/'Population 2016'!AX$6","v":0},{"$f":"'Population 2016'!AY98/'Population 2016'!AY$6","v":0},{"$f":"'Population 2016'!AZ98/'Population 2016'!AZ$6","v":0},{"$f":"'Population 2016'!BA98/'Population 2016'!BA$6","v":0},{"$f":"'Population 2016'!BB98/'Population 2016'!BB$6","v":0},{"$f":"'Population 2016'!BC98/'Population 2016'!BC$6","v":0},96]
[null,"Female 5-9",{"$f":"'Population 2016'!C99/'Population 2016'!C$6","v":0},{"$f":"'Population 2016'!D99/'Population 2016'!D$6","v":0},{"$f":"'Population 2016'!E99/'Population 2016'!E$6","v":0},{"$f":"'Population 2016'!F99/'Population 2016'!F$6","v":0},{"$f":"'Population 2016'!G99/'Population 2016'!G$6","v":0},{"$f":"'Population 2016'!H99/'Population 2016'!H$6","v":0},{"$f":"'Population 2016'!I99/'Population 2016'!I$6","v":0},{"$f":"'Population 2016'!J99/'Population 2016'!J$6","v":0},{"$f":"'Population 2016'!K99/'Population 2016'!K$6","v":0},{"$f":"'Population 2016'!L99/'Population 2016'!L$6","v":0},{"$f":"'Population 2016'!M99/'Population 2016'!M$6","v":0},{"$f":"'Population 2016'!N99/'Population 2016'!N$6","v":0},{"$f":"'Population 2016'!O99/'Population 2016'!O$6","v":0},{"$f":"'Population 2016'!P99/'Population 2016'!P$6","v":0},{"$f":"'Population 2016'!Q99/'Population 2016'!Q$6","v":0},{"$f":"'Population 2016'!R99/'Population 2016'!R$6","v":0},{"$f":"'Population 2016'!S99/'Population 2016'!S$6","v":0},{"$f":"'Population 2016'!T99/'Population 2016'!T$6","v":0},{"$f":"'Population 2016'!U99/'Population 2016'!U$6","v":0},{"$f":"'Population 2016'!V99/'Population 2016'!V$6","v":0},{"$f":"'Population 2016'!W99/'Population 2016'!W$6","v":0},{"$f":"'Population 2016'!X99/'Population 2016'!X$6","v":0},{"$f":"'Population 2016'!Y99/'Population 2016'!Y$6","v":0},{"$f":"'Population 2016'!Z99/'Population 2016'!Z$6","v":0},{"$f":"'Population 2016'!AA99/'Population 2016'!AA$6","v":0},{"$f":"'Population 2016'!AB99/'Population 2016'!AB$6","v":0},{"$f":"'Population 2016'!AC99/'Population 2016'!AC$6","v":0},{"$f":"'Population 2016'!AD99/'Population 2016'!AD$6","v":0},{"$f":"'Population 2016'!AE99/'Population 2016'!AE$6","v":0},{"$f":"'Population 2016'!AF99/'Population 2016'!AF$6","v":0},{"$f":"'Population 2016'!AG99/'Population 2016'!AG$6","v":0},{"$f":"'Population 2016'!AH99/'Population 2016'!AH$6","v":0},{"$f":"'Population 2016'!AI99/'Population 2016'!AI$6","v":0},{"$f":"'Population 2016'!AJ99/'Population 2016'!AJ$6","v":0},{"$f":"'Population 2016'!AK99/'Population 2016'!AK$6","v":0},{"$f":"'Population 2016'!AL99/'Population 2016'!AL$6","v":0},{"$f":"'Population 2016'!AM99/'Population 2016'!AM$6","v":0},{"$f":"'Population 2016'!AN99/'Population 2016'!AN$6","v":0},{"$f":"'Population 2016'!AO99/'Population 2016'!AO$6","v":0},{"$f":"'Population 2016'!AP99/'Population 2016'!AP$6","v":0},{"$f":"'Population 2016'!AQ99/'Population 2016'!AQ$6","v":0},{"$f":"'Population 2016'!AR99/'Population 2016'!AR$6","v":0},{"$f":"'Population 2016'!AS99/'Population 2016'!AS$6","v":0},{"$f":"'Population 2016'!AT99/'Population 2016'!AT$6","v":0},{"$f":"'Population 2016'!AU99/'Population 2016'!AU$6","v":0},{"$f":"'Population 2016'!AV99/'Population 2016'!AV$6","v":0},{"$f":"'Population 2016'!AW99/'Population 2016'!AW$6","v":0},{"$f":"'Population 2016'!AX99/'Population 2016'!AX$6","v":0},{"$f":"'Population 2016'!AY99/'Population 2016'!AY$6","v":0},{"$f":"'Population 2016'!AZ99/'Population 2016'!AZ$6","v":0},{"$f":"'Population 2016'!BA99/'Population 2016'!BA$6","v":0},{"$f":"'Population 2016'!BB99/'Population 2016'!BB$6","v":0},{"$f":"'Population 2016'!BC99/'Population 2016'!BC$6","v":0},97]
[null,"Female 10-15",{"$f":"'Population 2016'!C100/'Population 2016'!C$6","v":0},{"$f":"'Population 2016'!D100/'Population 2016'!D$6","v":0},{"$f":"'Population 2016'!E100/'Population 2016'!E$6","v":0},{"$f":"'Population 2016'!F100/'Population 2016'!F$6","v":0},{"$f":"'Population 2016'!G100/'Population 2016'!G$6","v":0},{"$f":"'Population 2016'!H100/'Population 2016'!H$6","v":0},{"$f":"'Population 2016'!I100/'Population 2016'!I$6","v":0},{"$f":"'Population 2016'!J100/'Population 2016'!J$6","v":0},{"$f":"'Population 2016'!K100/'Population 2016'!K$6","v":0},{"$f":"'Population 2016'!L100/'Population 2016'!L$6","v":0},{"$f":"'Population 2016'!M100/'Population 2016'!M$6","v":0},{"$f":"'Population 2016'!N100/'Population 2016'!N$6","v":0},{"$f":"'Population 2016'!O100/'Population 2016'!O$6","v":0},{"$f":"'Population 2016'!P100/'Population 2016'!P$6","v":0},{"$f":"'Population 2016'!Q100/'Population 2016'!Q$6","v":0},{"$f":"'Population 2016'!R100/'Population 2016'!R$6","v":0},{"$f":"'Population 2016'!S100/'Population 2016'!S$6","v":0},{"$f":"'Population 2016'!T100/'Population 2016'!T$6","v":0},{"$f":"'Population 2016'!U100/'Population 2016'!U$6","v":0},{"$f":"'Population 2016'!V100/'Population 2016'!V$6","v":0},{"$f":"'Population 2016'!W100/'Population 2016'!W$6","v":0},{"$f":"'Population 2016'!X100/'Population 2016'!X$6","v":0},{"$f":"'Population 2016'!Y100/'Population 2016'!Y$6","v":0},{"$f":"'Population 2016'!Z100/'Population 2016'!Z$6","v":0},{"$f":"'Population 2016'!AA100/'Population 2016'!AA$6","v":0},{"$f":"'Population 2016'!AB100/'Population 2016'!AB$6","v":0},{"$f":"'Population 2016'!AC100/'Population 2016'!AC$6","v":0},{"$f":"'Population 2016'!AD100/'Population 2016'!AD$6","v":0},{"$f":"'Population 2016'!AE100/'Population 2016'!AE$6","v":0},{"$f":"'Population 2016'!AF100/'Population 2016'!AF$6","v":0},{"$f":"'Population 2016'!AG100/'Population 2016'!AG$6","v":0},{"$f":"'Population 2016'!AH100/'Population 2016'!AH$6","v":0},{"$f":"'Population 2016'!AI100/'Population 2016'!AI$6","v":0},{"$f":"'Population 2016'!AJ100/'Population 2016'!AJ$6","v":0},{"$f":"'Population 2016'!AK100/'Population 2016'!AK$6","v":0},{"$f":"'Population 2016'!AL100/'Population 2016'!AL$6","v":0},{"$f":"'Population 2016'!AM100/'Population 2016'!AM$6","v":0},{"$f":"'Population 2016'!AN100/'Population 2016'!AN$6","v":0},{"$f":"'Population 2016'!AO100/'Population 2016'!AO$6","v":0},{"$f":"'Population 2016'!AP100/'Population 2016'!AP$6","v":0},{"$f":"'Population 2016'!AQ100/'Population 2016'!AQ$6","v":0},{"$f":"'Population 2016'!AR100/'Population 2016'!AR$6","v":0},{"$f":"'Population 2016'!AS100/'Population 2016'!AS$6","v":0},{"$f":"'Population 2016'!AT100/'Population 2016'!AT$6","v":0},{"$f":"'Population 2016'!AU100/'Population 2016'!AU$6","v":0},{"$f":"'Population 2016'!AV100/'Population 2016'!AV$6","v":0},{"$f":"'Population 2016'!AW100/'Population 2016'!AW$6","v":0},{"$f":"'Population 2016'!AX100/'Population 2016'!AX$6","v":0},{"$f":"'Population 2016'!AY100/'Population 2016'!AY$6","v":0},{"$f":"'Population 2016'!AZ100/'Population 2016'!AZ$6","v":0},{"$f":"'Population 2016'!BA100/'Population 2016'!BA$6","v":0},{"$f":"'Population 2016'!BB100/'Population 2016'!BB$6","v":0},{"$f":"'Population 2016'!BC100/'Population 2016'!BC$6","v":0},98]
[null,"Female 16-19",{"$f":"'Population 2016'!C101/'Population 2016'!C$6","v":1.7195008247866312E-2},{"$f":"'Population 2016'!D101/'Population 2016'!D$6","v":1.7550283786257944E-2},{"$f":"'Population 2016'!E101/'Population 2016'!E$6","v":1.8507780032859765E-2},{"$f":"'Population 2016'!F101/'Population 2016'!F$6","v":1.6748896390547909E-2},{"$f":"'Population 2016'!G101/'Population 2016'!G$6","v":1.572819881338856E-2},{"$f":"'Population 2016'!H101/'Population 2016'!H$6","v":1.1012598603600113E-2},{"$f":"'Population 2016'!I101/'Population 2016'!I$6","v":1.7577935320967273E-2},{"$f":"'Population 2016'!J101/'Population 2016'!J$6","v":1.5161116196108803E-2},{"$f":"'Population 2016'!K101/'Population 2016'!K$6","v":1.5642829973373906E-2},{"$f":"'Population 2016'!L101/'Population 2016'!L$6","v":1.9755072852417985E-2},{"$f":"'Population 2016'!M101/'Population 2016'!M$6","v":1.9755072852417985E-2},{"$f":"'Population 2016'!N101/'Population 2016'!N$6","v":9.8222294108132741E-3},{"$f":"'Population 2016'!O101/'Population 2016'!O$6","v":1.1854855336402997E-2},{"$f":"'Population 2016'!P101/'Population 2016'!P$6","v":1.8977639160543427E-2},{"$f":"'Population 2016'!Q101/'Population 2016'!Q$6","v":2.1243842364532018E-2},{"$f":"'Population 2016'!R101/'Population 2016'!R$6","v":1.835410619771214E-2},{"$f":"'Population 2016'!S101/'Population 2016'!S$6","v":1.5554140931617546E-2},{"$f":"'Population 2016'!T101/'Population 2016'!T$6","v":1.3536407541953592E-2},{"$f":"'Population 2016'!U101/'Population 2016'!U$6","v":2.1723122238586155E-2},{"$f":"'Population 2016'!V101/'Population 2016'!V$6","v":1.6420390271493213E-2},{"$f":"'Population 2016'!W101/'Population 2016'!W$6","v":1.2907772020725388E-2},{"$f":"'Population 2016'!X101/'Population 2016'!X$6","v":1.2907772020725388E-2},{"$f":"'Population 2016'!Y101/'Population 2016'!Y$6","v":1.5879417250592328E-2},{"$f":"'Population 2016'!Z101/'Population 2016'!Z$6","v":7.2945243976168996E-3},{"$f":"'Population 2016'!AA101/'Population 2016'!AA$6","v":1.0561377853603055E-2},{"$f":"'Population 2016'!AB101/'Population 2016'!AB$6","v":1.8123093486452538E-2},{"$f":"'Population 2016'!AC101/'Population 2016'!AC$6","v":8.8276602615228392E-3},{"$f":"'Population 2016'!AD101/'Population 2016'!AD$6","v":1.8315506043525217E-2},{"$f":"'Population 2016'!AE101/'Population 2016'!AE$6","v":1.9245078126571079E-2},{"$f":"'Population 2016'!AF101/'Population 2016'!AF$6","v":6.3889810819780946E-3},{"$f":"'Population 2016'!AG101/'Population 2016'!AG$6","v":1.9245078126571079E-2},{"$f":"'Population 2016'!AH101/'Population 2016'!AH$6","v":1.3677413038993913E-2},{"$f":"'Population 2016'!AI101/'Population 2016'!AI$6","v":1.6715703302544186E-2},{"$f":"'Population 2016'!AJ101/'Population 2016'!AJ$6","v":2.331717494017304E-2},{"$f":"'Population 2016'!AK101/'Population 2016'!AK$6","v":2.1571406077783028E-2},{"$f":"'Population 2016'!AL101/'Population 2016'!AL$6","v":8.3052051874222769E-3},{"$f":"'Population 2016'!AM101/'Population 2016'!AM$6","v":1.3396778916544656E-2},{"$f":"'Population 2016'!AN101/'Population 2016'!AN$6","v":1.8838908112264515E-2},{"$f":"'Population 2016'!AO101/'Population 2016'!AO$6","v":1.8838908112264515E-2},{"$f":"'Population 2016'!AP101/'Population 2016'!AP$6","v":1.7372942362144261E-2},{"$f":"'Population 2016'!AQ101/'Population 2016'!AQ$6","v":1.1113564436593802E-2},{"$f":"'Population 2016'!AR101/'Population 2016'!AR$6","v":1.3068131078085488E-2},{"$f":"'Population 2016'!AS101/'Population 2016'!AS$6","v":1.7577935320967273E-2},{"$f":"'Population 2016'!AT101/'Population 2016'!AT$6","v":2.2257551669316374E-2},{"$f":"'Population 2016'!AU101/'Population 2016'!AU$6","v":2.2257551669316374E-2},{"$f":"'Population 2016'!AV101/'Population 2016'!AV$6","v":1.4202311450017872E-2},{"$f":"'Population 2016'!AW101/'Population 2016'!AW$6","v":1.405416915781456E-2},{"$f":"'Population 2016'!AX101/'Population 2016'!AX$6","v":1.4691569727024146E-2},{"$f":"'Population 2016'!AY101/'Population 2016'!AY$6","v":1.2787162961083856E-2},{"$f":"'Population 2016'!AZ101/'Population 2016'!AZ$6","v":1.2657210232956982E-2},{"$f":"'Population 2016'!BA101/'Population 2016'!BA$6","v":1.1495626880242265E-2},{"$f":"'Population 2016'!BB101/'Population 2016'!BB$6","v":1.7434700887938297E-2},{"$f":"'Population 2016'!BC101/'Population 2016'!BC$6","v":2.1723122238586155E-2},99]
[null,"Female 20-24",{"$f":"'Population 2016'!C102/'Population 2016'!C$6","v":3.9320806139281357E-2},{"$f":"'Population 2016'!D102/'Population 2016'!D$6","v":3.646064917741218E-2},{"$f":"'Population 2016'!E102/'Population 2016'!E$6","v":2.8752295351309558E-2},{"$f":"'Population 2016'!F102/'Population 2016'!F$6","v":3.2588937938197872E-2},{"$f":"'Population 2016'!G102/'Population 2016'!G$6","v":2.0429866786074106E-2},{"$f":"'Population 2016'!H102/'Population 2016'!H$6","v":1.4917986846890894E-2},{"$f":"'Population 2016'!I102/'Population 2016'!I$6","v":2.6852481305234533E-2},{"$f":"'Population 2016'!J102/'Population 2016'!J$6","v":2.4220235161585581E-2},{"$f":"'Population 2016'!K102/'Population 2016'!K$6","v":1.7877519969570179E-2},{"$f":"'Population 2016'!L102/'Population 2016'!L$6","v":2.4693841065522481E-2},{"$f":"'Population 2016'!M102/'Population 2016'!M$6","v":2.4693841065522481E-2},{"$f":"'Population 2016'!N102/'Population 2016'!N$6","v":2.3835080651090298E-2},{"$f":"'Population 2016'!O102/'Population 2016'!O$6","v":1.5359769088035187E-2},{"$f":"'Population 2016'!P102/'Population 2016'!P$6","v":2.7171327377491145E-2},{"$f":"'Population 2016'!Q102/'Population 2016'!Q$6","v":3.575277093596059E-2},{"$f":"'Population 2016'!R102/'Population 2016'!R$6","v":2.3305446474304253E-2},{"$f":"'Population 2016'!S102/'Population 2016'!S$6","v":2.6515430507475877E-2},{"$f":"'Population 2016'!T102/'Population 2016'!T$6","v":3.459116846337331E-2},{"$f":"'Population 2016'!U102/'Population 2016'!U$6","v":2.6509572901325478E-2},{"$f":"'Population 2016'!V102/'Population 2016'!V$6","v":2.3030967194570137E-2},{"$f":"'Population 2016'!W102/'Population 2016'!W$6","v":1.7459067357512955E-2},{"$f":"'Population 2016'!X102/'Population 2016'!X$6","v":1.7459067357512955E-2},{"$f":"'Population 2016'!Y102/'Population 2016'!Y$6","v":2.3541866209608308E-2},{"$f":"'Population 2016'!Z102/'Population 2016'!Z$6","v":1.3878128883096207E-2},{"$f":"'Population 2016'!AA102/'Population 2016'!AA$6","v":1.5913309210896343E-2},{"$f":"'Population 2016'!AB102/'Population 2016'!AB$6","v":3.7502242957114663E-2},{"$f":"'Population 2016'!AC102/'Population 2016'!AC$6","v":1.4367804912209715E-2},{"$f":"'Population 2016'!AD102/'Population 2016'!AD$6","v":2.3567529182015889E-2},{"$f":"'Population 2016'!AE102/'Population 2016'!AE$6","v":2.4694833792507087E-2},{"$f":"'Population 2016'!AF102/'Population 2016'!AF$6","v":7.9931408341630712E-3},{"$f":"'Population 2016'!AG102/'Population 2016'!AG$6","v":2.4694833792507087E-2},{"$f":"'Population 2016'!AH102/'Population 2016'!AH$6","v":1.869106597813432E-2},{"$f":"'Population 2016'!AI102/'Population 2016'!AI$6","v":3.1058396146264496E-2},{"$f":"'Population 2016'!AJ102/'Population 2016'!AJ$6","v":2.9238510155243296E-2},{"$f":"'Population 2016'!AK102/'Population 2016'!AK$6","v":4.3772634230829791E-2},{"$f":"'Population 2016'!AL102/'Population 2016'!AL$6","v":1.1280866939065553E-2},{"$f":"'Population 2016'!AM102/'Population 2016'!AM$6","v":1.7087603709126403E-2},{"$f":"'Population 2016'!AN102/'Population 2016'!AN$6","v":3.3833141099577087E-2},{"$f":"'Population 2016'!AO102/'Population 2016'!AO$6","v":3.3833141099577087E-2},{"$f":"'Population 2016'!AP102/'Population 2016'!AP$6","v":2.7643134808273743E-2},{"$f":"'Population 2016'!AQ102/'Population 2016'!AQ$6","v":1.4131154780304703E-2},{"$f":"'Population 2016'!AR102/'Population 2016'!AR$6","v":2.0855541224439965E-2},{"$f":"'Population 2016'!AS102/'Population 2016'!AS$6","v":2.6852481305234533E-2},{"$f":"'Population 2016'!AT102/'Population 2016'!AT$6","v":4.133545310015898E-2},{"$f":"'Population 2016'!AU102/'Population 2016'!AU$6","v":4.133545310015898E-2},{"$f":"'Population 2016'!AV102/'Population 2016'!AV$6","v":2.0159656856904563E-2},{"$f":"'Population 2016'!AW102/'Population 2016'!AW$6","v":2.0843741553984881E-2},{"$f":"'Population 2016'!AX102/'Population 2016'!AX$6","v":3.0402743662232935E-2},{"$f":"'Population 2016'!AY102/'Population 2016'!AY$6","v":2.1739036964102211E-2},{"$f":"'Population 2016'!AZ102/'Population 2016'!AZ$6","v":2.6350578819494069E-2},{"$f":"'Population 2016'!BA102/'Population 2016'!BA$6","v":1.5579861733707888E-2},{"$f":"'Population 2016'!BB102/'Population 2016'!BB$6","v":2.3251668935122174E-2},{"$f":"'Population 2016'!BC102/'Population 2016'!BC$6","v":2.6509572901325478E-2},100]
[null,"Female 25-29",{"$f":"'Population 2016'!C103/'Population 2016'!C$6","v":4.4771569963422506E-2},{"$f":"'Population 2016'!D103/'Population 2016'!D$6","v":4.1351711871943087E-2},{"$f":"'Population 2016'!E103/'Population 2016'!E$6","v":3.2134918333816563E-2},{"$f":"'Population 2016'!F103/'Population 2016'!F$6","v":3.3584350385181337E-2},{"$f":"'Population 2016'!G103/'Population 2016'!G$6","v":2.3956117765588269E-2},{"$f":"'Population 2016'!H103/'Population 2016'!H$6","v":1.6032960284288415E-2},{"$f":"'Population 2016'!I103/'Population 2016'!I$6","v":2.7192386131883073E-2},{"$f":"'Population 2016'!J103/'Population 2016'!J$6","v":2.3915135300053979E-2},{"$f":"'Population 2016'!K103/'Population 2016'!K$6","v":2.0635222518067705E-2},{"$f":"'Population 2016'!L103/'Population 2016'!L$6","v":2.3956377938678823E-2},{"$f":"'Population 2016'!M103/'Population 2016'!M$6","v":2.3956377938678823E-2},{"$f":"'Population 2016'!N103/'Population 2016'!N$6","v":2.2011792556867475E-2},{"$f":"'Population 2016'!O103/'Population 2016'!O$6","v":1.7455844959109339E-2},{"$f":"'Population 2016'!P103/'Population 2016'!P$6","v":3.0871702701273988E-2},{"$f":"'Population 2016'!Q103/'Population 2016'!Q$6","v":3.5675800492610835E-2},{"$f":"'Population 2016'!R103/'Population 2016'!R$6","v":2.1683455694041318E-2},{"$f":"'Population 2016'!S103/'Population 2016'!S$6","v":2.9351108492303161E-2},{"$f":"'Population 2016'!T103/'Population 2016'!T$6","v":3.91342093507413E-2},{"$f":"'Population 2016'!U103/'Population 2016'!U$6","v":2.8902798232695141E-2},{"$f":"'Population 2016'!V103/'Population 2016'!V$6","v":2.4992929864253395E-2},{"$f":"'Population 2016'!W103/'Population 2016'!W$6","v":1.9838341968911918E-2},{"$f":"'Population 2016'!X103/'Population 2016'!X$6","v":1.9838341968911918E-2},{"$f":"'Population 2016'!Y103/'Population 2016'!Y$6","v":2.4529918838534052E-2},{"$f":"'Population 2016'!Z103/'Population 2016'!Z$6","v":1.8058581016007852E-2},{"$f":"'Population 2016'!AA103/'Population 2016'!AA$6","v":1.8346800652430679E-2},{"$f":"'Population 2016'!AB103/'Population 2016'!AB$6","v":4.1012470841557506E-2},{"$f":"'Population 2016'!AC103/'Population 2016'!AC$6","v":1.7635867767951976E-2},{"$f":"'Population 2016'!AD103/'Population 2016'!AD$6","v":2.5549982986403919E-2},{"$f":"'Population 2016'!AE103/'Population 2016'!AE$6","v":2.6122629557383314E-2},{"$f":"'Population 2016'!AF103/'Population 2016'!AF$6","v":9.8738798539661464E-3},{"$f":"'Population 2016'!AG103/'Population 2016'!AG$6","v":2.6122629557383314E-2},{"$f":"'Population 2016'!AH103/'Population 2016'!AH$6","v":1.9624570395673016E-2},{"$f":"'Population 2016'!AI103/'Population 2016'!AI$6","v":3.4339595793033313E-2},{"$f":"'Population 2016'!AJ103/'Population 2016'!AJ$6","v":3.0711173835675277E-2},{"$f":"'Population 2016'!AK103/'Population 2016'!AK$6","v":3.8970240906943787E-2},{"$f":"'Population 2016'!AL103/'Population 2016'!AL$6","v":1.1295671226387161E-2},{"$f":"'Population 2016'!AM103/'Population 2016'!AM$6","v":1.8502928257686676E-2},{"$f":"'Population 2016'!AN103/'Population 2016'!AN$6","v":3.8446751249519413E-2},{"$f":"'Population 2016'!AO103/'Population 2016'!AO$6","v":3.8446751249519413E-2},{"$f":"'Population 2016'!AP103/'Population 2016'!AP$6","v":3.0810577338388444E-2},{"$f":"'Population 2016'!AQ103/'Population 2016'!AQ$6","v":1.5809229410465888E-2},{"$f":"'Population 2016'!AR103/'Population 2016'!AR$6","v":2.2953021196360526E-2},{"$f":"'Population 2016'!AS103/'Population 2016'!AS$6","v":2.7192386131883073E-2},{"$f":"'Population 2016'!AT103/'Population 2016'!AT$6","v":3.6565977742448331E-2},{"$f":"'Population 2016'!AU103/'Population 2016'!AU$6","v":3.6565977742448331E-2},{"$f":"'Population 2016'!AV103/'Population 2016'!AV$6","v":2.1684737281067557E-2},{"$f":"'Population 2016'!AW103/'Population 2016'!AW$6","v":2.113039418832259E-2},{"$f":"'Population 2016'!AX103/'Population 2016'!AX$6","v":2.7112202808546138E-2},{"$f":"'Population 2016'!AY103/'Population 2016'!AY$6","v":2.2822549091268698E-2},{"$f":"'Population 2016'!AZ103/'Population 2016'!AZ$6","v":2.6037944833500071E-2},{"$f":"'Population 2016'!BA103/'Population 2016'!BA$6","v":1.6994401609786224E-2},{"$f":"'Population 2016'!BB103/'Population 2016'!BB$6","v":2.6476116404173959E-2},{"$f":"'Population 2016'!BC103/'Population 2016'!BC$6","v":2.8902798232695141E-2},101]
[null,"Female 30-34",{"$f":"'Population 2016'!C104/'Population 2016'!C$6","v":3.8137416624829661E-2},{"$f":"'Population 2016'!D104/'Population 2016'!D$6","v":3.5898307744618524E-2},{"$f":"'Population 2016'!E104/'Population 2016'!E$6","v":2.9863728616990434E-2},{"$f":"'Population 2016'!F104/'Population 2016'!F$6","v":3.0554834242188175E-2},{"$f":"'Population 2016'!G104/'Population 2016'!G$6","v":1.9926116646143514E-2},{"$f":"'Population 2016'!H104/'Population 2016'!H$6","v":1.5239957786032423E-2},{"$f":"'Population 2016'!I104/'Population 2016'!I$6","v":2.3016412547343885E-2},{"$f":"'Population 2016'!J104/'Population 2016'!J$6","v":1.98549602196719E-2},{"$f":"'Population 2016'!K104/'Population 2016'!K$6","v":1.9161278052491442E-2},{"$f":"'Population 2016'!L104/'Population 2016'!L$6","v":2.438097792080093E-2},{"$f":"'Population 2016'!M104/'Population 2016'!M$6","v":2.438097792080093E-2},{"$f":"'Population 2016'!N104/'Population 2016'!N$6","v":1.6262553485568088E-2},{"$f":"'Population 2016'!O104/'Population 2016'!O$6","v":1.6596797470964195E-2},{"$f":"'Population 2016'!P104/'Population 2016'!P$6","v":2.7277052386742082E-2},{"$f":"'Population 2016'!Q104/'Population 2016'!Q$6","v":3.6676416256157633E-2},{"$f":"'Population 2016'!R104/'Population 2016'!R$6","v":2.100051220761482E-2},{"$f":"'Population 2016'!S104/'Population 2016'!S$6","v":2.7491345658098253E-2},{"$f":"'Population 2016'!T104/'Population 2016'!T$6","v":3.2838009827802737E-2},{"$f":"'Population 2016'!U104/'Population 2016'!U$6","v":2.7614138438880706E-2},{"$f":"'Population 2016'!V104/'Population 2016'!V$6","v":2.6601385746606334E-2},{"$f":"'Population 2016'!W104/'Population 2016'!W$6","v":1.9655958549222797E-2},{"$f":"'Population 2016'!X104/'Population 2016'!X$6","v":1.9655958549222797E-2},{"$f":"'Population 2016'!Y104/'Population 2016'!Y$6","v":2.370318092453496E-2},{"$f":"'Population 2016'!Z104/'Population 2016'!Z$6","v":1.500223301767274E-2},{"$f":"'Population 2016'!AA104/'Population 2016'!AA$6","v":1.7404400782416868E-2},{"$f":"'Population 2016'!AB104/'Population 2016'!AB$6","v":3.6739637538130268E-2},{"$f":"'Population 2016'!AC104/'Population 2016'!AC$6","v":1.5550532421906915E-2},{"$f":"'Population 2016'!AD104/'Population 2016'!AD$6","v":2.5416833104019647E-2},{"$f":"'Population 2016'!AE104/'Population 2016'!AE$6","v":2.7389546926217145E-2},{"$f":"'Population 2016'!AF104/'Population 2016'!AF$6","v":1.0482354242725965E-2},{"$f":"'Population 2016'!AG104/'Population 2016'!AG$6","v":2.7389546926217145E-2},{"$f":"'Population 2016'!AH104/'Population 2016'!AH$6","v":2.0736384645775281E-2},{"$f":"'Population 2016'!AI104/'Population 2016'!AI$6","v":3.1832658818014788E-2},{"$f":"'Population 2016'!AJ104/'Population 2016'!AJ$6","v":3.2521322942872924E-2},{"$f":"'Population 2016'!AK104/'Population 2016'!AK$6","v":4.1804440245630611E-2},{"$f":"'Population 2016'!AL104/'Population 2016'!AL$6","v":1.1636169834784153E-2},{"$f":"'Population 2016'!AM104/'Population 2016'!AM$6","v":1.9533918984870668E-2},{"$f":"'Population 2016'!AN104/'Population 2016'!AN$6","v":2.3836985774702037E-2},{"$f":"'Population 2016'!AO104/'Population 2016'!AO$6","v":2.3836985774702037E-2},{"$f":"'Population 2016'!AP104/'Population 2016'!AP$6","v":3.3306138119690937E-2},{"$f":"'Population 2016'!AQ104/'Population 2016'!AQ$6","v":1.5176271435931405E-2},{"$f":"'Population 2016'!AR104/'Population 2016'!AR$6","v":2.1535484206444931E-2},{"$f":"'Population 2016'!AS104/'Population 2016'!AS$6","v":2.3016412547343885E-2},{"$f":"'Population 2016'!AT104/'Population 2016'!AT$6","v":2.5437201907790145E-2},{"$f":"'Population 2016'!AU104/'Population 2016'!AU$6","v":2.5437201907790145E-2},{"$f":"'Population 2016'!AV104/'Population 2016'!AV$6","v":1.9158822828547598E-2},{"$f":"'Population 2016'!AW104/'Population 2016'!AW$6","v":2.2350715403074553E-2},{"$f":"'Population 2016'!AX104/'Population 2016'!AX$6","v":2.0531121101172545E-2},{"$f":"'Population 2016'!AY104/'Population 2016'!AY$6","v":2.0969399381710142E-2},{"$f":"'Population 2016'!AZ104/'Population 2016'!AZ$6","v":2.2384593397170215E-2},{"$f":"'Population 2016'!BA104/'Population 2016'!BA$6","v":1.7612017612017611E-2},{"$f":"'Population 2016'!BB104/'Population 2016'!BB$6","v":2.7496921381813467E-2},{"$f":"'Population 2016'!BC104/'Population 2016'!BC$6","v":2.7614138438880706E-2},102]
[null,"Female 35-39",{"$f":"'Population 2016'!C105/'Population 2016'!C$6","v":2.8508929211790861E-2},{"$f":"'Population 2016'!D105/'Population 2016'!D$6","v":2.8862500980828081E-2},{"$f":"'Population 2016'!E105/'Population 2016'!E$6","v":2.9815405431526047E-2},{"$f":"'Population 2016'!F105/'Population 2016'!F$6","v":2.4495801956201851E-2},{"$f":"'Population 2016'!G105/'Population 2016'!G$6","v":2.0877644688234637E-2},{"$f":"'Population 2016'!H105/'Population 2016'!H$6","v":1.5347281432412934E-2},{"$f":"'Population 2016'!I105/'Population 2016'!I$6","v":2.2093813732154997E-2},{"$f":"'Population 2016'!J105/'Population 2016'!J$6","v":1.9901898659907533E-2},{"$f":"'Population 2016'!K105/'Population 2016'!K$6","v":1.9351464435146442E-2},{"$f":"'Population 2016'!L105/'Population 2016'!L$6","v":2.3799946366318048E-2},{"$f":"'Population 2016'!M105/'Population 2016'!M$6","v":2.3799946366318048E-2},{"$f":"'Population 2016'!N105/'Population 2016'!N$6","v":1.2674793042097369E-2},{"$f":"'Population 2016'!O105/'Population 2016'!O$6","v":1.6493711772386777E-2},{"$f":"'Population 2016'!P105/'Population 2016'!P$6","v":3.0554527673521171E-2},{"$f":"'Population 2016'!Q105/'Population 2016'!Q$6","v":3.4598214285714288E-2},{"$f":"'Population 2016'!R105/'Population 2016'!R$6","v":2.2963974731091002E-2},{"$f":"'Population 2016'!S105/'Population 2016'!S$6","v":2.2895863803280757E-2},{"$f":"'Population 2016'!T105/'Population 2016'!T$6","v":2.2184199657796919E-2},{"$f":"'Population 2016'!U105/'Population 2016'!U$6","v":2.8166421207658322E-2},{"$f":"'Population 2016'!V105/'Population 2016'!V$6","v":2.5929722850678735E-2},{"$f":"'Population 2016'!W105/'Population 2016'!W$6","v":1.8528497409326425E-2},{"$f":"'Population 2016'!X105/'Population 2016'!X$6","v":1.8528497409326425E-2},{"$f":"'Population 2016'!Y105/'Population 2016'!Y$6","v":2.3340222815949992E-2},{"$f":"'Population 2016'!Z105/'Population 2016'!Z$6","v":1.1201545795091007E-2},{"$f":"'Population 2016'!AA105/'Population 2016'!AA$6","v":1.483717355031028E-2},{"$f":"'Population 2016'!AB105/'Population 2016'!AB$6","v":2.9674322626951372E-2},{"$f":"'Population 2016'!AC105/'Population 2016'!AC$6","v":1.2731828208829217E-2},{"$f":"'Population 2016'!AD105/'Population 2016'!AD$6","v":2.4040950986048852E-2},{"$f":"'Population 2016'!AE105/'Population 2016'!AE$6","v":2.5177468980634263E-2},{"$f":"'Population 2016'!AF105/'Population 2016'!AF$6","v":6.8591658369288634E-3},{"$f":"'Population 2016'!AG105/'Population 2016'!AG$6","v":2.5177468980634263E-2},{"$f":"'Population 2016'!AH105/'Population 2016'!AH$6","v":1.8621140553599588E-2},{"$f":"'Population 2016'!AI105/'Population 2016'!AI$6","v":2.516981463733118E-2},{"$f":"'Population 2016'!AJ105/'Population 2016'!AJ$6","v":3.1447505675891267E-2},{"$f":"'Population 2016'!AK105/'Population 2016'!AK$6","v":3.4561486380097622E-2},{"$f":"'Population 2016'!AL105/'Population 2016'!AL$6","v":1.139930123763842E-2},{"$f":"'Population 2016'!AM105/'Population 2016'!AM$6","v":1.796608101512933E-2},{"$f":"'Population 2016'!AN105/'Population 2016'!AN$6","v":2.7297193387158785E-2},{"$f":"'Population 2016'!AO105/'Population 2016'!AO$6","v":2.7297193387158785E-2},{"$f":"'Population 2016'!AP105/'Population 2016'!AP$6","v":2.5339540240917599E-2},{"$f":"'Population 2016'!AQ105/'Population 2016'!AQ$6","v":1.40722749687201E-2},{"$f":"'Population 2016'!AR105/'Population 2016'!AR$6","v":1.8659715384797989E-2},{"$f":"'Population 2016'!AS105/'Population 2016'!AS$6","v":2.2093813732154997E-2},{"$f":"'Population 2016'!AT105/'Population 2016'!AT$6","v":5.4054054054054057E-2},{"$f":"'Population 2016'!AU105/'Population 2016'!AU$6","v":5.4054054054054057E-2},{"$f":"'Population 2016'!AV105/'Population 2016'!AV$6","v":2.0111998093649469E-2},{"$f":"'Population 2016'!AW105/'Population 2016'!AW$6","v":1.9500569210231043E-2},{"$f":"'Population 2016'!AX105/'Population 2016'!AX$6","v":2.0438429809519397E-2},{"$f":"'Population 2016'!AY105/'Population 2016'!AY$6","v":1.8019838591090263E-2},{"$f":"'Population 2016'!AZ105/'Population 2016'!AZ$6","v":1.7471773617264541E-2},{"$f":"'Population 2016'!BA105/'Population 2016'!BA$6","v":1.607793915486223E-2},{"$f":"'Population 2016'!BB105/'Population 2016'!BB$6","v":2.362434376822866E-2},{"$f":"'Population 2016'!BC105/'Population 2016'!BC$6","v":2.8166421207658322E-2},103]
[null,"Female 40-44",{"$f":"'Population 2016'!C106/'Population 2016'!C$6","v":2.5693896578928496E-2},{"$f":"'Population 2016'!D106/'Population 2016'!D$6","v":2.6730834619307926E-2},{"$f":"'Population 2016'!E106/'Population 2016'!E$6","v":2.9525466318739733E-2},{"$f":"'Population 2016'!F106/'Population 2016'!F$6","v":2.709253007876742E-2},{"$f":"'Population 2016'!G106/'Population 2016'!G$6","v":2.4571812381058995E-2},{"$f":"'Population 2016'!H106/'Population 2016'!H$6","v":1.6790188233750902E-2},{"$f":"'Population 2016'!I106/'Population 2016'!I$6","v":2.398756919491114E-2},{"$f":"'Population 2016'!J106/'Population 2016'!J$6","v":2.1239644206623012E-2},{"$f":"'Population 2016'!K106/'Population 2016'!K$6","v":2.1966527196652718E-2},{"$f":"'Population 2016'!L106/'Population 2016'!L$6","v":2.6749798873692679E-2},{"$f":"'Population 2016'!M106/'Population 2016'!M$6","v":2.6749798873692679E-2},{"$f":"'Population 2016'!N106/'Population 2016'!N$6","v":1.1277919098942787E-2},{"$f":"'Population 2016'!O106/'Population 2016'!O$6","v":1.7610473506975467E-2},{"$f":"'Population 2016'!P106/'Population 2016'!P$6","v":2.9074377544008035E-2},{"$f":"'Population 2016'!Q106/'Population 2016'!Q$6","v":3.3597598522167489E-2},{"$f":"'Population 2016'!R106/'Population 2016'!R$6","v":2.2707870923681064E-2},{"$f":"'Population 2016'!S106/'Population 2016'!S$6","v":2.2772230347541535E-2},{"$f":"'Population 2016'!T106/'Population 2016'!T$6","v":1.9554461704441053E-2},{"$f":"'Population 2016'!U106/'Population 2016'!U$6","v":3.6818851251840944E-2},{"$f":"'Population 2016'!V106/'Population 2016'!V$6","v":2.7131645927601811E-2},{"$f":"'Population 2016'!W106/'Population 2016'!W$6","v":1.9813471502590673E-2},{"$f":"'Population 2016'!X106/'Population 2016'!X$6","v":1.9813471502590673E-2},{"$f":"'Population 2016'!Y106/'Population 2016'!Y$6","v":2.4600494026314462E-2},{"$f":"'Population 2016'!Z106/'Population 2016'!Z$6","v":9.8252777600554148E-3},{"$f":"'Population 2016'!AA106/'Population 2016'!AA$6","v":1.4814675940681303E-2},{"$f":"'Population 2016'!AB106/'Population 2016'!AB$6","v":2.8048178718822897E-2},{"$f":"'Population 2016'!AC106/'Population 2016'!AC$6","v":1.2233837678430396E-2},{"$f":"'Population 2016'!AD106/'Population 2016'!AD$6","v":2.6718743065110292E-2},{"$f":"'Population 2016'!AE106/'Population 2016'!AE$6","v":2.749009592374364E-2},{"$f":"'Population 2016'!AF106/'Population 2016'!AF$6","v":8.0484566876866913E-3},{"$f":"'Population 2016'!AG106/'Population 2016'!AG$6","v":2.749009592374364E-2},{"$f":"'Population 2016'!AH106/'Population 2016'!AH$6","v":1.9453253105562916E-2},{"$f":"'Population 2016'!AI106/'Population 2016'!AI$6","v":2.4161180562240255E-2},{"$f":"'Population 2016'!AJ106/'Population 2016'!AJ$6","v":2.979075903540529E-2},{"$f":"'Population 2016'!AK106/'Population 2016'!AK$6","v":3.5978586049441035E-2},{"$f":"'Population 2016'!AL106/'Population 2016'!AL$6","v":1.3560727186593237E-2},{"$f":"'Population 2016'!AM106/'Population 2016'!AM$6","v":1.8704245973645679E-2},{"$f":"'Population 2016'!AN106/'Population 2016'!AN$6","v":4.0369088811995385E-2},{"$f":"'Population 2016'!AO106/'Population 2016'!AO$6","v":4.0369088811995385E-2},{"$f":"'Population 2016'!AP106/'Population 2016'!AP$6","v":2.2076114603829727E-2},{"$f":"'Population 2016'!AQ106/'Population 2016'!AQ$6","v":1.6368587620519615E-2},{"$f":"'Population 2016'!AR106/'Population 2016'!AR$6","v":1.8901623611147222E-2},{"$f":"'Population 2016'!AS106/'Population 2016'!AS$6","v":2.398756919491114E-2},{"$f":"'Population 2016'!AT106/'Population 2016'!AT$6","v":2.2257551669316374E-2},{"$f":"'Population 2016'!AU106/'Population 2016'!AU$6","v":2.2257551669316374E-2},{"$f":"'Population 2016'!AV106/'Population 2016'!AV$6","v":2.0850708924103418E-2},{"$f":"'Population 2016'!AW106/'Population 2016'!AW$6","v":2.045880801644567E-2},{"$f":"'Population 2016'!AX106/'Population 2016'!AX$6","v":2.0531121101172545E-2},{"$f":"'Population 2016'!AY106/'Population 2016'!AY$6","v":1.8243420458600806E-2},{"$f":"'Population 2016'!AZ106/'Population 2016'!AZ$6","v":1.6551736458482208E-2},{"$f":"'Population 2016'!BA106/'Population 2016'!BA$6","v":1.665570896340127E-2},{"$f":"'Population 2016'!BB106/'Population 2016'!BB$6","v":2.6071035063840821E-2},{"$f":"'Population 2016'!BC106/'Population 2016'!BC$6","v":3.6818851251840944E-2},104]
[null,"Female 45-49",{"$f":"'Population 2016'!C107/'Population 2016'!C$6","v":2.6859355949221831E-2},{"$f":"'Population 2016'!D107/'Population 2016'!D$6","v":2.8561713702822171E-2},{"$f":"'Population 2016'!E107/'Population 2016'!E$6","v":3.3149705228568666E-2},{"$f":"'Population 2016'!F107/'Population 2016'!F$6","v":2.8780403358435038E-2},{"$f":"'Population 2016'!G107/'Population 2016'!G$6","v":2.9105563640434345E-2},{"$f":"'Population 2016'!H107/'Population 2016'!H$6","v":2.1387217753716083E-2},{"$f":"'Population 2016'!I107/'Population 2016'!I$6","v":3.2242400699232787E-2},{"$f":"'Population 2016'!J107/'Population 2016'!J$6","v":2.4407988922528105E-2},{"$f":"'Population 2016'!K107/'Population 2016'!K$6","v":2.5912894636744011E-2},{"$f":"'Population 2016'!L107/'Population 2016'!L$6","v":3.4995977473853579E-2},{"$f":"'Population 2016'!M107/'Population 2016'!M$6","v":3.4995977473853579E-2},{"$f":"'Population 2016'!N107/'Population 2016'!N$6","v":1.1748445058742226E-2},{"$f":"'Population 2016'!O107/'Population 2016'!O$6","v":2.2816301285135041E-2},{"$f":"'Population 2016'!P107/'Population 2016'!P$6","v":3.9858328487603741E-2},{"$f":"'Population 2016'!Q107/'Population 2016'!Q$6","v":4.2102832512315273E-2},{"$f":"'Population 2016'!R107/'Population 2016'!R$6","v":3.2866655284275223E-2},{"$f":"'Population 2016'!S107/'Population 2016'!S$6","v":2.5563189848378035E-2},{"$f":"'Population 2016'!T107/'Population 2016'!T$6","v":1.8290164611481502E-2},{"$f":"'Population 2016'!U107/'Population 2016'!U$6","v":4.2893961708394698E-2},{"$f":"'Population 2016'!V107/'Population 2016'!V$6","v":3.1073246606334842E-2},{"$f":"'Population 2016'!W107/'Population 2016'!W$6","v":2.267357512953368E-2},{"$f":"'Population 2016'!X107/'Population 2016'!X$6","v":2.267357512953368E-2},{"$f":"'Population 2016'!Y107/'Population 2016'!Y$6","v":2.8209910772798306E-2},{"$f":"'Population 2016'!Z107/'Population 2016'!Z$6","v":1.1073944785220157E-2},{"$f":"'Population 2016'!AA107/'Population 2016'!AA$6","v":1.7819356693351333E-2},{"$f":"'Population 2016'!AB107/'Population 2016'!AB$6","v":3.0414498474789161E-2},{"$f":"'Population 2016'!AC107/'Population 2016'!AC$6","v":1.4556496636618644E-2},{"$f":"'Population 2016'!AD107/'Population 2016'!AD$6","v":3.1571316556448153E-2},{"$f":"'Population 2016'!AE107/'Population 2016'!AE$6","v":3.2457216401552476E-2},{"$f":"'Population 2016'!AF107/'Population 2016'!AF$6","v":1.1063170704723974E-2},{"$f":"'Population 2016'!AG107/'Population 2016'!AG$6","v":3.2457216401552476E-2},{"$f":"'Population 2016'!AH107/'Population 2016'!AH$6","v":2.3683741289914306E-2},{"$f":"'Population 2016'!AI107/'Population 2016'!AI$6","v":2.6446301744811395E-2},{"$f":"'Population 2016'!AJ107/'Population 2016'!AJ$6","v":3.7307479904276859E-2},{"$f":"'Population 2016'!AK107/'Population 2016'!AK$6","v":4.1568256967406708E-2},{"$f":"'Population 2016'!AL107/'Population 2016'!AL$6","v":1.6876887546633506E-2},{"$f":"'Population 2016'!AM107/'Population 2016'!AM$6","v":2.2010736944851148E-2},{"$f":"'Population 2016'!AN107/'Population 2016'!AN$6","v":3.6524413687043442E-2},{"$f":"'Population 2016'!AO107/'Population 2016'!AO$6","v":3.6524413687043442E-2},{"$f":"'Population 2016'!AP107/'Population 2016'!AP$6","v":2.7979075682679849E-2},{"$f":"'Population 2016'!AQ107/'Population 2016'!AQ$6","v":1.8650180319422976E-2},{"$f":"'Population 2016'!AR107/'Population 2016'!AR$6","v":2.2139124360045351E-2},{"$f":"'Population 2016'!AS107/'Population 2016'!AS$6","v":3.2242400699232787E-2},{"$f":"'Population 2016'!AT107/'Population 2016'!AT$6","v":3.6565977742448331E-2},{"$f":"'Population 2016'!AU107/'Population 2016'!AU$6","v":3.6565977742448331E-2},{"$f":"'Population 2016'!AV107/'Population 2016'!AV$6","v":2.6665078041224831E-2},{"$f":"'Population 2016'!AW107/'Population 2016'!AW$6","v":2.5929778294662528E-2},{"$f":"'Population 2016'!AX107/'Population 2016'!AX$6","v":2.2941094684154423E-2},{"$f":"'Population 2016'!AY107/'Population 2016'!AY$6","v":2.0560932508373569E-2},{"$f":"'Population 2016'!AZ107/'Population 2016'!AZ$6","v":1.8284621980848934E-2},{"$f":"'Population 2016'!BA107/'Population 2016'!BA$6","v":2.0560635945251329E-2},{"$f":"'Population 2016'!BB107/'Population 2016'!BB$6","v":2.9797783394905696E-2},{"$f":"'Population 2016'!BC107/'Population 2016'!BC$6","v":4.2893961708394698E-2},105]
[null,"Female 50-54",{"$f":"'Population 2016'!C108/'Population 2016'!C$6","v":2.8006885175356811E-2},{"$f":"'Population 2016'!D108/'Population 2016'!D$6","v":3.0013339261894176E-2},{"$f":"'Population 2016'!E108/'Population 2016'!E$6","v":3.5420894945394799E-2},{"$f":"'Population 2016'!F108/'Population 2016'!F$6","v":2.6832857266510864E-2},{"$f":"'Population 2016'!G108/'Population 2016'!G$6","v":3.2295981193328112E-2},{"$f":"'Population 2016'!H108/'Population 2016'!H$6","v":2.2096746304787231E-2},{"$f":"'Population 2016'!I108/'Population 2016'!I$6","v":3.4621734485772555E-2},{"$f":"'Population 2016'!J108/'Population 2016'!J$6","v":2.5581449928418879E-2},{"$f":"'Population 2016'!K108/'Population 2016'!K$6","v":2.6721186763027767E-2},{"$f":"'Population 2016'!L108/'Population 2016'!L$6","v":3.787878787878788E-2},{"$f":"'Population 2016'!M108/'Population 2016'!M$6","v":3.787878787878788E-2},{"$f":"'Population 2016'!N108/'Population 2016'!N$6","v":1.4012851240277022E-2},{"$f":"'Population 2016'!O108/'Population 2016'!O$6","v":2.1544911002680227E-2},{"$f":"'Population 2016'!P108/'Population 2016'!P$6","v":3.9118253422847173E-2},{"$f":"'Population 2016'!Q108/'Population 2016'!Q$6","v":4.2795566502463057E-2},{"$f":"'Population 2016'!R108/'Population 2016'!R$6","v":3.0988560696602357E-2},{"$f":"'Population 2016'!S108/'Population 2016'!S$6","v":2.5781521270215386E-2},{"$f":"'Population 2016'!T108/'Population 2016'!T$6","v":1.7363013409977833E-2},{"$f":"'Population 2016'!U108/'Population 2016'!U$6","v":4.9705449189985269E-2},{"$f":"'Population 2016'!V108/'Population 2016'!V$6","v":3.0967194570135748E-2},{"$f":"'Population 2016'!W108/'Population 2016'!W$6","v":2.4431088082901554E-2},{"$f":"'Population 2016'!X108/'Population 2016'!X$6","v":2.4431088082901554E-2},{"$f":"'Population 2016'!Y108/'Population 2016'!Y$6","v":2.8653526238846601E-2},{"$f":"'Population 2016'!Z108/'Population 2016'!Z$6","v":1.1347375520657692E-2},{"$f":"'Population 2016'!AA108/'Population 2016'!AA$6","v":1.848303617740615E-2},{"$f":"'Population 2016'!AB108/'Population 2016'!AB$6","v":3.1491117889825948E-2},{"$f":"'Population 2016'!AC108/'Population 2016'!AC$6","v":1.5029198585395649E-2},{"$f":"'Population 2016'!AD108/'Population 2016'!AD$6","v":3.4485819537526073E-2},{"$f":"'Population 2016'!AE108/'Population 2016'!AE$6","v":3.5272588332294325E-2},{"$f":"'Population 2016'!AF108/'Population 2016'!AF$6","v":1.3275804845668768E-2},{"$f":"'Population 2016'!AG108/'Population 2016'!AG$6","v":3.5272588332294325E-2},{"$f":"'Population 2016'!AH108/'Population 2016'!AH$6","v":2.4690667403214472E-2},{"$f":"'Population 2016'!AI108/'Population 2016'!AI$6","v":2.5701335498478677E-2},{"$f":"'Population 2016'!AJ108/'Population 2016'!AJ$6","v":3.7031355464195864E-2},{"$f":"'Population 2016'!AK108/'Population 2016'!AK$6","v":4.0387340576287199E-2},{"$f":"'Population 2016'!AL108/'Population 2016'!AL$6","v":1.7602297625392314E-2},{"$f":"'Population 2016'!AM108/'Population 2016'!AM$6","v":2.2712298682284041E-2},{"$f":"'Population 2016'!AN108/'Population 2016'!AN$6","v":4.690503652441369E-2},{"$f":"'Population 2016'!AO108/'Population 2016'!AO$6","v":4.690503652441369E-2},{"$f":"'Population 2016'!AP108/'Population 2016'!AP$6","v":2.6971253059461534E-2},{"$f":"'Population 2016'!AQ108/'Population 2016'!AQ$6","v":1.9356738058438214E-2},{"$f":"'Population 2016'!AR108/'Population 2016'!AR$6","v":2.2901022231818165E-2},{"$f":"'Population 2016'!AS108/'Population 2016'!AS$6","v":3.4621734485772555E-2},{"$f":"'Population 2016'!AT108/'Population 2016'!AT$6","v":3.1796502384737677E-2},{"$f":"'Population 2016'!AU108/'Population 2016'!AU$6","v":3.1796502384737677E-2},{"$f":"'Population 2016'!AV108/'Population 2016'!AV$6","v":3.0096508995591565E-2},{"$f":"'Population 2016'!AW108/'Population 2016'!AW$6","v":2.7346661315817491E-2},{"$f":"'Population 2016'!AX108/'Population 2016'!AX$6","v":2.4470500996431385E-2},{"$f":"'Population 2016'!AY108/'Population 2016'!AY$6","v":2.1850827897857483E-2},{"$f":"'Population 2016'!AZ108/'Population 2016'!AZ$6","v":1.9070673145633842E-2},{"$f":"'Population 2016'!BA108/'Population 2016'!BA$6","v":2.1775944852867931E-2},{"$f":"'Population 2016'!BB108/'Population 2016'!BB$6","v":2.855013286667963E-2},{"$f":"'Population 2016'!BC108/'Population 2016'!BC$6","v":4.9705449189985269E-2},106]
[null,"Female 55-59",{"$f":"'Population 2016'!C109/'Population 2016'!C$6","v":2.4922900380119056E-2},{"$f":"'Population 2016'!D109/'Population 2016'!D$6","v":2.6730834619307926E-2},{"$f":"'Population 2016'!E109/'Population 2016'!E$6","v":3.1603363293708324E-2},{"$f":"'Population 2016'!F109/'Population 2016'!F$6","v":2.9040076170691594E-2},{"$f":"'Population 2016'!G109/'Population 2016'!G$6","v":3.2855703571028773E-2},{"$f":"'Population 2016'!H109/'Population 2016'!H$6","v":2.0773087999427606E-2},{"$f":"'Population 2016'!I109/'Population 2016'!I$6","v":3.3650577838205305E-2},{"$f":"'Population 2016'!J109/'Population 2016'!J$6","v":2.1967190030275294E-2},{"$f":"'Population 2016'!K109/'Population 2016'!K$6","v":2.2394446557626475E-2},{"$f":"'Population 2016'!L109/'Population 2016'!L$6","v":3.5353535353535352E-2},{"$f":"'Population 2016'!M109/'Population 2016'!M$6","v":3.5353535353535352E-2},{"$f":"'Population 2016'!N109/'Population 2016'!N$6","v":1.3233542619359202E-2},{"$f":"'Population 2016'!O109/'Population 2016'!O$6","v":2.0410968318328636E-2},{"$f":"'Population 2016'!P109/'Population 2016'!P$6","v":3.700375323782841E-2},{"$f":"'Population 2016'!Q109/'Population 2016'!Q$6","v":4.0524938423645324E-2},{"$f":"'Population 2016'!R109/'Population 2016'!R$6","v":2.4585965511353936E-2},{"$f":"'Population 2016'!S109/'Population 2016'!S$6","v":2.3879670451077979E-2},{"$f":"'Population 2016'!T109/'Population 2016'!T$6","v":1.57699990728488E-2},{"$f":"'Population 2016'!U109/'Population 2016'!U$6","v":4.252577319587629E-2},{"$f":"'Population 2016'!V109/'Population 2016'!V$6","v":2.7043269230769232E-2},{"$f":"'Population 2016'!W109/'Population 2016'!W$6","v":2.205181347150259E-2},{"$f":"'Population 2016'!X109/'Population 2016'!X$6","v":2.205181347150259E-2},{"$f":"'Population 2016'!Y109/'Population 2016'!Y$6","v":2.4862630438070271E-2},{"$f":"'Population 2016'!Z109/'Population 2016'!Z$6","v":1.0156432761863097E-2},{"$f":"'Population 2016'!AA109/'Population 2016'!AA$6","v":1.6771967978402295E-2},{"$f":"'Population 2016'!AB109/'Population 2016'!AB$6","v":2.8631347568634488E-2},{"$f":"'Population 2016'!AC109/'Population 2016'!AC$6","v":1.3496321484011781E-2},{"$f":"'Population 2016'!AD109/'Population 2016'!AD$6","v":3.3420620478451908E-2},{"$f":"'Population 2016'!AE109/'Population 2016'!AE$6","v":3.3623584772859816E-2},{"$f":"'Population 2016'!AF109/'Population 2016'!AF$6","v":1.2114171921672752E-2},{"$f":"'Population 2016'!AG109/'Population 2016'!AG$6","v":3.3623584772859816E-2},{"$f":"'Population 2016'!AH109/'Population 2016'!AH$6","v":2.2659333820480458E-2},{"$f":"'Population 2016'!AI109/'Population 2016'!AI$6","v":2.3960290787948289E-2},{"$f":"'Population 2016'!AJ109/'Population 2016'!AJ$6","v":3.629502362397987E-2},{"$f":"'Population 2016'!AK109/'Population 2016'!AK$6","v":4.0072429538655328E-2},{"$f":"'Population 2016'!AL109/'Population 2016'!AL$6","v":1.5692544560904839E-2},{"$f":"'Population 2016'!AM109/'Population 2016'!AM$6","v":2.0552708638360177E-2},{"$f":"'Population 2016'!AN109/'Population 2016'!AN$6","v":4.1906958861976165E-2},{"$f":"'Population 2016'!AO109/'Population 2016'!AO$6","v":4.1906958861976165E-2},{"$f":"'Population 2016'!AP109/'Population 2016'!AP$6","v":2.4427700724672458E-2},{"$f":"'Population 2016'!AQ109/'Population 2016'!AQ$6","v":1.7060425406638699E-2},{"$f":"'Population 2016'!AR109/'Population 2016'!AR$6","v":2.1068058731700038E-2},{"$f":"'Population 2016'!AS109/'Population 2016'!AS$6","v":3.3650577838205305E-2},{"$f":"'Population 2016'!AT109/'Population 2016'!AT$6","v":2.2257551669316374E-2},{"$f":"'Population 2016'!AU109/'Population 2016'!AU$6","v":2.2257551669316374E-2},{"$f":"'Population 2016'!AV109/'Population 2016'!AV$6","v":2.9453115691647803E-2},{"$f":"'Population 2016'!AW109/'Population 2016'!AW$6","v":2.5487514230255776E-2},{"$f":"'Population 2016'!AX109/'Population 2016'!AX$6","v":2.1550725309357185E-2},{"$f":"'Population 2016'!AY109/'Population 2016'!AY$6","v":2.0380347153845822E-2},{"$f":"'Population 2016'!AZ109/'Population 2016'!AZ$6","v":1.8579391167643275E-2},{"$f":"'Population 2016'!BA109/'Population 2016'!BA$6","v":2.0122327814635507E-2},{"$f":"'Population 2016'!BB109/'Population 2016'!BB$6","v":2.6216864346360749E-2},{"$f":"'Population 2016'!BC109/'Population 2016'!BC$6","v":4.252577319587629E-2},107]
[null,"Female 60-64",{"$f":"'Population 2016'!C110/'Population 2016'!C$6","v":2.2269239044681918E-2},{"$f":"'Population 2016'!D110/'Population 2016'!D$6","v":2.4219914733345539E-2},{"$f":"'Population 2016'!E110/'Population 2016'!E$6","v":2.9477143133275346E-2},{"$f":"'Population 2016'!F110/'Population 2016'!F$6","v":2.4365965550073573E-2},{"$f":"'Population 2016'!G110/'Population 2016'!G$6","v":2.9441397067054741E-2},{"$f":"'Population 2016'!H110/'Population 2016'!H$6","v":1.8280794433480206E-2},{"$f":"'Population 2016'!I110/'Population 2016'!I$6","v":3.0542876565990095E-2},{"$f":"'Population 2016'!J110/'Population 2016'!J$6","v":1.8681499213781125E-2},{"$f":"'Population 2016'!K110/'Population 2016'!K$6","v":1.9874476987447699E-2},{"$f":"'Population 2016'!L110/'Population 2016'!L$6","v":3.4772503799052473E-2},{"$f":"'Population 2016'!M110/'Population 2016'!M$6","v":3.4772503799052473E-2},{"$f":"'Population 2016'!N110/'Population 2016'!N$6","v":1.1395550588892647E-2},{"$f":"'Population 2016'!O110/'Population 2016'!O$6","v":1.7868187753419008E-2},{"$f":"'Population 2016'!P110/'Population 2016'!P$6","v":2.7911402442247712E-2},{"$f":"'Population 2016'!Q110/'Population 2016'!Q$6","v":3.3943965517241381E-2},{"$f":"'Population 2016'!R110/'Population 2016'!R$6","v":2.142735188663138E-2},{"$f":"'Population 2016'!S110/'Population 2016'!S$6","v":2.0523153652710992E-2},{"$f":"'Population 2016'!T110/'Population 2016'!T$6","v":1.2946402231905801E-2},{"$f":"'Population 2016'!U110/'Population 2016'!U$6","v":4.5655375552282766E-2},{"$f":"'Population 2016'!V110/'Population 2016'!V$6","v":2.5205033936651584E-2},{"$f":"'Population 2016'!W110/'Population 2016'!W$6","v":2.010362694300518E-2},{"$f":"'Population 2016'!X110/'Population 2016'!X$6","v":2.010362694300518E-2},{"$f":"'Population 2016'!Y110/'Population 2016'!Y$6","v":2.2402581035438827E-2},{"$f":"'Population 2016'!Z110/'Population 2016'!Z$6","v":7.9902537133412933E-3},{"$f":"'Population 2016'!AA110/'Population 2016'!AA$6","v":1.4247236231150441E-2},{"$f":"'Population 2016'!AB110/'Population 2016'!AB$6","v":2.6242598241521621E-2},{"$f":"'Population 2016'!AC110/'Population 2016'!AC$6","v":1.0763209393346379E-2},{"$f":"'Population 2016'!AD110/'Population 2016'!AD$6","v":3.0195434438477359E-2},{"$f":"'Population 2016'!AE110/'Population 2016'!AE$6","v":3.0466346250527881E-2},{"$f":"'Population 2016'!AF110/'Population 2016'!AF$6","v":8.7952207102555587E-3},{"$f":"'Population 2016'!AG110/'Population 2016'!AG$6","v":3.0466346250527881E-2},{"$f":"'Population 2016'!AH110/'Population 2016'!AH$6","v":2.0509127016037396E-2},{"$f":"'Population 2016'!AI110/'Population 2016'!AI$6","v":1.987134684038052E-2},{"$f":"'Population 2016'!AJ110/'Population 2016'!AJ$6","v":2.9729398048720622E-2},{"$f":"'Population 2016'!AK110/'Population 2016'!AK$6","v":3.841914659108802E-2},{"$f":"'Population 2016'!AL110/'Population 2016'!AL$6","v":1.3664357197844496E-2},{"$f":"'Population 2016'!AM110/'Population 2016'!AM$6","v":1.8661542215714984E-2},{"$f":"'Population 2016'!AN110/'Population 2016'!AN$6","v":3.9984621299500193E-2},{"$f":"'Population 2016'!AO110/'Population 2016'!AO$6","v":3.9984621299500193E-2},{"$f":"'Population 2016'!AP110/'Population 2016'!AP$6","v":2.3899793636320006E-2},{"$f":"'Population 2016'!AQ110/'Population 2016'!AQ$6","v":1.3851475675277839E-2},{"$f":"'Population 2016'!AR110/'Population 2016'!AR$6","v":1.8450589114355896E-2},{"$f":"'Population 2016'!AS110/'Population 2016'!AS$6","v":3.0542876565990095E-2},{"$f":"'Population 2016'!AT110/'Population 2016'!AT$6","v":4.7694753577106522E-2},{"$f":"'Population 2016'!AU110/'Population 2016'!AU$6","v":4.7694753577106522E-2},{"$f":"'Population 2016'!AV110/'Population 2016'!AV$6","v":2.6283807935184082E-2},{"$f":"'Population 2016'!AW110/'Population 2016'!AW$6","v":2.2989541273884306E-2},{"$f":"'Population 2016'!AX110/'Population 2016'!AX$6","v":1.7518654122445198E-2},{"$f":"'Population 2016'!AY110/'Population 2016'!AY$6","v":1.8320814181969843E-2},{"$f":"'Population 2016'!AZ110/'Population 2016'!AZ$6","v":1.6399885665285122E-2},{"$f":"'Population 2016'!BA110/'Population 2016'!BA$6","v":1.723347877194031E-2},{"$f":"'Population 2016'!BB110/'Population 2016'!BB$6","v":2.205262816773608E-2},{"$f":"'Population 2016'!BC110/'Population 2016'!BC$6","v":4.5655375552282766E-2},108]
[null,"Female 65-69",{"$f":"'Population 2016'!C111/'Population 2016'!C$6","v":2.1067919386071863E-2},{"$f":"'Population 2016'!D111/'Population 2016'!D$6","v":2.4141448486909214E-2},{"$f":"'Population 2016'!E111/'Population 2016'!E$6","v":3.2424857446602881E-2},{"$f":"'Population 2016'!F111/'Population 2016'!F$6","v":2.6010560027698432E-2},{"$f":"'Population 2016'!G111/'Population 2016'!G$6","v":3.2295981193328112E-2},{"$f":"'Population 2016'!H111/'Population 2016'!H$6","v":1.8817412665382758E-2},{"$f":"'Population 2016'!I111/'Population 2016'!I$6","v":3.3213557346800038E-2},{"$f":"'Population 2016'!J111/'Population 2016'!J$6","v":1.9362106597197774E-2},{"$f":"'Population 2016'!K111/'Population 2016'!K$6","v":2.1823887409661468E-2},{"$f":"'Population 2016'!L111/'Population 2016'!L$6","v":3.4392598551890585E-2},{"$f":"'Population 2016'!M111/'Population 2016'!M$6","v":3.4392598551890585E-2},{"$f":"'Population 2016'!N111/'Population 2016'!N$6","v":1.1748445058742226E-2},{"$f":"'Population 2016'!O111/'Population 2016'!O$6","v":1.7988454401759328E-2},{"$f":"'Population 2016'!P111/'Population 2016'!P$6","v":2.7647089919120366E-2},{"$f":"'Population 2016'!Q111/'Population 2016'!Q$6","v":3.3020320197044338E-2},{"$f":"'Population 2016'!R111/'Population 2016'!R$6","v":2.1085880143418133E-2},{"$f":"'Population 2016'!S111/'Population 2016'!S$6","v":2.1115015940824294E-2},{"$f":"'Population 2016'!T111/'Population 2016'!T$6","v":1.2701971460600288E-2},{"$f":"'Population 2016'!U111/'Population 2016'!U$6","v":4.3446244477172311E-2},{"$f":"'Population 2016'!V111/'Population 2016'!V$6","v":2.5116657239819005E-2},{"$f":"'Population 2016'!W111/'Population 2016'!W$6","v":2.070880829015544E-2},{"$f":"'Population 2016'!X111/'Population 2016'!X$6","v":2.070880829015544E-2},{"$f":"'Population 2016'!Y111/'Population 2016'!Y$6","v":2.2644553107828806E-2},{"$f":"'Population 2016'!Z111/'Population 2016'!Z$6","v":6.9542550379613002E-3},{"$f":"'Population 2016'!AA111/'Population 2016'!AA$6","v":1.3693545060837286E-2},{"$f":"'Population 2016'!AB111/'Population 2016'!AB$6","v":2.5782792033016328E-2},{"$f":"'Population 2016'!AC111/'Population 2016'!AC$6","v":1.0354701536378597E-2},{"$f":"'Population 2016'!AD111/'Population 2016'!AD$6","v":3.1319811223055639E-2},{"$f":"'Population 2016'!AE111/'Population 2016'!AE$6","v":3.0969091238160357E-2},{"$f":"'Population 2016'!AF111/'Population 2016'!AF$6","v":9.9568536342515765E-3},{"$f":"'Population 2016'!AG111/'Population 2016'!AG$6","v":3.0969091238160357E-2},{"$f":"'Population 2016'!AH111/'Population 2016'!AH$6","v":1.9694495820207748E-2},{"$f":"'Population 2016'!AI111/'Population 2016'!AI$6","v":2.0277311592595538E-2},{"$f":"'Population 2016'!AJ111/'Population 2016'!AJ$6","v":3.1938393569368596E-2},{"$f":"'Population 2016'!AK111/'Population 2016'!AK$6","v":3.5663675011809164E-2},{"$f":"'Population 2016'!AL111/'Population 2016'!AL$6","v":1.4448984425889738E-2},{"$f":"'Population 2016'!AM111/'Population 2016'!AM$6","v":1.7911176183504147E-2},{"$f":"'Population 2016'!AN111/'Population 2016'!AN$6","v":4.5751633986928102E-2},{"$f":"'Population 2016'!AO111/'Population 2016'!AO$6","v":4.5751633986928102E-2},{"$f":"'Population 2016'!AP111/'Population 2016'!AP$6","v":2.2076114603829727E-2},{"$f":"'Population 2016'!AQ111/'Population 2016'!AQ$6","v":1.5544270258335173E-2},{"$f":"'Population 2016'!AR111/'Population 2016'!AR$6","v":1.8414415921630779E-2},{"$f":"'Population 2016'!AS111/'Population 2016'!AS$6","v":3.3213557346800038E-2},{"$f":"'Population 2016'!AT111/'Population 2016'!AT$6","v":3.9745627980922099E-2},{"$f":"'Population 2016'!AU111/'Population 2016'!AU$6","v":3.9745627980922099E-2},{"$f":"'Population 2016'!AV111/'Population 2016'!AV$6","v":2.6998689384010486E-2},{"$f":"'Population 2016'!AW111/'Population 2016'!AW$6","v":2.208863299453722E-2},{"$f":"'Population 2016'!AX111/'Population 2016'!AX$6","v":1.69625063725263E-2},{"$f":"'Population 2016'!AY111/'Population 2016'!AY$6","v":1.8737880357902973E-2},{"$f":"'Population 2016'!AZ111/'Population 2016'!AZ$6","v":1.6614263255681005E-2},{"$f":"'Population 2016'!BA111/'Population 2016'!BA$6","v":1.6894786125555356E-2},{"$f":"'Population 2016'!BB111/'Population 2016'!BB$6","v":2.3316481949575474E-2},{"$f":"'Population 2016'!BC111/'Population 2016'!BC$6","v":4.3446244477172311E-2},109]
[null,"Female 70-74",{"$f":"'Population 2016'!C112/'Population 2016'!C$6","v":1.4523416768270818E-2},{"$f":"'Population 2016'!D112/'Population 2016'!D$6","v":1.7432584416603458E-2},{"$f":"'Population 2016'!E112/'Population 2016'!E$6","v":2.5273025997873781E-2},{"$f":"'Population 2016'!F112/'Population 2016'!F$6","v":2.0990218990738337E-2},{"$f":"'Population 2016'!G112/'Population 2016'!G$6","v":2.664278517855144E-2},{"$f":"'Population 2016'!H112/'Population 2016'!H$6","v":1.5156483838847582E-2},{"$f":"'Population 2016'!I112/'Population 2016'!I$6","v":2.6561134310964359E-2},{"$f":"'Population 2016'!J112/'Population 2016'!J$6","v":1.5771315919172007E-2},{"$f":"'Population 2016'!K112/'Population 2016'!K$6","v":1.6783948269303919E-2},{"$f":"'Population 2016'!L112/'Population 2016'!L$6","v":2.7978904085098774E-2},{"$f":"'Population 2016'!M112/'Population 2016'!M$6","v":2.7978904085098774E-2},{"$f":"'Population 2016'!N112/'Population 2016'!N$6","v":9.4399270684762306E-3},{"$f":"'Population 2016'!O112/'Population 2016'!O$6","v":1.467253109751907E-2},{"$f":"'Population 2016'!P112/'Population 2016'!P$6","v":2.4739652164719565E-2},{"$f":"'Population 2016'!Q112/'Population 2016'!Q$6","v":2.6708743842364532E-2},{"$f":"'Population 2016'!R112/'Population 2016'!R$6","v":1.2463718627283592E-2},{"$f":"'Population 2016'!S112/'Population 2016'!S$6","v":1.6451141110491483E-2},{"$f":"'Population 2016'!T112/'Population 2016'!T$6","v":9.5749433173469983E-3},{"$f":"'Population 2016'!U112/'Population 2016'!U$6","v":3.1848306332842413E-2},{"$f":"'Population 2016'!V112/'Population 2016'!V$6","v":2.0503393665158371E-2},{"$f":"'Population 2016'!W112/'Population 2016'!W$6","v":1.5933678756476683E-2},{"$f":"'Population 2016'!X112/'Population 2016'!X$6","v":1.5933678756476683E-2},{"$f":"'Population 2016'!Y112/'Population 2016'!Y$6","v":1.8470534859101679E-2},{"$f":"'Population 2016'!Z112/'Population 2016'!Z$6","v":5.3106325060534526E-3},{"$f":"'Population 2016'!AA112/'Population 2016'!AA$6","v":1.1003830842972934E-2},{"$f":"'Population 2016'!AB112/'Population 2016'!AB$6","v":1.8919343262156829E-2},{"$f":"'Population 2016'!AC112/'Population 2016'!AC$6","v":8.0281520271716089E-3},{"$f":"'Population 2016'!AD112/'Population 2016'!AD$6","v":2.3700679064400161E-2},{"$f":"'Population 2016'!AE112/'Population 2016'!AE$6","v":2.2643634242966598E-2},{"$f":"'Population 2016'!AF112/'Population 2016'!AF$6","v":7.5782719327359225E-3},{"$f":"'Population 2016'!AG112/'Population 2016'!AG$6","v":2.2643634242966598E-2},{"$f":"'Population 2016'!AH112/'Population 2016'!AH$6","v":1.6352060527447476E-2},{"$f":"'Population 2016'!AI112/'Population 2016'!AI$6","v":1.5840995743647907E-2},{"$f":"'Population 2016'!AJ112/'Population 2016'!AJ$6","v":2.3194452966803707E-2},{"$f":"'Population 2016'!AK112/'Population 2016'!AK$6","v":2.7869626830420408E-2},{"$f":"'Population 2016'!AL112/'Population 2016'!AL$6","v":1.1058802629241428E-2},{"$f":"'Population 2016'!AM112/'Population 2016'!AM$6","v":1.5165934602244998E-2},{"$f":"'Population 2016'!AN112/'Population 2016'!AN$6","v":3.9600153787004995E-2},{"$f":"'Population 2016'!AO112/'Population 2016'!AO$6","v":3.9600153787004995E-2},{"$f":"'Population 2016'!AP112/'Population 2016'!AP$6","v":1.7708883236550368E-2},{"$f":"'Population 2016'!AQ112/'Population 2016'!AQ$6","v":1.2585559726208876E-2},{"$f":"'Population 2016'!AR112/'Population 2016'!AR$6","v":1.4561970896405627E-2},{"$f":"'Population 2016'!AS112/'Population 2016'!AS$6","v":2.6561134310964359E-2},{"$f":"'Population 2016'!AT112/'Population 2016'!AT$6","v":3.0206677265500796E-2},{"$f":"'Population 2016'!AU112/'Population 2016'!AU$6","v":3.0206677265500796E-2},{"$f":"'Population 2016'!AV112/'Population 2016'!AV$6","v":2.2423448111521506E-2},{"$f":"'Population 2016'!AW112/'Population 2016'!AW$6","v":1.7944454909540618E-2},{"$f":"'Population 2016'!AX112/'Population 2016'!AX$6","v":1.4784261018677296E-2},{"$f":"'Population 2016'!AY112/'Population 2016'!AY$6","v":1.4696208137520048E-2},{"$f":"'Population 2016'!AZ112/'Population 2016'!AZ$6","v":1.3362869801343434E-2},{"$f":"'Population 2016'!BA112/'Population 2016'!BA$6","v":1.2671089594166518E-2},{"$f":"'Population 2016'!BB112/'Population 2016'!BB$6","v":1.942770108237734E-2},{"$f":"'Population 2016'!BC112/'Population 2016'!BC$6","v":3.1848306332842413E-2},110]
[null,"Female 75-79",{"$f":"'Population 2016'!C113/'Population 2016'!C$6","v":1.4415835903320663E-2},{"$f":"'Population 2016'!D113/'Population 2016'!D$6","v":1.6059425103967778E-2},{"$f":"'Population 2016'!E113/'Population 2016'!E$6","v":2.0489030636899584E-2},{"$f":"'Population 2016'!F113/'Population 2016'!F$6","v":1.8480048472258287E-2},{"$f":"'Population 2016'!G113/'Population 2016'!G$6","v":2.4627784618829061E-2},{"$f":"'Population 2016'!H113/'Population 2016'!H$6","v":1.2318369634562985E-2},{"$f":"'Population 2016'!I113/'Population 2016'!I$6","v":2.1462561911236282E-2},{"$f":"'Population 2016'!J113/'Population 2016'!J$6","v":1.2532563542913469E-2},{"$f":"'Population 2016'!K113/'Population 2016'!K$6","v":1.1411182959300114E-2},{"$f":"'Population 2016'!L113/'Population 2016'!L$6","v":2.1922767497988736E-2},{"$f":"'Population 2016'!M113/'Population 2016'!M$6","v":2.1922767497988736E-2},{"$f":"'Population 2016'!N113/'Population 2016'!N$6","v":9.0723286623829204E-3},{"$f":"'Population 2016'!O113/'Population 2016'!O$6","v":1.2542093326919112E-2},{"$f":"'Population 2016'!P113/'Population 2016'!P$6","v":2.0087751757678279E-2},{"$f":"'Population 2016'!Q113/'Population 2016'!Q$6","v":2.3591440886699507E-2},{"$f":"'Population 2016'!R113/'Population 2016'!R$6","v":1.3488133856923339E-2},{"$f":"'Population 2016'!S113/'Population 2016'!S$6","v":1.3783815065394207E-2},{"$f":"'Population 2016'!T113/'Population 2016'!T$6","v":9.1703682475999422E-3},{"$f":"'Population 2016'!U113/'Population 2016'!U$6","v":3.0559646539027981E-2},{"$f":"'Population 2016'!V113/'Population 2016'!V$6","v":1.7003676470588234E-2},{"$f":"'Population 2016'!W113/'Population 2016'!W$6","v":1.3081865284974093E-2},{"$f":"'Population 2016'!X113/'Population 2016'!X$6","v":1.3081865284974093E-2},{"$f":"'Population 2016'!Y113/'Population 2016'!Y$6","v":1.5082925845641982E-2},{"$f":"'Population 2016'!Z113/'Population 2016'!Z$6","v":5.2103745697263566E-3},{"$f":"'Population 2016'!AA113/'Population 2016'!AA$6","v":9.7627127117743736E-3},{"$f":"'Population 2016'!AB113/'Population 2016'!AB$6","v":1.7225910640588551E-2},{"$f":"'Population 2016'!AC113/'Population 2016'!AC$6","v":7.5243256702446767E-3},{"$f":"'Population 2016'!AD113/'Population 2016'!AD$6","v":2.1777402985516253E-2},{"$f":"'Population 2016'!AE113/'Population 2016'!AE$6","v":2.0753313089468498E-2},{"$f":"'Population 2016'!AF113/'Population 2016'!AF$6","v":5.5869012058856072E-3},{"$f":"'Population 2016'!AG113/'Population 2016'!AG$6","v":2.0753313089468498E-2},{"$f":"'Population 2016'!AH113/'Population 2016'!AH$6","v":1.3785797447022751E-2},{"$f":"'Population 2016'!AI113/'Population 2016'!AI$6","v":1.3476355692086198E-2},{"$f":"'Population 2016'!AJ113/'Population 2016'!AJ$6","v":1.8438976498742099E-2},{"$f":"'Population 2016'!AK113/'Population 2016'!AK$6","v":2.4248149897653913E-2},{"$f":"'Population 2016'!AL113/'Population 2016'!AL$6","v":8.4088351986735359E-3},{"$f":"'Population 2016'!AM113/'Population 2016'!AM$6","v":1.2628111273792094E-2},{"$f":"'Population 2016'!AN113/'Population 2016'!AN$6","v":2.4221453287197232E-2},{"$f":"'Population 2016'!AO113/'Population 2016'!AO$6","v":2.4221453287197232E-2},{"$f":"'Population 2016'!AP113/'Population 2016'!AP$6","v":1.3533618083217354E-2},{"$f":"'Population 2016'!AQ113/'Population 2016'!AQ$6","v":1.184956208140134E-2},{"$f":"'Population 2016'!AR113/'Population 2016'!AR$6","v":1.2528924424026687E-2},{"$f":"'Population 2016'!AS113/'Population 2016'!AS$6","v":2.1462561911236282E-2},{"$f":"'Population 2016'!AT113/'Population 2016'!AT$6","v":1.5898251192368838E-2},{"$f":"'Population 2016'!AU113/'Population 2016'!AU$6","v":1.5898251192368838E-2},{"$f":"'Population 2016'!AV113/'Population 2016'!AV$6","v":1.8300965089955917E-2},{"$f":"'Population 2016'!AW113/'Population 2016'!AW$6","v":1.5340010974700858E-2},{"$f":"'Population 2016'!AX113/'Population 2016'!AX$6","v":1.362561987301293E-2},{"$f":"'Population 2016'!AY113/'Population 2016'!AY$6","v":1.2486187370204276E-2},{"$f":"'Population 2016'!AZ113/'Population 2016'!AZ$6","v":1.1844361869372589E-2},{"$f":"'Population 2016'!BA113/'Population 2016'!BA$6","v":1.2113242882473651E-2},{"$f":"'Population 2016'!BB113/'Population 2016'!BB$6","v":1.487458681703286E-2},{"$f":"'Population 2016'!BC113/'Population 2016'!BC$6","v":3.0559646539027981E-2},111]
[null,"Female 80-84",{"$f":"'Population 2016'!C114/'Population 2016'!C$6","v":1.2784192784909991E-2},{"$f":"'Population 2016'!D114/'Population 2016'!D$6","v":1.3744670834096199E-2},{"$f":"'Population 2016'!E114/'Population 2016'!E$6","v":1.6333236686962405E-2},{"$f":"'Population 2016'!F114/'Population 2016'!F$6","v":1.4282004674110621E-2},{"$f":"'Population 2016'!G114/'Population 2016'!G$6","v":1.8694727415202061E-2},{"$f":"'Population 2016'!H114/'Population 2016'!H$6","v":9.6591281742459019E-3},{"$f":"'Population 2016'!I114/'Population 2016'!I$6","v":1.6995241332426921E-2},{"$f":"'Population 2016'!J114/'Population 2016'!J$6","v":8.3785115820601275E-3},{"$f":"'Population 2016'!K114/'Population 2016'!K$6","v":7.6550019018638265E-3},{"$f":"'Population 2016'!L114/'Population 2016'!L$6","v":1.8257799231250559E-2},{"$f":"'Population 2016'!M114/'Population 2016'!M$6","v":1.8257799231250559E-2},{"$f":"'Population 2016'!N114/'Population 2016'!N$6","v":7.3813759943536887E-3},{"$f":"'Population 2016'!O114/'Population 2016'!O$6","v":9.2948938217304652E-3},{"$f":"'Population 2016'!P114/'Population 2016'!P$6","v":1.8501876618914205E-2},{"$f":"'Population 2016'!Q114/'Population 2016'!Q$6","v":1.8588362068965518E-2},{"$f":"'Population 2016'!R114/'Population 2016'!R$6","v":1.2890558306300154E-2},{"$f":"'Population 2016'!S114/'Population 2016'!S$6","v":1.060354170393207E-2},{"$f":"'Population 2016'!T114/'Population 2016'!T$6","v":6.8693475384135599E-3},{"$f":"'Population 2016'!U114/'Population 2016'!U$6","v":2.8166421207658322E-2},{"$f":"'Population 2016'!V114/'Population 2016'!V$6","v":1.2249010180995475E-2},{"$f":"'Population 2016'!W114/'Population 2016'!W$6","v":1.0420725388601036E-2},{"$f":"'Population 2016'!X114/'Population 2016'!X$6","v":1.0420725388601036E-2},{"$f":"'Population 2016'!Y114/'Population 2016'!Y$6","v":1.0586278167061551E-2},{"$f":"'Population 2016'!Z114/'Population 2016'!Z$6","v":4.6938942916776799E-3},{"$f":"'Population 2016'!AA114/'Population 2016'!AA$6","v":7.8816625733515808E-3},{"$f":"'Population 2016'!AB114/'Population 2016'!AB$6","v":1.4265207249237395E-2},{"$f":"'Population 2016'!AC114/'Population 2016'!AC$6","v":6.4291355584691458E-3},{"$f":"'Population 2016'!AD114/'Population 2016'!AD$6","v":1.5948397023360407E-2},{"$f":"'Population 2016'!AE114/'Population 2016'!AE$6","v":1.4961690831942405E-2},{"$f":"'Population 2016'!AF114/'Population 2016'!AF$6","v":4.3146365748423501E-3},{"$f":"'Population 2016'!AG114/'Population 2016'!AG$6","v":1.4961690831942405E-2},{"$f":"'Population 2016'!AH114/'Population 2016'!AH$6","v":1.0492309951436792E-2},{"$f":"'Population 2016'!AI114/'Population 2016'!AI$6","v":1.0144933601744392E-2},{"$f":"'Population 2016'!AJ114/'Population 2016'!AJ$6","v":1.4511873350923483E-2},{"$f":"'Population 2016'!AK114/'Population 2016'!AK$6","v":1.7398834829160763E-2},{"$f":"'Population 2016'!AL114/'Population 2016'!AL$6","v":7.0764493397287853E-3},{"$f":"'Population 2016'!AM114/'Population 2016'!AM$6","v":9.3277208394338708E-3},{"$f":"'Population 2016'!AN114/'Population 2016'!AN$6","v":2.306805074971165E-2},{"$f":"'Population 2016'!AO114/'Population 2016'!AO$6","v":2.306805074971165E-2},{"$f":"'Population 2016'!AP114/'Population 2016'!AP$6","v":1.1326006622834381E-2},{"$f":"'Population 2016'!AQ114/'Population 2016'!AQ$6","v":9.8770883933171419E-3},{"$f":"'Population 2016'!AR114/'Population 2016'!AR$6","v":9.8741512016847673E-3},{"$f":"'Population 2016'!AS114/'Population 2016'!AS$6","v":1.6995241332426921E-2},{"$f":"'Population 2016'!AT114/'Population 2016'!AT$6","v":2.3847376788553261E-2},{"$f":"'Population 2016'!AU114/'Population 2016'!AU$6","v":2.3847376788553261E-2},{"$f":"'Population 2016'!AV114/'Population 2016'!AV$6","v":1.4321458358155606E-2},{"$f":"'Population 2016'!AW114/'Population 2016'!AW$6","v":1.2055790792717385E-2},{"$f":"'Population 2016'!AX114/'Population 2016'!AX$6","v":9.0837465820086203E-3},{"$f":"'Population 2016'!AY114/'Population 2016'!AY$6","v":9.996689268500324E-3},{"$f":"'Population 2016'!AZ114/'Population 2016'!AZ$6","v":9.5398027726168351E-3},{"$f":"'Population 2016'!BA114/'Population 2016'!BA$6","v":8.6067778375470676E-3},{"$f":"'Population 2016'!BB114/'Population 2016'!BB$6","v":1.0580724609501588E-2},{"$f":"'Population 2016'!BC114/'Population 2016'!BC$6","v":2.8166421207658322E-2},112]
[null,"Female 85-89",{"$f":"'Population 2016'!C115/'Population 2016'!C$6","v":7.1899878075019725E-3},{"$f":"'Population 2016'!D115/'Population 2016'!D$6","v":7.6766144430204276E-3},{"$f":"'Population 2016'!E115/'Population 2016'!E$6","v":8.9881124963757612E-3},{"$f":"'Population 2016'!F115/'Population 2016'!F$6","v":1.0603306500476067E-2},{"$f":"'Population 2016'!G115/'Population 2016'!G$6","v":1.0466808463002351E-2},{"$f":"'Population 2016'!H115/'Population 2016'!H$6","v":5.306558071036329E-3},{"$f":"'Population 2016'!I115/'Population 2016'!I$6","v":1.034281829659124E-2},{"$f":"'Population 2016'!J115/'Population 2016'!J$6","v":4.8815977845056207E-3},{"$f":"'Population 2016'!K115/'Population 2016'!K$6","v":4.8497527577025488E-3},{"$f":"'Population 2016'!L115/'Population 2016'!L$6","v":1.0168052203450434E-2},{"$f":"'Population 2016'!M115/'Population 2016'!M$6","v":1.0168052203450434E-2},{"$f":"'Population 2016'!N115/'Population 2016'!N$6","v":4.0435824670264232E-3},{"$f":"'Population 2016'!O115/'Population 2016'!O$6","v":4.965294481478936E-3},{"$f":"'Population 2016'!P115/'Population 2016'!P$6","v":1.0731088438970238E-2},{"$f":"'Population 2016'!Q115/'Population 2016'!Q$6","v":1.0467980295566502E-2},{"$f":"'Population 2016'!R115/'Population 2016'!R$6","v":5.7196516988219223E-3},{"$f":"'Population 2016'!S115/'Population 2016'!S$6","v":6.6472711202769392E-3},{"$f":"'Population 2016'!T115/'Population 2016'!T$6","v":4.6863278912367351E-3},{"$f":"'Population 2016'!U115/'Population 2016'!U$6","v":1.1597938144329897E-2},{"$f":"'Population 2016'!V115/'Population 2016'!V$6","v":7.6534219457013572E-3},{"$f":"'Population 2016'!W115/'Population 2016'!W$6","v":6.7067357512953368E-3},{"$f":"'Population 2016'!X115/'Population 2016'!X$6","v":6.7067357512953368E-3},{"$f":"'Population 2016'!Y115/'Population 2016'!Y$6","v":6.4626707667490048E-3},{"$f":"'Population 2016'!Z115/'Population 2016'!Z$6","v":2.9165945113337039E-3},{"$f":"'Population 2016'!AA115/'Population 2016'!AA$6","v":4.5907622315129017E-3},{"$f":"'Population 2016'!AB115/'Population 2016'!AB$6","v":8.1643638973622826E-3},{"$f":"'Population 2016'!AC115/'Population 2016'!AC$6","v":3.7349289779911527E-3},{"$f":"'Population 2016'!AD115/'Population 2016'!AD$6","v":1.0001035610196322E-2},{"$f":"'Population 2016'!AE115/'Population 2016'!AE$6","v":9.8336919580911779E-3},{"$f":"'Population 2016'!AF115/'Population 2016'!AF$6","v":2.2126341409447947E-3},{"$f":"'Population 2016'!AG115/'Population 2016'!AG$6","v":9.8336919580911779E-3},{"$f":"'Population 2016'!AH115/'Population 2016'!AH$6","v":6.1289634604694094E-3},{"$f":"'Population 2016'!AI115/'Population 2016'!AI$6","v":6.2987314647794191E-3},{"$f":"'Population 2016'!AJ115/'Population 2016'!AJ$6","v":9.4189114560962132E-3},{"$f":"'Population 2016'!AK115/'Population 2016'!AK$6","v":1.1100614076523381E-2},{"$f":"'Population 2016'!AL115/'Population 2016'!AL$6","v":3.6122461064724345E-3},{"$f":"'Population 2016'!AM115/'Population 2016'!AM$6","v":5.1366520253782336E-3},{"$f":"'Population 2016'!AN115/'Population 2016'!AN$6","v":1.114955786236063E-2},{"$f":"'Population 2016'!AO115/'Population 2016'!AO$6","v":1.114955786236063E-2},{"$f":"'Population 2016'!AP115/'Population 2016'!AP$6","v":9.7902769112636172E-3},{"$f":"'Population 2016'!AQ115/'Population 2016'!AQ$6","v":5.1961433723412085E-3},{"$f":"'Population 2016'!AR115/'Population 2016'!AR$6","v":5.8843610853314314E-3},{"$f":"'Population 2016'!AS115/'Population 2016'!AS$6","v":1.034281829659124E-2},{"$f":"'Population 2016'!AT115/'Population 2016'!AT$6","v":7.9491255961844191E-3},{"$f":"'Population 2016'!AU115/'Population 2016'!AU$6","v":7.9491255961844191E-3},{"$f":"'Population 2016'!AV115/'Population 2016'!AV$6","v":8.507089241034195E-3},{"$f":"'Population 2016'!AW115/'Population 2016'!AW$6","v":7.4611585680472402E-3},{"$f":"'Population 2016'!AX115/'Population 2016'!AX$6","v":4.9126384576169066E-3},{"$f":"'Population 2016'!AY115/'Population 2016'!AY$6","v":6.591365440262795E-3},{"$f":"'Population 2016'!AZ115/'Population 2016'!AZ$6","v":6.4670573102758328E-3},{"$f":"'Population 2016'!BA115/'Population 2016'!BA$6","v":5.1202358894666591E-3},{"$f":"'Population 2016'!BB115/'Population 2016'!BB$6","v":5.9952038369304557E-3},{"$f":"'Population 2016'!BC115/'Population 2016'!BC$6","v":1.1597938144329897E-2},113]
[null,"Female 90+",{"$f":"'Population 2016'!C116/'Population 2016'!C$6","v":3.4963781108800114E-3},{"$f":"'Population 2016'!D116/'Population 2016'!D$6","v":4.041011691470719E-3},{"$f":"'Population 2016'!E116/'Population 2016'!E$6","v":5.508843142939983E-3},{"$f":"'Population 2016'!F116/'Population 2016'!F$6","v":6.9678871288842729E-3},{"$f":"'Population 2016'!G116/'Population 2016'!G$6","v":5.8211127280868693E-3},{"$f":"'Population 2016'!H116/'Population 2016'!H$6","v":3.6967033753286787E-3},{"$f":"'Population 2016'!I116/'Population 2016'!I$6","v":7.1380013596193063E-3},{"$f":"'Population 2016'!J116/'Population 2016'!J$6","v":2.9571217348447511E-3},{"$f":"'Population 2016'!K116/'Population 2016'!K$6","v":2.9003423354887789E-3},{"$f":"'Population 2016'!L116/'Population 2016'!L$6","v":6.1678734245105924E-3},{"$f":"'Population 2016'!M116/'Population 2016'!M$6","v":6.1678734245105924E-3},{"$f":"'Population 2016'!N116/'Population 2016'!N$6","v":2.4261494802158539E-3},{"$f":"'Population 2016'!O116/'Population 2016'!O$6","v":3.1612947563741324E-3},{"$f":"'Population 2016'!P116/'Population 2016'!P$6","v":7.3478881429402121E-3},{"$f":"'Population 2016'!Q116/'Population 2016'!Q$6","v":5.6573275862068966E-3},{"$f":"'Population 2016'!R116/'Population 2016'!R$6","v":2.9878777531159298E-3},{"$f":"'Population 2016'!S116/'Population 2016'!S$6","v":3.8300066288576269E-3},{"$f":"'Population 2016'!T116/'Population 2016'!T$6","v":2.8320254882293941E-3},{"$f":"'Population 2016'!U116/'Population 2016'!U$6","v":1.0493372606774668E-2},{"$f":"'Population 2016'!V116/'Population 2016'!V$6","v":4.8783936651583711E-3},{"$f":"'Population 2016'!W116/'Population 2016'!W$6","v":3.9958549222797925E-3},{"$f":"'Population 2016'!X116/'Population 2016'!X$6","v":3.9958549222797925E-3},{"$f":"'Population 2016'!Y116/'Population 2016'!Y$6","v":4.0530322125321367E-3},{"$f":"'Population 2016'!Z116/'Population 2016'!Z$6","v":1.7104611561259118E-3},{"$f":"'Population 2016'!AA116/'Population 2016'!AA$6","v":2.3709980814538454E-3},{"$f":"'Population 2016'!AB116/'Population 2016'!AB$6","v":4.1831150188408397E-3},{"$f":"'Population 2016'!AC116/'Population 2016'!AC$6","v":2.009469601179615E-3},{"$f":"'Population 2016'!AD116/'Population 2016'!AD$6","v":5.5627061973873033E-3},{"$f":"'Population 2016'!AE116/'Population 2016'!AE$6","v":5.4698654654413096E-3},{"$f":"'Population 2016'!AF116/'Population 2016'!AF$6","v":7.1910609580705831E-4},{"$f":"'Population 2016'!AG116/'Population 2016'!AG$6","v":5.4698654654413096E-3},{"$f":"'Population 2016'!AH116/'Population 2016'!AH$6","v":3.0207783399004962E-3},{"$f":"'Population 2016'!AI116/'Population 2016'!AI$6","v":3.4611634029053685E-3},{"$f":"'Population 2016'!AJ116/'Population 2016'!AJ$6","v":4.2645885745842792E-3},{"$f":"'Population 2016'!AK116/'Population 2016'!AK$6","v":5.0385766021099039E-3},{"$f":"'Population 2016'!AL116/'Population 2016'!AL$6","v":2.279860247527684E-3},{"$f":"'Population 2016'!AM116/'Population 2016'!AM$6","v":2.1961932650073207E-3},{"$f":"'Population 2016'!AN116/'Population 2016'!AN$6","v":4.61361014994233E-3},{"$f":"'Population 2016'!AO116/'Population 2016'!AO$6","v":4.61361014994233E-3},{"$f":"'Population 2016'!AP116/'Population 2016'!AP$6","v":4.6071891347122911E-3},{"$f":"'Population 2016'!AQ116/'Population 2016'!AQ$6","v":2.4729520865533232E-3},{"$f":"'Population 2016'!AR116/'Population 2016'!AR$6","v":3.3301945552562475E-3},{"$f":"'Population 2016'!AS116/'Population 2016'!AS$6","v":7.1380013596193063E-3},{"$f":"'Population 2016'!AT116/'Population 2016'!AT$6","v":1.589825119236884E-3},{"$f":"'Population 2016'!AU116/'Population 2016'!AU$6","v":1.589825119236884E-3},{"$f":"'Population 2016'!AV116/'Population 2016'!AV$6","v":6.7198856189681876E-3},{"$f":"'Population 2016'!AW116/'Population 2016'!AW$6","v":4.1277979344630181E-3},{"$f":"'Population 2016'!AX116/'Population 2016'!AX$6","v":3.0124669787273484E-3},{"$f":"'Population 2016'!AY116/'Population 2016'!AY$6","v":3.8868847736448576E-3},{"$f":"'Population 2016'!AZ116/'Population 2016'!AZ$6","v":3.7694726311276261E-3},{"$f":"'Population 2016'!BA116/'Population 2016'!BA$6","v":2.0321558783097243E-3},{"$f":"'Population 2016'!BB116/'Population 2016'!BB$6","v":3.3216669907317389E-3},{"$f":"'Population 2016'!BC116/'Population 2016'!BC$6","v":1.0493372606774668E-2},114]
[null,"Male 0-4",{"$f":"'Population 2016'!C117/'Population 2016'!C$6","v":0},{"$f":"'Population 2016'!D117/'Population 2016'!D$6","v":0},{"$f":"'Population 2016'!E117/'Population 2016'!E$6","v":0},{"$f":"'Population 2016'!F117/'Population 2016'!F$6","v":0},{"$f":"'Population 2016'!G117/'Population 2016'!G$6","v":0},{"$f":"'Population 2016'!H117/'Population 2016'!H$6","v":0},{"$f":"'Population 2016'!I117/'Population 2016'!I$6","v":0},{"$f":"'Population 2016'!J117/'Population 2016'!J$6","v":0},{"$f":"'Population 2016'!K117/'Population 2016'!K$6","v":0},{"$f":"'Population 2016'!L117/'Population 2016'!L$6","v":0},{"$f":"'Population 2016'!M117/'Population 2016'!M$6","v":0},{"$f":"'Population 2016'!N117/'Population 2016'!N$6","v":0},{"$f":"'Population 2016'!O117/'Population 2016'!O$6","v":0},{"$f":"'Population 2016'!P117/'Population 2016'!P$6","v":0},{"$f":"'Population 2016'!Q117/'Population 2016'!Q$6","v":0},{"$f":"'Population 2016'!R117/'Population 2016'!R$6","v":0},{"$f":"'Population 2016'!S117/'Population 2016'!S$6","v":0},{"$f":"'Population 2016'!T117/'Population 2016'!T$6","v":0},{"$f":"'Population 2016'!U117/'Population 2016'!U$6","v":0},{"$f":"'Population 2016'!V117/'Population 2016'!V$6","v":0},{"$f":"'Population 2016'!W117/'Population 2016'!W$6","v":0},{"$f":"'Population 2016'!X117/'Population 2016'!X$6","v":0},{"$f":"'Population 2016'!Y117/'Population 2016'!Y$6","v":0},{"$f":"'Population 2016'!Z117/'Population 2016'!Z$6","v":0},{"$f":"'Population 2016'!AA117/'Population 2016'!AA$6","v":0},{"$f":"'Population 2016'!AB117/'Population 2016'!AB$6","v":0},{"$f":"'Population 2016'!AC117/'Population 2016'!AC$6","v":0},{"$f":"'Population 2016'!AD117/'Population 2016'!AD$6","v":0},{"$f":"'Population 2016'!AE117/'Population 2016'!AE$6","v":0},{"$f":"'Population 2016'!AF117/'Population 2016'!AF$6","v":0},{"$f":"'Population 2016'!AG117/'Population 2016'!AG$6","v":0},{"$f":"'Population 2016'!AH117/'Population 2016'!AH$6","v":0},{"$f":"'Population 2016'!AI117/'Population 2016'!AI$6","v":0},{"$f":"'Population 2016'!AJ117/'Population 2016'!AJ$6","v":0},{"$f":"'Population 2016'!AK117/'Population 2016'!AK$6","v":0},{"$f":"'Population 2016'!AL117/'Population 2016'!AL$6","v":0},{"$f":"'Population 2016'!AM117/'Population 2016'!AM$6","v":0},{"$f":"'Population 2016'!AN117/'Population 2016'!AN$6","v":0},{"$f":"'Population 2016'!AO117/'Population 2016'!AO$6","v":0},{"$f":"'Population 2016'!AP117/'Population 2016'!AP$6","v":0},{"$f":"'Population 2016'!AQ117/'Population 2016'!AQ$6","v":0},{"$f":"'Population 2016'!AR117/'Population 2016'!AR$6","v":0},{"$f":"'Population 2016'!AS117/'Population 2016'!AS$6","v":0},{"$f":"'Population 2016'!AT117/'Population 2016'!AT$6","v":0},{"$f":"'Population 2016'!AU117/'Population 2016'!AU$6","v":0},{"$f":"'Population 2016'!AV117/'Population 2016'!AV$6","v":0},{"$f":"'Population 2016'!AW117/'Population 2016'!AW$6","v":0},{"$f":"'Population 2016'!AX117/'Population 2016'!AX$6","v":0},{"$f":"'Population 2016'!AY117/'Population 2016'!AY$6","v":0},{"$f":"'Population 2016'!AZ117/'Population 2016'!AZ$6","v":0},{"$f":"'Population 2016'!BA117/'Population 2016'!BA$6","v":0},{"$f":"'Population 2016'!BB117/'Population 2016'!BB$6","v":0},{"$f":"'Population 2016'!BC117/'Population 2016'!BC$6","v":0},115]
[null,"Male 5-9",{"$f":"'Population 2016'!C118/'Population 2016'!C$6","v":0},{"$f":"'Population 2016'!D118/'Population 2016'!D$6","v":0},{"$f":"'Population 2016'!E118/'Population 2016'!E$6","v":0},{"$f":"'Population 2016'!F118/'Population 2016'!F$6","v":0},{"$f":"'Population 2016'!G118/'Population 2016'!G$6","v":0},{"$f":"'Population 2016'!H118/'Population 2016'!H$6","v":0},{"$f":"'Population 2016'!I118/'Population 2016'!I$6","v":0},{"$f":"'Population 2016'!J118/'Population 2016'!J$6","v":0},{"$f":"'Population 2016'!K118/'Population 2016'!K$6","v":0},{"$f":"'Population 2016'!L118/'Population 2016'!L$6","v":0},{"$f":"'Population 2016'!M118/'Population 2016'!M$6","v":0},{"$f":"'Population 2016'!N118/'Population 2016'!N$6","v":0},{"$f":"'Population 2016'!O118/'Population 2016'!O$6","v":0},{"$f":"'Population 2016'!P118/'Population 2016'!P$6","v":0},{"$f":"'Population 2016'!Q118/'Population 2016'!Q$6","v":0},{"$f":"'Population 2016'!R118/'Population 2016'!R$6","v":0},{"$f":"'Population 2016'!S118/'Population 2016'!S$6","v":0},{"$f":"'Population 2016'!T118/'Population 2016'!T$6","v":0},{"$f":"'Population 2016'!U118/'Population 2016'!U$6","v":0},{"$f":"'Population 2016'!V118/'Population 2016'!V$6","v":0},{"$f":"'Population 2016'!W118/'Population 2016'!W$6","v":0},{"$f":"'Population 2016'!X118/'Population 2016'!X$6","v":0},{"$f":"'Population 2016'!Y118/'Population 2016'!Y$6","v":0},{"$f":"'Population 2016'!Z118/'Population 2016'!Z$6","v":0},{"$f":"'Population 2016'!AA118/'Population 2016'!AA$6","v":0},{"$f":"'Population 2016'!AB118/'Population 2016'!AB$6","v":0},{"$f":"'Population 2016'!AC118/'Population 2016'!AC$6","v":0},{"$f":"'Population 2016'!AD118/'Population 2016'!AD$6","v":0},{"$f":"'Population 2016'!AE118/'Population 2016'!AE$6","v":0},{"$f":"'Population 2016'!AF118/'Population 2016'!AF$6","v":0},{"$f":"'Population 2016'!AG118/'Population 2016'!AG$6","v":0},{"$f":"'Population 2016'!AH118/'Population 2016'!AH$6","v":0},{"$f":"'Population 2016'!AI118/'Population 2016'!AI$6","v":0},{"$f":"'Population 2016'!AJ118/'Population 2016'!AJ$6","v":0},{"$f":"'Population 2016'!AK118/'Population 2016'!AK$6","v":0},{"$f":"'Population 2016'!AL118/'Population 2016'!AL$6","v":0},{"$f":"'Population 2016'!AM118/'Population 2016'!AM$6","v":0},{"$f":"'Population 2016'!AN118/'Population 2016'!AN$6","v":0},{"$f":"'Population 2016'!AO118/'Population 2016'!AO$6","v":0},{"$f":"'Population 2016'!AP118/'Population 2016'!AP$6","v":0},{"$f":"'Population 2016'!AQ118/'Population 2016'!AQ$6","v":0},{"$f":"'Population 2016'!AR118/'Population 2016'!AR$6","v":0},{"$f":"'Population 2016'!AS118/'Population 2016'!AS$6","v":0},{"$f":"'Population 2016'!AT118/'Population 2016'!AT$6","v":0},{"$f":"'Population 2016'!AU118/'Population 2016'!AU$6","v":0},{"$f":"'Population 2016'!AV118/'Population 2016'!AV$6","v":0},{"$f":"'Population 2016'!AW118/'Population 2016'!AW$6","v":0},{"$f":"'Population 2016'!AX118/'Population 2016'!AX$6","v":0},{"$f":"'Population 2016'!AY118/'Population 2016'!AY$6","v":0},{"$f":"'Population 2016'!AZ118/'Population 2016'!AZ$6","v":0},{"$f":"'Population 2016'!BA118/'Population 2016'!BA$6","v":0},{"$f":"'Population 2016'!BB118/'Population 2016'!BB$6","v":0},{"$f":"'Population 2016'!BC118/'Population 2016'!BC$6","v":0},116]
[null,"Male 10-15",{"$f":"'Population 2016'!C119/'Population 2016'!C$6","v":0},{"$f":"'Population 2016'!D119/'Population 2016'!D$6","v":0},{"$f":"'Population 2016'!E119/'Population 2016'!E$6","v":0},{"$f":"'Population 2016'!F119/'Population 2016'!F$6","v":0},{"$f":"'Population 2016'!G119/'Population 2016'!G$6","v":0},{"$f":"'Population 2016'!H119/'Population 2016'!H$6","v":0},{"$f":"'Population 2016'!I119/'Population 2016'!I$6","v":0},{"$f":"'Population 2016'!J119/'Population 2016'!J$6","v":0},{"$f":"'Population 2016'!K119/'Population 2016'!K$6","v":0},{"$f":"'Population 2016'!L119/'Population 2016'!L$6","v":0},{"$f":"'Population 2016'!M119/'Population 2016'!M$6","v":0},{"$f":"'Population 2016'!N119/'Population 2016'!N$6","v":0},{"$f":"'Population 2016'!O119/'Population 2016'!O$6","v":0},{"$f":"'Population 2016'!P119/'Population 2016'!P$6","v":0},{"$f":"'Population 2016'!Q119/'Population 2016'!Q$6","v":0},{"$f":"'Population 2016'!R119/'Population 2016'!R$6","v":0},{"$f":"'Population 2016'!S119/'Population 2016'!S$6","v":0},{"$f":"'Population 2016'!T119/'Population 2016'!T$6","v":0},{"$f":"'Population 2016'!U119/'Population 2016'!U$6","v":0},{"$f":"'Population 2016'!V119/'Population 2016'!V$6","v":0},{"$f":"'Population 2016'!W119/'Population 2016'!W$6","v":0},{"$f":"'Population 2016'!X119/'Population 2016'!X$6","v":0},{"$f":"'Population 2016'!Y119/'Population 2016'!Y$6","v":0},{"$f":"'Population 2016'!Z119/'Population 2016'!Z$6","v":0},{"$f":"'Population 2016'!AA119/'Population 2016'!AA$6","v":0},{"$f":"'Population 2016'!AB119/'Population 2016'!AB$6","v":0},{"$f":"'Population 2016'!AC119/'Population 2016'!AC$6","v":0},{"$f":"'Population 2016'!AD119/'Population 2016'!AD$6","v":0},{"$f":"'Population 2016'!AE119/'Population 2016'!AE$6","v":0},{"$f":"'Population 2016'!AF119/'Population 2016'!AF$6","v":0},{"$f":"'Population 2016'!AG119/'Population 2016'!AG$6","v":0},{"$f":"'Population 2016'!AH119/'Population 2016'!AH$6","v":0},{"$f":"'Population 2016'!AI119/'Population 2016'!AI$6","v":0},{"$f":"'Population 2016'!AJ119/'Population 2016'!AJ$6","v":0},{"$f":"'Population 2016'!AK119/'Population 2016'!AK$6","v":0},{"$f":"'Population 2016'!AL119/'Population 2016'!AL$6","v":0},{"$f":"'Population 2016'!AM119/'Population 2016'!AM$6","v":0},{"$f":"'Population 2016'!AN119/'Population 2016'!AN$6","v":0},{"$f":"'Population 2016'!AO119/'Population 2016'!AO$6","v":0},{"$f":"'Population 2016'!AP119/'Population 2016'!AP$6","v":0},{"$f":"'Population 2016'!AQ119/'Population 2016'!AQ$6","v":0},{"$f":"'Population 2016'!AR119/'Population 2016'!AR$6","v":0},{"$f":"'Population 2016'!AS119/'Population 2016'!AS$6","v":0},{"$f":"'Population 2016'!AT119/'Population 2016'!AT$6","v":0},{"$f":"'Population 2016'!AU119/'Population 2016'!AU$6","v":0},{"$f":"'Population 2016'!AV119/'Population 2016'!AV$6","v":0},{"$f":"'Population 2016'!AW119/'Population 2016'!AW$6","v":0},{"$f":"'Population 2016'!AX119/'Population 2016'!AX$6","v":0},{"$f":"'Population 2016'!AY119/'Population 2016'!AY$6","v":0},{"$f":"'Population 2016'!AZ119/'Population 2016'!AZ$6","v":0},{"$f":"'Population 2016'!BA119/'Population 2016'!BA$6","v":0},{"$f":"'Population 2016'!BB119/'Population 2016'!BB$6","v":0},{"$f":"'Population 2016'!BC119/'Population 2016'!BC$6","v":0},117]
[null,"Male 16-19",{"$f":"'Population 2016'!C120/'Population 2016'!C$6","v":1.6585383346482106E-2},{"$f":"'Population 2016'!D120/'Population 2016'!D$6","v":1.7654905448173046E-2},{"$f":"'Population 2016'!E120/'Population 2016'!E$6","v":2.053735382236397E-2},{"$f":"'Population 2016'!F120/'Population 2016'!F$6","v":1.6878732796676187E-2},{"$f":"'Population 2016'!G120/'Population 2016'!G$6","v":1.7015560282100078E-2},{"$f":"'Population 2016'!H120/'Population 2016'!H$6","v":1.2115647191399799E-2},{"$f":"'Population 2016'!I120/'Population 2016'!I$6","v":1.7723608818102358E-2},{"$f":"'Population 2016'!J120/'Population 2016'!J$6","v":1.4574385693163416E-2},{"$f":"'Population 2016'!K120/'Population 2016'!K$6","v":1.4549258273107645E-2},{"$f":"'Population 2016'!L120/'Population 2016'!L$6","v":2.0202020202020204E-2},{"$f":"'Population 2016'!M120/'Population 2016'!M$6","v":2.0202020202020204E-2},{"$f":"'Population 2016'!N120/'Population 2016'!N$6","v":8.2930200414651004E-3},{"$f":"'Population 2016'!O120/'Population 2016'!O$6","v":1.2490550477630404E-2},{"$f":"'Population 2016'!P120/'Population 2016'!P$6","v":2.2149389438071578E-2},{"$f":"'Population 2016'!Q120/'Population 2016'!Q$6","v":2.3399014778325122E-2},{"$f":"'Population 2016'!R120/'Population 2016'!R$6","v":1.8610210005122075E-2},{"$f":"'Population 2016'!S120/'Population 2016'!S$6","v":1.5604120413724892E-2},{"$f":"'Population 2016'!T120/'Population 2016'!T$6","v":1.2786257933464258E-2},{"$f":"'Population 2016'!U120/'Population 2016'!U$6","v":2.5773195876288658E-2},{"$f":"'Population 2016'!V120/'Population 2016'!V$6","v":1.9336821266968326E-2},{"$f":"'Population 2016'!W120/'Population 2016'!W$6","v":1.355440414507772E-2},{"$f":"'Population 2016'!X120/'Population 2016'!X$6","v":1.355440414507772E-2},{"$f":"'Population 2016'!Y120/'Population 2016'!Y$6","v":1.7290921006200534E-2},{"$f":"'Population 2016'!Z120/'Population 2016'!Z$6","v":7.0757798092668713E-3},{"$f":"'Population 2016'!AA120/'Population 2016'!AA$6","v":1.0682614972159207E-2},{"$f":"'Population 2016'!AB120/'Population 2016'!AB$6","v":1.9020276332316528E-2},{"$f":"'Population 2016'!AC120/'Population 2016'!AC$6","v":8.7284512105449494E-3},{"$f":"'Population 2016'!AD120/'Population 2016'!AD$6","v":1.9499060553607624E-2},{"$f":"'Population 2016'!AE120/'Population 2016'!AE$6","v":2.0391336698373116E-2},{"$f":"'Population 2016'!AF120/'Population 2016'!AF$6","v":5.8911384002655158E-3},{"$f":"'Population 2016'!AG120/'Population 2016'!AG$6","v":2.0391336698373116E-2},{"$f":"'Population 2016'!AH120/'Population 2016'!AH$6","v":1.4194861180550942E-2},{"$f":"'Population 2016'!AI120/'Population 2016'!AI$6","v":1.6456220677417061E-2},{"$f":"'Population 2016'!AJ120/'Population 2016'!AJ$6","v":2.1997913726452722E-2},{"$f":"'Population 2016'!AK120/'Population 2016'!AK$6","v":2.7239804755156669E-2},{"$f":"'Population 2016'!AL120/'Population 2016'!AL$6","v":9.8152424942263283E-3},{"$f":"'Population 2016'!AM120/'Population 2016'!AM$6","v":1.3488286969253294E-2},{"$f":"'Population 2016'!AN120/'Population 2016'!AN$6","v":2.5759323337178008E-2},{"$f":"'Population 2016'!AO120/'Population 2016'!AO$6","v":2.5759323337178008E-2},{"$f":"'Population 2016'!AP120/'Population 2016'!AP$6","v":1.8236790324902816E-2},{"$f":"'Population 2016'!AQ120/'Population 2016'!AQ$6","v":1.0671965849709281E-2},{"$f":"'Population 2016'!AR120/'Population 2016'!AR$6","v":1.3391428988066237E-2},{"$f":"'Population 2016'!AS120/'Population 2016'!AS$6","v":1.7723608818102358E-2},{"$f":"'Population 2016'!AT120/'Population 2016'!AT$6","v":1.2718600953895072E-2},{"$f":"'Population 2016'!AU120/'Population 2016'!AU$6","v":1.2718600953895072E-2},{"$f":"'Population 2016'!AV120/'Population 2016'!AV$6","v":1.5298463004885023E-2},{"$f":"'Population 2016'!AW120/'Population 2016'!AW$6","v":1.5143449168297856E-2},{"$f":"'Population 2016'!AX120/'Population 2016'!AX$6","v":1.4598878435370997E-2},{"$f":"'Population 2016'!AY120/'Population 2016'!AY$6","v":1.2765664704592457E-2},{"$f":"'Population 2016'!AZ120/'Population 2016'!AZ$6","v":1.1915821066171216E-2},{"$f":"'Population 2016'!BA120/'Population 2016'!BA$6","v":1.1615165461319308E-2},{"$f":"'Population 2016'!BB120/'Population 2016'!BB$6","v":1.7661546438524856E-2},{"$f":"'Population 2016'!BC120/'Population 2016'!BC$6","v":2.5773195876288658E-2},118]
[null,"Male 20-24",{"$f":"'Population 2016'!C121/'Population 2016'!C$6","v":3.9930431040665564E-2},{"$f":"'Population 2016'!D121/'Population 2016'!D$6","v":3.7127612272120941E-2},{"$f":"'Population 2016'!E121/'Population 2016'!E$6","v":2.9573789504204116E-2},{"$f":"'Population 2016'!F121/'Population 2016'!F$6","v":2.6313511641997748E-2},{"$f":"'Population 2016'!G121/'Population 2016'!G$6","v":2.2276950632486286E-2},{"$f":"'Population 2016'!H121/'Population 2016'!H$6","v":1.5555966300375037E-2},{"$f":"'Population 2016'!I121/'Population 2016'!I$6","v":2.6221229484315819E-2},{"$f":"'Population 2016'!J121/'Population 2016'!J$6","v":2.4220235161585581E-2},{"$f":"'Population 2016'!K121/'Population 2016'!K$6","v":1.9303917839482692E-2},{"$f":"'Population 2016'!L121/'Population 2016'!L$6","v":2.7263788325735228E-2},{"$f":"'Population 2016'!M121/'Population 2016'!M$6","v":2.7263788325735228E-2},{"$f":"'Population 2016'!N121/'Population 2016'!N$6","v":2.468790895322678E-2},{"$f":"'Population 2016'!O121/'Population 2016'!O$6","v":1.680296886811903E-2},{"$f":"'Population 2016'!P121/'Population 2016'!P$6","v":3.2563302849289003E-2},{"$f":"'Population 2016'!Q121/'Population 2016'!Q$6","v":3.282789408866995E-2},{"$f":"'Population 2016'!R121/'Population 2016'!R$6","v":2.5183541061977122E-2},{"$f":"'Population 2016'!S121/'Population 2016'!S$6","v":2.3072107240185609E-2},{"$f":"'Population 2016'!T121/'Population 2016'!T$6","v":2.468750790185683E-2},{"$f":"'Population 2016'!U121/'Population 2016'!U$6","v":2.8718703976435934E-2},{"$f":"'Population 2016'!V121/'Population 2016'!V$6","v":2.3243071266968326E-2},{"$f":"'Population 2016'!W121/'Population 2016'!W$6","v":1.682901554404145E-2},{"$f":"'Population 2016'!X121/'Population 2016'!X$6","v":1.682901554404145E-2},{"$f":"'Population 2016'!Y121/'Population 2016'!Y$6","v":2.3662852245803296E-2},{"$f":"'Population 2016'!Z121/'Population 2016'!Z$6","v":1.3340381770069057E-2},{"$f":"'Population 2016'!AA121/'Population 2016'!AA$6","v":1.592455801571083E-2},{"$f":"'Population 2016'!AB121/'Population 2016'!AB$6","v":3.7289162031221963E-2},{"$f":"'Population 2016'!AC121/'Population 2016'!AC$6","v":1.4463123412168865E-2},{"$f":"'Population 2016'!AD121/'Population 2016'!AD$6","v":2.5239299927507286E-2},{"$f":"'Population 2016'!AE121/'Population 2016'!AE$6","v":2.6303617752931004E-2},{"$f":"'Population 2016'!AF121/'Population 2016'!AF$6","v":8.9058524173027988E-3},{"$f":"'Population 2016'!AG121/'Population 2016'!AG$6","v":2.6303617752931004E-2},{"$f":"'Population 2016'!AH121/'Population 2016'!AH$6","v":1.8551215129064852E-2},{"$f":"'Population 2016'!AI121/'Population 2016'!AI$6","v":2.5952447716343637E-2},{"$f":"'Population 2016'!AJ121/'Population 2016'!AJ$6","v":2.7182917101306988E-2},{"$f":"'Population 2016'!AK121/'Population 2016'!AK$6","v":3.8261691072272085E-2},{"$f":"'Population 2016'!AL121/'Population 2016'!AL$6","v":1.2317167051578136E-2},{"$f":"'Population 2016'!AM121/'Population 2016'!AM$6","v":1.7276720351390922E-2},{"$f":"'Population 2016'!AN121/'Population 2016'!AN$6","v":3.4986543637062668E-2},{"$f":"'Population 2016'!AO121/'Population 2016'!AO$6","v":3.4986543637062668E-2},{"$f":"'Population 2016'!AP121/'Population 2016'!AP$6","v":3.2106349282526273E-2},{"$f":"'Population 2016'!AQ121/'Population 2016'!AQ$6","v":1.4366674026643114E-2},{"$f":"'Population 2016'!AR121/'Population 2016'!AR$6","v":2.0327073486971433E-2},{"$f":"'Population 2016'!AS121/'Population 2016'!AS$6","v":2.6221229484315819E-2},{"$f":"'Population 2016'!AT121/'Population 2016'!AT$6","v":6.6772655007949128E-2},{"$f":"'Population 2016'!AU121/'Population 2016'!AU$6","v":6.6772655007949128E-2},{"$f":"'Population 2016'!AV121/'Population 2016'!AV$6","v":1.9039675920409865E-2},{"$f":"'Population 2016'!AW121/'Population 2016'!AW$6","v":2.0262246210042672E-2},{"$f":"'Population 2016'!AX121/'Population 2016'!AX$6","v":2.9012374287435694E-2},{"$f":"'Population 2016'!AY121/'Population 2016'!AY$6","v":2.1438061373222631E-2},{"$f":"'Population 2016'!AZ121/'Population 2016'!AZ$6","v":2.6404173217093041E-2},{"$f":"'Population 2016'!BA121/'Population 2016'!BA$6","v":1.6635785866555099E-2},{"$f":"'Population 2016'!BB121/'Population 2016'!BB$6","v":2.4839587789228079E-2},{"$f":"'Population 2016'!BC121/'Population 2016'!BC$6","v":2.8718703976435934E-2},119]
[null,"Male 25-29",{"$f":"'Population 2016'!C122/'Population 2016'!C$6","v":4.7676253317076672E-2},{"$f":"'Population 2016'!D122/'Population 2016'!D$6","v":4.4176496743650776E-2},{"$f":"'Population 2016'!E122/'Population 2016'!E$6","v":3.4744370348893397E-2},{"$f":"'Population 2016'!F122/'Population 2016'!F$6","v":3.0771228252401972E-2},{"$f":"'Population 2016'!G122/'Population 2016'!G$6","v":2.0373894548304041E-2},{"$f":"'Population 2016'!H122/'Population 2016'!H$6","v":1.5210145662037837E-2},{"$f":"'Population 2016'!I122/'Population 2016'!I$6","v":2.7580848790909974E-2},{"$f":"'Population 2016'!J122/'Population 2016'!J$6","v":2.4431458142645919E-2},{"$f":"'Population 2016'!K122/'Population 2016'!K$6","v":1.8400532521871436E-2},{"$f":"'Population 2016'!L122/'Population 2016'!L$6","v":2.2190935907750068E-2},{"$f":"'Population 2016'!M122/'Population 2016'!M$6","v":2.2190935907750068E-2},{"$f":"'Population 2016'!N122/'Population 2016'!N$6","v":2.2864620859003957E-2},{"$f":"'Population 2016'!O122/'Population 2016'!O$6","v":1.615009277712872E-2},{"$f":"'Population 2016'!P122/'Population 2016'!P$6","v":3.0660252682772109E-2},{"$f":"'Population 2016'!Q122/'Population 2016'!Q$6","v":3.2712438423645324E-2},{"$f":"'Population 2016'!R122/'Population 2016'!R$6","v":2.2024927437254566E-2},{"$f":"'Population 2016'!S122/'Population 2016'!S$6","v":2.7133597786171991E-2},{"$f":"'Population 2016'!T122/'Population 2016'!T$6","v":3.6285326567939112E-2},{"$f":"'Population 2016'!U122/'Population 2016'!U$6","v":3.2584683357879236E-2},{"$f":"'Population 2016'!V122/'Population 2016'!V$6","v":2.356122737556561E-2},{"$f":"'Population 2016'!W122/'Population 2016'!W$6","v":1.7881865284974093E-2},{"$f":"'Population 2016'!X122/'Population 2016'!X$6","v":1.7881865284974093E-2},{"$f":"'Population 2016'!Y122/'Population 2016'!Y$6","v":2.3935070827242024E-2},{"$f":"'Population 2016'!Z122/'Population 2016'!Z$6","v":1.8347202347858582E-2},{"$f":"'Population 2016'!AA122/'Population 2016'!AA$6","v":1.8079329071286177E-2},{"$f":"'Population 2016'!AB122/'Population 2016'!AB$6","v":4.3849811591602367E-2},{"$f":"'Population 2016'!AC122/'Population 2016'!AC$6","v":1.7618360288367642E-2},{"$f":"'Population 2016'!AD122/'Population 2016'!AD$6","v":2.4484783927329754E-2},{"$f":"'Population 2016'!AE122/'Population 2016'!AE$6","v":2.5961751161340921E-2},{"$f":"'Population 2016'!AF122/'Population 2016'!AF$6","v":8.8505365637791787E-3},{"$f":"'Population 2016'!AG122/'Population 2016'!AG$6","v":2.5961751161340921E-2},{"$f":"'Population 2016'!AH122/'Population 2016'!AH$6","v":1.8907834794191995E-2},{"$f":"'Population 2016'!AI122/'Population 2016'!AI$6","v":3.176569555991747E-2},{"$f":"'Population 2016'!AJ122/'Population 2016'!AJ$6","v":2.8594219795054304E-2},{"$f":"'Population 2016'!AK122/'Population 2016'!AK$6","v":4.1883168005038579E-2},{"$f":"'Population 2016'!AL122/'Population 2016'!AL$6","v":1.148812696156807E-2},{"$f":"'Population 2016'!AM122/'Population 2016'!AM$6","v":1.7667154709614444E-2},{"$f":"'Population 2016'!AN122/'Population 2016'!AN$6","v":3.9984621299500193E-2},{"$f":"'Population 2016'!AO122/'Population 2016'!AO$6","v":3.9984621299500193E-2},{"$f":"'Population 2016'!AP122/'Population 2016'!AP$6","v":3.6233622882372703E-2},{"$f":"'Population 2016'!AQ122/'Population 2016'!AQ$6","v":1.4955472142489145E-2},{"$f":"'Population 2016'!AR122/'Population 2016'!AR$6","v":2.2388380266166873E-2},{"$f":"'Population 2016'!AS122/'Population 2016'!AS$6","v":2.7580848790909974E-2},{"$f":"'Population 2016'!AT122/'Population 2016'!AT$6","v":7.3131955484896663E-2},{"$f":"'Population 2016'!AU122/'Population 2016'!AU$6","v":7.3131955484896663E-2},{"$f":"'Population 2016'!AV122/'Population 2016'!AV$6","v":1.989753365900155E-2},{"$f":"'Population 2016'!AW122/'Population 2016'!AW$6","v":2.0573469070180754E-2},{"$f":"'Population 2016'!AX122/'Population 2016'!AX$6","v":3.0310052370579783E-2},{"$f":"'Population 2016'!AY122/'Population 2016'!AY$6","v":2.2263594422492337E-2},{"$f":"'Population 2016'!AZ122/'Population 2016'!AZ$6","v":2.6984779191081894E-2},{"$f":"'Population 2016'!BA122/'Population 2016'!BA$6","v":1.681509373817066E-2},{"$f":"'Population 2016'!BB122/'Population 2016'!BB$6","v":2.4353490180828309E-2},{"$f":"'Population 2016'!BC122/'Population 2016'!BC$6","v":3.2584683357879236E-2},120]
[null,"Male 30-34",{"$f":"'Population 2016'!C123/'Population 2016'!C$6","v":3.7886394606612639E-2},{"$f":"'Population 2016'!D123/'Population 2016'!D$6","v":3.6002929406533622E-2},{"$f":"'Population 2016'!E123/'Population 2016'!E$6","v":3.0926838697206919E-2},{"$f":"'Population 2016'!F123/'Population 2016'!F$6","v":3.111745866874405E-2},{"$f":"'Population 2016'!G123/'Population 2016'!G$6","v":2.1661256017015559E-2},{"$f":"'Population 2016'!H123/'Population 2016'!H$6","v":1.4482729836569936E-2},{"$f":"'Population 2016'!I123/'Population 2016'!I$6","v":2.3453433038749149E-2},{"$f":"'Population 2016'!J123/'Population 2016'!J$6","v":1.9362106597197774E-2},{"$f":"'Population 2016'!K123/'Population 2016'!K$6","v":1.7449600608596426E-2},{"$f":"'Population 2016'!L123/'Population 2016'!L$6","v":2.228032537767051E-2},{"$f":"'Population 2016'!M123/'Population 2016'!M$6","v":2.228032537767051E-2},{"$f":"'Population 2016'!N123/'Population 2016'!N$6","v":1.7585907747504008E-2},{"$f":"'Population 2016'!O123/'Population 2016'!O$6","v":1.651089272214968E-2},{"$f":"'Population 2016'!P123/'Population 2016'!P$6","v":2.6854152349738331E-2},{"$f":"'Population 2016'!Q123/'Population 2016'!Q$6","v":3.1981219211822662E-2},{"$f":"'Population 2016'!R123/'Population 2016'!R$6","v":1.87809458767287E-2},{"$f":"'Population 2016'!S123/'Population 2016'!S$6","v":2.5849914245730701E-2},{"$f":"'Population 2016'!T123/'Population 2016'!T$6","v":3.2779009296797959E-2},{"$f":"'Population 2016'!U123/'Population 2016'!U$6","v":2.687776141384389E-2},{"$f":"'Population 2016'!V123/'Population 2016'!V$6","v":2.3596578054298642E-2},{"$f":"'Population 2016'!W123/'Population 2016'!W$6","v":1.7467357512953367E-2},{"$f":"'Population 2016'!X123/'Population 2016'!X$6","v":1.7467357512953367E-2},{"$f":"'Population 2016'!Y123/'Population 2016'!Y$6","v":2.177748651509805E-2},{"$f":"'Population 2016'!Z123/'Population 2016'!Z$6","v":1.7022582340627857E-2},{"$f":"'Population 2016'!AA123/'Population 2016'!AA$6","v":1.7423148790441014E-2},{"$f":"'Population 2016'!AB123/'Population 2016'!AB$6","v":3.6425623542077873E-2},{"$f":"'Population 2016'!AC123/'Population 2016'!AC$6","v":1.6653503635719928E-2},{"$f":"'Population 2016'!AD123/'Population 2016'!AD$6","v":2.4218484162561213E-2},{"$f":"'Population 2016'!AE123/'Population 2016'!AE$6","v":2.5137249381623664E-2},{"$f":"'Population 2016'!AF123/'Population 2016'!AF$6","v":8.8228786370173687E-3},{"$f":"'Population 2016'!AG123/'Population 2016'!AG$6","v":2.5137249381623664E-2},{"$f":"'Population 2016'!AH123/'Population 2016'!AH$6","v":1.8806442928616631E-2},{"$f":"'Population 2016'!AI123/'Population 2016'!AI$6","v":3.0288318678145285E-2},{"$f":"'Population 2016'!AJ123/'Population 2016'!AJ$6","v":2.7673804994784317E-2},{"$f":"'Population 2016'!AK123/'Population 2016'!AK$6","v":3.8970240906943787E-2},{"$f":"'Population 2016'!AL123/'Population 2016'!AL$6","v":1.0422218274412269E-2},{"$f":"'Population 2016'!AM123/'Population 2016'!AM$6","v":1.8075890678379697E-2},{"$f":"'Population 2016'!AN123/'Population 2016'!AN$6","v":2.7297193387158785E-2},{"$f":"'Population 2016'!AO123/'Population 2016'!AO$6","v":2.7297193387158785E-2},{"$f":"'Population 2016'!AP123/'Population 2016'!AP$6","v":3.6089648221912941E-2},{"$f":"'Population 2016'!AQ123/'Population 2016'!AQ$6","v":1.6074188562596601E-2},{"$f":"'Population 2016'!AR123/'Population 2016'!AR$6","v":2.0995147140113472E-2},{"$f":"'Population 2016'!AS123/'Population 2016'!AS$6","v":2.3453433038749149E-2},{"$f":"'Population 2016'!AT123/'Population 2016'!AT$6","v":3.8155802861685212E-2},{"$f":"'Population 2016'!AU123/'Population 2016'!AU$6","v":3.8155802861685212E-2},{"$f":"'Population 2016'!AV123/'Population 2016'!AV$6","v":1.8205647563445729E-2},{"$f":"'Population 2016'!AW123/'Population 2016'!AW$6","v":1.9787221844568752E-2},{"$f":"'Population 2016'!AX123/'Population 2016'!AX$6","v":2.1226305788571164E-2},{"$f":"'Population 2016'!AY123/'Population 2016'!AY$6","v":2.0526535297987335E-2},{"$f":"'Population 2016'!AZ123/'Population 2016'!AZ$6","v":2.3822709732742604E-2},{"$f":"'Population 2016'!BA123/'Population 2016'!BA$6","v":1.6317016317016316E-2},{"$f":"'Population 2016'!BB123/'Population 2016'!BB$6","v":2.6168254585520773E-2},{"$f":"'Population 2016'!BC123/'Population 2016'!BC$6","v":2.687776141384389E-2},121]
[null,"Male 35-39",{"$f":"'Population 2016'!C124/'Population 2016'!C$6","v":2.9441296708025533E-2},{"$f":"'Population 2016'!D124/'Population 2016'!D$6","v":2.9621008029712553E-2},{"$f":"'Population 2016'!E124/'Population 2016'!E$6","v":3.0105344544312362E-2},{"$f":"'Population 2016'!F124/'Population 2016'!F$6","v":2.6573184454254307E-2},{"$f":"'Population 2016'!G124/'Population 2016'!G$6","v":2.1101533639314898E-2},{"$f":"'Population 2016'!H124/'Population 2016'!H$6","v":1.2825175742470949E-2},{"$f":"'Population 2016'!I124/'Population 2016'!I$6","v":2.2919296882587162E-2},{"$f":"'Population 2016'!J124/'Population 2016'!J$6","v":1.710906146588749E-2},{"$f":"'Population 2016'!K124/'Population 2016'!K$6","v":1.8257892734880182E-2},{"$f":"'Population 2016'!L124/'Population 2016'!L$6","v":2.1006525431304192E-2},{"$f":"'Population 2016'!M124/'Population 2016'!M$6","v":2.1006525431304192E-2},{"$f":"'Population 2016'!N124/'Population 2016'!N$6","v":1.2013115911129409E-2},{"$f":"'Population 2016'!O124/'Population 2016'!O$6","v":1.4569445398941654E-2},{"$f":"'Population 2016'!P124/'Population 2016'!P$6","v":2.3365227044457367E-2},{"$f":"'Population 2016'!Q124/'Population 2016'!Q$6","v":3.0711206896551723E-2},{"$f":"'Population 2016'!R124/'Population 2016'!R$6","v":1.6988219224859144E-2},{"$f":"'Population 2016'!S124/'Population 2016'!S$6","v":2.266174938709372E-2},{"$f":"'Population 2016'!T124/'Population 2016'!T$6","v":2.5125797560749476E-2},{"$f":"'Population 2016'!U124/'Population 2016'!U$6","v":2.614138438880707E-2},{"$f":"'Population 2016'!V124/'Population 2016'!V$6","v":2.3596578054298642E-2},{"$f":"'Population 2016'!W124/'Population 2016'!W$6","v":1.7119170984455957E-2},{"$f":"'Population 2016'!X124/'Population 2016'!X$6","v":1.7119170984455957E-2},{"$f":"'Population 2016'!Y124/'Population 2016'!Y$6","v":2.0809598225538135E-2},{"$f":"'Population 2016'!Z124/'Population 2016'!Z$6","v":1.3306962457960024E-2},{"$f":"'Population 2016'!AA124/'Population 2016'!AA$6","v":1.4907166113600431E-2},{"$f":"'Population 2016'!AB124/'Population 2016'!AB$6","v":3.0627579400681858E-2},{"$f":"'Population 2016'!AC124/'Population 2016'!AC$6","v":1.3614983290083375E-2},{"$f":"'Population 2016'!AD124/'Population 2016'!AD$6","v":2.3034929652478806E-2},{"$f":"'Population 2016'!AE124/'Population 2016'!AE$6","v":2.3729563416252739E-2},{"$f":"'Population 2016'!AF124/'Population 2016'!AF$6","v":8.49098351587565E-3},{"$f":"'Population 2016'!AG124/'Population 2016'!AG$6","v":2.3729563416252739E-2},{"$f":"'Population 2016'!AH124/'Population 2016'!AH$6","v":1.7229624605358384E-2},{"$f":"'Population 2016'!AI124/'Population 2016'!AI$6","v":2.5437667669720471E-2},{"$f":"'Population 2016'!AJ124/'Population 2016'!AJ$6","v":2.7182917101306988E-2},{"$f":"'Population 2016'!AK124/'Population 2016'!AK$6","v":3.6687135884112737E-2},{"$f":"'Population 2016'!AL124/'Population 2016'!AL$6","v":8.9269852549298274E-3},{"$f":"'Population 2016'!AM124/'Population 2016'!AM$6","v":1.617252318204002E-2},{"$f":"'Population 2016'!AN124/'Population 2016'!AN$6","v":2.768166089965398E-2},{"$f":"'Population 2016'!AO124/'Population 2016'!AO$6","v":2.768166089965398E-2},{"$f":"'Population 2016'!AP124/'Population 2016'!AP$6","v":3.253827326390555E-2},{"$f":"'Population 2016'!AQ124/'Population 2016'!AQ$6","v":1.2747479208066534E-2},{"$f":"'Population 2016'!AR124/'Population 2016'!AR$6","v":1.8279331655047911E-2},{"$f":"'Population 2016'!AS124/'Population 2016'!AS$6","v":2.2919296882587162E-2},{"$f":"'Population 2016'!AT124/'Population 2016'!AT$6","v":5.246422893481717E-2},{"$f":"'Population 2016'!AU124/'Population 2016'!AU$6","v":5.246422893481717E-2},{"$f":"'Population 2016'!AV124/'Population 2016'!AV$6","v":1.6680567139282735E-2},{"$f":"'Population 2016'!AW124/'Population 2016'!AW$6","v":1.8648801382484707E-2},{"$f":"'Population 2016'!AX124/'Population 2016'!AX$6","v":1.5989247810168236E-2},{"$f":"'Population 2016'!AY124/'Population 2016'!AY$6","v":1.7946744519019509E-2},{"$f":"'Population 2016'!AZ124/'Population 2016'!AZ$6","v":1.8838430756038301E-2},{"$f":"'Population 2016'!BA124/'Population 2016'!BA$6","v":1.6038092961169884E-2},{"$f":"'Population 2016'!BB124/'Population 2016'!BB$6","v":2.2895197355629011E-2},{"$f":"'Population 2016'!BC124/'Population 2016'!BC$6","v":2.614138438880707E-2},122]
[null,"Male 40-44",{"$f":"'Population 2016'!C125/'Population 2016'!C$6","v":2.562217600229506E-2},{"$f":"'Population 2016'!D125/'Population 2016'!D$6","v":2.6338503387126306E-2},{"$f":"'Population 2016'!E125/'Population 2016'!E$6","v":2.8269063496665699E-2},{"$f":"'Population 2016'!F125/'Population 2016'!F$6","v":2.5101705184800486E-2},{"$f":"'Population 2016'!G125/'Population 2016'!G$6","v":2.0150005597223776E-2},{"$f":"'Population 2016'!H125/'Population 2016'!H$6","v":1.4959723820483314E-2},{"$f":"'Population 2016'!I125/'Population 2016'!I$6","v":2.495872584247839E-2},{"$f":"'Population 2016'!J125/'Population 2016'!J$6","v":1.8423337792485155E-2},{"$f":"'Population 2016'!K125/'Population 2016'!K$6","v":1.9826930391783949E-2},{"$f":"'Population 2016'!L125/'Population 2016'!L$6","v":2.5073746312684365E-2},{"$f":"'Population 2016'!M125/'Population 2016'!M$6","v":2.5073746312684365E-2},{"$f":"'Population 2016'!N125/'Population 2016'!N$6","v":1.1277919098942787E-2},{"$f":"'Population 2016'!O125/'Population 2016'!O$6","v":1.621881657618033E-2},{"$f":"'Population 2016'!P125/'Population 2016'!P$6","v":2.6219802294232701E-2},{"$f":"'Population 2016'!Q125/'Population 2016'!Q$6","v":3.163485221674877E-2},{"$f":"'Population 2016'!R125/'Population 2016'!R$6","v":2.2622502987877754E-2},{"$f":"'Population 2016'!S125/'Population 2016'!S$6","v":2.252496343606309E-2},{"$f":"'Population 2016'!T125/'Population 2016'!T$6","v":2.1509907874885159E-2},{"$f":"'Population 2016'!U125/'Population 2016'!U$6","v":3.663475699558174E-2},{"$f":"'Population 2016'!V125/'Population 2016'!V$6","v":2.55585407239819E-2},{"$f":"'Population 2016'!W125/'Population 2016'!W$6","v":1.877720207253886E-2},{"$f":"'Population 2016'!X125/'Population 2016'!X$6","v":1.877720207253886E-2},{"$f":"'Population 2016'!Y125/'Population 2016'!Y$6","v":2.2493320562585069E-2},{"$f":"'Population 2016'!Z125/'Population 2016'!Z$6","v":1.0265805056038111E-2},{"$f":"'Population 2016'!AA125/'Population 2016'!AA$6","v":1.432347813044864E-2},{"$f":"'Population 2016'!AB125/'Population 2016'!AB$6","v":2.7106136730665711E-2},{"$f":"'Population 2016'!AC125/'Population 2016'!AC$6","v":1.181171289289702E-2},{"$f":"'Population 2016'!AD125/'Population 2016'!AD$6","v":2.2635480005325996E-2},{"$f":"'Population 2016'!AE125/'Population 2016'!AE$6","v":2.3528465421199751E-2},{"$f":"'Population 2016'!AF125/'Population 2016'!AF$6","v":7.218718884832393E-3},{"$f":"'Population 2016'!AG125/'Population 2016'!AG$6","v":2.3528465421199751E-2},{"$f":"'Population 2016'!AH125/'Population 2016'!AH$6","v":1.883790936965726E-2},{"$f":"'Population 2016'!AI125/'Population 2016'!AI$6","v":2.4207217802182164E-2},{"$f":"'Population 2016'!AJ125/'Population 2016'!AJ$6","v":2.709087562127999E-2},{"$f":"'Population 2016'!AK125/'Population 2016'!AK$6","v":3.1727287041410798E-2},{"$f":"'Population 2016'!AL125/'Population 2016'!AL$6","v":1.0999585479954995E-2},{"$f":"'Population 2016'!AM125/'Population 2016'!AM$6","v":1.7886774036115178E-2},{"$f":"'Population 2016'!AN125/'Population 2016'!AN$6","v":3.9215686274509803E-2},{"$f":"'Population 2016'!AO125/'Population 2016'!AO$6","v":3.9215686274509803E-2},{"$f":"'Population 2016'!AP125/'Population 2016'!AP$6","v":2.4235734510726113E-2},{"$f":"'Population 2016'!AQ125/'Population 2016'!AQ$6","v":1.3512916758666373E-2},{"$f":"'Population 2016'!AR125/'Population 2016'!AR$6","v":1.8094509248468008E-2},{"$f":"'Population 2016'!AS125/'Population 2016'!AS$6","v":2.495872584247839E-2},{"$f":"'Population 2016'!AT125/'Population 2016'!AT$6","v":4.6104928457869634E-2},{"$f":"'Population 2016'!AU125/'Population 2016'!AU$6","v":4.6104928457869634E-2},{"$f":"'Population 2016'!AV125/'Population 2016'!AV$6","v":1.958775169784344E-2},{"$f":"'Population 2016'!AW125/'Population 2016'!AW$6","v":2.011482485524042E-2},{"$f":"'Population 2016'!AX125/'Population 2016'!AX$6","v":1.7055197664179449E-2},{"$f":"'Population 2016'!AY125/'Population 2016'!AY$6","v":1.7701664395017563E-2},{"$f":"'Population 2016'!AZ125/'Population 2016'!AZ$6","v":1.6542804058882379E-2},{"$f":"'Population 2016'!BA125/'Population 2016'!BA$6","v":1.5002091925168848E-2},{"$f":"'Population 2016'!BB125/'Population 2016'!BB$6","v":2.4742368267548123E-2},{"$f":"'Population 2016'!BC125/'Population 2016'!BC$6","v":3.663475699558174E-2},123]
[null,"Male 45-49",{"$f":"'Population 2016'!C126/'Population 2016'!C$6","v":2.7200028688230654E-2},{"$f":"'Population 2016'!D126/'Population 2016'!D$6","v":2.7986294562289123E-2},{"$f":"'Population 2016'!E126/'Population 2016'!E$6","v":3.0105344544312362E-2},{"$f":"'Population 2016'!F126/'Population 2016'!F$6","v":2.8823682160477797E-2},{"$f":"'Population 2016'!G126/'Population 2016'!G$6","v":2.7874174409492893E-2},{"$f":"'Population 2016'!H126/'Population 2016'!H$6","v":1.9204970277312376E-2},{"$f":"'Population 2016'!I126/'Population 2016'!I$6","v":2.971739341555793E-2},{"$f":"'Population 2016'!J126/'Population 2016'!J$6","v":2.2694735853927575E-2},{"$f":"'Population 2016'!K126/'Population 2016'!K$6","v":2.5342335488779004E-2},{"$f":"'Population 2016'!L126/'Population 2016'!L$6","v":3.0191293465629748E-2},{"$f":"'Population 2016'!M126/'Population 2016'!M$6","v":3.0191293465629748E-2},{"$f":"'Population 2016'!N126/'Population 2016'!N$6","v":1.3409989854283991E-2},{"$f":"'Population 2016'!O126/'Population 2016'!O$6","v":2.0256339770462511E-2},{"$f":"'Population 2016'!P126/'Population 2016'!P$6","v":2.9920177618015541E-2},{"$f":"'Population 2016'!Q126/'Population 2016'!Q$6","v":3.6022167487684727E-2},{"$f":"'Population 2016'!R126/'Population 2016'!R$6","v":2.4244493768140685E-2},{"$f":"'Population 2016'!S126/'Population 2016'!S$6","v":2.4155872852197519E-2},{"$f":"'Population 2016'!T126/'Population 2016'!T$6","v":1.9731463297455391E-2},{"$f":"'Population 2016'!U126/'Population 2016'!U$6","v":4.3262150220913106E-2},{"$f":"'Population 2016'!V126/'Population 2016'!V$6","v":3.0224830316742082E-2},{"$f":"'Population 2016'!W126/'Population 2016'!W$6","v":2.1512953367875648E-2},{"$f":"'Population 2016'!X126/'Population 2016'!X$6","v":2.1512953367875648E-2},{"$f":"'Population 2016'!Y126/'Population 2016'!Y$6","v":2.69899682411655E-2},{"$f":"'Population 2016'!Z126/'Population 2016'!Z$6","v":1.0846085839022211E-2},{"$f":"'Population 2016'!AA126/'Population 2016'!AA$6","v":1.6403257153927396E-2},{"$f":"'Population 2016'!AB126/'Population 2016'!AB$6","v":2.985375919612417E-2},{"$f":"'Population 2016'!AC126/'Population 2016'!AC$6","v":1.3085868351534628E-2},{"$f":"'Population 2016'!AD126/'Population 2016'!AD$6","v":2.8523663692985961E-2},{"$f":"'Population 2016'!AE126/'Population 2016'!AE$6","v":2.8757013292577474E-2},{"$f":"'Population 2016'!AF126/'Population 2016'!AF$6","v":8.8228786370173687E-3},{"$f":"'Population 2016'!AG126/'Population 2016'!AG$6","v":2.8757013292577474E-2},{"$f":"'Population 2016'!AH126/'Population 2016'!AH$6","v":2.2365647037434575E-2},{"$f":"'Population 2016'!AI126/'Population 2016'!AI$6","v":2.5010776899350037E-2},{"$f":"'Population 2016'!AJ126/'Population 2016'!AJ$6","v":3.1447505675891267E-2},{"$f":"'Population 2016'!AK126/'Population 2016'!AK$6","v":4.1095890410958902E-2},{"$f":"'Population 2016'!AL126/'Population 2016'!AL$6","v":1.4685853023035472E-2},{"$f":"'Population 2016'!AM126/'Population 2016'!AM$6","v":2.0229380185456319E-2},{"$f":"'Population 2016'!AN126/'Population 2016'!AN$6","v":4.0369088811995385E-2},{"$f":"'Population 2016'!AO126/'Population 2016'!AO$6","v":4.0369088811995385E-2},{"$f":"'Population 2016'!AP126/'Population 2016'!AP$6","v":2.9322839180304268E-2},{"$f":"'Population 2016'!AQ126/'Population 2016'!AQ$6","v":1.5617870022815927E-2},{"$f":"'Population 2016'!AR126/'Population 2016'!AR$6","v":2.073628272967434E-2},{"$f":"'Population 2016'!AS126/'Population 2016'!AS$6","v":2.971739341555793E-2},{"$f":"'Population 2016'!AT126/'Population 2016'!AT$6","v":2.066772655007949E-2},{"$f":"'Population 2016'!AU126/'Population 2016'!AU$6","v":2.066772655007949E-2},{"$f":"'Population 2016'!AV126/'Population 2016'!AV$6","v":2.5020850708924104E-2},{"$f":"'Population 2016'!AW126/'Population 2016'!AW$6","v":2.5233621896985234E-2},{"$f":"'Population 2016'!AX126/'Population 2016'!AX$6","v":2.0114010288733372E-2},{"$f":"'Population 2016'!AY126/'Population 2016'!AY$6","v":2.056953181097013E-2},{"$f":"'Population 2016'!AZ126/'Population 2016'!AZ$6","v":1.9553022724024583E-2},{"$f":"'Population 2016'!BA126/'Population 2016'!BA$6","v":1.8468710776403083E-2},{"$f":"'Population 2016'!BB126/'Population 2016'!BB$6","v":2.712424654870698E-2},{"$f":"'Population 2016'!BC126/'Population 2016'!BC$6","v":4.3262150220913106E-2},124]
[null,"Male 50-54",{"$f":"'Population 2016'!C127/'Population 2016'!C$6","v":2.524564297496952E-2},{"$f":"'Population 2016'!D127/'Population 2016'!D$6","v":2.7005466481835064E-2},{"$f":"'Population 2016'!E127/'Population 2016'!E$6","v":3.1748332850101479E-2},{"$f":"'Population 2016'!F127/'Population 2016'!F$6","v":2.8866960962520557E-2},{"$f":"'Population 2016'!G127/'Population 2016'!G$6","v":2.8657785738273815E-2},{"$f":"'Population 2016'!H127/'Population 2016'!H$6","v":2.0308018865112062E-2},{"$f":"'Population 2016'!I127/'Population 2016'!I$6","v":3.3650577838205305E-2},{"$f":"'Population 2016'!J127/'Population 2016'!J$6","v":2.2929428055105727E-2},{"$f":"'Population 2016'!K127/'Population 2016'!K$6","v":2.3678204640547738E-2},{"$f":"'Population 2016'!L127/'Population 2016'!L$6","v":3.5353535353535352E-2},{"$f":"'Population 2016'!M127/'Population 2016'!M$6","v":3.5353535353535352E-2},{"$f":"'Population 2016'!N127/'Population 2016'!N$6","v":1.2468937934685115E-2},{"$f":"'Population 2016'!O127/'Population 2016'!O$6","v":2.1201292007422171E-2},{"$f":"'Population 2016'!P127/'Population 2016'!P$6","v":3.8378178358090605E-2},{"$f":"'Population 2016'!Q127/'Population 2016'!Q$6","v":3.8947044334975367E-2},{"$f":"'Population 2016'!R127/'Population 2016'!R$6","v":2.9195834044732798E-2},{"$f":"'Population 2016'!S127/'Population 2016'!S$6","v":2.482665011205926E-2},{"$f":"'Population 2016'!T127/'Population 2016'!T$6","v":1.8998170983538853E-2},{"$f":"'Population 2016'!U127/'Population 2016'!U$6","v":4.7680412371134018E-2},{"$f":"'Population 2016'!V127/'Population 2016'!V$6","v":2.9376414027149321E-2},{"$f":"'Population 2016'!W127/'Population 2016'!W$6","v":2.2433160621761657E-2},{"$f":"'Population 2016'!X127/'Population 2016'!X$6","v":2.2433160621761657E-2},{"$f":"'Population 2016'!Y127/'Population 2016'!Y$6","v":2.6606845793214699E-2},{"$f":"'Population 2016'!Z127/'Population 2016'!Z$6","v":1.0484549644388138E-2},{"$f":"'Population 2016'!AA127/'Population 2016'!AA$6","v":1.6908203503377767E-2},{"$f":"'Population 2016'!AB127/'Population 2016'!AB$6","v":2.8821998923380585E-2},{"$f":"'Population 2016'!AC127/'Population 2016'!AC$6","v":1.3683067932911339E-2},{"$f":"'Population 2016'!AD127/'Population 2016'!AD$6","v":3.1438166674063885E-2},{"$f":"'Population 2016'!AE127/'Population 2016'!AE$6","v":3.2437106602047176E-2},{"$f":"'Population 2016'!AF127/'Population 2016'!AF$6","v":1.1588671313198363E-2},{"$f":"'Population 2016'!AG127/'Population 2016'!AG$6","v":3.2437106602047176E-2},{"$f":"'Population 2016'!AH127/'Population 2016'!AH$6","v":2.2704785346428034E-2},{"$f":"'Population 2016'!AI127/'Population 2016'!AI$6","v":2.5274444728108247E-2},{"$f":"'Population 2016'!AJ127/'Population 2016'!AJ$6","v":3.4116708596674233E-2},{"$f":"'Population 2016'!AK127/'Population 2016'!AK$6","v":3.9757518501023457E-2},{"$f":"'Population 2016'!AL127/'Population 2016'!AL$6","v":1.4893113045537988E-2},{"$f":"'Population 2016'!AM127/'Population 2016'!AM$6","v":2.060761346998536E-2},{"$f":"'Population 2016'!AN127/'Population 2016'!AN$6","v":4.5751633986928102E-2},{"$f":"'Population 2016'!AO127/'Population 2016'!AO$6","v":4.5751633986928102E-2},{"$f":"'Population 2016'!AP127/'Population 2016'!AP$6","v":2.8890915198924991E-2},{"$f":"'Population 2016'!AQ127/'Population 2016'!AQ$6","v":1.6486347243688821E-2},{"$f":"'Population 2016'!AR127/'Population 2016'!AR$6","v":2.1375530869863549E-2},{"$f":"'Population 2016'!AS127/'Population 2016'!AS$6","v":3.3650577838205305E-2},{"$f":"'Population 2016'!AT127/'Population 2016'!AT$6","v":5.7233704292527825E-2},{"$f":"'Population 2016'!AU127/'Population 2016'!AU$6","v":5.7233704292527825E-2},{"$f":"'Population 2016'!AV127/'Population 2016'!AV$6","v":2.7785058977719528E-2},{"$f":"'Population 2016'!AW127/'Population 2016'!AW$6","v":2.5520274531322943E-2},{"$f":"'Population 2016'!AX127/'Population 2016'!AX$6","v":2.2199564350929232E-2},{"$f":"'Population 2016'!AY127/'Population 2016'!AY$6","v":2.0737218211603039E-2},{"$f":"'Population 2016'!AZ127/'Population 2016'!AZ$6","v":1.890988995283693E-2},{"$f":"'Population 2016'!BA127/'Population 2016'!BA$6","v":1.9444942521865599E-2},{"$f":"'Population 2016'!BB127/'Population 2016'!BB$6","v":2.6913604251733749E-2},{"$f":"'Population 2016'!BC127/'Population 2016'!BC$6","v":4.7680412371134018E-2},125]
[null,"Male 55-59",{"$f":"'Population 2016'!C128/'Population 2016'!C$6","v":2.4833249659327261E-2},{"$f":"'Population 2016'!D128/'Population 2016'!D$6","v":2.6573902126435279E-2},{"$f":"'Population 2016'!E128/'Population 2016'!E$6","v":3.1265100995457623E-2},{"$f":"'Population 2016'!F128/'Population 2016'!F$6","v":2.4365965550073573E-2},{"$f":"'Population 2016'!G128/'Population 2016'!G$6","v":3.0336952871375798E-2},{"$f":"'Population 2016'!H128/'Population 2016'!H$6","v":1.8781638116589255E-2},{"$f":"'Population 2016'!I128/'Population 2016'!I$6","v":3.2582305525881324E-2},{"$f":"'Population 2016'!J128/'Population 2016'!J$6","v":2.1380459527329906E-2},{"$f":"'Population 2016'!K128/'Population 2016'!K$6","v":2.1300874857360211E-2},{"$f":"'Population 2016'!L128/'Population 2016'!L$6","v":3.4191472244569587E-2},{"$f":"'Population 2016'!M128/'Population 2016'!M$6","v":3.4191472244569587E-2},{"$f":"'Population 2016'!N128/'Population 2016'!N$6","v":1.1586701760061168E-2},{"$f":"'Population 2016'!O128/'Population 2016'!O$6","v":1.9517558930657687E-2},{"$f":"'Population 2016'!P128/'Population 2016'!P$6","v":3.2880477877041812E-2},{"$f":"'Population 2016'!Q128/'Population 2016'!Q$6","v":3.6560960591133007E-2},{"$f":"'Population 2016'!R128/'Population 2016'!R$6","v":2.4073757896534063E-2},{"$f":"'Population 2016'!S128/'Population 2016'!S$6","v":2.2669640884268562E-2},{"$f":"'Population 2016'!T128/'Population 2016'!T$6","v":1.6326289793751E-2},{"$f":"'Population 2016'!U128/'Population 2016'!U$6","v":4.731222385861561E-2},{"$f":"'Population 2016'!V128/'Population 2016'!V$6","v":2.6813489819004523E-2},{"$f":"'Population 2016'!W128/'Population 2016'!W$6","v":2.0907772020725388E-2},{"$f":"'Population 2016'!X128/'Population 2016'!X$6","v":2.0907772020725388E-2},{"$f":"'Population 2016'!Y128/'Population 2016'!Y$6","v":2.4479507990119474E-2},{"$f":"'Population 2016'!Z128/'Population 2016'!Z$6","v":9.4151316568991134E-3},{"$f":"'Population 2016'!AA128/'Population 2016'!AA$6","v":1.5574595199260079E-2},{"$f":"'Population 2016'!AB128/'Population 2016'!AB$6","v":2.8025749147676297E-2},{"$f":"'Population 2016'!AC128/'Population 2016'!AC$6","v":1.2432255780386176E-2},{"$f":"'Population 2016'!AD128/'Population 2016'!AD$6","v":3.093515600727886E-2},{"$f":"'Population 2016'!AE128/'Population 2016'!AE$6","v":3.1150079433708046E-2},{"$f":"'Population 2016'!AF128/'Population 2016'!AF$6","v":1.0537670096249585E-2},{"$f":"'Population 2016'!AG128/'Population 2016'!AG$6","v":3.1150079433708046E-2},{"$f":"'Population 2016'!AH128/'Population 2016'!AH$6","v":2.1222366346291679E-2},{"$f":"'Population 2016'!AI128/'Population 2016'!AI$6","v":2.2704729698623485E-2},{"$f":"'Population 2016'!AJ128/'Population 2016'!AJ$6","v":3.2183837516107261E-2},{"$f":"'Population 2016'!AK128/'Population 2016'!AK$6","v":3.6765863643520705E-2},{"$f":"'Population 2016'!AL128/'Population 2016'!AL$6","v":1.353111861195002E-2},{"$f":"'Population 2016'!AM128/'Population 2016'!AM$6","v":1.8557833089311859E-2},{"$f":"'Population 2016'!AN128/'Population 2016'!AN$6","v":4.2291426374471357E-2},{"$f":"'Population 2016'!AO128/'Population 2016'!AO$6","v":4.2291426374471357E-2},{"$f":"'Population 2016'!AP128/'Population 2016'!AP$6","v":2.4715650045591977E-2},{"$f":"'Population 2016'!AQ128/'Population 2016'!AQ$6","v":1.5529550305439023E-2},{"$f":"'Population 2016'!AR128/'Population 2016'!AR$6","v":1.9802562192457213E-2},{"$f":"'Population 2016'!AS128/'Population 2016'!AS$6","v":3.2582305525881324E-2},{"$f":"'Population 2016'!AT128/'Population 2016'!AT$6","v":4.133545310015898E-2},{"$f":"'Population 2016'!AU128/'Population 2016'!AU$6","v":4.133545310015898E-2},{"$f":"'Population 2016'!AV128/'Population 2016'!AV$6","v":2.621231979030144E-2},{"$f":"'Population 2016'!AW128/'Population 2016'!AW$6","v":2.4799547907845273E-2},{"$f":"'Population 2016'!AX128/'Population 2016'!AX$6","v":2.1458034017704037E-2},{"$f":"'Population 2016'!AY128/'Population 2016'!AY$6","v":1.8866869896851365E-2},{"$f":"'Population 2016'!AZ128/'Population 2016'!AZ$6","v":1.6667857653279976E-2},{"$f":"'Population 2016'!BA128/'Population 2016'!BA$6","v":1.8966788197557427E-2},{"$f":"'Population 2016'!BB128/'Population 2016'!BB$6","v":2.4126644630241754E-2},{"$f":"'Population 2016'!BC128/'Population 2016'!BC$6","v":4.731222385861561E-2},126]
[null,"Male 60-64",{"$f":"'Population 2016'!C129/'Population 2016'!C$6","v":2.0314853331420784E-2},{"$f":"'Population 2016'!D129/'Population 2016'!D$6","v":2.1931315878952737E-2},{"$f":"'Population 2016'!E129/'Population 2016'!E$6","v":2.6287812892625884E-2},{"$f":"'Population 2016'!F129/'Population 2016'!F$6","v":2.4236129143945295E-2},{"$f":"'Population 2016'!G129/'Population 2016'!G$6","v":2.8265980073883354E-2},{"$f":"'Population 2016'!H129/'Population 2016'!H$6","v":1.6492066993805041E-2},{"$f":"'Population 2016'!I129/'Population 2016'!I$6","v":3.1174128386908809E-2},{"$f":"'Population 2016'!J129/'Population 2016'!J$6","v":1.7977422610246662E-2},{"$f":"'Population 2016'!K129/'Population 2016'!K$6","v":1.9589197413465195E-2},{"$f":"'Population 2016'!L129/'Population 2016'!L$6","v":3.0928756592473405E-2},{"$f":"'Population 2016'!M129/'Population 2016'!M$6","v":3.0928756592473405E-2},{"$f":"'Population 2016'!N129/'Population 2016'!N$6","v":9.6310782396447532E-3},{"$f":"'Population 2016'!O129/'Population 2016'!O$6","v":1.6373445124046457E-2},{"$f":"'Population 2016'!P129/'Population 2016'!P$6","v":2.6008352275730826E-2},{"$f":"'Population 2016'!Q129/'Population 2016'!Q$6","v":2.8825431034482759E-2},{"$f":"'Population 2016'!R129/'Population 2016'!R$6","v":2.1939559501451256E-2},{"$f":"'Population 2016'!S129/'Population 2016'!S$6","v":1.929734109155189E-2},{"$f":"'Population 2016'!T129/'Population 2016'!T$6","v":1.2929544937333007E-2},{"$f":"'Population 2016'!U129/'Population 2016'!U$6","v":4.7680412371134018E-2},{"$f":"'Population 2016'!V129/'Population 2016'!V$6","v":2.2076498868778282E-2},{"$f":"'Population 2016'!W129/'Population 2016'!W$6","v":1.8818652849740932E-2},{"$f":"'Population 2016'!X129/'Population 2016'!X$6","v":1.8818652849740932E-2},{"$f":"'Population 2016'!Y129/'Population 2016'!Y$6","v":2.0315571911075265E-2},{"$f":"'Population 2016'!Z129/'Population 2016'!Z$6","v":7.4950402702710917E-3},{"$f":"'Population 2016'!AA129/'Population 2016'!AA$6","v":1.3089859202459739E-2},{"$f":"'Population 2016'!AB129/'Population 2016'!AB$6","v":2.300152521083797E-2},{"$f":"'Population 2016'!AC129/'Population 2016'!AC$6","v":1.0123213750763521E-2},{"$f":"'Population 2016'!AD129/'Population 2016'!AD$6","v":2.7798736555560487E-2},{"$f":"'Population 2016'!AE129/'Population 2016'!AE$6","v":2.7630864520280733E-2},{"$f":"'Population 2016'!AF129/'Population 2016'!AF$6","v":7.9378249806394512E-3},{"$f":"'Population 2016'!AG129/'Population 2016'!AG$6","v":2.7630864520280733E-2},{"$f":"'Population 2016'!AH129/'Population 2016'!AH$6","v":1.8421853093675594E-2},{"$f":"'Population 2016'!AI129/'Population 2016'!AI$6","v":1.8515340863909734E-2},{"$f":"'Population 2016'!AJ129/'Population 2016'!AJ$6","v":2.8256734368288641E-2},{"$f":"'Population 2016'!AK129/'Population 2016'!AK$6","v":2.9444182018579752E-2},{"$f":"'Population 2016'!AL129/'Population 2016'!AL$6","v":1.2539231361402262E-2},{"$f":"'Population 2016'!AM129/'Population 2016'!AM$6","v":1.6642264519277698E-2},{"$f":"'Population 2016'!AN129/'Population 2016'!AN$6","v":4.1906958861976165E-2},{"$f":"'Population 2016'!AO129/'Population 2016'!AO$6","v":4.1906958861976165E-2},{"$f":"'Population 2016'!AP129/'Population 2016'!AP$6","v":2.2652013245668762E-2},{"$f":"'Population 2016'!AQ129/'Population 2016'!AQ$6","v":1.3586516523147126E-2},{"$f":"'Population 2016'!AR129/'Population 2016'!AR$6","v":1.6944879967172827E-2},{"$f":"'Population 2016'!AS129/'Population 2016'!AS$6","v":3.1174128386908809E-2},{"$f":"'Population 2016'!AT129/'Population 2016'!AT$6","v":3.3386327503974564E-2},{"$f":"'Population 2016'!AU129/'Population 2016'!AU$6","v":3.3386327503974564E-2},{"$f":"'Population 2016'!AV129/'Population 2016'!AV$6","v":2.3019182652210174E-2},{"$f":"'Population 2016'!AW129/'Population 2016'!AW$6","v":2.0810981252917714E-2},{"$f":"'Population 2016'!AX129/'Population 2016'!AX$6","v":1.6406358622607406E-2},{"$f":"'Population 2016'!AY129/'Population 2016'!AY$6","v":1.7013720187292809E-2},{"$f":"'Population 2016'!AZ129/'Population 2016'!AZ$6","v":1.5068958124910676E-2},{"$f":"'Population 2016'!BA129/'Population 2016'!BA$6","v":1.5500169346323192E-2},{"$f":"'Population 2016'!BB129/'Population 2016'!BB$6","v":1.9767969408257178E-2},{"$f":"'Population 2016'!BC129/'Population 2016'!BC$6","v":4.7680412371134018E-2},127]
[null,"Male 65-69",{"$f":"'Population 2016'!C130/'Population 2016'!C$6","v":1.8539769059743239E-2},{"$f":"'Population 2016'!D130/'Population 2016'!D$6","v":2.1839771924777027E-2},{"$f":"'Population 2016'!E130/'Population 2016'!E$6","v":3.0733545955349377E-2},{"$f":"'Population 2016'!F130/'Population 2016'!F$6","v":2.5880723621570154E-2},{"$f":"'Population 2016'!G130/'Population 2016'!G$6","v":3.0616814060226129E-2},{"$f":"'Population 2016'!H130/'Population 2016'!H$6","v":1.7589153156805811E-2},{"$f":"'Population 2016'!I130/'Population 2016'!I$6","v":3.2096727202097698E-2},{"$f":"'Population 2016'!J130/'Population 2016'!J$6","v":1.8775376094252387E-2},{"$f":"'Population 2016'!K130/'Population 2016'!K$6","v":1.9208824648155192E-2},{"$f":"'Population 2016'!L130/'Population 2016'!L$6","v":3.4347903816930363E-2},{"$f":"'Population 2016'!M130/'Population 2016'!M$6","v":3.4347903816930363E-2},{"$f":"'Population 2016'!N130/'Population 2016'!N$6","v":1.0704465585437221E-2},{"$f":"'Population 2016'!O130/'Population 2016'!O$6","v":1.6476530822623875E-2},{"$f":"'Population 2016'!P130/'Population 2016'!P$6","v":2.3418089549082834E-2},{"$f":"'Population 2016'!Q130/'Population 2016'!Q$6","v":2.9441194581280788E-2},{"$f":"'Population 2016'!R130/'Population 2016'!R$6","v":1.7244323032269079E-2},{"$f":"'Population 2016'!S130/'Population 2016'!S$6","v":1.9347320573659236E-2},{"$f":"'Population 2016'!T130/'Population 2016'!T$6","v":1.1951821852110954E-2},{"$f":"'Population 2016'!U130/'Population 2016'!U$6","v":4.6944035346097202E-2},{"$f":"'Population 2016'!V130/'Population 2016'!V$6","v":2.4710124434389139E-2},{"$f":"'Population 2016'!W130/'Population 2016'!W$6","v":1.9490155440414509E-2},{"$f":"'Population 2016'!X130/'Population 2016'!X$6","v":1.9490155440414509E-2},{"$f":"'Population 2016'!Y130/'Population 2016'!Y$6","v":2.2160608963048847E-2},{"$f":"'Population 2016'!Z130/'Population 2016'!Z$6","v":6.2220682908452349E-3},{"$f":"'Population 2016'!AA130/'Population 2016'!AA$6","v":1.1837492266446691E-2},{"$f":"'Population 2016'!AB130/'Population 2016'!AB$6","v":2.303516956755787E-2},{"$f":"'Population 2016'!AC130/'Population 2016'!AC$6","v":8.7712472717510984E-3},{"$f":"'Population 2016'!AD130/'Population 2016'!AD$6","v":2.9633246046188215E-2},{"$f":"'Population 2016'!AE130/'Population 2016'!AE$6","v":2.9279868079715245E-2},{"$f":"'Population 2016'!AF130/'Population 2016'!AF$6","v":7.4952981524504924E-3},{"$f":"'Population 2016'!AG130/'Population 2016'!AG$6","v":2.9279868079715245E-2},{"$f":"'Population 2016'!AH130/'Population 2016'!AH$6","v":1.7348497827067433E-2},{"$f":"'Population 2016'!AI130/'Population 2016'!AI$6","v":1.8176339369792037E-2},{"$f":"'Population 2016'!AJ130/'Population 2016'!AJ$6","v":2.7029514634595325E-2},{"$f":"'Population 2016'!AK130/'Population 2016'!AK$6","v":3.0231459612659425E-2},{"$f":"'Population 2016'!AL130/'Population 2016'!AL$6","v":1.3072185704980163E-2},{"$f":"'Population 2016'!AM130/'Population 2016'!AM$6","v":1.5623474865788189E-2},{"$f":"'Population 2016'!AN130/'Population 2016'!AN$6","v":4.6520569011918492E-2},{"$f":"'Population 2016'!AO130/'Population 2016'!AO$6","v":4.6520569011918492E-2},{"$f":"'Population 2016'!AP130/'Population 2016'!AP$6","v":2.0828334213178482E-2},{"$f":"'Population 2016'!AQ130/'Population 2016'!AQ$6","v":1.2394200338558916E-2},{"$f":"'Population 2016'!AR130/'Population 2016'!AR$6","v":1.6801882814681344E-2},{"$f":"'Population 2016'!AS130/'Population 2016'!AS$6","v":3.2096727202097698E-2},{"$f":"'Population 2016'!AT130/'Population 2016'!AT$6","v":3.6565977742448331E-2},{"$f":"'Population 2016'!AU130/'Population 2016'!AU$6","v":3.6565977742448331E-2},{"$f":"'Population 2016'!AV130/'Population 2016'!AV$6","v":2.6402954843321814E-2},{"$f":"'Population 2016'!AW130/'Population 2016'!AW$6","v":1.9664370715566877E-2},{"$f":"'Population 2016'!AX130/'Population 2016'!AX$6","v":1.8352875747323538E-2},{"$f":"'Population 2016'!AY130/'Population 2016'!AY$6","v":1.7675866487227885E-2},{"$f":"'Population 2016'!AZ130/'Population 2016'!AZ$6","v":1.5721023295698158E-2},{"$f":"'Population 2016'!BA130/'Population 2016'!BA$6","v":1.4005937082860159E-2},{"$f":"'Population 2016'!BB130/'Population 2016'!BB$6","v":2.0723961371443386E-2},{"$f":"'Population 2016'!BC130/'Population 2016'!BC$6","v":4.6944035346097202E-2},128]
[null,"Male 70-74",{"$f":"'Population 2016'!C131/'Population 2016'!C$6","v":1.204905687441727E-2},{"$f":"'Population 2016'!D131/'Population 2016'!D$6","v":1.4424711636544347E-2},{"$f":"'Population 2016'!E131/'Population 2016'!E$6","v":2.0827292935150284E-2},{"$f":"'Population 2016'!F131/'Population 2016'!F$6","v":1.757119362936034E-2},{"$f":"'Population 2016'!G131/'Population 2016'!G$6","v":2.4235978954438599E-2},{"$f":"'Population 2016'!H131/'Population 2016'!H$6","v":1.299212363684063E-2},{"$f":"'Population 2016'!I131/'Population 2016'!I$6","v":2.3016412547343885E-2},{"$f":"'Population 2016'!J131/'Population 2016'!J$6","v":1.2462155882560022E-2},{"$f":"'Population 2016'!K131/'Population 2016'!K$6","v":1.3645872955496387E-2},{"$f":"'Population 2016'!L131/'Population 2016'!L$6","v":2.5945293644408687E-2},{"$f":"'Population 2016'!M131/'Population 2016'!M$6","v":2.5945293644408687E-2},{"$f":"'Population 2016'!N131/'Population 2016'!N$6","v":7.3225602493787586E-3},{"$f":"'Population 2016'!O131/'Population 2016'!O$6","v":1.2404645728815888E-2},{"$f":"'Population 2016'!P131/'Population 2016'!P$6","v":1.6863138975524661E-2},{"$f":"'Population 2016'!Q131/'Population 2016'!Q$6","v":2.1012931034482759E-2},{"$f":"'Population 2016'!R131/'Population 2016'!R$6","v":1.0329520232200785E-2},{"$f":"'Population 2016'!S131/'Population 2016'!S$6","v":1.4254674396826567E-2},{"$f":"'Population 2016'!T131/'Population 2016'!T$6","v":8.6899353522753141E-3},{"$f":"'Population 2016'!U131/'Population 2016'!U$6","v":3.0007363770250369E-2},{"$f":"'Population 2016'!V131/'Population 2016'!V$6","v":1.7321832579185521E-2},{"$f":"'Population 2016'!W131/'Population 2016'!W$6","v":1.4026943005181347E-2},{"$f":"'Population 2016'!X131/'Population 2016'!X$6","v":1.4026943005181347E-2},{"$f":"'Population 2016'!Y131/'Population 2016'!Y$6","v":1.5234158390885719E-2},{"$f":"'Population 2016'!Z131/'Population 2016'!Z$6","v":4.6057888324811409E-3},{"$f":"'Population 2016'!AA131/'Population 2016'!AA$6","v":9.2402682215014659E-3},{"$f":"'Population 2016'!AB131/'Population 2016'!AB$6","v":1.5711914588193075E-2},{"$f":"'Population 2016'!AC131/'Population 2016'!AC$6","v":6.7423249154777787E-3},{"$f":"'Population 2016'!AD131/'Population 2016'!AD$6","v":2.2310002515053332E-2},{"$f":"'Population 2016'!AE131/'Population 2016'!AE$6","v":2.1618034468196351E-2},{"$f":"'Population 2016'!AF131/'Population 2016'!AF$6","v":5.9741121805509459E-3},{"$f":"'Population 2016'!AG131/'Population 2016'!AG$6","v":2.1618034468196351E-2},{"$f":"'Population 2016'!AH131/'Population 2016'!AH$6","v":1.3729857107394963E-2},{"$f":"'Population 2016'!AI131/'Population 2016'!AI$6","v":1.3614467411911926E-2},{"$f":"'Population 2016'!AJ131/'Population 2016'!AJ$6","v":2.0862735472786404E-2},{"$f":"'Population 2016'!AK131/'Population 2016'!AK$6","v":2.3460872303574239E-2},{"$f":"'Population 2016'!AL131/'Population 2016'!AL$6","v":9.0306152661810864E-3},{"$f":"'Population 2016'!AM131/'Population 2016'!AM$6","v":1.2231576378721328E-2},{"$f":"'Population 2016'!AN131/'Population 2016'!AN$6","v":3.767781622452903E-2},{"$f":"'Population 2016'!AO131/'Population 2016'!AO$6","v":3.767781622452903E-2},{"$f":"'Population 2016'!AP131/'Population 2016'!AP$6","v":1.3965542064596631E-2},{"$f":"'Population 2016'!AQ131/'Population 2016'!AQ$6","v":1.0362846838890116E-2},{"$f":"'Population 2016'!AR131/'Population 2016'!AR$6","v":1.2463925718348739E-2},{"$f":"'Population 2016'!AS131/'Population 2016'!AS$6","v":2.3016412547343885E-2},{"$f":"'Population 2016'!AT131/'Population 2016'!AT$6","v":3.8155802861685212E-2},{"$f":"'Population 2016'!AU131/'Population 2016'!AU$6","v":3.8155802861685212E-2},{"$f":"'Population 2016'!AV131/'Population 2016'!AV$6","v":2.0183486238532111E-2},{"$f":"'Population 2016'!AW131/'Population 2016'!AW$6","v":1.5741324662773649E-2},{"$f":"'Population 2016'!AX131/'Population 2016'!AX$6","v":1.1308337581684201E-2},{"$f":"'Population 2016'!AY131/'Population 2016'!AY$6","v":1.2413093298133521E-2},{"$f":"'Population 2016'!AZ131/'Population 2016'!AZ$6","v":1.0674217521795055E-2},{"$f":"'Population 2016'!BA131/'Population 2016'!BA$6","v":1.1754627139242524E-2},{"$f":"'Population 2016'!BB131/'Population 2016'!BB$6","v":1.6138440598872254E-2},{"$f":"'Population 2016'!BC131/'Population 2016'!BC$6","v":3.0007363770250369E-2},129]
[null,"Male 75-79",{"$f":"'Population 2016'!C132/'Population 2016'!C$6","v":1.000502044036434E-2},{"$f":"'Population 2016'!D132/'Population 2016'!D$6","v":1.1560693641618497E-2},{"$f":"'Population 2016'!E132/'Population 2016'!E$6","v":1.5753358461389776E-2},{"$f":"'Population 2016'!F132/'Population 2016'!F$6","v":1.3113477018956115E-2},{"$f":"'Population 2016'!G132/'Population 2016'!G$6","v":1.7967088324191201E-2},{"$f":"'Population 2016'!H132/'Population 2016'!H$6","v":9.9751366885885151E-3},{"$f":"'Population 2016'!I132/'Population 2016'!I$6","v":1.6995241332426921E-2},{"$f":"'Population 2016'!J132/'Population 2016'!J$6","v":9.92748010983595E-3},{"$f":"'Population 2016'!K132/'Population 2016'!K$6","v":1.0174971472042603E-2},{"$f":"'Population 2016'!L132/'Population 2016'!L$6","v":2.0537230714221866E-2},{"$f":"'Population 2016'!M132/'Population 2016'!M$6","v":2.0537230714221866E-2},{"$f":"'Population 2016'!N132/'Population 2016'!N$6","v":6.5579555647046718E-3},{"$f":"'Population 2016'!O132/'Population 2016'!O$6","v":9.8790461136691633E-3},{"$f":"'Population 2016'!P132/'Population 2016'!P$6","v":1.4907226304382301E-2},{"$f":"'Population 2016'!Q132/'Population 2016'!Q$6","v":1.7818657635467982E-2},{"$f":"'Population 2016'!R132/'Population 2016'!R$6","v":8.366057708724603E-3},{"$f":"'Population 2016'!S132/'Population 2016'!S$6","v":1.0600911204873789E-2},{"$f":"'Population 2016'!T132/'Population 2016'!T$6","v":6.3214854647977549E-3},{"$f":"'Population 2016'!U132/'Population 2016'!U$6","v":2.6693667157584682E-2},{"$f":"'Population 2016'!V132/'Population 2016'!V$6","v":1.2814621040723981E-2},{"$f":"'Population 2016'!W132/'Population 2016'!W$6","v":1.0578238341968912E-2},{"$f":"'Population 2016'!X132/'Population 2016'!X$6","v":1.0578238341968912E-2},{"$f":"'Population 2016'!Y132/'Population 2016'!Y$6","v":1.1574330795987296E-2},{"$f":"'Population 2016'!Z132/'Population 2016'!Z$6","v":3.4361129086650198E-3},{"$f":"'Population 2016'!AA132/'Population 2016'!AA$6","v":6.9417624377409899E-3},{"$f":"'Population 2016'!AB132/'Population 2016'!AB$6","v":1.2235331060470124E-2},{"$f":"'Population 2016'!AC132/'Population 2016'!AC$6","v":5.215283640622021E-3},{"$f":"'Population 2016'!AD132/'Population 2016'!AD$6","v":1.5770863846848046E-2},{"$f":"'Population 2016'!AE132/'Population 2016'!AE$6","v":1.4981800631447705E-2},{"$f":"'Population 2016'!AF132/'Population 2016'!AF$6","v":4.20400486779511E-3},{"$f":"'Population 2016'!AG132/'Population 2016'!AG$6","v":1.4981800631447705E-2},{"$f":"'Population 2016'!AH132/'Population 2016'!AH$6","v":1.0044787234414498E-2},{"$f":"'Population 2016'!AI132/'Population 2016'!AI$6","v":1.006122952912274E-2},{"$f":"'Population 2016'!AJ132/'Population 2016'!AJ$6","v":1.4481192857581151E-2},{"$f":"'Population 2016'!AK132/'Population 2016'!AK$6","v":1.6296646197449222E-2},{"$f":"'Population 2016'!AL132/'Population 2016'!AL$6","v":6.9284064665127024E-3},{"$f":"'Population 2016'!AM132/'Population 2016'!AM$6","v":9.0836993655441685E-3},{"$f":"'Population 2016'!AN132/'Population 2016'!AN$6","v":3.1141868512110725E-2},{"$f":"'Population 2016'!AO132/'Population 2016'!AO$6","v":3.1141868512110725E-2},{"$f":"'Population 2016'!AP132/'Population 2016'!AP$6","v":1.1086048855401449E-2},{"$f":"'Population 2016'!AQ132/'Population 2016'!AQ$6","v":8.6700522558327813E-3},{"$f":"'Population 2016'!AR132/'Population 2016'!AR$6","v":9.436116446029031E-3},{"$f":"'Population 2016'!AS132/'Population 2016'!AS$6","v":1.6995241332426921E-2},{"$f":"'Population 2016'!AT132/'Population 2016'!AT$6","v":1.2718600953895072E-2},{"$f":"'Population 2016'!AU132/'Population 2016'!AU$6","v":1.2718600953895072E-2},{"$f":"'Population 2016'!AV132/'Population 2016'!AV$6","v":1.5012510425354461E-2},{"$f":"'Population 2016'!AW132/'Population 2016'!AW$6","v":1.1335064169239715E-2},{"$f":"'Population 2016'!AX132/'Population 2016'!AX$6","v":9.6862399777540905E-3},{"$f":"'Population 2016'!AY132/'Population 2016'!AY$6","v":9.7000133289190243E-3},{"$f":"'Population 2016'!AZ132/'Population 2016'!AZ$6","v":8.7537516078319277E-3},{"$f":"'Population 2016'!BA132/'Population 2016'!BA$6","v":8.5470085470085479E-3},{"$f":"'Population 2016'!BB132/'Population 2016'!BB$6","v":1.1650139347981075E-2},{"$f":"'Population 2016'!BC132/'Population 2016'!BC$6","v":2.6693667157584682E-2},130]
[null,"Male 80-84",{"$f":"'Population 2016'!C133/'Population 2016'!C$6","v":8.0864950154199231E-3},{"$f":"'Population 2016'!D133/'Population 2016'!D$6","v":9.4028718646195688E-3},{"$f":"'Population 2016'!E133/'Population 2016'!E$6","v":1.2950613704455398E-2},{"$f":"'Population 2016'!F133/'Population 2016'!F$6","v":9.8242880637063965E-3},{"$f":"'Population 2016'!G133/'Population 2016'!G$6","v":1.1810142169483936E-2},{"$f":"'Population 2016'!H133/'Population 2016'!H$6","v":6.1949593660749957E-3},{"$f":"'Population 2016'!I133/'Population 2016'!I$6","v":1.0731280955618141E-2},{"$f":"'Population 2016'!J133/'Population 2016'!J$6","v":6.3601586519279963E-3},{"$f":"'Population 2016'!K133/'Population 2016'!K$6","v":6.0384176492963102E-3},{"$f":"'Population 2016'!L133/'Population 2016'!L$6","v":1.3028515240904622E-2},{"$f":"'Population 2016'!M133/'Population 2016'!M$6","v":1.3028515240904622E-2},{"$f":"'Population 2016'!N133/'Population 2016'!N$6","v":4.3670690643885365E-3},{"$f":"'Population 2016'!O133/'Population 2016'!O$6","v":6.1335990653563332E-3},{"$f":"'Population 2016'!P133/'Population 2016'!P$6","v":1.0678225934344769E-2},{"$f":"'Population 2016'!Q133/'Population 2016'!Q$6","v":1.2469211822660099E-2},{"$f":"'Population 2016'!R133/'Population 2016'!R$6","v":7.0001707358716067E-3},{"$f":"'Population 2016'!S133/'Population 2016'!S$6","v":7.2075674196908635E-3},{"$f":"'Population 2016'!T133/'Population 2016'!T$6","v":4.6020414183727655E-3},{"$f":"'Population 2016'!U133/'Population 2016'!U$6","v":1.638438880706922E-2},{"$f":"'Population 2016'!V133/'Population 2016'!V$6","v":9.2795531674208145E-3},{"$f":"'Population 2016'!W133/'Population 2016'!W$6","v":7.2787564766839379E-3},{"$f":"'Population 2016'!X133/'Population 2016'!X$6","v":7.2787564766839379E-3},{"$f":"'Population 2016'!Y133/'Population 2016'!Y$6","v":8.0254070676009474E-3},{"$f":"'Population 2016'!Z133/'Population 2016'!Z$6","v":2.43049542611142E-3},{"$f":"'Population 2016'!AA133/'Population 2016'!AA$6","v":4.7582444365286188E-3},{"$f":"'Population 2016'!AB133/'Population 2016'!AB$6","v":9.7232190920509606E-3},{"$f":"'Population 2016'!AC133/'Population 2016'!AC$6","v":3.635719927013263E-3},{"$f":"'Population 2016'!AD133/'Population 2016'!AD$6","v":1.0311718669092954E-2},{"$f":"'Population 2016'!AE133/'Population 2016'!AE$6","v":9.7733625595752809E-3},{"$f":"'Population 2016'!AF133/'Population 2016'!AF$6","v":2.9593981635136629E-3},{"$f":"'Population 2016'!AG133/'Population 2016'!AG$6","v":9.7733625595752809E-3},{"$f":"'Population 2016'!AH133/'Population 2016'!AH$6","v":6.7757736374156963E-3},{"$f":"'Population 2016'!AI133/'Population 2016'!AI$6","v":6.8679191586066618E-3},{"$f":"'Population 2016'!AJ133/'Population 2016'!AJ$6","v":9.0200650426458858E-3},{"$f":"'Population 2016'!AK133/'Population 2016'!AK$6","v":1.1651708392379154E-2},{"$f":"'Population 2016'!AL133/'Population 2016'!AL$6","v":4.3228518979096346E-3},{"$f":"'Population 2016'!AM133/'Population 2016'!AM$6","v":6.1127379209370428E-3},{"$f":"'Population 2016'!AN133/'Population 2016'!AN$6","v":1.3456362937331795E-2},{"$f":"'Population 2016'!AO133/'Population 2016'!AO$6","v":1.3456362937331795E-2},{"$f":"'Population 2016'!AP133/'Population 2016'!AP$6","v":7.1987330229879541E-3},{"$f":"'Population 2016'!AQ133/'Population 2016'!AQ$6","v":6.0793405461102524E-3},{"$f":"'Population 2016'!AR133/'Population 2016'!AR$6","v":6.4054811430276732E-3},{"$f":"'Population 2016'!AS133/'Population 2016'!AS$6","v":1.0731280955618141E-2},{"$f":"'Population 2016'!AT133/'Population 2016'!AT$6","v":9.538950715421303E-3},{"$f":"'Population 2016'!AU133/'Population 2016'!AU$6","v":9.538950715421303E-3},{"$f":"'Population 2016'!AV133/'Population 2016'!AV$6","v":9.293458834743239E-3},{"$f":"'Population 2016'!AW133/'Population 2016'!AW$6","v":7.6659104497170333E-3},{"$f":"'Population 2016'!AX133/'Population 2016'!AX$6","v":6.6737729990267412E-3},{"$f":"'Population 2016'!AY133/'Population 2016'!AY$6","v":6.6730588149301094E-3},{"$f":"'Population 2016'!AZ133/'Population 2016'!AZ$6","v":6.0204373302844075E-3},{"$f":"'Population 2016'!BA133/'Population 2016'!BA$6","v":5.2796206642360486E-3},{"$f":"'Population 2016'!BB133/'Population 2016'!BB$6","v":7.7289519735562898E-3},{"$f":"'Population 2016'!BC133/'Population 2016'!BC$6","v":1.638438880706922E-2},131]
[null,"Male 85-89",{"$f":"'Population 2016'!C134/'Population 2016'!C$6","v":4.1418633005809368E-3},{"$f":"'Population 2016'!D134/'Population 2016'!D$6","v":4.3679543849554046E-3},{"$f":"'Population 2016'!E134/'Population 2016'!E$6","v":4.9772881028317386E-3},{"$f":"'Population 2016'!F134/'Population 2016'!F$6","v":5.2800138492166537E-3},{"$f":"'Population 2016'!G134/'Population 2016'!G$6","v":5.8211127280868693E-3},{"$f":"'Population 2016'!H134/'Population 2016'!H$6","v":3.2793336394044731E-3},{"$f":"'Population 2016'!I134/'Population 2016'!I$6","v":7.3322326891327571E-3},{"$f":"'Population 2016'!J134/'Population 2016'!J$6","v":2.9805909549625665E-3},{"$f":"'Population 2016'!K134/'Population 2016'!K$6","v":2.9478889311525293E-3},{"$f":"'Population 2016'!L134/'Population 2016'!L$6","v":6.346652364351479E-3},{"$f":"'Population 2016'!M134/'Population 2016'!M$6","v":6.346652364351479E-3},{"$f":"'Population 2016'!N134/'Population 2016'!N$6","v":2.1320707553412047E-3},{"$f":"'Population 2016'!O134/'Population 2016'!O$6","v":3.2815614047144526E-3},{"$f":"'Population 2016'!P134/'Population 2016'!P$6","v":6.0791880319289527E-3},{"$f":"'Population 2016'!Q134/'Population 2016'!Q$6","v":5.772783251231527E-3},{"$f":"'Population 2016'!R134/'Population 2016'!R$6","v":2.731773945705993E-3},{"$f":"'Population 2016'!S134/'Population 2016'!S$6","v":3.6011532107871505E-3},{"$f":"'Population 2016'!T134/'Population 2016'!T$6","v":2.2925920618999856E-3},{"$f":"'Population 2016'!U134/'Population 2016'!U$6","v":9.0206185567010301E-3},{"$f":"'Population 2016'!V134/'Population 2016'!V$6","v":4.4718608597285065E-3},{"$f":"'Population 2016'!W134/'Population 2016'!W$6","v":3.5647668393782384E-3},{"$f":"'Population 2016'!X134/'Population 2016'!X$6","v":3.5647668393782384E-3},{"$f":"'Population 2016'!Y134/'Population 2016'!Y$6","v":3.83122447950799E-3},{"$f":"'Population 2016'!Z134/'Population 2016'!Z$6","v":1.2030952359251528E-3},{"$f":"'Population 2016'!AA134/'Population 2016'!AA$6","v":2.2510108300993021E-3},{"$f":"'Population 2016'!AB134/'Population 2016'!AB$6","v":4.5532029427597341E-3},{"$f":"'Population 2016'!AC134/'Population 2016'!AC$6","v":1.7390763053771305E-3},{"$f":"'Population 2016'!AD134/'Population 2016'!AD$6","v":5.3851730208749424E-3},{"$f":"'Population 2016'!AE134/'Population 2016'!AE$6","v":5.2285478713777226E-3},{"$f":"'Population 2016'!AF134/'Population 2016'!AF$6","v":1.3552384113286868E-3},{"$f":"'Population 2016'!AG134/'Population 2016'!AG$6","v":5.2285478713777226E-3},{"$f":"'Population 2016'!AH134/'Population 2016'!AH$6","v":3.1711180026501736E-3},{"$f":"'Population 2016'!AI134/'Population 2016'!AI$6","v":3.2979404612931444E-3},{"$f":"'Population 2016'!AJ134/'Population 2016'!AJ$6","v":4.8168374547462719E-3},{"$f":"'Population 2016'!AK134/'Population 2016'!AK$6","v":5.6683986773736423E-3},{"$f":"'Population 2016'!AL134/'Population 2016'!AL$6","v":2.013383075738734E-3},{"$f":"'Population 2016'!AM134/'Population 2016'!AM$6","v":2.7269399707174229E-3},{"$f":"'Population 2016'!AN134/'Population 2016'!AN$6","v":6.1514801999231067E-3},{"$f":"'Population 2016'!AO134/'Population 2016'!AO$6","v":6.1514801999231067E-3},{"$f":"'Population 2016'!AP134/'Population 2016'!AP$6","v":3.887315832413495E-3},{"$f":"'Population 2016'!AQ134/'Population 2016'!AQ$6","v":2.5612718039302275E-3},{"$f":"'Population 2016'!AR134/'Population 2016'!AR$6","v":3.1470677670853335E-3},{"$f":"'Population 2016'!AS134/'Population 2016'!AS$6","v":7.3322326891327571E-3},{"$f":"'Population 2016'!AT134/'Population 2016'!AT$6","v":1.589825119236884E-3},{"$f":"'Population 2016'!AU134/'Population 2016'!AU$6","v":1.589825119236884E-3},{"$f":"'Population 2016'!AV134/'Population 2016'!AV$6","v":5.3139521029429287E-3},{"$f":"'Population 2016'!AW134/'Population 2016'!AW$6","v":3.767434622724183E-3},{"$f":"'Population 2016'!AX134/'Population 2016'!AX$6","v":3.0124669787273484E-3},{"$f":"'Population 2016'!AY134/'Population 2016'!AY$6","v":3.3451287100616138E-3},{"$f":"'Population 2016'!AZ134/'Population 2016'!AZ$6","v":3.1084750607403172E-3},{"$f":"'Population 2016'!BA134/'Population 2016'!BA$6","v":2.5501563963102425E-3},{"$f":"'Population 2016'!BB134/'Population 2016'!BB$6","v":3.3864800051850411E-3},{"$f":"'Population 2016'!BC134/'Population 2016'!BC$6","v":9.0206185567010301E-3},132]
[null,"Male 90+",{"$f":"'Population 2016'!C135/'Population 2016'!C$6","v":1.6675034067273901E-3},{"$f":"'Population 2016'!D135/'Population 2016'!D$6","v":1.9485784531687285E-3},{"$f":"'Population 2016'!E135/'Population 2016'!E$6","v":2.7060983860056056E-3},{"$f":"'Population 2016'!F135/'Population 2016'!F$6","v":2.9429585389076432E-3},{"$f":"'Population 2016'!G135/'Population 2016'!G$6","v":1.9590283219523118E-3},{"$f":"'Population 2016'!H135/'Population 2016'!H$6","v":1.2759589069682858E-3},{"$f":"'Population 2016'!I135/'Population 2016'!I$6","v":2.7192386131883071E-3},{"$f":"'Population 2016'!J135/'Population 2016'!J$6","v":8.6836114435917295E-4},{"$f":"'Population 2016'!K135/'Population 2016'!K$6","v":9.5093191327500946E-4},{"$f":"'Population 2016'!L135/'Population 2016'!L$6","v":2.7710735675337446E-3},{"$f":"'Population 2016'!M135/'Population 2016'!M$6","v":2.7710735675337446E-3},{"$f":"'Population 2016'!N135/'Population 2016'!N$6","v":9.8516372833007404E-4},{"$f":"'Population 2016'!O135/'Population 2016'!O$6","v":1.2026664834032025E-3},{"$f":"'Population 2016'!P135/'Population 2016'!P$6","v":3.3832002960300258E-3},{"$f":"'Population 2016'!Q135/'Population 2016'!Q$6","v":2.5785098522167487E-3},{"$f":"'Population 2016'!R135/'Population 2016'!R$6","v":1.4512549086563087E-3},{"$f":"'Population 2016'!S135/'Population 2016'!S$6","v":1.5730384368522396E-3},{"$f":"'Population 2016'!T135/'Population 2016'!T$6","v":1.2221538565275658E-3},{"$f":"'Population 2016'!U135/'Population 2016'!U$6","v":1.6568483063328424E-3},{"$f":"'Population 2016'!V135/'Population 2016'!V$6","v":1.6438065610859729E-3},{"$f":"'Population 2016'!W135/'Population 2016'!W$6","v":1.5917098445595854E-3},{"$f":"'Population 2016'!X135/'Population 2016'!X$6","v":1.5917098445595854E-3},{"$f":"'Population 2016'!Y135/'Population 2016'!Y$6","v":1.3106820587790492E-3},{"$f":"'Population 2016'!Z135/'Population 2016'!Z$6","v":4.9825156235284106E-4},{"$f":"'Population 2016'!AA135/'Population 2016'!AA$6","v":8.5740890030434262E-4},{"$f":"'Population 2016'!AB135/'Population 2016'!AB$6","v":2.018661403193971E-3},{"$f":"'Population 2016'!AC135/'Population 2016'!AC$6","v":7.2753304050452664E-4},{"$f":"'Population 2016'!AD135/'Population 2016'!AD$6","v":2.5298477653011406E-3},{"$f":"'Population 2016'!AE135/'Population 2016'!AE$6","v":2.7349327327206548E-3},{"$f":"'Population 2016'!AF135/'Population 2016'!AF$6","v":4.9784268171257882E-4},{"$f":"'Population 2016'!AG135/'Population 2016'!AG$6","v":2.7349327327206548E-3},{"$f":"'Population 2016'!AH135/'Population 2016'!AH$6","v":1.0908366227418459E-3},{"$f":"'Population 2016'!AI135/'Population 2016'!AI$6","v":1.4648212708789346E-3},{"$f":"'Population 2016'!AJ135/'Population 2016'!AJ$6","v":1.9635515739093085E-3},{"$f":"'Population 2016'!AK135/'Population 2016'!AK$6","v":2.4405605416469847E-3},{"$f":"'Population 2016'!AL135/'Population 2016'!AL$6","v":8.2904009001006696E-4},{"$f":"'Population 2016'!AM135/'Population 2016'!AM$6","v":9.0287945339189845E-4},{"$f":"'Population 2016'!AN135/'Population 2016'!AN$6","v":3.4602076124567475E-3},{"$f":"'Population 2016'!AO135/'Population 2016'!AO$6","v":3.4602076124567475E-3},{"$f":"'Population 2016'!AP135/'Population 2016'!AP$6","v":1.4397466045975907E-3},{"$f":"'Population 2016'!AQ135/'Population 2016'!AQ$6","v":1.0745565614190035E-3},{"$f":"'Population 2016'!AR135/'Population 2016'!AR$6","v":1.2920612276503362E-3},{"$f":"'Population 2016'!AS135/'Population 2016'!AS$6","v":2.7192386131883071E-3},{"$f":"'Population 2016'!AT135/'Population 2016'!AT$6","v":0},{"$f":"'Population 2016'!AU135/'Population 2016'!AU$6","v":0},{"$f":"'Population 2016'!AV135/'Population 2016'!AV$6","v":2.0969855832241153E-3},{"$f":"'Population 2016'!AW135/'Population 2016'!AW$6","v":1.3431723437538391E-3},{"$f":"'Population 2016'!AX135/'Population 2016'!AX$6","v":7.878759790517681E-4},{"$f":"'Population 2016'!AY135/'Population 2016'!AY$6","v":1.5349755134858563E-3},{"$f":"'Population 2016'!AZ135/'Population 2016'!AZ$6","v":1.4738459339717022E-3},{"$f":"'Population 2016'!BA135/'Population 2016'!BA$6","v":7.570776801546032E-4},{"$f":"'Population 2016'!BB135/'Population 2016'!BB$6","v":1.199040767386091E-3},{"$f":"'Population 2016'!BC135/'Population 2016'!BC$6","v":1.6568483063328424E-3},133]
["SIMD Q3","Female 0-4",0,0,0,0,0,0,0,0,0,0,0,0,0,0,0,0,0,0,0,0,0,0,0,0,0,0,0,0,0,0,0,0,0,0,0,0,0,0,0,0,0,0,0,0,0,0,0,0,0,0,0,0,0,134]
[null,"Female 5-9",0,0,0,0,0,0,0,0,0,0,0,0,0,0,0,0,0,0,0,0,0,0,0,0,0,0,0,0,0,0,0,0,0,0,0,0,0,0,0,0,0,0,0,0,0,0,0,0,0,0,0,0,0,135]
[null,"Female 10-15",0,0,0,0,0,0,0,0,0,0,0,0,0,0,0,0,0,0,0,0,0,0,0,0,0,0,0,0,0,0,0,0,0,0,0,0,0,0,0,0,0,0,0,0,0,0,0,0,0,0,0,0,0,136]
[null,"Female 16-19",0,0,0,0,0,0,0,0,0,0,0,0,0,0,0,0,0,0,0,0,0,0,0,0,0,0,0,0,0,0,0,0,0,0,0,0,0,0,0,0,0,0,0,0,0,0,0,0,0,0,0,0,0,137]
[null,"Female 20-24",0,0,0,0,0,0,0,0,0,0,0,0,0,0,0,0,0,0,0,0,0,0,0,0,0,0,0,0,0,0,0,0,0,0,0,0,0,0,0,0,0,0,0,0,0,0,0,0,0,0,0,0,0,138]
[null,"Female 25-29",0,0,0,0,0,0,0,0,0,0,0,0,0,0,0,0,0,0,0,0,0,0,0,0,0,0,0,0,0,0,0,0,0,0,0,0,0,0,0,0,0,0,0,0,0,0,0,0,0,0,0,0,0,139]
[null,"Female 30-34",0,0,0,0,0,0,0,0,0,0,0,0,0,0,0,0,0,0,0,0,0,0,0,0,0,0,0,0,0,0,0,0,0,0,0,0,0,0,0,0,0,0,0,0,0,0,0,0,0,0,0,0,0,140]
[null,"Female 35-39",0,0,0,0,0,0,0,0,0,0,0,0,0,0,0,0,0,0,0,0,0,0,0,0,0,0,0,0,0,0,0,0,0,0,0,0,0,0,0,0,0,0,0,0,0,0,0,0,0,0,0,0,0,141]
[null,"Female 40-44",0,0,0,0,0,0,0,0,0,0,0,0,0,0,0,0,0,0,0,0,0,0,0,0,0,0,0,0,0,0,0,0,0,0,0,0,0,0,0,0,0,0,0,0,0,0,0,0,0,0,0,0,0,142]
[null,"Female 45-49",0,0,0,0,0,0,0,0,0,0,0,0,0,0,0,0,0,0,0,0,0,0,0,0,0,0,0,0,0,0,0,0,0,0,0,0,0,0,0,0,0,0,0,0,0,0,0,0,0,0,0,0,0,143]
[null,"Female 50-54",0,0,0,0,0,0,0,0,0,0,0,0,0,0,0,0,0,0,0,0,0,0,0,0,0,0,0,0,0,0,0,0,0,0,0,0,0,0,0,0,0,0,0,0,0,0,0,0,0,0,0,0,0,144]
[null,"Female 55-59",0,0,0,0,0,0,0,0,0,0,0,0,0,0,0,0,0,0,0,0,0,0,0,0,0,0,0,0,0,0,0,0,0,0,0,0,0,0,0,0,0,0,0,0,0,0,0,0,0,0,0,0,0,145]
[null,"Female 60-64",0,0,0,0,0,0,0,0,0,0,0,0,0,0,0,0,0,0,0,0,0,0,0,0,0,0,0,0,0,0,0,0,0,0,0,0,0,0,0,0,0,0,0,0,0,0,0,0,0,0,0,0,0,146]
[null,"Female 65-69",0,0,0,0,0,0,0,0,0,0,0,0,0,0,0,0,0,0,0,0,0,0,0,0,0,0,0,0,0,0,0,0,0,0,0,0,0,0,0,0,0,0,0,0,0,0,0,0,0,0,0,0,0,147]
[null,"Female 70-74",0,0,0,0,0,0,0,0,0,0,0,0,0,0,0,0,0,0,0,0,0,0,0,0,0,0,0,0,0,0,0,0,0,0,0,0,0,0,0,0,0,0,0,0,0,0,0,0,0,0,0,0,0,148]
[null,"Female 75-79",0,0,0,0,0,0,0,0,0,0,0,0,0,0,0,0,0,0,0,0,0,0,0,0,0,0,0,0,0,0,0,0,0,0,0,0,0,0,0,0,0,0,0,0,0,0,0,0,0,0,0,0,0,149]
[null,"Female 80-84",0,0,0,0,0,0,0,0,0,0,0,0,0,0,0,0,0,0,0,0,0,0,0,0,0,0,0,0,0,0,0,0,0,0,0,0,0,0,0,0,0,0,0,0,0,0,0,0,0,0,0,0,0,150]
[null,"Female 85-89",0,0,0,0,0,0,0,0,0,0,0,0,0,0,0,0,0,0,0,0,0,0,0,0,0,0,0,0,0,0,0,0,0,0,0,0,0,0,0,0,0,0,0,0,0,0,0,0,0,0,0,0,0,151]
[null,"Female 90+",0,0,0,0,0,0,0,0,0,0,0,0,0,0,0,0,0,0,0,0,0,0,0,0,0,0,0,0,0,0,0,0,0,0,0,0,0,0,0,0,0,0,0,0,0,0,0,0,0,0,0,0,0,152]
[null,"Male 0-4",0,0,0,0,0,0,0,0,0,0,0,0,0,0,0,0,0,0,0,0,0,0,0,0,0,0,0,0,0,0,0,0,0,0,0,0,0,0,0,0,0,0,0,0,0,0,0,0,0,0,0,0,0,153]
[null,"Male 5-9",0,0,0,0,0,0,0,0,0,0,0,0,0,0,0,0,0,0,0,0,0,0,0,0,0,0,0,0,0,0,0,0,0,0,0,0,0,0,0,0,0,0,0,0,0,0,0,0,0,0,0,0,0,154]
[null,"Male 10-15",0,0,0,0,0,0,0,0,0,0,0,0,0,0,0,0,0,0,0,0,0,0,0,0,0,0,0,0,0,0,0,0,0,0,0,0,0,0,0,0,0,0,0,0,0,0,0,0,0,0,0,0,0,155]
[null,"Male 16-19",0,0,0,0,0,0,0,0,0,0,0,0,0,0,0,0,0,0,0,0,0,0,0,0,0,0,0,0,0,0,0,0,0,0,0,0,0,0,0,0,0,0,0,0,0,0,0,0,0,0,0,0,0,156]
[null,"Male 20-24",0,0,0,0,0,0,0,0,0,0,0,0,0,0,0,0,0,0,0,0,0,0,0,0,0,0,0,0,0,0,0,0,0,0,0,0,0,0,0,0,0,0,0,0,0,0,0,0,0,0,0,0,0,157]
[null,"Male 25-29",0,0,0,0,0,0,0,0,0,0,0,0,0,0,0,0,0,0,0,0,0,0,0,0,0,0,0,0,0,0,0,0,0,0,0,0,0,0,0,0,0,0,0,0,0,0,0,0,0,0,0,0,0,158]
[null,"Male 30-34",0,0,0,0,0,0,0,0,0,0,0,0,0,0,0,0,0,0,0,0,0,0,0,0,0,0,0,0,0,0,0,0,0,0,0,0,0,0,0,0,0,0,0,0,0,0,0,0,0,0,0,0,0,159]
[null,"Male 35-39",0,0,0,0,0,0,0,0,0,0,0,0,0,0,0,0,0,0,0,0,0,0,0,0,0,0,0,0,0,0,0,0,0,0,0,0,0,0,0,0,0,0,0,0,0,0,0,0,0,0,0,0,0,160]
[null,"Male 40-44",0,0,0,0,0,0,0,0,0,0,0,0,0,0,0,0,0,0,0,0,0,0,0,0,0,0,0,0,0,0,0,0,0,0,0,0,0,0,0,0,0,0,0,0,0,0,0,0,0,0,0,0,0,161]
[null,"Male 45-49",0,0,0,0,0,0,0,0,0,0,0,0,0,0,0,0,0,0,0,0,0,0,0,0,0,0,0,0,0,0,0,0,0,0,0,0,0,0,0,0,0,0,0,0,0,0,0,0,0,0,0,0,0,162]
[null,"Male 50-54",0,0,0,0,0,0,0,0,0,0,0,0,0,0,0,0,0,0,0,0,0,0,0,0,0,0,0,0,0,0,0,0,0,0,0,0,0,0,0,0,0,0,0,0,0,0,0,0,0,0,0,0,0,163]
[null,"Male 55-59",0,0,0,0,0,0,0,0,0,0,0,0,0,0,0,0,0,0,0,0,0,0,0,0,0,0,0,0,0,0,0,0,0,0,0,0,0,0,0,0,0,0,0,0,0,0,0,0,0,0,0,0,0,164]
[null,"Male 60-64",0,0,0,0,0,0,0,0,0,0,0,0,0,0,0,0,0,0,0,0,0,0,0,0,0,0,0,0,0,0,0,0,0,0,0,0,0,0,0,0,0,0,0,0,0,0,0,0,0,0,0,0,0,165]
[null,"Male 65-69",0,0,0,0,0,0,0,0,0,0,0,0,0,0,0,0,0,0,0,0,0,0,0,0,0,0,0,0,0,0,0,0,0,0,0,0,0,0,0,0,0,0,0,0,0,0,0,0,0,0,0,0,0,166]
[null,"Male 70-74",0,0,0,0,0,0,0,0,0,0,0,0,0,0,0,0,0,0,0,0,0,0,0,0,0,0,0,0,0,0,0,0,0,0,0,0,0,0,0,0,0,0,0,0,0,0,0,0,0,0,0,0,0,167]
[null,"Male 75-79",0,0,0,0,0,0,0,0,0,0,0,0,0,0,0,0,0,0,0,0,0,0,0,0,0,0,0,0,0,0,0,0,0,0,0,0,0,0,0,0,0,0,0,0,0,0,0,0,0,0,0,0,0,168]
[null,"Male 80-84",0,0,0,0,0,0,0,0,0,0,0,0,0,0,0,0,0,0,0,0,0,0,0,0,0,0,0,0,0,0,0,0,0,0,0,0,0,0,0,0,0,0,0,0,0,0,0,0,0,0,0,0,0,169]
[null,"Male 85-89",0,0,0,0,0,0,0,0,0,0,0,0,0,0,0,0,0,0,0,0,0,0,0,0,0,0,0,0,0,0,0,0,0,0,0,0,0,0,0,0,0,0,0,0,0,0,0,0,0,0,0,0,0,170]
[null,"Male 90+",0,0,0,0,0,0,0,0,0,0,0,0,0,0,0,0,0,0,0,0,0,0,0,0,0,0,0,0,0,0,0,0,0,0,0,0,0,0,0,0,0,0,0,0,0,0,0,0,0,0,0,0,0,171]
["SIMD Q4","Female 0-4",0,0,0,0,0,0,0,0,0,0,0,0,0,0,0,0,0,0,0,0,0,0,0,0,0,0,0,0,0,0,0,0,0,0,0,0,0,0,0,0,0,0,0,0,0,0,0,0,0,0,0,0,0,172]
[null,"Female 5-9",0,0,0,0,0,0,0,0,0,0,0,0,0,0,0,0,0,0,0,0,0,0,0,0,0,0,0,0,0,0,0,0,0,0,0,0,0,0,0,0,0,0,0,0,0,0,0,0,0,0,0,0,0,173]
[null,"Female 10-15",0,0,0,0,0,0,0,0,0,0,0,0,0,0,0,0,0,0,0,0,0,0,0,0,0,0,0,0,0,0,0,0,0,0,0,0,0,0,0,0,0,0,0,0,0,0,0,0,0,0,0,0,0,174]
[null,"Female 16-19",0,0,0,0,0,0,0,0,0,0,0,0,0,0,0,0,0,0,0,0,0,0,0,0,0,0,0,0,0,0,0,0,0,0,0,0,0,0,0,0,0,0,0,0,0,0,0,0,0,0,0,0,0,175]
[null,"Female 20-24",0,0,0,0,0,0,0,0,0,0,0,0,0,0,0,0,0,0,0,0,0,0,0,0,0,0,0,0,0,0,0,0,0,0,0,0,0,0,0,0,0,0,0,0,0,0,0,0,0,0,0,0,0,176]
[null,"Female 25-29",0,0,0,0,0,0,0,0,0,0,0,0,0,0,0,0,0,0,0,0,0,0,0,0,0,0,0,0,0,0,0,0,0,0,0,0,0,0,0,0,0,0,0,0,0,0,0,0,0,0,0,0,0,177]
[null,"Female 30-34",0,0,0,0,0,0,0,0,0,0,0,0,0,0,0,0,0,0,0,0,0,0,0,0,0,0,0,0,0,0,0,0,0,0,0,0,0,0,0,0,0,0,0,0,0,0,0,0,0,0,0,0,0,178]
[null,"Female 35-39",0,0,0,0,0,0,0,0,0,0,0,0,0,0,0,0,0,0,0,0,0,0,0,0,0,0,0,0,0,0,0,0,0,0,0,0,0,0,0,0,0,0,0,0,0,0,0,0,0,0,0,0,0,179]
[null,"Female 40-44",0,0,0,0,0,0,0,0,0,0,0,0,0,0,0,0,0,0,0,0,0,0,0,0,0,0,0,0,0,0,0,0,0,0,0,0,0,0,0,0,0,0,0,0,0,0,0,0,0,0,0,0,0,180]
[null,"Female 45-49",0,0,0,0,0,0,0,0,0,0,0,0,0,0,0,0,0,0,0,0,0,0,0,0,0,0,0,0,0,0,0,0,0,0,0,0,0,0,0,0,0,0,0,0,0,0,0,0,0,0,0,0,0,181]
[null,"Female 50-54",0,0,0,0,0,0,0,0,0,0,0,0,0,0,0,0,0,0,0,0,0,0,0,0,0,0,0,0,0,0,0,0,0,0,0,0,0,0,0,0,0,0,0,0,0,0,0,0,0,0,0,0,0,182]
[null,"Female 55-59",0,0,0,0,0,0,0,0,0,0,0,0,0,0,0,0,0,0,0,0,0,0,0,0,0,0,0,0,0,0,0,0,0,0,0,0,0,0,0,0,0,0,0,0,0,0,0,0,0,0,0,0,0,183]
[null,"Female 60-64",0,0,0,0,0,0,0,0,0,0,0,0,0,0,0,0,0,0,0,0,0,0,0,0,0,0,0,0,0,0,0,0,0,0,0,0,0,0,0,0,0,0,0,0,0,0,0,0,0,0,0,0,0,184]
[null,"Female 65-69",0,0,0,0,0,0,0,0,0,0,0,0,0,0,0,0,0,0,0,0,0,0,0,0,0,0,0,0,0,0,0,0,0,0,0,0,0,0,0,0,0,0,0,0,0,0,0,0,0,0,0,0,0,185]
[null,"Female 70-74",0,0,0,0,0,0,0,0,0,0,0,0,0,0,0,0,0,0,0,0,0,0,0,0,0,0,0,0,0,0,0,0,0,0,0,0,0,0,0,0,0,0,0,0,0,0,0,0,0,0,0,0,0,186]
[null,"Female 75-79",0,0,0,0,0,0,0,0,0,0,0,0,0,0,0,0,0,0,0,0,0,0,0,0,0,0,0,0,0,0,0,0,0,0,0,0,0,0,0,0,0,0,0,0,0,0,0,0,0,0,0,0,0,187]
[null,"Female 80-84",0,0,0,0,0,0,0,0,0,0,0,0,0,0,0,0,0,0,0,0,0,0,0,0,0,0,0,0,0,0,0,0,0,0,0,0,0,0,0,0,0,0,0,0,0,0,0,0,0,0,0,0,0,188]
[null,"Female 85-89",0,0,0,0,0,0,0,0,0,0,0,0,0,0,0,0,0,0,0,0,0,0,0,0,0,0,0,0,0,0,0,0,0,0,0,0,0,0,0,0,0,0,0,0,0,0,0,0,0,0,0,0,0,189]
[null,"Female 90+",0,0,0,0,0,0,0,0,0,0,0,0,0,0,0,0,0,0,0,0,0,0,0,0,0,0,0,0,0,0,0,0,0,0,0,0,0,0,0,0,0,0,0,0,0,0,0,0,0,0,0,0,0,190]
[null,"Male 0-4",0,0,0,0,0,0,0,0,0,0,0,0,0,0,0,0,0,0,0,0,0,0,0,0,0,0,0,0,0,0,0,0,0,0,0,0,0,0,0,0,0,0,0,0,0,0,0,0,0,0,0,0,0,191]
[null,"Male 5-9",0,0,0,0,0,0,0,0,0,0,0,0,0,0,0,0,0,0,0,0,0,0,0,0,0,0,0,0,0,0,0,0,0,0,0,0,0,0,0,0,0,0,0,0,0,0,0,0,0,0,0,0,0,192]
[null,"Male 10-15",0,0,0,0,0,0,0,0,0,0,0,0,0,0,0,0,0,0,0,0,0,0,0,0,0,0,0,0,0,0,0,0,0,0,0,0,0,0,0,0,0,0,0,0,0,0,0,0,0,0,0,0,0,193]
[null,"Male 16-19",0,0,0,0,0,0,0,0,0,0,0,0,0,0,0,0,0,0,0,0,0,0,0,0,0,0,0,0,0,0,0,0,0,0,0,0,0,0,0,0,0,0,0,0,0,0,0,0,0,0,0,0,0,194]
[null,"Male 20-24",0,0,0,0,0,0,0,0,0,0,0,0,0,0,0,0,0,0,0,0,0,0,0,0,0,0,0,0,0,0,0,0,0,0,0,0,0,0,0,0,0,0,0,0,0,0,0,0,0,0,0,0,0,195]
[null,"Male 25-29",0,0,0,0,0,0,0,0,0,0,0,0,0,0,0,0,0,0,0,0,0,0,0,0,0,0,0,0,0,0,0,0,0,0,0,0,0,0,0,0,0,0,0,0,0,0,0,0,0,0,0,0,0,196]
[null,"Male 30-34",0,0,0,0,0,0,0,0,0,0,0,0,0,0,0,0,0,0,0,0,0,0,0,0,0,0,0,0,0,0,0,0,0,0,0,0,0,0,0,0,0,0,0,0,0,0,0,0,0,0,0,0,0,197]
[null,"Male 35-39",0,0,0,0,0,0,0,0,0,0,0,0,0,0,0,0,0,0,0,0,0,0,0,0,0,0,0,0,0,0,0,0,0,0,0,0,0,0,0,0,0,0,0,0,0,0,0,0,0,0,0,0,0,198]
[null,"Male 40-44",0,0,0,0,0,0,0,0,0,0,0,0,0,0,0,0,0,0,0,0,0,0,0,0,0,0,0,0,0,0,0,0,0,0,0,0,0,0,0,0,0,0,0,0,0,0,0,0,0,0,0,0,0,199]
[null,"Male 45-49",0,0,0,0,0,0,0,0,0,0,0,0,0,0,0,0,0,0,0,0,0,0,0,0,0,0,0,0,0,0,0,0,0,0,0,0,0,0,0,0,0,0,0,0,0,0,0,0,0,0,0,0,0,200]
[null,"Male 50-54",0,0,0,0,0,0,0,0,0,0,0,0,0,0,0,0,0,0,0,0,0,0,0,0,0,0,0,0,0,0,0,0,0,0,0,0,0,0,0,0,0,0,0,0,0,0,0,0,0,0,0,0,0,201]
[null,"Male 55-59",0,0,0,0,0,0,0,0,0,0,0,0,0,0,0,0,0,0,0,0,0,0,0,0,0,0,0,0,0,0,0,0,0,0,0,0,0,0,0,0,0,0,0,0,0,0,0,0,0,0,0,0,0,202]
[null,"Male 60-64",0,0,0,0,0,0,0,0,0,0,0,0,0,0,0,0,0,0,0,0,0,0,0,0,0,0,0,0,0,0,0,0,0,0,0,0,0,0,0,0,0,0,0,0,0,0,0,0,0,0,0,0,0,203]
[null,"Male 65-69",0,0,0,0,0,0,0,0,0,0,0,0,0,0,0,0,0,0,0,0,0,0,0,0,0,0,0,0,0,0,0,0,0,0,0,0,0,0,0,0,0,0,0,0,0,0,0,0,0,0,0,0,0,204]
[null,"Male 70-74",0,0,0,0,0,0,0,0,0,0,0,0,0,0,0,0,0,0,0,0,0,0,0,0,0,0,0,0,0,0,0,0,0,0,0,0,0,0,0,0,0,0,0,0,0,0,0,0,0,0,0,0,0,205]
[null,"Male 75-79",0,0,0,0,0,0,0,0,0,0,0,0,0,0,0,0,0,0,0,0,0,0,0,0,0,0,0,0,0,0,0,0,0,0,0,0,0,0,0,0,0,0,0,0,0,0,0,0,0,0,0,0,0,206]
[null,"Male 80-84",0,0,0,0,0,0,0,0,0,0,0,0,0,0,0,0,0,0,0,0,0,0,0,0,0,0,0,0,0,0,0,0,0,0,0,0,0,0,0,0,0,0,0,0,0,0,0,0,0,0,0,0,0,207]
[null,"Male 85-89",0,0,0,0,0,0,0,0,0,0,0,0,0,0,0,0,0,0,0,0,0,0,0,0,0,0,0,0,0,0,0,0,0,0,0,0,0,0,0,0,0,0,0,0,0,0,0,0,0,0,0,0,0,208]
[null,"Male 90+",0,0,0,0,0,0,0,0,0,0,0,0,0,0,0,0,0,0,0,0,0,0,0,0,0,0,0,0,0,0,0,0,0,0,0,0,0,0,0,0,0,0,0,0,0,0,0,0,0,0,0,0,0,209]
["SIMD Q5 (least deprived)","Female 0-4",0,0,0,0,0,0,0,0,0,0,0,0,0,0,0,0,0,0,0,0,0,0,0,0,0,0,0,0,0,0,0,0,0,0,0,0,0,0,0,0,0,0,0,0,0,0,0,0,0,0,0,0,0,210]
[null,"Female 5-9",0,0,0,0,0,0,0,0,0,0,0,0,0,0,0,0,0,0,0,0,0,0,0,0,0,0,0,0,0,0,0,0,0,0,0,0,0,0,0,0,0,0,0,0,0,0,0,0,0,0,0,0,0,211]
[null,"Female 10-15",0,0,0,0,0,0,0,0,0,0,0,0,0,0,0,0,0,0,0,0,0,0,0,0,0,0,0,0,0,0,0,0,0,0,0,0,0,0,0,0,0,0,0,0,0,0,0,0,0,0,0,0,0,212]
[null,"Female 16-19",0,0,0,0,0,0,0,0,0,0,0,0,0,0,0,0,0,0,0,0,0,0,0,0,0,0,0,0,0,0,0,0,0,0,0,0,0,0,0,0,0,0,0,0,0,0,0,0,0,0,0,0,0,213]
[null,"Female 20-24",0,0,0,0,0,0,0,0,0,0,0,0,0,0,0,0,0,0,0,0,0,0,0,0,0,0,0,0,0,0,0,0,0,0,0,0,0,0,0,0,0,0,0,0,0,0,0,0,0,0,0,0,0,214]
[null,"Female 25-29",0,0,0,0,0,0,0,0,0,0,0,0,0,0,0,0,0,0,0,0,0,0,0,0,0,0,0,0,0,0,0,0,0,0,0,0,0,0,0,0,0,0,0,0,0,0,0,0,0,0,0,0,0,215]
[null,"Female 30-34",0,0,0,0,0,0,0,0,0,0,0,0,0,0,0,0,0,0,0,0,0,0,0,0,0,0,0,0,0,0,0,0,0,0,0,0,0,0,0,0,0,0,0,0,0,0,0,0,0,0,0,0,0,216]
[null,"Female 35-39",0,0,0,0,0,0,0,0,0,0,0,0,0,0,0,0,0,0,0,0,0,0,0,0,0,0,0,0,0,0,0,0,0,0,0,0,0,0,0,0,0,0,0,0,0,0,0,0,0,0,0,0,0,217]
[null,"Female 40-44",0,0,0,0,0,0,0,0,0,0,0,0,0,0,0,0,0,0,0,0,0,0,0,0,0,0,0,0,0,0,0,0,0,0,0,0,0,0,0,0,0,0,0,0,0,0,0,0,0,0,0,0,0,218]
[null,"Female 45-49",0,0,0,0,0,0,0,0,0,0,0,0,0,0,0,0,0,0,0,0,0,0,0,0,0,0,0,0,0,0,0,0,0,0,0,0,0,0,0,0,0,0,0,0,0,0,0,0,0,0,0,0,0,219]
[null,"Female 50-54",0,0,0,0,0,0,0,0,0,0,0,0,0,0,0,0,0,0,0,0,0,0,0,0,0,0,0,0,0,0,0,0,0,0,0,0,0,0,0,0,0,0,0,0,0,0,0,0,0,0,0,0,0,220]
[null,"Female 55-59",0,0,0,0,0,0,0,0,0,0,0,0,0,0,0,0,0,0,0,0,0,0,0,0,0,0,0,0,0,0,0,0,0,0,0,0,0,0,0,0,0,0,0,0,0,0,0,0,0,0,0,0,0,221]
[null,"Female 60-64",0,0,0,0,0,0,0,0,0,0,0,0,0,0,0,0,0,0,0,0,0,0,0,0,0,0,0,0,0,0,0,0,0,0,0,0,0,0,0,0,0,0,0,0,0,0,0,0,0,0,0,0,0,222]
[null,"Female 65-69",0,0,0,0,0,0,0,0,0,0,0,0,0,0,0,0,0,0,0,0,0,0,0,0,0,0,0,0,0,0,0,0,0,0,0,0,0,0,0,0,0,0,0,0,0,0,0,0,0,0,0,0,0,223]
[null,"Female 70-74",0,0,0,0,0,0,0,0,0,0,0,0,0,0,0,0,0,0,0,0,0,0,0,0,0,0,0,0,0,0,0,0,0,0,0,0,0,0,0,0,0,0,0,0,0,0,0,0,0,0,0,0,0,224]
[null,"Female 75-79",0,0,0,0,0,0,0,0,0,0,0,0,0,0,0,0,0,0,0,0,0,0,0,0,0,0,0,0,0,0,0,0,0,0,0,0,0,0,0,0,0,0,0,0,0,0,0,0,0,0,0,0,0,225]
[null,"Female 80-84",0,0,0,0,0,0,0,0,0,0,0,0,0,0,0,0,0,0,0,0,0,0,0,0,0,0,0,0,0,0,0,0,0,0,0,0,0,0,0,0,0,0,0,0,0,0,0,0,0,0,0,0,0,226]
[null,"Female 85-89",0,0,0,0,0,0,0,0,0,0,0,0,0,0,0,0,0,0,0,0,0,0,0,0,0,0,0,0,0,0,0,0,0,0,0,0,0,0,0,0,0,0,0,0,0,0,0,0,0,0,0,0,0,227]
[null,"Female 90+",0,0,0,0,0,0,0,0,0,0,0,0,0,0,0,0,0,0,0,0,0,0,0,0,0,0,0,0,0,0,0,0,0,0,0,0,0,0,0,0,0,0,0,0,0,0,0,0,0,0,0,0,0,228]
[null,"Male 0-4",0,0,0,0,0,0,0,0,0,0,0,0,0,0,0,0,0,0,0,0,0,0,0,0,0,0,0,0,0,0,0,0,0,0,0,0,0,0,0,0,0,0,0,0,0,0,0,0,0,0,0,0,0,229]
[null,"Male 5-9",0,0,0,0,0,0,0,0,0,0,0,0,0,0,0,0,0,0,0,0,0,0,0,0,0,0,0,0,0,0,0,0,0,0,0,0,0,0,0,0,0,0,0,0,0,0,0,0,0,0,0,0,0,230]
[null,"Male 10-15",0,0,0,0,0,0,0,0,0,0,0,0,0,0,0,0,0,0,0,0,0,0,0,0,0,0,0,0,0,0,0,0,0,0,0,0,0,0,0,0,0,0,0,0,0,0,0,0,0,0,0,0,0,231]
[null,"Male 16-19",0,0,0,0,0,0,0,0,0,0,0,0,0,0,0,0,0,0,0,0,0,0,0,0,0,0,0,0,0,0,0,0,0,0,0,0,0,0,0,0,0,0,0,0,0,0,0,0,0,0,0,0,0,232]
[null,"Male 20-24",0,0,0,0,0,0,0,0,0,0,0,0,0,0,0,0,0,0,0,0,0,0,0,0,0,0,0,0,0,0,0,0,0,0,0,0,0,0,0,0,0,0,0,0,0,0,0,0,0,0,0,0,0,233]
[null,"Male 25-29",0,0,0,0,0,0,0,0,0,0,0,0,0,0,0,0,0,0,0,0,0,0,0,0,0,0,0,0,0,0,0,0,0,0,0,0,0,0,0,0,0,0,0,0,0,0,0,0,0,0,0,0,0,234]
[null,"Male 30-34",0,0,0,0,0,0,0,0,0,0,0,0,0,0,0,0,0,0,0,0,0,0,0,0,0,0,0,0,0,0,0,0,0,0,0,0,0,0,0,0,0,0,0,0,0,0,0,0,0,0,0,0,0,235]
[null,"Male 35-39",0,0,0,0,0,0,0,0,0,0,0,0,0,0,0,0,0,0,0,0,0,0,0,0,0,0,0,0,0,0,0,0,0,0,0,0,0,0,0,0,0,0,0,0,0,0,0,0,0,0,0,0,0,236]
[null,"Male 40-44",0,0,0,0,0,0,0,0,0,0,0,0,0,0,0,0,0,0,0,0,0,0,0,0,0,0,0,0,0,0,0,0,0,0,0,0,0,0,0,0,0,0,0,0,0,0,0,0,0,0,0,0,0,237]
[null,"Male 45-49",0,0,0,0,0,0,0,0,0,0,0,0,0,0,0,0,0,0,0,0,0,0,0,0,0,0,0,0,0,0,0,0,0,0,0,0,0,0,0,0,0,0,0,0,0,0,0,0,0,0,0,0,0,238]
[null,"Male 50-54",0,0,0,0,0,0,0,0,0,0,0,0,0,0,0,0,0,0,0,0,0,0,0,0,0,0,0,0,0,0,0,0,0,0,0,0,0,0,0,0,0,0,0,0,0,0,0,0,0,0,0,0,0,239]
[null,"Male 55-59",0,0,0,0,0,0,0,0,0,0,0,0,0,0,0,0,0,0,0,0,0,0,0,0,0,0,0,0,0,0,0,0,0,0,0,0,0,0,0,0,0,0,0,0,0,0,0,0,0,0,0,0,0,240]
[null,"Male 60-64",0,0,0,0,0,0,0,0,0,0,0,0,0,0,0,0,0,0,0,0,0,0,0,0,0,0,0,0,0,0,0,0,0,0,0,0,0,0,0,0,0,0,0,0,0,0,0,0,0,0,0,0,0,241]
[null,"Male 65-69",0,0,0,0,0,0,0,0,0,0,0,0,0,0,0,0,0,0,0,0,0,0,0,0,0,0,0,0,0,0,0,0,0,0,0,0,0,0,0,0,0,0,0,0,0,0,0,0,0,0,0,0,0,242]
[null,"Male 70-74",0,0,0,0,0,0,0,0,0,0,0,0,0,0,0,0,0,0,0,0,0,0,0,0,0,0,0,0,0,0,0,0,0,0,0,0,0,0,0,0,0,0,0,0,0,0,0,0,0,0,0,0,0,243]
[null,"Male 75-79",0,0,0,0,0,0,0,0,0,0,0,0,0,0,0,0,0,0,0,0,0,0,0,0,0,0,0,0,0,0,0,0,0,0,0,0,0,0,0,0,0,0,0,0,0,0,0,0,0,0,0,0,0,244]
[null,"Male 80-84",0,0,0,0,0,0,0,0,0,0,0,0,0,0,0,0,0,0,0,0,0,0,0,0,0,0,0,0,0,0,0,0,0,0,0,0,0,0,0,0,0,0,0,0,0,0,0,0,0,0,0,0,0,245]
[null,"Male 85-89",0,0,0,0,0,0,0,0,0,0,0,0,0,0,0,0,0,0,0,0,0,0,0,0,0,0,0,0,0,0,0,0,0,0,0,0,0,0,0,0,0,0,0,0,0,0,0,0,0,0,0,0,0,246]
[null,"Male 90+",0,0,0,0,0,0,0,0,0,0,0,0,0,0,0,0,0,0,0,0,0,0,0,0,0,0,0,0,0,0,0,0,0,0,0,0,0,0,0,0,0,0,0,0,0,0,0,0,0,0,0,0,0,247]

{"sheet":"PARfraction","index":17,"n_rows":249,"n_cols":56,"rows_kept":249,"cut":false,"hidden":true,"merged":[]}
["Subgroup's fraction of area's 2016 Population-At-Risk (PAR) (16+ only)"]
[]
["SIMD","group","Aberdeen City Local Authority","Aberdeen City Region Deal","Aberdeenshire Local Authority","Angus Local Authority","Argyll & Bute Local Authority","Ayrshire & Arran Health Board","Borders Health Board","Clackmannanshire & Stirling IJB","Clackmannanshire Local Authority","Dumfries & Galloway Health Board","Dumfries & Galloway Local Authority","Dundee City Local Authority","East Ayrshire Local Authority","East Dunbartonshire Local Authority","East Lothian Local Authority","East Renfrewshire Local Authority","Edinburgh & SE Scotland City Region Deal","Edinburgh, City of Local Authority","Eilean Siar Local Authority","Falkirk Local Authority","Fife Health Board","Fife Local Authority","Forth Valley Health Board","Glasgow City Local Authority","Glasgow City Region Deal","Grampian Health Board","Greater Glasgow & Clyde Health Board","Highland Health Board","Highland Local Authority","Inverclyde Local Authority","Inverness & Highland City Region Deal","Lanarkshire Health Board","Lothian Health Board","Midlothian Local Authority","Moray Local Authority","North Ayrshire Local Authority","North Lanarkshire Local Authority","Orkney Health Board","Orkney Islands Local Authority","Perth & Kinross Local Authority","Renfrewshire Local Authority","Scotland","Scottish Borders Local Authority","Shetland Health Board","Shetland Islands Local Authority","South Ayrshire Local Authority","South Lanarkshire Local Authority","Stirling Local Authority","Tay Cities Region Deal ","Tayside Health Board","West Dunbartonshire Local Authority","West Lothian Local Authority","Western Isles Health Board",1]
[null,null,"popS12000033","Aber_deal","popS12000034","popS12000041","popS12000035","popS08000015","popS08000016","ClacksStirIJB","popS12000005","popS08000017","popS12000006","popS12000042","popS12000008","popS12000045","popS12000010","popS12000011","EdinSE_deal","popS12000036","popS12000013","popS12000014","popS08000018","popS12000015","popS08000019","popS12000046","GClyde_deal","popS08000020","popS08000021","popS08000022","popS12000017","popS12000018","Inver_deal","popS08000023","popS08000024","popS12000019","popS12000020","popS12000021","popS12000044","popS08000025","popS12000023","popS12000024","popS12000038","popS00000001","popS12000026","popS08000026","popS12000027","popS12000028","popS12000029","popS12000030","Tay_deal","popS08000027","popS12000039","popS12000040","popS08000028",2]
["All quintiles","16+ Males and Females",{"$f":"'Population at Risk'!R5/'Population at Risk'!R$5","v":1},{"$f":"'Population at Risk'!AX5/'Population at Risk'!AX$5","v":1},{"$f":"'Population at Risk'!S5/'Population at Risk'!S$5","v":1},{"$f":"'Population at Risk'!T5/'Population at Risk'!T$5","v":1},{"$f":"'Population at Risk'!U5/'Population at Risk'!U$5","v":1},{"$f":"'Population at Risk'!D5/'Population at Risk'!D$5","v":1},{"$f":"'Population at Risk'!E5/'Population at Risk'!E$5","v":1},{"$f":"'Population at Risk'!BC5/'Population at Risk'!BC$5","v":1},{"$f":"'Population at Risk'!V5/'Population at Risk'!V$5","v":1},{"$f":"'Population at Risk'!F5/'Population at Risk'!F$5","v":1},{"$f":"'Population at Risk'!W5/'Population at Risk'!W$5","v":1},{"$f":"'Population at Risk'!X5/'Population at Risk'!X$5","v":1},{"$f":"'Population at Risk'!Y5/'Population at Risk'!Y$5","v":1},{"$f":"'Population at Risk'!Z5/'Population at Risk'!Z$5","v":1},{"$f":"'Population at Risk'!AA5/'Population at Risk'!AA$5","v":1},{"$f":"'Population at Risk'!AB5/'Population at Risk'!AB$5","v":1},{"$f":"'Population at Risk'!AY5/'Population at Risk'!AY$5","v":1},{"$f":"'Population at Risk'!AC5/'Population at Risk'!AC$5","v":1},{"$f":"'Population at Risk'!AD5/'Population at Risk'!AD$5","v":1},{"$f":"'Population at Risk'!AE5/'Population at Risk'!AE$5","v":1},{"$f":"'Population at Risk'!G5/'Population at Risk'!G$5","v":1},{"$f":"'Population at Risk'!AF5/'Population at Risk'!AF$5","v":1},{"$f":"'Population at Risk'!H5/'Population at Risk'!H$5","v":1},{"$f":"'Population at Risk'!AG5/'Population at Risk'!AG$5","v":1},{"$f":"'Population at Risk'!AZ5/'Population at Risk'!AZ$5","v":1},{"$f":"'Population at Risk'!I5/'Population at Risk'!I$5","v":1},{"$f":"'Population at Risk'!J5/'Population at Risk'!J$5","v":1},{"$f":"'Population at Risk'!K5/'Population at Risk'!K$5","v":1},{"$f":"'Population at Risk'!AH5/'Population at Risk'!AH$5","v":1},{"$f":"'Population at Risk'!AI5/'Population at Risk'!AI$5","v":1},{"$f":"'Population at Risk'!BA5/'Population at Risk'!BA$5","v":1},{"$f":"'Population at Risk'!L5/'Population at Risk'!L$5","v":1},{"$f":"'Population at Risk'!M5/'Population at Risk'!M$5","v":1},{"$f":"'Population at Risk'!AJ5/'Population at Risk'!AJ$5","v":1},{"$f":"'Population at Risk'!AK5/'Population at Risk'!AK$5","v":1},{"$f":"'Population at Risk'!AL5/'Population at Risk'!AL$5","v":1},{"$f":"'Population at Risk'!AM5/'Population at Risk'!AM$5","v":1},{"$f":"'Population at Risk'!N5/'Population at Risk'!N$5","v":1},{"$f":"'Population at Risk'!AN5/'Population at Risk'!AN$5","v":1},{"$f":"'Population at Risk'!AO5/'Population at Risk'!AO$5","v":1},{"$f":"'Population at Risk'!AP5/'Population at Risk'!AP$5","v":1},{"$f":"'Population at Risk'!C5/'Population at Risk'!C$5","v":1},{"$f":"'Population at Risk'!AQ5/'Population at Risk'!AQ$5","v":1},{"$f":"'Population at Risk'!O5/'Population at Risk'!O$5","v":1},{"$f":"'Population at Risk'!AR5/'Population at Risk'!AR$5","v":1},{"$f":"'Population at Risk'!AS5/'Population at Risk'!AS$5","v":1},{"$f":"'Population at Risk'!AT5/'Population at Risk'!AT$5","v":1},{"$f":"'Population at Risk'!AU5/'Population at Risk'!AU$5","v":1},{"$f":"'Population at Risk'!BB5/'Population at Risk'!BB$5","v":1},{"$f":"'Population at Risk'!P5/'Population at Risk'!P$5","v":1},{"$f":"'Population at Risk'!AV5/'Population at Risk'!AV$5","v":1},{"$f":"'Population at Risk'!AW5/'Population at Risk'!AW$5","v":1},{"$f":"'Population at Risk'!Q5/'Population at Risk'!Q$5","v":1},3]
["Q1 and Q2","16+ Males and Females",{"$f":"'Population at Risk'!R6/'Population at Risk'!R$5","v":0.24065250653117107},{"$f":"'Population at Risk'!AX6/'Population at Risk'!AX$5","v":0.37602379010688286},{"$f":"'Population at Risk'!S6/'Population at Risk'!S$5","v":0.43347790346705606},{"$f":"'Population at Risk'!T6/'Population at Risk'!T$5","v":0.37709601038417584},{"$f":"'Population at Risk'!U6/'Population at Risk'!U$5","v":0.2660803390346877},{"$f":"'Population at Risk'!D6/'Population at Risk'!D$5","v":0.25712704714596518},{"$f":"'Population at Risk'!E6/'Population at Risk'!E$5","v":0.13904621944146492},{"$f":"'Population at Risk'!BC6/'Population at Risk'!BC$5","v":0.2660803390346877},{"$f":"'Population at Risk'!V6/'Population at Risk'!V$5","v":0.52836372194137959},{"$f":"'Population at Risk'!F6/'Population at Risk'!F$5","v":0.31016268899270133},{"$f":"'Population at Risk'!W6/'Population at Risk'!W$5","v":0.50056755092702476},{"$f":"'Population at Risk'!X6/'Population at Risk'!X$5","v":0.50056755092702476},{"$f":"'Population at Risk'!Y6/'Population at Risk'!Y$5","v":0.49624886329833323},{"$f":"'Population at Risk'!Z6/'Population at Risk'!Z$5","v":0.72605992869574854},{"$f":"'Population at Risk'!AA6/'Population at Risk'!AA$5","v":0.63891814905784006},{"$f":"'Population at Risk'!AB6/'Population at Risk'!AB$5","v":0.24859910794348891},{"$f":"'Population at Risk'!AY6/'Population at Risk'!AY$5","v":0.4604910850478765},{"$f":"'Population at Risk'!AC6/'Population at Risk'!AC$5","v":0.64696956675675943},{"$f":"'Population at Risk'!AD6/'Population at Risk'!AD$5","v":0.32124677271323931},{"$f":"'Population at Risk'!AE6/'Population at Risk'!AE$5","v":0.32577419172164623},{"$f":"'Population at Risk'!G6/'Population at Risk'!G$5","v":0.30939484085470154},{"$f":"'Population at Risk'!AF6/'Population at Risk'!AF$5","v":0.66024301612634007},{"$f":"'Population at Risk'!H6/'Population at Risk'!H$5","v":0.65064658155990662},{"$f":"'Population at Risk'!AG6/'Population at Risk'!AG$5","v":0.32577419172164623},{"$f":"'Population at Risk'!AZ6/'Population at Risk'!AZ$5","v":0.424111754212605},{"$f":"'Population at Risk'!I6/'Population at Risk'!I$5","v":0.28140619259789468},{"$f":"'Population at Risk'!J6/'Population at Risk'!J$5","v":0.46035621561245743},{"$f":"'Population at Risk'!K6/'Population at Risk'!K$5","v":0.59784833847745755},{"$f":"'Population at Risk'!AH6/'Population at Risk'!AH$5","v":0.6242682807467983},{"$f":"'Population at Risk'!AI6/'Population at Risk'!AI$5","v":0.42323413896606893},{"$f":"'Population at Risk'!BA6/'Population at Risk'!BA$5","v":0.7567680411766009},{"$f":"'Population at Risk'!L6/'Population at Risk'!L$5","v":0.42988187816677648},{"$f":"'Population at Risk'!M6/'Population at Risk'!M$5","v":0.42988187816677648},{"$f":"'Population at Risk'!AJ6/'Population at Risk'!AJ$5","v":0.53487517243532501},{"$f":"'Population at Risk'!AK6/'Population at Risk'!AK$5","v":0.20525005478467173},{"$f":"'Population at Risk'!AL6/'Population at Risk'!AL$5","v":0.70685776704436643},{"$f":"'Population at Risk'!AM6/'Population at Risk'!AM$5","v":0.67823993359746515},{"$f":"'Population at Risk'!N6/'Population at Risk'!N$5","v":0.65802792653525588},{"$f":"'Population at Risk'!AN6/'Population at Risk'!AN$5","v":0.18121962216316592},{"$f":"'Population at Risk'!AO6/'Population at Risk'!AO$5","v":0.18121962216316592},{"$f":"'Population at Risk'!AP6/'Population at Risk'!AP$5","v":0.22827045992796535},{"$f":"'Population at Risk'!C6/'Population at Risk'!C$5","v":0.37475787327968363},{"$f":"'Population at Risk'!AQ6/'Population at Risk'!AQ$5","v":0.58134312434638347},{"$f":"'Population at Risk'!O6/'Population at Risk'!O$5","v":0.67357645673312161},{"$f":"'Population at Risk'!AR6/'Population at Risk'!AR$5","v":0.4998656541329124},{"$f":"'Population at Risk'!AS6/'Population at Risk'!AS$5","v":0.28140619259789468},{"$f":"'Population at Risk'!AT6/'Population at Risk'!AT$5","v":4.1582708422195795E-2},{"$f":"'Population at Risk'!AU6/'Population at Risk'!AU$5","v":4.1582708422195795E-2},{"$f":"'Population at Risk'!BB6/'Population at Risk'!BB$5","v":0.51597403009518172},{"$f":"'Population at Risk'!P6/'Population at Risk'!P$5","v":0.31278780834414111},{"$f":"'Population at Risk'!AV6/'Population at Risk'!AV$5","v":0.54934918165003754},{"$f":"'Population at Risk'!AW6/'Population at Risk'!AW$5","v":0.56268904909881234},{"$f":"'Population at Risk'!Q6/'Population at Risk'!Q$5","v":0.37950362144588429},4]
["SIMD Q1 (most deprived)","16+ Males and Females",{"$f":"'Population at Risk'!R7/'Population at Risk'!R$5","v":0.11700930748808586},{"$f":"'Population at Risk'!AX7/'Population at Risk'!AX$5","v":0.19828450483022766},{"$f":"'Population at Risk'!S7/'Population at Risk'!S$5","v":0.20282285886192211},{"$f":"'Population at Risk'!T7/'Population at Risk'!T$5","v":0.20710772478809866},{"$f":"'Population at Risk'!U7/'Population at Risk'!U$5","v":0},{"$f":"'Population at Risk'!D7/'Population at Risk'!D$5","v":8.2778676967008191E-2},{"$f":"'Population at Risk'!E7/'Population at Risk'!E$5","v":3.6016450973052241E-2},{"$f":"'Population at Risk'!BC7/'Population at Risk'!BC$5","v":0},{"$f":"'Population at Risk'!V7/'Population at Risk'!V$5","v":0.20777386320267238},{"$f":"'Population at Risk'!F7/'Population at Risk'!F$5","v":0.10767980867502111},{"$f":"'Population at Risk'!W7/'Population at Risk'!W$5","v":0.2748936303711863},{"$f":"'Population at Risk'!X7/'Population at Risk'!X$5","v":0.2748936303711863},{"$f":"'Population at Risk'!Y7/'Population at Risk'!Y$5","v":0.22527105808421335},{"$f":"'Population at Risk'!Z7/'Population at Risk'!Z$5","v":0.56372751707403868},{"$f":"'Population at Risk'!AA7/'Population at Risk'!AA$5","v":0.42368695494868402},{"$f":"'Population at Risk'!AB7/'Population at Risk'!AB$5","v":7.1311729257630824E-2},{"$f":"'Population at Risk'!AY7/'Population at Risk'!AY$5","v":0.25796812006542613},{"$f":"'Population at Risk'!AC7/'Population at Risk'!AC$5","v":0.46938425648551346},{"$f":"'Population at Risk'!AD7/'Population at Risk'!AD$5","v":0.10398976077329374},{"$f":"'Population at Risk'!AE7/'Population at Risk'!AE$5","v":0.10270464938498623},{"$f":"'Population at Risk'!G7/'Population at Risk'!G$5","v":0.10735394080093609},{"$f":"'Population at Risk'!AF7/'Population at Risk'!AF$5","v":0.53123297642167333},{"$f":"'Population at Risk'!H7/'Population at Risk'!H$5","v":0.39552064388694746},{"$f":"'Population at Risk'!AG7/'Population at Risk'!AG$5","v":0.10270464938498623},{"$f":"'Population at Risk'!AZ7/'Population at Risk'!AZ$5","v":0.24260402232223133},{"$f":"'Population at Risk'!I7/'Population at Risk'!I$5","v":8.3053600490405402E-2},{"$f":"'Population at Risk'!J7/'Population at Risk'!J$5","v":0.24482651241003345},{"$f":"'Population at Risk'!K7/'Population at Risk'!K$5","v":0.32070669000700569},{"$f":"'Population at Risk'!AH7/'Population at Risk'!AH$5","v":0.3405389337282253},{"$f":"'Population at Risk'!AI7/'Population at Risk'!AI$5","v":0.18628679464089626},{"$f":"'Population at Risk'!BA7/'Population at Risk'!BA$5","v":0.4704186909071319},{"$f":"'Population at Risk'!L7/'Population at Risk'!L$5","v":0.11427213712865916},{"$f":"'Population at Risk'!M7/'Population at Risk'!M$5","v":0.11427213712865916},{"$f":"'Population at Risk'!AJ7/'Population at Risk'!AJ$5","v":0.13995270051823322},{"$f":"'Population at Risk'!AK7/'Population at Risk'!AK$5","v":1.3023165746431697E-2},{"$f":"'Population at Risk'!AL7/'Population at Risk'!AL$5","v":0.50564534285088658},{"$f":"'Population at Risk'!AM7/'Population at Risk'!AM$5","v":0.39774732716790523},{"$f":"'Population at Risk'!N7/'Population at Risk'!N$5","v":0.45757926741684923},{"$f":"'Population at Risk'!AN7/'Population at Risk'!AN$5","v":0},{"$f":"'Population at Risk'!AO7/'Population at Risk'!AO$5","v":0},{"$f":"'Population at Risk'!AP7/'Population at Risk'!AP$5","v":8.7279617336375306E-2},{"$f":"'Population at Risk'!C7/'Population at Risk'!C$5","v":0.12936269388537064},{"$f":"'Population at Risk'!AQ7/'Population at Risk'!AQ$5","v":0.38397614520145301},{"$f":"'Population at Risk'!O7/'Population at Risk'!O$5","v":0.4029554229440051},{"$f":"'Population at Risk'!AR7/'Population at Risk'!AR$5","v":0.27859627342071608},{"$f":"'Population at Risk'!AS7/'Population at Risk'!AS$5","v":8.3053600490405402E-2},{"$f":"'Population at Risk'!AT7/'Population at Risk'!AT$5","v":0},{"$f":"'Population at Risk'!AU7/'Population at Risk'!AU$5","v":0},{"$f":"'Population at Risk'!BB7/'Population at Risk'!BB$5","v":0.22450648018053182},{"$f":"'Population at Risk'!P7/'Population at Risk'!P$5","v":8.2406783161854347E-2},{"$f":"'Population at Risk'!AV7/'Population at Risk'!AV$5","v":0.2407506154286691},{"$f":"'Population at Risk'!AW7/'Population at Risk'!AW$5","v":0.27526672645344619},{"$f":"'Population at Risk'!Q7/'Population at Risk'!Q$5","v":5.2903668911101001E-2},5]
["SIMD Q2",null,{"$f":"'Population at Risk'!R8/'Population at Risk'!R$5","v":0.1236431990430852},{"$f":"'Population at Risk'!AX8/'Population at Risk'!AX$5","v":0.1777392852766552},{"$f":"'Population at Risk'!S8/'Population at Risk'!S$5","v":0.23065504460513397},{"$f":"'Population at Risk'!T8/'Population at Risk'!T$5","v":0.1699882855960772},{"$f":"'Population at Risk'!U8/'Population at Risk'!U$5","v":0.2660803390346877},{"$f":"'Population at Risk'!D8/'Population at Risk'!D$5","v":0.17434837017895696},{"$f":"'Population at Risk'!E8/'Population at Risk'!E$5","v":0.10302976846841269},{"$f":"'Population at Risk'!BC8/'Population at Risk'!BC$5","v":0.2660803390346877},{"$f":"'Population at Risk'!V8/'Population at Risk'!V$5","v":0.32058985873870721},{"$f":"'Population at Risk'!F8/'Population at Risk'!F$5","v":0.20248288031768019},{"$f":"'Population at Risk'!W8/'Population at Risk'!W$5","v":0.22567392055583854},{"$f":"'Population at Risk'!X8/'Population at Risk'!X$5","v":0.22567392055583854},{"$f":"'Population at Risk'!Y8/'Population at Risk'!Y$5","v":0.27097780521411985},{"$f":"'Population at Risk'!Z8/'Population at Risk'!Z$5","v":0.16233241162170992},{"$f":"'Population at Risk'!AA8/'Population at Risk'!AA$5","v":0.21523119410915598},{"$f":"'Population at Risk'!AB8/'Population at Risk'!AB$5","v":0.17728737868585809},{"$f":"'Population at Risk'!AY8/'Population at Risk'!AY$5","v":0.20252296498245034},{"$f":"'Population at Risk'!AC8/'Population at Risk'!AC$5","v":0.17758531027124599},{"$f":"'Population at Risk'!AD8/'Population at Risk'!AD$5","v":0.21725701193994557},{"$f":"'Population at Risk'!AE8/'Population at Risk'!AE$5","v":0.22306954233666001},{"$f":"'Population at Risk'!G8/'Population at Risk'!G$5","v":0.20204090005376546},{"$f":"'Population at Risk'!AF8/'Population at Risk'!AF$5","v":0.12901003970466673},{"$f":"'Population at Risk'!H8/'Population at Risk'!H$5","v":0.2551259376729591},{"$f":"'Population at Risk'!AG8/'Population at Risk'!AG$5","v":0.22306954233666001},{"$f":"'Population at Risk'!AZ8/'Population at Risk'!AZ$5","v":0.18150773189037367},{"$f":"'Population at Risk'!I8/'Population at Risk'!I$5","v":0.19835259210748929},{"$f":"'Population at Risk'!J8/'Population at Risk'!J$5","v":0.21552970320242398},{"$f":"'Population at Risk'!K8/'Population at Risk'!K$5","v":0.27714164847045186},{"$f":"'Population at Risk'!AH8/'Population at Risk'!AH$5","v":0.283729347018573},{"$f":"'Population at Risk'!AI8/'Population at Risk'!AI$5","v":0.23694734432517264},{"$f":"'Population at Risk'!BA8/'Population at Risk'!BA$5","v":0.28634935026946901},{"$f":"'Population at Risk'!L8/'Population at Risk'!L$5","v":0.31560974103811734},{"$f":"'Population at Risk'!M8/'Population at Risk'!M$5","v":0.31560974103811734},{"$f":"'Population at Risk'!AJ8/'Population at Risk'!AJ$5","v":0.39492247191709179},{"$f":"'Population at Risk'!AK8/'Population at Risk'!AK$5","v":0.19222688903824003},{"$f":"'Population at Risk'!AL8/'Population at Risk'!AL$5","v":0.20121242419347971},{"$f":"'Population at Risk'!AM8/'Population at Risk'!AM$5","v":0.28049260642955998},{"$f":"'Population at Risk'!N8/'Population at Risk'!N$5","v":0.20044865911840662},{"$f":"'Population at Risk'!AN8/'Population at Risk'!AN$5","v":0.18121962216316592},{"$f":"'Population at Risk'!AO8/'Population at Risk'!AO$5","v":0.18121962216316592},{"$f":"'Population at Risk'!AP8/'Population at Risk'!AP$5","v":0.14099084259159006},{"$f":"'Population at Risk'!C8/'Population at Risk'!C$5","v":0.24539517939431299},{"$f":"'Population at Risk'!AQ8/'Population at Risk'!AQ$5","v":0.19736697914493045},{"$f":"'Population at Risk'!O8/'Population at Risk'!O$5","v":0.27062103378911645},{"$f":"'Population at Risk'!AR8/'Population at Risk'!AR$5","v":0.22126938071219629},{"$f":"'Population at Risk'!AS8/'Population at Risk'!AS$5","v":0.19835259210748929},{"$f":"'Population at Risk'!AT8/'Population at Risk'!AT$5","v":4.1582708422195795E-2},{"$f":"'Population at Risk'!AU8/'Population at Risk'!AU$5","v":4.1582708422195795E-2},{"$f":"'Population at Risk'!BB8/'Population at Risk'!BB$5","v":0.29146754991464996},{"$f":"'Population at Risk'!P8/'Population at Risk'!P$5","v":0.23038102518228679},{"$f":"'Population at Risk'!AV8/'Population at Risk'!AV$5","v":0.30859856622136839},{"$f":"'Population at Risk'!AW8/'Population at Risk'!AW$5","v":0.28742232264536621},{"$f":"'Population at Risk'!Q8/'Population at Risk'!Q$5","v":0.32659995253478324},6]
["SIMD Q3",null,{"$f":"'Population at Risk'!R9/'Population at Risk'!R$5","v":0.14102762736534055},{"$f":"'Population at Risk'!AX9/'Population at Risk'!AX$5","v":0.18597005013055182},{"$f":"'Population at Risk'!S9/'Population at Risk'!S$5","v":0.22369390339815232},{"$f":"'Population at Risk'!T9/'Population at Risk'!T$5","v":0.1828801723410784},{"$f":"'Population at Risk'!U9/'Population at Risk'!U$5","v":0.69067066377370023},{"$f":"'Population at Risk'!D9/'Population at Risk'!D$5","v":0.2175767960426408},{"$f":"'Population at Risk'!E9/'Population at Risk'!E$5","v":0.25090026938851995},{"$f":"'Population at Risk'!BC9/'Population at Risk'!BC$5","v":0.69067066377370023},{"$f":"'Population at Risk'!V9/'Population at Risk'!V$5","v":0.19272076065296931},{"$f":"'Population at Risk'!F9/'Population at Risk'!F$5","v":0.36102818120014546},{"$f":"'Population at Risk'!W9/'Population at Risk'!W$5","v":0.2245075717617942},{"$f":"'Population at Risk'!X9/'Population at Risk'!X$5","v":0.2245075717617942},{"$f":"'Population at Risk'!Y9/'Population at Risk'!Y$5","v":0.18935504878985235},{"$f":"'Population at Risk'!Z9/'Population at Risk'!Z$5","v":0.13211727695458494},{"$f":"'Population at Risk'!AA9/'Population at Risk'!AA$5","v":0.1531344167275121},{"$f":"'Population at Risk'!AB9/'Population at Risk'!AB$5","v":0.23561139540120588},{"$f":"'Population at Risk'!AY9/'Population at Risk'!AY$5","v":0.23124023261523924},{"$f":"'Population at Risk'!AC9/'Population at Risk'!AC$5","v":0.13676688445147167},{"$f":"'Population at Risk'!AD9/'Population at Risk'!AD$5","v":0.36795136857814997},{"$f":"'Population at Risk'!AE9/'Population at Risk'!AE$5","v":0.34337166320828866},{"$f":"'Population at Risk'!G9/'Population at Risk'!G$5","v":0.43229641651950013},{"$f":"'Population at Risk'!AF9/'Population at Risk'!AF$5","v":0.14613138735010739},{"$f":"'Population at Risk'!H9/'Population at Risk'!H$5","v":0.16543475888749543},{"$f":"'Population at Risk'!AG9/'Population at Risk'!AG$5","v":0.34337166320828866},{"$f":"'Population at Risk'!AZ9/'Population at Risk'!AZ$5","v":0.23735179188615266},{"$f":"'Population at Risk'!I9/'Population at Risk'!I$5","v":0.36769232920997819},{"$f":"'Population at Risk'!J9/'Population at Risk'!J$5","v":0.18559341585047803},{"$f":"'Population at Risk'!K9/'Population at Risk'!K$5","v":0.18497936678927024},{"$f":"'Population at Risk'!AH9/'Population at Risk'!AH$5","v":0.1829157796361715},{"$f":"'Population at Risk'!AI9/'Population at Risk'!AI$5","v":0.20506297504036214},{"$f":"'Population at Risk'!BA9/'Population at Risk'!BA$5","v":0.13617343144562705},{"$f":"'Population at Risk'!L9/'Population at Risk'!L$5","v":0.37663873011882809},{"$f":"'Population at Risk'!M9/'Population at Risk'!M$5","v":0.37663873011882809},{"$f":"'Population at Risk'!AJ9/'Population at Risk'!AJ$5","v":0.24372603398961357},{"$f":"'Population at Risk'!AK9/'Population at Risk'!AK$5","v":0.32728451685889831},{"$f":"'Population at Risk'!AL9/'Population at Risk'!AL$5","v":0.1305811467428864},{"$f":"'Population at Risk'!AM9/'Population at Risk'!AM$5","v":0.17122081155556196},{"$f":"'Population at Risk'!N9/'Population at Risk'!N$5","v":0.12227776723651608},{"$f":"'Population at Risk'!AN9/'Population at Risk'!AN$5","v":0.35966059802280426},{"$f":"'Population at Risk'!AO9/'Population at Risk'!AO$5","v":0.35966059802280426},{"$f":"'Population at Risk'!AP9/'Population at Risk'!AP$5","v":0.27848561308175374},{"$f":"'Population at Risk'!C9/'Population at Risk'!C$5","v":0.18438031719401463},{"$f":"'Population at Risk'!AQ9/'Population at Risk'!AQ$5","v":0.17625645532933382},{"$f":"'Population at Risk'!O9/'Population at Risk'!O$5","v":0.1623572719416384},{"$f":"'Population at Risk'!AR9/'Population at Risk'!AR$5","v":0.20989887285657749},{"$f":"'Population at Risk'!AS9/'Population at Risk'!AS$5","v":0.36769232920997819},{"$f":"'Population at Risk'!AT9/'Population at Risk'!AT$5","v":0.38430136365581469},{"$f":"'Population at Risk'!AU9/'Population at Risk'!AU$5","v":0.38430136365581469},{"$f":"'Population at Risk'!BB9/'Population at Risk'!BB$5","v":0.22717514993600596},{"$f":"'Population at Risk'!P9/'Population at Risk'!P$5","v":7.9442326651156372E-2},{"$f":"'Population at Risk'!AV9/'Population at Risk'!AV$5","v":0.21526245299914765},{"$f":"'Population at Risk'!AW9/'Population at Risk'!AW$5","v":0.19625921291112192},{"$f":"'Population at Risk'!Q9/'Population at Risk'!Q$5","v":0.23971802282483803},7]
["SIMD Q4",null,{"$f":"'Population at Risk'!R10/'Population at Risk'!R$5","v":0.14317411984151654},{"$f":"'Population at Risk'!AX10/'Population at Risk'!AX$5","v":0.23455843682092886},{"$f":"'Population at Risk'!S10/'Population at Risk'!S$5","v":0.15839563513426766},{"$f":"'Population at Risk'!T10/'Population at Risk'!T$5","v":0.14316374500838649},{"$f":"'Population at Risk'!U10/'Population at Risk'!U$5","v":4.3248997191612015E-2},{"$f":"'Population at Risk'!D10/'Population at Risk'!D$5","v":0.24814249711480518},{"$f":"'Population at Risk'!E10/'Population at Risk'!E$5","v":0.33995787620147061},{"$f":"'Population at Risk'!BC10/'Population at Risk'!BC$5","v":4.3248997191612015E-2},{"$f":"'Population at Risk'!V10/'Population at Risk'!V$5","v":0.15048123450650377},{"$f":"'Population at Risk'!F10/'Population at Risk'!F$5","v":0.20287114943555085},{"$f":"'Population at Risk'!W10/'Population at Risk'!W$5","v":0.1321210165127677},{"$f":"'Population at Risk'!X10/'Population at Risk'!X$5","v":0.1321210165127677},{"$f":"'Population at Risk'!Y10/'Population at Risk'!Y$5","v":0.17177117642015974},{"$f":"'Population at Risk'!Z10/'Population at Risk'!Z$5","v":8.3329929287544735E-2},{"$f":"'Population at Risk'!AA10/'Population at Risk'!AA$5","v":0.10966865307587904},{"$f":"'Population at Risk'!AB10/'Population at Risk'!AB$5","v":0.26217753132699595},{"$f":"'Population at Risk'!AY10/'Population at Risk'!AY$5","v":0.18000352366734484},{"$f":"'Population at Risk'!AC10/'Population at Risk'!AC$5","v":0.10225996552956555},{"$f":"'Population at Risk'!AD10/'Population at Risk'!AD$5","v":0.2441505123880616},{"$f":"'Population at Risk'!AE10/'Population at Risk'!AE$5","v":0.26519639521709176},{"$f":"'Population at Risk'!G10/'Population at Risk'!G$5","v":0.18905634753845135},{"$f":"'Population at Risk'!AF10/'Population at Risk'!AF$5","v":0.12303416168158886},{"$f":"'Population at Risk'!H10/'Population at Risk'!H$5","v":0.10202735738340006},{"$f":"'Population at Risk'!AG10/'Population at Risk'!AG$5","v":0.26519639521709176},{"$f":"'Population at Risk'!AZ10/'Population at Risk'!AZ$5","v":0.22346877268035539},{"$f":"'Population at Risk'!I10/'Population at Risk'!I$5","v":0.28502519467052906},{"$f":"'Population at Risk'!J10/'Population at Risk'!J$5","v":0.19556553257327564},{"$f":"'Population at Risk'!K10/'Population at Risk'!K$5","v":0.13199310299425063},{"$f":"'Population at Risk'!AH10/'Population at Risk'!AH$5","v":0.12314904882353934},{"$f":"'Population at Risk'!AI10/'Population at Risk'!AI$5","v":0.15389622566068925},{"$f":"'Population at Risk'!BA10/'Population at Risk'!BA$5","v":8.4182829649602373E-2},{"$f":"'Population at Risk'!L10/'Population at Risk'!L$5","v":0.13417459194331383},{"$f":"'Population at Risk'!M10/'Population at Risk'!M$5","v":0.13417459194331383},{"$f":"'Population at Risk'!AJ10/'Population at Risk'!AJ$5","v":0.12001908327878277},{"$f":"'Population at Risk'!AK10/'Population at Risk'!AK$5","v":0.33352014174023892},{"$f":"'Population at Risk'!AL10/'Population at Risk'!AL$5","v":0.10850691919343072},{"$f":"'Population at Risk'!AM10/'Population at Risk'!AM$5","v":9.7369123467656332E-2},{"$f":"'Population at Risk'!N10/'Population at Risk'!N$5","v":0.12815634290683997},{"$f":"'Population at Risk'!AN10/'Population at Risk'!AN$5","v":0.40370717988238725},{"$f":"'Population at Risk'!AO10/'Population at Risk'!AO$5","v":0.40370717988238725},{"$f":"'Population at Risk'!AP10/'Population at Risk'!AP$5","v":0.35799324109283831},{"$f":"'Population at Risk'!C10/'Population at Risk'!C$5","v":0.15667702296710503},{"$f":"'Population at Risk'!AQ10/'Population at Risk'!AQ$5","v":0.12969156431187553},{"$f":"'Population at Risk'!O10/'Population at Risk'!O$5","v":9.5034611842382738E-2},{"$f":"'Population at Risk'!AR10/'Population at Risk'!AR$5","v":0.15790155524824681},{"$f":"'Population at Risk'!AS10/'Population at Risk'!AS$5","v":0.28502519467052906},{"$f":"'Population at Risk'!AT10/'Population at Risk'!AT$5","v":0.57411592792198962},{"$f":"'Population at Risk'!AU10/'Population at Risk'!AU$5","v":0.57411592792198962},{"$f":"'Population at Risk'!BB10/'Population at Risk'!BB$5","v":0.14117099251562268},{"$f":"'Population at Risk'!P10/'Population at Risk'!P$5","v":0.17050853877736985},{"$f":"'Population at Risk'!AV10/'Population at Risk'!AV$5","v":0.10157929463182935},{"$f":"'Population at Risk'!AW10/'Population at Risk'!AW$5","v":0.15256278569296869},{"$f":"'Population at Risk'!Q10/'Population at Risk'!Q$5","v":0.26249230143576602},8]
["SIMD Q5 (least deprived)",null,{"$f":"'Population at Risk'!R11/'Population at Risk'!R$5","v":0.47514574626197192},{"$f":"'Population at Risk'!AX11/'Population at Risk'!AX$5","v":0.20344772294163635},{"$f":"'Population at Risk'!S11/'Population at Risk'!S$5","v":0.18443255800052399},{"$f":"'Population at Risk'!T11/'Population at Risk'!T$5","v":0.29686007226635924},{"$f":"'Population at Risk'!U11/'Population at Risk'!U$5","v":0},{"$f":"'Population at Risk'!D11/'Population at Risk'!D$5","v":0.27715365969658901},{"$f":"'Population at Risk'!E11/'Population at Risk'!E$5","v":0.27009563496854461},{"$f":"'Population at Risk'!BC11/'Population at Risk'!BC$5","v":0},{"$f":"'Population at Risk'!V11/'Population at Risk'!V$5","v":0.12843428289914732},{"$f":"'Population at Risk'!F11/'Population at Risk'!F$5","v":0.1259379803716025},{"$f":"'Population at Risk'!W11/'Population at Risk'!W$5","v":0.14280386079841326},{"$f":"'Population at Risk'!X11/'Population at Risk'!X$5","v":0.14280386079841326},{"$f":"'Population at Risk'!Y11/'Population at Risk'!Y$5","v":0.14262491149165457},{"$f":"'Population at Risk'!Z11/'Population at Risk'!Z$5","v":5.8492865062121681E-2},{"$f":"'Population at Risk'!AA11/'Population at Risk'!AA$5","v":9.8278781138768673E-2},{"$f":"'Population at Risk'!AB11/'Population at Risk'!AB$5","v":0.2536119653283091},{"$f":"'Population at Risk'!AY11/'Population at Risk'!AY$5","v":0.12826515866953961},{"$f":"'Population at Risk'!AC11/'Population at Risk'!AC$5","v":0.11400358326220339},{"$f":"'Population at Risk'!AD11/'Population at Risk'!AD$5","v":6.6651346320549282E-2},{"$f":"'Population at Risk'!AE11/'Population at Risk'!AE$5","v":6.565774985297336E-2},{"$f":"'Population at Risk'!G11/'Population at Risk'!G$5","v":6.925239508734693E-2},{"$f":"'Population at Risk'!AF11/'Population at Risk'!AF$5","v":7.0591434841963618E-2},{"$f":"'Population at Risk'!H11/'Population at Risk'!H$5","v":8.1891302169197891E-2},{"$f":"'Population at Risk'!AG11/'Population at Risk'!AG$5","v":6.565774985297336E-2},{"$f":"'Population at Risk'!AZ11/'Population at Risk'!AZ$5","v":0.11506768122088698},{"$f":"'Population at Risk'!I11/'Population at Risk'!I$5","v":6.5876283521597884E-2},{"$f":"'Population at Risk'!J11/'Population at Risk'!J$5","v":0.15848483596378879},{"$f":"'Population at Risk'!K11/'Population at Risk'!K$5","v":8.517919173902154E-2},{"$f":"'Population at Risk'!AH11/'Population at Risk'!AH$5","v":6.9666890793490754E-2},{"$f":"'Population at Risk'!AI11/'Population at Risk'!AI$5","v":0.21780666033287963},{"$f":"'Population at Risk'!BA11/'Population at Risk'!BA$5","v":2.2875697728169529E-2},{"$f":"'Population at Risk'!L11/'Population at Risk'!L$5","v":5.93047997710816E-2},{"$f":"'Population at Risk'!M11/'Population at Risk'!M$5","v":5.93047997710816E-2},{"$f":"'Population at Risk'!AJ11/'Population at Risk'!AJ$5","v":0.10137971029627853},{"$f":"'Population at Risk'!AK11/'Population at Risk'!AK$5","v":0.13394528661619101},{"$f":"'Population at Risk'!AL11/'Population at Risk'!AL$5","v":5.4054167019316479E-2},{"$f":"'Population at Risk'!AM11/'Population at Risk'!AM$5","v":5.3170131379316393E-2},{"$f":"'Population at Risk'!N11/'Population at Risk'!N$5","v":9.1537963321388124E-2},{"$f":"'Population at Risk'!AN11/'Population at Risk'!AN$5","v":5.5412599931642617E-2},{"$f":"'Population at Risk'!AO11/'Population at Risk'!AO$5","v":5.5412599931642617E-2},{"$f":"'Population at Risk'!AP11/'Population at Risk'!AP$5","v":0.1352506858974426},{"$f":"'Population at Risk'!C11/'Population at Risk'!C$5","v":0.28418478655919671},{"$f":"'Population at Risk'!AQ11/'Population at Risk'!AQ$5","v":0.11270885601240728},{"$f":"'Population at Risk'!O11/'Population at Risk'!O$5","v":6.9031659482857194E-2},{"$f":"'Population at Risk'!AR11/'Population at Risk'!AR$5","v":0.13233391776226341},{"$f":"'Population at Risk'!AS11/'Population at Risk'!AS$5","v":6.5876283521597884E-2},{"$f":"'Population at Risk'!AT11/'Population at Risk'!AT$5","v":0},{"$f":"'Population at Risk'!AU11/'Population at Risk'!AU$5","v":0},{"$f":"'Population at Risk'!BB11/'Population at Risk'!BB$5","v":0.11567982745318968},{"$f":"'Population at Risk'!P11/'Population at Risk'!P$5","v":0.4372613262273326},{"$f":"'Population at Risk'!AV11/'Population at Risk'!AV$5","v":0.1338090707189854},{"$f":"'Population at Risk'!AW11/'Population at Risk'!AW$5","v":8.8488952297096954E-2},{"$f":"'Population at Risk'!Q11/'Population at Risk'!Q$5","v":0.11828605429351177},9]
["SIMD Q1 (most deprived)","16+ Females",{"$f":"'Population at Risk'!R12/'Population at Risk'!R$5","v":6.9343648821764498E-2},{"$f":"'Population at Risk'!AX12/'Population at Risk'!AX$5","v":0.11661917002559334},{"$f":"'Population at Risk'!S12/'Population at Risk'!S$5","v":0.11550978975856609},{"$f":"'Population at Risk'!T12/'Population at Risk'!T$5","v":0.11738831218171593},{"$f":"'Population at Risk'!U12/'Population at Risk'!U$5","v":0},{"$f":"'Population at Risk'!D12/'Population at Risk'!D$5","v":4.5535252726481956E-2},{"$f":"'Population at Risk'!E12/'Population at Risk'!E$5","v":1.937261099102771E-2},{"$f":"'Population at Risk'!BC12/'Population at Risk'!BC$5","v":0},{"$f":"'Population at Risk'!V12/'Population at Risk'!V$5","v":0.1172066169337516},{"$f":"'Population at Risk'!F12/'Population at Risk'!F$5","v":6.0902592499826221E-2},{"$f":"'Population at Risk'!W12/'Population at Risk'!W$5","v":0.15677618782028391},{"$f":"'Population at Risk'!X12/'Population at Risk'!X$5","v":0.15677618782028391},{"$f":"'Population at Risk'!Y12/'Population at Risk'!Y$5","v":0.12887923856404168},{"$f":"'Population at Risk'!Z12/'Population at Risk'!Z$5","v":0.32042710888321291},{"$f":"'Population at Risk'!AA12/'Population at Risk'!AA$5","v":0.24199213229908303},{"$f":"'Population at Risk'!AB12/'Population at Risk'!AB$5","v":3.9324602121468814E-2},{"$f":"'Population at Risk'!AY12/'Population at Risk'!AY$5","v":0.14704976918390772},{"$f":"'Population at Risk'!AC12/'Population at Risk'!AC$5","v":0.26808837090925491},{"$f":"'Population at Risk'!AD12/'Population at Risk'!AD$5","v":5.8835233307681874E-2},{"$f":"'Population at Risk'!AE12/'Population at Risk'!AE$5","v":5.8265949066009029E-2},{"$f":"'Population at Risk'!G12/'Population at Risk'!G$5","v":6.0325512433143207E-2},{"$f":"'Population at Risk'!AF12/'Population at Risk'!AF$5","v":0.30780940555901359},{"$f":"'Population at Risk'!H12/'Population at Risk'!H$5","v":0.22939644962641578},{"$f":"'Population at Risk'!AG12/'Population at Risk'!AG$5","v":5.8265949066009029E-2},{"$f":"'Population at Risk'!AZ12/'Population at Risk'!AZ$5","v":0.1382206323413005},{"$f":"'Population at Risk'!I12/'Population at Risk'!I$5","v":4.6927652570228622E-2},{"$f":"'Population at Risk'!J12/'Population at Risk'!J$5","v":0.1419249536457505},{"$f":"'Population at Risk'!K12/'Population at Risk'!K$5","v":0.18318246390753901},{"$f":"'Population at Risk'!AH12/'Population at Risk'!AH$5","v":0.19450900903448631},{"$f":"'Population at Risk'!AI12/'Population at Risk'!AI$5","v":0.10604210988168226},{"$f":"'Population at Risk'!BA12/'Population at Risk'!BA$5","v":0.2763344405876364},{"$f":"'Population at Risk'!L12/'Population at Risk'!L$5","v":6.5558521531751332E-2},{"$f":"'Population at Risk'!M12/'Population at Risk'!M$5","v":6.5558521531751332E-2},{"$f":"'Population at Risk'!AJ12/'Population at Risk'!AJ$5","v":8.0461219337660983E-2},{"$f":"'Population at Risk'!AK12/'Population at Risk'!AK$5","v":7.754744875138643E-3},{"$f":"'Population at Risk'!AL12/'Population at Risk'!AL$5","v":0.29572090318365252},{"$f":"'Population at Risk'!AM12/'Population at Risk'!AM$5","v":0.22622013275177852},{"$f":"'Population at Risk'!N12/'Population at Risk'!N$5","v":0.2620320224126606},{"$f":"'Population at Risk'!AN12/'Population at Risk'!AN$5","v":0},{"$f":"'Population at Risk'!AO12/'Population at Risk'!AO$5","v":0},{"$f":"'Population at Risk'!AP12/'Population at Risk'!AP$5","v":4.8446292112877716E-2},{"$f":"'Population at Risk'!C12/'Population at Risk'!C$5","v":7.1598189623262323E-2},{"$f":"'Population at Risk'!AQ12/'Population at Risk'!AQ$5","v":0.21772571172827421},{"$f":"'Population at Risk'!O12/'Population at Risk'!O$5","v":0.23226388705029347},{"$f":"'Population at Risk'!AR12/'Population at Risk'!AR$5","v":0.15912904571370712},{"$f":"'Population at Risk'!AS12/'Population at Risk'!AS$5","v":4.6927652570228622E-2},{"$f":"'Population at Risk'!AT12/'Population at Risk'!AT$5","v":0},{"$f":"'Population at Risk'!AU12/'Population at Risk'!AU$5","v":0},{"$f":"'Population at Risk'!BB12/'Population at Risk'!BB$5","v":0.12838919725341214},{"$f":"'Population at Risk'!P12/'Population at Risk'!P$5","v":4.780130125946306E-2},{"$f":"'Population at Risk'!AV12/'Population at Risk'!AV$5","v":0.13806004767780938},{"$f":"'Population at Risk'!AW12/'Population at Risk'!AW$5","v":0.1583280412474132},{"$f":"'Population at Risk'!Q12/'Population at Risk'!Q$5","v":3.0823816645995667E-2},10]
["SIMD Q2",null,{"$f":"'Population at Risk'!R13/'Population at Risk'!R$5","v":7.2152017017561951E-2},{"$f":"'Population at Risk'!AX13/'Population at Risk'!AX$5","v":0.1018777645150602},{"$f":"'Population at Risk'!S13/'Population at Risk'!S$5","v":0.13260202376976538},{"$f":"'Population at Risk'!T13/'Population at Risk'!T$5","v":9.6216826812371606E-2},{"$f":"'Population at Risk'!U13/'Population at Risk'!U$5","v":0.14843063790505126},{"$f":"'Population at Risk'!D13/'Population at Risk'!D$5","v":9.882136804299671E-2},{"$f":"'Population at Risk'!E13/'Population at Risk'!E$5","v":5.8541479091901882E-2},{"$f":"'Population at Risk'!BC13/'Population at Risk'!BC$5","v":0.14843063790505126},{"$f":"'Population at Risk'!V13/'Population at Risk'!V$5","v":0.18354410794592901},{"$f":"'Population at Risk'!F13/'Population at Risk'!F$5","v":0.11660109258407342},{"$f":"'Population at Risk'!W13/'Population at Risk'!W$5","v":0.13015878136202622},{"$f":"'Population at Risk'!X13/'Population at Risk'!X$5","v":0.13015878136202622},{"$f":"'Population at Risk'!Y13/'Population at Risk'!Y$5","v":0.15522803706037874},{"$f":"'Population at Risk'!Z13/'Population at Risk'!Z$5","v":9.1759063728220874E-2},{"$f":"'Population at Risk'!AA13/'Population at Risk'!AA$5","v":0.12408836788741551},{"$f":"'Population at Risk'!AB13/'Population at Risk'!AB$5","v":0.1008308383493732},{"$f":"'Population at Risk'!AY13/'Population at Risk'!AY$5","v":0.11600328177666371},{"$f":"'Population at Risk'!AC13/'Population at Risk'!AC$5","v":0.10195404288720732},{"$f":"'Population at Risk'!AD13/'Population at Risk'!AD$5","v":0.12542454318656979},{"$f":"'Population at Risk'!AE13/'Population at Risk'!AE$5","v":0.1286931365605592},{"$f":"'Population at Risk'!G13/'Population at Risk'!G$5","v":0.11686798019342602},{"$f":"'Population at Risk'!AF13/'Population at Risk'!AF$5","v":7.5459938765337548E-2},{"$f":"'Population at Risk'!H13/'Population at Risk'!H$5","v":0.14789807795738405},{"$f":"'Population at Risk'!AG13/'Population at Risk'!AG$5","v":0.1286931365605592},{"$f":"'Population at Risk'!AZ13/'Population at Risk'!AZ$5","v":0.1031536556617426},{"$f":"'Population at Risk'!I13/'Population at Risk'!I$5","v":0.1126644456637929},{"$f":"'Population at Risk'!J13/'Population at Risk'!J$5","v":0.12358104251994328},{"$f":"'Population at Risk'!K13/'Population at Risk'!K$5","v":0.15896517558775586},{"$f":"'Population at Risk'!AH13/'Population at Risk'!AH$5","v":0.16436263492120462},{"$f":"'Population at Risk'!AI13/'Population at Risk'!AI$5","v":0.13620780631995227},{"$f":"'Population at Risk'!BA13/'Population at Risk'!BA$5","v":0.16575474126435005},{"$f":"'Population at Risk'!L13/'Population at Risk'!L$5","v":0.18049141975324118},{"$f":"'Population at Risk'!M13/'Population at Risk'!M$5","v":0.18049141975324118},{"$f":"'Population at Risk'!AJ13/'Population at Risk'!AJ$5","v":0.23127937048450081},{"$f":"'Population at Risk'!AK13/'Population at Risk'!AK$5","v":0.11104533836678532},{"$f":"'Population at Risk'!AL13/'Population at Risk'!AL$5","v":0.11760409303107396},{"$f":"'Population at Risk'!AM13/'Population at Risk'!AM$5","v":0.16307273243750361},{"$f":"'Population at Risk'!N13/'Population at Risk'!N$5","v":0.11488419544740933},{"$f":"'Population at Risk'!AN13/'Population at Risk'!AN$5","v":9.9217882912456978E-2},{"$f":"'Population at Risk'!AO13/'Population at Risk'!AO$5","v":9.9217882912456978E-2},{"$f":"'Population at Risk'!AP13/'Population at Risk'!AP$5","v":7.7687465439527523E-2},{"$f":"'Population at Risk'!C13/'Population at Risk'!C$5","v":0.13894775185992811},{"$f":"'Population at Risk'!AQ13/'Population at Risk'!AQ$5","v":0.11586820409778664},{"$f":"'Population at Risk'!O13/'Population at Risk'!O$5","v":0.15543937275720851},{"$f":"'Population at Risk'!AR13/'Population at Risk'!AR$5","v":0.12715577080067617},{"$f":"'Population at Risk'!AS13/'Population at Risk'!AS$5","v":0.1126644456637929},{"$f":"'Population at Risk'!AT13/'Population at Risk'!AT$5","v":2.1434716277984371E-2},{"$f":"'Population at Risk'!AU13/'Population at Risk'!AU$5","v":2.1434716277984371E-2},{"$f":"'Population at Risk'!BB13/'Population at Risk'!BB$5","v":0.16750757959259802},{"$f":"'Population at Risk'!P13/'Population at Risk'!P$5","v":0.13499979474267088},{"$f":"'Population at Risk'!AV13/'Population at Risk'!AV$5","v":0.17930235635027236},{"$f":"'Population at Risk'!AW13/'Population at Risk'!AW$5","v":0.16583435571632102},{"$f":"'Population at Risk'!Q13/'Population at Risk'!Q$5","v":0.19144720835941884},11]
["SIMD Q3",null,{"$f":"'Population at Risk'!R14/'Population at Risk'!R$5","v":8.1849995010923257E-2},{"$f":"'Population at Risk'!AX14/'Population at Risk'!AX$5","v":0.10608867735858811},{"$f":"'Population at Risk'!S14/'Population at Risk'!S$5","v":0.12615434285514279},{"$f":"'Population at Risk'!T14/'Population at Risk'!T$5","v":0.10229101255362481},{"$f":"'Population at Risk'!U14/'Population at Risk'!U$5","v":0.38489342487157191},{"$f":"'Population at Risk'!D14/'Population at Risk'!D$5","v":0.11867507146664721},{"$f":"'Population at Risk'!E14/'Population at Risk'!E$5","v":0.13978609544947868},{"$f":"'Population at Risk'!BC14/'Population at Risk'!BC$5","v":0.38489342487157191},{"$f":"'Population at Risk'!V14/'Population at Risk'!V$5","v":0.10845015829231855},{"$f":"'Population at Risk'!F14/'Population at Risk'!F$5","v":0.20204946529187565},{"$f":"'Population at Risk'!W14/'Population at Risk'!W$5","v":0.12770419735239791},{"$f":"'Population at Risk'!X14/'Population at Risk'!X$5","v":0.12770419735239791},{"$f":"'Population at Risk'!Y14/'Population at Risk'!Y$5","v":0.1071356339062334},{"$f":"'Population at Risk'!Z14/'Population at Risk'!Z$5","v":7.4051393678262661E-2},{"$f":"'Population at Risk'!AA14/'Population at Risk'!AA$5","v":8.7110984011895251E-2},{"$f":"'Population at Risk'!AB14/'Population at Risk'!AB$5","v":0.12965246048434198},{"$f":"'Population at Risk'!AY14/'Population at Risk'!AY$5","v":0.13071027237828597},{"$f":"'Population at Risk'!AC14/'Population at Risk'!AC$5","v":7.7495927005112292E-2},{"$f":"'Population at Risk'!AD14/'Population at Risk'!AD$5","v":0.20678111527711812},{"$f":"'Population at Risk'!AE14/'Population at Risk'!AE$5","v":0.19223675793404932},{"$f":"'Population at Risk'!G14/'Population at Risk'!G$5","v":0.24485550862047364},{"$f":"'Population at Risk'!AF14/'Population at Risk'!AF$5","v":8.3681195546969581E-2},{"$f":"'Population at Risk'!H14/'Population at Risk'!H$5","v":9.4055565976034511E-2},{"$f":"'Population at Risk'!AG14/'Population at Risk'!AG$5","v":0.19223675793404932},{"$f":"'Population at Risk'!AZ14/'Population at Risk'!AZ$5","v":0.13343903090235854},{"$f":"'Population at Risk'!I14/'Population at Risk'!I$5","v":0.20793330791543049},{"$f":"'Population at Risk'!J14/'Population at Risk'!J$5","v":0.10566647717760917},{"$f":"'Population at Risk'!K14/'Population at Risk'!K$5","v":0.10497813934303628},{"$f":"'Population at Risk'!AH14/'Population at Risk'!AH$5","v":0.10460595498718536},{"$f":"'Population at Risk'!AI14/'Population at Risk'!AI$5","v":0.11509458470465014},{"$f":"'Population at Risk'!BA14/'Population at Risk'!BA$5","v":7.7718326274096611E-2},{"$f":"'Population at Risk'!L14/'Population at Risk'!L$5","v":0.21289789680164936},{"$f":"'Population at Risk'!M14/'Population at Risk'!M$5","v":0.21289789680164936},{"$f":"'Population at Risk'!AJ14/'Population at Risk'!AJ$5","v":0.13934356063925049},{"$f":"'Population at Risk'!AK14/'Population at Risk'!AK$5","v":0.1854525088635447},{"$f":"'Population at Risk'!AL14/'Population at Risk'!AL$5","v":7.5253106601766206E-2},{"$f":"'Population at Risk'!AM14/'Population at Risk'!AM$5","v":9.795229134010329E-2},{"$f":"'Population at Risk'!N14/'Population at Risk'!N$5","v":6.9295231001143612E-2},{"$f":"'Population at Risk'!AN14/'Population at Risk'!AN$5","v":0.20006148664863904},{"$f":"'Population at Risk'!AO14/'Population at Risk'!AO$5","v":0.20006148664863904},{"$f":"'Population at Risk'!AP14/'Population at Risk'!AP$5","v":0.15663573315241935},{"$f":"'Population at Risk'!C14/'Population at Risk'!C$5","v":9.7644500798191744E-2},{"$f":"'Population at Risk'!AQ14/'Population at Risk'!AQ$5","v":0.10110003734073837},{"$f":"'Population at Risk'!O14/'Population at Risk'!O$5","v":8.9767032609685105E-2},{"$f":"'Population at Risk'!AR14/'Population at Risk'!AR$5","v":0.11828913511902918},{"$f":"'Population at Risk'!AS14/'Population at Risk'!AS$5","v":0.20793330791543049},{"$f":"'Population at Risk'!AT14/'Population at Risk'!AT$5","v":0.2068240561466809},{"$f":"'Population at Risk'!AU14/'Population at Risk'!AU$5","v":0.2068240561466809},{"$f":"'Population at Risk'!BB14/'Population at Risk'!BB$5","v":0.12601716894271614},{"$f":"'Population at Risk'!P14/'Population at Risk'!P$5","v":4.6071965711114583E-2},{"$f":"'Population at Risk'!AV14/'Population at Risk'!AV$5","v":0.12399885311991081},{"$f":"'Population at Risk'!AW14/'Population at Risk'!AW$5","v":0.11219748634467627},{"$f":"'Population at Risk'!Q14/'Population at Risk'!Q$5","v":0.13676168035316158},12]
["SIMD Q4",null,{"$f":"'Population at Risk'!R15/'Population at Risk'!R$5","v":8.3187327167245528E-2},{"$f":"'Population at Risk'!AX15/'Population at Risk'!AX$5","v":0.13398080559846545},{"$f":"'Population at Risk'!S15/'Population at Risk'!S$5","v":8.9552973605286204E-2},{"$f":"'Population at Risk'!T15/'Population at Risk'!T$5","v":8.0340102477289205E-2},{"$f":"'Population at Risk'!U15/'Population at Risk'!U$5","v":2.4926105192321319E-2},{"$f":"'Population at Risk'!D15/'Population at Risk'!D$5","v":0.13719311398173234},{"$f":"'Population at Risk'!E15/'Population at Risk'!E$5","v":0.1880696379096157},{"$f":"'Population at Risk'!BC15/'Population at Risk'!BC$5","v":2.4926105192321319E-2},{"$f":"'Population at Risk'!V15/'Population at Risk'!V$5","v":8.3560715721512205E-2},{"$f":"'Population at Risk'!F15/'Population at Risk'!F$5","v":0.11371777380217776},{"$f":"'Population at Risk'!W15/'Population at Risk'!W$5","v":7.3951914338560382E-2},{"$f":"'Population at Risk'!X15/'Population at Risk'!X$5","v":7.3951914338560382E-2},{"$f":"'Population at Risk'!Y15/'Population at Risk'!Y$5","v":9.5588909585538728E-2},{"$f":"'Population at Risk'!Z15/'Population at Risk'!Z$5","v":4.6842861641651336E-2},{"$f":"'Population at Risk'!AA15/'Population at Risk'!AA$5","v":6.1659446591041403E-2},{"$f":"'Population at Risk'!AB15/'Population at Risk'!AB$5","v":0.14488896005123228},{"$f":"'Population at Risk'!AY15/'Population at Risk'!AY$5","v":0.10118036891856326},{"$f":"'Population at Risk'!AC15/'Population at Risk'!AC$5","v":5.7817289993289757E-2},{"$f":"'Population at Risk'!AD15/'Population at Risk'!AD$5","v":0.13572582415442164},{"$f":"'Population at Risk'!AE15/'Population at Risk'!AE$5","v":0.14718500082536234},{"$f":"'Population at Risk'!G15/'Population at Risk'!G$5","v":0.10572785383032728},{"$f":"'Population at Risk'!AF15/'Population at Risk'!AF$5","v":6.9092665810698534E-2},{"$f":"'Population at Risk'!H15/'Population at Risk'!H$5","v":5.8213278187041889E-2},{"$f":"'Population at Risk'!AG15/'Population at Risk'!AG$5","v":0.14718500082536234},{"$f":"'Population at Risk'!AZ15/'Population at Risk'!AZ$5","v":0.12589694348594449},{"$f":"'Population at Risk'!I15/'Population at Risk'!I$5","v":0.1629757949447965},{"$f":"'Population at Risk'!J15/'Population at Risk'!J$5","v":0.10903202417176466},{"$f":"'Population at Risk'!K15/'Population at Risk'!K$5","v":6.83565556234869E-2},{"$f":"'Population at Risk'!AH15/'Population at Risk'!AH$5","v":6.8650400270542727E-2},{"$f":"'Population at Risk'!AI15/'Population at Risk'!AI$5","v":8.7105447785173498E-2},{"$f":"'Population at Risk'!BA15/'Population at Risk'!BA$5","v":4.7906889171156299E-2},{"$f":"'Population at Risk'!L15/'Population at Risk'!L$5","v":7.5364996636140921E-2},{"$f":"'Population at Risk'!M15/'Population at Risk'!M$5","v":7.5364996636140921E-2},{"$f":"'Population at Risk'!AJ15/'Population at Risk'!AJ$5","v":6.9119885830958558E-2},{"$f":"'Population at Risk'!AK15/'Population at Risk'!AK$5","v":0.18400833372968936},{"$f":"'Population at Risk'!AL15/'Population at Risk'!AL$5","v":6.1998318571177581E-2},{"$f":"'Population at Risk'!AM15/'Population at Risk'!AM$5","v":5.3663674570815924E-2},{"$f":"'Population at Risk'!N15/'Population at Risk'!N$5","v":7.4144460472609211E-2},{"$f":"'Population at Risk'!AN15/'Population at Risk'!AN$5","v":0.22444567855721625},{"$f":"'Population at Risk'!AO15/'Population at Risk'!AO$5","v":0.22444567855721625},{"$f":"'Population at Risk'!AP15/'Population at Risk'!AP$5","v":0.19975316501563325},{"$f":"'Population at Risk'!C15/'Population at Risk'!C$5","v":8.6510478563343138E-2},{"$f":"'Population at Risk'!AQ15/'Population at Risk'!AQ$5","v":7.3022993962194888E-2},{"$f":"'Population at Risk'!O15/'Population at Risk'!O$5","v":5.3765839167687624E-2},{"$f":"'Population at Risk'!AR15/'Population at Risk'!AR$5","v":8.8559144255466141E-2},{"$f":"'Population at Risk'!AS15/'Population at Risk'!AS$5","v":0.1629757949447965},{"$f":"'Population at Risk'!AT15/'Population at Risk'!AT$5","v":0.31356743883950999},{"$f":"'Population at Risk'!AU15/'Population at Risk'!AU$5","v":0.31356743883950999},{"$f":"'Population at Risk'!BB15/'Population at Risk'!BB$5","v":7.9446225075971905E-2},{"$f":"'Population at Risk'!P15/'Population at Risk'!P$5","v":9.7581895350301318E-2},{"$f":"'Population at Risk'!AV15/'Population at Risk'!AV$5","v":5.8374103100453149E-2},{"$f":"'Population at Risk'!AW15/'Population at Risk'!AW$5","v":8.5749581132425423E-2},{"$f":"'Population at Risk'!Q15/'Population at Risk'!Q$5","v":0.15180090632935278},13]
["SIMD Q5 (least deprived)",null,{"$f":"'Population at Risk'!R16/'Population at Risk'!R$5","v":0.27389854879914854},{"$f":"'Population at Risk'!AX16/'Population at Risk'!AX$5","v":0.11629232306955686},{"$f":"'Population at Risk'!S16/'Population at Risk'!S$5","v":0.1047793585775265},{"$f":"'Population at Risk'!T16/'Population at Risk'!T$5","v":0.16918505231211187},{"$f":"'Population at Risk'!U16/'Population at Risk'!U$5","v":0},{"$f":"'Population at Risk'!D16/'Population at Risk'!D$5","v":0.15389761242430061},{"$f":"'Population at Risk'!E16/'Population at Risk'!E$5","v":0.14938035592377083},{"$f":"'Population at Risk'!BC16/'Population at Risk'!BC$5","v":0},{"$f":"'Population at Risk'!V16/'Population at Risk'!V$5","v":7.1898767853986661E-2},{"$f":"'Population at Risk'!F16/'Population at Risk'!F$5","v":7.1280112196890594E-2},{"$f":"'Population at Risk'!W16/'Population at Risk'!W$5","v":8.127819427462675E-2},{"$f":"'Population at Risk'!X16/'Population at Risk'!X$5","v":8.127819427462675E-2},{"$f":"'Population at Risk'!Y16/'Population at Risk'!Y$5","v":8.0723658314613395E-2},{"$f":"'Population at Risk'!Z16/'Population at Risk'!Z$5","v":3.3158556617281697E-2},{"$f":"'Population at Risk'!AA16/'Population at Risk'!AA$5","v":5.5848146360192745E-2},{"$f":"'Population at Risk'!AB16/'Population at Risk'!AB$5","v":0.14013485650270519},{"$f":"'Population at Risk'!AY16/'Population at Risk'!AY$5","v":7.3186013640598804E-2},{"$f":"'Population at Risk'!AC16/'Population at Risk'!AC$5","v":6.4864876001269264E-2},{"$f":"'Population at Risk'!AD16/'Population at Risk'!AD$5","v":3.5280822077298594E-2},{"$f":"'Population at Risk'!AE16/'Population at Risk'!AE$5","v":3.7795279328249526E-2},{"$f":"'Population at Risk'!G16/'Population at Risk'!G$5","v":2.8698445684890835E-2},{"$f":"'Population at Risk'!AF16/'Population at Risk'!AF$5","v":4.1050131664588423E-2},{"$f":"'Population at Risk'!H16/'Population at Risk'!H$5","v":4.6767990986422085E-2},{"$f":"'Population at Risk'!AG16/'Population at Risk'!AG$5","v":3.7795279328249526E-2},{"$f":"'Population at Risk'!AZ16/'Population at Risk'!AZ$5","v":6.5840353038892727E-2},{"$f":"'Population at Risk'!I16/'Population at Risk'!I$5","v":3.7556227294558972E-2},{"$f":"'Population at Risk'!J16/'Population at Risk'!J$5","v":9.058665312615391E-2},{"$f":"'Population at Risk'!K16/'Population at Risk'!K$5","v":4.8677184626971737E-2},{"$f":"'Population at Risk'!AH16/'Population at Risk'!AH$5","v":3.9441855346900978E-2},{"$f":"'Population at Risk'!AI16/'Population at Risk'!AI$5","v":0.12365764555562306},{"$f":"'Population at Risk'!BA16/'Population at Risk'!BA$5","v":1.2925707697004619E-2},{"$f":"'Population at Risk'!L16/'Population at Risk'!L$5","v":3.4198598860367059E-2},{"$f":"'Population at Risk'!M16/'Population at Risk'!M$5","v":3.4198598860367059E-2},{"$f":"'Population at Risk'!AJ16/'Population at Risk'!AJ$5","v":5.622827510969413E-2},{"$f":"'Population at Risk'!AK16/'Population at Risk'!AK$5","v":7.0176285751657033E-2},{"$f":"'Population at Risk'!AL16/'Population at Risk'!AL$5","v":3.0479518347724058E-2},{"$f":"'Population at Risk'!AM16/'Population at Risk'!AM$5","v":3.0082389264414335E-2},{"$f":"'Population at Risk'!N16/'Population at Risk'!N$5","v":5.2310387725007963E-2},{"$f":"'Population at Risk'!AN16/'Population at Risk'!AN$5","v":3.0460487553870156E-2},{"$f":"'Population at Risk'!AO16/'Population at Risk'!AO$5","v":3.0460487553870156E-2},{"$f":"'Population at Risk'!AP16/'Population at Risk'!AP$5","v":7.8107929080542468E-2},{"$f":"'Population at Risk'!C16/'Population at Risk'!C$5","v":0.15839765383106461},{"$f":"'Population at Risk'!AQ16/'Population at Risk'!AQ$5","v":6.3930051567901935E-2},{"$f":"'Population at Risk'!O16/'Population at Risk'!O$5","v":3.909707664320769E-2},{"$f":"'Population at Risk'!AR16/'Population at Risk'!AR$5","v":7.4714904242647012E-2},{"$f":"'Population at Risk'!AS16/'Population at Risk'!AS$5","v":3.7556227294558972E-2},{"$f":"'Population at Risk'!AT16/'Population at Risk'!AT$5","v":0},{"$f":"'Population at Risk'!AU16/'Population at Risk'!AU$5","v":0},{"$f":"'Population at Risk'!BB16/'Population at Risk'!BB$5","v":6.44437952226255E-2},{"$f":"'Population at Risk'!P16/'Population at Risk'!P$5","v":0.2464446295263141},{"$f":"'Population at Risk'!AV16/'Population at Risk'!AV$5","v":7.7317349627080353E-2},{"$f":"'Population at Risk'!AW16/'Population at Risk'!AW$5","v":5.0120585746164466E-2},{"$f":"'Population at Risk'!Q16/'Population at Risk'!Q$5","v":6.743246000336349E-2},14]
["SIMD Q1 (most deprived)","16+ Males",{"$f":"'Population at Risk'!R17/'Population at Risk'!R$5","v":4.7665658666321352E-2},{"$f":"'Population at Risk'!AX17/'Population at Risk'!AX$5","v":8.166533480463431E-2},{"$f":"'Population at Risk'!S17/'Population at Risk'!S$5","v":8.7313069103356011E-2},{"$f":"'Population at Risk'!T17/'Population at Risk'!T$5","v":8.971941260638272E-2},{"$f":"'Population at Risk'!U17/'Population at Risk'!U$5","v":0},{"$f":"'Population at Risk'!D17/'Population at Risk'!D$5","v":3.7243424240526235E-2},{"$f":"'Population at Risk'!E17/'Population at Risk'!E$5","v":1.6643839982024535E-2},{"$f":"'Population at Risk'!BC17/'Population at Risk'!BC$5","v":0},{"$f":"'Population at Risk'!V17/'Population at Risk'!V$5","v":9.0567246268920779E-2},{"$f":"'Population at Risk'!F17/'Population at Risk'!F$5","v":4.677721617519489E-2},{"$f":"'Population at Risk'!W17/'Population at Risk'!W$5","v":0.11811744255090241},{"$f":"'Population at Risk'!X17/'Population at Risk'!X$5","v":0.11811744255090241},{"$f":"'Population at Risk'!Y17/'Population at Risk'!Y$5","v":9.6391819520171687E-2},{"$f":"'Population at Risk'!Z17/'Population at Risk'!Z$5","v":0.2433004081908258},{"$f":"'Population at Risk'!AA17/'Population at Risk'!AA$5","v":0.18169482264960096},{"$f":"'Population at Risk'!AB17/'Population at Risk'!AB$5","v":3.1987127136162009E-2},{"$f":"'Population at Risk'!AY17/'Population at Risk'!AY$5","v":0.11091835088151841},{"$f":"'Population at Risk'!AC17/'Population at Risk'!AC$5","v":0.20129588557625858},{"$f":"'Population at Risk'!AD17/'Population at Risk'!AD$5","v":4.5154527465611861E-2},{"$f":"'Population at Risk'!AE17/'Population at Risk'!AE$5","v":4.443870031897721E-2},{"$f":"'Population at Risk'!G17/'Population at Risk'!G$5","v":4.7028428367792877E-2},{"$f":"'Population at Risk'!AF17/'Population at Risk'!AF$5","v":0.22342357086265976},{"$f":"'Population at Risk'!H17/'Population at Risk'!H$5","v":0.16612419426053168},{"$f":"'Population at Risk'!AG17/'Population at Risk'!AG$5","v":4.443870031897721E-2},{"$f":"'Population at Risk'!AZ17/'Population at Risk'!AZ$5","v":0.10438338998093083},{"$f":"'Population at Risk'!I17/'Population at Risk'!I$5","v":3.6125947920176781E-2},{"$f":"'Population at Risk'!J17/'Population at Risk'!J$5","v":0.10290155876428296},{"$f":"'Population at Risk'!K17/'Population at Risk'!K$5","v":0.13752422609946666},{"$f":"'Population at Risk'!AH17/'Population at Risk'!AH$5","v":0.14602992469373902},{"$f":"'Population at Risk'!AI17/'Population at Risk'!AI$5","v":8.024468475921398E-2},{"$f":"'Population at Risk'!BA17/'Population at Risk'!BA$5","v":0.19408425031949544},{"$f":"'Population at Risk'!L17/'Population at Risk'!L$5","v":4.871361559690783E-2},{"$f":"'Population at Risk'!M17/'Population at Risk'!M$5","v":4.871361559690783E-2},{"$f":"'Population at Risk'!AJ17/'Population at Risk'!AJ$5","v":5.9491481180572243E-2},{"$f":"'Population at Risk'!AK17/'Population at Risk'!AK$5","v":5.2684208712930553E-3},{"$f":"'Population at Risk'!AL17/'Population at Risk'!AL$5","v":0.20992443966723418},{"$f":"'Population at Risk'!AM17/'Population at Risk'!AM$5","v":0.17152719441612674},{"$f":"'Population at Risk'!N17/'Population at Risk'!N$5","v":0.1955472450041886},{"$f":"'Population at Risk'!AN17/'Population at Risk'!AN$5","v":0},{"$f":"'Population at Risk'!AO17/'Population at Risk'!AO$5","v":0},{"$f":"'Population at Risk'!AP17/'Population at Risk'!AP$5","v":3.8833325223497583E-2},{"$f":"'Population at Risk'!C17/'Population at Risk'!C$5","v":5.7764504262108309E-2},{"$f":"'Population at Risk'!AQ17/'Population at Risk'!AQ$5","v":0.16625043347317883},{"$f":"'Population at Risk'!O17/'Population at Risk'!O$5","v":0.17069153589371164},{"$f":"'Population at Risk'!AR17/'Population at Risk'!AR$5","v":0.11946722770700896},{"$f":"'Population at Risk'!AS17/'Population at Risk'!AS$5","v":3.6125947920176781E-2},{"$f":"'Population at Risk'!AT17/'Population at Risk'!AT$5","v":0},{"$f":"'Population at Risk'!AU17/'Population at Risk'!AU$5","v":0},{"$f":"'Population at Risk'!BB17/'Population at Risk'!BB$5","v":9.6117282927119671E-2},{"$f":"'Population at Risk'!P17/'Population at Risk'!P$5","v":3.460548190239128E-2},{"$f":"'Population at Risk'!AV17/'Population at Risk'!AV$5","v":0.10269056775085969},{"$f":"'Population at Risk'!AW17/'Population at Risk'!AW$5","v":0.11693868520603294},{"$f":"'Population at Risk'!Q17/'Population at Risk'!Q$5","v":2.2079852265105327E-2},15]
["SIMD Q2",null,{"$f":"'Population at Risk'!R18/'Population at Risk'!R$5","v":5.1491182025523233E-2},{"$f":"'Population at Risk'!AX18/'Population at Risk'!AX$5","v":7.5861520761594983E-2},{"$f":"'Population at Risk'!S18/'Population at Risk'!S$5","v":9.8053020835368598E-2},{"$f":"'Population at Risk'!T18/'Population at Risk'!T$5","v":7.3771458783705599E-2},{"$f":"'Population at Risk'!U18/'Population at Risk'!U$5","v":0.11764970112963641},{"$f":"'Population at Risk'!D18/'Population at Risk'!D$5","v":7.5527002135960253E-2},{"$f":"'Population at Risk'!E18/'Population at Risk'!E$5","v":4.4488289376510816E-2},{"$f":"'Population at Risk'!BC18/'Population at Risk'!BC$5","v":0.11764970112963641},{"$f":"'Population at Risk'!V18/'Population at Risk'!V$5","v":0.13704575079277817},{"$f":"'Population at Risk'!F18/'Population at Risk'!F$5","v":8.5881787733606774E-2},{"$f":"'Population at Risk'!W18/'Population at Risk'!W$5","v":9.5515139193812354E-2},{"$f":"'Population at Risk'!X18/'Population at Risk'!X$5","v":9.5515139193812354E-2},{"$f":"'Population at Risk'!Y18/'Population at Risk'!Y$5","v":0.11574976815374112},{"$f":"'Population at Risk'!Z18/'Population at Risk'!Z$5","v":7.0573347893489055E-2},{"$f":"'Population at Risk'!AA18/'Population at Risk'!AA$5","v":9.1142826221740469E-2},{"$f":"'Population at Risk'!AB18/'Population at Risk'!AB$5","v":7.6456540336484885E-2},{"$f":"'Population at Risk'!AY18/'Population at Risk'!AY$5","v":8.651968320578661E-2},{"$f":"'Population at Risk'!AC18/'Population at Risk'!AC$5","v":7.5631267384038664E-2},{"$f":"'Population at Risk'!AD18/'Population at Risk'!AD$5","v":9.1832468753375807E-2},{"$f":"'Population at Risk'!AE18/'Population at Risk'!AE$5","v":9.4376405776100847E-2},{"$f":"'Population at Risk'!G18/'Population at Risk'!G$5","v":8.5172919860339424E-2},{"$f":"'Population at Risk'!AF18/'Population at Risk'!AF$5","v":5.3550100939329159E-2},{"$f":"'Population at Risk'!H18/'Population at Risk'!H$5","v":0.10722785971557504},{"$f":"'Population at Risk'!AG18/'Population at Risk'!AG$5","v":9.4376405776100847E-2},{"$f":"'Population at Risk'!AZ18/'Population at Risk'!AZ$5","v":7.8354076228631039E-2},{"$f":"'Population at Risk'!I18/'Population at Risk'!I$5","v":8.5688146443696392E-2},{"$f":"'Population at Risk'!J18/'Population at Risk'!J$5","v":9.1948660682480671E-2},{"$f":"'Population at Risk'!K18/'Population at Risk'!K$5","v":0.11817647288269602},{"$f":"'Population at Risk'!AH18/'Population at Risk'!AH$5","v":0.11936671209736836},{"$f":"'Population at Risk'!AI18/'Population at Risk'!AI$5","v":0.10073953800522037},{"$f":"'Population at Risk'!BA18/'Population at Risk'!BA$5","v":0.12059460900511895},{"$f":"'Population at Risk'!L18/'Population at Risk'!L$5","v":0.13511832128487616},{"$f":"'Population at Risk'!M18/'Population at Risk'!M$5","v":0.13511832128487616},{"$f":"'Population at Risk'!AJ18/'Population at Risk'!AJ$5","v":0.16364310143259095},{"$f":"'Population at Risk'!AK18/'Population at Risk'!AK$5","v":8.1181550671454716E-2},{"$f":"'Population at Risk'!AL18/'Population at Risk'!AL$5","v":8.360833116240575E-2},{"$f":"'Population at Risk'!AM18/'Population at Risk'!AM$5","v":0.11741987399205638},{"$f":"'Population at Risk'!N18/'Population at Risk'!N$5","v":8.5564463670997279E-2},{"$f":"'Population at Risk'!AN18/'Population at Risk'!AN$5","v":8.2001739250708944E-2},{"$f":"'Population at Risk'!AO18/'Population at Risk'!AO$5","v":8.2001739250708944E-2},{"$f":"'Population at Risk'!AP18/'Population at Risk'!AP$5","v":6.3303377152062523E-2},{"$f":"'Population at Risk'!C18/'Population at Risk'!C$5","v":0.10644742753438484},{"$f":"'Population at Risk'!AQ18/'Population at Risk'!AQ$5","v":8.1498775047143784E-2},{"$f":"'Population at Risk'!O18/'Population at Risk'!O$5","v":0.11518166103190794},{"$f":"'Population at Risk'!AR18/'Population at Risk'!AR$5","v":9.4113609911520138E-2},{"$f":"'Population at Risk'!AS18/'Population at Risk'!AS$5","v":8.5688146443696392E-2},{"$f":"'Population at Risk'!AT18/'Population at Risk'!AT$5","v":2.0147992144211424E-2},{"$f":"'Population at Risk'!AU18/'Population at Risk'!AU$5","v":2.0147992144211424E-2},{"$f":"'Population at Risk'!BB18/'Population at Risk'!BB$5","v":0.1239599703220519},{"$f":"'Population at Risk'!P18/'Population at Risk'!P$5","v":9.5381230439615897E-2},{"$f":"'Population at Risk'!AV18/'Population at Risk'!AV$5","v":0.12929620987109605},{"$f":"'Population at Risk'!AW18/'Population at Risk'!AW$5","v":0.12158796692904524},{"$f":"'Population at Risk'!Q18/'Population at Risk'!Q$5","v":0.13515274417536446},16]
["SIMD Q3",null,{"$f":"'Population at Risk'!R19/'Population at Risk'!R$5","v":5.9177632354417295E-2},{"$f":"'Population at Risk'!AX19/'Population at Risk'!AX$5","v":7.9881372771963693E-2},{"$f":"'Population at Risk'!S19/'Population at Risk'!S$5","v":9.7539560543009524E-2},{"$f":"'Population at Risk'!T19/'Population at Risk'!T$5","v":8.0589159787453582E-2},{"$f":"'Population at Risk'!U19/'Population at Risk'!U$5","v":0.30577723890212838},{"$f":"'Population at Risk'!D19/'Population at Risk'!D$5","v":9.8901724575993569E-2},{"$f":"'Population at Risk'!E19/'Population at Risk'!E$5","v":0.11111417393904127},{"$f":"'Population at Risk'!BC19/'Population at Risk'!BC$5","v":0.30577723890212838},{"$f":"'Population at Risk'!V19/'Population at Risk'!V$5","v":8.4270602360650759E-2},{"$f":"'Population at Risk'!F19/'Population at Risk'!F$5","v":0.15897871590826976},{"$f":"'Population at Risk'!W19/'Population at Risk'!W$5","v":9.6803374409396306E-2},{"$f":"'Population at Risk'!X19/'Population at Risk'!X$5","v":9.6803374409396306E-2},{"$f":"'Population at Risk'!Y19/'Population at Risk'!Y$5","v":8.2219414883618933E-2},{"$f":"'Population at Risk'!Z19/'Population at Risk'!Z$5","v":5.8065883276322276E-2},{"$f":"'Population at Risk'!AA19/'Population at Risk'!AA$5","v":6.6023432715616837E-2},{"$f":"'Population at Risk'!AB19/'Population at Risk'!AB$5","v":0.10595893491686392},{"$f":"'Population at Risk'!AY19/'Population at Risk'!AY$5","v":0.10052996023695328},{"$f":"'Population at Risk'!AC19/'Population at Risk'!AC$5","v":5.9270957446359372E-2},{"$f":"'Population at Risk'!AD19/'Population at Risk'!AD$5","v":0.16117025330103188},{"$f":"'Population at Risk'!AE19/'Population at Risk'!AE$5","v":0.15113490527423931},{"$f":"'Population at Risk'!G19/'Population at Risk'!G$5","v":0.18744090789902648},{"$f":"'Population at Risk'!AF19/'Population at Risk'!AF$5","v":6.2450191803137815E-2},{"$f":"'Population at Risk'!H19/'Population at Risk'!H$5","v":7.1379192911460887E-2},{"$f":"'Population at Risk'!AG19/'Population at Risk'!AG$5","v":0.15113490527423931},{"$f":"'Population at Risk'!AZ19/'Population at Risk'!AZ$5","v":0.10391276098379411},{"$f":"'Population at Risk'!I19/'Population at Risk'!I$5","v":0.15975902129454767},{"$f":"'Population at Risk'!J19/'Population at Risk'!J$5","v":7.9926938672868875E-2},{"$f":"'Population at Risk'!K19/'Population at Risk'!K$5","v":8.0001227446233975E-2},{"$f":"'Population at Risk'!AH19/'Population at Risk'!AH$5","v":7.8309824648986157E-2},{"$f":"'Population at Risk'!AI19/'Population at Risk'!AI$5","v":8.9968390335711981E-2},{"$f":"'Population at Risk'!BA19/'Population at Risk'!BA$5","v":5.8455105171530422E-2},{"$f":"'Population at Risk'!L19/'Population at Risk'!L$5","v":0.16374083331717876},{"$f":"'Population at Risk'!M19/'Population at Risk'!M$5","v":0.16374083331717876},{"$f":"'Population at Risk'!AJ19/'Population at Risk'!AJ$5","v":0.10438247335036308},{"$f":"'Population at Risk'!AK19/'Population at Risk'!AK$5","v":0.14183200799535359},{"$f":"'Population at Risk'!AL19/'Population at Risk'!AL$5","v":5.5328040141120201E-2},{"$f":"'Population at Risk'!AM19/'Population at Risk'!AM$5","v":7.3268520215458668E-2},{"$f":"'Population at Risk'!N19/'Population at Risk'!N$5","v":5.2982536235372461E-2},{"$f":"'Population at Risk'!AN19/'Population at Risk'!AN$5","v":0.15959911137416524},{"$f":"'Population at Risk'!AO19/'Population at Risk'!AO$5","v":0.15959911137416524},{"$f":"'Population at Risk'!AP19/'Population at Risk'!AP$5","v":0.1218498799293344},{"$f":"'Population at Risk'!C19/'Population at Risk'!C$5","v":8.6735816395822868E-2},{"$f":"'Population at Risk'!AQ19/'Population at Risk'!AQ$5","v":7.5156417988595431E-2},{"$f":"'Population at Risk'!O19/'Population at Risk'!O$5","v":7.2590239331953271E-2},{"$f":"'Population at Risk'!AR19/'Population at Risk'!AR$5","v":9.1609737737548297E-2},{"$f":"'Population at Risk'!AS19/'Population at Risk'!AS$5","v":0.15975902129454767},{"$f":"'Population at Risk'!AT19/'Population at Risk'!AT$5","v":0.17747730750913379},{"$f":"'Population at Risk'!AU19/'Population at Risk'!AU$5","v":0.17747730750913379},{"$f":"'Population at Risk'!BB19/'Population at Risk'!BB$5","v":0.10115798099328981},{"$f":"'Population at Risk'!P19/'Population at Risk'!P$5","v":3.3370360940041789E-2},{"$f":"'Population at Risk'!AV19/'Population at Risk'!AV$5","v":9.1263599879236823E-2},{"$f":"'Population at Risk'!AW19/'Population at Risk'!AW$5","v":8.4061726566445644E-2},{"$f":"'Population at Risk'!Q19/'Population at Risk'!Q$5","v":0.10295634247167645},17]
["SIMD Q4",null,{"$f":"'Population at Risk'!R20/'Population at Risk'!R$5","v":5.9986792674271011E-2},{"$f":"'Population at Risk'!AX20/'Population at Risk'!AX$5","v":0.10057763122246341},{"$f":"'Population at Risk'!S20/'Population at Risk'!S$5","v":6.8842661528981441E-2},{"$f":"'Population at Risk'!T20/'Population at Risk'!T$5","v":6.2823642531097304E-2},{"$f":"'Population at Risk'!U20/'Population at Risk'!U$5","v":1.8322891999290696E-2},{"$f":"'Population at Risk'!D20/'Population at Risk'!D$5","v":0.1109493831330728},{"$f":"'Population at Risk'!E20/'Population at Risk'!E$5","v":0.15188823829185494},{"$f":"'Population at Risk'!BC20/'Population at Risk'!BC$5","v":1.8322891999290696E-2},{"$f":"'Population at Risk'!V20/'Population at Risk'!V$5","v":6.6920518784991584E-2},{"$f":"'Population at Risk'!F20/'Population at Risk'!F$5","v":8.9153375633373097E-2},{"$f":"'Population at Risk'!W20/'Population at Risk'!W$5","v":5.8169102174207316E-2},{"$f":"'Population at Risk'!X20/'Population at Risk'!X$5","v":5.8169102174207316E-2},{"$f":"'Population at Risk'!Y20/'Population at Risk'!Y$5","v":7.618226683462101E-2},{"$f":"'Population at Risk'!Z20/'Population at Risk'!Z$5","v":3.6487067645893406E-2},{"$f":"'Population at Risk'!AA20/'Population at Risk'!AA$5","v":4.8009206484837641E-2},{"$f":"'Population at Risk'!AB20/'Population at Risk'!AB$5","v":0.11728857127576367},{"$f":"'Population at Risk'!AY20/'Population at Risk'!AY$5","v":7.8823154748781585E-2},{"$f":"'Population at Risk'!AC20/'Population at Risk'!AC$5","v":4.4442675536275802E-2},{"$f":"'Population at Risk'!AD20/'Population at Risk'!AD$5","v":0.10842468823363999},{"$f":"'Population at Risk'!AE20/'Population at Risk'!AE$5","v":0.11801139439172942},{"$f":"'Population at Risk'!G20/'Population at Risk'!G$5","v":8.3328493708124104E-2},{"$f":"'Population at Risk'!AF20/'Population at Risk'!AF$5","v":5.3941495870890317E-2},{"$f":"'Population at Risk'!H20/'Population at Risk'!H$5","v":4.3814079196358165E-2},{"$f":"'Population at Risk'!AG20/'Population at Risk'!AG$5","v":0.11801139439172942},{"$f":"'Population at Risk'!AZ20/'Population at Risk'!AZ$5","v":9.7571829194410889E-2},{"$f":"'Population at Risk'!I20/'Population at Risk'!I$5","v":0.12204939972573257},{"$f":"'Population at Risk'!J20/'Population at Risk'!J$5","v":8.6533508401510986E-2},{"$f":"'Population at Risk'!K20/'Population at Risk'!K$5","v":6.3636547370763713E-2},{"$f":"'Population at Risk'!AH20/'Population at Risk'!AH$5","v":5.4498648552996611E-2},{"$f":"'Population at Risk'!AI20/'Population at Risk'!AI$5","v":6.6790777875515739E-2},{"$f":"'Population at Risk'!BA20/'Population at Risk'!BA$5","v":3.6275940478446081E-2},{"$f":"'Population at Risk'!L20/'Population at Risk'!L$5","v":5.8809595307172911E-2},{"$f":"'Population at Risk'!M20/'Population at Risk'!M$5","v":5.8809595307172911E-2},{"$f":"'Population at Risk'!AJ20/'Population at Risk'!AJ$5","v":5.0899197447824222E-2},{"$f":"'Population at Risk'!AK20/'Population at Risk'!AK$5","v":0.14951180801054961},{"$f":"'Population at Risk'!AL20/'Population at Risk'!AL$5","v":4.6508600622253156E-2},{"$f":"'Population at Risk'!AM20/'Population at Risk'!AM$5","v":4.3705448896840415E-2},{"$f":"'Population at Risk'!N20/'Population at Risk'!N$5","v":5.401188243423076E-2},{"$f":"'Population at Risk'!AN20/'Population at Risk'!AN$5","v":0.17926150132517102},{"$f":"'Population at Risk'!AO20/'Population at Risk'!AO$5","v":0.17926150132517102},{"$f":"'Population at Risk'!AP20/'Population at Risk'!AP$5","v":0.15824007607720503},{"$f":"'Population at Risk'!C20/'Population at Risk'!C$5","v":7.0166544403761882E-2},{"$f":"'Population at Risk'!AQ20/'Population at Risk'!AQ$5","v":5.6668570349680626E-2},{"$f":"'Population at Risk'!O20/'Population at Risk'!O$5","v":4.1268772674695114E-2},{"$f":"'Population at Risk'!AR20/'Population at Risk'!AR$5","v":6.9342410992780643E-2},{"$f":"'Population at Risk'!AS20/'Population at Risk'!AS$5","v":0.12204939972573257},{"$f":"'Population at Risk'!AT20/'Population at Risk'!AT$5","v":0.26054848908247963},{"$f":"'Population at Risk'!AU20/'Population at Risk'!AU$5","v":0.26054848908247963},{"$f":"'Population at Risk'!BB20/'Population at Risk'!BB$5","v":6.1724767439650767E-2},{"$f":"'Population at Risk'!P20/'Population at Risk'!P$5","v":7.2926643427068519E-2},{"$f":"'Population at Risk'!AV20/'Population at Risk'!AV$5","v":4.3205191531376204E-2},{"$f":"'Population at Risk'!AW20/'Population at Risk'!AW$5","v":6.6813204560543293E-2},{"$f":"'Population at Risk'!Q20/'Population at Risk'!Q$5","v":0.11069139510641322},18]
["SIMD Q5 (least deprived)",null,{"$f":"'Population at Risk'!R21/'Population at Risk'!R$5","v":0.20124719746282341},{"$f":"'Population at Risk'!AX21/'Population at Risk'!AX$5","v":8.7155399872079473E-2},{"$f":"'Population at Risk'!S21/'Population at Risk'!S$5","v":7.9653199422997478E-2},{"$f":"'Population at Risk'!T21/'Population at Risk'!T$5","v":0.12767501995424738},{"$f":"'Population at Risk'!U21/'Population at Risk'!U$5","v":0},{"$f":"'Population at Risk'!D21/'Population at Risk'!D$5","v":0.12325604727228842},{"$f":"'Population at Risk'!E21/'Population at Risk'!E$5","v":0.12071527904477376},{"$f":"'Population at Risk'!BC21/'Population at Risk'!BC$5","v":0},{"$f":"'Population at Risk'!V21/'Population at Risk'!V$5","v":5.6535515045160648E-2},{"$f":"'Population at Risk'!F21/'Population at Risk'!F$5","v":5.465786817471191E-2},{"$f":"'Population at Risk'!W21/'Population at Risk'!W$5","v":6.1525666523786493E-2},{"$f":"'Population at Risk'!X21/'Population at Risk'!X$5","v":6.1525666523786493E-2},{"$f":"'Population at Risk'!Y21/'Population at Risk'!Y$5","v":6.1901253177041177E-2},{"$f":"'Population at Risk'!Z21/'Population at Risk'!Z$5","v":2.5334308444839984E-2},{"$f":"'Population at Risk'!AA21/'Population at Risk'!AA$5","v":4.2430634778575914E-2},{"$f":"'Population at Risk'!AB21/'Population at Risk'!AB$5","v":0.11347710882560394},{"$f":"'Population at Risk'!AY21/'Population at Risk'!AY$5","v":5.5079145028940804E-2},{"$f":"'Population at Risk'!AC21/'Population at Risk'!AC$5","v":4.9138707260934111E-2},{"$f":"'Population at Risk'!AD21/'Population at Risk'!AD$5","v":3.1370524243250687E-2},{"$f":"'Population at Risk'!AE21/'Population at Risk'!AE$5","v":2.7862470524723841E-2},{"$f":"'Population at Risk'!G21/'Population at Risk'!G$5","v":4.0553949402456095E-2},{"$f":"'Population at Risk'!AF21/'Population at Risk'!AF$5","v":2.954130317737521E-2},{"$f":"'Population at Risk'!H21/'Population at Risk'!H$5","v":3.5123311182775799E-2},{"$f":"'Population at Risk'!AG21/'Population at Risk'!AG$5","v":2.7862470524723841E-2},{"$f":"'Population at Risk'!AZ21/'Population at Risk'!AZ$5","v":4.9227328181994254E-2},{"$f":"'Population at Risk'!I21/'Population at Risk'!I$5","v":2.8320056227038926E-2},{"$f":"'Population at Risk'!J21/'Population at Risk'!J$5","v":6.7898182837634866E-2},{"$f":"'Population at Risk'!K21/'Population at Risk'!K$5","v":3.6502007112049796E-2},{"$f":"'Population at Risk'!AH21/'Population at Risk'!AH$5","v":3.0225035446589776E-2},{"$f":"'Population at Risk'!AI21/'Population at Risk'!AI$5","v":9.4149014777256568E-2},{"$f":"'Population at Risk'!BA21/'Population at Risk'!BA$5","v":9.9499900311649098E-3},{"$f":"'Population at Risk'!L21/'Population at Risk'!L$5","v":2.5106200910714537E-2},{"$f":"'Population at Risk'!M21/'Population at Risk'!M$5","v":2.5106200910714537E-2},{"$f":"'Population at Risk'!AJ21/'Population at Risk'!AJ$5","v":4.5151435186584384E-2},{"$f":"'Population at Risk'!AK21/'Population at Risk'!AK$5","v":6.3769000864533965E-2},{"$f":"'Population at Risk'!AL21/'Population at Risk'!AL$5","v":2.3574648671592421E-2},{"$f":"'Population at Risk'!AM21/'Population at Risk'!AM$5","v":2.3087742114902055E-2},{"$f":"'Population at Risk'!N21/'Population at Risk'!N$5","v":3.9227575596380161E-2},{"$f":"'Population at Risk'!AN21/'Population at Risk'!AN$5","v":2.4952112377772465E-2},{"$f":"'Population at Risk'!AO21/'Population at Risk'!AO$5","v":2.4952112377772465E-2},{"$f":"'Population at Risk'!AP21/'Population at Risk'!AP$5","v":5.7142756816900134E-2},{"$f":"'Population at Risk'!C21/'Population at Risk'!C$5","v":0.12578713272813211},{"$f":"'Population at Risk'!AQ21/'Population at Risk'!AQ$5","v":4.8778804444505351E-2},{"$f":"'Population at Risk'!O21/'Population at Risk'!O$5","v":2.99345828396495E-2},{"$f":"'Population at Risk'!AR21/'Population at Risk'!AR$5","v":5.7619013519616409E-2},{"$f":"'Population at Risk'!AS21/'Population at Risk'!AS$5","v":2.8320056227038926E-2},{"$f":"'Population at Risk'!AT21/'Population at Risk'!AT$5","v":0},{"$f":"'Population at Risk'!AU21/'Population at Risk'!AU$5","v":0},{"$f":"'Population at Risk'!BB21/'Population at Risk'!BB$5","v":5.1236032230564173E-2},{"$f":"'Population at Risk'!P21/'Population at Risk'!P$5","v":0.1908166967010185},{"$f":"'Population at Risk'!AV21/'Population at Risk'!AV$5","v":5.6491721091905034E-2},{"$f":"'Population at Risk'!AW21/'Population at Risk'!AW$5","v":3.8368366550932502E-2},{"$f":"'Population at Risk'!Q21/'Population at Risk'!Q$5","v":5.0853594290148296E-2},19]
["All quintiles","Female 0-4",{"$f":"'Population at Risk'!R22/'Population at Risk'!R$5","v":0},{"$f":"'Population at Risk'!AX22/'Population at Risk'!AX$5","v":0},{"$f":"'Population at Risk'!S22/'Population at Risk'!S$5","v":0},{"$f":"'Population at Risk'!T22/'Population at Risk'!T$5","v":0},{"$f":"'Population at Risk'!U22/'Population at Risk'!U$5","v":0},{"$f":"'Population at Risk'!D22/'Population at Risk'!D$5","v":0},{"$f":"'Population at Risk'!E22/'Population at Risk'!E$5","v":0},{"$f":"'Population at Risk'!BC22/'Population at Risk'!BC$5","v":0},{"$f":"'Population at Risk'!V22/'Population at Risk'!V$5","v":0},{"$f":"'Population at Risk'!F22/'Population at Risk'!F$5","v":0},{"$f":"'Population at Risk'!W22/'Population at Risk'!W$5","v":0},{"$f":"'Population at Risk'!X22/'Population at Risk'!X$5","v":0},{"$f":"'Population at Risk'!Y22/'Population at Risk'!Y$5","v":0},{"$f":"'Population at Risk'!Z22/'Population at Risk'!Z$5","v":0},{"$f":"'Population at Risk'!AA22/'Population at Risk'!AA$5","v":0},{"$f":"'Population at Risk'!AB22/'Population at Risk'!AB$5","v":0},{"$f":"'Population at Risk'!AY22/'Population at Risk'!AY$5","v":0},{"$f":"'Population at Risk'!AC22/'Population at Risk'!AC$5","v":0},{"$f":"'Population at Risk'!AD22/'Population at Risk'!AD$5","v":0},{"$f":"'Population at Risk'!AE22/'Population at Risk'!AE$5","v":0},{"$f":"'Population at Risk'!G22/'Population at Risk'!G$5","v":0},{"$f":"'Population at Risk'!AF22/'Population at Risk'!AF$5","v":0},{"$f":"'Population at Risk'!H22/'Population at Risk'!H$5","v":0},{"$f":"'Population at Risk'!AG22/'Population at Risk'!AG$5","v":0},{"$f":"'Population at Risk'!AZ22/'Population at Risk'!AZ$5","v":0},{"$f":"'Population at Risk'!I22/'Population at Risk'!I$5","v":0},{"$f":"'Population at Risk'!J22/'Population at Risk'!J$5","v":0},{"$f":"'Population at Risk'!K22/'Population at Risk'!K$5","v":0},{"$f":"'Population at Risk'!AH22/'Population at Risk'!AH$5","v":0},{"$f":"'Population at Risk'!AI22/'Population at Risk'!AI$5","v":0},{"$f":"'Population at Risk'!BA22/'Population at Risk'!BA$5","v":0},{"$f":"'Population at Risk'!L22/'Population at Risk'!L$5","v":0},{"$f":"'Population at Risk'!M22/'Population at Risk'!M$5","v":0},{"$f":"'Population at Risk'!AJ22/'Population at Risk'!AJ$5","v":0},{"$f":"'Population at Risk'!AK22/'Population at Risk'!AK$5","v":0},{"$f":"'Population at Risk'!AL22/'Population at Risk'!AL$5","v":0},{"$f":"'Population at Risk'!AM22/'Population at Risk'!AM$5","v":0},{"$f":"'Population at Risk'!N22/'Population at Risk'!N$5","v":0},{"$f":"'Population at Risk'!AN22/'Population at Risk'!AN$5","v":0},{"$f":"'Population at Risk'!AO22/'Population at Risk'!AO$5","v":0},{"$f":"'Population at Risk'!AP22/'Population at Risk'!AP$5","v":0},{"$f":"'Population at Risk'!C22/'Population at Risk'!C$5","v":0},{"$f":"'Population at Risk'!AQ22/'Population at Risk'!AQ$5","v":0},{"$f":"'Population at Risk'!O22/'Population at Risk'!O$5","v":0},{"$f":"'Population at Risk'!AR22/'Population at Risk'!AR$5","v":0},{"$f":"'Population at Risk'!AS22/'Population at Risk'!AS$5","v":0},{"$f":"'Population at Risk'!AT22/'Population at Risk'!AT$5","v":0},{"$f":"'Population at Risk'!AU22/'Population at Risk'!AU$5","v":0},{"$f":"'Population at Risk'!BB22/'Population at Risk'!BB$5","v":0},{"$f":"'Population at Risk'!P22/'Population at Risk'!P$5","v":0},{"$f":"'Population at Risk'!AV22/'Population at Risk'!AV$5","v":0},{"$f":"'Population at Risk'!AW22/'Population at Risk'!AW$5","v":0},{"$f":"'Population at Risk'!Q22/'Population at Risk'!Q$5","v":0},20]
[null,"Female 5-9",{"$f":"'Population at Risk'!R23/'Population at Risk'!R$5","v":0},{"$f":"'Population at Risk'!AX23/'Population at Risk'!AX$5","v":0},{"$f":"'Population at Risk'!S23/'Population at Risk'!S$5","v":0},{"$f":"'Population at Risk'!T23/'Population at Risk'!T$5","v":0},{"$f":"'Population at Risk'!U23/'Population at Risk'!U$5","v":0},{"$f":"'Population at Risk'!D23/'Population at Risk'!D$5","v":0},{"$f":"'Population at Risk'!E23/'Population at Risk'!E$5","v":0},{"$f":"'Population at Risk'!BC23/'Population at Risk'!BC$5","v":0},{"$f":"'Population at Risk'!V23/'Population at Risk'!V$5","v":0},{"$f":"'Population at Risk'!F23/'Population at Risk'!F$5","v":0},{"$f":"'Population at Risk'!W23/'Population at Risk'!W$5","v":0},{"$f":"'Population at Risk'!X23/'Population at Risk'!X$5","v":0},{"$f":"'Population at Risk'!Y23/'Population at Risk'!Y$5","v":0},{"$f":"'Population at Risk'!Z23/'Population at Risk'!Z$5","v":0},{"$f":"'Population at Risk'!AA23/'Population at Risk'!AA$5","v":0},{"$f":"'Population at Risk'!AB23/'Population at Risk'!AB$5","v":0},{"$f":"'Population at Risk'!AY23/'Population at Risk'!AY$5","v":0},{"$f":"'Population at Risk'!AC23/'Population at Risk'!AC$5","v":0},{"$f":"'Population at Risk'!AD23/'Population at Risk'!AD$5","v":0},{"$f":"'Population at Risk'!AE23/'Population at Risk'!AE$5","v":0},{"$f":"'Population at Risk'!G23/'Population at Risk'!G$5","v":0},{"$f":"'Population at Risk'!AF23/'Population at Risk'!AF$5","v":0},{"$f":"'Population at Risk'!H23/'Population at Risk'!H$5","v":0},{"$f":"'Population at Risk'!AG23/'Population at Risk'!AG$5","v":0},{"$f":"'Population at Risk'!AZ23/'Population at Risk'!AZ$5","v":0},{"$f":"'Population at Risk'!I23/'Population at Risk'!I$5","v":0},{"$f":"'Population at Risk'!J23/'Population at Risk'!J$5","v":0},{"$f":"'Population at Risk'!K23/'Population at Risk'!K$5","v":0},{"$f":"'Population at Risk'!AH23/'Population at Risk'!AH$5","v":0},{"$f":"'Population at Risk'!AI23/'Population at Risk'!AI$5","v":0},{"$f":"'Population at Risk'!BA23/'Population at Risk'!BA$5","v":0},{"$f":"'Population at Risk'!L23/'Population at Risk'!L$5","v":0},{"$f":"'Population at Risk'!M23/'Population at Risk'!M$5","v":0},{"$f":"'Population at Risk'!AJ23/'Population at Risk'!AJ$5","v":0},{"$f":"'Population at Risk'!AK23/'Population at Risk'!AK$5","v":0},{"$f":"'Population at Risk'!AL23/'Population at Risk'!AL$5","v":0},{"$f":"'Population at Risk'!AM23/'Population at Risk'!AM$5","v":0},{"$f":"'Population at Risk'!N23/'Population at Risk'!N$5","v":0},{"$f":"'Population at Risk'!AN23/'Population at Risk'!AN$5","v":0},{"$f":"'Population at Risk'!AO23/'Population at Risk'!AO$5","v":0},{"$f":"'Population at Risk'!AP23/'Population at Risk'!AP$5","v":0},{"$f":"'Population at Risk'!C23/'Population at Risk'!C$5","v":0},{"$f":"'Population at Risk'!AQ23/'Population at Risk'!AQ$5","v":0},{"$f":"'Population at Risk'!O23/'Population at Risk'!O$5","v":0},{"$f":"'Population at Risk'!AR23/'Population at Risk'!AR$5","v":0},{"$f":"'Population at Risk'!AS23/'Population at Risk'!AS$5","v":0},{"$f":"'Population at Risk'!AT23/'Population at Risk'!AT$5","v":0},{"$f":"'Population at Risk'!AU23/'Population at Risk'!AU$5","v":0},{"$f":"'Population at Risk'!BB23/'Population at Risk'!BB$5","v":0},{"$f":"'Population at Risk'!P23/'Population at Risk'!P$5","v":0},{"$f":"'Population at Risk'!AV23/'Population at Risk'!AV$5","v":0},{"$f":"'Population at Risk'!AW23/'Population at Risk'!AW$5","v":0},{"$f":"'Population at Risk'!Q23/'Population at Risk'!Q$5","v":0},21]
[null,"Female 10-15",{"$f":"'Population at Risk'!R24/'Population at Risk'!R$5","v":0},{"$f":"'Population at Risk'!AX24/'Population at Risk'!AX$5","v":0},{"$f":"'Population at Risk'!S24/'Population at Risk'!S$5","v":0},{"$f":"'Population at Risk'!T24/'Population at Risk'!T$5","v":0},{"$f":"'Population at Risk'!U24/'Population at Risk'!U$5","v":0},{"$f":"'Population at Risk'!D24/'Population at Risk'!D$5","v":0},{"$f":"'Population at Risk'!E24/'Population at Risk'!E$5","v":0},{"$f":"'Population at Risk'!BC24/'Population at Risk'!BC$5","v":0},{"$f":"'Population at Risk'!V24/'Population at Risk'!V$5","v":0},{"$f":"'Population at Risk'!F24/'Population at Risk'!F$5","v":0},{"$f":"'Population at Risk'!W24/'Population at Risk'!W$5","v":0},{"$f":"'Population at Risk'!X24/'Population at Risk'!X$5","v":0},{"$f":"'Population at Risk'!Y24/'Population at Risk'!Y$5","v":0},{"$f":"'Population at Risk'!Z24/'Population at Risk'!Z$5","v":0},{"$f":"'Population at Risk'!AA24/'Population at Risk'!AA$5","v":0},{"$f":"'Population at Risk'!AB24/'Population at Risk'!AB$5","v":0},{"$f":"'Population at Risk'!AY24/'Population at Risk'!AY$5","v":0},{"$f":"'Population at Risk'!AC24/'Population at Risk'!AC$5","v":0},{"$f":"'Population at Risk'!AD24/'Population at Risk'!AD$5","v":0},{"$f":"'Population at Risk'!AE24/'Population at Risk'!AE$5","v":0},{"$f":"'Population at Risk'!G24/'Population at Risk'!G$5","v":0},{"$f":"'Population at Risk'!AF24/'Population at Risk'!AF$5","v":0},{"$f":"'Population at Risk'!H24/'Population at Risk'!H$5","v":0},{"$f":"'Population at Risk'!AG24/'Population at Risk'!AG$5","v":0},{"$f":"'Population at Risk'!AZ24/'Population at Risk'!AZ$5","v":0},{"$f":"'Population at Risk'!I24/'Population at Risk'!I$5","v":0},{"$f":"'Population at Risk'!J24/'Population at Risk'!J$5","v":0},{"$f":"'Population at Risk'!K24/'Population at Risk'!K$5","v":0},{"$f":"'Population at Risk'!AH24/'Population at Risk'!AH$5","v":0},{"$f":"'Population at Risk'!AI24/'Population at Risk'!AI$5","v":0},{"$f":"'Population at Risk'!BA24/'Population at Risk'!BA$5","v":0},{"$f":"'Population at Risk'!L24/'Population at Risk'!L$5","v":0},{"$f":"'Population at Risk'!M24/'Population at Risk'!M$5","v":0},{"$f":"'Population at Risk'!AJ24/'Population at Risk'!AJ$5","v":0},{"$f":"'Population at Risk'!AK24/'Population at Risk'!AK$5","v":0},{"$f":"'Population at Risk'!AL24/'Population at Risk'!AL$5","v":0},{"$f":"'Population at Risk'!AM24/'Population at Risk'!AM$5","v":0},{"$f":"'Population at Risk'!N24/'Population at Risk'!N$5","v":0},{"$f":"'Population at Risk'!AN24/'Population at Risk'!AN$5","v":0},{"$f":"'Population at Risk'!AO24/'Population at Risk'!AO$5","v":0},{"$f":"'Population at Risk'!AP24/'Population at Risk'!AP$5","v":0},{"$f":"'Population at Risk'!C24/'Population at Risk'!C$5","v":0},{"$f":"'Population at Risk'!AQ24/'Population at Risk'!AQ$5","v":0},{"$f":"'Population at Risk'!O24/'Population at Risk'!O$5","v":0},{"$f":"'Population at Risk'!AR24/'Population at Risk'!AR$5","v":0},{"$f":"'Population at Risk'!AS24/'Population at Risk'!AS$5","v":0},{"$f":"'Population at Risk'!AT24/'Population at Risk'!AT$5","v":0},{"$f":"'Population at Risk'!AU24/'Population at Risk'!AU$5","v":0},{"$f":"'Population at Risk'!BB24/'Population at Risk'!BB$5","v":0},{"$f":"'Population at Risk'!P24/'Population at Risk'!P$5","v":0},{"$f":"'Population at Risk'!AV24/'Population at Risk'!AV$5","v":0},{"$f":"'Population at Risk'!AW24/'Population at Risk'!AW$5","v":0},{"$f":"'Population at Risk'!Q24/'Population at Risk'!Q$5","v":0},22]
[null,"Female 16-19",{"$f":"'Population at Risk'!R25/'Population at Risk'!R$5","v":3.6356589910733671E-2},{"$f":"'Population at Risk'!AX25/'Population at Risk'!AX$5","v":4.0540908053313139E-2},{"$f":"'Population at Risk'!S25/'Population at Risk'!S$5","v":3.1197563084766816E-2},{"$f":"'Population at Risk'!T25/'Population at Risk'!T$5","v":2.8414249095915976E-2},{"$f":"'Population at Risk'!U25/'Population at Risk'!U$5","v":2.714166842521935E-2},{"$f":"'Population at Risk'!D25/'Population at Risk'!D$5","v":3.0313153696030833E-2},{"$f":"'Population at Risk'!E25/'Population at Risk'!E$5","v":3.0739265531105408E-2},{"$f":"'Population at Risk'!BC25/'Population at Risk'!BC$5","v":2.714166842521935E-2},{"$f":"'Population at Risk'!V25/'Population at Risk'!V$5","v":2.9087534289740639E-2},{"$f":"'Population at Risk'!F25/'Population at Risk'!F$5","v":3.0996535812826551E-2},{"$f":"'Population at Risk'!W25/'Population at Risk'!W$5","v":3.3115469467182454E-2},{"$f":"'Population at Risk'!X25/'Population at Risk'!X$5","v":3.3115469467182454E-2},{"$f":"'Population at Risk'!Y25/'Population at Risk'!Y$5","v":3.2830754154467144E-2},{"$f":"'Population at Risk'!Z25/'Population at Risk'!Z$5","v":3.1082976846020696E-2},{"$f":"'Population at Risk'!AA25/'Population at Risk'!AA$5","v":3.1880132032698565E-2},{"$f":"'Population at Risk'!AB25/'Population at Risk'!AB$5","v":3.054139556743286E-2},{"$f":"'Population at Risk'!AY25/'Population at Risk'!AY$5","v":3.3380432398928135E-2},{"$f":"'Population at Risk'!AC25/'Population at Risk'!AC$5","v":3.1446114143772359E-2},{"$f":"'Population at Risk'!AD25/'Population at Risk'!AD$5","v":3.0206863709484558E-2},{"$f":"'Population at Risk'!AE25/'Population at Risk'!AE$5","v":3.0248937738977816E-2},{"$f":"'Population at Risk'!G25/'Population at Risk'!G$5","v":3.0096721809730571E-2},{"$f":"'Population at Risk'!AF25/'Population at Risk'!AF$5","v":3.1605980113650171E-2},{"$f":"'Population at Risk'!H25/'Population at Risk'!H$5","v":3.1771583404819954E-2},{"$f":"'Population at Risk'!AG25/'Population at Risk'!AG$5","v":3.0248937738977816E-2},{"$f":"'Population at Risk'!AZ25/'Population at Risk'!AZ$5","v":3.3620951964254242E-2},{"$f":"'Population at Risk'!I25/'Population at Risk'!I$5","v":3.1726800543897204E-2},{"$f":"'Population at Risk'!J25/'Population at Risk'!J$5","v":3.701430275135599E-2},{"$f":"'Population at Risk'!K25/'Population at Risk'!K$5","v":3.1264670310854198E-2},{"$f":"'Population at Risk'!AH25/'Population at Risk'!AH$5","v":3.2669844497654754E-2},{"$f":"'Population at Risk'!AI25/'Population at Risk'!AI$5","v":3.0285914102391048E-2},{"$f":"'Population at Risk'!BA25/'Population at Risk'!BA$5","v":3.124100436249478E-2},{"$f":"'Population at Risk'!L25/'Population at Risk'!L$5","v":2.8991798667186083E-2},{"$f":"'Population at Risk'!M25/'Population at Risk'!M$5","v":2.8991798667186083E-2},{"$f":"'Population at Risk'!AJ25/'Population at Risk'!AJ$5","v":3.2363617436580797E-2},{"$f":"'Population at Risk'!AK25/'Population at Risk'!AK$5","v":3.1701590167976211E-2},{"$f":"'Population at Risk'!AL25/'Population at Risk'!AL$5","v":3.3479999590682284E-2},{"$f":"'Population at Risk'!AM25/'Population at Risk'!AM$5","v":3.4018556275013788E-2},{"$f":"'Population at Risk'!N25/'Population at Risk'!N$5","v":3.6892687046129649E-2},{"$f":"'Population at Risk'!AN25/'Population at Risk'!AN$5","v":2.7298633367320833E-2},{"$f":"'Population at Risk'!AO25/'Population at Risk'!AO$5","v":2.7298633367320833E-2},{"$f":"'Population at Risk'!AP25/'Population at Risk'!AP$5","v":3.1723244955333636E-2},{"$f":"'Population at Risk'!C25/'Population at Risk'!C$5","v":2.9888665757052166E-2},{"$f":"'Population at Risk'!AQ25/'Population at Risk'!AQ$5","v":3.130442601592659E-2},{"$f":"'Population at Risk'!O25/'Population at Risk'!O$5","v":3.1060409091407962E-2},{"$f":"'Population at Risk'!AR25/'Population at Risk'!AR$5","v":3.1562046228477934E-2},{"$f":"'Population at Risk'!AS25/'Population at Risk'!AS$5","v":3.1726800543897204E-2},{"$f":"'Population at Risk'!AT25/'Population at Risk'!AT$5","v":3.5826225732913067E-2},{"$f":"'Population at Risk'!AU25/'Population at Risk'!AU$5","v":3.5826225732913067E-2},{"$f":"'Population at Risk'!BB25/'Population at Risk'!BB$5","v":3.3293618831500893E-2},{"$f":"'Population at Risk'!P25/'Population at Risk'!P$5","v":3.0764557694728287E-2},{"$f":"'Population at Risk'!AV25/'Population at Risk'!AV$5","v":3.0333694086845664E-2},{"$f":"'Population at Risk'!AW25/'Population at Risk'!AW$5","v":3.1131024940022237E-2},{"$f":"'Population at Risk'!Q25/'Population at Risk'!Q$5","v":3.216286350377752E-2},23]
[null,"Female 20-24",{"$f":"'Population at Risk'!R26/'Population at Risk'!R$5","v":4.0785988490591008E-2},{"$f":"'Population at Risk'!AX26/'Population at Risk'!AX$5","v":6.1962281147544464E-2},{"$f":"'Population at Risk'!S26/'Population at Risk'!S$5","v":5.1622898076050541E-2},{"$f":"'Population at Risk'!T26/'Population at Risk'!T$5","v":6.6292397152532115E-2},{"$f":"'Population at Risk'!U26/'Population at Risk'!U$5","v":2.9655893044437713E-2},{"$f":"'Population at Risk'!D26/'Population at Risk'!D$5","v":5.2349587887187264E-2},{"$f":"'Population at Risk'!E26/'Population at Risk'!E$5","v":3.7407954377186907E-2},{"$f":"'Population at Risk'!BC26/'Population at Risk'!BC$5","v":2.9655893044437713E-2},{"$f":"'Population at Risk'!V26/'Population at Risk'!V$5","v":4.0487368623192681E-2},{"$f":"'Population at Risk'!F26/'Population at Risk'!F$5","v":3.9388188779960281E-2},{"$f":"'Population at Risk'!W26/'Population at Risk'!W$5","v":4.6191345803358083E-2},{"$f":"'Population at Risk'!X26/'Population at Risk'!X$5","v":4.6191345803358083E-2},{"$f":"'Population at Risk'!Y26/'Population at Risk'!Y$5","v":4.6956046702895313E-2},{"$f":"'Population at Risk'!Z26/'Population at Risk'!Z$5","v":6.2580560730310292E-2},{"$f":"'Population at Risk'!AA26/'Population at Risk'!AA$5","v":5.042796461116434E-2},{"$f":"'Population at Risk'!AB26/'Population at Risk'!AB$5","v":5.0235753557165558E-2},{"$f":"'Population at Risk'!AY26/'Population at Risk'!AY$5","v":4.8917882954383284E-2},{"$f":"'Population at Risk'!AC26/'Population at Risk'!AC$5","v":5.4889887092597532E-2},{"$f":"'Population at Risk'!AD26/'Population at Risk'!AD$5","v":3.5249178447288559E-2},{"$f":"'Population at Risk'!AE26/'Population at Risk'!AE$5","v":3.6338567743381227E-2},{"$f":"'Population at Risk'!G26/'Population at Risk'!G$5","v":3.2397362063442611E-2},{"$f":"'Population at Risk'!AF26/'Population at Risk'!AF$5","v":4.5506712517369444E-2},{"$f":"'Population at Risk'!H26/'Population at Risk'!H$5","v":4.2530253788719254E-2},{"$f":"'Population at Risk'!AG26/'Population at Risk'!AG$5","v":3.6338567743381227E-2},{"$f":"'Population at Risk'!AZ26/'Population at Risk'!AZ$5","v":5.1392891537997212E-2},{"$f":"'Population at Risk'!I26/'Population at Risk'!I$5","v":3.7039536140503065E-2},{"$f":"'Population at Risk'!J26/'Population at Risk'!J$5","v":5.4185659197496398E-2},{"$f":"'Population at Risk'!K26/'Population at Risk'!K$5","v":4.150697416951759E-2},{"$f":"'Population at Risk'!AH26/'Population at Risk'!AH$5","v":4.2309322750632525E-2},{"$f":"'Population at Risk'!AI26/'Population at Risk'!AI$5","v":5.5865069294751019E-2},{"$f":"'Population at Risk'!BA26/'Population at Risk'!BA$5","v":4.6275466680098111E-2},{"$f":"'Population at Risk'!L26/'Population at Risk'!L$5","v":3.7062005239718303E-2},{"$f":"'Population at Risk'!M26/'Population at Risk'!M$5","v":3.7062005239718303E-2},{"$f":"'Population at Risk'!AJ26/'Population at Risk'!AJ$5","v":4.0293303517986392E-2},{"$f":"'Population at Risk'!AK26/'Population at Risk'!AK$5","v":3.9490752383325528E-2},{"$f":"'Population at Risk'!AL26/'Population at Risk'!AL$5","v":4.4861001247705964E-2},{"$f":"'Population at Risk'!AM26/'Population at Risk'!AM$5","v":4.318551858430511E-2},{"$f":"'Population at Risk'!N26/'Population at Risk'!N$5","v":6.8808779259623046E-2},{"$f":"'Population at Risk'!AN26/'Population at Risk'!AN$5","v":3.684352382373806E-2},{"$f":"'Population at Risk'!AO26/'Population at Risk'!AO$5","v":3.684352382373806E-2},{"$f":"'Population at Risk'!AP26/'Population at Risk'!AP$5","v":3.9686434727578566E-2},{"$f":"'Population at Risk'!C26/'Population at Risk'!C$5","v":6.7234279396693034E-2},{"$f":"'Population at Risk'!AQ26/'Population at Risk'!AQ$5","v":4.6535192729784181E-2},{"$f":"'Population at Risk'!O26/'Population at Risk'!O$5","v":4.2917217038258799E-2},{"$f":"'Population at Risk'!AR26/'Population at Risk'!AR$5","v":4.8567532790378155E-2},{"$f":"'Population at Risk'!AS26/'Population at Risk'!AS$5","v":3.7039536140503065E-2},{"$f":"'Population at Risk'!AT26/'Population at Risk'!AT$5","v":3.8516587422022727E-2},{"$f":"'Population at Risk'!AU26/'Population at Risk'!AU$5","v":3.8516587422022727E-2},{"$f":"'Population at Risk'!BB26/'Population at Risk'!BB$5","v":4.1704160031973719E-2},{"$f":"'Population at Risk'!P26/'Population at Risk'!P$5","v":3.9147233003638357E-2},{"$f":"'Population at Risk'!AV26/'Population at Risk'!AV$5","v":3.8987043034932486E-2},{"$f":"'Population at Risk'!AW26/'Population at Risk'!AW$5","v":4.1309622660661002E-2},{"$f":"'Population at Risk'!Q26/'Population at Risk'!Q$5","v":4.422245274055913E-2},24]
[null,"Female 25-29",{"$f":"'Population at Risk'!R27/'Population at Risk'!R$5","v":3.763531643772975E-2},{"$f":"'Population at Risk'!AX27/'Population at Risk'!AX$5","v":5.2815161900233658E-2},{"$f":"'Population at Risk'!S27/'Population at Risk'!S$5","v":5.5518199339866021E-2},{"$f":"'Population at Risk'!T27/'Population at Risk'!T$5","v":7.740361352358463E-2},{"$f":"'Population at Risk'!U27/'Population at Risk'!U$5","v":3.2569514959492875E-2},{"$f":"'Population at Risk'!D27/'Population at Risk'!D$5","v":5.5240911005368057E-2},{"$f":"'Population at Risk'!E27/'Population at Risk'!E$5","v":4.0134414914095147E-2},{"$f":"'Population at Risk'!BC27/'Population at Risk'!BC$5","v":3.2569514959492875E-2},{"$f":"'Population at Risk'!V27/'Population at Risk'!V$5","v":4.2662671402555738E-2},{"$f":"'Population at Risk'!F27/'Population at Risk'!F$5","v":3.7852722678908136E-2},{"$f":"'Population at Risk'!W27/'Population at Risk'!W$5","v":4.5462786554992106E-2},{"$f":"'Population at Risk'!X27/'Population at Risk'!X$5","v":4.5462786554992106E-2},{"$f":"'Population at Risk'!Y27/'Population at Risk'!Y$5","v":4.5436409031895122E-2},{"$f":"'Population at Risk'!Z27/'Population at Risk'!Z$5","v":7.3725791118948822E-2},{"$f":"'Population at Risk'!AA27/'Population at Risk'!AA$5","v":5.5132596827692719E-2},{"$f":"'Population at Risk'!AB27/'Population at Risk'!AB$5","v":5.2845877985541863E-2},{"$f":"'Population at Risk'!AY27/'Population at Risk'!AY$5","v":4.8530927746480414E-2},{"$f":"'Population at Risk'!AC27/'Population at Risk'!AC$5","v":6.1322446920301268E-2},{"$f":"'Population at Risk'!AD27/'Population at Risk'!AD$5","v":3.7275751992300495E-2},{"$f":"'Population at Risk'!AE27/'Population at Risk'!AE$5","v":3.9238548632149102E-2},{"$f":"'Population at Risk'!G27/'Population at Risk'!G$5","v":3.2137519373571038E-2},{"$f":"'Population at Risk'!AF27/'Population at Risk'!AF$5","v":4.4647304311446381E-2},{"$f":"'Population at Risk'!H27/'Population at Risk'!H$5","v":4.2551660338324526E-2},{"$f":"'Population at Risk'!AG27/'Population at Risk'!AG$5","v":3.9238548632149102E-2},{"$f":"'Population at Risk'!AZ27/'Population at Risk'!AZ$5","v":5.1316026706829346E-2},{"$f":"'Population at Risk'!I27/'Population at Risk'!I$5","v":3.3296288606516969E-2},{"$f":"'Population at Risk'!J27/'Population at Risk'!J$5","v":4.853643162920749E-2},{"$f":"'Population at Risk'!K27/'Population at Risk'!K$5","v":4.1560565530215268E-2},{"$f":"'Population at Risk'!AH27/'Population at Risk'!AH$5","v":4.3869923331821728E-2},{"$f":"'Population at Risk'!AI27/'Population at Risk'!AI$5","v":6.2765638568432786E-2},{"$f":"'Population at Risk'!BA27/'Population at Risk'!BA$5","v":4.7678756898961713E-2},{"$f":"'Population at Risk'!L27/'Population at Risk'!L$5","v":3.7478058775795901E-2},{"$f":"'Population at Risk'!M27/'Population at Risk'!M$5","v":3.7478058775795901E-2},{"$f":"'Population at Risk'!AJ27/'Population at Risk'!AJ$5","v":4.3237679922470913E-2},{"$f":"'Population at Risk'!AK27/'Population at Risk'!AK$5","v":4.0671493151346279E-2},{"$f":"'Population at Risk'!AL27/'Population at Risk'!AL$5","v":4.3739144590130556E-2},{"$f":"'Population at Risk'!AM27/'Population at Risk'!AM$5","v":4.59935978235958E-2},{"$f":"'Population at Risk'!N27/'Population at Risk'!N$5","v":6.8790131629294871E-2},{"$f":"'Population at Risk'!AN27/'Population at Risk'!AN$5","v":4.090225103479065E-2},{"$f":"'Population at Risk'!AO27/'Population at Risk'!AO$5","v":4.090225103479065E-2},{"$f":"'Population at Risk'!AP27/'Population at Risk'!AP$5","v":4.0728578520495703E-2},{"$f":"'Population at Risk'!C27/'Population at Risk'!C$5","v":7.0289836811081197E-2},{"$f":"'Population at Risk'!AQ27/'Population at Risk'!AQ$5","v":4.9242946129016724E-2},{"$f":"'Population at Risk'!O27/'Population at Risk'!O$5","v":4.5048798730479039E-2},{"$f":"'Population at Risk'!AR27/'Population at Risk'!AR$5","v":5.1567527758750273E-2},{"$f":"'Population at Risk'!AS27/'Population at Risk'!AS$5","v":3.3296288606516969E-2},{"$f":"'Population at Risk'!AT27/'Population at Risk'!AT$5","v":4.7486871241863661E-2},{"$f":"'Population at Risk'!AU27/'Population at Risk'!AU$5","v":4.7486871241863661E-2},{"$f":"'Population at Risk'!BB27/'Population at Risk'!BB$5","v":4.5400342673481635E-2},{"$f":"'Population at Risk'!P27/'Population at Risk'!P$5","v":3.5030366028218275E-2},{"$f":"'Population at Risk'!AV27/'Population at Risk'!AV$5","v":3.8066283925788529E-2},{"$f":"'Population at Risk'!AW27/'Population at Risk'!AW$5","v":4.1446906126183951E-2},{"$f":"'Population at Risk'!Q27/'Population at Risk'!Q$5","v":3.9596676986966922E-2},25]
[null,"Female 30-34",{"$f":"'Population at Risk'!R28/'Population at Risk'!R$5","v":3.6777288642726558E-2},{"$f":"'Population at Risk'!AX28/'Population at Risk'!AX$5","v":4.1240253882978022E-2},{"$f":"'Population at Risk'!S28/'Population at Risk'!S$5","v":5.1983419563049922E-2},{"$f":"'Population at Risk'!T28/'Population at Risk'!T$5","v":6.5591148598138832E-2},{"$f":"'Population at Risk'!U28/'Population at Risk'!U$5","v":3.5408744009516872E-2},{"$f":"'Population at Risk'!D28/'Population at Risk'!D$5","v":5.3094664009854957E-2},{"$f":"'Population at Risk'!E28/'Population at Risk'!E$5","v":4.7619997508686646E-2},{"$f":"'Population at Risk'!BC28/'Population at Risk'!BC$5","v":3.5408744009516872E-2},{"$f":"'Population at Risk'!V28/'Population at Risk'!V$5","v":4.6897113455708607E-2},{"$f":"'Population at Risk'!F28/'Population at Risk'!F$5","v":4.2075366939664301E-2},{"$f":"'Population at Risk'!W28/'Population at Risk'!W$5","v":4.3589065017282824E-2},{"$f":"'Population at Risk'!X28/'Population at Risk'!X$5","v":4.3589065017282824E-2},{"$f":"'Population at Risk'!Y28/'Population at Risk'!Y$5","v":4.4423097135809879E-2},{"$f":"'Population at Risk'!Z28/'Population at Risk'!Z$5","v":6.0918455657003365E-2},{"$f":"'Population at Risk'!AA28/'Population at Risk'!AA$5","v":5.1266541015612233E-2},{"$f":"'Population at Risk'!AB28/'Population at Risk'!AB$5","v":5.1925250970354046E-2},{"$f":"'Population at Risk'!AY28/'Population at Risk'!AY$5","v":4.5701696110595269E-2},{"$f":"'Population at Risk'!AC28/'Population at Risk'!AC$5","v":5.3438777952750122E-2},{"$f":"'Population at Risk'!AD28/'Population at Risk'!AD$5","v":4.0734576240298963E-2},{"$f":"'Population at Risk'!AE28/'Population at Risk'!AE$5","v":4.3504669017153996E-2},{"$f":"'Population at Risk'!G28/'Population at Risk'!G$5","v":3.3482994097769329E-2},{"$f":"'Population at Risk'!AF28/'Population at Risk'!AF$5","v":4.3291756829830122E-2},{"$f":"'Population at Risk'!H28/'Population at Risk'!H$5","v":4.0811955439665981E-2},{"$f":"'Population at Risk'!AG28/'Population at Risk'!AG$5","v":4.3504669017153996E-2},{"$f":"'Population at Risk'!AZ28/'Population at Risk'!AZ$5","v":4.7619432712127326E-2},{"$f":"'Population at Risk'!I28/'Population at Risk'!I$5","v":3.7543649748974853E-2},{"$f":"'Population at Risk'!J28/'Population at Risk'!J$5","v":4.1658053168896481E-2},{"$f":"'Population at Risk'!K28/'Population at Risk'!K$5","v":4.2339215964915113E-2},{"$f":"'Population at Risk'!AH28/'Population at Risk'!AH$5","v":4.7314071244515615E-2},{"$f":"'Population at Risk'!AI28/'Population at Risk'!AI$5","v":5.751194916302857E-2},{"$f":"'Population at Risk'!BA28/'Population at Risk'!BA$5","v":4.8880928989349412E-2},{"$f":"'Population at Risk'!L28/'Population at Risk'!L$5","v":3.616194030743114E-2},{"$f":"'Population at Risk'!M28/'Population at Risk'!M$5","v":3.616194030743114E-2},{"$f":"'Population at Risk'!AJ28/'Population at Risk'!AJ$5","v":4.596013904229914E-2},{"$f":"'Population at Risk'!AK28/'Population at Risk'!AK$5","v":4.5980913562411491E-2},{"$f":"'Population at Risk'!AL28/'Population at Risk'!AL$5","v":4.0942648675526695E-2},{"$f":"'Population at Risk'!AM28/'Population at Risk'!AM$5","v":4.8720925081118437E-2},{"$f":"'Population at Risk'!N28/'Population at Risk'!N$5","v":5.3399983127830439E-2},{"$f":"'Population at Risk'!AN28/'Population at Risk'!AN$5","v":4.1313147981621716E-2},{"$f":"'Population at Risk'!AO28/'Population at Risk'!AO$5","v":4.1313147981621716E-2},{"$f":"'Population at Risk'!AP28/'Population at Risk'!AP$5","v":4.5007244083831728E-2},{"$f":"'Population at Risk'!C28/'Population at Risk'!C$5","v":5.8548466763936415E-2},{"$f":"'Population at Risk'!AQ28/'Population at Risk'!AQ$5","v":4.6835421340891852E-2},{"$f":"'Population at Risk'!O28/'Population at Risk'!O$5","v":4.3132376226585757E-2},{"$f":"'Population at Risk'!AR28/'Population at Risk'!AR$5","v":4.8921270232999532E-2},{"$f":"'Population at Risk'!AS28/'Population at Risk'!AS$5","v":3.7543649748974853E-2},{"$f":"'Population at Risk'!AT28/'Population at Risk'!AT$5","v":4.3756338520200264E-2},{"$f":"'Population at Risk'!AU28/'Population at Risk'!AU$5","v":4.3756338520200264E-2},{"$f":"'Population at Risk'!BB28/'Population at Risk'!BB$5","v":4.995772840368834E-2},{"$f":"'Population at Risk'!P28/'Population at Risk'!P$5","v":3.3839124793553693E-2},{"$f":"'Population at Risk'!AV28/'Population at Risk'!AV$5","v":3.7934588878938851E-2},{"$f":"'Population at Risk'!AW28/'Population at Risk'!AW$5","v":4.5708914208863478E-2},{"$f":"'Population at Risk'!Q28/'Population at Risk'!Q$5","v":4.1643641863479443E-2},26]
[null,"Female 35-39",{"$f":"'Population at Risk'!R29/'Population at Risk'!R$5","v":4.6303920964707541E-2},{"$f":"'Population at Risk'!AX29/'Population at Risk'!AX$5","v":4.1119345487348052E-2},{"$f":"'Population at Risk'!S29/'Population at Risk'!S$5","v":4.6354418073892019E-2},{"$f":"'Population at Risk'!T29/'Population at Risk'!T$5","v":5.1261474608166838E-2},{"$f":"'Population at Risk'!U29/'Population at Risk'!U$5","v":4.0178724293106385E-2},{"$f":"'Population at Risk'!D29/'Population at Risk'!D$5","v":4.6496023250180006E-2},{"$f":"'Population at Risk'!E29/'Population at Risk'!E$5","v":4.8505086259892596E-2},{"$f":"'Population at Risk'!BC29/'Population at Risk'!BC$5","v":4.0178724293106385E-2},{"$f":"'Population at Risk'!V29/'Population at Risk'!V$5","v":4.4977197267788892E-2},{"$f":"'Population at Risk'!F29/'Population at Risk'!F$5","v":4.2141388834747634E-2},{"$f":"'Population at Risk'!W29/'Population at Risk'!W$5","v":4.3199056733695292E-2},{"$f":"'Population at Risk'!X29/'Population at Risk'!X$5","v":4.3199056733695292E-2},{"$f":"'Population at Risk'!Y29/'Population at Risk'!Y$5","v":4.34932520578327E-2},{"$f":"'Population at Risk'!Z29/'Population at Risk'!Z$5","v":4.851444081722122E-2},{"$f":"'Population at Risk'!AA29/'Population at Risk'!AA$5","v":4.6210975259843579E-2},{"$f":"'Population at Risk'!AB29/'Population at Risk'!AB$5","v":4.5462440701995746E-2},{"$f":"'Population at Risk'!AY29/'Population at Risk'!AY$5","v":4.249988959998717E-2},{"$f":"'Population at Risk'!AC29/'Population at Risk'!AC$5","v":4.6394673579784836E-2},{"$f":"'Population at Risk'!AD29/'Population at Risk'!AD$5","v":4.0345127103157165E-2},{"$f":"'Population at Risk'!AE29/'Population at Risk'!AE$5","v":4.2185078137120732E-2},{"$f":"'Population at Risk'!G29/'Population at Risk'!G$5","v":3.5528481186998577E-2},{"$f":"'Population at Risk'!AF29/'Population at Risk'!AF$5","v":4.2437216697949399E-2},{"$f":"'Population at Risk'!H29/'Population at Risk'!H$5","v":3.9920913283206377E-2},{"$f":"'Population at Risk'!AG29/'Population at Risk'!AG$5","v":4.2185078137120732E-2},{"$f":"'Population at Risk'!AZ29/'Population at Risk'!AZ$5","v":4.186522204863629E-2},{"$f":"'Population at Risk'!I29/'Population at Risk'!I$5","v":3.689993693585291E-2},{"$f":"'Population at Risk'!J29/'Population at Risk'!J$5","v":4.1834744910156589E-2},{"$f":"'Population at Risk'!K29/'Population at Risk'!K$5","v":4.3001102746405923E-2},{"$f":"'Population at Risk'!AH29/'Population at Risk'!AH$5","v":4.587672900698056E-2},{"$f":"'Population at Risk'!AI29/'Population at Risk'!AI$5","v":4.8943509738644544E-2},{"$f":"'Population at Risk'!BA29/'Population at Risk'!BA$5","v":4.3166372980222224E-2},{"$f":"'Population at Risk'!L29/'Population at Risk'!L$5","v":3.4540762844594092E-2},{"$f":"'Population at Risk'!M29/'Population at Risk'!M$5","v":3.4540762844594092E-2},{"$f":"'Population at Risk'!AJ29/'Population at Risk'!AJ$5","v":4.5818193918086524E-2},{"$f":"'Population at Risk'!AK29/'Population at Risk'!AK$5","v":4.0208554181292648E-2},{"$f":"'Population at Risk'!AL29/'Population at Risk'!AL$5","v":4.0280910303801154E-2},{"$f":"'Population at Risk'!AM29/'Population at Risk'!AM$5","v":4.6799169281930703E-2},{"$f":"'Population at Risk'!N29/'Population at Risk'!N$5","v":4.2634912750624192E-2},{"$f":"'Population at Risk'!AN29/'Population at Risk'!AN$5","v":3.9564641232736023E-2},{"$f":"'Population at Risk'!AO29/'Population at Risk'!AO$5","v":3.9564641232736023E-2},{"$f":"'Population at Risk'!AP29/'Population at Risk'!AP$5","v":4.0689202176360781E-2},{"$f":"'Population at Risk'!C29/'Population at Risk'!C$5","v":4.4494616703652373E-2},{"$f":"'Population at Risk'!AQ29/'Population at Risk'!AQ$5","v":4.4290939655449404E-2},{"$f":"'Population at Risk'!O29/'Population at Risk'!O$5","v":4.1387611243006314E-2},{"$f":"'Population at Risk'!AR29/'Population at Risk'!AR$5","v":4.4530562465062755E-2},{"$f":"'Population at Risk'!AS29/'Population at Risk'!AS$5","v":3.689993693585291E-2},{"$f":"'Population at Risk'!AT29/'Population at Risk'!AT$5","v":4.7582460081814201E-2},{"$f":"'Population at Risk'!AU29/'Population at Risk'!AU$5","v":4.7582460081814201E-2},{"$f":"'Population at Risk'!BB29/'Population at Risk'!BB$5","v":4.6845044880144703E-2},{"$f":"'Population at Risk'!P29/'Population at Risk'!P$5","v":4.0843555576599196E-2},{"$f":"'Population at Risk'!AV29/'Population at Risk'!AV$5","v":3.7734158939008576E-2},{"$f":"'Population at Risk'!AW29/'Population at Risk'!AW$5","v":4.4824266086681379E-2},{"$f":"'Population at Risk'!Q29/'Population at Risk'!Q$5","v":4.4089353132002809E-2},27]
[null,"Female 40-44",{"$f":"'Population at Risk'!R30/'Population at Risk'!R$5","v":5.0031282232122429E-2},{"$f":"'Population at Risk'!AX30/'Population at Risk'!AX$5","v":4.5593531941563806E-2},{"$f":"'Population at Risk'!S30/'Population at Risk'!S$5","v":4.6124148488658402E-2},{"$f":"'Population at Risk'!T30/'Population at Risk'!T$5","v":4.3744250003034404E-2},{"$f":"'Population at Risk'!U30/'Population at Risk'!U$5","v":4.4184590730211602E-2},{"$f":"'Population at Risk'!D30/'Population at Risk'!D$5","v":4.5972051672946011E-2},{"$f":"'Population at Risk'!E30/'Population at Risk'!E$5","v":5.1739986903046924E-2},{"$f":"'Population at Risk'!BC30/'Population at Risk'!BC$5","v":4.4184590730211602E-2},{"$f":"'Population at Risk'!V30/'Population at Risk'!V$5","v":5.0727743791100705E-2},{"$f":"'Population at Risk'!F30/'Population at Risk'!F$5","v":4.6409490230389365E-2},{"$f":"'Population at Risk'!W30/'Population at Risk'!W$5","v":4.5875524180656754E-2},{"$f":"'Population at Risk'!X30/'Population at Risk'!X$5","v":4.5875524180656754E-2},{"$f":"'Population at Risk'!Y30/'Population at Risk'!Y$5","v":4.8784922724105589E-2},{"$f":"'Population at Risk'!Z30/'Population at Risk'!Z$5","v":4.2817173514618688E-2},{"$f":"'Population at Risk'!AA30/'Population at Risk'!AA$5","v":4.5592049201648124E-2},{"$f":"'Population at Risk'!AB30/'Population at Risk'!AB$5","v":4.6424206122608433E-2},{"$f":"'Population at Risk'!AY30/'Population at Risk'!AY$5","v":4.4229092957993821E-2},{"$f":"'Population at Risk'!AC30/'Population at Risk'!AC$5","v":4.4254982365917871E-2},{"$f":"'Population at Risk'!AD30/'Population at Risk'!AD$5","v":4.5730741349465247E-2},{"$f":"'Population at Risk'!AE30/'Population at Risk'!AE$5","v":4.6692742528237546E-2},{"$f":"'Population at Risk'!G30/'Population at Risk'!G$5","v":4.321240310918513E-2},{"$f":"'Population at Risk'!AF30/'Population at Risk'!AF$5","v":4.5612840542159014E-2},{"$f":"'Population at Risk'!H30/'Population at Risk'!H$5","v":4.599088382388003E-2},{"$f":"'Population at Risk'!AG30/'Population at Risk'!AG$5","v":4.6692742528237546E-2},{"$f":"'Population at Risk'!AZ30/'Population at Risk'!AZ$5","v":4.2734548346016463E-2},{"$f":"'Population at Risk'!I30/'Population at Risk'!I$5","v":4.7762411621453046E-2},{"$f":"'Population at Risk'!J30/'Population at Risk'!J$5","v":4.6613560463121415E-2},{"$f":"'Population at Risk'!K30/'Population at Risk'!K$5","v":4.8276573070324694E-2},{"$f":"'Population at Risk'!AH30/'Population at Risk'!AH$5","v":4.8024894422079203E-2},{"$f":"'Population at Risk'!AI30/'Population at Risk'!AI$5","v":4.6025735502452696E-2},{"$f":"'Population at Risk'!BA30/'Population at Risk'!BA$5","v":4.4708031907524495E-2},{"$f":"'Population at Risk'!L30/'Population at Risk'!L$5","v":4.063921374339613E-2},{"$f":"'Population at Risk'!M30/'Population at Risk'!M$5","v":4.063921374339613E-2},{"$f":"'Population at Risk'!AJ30/'Population at Risk'!AJ$5","v":4.5717748343399804E-2},{"$f":"'Population at Risk'!AK30/'Population at Risk'!AK$5","v":4.8722588745777382E-2},{"$f":"'Population at Risk'!AL30/'Population at Risk'!AL$5","v":4.781909512215337E-2},{"$f":"'Population at Risk'!AM30/'Population at Risk'!AM$5","v":4.8964916135087064E-2},{"$f":"'Population at Risk'!N30/'Population at Risk'!N$5","v":3.7823230014506638E-2},{"$f":"'Population at Risk'!AN30/'Population at Risk'!AN$5","v":4.6709412325304844E-2},{"$f":"'Population at Risk'!AO30/'Population at Risk'!AO$5","v":4.6709412325304844E-2},{"$f":"'Population at Risk'!AP30/'Population at Risk'!AP$5","v":4.579935347024186E-2},{"$f":"'Population at Risk'!C30/'Population at Risk'!C$5","v":4.0226097825971995E-2},{"$f":"'Population at Risk'!AQ30/'Population at Risk'!AQ$5","v":4.6174294947669635E-2},{"$f":"'Population at Risk'!O30/'Population at Risk'!O$5","v":4.6572498464138093E-2},{"$f":"'Population at Risk'!AR30/'Population at Risk'!AR$5","v":4.5669548411102531E-2},{"$f":"'Population at Risk'!AS30/'Population at Risk'!AS$5","v":4.7762411621453046E-2},{"$f":"'Population at Risk'!AT30/'Population at Risk'!AT$5","v":4.8999644590932034E-2},{"$f":"'Population at Risk'!AU30/'Population at Risk'!AU$5","v":4.8999644590932034E-2},{"$f":"'Population at Risk'!BB30/'Population at Risk'!BB$5","v":5.1559395373681989E-2},{"$f":"'Population at Risk'!P30/'Population at Risk'!P$5","v":4.5568376085629921E-2},{"$f":"'Population at Risk'!AV30/'Population at Risk'!AV$5","v":4.288757955166498E-2},{"$f":"'Population at Risk'!AW30/'Population at Risk'!AW$5","v":4.6952371870664832E-2},{"$f":"'Population at Risk'!Q30/'Population at Risk'!Q$5","v":4.7428598290632742E-2},28]
[null,"Female 45-49",{"$f":"'Population at Risk'!R31/'Population at Risk'!R$5","v":6.0476718632904936E-2},{"$f":"'Population at Risk'!AX31/'Population at Risk'!AX$5","v":5.5921128375027364E-2},{"$f":"'Population at Risk'!S31/'Population at Risk'!S$5","v":5.2166235182287878E-2},{"$f":"'Population at Risk'!T31/'Population at Risk'!T$5","v":4.3618073639951349E-2},{"$f":"'Population at Risk'!U31/'Population at Risk'!U$5","v":5.3361449785453666E-2},{"$f":"'Population at Risk'!D31/'Population at Risk'!D$5","v":5.0853379618752095E-2},{"$f":"'Population at Risk'!E31/'Population at Risk'!E$5","v":6.0634090251165694E-2},{"$f":"'Population at Risk'!BC31/'Population at Risk'!BC$5","v":5.3361449785453666E-2},{"$f":"'Population at Risk'!V31/'Population at Risk'!V$5","v":5.5627375969181651E-2},{"$f":"'Population at Risk'!F31/'Population at Risk'!F$5","v":5.4274128865902584E-2},{"$f":"'Population at Risk'!W31/'Population at Risk'!W$5","v":5.4816088466900698E-2},{"$f":"'Population at Risk'!X31/'Population at Risk'!X$5","v":5.4816088466900698E-2},{"$f":"'Population at Risk'!Y31/'Population at Risk'!Y$5","v":5.6223705578182036E-2},{"$f":"'Population at Risk'!Z31/'Population at Risk'!Z$5","v":4.9227722139364431E-2},{"$f":"'Population at Risk'!AA31/'Population at Risk'!AA$5","v":5.4448203735290621E-2},{"$f":"'Population at Risk'!AB31/'Population at Risk'!AB$5","v":5.1739735830132812E-2},{"$f":"'Population at Risk'!AY31/'Population at Risk'!AY$5","v":5.277840531556556E-2},{"$f":"'Population at Risk'!AC31/'Population at Risk'!AC$5","v":5.3235928235061625E-2},{"$f":"'Population at Risk'!AD31/'Population at Risk'!AD$5","v":5.5749928866306767E-2},{"$f":"'Population at Risk'!AE31/'Population at Risk'!AE$5","v":5.6530731580826755E-2},{"$f":"'Population at Risk'!G31/'Population at Risk'!G$5","v":5.3705934142101105E-2},{"$f":"'Population at Risk'!AF31/'Population at Risk'!AF$5","v":5.9976342590926456E-2},{"$f":"'Population at Risk'!H31/'Population at Risk'!H$5","v":5.6608258396856598E-2},{"$f":"'Population at Risk'!AG31/'Population at Risk'!AG$5","v":5.6530731580826755E-2},{"$f":"'Population at Risk'!AZ31/'Population at Risk'!AZ$5","v":5.0928702556758951E-2},{"$f":"'Population at Risk'!I31/'Population at Risk'!I$5","v":5.9919335783716721E-2},{"$f":"'Population at Risk'!J31/'Population at Risk'!J$5","v":5.6890183634287127E-2},{"$f":"'Population at Risk'!K31/'Population at Risk'!K$5","v":5.8470091528200492E-2},{"$f":"'Population at Risk'!AH31/'Population at Risk'!AH$5","v":5.6653986256975153E-2},{"$f":"'Population at Risk'!AI31/'Population at Risk'!AI$5","v":5.0015624925549139E-2},{"$f":"'Population at Risk'!BA31/'Population at Risk'!BA$5","v":5.7799670473392503E-2},{"$f":"'Population at Risk'!L31/'Population at Risk'!L$5","v":5.4490745981438729E-2},{"$f":"'Population at Risk'!M31/'Population at Risk'!M$5","v":5.4490745981438729E-2},{"$f":"'Population at Risk'!AJ31/'Population at Risk'!AJ$5","v":5.5798687588511246E-2},{"$f":"'Population at Risk'!AK31/'Population at Risk'!AK$5","v":5.6245244325506948E-2},{"$f":"'Population at Risk'!AL31/'Population at Risk'!AL$5","v":5.7770602240386999E-2},{"$f":"'Population at Risk'!AM31/'Population at Risk'!AM$5","v":5.6754633696041661E-2},{"$f":"'Population at Risk'!N31/'Population at Risk'!N$5","v":4.3567129587949657E-2},{"$f":"'Population at Risk'!AN31/'Population at Risk'!AN$5","v":5.6690732675794872E-2},{"$f":"'Population at Risk'!AO31/'Population at Risk'!AO$5","v":5.6690732675794872E-2},{"$f":"'Population at Risk'!AP31/'Population at Risk'!AP$5","v":5.7288515953293678E-2},{"$f":"'Population at Risk'!C31/'Population at Risk'!C$5","v":4.1109942904835779E-2},{"$f":"'Population at Risk'!AQ31/'Population at Risk'!AQ$5","v":5.83829889060197E-2},{"$f":"'Population at Risk'!O31/'Population at Risk'!O$5","v":5.8357703163264378E-2},{"$f":"'Population at Risk'!AR31/'Population at Risk'!AR$5","v":5.3726666017255148E-2},{"$f":"'Population at Risk'!AS31/'Population at Risk'!AS$5","v":5.9919335783716721E-2},{"$f":"'Population at Risk'!AT31/'Population at Risk'!AT$5","v":5.8439985128093876E-2},{"$f":"'Population at Risk'!AU31/'Population at Risk'!AU$5","v":5.8439985128093876E-2},{"$f":"'Population at Risk'!BB31/'Population at Risk'!BB$5","v":5.8840749356751001E-2},{"$f":"'Population at Risk'!P31/'Population at Risk'!P$5","v":5.7853406051409033E-2},{"$f":"'Population at Risk'!AV31/'Population at Risk'!AV$5","v":5.302751916364417E-2},{"$f":"'Population at Risk'!AW31/'Population at Risk'!AW$5","v":5.6539152049799729E-2},{"$f":"'Population at Risk'!Q31/'Population at Risk'!Q$5","v":6.0354129322795935E-2},29]
[null,"Female 50-54",{"$f":"'Population at Risk'!R32/'Population at Risk'!R$5","v":6.1518096683295879E-2},{"$f":"'Population at Risk'!AX32/'Population at Risk'!AX$5","v":5.6920543837367402E-2},{"$f":"'Population at Risk'!S32/'Population at Risk'!S$5","v":5.2208155257219967E-2},{"$f":"'Population at Risk'!T32/'Population at Risk'!T$5","v":4.2995151843477929E-2},{"$f":"'Population at Risk'!U32/'Population at Risk'!U$5","v":5.63004914138154E-2},{"$f":"'Population at Risk'!D32/'Population at Risk'!D$5","v":5.223646598409519E-2},{"$f":"'Population at Risk'!E32/'Population at Risk'!E$5","v":6.0715452844912962E-2},{"$f":"'Population at Risk'!BC32/'Population at Risk'!BC$5","v":5.63004914138154E-2},{"$f":"'Population at Risk'!V32/'Population at Risk'!V$5","v":5.5579536628424235E-2},{"$f":"'Population at Risk'!F32/'Population at Risk'!F$5","v":5.767237894726069E-2},{"$f":"'Population at Risk'!W32/'Population at Risk'!W$5","v":5.6823398131566005E-2},{"$f":"'Population at Risk'!X32/'Population at Risk'!X$5","v":5.6823398131566005E-2},{"$f":"'Population at Risk'!Y32/'Population at Risk'!Y$5","v":5.6410906884232587E-2},{"$f":"'Population at Risk'!Z32/'Population at Risk'!Z$5","v":5.1403986591325931E-2},{"$f":"'Population at Risk'!AA32/'Population at Risk'!AA$5","v":5.5988001262765763E-2},{"$f":"'Population at Risk'!AB32/'Population at Risk'!AB$5","v":5.3210259443917829E-2},{"$f":"'Population at Risk'!AY32/'Population at Risk'!AY$5","v":5.6000394475981909E-2},{"$f":"'Population at Risk'!AC32/'Population at Risk'!AC$5","v":5.5149463902540802E-2},{"$f":"'Population at Risk'!AD32/'Population at Risk'!AD$5","v":6.0537225888968468E-2},{"$f":"'Population at Risk'!AE32/'Population at Risk'!AE$5","v":6.0234853041319349E-2},{"$f":"'Population at Risk'!G32/'Population at Risk'!G$5","v":6.1328781161311199E-2},{"$f":"'Population at Risk'!AF32/'Population at Risk'!AF$5","v":6.276152030673586E-2},{"$f":"'Population at Risk'!H32/'Population at Risk'!H$5","v":5.9203849870849201E-2},{"$f":"'Population at Risk'!AG32/'Population at Risk'!AG$5","v":6.0234853041319349E-2},{"$f":"'Population at Risk'!AZ32/'Population at Risk'!AZ$5","v":5.5253314572394144E-2},{"$f":"'Population at Risk'!I32/'Population at Risk'!I$5","v":6.2337495945426279E-2},{"$f":"'Population at Risk'!J32/'Population at Risk'!J$5","v":5.734007428365713E-2},{"$f":"'Population at Risk'!K32/'Population at Risk'!K$5","v":5.8024059492443332E-2},{"$f":"'Population at Risk'!AH32/'Population at Risk'!AH$5","v":5.7513752672090045E-2},{"$f":"'Population at Risk'!AI32/'Population at Risk'!AI$5","v":4.8890613171914669E-2},{"$f":"'Population at Risk'!BA32/'Population at Risk'!BA$5","v":6.0248371267814162E-2},{"$f":"'Population at Risk'!L32/'Population at Risk'!L$5","v":5.9246166305254595E-2},{"$f":"'Population at Risk'!M32/'Population at Risk'!M$5","v":5.9246166305254595E-2},{"$f":"'Population at Risk'!AJ32/'Population at Risk'!AJ$5","v":5.5362724699257973E-2},{"$f":"'Population at Risk'!AK32/'Population at Risk'!AK$5","v":5.8160227244263334E-2},{"$f":"'Population at Risk'!AL32/'Population at Risk'!AL$5","v":6.0920947211570632E-2},{"$f":"'Population at Risk'!AM32/'Population at Risk'!AM$5","v":5.7076791425108082E-2},{"$f":"'Population at Risk'!N32/'Population at Risk'!N$5","v":4.9803569690688519E-2},{"$f":"'Population at Risk'!AN32/'Population at Risk'!AN$5","v":6.1107134830920076E-2},{"$f":"'Population at Risk'!AO32/'Population at Risk'!AO$5","v":6.1107134830920076E-2},{"$f":"'Population at Risk'!AP32/'Population at Risk'!AP$5","v":6.0008442080744642E-2},{"$f":"'Population at Risk'!C32/'Population at Risk'!C$5","v":4.3789792221687884E-2},{"$f":"'Population at Risk'!AQ32/'Population at Risk'!AQ$5","v":5.8569140986154331E-2},{"$f":"'Population at Risk'!O32/'Population at Risk'!O$5","v":5.8951318173777925E-2},{"$f":"'Population at Risk'!AR32/'Population at Risk'!AR$5","v":5.5399879265098914E-2},{"$f":"'Population at Risk'!AS32/'Population at Risk'!AS$5","v":6.2337495945426279E-2},{"$f":"'Population at Risk'!AT32/'Population at Risk'!AT$5","v":5.9801237887923311E-2},{"$f":"'Population at Risk'!AU32/'Population at Risk'!AU$5","v":5.9801237887923311E-2},{"$f":"'Population at Risk'!BB32/'Population at Risk'!BB$5","v":5.6952338415647986E-2},{"$f":"'Population at Risk'!P32/'Population at Risk'!P$5","v":6.0426442308398144E-2},{"$f":"'Population at Risk'!AV32/'Population at Risk'!AV$5","v":5.7219989704890083E-2},{"$f":"'Population at Risk'!AW32/'Population at Risk'!AW$5","v":5.8012305827828008E-2},{"$f":"'Population at Risk'!Q32/'Population at Risk'!Q$5","v":5.7503919349676573E-2},30]
[null,"Female 55-59",{"$f":"'Population at Risk'!R33/'Population at Risk'!R$5","v":4.2695924678140491E-2},{"$f":"'Population at Risk'!AX33/'Population at Risk'!AX$5","v":3.7190946436293462E-2},{"$f":"'Population at Risk'!S33/'Population at Risk'!S$5","v":3.7909084640245727E-2},{"$f":"'Population at Risk'!T33/'Population at Risk'!T$5","v":3.1281869235810424E-2},{"$f":"'Population at Risk'!U33/'Population at Risk'!U$5","v":4.158165593351134E-2},{"$f":"'Population at Risk'!D33/'Population at Risk'!D$5","v":3.5191112756234766E-2},{"$f":"'Population at Risk'!E33/'Population at Risk'!E$5","v":3.7106036192954647E-2},{"$f":"'Population at Risk'!BC33/'Population at Risk'!BC$5","v":4.158165593351134E-2},{"$f":"'Population at Risk'!V33/'Population at Risk'!V$5","v":4.0700899528384793E-2},{"$f":"'Population at Risk'!F33/'Population at Risk'!F$5","v":4.1396893073503055E-2},{"$f":"'Population at Risk'!W33/'Population at Risk'!W$5","v":4.0420927681461653E-2},{"$f":"'Population at Risk'!X33/'Population at Risk'!X$5","v":4.0420927681461653E-2},{"$f":"'Population at Risk'!Y33/'Population at Risk'!Y$5","v":3.9880519849932357E-2},{"$f":"'Population at Risk'!Z33/'Population at Risk'!Z$5","v":3.3841901938359675E-2},{"$f":"'Population at Risk'!AA33/'Population at Risk'!AA$5","v":3.9378419706191763E-2},{"$f":"'Population at Risk'!AB33/'Population at Risk'!AB$5","v":3.5682500633770375E-2},{"$f":"'Population at Risk'!AY33/'Population at Risk'!AY$5","v":3.9096921721133916E-2},{"$f":"'Population at Risk'!AC33/'Population at Risk'!AC$5","v":3.7782420992905887E-2},{"$f":"'Population at Risk'!AD33/'Population at Risk'!AD$5","v":4.2580182433922982E-2},{"$f":"'Population at Risk'!AE33/'Population at Risk'!AE$5","v":4.2191860162118011E-2},{"$f":"'Population at Risk'!G33/'Population at Risk'!G$5","v":4.3596737141149956E-2},{"$f":"'Population at Risk'!AF33/'Population at Risk'!AF$5","v":4.3169528869493788E-2},{"$f":"'Population at Risk'!H33/'Population at Risk'!H$5","v":4.3379587540941025E-2},{"$f":"'Population at Risk'!AG33/'Population at Risk'!AG$5","v":4.2191860162118011E-2},{"$f":"'Population at Risk'!AZ33/'Population at Risk'!AZ$5","v":3.7895057988840707E-2},{"$f":"'Population at Risk'!I33/'Population at Risk'!I$5","v":4.2968901433732033E-2},{"$f":"'Population at Risk'!J33/'Population at Risk'!J$5","v":3.8963635889936447E-2},{"$f":"'Population at Risk'!K33/'Population at Risk'!K$5","v":4.1853755967719092E-2},{"$f":"'Population at Risk'!AH33/'Population at Risk'!AH$5","v":4.2282401569829133E-2},{"$f":"'Population at Risk'!AI33/'Population at Risk'!AI$5","v":3.6161006742940607E-2},{"$f":"'Population at Risk'!BA33/'Population at Risk'!BA$5","v":4.4208855933927448E-2},{"$f":"'Population at Risk'!L33/'Population at Risk'!L$5","v":4.4760520037105879E-2},{"$f":"'Population at Risk'!M33/'Population at Risk'!M$5","v":4.4760520037105879E-2},{"$f":"'Population at Risk'!AJ33/'Population at Risk'!AJ$5","v":4.5718652828913769E-2},{"$f":"'Population at Risk'!AK33/'Population at Risk'!AK$5","v":3.8180313847390041E-2},{"$f":"'Population at Risk'!AL33/'Population at Risk'!AL$5","v":4.2380259125907239E-2},{"$f":"'Population at Risk'!AM33/'Population at Risk'!AM$5","v":4.0894888662149249E-2},{"$f":"'Population at Risk'!N33/'Population at Risk'!N$5","v":3.5718803821022806E-2},{"$f":"'Population at Risk'!AN33/'Population at Risk'!AN$5","v":3.8551303413395029E-2},{"$f":"'Population at Risk'!AO33/'Population at Risk'!AO$5","v":3.8551303413395029E-2},{"$f":"'Population at Risk'!AP33/'Population at Risk'!AP$5","v":3.7723502452171792E-2},{"$f":"'Population at Risk'!C33/'Population at Risk'!C$5","v":3.3283487020345746E-2},{"$f":"'Population at Risk'!AQ33/'Population at Risk'!AQ$5","v":4.0613132701040576E-2},{"$f":"'Population at Risk'!O33/'Population at Risk'!O$5","v":4.1839623217665385E-2},{"$f":"'Population at Risk'!AR33/'Population at Risk'!AR$5","v":3.9197853989609774E-2},{"$f":"'Population at Risk'!AS33/'Population at Risk'!AS$5","v":4.2968901433732033E-2},{"$f":"'Population at Risk'!AT33/'Population at Risk'!AT$5","v":3.1799268073839496E-2},{"$f":"'Population at Risk'!AU33/'Population at Risk'!AU$5","v":3.1799268073839496E-2},{"$f":"'Population at Risk'!BB33/'Population at Risk'!BB$5","v":4.0224574274473651E-2},{"$f":"'Population at Risk'!P33/'Population at Risk'!P$5","v":4.7902398171631354E-2},{"$f":"'Population at Risk'!AV33/'Population at Risk'!AV$5","v":4.6499942250000634E-2},{"$f":"'Population at Risk'!AW33/'Population at Risk'!AW$5","v":4.3865491474320249E-2},{"$f":"'Population at Risk'!Q33/'Population at Risk'!Q$5","v":4.4312093004594939E-2},31]
[null,"Female 60-64",{"$f":"'Population at Risk'!R34/'Population at Risk'!R$5","v":3.7253375175531227E-2},{"$f":"'Population at Risk'!AX34/'Population at Risk'!AX$5","v":3.1450736331369203E-2},{"$f":"'Population at Risk'!S34/'Population at Risk'!S$5","v":3.2375524967117042E-2},{"$f":"'Population at Risk'!T34/'Population at Risk'!T$5","v":2.560255620089643E-2},{"$f":"'Population at Risk'!U34/'Population at Risk'!U$5","v":4.2532676943675615E-2},{"$f":"'Population at Risk'!D34/'Population at Risk'!D$5","v":3.1433355678062838E-2},{"$f":"'Population at Risk'!E34/'Population at Risk'!E$5","v":3.4309278281941309E-2},{"$f":"'Population at Risk'!BC34/'Population at Risk'!BC$5","v":4.2532676943675615E-2},{"$f":"'Population at Risk'!V34/'Population at Risk'!V$5","v":3.6188769986692598E-2},{"$f":"'Population at Risk'!F34/'Population at Risk'!F$5","v":3.6937973457945465E-2},{"$f":"'Population at Risk'!W34/'Population at Risk'!W$5","v":3.5964361664123951E-2},{"$f":"'Population at Risk'!X34/'Population at Risk'!X$5","v":3.5964361664123951E-2},{"$f":"'Population at Risk'!Y34/'Population at Risk'!Y$5","v":3.4894401424795288E-2},{"$f":"'Population at Risk'!Z34/'Population at Risk'!Z$5","v":2.6303690712895445E-2},{"$f":"'Population at Risk'!AA34/'Population at Risk'!AA$5","v":3.265717849217737E-2},{"$f":"'Population at Risk'!AB34/'Population at Risk'!AB$5","v":3.2135611890137014E-2},{"$f":"'Population at Risk'!AY34/'Population at Risk'!AY$5","v":3.4435430710940552E-2},{"$f":"'Population at Risk'!AC34/'Population at Risk'!AC$5","v":3.0334593280263254E-2},{"$f":"'Population at Risk'!AD34/'Population at Risk'!AD$5","v":3.9498333661295092E-2},{"$f":"'Population at Risk'!AE34/'Population at Risk'!AE$5","v":3.9029598734749926E-2},{"$f":"'Population at Risk'!G34/'Population at Risk'!G$5","v":4.0725393581928483E-2},{"$f":"'Population at Risk'!AF34/'Population at Risk'!AF$5","v":3.4704641822037668E-2},{"$f":"'Population at Risk'!H34/'Population at Risk'!H$5","v":3.9193082573354972E-2},{"$f":"'Population at Risk'!AG34/'Population at Risk'!AG$5","v":3.9029598734749926E-2},{"$f":"'Population at Risk'!AZ34/'Population at Risk'!AZ$5","v":3.3047546730904119E-2},{"$f":"'Population at Risk'!I34/'Population at Risk'!I$5","v":3.9007024921544051E-2},{"$f":"'Population at Risk'!J34/'Population at Risk'!J$5","v":3.3447771524155429E-2},{"$f":"'Population at Risk'!K34/'Population at Risk'!K$5","v":3.6703655680767784E-2},{"$f":"'Population at Risk'!AH34/'Population at Risk'!AH$5","v":3.6883212809125335E-2},{"$f":"'Population at Risk'!AI34/'Population at Risk'!AI$5","v":2.9953787359793961E-2},{"$f":"'Population at Risk'!BA34/'Population at Risk'!BA$5","v":3.7595935888891235E-2},{"$f":"'Population at Risk'!L34/'Population at Risk'!L$5","v":4.3510147394878941E-2},{"$f":"'Population at Risk'!M34/'Population at Risk'!M$5","v":4.3510147394878941E-2},{"$f":"'Population at Risk'!AJ34/'Population at Risk'!AJ$5","v":3.7901128239265947E-2},{"$f":"'Population at Risk'!AK34/'Population at Risk'!AK$5","v":3.5705306882741331E-2},{"$f":"'Population at Risk'!AL34/'Population at Risk'!AL$5","v":3.8637864594078787E-2},{"$f":"'Population at Risk'!AM34/'Population at Risk'!AM$5","v":3.5578081449229519E-2},{"$f":"'Population at Risk'!N34/'Population at Risk'!N$5","v":2.8684133895503245E-2},{"$f":"'Population at Risk'!AN34/'Population at Risk'!AN$5","v":3.5959030682530604E-2},{"$f":"'Population at Risk'!AO34/'Population at Risk'!AO$5","v":3.5959030682530604E-2},{"$f":"'Population at Risk'!AP34/'Population at Risk'!AP$5","v":3.5259773037028173E-2},{"$f":"'Population at Risk'!C34/'Population at Risk'!C$5","v":2.856839310651434E-2},{"$f":"'Population at Risk'!AQ34/'Population at Risk'!AQ$5","v":3.310379927362616E-2},{"$f":"'Population at Risk'!O34/'Population at Risk'!O$5","v":3.6860913450189436E-2},{"$f":"'Population at Risk'!AR34/'Population at Risk'!AR$5","v":3.3921297477781498E-2},{"$f":"'Population at Risk'!AS34/'Population at Risk'!AS$5","v":3.9007024921544051E-2},{"$f":"'Population at Risk'!AT34/'Population at Risk'!AT$5","v":3.1495683599240057E-2},{"$f":"'Population at Risk'!AU34/'Population at Risk'!AU$5","v":3.1495683599240057E-2},{"$f":"'Population at Risk'!BB34/'Population at Risk'!BB$5","v":3.3799521213564637E-2},{"$f":"'Population at Risk'!P34/'Population at Risk'!P$5","v":3.9700303599661924E-2},{"$f":"'Population at Risk'!AV34/'Population at Risk'!AV$5","v":4.2647371369456712E-2},{"$f":"'Population at Risk'!AW34/'Population at Risk'!AW$5","v":3.8372309067941895E-2},{"$f":"'Population at Risk'!Q34/'Population at Risk'!Q$5","v":3.7336307195044147E-2},32]
[null,"Female 65-69",{"$f":"'Population at Risk'!R35/'Population at Risk'!R$5","v":3.5905151943325733E-2},{"$f":"'Population at Risk'!AX35/'Population at Risk'!AX$5","v":3.1645189623432601E-2},{"$f":"'Population at Risk'!S35/'Population at Risk'!S$5","v":3.3280764287826101E-2},{"$f":"'Population at Risk'!T35/'Population at Risk'!T$5","v":2.5422607998679535E-2},{"$f":"'Population at Risk'!U35/'Population at Risk'!U$5","v":4.2826794456994111E-2},{"$f":"'Population at Risk'!D35/'Population at Risk'!D$5","v":3.0522449886496734E-2},{"$f":"'Population at Risk'!E35/'Population at Risk'!E$5","v":3.3678803988220846E-2},{"$f":"'Population at Risk'!BC35/'Population at Risk'!BC$5","v":4.2826794456994111E-2},{"$f":"'Population at Risk'!V35/'Population at Risk'!V$5","v":3.6773882700052378E-2},{"$f":"'Population at Risk'!F35/'Population at Risk'!F$5","v":3.969880360270997E-2},{"$f":"'Population at Risk'!W35/'Population at Risk'!W$5","v":3.7758651220382862E-2},{"$f":"'Population at Risk'!X35/'Population at Risk'!X$5","v":3.7758651220382862E-2},{"$f":"'Population at Risk'!Y35/'Population at Risk'!Y$5","v":3.5828627255304127E-2},{"$f":"'Population at Risk'!Z35/'Population at Risk'!Z$5","v":2.315300700930744E-2},{"$f":"'Population at Risk'!AA35/'Population at Risk'!AA$5","v":3.0662888087770904E-2},{"$f":"'Population at Risk'!AB35/'Population at Risk'!AB$5","v":3.1480871874550662E-2},{"$f":"'Population at Risk'!AY35/'Population at Risk'!AY$5","v":3.6050987403366083E-2},{"$f":"'Population at Risk'!AC35/'Population at Risk'!AC$5","v":2.8370836088005159E-2},{"$f":"'Population at Risk'!AD35/'Population at Risk'!AD$5","v":4.0244792062116654E-2},{"$f":"'Population at Risk'!AE35/'Population at Risk'!AE$5","v":3.8638836268644512E-2},{"$f":"'Population at Risk'!G35/'Population at Risk'!G$5","v":4.4448882427225715E-2},{"$f":"'Population at Risk'!AF35/'Population at Risk'!AF$5","v":3.536158236834306E-2},{"$f":"'Population at Risk'!H35/'Population at Risk'!H$5","v":3.988094658287205E-2},{"$f":"'Population at Risk'!AG35/'Population at Risk'!AG$5","v":3.8638836268644512E-2},{"$f":"'Population at Risk'!AZ35/'Population at Risk'!AZ$5","v":3.4500859027725095E-2},{"$f":"'Population at Risk'!I35/'Population at Risk'!I$5","v":4.2079839967155946E-2},{"$f":"'Population at Risk'!J35/'Population at Risk'!J$5","v":3.4772177932932566E-2},{"$f":"'Population at Risk'!K35/'Population at Risk'!K$5","v":3.9870291241896609E-2},{"$f":"'Population at Risk'!AH35/'Population at Risk'!AH$5","v":3.4833366035168352E-2},{"$f":"'Population at Risk'!AI35/'Population at Risk'!AI$5","v":3.0192506434828285E-2},{"$f":"'Population at Risk'!BA35/'Population at Risk'!BA$5","v":3.5772569867240624E-2},{"$f":"'Population at Risk'!L35/'Population at Risk'!L$5","v":4.3665332942769169E-2},{"$f":"'Population at Risk'!M35/'Population at Risk'!M$5","v":4.3665332942769169E-2},{"$f":"'Population at Risk'!AJ35/'Population at Risk'!AJ$5","v":4.0811226344926212E-2},{"$f":"'Population at Risk'!AK35/'Population at Risk'!AK$5","v":3.6352703711328559E-2},{"$f":"'Population at Risk'!AL35/'Population at Risk'!AL$5","v":3.9439026493498994E-2},{"$f":"'Population at Risk'!AM35/'Population at Risk'!AM$5","v":3.3709311187220661E-2},{"$f":"'Population at Risk'!N35/'Population at Risk'!N$5","v":2.9765344513179328E-2},{"$f":"'Population at Risk'!AN35/'Population at Risk'!AN$5","v":3.7846384704315596E-2},{"$f":"'Population at Risk'!AO35/'Population at Risk'!AO$5","v":3.7846384704315596E-2},{"$f":"'Population at Risk'!AP35/'Population at Risk'!AP$5","v":3.6105066882090059E-2},{"$f":"'Population at Risk'!C35/'Population at Risk'!C$5","v":2.7378124530940226E-2},{"$f":"'Population at Risk'!AQ35/'Population at Risk'!AQ$5","v":3.3629047390985337E-2},{"$f":"'Population at Risk'!O35/'Population at Risk'!O$5","v":3.7481513122218667E-2},{"$f":"'Population at Risk'!AR35/'Population at Risk'!AR$5","v":3.3608683128332727E-2},{"$f":"'Population at Risk'!AS35/'Population at Risk'!AS$5","v":4.2079839967155946E-2},{"$f":"'Population at Risk'!AT35/'Population at Risk'!AT$5","v":2.8726987840853372E-2},{"$f":"'Population at Risk'!AU35/'Population at Risk'!AU$5","v":2.8726987840853372E-2},{"$f":"'Population at Risk'!BB35/'Population at Risk'!BB$5","v":3.3898824070189071E-2},{"$f":"'Population at Risk'!P35/'Population at Risk'!P$5","v":3.9145850544758165E-2},{"$f":"'Population at Risk'!AV35/'Population at Risk'!AV$5","v":4.3263301759890391E-2},{"$f":"'Population at Risk'!AW35/'Population at Risk'!AW$5","v":3.6115862127299017E-2},{"$f":"'Population at Risk'!Q35/'Population at Risk'!Q$5","v":3.7491123903487064E-2},33]
[null,"Female 70-74",{"$f":"'Population at Risk'!R36/'Population at Risk'!R$5","v":2.8258875073270968E-2},{"$f":"'Population at Risk'!AX36/'Population at Risk'!AX$5","v":2.592623191210108E-2},{"$f":"'Population at Risk'!S36/'Population at Risk'!S$5","v":2.5503184472750545E-2},{"$f":"'Population at Risk'!T36/'Population at Risk'!T$5","v":1.893943135234501E-2},{"$f":"'Population at Risk'!U36/'Population at Risk'!U$5","v":3.3620951216005168E-2},{"$f":"'Population at Risk'!D36/'Population at Risk'!D$5","v":2.2338054630351122E-2},{"$f":"'Population at Risk'!E36/'Population at Risk'!E$5","v":2.4810551721667878E-2},{"$f":"'Population at Risk'!BC36/'Population at Risk'!BC$5","v":3.3620951216005168E-2},{"$f":"'Population at Risk'!V36/'Population at Risk'!V$5","v":2.8038526940944209E-2},{"$f":"'Population at Risk'!F36/'Population at Risk'!F$5","v":3.0742563508677309E-2},{"$f":"'Population at Risk'!W36/'Population at Risk'!W$5","v":2.9100682676322966E-2},{"$f":"'Population at Risk'!X36/'Population at Risk'!X$5","v":2.9100682676322966E-2},{"$f":"'Population at Risk'!Y36/'Population at Risk'!Y$5","v":2.7803899043212392E-2},{"$f":"'Population at Risk'!Z36/'Population at Risk'!Z$5","v":1.8165834145941209E-2},{"$f":"'Population at Risk'!AA36/'Population at Risk'!AA$5","v":2.4132302670421917E-2},{"$f":"'Population at Risk'!AB36/'Population at Risk'!AB$5","v":2.3445624868580602E-2},{"$f":"'Population at Risk'!AY36/'Population at Risk'!AY$5","v":2.7967934504418542E-2},{"$f":"'Population at Risk'!AC36/'Population at Risk'!AC$5","v":2.2150311923194894E-2},{"$f":"'Population at Risk'!AD36/'Population at Risk'!AD$5","v":3.1052793094018205E-2},{"$f":"'Population at Risk'!AE36/'Population at Risk'!AE$5","v":2.9719913514823462E-2},{"$f":"'Population at Risk'!G36/'Population at Risk'!G$5","v":3.4542021265503646E-2},{"$f":"'Population at Risk'!AF36/'Population at Risk'!AF$5","v":2.7500705726481313E-2},{"$f":"'Population at Risk'!H36/'Population at Risk'!H$5","v":3.1834047518405656E-2},{"$f":"'Population at Risk'!AG36/'Population at Risk'!AG$5","v":2.9719913514823462E-2},{"$f":"'Population at Risk'!AZ36/'Population at Risk'!AZ$5","v":2.6939684642691072E-2},{"$f":"'Population at Risk'!I36/'Population at Risk'!I$5","v":3.2771607945964683E-2},{"$f":"'Population at Risk'!J36/'Population at Risk'!J$5","v":2.7541671002162323E-2},{"$f":"'Population at Risk'!K36/'Population at Risk'!K$5","v":3.0175416545707059E-2},{"$f":"'Population at Risk'!AH36/'Population at Risk'!AH$5","v":2.7738612084039434E-2},{"$f":"'Population at Risk'!AI36/'Population at Risk'!AI$5","v":2.2996810740209622E-2},{"$f":"'Population at Risk'!BA36/'Population at Risk'!BA$5","v":2.6078380339881801E-2},{"$f":"'Population at Risk'!L36/'Population at Risk'!L$5","v":3.6774877909449472E-2},{"$f":"'Population at Risk'!M36/'Population at Risk'!M$5","v":3.6774877909449472E-2},{"$f":"'Population at Risk'!AJ36/'Population at Risk'!AJ$5","v":3.0174231027048436E-2},{"$f":"'Population at Risk'!AK36/'Population at Risk'!AK$5","v":2.9075604163014718E-2},{"$f":"'Population at Risk'!AL36/'Population at Risk'!AL$5","v":3.1015130231858676E-2},{"$f":"'Population at Risk'!AM36/'Population at Risk'!AM$5","v":2.717950243013998E-2},{"$f":"'Population at Risk'!N36/'Population at Risk'!N$5","v":2.2538948323527326E-2},{"$f":"'Population at Risk'!AN36/'Population at Risk'!AN$5","v":3.3153624855196885E-2},{"$f":"'Population at Risk'!AO36/'Population at Risk'!AO$5","v":3.3153624855196885E-2},{"$f":"'Population at Risk'!AP36/'Population at Risk'!AP$5","v":2.9269484217523286E-2},{"$f":"'Population at Risk'!C36/'Population at Risk'!C$5","v":1.9874980131985943E-2},{"$f":"'Population at Risk'!AQ36/'Population at Risk'!AQ$5","v":2.6161779934935559E-2},{"$f":"'Population at Risk'!O36/'Population at Risk'!O$5","v":2.9293848138065619E-2},{"$f":"'Population at Risk'!AR36/'Population at Risk'!AR$5","v":2.6204527797041167E-2},{"$f":"'Population at Risk'!AS36/'Population at Risk'!AS$5","v":3.2771607945964683E-2},{"$f":"'Population at Risk'!AT36/'Population at Risk'!AT$5","v":2.4526417788827398E-2},{"$f":"'Population at Risk'!AU36/'Population at Risk'!AU$5","v":2.4526417788827398E-2},{"$f":"'Population at Risk'!BB36/'Population at Risk'!BB$5","v":2.6754214180392505E-2},{"$f":"'Population at Risk'!P36/'Population at Risk'!P$5","v":3.2138497330977629E-2},{"$f":"'Population at Risk'!AV36/'Population at Risk'!AV$5","v":3.5880611805572636E-2},{"$f":"'Population at Risk'!AW36/'Population at Risk'!AW$5","v":2.8376531085507882E-2},{"$f":"'Population at Risk'!Q36/'Population at Risk'!Q$5","v":2.977437927564261E-2},34]
[null,"Female 75-79",{"$f":"'Population at Risk'!R37/'Population at Risk'!R$5","v":2.4243342504182277E-2},{"$f":"'Population at Risk'!AX37/'Population at Risk'!AX$5","v":2.1744178433902642E-2},{"$f":"'Population at Risk'!S37/'Population at Risk'!S$5","v":2.0685507621847687E-2},{"$f":"'Population at Risk'!T37/'Population at Risk'!T$5","v":1.6537897378454902E-2},{"$f":"'Population at Risk'!U37/'Population at Risk'!U$5","v":3.0486912676320903E-2},{"$f":"'Population at Risk'!D37/'Population at Risk'!D$5","v":1.8690774944952998E-2},{"$f":"'Population at Risk'!E37/'Population at Risk'!E$5","v":1.9254310462512955E-2},{"$f":"'Population at Risk'!BC37/'Population at Risk'!BC$5","v":3.0486912676320903E-2},{"$f":"'Population at Risk'!V37/'Population at Risk'!V$5","v":2.390092183383943E-2},{"$f":"'Population at Risk'!F37/'Population at Risk'!F$5","v":2.4983429972635467E-2},{"$f":"'Population at Risk'!W37/'Population at Risk'!W$5","v":2.2894620960414107E-2},{"$f":"'Population at Risk'!X37/'Population at Risk'!X$5","v":2.2894620960414107E-2},{"$f":"'Population at Risk'!Y37/'Population at Risk'!Y$5","v":2.2918680782034517E-2},{"$f":"'Population at Risk'!Z37/'Population at Risk'!Z$5","v":1.7040732935233106E-2},{"$f":"'Population at Risk'!AA37/'Population at Risk'!AA$5","v":2.1057530423249725E-2},{"$f":"'Population at Risk'!AB37/'Population at Risk'!AB$5","v":1.9376530105051807E-2},{"$f":"'Population at Risk'!AY37/'Population at Risk'!AY$5","v":2.2660257722536617E-2},{"$f":"'Population at Risk'!AC37/'Population at Risk'!AC$5","v":1.9994646428315645E-2},{"$f":"'Population at Risk'!AD37/'Population at Risk'!AD$5","v":2.5277574275500588E-2},{"$f":"'Population at Risk'!AE37/'Population at Risk'!AE$5","v":2.3861913363781687E-2},{"$f":"'Population at Risk'!G37/'Population at Risk'!G$5","v":2.8983508413545241E-2},{"$f":"'Population at Risk'!AF37/'Population at Risk'!AF$5","v":2.3622342902598098E-2},{"$f":"'Population at Risk'!H37/'Population at Risk'!H$5","v":2.545224111950262E-2},{"$f":"'Population at Risk'!AG37/'Population at Risk'!AG$5","v":2.3861913363781687E-2},{"$f":"'Population at Risk'!AZ37/'Population at Risk'!AZ$5","v":2.2447514967422401E-2},{"$f":"'Population at Risk'!I37/'Population at Risk'!I$5","v":2.6370657670704161E-2},{"$f":"'Population at Risk'!J37/'Population at Risk'!J$5","v":2.1820895099497455E-2},{"$f":"'Population at Risk'!K37/'Population at Risk'!K$5","v":2.1945970800196439E-2},{"$f":"'Population at Risk'!AH37/'Population at Risk'!AH$5","v":2.2991489278444688E-2},{"$f":"'Population at Risk'!AI37/'Population at Risk'!AI$5","v":1.8991375950783242E-2},{"$f":"'Population at Risk'!BA37/'Population at Risk'!BA$5","v":2.3152500914347861E-2},{"$f":"'Population at Risk'!L37/'Population at Risk'!L$5","v":2.7969133007008349E-2},{"$f":"'Population at Risk'!M37/'Population at Risk'!M$5","v":2.7969133007008349E-2},{"$f":"'Population at Risk'!AJ37/'Population at Risk'!AJ$5","v":2.3286823361267764E-2},{"$f":"'Population at Risk'!AK37/'Population at Risk'!AK$5","v":2.2862347274154635E-2},{"$f":"'Population at Risk'!AL37/'Population at Risk'!AL$5","v":2.4772521225065902E-2},{"$f":"'Population at Risk'!AM37/'Population at Risk'!AM$5","v":2.2271824902087105E-2},{"$f":"'Population at Risk'!N37/'Population at Risk'!N$5","v":2.0361540474460191E-2},{"$f":"'Population at Risk'!AN37/'Population at Risk'!AN$5","v":2.4253100769502142E-2},{"$f":"'Population at Risk'!AO37/'Population at Risk'!AO$5","v":2.4253100769502142E-2},{"$f":"'Population at Risk'!AP37/'Population at Risk'!AP$5","v":2.2953112603916803E-2},{"$f":"'Population at Risk'!C37/'Population at Risk'!C$5","v":1.8129387039948125E-2},{"$f":"'Population at Risk'!AQ37/'Population at Risk'!AQ$5","v":2.2863715619264362E-2},{"$f":"'Population at Risk'!O37/'Population at Risk'!O$5","v":2.3677667575806426E-2},{"$f":"'Population at Risk'!AR37/'Population at Risk'!AR$5","v":2.1818645797374726E-2},{"$f":"'Population at Risk'!AS37/'Population at Risk'!AS$5","v":2.6370657670704161E-2},{"$f":"'Population at Risk'!AT37/'Population at Risk'!AT$5","v":1.783473523692413E-2},{"$f":"'Population at Risk'!AU37/'Population at Risk'!AU$5","v":1.783473523692413E-2},{"$f":"'Population at Risk'!BB37/'Population at Risk'!BB$5","v":2.0292525878439164E-2},{"$f":"'Population at Risk'!P37/'Population at Risk'!P$5","v":2.7913661809734452E-2},{"$f":"'Population at Risk'!AV37/'Population at Risk'!AV$5","v":2.8421948508680333E-2},{"$f":"'Population at Risk'!AW37/'Population at Risk'!AW$5","v":2.3812594006571968E-2},{"$f":"'Population at Risk'!Q37/'Population at Risk'!Q$5","v":2.4942444137291773E-2},35]
[null,"Female 80-84",{"$f":"'Population at Risk'!R38/'Population at Risk'!R$5","v":2.1265115037795469E-2},{"$f":"'Population at Risk'!AX38/'Population at Risk'!AX$5","v":1.6095305070001387E-2},{"$f":"'Population at Risk'!S38/'Population at Risk'!S$5","v":1.5739447798326926E-2},{"$f":"'Population at Risk'!T38/'Population at Risk'!T$5","v":1.3352922323371982E-2},{"$f":"'Population at Risk'!U38/'Population at Risk'!U$5","v":2.4361562980417317E-2},{"$f":"'Population at Risk'!D38/'Population at Risk'!D$5","v":1.4636916360986857E-2},{"$f":"'Population at Risk'!E38/'Population at Risk'!E$5","v":1.4111913984649647E-2},{"$f":"'Population at Risk'!BC38/'Population at Risk'!BC$5","v":2.4361562980417317E-2},{"$f":"'Population at Risk'!V38/'Population at Risk'!V$5","v":1.6956967865546905E-2},{"$f":"'Population at Risk'!F38/'Population at Risk'!F$5","v":1.9017394172176919E-2},{"$f":"'Population at Risk'!W38/'Population at Risk'!W$5","v":1.7190231662056965E-2},{"$f":"'Population at Risk'!X38/'Population at Risk'!X$5","v":1.7190231662056965E-2},{"$f":"'Population at Risk'!Y38/'Population at Risk'!Y$5","v":1.6302303526733179E-2},{"$f":"'Population at Risk'!Z38/'Population at Risk'!Z$5","v":1.4105313192764852E-2},{"$f":"'Population at Risk'!AA38/'Population at Risk'!AA$5","v":1.6600605847653827E-2},{"$f":"'Population at Risk'!AB38/'Population at Risk'!AB$5","v":1.5225068493280484E-2},{"$f":"'Population at Risk'!AY38/'Population at Risk'!AY$5","v":1.7615563829501291E-2},{"$f":"'Population at Risk'!AC38/'Population at Risk'!AC$5","v":1.616465825048493E-2},{"$f":"'Population at Risk'!AD38/'Population at Risk'!AD$5","v":1.8836673256544426E-2},{"$f":"'Population at Risk'!AE38/'Population at Risk'!AE$5","v":1.7897409692812959E-2},{"$f":"'Population at Risk'!G38/'Population at Risk'!G$5","v":2.1295488695071623E-2},{"$f":"'Population at Risk'!AF38/'Population at Risk'!AF$5","v":1.857821557219546E-2},{"$f":"'Population at Risk'!H38/'Population at Risk'!H$5","v":1.9175651403584102E-2},{"$f":"'Population at Risk'!AG38/'Population at Risk'!AG$5","v":1.7897409692812959E-2},{"$f":"'Population at Risk'!AZ38/'Population at Risk'!AZ$5","v":1.8001658244138546E-2},{"$f":"'Population at Risk'!I38/'Population at Risk'!I$5","v":1.9282278270614007E-2},{"$f":"'Population at Risk'!J38/'Population at Risk'!J$5","v":1.5570628611806041E-2},{"$f":"'Population at Risk'!K38/'Population at Risk'!K$5","v":1.4715217663738397E-2},{"$f":"'Population at Risk'!AH38/'Population at Risk'!AH$5","v":1.7393829491968889E-2},{"$f":"'Population at Risk'!AI38/'Population at Risk'!AI$5","v":1.4651072604617638E-2},{"$f":"'Population at Risk'!BA38/'Population at Risk'!BA$5","v":1.7131857431754004E-2},{"$f":"'Population at Risk'!L38/'Population at Risk'!L$5","v":2.2115613907583952E-2},{"$f":"'Population at Risk'!M38/'Population at Risk'!M$5","v":2.2115613907583952E-2},{"$f":"'Population at Risk'!AJ38/'Population at Risk'!AJ$5","v":1.7918792508485822E-2},{"$f":"'Population at Risk'!AK38/'Population at Risk'!AK$5","v":1.8214751867297201E-2},{"$f":"'Population at Risk'!AL38/'Population at Risk'!AL$5","v":1.8495335121733094E-2},{"$f":"'Population at Risk'!AM38/'Population at Risk'!AM$5","v":1.642907518341356E-2},{"$f":"'Population at Risk'!N38/'Population at Risk'!N$5","v":1.7201407097027208E-2},{"$f":"'Population at Risk'!AN38/'Population at Risk'!AN$5","v":1.6684136110988047E-2},{"$f":"'Population at Risk'!AO38/'Population at Risk'!AO$5","v":1.6684136110988047E-2},{"$f":"'Population at Risk'!AP38/'Population at Risk'!AP$5","v":1.8160618897922046E-2},{"$f":"'Population at Risk'!C38/'Population at Risk'!C$5","v":1.5159917973113574E-2},{"$f":"'Population at Risk'!AQ38/'Population at Risk'!AQ$5","v":1.8105615237196795E-2},{"$f":"'Population at Risk'!O38/'Population at Risk'!O$5","v":1.756835014940979E-2},{"$f":"'Population at Risk'!AR38/'Population at Risk'!AR$5","v":1.6850287328692606E-2},{"$f":"'Population at Risk'!AS38/'Population at Risk'!AS$5","v":1.9282278270614007E-2},{"$f":"'Population at Risk'!AT38/'Population at Risk'!AT$5","v":1.3624146406775497E-2},{"$f":"'Population at Risk'!AU38/'Population at Risk'!AU$5","v":1.3624146406775497E-2},{"$f":"'Population at Risk'!BB38/'Population at Risk'!BB$5","v":1.4177199765032974E-2},{"$f":"'Population at Risk'!P38/'Population at Risk'!P$5","v":2.1598076429178492E-2},{"$f":"'Population at Risk'!AV38/'Population at Risk'!AV$5","v":2.1951228731682648E-2},{"$f":"'Population at Risk'!AW38/'Population at Risk'!AW$5","v":1.8494570823984372E-2},{"$f":"'Population at Risk'!Q38/'Population at Risk'!Q$5","v":1.9058213100100602E-2},36]
[null,"Female 85-89",{"$f":"'Population at Risk'!R39/'Population at Risk'!R$5","v":1.3095457379902906E-2},{"$f":"'Population at Risk'!AX39/'Population at Risk'!AX$5","v":8.9151672723221404E-3},{"$f":"'Population at Risk'!S39/'Population at Risk'!S$5","v":1.001096734466138E-2},{"$f":"'Population at Risk'!T39/'Population at Risk'!T$5","v":9.3780832852288897E-3},{"$f":"'Population at Risk'!U39/'Population at Risk'!U$5","v":1.372447863478459E-2},{"$f":"'Population at Risk'!D39/'Population at Risk'!D$5","v":9.4374511242887316E-3},{"$f":"'Population at Risk'!E39/'Population at Risk'!E$5","v":9.0425861931904532E-3},{"$f":"'Population at Risk'!BC39/'Population at Risk'!BC$5","v":1.372447863478459E-2},{"$f":"'Population at Risk'!V39/'Population at Risk'!V$5","v":1.0054535706784939E-2},{"$f":"'Population at Risk'!F39/'Population at Risk'!F$5","v":1.2599195971137411E-2},{"$f":"'Population at Risk'!W39/'Population at Risk'!W$5","v":1.0909958013760738E-2},{"$f":"'Population at Risk'!X39/'Population at Risk'!X$5","v":1.0909958013760738E-2},{"$f":"'Population at Risk'!Y39/'Population at Risk'!Y$5","v":9.5826167211759804E-3},{"$f":"'Population at Risk'!Z39/'Population at Risk'!Z$5","v":8.483692230935631E-3},{"$f":"'Population at Risk'!AA39/'Population at Risk'!AA$5","v":9.8544130896419165E-3},{"$f":"'Population at Risk'!AB39/'Population at Risk'!AB$5","v":9.6718623170465017E-3},{"$f":"'Population at Risk'!AY39/'Population at Risk'!AY$5","v":1.1392917849236449E-2},{"$f":"'Population at Risk'!AC39/'Population at Risk'!AC$5","v":9.7419036992906008E-3},{"$f":"'Population at Risk'!AD39/'Population at Risk'!AD$5","v":1.1911467945135866E-2},{"$f":"'Population at Risk'!AE39/'Population at Risk'!AE$5","v":1.1526868790280975E-2},{"$f":"'Population at Risk'!G39/'Population at Risk'!G$5","v":1.2918276232092976E-2},{"$f":"'Population at Risk'!AF39/'Population at Risk'!AF$5","v":1.1706438324240384E-2},{"$f":"'Population at Risk'!H39/'Population at Risk'!H$5","v":1.1103174037308119E-2},{"$f":"'Population at Risk'!AG39/'Population at Risk'!AG$5","v":1.1526868790280975E-2},{"$f":"'Population at Risk'!AZ39/'Population at Risk'!AZ$5","v":1.1831323662960167E-2},{"$f":"'Population at Risk'!I39/'Population at Risk'!I$5","v":1.1783899176995866E-2},{"$f":"'Population at Risk'!J39/'Population at Risk'!J$5","v":9.0551841680700362E-3},{"$f":"'Population at Risk'!K39/'Population at Risk'!K$5","v":9.2834619641601404E-3},{"$f":"'Population at Risk'!AH39/'Population at Risk'!AH$5","v":1.0059128310493477E-2},{"$f":"'Population at Risk'!AI39/'Population at Risk'!AI$5","v":9.390148398498388E-3},{"$f":"'Population at Risk'!BA39/'Population at Risk'!BA$5","v":1.0917650150911683E-2},{"$f":"'Population at Risk'!L39/'Population at Risk'!L$5","v":1.3446629209556363E-2},{"$f":"'Population at Risk'!M39/'Population at Risk'!M$5","v":1.3446629209556363E-2},{"$f":"'Population at Risk'!AJ39/'Population at Risk'!AJ$5","v":1.0421532870252884E-2},{"$f":"'Population at Risk'!AK39/'Population at Risk'!AK$5","v":1.0863416690807516E-2},{"$f":"'Population at Risk'!AL39/'Population at Risk'!AL$5","v":1.0273419319876678E-2},{"$f":"'Population at Risk'!AM39/'Population at Risk'!AM$5","v":9.1330188433908794E-3},{"$f":"'Population at Risk'!N39/'Population at Risk'!N$5","v":1.0709363389344341E-2},{"$f":"'Population at Risk'!AN39/'Population at Risk'!AN$5","v":1.0689763756952375E-2},{"$f":"'Population at Risk'!AO39/'Population at Risk'!AO$5","v":1.0689763756952375E-2},{"$f":"'Population at Risk'!AP39/'Population at Risk'!AP$5","v":1.2589955778831379E-2},{"$f":"'Population at Risk'!C39/'Population at Risk'!C$5","v":9.8308112400609729E-3},{"$f":"'Population at Risk'!AQ39/'Population at Risk'!AQ$5","v":1.0250788098686908E-2},{"$f":"'Population at Risk'!O39/'Population at Risk'!O$5","v":1.02087180087427E-2},{"$f":"'Population at Risk'!AR39/'Population at Risk'!AR$5","v":1.0332618114045117E-2},{"$f":"'Population at Risk'!AS39/'Population at Risk'!AS$5","v":1.1783899176995866E-2},{"$f":"'Population at Risk'!AT39/'Population at Risk'!AT$5","v":8.0145015404526794E-3},{"$f":"'Population at Risk'!AU39/'Population at Risk'!AU$5","v":8.0145015404526794E-3},{"$f":"'Population at Risk'!BB39/'Population at Risk'!BB$5","v":7.5974062853666913E-3},{"$f":"'Population at Risk'!P39/'Population at Risk'!P$5","v":1.310515102228379E-2},{"$f":"'Population at Risk'!AV39/'Population at Risk'!AV$5","v":1.3246342719821716E-2},{"$f":"'Population at Risk'!AW39/'Population at Risk'!AW$5","v":1.1115777614228836E-2},{"$f":"'Population at Risk'!Q39/'Population at Risk'!Q$5","v":1.1852144309776292E-2},37]
[null,"Female 90+",{"$f":"'Population at Risk'!R40/'Population at Risk'!R$5","v":7.8290930296829563E-3},{"$f":"'Population at Risk'!AX40/'Population at Risk'!AX$5","v":5.7778308624655828E-3},{"$f":"'Population at Risk'!S40/'Population at Risk'!S$5","v":5.9189703677200011E-3},{"$f":"'Population at Risk'!T40/'Population at Risk'!T$5","v":5.5855800975241933E-3},{"$f":"'Population at Risk'!U40/'Population at Risk'!U$5","v":1.031405846598153E-2},{"$f":"'Population at Risk'!D40/'Population at Risk'!D$5","v":5.3160661363703841E-3},{"$f":"'Population at Risk'!E40/'Population at Risk'!E$5","v":5.340449950564775E-3},{"$f":"'Population at Risk'!BC40/'Population at Risk'!BC$5","v":1.031405846598153E-2},{"$f":"'Population at Risk'!V40/'Population at Risk'!V$5","v":5.9993207575596494E-3},{"$f":"'Population at Risk'!F40/'Population at Risk'!F$5","v":8.3645815263985197E-3},{"$f":"'Population at Risk'!W40/'Population at Risk'!W$5","v":6.5571069137376628E-3},{"$f":"'Population at Risk'!X40/'Population at Risk'!X$5","v":6.5571069137376628E-3},{"$f":"'Population at Risk'!Y40/'Population at Risk'!Y$5","v":5.7853345581977012E-3},{"$f":"'Population at Risk'!Z40/'Population at Risk'!Z$5","v":4.8737049683787604E-3},{"$f":"'Population at Risk'!AA40/'Population at Risk'!AA$5","v":5.4092748858046037E-3},{"$f":"'Population at Risk'!AB40/'Population at Risk'!AB$5","v":5.4287271475549044E-3},{"$f":"'Population at Risk'!AY40/'Population at Risk'!AY$5","v":6.8709705969704632E-3},{"$f":"'Population at Risk'!AC40/'Population at Risk'!AC$5","v":5.5488619409467897E-3},{"$f":"'Population at Risk'!AD40/'Population at Risk'!AD$5","v":6.8163276772859041E-3},{"$f":"'Population at Risk'!AE40/'Population at Risk'!AE$5","v":6.3355947678512721E-3},{"$f":"'Population at Risk'!G40/'Population at Risk'!G$5","v":8.0747960616337801E-3},{"$f":"'Population at Risk'!AF40/'Population at Risk'!AF$5","v":6.6102078511510254E-3},{"$f":"'Population at Risk'!H40/'Population at Risk'!H$5","v":6.9232736110079142E-3},{"$f":"'Population at Risk'!AG40/'Population at Risk'!AG$5","v":6.3355947678512721E-3},{"$f":"'Population at Risk'!AZ40/'Population at Risk'!AZ$5","v":7.1558797205427465E-3},{"$f":"'Population at Risk'!I40/'Population at Risk'!I$5","v":7.2677636757556485E-3},{"$f":"'Population at Risk'!J40/'Population at Risk'!J$5","v":5.546176374482608E-3},{"$f":"'Population at Risk'!K40/'Population at Risk'!K$5","v":5.1684964117276128E-3},{"$f":"'Population at Risk'!AH40/'Population at Risk'!AH$5","v":5.1552907985011201E-3},{"$f":"'Population at Risk'!AI40/'Population at Risk'!AI$5","v":5.4668315482450519E-3},{"$f":"'Population at Risk'!BA40/'Population at Risk'!BA$5","v":5.7837509074319012E-3},{"$f":"'Population at Risk'!L40/'Population at Risk'!L$5","v":7.6584873099827802E-3},{"$f":"'Population at Risk'!M40/'Population at Risk'!M$5","v":7.6584873099827802E-3},{"$f":"'Population at Risk'!AJ40/'Population at Risk'!AJ$5","v":5.6478297533113257E-3},{"$f":"'Population at Risk'!AK40/'Population at Risk'!AK$5","v":6.0014033881812395E-3},{"$f":"'Population at Risk'!AL40/'Population at Risk'!AL$5","v":6.2280346414173076E-3},{"$f":"'Population at Risk'!AM40/'Population at Risk'!AM$5","v":4.2814094047840959E-3},{"$f":"'Population at Risk'!N40/'Population at Risk'!N$5","v":5.9663324381193476E-3},{"$f":"'Population at Risk'!AN40/'Population at Risk'!AN$5","v":6.6187141070745597E-3},{"$f":"'Population at Risk'!AO40/'Population at Risk'!AO$5","v":6.6187141070745597E-3},{"$f":"'Population at Risk'!AP40/'Population at Risk'!AP$5","v":7.6380549636361943E-3},{"$f":"'Population at Risk'!C40/'Population at Risk'!C$5","v":5.2917752479701482E-3},{"$f":"'Population at Risk'!AQ40/'Population at Risk'!AQ$5","v":5.583769730247953E-3},{"$f":"'Population at Risk'!O40/'Population at Risk'!O$5","v":5.9746424350660661E-3},{"$f":"'Population at Risk'!AR40/'Population at Risk'!AR$5","v":5.9690533295227825E-3},{"$f":"'Population at Risk'!AS40/'Population at Risk'!AS$5","v":7.2677636757556485E-3},{"$f":"'Population at Risk'!AT40/'Population at Risk'!AT$5","v":5.3951201714994845E-3},{"$f":"'Population at Risk'!AU40/'Population at Risk'!AU$5","v":5.3951201714994845E-3},{"$f":"'Population at Risk'!BB40/'Population at Risk'!BB$5","v":4.5063224529947286E-3},{"$f":"'Population at Risk'!P40/'Population at Risk'!P$5","v":7.9225861394633026E-3},{"$f":"'Population at Risk'!AV40/'Population at Risk'!AV$5","v":8.951105444707683E-3},{"$f":"'Population at Risk'!AW40/'Population at Risk'!AW$5","v":6.1523502164414837E-3},{"$f":"'Population at Risk'!Q40/'Population at Risk'!Q$5","v":6.4977315754638828E-3},38]
[null,"Male 0-4",{"$f":"'Population at Risk'!R41/'Population at Risk'!R$5","v":0},{"$f":"'Population at Risk'!AX41/'Population at Risk'!AX$5","v":0},{"$f":"'Population at Risk'!S41/'Population at Risk'!S$5","v":0},{"$f":"'Population at Risk'!T41/'Population at Risk'!T$5","v":0},{"$f":"'Population at Risk'!U41/'Population at Risk'!U$5","v":0},{"$f":"'Population at Risk'!D41/'Population at Risk'!D$5","v":0},{"$f":"'Population at Risk'!E41/'Population at Risk'!E$5","v":0},{"$f":"'Population at Risk'!BC41/'Population at Risk'!BC$5","v":0},{"$f":"'Population at Risk'!V41/'Population at Risk'!V$5","v":0},{"$f":"'Population at Risk'!F41/'Population at Risk'!F$5","v":0},{"$f":"'Population at Risk'!W41/'Population at Risk'!W$5","v":0},{"$f":"'Population at Risk'!X41/'Population at Risk'!X$5","v":0},{"$f":"'Population at Risk'!Y41/'Population at Risk'!Y$5","v":0},{"$f":"'Population at Risk'!Z41/'Population at Risk'!Z$5","v":0},{"$f":"'Population at Risk'!AA41/'Population at Risk'!AA$5","v":0},{"$f":"'Population at Risk'!AB41/'Population at Risk'!AB$5","v":0},{"$f":"'Population at Risk'!AY41/'Population at Risk'!AY$5","v":0},{"$f":"'Population at Risk'!AC41/'Population at Risk'!AC$5","v":0},{"$f":"'Population at Risk'!AD41/'Population at Risk'!AD$5","v":0},{"$f":"'Population at Risk'!AE41/'Population at Risk'!AE$5","v":0},{"$f":"'Population at Risk'!G41/'Population at Risk'!G$5","v":0},{"$f":"'Population at Risk'!AF41/'Population at Risk'!AF$5","v":0},{"$f":"'Population at Risk'!H41/'Population at Risk'!H$5","v":0},{"$f":"'Population at Risk'!AG41/'Population at Risk'!AG$5","v":0},{"$f":"'Population at Risk'!AZ41/'Population at Risk'!AZ$5","v":0},{"$f":"'Population at Risk'!I41/'Population at Risk'!I$5","v":0},{"$f":"'Population at Risk'!J41/'Population at Risk'!J$5","v":0},{"$f":"'Population at Risk'!K41/'Population at Risk'!K$5","v":0},{"$f":"'Population at Risk'!AH41/'Population at Risk'!AH$5","v":0},{"$f":"'Population at Risk'!AI41/'Population at Risk'!AI$5","v":0},{"$f":"'Population at Risk'!BA41/'Population at Risk'!BA$5","v":0},{"$f":"'Population at Risk'!L41/'Population at Risk'!L$5","v":0},{"$f":"'Population at Risk'!M41/'Population at Risk'!M$5","v":0},{"$f":"'Population at Risk'!AJ41/'Population at Risk'!AJ$5","v":0},{"$f":"'Population at Risk'!AK41/'Population at Risk'!AK$5","v":0},{"$f":"'Population at Risk'!AL41/'Population at Risk'!AL$5","v":0},{"$f":"'Population at Risk'!AM41/'Population at Risk'!AM$5","v":0},{"$f":"'Population at Risk'!N41/'Population at Risk'!N$5","v":0},{"$f":"'Population at Risk'!AN41/'Population at Risk'!AN$5","v":0},{"$f":"'Population at Risk'!AO41/'Population at Risk'!AO$5","v":0},{"$f":"'Population at Risk'!AP41/'Population at Risk'!AP$5","v":0},{"$f":"'Population at Risk'!C41/'Population at Risk'!C$5","v":0},{"$f":"'Population at Risk'!AQ41/'Population at Risk'!AQ$5","v":0},{"$f":"'Population at Risk'!O41/'Population at Risk'!O$5","v":0},{"$f":"'Population at Risk'!AR41/'Population at Risk'!AR$5","v":0},{"$f":"'Population at Risk'!AS41/'Population at Risk'!AS$5","v":0},{"$f":"'Population at Risk'!AT41/'Population at Risk'!AT$5","v":0},{"$f":"'Population at Risk'!AU41/'Population at Risk'!AU$5","v":0},{"$f":"'Population at Risk'!BB41/'Population at Risk'!BB$5","v":0},{"$f":"'Population at Risk'!P41/'Population at Risk'!P$5","v":0},{"$f":"'Population at Risk'!AV41/'Population at Risk'!AV$5","v":0},{"$f":"'Population at Risk'!AW41/'Population at Risk'!AW$5","v":0},{"$f":"'Population at Risk'!Q41/'Population at Risk'!Q$5","v":0},39]
[null,"Male 5-9",{"$f":"'Population at Risk'!R42/'Population at Risk'!R$5","v":0},{"$f":"'Population at Risk'!AX42/'Population at Risk'!AX$5","v":0},{"$f":"'Population at Risk'!S42/'Population at Risk'!S$5","v":0},{"$f":"'Population at Risk'!T42/'Population at Risk'!T$5","v":0},{"$f":"'Population at Risk'!U42/'Population at Risk'!U$5","v":0},{"$f":"'Population at Risk'!D42/'Population at Risk'!D$5","v":0},{"$f":"'Population at Risk'!E42/'Population at Risk'!E$5","v":0},{"$f":"'Population at Risk'!BC42/'Population at Risk'!BC$5","v":0},{"$f":"'Population at Risk'!V42/'Population at Risk'!V$5","v":0},{"$f":"'Population at Risk'!F42/'Population at Risk'!F$5","v":0},{"$f":"'Population at Risk'!W42/'Population at Risk'!W$5","v":0},{"$f":"'Population at Risk'!X42/'Population at Risk'!X$5","v":0},{"$f":"'Population at Risk'!Y42/'Population at Risk'!Y$5","v":0},{"$f":"'Population at Risk'!Z42/'Population at Risk'!Z$5","v":0},{"$f":"'Population at Risk'!AA42/'Population at Risk'!AA$5","v":0},{"$f":"'Population at Risk'!AB42/'Population at Risk'!AB$5","v":0},{"$f":"'Population at Risk'!AY42/'Population at Risk'!AY$5","v":0},{"$f":"'Population at Risk'!AC42/'Population at Risk'!AC$5","v":0},{"$f":"'Population at Risk'!AD42/'Population at Risk'!AD$5","v":0},{"$f":"'Population at Risk'!AE42/'Population at Risk'!AE$5","v":0},{"$f":"'Population at Risk'!G42/'Population at Risk'!G$5","v":0},{"$f":"'Population at Risk'!AF42/'Population at Risk'!AF$5","v":0},{"$f":"'Population at Risk'!H42/'Population at Risk'!H$5","v":0},{"$f":"'Population at Risk'!AG42/'Population at Risk'!AG$5","v":0},{"$f":"'Population at Risk'!AZ42/'Population at Risk'!AZ$5","v":0},{"$f":"'Population at Risk'!I42/'Population at Risk'!I$5","v":0},{"$f":"'Population at Risk'!J42/'Population at Risk'!J$5","v":0},{"$f":"'Population at Risk'!K42/'Population at Risk'!K$5","v":0},{"$f":"'Population at Risk'!AH42/'Population at Risk'!AH$5","v":0},{"$f":"'Population at Risk'!AI42/'Population at Risk'!AI$5","v":0},{"$f":"'Population at Risk'!BA42/'Population at Risk'!BA$5","v":0},{"$f":"'Population at Risk'!L42/'Population at Risk'!L$5","v":0},{"$f":"'Population at Risk'!M42/'Population at Risk'!M$5","v":0},{"$f":"'Population at Risk'!AJ42/'Population at Risk'!AJ$5","v":0},{"$f":"'Population at Risk'!AK42/'Population at Risk'!AK$5","v":0},{"$f":"'Population at Risk'!AL42/'Population at Risk'!AL$5","v":0},{"$f":"'Population at Risk'!AM42/'Population at Risk'!AM$5","v":0},{"$f":"'Population at Risk'!N42/'Population at Risk'!N$5","v":0},{"$f":"'Population at Risk'!AN42/'Population at Risk'!AN$5","v":0},{"$f":"'Population at Risk'!AO42/'Population at Risk'!AO$5","v":0},{"$f":"'Population at Risk'!AP42/'Population at Risk'!AP$5","v":0},{"$f":"'Population at Risk'!C42/'Population at Risk'!C$5","v":0},{"$f":"'Population at Risk'!AQ42/'Population at Risk'!AQ$5","v":0},{"$f":"'Population at Risk'!O42/'Population at Risk'!O$5","v":0},{"$f":"'Population at Risk'!AR42/'Population at Risk'!AR$5","v":0},{"$f":"'Population at Risk'!AS42/'Population at Risk'!AS$5","v":0},{"$f":"'Population at Risk'!AT42/'Population at Risk'!AT$5","v":0},{"$f":"'Population at Risk'!AU42/'Population at Risk'!AU$5","v":0},{"$f":"'Population at Risk'!BB42/'Population at Risk'!BB$5","v":0},{"$f":"'Population at Risk'!P42/'Population at Risk'!P$5","v":0},{"$f":"'Population at Risk'!AV42/'Population at Risk'!AV$5","v":0},{"$f":"'Population at Risk'!AW42/'Population at Risk'!AW$5","v":0},{"$f":"'Population at Risk'!Q42/'Population at Risk'!Q$5","v":0},40]
[null,"Male 10-15",{"$f":"'Population at Risk'!R43/'Population at Risk'!R$5","v":0},{"$f":"'Population at Risk'!AX43/'Population at Risk'!AX$5","v":0},{"$f":"'Population at Risk'!S43/'Population at Risk'!S$5","v":0},{"$f":"'Population at Risk'!T43/'Population at Risk'!T$5","v":0},{"$f":"'Population at Risk'!U43/'Population at Risk'!U$5","v":0},{"$f":"'Population at Risk'!D43/'Population at Risk'!D$5","v":0},{"$f":"'Population at Risk'!E43/'Population at Risk'!E$5","v":0},{"$f":"'Population at Risk'!BC43/'Population at Risk'!BC$5","v":0},{"$f":"'Population at Risk'!V43/'Population at Risk'!V$5","v":0},{"$f":"'Population at Risk'!F43/'Population at Risk'!F$5","v":0},{"$f":"'Population at Risk'!W43/'Population at Risk'!W$5","v":0},{"$f":"'Population at Risk'!X43/'Population at Risk'!X$5","v":0},{"$f":"'Population at Risk'!Y43/'Population at Risk'!Y$5","v":0},{"$f":"'Population at Risk'!Z43/'Population at Risk'!Z$5","v":0},{"$f":"'Population at Risk'!AA43/'Population at Risk'!AA$5","v":0},{"$f":"'Population at Risk'!AB43/'Population at Risk'!AB$5","v":0},{"$f":"'Population at Risk'!AY43/'Population at Risk'!AY$5","v":0},{"$f":"'Population at Risk'!AC43/'Population at Risk'!AC$5","v":0},{"$f":"'Population at Risk'!AD43/'Population at Risk'!AD$5","v":0},{"$f":"'Population at Risk'!AE43/'Population at Risk'!AE$5","v":0},{"$f":"'Population at Risk'!G43/'Population at Risk'!G$5","v":0},{"$f":"'Population at Risk'!AF43/'Population at Risk'!AF$5","v":0},{"$f":"'Population at Risk'!H43/'Population at Risk'!H$5","v":0},{"$f":"'Population at Risk'!AG43/'Population at Risk'!AG$5","v":0},{"$f":"'Population at Risk'!AZ43/'Population at Risk'!AZ$5","v":0},{"$f":"'Population at Risk'!I43/'Population at Risk'!I$5","v":0},{"$f":"'Population at Risk'!J43/'Population at Risk'!J$5","v":0},{"$f":"'Population at Risk'!K43/'Population at Risk'!K$5","v":0},{"$f":"'Population at Risk'!AH43/'Population at Risk'!AH$5","v":0},{"$f":"'Population at Risk'!AI43/'Population at Risk'!AI$5","v":0},{"$f":"'Population at Risk'!BA43/'Population at Risk'!BA$5","v":0},{"$f":"'Population at Risk'!L43/'Population at Risk'!L$5","v":0},{"$f":"'Population at Risk'!M43/'Population at Risk'!M$5","v":0},{"$f":"'Population at Risk'!AJ43/'Population at Risk'!AJ$5","v":0},{"$f":"'Population at Risk'!AK43/'Population at Risk'!AK$5","v":0},{"$f":"'Population at Risk'!AL43/'Population at Risk'!AL$5","v":0},{"$f":"'Population at Risk'!AM43/'Population at Risk'!AM$5","v":0},{"$f":"'Population at Risk'!N43/'Population at Risk'!N$5","v":0},{"$f":"'Population at Risk'!AN43/'Population at Risk'!AN$5","v":0},{"$f":"'Population at Risk'!AO43/'Population at Risk'!AO$5","v":0},{"$f":"'Population at Risk'!AP43/'Population at Risk'!AP$5","v":0},{"$f":"'Population at Risk'!C43/'Population at Risk'!C$5","v":0},{"$f":"'Population at Risk'!AQ43/'Population at Risk'!AQ$5","v":0},{"$f":"'Population at Risk'!O43/'Population at Risk'!O$5","v":0},{"$f":"'Population at Risk'!AR43/'Population at Risk'!AR$5","v":0},{"$f":"'Population at Risk'!AS43/'Population at Risk'!AS$5","v":0},{"$f":"'Population at Risk'!AT43/'Population at Risk'!AT$5","v":0},{"$f":"'Population at Risk'!AU43/'Population at Risk'!AU$5","v":0},{"$f":"'Population at Risk'!BB43/'Population at Risk'!BB$5","v":0},{"$f":"'Population at Risk'!P43/'Population at Risk'!P$5","v":0},{"$f":"'Population at Risk'!AV43/'Population at Risk'!AV$5","v":0},{"$f":"'Population at Risk'!AW43/'Population at Risk'!AW$5","v":0},{"$f":"'Population at Risk'!Q43/'Population at Risk'!Q$5","v":0},41]
[null,"Male 16-19",{"$f":"'Population at Risk'!R44/'Population at Risk'!R$5","v":3.2016861457863387E-2},{"$f":"'Population at Risk'!AX44/'Population at Risk'!AX$5","v":3.2247376075681844E-2},{"$f":"'Population at Risk'!S44/'Population at Risk'!S$5","v":2.5676129291510592E-2},{"$f":"'Population at Risk'!T44/'Population at Risk'!T$5","v":2.3116807426709306E-2},{"$f":"'Population at Risk'!U44/'Population at Risk'!U$5","v":2.4326622719032156E-2},{"$f":"'Population at Risk'!D44/'Population at Risk'!D$5","v":2.5511903635408211E-2},{"$f":"'Population at Risk'!E44/'Population at Risk'!E$5","v":2.8831402229572742E-2},{"$f":"'Population at Risk'!BC44/'Population at Risk'!BC$5","v":2.4326622719032156E-2},{"$f":"'Population at Risk'!V44/'Population at Risk'!V$5","v":2.7054951451832333E-2},{"$f":"'Population at Risk'!F44/'Population at Risk'!F$5","v":2.9014064305909821E-2},{"$f":"'Population at Risk'!W44/'Population at Risk'!W$5","v":2.7496071423004101E-2},{"$f":"'Population at Risk'!X44/'Population at Risk'!X$5","v":2.7496071423004101E-2},{"$f":"'Population at Risk'!Y44/'Population at Risk'!Y$5","v":2.8977873905003428E-2},{"$f":"'Population at Risk'!Z44/'Population at Risk'!Z$5","v":2.6355031241911995E-2},{"$f":"'Population at Risk'!AA44/'Population at Risk'!AA$5","v":2.7477863533833743E-2},{"$f":"'Population at Risk'!AB44/'Population at Risk'!AB$5","v":2.6128992131127668E-2},{"$f":"'Population at Risk'!AY44/'Population at Risk'!AY$5","v":2.7896982223642213E-2},{"$f":"'Population at Risk'!AC44/'Population at Risk'!AC$5","v":2.7096754782563022E-2},{"$f":"'Population at Risk'!AD44/'Population at Risk'!AD$5","v":2.8532258657124211E-2},{"$f":"'Population at Risk'!AE44/'Population at Risk'!AE$5","v":2.8299762967280307E-2},{"$f":"'Population at Risk'!G44/'Population at Risk'!G$5","v":2.9140888666477616E-2},{"$f":"'Population at Risk'!AF44/'Population at Risk'!AF$5","v":2.8060533188133077E-2},{"$f":"'Population at Risk'!H44/'Population at Risk'!H$5","v":2.7508983799975795E-2},{"$f":"'Population at Risk'!AG44/'Population at Risk'!AG$5","v":2.8299762967280307E-2},{"$f":"'Population at Risk'!AZ44/'Population at Risk'!AZ$5","v":2.8260908191960588E-2},{"$f":"'Population at Risk'!I44/'Population at Risk'!I$5","v":2.6696324942500519E-2},{"$f":"'Population at Risk'!J44/'Population at Risk'!J$5","v":3.1126996804969078E-2},{"$f":"'Population at Risk'!K44/'Population at Risk'!K$5","v":2.9300376457922873E-2},{"$f":"'Population at Risk'!AH44/'Population at Risk'!AH$5","v":2.8171305760666815E-2},{"$f":"'Population at Risk'!AI44/'Population at Risk'!AI$5","v":2.4745315823094992E-2},{"$f":"'Population at Risk'!BA44/'Population at Risk'!BA$5","v":2.6545471291353952E-2},{"$f":"'Population at Risk'!L44/'Population at Risk'!L$5","v":2.532340197145953E-2},{"$f":"'Population at Risk'!M44/'Population at Risk'!M$5","v":2.532340197145953E-2},{"$f":"'Population at Risk'!AJ44/'Population at Risk'!AJ$5","v":2.5489392907244862E-2},{"$f":"'Population at Risk'!AK44/'Population at Risk'!AK$5","v":2.9265764259717678E-2},{"$f":"'Population at Risk'!AL44/'Population at Risk'!AL$5","v":2.8830166403033656E-2},{"$f":"'Population at Risk'!AM44/'Population at Risk'!AM$5","v":2.9234466811977514E-2},{"$f":"'Population at Risk'!N44/'Population at Risk'!N$5","v":2.7013426820979111E-2},{"$f":"'Population at Risk'!AN44/'Population at Risk'!AN$5","v":2.796909474258857E-2},{"$f":"'Population at Risk'!AO44/'Population at Risk'!AO$5","v":2.796909474258857E-2},{"$f":"'Population at Risk'!AP44/'Population at Risk'!AP$5","v":2.9186569286643493E-2},{"$f":"'Population at Risk'!C44/'Population at Risk'!C$5","v":2.2205055524904916E-2},{"$f":"'Population at Risk'!AQ44/'Population at Risk'!AQ$5","v":2.7234083450252345E-2},{"$f":"'Population at Risk'!O44/'Population at Risk'!O$5","v":2.741197853674077E-2},{"$f":"'Population at Risk'!AR44/'Population at Risk'!AR$5","v":2.7055891507457425E-2},{"$f":"'Population at Risk'!AS44/'Population at Risk'!AS$5","v":2.6696324942500519E-2},{"$f":"'Population at Risk'!AT44/'Population at Risk'!AT$5","v":3.0771520062780951E-2},{"$f":"'Population at Risk'!AU44/'Population at Risk'!AU$5","v":3.0771520062780951E-2},{"$f":"'Population at Risk'!BB44/'Population at Risk'!BB$5","v":2.7840988883559521E-2},{"$f":"'Population at Risk'!P44/'Population at Risk'!P$5","v":2.8624526092404654E-2},{"$f":"'Population at Risk'!AV44/'Population at Risk'!AV$5","v":2.5869163764047187E-2},{"$f":"'Population at Risk'!AW44/'Population at Risk'!AW$5","v":2.695828675532114E-2},{"$f":"'Population at Risk'!Q44/'Population at Risk'!Q$5","v":2.6458552804209029E-2},42]
[null,"Male 20-24",{"$f":"'Population at Risk'!R45/'Population at Risk'!R$5","v":3.6914415321703031E-2},{"$f":"'Population at Risk'!AX45/'Population at Risk'!AX$5","v":4.8612345538487894E-2},{"$f":"'Population at Risk'!S45/'Population at Risk'!S$5","v":3.92401308782045E-2},{"$f":"'Population at Risk'!T45/'Population at Risk'!T$5","v":4.5509986234651217E-2},{"$f":"'Population at Risk'!U45/'Population at Risk'!U$5","v":2.8443981947933926E-2},{"$f":"'Population at Risk'!D45/'Population at Risk'!D$5","v":4.218757381371873E-2},{"$f":"'Population at Risk'!E45/'Population at Risk'!E$5","v":3.463159657190313E-2},{"$f":"'Population at Risk'!BC45/'Population at Risk'!BC$5","v":2.8443981947933926E-2},{"$f":"'Population at Risk'!V45/'Population at Risk'!V$5","v":3.438069035501521E-2},{"$f":"'Population at Risk'!F45/'Population at Risk'!F$5","v":3.4932645989629675E-2},{"$f":"'Population at Risk'!W45/'Population at Risk'!W$5","v":3.742957640826345E-2},{"$f":"'Population at Risk'!X45/'Population at Risk'!X$5","v":3.742957640826345E-2},{"$f":"'Population at Risk'!Y45/'Population at Risk'!Y$5","v":3.9090047074996505E-2},{"$f":"'Population at Risk'!Z45/'Population at Risk'!Z$5","v":4.9161110788459021E-2},{"$f":"'Population at Risk'!AA45/'Population at Risk'!AA$5","v":4.1467967292060127E-2},{"$f":"'Population at Risk'!AB45/'Population at Risk'!AB$5","v":4.1366061075607849E-2},{"$f":"'Population at Risk'!AY45/'Population at Risk'!AY$5","v":4.0088802502692637E-2},{"$f":"'Population at Risk'!AC45/'Population at Risk'!AC$5","v":4.4195178653333098E-2},{"$f":"'Population at Risk'!AD45/'Population at Risk'!AD$5","v":3.396509032731003E-2},{"$f":"'Population at Risk'!AE45/'Population at Risk'!AE$5","v":3.2335408879374916E-2},{"$f":"'Population at Risk'!G45/'Population at Risk'!G$5","v":3.8231289995638497E-2},{"$f":"'Population at Risk'!AF45/'Population at Risk'!AF$5","v":3.7762643977989584E-2},{"$f":"'Population at Risk'!H45/'Population at Risk'!H$5","v":3.5521355283797858E-2},{"$f":"'Population at Risk'!AG45/'Population at Risk'!AG$5","v":3.2335408879374916E-2},{"$f":"'Population at Risk'!AZ45/'Population at Risk'!AZ$5","v":4.2502709610838081E-2},{"$f":"'Population at Risk'!I45/'Population at Risk'!I$5","v":3.0701660970135651E-2},{"$f":"'Population at Risk'!J45/'Population at Risk'!J$5","v":4.4353382761949639E-2},{"$f":"'Population at Risk'!K45/'Population at Risk'!K$5","v":3.7409744774085145E-2},{"$f":"'Population at Risk'!AH45/'Population at Risk'!AH$5","v":3.6505699925855971E-2},{"$f":"'Population at Risk'!AI45/'Population at Risk'!AI$5","v":4.1120840836478663E-2},{"$f":"'Population at Risk'!BA45/'Population at Risk'!BA$5","v":3.7873134579865728E-2},{"$f":"'Population at Risk'!L45/'Population at Risk'!L$5","v":3.166826985444704E-2},{"$f":"'Population at Risk'!M45/'Population at Risk'!M$5","v":3.166826985444704E-2},{"$f":"'Population at Risk'!AJ45/'Population at Risk'!AJ$5","v":3.3511146375180802E-2},{"$f":"'Population at Risk'!AK45/'Population at Risk'!AK$5","v":3.7190163650744235E-2},{"$f":"'Population at Risk'!AL45/'Population at Risk'!AL$5","v":3.7605748011674878E-2},{"$f":"'Population at Risk'!AM45/'Population at Risk'!AM$5","v":3.7911621084207932E-2},{"$f":"'Population at Risk'!N45/'Population at Risk'!N$5","v":5.1882781951578076E-2},{"$f":"'Population at Risk'!AN45/'Population at Risk'!AN$5","v":3.2584443907081838E-2},{"$f":"'Population at Risk'!AO45/'Population at Risk'!AO$5","v":3.2584443907081838E-2},{"$f":"'Population at Risk'!AP45/'Population at Risk'!AP$5","v":3.7099419288805918E-2},{"$f":"'Population at Risk'!C45/'Population at Risk'!C$5","v":4.9714755511890966E-2},{"$f":"'Population at Risk'!AQ45/'Population at Risk'!AQ$5","v":3.7368503605794953E-2},{"$f":"'Population at Risk'!O45/'Population at Risk'!O$5","v":3.6314723594625072E-2},{"$f":"'Population at Risk'!AR45/'Population at Risk'!AR$5","v":3.96285445315721E-2},{"$f":"'Population at Risk'!AS45/'Population at Risk'!AS$5","v":3.0701660970135651E-2},{"$f":"'Population at Risk'!AT45/'Population at Risk'!AT$5","v":4.0539528580197673E-2},{"$f":"'Population at Risk'!AU45/'Population at Risk'!AU$5","v":4.0539528580197673E-2},{"$f":"'Population at Risk'!BB45/'Population at Risk'!BB$5","v":3.6726852815407378E-2},{"$f":"'Population at Risk'!P45/'Population at Risk'!P$5","v":3.6837679541450556E-2},{"$f":"'Population at Risk'!AV45/'Population at Risk'!AV$5","v":3.1831410885053812E-2},{"$f":"'Population at Risk'!AW45/'Population at Risk'!AW$5","v":3.490160703419478E-2},{"$f":"'Population at Risk'!Q45/'Population at Risk'!Q$5","v":3.42621612308932E-2},43]
[null,"Male 25-29",{"$f":"'Population at Risk'!R46/'Population at Risk'!R$5","v":3.0281427763383707E-2},{"$f":"'Population at Risk'!AX46/'Population at Risk'!AX$5","v":3.9923862029016766E-2},{"$f":"'Population at Risk'!S46/'Population at Risk'!S$5","v":4.2709964297019891E-2},{"$f":"'Population at Risk'!T46/'Population at Risk'!T$5","v":5.9374575603891859E-2},{"$f":"'Population at Risk'!U46/'Population at Risk'!U$5","v":2.6767305629430999E-2},{"$f":"'Population at Risk'!D46/'Population at Risk'!D$5","v":4.9408556889052747E-2},{"$f":"'Population at Risk'!E46/'Population at Risk'!E$5","v":3.4111579726322901E-2},{"$f":"'Population at Risk'!BC46/'Population at Risk'!BC$5","v":2.6767305629430999E-2},{"$f":"'Population at Risk'!V46/'Population at Risk'!V$5","v":3.3876033547581084E-2},{"$f":"'Population at Risk'!F46/'Population at Risk'!F$5","v":3.2066732373911423E-2},{"$f":"'Population at Risk'!W46/'Population at Risk'!W$5","v":3.4515071529249167E-2},{"$f":"'Population at Risk'!X46/'Population at Risk'!X$5","v":3.4515071529249167E-2},{"$f":"'Population at Risk'!Y46/'Population at Risk'!Y$5","v":3.5150579813696139E-2},{"$f":"'Population at Risk'!Z46/'Population at Risk'!Z$5","v":5.8703758518128583E-2},{"$f":"'Population at Risk'!AA46/'Population at Risk'!AA$5","v":4.4099840061122553E-2},{"$f":"'Population at Risk'!AB46/'Population at Risk'!AB$5","v":4.7169649491343932E-2},{"$f":"'Population at Risk'!AY46/'Population at Risk'!AY$5","v":3.8882222486946838E-2},{"$f":"'Population at Risk'!AC46/'Population at Risk'!AC$5","v":4.9350869196563042E-2},{"$f":"'Population at Risk'!AD46/'Population at Risk'!AD$5","v":3.2416084116217908E-2},{"$f":"'Population at Risk'!AE46/'Population at Risk'!AE$5","v":3.2416948230215008E-2},{"$f":"'Population at Risk'!G46/'Population at Risk'!G$5","v":3.2413822028217514E-2},{"$f":"'Population at Risk'!AF46/'Population at Risk'!AF$5","v":3.6681607995803472E-2},{"$f":"'Population at Risk'!H46/'Population at Risk'!H$5","v":3.2974718085588474E-2},{"$f":"'Population at Risk'!AG46/'Population at Risk'!AG$5","v":3.2416948230215008E-2},{"$f":"'Population at Risk'!AZ46/'Population at Risk'!AZ$5","v":4.2846494934940207E-2},{"$f":"'Population at Risk'!I46/'Population at Risk'!I$5","v":2.7014990784935432E-2},{"$f":"'Population at Risk'!J46/'Population at Risk'!J$5","v":3.6575055648931439E-2},{"$f":"'Population at Risk'!K46/'Population at Risk'!K$5","v":3.1115299268138719E-2},{"$f":"'Population at Risk'!AH46/'Population at Risk'!AH$5","v":3.4545387887814999E-2},{"$f":"'Population at Risk'!AI46/'Population at Risk'!AI$5","v":4.8309945843456242E-2},{"$f":"'Population at Risk'!BA46/'Population at Risk'!BA$5","v":3.792085965329265E-2},{"$f":"'Population at Risk'!L46/'Population at Risk'!L$5","v":2.9631485963736836E-2},{"$f":"'Population at Risk'!M46/'Population at Risk'!M$5","v":2.9631485963736836E-2},{"$f":"'Population at Risk'!AJ46/'Population at Risk'!AJ$5","v":3.2300026674344243E-2},{"$f":"'Population at Risk'!AK46/'Population at Risk'!AK$5","v":3.5788879354900237E-2},{"$f":"'Population at Risk'!AL46/'Population at Risk'!AL$5","v":3.2863987979336137E-2},{"$f":"'Population at Risk'!AM46/'Population at Risk'!AM$5","v":3.6061550853880284E-2},{"$f":"'Population at Risk'!N46/'Population at Risk'!N$5","v":5.6588478958169285E-2},{"$f":"'Population at Risk'!AN46/'Population at Risk'!AN$5","v":3.4427417383666767E-2},{"$f":"'Population at Risk'!AO46/'Population at Risk'!AO$5","v":3.4427417383666767E-2},{"$f":"'Population at Risk'!AP46/'Population at Risk'!AP$5","v":3.4677038163996601E-2},{"$f":"'Population at Risk'!C46/'Population at Risk'!C$5","v":6.4647237850059908E-2},{"$f":"'Population at Risk'!AQ46/'Population at Risk'!AQ$5","v":4.0416700406088593E-2},{"$f":"'Population at Risk'!O46/'Population at Risk'!O$5","v":3.5300577605790619E-2},{"$f":"'Population at Risk'!AR46/'Population at Risk'!AR$5","v":4.1443088376914711E-2},{"$f":"'Population at Risk'!AS46/'Population at Risk'!AS$5","v":2.7014990784935432E-2},{"$f":"'Population at Risk'!AT46/'Population at Risk'!AT$5","v":3.9525325046225142E-2},{"$f":"'Population at Risk'!AU46/'Population at Risk'!AU$5","v":3.9525325046225142E-2},{"$f":"'Population at Risk'!BB46/'Population at Risk'!BB$5","v":3.6451268148783265E-2},{"$f":"'Population at Risk'!P46/'Population at Risk'!P$5","v":3.1639916023802464E-2},{"$f":"'Population at Risk'!AV46/'Population at Risk'!AV$5","v":3.0411318681938568E-2},{"$f":"'Population at Risk'!AW46/'Population at Risk'!AW$5","v":3.2815514045304375E-2},{"$f":"'Population at Risk'!Q46/'Population at Risk'!Q$5","v":2.9574703398759578E-2},44]
[null,"Male 30-34",{"$f":"'Population at Risk'!R47/'Population at Risk'!R$5","v":2.6089149847453526E-2},{"$f":"'Population at Risk'!AX47/'Population at Risk'!AX$5","v":3.07016966716625E-2},{"$f":"'Population at Risk'!S47/'Population at Risk'!S$5","v":3.9781455923617898E-2},{"$f":"'Population at Risk'!T47/'Population at Risk'!T$5","v":5.1781123031349449E-2},{"$f":"'Population at Risk'!U47/'Population at Risk'!U$5","v":2.725851223859278E-2},{"$f":"'Population at Risk'!D47/'Population at Risk'!D$5","v":4.4160006345937447E-2},{"$f":"'Population at Risk'!E47/'Population at Risk'!E$5","v":3.6625131896653049E-2},{"$f":"'Population at Risk'!BC47/'Population at Risk'!BC$5","v":2.725851223859278E-2},{"$f":"'Population at Risk'!V47/'Population at Risk'!V$5","v":3.4086374882047507E-2},{"$f":"'Population at Risk'!F47/'Population at Risk'!F$5","v":3.2672111268199022E-2},{"$f":"'Population at Risk'!W47/'Population at Risk'!W$5","v":3.3476618640169695E-2},{"$f":"'Population at Risk'!X47/'Population at Risk'!X$5","v":3.3476618640169695E-2},{"$f":"'Population at Risk'!Y47/'Population at Risk'!Y$5","v":3.2775807025160551E-2},{"$f":"'Population at Risk'!Z47/'Population at Risk'!Z$5","v":5.1663739976137386E-2},{"$f":"'Population at Risk'!AA47/'Population at Risk'!AA$5","v":4.0871864454597506E-2},{"$f":"'Population at Risk'!AB47/'Population at Risk'!AB$5","v":4.2761640830835487E-2},{"$f":"'Population at Risk'!AY47/'Population at Risk'!AY$5","v":3.5707369652054559E-2},{"$f":"'Population at Risk'!AC47/'Population at Risk'!AC$5","v":4.415448527119379E-2},{"$f":"'Population at Risk'!AD47/'Population at Risk'!AD$5","v":3.2060884875948208E-2},{"$f":"'Population at Risk'!AE47/'Population at Risk'!AE$5","v":3.3971000434874901E-2},{"$f":"'Population at Risk'!G47/'Population at Risk'!G$5","v":2.7060561423602785E-2},{"$f":"'Population at Risk'!AF47/'Population at Risk'!AF$5","v":3.4957210822773033E-2},{"$f":"'Population at Risk'!H47/'Population at Risk'!H$5","v":3.0048633119939192E-2},{"$f":"'Population at Risk'!AG47/'Population at Risk'!AG$5","v":3.3971000434874901E-2},{"$f":"'Population at Risk'!AZ47/'Population at Risk'!AZ$5","v":3.7732329370738213E-2},{"$f":"'Population at Risk'!I47/'Population at Risk'!I$5","v":2.6820287895425503E-2},{"$f":"'Population at Risk'!J47/'Population at Risk'!J$5","v":3.1311072246828837E-2},{"$f":"'Population at Risk'!K47/'Population at Risk'!K$5","v":3.2304573156466038E-2},{"$f":"'Population at Risk'!AH47/'Population at Risk'!AH$5","v":3.4899007937083247E-2},{"$f":"'Population at Risk'!AI47/'Population at Risk'!AI$5","v":4.4202303516845169E-2},{"$f":"'Population at Risk'!BA47/'Population at Risk'!BA$5","v":3.5729000787671293E-2},{"$f":"'Population at Risk'!L47/'Population at Risk'!L$5","v":2.7656734595314075E-2},{"$f":"'Population at Risk'!M47/'Population at Risk'!M$5","v":2.7656734595314075E-2},{"$f":"'Population at Risk'!AJ47/'Population at Risk'!AJ$5","v":3.3170648013005566E-2},{"$f":"'Population at Risk'!AK47/'Population at Risk'!AK$5","v":3.5653496693033637E-2},{"$f":"'Population at Risk'!AL47/'Population at Risk'!AL$5","v":2.9767566324108163E-2},{"$f":"'Population at Risk'!AM47/'Population at Risk'!AM$5","v":3.637672052034701E-2},{"$f":"'Population at Risk'!N47/'Population at Risk'!N$5","v":4.3113405440236653E-2},{"$f":"'Population at Risk'!AN47/'Population at Risk'!AN$5","v":3.0596374799248288E-2},{"$f":"'Population at Risk'!AO47/'Population at Risk'!AO$5","v":3.0596374799248288E-2},{"$f":"'Population at Risk'!AP47/'Population at Risk'!AP$5","v":3.521842868531453E-2},{"$f":"'Population at Risk'!C47/'Population at Risk'!C$5","v":5.1666165673523119E-2},{"$f":"'Population at Risk'!AQ47/'Population at Risk'!AQ$5","v":3.8435307285585835E-2},{"$f":"'Population at Risk'!O47/'Population at Risk'!O$5","v":3.2683403906607851E-2},{"$f":"'Population at Risk'!AR47/'Population at Risk'!AR$5","v":3.8321458965862948E-2},{"$f":"'Population at Risk'!AS47/'Population at Risk'!AS$5","v":2.6820287895425503E-2},{"$f":"'Population at Risk'!AT47/'Population at Risk'!AT$5","v":3.7028123595637015E-2},{"$f":"'Population at Risk'!AU47/'Population at Risk'!AU$5","v":3.7028123595637015E-2},{"$f":"'Population at Risk'!BB47/'Population at Risk'!BB$5","v":3.732985630769383E-2},{"$f":"'Population at Risk'!P47/'Population at Risk'!P$5","v":2.7260291847245079E-2},{"$f":"'Population at Risk'!AV47/'Population at Risk'!AV$5","v":2.7351253133901691E-2},{"$f":"'Population at Risk'!AW47/'Population at Risk'!AW$5","v":3.3213004254266279E-2},{"$f":"'Population at Risk'!Q47/'Population at Risk'!Q$5","v":2.9096354776400081E-2},45]
[null,"Male 35-39",{"$f":"'Population at Risk'!R48/'Population at Risk'!R$5","v":3.1277977193509575E-2},{"$f":"'Population at Risk'!AX48/'Population at Risk'!AX$5","v":2.9774098573895503E-2},{"$f":"'Population at Risk'!S48/'Population at Risk'!S$5","v":3.6857224030575841E-2},{"$f":"'Population at Risk'!T48/'Population at Risk'!T$5","v":4.3318091968956793E-2},{"$f":"'Population at Risk'!U48/'Population at Risk'!U$5","v":3.0238491414813943E-2},{"$f":"'Population at Risk'!D48/'Population at Risk'!D$5","v":4.0532768188850592E-2},{"$f":"'Population at Risk'!E48/'Population at Risk'!E$5","v":3.9246092613629005E-2},{"$f":"'Population at Risk'!BC48/'Population at Risk'!BC$5","v":3.0238491414813943E-2},{"$f":"'Population at Risk'!V48/'Population at Risk'!V$5","v":3.6215987973026983E-2},{"$f":"'Population at Risk'!F48/'Population at Risk'!F$5","v":3.1465771989595867E-2},{"$f":"'Population at Risk'!W48/'Population at Risk'!W$5","v":3.3239304072406432E-2},{"$f":"'Population at Risk'!X48/'Population at Risk'!X$5","v":3.3239304072406432E-2},{"$f":"'Population at Risk'!Y48/'Population at Risk'!Y$5","v":3.3788327391807871E-2},{"$f":"'Population at Risk'!Z48/'Population at Risk'!Z$5","v":4.1207248113463962E-2},{"$f":"'Population at Risk'!AA48/'Population at Risk'!AA$5","v":3.6527870588282135E-2},{"$f":"'Population at Risk'!AB48/'Population at Risk'!AB$5","v":3.9416865447599862E-2},{"$f":"'Population at Risk'!AY48/'Population at Risk'!AY$5","v":3.3026470761137516E-2},{"$f":"'Population at Risk'!AC48/'Population at Risk'!AC$5","v":3.7197685381274194E-2},{"$f":"'Population at Risk'!AD48/'Population at Risk'!AD$5","v":3.205223554961268E-2},{"$f":"'Population at Risk'!AE48/'Population at Risk'!AE$5","v":3.335410949012798E-2},{"$f":"'Population at Risk'!G48/'Population at Risk'!G$5","v":2.8644174311467551E-2},{"$f":"'Population at Risk'!AF48/'Population at Risk'!AF$5","v":3.0759518572297879E-2},{"$f":"'Population at Risk'!H48/'Population at Risk'!H$5","v":2.9174329611505165E-2},{"$f":"'Population at Risk'!AG48/'Population at Risk'!AG$5","v":3.335410949012798E-2},{"$f":"'Population at Risk'!AZ48/'Population at Risk'!AZ$5","v":3.283327175335158E-2},{"$f":"'Population at Risk'!I48/'Population at Risk'!I$5","v":2.8217042811606505E-2},{"$f":"'Population at Risk'!J48/'Population at Risk'!J$5","v":3.1075092159758896E-2},{"$f":"'Population at Risk'!K48/'Population at Risk'!K$5","v":3.3196178668082832E-2},{"$f":"'Population at Risk'!AH48/'Population at Risk'!AH$5","v":3.5309116466081002E-2},{"$f":"'Population at Risk'!AI48/'Population at Risk'!AI$5","v":3.954665881140889E-2},{"$f":"'Population at Risk'!BA48/'Population at Risk'!BA$5","v":3.1533640828557585E-2},{"$f":"'Population at Risk'!L48/'Population at Risk'!L$5","v":2.5387237733014399E-2},{"$f":"'Population at Risk'!M48/'Population at Risk'!M$5","v":2.5387237733014399E-2},{"$f":"'Population at Risk'!AJ48/'Population at Risk'!AJ$5","v":3.3858983032416974E-2},{"$f":"'Population at Risk'!AK48/'Population at Risk'!AK$5","v":3.3744530537367215E-2},{"$f":"'Population at Risk'!AL48/'Population at Risk'!AL$5","v":2.8394535898941111E-2},{"$f":"'Population at Risk'!AM48/'Population at Risk'!AM$5","v":3.5995446435619624E-2},{"$f":"'Population at Risk'!N48/'Population at Risk'!N$5","v":3.2033969945983697E-2},{"$f":"'Population at Risk'!AN48/'Population at Risk'!AN$5","v":2.9932580324560171E-2},{"$f":"'Population at Risk'!AO48/'Population at Risk'!AO$5","v":2.9932580324560171E-2},{"$f":"'Population at Risk'!AP48/'Population at Risk'!AP$5","v":3.4936901125284935E-2},{"$f":"'Population at Risk'!C48/'Population at Risk'!C$5","v":4.1814540292092917E-2},{"$f":"'Population at Risk'!AQ48/'Population at Risk'!AQ$5","v":3.4084879685076362E-2},{"$f":"'Population at Risk'!O48/'Population at Risk'!O$5","v":3.0895503034078418E-2},{"$f":"'Population at Risk'!AR48/'Population at Risk'!AR$5","v":3.530449605869089E-2},{"$f":"'Population at Risk'!AS48/'Population at Risk'!AS$5","v":2.8217042811606505E-2},{"$f":"'Population at Risk'!AT48/'Population at Risk'!AT$5","v":4.0055283494224263E-2},{"$f":"'Population at Risk'!AU48/'Population at Risk'!AU$5","v":4.0055283494224263E-2},{"$f":"'Population at Risk'!BB48/'Population at Risk'!BB$5","v":3.6925331607074847E-2},{"$f":"'Population at Risk'!P48/'Population at Risk'!P$5","v":2.8109354944182791E-2},{"$f":"'Population at Risk'!AV48/'Population at Risk'!AV$5","v":2.8203237303083301E-2},{"$f":"'Population at Risk'!AW48/'Population at Risk'!AW$5","v":3.4526044798846481E-2},{"$f":"'Population at Risk'!Q48/'Population at Risk'!Q$5","v":3.0720521312349196E-2},46]
[null,"Male 40-44",{"$f":"'Population at Risk'!R49/'Population at Risk'!R$5","v":3.6706933110282482E-2},{"$f":"'Population at Risk'!AX49/'Population at Risk'!AX$5","v":3.2886006457314786E-2},{"$f":"'Population at Risk'!S49/'Population at Risk'!S$5","v":3.7153148695728375E-2},{"$f":"'Population at Risk'!T49/'Population at Risk'!T$5","v":3.7796951673204279E-2},{"$f":"'Population at Risk'!U49/'Population at Risk'!U$5","v":3.5719828416314249E-2},{"$f":"'Population at Risk'!D49/'Population at Risk'!D$5","v":3.9068621076554795E-2},{"$f":"'Population at Risk'!E49/'Population at Risk'!E$5","v":4.2733539225732919E-2},{"$f":"'Population at Risk'!BC49/'Population at Risk'!BC$5","v":3.5719828416314249E-2},{"$f":"'Population at Risk'!V49/'Population at Risk'!V$5","v":3.8826570968211314E-2},{"$f":"'Population at Risk'!F49/'Population at Risk'!F$5","v":3.5249973032949522E-2},{"$f":"'Population at Risk'!W49/'Population at Risk'!W$5","v":3.5542037743099837E-2},{"$f":"'Population at Risk'!X49/'Population at Risk'!X$5","v":3.5542037743099837E-2},{"$f":"'Population at Risk'!Y49/'Population at Risk'!Y$5","v":3.6687147922717357E-2},{"$f":"'Population at Risk'!Z49/'Population at Risk'!Z$5","v":3.5075990446416114E-2},{"$f":"'Population at Risk'!AA49/'Population at Risk'!AA$5","v":3.5377364251333039E-2},{"$f":"'Population at Risk'!AB49/'Population at Risk'!AB$5","v":3.886319105347584E-2},{"$f":"'Population at Risk'!AY49/'Population at Risk'!AY$5","v":3.3901270082988426E-2},{"$f":"'Population at Risk'!AC49/'Population at Risk'!AC$5","v":3.4318429615750289E-2},{"$f":"'Population at Risk'!AD49/'Population at Risk'!AD$5","v":3.421936025489565E-2},{"$f":"'Population at Risk'!AE49/'Population at Risk'!AE$5","v":3.4645375823381876E-2},{"$f":"'Population at Risk'!G49/'Population at Risk'!G$5","v":3.3104131582886429E-2},{"$f":"'Population at Risk'!AF49/'Population at Risk'!AF$5","v":3.2016338771515884E-2},{"$f":"'Population at Risk'!H49/'Population at Risk'!H$5","v":3.3204107563655237E-2},{"$f":"'Population at Risk'!AG49/'Population at Risk'!AG$5","v":3.4645375823381876E-2},{"$f":"'Population at Risk'!AZ49/'Population at Risk'!AZ$5","v":3.241186655846099E-2},{"$f":"'Population at Risk'!I49/'Population at Risk'!I$5","v":3.5124205745720699E-2},{"$f":"'Population at Risk'!J49/'Population at Risk'!J$5","v":3.429605666877579E-2},{"$f":"'Population at Risk'!K49/'Population at Risk'!K$5","v":3.659494462032889E-2},{"$f":"'Population at Risk'!AH49/'Population at Risk'!AH$5","v":3.7304137093260081E-2},{"$f":"'Population at Risk'!AI49/'Population at Risk'!AI$5","v":3.8120014540701061E-2},{"$f":"'Population at Risk'!BA49/'Population at Risk'!BA$5","v":3.1449053330137484E-2},{"$f":"'Population at Risk'!L49/'Population at Risk'!L$5","v":3.0384465560866294E-2},{"$f":"'Population at Risk'!M49/'Population at Risk'!M$5","v":3.0384465560866294E-2},{"$f":"'Population at Risk'!AJ49/'Population at Risk'!AJ$5","v":3.5345118116894787E-2},{"$f":"'Population at Risk'!AK49/'Population at Risk'!AK$5","v":3.7818953192553878E-2},{"$f":"'Population at Risk'!AL49/'Population at Risk'!AL$5","v":3.267651116902185E-2},{"$f":"'Population at Risk'!AM49/'Population at Risk'!AM$5","v":3.7736159658134358E-2},{"$f":"'Population at Risk'!N49/'Population at Risk'!N$5","v":2.8872082955281833E-2},{"$f":"'Population at Risk'!AN49/'Population at Risk'!AN$5","v":3.4834720607058299E-2},{"$f":"'Population at Risk'!AO49/'Population at Risk'!AO$5","v":3.4834720607058299E-2},{"$f":"'Population at Risk'!AP49/'Population at Risk'!AP$5","v":3.4466131204207141E-2},{"$f":"'Population at Risk'!C49/'Population at Risk'!C$5","v":3.5417669791904784E-2},{"$f":"'Population at Risk'!AQ49/'Population at Risk'!AQ$5","v":3.3628556385557465E-2},{"$f":"'Population at Risk'!O49/'Population at Risk'!O$5","v":3.5315778760617839E-2},{"$f":"'Population at Risk'!AR49/'Population at Risk'!AR$5","v":3.5654245884343932E-2},{"$f":"'Population at Risk'!AS49/'Population at Risk'!AS$5","v":3.5124205745720699E-2},{"$f":"'Population at Risk'!AT49/'Population at Risk'!AT$5","v":4.4574235744874714E-2},{"$f":"'Population at Risk'!AU49/'Population at Risk'!AU$5","v":4.4574235744874714E-2},{"$f":"'Population at Risk'!BB49/'Population at Risk'!BB$5","v":4.0224955297827721E-2},{"$f":"'Population at Risk'!P49/'Population at Risk'!P$5","v":3.3117121917299423E-2},{"$f":"'Population at Risk'!AV49/'Population at Risk'!AV$5","v":3.1443371650616586E-2},{"$f":"'Population at Risk'!AW49/'Population at Risk'!AW$5","v":3.6811218751975287E-2},{"$f":"'Population at Risk'!Q49/'Population at Risk'!Q$5","v":3.8352433867840673E-2},47]
[null,"Male 45-49",{"$f":"'Population at Risk'!R50/'Population at Risk'!R$5","v":4.0993602718387256E-2},{"$f":"'Population at Risk'!AX50/'Population at Risk'!AX$5","v":4.051490322313156E-2},{"$f":"'Population at Risk'!S50/'Population at Risk'!S$5","v":4.0826420039225979E-2},{"$f":"'Population at Risk'!T50/'Population at Risk'!T$5","v":3.6327791940648078E-2},{"$f":"'Population at Risk'!U50/'Population at Risk'!U$5","v":4.6671511556641565E-2},{"$f":"'Population at Risk'!D50/'Population at Risk'!D$5","v":4.1021398489377248E-2},{"$f":"'Population at Risk'!E50/'Population at Risk'!E$5","v":4.6982019849699352E-2},{"$f":"'Population at Risk'!BC50/'Population at Risk'!BC$5","v":4.6671511556641565E-2},{"$f":"'Population at Risk'!V50/'Population at Risk'!V$5","v":4.5300702597047771E-2},{"$f":"'Population at Risk'!F50/'Population at Risk'!F$5","v":4.1835870704530743E-2},{"$f":"'Population at Risk'!W50/'Population at Risk'!W$5","v":4.2984877653197043E-2},{"$f":"'Population at Risk'!X50/'Population at Risk'!X$5","v":4.2984877653197043E-2},{"$f":"'Population at Risk'!Y50/'Population at Risk'!Y$5","v":4.4054594028463602E-2},{"$f":"'Population at Risk'!Z50/'Population at Risk'!Z$5","v":3.7598238707963708E-2},{"$f":"'Population at Risk'!AA50/'Population at Risk'!AA$5","v":4.0648313209944546E-2},{"$f":"'Population at Risk'!AB50/'Population at Risk'!AB$5","v":4.1979968473687859E-2},{"$f":"'Population at Risk'!AY50/'Population at Risk'!AY$5","v":4.1103893520030625E-2},{"$f":"'Population at Risk'!AC50/'Population at Risk'!AC$5","v":3.9032382249657362E-2},{"$f":"'Population at Risk'!AD50/'Population at Risk'!AD$5","v":4.1909072569008374E-2},{"$f":"'Population at Risk'!AE50/'Population at Risk'!AE$5","v":4.205263360189046E-2},{"$f":"'Population at Risk'!G50/'Population at Risk'!G$5","v":4.1533256772833912E-2},{"$f":"'Population at Risk'!AF50/'Population at Risk'!AF$5","v":4.0923422391949245E-2},{"$f":"'Population at Risk'!H50/'Population at Risk'!H$5","v":4.0372501761502276E-2},{"$f":"'Population at Risk'!AG50/'Population at Risk'!AG$5","v":4.205263360189046E-2},{"$f":"'Population at Risk'!AZ50/'Population at Risk'!AZ$5","v":3.9396433977996477E-2},{"$f":"'Population at Risk'!I50/'Population at Risk'!I$5","v":4.5243693682392554E-2},{"$f":"'Population at Risk'!J50/'Population at Risk'!J$5","v":4.2661901121804111E-2},{"$f":"'Population at Risk'!K50/'Population at Risk'!K$5","v":4.6162278314864587E-2},{"$f":"'Population at Risk'!AH50/'Population at Risk'!AH$5","v":4.3588562573869664E-2},{"$f":"'Population at Risk'!AI50/'Population at Risk'!AI$5","v":3.9315480017633603E-2},{"$f":"'Population at Risk'!BA50/'Population at Risk'!BA$5","v":3.9123254660926622E-2},{"$f":"'Population at Risk'!L50/'Population at Risk'!L$5","v":3.9440765283549492E-2},{"$f":"'Population at Risk'!M50/'Population at Risk'!M$5","v":3.9440765283549492E-2},{"$f":"'Population at Risk'!AJ50/'Population at Risk'!AJ$5","v":4.0617405770305662E-2},{"$f":"'Population at Risk'!AK50/'Population at Risk'!AK$5","v":4.685255260213262E-2},{"$f":"'Population at Risk'!AL50/'Population at Risk'!AL$5","v":4.0334049822176268E-2},{"$f":"'Population at Risk'!AM50/'Population at Risk'!AM$5","v":4.3585395096655086E-2},{"$f":"'Population at Risk'!N50/'Population at Risk'!N$5","v":3.5246275443979888E-2},{"$f":"'Population at Risk'!AN50/'Population at Risk'!AN$5","v":4.4396238391752635E-2},{"$f":"'Population at Risk'!AO50/'Population at Risk'!AO$5","v":4.4396238391752635E-2},{"$f":"'Population at Risk'!AP50/'Population at Risk'!AP$5","v":4.2529989780428455E-2},{"$f":"'Population at Risk'!C50/'Population at Risk'!C$5","v":3.5083492831740538E-2},{"$f":"'Population at Risk'!AQ50/'Population at Risk'!AQ$5","v":4.2363698899458131E-2},{"$f":"'Population at Risk'!O50/'Population at Risk'!O$5","v":4.2225180569664011E-2},{"$f":"'Population at Risk'!AR50/'Population at Risk'!AR$5","v":4.0991233769252268E-2},{"$f":"'Population at Risk'!AS50/'Population at Risk'!AS$5","v":4.5243693682392554E-2},{"$f":"'Population at Risk'!AT50/'Population at Risk'!AT$5","v":4.5822550878904175E-2},{"$f":"'Population at Risk'!AU50/'Population at Risk'!AU$5","v":4.5822550878904175E-2},{"$f":"'Population at Risk'!BB50/'Population at Risk'!BB$5","v":4.5215755880144648E-2},{"$f":"'Population at Risk'!P50/'Population at Risk'!P$5","v":4.0413897869724581E-2},{"$f":"'Population at Risk'!AV50/'Population at Risk'!AV$5","v":3.8264602761521375E-2},{"$f":"'Population at Risk'!AW50/'Population at Risk'!AW$5","v":4.3592176523097347E-2},{"$f":"'Population at Risk'!Q50/'Population at Risk'!Q$5","v":4.2104208799376062E-2},48]
[null,"Male 50-54",{"$f":"'Population at Risk'!R51/'Population at Risk'!R$5","v":4.580740442006536E-2},{"$f":"'Population at Risk'!AX51/'Population at Risk'!AX$5","v":4.3478397759158217E-2},{"$f":"'Population at Risk'!S51/'Population at Risk'!S$5","v":4.1333011640187406E-2},{"$f":"'Population at Risk'!T51/'Population at Risk'!T$5","v":3.6188076298790124E-2},{"$f":"'Population at Risk'!U51/'Population at Risk'!U$5","v":4.5379878870165875E-2},{"$f":"'Population at Risk'!D51/'Population at Risk'!D$5","v":4.140959818732972E-2},{"$f":"'Population at Risk'!E51/'Population at Risk'!E$5","v":4.7855927777162334E-2},{"$f":"'Population at Risk'!BC51/'Population at Risk'!BC$5","v":4.5379878870165875E-2},{"$f":"'Population at Risk'!V51/'Population at Risk'!V$5","v":4.4842740216810402E-2},{"$f":"'Population at Risk'!F51/'Population at Risk'!F$5","v":4.7410965764311933E-2},{"$f":"'Population at Risk'!W51/'Population at Risk'!W$5","v":4.2606011767374184E-2},{"$f":"'Population at Risk'!X51/'Population at Risk'!X$5","v":4.2606011767374184E-2},{"$f":"'Population at Risk'!Y51/'Population at Risk'!Y$5","v":4.4642813275396494E-2},{"$f":"'Population at Risk'!Z51/'Population at Risk'!Z$5","v":3.7868907355335706E-2},{"$f":"'Population at Risk'!AA51/'Population at Risk'!AA$5","v":4.2185986439287983E-2},{"$f":"'Population at Risk'!AB51/'Population at Risk'!AB$5","v":4.2203998704848034E-2},{"$f":"'Population at Risk'!AY51/'Population at Risk'!AY$5","v":4.3070504014772588E-2},{"$f":"'Population at Risk'!AC51/'Population at Risk'!AC$5","v":4.1269118456956105E-2},{"$f":"'Population at Risk'!AD51/'Population at Risk'!AD$5","v":4.6709879811772256E-2},{"$f":"'Population at Risk'!AE51/'Population at Risk'!AE$5","v":4.6731981862127729E-2},{"$f":"'Population at Risk'!G51/'Population at Risk'!G$5","v":4.6652020798886397E-2},{"$f":"'Population at Risk'!AF51/'Population at Risk'!AF$5","v":4.8677905857195183E-2},{"$f":"'Population at Risk'!H51/'Population at Risk'!H$5","v":4.3653948728561411E-2},{"$f":"'Population at Risk'!AG51/'Population at Risk'!AG$5","v":4.6731981862127729E-2},{"$f":"'Population at Risk'!AZ51/'Population at Risk'!AZ$5","v":4.3492145912775303E-2},{"$f":"'Population at Risk'!I51/'Population at Risk'!I$5","v":5.02028341396238E-2},{"$f":"'Population at Risk'!J51/'Population at Risk'!J$5","v":4.4419368191896583E-2},{"$f":"'Population at Risk'!K51/'Population at Risk'!K$5","v":4.5953487738142104E-2},{"$f":"'Population at Risk'!AH51/'Population at Risk'!AH$5","v":4.3854263468509284E-2},{"$f":"'Population at Risk'!AI51/'Population at Risk'!AI$5","v":3.9646950388846247E-2},{"$f":"'Population at Risk'!BA51/'Population at Risk'!BA$5","v":4.5663804330363052E-2},{"$f":"'Population at Risk'!L51/'Population at Risk'!L$5","v":4.5692499588731214E-2},{"$f":"'Population at Risk'!M51/'Population at Risk'!M$5","v":4.5692499588731214E-2},{"$f":"'Population at Risk'!AJ51/'Population at Risk'!AJ$5","v":4.1473531013395529E-2},{"$f":"'Population at Risk'!AK51/'Population at Risk'!AK$5","v":4.6242079822182286E-2},{"$f":"'Population at Risk'!AL51/'Population at Risk'!AL$5","v":4.407963214434301E-2},{"$f":"'Population at Risk'!AM51/'Population at Risk'!AM$5","v":4.3960594369252537E-2},{"$f":"'Population at Risk'!N51/'Population at Risk'!N$5","v":3.6767916185881239E-2},{"$f":"'Population at Risk'!AN51/'Population at Risk'!AN$5","v":5.1397479455158983E-2},{"$f":"'Population at Risk'!AO51/'Population at Risk'!AO$5","v":5.1397479455158983E-2},{"$f":"'Population at Risk'!AP51/'Population at Risk'!AP$5","v":4.8596706558132606E-2},{"$f":"'Population at Risk'!C51/'Population at Risk'!C$5","v":3.4987835315884785E-2},{"$f":"'Population at Risk'!AQ51/'Population at Risk'!AQ$5","v":4.5136849318830621E-2},{"$f":"'Population at Risk'!O51/'Population at Risk'!O$5","v":4.4641065557611E-2},{"$f":"'Population at Risk'!AR51/'Population at Risk'!AR$5","v":4.2762606279786133E-2},{"$f":"'Population at Risk'!AS51/'Population at Risk'!AS$5","v":5.02028341396238E-2},{"$f":"'Population at Risk'!AT51/'Population at Risk'!AT$5","v":5.2280048679128235E-2},{"$f":"'Population at Risk'!AU51/'Population at Risk'!AU$5","v":5.2280048679128235E-2},{"$f":"'Population at Risk'!BB51/'Population at Risk'!BB$5","v":4.461689986734739E-2},{"$f":"'Population at Risk'!P51/'Population at Risk'!P$5","v":4.52502825556612E-2},{"$f":"'Population at Risk'!AV51/'Population at Risk'!AV$5","v":4.1938898690717798E-2},{"$f":"'Population at Risk'!AW51/'Population at Risk'!AW$5","v":4.3732944686845764E-2},{"$f":"'Population at Risk'!Q51/'Population at Risk'!Q$5","v":4.6055669732602222E-2},49]
[null,"Male 55-59",{"$f":"'Population at Risk'!R52/'Population at Risk'!R$5","v":3.3220686142940818E-2},{"$f":"'Population at Risk'!AX52/'Population at Risk'!AX$5","v":2.972284343750237E-2},{"$f":"'Population at Risk'!S52/'Population at Risk'!S$5","v":2.9775172305405734E-2},{"$f":"'Population at Risk'!T52/'Population at Risk'!T$5","v":2.4761460287875875E-2},{"$f":"'Population at Risk'!U52/'Population at Risk'!U$5","v":3.6072711380085762E-2},{"$f":"'Population at Risk'!D52/'Population at Risk'!D$5","v":2.8917794567679293E-2},{"$f":"'Population at Risk'!E52/'Population at Risk'!E$5","v":3.0621533617680483E-2},{"$f":"'Population at Risk'!BC52/'Population at Risk'!BC$5","v":3.6072711380085762E-2},{"$f":"'Population at Risk'!V52/'Population at Risk'!V$5","v":3.2730691224270483E-2},{"$f":"'Population at Risk'!F52/'Population at Risk'!F$5","v":3.1082390237275711E-2},{"$f":"'Population at Risk'!W52/'Population at Risk'!W$5","v":3.2101523170430413E-2},{"$f":"'Population at Risk'!X52/'Population at Risk'!X$5","v":3.2101523170430413E-2},{"$f":"'Population at Risk'!Y52/'Population at Risk'!Y$5","v":3.1998326084291463E-2},{"$f":"'Population at Risk'!Z52/'Population at Risk'!Z$5","v":2.5106396806367746E-2},{"$f":"'Population at Risk'!AA52/'Population at Risk'!AA$5","v":2.9759334579004742E-2},{"$f":"'Population at Risk'!AB52/'Population at Risk'!AB$5","v":2.9159279795380896E-2},{"$f":"'Population at Risk'!AY52/'Population at Risk'!AY$5","v":3.0556373605304173E-2},{"$f":"'Population at Risk'!AC52/'Population at Risk'!AC$5","v":2.8380409439083643E-2},{"$f":"'Population at Risk'!AD52/'Population at Risk'!AD$5","v":3.3551245251938359E-2},{"$f":"'Population at Risk'!AE52/'Population at Risk'!AE$5","v":3.3526001160020226E-2},{"$f":"'Population at Risk'!G52/'Population at Risk'!G$5","v":3.3617329538965623E-2},{"$f":"'Population at Risk'!AF52/'Population at Risk'!AF$5","v":3.2145493008692419E-2},{"$f":"'Population at Risk'!H52/'Population at Risk'!H$5","v":3.2926286317673213E-2},{"$f":"'Population at Risk'!AG52/'Population at Risk'!AG$5","v":3.3526001160020226E-2},{"$f":"'Population at Risk'!AZ52/'Population at Risk'!AZ$5","v":2.91537672130836E-2},{"$f":"'Population at Risk'!I52/'Population at Risk'!I$5","v":3.3854520667770664E-2},{"$f":"'Population at Risk'!J52/'Population at Risk'!J$5","v":3.1179810136927166E-2},{"$f":"'Population at Risk'!K52/'Population at Risk'!K$5","v":3.3555188803514741E-2},{"$f":"'Population at Risk'!AH52/'Population at Risk'!AH$5","v":3.2268342615358478E-2},{"$f":"'Population at Risk'!AI52/'Population at Risk'!AI$5","v":2.8233186587002197E-2},{"$f":"'Population at Risk'!BA52/'Population at Risk'!BA$5","v":3.3235172314298032E-2},{"$f":"'Population at Risk'!L52/'Population at Risk'!L$5","v":3.5285812915392213E-2},{"$f":"'Population at Risk'!M52/'Population at Risk'!M$5","v":3.5285812915392213E-2},{"$f":"'Population at Risk'!AJ52/'Population at Risk'!AJ$5","v":3.3814773784401932E-2},{"$f":"'Population at Risk'!AK52/'Population at Risk'!AK$5","v":3.0386792764711974E-2},{"$f":"'Population at Risk'!AL52/'Population at Risk'!AL$5","v":3.1848934954248065E-2},{"$f":"'Population at Risk'!AM52/'Population at Risk'!AM$5","v":3.0902577620498688E-2},{"$f":"'Population at Risk'!N52/'Population at Risk'!N$5","v":2.7251083476814125E-2},{"$f":"'Population at Risk'!AN52/'Population at Risk'!AN$5","v":3.4700880459101191E-2},{"$f":"'Population at Risk'!AO52/'Population at Risk'!AO$5","v":3.4700880459101191E-2},{"$f":"'Population at Risk'!AP52/'Population at Risk'!AP$5","v":2.9928843791830896E-2},{"$f":"'Population at Risk'!C52/'Population at Risk'!C$5","v":2.7220548402794222E-2},{"$f":"'Population at Risk'!AQ52/'Population at Risk'!AQ$5","v":3.1888465732736626E-2},{"$f":"'Population at Risk'!O52/'Population at Risk'!O$5","v":3.2860573192947287E-2},{"$f":"'Population at Risk'!AR52/'Population at Risk'!AR$5","v":3.043009780947761E-2},{"$f":"'Population at Risk'!AS52/'Population at Risk'!AS$5","v":3.3854520667770664E-2},{"$f":"'Population at Risk'!AT52/'Population at Risk'!AT$5","v":2.8066774954803555E-2},{"$f":"'Population at Risk'!AU52/'Population at Risk'!AU$5","v":2.8066774954803555E-2},{"$f":"'Population at Risk'!BB52/'Population at Risk'!BB$5","v":3.1623493104350281E-2},{"$f":"'Population at Risk'!P52/'Population at Risk'!P$5","v":3.4984774757764882E-2},{"$f":"'Population at Risk'!AV52/'Population at Risk'!AV$5","v":3.4432221510857036E-2},{"$f":"'Population at Risk'!AW52/'Population at Risk'!AW$5","v":3.3826619128176853E-2},{"$f":"'Population at Risk'!Q52/'Population at Risk'!Q$5","v":3.4217739465496395E-2},50]
[null,"Male 60-64",{"$f":"'Population at Risk'!R53/'Population at Risk'!R$5","v":2.8473191605420414E-2},{"$f":"'Population at Risk'!AX53/'Population at Risk'!AX$5","v":2.4642041870144057E-2},{"$f":"'Population at Risk'!S53/'Population at Risk'!S$5","v":2.526577081996614E-2},{"$f":"'Population at Risk'!T53/'Population at Risk'!T$5","v":2.0779442276116396E-2},{"$f":"'Population at Risk'!U53/'Population at Risk'!U$5","v":3.5225788781962857E-2},{"$f":"'Population at Risk'!D53/'Population at Risk'!D$5","v":2.5509858629642612E-2},{"$f":"'Population at Risk'!E53/'Population at Risk'!E$5","v":2.7235295838432955E-2},{"$f":"'Population at Risk'!BC53/'Population at Risk'!BC$5","v":3.5225788781962857E-2},{"$f":"'Population at Risk'!V53/'Population at Risk'!V$5","v":2.6940382295233659E-2},{"$f":"'Population at Risk'!F53/'Population at Risk'!F$5","v":2.8592349022247936E-2},{"$f":"'Population at Risk'!W53/'Population at Risk'!W$5","v":2.7635962600699514E-2},{"$f":"'Population at Risk'!X53/'Population at Risk'!X$5","v":2.7635962600699514E-2},{"$f":"'Population at Risk'!Y53/'Population at Risk'!Y$5","v":2.663080015398778E-2},{"$f":"'Population at Risk'!Z53/'Population at Risk'!Z$5","v":2.0442824509137605E-2},{"$f":"'Population at Risk'!AA53/'Population at Risk'!AA$5","v":2.4818587403923027E-2},{"$f":"'Population at Risk'!AB53/'Population at Risk'!AB$5","v":2.5746943451930775E-2},{"$f":"'Population at Risk'!AY53/'Population at Risk'!AY$5","v":2.6648450538106962E-2},{"$f":"'Population at Risk'!AC53/'Population at Risk'!AC$5","v":2.3337544217696193E-2},{"$f":"'Population at Risk'!AD53/'Population at Risk'!AD$5","v":3.0933962245246461E-2},{"$f":"'Population at Risk'!AE53/'Population at Risk'!AE$5","v":3.0517735033505893E-2},{"$f":"'Population at Risk'!G53/'Population at Risk'!G$5","v":3.2023566839399976E-2},{"$f":"'Population at Risk'!AF53/'Population at Risk'!AF$5","v":2.6238019156169166E-2},{"$f":"'Population at Risk'!H53/'Population at Risk'!H$5","v":2.935327683572669E-2},{"$f":"'Population at Risk'!AG53/'Population at Risk'!AG$5","v":3.0517735033505893E-2},{"$f":"'Population at Risk'!AZ53/'Population at Risk'!AZ$5","v":2.5752038460824286E-2},{"$f":"'Population at Risk'!I53/'Population at Risk'!I$5","v":3.128555113046453E-2},{"$f":"'Population at Risk'!J53/'Population at Risk'!J$5","v":2.6284800725838869E-2},{"$f":"'Population at Risk'!K53/'Population at Risk'!K$5","v":2.8963087293202301E-2},{"$f":"'Population at Risk'!AH53/'Population at Risk'!AH$5","v":2.7513403205629762E-2},{"$f":"'Population at Risk'!AI53/'Population at Risk'!AI$5","v":2.3458250330400537E-2},{"$f":"'Population at Risk'!BA53/'Population at Risk'!BA$5","v":2.8503135333741943E-2},{"$f":"'Population at Risk'!L53/'Population at Risk'!L$5","v":3.2958878010127174E-2},{"$f":"'Population at Risk'!M53/'Population at Risk'!M$5","v":3.2958878010127174E-2},{"$f":"'Population at Risk'!AJ53/'Population at Risk'!AJ$5","v":3.0079379370303163E-2},{"$f":"'Population at Risk'!AK53/'Population at Risk'!AK$5","v":2.6952088366839967E-2},{"$f":"'Population at Risk'!AL53/'Population at Risk'!AL$5","v":2.8384495467315893E-2},{"$f":"'Population at Risk'!AM53/'Population at Risk'!AM$5","v":2.6242551202148679E-2},{"$f":"'Population at Risk'!N53/'Population at Risk'!N$5","v":2.2118471279284957E-2},{"$f":"'Population at Risk'!AN53/'Population at Risk'!AN$5","v":3.0473610699744646E-2},{"$f":"'Population at Risk'!AO53/'Population at Risk'!AO$5","v":3.0473610699744646E-2},{"$f":"'Population at Risk'!AP53/'Population at Risk'!AP$5","v":2.7920322584588021E-2},{"$f":"'Population at Risk'!C53/'Population at Risk'!C$5","v":2.3790996996831314E-2},{"$f":"'Population at Risk'!AQ53/'Population at Risk'!AQ$5","v":2.5359716402137772E-2},{"$f":"'Population at Risk'!O53/'Population at Risk'!O$5","v":2.8268202477297742E-2},{"$f":"'Population at Risk'!AR53/'Population at Risk'!AR$5","v":2.6169795347397093E-2},{"$f":"'Population at Risk'!AS53/'Population at Risk'!AS$5","v":3.128555113046453E-2},{"$f":"'Population at Risk'!AT53/'Population at Risk'!AT$5","v":2.6314833860261913E-2},{"$f":"'Population at Risk'!AU53/'Population at Risk'!AU$5","v":2.6314833860261913E-2},{"$f":"'Population at Risk'!BB53/'Population at Risk'!BB$5","v":2.5118938410261672E-2},{"$f":"'Population at Risk'!P53/'Population at Risk'!P$5","v":3.0152750097275249E-2},{"$f":"'Population at Risk'!AV53/'Population at Risk'!AV$5","v":3.1903023386010067E-2},{"$f":"'Population at Risk'!AW53/'Population at Risk'!AW$5","v":2.8963388258509269E-2},{"$f":"'Population at Risk'!Q53/'Population at Risk'!Q$5","v":2.774066845262228E-2},51]
[null,"Male 65-69",{"$f":"'Population at Risk'!R54/'Population at Risk'!R$5","v":2.5044340529617501E-2},{"$f":"'Population at Risk'!AX54/'Population at Risk'!AX$5","v":2.5277991171874303E-2},{"$f":"'Population at Risk'!S54/'Population at Risk'!S$5","v":2.5118071951225909E-2},{"$f":"'Population at Risk'!T54/'Population at Risk'!T$5","v":1.9053076115239688E-2},{"$f":"'Population at Risk'!U54/'Population at Risk'!U$5","v":3.7033481863731003E-2},{"$f":"'Population at Risk'!D54/'Population at Risk'!D$5","v":2.4637834075250942E-2},{"$f":"'Population at Risk'!E54/'Population at Risk'!E$5","v":2.7809641440684024E-2},{"$f":"'Population at Risk'!BC54/'Population at Risk'!BC$5","v":3.7033481863731003E-2},{"$f":"'Population at Risk'!V54/'Population at Risk'!V$5","v":2.8826929335879031E-2},{"$f":"'Population at Risk'!F54/'Population at Risk'!F$5","v":3.1775230928941488E-2},{"$f":"'Population at Risk'!W54/'Population at Risk'!W$5","v":2.8738826527982986E-2},{"$f":"'Population at Risk'!X54/'Population at Risk'!X$5","v":2.8738826527982986E-2},{"$f":"'Population at Risk'!Y54/'Population at Risk'!Y$5","v":2.7935081248503222E-2},{"$f":"'Population at Risk'!Z54/'Population at Risk'!Z$5","v":1.7668234161830988E-2},{"$f":"'Population at Risk'!AA54/'Population at Risk'!AA$5","v":2.2665971608668397E-2},{"$f":"'Population at Risk'!AB54/'Population at Risk'!AB$5","v":2.5030999805443755E-2},{"$f":"'Population at Risk'!AY54/'Population at Risk'!AY$5","v":2.7604788537334685E-2},{"$f":"'Population at Risk'!AC54/'Population at Risk'!AC$5","v":2.0925497613230367E-2},{"$f":"'Population at Risk'!AD54/'Population at Risk'!AD$5","v":3.1824401141667798E-2},{"$f":"'Population at Risk'!AE54/'Population at Risk'!AE$5","v":3.0765809557360368E-2},{"$f":"'Population at Risk'!G54/'Population at Risk'!G$5","v":3.4595594905694395E-2},{"$f":"'Population at Risk'!AF54/'Population at Risk'!AF$5","v":2.573433773347306E-2},{"$f":"'Population at Risk'!H54/'Population at Risk'!H$5","v":3.0300832655684333E-2},{"$f":"'Population at Risk'!AG54/'Population at Risk'!AG$5","v":3.0765809557360368E-2},{"$f":"'Population at Risk'!AZ54/'Population at Risk'!AZ$5","v":2.6575367845251503E-2},{"$f":"'Population at Risk'!I54/'Population at Risk'!I$5","v":3.364442691177754E-2},{"$f":"'Population at Risk'!J54/'Population at Risk'!J$5","v":2.6938321787554047E-2},{"$f":"'Population at Risk'!K54/'Population at Risk'!K$5","v":2.964525663069419E-2},{"$f":"'Population at Risk'!AH54/'Population at Risk'!AH$5","v":2.5832831879174838E-2},{"$f":"'Population at Risk'!AI54/'Population at Risk'!AI$5","v":2.244183299527832E-2},{"$f":"'Population at Risk'!BA54/'Population at Risk'!BA$5","v":2.494294270799613E-2},{"$f":"'Population at Risk'!L54/'Population at Risk'!L$5","v":3.5844784861091605E-2},{"$f":"'Population at Risk'!M54/'Population at Risk'!M$5","v":3.5844784861091605E-2},{"$f":"'Population at Risk'!AJ54/'Population at Risk'!AJ$5","v":2.9393490928339469E-2},{"$f":"'Population at Risk'!AK54/'Population at Risk'!AK$5","v":2.7029532127696383E-2},{"$f":"'Population at Risk'!AL54/'Population at Risk'!AL$5","v":2.9142345002777702E-2},{"$f":"'Population at Risk'!AM54/'Population at Risk'!AM$5","v":2.501571150360974E-2},{"$f":"'Population at Risk'!N54/'Population at Risk'!N$5","v":2.2153691129332197E-2},{"$f":"'Population at Risk'!AN54/'Population at Risk'!AN$5","v":3.1025145425560039E-2},{"$f":"'Population at Risk'!AO54/'Population at Risk'!AO$5","v":3.1025145425560039E-2},{"$f":"'Population at Risk'!AP54/'Population at Risk'!AP$5","v":2.7790431893530657E-2},{"$f":"'Population at Risk'!C54/'Population at Risk'!C$5","v":2.1478114347789304E-2},{"$f":"'Population at Risk'!AQ54/'Population at Risk'!AQ$5","v":2.3897312197937459E-2},{"$f":"'Population at Risk'!O54/'Population at Risk'!O$5","v":2.8830297624148869E-2},{"$f":"'Population at Risk'!AR54/'Population at Risk'!AR$5","v":2.5629946488433059E-2},{"$f":"'Population at Risk'!AS54/'Population at Risk'!AS$5","v":3.364442691177754E-2},{"$f":"'Population at Risk'!AT54/'Population at Risk'!AT$5","v":2.663784645343888E-2},{"$f":"'Population at Risk'!AU54/'Population at Risk'!AU$5","v":2.663784645343888E-2},{"$f":"'Population at Risk'!BB54/'Population at Risk'!BB$5","v":2.5363903550395112E-2},{"$f":"'Population at Risk'!P54/'Population at Risk'!P$5","v":2.9077251631119162E-2},{"$f":"'Population at Risk'!AV54/'Population at Risk'!AV$5","v":3.3551444047386997E-2},{"$f":"'Population at Risk'!AW54/'Population at Risk'!AW$5","v":2.6765129524948913E-2},{"$f":"'Population at Risk'!Q54/'Population at Risk'!Q$5","v":2.7630052472568889E-2},52]
[null,"Male 70-74",{"$f":"'Population at Risk'!R55/'Population at Risk'!R$5","v":1.8314585463119145E-2},{"$f":"'Population at Risk'!AX55/'Population at Risk'!AX$5","v":1.7687748603238466E-2},{"$f":"'Population at Risk'!S55/'Population at Risk'!S$5","v":1.8313051520192015E-2},{"$f":"'Population at Risk'!T55/'Population at Risk'!T$5","v":1.3107372102724595E-2},{"$f":"'Population at Risk'!U55/'Population at Risk'!U$5","v":2.5748680078077346E-2},{"$f":"'Population at Risk'!D55/'Population at Risk'!D$5","v":1.6313461764605894E-2},{"$f":"'Population at Risk'!E55/'Population at Risk'!E$5","v":1.8754228840515041E-2},{"$f":"'Population at Risk'!BC55/'Population at Risk'!BC$5","v":2.5748680078077346E-2},{"$f":"'Population at Risk'!V55/'Population at Risk'!V$5","v":2.0048766554932169E-2},{"$f":"'Population at Risk'!F55/'Population at Risk'!F$5","v":2.2268161572174174E-2},{"$f":"'Population at Risk'!W55/'Population at Risk'!W$5","v":2.1409647985367597E-2},{"$f":"'Population at Risk'!X55/'Population at Risk'!X$5","v":2.1409647985367597E-2},{"$f":"'Population at Risk'!Y55/'Population at Risk'!Y$5","v":1.9604127033445207E-2},{"$f":"'Population at Risk'!Z55/'Population at Risk'!Z$5","v":1.2601271784860035E-2},{"$f":"'Population at Risk'!AA55/'Population at Risk'!AA$5","v":1.6720488523947929E-2},{"$f":"'Population at Risk'!AB55/'Population at Risk'!AB$5","v":1.7031212265350773E-2},{"$f":"'Population at Risk'!AY55/'Population at Risk'!AY$5","v":2.0218199690360671E-2},{"$f":"'Population at Risk'!AC55/'Population at Risk'!AC$5","v":1.5335025455995823E-2},{"$f":"'Population at Risk'!AD55/'Population at Risk'!AD$5","v":2.3987396598379406E-2},{"$f":"'Population at Risk'!AE55/'Population at Risk'!AE$5","v":2.2918839845314256E-2},{"$f":"'Population at Risk'!G55/'Population at Risk'!G$5","v":2.6784677300870509E-2},{"$f":"'Population at Risk'!AF55/'Population at Risk'!AF$5","v":1.930858012373983E-2},{"$f":"'Population at Risk'!H55/'Population at Risk'!H$5","v":2.2792867633593093E-2},{"$f":"'Population at Risk'!AG55/'Population at Risk'!AG$5","v":2.2918839845314256E-2},{"$f":"'Population at Risk'!AZ55/'Population at Risk'!AZ$5","v":1.9136664910625302E-2},{"$f":"'Population at Risk'!I55/'Population at Risk'!I$5","v":2.4571751192492521E-2},{"$f":"'Population at Risk'!J55/'Population at Risk'!J$5","v":1.9107182928246615E-2},{"$f":"'Population at Risk'!K55/'Population at Risk'!K$5","v":2.1421370353105158E-2},{"$f":"'Population at Risk'!AH55/'Population at Risk'!AH$5","v":1.924139257517294E-2},{"$f":"'Population at Risk'!AI55/'Population at Risk'!AI$5","v":1.6155363287500796E-2},{"$f":"'Population at Risk'!BA55/'Population at Risk'!BA$5","v":1.9112228358575827E-2},{"$f":"'Population at Risk'!L55/'Population at Risk'!L$5","v":2.7255106009502188E-2},{"$f":"'Population at Risk'!M55/'Population at Risk'!M$5","v":2.7255106009502188E-2},{"$f":"'Population at Risk'!AJ55/'Population at Risk'!AJ$5","v":2.201645858250539E-2},{"$f":"'Population at Risk'!AK55/'Population at Risk'!AK$5","v":2.0679667521988087E-2},{"$f":"'Population at Risk'!AL55/'Population at Risk'!AL$5","v":2.1789985129151423E-2},{"$f":"'Population at Risk'!AM55/'Population at Risk'!AM$5","v":1.8191206289904824E-2},{"$f":"'Population at Risk'!N55/'Population at Risk'!N$5","v":1.5726459912265584E-2},{"$f":"'Population at Risk'!AN55/'Population at Risk'!AN$5","v":2.4819427657970603E-2},{"$f":"'Population at Risk'!AO55/'Population at Risk'!AO$5","v":2.4819427657970603E-2},{"$f":"'Population at Risk'!AP55/'Population at Risk'!AP$5","v":2.0791360681318375E-2},{"$f":"'Population at Risk'!C55/'Population at Risk'!C$5","v":1.3881996359759043E-2},{"$f":"'Population at Risk'!AQ55/'Population at Risk'!AQ$5","v":1.8169974044161E-2},{"$f":"'Population at Risk'!O55/'Population at Risk'!O$5","v":2.1035619776492799E-2},{"$f":"'Population at Risk'!AR55/'Population at Risk'!AR$5","v":1.8710277976213247E-2},{"$f":"'Population at Risk'!AS55/'Population at Risk'!AS$5","v":2.4571751192492521E-2},{"$f":"'Population at Risk'!AT55/'Population at Risk'!AT$5","v":1.9101941049793136E-2},{"$f":"'Population at Risk'!AU55/'Population at Risk'!AU$5","v":1.9101941049793136E-2},{"$f":"'Population at Risk'!BB55/'Population at Risk'!BB$5","v":1.9001301741591075E-2},{"$f":"'Population at Risk'!P55/'Population at Risk'!P$5","v":2.1430721632828865E-2},{"$f":"'Population at Risk'!AV55/'Population at Risk'!AV$5","v":2.6171136765171518E-2},{"$f":"'Population at Risk'!AW55/'Population at Risk'!AW$5","v":2.0439607955253968E-2},{"$f":"'Population at Risk'!Q55/'Population at Risk'!Q$5","v":2.0773914394646802E-2},53]
[null,"Male 75-79",{"$f":"'Population at Risk'!R56/'Population at Risk'!R$5","v":1.5288979930101169E-2},{"$f":"'Population at Risk'!AX56/'Population at Risk'!AX$5","v":1.4136698828338009E-2},{"$f":"'Population at Risk'!S56/'Population at Risk'!S$5","v":1.3369777703595325E-2},{"$f":"'Population at Risk'!T56/'Population at Risk'!T$5","v":1.0012481175664912E-2},{"$f":"'Population at Risk'!U56/'Population at Risk'!U$5","v":2.061506404207894E-2},{"$f":"'Population at Risk'!D56/'Population at Risk'!D$5","v":1.219395400597882E-2},{"$f":"'Population at Risk'!E56/'Population at Risk'!E$5","v":1.3527303995631788E-2},{"$f":"'Population at Risk'!BC56/'Population at Risk'!BC$5","v":2.061506404207894E-2},{"$f":"'Population at Risk'!V56/'Population at Risk'!V$5","v":1.4937350070736412E-2},{"$f":"'Population at Risk'!F56/'Population at Risk'!F$5","v":1.6711236568586495E-2},{"$f":"'Population at Risk'!W56/'Population at Risk'!W$5","v":1.5216458168427417E-2},{"$f":"'Population at Risk'!X56/'Population at Risk'!X$5","v":1.5216458168427417E-2},{"$f":"'Population at Risk'!Y56/'Population at Risk'!Y$5","v":1.4722199414333515E-2},{"$f":"'Population at Risk'!Z56/'Population at Risk'!Z$5","v":9.3703030522935774E-3},{"$f":"'Population at Risk'!AA56/'Population at Risk'!AA$5","v":1.2481226477653026E-2},{"$f":"'Population at Risk'!AB56/'Population at Risk'!AB$5","v":1.2816275230066029E-2},{"$f":"'Population at Risk'!AY56/'Population at Risk'!AY$5","v":1.507439844444091E-2},{"$f":"'Population at Risk'!AC56/'Population at Risk'!AC$5","v":1.1588176922471275E-2},{"$f":"'Population at Risk'!AD56/'Population at Risk'!AD$5","v":1.6594513409565144E-2},{"$f":"'Population at Risk'!AE56/'Population at Risk'!AE$5","v":1.5624133120349704E-2},{"$f":"'Population at Risk'!G56/'Population at Risk'!G$5","v":1.913478658580383E-2},{"$f":"'Population at Risk'!AF56/'Population at Risk'!AF$5","v":1.3993423040198663E-2},{"$f":"'Population at Risk'!H56/'Population at Risk'!H$5","v":1.7064701536577395E-2},{"$f":"'Population at Risk'!AG56/'Population at Risk'!AG$5","v":1.5624133120349704E-2},{"$f":"'Population at Risk'!AZ56/'Population at Risk'!AZ$5","v":1.494544401735003E-2},{"$f":"'Population at Risk'!I56/'Population at Risk'!I$5","v":1.7714143007932268E-2},{"$f":"'Population at Risk'!J56/'Population at Risk'!J$5","v":1.4481739794209168E-2},{"$f":"'Population at Risk'!K56/'Population at Risk'!K$5","v":1.5044280413533343E-2},{"$f":"'Population at Risk'!AH56/'Population at Risk'!AH$5","v":1.4106164950340051E-2},{"$f":"'Population at Risk'!AI56/'Population at Risk'!AI$5","v":1.2005370916470698E-2},{"$f":"'Population at Risk'!BA56/'Population at Risk'!BA$5","v":1.3106231242646088E-2},{"$f":"'Population at Risk'!L56/'Population at Risk'!L$5","v":2.1120658482099413E-2},{"$f":"'Population at Risk'!M56/'Population at Risk'!M$5","v":2.1120658482099413E-2},{"$f":"'Population at Risk'!AJ56/'Population at Risk'!AJ$5","v":1.5253269324142579E-2},{"$f":"'Population at Risk'!AK56/'Population at Risk'!AK$5","v":1.5979646260781605E-2},{"$f":"'Population at Risk'!AL56/'Population at Risk'!AL$5","v":1.6059103177117343E-2},{"$f":"'Population at Risk'!AM56/'Population at Risk'!AM$5","v":1.3586496721319265E-2},{"$f":"'Population at Risk'!N56/'Population at Risk'!N$5","v":1.2872055145785601E-2},{"$f":"'Population at Risk'!AN56/'Population at Risk'!AN$5","v":1.9040572043932606E-2},{"$f":"'Population at Risk'!AO56/'Population at Risk'!AO$5","v":1.9040572043932606E-2},{"$f":"'Population at Risk'!AP56/'Population at Risk'!AP$5","v":1.6064281000499014E-2},{"$f":"'Population at Risk'!C56/'Population at Risk'!C$5","v":1.086568536273415E-2},{"$f":"'Population at Risk'!AQ56/'Population at Risk'!AQ$5","v":1.4162130780267406E-2},{"$f":"'Population at Risk'!O56/'Population at Risk'!O$5","v":1.6349449412163847E-2},{"$f":"'Population at Risk'!AR56/'Population at Risk'!AR$5","v":1.3915466653358567E-2},{"$f":"'Population at Risk'!AS56/'Population at Risk'!AS$5","v":1.7714143007932268E-2},{"$f":"'Population at Risk'!AT56/'Population at Risk'!AT$5","v":1.3565711093644623E-2},{"$f":"'Population at Risk'!AU56/'Population at Risk'!AU$5","v":1.3565711093644623E-2},{"$f":"'Population at Risk'!BB56/'Population at Risk'!BB$5","v":1.374784590063086E-2},{"$f":"'Population at Risk'!P56/'Population at Risk'!P$5","v":1.7552232513195546E-2},{"$f":"'Population at Risk'!AV56/'Population at Risk'!AV$5","v":1.9232343049444663E-2},{"$f":"'Population at Risk'!AW56/'Population at Risk'!AW$5","v":1.4699083057619657E-2},{"$f":"'Population at Risk'!Q56/'Population at Risk'!Q$5","v":1.5780624047970575E-2},54]
[null,"Male 80-84",{"$f":"'Population at Risk'!R57/'Population at Risk'!R$5","v":1.1026518788550215E-2},{"$f":"'Population at Risk'!AX57/'Population at Risk'!AX$5","v":9.5046062287474364E-3},{"$f":"'Population at Risk'!S57/'Population at Risk'!S$5","v":9.2306303038717629E-3},{"$f":"'Population at Risk'!T57/'Population at Risk'!T$5","v":7.5672076041920855E-3},{"$f":"'Population at Risk'!U57/'Population at Risk'!U$5","v":1.2533674781693068E-2},{"$f":"'Population at Risk'!D57/'Population at Risk'!D$5","v":8.7068653273180419E-3},{"$f":"'Population at Risk'!E57/'Population at Risk'!E$5","v":9.2738173402754902E-3},{"$f":"'Population at Risk'!BC57/'Population at Risk'!BC$5","v":1.2533674781693068E-2},{"$f":"'Population at Risk'!V57/'Population at Risk'!V$5","v":1.0486442994741892E-2},{"$f":"'Population at Risk'!F57/'Population at Risk'!F$5","v":1.1437449507013232E-2},{"$f":"'Population at Risk'!W57/'Population at Risk'!W$5","v":1.0378248309659893E-2},{"$f":"'Population at Risk'!X57/'Population at Risk'!X$5","v":1.0378248309659893E-2},{"$f":"'Population at Risk'!Y57/'Population at Risk'!Y$5","v":9.882716123729483E-3},{"$f":"'Population at Risk'!Z57/'Population at Risk'!Z$5","v":6.4682401794625751E-3},{"$f":"'Population at Risk'!AA57/'Population at Risk'!AA$5","v":8.4450233973615233E-3},{"$f":"'Population at Risk'!AB57/'Population at Risk'!AB$5","v":8.9451882512018056E-3},{"$f":"'Population at Risk'!AY57/'Population at Risk'!AY$5","v":1.0379087802267132E-2},{"$f":"'Population at Risk'!AC57/'Population at Risk'!AC$5","v":7.977827786111771E-3},{"$f":"'Population at Risk'!AD57/'Population at Risk'!AD$5","v":1.1142334985934041E-2},{"$f":"'Population at Risk'!AE57/'Population at Risk'!AE$5","v":1.0740807004801378E-2},{"$f":"'Population at Risk'!G57/'Population at Risk'!G$5","v":1.2193459757651378E-2},{"$f":"'Population at Risk'!AF57/'Population at Risk'!AF$5","v":9.2070014054726947E-3},{"$f":"'Population at Risk'!H57/'Population at Risk'!H$5","v":1.1100515847713576E-2},{"$f":"'Population at Risk'!AG57/'Population at Risk'!AG$5","v":1.0740807004801378E-2},{"$f":"'Population at Risk'!AZ57/'Population at Risk'!AZ$5","v":1.0379849849983226E-2},{"$f":"'Population at Risk'!I57/'Population at Risk'!I$5","v":1.1643663323849545E-2},{"$f":"'Population at Risk'!J57/'Population at Risk'!J$5","v":9.2079706384512374E-3},{"$f":"'Population at Risk'!K57/'Population at Risk'!K$5","v":8.7243481553715713E-3},{"$f":"'Population at Risk'!AH57/'Population at Risk'!AH$5","v":9.2951040212030031E-3},{"$f":"'Population at Risk'!AI57/'Population at Risk'!AI$5","v":8.4191103795941621E-3},{"$f":"'Population at Risk'!BA57/'Population at Risk'!BA$5","v":8.9259234437936257E-3},{"$f":"'Population at Risk'!L57/'Population at Risk'!L$5","v":1.399969789555352E-2},{"$f":"'Population at Risk'!M57/'Population at Risk'!M$5","v":1.399969789555352E-2},{"$f":"'Population at Risk'!AJ57/'Population at Risk'!AJ$5","v":9.7902936083040897E-3},{"$f":"'Population at Risk'!AK57/'Population at Risk'!AK$5","v":1.0156626659838968E-2},{"$f":"'Population at Risk'!AL57/'Population at Risk'!AL$5","v":1.0453288787941347E-2},{"$f":"'Population at Risk'!AM57/'Population at Risk'!AM$5","v":8.7939382829322638E-3},{"$f":"'Population at Risk'!N57/'Population at Risk'!N$5","v":8.8535754877189874E-3},{"$f":"'Population at Risk'!AN57/'Population at Risk'!AN$5","v":1.1241516437031354E-2},{"$f":"'Population at Risk'!AO57/'Population at Risk'!AO$5","v":1.1241516437031354E-2},{"$f":"'Population at Risk'!AP57/'Population at Risk'!AP$5","v":1.1401240274406858E-2},{"$f":"'Population at Risk'!C57/'Population at Risk'!C$5","v":8.1420739470504881E-3},{"$f":"'Population at Risk'!AQ57/'Population at Risk'!AQ$5","v":9.3195848474330045E-3},{"$f":"'Population at Risk'!O57/'Population at Risk'!O$5","v":1.0435522484791066E-2},{"$f":"'Population at Risk'!AR57/'Population at Risk'!AR$5","v":9.4385878389047859E-3},{"$f":"'Population at Risk'!AS57/'Population at Risk'!AS$5","v":1.1643663323849545E-2},{"$f":"'Population at Risk'!AT57/'Population at Risk'!AT$5","v":8.1107251745475388E-3},{"$f":"'Population at Risk'!AU57/'Population at Risk'!AU$5","v":8.1107251745475388E-3},{"$f":"'Population at Risk'!BB57/'Population at Risk'!BB$5","v":8.5747089292210841E-3},{"$f":"'Population at Risk'!P57/'Population at Risk'!P$5","v":1.2985753699748023E-2},{"$f":"'Population at Risk'!AV57/'Population at Risk'!AV$5","v":1.2734127288547963E-2},{"$f":"'Population at Risk'!AW57/'Population at Risk'!AW$5","v":9.8669116176165785E-3},{"$f":"'Population at Risk'!Q57/'Population at Risk'!Q$5","v":1.1148236700550429E-2},55]
[null,"Male 85-89",{"$f":"'Population at Risk'!R58/'Population at Risk'!R$5","v":5.5303261064088474E-3},{"$f":"'Population at Risk'!AX58/'Population at Risk'!AX$5","v":4.4167601939215356E-3},{"$f":"'Population at Risk'!S58/'Population at Risk'!S$5","v":4.6979986990355483E-3},{"$f":"'Population at Risk'!T58/'Population at Risk'!T$5","v":3.9602693885112863E-3},{"$f":"'Population at Risk'!U58/'Population at Risk'!U$5","v":7.3496213381606737E-3},{"$f":"'Population at Risk'!D58/'Population at Risk'!D$5","v":4.3569834292240556E-3},{"$f":"'Population at Risk'!E58/'Population at Risk'!E$5","v":4.5006534288660662E-3},{"$f":"'Population at Risk'!BC58/'Population at Risk'!BC$5","v":7.3496213381606737E-3},{"$f":"'Population at Risk'!V58/'Population at Risk'!V$5","v":4.7666178505917514E-3},{"$f":"'Population at Risk'!F58/'Population at Risk'!F$5","v":6.2161501571341982E-3},{"$f":"'Population at Risk'!W58/'Population at Risk'!W$5","v":5.1165782797342307E-3},{"$f":"'Population at Risk'!X58/'Population at Risk'!X$5","v":5.1165782797342307E-3},{"$f":"'Population at Risk'!Y58/'Population at Risk'!Y$5","v":4.6305754088644055E-3},{"$f":"'Population at Risk'!Z58/'Population at Risk'!Z$5","v":3.1129841517513338E-3},{"$f":"'Population at Risk'!AA58/'Population at Risk'!AA$5","v":4.0508139946659793E-3},{"$f":"'Population at Risk'!AB58/'Population at Risk'!AB$5","v":4.5478093969179029E-3},{"$f":"'Population at Risk'!AY58/'Population at Risk'!AY$5","v":5.3936028495608591E-3},{"$f":"'Population at Risk'!AC58/'Population at Risk'!AC$5","v":3.8947851820967062E-3},{"$f":"'Population at Risk'!AD58/'Population at Risk'!AD$5","v":5.6917768099097165E-3},{"$f":"'Population at Risk'!AE58/'Population at Risk'!AE$5","v":5.5508423130920985E-3},{"$f":"'Population at Risk'!G58/'Population at Risk'!G$5","v":6.0607168284275547E-3},{"$f":"'Population at Risk'!AF58/'Population at Risk'!AF$5","v":4.4690176387279538E-3},{"$f":"'Population at Risk'!H58/'Population at Risk'!H$5","v":5.4700609532337087E-3},{"$f":"'Population at Risk'!AG58/'Population at Risk'!AG$5","v":5.5508423130920985E-3},{"$f":"'Population at Risk'!AZ58/'Population at Risk'!AZ$5","v":5.6450713424567112E-3},{"$f":"'Population at Risk'!I58/'Population at Risk'!I$5","v":6.7819136121836368E-3},{"$f":"'Population at Risk'!J58/'Population at Risk'!J$5","v":4.4785297939196498E-3},{"$f":"'Population at Risk'!K58/'Population at Risk'!K$5","v":4.579236412771746E-3},{"$f":"'Population at Risk'!AH58/'Population at Risk'!AH$5","v":4.334714500433416E-3},{"$f":"'Population at Risk'!AI58/'Population at Risk'!AI$5","v":4.2492519586561101E-3},{"$f":"'Population at Risk'!BA58/'Population at Risk'!BA$5","v":4.0208038603768374E-3},{"$f":"'Population at Risk'!L58/'Population at Risk'!L$5","v":6.8273899444492026E-3},{"$f":"'Population at Risk'!M58/'Population at Risk'!M$5","v":6.8273899444492026E-3},{"$f":"'Population at Risk'!AJ58/'Population at Risk'!AJ$5","v":5.3477441953745757E-3},{"$f":"'Population at Risk'!AK58/'Population at Risk'!AK$5","v":5.5178122101698437E-3},{"$f":"'Population at Risk'!AL58/'Population at Risk'!AL$5","v":4.7929166852637992E-3},{"$f":"'Population at Risk'!AM58/'Population at Risk'!AM$5","v":3.9083569717998168E-3},{"$f":"'Population at Risk'!N58/'Population at Risk'!N$5","v":4.8308490477461784E-3},{"$f":"'Population at Risk'!AN58/'Population at Risk'!AN$5","v":5.7395512603438548E-3},{"$f":"'Population at Risk'!AO58/'Population at Risk'!AO$5","v":5.7395512603438548E-3},{"$f":"'Population at Risk'!AP58/'Population at Risk'!AP$5","v":6.1843351352398193E-3},{"$f":"'Population at Risk'!C58/'Population at Risk'!C$5","v":4.2138609505197764E-3},{"$f":"'Population at Risk'!AQ58/'Population at Risk'!AQ$5","v":4.7549498405947506E-3},{"$f":"'Population at Risk'!O58/'Population at Risk'!O$5","v":5.1444791737352367E-3},{"$f":"'Population at Risk'!AR58/'Population at Risk'!AR$5","v":4.7036720571377649E-3},{"$f":"'Population at Risk'!AS58/'Population at Risk'!AS$5","v":6.7819136121836368E-3},{"$f":"'Population at Risk'!AT58/'Population at Risk'!AT$5","v":4.2240906946523259E-3},{"$f":"'Population at Risk'!AU58/'Population at Risk'!AU$5","v":4.2240906946523259E-3},{"$f":"'Population at Risk'!BB58/'Population at Risk'!BB$5","v":3.8577892445805276E-3},{"$f":"'Population at Risk'!P58/'Population at Risk'!P$5","v":6.5881223606878581E-3},{"$f":"'Population at Risk'!AV58/'Population at Risk'!AV$5","v":6.7478505040039615E-3},{"$f":"'Population at Risk'!AW58/'Population at Risk'!AW$5","v":4.8211692898250816E-3},{"$f":"'Population at Risk'!Q58/'Population at Risk'!Q$5","v":5.4243959291838499E-3},56]
[null,"Male 90+",{"$f":"'Population at Risk'!R59/'Population at Risk'!R$5","v":2.58206278454985E-3},{"$f":"'Population at Risk'!AX59/'Population at Risk'!AX$5","v":1.6138827706206258E-3},{"$f":"'Population at Risk'!S59/'Population at Risk'!S$5","v":2.0535533343501353E-3},{"$f":"'Population at Risk'!T59/'Population at Risk'!T$5","v":1.9239805343606025E-3},{"$f":"'Population at Risk'!U59/'Population at Risk'!U$5","v":2.3646769723403428E-3},{"$f":"'Population at Risk'!D59/'Population at Risk'!D$5","v":1.9404029319121494E-3},{"$f":"'Population at Risk'!E59/'Population at Risk'!E$5","v":2.1100562414440552E-3},{"$f":"'Population at Risk'!BC59/'Population at Risk'!BC$5","v":2.3646769723403428E-3},{"$f":"'Population at Risk'!V59/'Population at Risk'!V$5","v":2.0184009345439661E-3},{"$f":"'Population at Risk'!F59/'Population at Risk'!F$5","v":2.7178602027451682E-3},{"$f":"'Population at Risk'!W59/'Population at Risk'!W$5","v":2.2439105730389184E-3},{"$f":"'Population at Risk'!X59/'Population at Risk'!X$5","v":2.2439105730389184E-3},{"$f":"'Population at Risk'!Y59/'Population at Risk'!Y$5","v":1.8735066647968947E-3},{"$f":"'Population at Risk'!Z59/'Population at Risk'!Z$5","v":1.3567356578501838E-3},{"$f":"'Population at Risk'!AA59/'Population at Risk'!AA$5","v":1.7024070346855283E-3},{"$f":"'Population at Risk'!AB59/'Population at Risk'!AB$5","v":2.0002070860599594E-3},{"$f":"'Population at Risk'!AY59/'Population at Risk'!AY$5","v":2.3178773903398805E-3},{"$f":"'Population at Risk'!AC59/'Population at Risk'!AC$5","v":1.7253229798897961E-3},{"$f":"'Population at Risk'!AD59/'Population at Risk'!AD$5","v":2.3619653923799225E-3},{"$f":"'Population at Risk'!AE59/'Population at Risk'!AE$5","v":2.3724869620534981E-3},{"$f":"'Population at Risk'!G59/'Population at Risk'!G$5","v":2.3344219009150233E-3},{"$f":"'Population at Risk'!AF59/'Population at Risk'!AF$5","v":1.9716089692611463E-3},{"$f":"'Population at Risk'!H59/'Population at Risk'!H$5","v":2.2015175319741211E-3},{"$f":"'Population at Risk'!AG59/'Population at Risk'!AG$5","v":2.3724869620534981E-3},{"$f":"'Population at Risk'!AZ59/'Population at Risk'!AZ$5","v":2.3850206191250263E-3},{"$f":"'Population at Risk'!I59/'Population at Risk'!I$5","v":2.4255607923809974E-3},{"$f":"'Population at Risk'!J59/'Population at Risk'!J$5","v":1.7115679487172593E-3},{"$f":"'Population at Risk'!K59/'Population at Risk'!K$5","v":1.8708298509859656E-3},{"$f":"'Population at Risk'!AH59/'Population at Risk'!AH$5","v":1.6607105792264321E-3},{"$f":"'Population at Risk'!AI59/'Population at Risk'!AI$5","v":1.9225295195509757E-3},{"$f":"'Population at Risk'!BA59/'Population at Risk'!BA$5","v":1.6752382821589226E-3},{"$f":"'Population at Risk'!L59/'Population at Risk'!L$5","v":3.011377747516043E-3},{"$f":"'Population at Risk'!M59/'Population at Risk'!M$5","v":3.011377747516043E-3},{"$f":"'Population at Risk'!AJ59/'Population at Risk'!AJ$5","v":2.1060269017752556E-3},{"$f":"'Population at Risk'!AK59/'Population at Risk'!AK$5","v":2.3042023885263287E-3},{"$f":"'Population at Risk'!AL59/'Population at Risk'!AL$5","v":1.9207933081550254E-3},{"$f":"'Population at Risk'!AM59/'Population at Risk'!AM$5","v":1.5059862130966338E-3},{"$f":"'Population at Risk'!N59/'Population at Risk'!N$5","v":2.0091797601318583E-3},{"$f":"'Population at Risk'!AN59/'Population at Risk'!AN$5","v":2.6354107330178712E-3},{"$f":"'Population at Risk'!AO59/'Population at Risk'!AO$5","v":2.6354107330178712E-3},{"$f":"'Population at Risk'!AP59/'Population at Risk'!AP$5","v":2.5774157447723623E-3},{"$f":"'Population at Risk'!C59/'Population at Risk'!C$5","v":1.7713961647297662E-3},{"$f":"'Population at Risk'!AQ59/'Population at Risk'!AQ$5","v":2.1322884211916831E-3},{"$f":"'Population at Risk'!O59/'Population at Risk'!O$5","v":1.9544360646050365E-3},{"$f":"'Population at Risk'!AR59/'Population at Risk'!AR$5","v":1.9925903236719007E-3},{"$f":"'Population at Risk'!AS59/'Population at Risk'!AS$5","v":2.4255607923809974E-3},{"$f":"'Population at Risk'!AT59/'Population at Risk'!AT$5","v":1.5552493727106792E-3},{"$f":"'Population at Risk'!AU59/'Population at Risk'!AU$5","v":1.5552493727106792E-3},{"$f":"'Population at Risk'!BB59/'Population at Risk'!BB$5","v":1.5761442238070675E-3},{"$f":"'Population at Risk'!P59/'Population at Risk'!P$5","v":3.075735925745698E-3},{"$f":"'Population at Risk'!AV59/'Population at Risk'!AV$5","v":2.8618867021712956E-3},{"$f":"'Population at Risk'!AW59/'Population at Risk'!AW$5","v":1.8372441311978148E-3},{"$f":"'Population at Risk'!Q59/'Population at Risk'!Q$5","v":2.3936909232384488E-3},57]
["SIMD Q1 (most deprived)","Female 0-4",{"$f":"'Population at Risk'!C60/'Population at Risk'!C$5","v":0},{"$f":"'Population at Risk'!D60/'Population at Risk'!D$5","v":0},{"$f":"'Population at Risk'!E60/'Population at Risk'!E$5","v":0},{"$f":"'Population at Risk'!F60/'Population at Risk'!F$5","v":0},{"$f":"'Population at Risk'!G60/'Population at Risk'!G$5","v":0},{"$f":"'Population at Risk'!H60/'Population at Risk'!H$5","v":0},{"$f":"'Population at Risk'!I60/'Population at Risk'!I$5","v":0},{"$f":"'Population at Risk'!J60/'Population at Risk'!J$5","v":0},{"$f":"'Population at Risk'!K60/'Population at Risk'!K$5","v":0},{"$f":"'Population at Risk'!L60/'Population at Risk'!L$5","v":0},{"$f":"'Population at Risk'!M60/'Population at Risk'!M$5","v":0},{"$f":"'Population at Risk'!N60/'Population at Risk'!N$5","v":0},{"$f":"'Population at Risk'!O60/'Population at Risk'!O$5","v":0},{"$f":"'Population at Risk'!P60/'Population at Risk'!P$5","v":0},{"$f":"'Population at Risk'!Q60/'Population at Risk'!Q$5","v":0},{"$f":"'Population at Risk'!R60/'Population at Risk'!R$5","v":0},{"$f":"'Population at Risk'!S60/'Population at Risk'!S$5","v":0},{"$f":"'Population at Risk'!T60/'Population at Risk'!T$5","v":0},{"$f":"'Population at Risk'!U60/'Population at Risk'!U$5","v":0},{"$f":"'Population at Risk'!V60/'Population at Risk'!V$5","v":0},{"$f":"'Population at Risk'!W60/'Population at Risk'!W$5","v":0},{"$f":"'Population at Risk'!X60/'Population at Risk'!X$5","v":0},{"$f":"'Population at Risk'!Y60/'Population at Risk'!Y$5","v":0},{"$f":"'Population at Risk'!Z60/'Population at Risk'!Z$5","v":0},{"$f":"'Population at Risk'!AA60/'Population at Risk'!AA$5","v":0},{"$f":"'Population at Risk'!AB60/'Population at Risk'!AB$5","v":0},{"$f":"'Population at Risk'!AC60/'Population at Risk'!AC$5","v":0},{"$f":"'Population at Risk'!AD60/'Population at Risk'!AD$5","v":0},{"$f":"'Population at Risk'!AE60/'Population at Risk'!AE$5","v":0},{"$f":"'Population at Risk'!AF60/'Population at Risk'!AF$5","v":0},{"$f":"'Population at Risk'!AG60/'Population at Risk'!AG$5","v":0},{"$f":"'Population at Risk'!AH60/'Population at Risk'!AH$5","v":0},{"$f":"'Population at Risk'!AI60/'Population at Risk'!AI$5","v":0},{"$f":"'Population at Risk'!AJ60/'Population at Risk'!AJ$5","v":0},{"$f":"'Population at Risk'!AK60/'Population at Risk'!AK$5","v":0},{"$f":"'Population at Risk'!AL60/'Population at Risk'!AL$5","v":0},{"$f":"'Population at Risk'!AM60/'Population at Risk'!AM$5","v":0},{"$f":"'Population at Risk'!AN60/'Population at Risk'!AN$5","v":0},{"$f":"'Population at Risk'!AO60/'Population at Risk'!AO$5","v":0},{"$f":"'Population at Risk'!AP60/'Population at Risk'!AP$5","v":0},{"$f":"'Population at Risk'!AQ60/'Population at Risk'!AQ$5","v":0},{"$f":"'Population at Risk'!AR60/'Population at Risk'!AR$5","v":0},{"$f":"'Population at Risk'!AS60/'Population at Risk'!AS$5","v":0},{"$f":"'Population at Risk'!AT60/'Population at Risk'!AT$5","v":0},{"$f":"'Population at Risk'!AU60/'Population at Risk'!AU$5","v":0},{"$f":"'Population at Risk'!AV60/'Population at Risk'!AV$5","v":0},{"$f":"'Population at Risk'!AW60/'Population at Risk'!AW$5","v":0},{"$f":"'Population at Risk'!AX60/'Population at Risk'!AX$5","v":0},{"$f":"'Population at Risk'!AY60/'Population at Risk'!AY$5","v":0},{"$f":"'Population at Risk'!AZ60/'Population at Risk'!AZ$5","v":0},{"$f":"'Population at Risk'!BA60/'Population at Risk'!BA$5","v":0},{"$f":"'Population at Risk'!BB60/'Population at Risk'!BB$5","v":0},{"$f":"'Population at Risk'!BC60/'Population at Risk'!BC$5","v":0},58]
[null,"Female 5-9",{"$f":"'Population at Risk'!C61/'Population at Risk'!C$5","v":0},{"$f":"'Population at Risk'!D61/'Population at Risk'!D$5","v":0},{"$f":"'Population at Risk'!E61/'Population at Risk'!E$5","v":0},{"$f":"'Population at Risk'!F61/'Population at Risk'!F$5","v":0},{"$f":"'Population at Risk'!G61/'Population at Risk'!G$5","v":0},{"$f":"'Population at Risk'!H61/'Population at Risk'!H$5","v":0},{"$f":"'Population at Risk'!I61/'Population at Risk'!I$5","v":0},{"$f":"'Population at Risk'!J61/'Population at Risk'!J$5","v":0},{"$f":"'Population at Risk'!K61/'Population at Risk'!K$5","v":0},{"$f":"'Population at Risk'!L61/'Population at Risk'!L$5","v":0},{"$f":"'Population at Risk'!M61/'Population at Risk'!M$5","v":0},{"$f":"'Population at Risk'!N61/'Population at Risk'!N$5","v":0},{"$f":"'Population at Risk'!O61/'Population at Risk'!O$5","v":0},{"$f":"'Population at Risk'!P61/'Population at Risk'!P$5","v":0},{"$f":"'Population at Risk'!Q61/'Population at Risk'!Q$5","v":0},{"$f":"'Population at Risk'!R61/'Population at Risk'!R$5","v":0},{"$f":"'Population at Risk'!S61/'Population at Risk'!S$5","v":0},{"$f":"'Population at Risk'!T61/'Population at Risk'!T$5","v":0},{"$f":"'Population at Risk'!U61/'Population at Risk'!U$5","v":0},{"$f":"'Population at Risk'!V61/'Population at Risk'!V$5","v":0},{"$f":"'Population at Risk'!W61/'Population at Risk'!W$5","v":0},{"$f":"'Population at Risk'!X61/'Population at Risk'!X$5","v":0},{"$f":"'Population at Risk'!Y61/'Population at Risk'!Y$5","v":0},{"$f":"'Population at Risk'!Z61/'Population at Risk'!Z$5","v":0},{"$f":"'Population at Risk'!AA61/'Population at Risk'!AA$5","v":0},{"$f":"'Population at Risk'!AB61/'Population at Risk'!AB$5","v":0},{"$f":"'Population at Risk'!AC61/'Population at Risk'!AC$5","v":0},{"$f":"'Population at Risk'!AD61/'Population at Risk'!AD$5","v":0},{"$f":"'Population at Risk'!AE61/'Population at Risk'!AE$5","v":0},{"$f":"'Population at Risk'!AF61/'Population at Risk'!AF$5","v":0},{"$f":"'Population at Risk'!AG61/'Population at Risk'!AG$5","v":0},{"$f":"'Population at Risk'!AH61/'Population at Risk'!AH$5","v":0},{"$f":"'Population at Risk'!AI61/'Population at Risk'!AI$5","v":0},{"$f":"'Population at Risk'!AJ61/'Population at Risk'!AJ$5","v":0},{"$f":"'Population at Risk'!AK61/'Population at Risk'!AK$5","v":0},{"$f":"'Population at Risk'!AL61/'Population at Risk'!AL$5","v":0},{"$f":"'Population at Risk'!AM61/'Population at Risk'!AM$5","v":0},{"$f":"'Population at Risk'!AN61/'Population at Risk'!AN$5","v":0},{"$f":"'Population at Risk'!AO61/'Population at Risk'!AO$5","v":0},{"$f":"'Population at Risk'!AP61/'Population at Risk'!AP$5","v":0},{"$f":"'Population at Risk'!AQ61/'Population at Risk'!AQ$5","v":0},{"$f":"'Population at Risk'!AR61/'Population at Risk'!AR$5","v":0},{"$f":"'Population at Risk'!AS61/'Population at Risk'!AS$5","v":0},{"$f":"'Population at Risk'!AT61/'Population at Risk'!AT$5","v":0},{"$f":"'Population at Risk'!AU61/'Population at Risk'!AU$5","v":0},{"$f":"'Population at Risk'!AV61/'Population at Risk'!AV$5","v":0},{"$f":"'Population at Risk'!AW61/'Population at Risk'!AW$5","v":0},{"$f":"'Population at Risk'!AX61/'Population at Risk'!AX$5","v":0},{"$f":"'Population at Risk'!AY61/'Population at Risk'!AY$5","v":0},{"$f":"'Population at Risk'!AZ61/'Population at Risk'!AZ$5","v":0},{"$f":"'Population at Risk'!BA61/'Population at Risk'!BA$5","v":0},{"$f":"'Population at Risk'!BB61/'Population at Risk'!BB$5","v":0},{"$f":"'Population at Risk'!BC61/'Population at Risk'!BC$5","v":0},59]
[null,"Female 10-15",{"$f":"'Population at Risk'!C62/'Population at Risk'!C$5","v":0},{"$f":"'Population at Risk'!D62/'Population at Risk'!D$5","v":0},{"$f":"'Population at Risk'!E62/'Population at Risk'!E$5","v":0},{"$f":"'Population at Risk'!F62/'Population at Risk'!F$5","v":0},{"$f":"'Population at Risk'!G62/'Population at Risk'!G$5","v":0},{"$f":"'Population at Risk'!H62/'Population at Risk'!H$5","v":0},{"$f":"'Population at Risk'!I62/'Population at Risk'!I$5","v":0},{"$f":"'Population at Risk'!J62/'Population at Risk'!J$5","v":0},{"$f":"'Population at Risk'!K62/'Population at Risk'!K$5","v":0},{"$f":"'Population at Risk'!L62/'Population at Risk'!L$5","v":0},{"$f":"'Population at Risk'!M62/'Population at Risk'!M$5","v":0},{"$f":"'Population at Risk'!N62/'Population at Risk'!N$5","v":0},{"$f":"'Population at Risk'!O62/'Population at Risk'!O$5","v":0},{"$f":"'Population at Risk'!P62/'Population at Risk'!P$5","v":0},{"$f":"'Population at Risk'!Q62/'Population at Risk'!Q$5","v":0},{"$f":"'Population at Risk'!R62/'Population at Risk'!R$5","v":0},{"$f":"'Population at Risk'!S62/'Population at Risk'!S$5","v":0},{"$f":"'Population at Risk'!T62/'Population at Risk'!T$5","v":0},{"$f":"'Population at Risk'!U62/'Population at Risk'!U$5","v":0},{"$f":"'Population at Risk'!V62/'Population at Risk'!V$5","v":0},{"$f":"'Population at Risk'!W62/'Population at Risk'!W$5","v":0},{"$f":"'Population at Risk'!X62/'Population at Risk'!X$5","v":0},{"$f":"'Population at Risk'!Y62/'Population at Risk'!Y$5","v":0},{"$f":"'Population at Risk'!Z62/'Population at Risk'!Z$5","v":0},{"$f":"'Population at Risk'!AA62/'Population at Risk'!AA$5","v":0},{"$f":"'Population at Risk'!AB62/'Population at Risk'!AB$5","v":0},{"$f":"'Population at Risk'!AC62/'Population at Risk'!AC$5","v":0},{"$f":"'Population at Risk'!AD62/'Population at Risk'!AD$5","v":0},{"$f":"'Population at Risk'!AE62/'Population at Risk'!AE$5","v":0},{"$f":"'Population at Risk'!AF62/'Population at Risk'!AF$5","v":0},{"$f":"'Population at Risk'!AG62/'Population at Risk'!AG$5","v":0},{"$f":"'Population at Risk'!AH62/'Population at Risk'!AH$5","v":0},{"$f":"'Population at Risk'!AI62/'Population at Risk'!AI$5","v":0},{"$f":"'Population at Risk'!AJ62/'Population at Risk'!AJ$5","v":0},{"$f":"'Population at Risk'!AK62/'Population at Risk'!AK$5","v":0},{"$f":"'Population at Risk'!AL62/'Population at Risk'!AL$5","v":0},{"$f":"'Population at Risk'!AM62/'Population at Risk'!AM$5","v":0},{"$f":"'Population at Risk'!AN62/'Population at Risk'!AN$5","v":0},{"$f":"'Population at Risk'!AO62/'Population at Risk'!AO$5","v":0},{"$f":"'Population at Risk'!AP62/'Population at Risk'!AP$5","v":0},{"$f":"'Population at Risk'!AQ62/'Population at Risk'!AQ$5","v":0},{"$f":"'Population at Risk'!AR62/'Population at Risk'!AR$5","v":0},{"$f":"'Population at Risk'!AS62/'Population at Risk'!AS$5","v":0},{"$f":"'Population at Risk'!AT62/'Population at Risk'!AT$5","v":0},{"$f":"'Population at Risk'!AU62/'Population at Risk'!AU$5","v":0},{"$f":"'Population at Risk'!AV62/'Population at Risk'!AV$5","v":0},{"$f":"'Population at Risk'!AW62/'Population at Risk'!AW$5","v":0},{"$f":"'Population at Risk'!AX62/'Population at Risk'!AX$5","v":0},{"$f":"'Population at Risk'!AY62/'Population at Risk'!AY$5","v":0},{"$f":"'Population at Risk'!AZ62/'Population at Risk'!AZ$5","v":0},{"$f":"'Population at Risk'!BA62/'Population at Risk'!BA$5","v":0},{"$f":"'Population at Risk'!BB62/'Population at Risk'!BB$5","v":0},{"$f":"'Population at Risk'!BC62/'Population at Risk'!BC$5","v":0},60]
[null,"Female 16-19",{"$f":"'Population at Risk'!C63/'Population at Risk'!C$5","v":3.6639645334507038E-3},{"$f":"'Population at Risk'!D63/'Population at Risk'!D$5","v":2.3956261439391372E-3},{"$f":"'Population at Risk'!E63/'Population at Risk'!E$5","v":1.1224356736735486E-3},{"$f":"'Population at Risk'!F63/'Population at Risk'!F$5","v":4.3658519296779618E-3},{"$f":"'Population at Risk'!G63/'Population at Risk'!G$5","v":3.6729356317902486E-3},{"$f":"'Population at Risk'!H63/'Population at Risk'!H$5","v":1.4473755985487722E-2},{"$f":"'Population at Risk'!I63/'Population at Risk'!I$5","v":3.399368354744579E-3},{"$f":"'Population at Risk'!J63/'Population at Risk'!J$5","v":9.0200160650253589E-3},{"$f":"'Population at Risk'!K63/'Population at Risk'!K$5","v":1.0944261047776741E-2},{"$f":"'Population at Risk'!L63/'Population at Risk'!L$5","v":4.4645053027259742E-3},{"$f":"'Population at Risk'!M63/'Population at Risk'!M$5","v":4.4645053027259742E-3},{"$f":"'Population at Risk'!N63/'Population at Risk'!N$5","v":1.6369256063085258E-2},{"$f":"'Population at Risk'!O63/'Population at Risk'!O$5","v":1.39243107991878E-2},{"$f":"'Population at Risk'!P63/'Population at Risk'!P$5","v":2.7912483828313817E-3},{"$f":"'Population at Risk'!Q63/'Population at Risk'!Q$5","v":1.8639832293232267E-3},{"$f":"'Population at Risk'!R63/'Population at Risk'!R$5","v":4.8714439538433216E-3},{"$f":"'Population at Risk'!S63/'Population at Risk'!S$5","v":7.3435705933798589E-3},{"$f":"'Population at Risk'!T63/'Population at Risk'!T$5","v":6.7319089798767136E-3},{"$f":"'Population at Risk'!U63/'Population at Risk'!U$5","v":0},{"$f":"'Population at Risk'!V63/'Population at Risk'!V$5","v":6.4402055150391043E-3},{"$f":"'Population at Risk'!W63/'Population at Risk'!W$5","v":1.0602328336233766E-2},{"$f":"'Population at Risk'!X63/'Population at Risk'!X$5","v":1.0602328336233766E-2},{"$f":"'Population at Risk'!Y63/'Population at Risk'!Y$5","v":7.6584570818284828E-3},{"$f":"'Population at Risk'!Z63/'Population at Risk'!Z$5","v":1.7461455191038505E-2},{"$f":"'Population at Risk'!AA63/'Population at Risk'!AA$5","v":1.3894099985332076E-2},{"$f":"'Population at Risk'!AB63/'Population at Risk'!AB$5","v":2.0686811450951652E-3},{"$f":"'Population at Risk'!AC63/'Population at Risk'!AC$5","v":1.48288272434603E-2},{"$f":"'Population at Risk'!AD63/'Population at Risk'!AD$5","v":3.8175682477957131E-3},{"$f":"'Population at Risk'!AE63/'Population at Risk'!AE$5","v":3.8728176757163646E-3},{"$f":"'Population at Risk'!AF63/'Population at Risk'!AF$5","v":1.6576322829279021E-2},{"$f":"'Population at Risk'!AG63/'Population at Risk'!AG$5","v":3.8728176757163646E-3},{"$f":"'Population at Risk'!AH63/'Population at Risk'!AH$5","v":1.2193327307725547E-2},{"$f":"'Population at Risk'!AI63/'Population at Risk'!AI$5","v":6.4091749987528817E-3},{"$f":"'Population at Risk'!AJ63/'Population at Risk'!AJ$5","v":5.0307882630386122E-3},{"$f":"'Population at Risk'!AK63/'Population at Risk'!AK$5","v":4.0676074458602461E-4},{"$f":"'Population at Risk'!AL63/'Population at Risk'!AL$5","v":1.8991568276429244E-2},{"$f":"'Population at Risk'!AM63/'Population at Risk'!AM$5","v":1.4545072174764787E-2},{"$f":"'Population at Risk'!AN63/'Population at Risk'!AN$5","v":0},{"$f":"'Population at Risk'!AO63/'Population at Risk'!AO$5","v":0},{"$f":"'Population at Risk'!AP63/'Population at Risk'!AP$5","v":2.9383768855467652E-3},{"$f":"'Population at Risk'!AQ63/'Population at Risk'!AQ$5","v":1.2086725392633167E-2},{"$f":"'Population at Risk'!AR63/'Population at Risk'!AR$5","v":9.5066684406401661E-3},{"$f":"'Population at Risk'!AS63/'Population at Risk'!AS$5","v":3.399368354744579E-3},{"$f":"'Population at Risk'!AT63/'Population at Risk'!AT$5","v":0},{"$f":"'Population at Risk'!AU63/'Population at Risk'!AU$5","v":0},{"$f":"'Population at Risk'!AV63/'Population at Risk'!AV$5","v":9.1200796997936932E-3},{"$f":"'Population at Risk'!AW63/'Population at Risk'!AW$5","v":9.5100920481890824E-3},{"$f":"'Population at Risk'!AX63/'Population at Risk'!AX$5","v":7.8397575652588581E-3},{"$f":"'Population at Risk'!AY63/'Population at Risk'!AY$5","v":9.6345274338548049E-3},{"$f":"'Population at Risk'!AZ63/'Population at Risk'!AZ$5","v":8.7560081223843587E-3},{"$f":"'Population at Risk'!BA63/'Population at Risk'!BA$5","v":1.6602082275722671E-2},{"$f":"'Population at Risk'!BB63/'Population at Risk'!BB$5","v":8.6531511355784196E-3},{"$f":"'Population at Risk'!BC63/'Population at Risk'!BC$5","v":0},61]
[null,"Female 20-24",{"$f":"'Population at Risk'!C64/'Population at Risk'!C$5","v":7.8071396870802463E-3},{"$f":"'Population at Risk'!D64/'Population at Risk'!D$5","v":4.9112836604347241E-3},{"$f":"'Population at Risk'!E64/'Population at Risk'!E$5","v":2.0043494172741938E-3},{"$f":"'Population at Risk'!F64/'Population at Risk'!F$5","v":6.2931198986348989E-3},{"$f":"'Population at Risk'!G64/'Population at Risk'!G$5","v":5.2326754206326832E-3},{"$f":"'Population at Risk'!H64/'Population at Risk'!H$5","v":2.1667907023292871E-2},{"$f":"'Population at Risk'!I64/'Population at Risk'!I$5","v":4.3648694259146373E-3},{"$f":"'Population at Risk'!J64/'Population at Risk'!J$5","v":1.4532248104763076E-2},{"$f":"'Population at Risk'!K64/'Population at Risk'!K$5","v":1.7654610887289486E-2},{"$f":"'Population at Risk'!L64/'Population at Risk'!L$5","v":7.1148624189474249E-3},{"$f":"'Population at Risk'!M64/'Population at Risk'!M$5","v":7.1148624189474249E-3},{"$f":"'Population at Risk'!N64/'Population at Risk'!N$5","v":2.7875841937454161E-2},{"$f":"'Population at Risk'!O64/'Population at Risk'!O$5","v":2.1814753585394218E-2},{"$f":"'Population at Risk'!P64/'Population at Risk'!P$5","v":4.3721324226650843E-3},{"$f":"'Population at Risk'!Q64/'Population at Risk'!Q$5","v":2.6949155122745444E-3},{"$f":"'Population at Risk'!R64/'Population at Risk'!R$5","v":6.6800039846115003E-3},{"$f":"'Population at Risk'!S64/'Population at Risk'!S$5","v":1.01985892782756E-2},{"$f":"'Population at Risk'!T64/'Population at Risk'!T$5","v":1.063498386714566E-2},{"$f":"'Population at Risk'!U64/'Population at Risk'!U$5","v":0},{"$f":"'Population at Risk'!V64/'Population at Risk'!V$5","v":1.0543458817869927E-2},{"$f":"'Population at Risk'!W64/'Population at Risk'!W$5","v":1.3031183214791419E-2},{"$f":"'Population at Risk'!X64/'Population at Risk'!X$5","v":1.3031183214791419E-2},{"$f":"'Population at Risk'!Y64/'Population at Risk'!Y$5","v":1.2427065658060637E-2},{"$f":"'Population at Risk'!Z64/'Population at Risk'!Z$5","v":2.9730020401688421E-2},{"$f":"'Population at Risk'!AA64/'Population at Risk'!AA$5","v":2.2144804621260259E-2},{"$f":"'Population at Risk'!AB64/'Population at Risk'!AB$5","v":4.2501994435591569E-3},{"$f":"'Population at Risk'!AC64/'Population at Risk'!AC$5","v":2.511571792343938E-2},{"$f":"'Population at Risk'!AD64/'Population at Risk'!AD$5","v":5.6394314188749056E-3},{"$f":"'Population at Risk'!AE64/'Population at Risk'!AE$5","v":5.7948115594465711E-3},{"$f":"'Population at Risk'!AF64/'Population at Risk'!AF$5","v":2.7297926984844668E-2},{"$f":"'Population at Risk'!AG64/'Population at Risk'!AG$5","v":5.7948115594465711E-3},{"$f":"'Population at Risk'!AH64/'Population at Risk'!AH$5","v":1.6739112075177559E-2},{"$f":"'Population at Risk'!AI64/'Population at Risk'!AI$5","v":9.6916118957645139E-3},{"$f":"'Population at Risk'!AJ64/'Population at Risk'!AJ$5","v":8.000180359758963E-3},{"$f":"'Population at Risk'!AK64/'Population at Risk'!AK$5","v":8.8978912878192879E-4},{"$f":"'Population at Risk'!AL64/'Population at Risk'!AL$5","v":2.7355730470711555E-2},{"$f":"'Population at Risk'!AM64/'Population at Risk'!AM$5","v":1.9614937820557159E-2},{"$f":"'Population at Risk'!AN64/'Population at Risk'!AN$5","v":0},{"$f":"'Population at Risk'!AO64/'Population at Risk'!AO$5","v":0},{"$f":"'Population at Risk'!AP64/'Population at Risk'!AP$5","v":5.23448559938932E-3},{"$f":"'Population at Risk'!AQ64/'Population at Risk'!AQ$5","v":2.2243734589692969E-2},{"$f":"'Population at Risk'!AR64/'Population at Risk'!AR$5","v":1.481562809256257E-2},{"$f":"'Population at Risk'!AS64/'Population at Risk'!AS$5","v":4.3648694259146373E-3},{"$f":"'Population at Risk'!AT64/'Population at Risk'!AT$5","v":0},{"$f":"'Population at Risk'!AU64/'Population at Risk'!AU$5","v":0},{"$f":"'Population at Risk'!AV64/'Population at Risk'!AV$5","v":1.3950551360829616E-2},{"$f":"'Population at Risk'!AW64/'Population at Risk'!AW$5","v":1.3457924073691627E-2},{"$f":"'Population at Risk'!AX64/'Population at Risk'!AX$5","v":1.2617109831588475E-2},{"$f":"'Population at Risk'!AY64/'Population at Risk'!AY$5","v":1.38960060726483E-2},{"$f":"'Population at Risk'!AZ64/'Population at Risk'!AZ$5","v":1.4681047272507427E-2},{"$f":"'Population at Risk'!BA64/'Population at Risk'!BA$5","v":2.5923996795755775E-2},{"$f":"'Population at Risk'!BB64/'Population at Risk'!BB$5","v":1.1734106199150151E-2},{"$f":"'Population at Risk'!BC64/'Population at Risk'!BC$5","v":0},62]
[null,"Female 25-29",{"$f":"'Population at Risk'!C65/'Population at Risk'!C$5","v":1.0293044779257974E-2},{"$f":"'Population at Risk'!D65/'Population at Risk'!D$5","v":6.3466588239222644E-3},{"$f":"'Population at Risk'!E65/'Population at Risk'!E$5","v":2.3851758065562907E-3},{"$f":"'Population at Risk'!F65/'Population at Risk'!F$5","v":5.8801339052869843E-3},{"$f":"'Population at Risk'!G65/'Population at Risk'!G$5","v":4.3270200593693341E-3},{"$f":"'Population at Risk'!H65/'Population at Risk'!H$5","v":2.1699952239496906E-2},{"$f":"'Population at Risk'!I65/'Population at Risk'!I$5","v":4.1033795524727471E-3},{"$f":"'Population at Risk'!J65/'Population at Risk'!J$5","v":1.5397805201911976E-2},{"$f":"'Population at Risk'!K65/'Population at Risk'!K$5","v":1.7095415067330089E-2},{"$f":"'Population at Risk'!L65/'Population at Risk'!L$5","v":7.1432084843615585E-3},{"$f":"'Population at Risk'!M65/'Population at Risk'!M$5","v":7.1432084843615585E-3},{"$f":"'Population at Risk'!N65/'Population at Risk'!N$5","v":3.6314004911991354E-2},{"$f":"'Population at Risk'!O65/'Population at Risk'!O$5","v":2.2438946828116431E-2},{"$f":"'Population at Risk'!P65/'Population at Risk'!P$5","v":4.7426521195011086E-3},{"$f":"'Population at Risk'!Q65/'Population at Risk'!Q$5","v":3.0766952098467719E-3},{"$f":"'Population at Risk'!R65/'Population at Risk'!R$5","v":6.4174710769193451E-3},{"$f":"'Population at Risk'!S65/'Population at Risk'!S$5","v":1.3102467381623633E-2},{"$f":"'Population at Risk'!T65/'Population at Risk'!T$5","v":1.6015139847073725E-2},{"$f":"'Population at Risk'!U65/'Population at Risk'!U$5","v":0},{"$f":"'Population at Risk'!V65/'Population at Risk'!V$5","v":1.2119542867963884E-2},{"$f":"'Population at Risk'!W65/'Population at Risk'!W$5","v":1.5987545954801927E-2},{"$f":"'Population at Risk'!X65/'Population at Risk'!X$5","v":1.5987545954801927E-2},{"$f":"'Population at Risk'!Y65/'Population at Risk'!Y$5","v":1.3667620971877424E-2},{"$f":"'Population at Risk'!Z65/'Population at Risk'!Z$5","v":4.1076049850459248E-2},{"$f":"'Population at Risk'!AA65/'Population at Risk'!AA$5","v":2.7133124340121301E-2},{"$f":"'Population at Risk'!AB65/'Population at Risk'!AB$5","v":5.3994667463898045E-3},{"$f":"'Population at Risk'!AC65/'Population at Risk'!AC$5","v":3.2223085224106704E-2},{"$f":"'Population at Risk'!AD65/'Population at Risk'!AD$5","v":5.3334696649532092E-3},{"$f":"'Population at Risk'!AE65/'Population at Risk'!AE$5","v":5.7179318040973624E-3},{"$f":"'Population at Risk'!AF65/'Population at Risk'!AF$5","v":2.7538861909688839E-2},{"$f":"'Population at Risk'!AG65/'Population at Risk'!AG$5","v":5.7179318040973624E-3},{"$f":"'Population at Risk'!AH65/'Population at Risk'!AH$5","v":1.7871742128048412E-2},{"$f":"'Population at Risk'!AI65/'Population at Risk'!AI$5","v":1.2974048792776144E-2},{"$f":"'Population at Risk'!AJ65/'Population at Risk'!AJ$5","v":8.2701250958244488E-3},{"$f":"'Population at Risk'!AK65/'Population at Risk'!AK$5","v":5.8471857034241026E-4},{"$f":"'Population at Risk'!AL65/'Population at Risk'!AL$5","v":2.7411960132521857E-2},{"$f":"'Population at Risk'!AM65/'Population at Risk'!AM$5","v":2.1304893035821282E-2},{"$f":"'Population at Risk'!AN65/'Population at Risk'!AN$5","v":0},{"$f":"'Population at Risk'!AO65/'Population at Risk'!AO$5","v":0},{"$f":"'Population at Risk'!AP65/'Population at Risk'!AP$5","v":6.4387384213347148E-3},{"$f":"'Population at Risk'!AQ65/'Population at Risk'!AQ$5","v":2.5248083157651497E-2},{"$f":"'Population at Risk'!AR65/'Population at Risk'!AR$5","v":1.7770956841092287E-2},{"$f":"'Population at Risk'!AS65/'Population at Risk'!AS$5","v":4.1033795524727471E-3},{"$f":"'Population at Risk'!AT65/'Population at Risk'!AT$5","v":0},{"$f":"'Population at Risk'!AU65/'Population at Risk'!AU$5","v":0},{"$f":"'Population at Risk'!AV65/'Population at Risk'!AV$5","v":1.3260483980681628E-2},{"$f":"'Population at Risk'!AW65/'Population at Risk'!AW$5","v":1.395467114974824E-2},{"$f":"'Population at Risk'!AX65/'Population at Risk'!AX$5","v":1.4356556041380284E-2},{"$f":"'Population at Risk'!AY65/'Population at Risk'!AY$5","v":1.7241749495856395E-2},{"$f":"'Population at Risk'!AZ65/'Population at Risk'!AZ$5","v":1.8380250223250336E-2},{"$f":"'Population at Risk'!BA65/'Population at Risk'!BA$5","v":2.6934558325582371E-2},{"$f":"'Population at Risk'!BB65/'Population at Risk'!BB$5","v":1.2408065119306467E-2},{"$f":"'Population at Risk'!BC65/'Population at Risk'!BC$5","v":0},63]
[null,"Female 30-34",{"$f":"'Population at Risk'!C66/'Population at Risk'!C$5","v":9.0451004558755807E-3},{"$f":"'Population at Risk'!D66/'Population at Risk'!D$5","v":5.7064915036212013E-3},{"$f":"'Population at Risk'!E66/'Population at Risk'!E$5","v":2.3551105652971781E-3},{"$f":"'Population at Risk'!F66/'Population at Risk'!F$5","v":6.5291118948337086E-3},{"$f":"'Population at Risk'!G66/'Population at Risk'!G$5","v":5.056575767053699E-3},{"$f":"'Population at Risk'!H66/'Population at Risk'!H$5","v":1.9259174938623145E-2},{"$f":"'Population at Risk'!I66/'Population at Risk'!I$5","v":4.1637233694208752E-3},{"$f":"'Population at Risk'!J66/'Population at Risk'!J$5","v":1.3469283248615309E-2},{"$f":"'Population at Risk'!K66/'Population at Risk'!K$5","v":1.6336506454528055E-2},{"$f":"'Population at Risk'!L66/'Population at Risk'!L$5","v":6.0944040640386315E-3},{"$f":"'Population at Risk'!M66/'Population at Risk'!M$5","v":6.0944040640386315E-3},{"$f":"'Population at Risk'!N66/'Population at Risk'!N$5","v":2.9111012172555909E-2},{"$f":"'Population at Risk'!O66/'Population at Risk'!O$5","v":1.9942173857227585E-2},{"$f":"'Population at Risk'!P66/'Population at Risk'!P$5","v":4.0757166651962653E-3},{"$f":"'Population at Risk'!Q66/'Population at Risk'!Q$5","v":2.7847460293503627E-3},{"$f":"'Population at Risk'!R66/'Population at Risk'!R$5","v":6.2424491384579081E-3},{"$f":"'Population at Risk'!S66/'Population at Risk'!S$5","v":1.252104030204133E-2},{"$f":"'Population at Risk'!T66/'Population at Risk'!T$5","v":1.5768959664963871E-2},{"$f":"'Population at Risk'!U66/'Population at Risk'!U$5","v":0},{"$f":"'Population at Risk'!V66/'Population at Risk'!V$5","v":1.1874978101569995E-2},{"$f":"'Population at Risk'!W66/'Population at Risk'!W$5","v":1.4103589306756016E-2},{"$f":"'Population at Risk'!X66/'Population at Risk'!X$5","v":1.4103589306756016E-2},{"$f":"'Population at Risk'!Y66/'Population at Risk'!Y$5","v":1.2627849177059886E-2},{"$f":"'Population at Risk'!Z66/'Population at Risk'!Z$5","v":3.4780758645183693E-2},{"$f":"'Population at Risk'!AA66/'Population at Risk'!AA$5","v":2.4680651111725325E-2},{"$f":"'Population at Risk'!AB66/'Population at Risk'!AB$5","v":4.9063265946297447E-3},{"$f":"'Population at Risk'!AC66/'Population at Risk'!AC$5","v":2.8001617771680126E-2},{"$f":"'Population at Risk'!AD66/'Population at Risk'!AD$5","v":5.9523468490220947E-3},{"$f":"'Population at Risk'!AE66/'Population at Risk'!AE$5","v":6.2945299692164242E-3},{"$f":"'Population at Risk'!AF66/'Population at Risk'!AF$5","v":2.6936524597578407E-2},{"$f":"'Population at Risk'!AG66/'Population at Risk'!AG$5","v":6.2945299692164242E-3},{"$f":"'Population at Risk'!AH66/'Population at Risk'!AH$5","v":1.8638022837672623E-2},{"$f":"'Population at Risk'!AI66/'Population at Risk'!AI$5","v":1.288471341844068E-2},{"$f":"'Population at Risk'!AJ66/'Population at Risk'!AJ$5","v":7.2639674432167269E-3},{"$f":"'Population at Risk'!AK66/'Population at Risk'!AK$5","v":8.389440357086757E-4},{"$f":"'Population at Risk'!AL66/'Population at Risk'!AL$5","v":2.379920436121E-2},{"$f":"'Population at Risk'!AM66/'Population at Risk'!AM$5","v":2.1539768167434265E-2},{"$f":"'Population at Risk'!AN66/'Population at Risk'!AN$5","v":0},{"$f":"'Population at Risk'!AO66/'Population at Risk'!AO$5","v":0},{"$f":"'Population at Risk'!AP66/'Population at Risk'!AP$5","v":5.7804135453378997E-3},{"$f":"'Population at Risk'!AQ66/'Population at Risk'!AQ$5","v":2.1538868194902697E-2},{"$f":"'Population at Risk'!AR66/'Population at Risk'!AR$5","v":1.6239541317703603E-2},{"$f":"'Population at Risk'!AS66/'Population at Risk'!AS$5","v":4.1637233694208752E-3},{"$f":"'Population at Risk'!AT66/'Population at Risk'!AT$5","v":0},{"$f":"'Population at Risk'!AU66/'Population at Risk'!AU$5","v":0},{"$f":"'Population at Risk'!AV66/'Population at Risk'!AV$5","v":1.2439863312397534E-2},{"$f":"'Population at Risk'!AW66/'Population at Risk'!AW$5","v":1.5327261754641511E-2},{"$f":"'Population at Risk'!AX66/'Population at Risk'!AX$5","v":1.1710637863105418E-2},{"$f":"'Population at Risk'!AY66/'Population at Risk'!AY$5","v":1.4795191856626732E-2},{"$f":"'Population at Risk'!AZ66/'Population at Risk'!AZ$5","v":1.5422992672300812E-2},{"$f":"'Population at Risk'!BA66/'Population at Risk'!BA$5","v":2.7615140580363549E-2},{"$f":"'Population at Risk'!BB66/'Population at Risk'!BB$5","v":1.329865369237017E-2},{"$f":"'Population at Risk'!BC66/'Population at Risk'!BC$5","v":0},64]
[null,"Female 35-39",{"$f":"'Population at Risk'!C67/'Population at Risk'!C$5","v":6.4693433724143223E-3},{"$f":"'Population at Risk'!D67/'Population at Risk'!D$5","v":4.1010718956786896E-3},{"$f":"'Population at Risk'!E67/'Population at Risk'!E$5","v":1.7237404988558066E-3},{"$f":"'Population at Risk'!F67/'Population at Risk'!F$5","v":5.8604679056037503E-3},{"$f":"'Population at Risk'!G67/'Population at Risk'!G$5","v":4.4528055262114665E-3},{"$f":"'Population at Risk'!H67/'Population at Risk'!H$5","v":1.7299075880809863E-2},{"$f":"'Population at Risk'!I67/'Population at Risk'!I$5","v":3.8620042846802321E-3},{"$f":"'Population at Risk'!J67/'Population at Risk'!J$5","v":1.1753354266548196E-2},{"$f":"'Population at Risk'!K67/'Population at Risk'!K$5","v":1.6855759715918919E-2},{"$f":"'Population at Risk'!L67/'Population at Risk'!L$5","v":5.1164648072510371E-3},{"$f":"'Population at Risk'!M67/'Population at Risk'!M$5","v":5.1164648072510371E-3},{"$f":"'Population at Risk'!N67/'Population at Risk'!N$5","v":2.279214128561434E-2},{"$f":"'Population at Risk'!O67/'Population at Risk'!O$5","v":1.7525425661046715E-2},{"$f":"'Population at Risk'!P67/'Population at Risk'!P$5","v":3.7298982814826429E-3},{"$f":"'Population at Risk'!Q67/'Population at Risk'!Q$5","v":3.2563562439984076E-3},{"$f":"'Population at Risk'!R67/'Population at Risk'!R$5","v":6.2716194615348147E-3},{"$f":"'Population at Risk'!S67/'Population at Risk'!S$5","v":1.0744186117659555E-2},{"$f":"'Population at Risk'!T67/'Population at Risk'!T$5","v":1.2631281343891012E-2},{"$f":"'Population at Risk'!U67/'Population at Risk'!U$5","v":0},{"$f":"'Population at Risk'!V67/'Population at Risk'!V$5","v":9.3749827117657839E-3},{"$f":"'Population at Risk'!W67/'Population at Risk'!W$5","v":1.28167019963985E-2},{"$f":"'Population at Risk'!X67/'Population at Risk'!X$5","v":1.28167019963985E-2},{"$f":"'Population at Risk'!Y67/'Population at Risk'!Y$5","v":1.0498109707674999E-2},{"$f":"'Population at Risk'!Z67/'Population at Risk'!Z$5","v":2.8830693086649054E-2},{"$f":"'Population at Risk'!AA67/'Population at Risk'!AA$5","v":2.1099931921303477E-2},{"$f":"'Population at Risk'!AB67/'Population at Risk'!AB$5","v":3.5272058312329677E-3},{"$f":"'Population at Risk'!AC67/'Population at Risk'!AC$5","v":2.3575452771878329E-2},{"$f":"'Population at Risk'!AD67/'Population at Risk'!AD$5","v":4.8606196816196783E-3},{"$f":"'Population at Risk'!AE67/'Population at Risk'!AE$5","v":5.0164040365358372E-3},{"$f":"'Population at Risk'!AF67/'Population at Risk'!AF$5","v":2.3924838037026261E-2},{"$f":"'Population at Risk'!AG67/'Population at Risk'!AG$5","v":5.0164040365358372E-3},{"$f":"'Population at Risk'!AH67/'Population at Risk'!AH$5","v":1.6595625249072626E-2},{"$f":"'Population at Risk'!AI67/'Population at Risk'!AI$5","v":1.0704930284655351E-2},{"$f":"'Population at Risk'!AJ67/'Population at Risk'!AJ$5","v":6.8713205543942009E-3},{"$f":"'Population at Risk'!AK67/'Population at Risk'!AK$5","v":6.1014111687903696E-4},{"$f":"'Population at Risk'!AL67/'Population at Risk'!AL$5","v":2.2238831245974141E-2},{"$f":"'Population at Risk'!AM67/'Population at Risk'!AM$5","v":1.9276946777504335E-2},{"$f":"'Population at Risk'!AN67/'Population at Risk'!AN$5","v":0},{"$f":"'Population at Risk'!AO67/'Population at Risk'!AO$5","v":0},{"$f":"'Population at Risk'!AP67/'Population at Risk'!AP$5","v":4.7527844706111615E-3},{"$f":"'Population at Risk'!AQ67/'Population at Risk'!AQ$5","v":1.9008282285737626E-2},{"$f":"'Population at Risk'!AR67/'Population at Risk'!AR$5","v":1.3797309619051864E-2},{"$f":"'Population at Risk'!AS67/'Population at Risk'!AS$5","v":3.8620042846802321E-3},{"$f":"'Population at Risk'!AT67/'Population at Risk'!AT$5","v":0},{"$f":"'Population at Risk'!AU67/'Population at Risk'!AU$5","v":0},{"$f":"'Population at Risk'!AV67/'Population at Risk'!AV$5","v":1.0481563990355942E-2},{"$f":"'Population at Risk'!AW67/'Population at Risk'!AW$5","v":1.3536357822542672E-2},{"$f":"'Population at Risk'!AX67/'Population at Risk'!AX$5","v":8.6237333217847444E-3},{"$f":"'Population at Risk'!AY67/'Population at Risk'!AY$5","v":1.2572051544091098E-2},{"$f":"'Population at Risk'!AZ67/'Population at Risk'!AZ$5","v":1.2349970590887072E-2},{"$f":"'Population at Risk'!BA67/'Population at Risk'!BA$5","v":2.2871688501585642E-2},{"$f":"'Population at Risk'!BB67/'Population at Risk'!BB$5","v":1.1397126739071992E-2},{"$f":"'Population at Risk'!BC67/'Population at Risk'!BC$5","v":0},65]
[null,"Female 40-44",{"$f":"'Population at Risk'!C68/'Population at Risk'!C$5","v":6.5991295820460915E-3},{"$f":"'Population at Risk'!D68/'Population at Risk'!D$5","v":4.1460836603873586E-3},{"$f":"'Population at Risk'!E68/'Population at Risk'!E$5","v":1.6836535105103231E-3},{"$f":"'Population at Risk'!F68/'Population at Risk'!F$5","v":5.0148299192246852E-3},{"$f":"'Population at Risk'!G68/'Population at Risk'!G$5","v":5.2326754206326832E-3},{"$f":"'Population at Risk'!H68/'Population at Risk'!H$5","v":1.9638376663704188E-2},{"$f":"'Population at Risk'!I68/'Population at Risk'!I$5","v":4.6867031163046573E-3},{"$f":"'Population at Risk'!J68/'Population at Risk'!J$5","v":1.1753354266548196E-2},{"$f":"'Population at Risk'!K68/'Population at Risk'!K$5","v":1.6256621337390996E-2},{"$f":"'Population at Risk'!L68/'Population at Risk'!L$5","v":5.1731569380793025E-3},{"$f":"'Population at Risk'!M68/'Population at Risk'!M$5","v":5.1731569380793025E-3},{"$f":"'Population at Risk'!N68/'Population at Risk'!N$5","v":1.883959653328875E-2},{"$f":"'Population at Risk'!O68/'Population at Risk'!O$5","v":1.971810448804525E-2},{"$f":"'Population at Risk'!P68/'Population at Risk'!P$5","v":4.3474311095426828E-3},{"$f":"'Population at Risk'!Q68/'Population at Risk'!Q$5","v":2.380508702509181E-3},{"$f":"'Population at Risk'!R68/'Population at Risk'!R$5","v":5.8632349384581291E-3},{"$f":"'Population at Risk'!S68/'Population at Risk'!S$5","v":9.9168332985340359E-3},{"$f":"'Population at Risk'!T68/'Population at Risk'!T$5","v":9.7800672347278048E-3},{"$f":"'Population at Risk'!U68/'Population at Risk'!U$5","v":0},{"$f":"'Population at Risk'!V68/'Population at Risk'!V$5","v":1.0760849721331161E-2},{"$f":"'Population at Risk'!W68/'Population at Risk'!W$5","v":1.3187696536321387E-2},{"$f":"'Population at Risk'!X68/'Population at Risk'!X$5","v":1.3187696536321387E-2},{"$f":"'Population at Risk'!Y68/'Population at Risk'!Y$5","v":1.1229535384029404E-2},{"$f":"'Population at Risk'!Z68/'Population at Risk'!Z$5","v":2.5813594997484736E-2},{"$f":"'Population at Risk'!AA68/'Population at Risk'!AA$5","v":1.9953278875444163E-2},{"$f":"'Population at Risk'!AB68/'Population at Risk'!AB$5","v":3.5815348310031438E-3},{"$f":"'Population at Risk'!AC68/'Population at Risk'!AC$5","v":2.1585524155591396E-2},{"$f":"'Population at Risk'!AD68/'Population at Risk'!AD$5","v":5.1039983495119361E-3},{"$f":"'Population at Risk'!AE68/'Population at Risk'!AE$5","v":5.0548439142104407E-3},{"$f":"'Population at Risk'!AF68/'Population at Risk'!AF$5","v":2.4069398991932764E-2},{"$f":"'Population at Risk'!AG68/'Population at Risk'!AG$5","v":5.0548439142104407E-3},{"$f":"'Population at Risk'!AH68/'Population at Risk'!AH$5","v":1.6983344970675319E-2},{"$f":"'Population at Risk'!AI68/'Population at Risk'!AI$5","v":9.1402850141513621E-3},{"$f":"'Population at Risk'!AJ68/'Population at Risk'!AJ$5","v":6.9694822765998324E-3},{"$f":"'Population at Risk'!AK68/'Population at Risk'!AK$5","v":7.1183130302554304E-4},{"$f":"'Population at Risk'!AL68/'Population at Risk'!AL$5","v":2.5823472186380845E-2},{"$f":"'Population at Risk'!AM68/'Population at Risk'!AM$5","v":1.9849812952170139E-2},{"$f":"'Population at Risk'!AN68/'Population at Risk'!AN$5","v":0},{"$f":"'Population at Risk'!AO68/'Population at Risk'!AO$5","v":0},{"$f":"'Population at Risk'!AP68/'Population at Risk'!AP$5","v":3.9017791431030817E-3},{"$f":"'Population at Risk'!AQ68/'Population at Risk'!AQ$5","v":1.7171007584562987E-2},{"$f":"'Population at Risk'!AR68/'Population at Risk'!AR$5","v":1.325586031469099E-2},{"$f":"'Population at Risk'!AS68/'Population at Risk'!AS$5","v":4.6867031163046573E-3},{"$f":"'Population at Risk'!AT68/'Population at Risk'!AT$5","v":0},{"$f":"'Population at Risk'!AU68/'Population at Risk'!AU$5","v":0},{"$f":"'Population at Risk'!AV68/'Population at Risk'!AV$5","v":1.1339485598107496E-2},{"$f":"'Population at Risk'!AW68/'Population at Risk'!AW$5","v":1.3712833757457523E-2},{"$f":"'Population at Risk'!AX68/'Population at Risk'!AX$5","v":8.9912219576562518E-3},{"$f":"'Population at Risk'!AY68/'Population at Risk'!AY$5","v":1.1645283374101057E-2},{"$f":"'Population at Risk'!AZ68/'Population at Risk'!AZ$5","v":1.0245160946083139E-2},{"$f":"'Population at Risk'!BA68/'Population at Risk'!BA$5","v":2.2789193682824286E-2},{"$f":"'Population at Risk'!BB68/'Population at Risk'!BB$5","v":1.210719060137954E-2},{"$f":"'Population at Risk'!BC68/'Population at Risk'!BC$5","v":0},66]
[null,"Female 45-49",{"$f":"'Population at Risk'!C69/'Population at Risk'!C$5","v":5.9302314247131286E-3},{"$f":"'Population at Risk'!D69/'Population at Risk'!D$5","v":3.9510326799831281E-3},{"$f":"'Population at Risk'!E69/'Population at Risk'!E$5","v":1.9642624289287099E-3},{"$f":"'Population at Risk'!F69/'Population at Risk'!F$5","v":5.9784639037031538E-3},{"$f":"'Population at Risk'!G69/'Population at Risk'!G$5","v":6.0125453150538999E-3},{"$f":"'Population at Risk'!H69/'Population at Risk'!H$5","v":2.3409030437045269E-2},{"$f":"'Population at Risk'!I69/'Population at Risk'!I$5","v":4.5660154824083993E-3},{"$f":"'Population at Risk'!J69/'Population at Risk'!J$5","v":1.4911878410530138E-2},{"$f":"'Population at Risk'!K69/'Population at Risk'!K$5","v":1.8852887644345333E-2},{"$f":"'Population at Risk'!L69/'Population at Risk'!L$5","v":6.4912489798364956E-3},{"$f":"'Population at Risk'!M69/'Population at Risk'!M$5","v":6.4912489798364956E-3},{"$f":"'Population at Risk'!N69/'Population at Risk'!N$5","v":2.1413951339079758E-2},{"$f":"'Population at Risk'!O69/'Population at Risk'!O$5","v":2.4439566195815825E-2},{"$f":"'Population at Risk'!P69/'Population at Risk'!P$5","v":5.211977068826739E-3},{"$f":"'Population at Risk'!Q69/'Population at Risk'!Q$5","v":3.4360172781500442E-3},{"$f":"'Population at Risk'!R69/'Population at Risk'!R$5","v":7.175899476918904E-3},{"$f":"'Population at Risk'!S69/'Population at Risk'!S$5","v":1.1107374461488278E-2},{"$f":"'Population at Risk'!T69/'Population at Risk'!T$5","v":1.0424611711524511E-2},{"$f":"'Population at Risk'!U69/'Population at Risk'!U$5","v":0},{"$f":"'Population at Risk'!V69/'Population at Risk'!V$5","v":1.0720088926932179E-2},{"$f":"'Population at Risk'!W69/'Population at Risk'!W$5","v":1.5999139534174516E-2},{"$f":"'Population at Risk'!X69/'Population at Risk'!X$5","v":1.5999139534174516E-2},{"$f":"'Population at Risk'!Y69/'Population at Risk'!Y$5","v":1.2699557576702476E-2},{"$f":"'Population at Risk'!Z69/'Population at Risk'!Z$5","v":3.0298627349261698E-2},{"$f":"'Population at Risk'!AA69/'Population at Risk'!AA$5","v":2.3721317213112152E-2},{"$f":"'Population at Risk'!AB69/'Population at Risk'!AB$5","v":3.4185478316926159E-3},{"$f":"'Population at Risk'!AC69/'Population at Risk'!AC$5","v":2.5999944214150354E-2},{"$f":"'Population at Risk'!AD69/'Population at Risk'!AD$5","v":5.9036711154436435E-3},{"$f":"'Population at Risk'!AE69/'Population at Risk'!AE$5","v":5.8620813453771278E-3},{"$f":"'Population at Risk'!AF69/'Population at Risk'!AF$5","v":3.2357560406572276E-2},{"$f":"'Population at Risk'!AG69/'Population at Risk'!AG$5","v":5.8620813453771278E-3},{"$f":"'Population at Risk'!AH69/'Population at Risk'!AH$5","v":1.957526657414527E-2},{"$f":"'Population at Risk'!AI69/'Population at Risk'!AI$5","v":9.7834997093667036E-3},{"$f":"'Population at Risk'!AJ69/'Population at Risk'!AJ$5","v":7.6566143320392528E-3},{"$f":"'Population at Risk'!AK69/'Population at Risk'!AK$5","v":7.1183130302554304E-4},{"$f":"'Population at Risk'!AL69/'Population at Risk'!AL$5","v":2.9829835590364808E-2},{"$f":"'Population at Risk'!AM69/'Population at Risk'!AM$5","v":2.2822988398685667E-2},{"$f":"'Population at Risk'!AN69/'Population at Risk'!AN$5","v":0},{"$f":"'Population at Risk'!AO69/'Population at Risk'!AO$5","v":0},{"$f":"'Population at Risk'!AP69/'Population at Risk'!AP$5","v":3.8375523259326604E-3},{"$f":"'Population at Risk'!AQ69/'Population at Risk'!AQ$5","v":2.1689085623300623E-2},{"$f":"'Population at Risk'!AR69/'Population at Risk'!AR$5","v":1.543504609675141E-2},{"$f":"'Population at Risk'!AS69/'Population at Risk'!AS$5","v":4.5660154824083993E-3},{"$f":"'Population at Risk'!AT69/'Population at Risk'!AT$5","v":0},{"$f":"'Population at Risk'!AU69/'Population at Risk'!AU$5","v":0},{"$f":"'Population at Risk'!AV69/'Population at Risk'!AV$5","v":1.3689444784557404E-2},{"$f":"'Population at Risk'!AW69/'Population at Risk'!AW$5","v":1.5869761850861228E-2},{"$f":"'Population at Risk'!AX69/'Population at Risk'!AX$5","v":1.2494613619631304E-2},{"$f":"'Population at Risk'!AY69/'Population at Risk'!AY$5","v":1.3653281075746147E-2},{"$f":"'Population at Risk'!AZ69/'Population at Risk'!AZ$5","v":1.1523832805301528E-2},{"$f":"'Population at Risk'!BA69/'Population at Risk'!BA$5","v":2.8357593949215745E-2},{"$f":"'Population at Risk'!BB69/'Population at Risk'!BB$5","v":1.2504344965043084E-2},{"$f":"'Population at Risk'!BC69/'Population at Risk'!BC$5","v":0},67]
[null,"Female 50-54",{"$f":"'Population at Risk'!C70/'Population at Risk'!C$5","v":6.2596887260860804E-3},{"$f":"'Population at Risk'!D70/'Population at Risk'!D$5","v":4.0610614381598733E-3},{"$f":"'Population at Risk'!E70/'Population at Risk'!E$5","v":1.8540232109786293E-3},{"$f":"'Population at Risk'!F70/'Population at Risk'!F$5","v":5.4868139116223029E-3},{"$f":"'Population at Risk'!G70/'Population at Risk'!G$5","v":5.8616027548433428E-3},{"$f":"'Population at Risk'!H70/'Population at Risk'!H$5","v":2.3841640855799699E-2},{"$f":"'Population at Risk'!I70/'Population at Risk'!I$5","v":4.4252132428627662E-3},{"$f":"'Population at Risk'!J70/'Population at Risk'!J$5","v":1.3742617068767591E-2},{"$f":"'Population at Risk'!K70/'Population at Risk'!K$5","v":1.8253749265817409E-2},{"$f":"'Population at Risk'!L70/'Population at Risk'!L$5","v":6.7038444704424945E-3},{"$f":"'Population at Risk'!M70/'Population at Risk'!M$5","v":6.7038444704424945E-3},{"$f":"'Population at Risk'!N70/'Population at Risk'!N$5","v":2.4261343775787998E-2},{"$f":"'Population at Risk'!O70/'Population at Risk'!O$5","v":2.5063759438538037E-2},{"$f":"'Population at Risk'!P70/'Population at Risk'!P$5","v":5.2366783819491405E-3},{"$f":"'Population at Risk'!Q70/'Population at Risk'!Q$5","v":2.8072036586193169E-3},{"$f":"'Population at Risk'!R70/'Population at Risk'!R$5","v":7.5259433538417773E-3},{"$f":"'Population at Risk'!S70/'Population at Risk'!S$5","v":1.0682297520953316E-2},{"$f":"'Population at Risk'!T70/'Population at Risk'!T$5","v":9.3682749301076864E-3},{"$f":"'Population at Risk'!U70/'Population at Risk'!U$5","v":0},{"$f":"'Population at Risk'!V70/'Population at Risk'!V$5","v":1.1413022431714867E-2},{"$f":"'Population at Risk'!W70/'Population at Risk'!W$5","v":1.603392027229229E-2},{"$f":"'Population at Risk'!X70/'Population at Risk'!X$5","v":1.603392027229229E-2},{"$f":"'Population at Risk'!Y70/'Population at Risk'!Y$5","v":1.2513115737631744E-2},{"$f":"'Population at Risk'!Z70/'Population at Risk'!Z$5","v":3.1783967947004131E-2},{"$f":"'Population at Risk'!AA70/'Population at Risk'!AA$5","v":2.4281109115576047E-2},{"$f":"'Population at Risk'!AB70/'Population at Risk'!AB$5","v":3.5063100620905925E-3},{"$f":"'Population at Risk'!AC70/'Population at Risk'!AC$5","v":2.6786855277420651E-2},{"$f":"'Population at Risk'!AD70/'Population at Risk'!AD$5","v":5.5281725992670158E-3},{"$f":"'Population at Risk'!AE70/'Population at Risk'!AE$5","v":5.4008028132818782E-3},{"$f":"'Population at Risk'!AF70/'Population at Risk'!AF$5","v":3.1875690556883926E-2},{"$f":"'Population at Risk'!AG70/'Population at Risk'!AG$5","v":5.4008028132818782E-3},{"$f":"'Population at Risk'!AH70/'Population at Risk'!AH$5","v":1.9721806311443924E-2},{"$f":"'Population at Risk'!AI70/'Population at Risk'!AI$5","v":9.1198655000175426E-3},{"$f":"'Population at Risk'!AJ70/'Population at Risk'!AJ$5","v":7.7793164847962922E-3},{"$f":"'Population at Risk'!AK70/'Population at Risk'!AK$5","v":6.8640875648891654E-4},{"$f":"'Population at Risk'!AL70/'Population at Risk'!AL$5","v":3.0954428826570835E-2},{"$f":"'Population at Risk'!AM70/'Population at Risk'!AM$5","v":2.3155250779991834E-2},{"$f":"'Population at Risk'!AN70/'Population at Risk'!AN$5","v":0},{"$f":"'Population at Risk'!AO70/'Population at Risk'!AO$5","v":0},{"$f":"'Population at Risk'!AP70/'Population at Risk'!AP$5","v":4.158686411784766E-3},{"$f":"'Population at Risk'!AQ70/'Population at Risk'!AQ$5","v":2.0776225866113222E-2},{"$f":"'Population at Risk'!AR70/'Population at Risk'!AR$5","v":1.5634693222068476E-2},{"$f":"'Population at Risk'!AS70/'Population at Risk'!AS$5","v":4.4252132428627662E-3},{"$f":"'Population at Risk'!AT70/'Population at Risk'!AT$5","v":0},{"$f":"'Population at Risk'!AU70/'Population at Risk'!AU$5","v":0},{"$f":"'Population at Risk'!AV70/'Population at Risk'!AV$5","v":1.2980726934675686E-2},{"$f":"'Population at Risk'!AW70/'Population at Risk'!AW$5","v":1.5804400393485362E-2},{"$f":"'Population at Risk'!AX70/'Population at Risk'!AX$5","v":1.0975660591362402E-2},{"$f":"'Population at Risk'!AY70/'Population at Risk'!AY$5","v":1.4260093568001529E-2},{"$f":"'Population at Risk'!AZ70/'Population at Risk'!AZ$5","v":1.2649905965271633E-2},{"$f":"'Population at Risk'!BA70/'Population at Risk'!BA$5","v":2.9244413250900311E-2},{"$f":"'Population at Risk'!BB70/'Population at Risk'!BB$5","v":1.2492309984326008E-2},{"$f":"'Population at Risk'!BC70/'Population at Risk'!BC$5","v":0},68]
[null,"Female 55-59",{"$f":"'Population at Risk'!C71/'Population at Risk'!C$5","v":3.6153295872310563E-3},{"$f":"'Population at Risk'!D71/'Population at Risk'!D$5","v":2.3434031209483164E-3},{"$f":"'Population at Risk'!E71/'Population at Risk'!E$5","v":1.0666108475760677E-3},{"$f":"'Population at Risk'!F71/'Population at Risk'!F$5","v":3.4225894648445901E-3},{"$f":"'Population at Risk'!G71/'Population at Risk'!G$5","v":3.7551799900287465E-3},{"$f":"'Population at Risk'!H71/'Population at Risk'!H$5","v":1.3989018256849343E-2},{"$f":"'Population at Risk'!I71/'Population at Risk'!I$5","v":2.6254972475573055E-3},{"$f":"'Population at Risk'!J71/'Population at Risk'!J$5","v":8.4873629575092421E-3},{"$f":"'Population at Risk'!K71/'Population at Risk'!K$5","v":1.1202509917119418E-2},{"$f":"'Population at Risk'!L71/'Population at Risk'!L$5","v":3.6430023141123002E-3},{"$f":"'Population at Risk'!M71/'Population at Risk'!M$5","v":3.6430023141123002E-3},{"$f":"'Population at Risk'!N71/'Population at Risk'!N$5","v":1.4525295700770222E-2},{"$f":"'Population at Risk'!O71/'Population at Risk'!O$5","v":1.3584358762946525E-2},{"$f":"'Population at Risk'!P71/'Population at Risk'!P$5","v":3.5052688649542529E-3},{"$f":"'Population at Risk'!Q71/'Population at Risk'!Q$5","v":2.0594436280838837E-3},{"$f":"'Population at Risk'!R71/'Population at Risk'!R$5","v":3.8075120280147996E-3},{"$f":"'Population at Risk'!S71/'Population at Risk'!S$5","v":6.6303871541388368E-3},{"$f":"'Population at Risk'!T71/'Population at Risk'!T$5","v":6.1809475813973365E-3},{"$f":"'Population at Risk'!U71/'Population at Risk'!U$5","v":0},{"$f":"'Population at Risk'!V71/'Population at Risk'!V$5","v":6.9665151807998312E-3},{"$f":"'Population at Risk'!W71/'Population at Risk'!W$5","v":9.4909444192039852E-3},{"$f":"'Population at Risk'!X71/'Population at Risk'!X$5","v":9.4909444192039852E-3},{"$f":"'Population at Risk'!Y71/'Population at Risk'!Y$5","v":7.6846978344967294E-3},{"$f":"'Population at Risk'!Z71/'Population at Risk'!Z$5","v":1.8422578869786089E-2},{"$f":"'Population at Risk'!AA71/'Population at Risk'!AA$5","v":1.4440360497949976E-2},{"$f":"'Population at Risk'!AB71/'Population at Risk'!AB$5","v":2.0225165676777848E-3},{"$f":"'Population at Risk'!AC71/'Population at Risk'!AC$5","v":1.5771686566682788E-2},{"$f":"'Population at Risk'!AD71/'Population at Risk'!AD$5","v":3.4397298652640452E-3},{"$f":"'Population at Risk'!AE71/'Population at Risk'!AE$5","v":3.319228422283231E-3},{"$f":"'Population at Risk'!AF71/'Population at Risk'!AF$5","v":2.036894529983363E-2},{"$f":"'Population at Risk'!AG71/'Population at Risk'!AG$5","v":3.319228422283231E-3},{"$f":"'Population at Risk'!AH71/'Population at Risk'!AH$5","v":1.201796082681994E-2},{"$f":"'Population at Risk'!AI71/'Population at Risk'!AI$5","v":5.8790279269862501E-3},{"$f":"'Population at Risk'!AJ71/'Population at Risk'!AJ$5","v":5.0922451733316785E-3},{"$f":"'Population at Risk'!AK71/'Population at Risk'!AK$5","v":3.9139233878612487E-4},{"$f":"'Population at Risk'!AL71/'Population at Risk'!AL$5","v":1.8452215041649015E-2},{"$f":"'Population at Risk'!AM71/'Population at Risk'!AM$5","v":1.3693310730591296E-2},{"$f":"'Population at Risk'!AN71/'Population at Risk'!AN$5","v":0},{"$f":"'Population at Risk'!AO71/'Population at Risk'!AO$5","v":0},{"$f":"'Population at Risk'!AP71/'Population at Risk'!AP$5","v":2.5042504686070706E-3},{"$f":"'Population at Risk'!AQ71/'Population at Risk'!AQ$5","v":1.2785427609110235E-2},{"$f":"'Population at Risk'!AR71/'Population at Risk'!AR$5","v":9.3646445024843736E-3},{"$f":"'Population at Risk'!AS71/'Population at Risk'!AS$5","v":2.6254972475573055E-3},{"$f":"'Population at Risk'!AT71/'Population at Risk'!AT$5","v":0},{"$f":"'Population at Risk'!AU71/'Population at Risk'!AU$5","v":0},{"$f":"'Population at Risk'!AV71/'Population at Risk'!AV$5","v":8.539084468551018E-3},{"$f":"'Population at Risk'!AW71/'Population at Risk'!AW$5","v":1.010646183861557E-2},{"$f":"'Population at Risk'!AX71/'Population at Risk'!AX$5","v":6.8219953427198715E-3},{"$f":"'Population at Risk'!AY71/'Population at Risk'!AY$5","v":8.5076523687632223E-3},{"$f":"'Population at Risk'!AZ71/'Population at Risk'!AZ$5","v":7.6150709989751099E-3},{"$f":"'Population at Risk'!BA71/'Population at Risk'!BA$5","v":1.7021396618941132E-2},{"$f":"'Population at Risk'!BB71/'Population at Risk'!BB$5","v":7.499987043814175E-3},{"$f":"'Population at Risk'!BC71/'Population at Risk'!BC$5","v":0},69]
[null,"Female 60-64",{"$f":"'Population at Risk'!C72/'Population at Risk'!C$5","v":2.9403789618884747E-3},{"$f":"'Population at Risk'!D72/'Population at Risk'!D$5","v":1.8914610904797121E-3},{"$f":"'Population at Risk'!E72/'Population at Risk'!E$5","v":8.3853054054722296E-4},{"$f":"'Population at Risk'!F72/'Population at Risk'!F$5","v":2.7512353775096896E-3},{"$f":"'Population at Risk'!G72/'Population at Risk'!G$5","v":3.3678744305190547E-3},{"$f":"'Population at Risk'!H72/'Population at Risk'!H$5","v":1.2666264166628477E-2},{"$f":"'Population at Risk'!I72/'Population at Risk'!I$5","v":2.504320451516199E-3},{"$f":"'Population at Risk'!J72/'Population at Risk'!J$5","v":6.4951196764651553E-3},{"$f":"'Population at Risk'!K72/'Population at Risk'!K$5","v":9.0368695751464525E-3},{"$f":"'Population at Risk'!L72/'Population at Risk'!L$5","v":3.2730098915852699E-3},{"$f":"'Population at Risk'!M72/'Population at Risk'!M$5","v":3.2730098915852699E-3},{"$f":"'Population at Risk'!N72/'Population at Risk'!N$5","v":1.1574980995820489E-2},{"$f":"'Population at Risk'!O72/'Population at Risk'!O$5","v":1.2330912410214077E-2},{"$f":"'Population at Risk'!P72/'Population at Risk'!P$5","v":2.6950887971110534E-3},{"$f":"'Population at Risk'!Q72/'Population at Risk'!Q$5","v":1.4581462184243559E-3},{"$f":"'Population at Risk'!R72/'Population at Risk'!R$5","v":3.3584208657361312E-3},{"$f":"'Population at Risk'!S72/'Population at Risk'!S$5","v":5.3690655597063092E-3},{"$f":"'Population at Risk'!T72/'Population at Risk'!T$5","v":4.6229772748890416E-3},{"$f":"'Population at Risk'!U72/'Population at Risk'!U$5","v":0},{"$f":"'Population at Risk'!V72/'Population at Risk'!V$5","v":5.9024391022703534E-3},{"$f":"'Population at Risk'!W72/'Population at Risk'!W$5","v":8.0940760664184441E-3},{"$f":"'Population at Risk'!X72/'Population at Risk'!X$5","v":8.0940760664184441E-3},{"$f":"'Population at Risk'!Y72/'Population at Risk'!Y$5","v":6.1823178081397787E-3},{"$f":"'Population at Risk'!Z72/'Population at Risk'!Z$5","v":1.4179579520098873E-2},{"$f":"'Population at Risk'!AA72/'Population at Risk'!AA$5","v":1.1652162001884249E-2},{"$f":"'Population at Risk'!AB72/'Population at Risk'!AB$5","v":1.6840317755768002E-3},{"$f":"'Population at Risk'!AC72/'Population at Risk'!AC$5","v":1.2343986830051308E-2},{"$f":"'Population at Risk'!AD72/'Population at Risk'!AD$5","v":3.1697645984368264E-3},{"$f":"'Population at Risk'!AE72/'Population at Risk'!AE$5","v":3.0940869595314615E-3},{"$f":"'Population at Risk'!AF72/'Population at Risk'!AF$5","v":1.6804783058136694E-2},{"$f":"'Population at Risk'!AG72/'Population at Risk'!AG$5","v":3.0940869595314615E-3},{"$f":"'Population at Risk'!AH72/'Population at Risk'!AH$5","v":1.0393359762830508E-2},{"$f":"'Population at Risk'!AI72/'Population at Risk'!AI$5","v":4.5327117379524917E-3},{"$f":"'Population at Risk'!AJ72/'Population at Risk'!AJ$5","v":3.8109705813320948E-3},{"$f":"'Population at Risk'!AK72/'Population at Risk'!AK$5","v":6.2963115369941828E-4},{"$f":"'Population at Risk'!AL72/'Population at Risk'!AL$5","v":1.6579705713098195E-2},{"$f":"'Population at Risk'!AM72/'Population at Risk'!AM$5","v":1.1737671281528972E-2},{"$f":"'Population at Risk'!AN72/'Population at Risk'!AN$5","v":0},{"$f":"'Population at Risk'!AO72/'Population at Risk'!AO$5","v":0},{"$f":"'Population at Risk'!AP72/'Population at Risk'!AP$5","v":2.278545490749781E-3},{"$f":"'Population at Risk'!AQ72/'Population at Risk'!AQ$5","v":9.7379633151057389E-3},{"$f":"'Population at Risk'!AR72/'Population at Risk'!AR$5","v":7.6998422429231462E-3},{"$f":"'Population at Risk'!AS72/'Population at Risk'!AS$5","v":2.504320451516199E-3},{"$f":"'Population at Risk'!AT72/'Population at Risk'!AT$5","v":0},{"$f":"'Population at Risk'!AU72/'Population at Risk'!AU$5","v":0},{"$f":"'Population at Risk'!AV72/'Population at Risk'!AV$5","v":7.864946221033833E-3},{"$f":"'Population at Risk'!AW72/'Population at Risk'!AW$5","v":8.8595607026824806E-3},{"$f":"'Population at Risk'!AX72/'Population at Risk'!AX$5","v":4.936107207112214E-3},{"$f":"'Population at Risk'!AY72/'Population at Risk'!AY$5","v":7.0841714711251062E-3},{"$f":"'Population at Risk'!AZ72/'Population at Risk'!AZ$5","v":6.1674326175788245E-3},{"$f":"'Population at Risk'!BA72/'Population at Risk'!BA$5","v":1.4536521200117607E-2},{"$f":"'Population at Risk'!BB72/'Population at Risk'!BB$5","v":6.291611043199646E-3},{"$f":"'Population at Risk'!BC72/'Population at Risk'!BC$5","v":0},70]
[null,"Female 65-69",{"$f":"'Population at Risk'!C73/'Population at Risk'!C$5","v":2.7265332192056768E-3},{"$f":"'Population at Risk'!D73/'Population at Risk'!D$5","v":1.7575523407112369E-3},{"$f":"'Population at Risk'!E73/'Population at Risk'!E$5","v":7.8486458595220074E-4},{"$f":"'Population at Risk'!F73/'Population at Risk'!F$5","v":2.4616316535613016E-3},{"$f":"'Population at Risk'!G73/'Population at Risk'!G$5","v":3.788858734333937E-3},{"$f":"'Population at Risk'!H73/'Population at Risk'!H$5","v":1.2112137453157572E-2},{"$f":"'Population at Risk'!I73/'Population at Risk'!I$5","v":2.598569070659282E-3},{"$f":"'Population at Risk'!J73/'Population at Risk'!J$5","v":6.9525224705824203E-3},{"$f":"'Population at Risk'!K73/'Population at Risk'!K$5","v":9.9459037927647348E-3},{"$f":"'Population at Risk'!L73/'Population at Risk'!L$5","v":2.8271215875142327E-3},{"$f":"'Population at Risk'!M73/'Population at Risk'!M$5","v":2.8271215875142327E-3},{"$f":"'Population at Risk'!N73/'Population at Risk'!N$5","v":1.154887201613067E-2},{"$f":"'Population at Risk'!O73/'Population at Risk'!O$5","v":1.2020229126203472E-2},{"$f":"'Population at Risk'!P73/'Population at Risk'!P$5","v":2.4305402035296E-3},{"$f":"'Population at Risk'!Q73/'Population at Risk'!Q$5","v":1.5333083946317968E-3},{"$f":"'Population at Risk'!R73/'Population at Risk'!R$5","v":3.3779465684438989E-3},{"$f":"'Population at Risk'!S73/'Population at Risk'!S$5","v":5.3538032413639972E-3},{"$f":"'Population at Risk'!T73/'Population at Risk'!T$5","v":4.4731724377247819E-3},{"$f":"'Population at Risk'!U73/'Population at Risk'!U$5","v":0},{"$f":"'Population at Risk'!V73/'Population at Risk'!V$5","v":5.9479124389596478E-3},{"$f":"'Population at Risk'!W73/'Population at Risk'!W$5","v":8.1406383448446289E-3},{"$f":"'Population at Risk'!X73/'Population at Risk'!X$5","v":8.1406383448446289E-3},{"$f":"'Population at Risk'!Y73/'Population at Risk'!Y$5","v":6.4223146174619758E-3},{"$f":"'Population at Risk'!Z73/'Population at Risk'!Z$5","v":1.2723172420663903E-2},{"$f":"'Population at Risk'!AA73/'Population at Risk'!AA$5","v":1.0830995145621584E-2},{"$f":"'Population at Risk'!AB73/'Population at Risk'!AB$5","v":1.5581490016549464E-3},{"$f":"'Population at Risk'!AC73/'Population at Risk'!AC$5","v":1.1330951062540956E-2},{"$f":"'Population at Risk'!AD73/'Population at Risk'!AD$5","v":2.9323813465715132E-3},{"$f":"'Population at Risk'!AE73/'Population at Risk'!AE$5","v":2.6052083546990474E-3},{"$f":"'Population at Risk'!AF73/'Population at Risk'!AF$5","v":1.6853165351010408E-2},{"$f":"'Population at Risk'!AG73/'Population at Risk'!AG$5","v":2.6052083546990474E-3},{"$f":"'Population at Risk'!AH73/'Population at Risk'!AH$5","v":9.9213058687656532E-3},{"$f":"'Population at Risk'!AI73/'Population at Risk'!AI$5","v":4.4763304762289961E-3},{"$f":"'Population at Risk'!AJ73/'Population at Risk'!AJ$5","v":4.2873419039986061E-3},{"$f":"'Population at Risk'!AK73/'Population at Risk'!AK$5","v":5.4454586265895632E-4},{"$f":"'Population at Risk'!AL73/'Population at Risk'!AL$5","v":1.62409603069282E-2},{"$f":"'Population at Risk'!AM73/'Population at Risk'!AM$5","v":1.1127971923880129E-2},{"$f":"'Population at Risk'!AN73/'Population at Risk'!AN$5","v":0},{"$f":"'Population at Risk'!AO73/'Population at Risk'!AO$5","v":0},{"$f":"'Population at Risk'!AP73/'Population at Risk'!AP$5","v":1.9561098080965104E-3},{"$f":"'Population at Risk'!AQ73/'Population at Risk'!AQ$5","v":9.3821679914402392E-3},{"$f":"'Population at Risk'!AR73/'Population at Risk'!AR$5","v":7.317644130769285E-3},{"$f":"'Population at Risk'!AS73/'Population at Risk'!AS$5","v":2.598569070659282E-3},{"$f":"'Population at Risk'!AT73/'Population at Risk'!AT$5","v":0},{"$f":"'Population at Risk'!AU73/'Population at Risk'!AU$5","v":0},{"$f":"'Population at Risk'!AV73/'Population at Risk'!AV$5","v":6.7413824751718565E-3},{"$f":"'Population at Risk'!AW73/'Population at Risk'!AW$5","v":8.5445540999204376E-3},{"$f":"'Population at Risk'!AX73/'Population at Risk'!AX$5","v":5.116496507039903E-3},{"$f":"'Population at Risk'!AY73/'Population at Risk'!AY$5","v":7.004781485913123E-3},{"$f":"'Population at Risk'!AZ73/'Population at Risk'!AZ$5","v":5.9737097198250639E-3},{"$f":"'Population at Risk'!BA73/'Population at Risk'!BA$5","v":1.3238864036954212E-2},{"$f":"'Population at Risk'!BB73/'Population at Risk'!BB$5","v":6.1546617631299989E-3},{"$f":"'Population at Risk'!BC73/'Population at Risk'!BC$5","v":0},71]
[null,"Female 70-74",{"$f":"'Population at Risk'!C74/'Population at Risk'!C$5","v":1.917929004686346E-3},{"$f":"'Population at Risk'!D74/'Population at Risk'!D$5","v":1.2286127791257602E-3},{"$f":"'Population at Risk'!E74/'Population at Risk'!E$5","v":5.3665954595022273E-4},{"$f":"'Population at Risk'!F74/'Population at Risk'!F$5","v":2.1193727070768424E-3},{"$f":"'Population at Risk'!G74/'Population at Risk'!G$5","v":2.7953357773308155E-3},{"$f":"'Population at Risk'!H74/'Population at Risk'!H$5","v":9.4809293169344395E-3},{"$f":"'Population at Risk'!I74/'Population at Risk'!I$5","v":2.0061491789027616E-3},{"$f":"'Population at Risk'!J74/'Population at Risk'!J$5","v":5.3668594509759032E-3},{"$f":"'Population at Risk'!K74/'Population at Risk'!K$5","v":7.4594278445735511E-3},{"$f":"'Population at Risk'!L74/'Population at Risk'!L$5","v":2.9504523950232434E-3},{"$f":"'Population at Risk'!M74/'Population at Risk'!M$5","v":2.9504523950232434E-3},{"$f":"'Population at Risk'!N74/'Population at Risk'!N$5","v":8.3374675142827287E-3},{"$f":"'Population at Risk'!O74/'Population at Risk'!O$5","v":9.2883588702481375E-3},{"$f":"'Population at Risk'!P74/'Population at Risk'!P$5","v":1.6864972840817634E-3},{"$f":"'Population at Risk'!Q74/'Population at Risk'!Q$5","v":1.3078218660094738E-3},{"$f":"'Population at Risk'!R74/'Population at Risk'!R$5","v":2.4211871357632574E-3},{"$f":"'Population at Risk'!S74/'Population at Risk'!S$5","v":4.1273669459996115E-3},{"$f":"'Population at Risk'!T74/'Population at Risk'!T$5","v":3.2537610632077112E-3},{"$f":"'Population at Risk'!U74/'Population at Risk'!U$5","v":0},{"$f":"'Population at Risk'!V74/'Population at Risk'!V$5","v":4.3017776508072073E-3},{"$f":"'Population at Risk'!W74/'Population at Risk'!W$5","v":6.4527557518954332E-3},{"$f":"'Population at Risk'!X74/'Population at Risk'!X$5","v":6.4527557518954332E-3},{"$f":"'Population at Risk'!Y74/'Population at Risk'!Y$5","v":4.8047361226303724E-3},{"$f":"'Population at Risk'!Z74/'Population at Risk'!Z$5","v":1.0478363611401469E-2},{"$f":"'Population at Risk'!AA74/'Population at Risk'!AA$5","v":8.6262382376330361E-3},{"$f":"'Population at Risk'!AB74/'Population at Risk'!AB$5","v":1.065807485871696E-3},{"$f":"'Population at Risk'!AC74/'Population at Risk'!AC$5","v":9.0443204387592752E-3},{"$f":"'Population at Risk'!AD74/'Population at Risk'!AD$5","v":2.2481590323714935E-3},{"$f":"'Population at Risk'!AE74/'Population at Risk'!AE$5","v":2.0391383912088841E-3},{"$f":"'Population at Risk'!AF74/'Population at Risk'!AF$5","v":1.2708415594828899E-2},{"$f":"'Population at Risk'!AG74/'Population at Risk'!AG$5","v":2.0391383912088841E-3},{"$f":"'Population at Risk'!AH74/'Population at Risk'!AH$5","v":7.8655213777299691E-3},{"$f":"'Population at Risk'!AI74/'Population at Risk'!AI$5","v":3.3726245649145187E-3},{"$f":"'Population at Risk'!AJ74/'Population at Risk'!AJ$5","v":3.2524662719989428E-3},{"$f":"'Population at Risk'!AK74/'Population at Risk'!AK$5","v":2.3823881491329339E-4},{"$f":"'Population at Risk'!AL74/'Population at Risk'!AL$5","v":1.2655904758295729E-2},{"$f":"'Population at Risk'!AM74/'Population at Risk'!AM$5","v":9.12248284180249E-3},{"$f":"'Population at Risk'!AN74/'Population at Risk'!AN$5","v":0},{"$f":"'Population at Risk'!AO74/'Population at Risk'!AO$5","v":0},{"$f":"'Population at Risk'!AP74/'Population at Risk'!AP$5","v":1.6229262693547967E-3},{"$f":"'Population at Risk'!AQ74/'Population at Risk'!AQ$5","v":7.425293711279991E-3},{"$f":"'Population at Risk'!AR74/'Population at Risk'!AR$5","v":5.7424607388855149E-3},{"$f":"'Population at Risk'!AS74/'Population at Risk'!AS$5","v":2.0061491789027616E-3},{"$f":"'Population at Risk'!AT74/'Population at Risk'!AT$5","v":0},{"$f":"'Population at Risk'!AU74/'Population at Risk'!AU$5","v":0},{"$f":"'Population at Risk'!AV74/'Population at Risk'!AV$5","v":5.492978313102994E-3},{"$f":"'Population at Risk'!AW74/'Population at Risk'!AW$5","v":6.4313848063917269E-3},{"$f":"'Population at Risk'!AX74/'Population at Risk'!AX$5","v":4.0833577892722302E-3},{"$f":"'Population at Risk'!AY74/'Population at Risk'!AY$5","v":5.4151355029475982E-3},{"$f":"'Population at Risk'!AZ74/'Population at Risk'!AZ$5","v":4.4732378208595701E-3},{"$f":"'Population at Risk'!BA74/'Population at Risk'!BA$5","v":9.4287217280914788E-3},{"$f":"'Population at Risk'!BB74/'Population at Risk'!BB$5","v":4.8576715224704055E-3},{"$f":"'Population at Risk'!BC74/'Population at Risk'!BC$5","v":0},72]
[null,"Female 75-79",{"$f":"'Population at Risk'!C75/'Population at Risk'!C$5","v":1.6238911084974984E-3},{"$f":"'Population at Risk'!D75/'Population at Risk'!D$5","v":9.9427246703092851E-4},{"$f":"'Population at Risk'!E75/'Population at Risk'!E$5","v":3.6224519351640036E-4},{"$f":"'Population at Risk'!F75/'Population at Risk'!F$5","v":2.1851917352469306E-3},{"$f":"'Population at Risk'!G75/'Population at Risk'!G$5","v":2.4248695899737193E-3},{"$f":"'Population at Risk'!H75/'Population at Risk'!H$5","v":8.1796252930414776E-3},{"$f":"'Population at Risk'!I75/'Population at Risk'!I$5","v":1.4002651986972296E-3},{"$f":"'Population at Risk'!J75/'Population at Risk'!J$5","v":4.1877766928069549E-3},{"$f":"'Population at Risk'!K75/'Population at Risk'!K$5","v":5.6948320103733562E-3},{"$f":"'Population at Risk'!L75/'Population at Risk'!L$5","v":1.793040201477148E-3},{"$f":"'Population at Risk'!M75/'Population at Risk'!M$5","v":1.793040201477148E-3},{"$f":"'Population at Risk'!N75/'Population at Risk'!N$5","v":7.3018113199198424E-3},{"$f":"'Population at Risk'!O75/'Population at Risk'!O$5","v":7.9170671339254591E-3},{"$f":"'Population at Risk'!P75/'Population at Risk'!P$5","v":1.4219486905003103E-3},{"$f":"'Population at Risk'!Q75/'Population at Risk'!Q$5","v":1.1274326431116152E-3},{"$f":"'Population at Risk'!R75/'Population at Risk'!R$5","v":2.1283015951467344E-3},{"$f":"'Population at Risk'!S75/'Population at Risk'!S$5","v":3.395865831164498E-3},{"$f":"'Population at Risk'!T75/'Population at Risk'!T$5","v":2.8822450670403484E-3},{"$f":"'Population at Risk'!U75/'Population at Risk'!U$5","v":0},{"$f":"'Population at Risk'!V75/'Population at Risk'!V$5","v":4.6200910076322635E-3},{"$f":"'Population at Risk'!W75/'Population at Risk'!W$5","v":5.2964591709785116E-3},{"$f":"'Population at Risk'!X75/'Population at Risk'!X$5","v":5.2964591709785116E-3},{"$f":"'Population at Risk'!Y75/'Population at Risk'!Y$5","v":4.4159412915284139E-3},{"$f":"'Population at Risk'!Z75/'Population at Risk'!Z$5","v":9.9326964181464996E-3},{"$f":"'Population at Risk'!AA75/'Population at Risk'!AA$5","v":7.8347870398935565E-3},{"$f":"'Population at Risk'!AB75/'Population at Risk'!AB$5","v":8.5880025764464732E-4},{"$f":"'Population at Risk'!AC75/'Population at Risk'!AC$5","v":8.5456642516477492E-3},{"$f":"'Population at Risk'!AD75/'Population at Risk'!AD$5","v":1.9037205884884906E-3},{"$f":"'Population at Risk'!AE75/'Population at Risk'!AE$5","v":1.7046425036919693E-3},{"$f":"'Population at Risk'!AF75/'Population at Risk'!AF$5","v":1.2111700649386428E-2},{"$f":"'Population at Risk'!AG75/'Population at Risk'!AG$5","v":1.7046425036919693E-3},{"$f":"'Population at Risk'!AH75/'Population at Risk'!AH$5","v":6.5413182463272624E-3},{"$f":"'Population at Risk'!AI75/'Population at Risk'!AI$5","v":2.8122289938446289E-3},{"$f":"'Population at Risk'!AJ75/'Population at Risk'!AJ$5","v":2.1354576533326392E-3},{"$f":"'Population at Risk'!AK75/'Population at Risk'!AK$5","v":1.7017058208092386E-4},{"$f":"'Population at Risk'!AL75/'Population at Risk'!AL$5","v":1.0980996916677409E-2},{"$f":"'Population at Risk'!AM75/'Population at Risk'!AM$5","v":7.5426329339325342E-3},{"$f":"'Population at Risk'!AN75/'Population at Risk'!AN$5","v":0},{"$f":"'Population at Risk'!AO75/'Population at Risk'!AO$5","v":0},{"$f":"'Population at Risk'!AP75/'Population at Risk'!AP$5","v":1.0210463284020244E-3},{"$f":"'Population at Risk'!AQ75/'Population at Risk'!AQ$5","v":7.4098243493814922E-3},{"$f":"'Population at Risk'!AR75/'Population at Risk'!AR$5","v":5.0444879106210858E-3},{"$f":"'Population at Risk'!AS75/'Population at Risk'!AS$5","v":1.4002651986972296E-3},{"$f":"'Population at Risk'!AT75/'Population at Risk'!AT$5","v":0},{"$f":"'Population at Risk'!AU75/'Population at Risk'!AU$5","v":0},{"$f":"'Population at Risk'!AV75/'Population at Risk'!AV$5","v":4.7689038991030538E-3},{"$f":"'Population at Risk'!AW75/'Population at Risk'!AW$5","v":5.3988631640050286E-3},{"$f":"'Population at Risk'!AX75/'Population at Risk'!AX$5","v":3.2634064259645539E-3},{"$f":"'Population at Risk'!AY75/'Population at Risk'!AY$5","v":4.5510770592450834E-3},{"$f":"'Population at Risk'!AZ75/'Population at Risk'!AZ$5","v":3.8744579550752186E-3},{"$f":"'Population at Risk'!BA75/'Population at Risk'!BA$5","v":8.1448694283659893E-3},{"$f":"'Population at Risk'!BB75/'Population at Risk'!BB$5","v":3.858747361962395E-3},{"$f":"'Population at Risk'!BC75/'Population at Risk'!BC$5","v":0},73]
[null,"Female 80-84",{"$f":"'Population at Risk'!C76/'Population at Risk'!C$5","v":1.2630264177202765E-3},{"$f":"'Population at Risk'!D76/'Population at Risk'!D$5","v":8.0010477986663942E-4},{"$f":"'Population at Risk'!E76/'Population at Risk'!E$5","v":3.3541221621888919E-4},{"$f":"'Population at Risk'!F76/'Population at Risk'!F$5","v":1.2768891464997126E-3},{"$f":"'Population at Risk'!G76/'Population at Risk'!G$5","v":1.970206541853647E-3},{"$f":"'Population at Risk'!H76/'Population at Risk'!H$5","v":5.977418483376463E-3},{"$f":"'Population at Risk'!I76/'Population at Risk'!I$5","v":1.1040552528189696E-3},{"$f":"'Population at Risk'!J76/'Population at Risk'!J$5","v":3.1611615326770947E-3},{"$f":"'Population at Risk'!K76/'Population at Risk'!K$5","v":3.7430820725458678E-3},{"$f":"'Population at Risk'!L76/'Population at Risk'!L$5","v":1.432534764143118E-3},{"$f":"'Population at Risk'!M76/'Population at Risk'!M$5","v":1.432534764143118E-3},{"$f":"'Population at Risk'!N76/'Population at Risk'!N$5","v":5.8397084572898864E-3},{"$f":"'Population at Risk'!O76/'Population at Risk'!O$5","v":5.9994013464117141E-3},{"$f":"'Population at Risk'!P76/'Population at Risk'!P$5","v":9.2592007753508566E-4},{"$f":"'Population at Risk'!Q76/'Population at Risk'!Q$5","v":6.3136228014250447E-4},{"$f":"'Population at Risk'!R76/'Population at Risk'!R$5","v":1.8354160545302112E-3},{"$f":"'Population at Risk'!S76/'Population at Risk'!S$5","v":2.5771514686590284E-3},{"$f":"'Population at Risk'!T76/'Population at Risk'!T$5","v":2.2830257183833113E-3},{"$f":"'Population at Risk'!U76/'Population at Risk'!U$5","v":0},{"$f":"'Population at Risk'!V76/'Population at Risk'!V$5","v":3.3013642436427399E-3},{"$f":"'Population at Risk'!W76/'Population at Risk'!W$5","v":3.8258672106848447E-3},{"$f":"'Population at Risk'!X76/'Population at Risk'!X$5","v":3.8258672106848447E-3},{"$f":"'Population at Risk'!Y76/'Population at Risk'!Y$5","v":3.2351569896632076E-3},{"$f":"'Population at Risk'!Z76/'Population at Risk'!Z$5","v":7.862656460816261E-3},{"$f":"'Population at Risk'!AA76/'Population at Risk'!AA$5","v":6.1409945040719807E-3},{"$f":"'Population at Risk'!AB76/'Population at Risk'!AB$5","v":6.9655134903425788E-4},{"$f":"'Population at Risk'!AC76/'Population at Risk'!AC$5","v":6.7745363077854137E-3},{"$f":"'Population at Risk'!AD76/'Population at Risk'!AD$5","v":1.4708452468517434E-3},{"$f":"'Population at Risk'!AE76/'Population at Risk'!AE$5","v":1.2800900310743469E-3},{"$f":"'Population at Risk'!AF76/'Population at Risk'!AF$5","v":9.644203712827008E-3},{"$f":"'Population at Risk'!AG76/'Population at Risk'!AG$5","v":1.2800900310743469E-3},{"$f":"'Population at Risk'!AH76/'Population at Risk'!AH$5","v":4.9882404996203838E-3},{"$f":"'Population at Risk'!AI76/'Population at Risk'!AI$5","v":2.2142459149590761E-3},{"$f":"'Population at Risk'!AJ76/'Population at Risk'!AJ$5","v":2.2340172373326072E-3},{"$f":"'Population at Risk'!AK76/'Population at Risk'!AK$5","v":1.7017058208092386E-4},{"$f":"'Population at Risk'!AL76/'Population at Risk'!AL$5","v":7.725277179599103E-3},{"$f":"'Population at Risk'!AM76/'Population at Risk'!AM$5","v":5.6790235765907899E-3},{"$f":"'Population at Risk'!AN76/'Population at Risk'!AN$5","v":0},{"$f":"'Population at Risk'!AO76/'Population at Risk'!AO$5","v":0},{"$f":"'Population at Risk'!AP76/'Population at Risk'!AP$5","v":1.1715163136402176E-3},{"$f":"'Population at Risk'!AQ76/'Population at Risk'!AQ$5","v":6.0871939070597436E-3},{"$f":"'Population at Risk'!AR76/'Population at Risk'!AR$5","v":3.8947305553003013E-3},{"$f":"'Population at Risk'!AS76/'Population at Risk'!AS$5","v":1.1040552528189696E-3},{"$f":"'Population at Risk'!AT76/'Population at Risk'!AT$5","v":0},{"$f":"'Population at Risk'!AU76/'Population at Risk'!AU$5","v":0},{"$f":"'Population at Risk'!AV76/'Population at Risk'!AV$5","v":3.632856111620389E-3},{"$f":"'Population at Risk'!AW76/'Population at Risk'!AW$5","v":4.2000880368272498E-3},{"$f":"'Population at Risk'!AX76/'Population at Risk'!AX$5","v":2.8042336625122544E-3},{"$f":"'Population at Risk'!AY76/'Population at Risk'!AY$5","v":3.4396172662773186E-3},{"$f":"'Population at Risk'!AZ76/'Population at Risk'!AZ$5","v":3.0889996605463332E-3},{"$f":"'Population at Risk'!BA76/'Population at Risk'!BA$5","v":6.1845788201829897E-3},{"$f":"'Population at Risk'!BB76/'Population at Risk'!BB$5","v":2.867879041458481E-3},{"$f":"'Population at Risk'!BC76/'Population at Risk'!BC$5","v":0},74]
[null,"Female 85-89",{"$f":"'Population at Risk'!C77/'Population at Risk'!C$5","v":9.689885215314291E-4},{"$f":"'Population at Risk'!D77/'Population at Risk'!D$5","v":6.0258937395813838E-4},{"$f":"'Population at Risk'!E77/'Population at Risk'!E$5","v":2.3478855135322245E-4},{"$f":"'Population at Risk'!F77/'Population at Risk'!F$5","v":7.8982833804105924E-4},{"$f":"'Population at Risk'!G77/'Population at Risk'!G$5","v":1.4481860051231937E-3},{"$f":"'Population at Risk'!H77/'Population at Risk'!H$5","v":3.6715363531265718E-3},{"$f":"'Population at Risk'!I77/'Population at Risk'!I$5","v":7.9438121849169754E-4},{"$f":"'Population at Risk'!J77/'Population at Risk'!J$5","v":1.6771435784299698E-3},{"$f":"'Population at Risk'!K77/'Population at Risk'!K$5","v":2.3527944456002594E-3},{"$f":"'Population at Risk'!L77/'Population at Risk'!L$5","v":9.58185504493079E-4},{"$f":"'Population at Risk'!M77/'Population at Risk'!M$5","v":9.58185504493079E-4},{"$f":"'Population at Risk'!N77/'Population at Risk'!N$5","v":3.8467230076335759E-3},{"$f":"'Population at Risk'!O77/'Population at Risk'!O$5","v":4.08173555889797E-3},{"$f":"'Population at Risk'!P77/'Population at Risk'!P$5","v":5.4563147426174693E-4},{"$f":"'Population at Risk'!Q77/'Population at Risk'!Q$5","v":3.1568114007125223E-4},{"$f":"'Population at Risk'!R77/'Population at Risk'!R$5","v":8.5913091914180091E-4},{"$f":"'Population at Risk'!S77/'Population at Risk'!S$5","v":1.5523958085323418E-3},{"$f":"'Population at Risk'!T77/'Population at Risk'!T$5","v":1.5250132423321593E-3},{"$f":"'Population at Risk'!U77/'Population at Risk'!U$5","v":0},{"$f":"'Population at Risk'!V77/'Population at Risk'!V$5","v":1.9735428123153569E-3},{"$f":"'Population at Risk'!W77/'Population at Risk'!W$5","v":2.3475148706534796E-3},{"$f":"'Population at Risk'!X77/'Population at Risk'!X$5","v":2.3475148706534796E-3},{"$f":"'Population at Risk'!Y77/'Population at Risk'!Y$5","v":1.8335756232215805E-3},{"$f":"'Population at Risk'!Z77/'Population at Risk'!Z$5","v":4.5828276728887077E-3},{"$f":"'Population at Risk'!AA77/'Population at Risk'!AA$5","v":3.6129892131239018E-3},{"$f":"'Population at Risk'!AB77/'Population at Risk'!AB$5","v":5.2591025549574488E-4},{"$f":"'Population at Risk'!AC77/'Population at Risk'!AC$5","v":4.0173269849052432E-3},{"$f":"'Population at Risk'!AD77/'Population at Risk'!AD$5","v":9.681513017251981E-4},{"$f":"'Population at Risk'!AE77/'Population at Risk'!AE$5","v":7.8477881302045367E-4},{"$f":"'Population at Risk'!AF77/'Population at Risk'!AF$5","v":5.8220025758035955E-3},{"$f":"'Population at Risk'!AG77/'Population at Risk'!AG$5","v":7.8477881302045367E-4},{"$f":"'Population at Risk'!AH77/'Population at Risk'!AH$5","v":2.8772808781095862E-3},{"$f":"'Population at Risk'!AI77/'Population at Risk'!AI$5","v":1.2984775427229149E-3},{"$f":"'Population at Risk'!AJ77/'Population at Risk'!AJ$5","v":1.1827150079996155E-3},{"$f":"'Population at Risk'!AK77/'Population at Risk'!AK$5","v":1.3613646566473908E-4},{"$f":"'Population at Risk'!AL77/'Population at Risk'!AL$5","v":4.2625463609724645E-3},{"$f":"'Population at Risk'!AM77/'Population at Risk'!AM$5","v":3.4281209165916045E-3},{"$f":"'Population at Risk'!AN77/'Population at Risk'!AN$5","v":0},{"$f":"'Population at Risk'!AO77/'Population at Risk'!AO$5","v":0},{"$f":"'Population at Risk'!AP77/'Population at Risk'!AP$5","v":5.5888851659900295E-4},{"$f":"'Population at Risk'!AQ77/'Population at Risk'!AQ$5","v":3.503810470010246E-3},{"$f":"'Population at Risk'!AR77/'Population at Risk'!AR$5","v":2.3377345218569554E-3},{"$f":"'Population at Risk'!AS77/'Population at Risk'!AS$5","v":7.9438121849169754E-4},{"$f":"'Population at Risk'!AT77/'Population at Risk'!AT$5","v":0},{"$f":"'Population at Risk'!AU77/'Population at Risk'!AU$5","v":0},{"$f":"'Population at Risk'!AV77/'Population at Risk'!AV$5","v":2.409420032792904E-3},{"$f":"'Population at Risk'!AW77/'Population at Risk'!AW$5","v":2.2487971363845901E-3},{"$f":"'Population at Risk'!AX77/'Population at Risk'!AX$5","v":1.2627250994938222E-3},{"$f":"'Population at Risk'!AY77/'Population at Risk'!AY$5","v":2.1398370432718266E-3},{"$f":"'Population at Risk'!AZ77/'Population at Risk'!AZ$5","v":1.9513179155560643E-3},{"$f":"'Population at Risk'!BA77/'Population at Risk'!BA$5","v":4.5003854807581581E-3},{"$f":"'Population at Risk'!BB77/'Population at Risk'!BB$5","v":1.2728227206473036E-3},{"$f":"'Population at Risk'!BC77/'Population at Risk'!BC$5","v":0},75]
[null,"Female 90+",{"$f":"'Population at Risk'!C78/'Population at Risk'!C$5","v":4.744702415774584E-4},{"$f":"'Population at Risk'!D78/'Population at Risk'!D$5","v":2.979469682348573E-4},{"$f":"'Population at Risk'!E78/'Population at Risk'!E$5","v":1.207483978388001E-4},{"$f":"'Population at Risk'!F78/'Population at Risk'!F$5","v":4.8706080845865326E-4},{"$f":"'Population at Risk'!G78/'Population at Risk'!G$5","v":9.2616546839274013E-4},{"$f":"'Population at Risk'!H78/'Population at Risk'!H$5","v":2.0306062790417653E-3},{"$f":"'Population at Risk'!I78/'Population at Risk'!I$5","v":3.2313812277628376E-4},{"$f":"'Population at Risk'!J78/'Population at Risk'!J$5","v":1.0164506535939211E-3},{"$f":"'Population at Risk'!K78/'Population at Risk'!K$5","v":1.4972328290183471E-3},{"$f":"'Population at Risk'!L78/'Population at Risk'!L$5","v":3.794794077200313E-4},{"$f":"'Population at Risk'!M78/'Population at Risk'!M$5","v":3.794794077200313E-4},{"$f":"'Population at Risk'!N78/'Population at Risk'!N$5","v":2.080015381955712E-3},{"$f":"'Population at Risk'!O78/'Population at Risk'!O$5","v":2.1747829880742462E-3},{"$f":"'Population at Risk'!P78/'Population at Risk'!P$5","v":8.2671435494204089E-5},{"$f":"'Population at Risk'!Q78/'Population at Risk'!Q$5","v":9.0194611448929219E-5},{"$f":"'Population at Risk'!R78/'Population at Risk'!R$5","v":5.0766827040197324E-4},{"$f":"'Population at Risk'!S78/'Population at Risk'!S$5","v":8.8739479504587517E-4},{"$f":"'Population at Risk'!T78/'Population at Risk'!T$5","v":8.1194221743028522E-4},{"$f":"'Population at Risk'!U78/'Population at Risk'!U$5","v":0},{"$f":"'Population at Risk'!V78/'Population at Risk'!V$5","v":9.4584540313731396E-4},{"$f":"'Population at Risk'!W78/'Population at Risk'!W$5","v":1.3658268338347518E-3},{"$f":"'Population at Risk'!X78/'Population at Risk'!X$5","v":1.3658268338347518E-3},{"$f":"'Population at Risk'!Y78/'Population at Risk'!Y$5","v":9.7918698203456147E-4},{"$f":"'Population at Risk'!Z78/'Population at Risk'!Z$5","v":2.4700664406417101E-3},{"$f":"'Population at Risk'!AA78/'Population at Risk'!AA$5","v":1.9452884750300007E-3},{"$f":"'Population at Risk'!AB78/'Population at Risk'!AB$5","v":2.5456294281974887E-4},{"$f":"'Population at Risk'!AC78/'Population at Risk'!AC$5","v":2.1428738851549355E-3},{"$f":"'Population at Risk'!AD78/'Population at Risk'!AD$5","v":5.6320340148437002E-4},{"$f":"'Population at Risk'!AE78/'Population at Risk'!AE$5","v":4.2455247261762252E-4},{"$f":"'Population at Risk'!AF78/'Population at Risk'!AF$5","v":2.9190650033807499E-3},{"$f":"'Population at Risk'!AG78/'Population at Risk'!AG$5","v":4.2455247261762252E-4},{"$f":"'Population at Risk'!AH78/'Population at Risk'!AH$5","v":1.5857741203217607E-3},{"$f":"'Population at Risk'!AI78/'Population at Risk'!AI$5","v":7.4833311014820621E-4},{"$f":"'Population at Risk'!AJ78/'Population at Risk'!AJ$5","v":6.2421069866646381E-4},{"$f":"'Population at Risk'!AK78/'Population at Risk'!AK$5","v":3.403411641618477E-5},{"$f":"'Population at Risk'!AL78/'Population at Risk'!AL$5","v":2.4182658162691466E-3},{"$f":"'Population at Risk'!AM78/'Population at Risk'!AM$5","v":1.779248439931213E-3},{"$f":"'Population at Risk'!AN78/'Population at Risk'!AN$5","v":0},{"$f":"'Population at Risk'!AO78/'Population at Risk'!AO$5","v":0},{"$f":"'Population at Risk'!AP78/'Population at Risk'!AP$5","v":2.9019211438794382E-4},{"$f":"'Population at Risk'!AQ78/'Population at Risk'!AQ$5","v":1.6320176802917482E-3},{"$f":"'Population at Risk'!AR78/'Population at Risk'!AR$5","v":1.2717971663050863E-3},{"$f":"'Population at Risk'!AS78/'Population at Risk'!AS$5","v":3.2313812277628376E-4},{"$f":"'Population at Risk'!AT78/'Population at Risk'!AT$5","v":0},{"$f":"'Population at Risk'!AU78/'Population at Risk'!AU$5","v":0},{"$f":"'Population at Risk'!AV78/'Population at Risk'!AV$5","v":1.3482764950343714E-3},{"$f":"'Population at Risk'!AW78/'Population at Risk'!AW$5","v":1.3650286119688564E-3},{"$f":"'Population at Risk'!AX78/'Population at Risk'!AX$5","v":7.2155719971075559E-4},{"$f":"'Population at Risk'!AY78/'Population at Risk'!AY$5","v":1.2093125654383486E-3},{"$f":"'Population at Risk'!AZ78/'Population at Risk'!AZ$5","v":1.0672370548979919E-3},{"$f":"'Population at Risk'!BA78/'Population at Risk'!BA$5","v":2.940435912274502E-3},{"$f":"'Population at Risk'!BB78/'Population at Risk'!BB$5","v":9.9086832050391356E-4},{"$f":"'Population at Risk'!BC78/'Population at Risk'!BC$5","v":0},76]
[null,"Male 0-4",{"$f":"'Population at Risk'!C79/'Population at Risk'!C$5","v":0},{"$f":"'Population at Risk'!D79/'Population at Risk'!D$5","v":0},{"$f":"'Population at Risk'!E79/'Population at Risk'!E$5","v":0},{"$f":"'Population at Risk'!F79/'Population at Risk'!F$5","v":0},{"$f":"'Population at Risk'!G79/'Population at Risk'!G$5","v":0},{"$f":"'Population at Risk'!H79/'Population at Risk'!H$5","v":0},{"$f":"'Population at Risk'!I79/'Population at Risk'!I$5","v":0},{"$f":"'Population at Risk'!J79/'Population at Risk'!J$5","v":0},{"$f":"'Population at Risk'!K79/'Population at Risk'!K$5","v":0},{"$f":"'Population at Risk'!L79/'Population at Risk'!L$5","v":0},{"$f":"'Population at Risk'!M79/'Population at Risk'!M$5","v":0},{"$f":"'Population at Risk'!N79/'Population at Risk'!N$5","v":0},{"$f":"'Population at Risk'!O79/'Population at Risk'!O$5","v":0},{"$f":"'Population at Risk'!P79/'Population at Risk'!P$5","v":0},{"$f":"'Population at Risk'!Q79/'Population at Risk'!Q$5","v":0},{"$f":"'Population at Risk'!R79/'Population at Risk'!R$5","v":0},{"$f":"'Population at Risk'!S79/'Population at Risk'!S$5","v":0},{"$f":"'Population at Risk'!T79/'Population at Risk'!T$5","v":0},{"$f":"'Population at Risk'!U79/'Population at Risk'!U$5","v":0},{"$f":"'Population at Risk'!V79/'Population at Risk'!V$5","v":0},{"$f":"'Population at Risk'!W79/'Population at Risk'!W$5","v":0},{"$f":"'Population at Risk'!X79/'Population at Risk'!X$5","v":0},{"$f":"'Population at Risk'!Y79/'Population at Risk'!Y$5","v":0},{"$f":"'Population at Risk'!Z79/'Population at Risk'!Z$5","v":0},{"$f":"'Population at Risk'!AA79/'Population at Risk'!AA$5","v":0},{"$f":"'Population at Risk'!AB79/'Population at Risk'!AB$5","v":0},{"$f":"'Population at Risk'!AC79/'Population at Risk'!AC$5","v":0},{"$f":"'Population at Risk'!AD79/'Population at Risk'!AD$5","v":0},{"$f":"'Population at Risk'!AE79/'Population at Risk'!AE$5","v":0},{"$f":"'Population at Risk'!AF79/'Population at Risk'!AF$5","v":0},{"$f":"'Population at Risk'!AG79/'Population at Risk'!AG$5","v":0},{"$f":"'Population at Risk'!AH79/'Population at Risk'!AH$5","v":0},{"$f":"'Population at Risk'!AI79/'Population at Risk'!AI$5","v":0},{"$f":"'Population at Risk'!AJ79/'Population at Risk'!AJ$5","v":0},{"$f":"'Population at Risk'!AK79/'Population at Risk'!AK$5","v":0},{"$f":"'Population at Risk'!AL79/'Population at Risk'!AL$5","v":0},{"$f":"'Population at Risk'!AM79/'Population at Risk'!AM$5","v":0},{"$f":"'Population at Risk'!AN79/'Population at Risk'!AN$5","v":0},{"$f":"'Population at Risk'!AO79/'Population at Risk'!AO$5","v":0},{"$f":"'Population at Risk'!AP79/'Population at Risk'!AP$5","v":0},{"$f":"'Population at Risk'!AQ79/'Population at Risk'!AQ$5","v":0},{"$f":"'Population at Risk'!AR79/'Population at Risk'!AR$5","v":0},{"$f":"'Population at Risk'!AS79/'Population at Risk'!AS$5","v":0},{"$f":"'Population at Risk'!AT79/'Population at Risk'!AT$5","v":0},{"$f":"'Population at Risk'!AU79/'Population at Risk'!AU$5","v":0},{"$f":"'Population at Risk'!AV79/'Population at Risk'!AV$5","v":0},{"$f":"'Population at Risk'!AW79/'Population at Risk'!AW$5","v":0},{"$f":"'Population at Risk'!AX79/'Population at Risk'!AX$5","v":0},{"$f":"'Population at Risk'!AY79/'Population at Risk'!AY$5","v":0},{"$f":"'Population at Risk'!AZ79/'Population at Risk'!AZ$5","v":0},{"$f":"'Population at Risk'!BA79/'Population at Risk'!BA$5","v":0},{"$f":"'Population at Risk'!BB79/'Population at Risk'!BB$5","v":0},{"$f":"'Population at Risk'!BC79/'Population at Risk'!BC$5","v":0},77]
[null,"Male 5-9",{"$f":"'Population at Risk'!C80/'Population at Risk'!C$5","v":0},{"$f":"'Population at Risk'!D80/'Population at Risk'!D$5","v":0},{"$f":"'Population at Risk'!E80/'Population at Risk'!E$5","v":0},{"$f":"'Population at Risk'!F80/'Population at Risk'!F$5","v":0},{"$f":"'Population at Risk'!G80/'Population at Risk'!G$5","v":0},{"$f":"'Population at Risk'!H80/'Population at Risk'!H$5","v":0},{"$f":"'Population at Risk'!I80/'Population at Risk'!I$5","v":0},{"$f":"'Population at Risk'!J80/'Population at Risk'!J$5","v":0},{"$f":"'Population at Risk'!K80/'Population at Risk'!K$5","v":0},{"$f":"'Population at Risk'!L80/'Population at Risk'!L$5","v":0},{"$f":"'Population at Risk'!M80/'Population at Risk'!M$5","v":0},{"$f":"'Population at Risk'!N80/'Population at Risk'!N$5","v":0},{"$f":"'Population at Risk'!O80/'Population at Risk'!O$5","v":0},{"$f":"'Population at Risk'!P80/'Population at Risk'!P$5","v":0},{"$f":"'Population at Risk'!Q80/'Population at Risk'!Q$5","v":0},{"$f":"'Population at Risk'!R80/'Population at Risk'!R$5","v":0},{"$f":"'Population at Risk'!S80/'Population at Risk'!S$5","v":0},{"$f":"'Population at Risk'!T80/'Population at Risk'!T$5","v":0},{"$f":"'Population at Risk'!U80/'Population at Risk'!U$5","v":0},{"$f":"'Population at Risk'!V80/'Population at Risk'!V$5","v":0},{"$f":"'Population at Risk'!W80/'Population at Risk'!W$5","v":0},{"$f":"'Population at Risk'!X80/'Population at Risk'!X$5","v":0},{"$f":"'Population at Risk'!Y80/'Population at Risk'!Y$5","v":0},{"$f":"'Population at Risk'!Z80/'Population at Risk'!Z$5","v":0},{"$f":"'Population at Risk'!AA80/'Population at Risk'!AA$5","v":0},{"$f":"'Population at Risk'!AB80/'Population at Risk'!AB$5","v":0},{"$f":"'Population at Risk'!AC80/'Population at Risk'!AC$5","v":0},{"$f":"'Population at Risk'!AD80/'Population at Risk'!AD$5","v":0},{"$f":"'Population at Risk'!AE80/'Population at Risk'!AE$5","v":0},{"$f":"'Population at Risk'!AF80/'Population at Risk'!AF$5","v":0},{"$f":"'Population at Risk'!AG80/'Population at Risk'!AG$5","v":0},{"$f":"'Population at Risk'!AH80/'Population at Risk'!AH$5","v":0},{"$f":"'Population at Risk'!AI80/'Population at Risk'!AI$5","v":0},{"$f":"'Population at Risk'!AJ80/'Population at Risk'!AJ$5","v":0},{"$f":"'Population at Risk'!AK80/'Population at Risk'!AK$5","v":0},{"$f":"'Population at Risk'!AL80/'Population at Risk'!AL$5","v":0},{"$f":"'Population at Risk'!AM80/'Population at Risk'!AM$5","v":0},{"$f":"'Population at Risk'!AN80/'Population at Risk'!AN$5","v":0},{"$f":"'Population at Risk'!AO80/'Population at Risk'!AO$5","v":0},{"$f":"'Population at Risk'!AP80/'Population at Risk'!AP$5","v":0},{"$f":"'Population at Risk'!AQ80/'Population at Risk'!AQ$5","v":0},{"$f":"'Population at Risk'!AR80/'Population at Risk'!AR$5","v":0},{"$f":"'Population at Risk'!AS80/'Population at Risk'!AS$5","v":0},{"$f":"'Population at Risk'!AT80/'Population at Risk'!AT$5","v":0},{"$f":"'Population at Risk'!AU80/'Population at Risk'!AU$5","v":0},{"$f":"'Population at Risk'!AV80/'Population at Risk'!AV$5","v":0},{"$f":"'Population at Risk'!AW80/'Population at Risk'!AW$5","v":0},{"$f":"'Population at Risk'!AX80/'Population at Risk'!AX$5","v":0},{"$f":"'Population at Risk'!AY80/'Population at Risk'!AY$5","v":0},{"$f":"'Population at Risk'!AZ80/'Population at Risk'!AZ$5","v":0},{"$f":"'Population at Risk'!BA80/'Population at Risk'!BA$5","v":0},{"$f":"'Population at Risk'!BB80/'Population at Risk'!BB$5","v":0},{"$f":"'Population at Risk'!BC80/'Population at Risk'!BC$5","v":0},78]
[null,"Male 10-15",{"$f":"'Population at Risk'!C81/'Population at Risk'!C$5","v":0},{"$f":"'Population at Risk'!D81/'Population at Risk'!D$5","v":0},{"$f":"'Population at Risk'!E81/'Population at Risk'!E$5","v":0},{"$f":"'Population at Risk'!F81/'Population at Risk'!F$5","v":0},{"$f":"'Population at Risk'!G81/'Population at Risk'!G$5","v":0},{"$f":"'Population at Risk'!H81/'Population at Risk'!H$5","v":0},{"$f":"'Population at Risk'!I81/'Population at Risk'!I$5","v":0},{"$f":"'Population at Risk'!J81/'Population at Risk'!J$5","v":0},{"$f":"'Population at Risk'!K81/'Population at Risk'!K$5","v":0},{"$f":"'Population at Risk'!L81/'Population at Risk'!L$5","v":0},{"$f":"'Population at Risk'!M81/'Population at Risk'!M$5","v":0},{"$f":"'Population at Risk'!N81/'Population at Risk'!N$5","v":0},{"$f":"'Population at Risk'!O81/'Population at Risk'!O$5","v":0},{"$f":"'Population at Risk'!P81/'Population at Risk'!P$5","v":0},{"$f":"'Population at Risk'!Q81/'Population at Risk'!Q$5","v":0},{"$f":"'Population at Risk'!R81/'Population at Risk'!R$5","v":0},{"$f":"'Population at Risk'!S81/'Population at Risk'!S$5","v":0},{"$f":"'Population at Risk'!T81/'Population at Risk'!T$5","v":0},{"$f":"'Population at Risk'!U81/'Population at Risk'!U$5","v":0},{"$f":"'Population at Risk'!V81/'Population at Risk'!V$5","v":0},{"$f":"'Population at Risk'!W81/'Population at Risk'!W$5","v":0},{"$f":"'Population at Risk'!X81/'Population at Risk'!X$5","v":0},{"$f":"'Population at Risk'!Y81/'Population at Risk'!Y$5","v":0},{"$f":"'Population at Risk'!Z81/'Population at Risk'!Z$5","v":0},{"$f":"'Population at Risk'!AA81/'Population at Risk'!AA$5","v":0},{"$f":"'Population at Risk'!AB81/'Population at Risk'!AB$5","v":0},{"$f":"'Population at Risk'!AC81/'Population at Risk'!AC$5","v":0},{"$f":"'Population at Risk'!AD81/'Population at Risk'!AD$5","v":0},{"$f":"'Population at Risk'!AE81/'Population at Risk'!AE$5","v":0},{"$f":"'Population at Risk'!AF81/'Population at Risk'!AF$5","v":0},{"$f":"'Population at Risk'!AG81/'Population at Risk'!AG$5","v":0},{"$f":"'Population at Risk'!AH81/'Population at Risk'!AH$5","v":0},{"$f":"'Population at Risk'!AI81/'Population at Risk'!AI$5","v":0},{"$f":"'Population at Risk'!AJ81/'Population at Risk'!AJ$5","v":0},{"$f":"'Population at Risk'!AK81/'Population at Risk'!AK$5","v":0},{"$f":"'Population at Risk'!AL81/'Population at Risk'!AL$5","v":0},{"$f":"'Population at Risk'!AM81/'Population at Risk'!AM$5","v":0},{"$f":"'Population at Risk'!AN81/'Population at Risk'!AN$5","v":0},{"$f":"'Population at Risk'!AO81/'Population at Risk'!AO$5","v":0},{"$f":"'Population at Risk'!AP81/'Population at Risk'!AP$5","v":0},{"$f":"'Population at Risk'!AQ81/'Population at Risk'!AQ$5","v":0},{"$f":"'Population at Risk'!AR81/'Population at Risk'!AR$5","v":0},{"$f":"'Population at Risk'!AS81/'Population at Risk'!AS$5","v":0},{"$f":"'Population at Risk'!AT81/'Population at Risk'!AT$5","v":0},{"$f":"'Population at Risk'!AU81/'Population at Risk'!AU$5","v":0},{"$f":"'Population at Risk'!AV81/'Population at Risk'!AV$5","v":0},{"$f":"'Population at Risk'!AW81/'Population at Risk'!AW$5","v":0},{"$f":"'Population at Risk'!AX81/'Population at Risk'!AX$5","v":0},{"$f":"'Population at Risk'!AY81/'Population at Risk'!AY$5","v":0},{"$f":"'Population at Risk'!AZ81/'Population at Risk'!AZ$5","v":0},{"$f":"'Population at Risk'!BA81/'Population at Risk'!BA$5","v":0},{"$f":"'Population at Risk'!BB81/'Population at Risk'!BB$5","v":0},{"$f":"'Population at Risk'!BC81/'Population at Risk'!BC$5","v":0},79]
[null,"Male 16-19",{"$f":"'Population at Risk'!C82/'Population at Risk'!C$5","v":3.0838250200956202E-3},{"$f":"'Population at Risk'!D82/'Population at Risk'!D$5","v":1.909557005903055E-3},{"$f":"'Population at Risk'!E82/'Population at Risk'!E$5","v":7.307967810521647E-4},{"$f":"'Population at Risk'!F82/'Population at Risk'!F$5","v":3.8832580483147958E-3},{"$f":"'Population at Risk'!G82/'Population at Risk'!G$5","v":3.6689656395893218E-3},{"$f":"'Population at Risk'!H82/'Population at Risk'!H$5","v":1.1994555873183474E-2},{"$f":"'Population at Risk'!I82/'Population at Risk'!I$5","v":2.9170775139123958E-3},{"$f":"'Population at Risk'!J82/'Population at Risk'!J$5","v":8.6346257185089519E-3},{"$f":"'Population at Risk'!K82/'Population at Risk'!K$5","v":1.1192450113834422E-2},{"$f":"'Population at Risk'!L82/'Population at Risk'!L$5","v":3.4140769099741037E-3},{"$f":"'Population at Risk'!M82/'Population at Risk'!M$5","v":3.4140769099741037E-3},{"$f":"'Population at Risk'!N82/'Population at Risk'!N$5","v":1.2474504039091608E-2},{"$f":"'Population at Risk'!O82/'Population at Risk'!O$5","v":1.2326662066784571E-2},{"$f":"'Population at Risk'!P82/'Population at Risk'!P$5","v":2.7524670580204584E-3},{"$f":"'Population at Risk'!Q82/'Population at Risk'!Q$5","v":1.619234546560387E-3},{"$f":"'Population at Risk'!R82/'Population at Risk'!R$5","v":3.8957584758073259E-3},{"$f":"'Population at Risk'!S82/'Population at Risk'!S$5","v":5.995516989571569E-3},{"$f":"'Population at Risk'!T82/'Population at Risk'!T$5","v":5.5047078153747124E-3},{"$f":"'Population at Risk'!U82/'Population at Risk'!U$5","v":0},{"$f":"'Population at Risk'!V82/'Population at Risk'!V$5","v":5.5884102758426615E-3},{"$f":"'Population at Risk'!W82/'Population at Risk'!W$5","v":8.4731632643224551E-3},{"$f":"'Population at Risk'!X82/'Population at Risk'!X$5","v":8.4731632643224551E-3},{"$f":"'Population at Risk'!Y82/'Population at Risk'!Y$5","v":7.0269099888646052E-3},{"$f":"'Population at Risk'!Z82/'Population at Risk'!Z$5","v":1.6156100313036166E-2},{"$f":"'Population at Risk'!AA82/'Population at Risk'!AA$5","v":1.2397983843856542E-2},{"$f":"'Population at Risk'!AB82/'Population at Risk'!AB$5","v":1.6744045555539906E-3},{"$f":"'Population at Risk'!AC82/'Population at Risk'!AC$5","v":1.3440691229311708E-2},{"$f":"'Population at Risk'!AD82/'Population at Risk'!AD$5","v":3.350078410396255E-3},{"$f":"'Population at Risk'!AE82/'Population at Risk'!AE$5","v":3.228263999022726E-3},{"$f":"'Population at Risk'!AF82/'Population at Risk'!AF$5","v":1.5279315520325699E-2},{"$f":"'Population at Risk'!AG82/'Population at Risk'!AG$5","v":3.228263999022726E-3},{"$f":"'Population at Risk'!AH82/'Population at Risk'!AH$5","v":1.0500737116001493E-2},{"$f":"'Population at Risk'!AI82/'Population at Risk'!AI$5","v":5.2951991595824918E-3},{"$f":"'Population at Risk'!AJ82/'Population at Risk'!AJ$5","v":4.162130605689188E-3},{"$f":"'Population at Risk'!AK82/'Population at Risk'!AK$5","v":4.7908223575509918E-4},{"$f":"'Population at Risk'!AL82/'Population at Risk'!AL$5","v":1.5779354309577557E-2},{"$f":"'Population at Risk'!AM82/'Population at Risk'!AM$5","v":1.281383145932149E-2},{"$f":"'Population at Risk'!AN82/'Population at Risk'!AN$5","v":0},{"$f":"'Population at Risk'!AO82/'Population at Risk'!AO$5","v":0},{"$f":"'Population at Risk'!AP82/'Population at Risk'!AP$5","v":2.2496538557895069E-3},{"$f":"'Population at Risk'!AQ82/'Population at Risk'!AQ$5","v":1.0111402626710413E-2},{"$f":"'Population at Risk'!AR82/'Population at Risk'!AR$5","v":8.181829145311105E-3},{"$f":"'Population at Risk'!AS82/'Population at Risk'!AS$5","v":2.9170775139123958E-3},{"$f":"'Population at Risk'!AT82/'Population at Risk'!AT$5","v":0},{"$f":"'Population at Risk'!AU82/'Population at Risk'!AU$5","v":0},{"$f":"'Population at Risk'!AV82/'Population at Risk'!AV$5","v":6.5861288855379755E-3},{"$f":"'Population at Risk'!AW82/'Population at Risk'!AW$5","v":7.8616003679560214E-3},{"$f":"'Population at Risk'!AX82/'Population at Risk'!AX$5","v":7.0657537658449874E-3},{"$f":"'Population at Risk'!AY82/'Population at Risk'!AY$5","v":7.6091847540603608E-3},{"$f":"'Population at Risk'!AZ82/'Population at Risk'!AZ$5","v":6.8249100090224512E-3},{"$f":"'Population at Risk'!BA82/'Population at Risk'!BA$5","v":1.4177244291689421E-2},{"$f":"'Population at Risk'!BB82/'Population at Risk'!BB$5","v":7.2574891248129176E-3},{"$f":"'Population at Risk'!BC82/'Population at Risk'!BC$5","v":0},80]
[null,"Male 20-24",{"$f":"'Population at Risk'!C83/'Population at Risk'!C$5","v":5.038822844506372E-3},{"$f":"'Population at Risk'!D83/'Population at Risk'!D$5","v":3.4749020193257305E-3},{"$f":"'Population at Risk'!E83/'Population at Risk'!E$5","v":1.9049983506078897E-3},{"$f":"'Population at Risk'!F83/'Population at Risk'!F$5","v":5.4784553378714957E-3},{"$f":"'Population at Risk'!G83/'Population at Risk'!G$5","v":5.7507944575585432E-3},{"$f":"'Population at Risk'!H83/'Population at Risk'!H$5","v":1.6812507721550858E-2},{"$f":"'Population at Risk'!I83/'Population at Risk'!I$5","v":3.4774200872063018E-3},{"$f":"'Population at Risk'!J83/'Population at Risk'!J$5","v":1.1035897712272969E-2},{"$f":"'Population at Risk'!K83/'Population at Risk'!K$5","v":1.3974199411132451E-2},{"$f":"'Population at Risk'!L83/'Population at Risk'!L$5","v":5.0978903519681342E-3},{"$f":"'Population at Risk'!M83/'Population at Risk'!M$5","v":5.0978903519681342E-3},{"$f":"'Population at Risk'!N83/'Population at Risk'!N$5","v":2.0591986599115351E-2},{"$f":"'Population at Risk'!O83/'Population at Risk'!O$5","v":1.7034397898673573E-2},{"$f":"'Population at Risk'!P83/'Population at Risk'!P$5","v":3.4203450941577757E-3},{"$f":"'Population at Risk'!Q83/'Population at Risk'!Q$5","v":2.1896467163714326E-3},{"$f":"'Population at Risk'!R83/'Population at Risk'!R$5","v":4.6366695969731371E-3},{"$f":"'Population at Risk'!S83/'Population at Risk'!S$5","v":8.202635863542496E-3},{"$f":"'Population at Risk'!T83/'Population at Risk'!T$5","v":8.060857946831191E-3},{"$f":"'Population at Risk'!U83/'Population at Risk'!U$5","v":0},{"$f":"'Population at Risk'!V83/'Population at Risk'!V$5","v":8.2044987515857409E-3},{"$f":"'Population at Risk'!W83/'Population at Risk'!W$5","v":1.0919171717868457E-2},{"$f":"'Population at Risk'!X83/'Population at Risk'!X$5","v":1.0919171717868457E-2},{"$f":"'Population at Risk'!Y83/'Population at Risk'!Y$5","v":9.5415567072877246E-3},{"$f":"'Population at Risk'!Z83/'Population at Risk'!Z$5","v":2.5214640594481044E-2},{"$f":"'Population at Risk'!AA83/'Population at Risk'!AA$5","v":1.8478540642839918E-2},{"$f":"'Population at Risk'!AB83/'Population at Risk'!AB$5","v":2.9858502503948459E-3},{"$f":"'Population at Risk'!AC83/'Population at Risk'!AC$5","v":2.0626381426264998E-2},{"$f":"'Population at Risk'!AD83/'Population at Risk'!AD$5","v":4.8143133618789719E-3},{"$f":"'Population at Risk'!AE83/'Population at Risk'!AE$5","v":4.4565790815777146E-3},{"$f":"'Population at Risk'!AF83/'Population at Risk'!AF$5","v":2.1754270934623929E-2},{"$f":"'Population at Risk'!AG83/'Population at Risk'!AG$5","v":4.4565790815777146E-3},{"$f":"'Population at Risk'!AH83/'Population at Risk'!AH$5","v":1.4570460624275533E-2},{"$f":"'Population at Risk'!AI83/'Population at Risk'!AI$5","v":7.6060976869674257E-3},{"$f":"'Population at Risk'!AJ83/'Population at Risk'!AJ$5","v":6.6553875868749814E-3},{"$f":"'Population at Risk'!AK83/'Population at Risk'!AK$5","v":4.9991189817923391E-4},{"$f":"'Population at Risk'!AL83/'Population at Risk'!AL$5","v":2.1561278297466561E-2},{"$f":"'Population at Risk'!AM83/'Population at Risk'!AM$5","v":1.7587335706255539E-2},{"$f":"'Population at Risk'!AN83/'Population at Risk'!AN$5","v":0},{"$f":"'Population at Risk'!AO83/'Population at Risk'!AO$5","v":0},{"$f":"'Population at Risk'!AP83/'Population at Risk'!AP$5","v":4.0651639850231439E-3},{"$f":"'Population at Risk'!AQ83/'Population at Risk'!AQ$5","v":1.6530439125689494E-2},{"$f":"'Population at Risk'!AR83/'Population at Risk'!AR$5","v":1.199575723106853E-2},{"$f":"'Population at Risk'!AS83/'Population at Risk'!AS$5","v":3.4774200872063018E-3},{"$f":"'Population at Risk'!AT83/'Population at Risk'!AT$5","v":0},{"$f":"'Population at Risk'!AU83/'Population at Risk'!AU$5","v":0},{"$f":"'Population at Risk'!AV83/'Population at Risk'!AV$5","v":1.0253578845002278E-2},{"$f":"'Population at Risk'!AW83/'Population at Risk'!AW$5","v":1.1128341665267447E-2},{"$f":"'Population at Risk'!AX83/'Population at Risk'!AX$5","v":9.2336554894565173E-3},{"$f":"'Population at Risk'!AY83/'Population at Risk'!AY$5","v":1.1030718973735856E-2},{"$f":"'Population at Risk'!AZ83/'Population at Risk'!AZ$5","v":1.1131975769612109E-2},{"$f":"'Population at Risk'!BA83/'Population at Risk'!BA$5","v":2.0023879005544653E-2},{"$f":"'Population at Risk'!BB83/'Population at Risk'!BB$5","v":9.7522510114673583E-3},{"$f":"'Population at Risk'!BC83/'Population at Risk'!BC$5","v":0},81]
[null,"Male 25-29",{"$f":"'Population at Risk'!C84/'Population at Risk'!C$5","v":8.4580240604214089E-3},{"$f":"'Population at Risk'!D84/'Population at Risk'!D$5","v":5.314797074369661E-3},{"$f":"'Population at Risk'!E84/'Population at Risk'!E$5","v":2.1595455440080822E-3},{"$f":"'Population at Risk'!F84/'Population at Risk'!F$5","v":5.0595146355636757E-3},{"$f":"'Population at Risk'!G84/'Population at Risk'!G$5","v":4.6377374657730185E-3},{"$f":"'Population at Risk'!H84/'Population at Risk'!H$5","v":1.6186742858411408E-2},{"$f":"'Population at Risk'!I84/'Population at Risk'!I$5","v":2.6039448994246242E-3},{"$f":"'Population at Risk'!J84/'Population at Risk'!J$5","v":1.0762177588631473E-2},{"$f":"'Population at Risk'!K84/'Population at Risk'!K$5","v":1.1323355963119034E-2},{"$f":"'Population at Risk'!L84/'Population at Risk'!L$5","v":5.759803222269236E-3},{"$f":"'Population at Risk'!M84/'Population at Risk'!M$5","v":5.759803222269236E-3},{"$f":"'Population at Risk'!N84/'Population at Risk'!N$5","v":2.8922526444179086E-2},{"$f":"'Population at Risk'!O84/'Population at Risk'!O$5","v":1.6811468903848745E-2},{"$f":"'Population at Risk'!P84/'Population at Risk'!P$5","v":3.2989127239509905E-3},{"$f":"'Population at Risk'!Q84/'Population at Risk'!Q$5","v":1.9320412203277346E-3},{"$f":"'Population at Risk'!R84/'Population at Risk'!R$5","v":4.684470314467705E-3},{"$f":"'Population at Risk'!S84/'Population at Risk'!S$5","v":9.7532236093431108E-3},{"$f":"'Population at Risk'!T84/'Population at Risk'!T$5","v":1.223064661177526E-2},{"$f":"'Population at Risk'!U84/'Population at Risk'!U$5","v":0},{"$f":"'Population at Risk'!V84/'Population at Risk'!V$5","v":9.2620664332691127E-3},{"$f":"'Population at Risk'!W84/'Population at Risk'!W$5","v":1.1593605116710266E-2},{"$f":"'Population at Risk'!X84/'Population at Risk'!X$5","v":1.1593605116710266E-2},{"$f":"'Population at Risk'!Y84/'Population at Risk'!Y$5","v":9.9704567316916681E-3},{"$f":"'Population at Risk'!Z84/'Population at Risk'!Z$5","v":3.2148191368811849E-2},{"$f":"'Population at Risk'!AA84/'Population at Risk'!AA$5","v":2.1110727981997153E-2},{"$f":"'Population at Risk'!AB84/'Population at Risk'!AB$5","v":4.4821995157876765E-3},{"$f":"'Population at Risk'!AC84/'Population at Risk'!AC$5","v":2.505987116898058E-2},{"$f":"'Population at Risk'!AD84/'Population at Risk'!AD$5","v":4.6832728798396625E-3},{"$f":"'Population at Risk'!AE84/'Population at Risk'!AE$5","v":4.7006673351623601E-3},{"$f":"'Population at Risk'!AF84/'Population at Risk'!AF$5","v":2.19319373941626E-2},{"$f":"'Population at Risk'!AG84/'Population at Risk'!AG$5","v":4.7006673351623601E-3},{"$f":"'Population at Risk'!AH84/'Population at Risk'!AH$5","v":1.3925108033535088E-2},{"$f":"'Population at Risk'!AI84/'Population at Risk'!AI$5","v":9.8500742660479999E-3},{"$f":"'Population at Risk'!AJ84/'Population at Risk'!AJ$5","v":5.1272623403417535E-3},{"$f":"'Population at Risk'!AK84/'Population at Risk'!AK$5","v":2.4995594908961696E-4},{"$f":"'Population at Risk'!AL84/'Population at Risk'!AL$5","v":1.9660845114196274E-2},{"$f":"'Population at Risk'!AM84/'Population at Risk'!AM$5","v":1.6775323676049454E-2},{"$f":"'Population at Risk'!AN84/'Population at Risk'!AN$5","v":0},{"$f":"'Population at Risk'!AO84/'Population at Risk'!AO$5","v":0},{"$f":"'Population at Risk'!AP84/'Population at Risk'!AP$5","v":5.8280506322500088E-3},{"$f":"'Population at Risk'!AQ84/'Population at Risk'!AQ$5","v":1.9541137660608887E-2},{"$f":"'Population at Risk'!AR84/'Population at Risk'!AR$5","v":1.3744466327152215E-2},{"$f":"'Population at Risk'!AS84/'Population at Risk'!AS$5","v":2.6039448994246242E-3},{"$f":"'Population at Risk'!AT84/'Population at Risk'!AT$5","v":0},{"$f":"'Population at Risk'!AU84/'Population at Risk'!AU$5","v":0},{"$f":"'Population at Risk'!AV84/'Population at Risk'!AV$5","v":1.0849539463415228E-2},{"$f":"'Population at Risk'!AW84/'Population at Risk'!AW$5","v":1.0673140009084708E-2},{"$f":"'Population at Risk'!AX84/'Population at Risk'!AX$5","v":1.0417972171799855E-2},{"$f":"'Population at Risk'!AY84/'Population at Risk'!AY$5","v":1.3362966869842268E-2},{"$f":"'Population at Risk'!AZ84/'Population at Risk'!AZ$5","v":1.4969101422189482E-2},{"$f":"'Population at Risk'!BA84/'Population at Risk'!BA$5","v":1.9770412182689656E-2},{"$f":"'Population at Risk'!BB84/'Population at Risk'!BB$5","v":1.0008629703376508E-2},{"$f":"'Population at Risk'!BC84/'Population at Risk'!BC$5","v":0},82]
[null,"Male 30-34",{"$f":"'Population at Risk'!C85/'Population at Risk'!C$5","v":7.0919795554984155E-3},{"$f":"'Population at Risk'!D85/'Population at Risk'!D$5","v":4.6714484693765723E-3},{"$f":"'Population at Risk'!E85/'Population at Risk'!E$5","v":2.2416575418791121E-3},{"$f":"'Population at Risk'!F85/'Population at Risk'!F$5","v":4.1571808152083703E-3},{"$f":"'Population at Risk'!G85/'Population at Risk'!G$5","v":3.6277413065602285E-3},{"$f":"'Population at Risk'!H85/'Population at Risk'!H$5","v":1.4270064466417843E-2},{"$f":"'Population at Risk'!I85/'Population at Risk'!I$5","v":2.8676355221511685E-3},{"$f":"'Population at Risk'!J85/'Population at Risk'!J$5","v":9.4433442656315474E-3},{"$f":"'Population at Risk'!K85/'Population at Risk'!K$5","v":1.1879705822578641E-2},{"$f":"'Population at Risk'!L85/'Population at Risk'!L$5","v":4.017927247792652E-3},{"$f":"'Population at Risk'!M85/'Population at Risk'!M$5","v":4.017927247792652E-3},{"$f":"'Population at Risk'!N85/'Population at Risk'!N$5","v":2.2690600856759287E-2},{"$f":"'Population at Risk'!O85/'Population at Risk'!O$5","v":1.4634632836735724E-2},{"$f":"'Population at Risk'!P85/'Population at Risk'!P$5","v":2.7119896012848636E-3},{"$f":"'Population at Risk'!Q85/'Population at Risk'!Q$5","v":2.024043183200484E-3},{"$f":"'Population at Risk'!R85/'Population at Risk'!R$5","v":4.3976660095002952E-3},{"$f":"'Population at Risk'!S85/'Population at Risk'!S$5","v":8.8324787344701127E-3},{"$f":"'Population at Risk'!T85/'Population at Risk'!T$5","v":1.0565665034040337E-2},{"$f":"'Population at Risk'!U85/'Population at Risk'!U$5","v":0},{"$f":"'Population at Risk'!V85/'Population at Risk'!V$5","v":8.5050706190115417E-3},{"$f":"'Population at Risk'!W85/'Population at Risk'!W$5","v":1.0862177346135345E-2},{"$f":"'Population at Risk'!X85/'Population at Risk'!X$5","v":1.0862177346135345E-2},{"$f":"'Population at Risk'!Y85/'Population at Risk'!Y$5","v":8.9481470844822684E-3},{"$f":"'Population at Risk'!Z85/'Population at Risk'!Z$5","v":2.8150168604867926E-2},{"$f":"'Population at Risk'!AA85/'Population at Risk'!AA$5","v":1.9174956908845457E-2},{"$f":"'Population at Risk'!AB85/'Population at Risk'!AB$5","v":3.9343370845225673E-3},{"$f":"'Population at Risk'!AC85/'Population at Risk'!AC$5","v":2.2397027872347996E-2},{"$f":"'Population at Risk'!AD85/'Population at Risk'!AD$5","v":4.5351401610126182E-3},{"$f":"'Population at Risk'!AE85/'Population at Risk'!AE$5","v":4.8817650716929031E-3},{"$f":"'Population at Risk'!AF85/'Population at Risk'!AF$5","v":2.0648790741938865E-2},{"$f":"'Population at Risk'!AG85/'Population at Risk'!AG$5","v":4.8817650716929031E-3},{"$f":"'Population at Risk'!AH85/'Population at Risk'!AH$5","v":1.3312273208994745E-2},{"$f":"'Population at Risk'!AI85/'Population at Risk'!AI$5","v":8.6956706577977893E-3},{"$f":"'Population at Risk'!AJ85/'Population at Risk'!AJ$5","v":5.6500420299452269E-3},{"$f":"'Population at Risk'!AK85/'Population at Risk'!AK$5","v":1.8746696181721272E-4},{"$f":"'Population at Risk'!AL85/'Population at Risk'!AL$5","v":1.7852554145872418E-2},{"$f":"'Population at Risk'!AM85/'Population at Risk'!AM$5","v":1.5817806599968284E-2},{"$f":"'Population at Risk'!AN85/'Population at Risk'!AN$5","v":0},{"$f":"'Population at Risk'!AO85/'Population at Risk'!AO$5","v":0},{"$f":"'Population at Risk'!AP85/'Population at Risk'!AP$5","v":4.0783198555248371E-3},{"$f":"'Population at Risk'!AQ85/'Population at Risk'!AQ$5","v":1.8376622189555158E-2},{"$f":"'Population at Risk'!AR85/'Population at Risk'!AR$5","v":1.2262257916191246E-2},{"$f":"'Population at Risk'!AS85/'Population at Risk'!AS$5","v":2.8676355221511685E-3},{"$f":"'Population at Risk'!AT85/'Population at Risk'!AT$5","v":0},{"$f":"'Population at Risk'!AU85/'Population at Risk'!AU$5","v":0},{"$f":"'Population at Risk'!AV85/'Population at Risk'!AV$5","v":9.0922196911719169E-3},{"$f":"'Population at Risk'!AW85/'Population at Risk'!AW$5","v":1.0453572151396561E-2},{"$f":"'Population at Risk'!AX85/'Population at Risk'!AX$5","v":7.9489729865756115E-3},{"$f":"'Population at Risk'!AY85/'Population at Risk'!AY$5","v":1.1265751707452004E-2},{"$f":"'Population at Risk'!AZ85/'Population at Risk'!AZ$5","v":1.1632095517588485E-2},{"$f":"'Population at Risk'!BA85/'Population at Risk'!BA$5","v":1.9331069689740996E-2},{"$f":"'Population at Risk'!BB85/'Population at Risk'!BB$5","v":8.7365969627503318E-3},{"$f":"'Population at Risk'!BC85/'Population at Risk'!BC$5","v":0},83]
[null,"Male 35-39",{"$f":"'Population at Risk'!C86/'Population at Risk'!C$5","v":6.7566033596789983E-3},{"$f":"'Population at Risk'!D86/'Population at Risk'!D$5","v":4.2329879551456133E-3},{"$f":"'Population at Risk'!E86/'Population at Risk'!E$5","v":1.6997183559303156E-3},{"$f":"'Population at Risk'!F86/'Population at Risk'!F$5","v":4.1249546073385381E-3},{"$f":"'Population at Risk'!G86/'Population at Risk'!G$5","v":3.0918249771820132E-3},{"$f":"'Population at Risk'!H86/'Population at Risk'!H$5","v":1.2751600078240293E-2},{"$f":"'Population at Risk'!I86/'Population at Risk'!I$5","v":3.0818841531164861E-3},{"$f":"'Population at Risk'!J86/'Population at Risk'!J$5","v":8.1742782378391651E-3},{"$f":"'Population at Risk'!K86/'Population at Risk'!K$5","v":1.1846979360257488E-2},{"$f":"'Population at Risk'!L86/'Population at Risk'!L$5","v":3.4605269359601456E-3},{"$f":"'Population at Risk'!M86/'Population at Risk'!M$5","v":3.4605269359601456E-3},{"$f":"'Population at Risk'!N86/'Population at Risk'!N$5","v":1.6330840898315484E-2},{"$f":"'Population at Risk'!O86/'Population at Risk'!O$5","v":1.2431569829055078E-2},{"$f":"'Population at Risk'!P86/'Population at Risk'!P$5","v":2.7524670580204584E-3},{"$f":"'Population at Risk'!Q86/'Population at Risk'!Q$5","v":1.5824337614112874E-3},{"$f":"'Population at Risk'!R86/'Population at Risk'!R$5","v":3.9435591933018946E-3},{"$f":"'Population at Risk'!S86/'Population at Risk'!S$5","v":8.163937890540587E-3},{"$f":"'Population at Risk'!T86/'Population at Risk'!T$5","v":9.6084839948579245E-3},{"$f":"'Population at Risk'!U86/'Population at Risk'!U$5","v":0},{"$f":"'Population at Risk'!V86/'Population at Risk'!V$5","v":8.0263820894074887E-3},{"$f":"'Population at Risk'!W86/'Population at Risk'!W$5","v":1.0083254265782831E-2},{"$f":"'Population at Risk'!X86/'Population at Risk'!X$5","v":1.0083254265782831E-2},{"$f":"'Population at Risk'!Y86/'Population at Risk'!Y$5","v":8.0962223784744377E-3},{"$f":"'Population at Risk'!Z86/'Population at Risk'!Z$5","v":2.2961296016467465E-2},{"$f":"'Population at Risk'!AA86/'Population at Risk'!AA$5","v":1.6422116560545864E-2},{"$f":"'Population at Risk'!AB86/'Population at Risk'!AB$5","v":3.6261644669359429E-3},{"$f":"'Population at Risk'!AC86/'Population at Risk'!AC$5","v":1.8363583250603031E-2},{"$f":"'Population at Risk'!AD86/'Population at Risk'!AD$5","v":3.4868163046981428E-3},{"$f":"'Population at Risk'!AE86/'Population at Risk'!AE$5","v":3.637702359874389E-3},{"$f":"'Population at Risk'!AF86/'Population at Risk'!AF$5","v":1.6404536430737283E-2},{"$f":"'Population at Risk'!AG86/'Population at Risk'!AG$5","v":3.637702359874389E-3},{"$f":"'Population at Risk'!AH86/'Population at Risk'!AH$5","v":1.2889542248393447E-2},{"$f":"'Population at Risk'!AI86/'Population at Risk'!AI$5","v":7.9637118482188494E-3},{"$f":"'Population at Risk'!AJ86/'Population at Risk'!AJ$5","v":4.7854448509856359E-3},{"$f":"'Population at Risk'!AK86/'Population at Risk'!AK$5","v":5.4157122302750339E-4},{"$f":"'Population at Risk'!AL86/'Population at Risk'!AL$5","v":1.5940603185733825E-2},{"$f":"'Population at Risk'!AM86/'Population at Risk'!AM$5","v":1.4897839213145204E-2},{"$f":"'Population at Risk'!AN86/'Population at Risk'!AN$5","v":0},{"$f":"'Population at Risk'!AO86/'Population at Risk'!AO$5","v":0},{"$f":"'Population at Risk'!AP86/'Population at Risk'!AP$5","v":4.0125405030163718E-3},{"$f":"'Population at Risk'!AQ86/'Population at Risk'!AQ$5","v":1.5242844783711389E-2},{"$f":"'Population at Risk'!AR86/'Population at Risk'!AR$5","v":1.06419595618495E-2},{"$f":"'Population at Risk'!AS86/'Population at Risk'!AS$5","v":3.0818841531164861E-3},{"$f":"'Population at Risk'!AT86/'Population at Risk'!AT$5","v":0},{"$f":"'Population at Risk'!AU86/'Population at Risk'!AU$5","v":0},{"$f":"'Population at Risk'!AV86/'Population at Risk'!AV$5","v":8.8935661517009334E-3},{"$f":"'Population at Risk'!AW86/'Population at Risk'!AW$5","v":1.059816561865461E-2},{"$f":"'Population at Risk'!AX86/'Population at Risk'!AX$5","v":5.9215834117166801E-3},{"$f":"'Population at Risk'!AY86/'Population at Risk'!AY$5","v":9.5301253661635114E-3},{"$f":"'Population at Risk'!AZ86/'Population at Risk'!AZ$5","v":9.0280237264011454E-3},{"$f":"'Population at Risk'!BA86/'Population at Risk'!BA$5","v":1.6154285509958385E-2},{"$f":"'Population at Risk'!BB86/'Population at Risk'!BB$5","v":8.5196611465195114E-3},{"$f":"'Population at Risk'!BC86/'Population at Risk'!BC$5","v":0},84]
[null,"Male 40-44",{"$f":"'Population at Risk'!C87/'Population at Risk'!C$5","v":5.5214373701977289E-3},{"$f":"'Population at Risk'!D87/'Population at Risk'!D$5","v":3.6347147301201929E-3},{"$f":"'Population at Risk'!E87/'Population at Risk'!E$5","v":1.7407743548658304E-3},{"$f":"'Population at Risk'!F87/'Population at Risk'!F$5","v":4.0443890876639566E-3},{"$f":"'Population at Risk'!G87/'Population at Risk'!G$5","v":3.4422318079293077E-3},{"$f":"'Population at Risk'!H87/'Population at Risk'!H$5","v":1.3924362199368776E-2},{"$f":"'Population at Risk'!I87/'Population at Risk'!I$5","v":3.1313261448777125E-3},{"$f":"'Population at Risk'!J87/'Population at Risk'!J$5","v":7.8756744665938981E-3},{"$f":"'Population at Risk'!K87/'Population at Risk'!K$5","v":1.1519714737045954E-2},{"$f":"'Population at Risk'!L87/'Population at Risk'!L$5","v":3.9598647153100998E-3},{"$f":"'Population at Risk'!M87/'Population at Risk'!M$5","v":3.9598647153100998E-3},{"$f":"'Population at Risk'!N87/'Population at Risk'!N$5","v":1.3806112070591564E-2},{"$f":"'Population at Risk'!O87/'Population at Risk'!O$5","v":1.4726427128722417E-2},{"$f":"'Population at Risk'!P87/'Population at Risk'!P$5","v":2.7524670580204584E-3},{"$f":"'Population at Risk'!Q87/'Population at Risk'!Q$5","v":2.4472522124151302E-3},{"$f":"'Population at Risk'!R87/'Population at Risk'!R$5","v":4.0391606282910312E-3},{"$f":"'Population at Risk'!S87/'Population at Risk'!S$5","v":7.9384221168398092E-3},{"$f":"'Population at Risk'!T87/'Population at Risk'!T$5","v":8.6916439190127034E-3},{"$f":"'Population at Risk'!U87/'Population at Risk'!U$5","v":0},{"$f":"'Population at Risk'!V87/'Population at Risk'!V$5","v":8.3937477051501327E-3},{"$f":"'Population at Risk'!W87/'Population at Risk'!W$5","v":9.9835141152498884E-3},{"$f":"'Population at Risk'!X87/'Population at Risk'!X$5","v":9.9835141152498884E-3},{"$f":"'Population at Risk'!Y87/'Population at Risk'!Y$5","v":8.1491004636749225E-3},{"$f":"'Population at Risk'!Z87/'Population at Risk'!Z$5","v":2.0631889174217145E-2},{"$f":"'Population at Risk'!AA87/'Population at Risk'!AA$5","v":1.5390355901482883E-2},{"$f":"'Population at Risk'!AB87/'Population at Risk'!AB$5","v":3.1399365591881579E-3},{"$f":"'Population at Risk'!AC87/'Population at Risk'!AC$5","v":1.6668546707108978E-2},{"$f":"'Population at Risk'!AD87/'Population at Risk'!AD$5","v":3.9881885838050652E-3},{"$f":"'Population at Risk'!AE87/'Population at Risk'!AE$5","v":4.1967431987295443E-3},{"$f":"'Population at Risk'!AF87/'Population at Risk'!AF$5","v":1.6858572938447218E-2},{"$f":"'Population at Risk'!AG87/'Population at Risk'!AG$5","v":4.1967431987295443E-3},{"$f":"'Population at Risk'!AH87/'Population at Risk'!AH$5","v":1.3064637912547831E-2},{"$f":"'Population at Risk'!AI87/'Population at Risk'!AI$5","v":7.6479239046576509E-3},{"$f":"'Population at Risk'!AJ87/'Population at Risk'!AJ$5","v":5.3685452740048949E-3},{"$f":"'Population at Risk'!AK87/'Population at Risk'!AK$5","v":6.2488987272404245E-4},{"$f":"'Population at Risk'!AL87/'Population at Risk'!AL$5","v":1.7173005310642437E-2},{"$f":"'Population at Risk'!AM87/'Population at Risk'!AM$5","v":1.5019875703233982E-2},{"$f":"'Population at Risk'!AN87/'Population at Risk'!AN$5","v":0},{"$f":"'Population at Risk'!AO87/'Population at Risk'!AO$5","v":0},{"$f":"'Population at Risk'!AP87/'Population at Risk'!AP$5","v":3.3152793664266416E-3},{"$f":"'Population at Risk'!AQ87/'Population at Risk'!AQ$5","v":1.3330388481655674E-2},{"$f":"'Population at Risk'!AR87/'Population at Risk'!AR$5","v":1.0202846447500812E-2},{"$f":"'Population at Risk'!AS87/'Population at Risk'!AS$5","v":3.1313261448777125E-3},{"$f":"'Population at Risk'!AT87/'Population at Risk'!AT$5","v":0},{"$f":"'Population at Risk'!AU87/'Population at Risk'!AU$5","v":0},{"$f":"'Population at Risk'!AV87/'Population at Risk'!AV$5","v":8.6796315707321822E-3},{"$f":"'Population at Risk'!AW87/'Population at Risk'!AW$5","v":1.0833799417149204E-2},{"$f":"'Population at Risk'!AX87/'Population at Risk'!AX$5","v":5.6405591142114821E-3},{"$f":"'Population at Risk'!AY87/'Population at Risk'!AY$5","v":8.8159874444875171E-3},{"$f":"'Population at Risk'!AZ87/'Population at Risk'!AZ$5","v":7.7561674707715663E-3},{"$f":"'Population at Risk'!BA87/'Population at Risk'!BA$5","v":1.4836258031112409E-2},{"$f":"'Population at Risk'!BB87/'Population at Risk'!BB$5","v":8.7464576816699158E-3},{"$f":"'Population at Risk'!BC87/'Population at Risk'!BC$5","v":0},85]
[null,"Male 45-49",{"$f":"'Population at Risk'!C88/'Population at Risk'!C$5","v":5.1206219166574484E-3},{"$f":"'Population at Risk'!D88/'Population at Risk'!D$5","v":3.339675879422725E-3},{"$f":"'Population at Risk'!E88/'Population at Risk'!E$5","v":1.5519167597624621E-3},{"$f":"'Population at Risk'!F88/'Population at Risk'!F$5","v":4.4633297899717775E-3},{"$f":"'Population at Risk'!G88/'Population at Risk'!G$5","v":4.1842698024529903E-3},{"$f":"'Population at Risk'!H88/'Population at Risk'!H$5","v":1.5771024942339746E-2},{"$f":"'Population at Risk'!I88/'Population at Risk'!I$5","v":4.1531273079430716E-3},{"$f":"'Population at Risk'!J88/'Population at Risk'!J$5","v":9.7046225654711556E-3},{"$f":"'Population at Risk'!K88/'Population at Risk'!K$5","v":1.3908746486490145E-2},{"$f":"'Population at Risk'!L88/'Population at Risk'!L$5","v":4.7146776375832861E-3},{"$f":"'Population at Risk'!M88/'Population at Risk'!M$5","v":4.7146776375832861E-3},{"$f":"'Population at Risk'!N88/'Population at Risk'!N$5","v":1.7321557273751453E-2},{"$f":"'Population at Risk'!O88/'Population at Risk'!O$5","v":1.6785241963281117E-2},{"$f":"'Population at Risk'!P88/'Population at Risk'!P$5","v":3.7441647480425354E-3},{"$f":"'Population at Risk'!Q88/'Population at Risk'!Q$5","v":1.7296369020076863E-3},{"$f":"'Population at Risk'!R88/'Population at Risk'!R$5","v":4.3737656507530105E-3},{"$f":"'Population at Risk'!S88/'Population at Risk'!S$5","v":8.835147560194382E-3},{"$f":"'Population at Risk'!T88/'Population at Risk'!T$5","v":8.4532654992929453E-3},{"$f":"'Population at Risk'!U88/'Population at Risk'!U$5","v":0},{"$f":"'Population at Risk'!V88/'Population at Risk'!V$5","v":9.4735799696057856E-3},{"$f":"'Population at Risk'!W88/'Population at Risk'!W$5","v":1.2515014126395555E-2},{"$f":"'Population at Risk'!X88/'Population at Risk'!X$5","v":1.2515014126395555E-2},{"$f":"'Population at Risk'!Y88/'Population at Risk'!Y$5","v":9.5826841068881036E-3},{"$f":"'Population at Risk'!Z88/'Population at Risk'!Z$5","v":2.2519184105591384E-2},{"$f":"'Population at Risk'!AA88/'Population at Risk'!AA$5","v":1.7622436570616552E-2},{"$f":"'Population at Risk'!AB88/'Population at Risk'!AB$5","v":2.9242157268775213E-3},{"$f":"'Population at Risk'!AC88/'Population at Risk'!AC$5","v":1.9006954785359895E-2},{"$f":"'Population at Risk'!AD88/'Population at Risk'!AD$5","v":4.204690249783055E-3},{"$f":"'Population at Risk'!AE88/'Population at Risk'!AE$5","v":4.2124908279930701E-3},{"$f":"'Population at Risk'!AF88/'Population at Risk'!AF$5","v":2.2070122418248232E-2},{"$f":"'Population at Risk'!AG88/'Population at Risk'!AG$5","v":4.2124908279930701E-3},{"$f":"'Population at Risk'!AH88/'Population at Risk'!AH$5","v":1.5103251716631017E-2},{"$f":"'Population at Risk'!AI88/'Population at Risk'!AI$5","v":7.8089548427650183E-3},{"$f":"'Population at Risk'!AJ88/'Population at Risk'!AJ$5","v":6.2130355418258893E-3},{"$f":"'Population at Risk'!AK88/'Population at Risk'!AK$5","v":8.1235683454125508E-4},{"$f":"'Population at Risk'!AL88/'Population at Risk'!AL$5","v":1.985664732095745E-2},{"$f":"'Population at Risk'!AM88/'Population at Risk'!AM$5","v":1.7775084152545965E-2},{"$f":"'Population at Risk'!AN88/'Population at Risk'!AN$5","v":0},{"$f":"'Population at Risk'!AO88/'Population at Risk'!AO$5","v":0},{"$f":"'Population at Risk'!AP88/'Population at Risk'!AP$5","v":3.3810587189351069E-3},{"$f":"'Population at Risk'!AQ88/'Population at Risk'!AQ$5","v":1.7164768691222826E-2},{"$f":"'Population at Risk'!AR88/'Population at Risk'!AR$5","v":1.1575679879942893E-2},{"$f":"'Population at Risk'!AS88/'Population at Risk'!AS$5","v":4.1531273079430716E-3},{"$f":"'Population at Risk'!AT88/'Population at Risk'!AT$5","v":0},{"$f":"'Population at Risk'!AU88/'Population at Risk'!AU$5","v":0},{"$f":"'Population at Risk'!AV88/'Population at Risk'!AV$5","v":9.1686248986607571E-3},{"$f":"'Population at Risk'!AW88/'Population at Risk'!AW$5","v":1.2054810918439378E-2},{"$f":"'Population at Risk'!AX88/'Population at Risk'!AX$5","v":7.1259732581675306E-3},{"$f":"'Population at Risk'!AY88/'Population at Risk'!AY$5","v":1.0836364982393654E-2},{"$f":"'Population at Risk'!AZ88/'Population at Risk'!AZ$5","v":9.3125746174911525E-3},{"$f":"'Population at Risk'!BA88/'Population at Risk'!BA$5","v":1.7793370964420692E-2},{"$f":"'Population at Risk'!BB88/'Population at Risk'!BB$5","v":1.011709761149192E-2},{"$f":"'Population at Risk'!BC88/'Population at Risk'!BC$5","v":0},86]
[null,"Male 50-54",{"$f":"'Population at Risk'!C89/'Population at Risk'!C$5","v":5.0306429372912638E-3},{"$f":"'Population at Risk'!D89/'Population at Risk'!D$5","v":3.1634721213672926E-3},{"$f":"'Population at Risk'!E89/'Population at Risk'!E$5","v":1.289158366575167E-3},{"$f":"'Population at Risk'!F89/'Population at Risk'!F$5","v":4.7050263489955193E-3},{"$f":"'Population at Risk'!G89/'Population at Risk'!G$5","v":5.4209997933257958E-3},{"$f":"'Population at Risk'!H89/'Population at Risk'!H$5","v":1.6978794887979525E-2},{"$f":"'Population at Risk'!I89/'Population at Risk'!I$5","v":4.2849726193063438E-3},{"$f":"'Population at Risk'!J89/'Population at Risk'!J$5","v":1.071241029342393E-2},{"$f":"'Population at Risk'!K89/'Population at Risk'!K$5","v":1.4857813893803591E-2},{"$f":"'Population at Risk'!L89/'Population at Risk'!L$5","v":5.0746653389751135E-3},{"$f":"'Population at Risk'!M89/'Population at Risk'!M$5","v":5.0746653389751135E-3},{"$f":"'Population at Risk'!N89/'Population at Risk'!N$5","v":1.7737018979579442E-2},{"$f":"'Population at Risk'!O89/'Population at Risk'!O$5","v":1.7742525293999493E-2},{"$f":"'Population at Risk'!P89/'Population at Risk'!P$5","v":3.8251196615137254E-3},{"$f":"'Population at Risk'!Q89/'Population at Risk'!Q$5","v":2.631256138160629E-3},{"$f":"'Population at Risk'!R89/'Population at Risk'!R$5","v":5.7599864580954946E-3},{"$f":"'Population at Risk'!S89/'Population at Risk'!S$5","v":8.7137159897401183E-3},{"$f":"'Population at Risk'!T89/'Population at Risk'!T$5","v":8.7649911250803209E-3},{"$f":"'Population at Risk'!U89/'Population at Risk'!U$5","v":0},{"$f":"'Population at Risk'!V89/'Population at Risk'!V$5","v":9.551506009308772E-3},{"$f":"'Population at Risk'!W89/'Population at Risk'!W$5","v":1.1584106054754748E-2},{"$f":"'Population at Risk'!X89/'Population at Risk'!X$5","v":1.1584106054754748E-2},{"$f":"'Population at Risk'!Y89/'Population at Risk'!Y$5","v":1.0099714273292856E-2},{"$f":"'Population at Risk'!Z89/'Population at Risk'!Z$5","v":2.3063504684035591E-2},{"$f":"'Population at Risk'!AA89/'Population at Risk'!AA$5","v":1.8177795274463004E-2},{"$f":"'Population at Risk'!AB89/'Population at Risk'!AB$5","v":2.7290397357393262E-3},{"$f":"'Population at Risk'!AC89/'Population at Risk'!AC$5","v":2.0017378029048561E-2},{"$f":"'Population at Risk'!AD89/'Population at Risk'!AD$5","v":4.6433909940016118E-3},{"$f":"'Population at Risk'!AE89/'Population at Risk'!AE$5","v":4.3463456767330365E-3},{"$f":"'Population at Risk'!AF89/'Population at Risk'!AF$5","v":2.5366822278576905E-2},{"$f":"'Population at Risk'!AG89/'Population at Risk'!AG$5","v":4.3463456767330365E-3},{"$f":"'Population at Risk'!AH89/'Population at Risk'!AH$5","v":1.4830602753876333E-2},{"$f":"'Population at Risk'!AI89/'Population at Risk'!AI$5","v":8.01181199856261E-3},{"$f":"'Population at Risk'!AJ89/'Population at Risk'!AJ$5","v":6.1326078972715088E-3},{"$f":"'Population at Risk'!AK89/'Population at Risk'!AK$5","v":5.2074156060336876E-4},{"$f":"'Population at Risk'!AL89/'Population at Risk'!AL$5","v":2.1826187165437574E-2},{"$f":"'Population at Risk'!AM89/'Population at Risk'!AM$5","v":1.7765696730231442E-2},{"$f":"'Population at Risk'!AN89/'Population at Risk'!AN$5","v":0},{"$f":"'Population at Risk'!AO89/'Population at Risk'!AO$5","v":0},{"$f":"'Population at Risk'!AP89/'Population at Risk'!AP$5","v":3.9072935390028277E-3},{"$f":"'Population at Risk'!AQ89/'Population at Risk'!AQ$5","v":1.7041689820298446E-2},{"$f":"'Population at Risk'!AR89/'Population at Risk'!AR$5","v":1.1912516096974511E-2},{"$f":"'Population at Risk'!AS89/'Population at Risk'!AS$5","v":4.2849726193063438E-3},{"$f":"'Population at Risk'!AT89/'Population at Risk'!AT$5","v":0},{"$f":"'Population at Risk'!AU89/'Population at Risk'!AU$5","v":0},{"$f":"'Population at Risk'!AV89/'Population at Risk'!AV$5","v":9.6576182265893304E-3},{"$f":"'Population at Risk'!AW89/'Population at Risk'!AW$5","v":1.1481792363009339E-2},{"$f":"'Population at Risk'!AX89/'Population at Risk'!AX$5","v":8.1697777917582679E-3},{"$f":"'Population at Risk'!AY89/'Population at Risk'!AY$5","v":1.0605852108941275E-2},{"$f":"'Population at Risk'!AZ89/'Population at Risk'!AZ$5","v":9.7178440684375263E-3},{"$f":"'Population at Risk'!BA89/'Population at Risk'!BA$5","v":2.2693729539617274E-2},{"$f":"'Population at Risk'!BB89/'Population at Risk'!BB$5","v":9.7916938871456891E-3},{"$f":"'Population at Risk'!BC89/'Population at Risk'!BC$5","v":0},87]
[null,"Male 55-59",{"$f":"'Population at Risk'!C90/'Population at Risk'!C$5","v":3.0771603404421174E-3},{"$f":"'Population at Risk'!D90/'Population at Risk'!D$5","v":2.0407277971512122E-3},{"$f":"'Population at Risk'!E90/'Population at Risk'!E$5","v":1.0003303384735853E-3},{"$f":"'Population at Risk'!F90/'Population at Risk'!F$5","v":2.5022611131975065E-3},{"$f":"'Population at Risk'!G90/'Population at Risk'!G$5","v":2.9387908505860106E-3},{"$f":"'Population at Risk'!H90/'Population at Risk'!H$5","v":1.1069231278230037E-2},{"$f":"'Population at Risk'!I90/'Population at Risk'!I$5","v":2.1732333587038116E-3},{"$f":"'Population at Risk'!J90/'Population at Risk'!J$5","v":6.7791287938383906E-3},{"$f":"'Population at Risk'!K90/'Population at Risk'!K$5","v":9.3757984693465819E-3},{"$f":"'Population at Risk'!L90/'Population at Risk'!L$5","v":3.0237160466012928E-3},{"$f":"'Population at Risk'!M90/'Population at Risk'!M$5","v":3.0237160466012928E-3},{"$f":"'Population at Risk'!N90/'Population at Risk'!N$5","v":1.1444764564824758E-2},{"$f":"'Population at Risk'!O90/'Population at Risk'!O$5","v":1.1095072483223497E-2},{"$f":"'Population at Risk'!P90/'Population at Risk'!P$5","v":2.3436608110039745E-3},{"$f":"'Population at Risk'!Q90/'Population at Risk'!Q$5","v":1.3794645519352661E-3},{"$f":"'Population at Risk'!R90/'Population at Risk'!R$5","v":3.0876435810353476E-3},{"$f":"'Population at Risk'!S90/'Population at Risk'!S$5","v":5.0823891968194397E-3},{"$f":"'Population at Risk'!T90/'Population at Risk'!T$5","v":4.6248740668310261E-3},{"$f":"'Population at Risk'!U90/'Population at Risk'!U$5","v":0},{"$f":"'Population at Risk'!V90/'Population at Risk'!V$5","v":5.4173189975466936E-3},{"$f":"'Population at Risk'!W90/'Population at Risk'!W$5","v":7.6713797167663597E-3},{"$f":"'Population at Risk'!X90/'Population at Risk'!X$5","v":7.6713797167663597E-3},{"$f":"'Population at Risk'!Y90/'Population at Risk'!Y$5","v":6.0603999082788108E-3},{"$f":"'Population at Risk'!Z90/'Population at Risk'!Z$5","v":1.3508041765473723E-2},{"$f":"'Population at Risk'!AA90/'Population at Risk'!AA$5","v":1.0845774770821732E-2},{"$f":"'Population at Risk'!AB90/'Population at Risk'!AB$5","v":1.7671415942570223E-3},{"$f":"'Population at Risk'!AC90/'Population at Risk'!AC$5","v":1.1740809997527843E-2},{"$f":"'Population at Risk'!AD90/'Population at Risk'!AD$5","v":2.8488112860049204E-3},{"$f":"'Population at Risk'!AE90/'Population at Risk'!AE$5","v":2.814439236290581E-3},{"$f":"'Population at Risk'!AF90/'Population at Risk'!AF$5","v":1.4865547001947005E-2},{"$f":"'Population at Risk'!AG90/'Population at Risk'!AG$5","v":2.814439236290581E-3},{"$f":"'Population at Risk'!AH90/'Population at Risk'!AH$5","v":9.2172232914036582E-3},{"$f":"'Population at Risk'!AI90/'Population at Risk'!AI$5","v":4.3115631128908928E-3},{"$f":"'Population at Risk'!AJ90/'Population at Risk'!AJ$5","v":3.6204543176812255E-3},{"$f":"'Population at Risk'!AK90/'Population at Risk'!AK$5","v":3.7645357793819102E-4},{"$f":"'Population at Risk'!AL90/'Population at Risk'!AL$5","v":1.4339930232830787E-2},{"$f":"'Population at Risk'!AM90/'Population at Risk'!AM$5","v":1.0641356439168222E-2},{"$f":"'Population at Risk'!AN90/'Population at Risk'!AN$5","v":0},{"$f":"'Population at Risk'!AO90/'Population at Risk'!AO$5","v":0},{"$f":"'Population at Risk'!AP90/'Population at Risk'!AP$5","v":2.0518279634738866E-3},{"$f":"'Population at Risk'!AQ90/'Population at Risk'!AQ$5","v":1.0615009716122467E-2},{"$f":"'Population at Risk'!AR90/'Population at Risk'!AR$5","v":7.1810578745380767E-3},{"$f":"'Population at Risk'!AS90/'Population at Risk'!AS$5","v":2.1732333587038116E-3},{"$f":"'Population at Risk'!AT90/'Population at Risk'!AT$5","v":0},{"$f":"'Population at Risk'!AU90/'Population at Risk'!AU$5","v":0},{"$f":"'Population at Risk'!AV90/'Population at Risk'!AV$5","v":6.699766832520675E-3},{"$f":"'Population at Risk'!AW90/'Population at Risk'!AW$5","v":7.5923513378539538E-3},{"$f":"'Population at Risk'!AX90/'Population at Risk'!AX$5","v":5.1864306275049435E-3},{"$f":"'Population at Risk'!AY90/'Population at Risk'!AY$5","v":6.7815533856837524E-3},{"$f":"'Population at Risk'!AZ90/'Population at Risk'!AZ$5","v":5.9738153335808977E-3},{"$f":"'Population at Risk'!BA90/'Population at Risk'!BA$5","v":1.2475869056780985E-2},{"$f":"'Population at Risk'!BB90/'Population at Risk'!BB$5","v":5.3793725377958177E-3},{"$f":"'Population at Risk'!BC90/'Population at Risk'!BC$5","v":0},88]
[null,"Male 60-64",{"$f":"'Population at Risk'!C91/'Population at Risk'!C$5","v":2.7705393812521555E-3},{"$f":"'Population at Risk'!D91/'Population at Risk'!D$5","v":1.6649486194499808E-3},{"$f":"'Population at Risk'!E91/'Population at Risk'!E$5","v":5.5512837464742918E-4},{"$f":"'Population at Risk'!F91/'Population at Risk'!F$5","v":2.1139792163220312E-3},{"$f":"'Population at Risk'!G91/'Population at Risk'!G$5","v":2.8560080097244332E-3},{"$f":"'Population at Risk'!H91/'Population at Risk'!H$5","v":9.4611317884845236E-3},{"$f":"'Population at Risk'!I91/'Population at Risk'!I$5","v":1.6988727778699845E-3},{"$f":"'Population at Risk'!J91/'Population at Risk'!J$5","v":5.288386712638057E-3},{"$f":"'Population at Risk'!K91/'Population at Risk'!K$5","v":7.2947217062906819E-3},{"$f":"'Population at Risk'!L91/'Population at Risk'!L$5","v":2.5029217660812756E-3},{"$f":"'Population at Risk'!M91/'Population at Risk'!M$5","v":2.5029217660812756E-3},{"$f":"'Population at Risk'!N91/'Population at Risk'!N$5","v":9.227118596188931E-3},{"$f":"'Population at Risk'!O91/'Population at Risk'!O$5","v":9.1727458425384135E-3},{"$f":"'Population at Risk'!P91/'Population at Risk'!P$5","v":2.167547570870728E-3},{"$f":"'Population at Risk'!Q91/'Population at Risk'!Q$5","v":1.0715483573068584E-3},{"$f":"'Population at Risk'!R91/'Population at Risk'!R$5","v":2.335730377363527E-3},{"$f":"'Population at Risk'!S91/'Population at Risk'!S$5","v":4.2534863541747233E-3},{"$f":"'Population at Risk'!T91/'Population at Risk'!T$5","v":3.9522543777059192E-3},{"$f":"'Population at Risk'!U91/'Population at Risk'!U$5","v":0},{"$f":"'Population at Risk'!V91/'Population at Risk'!V$5","v":4.6423517681865078E-3},{"$f":"'Population at Risk'!W91/'Population at Risk'!W$5","v":6.4156006085513946E-3},{"$f":"'Population at Risk'!X91/'Population at Risk'!X$5","v":6.4156006085513946E-3},{"$f":"'Population at Risk'!Y91/'Population at Risk'!Y$5","v":4.9474257525079458E-3},{"$f":"'Population at Risk'!Z91/'Population at Risk'!Z$5","v":1.0885986072953028E-2},{"$f":"'Population at Risk'!AA91/'Population at Risk'!AA$5","v":8.806550583184752E-3},{"$f":"'Population at Risk'!AB91/'Population at Risk'!AB$5","v":1.4370918023335318E-3},{"$f":"'Population at Risk'!AC91/'Population at Risk'!AC$5","v":9.4697606148255366E-3},{"$f":"'Population at Risk'!AD91/'Population at Risk'!AD$5","v":2.4598169738596701E-3},{"$f":"'Population at Risk'!AE91/'Population at Risk'!AE$5","v":2.3084726320136226E-3},{"$f":"'Population at Risk'!AF91/'Population at Risk'!AF$5","v":1.2738122053223923E-2},{"$f":"'Population at Risk'!AG91/'Population at Risk'!AG$5","v":2.3084726320136226E-3},{"$f":"'Population at Risk'!AH91/'Population at Risk'!AH$5","v":7.5998140816859582E-3},{"$f":"'Population at Risk'!AI91/'Population at Risk'!AI$5","v":3.6256326176582511E-3},{"$f":"'Population at Risk'!AJ91/'Population at Risk'!AJ$5","v":3.2839808680825986E-3},{"$f":"'Population at Risk'!AK91/'Population at Risk'!AK$5","v":2.7885450217643784E-4},{"$f":"'Population at Risk'!AL91/'Population at Risk'!AL$5","v":1.2142682858445424E-2},{"$f":"'Population at Risk'!AM91/'Population at Risk'!AM$5","v":8.5520437636303227E-3},{"$f":"'Population at Risk'!AN91/'Population at Risk'!AN$5","v":0},{"$f":"'Population at Risk'!AO91/'Population at Risk'!AO$5","v":0},{"$f":"'Population at Risk'!AP91/'Population at Risk'!AP$5","v":1.7083889481284724E-3},{"$f":"'Population at Risk'!AQ91/'Population at Risk'!AQ$5","v":7.5794338032731164E-3},{"$f":"'Population at Risk'!AR91/'Population at Risk'!AR$5","v":5.9083751265108621E-3},{"$f":"'Population at Risk'!AS91/'Population at Risk'!AS$5","v":1.6988727778699845E-3},{"$f":"'Population at Risk'!AT91/'Population at Risk'!AT$5","v":0},{"$f":"'Population at Risk'!AU91/'Population at Risk'!AU$5","v":0},{"$f":"'Population at Risk'!AV91/'Population at Risk'!AV$5","v":6.2394775081490265E-3},{"$f":"'Population at Risk'!AW91/'Population at Risk'!AW$5","v":6.5133627860626221E-3},{"$f":"'Population at Risk'!AX91/'Population at Risk'!AX$5","v":4.0577773303277012E-3},{"$f":"'Population at Risk'!AY91/'Population at Risk'!AY$5","v":5.6001139044838839E-3},{"$f":"'Population at Risk'!AZ91/'Population at Risk'!AZ$5","v":4.8598574984300633E-3},{"$f":"'Population at Risk'!BA91/'Population at Risk'!BA$5","v":1.1118566892851955E-2},{"$f":"'Population at Risk'!BB91/'Population at Risk'!BB$5","v":4.2836966589318839E-3},{"$f":"'Population at Risk'!BC91/'Population at Risk'!BC$5","v":0},89]
[null,"Male 65-69",{"$f":"'Population at Risk'!C92/'Population at Risk'!C$5","v":2.3817878079934541E-3},{"$f":"'Population at Risk'!D92/'Population at Risk'!D$5","v":1.5195741930400153E-3},{"$f":"'Population at Risk'!E92/'Population at Risk'!E$5","v":6.5406214438657503E-4},{"$f":"'Population at Risk'!F92/'Population at Risk'!F$5","v":2.2110496905409002E-3},{"$f":"'Population at Risk'!G92/'Population at Risk'!G$5","v":2.3593109645549662E-3},{"$f":"'Population at Risk'!H92/'Population at Risk'!H$5","v":9.0920597744445705E-3},{"$f":"'Population at Risk'!I92/'Population at Risk'!I$5","v":2.2063282829480322E-3},{"$f":"'Population at Risk'!J92/'Population at Risk'!J$5","v":5.1634641918670791E-3},{"$f":"'Population at Risk'!K92/'Population at Risk'!K$5","v":7.3823459910509299E-3},{"$f":"'Population at Risk'!L92/'Population at Risk'!L$5","v":2.8838011652675571E-3},{"$f":"'Population at Risk'!M92/'Population at Risk'!M$5","v":2.8838011652675571E-3},{"$f":"'Population at Risk'!N92/'Population at Risk'!N$5","v":8.7707541524825253E-3},{"$f":"'Population at Risk'!O92/'Population at Risk'!O$5","v":9.5589667201189769E-3},{"$f":"'Population at Risk'!P92/'Population at Risk'!P$5","v":1.7204908843786403E-3},{"$f":"'Population at Risk'!Q92/'Population at Risk'!Q$5","v":1.2439814262987666E-3},{"$f":"'Population at Risk'!R92/'Population at Risk'!R$5","v":2.175748844667395E-3},{"$f":"'Population at Risk'!S92/'Population at Risk'!S$5","v":3.9801627875267883E-3},{"$f":"'Population at Risk'!T92/'Population at Risk'!T$5","v":3.2256287281401106E-3},{"$f":"'Population at Risk'!U92/'Population at Risk'!U$5","v":0},{"$f":"'Population at Risk'!V92/'Population at Risk'!V$5","v":4.7988355356534673E-3},{"$f":"'Population at Risk'!W92/'Population at Risk'!W$5","v":6.196236663065742E-3},{"$f":"'Population at Risk'!X92/'Population at Risk'!X$5","v":6.196236663065742E-3},{"$f":"'Population at Risk'!Y92/'Population at Risk'!Y$5","v":4.9710223777186353E-3},{"$f":"'Population at Risk'!Z92/'Population at Risk'!Z$5","v":9.6990603771881997E-3},{"$f":"'Population at Risk'!AA92/'Population at Risk'!AA$5","v":8.0915750671932182E-3},{"$f":"'Population at Risk'!AB92/'Population at Risk'!AB$5","v":1.3133231303622229E-3},{"$f":"'Population at Risk'!AC92/'Population at Risk'!AC$5","v":8.4925100295622259E-3},{"$f":"'Population at Risk'!AD92/'Population at Risk'!AD$5","v":2.2004874324295033E-3},{"$f":"'Population at Risk'!AE92/'Population at Risk'!AE$5","v":2.1398170972546362E-3},{"$f":"'Population at Risk'!AF92/'Population at Risk'!AF$5","v":1.2923115527025929E-2},{"$f":"'Population at Risk'!AG92/'Population at Risk'!AG$5","v":2.1398170972546362E-3},{"$f":"'Population at Risk'!AH92/'Population at Risk'!AH$5","v":7.3620582765307691E-3},{"$f":"'Population at Risk'!AI92/'Population at Risk'!AI$5","v":3.229472760207562E-3},{"$f":"'Population at Risk'!AJ92/'Population at Risk'!AJ$5","v":2.7321644107408507E-3},{"$f":"'Population at Risk'!AK92/'Population at Risk'!AK$5","v":2.6491177706761598E-4},{"$f":"'Population at Risk'!AL92/'Population at Risk'!AL$5","v":1.1487363466084878E-2},{"$f":"'Population at Risk'!AM92/'Population at Risk'!AM$5","v":8.379243467157264E-3},{"$f":"'Population at Risk'!AN92/'Population at Risk'!AN$5","v":0},{"$f":"'Population at Risk'!AO92/'Population at Risk'!AO$5","v":0},{"$f":"'Population at Risk'!AP92/'Population at Risk'!AP$5","v":1.41778670437466E-3},{"$f":"'Population at Risk'!AQ92/'Population at Risk'!AQ$5","v":6.8126181760188977E-3},{"$f":"'Population at Risk'!AR92/'Population at Risk'!AR$5","v":5.5215815066709268E-3},{"$f":"'Population at Risk'!AS92/'Population at Risk'!AS$5","v":2.2063282829480322E-3},{"$f":"'Population at Risk'!AT92/'Population at Risk'!AT$5","v":0},{"$f":"'Population at Risk'!AU92/'Population at Risk'!AU$5","v":0},{"$f":"'Population at Risk'!AV92/'Population at Risk'!AV$5","v":5.3700421176692435E-3},{"$f":"'Population at Risk'!AW92/'Population at Risk'!AW$5","v":6.2014956631196126E-3},{"$f":"'Population at Risk'!AX92/'Population at Risk'!AX$5","v":3.8024867035852303E-3},{"$f":"'Population at Risk'!AY92/'Population at Risk'!AY$5","v":5.3626158269571497E-3},{"$f":"'Population at Risk'!AZ92/'Population at Risk'!AZ$5","v":4.6058981992246921E-3},{"$f":"'Population at Risk'!BA92/'Population at Risk'!BA$5","v":9.2409655660834669E-3},{"$f":"'Population at Risk'!BB92/'Population at Risk'!BB$5","v":4.5477149429954816E-3},{"$f":"'Population at Risk'!BC92/'Population at Risk'!BC$5","v":0},90]
[null,"Male 70-74",{"$f":"'Population at Risk'!C93/'Population at Risk'!C$5","v":1.3852696906260778E-3},{"$f":"'Population at Risk'!D93/'Population at Risk'!D$5","v":8.7773238587148905E-4},{"$f":"'Population at Risk'!E93/'Population at Risk'!E$5","v":3.6825347625126496E-4},{"$f":"'Population at Risk'!F93/'Population at Risk'!F$5","v":1.4560571132830318E-3},{"$f":"'Population at Risk'!G93/'Population at Risk'!G$5","v":2.1523538624010218E-3},{"$f":"'Population at Risk'!H93/'Population at Risk'!H$5","v":6.7428871136505806E-3},{"$f":"'Population at Risk'!I93/'Population at Risk'!I$5","v":1.5333981566488823E-3},{"$f":"'Population at Risk'!J93/'Population at Risk'!J$5","v":3.706034782872339E-3},{"$f":"'Population at Risk'!K93/'Population at Risk'!K$5","v":5.366987441565216E-3},{"$f":"'Population at Risk'!L93/'Population at Risk'!L$5","v":1.7567090656346843E-3},{"$f":"'Population at Risk'!M93/'Population at Risk'!M$5","v":1.7567090656346843E-3},{"$f":"'Population at Risk'!N93/'Population at Risk'!N$5","v":6.2393576287985437E-3},{"$f":"'Population at Risk'!O93/'Population at Risk'!O$5","v":6.5569771716518614E-3},{"$f":"'Population at Risk'!P93/'Population at Risk'!P$5","v":1.1921511639789006E-3},{"$f":"'Population at Risk'!Q93/'Population at Risk'!Q$5","v":7.8826545824872338E-4},{"$f":"'Population at Risk'!R93/'Population at Risk'!R$5","v":1.3918393344563482E-3},{"$f":"'Population at Risk'!S93/'Population at Risk'!S$5","v":2.9270631630891578E-3},{"$f":"'Population at Risk'!T93/'Population at Risk'!T$5","v":2.1946058469994359E-3},{"$f":"'Population at Risk'!U93/'Population at Risk'!U$5","v":0},{"$f":"'Population at Risk'!V93/'Population at Risk'!V$5","v":3.0253528376945776E-3},{"$f":"'Population at Risk'!W93/'Population at Risk'!W$5","v":4.7369895474437948E-3},{"$f":"'Population at Risk'!X93/'Population at Risk'!X$5","v":4.7369895474437948E-3},{"$f":"'Population at Risk'!Y93/'Population at Risk'!Y$5","v":3.3467880090494923E-3},{"$f":"'Population at Risk'!Z93/'Population at Risk'!Z$5","v":7.0276820351115937E-3},{"$f":"'Population at Risk'!AA93/'Population at Risk'!AA$5","v":5.8308509896352707E-3},{"$f":"'Population at Risk'!AB93/'Population at Risk'!AB$5","v":7.6782416871089818E-4},{"$f":"'Population at Risk'!AC93/'Population at Risk'!AC$5","v":6.1045954638764563E-3},{"$f":"'Population at Risk'!AD93/'Population at Risk'!AD$5","v":1.5979276155770571E-3},{"$f":"'Population at Risk'!AE93/'Population at Risk'!AE$5","v":1.3861376763004171E-3},{"$f":"'Population at Risk'!AF93/'Population at Risk'!AF$5","v":8.9061143816109162E-3},{"$f":"'Population at Risk'!AG93/'Population at Risk'!AG$5","v":1.3861376763004171E-3},{"$f":"'Population at Risk'!AH93/'Population at Risk'!AH$5","v":5.3327622494315444E-3},{"$f":"'Population at Risk'!AI93/'Population at Risk'!AI$5","v":2.3069662370273354E-3},{"$f":"'Population at Risk'!AJ93/'Population at Risk'!AJ$5","v":2.045758573559652E-3},{"$f":"'Population at Risk'!AK93/'Population at Risk'!AK$5","v":2.0914087663232835E-4},{"$f":"'Population at Risk'!AL93/'Population at Risk'!AL$5","v":8.812118417271822E-3},{"$f":"'Population at Risk'!AM93/'Population at Risk'!AM$5","v":5.9034864922341574E-3},{"$f":"'Population at Risk'!AN93/'Population at Risk'!AN$5","v":0},{"$f":"'Population at Risk'!AO93/'Population at Risk'!AO$5","v":0},{"$f":"'Population at Risk'!AP93/'Population at Risk'!AP$5","v":1.0479293032334444E-3},{"$f":"'Population at Risk'!AQ93/'Population at Risk'!AQ$5","v":4.8797358097995821E-3},{"$f":"'Population at Risk'!AR93/'Population at Risk'!AR$5","v":3.9646885946518903E-3},{"$f":"'Population at Risk'!AS93/'Population at Risk'!AS$5","v":1.5333981566488823E-3},{"$f":"'Population at Risk'!AT93/'Population at Risk'!AT$5","v":0},{"$f":"'Population at Risk'!AU93/'Population at Risk'!AU$5","v":0},{"$f":"'Population at Risk'!AV93/'Population at Risk'!AV$5","v":4.214204480913768E-3},{"$f":"'Population at Risk'!AW93/'Population at Risk'!AW$5","v":4.6815915237191997E-3},{"$f":"'Population at Risk'!AX93/'Population at Risk'!AX$5","v":2.6872697551839084E-3},{"$f":"'Population at Risk'!AY93/'Population at Risk'!AY$5","v":3.9618309875319533E-3},{"$f":"'Population at Risk'!AZ93/'Population at Risk'!AZ$5","v":3.2581823727598227E-3},{"$f":"'Population at Risk'!BA93/'Population at Risk'!BA$5","v":6.7638891169129901E-3},{"$f":"'Population at Risk'!BB93/'Population at Risk'!BB$5","v":3.5510459206553983E-3},{"$f":"'Population at Risk'!BC93/'Population at Risk'!BC$5","v":0},91]
[null,"Male 75-79",{"$f":"'Population at Risk'!C94/'Population at Risk'!C$5","v":9.143875032986364E-4},{"$f":"'Population at Risk'!D94/'Population at Risk'!D$5","v":6.1715558381589069E-4},{"$f":"'Population at Risk'!E94/'Population at Risk'!E$5","v":3.1878659138169204E-4},{"$f":"'Population at Risk'!F94/'Population at Risk'!F$5","v":1.3158442060779991E-3},{"$f":"'Population at Risk'!G94/'Population at Risk'!G$5","v":1.2417426129236664E-3},{"$f":"'Population at Risk'!H94/'Population at Risk'!H$5","v":5.2578116285850532E-3},{"$f":"'Population at Risk'!I94/'Population at Risk'!I$5","v":8.053098232760317E-4},{"$f":"'Population at Risk'!J94/'Population at Risk'!J$5","v":2.964827826297871E-3},{"$f":"'Population at Risk'!K94/'Population at Risk'!K$5","v":3.9869049565913039E-3},{"$f":"'Population at Risk'!L94/'Population at Risk'!L$5","v":1.4224679602263151E-3},{"$f":"'Population at Risk'!M94/'Population at Risk'!M$5","v":1.4224679602263151E-3},{"$f":"'Population at Risk'!N94/'Population at Risk'!N$5","v":4.7347811034539802E-3},{"$f":"'Population at Risk'!O94/'Population at Risk'!O$5","v":5.5738694832649684E-3},{"$f":"'Population at Risk'!P94/'Population at Risk'!P$5","v":9.0766054530211739E-4},{"$f":"'Population at Risk'!Q94/'Population at Risk'!Q$5","v":7.5131551489331452E-4},{"$f":"'Population at Risk'!R94/'Population at Risk'!R$5","v":1.6158134802309329E-3},{"$f":"'Population at Risk'!S94/'Population at Risk'!S$5","v":2.1285296056275443E-3},{"$f":"'Population at Risk'!T94/'Population at Risk'!T$5","v":1.7797418781594976E-3},{"$f":"'Population at Risk'!U94/'Population at Risk'!U$5","v":0},{"$f":"'Population at Risk'!V94/'Population at Risk'!V$5","v":2.6080627911160151E-3},{"$f":"'Population at Risk'!W94/'Population at Risk'!W$5","v":3.17918761573409E-3},{"$f":"'Population at Risk'!X94/'Population at Risk'!X$5","v":3.17918761573409E-3},{"$f":"'Population at Risk'!Y94/'Population at Risk'!Y$5","v":2.7765362331244911E-3},{"$f":"'Population at Risk'!Z94/'Population at Risk'!Z$5","v":5.2711592896365657E-3},{"$f":"'Population at Risk'!AA94/'Population at Risk'!AA$5","v":4.4252471305389592E-3},{"$f":"'Population at Risk'!AB94/'Population at Risk'!AB$5","v":5.3174688698784595E-4},{"$f":"'Population at Risk'!AC94/'Population at Risk'!AC$5","v":4.6617245432617012E-3},{"$f":"'Population at Risk'!AD94/'Population at Risk'!AD$5","v":1.071641193262895E-3},{"$f":"'Population at Risk'!AE94/'Population at Risk'!AE$5","v":1.0066627230926983E-3},{"$f":"'Population at Risk'!AF94/'Population at Risk'!AF$5","v":6.6861926959868312E-3},{"$f":"'Population at Risk'!AG94/'Population at Risk'!AG$5","v":1.0066627230926983E-3},{"$f":"'Population at Risk'!AH94/'Population at Risk'!AH$5","v":3.9949672612695965E-3},{"$f":"'Population at Risk'!AI94/'Population at Risk'!AI$5","v":1.8338141811321657E-3},{"$f":"'Population at Risk'!AJ94/'Population at Risk'!AJ$5","v":1.5612368061376288E-3},{"$f":"'Population at Risk'!AK94/'Population at Risk'!AK$5","v":9.7599075761753247E-5},{"$f":"'Population at Risk'!AL94/'Population at Risk'!AL$5","v":6.5686132034257156E-3},{"$f":"'Population at Risk'!AM94/'Population at Risk'!AM$5","v":4.6436152397669427E-3},{"$f":"'Population at Risk'!AN94/'Population at Risk'!AN$5","v":0},{"$f":"'Population at Risk'!AO94/'Population at Risk'!AO$5","v":0},{"$f":"'Population at Risk'!AP94/'Population at Risk'!AP$5","v":8.4538834546563578E-4},{"$f":"'Population at Risk'!AQ94/'Population at Risk'!AQ$5","v":4.3030397595505403E-3},{"$f":"'Population at Risk'!AR94/'Population at Risk'!AR$5","v":3.004939378253971E-3},{"$f":"'Population at Risk'!AS94/'Population at Risk'!AS$5","v":8.053098232760317E-4},{"$f":"'Population at Risk'!AT94/'Population at Risk'!AT$5","v":0},{"$f":"'Population at Risk'!AU94/'Population at Risk'!AU$5","v":0},{"$f":"'Population at Risk'!AV94/'Population at Risk'!AV$5","v":3.1504247090326227E-3},{"$f":"'Population at Risk'!AW94/'Population at Risk'!AW$5","v":3.2548890532442822E-3},{"$f":"'Population at Risk'!AX94/'Population at Risk'!AX$5","v":2.3379246870100004E-3},{"$f":"'Population at Risk'!AY94/'Population at Risk'!AY$5","v":2.8469514771039088E-3},{"$f":"'Population at Risk'!AZ94/'Population at Risk'!AZ$5","v":2.5453647943083826E-3},{"$f":"'Population at Risk'!BA94/'Population at Risk'!BA$5","v":4.5243405464300947E-3},{"$f":"'Population at Risk'!BB94/'Population at Risk'!BB$5","v":2.6929864974487034E-3},{"$f":"'Population at Risk'!BC94/'Population at Risk'!BC$5","v":0},92]
[null,"Male 80-84",{"$f":"'Population at Risk'!C95/'Population at Risk'!C$5","v":6.570449125499183E-4},{"$f":"'Population at Risk'!D95/'Population at Risk'!D$5","v":4.4435202034744136E-4},{"$f":"'Population at Risk'!E95/'Population at Risk'!E$5","v":2.3084546272467355E-4},{"$f":"'Population at Risk'!F95/'Population at Risk'!F$5","v":7.4420696901132731E-4},{"$f":"'Population at Risk'!G95/'Population at Risk'!G$5","v":9.5200266990814423E-4},{"$f":"'Population at Risk'!H95/'Population at Risk'!H$5","v":3.5266881341595568E-3},{"$f":"'Population at Risk'!I95/'Population at Risk'!I$5","v":6.1777191922544905E-4},{"$f":"'Population at Risk'!J95/'Population at Risk'!J$5","v":1.4157885687377475E-3},{"$f":"'Population at Risk'!K95/'Population at Risk'!K$5","v":1.7743917663950307E-3},{"$f":"'Population at Risk'!L95/'Population at Risk'!L$5","v":9.0167367970629816E-4},{"$f":"'Population at Risk'!M95/'Population at Risk'!M$5","v":9.0167367970629816E-4},{"$f":"'Population at Risk'!N95/'Population at Risk'!N$5","v":3.0091530506891262E-3},{"$f":"'Population at Risk'!O95/'Population at Risk'!O$5","v":3.7042093258863253E-3},{"$f":"'Population at Risk'!P95/'Population at Risk'!P$5","v":5.8252840967150821E-4},{"$f":"'Population at Risk'!Q95/'Population at Risk'!Q$5","v":4.8034926362031582E-4},{"$f":"'Population at Risk'!R95/'Population at Risk'!R$5","v":7.6791135694143347E-4},{"$f":"'Population at Risk'!S95/'Population at Risk'!S$5","v":1.4702306885702634E-3},{"$f":"'Population at Risk'!T95/'Population at Risk'!T$5","v":1.2175889262994635E-3},{"$f":"'Population at Risk'!U95/'Population at Risk'!U$5","v":0},{"$f":"'Population at Risk'!V95/'Population at Risk'!V$5","v":1.9076116415019998E-3},{"$f":"'Population at Risk'!W95/'Population at Risk'!W$5","v":2.3049110214072156E-3},{"$f":"'Population at Risk'!X95/'Population at Risk'!X$5","v":2.3049110214072156E-3},{"$f":"'Population at Risk'!Y95/'Population at Risk'!Y$5","v":1.6753603899589704E-3},{"$f":"'Population at Risk'!Z95/'Population at Risk'!Z$5","v":3.6021444707929925E-3},{"$f":"'Population at Risk'!AA95/'Population at Risk'!AA$5","v":2.9264114142909274E-3},{"$f":"'Population at Risk'!AB95/'Population at Risk'!AB$5","v":3.781820532456663E-4},{"$f":"'Population at Risk'!AC95/'Population at Risk'!AC$5","v":3.1019884396634809E-3},{"$f":"'Population at Risk'!AD95/'Population at Risk'!AD$5","v":7.4747926647518665E-4},{"$f":"'Population at Risk'!AE95/'Population at Risk'!AE$5","v":6.6935165357472613E-4},{"$f":"'Population at Risk'!AF95/'Population at Risk'!AF$5","v":4.2944913561180241E-3},{"$f":"'Population at Risk'!AG95/'Population at Risk'!AG$5","v":6.6935165357472613E-4},{"$f":"'Population at Risk'!AH95/'Population at Risk'!AH$5","v":2.6069421734269747E-3},{"$f":"'Population at Risk'!AI95/'Population at Risk'!AI$5","v":1.2108773028086438E-3},{"$f":"'Population at Risk'!AJ95/'Population at Risk'!AJ$5","v":9.9596141081193575E-4},{"$f":"'Population at Risk'!AK95/'Population at Risk'!AK$5","v":4.1828175326465673E-5},{"$f":"'Population at Risk'!AL95/'Population at Risk'!AL$5","v":4.2788501501188642E-3},{"$f":"'Population at Risk'!AM95/'Population at Risk'!AM$5","v":3.0475688650703206E-3},{"$f":"'Population at Risk'!AN95/'Population at Risk'!AN$5","v":0},{"$f":"'Population at Risk'!AO95/'Population at Risk'!AO$5","v":0},{"$f":"'Population at Risk'!AP95/'Population at Risk'!AP$5","v":5.6359223031042386E-4},{"$f":"'Population at Risk'!AQ95/'Population at Risk'!AQ$5","v":2.6933606742400294E-3},{"$f":"'Population at Risk'!AR95/'Population at Risk'!AR$5","v":1.9946543120277186E-3},{"$f":"'Population at Risk'!AS95/'Population at Risk'!AS$5","v":6.1777191922544905E-4},{"$f":"'Population at Risk'!AT95/'Population at Risk'!AT$5","v":0},{"$f":"'Population at Risk'!AU95/'Population at Risk'!AU$5","v":0},{"$f":"'Population at Risk'!AV95/'Population at Risk'!AV$5","v":2.3219039251636537E-3},{"$f":"'Population at Risk'!AW95/'Population at Risk'!AW$5","v":2.1042069099717993E-3},{"$f":"'Population at Risk'!AX95/'Population at Risk'!AX$5","v":1.195835041056839E-3},{"$f":"'Population at Risk'!AY95/'Population at Risk'!AY$5","v":1.9362900588166861E-3},{"$f":"'Population at Risk'!AZ95/'Population at Risk'!AZ$5","v":1.6016751256702406E-3},{"$f":"'Population at Risk'!BA95/'Population at Risk'!BA$5","v":3.0086864633760125E-3},{"$f":"'Population at Risk'!BB95/'Population at Risk'!BB$5","v":1.6897170180070298E-3},{"$f":"'Population at Risk'!BC95/'Population at Risk'!BC$5","v":0},93]
[null,"Male 85-89",{"$f":"'Population at Risk'!C96/'Population at Risk'!C$5","v":3.3947320481745783E-4},{"$f":"'Population at Risk'!D96/'Population at Risk'!D$5","v":2.2766183758541743E-4},{"$f":"'Population at Risk'!E96/'Population at Risk'!E$5","v":1.1542273136233677E-4},{"$f":"'Population at Risk'!F96/'Population at Risk'!F$5","v":3.9906750512201612E-4},{"$f":"'Population at Risk'!G96/'Population at Risk'!G$5","v":5.3808846560025544E-4},{"$f":"'Population at Risk'!H96/'Population at Risk'!H$5","v":1.6549657772426489E-3},{"$f":"'Population at Risk'!I96/'Population at Risk'!I$5","v":4.1920237376012612E-4},{"$f":"'Population at Risk'!J96/'Population at Risk'!J$5","v":8.6612947734544549E-4},{"$f":"'Population at Risk'!K96/'Population at Risk'!K$5","v":1.204833915453416E-3},{"$f":"'Population at Risk'!L96/'Population at Risk'!L$5","v":5.2079428052001703E-4},{"$f":"'Population at Risk'!M96/'Population at Risk'!M$5","v":5.2079428052001703E-4},{"$f":"'Population at Risk'!N96/'Population at Risk'!N$5","v":1.5972755529724272E-3},{"$f":"'Population at Risk'!O96/'Population at Risk'!O$5","v":1.8257714212899425E-3},{"$f":"'Population at Risk'!P96/'Population at Risk'!P$5","v":3.1158496331266716E-4},{"$f":"'Population at Risk'!Q96/'Population at Risk'!Q$5","v":1.2316647785136305E-4},{"$f":"'Population at Risk'!R96/'Population at Risk'!R$5","v":3.8395567847071673E-4},{"$f":"'Population at Risk'!S96/'Population at Risk'!S$5","v":7.0474605910202787E-4},{"$f":"'Population at Risk'!T96/'Population at Risk'!T$5","v":5.744270337783759E-4},{"$f":"'Population at Risk'!U96/'Population at Risk'!U$5","v":0},{"$f":"'Population at Risk'!V96/'Population at Risk'!V$5","v":7.7496722936018741E-4},{"$f":"'Population at Risk'!W96/'Population at Risk'!W$5","v":1.1031781026597295E-3},{"$f":"'Population at Risk'!X96/'Population at Risk'!X$5","v":1.1031781026597295E-3},{"$f":"'Population at Risk'!Y96/'Population at Risk'!Y$5","v":8.1801634063724386E-4},{"$f":"'Population at Risk'!Z96/'Population at Risk'!Z$5","v":1.7231106280339273E-3},{"$f":"'Population at Risk'!AA96/'Population at Risk'!AA$5","v":1.3871950210599851E-3},{"$f":"'Population at Risk'!AB96/'Population at Risk'!AB$5","v":1.9940508262044222E-4},{"$f":"'Population at Risk'!AC96/'Population at Risk'!AC$5","v":1.4879606368839659E-3},{"$f":"'Population at Risk'!AD96/'Population at Risk'!AD$5","v":3.9662165159907862E-4},{"$f":"'Population at Risk'!AE96/'Population at Risk'!AE$5","v":3.4258155497919054E-4},{"$f":"'Population at Risk'!AF96/'Population at Risk'!AF$5","v":1.863148557577358E-3},{"$f":"'Population at Risk'!AG96/'Population at Risk'!AG$5","v":3.4258155497919054E-4},{"$f":"'Population at Risk'!AH96/'Population at Risk'!AH$5","v":1.2038480556801508E-3},{"$f":"'Population at Risk'!AI96/'Population at Risk'!AI$5","v":5.6554269402854572E-4},{"$f":"'Population at Risk'!AJ96/'Population at Risk'!AJ$5","v":7.5370052710092427E-4},{"$f":"'Population at Risk'!AK96/'Population at Risk'!AK$5","v":5.5770900435287567E-5},{"$f":"'Population at Risk'!AL96/'Population at Risk'!AL$5","v":1.9351196174411439E-3},{"$f":"'Population at Risk'!AM96/'Population at Risk'!AM$5","v":1.3164240767674891E-3},{"$f":"'Population at Risk'!AN96/'Population at Risk'!AN$5","v":0},{"$f":"'Population at Risk'!AO96/'Population at Risk'!AO$5","v":0},{"$f":"'Population at Risk'!AP96/'Population at Risk'!AP$5","v":2.8179611515521193E-4},{"$f":"'Population at Risk'!AQ96/'Population at Risk'!AQ$5","v":1.4322341467723448E-3},{"$f":"'Population at Risk'!AR96/'Population at Risk'!AR$5","v":9.6082904224895202E-4},{"$f":"'Population at Risk'!AS96/'Population at Risk'!AS$5","v":4.1920237376012612E-4},{"$f":"'Population at Risk'!AT96/'Population at Risk'!AT$5","v":0},{"$f":"'Population at Risk'!AU96/'Population at Risk'!AU$5","v":0},{"$f":"'Population at Risk'!AV96/'Population at Risk'!AV$5","v":1.0842370751865521E-3},{"$f":"'Population at Risk'!AW96/'Population at Risk'!AW$5","v":1.075403872217274E-3},{"$f":"'Population at Risk'!AX96/'Population at Risk'!AX$5","v":6.5838109002005758E-4},{"$f":"'Population at Risk'!AY96/'Population at Risk'!AY$5","v":9.6814502940834306E-4},{"$f":"'Population at Risk'!AZ96/'Population at Risk'!AZ$5","v":8.4556903030879368E-4},{"$f":"'Population at Risk'!BA96/'Population at Risk'!BA$5","v":1.3573021639290282E-3},{"$f":"'Population at Risk'!BB96/'Population at Risk'!BB$5","v":6.864475385653558E-4},{"$f":"'Population at Risk'!BC96/'Population at Risk'!BC$5","v":0},94]
[null,"Male 90+",{"$f":"'Population at Risk'!C97/'Population at Risk'!C$5","v":1.3688435678123299E-4},{"$f":"'Population at Risk'!D97/'Population at Risk'!D$5","v":1.0971654823393613E-4},{"$f":"'Population at Risk'!E97/'Population at Risk'!E$5","v":8.2444808115954835E-5},{"$f":"'Population at Risk'!F97/'Population at Risk'!F$5","v":1.1864169071195073E-4},{"$f":"'Population at Risk'!G97/'Population at Risk'!G$5","v":1.6556568172315552E-4},{"$f":"'Population at Risk'!H97/'Population at Risk'!H$5","v":6.2976573824277801E-4},{"$f":"'Population at Risk'!I97/'Population at Risk'!I$5","v":1.5444297980636226E-4},{"$f":"'Population at Risk'!J97/'Population at Risk'!J$5","v":3.7476756231293311E-4},{"$f":"'Population at Risk'!K97/'Population at Risk'!K$5","v":6.3527606451180111E-4},{"$f":"'Population at Risk'!L97/'Population at Risk'!L$5","v":2.0209927303761855E-4},{"$f":"'Population at Risk'!M97/'Population at Risk'!M$5","v":2.0209927303761855E-4},{"$f":"'Population at Risk'!N97/'Population at Risk'!N$5","v":6.4889319339504856E-4},{"$f":"'Population at Risk'!O97/'Population at Risk'!O$5","v":7.1099752463694879E-4},{"$f":"'Population at Risk'!P97/'Population at Risk'!P$5","v":1.2192455086147844E-4},{"$f":"'Population at Risk'!Q97/'Population at Risk'!Q$5","v":8.6216534495954132E-5},{"$f":"'Population at Risk'!R97/'Population at Risk'!R$5","v":1.7597968596574519E-4},{"$f":"'Population at Risk'!S97/'Population at Risk'!S$5","v":3.3138249420386866E-4},{"$f":"'Population at Risk'!T97/'Population at Risk'!T$5","v":2.7002980220351003E-4},{"$f":"'Population at Risk'!U97/'Population at Risk'!U$5","v":0},{"$f":"'Population at Risk'!V97/'Population at Risk'!V$5","v":3.8748361468009371E-4},{"$f":"'Population at Risk'!W97/'Population at Risk'!W$5","v":4.9595326805451808E-4},{"$f":"'Population at Risk'!X97/'Population at Risk'!X$5","v":4.9595326805451808E-4},{"$f":"'Population at Risk'!Y97/'Population at Risk'!Y$5","v":3.8147877423948387E-4},{"$f":"'Population at Risk'!Z97/'Population at Risk'!Z$5","v":7.3824869012718581E-4},{"$f":"'Population at Risk'!AA97/'Population at Risk'!AA$5","v":6.0630398822870068E-4},{"$f":"'Population at Risk'!AB97/'Population at Risk'!AB$5","v":9.6264522644351407E-5},{"$f":"'Population at Risk'!AC97/'Population at Risk'!AC$5","v":6.5610138163158167E-4},{"$f":"'Population at Risk'!AD97/'Population at Risk'!AD$5","v":1.2585110098816917E-4},{"$f":"'Population at Risk'!AE97/'Population at Risk'!AE$5","v":1.1068019468558463E-4},{"$f":"'Population at Risk'!AF97/'Population at Risk'!AF$5","v":8.3247063210903219E-4},{"$f":"'Population at Risk'!AG97/'Population at Risk'!AG$5","v":1.1068019468558463E-4},{"$f":"'Population at Risk'!AH97/'Population at Risk'!AH$5","v":5.1569569005491852E-4},{"$f":"'Population at Risk'!AI97/'Population at Risk'!AI$5","v":2.8137148886073687E-4},{"$f":"'Population at Risk'!AJ97/'Population at Risk'!AJ$5","v":4.0376813951835226E-4},{"$f":"'Population at Risk'!AK97/'Population at Risk'!AK$5","v":2.7885450217643783E-5},{"$f":"'Population at Risk'!AL97/'Population at Risk'!AL$5","v":7.092868717314153E-4},{"$f":"'Population at Risk'!AM97/'Population at Risk'!AM$5","v":5.9066283158063957E-4},{"$f":"'Population at Risk'!AN97/'Population at Risk'!AN$5","v":0},{"$f":"'Population at Risk'!AO97/'Population at Risk'!AO$5","v":0},{"$f":"'Population at Risk'!AP97/'Population at Risk'!AP$5","v":7.9255157387403348E-5},{"$f":"'Population at Risk'!AQ97/'Population at Risk'!AQ$5","v":5.9570800794955944E-4},{"$f":"'Population at Risk'!AR97/'Population at Risk'!AR$5","v":4.1378926611575456E-4},{"$f":"'Population at Risk'!AS97/'Population at Risk'!AS$5","v":1.5444297980636226E-4},{"$f":"'Population at Risk'!AT97/'Population at Risk'!AT$5","v":0},{"$f":"'Population at Risk'!AU97/'Population at Risk'!AU$5","v":0},{"$f":"'Population at Risk'!AV97/'Population at Risk'!AV$5","v":4.2960336941353944E-4},{"$f":"'Population at Risk'!AW97/'Population at Risk'!AW$5","v":4.3016154888690953E-4},{"$f":"'Population at Risk'!AX97/'Population at Risk'!AX$5","v":2.1498158041471268E-4},{"$f":"'Population at Risk'!AY97/'Population at Risk'!AY$5","v":4.0389800445629311E-4},{"$f":"'Population at Risk'!AZ97/'Population at Risk'!AZ$5","v":3.2033502513404815E-4},{"$f":"'Population at Risk'!BA97/'Population at Risk'!BA$5","v":8.1438129835741688E-4},{"$f":"'Population at Risk'!BB97/'Population at Risk'!BB$5","v":3.564246834858578E-4},{"$f":"'Population at Risk'!BC97/'Population at Risk'!BC$5","v":0},95]
["SIMD Q2","Female 0-4",{"$f":"'Population at Risk'!C98/'Population at Risk'!C$5","v":0},{"$f":"'Population at Risk'!D98/'Population at Risk'!D$5","v":0},{"$f":"'Population at Risk'!E98/'Population at Risk'!E$5","v":0},{"$f":"'Population at Risk'!F98/'Population at Risk'!F$5","v":0},{"$f":"'Population at Risk'!G98/'Population at Risk'!G$5","v":0},{"$f":"'Population at Risk'!H98/'Population at Risk'!H$5","v":0},{"$f":"'Population at Risk'!I98/'Population at Risk'!I$5","v":0},{"$f":"'Population at Risk'!J98/'Population at Risk'!J$5","v":0},{"$f":"'Population at Risk'!K98/'Population at Risk'!K$5","v":0},{"$f":"'Population at Risk'!L98/'Population at Risk'!L$5","v":0},{"$f":"'Population at Risk'!M98/'Population at Risk'!M$5","v":0},{"$f":"'Population at Risk'!N98/'Population at Risk'!N$5","v":0},{"$f":"'Population at Risk'!O98/'Population at Risk'!O$5","v":0},{"$f":"'Population at Risk'!P98/'Population at Risk'!P$5","v":0},{"$f":"'Population at Risk'!Q98/'Population at Risk'!Q$5","v":0},{"$f":"'Population at Risk'!R98/'Population at Risk'!R$5","v":0},{"$f":"'Population at Risk'!S98/'Population at Risk'!S$5","v":0},{"$f":"'Population at Risk'!T98/'Population at Risk'!T$5","v":0},{"$f":"'Population at Risk'!U98/'Population at Risk'!U$5","v":0},{"$f":"'Population at Risk'!V98/'Population at Risk'!V$5","v":0},{"$f":"'Population at Risk'!W98/'Population at Risk'!W$5","v":0},{"$f":"'Population at Risk'!X98/'Population at Risk'!X$5","v":0},{"$f":"'Population at Risk'!Y98/'Population at Risk'!Y$5","v":0},{"$f":"'Population at Risk'!Z98/'Population at Risk'!Z$5","v":0},{"$f":"'Population at Risk'!AA98/'Population at Risk'!AA$5","v":0},{"$f":"'Population at Risk'!AB98/'Population at Risk'!AB$5","v":0},{"$f":"'Population at Risk'!AC98/'Population at Risk'!AC$5","v":0},{"$f":"'Population at Risk'!AD98/'Population at Risk'!AD$5","v":0},{"$f":"'Population at Risk'!AE98/'Population at Risk'!AE$5","v":0},{"$f":"'Population at Risk'!AF98/'Population at Risk'!AF$5","v":0},{"$f":"'Population at Risk'!AG98/'Population at Risk'!AG$5","v":0},{"$f":"'Population at Risk'!AH98/'Population at Risk'!AH$5","v":0},{"$f":"'Population at Risk'!AI98/'Population at Risk'!AI$5","v":0},{"$f":"'Population at Risk'!AJ98/'Population at Risk'!AJ$5","v":0},{"$f":"'Population at Risk'!AK98/'Population at Risk'!AK$5","v":0},{"$f":"'Population at Risk'!AL98/'Population at Risk'!AL$5","v":0},{"$f":"'Population at Risk'!AM98/'Population at Risk'!AM$5","v":0},{"$f":"'Population at Risk'!AN98/'Population at Risk'!AN$5","v":0},{"$f":"'Population at Risk'!AO98/'Population at Risk'!AO$5","v":0},{"$f":"'Population at Risk'!AP98/'Population at Risk'!AP$5","v":0},{"$f":"'Population at Risk'!AQ98/'Population at Risk'!AQ$5","v":0},{"$f":"'Population at Risk'!AR98/'Population at Risk'!AR$5","v":0},{"$f":"'Population at Risk'!AS98/'Population at Risk'!AS$5","v":0},{"$f":"'Population at Risk'!AT98/'Population at Risk'!AT$5","v":0},{"$f":"'Population at Risk'!AU98/'Population at Risk'!AU$5","v":0},{"$f":"'Population at Risk'!AV98/'Population at Risk'!AV$5","v":0},{"$f":"'Population at Risk'!AW98/'Population at Risk'!AW$5","v":0},{"$f":"'Population at Risk'!AX98/'Population at Risk'!AX$5","v":0},{"$f":"'Population at Risk'!AY98/'Population at Risk'!AY$5","v":0},{"$f":"'Population at Risk'!AZ98/'Population at Risk'!AZ$5","v":0},{"$f":"'Population at Risk'!BA98/'Population at Risk'!BA$5","v":0},{"$f":"'Population at Risk'!BB98/'Population at Risk'!BB$5","v":0},{"$f":"'Population at Risk'!BC98/'Population at Risk'!BC$5","v":0},96]
[null,"Female 5-9",{"$f":"'Population at Risk'!C99/'Population at Risk'!C$5","v":0},{"$f":"'Population at Risk'!D99/'Population at Risk'!D$5","v":0},{"$f":"'Population at Risk'!E99/'Population at Risk'!E$5","v":0},{"$f":"'Population at Risk'!F99/'Population at Risk'!F$5","v":0},{"$f":"'Population at Risk'!G99/'Population at Risk'!G$5","v":0},{"$f":"'Population at Risk'!H99/'Population at Risk'!H$5","v":0},{"$f":"'Population at Risk'!I99/'Population at Risk'!I$5","v":0},{"$f":"'Population at Risk'!J99/'Population at Risk'!J$5","v":0},{"$f":"'Population at Risk'!K99/'Population at Risk'!K$5","v":0},{"$f":"'Population at Risk'!L99/'Population at Risk'!L$5","v":0},{"$f":"'Population at Risk'!M99/'Population at Risk'!M$5","v":0},{"$f":"'Population at Risk'!N99/'Population at Risk'!N$5","v":0},{"$f":"'Population at Risk'!O99/'Population at Risk'!O$5","v":0},{"$f":"'Population at Risk'!P99/'Population at Risk'!P$5","v":0},{"$f":"'Population at Risk'!Q99/'Population at Risk'!Q$5","v":0},{"$f":"'Population at Risk'!R99/'Population at Risk'!R$5","v":0},{"$f":"'Population at Risk'!S99/'Population at Risk'!S$5","v":0},{"$f":"'Population at Risk'!T99/'Population at Risk'!T$5","v":0},{"$f":"'Population at Risk'!U99/'Population at Risk'!U$5","v":0},{"$f":"'Population at Risk'!V99/'Population at Risk'!V$5","v":0},{"$f":"'Population at Risk'!W99/'Population at Risk'!W$5","v":0},{"$f":"'Population at Risk'!X99/'Population at Risk'!X$5","v":0},{"$f":"'Population at Risk'!Y99/'Population at Risk'!Y$5","v":0},{"$f":"'Population at Risk'!Z99/'Population at Risk'!Z$5","v":0},{"$f":"'Population at Risk'!AA99/'Population at Risk'!AA$5","v":0},{"$f":"'Population at Risk'!AB99/'Population at Risk'!AB$5","v":0},{"$f":"'Population at Risk'!AC99/'Population at Risk'!AC$5","v":0},{"$f":"'Population at Risk'!AD99/'Population at Risk'!AD$5","v":0},{"$f":"'Population at Risk'!AE99/'Population at Risk'!AE$5","v":0},{"$f":"'Population at Risk'!AF99/'Population at Risk'!AF$5","v":0},{"$f":"'Population at Risk'!AG99/'Population at Risk'!AG$5","v":0},{"$f":"'Population at Risk'!AH99/'Population at Risk'!AH$5","v":0},{"$f":"'Population at Risk'!AI99/'Population at Risk'!AI$5","v":0},{"$f":"'Population at Risk'!AJ99/'Population at Risk'!AJ$5","v":0},{"$f":"'Population at Risk'!AK99/'Population at Risk'!AK$5","v":0},{"$f":"'Population at Risk'!AL99/'Population at Risk'!AL$5","v":0},{"$f":"'Population at Risk'!AM99/'Population at Risk'!AM$5","v":0},{"$f":"'Population at Risk'!AN99/'Population at Risk'!AN$5","v":0},{"$f":"'Population at Risk'!AO99/'Population at Risk'!AO$5","v":0},{"$f":"'Population at Risk'!AP99/'Population at Risk'!AP$5","v":0},{"$f":"'Population at Risk'!AQ99/'Population at Risk'!AQ$5","v":0},{"$f":"'Population at Risk'!AR99/'Population at Risk'!AR$5","v":0},{"$f":"'Population at Risk'!AS99/'Population at Risk'!AS$5","v":0},{"$f":"'Population at Risk'!AT99/'Population at Risk'!AT$5","v":0},{"$f":"'Population at Risk'!AU99/'Population at Risk'!AU$5","v":0},{"$f":"'Population at Risk'!AV99/'Population at Risk'!AV$5","v":0},{"$f":"'Population at Risk'!AW99/'Population at Risk'!AW$5","v":0},{"$f":"'Population at Risk'!AX99/'Population at Risk'!AX$5","v":0},{"$f":"'Population at Risk'!AY99/'Population at Risk'!AY$5","v":0},{"$f":"'Population at Risk'!AZ99/'Population at Risk'!AZ$5","v":0},{"$f":"'Population at Risk'!BA99/'Population at Risk'!BA$5","v":0},{"$f":"'Population at Risk'!BB99/'Population at Risk'!BB$5","v":0},{"$f":"'Population at Risk'!BC99/'Population at Risk'!BC$5","v":0},97]
[null,"Female 10-15",{"$f":"'Population at Risk'!C100/'Population at Risk'!C$5","v":0},{"$f":"'Population at Risk'!D100/'Population at Risk'!D$5","v":0},{"$f":"'Population at Risk'!E100/'Population at Risk'!E$5","v":0},{"$f":"'Population at Risk'!F100/'Population at Risk'!F$5","v":0},{"$f":"'Population at Risk'!G100/'Population at Risk'!G$5","v":0},{"$f":"'Population at Risk'!H100/'Population at Risk'!H$5","v":0},{"$f":"'Population at Risk'!I100/'Population at Risk'!I$5","v":0},{"$f":"'Population at Risk'!J100/'Population at Risk'!J$5","v":0},{"$f":"'Population at Risk'!K100/'Population at Risk'!K$5","v":0},{"$f":"'Population at Risk'!L100/'Population at Risk'!L$5","v":0},{"$f":"'Population at Risk'!M100/'Population at Risk'!M$5","v":0},{"$f":"'Population at Risk'!N100/'Population at Risk'!N$5","v":0},{"$f":"'Population at Risk'!O100/'Population at Risk'!O$5","v":0},{"$f":"'Population at Risk'!P100/'Population at Risk'!P$5","v":0},{"$f":"'Population at Risk'!Q100/'Population at Risk'!Q$5","v":0},{"$f":"'Population at Risk'!R100/'Population at Risk'!R$5","v":0},{"$f":"'Population at Risk'!S100/'Population at Risk'!S$5","v":0},{"$f":"'Population at Risk'!T100/'Population at Risk'!T$5","v":0},{"$f":"'Population at Risk'!U100/'Population at Risk'!U$5","v":0},{"$f":"'Population at Risk'!V100/'Population at Risk'!V$5","v":0},{"$f":"'Population at Risk'!W100/'Population at Risk'!W$5","v":0},{"$f":"'Population at Risk'!X100/'Population at Risk'!X$5","v":0},{"$f":"'Population at Risk'!Y100/'Population at Risk'!Y$5","v":0},{"$f":"'Population at Risk'!Z100/'Population at Risk'!Z$5","v":0},{"$f":"'Population at Risk'!AA100/'Population at Risk'!AA$5","v":0},{"$f":"'Population at Risk'!AB100/'Population at Risk'!AB$5","v":0},{"$f":"'Population at Risk'!AC100/'Population at Risk'!AC$5","v":0},{"$f":"'Population at Risk'!AD100/'Population at Risk'!AD$5","v":0},{"$f":"'Population at Risk'!AE100/'Population at Risk'!AE$5","v":0},{"$f":"'Population at Risk'!AF100/'Population at Risk'!AF$5","v":0},{"$f":"'Population at Risk'!AG100/'Population at Risk'!AG$5","v":0},{"$f":"'Population at Risk'!AH100/'Population at Risk'!AH$5","v":0},{"$f":"'Population at Risk'!AI100/'Population at Risk'!AI$5","v":0},{"$f":"'Population at Risk'!AJ100/'Population at Risk'!AJ$5","v":0},{"$f":"'Population at Risk'!AK100/'Population at Risk'!AK$5","v":0},{"$f":"'Population at Risk'!AL100/'Population at Risk'!AL$5","v":0},{"$f":"'Population at Risk'!AM100/'Population at Risk'!AM$5","v":0},{"$f":"'Population at Risk'!AN100/'Population at Risk'!AN$5","v":0},{"$f":"'Population at Risk'!AO100/'Population at Risk'!AO$5","v":0},{"$f":"'Population at Risk'!AP100/'Population at Risk'!AP$5","v":0},{"$f":"'Population at Risk'!AQ100/'Population at Risk'!AQ$5","v":0},{"$f":"'Population at Risk'!AR100/'Population at Risk'!AR$5","v":0},{"$f":"'Population at Risk'!AS100/'Population at Risk'!AS$5","v":0},{"$f":"'Population at Risk'!AT100/'Population at Risk'!AT$5","v":0},{"$f":"'Population at Risk'!AU100/'Population at Risk'!AU$5","v":0},{"$f":"'Population at Risk'!AV100/'Population at Risk'!AV$5","v":0},{"$f":"'Population at Risk'!AW100/'Population at Risk'!AW$5","v":0},{"$f":"'Population at Risk'!AX100/'Population at Risk'!AX$5","v":0},{"$f":"'Population at Risk'!AY100/'Population at Risk'!AY$5","v":0},{"$f":"'Population at Risk'!AZ100/'Population at Risk'!AZ$5","v":0},{"$f":"'Population at Risk'!BA100/'Population at Risk'!BA$5","v":0},{"$f":"'Population at Risk'!BB100/'Population at Risk'!BB$5","v":0},{"$f":"'Population at Risk'!BC100/'Population at Risk'!BC$5","v":0},98]
[null,"Female 16-19",{"$f":"'Population at Risk'!C101/'Population at Risk'!C$5","v":5.8816214693531406E-3},{"$f":"'Population at Risk'!D101/'Population at Risk'!D$5","v":4.123151692871932E-3},{"$f":"'Population at Risk'!E101/'Population at Risk'!E$5","v":2.3579548178265302E-3},{"$f":"'Population at Risk'!F101/'Population at Risk'!F$5","v":4.675416007902557E-3},{"$f":"'Population at Risk'!G101/'Population at Risk'!G$5","v":4.3427021941596757E-3},{"$f":"'Population at Risk'!H101/'Population at Risk'!H$5","v":6.0599929331980633E-3},{"$f":"'Population at Risk'!I101/'Population at Risk'!I$5","v":4.4731489485932384E-3},{"$f":"'Population at Risk'!J101/'Population at Risk'!J$5","v":6.0262431477424118E-3},{"$f":"'Population at Risk'!K101/'Population at Risk'!K$5","v":8.0728158387325492E-3},{"$f":"'Population at Risk'!L101/'Population at Risk'!L$5","v":7.6967666698962052E-3},{"$f":"'Population at Risk'!M101/'Population at Risk'!M$5","v":7.6967666698962052E-3},{"$f":"'Population at Risk'!N101/'Population at Risk'!N$5","v":5.3354731825681354E-3},{"$f":"'Population at Risk'!O101/'Population at Risk'!O$5","v":6.7841714229767806E-3},{"$f":"'Population at Risk'!P101/'Population at Risk'!P$5","v":5.447631923005178E-3},{"$f":"'Population at Risk'!Q101/'Population at Risk'!Q$5","v":7.6154619501384666E-3},{"$f":"'Population at Risk'!R101/'Population at Risk'!R$5","v":3.8527689544906318E-3},{"$f":"'Population at Risk'!S101/'Population at Risk'!S$5","v":5.9160002596563401E-3},{"$f":"'Population at Risk'!T101/'Population at Risk'!T$5","v":4.4160014434705634E-3},{"$f":"'Population at Risk'!U101/'Population at Risk'!U$5","v":5.543610692955574E-3},{"$f":"'Population at Risk'!V101/'Population at Risk'!V$5","v":7.7540815715878989E-3},{"$f":"'Population at Risk'!W101/'Population at Risk'!W$5","v":5.544589818978111E-3},{"$f":"'Population at Risk'!X101/'Population at Risk'!X$5","v":5.544589818978111E-3},{"$f":"'Population at Risk'!Y101/'Population at Risk'!Y$5","v":6.9381527170369805E-3},{"$f":"'Population at Risk'!Z101/'Population at Risk'!Z$5","v":4.2789924201137725E-3},{"$f":"'Population at Risk'!AA101/'Population at Risk'!AA$5","v":5.6206435550047954E-3},{"$f":"'Population at Risk'!AB101/'Population at Risk'!AB$5","v":4.1488045931086697E-3},{"$f":"'Population at Risk'!AC101/'Population at Risk'!AC$5","v":4.6774652164963725E-3},{"$f":"'Population at Risk'!AD101/'Population at Risk'!AD$5","v":5.2884496835779908E-3},{"$f":"'Population at Risk'!AE101/'Population at Risk'!AE$5","v":5.6497237114624173E-3},{"$f":"'Population at Risk'!AF101/'Population at Risk'!AF$5","v":3.4190464770197117E-3},{"$f":"'Population at Risk'!AG101/'Population at Risk'!AG$5","v":5.6497237114624173E-3},{"$f":"'Population at Risk'!AH101/'Population at Risk'!AH$5","v":7.3367933027480136E-3},{"$f":"'Population at Risk'!AI101/'Population at Risk'!AI$5","v":6.2626298595738735E-3},{"$f":"'Population at Risk'!AJ101/'Population at Risk'!AJ$5","v":1.1457478128100759E-2},{"$f":"'Population at Risk'!AK101/'Population at Risk'!AK$5","v":4.2792029120504102E-3},{"$f":"'Population at Risk'!AL101/'Population at Risk'!AL$5","v":4.8446410864656465E-3},{"$f":"'Population at Risk'!AM101/'Population at Risk'!AM$5","v":7.7282076406291218E-3},{"$f":"'Population at Risk'!AN101/'Population at Risk'!AN$5","v":3.2962193744353802E-3},{"$f":"'Population at Risk'!AO101/'Population at Risk'!AO$5","v":3.2962193744353802E-3},{"$f":"'Population at Risk'!AP101/'Population at Risk'!AP$5","v":3.5707401465545122E-3},{"$f":"'Population at Risk'!AQ101/'Population at Risk'!AQ$5","v":5.3594125497096416E-3},{"$f":"'Population at Risk'!AR101/'Population at Risk'!AR$5","v":5.593130883087237E-3},{"$f":"'Population at Risk'!AS101/'Population at Risk'!AS$5","v":4.4731489485932384E-3},{"$f":"'Population at Risk'!AT101/'Population at Risk'!AT$5","v":9.2181183825955154E-4},{"$f":"'Population at Risk'!AU101/'Population at Risk'!AU$5","v":9.2181183825955154E-4},{"$f":"'Population at Risk'!AV101/'Population at Risk'!AV$5","v":6.8285626903262803E-3},{"$f":"'Population at Risk'!AW101/'Population at Risk'!AW$5","v":6.8902071244552375E-3},{"$f":"'Population at Risk'!AX101/'Population at Risk'!AX$5","v":4.7709534961735533E-3},{"$f":"'Population at Risk'!AY101/'Population at Risk'!AY$5","v":5.0392518378042225E-3},{"$f":"'Population at Risk'!AZ101/'Population at Risk'!AZ$5","v":4.5805323075894079E-3},{"$f":"'Population at Risk'!BA101/'Population at Risk'!BA$5","v":7.3103094479952694E-3},{"$f":"'Population at Risk'!BB101/'Population at Risk'!BB$5","v":7.9551969608997065E-3},{"$f":"'Population at Risk'!BC101/'Population at Risk'!BC$5","v":5.543610692955574E-3},99]
[null,"Female 20-24",{"$f":"'Population at Risk'!C102/'Population at Risk'!C$5","v":1.3449839293317452E-2},{"$f":"'Population at Risk'!D102/'Population at Risk'!D$5","v":8.5658322799753699E-3},{"$f":"'Population at Risk'!E102/'Population at Risk'!E$5","v":3.663141296623461E-3},{"$f":"'Population at Risk'!F102/'Population at Risk'!F$5","v":9.0971272711902473E-3},{"$f":"'Population at Risk'!G102/'Population at Risk'!G$5","v":5.640876515545486E-3},{"$f":"'Population at Risk'!H102/'Population at Risk'!H$5","v":8.2090429447003541E-3},{"$f":"'Population at Risk'!I102/'Population at Risk'!I$5","v":6.833291073403483E-3},{"$f":"'Population at Risk'!J102/'Population at Risk'!J$5","v":9.6270633567649682E-3},{"$f":"'Population at Risk'!K102/'Population at Risk'!K$5","v":9.2260752442657711E-3},{"$f":"'Population at Risk'!L102/'Population at Risk'!L$5","v":9.6209583373702556E-3},{"$f":"'Population at Risk'!M102/'Population at Risk'!M$5","v":9.6209583373702556E-3},{"$f":"'Population at Risk'!N102/'Population at Risk'!N$5","v":1.29473084265613E-2},{"$f":"'Population at Risk'!O102/'Population at Risk'!O$5","v":8.789926452378612E-3},{"$f":"'Population at Risk'!P102/'Population at Risk'!P$5","v":7.799673561071481E-3},{"$f":"'Population at Risk'!Q102/'Population at Risk'!Q$5","v":1.2816601724055498E-2},{"$f":"'Population at Risk'!R102/'Population at Risk'!R$5","v":4.8921205794229877E-3},{"$f":"'Population at Risk'!S102/'Population at Risk'!S$5","v":1.0085114597892087E-2},{"$f":"'Population at Risk'!T102/'Population at Risk'!T$5","v":1.1284725980076708E-2},{"$f":"'Population at Risk'!U102/'Population at Risk'!U$5","v":6.7650842354712096E-3},{"$f":"'Population at Risk'!V102/'Population at Risk'!V$5","v":1.0875746273174416E-2},{"$f":"'Population at Risk'!W102/'Population at Risk'!W$5","v":7.499618599080219E-3},{"$f":"'Population at Risk'!X102/'Population at Risk'!X$5","v":7.499618599080219E-3},{"$f":"'Population at Risk'!Y102/'Population at Risk'!Y$5","v":1.0286086726527841E-2},{"$f":"'Population at Risk'!Z102/'Population at Risk'!Z$5","v":8.1409568409328247E-3},{"$f":"'Population at Risk'!AA102/'Population at Risk'!AA$5","v":8.4688797328190592E-3},{"$f":"'Population at Risk'!AB102/'Population at Risk'!AB$5","v":8.5851500986110097E-3},{"$f":"'Population at Risk'!AC102/'Population at Risk'!AC$5","v":7.6129920866113282E-3},{"$f":"'Population at Risk'!AD102/'Population at Risk'!AD$5","v":6.8049275815345233E-3},{"$f":"'Population at Risk'!AE102/'Population at Risk'!AE$5","v":7.2495932264115453E-3},{"$f":"'Population at Risk'!AF102/'Population at Risk'!AF$5","v":4.2775083630246609E-3},{"$f":"'Population at Risk'!AG102/'Population at Risk'!AG$5","v":7.2495932264115453E-3},{"$f":"'Population at Risk'!AH102/'Population at Risk'!AH$5","v":1.0026200663724663E-2},{"$f":"'Population at Risk'!AI102/'Population at Risk'!AI$5","v":1.1636198344491165E-2},{"$f":"'Population at Risk'!AJ102/'Population at Risk'!AJ$5","v":1.4367074547473714E-2},{"$f":"'Population at Risk'!AK102/'Population at Risk'!AK$5","v":8.683346055109592E-3},{"$f":"'Population at Risk'!AL102/'Population at Risk'!AL$5","v":6.580421582685958E-3},{"$f":"'Population at Risk'!AM102/'Population at Risk'!AM$5","v":9.8573358840629184E-3},{"$f":"'Population at Risk'!AN102/'Population at Risk'!AN$5","v":5.9197409173533362E-3},{"$f":"'Population at Risk'!AO102/'Population at Risk'!AO$5","v":5.9197409173533362E-3},{"$f":"'Population at Risk'!AP102/'Population at Risk'!AP$5","v":5.6816196807055221E-3},{"$f":"'Population at Risk'!AQ102/'Population at Risk'!AQ$5","v":6.8146172817500072E-3},{"$f":"'Population at Risk'!AR102/'Population at Risk'!AR$5","v":8.9261250142742936E-3},{"$f":"'Population at Risk'!AS102/'Population at Risk'!AS$5","v":6.833291073403483E-3},{"$f":"'Population at Risk'!AT102/'Population at Risk'!AT$5","v":1.7119362710534527E-3},{"$f":"'Population at Risk'!AU102/'Population at Risk'!AU$5","v":1.7119362710534527E-3},{"$f":"'Population at Risk'!AV102/'Population at Risk'!AV$5","v":9.6928926778792508E-3},{"$f":"'Population at Risk'!AW102/'Population at Risk'!AW$5","v":1.021886779238845E-2},{"$f":"'Population at Risk'!AX102/'Population at Risk'!AX$5","v":9.8730141750468479E-3},{"$f":"'Population at Risk'!AY102/'Population at Risk'!AY$5","v":8.5670670114116176E-3},{"$f":"'Population at Risk'!AZ102/'Population at Risk'!AZ$5","v":9.5360411484747745E-3},{"$f":"'Population at Risk'!BA102/'Population at Risk'!BA$5","v":9.9075597718064137E-3},{"$f":"'Population at Risk'!BB102/'Population at Risk'!BB$5","v":1.0609393716441522E-2},{"$f":"'Population at Risk'!BC102/'Population at Risk'!BC$5","v":6.7650842354712096E-3},100]
[null,"Female 25-29",{"$f":"'Population at Risk'!C103/'Population at Risk'!C$5","v":1.5314294899869437E-2},{"$f":"'Population at Risk'!D103/'Population at Risk'!D$5","v":9.7149073419232831E-3},{"$f":"'Population at Risk'!E103/'Population at Risk'!E$5","v":4.0940990962262209E-3},{"$f":"'Population at Risk'!F103/'Population at Risk'!F$5","v":9.3749943724350995E-3},{"$f":"'Population at Risk'!G103/'Population at Risk'!G$5","v":6.6145072565848432E-3},{"$f":"'Population at Risk'!H103/'Population at Risk'!H$5","v":8.8225885205032977E-3},{"$f":"'Population at Risk'!I103/'Population at Risk'!I$5","v":6.9197884287630204E-3},{"$f":"'Population at Risk'!J103/'Population at Risk'!J$5","v":9.5057922098289744E-3},{"$f":"'Population at Risk'!K103/'Population at Risk'!K$5","v":1.0649246425562087E-2},{"$f":"'Population at Risk'!L103/'Population at Risk'!L$5","v":9.3336355996931353E-3},{"$f":"'Population at Risk'!M103/'Population at Risk'!M$5","v":9.3336355996931353E-3},{"$f":"'Population at Risk'!N103/'Population at Risk'!N$5","v":1.1956891248958832E-2},{"$f":"'Population at Risk'!O103/'Population at Risk'!O$5","v":9.9894466170208831E-3},{"$f":"'Population at Risk'!P103/'Population at Risk'!P$5","v":8.8618859137465852E-3},{"$f":"'Population at Risk'!Q103/'Population at Risk'!Q$5","v":1.2789009470612967E-2},{"$f":"'Population at Risk'!R103/'Population at Risk'!R$5","v":4.5516433229796302E-3},{"$f":"'Population at Risk'!S103/'Population at Risk'!S$5","v":1.1163661575722211E-2},{"$f":"'Population at Risk'!T103/'Population at Risk'!T$5","v":1.276680865630998E-2},{"$f":"'Population at Risk'!U103/'Population at Risk'!U$5","v":7.3758210067290265E-3},{"$f":"'Population at Risk'!V103/'Population at Risk'!V$5","v":1.1802229647174693E-2},{"$f":"'Population at Risk'!W103/'Population at Risk'!W$5","v":8.5216463948713031E-3},{"$f":"'Population at Risk'!X103/'Population at Risk'!X$5","v":8.5216463948713031E-3},{"$f":"'Population at Risk'!Y103/'Population at Risk'!Y$5","v":1.0717794006699031E-2},{"$f":"'Population at Risk'!Z103/'Population at Risk'!Z$5","v":1.059322405046075E-2},{"$f":"'Population at Risk'!AA103/'Population at Risk'!AA$5","v":9.7639558276822937E-3},{"$f":"'Population at Risk'!AB103/'Population at Risk'!AB$5","v":9.388724255568321E-3},{"$f":"'Population at Risk'!AC103/'Population at Risk'!AC$5","v":9.3446231054993625E-3},{"$f":"'Population at Risk'!AD103/'Population at Risk'!AD$5","v":7.3773445909040307E-3},{"$f":"'Population at Risk'!AE103/'Population at Risk'!AE$5","v":7.6687472321731237E-3},{"$f":"'Population at Risk'!AF103/'Population at Risk'!AF$5","v":5.2839809190304635E-3},{"$f":"'Population at Risk'!AG103/'Population at Risk'!AG$5","v":7.6687472321731237E-3},{"$f":"'Population at Risk'!AH103/'Population at Risk'!AH$5","v":1.0526948059387678E-2},{"$f":"'Population at Risk'!AI103/'Population at Risk'!AI$5","v":1.286551777611508E-2},{"$f":"'Population at Risk'!AJ103/'Population at Risk'!AJ$5","v":1.5090704745037972E-2},{"$f":"'Population at Risk'!AK103/'Population at Risk'!AK$5","v":7.7306767936677128E-3},{"$f":"'Population at Risk'!AL103/'Population at Risk'!AL$5","v":6.5890573065477505E-3},{"$f":"'Population at Risk'!AM103/'Population at Risk'!AM$5","v":1.0673794979065629E-2},{"$f":"'Population at Risk'!AN103/'Population at Risk'!AN$5","v":6.726978315174245E-3},{"$f":"'Population at Risk'!AO103/'Population at Risk'!AO$5","v":6.726978315174245E-3},{"$f":"'Population at Risk'!AP103/'Population at Risk'!AP$5","v":6.33263860245303E-3},{"$f":"'Population at Risk'!AQ103/'Population at Risk'!AQ$5","v":7.6238530839578206E-3},{"$f":"'Population at Risk'!AR103/'Population at Risk'!AR$5","v":9.8238417526133257E-3},{"$f":"'Population at Risk'!AS103/'Population at Risk'!AS$5","v":6.9197884287630204E-3},{"$f":"'Population at Risk'!AT103/'Population at Risk'!AT$5","v":1.5144051628549777E-3},{"$f":"'Population at Risk'!AU103/'Population at Risk'!AU$5","v":1.5144051628549777E-3},{"$f":"'Population at Risk'!AV103/'Population at Risk'!AV$5","v":1.0426161154692812E-2},{"$f":"'Population at Risk'!AW103/'Population at Risk'!AW$5","v":1.0359402319985146E-2},{"$f":"'Population at Risk'!AX103/'Population at Risk'!AX$5","v":8.8044409945158622E-3},{"$f":"'Population at Risk'!AY103/'Population at Risk'!AY$5","v":8.994064813404444E-3},{"$f":"'Population at Risk'!AZ103/'Population at Risk'!AZ$5","v":9.4229016772216824E-3},{"$f":"'Population at Risk'!BA103/'Population at Risk'!BA$5","v":1.0807095249809297E-2},{"$f":"'Population at Risk'!BB103/'Population at Risk'!BB$5","v":1.2080661555864425E-2},{"$f":"'Population at Risk'!BC103/'Population at Risk'!BC$5","v":7.3758210067290265E-3},101]
[null,"Female 30-34",{"$f":"'Population at Risk'!C104/'Population at Risk'!C$5","v":1.3045056168210771E-2},{"$f":"'Population at Risk'!D104/'Population at Risk'!D$5","v":8.4337193717834956E-3},{"$f":"'Population at Risk'!E104/'Population at Risk'!E$5","v":3.8047417164929391E-3},{"$f":"'Population at Risk'!F104/'Population at Risk'!F$5","v":8.5293118903855426E-3},{"$f":"'Population at Risk'!G104/'Population at Risk'!G$5","v":5.5017864096827207E-3},{"$f":"'Population at Risk'!H104/'Population at Risk'!H$5","v":8.3862165334348954E-3},{"$f":"'Population at Risk'!I104/'Population at Risk'!I$5","v":5.8571066343458432E-3},{"$f":"'Population at Risk'!J104/'Population at Risk'!J$5","v":7.8919531006038397E-3},{"$f":"'Population at Risk'!K104/'Population at Risk'!K$5","v":9.8885859665933662E-3},{"$f":"'Population at Risk'!L104/'Population at Risk'!L$5","v":9.4990638425981443E-3},{"$f":"'Population at Risk'!M104/'Population at Risk'!M$5","v":9.4990638425981443E-3},{"$f":"'Population at Risk'!N104/'Population at Risk'!N$5","v":8.8338822453897584E-3},{"$f":"'Population at Risk'!O104/'Population at Risk'!O$5","v":9.4978399921674932E-3},{"$f":"'Population at Risk'!P104/'Population at Risk'!P$5","v":7.830022485433628E-3},{"$f":"'Population at Risk'!Q104/'Population at Risk'!Q$5","v":1.3147708765365865E-2},{"$f":"'Population at Risk'!R104/'Population at Risk'!R$5","v":4.4082844781613735E-3},{"$f":"'Population at Risk'!S104/'Population at Risk'!S$5","v":1.0456302843508947E-2},{"$f":"'Population at Risk'!T104/'Population at Risk'!T$5","v":1.0712790550287246E-2},{"$f":"'Population at Risk'!U104/'Population at Risk'!U$5","v":7.0469627452825097E-3},{"$f":"'Population at Risk'!V104/'Population at Risk'!V$5","v":1.2561779079913659E-2},{"$f":"'Population at Risk'!W104/'Population at Risk'!W$5","v":8.4433028007688503E-3},{"$f":"'Population at Risk'!X104/'Population at Risk'!X$5","v":8.4433028007688503E-3},{"$f":"'Population at Risk'!Y104/'Population at Risk'!Y$5","v":1.0356569547780281E-2},{"$f":"'Population at Risk'!Z104/'Population at Risk'!Z$5","v":8.8003600876808852E-3},{"$f":"'Population at Risk'!AA104/'Population at Risk'!AA$5","v":9.2624214796972505E-3},{"$f":"'Population at Risk'!AB104/'Population at Risk'!AB$5","v":8.4105716875148527E-3},{"$f":"'Population at Risk'!AC104/'Population at Risk'!AC$5","v":8.2396775982089034E-3},{"$f":"'Population at Risk'!AD104/'Population at Risk'!AD$5","v":7.3388986723642883E-3},{"$f":"'Population at Risk'!AE104/'Population at Risk'!AE$5","v":8.0406726175672009E-3},{"$f":"'Population at Risk'!AF104/'Population at Risk'!AF$5","v":5.60960439303234E-3},{"$f":"'Population at Risk'!AG104/'Population at Risk'!AG$5","v":8.0406726175672009E-3},{"$f":"'Population at Risk'!AH104/'Population at Risk'!AH$5","v":1.1123343833997563E-2},{"$f":"'Population at Risk'!AI104/'Population at Risk'!AI$5","v":1.192628009812691E-2},{"$f":"'Population at Risk'!AJ104/'Population at Risk'!AJ$5","v":1.5980166862877374E-2},{"$f":"'Population at Risk'!AK104/'Population at Risk'!AK$5","v":8.2929078332071825E-3},{"$f":"'Population at Risk'!AL104/'Population at Risk'!AL$5","v":6.7876789553689802E-3},{"$f":"'Population at Risk'!AM104/'Population at Risk'!AM$5","v":1.126854319913226E-2},{"$f":"'Population at Risk'!AN104/'Population at Risk'!AN$5","v":4.1707265554080325E-3},{"$f":"'Population at Risk'!AO104/'Population at Risk'!AO$5","v":4.1707265554080325E-3},{"$f":"'Population at Risk'!AP104/'Population at Risk'!AP$5","v":6.8455626014056114E-3},{"$f":"'Population at Risk'!AQ104/'Population at Risk'!AQ$5","v":7.3186150182127686E-3},{"$f":"'Population at Risk'!AR104/'Population at Risk'!AR$5","v":9.2171390903243774E-3},{"$f":"'Population at Risk'!AS104/'Population at Risk'!AS$5","v":5.8571066343458432E-3},{"$f":"'Population at Risk'!AT104/'Population at Risk'!AT$5","v":1.0534992437252018E-3},{"$f":"'Population at Risk'!AU104/'Population at Risk'!AU$5","v":1.0534992437252018E-3},{"$f":"'Population at Risk'!AV104/'Population at Risk'!AV$5","v":9.2116852399703516E-3},{"$f":"'Population at Risk'!AW104/'Population at Risk'!AW$5","v":1.0957677880325374E-2},{"$f":"'Population at Risk'!AX104/'Population at Risk'!AX$5","v":6.6672946334538925E-3},{"$f":"'Population at Risk'!AY104/'Population at Risk'!AY$5","v":8.2637630171389365E-3},{"$f":"'Population at Risk'!AZ104/'Population at Risk'!AZ$5","v":8.1007861417212827E-3},{"$f":"'Population at Risk'!BA104/'Population at Risk'!BA$5","v":1.1199850176824641E-2},{"$f":"'Population at Risk'!BB104/'Population at Risk'!BB$5","v":1.2546439816586246E-2},{"$f":"'Population at Risk'!BC104/'Population at Risk'!BC$5","v":7.0469627452825097E-3},102]
[null,"Female 35-39",{"$f":"'Population at Risk'!C105/'Population at Risk'!C$5","v":9.7515934684791385E-3},{"$f":"'Population at Risk'!D105/'Population at Risk'!D$5","v":6.7807718227782055E-3},{"$f":"'Population at Risk'!E105/'Population at Risk'!E$5","v":3.7985851764986145E-3},{"$f":"'Population at Risk'!F105/'Population at Risk'!F$5","v":6.837946926286427E-3},{"$f":"'Population at Risk'!G105/'Population at Risk'!G$5","v":5.7645121652012774E-3},{"$f":"'Population at Risk'!H105/'Population at Risk'!H$5","v":8.445274396346408E-3},{"$f":"'Population at Risk'!I105/'Population at Risk'!I$5","v":5.6223280983699539E-3},{"$f":"'Population at Risk'!J105/'Population at Risk'!J$5","v":7.9106102001324542E-3},{"$f":"'Population at Risk'!K105/'Population at Risk'!K$5","v":9.9867357032344915E-3},{"$f":"'Population at Risk'!L105/'Population at Risk'!L$5","v":9.2726883523070805E-3},{"$f":"'Population at Risk'!M105/'Population at Risk'!M$5","v":9.2726883523070805E-3},{"$f":"'Population at Risk'!N105/'Population at Risk'!N$5","v":6.8849968313978039E-3},{"$f":"'Population at Risk'!O105/'Population at Risk'!O$5","v":9.4388471971850862E-3},{"$f":"'Population at Risk'!P105/'Population at Risk'!P$5","v":8.7708391406601475E-3},{"$f":"'Population at Risk'!Q105/'Population at Risk'!Q$5","v":1.2402717922417539E-2},{"$f":"'Population at Risk'!R105/'Population at Risk'!R$5","v":4.8204411570138602E-3},{"$f":"'Population at Risk'!S105/'Population at Risk'!S$5","v":8.7084164146877703E-3},{"$f":"'Population at Risk'!T105/'Population at Risk'!T$5","v":7.2371829384897408E-3},{"$f":"'Population at Risk'!U105/'Population at Risk'!U$5","v":7.1879020001881597E-3},{"$f":"'Population at Risk'!V105/'Population at Risk'!V$5","v":1.2244604591517166E-2},{"$f":"'Population at Risk'!W105/'Population at Risk'!W$5","v":7.958996946317326E-3},{"$f":"'Population at Risk'!X105/'Population at Risk'!X$5","v":7.958996946317326E-3},{"$f":"'Population at Risk'!Y105/'Population at Risk'!Y$5","v":1.0197983199962292E-2},{"$f":"'Population at Risk'!Z105/'Population at Risk'!Z$5","v":6.5708642452975757E-3},{"$f":"'Population at Risk'!AA105/'Population at Risk'!AA$5","v":7.8961727386345458E-3},{"$f":"'Population at Risk'!AB105/'Population at Risk'!AB$5","v":6.7931540553004578E-3},{"$f":"'Population at Risk'!AC105/'Population at Risk'!AC$5","v":6.7461458444179716E-3},{"$f":"'Population at Risk'!AD105/'Population at Risk'!AD$5","v":6.9416241807869431E-3},{"$f":"'Population at Risk'!AE105/'Population at Risk'!AE$5","v":7.3912790875140504E-3},{"$f":"'Population at Risk'!AF105/'Population at Risk'!AF$5","v":3.6706646160211622E-3},{"$f":"'Population at Risk'!AG105/'Population at Risk'!AG$5","v":7.3912790875140504E-3},{"$f":"'Population at Risk'!AH105/'Population at Risk'!AH$5","v":9.9886914955102032E-3},{"$f":"'Population at Risk'!AI105/'Population at Risk'!AI$5","v":9.4300090073803893E-3},{"$f":"'Population at Risk'!AJ105/'Population at Risk'!AJ$5","v":1.5452519843820102E-2},{"$f":"'Population at Risk'!AK105/'Population at Risk'!AK$5","v":6.8560951766063142E-3},{"$f":"'Population at Risk'!AL105/'Population at Risk'!AL$5","v":6.6495073735802993E-3},{"$f":"'Population at Risk'!AM105/'Population at Risk'!AM$5","v":1.0364103598202532E-2},{"$f":"'Population at Risk'!AN105/'Population at Risk'!AN$5","v":4.7761546037737145E-3},{"$f":"'Population at Risk'!AO105/'Population at Risk'!AO$5","v":4.7761546037737145E-3},{"$f":"'Population at Risk'!AP105/'Population at Risk'!AP$5","v":5.2081513739800616E-3},{"$f":"'Population at Risk'!AQ105/'Population at Risk'!AQ$5","v":6.7862230430760498E-3},{"$f":"'Population at Risk'!AR105/'Population at Risk'!AR$5","v":7.986316464436748E-3},{"$f":"'Population at Risk'!AS105/'Population at Risk'!AS$5","v":5.6223280983699539E-3},{"$f":"'Population at Risk'!AT105/'Population at Risk'!AT$5","v":2.2386858929160538E-3},{"$f":"'Population at Risk'!AU105/'Population at Risk'!AU$5","v":2.2386858929160538E-3},{"$f":"'Population at Risk'!AV105/'Population at Risk'!AV$5","v":9.6699780379788276E-3},{"$f":"'Population at Risk'!AW105/'Population at Risk'!AW$5","v":9.5603631487924945E-3},{"$f":"'Population at Risk'!AX105/'Population at Risk'!AX$5","v":6.6371939804811889E-3},{"$f":"'Population at Risk'!AY105/'Population at Risk'!AY$5","v":7.1013801117140209E-3},{"$f":"'Population at Risk'!AZ105/'Population at Risk'!AZ$5","v":6.322880164887002E-3},{"$f":"'Population at Risk'!BA105/'Population at Risk'!BA$5","v":1.0224297616173626E-2},{"$f":"'Population at Risk'!BB105/'Population at Risk'!BB$5","v":1.0779439748133618E-2},{"$f":"'Population at Risk'!BC105/'Population at Risk'!BC$5","v":7.1879020001881597E-3},103]
[null,"Female 40-44",{"$f":"'Population at Risk'!C106/'Population at Risk'!C$5","v":8.7887002769374868E-3},{"$f":"'Population at Risk'!D106/'Population at Risk'!D$5","v":6.2799717289345964E-3},{"$f":"'Population at Risk'!E106/'Population at Risk'!E$5","v":3.7616459365326631E-3},{"$f":"'Population at Risk'!F106/'Population at Risk'!F$5","v":7.5628176251860482E-3},{"$f":"'Population at Risk'!G106/'Population at Risk'!G$5","v":6.7845062748615572E-3},{"$f":"'Population at Risk'!H106/'Population at Risk'!H$5","v":9.2392745532678643E-3},{"$f":"'Population at Risk'!I106/'Population at Risk'!I$5","v":6.1042419353730939E-3},{"$f":"'Population at Risk'!J106/'Population at Risk'!J$5","v":8.4423375366979615E-3},{"$f":"'Population at Risk'!K106/'Population at Risk'!K$5","v":1.1336294582049962E-2},{"$f":"'Population at Risk'!L106/'Population at Risk'!L$5","v":1.0421979303015564E-2},{"$f":"'Population at Risk'!M106/'Population at Risk'!M$5","v":1.0421979303015564E-2},{"$f":"'Population at Risk'!N106/'Population at Risk'!N$5","v":6.1262094775894607E-3},{"$f":"'Population at Risk'!O106/'Population at Risk'!O$5","v":1.0077935809494494E-2},{"$f":"'Population at Risk'!P106/'Population at Risk'!P$5","v":8.3459541995901075E-3},{"$f":"'Population at Risk'!Q106/'Population at Risk'!Q$5","v":1.2044018627664639E-2},{"$f":"'Population at Risk'!R106/'Population at Risk'!R$5","v":4.7666815902070135E-3},{"$f":"'Population at Risk'!S106/'Population at Risk'!S$5","v":8.6613925668602952E-3},{"$f":"'Population at Risk'!T106/'Population at Risk'!T$5","v":6.3792797938055463E-3},{"$f":"'Population at Risk'!U106/'Population at Risk'!U$5","v":9.3959503270433457E-3},{"$f":"'Population at Risk'!V106/'Population at Risk'!V$5","v":1.2812179991805624E-2},{"$f":"'Population at Risk'!W106/'Population at Risk'!W$5","v":8.5109631774936967E-3},{"$f":"'Population at Risk'!X106/'Population at Risk'!X$5","v":8.5109631774936967E-3},{"$f":"'Population at Risk'!Y106/'Population at Risk'!Y$5","v":1.0748630240996973E-2},{"$f":"'Population at Risk'!Z106/'Population at Risk'!Z$5","v":5.7635408107654888E-3},{"$f":"'Population at Risk'!AA106/'Population at Risk'!AA$5","v":7.8841997701150114E-3},{"$f":"'Population at Risk'!AB106/'Population at Risk'!AB$5","v":6.4208912669336529E-3},{"$f":"'Population at Risk'!AC106/'Population at Risk'!AC$5","v":6.4822782605874138E-3},{"$f":"'Population at Risk'!AD106/'Population at Risk'!AD$5","v":7.7148143203084425E-3},{"$f":"'Population at Risk'!AE106/'Population at Risk'!AE$5","v":8.0701905052968908E-3},{"$f":"'Population at Risk'!AF106/'Population at Risk'!AF$5","v":4.3071104970248313E-3},{"$f":"'Population at Risk'!AG106/'Population at Risk'!AG$5","v":8.0701905052968908E-3},{"$f":"'Population at Risk'!AH106/'Population at Risk'!AH$5","v":1.0435050597262257E-2},{"$f":"'Population at Risk'!AI106/'Population at Risk'!AI$5","v":9.0521187229143651E-3},{"$f":"'Population at Risk'!AJ106/'Population at Risk'!AJ$5","v":1.463843587156031E-2},{"$f":"'Population at Risk'!AK106/'Population at Risk'!AK$5","v":7.1372106963760494E-3},{"$f":"'Population at Risk'!AL106/'Population at Risk'!AL$5","v":7.9103230574020175E-3},{"$f":"'Population at Risk'!AM106/'Population at Risk'!AM$5","v":1.078992924688929E-2},{"$f":"'Population at Risk'!AN106/'Population at Risk'!AN$5","v":7.0633272309329571E-3},{"$f":"'Population at Risk'!AO106/'Population at Risk'!AO$5","v":7.0633272309329571E-3},{"$f":"'Population at Risk'!AP106/'Population at Risk'!AP$5","v":4.5374046061189936E-3},{"$f":"'Population at Risk'!AQ106/'Population at Risk'!AQ$5","v":7.8935983513604251E-3},{"$f":"'Population at Risk'!AR106/'Population at Risk'!AR$5","v":8.0898526444445895E-3},{"$f":"'Population at Risk'!AS106/'Population at Risk'!AS$5","v":6.1042419353730939E-3},{"$f":"'Population at Risk'!AT106/'Population at Risk'!AT$5","v":9.2181183825955154E-4},{"$f":"'Population at Risk'!AU106/'Population at Risk'!AU$5","v":9.2181183825955154E-4},{"$f":"'Population at Risk'!AV106/'Population at Risk'!AV$5","v":1.0025154956435396E-2},{"$f":"'Population at Risk'!AW106/'Population at Risk'!AW$5","v":1.0030149998187169E-2},{"$f":"'Population at Risk'!AX106/'Population at Risk'!AX$5","v":6.6672946334538925E-3},{"$f":"'Population at Risk'!AY106/'Population at Risk'!AY$5","v":7.1894907692680969E-3},{"$f":"'Population at Risk'!AZ106/'Population at Risk'!AZ$5","v":5.9899268637707646E-3},{"$f":"'Population at Risk'!BA106/'Population at Risk'!BA$5","v":1.0591713515639593E-2},{"$f":"'Population at Risk'!BB106/'Population at Risk'!BB$5","v":1.1895828912720844E-2},{"$f":"'Population at Risk'!BC106/'Population at Risk'!BC$5","v":9.3959503270433457E-3},104]
[null,"Female 45-49",{"$f":"'Population at Risk'!C107/'Population at Risk'!C$5","v":9.187350324391037E-3},{"$f":"'Population at Risk'!D107/'Population at Risk'!D$5","v":6.7101067788616232E-3},{"$f":"'Population at Risk'!E107/'Population at Risk'!E$5","v":4.2233864361070489E-3},{"$f":"'Population at Risk'!F107/'Population at Risk'!F$5","v":8.0339835794708027E-3},{"$f":"'Population at Risk'!G107/'Population at Risk'!G$5","v":8.0363172276264449E-3},{"$f":"'Population at Risk'!H107/'Population at Risk'!H$5","v":1.1768919681311019E-2},{"$f":"'Population at Risk'!I107/'Population at Risk'!I$5","v":8.2048919941047245E-3},{"$f":"'Population at Risk'!J107/'Population at Risk'!J$5","v":9.7016917548794247E-3},{"$f":"'Population at Risk'!K107/'Population at Risk'!K$5","v":1.337290161735331E-2},{"$f":"'Population at Risk'!L107/'Population at Risk'!L$5","v":1.3634769915223367E-2},{"$f":"'Population at Risk'!M107/'Population at Risk'!M$5","v":1.3634769915223367E-2},{"$f":"'Population at Risk'!N107/'Population at Risk'!N$5","v":6.3818010072933242E-3},{"$f":"'Population at Risk'!O107/'Population at Risk'!O$5","v":1.3057071956106036E-2},{"$f":"'Population at Risk'!P107/'Population at Risk'!P$5","v":1.1441544484528983E-2},{"$f":"'Population at Risk'!Q107/'Population at Risk'!Q$5","v":1.5092962633064278E-2},{"$f":"'Population at Risk'!R107/'Population at Risk'!R$5","v":6.8991444068785728E-3},{"$f":"'Population at Risk'!S107/'Population at Risk'!S$5","v":9.722930918880485E-3},{"$f":"'Population at Risk'!T107/'Population at Risk'!T$5","v":5.9668263588612226E-3},{"$f":"'Population at Risk'!U107/'Population at Risk'!U$5","v":1.09462821310055E-2},{"$f":"'Population at Risk'!V107/'Population at Risk'!V$5","v":1.4673493436869243E-2},{"$f":"'Population at Risk'!W107/'Population at Risk'!W$5","v":9.7395331759185175E-3},{"$f":"'Population at Risk'!X107/'Population at Risk'!X$5","v":9.7395331759185175E-3},{"$f":"'Population at Risk'!Y107/'Population at Risk'!Y$5","v":1.2325683366520299E-2},{"$f":"'Population at Risk'!Z107/'Population at Risk'!Z$5","v":6.4960130659369852E-3},{"$f":"'Population at Risk'!AA107/'Population at Risk'!AA$5","v":9.4832562323909318E-3},{"$f":"'Population at Risk'!AB107/'Population at Risk'!AB$5","v":6.9625978072467279E-3},{"$f":"'Population at Risk'!AC107/'Population at Risk'!AC$5","v":7.7129731632971255E-3},{"$f":"'Population at Risk'!AD107/'Population at Risk'!AD$5","v":9.1159544626457471E-3},{"$f":"'Population at Risk'!AE107/'Population at Risk'!AE$5","v":9.5283741591435118E-3},{"$f":"'Population at Risk'!AF107/'Population at Risk'!AF$5","v":5.9204268000341322E-3},{"$f":"'Population at Risk'!AG107/'Population at Risk'!AG$5","v":9.5283741591435118E-3},{"$f":"'Population at Risk'!AH107/'Population at Risk'!AH$5","v":1.2704355274236976E-2},{"$f":"'Population at Risk'!AI107/'Population at Risk'!AI$5","v":9.9082518985095895E-3},{"$f":"'Population at Risk'!AJ107/'Population at Risk'!AJ$5","v":1.8331965004961214E-2},{"$f":"'Population at Risk'!AK107/'Population at Risk'!AK$5","v":8.2460552465788931E-3},{"$f":"'Population at Risk'!AL107/'Population at Risk'!AL$5","v":9.8447252024435588E-3},{"$f":"'Population at Risk'!AM107/'Population at Risk'!AM$5","v":1.2697346615387007E-2},{"$f":"'Population at Risk'!AN107/'Population at Risk'!AN$5","v":6.3906293994155337E-3},{"$f":"'Population at Risk'!AO107/'Population at Risk'!AO$5","v":6.3906293994155337E-3},{"$f":"'Population at Risk'!AP107/'Population at Risk'!AP$5","v":5.7506671421029857E-3},{"$f":"'Population at Risk'!AQ107/'Population at Risk'!AQ$5","v":8.9938750999763121E-3},{"$f":"'Population at Risk'!AR107/'Population at Risk'!AR$5","v":9.4754957264187121E-3},{"$f":"'Population at Risk'!AS107/'Population at Risk'!AS$5","v":8.2048919941047245E-3},{"$f":"'Population at Risk'!AT107/'Population at Risk'!AT$5","v":1.5144051628549777E-3},{"$f":"'Population at Risk'!AU107/'Population at Risk'!AU$5","v":1.5144051628549777E-3},{"$f":"'Population at Risk'!AV107/'Population at Risk'!AV$5","v":1.2820741024287095E-2},{"$f":"'Population at Risk'!AW107/'Population at Risk'!AW$5","v":1.2712351839175571E-2},{"$f":"'Population at Risk'!AX107/'Population at Risk'!AX$5","v":7.4499116107441914E-3},{"$f":"'Population at Risk'!AY107/'Population at Risk'!AY$5","v":8.1027916235305291E-3},{"$f":"'Population at Risk'!AZ107/'Population at Risk'!AZ$5","v":6.617042790145038E-3},{"$f":"'Population at Risk'!BA107/'Population at Risk'!BA$5","v":1.3074938215478541E-2},{"$f":"'Population at Risk'!BB107/'Population at Risk'!BB$5","v":1.3596289229641784E-2},{"$f":"'Population at Risk'!BC107/'Population at Risk'!BC$5","v":1.09462821310055E-2},105]
[null,"Female 50-54",{"$f":"'Population at Risk'!C108/'Population at Risk'!C$5","v":9.5798672941914548E-3},{"$f":"'Population at Risk'!D108/'Population at Risk'!D$5","v":7.0511424255894802E-3},{"$f":"'Population at Risk'!E108/'Population at Risk'!E$5","v":4.5127438158403307E-3},{"$f":"'Population at Risk'!F108/'Population at Risk'!F$5","v":7.4903305552960851E-3},{"$f":"'Population at Risk'!G108/'Population at Risk'!G$5","v":8.9172212314239593E-3},{"$f":"'Population at Risk'!H108/'Population at Risk'!H$5","v":1.2159357775003802E-2},{"$f":"'Population at Risk'!I108/'Population at Risk'!I$5","v":8.810373481621489E-3},{"$f":"'Population at Risk'!J108/'Population at Risk'!J$5","v":1.0168119243094782E-2},{"$f":"'Population at Risk'!K108/'Population at Risk'!K$5","v":1.3790037998078092E-2},{"$f":"'Population at Risk'!L108/'Population at Risk'!L$5","v":1.4757940617052111E-2},{"$f":"'Population at Risk'!M108/'Population at Risk'!M$5","v":1.4757940617052111E-2},{"$f":"'Population at Risk'!N108/'Population at Risk'!N$5","v":7.6118352439931633E-3},{"$f":"'Population at Risk'!O108/'Population at Risk'!O$5","v":1.2329494151323018E-2},{"$f":"'Population at Risk'!P108/'Population at Risk'!P$5","v":1.1229102013993962E-2},{"$f":"'Population at Risk'!Q108/'Population at Risk'!Q$5","v":1.5341292914047054E-2},{"$f":"'Population at Risk'!R108/'Population at Risk'!R$5","v":6.5049075836283686E-3},{"$f":"'Population at Risk'!S108/'Population at Risk'!S$5","v":9.8059730331290004E-3},{"$f":"'Population at Risk'!T108/'Population at Risk'!T$5","v":5.6643605065687178E-3},{"$f":"'Population at Risk'!U108/'Population at Risk'!U$5","v":1.2684532941508517E-2},{"$f":"'Population at Risk'!V108/'Population at Risk'!V$5","v":1.462341325449085E-2},{"$f":"'Population at Risk'!W108/'Population at Risk'!W$5","v":1.0494480537269422E-2},{"$f":"'Population at Risk'!X108/'Population at Risk'!X$5","v":1.0494480537269422E-2},{"$f":"'Population at Risk'!Y108/'Population at Risk'!Y$5","v":1.2519511124964506E-2},{"$f":"'Population at Risk'!Z108/'Population at Risk'!Z$5","v":6.6564084502811075E-3},{"$f":"'Population at Risk'!AA108/'Population at Risk'!AA$5","v":9.8364588037172674E-3},{"$f":"'Population at Risk'!AB108/'Population at Risk'!AB$5","v":7.2090614464413024E-3},{"$f":"'Population at Risk'!AC108/'Population at Risk'!AC$5","v":7.9634412213862877E-3},{"$f":"'Population at Risk'!AD108/'Population at Risk'!AD$5","v":9.9574929017934542E-3},{"$f":"'Population at Risk'!AE108/'Population at Risk'!AE$5","v":1.0354875015574796E-2},{"$f":"'Population at Risk'!AF108/'Population at Risk'!AF$5","v":7.1045121600409582E-3},{"$f":"'Population at Risk'!AG108/'Population at Risk'!AG$5","v":1.0354875015574796E-2},{"$f":"'Population at Risk'!AH108/'Population at Risk'!AH$5","v":1.3244487296525172E-2},{"$f":"'Population at Risk'!AI108/'Population at Risk'!AI$5","v":9.6291462112276308E-3},{"$f":"'Population at Risk'!AJ108/'Population at Risk'!AJ$5","v":1.8196284342917913E-2},{"$f":"'Population at Risk'!AK108/'Population at Risk'!AK$5","v":8.0117923134374464E-3},{"$f":"'Population at Risk'!AL108/'Population at Risk'!AL$5","v":1.0267875671671397E-2},{"$f":"'Population at Risk'!AM108/'Population at Risk'!AM$5","v":1.3102056942651282E-2},{"$f":"'Population at Risk'!AN108/'Population at Risk'!AN$5","v":8.2069135445125788E-3},{"$f":"'Population at Risk'!AO108/'Population at Risk'!AO$5","v":8.2069135445125788E-3},{"$f":"'Population at Risk'!AP108/'Population at Risk'!AP$5","v":5.5435247579105965E-3},{"$f":"'Population at Risk'!AQ108/'Population at Risk'!AQ$5","v":9.3346059640638124E-3},{"$f":"'Population at Risk'!AR108/'Population at Risk'!AR$5","v":9.8015863120508914E-3},{"$f":"'Population at Risk'!AS108/'Population at Risk'!AS$5","v":8.810373481621489E-3},{"$f":"'Population at Risk'!AT108/'Population at Risk'!AT$5","v":1.3168740546565022E-3},{"$f":"'Population at Risk'!AU108/'Population at Risk'!AU$5","v":1.3168740546565022E-3},{"$f":"'Population at Risk'!AV108/'Population at Risk'!AV$5","v":1.4470595097117607E-2},{"$f":"'Population at Risk'!AW108/'Population at Risk'!AW$5","v":1.3406993932724962E-2},{"$f":"'Population at Risk'!AX108/'Population at Risk'!AX$5","v":7.9465723847938034E-3},{"$f":"'Population at Risk'!AY108/'Population at Risk'!AY$5","v":8.6111223401886556E-3},{"$f":"'Population at Risk'!AZ108/'Population at Risk'!AZ$5","v":6.9015077464385224E-3},{"$f":"'Population at Risk'!BA108/'Population at Risk'!BA$5","v":1.3847778555734538E-2},{"$f":"'Population at Risk'!BB108/'Population at Risk'!BB$5","v":1.3027004688759556E-2},{"$f":"'Population at Risk'!BC108/'Population at Risk'!BC$5","v":1.2684532941508517E-2},106]
[null,"Female 55-59",{"$f":"'Population at Risk'!C109/'Population at Risk'!C$5","v":1.1142601165616295E-2},{"$f":"'Population at Risk'!D109/'Population at Risk'!D$5","v":8.2082582285824095E-3},{"$f":"'Population at Risk'!E109/'Population at Risk'!E$5","v":5.2626898417724886E-3},{"$f":"'Population at Risk'!F109/'Population at Risk'!F$5","v":1.0595589802705349E-2},{"$f":"'Population at Risk'!G109/'Population at Risk'!G$5","v":1.1857282076467227E-2},{"$f":"'Population at Risk'!H109/'Population at Risk'!H$5","v":1.4940897649550013E-2},{"$f":"'Population at Risk'!I109/'Population at Risk'!I$5","v":1.1192609344930661E-2},{"$f":"'Population at Risk'!J109/'Population at Risk'!J$5","v":1.1412566035946509E-2},{"$f":"'Population at Risk'!K109/'Population at Risk'!K$5","v":1.5105787691743228E-2},{"$f":"'Population at Risk'!L109/'Population at Risk'!L$5","v":1.8003454986716363E-2},{"$f":"'Population at Risk'!M109/'Population at Risk'!M$5","v":1.8003454986716363E-2},{"$f":"'Population at Risk'!N109/'Population at Risk'!N$5","v":9.3957685572816693E-3},{"$f":"'Population at Risk'!O109/'Population at Risk'!O$5","v":1.5267132865718482E-2},{"$f":"'Population at Risk'!P109/'Population at Risk'!P$5","v":1.3883682380567787E-2},{"$f":"'Population at Risk'!Q109/'Population at Risk'!Q$5","v":1.8987984480749964E-2},{"$f":"'Population at Risk'!R109/'Population at Risk'!R$5","v":6.7455958183890536E-3},{"$f":"'Population at Risk'!S109/'Population at Risk'!S$5","v":1.1871451043487323E-2},{"$f":"'Population at Risk'!T109/'Population at Risk'!T$5","v":6.724357201085703E-3},{"$f":"'Population at Risk'!U109/'Population at Risk'!U$5","v":1.418456489189478E-2},{"$f":"'Population at Risk'!V109/'Population at Risk'!V$5","v":1.669165517682256E-2},{"$f":"'Population at Risk'!W109/'Population at Risk'!W$5","v":1.2381001303215795E-2},{"$f":"'Population at Risk'!X109/'Population at Risk'!X$5","v":1.2381001303215795E-2},{"$f":"'Population at Risk'!Y109/'Population at Risk'!Y$5","v":1.4198736223092675E-2},{"$f":"'Population at Risk'!Z109/'Population at Risk'!Z$5","v":7.787159241453406E-3},{"$f":"'Population at Risk'!AA109/'Population at Risk'!AA$5","v":1.1666559773278583E-2},{"$f":"'Population at Risk'!AB109/'Population at Risk'!AB$5","v":8.5669406985430831E-3},{"$f":"'Population at Risk'!AC109/'Population at Risk'!AC$5","v":9.3470312060003873E-3},{"$f":"'Population at Risk'!AD109/'Population at Risk'!AD$5","v":1.2612967740694101E-2},{"$f":"'Population at Risk'!AE109/'Population at Risk'!AE$5","v":1.2901638455429675E-2},{"$f":"'Population at Risk'!AF109/'Population at Risk'!AF$5","v":8.4734536292167591E-3},{"$f":"'Population at Risk'!AG109/'Population at Risk'!AG$5","v":1.2901638455429675E-2},{"$f":"'Population at Risk'!AH109/'Population at Risk'!AH$5","v":1.5887032406177285E-2},{"$f":"'Population at Risk'!AI109/'Population at Risk'!AI$5","v":1.1733227646856831E-2},{"$f":"'Population at Risk'!AJ109/'Population at Risk'!AJ$5","v":2.3310603175344658E-2},{"$f":"'Population at Risk'!AK109/'Population at Risk'!AK$5","v":1.0390188389256748E-2},{"$f":"'Population at Risk'!AL109/'Population at Risk'!AL$5","v":1.1964593118952007E-2},{"$f":"'Population at Risk'!AM109/'Population at Risk'!AM$5","v":1.5496755443082589E-2},{"$f":"'Population at Risk'!AN109/'Population at Risk'!AN$5","v":9.5838464672590648E-3},{"$f":"'Population at Risk'!AO109/'Population at Risk'!AO$5","v":9.5838464672590648E-3},{"$f":"'Population at Risk'!AP109/'Population at Risk'!AP$5","v":6.5623710146581653E-3},{"$f":"'Population at Risk'!AQ109/'Population at Risk'!AQ$5","v":1.0753429576378645E-2},{"$f":"'Population at Risk'!AR109/'Population at Risk'!AR$5","v":1.1785807481870782E-2},{"$f":"'Population at Risk'!AS109/'Population at Risk'!AS$5","v":1.1192609344930661E-2},{"$f":"'Population at Risk'!AT109/'Population at Risk'!AT$5","v":1.2048572721651888E-3},{"$f":"'Population at Risk'!AU109/'Population at Risk'!AU$5","v":1.2048572721651888E-3},{"$f":"'Population at Risk'!AV109/'Population at Risk'!AV$5","v":1.8509506251811043E-2},{"$f":"'Population at Risk'!AW109/'Population at Risk'!AW$5","v":1.6332320890926438E-2},{"$f":"'Population at Risk'!AX109/'Population at Risk'!AX$5","v":9.1472846971103645E-3},{"$f":"'Population at Risk'!AY109/'Population at Risk'!AY$5","v":1.0497762966716159E-2},{"$f":"'Population at Risk'!AZ109/'Population at Risk'!AZ$5","v":8.7882571761660946E-3},{"$f":"'Population at Risk'!BA109/'Population at Risk'!BA$5","v":1.6725328016401215E-2},{"$f":"'Population at Risk'!BB109/'Population at Risk'!BB$5","v":1.5635454307744996E-2},{"$f":"'Population at Risk'!BC109/'Population at Risk'!BC$5","v":1.418456489189478E-2},107]
[null,"Female 60-64",{"$f":"'Population at Risk'!C110/'Population at Risk'!C$5","v":9.9561947105722571E-3},{"$f":"'Population at Risk'!D110/'Population at Risk'!D$5","v":7.4372281014357259E-3},{"$f":"'Population at Risk'!E110/'Population at Risk'!E$5","v":4.9086250817755627E-3},{"$f":"'Population at Risk'!F110/'Population at Risk'!F$5","v":8.8901893575605226E-3},{"$f":"'Population at Risk'!G110/'Population at Risk'!G$5","v":1.0625094330871826E-2},{"$f":"'Population at Risk'!H110/'Population at Risk'!H$5","v":1.3148333006176904E-2},{"$f":"'Population at Risk'!I110/'Population at Risk'!I$5","v":1.0158948453046733E-2},{"$f":"'Population at Risk'!J110/'Population at Risk'!J$5","v":9.7055582955271596E-3},{"$f":"'Population at Risk'!K110/'Population at Risk'!K$5","v":1.3405985679721164E-2},{"$f":"'Population at Risk'!L110/'Population at Risk'!L$5","v":1.7707570138641378E-2},{"$f":"'Population at Risk'!M110/'Population at Risk'!M$5","v":1.7707570138641378E-2},{"$f":"'Population at Risk'!N110/'Population at Risk'!N$5","v":8.0908007021036604E-3},{"$f":"'Population at Risk'!O110/'Population at Risk'!O$5","v":1.3365166818474094E-2},{"$f":"'Population at Risk'!P110/'Population at Risk'!P$5","v":1.0472263281342559E-2},{"$f":"'Population at Risk'!Q110/'Population at Risk'!Q$5","v":1.5904465633448689E-2},{"$f":"'Population at Risk'!R110/'Population at Risk'!R$5","v":5.8789741333876823E-3},{"$f":"'Population at Risk'!S110/'Population at Risk'!S$5","v":1.0202804697211732E-2},{"$f":"'Population at Risk'!T110/'Population at Risk'!T$5","v":5.5203702089084124E-3},{"$f":"'Population at Risk'!U110/'Population at Risk'!U$5","v":1.5228450619869721E-2},{"$f":"'Population at Risk'!V110/'Population at Risk'!V$5","v":1.5557059007940504E-2},{"$f":"'Population at Risk'!W110/'Population at Risk'!W$5","v":1.1287191037706128E-2},{"$f":"'Population at Risk'!X110/'Population at Risk'!X$5","v":1.1287191037706128E-2},{"$f":"'Population at Risk'!Y110/'Population at Risk'!Y$5","v":1.2793832882283829E-2},{"$f":"'Population at Risk'!Z110/'Population at Risk'!Z$5","v":6.1263023646492545E-3},{"$f":"'Population at Risk'!AA110/'Population at Risk'!AA$5","v":9.9103595540355159E-3},{"$f":"'Population at Risk'!AB110/'Population at Risk'!AB$5","v":7.8521900644695705E-3},{"$f":"'Population at Risk'!AC110/'Population at Risk'!AC$5","v":7.4541832895359088E-3},{"$f":"'Population at Risk'!AD110/'Population at Risk'!AD$5","v":1.1395780061423931E-2},{"$f":"'Population at Risk'!AE110/'Population at Risk'!AE$5","v":1.1690180777497582E-2},{"$f":"'Population at Risk'!AF110/'Population at Risk'!AF$5","v":6.1519594842258662E-3},{"$f":"'Population at Risk'!AG110/'Population at Risk'!AG$5","v":1.1690180777497582E-2},{"$f":"'Population at Risk'!AH110/'Population at Risk'!AH$5","v":1.4379467997937967E-2},{"$f":"'Population at Risk'!AI110/'Population at Risk'!AI$5","v":9.7308934265984692E-3},{"$f":"'Population at Risk'!AJ110/'Population at Risk'!AJ$5","v":1.9093807672788649E-2},{"$f":"'Population at Risk'!AK110/'Population at Risk'!AK$5","v":9.9615165696606937E-3},{"$f":"'Population at Risk'!AL110/'Population at Risk'!AL$5","v":1.0418225895087455E-2},{"$f":"'Population at Risk'!AM110/'Population at Risk'!AM$5","v":1.4070814752267628E-2},{"$f":"'Population at Risk'!AN110/'Population at Risk'!AN$5","v":9.1442204825224124E-3},{"$f":"'Population at Risk'!AO110/'Population at Risk'!AO$5","v":9.1442204825224124E-3},{"$f":"'Population at Risk'!AP110/'Population at Risk'!AP$5","v":6.420551601767713E-3},{"$f":"'Population at Risk'!AQ110/'Population at Risk'!AQ$5","v":8.7307827708130309E-3},{"$f":"'Population at Risk'!AR110/'Population at Risk'!AR$5","v":1.032155330484748E-2},{"$f":"'Population at Risk'!AS110/'Population at Risk'!AS$5","v":1.0158948453046733E-2},{"$f":"'Population at Risk'!AT110/'Population at Risk'!AT$5","v":2.5818370117825472E-3},{"$f":"'Population at Risk'!AU110/'Population at Risk'!AU$5","v":2.5818370117825472E-3},{"$f":"'Population at Risk'!AV110/'Population at Risk'!AV$5","v":1.6517787537012604E-2},{"$f":"'Population at Risk'!AW110/'Population at Risk'!AW$5","v":1.4731627487413404E-2},{"$f":"'Population at Risk'!AX110/'Population at Risk'!AX$5","v":7.4358572376510062E-3},{"$f":"'Population at Risk'!AY110/'Population at Risk'!AY$5","v":9.4369130804172058E-3},{"$f":"'Population at Risk'!AZ110/'Population at Risk'!AZ$5","v":7.7573270074235336E-3},{"$f":"'Population at Risk'!BA110/'Population at Risk'!BA$5","v":1.4324167063551538E-2},{"$f":"'Population at Risk'!BB110/'Population at Risk'!BB$5","v":1.3151948895451756E-2},{"$f":"'Population at Risk'!BC110/'Population at Risk'!BC$5","v":1.5228450619869721E-2},108]
[null,"Female 65-69",{"$f":"'Population at Risk'!C111/'Population at Risk'!C$5","v":9.419105301869889E-3},{"$f":"'Population at Risk'!D111/'Population at Risk'!D$5","v":7.4131334099623919E-3},{"$f":"'Population at Risk'!E111/'Population at Risk'!E$5","v":5.399487589953119E-3},{"$f":"'Population at Risk'!F111/'Population at Risk'!F$5","v":9.4902376623337021E-3},{"$f":"'Population at Risk'!G111/'Population at Risk'!G$5","v":1.1655284085386014E-2},{"$f":"'Population at Risk'!H111/'Population at Risk'!H$5","v":1.3534291900683077E-2},{"$f":"'Population at Risk'!I111/'Population at Risk'!I$5","v":1.1047250782009485E-2},{"$f":"'Population at Risk'!J111/'Population at Risk'!J$5","v":1.0059152756042597E-2},{"$f":"'Population at Risk'!K111/'Population at Risk'!K$5","v":1.472092685883257E-2},{"$f":"'Population at Risk'!L111/'Population at Risk'!L$5","v":1.7514106968746196E-2},{"$f":"'Population at Risk'!M111/'Population at Risk'!M$5","v":1.7514106968746196E-2},{"$f":"'Population at Risk'!N111/'Population at Risk'!N$5","v":8.3413545302978374E-3},{"$f":"'Population at Risk'!O111/'Population at Risk'!O$5","v":1.3455124672059976E-2},{"$f":"'Population at Risk'!P111/'Population at Risk'!P$5","v":1.0373094121481359E-2},{"$f":"'Population at Risk'!Q111/'Population at Risk'!Q$5","v":1.5471691058388862E-2},{"$f":"'Population at Risk'!R111/'Population at Risk'!R$5","v":5.7852853025767235E-3},{"$f":"'Population at Risk'!S111/'Population at Risk'!S$5","v":1.0497040925982899E-2},{"$f":"'Population at Risk'!T111/'Population at Risk'!T$5","v":5.4161444692870948E-3},{"$f":"'Population at Risk'!U111/'Population at Risk'!U$5","v":1.4491590106005056E-2},{"$f":"'Population at Risk'!V111/'Population at Risk'!V$5","v":1.5502511115205789E-2},{"$f":"'Population at Risk'!W111/'Population at Risk'!W$5","v":1.1626970396779346E-2},{"$f":"'Population at Risk'!X111/'Population at Risk'!X$5","v":1.1626970396779346E-2},{"$f":"'Population at Risk'!Y111/'Population at Risk'!Y$5","v":1.2932020096133879E-2},{"$f":"'Population at Risk'!Z111/'Population at Risk'!Z$5","v":5.3319795105255304E-3},{"$f":"'Population at Risk'!AA111/'Population at Risk'!AA$5","v":9.5252126742708214E-3},{"$f":"'Population at Risk'!AB111/'Population at Risk'!AB$5","v":7.7146089565023699E-3},{"$f":"'Population at Risk'!AC111/'Population at Risk'!AC$5","v":7.1712665191034971E-3},{"$f":"'Population at Risk'!AD111/'Population at Risk'!AD$5","v":1.1820120720252065E-2},{"$f":"'Population at Risk'!AE111/'Population at Risk'!AE$5","v":1.1883088051053647E-2},{"$f":"'Population at Risk'!AF111/'Population at Risk'!AF$5","v":6.9644824349726778E-3},{"$f":"'Population at Risk'!AG111/'Population at Risk'!AG$5","v":1.1883088051053647E-2},{"$f":"'Population at Risk'!AH111/'Population at Risk'!AH$5","v":1.3808309449775753E-2},{"$f":"'Population at Risk'!AI111/'Population at Risk'!AI$5","v":9.9296922181696667E-3},{"$f":"'Population at Risk'!AJ111/'Population at Risk'!AJ$5","v":2.0512542608228056E-2},{"$f":"'Population at Risk'!AK111/'Population at Risk'!AK$5","v":9.2470635370006035E-3},{"$f":"'Population at Risk'!AL111/'Population at Risk'!AL$5","v":1.1016455551035056E-2},{"$f":"'Population at Risk'!AM111/'Population at Risk'!AM$5","v":1.3505038284621693E-2},{"$f":"'Population at Risk'!AN111/'Population at Risk'!AN$5","v":1.0463098436732376E-2},{"$f":"'Population at Risk'!AO111/'Population at Risk'!AO$5","v":1.0463098436732376E-2},{"$f":"'Population at Risk'!AP111/'Population at Risk'!AP$5","v":5.9306299936006997E-3},{"$f":"'Population at Risk'!AQ111/'Population at Risk'!AQ$5","v":9.7977753517306723E-3},{"$f":"'Population at Risk'!AR111/'Population at Risk'!AR$5","v":1.0301317444918847E-2},{"$f":"'Population at Risk'!AS111/'Population at Risk'!AS$5","v":1.1047250782009485E-2},{"$f":"'Population at Risk'!AT111/'Population at Risk'!AT$5","v":2.1515308431521228E-3},{"$f":"'Population at Risk'!AU111/'Population at Risk'!AU$5","v":2.1515308431521228E-3},{"$f":"'Population at Risk'!AV111/'Population at Risk'!AV$5","v":1.6967047397493454E-2},{"$f":"'Population at Risk'!AW111/'Population at Risk'!AW$5","v":1.4154328227130017E-2},{"$f":"'Population at Risk'!AX111/'Population at Risk'!AX$5","v":7.1997982777255781E-3},{"$f":"'Population at Risk'!AY111/'Population at Risk'!AY$5","v":9.6517407191875574E-3},{"$f":"'Population at Risk'!AZ111/'Population at Risk'!AZ$5","v":7.8587299748408349E-3},{"$f":"'Population at Risk'!BA111/'Population at Risk'!BA$5","v":1.4042651641493299E-2},{"$f":"'Population at Risk'!BB111/'Population at Risk'!BB$5","v":1.3905697619805346E-2},{"$f":"'Population at Risk'!BC111/'Population at Risk'!BC$5","v":1.4491590106005056E-2},109]
[null,"Female 70-74",{"$f":"'Population at Risk'!C112/'Population at Risk'!C$5","v":6.4931704634166899E-3},{"$f":"'Population at Risk'!D112/'Population at Risk'!D$5","v":5.3530372889923445E-3},{"$f":"'Population at Risk'!E112/'Population at Risk'!E$5","v":4.2085424881452777E-3},{"$f":"'Population at Risk'!F112/'Population at Risk'!F$5","v":7.6585112582892613E-3},{"$f":"'Population at Risk'!G112/'Population at Risk'!G$5","v":9.6151043754657602E-3},{"$f":"'Population at Risk'!H112/'Population at Risk'!H$5","v":1.0901194553718751E-2},{"$f":"'Population at Risk'!I112/'Population at Risk'!I$5","v":8.8345704353204497E-3},{"$f":"'Population at Risk'!J112/'Population at Risk'!J$5","v":8.193637154012879E-3},{"$f":"'Population at Risk'!K112/'Population at Risk'!K$5","v":1.1321322834788448E-2},{"$f":"'Population at Risk'!L112/'Population at Risk'!L$5","v":1.4247993453456944E-2},{"$f":"'Population at Risk'!M112/'Population at Risk'!M$5","v":1.4247993453456944E-2},{"$f":"'Population at Risk'!N112/'Population at Risk'!N$5","v":6.7023149041942577E-3},{"$f":"'Population at Risk'!O112/'Population at Risk'!O$5","v":1.0974858137477764E-2},{"$f":"'Population at Risk'!P112/'Population at Risk'!P$5","v":9.2822333630081764E-3},{"$f":"'Population at Risk'!Q112/'Population at Risk'!Q$5","v":1.2514398128813367E-2},{"$f":"'Population at Risk'!R112/'Population at Risk'!R$5","v":3.4196423246000062E-3},{"$f":"'Population at Risk'!S112/'Population at Risk'!S$5","v":8.1784594432661069E-3},{"$f":"'Population at Risk'!T112/'Population at Risk'!T$5","v":4.0827738003385138E-3},{"$f":"'Population at Risk'!U112/'Population at Risk'!U$5","v":1.062307240821557E-2},{"$f":"'Population at Risk'!V112/'Population at Risk'!V$5","v":1.2655111114453705E-2},{"$f":"'Population at Risk'!W112/'Population at Risk'!W$5","v":8.9459716183386308E-3},{"$f":"'Population at Risk'!X112/'Population at Risk'!X$5","v":8.9459716183386308E-3},{"$f":"'Population at Risk'!Y112/'Population at Risk'!Y$5","v":1.0548290657220509E-2},{"$f":"'Population at Risk'!Z112/'Population at Risk'!Z$5","v":4.0717781495843717E-3},{"$f":"'Population at Risk'!AA112/'Population at Risk'!AA$5","v":7.654250856542563E-3},{"$f":"'Population at Risk'!AB112/'Population at Risk'!AB$5","v":5.6609592473334039E-3},{"$f":"'Population at Risk'!AC112/'Population at Risk'!AC$5","v":5.559988150355087E-3},{"$f":"'Population at Risk'!AD112/'Population at Risk'!AD$5","v":8.9446544137193242E-3},{"$f":"'Population at Risk'!AE112/'Population at Risk'!AE$5","v":8.6885436009651994E-3},{"$f":"'Population at Risk'!AF112/'Population at Risk'!AF$5","v":5.3007449643958709E-3},{"$f":"'Population at Risk'!AG112/'Population at Risk'!AG$5","v":8.6885436009651994E-3},{"$f":"'Population at Risk'!AH112/'Population at Risk'!AH$5","v":1.1464843475341949E-2},{"$f":"'Population at Risk'!AI112/'Population at Risk'!AI$5","v":7.7572518154328564E-3},{"$f":"'Population at Risk'!AJ112/'Population at Risk'!AJ$5","v":1.4896716822113744E-2},{"$f":"'Population at Risk'!AK112/'Population at Risk'!AK$5","v":7.22618210176206E-3},{"$f":"'Population at Risk'!AL112/'Population at Risk'!AL$5","v":8.4316519432614621E-3},{"$f":"'Population at Risk'!AM112/'Population at Risk'!AM$5","v":1.1435124378599974E-2},{"$f":"'Population at Risk'!AN112/'Population at Risk'!AN$5","v":9.0562952855750816E-3},{"$f":"'Population at Risk'!AO112/'Population at Risk'!AO$5","v":9.0562952855750816E-3},{"$f":"'Population at Risk'!AP112/'Population at Risk'!AP$5","v":4.757396668779691E-3},{"$f":"'Population at Risk'!AQ112/'Population at Risk'!AQ$5","v":7.9328578842137541E-3},{"$f":"'Population at Risk'!AR112/'Population at Risk'!AR$5","v":8.1461983625196188E-3},{"$f":"'Population at Risk'!AS112/'Population at Risk'!AS$5","v":8.8345704353204497E-3},{"$f":"'Population at Risk'!AT112/'Population at Risk'!AT$5","v":1.6351634407956134E-3},{"$f":"'Population at Risk'!AU112/'Population at Risk'!AU$5","v":1.6351634407956134E-3},{"$f":"'Population at Risk'!AV112/'Population at Risk'!AV$5","v":1.409178429041601E-2},{"$f":"'Population at Risk'!AW112/'Population at Risk'!AW$5","v":1.1498751629826423E-2},{"$f":"'Population at Risk'!AX112/'Population at Risk'!AX$5","v":6.2752340180176483E-3},{"$f":"'Population at Risk'!AY112/'Population at Risk'!AY$5","v":7.5699058692480668E-3},{"$f":"'Population at Risk'!AZ112/'Population at Risk'!AZ$5","v":6.3207849690117687E-3},{"$f":"'Population at Risk'!BA112/'Population at Risk'!BA$5","v":1.0531988731119974E-2},{"$f":"'Population at Risk'!BB112/'Population at Risk'!BB$5","v":1.1586470775640451E-2},{"$f":"'Population at Risk'!BC112/'Population at Risk'!BC$5","v":1.062307240821557E-2},110]
[null,"Female 75-79",{"$f":"'Population at Risk'!C113/'Population at Risk'!C$5","v":6.4450729044284172E-3},{"$f":"'Population at Risk'!D113/'Population at Risk'!D$5","v":4.9313801882090022E-3},{"$f":"'Population at Risk'!E113/'Population at Risk'!E$5","v":3.4118967781521944E-3},{"$f":"'Population at Risk'!F113/'Population at Risk'!F$5","v":6.7426480562670392E-3},{"$f":"'Population at Risk'!G113/'Population at Risk'!G$5","v":8.887911607573391E-3},{"$f":"'Population at Risk'!H113/'Population at Risk'!H$5","v":8.8599008449972236E-3},{"$f":"'Population at Risk'!I113/'Population at Risk'!I$5","v":7.1387205345733798E-3},{"$f":"'Population at Risk'!J113/'Population at Risk'!J$5","v":6.5110152384566626E-3},{"$f":"'Population at Risk'!K113/'Population at Risk'!K$5","v":7.6972166582131088E-3},{"$f":"'Population at Risk'!L113/'Population at Risk'!L$5","v":1.1163962921598453E-2},{"$f":"'Population at Risk'!M113/'Population at Risk'!M$5","v":1.1163962921598453E-2},{"$f":"'Population at Risk'!N113/'Population at Risk'!N$5","v":6.4413213331586559E-3},{"$f":"'Population at Risk'!O113/'Population at Risk'!O$5","v":9.3813190168135462E-3},{"$f":"'Population at Risk'!P113/'Population at Risk'!P$5","v":7.5368561494510841E-3},{"$f":"'Population at Risk'!Q113/'Population at Risk'!Q$5","v":1.1053783937986448E-2},{"$f":"'Population at Risk'!R113/'Population at Risk'!R$5","v":3.7007088170328837E-3},{"$f":"'Population at Risk'!S113/'Population at Risk'!S$5","v":6.852434838937385E-3},{"$f":"'Population at Risk'!T113/'Population at Risk'!T$5","v":3.9102622313101259E-3},{"$f":"'Population at Risk'!U113/'Population at Risk'!U$5","v":1.0193237108461184E-2},{"$f":"'Population at Risk'!V113/'Population at Risk'!V$5","v":1.0495014562159021E-2},{"$f":"'Population at Risk'!W113/'Population at Risk'!W$5","v":7.3448195701032049E-3},{"$f":"'Population at Risk'!X113/'Population at Risk'!X$5","v":7.3448195701032049E-3},{"$f":"'Population at Risk'!Y113/'Population at Risk'!Y$5","v":8.6136696633198062E-3},{"$f":"'Population at Risk'!Z113/'Population at Risk'!Z$5","v":3.9949081959594944E-3},{"$f":"'Population at Risk'!AA113/'Population at Risk'!AA$5","v":6.7909306497562433E-3},{"$f":"'Population at Risk'!AB113/'Population at Risk'!AB$5","v":5.1542580936005389E-3},{"$f":"'Population at Risk'!AC113/'Population at Risk'!AC$5","v":5.2110574668217781E-3},{"$f":"'Population at Risk'!AD113/'Population at Risk'!AD$5","v":8.2188085499343595E-3},{"$f":"'Population at Risk'!AE113/'Population at Risk'!AE$5","v":7.9632122523943926E-3},{"$f":"'Population at Risk'!AF113/'Population at Risk'!AF$5","v":3.9078484774013357E-3},{"$f":"'Population at Risk'!AG113/'Population at Risk'!AG$5","v":7.9632122523943926E-3},{"$f":"'Population at Risk'!AH113/'Population at Risk'!AH$5","v":9.6655714824189221E-3},{"$f":"'Population at Risk'!AI113/'Population at Risk'!AI$5","v":6.5993000913325758E-3},{"$f":"'Population at Risk'!AJ113/'Population at Risk'!AJ$5","v":1.1842495780542805E-2},{"$f":"'Population at Risk'!AK113/'Population at Risk'!AK$5","v":6.2871866874087984E-3},{"$f":"'Population at Risk'!AL113/'Population at Risk'!AL$5","v":6.4112159354384347E-3},{"$f":"'Population at Risk'!AM113/'Population at Risk'!AM$5","v":9.5216039676998977E-3},{"$f":"'Population at Risk'!AN113/'Population at Risk'!AN$5","v":5.5392874076818453E-3},{"$f":"'Population at Risk'!AO113/'Population at Risk'!AO$5","v":5.5392874076818453E-3},{"$f":"'Population at Risk'!AP113/'Population at Risk'!AP$5","v":3.6357340395552109E-3},{"$f":"'Population at Risk'!AQ113/'Population at Risk'!AQ$5","v":7.4689480664234765E-3},{"$f":"'Population at Risk'!AR113/'Population at Risk'!AR$5","v":7.0088797974682667E-3},{"$f":"'Population at Risk'!AS113/'Population at Risk'!AS$5","v":7.1387205345733798E-3},{"$f":"'Population at Risk'!AT113/'Population at Risk'!AT$5","v":8.606123372608491E-4},{"$f":"'Population at Risk'!AU113/'Population at Risk'!AU$5","v":8.606123372608491E-4},{"$f":"'Population at Risk'!AV113/'Population at Risk'!AV$5","v":1.1501052428309774E-2},{"$f":"'Population at Risk'!AW113/'Population at Risk'!AW$5","v":9.829831950098079E-3},{"$f":"'Population at Risk'!AX113/'Population at Risk'!AX$5","v":5.7834445181730049E-3},{"$f":"'Population at Risk'!AY113/'Population at Risk'!AY$5","v":6.4315408555577483E-3},{"$f":"'Population at Risk'!AZ113/'Population at Risk'!AZ$5","v":5.6025139498058858E-3},{"$f":"'Population at Risk'!BA113/'Population at Risk'!BA$5","v":1.0068316271259346E-2},{"$f":"'Population at Risk'!BB113/'Population at Risk'!BB$5","v":8.8710426789307198E-3},{"$f":"'Population at Risk'!BC113/'Population at Risk'!BC$5","v":1.0193237108461184E-2},111]
[null,"Female 80-84",{"$f":"'Population at Risk'!C114/'Population at Risk'!C$5","v":5.7155932597729624E-3},{"$f":"'Population at Risk'!D114/'Population at Risk'!D$5","v":4.2205867897456518E-3},{"$f":"'Population at Risk'!E114/'Population at Risk'!E$5","v":2.7198611108854758E-3},{"$f":"'Population at Risk'!F114/'Population at Risk'!F$5","v":5.2109458046091872E-3},{"$f":"'Population at Risk'!G114/'Population at Risk'!G$5","v":6.7467329021125289E-3},{"$f":"'Population at Risk'!H114/'Population at Risk'!H$5","v":6.947260101111085E-3},{"$f":"'Population at Risk'!I114/'Population at Risk'!I$5","v":5.6528330024902332E-3},{"$f":"'Population at Risk'!J114/'Population at Risk'!J$5","v":4.3528697380693414E-3},{"$f":"'Population at Risk'!K114/'Population at Risk'!K$5","v":5.1635495082179607E-3},{"$f":"'Population at Risk'!L114/'Population at Risk'!L$5","v":9.2976123414331667E-3},{"$f":"'Population at Risk'!M114/'Population at Risk'!M$5","v":9.2976123414331667E-3},{"$f":"'Population at Risk'!N114/'Population at Risk'!N$5","v":5.2407509063948877E-3},{"$f":"'Population at Risk'!O114/'Population at Risk'!O$5","v":6.9524569699946966E-3},{"$f":"'Population at Risk'!P114/'Population at Risk'!P$5","v":6.9418411902838935E-3},{"$f":"'Population at Risk'!Q114/'Population at Risk'!Q$5","v":8.7095883230790434E-3},{"$f":"'Population at Risk'!R114/'Population at Risk'!R$5","v":3.5367533631137055E-3},{"$f":"'Population at Risk'!S114/'Population at Risk'!S$5","v":5.271405503006984E-3},{"$f":"'Population at Risk'!T114/'Population at Risk'!T$5","v":2.929102682461169E-3},{"$f":"'Population at Risk'!U114/'Population at Risk'!U$5","v":9.3949715517744632E-3},{"$f":"'Population at Risk'!V114/'Population at Risk'!V$5","v":7.5603379330313955E-3},{"$f":"'Population at Risk'!W114/'Population at Risk'!W$5","v":5.8507212925346819E-3},{"$f":"'Population at Risk'!X114/'Population at Risk'!X$5","v":5.8507212925346819E-3},{"$f":"'Population at Risk'!Y114/'Population at Risk'!Y$5","v":6.0456906059397032E-3},{"$f":"'Population at Risk'!Z114/'Population at Risk'!Z$5","v":3.5989114651646761E-3},{"$f":"'Population at Risk'!AA114/'Population at Risk'!AA$5","v":5.4824745458152439E-3},{"$f":"'Population at Risk'!AB114/'Population at Risk'!AB$5","v":4.2683699837629463E-3},{"$f":"'Population at Risk'!AC114/'Population at Risk'!AC$5","v":4.4525710775196424E-3},{"$f":"'Population at Risk'!AD114/'Population at Risk'!AD$5","v":6.0189372396937764E-3},{"$f":"'Population at Risk'!AE114/'Population at Risk'!AE$5","v":5.7409204610285158E-3},{"$f":"'Population at Risk'!AF114/'Population at Risk'!AF$5","v":3.0179423884881605E-3},{"$f":"'Population at Risk'!AG114/'Population at Risk'!AG$5","v":5.7409204610285158E-3},{"$f":"'Population at Risk'!AH114/'Population at Risk'!AH$5","v":7.356424047359672E-3},{"$f":"'Population at Risk'!AI114/'Population at Risk'!AI$5","v":4.9679203172019138E-3},{"$f":"'Population at Risk'!AJ114/'Population at Risk'!AJ$5","v":9.3203003397616425E-3},{"$f":"'Population at Risk'!AK114/'Population at Risk'!AK$5","v":4.5112605776537152E-3},{"$f":"'Population at Risk'!AL114/'Population at Risk'!AL$5","v":5.395354255527415E-3},{"$f":"'Population at Risk'!AM114/'Population at Risk'!AM$5","v":7.03310747179379E-3},{"$f":"'Population at Risk'!AN114/'Population at Risk'!AN$5","v":5.2755118168398528E-3},{"$f":"'Population at Risk'!AO114/'Population at Risk'!AO$5","v":5.2755118168398528E-3},{"$f":"'Population at Risk'!AP114/'Population at Risk'!AP$5","v":3.0426710401951413E-3},{"$f":"'Population at Risk'!AQ114/'Population at Risk'!AQ$5","v":6.2256697547455305E-3},{"$f":"'Population at Risk'!AR114/'Population at Risk'!AR$5","v":5.5237573898935634E-3},{"$f":"'Population at Risk'!AS114/'Population at Risk'!AS$5","v":5.6528330024902332E-3},{"$f":"'Population at Risk'!AT114/'Population at Risk'!AT$5","v":1.2909185058912736E-3},{"$f":"'Population at Risk'!AU114/'Population at Risk'!AU$5","v":1.2909185058912736E-3},{"$f":"'Population at Risk'!AV114/'Population at Risk'!AV$5","v":9.0001725382997059E-3},{"$f":"'Population at Risk'!AW114/'Population at Risk'!AW$5","v":7.7253137376104494E-3},{"$f":"'Population at Risk'!AX114/'Population at Risk'!AX$5","v":3.8556296787820034E-3},{"$f":"'Population at Risk'!AY114/'Population at Risk'!AY$5","v":5.14921917671204E-3},{"$f":"'Population at Risk'!AZ114/'Population at Risk'!AZ$5","v":4.512432050069899E-3},{"$f":"'Population at Risk'!BA114/'Population at Risk'!BA$5","v":7.1538036664211147E-3},{"$f":"'Population at Risk'!BB114/'Population at Risk'!BB$5","v":6.3102297051653173E-3},{"$f":"'Population at Risk'!BC114/'Population at Risk'!BC$5","v":9.3949715517744632E-3},112]
[null,"Female 85-89",{"$f":"'Population at Risk'!C115/'Population at Risk'!C$5","v":3.2145201923828304E-3},{"$f":"'Population at Risk'!D115/'Population at Risk'!D$5","v":2.3572639824744981E-3},{"$f":"'Population at Risk'!E115/'Population at Risk'!E$5","v":1.4967283036233683E-3},{"$f":"'Population at Risk'!F115/'Population at Risk'!F$5","v":3.8687324913007602E-3},{"$f":"'Population at Risk'!G115/'Population at Risk'!G$5","v":3.7773624332186912E-3},{"$f":"'Population at Risk'!H115/'Population at Risk'!H$5","v":3.8167046234499173E-3},{"$f":"'Population at Risk'!I115/'Population at Risk'!I$5","v":3.4401526558011986E-3},{"$f":"'Population at Risk'!J115/'Population at Risk'!J$5","v":2.5361257857658909E-3},{"$f":"'Population at Risk'!K115/'Population at Risk'!K$5","v":3.2713170797405715E-3},{"$f":"'Population at Risk'!L115/'Population at Risk'!L$5","v":5.1779848413122283E-3},{"$f":"'Population at Risk'!M115/'Population at Risk'!M$5","v":5.1779848413122283E-3},{"$f":"'Population at Risk'!N115/'Population at Risk'!N$5","v":2.8709292813916217E-3},{"$f":"'Population at Risk'!O115/'Population at Risk'!O$5","v":3.7139742409028971E-3},{"$f":"'Population at Risk'!P115/'Population at Risk'!P$5","v":4.0262678903646579E-3},{"$f":"'Population at Risk'!Q115/'Population at Risk'!Q$5","v":4.9047785173447203E-3},{"$f":"'Population at Risk'!R115/'Population at Risk'!R$5","v":1.5692879160835646E-3},{"$f":"'Population at Risk'!S115/'Population at Risk'!S$5","v":3.3045997782432768E-3},{"$f":"'Population at Risk'!T115/'Population at Risk'!T$5","v":1.9982590079121601E-3},{"$f":"'Population at Risk'!U115/'Population at Risk'!U$5","v":3.8685176977894852E-3},{"$f":"'Population at Risk'!V115/'Population at Risk'!V$5","v":4.7238475108262535E-3},{"$f":"'Population at Risk'!W115/'Population at Risk'!W$5","v":3.7655000204141272E-3},{"$f":"'Population at Risk'!X115/'Population at Risk'!X$5","v":3.7655000204141272E-3},{"$f":"'Population at Risk'!Y115/'Population at Risk'!Y$5","v":3.6907501699117613E-3},{"$f":"'Population at Risk'!Z115/'Population at Risk'!Z$5","v":2.2362168327236822E-3},{"$f":"'Population at Risk'!AA115/'Population at Risk'!AA$5","v":3.1933284184553425E-3},{"$f":"'Population at Risk'!AB115/'Population at Risk'!AB$5","v":2.4429035756127556E-3},{"$f":"'Population at Risk'!AC115/'Population at Risk'!AC$5","v":2.5866676153820612E-3},{"$f":"'Population at Risk'!AD115/'Population at Risk'!AD$5","v":3.7743984916818116E-3},{"$f":"'Population at Risk'!AE115/'Population at Risk'!AE$5","v":3.7732662707566453E-3},{"$f":"'Population at Risk'!AF115/'Population at Risk'!AF$5","v":1.5476627633272619E-3},{"$f":"'Population at Risk'!AG115/'Population at Risk'!AG$5","v":3.7732662707566453E-3},{"$f":"'Population at Risk'!AH115/'Population at Risk'!AH$5","v":4.2971713945423214E-3},{"$f":"'Population at Risk'!AI115/'Population at Risk'!AI$5","v":3.0844554774706605E-3},{"$f":"'Population at Risk'!AJ115/'Population at Risk'!AJ$5","v":6.0493281274985712E-3},{"$f":"'Population at Risk'!AK115/'Population at Risk'!AK$5","v":2.8782250744306508E-3},{"$f":"'Population at Risk'!AL115/'Population at Risk'!AL$5","v":2.7541138877587639E-3},{"$f":"'Population at Risk'!AM115/'Population at Risk'!AM$5","v":3.8730389086006354E-3},{"$f":"'Population at Risk'!AN115/'Population at Risk'!AN$5","v":2.5498307114725956E-3},{"$f":"'Population at Risk'!AO115/'Population at Risk'!AO$5","v":2.5498307114725956E-3},{"$f":"'Population at Risk'!AP115/'Population at Risk'!AP$5","v":2.6301054754229187E-3},{"$f":"'Population at Risk'!AQ115/'Population at Risk'!AQ$5","v":3.2752033135993626E-3},{"$f":"'Population at Risk'!AR115/'Population at Risk'!AR$5","v":3.2918052768278129E-3},{"$f":"'Population at Risk'!AS115/'Population at Risk'!AS$5","v":3.4401526558011986E-3},{"$f":"'Population at Risk'!AT115/'Population at Risk'!AT$5","v":4.3030616863042455E-4},{"$f":"'Population at Risk'!AU115/'Population at Risk'!AU$5","v":4.3030616863042455E-4},{"$f":"'Population at Risk'!AV115/'Population at Risk'!AV$5","v":5.3461923397221207E-3},{"$f":"'Population at Risk'!AW115/'Population at Risk'!AW$5","v":4.7810875101651626E-3},{"$f":"'Population at Risk'!AX115/'Population at Risk'!AX$5","v":2.0851874793412876E-3},{"$f":"'Population at Risk'!AY115/'Population at Risk'!AY$5","v":3.3951625797417452E-3},{"$f":"'Population at Risk'!AZ115/'Population at Risk'!AZ$5","v":3.0589895170885831E-3},{"$f":"'Population at Risk'!BA115/'Population at Risk'!BA$5","v":4.2558507922921904E-3},{"$f":"'Population at Risk'!BB115/'Population at Risk'!BB$5","v":3.5754747180875455E-3},{"$f":"'Population at Risk'!BC115/'Population at Risk'!BC$5","v":3.8685176977894852E-3},113]
[null,"Female 90+",{"$f":"'Population at Risk'!C116/'Population at Risk'!C$5","v":1.5631706671188328E-3},{"$f":"'Population at Risk'!D116/'Population at Risk'!D$5","v":1.2408766108766951E-3},{"$f":"'Population at Risk'!E116/'Population at Risk'!E$5","v":9.1734960544658059E-4},{"$f":"'Population at Risk'!F116/'Population at Risk'!F$5","v":2.5423099228547852E-3},{"$f":"'Population at Risk'!G116/'Population at Risk'!G$5","v":2.1007791072446195E-3},{"$f":"'Population at Risk'!H116/'Population at Risk'!H$5","v":2.658827939931403E-3},{"$f":"'Population at Risk'!I116/'Population at Risk'!I$5","v":2.3741898610458979E-3},{"$f":"'Population at Risk'!J116/'Population at Risk'!J$5","v":1.5363069663774146E-3},{"$f":"'Population at Risk'!K116/'Population at Risk'!K$5","v":1.9563759006291652E-3},{"$f":"'Population at Risk'!L116/'Population at Risk'!L$5","v":3.1409314641806041E-3},{"$f":"'Population at Risk'!M116/'Population at Risk'!M$5","v":3.1409314641806041E-3},{"$f":"'Population at Risk'!N116/'Population at Risk'!N$5","v":1.7225575688349728E-3},{"$f":"'Population at Risk'!O116/'Population at Risk'!O$5","v":2.3646064371146474E-3},{"$f":"'Population at Risk'!P116/'Population at Risk'!P$5","v":2.7569026441413179E-3},{"$f":"'Population at Risk'!Q116/'Population at Risk'!Q$5","v":2.6507442722414482E-3},{"$f":"'Population at Risk'!R116/'Population at Risk'!R$5","v":8.1977726959589199E-4},{"$f":"'Population at Risk'!S116/'Population at Risk'!S$5","v":1.9040353292925252E-3},{"$f":"'Population at Risk'!T116/'Population at Risk'!T$5","v":1.2075809831987153E-3},{"$f":"'Population at Risk'!U116/'Population at Risk'!U$5","v":3.5000874408571536E-3},{"$f":"'Population at Risk'!V116/'Population at Risk'!V$5","v":3.0110436789562264E-3},{"$f":"'Population at Risk'!W116/'Population at Risk'!W$5","v":2.243474672236847E-3},{"$f":"'Population at Risk'!X116/'Population at Risk'!X$5","v":2.243474672236847E-3},{"$f":"'Population at Risk'!Y116/'Population at Risk'!Y$5","v":2.3146358319883435E-3},{"$f":"'Population at Risk'!Z116/'Population at Risk'!Z$5","v":1.3114479966910761E-3},{"$f":"'Population at Risk'!AA116/'Population at Risk'!AA$5","v":1.6492632752000505E-3},{"$f":"'Population at Risk'!AB116/'Population at Risk'!AB$5","v":1.2516525188235683E-3},{"$f":"'Population at Risk'!AC116/'Population at Risk'!AC$5","v":1.3916810659842028E-3},{"$f":"'Population at Risk'!AD116/'Population at Risk'!AD$5","v":2.0993695752549724E-3},{"$f":"'Population at Risk'!AE116/'Population at Risk'!AE$5","v":2.0988311362899951E-3},{"$f":"'Population at Risk'!AF116/'Population at Risk'!AF$5","v":5.0299039808136012E-4},{"$f":"'Population at Risk'!AG116/'Population at Risk'!AG$5","v":2.0988311362899951E-3},{"$f":"'Population at Risk'!AH116/'Population at Risk'!AH$5","v":2.1179441442581663E-3},{"$f":"'Population at Risk'!AI116/'Population at Risk'!AI$5","v":1.6949134085503228E-3},{"$f":"'Population at Risk'!AJ116/'Population at Risk'!AJ$5","v":2.7389466114732947E-3},{"$f":"'Population at Risk'!AK116/'Population at Risk'!AK$5","v":1.3064284025784516E-3},{"$f":"'Population at Risk'!AL116/'Population at Risk'!AL$5","v":1.7382522078477445E-3},{"$f":"'Population at Risk'!AM116/'Population at Risk'!AM$5","v":1.6559311248173737E-3},{"$f":"'Population at Risk'!AN116/'Population at Risk'!AN$5","v":1.0551023633679705E-3},{"$f":"'Population at Risk'!AO116/'Population at Risk'!AO$5","v":1.0551023633679705E-3},{"$f":"'Population at Risk'!AP116/'Population at Risk'!AP$5","v":1.2376966943166677E-3},{"$f":"'Population at Risk'!AQ116/'Population at Risk'!AQ$5","v":1.558736987775334E-3},{"$f":"'Population at Risk'!AR116/'Population at Risk'!AR$5","v":1.8629638546796151E-3},{"$f":"'Population at Risk'!AS116/'Population at Risk'!AS$5","v":2.3741898610458979E-3},{"$f":"'Population at Risk'!AT116/'Population at Risk'!AT$5","v":8.6061233726084915E-5},{"$f":"'Population at Risk'!AU116/'Population at Risk'!AU$5","v":8.6061233726084915E-5},{"$f":"'Population at Risk'!AV116/'Population at Risk'!AV$5","v":4.2230426885199943E-3},{"$f":"'Population at Risk'!AW116/'Population at Risk'!AW$5","v":2.6450802471166212E-3},{"$f":"'Population at Risk'!AX116/'Population at Risk'!AX$5","v":1.2786526995960726E-3},{"$f":"'Population at Risk'!AY116/'Population at Risk'!AY$5","v":2.0021050046226596E-3},{"$f":"'Population at Risk'!AZ116/'Population at Risk'!AZ$5","v":1.7830021770875444E-3},{"$f":"'Population at Risk'!BA116/'Population at Risk'!BA$5","v":1.6890925323494298E-3},{"$f":"'Population at Risk'!BB116/'Population at Risk'!BB$5","v":1.9810062627241805E-3},{"$f":"'Population at Risk'!BC116/'Population at Risk'!BC$5","v":3.5000874408571536E-3},114]
[null,"Male 0-4",{"$f":"'Population at Risk'!C117/'Population at Risk'!C$5","v":0},{"$f":"'Population at Risk'!D117/'Population at Risk'!D$5","v":0},{"$f":"'Population at Risk'!E117/'Population at Risk'!E$5","v":0},{"$f":"'Population at Risk'!F117/'Population at Risk'!F$5","v":0},{"$f":"'Population at Risk'!G117/'Population at Risk'!G$5","v":0},{"$f":"'Population at Risk'!H117/'Population at Risk'!H$5","v":0},{"$f":"'Population at Risk'!I117/'Population at Risk'!I$5","v":0},{"$f":"'Population at Risk'!J117/'Population at Risk'!J$5","v":0},{"$f":"'Population at Risk'!K117/'Population at Risk'!K$5","v":0},{"$f":"'Population at Risk'!L117/'Population at Risk'!L$5","v":0},{"$f":"'Population at Risk'!M117/'Population at Risk'!M$5","v":0},{"$f":"'Population at Risk'!N117/'Population at Risk'!N$5","v":0},{"$f":"'Population at Risk'!O117/'Population at Risk'!O$5","v":0},{"$f":"'Population at Risk'!P117/'Population at Risk'!P$5","v":0},{"$f":"'Population at Risk'!Q117/'Population at Risk'!Q$5","v":0},{"$f":"'Population at Risk'!R117/'Population at Risk'!R$5","v":0},{"$f":"'Population at Risk'!S117/'Population at Risk'!S$5","v":0},{"$f":"'Population at Risk'!T117/'Population at Risk'!T$5","v":0},{"$f":"'Population at Risk'!U117/'Population at Risk'!U$5","v":0},{"$f":"'Population at Risk'!V117/'Population at Risk'!V$5","v":0},{"$f":"'Population at Risk'!W117/'Population at Risk'!W$5","v":0},{"$f":"'Population at Risk'!X117/'Population at Risk'!X$5","v":0},{"$f":"'Population at Risk'!Y117/'Population at Risk'!Y$5","v":0},{"$f":"'Population at Risk'!Z117/'Population at Risk'!Z$5","v":0},{"$f":"'Population at Risk'!AA117/'Population at Risk'!AA$5","v":0},{"$f":"'Population at Risk'!AB117/'Population at Risk'!AB$5","v":0},{"$f":"'Population at Risk'!AC117/'Population at Risk'!AC$5","v":0},{"$f":"'Population at Risk'!AD117/'Population at Risk'!AD$5","v":0},{"$f":"'Population at Risk'!AE117/'Population at Risk'!AE$5","v":0},{"$f":"'Population at Risk'!AF117/'Population at Risk'!AF$5","v":0},{"$f":"'Population at Risk'!AG117/'Population at Risk'!AG$5","v":0},{"$f":"'Population at Risk'!AH117/'Population at Risk'!AH$5","v":0},{"$f":"'Population at Risk'!AI117/'Population at Risk'!AI$5","v":0},{"$f":"'Population at Risk'!AJ117/'Population at Risk'!AJ$5","v":0},{"$f":"'Population at Risk'!AK117/'Population at Risk'!AK$5","v":0},{"$f":"'Population at Risk'!AL117/'Population at Risk'!AL$5","v":0},{"$f":"'Population at Risk'!AM117/'Population at Risk'!AM$5","v":0},{"$f":"'Population at Risk'!AN117/'Population at Risk'!AN$5","v":0},{"$f":"'Population at Risk'!AO117/'Population at Risk'!AO$5","v":0},{"$f":"'Population at Risk'!AP117/'Population at Risk'!AP$5","v":0},{"$f":"'Population at Risk'!AQ117/'Population at Risk'!AQ$5","v":0},{"$f":"'Population at Risk'!AR117/'Population at Risk'!AR$5","v":0},{"$f":"'Population at Risk'!AS117/'Population at Risk'!AS$5","v":0},{"$f":"'Population at Risk'!AT117/'Population at Risk'!AT$5","v":0},{"$f":"'Population at Risk'!AU117/'Population at Risk'!AU$5","v":0},{"$f":"'Population at Risk'!AV117/'Population at Risk'!AV$5","v":0},{"$f":"'Population at Risk'!AW117/'Population at Risk'!AW$5","v":0},{"$f":"'Population at Risk'!AX117/'Population at Risk'!AX$5","v":0},{"$f":"'Population at Risk'!AY117/'Population at Risk'!AY$5","v":0},{"$f":"'Population at Risk'!AZ117/'Population at Risk'!AZ$5","v":0},{"$f":"'Population at Risk'!BA117/'Population at Risk'!BA$5","v":0},{"$f":"'Population at Risk'!BB117/'Population at Risk'!BB$5","v":0},{"$f":"'Population at Risk'!BC117/'Population at Risk'!BC$5","v":0},115]
[null,"Male 5-9",{"$f":"'Population at Risk'!C118/'Population at Risk'!C$5","v":0},{"$f":"'Population at Risk'!D118/'Population at Risk'!D$5","v":0},{"$f":"'Population at Risk'!E118/'Population at Risk'!E$5","v":0},{"$f":"'Population at Risk'!F118/'Population at Risk'!F$5","v":0},{"$f":"'Population at Risk'!G118/'Population at Risk'!G$5","v":0},{"$f":"'Population at Risk'!H118/'Population at Risk'!H$5","v":0},{"$f":"'Population at Risk'!I118/'Population at Risk'!I$5","v":0},{"$f":"'Population at Risk'!J118/'Population at Risk'!J$5","v":0},{"$f":"'Population at Risk'!K118/'Population at Risk'!K$5","v":0},{"$f":"'Population at Risk'!L118/'Population at Risk'!L$5","v":0},{"$f":"'Population at Risk'!M118/'Population at Risk'!M$5","v":0},{"$f":"'Population at Risk'!N118/'Population at Risk'!N$5","v":0},{"$f":"'Population at Risk'!O118/'Population at Risk'!O$5","v":0},{"$f":"'Population at Risk'!P118/'Population at Risk'!P$5","v":0},{"$f":"'Population at Risk'!Q118/'Population at Risk'!Q$5","v":0},{"$f":"'Population at Risk'!R118/'Population at Risk'!R$5","v":0},{"$f":"'Population at Risk'!S118/'Population at Risk'!S$5","v":0},{"$f":"'Population at Risk'!T118/'Population at Risk'!T$5","v":0},{"$f":"'Population at Risk'!U118/'Population at Risk'!U$5","v":0},{"$f":"'Population at Risk'!V118/'Population at Risk'!V$5","v":0},{"$f":"'Population at Risk'!W118/'Population at Risk'!W$5","v":0},{"$f":"'Population at Risk'!X118/'Population at Risk'!X$5","v":0},{"$f":"'Population at Risk'!Y118/'Population at Risk'!Y$5","v":0},{"$f":"'Population at Risk'!Z118/'Population at Risk'!Z$5","v":0},{"$f":"'Population at Risk'!AA118/'Population at Risk'!AA$5","v":0},{"$f":"'Population at Risk'!AB118/'Population at Risk'!AB$5","v":0},{"$f":"'Population at Risk'!AC118/'Population at Risk'!AC$5","v":0},{"$f":"'Population at Risk'!AD118/'Population at Risk'!AD$5","v":0},{"$f":"'Population at Risk'!AE118/'Population at Risk'!AE$5","v":0},{"$f":"'Population at Risk'!AF118/'Population at Risk'!AF$5","v":0},{"$f":"'Population at Risk'!AG118/'Population at Risk'!AG$5","v":0},{"$f":"'Population at Risk'!AH118/'Population at Risk'!AH$5","v":0},{"$f":"'Population at Risk'!AI118/'Population at Risk'!AI$5","v":0},{"$f":"'Population at Risk'!AJ118/'Population at Risk'!AJ$5","v":0},{"$f":"'Population at Risk'!AK118/'Population at Risk'!AK$5","v":0},{"$f":"'Population at Risk'!AL118/'Population at Risk'!AL$5","v":0},{"$f":"'Population at Risk'!AM118/'Population at Risk'!AM$5","v":0},{"$f":"'Population at Risk'!AN118/'Population at Risk'!AN$5","v":0},{"$f":"'Population at Risk'!AO118/'Population at Risk'!AO$5","v":0},{"$f":"'Population at Risk'!AP118/'Population at Risk'!AP$5","v":0},{"$f":"'Population at Risk'!AQ118/'Population at Risk'!AQ$5","v":0},{"$f":"'Population at Risk'!AR118/'Population at Risk'!AR$5","v":0},{"$f":"'Population at Risk'!AS118/'Population at Risk'!AS$5","v":0},{"$f":"'Population at Risk'!AT118/'Population at Risk'!AT$5","v":0},{"$f":"'Population at Risk'!AU118/'Population at Risk'!AU$5","v":0},{"$f":"'Population at Risk'!AV118/'Population at Risk'!AV$5","v":0},{"$f":"'Population at Risk'!AW118/'Population at Risk'!AW$5","v":0},{"$f":"'Population at Risk'!AX118/'Population at Risk'!AX$5","v":0},{"$f":"'Population at Risk'!AY118/'Population at Risk'!AY$5","v":0},{"$f":"'Population at Risk'!AZ118/'Population at Risk'!AZ$5","v":0},{"$f":"'Population at Risk'!BA118/'Population at Risk'!BA$5","v":0},{"$f":"'Population at Risk'!BB118/'Population at Risk'!BB$5","v":0},{"$f":"'Population at Risk'!BC118/'Population at Risk'!BC$5","v":0},116]
[null,"Male 10-15",{"$f":"'Population at Risk'!C119/'Population at Risk'!C$5","v":0},{"$f":"'Population at Risk'!D119/'Population at Risk'!D$5","v":0},{"$f":"'Population at Risk'!E119/'Population at Risk'!E$5","v":0},{"$f":"'Population at Risk'!F119/'Population at Risk'!F$5","v":0},{"$f":"'Population at Risk'!G119/'Population at Risk'!G$5","v":0},{"$f":"'Population at Risk'!H119/'Population at Risk'!H$5","v":0},{"$f":"'Population at Risk'!I119/'Population at Risk'!I$5","v":0},{"$f":"'Population at Risk'!J119/'Population at Risk'!J$5","v":0},{"$f":"'Population at Risk'!K119/'Population at Risk'!K$5","v":0},{"$f":"'Population at Risk'!L119/'Population at Risk'!L$5","v":0},{"$f":"'Population at Risk'!M119/'Population at Risk'!M$5","v":0},{"$f":"'Population at Risk'!N119/'Population at Risk'!N$5","v":0},{"$f":"'Population at Risk'!O119/'Population at Risk'!O$5","v":0},{"$f":"'Population at Risk'!P119/'Population at Risk'!P$5","v":0},{"$f":"'Population at Risk'!Q119/'Population at Risk'!Q$5","v":0},{"$f":"'Population at Risk'!R119/'Population at Risk'!R$5","v":0},{"$f":"'Population at Risk'!S119/'Population at Risk'!S$5","v":0},{"$f":"'Population at Risk'!T119/'Population at Risk'!T$5","v":0},{"$f":"'Population at Risk'!U119/'Population at Risk'!U$5","v":0},{"$f":"'Population at Risk'!V119/'Population at Risk'!V$5","v":0},{"$f":"'Population at Risk'!W119/'Population at Risk'!W$5","v":0},{"$f":"'Population at Risk'!X119/'Population at Risk'!X$5","v":0},{"$f":"'Population at Risk'!Y119/'Population at Risk'!Y$5","v":0},{"$f":"'Population at Risk'!Z119/'Population at Risk'!Z$5","v":0},{"$f":"'Population at Risk'!AA119/'Population at Risk'!AA$5","v":0},{"$f":"'Population at Risk'!AB119/'Population at Risk'!AB$5","v":0},{"$f":"'Population at Risk'!AC119/'Population at Risk'!AC$5","v":0},{"$f":"'Population at Risk'!AD119/'Population at Risk'!AD$5","v":0},{"$f":"'Population at Risk'!AE119/'Population at Risk'!AE$5","v":0},{"$f":"'Population at Risk'!AF119/'Population at Risk'!AF$5","v":0},{"$f":"'Population at Risk'!AG119/'Population at Risk'!AG$5","v":0},{"$f":"'Population at Risk'!AH119/'Population at Risk'!AH$5","v":0},{"$f":"'Population at Risk'!AI119/'Population at Risk'!AI$5","v":0},{"$f":"'Population at Risk'!AJ119/'Population at Risk'!AJ$5","v":0},{"$f":"'Population at Risk'!AK119/'Population at Risk'!AK$5","v":0},{"$f":"'Population at Risk'!AL119/'Population at Risk'!AL$5","v":0},{"$f":"'Population at Risk'!AM119/'Population at Risk'!AM$5","v":0},{"$f":"'Population at Risk'!AN119/'Population at Risk'!AN$5","v":0},{"$f":"'Population at Risk'!AO119/'Population at Risk'!AO$5","v":0},{"$f":"'Population at Risk'!AP119/'Population at Risk'!AP$5","v":0},{"$f":"'Population at Risk'!AQ119/'Population at Risk'!AQ$5","v":0},{"$f":"'Population at Risk'!AR119/'Population at Risk'!AR$5","v":0},{"$f":"'Population at Risk'!AS119/'Population at Risk'!AS$5","v":0},{"$f":"'Population at Risk'!AT119/'Population at Risk'!AT$5","v":0},{"$f":"'Population at Risk'!AU119/'Population at Risk'!AU$5","v":0},{"$f":"'Population at Risk'!AV119/'Population at Risk'!AV$5","v":0},{"$f":"'Population at Risk'!AW119/'Population at Risk'!AW$5","v":0},{"$f":"'Population at Risk'!AX119/'Population at Risk'!AX$5","v":0},{"$f":"'Population at Risk'!AY119/'Population at Risk'!AY$5","v":0},{"$f":"'Population at Risk'!AZ119/'Population at Risk'!AZ$5","v":0},{"$f":"'Population at Risk'!BA119/'Population at Risk'!BA$5","v":0},{"$f":"'Population at Risk'!BB119/'Population at Risk'!BB$5","v":0},{"$f":"'Population at Risk'!BC119/'Population at Risk'!BC$5","v":0},117]
[null,"Male 16-19",{"$f":"'Population at Risk'!C120/'Population at Risk'!C$5","v":4.6481847001561168E-3},{"$f":"'Population at Risk'!D120/'Population at Risk'!D$5","v":3.3983941407823163E-3},{"$f":"'Population at Risk'!E120/'Population at Risk'!E$5","v":2.143822456142701E-3},{"$f":"'Population at Risk'!F120/'Population at Risk'!F$5","v":3.8604424459828457E-3},{"$f":"'Population at Risk'!G120/'Population at Risk'!G$5","v":3.8493774022174492E-3},{"$f":"'Population at Risk'!H120/'Population at Risk'!H$5","v":5.4625082577519583E-3},{"$f":"'Population at Risk'!I120/'Population at Risk'!I$5","v":3.6953947225838927E-3},{"$f":"'Population at Risk'!J120/'Population at Risk'!J$5","v":4.7464500346946804E-3},{"$f":"'Population at Risk'!K120/'Population at Risk'!K$5","v":6.1519635607896715E-3},{"$f":"'Population at Risk'!L120/'Population at Risk'!L$5","v":6.4489300615786053E-3},{"$f":"'Population at Risk'!M120/'Population at Risk'!M$5","v":6.4489300615786053E-3},{"$f":"'Population at Risk'!N120/'Population at Risk'!N$5","v":3.6909551119744164E-3},{"$f":"'Population at Risk'!O120/'Population at Risk'!O$5","v":5.8565966388938661E-3},{"$f":"'Population at Risk'!P120/'Population at Risk'!P$5","v":5.2094336520657871E-3},{"$f":"'Population at Risk'!Q120/'Population at Risk'!Q$5","v":6.8726453687839775E-3},{"$f":"'Population at Risk'!R120/'Population at Risk'!R$5","v":3.2007678786878297E-3},{"$f":"'Population at Risk'!S120/'Population at Risk'!S$5","v":4.8627800731276764E-3},{"$f":"'Population at Risk'!T120/'Population at Risk'!T$5","v":3.4176881070078317E-3},{"$f":"'Population at Risk'!U120/'Population at Risk'!U$5","v":5.3889224365859028E-3},{"$f":"'Population at Risk'!V120/'Population at Risk'!V$5","v":7.4816115227120585E-3},{"$f":"'Population at Risk'!W120/'Population at Risk'!W$5","v":4.7704763618366007E-3},{"$f":"'Population at Risk'!X120/'Population at Risk'!X$5","v":4.7704763618366007E-3},{"$f":"'Population at Risk'!Y120/'Population at Risk'!Y$5","v":6.1899993273061213E-3},{"$f":"'Population at Risk'!Z120/'Population at Risk'!Z$5","v":3.4008073161994026E-3},{"$f":"'Population at Risk'!AA120/'Population at Risk'!AA$5","v":4.658072245979185E-3},{"$f":"'Population at Risk'!AB120/'Population at Risk'!AB$5","v":3.5675547954132666E-3},{"$f":"'Population at Risk'!AC120/'Population at Risk'!AC$5","v":3.7893552774239969E-3},{"$f":"'Population at Risk'!AD120/'Population at Risk'!AD$5","v":4.6130304660620958E-3},{"$f":"'Population at Risk'!AE120/'Population at Risk'!AE$5","v":4.9047447147048525E-3},{"$f":"'Population at Risk'!AF120/'Population at Risk'!AF$5","v":2.5830678177664436E-3},{"$f":"'Population at Risk'!AG120/'Population at Risk'!AG$5","v":4.9047447147048525E-3},{"$f":"'Population at Risk'!AH120/'Population at Risk'!AH$5","v":6.2387366289249624E-3},{"$f":"'Population at Risk'!AI120/'Population at Risk'!AI$5","v":5.0515583469692401E-3},{"$f":"'Population at Risk'!AJ120/'Population at Risk'!AJ$5","v":8.8564113711926372E-3},{"$f":"'Population at Risk'!AK120/'Population at Risk'!AK$5","v":4.4274289145730568E-3},{"$f":"'Population at Risk'!AL120/'Population at Risk'!AL$5","v":4.6911082622636035E-3},{"$f":"'Population at Risk'!AM120/'Population at Risk'!AM$5","v":6.375266876095128E-3},{"$f":"'Population at Risk'!AN120/'Population at Risk'!AN$5","v":3.6928189097518689E-3},{"$f":"'Population at Risk'!AO120/'Population at Risk'!AO$5","v":3.6928189097518689E-3},{"$f":"'Population at Risk'!AP120/'Population at Risk'!AP$5","v":3.0711176442791946E-3},{"$f":"'Population at Risk'!AQ120/'Population at Risk'!AQ$5","v":4.2166875769079227E-3},{"$f":"'Population at Risk'!AR120/'Population at Risk'!AR$5","v":4.6960380113062351E-3},{"$f":"'Population at Risk'!AS120/'Population at Risk'!AS$5","v":3.6953947225838927E-3},{"$f":"'Population at Risk'!AT120/'Population at Risk'!AT$5","v":4.315860643476885E-4},{"$f":"'Population at Risk'!AU120/'Population at Risk'!AU$5","v":4.315860643476885E-4},{"$f":"'Population at Risk'!AV120/'Population at Risk'!AV$5","v":6.0267232621963275E-3},{"$f":"'Population at Risk'!AW120/'Population at Risk'!AW$5","v":6.0829617494579441E-3},{"$f":"'Population at Risk'!AX120/'Population at Risk'!AX$5","v":3.8843616308894312E-3},{"$f":"'Population at Risk'!AY120/'Population at Risk'!AY$5","v":4.1219097339532003E-3},{"$f":"'Population at Risk'!AZ120/'Population at Risk'!AZ$5","v":3.5331746894101987E-3},{"$f":"'Population at Risk'!BA120/'Population at Risk'!BA$5","v":6.0518991662016361E-3},{"$f":"'Population at Risk'!BB120/'Population at Risk'!BB$5","v":6.6028030608863246E-3},{"$f":"'Population at Risk'!BC120/'Population at Risk'!BC$5","v":5.3889224365859028E-3},118]
[null,"Male 20-24",{"$f":"'Population at Risk'!C121/'Population at Risk'!C$5","v":1.1190818732159647E-2},{"$f":"'Population at Risk'!D121/'Population at Risk'!D$5","v":7.1466970116155519E-3},{"$f":"'Population at Risk'!E121/'Population at Risk'!E$5","v":3.0871043368454897E-3},{"$f":"'Population at Risk'!F121/'Population at Risk'!F$5","v":6.0183307875835137E-3},{"$f":"'Population at Risk'!G121/'Population at Risk'!G$5","v":5.0396454147452136E-3},{"$f":"'Population at Risk'!H121/'Population at Risk'!H$5","v":7.0136240376352651E-3},{"$f":"'Population at Risk'!I121/'Population at Risk'!I$5","v":5.4671593156035677E-3},{"$f":"'Population at Risk'!J121/'Population at Risk'!J$5","v":7.8878203475119327E-3},{"$f":"'Population at Risk'!K121/'Population at Risk'!K$5","v":8.1624091688908707E-3},{"$f":"'Population at Risk'!L121/'Population at Risk'!L$5","v":8.7032020742543129E-3},{"$f":"'Population at Risk'!M121/'Population at Risk'!M$5","v":8.7032020742543129E-3},{"$f":"'Population at Risk'!N121/'Population at Risk'!N$5","v":1.0987790129441569E-2},{"$f":"'Population at Risk'!O121/'Population at Risk'!O$5","v":7.8786128099562584E-3},{"$f":"'Population at Risk'!P121/'Population at Risk'!P$5","v":7.6587377796480298E-3},{"$f":"'Population at Risk'!Q121/'Population at Risk'!Q$5","v":9.6420501637709422E-3},{"$f":"'Population at Risk'!R121/'Population at Risk'!R$5","v":4.3313143312518794E-3},{"$f":"'Population at Risk'!S121/'Population at Risk'!S$5","v":7.1900613657118768E-3},{"$f":"'Population at Risk'!T121/'Population at Risk'!T$5","v":6.5988190279669999E-3},{"$f":"'Population at Risk'!U121/'Population at Risk'!U$5","v":6.0047992864814348E-3},{"$f":"'Population at Risk'!V121/'Population at Risk'!V$5","v":8.992979115508554E-3},{"$f":"'Population at Risk'!W121/'Population at Risk'!W$5","v":5.9229767672955951E-3},{"$f":"'Population at Risk'!X121/'Population at Risk'!X$5","v":5.9229767672955951E-3},{"$f":"'Population at Risk'!Y121/'Population at Risk'!Y$5","v":8.4710952893221371E-3},{"$f":"'Population at Risk'!Z121/'Population at Risk'!Z$5","v":6.4117410585794662E-3},{"$f":"'Population at Risk'!AA121/'Population at Risk'!AA$5","v":6.9437812666456999E-3},{"$f":"'Population at Risk'!AB121/'Population at Risk'!AB$5","v":6.9941743483190513E-3},{"$f":"'Population at Risk'!AC121/'Population at Risk'!AC$5","v":6.2789963199570802E-3},{"$f":"'Population at Risk'!AD121/'Population at Risk'!AD$5","v":5.9710394348269618E-3},{"$f":"'Population at Risk'!AE121/'Population at Risk'!AE$5","v":6.326830460388508E-3},{"$f":"'Population at Risk'!AF121/'Population at Risk'!AF$5","v":3.9049194240412905E-3},{"$f":"'Population at Risk'!AG121/'Population at Risk'!AG$5","v":6.326830460388508E-3},{"$f":"'Population at Risk'!AH121/'Population at Risk'!AH$5","v":8.1533833874571065E-3},{"$f":"'Population at Risk'!AI121/'Population at Risk'!AI$5","v":7.9666107094497098E-3},{"$f":"'Population at Risk'!AJ121/'Population at Risk'!AJ$5","v":1.0943905822701083E-2},{"$f":"'Population at Risk'!AK121/'Population at Risk'!AK$5","v":6.2188741401228492E-3},{"$f":"'Population at Risk'!AL121/'Population at Risk'!AL$5","v":5.8868809565660899E-3},{"$f":"'Population at Risk'!AM121/'Population at Risk'!AM$5","v":8.1658777897337855E-3},{"$f":"'Population at Risk'!AN121/'Population at Risk'!AN$5","v":5.0156197132450757E-3},{"$f":"'Population at Risk'!AO121/'Population at Risk'!AO$5","v":5.0156197132450757E-3},{"$f":"'Population at Risk'!AP121/'Population at Risk'!AP$5","v":5.4067834316388983E-3},{"$f":"'Population at Risk'!AQ121/'Population at Risk'!AQ$5","v":5.6765338966374241E-3},{"$f":"'Population at Risk'!AR121/'Population at Risk'!AR$5","v":7.1281944472467579E-3},{"$f":"'Population at Risk'!AS121/'Population at Risk'!AS$5","v":5.4671593156035677E-3},{"$f":"'Population at Risk'!AT121/'Population at Risk'!AT$5","v":2.2658268378253645E-3},{"$f":"'Population at Risk'!AU121/'Population at Risk'!AU$5","v":2.2658268378253645E-3},{"$f":"'Population at Risk'!AV121/'Population at Risk'!AV$5","v":7.5005481098050879E-3},{"$f":"'Population at Risk'!AW121/'Population at Risk'!AW$5","v":8.13912783567277E-3},{"$f":"'Population at Risk'!AX121/'Population at Risk'!AX$5","v":7.7193980347199488E-3},{"$f":"'Population at Risk'!AY121/'Population at Risk'!AY$5","v":6.9221427866253482E-3},{"$f":"'Population at Risk'!AZ121/'Population at Risk'!AZ$5","v":7.8291337195626285E-3},{"$f":"'Population at Risk'!BA121/'Population at Risk'!BA$5","v":8.6678144147141773E-3},{"$f":"'Population at Risk'!BB121/'Population at Risk'!BB$5","v":9.2863276076502153E-3},{"$f":"'Population at Risk'!BC121/'Population at Risk'!BC$5","v":6.0047992864814348E-3},119]
[null,"Male 25-29",{"$f":"'Population at Risk'!C122/'Population at Risk'!C$5","v":1.3361646613746069E-2},{"$f":"'Population at Risk'!D122/'Population at Risk'!D$5","v":8.5035373389353072E-3},{"$f":"'Population at Risk'!E122/'Population at Risk'!E$5","v":3.6268431669802398E-3},{"$f":"'Population at Risk'!F122/'Population at Risk'!F$5","v":7.0378835361379569E-3},{"$f":"'Population at Risk'!G122/'Population at Risk'!G$5","v":4.6091229421287875E-3},{"$f":"'Population at Risk'!H122/'Population at Risk'!H$5","v":6.8577059869710843E-3},{"$f":"'Population at Risk'!I122/'Population at Risk'!I$5","v":5.7506416504867148E-3},{"$f":"'Population at Risk'!J122/'Population at Risk'!J$5","v":7.9566094784495368E-3},{"$f":"'Population at Risk'!K122/'Population at Risk'!K$5","v":7.7804245033516435E-3},{"$f":"'Population at Risk'!L122/'Population at Risk'!L$5","v":7.0838357866676487E-3},{"$f":"'Population at Risk'!M122/'Population at Risk'!M$5","v":7.0838357866676487E-3},{"$f":"'Population at Risk'!N122/'Population at Risk'!N$5","v":1.0176303544539394E-2},{"$f":"'Population at Risk'!O122/'Population at Risk'!O$5","v":7.5724908398352598E-3},{"$f":"'Population at Risk'!P122/'Population at Risk'!P$5","v":7.2111492081101585E-3},{"$f":"'Population at Risk'!Q122/'Population at Risk'!Q$5","v":9.6081390846486509E-3},{"$f":"'Population at Risk'!R122/'Population at Risk'!R$5","v":3.788064737162661E-3},{"$f":"'Population at Risk'!S122/'Population at Risk'!S$5","v":8.4557613712596055E-3},{"$f":"'Population at Risk'!T122/'Population at Risk'!T$5","v":9.6988446279951974E-3},{"$f":"'Population at Risk'!U122/'Population at Risk'!U$5","v":6.81313765196932E-3},{"$f":"'Population at Risk'!V122/'Population at Risk'!V$5","v":9.1160769284965044E-3},{"$f":"'Population at Risk'!W122/'Population at Risk'!W$5","v":6.2935275305697541E-3},{"$f":"'Population at Risk'!X122/'Population at Risk'!X$5","v":6.2935275305697541E-3},{"$f":"'Population at Risk'!Y122/'Population at Risk'!Y$5","v":8.5685471737753545E-3},{"$f":"'Population at Risk'!Z122/'Population at Risk'!Z$5","v":8.8181517314419033E-3},{"$f":"'Population at Risk'!AA122/'Population at Risk'!AA$5","v":7.8833526428090453E-3},{"$f":"'Population at Risk'!AB122/'Population at Risk'!AB$5","v":8.2247283314067637E-3},{"$f":"'Population at Risk'!AC122/'Population at Risk'!AC$5","v":7.6488056045529622E-3},{"$f":"'Population at Risk'!AD122/'Population at Risk'!AD$5","v":5.7925382559429195E-3},{"$f":"'Population at Risk'!AE122/'Population at Risk'!AE$5","v":6.244601012508841E-3},{"$f":"'Population at Risk'!AF122/'Population at Risk'!AF$5","v":3.88066526612799E-3},{"$f":"'Population at Risk'!AG122/'Population at Risk'!AG$5","v":6.244601012508841E-3},{"$f":"'Population at Risk'!AH122/'Population at Risk'!AH$5","v":8.3101201204990628E-3},{"$f":"'Population at Risk'!AI122/'Population at Risk'!AI$5","v":9.7511006748465245E-3},{"$f":"'Population at Risk'!AJ122/'Population at Risk'!AJ$5","v":1.1512099578732967E-2},{"$f":"'Population at Risk'!AK122/'Population at Risk'!AK$5","v":6.8074918570892092E-3},{"$f":"'Population at Risk'!AL122/'Population at Risk'!AL$5","v":5.4906485844895261E-3},{"$f":"'Population at Risk'!AM122/'Population at Risk'!AM$5","v":8.3504174008012157E-3},{"$f":"'Population at Risk'!AN122/'Population at Risk'!AN$5","v":5.7321368151372291E-3},{"$f":"'Population at Risk'!AO122/'Population at Risk'!AO$5","v":5.7321368151372291E-3},{"$f":"'Population at Risk'!AP122/'Population at Risk'!AP$5","v":6.1018258458705055E-3},{"$f":"'Population at Risk'!AQ122/'Population at Risk'!AQ$5","v":5.909178728466827E-3},{"$f":"'Population at Risk'!AR122/'Population at Risk'!AR$5","v":7.8510429943802508E-3},{"$f":"'Population at Risk'!AS122/'Population at Risk'!AS$5","v":5.7506416504867148E-3},{"$f":"'Population at Risk'!AT122/'Population at Risk'!AT$5","v":2.4816198699992085E-3},{"$f":"'Population at Risk'!AU122/'Population at Risk'!AU$5","v":2.4816198699992085E-3},{"$f":"'Population at Risk'!AV122/'Population at Risk'!AV$5","v":7.8384952086198341E-3},{"$f":"'Population at Risk'!AW122/'Population at Risk'!AW$5","v":8.2641427337146328E-3},{"$f":"'Population at Risk'!AX122/'Population at Risk'!AX$5","v":8.0646746241323421E-3},{"$f":"'Population at Risk'!AY122/'Population at Risk'!AY$5","v":7.1886994282282495E-3},{"$f":"'Population at Risk'!AZ122/'Population at Risk'!AZ$5","v":8.0012899075773691E-3},{"$f":"'Population at Risk'!BA122/'Population at Risk'!BA$5","v":8.7612399593039111E-3},{"$f":"'Population at Risk'!BB122/'Population at Risk'!BB$5","v":9.1045990830386659E-3},{"$f":"'Population at Risk'!BC122/'Population at Risk'!BC$5","v":6.81313765196932E-3},120]
[null,"Male 30-34",{"$f":"'Population at Risk'!C123/'Population at Risk'!C$5","v":1.0617961374518784E-2},{"$f":"'Population at Risk'!D123/'Population at Risk'!D$5","v":6.930206718202752E-3},{"$f":"'Population at Risk'!E123/'Population at Risk'!E$5","v":3.2283444045443027E-3},{"$f":"'Population at Risk'!F123/'Population at Risk'!F$5","v":7.1170720991324769E-3},{"$f":"'Population at Risk'!G123/'Population at Risk'!G$5","v":4.9003587324281343E-3},{"$f":"'Population at Risk'!H123/'Population at Risk'!H$5","v":6.5297404321257415E-3},{"$f":"'Population at Risk'!I123/'Population at Risk'!I$5","v":4.8900702767343011E-3},{"$f":"'Population at Risk'!J123/'Population at Risk'!J$5","v":6.3056703359470386E-3},{"$f":"'Population at Risk'!K123/'Population at Risk'!K$5","v":7.3783353817314023E-3},{"$f":"'Population at Risk'!L123/'Population at Risk'!L$5","v":7.112370875435696E-3},{"$f":"'Population at Risk'!M123/'Population at Risk'!M$5","v":7.112370875435696E-3},{"$f":"'Population at Risk'!N123/'Population at Risk'!N$5","v":7.8269189963145434E-3},{"$f":"'Population at Risk'!O123/'Population at Risk'!O$5","v":7.7416635075337062E-3},{"$f":"'Population at Risk'!P123/'Population at Risk'!P$5","v":6.3159720650344149E-3},{"$f":"'Population at Risk'!Q123/'Population at Risk'!Q$5","v":9.3933689168741522E-3},{"$f":"'Population at Risk'!R123/'Population at Risk'!R$5","v":3.2301327216115714E-3},{"$f":"'Population at Risk'!S123/'Population at Risk'!S$5","v":8.0557214731331213E-3},{"$f":"'Population at Risk'!T123/'Population at Risk'!T$5","v":8.7616275861262076E-3},{"$f":"'Population at Risk'!U123/'Population at Risk'!U$5","v":5.6198762552967267E-3},{"$f":"'Population at Risk'!V123/'Population at Risk'!V$5","v":9.1297544632729429E-3},{"$f":"'Population at Risk'!W123/'Population at Risk'!W$5","v":6.1476414032964628E-3},{"$f":"'Population at Risk'!X123/'Population at Risk'!X$5","v":6.1476414032964628E-3},{"$f":"'Population at Risk'!Y123/'Population at Risk'!Y$5","v":7.7961507562572729E-3},{"$f":"'Population at Risk'!Z123/'Population at Risk'!Z$5","v":8.1815042476020838E-3},{"$f":"'Population at Risk'!AA123/'Population at Risk'!AA$5","v":7.5972302689774002E-3},{"$f":"'Population at Risk'!AB123/'Population at Risk'!AB$5","v":6.8322039949895571E-3},{"$f":"'Population at Risk'!AC123/'Population at Risk'!AC$5","v":7.229924343665442E-3},{"$f":"'Population at Risk'!AD123/'Population at Risk'!AD$5","v":5.729537839866199E-3},{"$f":"'Population at Risk'!AE123/'Population at Risk'!AE$5","v":6.0462829323284679E-3},{"$f":"'Population at Risk'!AF123/'Population at Risk'!AF$5","v":3.8685381871713409E-3},{"$f":"'Population at Risk'!AG123/'Population at Risk'!AG$5","v":6.0462829323284679E-3},{"$f":"'Population at Risk'!AH123/'Population at Risk'!AH$5","v":8.2655577160067432E-3},{"$f":"'Population at Risk'!AI123/'Population at Risk'!AI$5","v":9.2975909860163776E-3},{"$f":"'Population at Risk'!AJ123/'Population at Risk'!AJ$5","v":1.1141538433494783E-2},{"$f":"'Population at Risk'!AK123/'Population at Risk'!AK$5","v":6.3340384760510503E-3},{"$f":"'Population at Risk'!AL123/'Population at Risk'!AL$5","v":4.9812069632482296E-3},{"$f":"'Population at Risk'!AM123/'Population at Risk'!AM$5","v":8.543607306137433E-3},{"$f":"'Population at Risk'!AN123/'Population at Risk'!AN$5","v":3.9132857103340701E-3},{"$f":"'Population at Risk'!AO123/'Population at Risk'!AO$5","v":3.9132857103340701E-3},{"$f":"'Population at Risk'!AP123/'Population at Risk'!AP$5","v":6.0775801802577748E-3},{"$f":"'Population at Risk'!AQ123/'Population at Risk'!AQ$5","v":6.3512039089426917E-3},{"$f":"'Population at Risk'!AR123/'Population at Risk'!AR$5","v":7.3624711082590387E-3},{"$f":"'Population at Risk'!AS123/'Population at Risk'!AS$5","v":4.8900702767343011E-3},{"$f":"'Population at Risk'!AT123/'Population at Risk'!AT$5","v":1.2947581930430655E-3},{"$f":"'Population at Risk'!AU123/'Population at Risk'!AU$5","v":1.2947581930430655E-3},{"$f":"'Population at Risk'!AV123/'Population at Risk'!AV$5","v":7.1719884304018615E-3},{"$f":"'Population at Risk'!AW123/'Population at Risk'!AW$5","v":7.9483156228720361E-3},{"$f":"'Population at Risk'!AX123/'Population at Risk'!AX$5","v":5.6477384982455857E-3},{"$f":"'Population at Risk'!AY123/'Population at Risk'!AY$5","v":6.6278198281888101E-3},{"$f":"'Population at Risk'!AZ123/'Population at Risk'!AZ$5","v":7.0637008220817091E-3},{"$f":"'Population at Risk'!BA123/'Population at Risk'!BA$5","v":8.501724557665763E-3},{"$f":"'Population at Risk'!BB123/'Population at Risk'!BB$5","v":9.7830522415884545E-3},{"$f":"'Population at Risk'!BC123/'Population at Risk'!BC$5","v":5.6198762552967267E-3},121]
[null,"Male 35-39",{"$f":"'Population at Risk'!C124/'Population at Risk'!C$5","v":8.2511559758446963E-3},{"$f":"'Population at Risk'!D124/'Population at Risk'!D$5","v":5.7017501695347745E-3},{"$f":"'Population at Risk'!E124/'Population at Risk'!E$5","v":3.1425915062985948E-3},{"$f":"'Population at Risk'!F124/'Population at Risk'!F$5","v":6.0777222098294037E-3},{"$f":"'Population at Risk'!G124/'Population at Risk'!G$5","v":4.7737344757762448E-3},{"$f":"'Population at Risk'!H124/'Population at Risk'!H$5","v":5.7824090858388097E-3},{"$f":"'Population at Risk'!I124/'Population at Risk'!I$5","v":4.7787022166016369E-3},{"$f":"'Population at Risk'!J124/'Population at Risk'!J$5","v":5.5719196059459287E-3},{"$f":"'Population at Risk'!K124/'Population at Risk'!K$5","v":7.7201111351086066E-3},{"$f":"'Population at Risk'!L124/'Population at Risk'!L$5","v":6.7057458604910282E-3},{"$f":"'Population at Risk'!M124/'Population at Risk'!M$5","v":6.7057458604910282E-3},{"$f":"'Population at Risk'!N124/'Population at Risk'!N$5","v":5.3466495150409545E-3},{"$f":"'Population at Risk'!O124/'Population at Risk'!O$5","v":6.8313534384896813E-3},{"$f":"'Population at Risk'!P124/'Population at Risk'!P$5","v":5.4953930172149824E-3},{"$f":"'Population at Risk'!Q124/'Population at Risk'!Q$5","v":9.0203470465289697E-3},{"$f":"'Population at Risk'!R124/'Population at Risk'!R$5","v":2.9218018709122853E-3},{"$f":"'Population at Risk'!S124/'Population at Risk'!S$5","v":7.0621797589337371E-3},{"$f":"'Population at Risk'!T124/'Population at Risk'!T$5","v":6.7159711582006239E-3},{"$f":"'Population at Risk'!U124/'Population at Risk'!U$5","v":5.4659070428228441E-3},{"$f":"'Population at Risk'!V124/'Population at Risk'!V$5","v":9.1297544632729429E-3},{"$f":"'Population at Risk'!W124/'Population at Risk'!W$5","v":6.0250970563868987E-3},{"$f":"'Population at Risk'!X124/'Population at Risk'!X$5","v":6.0250970563868987E-3},{"$f":"'Population at Risk'!Y124/'Population at Risk'!Y$5","v":7.4496551670902821E-3},{"$f":"'Population at Risk'!Z124/'Population at Risk'!Z$5","v":6.39567885141837E-3},{"$f":"'Population at Risk'!AA124/'Population at Risk'!AA$5","v":6.5001553384572072E-3},{"$f":"'Population at Risk'!AB124/'Population at Risk'!AB$5","v":5.7446887654915273E-3},{"$f":"'Population at Risk'!AC124/'Population at Risk'!AC$5","v":5.9107861793382113E-3},{"$f":"'Population at Risk'!AD124/'Population at Risk'!AD$5","v":5.4495359906363301E-3},{"$f":"'Population at Risk'!AE124/'Population at Risk'!AE$5","v":5.7076910881180727E-3},{"$f":"'Population at Risk'!AF124/'Population at Risk'!AF$5","v":3.7230132396915408E-3},{"$f":"'Population at Risk'!AG124/'Population at Risk'!AG$5","v":5.7076910881180727E-3},{"$f":"'Population at Risk'!AH124/'Population at Risk'!AH$5","v":7.5725354944192642E-3},{"$f":"'Population at Risk'!AI124/'Population at Risk'!AI$5","v":7.8085889198573361E-3},{"$f":"'Population at Risk'!AJ124/'Population at Risk'!AJ$5","v":1.0943905822701083E-2},{"$f":"'Population at Risk'!AK124/'Population at Risk'!AK$5","v":5.9629533936157364E-3},{"$f":"'Population at Risk'!AL124/'Population at Risk'!AL$5","v":4.2665735778958562E-3},{"$f":"'Population at Risk'!AM124/'Population at Risk'!AM$5","v":7.6439767021837099E-3},{"$f":"'Population at Risk'!AN124/'Population at Risk'!AN$5","v":3.9684024104796201E-3},{"$f":"'Population at Risk'!AO124/'Population at Risk'!AO$5","v":3.9684024104796201E-3},{"$f":"'Population at Risk'!AP124/'Population at Risk'!AP$5","v":5.4795204284770896E-3},{"$f":"'Population at Risk'!AQ124/'Population at Risk'!AQ$5","v":5.0367606091065668E-3},{"$f":"'Population at Risk'!AR124/'Population at Risk'!AR$5","v":6.4101027866312818E-3},{"$f":"'Population at Risk'!AS124/'Population at Risk'!AS$5","v":4.7787022166016369E-3},{"$f":"'Population at Risk'!AT124/'Population at Risk'!AT$5","v":1.780292515434215E-3},{"$f":"'Population at Risk'!AU124/'Population at Risk'!AU$5","v":1.780292515434215E-3},{"$f":"'Population at Risk'!AV124/'Population at Risk'!AV$5","v":6.5711935880645323E-3},{"$f":"'Population at Risk'!AW124/'Population at Risk'!AW$5","v":7.491024285297858E-3},{"$f":"'Population at Risk'!AX124/'Population at Risk'!AX$5","v":4.2543008338312826E-3},{"$f":"'Population at Risk'!AY124/'Population at Risk'!AY$5","v":5.7948303231797433E-3},{"$f":"'Population at Risk'!AZ124/'Population at Risk'!AZ$5","v":5.5858061618936352E-3},{"$f":"'Population at Risk'!BA124/'Population at Risk'!BA$5","v":8.3563959327483985E-3},{"$f":"'Population at Risk'!BB124/'Population at Risk'!BB$5","v":8.5594135092040158E-3},{"$f":"'Population at Risk'!BC124/'Population at Risk'!BC$5","v":5.4659070428228441E-3},122]
[null,"Male 40-44",{"$f":"'Population at Risk'!C125/'Population at Risk'!C$5","v":7.1808172286736121E-3},{"$f":"'Population at Risk'!D125/'Population at Risk'!D$5","v":5.0699005922485814E-3},{"$f":"'Population at Risk'!E125/'Population at Risk'!E$5","v":2.9509085572787769E-3},{"$f":"'Population at Risk'!F125/'Population at Risk'!F$5","v":5.7411708171026931E-3},{"$f":"'Population at Risk'!G125/'Population at Risk'!G$5","v":4.5584732394680317E-3},{"$f":"'Population at Risk'!H125/'Population at Risk'!H$5","v":6.744799812352196E-3},{"$f":"'Population at Risk'!I125/'Population at Risk'!I$5","v":5.2039257189263584E-3},{"$f":"'Population at Risk'!J125/'Population at Risk'!J$5","v":5.9999408651132428E-3},{"$f":"'Population at Risk'!K125/'Population at Risk'!K$5","v":8.3835581857820037E-3},{"$f":"'Population at Risk'!L125/'Population at Risk'!L$5","v":8.004092399437163E-3},{"$f":"'Population at Risk'!M125/'Population at Risk'!M$5","v":8.004092399437163E-3},{"$f":"'Population at Risk'!N125/'Population at Risk'!N$5","v":5.0194371824191092E-3},{"$f":"'Population at Risk'!O125/'Population at Risk'!O$5","v":7.6047142051111549E-3},{"$f":"'Population at Risk'!P125/'Population at Risk'!P$5","v":6.1667758745217911E-3},{"$f":"'Population at Risk'!Q125/'Population at Risk'!Q$5","v":9.291635679507285E-3},{"$f":"'Population at Risk'!R125/'Population at Risk'!R$5","v":3.8908416873957566E-3},{"$f":"'Population at Risk'!S125/'Population at Risk'!S$5","v":7.0195525566743577E-3},{"$f":"'Population at Risk'!T125/'Population at Risk'!T$5","v":5.7494660837732288E-3},{"$f":"'Population at Risk'!U125/'Population at Risk'!U$5","v":7.6599683205756768E-3},{"$f":"'Population at Risk'!V125/'Population at Risk'!V$5","v":9.8888576433652994E-3},{"$f":"'Population at Risk'!W125/'Population at Risk'!W$5","v":6.6086415654800605E-3},{"$f":"'Population at Risk'!X125/'Population at Risk'!X$5","v":6.6086415654800605E-3},{"$f":"'Population at Risk'!Y125/'Population at Risk'!Y$5","v":8.0524131190786927E-3},{"$f":"'Population at Risk'!Z125/'Population at Risk'!Z$5","v":4.9340179997586012E-3},{"$f":"'Population at Risk'!AA125/'Population at Risk'!AA$5","v":6.2456426744964865E-3},{"$f":"'Population at Risk'!AB125/'Population at Risk'!AB$5","v":5.0841862856803449E-3},{"$f":"'Population at Risk'!AC125/'Population at Risk'!AC$5","v":5.1279173711875443E-3},{"$f":"'Population at Risk'!AD125/'Population at Risk'!AD$5","v":5.3550353665212493E-3},{"$f":"'Population at Risk'!AE125/'Population at Risk'!AE$5","v":5.6593208246594456E-3},{"$f":"'Population at Risk'!AF125/'Population at Risk'!AF$5","v":3.1651676076856422E-3},{"$f":"'Population at Risk'!AG125/'Population at Risk'!AG$5","v":5.6593208246594456E-3},{"$f":"'Population at Risk'!AH125/'Population at Risk'!AH$5","v":8.2793874277457373E-3},{"$f":"'Population at Risk'!AI125/'Population at Risk'!AI$5","v":7.4308783008316601E-3},{"$f":"'Population at Risk'!AJ125/'Population at Risk'!AJ$5","v":1.0906849708177265E-2},{"$f":"'Population at Risk'!AK125/'Population at Risk'!AK$5","v":5.1568030421183303E-3},{"$f":"'Population at Risk'!AL125/'Population at Risk'!AL$5","v":5.2571545080872658E-3},{"$f":"'Population at Risk'!AM125/'Population at Risk'!AM$5","v":8.4542209320266452E-3},{"$f":"'Population at Risk'!AN125/'Population at Risk'!AN$5","v":5.6219034148461289E-3},{"$f":"'Population at Risk'!AO125/'Population at Risk'!AO$5","v":5.6219034148461289E-3},{"$f":"'Population at Risk'!AP125/'Population at Risk'!AP$5","v":4.0813537114762983E-3},{"$f":"'Population at Risk'!AQ125/'Population at Risk'!AQ$5","v":5.3391988904847899E-3},{"$f":"'Population at Risk'!AR125/'Population at Risk'!AR$5","v":6.3452902078233158E-3},{"$f":"'Population at Risk'!AS125/'Population at Risk'!AS$5","v":5.2039257189263584E-3},{"$f":"'Population at Risk'!AT125/'Population at Risk'!AT$5","v":1.5644994832603708E-3},{"$f":"'Population at Risk'!AU125/'Population at Risk'!AU$5","v":1.5644994832603708E-3},{"$f":"'Population at Risk'!AV125/'Population at Risk'!AV$5","v":7.7164587562700646E-3},{"$f":"'Population at Risk'!AW125/'Population at Risk'!AW$5","v":8.0799102523897836E-3},{"$f":"'Population at Risk'!AX125/'Population at Risk'!AX$5","v":4.5379208894200341E-3},{"$f":"'Population at Risk'!AY125/'Population at Risk'!AY$5","v":5.7156963202038818E-3},{"$f":"'Population at Risk'!AZ125/'Population at Risk'!AZ$5","v":4.9051270800507408E-3},{"$f":"'Population at Risk'!BA125/'Population at Risk'!BA$5","v":7.8166038973410488E-3},{"$f":"'Population at Risk'!BB125/'Population at Risk'!BB$5","v":9.2499819027279055E-3},{"$f":"'Population at Risk'!BC125/'Population at Risk'!BC$5","v":7.6599683205756768E-3},123]
[null,"Male 45-49",{"$f":"'Population at Risk'!C126/'Population at Risk'!C$5","v":7.6230229082560321E-3},{"$f":"'Population at Risk'!D126/'Population at Risk'!D$5","v":5.3870840453882646E-3},{"$f":"'Population at Risk'!E126/'Population at Risk'!E$5","v":3.1425915062985948E-3},{"$f":"'Population at Risk'!F126/'Population at Risk'!F$5","v":6.5924478692937832E-3},{"$f":"'Population at Risk'!G126/'Population at Risk'!G$5","v":6.3058879812641104E-3},{"$f":"'Population at Risk'!H126/'Population at Risk'!H$5","v":8.6588282963676461E-3},{"$f":"'Population at Risk'!I126/'Population at Risk'!I$5","v":6.1961138910173758E-3},{"$f":"'Population at Risk'!J126/'Population at Risk'!J$5","v":7.3910099574070144E-3},{"$f":"'Population at Risk'!K126/'Population at Risk'!K$5","v":1.0715675091179395E-2},{"$f":"'Population at Risk'!L126/'Population at Risk'!L$5","v":9.6377262314078487E-3},{"$f":"'Population at Risk'!M126/'Population at Risk'!M$5","v":9.6377262314078487E-3},{"$f":"'Population at Risk'!N126/'Population at Risk'!N$5","v":5.968352947022461E-3},{"$f":"'Population at Risk'!O126/'Population at Risk'!O$5","v":9.4978369150699685E-3},{"$f":"'Population at Risk'!P126/'Population at Risk'!P$5","v":7.037086985845431E-3},{"$f":"'Population at Risk'!Q126/'Population at Risk'!Q$5","v":1.0580256686154279E-2},{"$f":"'Population at Risk'!R126/'Population at Risk'!R$5","v":4.1698076951713009E-3},{"$f":"'Population at Risk'!S126/'Population at Risk'!S$5","v":7.5277999682284982E-3},{"$f":"'Population at Risk'!T126/'Population at Risk'!T$5","v":5.2740987860944851E-3},{"$f":"'Population at Risk'!U126/'Population at Risk'!U$5","v":9.0456912328406233E-3},{"$f":"'Population at Risk'!V126/'Population at Risk'!V$5","v":1.1694292233855231E-2},{"$f":"'Population at Risk'!W126/'Population at Risk'!W$5","v":7.5714900054837785E-3},{"$f":"'Population at Risk'!X126/'Population at Risk'!X$5","v":7.5714900054837785E-3},{"$f":"'Population at Risk'!Y126/'Population at Risk'!Y$5","v":9.662173877083664E-3},{"$f":"'Population at Risk'!Z126/'Population at Risk'!Z$5","v":5.2129163241012742E-3},{"$f":"'Population at Risk'!AA126/'Population at Risk'!AA$5","v":7.1525143507933583E-3},{"$f":"'Population at Risk'!AB126/'Population at Risk'!AB$5","v":5.5995465008196431E-3},{"$f":"'Population at Risk'!AC126/'Population at Risk'!AC$5","v":5.6810771007869913E-3},{"$f":"'Population at Risk'!AD126/'Population at Risk'!AD$5","v":6.7480445664398489E-3},{"$f":"'Population at Risk'!AE126/'Population at Risk'!AE$5","v":6.916947674583767E-3},{"$f":"'Population at Risk'!AF126/'Population at Risk'!AF$5","v":3.8685381871713409E-3},{"$f":"'Population at Risk'!AG126/'Population at Risk'!AG$5","v":6.916947674583767E-3},{"$f":"'Population at Risk'!AH126/'Population at Risk'!AH$5","v":9.829851777150983E-3},{"$f":"'Population at Risk'!AI126/'Population at Risk'!AI$5","v":7.6775464601953674E-3},{"$f":"'Population at Risk'!AJ126/'Population at Risk'!AJ$5","v":1.2660839128971342E-2},{"$f":"'Population at Risk'!AK126/'Population at Risk'!AK$5","v":6.6795314838356528E-3},{"$f":"'Population at Risk'!AL126/'Population at Risk'!AL$5","v":7.0189734482134156E-3},{"$f":"'Population at Risk'!AM126/'Population at Risk'!AM$5","v":9.5614585984312266E-3},{"$f":"'Population at Risk'!AN126/'Population at Risk'!AN$5","v":5.7872535152827791E-3},{"$f":"'Population at Risk'!AO126/'Population at Risk'!AO$5","v":5.7872535152827791E-3},{"$f":"'Population at Risk'!AP126/'Population at Risk'!AP$5","v":4.9380338964594419E-3},{"$f":"'Population at Risk'!AQ126/'Population at Risk'!AQ$5","v":6.1709041642749041E-3},{"$f":"'Population at Risk'!AR126/'Population at Risk'!AR$5","v":7.2716938572069028E-3},{"$f":"'Population at Risk'!AS126/'Population at Risk'!AS$5","v":6.1961138910173758E-3},{"$f":"'Population at Risk'!AT126/'Population at Risk'!AT$5","v":7.0132735456499375E-4},{"$f":"'Population at Risk'!AU126/'Population at Risk'!AU$5","v":7.0132735456499375E-4},{"$f":"'Population at Risk'!AV126/'Population at Risk'!AV$5","v":9.8567903820967993E-3},{"$f":"'Population at Risk'!AW126/'Population at Risk'!AW$5","v":1.013607633860461E-2},{"$f":"'Population at Risk'!AX126/'Population at Risk'!AX$5","v":5.3517871358921051E-3},{"$f":"'Population at Risk'!AY126/'Population at Risk'!AY$5","v":6.641702986605629E-3},{"$f":"'Population at Risk'!AZ126/'Population at Risk'!AZ$5","v":5.7976907009886997E-3},{"$f":"'Population at Risk'!BA126/'Population at Risk'!BA$5","v":9.6228310927425672E-3},{"$f":"'Population at Risk'!BB126/'Population at Risk'!BB$5","v":1.0140451673324502E-2},{"$f":"'Population at Risk'!BC126/'Population at Risk'!BC$5","v":9.0456912328406233E-3},124]
[null,"Male 50-54",{"$f":"'Population at Risk'!C127/'Population at Risk'!C$5","v":7.0752908733187157E-3},{"$f":"'Population at Risk'!D127/'Population at Risk'!D$5","v":5.1982843709003574E-3},{"$f":"'Population at Risk'!E127/'Population at Risk'!E$5","v":3.3140973027900107E-3},{"$f":"'Population at Risk'!F127/'Population at Risk'!F$5","v":6.6023464396680973E-3},{"$f":"'Population at Risk'!G127/'Population at Risk'!G$5","v":6.4831619405767565E-3},{"$f":"'Population at Risk'!H127/'Population at Risk'!H$5","v":9.1561531131413229E-3},{"$f":"'Population at Risk'!I127/'Population at Risk'!I$5","v":7.0161877883579112E-3},{"$f":"'Population at Risk'!J127/'Population at Risk'!J$5","v":7.4674423251154635E-3},{"$f":"'Population at Risk'!K127/'Population at Risk'!K$5","v":1.0012019128343975E-2},{"$f":"'Population at Risk'!L127/'Population at Risk'!L$5","v":1.128562760776256E-2},{"$f":"'Population at Risk'!M127/'Population at Risk'!M$5","v":1.128562760776256E-2},{"$f":"'Population at Risk'!N127/'Population at Risk'!N$5","v":5.5495211612664984E-3},{"$f":"'Population at Risk'!O127/'Population at Risk'!O$5","v":9.940908187613522E-3},{"$f":"'Population at Risk'!P127/'Population at Risk'!P$5","v":9.0263695260137493E-3},{"$f":"'Population at Risk'!Q127/'Population at Risk'!Q$5","v":1.1439337357252277E-2},{"$f":"'Population at Risk'!R127/'Population at Risk'!R$5","v":5.0213881399598067E-3},{"$f":"'Population at Risk'!S127/'Population at Risk'!S$5","v":7.736837210077379E-3},{"$f":"'Population at Risk'!T127/'Population at Risk'!T$5","v":5.078094260511307E-3},{"$f":"'Population at Risk'!U127/'Population at Risk'!U$5","v":9.9695065076839205E-3},{"$f":"'Population at Risk'!V127/'Population at Risk'!V$5","v":1.1366031399220697E-2},{"$f":"'Population at Risk'!W127/'Population at Risk'!W$5","v":7.8953572080304839E-3},{"$f":"'Population at Risk'!X127/'Population at Risk'!X$5","v":7.8953572080304839E-3},{"$f":"'Population at Risk'!Y127/'Population at Risk'!Y$5","v":9.5250193730383979E-3},{"$f":"'Population at Risk'!Z127/'Population at Risk'!Z$5","v":5.039152446631231E-3},{"$f":"'Population at Risk'!AA127/'Population at Risk'!AA$5","v":7.3726923298942804E-3},{"$f":"'Population at Risk'!AB127/'Population at Risk'!AB$5","v":5.4060234812571316E-3},{"$f":"'Population at Risk'!AC127/'Population at Risk'!AC$5","v":5.9403443328282591E-3},{"$f":"'Population at Risk'!AD127/'Population at Risk'!AD$5","v":7.4375491201684012E-3},{"$f":"'Population at Risk'!AE127/'Population at Risk'!AE$5","v":7.8021234958766542E-3},{"$f":"'Population at Risk'!AF127/'Population at Risk'!AF$5","v":5.0812460828363378E-3},{"$f":"'Population at Risk'!AG127/'Population at Risk'!AG$5","v":7.8021234958766542E-3},{"$f":"'Population at Risk'!AH127/'Population at Risk'!AH$5","v":9.978905337004608E-3},{"$f":"'Population at Risk'!AI127/'Population at Risk'!AI$5","v":7.7584844499865831E-3},{"$f":"'Population at Risk'!AJ127/'Population at Risk'!AJ$5","v":1.3735466450162081E-2},{"$f":"'Population at Risk'!AK127/'Population at Risk'!AK$5","v":6.4619988493046067E-3},{"$f":"'Population at Risk'!AL127/'Population at Risk'!AL$5","v":7.1180315412325565E-3},{"$f":"'Population at Risk'!AM127/'Population at Risk'!AM$5","v":9.7402313466528005E-3},{"$f":"'Population at Risk'!AN127/'Population at Risk'!AN$5","v":6.5588873173204835E-3},{"$f":"'Population at Risk'!AO127/'Population at Risk'!AO$5","v":6.5588873173204835E-3},{"$f":"'Population at Risk'!AP127/'Population at Risk'!AP$5","v":4.8652968996212506E-3},{"$f":"'Population at Risk'!AQ127/'Population at Risk'!AQ$5","v":6.5140552912232733E-3},{"$f":"'Population at Risk'!AR127/'Population at Risk'!AR$5","v":7.4958621343683999E-3},{"$f":"'Population at Risk'!AS127/'Population at Risk'!AS$5","v":7.0161877883579112E-3},{"$f":"'Population at Risk'!AT127/'Population at Risk'!AT$5","v":1.9421372895645982E-3},{"$f":"'Population at Risk'!AU127/'Population at Risk'!AU$5","v":1.9421372895645982E-3},{"$f":"'Population at Risk'!AV127/'Population at Risk'!AV$5","v":1.0945731033833207E-2},{"$f":"'Population at Risk'!AW127/'Population at Risk'!AW$5","v":1.0251221639432642E-2},{"$f":"'Population at Risk'!AX127/'Population at Risk'!AX$5","v":5.9066959403048808E-3},{"$f":"'Population at Risk'!AY127/'Population at Risk'!AY$5","v":6.6958473044312176E-3},{"$f":"'Population at Risk'!AZ127/'Population at Risk'!AZ$5","v":5.6069946158031417E-3},{"$f":"'Population at Risk'!BA127/'Population at Risk'!BA$5","v":1.0131481279953339E-2},{"$f":"'Population at Risk'!BB127/'Population at Risk'!BB$5","v":1.0061702645992831E-2},{"$f":"'Population at Risk'!BC127/'Population at Risk'!BC$5","v":9.9695065076839205E-3},125]
[null,"Male 55-59",{"$f":"'Population at Risk'!C128/'Population at Risk'!C$5","v":9.0967181648155381E-3},{"$f":"'Population at Risk'!D128/'Population at Risk'!D$5","v":6.6858557685168041E-3},{"$f":"'Population at Risk'!E128/'Population at Risk'!E$5","v":4.2657705188136417E-3},{"$f":"'Population at Risk'!F128/'Population at Risk'!F$5","v":7.2840713631040369E-3},{"$f":"'Population at Risk'!G128/'Population at Risk'!G$5","v":8.9703526651594544E-3},{"$f":"'Population at Risk'!H128/'Population at Risk'!H$5","v":1.1068079724824854E-2},{"$f":"'Population at Risk'!I128/'Population at Risk'!I$5","v":8.8794039148577461E-3},{"$f":"'Population at Risk'!J128/'Population at Risk'!J$5","v":9.1009978619041604E-3},{"$f":"'Population at Risk'!K128/'Population at Risk'!K$5","v":1.17723635126283E-2},{"$f":"'Population at Risk'!L128/'Population at Risk'!L$5","v":1.4266058135256209E-2},{"$f":"'Population at Risk'!M128/'Population at Risk'!M$5","v":1.4266058135256209E-2},{"$f":"'Population at Risk'!N128/'Population at Risk'!N$5","v":6.7402995710228782E-3},{"$f":"'Population at Risk'!O128/'Population at Risk'!O$5","v":1.1961414946597526E-2},{"$f":"'Population at Risk'!P128/'Population at Risk'!P$5","v":1.0107882737291254E-2},{"$f":"'Population at Risk'!Q128/'Population at Risk'!Q$5","v":1.4035803606938645E-2},{"$f":"'Population at Risk'!R128/'Population at Risk'!R$5","v":5.4117797943816518E-3},{"$f":"'Population at Risk'!S128/'Population at Risk'!S$5","v":9.2338602585816162E-3},{"$f":"'Population at Risk'!T128/'Population at Risk'!T$5","v":5.7038722384199604E-3},{"$f":"'Population at Risk'!U128/'Population at Risk'!U$5","v":1.2930054115507874E-2},{"$f":"'Population at Risk'!V128/'Population at Risk'!V$5","v":1.3559907747181481E-2},{"$f":"'Population at Risk'!W128/'Population at Risk'!W$5","v":9.6179473539816825E-3},{"$f":"'Population at Risk'!X128/'Population at Risk'!X$5","v":9.6179473539816825E-3},{"$f":"'Population at Risk'!Y128/'Population at Risk'!Y$5","v":1.1454298110868965E-2},{"$f":"'Population at Risk'!Z128/'Population at Risk'!Z$5","v":5.9146280154141698E-3},{"$f":"'Population at Risk'!AA128/'Population at Risk'!AA$5","v":8.8764382096784607E-3},{"$f":"'Population at Risk'!AB128/'Population at Risk'!AB$5","v":6.8707537348503059E-3},{"$f":"'Population at Risk'!AC128/'Population at Risk'!AC$5","v":7.0545837765802599E-3},{"$f":"'Population at Risk'!AD128/'Population at Risk'!AD$5","v":9.5657332833314814E-3},{"$f":"'Population at Risk'!AE128/'Population at Risk'!AE$5","v":9.7931677269413944E-3},{"$f":"'Population at Risk'!AF128/'Population at Risk'!AF$5","v":6.0391317308068791E-3},{"$f":"'Population at Risk'!AG128/'Population at Risk'!AG$5","v":9.7931677269413944E-3},{"$f":"'Population at Risk'!AH128/'Population at Risk'!AH$5","v":1.2191373358349095E-2},{"$f":"'Population at Risk'!AI128/'Population at Risk'!AI$5","v":9.1097179126344175E-3},{"$f":"'Population at Risk'!AJ128/'Population at Risk'!AJ$5","v":1.69358670400983E-2},{"$f":"'Population at Risk'!AK128/'Population at Risk'!AK$5","v":7.8106234479482818E-3},{"$f":"'Population at Risk'!AL128/'Population at Risk'!AL$5","v":8.452816579851169E-3},{"$f":"'Population at Risk'!AM128/'Population at Risk'!AM$5","v":1.1464685846793554E-2},{"$f":"'Population at Risk'!AN128/'Population at Risk'!AN$5","v":7.9244515697310634E-3},{"$f":"'Population at Risk'!AO128/'Population at Risk'!AO$5","v":7.9244515697310634E-3},{"$f":"'Population at Risk'!AP128/'Population at Risk'!AP$5","v":5.4401817303542516E-3},{"$f":"'Population at Risk'!AQ128/'Population at Risk'!AQ$5","v":8.0200892185333852E-3},{"$f":"'Population at Risk'!AR128/'Population at Risk'!AR$5","v":9.0765204167460919E-3},{"$f":"'Population at Risk'!AS128/'Population at Risk'!AS$5","v":8.8794039148577461E-3},{"$f":"'Population at Risk'!AT128/'Population at Risk'!AT$5","v":1.833344568261192E-3},{"$f":"'Population at Risk'!AU128/'Population at Risk'!AU$5","v":1.833344568261192E-3},{"$f":"'Population at Risk'!AV128/'Population at Risk'!AV$5","v":1.3496844022755826E-2},{"$f":"'Population at Risk'!AW128/'Population at Risk'!AW$5","v":1.3020491168277795E-2},{"$f":"'Population at Risk'!AX128/'Population at Risk'!AX$5","v":7.4624840325770592E-3},{"$f":"'Population at Risk'!AY128/'Population at Risk'!AY$5","v":7.9624775392535697E-3},{"$f":"'Population at Risk'!AZ128/'Population at Risk'!AZ$5","v":6.4597281636122909E-3},{"$f":"'Population at Risk'!BA128/'Population at Risk'!BA$5","v":1.2916754315383614E-2},{"$f":"'Population at Risk'!BB128/'Population at Risk'!BB$5","v":1.1789350127167636E-2},{"$f":"'Population at Risk'!BC128/'Population at Risk'!BC$5","v":1.2930054115507874E-2},126]
[null,"Male 60-64",{"$f":"'Population at Risk'!C129/'Population at Risk'!C$5","v":7.4415752207480168E-3},{"$f":"'Population at Risk'!D129/'Population at Risk'!D$5","v":5.5178051790367522E-3},{"$f":"'Population at Risk'!E129/'Population at Risk'!E$5","v":3.5866756757876681E-3},{"$f":"'Population at Risk'!F129/'Population at Risk'!F$5","v":7.2452574837269289E-3},{"$f":"'Population at Risk'!G129/'Population at Risk'!G$5","v":8.3579854167998603E-3},{"$f":"'Population at Risk'!H129/'Population at Risk'!H$5","v":9.7188281012271574E-3},{"$f":"'Population at Risk'!I129/'Population at Risk'!I$5","v":8.4956442821738799E-3},{"$f":"'Population at Risk'!J129/'Population at Risk'!J$5","v":7.6524306939830819E-3},{"$f":"'Population at Risk'!K129/'Population at Risk'!K$5","v":1.0826370016077811E-2},{"$f":"'Population at Risk'!L129/'Population at Risk'!L$5","v":1.2904721868754635E-2},{"$f":"'Population at Risk'!M129/'Population at Risk'!M$5","v":1.2904721868754635E-2},{"$f":"'Population at Risk'!N129/'Population at Risk'!N$5","v":5.6026601764213001E-3},{"$f":"'Population at Risk'!O129/'Population at Risk'!O$5","v":1.0034532081080495E-2},{"$f":"'Population at Risk'!P129/'Population at Risk'!P$5","v":7.9953027439667156E-3},{"$f":"'Population at Risk'!Q129/'Population at Risk'!Q$5","v":1.1066123054312678E-2},{"$f":"'Population at Risk'!R129/'Population at Risk'!R$5","v":4.9320120821137754E-3},{"$f":"'Population at Risk'!S129/'Population at Risk'!S$5","v":7.8602458641163532E-3},{"$f":"'Population at Risk'!T129/'Population at Risk'!T$5","v":4.5171605646547337E-3},{"$f":"'Population at Risk'!U129/'Population at Risk'!U$5","v":1.3030677104733617E-2},{"$f":"'Population at Risk'!V129/'Population at Risk'!V$5","v":1.1164353840626019E-2},{"$f":"'Population at Risk'!W129/'Population at Risk'!W$5","v":8.6569153424022275E-3},{"$f":"'Population at Risk'!X129/'Population at Risk'!X$5","v":8.6569153424022275E-3},{"$f":"'Population at Risk'!Y129/'Population at Risk'!Y$5","v":9.5059352114501491E-3},{"$f":"'Population at Risk'!Z129/'Population at Risk'!Z$5","v":4.7084179780660729E-3},{"$f":"'Population at Risk'!AA129/'Population at Risk'!AA$5","v":7.4603111604175038E-3},{"$f":"'Population at Risk'!AB129/'Population at Risk'!AB$5","v":5.6390219728603358E-3},{"$f":"'Population at Risk'!AC129/'Population at Risk'!AC$5","v":5.7443364064033286E-3},{"$f":"'Population at Risk'!AD129/'Population at Risk'!AD$5","v":8.5958932756479457E-3},{"$f":"'Population at Risk'!AE129/'Population at Risk'!AE$5","v":8.6867736971061801E-3},{"$f":"'Population at Risk'!AF129/'Population at Risk'!AF$5","v":4.5491622224188306E-3},{"$f":"'Population at Risk'!AG129/'Population at Risk'!AG$5","v":8.6867736971061801E-3},{"$f":"'Population at Risk'!AH129/'Population at Risk'!AH$5","v":1.0582594106283589E-2},{"$f":"'Population at Risk'!AI129/'Population at Risk'!AI$5","v":7.4288280268192926E-3},{"$f":"'Population at Risk'!AJ129/'Population at Risk'!AJ$5","v":1.4869336076196889E-2},{"$f":"'Population at Risk'!AK129/'Population at Risk'!AK$5","v":6.2551887998557971E-3},{"$f":"'Population at Risk'!AL129/'Population at Risk'!AL$5","v":7.8331899815469799E-3},{"$f":"'Population at Risk'!AM129/'Population at Risk'!AM$5","v":1.0281283034205396E-2},{"$f":"'Population at Risk'!AN129/'Population at Risk'!AN$5","v":7.8524111009153283E-3},{"$f":"'Population at Risk'!AO129/'Population at Risk'!AO$5","v":7.8524111009153283E-3},{"$f":"'Population at Risk'!AP129/'Population at Risk'!AP$5","v":4.9859529645188486E-3},{"$f":"'Population at Risk'!AQ129/'Population at Risk'!AQ$5","v":7.0166278186789711E-3},{"$f":"'Population at Risk'!AR129/'Population at Risk'!AR$5","v":7.7666994546765553E-3},{"$f":"'Population at Risk'!AS129/'Population at Risk'!AS$5","v":8.4956442821738799E-3},{"$f":"'Population at Risk'!AT129/'Population at Risk'!AT$5","v":1.4807783051340396E-3},{"$f":"'Population at Risk'!AU129/'Population at Risk'!AU$5","v":1.4807783051340396E-3},{"$f":"'Population at Risk'!AV129/'Population at Risk'!AV$5","v":1.1852683023620117E-2},{"$f":"'Population at Risk'!AW129/'Population at Risk'!AW$5","v":1.0926376505480144E-2},{"$f":"'Population at Risk'!AX129/'Population at Risk'!AX$5","v":5.7056573380826758E-3},{"$f":"'Population at Risk'!AY129/'Population at Risk'!AY$5","v":7.1803836879731943E-3},{"$f":"'Population at Risk'!AZ129/'Population at Risk'!AZ$5","v":5.8400650653879609E-3},{"$f":"'Population at Risk'!BA129/'Population at Risk'!BA$5","v":1.0555918967824004E-2},{"$f":"'Population at Risk'!BB129/'Population at Risk'!BB$5","v":9.6595078274979967E-3},{"$f":"'Population at Risk'!BC129/'Population at Risk'!BC$5","v":1.3030677104733617E-2},127]
[null,"Male 65-69",{"$f":"'Population at Risk'!C130/'Population at Risk'!C$5","v":6.7913404927214911E-3},{"$f":"'Population at Risk'!D130/'Population at Risk'!D$5","v":5.4947731955822168E-3},{"$f":"'Population at Risk'!E130/'Population at Risk'!E$5","v":4.193245826839994E-3},{"$f":"'Population at Risk'!F130/'Population at Risk'!F$5","v":7.7368999558369705E-3},{"$f":"'Population at Risk'!G130/'Population at Risk'!G$5","v":9.0531049960188587E-3},{"$f":"'Population at Risk'!H130/'Population at Risk'!H$5","v":1.0365344504201054E-2},{"$f":"'Population at Risk'!I130/'Population at Risk'!I$5","v":8.7470730070357237E-3},{"$f":"'Population at Risk'!J130/'Population at Risk'!J$5","v":7.9920947195645763E-3},{"$f":"'Population at Risk'!K130/'Population at Risk'!K$5","v":1.0616149239066591E-2},{"$f":"'Population at Risk'!L130/'Population at Risk'!L$5","v":1.4331327682280256E-2},{"$f":"'Population at Risk'!M130/'Population at Risk'!M$5","v":1.4331327682280256E-2},{"$f":"'Population at Risk'!N130/'Population at Risk'!N$5","v":6.2270787915033694E-3},{"$f":"'Population at Risk'!O130/'Population at Risk'!O$5","v":1.0097708568474497E-2},{"$f":"'Population at Risk'!P130/'Population at Risk'!P$5","v":7.1990225926366978E-3},{"$f":"'Population at Risk'!Q130/'Population at Risk'!Q$5","v":1.1302515536113751E-2},{"$f":"'Population at Risk'!R130/'Population at Risk'!R$5","v":3.8765231151244453E-3},{"$f":"'Population at Risk'!S130/'Population at Risk'!S$5","v":7.880603643753514E-3},{"$f":"'Population at Risk'!T130/'Population at Risk'!T$5","v":4.1755760630250403E-3},{"$f":"'Population at Risk'!U130/'Population at Risk'!U$5","v":1.2829431126282131E-2},{"$f":"'Population at Risk'!V130/'Population at Risk'!V$5","v":1.2496210303599018E-2},{"$f":"'Population at Risk'!W130/'Population at Risk'!W$5","v":8.9658184889813385E-3},{"$f":"'Population at Risk'!X130/'Population at Risk'!X$5","v":8.9658184889813385E-3},{"$f":"'Population at Risk'!Y130/'Population at Risk'!Y$5","v":1.0369253396906912E-2},{"$f":"'Population at Risk'!Z130/'Population at Risk'!Z$5","v":3.9087312602672543E-3},{"$f":"'Population at Risk'!AA130/'Population at Risk'!AA$5","v":6.7465489353875857E-3},{"$f":"'Population at Risk'!AB130/'Population at Risk'!AB$5","v":5.6472701766236613E-3},{"$f":"'Population at Risk'!AC130/'Population at Risk'!AC$5","v":4.9771738771084949E-3},{"$f":"'Population at Risk'!AD130/'Population at Risk'!AD$5","v":9.1631581858024665E-3},{"$f":"'Population at Risk'!AE130/'Population at Risk'!AE$5","v":9.2051983282289661E-3},{"$f":"'Population at Risk'!AF130/'Population at Risk'!AF$5","v":4.2955503912038432E-3},{"$f":"'Population at Risk'!AG130/'Population at Risk'!AG$5","v":9.2051983282289661E-3},{"$f":"'Population at Risk'!AH130/'Population at Risk'!AH$5","v":9.9659958161660966E-3},{"$f":"'Population at Risk'!AI130/'Population at Risk'!AI$5","v":7.2928119621329529E-3},{"$f":"'Population at Risk'!AJ130/'Population at Risk'!AJ$5","v":1.4223545149977698E-2},{"$f":"'Population at Risk'!AK130/'Population at Risk'!AK$5","v":6.4224398372850974E-3},{"$f":"'Population at Risk'!AL130/'Population at Risk'!AL$5","v":8.1661236761581858E-3},{"$f":"'Population at Risk'!AM130/'Population at Risk'!AM$5","v":9.6518936402492737E-3},{"$f":"'Population at Risk'!AN130/'Population at Risk'!AN$5","v":8.7168967267041708E-3},{"$f":"'Population at Risk'!AO130/'Population at Risk'!AO$5","v":8.7168967267041708E-3},{"$f":"'Population at Risk'!AP130/'Population at Risk'!AP$5","v":4.5845414970363983E-3},{"$f":"'Population at Risk'!AQ130/'Population at Risk'!AQ$5","v":6.4008674142228533E-3},{"$f":"'Population at Risk'!AR130/'Population at Risk'!AR$5","v":7.7011565940350215E-3},{"$f":"'Population at Risk'!AS130/'Population at Risk'!AS$5","v":8.7470730070357237E-3},{"$f":"'Population at Risk'!AT130/'Population at Risk'!AT$5","v":1.6218048103849004E-3},{"$f":"'Population at Risk'!AU130/'Population at Risk'!AU$5","v":1.6218048103849004E-3},{"$f":"'Population at Risk'!AV130/'Population at Risk'!AV$5","v":1.359500288837587E-2},{"$f":"'Population at Risk'!AW130/'Population at Risk'!AW$5","v":1.0324372290302175E-2},{"$f":"'Population at Risk'!AX130/'Population at Risk'!AX$5","v":6.382599734126383E-3},{"$f":"'Population at Risk'!AY130/'Population at Risk'!AY$5","v":7.4598325350664152E-3},{"$f":"'Population at Risk'!AZ130/'Population at Risk'!AZ$5","v":6.0927768317029108E-3},{"$f":"'Population at Risk'!BA130/'Population at Risk'!BA$5","v":9.5383175249103783E-3},{"$f":"'Population at Risk'!BB130/'Population at Risk'!BB$5","v":1.0126647960139293E-2},{"$f":"'Population at Risk'!BC130/'Population at Risk'!BC$5","v":1.2829431126282131E-2},128]
[null,"Male 70-74",{"$f":"'Population at Risk'!C131/'Population at Risk'!C$5","v":4.4137145175133872E-3},{"$f":"'Population at Risk'!D131/'Population at Risk'!D$5","v":3.629182535764781E-3},{"$f":"'Population at Risk'!E131/'Population at Risk'!E$5","v":2.8416492946038321E-3},{"$f":"'Population at Risk'!F131/'Population at Risk'!F$5","v":5.2528116757020234E-3},{"$f":"'Population at Risk'!G131/'Population at Risk'!G$5","v":7.1663518524244345E-3},{"$f":"'Population at Risk'!H131/'Population at Risk'!H$5","v":7.6563002286963045E-3},{"$f":"'Population at Risk'!I131/'Population at Risk'!I$5","v":6.2724850307638927E-3},{"$f":"'Population at Risk'!J131/'Population at Risk'!J$5","v":5.3047528701109879E-3},{"$f":"'Population at Risk'!K131/'Population at Risk'!K$5","v":7.5416703752775056E-3},{"$f":"'Population at Risk'!L131/'Population at Risk'!L$5","v":1.0825420584988534E-2},{"$f":"'Population at Risk'!M131/'Population at Risk'!M$5","v":1.0825420584988534E-2},{"$f":"'Population at Risk'!N131/'Population at Risk'!N$5","v":4.2597324700119205E-3},{"$f":"'Population at Risk'!O131/'Population at Risk'!O$5","v":7.6022373164114556E-3},{"$f":"'Population at Risk'!P131/'Population at Risk'!P$5","v":5.1839462913117525E-3},{"$f":"'Population at Risk'!Q131/'Population at Risk'!Q$5","v":8.0668934414615794E-3},{"$f":"'Population at Risk'!R131/'Population at Risk'!R$5","v":2.3220757273765243E-3},{"$f":"'Population at Risk'!S131/'Population at Risk'!S$5","v":5.8062530449354572E-3},{"$f":"'Population at Risk'!T131/'Population at Risk'!T$5","v":3.0359794929328749E-3},{"$f":"'Population at Risk'!U131/'Population at Risk'!U$5","v":8.2007736218979894E-3},{"$f":"'Population at Risk'!V131/'Population at Risk'!V$5","v":8.7598613000908713E-3},{"$f":"'Population at Risk'!W131/'Population at Risk'!W$5","v":6.4526435063191941E-3},{"$f":"'Population at Risk'!X131/'Population at Risk'!X$5","v":6.4526435063191941E-3},{"$f":"'Population at Risk'!Y131/'Population at Risk'!Y$5","v":7.1282720121593922E-3},{"$f":"'Population at Risk'!Z131/'Population at Risk'!Z$5","v":2.8933772414868933E-3},{"$f":"'Population at Risk'!AA131/'Population at Risk'!AA$5","v":5.2663115066329232E-3},{"$f":"'Population at Risk'!AB131/'Population at Risk'!AB$5","v":3.8519111574731009E-3},{"$f":"'Population at Risk'!AC131/'Population at Risk'!AC$5","v":3.8258781676775433E-3},{"$f":"'Population at Risk'!AD131/'Population at Risk'!AD$5","v":6.898673262201757E-3},{"$f":"'Population at Risk'!AE131/'Population at Risk'!AE$5","v":6.7964204689877333E-3},{"$f":"'Population at Risk'!AF131/'Population at Risk'!AF$5","v":3.4237597214023252E-3},{"$f":"'Population at Risk'!AG131/'Population at Risk'!AG$5","v":6.7964204689877333E-3},{"$f":"'Population at Risk'!AH131/'Population at Risk'!AH$5","v":7.887236108441005E-3},{"$f":"'Population at Risk'!AI131/'Population at Risk'!AI$5","v":5.4624723262303703E-3},{"$f":"'Population at Risk'!AJ131/'Population at Risk'!AJ$5","v":1.0978445745726258E-2},{"$f":"'Population at Risk'!AK131/'Population at Risk'!AK$5","v":4.9840809153931225E-3},{"$f":"'Population at Risk'!AL131/'Population at Risk'!AL$5","v":5.6413764920232087E-3},{"$f":"'Population at Risk'!AM131/'Population at Risk'!AM$5","v":7.5564415262396696E-3},{"$f":"'Population at Risk'!AN131/'Population at Risk'!AN$5","v":7.0599659439422209E-3},{"$f":"'Population at Risk'!AO131/'Population at Risk'!AO$5","v":7.0599659439422209E-3},{"$f":"'Population at Risk'!AP131/'Population at Risk'!AP$5","v":3.0739667641419169E-3},{"$f":"'Population at Risk'!AQ131/'Population at Risk'!AQ$5","v":5.3517941325568743E-3},{"$f":"'Population at Risk'!AR131/'Population at Risk'!AR$5","v":5.7128504461149898E-3},{"$f":"'Population at Risk'!AS131/'Population at Risk'!AS$5","v":6.2724850307638927E-3},{"$f":"'Population at Risk'!AT131/'Population at Risk'!AT$5","v":1.6923180630103308E-3},{"$f":"'Population at Risk'!AU131/'Population at Risk'!AU$5","v":1.6923180630103308E-3},{"$f":"'Population at Risk'!AV131/'Population at Risk'!AV$5","v":1.0392569897521986E-2},{"$f":"'Population at Risk'!AW131/'Population at Risk'!AW$5","v":8.2646578683718361E-3},{"$f":"'Population at Risk'!AX131/'Population at Risk'!AX$5","v":3.9327129674920141E-3},{"$f":"'Population at Risk'!AY131/'Population at Risk'!AY$5","v":5.238758581546276E-3},{"$f":"'Population at Risk'!AZ131/'Population at Risk'!AZ$5","v":4.136856996525556E-3},{"$f":"'Population at Risk'!BA131/'Population at Risk'!BA$5","v":8.0051313509205187E-3},{"$f":"'Population at Risk'!BB131/'Population at Risk'!BB$5","v":7.8859588493344294E-3},{"$f":"'Population at Risk'!BC131/'Population at Risk'!BC$5","v":8.2007736218979894E-3},129]
[null,"Male 75-79",{"$f":"'Population at Risk'!C132/'Population at Risk'!C$5","v":3.6649593761495089E-3},{"$f":"'Population at Risk'!D132/'Population at Risk'!D$5","v":2.9086104819728616E-3},{"$f":"'Population at Risk'!E132/'Population at Risk'!E$5","v":2.1493681439462863E-3},{"$f":"'Population at Risk'!F132/'Population at Risk'!F$5","v":3.9202018170879632E-3},{"$f":"'Population at Risk'!G132/'Population at Risk'!G$5","v":5.3126996411737726E-3},{"$f":"'Population at Risk'!H132/'Population at Risk'!H$5","v":5.8783801205180893E-3},{"$f":"'Population at Risk'!I132/'Population at Risk'!I$5","v":4.631581773770807E-3},{"$f":"'Population at Risk'!J132/'Population at Risk'!J$5","v":4.2258200829697699E-3},{"$f":"'Population at Risk'!K132/'Population at Risk'!K$5","v":5.6234057850501253E-3},{"$f":"'Population at Risk'!L132/'Population at Risk'!L$5","v":8.5689591021571605E-3},{"$f":"'Population at Risk'!M132/'Population at Risk'!M$5","v":8.5689591021571605E-3},{"$f":"'Population at Risk'!N132/'Population at Risk'!N$5","v":3.8149411277616794E-3},{"$f":"'Population at Risk'!O132/'Population at Risk'!O$5","v":6.0544133752584309E-3},{"$f":"'Population at Risk'!P132/'Population at Risk'!P$5","v":4.5826735239809227E-3},{"$f":"'Population at Risk'!Q132/'Population at Risk'!Q$5","v":6.8406074421185183E-3},{"$f":"'Population at Risk'!R132/'Population at Risk'!R$5","v":1.8806894320900775E-3},{"$f":"'Population at Risk'!S132/'Population at Risk'!S$5","v":4.3179922072503953E-3},{"$f":"'Population at Risk'!T132/'Population at Risk'!T$5","v":2.208520484674739E-3},{"$f":"'Population at Risk'!U132/'Population at Risk'!U$5","v":7.2951667188663099E-3},{"$f":"'Population at Risk'!V132/'Population at Risk'!V$5","v":6.4805096352713084E-3},{"$f":"'Population at Risk'!W132/'Population at Risk'!W$5","v":4.8661779633943801E-3},{"$f":"'Population at Risk'!X132/'Population at Risk'!X$5","v":4.8661779633943801E-3},{"$f":"'Population at Risk'!Y132/'Population at Risk'!Y$5","v":5.415788398384502E-3},{"$f":"'Population at Risk'!Z132/'Population at Risk'!Z$5","v":2.1585815700011059E-3},{"$f":"'Population at Risk'!AA132/'Population at Risk'!AA$5","v":3.9563227523115455E-3},{"$f":"'Population at Risk'!AB132/'Population at Risk'!AB$5","v":2.9995967685961119E-3},{"$f":"'Population at Risk'!AC132/'Population at Risk'!AC$5","v":2.9593708504164723E-3},{"$f":"'Population at Risk'!AD132/'Population at Risk'!AD$5","v":4.8766483405219318E-3},{"$f":"'Population at Risk'!AE132/'Population at Risk'!AE$5","v":4.7100774412984752E-3},{"$f":"'Population at Risk'!AF132/'Population at Risk'!AF$5","v":2.4093123965423769E-3},{"$f":"'Population at Risk'!AG132/'Population at Risk'!AG$5","v":4.7100774412984752E-3},{"$f":"'Population at Risk'!AH132/'Population at Risk'!AH$5","v":5.7703155944871416E-3},{"$f":"'Population at Risk'!AI132/'Population at Risk'!AI$5","v":4.036822463036523E-3},{"$f":"'Population at Risk'!AJ132/'Population at Risk'!AJ$5","v":7.6203329293864624E-3},{"$f":"'Population at Risk'!AK132/'Population at Risk'!AK$5","v":3.4620964747864979E-3},{"$f":"'Population at Risk'!AL132/'Population at Risk'!AL$5","v":4.3281380299456749E-3},{"$f":"'Population at Risk'!AM132/'Population at Risk'!AM$5","v":5.6117413628782387E-3},{"$f":"'Population at Risk'!AN132/'Population at Risk'!AN$5","v":5.8352779740746923E-3},{"$f":"'Population at Risk'!AO132/'Population at Risk'!AO$5","v":5.8352779740746923E-3},{"$f":"'Population at Risk'!AP132/'Population at Risk'!AP$5","v":2.4401591839064703E-3},{"$f":"'Population at Risk'!AQ132/'Population at Risk'!AQ$5","v":4.4775663978352262E-3},{"$f":"'Population at Risk'!AR132/'Population at Risk'!AR$5","v":4.3250516142703498E-3},{"$f":"'Population at Risk'!AS132/'Population at Risk'!AS$5","v":4.631581773770807E-3},{"$f":"'Population at Risk'!AT132/'Population at Risk'!AT$5","v":5.6410602100344365E-4},{"$f":"'Population at Risk'!AU132/'Population at Risk'!AU$5","v":5.6410602100344365E-4},{"$f":"'Population at Risk'!AV132/'Population at Risk'!AV$5","v":7.7300106675783371E-3},{"$f":"'Population at Risk'!AW132/'Population at Risk'!AW$5","v":5.9512416700450684E-3},{"$f":"'Population at Risk'!AX132/'Population at Risk'!AX$5","v":3.3685943041222577E-3},{"$f":"'Population at Risk'!AY132/'Population at Risk'!AY$5","v":4.0937441496253536E-3},{"$f":"'Population at Risk'!AZ132/'Population at Risk'!AZ$5","v":3.3925689176527575E-3},{"$f":"'Population at Risk'!BA132/'Population at Risk'!BA$5","v":5.8206802534659357E-3},{"$f":"'Population at Risk'!BB132/'Population at Risk'!BB$5","v":5.6927755147303761E-3},{"$f":"'Population at Risk'!BC132/'Population at Risk'!BC$5","v":7.2951667188663099E-3},130]
[null,"Male 80-84",{"$f":"'Population at Risk'!C133/'Population at Risk'!C$5","v":2.9621804276763952E-3},{"$f":"'Population at Risk'!D133/'Population at Risk'!D$5","v":2.3657137291159362E-3},{"$f":"'Population at Risk'!E133/'Population at Risk'!E$5","v":1.7669652226306892E-3},{"$f":"'Population at Risk'!F133/'Population at Risk'!F$5","v":2.9369168728678799E-3},{"$f":"'Population at Risk'!G133/'Population at Risk'!G$5","v":3.4921483622668724E-3},{"$f":"'Population at Risk'!H133/'Population at Risk'!H$5","v":3.6507094711406424E-3},{"$f":"'Population at Risk'!I133/'Population at Risk'!I$5","v":2.9245130628667093E-3},{"$f":"'Population at Risk'!J133/'Population at Risk'!J$5","v":2.7073220862525002E-3},{"$f":"'Population at Risk'!K133/'Population at Risk'!K$5","v":3.3372548350531117E-3},{"$f":"'Population at Risk'!L133/'Population at Risk'!L$5","v":5.4360208450028565E-3},{"$f":"'Population at Risk'!M133/'Population at Risk'!M$5","v":5.4360208450028565E-3},{"$f":"'Population at Risk'!N133/'Population at Risk'!N$5","v":2.5404428586215666E-3},{"$f":"'Population at Risk'!O133/'Population at Risk'!O$5","v":3.7590009999430608E-3},{"$f":"'Population at Risk'!P133/'Population at Risk'!P$5","v":3.2826242973196681E-3},{"$f":"'Population at Risk'!Q133/'Population at Risk'!Q$5","v":4.7869477564717062E-3},{"$f":"'Population at Risk'!R133/'Population at Risk'!R$5","v":1.5736380962386365E-3},{"$f":"'Population at Risk'!S133/'Population at Risk'!S$5","v":2.9358061160958022E-3},{"$f":"'Population at Risk'!T133/'Population at Risk'!T$5","v":1.6078029128432103E-3},{"$f":"'Population at Risk'!U133/'Population at Risk'!U$5","v":4.4777230205455282E-3},{"$f":"'Population at Risk'!V133/'Population at Risk'!V$5","v":4.6927828393343958E-3},{"$f":"'Population at Risk'!W133/'Population at Risk'!W$5","v":3.3483575641538132E-3},{"$f":"'Population at Risk'!X133/'Population at Risk'!X$5","v":3.3483575641538132E-3},{"$f":"'Population at Risk'!Y133/'Population at Risk'!Y$5","v":3.7551982274512748E-3},{"$f":"'Population at Risk'!Z133/'Population at Risk'!Z$5","v":1.5268481485418962E-3},{"$f":"'Population at Risk'!AA133/'Population at Risk'!AA$5","v":2.7118690525837329E-3},{"$f":"'Population at Risk'!AB133/'Population at Risk'!AB$5","v":2.3837308876011268E-3},{"$f":"'Population at Risk'!AC133/'Population at Risk'!AC$5","v":2.0630600967655307E-3},{"$f":"'Population at Risk'!AD133/'Population at Risk'!AD$5","v":3.1885777611104934E-3},{"$f":"'Population at Risk'!AE133/'Population at Risk'!AE$5","v":3.0726142771423611E-3},{"$f":"'Population at Risk'!AF133/'Population at Risk'!AF$5","v":1.6960291212502259E-3},{"$f":"'Population at Risk'!AG133/'Population at Risk'!AG$5","v":3.0726142771423611E-3},{"$f":"'Population at Risk'!AH133/'Population at Risk'!AH$5","v":3.8924022353345215E-3},{"$f":"'Population at Risk'!AI133/'Population at Risk'!AI$5","v":2.755584717904715E-3},{"$f":"'Population at Risk'!AJ133/'Population at Risk'!AJ$5","v":4.7465633077110594E-3},{"$f":"'Population at Risk'!AK133/'Population at Risk'!AK$5","v":2.4753153539536312E-3},{"$f":"'Population at Risk'!AL133/'Population at Risk'!AL$5","v":2.7004621896242246E-3},{"$f":"'Population at Risk'!AM133/'Population at Risk'!AM$5","v":3.7763363637367325E-3},{"$f":"'Population at Risk'!AN133/'Population at Risk'!AN$5","v":2.5214164085507933E-3},{"$f":"'Population at Risk'!AO133/'Population at Risk'!AO$5","v":2.5214164085507933E-3},{"$f":"'Population at Risk'!AP133/'Population at Risk'!AP$5","v":1.584518950588617E-3},{"$f":"'Population at Risk'!AQ133/'Population at Risk'!AQ$5","v":3.1396178646960074E-3},{"$f":"'Population at Risk'!AR133/'Population at Risk'!AR$5","v":2.9359574689742959E-3},{"$f":"'Population at Risk'!AS133/'Population at Risk'!AS$5","v":2.9245130628667093E-3},{"$f":"'Population at Risk'!AT133/'Population at Risk'!AT$5","v":4.2307951575258271E-4},{"$f":"'Population at Risk'!AU133/'Population at Risk'!AU$5","v":4.2307951575258271E-4},{"$f":"'Population at Risk'!AV133/'Population at Risk'!AV$5","v":4.7852446989770656E-3},{"$f":"'Population at Risk'!AW133/'Population at Risk'!AW$5","v":4.0248281814755666E-3},{"$f":"'Population at Risk'!AX133/'Population at Risk'!AX$5","v":2.3209453578641394E-3},{"$f":"'Population at Risk'!AY133/'Population at Risk'!AY$5","v":2.8162637057706336E-3},{"$f":"'Population at Risk'!AZ133/'Population at Risk'!AZ$5","v":2.3332565821407741E-3},{"$f":"'Population at Risk'!BA133/'Population at Risk'!BA$5","v":3.5955250982948089E-3},{"$f":"'Population at Risk'!BB133/'Population at Risk'!BB$5","v":3.7767092079643806E-3},{"$f":"'Population at Risk'!BC133/'Population at Risk'!BC$5","v":4.4777230205455282E-3},131]
[null,"Male 85-89",{"$f":"'Population at Risk'!C134/'Population at Risk'!C$5","v":1.5172143653952269E-3},{"$f":"'Population at Risk'!D134/'Population at Risk'!D$5","v":1.0989546391164432E-3},{"$f":"'Population at Risk'!E134/'Population at Risk'!E$5","v":6.7909484302597389E-4},{"$f":"'Population at Risk'!F134/'Population at Risk'!F$5","v":1.5784310946690809E-3},{"$f":"'Population at Risk'!G134/'Population at Risk'!G$5","v":1.7212484818756148E-3},{"$f":"'Population at Risk'!H134/'Population at Risk'!H$5","v":1.9325218567154507E-3},{"$f":"'Population at Risk'!I134/'Population at Risk'!I$5","v":1.998196708112548E-3},{"$f":"'Population at Risk'!J134/'Population at Risk'!J$5","v":1.2687450367308765E-3},{"$f":"'Population at Risk'!K134/'Population at Risk'!K$5","v":1.6292110218369522E-3},{"$f":"'Population at Risk'!L134/'Population at Risk'!L$5","v":2.6480787649756621E-3},{"$f":"'Population at Risk'!M134/'Population at Risk'!M$5","v":2.6480787649756621E-3},{"$f":"'Population at Risk'!N134/'Population at Risk'!N$5","v":1.2402835505054787E-3},{"$f":"'Population at Risk'!O134/'Population at Risk'!O$5","v":2.0111181820423657E-3},{"$f":"'Population at Risk'!P134/'Population at Risk'!P$5","v":1.8688207633255534E-3},{"$f":"'Population at Risk'!Q134/'Population at Risk'!Q$5","v":2.2161795168850491E-3},{"$f":"'Population at Risk'!R134/'Population at Risk'!R$5","v":6.1410267170288249E-4},{"$f":"'Population at Risk'!S134/'Population at Risk'!S$5","v":1.4668315959617349E-3},{"$f":"'Population at Risk'!T134/'Population at Risk'!T$5","v":8.0095676244203878E-4},{"$f":"'Population at Risk'!U134/'Population at Risk'!U$5","v":2.4652632360306842E-3},{"$f":"'Population at Risk'!V134/'Population at Risk'!V$5","v":2.2614743968601943E-3},{"$f":"'Population at Risk'!W134/'Population at Risk'!W$5","v":1.6398562102347832E-3},{"$f":"'Population at Risk'!X134/'Population at Risk'!X$5","v":1.6398562102347832E-3},{"$f":"'Population at Risk'!Y134/'Population at Risk'!Y$5","v":1.7926825708938247E-3},{"$f":"'Population at Risk'!Z134/'Population at Risk'!Z$5","v":7.557898335282386E-4},{"$f":"'Population at Risk'!AA134/'Population at Risk'!AA$5","v":1.2829199274240356E-3},{"$f":"'Population at Risk'!AB134/'Population at Risk'!AB$5","v":1.1162569093034111E-3},{"$f":"'Population at Risk'!AC134/'Population at Risk'!AC$5","v":9.8682489379795847E-4},{"$f":"'Population at Risk'!AD134/'Population at Risk'!AD$5","v":1.665196994324562E-3},{"$f":"'Population at Risk'!AE134/'Population at Risk'!AE$5","v":1.6437854157551725E-3},{"$f":"'Population at Risk'!AF134/'Population at Risk'!AF$5","v":7.766862330958979E-4},{"$f":"'Population at Risk'!AG134/'Population at Risk'!AG$5","v":1.6437854157551725E-3},{"$f":"'Population at Risk'!AH134/'Population at Risk'!AH$5","v":1.8216763815523276E-3},{"$f":"'Population at Risk'!AI134/'Population at Risk'!AI$5","v":1.323218012010308E-3},{"$f":"'Population at Risk'!AJ134/'Population at Risk'!AJ$5","v":2.5347293854103277E-3},{"$f":"'Population at Risk'!AK134/'Population at Risk'!AK$5","v":1.2042074694909558E-3},{"$f":"'Population at Risk'!AL134/'Population at Risk'!AL$5","v":1.2577495129756663E-3},{"$f":"'Population at Risk'!AM134/'Population at Risk'!AM$5","v":1.6846530484933328E-3},{"$f":"'Population at Risk'!AN134/'Population at Risk'!AN$5","v":1.1526475010517911E-3},{"$f":"'Population at Risk'!AO134/'Population at Risk'!AO$5","v":1.1526475010517911E-3},{"$f":"'Population at Risk'!AP134/'Population at Risk'!AP$5","v":8.5564023331785306E-4},{"$f":"'Population at Risk'!AQ134/'Population at Risk'!AQ$5","v":1.3227445725353638E-3},{"$f":"'Population at Risk'!AR134/'Population at Risk'!AR$5","v":1.4424610594942981E-3},{"$f":"'Population at Risk'!AS134/'Population at Risk'!AS$5","v":1.998196708112548E-3},{"$f":"'Population at Risk'!AT134/'Population at Risk'!AT$5","v":7.0513252625430456E-5},{"$f":"'Population at Risk'!AU134/'Population at Risk'!AU$5","v":7.0513252625430456E-5},{"$f":"'Population at Risk'!AV134/'Population at Risk'!AV$5","v":2.7361783791586811E-3},{"$f":"'Population at Risk'!AW134/'Population at Risk'!AW$5","v":1.9780138498704707E-3},{"$f":"'Population at Risk'!AX134/'Population at Risk'!AX$5","v":1.0476489462581183E-3},{"$f":"'Population at Risk'!AY134/'Population at Risk'!AY$5","v":1.4117610586917221E-3},{"$f":"'Population at Risk'!AZ134/'Population at Risk'!AZ$5","v":1.2047081462685301E-3},{"$f":"'Population at Risk'!BA134/'Population at Risk'!BA$5","v":1.7367064625725868E-3},{"$f":"'Population at Risk'!BB134/'Population at Risk'!BB$5","v":1.6547845376615419E-3},{"$f":"'Population at Risk'!BC134/'Population at Risk'!BC$5","v":2.4652632360306842E-3},132]
[null,"Male 90+",{"$f":"'Population at Risk'!C135/'Population at Risk'!C$5","v":6.1082656269158481E-4},{"$f":"'Population at Risk'!D135/'Population at Risk'!D$5","v":4.9025221924655705E-4},{"$f":"'Population at Risk'!E135/'Population at Risk'!E$5","v":3.6921661368402461E-4},{"$f":"'Population at Risk'!F135/'Population at Risk'!F$5","v":8.7978126588112706E-4},{"$f":"'Population at Risk'!G135/'Population at Risk'!G$5","v":5.7926631601583193E-4},{"$f":"'Population at Risk'!H135/'Population at Risk'!H$5","v":7.5192668606746628E-4},{"$f":"'Population at Risk'!I135/'Population at Risk'!I$5","v":7.4105308380332906E-4},{"$f":"'Population at Risk'!J135/'Population at Risk'!J$5","v":3.6963438077986167E-4},{"$f":"'Population at Risk'!K135/'Population at Risk'!K$5","v":5.2555194252804907E-4},{"$f":"'Population at Risk'!L135/'Population at Risk'!L$5","v":1.1562034044259933E-3},{"$f":"'Population at Risk'!M135/'Population at Risk'!M$5","v":1.1562034044259933E-3},{"$f":"'Population at Risk'!N135/'Population at Risk'!N$5","v":5.7309653713011777E-4},{"$f":"'Population at Risk'!O135/'Population at Risk'!O$5","v":7.3705901959667864E-4},{"$f":"'Population at Risk'!P135/'Population at Risk'!P$5","v":1.0400393813290037E-3},{"$f":"'Population at Risk'!Q135/'Population at Risk'!Q$5","v":9.8989351754198858E-4},{"$f":"'Population at Risk'!R135/'Population at Risk'!R$5","v":3.2624204434215633E-4},{"$f":"'Population at Risk'!S135/'Population at Risk'!S$5","v":6.4073432752747802E-4},{"$f":"'Population at Risk'!T135/'Population at Risk'!T$5","v":4.2698062703711622E-4},{"$f":"'Population at Risk'!U135/'Population at Risk'!U$5","v":4.5280345151583996E-4},{"$f":"'Population at Risk'!V135/'Population at Risk'!V$5","v":8.3129296011066433E-4},{"$f":"'Population at Risk'!W135/'Population at Risk'!W$5","v":7.3221486596529851E-4},{"$f":"'Population at Risk'!X135/'Population at Risk'!X$5","v":7.3221486596529851E-4},{"$f":"'Population at Risk'!Y135/'Population at Risk'!Y$5","v":6.1328614267420307E-4},{"$f":"'Population at Risk'!Z135/'Population at Risk'!Z$5","v":3.1300387045108872E-4},{"$f":"'Population at Risk'!AA135/'Population at Risk'!AA$5","v":4.886635592520202E-4},{"$f":"'Population at Risk'!AB135/'Population at Risk'!AB$5","v":4.9489222579954186E-4},{"$f":"'Population at Risk'!AC135/'Population at Risk'!AC$5","v":4.128327855485866E-4},{"$f":"'Population at Risk'!AD135/'Population at Risk'!AD$5","v":7.8227660997115414E-4},{"$f":"'Population at Risk'!AE135/'Population at Risk'!AE$5","v":8.5982621747193646E-4},{"$f":"'Population at Risk'!AF135/'Population at Risk'!AF$5","v":2.8531331011686045E-4},{"$f":"'Population at Risk'!AG135/'Population at Risk'!AG$5","v":8.5982621747193646E-4},{"$f":"'Population at Risk'!AH135/'Population at Risk'!AH$5","v":6.266406075461149E-4},{"$f":"'Population at Risk'!AI135/'Population at Risk'!AI$5","v":5.877237362989946E-4},{"$f":"'Population at Risk'!AJ135/'Population at Risk'!AJ$5","v":1.0332654819507068E-3},{"$f":"'Population at Risk'!AK135/'Population at Risk'!AK$5","v":5.1847821603082816E-4},{"$f":"'Population at Risk'!AL135/'Population at Risk'!AL$5","v":5.1789685828409788E-4},{"$f":"'Population at Risk'!AM135/'Population at Risk'!AM$5","v":5.5778221739823987E-4},{"$f":"'Population at Risk'!AN135/'Population at Risk'!AN$5","v":6.4836421934163265E-4},{"$f":"'Population at Risk'!AO135/'Population at Risk'!AO$5","v":6.4836421934163265E-4},{"$f":"'Population at Risk'!AP135/'Population at Risk'!AP$5","v":3.1690379011772336E-4},{"$f":"'Population at Risk'!AQ135/'Population at Risk'!AQ$5","v":5.5494456204069863E-4},{"$f":"'Population at Risk'!AR135/'Population at Risk'!AR$5","v":5.9221730998634445E-4},{"$f":"'Population at Risk'!AS135/'Population at Risk'!AS$5","v":7.4105308380332906E-4},{"$f":"'Population at Risk'!AT135/'Population at Risk'!AT$5","v":0},{"$f":"'Population at Risk'!AU135/'Population at Risk'!AU$5","v":0},{"$f":"'Population at Risk'!AV135/'Population at Risk'!AV$5","v":1.079747521820466E-3},{"$f":"'Population at Risk'!AW135/'Population at Risk'!AW$5","v":7.0520493777990697E-4},{"$f":"'Population at Risk'!AX135/'Population at Risk'!AX$5","v":2.7400049363673868E-4},{"$f":"'Population at Risk'!AY135/'Population at Risk'!AY$5","v":6.478132364433739E-4},{"$f":"'Population at Risk'!AZ135/'Population at Risk'!AZ$5","v":5.7119782797214794E-4},{"$f":"'Population at Risk'!BA135/'Population at Risk'!BA$5","v":5.1558473107623669E-4},{"$f":"'Population at Risk'!BB135/'Population at Risk'!BB$5","v":5.8590457314332104E-4},{"$f":"'Population at Risk'!BC135/'Population at Risk'!BC$5","v":4.5280345151583996E-4},133]
["SIMD Q3","Female 0-4",{"$f":"'Population at Risk'!C136/'Population at Risk'!C$5","v":0},{"$f":"'Population at Risk'!D136/'Population at Risk'!D$5","v":0},{"$f":"'Population at Risk'!E136/'Population at Risk'!E$5","v":0},{"$f":"'Population at Risk'!F136/'Population at Risk'!F$5","v":0},{"$f":"'Population at Risk'!G136/'Population at Risk'!G$5","v":0},{"$f":"'Population at Risk'!H136/'Population at Risk'!H$5","v":0},{"$f":"'Population at Risk'!I136/'Population at Risk'!I$5","v":0},{"$f":"'Population at Risk'!J136/'Population at Risk'!J$5","v":0},{"$f":"'Population at Risk'!K136/'Population at Risk'!K$5","v":0},{"$f":"'Population at Risk'!L136/'Population at Risk'!L$5","v":0},{"$f":"'Population at Risk'!M136/'Population at Risk'!M$5","v":0},{"$f":"'Population at Risk'!N136/'Population at Risk'!N$5","v":0},{"$f":"'Population at Risk'!O136/'Population at Risk'!O$5","v":0},{"$f":"'Population at Risk'!P136/'Population at Risk'!P$5","v":0},{"$f":"'Population at Risk'!Q136/'Population at Risk'!Q$5","v":0},{"$f":"'Population at Risk'!R136/'Population at Risk'!R$5","v":0},{"$f":"'Population at Risk'!S136/'Population at Risk'!S$5","v":0},{"$f":"'Population at Risk'!T136/'Population at Risk'!T$5","v":0},{"$f":"'Population at Risk'!U136/'Population at Risk'!U$5","v":0},{"$f":"'Population at Risk'!V136/'Population at Risk'!V$5","v":0},{"$f":"'Population at Risk'!W136/'Population at Risk'!W$5","v":0},{"$f":"'Population at Risk'!X136/'Population at Risk'!X$5","v":0},{"$f":"'Population at Risk'!Y136/'Population at Risk'!Y$5","v":0},{"$f":"'Population at Risk'!Z136/'Population at Risk'!Z$5","v":0},{"$f":"'Population at Risk'!AA136/'Population at Risk'!AA$5","v":0},{"$f":"'Population at Risk'!AB136/'Population at Risk'!AB$5","v":0},{"$f":"'Population at Risk'!AC136/'Population at Risk'!AC$5","v":0},{"$f":"'Population at Risk'!AD136/'Population at Risk'!AD$5","v":0},{"$f":"'Population at Risk'!AE136/'Population at Risk'!AE$5","v":0},{"$f":"'Population at Risk'!AF136/'Population at Risk'!AF$5","v":0},{"$f":"'Population at Risk'!AG136/'Population at Risk'!AG$5","v":0},{"$f":"'Population at Risk'!AH136/'Population at Risk'!AH$5","v":0},{"$f":"'Population at Risk'!AI136/'Population at Risk'!AI$5","v":0},{"$f":"'Population at Risk'!AJ136/'Population at Risk'!AJ$5","v":0},{"$f":"'Population at Risk'!AK136/'Population at Risk'!AK$5","v":0},{"$f":"'Population at Risk'!AL136/'Population at Risk'!AL$5","v":0},{"$f":"'Population at Risk'!AM136/'Population at Risk'!AM$5","v":0},{"$f":"'Population at Risk'!AN136/'Population at Risk'!AN$5","v":0},{"$f":"'Population at Risk'!AO136/'Population at Risk'!AO$5","v":0},{"$f":"'Population at Risk'!AP136/'Population at Risk'!AP$5","v":0},{"$f":"'Population at Risk'!AQ136/'Population at Risk'!AQ$5","v":0},{"$f":"'Population at Risk'!AR136/'Population at Risk'!AR$5","v":0},{"$f":"'Population at Risk'!AS136/'Population at Risk'!AS$5","v":0},{"$f":"'Population at Risk'!AT136/'Population at Risk'!AT$5","v":0},{"$f":"'Population at Risk'!AU136/'Population at Risk'!AU$5","v":0},{"$f":"'Population at Risk'!AV136/'Population at Risk'!AV$5","v":0},{"$f":"'Population at Risk'!AW136/'Population at Risk'!AW$5","v":0},{"$f":"'Population at Risk'!AX136/'Population at Risk'!AX$5","v":0},{"$f":"'Population at Risk'!AY136/'Population at Risk'!AY$5","v":0},{"$f":"'Population at Risk'!AZ136/'Population at Risk'!AZ$5","v":0},{"$f":"'Population at Risk'!BA136/'Population at Risk'!BA$5","v":0},{"$f":"'Population at Risk'!BB136/'Population at Risk'!BB$5","v":0},{"$f":"'Population at Risk'!BC136/'Population at Risk'!BC$5","v":0},134]
[null,"Female 5-9",{"$f":"'Population at Risk'!C137/'Population at Risk'!C$5","v":0},{"$f":"'Population at Risk'!D137/'Population at Risk'!D$5","v":0},{"$f":"'Population at Risk'!E137/'Population at Risk'!E$5","v":0},{"$f":"'Population at Risk'!F137/'Population at Risk'!F$5","v":0},{"$f":"'Population at Risk'!G137/'Population at Risk'!G$5","v":0},{"$f":"'Population at Risk'!H137/'Population at Risk'!H$5","v":0},{"$f":"'Population at Risk'!I137/'Population at Risk'!I$5","v":0},{"$f":"'Population at Risk'!J137/'Population at Risk'!J$5","v":0},{"$f":"'Population at Risk'!K137/'Population at Risk'!K$5","v":0},{"$f":"'Population at Risk'!L137/'Population at Risk'!L$5","v":0},{"$f":"'Population at Risk'!M137/'Population at Risk'!M$5","v":0},{"$f":"'Population at Risk'!N137/'Population at Risk'!N$5","v":0},{"$f":"'Population at Risk'!O137/'Population at Risk'!O$5","v":0},{"$f":"'Population at Risk'!P137/'Population at Risk'!P$5","v":0},{"$f":"'Population at Risk'!Q137/'Population at Risk'!Q$5","v":0},{"$f":"'Population at Risk'!R137/'Population at Risk'!R$5","v":0},{"$f":"'Population at Risk'!S137/'Population at Risk'!S$5","v":0},{"$f":"'Population at Risk'!T137/'Population at Risk'!T$5","v":0},{"$f":"'Population at Risk'!U137/'Population at Risk'!U$5","v":0},{"$f":"'Population at Risk'!V137/'Population at Risk'!V$5","v":0},{"$f":"'Population at Risk'!W137/'Population at Risk'!W$5","v":0},{"$f":"'Population at Risk'!X137/'Population at Risk'!X$5","v":0},{"$f":"'Population at Risk'!Y137/'Population at Risk'!Y$5","v":0},{"$f":"'Population at Risk'!Z137/'Population at Risk'!Z$5","v":0},{"$f":"'Population at Risk'!AA137/'Population at Risk'!AA$5","v":0},{"$f":"'Population at Risk'!AB137/'Population at Risk'!AB$5","v":0},{"$f":"'Population at Risk'!AC137/'Population at Risk'!AC$5","v":0},{"$f":"'Population at Risk'!AD137/'Population at Risk'!AD$5","v":0},{"$f":"'Population at Risk'!AE137/'Population at Risk'!AE$5","v":0},{"$f":"'Population at Risk'!AF137/'Population at Risk'!AF$5","v":0},{"$f":"'Population at Risk'!AG137/'Population at Risk'!AG$5","v":0},{"$f":"'Population at Risk'!AH137/'Population at Risk'!AH$5","v":0},{"$f":"'Population at Risk'!AI137/'Population at Risk'!AI$5","v":0},{"$f":"'Population at Risk'!AJ137/'Population at Risk'!AJ$5","v":0},{"$f":"'Population at Risk'!AK137/'Population at Risk'!AK$5","v":0},{"$f":"'Population at Risk'!AL137/'Population at Risk'!AL$5","v":0},{"$f":"'Population at Risk'!AM137/'Population at Risk'!AM$5","v":0},{"$f":"'Population at Risk'!AN137/'Population at Risk'!AN$5","v":0},{"$f":"'Population at Risk'!AO137/'Population at Risk'!AO$5","v":0},{"$f":"'Population at Risk'!AP137/'Population at Risk'!AP$5","v":0},{"$f":"'Population at Risk'!AQ137/'Population at Risk'!AQ$5","v":0},{"$f":"'Population at Risk'!AR137/'Population at Risk'!AR$5","v":0},{"$f":"'Population at Risk'!AS137/'Population at Risk'!AS$5","v":0},{"$f":"'Population at Risk'!AT137/'Population at Risk'!AT$5","v":0},{"$f":"'Population at Risk'!AU137/'Population at Risk'!AU$5","v":0},{"$f":"'Population at Risk'!AV137/'Population at Risk'!AV$5","v":0},{"$f":"'Population at Risk'!AW137/'Population at Risk'!AW$5","v":0},{"$f":"'Population at Risk'!AX137/'Population at Risk'!AX$5","v":0},{"$f":"'Population at Risk'!AY137/'Population at Risk'!AY$5","v":0},{"$f":"'Population at Risk'!AZ137/'Population at Risk'!AZ$5","v":0},{"$f":"'Population at Risk'!BA137/'Population at Risk'!BA$5","v":0},{"$f":"'Population at Risk'!BB137/'Population at Risk'!BB$5","v":0},{"$f":"'Population at Risk'!BC137/'Population at Risk'!BC$5","v":0},135]
[null,"Female 10-15",{"$f":"'Population at Risk'!C138/'Population at Risk'!C$5","v":0},{"$f":"'Population at Risk'!D138/'Population at Risk'!D$5","v":0},{"$f":"'Population at Risk'!E138/'Population at Risk'!E$5","v":0},{"$f":"'Population at Risk'!F138/'Population at Risk'!F$5","v":0},{"$f":"'Population at Risk'!G138/'Population at Risk'!G$5","v":0},{"$f":"'Population at Risk'!H138/'Population at Risk'!H$5","v":0},{"$f":"'Population at Risk'!I138/'Population at Risk'!I$5","v":0},{"$f":"'Population at Risk'!J138/'Population at Risk'!J$5","v":0},{"$f":"'Population at Risk'!K138/'Population at Risk'!K$5","v":0},{"$f":"'Population at Risk'!L138/'Population at Risk'!L$5","v":0},{"$f":"'Population at Risk'!M138/'Population at Risk'!M$5","v":0},{"$f":"'Population at Risk'!N138/'Population at Risk'!N$5","v":0},{"$f":"'Population at Risk'!O138/'Population at Risk'!O$5","v":0},{"$f":"'Population at Risk'!P138/'Population at Risk'!P$5","v":0},{"$f":"'Population at Risk'!Q138/'Population at Risk'!Q$5","v":0},{"$f":"'Population at Risk'!R138/'Population at Risk'!R$5","v":0},{"$f":"'Population at Risk'!S138/'Population at Risk'!S$5","v":0},{"$f":"'Population at Risk'!T138/'Population at Risk'!T$5","v":0},{"$f":"'Population at Risk'!U138/'Population at Risk'!U$5","v":0},{"$f":"'Population at Risk'!V138/'Population at Risk'!V$5","v":0},{"$f":"'Population at Risk'!W138/'Population at Risk'!W$5","v":0},{"$f":"'Population at Risk'!X138/'Population at Risk'!X$5","v":0},{"$f":"'Population at Risk'!Y138/'Population at Risk'!Y$5","v":0},{"$f":"'Population at Risk'!Z138/'Population at Risk'!Z$5","v":0},{"$f":"'Population at Risk'!AA138/'Population at Risk'!AA$5","v":0},{"$f":"'Population at Risk'!AB138/'Population at Risk'!AB$5","v":0},{"$f":"'Population at Risk'!AC138/'Population at Risk'!AC$5","v":0},{"$f":"'Population at Risk'!AD138/'Population at Risk'!AD$5","v":0},{"$f":"'Population at Risk'!AE138/'Population at Risk'!AE$5","v":0},{"$f":"'Population at Risk'!AF138/'Population at Risk'!AF$5","v":0},{"$f":"'Population at Risk'!AG138/'Population at Risk'!AG$5","v":0},{"$f":"'Population at Risk'!AH138/'Population at Risk'!AH$5","v":0},{"$f":"'Population at Risk'!AI138/'Population at Risk'!AI$5","v":0},{"$f":"'Population at Risk'!AJ138/'Population at Risk'!AJ$5","v":0},{"$f":"'Population at Risk'!AK138/'Population at Risk'!AK$5","v":0},{"$f":"'Population at Risk'!AL138/'Population at Risk'!AL$5","v":0},{"$f":"'Population at Risk'!AM138/'Population at Risk'!AM$5","v":0},{"$f":"'Population at Risk'!AN138/'Population at Risk'!AN$5","v":0},{"$f":"'Population at Risk'!AO138/'Population at Risk'!AO$5","v":0},{"$f":"'Population at Risk'!AP138/'Population at Risk'!AP$5","v":0},{"$f":"'Population at Risk'!AQ138/'Population at Risk'!AQ$5","v":0},{"$f":"'Population at Risk'!AR138/'Population at Risk'!AR$5","v":0},{"$f":"'Population at Risk'!AS138/'Population at Risk'!AS$5","v":0},{"$f":"'Population at Risk'!AT138/'Population at Risk'!AT$5","v":0},{"$f":"'Population at Risk'!AU138/'Population at Risk'!AU$5","v":0},{"$f":"'Population at Risk'!AV138/'Population at Risk'!AV$5","v":0},{"$f":"'Population at Risk'!AW138/'Population at Risk'!AW$5","v":0},{"$f":"'Population at Risk'!AX138/'Population at Risk'!AX$5","v":0},{"$f":"'Population at Risk'!AY138/'Population at Risk'!AY$5","v":0},{"$f":"'Population at Risk'!AZ138/'Population at Risk'!AZ$5","v":0},{"$f":"'Population at Risk'!BA138/'Population at Risk'!BA$5","v":0},{"$f":"'Population at Risk'!BB138/'Population at Risk'!BB$5","v":0},{"$f":"'Population at Risk'!BC138/'Population at Risk'!BC$5","v":0},136]
[null,"Female 16-19",{"$f":"'Population at Risk'!C139/'Population at Risk'!C$5","v":5.0592357910308645E-3},{"$f":"'Population at Risk'!D139/'Population at Risk'!D$5","v":6.42478680005027E-3},{"$f":"'Population at Risk'!E139/'Population at Risk'!E$5","v":7.7955617807039723E-3},{"$f":"'Population at Risk'!F139/'Population at Risk'!F$5","v":1.1375052190596554E-2},{"$f":"'Population at Risk'!G139/'Population at Risk'!G$5","v":1.4142322168475578E-2},{"$f":"'Population at Risk'!H139/'Population at Risk'!H$5","v":5.2986297843909333E-3},{"$f":"'Population at Risk'!I139/'Population at Risk'!I$5","v":1.1560236729369559E-2},{"$f":"'Population at Risk'!J139/'Population at Risk'!J$5","v":5.8443228278040335E-3},{"$f":"'Population at Risk'!K139/'Population at Risk'!K$5","v":5.1635636808213415E-3},{"$f":"'Population at Risk'!L139/'Population at Risk'!L$5","v":1.118174670339158E-2},{"$f":"'Population at Risk'!M139/'Population at Risk'!M$5","v":1.118174670339158E-2},{"$f":"'Population at Risk'!N139/'Population at Risk'!N$5","v":4.5717847334446364E-3},{"$f":"'Population at Risk'!O139/'Population at Risk'!O$5","v":4.9302179535157132E-3},{"$f":"'Population at Risk'!P139/'Population at Risk'!P$5","v":2.9925367816858377E-3},{"$f":"'Population at Risk'!Q139/'Population at Risk'!Q$5","v":7.5317408605751982E-3},{"$f":"'Population at Risk'!R139/'Population at Risk'!R$5","v":4.97770124344688E-3},{"$f":"'Population at Risk'!S139/'Population at Risk'!S$5","v":6.7518115034514367E-3},{"$f":"'Population at Risk'!T139/'Population at Risk'!T$5","v":4.7481064505088934E-3},{"$f":"'Population at Risk'!U139/'Population at Risk'!U$5","v":2.0280913208959198E-2},{"$f":"'Population at Risk'!V139/'Population at Risk'!V$5","v":6.0020302073561628E-3},{"$f":"'Population at Risk'!W139/'Population at Risk'!W$5","v":6.9071282416510969E-3},{"$f":"'Population at Risk'!X139/'Population at Risk'!X$5","v":6.9071282416510969E-3},{"$f":"'Population at Risk'!Y139/'Population at Risk'!Y$5","v":5.9275568076584007E-3},{"$f":"'Population at Risk'!Z139/'Population at Risk'!Z$5","v":5.070449233827312E-3},{"$f":"'Population at Risk'!AA139/'Population at Risk'!AA$5","v":5.3254396540100566E-3},{"$f":"'Population at Risk'!AB139/'Population at Risk'!AB$5","v":7.1283316637221128E-3},{"$f":"'Population at Risk'!AC139/'Population at Risk'!AC$5","v":4.8921024440147561E-3},{"$f":"'Population at Risk'!AD139/'Population at Risk'!AD$5","v":1.1321439851863596E-2},{"$f":"'Population at Risk'!AE139/'Population at Risk'!AE$5","v":1.0243867319963806E-2},{"$f":"'Population at Risk'!AF139/'Population at Risk'!AF$5","v":4.912295093738939E-3},{"$f":"'Population at Risk'!AG139/'Population at Risk'!AG$5","v":1.0243867319963806E-2},{"$f":"'Population at Risk'!AH139/'Population at Risk'!AH$5","v":6.1139135971216597E-3},{"$f":"'Population at Risk'!AI139/'Population at Risk'!AI$5","v":6.0732582678098678E-3},{"$f":"'Population at Risk'!AJ139/'Population at Risk'!AJ$5","v":8.6653414952821192E-3},{"$f":"'Population at Risk'!AK139/'Population at Risk'!AK$5","v":1.0704577104832696E-2},{"$f":"'Population at Risk'!AL139/'Population at Risk'!AL$5","v":4.2264476829800245E-3},{"$f":"'Population at Risk'!AM139/'Population at Risk'!AM$5","v":5.9288016768651274E-3},{"$f":"'Population at Risk'!AN139/'Population at Risk'!AN$5","v":9.9496425956718468E-3},{"$f":"'Population at Risk'!AO139/'Population at Risk'!AO$5","v":9.9496425956718468E-3},{"$f":"'Population at Risk'!AP139/'Population at Risk'!AP$5","v":7.8403143711093283E-3},{"$f":"'Population at Risk'!AQ139/'Population at Risk'!AQ$5","v":5.6508082184993369E-3},{"$f":"'Population at Risk'!AR139/'Population at Risk'!AR$5","v":6.650938337792847E-3},{"$f":"'Population at Risk'!AS139/'Population at Risk'!AS$5","v":1.1560236729369559E-2},{"$f":"'Population at Risk'!AT139/'Population at Risk'!AT$5","v":1.1797306299627056E-2},{"$f":"'Population at Risk'!AU139/'Population at Risk'!AU$5","v":1.1797306299627056E-2},{"$f":"'Population at Risk'!AV139/'Population at Risk'!AV$5","v":7.1504395654603085E-3},{"$f":"'Population at Risk'!AW139/'Population at Risk'!AW$5","v":6.3251179834283057E-3},{"$f":"'Population at Risk'!AX139/'Population at Risk'!AX$5","v":6.2618745307952356E-3},{"$f":"'Population at Risk'!AY139/'Population at Risk'!AY$5","v":7.1986503145954096E-3},{"$f":"'Population at Risk'!AZ139/'Population at Risk'!AZ$5","v":7.4632788866208465E-3},{"$f":"'Population at Risk'!BA139/'Population at Risk'!BA$5","v":3.7782785290013218E-3},{"$f":"'Population at Risk'!BB139/'Population at Risk'!BB$5","v":7.5835060573108057E-3},{"$f":"'Population at Risk'!BC139/'Population at Risk'!BC$5","v":2.0280913208959198E-2},137]
[null,"Female 20-24",{"$f":"'Population at Risk'!C140/'Population at Risk'!C$5","v":1.5096582600933205E-2},{"$f":"'Population at Risk'!D140/'Population at Risk'!D$5","v":1.2435786296129507E-2},{"$f":"'Population at Risk'!E140/'Population at Risk'!E$5","v":9.7648110054592008E-3},{"$f":"'Population at Risk'!F140/'Population at Risk'!F$5","v":1.2958552431688539E-2},{"$f":"'Population at Risk'!G140/'Population at Risk'!G$5","v":1.2618445141123412E-2},{"$f":"'Population at Risk'!H140/'Population at Risk'!H$5","v":6.0600858889236584E-3},{"$f":"'Population at Risk'!I140/'Population at Risk'!I$5","v":1.4026816802731185E-2},{"$f":"'Population at Risk'!J140/'Population at Risk'!J$5","v":1.0185499285309142E-2},{"$f":"'Population at Risk'!K140/'Population at Risk'!K$5","v":7.5535560130872191E-3},{"$f":"'Population at Risk'!L140/'Population at Risk'!L$5","v":1.3171008757365738E-2},{"$f":"'Population at Risk'!M140/'Population at Risk'!M$5","v":1.3171008757365738E-2},{"$f":"'Population at Risk'!N140/'Population at Risk'!N$5","v":8.2215288483794297E-3},{"$f":"'Population at Risk'!O140/'Population at Risk'!O$5","v":5.8642400598172516E-3},{"$f":"'Population at Risk'!P140/'Population at Risk'!P$5","v":3.9413899075862258E-3},{"$f":"'Population at Risk'!Q140/'Population at Risk'!Q$5","v":1.0401765461631386E-2},{"$f":"'Population at Risk'!R140/'Population at Risk'!R$5","v":5.5595104796939184E-3},{"$f":"'Population at Risk'!S140/'Population at Risk'!S$5","v":1.2005760333738753E-2},{"$f":"'Population at Risk'!T140/'Population at Risk'!T$5","v":1.5133762690793319E-2},{"$f":"'Population at Risk'!U140/'Population at Risk'!U$5","v":2.0619869975682749E-2},{"$f":"'Population at Risk'!V140/'Population at Risk'!V$5","v":7.8287350530732557E-3},{"$f":"'Population at Risk'!W140/'Population at Risk'!W$5","v":9.6305836425749011E-3},{"$f":"'Population at Risk'!X140/'Population at Risk'!X$5","v":9.6305836425749011E-3},{"$f":"'Population at Risk'!Y140/'Population at Risk'!Y$5","v":8.9416585266553876E-3},{"$f":"'Population at Risk'!Z140/'Population at Risk'!Z$5","v":1.1317431278039745E-2},{"$f":"'Population at Risk'!AA140/'Population at Risk'!AA$5","v":8.5704544747248063E-3},{"$f":"'Population at Risk'!AB140/'Population at Risk'!AB$5","v":1.2521660124753958E-2},{"$f":"'Population at Risk'!AC140/'Population at Risk'!AC$5","v":9.0975505292800393E-3},{"$f":"'Population at Risk'!AD140/'Population at Risk'!AD$5","v":1.1963536032209763E-2},{"$f":"'Population at Risk'!AE140/'Population at Risk'!AE$5","v":1.1713361800374413E-2},{"$f":"'Population at Risk'!AF140/'Population at Risk'!AF$5","v":5.6776164308069612E-3},{"$f":"'Population at Risk'!AG140/'Population at Risk'!AG$5","v":1.1713361800374413E-2},{"$f":"'Population at Risk'!AH140/'Population at Risk'!AH$5","v":7.6113826596405755E-3},{"$f":"'Population at Risk'!AI140/'Population at Risk'!AI$5","v":1.2795135239167267E-2},{"$f":"'Population at Risk'!AJ140/'Population at Risk'!AJ$5","v":9.3542180158275607E-3},{"$f":"'Population at Risk'!AK140/'Population at Risk'!AK$5","v":1.2958172284797476E-2},{"$f":"'Population at Risk'!AL140/'Population at Risk'!AL$5","v":4.9325863622002742E-3},{"$f":"'Population at Risk'!AM140/'Population at Risk'!AM$5","v":7.2406707131450632E-3},{"$f":"'Population at Risk'!AN140/'Population at Risk'!AN$5","v":1.3670647143646686E-2},{"$f":"'Population at Risk'!AO140/'Population at Risk'!AO$5","v":1.3670647143646686E-2},{"$f":"'Population at Risk'!AP140/'Population at Risk'!AP$5","v":1.0603995533694007E-2},{"$f":"'Population at Risk'!AQ140/'Population at Risk'!AQ$5","v":7.4433606745187633E-3},{"$f":"'Population at Risk'!AR140/'Population at Risk'!AR$5","v":1.0155014755613553E-2},{"$f":"'Population at Risk'!AS140/'Population at Risk'!AS$5","v":1.4026816802731185E-2},{"$f":"'Population at Risk'!AT140/'Population at Risk'!AT$5","v":1.3697543555942824E-2},{"$f":"'Population at Risk'!AU140/'Population at Risk'!AU$5","v":1.3697543555942824E-2},{"$f":"'Population at Risk'!AV140/'Population at Risk'!AV$5","v":7.784197214807464E-3},{"$f":"'Population at Risk'!AW140/'Population at Risk'!AW$5","v":8.0343483392554954E-3},{"$f":"'Population at Risk'!AX140/'Population at Risk'!AX$5","v":1.1799832930862697E-2},{"$f":"'Population at Risk'!AY140/'Population at Risk'!AY$5","v":9.9656378965995336E-3},{"$f":"'Population at Risk'!AZ140/'Population at Risk'!AZ$5","v":1.0269782717943893E-2},{"$f":"'Population at Risk'!BA140/'Population at Risk'!BA$5","v":6.0025876630101643E-3},{"$f":"'Population at Risk'!BB140/'Population at Risk'!BB$5","v":9.4771599731457434E-3},{"$f":"'Population at Risk'!BC140/'Population at Risk'!BC$5","v":2.0619869975682749E-2},138]
[null,"Female 25-29",{"$f":"'Population at Risk'!C141/'Population at Risk'!C$5","v":1.4757333553721223E-2},{"$f":"'Population at Risk'!D141/'Population at Risk'!D$5","v":1.2631596359615801E-2},{"$f":"'Population at Risk'!E141/'Population at Risk'!E$5","v":1.0497727070311711E-2},{"$f":"'Population at Risk'!F141/'Population at Risk'!F$5","v":1.1781822894730273E-2},{"$f":"'Population at Risk'!G141/'Population at Risk'!G$5","v":1.3529054584297267E-2},{"$f":"'Population at Risk'!H141/'Population at Risk'!H$5","v":6.1902830466935036E-3},{"$f":"'Population at Risk'!I141/'Population at Risk'!I$5","v":1.1426506484428266E-2},{"$f":"'Population at Risk'!J141/'Population at Risk'!J$5","v":9.4563611206119006E-3},{"$f":"'Population at Risk'!K141/'Population at Risk'!K$5","v":7.8191107166723159E-3},{"$f":"'Population at Risk'!L141/'Population at Risk'!L$5","v":1.3704968571853538E-2},{"$f":"'Population at Risk'!M141/'Population at Risk'!M$5","v":1.3704968571853538E-2},{"$f":"'Population at Risk'!N141/'Population at Risk'!N$5","v":9.1915924157699933E-3},{"$f":"'Population at Risk'!O141/'Population at Risk'!O$5","v":6.3253395806496561E-3},{"$f":"'Population at Risk'!P141/'Population at Risk'!P$5","v":3.6494350996168754E-3},{"$f":"'Population at Risk'!Q141/'Population at Risk'!Q$5","v":9.8045349088104455E-3},{"$f":"'Population at Risk'!R141/'Population at Risk'!R$5","v":5.7318984015448929E-3},{"$f":"'Population at Risk'!S141/'Population at Risk'!S$5","v":1.3432639956528028E-2},{"$f":"'Population at Risk'!T141/'Population at Risk'!T$5","v":1.8628712912372638E-2},{"$f":"'Population at Risk'!U141/'Population at Risk'!U$5","v":2.3331524109471168E-2},{"$f":"'Population at Risk'!V141/'Population at Risk'!V$5","v":7.9190666113779472E-3},{"$f":"'Population at Risk'!W141/'Population at Risk'!W$5","v":1.0632609686311018E-2},{"$f":"'Population at Risk'!X141/'Population at Risk'!X$5","v":1.0632609686311018E-2},{"$f":"'Population at Risk'!Y141/'Population at Risk'!Y$5","v":8.6450158267189544E-3},{"$f":"'Population at Risk'!Z141/'Population at Risk'!Z$5","v":1.0665944985950353E-2},{"$f":"'Population at Risk'!AA141/'Population at Risk'!AA$5","v":8.4752716392145627E-3},{"$f":"'Population at Risk'!AB141/'Population at Risk'!AB$5","v":1.2808769195661778E-2},{"$f":"'Population at Risk'!AC141/'Population at Risk'!AC$5","v":8.6959692797586863E-3},{"$f":"'Population at Risk'!AD141/'Population at Risk'!AD$5","v":1.2888154531908242E-2},{"$f":"'Population at Risk'!AE141/'Population at Risk'!AE$5","v":1.2643331737252624E-2},{"$f":"'Population at Risk'!AF141/'Population at Risk'!AF$5","v":5.4640383832530951E-3},{"$f":"'Population at Risk'!AG141/'Population at Risk'!AG$5","v":1.2643331737252624E-2},{"$f":"'Population at Risk'!AH141/'Population at Risk'!AH$5","v":8.0737036804483728E-3},{"$f":"'Population at Risk'!AI141/'Population at Risk'!AI$5","v":1.4920115701080251E-2},{"$f":"'Population at Risk'!AJ141/'Population at Risk'!AJ$5","v":1.0532559432550026E-2},{"$f":"'Population at Risk'!AK141/'Population at Risk'!AK$5","v":1.3709370678119066E-2},{"$f":"'Population at Risk'!AL141/'Population at Risk'!AL$5","v":4.4652887068339321E-3},{"$f":"'Population at Risk'!AM141/'Population at Risk'!AM$5","v":7.9812419433030902E-3},{"$f":"'Population at Risk'!AN141/'Population at Risk'!AN$5","v":1.4884018191899349E-2},{"$f":"'Population at Risk'!AO141/'Population at Risk'!AO$5","v":1.4884018191899349E-2},{"$f":"'Population at Risk'!AP141/'Population at Risk'!AP$5","v":1.100727948016559E-2},{"$f":"'Population at Risk'!AQ141/'Population at Risk'!AQ$5","v":7.5372562793578762E-3},{"$f":"'Population at Risk'!AR141/'Population at Risk'!AR$5","v":1.0597751291220653E-2},{"$f":"'Population at Risk'!AS141/'Population at Risk'!AS$5","v":1.1426506484428266E-2},{"$f":"'Population at Risk'!AT141/'Population at Risk'!AT$5","v":1.6627075992762964E-2},{"$f":"'Population at Risk'!AU141/'Population at Risk'!AU$5","v":1.6627075992762964E-2},{"$f":"'Population at Risk'!AV141/'Population at Risk'!AV$5","v":8.3215134827322283E-3},{"$f":"'Population at Risk'!AW141/'Population at Risk'!AW$5","v":8.179198369410343E-3},{"$f":"'Population at Risk'!AX141/'Population at Risk'!AX$5","v":1.0460588089016317E-2},{"$f":"'Population at Risk'!AY141/'Population at Risk'!AY$5","v":1.0552451168777139E-2},{"$f":"'Population at Risk'!AZ141/'Population at Risk'!AZ$5","v":1.0479687436630103E-2},{"$f":"'Population at Risk'!BA141/'Population at Risk'!BA$5","v":5.8350027282560732E-3},{"$f":"'Population at Risk'!BB141/'Population at Risk'!BB$5","v":9.8416661259590407E-3},{"$f":"'Population at Risk'!BC141/'Population at Risk'!BC$5","v":2.3331524109471168E-2},139]
[null,"Female 30-34",{"$f":"'Population at Risk'!C142/'Population at Risk'!C$5","v":1.1652467273802865E-2},{"$f":"'Population at Risk'!D142/'Population at Risk'!D$5","v":1.1534321098192607E-2},{"$f":"'Population at Risk'!E142/'Population at Risk'!E$5","v":1.1415722949520916E-2},{"$f":"'Population at Risk'!F142/'Population at Risk'!F$5","v":1.4542052672780522E-2},{"$f":"'Population at Risk'!G142/'Population at Risk'!G$5","v":1.5331689604457754E-2},{"$f":"'Population at Risk'!H142/'Population at Risk'!H$5","v":6.6440004146793245E-3},{"$f":"'Population at Risk'!I142/'Population at Risk'!I$5","v":1.408625246714954E-2},{"$f":"'Population at Risk'!J142/'Population at Risk'!J$5","v":7.7400820560168584E-3},{"$f":"'Population at Risk'!K142/'Population at Risk'!K$5","v":8.0846654202574152E-3},{"$f":"'Population at Risk'!L142/'Population at Risk'!L$5","v":1.3129129556229441E-2},{"$f":"'Population at Risk'!M142/'Population at Risk'!M$5","v":1.3129129556229441E-2},{"$f":"'Population at Risk'!N142/'Population at Risk'!N$5","v":5.9164273021048231E-3},{"$f":"'Population at Risk'!O142/'Population at Risk'!O$5","v":6.561800873384223E-3},{"$f":"'Population at Risk'!P142/'Population at Risk'!P$5","v":2.9377952551915844E-3},{"$f":"'Population at Risk'!Q142/'Population at Risk'!Q$5","v":1.0069970710064196E-2},{"$f":"'Population at Risk'!R142/'Population at Risk'!R$5","v":6.0551257550154692E-3},{"$f":"'Population at Risk'!S142/'Population at Risk'!S$5","v":1.2139304716647361E-2},{"$f":"'Population at Risk'!T142/'Population at Risk'!T$5","v":1.427407767886274E-2},{"$f":"'Population at Risk'!U142/'Population at Risk'!U$5","v":2.559123588762818E-2},{"$f":"'Population at Risk'!V142/'Population at Risk'!V$5","v":9.2138189470785253E-3},{"$f":"'Population at Risk'!W142/'Population at Risk'!W$5","v":1.0157289639923373E-2},{"$f":"'Population at Risk'!X142/'Population at Risk'!X$5","v":1.0157289639923373E-2},{"$f":"'Population at Risk'!Y142/'Population at Risk'!Y$5","v":8.5178832410319101E-3},{"$f":"'Population at Risk'!Z142/'Population at Risk'!Z$5","v":8.4693217971621056E-3},{"$f":"'Population at Risk'!AA142/'Population at Risk'!AA$5","v":7.9929586155786277E-3},{"$f":"'Population at Risk'!AB142/'Population at Risk'!AB$5","v":1.2249987025400323E-2},{"$f":"'Population at Risk'!AC142/'Population at Risk'!AC$5","v":7.4614787719708212E-3},{"$f":"'Population at Risk'!AD142/'Population at Risk'!AD$5","v":1.4095295350959033E-2},{"$f":"'Population at Risk'!AE142/'Population at Risk'!AE$5","v":1.3622994724193031E-2},{"$f":"'Population at Risk'!AF142/'Population at Risk'!AF$5","v":4.7877078993325169E-3},{"$f":"'Population at Risk'!AG142/'Population at Risk'!AG$5","v":1.3622994724193031E-2},{"$f":"'Population at Risk'!AH142/'Population at Risk'!AH$5","v":8.9600069057042993E-3},{"$f":"'Population at Risk'!AI142/'Population at Risk'!AI$5","v":1.2764966927374357E-2},{"$f":"'Population at Risk'!AJ142/'Population at Risk'!AJ$5","v":1.1148922635143313E-2},{"$f":"'Population at Risk'!AK142/'Population at Risk'!AK$5","v":1.5887846018751685E-2},{"$f":"'Population at Risk'!AL142/'Population at Risk'!AL$5","v":4.8287424387855309E-3},{"$f":"'Population at Risk'!AM142/'Population at Risk'!AM$5","v":9.1111420487441971E-3},{"$f":"'Population at Risk'!AN142/'Population at Risk'!AN$5","v":1.6420954853019393E-2},{"$f":"'Population at Risk'!AO142/'Population at Risk'!AO$5","v":1.6420954853019393E-2},{"$f":"'Population at Risk'!AP142/'Population at Risk'!AP$5","v":1.1778263495478914E-2},{"$f":"'Population at Risk'!AQ142/'Population at Risk'!AQ$5","v":8.3054930462233452E-3},{"$f":"'Population at Risk'!AR142/'Population at Risk'!AR$5","v":1.0121562257850863E-2},{"$f":"'Population at Risk'!AS142/'Population at Risk'!AS$5","v":1.408625246714954E-2},{"$f":"'Population at Risk'!AT142/'Population at Risk'!AT$5","v":1.4885191841140177E-2},{"$f":"'Population at Risk'!AU142/'Population at Risk'!AU$5","v":1.4885191841140177E-2},{"$f":"'Population at Risk'!AV142/'Population at Risk'!AV$5","v":9.1481538949241704E-3},{"$f":"'Population at Risk'!AW142/'Population at Risk'!AW$5","v":8.7875684960606985E-3},{"$f":"'Population at Risk'!AX142/'Population at Risk'!AX$5","v":7.5287277595688373E-3},{"$f":"'Population at Risk'!AY142/'Population at Risk'!AY$5","v":1.0151054590238984E-2},{"$f":"'Population at Risk'!AZ142/'Population at Risk'!AZ$5","v":1.0145394736500212E-2},{"$f":"'Population at Risk'!BA142/'Population at Risk'!BA$5","v":5.8502377223246266E-3},{"$f":"'Population at Risk'!BB142/'Population at Risk'!BB$5","v":1.0944074978369989E-2},{"$f":"'Population at Risk'!BC142/'Population at Risk'!BC$5","v":2.559123588762818E-2},140]
[null,"Female 35-39",{"$f":"'Population at Risk'!C143/'Population at Risk'!C$5","v":7.2717295771959648E-3},{"$f":"'Population at Risk'!D143/'Population at Risk'!D$5","v":9.1882948658568268E-3},{"$f":"'Population at Risk'!E143/'Population at Risk'!E$5","v":1.1112192053975936E-2},{"$f":"'Population at Risk'!F143/'Population at Risk'!F$5","v":1.5602562008557723E-2},{"$f":"'Population at Risk'!G143/'Population at Risk'!G$5","v":1.5684783062014963E-2},{"$f":"'Population at Risk'!H143/'Population at Risk'!H$5","v":6.7544707303628286E-3},{"$f":"'Population at Risk'!I143/'Population at Risk'!I$5","v":1.3387883410233895E-2},{"$f":"'Population at Risk'!J143/'Population at Risk'!J$5","v":7.852257158277972E-3},{"$f":"'Population at Risk'!K143/'Population at Risk'!K$5","v":6.9929405277409026E-3},{"$f":"'Population at Risk'!L143/'Population at Risk'!L$5","v":1.2909263750263874E-2},{"$f":"'Population at Risk'!M143/'Population at Risk'!M$5","v":1.2909263750263874E-2},{"$f":"'Population at Risk'!N143/'Population at Risk'!N$5","v":4.6198076823253578E-3},{"$f":"'Population at Risk'!O143/'Population at Risk'!O$5","v":6.44357022701694E-3},{"$f":"'Population at Risk'!P143/'Population at Risk'!P$5","v":3.5581992221264533E-3},{"$f":"'Population at Risk'!Q143/'Population at Risk'!Q$5","v":1.026904756100451E-2},{"$f":"'Population at Risk'!R143/'Population at Risk'!R$5","v":6.3568046182546738E-3},{"$f":"'Population at Risk'!S143/'Population at Risk'!S$5","v":1.0494663532538646E-2},{"$f":"'Population at Risk'!T143/'Population at Risk'!T$5","v":9.7475054429667259E-3},{"$f":"'Population at Risk'!U143/'Population at Risk'!U$5","v":3.0901558566297165E-2},{"$f":"'Population at Risk'!V143/'Population at Risk'!V$5","v":9.3744083840646419E-3},{"$f":"'Population at Risk'!W143/'Population at Risk'!W$5","v":1.0474169670848471E-2},{"$f":"'Population at Risk'!X143/'Population at Risk'!X$5","v":1.0474169670848471E-2},{"$f":"'Population at Risk'!Y143/'Population at Risk'!Y$5","v":8.6556102088595401E-3},{"$f":"'Population at Risk'!Z143/'Population at Risk'!Z$5","v":6.4205688523020403E-3},{"$f":"'Population at Risk'!AA143/'Population at Risk'!AA$5","v":7.3674714107970314E-3},{"$f":"'Population at Risk'!AB143/'Population at Risk'!AB$5","v":9.8666730174343312E-3},{"$f":"'Population at Risk'!AC143/'Population at Risk'!AC$5","v":6.4005110263218147E-3},{"$f":"'Population at Risk'!AD143/'Population at Risk'!AD$5","v":1.4891494614588281E-2},{"$f":"'Population at Risk'!AE143/'Population at Risk'!AE$5","v":1.4588459696829951E-2},{"$f":"'Population at Risk'!AF143/'Population at Risk'!AF$5","v":6.6387176447993629E-3},{"$f":"'Population at Risk'!AG143/'Population at Risk'!AG$5","v":1.4588459696829951E-2},{"$f":"'Population at Risk'!AH143/'Population at Risk'!AH$5","v":9.1268935180934541E-3},{"$f":"'Population at Risk'!AI143/'Population at Risk'!AI$5","v":1.0136552762417214E-2},{"$f":"'Population at Risk'!AJ143/'Population at Risk'!AJ$5","v":1.1221435953095465E-2},{"$f":"'Population at Risk'!AK143/'Population at Risk'!AK$5","v":1.3314991521625231E-2},{"$f":"'Population at Risk'!AL143/'Population at Risk'!AL$5","v":5.1818117783956558E-3},{"$f":"'Population at Risk'!AM143/'Population at Risk'!AM$5","v":9.3862113628028921E-3},{"$f":"'Population at Risk'!AN143/'Population at Risk'!AN$5","v":1.148657925679189E-2},{"$f":"'Population at Risk'!AO143/'Population at Risk'!AO$5","v":1.148657925679189E-2},{"$f":"'Population at Risk'!AP143/'Population at Risk'!AP$5","v":1.0853082677102926E-2},{"$f":"'Population at Risk'!AQ143/'Population at Risk'!AQ$5","v":7.9384465909431764E-3},{"$f":"'Population at Risk'!AR143/'Population at Risk'!AR$5","v":9.2960127913246163E-3},{"$f":"'Population at Risk'!AS143/'Population at Risk'!AS$5","v":1.3387883410233895E-2},{"$f":"'Population at Risk'!AT143/'Population at Risk'!AT$5","v":1.5043544945833159E-2},{"$f":"'Population at Risk'!AU143/'Population at Risk'!AU$5","v":1.5043544945833159E-2},{"$f":"'Population at Risk'!AV143/'Population at Risk'!AV$5","v":9.2032632557369678E-3},{"$f":"'Population at Risk'!AW143/'Population at Risk'!AW$5","v":8.8310235051071526E-3},{"$f":"'Population at Risk'!AX143/'Population at Risk'!AX$5","v":8.3793292131739711E-3},{"$f":"'Population at Risk'!AY143/'Population at Risk'!AY$5","v":1.0016576548698282E-2},{"$f":"'Population at Risk'!AZ143/'Population at Risk'!AZ$5","v":9.6011973176841087E-3},{"$f":"'Population at Risk'!BA143/'Population at Risk'!BA$5","v":5.7131227757076441E-3},{"$f":"'Population at Risk'!BB143/'Population at Risk'!BB$5","v":1.0579568825556693E-2},{"$f":"'Population at Risk'!BC143/'Population at Risk'!BC$5","v":3.0901558566297165E-2},141]
[null,"Female 40-44",{"$f":"'Population at Risk'!C144/'Population at Risk'!C$5","v":6.4088570005915758E-3},{"$f":"'Population at Risk'!D144/'Population at Risk'!D$5","v":9.1993784543560522E-3},{"$f":"'Population at Risk'!E144/'Population at Risk'!E$5","v":1.2000575162888071E-2},{"$f":"'Population at Risk'!F144/'Population at Risk'!F$5","v":1.813035138424585E-2},{"$f":"'Population at Risk'!G144/'Population at Risk'!G$5","v":1.9475891764208154E-2},{"$f":"'Population at Risk'!H144/'Population at Risk'!H$5","v":7.8552285187806024E-3},{"$f":"'Population at Risk'!I144/'Population at Risk'!I$5","v":1.7845558241610333E-2},{"$f":"'Population at Risk'!J144/'Population at Risk'!J$5","v":8.6711354047841038E-3},{"$f":"'Population at Risk'!K144/'Population at Risk'!K$5","v":8.6452809056037309E-3},{"$f":"'Population at Risk'!L144/'Population at Risk'!L$5","v":1.6416646845428838E-2},{"$f":"'Population at Risk'!M144/'Population at Risk'!M$5","v":1.6416646845428838E-2},{"$f":"'Population at Risk'!N144/'Population at Risk'!N$5","v":4.0531368855328499E-3},{"$f":"'Population at Risk'!O144/'Population at Risk'!O$5","v":7.7795765309672405E-3},{"$f":"'Population at Risk'!P144/'Population at Risk'!P$5","v":3.8866483810919721E-3},{"$f":"'Population at Risk'!Q144/'Population at Risk'!Q$5","v":1.1330790766019517E-2},{"$f":"'Population at Risk'!R144/'Population at Risk'!R$5","v":6.7015804619566218E-3},{"$f":"'Population at Risk'!S144/'Population at Risk'!S$5","v":1.0379165687860931E-2},{"$f":"'Population at Risk'!T144/'Population at Risk'!T$5","v":7.7603104730810391E-3},{"$f":"'Population at Risk'!U144/'Population at Risk'!U$5","v":3.2426864016553147E-2},{"$f":"'Population at Risk'!V144/'Population at Risk'!V$5","v":1.0036839811632378E-2},{"$f":"'Population at Risk'!W144/'Population at Risk'!W$5","v":1.0422783719887642E-2},{"$f":"'Population at Risk'!X144/'Population at Risk'!X$5","v":1.0422783719887642E-2},{"$f":"'Population at Risk'!Y144/'Population at Risk'!Y$5","v":9.3919197676303329E-3},{"$f":"'Population at Risk'!Z144/'Population at Risk'!Z$5","v":5.3747619097374889E-3},{"$f":"'Population at Risk'!AA144/'Population at Risk'!AA$5","v":7.2578911715961633E-3},{"$f":"'Population at Risk'!AB144/'Population at Risk'!AB$5","v":1.030814180388399E-2},{"$f":"'Population at Risk'!AC144/'Population at Risk'!AC$5","v":6.046028812238151E-3},{"$f":"'Population at Risk'!AD144/'Population at Risk'!AD$5","v":1.6694500689000313E-2},{"$f":"'Population at Risk'!AE144/'Population at Risk'!AE$5","v":1.5632013748136036E-2},{"$f":"'Population at Risk'!AF144/'Population at Risk'!AF$5","v":7.3862408112378968E-3},{"$f":"'Population at Risk'!AG144/'Population at Risk'!AG$5","v":1.5632013748136036E-2},{"$f":"'Population at Risk'!AH144/'Population at Risk'!AH$5","v":9.4629219673635131E-3},{"$f":"'Population at Risk'!AI144/'Population at Risk'!AI$5","v":9.4125132793874151E-3},{"$f":"'Population at Risk'!AJ144/'Population at Risk'!AJ$5","v":1.1946569132616981E-2},{"$f":"'Population at Risk'!AK144/'Population at Risk'!AK$5","v":1.5944185898250807E-2},{"$f":"'Population at Risk'!AL144/'Population at Risk'!AL$5","v":6.0852539121039164E-3},{"$f":"'Population at Risk'!AM144/'Population at Risk'!AM$5","v":9.6993671972697149E-3},{"$f":"'Population at Risk'!AN144/'Population at Risk'!AN$5","v":1.5612040820850949E-2},{"$f":"'Population at Risk'!AO144/'Population at Risk'!AO$5","v":1.5612040820850949E-2},{"$f":"'Population at Risk'!AP144/'Population at Risk'!AP$5","v":1.2264576489753471E-2},{"$f":"'Population at Risk'!AQ144/'Population at Risk'!AQ$5","v":8.7664351063426269E-3},{"$f":"'Population at Risk'!AR144/'Population at Risk'!AR$5","v":9.6840617653718361E-3},{"$f":"'Population at Risk'!AS144/'Population at Risk'!AS$5","v":1.7845558241610333E-2},{"$f":"'Population at Risk'!AT144/'Population at Risk'!AT$5","v":1.5676957364605081E-2},{"$f":"'Population at Risk'!AU144/'Population at Risk'!AU$5","v":1.5676957364605081E-2},{"$f":"'Population at Risk'!AV144/'Population at Risk'!AV$5","v":1.0291673131789693E-2},{"$f":"'Population at Risk'!AW144/'Population at Risk'!AW$5","v":9.1931485804942689E-3},{"$f":"'Population at Risk'!AX144/'Population at Risk'!AX$5","v":8.6869935687332745E-3},{"$f":"'Population at Risk'!AY144/'Population at Risk'!AY$5","v":1.0468911779335188E-2},{"$f":"'Population at Risk'!AZ144/'Population at Risk'!AZ$5","v":1.0510784431991025E-2},{"$f":"'Population at Risk'!BA144/'Population at Risk'!BA$5","v":6.1549376036957011E-3},{"$f":"'Population at Risk'!BB144/'Population at Risk'!BB$5","v":1.1584183344286025E-2},{"$f":"'Population at Risk'!BC144/'Population at Risk'!BC$5","v":3.2426864016553147E-2},142]
[null,"Female 45-49",{"$f":"'Population at Risk'!C145/'Population at Risk'!C$5","v":6.6006064620592175E-3},{"$f":"'Population at Risk'!D145/'Population at Risk'!D$5","v":1.1002308850229847E-2},{"$f":"'Population at Risk'!E145/'Population at Risk'!E$5","v":1.5420850132199784E-2},{"$f":"'Population at Risk'!F145/'Population at Risk'!F$5","v":2.0556448083900541E-2},{"$f":"'Population at Risk'!G145/'Population at Risk'!G$5","v":2.4047522846264647E-2},{"$f":"'Population at Risk'!H145/'Population at Risk'!H$5","v":1.0037017253529811E-2},{"$f":"'Population at Risk'!I145/'Population at Risk'!I$5","v":2.3031319962111586E-2},{"$f":"'Population at Risk'!J145/'Population at Risk'!J$5","v":1.0544459612544705E-2},{"$f":"'Population at Risk'!K145/'Population at Risk'!K$5","v":1.1595888723215927E-2},{"$f":"'Population at Risk'!L145/'Population at Risk'!L$5","v":2.26357082141691E-2},{"$f":"'Population at Risk'!M145/'Population at Risk'!M$5","v":2.26357082141691E-2},{"$f":"'Population at Risk'!N145/'Population at Risk'!N$5","v":5.1480601200132878E-3},{"$f":"'Population at Risk'!O145/'Population at Risk'!O$5","v":1.0262420104680189E-2},{"$f":"'Population at Risk'!P145/'Population at Risk'!P$5","v":5.6566244044061569E-3},{"$f":"'Population at Risk'!Q145/'Population at Risk'!Q$5","v":1.5627532798814618E-2},{"$f":"'Population at Risk'!R145/'Population at Risk'!R$5","v":7.6928110125997241E-3},{"$f":"'Population at Risk'!S145/'Population at Risk'!S$5","v":1.216216366507316E-2},{"$f":"'Population at Risk'!T145/'Population at Risk'!T$5","v":6.9237708268562841E-3},{"$f":"'Population at Risk'!U145/'Population at Risk'!U$5","v":4.0053391267833069E-2},{"$f":"'Population at Risk'!V145/'Population at Risk'!V$5","v":1.1331592147332956E-2},{"$f":"'Population at Risk'!W145/'Population at Risk'!W$5","v":1.2966388292448556E-2},{"$f":"'Population at Risk'!X145/'Population at Risk'!X$5","v":1.2966388292448556E-2},{"$f":"'Population at Risk'!Y145/'Population at Risk'!Y$5","v":1.0959888324437204E-2},{"$f":"'Population at Risk'!Z145/'Population at Risk'!Z$5","v":5.8590905347776301E-3},{"$f":"'Population at Risk'!AA145/'Population at Risk'!AA$5","v":8.6992312521798395E-3},{"$f":"'Population at Risk'!AB145/'Population at Risk'!AB$5","v":1.228085896850869E-2},{"$f":"'Population at Risk'!AC145/'Population at Risk'!AC$5","v":7.2470542158992344E-3},{"$f":"'Population at Risk'!AD145/'Population at Risk'!AD$5","v":2.1476833040218555E-2},{"$f":"'Population at Risk'!AE145/'Population at Risk'!AE$5","v":2.0494833647079352E-2},{"$f":"'Population at Risk'!AF145/'Population at Risk'!AF$5","v":8.7033054378200768E-3},{"$f":"'Population at Risk'!AG145/'Population at Risk'!AG$5","v":2.0494833647079352E-2},{"$f":"'Population at Risk'!AH145/'Population at Risk'!AH$5","v":1.1341523968987393E-2},{"$f":"'Population at Risk'!AI145/'Population at Risk'!AI$5","v":1.0428808282911015E-2},{"$f":"'Population at Risk'!AJ145/'Population at Risk'!AJ$5","v":1.5753518325104941E-2},{"$f":"'Population at Risk'!AK145/'Population at Risk'!AK$5","v":1.8779959833039817E-2},{"$f":"'Population at Risk'!AL145/'Population at Risk'!AL$5","v":7.7259879020568495E-3},{"$f":"'Population at Risk'!AM145/'Population at Risk'!AM$5","v":1.058805267345935E-2},{"$f":"'Population at Risk'!AN145/'Population at Risk'!AN$5","v":2.1031764836379516E-2},{"$f":"'Population at Risk'!AO145/'Population at Risk'!AO$5","v":2.1031764836379516E-2},{"$f":"'Population at Risk'!AP145/'Population at Risk'!AP$5","v":1.6238109491752903E-2},{"$f":"'Population at Risk'!AQ145/'Population at Risk'!AQ$5","v":1.1754022533041671E-2},{"$f":"'Population at Risk'!AR145/'Population at Risk'!AR$5","v":1.1777606342746537E-2},{"$f":"'Population at Risk'!AS145/'Population at Risk'!AS$5","v":2.3031319962111586E-2},{"$f":"'Population at Risk'!AT145/'Population at Risk'!AT$5","v":2.216943465701729E-2},{"$f":"'Population at Risk'!AU145/'Population at Risk'!AU$5","v":2.216943465701729E-2},{"$f":"'Population at Risk'!AV145/'Population at Risk'!AV$5","v":1.2840481069381519E-2},{"$f":"'Population at Risk'!AW145/'Population at Risk'!AW$5","v":1.2201200873376587E-2},{"$f":"'Population at Risk'!AX145/'Population at Risk'!AX$5","v":9.8995530877022935E-3},{"$f":"'Population at Risk'!AY145/'Population at Risk'!AY$5","v":1.2934342540914707E-2},{"$f":"'Population at Risk'!AZ145/'Population at Risk'!AZ$5","v":1.2905253074781879E-2},{"$f":"'Population at Risk'!BA145/'Population at Risk'!BA$5","v":8.8362965597611545E-3},{"$f":"'Population at Risk'!BB145/'Population at Risk'!BB$5","v":1.4455780596937128E-2},{"$f":"'Population at Risk'!BC145/'Population at Risk'!BC$5","v":4.0053391267833069E-2},143]
[null,"Female 50-54",{"$f":"'Population at Risk'!C146/'Population at Risk'!C$5","v":7.3454793700681352E-3},{"$f":"'Population at Risk'!D146/'Population at Risk'!D$5","v":1.1356983682205023E-2},{"$f":"'Population at Risk'!E146/'Population at Risk'!E$5","v":1.5383834169328446E-2},{"$f":"'Population at Risk'!F146/'Population at Risk'!F$5","v":2.3069709934441029E-2},{"$f":"'Population at Risk'!G146/'Population at Risk'!G$5","v":2.9957192293801092E-2},{"$f":"'Population at Risk'!H146/'Population at Risk'!H$5","v":1.1145665778782119E-2},{"$f":"'Population at Risk'!I146/'Population at Risk'!I$5","v":2.3670253354608876E-2},{"$f":"'Population at Risk'!J146/'Population at Risk'!J$5","v":1.1183857695433055E-2},{"$f":"'Population at Risk'!K146/'Population at Risk'!K$5","v":1.1949961661329389E-2},{"$f":"'Population at Risk'!L146/'Population at Risk'!L$5","v":2.4499332664734363E-2},{"$f":"'Population at Risk'!M146/'Population at Risk'!M$5","v":2.4499332664734363E-2},{"$f":"'Population at Risk'!N146/'Population at Risk'!N$5","v":6.3390292522551685E-3},{"$f":"'Population at Risk'!O146/'Population at Risk'!O$5","v":1.0948157853610432E-2},{"$f":"'Population at Risk'!P146/'Population at Risk'!P$5","v":4.8537486824904441E-3},{"$f":"'Population at Risk'!Q146/'Population at Risk'!Q$5","v":1.4084687204027188E-2},{"$f":"'Population at Risk'!R146/'Population at Risk'!R$5","v":8.7055900534741982E-3},{"$f":"'Population at Risk'!S146/'Population at Risk'!S$5","v":1.2359472483064257E-2},{"$f":"'Population at Risk'!T146/'Population at Risk'!T$5","v":6.8444152872934611E-3},{"$f":"'Population at Risk'!U146/'Population at Risk'!U$5","v":4.0618319212372321E-2},{"$f":"'Population at Risk'!V146/'Population at Risk'!V$5","v":1.2004060414712326E-2},{"$f":"'Population at Risk'!W146/'Population at Risk'!W$5","v":1.4006953799405293E-2},{"$f":"'Population at Risk'!X146/'Population at Risk'!X$5","v":1.4006953799405293E-2},{"$f":"'Population at Risk'!Y146/'Population at Risk'!Y$5","v":1.1616740017153595E-2},{"$f":"'Population at Risk'!Z146/'Population at Risk'!Z$5","v":6.1312575054860274E-3},{"$f":"'Population at Risk'!AA146/'Population at Risk'!AA$5","v":8.773617837914735E-3},{"$f":"'Population at Risk'!AB146/'Population at Risk'!AB$5","v":1.2867425887567676E-2},{"$f":"'Population at Risk'!AC146/'Population at Risk'!AC$5","v":7.4081824950281731E-3},{"$f":"'Population at Risk'!AD146/'Population at Risk'!AD$5","v":2.4343150389283842E-2},{"$f":"'Population at Risk'!AE146/'Population at Risk'!AE$5","v":2.2198595363497449E-2},{"$f":"'Population at Risk'!AF146/'Population at Risk'!AF$5","v":9.717801163700945E-3},{"$f":"'Population at Risk'!AG146/'Population at Risk'!AG$5","v":2.2198595363497449E-2},{"$f":"'Population at Risk'!AH146/'Population at Risk'!AH$5","v":1.1258080662792817E-2},{"$f":"'Population at Risk'!AI146/'Population at Risk'!AI$5","v":1.0198774905490088E-2},{"$f":"'Population at Risk'!AJ146/'Population at Risk'!AJ$5","v":1.5862288302033171E-2},{"$f":"'Population at Risk'!AK146/'Population at Risk'!AK$5","v":2.0545276057345564E-2},{"$f":"'Population at Risk'!AL146/'Population at Risk'!AL$5","v":8.28674508849646E-3},{"$f":"'Population at Risk'!AM146/'Population at Risk'!AM$5","v":1.0274896838992527E-2},{"$f":"'Population at Risk'!AN146/'Population at Risk'!AN$5","v":2.297315851358378E-2},{"$f":"'Population at Risk'!AO146/'Population at Risk'!AO$5","v":2.297315851358378E-2},{"$f":"'Population at Risk'!AP146/'Population at Risk'!AP$5","v":1.7756354937292985E-2},{"$f":"'Population at Risk'!AQ146/'Population at Risk'!AQ$5","v":1.1344296257380088E-2},{"$f":"'Population at Risk'!AR146/'Population at Risk'!AR$5","v":1.237364258549223E-2},{"$f":"'Population at Risk'!AS146/'Population at Risk'!AS$5","v":2.3670253354608876E-2},{"$f":"'Population at Risk'!AT146/'Population at Risk'!AT$5","v":2.2327787761710266E-2},{"$f":"'Population at Risk'!AU146/'Population at Risk'!AU$5","v":2.2327787761710266E-2},{"$f":"'Population at Risk'!AV146/'Population at Risk'!AV$5","v":1.5168851563722156E-2},{"$f":"'Population at Risk'!AW146/'Population at Risk'!AW$5","v":1.2379849243900896E-2},{"$f":"'Population at Risk'!AX146/'Population at Risk'!AX$5","v":1.0713958734771038E-2},{"$f":"'Population at Risk'!AY146/'Population at Risk'!AY$5","v":1.429542332499332E-2},{"$f":"'Population at Risk'!AZ146/'Population at Risk'!AZ$5","v":1.4557280953330764E-2},{"$f":"'Population at Risk'!BA146/'Population at Risk'!BA$5","v":8.6991816131441711E-3},{"$f":"'Population at Risk'!BB146/'Population at Risk'!BB$5","v":1.4357986263255511E-2},{"$f":"'Population at Risk'!BC146/'Population at Risk'!BC$5","v":4.0618319212372321E-2},144]
[null,"Female 55-59",{"$f":"'Population at Risk'!C147/'Population at Risk'!C$5","v":4.5064054097396699E-3},{"$f":"'Population at Risk'!D147/'Population at Risk'!D$5","v":6.8970993421939922E-3},{"$f":"'Population at Risk'!E147/'Population at Risk'!E$5","v":9.2969389727635306E-3},{"$f":"'Population at Risk'!F147/'Population at Risk'!F$5","v":1.5108357981924463E-2},{"$f":"'Population at Risk'!G147/'Population at Risk'!G$5","v":1.8637527409909867E-2},{"$f":"'Population at Risk'!H147/'Population at Risk'!H$5","v":6.652254092449965E-3},{"$f":"'Population at Risk'!I147/'Population at Risk'!I$5","v":1.5733597653652218E-2},{"$f":"'Population at Risk'!J147/'Population at Risk'!J$5","v":6.7938204937178582E-3},{"$f":"'Population at Risk'!K147/'Population at Risk'!K$5","v":7.6813941509651503E-3},{"$f":"'Population at Risk'!L147/'Population at Risk'!L$5","v":1.5344027942279181E-2},{"$f":"'Population at Risk'!M147/'Population at Risk'!M$5","v":1.5344027942279181E-2},{"$f":"'Population at Risk'!N147/'Population at Risk'!N$5","v":4.1327654300551946E-3},{"$f":"'Population at Risk'!O147/'Population at Risk'!O$5","v":6.4429191509477353E-3},{"$f":"'Population at Risk'!P147/'Population at Risk'!P$5","v":3.4335320788873593E-3},{"$f":"'Population at Risk'!Q147/'Population at Risk'!Q$5","v":9.3537778367147346E-3},{"$f":"'Population at Risk'!R147/'Population at Risk'!R$5","v":5.7405724161672684E-3},{"$f":"'Population at Risk'!S147/'Population at Risk'!S$5","v":7.589179731173709E-3},{"$f":"'Population at Risk'!T147/'Population at Risk'!T$5","v":4.0608524514018579E-3},{"$f":"'Population at Risk'!U147/'Population at Risk'!U$5","v":2.6022859599517584E-2},{"$f":"'Population at Risk'!V147/'Population at Risk'!V$5","v":7.2430590775114405E-3},{"$f":"'Population at Risk'!W147/'Population at Risk'!W$5","v":8.6265994156455444E-3},{"$f":"'Population at Risk'!X147/'Population at Risk'!X$5","v":8.6265994156455444E-3},{"$f":"'Population at Risk'!Y147/'Population at Risk'!Y$5","v":7.0309172950182679E-3},{"$f":"'Population at Risk'!Z147/'Population at Risk'!Z$5","v":3.6928686440591933E-3},{"$f":"'Population at Risk'!AA147/'Population at Risk'!AA$5","v":5.4953991229655889E-3},{"$f":"'Population at Risk'!AB147/'Population at Risk'!AB$5","v":7.7538053527537766E-3},{"$f":"'Population at Risk'!AC147/'Population at Risk'!AC$5","v":4.612659211347769E-3},{"$f":"'Population at Risk'!AD147/'Population at Risk'!AD$5","v":1.5614169460993633E-2},{"$f":"'Population at Risk'!AE147/'Population at Risk'!AE$5","v":1.4459251561488376E-2},{"$f":"'Population at Risk'!AF147/'Population at Risk'!AF$5","v":6.8541362170544034E-3},{"$f":"'Population at Risk'!AG147/'Population at Risk'!AG$5","v":1.4459251561488376E-2},{"$f":"'Population at Risk'!AH147/'Population at Risk'!AH$5","v":7.1015787973647444E-3},{"$f":"'Population at Risk'!AI147/'Population at Risk'!AI$5","v":6.0988992149699503E-3},{"$f":"'Population at Risk'!AJ147/'Population at Risk'!AJ$5","v":9.3409791260736074E-3},{"$f":"'Population at Risk'!AK147/'Population at Risk'!AK$5","v":1.2108596529319778E-2},{"$f":"'Population at Risk'!AL147/'Population at Risk'!AL$5","v":5.3507628578063973E-3},{"$f":"'Population at Risk'!AM147/'Population at Risk'!AM$5","v":6.1192025064359832E-3},{"$f":"'Population at Risk'!AN147/'Population at Risk'!AN$5","v":1.3311697882518885E-2},{"$f":"'Population at Risk'!AO147/'Population at Risk'!AO$5","v":1.3311697882518885E-2},{"$f":"'Population at Risk'!AP147/'Population at Risk'!AP$5","v":1.097557762584973E-2},{"$f":"'Population at Risk'!AQ147/'Population at Risk'!AQ$5","v":6.7471668100967273E-3},{"$f":"'Population at Risk'!AR147/'Population at Risk'!AR$5","v":7.6813403993178106E-3},{"$f":"'Population at Risk'!AS147/'Population at Risk'!AS$5","v":1.5733597653652218E-2},{"$f":"'Population at Risk'!AT147/'Population at Risk'!AT$5","v":1.3990690047778823E-2},{"$f":"'Population at Risk'!AU147/'Population at Risk'!AU$5","v":1.3990690047778823E-2},{"$f":"'Population at Risk'!AV147/'Population at Risk'!AV$5","v":8.6229251392157379E-3},{"$f":"'Population at Risk'!AW147/'Population at Risk'!AW$5","v":8.2224260197385126E-3},{"$f":"'Population at Risk'!AX147/'Population at Risk'!AX$5","v":6.2494166560957418E-3},{"$f":"'Population at Risk'!AY147/'Population at Risk'!AY$5","v":8.9858679964742692E-3},{"$f":"'Population at Risk'!AZ147/'Population at Risk'!AZ$5","v":9.3119933239943949E-3},{"$f":"'Population at Risk'!BA147/'Population at Risk'!BA$5","v":5.6101721658020978E-3},{"$f":"'Population at Risk'!BB147/'Population at Risk'!BB$5","v":8.2445121424481512E-3},{"$f":"'Population at Risk'!BC147/'Population at Risk'!BC$5","v":2.6022859599517584E-2},145]
[null,"Female 60-64",{"$f":"'Population at Risk'!C148/'Population at Risk'!C$5","v":4.1830981783565809E-3},{"$f":"'Population at Risk'!D148/'Population at Risk'!D$5","v":6.5831417854322711E-3},{"$f":"'Population at Risk'!E148/'Population at Risk'!E$5","v":8.9923668581885722E-3},{"$f":"'Population at Risk'!F148/'Population at Risk'!F$5","v":1.3344736427614216E-2},{"$f":"'Population at Risk'!G148/'Population at Risk'!G$5","v":1.84620564053781E-2},{"$f":"'Population at Risk'!H148/'Population at Risk'!H$5","v":6.1147519617800079E-3},{"$f":"'Population at Risk'!I148/'Population at Risk'!I$5","v":1.4180280687845789E-2},{"$f":"'Population at Risk'!J148/'Population at Risk'!J$5","v":6.302062885597968E-3},{"$f":"'Population at Risk'!K148/'Population at Risk'!K$5","v":6.4873950601415514E-3},{"$f":"'Population at Risk'!L148/'Population at Risk'!L$5","v":1.5047456762538857E-2},{"$f":"'Population at Risk'!M148/'Population at Risk'!M$5","v":1.5047456762538857E-2},{"$f":"'Population at Risk'!N148/'Population at Risk'!N$5","v":3.4072642887288912E-3},{"$f":"'Population at Risk'!O148/'Population at Risk'!O$5","v":5.3106239536277128E-3},{"$f":"'Population at Risk'!P148/'Population at Risk'!P$5","v":2.9535759818385891E-3},{"$f":"'Population at Risk'!Q148/'Population at Risk'!Q$5","v":8.1565837834510074E-3},{"$f":"'Population at Risk'!R148/'Population at Risk'!R$5","v":4.9848514904946156E-3},{"$f":"'Population at Risk'!S148/'Population at Risk'!S$5","v":6.5035042815521525E-3},{"$f":"'Population at Risk'!T148/'Population at Risk'!T$5","v":3.3137983211329824E-3},{"$f":"'Population at Risk'!U148/'Population at Risk'!U$5","v":2.640386779277553E-2},{"$f":"'Population at Risk'!V148/'Population at Risk'!V$5","v":6.5661376683982219E-3},{"$f":"'Population at Risk'!W148/'Population at Risk'!W$5","v":7.4540519222568305E-3},{"$f":"'Population at Risk'!X148/'Population at Risk'!X$5","v":7.4540519222568305E-3},{"$f":"'Population at Risk'!Y148/'Population at Risk'!Y$5","v":6.4414348998566755E-3},{"$f":"'Population at Risk'!Z148/'Population at Risk'!Z$5","v":2.7201482536670847E-3},{"$f":"'Population at Risk'!AA148/'Population at Risk'!AA$5","v":4.4752950941516177E-3},{"$f":"'Population at Risk'!AB148/'Population at Risk'!AB$5","v":7.299903750471199E-3},{"$f":"'Population at Risk'!AC148/'Population at Risk'!AC$5","v":3.6538480269664906E-3},{"$f":"'Population at Risk'!AD148/'Population at Risk'!AD$5","v":1.4682238778719995E-2},{"$f":"'Population at Risk'!AE148/'Population at Risk'!AE$5","v":1.3238354492554755E-2},{"$f":"'Population at Risk'!AF148/'Population at Risk'!AF$5","v":4.7654852507365997E-3},{"$f":"'Population at Risk'!AG148/'Population at Risk'!AG$5","v":1.3238354492554755E-2},{"$f":"'Population at Risk'!AH148/'Population at Risk'!AH$5","v":5.9699500491875385E-3},{"$f":"'Population at Risk'!AI148/'Population at Risk'!AI$5","v":5.1108165022861205E-3},{"$f":"'Population at Risk'!AJ148/'Population at Risk'!AJ$5","v":7.9349416921750925E-3},{"$f":"'Population at Risk'!AK148/'Population at Risk'!AK$5","v":1.0943334101812018E-2},{"$f":"'Population at Risk'!AL148/'Population at Risk'!AL$5","v":5.3367556251943385E-3},{"$f":"'Population at Risk'!AM148/'Population at Risk'!AM$5","v":5.1802017486853131E-3},{"$f":"'Population at Risk'!AN148/'Population at Risk'!AN$5","v":1.2056906688674892E-2},{"$f":"'Population at Risk'!AO148/'Population at Risk'!AO$5","v":1.2056906688674892E-2},{"$f":"'Population at Risk'!AP148/'Population at Risk'!AP$5","v":9.8796198016941807E-3},{"$f":"'Population at Risk'!AQ148/'Population at Risk'!AQ$5","v":5.8548367285566321E-3},{"$f":"'Population at Risk'!AR148/'Population at Risk'!AR$5","v":6.7851545912294463E-3},{"$f":"'Population at Risk'!AS148/'Population at Risk'!AS$5","v":1.4180280687845789E-2},{"$f":"'Population at Risk'!AT148/'Population at Risk'!AT$5","v":1.393729046744379E-2},{"$f":"'Population at Risk'!AU148/'Population at Risk'!AU$5","v":1.393729046744379E-2},{"$f":"'Population at Risk'!AV148/'Population at Risk'!AV$5","v":8.0839923180147551E-3},{"$f":"'Population at Risk'!AW148/'Population at Risk'!AW$5","v":6.8710173867913907E-3},{"$f":"'Population at Risk'!AX148/'Population at Risk'!AX$5","v":6.1883871965635563E-3},{"$f":"'Population at Risk'!AY148/'Population at Risk'!AY$5","v":7.8384142914649391E-3},{"$f":"'Population at Risk'!AZ148/'Population at Risk'!AZ$5","v":8.1873184546268282E-3},{"$f":"'Population at Risk'!BA148/'Population at Risk'!BA$5","v":5.055319973579912E-3},{"$f":"'Population at Risk'!BB148/'Population at Risk'!BB$5","v":6.9253901996564485E-3},{"$f":"'Population at Risk'!BC148/'Population at Risk'!BC$5","v":2.640386779277553E-2},146]
[null,"Female 65-69",{"$f":"'Population at Risk'!C149/'Population at Risk'!C$5","v":3.9493221802795785E-3},{"$f":"'Population at Risk'!D149/'Population at Risk'!D$5","v":6.4884561730755618E-3},{"$f":"'Population at Risk'!E149/'Population at Risk'!E$5","v":9.0373037275520898E-3},{"$f":"'Population at Risk'!F149/'Population at Risk'!F$5","v":1.4138366127053827E-2},{"$f":"'Population at Risk'!G149/'Population at Risk'!G$5","v":1.9502348789387863E-2},{"$f":"'Population at Risk'!H149/'Population at Risk'!H$5","v":6.5883924531624444E-3},{"$f":"'Population at Risk'!I149/'Population at Risk'!I$5","v":1.518242066578542E-2},{"$f":"'Population at Risk'!J149/'Population at Risk'!J$5","v":6.2264078689641391E-3},{"$f":"'Population at Risk'!K149/'Population at Risk'!K$5","v":7.1440945600945308E-3},{"$f":"'Population at Risk'!L149/'Population at Risk'!L$5","v":1.6219619044369665E-2},{"$f":"'Population at Risk'!M149/'Population at Risk'!M$5","v":1.6219619044369665E-2},{"$f":"'Population at Risk'!N149/'Population at Risk'!N$5","v":3.5497734414894153E-3},{"$f":"'Population at Risk'!O149/'Population at Risk'!O$5","v":6.1399105770170255E-3},{"$f":"'Population at Risk'!P149/'Population at Risk'!P$5","v":2.5966855506997593E-3},{"$f":"'Population at Risk'!Q149/'Population at Risk'!Q$5","v":8.2684710781485513E-3},{"$f":"'Population at Risk'!R149/'Population at Risk'!R$5","v":4.7523219749030302E-3},{"$f":"'Population at Risk'!S149/'Population at Risk'!S$5","v":6.8126540172067209E-3},{"$f":"'Population at Risk'!T149/'Population at Risk'!T$5","v":3.1710775320666898E-3},{"$f":"'Population at Risk'!U149/'Population at Risk'!U$5","v":2.6937279263336653E-2},{"$f":"'Population at Risk'!V149/'Population at Risk'!V$5","v":6.8775215165903028E-3},{"$f":"'Population at Risk'!W149/'Population at Risk'!W$5","v":8.1529595414688225E-3},{"$f":"'Population at Risk'!X149/'Population at Risk'!X$5","v":8.1529595414688225E-3},{"$f":"'Population at Risk'!Y149/'Population at Risk'!Y$5","v":6.5700492406192048E-3},{"$f":"'Population at Risk'!Z149/'Population at Risk'!Z$5","v":2.3096689210201919E-3},{"$f":"'Population at Risk'!AA149/'Population at Risk'!AA$5","v":4.1877670944912015E-3},{"$f":"'Population at Risk'!AB149/'Population at Risk'!AB$5","v":7.2790825760545661E-3},{"$f":"'Population at Risk'!AC149/'Population at Risk'!AC$5","v":3.3922020804003704E-3},{"$f":"'Population at Risk'!AD149/'Population at Risk'!AD$5","v":1.5042539116848094E-2},{"$f":"'Population at Risk'!AE149/'Population at Risk'!AE$5","v":1.3338898957055171E-2},{"$f":"'Population at Risk'!AF149/'Population at Risk'!AF$5","v":4.7414777683651302E-3},{"$f":"'Population at Risk'!AG149/'Population at Risk'!AG$5","v":1.3338898957055171E-2},{"$f":"'Population at Risk'!AH149/'Population at Risk'!AH$5","v":5.6353286451566445E-3},{"$f":"'Population at Risk'!AI149/'Population at Risk'!AI$5","v":5.1604113874787446E-3},{"$f":"'Population at Risk'!AJ149/'Population at Risk'!AJ$5","v":8.8030169774515679E-3},{"$f":"'Population at Risk'!AK149/'Population at Risk'!AK$5","v":1.1297979188444813E-2},{"$f":"'Population at Risk'!AL149/'Population at Risk'!AL$5","v":5.4908351839269834E-3},{"$f":"'Population at Risk'!AM149/'Population at Risk'!AM$5","v":5.1202655301054827E-3},{"$f":"'Population at Risk'!AN149/'Population at Risk'!AN$5","v":1.2384243521851586E-2},{"$f":"'Population at Risk'!AO149/'Population at Risk'!AO$5","v":1.2384243521851586E-2},{"$f":"'Population at Risk'!AP149/'Population at Risk'!AP$5","v":1.0343601946227188E-2},{"$f":"'Population at Risk'!AQ149/'Population at Risk'!AQ$5","v":5.998760935256647E-3},{"$f":"'Population at Risk'!AR149/'Population at Risk'!AR$5","v":6.8785399775363769E-3},{"$f":"'Population at Risk'!AS149/'Population at Risk'!AS$5","v":1.518242066578542E-2},{"$f":"'Population at Risk'!AT149/'Population at Risk'!AT$5","v":1.249550179839788E-2},{"$f":"'Population at Risk'!AU149/'Population at Risk'!AU$5","v":1.249550179839788E-2},{"$f":"'Population at Risk'!AV149/'Population at Risk'!AV$5","v":8.5671734680570159E-3},{"$f":"'Population at Risk'!AW149/'Population at Risk'!AW$5","v":6.2229925242456617E-3},{"$f":"'Population at Risk'!AX149/'Population at Risk'!AX$5","v":5.6635338445867652E-3},{"$f":"'Population at Risk'!AY149/'Population at Risk'!AY$5","v":8.3922153011880031E-3},{"$f":"'Population at Risk'!AZ149/'Population at Risk'!AZ$5","v":8.6093992331074311E-3},{"$f":"'Population at Risk'!BA149/'Population at Risk'!BA$5","v":4.9833946894029613E-3},{"$f":"'Population at Risk'!BB149/'Population at Risk'!BB$5","v":7.057302393935619E-3},{"$f":"'Population at Risk'!BC149/'Population at Risk'!BC$5","v":2.6937279263336653E-2},147]
[null,"Female 70-74",{"$f":"'Population at Risk'!C150/'Population at Risk'!C$5","v":2.9794004861303119E-3},{"$f":"'Population at Risk'!D150/'Population at Risk'!D$5","v":4.8264745035512145E-3},{"$f":"'Population at Risk'!E150/'Population at Risk'!E$5","v":6.6806145787097768E-3},{"$f":"'Population at Risk'!F150/'Population at Risk'!F$5","v":1.0630718813481222E-2},{"$f":"'Population at Risk'!G150/'Population at Risk'!G$5","v":1.4539026089775014E-2},{"$f":"'Population at Risk'!H150/'Population at Risk'!H$5","v":5.3138205690490322E-3},{"$f":"'Population at Risk'!I150/'Population at Risk'!I$5","v":1.1454459947849991E-2},{"$f":"'Population at Risk'!J150/'Population at Risk'!J$5","v":4.9705345928425758E-3},{"$f":"'Population at Risk'!K150/'Population at Risk'!K$5","v":5.5520957723297322E-3},{"$f":"'Population at Risk'!L150/'Population at Risk'!L$5","v":1.319741749844445E-2},{"$f":"'Population at Risk'!M150/'Population at Risk'!M$5","v":1.319741749844445E-2},{"$f":"'Population at Risk'!N150/'Population at Risk'!N$5","v":2.6882408361644291E-3},{"$f":"'Population at Risk'!O150/'Population at Risk'!O$5","v":4.848137182891365E-3},{"$f":"'Population at Risk'!P150/'Population at Risk'!P$5","v":1.9936637877410474E-3},{"$f":"'Population at Risk'!Q150/'Population at Risk'!Q$5","v":6.5901616576853816E-3},{"$f":"'Population at Risk'!R150/'Population at Risk'!R$5","v":3.7931377230877397E-3},{"$f":"'Population at Risk'!S150/'Population at Risk'!S$5","v":5.2101061749028534E-3},{"$f":"'Population at Risk'!T150/'Population at Risk'!T$5","v":2.3771931428854371E-3},{"$f":"'Population at Risk'!U150/'Population at Risk'!U$5","v":2.1907971112331788E-2},{"$f":"'Population at Risk'!V150/'Population at Risk'!V$5","v":4.9347570724353647E-3},{"$f":"'Population at Risk'!W150/'Population at Risk'!W$5","v":6.2064151805230243E-3},{"$f":"'Population at Risk'!X150/'Population at Risk'!X$5","v":6.2064151805230243E-3},{"$f":"'Population at Risk'!Y150/'Population at Risk'!Y$5","v":4.9516521193573772E-3},{"$f":"'Population at Risk'!Z150/'Population at Risk'!Z$5","v":1.7951244054487351E-3},{"$f":"'Population at Risk'!AA150/'Population at Risk'!AA$5","v":3.3230252868821073E-3},{"$f":"'Population at Risk'!AB150/'Population at Risk'!AB$5","v":5.6050601529573484E-3},{"$f":"'Population at Risk'!AC150/'Population at Risk'!AC$5","v":2.6256546906203953E-3},{"$f":"'Population at Risk'!AD150/'Population at Risk'!AD$5","v":1.1758262957757355E-2},{"$f":"'Population at Risk'!AE150/'Population at Risk'!AE$5","v":1.0696015890187097E-2},{"$f":"'Population at Risk'!AF150/'Population at Risk'!AF$5","v":3.9492308501066532E-3},{"$f":"'Population at Risk'!AG150/'Population at Risk'!AG$5","v":1.0696015890187097E-2},{"$f":"'Population at Risk'!AH150/'Population at Risk'!AH$5","v":4.5919182671330392E-3},{"$f":"'Population at Risk'!AI150/'Population at Risk'!AI$5","v":3.979035788915967E-3},{"$f":"'Population at Risk'!AJ150/'Population at Risk'!AJ$5","v":6.6633947954320896E-3},{"$f":"'Population at Risk'!AK150/'Population at Risk'!AK$5","v":9.5627514431343447E-3},{"$f":"'Population at Risk'!AL150/'Population at Risk'!AL$5","v":4.573361447837143E-3},{"$f":"'Population at Risk'!AM150/'Population at Risk'!AM$5","v":4.0128725392019554E-3},{"$f":"'Population at Risk'!AN150/'Population at Risk'!AN$5","v":1.249335579957715E-2},{"$f":"'Population at Risk'!AO150/'Population at Risk'!AO$5","v":1.249335579957715E-2},{"$f":"'Population at Risk'!AP150/'Population at Risk'!AP$5","v":8.9516555126281684E-3},{"$f":"'Population at Risk'!AQ150/'Population at Risk'!AQ$5","v":4.5767897730604936E-3},{"$f":"'Population at Risk'!AR150/'Population at Risk'!AR$5","v":5.4065430164840561E-3},{"$f":"'Population at Risk'!AS150/'Population at Risk'!AS$5","v":1.1454459947849991E-2},{"$f":"'Population at Risk'!AT150/'Population at Risk'!AT$5","v":1.1534309352367274E-2},{"$f":"'Population at Risk'!AU150/'Population at Risk'!AU$5","v":1.1534309352367274E-2},{"$f":"'Population at Risk'!AV150/'Population at Risk'!AV$5","v":6.8388716621366197E-3},{"$f":"'Population at Risk'!AW150/'Population at Risk'!AW$5","v":5.2525834335992961E-3},{"$f":"'Population at Risk'!AX150/'Population at Risk'!AX$5","v":4.6138271406331839E-3},{"$f":"'Population at Risk'!AY150/'Population at Risk'!AY$5","v":6.5521667850113648E-3},{"$f":"'Population at Risk'!AZ150/'Population at Risk'!AZ$5","v":6.8660221046005958E-3},{"$f":"'Population at Risk'!BA150/'Population at Risk'!BA$5","v":3.6168142900409126E-3},{"$f":"'Population at Risk'!BB150/'Population at Risk'!BB$5","v":5.5702922038795158E-3},{"$f":"'Population at Risk'!BC150/'Population at Risk'!BC$5","v":2.1907971112331788E-2},148]
[null,"Female 75-79",{"$f":"'Population at Risk'!C151/'Population at Risk'!C$5","v":2.7505984454592029E-3},{"$f":"'Population at Risk'!D151/'Population at Risk'!D$5","v":3.981779172263728E-3},{"$f":"'Population at Risk'!E151/'Population at Risk'!E$5","v":5.217669831653002E-3},{"$f":"'Population at Risk'!F151/'Population at Risk'!F$5","v":8.014680174587686E-3},{"$f":"'Population at Risk'!G151/'Population at Risk'!G$5","v":1.1957095594521865E-2},{"$f":"'Population at Risk'!H151/'Population at Risk'!H$5","v":3.9354735210933986E-3},{"$f":"'Population at Risk'!I151/'Population at Risk'!I$5","v":9.2297091968240076E-3},{"$f":"'Population at Risk'!J151/'Population at Risk'!J$5","v":4.0626743932366252E-3},{"$f":"'Population at Risk'!K151/'Population at Risk'!K$5","v":4.318296711812014E-3},{"$f":"'Population at Risk'!L151/'Population at Risk'!L$5","v":1.0041052799779565E-2},{"$f":"'Population at Risk'!M151/'Population at Risk'!M$5","v":1.0041052799779565E-2},{"$f":"'Population at Risk'!N151/'Population at Risk'!N$5","v":2.5910755047367992E-3},{"$f":"'Population at Risk'!O151/'Population at Risk'!O$5","v":3.4527029608420415E-3},{"$f":"'Population at Risk'!P151/'Population at Risk'!P$5","v":1.4644814243283003E-3},{"$f":"'Population at Risk'!Q151/'Population at Risk'!Q$5","v":5.6055534643469889E-3},{"$f":"'Population at Risk'!R151/'Population at Risk'!R$5","v":3.7350053441898429E-3},{"$f":"'Population at Risk'!S151/'Population at Risk'!S$5","v":4.1585102236999108E-3},{"$f":"'Population at Risk'!T151/'Population at Risk'!T$5","v":1.9891709976114537E-3},{"$f":"'Population at Risk'!U151/'Population at Risk'!U$5","v":1.9393317036829356E-2},{"$f":"'Population at Risk'!V151/'Population at Risk'!V$5","v":4.0886053110438412E-3},{"$f":"'Population at Risk'!W151/'Population at Risk'!W$5","v":4.8779130944175842E-3},{"$f":"'Population at Risk'!X151/'Population at Risk'!X$5","v":4.8779130944175842E-3},{"$f":"'Population at Risk'!Y151/'Population at Risk'!Y$5","v":4.0763600780568312E-3},{"$f":"'Population at Risk'!Z151/'Population at Risk'!Z$5","v":1.5002730538291359E-3},{"$f":"'Population at Risk'!AA151/'Population at Risk'!AA$5","v":2.7695473738397307E-3},{"$f":"'Population at Risk'!AB151/'Population at Risk'!AB$5","v":4.5952331937506941E-3},{"$f":"'Population at Risk'!AC151/'Population at Risk'!AC$5","v":2.2043462015810195E-3},{"$f":"'Population at Risk'!AD151/'Population at Risk'!AD$5","v":8.9693997635927475E-3},{"$f":"'Population at Risk'!AE151/'Population at Risk'!AE$5","v":7.828104736103807E-3},{"$f":"'Population at Risk'!AF151/'Population at Risk'!AF$5","v":3.5531073909774143E-3},{"$f":"'Population at Risk'!AG151/'Population at Risk'!AG$5","v":7.828104736103807E-3},{"$f":"'Population at Risk'!AH151/'Population at Risk'!AH$5","v":3.7979529357506456E-3},{"$f":"'Population at Risk'!AI151/'Population at Risk'!AI$5","v":3.1982342630628496E-3},{"$f":"'Population at Risk'!AJ151/'Population at Risk'!AJ$5","v":5.2573573615335755E-3},{"$f":"'Population at Risk'!AK151/'Population at Risk'!AK$5","v":7.7135306342633317E-3},{"$f":"'Population at Risk'!AL151/'Population at Risk'!AL$5","v":3.6208696302171563E-3},{"$f":"'Population at Risk'!AM151/'Population at Risk'!AM$5","v":3.1024128379178702E-3},{"$f":"'Population at Risk'!AN151/'Population at Risk'!AN$5","v":1.0092885689614728E-2},{"$f":"'Population at Risk'!AO151/'Population at Risk'!AO$5","v":1.0092885689614728E-2},{"$f":"'Population at Risk'!AP151/'Population at Risk'!AP$5","v":6.8077380171997952E-3},{"$f":"'Population at Risk'!AQ151/'Population at Risk'!AQ$5","v":3.6787027232523966E-3},{"$f":"'Population at Risk'!AR151/'Population at Risk'!AR$5","v":4.3216245579182373E-3},{"$f":"'Population at Risk'!AS151/'Population at Risk'!AS$5","v":9.2297091968240076E-3},{"$f":"'Population at Risk'!AT151/'Population at Risk'!AT$5","v":8.971129496285658E-3},{"$f":"'Population at Risk'!AU151/'Population at Risk'!AU$5","v":8.971129496285658E-3},{"$f":"'Population at Risk'!AV151/'Population at Risk'!AV$5","v":4.9154390071606963E-3},{"$f":"'Population at Risk'!AW151/'Population at Risk'!AW$5","v":4.5915329456757631E-3},{"$f":"'Population at Risk'!AX151/'Population at Risk'!AX$5","v":3.9058854100598385E-3},{"$f":"'Population at Risk'!AY151/'Population at Risk'!AY$5","v":5.164228770568941E-3},{"$f":"'Population at Risk'!AZ151/'Population at Risk'!AZ$5","v":5.42413124643705E-3},{"$f":"'Population at Risk'!BA151/'Population at Risk'!BA$5","v":2.9592116918516556E-3},{"$f":"'Population at Risk'!BB151/'Population at Risk'!BB$5","v":4.1492381109629979E-3},{"$f":"'Population at Risk'!BC151/'Population at Risk'!BC$5","v":1.9393317036829356E-2},149]
[null,"Female 80-84",{"$f":"'Population at Risk'!C152/'Population at Risk'!C$5","v":2.4919526603527317E-3},{"$f":"'Population at Risk'!D152/'Population at Risk'!D$5","v":2.9377457096989583E-3},{"$f":"'Population at Risk'!E152/'Population at Risk'!E$5","v":3.3852441587184077E-3},{"$f":"'Population at Risk'!F152/'Population at Risk'!F$5","v":6.1138880549421954E-3},{"$f":"'Population at Risk'!G152/'Population at Risk'!G$5","v":8.4727427902481986E-3},{"$f":"'Population at Risk'!H152/'Population at Risk'!H$5","v":2.8764346695753645E-3},{"$f":"'Population at Risk'!I152/'Population at Risk'!I$5","v":6.8145518499894957E-3},{"$f":"'Population at Risk'!J152/'Population at Risk'!J$5","v":2.9202836420658056E-3},{"$f":"'Population at Risk'!K152/'Population at Risk'!K$5","v":2.9451977573648762E-3},{"$f":"'Population at Risk'!L152/'Population at Risk'!L$5","v":7.421340712073364E-3},{"$f":"'Population at Risk'!M152/'Population at Risk'!M$5","v":7.421340712073364E-3},{"$f":"'Population at Risk'!N152/'Population at Risk'!N$5","v":2.5716424384512734E-3},{"$f":"'Population at Risk'!O152/'Population at Risk'!O$5","v":2.5357033292096286E-3},{"$f":"'Population at Risk'!P152/'Population at Risk'!P$5","v":9.5991219409754136E-4},{"$f":"'Population at Risk'!Q152/'Population at Risk'!Q$5","v":4.3636044932042423E-3},{"$f":"'Population at Risk'!R152/'Population at Risk'!R$5","v":3.6332736811185242E-3},{"$f":"'Population at Risk'!S152/'Population at Risk'!S$5","v":3.0622863579011631E-3},{"$f":"'Population at Risk'!T152/'Population at Risk'!T$5","v":1.5766187167167015E-3},{"$f":"'Population at Risk'!U152/'Population at Risk'!U$5","v":1.4516412163127672E-2},{"$f":"'Population at Risk'!V152/'Population at Risk'!V$5","v":2.8363007041843869E-3},{"$f":"'Population at Risk'!W152/'Population at Risk'!W$5","v":3.5320827202325079E-3},{"$f":"'Population at Risk'!X152/'Population at Risk'!X$5","v":3.5320827202325079E-3},{"$f":"'Population at Risk'!Y152/'Population at Risk'!Y$5","v":2.8759595642732245E-3},{"$f":"'Population at Risk'!Z152/'Population at Risk'!Z$5","v":1.3542927277821776E-3},{"$f":"'Population at Risk'!AA152/'Population at Risk'!AA$5","v":2.2209245302100061E-3},{"$f":"'Population at Risk'!AB152/'Population at Risk'!AB$5","v":3.5125321240858276E-3},{"$f":"'Population at Risk'!AC152/'Population at Risk'!AC$5","v":1.8206545419201595E-3},{"$f":"'Population at Risk'!AD152/'Population at Risk'!AD$5","v":6.5096570706028485E-3},{"$f":"'Population at Risk'!AE152/'Population at Risk'!AE$5","v":5.7597614663809655E-3},{"$f":"'Population at Risk'!AF152/'Population at Risk'!AF$5","v":2.5928080961186537E-3},{"$f":"'Population at Risk'!AG152/'Population at Risk'!AG$5","v":5.7597614663809655E-3},{"$f":"'Population at Risk'!AH152/'Population at Risk'!AH$5","v":2.9492313746177419E-3},{"$f":"'Population at Risk'!AI152/'Population at Risk'!AI$5","v":2.3792828255230982E-3},{"$f":"'Population at Risk'!AJ152/'Population at Risk'!AJ$5","v":3.6312445031987713E-3},{"$f":"'Population at Risk'!AK152/'Population at Risk'!AK$5","v":6.4342751431950293E-3},{"$f":"'Population at Risk'!AL152/'Population at Risk'!AL$5","v":2.5142982538645243E-3},{"$f":"'Population at Risk'!AM152/'Population at Risk'!AM$5","v":2.3803241093132508E-3},{"$f":"'Population at Risk'!AN152/'Population at Risk'!AN$5","v":5.7829507194549247E-3},{"$f":"'Population at Risk'!AO152/'Population at Risk'!AO$5","v":5.7829507194549247E-3},{"$f":"'Population at Risk'!AP152/'Population at Risk'!AP$5","v":5.3677934307180533E-3},{"$f":"'Population at Risk'!AQ152/'Population at Risk'!AQ$5","v":2.6136635936722819E-3},{"$f":"'Population at Risk'!AR152/'Population at Risk'!AR$5","v":3.275747468837879E-3},{"$f":"'Population at Risk'!AS152/'Population at Risk'!AS$5","v":6.8145518499894957E-3},{"$f":"'Population at Risk'!AT152/'Population at Risk'!AT$5","v":6.6215479615441761E-3},{"$f":"'Population at Risk'!AU152/'Population at Risk'!AU$5","v":6.6215479615441761E-3},{"$f":"'Population at Risk'!AV152/'Population at Risk'!AV$5","v":3.7539458580206448E-3},{"$f":"'Population at Risk'!AW152/'Population at Risk'!AW$5","v":3.5983290106182402E-3},{"$f":"'Population at Risk'!AX152/'Population at Risk'!AX$5","v":2.9050022737320048E-3},{"$f":"'Population at Risk'!AY152/'Population at Risk'!AY$5","v":4.0057814971283827E-3},{"$f":"'Population at Risk'!AZ152/'Population at Risk'!AZ$5","v":4.4357806036594916E-3},{"$f":"'Population at Risk'!BA152/'Population at Risk'!BA$5","v":2.4968348649998346E-3},{"$f":"'Population at Risk'!BB152/'Population at Risk'!BB$5","v":2.86009621232565E-3},{"$f":"'Population at Risk'!BC152/'Population at Risk'!BC$5","v":1.4516412163127672E-2},150]
[null,"Female 85-89",{"$f":"'Population at Risk'!C153/'Population at Risk'!C$5","v":1.6463799013508066E-3},{"$f":"'Population at Risk'!D153/'Population at Risk'!D$5","v":2.0432158455921507E-3},{"$f":"'Population at Risk'!E153/'Population at Risk'!E$5","v":2.4415699020845149E-3},{"$f":"'Population at Risk'!F153/'Population at Risk'!F$5","v":3.9975421897698966E-3},{"$f":"'Population at Risk'!G153/'Population at Risk'!G$5","v":5.1011927746020961E-3},{"$f":"'Population at Risk'!H153/'Population at Risk'!H$5","v":1.6231499985577913E-3},{"$f":"'Population at Risk'!I153/'Population at Risk'!I$5","v":3.9784957124203383E-3},{"$f":"'Population at Risk'!J153/'Population at Risk'!J$5","v":1.8384169042020484E-3},{"$f":"'Population at Risk'!K153/'Population at Risk'!K$5","v":2.1491983634824774E-3},{"$f":"'Population at Risk'!L153/'Population at Risk'!L$5","v":5.0628937112812576E-3},{"$f":"'Population at Risk'!M153/'Population at Risk'!M$5","v":5.0628937112812576E-3},{"$f":"'Population at Risk'!N153/'Population at Risk'!N$5","v":1.4380469051289235E-3},{"$f":"'Population at Risk'!O153/'Population at Risk'!O$5","v":1.1482430170005867E-3},{"$f":"'Population at Risk'!P153/'Population at Risk'!P$5","v":6.1532832954970605E-4},{"$f":"'Population at Risk'!Q153/'Population at Risk'!Q$5","v":3.3789962998658496E-3},{"$f":"'Population at Risk'!R153/'Population at Risk'!R$5","v":2.238096587569011E-3},{"$f":"'Population at Risk'!S153/'Population at Risk'!S$5","v":1.9522684094091677E-3},{"$f":"'Population at Risk'!T153/'Population at Risk'!T$5","v":1.0949360536179639E-3},{"$f":"'Population at Risk'!U153/'Population at Risk'!U$5","v":9.3347007348196318E-3},{"$f":"'Population at Risk'!V153/'Population at Risk'!V$5","v":1.4892271000490813E-3},{"$f":"'Population at Risk'!W153/'Population at Risk'!W$5","v":2.3537591308172476E-3},{"$f":"'Population at Risk'!X153/'Population at Risk'!X$5","v":2.3537591308172476E-3},{"$f":"'Population at Risk'!Y153/'Population at Risk'!Y$5","v":1.6541233270291962E-3},{"$f":"'Population at Risk'!Z153/'Population at Risk'!Z$5","v":8.166226160052618E-4},{"$f":"'Population at Risk'!AA153/'Population at Risk'!AA$5","v":1.333525732008534E-3},{"$f":"'Population at Risk'!AB153/'Population at Risk'!AB$5","v":2.2653437765295676E-3},{"$f":"'Population at Risk'!AC153/'Population at Risk'!AC$5","v":1.1176377973127884E-3},{"$f":"'Population at Risk'!AD153/'Population at Risk'!AD$5","v":4.2231356940206875E-3},{"$f":"'Population at Risk'!AE153/'Population at Risk'!AE$5","v":3.8877192940160797E-3},{"$f":"'Population at Risk'!AF153/'Population at Risk'!AF$5","v":2.1006547075035388E-3},{"$f":"'Population at Risk'!AG153/'Population at Risk'!AG$5","v":3.8877192940160797E-3},{"$f":"'Population at Risk'!AH153/'Population at Risk'!AH$5","v":1.7263422435230208E-3},{"$f":"'Population at Risk'!AI153/'Population at Risk'!AI$5","v":1.5183664851280488E-3},{"$f":"'Population at Risk'!AJ153/'Population at Risk'!AJ$5","v":1.8950939326458235E-3},{"$f":"'Population at Risk'!AK153/'Population at Risk'!AK$5","v":3.3944601149139128E-3},{"$f":"'Population at Risk'!AL153/'Population at Risk'!AL$5","v":1.5898209014686548E-3},{"$f":"'Population at Risk'!AM153/'Population at Risk'!AM$5","v":1.2586605901764312E-3},{"$f":"'Population at Risk'!AN153/'Population at Risk'!AN$5","v":4.2553788312970206E-3},{"$f":"'Population at Risk'!AO153/'Population at Risk'!AO$5","v":4.2553788312970206E-3},{"$f":"'Population at Risk'!AP153/'Population at Risk'!AP$5","v":3.6638590033813236E-3},{"$f":"'Population at Risk'!AQ153/'Population at Risk'!AQ$5","v":1.4910547814121608E-3},{"$f":"'Population at Risk'!AR153/'Population at Risk'!AR$5","v":2.0519280575298183E-3},{"$f":"'Population at Risk'!AS153/'Population at Risk'!AS$5","v":3.9784957124203383E-3},{"$f":"'Population at Risk'!AT153/'Population at Risk'!AT$5","v":3.8981693644574581E-3},{"$f":"'Population at Risk'!AU153/'Population at Risk'!AU$5","v":3.8981693644574581E-3},{"$f":"'Population at Risk'!AV153/'Population at Risk'!AV$5","v":2.2207749011557772E-3},{"$f":"'Population at Risk'!AW153/'Population at Risk'!AW$5","v":2.2599460030489219E-3},{"$f":"'Population at Risk'!AX153/'Population at Risk'!AX$5","v":1.6477954073689943E-3},{"$f":"'Population at Risk'!AY153/'Population at Risk'!AY$5","v":2.6150950905781518E-3},{"$f":"'Population at Risk'!AZ153/'Population at Risk'!AZ$5","v":2.8523222794217063E-3},{"$f":"'Population at Risk'!BA153/'Population at Risk'!BA$5","v":1.3768554399587565E-3},{"$f":"'Population at Risk'!BB153/'Population at Risk'!BB$5","v":1.4750181723943605E-3},{"$f":"'Population at Risk'!BC153/'Population at Risk'!BC$5","v":9.3347007348196318E-3},151]
[null,"Female 90+",{"$f":"'Population at Risk'!C154/'Population at Risk'!C$5","v":9.4505190711979836E-4},{"$f":"'Population at Risk'!D154/'Population at Risk'!D$5","v":1.1437025282034113E-3},{"$f":"'Population at Risk'!E154/'Population at Risk'!E$5","v":1.3431130954207251E-3},{"$f":"'Population at Risk'!F154/'Population at Risk'!F$5","v":2.6846239215611565E-3},{"$f":"'Population at Risk'!G154/'Population at Risk'!G$5","v":3.3966173020077836E-3},{"$f":"'Population at Risk'!H154/'Population at Risk'!H$5","v":9.6590729422373479E-4},{"$f":"'Population at Risk'!I154/'Population at Risk'!I$5","v":2.3249647488199458E-3},{"$f":"'Population at Risk'!J154/'Population at Risk'!J$5","v":1.0743012362003739E-3},{"$f":"'Population at Risk'!K154/'Population at Risk'!K$5","v":8.9549931811769886E-4},{"$f":"'Population at Risk'!L154/'Population at Risk'!L$5","v":2.9162832674465263E-3},{"$f":"'Population at Risk'!M154/'Population at Risk'!M$5","v":2.9162832674465263E-3},{"$f":"'Population at Risk'!N154/'Population at Risk'!N$5","v":8.5505491656314369E-4},{"$f":"'Population at Risk'!O154/'Population at Risk'!O$5","v":7.7346925450733962E-4},{"$f":"'Population at Risk'!P154/'Population at Risk'!P$5","v":5.784086297767237E-4},{"$f":"'Population at Risk'!Q154/'Population at Risk'!Q$5","v":1.9244614687977688E-3},{"$f":"'Population at Risk'!R154/'Population at Risk'!R$5","v":1.191713767406876E-3},{"$f":"'Population at Risk'!S154/'Population at Risk'!S$5","v":1.1408517803945511E-3},{"$f":"'Population at Risk'!T154/'Population at Risk'!T$5","v":6.467035754566386E-4},{"$f":"'Population at Risk'!U154/'Population at Risk'!U$5","v":6.5533409240366401E-3},{"$f":"'Population at Risk'!V154/'Population at Risk'!V$5","v":7.0399826547774759E-4},{"$f":"'Population at Risk'!W154/'Population at Risk'!W$5","v":1.3025096539859861E-3},{"$f":"'Population at Risk'!X154/'Population at Risk'!X$5","v":1.3025096539859861E-3},{"$f":"'Population at Risk'!Y154/'Population at Risk'!Y$5","v":8.7886466187728348E-4},{"$f":"'Population at Risk'!Z154/'Population at Risk'!Z$5","v":5.5356895916816866E-4},{"$f":"'Population at Risk'!AA154/'Population at Risk'!AA$5","v":8.4316372133063863E-4},{"$f":"'Population at Risk'!AB154/'Population at Risk'!AB$5","v":1.3096518708061561E-3},{"$f":"'Population at Risk'!AC154/'Population at Risk'!AC$5","v":8.200468804516421E-4},{"$f":"'Population at Risk'!AD154/'Population at Risk'!AD$5","v":2.3073079345510895E-3},{"$f":"'Population at Risk'!AE154/'Population at Risk'!AE$5","v":1.8911934989363937E-3},{"$f":"'Population at Risk'!AF154/'Population at Risk'!AF$5","v":1.8365724014173794E-3},{"$f":"'Population at Risk'!AG154/'Population at Risk'!AG$5","v":1.8911934989363937E-3},{"$f":"'Population at Risk'!AH154/'Population at Risk'!AH$5","v":8.8522571429991025E-4},{"$f":"'Population at Risk'!AI154/'Population at Risk'!AI$5","v":9.1941287164788884E-4},{"$f":"'Population at Risk'!AJ154/'Population at Risk'!AJ$5","v":1.3326789590864178E-3},{"$f":"'Population at Risk'!AK154/'Population at Risk'!AK$5","v":2.1532023116991239E-3},{"$f":"'Population at Risk'!AL154/'Population at Risk'!AL$5","v":1.043538829598368E-3},{"$f":"'Population at Risk'!AM154/'Population at Risk'!AM$5","v":5.6796702368505636E-4},{"$f":"'Population at Risk'!AN154/'Population at Risk'!AN$5","v":3.6552613038064153E-3},{"$f":"'Population at Risk'!AO154/'Population at Risk'!AO$5","v":3.6552613038064153E-3},{"$f":"'Population at Risk'!AP154/'Population at Risk'!AP$5","v":2.3039113383707889E-3},{"$f":"'Population at Risk'!AQ154/'Population at Risk'!AQ$5","v":1.398943289124151E-3},{"$f":"'Population at Risk'!AR154/'Population at Risk'!AR$5","v":1.2316669227624248E-3},{"$f":"'Population at Risk'!AS154/'Population at Risk'!AS$5","v":2.3249647488199458E-3},{"$f":"'Population at Risk'!AT154/'Population at Risk'!AT$5","v":3.1505752397669867E-3},{"$f":"'Population at Risk'!AU154/'Population at Risk'!AU$5","v":3.1505752397669867E-3},{"$f":"'Population at Risk'!AV154/'Population at Risk'!AV$5","v":1.0871575875950879E-3},{"$f":"'Population at Risk'!AW154/'Population at Risk'!AW$5","v":1.2472036299246933E-3},{"$f":"'Population at Risk'!AX154/'Population at Risk'!AX$5","v":1.1839715149243885E-3},{"$f":"'Population at Risk'!AY154/'Population at Risk'!AY$5","v":1.573454481719382E-3},{"$f":"'Population at Risk'!AZ154/'Population at Risk'!AZ$5","v":1.819404101028184E-3},{"$f":"'Population at Risk'!BA154/'Population at Risk'!BA$5","v":7.5007796355962102E-4},{"$f":"'Population at Risk'!BB154/'Population at Risk'!BB$5","v":9.1139334229245028E-4},{"$f":"'Population at Risk'!BC154/'Population at Risk'!BC$5","v":6.5533409240366401E-3},152]
[null,"Male 0-4",{"$f":"'Population at Risk'!C155/'Population at Risk'!C$5","v":0},{"$f":"'Population at Risk'!D155/'Population at Risk'!D$5","v":0},{"$f":"'Population at Risk'!E155/'Population at Risk'!E$5","v":0},{"$f":"'Population at Risk'!F155/'Population at Risk'!F$5","v":0},{"$f":"'Population at Risk'!G155/'Population at Risk'!G$5","v":0},{"$f":"'Population at Risk'!H155/'Population at Risk'!H$5","v":0},{"$f":"'Population at Risk'!I155/'Population at Risk'!I$5","v":0},{"$f":"'Population at Risk'!J155/'Population at Risk'!J$5","v":0},{"$f":"'Population at Risk'!K155/'Population at Risk'!K$5","v":0},{"$f":"'Population at Risk'!L155/'Population at Risk'!L$5","v":0},{"$f":"'Population at Risk'!M155/'Population at Risk'!M$5","v":0},{"$f":"'Population at Risk'!N155/'Population at Risk'!N$5","v":0},{"$f":"'Population at Risk'!O155/'Population at Risk'!O$5","v":0},{"$f":"'Population at Risk'!P155/'Population at Risk'!P$5","v":0},{"$f":"'Population at Risk'!Q155/'Population at Risk'!Q$5","v":0},{"$f":"'Population at Risk'!R155/'Population at Risk'!R$5","v":0},{"$f":"'Population at Risk'!S155/'Population at Risk'!S$5","v":0},{"$f":"'Population at Risk'!T155/'Population at Risk'!T$5","v":0},{"$f":"'Population at Risk'!U155/'Population at Risk'!U$5","v":0},{"$f":"'Population at Risk'!V155/'Population at Risk'!V$5","v":0},{"$f":"'Population at Risk'!W155/'Population at Risk'!W$5","v":0},{"$f":"'Population at Risk'!X155/'Population at Risk'!X$5","v":0},{"$f":"'Population at Risk'!Y155/'Population at Risk'!Y$5","v":0},{"$f":"'Population at Risk'!Z155/'Population at Risk'!Z$5","v":0},{"$f":"'Population at Risk'!AA155/'Population at Risk'!AA$5","v":0},{"$f":"'Population at Risk'!AB155/'Population at Risk'!AB$5","v":0},{"$f":"'Population at Risk'!AC155/'Population at Risk'!AC$5","v":0},{"$f":"'Population at Risk'!AD155/'Population at Risk'!AD$5","v":0},{"$f":"'Population at Risk'!AE155/'Population at Risk'!AE$5","v":0},{"$f":"'Population at Risk'!AF155/'Population at Risk'!AF$5","v":0},{"$f":"'Population at Risk'!AG155/'Population at Risk'!AG$5","v":0},{"$f":"'Population at Risk'!AH155/'Population at Risk'!AH$5","v":0},{"$f":"'Population at Risk'!AI155/'Population at Risk'!AI$5","v":0},{"$f":"'Population at Risk'!AJ155/'Population at Risk'!AJ$5","v":0},{"$f":"'Population at Risk'!AK155/'Population at Risk'!AK$5","v":0},{"$f":"'Population at Risk'!AL155/'Population at Risk'!AL$5","v":0},{"$f":"'Population at Risk'!AM155/'Population at Risk'!AM$5","v":0},{"$f":"'Population at Risk'!AN155/'Population at Risk'!AN$5","v":0},{"$f":"'Population at Risk'!AO155/'Population at Risk'!AO$5","v":0},{"$f":"'Population at Risk'!AP155/'Population at Risk'!AP$5","v":0},{"$f":"'Population at Risk'!AQ155/'Population at Risk'!AQ$5","v":0},{"$f":"'Population at Risk'!AR155/'Population at Risk'!AR$5","v":0},{"$f":"'Population at Risk'!AS155/'Population at Risk'!AS$5","v":0},{"$f":"'Population at Risk'!AT155/'Population at Risk'!AT$5","v":0},{"$f":"'Population at Risk'!AU155/'Population at Risk'!AU$5","v":0},{"$f":"'Population at Risk'!AV155/'Population at Risk'!AV$5","v":0},{"$f":"'Population at Risk'!AW155/'Population at Risk'!AW$5","v":0},{"$f":"'Population at Risk'!AX155/'Population at Risk'!AX$5","v":0},{"$f":"'Population at Risk'!AY155/'Population at Risk'!AY$5","v":0},{"$f":"'Population at Risk'!AZ155/'Population at Risk'!AZ$5","v":0},{"$f":"'Population at Risk'!BA155/'Population at Risk'!BA$5","v":0},{"$f":"'Population at Risk'!BB155/'Population at Risk'!BB$5","v":0},{"$f":"'Population at Risk'!BC155/'Population at Risk'!BC$5","v":0},153]
[null,"Male 5-9",{"$f":"'Population at Risk'!C156/'Population at Risk'!C$5","v":0},{"$f":"'Population at Risk'!D156/'Population at Risk'!D$5","v":0},{"$f":"'Population at Risk'!E156/'Population at Risk'!E$5","v":0},{"$f":"'Population at Risk'!F156/'Population at Risk'!F$5","v":0},{"$f":"'Population at Risk'!G156/'Population at Risk'!G$5","v":0},{"$f":"'Population at Risk'!H156/'Population at Risk'!H$5","v":0},{"$f":"'Population at Risk'!I156/'Population at Risk'!I$5","v":0},{"$f":"'Population at Risk'!J156/'Population at Risk'!J$5","v":0},{"$f":"'Population at Risk'!K156/'Population at Risk'!K$5","v":0},{"$f":"'Population at Risk'!L156/'Population at Risk'!L$5","v":0},{"$f":"'Population at Risk'!M156/'Population at Risk'!M$5","v":0},{"$f":"'Population at Risk'!N156/'Population at Risk'!N$5","v":0},{"$f":"'Population at Risk'!O156/'Population at Risk'!O$5","v":0},{"$f":"'Population at Risk'!P156/'Population at Risk'!P$5","v":0},{"$f":"'Population at Risk'!Q156/'Population at Risk'!Q$5","v":0},{"$f":"'Population at Risk'!R156/'Population at Risk'!R$5","v":0},{"$f":"'Population at Risk'!S156/'Population at Risk'!S$5","v":0},{"$f":"'Population at Risk'!T156/'Population at Risk'!T$5","v":0},{"$f":"'Population at Risk'!U156/'Population at Risk'!U$5","v":0},{"$f":"'Population at Risk'!V156/'Population at Risk'!V$5","v":0},{"$f":"'Population at Risk'!W156/'Population at Risk'!W$5","v":0},{"$f":"'Population at Risk'!X156/'Population at Risk'!X$5","v":0},{"$f":"'Population at Risk'!Y156/'Population at Risk'!Y$5","v":0},{"$f":"'Population at Risk'!Z156/'Population at Risk'!Z$5","v":0},{"$f":"'Population at Risk'!AA156/'Population at Risk'!AA$5","v":0},{"$f":"'Population at Risk'!AB156/'Population at Risk'!AB$5","v":0},{"$f":"'Population at Risk'!AC156/'Population at Risk'!AC$5","v":0},{"$f":"'Population at Risk'!AD156/'Population at Risk'!AD$5","v":0},{"$f":"'Population at Risk'!AE156/'Population at Risk'!AE$5","v":0},{"$f":"'Population at Risk'!AF156/'Population at Risk'!AF$5","v":0},{"$f":"'Population at Risk'!AG156/'Population at Risk'!AG$5","v":0},{"$f":"'Population at Risk'!AH156/'Population at Risk'!AH$5","v":0},{"$f":"'Population at Risk'!AI156/'Population at Risk'!AI$5","v":0},{"$f":"'Population at Risk'!AJ156/'Population at Risk'!AJ$5","v":0},{"$f":"'Population at Risk'!AK156/'Population at Risk'!AK$5","v":0},{"$f":"'Population at Risk'!AL156/'Population at Risk'!AL$5","v":0},{"$f":"'Population at Risk'!AM156/'Population at Risk'!AM$5","v":0},{"$f":"'Population at Risk'!AN156/'Population at Risk'!AN$5","v":0},{"$f":"'Population at Risk'!AO156/'Population at Risk'!AO$5","v":0},{"$f":"'Population at Risk'!AP156/'Population at Risk'!AP$5","v":0},{"$f":"'Population at Risk'!AQ156/'Population at Risk'!AQ$5","v":0},{"$f":"'Population at Risk'!AR156/'Population at Risk'!AR$5","v":0},{"$f":"'Population at Risk'!AS156/'Population at Risk'!AS$5","v":0},{"$f":"'Population at Risk'!AT156/'Population at Risk'!AT$5","v":0},{"$f":"'Population at Risk'!AU156/'Population at Risk'!AU$5","v":0},{"$f":"'Population at Risk'!AV156/'Population at Risk'!AV$5","v":0},{"$f":"'Population at Risk'!AW156/'Population at Risk'!AW$5","v":0},{"$f":"'Population at Risk'!AX156/'Population at Risk'!AX$5","v":0},{"$f":"'Population at Risk'!AY156/'Population at Risk'!AY$5","v":0},{"$f":"'Population at Risk'!AZ156/'Population at Risk'!AZ$5","v":0},{"$f":"'Population at Risk'!BA156/'Population at Risk'!BA$5","v":0},{"$f":"'Population at Risk'!BB156/'Population at Risk'!BB$5","v":0},{"$f":"'Population at Risk'!BC156/'Population at Risk'!BC$5","v":0},154]
[null,"Male 10-15",{"$f":"'Population at Risk'!C157/'Population at Risk'!C$5","v":0},{"$f":"'Population at Risk'!D157/'Population at Risk'!D$5","v":0},{"$f":"'Population at Risk'!E157/'Population at Risk'!E$5","v":0},{"$f":"'Population at Risk'!F157/'Population at Risk'!F$5","v":0},{"$f":"'Population at Risk'!G157/'Population at Risk'!G$5","v":0},{"$f":"'Population at Risk'!H157/'Population at Risk'!H$5","v":0},{"$f":"'Population at Risk'!I157/'Population at Risk'!I$5","v":0},{"$f":"'Population at Risk'!J157/'Population at Risk'!J$5","v":0},{"$f":"'Population at Risk'!K157/'Population at Risk'!K$5","v":0},{"$f":"'Population at Risk'!L157/'Population at Risk'!L$5","v":0},{"$f":"'Population at Risk'!M157/'Population at Risk'!M$5","v":0},{"$f":"'Population at Risk'!N157/'Population at Risk'!N$5","v":0},{"$f":"'Population at Risk'!O157/'Population at Risk'!O$5","v":0},{"$f":"'Population at Risk'!P157/'Population at Risk'!P$5","v":0},{"$f":"'Population at Risk'!Q157/'Population at Risk'!Q$5","v":0},{"$f":"'Population at Risk'!R157/'Population at Risk'!R$5","v":0},{"$f":"'Population at Risk'!S157/'Population at Risk'!S$5","v":0},{"$f":"'Population at Risk'!T157/'Population at Risk'!T$5","v":0},{"$f":"'Population at Risk'!U157/'Population at Risk'!U$5","v":0},{"$f":"'Population at Risk'!V157/'Population at Risk'!V$5","v":0},{"$f":"'Population at Risk'!W157/'Population at Risk'!W$5","v":0},{"$f":"'Population at Risk'!X157/'Population at Risk'!X$5","v":0},{"$f":"'Population at Risk'!Y157/'Population at Risk'!Y$5","v":0},{"$f":"'Population at Risk'!Z157/'Population at Risk'!Z$5","v":0},{"$f":"'Population at Risk'!AA157/'Population at Risk'!AA$5","v":0},{"$f":"'Population at Risk'!AB157/'Population at Risk'!AB$5","v":0},{"$f":"'Population at Risk'!AC157/'Population at Risk'!AC$5","v":0},{"$f":"'Population at Risk'!AD157/'Population at Risk'!AD$5","v":0},{"$f":"'Population at Risk'!AE157/'Population at Risk'!AE$5","v":0},{"$f":"'Population at Risk'!AF157/'Population at Risk'!AF$5","v":0},{"$f":"'Population at Risk'!AG157/'Population at Risk'!AG$5","v":0},{"$f":"'Population at Risk'!AH157/'Population at Risk'!AH$5","v":0},{"$f":"'Population at Risk'!AI157/'Population at Risk'!AI$5","v":0},{"$f":"'Population at Risk'!AJ157/'Population at Risk'!AJ$5","v":0},{"$f":"'Population at Risk'!AK157/'Population at Risk'!AK$5","v":0},{"$f":"'Population at Risk'!AL157/'Population at Risk'!AL$5","v":0},{"$f":"'Population at Risk'!AM157/'Population at Risk'!AM$5","v":0},{"$f":"'Population at Risk'!AN157/'Population at Risk'!AN$5","v":0},{"$f":"'Population at Risk'!AO157/'Population at Risk'!AO$5","v":0},{"$f":"'Population at Risk'!AP157/'Population at Risk'!AP$5","v":0},{"$f":"'Population at Risk'!AQ157/'Population at Risk'!AQ$5","v":0},{"$f":"'Population at Risk'!AR157/'Population at Risk'!AR$5","v":0},{"$f":"'Population at Risk'!AS157/'Population at Risk'!AS$5","v":0},{"$f":"'Population at Risk'!AT157/'Population at Risk'!AT$5","v":0},{"$f":"'Population at Risk'!AU157/'Population at Risk'!AU$5","v":0},{"$f":"'Population at Risk'!AV157/'Population at Risk'!AV$5","v":0},{"$f":"'Population at Risk'!AW157/'Population at Risk'!AW$5","v":0},{"$f":"'Population at Risk'!AX157/'Population at Risk'!AX$5","v":0},{"$f":"'Population at Risk'!AY157/'Population at Risk'!AY$5","v":0},{"$f":"'Population at Risk'!AZ157/'Population at Risk'!AZ$5","v":0},{"$f":"'Population at Risk'!BA157/'Population at Risk'!BA$5","v":0},{"$f":"'Population at Risk'!BB157/'Population at Risk'!BB$5","v":0},{"$f":"'Population at Risk'!BC157/'Population at Risk'!BC$5","v":0},155]
[null,"Male 16-19",{"$f":"'Population at Risk'!C158/'Population at Risk'!C$5","v":3.7403705988087953E-3},{"$f":"'Population at Risk'!D158/'Population at Risk'!D$5","v":5.6031047025116559E-3},{"$f":"'Population at Risk'!E158/'Population at Risk'!E$5","v":7.4729647722573131E-3},{"$f":"'Population at Risk'!F158/'Population at Risk'!F$5","v":1.1010234003458528E-2},{"$f":"'Population at Risk'!G158/'Population at Risk'!G$5","v":1.240957359664187E-2},{"$f":"'Population at Risk'!H158/'Population at Risk'!H$5","v":4.6678612415040925E-3},{"$f":"'Population at Risk'!I158/'Population at Risk'!I$5","v":9.6665346866394199E-3},{"$f":"'Population at Risk'!J158/'Population at Risk'!J$5","v":4.7057582869294533E-3},{"$f":"'Population at Risk'!K158/'Population at Risk'!K$5","v":5.2460738893868554E-3},{"$f":"'Population at Risk'!L158/'Population at Risk'!L$5","v":1.0362594696933125E-2},{"$f":"'Population at Risk'!M158/'Population at Risk'!M$5","v":1.0362594696933125E-2},{"$f":"'Population at Risk'!N158/'Population at Risk'!N$5","v":3.0611992784152246E-3},{"$f":"'Population at Risk'!O158/'Population at Risk'!O$5","v":4.504495914830639E-3},{"$f":"'Population at Risk'!P158/'Population at Risk'!P$5","v":2.3920971427245584E-3},{"$f":"'Population at Risk'!Q158/'Population at Risk'!Q$5","v":7.0137841860023727E-3},{"$f":"'Population at Risk'!R158/'Population at Risk'!R$5","v":4.3432530666884447E-3},{"$f":"'Population at Risk'!S158/'Population at Risk'!S$5","v":5.491601132448707E-3},{"$f":"'Population at Risk'!T158/'Population at Risk'!T$5","v":3.5516640510038816E-3},{"$f":"'Population at Risk'!U158/'Population at Risk'!U$5","v":1.763523349571006E-2},{"$f":"'Population at Risk'!V158/'Population at Risk'!V$5","v":5.1479522113339997E-3},{"$f":"'Population at Risk'!W158/'Population at Risk'!W$5","v":5.8101409087198477E-3},{"$f":"'Population at Risk'!X158/'Population at Risk'!X$5","v":5.8101409087198477E-3},{"$f":"'Population at Risk'!Y158/'Population at Risk'!Y$5","v":4.9391370945675939E-3},{"$f":"'Population at Risk'!Z158/'Population at Risk'!Z$5","v":3.6065779107640459E-3},{"$f":"'Population at Risk'!AA158/'Population at Risk'!AA$5","v":4.3476074547585683E-3},{"$f":"'Population at Risk'!AB158/'Population at Risk'!AB$5","v":6.090930281017452E-3},{"$f":"'Population at Risk'!AC158/'Population at Risk'!AC$5","v":3.8265068157642343E-3},{"$f":"'Population at Risk'!AD158/'Population at Risk'!AD$5","v":1.0542921775747619E-2},{"$f":"'Population at Risk'!AE158/'Population at Risk'!AE$5","v":9.8298637665669188E-3},{"$f":"'Population at Risk'!AF158/'Population at Risk'!AF$5","v":3.7915072833390319E-3},{"$f":"'Population at Risk'!AG158/'Population at Risk'!AG$5","v":9.8298637665669188E-3},{"$f":"'Population at Risk'!AH158/'Population at Risk'!AH$5","v":5.2957703775555606E-3},{"$f":"'Population at Risk'!AI158/'Population at Risk'!AI$5","v":4.8215644296497068E-3},{"$f":"'Population at Risk'!AJ158/'Population at Risk'!AJ$5","v":6.1195316133331266E-3},{"$f":"'Population at Risk'!AK158/'Population at Risk'!AK$5","v":8.5706356861332007E-3},{"$f":"'Population at Risk'!AL158/'Population at Risk'!AL$5","v":3.258689961822729E-3},{"$f":"'Population at Risk'!AM158/'Population at Risk'!AM$5","v":5.1558816156363268E-3},{"$f":"'Population at Risk'!AN158/'Population at Risk'!AN$5","v":9.9416119836416988E-3},{"$f":"'Population at Risk'!AO158/'Population at Risk'!AO$5","v":9.9416119836416988E-3},{"$f":"'Population at Risk'!AP158/'Population at Risk'!AP$5","v":7.8427565241056783E-3},{"$f":"'Population at Risk'!AQ158/'Population at Risk'!AQ$5","v":5.4901652430894036E-3},{"$f":"'Population at Risk'!AR158/'Population at Risk'!AR$5","v":5.6550535377632802E-3},{"$f":"'Population at Risk'!AS158/'Population at Risk'!AS$5","v":9.6665346866394199E-3},{"$f":"'Population at Risk'!AT158/'Population at Risk'!AT$5","v":1.0833685868945724E-2},{"$f":"'Population at Risk'!AU158/'Population at Risk'!AU$5","v":1.0833685868945724E-2},{"$f":"'Population at Risk'!AV158/'Population at Risk'!AV$5","v":6.7278271156864791E-3},{"$f":"'Population at Risk'!AW158/'Population at Risk'!AW$5","v":5.4553771714962425E-3},{"$f":"'Population at Risk'!AX158/'Population at Risk'!AX$5","v":4.3743492989507127E-3},{"$f":"'Population at Risk'!AY158/'Population at Risk'!AY$5","v":6.3054720590019009E-3},{"$f":"'Population at Risk'!AZ158/'Population at Risk'!AZ$5","v":6.7551079087164283E-3},{"$f":"'Population at Risk'!BA158/'Population at Risk'!BA$5","v":3.2829269457895082E-3},{"$f":"'Population at Risk'!BB158/'Population at Risk'!BB$5","v":6.424698807480039E-3},{"$f":"'Population at Risk'!BC158/'Population at Risk'!BC$5","v":1.763523349571006E-2},156]
[null,"Male 20-24",{"$f":"'Population at Risk'!C159/'Population at Risk'!C$5","v":1.2206055912106245E-2},{"$f":"'Population at Risk'!D159/'Population at Risk'!D$5","v":1.0700688883510914E-2},{"$f":"'Population at Risk'!E159/'Population at Risk'!E$5","v":9.1895630113391479E-3},{"$f":"'Population at Risk'!F159/'Population at Risk'!F$5","v":1.1700605432864575E-2},{"$f":"'Population at Risk'!G159/'Population at Risk'!G$5","v":1.2516158891336953E-2},{"$f":"'Population at Risk'!H159/'Population at Risk'!H$5","v":5.8315939609926469E-3},{"$f":"'Population at Risk'!I159/'Population at Risk'!I$5","v":1.1419659365324653E-2},{"$f":"'Population at Risk'!J159/'Population at Risk'!J$5","v":8.5567596975221118E-3},{"$f":"'Population at Risk'!K159/'Population at Risk'!K$5","v":7.0834085234578277E-3},{"$f":"'Population at Risk'!L159/'Population at Risk'!L$5","v":1.1855220092021173E-2},{"$f":"'Population at Risk'!M159/'Population at Risk'!M$5","v":1.1855220092021173E-2},{"$f":"'Population at Risk'!N159/'Population at Risk'!N$5","v":5.99648804666427E-3},{"$f":"'Population at Risk'!O159/'Population at Risk'!O$5","v":6.0931783450074665E-3},{"$f":"'Population at Risk'!P159/'Population at Risk'!P$5","v":3.3040841783882969E-3},{"$f":"'Population at Risk'!Q159/'Population at Risk'!Q$5","v":8.6313041823866399E-3},{"$f":"'Population at Risk'!R159/'Population at Risk'!R$5","v":5.7556930883757426E-3},{"$f":"'Population at Risk'!S159/'Population at Risk'!S$5","v":9.2334998757219611E-3},{"$f":"'Population at Risk'!T159/'Population at Risk'!T$5","v":9.9560376715783858E-3},{"$f":"'Population at Risk'!U159/'Population at Risk'!U$5","v":2.0690155833549596E-2},{"$f":"'Population at Risk'!V159/'Population at Risk'!V$5","v":6.8255596412255901E-3},{"$f":"'Population at Risk'!W159/'Population at Risk'!W$5","v":8.0450803766271804E-3},{"$f":"'Population at Risk'!X159/'Population at Risk'!X$5","v":8.0450803766271804E-3},{"$f":"'Population at Risk'!Y159/'Population at Risk'!Y$5","v":7.6430759433510831E-3},{"$f":"'Population at Risk'!Z159/'Population at Risk'!Z$5","v":8.3123368206217095E-3},{"$f":"'Population at Risk'!AA159/'Population at Risk'!AA$5","v":6.8510534115233754E-3},{"$f":"'Population at Risk'!AB159/'Population at Risk'!AB$5","v":1.0649010167393469E-2},{"$f":"'Population at Risk'!AC159/'Population at Risk'!AC$5","v":7.0294798775796261E-3},{"$f":"'Population at Risk'!AD159/'Population at Risk'!AD$5","v":1.0934335638080763E-2},{"$f":"'Population at Risk'!AE159/'Population at Risk'!AE$5","v":1.0330081686049023E-2},{"$f":"'Population at Risk'!AF159/'Population at Risk'!AF$5","v":5.6289300437264086E-3},{"$f":"'Population at Risk'!AG159/'Population at Risk'!AG$5","v":1.0330081686049023E-2},{"$f":"'Population at Risk'!AH159/'Population at Risk'!AH$5","v":6.5263995022771248E-3},{"$f":"'Population at Risk'!AI159/'Population at Risk'!AI$5","v":9.4793717847903251E-3},{"$f":"'Population at Risk'!AJ159/'Population at Risk'!AJ$5","v":8.8970860106469488E-3},{"$f":"'Population at Risk'!AK159/'Population at Risk'!AK$5","v":1.0386317932028563E-2},{"$f":"'Population at Risk'!AL159/'Population at Risk'!AL$5","v":4.4923976497190619E-3},{"$f":"'Population at Risk'!AM159/'Population at Risk'!AM$5","v":6.0539134505050614E-3},{"$f":"'Population at Risk'!AN159/'Population at Risk'!AN$5","v":1.1929934380370039E-2},{"$f":"'Population at Risk'!AO159/'Population at Risk'!AO$5","v":1.1929934380370039E-2},{"$f":"'Population at Risk'!AP159/'Population at Risk'!AP$5","v":1.0398698241379277E-2},{"$f":"'Population at Risk'!AQ159/'Population at Risk'!AQ$5","v":6.0426786879353434E-3},{"$f":"'Population at Risk'!AR159/'Population at Risk'!AR$5","v":8.400711090552633E-3},{"$f":"'Population at Risk'!AS159/'Population at Risk'!AS$5","v":1.1419659365324653E-2},{"$f":"'Population at Risk'!AT159/'Population at Risk'!AT$5","v":1.4855772838254913E-2},{"$f":"'Population at Risk'!AU159/'Population at Risk'!AU$5","v":1.4855772838254913E-2},{"$f":"'Population at Risk'!AV159/'Population at Risk'!AV$5","v":7.30353044269992E-3},{"$f":"'Population at Risk'!AW159/'Population at Risk'!AW$5","v":7.0654848646064467E-3},{"$f":"'Population at Risk'!AX159/'Population at Risk'!AX$5","v":9.4604571279001855E-3},{"$f":"'Population at Risk'!AY159/'Population at Risk'!AY$5","v":8.5274957048932249E-3},{"$f":"'Population at Risk'!AZ159/'Population at Risk'!AZ$5","v":8.9654072432987959E-3},{"$f":"'Population at Risk'!BA159/'Population at Risk'!BA$5","v":4.8807012768201426E-3},{"$f":"'Population at Risk'!BB159/'Population at Risk'!BB$5","v":8.937761266188218E-3},{"$f":"'Population at Risk'!BC159/'Population at Risk'!BC$5","v":2.0690155833549596E-2},157]
[null,"Male 25-29",{"$f":"'Population at Risk'!C160/'Population at Risk'!C$5","v":1.5148803055272454E-2},{"$f":"'Population at Risk'!D160/'Population at Risk'!D$5","v":1.1687513374606971E-2},{"$f":"'Population at Risk'!E160/'Population at Risk'!E$5","v":8.2129823876918844E-3},{"$f":"'Population at Risk'!F160/'Population at Risk'!F$5","v":1.0403183263808381E-2},{"$f":"'Population at Risk'!G160/'Population at Risk'!G$5","v":1.1282814767008129E-2},{"$f":"'Population at Risk'!H160/'Population at Risk'!H$5","v":5.1753780108366012E-3},{"$f":"'Population at Risk'!I160/'Population at Risk'!I$5","v":1.0567445979852664E-2},{"$f":"'Population at Risk'!J160/'Population at Risk'!J$5","v":7.1965014427065668E-3},{"$f":"'Population at Risk'!K160/'Population at Risk'!K$5","v":5.5120039022129169E-3},{"$f":"'Population at Risk'!L160/'Population at Risk'!L$5","v":1.1280473531843591E-2},{"$f":"'Population at Risk'!M160/'Population at Risk'!M$5","v":1.1280473531843591E-2},{"$f":"'Population at Risk'!N160/'Population at Risk'!N$5","v":7.0667273830767909E-3},{"$f":"'Population at Risk'!O160/'Population at Risk'!O$5","v":6.0834912570185843E-3},{"$f":"'Population at Risk'!P160/'Population at Risk'!P$5","v":3.1097262855419262E-3},{"$f":"'Population at Risk'!Q160/'Population at Risk'!Q$5","v":8.1147851919446037E-3},{"$f":"'Population at Risk'!R160/'Population at Risk'!R$5","v":4.4491860683149916E-3},{"$f":"'Population at Risk'!S160/'Population at Risk'!S$5","v":1.0435126474259919E-2},{"$f":"'Population at Risk'!T160/'Population at Risk'!T$5","v":1.3721722668447491E-2},{"$f":"'Population at Risk'!U160/'Population at Risk'!U$5","v":1.9023834558364393E-2},{"$f":"'Population at Risk'!V160/'Population at Risk'!V$5","v":6.3568163887558812E-3},{"$f":"'Population at Risk'!W160/'Population at Risk'!W$5","v":8.0135035238623996E-3},{"$f":"'Population at Risk'!X160/'Population at Risk'!X$5","v":8.0135035238623996E-3},{"$f":"'Population at Risk'!Y160/'Population at Risk'!Y$5","v":6.7533368358059544E-3},{"$f":"'Population at Risk'!Z160/'Population at Risk'!Z$5","v":8.5528924066853307E-3},{"$f":"'Population at Risk'!AA160/'Population at Risk'!AA$5","v":6.7901056434660125E-3},{"$f":"'Population at Risk'!AB160/'Population at Risk'!AB$5","v":1.1503966328101068E-2},{"$f":"'Population at Risk'!AC160/'Population at Risk'!AC$5","v":7.1554052611132683E-3},{"$f":"'Population at Risk'!AD160/'Population at Risk'!AD$5","v":1.0614470546281634E-2},{"$f":"'Population at Risk'!AE160/'Population at Risk'!AE$5","v":1.0359164123228215E-2},{"$f":"'Population at Risk'!AF160/'Population at Risk'!AF$5","v":5.3081101966746449E-3},{"$f":"'Population at Risk'!AG160/'Population at Risk'!AG$5","v":1.0359164123228215E-2},{"$f":"'Population at Risk'!AH160/'Population at Risk'!AH$5","v":6.1254287514294079E-3},{"$f":"'Population at Risk'!AI160/'Population at Risk'!AI$5","v":1.148462350849597E-2},{"$f":"'Population at Risk'!AJ160/'Population at Risk'!AJ$5","v":8.4366358164398442E-3},{"$f":"'Population at Risk'!AK160/'Population at Risk'!AK$5","v":1.0570963584153516E-2},{"$f":"'Population at Risk'!AL160/'Population at Risk'!AL$5","v":3.5905147882224326E-3},{"$f":"'Population at Risk'!AM160/'Population at Risk'!AM$5","v":5.7349214473856654E-3},{"$f":"'Population at Risk'!AN160/'Population at Risk'!AN$5","v":1.3454314884528433E-2},{"$f":"'Population at Risk'!AO160/'Population at Risk'!AO$5","v":1.3454314884528433E-2},{"$f":"'Population at Risk'!AP160/'Population at Risk'!AP$5","v":8.3869874601031E-3},{"$f":"'Population at Risk'!AQ160/'Population at Risk'!AQ$5","v":6.4063584237833036E-3},{"$f":"'Population at Risk'!AR160/'Population at Risk'!AR$5","v":8.5658795527126172E-3},{"$f":"'Population at Risk'!AS160/'Population at Risk'!AS$5","v":1.0567445979852664E-2},{"$f":"'Population at Risk'!AT160/'Population at Risk'!AT$5","v":1.3104218835491234E-2},{"$f":"'Population at Risk'!AU160/'Population at Risk'!AU$5","v":1.3104218835491234E-2},{"$f":"'Population at Risk'!AV160/'Population at Risk'!AV$5","v":6.2198535918510907E-3},{"$f":"'Population at Risk'!AW160/'Population at Risk'!AW$5","v":6.5709800448551558E-3},{"$f":"'Population at Risk'!AX160/'Population at Risk'!AX$5","v":8.2297080031106615E-3},{"$f":"'Population at Risk'!AY160/'Population at Risk'!AY$5","v":8.2119716860551625E-3},{"$f":"'Population at Risk'!AZ160/'Population at Risk'!AZ$5","v":8.3921307588249831E-3},{"$f":"'Population at Risk'!BA160/'Population at Risk'!BA$5","v":5.4299362031119238E-3},{"$f":"'Population at Risk'!BB160/'Population at Risk'!BB$5","v":8.7702237689410052E-3},{"$f":"'Population at Risk'!BC160/'Population at Risk'!BC$5","v":1.9023834558364393E-2},158]
[null,"Male 30-34",{"$f":"'Population at Risk'!C161/'Population at Risk'!C$5","v":1.1486986281640582E-2},{"$f":"'Population at Risk'!D161/'Population at Risk'!D$5","v":1.0098302154283569E-2},{"$f":"'Population at Risk'!E161/'Population at Risk'!E$5","v":8.7043055585951656E-3},{"$f":"'Population at Risk'!F161/'Population at Risk'!F$5","v":1.1629187698788087E-2},{"$f":"'Population at Risk'!G161/'Population at Risk'!G$5","v":1.0688982410849807E-2},{"$f":"'Population at Risk'!H161/'Population at Risk'!H$5","v":4.8197930132150985E-3},{"$f":"'Population at Risk'!I161/'Population at Risk'!I$5","v":1.0774412087753005E-2},{"$f":"'Population at Risk'!J161/'Population at Risk'!J$5","v":6.0200618709742026E-3},{"$f":"'Population at Risk'!K161/'Population at Risk'!K$5","v":5.3186002565212354E-3},{"$f":"'Population at Risk'!L161/'Population at Risk'!L$5","v":1.0577052368641178E-2},{"$f":"'Population at Risk'!M161/'Population at Risk'!M$5","v":1.0577052368641178E-2},{"$f":"'Population at Risk'!N161/'Population at Risk'!N$5","v":5.7918834676442292E-3},{"$f":"'Population at Risk'!O161/'Population at Risk'!O$5","v":5.1535308100858065E-3},{"$f":"'Population at Risk'!P161/'Population at Risk'!P$5","v":2.6761586784231003E-3},{"$f":"'Population at Risk'!Q161/'Population at Risk'!Q$5","v":7.136117631107065E-3},{"$f":"'Population at Risk'!R161/'Population at Risk'!R$5","v":4.4844970688571739E-3},{"$f":"'Population at Risk'!S161/'Population at Risk'!S$5","v":9.8269200663042826E-3},{"$f":"'Population at Risk'!T161/'Population at Risk'!T$5","v":1.2145011396377118E-2},{"$f":"'Population at Risk'!U161/'Population at Risk'!U$5","v":2.078272923772655E-2},{"$f":"'Population at Risk'!V161/'Population at Risk'!V$5","v":6.3732635204214842E-3},{"$f":"'Population at Risk'!W161/'Population at Risk'!W$5","v":7.9468412791367481E-3},{"$f":"'Population at Risk'!X161/'Population at Risk'!X$5","v":7.9468412791367481E-3},{"$f":"'Population at Risk'!Y161/'Population at Risk'!Y$5","v":6.2064727989733382E-3},{"$f":"'Population at Risk'!Z161/'Population at Risk'!Z$5","v":7.8874138145823228E-3},{"$f":"'Population at Risk'!AA161/'Population at Risk'!AA$5","v":6.6957349058288053E-3},{"$f":"'Population at Risk'!AB161/'Population at Risk'!AB$5","v":1.0441594767458489E-2},{"$f":"'Population at Risk'!AC161/'Population at Risk'!AC$5","v":6.6781074364293007E-3},{"$f":"'Population at Risk'!AD161/'Population at Risk'!AD$5","v":1.1165816954514343E-2},{"$f":"'Population at Risk'!AE161/'Population at Risk'!AE$5","v":1.1347966987320745E-2},{"$f":"'Population at Risk'!AF161/'Population at Risk'!AF$5","v":4.7102186635327205E-3},{"$f":"'Population at Risk'!AG161/'Population at Risk'!AG$5","v":1.1347966987320745E-2},{"$f":"'Population at Risk'!AH161/'Population at Risk'!AH$5","v":6.7278087734402633E-3},{"$f":"'Population at Risk'!AI161/'Population at Risk'!AI$5","v":1.0534523500730969E-2},{"$f":"'Population at Risk'!AJ161/'Population at Risk'!AJ$5","v":8.4217825843686464E-3},{"$f":"'Population at Risk'!AK161/'Population at Risk'!AK$5","v":1.2186613040246848E-2},{"$f":"'Population at Risk'!AL161/'Population at Risk'!AL$5","v":3.3522815795252099E-3},{"$f":"'Population at Risk'!AM161/'Population at Risk'!AM$5","v":6.6814955435986565E-3},{"$f":"'Population at Risk'!AN161/'Population at Risk'!AN$5","v":1.1598547314248649E-2},{"$f":"'Population at Risk'!AO161/'Population at Risk'!AO$5","v":1.1598547314248649E-2},{"$f":"'Population at Risk'!AP161/'Population at Risk'!AP$5","v":9.3588284172413504E-3},{"$f":"'Population at Risk'!AQ161/'Population at Risk'!AQ$5","v":6.6441490202992781E-3},{"$f":"'Population at Risk'!AR161/'Population at Risk'!AR$5","v":8.2567547396945797E-3},{"$f":"'Population at Risk'!AS161/'Population at Risk'!AS$5","v":1.0774412087753005E-2},{"$f":"'Population at Risk'!AT161/'Population at Risk'!AT$5","v":1.4401666244945812E-2},{"$f":"'Population at Risk'!AU161/'Population at Risk'!AU$5","v":1.4401666244945812E-2},{"$f":"'Population at Risk'!AV161/'Population at Risk'!AV$5","v":6.3778897992665456E-3},{"$f":"'Population at Risk'!AW161/'Population at Risk'!AW$5","v":6.7806500884297028E-3},{"$f":"'Population at Risk'!AX161/'Population at Risk'!AX$5","v":6.4503116781137624E-3},{"$f":"'Population at Risk'!AY161/'Population at Risk'!AY$5","v":8.2486993496236147E-3},{"$f":"'Population at Risk'!AZ161/'Population at Risk'!AZ$5","v":8.5227104025106838E-3},{"$f":"'Population at Risk'!BA161/'Population at Risk'!BA$5","v":4.7184273213248433E-3},{"$f":"'Population at Risk'!BB161/'Population at Risk'!BB$5","v":9.06159332937094E-3},{"$f":"'Population at Risk'!BC161/'Population at Risk'!BC$5","v":2.078272923772655E-2},159]
[null,"Male 35-39",{"$f":"'Population at Risk'!C162/'Population at Risk'!C$5","v":8.3267054687536663E-3},{"$f":"'Population at Risk'!D162/'Population at Risk'!D$5","v":8.5605511068087316E-3},{"$f":"'Population at Risk'!E162/'Population at Risk'!E$5","v":8.7952913309846618E-3},{"$f":"'Population at Risk'!F162/'Population at Risk'!F$5","v":1.1510158141993942E-2},{"$f":"'Population at Risk'!G162/'Population at Risk'!G$5","v":1.1998458888532262E-2},{"$f":"'Population at Risk'!H162/'Population at Risk'!H$5","v":5.1527498746243242E-3},{"$f":"'Population at Risk'!I162/'Population at Risk'!I$5","v":1.0165688240987297E-2},{"$f":"'Population at Risk'!J162/'Population at Risk'!J$5","v":5.9005797269701347E-3},{"$f":"'Population at Risk'!K162/'Population at Risk'!K$5","v":5.366951167944156E-3},{"$f":"'Population at Risk'!L162/'Population at Risk'!L$5","v":9.8135830573605094E-3},{"$f":"'Population at Risk'!M162/'Population at Risk'!M$5","v":9.8135830573605094E-3},{"$f":"'Population at Risk'!N162/'Population at Risk'!N$5","v":4.1550468354839033E-3},{"$f":"'Population at Risk'!O162/'Population at Risk'!O$5","v":5.7928786173520909E-3},{"$f":"'Population at Risk'!P162/'Population at Risk'!P$5","v":2.3621959284405021E-3},{"$f":"'Population at Risk'!Q162/'Population at Risk'!Q$5","v":7.340006706281552E-3},{"$f":"'Population at Risk'!R162/'Population at Risk'!R$5","v":4.643396571296996E-3},{"$f":"'Population at Risk'!S162/'Population at Risk'!S$5","v":8.7258397459048561E-3},{"$f":"'Population at Risk'!T162/'Population at Risk'!T$5","v":9.2597923160421553E-3},{"$f":"'Population at Risk'!U162/'Population at Risk'!U$5","v":2.2911917533796532E-2},{"$f":"'Population at Risk'!V162/'Population at Risk'!V$5","v":7.6972576195025932E-3},{"$f":"'Population at Risk'!W162/'Population at Risk'!W$5","v":7.8310594856658821E-3},{"$f":"'Population at Risk'!X162/'Population at Risk'!X$5","v":7.8310594856658821E-3},{"$f":"'Population at Risk'!Y162/'Population at Risk'!Y$5","v":6.8488210327132364E-3},{"$f":"'Population at Risk'!Z162/'Population at Risk'!Z$5","v":6.0472513752051482E-3},{"$f":"'Population at Risk'!AA162/'Population at Risk'!AA$5","v":6.0285862189213245E-3},{"$f":"'Population at Risk'!AB162/'Population at Risk'!AB$5","v":8.9820985996233275E-3},{"$f":"'Population at Risk'!AC162/'Population at Risk'!AC$5","v":5.4584591652687793E-3},{"$f":"'Population at Risk'!AD162/'Population at Risk'!AD$5","v":1.1658240845836687E-2},{"$f":"'Population at Risk'!AE162/'Population at Risk'!AE$5","v":1.1528278097831735E-2},{"$f":"'Population at Risk'!AF162/'Population at Risk'!AF$5","v":5.0602039512255542E-3},{"$f":"'Population at Risk'!AG162/'Population at Risk'!AG$5","v":1.1528278097831735E-2},{"$f":"'Population at Risk'!AH162/'Population at Risk'!AH$5","v":7.0659546140169095E-3},{"$f":"'Population at Risk'!AI162/'Population at Risk'!AI$5","v":8.9371195852366424E-3},{"$f":"'Population at Risk'!AJ162/'Population at Risk'!AJ$5","v":8.7039939937213883E-3},{"$f":"'Population at Risk'!AK162/'Population at Risk'!AK$5","v":1.1124900540528372E-2},{"$f":"'Population at Risk'!AL162/'Population at Risk'!AL$5","v":3.5479731438122141E-3},{"$f":"'Population at Risk'!AM162/'Population at Risk'!AM$5","v":7.3229468542191801E-3},{"$f":"'Population at Risk'!AN162/'Population at Risk'!AN$5","v":1.0736940942333035E-2},{"$f":"'Population at Risk'!AO162/'Population at Risk'!AO$5","v":1.0736940942333035E-2},{"$f":"'Population at Risk'!AP162/'Population at Risk'!AP$5","v":9.1547418162423178E-3},{"$f":"'Population at Risk'!AQ162/'Population at Risk'!AQ$5","v":5.8118819324933686E-3},{"$f":"'Population at Risk'!AR162/'Population at Risk'!AR$5","v":7.6284949038306279E-3},{"$f":"'Population at Risk'!AS162/'Population at Risk'!AS$5","v":1.0165688240987297E-2},{"$f":"'Population at Risk'!AT162/'Population at Risk'!AT$5","v":1.4596283356363999E-2},{"$f":"'Population at Risk'!AU162/'Population at Risk'!AU$5","v":1.4596283356363999E-2},{"$f":"'Population at Risk'!AV162/'Population at Risk'!AV$5","v":6.5359260066819988E-3},{"$f":"'Population at Risk'!AW162/'Population at Risk'!AW$5","v":6.7727380113136821E-3},{"$f":"'Population at Risk'!AX162/'Population at Risk'!AX$5","v":6.2278871374891499E-3},{"$f":"'Population at Risk'!AY162/'Population at Risk'!AY$5","v":7.7946118727773026E-3},{"$f":"'Population at Risk'!AZ162/'Population at Risk'!AZ$5","v":7.7615266259037884E-3},{"$f":"'Population at Risk'!BA162/'Population at Risk'!BA$5","v":4.1442271711107093E-3},{"$f":"'Population at Risk'!BB162/'Population at Risk'!BB$5","v":9.0397406123386929E-3},{"$f":"'Population at Risk'!BC162/'Population at Risk'!BC$5","v":2.2911917533796532E-2},160]
[null,"Male 40-44",{"$f":"'Population at Risk'!C163/'Population at Risk'!C$5","v":6.4232858586974941E-3},{"$f":"'Population at Risk'!D163/'Population at Risk'!D$5","v":8.0550305852963352E-3},{"$f":"'Population at Risk'!E163/'Population at Risk'!E$5","v":9.693017618561027E-3},{"$f":"'Population at Risk'!F163/'Population at Risk'!F$5","v":1.3521757651815016E-2},{"$f":"'Population at Risk'!G163/'Population at Risk'!G$5","v":1.4358561842494826E-2},{"$f":"'Population at Risk'!H163/'Population at Risk'!H$5","v":5.7540117796934104E-3},{"$f":"'Population at Risk'!I163/'Population at Risk'!I$5","v":1.3367575674974914E-2},{"$f":"'Population at Risk'!J163/'Population at Risk'!J$5","v":6.5898997885320667E-3},{"$f":"'Population at Risk'!K163/'Population at Risk'!K$5","v":7.0592330677463674E-3},{"$f":"'Population at Risk'!L163/'Population at Risk'!L$5","v":1.1726545488996343E-2},{"$f":"'Population at Risk'!M163/'Population at Risk'!M$5","v":1.1726545488996343E-2},{"$f":"'Population at Risk'!N163/'Population at Risk'!N$5","v":3.7615764912145946E-3},{"$f":"'Population at Risk'!O163/'Population at Risk'!O$5","v":5.8994365852298048E-3},{"$f":"'Population at Risk'!P163/'Population at Risk'!P$5","v":2.8107141427013566E-3},{"$f":"'Population at Risk'!Q163/'Population at Risk'!Q$5","v":9.5284161131543848E-3},{"$f":"'Population at Risk'!R163/'Population at Risk'!R$5","v":4.6787075718391774E-3},{"$f":"'Population at Risk'!S163/'Population at Risk'!S$5","v":8.5651628504481801E-3},{"$f":"'Population at Risk'!T163/'Population at Risk'!T$5","v":6.9218166669068777E-3},{"$f":"'Population at Risk'!U163/'Population at Risk'!U$5","v":2.6013126573724552E-2},{"$f":"'Population at Risk'!V163/'Population at Risk'!V$5","v":7.8452818044930286E-3},{"$f":"'Population at Risk'!W163/'Population at Risk'!W$5","v":8.367865982667172E-3},{"$f":"'Population at Risk'!X163/'Population at Risk'!X$5","v":8.367865982667172E-3},{"$f":"'Population at Risk'!Y163/'Population at Risk'!Y$5","v":7.2524587741849287E-3},{"$f":"'Population at Risk'!Z163/'Population at Risk'!Z$5","v":4.3879445954232476E-3},{"$f":"'Population at Risk'!AA163/'Population at Risk'!AA$5","v":5.5593539401140989E-3},{"$f":"'Population at Risk'!AB163/'Population at Risk'!AB$5","v":8.7670948313980437E-3},{"$f":"'Population at Risk'!AC163/'Population at Risk'!AC$5","v":4.6226802084285553E-3},{"$f":"'Population at Risk'!AD163/'Population at Risk'!AD$5","v":1.2163290990782682E-2},{"$f":"'Population at Risk'!AE163/'Population at Risk'!AE$5","v":1.132470103757739E-2},{"$f":"'Population at Risk'!AF163/'Population at Risk'!AF$5","v":5.0893693918666241E-3},{"$f":"'Population at Risk'!AG163/'Population at Risk'!AG$5","v":1.132470103757739E-2},{"$f":"'Population at Risk'!AH163/'Population at Risk'!AH$5","v":7.2636683022229264E-3},{"$f":"'Population at Risk'!AI163/'Population at Risk'!AI$5","v":8.0426351876822736E-3},{"$f":"'Population at Risk'!AJ163/'Population at Risk'!AJ$5","v":9.5060685255660207E-3},{"$f":"'Population at Risk'!AK163/'Population at Risk'!AK$5","v":1.2386645830048879E-2},{"$f":"'Population at Risk'!AL163/'Population at Risk'!AL$5","v":4.381789374252495E-3},{"$f":"'Population at Risk'!AM163/'Population at Risk'!AM$5","v":7.2848065060201221E-3},{"$f":"'Population at Risk'!AN163/'Population at Risk'!AN$5","v":1.1002050595230146E-2},{"$f":"'Population at Risk'!AO163/'Population at Risk'!AO$5","v":1.1002050595230146E-2},{"$f":"'Population at Risk'!AP163/'Population at Risk'!AP$5","v":8.9700920343860485E-3},{"$f":"'Population at Risk'!AQ163/'Population at Risk'!AQ$5","v":5.9237833896773565E-3},{"$f":"'Population at Risk'!AR163/'Population at Risk'!AR$5","v":7.5865473578852344E-3},{"$f":"'Population at Risk'!AS163/'Population at Risk'!AS$5","v":1.3367575674974914E-2},{"$f":"'Population at Risk'!AT163/'Population at Risk'!AT$5","v":1.4271921504000354E-2},{"$f":"'Population at Risk'!AU163/'Population at Risk'!AU$5","v":1.4271921504000354E-2},{"$f":"'Population at Risk'!AV163/'Population at Risk'!AV$5","v":7.4051251474669972E-3},{"$f":"'Population at Risk'!AW163/'Population at Risk'!AW$5","v":7.2395505611589014E-3},{"$f":"'Population at Risk'!AX163/'Population at Risk'!AX$5","v":6.3020286510306871E-3},{"$f":"'Population at Risk'!AY163/'Population at Risk'!AY$5","v":8.2169800038144961E-3},{"$f":"'Population at Risk'!AZ163/'Population at Risk'!AZ$5","v":8.0800135617225734E-3},{"$f":"'Population at Risk'!BA163/'Population at Risk'!BA$5","v":5.0429752323154411E-3},{"$f":"'Population at Risk'!BB163/'Population at Risk'!BB$5","v":9.5423531040803294E-3},{"$f":"'Population at Risk'!BC163/'Population at Risk'!BC$5","v":2.6013126573724552E-2},161]
[null,"Male 45-49",{"$f":"'Population at Risk'!C164/'Population at Risk'!C$5","v":6.3145190238371417E-3},{"$f":"'Population at Risk'!D164/'Population at Risk'!D$5","v":9.2476957677866609E-3},{"$f":"'Population at Risk'!E164/'Population at Risk'!E$5","v":1.2192093500192531E-2},{"$f":"'Population at Risk'!F164/'Population at Risk'!F$5","v":1.6283243369439208E-2},{"$f":"'Population at Risk'!G164/'Population at Risk'!G$5","v":1.9048314809078502E-2},{"$f":"'Population at Risk'!H164/'Population at Risk'!H$5","v":7.4220286776270064E-3},{"$f":"'Population at Risk'!I164/'Population at Risk'!I$5","v":1.6545114155091904E-2},{"$f":"'Population at Risk'!J164/'Population at Risk'!J$5","v":8.1064039239683167E-3},{"$f":"'Population at Risk'!K164/'Population at Risk'!K$5","v":8.9449186132402603E-3},{"$f":"'Population at Risk'!L164/'Population at Risk'!L$5","v":1.6178686753655525E-2},{"$f":"'Population at Risk'!M164/'Population at Risk'!M$5","v":1.6178686753655525E-2},{"$f":"'Population at Risk'!N164/'Population at Risk'!N$5","v":3.9425728495784771E-3},{"$f":"'Population at Risk'!O164/'Population at Risk'!O$5","v":7.7302962151287093E-3},{"$f":"'Population at Risk'!P164/'Population at Risk'!P$5","v":3.5283432855187239E-3},{"$f":"'Population at Risk'!Q164/'Population at Risk'!Q$5","v":1.0901269219329268E-2},{"$f":"'Population at Risk'!R164/'Population at Risk'!R$5","v":5.3849275826828276E-3},{"$f":"'Population at Risk'!S164/'Population at Risk'!S$5","v":9.3567183538329074E-3},{"$f":"'Population at Risk'!T164/'Population at Risk'!T$5","v":6.0684420093430162E-3},{"$f":"'Population at Risk'!U164/'Population at Risk'!U$5","v":3.4946460076800773E-2},{"$f":"'Population at Risk'!V164/'Population at Risk'!V$5","v":9.5393363660502238E-3},{"$f":"'Population at Risk'!W164/'Population at Risk'!W$5","v":9.9888110912593024E-3},{"$f":"'Population at Risk'!X164/'Population at Risk'!X$5","v":9.9888110912593024E-3},{"$f":"'Population at Risk'!Y164/'Population at Risk'!Y$5","v":8.8626695493031864E-3},{"$f":"'Population at Risk'!Z164/'Population at Risk'!Z$5","v":4.5688002550185233E-3},{"$f":"'Population at Risk'!AA164/'Population at Risk'!AA$5","v":6.4185208640195083E-3},{"$f":"'Population at Risk'!AB164/'Population at Risk'!AB$5","v":1.0198766982168758E-2},{"$f":"'Population at Risk'!AC164/'Population at Risk'!AC$5","v":5.2147326164939875E-3},{"$f":"'Population at Risk'!AD164/'Population at Risk'!AD$5","v":1.5989045838748581E-2},{"$f":"'Population at Risk'!AE164/'Population at Risk'!AE$5","v":1.4820409986516278E-2},{"$f":"'Population at Risk'!AF164/'Population at Risk'!AF$5","v":5.8622535688549653E-3},{"$f":"'Population at Risk'!AG164/'Population at Risk'!AG$5","v":1.4820409986516278E-2},{"$f":"'Population at Risk'!AH164/'Population at Risk'!AH$5","v":8.6088604986152683E-3},{"$f":"'Population at Risk'!AI164/'Population at Risk'!AI$5","v":8.1662254325947942E-3},{"$f":"'Population at Risk'!AJ164/'Population at Risk'!AJ$5","v":1.1035951428899304E-2},{"$f":"'Population at Risk'!AK164/'Population at Risk'!AK$5","v":1.5033233510506528E-2},{"$f":"'Population at Risk'!AL164/'Population at Risk'!AL$5","v":5.7346136664974401E-3},{"$f":"'Population at Risk'!AM164/'Population at Risk'!AM$5","v":8.1516326014532646E-3},{"$f":"'Population at Risk'!AN164/'Population at Risk'!AN$5","v":1.4315921256444047E-2},{"$f":"'Population at Risk'!AO164/'Population at Risk'!AO$5","v":1.4315921256444047E-2},{"$f":"'Population at Risk'!AP164/'Population at Risk'!AP$5","v":1.1730120352658678E-2},{"$f":"'Population at Risk'!AQ164/'Population at Risk'!AQ$5","v":7.6652498171031671E-3},{"$f":"'Population at Risk'!AR164/'Population at Risk'!AR$5","v":8.9736764340340221E-3},{"$f":"'Population at Risk'!AS164/'Population at Risk'!AS$5","v":1.6545114155091904E-2},{"$f":"'Population at Risk'!AT164/'Population at Risk'!AT$5","v":1.7061433434327696E-2},{"$f":"'Population at Risk'!AU164/'Population at Risk'!AU$5","v":1.7061433434327696E-2},{"$f":"'Population at Risk'!AV164/'Population at Risk'!AV$5","v":9.3015596364524489E-3},{"$f":"'Population at Risk'!AW164/'Population at Risk'!AW$5","v":9.1305369918878391E-3},{"$f":"'Population at Risk'!AX164/'Population at Risk'!AX$5","v":7.5920909866534396E-3},{"$f":"'Population at Risk'!AY164/'Population at Risk'!AY$5","v":9.8880886961790464E-3},{"$f":"'Population at Risk'!AZ164/'Population at Risk'!AZ$5","v":9.7966581457858241E-3},{"$f":"'Population at Risk'!BA164/'Population at Risk'!BA$5","v":6.1664103088213563E-3},{"$f":"'Population at Risk'!BB164/'Population at Risk'!BB$5","v":1.0933642755133262E-2},{"$f":"'Population at Risk'!BC164/'Population at Risk'!BC$5","v":3.4946460076800773E-2},162]
[null,"Male 50-54",{"$f":"'Population at Risk'!C165/'Population at Risk'!C$5","v":6.4534988683809255E-3},{"$f":"'Population at Risk'!D165/'Population at Risk'!D$5","v":9.2598040437510288E-3},{"$f":"'Population at Risk'!E165/'Population at Risk'!E$5","v":1.2076844855165835E-2},{"$f":"'Population at Risk'!F165/'Population at Risk'!F$5","v":1.8949505441628083E-2},{"$f":"'Population at Risk'!G165/'Population at Risk'!G$5","v":2.130183246834598E-2},{"$f":"'Population at Risk'!H165/'Population at Risk'!H$5","v":8.3012933990183578E-3},{"$f":"'Population at Risk'!I165/'Population at Risk'!I$5","v":1.9004358496025355E-2},{"$f":"'Population at Risk'!J165/'Population at Risk'!J$5","v":8.6946237098344988E-3},{"$f":"'Population at Risk'!K165/'Population at Risk'!K$5","v":9.1866731703548615E-3},{"$f":"'Population at Risk'!L165/'Population at Risk'!L$5","v":1.8820805269098739E-2},{"$f":"'Population at Risk'!M165/'Population at Risk'!M$5","v":1.8820805269098739E-2},{"$f":"'Population at Risk'!N165/'Population at Risk'!N$5","v":5.0521592204179283E-3},{"$f":"'Population at Risk'!O165/'Population at Risk'!O$5","v":8.766814629939201E-3},{"$f":"'Population at Risk'!P165/'Population at Risk'!P$5","v":3.6180469283708951E-3},{"$f":"'Population at Risk'!Q165/'Population at Risk'!Q$5","v":1.113234350452702E-2},{"$f":"'Population at Risk'!R165/'Population at Risk'!R$5","v":6.8503341051833998E-3},{"$f":"'Population at Risk'!S165/'Population at Risk'!S$5","v":9.682015136045807E-3},{"$f":"'Population at Risk'!T165/'Population at Risk'!T$5","v":5.962786099358919E-3},{"$f":"'Population at Risk'!U165/'Population at Risk'!U$5","v":3.3326425503704044E-2},{"$f":"'Population at Risk'!V165/'Population at Risk'!V$5","v":9.8929496968607044E-3},{"$f":"'Population at Risk'!W165/'Population at Risk'!W$5","v":1.0409835794789726E-2},{"$f":"'Population at Risk'!X165/'Population at Risk'!X$5","v":1.0409835794789726E-2},{"$f":"'Population at Risk'!Y165/'Population at Risk'!Y$5","v":9.3270699615340576E-3},{"$f":"'Population at Risk'!Z165/'Population at Risk'!Z$5","v":4.5846031767307321E-3},{"$f":"'Population at Risk'!AA165/'Population at Risk'!AA$5","v":6.7068758956887534E-3},{"$f":"'Population at Risk'!AB165/'Population at Risk'!AB$5","v":1.0269591752878263E-2},{"$f":"'Population at Risk'!AC165/'Population at Risk'!AC$5","v":5.6189124765455168E-3},{"$f":"'Population at Risk'!AD165/'Population at Risk'!AD$5","v":1.8526922817102203E-2},{"$f":"'Population at Risk'!AE165/'Population at Risk'!AE$5","v":1.7466911769822756E-2},{"$f":"'Population at Risk'!AF165/'Population at Risk'!AF$5","v":6.9851230335361402E-3},{"$f":"'Population at Risk'!AG165/'Population at Risk'!AG$5","v":1.7466911769822756E-2},{"$f":"'Population at Risk'!AH165/'Population at Risk'!AH$5","v":8.6864677407148261E-3},{"$f":"'Population at Risk'!AI165/'Population at Risk'!AI$5","v":8.178584457086047E-3},{"$f":"'Population at Risk'!AJ165/'Population at Risk'!AJ$5","v":1.1125070821326485E-2},{"$f":"'Population at Risk'!AK165/'Population at Risk'!AK$5","v":1.5402524814756431E-2},{"$f":"'Population at Risk'!AL165/'Population at Risk'!AL$5","v":6.4322966348250212E-3},{"$f":"'Population at Risk'!AM165/'Population at Risk'!AM$5","v":8.0441461656195548E-3},{"$f":"'Population at Risk'!AN165/'Population at Risk'!AN$5","v":1.8822785355694951E-2},{"$f":"'Population at Risk'!AO165/'Population at Risk'!AO$5","v":1.8822785355694951E-2},{"$f":"'Population at Risk'!AP165/'Population at Risk'!AP$5","v":1.379042318179177E-2},{"$f":"'Population at Risk'!AQ165/'Population at Risk'!AQ$5","v":8.861196640757036E-3},{"$f":"'Population at Risk'!AR165/'Population at Risk'!AR$5","v":9.6255317644922591E-3},{"$f":"'Population at Risk'!AS165/'Population at Risk'!AS$5","v":1.9004358496025355E-2},{"$f":"'Population at Risk'!AT165/'Population at Risk'!AT$5","v":1.9461711141818664E-2},{"$f":"'Population at Risk'!AU165/'Population at Risk'!AU$5","v":1.9461711141818664E-2},{"$f":"'Population at Risk'!AV165/'Population at Risk'!AV$5","v":1.0238488580415497E-2},{"$f":"'Population at Risk'!AW165/'Population at Risk'!AW$5","v":9.4193278066225933E-3},{"$f":"'Population at Risk'!AX165/'Population at Risk'!AX$5","v":8.3928193329020455E-3},{"$f":"'Population at Risk'!AY165/'Population at Risk'!AY$5","v":1.1051687855597719E-2},{"$f":"'Population at Risk'!AZ165/'Population at Risk'!AZ$5","v":1.1634327765460212E-2},{"$f":"'Population at Risk'!BA165/'Population at Risk'!BA$5","v":6.8155061308025518E-3},{"$f":"'Population at Risk'!BB165/'Population at Risk'!BB$5","v":1.1108464491391223E-2},{"$f":"'Population at Risk'!BC165/'Population at Risk'!BC$5","v":3.3326425503704044E-2},163]
[null,"Male 55-59",{"$f":"'Population at Risk'!C166/'Population at Risk'!C$5","v":3.8593593796972855E-3},{"$f":"'Population at Risk'!D166/'Population at Risk'!D$5","v":5.6980126977039369E-3},{"$f":"'Population at Risk'!E166/'Population at Risk'!E$5","v":7.5436998597157761E-3},{"$f":"'Population at Risk'!F166/'Population at Risk'!F$5","v":1.1849019957608731E-2},{"$f":"'Population at Risk'!G166/'Population at Risk'!G$5","v":1.4510509742358138E-2},{"$f":"'Population at Risk'!H166/'Population at Risk'!H$5","v":4.9032208686231081E-3},{"$f":"'Population at Risk'!I166/'Population at Risk'!I$5","v":1.25627002946271E-2},{"$f":"'Population at Risk'!J166/'Population at Risk'!J$5","v":5.5044493200367469E-3},{"$f":"'Population at Risk'!K166/'Population at Risk'!K$5","v":6.130611157331844E-3},{"$f":"'Population at Risk'!L166/'Population at Risk'!L$5","v":1.2184317345382809E-2},{"$f":"'Population at Risk'!M166/'Population at Risk'!M$5","v":1.2184317345382809E-2},{"$f":"'Population at Risk'!N166/'Population at Risk'!N$5","v":3.163220872543952E-3},{"$f":"'Population at Risk'!O166/'Population at Risk'!O$5","v":4.6582632862184059E-3},{"$f":"'Population at Risk'!P166/'Population at Risk'!P$5","v":2.3292283450520469E-3},{"$f":"'Population at Risk'!Q166/'Population at Risk'!Q$5","v":7.6914091521414476E-3},{"$f":"'Population at Risk'!R166/'Population at Risk'!R$5","v":4.5248572375706899E-3},{"$f":"'Population at Risk'!S166/'Population at Risk'!S$5","v":6.1117325968014216E-3},{"$f":"'Population at Risk'!T166/'Population at Risk'!T$5","v":3.3875067914791585E-3},{"$f":"'Population at Risk'!U166/'Population at Risk'!U$5","v":2.2133175654868588E-2},{"$f":"'Population at Risk'!V166/'Population at Risk'!V$5","v":5.668293456127977E-3},{"$f":"'Population at Risk'!W166/'Population at Risk'!W$5","v":6.8764327430613868E-3},{"$f":"'Population at Risk'!X166/'Population at Risk'!X$5","v":6.8764327430613868E-3},{"$f":"'Population at Risk'!Y166/'Population at Risk'!Y$5","v":5.5909221253132163E-3},{"$f":"'Population at Risk'!Z166/'Population at Risk'!Z$5","v":2.7438613984821819E-3},{"$f":"'Population at Risk'!AA166/'Population at Risk'!AA$5","v":4.0999338955444746E-3},{"$f":"'Population at Risk'!AB166/'Population at Risk'!AB$5","v":6.4024613767739765E-3},{"$f":"'Population at Risk'!AC166/'Population at Risk'!AC$5","v":3.4663242975139521E-3},{"$f":"'Population at Risk'!AD166/'Population at Risk'!AD$5","v":1.243279066968961E-2},{"$f":"'Population at Risk'!AE166/'Population at Risk'!AE$5","v":1.1639105308011375E-2},{"$f":"'Population at Risk'!AF166/'Population at Risk'!AF$5","v":5.0257479447494181E-3},{"$f":"'Population at Risk'!AG166/'Population at Risk'!AG$5","v":1.1639105308011375E-2},{"$f":"'Population at Risk'!AH166/'Population at Risk'!AH$5","v":5.2528112543983345E-3},{"$f":"'Population at Risk'!AI166/'Population at Risk'!AI$5","v":4.9564258603512325E-3},{"$f":"'Population at Risk'!AJ166/'Population at Risk'!AJ$5","v":6.932155850621703E-3},{"$f":"'Population at Risk'!AK166/'Population at Risk'!AK$5","v":9.9833010745756564E-3},{"$f":"'Population at Risk'!AL166/'Population at Risk'!AL$5","v":4.1430743149606809E-3},{"$f":"'Population at Risk'!AM166/'Population at Risk'!AM$5","v":4.4875386300309034E-3},{"$f":"'Population at Risk'!AN166/'Population at Risk'!AN$5","v":1.3544077658536196E-2},{"$f":"'Population at Risk'!AO166/'Population at Risk'!AO$5","v":1.3544077658536196E-2},{"$f":"'Population at Risk'!AP166/'Population at Risk'!AP$5","v":8.6780957983990416E-3},{"$f":"'Population at Risk'!AQ166/'Population at Risk'!AQ$5","v":5.1697265322344756E-3},{"$f":"'Population at Risk'!AR166/'Population at Risk'!AR$5","v":6.03513870965531E-3},{"$f":"'Population at Risk'!AS166/'Population at Risk'!AS$5","v":1.25627002946271E-2},{"$f":"'Population at Risk'!AT166/'Population at Risk'!AT$5","v":1.1813124707983697E-2},{"$f":"'Population at Risk'!AU166/'Population at Risk'!AU$5","v":1.1813124707983697E-2},{"$f":"'Population at Risk'!AV166/'Population at Risk'!AV$5","v":6.1971816326477792E-3},{"$f":"'Population at Risk'!AW166/'Population at Risk'!AW$5","v":6.1259529449108176E-3},{"$f":"'Population at Risk'!AX166/'Population at Risk'!AX$5","v":5.1203855249786767E-3},{"$f":"'Population at Risk'!AY166/'Population at Risk'!AY$5","v":7.0956188136564813E-3},{"$f":"'Population at Risk'!AZ166/'Population at Risk'!AZ$5","v":7.2945845258704112E-3},{"$f":"'Population at Risk'!BA166/'Population at Risk'!BA$5","v":4.4282534659645222E-3},{"$f":"'Population at Risk'!BB166/'Population at Risk'!BB$5","v":6.7403051072198218E-3},{"$f":"'Population at Risk'!BC166/'Population at Risk'!BC$5","v":2.2133175654868588E-2},164]
[null,"Male 60-64",{"$f":"'Population at Risk'!C167/'Population at Risk'!C$5","v":3.4640501296121363E-3},{"$f":"'Population at Risk'!D167/'Population at Risk'!D$5","v":5.2549927208491339E-3},{"$f":"'Population at Risk'!E167/'Population at Risk'!E$5","v":7.05278663674078E-3},{"$f":"'Population at Risk'!F167/'Population at Risk'!F$5","v":1.0082905871786292E-2},{"$f":"'Population at Risk'!G167/'Population at Risk'!G$5","v":1.4068930181904211E-2},{"$f":"'Population at Risk'!H167/'Population at Risk'!H$5","v":4.7244462526928755E-3},{"$f":"'Population at Risk'!I167/'Population at Risk'!I$5","v":1.1084735554082735E-2},{"$f":"'Population at Risk'!J167/'Population at Risk'!J$5","v":4.8225918592213843E-3},{"$f":"'Population at Risk'!K167/'Population at Risk'!K$5","v":5.021883607601617E-3},{"$f":"'Population at Risk'!L167/'Population at Risk'!L$5","v":1.1790901590641103E-2},{"$f":"'Population at Risk'!M167/'Population at Risk'!M$5","v":1.1790901590641103E-2},{"$f":"'Population at Risk'!N167/'Population at Risk'!N$5","v":2.6537087856912346E-3},{"$f":"'Population at Risk'!O167/'Population at Risk'!O$5","v":4.4426634426767402E-3},{"$f":"'Population at Risk'!P167/'Population at Risk'!P$5","v":2.0569808761498596E-3},{"$f":"'Population at Risk'!Q167/'Population at Risk'!Q$5","v":6.7746738539124322E-3},{"$f":"'Population at Risk'!R167/'Population at Risk'!R$5","v":3.5246256376866426E-3},{"$f":"'Population at Risk'!S167/'Population at Risk'!S$5","v":5.200922887498914E-3},{"$f":"'Population at Risk'!T167/'Population at Risk'!T$5","v":2.7845525082061695E-3},{"$f":"'Population at Risk'!U167/'Population at Risk'!U$5","v":2.1321521822673124E-2},{"$f":"'Population at Risk'!V167/'Population at Risk'!V$5","v":4.6976952615855145E-3},{"$f":"'Population at Risk'!W167/'Population at Risk'!W$5","v":5.7524459732905134E-3},{"$f":"'Population at Risk'!X167/'Population at Risk'!X$5","v":5.7524459732905134E-3},{"$f":"'Population at Risk'!Y167/'Population at Risk'!Y$5","v":4.7566745830544379E-3},{"$f":"'Population at Risk'!Z167/'Population at Risk'!Z$5","v":2.2914854579469237E-3},{"$f":"'Population at Risk'!AA167/'Population at Risk'!AA$5","v":3.4519710785039181E-3},{"$f":"'Population at Risk'!AB167/'Population at Risk'!AB$5","v":5.8173176911269012E-3},{"$f":"'Population at Risk'!AC167/'Population at Risk'!AC$5","v":2.8512760423929228E-3},{"$f":"'Population at Risk'!AD167/'Population at Risk'!AD$5","v":1.1859406259808948E-2},{"$f":"'Population at Risk'!AE167/'Population at Risk'!AE$5","v":1.1015371656520371E-2},{"$f":"'Population at Risk'!AF167/'Population at Risk'!AF$5","v":3.7668521777671766E-3},{"$f":"'Population at Risk'!AG167/'Population at Risk'!AG$5","v":1.1015371656520371E-2},{"$f":"'Population at Risk'!AH167/'Population at Risk'!AH$5","v":4.5449591090843955E-3},{"$f":"'Population at Risk'!AI167/'Population at Risk'!AI$5","v":4.211451193512651E-3},{"$f":"'Population at Risk'!AJ167/'Population at Risk'!AJ$5","v":6.5915585978454927E-3},{"$f":"'Population at Risk'!AK167/'Population at Risk'!AK$5","v":8.6757169421468276E-3},{"$f":"'Population at Risk'!AL167/'Population at Risk'!AL$5","v":3.6782695787947323E-3},{"$f":"'Population at Risk'!AM167/'Population at Risk'!AM$5","v":3.8280879298387641E-3},{"$f":"'Population at Risk'!AN167/'Population at Risk'!AN$5","v":1.0817382156322639E-2},{"$f":"'Population at Risk'!AO167/'Population at Risk'!AO$5","v":1.0817382156322639E-2},{"$f":"'Population at Risk'!AP167/'Population at Risk'!AP$5","v":8.1865118219036272E-3},{"$f":"'Population at Risk'!AQ167/'Population at Risk'!AQ$5","v":4.1603091253930727E-3},{"$f":"'Population at Risk'!AR167/'Population at Risk'!AR$5","v":5.344260398985487E-3},{"$f":"'Population at Risk'!AS167/'Population at Risk'!AS$5","v":1.1084735554082735E-2},{"$f":"'Population at Risk'!AT167/'Population at Risk'!AT$5","v":1.1638115453050605E-2},{"$f":"'Population at Risk'!AU167/'Population at Risk'!AU$5","v":1.1638115453050605E-2},{"$f":"'Population at Risk'!AV167/'Population at Risk'!AV$5","v":6.4408054806142766E-3},{"$f":"'Population at Risk'!AW167/'Population at Risk'!AW$5","v":5.3628769247694875E-3},{"$f":"'Population at Risk'!AX167/'Population at Risk'!AX$5","v":4.7003538998827699E-3},{"$f":"'Population at Risk'!AY167/'Population at Risk'!AY$5","v":6.1205623406913098E-3},{"$f":"'Population at Risk'!AZ167/'Population at Risk'!AZ$5","v":6.4547192285749656E-3},{"$f":"'Population at Risk'!BA167/'Population at Risk'!BA$5","v":3.8978732979877829E-3},{"$f":"'Population at Risk'!BB167/'Population at Risk'!BB$5","v":5.507202642269257E-3},{"$f":"'Population at Risk'!BC167/'Population at Risk'!BC$5","v":2.1321521822673124E-2},165]
[null,"Male 65-69",{"$f":"'Population at Risk'!C168/'Population at Risk'!C$5","v":3.2684331811163917E-3},{"$f":"'Population at Risk'!D168/'Population at Risk'!D$5","v":5.3080734554031657E-3},{"$f":"'Population at Risk'!E168/'Population at Risk'!E$5","v":7.3555164575753607E-3},{"$f":"'Population at Risk'!F168/'Population at Risk'!F$5","v":1.1760714253317608E-2},{"$f":"'Population at Risk'!G168/'Population at Risk'!G$5","v":1.6112519310516573E-2},{"$f":"'Population at Risk'!H168/'Population at Risk'!H$5","v":5.0580135238797739E-3},{"$f":"'Population at Risk'!I168/'Population at Risk'!I$5","v":1.2004358059310341E-2},{"$f":"'Population at Risk'!J168/'Population at Risk'!J$5","v":4.9403672388167652E-3},{"$f":"'Population at Risk'!K168/'Population at Risk'!K$5","v":5.3153703119419712E-3},{"$f":"'Population at Risk'!L168/'Population at Risk'!L$5","v":1.2670301513004916E-2},{"$f":"'Population at Risk'!M168/'Population at Risk'!M$5","v":1.2670301513004916E-2},{"$f":"'Population at Risk'!N168/'Population at Risk'!N$5","v":2.6696310384053822E-3},{"$f":"'Population at Risk'!O168/'Population at Risk'!O$5","v":4.6321299718497192E-3},{"$f":"'Population at Risk'!P168/'Population at Risk'!P$5","v":2.2384791887513178E-3},{"$f":"'Population at Risk'!Q168/'Population at Risk'!Q$5","v":6.3346409107625044E-3},{"$f":"'Population at Risk'!R168/'Population at Risk'!R$5","v":3.1078624710682893E-3},{"$f":"'Population at Risk'!S168/'Population at Risk'!S$5","v":5.223526924080144E-3},{"$f":"'Population at Risk'!T168/'Population at Risk'!T$5","v":2.5104823794457197E-3},{"$f":"'Population at Risk'!U168/'Population at Risk'!U$5","v":2.3194569127739578E-2},{"$f":"'Population at Risk'!V168/'Population at Risk'!V$5","v":5.0526568870181863E-3},{"$f":"'Population at Risk'!W168/'Population at Risk'!W$5","v":6.1381509069171492E-3},{"$f":"'Population at Risk'!X168/'Population at Risk'!X$5","v":6.1381509069171492E-3},{"$f":"'Population at Risk'!Y168/'Population at Risk'!Y$5","v":4.9996308848350652E-3},{"$f":"'Population at Risk'!Z168/'Population at Risk'!Z$5","v":1.8177933736168101E-3},{"$f":"'Population at Risk'!AA168/'Population at Risk'!AA$5","v":3.1222437514150676E-3},{"$f":"'Population at Risk'!AB168/'Population at Risk'!AB$5","v":5.9179692288912665E-3},{"$f":"'Population at Risk'!AC168/'Population at Risk'!AC$5","v":2.5286839174909134E-3},{"$f":"'Population at Risk'!AD168/'Population at Risk'!AD$5","v":1.2299379445608466E-2},{"$f":"'Population at Risk'!AE168/'Population at Risk'!AE$5","v":1.0842766117742987E-2},{"$f":"'Population at Risk'!AF168/'Population at Risk'!AF$5","v":3.5209740982784571E-3},{"$f":"'Population at Risk'!AG168/'Population at Risk'!AG$5","v":1.0842766117742987E-2},{"$f":"'Population at Risk'!AH168/'Population at Risk'!AH$5","v":4.2022490035186679E-3},{"$f":"'Population at Risk'!AI168/'Population at Risk'!AI$5","v":3.9603478442705557E-3},{"$f":"'Population at Risk'!AJ168/'Population at Risk'!AJ$5","v":6.6316288628779875E-3},{"$f":"'Population at Risk'!AK168/'Population at Risk'!AK$5","v":9.0181794530210455E-3},{"$f":"'Population at Risk'!AL168/'Population at Risk'!AL$5","v":4.3783458480817173E-3},{"$f":"'Population at Risk'!AM168/'Population at Risk'!AM$5","v":3.8561496617618343E-3},{"$f":"'Population at Risk'!AN168/'Population at Risk'!AN$5","v":1.0459782746196271E-2},{"$f":"'Population at Risk'!AO168/'Population at Risk'!AO$5","v":1.0459782746196271E-2},{"$f":"'Population at Risk'!AP168/'Population at Risk'!AP$5","v":7.9177792480861348E-3},{"$f":"'Population at Risk'!AQ168/'Population at Risk'!AQ$5","v":4.3301176611234022E-3},{"$f":"'Population at Risk'!AR168/'Population at Risk'!AR$5","v":5.3641926722574869E-3},{"$f":"'Population at Risk'!AS168/'Population at Risk'!AS$5","v":1.2004358059310341E-2},{"$f":"'Population at Risk'!AT168/'Population at Risk'!AT$5","v":1.2119390904116607E-2},{"$f":"'Population at Risk'!AU168/'Population at Risk'!AU$5","v":1.2119390904116607E-2},{"$f":"'Population at Risk'!AV168/'Population at Risk'!AV$5","v":6.4560319711121821E-3},{"$f":"'Population at Risk'!AW168/'Population at Risk'!AW$5","v":4.597132806655635E-3},{"$f":"'Population at Risk'!AX168/'Population at Risk'!AX$5","v":4.7103546528612442E-3},{"$f":"'Population at Risk'!AY168/'Population at Risk'!AY$5","v":6.4966233822275309E-3},{"$f":"'Population at Risk'!AZ168/'Population at Risk'!AZ$5","v":6.8220260465737398E-3},{"$f":"'Population at Risk'!BA168/'Population at Risk'!BA$5","v":3.3506556643609887E-3},{"$f":"'Population at Risk'!BB168/'Population at Risk'!BB$5","v":5.2763029775175574E-3},{"$f":"'Population at Risk'!BC168/'Population at Risk'!BC$5","v":2.3194569127739578E-2},166]
[null,"Male 70-74",{"$f":"'Population at Risk'!C169/'Population at Risk'!C$5","v":2.0213751344560229E-3},{"$f":"'Population at Risk'!D169/'Population at Risk'!D$5","v":3.6135730831013861E-3},{"$f":"'Population at Risk'!E169/'Population at Risk'!E$5","v":5.2118620505845438E-3},{"$f":"'Population at Risk'!F169/'Population at Risk'!F$5","v":7.682596273327613E-3},{"$f":"'Population at Risk'!G169/'Population at Risk'!G$5","v":1.1635107953355818E-2},{"$f":"'Population at Risk'!H169/'Population at Risk'!H$5","v":3.8392938860139147E-3},{"$f":"'Population at Risk'!I169/'Population at Risk'!I$5","v":8.8595775280409413E-3},{"$f":"'Population at Risk'!J169/'Population at Risk'!J$5","v":3.5394600920506561E-3},{"$f":"'Population at Risk'!K169/'Population at Risk'!K$5","v":4.0598994100415672E-3},{"$f":"'Population at Risk'!L169/'Population at Risk'!L$5","v":1.0153597787819008E-2},{"$f":"'Population at Risk'!M169/'Population at Risk'!M$5","v":1.0153597787819008E-2},{"$f":"'Population at Risk'!N169/'Population at Risk'!N$5","v":1.8788258202693943E-3},{"$f":"'Population at Risk'!O169/'Population at Risk'!O$5","v":3.5606640827335642E-3},{"$f":"'Population at Risk'!P169/'Population at Risk'!P$5","v":1.2402384694432979E-3},{"$f":"'Population at Risk'!Q169/'Population at Risk'!Q$5","v":4.8220276686846263E-3},{"$f":"'Population at Risk'!R169/'Population at Risk'!R$5","v":2.5839316330337888E-3},{"$f":"'Population at Risk'!S169/'Population at Risk'!S$5","v":3.7203584914283425E-3},{"$f":"'Population at Risk'!T169/'Population at Risk'!T$5","v":1.4891143662651104E-3},{"$f":"'Population at Risk'!U169/'Population at Risk'!U$5","v":1.6732555925260312E-2},{"$f":"'Population at Risk'!V169/'Population at Risk'!V$5","v":3.8102911980038355E-3},{"$f":"'Population at Risk'!W169/'Population at Risk'!W$5","v":4.4959470790834951E-3},{"$f":"'Population at Risk'!X169/'Population at Risk'!X$5","v":4.4959470790834951E-3},{"$f":"'Population at Risk'!Y169/'Population at Risk'!Y$5","v":3.6823979233738357E-3},{"$f":"'Population at Risk'!Z169/'Population at Risk'!Z$5","v":1.2896266995887336E-3},{"$f":"'Population at Risk'!AA169/'Population at Risk'!AA$5","v":2.2912955276522804E-3},{"$f":"'Population at Risk'!AB169/'Population at Risk'!AB$5","v":4.1079475073998763E-3},{"$f":"'Population at Risk'!AC169/'Population at Risk'!AC$5","v":1.8581580357943791E-3},{"$f":"'Population at Risk'!AD169/'Population at Risk'!AD$5","v":9.2394369017898825E-3},{"$f":"'Population at Risk'!AE169/'Population at Risk'!AE$5","v":8.3242943928547829E-3},{"$f":"'Population at Risk'!AF169/'Population at Risk'!AF$5","v":2.9603720770441776E-3},{"$f":"'Population at Risk'!AG169/'Population at Risk'!AG$5","v":8.3242943928547829E-3},{"$f":"'Population at Risk'!AH169/'Population at Risk'!AH$5","v":3.0794060758287749E-3},{"$f":"'Population at Risk'!AI169/'Population at Risk'!AI$5","v":2.7267114728903039E-3},{"$f":"'Population at Risk'!AJ169/'Population at Risk'!AJ$5","v":4.7082561413182089E-3},{"$f":"'Population at Risk'!AK169/'Population at Risk'!AK$5","v":6.6209418769015262E-3},{"$f":"'Population at Risk'!AL169/'Population at Risk'!AL$5","v":3.2938014636945028E-3},{"$f":"'Population at Risk'!AM169/'Population at Risk'!AM$5","v":2.7126340858967418E-3},{"$f":"'Population at Risk'!AN169/'Population at Risk'!AN$5","v":8.7164856218302257E-3},{"$f":"'Population at Risk'!AO169/'Population at Risk'!AO$5","v":8.7164856218302257E-3},{"$f":"'Population at Risk'!AP169/'Population at Risk'!AP$5","v":6.3578194293406878E-3},{"$f":"'Population at Risk'!AQ169/'Population at Risk'!AQ$5","v":3.2027776600248256E-3},{"$f":"'Population at Risk'!AR169/'Population at Risk'!AR$5","v":3.9279437876984201E-3},{"$f":"'Population at Risk'!AS169/'Population at Risk'!AS$5","v":8.8595775280409413E-3},{"$f":"'Population at Risk'!AT169/'Population at Risk'!AT$5","v":9.0567289427875008E-3},{"$f":"'Population at Risk'!AU169/'Population at Risk'!AU$5","v":9.0567289427875008E-3},{"$f":"'Population at Risk'!AV169/'Population at Risk'!AV$5","v":4.8877034498278548E-3},{"$f":"'Population at Risk'!AW169/'Population at Risk'!AW$5","v":3.4978764419765162E-3},{"$f":"'Population at Risk'!AX169/'Population at Risk'!AX$5","v":3.2202424590686207E-3},{"$f":"'Population at Risk'!AY169/'Population at Risk'!AY$5","v":4.7075186067752697E-3},{"$f":"'Population at Risk'!AZ169/'Population at Risk'!AZ$5","v":4.8995722330713795E-3},{"$f":"'Population at Risk'!BA169/'Population at Risk'!BA$5","v":2.5592947788083929E-3},{"$f":"'Population at Risk'!BB169/'Population at Risk'!BB$5","v":3.9596836125504204E-3},{"$f":"'Population at Risk'!BC169/'Population at Risk'!BC$5","v":1.6732555925260312E-2},167]
[null,"Male 75-79",{"$f":"'Population at Risk'!C170/'Population at Risk'!C$5","v":1.8298335390539403E-3},{"$f":"'Population at Risk'!D170/'Population at Risk'!D$5","v":2.7132421623964646E-3},{"$f":"'Population at Risk'!E170/'Population at Risk'!E$5","v":3.6000303018166391E-3},{"$f":"'Population at Risk'!F170/'Population at Risk'!F$5","v":5.7398707789229281E-3},{"$f":"'Population at Risk'!G170/'Population at Risk'!G$5","v":8.739167580146338E-3},{"$f":"'Population at Risk'!H170/'Population at Risk'!H$5","v":2.8385920724532179E-3},{"$f":"'Population at Risk'!I170/'Population at Risk'!I$5","v":6.5605212649719304E-3},{"$f":"'Population at Risk'!J170/'Population at Risk'!J$5","v":2.4794816756922283E-3},{"$f":"'Population at Risk'!K170/'Population at Risk'!K$5","v":2.6902947897865805E-3},{"$f":"'Population at Risk'!L170/'Population at Risk'!L$5","v":7.6195374852180246E-3},{"$f":"'Population at Risk'!M170/'Population at Risk'!M$5","v":7.6195374852180246E-3},{"$f":"'Population at Risk'!N170/'Population at Risk'!N$5","v":1.6346846119858005E-3},{"$f":"'Population at Risk'!O170/'Population at Risk'!O$5","v":2.6590647370138732E-3},{"$f":"'Population at Risk'!P170/'Population at Risk'!P$5","v":6.8566029204995317E-4},{"$f":"'Population at Risk'!Q170/'Population at Risk'!Q$5","v":3.1994061908192672E-3},{"$f":"'Population at Risk'!R170/'Population at Risk'!R$5","v":2.048093275953049E-3},{"$f":"'Population at Risk'!S170/'Population at Risk'!S$5","v":2.7650055335687053E-3},{"$f":"'Population at Risk'!T170/'Population at Risk'!T$5","v":1.1894643588203518E-3},{"$f":"'Population at Risk'!U170/'Population at Risk'!U$5","v":1.2892808949874086E-2},{"$f":"'Population at Risk'!V170/'Population at Risk'!V$5","v":2.706582393924122E-3},{"$f":"'Population at Risk'!W170/'Population at Risk'!W$5","v":3.4027220524852973E-3},{"$f":"'Population at Risk'!X170/'Population at Risk'!X$5","v":3.4027220524852973E-3},{"$f":"'Population at Risk'!Y170/'Population at Risk'!Y$5","v":2.5993397106168254E-3},{"$f":"'Population at Risk'!Z170/'Population at Risk'!Z$5","v":9.1896264360041998E-4},{"$f":"'Population at Risk'!AA170/'Population at Risk'!AA$5","v":1.688416071688216E-3},{"$f":"'Population at Risk'!AB170/'Population at Risk'!AB$5","v":3.2293789997956666E-3},{"$f":"'Population at Risk'!AC170/'Population at Risk'!AC$5","v":1.2985874072488548E-3},{"$f":"'Population at Risk'!AD170/'Population at Risk'!AD$5","v":6.508764613150292E-3},{"$f":"'Population at Risk'!AE170/'Population at Risk'!AE$5","v":5.6567542481133822E-3},{"$f":"'Population at Risk'!AF170/'Population at Risk'!AF$5","v":2.1047163604234354E-3},{"$f":"'Population at Risk'!AG170/'Population at Risk'!AG$5","v":5.6567542481133822E-3},{"$f":"'Population at Risk'!AH170/'Population at Risk'!AH$5","v":2.3977245203943998E-3},{"$f":"'Population at Risk'!AI170/'Population at Risk'!AI$5","v":2.0025752582709835E-3},{"$f":"'Population at Risk'!AJ170/'Population at Risk'!AJ$5","v":3.4460427927946041E-3},{"$f":"'Population at Risk'!AK170/'Population at Risk'!AK$5","v":5.8529956403957075E-3},{"$f":"'Population at Risk'!AL170/'Population at Risk'!AL$5","v":2.461743602656693E-3},{"$f":"'Population at Risk'!AM170/'Population at Risk'!AM$5","v":1.978352100576417E-3},{"$f":"'Population at Risk'!AN170/'Population at Risk'!AN$5","v":6.2579896772114443E-3},{"$f":"'Population at Risk'!AO170/'Population at Risk'!AO$5","v":6.2579896772114443E-3},{"$f":"'Population at Risk'!AP170/'Population at Risk'!AP$5","v":4.8634041407946294E-3},{"$f":"'Population at Risk'!AQ170/'Population at Risk'!AQ$5","v":2.2593969059674398E-3},{"$f":"'Population at Risk'!AR170/'Population at Risk'!AR$5","v":2.9168631515622654E-3},{"$f":"'Population at Risk'!AS170/'Population at Risk'!AS$5","v":6.5605212649719304E-3},{"$f":"'Population at Risk'!AT170/'Population at Risk'!AT$5","v":6.8253609423905804E-3},{"$f":"'Population at Risk'!AU170/'Population at Risk'!AU$5","v":6.8253609423905804E-3},{"$f":"'Population at Risk'!AV170/'Population at Risk'!AV$5","v":3.5477722860121192E-3},{"$f":"'Population at Risk'!AW170/'Population at Risk'!AW$5","v":2.8762096143788592E-3},{"$f":"'Population at Risk'!AX170/'Population at Risk'!AX$5","v":2.3501769499413849E-3},{"$f":"'Population at Risk'!AY170/'Population at Risk'!AY$5","v":3.606357832456635E-3},{"$f":"'Population at Risk'!AZ170/'Population at Risk'!AZ$5","v":3.7912077998119181E-3},{"$f":"'Population at Risk'!BA170/'Population at Risk'!BA$5","v":1.5743030382801629E-3},{"$f":"'Population at Risk'!BB170/'Population at Risk'!BB$5","v":2.8395746005634528E-3},{"$f":"'Population at Risk'!BC170/'Population at Risk'!BC$5","v":1.2892808949874086E-2},168]
[null,"Male 80-84",{"$f":"'Population at Risk'!C171/'Population at Risk'!C$5","v":1.2918869306906436E-3},{"$f":"'Population at Risk'!D171/'Population at Risk'!D$5","v":1.8700751096728076E-3},{"$f":"'Population at Risk'!E171/'Population at Risk'!E$5","v":2.4504751713501894E-3},{"$f":"'Population at Risk'!F171/'Population at Risk'!F$5","v":3.7730619106206664E-3},{"$f":"'Population at Risk'!G171/'Population at Risk'!G$5","v":5.2168003886184956E-3},{"$f":"'Population at Risk'!H171/'Population at Risk'!H$5","v":1.7506831291704561E-3},{"$f":"'Population at Risk'!I171/'Population at Risk'!I$5","v":4.2860977475786578E-3},{"$f":"'Population at Risk'!J171/'Population at Risk'!J$5","v":1.7542332855522516E-3},{"$f":"'Population at Risk'!K171/'Population at Risk'!K$5","v":1.7120057753187332E-3},{"$f":"'Population at Risk'!L171/'Population at Risk'!L$5","v":5.1606890180823668E-3},{"$f":"'Population at Risk'!M171/'Population at Risk'!M$5","v":5.1606890180823668E-3},{"$f":"'Population at Risk'!N171/'Population at Risk'!N$5","v":1.1145576899903187E-3},{"$f":"'Population at Risk'!O171/'Population at Risk'!O$5","v":1.6921321053724643E-3},{"$f":"'Population at Risk'!P171/'Population at Risk'!P$5","v":6.9574353163892317E-4},{"$f":"'Population at Risk'!Q171/'Population at Risk'!Q$5","v":2.511854717147505E-3},{"$f":"'Population at Risk'!R171/'Population at Risk'!R$5","v":1.5360699569647869E-3},{"$f":"'Population at Risk'!S171/'Population at Risk'!S$5","v":1.8807888084794104E-3},{"$f":"'Population at Risk'!T171/'Population at Risk'!T$5","v":9.9578813449630065E-4},{"$f":"'Population at Risk'!U171/'Population at Risk'!U$5","v":7.6482764956880165E-3},{"$f":"'Population at Risk'!V171/'Population at Risk'!V$5","v":1.6084198652417936E-3},{"$f":"'Population at Risk'!W171/'Population at Risk'!W$5","v":2.1533220220873576E-3},{"$f":"'Population at Risk'!X171/'Population at Risk'!X$5","v":2.1533220220873576E-3},{"$f":"'Population at Risk'!Y171/'Population at Risk'!Y$5","v":1.6772766375939652E-3},{"$f":"'Population at Risk'!Z171/'Population at Risk'!Z$5","v":6.3356316279152664E-4},{"$f":"'Population at Risk'!AA171/'Population at Risk'!AA$5","v":1.1465317512982284E-3},{"$f":"'Population at Risk'!AB171/'Population at Risk'!AB$5","v":2.1017405851813322E-3},{"$f":"'Population at Risk'!AC171/'Population at Risk'!AC$5","v":9.40380015903311E-4},{"$f":"'Population at Risk'!AD171/'Population at Risk'!AD$5","v":4.3174142942004334E-3},{"$f":"'Population at Risk'!AE171/'Population at Risk'!AE$5","v":3.9738502450338805E-3},{"$f":"'Population at Risk'!AF171/'Population at Risk'!AF$5","v":1.3867523683163757E-3},{"$f":"'Population at Risk'!AG171/'Population at Risk'!AG$5","v":3.9738502450338805E-3},{"$f":"'Population at Risk'!AH171/'Population at Risk'!AH$5","v":1.5216328687118307E-3},{"$f":"'Population at Risk'!AI171/'Population at Risk'!AI$5","v":1.455565887515382E-3},{"$f":"'Population at Risk'!AJ171/'Population at Risk'!AJ$5","v":2.233917275561618E-3},{"$f":"'Population at Risk'!AK171/'Population at Risk'!AK$5","v":3.2793379829167439E-3},{"$f":"'Population at Risk'!AL171/'Population at Risk'!AL$5","v":1.5723024408576547E-3},{"$f":"'Population at Risk'!AM171/'Population at Risk'!AM$5","v":1.19496208439072E-3},{"$f":"'Population at Risk'!AN171/'Population at Risk'!AN$5","v":4.693492257908583E-3},{"$f":"'Population at Risk'!AO171/'Population at Risk'!AO$5","v":4.693492257908583E-3},{"$f":"'Population at Risk'!AP171/'Population at Risk'!AP$5","v":3.4673056475476535E-3},{"$f":"'Population at Risk'!AQ171/'Population at Risk'!AQ$5","v":1.5801627630461217E-3},{"$f":"'Population at Risk'!AR171/'Population at Risk'!AR$5","v":1.9443611088557898E-3},{"$f":"'Population at Risk'!AS171/'Population at Risk'!AS$5","v":4.2860977475786578E-3},{"$f":"'Population at Risk'!AT171/'Population at Risk'!AT$5","v":4.0689651771943849E-3},{"$f":"'Population at Risk'!AU171/'Population at Risk'!AU$5","v":4.0689651771943849E-3},{"$f":"'Population at Risk'!AV171/'Population at Risk'!AV$5","v":2.0555762172173222E-3},{"$f":"'Population at Risk'!AW171/'Population at Risk'!AW$5","v":1.8943495604907144E-3},{"$f":"'Population at Risk'!AX171/'Population at Risk'!AX$5","v":1.7801340301683683E-3},{"$f":"'Population at Risk'!AY171/'Population at Risk'!AY$5","v":2.3858483443570432E-3},{"$f":"'Population at Risk'!AZ171/'Population at Risk'!AZ$5","v":2.5969236430439715E-3},{"$f":"'Population at Risk'!BA171/'Population at Risk'!BA$5","v":1.3806721833045279E-3},{"$f":"'Population at Risk'!BB171/'Population at Risk'!BB$5","v":1.7440293826990062E-3},{"$f":"'Population at Risk'!BC171/'Population at Risk'!BC$5","v":7.6482764956880165E-3},169]
[null,"Male 85-89",{"$f":"'Population at Risk'!C172/'Population at Risk'!C$5","v":6.4390578879849121E-4},{"$f":"'Population at Risk'!D172/'Population at Risk'!D$5","v":8.513333195781232E-4},{"$f":"'Population at Risk'!E172/'Population at Risk'!E$5","v":1.0595543729210336E-3},{"$f":"'Population at Risk'!F172/'Population at Risk'!F$5","v":2.1434202768845063E-3},{"$f":"'Population at Risk'!G172/'Population at Risk'!G$5","v":2.5159765653770304E-3},{"$f":"'Population at Risk'!H172/'Population at Risk'!H$5","v":8.1538666290130837E-4},{"$f":"'Population at Risk'!I172/'Population at Risk'!I$5","v":2.1266270433388358E-3},{"$f":"'Population at Risk'!J172/'Population at Risk'!J$5","v":7.6863931946459074E-4},{"$f":"'Population at Risk'!K172/'Population at Risk'!K$5","v":9.130697468366577E-4},{"$f":"'Population at Risk'!L172/'Population at Risk'!L$5","v":2.3894221574753561E-3},{"$f":"'Population at Risk'!M172/'Population at Risk'!M$5","v":2.3894221574753561E-3},{"$f":"'Population at Risk'!N172/'Population at Risk'!N$5","v":7.6426813027907564E-4},{"$f":"'Population at Risk'!O172/'Population at Risk'!O$5","v":6.925328307701978E-4},{"$f":"'Population at Risk'!P172/'Population at Risk'!P$5","v":2.0166479177939799E-4},{"$f":"'Population at Risk'!Q172/'Population at Risk'!Q$5","v":1.2834294175206231E-3},{"$f":"'Population at Risk'!R172/'Population at Risk'!R$5","v":8.4543385228294456E-4},{"$f":"'Population at Risk'!S172/'Population at Risk'!S$5","v":9.393971673317097E-4},{"$f":"'Population at Risk'!T172/'Population at Risk'!T$5","v":4.5312927955061018E-4},{"$f":"'Population at Risk'!U172/'Population at Risk'!U$5","v":4.6514008075816916E-3},{"$f":"'Population at Risk'!V172/'Population at Risk'!V$5","v":6.9328442467318687E-4},{"$f":"'Population at Risk'!W172/'Population at Risk'!W$5","v":1.1050564662799958E-3},{"$f":"'Population at Risk'!X172/'Population at Risk'!X$5","v":1.1050564662799958E-3},{"$f":"'Population at Risk'!Y172/'Population at Risk'!Y$5","v":7.2886890534188005E-4},{"$f":"'Population at Risk'!Z172/'Population at Risk'!Z$5","v":2.8066255996559222E-4},{"$f":"'Population at Risk'!AA172/'Population at Risk'!AA$5","v":5.6000606356779311E-4},{"$f":"'Population at Risk'!AB172/'Population at Risk'!AB$5","v":1.0355166681859324E-3},{"$f":"'Population at Risk'!AC172/'Population at Risk'!AC$5","v":4.7532682522716523E-4},{"$f":"'Population at Risk'!AD172/'Population at Risk'!AD$5","v":2.1005171451073772E-3},{"$f":"'Population at Risk'!AE172/'Population at Risk'!AE$5","v":1.9418123112455784E-3},{"$f":"'Population at Risk'!AF172/'Population at Risk'!AF$5","v":8.7532596297984001E-4},{"$f":"'Population at Risk'!AG172/'Population at Risk'!AG$5","v":1.9418123112455784E-3},{"$f":"'Population at Risk'!AH172/'Population at Risk'!AH$5","v":7.1408323814240707E-4},{"$f":"'Population at Risk'!AI172/'Population at Risk'!AI$5","v":7.1580083373161592E-4},{"$f":"'Population at Risk'!AJ172/'Population at Risk'!AJ$5","v":1.2121255172329857E-3},{"$f":"'Population at Risk'!AK172/'Population at Risk'!AK$5","v":1.9717538504879155E-3},{"$f":"'Population at Risk'!AL172/'Population at Risk'!AL$5","v":6.7138461890637073E-4},{"$f":"'Population at Risk'!AM172/'Population at Risk'!AM$5","v":5.7058854910241818E-4},{"$f":"'Population at Risk'!AN172/'Population at Risk'!AN$5","v":2.3690960920871892E-3},{"$f":"'Population at Risk'!AO172/'Population at Risk'!AO$5","v":2.3690960920871892E-3},{"$f":"'Population at Risk'!AP172/'Population at Risk'!AP$5","v":1.874573563702512E-3},{"$f":"'Population at Risk'!AQ172/'Population at Risk'!AQ$5","v":9.8111598421968152E-4},{"$f":"'Population at Risk'!AR172/'Population at Risk'!AR$5","v":9.6751897438847551E-4},{"$f":"'Population at Risk'!AS172/'Population at Risk'!AS$5","v":2.1266270433388358E-3},{"$f":"'Population at Risk'!AT172/'Population at Risk'!AT$5","v":2.4938818827965584E-3},{"$f":"'Population at Risk'!AU172/'Population at Risk'!AU$5","v":2.4938818827965584E-3},{"$f":"'Population at Risk'!AV172/'Population at Risk'!AV$5","v":1.1496000325919098E-3},{"$f":"'Population at Risk'!AW172/'Population at Risk'!AW$5","v":8.7780423295978182E-4},{"$f":"'Population at Risk'!AX172/'Population at Risk'!AX$5","v":6.800512025362305E-4},{"$f":"'Population at Risk'!AY172/'Population at Risk'!AY$5","v":1.3105839890663513E-3},{"$f":"'Population at Risk'!AZ172/'Population at Risk'!AZ$5","v":1.497151182135358E-3},{"$f":"'Population at Risk'!BA172/'Population at Risk'!BA$5","v":5.8089256492690501E-4},{"$f":"'Population at Risk'!BB172/'Population at Risk'!BB$5","v":8.7447107076175533E-4},{"$f":"'Population at Risk'!BC172/'Population at Risk'!BC$5","v":4.6514008075816916E-3},170]
[null,"Male 90+",{"$f":"'Population at Risk'!C173/'Population at Risk'!C$5","v":2.5674724490066419E-4},{"$f":"'Population at Risk'!D173/'Population at Risk'!D$5","v":3.7973140873268801E-4},{"$f":"'Population at Risk'!E173/'Population at Risk'!E$5","v":5.0318605354937119E-4},{"$f":"'Population at Risk'!F173/'Population at Risk'!F$5","v":9.3925158200557004E-4},{"$f":"'Population at Risk'!G173/'Population at Risk'!G$5","v":1.0371985024615513E-3},{"$f":"'Population at Risk'!H173/'Population at Risk'!H$5","v":3.2484655821469241E-4},{"$f":"'Population at Risk'!I173/'Population at Risk'!I$5","v":7.6361511594792188E-4},{"$f":"'Population at Risk'!J173/'Population at Risk'!J$5","v":3.4712743459691198E-4},{"$f":"'Population at Risk'!K173/'Population at Risk'!K$5","v":4.4023005651053134E-4},{"$f":"'Population at Risk'!L173/'Population at Risk'!L$5","v":1.1571051610050152E-3},{"$f":"'Population at Risk'!M173/'Population at Risk'!M$5","v":1.1571051610050152E-3},{"$f":"'Population at Risk'!N173/'Population at Risk'!N$5","v":2.7598571371188844E-4},{"$f":"'Population at Risk'!O173/'Population at Risk'!O$5","v":2.2866650072600873E-4},{"$f":"'Population at Risk'!P173/'Population at Risk'!P$5","v":1.209988750676388E-4},{"$f":"'Population at Risk'!Q173/'Population at Risk'!Q$5","v":5.4087382595511971E-4},{"$f":"'Population at Risk'!R173/'Population at Risk'!R$5","v":4.1676316661835302E-4},{"$f":"'Population at Risk'!S173/'Population at Risk'!S$5","v":3.8094449885426023E-4},{"$f":"'Population at Risk'!T173/'Population at Risk'!T$5","v":1.9184909013231485E-4},{"$f":"'Population at Risk'!U173/'Population at Risk'!U$5","v":1.8730473050664531E-3},{"$f":"'Population at Risk'!V173/'Population at Risk'!V$5","v":3.5496162543267174E-4},{"$f":"'Population at Risk'!W173/'Population at Risk'!W$5","v":4.6615872346286762E-4},{"$f":"'Population at Risk'!X173/'Population at Risk'!X$5","v":4.6615872346286762E-4},{"$f":"'Population at Risk'!Y173/'Population at Risk'!Y$5","v":3.5126212305632774E-4},{"$f":"'Population at Risk'!Z173/'Population at Risk'!Z$5","v":1.4210762529903403E-4},{"$f":"'Population at Risk'!AA173/'Population at Risk'!AA$5","v":2.6519624162642139E-4},{"$f":"'Population at Risk'!AB173/'Population at Risk'!AB$5","v":4.4354914947008632E-4},{"$f":"'Population at Risk'!AC173/'Population at Risk'!AC$5","v":2.4793704716460203E-4},{"$f":"'Population at Risk'!AD173/'Population at Risk'!AD$5","v":8.1749856458233048E-4},{"$f":"'Population at Risk'!AE173/'Population at Risk'!AE$5","v":7.3357353980388514E-4},{"$f":"'Population at Risk'!AF173/'Population at Risk'!AF$5","v":3.7373468082285298E-4},{"$f":"'Population at Risk'!AG173/'Population at Risk'!AG$5","v":7.3357353980388514E-4},{"$f":"'Population at Risk'!AH173/'Population at Risk'!AH$5","v":2.9660001863506609E-4},{"$f":"'Population at Risk'!AI173/'Population at Risk'!AI$5","v":2.9486409890254337E-4},{"$f":"'Population at Risk'!AJ173/'Population at Risk'!AJ$5","v":3.8066751780870624E-4},{"$f":"'Population at Risk'!AK173/'Population at Risk'!AK$5","v":7.6794623650581974E-4},{"$f":"'Population at Risk'!AL173/'Population at Risk'!AL$5","v":3.3856147449124678E-4},{"$f":"'Population at Risk'!AM173/'Population at Risk'!AM$5","v":2.1046298942302308E-4},{"$f":"'Population at Risk'!AN173/'Population at Risk'!AN$5","v":9.3869845158171665E-4},{"$f":"'Population at Risk'!AO173/'Population at Risk'!AO$5","v":9.3869845158171665E-4},{"$f":"'Population at Risk'!AP173/'Population at Risk'!AP$5","v":8.7174225165186742E-4},{"$f":"'Population at Risk'!AQ173/'Population at Risk'!AQ$5","v":6.2734820144816166E-4},{"$f":"'Population at Risk'!AR173/'Population at Risk'!AR$5","v":4.1680955317981671E-4},{"$f":"'Population at Risk'!AS173/'Population at Risk'!AS$5","v":7.6361511594792188E-4},{"$f":"'Population at Risk'!AT173/'Population at Risk'!AT$5","v":8.7504627466545898E-4},{"$f":"'Population at Risk'!AU173/'Population at Risk'!AU$5","v":8.7504627466545898E-4},{"$f":"'Population at Risk'!AV173/'Population at Risk'!AV$5","v":4.1872848869241753E-4},{"$f":"'Population at Risk'!AW173/'Population at Risk'!AW$5","v":3.948784999332757E-4},{"$f":"'Population at Risk'!AX173/'Population at Risk'!AX$5","v":2.9002183637574536E-4},{"$f":"'Population at Risk'!AY173/'Population at Risk'!AY$5","v":5.6183969978016259E-4},{"$f":"'Population at Risk'!AZ173/'Population at Risk'!AZ$5","v":6.4869391248906477E-4},{"$f":"'Population at Risk'!BA173/'Population at Risk'!BA$5","v":2.0204958780066263E-4},{"$f":"'Population at Risk'!BB173/'Population at Risk'!BB$5","v":3.9793346478484364E-4},{"$f":"'Population at Risk'!BC173/'Population at Risk'!BC$5","v":1.8730473050664531E-3},171]
["SIMD Q4","Female 0-4",{"$f":"'Population at Risk'!C174/'Population at Risk'!C$5","v":0},{"$f":"'Population at Risk'!D174/'Population at Risk'!D$5","v":0},{"$f":"'Population at Risk'!E174/'Population at Risk'!E$5","v":0},{"$f":"'Population at Risk'!F174/'Population at Risk'!F$5","v":0},{"$f":"'Population at Risk'!G174/'Population at Risk'!G$5","v":0},{"$f":"'Population at Risk'!H174/'Population at Risk'!H$5","v":0},{"$f":"'Population at Risk'!I174/'Population at Risk'!I$5","v":0},{"$f":"'Population at Risk'!J174/'Population at Risk'!J$5","v":0},{"$f":"'Population at Risk'!K174/'Population at Risk'!K$5","v":0},{"$f":"'Population at Risk'!L174/'Population at Risk'!L$5","v":0},{"$f":"'Population at Risk'!M174/'Population at Risk'!M$5","v":0},{"$f":"'Population at Risk'!N174/'Population at Risk'!N$5","v":0},{"$f":"'Population at Risk'!O174/'Population at Risk'!O$5","v":0},{"$f":"'Population at Risk'!P174/'Population at Risk'!P$5","v":0},{"$f":"'Population at Risk'!Q174/'Population at Risk'!Q$5","v":0},{"$f":"'Population at Risk'!R174/'Population at Risk'!R$5","v":0},{"$f":"'Population at Risk'!S174/'Population at Risk'!S$5","v":0},{"$f":"'Population at Risk'!T174/'Population at Risk'!T$5","v":0},{"$f":"'Population at Risk'!U174/'Population at Risk'!U$5","v":0},{"$f":"'Population at Risk'!V174/'Population at Risk'!V$5","v":0},{"$f":"'Population at Risk'!W174/'Population at Risk'!W$5","v":0},{"$f":"'Population at Risk'!X174/'Population at Risk'!X$5","v":0},{"$f":"'Population at Risk'!Y174/'Population at Risk'!Y$5","v":0},{"$f":"'Population at Risk'!Z174/'Population at Risk'!Z$5","v":0},{"$f":"'Population at Risk'!AA174/'Population at Risk'!AA$5","v":0},{"$f":"'Population at Risk'!AB174/'Population at Risk'!AB$5","v":0},{"$f":"'Population at Risk'!AC174/'Population at Risk'!AC$5","v":0},{"$f":"'Population at Risk'!AD174/'Population at Risk'!AD$5","v":0},{"$f":"'Population at Risk'!AE174/'Population at Risk'!AE$5","v":0},{"$f":"'Population at Risk'!AF174/'Population at Risk'!AF$5","v":0},{"$f":"'Population at Risk'!AG174/'Population at Risk'!AG$5","v":0},{"$f":"'Population at Risk'!AH174/'Population at Risk'!AH$5","v":0},{"$f":"'Population at Risk'!AI174/'Population at Risk'!AI$5","v":0},{"$f":"'Population at Risk'!AJ174/'Population at Risk'!AJ$5","v":0},{"$f":"'Population at Risk'!AK174/'Population at Risk'!AK$5","v":0},{"$f":"'Population at Risk'!AL174/'Population at Risk'!AL$5","v":0},{"$f":"'Population at Risk'!AM174/'Population at Risk'!AM$5","v":0},{"$f":"'Population at Risk'!AN174/'Population at Risk'!AN$5","v":0},{"$f":"'Population at Risk'!AO174/'Population at Risk'!AO$5","v":0},{"$f":"'Population at Risk'!AP174/'Population at Risk'!AP$5","v":0},{"$f":"'Population at Risk'!AQ174/'Population at Risk'!AQ$5","v":0},{"$f":"'Population at Risk'!AR174/'Population at Risk'!AR$5","v":0},{"$f":"'Population at Risk'!AS174/'Population at Risk'!AS$5","v":0},{"$f":"'Population at Risk'!AT174/'Population at Risk'!AT$5","v":0},{"$f":"'Population at Risk'!AU174/'Population at Risk'!AU$5","v":0},{"$f":"'Population at Risk'!AV174/'Population at Risk'!AV$5","v":0},{"$f":"'Population at Risk'!AW174/'Population at Risk'!AW$5","v":0},{"$f":"'Population at Risk'!AX174/'Population at Risk'!AX$5","v":0},{"$f":"'Population at Risk'!AY174/'Population at Risk'!AY$5","v":0},{"$f":"'Population at Risk'!AZ174/'Population at Risk'!AZ$5","v":0},{"$f":"'Population at Risk'!BA174/'Population at Risk'!BA$5","v":0},{"$f":"'Population at Risk'!BB174/'Population at Risk'!BB$5","v":0},{"$f":"'Population at Risk'!BC174/'Population at Risk'!BC$5","v":0},172]
[null,"Female 5-9",{"$f":"'Population at Risk'!C175/'Population at Risk'!C$5","v":0},{"$f":"'Population at Risk'!D175/'Population at Risk'!D$5","v":0},{"$f":"'Population at Risk'!E175/'Population at Risk'!E$5","v":0},{"$f":"'Population at Risk'!F175/'Population at Risk'!F$5","v":0},{"$f":"'Population at Risk'!G175/'Population at Risk'!G$5","v":0},{"$f":"'Population at Risk'!H175/'Population at Risk'!H$5","v":0},{"$f":"'Population at Risk'!I175/'Population at Risk'!I$5","v":0},{"$f":"'Population at Risk'!J175/'Population at Risk'!J$5","v":0},{"$f":"'Population at Risk'!K175/'Population at Risk'!K$5","v":0},{"$f":"'Population at Risk'!L175/'Population at Risk'!L$5","v":0},{"$f":"'Population at Risk'!M175/'Population at Risk'!M$5","v":0},{"$f":"'Population at Risk'!N175/'Population at Risk'!N$5","v":0},{"$f":"'Population at Risk'!O175/'Population at Risk'!O$5","v":0},{"$f":"'Population at Risk'!P175/'Population at Risk'!P$5","v":0},{"$f":"'Population at Risk'!Q175/'Population at Risk'!Q$5","v":0},{"$f":"'Population at Risk'!R175/'Population at Risk'!R$5","v":0},{"$f":"'Population at Risk'!S175/'Population at Risk'!S$5","v":0},{"$f":"'Population at Risk'!T175/'Population at Risk'!T$5","v":0},{"$f":"'Population at Risk'!U175/'Population at Risk'!U$5","v":0},{"$f":"'Population at Risk'!V175/'Population at Risk'!V$5","v":0},{"$f":"'Population at Risk'!W175/'Population at Risk'!W$5","v":0},{"$f":"'Population at Risk'!X175/'Population at Risk'!X$5","v":0},{"$f":"'Population at Risk'!Y175/'Population at Risk'!Y$5","v":0},{"$f":"'Population at Risk'!Z175/'Population at Risk'!Z$5","v":0},{"$f":"'Population at Risk'!AA175/'Population at Risk'!AA$5","v":0},{"$f":"'Population at Risk'!AB175/'Population at Risk'!AB$5","v":0},{"$f":"'Population at Risk'!AC175/'Population at Risk'!AC$5","v":0},{"$f":"'Population at Risk'!AD175/'Population at Risk'!AD$5","v":0},{"$f":"'Population at Risk'!AE175/'Population at Risk'!AE$5","v":0},{"$f":"'Population at Risk'!AF175/'Population at Risk'!AF$5","v":0},{"$f":"'Population at Risk'!AG175/'Population at Risk'!AG$5","v":0},{"$f":"'Population at Risk'!AH175/'Population at Risk'!AH$5","v":0},{"$f":"'Population at Risk'!AI175/'Population at Risk'!AI$5","v":0},{"$f":"'Population at Risk'!AJ175/'Population at Risk'!AJ$5","v":0},{"$f":"'Population at Risk'!AK175/'Population at Risk'!AK$5","v":0},{"$f":"'Population at Risk'!AL175/'Population at Risk'!AL$5","v":0},{"$f":"'Population at Risk'!AM175/'Population at Risk'!AM$5","v":0},{"$f":"'Population at Risk'!AN175/'Population at Risk'!AN$5","v":0},{"$f":"'Population at Risk'!AO175/'Population at Risk'!AO$5","v":0},{"$f":"'Population at Risk'!AP175/'Population at Risk'!AP$5","v":0},{"$f":"'Population at Risk'!AQ175/'Population at Risk'!AQ$5","v":0},{"$f":"'Population at Risk'!AR175/'Population at Risk'!AR$5","v":0},{"$f":"'Population at Risk'!AS175/'Population at Risk'!AS$5","v":0},{"$f":"'Population at Risk'!AT175/'Population at Risk'!AT$5","v":0},{"$f":"'Population at Risk'!AU175/'Population at Risk'!AU$5","v":0},{"$f":"'Population at Risk'!AV175/'Population at Risk'!AV$5","v":0},{"$f":"'Population at Risk'!AW175/'Population at Risk'!AW$5","v":0},{"$f":"'Population at Risk'!AX175/'Population at Risk'!AX$5","v":0},{"$f":"'Population at Risk'!AY175/'Population at Risk'!AY$5","v":0},{"$f":"'Population at Risk'!AZ175/'Population at Risk'!AZ$5","v":0},{"$f":"'Population at Risk'!BA175/'Population at Risk'!BA$5","v":0},{"$f":"'Population at Risk'!BB175/'Population at Risk'!BB$5","v":0},{"$f":"'Population at Risk'!BC175/'Population at Risk'!BC$5","v":0},173]
[null,"Female 10-15",{"$f":"'Population at Risk'!C176/'Population at Risk'!C$5","v":0},{"$f":"'Population at Risk'!D176/'Population at Risk'!D$5","v":0},{"$f":"'Population at Risk'!E176/'Population at Risk'!E$5","v":0},{"$f":"'Population at Risk'!F176/'Population at Risk'!F$5","v":0},{"$f":"'Population at Risk'!G176/'Population at Risk'!G$5","v":0},{"$f":"'Population at Risk'!H176/'Population at Risk'!H$5","v":0},{"$f":"'Population at Risk'!I176/'Population at Risk'!I$5","v":0},{"$f":"'Population at Risk'!J176/'Population at Risk'!J$5","v":0},{"$f":"'Population at Risk'!K176/'Population at Risk'!K$5","v":0},{"$f":"'Population at Risk'!L176/'Population at Risk'!L$5","v":0},{"$f":"'Population at Risk'!M176/'Population at Risk'!M$5","v":0},{"$f":"'Population at Risk'!N176/'Population at Risk'!N$5","v":0},{"$f":"'Population at Risk'!O176/'Population at Risk'!O$5","v":0},{"$f":"'Population at Risk'!P176/'Population at Risk'!P$5","v":0},{"$f":"'Population at Risk'!Q176/'Population at Risk'!Q$5","v":0},{"$f":"'Population at Risk'!R176/'Population at Risk'!R$5","v":0},{"$f":"'Population at Risk'!S176/'Population at Risk'!S$5","v":0},{"$f":"'Population at Risk'!T176/'Population at Risk'!T$5","v":0},{"$f":"'Population at Risk'!U176/'Population at Risk'!U$5","v":0},{"$f":"'Population at Risk'!V176/'Population at Risk'!V$5","v":0},{"$f":"'Population at Risk'!W176/'Population at Risk'!W$5","v":0},{"$f":"'Population at Risk'!X176/'Population at Risk'!X$5","v":0},{"$f":"'Population at Risk'!Y176/'Population at Risk'!Y$5","v":0},{"$f":"'Population at Risk'!Z176/'Population at Risk'!Z$5","v":0},{"$f":"'Population at Risk'!AA176/'Population at Risk'!AA$5","v":0},{"$f":"'Population at Risk'!AB176/'Population at Risk'!AB$5","v":0},{"$f":"'Population at Risk'!AC176/'Population at Risk'!AC$5","v":0},{"$f":"'Population at Risk'!AD176/'Population at Risk'!AD$5","v":0},{"$f":"'Population at Risk'!AE176/'Population at Risk'!AE$5","v":0},{"$f":"'Population at Risk'!AF176/'Population at Risk'!AF$5","v":0},{"$f":"'Population at Risk'!AG176/'Population at Risk'!AG$5","v":0},{"$f":"'Population at Risk'!AH176/'Population at Risk'!AH$5","v":0},{"$f":"'Population at Risk'!AI176/'Population at Risk'!AI$5","v":0},{"$f":"'Population at Risk'!AJ176/'Population at Risk'!AJ$5","v":0},{"$f":"'Population at Risk'!AK176/'Population at Risk'!AK$5","v":0},{"$f":"'Population at Risk'!AL176/'Population at Risk'!AL$5","v":0},{"$f":"'Population at Risk'!AM176/'Population at Risk'!AM$5","v":0},{"$f":"'Population at Risk'!AN176/'Population at Risk'!AN$5","v":0},{"$f":"'Population at Risk'!AO176/'Population at Risk'!AO$5","v":0},{"$f":"'Population at Risk'!AP176/'Population at Risk'!AP$5","v":0},{"$f":"'Population at Risk'!AQ176/'Population at Risk'!AQ$5","v":0},{"$f":"'Population at Risk'!AR176/'Population at Risk'!AR$5","v":0},{"$f":"'Population at Risk'!AS176/'Population at Risk'!AS$5","v":0},{"$f":"'Population at Risk'!AT176/'Population at Risk'!AT$5","v":0},{"$f":"'Population at Risk'!AU176/'Population at Risk'!AU$5","v":0},{"$f":"'Population at Risk'!AV176/'Population at Risk'!AV$5","v":0},{"$f":"'Population at Risk'!AW176/'Population at Risk'!AW$5","v":0},{"$f":"'Population at Risk'!AX176/'Population at Risk'!AX$5","v":0},{"$f":"'Population at Risk'!AY176/'Population at Risk'!AY$5","v":0},{"$f":"'Population at Risk'!AZ176/'Population at Risk'!AZ$5","v":0},{"$f":"'Population at Risk'!BA176/'Population at Risk'!BA$5","v":0},{"$f":"'Population at Risk'!BB176/'Population at Risk'!BB$5","v":0},{"$f":"'Population at Risk'!BC176/'Population at Risk'!BC$5","v":0},174]
[null,"Female 16-19",{"$f":"'Population at Risk'!C177/'Population at Risk'!C$5","v":6.4154989801895566E-3},{"$f":"'Population at Risk'!D177/'Population at Risk'!D$5","v":8.8396371835028735E-3},{"$f":"'Population at Risk'!E177/'Population at Risk'!E$5","v":1.1273049027367204E-2},{"$f":"'Population at Risk'!F177/'Population at Risk'!F$5","v":6.6457848423775142E-3},{"$f":"'Population at Risk'!G177/'Population at Risk'!G$5","v":6.4694348040625271E-3},{"$f":"'Population at Risk'!H177/'Population at Risk'!H$5","v":3.4669701322557105E-3},{"$f":"'Population at Risk'!I177/'Population at Risk'!I$5","v":1.0452918354461462E-2},{"$f":"'Population at Risk'!J177/'Population at Risk'!J$5","v":7.9363629474159519E-3},{"$f":"'Population at Risk'!K177/'Population at Risk'!K$5","v":4.2462630471166718E-3},{"$f":"'Population at Risk'!L177/'Population at Risk'!L$5","v":4.0487955629271016E-3},{"$f":"'Population at Risk'!M177/'Population at Risk'!M$5","v":4.0487955629271016E-3},{"$f":"'Population at Risk'!N177/'Population at Risk'!N$5","v":7.0346026594509149E-3},{"$f":"'Population at Risk'!O177/'Population at Risk'!O$5","v":3.2033348556030836E-3},{"$f":"'Population at Risk'!P177/'Population at Risk'!P$5","v":5.3106367213576946E-3},{"$f":"'Population at Risk'!Q177/'Population at Risk'!Q$5","v":1.1657175194493967E-2},{"$f":"'Population at Risk'!R177/'Population at Risk'!R$5","v":6.0115809094287761E-3},{"$f":"'Population at Risk'!S177/'Population at Risk'!S$5","v":5.1032848296146006E-3},{"$f":"'Population at Risk'!T177/'Population at Risk'!T$5","v":3.5302580888351052E-3},{"$f":"'Population at Risk'!U177/'Population at Risk'!U$5","v":1.3171445233045786E-3},{"$f":"'Population at Risk'!V177/'Population at Risk'!V$5","v":4.8819659054804955E-3},{"$f":"'Population at Risk'!W177/'Population at Risk'!W$5","v":4.2552393886568915E-3},{"$f":"'Population at Risk'!X177/'Population at Risk'!X$5","v":4.2552393886568915E-3},{"$f":"'Population at Risk'!Y177/'Population at Risk'!Y$5","v":6.324329175897596E-3},{"$f":"'Population at Risk'!Z177/'Population at Risk'!Z$5","v":2.3880163910393465E-3},{"$f":"'Population at Risk'!AA177/'Population at Risk'!AA$5","v":3.7651384537371866E-3},{"$f":"'Population at Risk'!AB177/'Population at Risk'!AB$5","v":9.310079810192072E-3},{"$f":"'Population at Risk'!AC177/'Population at Risk'!AC$5","v":3.2704639611342858E-3},{"$f":"'Population at Risk'!AD177/'Population at Risk'!AD$5","v":8.0366542362684517E-3},{"$f":"'Population at Risk'!AE177/'Population at Risk'!AE$5","v":8.635329552023209E-3},{"$f":"'Population at Risk'!AF177/'Population at Risk'!AF$5","v":4.6505155573376682E-3},{"$f":"'Population at Risk'!AG177/'Population at Risk'!AG$5","v":8.635329552023209E-3},{"$f":"'Population at Risk'!AH177/'Population at Risk'!AH$5","v":4.6652179732032638E-3},{"$f":"'Population at Risk'!AI177/'Population at Risk'!AI$5","v":4.797854950594131E-3},{"$f":"'Population at Risk'!AJ177/'Population at Risk'!AJ$5","v":4.1829440667165282E-3},{"$f":"'Population at Risk'!AK177/'Population at Risk'!AK$5","v":1.1701424535844258E-2},{"$f":"'Population at Risk'!AL177/'Population at Risk'!AL$5","v":3.8487915302956835E-3},{"$f":"'Population at Risk'!AM177/'Population at Risk'!AM$5","v":3.851390805219063E-3},{"$f":"'Population at Risk'!AN177/'Population at Risk'!AN$5","v":1.2811824174062566E-2},{"$f":"'Population at Risk'!AO177/'Population at Risk'!AO$5","v":1.2811824174062566E-2},{"$f":"'Population at Risk'!AP177/'Population at Risk'!AP$5","v":1.3846531827467165E-2},{"$f":"'Population at Risk'!AQ177/'Population at Risk'!AQ$5","v":4.4401662759143241E-3},{"$f":"'Population at Risk'!AR177/'Population at Risk'!AR$5","v":5.4744109205326352E-3},{"$f":"'Population at Risk'!AS177/'Population at Risk'!AS$5","v":1.0452918354461462E-2},{"$f":"'Population at Risk'!AT177/'Population at Risk'!AT$5","v":2.3107107595026453E-2},{"$f":"'Population at Risk'!AU177/'Population at Risk'!AU$5","v":2.3107107595026453E-2},{"$f":"'Population at Risk'!AV177/'Population at Risk'!AV$5","v":3.2676066641155574E-3},{"$f":"'Population at Risk'!AW177/'Population at Risk'!AW$5","v":5.5937582170491442E-3},{"$f":"'Population at Risk'!AX177/'Population at Risk'!AX$5","v":1.0199729520464437E-2},{"$f":"'Population at Risk'!AY177/'Population at Risk'!AY$5","v":6.8277486491823006E-3},{"$f":"'Population at Risk'!AZ177/'Population at Risk'!AZ$5","v":9.1629387267620991E-3},{"$f":"'Population at Risk'!BA177/'Population at Risk'!BA$5","v":2.6334381571153811E-3},{"$f":"'Population at Risk'!BB177/'Population at Risk'!BB$5","v":4.8318125483014516E-3},{"$f":"'Population at Risk'!BC177/'Population at Risk'!BC$5","v":1.3171445233045786E-3},175]
[null,"Female 20-24",{"$f":"'Population at Risk'!C178/'Population at Risk'!C$5","v":1.5250150995422864E-2},{"$f":"'Population at Risk'!D178/'Population at Risk'!D$5","v":1.4126785767721663E-2},{"$f":"'Population at Risk'!E178/'Population at Risk'!E$5","v":1.2999123060068623E-2},{"$f":"'Population at Risk'!F178/'Population at Risk'!F$5","v":7.4049694025788123E-3},{"$f":"'Population at Risk'!G178/'Population at Risk'!G$5","v":6.8877816274199189E-3},{"$f":"'Population at Risk'!H178/'Population at Risk'!H$5","v":4.1838367835729936E-3},{"$f":"'Population at Risk'!I178/'Population at Risk'!I$5","v":1.0034801620283003E-2},{"$f":"'Population at Risk'!J178/'Population at Risk'!J$5","v":1.1309317200067731E-2},{"$f":"'Population at Risk'!K178/'Population at Risk'!K$5","v":4.5309287262529849E-3},{"$f":"'Population at Risk'!L178/'Population at Risk'!L$5","v":5.2524915410946185E-3},{"$f":"'Population at Risk'!M178/'Population at Risk'!M$5","v":5.2524915410946185E-3},{"$f":"'Population at Risk'!N178/'Population at Risk'!N$5","v":1.536647562273032E-2},{"$f":"'Population at Risk'!O178/'Population at Risk'!O$5","v":4.2299228805441312E-3},{"$f":"'Population at Risk'!P178/'Population at Risk'!P$5","v":8.0686469523390397E-3},{"$f":"'Population at Risk'!Q178/'Population at Risk'!Q$5","v":1.4804879251588444E-2},{"$f":"'Population at Risk'!R178/'Population at Risk'!R$5","v":6.1848253160405554E-3},{"$f":"'Population at Risk'!S178/'Population at Risk'!S$5","v":7.8938414508121224E-3},{"$f":"'Population at Risk'!T178/'Population at Risk'!T$5","v":9.1871776769684669E-3},{"$f":"'Population at Risk'!U178/'Population at Risk'!U$5","v":2.2709388332837564E-3},{"$f":"'Population at Risk'!V178/'Population at Risk'!V$5","v":6.4958389320856173E-3},{"$f":"'Population at Risk'!W178/'Population at Risk'!W$5","v":5.5015150024868217E-3},{"$f":"'Population at Risk'!X178/'Population at Risk'!X$5","v":5.5015150024868217E-3},{"$f":"'Population at Risk'!Y178/'Population at Risk'!Y$5","v":8.7688846957394966E-3},{"$f":"'Population at Risk'!Z178/'Population at Risk'!Z$5","v":8.5062315458594908E-3},{"$f":"'Population at Risk'!AA178/'Population at Risk'!AA$5","v":6.5772563799870107E-3},{"$f":"'Population at Risk'!AB178/'Population at Risk'!AB$5","v":1.380006498124978E-2},{"$f":"'Population at Risk'!AC178/'Population at Risk'!AC$5","v":7.3052319619364564E-3},{"$f":"'Population at Risk'!AD178/'Population at Risk'!AD$5","v":8.7924136017551568E-3},{"$f":"'Population at Risk'!AE178/'Population at Risk'!AE$5","v":9.519979968786986E-3},{"$f":"'Population at Risk'!AF178/'Population at Risk'!AF$5","v":5.6807836192709366E-3},{"$f":"'Population at Risk'!AG178/'Population at Risk'!AG$5","v":9.519979968786986E-3},{"$f":"'Population at Risk'!AH178/'Population at Risk'!AH$5","v":5.2526764354332896E-3},{"$f":"'Population at Risk'!AI178/'Population at Risk'!AI$5","v":8.6755525694313471E-3},{"$f":"'Population at Risk'!AJ178/'Population at Risk'!AJ$5","v":4.8388063768288747E-3},{"$f":"'Population at Risk'!AK178/'Population at Risk'!AK$5","v":1.2139284292669398E-2},{"$f":"'Population at Risk'!AL178/'Population at Risk'!AL$5","v":4.4666018843995455E-3},{"$f":"'Population at Risk'!AM178/'Population at Risk'!AM$5","v":4.3277112228256604E-3},{"$f":"'Population at Risk'!AN178/'Population at Risk'!AN$5","v":1.5153071231251664E-2},{"$f":"'Population at Risk'!AO178/'Population at Risk'!AO$5","v":1.5153071231251664E-2},{"$f":"'Population at Risk'!AP178/'Population at Risk'!AP$5","v":1.41421533747478E-2},{"$f":"'Population at Risk'!AQ178/'Population at Risk'!AQ$5","v":5.5862370148288404E-3},{"$f":"'Population at Risk'!AR178/'Population at Risk'!AR$5","v":8.1463668658114004E-3},{"$f":"'Population at Risk'!AS178/'Population at Risk'!AS$5","v":1.0034801620283003E-2},{"$f":"'Population at Risk'!AT178/'Population at Risk'!AT$5","v":2.3107107595026453E-2},{"$f":"'Population at Risk'!AU178/'Population at Risk'!AU$5","v":2.3107107595026453E-2},{"$f":"'Population at Risk'!AV178/'Population at Risk'!AV$5","v":3.7549785055429629E-3},{"$f":"'Population at Risk'!AW178/'Population at Risk'!AW$5","v":6.3080201961865775E-3},{"$f":"'Population at Risk'!AX178/'Population at Risk'!AX$5","v":1.5466922225754205E-2},{"$f":"'Population at Risk'!AY178/'Population at Risk'!AY$5","v":9.3455628703418957E-3},{"$f":"'Population at Risk'!AZ178/'Population at Risk'!AZ$5","v":1.2834989546661645E-2},{"$f":"'Population at Risk'!BA178/'Population at Risk'!BA$5","v":3.3805996807620706E-3},{"$f":"'Population at Risk'!BB178/'Population at Risk'!BB$5","v":5.8968126514033995E-3},{"$f":"'Population at Risk'!BC178/'Population at Risk'!BC$5","v":2.2709388332837564E-3},176]
[null,"Female 25-29",{"$f":"'Population at Risk'!C179/'Population at Risk'!C$5","v":1.2427805787871822E-2},{"$f":"'Population at Risk'!D179/'Population at Risk'!D$5","v":1.3241633926094022E-2},{"$f":"'Population at Risk'!E179/'Population at Risk'!E$5","v":1.4058575397381907E-2},{"$f":"'Population at Risk'!F179/'Population at Risk'!F$5","v":7.3699301151849061E-3},{"$f":"'Population at Risk'!G179/'Population at Risk'!G$5","v":6.0660289386821843E-3},{"$f":"'Population at Risk'!H179/'Population at Risk'!H$5","v":3.8158875289145649E-3},{"$f":"'Population at Risk'!I179/'Population at Risk'!I$5","v":9.46138438483826E-3},{"$f":"'Population at Risk'!J179/'Population at Risk'!J$5","v":8.9013525330676642E-3},{"$f":"'Population at Risk'!K179/'Population at Risk'!K$5","v":4.1513744874045674E-3},{"$f":"'Population at Risk'!L179/'Population at Risk'!L$5","v":5.1093948164173614E-3},{"$f":"'Population at Risk'!M179/'Population at Risk'!M$5","v":5.1093948164173614E-3},{"$f":"'Population at Risk'!N179/'Population at Risk'!N$5","v":7.7064033525049537E-3},{"$f":"'Population at Risk'!O179/'Population at Risk'!O$5","v":3.9162432062565889E-3},{"$f":"'Population at Risk'!P179/'Population at Risk'!P$5","v":6.3962364931269469E-3},{"$f":"'Population at Risk'!Q179/'Population at Risk'!Q$5","v":1.0363415476111911E-2},{"$f":"'Population at Risk'!R179/'Population at Risk'!R$5","v":6.6179363325700059E-3},{"$f":"'Population at Risk'!S179/'Population at Risk'!S$5","v":9.036180227115163E-3},{"$f":"'Population at Risk'!T179/'Population at Risk'!T$5","v":1.2775918957034274E-2},{"$f":"'Population at Risk'!U179/'Population at Risk'!U$5","v":1.8621698432926802E-3},{"$f":"'Population at Risk'!V179/'Population at Risk'!V$5","v":6.2618273432278751E-3},{"$f":"'Population at Risk'!W179/'Population at Risk'!W$5","v":5.4395454968267695E-3},{"$f":"'Population at Risk'!X179/'Population at Risk'!X$5","v":5.4395454968267695E-3},{"$f":"'Population at Risk'!Y179/'Population at Risk'!Y$5","v":7.508277668085833E-3},{"$f":"'Population at Risk'!Z179/'Population at Risk'!Z$5","v":7.0572259290744323E-3},{"$f":"'Population at Risk'!AA179/'Population at Risk'!AA$5","v":5.8615263886958946E-3},{"$f":"'Population at Risk'!AB179/'Population at Risk'!AB$5","v":1.328132153141503E-2},{"$f":"'Population at Risk'!AC179/'Population at Risk'!AC$5","v":6.2459683450303794E-3},{"$f":"'Population at Risk'!AD179/'Population at Risk'!AD$5","v":9.4036288263017794E-3},{"$f":"'Population at Risk'!AE179/'Population at Risk'!AE$5","v":1.0678586643645354E-2},{"$f":"'Population at Risk'!AF179/'Population at Risk'!AF$5","v":4.5646598855098959E-3},{"$f":"'Population at Risk'!AG179/'Population at Risk'!AG$5","v":1.0678586643645354E-2},{"$f":"'Population at Risk'!AH179/'Population at Risk'!AH$5","v":5.1620192653360633E-3},{"$f":"'Population at Risk'!AI179/'Population at Risk'!AI$5","v":1.0565892260866065E-2},{"$f":"'Population at Risk'!AJ179/'Population at Risk'!AJ$5","v":5.6112664309611957E-3},{"$f":"'Population at Risk'!AK179/'Population at Risk'!AK$5","v":1.3483060787753447E-2},{"$f":"'Population at Risk'!AL179/'Population at Risk'!AL$5","v":4.1576967073476143E-3},{"$f":"'Population at Risk'!AM179/'Population at Risk'!AM$5","v":4.1984242523324406E-3},{"$f":"'Population at Risk'!AN179/'Population at Risk'!AN$5","v":1.6713902602711064E-2},{"$f":"'Population at Risk'!AO179/'Population at Risk'!AO$5","v":1.6713902602711064E-2},{"$f":"'Population at Risk'!AP179/'Population at Risk'!AP$5","v":1.3226680196072284E-2},{"$f":"'Population at Risk'!AQ179/'Population at Risk'!AQ$5","v":5.1470242765621994E-3},{"$f":"'Population at Risk'!AR179/'Population at Risk'!AR$5","v":7.8189499447269134E-3},{"$f":"'Population at Risk'!AS179/'Population at Risk'!AS$5","v":9.46138438483826E-3},{"$f":"'Population at Risk'!AT179/'Population at Risk'!AT$5","v":2.9345390086245718E-2},{"$f":"'Population at Risk'!AU179/'Population at Risk'!AU$5","v":2.9345390086245718E-2},{"$f":"'Population at Risk'!AV179/'Population at Risk'!AV$5","v":3.2454533985961298E-3},{"$f":"'Population at Risk'!AW179/'Population at Risk'!AW$5","v":6.2614378931993538E-3},{"$f":"'Population at Risk'!AX179/'Population at Risk'!AX$5","v":1.1814807946672074E-2},{"$f":"'Population at Risk'!AY179/'Population at Risk'!AY$5","v":7.5288706313919995E-3},{"$f":"'Population at Risk'!AZ179/'Population at Risk'!AZ$5","v":9.4254512960144921E-3},{"$f":"'Population at Risk'!BA179/'Population at Risk'!BA$5","v":3.4908366268738777E-3},{"$f":"'Population at Risk'!BB179/'Population at Risk'!BB$5","v":7.1619470020681288E-3},{"$f":"'Population at Risk'!BC179/'Population at Risk'!BC$5","v":1.8621698432926802E-3},177]
[null,"Female 30-34",{"$f":"'Population at Risk'!C180/'Population at Risk'!C$5","v":9.8367031498470207E-3},{"$f":"'Population at Risk'!D180/'Population at Risk'!D$5","v":1.3464407040597624E-2},{"$f":"'Population at Risk'!E180/'Population at Risk'!E$5","v":1.710598886201338E-2},{"$f":"'Population at Risk'!F180/'Population at Risk'!F$5","v":8.2575920624971925E-3},{"$f":"'Population at Risk'!G180/'Population at Risk'!G$5","v":6.3648480982231781E-3},{"$f":"'Population at Risk'!H180/'Population at Risk'!H$5","v":4.145773067573846E-3},{"$f":"'Population at Risk'!I180/'Population at Risk'!I$5","v":1.0990497012690907E-2},{"$f":"'Population at Risk'!J180/'Population at Risk'!J$5","v":8.0626232670339328E-3},{"$f":"'Population at Risk'!K180/'Population at Risk'!K$5","v":5.5747028830861337E-3},{"$f":"'Population at Risk'!L180/'Population at Risk'!L$5","v":5.2524915410946185E-3},{"$f":"'Population at Risk'!M180/'Population at Risk'!M$5","v":5.2524915410946185E-3},{"$f":"'Population at Risk'!N180/'Population at Risk'!N$5","v":6.0307625433931554E-3},{"$f":"'Population at Risk'!O180/'Population at Risk'!O$5","v":4.3820099953502121E-3},{"$f":"'Population at Risk'!P180/'Population at Risk'!P$5","v":6.8510147758951475E-3},{"$f":"'Population at Risk'!Q180/'Population at Risk'!Q$5","v":1.1510460174883629E-2},{"$f":"'Population at Risk'!R180/'Population at Risk'!R$5","v":5.9076342654617075E-3},{"$f":"'Population at Risk'!S180/'Population at Risk'!S$5","v":8.8814179881579348E-3},{"$f":"'Population at Risk'!T180/'Population at Risk'!T$5","v":1.0776857147693913E-2},{"$f":"'Population at Risk'!U180/'Population at Risk'!U$5","v":2.770545376606183E-3},{"$f":"'Population at Risk'!V180/'Population at Risk'!V$5","v":7.1171800473285897E-3},{"$f":"'Population at Risk'!W180/'Population at Risk'!W$5","v":5.73562202386924E-3},{"$f":"'Population at Risk'!X180/'Population at Risk'!X$5","v":5.73562202386924E-3},{"$f":"'Population at Risk'!Y180/'Population at Risk'!Y$5","v":7.5636421659219738E-3},{"$f":"'Population at Risk'!Z180/'Population at Risk'!Z$5","v":5.6271728233293697E-3},{"$f":"'Population at Risk'!AA180/'Population at Risk'!AA$5","v":5.6512445314162944E-3},{"$f":"'Population at Risk'!AB180/'Population at Risk'!AB$5","v":1.3767798642264845E-2},{"$f":"'Population at Risk'!AC180/'Population at Risk'!AC$5","v":5.4826607904207318E-3},{"$f":"'Population at Risk'!AD180/'Population at Risk'!AD$5","v":1.1014263539634103E-2},{"$f":"'Population at Risk'!AE180/'Population at Risk'!AE$5","v":1.279033279979115E-2},{"$f":"'Population at Risk'!AF180/'Population at Risk'!AF$5","v":4.0781444118191861E-3},{"$f":"'Population at Risk'!AG180/'Population at Risk'!AG$5","v":1.279033279979115E-2},{"$f":"'Population at Risk'!AH180/'Population at Risk'!AH$5","v":5.9579892187897098E-3},{"$f":"'Population at Risk'!AI180/'Population at Risk'!AI$5","v":9.9989419444293497E-3},{"$f":"'Population at Risk'!AJ180/'Population at Risk'!AJ$5","v":7.0104393592008698E-3},{"$f":"'Population at Risk'!AK180/'Population at Risk'!AK$5","v":1.5309992876575583E-2},{"$f":"'Population at Risk'!AL180/'Population at Risk'!AL$5","v":3.915581838847452E-3},{"$f":"'Population at Risk'!AM180/'Population at Risk'!AM$5","v":4.6441240716643285E-3},{"$f":"'Population at Risk'!AN180/'Population at Risk'!AN$5","v":1.8860045738467734E-2},{"$f":"'Population at Risk'!AO180/'Population at Risk'!AO$5","v":1.8860045738467734E-2},{"$f":"'Population at Risk'!AP180/'Population at Risk'!AP$5","v":1.5934955016320685E-2},{"$f":"'Population at Risk'!AQ180/'Population at Risk'!AQ$5","v":5.8950584714225727E-3},{"$f":"'Population at Risk'!AR180/'Population at Risk'!AR$5","v":7.9136669826120696E-3},{"$f":"'Population at Risk'!AS180/'Population at Risk'!AS$5","v":1.0990497012690907E-2},{"$f":"'Population at Risk'!AT180/'Population at Risk'!AT$5","v":2.781764743533488E-2},{"$f":"'Population at Risk'!AU180/'Population at Risk'!AU$5","v":2.781764743533488E-2},{"$f":"'Population at Risk'!AV180/'Population at Risk'!AV$5","v":4.1758905504120855E-3},{"$f":"'Population at Risk'!AW180/'Population at Risk'!AW$5","v":7.4570503365381019E-3},{"$f":"'Population at Risk'!AX180/'Population at Risk'!AX$5","v":9.5886187646020884E-3},{"$f":"'Population at Risk'!AY180/'Population at Risk'!AY$5","v":7.904003654583637E-3},{"$f":"'Population at Risk'!AZ180/'Population at Risk'!AZ$5","v":9.8723476936703521E-3},{"$f":"'Population at Risk'!BA180/'Population at Risk'!BA$5","v":3.478588077305899E-3},{"$f":"'Population at Risk'!BB180/'Population at Risk'!BB$5","v":8.5628867350076021E-3},{"$f":"'Population at Risk'!BC180/'Population at Risk'!BC$5","v":2.770545376606183E-3},178]
[null,"Female 35-39",{"$f":"'Population at Risk'!C181/'Population at Risk'!C$5","v":7.6428633876749899E-3},{"$f":"'Population at Risk'!D181/'Population at Risk'!D$5","v":1.2709948759478762E-2},{"$f":"'Population at Risk'!E181/'Population at Risk'!E$5","v":1.7796418475093948E-2},{"$f":"'Population at Risk'!F181/'Population at Risk'!F$5","v":8.9116587605167722E-3},{"$f":"'Population at Risk'!G181/'Population at Risk'!G$5","v":7.7842391060429011E-3},{"$f":"'Population at Risk'!H181/'Population at Risk'!H$5","v":4.5517860382314227E-3},{"$f":"'Population at Risk'!I181/'Population at Risk'!I$5","v":1.1301098015223478E-2},{"$f":"'Population at Risk'!J181/'Population at Risk'!J$5","v":8.8382223732586737E-3},{"$f":"'Population at Risk'!K181/'Population at Risk'!K$5","v":5.7882021424383685E-3},{"$f":"'Population at Risk'!L181/'Population at Risk'!L$5","v":5.0925599076318022E-3},{"$f":"'Population at Risk'!M181/'Population at Risk'!M$5","v":5.0925599076318022E-3},{"$f":"'Population at Risk'!N181/'Population at Risk'!N$5","v":5.0964190507547793E-3},{"$f":"'Population at Risk'!O181/'Population at Risk'!O$5","v":5.1614564587313784E-3},{"$f":"'Population at Risk'!P181/'Population at Risk'!P$5","v":7.3644741274076315E-3},{"$f":"'Population at Risk'!Q181/'Population at Risk'!Q$5","v":1.2777544435154713E-2},{"$f":"'Population at Risk'!R181/'Population at Risk'!R$5","v":6.9990740271159233E-3},{"$f":"'Population at Risk'!S181/'Population at Risk'!S$5","v":8.1385592411632388E-3},{"$f":"'Population at Risk'!T181/'Population at Risk'!T$5","v":8.0494137748438992E-3},{"$f":"'Population at Risk'!U181/'Population at Risk'!U$5","v":2.0892637266210559E-3},{"$f":"'Population at Risk'!V181/'Population at Risk'!V$5","v":7.5932725901771006E-3},{"$f":"'Population at Risk'!W181/'Population at Risk'!W$5","v":6.1556375622318126E-3},{"$f":"'Population at Risk'!X181/'Population at Risk'!X$5","v":6.1556375622318126E-3},{"$f":"'Population at Risk'!Y181/'Population at Risk'!Y$5","v":8.1811692571712342E-3},{"$f":"'Population at Risk'!Z181/'Population at Risk'!Z$5","v":4.1368162733661402E-3},{"$f":"'Population at Risk'!AA181/'Population at Risk'!AA$5","v":5.5612156016941411E-3},{"$f":"'Population at Risk'!AB181/'Population at Risk'!AB$5","v":1.3072831341050827E-2},{"$f":"'Population at Risk'!AC181/'Population at Risk'!AC$5","v":4.8100333761106635E-3},{"$f":"'Population at Risk'!AD181/'Population at Risk'!AD$5","v":1.1026653037428967E-2},{"$f":"'Population at Risk'!AE181/'Population at Risk'!AE$5","v":1.2265249971776519E-2},{"$f":"'Population at Risk'!AF181/'Population at Risk'!AF$5","v":5.766639291098709E-3},{"$f":"'Population at Risk'!AG181/'Population at Risk'!AG$5","v":1.2265249971776519E-2},{"$f":"'Population at Risk'!AH181/'Population at Risk'!AH$5","v":6.9280209388300311E-3},{"$f":"'Population at Risk'!AI181/'Population at Risk'!AI$5","v":8.6103684421404945E-3},{"$f":"'Population at Risk'!AJ181/'Population at Risk'!AJ$5","v":7.1707612572283336E-3},{"$f":"'Population at Risk'!AK181/'Population at Risk'!AK$5","v":1.4917428956663389E-2},{"$f":"'Population at Risk'!AL181/'Population at Risk'!AL$5","v":4.2745797473132102E-3},{"$f":"'Population at Risk'!AM181/'Population at Risk'!AM$5","v":5.1850879745175367E-3},{"$f":"'Population at Risk'!AN181/'Population at Risk'!AN$5","v":2.0485911750404609E-2},{"$f":"'Population at Risk'!AO181/'Population at Risk'!AO$5","v":2.0485911750404609E-2},{"$f":"'Population at Risk'!AP181/'Population at Risk'!AP$5","v":1.5067162732367851E-2},{"$f":"'Population at Risk'!AQ181/'Population at Risk'!AQ$5","v":5.8538822772100747E-3},{"$f":"'Population at Risk'!AR181/'Population at Risk'!AR$5","v":7.6709107225508555E-3},{"$f":"'Population at Risk'!AS181/'Population at Risk'!AS$5","v":1.1301098015223478E-2},{"$f":"'Population at Risk'!AT181/'Population at Risk'!AT$5","v":3.0300229243064993E-2},{"$f":"'Population at Risk'!AU181/'Population at Risk'!AU$5","v":3.0300229243064993E-2},{"$f":"'Population at Risk'!AV181/'Population at Risk'!AV$5","v":4.2091204486912268E-3},{"$f":"'Population at Risk'!AW181/'Population at Risk'!AW$5","v":8.9166291634711192E-3},{"$f":"'Population at Risk'!AX181/'Population at Risk'!AX$5","v":1.0708988483683061E-2},{"$f":"'Population at Risk'!AY181/'Population at Risk'!AY$5","v":7.8483070485202509E-3},{"$f":"'Population at Risk'!AZ181/'Population at Risk'!AZ$5","v":9.3848243507730494E-3},{"$f":"'Population at Risk'!BA181/'Population at Risk'!BA$5","v":3.2336170859463289E-3},{"$f":"'Population at Risk'!BB181/'Population at Risk'!BB$5","v":8.5914773418022845E-3},{"$f":"'Population at Risk'!BC181/'Population at Risk'!BC$5","v":2.0892637266210559E-3},179]
[null,"Female 40-44",{"$f":"'Population at Risk'!C182/'Population at Risk'!C$5","v":6.1190341474636071E-3},{"$f":"'Population at Risk'!D182/'Population at Risk'!D$5","v":1.270697845128538E-2},{"$f":"'Population at Risk'!E182/'Population at Risk'!E$5","v":1.9320125207409684E-2},{"$f":"'Population at Risk'!F182/'Population at Risk'!F$5","v":9.624124270859527E-3},{"$f":"'Population at Risk'!G182/'Population at Risk'!G$5","v":9.592095021265918E-3},{"$f":"'Population at Risk'!H182/'Population at Risk'!H$5","v":5.5985382282079865E-3},{"$f":"'Population at Risk'!I182/'Population at Risk'!I$5","v":1.4908848121563319E-2},{"$f":"'Population at Risk'!J182/'Population at Risk'!J$5","v":1.0777220138820525E-2},{"$f":"'Population at Risk'!K182/'Population at Risk'!K$5","v":7.6859733366804557E-3},{"$f":"'Population at Risk'!L182/'Population at Risk'!L$5","v":6.3046733401920987E-3},{"$f":"'Population at Risk'!M182/'Population at Risk'!M$5","v":6.3046733401920987E-3},{"$f":"'Population at Risk'!N182/'Population at Risk'!N$5","v":4.9960350391490037E-3},{"$f":"'Population at Risk'!O182/'Population at Risk'!O$5","v":5.3135435735374593E-3},{"$f":"'Population at Risk'!P182/'Population at Risk'!P$5","v":8.7581495100843756E-3},{"$f":"'Population at Risk'!Q182/'Population at Risk'!Q$5","v":1.5418414788140758E-2},{"$f":"'Population at Risk'!R182/'Population at Risk'!R$5","v":8.0212160261254259E-3},{"$f":"'Population at Risk'!S182/'Population at Risk'!S$5","v":8.5041850306996902E-3},{"$f":"'Population at Risk'!T182/'Population at Risk'!T$5","v":6.8664583158592448E-3},{"$f":"'Population at Risk'!U182/'Population at Risk'!U$5","v":2.3617763866151066E-3},{"$f":"'Population at Risk'!V182/'Population at Risk'!V$5","v":9.3362554589106316E-3},{"$f":"'Population at Risk'!W182/'Population at Risk'!W$5","v":7.0989511483903799E-3},{"$f":"'Population at Risk'!X182/'Population at Risk'!X$5","v":7.0989511483903799E-3},{"$f":"'Population at Risk'!Y182/'Population at Risk'!Y$5","v":1.0016715300815587E-2},{"$f":"'Population at Risk'!Z182/'Population at Risk'!Z$5","v":3.4855390758099553E-3},{"$f":"'Population at Risk'!AA182/'Population at Risk'!AA$5","v":5.8197272427534651E-3},{"$f":"'Population at Risk'!AB182/'Population at Risk'!AB$5","v":1.3738014329355671E-2},{"$f":"'Population at Risk'!AC182/'Population at Risk'!AC$5","v":4.880783815245501E-3},{"$f":"'Population at Risk'!AD182/'Population at Risk'!AD$5","v":1.3186555486333591E-2},{"$f":"'Population at Risk'!AE182/'Population at Risk'!AE$5","v":1.4559633633318709E-2},{"$f":"'Population at Risk'!AF182/'Population at Risk'!AF$5","v":6.6681238452903184E-3},{"$f":"'Population at Risk'!AG182/'Population at Risk'!AG$5","v":1.4559633633318709E-2},{"$f":"'Population at Risk'!AH182/'Population at Risk'!AH$5","v":7.5281714048736686E-3},{"$f":"'Population at Risk'!AI182/'Population at Risk'!AI$5","v":8.3102182746151755E-3},{"$f":"'Population at Risk'!AJ182/'Population at Risk'!AJ$5","v":6.8792668971784003E-3},{"$f":"'Population at Risk'!AK182/'Population at Risk'!AK$5","v":1.8978955666524171E-2},{"$f":"'Population at Risk'!AL182/'Population at Risk'!AL$5","v":5.5185492440899056E-3},{"$f":"'Population at Risk'!AM182/'Population at Risk'!AM$5","v":5.8417296930752035E-3},{"$f":"'Population at Risk'!AN182/'Population at Risk'!AN$5","v":2.1981708481386534E-2},{"$f":"'Population at Risk'!AO182/'Population at Risk'!AO$5","v":2.1981708481386534E-2},{"$f":"'Population at Risk'!AP182/'Population at Risk'!AP$5","v":1.9062821710128696E-2},{"$f":"'Population at Risk'!AQ182/'Population at Risk'!AQ$5","v":6.9793649190183424E-3},{"$f":"'Population at Risk'!AR182/'Population at Risk'!AR$5","v":8.3736877567357742E-3},{"$f":"'Population at Risk'!AS182/'Population at Risk'!AS$5","v":1.4908848121563319E-2},{"$f":"'Population at Risk'!AT182/'Population at Risk'!AT$5","v":3.24008753880674E-2},{"$f":"'Population at Risk'!AU182/'Population at Risk'!AU$5","v":3.24008753880674E-2},{"$f":"'Population at Risk'!AV182/'Population at Risk'!AV$5","v":6.0367648540439961E-3},{"$f":"'Population at Risk'!AW182/'Population at Risk'!AW$5","v":9.4523256478241963E-3},{"$f":"'Population at Risk'!AX182/'Population at Risk'!AX$5","v":1.2673273056097754E-2},{"$f":"'Population at Risk'!AY182/'Population at Risk'!AY$5","v":9.0621654336076017E-3},{"$f":"'Population at Risk'!AZ182/'Population at Risk'!AZ$5","v":1.0844269229830996E-2},{"$f":"'Population at Risk'!BA182/'Population at Risk'!BA$5","v":4.0665184565688677E-3},{"$f":"'Population at Risk'!BB182/'Population at Risk'!BB$5","v":9.0846653090105693E-3},{"$f":"'Population at Risk'!BC182/'Population at Risk'!BC$5","v":2.3617763866151066E-3},180]
[null,"Female 45-49",{"$f":"'Population at Risk'!C183/'Population at Risk'!C$5","v":6.2850544537901391E-3},{"$f":"'Population at Risk'!D183/'Population at Risk'!D$5","v":1.4602035078662676E-2},{"$f":"'Population at Risk'!E183/'Population at Risk'!E$5","v":2.2950832655505772E-2},{"$f":"'Population at Risk'!F183/'Population at Risk'!F$5","v":1.2719261323987895E-2},{"$f":"'Population at Risk'!G183/'Population at Risk'!G$5","v":1.2714755238469308E-2},{"$f":"'Population at Risk'!H183/'Population at Risk'!H$5","v":6.7467936608489442E-3},{"$f":"'Population at Risk'!I183/'Population at Risk'!I$5","v":1.9794840815248734E-2},{"$f":"'Population at Risk'!J183/'Population at Risk'!J$5","v":1.2671124933090241E-2},{"$f":"'Population at Risk'!K183/'Population at Risk'!K$5","v":9.5125781111384655E-3},{"$f":"'Population at Risk'!L183/'Population at Risk'!L$5","v":8.6278907525993327E-3},{"$f":"'Population at Risk'!M183/'Population at Risk'!M$5","v":8.6278907525993327E-3},{"$f":"'Population at Risk'!N183/'Population at Risk'!N$5","v":5.7836634379020146E-3},{"$f":"'Population at Risk'!O183/'Population at Risk'!O$5","v":6.3781533771800269E-3},{"$f":"'Population at Risk'!P183/'Population at Risk'!P$5","v":1.1178743595786087E-2},{"$f":"'Population at Risk'!Q183/'Population at Risk'!Q$5","v":1.8552781116179754E-2},{"$f":"'Population at Risk'!R183/'Population at Risk'!R$5","v":9.770984532904408E-3},{"$f":"'Population at Risk'!S183/'Population at Risk'!S$5","v":9.6707054068397979E-3},{"$f":"'Population at Risk'!T183/'Population at Risk'!T$5","v":6.4863175728596817E-3},{"$f":"'Population at Risk'!U183/'Population at Risk'!U$5","v":2.3617763866151066E-3},{"$f":"'Population at Risk'!V183/'Population at Risk'!V$5","v":1.0522452133465398E-2},{"$f":"'Population at Risk'!W183/'Population at Risk'!W$5","v":8.8065553043562526E-3},{"$f":"'Population at Risk'!X183/'Population at Risk'!X$5","v":8.8065553043562526E-3},{"$f":"'Population at Risk'!Y183/'Population at Risk'!Y$5","v":1.1537109587546526E-2},{"$f":"'Population at Risk'!Z183/'Population at Risk'!Z$5","v":3.8869877187480274E-3},{"$f":"'Population at Risk'!AA183/'Population at Risk'!AA$5","v":6.9315845248220567E-3},{"$f":"'Population at Risk'!AB183/'Population at Risk'!AB$5","v":1.5765829633255145E-2},{"$f":"'Population at Risk'!AC183/'Population at Risk'!AC$5","v":5.9749244091898777E-3},{"$f":"'Population at Risk'!AD183/'Population at Risk'!AD$5","v":1.5780090358058455E-2},{"$f":"'Population at Risk'!AE183/'Population at Risk'!AE$5","v":1.6951043469602727E-2},{"$f":"'Population at Risk'!AF183/'Population at Risk'!AF$5","v":8.8574434768985133E-3},{"$f":"'Population at Risk'!AG183/'Population at Risk'!AG$5","v":1.6951043469602727E-2},{"$f":"'Population at Risk'!AH183/'Population at Risk'!AH$5","v":8.6722648915006639E-3},{"$f":"'Population at Risk'!AI183/'Population at Risk'!AI$5","v":8.7665071656511419E-3},{"$f":"'Population at Risk'!AJ183/'Population at Risk'!AJ$5","v":8.0452443373781289E-3},{"$f":"'Population at Risk'!AK183/'Population at Risk'!AK$5","v":2.1681607268996587E-2},{"$f":"'Population at Risk'!AL183/'Population at Risk'!AL$5","v":7.0797727064875046E-3},{"$f":"'Population at Risk'!AM183/'Population at Risk'!AM$5","v":7.0631513353664075E-3},{"$f":"'Population at Risk'!AN183/'Population at Risk'!AN$5","v":2.5688682988602603E-2},{"$f":"'Population at Risk'!AO183/'Population at Risk'!AO$5","v":2.5688682988602603E-2},{"$f":"'Population at Risk'!AP183/'Population at Risk'!AP$5","v":2.4288647771734756E-2},{"$f":"'Population at Risk'!AQ183/'Population at Risk'!AQ$5","v":9.010723833501556E-3},{"$f":"'Population at Risk'!AR183/'Population at Risk'!AR$5","v":9.8667089168810382E-3},{"$f":"'Population at Risk'!AS183/'Population at Risk'!AS$5","v":1.9794840815248734E-2},{"$f":"'Population at Risk'!AT183/'Population at Risk'!AT$5","v":3.475614530822161E-2},{"$f":"'Population at Risk'!AU183/'Population at Risk'!AU$5","v":3.475614530822161E-2},{"$f":"'Population at Risk'!AV183/'Population at Risk'!AV$5","v":6.7345927179059632E-3},{"$f":"'Population at Risk'!AW183/'Population at Risk'!AW$5","v":1.0508191182201271E-2},{"$f":"'Population at Risk'!AX183/'Population at Risk'!AX$5","v":1.4608457116328523E-2},{"$f":"'Population at Risk'!AY183/'Population at Risk'!AY$5","v":1.1373574585238173E-2},{"$f":"'Population at Risk'!AZ183/'Population at Risk'!AZ$5","v":1.3703781144901707E-2},{"$f":"'Population at Risk'!BA183/'Population at Risk'!BA$5","v":5.9038008917656455E-3},{"$f":"'Population at Risk'!BB183/'Population at Risk'!BB$5","v":1.0006712378139101E-2},{"$f":"'Population at Risk'!BC183/'Population at Risk'!BC$5","v":2.3617763866151066E-3},181]
[null,"Female 50-54",{"$f":"'Population at Risk'!C184/'Population at Risk'!C$5","v":6.6408122530612788E-3},{"$f":"'Population at Risk'!D184/'Population at Risk'!D$5","v":1.5026789150316208E-2},{"$f":"'Population at Risk'!E184/'Population at Risk'!E$5","v":2.3444846947623763E-2},{"$f":"'Population at Risk'!F184/'Population at Risk'!F$5","v":1.4459545931218563E-2},{"$f":"'Population at Risk'!G184/'Population at Risk'!G$5","v":1.3566389843161141E-2},{"$f":"'Population at Risk'!H184/'Population at Risk'!H$5","v":7.2733417321704892E-3},{"$f":"'Population at Risk'!I184/'Population at Risk'!I$5","v":2.1538984906393159E-2},{"$f":"'Population at Risk'!J184/'Population at Risk'!J$5","v":1.3356538096730708E-2},{"$f":"'Population at Risk'!K184/'Population at Risk'!K$5","v":8.5636925140174219E-3},{"$f":"'Population at Risk'!L184/'Population at Risk'!L$5","v":9.5538107358051159E-3},{"$f":"'Population at Risk'!M184/'Population at Risk'!M$5","v":9.5538107358051159E-3},{"$f":"'Population at Risk'!N184/'Population at Risk'!N$5","v":6.4400204368628569E-3},{"$f":"'Population at Risk'!O184/'Population at Risk'!O$5","v":6.5777677153630084E-3},{"$f":"'Population at Risk'!P184/'Population at Risk'!P$5","v":1.2513737909718546E-2},{"$f":"'Population at Risk'!Q184/'Population at Risk'!Q$5","v":1.8085960599237779E-2},{"$f":"'Population at Risk'!R184/'Population at Risk'!R$5","v":9.8056334142267651E-3},{"$f":"'Population at Risk'!S184/'Population at Risk'!S$5","v":9.9879679967021153E-3},{"$f":"'Population at Risk'!T184/'Population at Risk'!T$5","v":7.0498828701737199E-3},{"$f":"'Population at Risk'!U184/'Population at Risk'!U$5","v":2.9976392599345581E-3},{"$f":"'Population at Risk'!V184/'Population at Risk'!V$5","v":9.8284867320251948E-3},{"$f":"'Population at Risk'!W184/'Population at Risk'!W$5","v":9.2059143408321411E-3},{"$f":"'Population at Risk'!X184/'Population at Risk'!X$5","v":9.2059143408321411E-3},{"$f":"'Population at Risk'!Y184/'Population at Risk'!Y$5","v":1.1494521512287956E-2},{"$f":"'Population at Risk'!Z184/'Population at Risk'!Z$5","v":4.1023571623843317E-3},{"$f":"'Population at Risk'!AA184/'Population at Risk'!AA$5","v":7.2286799929051617E-3},{"$f":"'Population at Risk'!AB184/'Population at Risk'!AB$5","v":1.6257270796256485E-2},{"$f":"'Population at Risk'!AC184/'Population at Risk'!AC$5","v":6.4083954095230326E-3},{"$f":"'Population at Risk'!AD184/'Population at Risk'!AD$5","v":1.7056208630929447E-2},{"$f":"'Population at Risk'!AE184/'Population at Risk'!AE$5","v":1.8389313824599324E-2},{"$f":"'Population at Risk'!AF184/'Population at Risk'!AF$5","v":9.8734022601938178E-3},{"$f":"'Population at Risk'!AG184/'Population at Risk'!AG$5","v":1.8389313824599324E-2},{"$f":"'Population at Risk'!AH184/'Population at Risk'!AH$5","v":8.7212197633531677E-3},{"$f":"'Population at Risk'!AI184/'Population at Risk'!AI$5","v":8.8665572214929149E-3},{"$f":"'Population at Risk'!AJ184/'Population at Risk'!AJ$5","v":7.8557730033456726E-3},{"$f":"'Population at Risk'!AK184/'Population at Risk'!AK$5","v":2.2512030945733917E-2},{"$f":"'Population at Risk'!AL184/'Population at Risk'!AL$5","v":8.2319055290055176E-3},{"$f":"'Population at Risk'!AM184/'Population at Risk'!AM$5","v":7.0189215823029385E-3},{"$f":"'Population at Risk'!AN184/'Population at Risk'!AN$5","v":2.6729237236242206E-2},{"$f":"'Population at Risk'!AO184/'Population at Risk'!AO$5","v":2.6729237236242206E-2},{"$f":"'Population at Risk'!AP184/'Population at Risk'!AP$5","v":2.4641486392682613E-2},{"$f":"'Population at Risk'!AQ184/'Population at Risk'!AQ$5","v":9.6146413486181883E-3},{"$f":"'Population at Risk'!AR184/'Population at Risk'!AR$5","v":1.0307786283427713E-2},{"$f":"'Population at Risk'!AS184/'Population at Risk'!AS$5","v":2.1538984906393159E-2},{"$f":"'Population at Risk'!AT184/'Population at Risk'!AT$5","v":3.6156576071556541E-2},{"$f":"'Population at Risk'!AU184/'Population at Risk'!AU$5","v":3.6156576071556541E-2},{"$f":"'Population at Risk'!AV184/'Population at Risk'!AV$5","v":6.812129147223958E-3},{"$f":"'Population at Risk'!AW184/'Population at Risk'!AW$5","v":1.0663465525492017E-2},{"$f":"'Population at Risk'!AX184/'Population at Risk'!AX$5","v":1.6296286822995963E-2},{"$f":"'Population at Risk'!AY184/'Population at Risk'!AY$5","v":1.2007533013077318E-2},{"$f":"'Population at Risk'!AZ184/'Population at Risk'!AZ$5","v":1.4550696695704071E-2},{"$f":"'Population at Risk'!BA184/'Population at Risk'!BA$5","v":6.6142167667083999E-3},{"$f":"'Population at Risk'!BB184/'Population at Risk'!BB$5","v":9.3062425116693642E-3},{"$f":"'Population at Risk'!BC184/'Population at Risk'!BC$5","v":2.9976392599345581E-3},182]
[null,"Female 55-59",{"$f":"'Population at Risk'!C185/'Population at Risk'!C$5","v":3.2075866014244182E-3},{"$f":"'Population at Risk'!D185/'Population at Risk'!D$5","v":6.8535392983240569E-3},{"$f":"'Population at Risk'!E185/'Population at Risk'!E$5","v":1.0513439737448472E-2},{"$f":"'Population at Risk'!F185/'Population at Risk'!F$5","v":6.6840100287715986E-3},{"$f":"'Population at Risk'!G185/'Population at Risk'!G$5","v":6.609532635390796E-3},{"$f":"'Population at Risk'!H185/'Population at Risk'!H$5","v":3.6321260979088467E-3},{"$f":"'Population at Risk'!I185/'Population at Risk'!I$5","v":1.0538275974214695E-2},{"$f":"'Population at Risk'!J185/'Population at Risk'!J$5","v":5.777416405372846E-3},{"$f":"'Population at Risk'!K185/'Population at Risk'!K$5","v":3.9847968903740962E-3},{"$f":"'Population at Risk'!L185/'Population at Risk'!L$5","v":5.0015078048938535E-3},{"$f":"'Population at Risk'!M185/'Population at Risk'!M$5","v":5.0015078048938535E-3},{"$f":"'Population at Risk'!N185/'Population at Risk'!N$5","v":3.3877678755874926E-3},{"$f":"'Population at Risk'!O185/'Population at Risk'!O$5","v":3.2727499794160749E-3},{"$f":"'Population at Risk'!P185/'Population at Risk'!P$5","v":6.9948865352252275E-3},{"$f":"'Population at Risk'!Q185/'Population at Risk'!Q$5","v":8.8434942179605718E-3},{"$f":"'Population at Risk'!R185/'Population at Risk'!R$5","v":4.7176550182658691E-3},{"$f":"'Population at Risk'!S185/'Population at Risk'!S$5","v":4.6977635857914481E-3},{"$f":"'Population at Risk'!T185/'Population at Risk'!T$5","v":3.299128857726577E-3},{"$f":"'Population at Risk'!U185/'Population at Risk'!U$5","v":1.3742314420989736E-3},{"$f":"'Population at Risk'!V185/'Population at Risk'!V$5","v":4.4915914002721788E-3},{"$f":"'Population at Risk'!W185/'Population at Risk'!W$5","v":4.4342795757163949E-3},{"$f":"'Population at Risk'!X185/'Population at Risk'!X$5","v":4.4342795757163949E-3},{"$f":"'Population at Risk'!Y185/'Population at Risk'!Y$5","v":5.0987903773789265E-3},{"$f":"'Population at Risk'!Z185/'Population at Risk'!Z$5","v":1.8812207321153654E-3},{"$f":"'Population at Risk'!AA185/'Population at Risk'!AA$5","v":3.39694432834291E-3},{"$f":"'Population at Risk'!AB185/'Population at Risk'!AB$5","v":7.4774717885965156E-3},{"$f":"'Population at Risk'!AC185/'Population at Risk'!AC$5","v":3.1127843730889876E-3},{"$f":"'Population at Risk'!AD185/'Population at Risk'!AD$5","v":8.1027462070844356E-3},{"$f":"'Population at Risk'!AE185/'Population at Risk'!AE$5","v":8.6731514025232791E-3},{"$f":"'Population at Risk'!AF185/'Population at Risk'!AF$5","v":4.411656359510901E-3},{"$f":"'Population at Risk'!AG185/'Population at Risk'!AG$5","v":8.6731514025232791E-3},{"$f":"'Population at Risk'!AH185/'Population at Risk'!AH$5","v":3.9139844421976749E-3},{"$f":"'Population at Risk'!AI185/'Population at Risk'!AI$5","v":4.0726499518669509E-3},{"$f":"'Population at Risk'!AJ185/'Population at Risk'!AJ$5","v":3.5126800239391278E-3},{"$f":"'Population at Risk'!AK185/'Population at Risk'!AK$5","v":1.064903317595735E-2},{"$f":"'Population at Risk'!AL185/'Population at Risk'!AL$5","v":3.8718781248586924E-3},{"$f":"'Population at Risk'!AM185/'Population at Risk'!AM$5","v":3.0066371768497869E-3},{"$f":"'Population at Risk'!AN185/'Population at Risk'!AN$5","v":1.3536740209291262E-2},{"$f":"'Population at Risk'!AO185/'Population at Risk'!AO$5","v":1.3536740209291262E-2},{"$f":"'Population at Risk'!AP185/'Population at Risk'!AP$5","v":1.1531459508258858E-2},{"$f":"'Population at Risk'!AQ185/'Population at Risk'!AQ$5","v":4.6863104399232315E-3},{"$f":"'Population at Risk'!AR185/'Population at Risk'!AR$5","v":4.8574165865960224E-3},{"$f":"'Population at Risk'!AS185/'Population at Risk'!AS$5","v":1.0538275974214695E-2},{"$f":"'Population at Risk'!AT185/'Population at Risk'!AT$5","v":1.6603720753895483E-2},{"$f":"'Population at Risk'!AU185/'Population at Risk'!AU$5","v":1.6603720753895483E-2},{"$f":"'Population at Risk'!AV185/'Population at Risk'!AV$5","v":3.7328172630683317E-3},{"$f":"'Population at Risk'!AW185/'Population at Risk'!AW$5","v":4.9492269164761651E-3},{"$f":"'Population at Risk'!AX185/'Population at Risk'!AX$5","v":6.8769408621805056E-3},{"$f":"'Population at Risk'!AY185/'Population at Risk'!AY$5","v":5.7469650789228445E-3},{"$f":"'Population at Risk'!AZ185/'Population at Risk'!AZ$5","v":6.9385526891631568E-3},{"$f":"'Population at Risk'!BA185/'Population at Risk'!BA$5","v":3.5718476507247835E-3},{"$f":"'Population at Risk'!BB185/'Population at Risk'!BB$5","v":3.8704119304090573E-3},{"$f":"'Population at Risk'!BC185/'Population at Risk'!BC$5","v":1.3742314420989736E-3},183]
[null,"Female 60-64",{"$f":"'Population at Risk'!C186/'Population at Risk'!C$5","v":2.9663216497261492E-3},{"$f":"'Population at Risk'!D186/'Population at Risk'!D$5","v":6.1903435443826831E-3},{"$f":"'Population at Risk'!E186/'Population at Risk'!E$5","v":9.4266990675999883E-3},{"$f":"'Population at Risk'!F186/'Population at Risk'!F$5","v":6.7388469387615214E-3},{"$f":"'Population at Risk'!G186/'Population at Risk'!G$5","v":6.2587909271448229E-3},{"$f":"'Population at Risk'!H186/'Population at Risk'!H$5","v":3.3772981165521442E-3},{"$f":"'Population at Risk'!I186/'Population at Risk'!I$5","v":9.4975355320539284E-3},{"$f":"'Population at Risk'!J186/'Population at Risk'!J$5","v":4.8129454256485528E-3},{"$f":"'Population at Risk'!K186/'Population at Risk'!K$5","v":3.2670384442818677E-3},{"$f":"'Population at Risk'!L186/'Population at Risk'!L$5","v":4.8170799490505328E-3},{"$f":"'Population at Risk'!M186/'Population at Risk'!M$5","v":4.8170799490505328E-3},{"$f":"'Population at Risk'!N186/'Population at Risk'!N$5","v":2.4209851286897538E-3},{"$f":"'Population at Risk'!O186/'Population at Risk'!O$5","v":2.9206814210243461E-3},{"$f":"'Population at Risk'!P186/'Population at Risk'!P$5","v":5.5867255697094279E-3},{"$f":"'Population at Risk'!Q186/'Population at Risk'!Q$5","v":7.3892925723635936E-3},{"$f":"'Population at Risk'!R186/'Population at Risk'!R$5","v":4.2115464339308331E-3},{"$f":"'Population at Risk'!S186/'Population at Risk'!S$5","v":4.0967929702514254E-3},{"$f":"'Population at Risk'!T186/'Population at Risk'!T$5","v":2.7679954602867788E-3},{"$f":"'Population at Risk'!U186/'Population at Risk'!U$5","v":9.0035853103036202E-4},{"$f":"'Population at Risk'!V186/'Population at Risk'!V$5","v":3.7380816901984018E-3},{"$f":"'Population at Risk'!W186/'Population at Risk'!W$5","v":4.0409595161449525E-3},{"$f":"'Population at Risk'!X186/'Population at Risk'!X$5","v":4.0409595161449525E-3},{"$f":"'Population at Risk'!Y186/'Population at Risk'!Y$5","v":4.2456594384187923E-3},{"$f":"'Population at Risk'!Z186/'Population at Risk'!Z$5","v":1.4695632570514202E-3},{"$f":"'Population at Risk'!AA186/'Population at Risk'!AA$5","v":2.8031667793436059E-3},{"$f":"'Population at Risk'!AB186/'Population at Risk'!AB$5","v":6.7316668102014345E-3},{"$f":"'Population at Risk'!AC186/'Population at Risk'!AC$5","v":2.5201701136832685E-3},{"$f":"'Population at Risk'!AD186/'Population at Risk'!AD$5","v":7.7192607444784705E-3},{"$f":"'Population at Risk'!AE186/'Population at Risk'!AE$5","v":8.2771578781375612E-3},{"$f":"'Population at Risk'!AF186/'Population at Risk'!AF$5","v":3.4636354497682873E-3},{"$f":"'Population at Risk'!AG186/'Population at Risk'!AG$5","v":8.2771578781375612E-3},{"$f":"'Population at Risk'!AH186/'Population at Risk'!AH$5","v":3.3180902424430748E-3},{"$f":"'Population at Risk'!AI186/'Population at Risk'!AI$5","v":3.436051270070272E-3},{"$f":"'Population at Risk'!AJ186/'Population at Risk'!AJ$5","v":3.2085518833383378E-3},{"$f":"'Population at Risk'!AK186/'Population at Risk'!AK$5","v":9.4833106093584665E-3},{"$f":"'Population at Risk'!AL186/'Population at Risk'!AL$5","v":3.8805887618100056E-3},{"$f":"'Population at Risk'!AM186/'Population at Risk'!AM$5","v":2.5646934595914654E-3},{"$f":"'Population at Risk'!AN186/'Population at Risk'!AN$5","v":1.2518940193555077E-2},{"$f":"'Population at Risk'!AO186/'Population at Risk'!AO$5","v":1.2518940193555077E-2},{"$f":"'Population at Risk'!AP186/'Population at Risk'!AP$5","v":1.0894692115222992E-2},{"$f":"'Population at Risk'!AQ186/'Population at Risk'!AQ$5","v":4.0633784181152545E-3},{"$f":"'Population at Risk'!AR186/'Population at Risk'!AR$5","v":4.2775376235154264E-3},{"$f":"'Population at Risk'!AS186/'Population at Risk'!AS$5","v":9.4975355320539284E-3},{"$f":"'Population at Risk'!AT186/'Population at Risk'!AT$5","v":1.4976556120013725E-2},{"$f":"'Population at Risk'!AU186/'Population at Risk'!AU$5","v":1.4976556120013725E-2},{"$f":"'Population at Risk'!AV186/'Population at Risk'!AV$5","v":3.2416570968751301E-3},{"$f":"'Population at Risk'!AW186/'Population at Risk'!AW$5","v":4.1776821312153548E-3},{"$f":"'Population at Risk'!AX186/'Population at Risk'!AX$5","v":5.7611458216280395E-3},{"$f":"'Population at Risk'!AY186/'Population at Risk'!AY$5","v":5.2530251806897736E-3},{"$f":"'Population at Risk'!AZ186/'Population at Risk'!AZ$5","v":6.353275335918427E-3},{"$f":"'Population at Risk'!BA186/'Population at Risk'!BA$5","v":2.6708986010786397E-3},{"$f":"'Population at Risk'!BB186/'Population at Risk'!BB$5","v":3.225343275340881E-3},{"$f":"'Population at Risk'!BC186/'Population at Risk'!BC$5","v":9.0035853103036202E-4},184]
[null,"Female 65-69",{"$f":"'Population at Risk'!C187/'Population at Risk'!C$5","v":3.0560227215114034E-3},{"$f":"'Population at Risk'!D187/'Population at Risk'!D$5","v":6.1438578606952034E-3},{"$f":"'Population at Risk'!E187/'Population at Risk'!E$5","v":9.2435056403969585E-3},{"$f":"'Population at Risk'!F187/'Population at Risk'!F$5","v":7.2323791286708185E-3},{"$f":"'Population at Risk'!G187/'Population at Risk'!G$5","v":7.178513628767598E-3},{"$f":"'Population at Risk'!H187/'Population at Risk'!H$5","v":3.4418324754671532E-3},{"$f":"'Population at Risk'!I187/'Population at Risk'!I$5","v":1.031392474117405E-2},{"$f":"'Population at Risk'!J187/'Population at Risk'!J$5","v":4.9917254121340316E-3},{"$f":"'Population at Risk'!K187/'Population at Risk'!K$5","v":3.6259176673279821E-3},{"$f":"'Population at Risk'!L187/'Population at Risk'!L$5","v":4.5843495595339631E-3},{"$f":"'Population at Risk'!M187/'Population at Risk'!M$5","v":4.5843495595339631E-3},{"$f":"'Population at Risk'!N187/'Population at Risk'!N$5","v":2.6747655997504103E-3},{"$f":"'Population at Risk'!O187/'Population at Risk'!O$5","v":2.8859704363941754E-3},{"$f":"'Population at Risk'!P187/'Population at Risk'!P$5","v":5.4642767900993571E-3},{"$f":"'Population at Risk'!Q187/'Population at Risk'!Q$5","v":7.3962504749741052E-3},{"$f":"'Population at Risk'!R187/'Population at Risk'!R$5","v":3.8410026489712535E-3},{"$f":"'Population at Risk'!S187/'Population at Risk'!S$5","v":4.1724819646519317E-3},{"$f":"'Population at Risk'!T187/'Population at Risk'!T$5","v":2.6612140722897439E-3},{"$f":"'Population at Risk'!U187/'Population at Risk'!U$5","v":1.3979250876524042E-3},{"$f":"'Population at Risk'!V187/'Population at Risk'!V$5","v":4.154827284038088E-3},{"$f":"'Population at Risk'!W187/'Population at Risk'!W$5","v":4.1594943286185375E-3},{"$f":"'Population at Risk'!X187/'Population at Risk'!X$5","v":4.1594943286185375E-3},{"$f":"'Population at Risk'!Y187/'Population at Risk'!Y$5","v":4.5500316744540486E-3},{"$f":"'Population at Risk'!Z187/'Population at Risk'!Z$5","v":1.2862049057128944E-3},{"$f":"'Population at Risk'!AA187/'Population at Risk'!AA$5","v":2.5415020967337431E-3},{"$f":"'Population at Risk'!AB187/'Population at Risk'!AB$5","v":6.8494936383853792E-3},{"$f":"'Population at Risk'!AC187/'Population at Risk'!AC$5","v":2.3382271393043203E-3},{"$f":"'Population at Risk'!AD187/'Population at Risk'!AD$5","v":7.8549887452884475E-3},{"$f":"'Population at Risk'!AE187/'Population at Risk'!AE$5","v":8.1134011575269248E-3},{"$f":"'Population at Risk'!AF187/'Population at Risk'!AF$5","v":3.2396935025849928E-3},{"$f":"'Population at Risk'!AG187/'Population at Risk'!AG$5","v":8.1134011575269248E-3},{"$f":"'Population at Risk'!AH187/'Population at Risk'!AH$5","v":2.9113688045153321E-3},{"$f":"'Population at Risk'!AI187/'Population at Risk'!AI$5","v":3.3988833967231362E-3},{"$f":"'Population at Risk'!AJ187/'Population at Risk'!AJ$5","v":3.4898704133940685E-3},{"$f":"'Population at Risk'!AK187/'Population at Risk'!AK$5","v":1.0436367572591336E-2},{"$f":"'Population at Risk'!AL187/'Population at Risk'!AL$5","v":3.9807610867501064E-3},{"$f":"'Population at Risk'!AM187/'Population at Risk'!AM$5","v":2.1404984859981365E-3},{"$f":"'Population at Risk'!AN187/'Population at Risk'!AN$5","v":1.2959986867040757E-2},{"$f":"'Population at Risk'!AO187/'Population at Risk'!AO$5","v":1.2959986867040757E-2},{"$f":"'Population at Risk'!AP187/'Population at Risk'!AP$5","v":1.1038959727707682E-2},{"$f":"'Population at Risk'!AQ187/'Population at Risk'!AQ$5","v":3.7841330290289197E-3},{"$f":"'Population at Risk'!AR187/'Population at Risk'!AR$5","v":4.2564311516843836E-3},{"$f":"'Population at Risk'!AS187/'Population at Risk'!AS$5","v":1.031392474117405E-2},{"$f":"'Population at Risk'!AT187/'Population at Risk'!AT$5","v":1.4079955199303369E-2},{"$f":"'Population at Risk'!AU187/'Population at Risk'!AU$5","v":1.4079955199303369E-2},{"$f":"'Population at Risk'!AV187/'Population at Risk'!AV$5","v":3.3745592594921141E-3},{"$f":"'Population at Risk'!AW187/'Population at Risk'!AW$5","v":3.7908972126200415E-3},{"$f":"'Population at Risk'!AX187/'Population at Risk'!AX$5","v":5.8294598037026803E-3},{"$f":"'Population at Risk'!AY187/'Population at Risk'!AY$5","v":5.4572667649072544E-3},{"$f":"'Population at Risk'!AZ187/'Population at Risk'!AZ$5","v":6.6353170688190901E-3},{"$f":"'Population at Risk'!BA187/'Population at Risk'!BA$5","v":2.7923030829458506E-3},{"$f":"'Population at Risk'!BB187/'Population at Risk'!BB$5","v":3.1955135109446651E-3},{"$f":"'Population at Risk'!BC187/'Population at Risk'!BC$5","v":1.3979250876524042E-3},185]
[null,"Female 70-74",{"$f":"'Population at Risk'!C188/'Population at Risk'!C$5","v":2.1528257228460895E-3},{"$f":"'Population at Risk'!D188/'Population at Risk'!D$5","v":4.4455808833126203E-3},{"$f":"'Population at Risk'!E188/'Population at Risk'!E$5","v":6.7471070730878713E-3},{"$f":"'Population at Risk'!F188/'Population at Risk'!F$5","v":5.7456895689440455E-3},{"$f":"'Population at Risk'!G188/'Population at Risk'!G$5","v":5.682015673584776E-3},{"$f":"'Population at Risk'!H188/'Population at Risk'!H$5","v":2.8990819697204098E-3},{"$f":"'Population at Risk'!I188/'Population at Risk'!I$5","v":8.2511397929392397E-3},{"$f":"'Population at Risk'!J188/'Population at Risk'!J$5","v":3.9707975945722169E-3},{"$f":"'Population at Risk'!K188/'Population at Risk'!K$5","v":2.8091580562575151E-3},{"$f":"'Population at Risk'!L188/'Population at Risk'!L$5","v":3.9520254823568642E-3},{"$f":"'Population at Risk'!M188/'Population at Risk'!M$5","v":3.9520254823568642E-3},{"$f":"'Population at Risk'!N188/'Population at Risk'!N$5","v":1.877169833559776E-3},{"$f":"'Population at Risk'!O188/'Population at Risk'!O$5","v":2.1372049108004977E-3},{"$f":"'Population at Risk'!P188/'Population at Risk'!P$5","v":3.8800957038940815E-3},{"$f":"'Population at Risk'!Q188/'Population at Risk'!Q$5","v":5.2949638865995245E-3},{"$f":"'Population at Risk'!R188/'Population at Risk'!R$5","v":3.0005008928434256E-3},{"$f":"'Population at Risk'!S188/'Population at Risk'!S$5","v":3.1622861860531692E-3},{"$f":"'Population at Risk'!T188/'Population at Risk'!T$5","v":2.0038844890352685E-3},{"$f":"'Population at Risk'!U188/'Population at Risk'!U$5","v":1.0899076954578066E-3},{"$f":"'Population at Risk'!V188/'Population at Risk'!V$5","v":3.1108585237124087E-3},{"$f":"'Population at Risk'!W188/'Population at Risk'!W$5","v":3.2201957388657333E-3},{"$f":"'Population at Risk'!X188/'Population at Risk'!X$5","v":3.2201957388657333E-3},{"$f":"'Population at Risk'!Y188/'Population at Risk'!Y$5","v":3.5169434280570111E-3},{"$f":"'Population at Risk'!Z188/'Population at Risk'!Z$5","v":9.2128583393131852E-4},{"$f":"'Population at Risk'!AA188/'Population at Risk'!AA$5","v":1.8064927126334753E-3},{"$f":"'Population at Risk'!AB188/'Population at Risk'!AB$5","v":5.0056979973530959E-3},{"$f":"'Population at Risk'!AC188/'Population at Risk'!AC$5","v":1.7274185824607058E-3},{"$f":"'Population at Risk'!AD188/'Population at Risk'!AD$5","v":6.0172747025755988E-3},{"$f":"'Population at Risk'!AE188/'Population at Risk'!AE$5","v":6.1453431152791102E-3},{"$f":"'Population at Risk'!AF188/'Population at Risk'!AF$5","v":2.709697560917863E-3},{"$f":"'Population at Risk'!AG188/'Population at Risk'!AG$5","v":6.1453431152791102E-3},{"$f":"'Population at Risk'!AH188/'Population at Risk'!AH$5","v":1.9503711744348975E-3},{"$f":"'Population at Risk'!AI188/'Population at Risk'!AI$5","v":2.4910383200739601E-3},{"$f":"'Population at Risk'!AJ188/'Population at Risk'!AJ$5","v":2.6915340443169943E-3},{"$f":"'Population at Risk'!AK188/'Population at Risk'!AK$5","v":7.8528743168857079E-3},{"$f":"'Population at Risk'!AL188/'Population at Risk'!AL$5","v":3.2447122643641463E-3},{"$f":"'Population at Risk'!AM188/'Population at Risk'!AM$5","v":1.4021507495344343E-3},{"$f":"'Population at Risk'!AN188/'Population at Risk'!AN$5","v":9.8048068182585834E-3},{"$f":"'Population at Risk'!AO188/'Population at Risk'!AO$5","v":9.8048068182585834E-3},{"$f":"'Population at Risk'!AP188/'Population at Risk'!AP$5","v":8.3973699956604621E-3},{"$f":"'Population at Risk'!AQ188/'Population at Risk'!AQ$5","v":2.7208525090463378E-3},{"$f":"'Population at Risk'!AR188/'Population at Risk'!AR$5","v":3.2111117837747357E-3},{"$f":"'Population at Risk'!AS188/'Population at Risk'!AS$5","v":8.2511397929392397E-3},{"$f":"'Population at Risk'!AT188/'Population at Risk'!AT$5","v":1.135694499566451E-2},{"$f":"'Population at Risk'!AU188/'Population at Risk'!AU$5","v":1.135694499566451E-2},{"$f":"'Population at Risk'!AV188/'Population at Risk'!AV$5","v":3.3283324203209892E-3},{"$f":"'Population at Risk'!AW188/'Population at Risk'!AW$5","v":2.5758660547290022E-3},{"$f":"'Population at Risk'!AX188/'Population at Risk'!AX$5","v":4.6833029933392627E-3},{"$f":"'Population at Risk'!AY188/'Population at Risk'!AY$5","v":4.1788340871275406E-3},{"$f":"'Population at Risk'!AZ188/'Population at Risk'!AZ$5","v":5.0490361086321187E-3},{"$f":"'Population at Risk'!BA188/'Population at Risk'!BA$5","v":2.1469424161780454E-3},{"$f":"'Population at Risk'!BB188/'Population at Risk'!BB$5","v":2.1999451242209478E-3},{"$f":"'Population at Risk'!BC188/'Population at Risk'!BC$5","v":1.0899076954578066E-3},186]
[null,"Female 75-79",{"$f":"'Population at Risk'!C189/'Population at Risk'!C$5","v":1.8311391205817315E-3},{"$f":"'Population at Risk'!D189/'Population at Risk'!D$5","v":3.5608033704609271E-3},{"$f":"'Population at Risk'!E189/'Population at Risk'!E$5","v":5.2970845221757511E-3},{"$f":"'Population at Risk'!F189/'Population at Risk'!F$5","v":4.4722546591780803E-3},{"$f":"'Population at Risk'!G189/'Population at Risk'!G$5","v":4.3725799627998075E-3},{"$f":"'Population at Risk'!H189/'Population at Risk'!H$5","v":2.0435880323086222E-3},{"$f":"'Population at Risk'!I189/'Population at Risk'!I$5","v":6.6557532468724387E-3},{"$f":"'Population at Risk'!J189/'Population at Risk'!J$5","v":2.9122318851187235E-3},{"$f":"'Population at Risk'!K189/'Population at Risk'!K$5","v":1.8438966977196907E-3},{"$f":"'Population at Risk'!L189/'Population at Risk'!L$5","v":3.1133178522122409E-3},{"$f":"'Population at Risk'!M189/'Population at Risk'!M$5","v":3.1133178522122409E-3},{"$f":"'Population at Risk'!N189/'Population at Risk'!N$5","v":1.6395024082807485E-3},{"$f":"'Population at Risk'!O189/'Population at Risk'!O$5","v":1.5124071874574286E-3},{"$f":"'Population at Risk'!P189/'Population at Risk'!P$5","v":3.6734633883020889E-3},{"$f":"'Population at Risk'!Q189/'Population at Risk'!Q$5","v":3.9660044879917594E-3},{"$f":"'Population at Risk'!R189/'Population at Risk'!R$5","v":2.7293712940925142E-3},{"$f":"'Population at Risk'!S189/'Population at Risk'!S$5","v":2.4533326051684231E-3},{"$f":"'Population at Risk'!T189/'Population at Risk'!T$5","v":1.6391636443181228E-3},{"$f":"'Population at Risk'!U189/'Population at Risk'!U$5","v":9.0035853103036202E-4},{"$f":"'Population at Risk'!V189/'Population at Risk'!V$5","v":2.4499589456030064E-3},{"$f":"'Population at Risk'!W189/'Population at Risk'!W$5","v":2.3509404473927745E-3},{"$f":"'Population at Risk'!X189/'Population at Risk'!X$5","v":2.3509404473927745E-3},{"$f":"'Population at Risk'!Y189/'Population at Risk'!Y$5","v":2.6682558794039611E-3},{"$f":"'Population at Risk'!Z189/'Population at Risk'!Z$5","v":8.2691021191884199E-4},{"$f":"'Population at Risk'!AA189/'Population at Risk'!AA$5","v":1.504907392548518E-3},{"$f":"'Population at Risk'!AB189/'Population at Risk'!AB$5","v":3.9128865359547476E-3},{"$f":"'Population at Risk'!AC189/'Population at Risk'!AC$5","v":1.4477462389867787E-3},{"$f":"'Population at Risk'!AD189/'Population at Risk'!AD$5","v":4.6470682182082231E-3},{"$f":"'Population at Risk'!AE189/'Population at Risk'!AE$5","v":4.7519222926286136E-3},{"$f":"'Population at Risk'!AF189/'Population at Risk'!AF$5","v":1.8064650406119085E-3},{"$f":"'Population at Risk'!AG189/'Population at Risk'!AG$5","v":4.7519222926286136E-3},{"$f":"'Population at Risk'!AH189/'Population at Risk'!AH$5","v":1.6089143393374203E-3},{"$f":"'Population at Risk'!AI189/'Population at Risk'!AI$5","v":1.9651524525027908E-3},{"$f":"'Population at Risk'!AJ189/'Population at Risk'!AJ$5","v":1.9996425244501962E-3},{"$f":"'Population at Risk'!AK189/'Population at Risk'!AK$5","v":5.7025887717404734E-3},{"$f":"'Population at Risk'!AL189/'Population at Risk'!AL$5","v":2.229923059536165E-3},{"$f":"'Population at Risk'!AM189/'Population at Risk'!AM$5","v":1.2015899461200153E-3},{"$f":"'Population at Risk'!AN189/'Population at Risk'!AN$5","v":7.7013534524038004E-3},{"$f":"'Population at Risk'!AO189/'Population at Risk'!AO$5","v":7.7013534524038004E-3},{"$f":"'Population at Risk'!AP189/'Population at Risk'!AP$5","v":6.9099211634907473E-3},{"$f":"'Population at Risk'!AQ189/'Population at Risk'!AQ$5","v":2.0406393817847535E-3},{"$f":"'Population at Risk'!AR189/'Population at Risk'!AR$5","v":2.52643247790301E-3},{"$f":"'Population at Risk'!AS189/'Population at Risk'!AS$5","v":6.6557532468724387E-3},{"$f":"'Population at Risk'!AT189/'Population at Risk'!AT$5","v":8.0029934033776229E-3},{"$f":"'Population at Risk'!AU189/'Population at Risk'!AU$5","v":8.0029934033776229E-3},{"$f":"'Population at Risk'!AV189/'Population at Risk'!AV$5","v":2.4153523466912733E-3},{"$f":"'Population at Risk'!AW189/'Population at Risk'!AW$5","v":2.0736531761340396E-3},{"$f":"'Population at Risk'!AX189/'Population at Risk'!AX$5","v":3.5675079527867962E-3},{"$f":"'Population at Risk'!AY189/'Population at Risk'!AY$5","v":3.2806838569494129E-3},{"$f":"'Population at Risk'!AZ189/'Population at Risk'!AZ$5","v":4.1246565562929483E-3},{"$f":"'Population at Risk'!BA189/'Population at Risk'!BA$5","v":1.7316112940007448E-3},{"$f":"'Population at Risk'!BB189/'Population at Risk'!BB$5","v":1.7524986582777042E-3},{"$f":"'Population at Risk'!BC189/'Population at Risk'!BC$5","v":9.0035853103036202E-4},187]
[null,"Female 80-84",{"$f":"'Population at Risk'!C190/'Population at Risk'!C$5","v":1.4135651657193433E-3},{"$f":"'Population at Risk'!D190/'Population at Risk'!D$5","v":2.6775753803988172E-3},{"$f":"'Population at Risk'!E190/'Population at Risk'!E$5","v":3.9464211182212074E-3},{"$f":"'Population at Risk'!F190/'Population at Risk'!F$5","v":3.6009570893382088E-3},{"$f":"'Population at Risk'!G190/'Population at Risk'!G$5","v":2.9852016501823999E-3},{"$f":"'Population at Risk'!H190/'Population at Risk'!H$5","v":1.5570982497185534E-3},{"$f":"'Population at Risk'!I190/'Population at Risk'!I$5","v":4.543112469073041E-3},{"$f":"'Population at Risk'!J190/'Population at Risk'!J$5","v":2.2865019324195468E-3},{"$f":"'Population at Risk'!K190/'Population at Risk'!K$5","v":1.3612660184507783E-3},{"$f":"'Population at Risk'!L190/'Population at Risk'!L$5","v":2.4634292173357788E-3},{"$f":"'Population at Risk'!M190/'Population at Risk'!M$5","v":2.4634292173357788E-3},{"$f":"'Population at Risk'!N190/'Population at Risk'!N$5","v":1.6314458853899339E-3},{"$f":"'Population at Risk'!O190/'Population at Risk'!O$5","v":9.4711400919465197E-4},{"$f":"'Population at Risk'!P190/'Population at Risk'!P$5","v":2.5790774205370916E-3},{"$f":"'Population at Risk'!Q190/'Population at Risk'!Q$5","v":3.0823508564567534E-3},{"$f":"'Population at Risk'!R190/'Population at Risk'!R$5","v":2.3226768959661464E-3},{"$f":"'Population at Risk'!S190/'Population at Risk'!S$5","v":1.832178257788265E-3},{"$f":"'Population at Risk'!T190/'Population at Risk'!T$5","v":1.4047992992337211E-3},{"$f":"'Population at Risk'!U190/'Population at Risk'!U$5","v":4.5017926551518101E-4},{"$f":"'Population at Risk'!V190/'Population at Risk'!V$5","v":1.7806402645877521E-3},{"$f":"'Population at Risk'!W190/'Population at Risk'!W$5","v":1.7528784390033218E-3},{"$f":"'Population at Risk'!X190/'Population at Risk'!X$5","v":1.7528784390033218E-3},{"$f":"'Population at Risk'!Y190/'Population at Risk'!Y$5","v":2.0195208945696921E-3},{"$f":"'Population at Risk'!Z190/'Population at Risk'!Z$5","v":6.210814743868693E-4},{"$f":"'Population at Risk'!AA190/'Population at Risk'!AA$5","v":1.1080492905902262E-3},{"$f":"'Population at Risk'!AB190/'Population at Risk'!AB$5","v":3.0000523176066021E-3},{"$f":"'Population at Risk'!AC190/'Population at Risk'!AC$5","v":1.105693447154355E-3},{"$f":"'Population at Risk'!AD190/'Population at Risk'!AD$5","v":3.5246191956368345E-3},{"$f":"'Population at Risk'!AE190/'Population at Risk'!AE$5","v":3.7306758350022892E-3},{"$f":"'Population at Risk'!AF190/'Population at Risk'!AF$5","v":1.6870293354474849E-3},{"$f":"'Population at Risk'!AG190/'Population at Risk'!AG$5","v":3.7306758350022892E-3},{"$f":"'Population at Risk'!AH190/'Population at Risk'!AH$5","v":1.1123358395419202E-3},{"$f":"'Population at Risk'!AI190/'Population at Risk'!AI$5","v":1.5230920014166498E-3},{"$f":"'Population at Risk'!AJ190/'Population at Risk'!AJ$5","v":1.3533702256735168E-3},{"$f":"'Population at Risk'!AK190/'Population at Risk'!AK$5","v":4.6392607549104129E-3},{"$f":"'Population at Risk'!AL190/'Population at Risk'!AL$5","v":1.659376339225154E-3},{"$f":"'Population at Risk'!AM190/'Population at Risk'!AM$5","v":7.6142110322819279E-4},{"$f":"'Population at Risk'!AN190/'Population at Risk'!AN$5","v":4.5461734036216263E-3},{"$f":"'Population at Risk'!AO190/'Population at Risk'!AO$5","v":4.5461734036216263E-3},{"$f":"'Population at Risk'!AP190/'Population at Risk'!AP$5","v":5.0493664369640817E-3},{"$f":"'Population at Risk'!AQ190/'Population at Risk'!AQ$5","v":1.5716503308833452E-3},{"$f":"'Population at Risk'!AR190/'Population at Risk'!AR$5","v":1.9073906393440054E-3},{"$f":"'Population at Risk'!AS190/'Population at Risk'!AS$5","v":4.543112469073041E-3},{"$f":"'Population at Risk'!AT190/'Population at Risk'!AT$5","v":5.7116799393400466E-3},{"$f":"'Population at Risk'!AU190/'Population at Risk'!AU$5","v":5.7116799393400466E-3},{"$f":"'Population at Risk'!AV190/'Population at Risk'!AV$5","v":2.132212956768134E-3},{"$f":"'Population at Risk'!AW190/'Population at Risk'!AW$5","v":1.5127137915743433E-3},{"$f":"'Population at Risk'!AX190/'Population at Risk'!AX$5","v":2.8540063622294371E-3},{"$f":"'Population at Risk'!AY190/'Population at Risk'!AY$5","v":2.552592519069522E-3},{"$f":"'Population at Risk'!AZ190/'Population at Risk'!AZ$5","v":3.2785313575909559E-3},{"$f":"'Population at Risk'!BA190/'Population at Risk'!BA$5","v":1.1309785942366488E-3},{"$f":"'Population at Risk'!BB190/'Population at Risk'!BB$5","v":1.0887864004618928E-3},{"$f":"'Population at Risk'!BC190/'Population at Risk'!BC$5","v":4.5017926551518101E-4},188]
[null,"Female 85-89",{"$f":"'Population at Risk'!C191/'Population at Risk'!C$5","v":8.6607931378865669E-4},{"$f":"'Population at Risk'!D191/'Population at Risk'!D$5","v":1.6843312722763393E-3},{"$f":"'Population at Risk'!E191/'Population at Risk'!E$5","v":2.5057134873363606E-3},{"$f":"'Population at Risk'!F191/'Population at Risk'!F$5","v":2.1264535096091959E-3},{"$f":"'Population at Risk'!G191/'Population at Risk'!G$5","v":1.9485650458109659E-3},{"$f":"'Population at Risk'!H191/'Population at Risk'!H$5","v":9.1340938772012902E-4},{"$f":"'Population at Risk'!I191/'Population at Risk'!I$5","v":2.9539579017018123E-3},{"$f":"'Population at Risk'!J191/'Population at Risk'!J$5","v":1.4067162094515318E-3},{"$f":"'Population at Risk'!K191/'Population at Risk'!K$5","v":8.5388504793730633E-4},{"$f":"'Population at Risk'!L191/'Population at Risk'!L$5","v":1.4402937313478348E-3},{"$f":"'Population at Risk'!M191/'Population at Risk'!M$5","v":1.4402937313478348E-3},{"$f":"'Population at Risk'!N191/'Population at Risk'!N$5","v":1.3051567083119471E-3},{"$f":"'Population at Risk'!O191/'Population at Risk'!O$5","v":5.7521060244282538E-4},{"$f":"'Population at Risk'!P191/'Population at Risk'!P$5","v":1.9744865712123731E-3},{"$f":"'Population at Risk'!Q191/'Population at Risk'!Q$5","v":1.7603493604595002E-3},{"$f":"'Population at Risk'!R191/'Population at Risk'!R$5","v":1.5273634062968043E-3},{"$f":"'Population at Risk'!S191/'Population at Risk'!S$5","v":1.2054733841520698E-3},{"$f":"'Population at Risk'!T191/'Population at Risk'!T$5","v":1.1579540126951204E-3},{"$f":"'Population at Risk'!U191/'Population at Risk'!U$5","v":5.2126020217547271E-4},{"$f":"'Population at Risk'!V191/'Population at Risk'!V$5","v":1.0692260690432366E-3},{"$f":"'Population at Risk'!W191/'Population at Risk'!W$5","v":1.0632213482479164E-3},{"$f":"'Population at Risk'!X191/'Population at Risk'!X$5","v":1.0632213482479164E-3},{"$f":"'Population at Risk'!Y191/'Population at Risk'!Y$5","v":1.2285974199087348E-3},{"$f":"'Population at Risk'!Z191/'Population at Risk'!Z$5","v":3.9997287424335291E-4},{"$f":"'Population at Risk'!AA191/'Population at Risk'!AA$5","v":7.044818377957841E-4},{"$f":"'Population at Risk'!AB191/'Population at Risk'!AB$5","v":1.8955876534208309E-3},{"$f":"'Population at Risk'!AC191/'Population at Risk'!AC$5","v":7.3868847597853245E-4},{"$f":"'Population at Risk'!AD191/'Population at Risk'!AD$5","v":2.1587215366919979E-3},{"$f":"'Population at Risk'!AE191/'Population at Risk'!AE$5","v":2.2390009799854119E-3},{"$f":"'Population at Risk'!AF191/'Population at Risk'!AF$5","v":1.0749213464798133E-3},{"$f":"'Population at Risk'!AG191/'Population at Risk'!AG$5","v":2.2390009799854119E-3},{"$f":"'Population at Risk'!AH191/'Population at Risk'!AH$5","v":6.4224152640218008E-4},{"$f":"'Population at Risk'!AI191/'Population at Risk'!AI$5","v":1.0462360944310631E-3},{"$f":"'Population at Risk'!AJ191/'Population at Risk'!AJ$5","v":7.2990753744189678E-4},{"$f":"'Population at Risk'!AK191/'Population at Risk'!AK$5","v":2.9694419432957993E-3},{"$f":"'Population at Risk'!AL191/'Population at Risk'!AL$5","v":9.8430197549838534E-4},{"$f":"'Population at Risk'!AM191/'Population at Risk'!AM$5","v":3.1592763723687256E-4},{"$f":"'Population at Risk'!AN191/'Population at Risk'!AN$5","v":3.3248133847382047E-3},{"$f":"'Population at Risk'!AO191/'Population at Risk'!AO$5","v":3.3248133847382047E-3},{"$f":"'Population at Risk'!AP191/'Population at Risk'!AP$5","v":3.4624226996325131E-3},{"$f":"'Population at Risk'!AQ191/'Population at Risk'!AQ$5","v":1.0525403127100306E-3},{"$f":"'Population at Risk'!AR191/'Population at Risk'!AR$5","v":1.2185632407424795E-3},{"$f":"'Population at Risk'!AS191/'Population at Risk'!AS$5","v":2.9539579017018123E-3},{"$f":"'Population at Risk'!AT191/'Population at Risk'!AT$5","v":3.6860260073647974E-3},{"$f":"'Population at Risk'!AU191/'Population at Risk'!AU$5","v":3.6860260073647974E-3},{"$f":"'Population at Risk'!AV191/'Population at Risk'!AV$5","v":1.2134545282420273E-3},{"$f":"'Population at Risk'!AW191/'Population at Risk'!AW$5","v":1.0145510168390174E-3},{"$f":"'Population at Risk'!AX191/'Population at Risk'!AX$5","v":1.7458017641297089E-3},{"$f":"'Population at Risk'!AY191/'Population at Risk'!AY$5","v":1.6758064713409218E-3},{"$f":"'Population at Risk'!AZ191/'Population at Risk'!AZ$5","v":2.231879377693694E-3},{"$f":"'Population at Risk'!BA191/'Population at Risk'!BA$5","v":7.0925776248738999E-4},{"$f":"'Population at Risk'!BB191/'Population at Risk'!BB$5","v":5.1829215638425716E-4},{"$f":"'Population at Risk'!BC191/'Population at Risk'!BC$5","v":5.2126020217547271E-4},189]
[null,"Female 90+",{"$f":"'Population at Risk'!C192/'Population at Risk'!C$5","v":3.9901511242405971E-4},{"$f":"'Population at Risk'!D192/'Population at Risk'!D$5","v":9.1886701422251083E-4},{"$f":"'Population at Risk'!E192/'Population at Risk'!E$5","v":1.4407076308848468E-3},{"$f":"'Population at Risk'!F192/'Population at Risk'!F$5","v":1.7243161696831016E-3},{"$f":"'Population at Risk'!G192/'Population at Risk'!G$5","v":1.247081629319018E-3},{"$f":"'Population at Risk'!H192/'Population at Risk'!H$5","v":5.6591668587007999E-4},{"$f":"'Population at Risk'!I192/'Population at Risk'!I$5","v":1.738722056064991E-3},{"$f":"'Population at Risk'!J192/'Population at Risk'!J$5","v":1.0209278175618141E-3},{"$f":"'Population at Risk'!K192/'Population at Risk'!K$5","v":5.5688155300259105E-4},{"$f":"'Population at Risk'!L192/'Population at Risk'!L$5","v":7.5088484164780424E-4},{"$f":"'Population at Risk'!M192/'Population at Risk'!M$5","v":7.5088484164780424E-4},{"$f":"'Population at Risk'!N192/'Population at Risk'!N$5","v":7.5328489029115472E-4},{"$f":"'Population at Risk'!O192/'Population at Risk'!O$5","v":3.5206855839172932E-4},{"$f":"'Population at Risk'!P192/'Population at Risk'!P$5","v":9.8724328560618655E-4},{"$f":"'Population at Risk'!Q192/'Population at Risk'!Q$5","v":8.9756943675602975E-4},{"$f":"'Population at Risk'!R192/'Population at Risk'!R$5","v":1.5183257530051073E-3},{"$f":"'Population at Risk'!S192/'Population at Risk'!S$5","v":7.1652248032479657E-4},{"$f":"'Population at Risk'!T192/'Population at Risk'!T$5","v":6.8367823743556216E-4},{"$f":"'Population at Risk'!U192/'Population at Risk'!U$5","v":2.6063010108773636E-4},{"$f":"'Population at Risk'!V192/'Population at Risk'!V$5","v":7.2825240135622016E-4},{"$f":"'Population at Risk'!W192/'Population at Risk'!W$5","v":7.3096467692044251E-4},{"$f":"'Population at Risk'!X192/'Population at Risk'!X$5","v":7.3096467692044251E-4},{"$f":"'Population at Risk'!Y192/'Population at Risk'!Y$5","v":8.6646110988138623E-4},{"$f":"'Population at Risk'!Z192/'Population at Risk'!Z$5","v":2.4627543268017685E-4},{"$f":"'Population at Risk'!AA192/'Population at Risk'!AA$5","v":3.975290370419068E-4},{"$f":"'Population at Risk'!AB192/'Population at Risk'!AB$5","v":1.0228922446738091E-3},{"$f":"'Population at Risk'!AC192/'Population at Risk'!AC$5","v":4.4809955404186835E-4},{"$f":"'Population at Risk'!AD192/'Population at Risk'!AD$5","v":1.4046770877476872E-3},{"$f":"'Population at Risk'!AE192/'Population at Risk'!AE$5","v":1.4648783007351369E-3},{"$f":"'Population at Risk'!AF192/'Population at Risk'!AF$5","v":5.5985486795823614E-4},{"$f":"'Population at Risk'!AG192/'Population at Risk'!AG$5","v":1.4648783007351369E-3},{"$f":"'Population at Risk'!AH192/'Population at Risk'!AH$5","v":3.0551401035037437E-4},{"$f":"'Population at Risk'!AI192/'Population at Risk'!AI$5","v":5.8045146886802747E-4},{"$f":"'Population at Risk'!AJ192/'Population at Risk'!AJ$5","v":5.3982744956640287E-4},{"$f":"'Population at Risk'!AK192/'Population at Risk'!AK$5","v":1.5516712541890517E-3},{"$f":"'Population at Risk'!AL192/'Population at Risk'!AL$5","v":6.5329777134848579E-4},{"$f":"'Population at Risk'!AM192/'Population at Risk'!AM$5","v":1.4021507495344342E-4},{"$f":"'Population at Risk'!AN192/'Population at Risk'!AN$5","v":1.6284800251778963E-3},{"$f":"'Population at Risk'!AO192/'Population at Risk'!AO$5","v":1.6284800251778963E-3},{"$f":"'Population at Risk'!AP192/'Population at Risk'!AP$5","v":2.2585343471740816E-3},{"$f":"'Population at Risk'!AQ192/'Population at Risk'!AQ$5","v":5.7639112362692152E-4},{"$f":"'Population at Risk'!AR192/'Population at Risk'!AR$5","v":7.3177235862769243E-4},{"$f":"'Population at Risk'!AS192/'Population at Risk'!AS$5","v":1.738722056064991E-3},{"$f":"'Population at Risk'!AT192/'Population at Risk'!AT$5","v":2.1584836980064128E-3},{"$f":"'Population at Risk'!AU192/'Population at Risk'!AU$5","v":2.1584836980064128E-3},{"$f":"'Population at Risk'!AV192/'Population at Risk'!AV$5","v":6.9918094246326334E-4},{"$f":"'Population at Risk'!AW192/'Population at Risk'!AW$5","v":4.941126708756892E-4},{"$f":"'Population at Risk'!AX192/'Population at Risk'!AX$5","v":1.3055561018709128E-3},{"$f":"'Population at Risk'!AY192/'Population at Risk'!AY$5","v":1.1374290736128336E-3},{"$f":"'Population at Risk'!AZ192/'Population at Risk'!AZ$5","v":1.5063963075156853E-3},{"$f":"'Population at Risk'!BA192/'Population at Risk'!BA$5","v":3.5143402645771576E-4},{"$f":"'Population at Risk'!BB192/'Population at Risk'!BB$5","v":1.5287754253060821E-4},{"$f":"'Population at Risk'!BC192/'Population at Risk'!BC$5","v":2.6063010108773636E-4},190]
[null,"Male 0-4",{"$f":"'Population at Risk'!C193/'Population at Risk'!C$5","v":0},{"$f":"'Population at Risk'!D193/'Population at Risk'!D$5","v":0},{"$f":"'Population at Risk'!E193/'Population at Risk'!E$5","v":0},{"$f":"'Population at Risk'!F193/'Population at Risk'!F$5","v":0},{"$f":"'Population at Risk'!G193/'Population at Risk'!G$5","v":0},{"$f":"'Population at Risk'!H193/'Population at Risk'!H$5","v":0},{"$f":"'Population at Risk'!I193/'Population at Risk'!I$5","v":0},{"$f":"'Population at Risk'!J193/'Population at Risk'!J$5","v":0},{"$f":"'Population at Risk'!K193/'Population at Risk'!K$5","v":0},{"$f":"'Population at Risk'!L193/'Population at Risk'!L$5","v":0},{"$f":"'Population at Risk'!M193/'Population at Risk'!M$5","v":0},{"$f":"'Population at Risk'!N193/'Population at Risk'!N$5","v":0},{"$f":"'Population at Risk'!O193/'Population at Risk'!O$5","v":0},{"$f":"'Population at Risk'!P193/'Population at Risk'!P$5","v":0},{"$f":"'Population at Risk'!Q193/'Population at Risk'!Q$5","v":0},{"$f":"'Population at Risk'!R193/'Population at Risk'!R$5","v":0},{"$f":"'Population at Risk'!S193/'Population at Risk'!S$5","v":0},{"$f":"'Population at Risk'!T193/'Population at Risk'!T$5","v":0},{"$f":"'Population at Risk'!U193/'Population at Risk'!U$5","v":0},{"$f":"'Population at Risk'!V193/'Population at Risk'!V$5","v":0},{"$f":"'Population at Risk'!W193/'Population at Risk'!W$5","v":0},{"$f":"'Population at Risk'!X193/'Population at Risk'!X$5","v":0},{"$f":"'Population at Risk'!Y193/'Population at Risk'!Y$5","v":0},{"$f":"'Population at Risk'!Z193/'Population at Risk'!Z$5","v":0},{"$f":"'Population at Risk'!AA193/'Population at Risk'!AA$5","v":0},{"$f":"'Population at Risk'!AB193/'Population at Risk'!AB$5","v":0},{"$f":"'Population at Risk'!AC193/'Population at Risk'!AC$5","v":0},{"$f":"'Population at Risk'!AD193/'Population at Risk'!AD$5","v":0},{"$f":"'Population at Risk'!AE193/'Population at Risk'!AE$5","v":0},{"$f":"'Population at Risk'!AF193/'Population at Risk'!AF$5","v":0},{"$f":"'Population at Risk'!AG193/'Population at Risk'!AG$5","v":0},{"$f":"'Population at Risk'!AH193/'Population at Risk'!AH$5","v":0},{"$f":"'Population at Risk'!AI193/'Population at Risk'!AI$5","v":0},{"$f":"'Population at Risk'!AJ193/'Population at Risk'!AJ$5","v":0},{"$f":"'Population at Risk'!AK193/'Population at Risk'!AK$5","v":0},{"$f":"'Population at Risk'!AL193/'Population at Risk'!AL$5","v":0},{"$f":"'Population at Risk'!AM193/'Population at Risk'!AM$5","v":0},{"$f":"'Population at Risk'!AN193/'Population at Risk'!AN$5","v":0},{"$f":"'Population at Risk'!AO193/'Population at Risk'!AO$5","v":0},{"$f":"'Population at Risk'!AP193/'Population at Risk'!AP$5","v":0},{"$f":"'Population at Risk'!AQ193/'Population at Risk'!AQ$5","v":0},{"$f":"'Population at Risk'!AR193/'Population at Risk'!AR$5","v":0},{"$f":"'Population at Risk'!AS193/'Population at Risk'!AS$5","v":0},{"$f":"'Population at Risk'!AT193/'Population at Risk'!AT$5","v":0},{"$f":"'Population at Risk'!AU193/'Population at Risk'!AU$5","v":0},{"$f":"'Population at Risk'!AV193/'Population at Risk'!AV$5","v":0},{"$f":"'Population at Risk'!AW193/'Population at Risk'!AW$5","v":0},{"$f":"'Population at Risk'!AX193/'Population at Risk'!AX$5","v":0},{"$f":"'Population at Risk'!AY193/'Population at Risk'!AY$5","v":0},{"$f":"'Population at Risk'!AZ193/'Population at Risk'!AZ$5","v":0},{"$f":"'Population at Risk'!BA193/'Population at Risk'!BA$5","v":0},{"$f":"'Population at Risk'!BB193/'Population at Risk'!BB$5","v":0},{"$f":"'Population at Risk'!BC193/'Population at Risk'!BC$5","v":0},191]
[null,"Male 5-9",{"$f":"'Population at Risk'!C194/'Population at Risk'!C$5","v":0},{"$f":"'Population at Risk'!D194/'Population at Risk'!D$5","v":0},{"$f":"'Population at Risk'!E194/'Population at Risk'!E$5","v":0},{"$f":"'Population at Risk'!F194/'Population at Risk'!F$5","v":0},{"$f":"'Population at Risk'!G194/'Population at Risk'!G$5","v":0},{"$f":"'Population at Risk'!H194/'Population at Risk'!H$5","v":0},{"$f":"'Population at Risk'!I194/'Population at Risk'!I$5","v":0},{"$f":"'Population at Risk'!J194/'Population at Risk'!J$5","v":0},{"$f":"'Population at Risk'!K194/'Population at Risk'!K$5","v":0},{"$f":"'Population at Risk'!L194/'Population at Risk'!L$5","v":0},{"$f":"'Population at Risk'!M194/'Population at Risk'!M$5","v":0},{"$f":"'Population at Risk'!N194/'Population at Risk'!N$5","v":0},{"$f":"'Population at Risk'!O194/'Population at Risk'!O$5","v":0},{"$f":"'Population at Risk'!P194/'Population at Risk'!P$5","v":0},{"$f":"'Population at Risk'!Q194/'Population at Risk'!Q$5","v":0},{"$f":"'Population at Risk'!R194/'Population at Risk'!R$5","v":0},{"$f":"'Population at Risk'!S194/'Population at Risk'!S$5","v":0},{"$f":"'Population at Risk'!T194/'Population at Risk'!T$5","v":0},{"$f":"'Population at Risk'!U194/'Population at Risk'!U$5","v":0},{"$f":"'Population at Risk'!V194/'Population at Risk'!V$5","v":0},{"$f":"'Population at Risk'!W194/'Population at Risk'!W$5","v":0},{"$f":"'Population at Risk'!X194/'Population at Risk'!X$5","v":0},{"$f":"'Population at Risk'!Y194/'Population at Risk'!Y$5","v":0},{"$f":"'Population at Risk'!Z194/'Population at Risk'!Z$5","v":0},{"$f":"'Population at Risk'!AA194/'Population at Risk'!AA$5","v":0},{"$f":"'Population at Risk'!AB194/'Population at Risk'!AB$5","v":0},{"$f":"'Population at Risk'!AC194/'Population at Risk'!AC$5","v":0},{"$f":"'Population at Risk'!AD194/'Population at Risk'!AD$5","v":0},{"$f":"'Population at Risk'!AE194/'Population at Risk'!AE$5","v":0},{"$f":"'Population at Risk'!AF194/'Population at Risk'!AF$5","v":0},{"$f":"'Population at Risk'!AG194/'Population at Risk'!AG$5","v":0},{"$f":"'Population at Risk'!AH194/'Population at Risk'!AH$5","v":0},{"$f":"'Population at Risk'!AI194/'Population at Risk'!AI$5","v":0},{"$f":"'Population at Risk'!AJ194/'Population at Risk'!AJ$5","v":0},{"$f":"'Population at Risk'!AK194/'Population at Risk'!AK$5","v":0},{"$f":"'Population at Risk'!AL194/'Population at Risk'!AL$5","v":0},{"$f":"'Population at Risk'!AM194/'Population at Risk'!AM$5","v":0},{"$f":"'Population at Risk'!AN194/'Population at Risk'!AN$5","v":0},{"$f":"'Population at Risk'!AO194/'Population at Risk'!AO$5","v":0},{"$f":"'Population at Risk'!AP194/'Population at Risk'!AP$5","v":0},{"$f":"'Population at Risk'!AQ194/'Population at Risk'!AQ$5","v":0},{"$f":"'Population at Risk'!AR194/'Population at Risk'!AR$5","v":0},{"$f":"'Population at Risk'!AS194/'Population at Risk'!AS$5","v":0},{"$f":"'Population at Risk'!AT194/'Population at Risk'!AT$5","v":0},{"$f":"'Population at Risk'!AU194/'Population at Risk'!AU$5","v":0},{"$f":"'Population at Risk'!AV194/'Population at Risk'!AV$5","v":0},{"$f":"'Population at Risk'!AW194/'Population at Risk'!AW$5","v":0},{"$f":"'Population at Risk'!AX194/'Population at Risk'!AX$5","v":0},{"$f":"'Population at Risk'!AY194/'Population at Risk'!AY$5","v":0},{"$f":"'Population at Risk'!AZ194/'Population at Risk'!AZ$5","v":0},{"$f":"'Population at Risk'!BA194/'Population at Risk'!BA$5","v":0},{"$f":"'Population at Risk'!BB194/'Population at Risk'!BB$5","v":0},{"$f":"'Population at Risk'!BC194/'Population at Risk'!BC$5","v":0},192]
[null,"Male 10-15",{"$f":"'Population at Risk'!C195/'Population at Risk'!C$5","v":0},{"$f":"'Population at Risk'!D195/'Population at Risk'!D$5","v":0},{"$f":"'Population at Risk'!E195/'Population at Risk'!E$5","v":0},{"$f":"'Population at Risk'!F195/'Population at Risk'!F$5","v":0},{"$f":"'Population at Risk'!G195/'Population at Risk'!G$5","v":0},{"$f":"'Population at Risk'!H195/'Population at Risk'!H$5","v":0},{"$f":"'Population at Risk'!I195/'Population at Risk'!I$5","v":0},{"$f":"'Population at Risk'!J195/'Population at Risk'!J$5","v":0},{"$f":"'Population at Risk'!K195/'Population at Risk'!K$5","v":0},{"$f":"'Population at Risk'!L195/'Population at Risk'!L$5","v":0},{"$f":"'Population at Risk'!M195/'Population at Risk'!M$5","v":0},{"$f":"'Population at Risk'!N195/'Population at Risk'!N$5","v":0},{"$f":"'Population at Risk'!O195/'Population at Risk'!O$5","v":0},{"$f":"'Population at Risk'!P195/'Population at Risk'!P$5","v":0},{"$f":"'Population at Risk'!Q195/'Population at Risk'!Q$5","v":0},{"$f":"'Population at Risk'!R195/'Population at Risk'!R$5","v":0},{"$f":"'Population at Risk'!S195/'Population at Risk'!S$5","v":0},{"$f":"'Population at Risk'!T195/'Population at Risk'!T$5","v":0},{"$f":"'Population at Risk'!U195/'Population at Risk'!U$5","v":0},{"$f":"'Population at Risk'!V195/'Population at Risk'!V$5","v":0},{"$f":"'Population at Risk'!W195/'Population at Risk'!W$5","v":0},{"$f":"'Population at Risk'!X195/'Population at Risk'!X$5","v":0},{"$f":"'Population at Risk'!Y195/'Population at Risk'!Y$5","v":0},{"$f":"'Population at Risk'!Z195/'Population at Risk'!Z$5","v":0},{"$f":"'Population at Risk'!AA195/'Population at Risk'!AA$5","v":0},{"$f":"'Population at Risk'!AB195/'Population at Risk'!AB$5","v":0},{"$f":"'Population at Risk'!AC195/'Population at Risk'!AC$5","v":0},{"$f":"'Population at Risk'!AD195/'Population at Risk'!AD$5","v":0},{"$f":"'Population at Risk'!AE195/'Population at Risk'!AE$5","v":0},{"$f":"'Population at Risk'!AF195/'Population at Risk'!AF$5","v":0},{"$f":"'Population at Risk'!AG195/'Population at Risk'!AG$5","v":0},{"$f":"'Population at Risk'!AH195/'Population at Risk'!AH$5","v":0},{"$f":"'Population at Risk'!AI195/'Population at Risk'!AI$5","v":0},{"$f":"'Population at Risk'!AJ195/'Population at Risk'!AJ$5","v":0},{"$f":"'Population at Risk'!AK195/'Population at Risk'!AK$5","v":0},{"$f":"'Population at Risk'!AL195/'Population at Risk'!AL$5","v":0},{"$f":"'Population at Risk'!AM195/'Population at Risk'!AM$5","v":0},{"$f":"'Population at Risk'!AN195/'Population at Risk'!AN$5","v":0},{"$f":"'Population at Risk'!AO195/'Population at Risk'!AO$5","v":0},{"$f":"'Population at Risk'!AP195/'Population at Risk'!AP$5","v":0},{"$f":"'Population at Risk'!AQ195/'Population at Risk'!AQ$5","v":0},{"$f":"'Population at Risk'!AR195/'Population at Risk'!AR$5","v":0},{"$f":"'Population at Risk'!AS195/'Population at Risk'!AS$5","v":0},{"$f":"'Population at Risk'!AT195/'Population at Risk'!AT$5","v":0},{"$f":"'Population at Risk'!AU195/'Population at Risk'!AU$5","v":0},{"$f":"'Population at Risk'!AV195/'Population at Risk'!AV$5","v":0},{"$f":"'Population at Risk'!AW195/'Population at Risk'!AW$5","v":0},{"$f":"'Population at Risk'!AX195/'Population at Risk'!AX$5","v":0},{"$f":"'Population at Risk'!AY195/'Population at Risk'!AY$5","v":0},{"$f":"'Population at Risk'!AZ195/'Population at Risk'!AZ$5","v":0},{"$f":"'Population at Risk'!BA195/'Population at Risk'!BA$5","v":0},{"$f":"'Population at Risk'!BB195/'Population at Risk'!BB$5","v":0},{"$f":"'Population at Risk'!BC195/'Population at Risk'!BC$5","v":0},193]
[null,"Male 16-19",{"$f":"'Population at Risk'!C196/'Population at Risk'!C$5","v":4.1973975298534843E-3},{"$f":"'Population at Risk'!D196/'Population at Risk'!D$5","v":7.3886732484253342E-3},{"$f":"'Population at Risk'!E196/'Population at Risk'!E$5","v":1.0592157323712475E-2},{"$f":"'Population at Risk'!F196/'Population at Risk'!F$5","v":6.7274815610740271E-3},{"$f":"'Population at Risk'!G196/'Population at Risk'!G$5","v":6.1942986677758442E-3},{"$f":"'Population at Risk'!H196/'Population at Risk'!H$5","v":3.1810796011433142E-3},{"$f":"'Population at Risk'!I196/'Population at Risk'!I$5","v":8.3197755775351028E-3},{"$f":"'Population at Risk'!J196/'Population at Risk'!J$5","v":6.554289938957427E-3},{"$f":"'Population at Risk'!K196/'Population at Risk'!K$5","v":4.4703845136995152E-3},{"$f":"'Population at Risk'!L196/'Population at Risk'!L$5","v":3.6552730312190288E-3},{"$f":"'Population at Risk'!M196/'Population at Risk'!M$5","v":3.6552730312190288E-3},{"$f":"'Population at Risk'!N196/'Population at Risk'!N$5","v":4.8336782005036485E-3},{"$f":"'Population at Risk'!O196/'Population at Risk'!O$5","v":2.8037424676521988E-3},{"$f":"'Population at Risk'!P196/'Population at Risk'!P$5","v":5.4089593551480937E-3},{"$f":"'Population at Risk'!Q196/'Population at Risk'!Q$5","v":8.0977297635223596E-3},{"$f":"'Population at Risk'!R196/'Population at Risk'!R$5","v":4.9822959237748781E-3},{"$f":"'Population at Risk'!S196/'Population at Risk'!S$5","v":4.0933466776106268E-3},{"$f":"'Population at Risk'!T196/'Population at Risk'!T$5","v":2.7334761452050748E-3},{"$f":"'Population at Risk'!U196/'Population at Risk'!U$5","v":1.3024667867361948E-3},{"$f":"'Population at Risk'!V196/'Population at Risk'!V$5","v":5.4016271634876765E-3},{"$f":"'Population at Risk'!W196/'Population at Risk'!W$5","v":3.9293419395570088E-3},{"$f":"'Population at Risk'!X196/'Population at Risk'!X$5","v":3.9293419395570088E-3},{"$f":"'Population at Risk'!Y196/'Population at Risk'!Y$5","v":5.9459435793591054E-3},{"$f":"'Population at Risk'!Z196/'Population at Risk'!Z$5","v":1.8281297751935207E-3},{"$f":"'Population at Risk'!AA196/'Population at Risk'!AA$5","v":3.2340305361092361E-3},{"$f":"'Population at Risk'!AB196/'Population at Risk'!AB$5","v":7.8680706357889697E-3},{"$f":"'Population at Risk'!AC196/'Population at Risk'!AC$5","v":2.7955529830739098E-3},{"$f":"'Population at Risk'!AD196/'Population at Risk'!AD$5","v":7.9551478889126233E-3},{"$f":"'Population at Risk'!AE196/'Population at Risk'!AE$5","v":8.6277894742564053E-3},{"$f":"'Population at Risk'!AF196/'Population at Risk'!AF$5","v":4.6427586426229265E-3},{"$f":"'Population at Risk'!AG196/'Population at Risk'!AG$5","v":8.6277894742564053E-3},{"$f":"'Population at Risk'!AH196/'Population at Risk'!AH$5","v":4.0318575337294953E-3},{"$f":"'Population at Risk'!AI196/'Population at Risk'!AI$5","v":3.6292492190122018E-3},{"$f":"'Population at Risk'!AJ196/'Population at Risk'!AJ$5","v":3.2839462111883839E-3},{"$f":"'Population at Risk'!AK196/'Population at Risk'!AK$5","v":1.0304934025128139E-2},{"$f":"'Population at Risk'!AL196/'Population at Risk'!AL$5","v":3.5296882160276784E-3},{"$f":"'Population at Risk'!AM196/'Population at Risk'!AM$5","v":3.2057686931278844E-3},{"$f":"'Population at Risk'!AN196/'Population at Risk'!AN$5","v":1.3161484529178509E-2},{"$f":"'Population at Risk'!AO196/'Population at Risk'!AO$5","v":1.3161484529178509E-2},{"$f":"'Population at Risk'!AP196/'Population at Risk'!AP$5","v":1.2720142396982602E-2},{"$f":"'Population at Risk'!AQ196/'Population at Risk'!AQ$5","v":3.9866156661500715E-3},{"$f":"'Population at Risk'!AR196/'Population at Risk'!AR$5","v":4.7390959639214475E-3},{"$f":"'Population at Risk'!AS196/'Population at Risk'!AS$5","v":8.3197755775351028E-3},{"$f":"'Population at Risk'!AT196/'Population at Risk'!AT$5","v":1.9506248129487536E-2},{"$f":"'Population at Risk'!AU196/'Population at Risk'!AU$5","v":1.9506248129487536E-2},{"$f":"'Population at Risk'!AV196/'Population at Risk'!AV$5","v":3.1582767389291117E-3},{"$f":"'Population at Risk'!AW196/'Population at Risk'!AW$5","v":4.974387795272042E-3},{"$f":"'Population at Risk'!AX196/'Population at Risk'!AX$5","v":7.8324780662058554E-3},{"$f":"'Population at Risk'!AY196/'Population at Risk'!AY$5","v":6.0237348019192647E-3},{"$f":"'Population at Risk'!AZ196/'Population at Risk'!AZ$5","v":7.9249156861985279E-3},{"$f":"'Population at Risk'!BA196/'Population at Risk'!BA$5","v":2.2379619983021889E-3},{"$f":"'Population at Risk'!BB196/'Population at Risk'!BB$5","v":3.812479793791092E-3},{"$f":"'Population at Risk'!BC196/'Population at Risk'!BC$5","v":1.3024667867361948E-3},194]
[null,"Male 20-24",{"$f":"'Population at Risk'!C197/'Population at Risk'!C$5","v":1.0401189943768879E-2},{"$f":"'Population at Risk'!D197/'Population at Risk'!D$5","v":1.1163321538381754E-2},{"$f":"'Population at Risk'!E197/'Population at Risk'!E$5","v":1.1928368698803276E-2},{"$f":"'Population at Risk'!F197/'Population at Risk'!F$5","v":8.0480967181554147E-3},{"$f":"'Population at Risk'!G197/'Population at Risk'!G$5","v":6.9288004860891851E-3},{"$f":"'Population at Risk'!H197/'Population at Risk'!H$5","v":3.4565652528763136E-3},{"$f":"'Population at Risk'!I197/'Population at Risk'!I$5","v":8.613414715565754E-3},{"$f":"'Population at Risk'!J197/'Population at Risk'!J$5","v":9.5247798549223488E-3},{"$f":"'Population at Risk'!K197/'Population at Risk'!K$5","v":5.8503727766241491E-3},{"$f":"'Population at Risk'!L197/'Population at Risk'!L$5","v":4.4277080868728612E-3},{"$f":"'Population at Risk'!M197/'Population at Risk'!M$5","v":4.4277080868728612E-3},{"$f":"'Population at Risk'!N197/'Population at Risk'!N$5","v":1.0559435754765168E-2},{"$f":"'Population at Risk'!O197/'Population at Risk'!O$5","v":3.1308457555449557E-3},{"$f":"'Population at Risk'!P197/'Population at Risk'!P$5","v":7.1758860778298036E-3},{"$f":"'Population at Risk'!Q197/'Population at Risk'!Q$5","v":1.0174070728528094E-2},{"$f":"'Population at Risk'!R197/'Population at Risk'!R$5","v":5.0958525260261581E-3},{"$f":"'Population at Risk'!S197/'Population at Risk'!S$5","v":6.1047530411683752E-3},{"$f":"'Population at Risk'!T197/'Population at Risk'!T$5","v":6.4536173850538942E-3},{"$f":"'Population at Risk'!U197/'Population at Risk'!U$5","v":1.7490268279028904E-3},{"$f":"'Population at Risk'!V197/'Population at Risk'!V$5","v":6.3206310505437195E-3},{"$f":"'Population at Risk'!W197/'Population at Risk'!W$5","v":5.1394551427658801E-3},{"$f":"'Population at Risk'!X197/'Population at Risk'!X$5","v":5.1394551427658801E-3},{"$f":"'Population at Risk'!Y197/'Population at Risk'!Y$5","v":7.8337108777354406E-3},{"$f":"'Population at Risk'!Z197/'Population at Risk'!Z$5","v":5.9671849882185421E-3},{"$f":"'Population at Risk'!AA197/'Population at Risk'!AA$5","v":5.3115447759070076E-3},{"$f":"'Population at Risk'!AB197/'Population at Risk'!AB$5","v":1.1455373970379754E-2},{"$f":"'Population at Risk'!AC197/'Population at Risk'!AC$5","v":5.5853907585305543E-3},{"$f":"'Population at Risk'!AD197/'Population at Risk'!AD$5","v":8.8383012700296772E-3},{"$f":"'Population at Risk'!AE197/'Population at Risk'!AE$5","v":9.5677275145412514E-3},{"$f":"'Population at Risk'!AF197/'Population at Risk'!AF$5","v":4.865517264364936E-3},{"$f":"'Population at Risk'!AG197/'Population at Risk'!AG$5","v":9.5677275145412514E-3},{"$f":"'Population at Risk'!AH197/'Population at Risk'!AH$5","v":4.8132713372452335E-3},{"$f":"'Population at Risk'!AI197/'Population at Risk'!AI$5","v":6.2114563122108212E-3},{"$f":"'Population at Risk'!AJ197/'Population at Risk'!AJ$5","v":3.5705451532557337E-3},{"$f":"'Population at Risk'!AK197/'Population at Risk'!AK$5","v":1.2939929160004842E-2},{"$f":"'Population at Risk'!AL197/'Population at Risk'!AL$5","v":4.0085218887446119E-3},{"$f":"'Population at Risk'!AM197/'Population at Risk'!AM$5","v":4.2121013002749856E-3},{"$f":"'Population at Risk'!AN197/'Population at Risk'!AN$5","v":1.3800908878774226E-2},{"$f":"'Population at Risk'!AO197/'Population at Risk'!AO$5","v":1.3800908878774226E-2},{"$f":"'Population at Risk'!AP197/'Population at Risk'!AP$5","v":1.3415531016965066E-2},{"$f":"'Population at Risk'!AQ197/'Population at Risk'!AQ$5","v":5.1449271290935333E-3},{"$f":"'Population at Risk'!AR197/'Population at Risk'!AR$5","v":6.7503183170396558E-3},{"$f":"'Population at Risk'!AS197/'Population at Risk'!AS$5","v":8.613414715565754E-3},{"$f":"'Population at Risk'!AT197/'Population at Risk'!AT$5","v":2.341792890411739E-2},{"$f":"'Population at Risk'!AU197/'Population at Risk'!AU$5","v":2.341792890411739E-2},{"$f":"'Population at Risk'!AV197/'Population at Risk'!AV$5","v":3.1038236917061961E-3},{"$f":"'Population at Risk'!AW197/'Population at Risk'!AW$5","v":5.4991793465635304E-3},{"$f":"'Population at Risk'!AX197/'Population at Risk'!AX$5","v":1.1778521049332399E-2},{"$f":"'Population at Risk'!AY197/'Population at Risk'!AY$5","v":8.1188885509825386E-3},{"$f":"'Population at Risk'!AZ197/'Population at Risk'!AZ$5","v":1.0823463200504421E-2},{"$f":"'Population at Risk'!BA197/'Population at Risk'!BA$5","v":3.2917109212695869E-3},{"$f":"'Population at Risk'!BB197/'Population at Risk'!BB$5","v":4.7319257655655941E-3},{"$f":"'Population at Risk'!BC197/'Population at Risk'!BC$5","v":1.7490268279028904E-3},195]
[null,"Male 25-29",{"$f":"'Population at Risk'!C198/'Population at Risk'!C$5","v":1.1780890057748496E-2},{"$f":"'Population at Risk'!D198/'Population at Risk'!D$5","v":1.185205491430546E-2},{"$f":"'Population at Risk'!E198/'Population at Risk'!E$5","v":1.1923492014952578E-2},{"$f":"'Population at Risk'!F198/'Population at Risk'!F$5","v":6.6796331858174551E-3},{"$f":"'Population at Risk'!G198/'Population at Risk'!G$5","v":5.6311806070689493E-3},{"$f":"'Population at Risk'!H198/'Population at Risk'!H$5","v":3.0745238301899845E-3},{"$f":"'Population at Risk'!I198/'Population at Risk'!I$5","v":6.900519743720291E-3},{"$f":"'Population at Risk'!J198/'Population at Risk'!J$5","v":6.8203039612826444E-3},{"$f":"'Population at Risk'!K198/'Population at Risk'!K$5","v":4.8591136018472994E-3},{"$f":"'Population at Risk'!L198/'Population at Risk'!L$5","v":4.1863221319810391E-3},{"$f":"'Population at Risk'!M198/'Population at Risk'!M$5","v":4.1863221319810391E-3},{"$f":"'Population at Risk'!N198/'Population at Risk'!N$5","v":6.9405039083147938E-3},{"$f":"'Population at Risk'!O198/'Population at Risk'!O$5","v":3.0841167144174193E-3},{"$f":"'Population at Risk'!P198/'Population at Risk'!P$5","v":5.6613774583883381E-3},{"$f":"'Population at Risk'!Q198/'Population at Risk'!Q$5","v":7.1688403844408473E-3},{"$f":"'Population at Risk'!R198/'Population at Risk'!R$5","v":5.379744031654355E-3},{"$f":"'Population at Risk'!S198/'Population at Risk'!S$5","v":6.7641266008531854E-3},{"$f":"'Population at Risk'!T198/'Population at Risk'!T$5","v":9.5704336111801583E-3},{"$f":"'Population at Risk'!U198/'Population at Risk'!U$5","v":9.3033341909728215E-4},{"$f":"'Population at Risk'!V198/'Population at Risk'!V$5","v":5.1768348457905157E-3},{"$f":"'Population at Risk'!W198/'Population at Risk'!W$5","v":4.4906765023508674E-3},{"$f":"'Population at Risk'!X198/'Population at Risk'!X$5","v":4.4906765023508674E-3},{"$f":"'Population at Risk'!Y198/'Population at Risk'!Y$5","v":5.9529223863771328E-3},{"$f":"'Population at Risk'!Z198/'Population at Risk'!Z$5","v":5.7314338897959021E-3},{"$f":"'Population at Risk'!AA198/'Population at Risk'!AA$5","v":4.9627457835798132E-3},{"$f":"'Population at Risk'!AB198/'Population at Risk'!AB$5","v":1.1823458949722684E-2},{"$f":"'Population at Risk'!AC198/'Population at Risk'!AC$5","v":5.335554539832945E-3},{"$f":"'Population at Risk'!AD198/'Population at Risk'!AD$5","v":8.3781140676085306E-3},{"$f":"'Population at Risk'!AE198/'Population at Risk'!AE$5","v":9.4274382547972439E-3},{"$f":"'Population at Risk'!AF198/'Population at Risk'!AF$5","v":3.8572413975326834E-3},{"$f":"'Population at Risk'!AG198/'Population at Risk'!AG$5","v":9.4274382547972439E-3},{"$f":"'Population at Risk'!AH198/'Population at Risk'!AH$5","v":4.284405721177548E-3},{"$f":"'Population at Risk'!AI198/'Population at Risk'!AI$5","v":7.7478633224497308E-3},{"$f":"'Population at Risk'!AJ198/'Population at Risk'!AJ$5","v":3.928793830839921E-3},{"$f":"'Population at Risk'!AK198/'Population at Risk'!AK$5","v":1.1678100503866702E-2},{"$f":"'Population at Risk'!AL198/'Population at Risk'!AL$5","v":3.0576950243495584E-3},{"$f":"'Population at Risk'!AM198/'Population at Risk'!AM$5","v":3.6071866860065064E-3},{"$f":"'Population at Risk'!AN198/'Population at Risk'!AN$5","v":1.3481196703976368E-2},{"$f":"'Population at Risk'!AO198/'Population at Risk'!AO$5","v":1.3481196703976368E-2},{"$f":"'Population at Risk'!AP198/'Population at Risk'!AP$5","v":1.1298111735894865E-2},{"$f":"'Population at Risk'!AQ198/'Population at Risk'!AQ$5","v":5.4485621727777423E-3},{"$f":"'Population at Risk'!AR198/'Population at Risk'!AR$5","v":6.460975162198907E-3},{"$f":"'Population at Risk'!AS198/'Population at Risk'!AS$5","v":6.900519743720291E-3},{"$f":"'Population at Risk'!AT198/'Population at Risk'!AT$5","v":2.3939486340734704E-2},{"$f":"'Population at Risk'!AU198/'Population at Risk'!AU$5","v":2.3939486340734704E-2},{"$f":"'Population at Risk'!AV198/'Population at Risk'!AV$5","v":3.0856726759652246E-3},{"$f":"'Population at Risk'!AW198/'Population at Risk'!AW$5","v":5.0570822215361558E-3},{"$f":"'Population at Risk'!AX198/'Population at Risk'!AX$5","v":8.0232233463569894E-3},{"$f":"'Population at Risk'!AY198/'Population at Risk'!AY$5","v":6.4867892820133256E-3},{"$f":"'Population at Risk'!AZ198/'Population at Risk'!AZ$5","v":8.2987566200224318E-3},{"$f":"'Population at Risk'!BA198/'Population at Risk'!BA$5","v":3.2816752172413264E-3},{"$f":"'Population at Risk'!BB198/'Population at Risk'!BB$5","v":5.0305992977980772E-3},{"$f":"'Population at Risk'!BC198/'Population at Risk'!BC$5","v":9.3033341909728215E-4},196]
[null,"Male 30-34",{"$f":"'Population at Risk'!C199/'Population at Risk'!C$5","v":8.710571494244557E-3},{"$f":"'Population at Risk'!D199/'Population at Risk'!D$5","v":1.0793401138592345E-2},{"$f":"'Population at Risk'!E199/'Population at Risk'!E$5","v":1.288419873353976E-2},{"$f":"'Population at Risk'!F199/'Population at Risk'!F$5","v":6.5169487099451104E-3},{"$f":"'Population at Risk'!G199/'Population at Risk'!G$5","v":4.8966787887556084E-3},{"$f":"'Population at Risk'!H199/'Population at Risk'!H$5","v":2.910791791895843E-3},{"$f":"'Population at Risk'!I199/'Population at Risk'!I$5","v":6.9592475713264219E-3},{"$f":"'Population at Risk'!J199/'Population at Risk'!J$5","v":6.3695579790093602E-3},{"$f":"'Population at Risk'!K199/'Population at Risk'!K$5","v":6.0447373206980399E-3},{"$f":"'Population at Risk'!L199/'Population at Risk'!L$5","v":4.4208113453045239E-3},{"$f":"'Population at Risk'!M199/'Population at Risk'!M$5","v":4.4208113453045239E-3},{"$f":"'Population at Risk'!N199/'Population at Risk'!N$5","v":4.403455533443114E-3},{"$f":"'Population at Risk'!O199/'Population at Risk'!O$5","v":3.2788210524488217E-3},{"$f":"'Population at Risk'!P199/'Population at Risk'!P$5","v":5.1204815228735288E-3},{"$f":"'Population at Risk'!Q199/'Population at Risk'!Q$5","v":7.5513242464155883E-3},{"$f":"'Population at Risk'!R199/'Population at Risk'!R$5","v":4.2157888585787435E-3},{"$f":"'Population at Risk'!S199/'Population at Risk'!S$5","v":6.8592285565769557E-3},{"$f":"'Population at Risk'!T199/'Population at Risk'!T$5","v":9.0651216863294991E-3},{"$f":"'Population at Risk'!U199/'Population at Risk'!U$5","v":8.559067455694995E-4},{"$f":"'Population at Risk'!V199/'Population at Risk'!V$5","v":5.3619579309528839E-3},{"$f":"'Population at Risk'!W199/'Population at Risk'!W$5","v":4.4934972790483235E-3},{"$f":"'Population at Risk'!X199/'Population at Risk'!X$5","v":4.4934972790483235E-3},{"$f":"'Population at Risk'!Y199/'Population at Risk'!Y$5","v":5.8377720705796851E-3},{"$f":"'Population at Risk'!Z199/'Population at Risk'!Z$5","v":4.7489023658308909E-3},{"$f":"'Population at Risk'!AA199/'Population at Risk'!AA$5","v":4.5823335895311219E-3},{"$f":"'Population at Risk'!AB199/'Population at Risk'!AB$5","v":1.0973406345494256E-2},{"$f":"'Population at Risk'!AC199/'Population at Risk'!AC$5","v":4.4537796503119681E-3},{"$f":"'Population at Risk'!AD199/'Population at Risk'!AD$5","v":8.4897771387842502E-3},{"$f":"'Population at Risk'!AE199/'Population at Risk'!AE$5","v":9.8623349600036637E-3},{"$f":"'Population at Risk'!AF199/'Population at Risk'!AF$5","v":4.1034482952475356E-3},{"$f":"'Population at Risk'!AG199/'Population at Risk'!AG$5","v":9.8623349600036637E-3},{"$f":"'Population at Risk'!AH199/'Population at Risk'!AH$5","v":4.8162424923916813E-3},{"$f":"'Population at Risk'!AI199/'Population at Risk'!AI$5","v":7.8882141649371986E-3},{"$f":"'Population at Risk'!AJ199/'Population at Risk'!AJ$5","v":4.6094663182498765E-3},{"$f":"'Population at Risk'!AK199/'Population at Risk'!AK$5","v":1.1888405279889727E-2},{"$f":"'Population at Risk'!AL199/'Population at Risk'!AL$5","v":2.592542313710252E-3},{"$f":"'Population at Risk'!AM199/'Population at Risk'!AM$5","v":3.9221883054182029E-3},{"$f":"'Population at Risk'!AN199/'Population at Risk'!AN$5","v":1.3481196703976368E-2},{"$f":"'Population at Risk'!AO199/'Population at Risk'!AO$5","v":1.3481196703976368E-2},{"$f":"'Population at Risk'!AP199/'Population at Risk'!AP$5","v":1.2446674962158035E-2},{"$f":"'Population at Risk'!AQ199/'Population at Risk'!AQ$5","v":4.2902507098342797E-3},{"$f":"'Population at Risk'!AR199/'Population at Risk'!AR$5","v":6.1980752890588367E-3},{"$f":"'Population at Risk'!AS199/'Population at Risk'!AS$5","v":6.9592475713264219E-3},{"$f":"'Population at Risk'!AT199/'Population at Risk'!AT$5","v":2.1331699157648133E-2},{"$f":"'Population at Risk'!AU199/'Population at Risk'!AU$5","v":2.1331699157648133E-2},{"$f":"'Population at Risk'!AV199/'Population at Risk'!AV$5","v":2.9041625185555055E-3},{"$f":"'Population at Risk'!AW199/'Population at Risk'!AW$5","v":5.8363181613326079E-3},{"$f":"'Population at Risk'!AX199/'Population at Risk'!AX$5","v":6.5687905852046067E-3},{"$f":"'Population at Risk'!AY199/'Population at Risk'!AY$5","v":6.1243988193310167E-3},{"$f":"'Population at Risk'!AZ199/'Population at Risk'!AZ$5","v":7.6048463935410758E-3},{"$f":"'Population at Risk'!BA199/'Population at Risk'!BA$5","v":2.5591045272065388E-3},{"$f":"'Population at Risk'!BB199/'Population at Risk'!BB$5","v":6.5122542714219573E-3},{"$f":"'Population at Risk'!BC199/'Population at Risk'!BC$5","v":8.559067455694995E-4},197]
[null,"Male 35-39",{"$f":"'Population at Risk'!C200/'Population at Risk'!C$5","v":6.8499195799692283E-3},{"$f":"'Population at Risk'!D200/'Population at Risk'!D$5","v":1.0688752604441392E-2},{"$f":"'Population at Risk'!E200/'Population at Risk'!E$5","v":1.454227124277652E-2},{"$f":"'Population at Risk'!F200/'Population at Risk'!F$5","v":6.220288783354364E-3},{"$f":"'Population at Risk'!G200/'Population at Risk'!G$5","v":6.1208484859445102E-3},{"$f":"'Population at Risk'!H200/'Population at Risk'!H$5","v":3.4123835917493238E-3},{"$f":"'Population at Risk'!I200/'Population at Risk'!I$5","v":8.2512597786612851E-3},{"$f":"'Population at Risk'!J200/'Population at Risk'!J$5","v":7.5075068522894549E-3},{"$f":"'Population at Risk'!K200/'Population at Risk'!K$5","v":6.1224831383275974E-3},{"$f":"'Population at Risk'!L200/'Population at Risk'!L$5","v":3.7725176378807712E-3},{"$f":"'Population at Risk'!M200/'Population at Risk'!M$5","v":3.7725176378807712E-3},{"$f":"'Population at Risk'!N200/'Population at Risk'!N$5","v":3.5872978268135713E-3},{"$f":"'Population at Risk'!O200/'Population at Risk'!O$5","v":3.6448652079478588E-3},{"$f":"'Population at Risk'!P200/'Population at Risk'!P$5","v":5.0964417035173149E-3},{"$f":"'Population at Risk'!Q200/'Population at Risk'!Q$5","v":9.1686845770516338E-3},{"$f":"'Population at Risk'!R200/'Population at Risk'!R$5","v":5.0390742249005176E-3},{"$f":"'Population at Risk'!S200/'Population at Risk'!S$5","v":6.5992832109319829E-3},{"$f":"'Population at Risk'!T200/'Population at Risk'!T$5","v":7.1375309385155626E-3},{"$f":"'Population at Risk'!U200/'Population at Risk'!U$5","v":1.8606668381945643E-3},{"$f":"'Population at Risk'!V200/'Population at Risk'!V$5","v":6.1950118141835412E-3},{"$f":"'Population at Risk'!W200/'Population at Risk'!W$5","v":4.9194345603642666E-3},{"$f":"'Population at Risk'!X200/'Population at Risk'!X$5","v":4.9194345603642666E-3},{"$f":"'Population at Risk'!Y200/'Population at Risk'!Y$5","v":6.8148050531034818E-3},{"$f":"'Population at Risk'!Z200/'Population at Risk'!Z$5","v":3.516502911202363E-3},{"$f":"'Population at Risk'!AA200/'Population at Risk'!AA$5","v":4.3826435319903271E-3},{"$f":"'Population at Risk'!AB200/'Population at Risk'!AB$5","v":1.0877826267985318E-2},{"$f":"'Population at Risk'!AC200/'Population at Risk'!AC$5","v":3.8079611895609571E-3},{"$f":"'Population at Risk'!AD200/'Population at Risk'!AD$5","v":8.9668829883532333E-3},{"$f":"'Population at Risk'!AE200/'Population at Risk'!AE$5","v":1.005406361498714E-2},{"$f":"'Population at Risk'!AF200/'Population at Risk'!AF$5","v":3.9627586394104771E-3},{"$f":"'Population at Risk'!AG200/'Population at Risk'!AG$5","v":1.005406361498714E-2},{"$f":"'Population at Risk'!AH200/'Population at Risk'!AH$5","v":5.4283004525599024E-3},{"$f":"'Population at Risk'!AI200/'Population at Risk'!AI$5","v":7.129325981221778E-3},{"$f":"'Population at Risk'!AJ200/'Population at Risk'!AJ$5","v":5.6483874832440198E-3},{"$f":"'Population at Risk'!AK200/'Population at Risk'!AK$5","v":1.1838921803178427E-2},{"$f":"'Population at Risk'!AL200/'Population at Risk'!AL$5","v":3.2287070503198918E-3},{"$f":"'Population at Risk'!AM200/'Population at Risk'!AM$5","v":4.2567032994837222E-3},{"$f":"'Population at Risk'!AN200/'Population at Risk'!AN$5","v":1.2841772354380651E-2},{"$f":"'Population at Risk'!AO200/'Population at Risk'!AO$5","v":1.2841772354380651E-2},{"$f":"'Population at Risk'!AP200/'Population at Risk'!AP$5","v":1.2516995159684352E-2},{"$f":"'Population at Risk'!AQ200/'Population at Risk'!AQ$5","v":4.6838516923878833E-3},{"$f":"'Population at Risk'!AR200/'Population at Risk'!AR$5","v":6.1357994444739073E-3},{"$f":"'Population at Risk'!AS200/'Population at Risk'!AS$5","v":8.2512597786612851E-3},{"$f":"'Population at Risk'!AT200/'Population at Risk'!AT$5","v":2.3678707622426048E-2},{"$f":"'Population at Risk'!AU200/'Population at Risk'!AU$5","v":2.3678707622426048E-2},{"$f":"'Population at Risk'!AV200/'Population at Risk'!AV$5","v":3.3851644356912608E-3},{"$f":"'Population at Risk'!AW200/'Population at Risk'!AW$5","v":6.765040179375726E-3},{"$f":"'Population at Risk'!AX200/'Population at Risk'!AX$5","v":8.3570275866214679E-3},{"$f":"'Population at Risk'!AY200/'Population at Risk'!AY$5","v":6.1243988193310167E-3},{"$f":"'Population at Risk'!AZ200/'Population at Risk'!AZ$5","v":7.2182026880108731E-3},{"$f":"'Population at Risk'!BA200/'Population at Risk'!BA$5","v":2.2379619983021889E-3},{"$f":"'Population at Risk'!BB200/'Population at Risk'!BB$5","v":6.7406516784232666E-3},{"$f":"'Population at Risk'!BC200/'Population at Risk'!BC$5","v":1.8606668381945643E-3},198]
[null,"Male 40-44",{"$f":"'Population at Risk'!C201/'Population at Risk'!C$5","v":5.7422730095912254E-3},{"$f":"'Population at Risk'!D201/'Population at Risk'!D$5","v":1.0883447551698976E-2},{"$f":"'Population at Risk'!E201/'Population at Risk'!E$5","v":1.6044289868790994E-2},{"$f":"'Population at Risk'!F201/'Population at Risk'!F$5","v":7.3495104394094629E-3},{"$f":"'Population at Risk'!G201/'Population at Risk'!G$5","v":7.6633023044025269E-3},{"$f":"'Population at Risk'!H201/'Population at Risk'!H$5","v":4.0725095874114166E-3},{"$f":"'Population at Risk'!I201/'Population at Risk'!I$5","v":1.0727616509386438E-2},{"$f":"'Population at Risk'!J201/'Population at Risk'!J$5","v":8.3424953112547183E-3},{"$f":"'Population at Risk'!K201/'Population at Risk'!K$5","v":6.6083944985123278E-3},{"$f":"'Population at Risk'!L201/'Population at Risk'!L$5","v":4.9173767382248443E-3},{"$f":"'Population at Risk'!M201/'Population at Risk'!M$5","v":4.9173767382248443E-3},{"$f":"'Population at Risk'!N201/'Population at Risk'!N$5","v":3.6568926700145401E-3},{"$f":"'Population at Risk'!O201/'Population at Risk'!O$5","v":4.3302244778183965E-3},{"$f":"'Population at Risk'!P201/'Population at Risk'!P$5","v":6.0820742971220785E-3},{"$f":"'Population at Risk'!Q201/'Population at Risk'!Q$5","v":1.2184843031481015E-2},{"$f":"'Population at Risk'!R201/'Population at Risk'!R$5","v":6.1178619462876711E-3},{"$f":"'Population at Risk'!S201/'Population at Risk'!S$5","v":6.7546164052808078E-3},{"$f":"'Population at Risk'!T201/'Population at Risk'!T$5","v":5.9591958034112234E-3},{"$f":"'Population at Risk'!U201/'Population at Risk'!U$5","v":2.0467335220140208E-3},{"$f":"'Population at Risk'!V201/'Population at Risk'!V$5","v":6.8032733797170376E-3},{"$f":"'Population at Risk'!W201/'Population at Risk'!W$5","v":5.2410031038743164E-3},{"$f":"'Population at Risk'!X201/'Population at Risk'!X$5","v":5.2410031038743164E-3},{"$f":"'Population at Risk'!Y201/'Population at Risk'!Y$5","v":7.5301327724512611E-3},{"$f":"'Population at Risk'!Z201/'Population at Risk'!Z$5","v":3.0562941801497855E-3},{"$f":"'Population at Risk'!AA201/'Population at Risk'!AA$5","v":4.5854949097032718E-3},{"$f":"'Population at Risk'!AB201/'Population at Risk'!AB$5","v":1.1463508445061363E-2},{"$f":"'Population at Risk'!AC201/'Population at Risk'!AC$5","v":3.8642968075025749E-3},{"$f":"'Population at Risk'!AD201/'Population at Risk'!AD$5","v":1.0137653370983506E-2},{"$f":"'Population at Risk'!AE201/'Population at Risk'!AE$5","v":1.1082851519776522E-2},{"$f":"'Population at Risk'!AF201/'Population at Risk'!AF$5","v":4.7951724364464054E-3},{"$f":"'Population at Risk'!AG201/'Population at Risk'!AG$5","v":1.1082851519776522E-2},{"$f":"'Population at Risk'!AH201/'Population at Risk'!AH$5","v":5.8977429656986357E-3},{"$f":"'Population at Risk'!AI201/'Population at Risk'!AI$5","v":6.9169366532097713E-3},{"$f":"'Population at Risk'!AJ201/'Population at Risk'!AJ$5","v":5.4095550315212283E-3},{"$f":"'Population at Risk'!AK201/'Population at Risk'!AK$5","v":1.4412062592166004E-2},{"$f":"'Population at Risk'!AL201/'Population at Risk'!AL$5","v":4.0974481422491847E-3},{"$f":"'Population at Risk'!AM201/'Population at Risk'!AM$5","v":4.7779891652358214E-3},{"$f":"'Population at Risk'!AN201/'Population at Risk'!AN$5","v":1.6411891639623404E-2},{"$f":"'Population at Risk'!AO201/'Population at Risk'!AO$5","v":1.6411891639623404E-2},{"$f":"'Population at Risk'!AP201/'Population at Risk'!AP$5","v":1.3993719307737001E-2},{"$f":"'Population at Risk'!AQ201/'Population at Risk'!AQ$5","v":5.1561728714522078E-3},{"$f":"'Population at Risk'!AR201/'Population at Risk'!AR$5","v":6.5816944917020011E-3},{"$f":"'Population at Risk'!AS201/'Population at Risk'!AS$5","v":1.0727616509386438E-2},{"$f":"'Population at Risk'!AT201/'Population at Risk'!AT$5","v":2.8737814757613993E-2},{"$f":"'Population at Risk'!AU201/'Population at Risk'!AU$5","v":2.8737814757613993E-2},{"$f":"'Population at Risk'!AV201/'Population at Risk'!AV$5","v":3.7391092426402131E-3},{"$f":"'Population at Risk'!AW201/'Population at Risk'!AW$5","v":7.1753317558399801E-3},{"$f":"'Population at Risk'!AX201/'Population at Risk'!AX$5","v":9.4061266274526947E-3},{"$f":"'Population at Risk'!AY201/'Population at Risk'!AY$5","v":6.7042235596227106E-3},{"$f":"'Population at Risk'!AZ201/'Population at Risk'!AZ$5","v":8.0324589685314314E-3},{"$f":"'Population at Risk'!BA201/'Population at Risk'!BA$5","v":3.0608897286195855E-3},{"$f":"'Population at Risk'!BB201/'Population at Risk'!BB$5","v":7.4082748681194022E-3},{"$f":"'Population at Risk'!BC201/'Population at Risk'!BC$5","v":2.0467335220140208E-3},199]
[null,"Male 45-49",{"$f":"'Population at Risk'!C202/'Population at Risk'!C$5","v":5.3827736841176631E-3},{"$f":"'Population at Risk'!D202/'Population at Risk'!D$5","v":1.1314210122506383E-2},{"$f":"'Population at Risk'!E202/'Population at Risk'!E$5","v":1.7268337515315781E-2},{"$f":"'Population at Risk'!F202/'Population at Risk'!F$5","v":9.4261299255446896E-3},{"$f":"'Population at Risk'!G202/'Population at Risk'!G$5","v":9.3893815774388784E-3},{"$f":"'Population at Risk'!H202/'Population at Risk'!H$5","v":5.177051115586178E-3},{"$f":"'Population at Risk'!I202/'Population at Risk'!I$5","v":1.4750472700406352E-2},{"$f":"'Population at Risk'!J202/'Population at Risk'!J$5","v":1.0426271819468917E-2},{"$f":"'Population at Risk'!K202/'Population at Risk'!K$5","v":8.2993660319551875E-3},{"$f":"'Population at Risk'!L202/'Population at Risk'!L$5","v":6.5105240405108735E-3},{"$f":"'Population at Risk'!M202/'Population at Risk'!M$5","v":6.5105240405108735E-3},{"$f":"'Population at Risk'!N202/'Population at Risk'!N$5","v":4.3781483177336711E-3},{"$f":"'Population at Risk'!O202/'Population at Risk'!O$5","v":4.8909729713488359E-3},{"$f":"'Population at Risk'!P202/'Population at Risk'!P$5","v":8.0292996649753926E-3},{"$f":"'Population at Risk'!Q202/'Population at Risk'!Q$5","v":1.346343194151086E-2},{"$f":"'Population at Risk'!R202/'Population at Risk'!R$5","v":6.3449751507902294E-3},{"$f":"'Population at Risk'!S202/'Population at Risk'!S$5","v":7.5851734852684051E-3},{"$f":"'Population at Risk'!T202/'Population at Risk'!T$5","v":5.5584311733572521E-3},{"$f":"'Population at Risk'!U202/'Population at Risk'!U$5","v":2.6793602470001725E-3},{"$f":"'Population at Risk'!V202/'Population at Risk'!V$5","v":8.1983080571905991E-3},{"$f":"'Population at Risk'!W202/'Population at Risk'!W$5","v":7.0406586368516114E-3},{"$f":"'Population at Risk'!X202/'Population at Risk'!X$5","v":7.0406586368516114E-3},{"$f":"'Population at Risk'!Y202/'Population at Risk'!Y$5","v":9.2504087023949459E-3},{"$f":"'Population at Risk'!Z202/'Population at Risk'!Z$5","v":3.1579353722840974E-3},{"$f":"'Population at Risk'!AA202/'Population at Risk'!AA$5","v":5.2941575149601829E-3},{"$f":"'Population at Risk'!AB202/'Population at Risk'!AB$5","v":1.2457947974888403E-2},{"$f":"'Population at Risk'!AC202/'Population at Risk'!AC$5","v":4.4774569390120681E-3},{"$f":"'Population at Risk'!AD202/'Population at Risk'!AD$5","v":1.2123902546139485E-2},{"$f":"'Population at Risk'!AE202/'Population at Risk'!AE$5","v":1.3168485181304087E-2},{"$f":"'Population at Risk'!AF202/'Population at Risk'!AF$5","v":6.6358621003145858E-3},{"$f":"'Population at Risk'!AG202/'Population at Risk'!AG$5","v":1.3168485181304087E-2},{"$f":"'Population at Risk'!AH202/'Population at Risk'!AH$5","v":6.7801760441935947E-3},{"$f":"'Population at Risk'!AI202/'Population at Risk'!AI$5","v":6.9156946103558995E-3},{"$f":"'Population at Risk'!AJ202/'Population at Risk'!AJ$5","v":5.6245042380717418E-3},{"$f":"'Population at Risk'!AK202/'Population at Risk'!AK$5","v":1.8271773775647371E-2},{"$f":"'Population at Risk'!AL202/'Population at Risk'!AL$5","v":5.3492561723520243E-3},{"$f":"'Population at Risk'!AM202/'Population at Risk'!AM$5","v":5.5501612765370594E-3},{"$f":"'Population at Risk'!AN202/'Population at Risk'!AN$5","v":2.1633857161321761E-2},{"$f":"'Population at Risk'!AO202/'Population at Risk'!AO$5","v":2.1633857161321761E-2},{"$f":"'Population at Risk'!AP202/'Population at Risk'!AP$5","v":1.7486289118210725E-2},{"$f":"'Population at Risk'!AQ202/'Population at Risk'!AQ$5","v":6.3819587885477168E-3},{"$f":"'Population at Risk'!AR202/'Population at Risk'!AR$5","v":7.6352101640956658E-3},{"$f":"'Population at Risk'!AS202/'Population at Risk'!AS$5","v":1.4750472700406352E-2},{"$f":"'Population at Risk'!AT202/'Population at Risk'!AT$5","v":2.8059790090011485E-2},{"$f":"'Population at Risk'!AU202/'Population at Risk'!AU$5","v":2.8059790090011485E-2},{"$f":"'Population at Risk'!AV202/'Population at Risk'!AV$5","v":5.2819455806228256E-3},{"$f":"'Population at Risk'!AW202/'Population at Risk'!AW$5","v":8.1835676452908981E-3},{"$f":"'Population at Risk'!AX202/'Population at Risk'!AX$5","v":1.1730834729294615E-2},{"$f":"'Population at Risk'!AY202/'Population at Risk'!AY$5","v":8.6047602083565971E-3},{"$f":"'Population at Risk'!AZ202/'Population at Risk'!AZ$5","v":1.0024570246031417E-2},{"$f":"'Population at Risk'!BA202/'Population at Risk'!BA$5","v":4.3253884361804636E-3},{"$f":"'Population at Risk'!BB202/'Population at Risk'!BB$5","v":7.6893793690440918E-3},{"$f":"'Population at Risk'!BC202/'Population at Risk'!BC$5","v":2.6793602470001725E-3},200]
[null,"Male 50-54",{"$f":"'Population at Risk'!C203/'Population at Risk'!C$5","v":5.5576652478615575E-3},{"$f":"'Population at Risk'!D203/'Population at Risk'!D$5","v":1.2112459406262479E-2},{"$f":"'Population at Risk'!E203/'Population at Risk'!E$5","v":1.8692329199719113E-2},{"$f":"'Population at Risk'!F203/'Population at Risk'!F$5","v":1.1177380459935226E-2},{"$f":"'Population at Risk'!G203/'Population at Risk'!G$5","v":1.0589067880684002E-2},{"$f":"'Population at Risk'!H203/'Population at Risk'!H$5","v":5.574686065729092E-3},{"$f":"'Population at Risk'!I203/'Population at Risk'!I$5","v":1.6923402321833168E-2},{"$f":"'Population at Risk'!J203/'Population at Risk'!J$5","v":1.0766178625773361E-2},{"$f":"'Population at Risk'!K203/'Population at Risk'!K$5","v":7.7745817629556787E-3},{"$f":"'Population at Risk'!L203/'Population at Risk'!L$5","v":7.7174538149699882E-3},{"$f":"'Population at Risk'!M203/'Population at Risk'!M$5","v":7.7174538149699882E-3},{"$f":"'Population at Risk'!N203/'Population at Risk'!N$5","v":4.840005004431009E-3},{"$f":"'Population at Risk'!O203/'Population at Risk'!O$5","v":5.1557708710715435E-3},{"$f":"'Population at Risk'!P203/'Population at Risk'!P$5","v":8.6062553295245224E-3},{"$f":"'Population at Risk'!Q203/'Population at Risk'!Q$5","v":1.4589027306750811E-2},{"$f":"'Population at Risk'!R203/'Population at Risk'!R$5","v":7.9347675823081398E-3},{"$f":"'Population at Risk'!S203/'Population at Risk'!S$5","v":7.8673092872489237E-3},{"$f":"'Population at Risk'!T203/'Population at Risk'!T$5","v":5.5061575259589086E-3},{"$f":"'Population at Risk'!U203/'Population at Risk'!U$5","v":2.0839468587779118E-3},{"$f":"'Population at Risk'!V203/'Population at Risk'!V$5","v":7.821450348110064E-3},{"$f":"'Population at Risk'!W203/'Population at Risk'!W$5","v":7.2183675687913749E-3},{"$f":"'Population at Risk'!X203/'Population at Risk'!X$5","v":7.2183675687913749E-3},{"$f":"'Population at Risk'!Y203/'Population at Risk'!Y$5","v":9.2120252637957964E-3},{"$f":"'Population at Risk'!Z203/'Population at Risk'!Z$5","v":3.0774694285111005E-3},{"$f":"'Population at Risk'!AA203/'Population at Risk'!AA$5","v":5.532837187957493E-3},{"$f":"'Population at Risk'!AB203/'Population at Risk'!AB$5","v":1.3159546416177415E-2},{"$f":"'Population at Risk'!AC203/'Population at Risk'!AC$5","v":4.7575021122580816E-3},{"$f":"'Population at Risk'!AD203/'Population at Risk'!AD$5","v":1.3196544775312305E-2},{"$f":"'Population at Risk'!AE203/'Population at Risk'!AE$5","v":1.4192596777435337E-2},{"$f":"'Population at Risk'!AF203/'Population at Risk'!AF$5","v":7.5620690012418871E-3},{"$f":"'Population at Risk'!AG203/'Population at Risk'!AG$5","v":1.4192596777435337E-2},{"$f":"'Population at Risk'!AH203/'Population at Risk'!AH$5","v":6.9435895772482171E-3},{"$f":"'Population at Risk'!AI203/'Population at Risk'!AI$5","v":7.0038796529807677E-3},{"$f":"'Population at Risk'!AJ203/'Population at Risk'!AJ$5","v":5.7916869542776949E-3},{"$f":"'Population at Risk'!AK203/'Population at Risk'!AK$5","v":1.8482078551670396E-2},{"$f":"'Population at Risk'!AL203/'Population at Risk'!AL$5","v":6.0675066814274235E-3},{"$f":"'Population at Risk'!AM203/'Population at Risk'!AM$5","v":5.6588786496083524E-3},{"$f":"'Population at Risk'!AN203/'Population at Risk'!AN$5","v":2.355213021010891E-2},{"$f":"'Population at Risk'!AO203/'Population at Risk'!AO$5","v":2.355213021010891E-2},{"$f":"'Population at Risk'!AP203/'Population at Risk'!AP$5","v":1.9783415570737067E-2},{"$f":"'Population at Risk'!AQ203/'Population at Risk'!AQ$5","v":7.0623262012475168E-3},{"$f":"'Population at Risk'!AR203/'Population at Risk'!AR$5","v":8.0973927399075087E-3},{"$f":"'Population at Risk'!AS203/'Population at Risk'!AS$5","v":1.6923402321833168E-2},{"$f":"'Population at Risk'!AT203/'Population at Risk'!AT$5","v":3.0876200247744977E-2},{"$f":"'Population at Risk'!AU203/'Population at Risk'!AU$5","v":3.0876200247744977E-2},{"$f":"'Population at Risk'!AV203/'Population at Risk'!AV$5","v":5.4090026908096287E-3},{"$f":"'Population at Risk'!AW203/'Population at Risk'!AW$5","v":8.4093870400890544E-3},{"$f":"'Population at Risk'!AX203/'Population at Risk'!AX$5","v":1.2601110069984154E-2},{"$f":"'Population at Risk'!AY203/'Population at Risk'!AY$5","v":9.4275207773353194E-3},{"$f":"'Population at Risk'!AZ203/'Population at Risk'!AZ$5","v":1.1432875133724209E-2},{"$f":"'Population at Risk'!BA203/'Population at Risk'!BA$5","v":4.7268165973109013E-3},{"$f":"'Population at Risk'!BB203/'Population at Risk'!BB$5","v":7.5605398061202754E-3},{"$f":"'Population at Risk'!BC203/'Population at Risk'!BC$5","v":2.0839468587779118E-3},201]
[null,"Male 55-59",{"$f":"'Population at Risk'!C204/'Population at Risk'!C$5","v":2.6306324222080913E-3},{"$f":"'Population at Risk'!D204/'Population at Risk'!D$5","v":5.7182024921012455E-3},{"$f":"'Population at Risk'!E204/'Population at Risk'!E$5","v":8.8175841884788643E-3},{"$f":"'Population at Risk'!F204/'Population at Risk'!F$5","v":5.117024675857818E-3},{"$f":"'Population at Risk'!G204/'Population at Risk'!G$5","v":5.1280662229427204E-3},{"$f":"'Population at Risk'!H204/'Population at Risk'!H$5","v":2.7861301495909056E-3},{"$f":"'Population at Risk'!I204/'Population at Risk'!I$5","v":8.139120114038308E-3},{"$f":"'Population at Risk'!J204/'Population at Risk'!J$5","v":4.9572343765342869E-3},{"$f":"'Population at Risk'!K204/'Population at Risk'!K$5","v":3.3967087170329452E-3},{"$f":"'Population at Risk'!L204/'Population at Risk'!L$5","v":3.7129585818953853E-3},{"$f":"'Population at Risk'!M204/'Population at Risk'!M$5","v":3.7129585818953853E-3},{"$f":"'Population at Risk'!N204/'Population at Risk'!N$5","v":2.7328208793281177E-3},{"$f":"'Population at Risk'!O204/'Population at Risk'!O$5","v":2.5555402135079598E-3},{"$f":"'Population at Risk'!P204/'Population at Risk'!P$5","v":4.7968826509609116E-3},{"$f":"'Population at Risk'!Q204/'Population at Risk'!Q$5","v":7.120393001261994E-3},{"$f":"'Population at Risk'!R204/'Population at Risk'!R$5","v":3.1100555602683573E-3},{"$f":"'Population at Risk'!S204/'Population at Risk'!S$5","v":3.7705047753203657E-3},{"$f":"'Population at Risk'!T204/'Population at Risk'!T$5","v":2.6428817230200658E-3},{"$f":"'Population at Risk'!U204/'Population at Risk'!U$5","v":1.0094816097092917E-3},{"$f":"'Population at Risk'!V204/'Population at Risk'!V$5","v":3.7767055112551328E-3},{"$f":"'Population at Risk'!W204/'Population at Risk'!W$5","v":3.5154531279274551E-3},{"$f":"'Population at Risk'!X204/'Population at Risk'!X$5","v":3.5154531279274551E-3},{"$f":"'Population at Risk'!Y204/'Population at Risk'!Y$5","v":4.3341809971097359E-3},{"$f":"'Population at Risk'!Z204/'Population at Risk'!Z$5","v":1.3933327351868658E-3},{"$f":"'Population at Risk'!AA204/'Population at Risk'!AA$5","v":2.5383446357644677E-3},{"$f":"'Population at Risk'!AB204/'Population at Risk'!AB$5","v":6.1700740051413051E-3},{"$f":"'Population at Risk'!AC204/'Population at Risk'!AC$5","v":2.2803882434899005E-3},{"$f":"'Population at Risk'!AD204/'Population at Risk'!AD$5","v":6.5259168209255824E-3},{"$f":"'Population at Risk'!AE204/'Population at Risk'!AE$5","v":7.059893512975304E-3},{"$f":"'Population at Risk'!AF204/'Population at Risk'!AF$5","v":3.4617349054476142E-3},{"$f":"'Population at Risk'!AG204/'Population at Risk'!AG$5","v":7.059893512975304E-3},{"$f":"'Population at Risk'!AH204/'Population at Risk'!AH$5","v":3.0077063454818889E-3},{"$f":"'Population at Risk'!AI204/'Population at Risk'!AI$5","v":3.3284543195034101E-3},{"$f":"'Population at Risk'!AJ204/'Population at Risk'!AJ$5","v":2.8905319662569265E-3},{"$f":"'Population at Risk'!AK204/'Population at Risk'!AK$5","v":8.4670184104252023E-3},{"$f":"'Population at Risk'!AL204/'Population at Risk'!AL$5","v":2.9618372485802191E-3},{"$f":"'Population at Risk'!AM204/'Population at Risk'!AM$5","v":2.3107592223917976E-3},{"$f":"'Population at Risk'!AN204/'Population at Risk'!AN$5","v":1.0840991057397066E-2},{"$f":"'Population at Risk'!AO204/'Population at Risk'!AO$5","v":1.0840991057397066E-2},{"$f":"'Population at Risk'!AP204/'Population at Risk'!AP$5","v":9.4644687748117098E-3},{"$f":"'Population at Risk'!AQ204/'Population at Risk'!AQ$5","v":3.5932768330198773E-3},{"$f":"'Population at Risk'!AR204/'Population at Risk'!AR$5","v":3.8468180106898827E-3},{"$f":"'Population at Risk'!AS204/'Population at Risk'!AS$5","v":8.139120114038308E-3},{"$f":"'Population at Risk'!AT204/'Population at Risk'!AT$5","v":1.4420305678558664E-2},{"$f":"'Population at Risk'!AU204/'Population at Risk'!AU$5","v":1.4420305678558664E-2},{"$f":"'Population at Risk'!AV204/'Population at Risk'!AV$5","v":2.8217182839812309E-3},{"$f":"'Population at Risk'!AW204/'Population at Risk'!AW$5","v":3.8028917080259925E-3},{"$f":"'Population at Risk'!AX204/'Population at Risk'!AX$5","v":5.9144013122623207E-3},{"$f":"'Population at Risk'!AY204/'Population at Risk'!AY$5","v":4.5959788610035251E-3},{"$f":"'Population at Risk'!AZ204/'Population at Risk'!AZ$5","v":5.576823909519902E-3},{"$f":"'Population at Risk'!BA204/'Population at Risk'!BA$5","v":2.5443717719496346E-3},{"$f":"'Population at Risk'!BB204/'Population at Risk'!BB$5","v":3.3544811590426743E-3},{"$f":"'Population at Risk'!BC204/'Population at Risk'!BC$5","v":1.0094816097092917E-3},202]
[null,"Male 60-64",{"$f":"'Population at Risk'!C205/'Population at Risk'!C$5","v":2.5317936317783077E-3},{"$f":"'Population at Risk'!D205/'Population at Risk'!D$5","v":5.1633946570550102E-3},{"$f":"'Population at Risk'!E205/'Population at Risk'!E$5","v":7.8050629804538819E-3},{"$f":"'Population at Risk'!F205/'Population at Risk'!F$5","v":5.1320013334456944E-3},{"$f":"'Population at Risk'!G205/'Population at Risk'!G$5","v":5.0322742013435414E-3},{"$f":"'Population at Risk'!H205/'Population at Risk'!H$5","v":2.5393779903570639E-3},{"$f":"'Population at Risk'!I205/'Population at Risk'!I$5","v":7.7919054542173512E-3},{"$f":"'Population at Risk'!J205/'Population at Risk'!J$5","v":3.9241559839128335E-3},{"$f":"'Population at Risk'!K205/'Population at Risk'!K$5","v":2.6058332545596027E-3},{"$f":"'Population at Risk'!L205/'Population at Risk'!L$5","v":3.7633281750606325E-3},{"$f":"'Population at Risk'!M205/'Population at Risk'!M$5","v":3.7633281750606325E-3},{"$f":"'Population at Risk'!N205/'Population at Risk'!N$5","v":2.0562166761128229E-3},{"$f":"'Population at Risk'!O205/'Population at Risk'!O$5","v":2.3727114223984873E-3},{"$f":"'Population at Risk'!P205/'Population at Risk'!P$5","v":4.3140591684458921E-3},{"$f":"'Population at Risk'!Q205/'Population at Risk'!Q$5","v":5.4557374717435778E-3},{"$f":"'Population at Risk'!R205/'Population at Risk'!R$5","v":3.2211289731350849E-3},{"$f":"'Population at Risk'!S205/'Population at Risk'!S$5","v":3.1983141383638541E-3},{"$f":"'Population at Risk'!T205/'Population at Risk'!T$5","v":2.297466398945216E-3},{"$f":"'Population at Risk'!U205/'Population at Risk'!U$5","v":8.7358985455611785E-4},{"$f":"'Population at Risk'!V205/'Population at Risk'!V$5","v":2.9282401635211033E-3},{"$f":"'Population at Risk'!W205/'Population at Risk'!W$5","v":3.0063083885959779E-3},{"$f":"'Population at Risk'!X205/'Population at Risk'!X$5","v":3.0063083885959779E-3},{"$f":"'Population at Risk'!Y205/'Population at Risk'!Y$5","v":3.3985367163393014E-3},{"$f":"'Population at Risk'!Z205/'Population at Risk'!Z$5","v":1.180503369188449E-3},{"$f":"'Population at Risk'!AA205/'Population at Risk'!AA$5","v":2.156012487594638E-3},{"$f":"'Population at Risk'!AB205/'Population at Risk'!AB$5","v":5.6597910621438898E-3},{"$f":"'Population at Risk'!AC205/'Population at Risk'!AC$5","v":1.9583909494894588E-3},{"$f":"'Population at Risk'!AD205/'Population at Risk'!AD$5","v":6.0634363754069175E-3},{"$f":"'Population at Risk'!AE205/'Population at Risk'!AE$5","v":6.4573386761733334E-3},{"$f":"'Population at Risk'!AF205/'Population at Risk'!AF$5","v":2.8990500798271542E-3},{"$f":"'Population at Risk'!AG205/'Population at Risk'!AG$5","v":6.4573386761733334E-3},{"$f":"'Population at Risk'!AH205/'Population at Risk'!AH$5","v":2.515592578571041E-3},{"$f":"'Population at Risk'!AI205/'Population at Risk'!AI$5","v":2.6999550611973345E-3},{"$f":"'Population at Risk'!AJ205/'Population at Risk'!AJ$5","v":2.4420011439067134E-3},{"$f":"'Population at Risk'!AK205/'Population at Risk'!AK$5","v":8.1830635247097227E-3},{"$f":"'Population at Risk'!AL205/'Population at Risk'!AL$5","v":2.7370230959771424E-3},{"$f":"'Population at Risk'!AM205/'Population at Risk'!AM$5","v":1.9239360926522017E-3},{"$f":"'Population at Risk'!AN205/'Population at Risk'!AN$5","v":1.0034866081334207E-2},{"$f":"'Population at Risk'!AO205/'Population at Risk'!AO$5","v":1.0034866081334207E-2},{"$f":"'Population at Risk'!AP205/'Population at Risk'!AP$5","v":8.7307890248263052E-3},{"$f":"'Population at Risk'!AQ205/'Population at Risk'!AQ$5","v":2.9391537850497283E-3},{"$f":"'Population at Risk'!AR205/'Population at Risk'!AR$5","v":3.3806975839080068E-3},{"$f":"'Population at Risk'!AS205/'Population at Risk'!AS$5","v":7.7919054542173512E-3},{"$f":"'Population at Risk'!AT205/'Population at Risk'!AT$5","v":1.319594010207727E-2},{"$f":"'Population at Risk'!AU205/'Population at Risk'!AU$5","v":1.319594010207727E-2},{"$f":"'Population at Risk'!AV205/'Population at Risk'!AV$5","v":2.4713707118090645E-3},{"$f":"'Population at Risk'!AW205/'Population at Risk'!AW$5","v":3.1906460534615981E-3},{"$f":"'Population at Risk'!AX205/'Population at Risk'!AX$5","v":4.7327648776357787E-3},{"$f":"'Population at Risk'!AY205/'Population at Risk'!AY$5","v":4.0862481159074605E-3},{"$f":"'Population at Risk'!AZ205/'Population at Risk'!AZ$5","v":5.0665612188764047E-3},{"$f":"'Population at Risk'!BA205/'Population at Risk'!BA$5","v":2.0731918141811837E-3},{"$f":"'Population at Risk'!BB205/'Population at Risk'!BB$5","v":2.4318460861547982E-3},{"$f":"'Population at Risk'!BC205/'Population at Risk'!BC$5","v":8.7358985455611785E-4},203]
[null,"Male 65-69",{"$f":"'Population at Risk'!C206/'Population at Risk'!C$5","v":2.3315817229590022E-3},{"$f":"'Population at Risk'!D206/'Population at Risk'!D$5","v":5.1278463289513611E-3},{"$f":"'Population at Risk'!E206/'Population at Risk'!E$5","v":7.9348081603766805E-3},{"$f":"'Population at Risk'!F206/'Population at Risk'!F$5","v":5.2717834709325416E-3},{"$f":"'Population at Risk'!G206/'Population at Risk'!G$5","v":5.2494027836350148E-3},{"$f":"'Population at Risk'!H206/'Population at Risk'!H$5","v":2.5515800202092868E-3},{"$f":"'Population at Risk'!I206/'Population at Risk'!I$5","v":8.2616664645633504E-3},{"$f":"'Population at Risk'!J206/'Population at Risk'!J$5","v":3.7545460985570728E-3},{"$f":"'Population at Risk'!K206/'Population at Risk'!K$5","v":2.6869486866081503E-3},{"$f":"'Population at Risk'!L206/'Population at Risk'!L$5","v":3.7885129716432563E-3},{"$f":"'Population at Risk'!M206/'Population at Risk'!M$5","v":3.7885129716432563E-3},{"$f":"'Population at Risk'!N206/'Population at Risk'!N$5","v":1.9307973603948658E-3},{"$f":"'Population at Risk'!O206/'Population at Risk'!O$5","v":2.1858197692643595E-3},{"$f":"'Population at Risk'!P206/'Population at Risk'!P$5","v":4.3077887336080345E-3},{"$f":"'Population at Risk'!Q206/'Population at Risk'!Q$5","v":5.3360190946206785E-3},{"$f":"'Population at Risk'!R206/'Population at Risk'!R$5","v":2.8730989461526733E-3},{"$f":"'Population at Risk'!S206/'Population at Risk'!S$5","v":3.1801231065530979E-3},{"$f":"'Population at Risk'!T206/'Population at Risk'!T$5","v":1.9361437902090251E-3},{"$f":"'Population at Risk'!U206/'Population at Risk'!U$5","v":1.0094816097092917E-3},{"$f":"'Population at Risk'!V206/'Population at Risk'!V$5","v":3.0731001009391083E-3},{"$f":"'Population at Risk'!W206/'Population at Risk'!W$5","v":3.2402795260344313E-3},{"$f":"'Population at Risk'!X206/'Population at Risk'!X$5","v":3.2402795260344313E-3},{"$f":"'Population at Risk'!Y206/'Population at Risk'!Y$5","v":3.3948960771145132E-3},{"$f":"'Population at Risk'!Z206/'Population at Risk'!Z$5","v":1.0206972362415412E-3},{"$f":"'Population at Risk'!AA206/'Population at Risk'!AA$5","v":1.9905459504283999E-3},{"$f":"'Population at Risk'!AB206/'Population at Risk'!AB$5","v":5.5600684080030225E-3},{"$f":"'Population at Risk'!AC206/'Population at Risk'!AC$5","v":1.8020774483014136E-3},{"$f":"'Population at Risk'!AD206/'Population at Risk'!AD$5","v":6.1040358038303112E-3},{"$f":"'Population at Risk'!AE206/'Population at Risk'!AE$5","v":6.4305042502428829E-3},{"$f":"'Population at Risk'!AF206/'Population at Risk'!AF$5","v":2.4648041817939728E-3},{"$f":"'Population at Risk'!AG206/'Population at Risk'!AG$5","v":6.4305042502428829E-3},{"$f":"'Population at Risk'!AH206/'Population at Risk'!AH$5","v":2.3334717356985227E-3},{"$f":"'Population at Risk'!AI206/'Population at Risk'!AI$5","v":2.5088135341867243E-3},{"$f":"'Population at Risk'!AJ206/'Population at Risk'!AJ$5","v":2.678725744591548E-3},{"$f":"'Population at Risk'!AK206/'Population at Risk'!AK$5","v":7.7571311961365033E-3},{"$f":"'Population at Risk'!AL206/'Population at Risk'!AL$5","v":2.9868165988694503E-3},{"$f":"'Population at Risk'!AM206/'Population at Risk'!AM$5","v":1.6854436367225258E-3},{"$f":"'Population at Risk'!AN206/'Population at Risk'!AN$5","v":9.7846893646250429E-3},{"$f":"'Population at Risk'!AO206/'Population at Risk'!AO$5","v":9.7846893646250429E-3},{"$f":"'Population at Risk'!AP206/'Population at Risk'!AP$5","v":8.8123089970469064E-3},{"$f":"'Population at Risk'!AQ206/'Population at Risk'!AQ$5","v":2.7690231268332768E-3},{"$f":"'Population at Risk'!AR206/'Population at Risk'!AR$5","v":3.3101247721327538E-3},{"$f":"'Population at Risk'!AS206/'Population at Risk'!AS$5","v":8.2616664645633504E-3},{"$f":"'Population at Risk'!AT206/'Population at Risk'!AT$5","v":1.2896650738937372E-2},{"$f":"'Population at Risk'!AU206/'Population at Risk'!AU$5","v":1.2896650738937372E-2},{"$f":"'Population at Risk'!AV206/'Population at Risk'!AV$5","v":2.4003543120444362E-3},{"$f":"'Population at Risk'!AW206/'Population at Risk'!AW$5","v":3.072842689033219E-3},{"$f":"'Population at Risk'!AX206/'Population at Risk'!AX$5","v":4.409369642895883E-3},{"$f":"'Population at Risk'!AY206/'Population at Risk'!AY$5","v":4.2045784674476184E-3},{"$f":"'Population at Risk'!AZ206/'Population at Risk'!AZ$5","v":5.079918880935134E-3},{"$f":"'Population at Risk'!BA206/'Population at Risk'!BA$5","v":2.214545801511719E-3},{"$f":"'Population at Risk'!BB206/'Population at Risk'!BB$5","v":2.4501765842916438E-3},{"$f":"'Population at Risk'!BC206/'Population at Risk'!BC$5","v":1.0094816097092917E-3},204]
[null,"Male 70-74",{"$f":"'Population at Risk'!C207/'Population at Risk'!C$5","v":1.6802594373063243E-3},{"$f":"'Population at Risk'!D207/'Population at Risk'!D$5","v":3.4456486597608301E-3},{"$f":"'Population at Risk'!E207/'Population at Risk'!E$5","v":5.217791451405121E-3},{"$f":"'Population at Risk'!F207/'Population at Risk'!F$5","v":4.3232618237003615E-3},{"$f":"'Population at Risk'!G207/'Population at Risk'!G$5","v":4.3106409719630588E-3},{"$f":"'Population at Risk'!H207/'Population at Risk'!H$5","v":2.1082396022451865E-3},{"$f":"'Population at Risk'!I207/'Population at Risk'!I$5","v":6.3417736396710021E-3},{"$f":"'Population at Risk'!J207/'Population at Risk'!J$5","v":3.0953804077426378E-3},{"$f":"'Population at Risk'!K207/'Population at Risk'!K$5","v":2.0988618042561782E-3},{"$f":"'Population at Risk'!L207/'Population at Risk'!L$5","v":2.9718059967496009E-3},{"$f":"'Population at Risk'!M207/'Population at Risk'!M$5","v":2.9718059967496009E-3},{"$f":"'Population at Risk'!N207/'Population at Risk'!N$5","v":1.3532084064305895E-3},{"$f":"'Population at Risk'!O207/'Population at Risk'!O$5","v":1.7835964288235202E-3},{"$f":"'Population at Risk'!P207/'Population at Risk'!P$5","v":3.0035382873336951E-3},{"$f":"'Population at Risk'!Q207/'Population at Risk'!Q$5","v":4.2414510752113079E-3},{"$f":"'Population at Risk'!R207/'Population at Risk'!R$5","v":2.0511556909388932E-3},{"$f":"'Population at Risk'!S207/'Population at Risk'!S$5","v":2.377237111632906E-3},{"$f":"'Population at Risk'!T207/'Population at Risk'!T$5","v":1.3623453077820544E-3},{"$f":"'Population at Risk'!U207/'Population at Risk'!U$5","v":8.1535053091904327E-4},{"$f":"'Population at Risk'!V207/'Population at Risk'!V$5","v":2.217736660947078E-3},{"$f":"'Population at Risk'!W207/'Population at Risk'!W$5","v":2.4309454028196551E-3},{"$f":"'Population at Risk'!X207/'Population at Risk'!X$5","v":2.4309454028196551E-3},{"$f":"'Population at Risk'!Y207/'Population at Risk'!Y$5","v":2.6321821595214944E-3},{"$f":"'Population at Risk'!Z207/'Population at Risk'!Z$5","v":6.5984467797432971E-4},{"$f":"'Population at Risk'!AA207/'Population at Risk'!AA$5","v":1.3671603918021073E-3},{"$f":"'Population at Risk'!AB207/'Population at Risk'!AB$5","v":3.869026804805767E-3},{"$f":"'Population at Risk'!AC207/'Population at Risk'!AC$5","v":1.2615819905149579E-3},{"$f":"'Population at Risk'!AD207/'Population at Risk'!AD$5","v":4.7307160075954983E-3},{"$f":"'Population at Risk'!AE207/'Population at Risk'!AE$5","v":4.8911839991414938E-3},{"$f":"'Population at Risk'!AF207/'Population at Risk'!AF$5","v":1.8776547985378403E-3},{"$f":"'Population at Risk'!AG207/'Population at Risk'!AG$5","v":4.8911839991414938E-3},{"$f":"'Population at Risk'!AH207/'Population at Risk'!AH$5","v":1.5592644079127956E-3},{"$f":"'Population at Risk'!AI207/'Population at Risk'!AI$5","v":1.8505091564145876E-3},{"$f":"'Population at Risk'!AJ207/'Population at Risk'!AJ$5","v":2.1990469484670151E-3},{"$f":"'Population at Risk'!AK207/'Population at Risk'!AK$5","v":6.0211342811941409E-3},{"$f":"'Population at Risk'!AL207/'Population at Risk'!AL$5","v":2.4194284994426369E-3},{"$f":"'Population at Risk'!AM207/'Population at Risk'!AM$5","v":1.1531982777575175E-3},{"$f":"'Population at Risk'!AN207/'Population at Risk'!AN$5","v":7.6998833920486846E-3},{"$f":"'Population at Risk'!AO207/'Population at Risk'!AO$5","v":7.6998833920486846E-3},{"$f":"'Population at Risk'!AP207/'Population at Risk'!AP$5","v":6.4400778054274337E-3},{"$f":"'Population at Risk'!AQ207/'Population at Risk'!AQ$5","v":2.111966791652499E-3},{"$f":"'Population at Risk'!AR207/'Population at Risk'!AR$5","v":2.4350618907155244E-3},{"$f":"'Population at Risk'!AS207/'Population at Risk'!AS$5","v":6.3417736396710021E-3},{"$f":"'Population at Risk'!AT207/'Population at Risk'!AT$5","v":8.3528940439953035E-3},{"$f":"'Population at Risk'!AU207/'Population at Risk'!AU$5","v":8.3528940439953035E-3},{"$f":"'Population at Risk'!AV207/'Population at Risk'!AV$5","v":2.0736788731271463E-3},{"$f":"'Population at Risk'!AW207/'Population at Risk'!AW$5","v":2.0225676230731606E-3},{"$f":"'Population at Risk'!AX207/'Population at Risk'!AX$5","v":3.7066069212495717E-3},{"$f":"'Population at Risk'!AY207/'Population at Risk'!AY$5","v":3.1564096138640904E-3},{"$f":"'Population at Risk'!AZ207/'Population at Risk'!AZ$5","v":3.8149482839733746E-3},{"$f":"'Population at Risk'!BA207/'Population at Risk'!BA$5","v":1.4815992005385733E-3},{"$f":"'Population at Risk'!BB207/'Population at Risk'!BB$5","v":1.71084649277222E-3},{"$f":"'Population at Risk'!BC207/'Population at Risk'!BC$5","v":8.1535053091904327E-4},205]
[null,"Male 75-79",{"$f":"'Population at Risk'!C208/'Population at Risk'!C$5","v":1.1353789259626445E-3},{"$f":"'Population at Risk'!D208/'Population at Risk'!D$5","v":2.4718783863501609E-3},{"$f":"'Population at Risk'!E208/'Population at Risk'!E$5","v":3.8134906804759999E-3},{"$f":"'Population at Risk'!F208/'Population at Risk'!F$5","v":3.3997012724479745E-3},{"$f":"'Population at Risk'!G208/'Population at Risk'!G$5","v":2.8929190522952084E-3},{"$f":"'Population at Risk'!H208/'Population at Risk'!H$5","v":1.3883198409640328E-3},{"$f":"'Population at Risk'!I208/'Population at Risk'!I$5","v":4.6516552220131104E-3},{"$f":"'Population at Risk'!J208/'Population at Risk'!J$5","v":2.0314638541474102E-3},{"$f":"'Population at Risk'!K208/'Population at Risk'!K$5","v":1.2978469127767672E-3},{"$f":"'Population at Risk'!L208/'Population at Risk'!L$5","v":2.1910773026882651E-3},{"$f":"'Population at Risk'!M208/'Population at Risk'!M$5","v":2.1910773026882651E-3},{"$f":"'Population at Risk'!N208/'Population at Risk'!N$5","v":1.0462611337524316E-3},{"$f":"'Population at Risk'!O208/'Population at Risk'!O$5","v":1.0279040922377008E-3},{"$f":"'Population at Risk'!P208/'Population at Risk'!P$5","v":2.3388721945208101E-3},{"$f":"'Population at Risk'!Q208/'Population at Risk'!Q$5","v":2.7991296746354196E-3},{"$f":"'Population at Risk'!R208/'Population at Risk'!R$5","v":1.5328130975608334E-3},{"$f":"'Population at Risk'!S208/'Population at Risk'!S$5","v":1.6934196885649362E-3},{"$f":"'Population at Risk'!T208/'Population at Risk'!T$5","v":1.0828315915899066E-3},{"$f":"'Population at Risk'!U208/'Population at Risk'!U$5","v":4.2708837333854644E-4},{"$f":"'Population at Risk'!V208/'Population at Risk'!V$5","v":1.6382969112750576E-3},{"$f":"'Population at Risk'!W208/'Population at Risk'!W$5","v":1.680471943111408E-3},{"$f":"'Population at Risk'!X208/'Population at Risk'!X$5","v":1.680471943111408E-3},{"$f":"'Population at Risk'!Y208/'Population at Risk'!Y$5","v":1.8239602516186288E-3},{"$f":"'Population at Risk'!Z208/'Population at Risk'!Z$5","v":5.1476722087506299E-4},{"$f":"'Population at Risk'!AA208/'Population at Risk'!AA$5","v":9.5459349431618792E-4},{"$f":"'Population at Risk'!AB208/'Population at Risk'!AB$5","v":2.78374728154931E-3},{"$f":"'Population at Risk'!AC208/'Population at Risk'!AC$5","v":9.2978848254360335E-4},{"$f":"'Population at Risk'!AD208/'Population at Risk'!AD$5","v":3.124390796061206E-3},{"$f":"'Population at Risk'!AE208/'Population at Risk'!AE$5","v":3.212812631855036E-3},{"$f":"'Population at Risk'!AF208/'Population at Risk'!AF$5","v":1.3516668093708883E-3},{"$f":"'Population at Risk'!AG208/'Population at Risk'!AG$5","v":3.212812631855036E-3},{"$f":"'Population at Risk'!AH208/'Population at Risk'!AH$5","v":9.9972718002361142E-4},{"$f":"'Population at Risk'!AI208/'Population at Risk'!AI$5","v":1.3237360667209396E-3},{"$f":"'Population at Risk'!AJ208/'Population at Risk'!AJ$5","v":1.2895261142568614E-3},{"$f":"'Population at Risk'!AK208/'Population at Risk'!AK$5","v":4.3690331279404426E-3},{"$f":"'Population at Risk'!AL208/'Population at Risk'!AL$5","v":1.6450686404764832E-3},{"$f":"'Population at Risk'!AM208/'Population at Risk'!AM$5","v":7.3583647988058505E-4},{"$f":"'Population at Risk'!AN208/'Population at Risk'!AN$5","v":6.2266205047613911E-3},{"$f":"'Population at Risk'!AO208/'Population at Risk'!AO$5","v":6.2266205047613911E-3},{"$f":"'Population at Risk'!AP208/'Population at Risk'!AP$5","v":4.9564143110125058E-3},{"$f":"'Population at Risk'!AQ208/'Population at Risk'!AQ$5","v":1.4490438820504649E-3},{"$f":"'Population at Risk'!AR208/'Population at Risk'!AR$5","v":1.727834350616496E-3},{"$f":"'Population at Risk'!AS208/'Population at Risk'!AS$5","v":4.6516552220131104E-3},{"$f":"'Population at Risk'!AT208/'Population at Risk'!AT$5","v":6.1762441302505985E-3},{"$f":"'Population at Risk'!AU208/'Population at Risk'!AU$5","v":6.1762441302505985E-3},{"$f":"'Population at Risk'!AV208/'Population at Risk'!AV$5","v":1.467672261802318E-3},{"$f":"'Population at Risk'!AW208/'Population at Risk'!AW$5","v":1.3008146156598508E-3},{"$f":"'Population at Risk'!AX208/'Population at Risk'!AX$5","v":2.4814365127157367E-3},{"$f":"'Population at Risk'!AY208/'Population at Risk'!AY$5","v":2.3498027205252634E-3},{"$f":"'Population at Risk'!AZ208/'Population at Risk'!AZ$5","v":2.957386379802889E-3},{"$f":"'Population at Risk'!BA208/'Population at Risk'!BA$5","v":9.894779113137468E-4},{"$f":"'Population at Risk'!BB208/'Population at Risk'!BB$5","v":1.197592544940554E-3},{"$f":"'Population at Risk'!BC208/'Population at Risk'!BC$5","v":4.2708837333854644E-4},206]
[null,"Male 80-84",{"$f":"'Population at Risk'!C209/'Population at Risk'!C$5","v":7.7297002772010398E-4},{"$f":"'Population at Risk'!D209/'Population at Risk'!D$5","v":1.6149097624229094E-3},{"$f":"'Population at Risk'!E209/'Population at Risk'!E$5","v":2.4600703722617028E-3},{"$f":"'Population at Risk'!F209/'Population at Risk'!F$5","v":2.0418176511471683E-3},{"$f":"'Population at Risk'!G209/'Population at Risk'!G$5","v":1.9605433753965319E-3},{"$f":"'Population at Risk'!H209/'Population at Risk'!H$5","v":9.5175832847338958E-4},{"$f":"'Population at Risk'!I209/'Population at Risk'!I$5","v":3.0330221754948272E-3},{"$f":"'Population at Risk'!J209/'Population at Risk'!J$5","v":1.3954267840633062E-3},{"$f":"'Population at Risk'!K209/'Population at Risk'!K$5","v":9.3282746855830132E-4},{"$f":"'Population at Risk'!L209/'Population at Risk'!L$5","v":1.6406096059537747E-3},{"$f":"'Population at Risk'!M209/'Population at Risk'!M$5","v":1.6406096059537747E-3},{"$f":"'Population at Risk'!N209/'Population at Risk'!N$5","v":9.1754130972610708E-4},{"$f":"'Population at Risk'!O209/'Population at Risk'!O$5","v":6.3380647584617116E-4},{"$f":"'Population at Risk'!P209/'Population at Risk'!P$5","v":1.6930174062214981E-3},{"$f":"'Population at Risk'!Q209/'Population at Risk'!Q$5","v":1.8641861580565831E-3},{"$f":"'Population at Risk'!R209/'Population at Risk'!R$5","v":1.1625683880050765E-3},{"$f":"'Population at Risk'!S209/'Population at Risk'!S$5","v":1.1245365119376528E-3},{"$f":"'Population at Risk'!T209/'Population at Risk'!T$5","v":7.9081929459241872E-4},{"$f":"'Population at Risk'!U209/'Population at Risk'!U$5","v":4.0767526545952164E-4},{"$f":"'Population at Risk'!V209/'Population at Risk'!V$5","v":1.1761247299890414E-3},{"$f":"'Population at Risk'!W209/'Population at Risk'!W$5","v":1.0594919431175251E-3},{"$f":"'Population at Risk'!X209/'Population at Risk'!X$5","v":1.0594919431175251E-3},{"$f":"'Population at Risk'!Y209/'Population at Risk'!Y$5","v":1.2796846875128703E-3},{"$f":"'Population at Risk'!Z209/'Population at Risk'!Z$5","v":3.6895332998341423E-4},{"$f":"'Population at Risk'!AA209/'Population at Risk'!AA$5","v":6.4894766486625968E-4},{"$f":"'Population at Risk'!AB209/'Population at Risk'!AB$5","v":1.8236515156186217E-3},{"$f":"'Population at Risk'!AC209/'Population at Risk'!AC$5","v":6.4867973381305913E-4},{"$f":"'Population at Risk'!AD209/'Population at Risk'!AD$5","v":2.1711868243815165E-3},{"$f":"'Population at Risk'!AE209/'Population at Risk'!AE$5","v":2.2516522848915707E-3},{"$f":"'Population at Risk'!AF209/'Population at Risk'!AF$5","v":8.1344654138610023E-4},{"$f":"'Population at Risk'!AG209/'Population at Risk'!AG$5","v":2.2516522848915707E-3},{"$f":"'Population at Risk'!AH209/'Population at Risk'!AH$5","v":6.4943517586029959E-4},{"$f":"'Population at Risk'!AI209/'Population at Risk'!AI$5","v":9.1099995585396034E-4},{"$f":"'Population at Risk'!AJ209/'Population at Risk'!AJ$5","v":9.8427597126852216E-4},{"$f":"'Population at Risk'!AK209/'Population at Risk'!AK$5","v":2.884723498064074E-3},{"$f":"'Population at Risk'!AL209/'Population at Risk'!AL$5","v":1.1026598913389009E-3},{"$f":"'Population at Risk'!AM209/'Population at Risk'!AM$5","v":4.3917513226074444E-4},{"$f":"'Population at Risk'!AN209/'Population at Risk'!AN$5","v":3.5024740339282823E-3},{"$f":"'Population at Risk'!AO209/'Population at Risk'!AO$5","v":3.5024740339282823E-3},{"$f":"'Population at Risk'!AP209/'Population at Risk'!AP$5","v":3.484978812430668E-3},{"$f":"'Population at Risk'!AQ209/'Population at Risk'!AQ$5","v":9.0051917366294071E-4},{"$f":"'Population at Risk'!AR209/'Population at Risk'!AR$5","v":1.1708489296367382E-3},{"$f":"'Population at Risk'!AS209/'Population at Risk'!AS$5","v":3.0330221754948272E-3},{"$f":"'Population at Risk'!AT209/'Population at Risk'!AT$5","v":3.6186804816005706E-3},{"$f":"'Population at Risk'!AU209/'Population at Risk'!AU$5","v":3.6186804816005706E-3},{"$f":"'Population at Risk'!AV209/'Population at Risk'!AV$5","v":1.122059116281127E-3},{"$f":"'Population at Risk'!AW209/'Population at Risk'!AW$5","v":8.8933244131846946E-4},{"$f":"'Population at Risk'!AX209/'Population at Risk'!AX$5","v":1.6791675649956113E-3},{"$f":"'Population at Risk'!AY209/'Population at Risk'!AY$5","v":1.5838062436913426E-3},{"$f":"'Population at Risk'!AZ209/'Population at Risk'!AZ$5","v":2.0597514894562128E-3},{"$f":"'Population at Risk'!BA209/'Population at Risk'!BA$5","v":8.1147659393455431E-4},{"$f":"'Population at Risk'!BB209/'Population at Risk'!BB$5","v":6.8739368013169555E-4},{"$f":"'Population at Risk'!BC209/'Population at Risk'!BC$5","v":4.0767526545952164E-4},207]
[null,"Male 85-89",{"$f":"'Population at Risk'!C210/'Population at Risk'!C$5","v":3.5734024232306444E-4},{"$f":"'Population at Risk'!D210/'Population at Risk'!D$5","v":8.6839487224628137E-4},{"$f":"'Population at Risk'!E210/'Population at Risk'!E$5","v":1.3814045627074504E-3},{"$f":"'Population at Risk'!F210/'Population at Risk'!F$5","v":1.2480547989897116E-3},{"$f":"'Population at Risk'!G210/'Population at Risk'!G$5","v":8.9405886825900483E-4},{"$f":"'Population at Risk'!H210/'Population at Risk'!H$5","v":4.3927307468002601E-4},{"$f":"'Population at Risk'!I210/'Population at Risk'!I$5","v":1.7564976908589572E-3},{"$f":"'Population at Risk'!J210/'Population at Risk'!J$5","v":7.7095402434436823E-4},{"$f":"'Population at Risk'!K210/'Population at Risk'!K$5","v":4.2585601825487668E-4},{"$f":"'Population at Risk'!L210/'Population at Risk'!L$5","v":8.2390263106011947E-4},{"$f":"'Population at Risk'!M210/'Population at Risk'!M$5","v":8.2390263106011947E-4},{"$f":"'Population at Risk'!N210/'Population at Risk'!N$5","v":5.0167726287182832E-4},{"$f":"'Population at Risk'!O210/'Population at Risk'!O$5","v":2.5596030755326146E-4},{"$f":"'Population at Risk'!P210/'Population at Risk'!P$5","v":9.0294261665146568E-4},{"$f":"'Population at Risk'!Q210/'Population at Risk'!Q$5","v":1.1230723949148221E-3},{"$f":"'Population at Risk'!R210/'Population at Risk'!R$5","v":5.6277195852475045E-4},{"$f":"'Population at Risk'!S210/'Population at Risk'!S$5","v":6.2428313714185885E-4},{"$f":"'Population at Risk'!T210/'Population at Risk'!T$5","v":4.8744465140825803E-4},{"$f":"'Population at Risk'!U210/'Population at Risk'!U$5","v":2.329572945482981E-4},{"$f":"'Population at Risk'!V210/'Population at Risk'!V$5","v":5.8978688805902066E-4},{"$f":"'Population at Risk'!W210/'Population at Risk'!W$5","v":5.2974597155876256E-4},{"$f":"'Population at Risk'!X210/'Population at Risk'!X$5","v":5.2974597155876256E-4},{"$f":"'Population at Risk'!Y210/'Population at Risk'!Y$5","v":6.7533857619811509E-4},{"$f":"'Population at Risk'!Z210/'Population at Risk'!Z$5","v":1.8852705084980846E-4},{"$f":"'Population at Risk'!AA210/'Population at Risk'!AA$5","v":3.3093307433247632E-4},{"$f":"'Population at Risk'!AB210/'Population at Risk'!AB$5","v":9.5266961083509156E-4},{"$f":"'Population at Risk'!AC210/'Population at Risk'!AC$5","v":3.3733049847665318E-4},{"$f":"'Population at Risk'!AD210/'Population at Risk'!AD$5","v":1.1279580331542999E-3},{"$f":"'Population at Risk'!AE210/'Population at Risk'!AE$5","v":1.2173071399359629E-3},{"$f":"'Population at Risk'!AF210/'Population at Risk'!AF$5","v":4.7094273448668959E-4},{"$f":"'Population at Risk'!AG210/'Population at Risk'!AG$5","v":1.2173071399359629E-3},{"$f":"'Population at Risk'!AH210/'Population at Risk'!AH$5","v":3.1929271175947904E-4},{"$f":"'Population at Risk'!AI210/'Population at Risk'!AI$5","v":5.2223752803576956E-4},{"$f":"'Population at Risk'!AJ210/'Population at Risk'!AJ$5","v":4.3607163284048456E-4},{"$f":"'Population at Risk'!AK210/'Population at Risk'!AK$5","v":1.3810533077980131E-3},{"$f":"'Population at Risk'!AL210/'Population at Risk'!AL$5","v":5.4597722775032956E-4},{"$f":"'Population at Risk'!AM210/'Population at Risk'!AM$5","v":1.8759467570078156E-4},{"$f":"'Population at Risk'!AN210/'Population at Risk'!AN$5","v":1.8902240818025652E-3},{"$f":"'Population at Risk'!AO210/'Population at Risk'!AO$5","v":1.8902240818025652E-3},{"$f":"'Population at Risk'!AP210/'Population at Risk'!AP$5","v":1.8994153527399898E-3},{"$f":"'Population at Risk'!AQ210/'Population at Risk'!AQ$5","v":5.2799169791312476E-4},{"$f":"'Population at Risk'!AR210/'Population at Risk'!AR$5","v":6.1816185271694598E-4},{"$f":"'Population at Risk'!AS210/'Population at Risk'!AS$5","v":1.7564976908589572E-3},{"$f":"'Population at Risk'!AT210/'Population at Risk'!AT$5","v":1.6596955592303368E-3},{"$f":"'Population at Risk'!AU210/'Population at Risk'!AU$5","v":1.6596955592303368E-3},{"$f":"'Population at Risk'!AV210/'Population at Risk'!AV$5","v":5.1131807830532379E-4},{"$f":"'Population at Risk'!AW210/'Population at Risk'!AW$5","v":4.6955425539762466E-4},{"$f":"'Population at Risk'!AX210/'Population at Risk'!AX$5","v":9.8262398247891329E-4},{"$f":"'Population at Risk'!AY210/'Population at Risk'!AY$5","v":8.5982054255215247E-4},{"$f":"'Population at Risk'!AZ210/'Population at Risk'!AZ$5","v":1.1594450666977904E-3},{"$f":"'Population at Risk'!BA210/'Population at Risk'!BA$5","v":3.0888463898153998E-4},{"$f":"'Population at Risk'!BB210/'Population at Risk'!BB$5","v":3.3605913250882893E-4},{"$f":"'Population at Risk'!BC210/'Population at Risk'!BC$5","v":2.329572945482981E-4},208]
[null,"Male 90+",{"$f":"'Population at Risk'!C211/'Population at Risk'!C$5","v":1.0390744634925989E-4},{"$f":"'Population at Risk'!D211/'Population at Risk'!D$5","v":3.4278744957090058E-4},{"$f":"'Population at Risk'!E211/'Population at Risk'!E$5","v":5.8258129808472594E-4},{"$f":"'Population at Risk'!F211/'Population at Risk'!F$5","v":4.7426082361609042E-4},{"$f":"'Population at Risk'!G211/'Population at Risk'!G$5","v":4.4702943412950241E-4},{"$f":"'Population at Risk'!H211/'Population at Risk'!H$5","v":1.8980935325680135E-4},{"$f":"'Population at Risk'!I211/'Population at Risk'!I$5","v":6.2805004644084803E-4},{"$f":"'Population at Risk'!J211/'Population at Risk'!J$5","v":2.929625292508599E-4},{"$f":"'Population at Risk'!K211/'Population at Risk'!K$5","v":1.622308640970959E-4},{"$f":"'Population at Risk'!L211/'Population at Risk'!L$5","v":3.0941321515794878E-4},{"$f":"'Population at Risk'!M211/'Population at Risk'!M$5","v":3.0941321515794878E-4},{"$f":"'Population at Risk'!N211/'Population at Risk'!N$5","v":2.7394218959448524E-4},{"$f":"'Population at Risk'!O211/'Population at Risk'!O$5","v":1.3407444681361313E-4},{"$f":"'Population at Risk'!P211/'Population at Risk'!P$5","v":3.8876695994715884E-4},{"$f":"'Population at Risk'!Q211/'Population at Risk'!Q$5","v":3.5345425626760903E-4},{"$f":"'Population at Risk'!R211/'Population at Risk'!R$5","v":3.6283981536464174E-4},{"$f":"'Population at Risk'!S211/'Population at Risk'!S$5","v":2.4640579452751512E-4},{"$f":"'Population at Risk'!T211/'Population at Risk'!T$5","v":2.3974550453879361E-4},{"$f":"'Population at Risk'!U211/'Population at Risk'!U$5","v":3.8826215758049682E-5},{"$f":"'Population at Risk'!V211/'Population at Risk'!V$5","v":2.4143322903000849E-4},{"$f":"'Population at Risk'!W211/'Population at Risk'!W$5","v":2.3397113743845347E-4},{"$f":"'Population at Risk'!X211/'Population at Risk'!X$5","v":2.3397113743845347E-4},{"$f":"'Population at Risk'!Y211/'Population at Risk'!Y$5","v":2.657666634095008E-4},{"$f":"'Population at Risk'!Z211/'Population at Risk'!Z$5","v":7.6589114407734691E-5},{"$f":"'Population at Risk'!AA211/'Population at Risk'!AA$5","v":1.3688095599466213E-4},{"$f":"'Population at Risk'!AB211/'Population at Risk'!AB$5","v":3.9040358216850074E-4},{"$f":"'Population at Risk'!AC211/'Population at Risk'!AC$5","v":1.4694320956369362E-4},{"$f":"'Population at Risk'!AD211/'Population at Risk'!AD$5","v":4.9072352616102554E-4},{"$f":"'Population at Risk'!AE211/'Population at Risk'!AE$5","v":5.074145994121849E-4},{"$f":"'Population at Risk'!AF211/'Population at Risk'!AF$5","v":1.7736804285862335E-4},{"$f":"'Population at Risk'!AG211/'Population at Risk'!AG$5","v":5.074145994121849E-4},{"$f":"'Population at Risk'!AH211/'Population at Risk'!AH$5","v":1.1857229344466091E-4},{"$f":"'Population at Risk'!AI211/'Population at Risk'!AI$5","v":2.0345233722485315E-4},{"$f":"'Population at Risk'!AJ211/'Population at Risk'!AJ$5","v":1.1213270558755316E-4},{"$f":"'Population at Risk'!AK211/'Population at Risk'!AK$5","v":6.3244497272993124E-4},{"$f":"'Population at Risk'!AL211/'Population at Risk'!AL$5","v":1.7842393063736262E-4},{"$f":"'Population at Risk'!AM211/'Population at Risk'!AM$5","v":7.8528003781722525E-5},{"$f":"'Population at Risk'!AN211/'Population at Risk'!AN$5","v":9.1731462793359783E-4},{"$f":"'Population at Risk'!AO211/'Population at Risk'!AO$5","v":9.1731462793359783E-4},{"$f":"'Population at Risk'!AP211/'Population at Risk'!AP$5","v":7.9074373053982406E-4},{"$f":"'Population at Risk'!AQ211/'Population at Risk'!AQ$5","v":2.229298280077638E-4},{"$f":"'Population at Risk'!AR211/'Population at Risk'!AR$5","v":2.5430202996635034E-4},{"$f":"'Population at Risk'!AS211/'Population at Risk'!AS$5","v":6.2805004644084803E-4},{"$f":"'Population at Risk'!AT211/'Population at Risk'!AT$5","v":6.8020309804522016E-4},{"$f":"'Population at Risk'!AU211/'Population at Risk'!AU$5","v":6.8020309804522016E-4},{"$f":"'Population at Risk'!AV211/'Population at Risk'!AV$5","v":2.6986231910558749E-4},{"$f":"'Population at Risk'!AW211/'Population at Risk'!AW$5","v":1.6426102927337403E-4},{"$f":"'Population at Risk'!AX211/'Population at Risk'!AX$5","v":3.7314834777680254E-4},{"$f":"'Population at Risk'!AY211/'Population at Risk'!AY$5","v":3.7179536489836561E-4},{"$f":"'Population at Risk'!AZ211/'Population at Risk'!AZ$5","v":4.9690502858476733E-4},{"$f":"'Population at Risk'!BA211/'Population at Risk'!BA$5","v":1.3088332160234747E-4},{"$f":"'Population at Risk'!BB211/'Population at Risk'!BB$5","v":7.0266909524573313E-5},{"$f":"'Population at Risk'!BC211/'Population at Risk'!BC$5","v":3.8826215758049682E-5},209]
["SIMD Q5 (least deprived)","Female 0-4",{"$f":"'Population at Risk'!C212/'Population at Risk'!C$5","v":0},{"$f":"'Population at Risk'!D212/'Population at Risk'!D$5","v":0},{"$f":"'Population at Risk'!E212/'Population at Risk'!E$5","v":0},{"$f":"'Population at Risk'!F212/'Population at Risk'!F$5","v":0},{"$f":"'Population at Risk'!G212/'Population at Risk'!G$5","v":0},{"$f":"'Population at Risk'!H212/'Population at Risk'!H$5","v":0},{"$f":"'Population at Risk'!I212/'Population at Risk'!I$5","v":0},{"$f":"'Population at Risk'!J212/'Population at Risk'!J$5","v":0},{"$f":"'Population at Risk'!K212/'Population at Risk'!K$5","v":0},{"$f":"'Population at Risk'!L212/'Population at Risk'!L$5","v":0},{"$f":"'Population at Risk'!M212/'Population at Risk'!M$5","v":0},{"$f":"'Population at Risk'!N212/'Population at Risk'!N$5","v":0},{"$f":"'Population at Risk'!O212/'Population at Risk'!O$5","v":0},{"$f":"'Population at Risk'!P212/'Population at Risk'!P$5","v":0},{"$f":"'Population at Risk'!Q212/'Population at Risk'!Q$5","v":0},{"$f":"'Population at Risk'!R212/'Population at Risk'!R$5","v":0},{"$f":"'Population at Risk'!S212/'Population at Risk'!S$5","v":0},{"$f":"'Population at Risk'!T212/'Population at Risk'!T$5","v":0},{"$f":"'Population at Risk'!U212/'Population at Risk'!U$5","v":0},{"$f":"'Population at Risk'!V212/'Population at Risk'!V$5","v":0},{"$f":"'Population at Risk'!W212/'Population at Risk'!W$5","v":0},{"$f":"'Population at Risk'!X212/'Population at Risk'!X$5","v":0},{"$f":"'Population at Risk'!Y212/'Population at Risk'!Y$5","v":0},{"$f":"'Population at Risk'!Z212/'Population at Risk'!Z$5","v":0},{"$f":"'Population at Risk'!AA212/'Population at Risk'!AA$5","v":0},{"$f":"'Population at Risk'!AB212/'Population at Risk'!AB$5","v":0},{"$f":"'Population at Risk'!AC212/'Population at Risk'!AC$5","v":0},{"$f":"'Population at Risk'!AD212/'Population at Risk'!AD$5","v":0},{"$f":"'Population at Risk'!AE212/'Population at Risk'!AE$5","v":0},{"$f":"'Population at Risk'!AF212/'Population at Risk'!AF$5","v":0},{"$f":"'Population at Risk'!AG212/'Population at Risk'!AG$5","v":0},{"$f":"'Population at Risk'!AH212/'Population at Risk'!AH$5","v":0},{"$f":"'Population at Risk'!AI212/'Population at Risk'!AI$5","v":0},{"$f":"'Population at Risk'!AJ212/'Population at Risk'!AJ$5","v":0},{"$f":"'Population at Risk'!AK212/'Population at Risk'!AK$5","v":0},{"$f":"'Population at Risk'!AL212/'Population at Risk'!AL$5","v":0},{"$f":"'Population at Risk'!AM212/'Population at Risk'!AM$5","v":0},{"$f":"'Population at Risk'!AN212/'Population at Risk'!AN$5","v":0},{"$f":"'Population at Risk'!AO212/'Population at Risk'!AO$5","v":0},{"$f":"'Population at Risk'!AP212/'Population at Risk'!AP$5","v":0},{"$f":"'Population at Risk'!AQ212/'Population at Risk'!AQ$5","v":0},{"$f":"'Population at Risk'!AR212/'Population at Risk'!AR$5","v":0},{"$f":"'Population at Risk'!AS212/'Population at Risk'!AS$5","v":0},{"$f":"'Population at Risk'!AT212/'Population at Risk'!AT$5","v":0},{"$f":"'Population at Risk'!AU212/'Population at Risk'!AU$5","v":0},{"$f":"'Population at Risk'!AV212/'Population at Risk'!AV$5","v":0},{"$f":"'Population at Risk'!AW212/'Population at Risk'!AW$5","v":0},{"$f":"'Population at Risk'!AX212/'Population at Risk'!AX$5","v":0},{"$f":"'Population at Risk'!AY212/'Population at Risk'!AY$5","v":0},{"$f":"'Population at Risk'!AZ212/'Population at Risk'!AZ$5","v":0},{"$f":"'Population at Risk'!BA212/'Population at Risk'!BA$5","v":0},{"$f":"'Population at Risk'!BB212/'Population at Risk'!BB$5","v":0},{"$f":"'Population at Risk'!BC212/'Population at Risk'!BC$5","v":0},210]
[null,"Female 5-9",{"$f":"'Population at Risk'!C213/'Population at Risk'!C$5","v":0},{"$f":"'Population at Risk'!D213/'Population at Risk'!D$5","v":0},{"$f":"'Population at Risk'!E213/'Population at Risk'!E$5","v":0},{"$f":"'Population at Risk'!F213/'Population at Risk'!F$5","v":0},{"$f":"'Population at Risk'!G213/'Population at Risk'!G$5","v":0},{"$f":"'Population at Risk'!H213/'Population at Risk'!H$5","v":0},{"$f":"'Population at Risk'!I213/'Population at Risk'!I$5","v":0},{"$f":"'Population at Risk'!J213/'Population at Risk'!J$5","v":0},{"$f":"'Population at Risk'!K213/'Population at Risk'!K$5","v":0},{"$f":"'Population at Risk'!L213/'Population at Risk'!L$5","v":0},{"$f":"'Population at Risk'!M213/'Population at Risk'!M$5","v":0},{"$f":"'Population at Risk'!N213/'Population at Risk'!N$5","v":0},{"$f":"'Population at Risk'!O213/'Population at Risk'!O$5","v":0},{"$f":"'Population at Risk'!P213/'Population at Risk'!P$5","v":0},{"$f":"'Population at Risk'!Q213/'Population at Risk'!Q$5","v":0},{"$f":"'Population at Risk'!R213/'Population at Risk'!R$5","v":0},{"$f":"'Population at Risk'!S213/'Population at Risk'!S$5","v":0},{"$f":"'Population at Risk'!T213/'Population at Risk'!T$5","v":0},{"$f":"'Population at Risk'!U213/'Population at Risk'!U$5","v":0},{"$f":"'Population at Risk'!V213/'Population at Risk'!V$5","v":0},{"$f":"'Population at Risk'!W213/'Population at Risk'!W$5","v":0},{"$f":"'Population at Risk'!X213/'Population at Risk'!X$5","v":0},{"$f":"'Population at Risk'!Y213/'Population at Risk'!Y$5","v":0},{"$f":"'Population at Risk'!Z213/'Population at Risk'!Z$5","v":0},{"$f":"'Population at Risk'!AA213/'Population at Risk'!AA$5","v":0},{"$f":"'Population at Risk'!AB213/'Population at Risk'!AB$5","v":0},{"$f":"'Population at Risk'!AC213/'Population at Risk'!AC$5","v":0},{"$f":"'Population at Risk'!AD213/'Population at Risk'!AD$5","v":0},{"$f":"'Population at Risk'!AE213/'Population at Risk'!AE$5","v":0},{"$f":"'Population at Risk'!AF213/'Population at Risk'!AF$5","v":0},{"$f":"'Population at Risk'!AG213/'Population at Risk'!AG$5","v":0},{"$f":"'Population at Risk'!AH213/'Population at Risk'!AH$5","v":0},{"$f":"'Population at Risk'!AI213/'Population at Risk'!AI$5","v":0},{"$f":"'Population at Risk'!AJ213/'Population at Risk'!AJ$5","v":0},{"$f":"'Population at Risk'!AK213/'Population at Risk'!AK$5","v":0},{"$f":"'Population at Risk'!AL213/'Population at Risk'!AL$5","v":0},{"$f":"'Population at Risk'!AM213/'Population at Risk'!AM$5","v":0},{"$f":"'Population at Risk'!AN213/'Population at Risk'!AN$5","v":0},{"$f":"'Population at Risk'!AO213/'Population at Risk'!AO$5","v":0},{"$f":"'Population at Risk'!AP213/'Population at Risk'!AP$5","v":0},{"$f":"'Population at Risk'!AQ213/'Population at Risk'!AQ$5","v":0},{"$f":"'Population at Risk'!AR213/'Population at Risk'!AR$5","v":0},{"$f":"'Population at Risk'!AS213/'Population at Risk'!AS$5","v":0},{"$f":"'Population at Risk'!AT213/'Population at Risk'!AT$5","v":0},{"$f":"'Population at Risk'!AU213/'Population at Risk'!AU$5","v":0},{"$f":"'Population at Risk'!AV213/'Population at Risk'!AV$5","v":0},{"$f":"'Population at Risk'!AW213/'Population at Risk'!AW$5","v":0},{"$f":"'Population at Risk'!AX213/'Population at Risk'!AX$5","v":0},{"$f":"'Population at Risk'!AY213/'Population at Risk'!AY$5","v":0},{"$f":"'Population at Risk'!AZ213/'Population at Risk'!AZ$5","v":0},{"$f":"'Population at Risk'!BA213/'Population at Risk'!BA$5","v":0},{"$f":"'Population at Risk'!BB213/'Population at Risk'!BB$5","v":0},{"$f":"'Population at Risk'!BC213/'Population at Risk'!BC$5","v":0},211]
[null,"Female 10-15",{"$f":"'Population at Risk'!C214/'Population at Risk'!C$5","v":0},{"$f":"'Population at Risk'!D214/'Population at Risk'!D$5","v":0},{"$f":"'Population at Risk'!E214/'Population at Risk'!E$5","v":0},{"$f":"'Population at Risk'!F214/'Population at Risk'!F$5","v":0},{"$f":"'Population at Risk'!G214/'Population at Risk'!G$5","v":0},{"$f":"'Population at Risk'!H214/'Population at Risk'!H$5","v":0},{"$f":"'Population at Risk'!I214/'Population at Risk'!I$5","v":0},{"$f":"'Population at Risk'!J214/'Population at Risk'!J$5","v":0},{"$f":"'Population at Risk'!K214/'Population at Risk'!K$5","v":0},{"$f":"'Population at Risk'!L214/'Population at Risk'!L$5","v":0},{"$f":"'Population at Risk'!M214/'Population at Risk'!M$5","v":0},{"$f":"'Population at Risk'!N214/'Population at Risk'!N$5","v":0},{"$f":"'Population at Risk'!O214/'Population at Risk'!O$5","v":0},{"$f":"'Population at Risk'!P214/'Population at Risk'!P$5","v":0},{"$f":"'Population at Risk'!Q214/'Population at Risk'!Q$5","v":0},{"$f":"'Population at Risk'!R214/'Population at Risk'!R$5","v":0},{"$f":"'Population at Risk'!S214/'Population at Risk'!S$5","v":0},{"$f":"'Population at Risk'!T214/'Population at Risk'!T$5","v":0},{"$f":"'Population at Risk'!U214/'Population at Risk'!U$5","v":0},{"$f":"'Population at Risk'!V214/'Population at Risk'!V$5","v":0},{"$f":"'Population at Risk'!W214/'Population at Risk'!W$5","v":0},{"$f":"'Population at Risk'!X214/'Population at Risk'!X$5","v":0},{"$f":"'Population at Risk'!Y214/'Population at Risk'!Y$5","v":0},{"$f":"'Population at Risk'!Z214/'Population at Risk'!Z$5","v":0},{"$f":"'Population at Risk'!AA214/'Population at Risk'!AA$5","v":0},{"$f":"'Population at Risk'!AB214/'Population at Risk'!AB$5","v":0},{"$f":"'Population at Risk'!AC214/'Population at Risk'!AC$5","v":0},{"$f":"'Population at Risk'!AD214/'Population at Risk'!AD$5","v":0},{"$f":"'Population at Risk'!AE214/'Population at Risk'!AE$5","v":0},{"$f":"'Population at Risk'!AF214/'Population at Risk'!AF$5","v":0},{"$f":"'Population at Risk'!AG214/'Population at Risk'!AG$5","v":0},{"$f":"'Population at Risk'!AH214/'Population at Risk'!AH$5","v":0},{"$f":"'Population at Risk'!AI214/'Population at Risk'!AI$5","v":0},{"$f":"'Population at Risk'!AJ214/'Population at Risk'!AJ$5","v":0},{"$f":"'Population at Risk'!AK214/'Population at Risk'!AK$5","v":0},{"$f":"'Population at Risk'!AL214/'Population at Risk'!AL$5","v":0},{"$f":"'Population at Risk'!AM214/'Population at Risk'!AM$5","v":0},{"$f":"'Population at Risk'!AN214/'Population at Risk'!AN$5","v":0},{"$f":"'Population at Risk'!AO214/'Population at Risk'!AO$5","v":0},{"$f":"'Population at Risk'!AP214/'Population at Risk'!AP$5","v":0},{"$f":"'Population at Risk'!AQ214/'Population at Risk'!AQ$5","v":0},{"$f":"'Population at Risk'!AR214/'Population at Risk'!AR$5","v":0},{"$f":"'Population at Risk'!AS214/'Population at Risk'!AS$5","v":0},{"$f":"'Population at Risk'!AT214/'Population at Risk'!AT$5","v":0},{"$f":"'Population at Risk'!AU214/'Population at Risk'!AU$5","v":0},{"$f":"'Population at Risk'!AV214/'Population at Risk'!AV$5","v":0},{"$f":"'Population at Risk'!AW214/'Population at Risk'!AW$5","v":0},{"$f":"'Population at Risk'!AX214/'Population at Risk'!AX$5","v":0},{"$f":"'Population at Risk'!AY214/'Population at Risk'!AY$5","v":0},{"$f":"'Population at Risk'!AZ214/'Population at Risk'!AZ$5","v":0},{"$f":"'Population at Risk'!BA214/'Population at Risk'!BA$5","v":0},{"$f":"'Population at Risk'!BB214/'Population at Risk'!BB$5","v":0},{"$f":"'Population at Risk'!BC214/'Population at Risk'!BC$5","v":0},212]
[null,"Female 16-19",{"$f":"'Population at Risk'!C215/'Population at Risk'!C$5","v":8.8683449830279024E-3},{"$f":"'Population at Risk'!D215/'Population at Risk'!D$5","v":8.52995187566662E-3},{"$f":"'Population at Risk'!E215/'Population at Risk'!E$5","v":8.1902642315341573E-3},{"$f":"'Population at Risk'!F215/'Population at Risk'!F$5","v":3.934430842271964E-3},{"$f":"'Population at Risk'!G215/'Population at Risk'!G$5","v":1.4693270112425463E-3},{"$f":"'Population at Risk'!H215/'Population at Risk'!H$5","v":2.4722345694875246E-3},{"$f":"'Population at Risk'!I215/'Population at Risk'!I$5","v":1.8411281567283699E-3},{"$f":"'Population at Risk'!J215/'Population at Risk'!J$5","v":8.1873577633682412E-3},{"$f":"'Population at Risk'!K215/'Population at Risk'!K$5","v":2.8377666964069024E-3},{"$f":"'Population at Risk'!L215/'Population at Risk'!L$5","v":1.5999844282452214E-3},{"$f":"'Population at Risk'!M215/'Population at Risk'!M$5","v":1.5999844282452214E-3},{"$f":"'Population at Risk'!N215/'Population at Risk'!N$5","v":3.5815704075807049E-3},{"$f":"'Population at Risk'!O215/'Population at Risk'!O$5","v":2.2183740601245841E-3},{"$f":"'Population at Risk'!P215/'Population at Risk'!P$5","v":1.4222503885848194E-2},{"$f":"'Population at Risk'!Q215/'Population at Risk'!Q$5","v":3.4945022692466632E-3},{"$f":"'Population at Risk'!R215/'Population at Risk'!R$5","v":1.6643094849524056E-2},{"$f":"'Population at Risk'!S215/'Population at Risk'!S$5","v":6.0828958986645807E-3},{"$f":"'Population at Risk'!T215/'Population at Risk'!T$5","v":8.9879741332247014E-3},{"$f":"'Population at Risk'!U215/'Population at Risk'!U$5","v":0},{"$f":"'Population at Risk'!V215/'Population at Risk'!V$5","v":4.0092510902769831E-3},{"$f":"'Population at Risk'!W215/'Population at Risk'!W$5","v":5.8061836816625922E-3},{"$f":"'Population at Risk'!X215/'Population at Risk'!X$5","v":5.8061836816625922E-3},{"$f":"'Population at Risk'!Y215/'Population at Risk'!Y$5","v":5.9822583720456806E-3},{"$f":"'Population at Risk'!Z215/'Population at Risk'!Z$5","v":1.8840636100017588E-3},{"$f":"'Population at Risk'!AA215/'Population at Risk'!AA$5","v":3.2748103846144479E-3},{"$f":"'Population at Risk'!AB215/'Population at Risk'!AB$5","v":7.8854983553148413E-3},{"$f":"'Population at Risk'!AC215/'Population at Risk'!AC$5","v":3.777255278666642E-3},{"$f":"'Population at Risk'!AD215/'Population at Risk'!AD$5","v":1.7427516899788061E-3},{"$f":"'Population at Risk'!AE215/'Population at Risk'!AE$5","v":1.8471994798120199E-3},{"$f":"'Population at Risk'!AF215/'Population at Risk'!AF$5","v":2.0478001562748353E-3},{"$f":"'Population at Risk'!AG215/'Population at Risk'!AG$5","v":1.8471994798120199E-3},{"$f":"'Population at Risk'!AH215/'Population at Risk'!AH$5","v":2.3605923168562712E-3},{"$f":"'Population at Risk'!AI215/'Population at Risk'!AI$5","v":6.742996025660291E-3},{"$f":"'Population at Risk'!AJ215/'Population at Risk'!AJ$5","v":3.0270654834427769E-3},{"$f":"'Population at Risk'!AK215/'Population at Risk'!AK$5","v":4.6096248706628228E-3},{"$f":"'Population at Risk'!AL215/'Population at Risk'!AL$5","v":1.5685510145116829E-3},{"$f":"'Population at Risk'!AM215/'Population at Risk'!AM$5","v":1.965083977535692E-3},{"$f":"'Population at Risk'!AN215/'Population at Risk'!AN$5","v":1.2409472231510361E-3},{"$f":"'Population at Risk'!AO215/'Population at Risk'!AO$5","v":1.2409472231510361E-3},{"$f":"'Population at Risk'!AP215/'Population at Risk'!AP$5","v":3.5272817246558715E-3},{"$f":"'Population at Risk'!AQ215/'Population at Risk'!AQ$5","v":3.7673135791701198E-3},{"$f":"'Population at Risk'!AR215/'Population at Risk'!AR$5","v":4.3368976464250525E-3},{"$f":"'Population at Risk'!AS215/'Population at Risk'!AS$5","v":1.8411281567283699E-3},{"$f":"'Population at Risk'!AT215/'Population at Risk'!AT$5","v":0},{"$f":"'Population at Risk'!AU215/'Population at Risk'!AU$5","v":0},{"$f":"'Population at Risk'!AV215/'Population at Risk'!AV$5","v":3.9670054671498232E-3},{"$f":"'Population at Risk'!AW215/'Population at Risk'!AW$5","v":2.8118495669004701E-3},{"$f":"'Population at Risk'!AX215/'Population at Risk'!AX$5","v":1.1468592940621053E-2},{"$f":"'Population at Risk'!AY215/'Population at Risk'!AY$5","v":4.6802541634913984E-3},{"$f":"'Population at Risk'!AZ215/'Population at Risk'!AZ$5","v":3.6581939208975268E-3},{"$f":"'Population at Risk'!BA215/'Population at Risk'!BA$5","v":9.1689595266013517E-4},{"$f":"'Population at Risk'!BB215/'Population at Risk'!BB$5","v":4.2699521294105097E-3},{"$f":"'Population at Risk'!BC215/'Population at Risk'!BC$5","v":0},213]
[null,"Female 20-24",{"$f":"'Population at Risk'!C216/'Population at Risk'!C$5","v":1.5630566819939264E-2},{"$f":"'Population at Risk'!D216/'Population at Risk'!D$5","v":1.2309899882925992E-2},{"$f":"'Population at Risk'!E216/'Population at Risk'!E$5","v":8.9765295977614363E-3},{"$f":"'Population at Risk'!F216/'Population at Risk'!F$5","v":3.6344197758677839E-3},{"$f":"'Population at Risk'!G216/'Population at Risk'!G$5","v":2.0175833587211082E-3},{"$f":"'Population at Risk'!H216/'Population at Risk'!H$5","v":2.4093811482293671E-3},{"$f":"'Population at Risk'!I216/'Population at Risk'!I$5","v":1.7797572181707576E-3},{"$f":"'Population at Risk'!J216/'Population at Risk'!J$5","v":8.5315312505914835E-3},{"$f":"'Population at Risk'!K216/'Population at Risk'!K$5","v":2.5418032986221336E-3},{"$f":"'Population at Risk'!L216/'Population at Risk'!L$5","v":1.9026841849402632E-3},{"$f":"'Population at Risk'!M216/'Population at Risk'!M$5","v":1.9026841849402632E-3},{"$f":"'Population at Risk'!N216/'Population at Risk'!N$5","v":4.3976244244978277E-3},{"$f":"'Population at Risk'!O216/'Population at Risk'!O$5","v":2.2183740601245841E-3},{"$f":"'Population at Risk'!P216/'Population at Risk'!P$5","v":1.4965390159976525E-2},{"$f":"'Population at Risk'!Q216/'Population at Risk'!Q$5","v":3.5042907910092587E-3},{"$f":"'Population at Risk'!R216/'Population at Risk'!R$5","v":1.7469528130822042E-2},{"$f":"'Population at Risk'!S216/'Population at Risk'!S$5","v":1.1439592415331976E-2},{"$f":"'Population at Risk'!T216/'Population at Risk'!T$5","v":2.0051746937547965E-2},{"$f":"'Population at Risk'!U216/'Population at Risk'!U$5","v":0},{"$f":"'Population at Risk'!V216/'Population at Risk'!V$5","v":4.7435895469894584E-3},{"$f":"'Population at Risk'!W216/'Population at Risk'!W$5","v":1.0528445344424726E-2},{"$f":"'Population at Risk'!X216/'Population at Risk'!X$5","v":1.0528445344424726E-2},{"$f":"'Population at Risk'!Y216/'Population at Risk'!Y$5","v":6.532351095911949E-3},{"$f":"'Population at Risk'!Z216/'Population at Risk'!Z$5","v":4.8859206637897959E-3},{"$f":"'Population at Risk'!AA216/'Population at Risk'!AA$5","v":4.6665694023732031E-3},{"$f":"'Population at Risk'!AB216/'Population at Risk'!AB$5","v":1.1078678908991653E-2},{"$f":"'Population at Risk'!AC216/'Population at Risk'!AC$5","v":5.7583945913303276E-3},{"$f":"'Population at Risk'!AD216/'Population at Risk'!AD$5","v":2.0488698129142138E-3},{"$f":"'Population at Risk'!AE216/'Population at Risk'!AE$5","v":2.060821188361709E-3},{"$f":"'Population at Risk'!AF216/'Population at Risk'!AF$5","v":2.5728771194222285E-3},{"$f":"'Population at Risk'!AG216/'Population at Risk'!AG$5","v":2.060821188361709E-3},{"$f":"'Population at Risk'!AH216/'Population at Risk'!AH$5","v":2.6799509166564425E-3},{"$f":"'Population at Risk'!AI216/'Population at Risk'!AI$5","v":1.3066571245896736E-2},{"$f":"'Population at Risk'!AJ216/'Population at Risk'!AJ$5","v":3.7330242180972761E-3},{"$f":"'Population at Risk'!AK216/'Population at Risk'!AK$5","v":4.8201606219671345E-3},{"$f":"'Population at Risk'!AL216/'Population at Risk'!AL$5","v":1.5256609477086291E-3},{"$f":"'Population at Risk'!AM216/'Population at Risk'!AM$5","v":2.1448629437143072E-3},{"$f":"'Population at Risk'!AN216/'Population at Risk'!AN$5","v":2.1000645314863692E-3},{"$f":"'Population at Risk'!AO216/'Population at Risk'!AO$5","v":2.1000645314863692E-3},{"$f":"'Population at Risk'!AP216/'Population at Risk'!AP$5","v":4.0241805390419175E-3},{"$f":"'Population at Risk'!AQ216/'Population at Risk'!AQ$5","v":4.4472431689936039E-3},{"$f":"'Population at Risk'!AR216/'Population at Risk'!AR$5","v":6.5243980621163336E-3},{"$f":"'Population at Risk'!AS216/'Population at Risk'!AS$5","v":1.7797572181707576E-3},{"$f":"'Population at Risk'!AT216/'Population at Risk'!AT$5","v":0},{"$f":"'Population at Risk'!AU216/'Population at Risk'!AU$5","v":0},{"$f":"'Population at Risk'!AV216/'Population at Risk'!AV$5","v":3.8044232758731905E-3},{"$f":"'Population at Risk'!AW216/'Population at Risk'!AW$5","v":3.290462259138848E-3},{"$f":"'Population at Risk'!AX216/'Population at Risk'!AX$5","v":1.2205401984292237E-2},{"$f":"'Population at Risk'!AY216/'Population at Risk'!AY$5","v":7.1436091033819388E-3},{"$f":"'Population at Risk'!AZ216/'Population at Risk'!AZ$5","v":4.0710308524094727E-3},{"$f":"'Population at Risk'!BA216/'Population at Risk'!BA$5","v":1.0607227687636856E-3},{"$f":"'Population at Risk'!BB216/'Population at Risk'!BB$5","v":3.9866874918329078E-3},{"$f":"'Population at Risk'!BC216/'Population at Risk'!BC$5","v":0},214]
[null,"Female 25-29",{"$f":"'Population at Risk'!C217/'Population at Risk'!C$5","v":1.7497357790360744E-2},{"$f":"'Population at Risk'!D217/'Population at Risk'!D$5","v":1.3306114553812688E-2},{"$f":"'Population at Risk'!E217/'Population at Risk'!E$5","v":9.0988375436190129E-3},{"$f":"'Population at Risk'!F217/'Population at Risk'!F$5","v":3.4458413912708706E-3},{"$f":"'Population at Risk'!G217/'Population at Risk'!G$5","v":1.600908534637401E-3},{"$f":"'Population at Risk'!H217/'Population at Risk'!H$5","v":2.0229490027162513E-3},{"$f":"'Population at Risk'!I217/'Population at Risk'!I$5","v":1.3852297560146784E-3},{"$f":"'Population at Risk'!J217/'Population at Risk'!J$5","v":5.2751205637869758E-3},{"$f":"'Population at Risk'!K217/'Population at Risk'!K$5","v":1.8454188332462066E-3},{"$f":"'Population at Risk'!L217/'Population at Risk'!L$5","v":2.1868513034703023E-3},{"$f":"'Population at Risk'!M217/'Population at Risk'!M$5","v":2.1868513034703023E-3},{"$f":"'Population at Risk'!N217/'Population at Risk'!N$5","v":3.6212397000697318E-3},{"$f":"'Population at Risk'!O217/'Population at Risk'!O$5","v":2.3788224984354817E-3},{"$f":"'Population at Risk'!P217/'Population at Risk'!P$5","v":1.1380156402226754E-2},{"$f":"'Population at Risk'!Q217/'Population at Risk'!Q$5","v":3.5630219215848327E-3},{"$f":"'Population at Risk'!R217/'Population at Risk'!R$5","v":1.4316367303715879E-2},{"$f":"'Population at Risk'!S217/'Population at Risk'!S$5","v":8.783250198876982E-3},{"$f":"'Population at Risk'!T217/'Population at Risk'!T$5","v":1.7217033150794009E-2},{"$f":"'Population at Risk'!U217/'Population at Risk'!U$5","v":0},{"$f":"'Population at Risk'!V217/'Population at Risk'!V$5","v":4.5600049328113398E-3},{"$f":"'Population at Risk'!W217/'Population at Risk'!W$5","v":4.8814390221810829E-3},{"$f":"'Population at Risk'!X217/'Population at Risk'!X$5","v":4.8814390221810829E-3},{"$f":"'Population at Risk'!Y217/'Population at Risk'!Y$5","v":4.8977005585138875E-3},{"$f":"'Population at Risk'!Z217/'Population at Risk'!Z$5","v":4.3333463030040447E-3},{"$f":"'Population at Risk'!AA217/'Population at Risk'!AA$5","v":3.8987186319786645E-3},{"$f":"'Population at Risk'!AB217/'Population at Risk'!AB$5","v":1.1967596256506931E-2},{"$f":"'Population at Risk'!AC217/'Population at Risk'!AC$5","v":4.8128009659061319E-3},{"$f":"'Population at Risk'!AD217/'Population at Risk'!AD$5","v":2.273154378233225E-3},{"$f":"'Population at Risk'!AE217/'Population at Risk'!AE$5","v":2.5299512149806348E-3},{"$f":"'Population at Risk'!AF217/'Population at Risk'!AF$5","v":1.7957632139640862E-3},{"$f":"'Population at Risk'!AG217/'Population at Risk'!AG$5","v":2.5299512149806348E-3},{"$f":"'Population at Risk'!AH217/'Population at Risk'!AH$5","v":2.2355101986012036E-3},{"$f":"'Population at Risk'!AI217/'Population at Risk'!AI$5","v":1.1440064037595243E-2},{"$f":"'Population at Risk'!AJ217/'Population at Risk'!AJ$5","v":3.7330242180972761E-3},{"$f":"'Population at Risk'!AK217/'Population at Risk'!AK$5","v":5.1636663214636438E-3},{"$f":"'Population at Risk'!AL217/'Population at Risk'!AL$5","v":1.1151417368793996E-3},{"$f":"'Population at Risk'!AM217/'Population at Risk'!AM$5","v":1.8352436130733595E-3},{"$f":"'Population at Risk'!AN217/'Population at Risk'!AN$5","v":2.5773519250059979E-3},{"$f":"'Population at Risk'!AO217/'Population at Risk'!AO$5","v":2.5773519250059979E-3},{"$f":"'Population at Risk'!AP217/'Population at Risk'!AP$5","v":3.7232418204700868E-3},{"$f":"'Population at Risk'!AQ217/'Population at Risk'!AQ$5","v":3.686729331487336E-3},{"$f":"'Population at Risk'!AR217/'Population at Risk'!AR$5","v":5.5560279290970942E-3},{"$f":"'Population at Risk'!AS217/'Population at Risk'!AS$5","v":1.3852297560146784E-3},{"$f":"'Population at Risk'!AT217/'Population at Risk'!AT$5","v":0},{"$f":"'Population at Risk'!AU217/'Population at Risk'!AU$5","v":0},{"$f":"'Population at Risk'!AV217/'Population at Risk'!AV$5","v":2.8126719090857352E-3},{"$f":"'Population at Risk'!AW217/'Population at Risk'!AW$5","v":2.6921963938408757E-3},{"$f":"'Population at Risk'!AX217/'Population at Risk'!AX$5","v":7.378768828649112E-3},{"$f":"'Population at Risk'!AY217/'Population at Risk'!AY$5","v":4.2137916370504373E-3},{"$f":"'Population at Risk'!AZ217/'Population at Risk'!AZ$5","v":3.6077360737127332E-3},{"$f":"'Population at Risk'!BA217/'Population at Risk'!BA$5","v":6.1126396844009008E-4},{"$f":"'Population at Risk'!BB217/'Population at Risk'!BB$5","v":3.9080028702835751E-3},{"$f":"'Population at Risk'!BC217/'Population at Risk'!BC$5","v":0},215]
[null,"Female 30-34",{"$f":"'Population at Risk'!C218/'Population at Risk'!C$5","v":1.4969139716200187E-2},{"$f":"'Population at Risk'!D218/'Population at Risk'!D$5","v":1.3955724995660031E-2},{"$f":"'Population at Risk'!E218/'Population at Risk'!E$5","v":1.2938433415362225E-2},{"$f":"'Population at Risk'!F218/'Population at Risk'!F$5","v":4.2172984191673341E-3},{"$f":"'Population at Risk'!G218/'Population at Risk'!G$5","v":1.228094218351979E-3},{"$f":"'Population at Risk'!H218/'Population at Risk'!H$5","v":2.3767904853547669E-3},{"$f":"'Population at Risk'!I218/'Population at Risk'!I$5","v":2.4460702653676912E-3},{"$f":"'Population at Risk'!J218/'Population at Risk'!J$5","v":4.4941114966265449E-3},{"$f":"'Population at Risk'!K218/'Population at Risk'!K$5","v":2.4547552404501427E-3},{"$f":"'Population at Risk'!L218/'Population at Risk'!L$5","v":2.1868513034703023E-3},{"$f":"'Population at Risk'!M218/'Population at Risk'!M$5","v":2.1868513034703023E-3},{"$f":"'Population at Risk'!N218/'Population at Risk'!N$5","v":3.507898864386798E-3},{"$f":"'Population at Risk'!O218/'Population at Risk'!O$5","v":2.7485515084562455E-3},{"$f":"'Population at Risk'!P218/'Population at Risk'!P$5","v":1.2144575611837065E-2},{"$f":"'Population at Risk'!Q218/'Population at Risk'!Q$5","v":4.1307561838153832E-3},{"$f":"'Population at Risk'!R218/'Population at Risk'!R$5","v":1.4163795005630099E-2},{"$f":"'Population at Risk'!S218/'Population at Risk'!S$5","v":7.9853537126943468E-3},{"$f":"'Population at Risk'!T218/'Population at Risk'!T$5","v":1.4058463556331063E-2},{"$f":"'Population at Risk'!U218/'Population at Risk'!U$5","v":0},{"$f":"'Population at Risk'!V218/'Population at Risk'!V$5","v":6.1293572798178401E-3},{"$f":"'Population at Risk'!W218/'Population at Risk'!W$5","v":5.149261245965344E-3},{"$f":"'Population at Risk'!X218/'Population at Risk'!X$5","v":5.149261245965344E-3},{"$f":"'Population at Risk'!Y218/'Population at Risk'!Y$5","v":5.3571530040158293E-3},{"$f":"'Population at Risk'!Z218/'Population at Risk'!Z$5","v":3.2408423036473203E-3},{"$f":"'Population at Risk'!AA218/'Population at Risk'!AA$5","v":3.6792652771947304E-3},{"$f":"'Population at Risk'!AB218/'Population at Risk'!AB$5","v":1.2590567020544277E-2},{"$f":"'Population at Risk'!AC218/'Population at Risk'!AC$5","v":4.2533430204695433E-3},{"$f":"'Population at Risk'!AD218/'Population at Risk'!AD$5","v":2.3337718283194448E-3},{"$f":"'Population at Risk'!AE218/'Population at Risk'!AE$5","v":2.7561389063861883E-3},{"$f":"'Population at Risk'!AF218/'Population at Risk'!AF$5","v":1.879775528067669E-3},{"$f":"'Population at Risk'!AG218/'Population at Risk'!AG$5","v":2.7561389063861883E-3},{"$f":"'Population at Risk'!AH218/'Population at Risk'!AH$5","v":2.6347084483514184E-3},{"$f":"'Population at Risk'!AI218/'Population at Risk'!AI$5","v":9.9370467746572703E-3},{"$f":"'Population at Risk'!AJ218/'Population at Risk'!AJ$5","v":4.5566427418608588E-3},{"$f":"'Population at Risk'!AK218/'Population at Risk'!AK$5","v":5.6512227981683648E-3},{"$f":"'Population at Risk'!AL218/'Population at Risk'!AL$5","v":1.6114410813147365E-3},{"$f":"'Population at Risk'!AM218/'Population at Risk'!AM$5","v":2.1573475941433777E-3},{"$f":"'Population at Risk'!AN218/'Population at Risk'!AN$5","v":1.8614208347265543E-3},{"$f":"'Population at Risk'!AO218/'Population at Risk'!AO$5","v":1.8614208347265543E-3},{"$f":"'Population at Risk'!AP218/'Population at Risk'!AP$5","v":4.6680494252886243E-3},{"$f":"'Population at Risk'!AQ218/'Population at Risk'!AQ$5","v":3.7773866101304672E-3},{"$f":"'Population at Risk'!AR218/'Population at Risk'!AR$5","v":5.4293605845086145E-3},{"$f":"'Population at Risk'!AS218/'Population at Risk'!AS$5","v":2.4460702653676912E-3},{"$f":"'Population at Risk'!AT218/'Population at Risk'!AT$5","v":0},{"$f":"'Population at Risk'!AU218/'Population at Risk'!AU$5","v":0},{"$f":"'Population at Risk'!AV218/'Population at Risk'!AV$5","v":2.958995881234704E-3},{"$f":"'Population at Risk'!AW218/'Population at Risk'!AW$5","v":3.1793557412977957E-3},{"$f":"'Population at Risk'!AX218/'Population at Risk'!AX$5","v":5.7449748622477896E-3},{"$f":"'Population at Risk'!AY218/'Population at Risk'!AY$5","v":4.5876829920069809E-3},{"$f":"'Population at Risk'!AZ218/'Population at Risk'!AZ$5","v":4.0779114679346728E-3},{"$f":"'Population at Risk'!BA218/'Population at Risk'!BA$5","v":7.3711243253069686E-4},{"$f":"'Population at Risk'!BB218/'Population at Risk'!BB$5","v":4.6056731813543337E-3},{"$f":"'Population at Risk'!BC218/'Population at Risk'!BC$5","v":0},216]
[null,"Female 35-39",{"$f":"'Population at Risk'!C219/'Population at Risk'!C$5","v":1.3359086897887961E-2},{"$f":"'Population at Risk'!D219/'Population at Risk'!D$5","v":1.3715935906387523E-2},{"$f":"'Population at Risk'!E219/'Population at Risk'!E$5","v":1.4074150055468294E-2},{"$f":"'Population at Risk'!F219/'Population at Risk'!F$5","v":4.9287532337829619E-3},{"$f":"'Population at Risk'!G219/'Population at Risk'!G$5","v":1.8421413275279683E-3},{"$f":"'Population at Risk'!H219/'Population at Risk'!H$5","v":2.8703062374558549E-3},{"$f":"'Population at Risk'!I219/'Population at Risk'!I$5","v":2.7266231273453479E-3},{"$f":"'Population at Risk'!J219/'Population at Risk'!J$5","v":5.4803009119392919E-3},{"$f":"'Population at Risk'!K219/'Population at Risk'!K$5","v":3.3774646570732462E-3},{"$f":"'Population at Risk'!L219/'Population at Risk'!L$5","v":2.1497860271402973E-3},{"$f":"'Population at Risk'!M219/'Population at Risk'!M$5","v":2.1497860271402973E-3},{"$f":"'Population at Risk'!N219/'Population at Risk'!N$5","v":3.2415479005319043E-3},{"$f":"'Population at Risk'!O219/'Population at Risk'!O$5","v":2.8183116990262011E-3},{"$f":"'Population at Risk'!P219/'Population at Risk'!P$5","v":1.7420144804922315E-2},{"$f":"'Population at Risk'!Q219/'Population at Risk'!Q$5","v":5.3836869694276323E-3},{"$f":"'Population at Risk'!R219/'Population at Risk'!R$5","v":2.1855981700788275E-2},{"$f":"'Population at Risk'!S219/'Population at Risk'!S$5","v":8.2685927678428084E-3},{"$f":"'Population at Risk'!T219/'Population at Risk'!T$5","v":1.359609110797546E-2},{"$f":"'Population at Risk'!U219/'Population at Risk'!U$5","v":0},{"$f":"'Population at Risk'!V219/'Population at Risk'!V$5","v":6.3899289902642009E-3},{"$f":"'Population at Risk'!W219/'Population at Risk'!W$5","v":5.7935505578991832E-3},{"$f":"'Population at Risk'!X219/'Population at Risk'!X$5","v":5.7935505578991832E-3},{"$f":"'Population at Risk'!Y219/'Population at Risk'!Y$5","v":5.9603796841646347E-3},{"$f":"'Population at Risk'!Z219/'Population at Risk'!Z$5","v":2.5554983596064122E-3},{"$f":"'Population at Risk'!AA219/'Population at Risk'!AA$5","v":4.2861835874143843E-3},{"$f":"'Population at Risk'!AB219/'Population at Risk'!AB$5","v":1.2202576456977159E-2},{"$f":"'Population at Risk'!AC219/'Population at Risk'!AC$5","v":4.8625305610560509E-3},{"$f":"'Population at Risk'!AD219/'Population at Risk'!AD$5","v":2.6247355887332974E-3},{"$f":"'Population at Risk'!AE219/'Population at Risk'!AE$5","v":2.9236853444643759E-3},{"$f":"'Population at Risk'!AF219/'Population at Risk'!AF$5","v":2.4363571090039063E-3},{"$f":"'Population at Risk'!AG219/'Population at Risk'!AG$5","v":2.9236853444643759E-3},{"$f":"'Population at Risk'!AH219/'Population at Risk'!AH$5","v":3.2374978054742431E-3},{"$f":"'Population at Risk'!AI219/'Population at Risk'!AI$5","v":1.0061649242051092E-2},{"$f":"'Population at Risk'!AJ219/'Population at Risk'!AJ$5","v":5.102156309548426E-3},{"$f":"'Population at Risk'!AK219/'Population at Risk'!AK$5","v":4.5098974095186756E-3},{"$f":"'Population at Risk'!AL219/'Population at Risk'!AL$5","v":1.9361801585378584E-3},{"$f":"'Population at Risk'!AM219/'Population at Risk'!AM$5","v":2.586819568903402E-3},{"$f":"'Population at Risk'!AN219/'Population at Risk'!AN$5","v":2.8159956217658128E-3},{"$f":"'Population at Risk'!AO219/'Population at Risk'!AO$5","v":2.8159956217658128E-3},{"$f":"'Population at Risk'!AP219/'Population at Risk'!AP$5","v":4.8080209222987769E-3},{"$f":"'Population at Risk'!AQ219/'Population at Risk'!AQ$5","v":4.7041054584824752E-3},{"$f":"'Population at Risk'!AR219/'Population at Risk'!AR$5","v":5.7800128676986726E-3},{"$f":"'Population at Risk'!AS219/'Population at Risk'!AS$5","v":2.7266231273453479E-3},{"$f":"'Population at Risk'!AT219/'Population at Risk'!AT$5","v":0},{"$f":"'Population at Risk'!AU219/'Population at Risk'!AU$5","v":0},{"$f":"'Population at Risk'!AV219/'Population at Risk'!AV$5","v":4.1702332062456132E-3},{"$f":"'Population at Risk'!AW219/'Population at Risk'!AW$5","v":3.97989244676794E-3},{"$f":"'Population at Risk'!AX219/'Population at Risk'!AX$5","v":6.7701004882250899E-3},{"$f":"'Population at Risk'!AY219/'Population at Risk'!AY$5","v":4.9615743469635246E-3},{"$f":"'Population at Risk'!AZ219/'Population at Risk'!AZ$5","v":4.2063496244050562E-3},{"$f":"'Population at Risk'!BA219/'Population at Risk'!BA$5","v":1.1236470008089891E-3},{"$f":"'Population at Risk'!BB219/'Population at Risk'!BB$5","v":5.4974322255801154E-3},{"$f":"'Population at Risk'!BC219/'Population at Risk'!BC$5","v":0},217]
[null,"Female 40-44",{"$f":"'Population at Risk'!C220/'Population at Risk'!C$5","v":1.2310376818933237E-2},{"$f":"'Population at Risk'!D220/'Population at Risk'!D$5","v":1.3639639377982632E-2},{"$f":"'Population at Risk'!E220/'Population at Risk'!E$5","v":1.4973987085706183E-2},{"$f":"'Population at Risk'!F220/'Population at Risk'!F$5","v":6.0773670308732521E-3},{"$f":"'Population at Risk'!G220/'Population at Risk'!G$5","v":2.1272346282168206E-3},{"$f":"'Population at Risk'!H220/'Population at Risk'!H$5","v":3.6594658599193872E-3},{"$f":"'Population at Risk'!I220/'Population at Risk'!I$5","v":4.2170602066016472E-3},{"$f":"'Population at Risk'!J220/'Population at Risk'!J$5","v":6.9695131162706217E-3},{"$f":"'Population at Risk'!K220/'Population at Risk'!K$5","v":4.3524029085995437E-3},{"$f":"'Population at Risk'!L220/'Population at Risk'!L$5","v":2.3227573166803212E-3},{"$f":"'Population at Risk'!M220/'Population at Risk'!M$5","v":2.3227573166803212E-3},{"$f":"'Population at Risk'!N220/'Population at Risk'!N$5","v":3.8082520789465726E-3},{"$f":"'Population at Risk'!O220/'Population at Risk'!O$5","v":3.6833380620936492E-3},{"$f":"'Population at Risk'!P220/'Population at Risk'!P$5","v":2.0230192885320786E-2},{"$f":"'Population at Risk'!Q220/'Population at Risk'!Q$5","v":6.2548654062986484E-3},{"$f":"'Population at Risk'!R220/'Population at Risk'!R$5","v":2.4678569215375243E-2},{"$f":"'Population at Risk'!S220/'Population at Risk'!S$5","v":8.6625719047034502E-3},{"$f":"'Population at Risk'!T220/'Population at Risk'!T$5","v":1.2958134185560769E-2},{"$f":"'Population at Risk'!U220/'Population at Risk'!U$5","v":0},{"$f":"'Population at Risk'!V220/'Population at Risk'!V$5","v":7.7816188074209093E-3},{"$f":"'Population at Risk'!W220/'Population at Risk'!W$5","v":6.6551295985636492E-3},{"$f":"'Population at Risk'!X220/'Population at Risk'!X$5","v":6.6551295985636492E-3},{"$f":"'Population at Risk'!Y220/'Population at Risk'!Y$5","v":7.3981220306332945E-3},{"$f":"'Population at Risk'!Z220/'Population at Risk'!Z$5","v":2.379736720821013E-3},{"$f":"'Population at Risk'!AA220/'Population at Risk'!AA$5","v":4.676952141739325E-3},{"$f":"'Population at Risk'!AB220/'Population at Risk'!AB$5","v":1.2375623891431977E-2},{"$f":"'Population at Risk'!AC220/'Population at Risk'!AC$5","v":5.2603673222554031E-3},{"$f":"'Population at Risk'!AD220/'Population at Risk'!AD$5","v":3.0308725043109671E-3},{"$f":"'Population at Risk'!AE220/'Population at Risk'!AE$5","v":3.3760607272754826E-3},{"$f":"'Population at Risk'!AF220/'Population at Risk'!AF$5","v":3.1819663966732052E-3},{"$f":"'Population at Risk'!AG220/'Population at Risk'!AG$5","v":3.3760607272754826E-3},{"$f":"'Population at Risk'!AH220/'Population at Risk'!AH$5","v":3.6154054819044464E-3},{"$f":"'Population at Risk'!AI220/'Population at Risk'!AI$5","v":1.0110600211384378E-2},{"$f":"'Population at Risk'!AJ220/'Population at Risk'!AJ$5","v":5.2839941654442817E-3},{"$f":"'Population at Risk'!AK220/'Population at Risk'!AK$5","v":5.9504051816008079E-3},{"$f":"'Population at Risk'!AL220/'Population at Risk'!AL$5","v":2.4814967221766858E-3},{"$f":"'Population at Risk'!AM220/'Population at Risk'!AM$5","v":2.7840770456827157E-3},{"$f":"'Population at Risk'!AN220/'Population at Risk'!AN$5","v":2.052335792134406E-3},{"$f":"'Population at Risk'!AO220/'Population at Risk'!AO$5","v":2.052335792134406E-3},{"$f":"'Population at Risk'!AP220/'Population at Risk'!AP$5","v":6.032771521137621E-3},{"$f":"'Population at Risk'!AQ220/'Population at Risk'!AQ$5","v":5.3638889863852641E-3},{"$f":"'Population at Risk'!AR220/'Population at Risk'!AR$5","v":6.2660859298593408E-3},{"$f":"'Population at Risk'!AS220/'Population at Risk'!AS$5","v":4.2170602066016472E-3},{"$f":"'Population at Risk'!AT220/'Population at Risk'!AT$5","v":0},{"$f":"'Population at Risk'!AU220/'Population at Risk'!AU$5","v":0},{"$f":"'Population at Risk'!AV220/'Population at Risk'!AV$5","v":5.1945010112883954E-3},{"$f":"'Population at Risk'!AW220/'Population at Risk'!AW$5","v":4.5639138867016749E-3},{"$f":"'Population at Risk'!AX220/'Population at Risk'!AX$5","v":8.5747487256226298E-3},{"$f":"'Population at Risk'!AY220/'Population at Risk'!AY$5","v":5.863241601681877E-3},{"$f":"'Population at Risk'!AZ220/'Population at Risk'!AZ$5","v":5.1444068743405347E-3},{"$f":"'Population at Risk'!BA220/'Population at Risk'!BA$5","v":1.1056686487960453E-3},{"$f":"'Population at Risk'!BB220/'Population at Risk'!BB$5","v":6.8875272062850108E-3},{"$f":"'Population at Risk'!BC220/'Population at Risk'!BC$5","v":0},218]
[null,"Female 45-49",{"$f":"'Population at Risk'!C221/'Population at Risk'!C$5","v":1.3106700239882257E-2},{"$f":"'Population at Risk'!D221/'Population at Risk'!D$5","v":1.458789623101483E-2},{"$f":"'Population at Risk'!E221/'Population at Risk'!E$5","v":1.6074758598424374E-2},{"$f":"'Population at Risk'!F221/'Population at Risk'!F$5","v":6.9859719748401978E-3},{"$f":"'Population at Risk'!G221/'Population at Risk'!G$5","v":2.8947935146868072E-3},{"$f":"'Population at Risk'!H221/'Population at Risk'!H$5","v":4.6464973641215622E-3},{"$f":"'Population at Risk'!I221/'Population at Risk'!I$5","v":4.3222675298432685E-3},{"$f":"'Population at Risk'!J221/'Population at Risk'!J$5","v":9.0610289232426217E-3},{"$f":"'Population at Risk'!K221/'Population at Risk'!K$5","v":5.135835432147462E-3},{"$f":"'Population at Risk'!L221/'Population at Risk'!L$5","v":3.1011281196104295E-3},{"$f":"'Population at Risk'!M221/'Population at Risk'!M$5","v":3.1011281196104295E-3},{"$f":"'Population at Risk'!N221/'Population at Risk'!N$5","v":4.8396536836612693E-3},{"$f":"'Population at Risk'!O221/'Population at Risk'!O$5","v":4.2204915294823059E-3},{"$f":"'Population at Risk'!P221/'Population at Risk'!P$5","v":2.4364516497861064E-2},{"$f":"'Population at Risk'!Q221/'Population at Risk'!Q$5","v":7.6448354965872383E-3},{"$f":"'Population at Risk'!R221/'Population at Risk'!R$5","v":2.8937879203603325E-2},{"$f":"'Population at Risk'!S221/'Population at Risk'!S$5","v":9.5030607300061534E-3},{"$f":"'Population at Risk'!T221/'Population at Risk'!T$5","v":1.381654716984965E-2},{"$f":"'Population at Risk'!U221/'Population at Risk'!U$5","v":0},{"$f":"'Population at Risk'!V221/'Population at Risk'!V$5","v":8.3797493245818776E-3},{"$f":"'Population at Risk'!W221/'Population at Risk'!W$5","v":7.3044721600028515E-3},{"$f":"'Population at Risk'!X221/'Population at Risk'!X$5","v":7.3044721600028515E-3},{"$f":"'Population at Risk'!Y221/'Population at Risk'!Y$5","v":8.7014667229755351E-3},{"$f":"'Population at Risk'!Z221/'Population at Risk'!Z$5","v":2.6870034706400919E-3},{"$f":"'Population at Risk'!AA221/'Population at Risk'!AA$5","v":5.6128145127856497E-3},{"$f":"'Population at Risk'!AB221/'Population at Risk'!AB$5","v":1.3311901589429628E-2},{"$f":"'Population at Risk'!AC221/'Population at Risk'!AC$5","v":6.301032232525032E-3},{"$f":"'Population at Risk'!AD221/'Population at Risk'!AD$5","v":3.4733798899403683E-3},{"$f":"'Population at Risk'!AE221/'Population at Risk'!AE$5","v":3.6943989596240397E-3},{"$f":"'Population at Risk'!AF221/'Population at Risk'!AF$5","v":4.1376064696014613E-3},{"$f":"'Population at Risk'!AG221/'Population at Risk'!AG$5","v":3.6943989596240397E-3},{"$f":"'Population at Risk'!AH221/'Population at Risk'!AH$5","v":4.3605755481048473E-3},{"$f":"'Population at Risk'!AI221/'Population at Risk'!AI$5","v":1.1128557869110689E-2},{"$f":"'Population at Risk'!AJ221/'Population at Risk'!AJ$5","v":6.0113455890277055E-3},{"$f":"'Population at Risk'!AK221/'Population at Risk'!AK$5","v":6.8257906738661035E-3},{"$f":"'Population at Risk'!AL221/'Population at Risk'!AL$5","v":3.2902808390342726E-3},{"$f":"'Population at Risk'!AM221/'Population at Risk'!AM$5","v":3.5830946731432258E-3},{"$f":"'Population at Risk'!AN221/'Population at Risk'!AN$5","v":3.5796554513972197E-3},{"$f":"'Population at Risk'!AO221/'Population at Risk'!AO$5","v":3.5796554513972197E-3},{"$f":"'Population at Risk'!AP221/'Population at Risk'!AP$5","v":7.1735392217703734E-3},{"$f":"'Population at Risk'!AQ221/'Population at Risk'!AQ$5","v":6.9352818161995382E-3},{"$f":"'Population at Risk'!AR221/'Population at Risk'!AR$5","v":7.1718089344574489E-3},{"$f":"'Population at Risk'!AS221/'Population at Risk'!AS$5","v":4.3222675298432685E-3},{"$f":"'Population at Risk'!AT221/'Population at Risk'!AT$5","v":0},{"$f":"'Population at Risk'!AU221/'Population at Risk'!AU$5","v":0},{"$f":"'Population at Risk'!AV221/'Population at Risk'!AV$5","v":6.942259567512191E-3},{"$f":"'Population at Risk'!AW221/'Population at Risk'!AW$5","v":5.247646304185072E-3},{"$f":"'Population at Risk'!AX221/'Population at Risk'!AX$5","v":1.1468592940621053E-2},{"$f":"'Population at Risk'!AY221/'Population at Risk'!AY$5","v":6.7144154901360035E-3},{"$f":"'Population at Risk'!AZ221/'Population at Risk'!AZ$5","v":6.1787927416288007E-3},{"$f":"'Population at Risk'!BA221/'Population at Risk'!BA$5","v":1.627040857171416E-3},{"$f":"'Population at Risk'!BB221/'Population at Risk'!BB$5","v":8.2776221869899063E-3},{"$f":"'Population at Risk'!BC221/'Population at Risk'!BC$5","v":0},219]
[null,"Female 50-54",{"$f":"'Population at Risk'!C222/'Population at Risk'!C$5","v":1.3963944578280933E-2},{"$f":"'Population at Risk'!D222/'Population at Risk'!D$5","v":1.4740489287824607E-2},{"$f":"'Population at Risk'!E222/'Population at Risk'!E$5","v":1.5520004701141791E-2},{"$f":"'Population at Risk'!F222/'Population at Risk'!F$5","v":7.1659786146827057E-3},{"$f":"'Population at Risk'!G222/'Population at Risk'!G$5","v":3.0263750380816624E-3},{"$f":"'Population at Risk'!H222/'Population at Risk'!H$5","v":4.7838437290930909E-3},{"$f":"'Population at Risk'!I222/'Population at Risk'!I$5","v":3.8926709599399825E-3},{"$f":"'Population at Risk'!J222/'Population at Risk'!J$5","v":8.8889421796310014E-3},{"$f":"'Population at Risk'!K222/'Population at Risk'!K$5","v":5.4666180532010273E-3},{"$f":"'Population at Risk'!L222/'Population at Risk'!L$5","v":3.7312378172205162E-3},{"$f":"'Population at Risk'!M222/'Population at Risk'!M$5","v":3.7312378172205162E-3},{"$f":"'Population at Risk'!N222/'Population at Risk'!N$5","v":5.1513409817893372E-3},{"$f":"'Population at Risk'!O222/'Population at Risk'!O$5","v":4.0321390149434264E-3},{"$f":"'Population at Risk'!P222/'Population at Risk'!P$5","v":2.6593175320246056E-2},{"$f":"'Population at Risk'!Q222/'Population at Risk'!Q$5","v":7.1847749737452395E-3},{"$f":"'Population at Risk'!R222/'Population at Risk'!R$5","v":2.8976022278124767E-2},{"$f":"'Population at Risk'!S222/'Population at Risk'!S$5","v":9.3724442233712735E-3},{"$f":"'Population at Risk'!T222/'Population at Risk'!T$5","v":1.4068218249334343E-2},{"$f":"'Population at Risk'!U222/'Population at Risk'!U$5","v":0},{"$f":"'Population at Risk'!V222/'Population at Risk'!V$5","v":7.710553795480992E-3},{"$f":"'Population at Risk'!W222/'Population at Risk'!W$5","v":7.0821291817668598E-3},{"$f":"'Population at Risk'!X222/'Population at Risk'!X$5","v":7.0821291817668598E-3},{"$f":"'Population at Risk'!Y222/'Population at Risk'!Y$5","v":8.2670184921947876E-3},{"$f":"'Population at Risk'!Z222/'Population at Risk'!Z$5","v":2.7299955261703337E-3},{"$f":"'Population at Risk'!AA222/'Population at Risk'!AA$5","v":5.8681355126525506E-3},{"$f":"'Population at Risk'!AB222/'Population at Risk'!AB$5","v":1.3370191251561775E-2},{"$f":"'Population at Risk'!AC222/'Population at Risk'!AC$5","v":6.5825894991826612E-3},{"$f":"'Population at Risk'!AD222/'Population at Risk'!AD$5","v":3.6522013676947153E-3},{"$f":"'Population at Risk'!AE222/'Population at Risk'!AE$5","v":3.8912660243659103E-3},{"$f":"'Population at Risk'!AF222/'Population at Risk'!AF$5","v":4.1901141659162009E-3},{"$f":"'Population at Risk'!AG222/'Population at Risk'!AG$5","v":3.8912660243659103E-3},{"$f":"'Population at Risk'!AH222/'Population at Risk'!AH$5","v":4.5681586379749594E-3},{"$f":"'Population at Risk'!AI222/'Population at Risk'!AI$5","v":1.1076269333686495E-2},{"$f":"'Population at Risk'!AJ222/'Population at Risk'!AJ$5","v":5.6690625661649178E-3},{"$f":"'Population at Risk'!AK222/'Population at Risk'!AK$5","v":6.4047191712574801E-3},{"$f":"'Population at Risk'!AL222/'Population at Risk'!AL$5","v":3.1799920958264197E-3},{"$f":"'Population at Risk'!AM222/'Population at Risk'!AM$5","v":3.5256652811695012E-3},{"$f":"'Population at Risk'!AN222/'Population at Risk'!AN$5","v":3.1978255365815167E-3},{"$f":"'Population at Risk'!AO222/'Population at Risk'!AO$5","v":3.1978255365815167E-3},{"$f":"'Population at Risk'!AP222/'Population at Risk'!AP$5","v":7.9083895810736805E-3},{"$f":"'Population at Risk'!AQ222/'Population at Risk'!AQ$5","v":7.499371549979021E-3},{"$f":"'Population at Risk'!AR222/'Population at Risk'!AR$5","v":7.2821708620596061E-3},{"$f":"'Population at Risk'!AS222/'Population at Risk'!AS$5","v":3.8926709599399825E-3},{"$f":"'Population at Risk'!AT222/'Population at Risk'!AT$5","v":0},{"$f":"'Population at Risk'!AU222/'Population at Risk'!AU$5","v":0},{"$f":"'Population at Risk'!AV222/'Population at Risk'!AV$5","v":7.787686962150678E-3},{"$f":"'Population at Risk'!AW222/'Population at Risk'!AW$5","v":5.7575967322247724E-3},{"$f":"'Population at Risk'!AX222/'Population at Risk'!AX$5","v":1.0988065303444192E-2},{"$f":"'Population at Risk'!AY222/'Population at Risk'!AY$5","v":6.8262222297210788E-3},{"$f":"'Population at Risk'!AZ222/'Population at Risk'!AZ$5","v":6.5939232116491468E-3},{"$f":"'Population at Risk'!BA222/'Population at Risk'!BA$5","v":1.8427810813267421E-3},{"$f":"'Population at Risk'!BB222/'Population at Risk'!BB$5","v":7.7687949676375481E-3},{"$f":"'Population at Risk'!BC222/'Population at Risk'!BC$5","v":0},220]
[null,"Female 55-59",{"$f":"'Population at Risk'!C223/'Population at Risk'!C$5","v":1.0811564256334309E-2},{"$f":"'Population at Risk'!D223/'Population at Risk'!D$5","v":1.0888812766185984E-2},{"$f":"'Population at Risk'!E223/'Population at Risk'!E$5","v":1.0966356793394088E-2},{"$f":"'Population at Risk'!F223/'Population at Risk'!F$5","v":5.5863457952570594E-3},{"$f":"'Population at Risk'!G223/'Population at Risk'!G$5","v":2.7372150293533178E-3},{"$f":"'Population at Risk'!H223/'Population at Risk'!H$5","v":4.1652914441828613E-3},{"$f":"'Population at Risk'!I223/'Population at Risk'!I$5","v":2.8789212133771562E-3},{"$f":"'Population at Risk'!J223/'Population at Risk'!J$5","v":6.4924699973899864E-3},{"$f":"'Population at Risk'!K223/'Population at Risk'!K$5","v":3.8792673175171988E-3},{"$f":"'Population at Risk'!L223/'Population at Risk'!L$5","v":2.7685269891041813E-3},{"$f":"'Population at Risk'!M223/'Population at Risk'!M$5","v":2.7685269891041813E-3},{"$f":"'Population at Risk'!N223/'Population at Risk'!N$5","v":4.2772062573282268E-3},{"$f":"'Population at Risk'!O223/'Population at Risk'!O$5","v":3.2724624586365691E-3},{"$f":"'Population at Risk'!P223/'Population at Risk'!P$5","v":2.0085028311996732E-2},{"$f":"'Population at Risk'!Q223/'Population at Risk'!Q$5","v":5.0673928410857778E-3},{"$f":"'Population at Risk'!R223/'Population at Risk'!R$5","v":2.1684589397303503E-2},{"$f":"'Population at Risk'!S223/'Population at Risk'!S$5","v":7.1203031256544085E-3},{"$f":"'Population at Risk'!T223/'Population at Risk'!T$5","v":1.1016583144198951E-2},{"$f":"'Population at Risk'!U223/'Population at Risk'!U$5","v":0},{"$f":"'Population at Risk'!V223/'Population at Risk'!V$5","v":5.3080786929787828E-3},{"$f":"'Population at Risk'!W223/'Population at Risk'!W$5","v":5.4881029676799378E-3},{"$f":"'Population at Risk'!X223/'Population at Risk'!X$5","v":5.4881029676799378E-3},{"$f":"'Population at Risk'!Y223/'Population at Risk'!Y$5","v":5.8673781199457568E-3},{"$f":"'Population at Risk'!Z223/'Population at Risk'!Z$5","v":2.0580744509456255E-3},{"$f":"'Population at Risk'!AA223/'Population at Risk'!AA$5","v":4.3791559836547098E-3},{"$f":"'Population at Risk'!AB223/'Population at Risk'!AB$5","v":9.8617662261992131E-3},{"$f":"'Population at Risk'!AC223/'Population at Risk'!AC$5","v":4.9382596357859581E-3},{"$f":"'Population at Risk'!AD223/'Population at Risk'!AD$5","v":2.810569159886772E-3},{"$f":"'Population at Risk'!AE223/'Population at Risk'!AE$5","v":2.8385903203934516E-3},{"$f":"'Population at Risk'!AF223/'Population at Risk'!AF$5","v":3.0613373638780929E-3},{"$f":"'Population at Risk'!AG223/'Population at Risk'!AG$5","v":2.8385903203934516E-3},{"$f":"'Population at Risk'!AH223/'Population at Risk'!AH$5","v":3.3618450972694837E-3},{"$f":"'Population at Risk'!AI223/'Population at Risk'!AI$5","v":8.377202002260626E-3},{"$f":"'Population at Risk'!AJ223/'Population at Risk'!AJ$5","v":4.4621453302246998E-3},{"$f":"'Population at Risk'!AK223/'Population at Risk'!AK$5","v":4.6411034140700419E-3},{"$f":"'Population at Risk'!AL223/'Population at Risk'!AL$5","v":2.7408099826411307E-3},{"$f":"'Population at Risk'!AM223/'Population at Risk'!AM$5","v":2.5789828051895865E-3},{"$f":"'Population at Risk'!AN223/'Population at Risk'!AN$5","v":2.1190188543258178E-3},{"$f":"'Population at Risk'!AO223/'Population at Risk'!AO$5","v":2.1190188543258178E-3},{"$f":"'Population at Risk'!AP223/'Population at Risk'!AP$5","v":6.1498438347979611E-3},{"$f":"'Population at Risk'!AQ223/'Population at Risk'!AQ$5","v":5.6407982655317266E-3},{"$f":"'Population at Risk'!AR223/'Population at Risk'!AR$5","v":5.5086450193407854E-3},{"$f":"'Population at Risk'!AS223/'Population at Risk'!AS$5","v":2.8789212133771562E-3},{"$f":"'Population at Risk'!AT223/'Population at Risk'!AT$5","v":0},{"$f":"'Population at Risk'!AU223/'Population at Risk'!AU$5","v":0},{"$f":"'Population at Risk'!AV223/'Population at Risk'!AV$5","v":7.0956091273545047E-3},{"$f":"'Population at Risk'!AW223/'Population at Risk'!AW$5","v":4.2550558085635614E-3},{"$f":"'Population at Risk'!AX223/'Population at Risk'!AX$5","v":8.0953088781869787E-3},{"$f":"'Population at Risk'!AY223/'Population at Risk'!AY$5","v":5.3586733102574191E-3},{"$f":"'Population at Risk'!AZ223/'Population at Risk'!AZ$5","v":5.2411838005419547E-3},{"$f":"'Population at Risk'!BA223/'Population at Risk'!BA$5","v":1.2801114820582232E-3},{"$f":"'Population at Risk'!BB223/'Population at Risk'!BB$5","v":4.9742088500572719E-3},{"$f":"'Population at Risk'!BC223/'Population at Risk'!BC$5","v":0},221]
[null,"Female 60-64",{"$f":"'Population at Risk'!C224/'Population at Risk'!C$5","v":8.5223996059708741E-3},{"$f":"'Population at Risk'!D224/'Population at Risk'!D$5","v":9.3311811563324461E-3},{"$f":"'Population at Risk'!E224/'Population at Risk'!E$5","v":1.0143056733829967E-2},{"$f":"'Population at Risk'!F224/'Population at Risk'!F$5","v":5.2129653564995182E-3},{"$f":"'Population at Risk'!G224/'Population at Risk'!G$5","v":2.0115774880146869E-3},{"$f":"'Population at Risk'!H224/'Population at Risk'!H$5","v":3.8864353222174356E-3},{"$f":"'Population at Risk'!I224/'Population at Risk'!I$5","v":2.6659397970813974E-3},{"$f":"'Population at Risk'!J224/'Population at Risk'!J$5","v":6.1320852409165877E-3},{"$f":"'Population at Risk'!K224/'Population at Risk'!K$5","v":4.5063669214767451E-3},{"$f":"'Population at Risk'!L224/'Population at Risk'!L$5","v":2.6650306530629038E-3},{"$f":"'Population at Risk'!M224/'Population at Risk'!M$5","v":2.6650306530629038E-3},{"$f":"'Population at Risk'!N224/'Population at Risk'!N$5","v":3.1901027801604529E-3},{"$f":"'Population at Risk'!O224/'Population at Risk'!O$5","v":2.9335288468492105E-3},{"$f":"'Population at Risk'!P224/'Population at Risk'!P$5","v":1.7992649969660296E-2},{"$f":"'Population at Risk'!Q224/'Population at Risk'!Q$5","v":4.4278189873565047E-3},{"$f":"'Population at Risk'!R224/'Population at Risk'!R$5","v":1.8819582251981968E-2},{"$f":"'Population at Risk'!S224/'Population at Risk'!S$5","v":6.2033574583954228E-3},{"$f":"'Population at Risk'!T224/'Population at Risk'!T$5","v":9.3774149356792135E-3},{"$f":"'Population at Risk'!U224/'Population at Risk'!U$5","v":0},{"$f":"'Population at Risk'!V224/'Population at Risk'!V$5","v":4.4250525178851164E-3},{"$f":"'Population at Risk'!W224/'Population at Risk'!W$5","v":5.0880831215975976E-3},{"$f":"'Population at Risk'!X224/'Population at Risk'!X$5","v":5.0880831215975976E-3},{"$f":"'Population at Risk'!Y224/'Population at Risk'!Y$5","v":5.2311563960962164E-3},{"$f":"'Population at Risk'!Z224/'Population at Risk'!Z$5","v":1.8080973174288127E-3},{"$f":"'Population at Risk'!AA224/'Population at Risk'!AA$5","v":3.8161950627623831E-3},{"$f":"'Population at Risk'!AB224/'Population at Risk'!AB$5","v":8.5678194894180069E-3},{"$f":"'Population at Risk'!AC224/'Population at Risk'!AC$5","v":4.3624050200262764E-3},{"$f":"'Population at Risk'!AD224/'Population at Risk'!AD$5","v":2.5312894782358727E-3},{"$f":"'Population at Risk'!AE224/'Population at Risk'!AE$5","v":2.7298186270285603E-3},{"$f":"'Population at Risk'!AF224/'Population at Risk'!AF$5","v":3.5187785791702219E-3},{"$f":"'Population at Risk'!AG224/'Population at Risk'!AG$5","v":2.7298186270285603E-3},{"$f":"'Population at Risk'!AH224/'Population at Risk'!AH$5","v":2.8223447567262377E-3},{"$f":"'Population at Risk'!AI224/'Population at Risk'!AI$5","v":7.1433144228866055E-3},{"$f":"'Population at Risk'!AJ224/'Population at Risk'!AJ$5","v":3.852856409631769E-3},{"$f":"'Population at Risk'!AK224/'Population at Risk'!AK$5","v":4.6875144482107414E-3},{"$f":"'Population at Risk'!AL224/'Population at Risk'!AL$5","v":2.4225885988887895E-3},{"$f":"'Population at Risk'!AM224/'Population at Risk'!AM$5","v":2.0247002071561394E-3},{"$f":"'Population at Risk'!AN224/'Population at Risk'!AN$5","v":2.2389633177782222E-3},{"$f":"'Population at Risk'!AO224/'Population at Risk'!AO$5","v":2.2389633177782222E-3},{"$f":"'Population at Risk'!AP224/'Population at Risk'!AP$5","v":5.786364027593506E-3},{"$f":"'Population at Risk'!AQ224/'Population at Risk'!AQ$5","v":4.716838041035505E-3},{"$f":"'Population at Risk'!AR224/'Population at Risk'!AR$5","v":4.8372097152659969E-3},{"$f":"'Population at Risk'!AS224/'Population at Risk'!AS$5","v":2.6659397970813974E-3},{"$f":"'Population at Risk'!AT224/'Population at Risk'!AT$5","v":0},{"$f":"'Population at Risk'!AU224/'Population at Risk'!AU$5","v":0},{"$f":"'Population at Risk'!AV224/'Population at Risk'!AV$5","v":6.9389881965203851E-3},{"$f":"'Population at Risk'!AW224/'Population at Risk'!AW$5","v":3.7324213598392648E-3},{"$f":"'Population at Risk'!AX224/'Population at Risk'!AX$5","v":7.1292388684143894E-3},{"$f":"'Population at Risk'!AY224/'Population at Risk'!AY$5","v":4.8229066872435217E-3},{"$f":"'Population at Risk'!AZ224/'Population at Risk'!AZ$5","v":4.5821933153565109E-3},{"$f":"'Population at Risk'!BA224/'Population at Risk'!BA$5","v":1.0090290505635406E-3},{"$f":"'Population at Risk'!BB224/'Population at Risk'!BB$5","v":4.2052277999159102E-3},{"$f":"'Population at Risk'!BC224/'Population at Risk'!BC$5","v":0},222]
[null,"Female 65-69",{"$f":"'Population at Risk'!C225/'Population at Risk'!C$5","v":8.2271411080736788E-3},{"$f":"'Population at Risk'!D225/'Population at Risk'!D$5","v":8.7194501020523354E-3},{"$f":"'Population at Risk'!E225/'Population at Risk'!E$5","v":9.2136424443664718E-3},{"$f":"'Population at Risk'!F225/'Population at Risk'!F$5","v":6.3761890310903204E-3},{"$f":"'Population at Risk'!G225/'Population at Risk'!G$5","v":2.3238771893503E-3},{"$f":"'Population at Risk'!H225/'Population at Risk'!H$5","v":4.2042923004018016E-3},{"$f":"'Population at Risk'!I225/'Population at Risk'!I$5","v":2.9376747075277104E-3},{"$f":"'Population at Risk'!J225/'Population at Risk'!J$5","v":6.54236942520938E-3},{"$f":"'Population at Risk'!K225/'Population at Risk'!K$5","v":4.4334483628767985E-3},{"$f":"'Population at Risk'!L225/'Population at Risk'!L$5","v":2.520135782605115E-3},{"$f":"'Population at Risk'!M225/'Population at Risk'!M$5","v":2.520135782605115E-3},{"$f":"'Population at Risk'!N225/'Population at Risk'!N$5","v":3.6505789255109945E-3},{"$f":"'Population at Risk'!O225/'Population at Risk'!O$5","v":2.9802783105440183E-3},{"$f":"'Population at Risk'!P225/'Population at Risk'!P$5","v":1.8281253878948082E-2},{"$f":"'Population at Risk'!Q225/'Population at Risk'!Q$5","v":4.8214028973437495E-3},{"$f":"'Population at Risk'!R225/'Population at Risk'!R$5","v":1.8148595448430827E-2},{"$f":"'Population at Risk'!S225/'Population at Risk'!S$5","v":6.4447841386205511E-3},{"$f":"'Population at Risk'!T225/'Population at Risk'!T$5","v":9.7009994873112262E-3},{"$f":"'Population at Risk'!U225/'Population at Risk'!U$5","v":0},{"$f":"'Population at Risk'!V225/'Population at Risk'!V$5","v":4.2911103452585491E-3},{"$f":"'Population at Risk'!W225/'Population at Risk'!W$5","v":5.678588608671529E-3},{"$f":"'Population at Risk'!X225/'Population at Risk'!X$5","v":5.678588608671529E-3},{"$f":"'Population at Risk'!Y225/'Population at Risk'!Y$5","v":5.3542116266350167E-3},{"$f":"'Population at Risk'!Z225/'Population at Risk'!Z$5","v":1.5019812513849186E-3},{"$f":"'Population at Risk'!AA225/'Population at Risk'!AA$5","v":3.5774110766535593E-3},{"$f":"'Population at Risk'!AB225/'Population at Risk'!AB$5","v":8.0795377019534011E-3},{"$f":"'Population at Risk'!AC225/'Population at Risk'!AC$5","v":4.1381892866560171E-3},{"$f":"'Population at Risk'!AD225/'Population at Risk'!AD$5","v":2.5947621331565318E-3},{"$f":"'Population at Risk'!AE225/'Population at Risk'!AE$5","v":2.6982397483097209E-3},{"$f":"'Population at Risk'!AF225/'Population at Risk'!AF$5","v":3.5627633114098493E-3},{"$f":"'Population at Risk'!AG225/'Population at Risk'!AG$5","v":2.6982397483097209E-3},{"$f":"'Population at Risk'!AH225/'Population at Risk'!AH$5","v":2.5570532669549717E-3},{"$f":"'Population at Risk'!AI225/'Population at Risk'!AI$5","v":7.2271889562277392E-3},{"$f":"'Population at Risk'!AJ225/'Population at Risk'!AJ$5","v":3.7184544418539167E-3},{"$f":"'Population at Risk'!AK225/'Population at Risk'!AK$5","v":4.8267475506328424E-3},{"$f":"'Population at Risk'!AL225/'Population at Risk'!AL$5","v":2.7100143648586456E-3},{"$f":"'Population at Risk'!AM225/'Population at Risk'!AM$5","v":1.8155369626152156E-3},{"$f":"'Population at Risk'!AN225/'Population at Risk'!AN$5","v":2.0390558786908815E-3},{"$f":"'Population at Risk'!AO225/'Population at Risk'!AO$5","v":2.0390558786908815E-3},{"$f":"'Population at Risk'!AP225/'Population at Risk'!AP$5","v":6.8357654064579807E-3},{"$f":"'Population at Risk'!AQ225/'Population at Risk'!AQ$5","v":4.6662100835288623E-3},{"$f":"'Population at Risk'!AR225/'Population at Risk'!AR$5","v":4.8547504234238391E-3},{"$f":"'Population at Risk'!AS225/'Population at Risk'!AS$5","v":2.9376747075277104E-3},{"$f":"'Population at Risk'!AT225/'Population at Risk'!AT$5","v":0},{"$f":"'Population at Risk'!AU225/'Population at Risk'!AU$5","v":0},{"$f":"'Population at Risk'!AV225/'Population at Risk'!AV$5","v":7.6131391596759475E-3},{"$f":"'Population at Risk'!AW225/'Population at Risk'!AW$5","v":3.4030900633828594E-3},{"$f":"'Population at Risk'!AX225/'Population at Risk'!AX$5","v":7.835901190377673E-3},{"$f":"'Population at Risk'!AY225/'Population at Risk'!AY$5","v":5.5449831321701471E-3},{"$f":"'Population at Risk'!AZ225/'Population at Risk'!AZ$5","v":5.4237030311326748E-3},{"$f":"'Population at Risk'!BA225/'Population at Risk'!BA$5","v":7.1535641644430124E-4},{"$f":"'Population at Risk'!BB225/'Population at Risk'!BB$5","v":3.5856487823734402E-3},{"$f":"'Population at Risk'!BC225/'Population at Risk'!BC$5","v":0},223]
[null,"Female 70-74",{"$f":"'Population at Risk'!C226/'Population at Risk'!C$5","v":6.3316544549065056E-3},{"$f":"'Population at Risk'!D226/'Population at Risk'!D$5","v":6.4843491753691813E-3},{"$f":"'Population at Risk'!E226/'Population at Risk'!E$5","v":6.6376280357747326E-3},{"$f":"'Population at Risk'!F226/'Population at Risk'!F$5","v":4.5882711608859397E-3},{"$f":"'Population at Risk'!G226/'Population at Risk'!G$5","v":1.9105393493472824E-3},{"$f":"'Population at Risk'!H226/'Population at Risk'!H$5","v":3.2390211089830204E-3},{"$f":"'Population at Risk'!I226/'Population at Risk'!I$5","v":2.2252885909522409E-3},{"$f":"'Population at Risk'!J226/'Population at Risk'!J$5","v":5.0398422097587504E-3},{"$f":"'Population at Risk'!K226/'Population at Risk'!K$5","v":3.0334120377578096E-3},{"$f":"'Population at Risk'!L226/'Population at Risk'!L$5","v":2.4269890801679648E-3},{"$f":"'Population at Risk'!M226/'Population at Risk'!M$5","v":2.4269890801679648E-3},{"$f":"'Population at Risk'!N226/'Population at Risk'!N$5","v":2.9337552353261311E-3},{"$f":"'Population at Risk'!O226/'Population at Risk'!O$5","v":2.0452890366478558E-3},{"$f":"'Population at Risk'!P226/'Population at Risk'!P$5","v":1.5296007192252563E-2},{"$f":"'Population at Risk'!Q226/'Population at Risk'!Q$5","v":4.0670337365348638E-3},{"$f":"'Population at Risk'!R226/'Population at Risk'!R$5","v":1.5624406996976542E-2},{"$f":"'Population at Risk'!S226/'Population at Risk'!S$5","v":4.824965722528802E-3},{"$f":"'Population at Risk'!T226/'Population at Risk'!T$5","v":7.2218188568780829E-3},{"$f":"'Population at Risk'!U226/'Population at Risk'!U$5","v":0},{"$f":"'Population at Risk'!V226/'Population at Risk'!V$5","v":3.0360225795355283E-3},{"$f":"'Population at Risk'!W226/'Population at Risk'!W$5","v":4.2753443867001445E-3},{"$f":"'Population at Risk'!X226/'Population at Risk'!X$5","v":4.2753443867001445E-3},{"$f":"'Population at Risk'!Y226/'Population at Risk'!Y$5","v":3.98227671594712E-3},{"$f":"'Population at Risk'!Z226/'Population at Risk'!Z$5","v":8.9928214557531455E-4},{"$f":"'Population at Risk'!AA226/'Population at Risk'!AA$5","v":2.7222955767307335E-3},{"$f":"'Population at Risk'!AB226/'Population at Risk'!AB$5","v":6.1080999850650543E-3},{"$f":"'Population at Risk'!AC226/'Population at Risk'!AC$5","v":3.1929300609994313E-3},{"$f":"'Population at Risk'!AD226/'Population at Risk'!AD$5","v":2.0844419875944349E-3},{"$f":"'Population at Risk'!AE226/'Population at Risk'!AE$5","v":2.1508725171831716E-3},{"$f":"'Population at Risk'!AF226/'Population at Risk'!AF$5","v":2.8326167562320284E-3},{"$f":"'Population at Risk'!AG226/'Population at Risk'!AG$5","v":2.1508725171831716E-3},{"$f":"'Population at Risk'!AH226/'Population at Risk'!AH$5","v":1.865957789399574E-3},{"$f":"'Population at Risk'!AI226/'Population at Risk'!AI$5","v":5.3968602508723202E-3},{"$f":"'Population at Risk'!AJ226/'Population at Risk'!AJ$5","v":2.6701190931866679E-3},{"$f":"'Population at Risk'!AK226/'Population at Risk'!AK$5","v":4.1955574863193172E-3},{"$f":"'Population at Risk'!AL226/'Population at Risk'!AL$5","v":2.1094998181001956E-3},{"$f":"'Population at Risk'!AM226/'Population at Risk'!AM$5","v":1.2068719210011284E-3},{"$f":"'Population at Risk'!AN226/'Population at Risk'!AN$5","v":1.7991669517860717E-3},{"$f":"'Population at Risk'!AO226/'Population at Risk'!AO$5","v":1.7991669517860717E-3},{"$f":"'Population at Risk'!AP226/'Population at Risk'!AP$5","v":5.5401357711001645E-3},{"$f":"'Population at Risk'!AQ226/'Population at Risk'!AQ$5","v":3.5059860573349775E-3},{"$f":"'Population at Risk'!AR226/'Population at Risk'!AR$5","v":3.6982138953772434E-3},{"$f":"'Population at Risk'!AS226/'Population at Risk'!AS$5","v":2.2252885909522409E-3},{"$f":"'Population at Risk'!AT226/'Population at Risk'!AT$5","v":0},{"$f":"'Population at Risk'!AU226/'Population at Risk'!AU$5","v":0},{"$f":"'Population at Risk'!AV226/'Population at Risk'!AV$5","v":6.1286451195960217E-3},{"$f":"'Population at Risk'!AW226/'Population at Risk'!AW$5","v":2.6179451609614278E-3},{"$f":"'Population at Risk'!AX226/'Population at Risk'!AX$5","v":6.2705099708387536E-3},{"$f":"'Population at Risk'!AY226/'Population at Risk'!AY$5","v":4.2518922600839736E-3},{"$f":"'Population at Risk'!AZ226/'Population at Risk'!AZ$5","v":4.2306036395870173E-3},{"$f":"'Population at Risk'!BA226/'Population at Risk'!BA$5","v":3.5391317445139113E-4},{"$f":"'Population at Risk'!BB226/'Population at Risk'!BB$5","v":2.539834554181187E-3},{"$f":"'Population at Risk'!BC226/'Population at Risk'!BC$5","v":0},224]
[null,"Female 75-79",{"$f":"'Population at Risk'!C227/'Population at Risk'!C$5","v":5.4786854609812771E-3},{"$f":"'Population at Risk'!D227/'Population at Risk'!D$5","v":5.2225397469884147E-3},{"$f":"'Population at Risk'!E227/'Population at Risk'!E$5","v":4.9654141370156077E-3},{"$f":"'Population at Risk'!F227/'Population at Risk'!F$5","v":3.5686553473557306E-3},{"$f":"'Population at Risk'!G227/'Population at Risk'!G$5","v":1.3410516586764578E-3},{"$f":"'Population at Risk'!H227/'Population at Risk'!H$5","v":2.4336534280618963E-3},{"$f":"'Population at Risk'!I227/'Population at Risk'!I$5","v":1.9462094937371082E-3},{"$f":"'Population at Risk'!J227/'Population at Risk'!J$5","v":4.1471968898784883E-3},{"$f":"'Population at Risk'!K227/'Population at Risk'!K$5","v":2.3917287220782727E-3},{"$f":"'Population at Risk'!L227/'Population at Risk'!L$5","v":1.8577592319409366E-3},{"$f":"'Population at Risk'!M227/'Population at Risk'!M$5","v":1.8577592319409366E-3},{"$f":"'Population at Risk'!N227/'Population at Risk'!N$5","v":2.3878299083641488E-3},{"$f":"'Population at Risk'!O227/'Population at Risk'!O$5","v":1.4141712767679461E-3},{"$f":"'Population at Risk'!P227/'Population at Risk'!P$5","v":1.3816912157152668E-2},{"$f":"'Population at Risk'!Q227/'Population at Risk'!Q$5","v":3.1896696038549634E-3},{"$f":"'Population at Risk'!R227/'Population at Risk'!R$5","v":1.1949955453720301E-2},{"$f":"'Population at Risk'!S227/'Population at Risk'!S$5","v":3.825364122877469E-3},{"$f":"'Population at Risk'!T227/'Population at Risk'!T$5","v":6.117055438174852E-3},{"$f":"'Population at Risk'!U227/'Population at Risk'!U$5","v":0},{"$f":"'Population at Risk'!V227/'Population at Risk'!V$5","v":2.2472520074012983E-3},{"$f":"'Population at Risk'!W227/'Population at Risk'!W$5","v":3.0244886775220329E-3},{"$f":"'Population at Risk'!X227/'Population at Risk'!X$5","v":3.0244886775220329E-3},{"$f":"'Population at Risk'!Y227/'Population at Risk'!Y$5","v":3.1444538697255036E-3},{"$f":"'Population at Risk'!Z227/'Population at Risk'!Z$5","v":7.859450553791324E-4},{"$f":"'Population at Risk'!AA227/'Population at Risk'!AA$5","v":2.1573579672116779E-3},{"$f":"'Population at Risk'!AB227/'Population at Risk'!AB$5","v":4.8553520241011753E-3},{"$f":"'Population at Risk'!AC227/'Population at Risk'!AC$5","v":2.5858322692783194E-3},{"$f":"'Population at Risk'!AD227/'Population at Risk'!AD$5","v":1.5385771552767693E-3},{"$f":"'Population at Risk'!AE227/'Population at Risk'!AE$5","v":1.6140315789629019E-3},{"$f":"'Population at Risk'!AF227/'Population at Risk'!AF$5","v":2.2432213442210164E-3},{"$f":"'Population at Risk'!AG227/'Population at Risk'!AG$5","v":1.6140315789629019E-3},{"$f":"'Population at Risk'!AH227/'Population at Risk'!AH$5","v":1.3777322746104383E-3},{"$f":"'Population at Risk'!AI227/'Population at Risk'!AI$5","v":4.4164601500403947E-3},{"$f":"'Population at Risk'!AJ227/'Population at Risk'!AJ$5","v":2.0518700414085471E-3},{"$f":"'Population at Risk'!AK227/'Population at Risk'!AK$5","v":2.9888705986611066E-3},{"$f":"'Population at Risk'!AL227/'Population at Risk'!AL$5","v":1.5295156831967357E-3},{"$f":"'Population at Risk'!AM227/'Population at Risk'!AM$5","v":9.0358521641678937E-4},{"$f":"'Population at Risk'!AN227/'Population at Risk'!AN$5","v":9.1957421980176993E-4},{"$f":"'Population at Risk'!AO227/'Population at Risk'!AO$5","v":9.1957421980176993E-4},{"$f":"'Population at Risk'!AP227/'Population at Risk'!AP$5","v":4.5786730552690247E-3},{"$f":"'Population at Risk'!AQ227/'Population at Risk'!AQ$5","v":2.2656010984222416E-3},{"$f":"'Population at Risk'!AR227/'Population at Risk'!AR$5","v":2.9172210534641266E-3},{"$f":"'Population at Risk'!AS227/'Population at Risk'!AS$5","v":1.9462094937371082E-3},{"$f":"'Population at Risk'!AT227/'Population at Risk'!AT$5","v":0},{"$f":"'Population at Risk'!AU227/'Population at Risk'!AU$5","v":0},{"$f":"'Population at Risk'!AV227/'Population at Risk'!AV$5","v":4.8212008274155374E-3},{"$f":"'Population at Risk'!AW227/'Population at Risk'!AW$5","v":1.9187127706590595E-3},{"$f":"'Population at Risk'!AX227/'Population at Risk'!AX$5","v":5.2239341269184484E-3},{"$f":"'Population at Risk'!AY227/'Population at Risk'!AY$5","v":3.2327271802154323E-3},{"$f":"'Population at Risk'!AZ227/'Population at Risk'!AZ$5","v":3.4217552598112978E-3},{"$f":"'Population at Risk'!BA227/'Population at Risk'!BA$5","v":2.4849222887012571E-4},{"$f":"'Population at Risk'!BB227/'Population at Risk'!BB$5","v":1.6609990683053436E-3},{"$f":"'Population at Risk'!BC227/'Population at Risk'!BC$5","v":0},225]
[null,"Female 80-84",{"$f":"'Population at Risk'!C228/'Population at Risk'!C$5","v":4.2757804695482621E-3},{"$f":"'Population at Risk'!D228/'Population at Risk'!D$5","v":4.0009037012767885E-3},{"$f":"'Population at Risk'!E228/'Population at Risk'!E$5","v":3.7249753806056661E-3},{"$f":"'Population at Risk'!F228/'Population at Risk'!F$5","v":2.8147140767876186E-3},{"$f":"'Population at Risk'!G228/'Population at Risk'!G$5","v":1.1206048106748485E-3},{"$f":"'Population at Risk'!H228/'Population at Risk'!H$5","v":1.817439899802634E-3},{"$f":"'Population at Risk'!I228/'Population at Risk'!I$5","v":1.1677256962422649E-3},{"$f":"'Population at Risk'!J228/'Population at Risk'!J$5","v":2.8498117665742553E-3},{"$f":"'Population at Risk'!K228/'Population at Risk'!K$5","v":1.5021223071589151E-3},{"$f":"'Population at Risk'!L228/'Population at Risk'!L$5","v":1.5006968725985281E-3},{"$f":"'Population at Risk'!M228/'Population at Risk'!M$5","v":1.5006968725985281E-3},{"$f":"'Population at Risk'!N228/'Population at Risk'!N$5","v":1.9178594095012247E-3},{"$f":"'Population at Risk'!O228/'Population at Risk'!O$5","v":1.133674494599097E-3},{"$f":"'Population at Risk'!P228/'Population at Risk'!P$5","v":1.0191325546724878E-2},{"$f":"'Population at Risk'!Q228/'Population at Risk'!Q$5","v":2.2713071472180587E-3},{"$f":"'Population at Risk'!R228/'Population at Risk'!R$5","v":9.9369950430668805E-3},{"$f":"'Population at Risk'!S228/'Population at Risk'!S$5","v":2.9964262109714855E-3},{"$f":"'Population at Risk'!T228/'Population at Risk'!T$5","v":5.1593759065770781E-3},{"$f":"'Population at Risk'!U228/'Population at Risk'!U$5","v":0},{"$f":"'Population at Risk'!V228/'Population at Risk'!V$5","v":1.478324720100633E-3},{"$f":"'Population at Risk'!W228/'Population at Risk'!W$5","v":2.22868199960161E-3},{"$f":"'Population at Risk'!X228/'Population at Risk'!X$5","v":2.22868199960161E-3},{"$f":"'Population at Risk'!Y228/'Population at Risk'!Y$5","v":2.1259754722873512E-3},{"$f":"'Population at Risk'!Z228/'Population at Risk'!Z$5","v":6.6837106461486865E-4},{"$f":"'Population at Risk'!AA228/'Population at Risk'!AA$5","v":1.6481629769663708E-3},{"$f":"'Population at Risk'!AB228/'Population at Risk'!AB$5","v":3.74756271879085E-3},{"$f":"'Population at Risk'!AC228/'Population at Risk'!AC$5","v":2.0112028761053594E-3},{"$f":"'Population at Risk'!AD228/'Population at Risk'!AD$5","v":1.3126145037592241E-3},{"$f":"'Population at Risk'!AE228/'Population at Risk'!AE$5","v":1.3859618993268398E-3},{"$f":"'Population at Risk'!AF228/'Population at Risk'!AF$5","v":1.6362320393141533E-3},{"$f":"'Population at Risk'!AG228/'Population at Risk'!AG$5","v":1.3859618993268398E-3},{"$f":"'Population at Risk'!AH228/'Population at Risk'!AH$5","v":9.8759773082916541E-4},{"$f":"'Population at Risk'!AI228/'Population at Risk'!AI$5","v":3.5665315455168998E-3},{"$f":"'Population at Risk'!AJ228/'Population at Risk'!AJ$5","v":1.3798602025192847E-3},{"$f":"'Population at Risk'!AK228/'Population at Risk'!AK$5","v":2.459784809457122E-3},{"$f":"'Population at Risk'!AL228/'Population at Risk'!AL$5","v":1.2010290935168999E-3},{"$f":"'Population at Risk'!AM228/'Population at Risk'!AM$5","v":5.7519892248753945E-4},{"$f":"'Population at Risk'!AN228/'Population at Risk'!AN$5","v":1.0795001710716431E-3},{"$f":"'Population at Risk'!AO228/'Population at Risk'!AO$5","v":1.0795001710716431E-3},{"$f":"'Population at Risk'!AP228/'Population at Risk'!AP$5","v":3.5292716764045492E-3},{"$f":"'Population at Risk'!AQ228/'Population at Risk'!AQ$5","v":1.6074376508358921E-3},{"$f":"'Population at Risk'!AR228/'Population at Risk'!AR$5","v":2.2486612753168525E-3},{"$f":"'Population at Risk'!AS228/'Population at Risk'!AS$5","v":1.1677256962422649E-3},{"$f":"'Population at Risk'!AT228/'Population at Risk'!AT$5","v":0},{"$f":"'Population at Risk'!AU228/'Population at Risk'!AU$5","v":0},{"$f":"'Population at Risk'!AV228/'Population at Risk'!AV$5","v":3.4320412669737728E-3},{"$f":"'Population at Risk'!AW228/'Population at Risk'!AW$5","v":1.4581262473540861E-3},{"$f":"'Population at Risk'!AX228/'Population at Risk'!AX$5","v":3.676433092745689E-3},{"$f":"'Population at Risk'!AY228/'Population at Risk'!AY$5","v":2.4683533703140268E-3},{"$f":"'Population at Risk'!AZ228/'Population at Risk'!AZ$5","v":2.6859145722718668E-3},{"$f":"'Population at Risk'!BA228/'Population at Risk'!BA$5","v":1.6566148591341711E-4},{"$f":"'Population at Risk'!BB228/'Population at Risk'!BB$5","v":1.0502084056216326E-3},{"$f":"'Population at Risk'!BC228/'Population at Risk'!BC$5","v":0},226]
[null,"Female 85-89",{"$f":"'Population at Risk'!C229/'Population at Risk'!C$5","v":3.1348433110072508E-3},{"$f":"'Population at Risk'!D229/'Population at Risk'!D$5","v":2.7500506499876054E-3},{"$f":"'Population at Risk'!E229/'Population at Risk'!E$5","v":2.3637859487929866E-3},{"$f":"'Population at Risk'!F229/'Population at Risk'!F$5","v":1.8166394424164985E-3},{"$f":"'Population at Risk'!G229/'Population at Risk'!G$5","v":6.4296997333802776E-4},{"$f":"'Population at Risk'!H229/'Population at Risk'!H$5","v":1.0783736744537087E-3},{"$f":"'Population at Risk'!I229/'Population at Risk'!I$5","v":6.1691168858081914E-4},{"$f":"'Population at Risk'!J229/'Population at Risk'!J$5","v":1.5967816902205945E-3},{"$f":"'Population at Risk'!K229/'Population at Risk'!K$5","v":6.5626702739952599E-4},{"$f":"'Population at Risk'!L229/'Population at Risk'!L$5","v":8.0727142112196697E-4},{"$f":"'Population at Risk'!M229/'Population at Risk'!M$5","v":8.0727142112196697E-4},{"$f":"'Population at Risk'!N229/'Population at Risk'!N$5","v":1.2485074868782726E-3},{"$f":"'Population at Risk'!O229/'Population at Risk'!O$5","v":6.8955458949842001E-4},{"$f":"'Population at Risk'!P229/'Population at Risk'!P$5","v":5.9434367568953058E-3},{"$f":"'Population at Risk'!Q229/'Population at Risk'!Q$5","v":1.4923389920349702E-3},{"$f":"'Population at Risk'!R229/'Population at Risk'!R$5","v":6.9015785508117237E-3},{"$f":"'Population at Risk'!S229/'Population at Risk'!S$5","v":1.9962299643245239E-3},{"$f":"'Population at Risk'!T229/'Population at Risk'!T$5","v":3.6019209686714857E-3},{"$f":"'Population at Risk'!U229/'Population at Risk'!U$5","v":0},{"$f":"'Population at Risk'!V229/'Population at Risk'!V$5","v":7.9869221455101318E-4},{"$f":"'Population at Risk'!W229/'Population at Risk'!W$5","v":1.3799626436279675E-3},{"$f":"'Population at Risk'!X229/'Population at Risk'!X$5","v":1.3799626436279675E-3},{"$f":"'Population at Risk'!Y229/'Population at Risk'!Y$5","v":1.1755701811047054E-3},{"$f":"'Population at Risk'!Z229/'Population at Risk'!Z$5","v":4.480522350746267E-4},{"$f":"'Population at Risk'!AA229/'Population at Risk'!AA$5","v":1.0100878882583538E-3},{"$f":"'Population at Risk'!AB229/'Population at Risk'!AB$5","v":2.5421170559876047E-3},{"$f":"'Population at Risk'!AC229/'Population at Risk'!AC$5","v":1.2815828257119743E-3},{"$f":"'Population at Risk'!AD229/'Population at Risk'!AD$5","v":7.8706092101616916E-4},{"$f":"'Population at Risk'!AE229/'Population at Risk'!AE$5","v":8.421034325023836E-4},{"$f":"'Population at Risk'!AF229/'Population at Risk'!AF$5","v":1.1611969311261733E-3},{"$f":"'Population at Risk'!AG229/'Population at Risk'!AG$5","v":8.421034325023836E-4},{"$f":"'Population at Risk'!AH229/'Population at Risk'!AH$5","v":5.1609226791636965E-4},{"$f":"'Population at Risk'!AI229/'Population at Risk'!AI$5","v":2.4426127987457E-3},{"$f":"'Population at Risk'!AJ229/'Population at Risk'!AJ$5","v":5.6448826466698021E-4},{"$f":"'Population at Risk'!AK229/'Population at Risk'!AK$5","v":1.4851530925024134E-3},{"$f":"'Population at Risk'!AL229/'Population at Risk'!AL$5","v":6.8263619417840895E-4},{"$f":"'Population at Risk'!AM229/'Population at Risk'!AM$5","v":2.5727079078533585E-4},{"$f":"'Population at Risk'!AN229/'Population at Risk'!AN$5","v":5.5974082944455555E-4},{"$f":"'Population at Risk'!AO229/'Population at Risk'!AO$5","v":5.5974082944455555E-4},{"$f":"'Population at Risk'!AP229/'Population at Risk'!AP$5","v":2.2746800837956231E-3},{"$f":"'Population at Risk'!AQ229/'Population at Risk'!AQ$5","v":9.2817922095510838E-4},{"$f":"'Population at Risk'!AR229/'Population at Risk'!AR$5","v":1.4325870170880512E-3},{"$f":"'Population at Risk'!AS229/'Population at Risk'!AS$5","v":6.1691168858081914E-4},{"$f":"'Population at Risk'!AT229/'Population at Risk'!AT$5","v":0},{"$f":"'Population at Risk'!AU229/'Population at Risk'!AU$5","v":0},{"$f":"'Population at Risk'!AV229/'Population at Risk'!AV$5","v":2.0565009179088875E-3},{"$f":"'Population at Risk'!AW229/'Population at Risk'!AW$5","v":8.1139594779114452E-4},{"$f":"'Population at Risk'!AX229/'Population at Risk'!AX$5","v":2.173657521988327E-3},{"$f":"'Population at Risk'!AY229/'Population at Risk'!AY$5","v":1.5670166643038045E-3},{"$f":"'Population at Risk'!AZ229/'Population at Risk'!AZ$5","v":1.7368145732001199E-3},{"$f":"'Population at Risk'!BA229/'Population at Risk'!BA$5","v":7.5300675415189612E-5},{"$f":"'Population at Risk'!BB229/'Population at Risk'!BB$5","v":7.5579851785322505E-4},{"$f":"'Population at Risk'!BC229/'Population at Risk'!BC$5","v":0},227]
[null,"Female 90+",{"$f":"'Population at Risk'!C230/'Population at Risk'!C$5","v":1.9100673197299991E-3},{"$f":"'Population at Risk'!D230/'Population at Risk'!D$5","v":1.7146730148329093E-3},{"$f":"'Population at Risk'!E230/'Population at Risk'!E$5","v":1.5185312209738226E-3},{"$f":"'Population at Risk'!F230/'Population at Risk'!F$5","v":9.2627070384082349E-4},{"$f":"'Population at Risk'!G230/'Population at Risk'!G$5","v":4.0415255466961744E-4},{"$f":"'Population at Risk'!H230/'Population at Risk'!H$5","v":7.0201541194093162E-4},{"$f":"'Population at Risk'!I230/'Population at Risk'!I$5","v":5.0674888704853001E-4},{"$f":"'Population at Risk'!J230/'Population at Risk'!J$5","v":8.9818970074908439E-4},{"$f":"'Population at Risk'!K230/'Population at Risk'!K$5","v":2.6250681095981045E-4},{"$f":"'Population at Risk'!L230/'Population at Risk'!L$5","v":4.7090832898781407E-4},{"$f":"'Population at Risk'!M230/'Population at Risk'!M$5","v":4.7090832898781407E-4},{"$f":"'Population at Risk'!N230/'Population at Risk'!N$5","v":5.554196804743646E-4},{"$f":"'Population at Risk'!O230/'Population at Risk'!O$5","v":3.0971519697810387E-4},{"$f":"'Population at Risk'!P230/'Population at Risk'!P$5","v":3.5173601444448699E-3},{"$f":"'Population at Risk'!Q230/'Population at Risk'!Q$5","v":9.3476178621970663E-4},{"$f":"'Population at Risk'!R230/'Population at Risk'!R$5","v":3.7916079692731077E-3},{"$f":"'Population at Risk'!S230/'Population at Risk'!S$5","v":1.2701659826622532E-3},{"$f":"'Population at Risk'!T230/'Population at Risk'!T$5","v":2.2356750840029915E-3},{"$f":"'Population at Risk'!U230/'Population at Risk'!U$5","v":0},{"$f":"'Population at Risk'!V230/'Population at Risk'!V$5","v":6.1018100863214047E-4},{"$f":"'Population at Risk'!W230/'Population at Risk'!W$5","v":9.1433107675963489E-4},{"$f":"'Population at Risk'!X230/'Population at Risk'!X$5","v":9.1433107675963489E-4},{"$f":"'Population at Risk'!Y230/'Population at Risk'!Y$5","v":7.4618597241612691E-4},{"$f":"'Population at Risk'!Z230/'Population at Risk'!Z$5","v":2.9234613919762871E-4},{"$f":"'Population at Risk'!AA230/'Population at Risk'!AA$5","v":5.740303772020077E-4},{"$f":"'Population at Risk'!AB230/'Population at Risk'!AB$5","v":1.5899675704316228E-3},{"$f":"'Population at Risk'!AC230/'Population at Risk'!AC$5","v":7.4616055531414194E-4},{"$f":"'Population at Risk'!AD230/'Population at Risk'!AD$5","v":4.4176967824778525E-4},{"$f":"'Population at Risk'!AE230/'Population at Risk'!AE$5","v":4.5613935927212441E-4},{"$f":"'Population at Risk'!AF230/'Population at Risk'!AF$5","v":7.9172518031329995E-4},{"$f":"'Population at Risk'!AG230/'Population at Risk'!AG$5","v":4.5613935927212441E-4},{"$f":"'Population at Risk'!AH230/'Population at Risk'!AH$5","v":2.6083280927090822E-4},{"$f":"'Population at Risk'!AI230/'Population at Risk'!AI$5","v":1.5237206890306066E-3},{"$f":"'Population at Risk'!AJ230/'Population at Risk'!AJ$5","v":4.121660345187474E-4},{"$f":"'Population at Risk'!AK230/'Population at Risk'!AK$5","v":9.5606730329842848E-4},{"$f":"'Population at Risk'!AL230/'Population at Risk'!AL$5","v":3.7468001635356277E-4},{"$f":"'Population at Risk'!AM230/'Population at Risk'!AM$5","v":1.3804774139700949E-4},{"$f":"'Population at Risk'!AN230/'Population at Risk'!AN$5","v":2.7987041472227778E-4},{"$f":"'Population at Risk'!AO230/'Population at Risk'!AO$5","v":2.7987041472227778E-4},{"$f":"'Population at Risk'!AP230/'Population at Risk'!AP$5","v":1.5477204693867127E-3},{"$f":"'Population at Risk'!AQ230/'Population at Risk'!AQ$5","v":4.1768064942979876E-4},{"$f":"'Population at Risk'!AR230/'Population at Risk'!AR$5","v":8.7085302714796518E-4},{"$f":"'Population at Risk'!AS230/'Population at Risk'!AS$5","v":5.0674888704853001E-4},{"$f":"'Population at Risk'!AT230/'Population at Risk'!AT$5","v":0},{"$f":"'Population at Risk'!AU230/'Population at Risk'!AU$5","v":0},{"$f":"'Population at Risk'!AV230/'Population at Risk'!AV$5","v":1.5934477310949658E-3},{"$f":"'Population at Risk'!AW230/'Population at Risk'!AW$5","v":4.0092505655562433E-4},{"$f":"'Population at Risk'!AX230/'Population at Risk'!AX$5","v":1.288093346363453E-3},{"$f":"'Population at Risk'!AY230/'Population at Risk'!AY$5","v":9.4866947157723914E-4},{"$f":"'Population at Risk'!AZ230/'Population at Risk'!AZ$5","v":9.7984008001334192E-4},{"$f":"'Population at Risk'!BA230/'Population at Risk'!BA$5","v":5.2710472790632716E-5},{"$f":"'Population at Risk'!BB230/'Population at Risk'!BB$5","v":4.7017698494357607E-4},{"$f":"'Population at Risk'!BC230/'Population at Risk'!BC$5","v":0},228]
[null,"Male 0-4",{"$f":"'Population at Risk'!C231/'Population at Risk'!C$5","v":0},{"$f":"'Population at Risk'!D231/'Population at Risk'!D$5","v":0},{"$f":"'Population at Risk'!E231/'Population at Risk'!E$5","v":0},{"$f":"'Population at Risk'!F231/'Population at Risk'!F$5","v":0},{"$f":"'Population at Risk'!G231/'Population at Risk'!G$5","v":0},{"$f":"'Population at Risk'!H231/'Population at Risk'!H$5","v":0},{"$f":"'Population at Risk'!I231/'Population at Risk'!I$5","v":0},{"$f":"'Population at Risk'!J231/'Population at Risk'!J$5","v":0},{"$f":"'Population at Risk'!K231/'Population at Risk'!K$5","v":0},{"$f":"'Population at Risk'!L231/'Population at Risk'!L$5","v":0},{"$f":"'Population at Risk'!M231/'Population at Risk'!M$5","v":0},{"$f":"'Population at Risk'!N231/'Population at Risk'!N$5","v":0},{"$f":"'Population at Risk'!O231/'Population at Risk'!O$5","v":0},{"$f":"'Population at Risk'!P231/'Population at Risk'!P$5","v":0},{"$f":"'Population at Risk'!Q231/'Population at Risk'!Q$5","v":0},{"$f":"'Population at Risk'!R231/'Population at Risk'!R$5","v":0},{"$f":"'Population at Risk'!S231/'Population at Risk'!S$5","v":0},{"$f":"'Population at Risk'!T231/'Population at Risk'!T$5","v":0},{"$f":"'Population at Risk'!U231/'Population at Risk'!U$5","v":0},{"$f":"'Population at Risk'!V231/'Population at Risk'!V$5","v":0},{"$f":"'Population at Risk'!W231/'Population at Risk'!W$5","v":0},{"$f":"'Population at Risk'!X231/'Population at Risk'!X$5","v":0},{"$f":"'Population at Risk'!Y231/'Population at Risk'!Y$5","v":0},{"$f":"'Population at Risk'!Z231/'Population at Risk'!Z$5","v":0},{"$f":"'Population at Risk'!AA231/'Population at Risk'!AA$5","v":0},{"$f":"'Population at Risk'!AB231/'Population at Risk'!AB$5","v":0},{"$f":"'Population at Risk'!AC231/'Population at Risk'!AC$5","v":0},{"$f":"'Population at Risk'!AD231/'Population at Risk'!AD$5","v":0},{"$f":"'Population at Risk'!AE231/'Population at Risk'!AE$5","v":0},{"$f":"'Population at Risk'!AF231/'Population at Risk'!AF$5","v":0},{"$f":"'Population at Risk'!AG231/'Population at Risk'!AG$5","v":0},{"$f":"'Population at Risk'!AH231/'Population at Risk'!AH$5","v":0},{"$f":"'Population at Risk'!AI231/'Population at Risk'!AI$5","v":0},{"$f":"'Population at Risk'!AJ231/'Population at Risk'!AJ$5","v":0},{"$f":"'Population at Risk'!AK231/'Population at Risk'!AK$5","v":0},{"$f":"'Population at Risk'!AL231/'Population at Risk'!AL$5","v":0},{"$f":"'Population at Risk'!AM231/'Population at Risk'!AM$5","v":0},{"$f":"'Population at Risk'!AN231/'Population at Risk'!AN$5","v":0},{"$f":"'Population at Risk'!AO231/'Population at Risk'!AO$5","v":0},{"$f":"'Population at Risk'!AP231/'Population at Risk'!AP$5","v":0},{"$f":"'Population at Risk'!AQ231/'Population at Risk'!AQ$5","v":0},{"$f":"'Population at Risk'!AR231/'Population at Risk'!AR$5","v":0},{"$f":"'Population at Risk'!AS231/'Population at Risk'!AS$5","v":0},{"$f":"'Population at Risk'!AT231/'Population at Risk'!AT$5","v":0},{"$f":"'Population at Risk'!AU231/'Population at Risk'!AU$5","v":0},{"$f":"'Population at Risk'!AV231/'Population at Risk'!AV$5","v":0},{"$f":"'Population at Risk'!AW231/'Population at Risk'!AW$5","v":0},{"$f":"'Population at Risk'!AX231/'Population at Risk'!AX$5","v":0},{"$f":"'Population at Risk'!AY231/'Population at Risk'!AY$5","v":0},{"$f":"'Population at Risk'!AZ231/'Population at Risk'!AZ$5","v":0},{"$f":"'Population at Risk'!BA231/'Population at Risk'!BA$5","v":0},{"$f":"'Population at Risk'!BB231/'Population at Risk'!BB$5","v":0},{"$f":"'Population at Risk'!BC231/'Population at Risk'!BC$5","v":0},229]
[null,"Male 5-9",{"$f":"'Population at Risk'!C232/'Population at Risk'!C$5","v":0},{"$f":"'Population at Risk'!D232/'Population at Risk'!D$5","v":0},{"$f":"'Population at Risk'!E232/'Population at Risk'!E$5","v":0},{"$f":"'Population at Risk'!F232/'Population at Risk'!F$5","v":0},{"$f":"'Population at Risk'!G232/'Population at Risk'!G$5","v":0},{"$f":"'Population at Risk'!H232/'Population at Risk'!H$5","v":0},{"$f":"'Population at Risk'!I232/'Population at Risk'!I$5","v":0},{"$f":"'Population at Risk'!J232/'Population at Risk'!J$5","v":0},{"$f":"'Population at Risk'!K232/'Population at Risk'!K$5","v":0},{"$f":"'Population at Risk'!L232/'Population at Risk'!L$5","v":0},{"$f":"'Population at Risk'!M232/'Population at Risk'!M$5","v":0},{"$f":"'Population at Risk'!N232/'Population at Risk'!N$5","v":0},{"$f":"'Population at Risk'!O232/'Population at Risk'!O$5","v":0},{"$f":"'Population at Risk'!P232/'Population at Risk'!P$5","v":0},{"$f":"'Population at Risk'!Q232/'Population at Risk'!Q$5","v":0},{"$f":"'Population at Risk'!R232/'Population at Risk'!R$5","v":0},{"$f":"'Population at Risk'!S232/'Population at Risk'!S$5","v":0},{"$f":"'Population at Risk'!T232/'Population at Risk'!T$5","v":0},{"$f":"'Population at Risk'!U232/'Population at Risk'!U$5","v":0},{"$f":"'Population at Risk'!V232/'Population at Risk'!V$5","v":0},{"$f":"'Population at Risk'!W232/'Population at Risk'!W$5","v":0},{"$f":"'Population at Risk'!X232/'Population at Risk'!X$5","v":0},{"$f":"'Population at Risk'!Y232/'Population at Risk'!Y$5","v":0},{"$f":"'Population at Risk'!Z232/'Population at Risk'!Z$5","v":0},{"$f":"'Population at Risk'!AA232/'Population at Risk'!AA$5","v":0},{"$f":"'Population at Risk'!AB232/'Population at Risk'!AB$5","v":0},{"$f":"'Population at Risk'!AC232/'Population at Risk'!AC$5","v":0},{"$f":"'Population at Risk'!AD232/'Population at Risk'!AD$5","v":0},{"$f":"'Population at Risk'!AE232/'Population at Risk'!AE$5","v":0},{"$f":"'Population at Risk'!AF232/'Population at Risk'!AF$5","v":0},{"$f":"'Population at Risk'!AG232/'Population at Risk'!AG$5","v":0},{"$f":"'Population at Risk'!AH232/'Population at Risk'!AH$5","v":0},{"$f":"'Population at Risk'!AI232/'Population at Risk'!AI$5","v":0},{"$f":"'Population at Risk'!AJ232/'Population at Risk'!AJ$5","v":0},{"$f":"'Population at Risk'!AK232/'Population at Risk'!AK$5","v":0},{"$f":"'Population at Risk'!AL232/'Population at Risk'!AL$5","v":0},{"$f":"'Population at Risk'!AM232/'Population at Risk'!AM$5","v":0},{"$f":"'Population at Risk'!AN232/'Population at Risk'!AN$5","v":0},{"$f":"'Population at Risk'!AO232/'Population at Risk'!AO$5","v":0},{"$f":"'Population at Risk'!AP232/'Population at Risk'!AP$5","v":0},{"$f":"'Population at Risk'!AQ232/'Population at Risk'!AQ$5","v":0},{"$f":"'Population at Risk'!AR232/'Population at Risk'!AR$5","v":0},{"$f":"'Population at Risk'!AS232/'Population at Risk'!AS$5","v":0},{"$f":"'Population at Risk'!AT232/'Population at Risk'!AT$5","v":0},{"$f":"'Population at Risk'!AU232/'Population at Risk'!AU$5","v":0},{"$f":"'Population at Risk'!AV232/'Population at Risk'!AV$5","v":0},{"$f":"'Population at Risk'!AW232/'Population at Risk'!AW$5","v":0},{"$f":"'Population at Risk'!AX232/'Population at Risk'!AX$5","v":0},{"$f":"'Population at Risk'!AY232/'Population at Risk'!AY$5","v":0},{"$f":"'Population at Risk'!AZ232/'Population at Risk'!AZ$5","v":0},{"$f":"'Population at Risk'!BA232/'Population at Risk'!BA$5","v":0},{"$f":"'Population at Risk'!BB232/'Population at Risk'!BB$5","v":0},{"$f":"'Population at Risk'!BC232/'Population at Risk'!BC$5","v":0},230]
[null,"Male 10-15",{"$f":"'Population at Risk'!C233/'Population at Risk'!C$5","v":0},{"$f":"'Population at Risk'!D233/'Population at Risk'!D$5","v":0},{"$f":"'Population at Risk'!E233/'Population at Risk'!E$5","v":0},{"$f":"'Population at Risk'!F233/'Population at Risk'!F$5","v":0},{"$f":"'Population at Risk'!G233/'Population at Risk'!G$5","v":0},{"$f":"'Population at Risk'!H233/'Population at Risk'!H$5","v":0},{"$f":"'Population at Risk'!I233/'Population at Risk'!I$5","v":0},{"$f":"'Population at Risk'!J233/'Population at Risk'!J$5","v":0},{"$f":"'Population at Risk'!K233/'Population at Risk'!K$5","v":0},{"$f":"'Population at Risk'!L233/'Population at Risk'!L$5","v":0},{"$f":"'Population at Risk'!M233/'Population at Risk'!M$5","v":0},{"$f":"'Population at Risk'!N233/'Population at Risk'!N$5","v":0},{"$f":"'Population at Risk'!O233/'Population at Risk'!O$5","v":0},{"$f":"'Population at Risk'!P233/'Population at Risk'!P$5","v":0},{"$f":"'Population at Risk'!Q233/'Population at Risk'!Q$5","v":0},{"$f":"'Population at Risk'!R233/'Population at Risk'!R$5","v":0},{"$f":"'Population at Risk'!S233/'Population at Risk'!S$5","v":0},{"$f":"'Population at Risk'!T233/'Population at Risk'!T$5","v":0},{"$f":"'Population at Risk'!U233/'Population at Risk'!U$5","v":0},{"$f":"'Population at Risk'!V233/'Population at Risk'!V$5","v":0},{"$f":"'Population at Risk'!W233/'Population at Risk'!W$5","v":0},{"$f":"'Population at Risk'!X233/'Population at Risk'!X$5","v":0},{"$f":"'Population at Risk'!Y233/'Population at Risk'!Y$5","v":0},{"$f":"'Population at Risk'!Z233/'Population at Risk'!Z$5","v":0},{"$f":"'Population at Risk'!AA233/'Population at Risk'!AA$5","v":0},{"$f":"'Population at Risk'!AB233/'Population at Risk'!AB$5","v":0},{"$f":"'Population at Risk'!AC233/'Population at Risk'!AC$5","v":0},{"$f":"'Population at Risk'!AD233/'Population at Risk'!AD$5","v":0},{"$f":"'Population at Risk'!AE233/'Population at Risk'!AE$5","v":0},{"$f":"'Population at Risk'!AF233/'Population at Risk'!AF$5","v":0},{"$f":"'Population at Risk'!AG233/'Population at Risk'!AG$5","v":0},{"$f":"'Population at Risk'!AH233/'Population at Risk'!AH$5","v":0},{"$f":"'Population at Risk'!AI233/'Population at Risk'!AI$5","v":0},{"$f":"'Population at Risk'!AJ233/'Population at Risk'!AJ$5","v":0},{"$f":"'Population at Risk'!AK233/'Population at Risk'!AK$5","v":0},{"$f":"'Population at Risk'!AL233/'Population at Risk'!AL$5","v":0},{"$f":"'Population at Risk'!AM233/'Population at Risk'!AM$5","v":0},{"$f":"'Population at Risk'!AN233/'Population at Risk'!AN$5","v":0},{"$f":"'Population at Risk'!AO233/'Population at Risk'!AO$5","v":0},{"$f":"'Population at Risk'!AP233/'Population at Risk'!AP$5","v":0},{"$f":"'Population at Risk'!AQ233/'Population at Risk'!AQ$5","v":0},{"$f":"'Population at Risk'!AR233/'Population at Risk'!AR$5","v":0},{"$f":"'Population at Risk'!AS233/'Population at Risk'!AS$5","v":0},{"$f":"'Population at Risk'!AT233/'Population at Risk'!AT$5","v":0},{"$f":"'Population at Risk'!AU233/'Population at Risk'!AU$5","v":0},{"$f":"'Population at Risk'!AV233/'Population at Risk'!AV$5","v":0},{"$f":"'Population at Risk'!AW233/'Population at Risk'!AW$5","v":0},{"$f":"'Population at Risk'!AX233/'Population at Risk'!AX$5","v":0},{"$f":"'Population at Risk'!AY233/'Population at Risk'!AY$5","v":0},{"$f":"'Population at Risk'!AZ233/'Population at Risk'!AZ$5","v":0},{"$f":"'Population at Risk'!BA233/'Population at Risk'!BA$5","v":0},{"$f":"'Population at Risk'!BB233/'Population at Risk'!BB$5","v":0},{"$f":"'Population at Risk'!BC233/'Population at Risk'!BC$5","v":0},231]
[null,"Male 16-19",{"$f":"'Population at Risk'!C234/'Population at Risk'!C$5","v":6.5352776759909012E-3},{"$f":"'Population at Risk'!D234/'Population at Risk'!D$5","v":7.2121745377858497E-3},{"$f":"'Population at Risk'!E234/'Population at Risk'!E$5","v":7.8916608964080884E-3},{"$f":"'Population at Risk'!F234/'Population at Risk'!F$5","v":3.5326482470796235E-3},{"$f":"'Population at Risk'!G234/'Population at Risk'!G$5","v":3.0186733602531319E-3},{"$f":"'Population at Risk'!H234/'Population at Risk'!H$5","v":2.2029788263929588E-3},{"$f":"'Population at Risk'!I234/'Population at Risk'!I$5","v":2.0975424418297074E-3},{"$f":"'Population at Risk'!J234/'Population at Risk'!J$5","v":6.485872825878561E-3},{"$f":"'Population at Risk'!K234/'Population at Risk'!K$5","v":2.239504380212413E-3},{"$f":"'Population at Risk'!L234/'Population at Risk'!L$5","v":1.4425272717546597E-3},{"$f":"'Population at Risk'!M234/'Population at Risk'!M$5","v":1.4425272717546597E-3},{"$f":"'Population at Risk'!N234/'Population at Risk'!N$5","v":2.9530901909942146E-3},{"$f":"'Population at Risk'!O234/'Population at Risk'!O$5","v":1.9204814485794951E-3},{"$f":"'Population at Risk'!P234/'Population at Risk'!P$5","v":1.286156888444576E-2},{"$f":"'Population at Risk'!Q234/'Population at Risk'!Q$5","v":2.8551589393399309E-3},{"$f":"'Population at Risk'!R234/'Population at Risk'!R$5","v":1.5594786112904905E-2},{"$f":"'Population at Risk'!S234/'Population at Risk'!S$5","v":5.2328844187520106E-3},{"$f":"'Population at Risk'!T234/'Population at Risk'!T$5","v":7.909271308117808E-3},{"$f":"'Population at Risk'!U234/'Population at Risk'!U$5","v":0},{"$f":"'Population at Risk'!V234/'Population at Risk'!V$5","v":3.4353502784559365E-3},{"$f":"'Population at Risk'!W234/'Population at Risk'!W$5","v":4.5129489485681859E-3},{"$f":"'Population at Risk'!X234/'Population at Risk'!X$5","v":4.5129489485681859E-3},{"$f":"'Population at Risk'!Y234/'Population at Risk'!Y$5","v":4.8758839149060018E-3},{"$f":"'Population at Risk'!Z234/'Population at Risk'!Z$5","v":1.363415926718862E-3},{"$f":"'Population at Risk'!AA234/'Population at Risk'!AA$5","v":2.8401694531302139E-3},{"$f":"'Population at Risk'!AB234/'Population at Risk'!AB$5","v":6.928031863353985E-3},{"$f":"'Population at Risk'!AC234/'Population at Risk'!AC$5","v":3.2446484769891736E-3},{"$f":"'Population at Risk'!AD234/'Population at Risk'!AD$5","v":2.0710801160056178E-3},{"$f":"'Population at Risk'!AE234/'Population at Risk'!AE$5","v":1.709101012729405E-3},{"$f":"'Population at Risk'!AF234/'Population at Risk'!AF$5","v":1.7638839240789765E-3},{"$f":"'Population at Risk'!AG234/'Population at Risk'!AG$5","v":1.709101012729405E-3},{"$f":"'Population at Risk'!AH234/'Population at Risk'!AH$5","v":2.1042041044553035E-3},{"$f":"'Population at Risk'!AI234/'Population at Risk'!AI$5","v":5.9477446678813514E-3},{"$f":"'Population at Risk'!AJ234/'Population at Risk'!AJ$5","v":3.0673731058415248E-3},{"$f":"'Population at Risk'!AK234/'Population at Risk'!AK$5","v":5.4836833981281819E-3},{"$f":"'Population at Risk'!AL234/'Population at Risk'!AL$5","v":1.5713256533420889E-3},{"$f":"'Population at Risk'!AM234/'Population at Risk'!AM$5","v":1.6837181677966818E-3},{"$f":"'Population at Risk'!AN234/'Population at Risk'!AN$5","v":1.1731793200164908E-3},{"$f":"'Population at Risk'!AO234/'Population at Risk'!AO$5","v":1.1731793200164908E-3},{"$f":"'Population at Risk'!AP234/'Population at Risk'!AP$5","v":3.3028988654865126E-3},{"$f":"'Population at Risk'!AQ234/'Population at Risk'!AQ$5","v":3.4292123373945373E-3},{"$f":"'Population at Risk'!AR234/'Population at Risk'!AR$5","v":3.7838748491553571E-3},{"$f":"'Population at Risk'!AS234/'Population at Risk'!AS$5","v":2.0975424418297074E-3},{"$f":"'Population at Risk'!AT234/'Population at Risk'!AT$5","v":0},{"$f":"'Population at Risk'!AU234/'Population at Risk'!AU$5","v":0},{"$f":"'Population at Risk'!AV234/'Population at Risk'!AV$5","v":3.3702077616972895E-3},{"$f":"'Population at Risk'!AW234/'Population at Risk'!AW$5","v":2.5839596711388908E-3},{"$f":"'Population at Risk'!AX234/'Population at Risk'!AX$5","v":9.0904333137908598E-3},{"$f":"'Population at Risk'!AY234/'Population at Risk'!AY$5","v":3.8366808747074886E-3},{"$f":"'Population at Risk'!AZ234/'Population at Risk'!AZ$5","v":3.2227998986129776E-3},{"$f":"'Population at Risk'!BA234/'Population at Risk'!BA$5","v":7.9543888937119375E-4},{"$f":"'Population at Risk'!BB234/'Population at Risk'!BB$5","v":3.7435180965891494E-3},{"$f":"'Population at Risk'!BC234/'Population at Risk'!BC$5","v":0},232]
[null,"Male 20-24",{"$f":"'Population at Risk'!C235/'Population at Risk'!C$5","v":1.0877868079349831E-2},{"$f":"'Population at Risk'!D235/'Population at Risk'!D$5","v":9.7019643608847791E-3},{"$f":"'Population at Risk'!E235/'Population at Risk'!E$5","v":8.5215621743073289E-3},{"$f":"'Population at Risk'!F235/'Population at Risk'!F$5","v":3.6871577131546763E-3},{"$f":"'Population at Risk'!G235/'Population at Risk'!G$5","v":7.9958907459085939E-3},{"$f":"'Population at Risk'!H235/'Population at Risk'!H$5","v":2.4070643107427826E-3},{"$f":"'Population at Risk'!I235/'Population at Risk'!I$5","v":1.7240074864353758E-3},{"$f":"'Population at Risk'!J235/'Population at Risk'!J$5","v":7.3481251497202757E-3},{"$f":"'Population at Risk'!K235/'Population at Risk'!K$5","v":2.3393548939798455E-3},{"$f":"'Population at Risk'!L235/'Population at Risk'!L$5","v":1.584249249330556E-3},{"$f":"'Population at Risk'!M235/'Population at Risk'!M$5","v":1.584249249330556E-3},{"$f":"'Population at Risk'!N235/'Population at Risk'!N$5","v":3.7470814215917153E-3},{"$f":"'Population at Risk'!O235/'Population at Risk'!O$5","v":2.1776887854428203E-3},{"$f":"'Population at Risk'!P235/'Population at Risk'!P$5","v":1.5278626411426648E-2},{"$f":"'Population at Risk'!Q235/'Population at Risk'!Q$5","v":3.6250894398360922E-3},{"$f":"'Population at Risk'!R235/'Population at Risk'!R$5","v":1.7094885779076117E-2},{"$f":"'Population at Risk'!S235/'Population at Risk'!S$5","v":8.5091807320597894E-3},{"$f":"'Population at Risk'!T235/'Population at Risk'!T$5","v":1.4440654203220752E-2},{"$f":"'Population at Risk'!U235/'Population at Risk'!U$5","v":0},{"$f":"'Population at Risk'!V235/'Population at Risk'!V$5","v":4.0370217961516091E-3},{"$f":"'Population at Risk'!W235/'Population at Risk'!W$5","v":7.4028924037063447E-3},{"$f":"'Population at Risk'!X235/'Population at Risk'!X$5","v":7.4028924037063447E-3},{"$f":"'Population at Risk'!Y235/'Population at Risk'!Y$5","v":5.6006082573001187E-3},{"$f":"'Population at Risk'!Z235/'Population at Risk'!Z$5","v":3.2552073265582557E-3},{"$f":"'Population at Risk'!AA235/'Population at Risk'!AA$5","v":3.8830471951441263E-3},{"$f":"'Population at Risk'!AB235/'Population at Risk'!AB$5","v":9.2816523391207311E-3},{"$f":"'Population at Risk'!AC235/'Population at Risk'!AC$5","v":4.6749302710008371E-3},{"$f":"'Population at Risk'!AD235/'Population at Risk'!AD$5","v":3.4071006224936544E-3},{"$f":"'Population at Risk'!AE235/'Population at Risk'!AE$5","v":1.6541901368184199E-3},{"$f":"'Population at Risk'!AF235/'Population at Risk'!AF$5","v":1.6090063112330175E-3},{"$f":"'Population at Risk'!AG235/'Population at Risk'!AG$5","v":1.6541901368184199E-3},{"$f":"'Population at Risk'!AH235/'Population at Risk'!AH$5","v":2.4421850746009733E-3},{"$f":"'Population at Risk'!AI235/'Population at Risk'!AI$5","v":9.8573043430603725E-3},{"$f":"'Population at Risk'!AJ235/'Population at Risk'!AJ$5","v":3.4442218017020549E-3},{"$f":"'Population at Risk'!AK235/'Population at Risk'!AK$5","v":7.1451305204087399E-3},{"$f":"'Population at Risk'!AL235/'Population at Risk'!AL$5","v":1.65666921917856E-3},{"$f":"'Population at Risk'!AM235/'Population at Risk'!AM$5","v":1.8923928374385548E-3},{"$f":"'Population at Risk'!AN235/'Population at Risk'!AN$5","v":1.8379809346925021E-3},{"$f":"'Population at Risk'!AO235/'Population at Risk'!AO$5","v":1.8379809346925021E-3},{"$f":"'Population at Risk'!AP235/'Population at Risk'!AP$5","v":3.8132426137995326E-3},{"$f":"'Population at Risk'!AQ235/'Population at Risk'!AQ$5","v":3.9739247664391563E-3},{"$f":"'Population at Risk'!AR235/'Population at Risk'!AR$5","v":5.3535634456645213E-3},{"$f":"'Population at Risk'!AS235/'Population at Risk'!AS$5","v":1.7240074864353758E-3},{"$f":"'Population at Risk'!AT235/'Population at Risk'!AT$5","v":0},{"$f":"'Population at Risk'!AU235/'Population at Risk'!AU$5","v":0},{"$f":"'Population at Risk'!AV235/'Population at Risk'!AV$5","v":3.6699297958403296E-3},{"$f":"'Population at Risk'!AW235/'Population at Risk'!AW$5","v":3.0694733220845904E-3},{"$f":"'Population at Risk'!AX235/'Population at Risk'!AX$5","v":1.0420313837078839E-2},{"$f":"'Population at Risk'!AY235/'Population at Risk'!AY$5","v":5.4895564864556696E-3},{"$f":"'Population at Risk'!AZ235/'Population at Risk'!AZ$5","v":3.7527296778601263E-3},{"$f":"'Population at Risk'!BA235/'Population at Risk'!BA$5","v":1.0090289615171623E-3},{"$f":"'Population at Risk'!BB235/'Population at Risk'!BB$5","v":4.0185871645359982E-3},{"$f":"'Population at Risk'!BC235/'Population at Risk'!BC$5","v":0},233]
[null,"Male 25-29",{"$f":"'Population at Risk'!C236/'Population at Risk'!C$5","v":1.5897874062871485E-2},{"$f":"'Population at Risk'!D236/'Population at Risk'!D$5","v":1.2050654186835348E-2},{"$f":"'Population at Risk'!E236/'Population at Risk'!E$5","v":8.1887166126901178E-3},{"$f":"'Population at Risk'!F236/'Population at Risk'!F$5","v":2.8865177525839465E-3},{"$f":"'Population at Risk'!G236/'Population at Risk'!G$5","v":6.2529662462386306E-3},{"$f":"'Population at Risk'!H236/'Population at Risk'!H$5","v":1.6803673991793908E-3},{"$f":"'Population at Risk'!I236/'Population at Risk'!I$5","v":1.192438511451135E-3},{"$f":"'Population at Risk'!J236/'Population at Risk'!J$5","v":3.8394631778612214E-3},{"$f":"'Population at Risk'!K236/'Population at Risk'!K$5","v":1.6404012976078185E-3},{"$f":"'Population at Risk'!L236/'Population at Risk'!L$5","v":1.32105129097532E-3},{"$f":"'Population at Risk'!M236/'Population at Risk'!M$5","v":1.32105129097532E-3},{"$f":"'Population at Risk'!N236/'Population at Risk'!N$5","v":3.4824176780592149E-3},{"$f":"'Population at Risk'!O236/'Population at Risk'!O$5","v":1.7490098906706116E-3},{"$f":"'Population at Risk'!P236/'Population at Risk'!P$5","v":1.2358750347811047E-2},{"$f":"'Population at Risk'!Q236/'Population at Risk'!Q$5","v":2.7508975173977427E-3},{"$f":"'Population at Risk'!R236/'Population at Risk'!R$5","v":1.1979962611783994E-2},{"$f":"'Population at Risk'!S236/'Population at Risk'!S$5","v":7.3017262413040719E-3},{"$f":"'Population at Risk'!T236/'Population at Risk'!T$5","v":1.4152928084493751E-2},{"$f":"'Population at Risk'!U236/'Population at Risk'!U$5","v":0},{"$f":"'Population at Risk'!V236/'Population at Risk'!V$5","v":3.964238951269068E-3},{"$f":"'Population at Risk'!W236/'Population at Risk'!W$5","v":4.1237588557558836E-3},{"$f":"'Population at Risk'!X236/'Population at Risk'!X$5","v":4.1237588557558836E-3},{"$f":"'Population at Risk'!Y236/'Population at Risk'!Y$5","v":3.9053166860460362E-3},{"$f":"'Population at Risk'!Z236/'Population at Risk'!Z$5","v":3.4530891213935921E-3},{"$f":"'Population at Risk'!AA236/'Population at Risk'!AA$5","v":3.3529080092705352E-3},{"$f":"'Population at Risk'!AB236/'Population at Risk'!AB$5","v":1.1135296366325738E-2},{"$f":"'Population at Risk'!AC236/'Population at Risk'!AC$5","v":4.1512326220832863E-3},{"$f":"'Population at Risk'!AD236/'Population at Risk'!AD$5","v":2.9476883665451657E-3},{"$f":"'Population at Risk'!AE236/'Population at Risk'!AE$5","v":1.6850775045183491E-3},{"$f":"'Population at Risk'!AF236/'Population at Risk'!AF$5","v":1.703653741305548E-3},{"$f":"'Population at Risk'!AG236/'Population at Risk'!AG$5","v":1.6850775045183491E-3},{"$f":"'Population at Risk'!AH236/'Population at Risk'!AH$5","v":1.9003252611738827E-3},{"$f":"'Population at Risk'!AI236/'Population at Risk'!AI$5","v":9.4762840716160184E-3},{"$f":"'Population at Risk'!AJ236/'Population at Risk'!AJ$5","v":3.2952351079897526E-3},{"$f":"'Population at Risk'!AK236/'Population at Risk'!AK$5","v":6.4823674607011944E-3},{"$f":"'Population at Risk'!AL236/'Population at Risk'!AL$5","v":1.0642844680783478E-3},{"$f":"'Population at Risk'!AM236/'Population at Risk'!AM$5","v":1.5937016436374423E-3},{"$f":"'Population at Risk'!AN236/'Population at Risk'!AN$5","v":1.7597689800247362E-3},{"$f":"'Population at Risk'!AO236/'Population at Risk'!AO$5","v":1.7597689800247362E-3},{"$f":"'Population at Risk'!AP236/'Population at Risk'!AP$5","v":3.0620624898781207E-3},{"$f":"'Population at Risk'!AQ236/'Population at Risk'!AQ$5","v":3.1114634204518423E-3},{"$f":"'Population at Risk'!AR236/'Population at Risk'!AR$5","v":4.8207243404707195E-3},{"$f":"'Population at Risk'!AS236/'Population at Risk'!AS$5","v":1.192438511451135E-3},{"$f":"'Population at Risk'!AT236/'Population at Risk'!AT$5","v":0},{"$f":"'Population at Risk'!AU236/'Population at Risk'!AU$5","v":0},{"$f":"'Population at Risk'!AV236/'Population at Risk'!AV$5","v":2.417757742087186E-3},{"$f":"'Population at Risk'!AW236/'Population at Risk'!AW$5","v":2.2501690361137225E-3},{"$f":"'Population at Risk'!AX236/'Population at Risk'!AX$5","v":5.1882838836169193E-3},{"$f":"'Population at Risk'!AY236/'Population at Risk'!AY$5","v":3.6317952208078336E-3},{"$f":"'Population at Risk'!AZ236/'Population at Risk'!AZ$5","v":3.1852162263259452E-3},{"$f":"'Population at Risk'!BA236/'Population at Risk'!BA$5","v":6.7759609094583174E-4},{"$f":"'Population at Risk'!BB236/'Population at Risk'!BB$5","v":3.5372162956290127E-3},{"$f":"'Population at Risk'!BC236/'Population at Risk'!BC$5","v":0},234]
[null,"Male 30-34",{"$f":"'Population at Risk'!C237/'Population at Risk'!C$5","v":1.3758666967620778E-2},{"$f":"'Population at Risk'!D237/'Population at Risk'!D$5","v":1.1666647865482212E-2},{"$f":"'Population at Risk'!E237/'Population at Risk'!E$5","v":9.5666256580947042E-3},{"$f":"'Population at Risk'!F237/'Population at Risk'!F$5","v":3.2517219451249813E-3},{"$f":"'Population at Risk'!G237/'Population at Risk'!G$5","v":2.9468001850090101E-3},{"$f":"'Population at Risk'!H237/'Population at Risk'!H$5","v":1.5182434162846711E-3},{"$f":"'Population at Risk'!I237/'Population at Risk'!I$5","v":1.3289224374606022E-3},{"$f":"'Population at Risk'!J237/'Population at Risk'!J$5","v":3.1724377952666873E-3},{"$f":"'Population at Risk'!K237/'Population at Risk'!K$5","v":1.6831943749367182E-3},{"$f":"'Population at Risk'!L237/'Population at Risk'!L$5","v":1.5285727581400253E-3},{"$f":"'Population at Risk'!M237/'Population at Risk'!M$5","v":1.5285727581400253E-3},{"$f":"'Population at Risk'!N237/'Population at Risk'!N$5","v":2.4005465860754854E-3},{"$f":"'Population at Risk'!O237/'Population at Risk'!O$5","v":1.8747556998037929E-3},{"$f":"'Population at Risk'!P237/'Population at Risk'!P$5","v":1.0435689979629173E-2},{"$f":"'Population at Risk'!Q237/'Population at Risk'!Q$5","v":2.9915007988027928E-3},{"$f":"'Population at Risk'!R237/'Population at Risk'!R$5","v":9.7610651889057411E-3},{"$f":"'Population at Risk'!S237/'Population at Risk'!S$5","v":6.207107093133428E-3},{"$f":"'Population at Risk'!T237/'Population at Risk'!T$5","v":1.1243697328476287E-2},{"$f":"'Population at Risk'!U237/'Population at Risk'!U$5","v":0},{"$f":"'Population at Risk'!V237/'Population at Risk'!V$5","v":4.7163283483886587E-3},{"$f":"'Population at Risk'!W237/'Population at Risk'!W$5","v":4.0264613325528085E-3},{"$f":"'Population at Risk'!X237/'Population at Risk'!X$5","v":4.0264613325528085E-3},{"$f":"'Population at Risk'!Y237/'Population at Risk'!Y$5","v":3.9872643148679858E-3},{"$f":"'Population at Risk'!Z237/'Population at Risk'!Z$5","v":2.6957509432541634E-3},{"$f":"'Population at Risk'!AA237/'Population at Risk'!AA$5","v":2.8216087814147265E-3},{"$f":"'Population at Risk'!AB237/'Population at Risk'!AB$5","v":1.0580098638370616E-2},{"$f":"'Population at Risk'!AC237/'Population at Risk'!AC$5","v":3.3956459684390851E-3},{"$f":"'Population at Risk'!AD237/'Population at Risk'!AD$5","v":2.1406127817707944E-3},{"$f":"'Population at Risk'!AE237/'Population at Risk'!AE$5","v":1.8326504835291207E-3},{"$f":"'Population at Risk'!AF237/'Population at Risk'!AF$5","v":1.6262149348825687E-3},{"$f":"'Population at Risk'!AG237/'Population at Risk'!AG$5","v":1.8326504835291207E-3},{"$f":"'Population at Risk'!AH237/'Population at Risk'!AH$5","v":1.7771257462498157E-3},{"$f":"'Population at Risk'!AI237/'Population at Risk'!AI$5","v":7.7863042073628352E-3},{"$f":"'Population at Risk'!AJ237/'Population at Risk'!AJ$5","v":3.3478186469470361E-3},{"$f":"'Population at Risk'!AK237/'Population at Risk'!AK$5","v":5.0569729350288034E-3},{"$f":"'Population at Risk'!AL237/'Population at Risk'!AL$5","v":9.8898132175204959E-4},{"$f":"'Population at Risk'!AM237/'Population at Risk'!AM$5","v":1.4116227652244354E-3},{"$f":"'Population at Risk'!AN237/'Population at Risk'!AN$5","v":1.6033450706892042E-3},{"$f":"'Population at Risk'!AO237/'Population at Risk'!AO$5","v":1.6033450706892042E-3},{"$f":"'Population at Risk'!AP237/'Population at Risk'!AP$5","v":3.2570252701325329E-3},{"$f":"'Population at Risk'!AQ237/'Population at Risk'!AQ$5","v":2.7730814569544271E-3},{"$f":"'Population at Risk'!AR237/'Population at Risk'!AR$5","v":4.2418999126592411E-3},{"$f":"'Population at Risk'!AS237/'Population at Risk'!AS$5","v":1.3289224374606022E-3},{"$f":"'Population at Risk'!AT237/'Population at Risk'!AT$5","v":0},{"$f":"'Population at Risk'!AU237/'Population at Risk'!AU$5","v":0},{"$f":"'Population at Risk'!AV237/'Population at Risk'!AV$5","v":1.8049926945058609E-3},{"$f":"'Population at Risk'!AW237/'Population at Risk'!AW$5","v":2.1941482302353728E-3},{"$f":"'Population at Risk'!AX237/'Population at Risk'!AX$5","v":4.0858829235229368E-3},{"$f":"'Population at Risk'!AY237/'Population at Risk'!AY$5","v":3.4406999474591166E-3},{"$f":"'Population at Risk'!AZ237/'Population at Risk'!AZ$5","v":2.9089762350162618E-3},{"$f":"'Population at Risk'!BA237/'Population at Risk'!BA$5","v":6.1867469173315062E-4},{"$f":"'Population at Risk'!BB237/'Population at Risk'!BB$5","v":3.2363595025621463E-3},{"$f":"'Population at Risk'!BC237/'Population at Risk'!BC$5","v":0},235]
[null,"Male 35-39",{"$f":"'Population at Risk'!C238/'Population at Risk'!C$5","v":1.1630155907846329E-2},{"$f":"'Population at Risk'!D238/'Population at Risk'!D$5","v":1.1348726352920082E-2},{"$f":"'Population at Risk'!E238/'Population at Risk'!E$5","v":1.1066220177638917E-2},{"$f":"'Population at Risk'!F238/'Population at Risk'!F$5","v":3.5326482470796235E-3},{"$f":"'Population at Risk'!G238/'Population at Risk'!G$5","v":2.6593074840325212E-3},{"$f":"'Population at Risk'!H238/'Population at Risk'!H$5","v":2.0751869810524148E-3},{"$f":"'Population at Risk'!I238/'Population at Risk'!I$5","v":1.9395084222397978E-3},{"$f":"'Population at Risk'!J238/'Population at Risk'!J$5","v":3.9208077367142141E-3},{"$f":"'Population at Risk'!K238/'Population at Risk'!K$5","v":2.1396538664449805E-3},{"$f":"'Population at Risk'!L238/'Population at Risk'!L$5","v":1.6348642413219476E-3},{"$f":"'Population at Risk'!M238/'Population at Risk'!M$5","v":1.6348642413219476E-3},{"$f":"'Population at Risk'!N238/'Population at Risk'!N$5","v":2.6141348703297841E-3},{"$f":"'Population at Risk'!O238/'Population at Risk'!O$5","v":2.1948359412337086E-3},{"$f":"'Population at Risk'!P238/'Population at Risk'!P$5","v":1.2402857236989532E-2},{"$f":"'Population at Risk'!Q238/'Population at Risk'!Q$5","v":3.6090492210757558E-3},{"$f":"'Population at Risk'!R238/'Population at Risk'!R$5","v":1.4730145333097884E-2},{"$f":"'Population at Risk'!S238/'Population at Risk'!S$5","v":6.3059834242646766E-3},{"$f":"'Population at Risk'!T238/'Population at Risk'!T$5","v":1.0596313561340533E-2},{"$f":"'Population at Risk'!U238/'Population at Risk'!U$5","v":0},{"$f":"'Population at Risk'!V238/'Population at Risk'!V$5","v":5.1675819866604132E-3},{"$f":"'Population at Risk'!W238/'Population at Risk'!W$5","v":4.3804587042065518E-3},{"$f":"'Population at Risk'!X238/'Population at Risk'!X$5","v":4.3804587042065518E-3},{"$f":"'Population at Risk'!Y238/'Population at Risk'!Y$5","v":4.5788237604264337E-3},{"$f":"'Population at Risk'!Z238/'Population at Risk'!Z$5","v":2.2865189591706144E-3},{"$f":"'Population at Risk'!AA238/'Population at Risk'!AA$5","v":3.1943689383674193E-3},{"$f":"'Population at Risk'!AB238/'Population at Risk'!AB$5","v":1.0186087347563754E-2},{"$f":"'Population at Risk'!AC238/'Population at Risk'!AC$5","v":3.6568955965032178E-3},{"$f":"'Population at Risk'!AD238/'Population at Risk'!AD$5","v":2.4907594200882909E-3},{"$f":"'Population at Risk'!AE238/'Population at Risk'!AE$5","v":2.4263743293166449E-3},{"$f":"'Population at Risk'!AF238/'Population at Risk'!AF$5","v":1.6090063112330175E-3},{"$f":"'Population at Risk'!AG238/'Population at Risk'!AG$5","v":2.4263743293166449E-3},{"$f":"'Population at Risk'!AH238/'Population at Risk'!AH$5","v":2.3527836566914736E-3},{"$f":"'Population at Risk'!AI238/'Population at Risk'!AI$5","v":7.7079124768742839E-3},{"$f":"'Population at Risk'!AJ238/'Population at Risk'!AJ$5","v":3.7772508817648493E-3},{"$f":"'Population at Risk'!AK238/'Population at Risk'!AK$5","v":4.2761835770171747E-3},{"$f":"'Population at Risk'!AL238/'Population at Risk'!AL$5","v":1.4106789411793194E-3},{"$f":"'Population at Risk'!AM238/'Population at Risk'!AM$5","v":1.8739803665878013E-3},{"$f":"'Population at Risk'!AN238/'Population at Risk'!AN$5","v":2.3854646173668646E-3},{"$f":"'Population at Risk'!AO238/'Population at Risk'!AO$5","v":2.3854646173668646E-3},{"$f":"'Population at Risk'!AP238/'Population at Risk'!AP$5","v":3.7731032178648007E-3},{"$f":"'Population at Risk'!AQ238/'Population at Risk'!AQ$5","v":3.3095406673771589E-3},{"$f":"'Population at Risk'!AR238/'Population at Risk'!AR$5","v":4.4881393619055718E-3},{"$f":"'Population at Risk'!AS238/'Population at Risk'!AS$5","v":1.9395084222397978E-3},{"$f":"'Population at Risk'!AT238/'Population at Risk'!AT$5","v":0},{"$f":"'Population at Risk'!AU238/'Population at Risk'!AU$5","v":0},{"$f":"'Population at Risk'!AV238/'Population at Risk'!AV$5","v":2.8173871209445723E-3},{"$f":"'Population at Risk'!AW238/'Population at Risk'!AW$5","v":2.8990767042046091E-3},{"$f":"'Population at Risk'!AX238/'Population at Risk'!AX$5","v":5.0132996042369224E-3},{"$f":"'Population at Risk'!AY238/'Population at Risk'!AY$5","v":3.7825043796859449E-3},{"$f":"'Population at Risk'!AZ238/'Population at Risk'!AZ$5","v":3.239712551142142E-3},{"$f":"'Population at Risk'!BA238/'Population at Risk'!BA$5","v":6.4077021643790604E-4},{"$f":"'Population at Risk'!BB238/'Population at Risk'!BB$5","v":4.0658646605893634E-3},{"$f":"'Population at Risk'!BC238/'Population at Risk'!BC$5","v":0},236]
[null,"Male 40-44",{"$f":"'Population at Risk'!C239/'Population at Risk'!C$5","v":1.0549856324744724E-2},{"$f":"'Population at Risk'!D239/'Population at Risk'!D$5","v":1.142552761719071E-2},{"$f":"'Population at Risk'!E239/'Population at Risk'!E$5","v":1.2304548826236286E-2},{"$f":"'Population at Risk'!F239/'Population at Risk'!F$5","v":4.5931450369583963E-3},{"$f":"'Population at Risk'!G239/'Population at Risk'!G$5","v":3.081562388591739E-3},{"$f":"'Population at Risk'!H239/'Population at Risk'!H$5","v":2.7084241848294383E-3},{"$f":"'Population at Risk'!I239/'Population at Risk'!I$5","v":2.6937616975552751E-3},{"$f":"'Population at Risk'!J239/'Population at Risk'!J$5","v":5.488046237281859E-3},{"$f":"'Population at Risk'!K239/'Population at Risk'!K$5","v":3.0240441312422398E-3},{"$f":"'Population at Risk'!L239/'Population at Risk'!L$5","v":1.7765862188978442E-3},{"$f":"'Population at Risk'!M239/'Population at Risk'!M$5","v":1.7765862188978442E-3},{"$f":"'Population at Risk'!N239/'Population at Risk'!N$5","v":2.6280645410420209E-3},{"$f":"'Population at Risk'!O239/'Population at Risk'!O$5","v":2.7549763637360609E-3},{"$f":"'Population at Risk'!P239/'Population at Risk'!P$5","v":1.5305090544933739E-2},{"$f":"'Population at Risk'!Q239/'Population at Risk'!Q$5","v":4.9002868312828596E-3},{"$f":"'Population at Risk'!R239/'Population at Risk'!R$5","v":1.7980361276468848E-2},{"$f":"'Population at Risk'!S239/'Population at Risk'!S$5","v":6.875394766485219E-3},{"$f":"'Population at Risk'!T239/'Population at Risk'!T$5","v":1.0474829200100242E-2},{"$f":"'Population at Risk'!U239/'Population at Risk'!U$5","v":0},{"$f":"'Population at Risk'!V239/'Population at Risk'!V$5","v":5.895410435485823E-3},{"$f":"'Population at Risk'!W239/'Population at Risk'!W$5","v":5.3410129758284033E-3},{"$f":"'Population at Risk'!X239/'Population at Risk'!X$5","v":5.3410129758284033E-3},{"$f":"'Population at Risk'!Y239/'Population at Risk'!Y$5","v":5.7030427933275549E-3},{"$f":"'Population at Risk'!Z239/'Population at Risk'!Z$5","v":2.0658444968673336E-3},{"$f":"'Population at Risk'!AA239/'Population at Risk'!AA$5","v":3.5965168255362992E-3},{"$f":"'Population at Risk'!AB239/'Population at Risk'!AB$5","v":1.0408464932147929E-2},{"$f":"'Population at Risk'!AC239/'Population at Risk'!AC$5","v":4.0349885215226399E-3},{"$f":"'Population at Risk'!AD239/'Population at Risk'!AD$5","v":2.5751919428031486E-3},{"$f":"'Population at Risk'!AE239/'Population at Risk'!AE$5","v":2.3817592426389699E-3},{"$f":"'Population at Risk'!AF239/'Population at Risk'!AF$5","v":2.1080563970699963E-3},{"$f":"'Population at Risk'!AG239/'Population at Risk'!AG$5","v":2.3817592426389699E-3},{"$f":"'Population at Risk'!AH239/'Population at Risk'!AH$5","v":2.798700485044955E-3},{"$f":"'Population at Risk'!AI239/'Population at Risk'!AI$5","v":8.0816404943197025E-3},{"$f":"'Population at Risk'!AJ239/'Population at Risk'!AJ$5","v":4.1540995776253795E-3},{"$f":"'Population at Risk'!AK239/'Population at Risk'!AK$5","v":5.2385518554966242E-3},{"$f":"'Population at Risk'!AL239/'Population at Risk'!AL$5","v":1.7671138337904642E-3},{"$f":"'Population at Risk'!AM239/'Population at Risk'!AM$5","v":2.19926735161778E-3},{"$f":"'Population at Risk'!AN239/'Population at Risk'!AN$5","v":1.7988749573586192E-3},{"$f":"'Population at Risk'!AO239/'Population at Risk'!AO$5","v":1.7988749573586192E-3},{"$f":"'Population at Risk'!AP239/'Population at Risk'!AP$5","v":4.1056867841811513E-3},{"$f":"'Population at Risk'!AQ239/'Population at Risk'!AQ$5","v":3.8790127522874431E-3},{"$f":"'Population at Risk'!AR239/'Population at Risk'!AR$5","v":4.9378673794325664E-3},{"$f":"'Population at Risk'!AS239/'Population at Risk'!AS$5","v":2.6937616975552751E-3},{"$f":"'Population at Risk'!AT239/'Population at Risk'!AT$5","v":0},{"$f":"'Population at Risk'!AU239/'Population at Risk'!AU$5","v":0},{"$f":"'Population at Risk'!AV239/'Population at Risk'!AV$5","v":3.9030469335071378E-3},{"$f":"'Population at Risk'!AW239/'Population at Risk'!AW$5","v":3.4826267654374209E-3},{"$f":"'Population at Risk'!AX239/'Population at Risk'!AX$5","v":6.9993711751998918E-3},{"$f":"'Population at Risk'!AY239/'Population at Risk'!AY$5","v":4.4483827548598255E-3},{"$f":"'Population at Risk'!AZ239/'Population at Risk'!AZ$5","v":3.6380994773846792E-3},{"$f":"'Population at Risk'!BA239/'Population at Risk'!BA$5","v":6.9232644074900191E-4},{"$f":"'Population at Risk'!BB239/'Population at Risk'!BB$5","v":5.2778877412301669E-3},{"$f":"'Population at Risk'!BC239/'Population at Risk'!BC$5","v":0},237]
[null,"Male 45-49",{"$f":"'Population at Risk'!C240/'Population at Risk'!C$5","v":1.0642555298872255E-2},{"$f":"'Population at Risk'!D240/'Population at Risk'!D$5","v":1.1732732674273218E-2},{"$f":"'Population at Risk'!E240/'Population at Risk'!E$5","v":1.2827080568129973E-2},{"$f":"'Population at Risk'!F240/'Population at Risk'!F$5","v":5.0707197502812881E-3},{"$f":"'Population at Risk'!G240/'Population at Risk'!G$5","v":2.6054026025994293E-3},{"$f":"'Population at Risk'!H240/'Population at Risk'!H$5","v":3.343568729581694E-3},{"$f":"'Population at Risk'!I240/'Population at Risk'!I$5","v":3.598865627933847E-3},{"$f":"'Population at Risk'!J240/'Population at Risk'!J$5","v":7.0335928554887076E-3},{"$f":"'Population at Risk'!K240/'Population at Risk'!K$5","v":4.2935720919995953E-3},{"$f":"'Population at Risk'!L240/'Population at Risk'!L$5","v":2.3991506203919601E-3},{"$f":"'Population at Risk'!M240/'Population at Risk'!M$5","v":2.3991506203919601E-3},{"$f":"'Population at Risk'!N240/'Population at Risk'!N$5","v":3.6356440558938203E-3},{"$f":"'Population at Risk'!O240/'Population at Risk'!O$5","v":3.3208325048353768E-3},{"$f":"'Population at Risk'!P240/'Population at Risk'!P$5","v":1.8075003185342498E-2},{"$f":"'Population at Risk'!Q240/'Population at Risk'!Q$5","v":5.4296140503739708E-3},{"$f":"'Population at Risk'!R240/'Population at Risk'!R$5","v":2.072012663898988E-2},{"$f":"'Population at Risk'!S240/'Population at Risk'!S$5","v":7.5215806717017896E-3},{"$f":"'Population at Risk'!T240/'Population at Risk'!T$5","v":1.0973554472560378E-2},{"$f":"'Population at Risk'!U240/'Population at Risk'!U$5","v":0},{"$f":"'Population at Risk'!V240/'Population at Risk'!V$5","v":6.3951859703459384E-3},{"$f":"'Population at Risk'!W240/'Population at Risk'!W$5","v":5.8689037932067919E-3},{"$f":"'Population at Risk'!X240/'Population at Risk'!X$5","v":5.8689037932067919E-3},{"$f":"'Population at Risk'!Y240/'Population at Risk'!Y$5","v":6.6966577927936944E-3},{"$f":"'Population at Risk'!Z240/'Population at Risk'!Z$5","v":2.139402650968427E-3},{"$f":"'Population at Risk'!AA240/'Population at Risk'!AA$5","v":4.1606839095549488E-3},{"$f":"'Population at Risk'!AB240/'Population at Risk'!AB$5","v":1.0799491288933528E-2},{"$f":"'Population at Risk'!AC240/'Population at Risk'!AC$5","v":4.652160808004421E-3},{"$f":"'Population at Risk'!AD240/'Population at Risk'!AD$5","v":2.8433893678974009E-3},{"$f":"'Population at Risk'!AE240/'Population at Risk'!AE$5","v":2.9342999314932554E-3},{"$f":"'Population at Risk'!AF240/'Population at Risk'!AF$5","v":2.4866461173601181E-3},{"$f":"'Population at Risk'!AG240/'Population at Risk'!AG$5","v":2.9342999314932554E-3},{"$f":"'Population at Risk'!AH240/'Population at Risk'!AH$5","v":3.2664225372788023E-3},{"$f":"'Population at Risk'!AI240/'Population at Risk'!AI$5","v":8.7470586717225216E-3},{"$f":"'Population at Risk'!AJ240/'Population at Risk'!AJ$5","v":5.0830754325373838E-3},{"$f":"'Population at Risk'!AK240/'Population at Risk'!AK$5","v":6.0556569976018158E-3},{"$f":"'Population at Risk'!AL240/'Population at Risk'!AL$5","v":2.3745592141559361E-3},{"$f":"'Population at Risk'!AM240/'Population at Risk'!AM$5","v":2.5470584676875684E-3},{"$f":"'Population at Risk'!AN240/'Population at Risk'!AN$5","v":2.659206458704046E-3},{"$f":"'Population at Risk'!AO240/'Population at Risk'!AO$5","v":2.659206458704046E-3},{"$f":"'Population at Risk'!AP240/'Population at Risk'!AP$5","v":4.9944876941645008E-3},{"$f":"'Population at Risk'!AQ240/'Population at Risk'!AQ$5","v":4.9808174383095148E-3},{"$f":"'Population at Risk'!AR240/'Population at Risk'!AR$5","v":5.5349734339727842E-3},{"$f":"'Population at Risk'!AS240/'Population at Risk'!AS$5","v":3.598865627933847E-3},{"$f":"'Population at Risk'!AT240/'Population at Risk'!AT$5","v":0},{"$f":"'Population at Risk'!AU240/'Population at Risk'!AU$5","v":0},{"$f":"'Population at Risk'!AV240/'Population at Risk'!AV$5","v":4.655682263688548E-3},{"$f":"'Population at Risk'!AW240/'Population at Risk'!AW$5","v":4.0871846288746145E-3},{"$f":"'Population at Risk'!AX240/'Population at Risk'!AX$5","v":8.714217113123866E-3},{"$f":"'Population at Risk'!AY240/'Population at Risk'!AY$5","v":5.1329766464956929E-3},{"$f":"'Population at Risk'!AZ240/'Population at Risk'!AZ$5","v":4.464940267699378E-3},{"$f":"'Population at Risk'!BA240/'Population at Risk'!BA$5","v":1.2152538587615459E-3},{"$f":"'Population at Risk'!BB240/'Population at Risk'!BB$5","v":6.3351844711508681E-3},{"$f":"'Population at Risk'!BC240/'Population at Risk'!BC$5","v":0},238]
[null,"Male 50-54",{"$f":"'Population at Risk'!C241/'Population at Risk'!C$5","v":1.0870737389032329E-2},{"$f":"'Population at Risk'!D241/'Population at Risk'!D$5","v":1.1675578245048564E-2},{"$f":"'Population at Risk'!E241/'Population at Risk'!E$5","v":1.2483498052912207E-2},{"$f":"'Population at Risk'!F241/'Population at Risk'!F$5","v":5.9767070740850085E-3},{"$f":"'Population at Risk'!G241/'Population at Risk'!G$5","v":2.8569587159538571E-3},{"$f":"'Population at Risk'!H241/'Population at Risk'!H$5","v":3.6430212626931179E-3},{"$f":"'Population at Risk'!I241/'Population at Risk'!I$5","v":2.9739129141010236E-3},{"$f":"'Population at Risk'!J241/'Population at Risk'!J$5","v":6.778713237749332E-3},{"$f":"'Population at Risk'!K241/'Population at Risk'!K$5","v":4.1223997826839963E-3},{"$f":"'Population at Risk'!L241/'Population at Risk'!L$5","v":2.7939475579248146E-3},{"$f":"'Population at Risk'!M241/'Population at Risk'!M$5","v":2.7939475579248146E-3},{"$f":"'Population at Risk'!N241/'Population at Risk'!N$5","v":3.5892118201863638E-3},{"$f":"'Population at Risk'!O241/'Population at Risk'!O$5","v":3.035046574987238E-3},{"$f":"'Population at Risk'!P241/'Population at Risk'!P$5","v":2.0174491110238304E-2},{"$f":"'Population at Risk'!Q241/'Population at Risk'!Q$5","v":6.2637054259114776E-3},{"$f":"'Population at Risk'!R241/'Population at Risk'!R$5","v":2.0240928134518523E-2},{"$f":"'Population at Risk'!S241/'Population at Risk'!S$5","v":7.3331340170751753E-3},{"$f":"'Population at Risk'!T241/'Population at Risk'!T$5","v":1.0876047287880672E-2},{"$f":"'Population at Risk'!U241/'Population at Risk'!U$5","v":0},{"$f":"'Population at Risk'!V241/'Population at Risk'!V$5","v":6.2108027633101682E-3},{"$f":"'Population at Risk'!W241/'Population at Risk'!W$5","v":5.4983451410078451E-3},{"$f":"'Population at Risk'!X241/'Population at Risk'!X$5","v":5.4983451410078451E-3},{"$f":"'Population at Risk'!Y241/'Population at Risk'!Y$5","v":6.4789844037353907E-3},{"$f":"'Population at Risk'!Z241/'Population at Risk'!Z$5","v":2.1041776194270583E-3},{"$f":"'Population at Risk'!AA241/'Population at Risk'!AA$5","v":4.395785751284448E-3},{"$f":"'Population at Risk'!AB241/'Population at Risk'!AB$5","v":1.0639797318795897E-2},{"$f":"'Population at Risk'!AC241/'Population at Risk'!AC$5","v":4.9349815062756852E-3},{"$f":"'Population at Risk'!AD241/'Population at Risk'!AD$5","v":2.9054721051877375E-3},{"$f":"'Population at Risk'!AE241/'Population at Risk'!AE$5","v":2.9240041422599456E-3},{"$f":"'Population at Risk'!AF241/'Population at Risk'!AF$5","v":3.6826454610039121E-3},{"$f":"'Population at Risk'!AG241/'Population at Risk'!AG$5","v":2.9240041422599456E-3},{"$f":"'Population at Risk'!AH241/'Population at Risk'!AH$5","v":3.4146980596652899E-3},{"$f":"'Population at Risk'!AI241/'Population at Risk'!AI$5","v":8.6941898302302419E-3},{"$f":"'Population at Risk'!AJ241/'Population at Risk'!AJ$5","v":4.6886988903577596E-3},{"$f":"'Population at Risk'!AK241/'Population at Risk'!AK$5","v":5.3747360458474896E-3},{"$f":"'Population at Risk'!AL241/'Population at Risk'!AL$5","v":2.6356101214204367E-3},{"$f":"'Population at Risk'!AM241/'Population at Risk'!AM$5","v":2.7516414771403849E-3},{"$f":"'Population at Risk'!AN241/'Population at Risk'!AN$5","v":2.4636765720346307E-3},{"$f":"'Population at Risk'!AO241/'Population at Risk'!AO$5","v":2.4636765720346307E-3},{"$f":"'Population at Risk'!AP241/'Population at Risk'!AP$5","v":6.2502773669796848E-3},{"$f":"'Population at Risk'!AQ241/'Population at Risk'!AQ$5","v":5.657581365304345E-3},{"$f":"'Population at Risk'!AR241/'Population at Risk'!AR$5","v":5.6313035440434507E-3},{"$f":"'Population at Risk'!AS241/'Population at Risk'!AS$5","v":2.9739129141010236E-3},{"$f":"'Population at Risk'!AT241/'Population at Risk'!AT$5","v":0},{"$f":"'Population at Risk'!AU241/'Population at Risk'!AU$5","v":0},{"$f":"'Population at Risk'!AV241/'Population at Risk'!AV$5","v":5.6880581590701288E-3},{"$f":"'Population at Risk'!AW241/'Population at Risk'!AW$5","v":4.1712158376921394E-3},{"$f":"'Population at Risk'!AX241/'Population at Risk'!AX$5","v":8.4079946242088689E-3},{"$f":"'Population at Risk'!AY241/'Population at Risk'!AY$5","v":5.2895959684670637E-3},{"$f":"'Population at Risk'!AZ241/'Population at Risk'!AZ$5","v":5.1001043293502158E-3},{"$f":"'Population at Risk'!BA241/'Population at Risk'!BA$5","v":1.2962707826789824E-3},{"$f":"'Population at Risk'!BB241/'Population at Risk'!BB$5","v":6.0944990366973758E-3},{"$f":"'Population at Risk'!BC241/'Population at Risk'!BC$5","v":0},239]
[null,"Male 55-59",{"$f":"'Population at Risk'!C242/'Population at Risk'!C$5","v":8.5566780956311921E-3},{"$f":"'Population at Risk'!D242/'Population at Risk'!D$5","v":8.774995812206093E-3},{"$f":"'Population at Risk'!E242/'Population at Risk'!E$5","v":8.9941487121986147E-3},{"$f":"'Population at Risk'!F242/'Population at Risk'!F$5","v":4.3300131275076214E-3},{"$f":"'Population at Risk'!G242/'Population at Risk'!G$5","v":2.0696100579192991E-3},{"$f":"'Population at Risk'!H242/'Population at Risk'!H$5","v":3.0996242964043061E-3},{"$f":"'Population at Risk'!I242/'Population at Risk'!I$5","v":2.1000629855436998E-3},{"$f":"'Population at Risk'!J242/'Population at Risk'!J$5","v":4.8379997846135772E-3},{"$f":"'Population at Risk'!K242/'Population at Risk'!K$5","v":2.8797069471750737E-3},{"$f":"'Population at Risk'!L242/'Population at Risk'!L$5","v":2.09876280625651E-3},{"$f":"'Population at Risk'!M242/'Population at Risk'!M$5","v":2.09876280625651E-3},{"$f":"'Population at Risk'!N242/'Population at Risk'!N$5","v":3.1699775890944152E-3},{"$f":"'Population at Risk'!O242/'Population at Risk'!O$5","v":2.590282263399901E-3},{"$f":"'Population at Risk'!P242/'Population at Risk'!P$5","v":1.5407120213456693E-2},{"$f":"'Population at Risk'!Q242/'Population at Risk'!Q$5","v":3.9906691532190447E-3},{"$f":"'Population at Risk'!R242/'Population at Risk'!R$5","v":1.7086349969684771E-2},{"$f":"'Population at Risk'!S242/'Population at Risk'!S$5","v":5.5766854778828874E-3},{"$f":"'Population at Risk'!T242/'Population at Risk'!T$5","v":8.4023254681256654E-3},{"$f":"'Population at Risk'!U242/'Population at Risk'!U$5","v":0},{"$f":"'Population at Risk'!V242/'Population at Risk'!V$5","v":4.3084655121591962E-3},{"$f":"'Population at Risk'!W242/'Population at Risk'!W$5","v":4.4203102286935305E-3},{"$f":"'Population at Risk'!X242/'Population at Risk'!X$5","v":4.4203102286935305E-3},{"$f":"'Population at Risk'!Y242/'Population at Risk'!Y$5","v":4.5585249427207387E-3},{"$f":"'Population at Risk'!Z242/'Population at Risk'!Z$5","v":1.546532891810807E-3},{"$f":"'Population at Risk'!AA242/'Population at Risk'!AA$5","v":3.3988430671956079E-3},{"$f":"'Population at Risk'!AB242/'Population at Risk'!AB$5","v":7.9488490843582869E-3},{"$f":"'Population at Risk'!AC242/'Population at Risk'!AC$5","v":3.8383031239716857E-3},{"$f":"'Population at Risk'!AD242/'Population at Risk'!AD$5","v":2.1779931919867633E-3},{"$f":"'Population at Risk'!AE242/'Population at Risk'!AE$5","v":2.2193953758015707E-3},{"$f":"'Population at Risk'!AF242/'Population at Risk'!AF$5","v":2.7533314257415006E-3},{"$f":"'Population at Risk'!AG242/'Population at Risk'!AG$5","v":2.2193953758015707E-3},{"$f":"'Population at Risk'!AH242/'Population at Risk'!AH$5","v":2.5992283657255023E-3},{"$f":"'Population at Risk'!AI242/'Population at Risk'!AI$5","v":6.5270253816222413E-3},{"$f":"'Population at Risk'!AJ242/'Population at Risk'!AJ$5","v":3.4357646097437728E-3},{"$f":"'Population at Risk'!AK242/'Population at Risk'!AK$5","v":3.7493962538246413E-3},{"$f":"'Population at Risk'!AL242/'Population at Risk'!AL$5","v":1.9512765780252104E-3},{"$f":"'Population at Risk'!AM242/'Population at Risk'!AM$5","v":1.9982374821142105E-3},{"$f":"'Population at Risk'!AN242/'Population at Risk'!AN$5","v":2.3913601734368633E-3},{"$f":"'Population at Risk'!AO242/'Population at Risk'!AO$5","v":2.3913601734368633E-3},{"$f":"'Population at Risk'!AP242/'Population at Risk'!AP$5","v":4.2942695247920057E-3},{"$f":"'Population at Risk'!AQ242/'Population at Risk'!AQ$5","v":4.490363432826423E-3},{"$f":"'Population at Risk'!AR242/'Population at Risk'!AR$5","v":4.2905627978482531E-3},{"$f":"'Population at Risk'!AS242/'Population at Risk'!AS$5","v":2.1000629855436998E-3},{"$f":"'Population at Risk'!AT242/'Population at Risk'!AT$5","v":0},{"$f":"'Population at Risk'!AU242/'Population at Risk'!AU$5","v":0},{"$f":"'Population at Risk'!AV242/'Population at Risk'!AV$5","v":5.2167107389515296E-3},{"$f":"'Population at Risk'!AW242/'Population at Risk'!AW$5","v":3.2849319691082954E-3},{"$f":"'Population at Risk'!AX242/'Population at Risk'!AX$5","v":6.039141940179368E-3},{"$f":"'Population at Risk'!AY242/'Population at Risk'!AY$5","v":4.1207450057068442E-3},{"$f":"'Population at Risk'!AZ242/'Population at Risk'!AZ$5","v":3.8488152805000943E-3},{"$f":"'Population at Risk'!BA242/'Population at Risk'!BA$5","v":8.6992370421927934E-4},{"$f":"'Population at Risk'!BB242/'Population at Risk'!BB$5","v":4.3599841731243308E-3},{"$f":"'Population at Risk'!BC242/'Population at Risk'!BC$5","v":0},240]
[null,"Male 60-64",{"$f":"'Population at Risk'!C243/'Population at Risk'!C$5","v":7.5830386334406986E-3},{"$f":"'Population at Risk'!D243/'Population at Risk'!D$5","v":7.9087174532517322E-3},{"$f":"'Population at Risk'!E243/'Population at Risk'!E$5","v":8.2356421708031976E-3},{"$f":"'Population at Risk'!F243/'Population at Risk'!F$5","v":4.0182051169669912E-3},{"$f":"'Population at Risk'!G243/'Population at Risk'!G$5","v":1.7083690296279305E-3},{"$f":"'Population at Risk'!H243/'Population at Risk'!H$5","v":2.9094927029650729E-3},{"$f":"'Population at Risk'!I243/'Population at Risk'!I$5","v":2.2143930621205776E-3},{"$f":"'Population at Risk'!J243/'Population at Risk'!J$5","v":4.5972354760835128E-3},{"$f":"'Population at Risk'!K243/'Population at Risk'!K$5","v":3.2142787086725921E-3},{"$f":"'Population at Risk'!L243/'Population at Risk'!L$5","v":1.9970046095895279E-3},{"$f":"'Population at Risk'!M243/'Population at Risk'!M$5","v":1.9970046095895279E-3},{"$f":"'Population at Risk'!N243/'Population at Risk'!N$5","v":2.5787670448706715E-3},{"$f":"'Population at Risk'!O243/'Population at Risk'!O$5","v":2.2455496886036111E-3},{"$f":"'Population at Risk'!P243/'Population at Risk'!P$5","v":1.3618859737842055E-2},{"$f":"'Population at Risk'!Q243/'Population at Risk'!Q$5","v":3.372585715346735E-3},{"$f":"'Population at Risk'!R243/'Population at Risk'!R$5","v":1.4459694535121383E-2},{"$f":"'Population at Risk'!S243/'Population at Risk'!S$5","v":4.752801575812299E-3},{"$f":"'Population at Risk'!T243/'Population at Risk'!T$5","v":7.2280084266043571E-3},{"$f":"'Population at Risk'!U243/'Population at Risk'!U$5","v":0},{"$f":"'Population at Risk'!V243/'Population at Risk'!V$5","v":3.5077412613145156E-3},{"$f":"'Population at Risk'!W243/'Population at Risk'!W$5","v":3.8046922878593979E-3},{"$f":"'Population at Risk'!X243/'Population at Risk'!X$5","v":3.8046922878593979E-3},{"$f":"'Population at Risk'!Y243/'Population at Risk'!Y$5","v":4.0222278906359467E-3},{"$f":"'Population at Risk'!Z243/'Population at Risk'!Z$5","v":1.3764316309831312E-3},{"$f":"'Population at Risk'!AA243/'Population at Risk'!AA$5","v":2.9437420942222139E-3},{"$f":"'Population at Risk'!AB243/'Population at Risk'!AB$5","v":7.1937209234661193E-3},{"$f":"'Population at Risk'!AC243/'Population at Risk'!AC$5","v":3.313780204584945E-3},{"$f":"'Population at Risk'!AD243/'Population at Risk'!AD$5","v":1.9554093605229773E-3},{"$f":"'Population at Risk'!AE243/'Population at Risk'!AE$5","v":2.0497783716923834E-3},{"$f":"'Population at Risk'!AF243/'Population at Risk'!AF$5","v":2.2848326229320827E-3},{"$f":"'Population at Risk'!AG243/'Population at Risk'!AG$5","v":2.0497783716923834E-3},{"$f":"'Population at Risk'!AH243/'Population at Risk'!AH$5","v":2.2704433300047787E-3},{"$f":"'Population at Risk'!AI243/'Population at Risk'!AI$5","v":5.4923834312130071E-3},{"$f":"'Population at Risk'!AJ243/'Population at Risk'!AJ$5","v":2.8925026842714671E-3},{"$f":"'Population at Risk'!AK243/'Population at Risk'!AK$5","v":3.5592645979511811E-3},{"$f":"'Population at Risk'!AL243/'Population at Risk'!AL$5","v":1.9933299525516156E-3},{"$f":"'Population at Risk'!AM243/'Population at Risk'!AM$5","v":1.6572003818219913E-3},{"$f":"'Population at Risk'!AN243/'Population at Risk'!AN$5","v":1.7689513611724738E-3},{"$f":"'Population at Risk'!AO243/'Population at Risk'!AO$5","v":1.7689513611724738E-3},{"$f":"'Population at Risk'!AP243/'Population at Risk'!AP$5","v":4.3086798252107705E-3},{"$f":"'Population at Risk'!AQ243/'Population at Risk'!AQ$5","v":3.6641918697428856E-3},{"$f":"'Population at Risk'!AR243/'Population at Risk'!AR$5","v":3.7697627833161809E-3},{"$f":"'Population at Risk'!AS243/'Population at Risk'!AS$5","v":2.2143930621205776E-3},{"$f":"'Population at Risk'!AT243/'Population at Risk'!AT$5","v":0},{"$f":"'Population at Risk'!AU243/'Population at Risk'!AU$5","v":0},{"$f":"'Population at Risk'!AV243/'Population at Risk'!AV$5","v":4.8986866618175853E-3},{"$f":"'Population at Risk'!AW243/'Population at Risk'!AW$5","v":2.970125988735417E-3},{"$f":"'Population at Risk'!AX243/'Population at Risk'!AX$5","v":5.4454884242151344E-3},{"$f":"'Population at Risk'!AY243/'Population at Risk'!AY$5","v":3.6611424890511148E-3},{"$f":"'Population at Risk'!AZ243/'Population at Risk'!AZ$5","v":3.5308354495548924E-3},{"$f":"'Population at Risk'!BA243/'Population at Risk'!BA$5","v":8.5758436089702005E-4},{"$f":"'Population at Risk'!BB243/'Population at Risk'!BB$5","v":3.2366851954077403E-3},{"$f":"'Population at Risk'!BC243/'Population at Risk'!BC$5","v":0},241]
[null,"Male 65-69",{"$f":"'Population at Risk'!C244/'Population at Risk'!C$5","v":6.704971142998963E-3},{"$f":"'Population at Risk'!D244/'Population at Risk'!D$5","v":7.187566902274181E-3},{"$f":"'Population at Risk'!E244/'Population at Risk'!E$5","v":7.6720088515054175E-3},{"$f":"'Population at Risk'!F244/'Population at Risk'!F$5","v":4.7947835583134661E-3},{"$f":"'Population at Risk'!G244/'Population at Risk'!G$5","v":1.8212568509689833E-3},{"$f":"'Population at Risk'!H244/'Population at Risk'!H$5","v":3.2338348329496473E-3},{"$f":"'Population at Risk'!I244/'Population at Risk'!I$5","v":2.4250010979200887E-3},{"$f":"'Population at Risk'!J244/'Population at Risk'!J$5","v":5.087849538748552E-3},{"$f":"'Population at Risk'!K244/'Population at Risk'!K$5","v":3.6444424020265452E-3},{"$f":"'Population at Risk'!L244/'Population at Risk'!L$5","v":2.1708415288956224E-3},{"$f":"'Population at Risk'!M244/'Population at Risk'!M$5","v":2.1708415288956224E-3},{"$f":"'Population at Risk'!N244/'Population at Risk'!N$5","v":2.5554297865460502E-3},{"$f":"'Population at Risk'!O244/'Population at Risk'!O$5","v":2.3556725944413148E-3},{"$f":"'Population at Risk'!P244/'Population at Risk'!P$5","v":1.3611470231744475E-2},{"$f":"'Population at Risk'!Q244/'Population at Risk'!Q$5","v":3.4128955047731903E-3},{"$f":"'Population at Risk'!R244/'Population at Risk'!R$5","v":1.3011107152604695E-2},{"$f":"'Population at Risk'!S244/'Population at Risk'!S$5","v":4.8536554893123651E-3},{"$f":"'Population at Risk'!T244/'Population at Risk'!T$5","v":7.2052451544197937E-3},{"$f":"'Population at Risk'!U244/'Population at Risk'!U$5","v":0},{"$f":"'Population at Risk'!V244/'Population at Risk'!V$5","v":3.4061265086692515E-3},{"$f":"'Population at Risk'!W244/'Population at Risk'!W$5","v":4.1983409429843218E-3},{"$f":"'Population at Risk'!X244/'Population at Risk'!X$5","v":4.1983409429843218E-3},{"$f":"'Population at Risk'!Y244/'Population at Risk'!Y$5","v":4.2002785119280971E-3},{"$f":"'Population at Risk'!Z244/'Population at Risk'!Z$5","v":1.2219519145171809E-3},{"$f":"'Population at Risk'!AA244/'Population at Risk'!AA$5","v":2.7150579042441239E-3},{"$f":"'Population at Risk'!AB244/'Population at Risk'!AB$5","v":6.5923688615635813E-3},{"$f":"'Population at Risk'!AC244/'Population at Risk'!AC$5","v":3.1250523407673229E-3},{"$f":"'Population at Risk'!AD244/'Population at Risk'!AD$5","v":2.0573402739970472E-3},{"$f":"'Population at Risk'!AE244/'Population at Risk'!AE$5","v":2.1475237638908982E-3},{"$f":"'Population at Risk'!AF244/'Population at Risk'!AF$5","v":2.5298935351708552E-3},{"$f":"'Population at Risk'!AG244/'Population at Risk'!AG$5","v":2.1475237638908982E-3},{"$f":"'Population at Risk'!AH244/'Population at Risk'!AH$5","v":1.9690570472607814E-3},{"$f":"'Population at Risk'!AI244/'Population at Risk'!AI$5","v":5.4503868944805285E-3},{"$f":"'Population at Risk'!AJ244/'Population at Risk'!AJ$5","v":3.1274267601513832E-3},{"$f":"'Population at Risk'!AK244/'Population at Risk'!AK$5","v":3.5668698641861192E-3},{"$f":"'Population at Risk'!AL244/'Population at Risk'!AL$5","v":2.1236954135834723E-3},{"$f":"'Population at Risk'!AM244/'Population at Risk'!AM$5","v":1.4429810977188383E-3},{"$f":"'Population at Risk'!AN244/'Population at Risk'!AN$5","v":2.0637765880345527E-3},{"$f":"'Population at Risk'!AO244/'Population at Risk'!AO$5","v":2.0637765880345527E-3},{"$f":"'Population at Risk'!AP244/'Population at Risk'!AP$5","v":5.0580154469865562E-3},{"$f":"'Population at Risk'!AQ244/'Population at Risk'!AQ$5","v":3.5846858197390303E-3},{"$f":"'Population at Risk'!AR244/'Population at Risk'!AR$5","v":3.7328909433368695E-3},{"$f":"'Population at Risk'!AS244/'Population at Risk'!AS$5","v":2.4250010979200887E-3},{"$f":"'Population at Risk'!AT244/'Population at Risk'!AT$5","v":0},{"$f":"'Population at Risk'!AU244/'Population at Risk'!AU$5","v":0},{"$f":"'Population at Risk'!AV244/'Population at Risk'!AV$5","v":5.7300127581852624E-3},{"$f":"'Population at Risk'!AW244/'Population at Risk'!AW$5","v":2.5692860758382736E-3},{"$f":"'Population at Risk'!AX244/'Population at Risk'!AX$5","v":5.9731804384055643E-3},{"$f":"'Population at Risk'!AY244/'Population at Risk'!AY$5","v":4.0811383256359737E-3},{"$f":"'Population at Risk'!AZ244/'Population at Risk'!AZ$5","v":3.9747478868150258E-3},{"$f":"'Population at Risk'!BA244/'Population at Risk'!BA$5","v":5.9845815112957506E-4},{"$f":"'Population at Risk'!BB244/'Population at Risk'!BB$5","v":2.9630610854511352E-3},{"$f":"'Population at Risk'!BC244/'Population at Risk'!BC$5","v":0},242]
[null,"Male 70-74",{"$f":"'Population at Risk'!C245/'Population at Risk'!C$5","v":4.3813775798572287E-3},{"$f":"'Population at Risk'!D245/'Population at Risk'!D$5","v":4.7473251001074052E-3},{"$f":"'Population at Risk'!E245/'Population at Risk'!E$5","v":5.1146725676702778E-3},{"$f":"'Population at Risk'!F245/'Population at Risk'!F$5","v":3.553434686161146E-3},{"$f":"'Population at Risk'!G245/'Population at Risk'!G$5","v":1.5202226607261759E-3},{"$f":"'Population at Risk'!H245/'Population at Risk'!H$5","v":2.4461468029871097E-3},{"$f":"'Population at Risk'!I245/'Population at Risk'!I$5","v":1.5645168373677994E-3},{"$f":"'Population at Risk'!J245/'Population at Risk'!J$5","v":3.4615547754699963E-3},{"$f":"'Population at Risk'!K245/'Population at Risk'!K$5","v":2.3539513219646866E-3},{"$f":"'Population at Risk'!L245/'Population at Risk'!L$5","v":1.5475725743103559E-3},{"$f":"'Population at Risk'!M245/'Population at Risk'!M$5","v":1.5475725743103559E-3},{"$f":"'Population at Risk'!N245/'Population at Risk'!N$5","v":1.9953355867551354E-3},{"$f":"'Population at Risk'!O245/'Population at Risk'!O$5","v":1.5321447768723998E-3},{"$f":"'Population at Risk'!P245/'Population at Risk'!P$5","v":1.0810847420761219E-2},{"$f":"'Population at Risk'!Q245/'Population at Risk'!Q$5","v":2.8552767510405621E-3},{"$f":"'Population at Risk'!R245/'Population at Risk'!R$5","v":9.9655830773135914E-3},{"$f":"'Population at Risk'!S245/'Population at Risk'!S$5","v":3.4821397091061505E-3},{"$f":"'Population at Risk'!T245/'Population at Risk'!T$5","v":5.0253270887451193E-3},{"$f":"'Population at Risk'!U245/'Population at Risk'!U$5","v":0},{"$f":"'Population at Risk'!V245/'Population at Risk'!V$5","v":2.2355245581958095E-3},{"$f":"'Population at Risk'!W245/'Population at Risk'!W$5","v":3.293122449701457E-3},{"$f":"'Population at Risk'!X245/'Population at Risk'!X$5","v":3.293122449701457E-3},{"$f":"'Population at Risk'!Y245/'Population at Risk'!Y$5","v":2.8144869293409928E-3},{"$f":"'Population at Risk'!Z245/'Population at Risk'!Z$5","v":7.3074113069848462E-4},{"$f":"'Population at Risk'!AA245/'Population at Risk'!AA$5","v":1.9648701082253463E-3},{"$f":"'Population at Risk'!AB245/'Population at Risk'!AB$5","v":4.434502626961127E-3},{"$f":"'Population at Risk'!AC245/'Population at Risk'!AC$5","v":2.2848117981324853E-3},{"$f":"'Population at Risk'!AD245/'Population at Risk'!AD$5","v":1.5206428112152089E-3},{"$f":"'Population at Risk'!AE245/'Population at Risk'!AE$5","v":1.5208033080298328E-3},{"$f":"'Population at Risk'!AF245/'Population at Risk'!AF$5","v":2.1406791451445695E-3},{"$f":"'Population at Risk'!AG245/'Population at Risk'!AG$5","v":1.5208033080298328E-3},{"$f":"'Population at Risk'!AH245/'Population at Risk'!AH$5","v":1.3827237335588233E-3},{"$f":"'Population at Risk'!AI245/'Population at Risk'!AI$5","v":3.8087040949382001E-3},{"$f":"'Population at Risk'!AJ245/'Population at Risk'!AJ$5","v":2.0849511734342555E-3},{"$f":"'Population at Risk'!AK245/'Population at Risk'!AK$5","v":2.8443695718669694E-3},{"$f":"'Population at Risk'!AL245/'Population at Risk'!AL$5","v":1.6232602567192481E-3},{"$f":"'Population at Risk'!AM245/'Population at Risk'!AM$5","v":8.6544590777673785E-4},{"$f":"'Population at Risk'!AN245/'Population at Risk'!AN$5","v":1.3430927001494709E-3},{"$f":"'Population at Risk'!AO245/'Population at Risk'!AO$5","v":1.3430927001494709E-3},{"$f":"'Population at Risk'!AP245/'Population at Risk'!AP$5","v":3.8715673791748953E-3},{"$f":"'Population at Risk'!AQ245/'Population at Risk'!AQ$5","v":2.623699650127217E-3},{"$f":"'Population at Risk'!AR245/'Population at Risk'!AR$5","v":2.6697332570324245E-3},{"$f":"'Population at Risk'!AS245/'Population at Risk'!AS$5","v":1.5645168373677994E-3},{"$f":"'Population at Risk'!AT245/'Population at Risk'!AT$5","v":0},{"$f":"'Population at Risk'!AU245/'Population at Risk'!AU$5","v":0},{"$f":"'Population at Risk'!AV245/'Population at Risk'!AV$5","v":4.6029800637807606E-3},{"$f":"'Population at Risk'!AW245/'Population at Risk'!AW$5","v":1.972914498113256E-3},{"$f":"'Population at Risk'!AX245/'Population at Risk'!AX$5","v":4.1409165002443482E-3},{"$f":"'Population at Risk'!AY245/'Population at Risk'!AY$5","v":3.1536819006430833E-3},{"$f":"'Population at Risk'!AZ245/'Population at Risk'!AZ$5","v":3.0271050242951661E-3},{"$f":"'Population at Risk'!BA245/'Population at Risk'!BA$5","v":3.0231391139535238E-4},{"$f":"'Population at Risk'!BB245/'Population at Risk'!BB$5","v":1.8937668662786112E-3},{"$f":"'Population at Risk'!BC245/'Population at Risk'!BC$5","v":0},243]
[null,"Male 75-79",{"$f":"'Population at Risk'!C246/'Population at Risk'!C$5","v":3.32112601826942E-3},{"$f":"'Population at Risk'!D246/'Population at Risk'!D$5","v":3.4830673914434413E-3},{"$f":"'Population at Risk'!E246/'Population at Risk'!E$5","v":3.6456282780111711E-3},{"$f":"'Population at Risk'!F246/'Population at Risk'!F$5","v":2.3356184940496274E-3},{"$f":"'Population at Risk'!G246/'Population at Risk'!G$5","v":9.4825769926484241E-4},{"$f":"'Population at Risk'!H246/'Population at Risk'!H$5","v":1.701597874057003E-3},{"$f":"'Population at Risk'!I246/'Population at Risk'!I$5","v":1.0650749239003864E-3},{"$f":"'Population at Risk'!J246/'Population at Risk'!J$5","v":2.7801463551018874E-3},{"$f":"'Population at Risk'!K246/'Population at Risk'!K$5","v":1.4458279693285638E-3},{"$f":"'Population at Risk'!L246/'Population at Risk'!L$5","v":1.3186166318096457E-3},{"$f":"'Population at Risk'!M246/'Population at Risk'!M$5","v":1.3186166318096457E-3},{"$f":"'Population at Risk'!N246/'Population at Risk'!N$5","v":1.6413871688317097E-3},{"$f":"'Population at Risk'!O246/'Population at Risk'!O$5","v":1.0341977243888698E-3},{"$f":"'Population at Risk'!P246/'Population at Risk'!P$5","v":9.0373659573417444E-3},{"$f":"'Population at Risk'!Q246/'Population at Risk'!Q$5","v":2.1901652255040551E-3},{"$f":"'Population at Risk'!R246/'Population at Risk'!R$5","v":8.2115706442662771E-3},{"$f":"'Population at Risk'!S246/'Population at Risk'!S$5","v":2.4648306685837438E-3},{"$f":"'Population at Risk'!T246/'Population at Risk'!T$5","v":3.7519228624204167E-3},{"$f":"'Population at Risk'!U246/'Population at Risk'!U$5","v":0},{"$f":"'Population at Risk'!V246/'Population at Risk'!V$5","v":1.5038983391499083E-3},{"$f":"'Population at Risk'!W246/'Population at Risk'!W$5","v":2.0878985937022405E-3},{"$f":"'Population at Risk'!X246/'Population at Risk'!X$5","v":2.0878985937022405E-3},{"$f":"'Population at Risk'!Y246/'Population at Risk'!Y$5","v":2.1065748205890663E-3},{"$f":"'Population at Risk'!Z246/'Population at Risk'!Z$5","v":5.0683232818042167E-4},{"$f":"'Population at Risk'!AA246/'Population at Risk'!AA$5","v":1.4566470287981177E-3},{"$f":"'Population at Risk'!AB246/'Population at Risk'!AB$5","v":3.2718052931370932E-3},{"$f":"'Population at Risk'!AC246/'Population at Risk'!AC$5","v":1.7387056390006435E-3},{"$f":"'Population at Risk'!AD246/'Population at Risk'!AD$5","v":1.0130684665688192E-3},{"$f":"'Population at Risk'!AE246/'Population at Risk'!AE$5","v":1.0378260759901128E-3},{"$f":"'Population at Risk'!AF246/'Population at Risk'!AF$5","v":1.441534777875131E-3},{"$f":"'Population at Risk'!AG246/'Population at Risk'!AG$5","v":1.0378260759901128E-3},{"$f":"'Population at Risk'!AH246/'Population at Risk'!AH$5","v":9.4343039416530021E-4},{"$f":"'Population at Risk'!AI246/'Population at Risk'!AI$5","v":2.8084229473100846E-3},{"$f":"'Population at Risk'!AJ246/'Population at Risk'!AJ$5","v":1.3361306815670229E-3},{"$f":"'Population at Risk'!AK246/'Population at Risk'!AK$5","v":2.1979219418972037E-3},{"$f":"'Population at Risk'!AL246/'Population at Risk'!AL$5","v":1.0555397006127753E-3},{"$f":"'Population at Risk'!AM246/'Population at Risk'!AM$5","v":6.1695153821708041E-4},{"$f":"'Population at Risk'!AN246/'Population at Risk'!AN$5","v":7.2068388788508204E-4},{"$f":"'Population at Risk'!AO246/'Population at Risk'!AO$5","v":7.2068388788508204E-4},{"$f":"'Population at Risk'!AP246/'Population at Risk'!AP$5","v":2.9589150193197714E-3},{"$f":"'Population at Risk'!AQ246/'Population at Risk'!AQ$5","v":1.6730838348637325E-3},{"$f":"'Population at Risk'!AR246/'Population at Risk'!AR$5","v":1.9407781586554822E-3},{"$f":"'Population at Risk'!AS246/'Population at Risk'!AS$5","v":1.0650749239003864E-3},{"$f":"'Population at Risk'!AT246/'Population at Risk'!AT$5","v":0},{"$f":"'Population at Risk'!AU246/'Population at Risk'!AU$5","v":0},{"$f":"'Population at Risk'!AV246/'Population at Risk'!AV$5","v":3.3364631250192671E-3},{"$f":"'Population at Risk'!AW246/'Population at Risk'!AW$5","v":1.3159281042915969E-3},{"$f":"'Population at Risk'!AX246/'Population at Risk'!AX$5","v":3.5985663745486283E-3},{"$f":"'Population at Risk'!AY246/'Population at Risk'!AY$5","v":2.1775422647297479E-3},{"$f":"'Population at Risk'!AZ246/'Population at Risk'!AZ$5","v":2.258916125774084E-3},{"$f":"'Population at Risk'!BA246/'Population at Risk'!BA$5","v":1.9742949315614848E-4},{"$f":"'Population at Risk'!BB246/'Population at Risk'!BB$5","v":1.3249167429477736E-3},{"$f":"'Population at Risk'!BC246/'Population at Risk'!BC$5","v":0},244]
[null,"Male 80-84",{"$f":"'Population at Risk'!C247/'Population at Risk'!C$5","v":2.4579916484134285E-3},{"$f":"'Population at Risk'!D247/'Population at Risk'!D$5","v":2.4118147057589465E-3},{"$f":"'Population at Risk'!E247/'Population at Risk'!E$5","v":2.3654611113082353E-3},{"$f":"'Population at Risk'!F247/'Population at Risk'!F$5","v":1.941446103366189E-3},{"$f":"'Population at Risk'!G247/'Population at Risk'!G$5","v":5.7196496146133351E-4},{"$f":"'Population at Risk'!H247/'Population at Risk'!H$5","v":1.2206767847695308E-3},{"$f":"'Population at Risk'!I247/'Population at Risk'!I$5","v":7.822584186838997E-4},{"$f":"'Population at Risk'!J247/'Population at Risk'!J$5","v":1.9351999138454313E-3},{"$f":"'Population at Risk'!K247/'Population at Risk'!K$5","v":9.6786831004639403E-4},{"$f":"'Population at Risk'!L247/'Population at Risk'!L$5","v":8.607047468082254E-4},{"$f":"'Population at Risk'!M247/'Population at Risk'!M$5","v":8.607047468082254E-4},{"$f":"'Population at Risk'!N247/'Population at Risk'!N$5","v":1.2718805786918696E-3},{"$f":"'Population at Risk'!O247/'Population at Risk'!O$5","v":6.4637357774304373E-4},{"$f":"'Population at Risk'!P247/'Population at Risk'!P$5","v":6.7318400548964253E-3},{"$f":"'Population at Risk'!Q247/'Population at Risk'!Q$5","v":1.50489880525432E-3},{"$f":"'Population at Risk'!R247/'Population at Risk'!R$5","v":5.9863309904002833E-3},{"$f":"'Population at Risk'!S247/'Population at Risk'!S$5","v":1.819268178788634E-3},{"$f":"'Population at Risk'!T247/'Population at Risk'!T$5","v":2.9552083359606924E-3},{"$f":"'Population at Risk'!U247/'Population at Risk'!U$5","v":0},{"$f":"'Population at Risk'!V247/'Population at Risk'!V$5","v":1.1015039186746626E-3},{"$f":"'Population at Risk'!W247/'Population at Risk'!W$5","v":1.5121657588939813E-3},{"$f":"'Population at Risk'!X247/'Population at Risk'!X$5","v":1.5121657588939813E-3},{"$f":"'Population at Risk'!Y247/'Population at Risk'!Y$5","v":1.4951961812124026E-3},{"$f":"'Population at Risk'!Z247/'Population at Risk'!Z$5","v":3.3673106735274583E-4},{"$f":"'Population at Risk'!AA247/'Population at Risk'!AA$5","v":1.0112635143223758E-3},{"$f":"'Population at Risk'!AB247/'Population at Risk'!AB$5","v":2.2578832095550591E-3},{"$f":"'Population at Risk'!AC247/'Population at Risk'!AC$5","v":1.2237194999663882E-3},{"$f":"'Population at Risk'!AD247/'Population at Risk'!AD$5","v":7.1767683976641189E-4},{"$f":"'Population at Risk'!AE247/'Population at Risk'!AE$5","v":7.7333854415883739E-4},{"$f":"'Population at Risk'!AF247/'Population at Risk'!AF$5","v":1.0162820184019675E-3},{"$f":"'Population at Risk'!AG247/'Population at Risk'!AG$5","v":7.7333854415883739E-4},{"$f":"'Population at Risk'!AH247/'Population at Risk'!AH$5","v":6.246915678693759E-4},{"$f":"'Population at Risk'!AI247/'Population at Risk'!AI$5","v":2.0860825155114603E-3},{"$f":"'Population at Risk'!AJ247/'Population at Risk'!AJ$5","v":8.295756429509538E-4},{"$f":"'Population at Risk'!AK247/'Population at Risk'!AK$5","v":1.4754216495780537E-3},{"$f":"'Population at Risk'!AL247/'Population at Risk'!AL$5","v":7.9901411600170251E-4},{"$f":"'Population at Risk'!AM247/'Population at Risk'!AM$5","v":3.3589583747374384E-4},{"$f":"'Population at Risk'!AN247/'Population at Risk'!AN$5","v":5.24133736643696E-4},{"$f":"'Population at Risk'!AO247/'Population at Risk'!AO$5","v":5.24133736643696E-4},{"$f":"'Population at Risk'!AP247/'Population at Risk'!AP$5","v":2.3008446335294973E-3},{"$f":"'Population at Risk'!AQ247/'Population at Risk'!AQ$5","v":1.0059243717879054E-3},{"$f":"'Population at Risk'!AR247/'Population at Risk'!AR$5","v":1.3927660194102437E-3},{"$f":"'Population at Risk'!AS247/'Population at Risk'!AS$5","v":7.822584186838997E-4},{"$f":"'Population at Risk'!AT247/'Population at Risk'!AT$5","v":0},{"$f":"'Population at Risk'!AU247/'Population at Risk'!AU$5","v":0},{"$f":"'Population at Risk'!AV247/'Population at Risk'!AV$5","v":2.4493433309087926E-3},{"$f":"'Population at Risk'!AW247/'Population at Risk'!AW$5","v":9.541945243600286E-4},{"$f":"'Population at Risk'!AX247/'Population at Risk'!AX$5","v":2.5285242346624781E-3},{"$f":"'Population at Risk'!AY247/'Population at Risk'!AY$5","v":1.6568794496314263E-3},{"$f":"'Population at Risk'!AZ247/'Population at Risk'!AZ$5","v":1.7882430096720274E-3},{"$f":"'Population at Risk'!BA247/'Population at Risk'!BA$5","v":1.2956310488372244E-4},{"$f":"'Population at Risk'!BB247/'Population at Risk'!BB$5","v":6.7685964041897125E-4},{"$f":"'Population at Risk'!BC247/'Population at Risk'!BC$5","v":0},245]
[null,"Male 85-89",{"$f":"'Population at Risk'!C248/'Population at Risk'!C$5","v":1.3559273491855364E-3},{"$f":"'Population at Risk'!D248/'Population at Risk'!D$5","v":1.31063876069779E-3},{"$f":"'Population at Risk'!E248/'Population at Risk'!E$5","v":1.2651769188492716E-3},{"$f":"'Population at Risk'!F248/'Population at Risk'!F$5","v":8.4717648146888239E-4},{"$f":"'Population at Risk'!G248/'Population at Risk'!G$5","v":3.9134444731564927E-4},{"$f":"'Population at Risk'!H248/'Population at Risk'!H$5","v":6.2791358169427436E-4},{"$f":"'Population at Risk'!I248/'Population at Risk'!I$5","v":4.8138979611316897E-4},{"$f":"'Population at Risk'!J248/'Population at Risk'!J$5","v":8.0406193603436928E-4},{"$f":"'Population at Risk'!K248/'Population at Risk'!K$5","v":4.0626571038984439E-4},{"$f":"'Population at Risk'!L248/'Population at Risk'!L$5","v":4.4519211041804761E-4},{"$f":"'Population at Risk'!M248/'Population at Risk'!M$5","v":4.4519211041804761E-4},{"$f":"'Population at Risk'!N248/'Population at Risk'!N$5","v":7.2734455111736886E-4},{"$f":"'Population at Risk'!O248/'Population at Risk'!O$5","v":3.5909643207946871E-4},{"$f":"'Population at Risk'!P248/'Population at Risk'!P$5","v":3.303109225618773E-3},{"$f":"'Population at Risk'!Q248/'Population at Risk'!Q$5","v":6.7854812201199248E-4},{"$f":"'Population at Risk'!R248/'Population at Risk'!R$5","v":3.1240619454275527E-3},{"$f":"'Population at Risk'!S248/'Population at Risk'!S$5","v":9.6274073949821658E-4},{"$f":"'Population at Risk'!T248/'Population at Risk'!T$5","v":1.6443116613320027E-3},{"$f":"'Population at Risk'!U248/'Population at Risk'!U$5","v":0},{"$f":"'Population at Risk'!V248/'Population at Risk'!V$5","v":4.4710491163916187E-4},{"$f":"'Population at Risk'!W248/'Population at Risk'!W$5","v":7.3874152900095871E-4},{"$f":"'Population at Risk'!X248/'Population at Risk'!X$5","v":7.3874152900095871E-4},{"$f":"'Population at Risk'!Y248/'Population at Risk'!Y$5","v":6.1566901579334222E-4},{"$f":"'Population at Risk'!Z248/'Population at Risk'!Z$5","v":1.6489407937376731E-4},{"$f":"'Population at Risk'!AA248/'Population at Risk'!AA$5","v":4.8975990828168878E-4},{"$f":"'Population at Risk'!AB248/'Population at Risk'!AB$5","v":1.2439611259730257E-3},{"$f":"'Population at Risk'!AC248/'Population at Risk'!AC$5","v":6.0734232771096381E-4},{"$f":"'Population at Risk'!AD248/'Population at Risk'!AD$5","v":4.0148298572439852E-4},{"$f":"'Population at Risk'!AE248/'Population at Risk'!AE$5","v":4.0535589117619364E-4},{"$f":"'Population at Risk'!AF248/'Population at Risk'!AF$5","v":4.8291415058816892E-4},{"$f":"'Population at Risk'!AG248/'Population at Risk'!AG$5","v":4.0535589117619364E-4},{"$f":"'Population at Risk'!AH248/'Population at Risk'!AH$5","v":2.7581411329905193E-4},{"$f":"'Population at Risk'!AI248/'Population at Risk'!AI$5","v":1.1224528908498708E-3},{"$f":"'Population at Risk'!AJ248/'Population at Risk'!AJ$5","v":4.1111713278985318E-4},{"$f":"'Population at Risk'!AK248/'Population at Risk'!AK$5","v":9.0502668195767205E-4},{"$f":"'Population at Risk'!AL248/'Population at Risk'!AL$5","v":3.8268570819028914E-4},{"$f":"'Population at Risk'!AM248/'Population at Risk'!AM$5","v":1.4909662173579445E-4},{"$f":"'Population at Risk'!AN248/'Population at Risk'!AN$5","v":3.2758358540230996E-4},{"$f":"'Population at Risk'!AO248/'Population at Risk'!AO$5","v":3.2758358540230996E-4},{"$f":"'Population at Risk'!AP248/'Population at Risk'!AP$5","v":1.2729098703242521E-3},{"$f":"'Population at Risk'!AQ248/'Population at Risk'!AQ$5","v":4.9086343915423557E-4},{"$f":"'Population at Risk'!AR248/'Population at Risk'!AR$5","v":7.147011282890932E-4},{"$f":"'Population at Risk'!AS248/'Population at Risk'!AS$5","v":4.8138979611316897E-4},{"$f":"'Population at Risk'!AT248/'Population at Risk'!AT$5","v":0},{"$f":"'Population at Risk'!AU248/'Population at Risk'!AU$5","v":0},{"$f":"'Population at Risk'!AV248/'Population at Risk'!AV$5","v":1.2665169387614942E-3},{"$f":"'Population at Risk'!AW248/'Population at Risk'!AW$5","v":4.2039307937993066E-4},{"$f":"'Population at Risk'!AX248/'Population at Risk'!AX$5","v":1.0480549726282157E-3},{"$f":"'Population at Risk'!AY248/'Population at Risk'!AY$5","v":8.4329222984228967E-4},{"$f":"'Population at Risk'!AZ248/'Population at Risk'!AZ$5","v":9.3819791704623972E-4},{"$f":"'Population at Risk'!BA248/'Population at Risk'!BA$5","v":3.7018029966777842E-5},{"$f":"'Population at Risk'!BB248/'Population at Risk'!BB$5","v":3.0602696508304553E-4},{"$f":"'Population at Risk'!BC248/'Population at Risk'!BC$5","v":0},246]
[null,"Male 90+",{"$f":"'Population at Risk'!C249/'Population at Risk'!C$5","v":6.6303055400702439E-4},{"$f":"'Population at Risk'!D249/'Population at Risk'!D$5","v":6.1791530612806758E-4},{"$f":"'Population at Risk'!E249/'Population at Risk'!E$5","v":5.7262746800997846E-4},{"$f":"'Population at Risk'!F249/'Population at Risk'!F$5","v":3.0592484053042977E-4},{"$f":"'Population at Risk'!G249/'Population at Risk'!G$5","v":1.053619665849825E-4},{"$f":"'Population at Risk'!H249/'Population at Risk'!H$5","v":3.051691961923827E-4},{"$f":"'Population at Risk'!I249/'Population at Risk'!I$5","v":1.383995663825361E-4},{"$f":"'Population at Risk'!J249/'Population at Risk'!J$5","v":3.270760417766926E-4},{"$f":"'Population at Risk'!K249/'Population at Risk'!K$5","v":1.0754092333848822E-4},{"$f":"'Population at Risk'!L249/'Population at Risk'!L$5","v":1.8655669388946758E-4},{"$f":"'Population at Risk'!M249/'Population at Risk'!M$5","v":1.8655669388946758E-4},{"$f":"'Population at Risk'!N249/'Population at Risk'!N$5","v":2.3726212630031821E-4},{"$f":"'Population at Risk'!O249/'Population at Risk'!O$5","v":1.4363857283178748E-4},{"$f":"'Population at Risk'!P249/'Population at Risk'!P$5","v":1.4040061585404182E-3},{"$f":"'Population at Risk'!Q249/'Population at Risk'!Q$5","v":4.2325278897777747E-4},{"$f":"'Population at Risk'!R249/'Population at Risk'!R$5","v":1.3002380722589536E-3},{"$f":"'Population at Risk'!S249/'Population at Risk'!S$5","v":4.5408621923701307E-4},{"$f":"'Population at Risk'!T249/'Population at Risk'!T$5","v":7.9537551044886771E-4},{"$f":"'Population at Risk'!U249/'Population at Risk'!U$5","v":0},{"$f":"'Population at Risk'!V249/'Population at Risk'!V$5","v":2.0322950529052812E-4},{"$f":"'Population at Risk'!W249/'Population at Risk'!W$5","v":3.1561257811778054E-4},{"$f":"'Population at Risk'!X249/'Population at Risk'!X$5","v":3.1561257811778054E-4},{"$f":"'Population at Risk'!Y249/'Population at Risk'!Y$5","v":2.6171296141737891E-4},{"$f":"'Population at Risk'!Z249/'Population at Risk'!Z$5","v":8.6786357565140683E-5},{"$f":"'Population at Risk'!AA249/'Population at Risk'!AA$5","v":2.0536228958372397E-4},{"$f":"'Population at Risk'!AB249/'Population at Risk'!AB$5","v":5.7509760597747913E-4},{"$f":"'Population at Risk'!AC249/'Population at Risk'!AC$5","v":2.6150855598133235E-4},{"$f":"'Population at Risk'!AD249/'Population at Risk'!AD$5","v":1.4561559067724299E-4},{"$f":"'Population at Risk'!AE249/'Population at Risk'!AE$5","v":1.6099241067990669E-4},{"$f":"'Population at Risk'!AF249/'Population at Risk'!AF$5","v":3.0272230335377754E-4},{"$f":"'Population at Risk'!AG249/'Population at Risk'!AG$5","v":1.6099241067990669E-4},{"$f":"'Population at Risk'!AH249/'Population at Risk'!AH$5","v":1.0320196954567175E-4},{"$f":"'Population at Risk'!AI249/'Population at Risk'!AI$5","v":5.5511785826384752E-4},{"$f":"'Population at Risk'!AJ249/'Population at Risk'!AJ$5","v":1.7619305690993707E-4},{"$f":"'Population at Risk'!AK249/'Population at Risk'!AK$5","v":3.5744751304210576E-4},{"$f":"'Population at Risk'!AL249/'Population at Risk'!AL$5","v":1.7662417301090268E-4},{"$f":"'Population at Risk'!AM249/'Population at Risk'!AM$5","v":6.8550170913008937E-5},{"$f":"'Population at Risk'!AN249/'Population at Risk'!AN$5","v":1.31033434160924E-4},{"$f":"'Population at Risk'!AO249/'Population at Risk'!AO$5","v":1.31033434160924E-4},{"$f":"'Population at Risk'!AP249/'Population at Risk'!AP$5","v":5.1877081507554427E-4},{"$f":"'Population at Risk'!AQ249/'Population at Risk'!AQ$5","v":1.3135782174549966E-4},{"$f":"'Population at Risk'!AR249/'Population at Risk'!AR$5","v":3.1547216442363466E-4},{"$f":"'Population at Risk'!AS249/'Population at Risk'!AS$5","v":1.383995663825361E-4},{"$f":"'Population at Risk'!AT249/'Population at Risk'!AT$5","v":0},{"$f":"'Population at Risk'!AU249/'Population at Risk'!AU$5","v":0},{"$f":"'Population at Risk'!AV249/'Population at Risk'!AV$5","v":6.6394500313928548E-4},{"$f":"'Population at Risk'!AW249/'Population at Risk'!AW$5","v":1.4273811532434857E-4},{"$f":"'Population at Risk'!AX249/'Population at Risk'!AX$5","v":4.6173051241662642E-4},{"$f":"'Population at Risk'!AY249/'Population at Risk'!AY$5","v":3.3253108476168569E-4},{"$f":"'Population at Risk'!AZ249/'Population at Risk'!AZ$5","v":3.478888249449983E-4},{"$f":"'Population at Risk'!BA249/'Population at Risk'!BA$5","v":1.233934332225928E-5},{"$f":"'Population at Risk'!BB249/'Population at Risk'!BB$5","v":1.656145928684717E-4},{"$f":"'Population at Risk'!BC249/'Population at Risk'!BC$5","v":0},247]

{"sheet":"Targeting","index":18,"n_rows":249,"n_cols":7,"rows_kept":249,"cut":false,"hidden":true,"merged":[]}
["Calculating how many will be treated in each group, for each targeting strategy"]
[]
["SIMD","group","Even distribution","Targeting to SIMD Q1","Targeting to SIMD Q1 & Q2","Proportionate to need",1]
[null,null,null,null,null,null,2]
["All quintiles","16+ Males and Females",null,null,null,null,3]
["Q1 and Q2","16+ Males and Females",null,null,null,null,4]
["SIMD Q1 (most deprived)","16+ Males and Females",null,null,null,null,5]
["SIMD Q2",null,null,null,null,null,6]
["SIMD Q3",null,null,null,null,null,7]
["SIMD Q4",null,null,null,null,null,8]
["SIMD Q5 (least deprived)",null,null,null,null,null,9]
["SIMD Q1 (most deprived)","16+ Females",null,null,null,null,10]
["SIMD Q2",null,null,null,null,null,11]
["SIMD Q3",null,null,null,null,null,12]
["SIMD Q4",null,null,null,null,null,13]
["SIMD Q5 (least deprived)",null,null,null,null,null,14]
["SIMD Q1 (most deprived)","16+ Males",null,null,null,null,15]
["SIMD Q2",null,null,null,null,null,16]
["SIMD Q3",null,null,null,null,null,17]
["SIMD Q4",null,null,null,null,null,18]
["SIMD Q5 (least deprived)",null,null,null,null,null,19]
["All quintiles","Female 0-4",null,null,null,null,20]
[null,"Female 5-9",null,null,null,null,21]
[null,"Female 10-15",null,null,null,null,22]
[null,"Female 16-19",null,null,null,null,23]
[null,"Female 20-24",null,null,null,null,24]
[null,"Female 25-29",null,null,null,null,25]
[null,"Female 30-34",null,null,null,null,26]
[null,"Female 35-39",null,null,null,null,27]
[null,"Female 40-44",null,null,null,null,28]
[null,"Female 45-49",null,null,null,null,29]
[null,"Female 50-54",null,null,null,null,30]
[null,"Female 55-59",null,null,null,null,31]
[null,"Female 60-64",null,null,null,null,32]
[null,"Female 65-69",null,null,null,null,33]
[null,"Female 70-74",null,null,null,null,34]
[null,"Female 75-79",null,null,null,null,35]
[null,"Female 80-84",null,null,null,null,36]
[null,"Female 85-89",null,null,null,null,37]
[null,"Female 90+",null,null,null,null,38]
[null,"Male 0-4",null,null,null,null,39]
[null,"Male 5-9",null,null,null,null,40]
[null,"Male 10-15",null,null,null,null,41]
[null,"Male 16-19",null,null,null,null,42]
[null,"Male 20-24",null,null,null,null,43]
[null,"Male 25-29",null,null,null,null,44]
[null,"Male 30-34",null,null,null,null,45]
[null,"Male 35-39",null,null,null,null,46]
[null,"Male 40-44",null,null,null,null,47]
[null,"Male 45-49",null,null,null,null,48]
[null,"Male 50-54",null,null,null,null,49]
[null,"Male 55-59",null,null,null,null,50]
[null,"Male 60-64",null,null,null,null,51]
[null,"Male 65-69",null,null,null,null,52]
[null,"Male 70-74",null,null,null,null,53]
[null,"Male 75-79",null,null,null,null,54]
[null,"Male 80-84",null,null,null,null,55]
[null,"Male 85-89",null,null,null,null,56]
[null,"Male 90+",null,null,null,null,57]
["SIMD Q1 (most deprived)","Female 0-4",{"$f":"ROUND(Options!$B$21*HLOOKUP(Calculations!$E$2,Pop2016fraction!$C$3:$BC$251,Pop2016fraction!$BD60,FALSE),0)","v":0},{"$f":"ROUND(Options!$B$21*HLOOKUP(Calculations!$E$2,Pop2016fractionQ1!$C$3:$BC$251,Pop2016fractionQ1!$BD60,FALSE),0)","v":0},{"$f":"ROUND(Options!$B$21*HLOOKUP(Calculations!$E$2,'Pop2016fractionQ1&2'!$C$3:$BC$251,'Pop2016fractionQ1&2'!$BD60,FALSE),0)","v":0},{"$f":"ROUND(Options!$B$21*HLOOKUP(Calculations!$E$2,PARfraction!$C$3:$BC$251,PARfraction!$BD60,FALSE),0)","v":0},58]
[null,"Female 5-9",{"$f":"ROUND(Options!$B$21*HLOOKUP(Calculations!$E$2,Pop2016fraction!$C$3:$BC$251,Pop2016fraction!$BD61,FALSE),0)","v":0},{"$f":"ROUND(Options!$B$21*HLOOKUP(Calculations!$E$2,Pop2016fractionQ1!$C$3:$BC$251,Pop2016fractionQ1!$BD61,FALSE),0)","v":0},{"$f":"ROUND(Options!$B$21*HLOOKUP(Calculations!$E$2,'Pop2016fractionQ1&2'!$C$3:$BC$251,'Pop2016fractionQ1&2'!$BD61,FALSE),0)","v":0},{"$f":"ROUND(Options!$B$21*HLOOKUP(Calculations!$E$2,PARfraction!$C$3:$BC$251,PARfraction!$BD61,FALSE),0)","v":0},59]
[null,"Female 10-15",{"$f":"ROUND(Options!$B$21*HLOOKUP(Calculations!$E$2,Pop2016fraction!$C$3:$BC$251,Pop2016fraction!$BD62,FALSE),0)","v":0},{"$f":"ROUND(Options!$B$21*HLOOKUP(Calculations!$E$2,Pop2016fractionQ1!$C$3:$BC$251,Pop2016fractionQ1!$BD62,FALSE),0)","v":0},{"$f":"ROUND(Options!$B$21*HLOOKUP(Calculations!$E$2,'Pop2016fractionQ1&2'!$C$3:$BC$251,'Pop2016fractionQ1&2'!$BD62,FALSE),0)","v":0},{"$f":"ROUND(Options!$B$21*HLOOKUP(Calculations!$E$2,PARfraction!$C$3:$BC$251,PARfraction!$BD62,FALSE),0)","v":0},60]
[null,"Female 16-19",{"$f":"ROUND(Options!$B$21*HLOOKUP(Calculations!$E$2,Pop2016fraction!$C$3:$BC$251,Pop2016fraction!$BD63,FALSE),0)","v":715},{"$f":"ROUND(Options!$B$21*HLOOKUP(Calculations!$E$2,Pop2016fractionQ1!$C$3:$BC$251,Pop2016fractionQ1!$BD63,FALSE),0)","v":3680},{"$f":"ROUND(Options!$B$21*HLOOKUP(Calculations!$E$2,'Pop2016fractionQ1&2'!$C$3:$BC$251,'Pop2016fractionQ1&2'!$BD63,FALSE),0)","v":1814},{"$f":"ROUND(Options!$B$21*HLOOKUP(Calculations!$E$2,PARfraction!$C$3:$BC$251,PARfraction!$BD63,FALSE),0)","v":1264},61]
[null,"Female 20-24",{"$f":"ROUND(Options!$B$21*HLOOKUP(Calculations!$E$2,Pop2016fraction!$C$3:$BC$251,Pop2016fraction!$BD64,FALSE),0)","v":1114},{"$f":"ROUND(Options!$B$21*HLOOKUP(Calculations!$E$2,Pop2016fractionQ1!$C$3:$BC$251,Pop2016fractionQ1!$BD64,FALSE),0)","v":5734},{"$f":"ROUND(Options!$B$21*HLOOKUP(Calculations!$E$2,'Pop2016fractionQ1&2'!$C$3:$BC$251,'Pop2016fractionQ1&2'!$BD64,FALSE),0)","v":2827},{"$f":"ROUND(Options!$B$21*HLOOKUP(Calculations!$E$2,PARfraction!$C$3:$BC$251,PARfraction!$BD64,FALSE),0)","v":1970},62]
[null,"Female 25-29",{"$f":"ROUND(Options!$B$21*HLOOKUP(Calculations!$E$2,Pop2016fraction!$C$3:$BC$251,Pop2016fraction!$BD65,FALSE),0)","v":1337},{"$f":"ROUND(Options!$B$21*HLOOKUP(Calculations!$E$2,Pop2016fractionQ1!$C$3:$BC$251,Pop2016fractionQ1!$BD65,FALSE),0)","v":6878},{"$f":"ROUND(Options!$B$21*HLOOKUP(Calculations!$E$2,'Pop2016fractionQ1&2'!$C$3:$BC$251,'Pop2016fractionQ1&2'!$BD65,FALSE),0)","v":3391},{"$f":"ROUND(Options!$B$21*HLOOKUP(Calculations!$E$2,PARfraction!$C$3:$BC$251,PARfraction!$BD65,FALSE),0)","v":2362},63]
[null,"Female 30-34",{"$f":"ROUND(Options!$B$21*HLOOKUP(Calculations!$E$2,Pop2016fraction!$C$3:$BC$251,Pop2016fraction!$BD66,FALSE),0)","v":1221},{"$f":"ROUND(Options!$B$21*HLOOKUP(Calculations!$E$2,Pop2016fractionQ1!$C$3:$BC$251,Pop2016fractionQ1!$BD66,FALSE),0)","v":6286},{"$f":"ROUND(Options!$B$21*HLOOKUP(Calculations!$E$2,'Pop2016fractionQ1&2'!$C$3:$BC$251,'Pop2016fractionQ1&2'!$BD66,FALSE),0)","v":3099},{"$f":"ROUND(Options!$B$21*HLOOKUP(Calculations!$E$2,PARfraction!$C$3:$BC$251,PARfraction!$BD66,FALSE),0)","v":2159},64]
[null,"Female 35-39",{"$f":"ROUND(Options!$B$21*HLOOKUP(Calculations!$E$2,Pop2016fraction!$C$3:$BC$251,Pop2016fraction!$BD67,FALSE),0)","v":1038},{"$f":"ROUND(Options!$B$21*HLOOKUP(Calculations!$E$2,Pop2016fractionQ1!$C$3:$BC$251,Pop2016fractionQ1!$BD67,FALSE),0)","v":5340},{"$f":"ROUND(Options!$B$21*HLOOKUP(Calculations!$E$2,'Pop2016fractionQ1&2'!$C$3:$BC$251,'Pop2016fractionQ1&2'!$BD67,FALSE),0)","v":2633},{"$f":"ROUND(Options!$B$21*HLOOKUP(Calculations!$E$2,PARfraction!$C$3:$BC$251,PARfraction!$BD67,FALSE),0)","v":1834},65]
[null,"Female 40-44",{"$f":"ROUND(Options!$B$21*HLOOKUP(Calculations!$E$2,Pop2016fraction!$C$3:$BC$251,Pop2016fraction!$BD68,FALSE),0)","v":997},{"$f":"ROUND(Options!$B$21*HLOOKUP(Calculations!$E$2,Pop2016fractionQ1!$C$3:$BC$251,Pop2016fractionQ1!$BD68,FALSE),0)","v":5131},{"$f":"ROUND(Options!$B$21*HLOOKUP(Calculations!$E$2,'Pop2016fractionQ1&2'!$C$3:$BC$251,'Pop2016fractionQ1&2'!$BD68,FALSE),0)","v":2529},{"$f":"ROUND(Options!$B$21*HLOOKUP(Calculations!$E$2,PARfraction!$C$3:$BC$251,PARfraction!$BD68,FALSE),0)","v":1762},66]
[null,"Female 45-49",{"$f":"ROUND(Options!$B$21*HLOOKUP(Calculations!$E$2,Pop2016fraction!$C$3:$BC$251,Pop2016fraction!$BD69,FALSE),0)","v":1161},{"$f":"ROUND(Options!$B$21*HLOOKUP(Calculations!$E$2,Pop2016fractionQ1!$C$3:$BC$251,Pop2016fractionQ1!$BD69,FALSE),0)","v":5974},{"$f":"ROUND(Options!$B$21*HLOOKUP(Calculations!$E$2,'Pop2016fractionQ1&2'!$C$3:$BC$251,'Pop2016fractionQ1&2'!$BD69,FALSE),0)","v":2945},{"$f":"ROUND(Options!$B$21*HLOOKUP(Calculations!$E$2,PARfraction!$C$3:$BC$251,PARfraction!$BD69,FALSE),0)","v":2052},67]
[null,"Female 50-54",{"$f":"ROUND(Options!$B$21*HLOOKUP(Calculations!$E$2,Pop2016fraction!$C$3:$BC$251,Pop2016fraction!$BD70,FALSE),0)","v":1176},{"$f":"ROUND(Options!$B$21*HLOOKUP(Calculations!$E$2,Pop2016fractionQ1!$C$3:$BC$251,Pop2016fractionQ1!$BD70,FALSE),0)","v":6051},{"$f":"ROUND(Options!$B$21*HLOOKUP(Calculations!$E$2,'Pop2016fractionQ1&2'!$C$3:$BC$251,'Pop2016fractionQ1&2'!$BD70,FALSE),0)","v":2983},{"$f":"ROUND(Options!$B$21*HLOOKUP(Calculations!$E$2,PARfraction!$C$3:$BC$251,PARfraction!$BD70,FALSE),0)","v":2078},68]
[null,"Female 55-59",{"$f":"ROUND(Options!$B$21*HLOOKUP(Calculations!$E$2,Pop2016fraction!$C$3:$BC$251,Pop2016fraction!$BD71,FALSE),0)","v":1052},{"$f":"ROUND(Options!$B$21*HLOOKUP(Calculations!$E$2,Pop2016fractionQ1!$C$3:$BC$251,Pop2016fractionQ1!$BD71,FALSE),0)","v":5415},{"$f":"ROUND(Options!$B$21*HLOOKUP(Calculations!$E$2,'Pop2016fractionQ1&2'!$C$3:$BC$251,'Pop2016fractionQ1&2'!$BD71,FALSE),0)","v":2670},{"$f":"ROUND(Options!$B$21*HLOOKUP(Calculations!$E$2,PARfraction!$C$3:$BC$251,PARfraction!$BD71,FALSE),0)","v":1245},69]
[null,"Female 60-64",{"$f":"ROUND(Options!$B$21*HLOOKUP(Calculations!$E$2,Pop2016fraction!$C$3:$BC$251,Pop2016fraction!$BD72,FALSE),0)","v":865},{"$f":"ROUND(Options!$B$21*HLOOKUP(Calculations!$E$2,Pop2016fractionQ1!$C$3:$BC$251,Pop2016fractionQ1!$BD72,FALSE),0)","v":4452},{"$f":"ROUND(Options!$B$21*HLOOKUP(Calculations!$E$2,'Pop2016fractionQ1&2'!$C$3:$BC$251,'Pop2016fractionQ1&2'!$BD72,FALSE),0)","v":2195},{"$f":"ROUND(Options!$B$21*HLOOKUP(Calculations!$E$2,PARfraction!$C$3:$BC$251,PARfraction!$BD72,FALSE),0)","v":1024},70]
[null,"Female 65-69",{"$f":"ROUND(Options!$B$21*HLOOKUP(Calculations!$E$2,Pop2016fraction!$C$3:$BC$251,Pop2016fraction!$BD73,FALSE),0)","v":822},{"$f":"ROUND(Options!$B$21*HLOOKUP(Calculations!$E$2,Pop2016fractionQ1!$C$3:$BC$251,Pop2016fractionQ1!$BD73,FALSE),0)","v":4231},{"$f":"ROUND(Options!$B$21*HLOOKUP(Calculations!$E$2,'Pop2016fractionQ1&2'!$C$3:$BC$251,'Pop2016fractionQ1&2'!$BD73,FALSE),0)","v":2086},{"$f":"ROUND(Options!$B$21*HLOOKUP(Calculations!$E$2,PARfraction!$C$3:$BC$251,PARfraction!$BD73,FALSE),0)","v":973},71]
[null,"Female 70-74",{"$f":"ROUND(Options!$B$21*HLOOKUP(Calculations!$E$2,Pop2016fraction!$C$3:$BC$251,Pop2016fraction!$BD74,FALSE),0)","v":645},{"$f":"ROUND(Options!$B$21*HLOOKUP(Calculations!$E$2,Pop2016fractionQ1!$C$3:$BC$251,Pop2016fractionQ1!$BD74,FALSE),0)","v":3320},{"$f":"ROUND(Options!$B$21*HLOOKUP(Calculations!$E$2,'Pop2016fractionQ1&2'!$C$3:$BC$251,'Pop2016fractionQ1&2'!$BD74,FALSE),0)","v":1637},{"$f":"ROUND(Options!$B$21*HLOOKUP(Calculations!$E$2,PARfraction!$C$3:$BC$251,PARfraction!$BD74,FALSE),0)","v":763},72]
[null,"Female 75-79",{"$f":"ROUND(Options!$B$21*HLOOKUP(Calculations!$E$2,Pop2016fraction!$C$3:$BC$251,Pop2016fraction!$BD75,FALSE),0)","v":567},{"$f":"ROUND(Options!$B$21*HLOOKUP(Calculations!$E$2,Pop2016fractionQ1!$C$3:$BC$251,Pop2016fractionQ1!$BD75,FALSE),0)","v":2917},{"$f":"ROUND(Options!$B$21*HLOOKUP(Calculations!$E$2,'Pop2016fractionQ1&2'!$C$3:$BC$251,'Pop2016fractionQ1&2'!$BD75,FALSE),0)","v":1438},{"$f":"ROUND(Options!$B$21*HLOOKUP(Calculations!$E$2,PARfraction!$C$3:$BC$251,PARfraction!$BD75,FALSE),0)","v":671},73]
[null,"Female 80-84",{"$f":"ROUND(Options!$B$21*HLOOKUP(Calculations!$E$2,Pop2016fraction!$C$3:$BC$251,Pop2016fraction!$BD76,FALSE),0)","v":438},{"$f":"ROUND(Options!$B$21*HLOOKUP(Calculations!$E$2,Pop2016fractionQ1!$C$3:$BC$251,Pop2016fractionQ1!$BD76,FALSE),0)","v":2252},{"$f":"ROUND(Options!$B$21*HLOOKUP(Calculations!$E$2,'Pop2016fractionQ1&2'!$C$3:$BC$251,'Pop2016fractionQ1&2'!$BD76,FALSE),0)","v":1110},{"$f":"ROUND(Options!$B$21*HLOOKUP(Calculations!$E$2,PARfraction!$C$3:$BC$251,PARfraction!$BD76,FALSE),0)","v":518},74]
[null,"Female 85-89",{"$f":"ROUND(Options!$B$21*HLOOKUP(Calculations!$E$2,Pop2016fraction!$C$3:$BC$251,Pop2016fraction!$BD77,FALSE),0)","v":263},{"$f":"ROUND(Options!$B$21*HLOOKUP(Calculations!$E$2,Pop2016fractionQ1!$C$3:$BC$251,Pop2016fractionQ1!$BD77,FALSE),0)","v":1352},{"$f":"ROUND(Options!$B$21*HLOOKUP(Calculations!$E$2,'Pop2016fractionQ1&2'!$C$3:$BC$251,'Pop2016fractionQ1&2'!$BD77,FALSE),0)","v":666},{"$f":"ROUND(Options!$B$21*HLOOKUP(Calculations!$E$2,PARfraction!$C$3:$BC$251,PARfraction!$BD77,FALSE),0)","v":311},75]
[null,"Female 90+",{"$f":"ROUND(Options!$B$21*HLOOKUP(Calculations!$E$2,Pop2016fraction!$C$3:$BC$251,Pop2016fraction!$BD78,FALSE),0)","v":143},{"$f":"ROUND(Options!$B$21*HLOOKUP(Calculations!$E$2,Pop2016fractionQ1!$C$3:$BC$251,Pop2016fractionQ1!$BD78,FALSE),0)","v":735},{"$f":"ROUND(Options!$B$21*HLOOKUP(Calculations!$E$2,'Pop2016fractionQ1&2'!$C$3:$BC$251,'Pop2016fractionQ1&2'!$BD78,FALSE),0)","v":363},{"$f":"ROUND(Options!$B$21*HLOOKUP(Calculations!$E$2,PARfraction!$C$3:$BC$251,PARfraction!$BD78,FALSE),0)","v":169},76]
[null,"Male 0-4",{"$f":"ROUND(Options!$B$21*HLOOKUP(Calculations!$E$2,Pop2016fraction!$C$3:$BC$251,Pop2016fraction!$BD79,FALSE),0)","v":0},{"$f":"ROUND(Options!$B$21*HLOOKUP(Calculations!$E$2,Pop2016fractionQ1!$C$3:$BC$251,Pop2016fractionQ1!$BD79,FALSE),0)","v":0},{"$f":"ROUND(Options!$B$21*HLOOKUP(Calculations!$E$2,'Pop2016fractionQ1&2'!$C$3:$BC$251,'Pop2016fractionQ1&2'!$BD79,FALSE),0)","v":0},{"$f":"ROUND(Options!$B$21*HLOOKUP(Calculations!$E$2,PARfraction!$C$3:$BC$251,PARfraction!$BD79,FALSE),0)","v":0},77]
[null,"Male 5-9",{"$f":"ROUND(Options!$B$21*HLOOKUP(Calculations!$E$2,Pop2016fraction!$C$3:$BC$251,Pop2016fraction!$BD80,FALSE),0)","v":0},{"$f":"ROUND(Options!$B$21*HLOOKUP(Calculations!$E$2,Pop2016fractionQ1!$C$3:$BC$251,Pop2016fractionQ1!$BD80,FALSE),0)","v":0},{"$f":"ROUND(Options!$B$21*HLOOKUP(Calculations!$E$2,'Pop2016fractionQ1&2'!$C$3:$BC$251,'Pop2016fractionQ1&2'!$BD80,FALSE),0)","v":0},{"$f":"ROUND(Options!$B$21*HLOOKUP(Calculations!$E$2,PARfraction!$C$3:$BC$251,PARfraction!$BD80,FALSE),0)","v":0},78]
[null,"Male 10-15",{"$f":"ROUND(Options!$B$21*HLOOKUP(Calculations!$E$2,Pop2016fraction!$C$3:$BC$251,Pop2016fraction!$BD81,FALSE),0)","v":0},{"$f":"ROUND(Options!$B$21*HLOOKUP(Calculations!$E$2,Pop2016fractionQ1!$C$3:$BC$251,Pop2016fractionQ1!$BD81,FALSE),0)","v":0},{"$f":"ROUND(Options!$B$21*HLOOKUP(Calculations!$E$2,'Pop2016fractionQ1&2'!$C$3:$BC$251,'Pop2016fractionQ1&2'!$BD81,FALSE),0)","v":0},{"$f":"ROUND(Options!$B$21*HLOOKUP(Calculations!$E$2,PARfraction!$C$3:$BC$251,PARfraction!$BD81,FALSE),0)","v":0},79]
[null,"Male 16-19",{"$f":"ROUND(Options!$B$21*HLOOKUP(Calculations!$E$2,Pop2016fraction!$C$3:$BC$251,Pop2016fraction!$BD82,FALSE),0)","v":751},{"$f":"ROUND(Options!$B$21*HLOOKUP(Calculations!$E$2,Pop2016fractionQ1!$C$3:$BC$251,Pop2016fractionQ1!$BD82,FALSE),0)","v":3865},{"$f":"ROUND(Options!$B$21*HLOOKUP(Calculations!$E$2,'Pop2016fractionQ1&2'!$C$3:$BC$251,'Pop2016fractionQ1&2'!$BD82,FALSE),0)","v":1905},{"$f":"ROUND(Options!$B$21*HLOOKUP(Calculations!$E$2,PARfraction!$C$3:$BC$251,PARfraction!$BD82,FALSE),0)","v":1088},80]
[null,"Male 20-24",{"$f":"ROUND(Options!$B$21*HLOOKUP(Calculations!$E$2,Pop2016fraction!$C$3:$BC$251,Pop2016fraction!$BD83,FALSE),0)","v":1101},{"$f":"ROUND(Options!$B$21*HLOOKUP(Calculations!$E$2,Pop2016fractionQ1!$C$3:$BC$251,Pop2016fractionQ1!$BD83,FALSE),0)","v":5667},{"$f":"ROUND(Options!$B$21*HLOOKUP(Calculations!$E$2,'Pop2016fractionQ1&2'!$C$3:$BC$251,'Pop2016fractionQ1&2'!$BD83,FALSE),0)","v":2794},{"$f":"ROUND(Options!$B$21*HLOOKUP(Calculations!$E$2,PARfraction!$C$3:$BC$251,PARfraction!$BD83,FALSE),0)","v":1595},81]
[null,"Male 25-29",{"$f":"ROUND(Options!$B$21*HLOOKUP(Calculations!$E$2,Pop2016fraction!$C$3:$BC$251,Pop2016fraction!$BD84,FALSE),0)","v":1262},{"$f":"ROUND(Options!$B$21*HLOOKUP(Calculations!$E$2,Pop2016fractionQ1!$C$3:$BC$251,Pop2016fractionQ1!$BD84,FALSE),0)","v":6493},{"$f":"ROUND(Options!$B$21*HLOOKUP(Calculations!$E$2,'Pop2016fractionQ1&2'!$C$3:$BC$251,'Pop2016fractionQ1&2'!$BD84,FALSE),0)","v":3201},{"$f":"ROUND(Options!$B$21*HLOOKUP(Calculations!$E$2,PARfraction!$C$3:$BC$251,PARfraction!$BD84,FALSE),0)","v":1827},82]
[null,"Male 30-34",{"$f":"ROUND(Options!$B$21*HLOOKUP(Calculations!$E$2,Pop2016fraction!$C$3:$BC$251,Pop2016fraction!$BD85,FALSE),0)","v":1126},{"$f":"ROUND(Options!$B$21*HLOOKUP(Calculations!$E$2,Pop2016fractionQ1!$C$3:$BC$251,Pop2016fractionQ1!$BD85,FALSE),0)","v":5793},{"$f":"ROUND(Options!$B$21*HLOOKUP(Calculations!$E$2,'Pop2016fractionQ1&2'!$C$3:$BC$251,'Pop2016fractionQ1&2'!$BD85,FALSE),0)","v":2856},{"$f":"ROUND(Options!$B$21*HLOOKUP(Calculations!$E$2,PARfraction!$C$3:$BC$251,PARfraction!$BD85,FALSE),0)","v":1630},83]
[null,"Male 35-39",{"$f":"ROUND(Options!$B$21*HLOOKUP(Calculations!$E$2,Pop2016fraction!$C$3:$BC$251,Pop2016fraction!$BD86,FALSE),0)","v":977},{"$f":"ROUND(Options!$B$21*HLOOKUP(Calculations!$E$2,Pop2016fractionQ1!$C$3:$BC$251,Pop2016fractionQ1!$BD86,FALSE),0)","v":5027},{"$f":"ROUND(Options!$B$21*HLOOKUP(Calculations!$E$2,'Pop2016fractionQ1&2'!$C$3:$BC$251,'Pop2016fractionQ1&2'!$BD86,FALSE),0)","v":2478},{"$f":"ROUND(Options!$B$21*HLOOKUP(Calculations!$E$2,PARfraction!$C$3:$BC$251,PARfraction!$BD86,FALSE),0)","v":1415},84]
[null,"Male 40-44",{"$f":"ROUND(Options!$B$21*HLOOKUP(Calculations!$E$2,Pop2016fraction!$C$3:$BC$251,Pop2016fraction!$BD87,FALSE),0)","v":937},{"$f":"ROUND(Options!$B$21*HLOOKUP(Calculations!$E$2,Pop2016fractionQ1!$C$3:$BC$251,Pop2016fractionQ1!$BD87,FALSE),0)","v":4820},{"$f":"ROUND(Options!$B$21*HLOOKUP(Calculations!$E$2,'Pop2016fractionQ1&2'!$C$3:$BC$251,'Pop2016fractionQ1&2'!$BD87,FALSE),0)","v":2376},{"$f":"ROUND(Options!$B$21*HLOOKUP(Calculations!$E$2,PARfraction!$C$3:$BC$251,PARfraction!$BD87,FALSE),0)","v":1356},85]
[null,"Male 45-49",{"$f":"ROUND(Options!$B$21*HLOOKUP(Calculations!$E$2,Pop2016fraction!$C$3:$BC$251,Pop2016fraction!$BD88,FALSE),0)","v":1063},{"$f":"ROUND(Options!$B$21*HLOOKUP(Calculations!$E$2,Pop2016fractionQ1!$C$3:$BC$251,Pop2016fractionQ1!$BD88,FALSE),0)","v":5468},{"$f":"ROUND(Options!$B$21*HLOOKUP(Calculations!$E$2,'Pop2016fractionQ1&2'!$C$3:$BC$251,'Pop2016fractionQ1&2'!$BD88,FALSE),0)","v":2696},{"$f":"ROUND(Options!$B$21*HLOOKUP(Calculations!$E$2,PARfraction!$C$3:$BC$251,PARfraction!$BD88,FALSE),0)","v":1539},86]
[null,"Male 50-54",{"$f":"ROUND(Options!$B$21*HLOOKUP(Calculations!$E$2,Pop2016fraction!$C$3:$BC$251,Pop2016fraction!$BD89,FALSE),0)","v":1093},{"$f":"ROUND(Options!$B$21*HLOOKUP(Calculations!$E$2,Pop2016fractionQ1!$C$3:$BC$251,Pop2016fractionQ1!$BD89,FALSE),0)","v":5627},{"$f":"ROUND(Options!$B$21*HLOOKUP(Calculations!$E$2,'Pop2016fractionQ1&2'!$C$3:$BC$251,'Pop2016fractionQ1&2'!$BD89,FALSE),0)","v":2774},{"$f":"ROUND(Options!$B$21*HLOOKUP(Calculations!$E$2,PARfraction!$C$3:$BC$251,PARfraction!$BD89,FALSE),0)","v":1584},87]
[null,"Male 55-59",{"$f":"ROUND(Options!$B$21*HLOOKUP(Calculations!$E$2,Pop2016fraction!$C$3:$BC$251,Pop2016fraction!$BD90,FALSE),0)","v":985},{"$f":"ROUND(Options!$B$21*HLOOKUP(Calculations!$E$2,Pop2016fractionQ1!$C$3:$BC$251,Pop2016fractionQ1!$BD90,FALSE),0)","v":5068},{"$f":"ROUND(Options!$B$21*HLOOKUP(Calculations!$E$2,'Pop2016fractionQ1&2'!$C$3:$BC$251,'Pop2016fractionQ1&2'!$BD90,FALSE),0)","v":2498},{"$f":"ROUND(Options!$B$21*HLOOKUP(Calculations!$E$2,PARfraction!$C$3:$BC$251,PARfraction!$BD90,FALSE),0)","v":955},88]
[null,"Male 60-64",{"$f":"ROUND(Options!$B$21*HLOOKUP(Calculations!$E$2,Pop2016fraction!$C$3:$BC$251,Pop2016fraction!$BD91,FALSE),0)","v":810},{"$f":"ROUND(Options!$B$21*HLOOKUP(Calculations!$E$2,Pop2016fractionQ1!$C$3:$BC$251,Pop2016fractionQ1!$BD91,FALSE),0)","v":4170},{"$f":"ROUND(Options!$B$21*HLOOKUP(Calculations!$E$2,'Pop2016fractionQ1&2'!$C$3:$BC$251,'Pop2016fractionQ1&2'!$BD91,FALSE),0)","v":2056},{"$f":"ROUND(Options!$B$21*HLOOKUP(Calculations!$E$2,PARfraction!$C$3:$BC$251,PARfraction!$BD91,FALSE),0)","v":785},89]
[null,"Male 65-69",{"$f":"ROUND(Options!$B$21*HLOOKUP(Calculations!$E$2,Pop2016fraction!$C$3:$BC$251,Pop2016fraction!$BD92,FALSE),0)","v":757},{"$f":"ROUND(Options!$B$21*HLOOKUP(Calculations!$E$2,Pop2016fractionQ1!$C$3:$BC$251,Pop2016fractionQ1!$BD92,FALSE),0)","v":3897},{"$f":"ROUND(Options!$B$21*HLOOKUP(Calculations!$E$2,'Pop2016fractionQ1&2'!$C$3:$BC$251,'Pop2016fractionQ1&2'!$BD92,FALSE),0)","v":1921},{"$f":"ROUND(Options!$B$21*HLOOKUP(Calculations!$E$2,PARfraction!$C$3:$BC$251,PARfraction!$BD92,FALSE),0)","v":734},90]
[null,"Male 70-74",{"$f":"ROUND(Options!$B$21*HLOOKUP(Calculations!$E$2,Pop2016fraction!$C$3:$BC$251,Pop2016fraction!$BD93,FALSE),0)","v":544},{"$f":"ROUND(Options!$B$21*HLOOKUP(Calculations!$E$2,Pop2016fractionQ1!$C$3:$BC$251,Pop2016fractionQ1!$BD93,FALSE),0)","v":2798},{"$f":"ROUND(Options!$B$21*HLOOKUP(Calculations!$E$2,'Pop2016fractionQ1&2'!$C$3:$BC$251,'Pop2016fractionQ1&2'!$BD93,FALSE),0)","v":1379},{"$f":"ROUND(Options!$B$21*HLOOKUP(Calculations!$E$2,PARfraction!$C$3:$BC$251,PARfraction!$BD93,FALSE),0)","v":527},91]
[null,"Male 75-79",{"$f":"ROUND(Options!$B$21*HLOOKUP(Calculations!$E$2,Pop2016fraction!$C$3:$BC$251,Pop2016fraction!$BD94,FALSE),0)","v":412},{"$f":"ROUND(Options!$B$21*HLOOKUP(Calculations!$E$2,Pop2016fractionQ1!$C$3:$BC$251,Pop2016fractionQ1!$BD94,FALSE),0)","v":2121},{"$f":"ROUND(Options!$B$21*HLOOKUP(Calculations!$E$2,'Pop2016fractionQ1&2'!$C$3:$BC$251,'Pop2016fractionQ1&2'!$BD94,FALSE),0)","v":1045},{"$f":"ROUND(Options!$B$21*HLOOKUP(Calculations!$E$2,PARfraction!$C$3:$BC$251,PARfraction!$BD94,FALSE),0)","v":399},92]
[null,"Male 80-84",{"$f":"ROUND(Options!$B$21*HLOOKUP(Calculations!$E$2,Pop2016fraction!$C$3:$BC$251,Pop2016fraction!$BD95,FALSE),0)","v":274},{"$f":"ROUND(Options!$B$21*HLOOKUP(Calculations!$E$2,Pop2016fractionQ1!$C$3:$BC$251,Pop2016fractionQ1!$BD95,FALSE),0)","v":1408},{"$f":"ROUND(Options!$B$21*HLOOKUP(Calculations!$E$2,'Pop2016fractionQ1&2'!$C$3:$BC$251,'Pop2016fractionQ1&2'!$BD95,FALSE),0)","v":694},{"$f":"ROUND(Options!$B$21*HLOOKUP(Calculations!$E$2,PARfraction!$C$3:$BC$251,PARfraction!$BD95,FALSE),0)","v":265},93]
[null,"Male 85-89",{"$f":"ROUND(Options!$B$21*HLOOKUP(Calculations!$E$2,Pop2016fraction!$C$3:$BC$251,Pop2016fraction!$BD96,FALSE),0)","v":132},{"$f":"ROUND(Options!$B$21*HLOOKUP(Calculations!$E$2,Pop2016fractionQ1!$C$3:$BC$251,Pop2016fractionQ1!$BD96,FALSE),0)","v":678},{"$f":"ROUND(Options!$B$21*HLOOKUP(Calculations!$E$2,'Pop2016fractionQ1&2'!$C$3:$BC$251,'Pop2016fractionQ1&2'!$BD96,FALSE),0)","v":334},{"$f":"ROUND(Options!$B$21*HLOOKUP(Calculations!$E$2,PARfraction!$C$3:$BC$251,PARfraction!$BD96,FALSE),0)","v":128},94]
[null,"Male 90+",{"$f":"ROUND(Options!$B$21*HLOOKUP(Calculations!$E$2,Pop2016fraction!$C$3:$BC$251,Pop2016fraction!$BD97,FALSE),0)","v":57},{"$f":"ROUND(Options!$B$21*HLOOKUP(Calculations!$E$2,Pop2016fractionQ1!$C$3:$BC$251,Pop2016fractionQ1!$BD97,FALSE),0)","v":292},{"$f":"ROUND(Options!$B$21*HLOOKUP(Calculations!$E$2,'Pop2016fractionQ1&2'!$C$3:$BC$251,'Pop2016fractionQ1&2'!$BD97,FALSE),0)","v":144},{"$f":"ROUND(Options!$B$21*HLOOKUP(Calculations!$E$2,PARfraction!$C$3:$BC$251,PARfraction!$BD97,FALSE),0)","v":55},95]
["SIMD Q2","Female 0-4",{"$f":"ROUND(Options!$B$21*HLOOKUP(Calculations!$E$2,Pop2016fraction!$C$3:$BC$251,Pop2016fraction!$BD98,FALSE),0)","v":0},{"$f":"ROUND(Options!$B$21*HLOOKUP(Calculations!$E$2,Pop2016fractionQ1!$C$3:$BC$251,Pop2016fractionQ1!$BD98,FALSE),0)","v":0},{"$f":"ROUND(Options!$B$21*HLOOKUP(Calculations!$E$2,'Pop2016fractionQ1&2'!$C$3:$BC$251,'Pop2016fractionQ1&2'!$BD98,FALSE),0)","v":0},{"$f":"ROUND(Options!$B$21*HLOOKUP(Calculations!$E$2,PARfraction!$C$3:$BC$251,PARfraction!$BD98,FALSE),0)","v":0},96]
[null,"Female 5-9",{"$f":"ROUND(Options!$B$21*HLOOKUP(Calculations!$E$2,Pop2016fraction!$C$3:$BC$251,Pop2016fraction!$BD99,FALSE),0)","v":0},{"$f":"ROUND(Options!$B$21*HLOOKUP(Calculations!$E$2,Pop2016fractionQ1!$C$3:$BC$251,Pop2016fractionQ1!$BD99,FALSE),0)","v":0},{"$f":"ROUND(Options!$B$21*HLOOKUP(Calculations!$E$2,'Pop2016fractionQ1&2'!$C$3:$BC$251,'Pop2016fractionQ1&2'!$BD99,FALSE),0)","v":0},{"$f":"ROUND(Options!$B$21*HLOOKUP(Calculations!$E$2,PARfraction!$C$3:$BC$251,PARfraction!$BD99,FALSE),0)","v":0},97]
[null,"Female 10-15",{"$f":"ROUND(Options!$B$21*HLOOKUP(Calculations!$E$2,Pop2016fraction!$C$3:$BC$251,Pop2016fraction!$BD100,FALSE),0)","v":0},{"$f":"ROUND(Options!$B$21*HLOOKUP(Calculations!$E$2,Pop2016fractionQ1!$C$3:$BC$251,Pop2016fractionQ1!$BD100,FALSE),0)","v":0},{"$f":"ROUND(Options!$B$21*HLOOKUP(Calculations!$E$2,'Pop2016fractionQ1&2'!$C$3:$BC$251,'Pop2016fractionQ1&2'!$BD100,FALSE),0)","v":0},{"$f":"ROUND(Options!$B$21*HLOOKUP(Calculations!$E$2,PARfraction!$C$3:$BC$251,PARfraction!$BD100,FALSE),0)","v":0},98]
[null,"Female 16-19",{"$f":"ROUND(Options!$B$21*HLOOKUP(Calculations!$E$2,Pop2016fraction!$C$3:$BC$251,Pop2016fraction!$BD101,FALSE),0)","v":685},{"$f":"ROUND(Options!$B$21*HLOOKUP(Calculations!$E$2,Pop2016fractionQ1!$C$3:$BC$251,Pop2016fractionQ1!$BD101,FALSE),0)","v":0},{"$f":"ROUND(Options!$B$21*HLOOKUP(Calculations!$E$2,'Pop2016fractionQ1&2'!$C$3:$BC$251,'Pop2016fractionQ1&2'!$BD101,FALSE),0)","v":1737},{"$f":"ROUND(Options!$B$21*HLOOKUP(Calculations!$E$2,PARfraction!$C$3:$BC$251,PARfraction!$BD101,FALSE),0)","v":744},99]
[null,"Female 20-24",{"$f":"ROUND(Options!$B$21*HLOOKUP(Calculations!$E$2,Pop2016fraction!$C$3:$BC$251,Pop2016fraction!$BD102,FALSE),0)","v":1093},{"$f":"ROUND(Options!$B$21*HLOOKUP(Calculations!$E$2,Pop2016fractionQ1!$C$3:$BC$251,Pop2016fractionQ1!$BD102,FALSE),0)","v":0},{"$f":"ROUND(Options!$B$21*HLOOKUP(Calculations!$E$2,'Pop2016fractionQ1&2'!$C$3:$BC$251,'Pop2016fractionQ1&2'!$BD102,FALSE),0)","v":2773},{"$f":"ROUND(Options!$B$21*HLOOKUP(Calculations!$E$2,PARfraction!$C$3:$BC$251,PARfraction!$BD102,FALSE),0)","v":1187},100]
[null,"Female 25-29",{"$f":"ROUND(Options!$B$21*HLOOKUP(Calculations!$E$2,Pop2016fraction!$C$3:$BC$251,Pop2016fraction!$BD103,FALSE),0)","v":1203},{"$f":"ROUND(Options!$B$21*HLOOKUP(Calculations!$E$2,Pop2016fractionQ1!$C$3:$BC$251,Pop2016fractionQ1!$BD103,FALSE),0)","v":0},{"$f":"ROUND(Options!$B$21*HLOOKUP(Calculations!$E$2,'Pop2016fractionQ1&2'!$C$3:$BC$251,'Pop2016fractionQ1&2'!$BD103,FALSE),0)","v":3051},{"$f":"ROUND(Options!$B$21*HLOOKUP(Calculations!$E$2,PARfraction!$C$3:$BC$251,PARfraction!$BD103,FALSE),0)","v":1306},101]
[null,"Female 30-34",{"$f":"ROUND(Options!$B$21*HLOOKUP(Calculations!$E$2,Pop2016fraction!$C$3:$BC$251,Pop2016fraction!$BD104,FALSE),0)","v":1128},{"$f":"ROUND(Options!$B$21*HLOOKUP(Calculations!$E$2,Pop2016fractionQ1!$C$3:$BC$251,Pop2016fractionQ1!$BD104,FALSE),0)","v":0},{"$f":"ROUND(Options!$B$21*HLOOKUP(Calculations!$E$2,'Pop2016fractionQ1&2'!$C$3:$BC$251,'Pop2016fractionQ1&2'!$BD104,FALSE),0)","v":2863},{"$f":"ROUND(Options!$B$21*HLOOKUP(Calculations!$E$2,PARfraction!$C$3:$BC$251,PARfraction!$BD104,FALSE),0)","v":1225},102]
[null,"Female 35-39",{"$f":"ROUND(Options!$B$21*HLOOKUP(Calculations!$E$2,Pop2016fraction!$C$3:$BC$251,Pop2016fraction!$BD105,FALSE),0)","v":978},{"$f":"ROUND(Options!$B$21*HLOOKUP(Calculations!$E$2,Pop2016fractionQ1!$C$3:$BC$251,Pop2016fractionQ1!$BD105,FALSE),0)","v":0},{"$f":"ROUND(Options!$B$21*HLOOKUP(Calculations!$E$2,'Pop2016fractionQ1&2'!$C$3:$BC$251,'Pop2016fractionQ1&2'!$BD105,FALSE),0)","v":2481},{"$f":"ROUND(Options!$B$21*HLOOKUP(Calculations!$E$2,PARfraction!$C$3:$BC$251,PARfraction!$BD105,FALSE),0)","v":1062},103]
[null,"Female 40-44",{"$f":"ROUND(Options!$B$21*HLOOKUP(Calculations!$E$2,Pop2016fraction!$C$3:$BC$251,Pop2016fraction!$BD106,FALSE),0)","v":990},{"$f":"ROUND(Options!$B$21*HLOOKUP(Calculations!$E$2,Pop2016fractionQ1!$C$3:$BC$251,Pop2016fractionQ1!$BD106,FALSE),0)","v":0},{"$f":"ROUND(Options!$B$21*HLOOKUP(Calculations!$E$2,'Pop2016fractionQ1&2'!$C$3:$BC$251,'Pop2016fractionQ1&2'!$BD106,FALSE),0)","v":2513},{"$f":"ROUND(Options!$B$21*HLOOKUP(Calculations!$E$2,PARfraction!$C$3:$BC$251,PARfraction!$BD106,FALSE),0)","v":1075},104]
[null,"Female 45-49",{"$f":"ROUND(Options!$B$21*HLOOKUP(Calculations!$E$2,Pop2016fraction!$C$3:$BC$251,Pop2016fraction!$BD107,FALSE),0)","v":1160},{"$f":"ROUND(Options!$B$21*HLOOKUP(Calculations!$E$2,Pop2016fractionQ1!$C$3:$BC$251,Pop2016fractionQ1!$BD107,FALSE),0)","v":0},{"$f":"ROUND(Options!$B$21*HLOOKUP(Calculations!$E$2,'Pop2016fractionQ1&2'!$C$3:$BC$251,'Pop2016fractionQ1&2'!$BD107,FALSE),0)","v":2943},{"$f":"ROUND(Options!$B$21*HLOOKUP(Calculations!$E$2,PARfraction!$C$3:$BC$251,PARfraction!$BD107,FALSE),0)","v":1260},105]
[null,"Female 50-54",{"$f":"ROUND(Options!$B$21*HLOOKUP(Calculations!$E$2,Pop2016fraction!$C$3:$BC$251,Pop2016fraction!$BD108,FALSE),0)","v":1200},{"$f":"ROUND(Options!$B$21*HLOOKUP(Calculations!$E$2,Pop2016fractionQ1!$C$3:$BC$251,Pop2016fractionQ1!$BD108,FALSE),0)","v":0},{"$f":"ROUND(Options!$B$21*HLOOKUP(Calculations!$E$2,'Pop2016fractionQ1&2'!$C$3:$BC$251,'Pop2016fractionQ1&2'!$BD108,FALSE),0)","v":3044},{"$f":"ROUND(Options!$B$21*HLOOKUP(Calculations!$E$2,PARfraction!$C$3:$BC$251,PARfraction!$BD108,FALSE),0)","v":1303},106]
[null,"Female 55-59",{"$f":"ROUND(Options!$B$21*HLOOKUP(Calculations!$E$2,Pop2016fraction!$C$3:$BC$251,Pop2016fraction!$BD109,FALSE),0)","v":1104},{"$f":"ROUND(Options!$B$21*HLOOKUP(Calculations!$E$2,Pop2016fractionQ1!$C$3:$BC$251,Pop2016fractionQ1!$BD109,FALSE),0)","v":0},{"$f":"ROUND(Options!$B$21*HLOOKUP(Calculations!$E$2,'Pop2016fractionQ1&2'!$C$3:$BC$251,'Pop2016fractionQ1&2'!$BD109,FALSE),0)","v":2801},{"$f":"ROUND(Options!$B$21*HLOOKUP(Calculations!$E$2,PARfraction!$C$3:$BC$251,PARfraction!$BD109,FALSE),0)","v":1567},107]
[null,"Female 60-64",{"$f":"ROUND(Options!$B$21*HLOOKUP(Calculations!$E$2,Pop2016fraction!$C$3:$BC$251,Pop2016fraction!$BD110,FALSE),0)","v":967},{"$f":"ROUND(Options!$B$21*HLOOKUP(Calculations!$E$2,Pop2016fractionQ1!$C$3:$BC$251,Pop2016fractionQ1!$BD110,FALSE),0)","v":0},{"$f":"ROUND(Options!$B$21*HLOOKUP(Calculations!$E$2,'Pop2016fractionQ1&2'!$C$3:$BC$251,'Pop2016fractionQ1&2'!$BD110,FALSE),0)","v":2453},{"$f":"ROUND(Options!$B$21*HLOOKUP(Calculations!$E$2,PARfraction!$C$3:$BC$251,PARfraction!$BD110,FALSE),0)","v":1372},108]
[null,"Female 65-69",{"$f":"ROUND(Options!$B$21*HLOOKUP(Calculations!$E$2,Pop2016fraction!$C$3:$BC$251,Pop2016fraction!$BD111,FALSE),0)","v":965},{"$f":"ROUND(Options!$B$21*HLOOKUP(Calculations!$E$2,Pop2016fractionQ1!$C$3:$BC$251,Pop2016fractionQ1!$BD111,FALSE),0)","v":0},{"$f":"ROUND(Options!$B$21*HLOOKUP(Calculations!$E$2,'Pop2016fractionQ1&2'!$C$3:$BC$251,'Pop2016fractionQ1&2'!$BD111,FALSE),0)","v":2448},{"$f":"ROUND(Options!$B$21*HLOOKUP(Calculations!$E$2,PARfraction!$C$3:$BC$251,PARfraction!$BD111,FALSE),0)","v":1369},109]
[null,"Female 70-74",{"$f":"ROUND(Options!$B$21*HLOOKUP(Calculations!$E$2,Pop2016fraction!$C$3:$BC$251,Pop2016fraction!$BD112,FALSE),0)","v":763},{"$f":"ROUND(Options!$B$21*HLOOKUP(Calculations!$E$2,Pop2016fractionQ1!$C$3:$BC$251,Pop2016fractionQ1!$BD112,FALSE),0)","v":0},{"$f":"ROUND(Options!$B$21*HLOOKUP(Calculations!$E$2,'Pop2016fractionQ1&2'!$C$3:$BC$251,'Pop2016fractionQ1&2'!$BD112,FALSE),0)","v":1936},{"$f":"ROUND(Options!$B$21*HLOOKUP(Calculations!$E$2,PARfraction!$C$3:$BC$251,PARfraction!$BD112,FALSE),0)","v":1083},110]
[null,"Female 75-79",{"$f":"ROUND(Options!$B$21*HLOOKUP(Calculations!$E$2,Pop2016fraction!$C$3:$BC$251,Pop2016fraction!$BD113,FALSE),0)","v":656},{"$f":"ROUND(Options!$B$21*HLOOKUP(Calculations!$E$2,Pop2016fractionQ1!$C$3:$BC$251,Pop2016fractionQ1!$BD113,FALSE),0)","v":0},{"$f":"ROUND(Options!$B$21*HLOOKUP(Calculations!$E$2,'Pop2016fractionQ1&2'!$C$3:$BC$251,'Pop2016fractionQ1&2'!$BD113,FALSE),0)","v":1666},{"$f":"ROUND(Options!$B$21*HLOOKUP(Calculations!$E$2,PARfraction!$C$3:$BC$251,PARfraction!$BD113,FALSE),0)","v":932},111]
[null,"Female 80-84",{"$f":"ROUND(Options!$B$21*HLOOKUP(Calculations!$E$2,Pop2016fraction!$C$3:$BC$251,Pop2016fraction!$BD114,FALSE),0)","v":517},{"$f":"ROUND(Options!$B$21*HLOOKUP(Calculations!$E$2,Pop2016fractionQ1!$C$3:$BC$251,Pop2016fractionQ1!$BD114,FALSE),0)","v":0},{"$f":"ROUND(Options!$B$21*HLOOKUP(Calculations!$E$2,'Pop2016fractionQ1&2'!$C$3:$BC$251,'Pop2016fractionQ1&2'!$BD114,FALSE),0)","v":1313},{"$f":"ROUND(Options!$B$21*HLOOKUP(Calculations!$E$2,PARfraction!$C$3:$BC$251,PARfraction!$BD114,FALSE),0)","v":734},112]
[null,"Female 85-89",{"$f":"ROUND(Options!$B$21*HLOOKUP(Calculations!$E$2,Pop2016fraction!$C$3:$BC$251,Pop2016fraction!$BD115,FALSE),0)","v":308},{"$f":"ROUND(Options!$B$21*HLOOKUP(Calculations!$E$2,Pop2016fractionQ1!$C$3:$BC$251,Pop2016fractionQ1!$BD115,FALSE),0)","v":0},{"$f":"ROUND(Options!$B$21*HLOOKUP(Calculations!$E$2,'Pop2016fractionQ1&2'!$C$3:$BC$251,'Pop2016fractionQ1&2'!$BD115,FALSE),0)","v":782},{"$f":"ROUND(Options!$B$21*HLOOKUP(Calculations!$E$2,PARfraction!$C$3:$BC$251,PARfraction!$BD115,FALSE),0)","v":438},113]
[null,"Female 90+",{"$f":"ROUND(Options!$B$21*HLOOKUP(Calculations!$E$2,Pop2016fraction!$C$3:$BC$251,Pop2016fraction!$BD116,FALSE),0)","v":174},{"$f":"ROUND(Options!$B$21*HLOOKUP(Calculations!$E$2,Pop2016fractionQ1!$C$3:$BC$251,Pop2016fractionQ1!$BD116,FALSE),0)","v":0},{"$f":"ROUND(Options!$B$21*HLOOKUP(Calculations!$E$2,'Pop2016fractionQ1&2'!$C$3:$BC$251,'Pop2016fractionQ1&2'!$BD116,FALSE),0)","v":443},{"$f":"ROUND(Options!$B$21*HLOOKUP(Calculations!$E$2,PARfraction!$C$3:$BC$251,PARfraction!$BD116,FALSE),0)","v":248},114]
[null,"Male 0-4",{"$f":"ROUND(Options!$B$21*HLOOKUP(Calculations!$E$2,Pop2016fraction!$C$3:$BC$251,Pop2016fraction!$BD117,FALSE),0)","v":0},{"$f":"ROUND(Options!$B$21*HLOOKUP(Calculations!$E$2,Pop2016fractionQ1!$C$3:$BC$251,Pop2016fractionQ1!$BD117,FALSE),0)","v":0},{"$f":"ROUND(Options!$B$21*HLOOKUP(Calculations!$E$2,'Pop2016fractionQ1&2'!$C$3:$BC$251,'Pop2016fractionQ1&2'!$BD117,FALSE),0)","v":0},{"$f":"ROUND(Options!$B$21*HLOOKUP(Calculations!$E$2,PARfraction!$C$3:$BC$251,PARfraction!$BD117,FALSE),0)","v":0},115]
[null,"Male 5-9",{"$f":"ROUND(Options!$B$21*HLOOKUP(Calculations!$E$2,Pop2016fraction!$C$3:$BC$251,Pop2016fraction!$BD118,FALSE),0)","v":0},{"$f":"ROUND(Options!$B$21*HLOOKUP(Calculations!$E$2,Pop2016fractionQ1!$C$3:$BC$251,Pop2016fractionQ1!$BD118,FALSE),0)","v":0},{"$f":"ROUND(Options!$B$21*HLOOKUP(Calculations!$E$2,'Pop2016fractionQ1&2'!$C$3:$BC$251,'Pop2016fractionQ1&2'!$BD118,FALSE),0)","v":0},{"$f":"ROUND(Options!$B$21*HLOOKUP(Calculations!$E$2,PARfraction!$C$3:$BC$251,PARfraction!$BD118,FALSE),0)","v":0},116]
[null,"Male 10-15",{"$f":"ROUND(Options!$B$21*HLOOKUP(Calculations!$E$2,Pop2016fraction!$C$3:$BC$251,Pop2016fraction!$BD119,FALSE),0)","v":0},{"$f":"ROUND(Options!$B$21*HLOOKUP(Calculations!$E$2,Pop2016fractionQ1!$C$3:$BC$251,Pop2016fractionQ1!$BD119,FALSE),0)","v":0},{"$f":"ROUND(Options!$B$21*HLOOKUP(Calculations!$E$2,'Pop2016fractionQ1&2'!$C$3:$BC$251,'Pop2016fractionQ1&2'!$BD119,FALSE),0)","v":0},{"$f":"ROUND(Options!$B$21*HLOOKUP(Calculations!$E$2,PARfraction!$C$3:$BC$251,PARfraction!$BD119,FALSE),0)","v":0},117]
[null,"Male 16-19",{"$f":"ROUND(Options!$B$21*HLOOKUP(Calculations!$E$2,Pop2016fraction!$C$3:$BC$251,Pop2016fraction!$BD120,FALSE),0)","v":702},{"$f":"ROUND(Options!$B$21*HLOOKUP(Calculations!$E$2,Pop2016fractionQ1!$C$3:$BC$251,Pop2016fractionQ1!$BD120,FALSE),0)","v":0},{"$f":"ROUND(Options!$B$21*HLOOKUP(Calculations!$E$2,'Pop2016fractionQ1&2'!$C$3:$BC$251,'Pop2016fractionQ1&2'!$BD120,FALSE),0)","v":1780},{"$f":"ROUND(Options!$B$21*HLOOKUP(Calculations!$E$2,PARfraction!$C$3:$BC$251,PARfraction!$BD120,FALSE),0)","v":624},118]
[null,"Male 20-24",{"$f":"ROUND(Options!$B$21*HLOOKUP(Calculations!$E$2,Pop2016fraction!$C$3:$BC$251,Pop2016fraction!$BD121,FALSE),0)","v":1065},{"$f":"ROUND(Options!$B$21*HLOOKUP(Calculations!$E$2,Pop2016fractionQ1!$C$3:$BC$251,Pop2016fractionQ1!$BD121,FALSE),0)","v":0},{"$f":"ROUND(Options!$B$21*HLOOKUP(Calculations!$E$2,'Pop2016fractionQ1&2'!$C$3:$BC$251,'Pop2016fractionQ1&2'!$BD121,FALSE),0)","v":2702},{"$f":"ROUND(Options!$B$21*HLOOKUP(Calculations!$E$2,PARfraction!$C$3:$BC$251,PARfraction!$BD121,FALSE),0)","v":948},119]
[null,"Male 25-29",{"$f":"ROUND(Options!$B$21*HLOOKUP(Calculations!$E$2,Pop2016fraction!$C$3:$BC$251,Pop2016fraction!$BD122,FALSE),0)","v":1173},{"$f":"ROUND(Options!$B$21*HLOOKUP(Calculations!$E$2,Pop2016fractionQ1!$C$3:$BC$251,Pop2016fractionQ1!$BD122,FALSE),0)","v":0},{"$f":"ROUND(Options!$B$21*HLOOKUP(Calculations!$E$2,'Pop2016fractionQ1&2'!$C$3:$BC$251,'Pop2016fractionQ1&2'!$BD122,FALSE),0)","v":2976},{"$f":"ROUND(Options!$B$21*HLOOKUP(Calculations!$E$2,PARfraction!$C$3:$BC$251,PARfraction!$BD122,FALSE),0)","v":1044},120]
[null,"Male 30-34",{"$f":"ROUND(Options!$B$21*HLOOKUP(Calculations!$E$2,Pop2016fraction!$C$3:$BC$251,Pop2016fraction!$BD123,FALSE),0)","v":1100},{"$f":"ROUND(Options!$B$21*HLOOKUP(Calculations!$E$2,Pop2016fractionQ1!$C$3:$BC$251,Pop2016fractionQ1!$BD123,FALSE),0)","v":0},{"$f":"ROUND(Options!$B$21*HLOOKUP(Calculations!$E$2,'Pop2016fractionQ1&2'!$C$3:$BC$251,'Pop2016fractionQ1&2'!$BD123,FALSE),0)","v":2791},{"$f":"ROUND(Options!$B$21*HLOOKUP(Calculations!$E$2,PARfraction!$C$3:$BC$251,PARfraction!$BD123,FALSE),0)","v":979},121]
[null,"Male 35-39",{"$f":"ROUND(Options!$B$21*HLOOKUP(Calculations!$E$2,Pop2016fraction!$C$3:$BC$251,Pop2016fraction!$BD124,FALSE),0)","v":958},{"$f":"ROUND(Options!$B$21*HLOOKUP(Calculations!$E$2,Pop2016fractionQ1!$C$3:$BC$251,Pop2016fractionQ1!$BD124,FALSE),0)","v":0},{"$f":"ROUND(Options!$B$21*HLOOKUP(Calculations!$E$2,'Pop2016fractionQ1&2'!$C$3:$BC$251,'Pop2016fractionQ1&2'!$BD124,FALSE),0)","v":2430},{"$f":"ROUND(Options!$B$21*HLOOKUP(Calculations!$E$2,PARfraction!$C$3:$BC$251,PARfraction!$BD124,FALSE),0)","v":852},122]
[null,"Male 40-44",{"$f":"ROUND(Options!$B$21*HLOOKUP(Calculations!$E$2,Pop2016fraction!$C$3:$BC$251,Pop2016fraction!$BD125,FALSE),0)","v":948},{"$f":"ROUND(Options!$B$21*HLOOKUP(Calculations!$E$2,Pop2016fractionQ1!$C$3:$BC$251,Pop2016fractionQ1!$BD125,FALSE),0)","v":0},{"$f":"ROUND(Options!$B$21*HLOOKUP(Calculations!$E$2,'Pop2016fractionQ1&2'!$C$3:$BC$251,'Pop2016fractionQ1&2'!$BD125,FALSE),0)","v":2405},{"$f":"ROUND(Options!$B$21*HLOOKUP(Calculations!$E$2,PARfraction!$C$3:$BC$251,PARfraction!$BD125,FALSE),0)","v":844},123]
[null,"Male 45-49",{"$f":"ROUND(Options!$B$21*HLOOKUP(Calculations!$E$2,Pop2016fraction!$C$3:$BC$251,Pop2016fraction!$BD126,FALSE),0)","v":1087},{"$f":"ROUND(Options!$B$21*HLOOKUP(Calculations!$E$2,Pop2016fractionQ1!$C$3:$BC$251,Pop2016fractionQ1!$BD126,FALSE),0)","v":0},{"$f":"ROUND(Options!$B$21*HLOOKUP(Calculations!$E$2,'Pop2016fractionQ1&2'!$C$3:$BC$251,'Pop2016fractionQ1&2'!$BD126,FALSE),0)","v":2757},{"$f":"ROUND(Options!$B$21*HLOOKUP(Calculations!$E$2,PARfraction!$C$3:$BC$251,PARfraction!$BD126,FALSE),0)","v":967},124]
[null,"Male 50-54",{"$f":"ROUND(Options!$B$21*HLOOKUP(Calculations!$E$2,Pop2016fraction!$C$3:$BC$251,Pop2016fraction!$BD127,FALSE),0)","v":1120},{"$f":"ROUND(Options!$B$21*HLOOKUP(Calculations!$E$2,Pop2016fractionQ1!$C$3:$BC$251,Pop2016fractionQ1!$BD127,FALSE),0)","v":0},{"$f":"ROUND(Options!$B$21*HLOOKUP(Calculations!$E$2,'Pop2016fractionQ1&2'!$C$3:$BC$251,'Pop2016fractionQ1&2'!$BD127,FALSE),0)","v":2842},{"$f":"ROUND(Options!$B$21*HLOOKUP(Calculations!$E$2,PARfraction!$C$3:$BC$251,PARfraction!$BD127,FALSE),0)","v":996},125]
[null,"Male 55-59",{"$f":"ROUND(Options!$B$21*HLOOKUP(Calculations!$E$2,Pop2016fraction!$C$3:$BC$251,Pop2016fraction!$BD128,FALSE),0)","v":1038},{"$f":"ROUND(Options!$B$21*HLOOKUP(Calculations!$E$2,Pop2016fractionQ1!$C$3:$BC$251,Pop2016fractionQ1!$BD128,FALSE),0)","v":0},{"$f":"ROUND(Options!$B$21*HLOOKUP(Calculations!$E$2,'Pop2016fractionQ1&2'!$C$3:$BC$251,'Pop2016fractionQ1&2'!$BD128,FALSE),0)","v":2633},{"$f":"ROUND(Options!$B$21*HLOOKUP(Calculations!$E$2,PARfraction!$C$3:$BC$251,PARfraction!$BD128,FALSE),0)","v":1207},126]
[null,"Male 60-64",{"$f":"ROUND(Options!$B$21*HLOOKUP(Calculations!$E$2,Pop2016fraction!$C$3:$BC$251,Pop2016fraction!$BD129,FALSE),0)","v":888},{"$f":"ROUND(Options!$B$21*HLOOKUP(Calculations!$E$2,Pop2016fractionQ1!$C$3:$BC$251,Pop2016fractionQ1!$BD129,FALSE),0)","v":0},{"$f":"ROUND(Options!$B$21*HLOOKUP(Calculations!$E$2,'Pop2016fractionQ1&2'!$C$3:$BC$251,'Pop2016fractionQ1&2'!$BD129,FALSE),0)","v":2253},{"$f":"ROUND(Options!$B$21*HLOOKUP(Calculations!$E$2,PARfraction!$C$3:$BC$251,PARfraction!$BD129,FALSE),0)","v":1033},127]
[null,"Male 65-69",{"$f":"ROUND(Options!$B$21*HLOOKUP(Calculations!$E$2,Pop2016fraction!$C$3:$BC$251,Pop2016fraction!$BD130,FALSE),0)","v":880},{"$f":"ROUND(Options!$B$21*HLOOKUP(Calculations!$E$2,Pop2016fractionQ1!$C$3:$BC$251,Pop2016fractionQ1!$BD130,FALSE),0)","v":0},{"$f":"ROUND(Options!$B$21*HLOOKUP(Calculations!$E$2,'Pop2016fractionQ1&2'!$C$3:$BC$251,'Pop2016fractionQ1&2'!$BD130,FALSE),0)","v":2234},{"$f":"ROUND(Options!$B$21*HLOOKUP(Calculations!$E$2,PARfraction!$C$3:$BC$251,PARfraction!$BD130,FALSE),0)","v":1024},128]
[null,"Male 70-74",{"$f":"ROUND(Options!$B$21*HLOOKUP(Calculations!$E$2,Pop2016fraction!$C$3:$BC$251,Pop2016fraction!$BD131,FALSE),0)","v":653},{"$f":"ROUND(Options!$B$21*HLOOKUP(Calculations!$E$2,Pop2016fractionQ1!$C$3:$BC$251,Pop2016fractionQ1!$BD131,FALSE),0)","v":0},{"$f":"ROUND(Options!$B$21*HLOOKUP(Calculations!$E$2,'Pop2016fractionQ1&2'!$C$3:$BC$251,'Pop2016fractionQ1&2'!$BD131,FALSE),0)","v":1657},{"$f":"ROUND(Options!$B$21*HLOOKUP(Calculations!$E$2,PARfraction!$C$3:$BC$251,PARfraction!$BD131,FALSE),0)","v":759},129]
[null,"Male 75-79",{"$f":"ROUND(Options!$B$21*HLOOKUP(Calculations!$E$2,Pop2016fraction!$C$3:$BC$251,Pop2016fraction!$BD132,FALSE),0)","v":494},{"$f":"ROUND(Options!$B$21*HLOOKUP(Calculations!$E$2,Pop2016fractionQ1!$C$3:$BC$251,Pop2016fractionQ1!$BD132,FALSE),0)","v":0},{"$f":"ROUND(Options!$B$21*HLOOKUP(Calculations!$E$2,'Pop2016fractionQ1&2'!$C$3:$BC$251,'Pop2016fractionQ1&2'!$BD132,FALSE),0)","v":1254},{"$f":"ROUND(Options!$B$21*HLOOKUP(Calculations!$E$2,PARfraction!$C$3:$BC$251,PARfraction!$BD132,FALSE),0)","v":575},130]
[null,"Male 80-84",{"$f":"ROUND(Options!$B$21*HLOOKUP(Calculations!$E$2,Pop2016fraction!$C$3:$BC$251,Pop2016fraction!$BD133,FALSE),0)","v":336},{"$f":"ROUND(Options!$B$21*HLOOKUP(Calculations!$E$2,Pop2016fractionQ1!$C$3:$BC$251,Pop2016fractionQ1!$BD133,FALSE),0)","v":0},{"$f":"ROUND(Options!$B$21*HLOOKUP(Calculations!$E$2,'Pop2016fractionQ1&2'!$C$3:$BC$251,'Pop2016fractionQ1&2'!$BD133,FALSE),0)","v":852},{"$f":"ROUND(Options!$B$21*HLOOKUP(Calculations!$E$2,PARfraction!$C$3:$BC$251,PARfraction!$BD133,FALSE),0)","v":390},131]
[null,"Male 85-89",{"$f":"ROUND(Options!$B$21*HLOOKUP(Calculations!$E$2,Pop2016fraction!$C$3:$BC$251,Pop2016fraction!$BD134,FALSE),0)","v":165},{"$f":"ROUND(Options!$B$21*HLOOKUP(Calculations!$E$2,Pop2016fractionQ1!$C$3:$BC$251,Pop2016fractionQ1!$BD134,FALSE),0)","v":0},{"$f":"ROUND(Options!$B$21*HLOOKUP(Calculations!$E$2,'Pop2016fractionQ1&2'!$C$3:$BC$251,'Pop2016fractionQ1&2'!$BD134,FALSE),0)","v":418},{"$f":"ROUND(Options!$B$21*HLOOKUP(Calculations!$E$2,PARfraction!$C$3:$BC$251,PARfraction!$BD134,FALSE),0)","v":192},132]
[null,"Male 90+",{"$f":"ROUND(Options!$B$21*HLOOKUP(Calculations!$E$2,Pop2016fraction!$C$3:$BC$251,Pop2016fraction!$BD135,FALSE),0)","v":68},{"$f":"ROUND(Options!$B$21*HLOOKUP(Calculations!$E$2,Pop2016fractionQ1!$C$3:$BC$251,Pop2016fractionQ1!$BD135,FALSE),0)","v":0},{"$f":"ROUND(Options!$B$21*HLOOKUP(Calculations!$E$2,'Pop2016fractionQ1&2'!$C$3:$BC$251,'Pop2016fractionQ1&2'!$BD135,FALSE),0)","v":172},{"$f":"ROUND(Options!$B$21*HLOOKUP(Calculations!$E$2,PARfraction!$C$3:$BC$251,PARfraction!$BD135,FALSE),0)","v":79},133]
["SIMD Q3","Female 0-4",{"$f":"ROUND(Options!$B$21*HLOOKUP(Calculations!$E$2,Pop2016fraction!$C$3:$BC$251,Pop2016fraction!$BD136,FALSE),0)","v":0},{"$f":"ROUND(Options!$B$21*HLOOKUP(Calculations!$E$2,Pop2016fractionQ1!$C$3:$BC$251,Pop2016fractionQ1!$BD136,FALSE),0)","v":0},{"$f":"ROUND(Options!$B$21*HLOOKUP(Calculations!$E$2,'Pop2016fractionQ1&2'!$C$3:$BC$251,'Pop2016fractionQ1&2'!$BD136,FALSE),0)","v":0},{"$f":"ROUND(Options!$B$21*HLOOKUP(Calculations!$E$2,PARfraction!$C$3:$BC$251,PARfraction!$BD136,FALSE),0)","v":0},134]
[null,"Female 5-9",{"$f":"ROUND(Options!$B$21*HLOOKUP(Calculations!$E$2,Pop2016fraction!$C$3:$BC$251,Pop2016fraction!$BD137,FALSE),0)","v":0},{"$f":"ROUND(Options!$B$21*HLOOKUP(Calculations!$E$2,Pop2016fractionQ1!$C$3:$BC$251,Pop2016fractionQ1!$BD137,FALSE),0)","v":0},{"$f":"ROUND(Options!$B$21*HLOOKUP(Calculations!$E$2,'Pop2016fractionQ1&2'!$C$3:$BC$251,'Pop2016fractionQ1&2'!$BD137,FALSE),0)","v":0},{"$f":"ROUND(Options!$B$21*HLOOKUP(Calculations!$E$2,PARfraction!$C$3:$BC$251,PARfraction!$BD137,FALSE),0)","v":0},135]
[null,"Female 10-15",{"$f":"ROUND(Options!$B$21*HLOOKUP(Calculations!$E$2,Pop2016fraction!$C$3:$BC$251,Pop2016fraction!$BD138,FALSE),0)","v":0},{"$f":"ROUND(Options!$B$21*HLOOKUP(Calculations!$E$2,Pop2016fractionQ1!$C$3:$BC$251,Pop2016fractionQ1!$BD138,FALSE),0)","v":0},{"$f":"ROUND(Options!$B$21*HLOOKUP(Calculations!$E$2,'Pop2016fractionQ1&2'!$C$3:$BC$251,'Pop2016fractionQ1&2'!$BD138,FALSE),0)","v":0},{"$f":"ROUND(Options!$B$21*HLOOKUP(Calculations!$E$2,PARfraction!$C$3:$BC$251,PARfraction!$BD138,FALSE),0)","v":0},136]
[null,"Female 16-19",{"$f":"ROUND(Options!$B$21*HLOOKUP(Calculations!$E$2,Pop2016fraction!$C$3:$BC$251,Pop2016fraction!$BD139,FALSE),0)","v":677},{"$f":"ROUND(Options!$B$21*HLOOKUP(Calculations!$E$2,Pop2016fractionQ1!$C$3:$BC$251,Pop2016fractionQ1!$BD139,FALSE),0)","v":0},{"$f":"ROUND(Options!$B$21*HLOOKUP(Calculations!$E$2,'Pop2016fractionQ1&2'!$C$3:$BC$251,'Pop2016fractionQ1&2'!$BD139,FALSE),0)","v":0},{"$f":"ROUND(Options!$B$21*HLOOKUP(Calculations!$E$2,PARfraction!$C$3:$BC$251,PARfraction!$BD139,FALSE),0)","v":884},137]
[null,"Female 20-24",{"$f":"ROUND(Options!$B$21*HLOOKUP(Calculations!$E$2,Pop2016fraction!$C$3:$BC$251,Pop2016fraction!$BD140,FALSE),0)","v":1034},{"$f":"ROUND(Options!$B$21*HLOOKUP(Calculations!$E$2,Pop2016fractionQ1!$C$3:$BC$251,Pop2016fractionQ1!$BD140,FALSE),0)","v":0},{"$f":"ROUND(Options!$B$21*HLOOKUP(Calculations!$E$2,'Pop2016fractionQ1&2'!$C$3:$BC$251,'Pop2016fractionQ1&2'!$BD140,FALSE),0)","v":0},{"$f":"ROUND(Options!$B$21*HLOOKUP(Calculations!$E$2,PARfraction!$C$3:$BC$251,PARfraction!$BD140,FALSE),0)","v":1350},138]
[null,"Female 25-29",{"$f":"ROUND(Options!$B$21*HLOOKUP(Calculations!$E$2,Pop2016fraction!$C$3:$BC$251,Pop2016fraction!$BD141,FALSE),0)","v":1079},{"$f":"ROUND(Options!$B$21*HLOOKUP(Calculations!$E$2,Pop2016fractionQ1!$C$3:$BC$251,Pop2016fractionQ1!$BD141,FALSE),0)","v":0},{"$f":"ROUND(Options!$B$21*HLOOKUP(Calculations!$E$2,'Pop2016fractionQ1&2'!$C$3:$BC$251,'Pop2016fractionQ1&2'!$BD141,FALSE),0)","v":0},{"$f":"ROUND(Options!$B$21*HLOOKUP(Calculations!$E$2,PARfraction!$C$3:$BC$251,PARfraction!$BD141,FALSE),0)","v":1409},139]
[null,"Female 30-34",{"$f":"ROUND(Options!$B$21*HLOOKUP(Calculations!$E$2,Pop2016fraction!$C$3:$BC$251,Pop2016fraction!$BD142,FALSE),0)","v":1030},{"$f":"ROUND(Options!$B$21*HLOOKUP(Calculations!$E$2,Pop2016fractionQ1!$C$3:$BC$251,Pop2016fractionQ1!$BD142,FALSE),0)","v":0},{"$f":"ROUND(Options!$B$21*HLOOKUP(Calculations!$E$2,'Pop2016fractionQ1&2'!$C$3:$BC$251,'Pop2016fractionQ1&2'!$BD142,FALSE),0)","v":0},{"$f":"ROUND(Options!$B$21*HLOOKUP(Calculations!$E$2,PARfraction!$C$3:$BC$251,PARfraction!$BD142,FALSE),0)","v":1346},140]
[null,"Female 35-39",{"$f":"ROUND(Options!$B$21*HLOOKUP(Calculations!$E$2,Pop2016fraction!$C$3:$BC$251,Pop2016fraction!$BD143,FALSE),0)","v":946},{"$f":"ROUND(Options!$B$21*HLOOKUP(Calculations!$E$2,Pop2016fractionQ1!$C$3:$BC$251,Pop2016fractionQ1!$BD143,FALSE),0)","v":0},{"$f":"ROUND(Options!$B$21*HLOOKUP(Calculations!$E$2,'Pop2016fractionQ1&2'!$C$3:$BC$251,'Pop2016fractionQ1&2'!$BD143,FALSE),0)","v":0},{"$f":"ROUND(Options!$B$21*HLOOKUP(Calculations!$E$2,PARfraction!$C$3:$BC$251,PARfraction!$BD143,FALSE),0)","v":1236},141]
[null,"Female 40-44",{"$f":"ROUND(Options!$B$21*HLOOKUP(Calculations!$E$2,Pop2016fraction!$C$3:$BC$251,Pop2016fraction!$BD144,FALSE),0)","v":986},{"$f":"ROUND(Options!$B$21*HLOOKUP(Calculations!$E$2,Pop2016fractionQ1!$C$3:$BC$251,Pop2016fractionQ1!$BD144,FALSE),0)","v":0},{"$f":"ROUND(Options!$B$21*HLOOKUP(Calculations!$E$2,'Pop2016fractionQ1&2'!$C$3:$BC$251,'Pop2016fractionQ1&2'!$BD144,FALSE),0)","v":0},{"$f":"ROUND(Options!$B$21*HLOOKUP(Calculations!$E$2,PARfraction!$C$3:$BC$251,PARfraction!$BD144,FALSE),0)","v":1287},142]
[null,"Female 45-49",{"$f":"ROUND(Options!$B$21*HLOOKUP(Calculations!$E$2,Pop2016fraction!$C$3:$BC$251,Pop2016fraction!$BD145,FALSE),0)","v":1199},{"$f":"ROUND(Options!$B$21*HLOOKUP(Calculations!$E$2,Pop2016fractionQ1!$C$3:$BC$251,Pop2016fractionQ1!$BD145,FALSE),0)","v":0},{"$f":"ROUND(Options!$B$21*HLOOKUP(Calculations!$E$2,'Pop2016fractionQ1&2'!$C$3:$BC$251,'Pop2016fractionQ1&2'!$BD145,FALSE),0)","v":0},{"$f":"ROUND(Options!$B$21*HLOOKUP(Calculations!$E$2,PARfraction!$C$3:$BC$251,PARfraction!$BD145,FALSE),0)","v":1566},143]
[null,"Female 50-54",{"$f":"ROUND(Options!$B$21*HLOOKUP(Calculations!$E$2,Pop2016fraction!$C$3:$BC$251,Pop2016fraction!$BD146,FALSE),0)","v":1260},{"$f":"ROUND(Options!$B$21*HLOOKUP(Calculations!$E$2,Pop2016fractionQ1!$C$3:$BC$251,Pop2016fractionQ1!$BD146,FALSE),0)","v":0},{"$f":"ROUND(Options!$B$21*HLOOKUP(Calculations!$E$2,'Pop2016fractionQ1&2'!$C$3:$BC$251,'Pop2016fractionQ1&2'!$BD146,FALSE),0)","v":0},{"$f":"ROUND(Options!$B$21*HLOOKUP(Calculations!$E$2,PARfraction!$C$3:$BC$251,PARfraction!$BD146,FALSE),0)","v":1645},144]
[null,"Female 55-59",{"$f":"ROUND(Options!$B$21*HLOOKUP(Calculations!$E$2,Pop2016fraction!$C$3:$BC$251,Pop2016fraction!$BD147,FALSE),0)","v":1160},{"$f":"ROUND(Options!$B$21*HLOOKUP(Calculations!$E$2,Pop2016fractionQ1!$C$3:$BC$251,Pop2016fractionQ1!$BD147,FALSE),0)","v":0},{"$f":"ROUND(Options!$B$21*HLOOKUP(Calculations!$E$2,'Pop2016fractionQ1&2'!$C$3:$BC$251,'Pop2016fractionQ1&2'!$BD147,FALSE),0)","v":0},{"$f":"ROUND(Options!$B$21*HLOOKUP(Calculations!$E$2,PARfraction!$C$3:$BC$251,PARfraction!$BD147,FALSE),0)","v":1021},145]
[null,"Female 60-64",{"$f":"ROUND(Options!$B$21*HLOOKUP(Calculations!$E$2,Pop2016fraction!$C$3:$BC$251,Pop2016fraction!$BD148,FALSE),0)","v":1024},{"$f":"ROUND(Options!$B$21*HLOOKUP(Calculations!$E$2,Pop2016fractionQ1!$C$3:$BC$251,Pop2016fractionQ1!$BD148,FALSE),0)","v":0},{"$f":"ROUND(Options!$B$21*HLOOKUP(Calculations!$E$2,'Pop2016fractionQ1&2'!$C$3:$BC$251,'Pop2016fractionQ1&2'!$BD148,FALSE),0)","v":0},{"$f":"ROUND(Options!$B$21*HLOOKUP(Calculations!$E$2,PARfraction!$C$3:$BC$251,PARfraction!$BD148,FALSE),0)","v":902},146]
[null,"Female 65-69",{"$f":"ROUND(Options!$B$21*HLOOKUP(Calculations!$E$2,Pop2016fraction!$C$3:$BC$251,Pop2016fraction!$BD149,FALSE),0)","v":1038},{"$f":"ROUND(Options!$B$21*HLOOKUP(Calculations!$E$2,Pop2016fractionQ1!$C$3:$BC$251,Pop2016fractionQ1!$BD149,FALSE),0)","v":0},{"$f":"ROUND(Options!$B$21*HLOOKUP(Calculations!$E$2,'Pop2016fractionQ1&2'!$C$3:$BC$251,'Pop2016fractionQ1&2'!$BD149,FALSE),0)","v":0},{"$f":"ROUND(Options!$B$21*HLOOKUP(Calculations!$E$2,PARfraction!$C$3:$BC$251,PARfraction!$BD149,FALSE),0)","v":914},147]
[null,"Female 70-74",{"$f":"ROUND(Options!$B$21*HLOOKUP(Calculations!$E$2,Pop2016fraction!$C$3:$BC$251,Pop2016fraction!$BD150,FALSE),0)","v":816},{"$f":"ROUND(Options!$B$21*HLOOKUP(Calculations!$E$2,Pop2016fractionQ1!$C$3:$BC$251,Pop2016fractionQ1!$BD150,FALSE),0)","v":0},{"$f":"ROUND(Options!$B$21*HLOOKUP(Calculations!$E$2,'Pop2016fractionQ1&2'!$C$3:$BC$251,'Pop2016fractionQ1&2'!$BD150,FALSE),0)","v":0},{"$f":"ROUND(Options!$B$21*HLOOKUP(Calculations!$E$2,PARfraction!$C$3:$BC$251,PARfraction!$BD150,FALSE),0)","v":719},148]
[null,"Female 75-79",{"$f":"ROUND(Options!$B$21*HLOOKUP(Calculations!$E$2,Pop2016fraction!$C$3:$BC$251,Pop2016fraction!$BD151,FALSE),0)","v":652},{"$f":"ROUND(Options!$B$21*HLOOKUP(Calculations!$E$2,Pop2016fractionQ1!$C$3:$BC$251,Pop2016fractionQ1!$BD151,FALSE),0)","v":0},{"$f":"ROUND(Options!$B$21*HLOOKUP(Calculations!$E$2,'Pop2016fractionQ1&2'!$C$3:$BC$251,'Pop2016fractionQ1&2'!$BD151,FALSE),0)","v":0},{"$f":"ROUND(Options!$B$21*HLOOKUP(Calculations!$E$2,PARfraction!$C$3:$BC$251,PARfraction!$BD151,FALSE),0)","v":575},149]
[null,"Female 80-84",{"$f":"ROUND(Options!$B$21*HLOOKUP(Calculations!$E$2,Pop2016fraction!$C$3:$BC$251,Pop2016fraction!$BD152,FALSE),0)","v":494},{"$f":"ROUND(Options!$B$21*HLOOKUP(Calculations!$E$2,Pop2016fractionQ1!$C$3:$BC$251,Pop2016fractionQ1!$BD152,FALSE),0)","v":0},{"$f":"ROUND(Options!$B$21*HLOOKUP(Calculations!$E$2,'Pop2016fractionQ1&2'!$C$3:$BC$251,'Pop2016fractionQ1&2'!$BD152,FALSE),0)","v":0},{"$f":"ROUND(Options!$B$21*HLOOKUP(Calculations!$E$2,PARfraction!$C$3:$BC$251,PARfraction!$BD152,FALSE),0)","v":435},150]
[null,"Female 85-89",{"$f":"ROUND(Options!$B$21*HLOOKUP(Calculations!$E$2,Pop2016fraction!$C$3:$BC$251,Pop2016fraction!$BD153,FALSE),0)","v":310},{"$f":"ROUND(Options!$B$21*HLOOKUP(Calculations!$E$2,Pop2016fractionQ1!$C$3:$BC$251,Pop2016fractionQ1!$BD153,FALSE),0)","v":0},{"$f":"ROUND(Options!$B$21*HLOOKUP(Calculations!$E$2,'Pop2016fractionQ1&2'!$C$3:$BC$251,'Pop2016fractionQ1&2'!$BD153,FALSE),0)","v":0},{"$f":"ROUND(Options!$B$21*HLOOKUP(Calculations!$E$2,PARfraction!$C$3:$BC$251,PARfraction!$BD153,FALSE),0)","v":273},151]
[null,"Female 90+",{"$f":"ROUND(Options!$B$21*HLOOKUP(Calculations!$E$2,Pop2016fraction!$C$3:$BC$251,Pop2016fraction!$BD154,FALSE),0)","v":186},{"$f":"ROUND(Options!$B$21*HLOOKUP(Calculations!$E$2,Pop2016fractionQ1!$C$3:$BC$251,Pop2016fractionQ1!$BD154,FALSE),0)","v":0},{"$f":"ROUND(Options!$B$21*HLOOKUP(Calculations!$E$2,'Pop2016fractionQ1&2'!$C$3:$BC$251,'Pop2016fractionQ1&2'!$BD154,FALSE),0)","v":0},{"$f":"ROUND(Options!$B$21*HLOOKUP(Calculations!$E$2,PARfraction!$C$3:$BC$251,PARfraction!$BD154,FALSE),0)","v":164},152]
[null,"Male 0-4",{"$f":"ROUND(Options!$B$21*HLOOKUP(Calculations!$E$2,Pop2016fraction!$C$3:$BC$251,Pop2016fraction!$BD155,FALSE),0)","v":0},{"$f":"ROUND(Options!$B$21*HLOOKUP(Calculations!$E$2,Pop2016fractionQ1!$C$3:$BC$251,Pop2016fractionQ1!$BD155,FALSE),0)","v":0},{"$f":"ROUND(Options!$B$21*HLOOKUP(Calculations!$E$2,'Pop2016fractionQ1&2'!$C$3:$BC$251,'Pop2016fractionQ1&2'!$BD155,FALSE),0)","v":0},{"$f":"ROUND(Options!$B$21*HLOOKUP(Calculations!$E$2,PARfraction!$C$3:$BC$251,PARfraction!$BD155,FALSE),0)","v":0},153]
[null,"Male 5-9",{"$f":"ROUND(Options!$B$21*HLOOKUP(Calculations!$E$2,Pop2016fraction!$C$3:$BC$251,Pop2016fraction!$BD156,FALSE),0)","v":0},{"$f":"ROUND(Options!$B$21*HLOOKUP(Calculations!$E$2,Pop2016fractionQ1!$C$3:$BC$251,Pop2016fractionQ1!$BD156,FALSE),0)","v":0},{"$f":"ROUND(Options!$B$21*HLOOKUP(Calculations!$E$2,'Pop2016fractionQ1&2'!$C$3:$BC$251,'Pop2016fractionQ1&2'!$BD156,FALSE),0)","v":0},{"$f":"ROUND(Options!$B$21*HLOOKUP(Calculations!$E$2,PARfraction!$C$3:$BC$251,PARfraction!$BD156,FALSE),0)","v":0},154]
[null,"Male 10-15",{"$f":"ROUND(Options!$B$21*HLOOKUP(Calculations!$E$2,Pop2016fraction!$C$3:$BC$251,Pop2016fraction!$BD157,FALSE),0)","v":0},{"$f":"ROUND(Options!$B$21*HLOOKUP(Calculations!$E$2,Pop2016fractionQ1!$C$3:$BC$251,Pop2016fractionQ1!$BD157,FALSE),0)","v":0},{"$f":"ROUND(Options!$B$21*HLOOKUP(Calculations!$E$2,'Pop2016fractionQ1&2'!$C$3:$BC$251,'Pop2016fractionQ1&2'!$BD157,FALSE),0)","v":0},{"$f":"ROUND(Options!$B$21*HLOOKUP(Calculations!$E$2,PARfraction!$C$3:$BC$251,PARfraction!$BD157,FALSE),0)","v":0},155]
[null,"Male 16-19",{"$f":"ROUND(Options!$B$21*HLOOKUP(Calculations!$E$2,Pop2016fraction!$C$3:$BC$251,Pop2016fraction!$BD158,FALSE),0)","v":703},{"$f":"ROUND(Options!$B$21*HLOOKUP(Calculations!$E$2,Pop2016fractionQ1!$C$3:$BC$251,Pop2016fractionQ1!$BD158,FALSE),0)","v":0},{"$f":"ROUND(Options!$B$21*HLOOKUP(Calculations!$E$2,'Pop2016fractionQ1&2'!$C$3:$BC$251,'Pop2016fractionQ1&2'!$BD158,FALSE),0)","v":0},{"$f":"ROUND(Options!$B$21*HLOOKUP(Calculations!$E$2,PARfraction!$C$3:$BC$251,PARfraction!$BD158,FALSE),0)","v":752},156]
[null,"Male 20-24",{"$f":"ROUND(Options!$B$21*HLOOKUP(Calculations!$E$2,Pop2016fraction!$C$3:$BC$251,Pop2016fraction!$BD159,FALSE),0)","v":1044},{"$f":"ROUND(Options!$B$21*HLOOKUP(Calculations!$E$2,Pop2016fractionQ1!$C$3:$BC$251,Pop2016fractionQ1!$BD159,FALSE),0)","v":0},{"$f":"ROUND(Options!$B$21*HLOOKUP(Calculations!$E$2,'Pop2016fractionQ1&2'!$C$3:$BC$251,'Pop2016fractionQ1&2'!$BD159,FALSE),0)","v":0},{"$f":"ROUND(Options!$B$21*HLOOKUP(Calculations!$E$2,PARfraction!$C$3:$BC$251,PARfraction!$BD159,FALSE),0)","v":1117},157]
[null,"Male 25-29",{"$f":"ROUND(Options!$B$21*HLOOKUP(Calculations!$E$2,Pop2016fraction!$C$3:$BC$251,Pop2016fraction!$BD160,FALSE),0)","v":1064},{"$f":"ROUND(Options!$B$21*HLOOKUP(Calculations!$E$2,Pop2016fractionQ1!$C$3:$BC$251,Pop2016fractionQ1!$BD160,FALSE),0)","v":0},{"$f":"ROUND(Options!$B$21*HLOOKUP(Calculations!$E$2,'Pop2016fractionQ1&2'!$C$3:$BC$251,'Pop2016fractionQ1&2'!$BD160,FALSE),0)","v":0},{"$f":"ROUND(Options!$B$21*HLOOKUP(Calculations!$E$2,PARfraction!$C$3:$BC$251,PARfraction!$BD160,FALSE),0)","v":1139},158]
[null,"Male 30-34",{"$f":"ROUND(Options!$B$21*HLOOKUP(Calculations!$E$2,Pop2016fraction!$C$3:$BC$251,Pop2016fraction!$BD161,FALSE),0)","v":1026},{"$f":"ROUND(Options!$B$21*HLOOKUP(Calculations!$E$2,Pop2016fractionQ1!$C$3:$BC$251,Pop2016fractionQ1!$BD161,FALSE),0)","v":0},{"$f":"ROUND(Options!$B$21*HLOOKUP(Calculations!$E$2,'Pop2016fractionQ1&2'!$C$3:$BC$251,'Pop2016fractionQ1&2'!$BD161,FALSE),0)","v":0},{"$f":"ROUND(Options!$B$21*HLOOKUP(Calculations!$E$2,PARfraction!$C$3:$BC$251,PARfraction!$BD161,FALSE),0)","v":1098},159]
[null,"Male 35-39",{"$f":"ROUND(Options!$B$21*HLOOKUP(Calculations!$E$2,Pop2016fraction!$C$3:$BC$251,Pop2016fraction!$BD162,FALSE),0)","v":948},{"$f":"ROUND(Options!$B$21*HLOOKUP(Calculations!$E$2,Pop2016fractionQ1!$C$3:$BC$251,Pop2016fractionQ1!$BD162,FALSE),0)","v":0},{"$f":"ROUND(Options!$B$21*HLOOKUP(Calculations!$E$2,'Pop2016fractionQ1&2'!$C$3:$BC$251,'Pop2016fractionQ1&2'!$BD162,FALSE),0)","v":0},{"$f":"ROUND(Options!$B$21*HLOOKUP(Calculations!$E$2,PARfraction!$C$3:$BC$251,PARfraction!$BD162,FALSE),0)","v":1014},160]
[null,"Male 40-44",{"$f":"ROUND(Options!$B$21*HLOOKUP(Calculations!$E$2,Pop2016fraction!$C$3:$BC$251,Pop2016fraction!$BD163,FALSE),0)","v":943},{"$f":"ROUND(Options!$B$21*HLOOKUP(Calculations!$E$2,Pop2016fractionQ1!$C$3:$BC$251,Pop2016fractionQ1!$BD163,FALSE),0)","v":0},{"$f":"ROUND(Options!$B$21*HLOOKUP(Calculations!$E$2,'Pop2016fractionQ1&2'!$C$3:$BC$251,'Pop2016fractionQ1&2'!$BD163,FALSE),0)","v":0},{"$f":"ROUND(Options!$B$21*HLOOKUP(Calculations!$E$2,PARfraction!$C$3:$BC$251,PARfraction!$BD163,FALSE),0)","v":1009},161]
[null,"Male 45-49",{"$f":"ROUND(Options!$B$21*HLOOKUP(Calculations!$E$2,Pop2016fraction!$C$3:$BC$251,Pop2016fraction!$BD164,FALSE),0)","v":1115},{"$f":"ROUND(Options!$B$21*HLOOKUP(Calculations!$E$2,Pop2016fractionQ1!$C$3:$BC$251,Pop2016fractionQ1!$BD164,FALSE),0)","v":0},{"$f":"ROUND(Options!$B$21*HLOOKUP(Calculations!$E$2,'Pop2016fractionQ1&2'!$C$3:$BC$251,'Pop2016fractionQ1&2'!$BD164,FALSE),0)","v":0},{"$f":"ROUND(Options!$B$21*HLOOKUP(Calculations!$E$2,PARfraction!$C$3:$BC$251,PARfraction!$BD164,FALSE),0)","v":1193},162]
[null,"Male 50-54",{"$f":"ROUND(Options!$B$21*HLOOKUP(Calculations!$E$2,Pop2016fraction!$C$3:$BC$251,Pop2016fraction!$BD165,FALSE),0)","v":1196},{"$f":"ROUND(Options!$B$21*HLOOKUP(Calculations!$E$2,Pop2016fractionQ1!$C$3:$BC$251,Pop2016fractionQ1!$BD165,FALSE),0)","v":0},{"$f":"ROUND(Options!$B$21*HLOOKUP(Calculations!$E$2,'Pop2016fractionQ1&2'!$C$3:$BC$251,'Pop2016fractionQ1&2'!$BD165,FALSE),0)","v":0},{"$f":"ROUND(Options!$B$21*HLOOKUP(Calculations!$E$2,PARfraction!$C$3:$BC$251,PARfraction!$BD165,FALSE),0)","v":1280},163]
[null,"Male 55-59",{"$f":"ROUND(Options!$B$21*HLOOKUP(Calculations!$E$2,Pop2016fraction!$C$3:$BC$251,Pop2016fraction!$BD166,FALSE),0)","v":1112},{"$f":"ROUND(Options!$B$21*HLOOKUP(Calculations!$E$2,Pop2016fractionQ1!$C$3:$BC$251,Pop2016fractionQ1!$BD166,FALSE),0)","v":0},{"$f":"ROUND(Options!$B$21*HLOOKUP(Calculations!$E$2,'Pop2016fractionQ1&2'!$C$3:$BC$251,'Pop2016fractionQ1&2'!$BD166,FALSE),0)","v":0},{"$f":"ROUND(Options!$B$21*HLOOKUP(Calculations!$E$2,PARfraction!$C$3:$BC$251,PARfraction!$BD166,FALSE),0)","v":802},164]
[null,"Male 60-64",{"$f":"ROUND(Options!$B$21*HLOOKUP(Calculations!$E$2,Pop2016fraction!$C$3:$BC$251,Pop2016fraction!$BD167,FALSE),0)","v":985},{"$f":"ROUND(Options!$B$21*HLOOKUP(Calculations!$E$2,Pop2016fractionQ1!$C$3:$BC$251,Pop2016fractionQ1!$BD167,FALSE),0)","v":0},{"$f":"ROUND(Options!$B$21*HLOOKUP(Calculations!$E$2,'Pop2016fractionQ1&2'!$C$3:$BC$251,'Pop2016fractionQ1&2'!$BD167,FALSE),0)","v":0},{"$f":"ROUND(Options!$B$21*HLOOKUP(Calculations!$E$2,PARfraction!$C$3:$BC$251,PARfraction!$BD167,FALSE),0)","v":710},165]
[null,"Male 65-69",{"$f":"ROUND(Options!$B$21*HLOOKUP(Calculations!$E$2,Pop2016fraction!$C$3:$BC$251,Pop2016fraction!$BD168,FALSE),0)","v":988},{"$f":"ROUND(Options!$B$21*HLOOKUP(Calculations!$E$2,Pop2016fractionQ1!$C$3:$BC$251,Pop2016fractionQ1!$BD168,FALSE),0)","v":0},{"$f":"ROUND(Options!$B$21*HLOOKUP(Calculations!$E$2,'Pop2016fractionQ1&2'!$C$3:$BC$251,'Pop2016fractionQ1&2'!$BD168,FALSE),0)","v":0},{"$f":"ROUND(Options!$B$21*HLOOKUP(Calculations!$E$2,PARfraction!$C$3:$BC$251,PARfraction!$BD168,FALSE),0)","v":713},166]
[null,"Male 70-74",{"$f":"ROUND(Options!$B$21*HLOOKUP(Calculations!$E$2,Pop2016fraction!$C$3:$BC$251,Pop2016fraction!$BD169,FALSE),0)","v":724},{"$f":"ROUND(Options!$B$21*HLOOKUP(Calculations!$E$2,Pop2016fractionQ1!$C$3:$BC$251,Pop2016fractionQ1!$BD169,FALSE),0)","v":0},{"$f":"ROUND(Options!$B$21*HLOOKUP(Calculations!$E$2,'Pop2016fractionQ1&2'!$C$3:$BC$251,'Pop2016fractionQ1&2'!$BD169,FALSE),0)","v":0},{"$f":"ROUND(Options!$B$21*HLOOKUP(Calculations!$E$2,PARfraction!$C$3:$BC$251,PARfraction!$BD169,FALSE),0)","v":522},167]
[null,"Male 75-79",{"$f":"ROUND(Options!$B$21*HLOOKUP(Calculations!$E$2,Pop2016fraction!$C$3:$BC$251,Pop2016fraction!$BD170,FALSE),0)","v":537},{"$f":"ROUND(Options!$B$21*HLOOKUP(Calculations!$E$2,Pop2016fractionQ1!$C$3:$BC$251,Pop2016fractionQ1!$BD170,FALSE),0)","v":0},{"$f":"ROUND(Options!$B$21*HLOOKUP(Calculations!$E$2,'Pop2016fractionQ1&2'!$C$3:$BC$251,'Pop2016fractionQ1&2'!$BD170,FALSE),0)","v":0},{"$f":"ROUND(Options!$B$21*HLOOKUP(Calculations!$E$2,PARfraction!$C$3:$BC$251,PARfraction!$BD170,FALSE),0)","v":388},168]
[null,"Male 80-84",{"$f":"ROUND(Options!$B$21*HLOOKUP(Calculations!$E$2,Pop2016fraction!$C$3:$BC$251,Pop2016fraction!$BD171,FALSE),0)","v":358},{"$f":"ROUND(Options!$B$21*HLOOKUP(Calculations!$E$2,Pop2016fractionQ1!$C$3:$BC$251,Pop2016fractionQ1!$BD171,FALSE),0)","v":0},{"$f":"ROUND(Options!$B$21*HLOOKUP(Calculations!$E$2,'Pop2016fractionQ1&2'!$C$3:$BC$251,'Pop2016fractionQ1&2'!$BD171,FALSE),0)","v":0},{"$f":"ROUND(Options!$B$21*HLOOKUP(Calculations!$E$2,PARfraction!$C$3:$BC$251,PARfraction!$BD171,FALSE),0)","v":258},169]
[null,"Male 85-89",{"$f":"ROUND(Options!$B$21*HLOOKUP(Calculations!$E$2,Pop2016fraction!$C$3:$BC$251,Pop2016fraction!$BD172,FALSE),0)","v":178},{"$f":"ROUND(Options!$B$21*HLOOKUP(Calculations!$E$2,Pop2016fractionQ1!$C$3:$BC$251,Pop2016fractionQ1!$BD172,FALSE),0)","v":0},{"$f":"ROUND(Options!$B$21*HLOOKUP(Calculations!$E$2,'Pop2016fractionQ1&2'!$C$3:$BC$251,'Pop2016fractionQ1&2'!$BD172,FALSE),0)","v":0},{"$f":"ROUND(Options!$B$21*HLOOKUP(Calculations!$E$2,PARfraction!$C$3:$BC$251,PARfraction!$BD172,FALSE),0)","v":129},170]
[null,"Male 90+",{"$f":"ROUND(Options!$B$21*HLOOKUP(Calculations!$E$2,Pop2016fraction!$C$3:$BC$251,Pop2016fraction!$BD173,FALSE),0)","v":77},{"$f":"ROUND(Options!$B$21*HLOOKUP(Calculations!$E$2,Pop2016fractionQ1!$C$3:$BC$251,Pop2016fractionQ1!$BD173,FALSE),0)","v":0},{"$f":"ROUND(Options!$B$21*HLOOKUP(Calculations!$E$2,'Pop2016fractionQ1&2'!$C$3:$BC$251,'Pop2016fractionQ1&2'!$BD173,FALSE),0)","v":0},{"$f":"ROUND(Options!$B$21*HLOOKUP(Calculations!$E$2,PARfraction!$C$3:$BC$251,PARfraction!$BD173,FALSE),0)","v":55},171]
["SIMD Q4","Female 0-4",{"$f":"ROUND(Options!$B$21*HLOOKUP(Calculations!$E$2,Pop2016fraction!$C$3:$BC$251,Pop2016fraction!$BD174,FALSE),0)","v":0},{"$f":"ROUND(Options!$B$21*HLOOKUP(Calculations!$E$2,Pop2016fractionQ1!$C$3:$BC$251,Pop2016fractionQ1!$BD174,FALSE),0)","v":0},{"$f":"ROUND(Options!$B$21*HLOOKUP(Calculations!$E$2,'Pop2016fractionQ1&2'!$C$3:$BC$251,'Pop2016fractionQ1&2'!$BD174,FALSE),0)","v":0},{"$f":"ROUND(Options!$B$21*HLOOKUP(Calculations!$E$2,PARfraction!$C$3:$BC$251,PARfraction!$BD174,FALSE),0)","v":0},172]
[null,"Female 5-9",{"$f":"ROUND(Options!$B$21*HLOOKUP(Calculations!$E$2,Pop2016fraction!$C$3:$BC$251,Pop2016fraction!$BD175,FALSE),0)","v":0},{"$f":"ROUND(Options!$B$21*HLOOKUP(Calculations!$E$2,Pop2016fractionQ1!$C$3:$BC$251,Pop2016fractionQ1!$BD175,FALSE),0)","v":0},{"$f":"ROUND(Options!$B$21*HLOOKUP(Calculations!$E$2,'Pop2016fractionQ1&2'!$C$3:$BC$251,'Pop2016fractionQ1&2'!$BD175,FALSE),0)","v":0},{"$f":"ROUND(Options!$B$21*HLOOKUP(Calculations!$E$2,PARfraction!$C$3:$BC$251,PARfraction!$BD175,FALSE),0)","v":0},173]
[null,"Female 10-15",{"$f":"ROUND(Options!$B$21*HLOOKUP(Calculations!$E$2,Pop2016fraction!$C$3:$BC$251,Pop2016fraction!$BD176,FALSE),0)","v":0},{"$f":"ROUND(Options!$B$21*HLOOKUP(Calculations!$E$2,Pop2016fractionQ1!$C$3:$BC$251,Pop2016fractionQ1!$BD176,FALSE),0)","v":0},{"$f":"ROUND(Options!$B$21*HLOOKUP(Calculations!$E$2,'Pop2016fractionQ1&2'!$C$3:$BC$251,'Pop2016fractionQ1&2'!$BD176,FALSE),0)","v":0},{"$f":"ROUND(Options!$B$21*HLOOKUP(Calculations!$E$2,PARfraction!$C$3:$BC$251,PARfraction!$BD176,FALSE),0)","v":0},174]
[null,"Female 16-19",{"$f":"ROUND(Options!$B$21*HLOOKUP(Calculations!$E$2,Pop2016fraction!$C$3:$BC$251,Pop2016fraction!$BD177,FALSE),0)","v":693},{"$f":"ROUND(Options!$B$21*HLOOKUP(Calculations!$E$2,Pop2016fractionQ1!$C$3:$BC$251,Pop2016fractionQ1!$BD177,FALSE),0)","v":0},{"$f":"ROUND(Options!$B$21*HLOOKUP(Calculations!$E$2,'Pop2016fractionQ1&2'!$C$3:$BC$251,'Pop2016fractionQ1&2'!$BD177,FALSE),0)","v":0},{"$f":"ROUND(Options!$B$21*HLOOKUP(Calculations!$E$2,PARfraction!$C$3:$BC$251,PARfraction!$BD177,FALSE),0)","v":728},175]
[null,"Female 20-24",{"$f":"ROUND(Options!$B$21*HLOOKUP(Calculations!$E$2,Pop2016fraction!$C$3:$BC$251,Pop2016fraction!$BD178,FALSE),0)","v":1032},{"$f":"ROUND(Options!$B$21*HLOOKUP(Calculations!$E$2,Pop2016fractionQ1!$C$3:$BC$251,Pop2016fractionQ1!$BD178,FALSE),0)","v":0},{"$f":"ROUND(Options!$B$21*HLOOKUP(Calculations!$E$2,'Pop2016fractionQ1&2'!$C$3:$BC$251,'Pop2016fractionQ1&2'!$BD178,FALSE),0)","v":0},{"$f":"ROUND(Options!$B$21*HLOOKUP(Calculations!$E$2,PARfraction!$C$3:$BC$251,PARfraction!$BD178,FALSE),0)","v":1083},176]
[null,"Female 25-29",{"$f":"ROUND(Options!$B$21*HLOOKUP(Calculations!$E$2,Pop2016fraction!$C$3:$BC$251,Pop2016fraction!$BD179,FALSE),0)","v":990},{"$f":"ROUND(Options!$B$21*HLOOKUP(Calculations!$E$2,Pop2016fractionQ1!$C$3:$BC$251,Pop2016fractionQ1!$BD179,FALSE),0)","v":0},{"$f":"ROUND(Options!$B$21*HLOOKUP(Calculations!$E$2,'Pop2016fractionQ1&2'!$C$3:$BC$251,'Pop2016fractionQ1&2'!$BD179,FALSE),0)","v":0},{"$f":"ROUND(Options!$B$21*HLOOKUP(Calculations!$E$2,PARfraction!$C$3:$BC$251,PARfraction!$BD179,FALSE),0)","v":1039},177]
[null,"Female 30-34",{"$f":"ROUND(Options!$B$21*HLOOKUP(Calculations!$E$2,Pop2016fraction!$C$3:$BC$251,Pop2016fraction!$BD180,FALSE),0)","v":1002},{"$f":"ROUND(Options!$B$21*HLOOKUP(Calculations!$E$2,Pop2016fractionQ1!$C$3:$BC$251,Pop2016fractionQ1!$BD180,FALSE),0)","v":0},{"$f":"ROUND(Options!$B$21*HLOOKUP(Calculations!$E$2,'Pop2016fractionQ1&2'!$C$3:$BC$251,'Pop2016fractionQ1&2'!$BD180,FALSE),0)","v":0},{"$f":"ROUND(Options!$B$21*HLOOKUP(Calculations!$E$2,PARfraction!$C$3:$BC$251,PARfraction!$BD180,FALSE),0)","v":1052},178]
[null,"Female 35-39",{"$f":"ROUND(Options!$B$21*HLOOKUP(Calculations!$E$2,Pop2016fraction!$C$3:$BC$251,Pop2016fraction!$BD181,FALSE),0)","v":971},{"$f":"ROUND(Options!$B$21*HLOOKUP(Calculations!$E$2,Pop2016fractionQ1!$C$3:$BC$251,Pop2016fractionQ1!$BD181,FALSE),0)","v":0},{"$f":"ROUND(Options!$B$21*HLOOKUP(Calculations!$E$2,'Pop2016fractionQ1&2'!$C$3:$BC$251,'Pop2016fractionQ1&2'!$BD181,FALSE),0)","v":0},{"$f":"ROUND(Options!$B$21*HLOOKUP(Calculations!$E$2,PARfraction!$C$3:$BC$251,PARfraction!$BD181,FALSE),0)","v":1020},179]
[null,"Female 40-44",{"$f":"ROUND(Options!$B$21*HLOOKUP(Calculations!$E$2,Pop2016fraction!$C$3:$BC$251,Pop2016fraction!$BD182,FALSE),0)","v":1060},{"$f":"ROUND(Options!$B$21*HLOOKUP(Calculations!$E$2,Pop2016fractionQ1!$C$3:$BC$251,Pop2016fractionQ1!$BD182,FALSE),0)","v":0},{"$f":"ROUND(Options!$B$21*HLOOKUP(Calculations!$E$2,'Pop2016fractionQ1&2'!$C$3:$BC$251,'Pop2016fractionQ1&2'!$BD182,FALSE),0)","v":0},{"$f":"ROUND(Options!$B$21*HLOOKUP(Calculations!$E$2,PARfraction!$C$3:$BC$251,PARfraction!$BD182,FALSE),0)","v":1113},180]
[null,"Female 45-49",{"$f":"ROUND(Options!$B$21*HLOOKUP(Calculations!$E$2,Pop2016fraction!$C$3:$BC$251,Pop2016fraction!$BD183,FALSE),0)","v":1249},{"$f":"ROUND(Options!$B$21*HLOOKUP(Calculations!$E$2,Pop2016fractionQ1!$C$3:$BC$251,Pop2016fractionQ1!$BD183,FALSE),0)","v":0},{"$f":"ROUND(Options!$B$21*HLOOKUP(Calculations!$E$2,'Pop2016fractionQ1&2'!$C$3:$BC$251,'Pop2016fractionQ1&2'!$BD183,FALSE),0)","v":0},{"$f":"ROUND(Options!$B$21*HLOOKUP(Calculations!$E$2,PARfraction!$C$3:$BC$251,PARfraction!$BD183,FALSE),0)","v":1312},181]
[null,"Female 50-54",{"$f":"ROUND(Options!$B$21*HLOOKUP(Calculations!$E$2,Pop2016fraction!$C$3:$BC$251,Pop2016fraction!$BD184,FALSE),0)","v":1305},{"$f":"ROUND(Options!$B$21*HLOOKUP(Calculations!$E$2,Pop2016fractionQ1!$C$3:$BC$251,Pop2016fractionQ1!$BD184,FALSE),0)","v":0},{"$f":"ROUND(Options!$B$21*HLOOKUP(Calculations!$E$2,'Pop2016fractionQ1&2'!$C$3:$BC$251,'Pop2016fractionQ1&2'!$BD184,FALSE),0)","v":0},{"$f":"ROUND(Options!$B$21*HLOOKUP(Calculations!$E$2,PARfraction!$C$3:$BC$251,PARfraction!$BD184,FALSE),0)","v":1370},182]
[null,"Female 55-59",{"$f":"ROUND(Options!$B$21*HLOOKUP(Calculations!$E$2,Pop2016fraction!$C$3:$BC$251,Pop2016fraction!$BD185,FALSE),0)","v":1179},{"$f":"ROUND(Options!$B$21*HLOOKUP(Calculations!$E$2,Pop2016fractionQ1!$C$3:$BC$251,Pop2016fractionQ1!$BD185,FALSE),0)","v":0},{"$f":"ROUND(Options!$B$21*HLOOKUP(Calculations!$E$2,'Pop2016fractionQ1&2'!$C$3:$BC$251,'Pop2016fractionQ1&2'!$BD185,FALSE),0)","v":0},{"$f":"ROUND(Options!$B$21*HLOOKUP(Calculations!$E$2,PARfraction!$C$3:$BC$251,PARfraction!$BD185,FALSE),0)","v":646},183]
[null,"Female 60-64",{"$f":"ROUND(Options!$B$21*HLOOKUP(Calculations!$E$2,Pop2016fraction!$C$3:$BC$251,Pop2016fraction!$BD186,FALSE),0)","v":1038},{"$f":"ROUND(Options!$B$21*HLOOKUP(Calculations!$E$2,Pop2016fractionQ1!$C$3:$BC$251,Pop2016fractionQ1!$BD186,FALSE),0)","v":0},{"$f":"ROUND(Options!$B$21*HLOOKUP(Calculations!$E$2,'Pop2016fractionQ1&2'!$C$3:$BC$251,'Pop2016fractionQ1&2'!$BD186,FALSE),0)","v":0},{"$f":"ROUND(Options!$B$21*HLOOKUP(Calculations!$E$2,PARfraction!$C$3:$BC$251,PARfraction!$BD186,FALSE),0)","v":569},184]
[null,"Female 65-69",{"$f":"ROUND(Options!$B$21*HLOOKUP(Calculations!$E$2,Pop2016fraction!$C$3:$BC$251,Pop2016fraction!$BD187,FALSE),0)","v":1033},{"$f":"ROUND(Options!$B$21*HLOOKUP(Calculations!$E$2,Pop2016fractionQ1!$C$3:$BC$251,Pop2016fractionQ1!$BD187,FALSE),0)","v":0},{"$f":"ROUND(Options!$B$21*HLOOKUP(Calculations!$E$2,'Pop2016fractionQ1&2'!$C$3:$BC$251,'Pop2016fractionQ1&2'!$BD187,FALSE),0)","v":0},{"$f":"ROUND(Options!$B$21*HLOOKUP(Calculations!$E$2,PARfraction!$C$3:$BC$251,PARfraction!$BD187,FALSE),0)","v":566},185]
[null,"Female 70-74",{"$f":"ROUND(Options!$B$21*HLOOKUP(Calculations!$E$2,Pop2016fraction!$C$3:$BC$251,Pop2016fraction!$BD188,FALSE),0)","v":779},{"$f":"ROUND(Options!$B$21*HLOOKUP(Calculations!$E$2,Pop2016fractionQ1!$C$3:$BC$251,Pop2016fractionQ1!$BD188,FALSE),0)","v":0},{"$f":"ROUND(Options!$B$21*HLOOKUP(Calculations!$E$2,'Pop2016fractionQ1&2'!$C$3:$BC$251,'Pop2016fractionQ1&2'!$BD188,FALSE),0)","v":0},{"$f":"ROUND(Options!$B$21*HLOOKUP(Calculations!$E$2,PARfraction!$C$3:$BC$251,PARfraction!$BD188,FALSE),0)","v":427},186]
[null,"Female 75-79",{"$f":"ROUND(Options!$B$21*HLOOKUP(Calculations!$E$2,Pop2016fraction!$C$3:$BC$251,Pop2016fraction!$BD189,FALSE),0)","v":613},{"$f":"ROUND(Options!$B$21*HLOOKUP(Calculations!$E$2,Pop2016fractionQ1!$C$3:$BC$251,Pop2016fractionQ1!$BD189,FALSE),0)","v":0},{"$f":"ROUND(Options!$B$21*HLOOKUP(Calculations!$E$2,'Pop2016fractionQ1&2'!$C$3:$BC$251,'Pop2016fractionQ1&2'!$BD189,FALSE),0)","v":0},{"$f":"ROUND(Options!$B$21*HLOOKUP(Calculations!$E$2,PARfraction!$C$3:$BC$251,PARfraction!$BD189,FALSE),0)","v":336},187]
[null,"Female 80-84",{"$f":"ROUND(Options!$B$21*HLOOKUP(Calculations!$E$2,Pop2016fraction!$C$3:$BC$251,Pop2016fraction!$BD190,FALSE),0)","v":463},{"$f":"ROUND(Options!$B$21*HLOOKUP(Calculations!$E$2,Pop2016fractionQ1!$C$3:$BC$251,Pop2016fractionQ1!$BD190,FALSE),0)","v":0},{"$f":"ROUND(Options!$B$21*HLOOKUP(Calculations!$E$2,'Pop2016fractionQ1&2'!$C$3:$BC$251,'Pop2016fractionQ1&2'!$BD190,FALSE),0)","v":0},{"$f":"ROUND(Options!$B$21*HLOOKUP(Calculations!$E$2,PARfraction!$C$3:$BC$251,PARfraction!$BD190,FALSE),0)","v":254},188]
[null,"Female 85-89",{"$f":"ROUND(Options!$B$21*HLOOKUP(Calculations!$E$2,Pop2016fraction!$C$3:$BC$251,Pop2016fraction!$BD191,FALSE),0)","v":296},{"$f":"ROUND(Options!$B$21*HLOOKUP(Calculations!$E$2,Pop2016fractionQ1!$C$3:$BC$251,Pop2016fractionQ1!$BD191,FALSE),0)","v":0},{"$f":"ROUND(Options!$B$21*HLOOKUP(Calculations!$E$2,'Pop2016fractionQ1&2'!$C$3:$BC$251,'Pop2016fractionQ1&2'!$BD191,FALSE),0)","v":0},{"$f":"ROUND(Options!$B$21*HLOOKUP(Calculations!$E$2,PARfraction!$C$3:$BC$251,PARfraction!$BD191,FALSE),0)","v":162},189]
[null,"Female 90+",{"$f":"ROUND(Options!$B$21*HLOOKUP(Calculations!$E$2,Pop2016fraction!$C$3:$BC$251,Pop2016fraction!$BD192,FALSE),0)","v":178},{"$f":"ROUND(Options!$B$21*HLOOKUP(Calculations!$E$2,Pop2016fractionQ1!$C$3:$BC$251,Pop2016fractionQ1!$BD192,FALSE),0)","v":0},{"$f":"ROUND(Options!$B$21*HLOOKUP(Calculations!$E$2,'Pop2016fractionQ1&2'!$C$3:$BC$251,'Pop2016fractionQ1&2'!$BD192,FALSE),0)","v":0},{"$f":"ROUND(Options!$B$21*HLOOKUP(Calculations!$E$2,PARfraction!$C$3:$BC$251,PARfraction!$BD192,FALSE),0)","v":97},190]
[null,"Male 0-4",{"$f":"ROUND(Options!$B$21*HLOOKUP(Calculations!$E$2,Pop2016fraction!$C$3:$BC$251,Pop2016fraction!$BD193,FALSE),0)","v":0},{"$f":"ROUND(Options!$B$21*HLOOKUP(Calculations!$E$2,Pop2016fractionQ1!$C$3:$BC$251,Pop2016fractionQ1!$BD193,FALSE),0)","v":0},{"$f":"ROUND(Options!$B$21*HLOOKUP(Calculations!$E$2,'Pop2016fractionQ1&2'!$C$3:$BC$251,'Pop2016fractionQ1&2'!$BD193,FALSE),0)","v":0},{"$f":"ROUND(Options!$B$21*HLOOKUP(Calculations!$E$2,PARfraction!$C$3:$BC$251,PARfraction!$BD193,FALSE),0)","v":0},191]
[null,"Male 5-9",{"$f":"ROUND(Options!$B$21*HLOOKUP(Calculations!$E$2,Pop2016fraction!$C$3:$BC$251,Pop2016fraction!$BD194,FALSE),0)","v":0},{"$f":"ROUND(Options!$B$21*HLOOKUP(Calculations!$E$2,Pop2016fractionQ1!$C$3:$BC$251,Pop2016fractionQ1!$BD194,FALSE),0)","v":0},{"$f":"ROUND(Options!$B$21*HLOOKUP(Calculations!$E$2,'Pop2016fractionQ1&2'!$C$3:$BC$251,'Pop2016fractionQ1&2'!$BD194,FALSE),0)","v":0},{"$f":"ROUND(Options!$B$21*HLOOKUP(Calculations!$E$2,PARfraction!$C$3:$BC$251,PARfraction!$BD194,FALSE),0)","v":0},192]
[null,"Male 10-15",{"$f":"ROUND(Options!$B$21*HLOOKUP(Calculations!$E$2,Pop2016fraction!$C$3:$BC$251,Pop2016fraction!$BD195,FALSE),0)","v":0},{"$f":"ROUND(Options!$B$21*HLOOKUP(Calculations!$E$2,Pop2016fractionQ1!$C$3:$BC$251,Pop2016fractionQ1!$BD195,FALSE),0)","v":0},{"$f":"ROUND(Options!$B$21*HLOOKUP(Calculations!$E$2,'Pop2016fractionQ1&2'!$C$3:$BC$251,'Pop2016fractionQ1&2'!$BD195,FALSE),0)","v":0},{"$f":"ROUND(Options!$B$21*HLOOKUP(Calculations!$E$2,PARfraction!$C$3:$BC$251,PARfraction!$BD195,FALSE),0)","v":0},193]
[null,"Male 16-19",{"$f":"ROUND(Options!$B$21*HLOOKUP(Calculations!$E$2,Pop2016fraction!$C$3:$BC$251,Pop2016fraction!$BD196,FALSE),0)","v":732},{"$f":"ROUND(Options!$B$21*HLOOKUP(Calculations!$E$2,Pop2016fractionQ1!$C$3:$BC$251,Pop2016fractionQ1!$BD196,FALSE),0)","v":0},{"$f":"ROUND(Options!$B$21*HLOOKUP(Calculations!$E$2,'Pop2016fractionQ1&2'!$C$3:$BC$251,'Pop2016fractionQ1&2'!$BD196,FALSE),0)","v":0},{"$f":"ROUND(Options!$B$21*HLOOKUP(Calculations!$E$2,PARfraction!$C$3:$BC$251,PARfraction!$BD196,FALSE),0)","v":630},194]
[null,"Male 20-24",{"$f":"ROUND(Options!$B$21*HLOOKUP(Calculations!$E$2,Pop2016fraction!$C$3:$BC$251,Pop2016fraction!$BD197,FALSE),0)","v":1043},{"$f":"ROUND(Options!$B$21*HLOOKUP(Calculations!$E$2,Pop2016fractionQ1!$C$3:$BC$251,Pop2016fractionQ1!$BD197,FALSE),0)","v":0},{"$f":"ROUND(Options!$B$21*HLOOKUP(Calculations!$E$2,'Pop2016fractionQ1&2'!$C$3:$BC$251,'Pop2016fractionQ1&2'!$BD197,FALSE),0)","v":0},{"$f":"ROUND(Options!$B$21*HLOOKUP(Calculations!$E$2,PARfraction!$C$3:$BC$251,PARfraction!$BD197,FALSE),0)","v":897},195]
[null,"Male 25-29",{"$f":"ROUND(Options!$B$21*HLOOKUP(Calculations!$E$2,Pop2016fraction!$C$3:$BC$251,Pop2016fraction!$BD198,FALSE),0)","v":999},{"$f":"ROUND(Options!$B$21*HLOOKUP(Calculations!$E$2,Pop2016fractionQ1!$C$3:$BC$251,Pop2016fractionQ1!$BD198,FALSE),0)","v":0},{"$f":"ROUND(Options!$B$21*HLOOKUP(Calculations!$E$2,'Pop2016fractionQ1&2'!$C$3:$BC$251,'Pop2016fractionQ1&2'!$BD198,FALSE),0)","v":0},{"$f":"ROUND(Options!$B$21*HLOOKUP(Calculations!$E$2,PARfraction!$C$3:$BC$251,PARfraction!$BD198,FALSE),0)","v":859},196]
[null,"Male 30-34",{"$f":"ROUND(Options!$B$21*HLOOKUP(Calculations!$E$2,Pop2016fraction!$C$3:$BC$251,Pop2016fraction!$BD199,FALSE),0)","v":958},{"$f":"ROUND(Options!$B$21*HLOOKUP(Calculations!$E$2,Pop2016fractionQ1!$C$3:$BC$251,Pop2016fractionQ1!$BD199,FALSE),0)","v":0},{"$f":"ROUND(Options!$B$21*HLOOKUP(Calculations!$E$2,'Pop2016fractionQ1&2'!$C$3:$BC$251,'Pop2016fractionQ1&2'!$BD199,FALSE),0)","v":0},{"$f":"ROUND(Options!$B$21*HLOOKUP(Calculations!$E$2,PARfraction!$C$3:$BC$251,PARfraction!$BD199,FALSE),0)","v":824},197]
[null,"Male 35-39",{"$f":"ROUND(Options!$B$21*HLOOKUP(Calculations!$E$2,Pop2016fraction!$C$3:$BC$251,Pop2016fraction!$BD200,FALSE),0)","v":948},{"$f":"ROUND(Options!$B$21*HLOOKUP(Calculations!$E$2,Pop2016fractionQ1!$C$3:$BC$251,Pop2016fractionQ1!$BD200,FALSE),0)","v":0},{"$f":"ROUND(Options!$B$21*HLOOKUP(Calculations!$E$2,'Pop2016fractionQ1&2'!$C$3:$BC$251,'Pop2016fractionQ1&2'!$BD200,FALSE),0)","v":0},{"$f":"ROUND(Options!$B$21*HLOOKUP(Calculations!$E$2,PARfraction!$C$3:$BC$251,PARfraction!$BD200,FALSE),0)","v":816},198]
[null,"Male 40-44",{"$f":"ROUND(Options!$B$21*HLOOKUP(Calculations!$E$2,Pop2016fraction!$C$3:$BC$251,Pop2016fraction!$BD201,FALSE),0)","v":1017},{"$f":"ROUND(Options!$B$21*HLOOKUP(Calculations!$E$2,Pop2016fractionQ1!$C$3:$BC$251,Pop2016fractionQ1!$BD201,FALSE),0)","v":0},{"$f":"ROUND(Options!$B$21*HLOOKUP(Calculations!$E$2,'Pop2016fractionQ1&2'!$C$3:$BC$251,'Pop2016fractionQ1&2'!$BD201,FALSE),0)","v":0},{"$f":"ROUND(Options!$B$21*HLOOKUP(Calculations!$E$2,PARfraction!$C$3:$BC$251,PARfraction!$BD201,FALSE),0)","v":875},199]
[null,"Male 45-49",{"$f":"ROUND(Options!$B$21*HLOOKUP(Calculations!$E$2,Pop2016fraction!$C$3:$BC$251,Pop2016fraction!$BD202,FALSE),0)","v":1180},{"$f":"ROUND(Options!$B$21*HLOOKUP(Calculations!$E$2,Pop2016fractionQ1!$C$3:$BC$251,Pop2016fractionQ1!$BD202,FALSE),0)","v":0},{"$f":"ROUND(Options!$B$21*HLOOKUP(Calculations!$E$2,'Pop2016fractionQ1&2'!$C$3:$BC$251,'Pop2016fractionQ1&2'!$BD202,FALSE),0)","v":0},{"$f":"ROUND(Options!$B$21*HLOOKUP(Calculations!$E$2,PARfraction!$C$3:$BC$251,PARfraction!$BD202,FALSE),0)","v":1015},200]
[null,"Male 50-54",{"$f":"ROUND(Options!$B$21*HLOOKUP(Calculations!$E$2,Pop2016fraction!$C$3:$BC$251,Pop2016fraction!$BD203,FALSE),0)","v":1252},{"$f":"ROUND(Options!$B$21*HLOOKUP(Calculations!$E$2,Pop2016fractionQ1!$C$3:$BC$251,Pop2016fractionQ1!$BD203,FALSE),0)","v":0},{"$f":"ROUND(Options!$B$21*HLOOKUP(Calculations!$E$2,'Pop2016fractionQ1&2'!$C$3:$BC$251,'Pop2016fractionQ1&2'!$BD203,FALSE),0)","v":0},{"$f":"ROUND(Options!$B$21*HLOOKUP(Calculations!$E$2,PARfraction!$C$3:$BC$251,PARfraction!$BD203,FALSE),0)","v":1076},201]
[null,"Male 55-59",{"$f":"ROUND(Options!$B$21*HLOOKUP(Calculations!$E$2,Pop2016fraction!$C$3:$BC$251,Pop2016fraction!$BD204,FALSE),0)","v":1140},{"$f":"ROUND(Options!$B$21*HLOOKUP(Calculations!$E$2,Pop2016fractionQ1!$C$3:$BC$251,Pop2016fractionQ1!$BD204,FALSE),0)","v":0},{"$f":"ROUND(Options!$B$21*HLOOKUP(Calculations!$E$2,'Pop2016fractionQ1&2'!$C$3:$BC$251,'Pop2016fractionQ1&2'!$BD204,FALSE),0)","v":0},{"$f":"ROUND(Options!$B$21*HLOOKUP(Calculations!$E$2,PARfraction!$C$3:$BC$251,PARfraction!$BD204,FALSE),0)","v":511},202]
[null,"Male 60-64",{"$f":"ROUND(Options!$B$21*HLOOKUP(Calculations!$E$2,Pop2016fraction!$C$3:$BC$251,Pop2016fraction!$BD205,FALSE),0)","v":1002},{"$f":"ROUND(Options!$B$21*HLOOKUP(Calculations!$E$2,Pop2016fractionQ1!$C$3:$BC$251,Pop2016fractionQ1!$BD205,FALSE),0)","v":0},{"$f":"ROUND(Options!$B$21*HLOOKUP(Calculations!$E$2,'Pop2016fractionQ1&2'!$C$3:$BC$251,'Pop2016fractionQ1&2'!$BD205,FALSE),0)","v":0},{"$f":"ROUND(Options!$B$21*HLOOKUP(Calculations!$E$2,PARfraction!$C$3:$BC$251,PARfraction!$BD205,FALSE),0)","v":449},203]
[null,"Male 65-69",{"$f":"ROUND(Options!$B$21*HLOOKUP(Calculations!$E$2,Pop2016fraction!$C$3:$BC$251,Pop2016fraction!$BD206,FALSE),0)","v":981},{"$f":"ROUND(Options!$B$21*HLOOKUP(Calculations!$E$2,Pop2016fractionQ1!$C$3:$BC$251,Pop2016fractionQ1!$BD206,FALSE),0)","v":0},{"$f":"ROUND(Options!$B$21*HLOOKUP(Calculations!$E$2,'Pop2016fractionQ1&2'!$C$3:$BC$251,'Pop2016fractionQ1&2'!$BD206,FALSE),0)","v":0},{"$f":"ROUND(Options!$B$21*HLOOKUP(Calculations!$E$2,PARfraction!$C$3:$BC$251,PARfraction!$BD206,FALSE),0)","v":440},204]
[null,"Male 70-74",{"$f":"ROUND(Options!$B$21*HLOOKUP(Calculations!$E$2,Pop2016fraction!$C$3:$BC$251,Pop2016fraction!$BD207,FALSE),0)","v":721},{"$f":"ROUND(Options!$B$21*HLOOKUP(Calculations!$E$2,Pop2016fractionQ1!$C$3:$BC$251,Pop2016fractionQ1!$BD207,FALSE),0)","v":0},{"$f":"ROUND(Options!$B$21*HLOOKUP(Calculations!$E$2,'Pop2016fractionQ1&2'!$C$3:$BC$251,'Pop2016fractionQ1&2'!$BD207,FALSE),0)","v":0},{"$f":"ROUND(Options!$B$21*HLOOKUP(Calculations!$E$2,PARfraction!$C$3:$BC$251,PARfraction!$BD207,FALSE),0)","v":324},205]
[null,"Male 75-79",{"$f":"ROUND(Options!$B$21*HLOOKUP(Calculations!$E$2,Pop2016fraction!$C$3:$BC$251,Pop2016fraction!$BD208,FALSE),0)","v":512},{"$f":"ROUND(Options!$B$21*HLOOKUP(Calculations!$E$2,Pop2016fractionQ1!$C$3:$BC$251,Pop2016fractionQ1!$BD208,FALSE),0)","v":0},{"$f":"ROUND(Options!$B$21*HLOOKUP(Calculations!$E$2,'Pop2016fractionQ1&2'!$C$3:$BC$251,'Pop2016fractionQ1&2'!$BD208,FALSE),0)","v":0},{"$f":"ROUND(Options!$B$21*HLOOKUP(Calculations!$E$2,PARfraction!$C$3:$BC$251,PARfraction!$BD208,FALSE),0)","v":230},206]
[null,"Male 80-84",{"$f":"ROUND(Options!$B$21*HLOOKUP(Calculations!$E$2,Pop2016fraction!$C$3:$BC$251,Pop2016fraction!$BD209,FALSE),0)","v":347},{"$f":"ROUND(Options!$B$21*HLOOKUP(Calculations!$E$2,Pop2016fractionQ1!$C$3:$BC$251,Pop2016fractionQ1!$BD209,FALSE),0)","v":0},{"$f":"ROUND(Options!$B$21*HLOOKUP(Calculations!$E$2,'Pop2016fractionQ1&2'!$C$3:$BC$251,'Pop2016fractionQ1&2'!$BD209,FALSE),0)","v":0},{"$f":"ROUND(Options!$B$21*HLOOKUP(Calculations!$E$2,PARfraction!$C$3:$BC$251,PARfraction!$BD209,FALSE),0)","v":156},207]
[null,"Male 85-89",{"$f":"ROUND(Options!$B$21*HLOOKUP(Calculations!$E$2,Pop2016fraction!$C$3:$BC$251,Pop2016fraction!$BD210,FALSE),0)","v":183},{"$f":"ROUND(Options!$B$21*HLOOKUP(Calculations!$E$2,Pop2016fractionQ1!$C$3:$BC$251,Pop2016fractionQ1!$BD210,FALSE),0)","v":0},{"$f":"ROUND(Options!$B$21*HLOOKUP(Calculations!$E$2,'Pop2016fractionQ1&2'!$C$3:$BC$251,'Pop2016fractionQ1&2'!$BD210,FALSE),0)","v":0},{"$f":"ROUND(Options!$B$21*HLOOKUP(Calculations!$E$2,PARfraction!$C$3:$BC$251,PARfraction!$BD210,FALSE),0)","v":82},208]
[null,"Male 90+",{"$f":"ROUND(Options!$B$21*HLOOKUP(Calculations!$E$2,Pop2016fraction!$C$3:$BC$251,Pop2016fraction!$BD211,FALSE),0)","v":75},{"$f":"ROUND(Options!$B$21*HLOOKUP(Calculations!$E$2,Pop2016fractionQ1!$C$3:$BC$251,Pop2016fractionQ1!$BD211,FALSE),0)","v":0},{"$f":"ROUND(Options!$B$21*HLOOKUP(Calculations!$E$2,'Pop2016fractionQ1&2'!$C$3:$BC$251,'Pop2016fractionQ1&2'!$BD211,FALSE),0)","v":0},{"$f":"ROUND(Options!$B$21*HLOOKUP(Calculations!$E$2,PARfraction!$C$3:$BC$251,PARfraction!$BD211,FALSE),0)","v":34},209]
["SIMD Q5 (least deprived)","Female 0-4",{"$f":"ROUND(Options!$B$21*HLOOKUP(Calculations!$E$2,Pop2016fraction!$C$3:$BC$251,Pop2016fraction!$BD212,FALSE),0)","v":0},{"$f":"ROUND(Options!$B$21*HLOOKUP(Calculations!$E$2,Pop2016fractionQ1!$C$3:$BC$251,Pop2016fractionQ1!$BD212,FALSE),0)","v":0},{"$f":"ROUND(Options!$B$21*HLOOKUP(Calculations!$E$2,'Pop2016fractionQ1&2'!$C$3:$BC$251,'Pop2016fractionQ1&2'!$BD212,FALSE),0)","v":0},{"$f":"ROUND(Options!$B$21*HLOOKUP(Calculations!$E$2,PARfraction!$C$3:$BC$251,PARfraction!$BD212,FALSE),0)","v":0},210]
[null,"Female 5-9",{"$f":"ROUND(Options!$B$21*HLOOKUP(Calculations!$E$2,Pop2016fraction!$C$3:$BC$251,Pop2016fraction!$BD213,FALSE),0)","v":0},{"$f":"ROUND(Options!$B$21*HLOOKUP(Calculations!$E$2,Pop2016fractionQ1!$C$3:$BC$251,Pop2016fractionQ1!$BD213,FALSE),0)","v":0},{"$f":"ROUND(Options!$B$21*HLOOKUP(Calculations!$E$2,'Pop2016fractionQ1&2'!$C$3:$BC$251,'Pop2016fractionQ1&2'!$BD213,FALSE),0)","v":0},{"$f":"ROUND(Options!$B$21*HLOOKUP(Calculations!$E$2,PARfraction!$C$3:$BC$251,PARfraction!$BD213,FALSE),0)","v":0},211]
[null,"Female 10-15",{"$f":"ROUND(Options!$B$21*HLOOKUP(Calculations!$E$2,Pop2016fraction!$C$3:$BC$251,Pop2016fraction!$BD214,FALSE),0)","v":0},{"$f":"ROUND(Options!$B$21*HLOOKUP(Calculations!$E$2,Pop2016fractionQ1!$C$3:$BC$251,Pop2016fractionQ1!$BD214,FALSE),0)","v":0},{"$f":"ROUND(Options!$B$21*HLOOKUP(Calculations!$E$2,'Pop2016fractionQ1&2'!$C$3:$BC$251,'Pop2016fractionQ1&2'!$BD214,FALSE),0)","v":0},{"$f":"ROUND(Options!$B$21*HLOOKUP(Calculations!$E$2,PARfraction!$C$3:$BC$251,PARfraction!$BD214,FALSE),0)","v":0},212]
[null,"Female 16-19",{"$f":"ROUND(Options!$B$21*HLOOKUP(Calculations!$E$2,Pop2016fraction!$C$3:$BC$251,Pop2016fraction!$BD215,FALSE),0)","v":748},{"$f":"ROUND(Options!$B$21*HLOOKUP(Calculations!$E$2,Pop2016fractionQ1!$C$3:$BC$251,Pop2016fractionQ1!$BD215,FALSE),0)","v":0},{"$f":"ROUND(Options!$B$21*HLOOKUP(Calculations!$E$2,'Pop2016fractionQ1&2'!$C$3:$BC$251,'Pop2016fractionQ1&2'!$BD215,FALSE),0)","v":0},{"$f":"ROUND(Options!$B$21*HLOOKUP(Calculations!$E$2,PARfraction!$C$3:$BC$251,PARfraction!$BD215,FALSE),0)","v":577},213]
[null,"Female 20-24",{"$f":"ROUND(Options!$B$21*HLOOKUP(Calculations!$E$2,Pop2016fraction!$C$3:$BC$251,Pop2016fraction!$BD216,FALSE),0)","v":1126},{"$f":"ROUND(Options!$B$21*HLOOKUP(Calculations!$E$2,Pop2016fractionQ1!$C$3:$BC$251,Pop2016fractionQ1!$BD216,FALSE),0)","v":0},{"$f":"ROUND(Options!$B$21*HLOOKUP(Calculations!$E$2,'Pop2016fractionQ1&2'!$C$3:$BC$251,'Pop2016fractionQ1&2'!$BD216,FALSE),0)","v":0},{"$f":"ROUND(Options!$B$21*HLOOKUP(Calculations!$E$2,PARfraction!$C$3:$BC$251,PARfraction!$BD216,FALSE),0)","v":867},214]
[null,"Female 25-29",{"$f":"ROUND(Options!$B$21*HLOOKUP(Calculations!$E$2,Pop2016fraction!$C$3:$BC$251,Pop2016fraction!$BD217,FALSE),0)","v":959},{"$f":"ROUND(Options!$B$21*HLOOKUP(Calculations!$E$2,Pop2016fractionQ1!$C$3:$BC$251,Pop2016fractionQ1!$BD217,FALSE),0)","v":0},{"$f":"ROUND(Options!$B$21*HLOOKUP(Calculations!$E$2,'Pop2016fractionQ1&2'!$C$3:$BC$251,'Pop2016fractionQ1&2'!$BD217,FALSE),0)","v":0},{"$f":"ROUND(Options!$B$21*HLOOKUP(Calculations!$E$2,PARfraction!$C$3:$BC$251,PARfraction!$BD217,FALSE),0)","v":739},215]
[null,"Female 30-34",{"$f":"ROUND(Options!$B$21*HLOOKUP(Calculations!$E$2,Pop2016fraction!$C$3:$BC$251,Pop2016fraction!$BD218,FALSE),0)","v":937},{"$f":"ROUND(Options!$B$21*HLOOKUP(Calculations!$E$2,Pop2016fractionQ1!$C$3:$BC$251,Pop2016fractionQ1!$BD218,FALSE),0)","v":0},{"$f":"ROUND(Options!$B$21*HLOOKUP(Calculations!$E$2,'Pop2016fractionQ1&2'!$C$3:$BC$251,'Pop2016fractionQ1&2'!$BD218,FALSE),0)","v":0},{"$f":"ROUND(Options!$B$21*HLOOKUP(Calculations!$E$2,PARfraction!$C$3:$BC$251,PARfraction!$BD218,FALSE),0)","v":722},216]
[null,"Female 35-39",{"$f":"ROUND(Options!$B$21*HLOOKUP(Calculations!$E$2,Pop2016fraction!$C$3:$BC$251,Pop2016fraction!$BD219,FALSE),0)","v":997},{"$f":"ROUND(Options!$B$21*HLOOKUP(Calculations!$E$2,Pop2016fractionQ1!$C$3:$BC$251,Pop2016fractionQ1!$BD219,FALSE),0)","v":0},{"$f":"ROUND(Options!$B$21*HLOOKUP(Calculations!$E$2,'Pop2016fractionQ1&2'!$C$3:$BC$251,'Pop2016fractionQ1&2'!$BD219,FALSE),0)","v":0},{"$f":"ROUND(Options!$B$21*HLOOKUP(Calculations!$E$2,PARfraction!$C$3:$BC$251,PARfraction!$BD219,FALSE),0)","v":768},217]
[null,"Female 40-44",{"$f":"ROUND(Options!$B$21*HLOOKUP(Calculations!$E$2,Pop2016fraction!$C$3:$BC$251,Pop2016fraction!$BD220,FALSE),0)","v":1081},{"$f":"ROUND(Options!$B$21*HLOOKUP(Calculations!$E$2,Pop2016fractionQ1!$C$3:$BC$251,Pop2016fractionQ1!$BD220,FALSE),0)","v":0},{"$f":"ROUND(Options!$B$21*HLOOKUP(Calculations!$E$2,'Pop2016fractionQ1&2'!$C$3:$BC$251,'Pop2016fractionQ1&2'!$BD220,FALSE),0)","v":0},{"$f":"ROUND(Options!$B$21*HLOOKUP(Calculations!$E$2,PARfraction!$C$3:$BC$251,PARfraction!$BD220,FALSE),0)","v":833},218]
[null,"Female 45-49",{"$f":"ROUND(Options!$B$21*HLOOKUP(Calculations!$E$2,Pop2016fraction!$C$3:$BC$251,Pop2016fraction!$BD221,FALSE),0)","v":1238},{"$f":"ROUND(Options!$B$21*HLOOKUP(Calculations!$E$2,Pop2016fractionQ1!$C$3:$BC$251,Pop2016fractionQ1!$BD221,FALSE),0)","v":0},{"$f":"ROUND(Options!$B$21*HLOOKUP(Calculations!$E$2,'Pop2016fractionQ1&2'!$C$3:$BC$251,'Pop2016fractionQ1&2'!$BD221,FALSE),0)","v":0},{"$f":"ROUND(Options!$B$21*HLOOKUP(Calculations!$E$2,PARfraction!$C$3:$BC$251,PARfraction!$BD221,FALSE),0)","v":953},219]
[null,"Female 50-54",{"$f":"ROUND(Options!$B$21*HLOOKUP(Calculations!$E$2,Pop2016fraction!$C$3:$BC$251,Pop2016fraction!$BD222,FALSE),0)","v":1257},{"$f":"ROUND(Options!$B$21*HLOOKUP(Calculations!$E$2,Pop2016fractionQ1!$C$3:$BC$251,Pop2016fractionQ1!$BD222,FALSE),0)","v":0},{"$f":"ROUND(Options!$B$21*HLOOKUP(Calculations!$E$2,'Pop2016fractionQ1&2'!$C$3:$BC$251,'Pop2016fractionQ1&2'!$BD222,FALSE),0)","v":0},{"$f":"ROUND(Options!$B$21*HLOOKUP(Calculations!$E$2,PARfraction!$C$3:$BC$251,PARfraction!$BD222,FALSE),0)","v":968},220]
[null,"Female 55-59",{"$f":"ROUND(Options!$B$21*HLOOKUP(Calculations!$E$2,Pop2016fraction!$C$3:$BC$251,Pop2016fraction!$BD223,FALSE),0)","v":1135},{"$f":"ROUND(Options!$B$21*HLOOKUP(Calculations!$E$2,Pop2016fractionQ1!$C$3:$BC$251,Pop2016fractionQ1!$BD223,FALSE),0)","v":0},{"$f":"ROUND(Options!$B$21*HLOOKUP(Calculations!$E$2,'Pop2016fractionQ1&2'!$C$3:$BC$251,'Pop2016fractionQ1&2'!$BD223,FALSE),0)","v":0},{"$f":"ROUND(Options!$B$21*HLOOKUP(Calculations!$E$2,PARfraction!$C$3:$BC$251,PARfraction!$BD223,FALSE),0)","v":732},221]
[null,"Female 60-64",{"$f":"ROUND(Options!$B$21*HLOOKUP(Calculations!$E$2,Pop2016fraction!$C$3:$BC$251,Pop2016fraction!$BD224,FALSE),0)","v":996},{"$f":"ROUND(Options!$B$21*HLOOKUP(Calculations!$E$2,Pop2016fractionQ1!$C$3:$BC$251,Pop2016fractionQ1!$BD224,FALSE),0)","v":0},{"$f":"ROUND(Options!$B$21*HLOOKUP(Calculations!$E$2,'Pop2016fractionQ1&2'!$C$3:$BC$251,'Pop2016fractionQ1&2'!$BD224,FALSE),0)","v":0},{"$f":"ROUND(Options!$B$21*HLOOKUP(Calculations!$E$2,PARfraction!$C$3:$BC$251,PARfraction!$BD224,FALSE),0)","v":643},222]
[null,"Female 65-69",{"$f":"ROUND(Options!$B$21*HLOOKUP(Calculations!$E$2,Pop2016fraction!$C$3:$BC$251,Pop2016fraction!$BD225,FALSE),0)","v":1000},{"$f":"ROUND(Options!$B$21*HLOOKUP(Calculations!$E$2,Pop2016fractionQ1!$C$3:$BC$251,Pop2016fractionQ1!$BD225,FALSE),0)","v":0},{"$f":"ROUND(Options!$B$21*HLOOKUP(Calculations!$E$2,'Pop2016fractionQ1&2'!$C$3:$BC$251,'Pop2016fractionQ1&2'!$BD225,FALSE),0)","v":0},{"$f":"ROUND(Options!$B$21*HLOOKUP(Calculations!$E$2,PARfraction!$C$3:$BC$251,PARfraction!$BD225,FALSE),0)","v":645},223]
[null,"Female 70-74",{"$f":"ROUND(Options!$B$21*HLOOKUP(Calculations!$E$2,Pop2016fraction!$C$3:$BC$251,Pop2016fraction!$BD226,FALSE),0)","v":762},{"$f":"ROUND(Options!$B$21*HLOOKUP(Calculations!$E$2,Pop2016fractionQ1!$C$3:$BC$251,Pop2016fractionQ1!$BD226,FALSE),0)","v":0},{"$f":"ROUND(Options!$B$21*HLOOKUP(Calculations!$E$2,'Pop2016fractionQ1&2'!$C$3:$BC$251,'Pop2016fractionQ1&2'!$BD226,FALSE),0)","v":0},{"$f":"ROUND(Options!$B$21*HLOOKUP(Calculations!$E$2,PARfraction!$C$3:$BC$251,PARfraction!$BD226,FALSE),0)","v":492},224]
[null,"Female 75-79",{"$f":"ROUND(Options!$B$21*HLOOKUP(Calculations!$E$2,Pop2016fraction!$C$3:$BC$251,Pop2016fraction!$BD227,FALSE),0)","v":601},{"$f":"ROUND(Options!$B$21*HLOOKUP(Calculations!$E$2,Pop2016fractionQ1!$C$3:$BC$251,Pop2016fractionQ1!$BD227,FALSE),0)","v":0},{"$f":"ROUND(Options!$B$21*HLOOKUP(Calculations!$E$2,'Pop2016fractionQ1&2'!$C$3:$BC$251,'Pop2016fractionQ1&2'!$BD227,FALSE),0)","v":0},{"$f":"ROUND(Options!$B$21*HLOOKUP(Calculations!$E$2,PARfraction!$C$3:$BC$251,PARfraction!$BD227,FALSE),0)","v":388},225]
[null,"Female 80-84",{"$f":"ROUND(Options!$B$21*HLOOKUP(Calculations!$E$2,Pop2016fraction!$C$3:$BC$251,Pop2016fraction!$BD228,FALSE),0)","v":463},{"$f":"ROUND(Options!$B$21*HLOOKUP(Calculations!$E$2,Pop2016fractionQ1!$C$3:$BC$251,Pop2016fractionQ1!$BD228,FALSE),0)","v":0},{"$f":"ROUND(Options!$B$21*HLOOKUP(Calculations!$E$2,'Pop2016fractionQ1&2'!$C$3:$BC$251,'Pop2016fractionQ1&2'!$BD228,FALSE),0)","v":0},{"$f":"ROUND(Options!$B$21*HLOOKUP(Calculations!$E$2,PARfraction!$C$3:$BC$251,PARfraction!$BD228,FALSE),0)","v":299},226]
[null,"Female 85-89",{"$f":"ROUND(Options!$B$21*HLOOKUP(Calculations!$E$2,Pop2016fraction!$C$3:$BC$251,Pop2016fraction!$BD229,FALSE),0)","v":295},{"$f":"ROUND(Options!$B$21*HLOOKUP(Calculations!$E$2,Pop2016fractionQ1!$C$3:$BC$251,Pop2016fractionQ1!$BD229,FALSE),0)","v":0},{"$f":"ROUND(Options!$B$21*HLOOKUP(Calculations!$E$2,'Pop2016fractionQ1&2'!$C$3:$BC$251,'Pop2016fractionQ1&2'!$BD229,FALSE),0)","v":0},{"$f":"ROUND(Options!$B$21*HLOOKUP(Calculations!$E$2,PARfraction!$C$3:$BC$251,PARfraction!$BD229,FALSE),0)","v":190},227]
[null,"Female 90+",{"$f":"ROUND(Options!$B$21*HLOOKUP(Calculations!$E$2,Pop2016fraction!$C$3:$BC$251,Pop2016fraction!$BD230,FALSE),0)","v":179},{"$f":"ROUND(Options!$B$21*HLOOKUP(Calculations!$E$2,Pop2016fractionQ1!$C$3:$BC$251,Pop2016fractionQ1!$BD230,FALSE),0)","v":0},{"$f":"ROUND(Options!$B$21*HLOOKUP(Calculations!$E$2,'Pop2016fractionQ1&2'!$C$3:$BC$251,'Pop2016fractionQ1&2'!$BD230,FALSE),0)","v":0},{"$f":"ROUND(Options!$B$21*HLOOKUP(Calculations!$E$2,PARfraction!$C$3:$BC$251,PARfraction!$BD230,FALSE),0)","v":116},228]
[null,"Male 0-4",{"$f":"ROUND(Options!$B$21*HLOOKUP(Calculations!$E$2,Pop2016fraction!$C$3:$BC$251,Pop2016fraction!$BD231,FALSE),0)","v":0},{"$f":"ROUND(Options!$B$21*HLOOKUP(Calculations!$E$2,Pop2016fractionQ1!$C$3:$BC$251,Pop2016fractionQ1!$BD231,FALSE),0)","v":0},{"$f":"ROUND(Options!$B$21*HLOOKUP(Calculations!$E$2,'Pop2016fractionQ1&2'!$C$3:$BC$251,'Pop2016fractionQ1&2'!$BD231,FALSE),0)","v":0},{"$f":"ROUND(Options!$B$21*HLOOKUP(Calculations!$E$2,PARfraction!$C$3:$BC$251,PARfraction!$BD231,FALSE),0)","v":0},229]
[null,"Male 5-9",{"$f":"ROUND(Options!$B$21*HLOOKUP(Calculations!$E$2,Pop2016fraction!$C$3:$BC$251,Pop2016fraction!$BD232,FALSE),0)","v":0},{"$f":"ROUND(Options!$B$21*HLOOKUP(Calculations!$E$2,Pop2016fractionQ1!$C$3:$BC$251,Pop2016fractionQ1!$BD232,FALSE),0)","v":0},{"$f":"ROUND(Options!$B$21*HLOOKUP(Calculations!$E$2,'Pop2016fractionQ1&2'!$C$3:$BC$251,'Pop2016fractionQ1&2'!$BD232,FALSE),0)","v":0},{"$f":"ROUND(Options!$B$21*HLOOKUP(Calculations!$E$2,PARfraction!$C$3:$BC$251,PARfraction!$BD232,FALSE),0)","v":0},230]
[null,"Male 10-15",{"$f":"ROUND(Options!$B$21*HLOOKUP(Calculations!$E$2,Pop2016fraction!$C$3:$BC$251,Pop2016fraction!$BD233,FALSE),0)","v":0},{"$f":"ROUND(Options!$B$21*HLOOKUP(Calculations!$E$2,Pop2016fractionQ1!$C$3:$BC$251,Pop2016fractionQ1!$BD233,FALSE),0)","v":0},{"$f":"ROUND(Options!$B$21*HLOOKUP(Calculations!$E$2,'Pop2016fractionQ1&2'!$C$3:$BC$251,'Pop2016fractionQ1&2'!$BD233,FALSE),0)","v":0},{"$f":"ROUND(Options!$B$21*HLOOKUP(Calculations!$E$2,PARfraction!$C$3:$BC$251,PARfraction!$BD233,FALSE),0)","v":0},231]
[null,"Male 16-19",{"$f":"ROUND(Options!$B$21*HLOOKUP(Calculations!$E$2,Pop2016fraction!$C$3:$BC$251,Pop2016fraction!$BD234,FALSE),0)","v":797},{"$f":"ROUND(Options!$B$21*HLOOKUP(Calculations!$E$2,Pop2016fractionQ1!$C$3:$BC$251,Pop2016fractionQ1!$BD234,FALSE),0)","v":0},{"$f":"ROUND(Options!$B$21*HLOOKUP(Calculations!$E$2,'Pop2016fractionQ1&2'!$C$3:$BC$251,'Pop2016fractionQ1&2'!$BD234,FALSE),0)","v":0},{"$f":"ROUND(Options!$B$21*HLOOKUP(Calculations!$E$2,PARfraction!$C$3:$BC$251,PARfraction!$BD234,FALSE),0)","v":503},232]
[null,"Male 20-24",{"$f":"ROUND(Options!$B$21*HLOOKUP(Calculations!$E$2,Pop2016fraction!$C$3:$BC$251,Pop2016fraction!$BD235,FALSE),0)","v":1127},{"$f":"ROUND(Options!$B$21*HLOOKUP(Calculations!$E$2,Pop2016fractionQ1!$C$3:$BC$251,Pop2016fractionQ1!$BD235,FALSE),0)","v":0},{"$f":"ROUND(Options!$B$21*HLOOKUP(Calculations!$E$2,'Pop2016fractionQ1&2'!$C$3:$BC$251,'Pop2016fractionQ1&2'!$BD235,FALSE),0)","v":0},{"$f":"ROUND(Options!$B$21*HLOOKUP(Calculations!$E$2,PARfraction!$C$3:$BC$251,PARfraction!$BD235,FALSE),0)","v":712},233]
[null,"Male 25-29",{"$f":"ROUND(Options!$B$21*HLOOKUP(Calculations!$E$2,Pop2016fraction!$C$3:$BC$251,Pop2016fraction!$BD236,FALSE),0)","v":1015},{"$f":"ROUND(Options!$B$21*HLOOKUP(Calculations!$E$2,Pop2016fractionQ1!$C$3:$BC$251,Pop2016fractionQ1!$BD236,FALSE),0)","v":0},{"$f":"ROUND(Options!$B$21*HLOOKUP(Calculations!$E$2,'Pop2016fractionQ1&2'!$C$3:$BC$251,'Pop2016fractionQ1&2'!$BD236,FALSE),0)","v":0},{"$f":"ROUND(Options!$B$21*HLOOKUP(Calculations!$E$2,PARfraction!$C$3:$BC$251,PARfraction!$BD236,FALSE),0)","v":641},234]
[null,"Male 30-34",{"$f":"ROUND(Options!$B$21*HLOOKUP(Calculations!$E$2,Pop2016fraction!$C$3:$BC$251,Pop2016fraction!$BD237,FALSE),0)","v":893},{"$f":"ROUND(Options!$B$21*HLOOKUP(Calculations!$E$2,Pop2016fractionQ1!$C$3:$BC$251,Pop2016fractionQ1!$BD237,FALSE),0)","v":0},{"$f":"ROUND(Options!$B$21*HLOOKUP(Calculations!$E$2,'Pop2016fractionQ1&2'!$C$3:$BC$251,'Pop2016fractionQ1&2'!$BD237,FALSE),0)","v":0},{"$f":"ROUND(Options!$B$21*HLOOKUP(Calculations!$E$2,PARfraction!$C$3:$BC$251,PARfraction!$BD237,FALSE),0)","v":564},235]
[null,"Male 35-39",{"$f":"ROUND(Options!$B$21*HLOOKUP(Calculations!$E$2,Pop2016fraction!$C$3:$BC$251,Pop2016fraction!$BD238,FALSE),0)","v":945},{"$f":"ROUND(Options!$B$21*HLOOKUP(Calculations!$E$2,Pop2016fractionQ1!$C$3:$BC$251,Pop2016fractionQ1!$BD238,FALSE),0)","v":0},{"$f":"ROUND(Options!$B$21*HLOOKUP(Calculations!$E$2,'Pop2016fractionQ1&2'!$C$3:$BC$251,'Pop2016fractionQ1&2'!$BD238,FALSE),0)","v":0},{"$f":"ROUND(Options!$B$21*HLOOKUP(Calculations!$E$2,PARfraction!$C$3:$BC$251,PARfraction!$BD238,FALSE),0)","v":597},236]
[null,"Male 40-44",{"$f":"ROUND(Options!$B$21*HLOOKUP(Calculations!$E$2,Pop2016fraction!$C$3:$BC$251,Pop2016fraction!$BD239,FALSE),0)","v":1040},{"$f":"ROUND(Options!$B$21*HLOOKUP(Calculations!$E$2,Pop2016fractionQ1!$C$3:$BC$251,Pop2016fractionQ1!$BD239,FALSE),0)","v":0},{"$f":"ROUND(Options!$B$21*HLOOKUP(Calculations!$E$2,'Pop2016fractionQ1&2'!$C$3:$BC$251,'Pop2016fractionQ1&2'!$BD239,FALSE),0)","v":0},{"$f":"ROUND(Options!$B$21*HLOOKUP(Calculations!$E$2,PARfraction!$C$3:$BC$251,PARfraction!$BD239,FALSE),0)","v":656},237]
[null,"Male 45-49",{"$f":"ROUND(Options!$B$21*HLOOKUP(Calculations!$E$2,Pop2016fraction!$C$3:$BC$251,Pop2016fraction!$BD240,FALSE),0)","v":1166},{"$f":"ROUND(Options!$B$21*HLOOKUP(Calculations!$E$2,Pop2016fractionQ1!$C$3:$BC$251,Pop2016fractionQ1!$BD240,FALSE),0)","v":0},{"$f":"ROUND(Options!$B$21*HLOOKUP(Calculations!$E$2,'Pop2016fractionQ1&2'!$C$3:$BC$251,'Pop2016fractionQ1&2'!$BD240,FALSE),0)","v":0},{"$f":"ROUND(Options!$B$21*HLOOKUP(Calculations!$E$2,PARfraction!$C$3:$BC$251,PARfraction!$BD240,FALSE),0)","v":736},238]
[null,"Male 50-54",{"$f":"ROUND(Options!$B$21*HLOOKUP(Calculations!$E$2,Pop2016fraction!$C$3:$BC$251,Pop2016fraction!$BD241,FALSE),0)","v":1186},{"$f":"ROUND(Options!$B$21*HLOOKUP(Calculations!$E$2,Pop2016fractionQ1!$C$3:$BC$251,Pop2016fractionQ1!$BD241,FALSE),0)","v":0},{"$f":"ROUND(Options!$B$21*HLOOKUP(Calculations!$E$2,'Pop2016fractionQ1&2'!$C$3:$BC$251,'Pop2016fractionQ1&2'!$BD241,FALSE),0)","v":0},{"$f":"ROUND(Options!$B$21*HLOOKUP(Calculations!$E$2,PARfraction!$C$3:$BC$251,PARfraction!$BD241,FALSE),0)","v":749},239]
[null,"Male 55-59",{"$f":"ROUND(Options!$B$21*HLOOKUP(Calculations!$E$2,Pop2016fraction!$C$3:$BC$251,Pop2016fraction!$BD242,FALSE),0)","v":1079},{"$f":"ROUND(Options!$B$21*HLOOKUP(Calculations!$E$2,Pop2016fractionQ1!$C$3:$BC$251,Pop2016fractionQ1!$BD242,FALSE),0)","v":0},{"$f":"ROUND(Options!$B$21*HLOOKUP(Calculations!$E$2,'Pop2016fractionQ1&2'!$C$3:$BC$251,'Pop2016fractionQ1&2'!$BD242,FALSE),0)","v":0},{"$f":"ROUND(Options!$B$21*HLOOKUP(Calculations!$E$2,PARfraction!$C$3:$BC$251,PARfraction!$BD242,FALSE),0)","v":570},240]
[null,"Male 60-64",{"$f":"ROUND(Options!$B$21*HLOOKUP(Calculations!$E$2,Pop2016fraction!$C$3:$BC$251,Pop2016fraction!$BD243,FALSE),0)","v":948},{"$f":"ROUND(Options!$B$21*HLOOKUP(Calculations!$E$2,Pop2016fractionQ1!$C$3:$BC$251,Pop2016fractionQ1!$BD243,FALSE),0)","v":0},{"$f":"ROUND(Options!$B$21*HLOOKUP(Calculations!$E$2,'Pop2016fractionQ1&2'!$C$3:$BC$251,'Pop2016fractionQ1&2'!$BD243,FALSE),0)","v":0},{"$f":"ROUND(Options!$B$21*HLOOKUP(Calculations!$E$2,PARfraction!$C$3:$BC$251,PARfraction!$BD243,FALSE),0)","v":501},241]
[null,"Male 65-69",{"$f":"ROUND(Options!$B$21*HLOOKUP(Calculations!$E$2,Pop2016fraction!$C$3:$BC$251,Pop2016fraction!$BD244,FALSE),0)","v":938},{"$f":"ROUND(Options!$B$21*HLOOKUP(Calculations!$E$2,Pop2016fractionQ1!$C$3:$BC$251,Pop2016fractionQ1!$BD244,FALSE),0)","v":0},{"$f":"ROUND(Options!$B$21*HLOOKUP(Calculations!$E$2,'Pop2016fractionQ1&2'!$C$3:$BC$251,'Pop2016fractionQ1&2'!$BD244,FALSE),0)","v":0},{"$f":"ROUND(Options!$B$21*HLOOKUP(Calculations!$E$2,PARfraction!$C$3:$BC$251,PARfraction!$BD244,FALSE),0)","v":496},242]
[null,"Male 70-74",{"$f":"ROUND(Options!$B$21*HLOOKUP(Calculations!$E$2,Pop2016fraction!$C$3:$BC$251,Pop2016fraction!$BD245,FALSE),0)","v":671},{"$f":"ROUND(Options!$B$21*HLOOKUP(Calculations!$E$2,Pop2016fractionQ1!$C$3:$BC$251,Pop2016fractionQ1!$BD245,FALSE),0)","v":0},{"$f":"ROUND(Options!$B$21*HLOOKUP(Calculations!$E$2,'Pop2016fractionQ1&2'!$C$3:$BC$251,'Pop2016fractionQ1&2'!$BD245,FALSE),0)","v":0},{"$f":"ROUND(Options!$B$21*HLOOKUP(Calculations!$E$2,PARfraction!$C$3:$BC$251,PARfraction!$BD245,FALSE),0)","v":355},243]
[null,"Male 75-79",{"$f":"ROUND(Options!$B$21*HLOOKUP(Calculations!$E$2,Pop2016fraction!$C$3:$BC$251,Pop2016fraction!$BD246,FALSE),0)","v":488},{"$f":"ROUND(Options!$B$21*HLOOKUP(Calculations!$E$2,Pop2016fractionQ1!$C$3:$BC$251,Pop2016fractionQ1!$BD246,FALSE),0)","v":0},{"$f":"ROUND(Options!$B$21*HLOOKUP(Calculations!$E$2,'Pop2016fractionQ1&2'!$C$3:$BC$251,'Pop2016fractionQ1&2'!$BD246,FALSE),0)","v":0},{"$f":"ROUND(Options!$B$21*HLOOKUP(Calculations!$E$2,PARfraction!$C$3:$BC$251,PARfraction!$BD246,FALSE),0)","v":258},244]
[null,"Male 80-84",{"$f":"ROUND(Options!$B$21*HLOOKUP(Calculations!$E$2,Pop2016fraction!$C$3:$BC$251,Pop2016fraction!$BD247,FALSE),0)","v":350},{"$f":"ROUND(Options!$B$21*HLOOKUP(Calculations!$E$2,Pop2016fractionQ1!$C$3:$BC$251,Pop2016fractionQ1!$BD247,FALSE),0)","v":0},{"$f":"ROUND(Options!$B$21*HLOOKUP(Calculations!$E$2,'Pop2016fractionQ1&2'!$C$3:$BC$251,'Pop2016fractionQ1&2'!$BD247,FALSE),0)","v":0},{"$f":"ROUND(Options!$B$21*HLOOKUP(Calculations!$E$2,PARfraction!$C$3:$BC$251,PARfraction!$BD247,FALSE),0)","v":185},245]
[null,"Male 85-89",{"$f":"ROUND(Options!$B$21*HLOOKUP(Calculations!$E$2,Pop2016fraction!$C$3:$BC$251,Pop2016fraction!$BD248,FALSE),0)","v":180},{"$f":"ROUND(Options!$B$21*HLOOKUP(Calculations!$E$2,Pop2016fractionQ1!$C$3:$BC$251,Pop2016fractionQ1!$BD248,FALSE),0)","v":0},{"$f":"ROUND(Options!$B$21*HLOOKUP(Calculations!$E$2,'Pop2016fractionQ1&2'!$C$3:$BC$251,'Pop2016fractionQ1&2'!$BD248,FALSE),0)","v":0},{"$f":"ROUND(Options!$B$21*HLOOKUP(Calculations!$E$2,PARfraction!$C$3:$BC$251,PARfraction!$BD248,FALSE),0)","v":95},246]
[null,"Male 90+",{"$f":"ROUND(Options!$B$21*HLOOKUP(Calculations!$E$2,Pop2016fraction!$C$3:$BC$251,Pop2016fraction!$BD249,FALSE),0)","v":79},{"$f":"ROUND(Options!$B$21*HLOOKUP(Calculations!$E$2,Pop2016fractionQ1!$C$3:$BC$251,Pop2016fractionQ1!$BD249,FALSE),0)","v":0},{"$f":"ROUND(Options!$B$21*HLOOKUP(Calculations!$E$2,'Pop2016fractionQ1&2'!$C$3:$BC$251,'Pop2016fractionQ1&2'!$BD249,FALSE),0)","v":0},{"$f":"ROUND(Options!$B$21*HLOOKUP(Calculations!$E$2,PARfraction!$C$3:$BC$251,PARfraction!$BD249,FALSE),0)","v":42},247]